{"text_format":"1","workbook":"xlsx","n_sheets":11,"sheets":["Standing Data","Accountant's Report","Fin.Return","CoPty.Return","Subsidiaries","Bench.Return ","Land and Property","CP IDs","Reference","NumData","ChaData"],"not_rendered":{"charts":0,"images":0,"macros":1,"external_links":2,"defined_names":34,"comments":2,"pivot_tables":0},"unopened":[],"bounds":{"document_bytes":16777216,"sheet_cells":100000,"rows_first":2000,"rows_last":500,"rows_between":2000,"halvings":0,"cell_chars":16384,"cell_head_chars":4096},"cells_cut":0,"cells_raw":0,"read":"whole","date_system":"1900"}

{"sheet":"Standing Data","index":0,"n_rows":203,"n_cols":30,"rows_kept":203,"cut":false,"hidden":false,"merged":[[54,8,54,10],[77,8,77,10],[92,8,92,10],[83,8,83,10],[84,8,84,10],[85,8,85,10],[62,8,62,10],[73,8,73,10],[74,8,74,10],[75,8,75,10],[87,8,87,10],[88,8,88,10],[66,8,66,10],[67,8,67,10],[86,8,86,10],[64,8,64,10],[65,8,65,10],[76,8,76,10],[68,8,68,10],[69,8,69,10],[57,8,57,10],[82,8,82,10],[63,8,63,10],[26,0,26,1],[90,8,90,10],[91,8,91,10],[105,8,105,10],[117,8,117,10],[38,5,38,7],[41,5,41,7],[52,8,52,10],[58,8,58,10],[59,8,59,10],[60,8,60,10],[32,0,32,1],[61,8,61,10],[35,5,35,7],[47,8,47,10],[48,8,48,10],[55,8,55,10],[56,8,56,10],[49,8,49,10],[50,8,50,10],[79,8,79,10],[80,8,80,10],[81,8,81,10],[53,8,53,10],[163,3,163,4],[135,8,135,10],[136,8,136,10],[127,8,127,10],[128,8,128,10],[70,8,70,10],[71,8,71,10],[72,8,72,10],[78,8,78,10],[2,5,2,9],[48,0,52,1],[147,8,147,10],[140,8,140,10],[141,8,141,10],[142,8,142,10],[143,8,143,10],[144,8,144,10],[137,8,137,10],[138,8,138,10],[139,8,139,10],[145,8,145,10],[146,8,146,10],[132,8,132,10],[133,8,133,10],[134,8,134,10],[8,5,8,9],[29,0,29,1],[125,8,125,10],[102,8,102,10],[103,8,103,10],[104,8,104,10],[112,8,112,10],[51,8,51,10],[191,0,191,3],[193,0,193,3],[195,0,195,3],[172,0,172,4],[173,0,173,4],[189,0,189,3],[175,1,175,3],[178,1,178,3],[176,0,176,3],[183,0,183,5],[166,3,166,4],[123,8,123,10],[124,8,124,10],[126,8,126,10],[171,0,171,4],[116,8,116,10],[107,8,107,10],[108,8,108,10],[106,8,106,10],[129,8,129,10],[130,8,130,10],[131,8,131,10],[153,0,154,1],[118,8,118,10],[119,8,119,10],[120,8,120,10],[121,8,121,10],[122,8,122,10],[109,8,109,10],[110,8,110,10],[111,8,111,10],[113,8,113,10],[114,8,114,10],[115,8,115,10],[149,0,151,1],[93,8,93,10],[97,8,97,10],[98,8,98,10],[99,8,99,10],[89,8,89,10],[100,8,100,10],[101,8,101,10],[94,8,94,10],[95,8,95,10],[96,8,96,10]]}
["Accounts Return March 2014 - Standing Data"]
[]
["Academy Trust company name",null,null,"Type name here"]
[null,null,null,"Enter company name in the cell above",null,"If the Academy Trust has changed its name in the period please enter the previous name in the cell above"]
[]
["Period end",null,null,"2014-03-31"]
[null,null,null,"Select from drop-down box in the cell above"]
[]
["Academy Trust's trading name"]
[null,null,null,"Select from drop-down box in the cell above",null,"If 'Other' please enter the correct trading name in the cell above"]
[]
["Trust's company number",null,null,"Type number here"]
[null,null,null,"Enter company's registration number in the cell above"]
[]
["Academy UPIN",null,null,{"$f":"VLOOKUP(D$9,Reference!O8:P3921,2,FALSE)","v":{"$error":"#N/A"}},null,null,null,null,null,null,null,null,null,null,null,null,null,null,null,null,null,null,null,null,null,null,null,"Check for number",null,{"$f":"IF(ISERROR(D15),\"XXXXXX\",IF(OR(D15=\"Multiple\",D15=\"000000\"),IF(F15<>\"\",F15,\"XXXXXX\"),D15))","v":"XXXXXX"}]
[null,null,null,"UPIN will populate automatically in the cell above",null,"If pre-populated UPIN is incorrect, or shows '000000' please enter the correct number in the cell above",null,null,null,null,null,null,null,null,null,null,null,null,null,null,null,null,null,null,null,null,null,"Random numner",null,{"$f":"IF(AD15<>\"XXXXXX\",\"\",IF(D12<>\"Type number here\",D12,INT(RAND()*100000000)))","v":33786114}]
[]
["Conversion date",null,null,{"$f":"VLOOKUP($D$9,Reference!O8:Q3921,3,FALSE)","v":{"$error":"#N/A"}},null,null,null,null,null,null,null,null,null,null,null,null,null,null,null,null,null,null,null,null,null,null,null,"File name to save",null,{"$f":"IF(AD16=\"\",AD15,AD15&\" - \"&AD16)","v":"XXXXXX - 33786114"}]
[null,null,null,"Date will populate automatically in the cell above",null,"If pre-populated date is incorrect please enter the correct date in the cell above"]
[]
["Incorporation date"]
[null,null,null,"Enter company's incorporation date in the cell above"]
[]
["Period length"]
[null,null,null,"Select from drop-down box in the cell above"]
[]
["Status of the 2013 financial statements' audit opinion",null,null,"N/A - 31 March"]
[null,null,null,"Select from drop-down box in the cell above"]
[]
["Did the Academy Trust submit  a EFA financial return as at 31 March 2012",null,null,"No"]
[null,null,null,"Select from drop-down box in the cell above"]
[]
["Conclusion of assurance report on regularity",null,null,"N/A - 31 March"]
[null,null,null,"Select from drop-down box in the cell above"]
[]
["Region",null,null,{"$f":"VLOOKUP($D$9,Reference!O8:R3921,4,FALSE)","v":{"$error":"#N/A"}}]
[null,null,null,"Region will populate automatically above",null,"If pre-populated region is incorrect please enter the correct region in the cell above"]
[]
["Ex-local authority",null,null,{"$f":"VLOOKUP($D$9,Reference!O8:S3921,5,FALSE)","v":{"$error":"#N/A"}}]
[null,null,null,"Local authority will populate automatically above",null,"If pre-populated local authority is incorrect please enter the correct local authority in the cell above"]
[]
["Academy type"]
[null,null,null,"Select from drop-down box in the cell above",null,"If 'Other' please enter the correct academy type in the cell above"]
[]
["Multi-academy Trust",null,null,{"$f":"IF(D9=\"Multi-academy trust\",\"Yes\",\"No\")","v":"No"}]
[null,null,null,"Trust status will populate automatically above"]
[]
[null,null,null,"Multi-academy Trust/Federation\nacademy school names","Academy UPIN","New or existing member","Date joined if new",null,"Correct Academy name",null,null,null,"Correct UPIN"]
["Academies included within this Accounts Return submitted by a Multi-academy Trust or Federation",null,null,"Academy name",{"$f":"IF(D49<>\"Academy name\",VLOOKUP(D49,Reference!$O$10:$P$3890,2,FALSE),\"\")","v":""}]
[null,null,null,"Academy name",{"$f":"IF(D50<>\"Academy name\",VLOOKUP(D50,Reference!$O$10:$P$3890,2,FALSE),\"\")","v":""}]
[null,null,null,"Academy name",{"$f":"IF(D51<>\"Academy name\",VLOOKUP(D51,Reference!$O$10:$P$3890,2,FALSE),\"\")","v":""}]
[null,null,null,"Academy name",{"$f":"IF(D52<>\"Academy name\",VLOOKUP(D52,Reference!$O$10:$P$3890,2,FALSE),\"\")","v":""}]
[null,null,null,"Academy name",{"$f":"IF(D53<>\"Academy name\",VLOOKUP(D53,Reference!$O$10:$P$3890,2,FALSE),\"\")","v":""}]
[null,null,null,"Academy name",{"$f":"IF(D54<>\"Academy name\",VLOOKUP(D54,Reference!$O$10:$P$3890,2,FALSE),\"\")","v":""}]
[null,null,null,"Academy name",{"$f":"IF(D55<>\"Academy name\",VLOOKUP(D55,Reference!$O$10:$P$3890,2,FALSE),\"\")","v":""}]
[null,null,null,"Academy name",{"$f":"IF(D56<>\"Academy name\",VLOOKUP(D56,Reference!$O$10:$P$3890,2,FALSE),\"\")","v":""}]
[null,null,null,"Academy name",{"$f":"IF(D57<>\"Academy name\",VLOOKUP(D57,Reference!$O$10:$P$3890,2,FALSE),\"\")","v":""}]
[null,null,null,"Academy name",{"$f":"IF(D58<>\"Academy name\",VLOOKUP(D58,Reference!$O$10:$P$3890,2,FALSE),\"\")","v":""}]
[null,null,null,"Academy name",{"$f":"IF(D59<>\"Academy name\",VLOOKUP(D59,Reference!$O$10:$P$3890,2,FALSE),\"\")","v":""}]
[null,null,null,"Academy name",{"$f":"IF(D60<>\"Academy name\",VLOOKUP(D60,Reference!$O$10:$P$3890,2,FALSE),\"\")","v":""}]
[null,null,null,"Academy name",{"$f":"IF(D61<>\"Academy name\",VLOOKUP(D61,Reference!$O$10:$P$3890,2,FALSE),\"\")","v":""}]
[null,null,null,"Academy name",{"$f":"IF(D62<>\"Academy name\",VLOOKUP(D62,Reference!$O$10:$P$3890,2,FALSE),\"\")","v":""}]
[null,null,null,"Academy name",{"$f":"IF(D63<>\"Academy name\",VLOOKUP(D63,Reference!$O$10:$P$3890,2,FALSE),\"\")","v":""}]
[null,null,null,"Academy name",{"$f":"IF(D64<>\"Academy name\",VLOOKUP(D64,Reference!$O$10:$P$3890,2,FALSE),\"\")","v":""}]
[null,null,null,"Academy name",{"$f":"IF(D65<>\"Academy name\",VLOOKUP(D65,Reference!$O$10:$P$3890,2,FALSE),\"\")","v":""}]
[null,null,null,"Academy name",{"$f":"IF(D66<>\"Academy name\",VLOOKUP(D66,Reference!$O$10:$P$3890,2,FALSE),\"\")","v":""}]
[null,null,null,"Academy name",{"$f":"IF(D67<>\"Academy name\",VLOOKUP(D67,Reference!$O$10:$P$3890,2,FALSE),\"\")","v":""}]
[null,null,null,"Academy name",{"$f":"IF(D68<>\"Academy name\",VLOOKUP(D68,Reference!$O$10:$P$3890,2,FALSE),\"\")","v":""}]
[null,null,null,"Academy name",{"$f":"IF(D69<>\"Academy name\",VLOOKUP(D69,Reference!$O$10:$P$3890,2,FALSE),\"\")","v":""}]
[null,null,null,"Academy name",{"$f":"IF(D70<>\"Academy name\",VLOOKUP(D70,Reference!$O$10:$P$3890,2,FALSE),\"\")","v":""}]
[null,null,null,"Academy name",{"$f":"IF(D71<>\"Academy name\",VLOOKUP(D71,Reference!$O$10:$P$3890,2,FALSE),\"\")","v":""}]
[null,null,null,"Academy name",{"$f":"IF(D72<>\"Academy name\",VLOOKUP(D72,Reference!$O$10:$P$3890,2,FALSE),\"\")","v":""}]
[null,null,null,"Academy name",{"$f":"IF(D73<>\"Academy name\",VLOOKUP(D73,Reference!$O$10:$P$3890,2,FALSE),\"\")","v":""}]
[null,null,null,"Academy name",{"$f":"IF(D74<>\"Academy name\",VLOOKUP(D74,Reference!$O$10:$P$3890,2,FALSE),\"\")","v":""}]
[null,null,null,"Academy name",{"$f":"IF(D75<>\"Academy name\",VLOOKUP(D75,Reference!$O$10:$P$3890,2,FALSE),\"\")","v":""}]
[null,null,null,"Academy name",{"$f":"IF(D76<>\"Academy name\",VLOOKUP(D76,Reference!$O$10:$P$3890,2,FALSE),\"\")","v":""}]
[null,null,null,"Academy name",{"$f":"IF(D77<>\"Academy name\",VLOOKUP(D77,Reference!$O$10:$P$3890,2,FALSE),\"\")","v":""}]
[null,null,null,"Academy name",{"$f":"IF(D78<>\"Academy name\",VLOOKUP(D78,Reference!$O$10:$P$3890,2,FALSE),\"\")","v":""}]
[null,null,null,"Academy name",{"$f":"IF(D79<>\"Academy name\",VLOOKUP(D79,Reference!$O$10:$P$3890,2,FALSE),\"\")","v":""}]
[null,null,null,"Academy name",{"$f":"IF(D80<>\"Academy name\",VLOOKUP(D80,Reference!$O$10:$P$3890,2,FALSE),\"\")","v":""}]
[null,null,null,"Academy name",{"$f":"IF(D81<>\"Academy name\",VLOOKUP(D81,Reference!$O$10:$P$3890,2,FALSE),\"\")","v":""}]
[null,null,null,"Academy name",{"$f":"IF(D82<>\"Academy name\",VLOOKUP(D82,Reference!$O$10:$P$3890,2,FALSE),\"\")","v":""}]
[null,null,null,"Academy name",{"$f":"IF(D83<>\"Academy name\",VLOOKUP(D83,Reference!$O$10:$P$3890,2,FALSE),\"\")","v":""}]
[null,null,null,"Academy name",{"$f":"IF(D84<>\"Academy name\",VLOOKUP(D84,Reference!$O$10:$P$3890,2,FALSE),\"\")","v":""}]
[null,null,null,"Academy name",{"$f":"IF(D85<>\"Academy name\",VLOOKUP(D85,Reference!$O$10:$P$3890,2,FALSE),\"\")","v":""}]
[null,null,null,"Academy name",{"$f":"IF(D86<>\"Academy name\",VLOOKUP(D86,Reference!$O$10:$P$3890,2,FALSE),\"\")","v":""}]
[null,null,null,"Academy name",{"$f":"IF(D87<>\"Academy name\",VLOOKUP(D87,Reference!$O$10:$P$3890,2,FALSE),\"\")","v":""}]
[null,null,null,"Academy name",{"$f":"IF(D88<>\"Academy name\",VLOOKUP(D88,Reference!$O$10:$P$3890,2,FALSE),\"\")","v":""}]
[null,null,null,"Academy name",{"$f":"IF(D89<>\"Academy name\",VLOOKUP(D89,Reference!$O$10:$P$3890,2,FALSE),\"\")","v":""}]
[null,null,null,"Academy name",{"$f":"IF(D90<>\"Academy name\",VLOOKUP(D90,Reference!$O$10:$P$3890,2,FALSE),\"\")","v":""}]
[null,null,null,"Academy name",{"$f":"IF(D91<>\"Academy name\",VLOOKUP(D91,Reference!$O$10:$P$3890,2,FALSE),\"\")","v":""}]
[null,null,null,"Academy name",{"$f":"IF(D92<>\"Academy name\",VLOOKUP(D92,Reference!$O$10:$P$3890,2,FALSE),\"\")","v":""}]
[null,null,null,"Academy name",{"$f":"IF(D93<>\"Academy name\",VLOOKUP(D93,Reference!$O$10:$P$3890,2,FALSE),\"\")","v":""}]
[null,null,null,"Academy name",{"$f":"IF(D94<>\"Academy name\",VLOOKUP(D94,Reference!$O$10:$P$3890,2,FALSE),\"\")","v":""}]
[null,null,null,"Academy name",{"$f":"IF(D95<>\"Academy name\",VLOOKUP(D95,Reference!$O$10:$P$3890,2,FALSE),\"\")","v":""}]
[null,null,null,"Academy name",{"$f":"IF(D96<>\"Academy name\",VLOOKUP(D96,Reference!$O$10:$P$3890,2,FALSE),\"\")","v":""}]
[null,null,null,"Academy name",{"$f":"IF(D97<>\"Academy name\",VLOOKUP(D97,Reference!$O$10:$P$3890,2,FALSE),\"\")","v":""}]
[null,null,null,"Academy name",{"$f":"IF(D98<>\"Academy name\",VLOOKUP(D98,Reference!$O$10:$P$3890,2,FALSE),\"\")","v":""}]
[null,null,null,"Academy name",{"$f":"IF(D99<>\"Academy name\",VLOOKUP(D99,Reference!$O$10:$P$3890,2,FALSE),\"\")","v":""}]
[null,null,null,"Academy name",{"$f":"IF(D100<>\"Academy name\",VLOOKUP(D100,Reference!$O$10:$P$3890,2,FALSE),\"\")","v":""}]
[null,null,null,"Academy name",{"$f":"IF(D101<>\"Academy name\",VLOOKUP(D101,Reference!$O$10:$P$3890,2,FALSE),\"\")","v":""}]
[null,null,null,"Academy name",{"$f":"IF(D102<>\"Academy name\",VLOOKUP(D102,Reference!$O$10:$P$3890,2,FALSE),\"\")","v":""}]
[null,null,null,"Academy name",{"$f":"IF(D103<>\"Academy name\",VLOOKUP(D103,Reference!$O$10:$P$3890,2,FALSE),\"\")","v":""}]
[null,null,null,"Academy name",{"$f":"IF(D104<>\"Academy name\",VLOOKUP(D104,Reference!$O$10:$P$3890,2,FALSE),\"\")","v":""}]
[null,null,null,"Academy name",{"$f":"IF(D105<>\"Academy name\",VLOOKUP(D105,Reference!$O$10:$P$3890,2,FALSE),\"\")","v":""}]
[null,null,null,"Academy name",{"$f":"IF(D106<>\"Academy name\",VLOOKUP(D106,Reference!$O$10:$P$3890,2,FALSE),\"\")","v":""}]
[null,null,null,"Academy name",{"$f":"IF(D107<>\"Academy name\",VLOOKUP(D107,Reference!$O$10:$P$3890,2,FALSE),\"\")","v":""}]
[null,null,null,"Academy name",{"$f":"IF(D108<>\"Academy name\",VLOOKUP(D108,Reference!$O$10:$P$3890,2,FALSE),\"\")","v":""}]
[null,null,null,"Academy name",{"$f":"IF(D109<>\"Academy name\",VLOOKUP(D109,Reference!$O$10:$P$3890,2,FALSE),\"\")","v":""}]
[null,null,null,"Academy name",{"$f":"IF(D110<>\"Academy name\",VLOOKUP(D110,Reference!$O$10:$P$3890,2,FALSE),\"\")","v":""}]
[null,null,null,"Academy name",{"$f":"IF(D111<>\"Academy name\",VLOOKUP(D111,Reference!$O$10:$P$3890,2,FALSE),\"\")","v":""}]
[null,null,null,"Academy name",{"$f":"IF(D112<>\"Academy name\",VLOOKUP(D112,Reference!$O$10:$P$3890,2,FALSE),\"\")","v":""}]
[null,null,null,"Academy name",{"$f":"IF(D113<>\"Academy name\",VLOOKUP(D113,Reference!$O$10:$P$3890,2,FALSE),\"\")","v":""}]
[null,null,null,"Academy name",{"$f":"IF(D114<>\"Academy name\",VLOOKUP(D114,Reference!$O$10:$P$3890,2,FALSE),\"\")","v":""}]
[null,null,null,"Academy name",{"$f":"IF(D115<>\"Academy name\",VLOOKUP(D115,Reference!$O$10:$P$3890,2,FALSE),\"\")","v":""}]
[null,null,null,"Academy name",{"$f":"IF(D116<>\"Academy name\",VLOOKUP(D116,Reference!$O$10:$P$3890,2,FALSE),\"\")","v":""}]
[null,null,null,"Academy name",{"$f":"IF(D117<>\"Academy name\",VLOOKUP(D117,Reference!$O$10:$P$3890,2,FALSE),\"\")","v":""}]
[null,null,null,"Academy name",{"$f":"IF(D118<>\"Academy name\",VLOOKUP(D118,Reference!$O$10:$P$3890,2,FALSE),\"\")","v":""}]
[null,null,null,"Academy name",{"$f":"IF(D119<>\"Academy name\",VLOOKUP(D119,Reference!$O$10:$P$3890,2,FALSE),\"\")","v":""}]
[null,null,null,"Academy name",{"$f":"IF(D120<>\"Academy name\",VLOOKUP(D120,Reference!$O$10:$P$3890,2,FALSE),\"\")","v":""}]
[null,null,null,"Academy name",{"$f":"IF(D121<>\"Academy name\",VLOOKUP(D121,Reference!$O$10:$P$3890,2,FALSE),\"\")","v":""}]
[null,null,null,"Academy name",{"$f":"IF(D122<>\"Academy name\",VLOOKUP(D122,Reference!$O$10:$P$3890,2,FALSE),\"\")","v":""}]
[null,null,null,"Academy name",{"$f":"IF(D123<>\"Academy name\",VLOOKUP(D123,Reference!$O$10:$P$3890,2,FALSE),\"\")","v":""}]
[null,null,null,"Academy name",{"$f":"IF(D124<>\"Academy name\",VLOOKUP(D124,Reference!$O$10:$P$3890,2,FALSE),\"\")","v":""}]
[null,null,null,"Academy name",{"$f":"IF(D125<>\"Academy name\",VLOOKUP(D125,Reference!$O$10:$P$3890,2,FALSE),\"\")","v":""}]
[null,null,null,"Academy name",{"$f":"IF(D126<>\"Academy name\",VLOOKUP(D126,Reference!$O$10:$P$3890,2,FALSE),\"\")","v":""}]
[null,null,null,"Academy name",{"$f":"IF(D127<>\"Academy name\",VLOOKUP(D127,Reference!$O$10:$P$3890,2,FALSE),\"\")","v":""}]
[null,null,null,"Academy name",{"$f":"IF(D128<>\"Academy name\",VLOOKUP(D128,Reference!$O$10:$P$3890,2,FALSE),\"\")","v":""}]
[null,null,null,"Academy name",{"$f":"IF(D129<>\"Academy name\",VLOOKUP(D129,Reference!$O$10:$P$3890,2,FALSE),\"\")","v":""}]
[null,null,null,"Academy name",{"$f":"IF(D130<>\"Academy name\",VLOOKUP(D130,Reference!$O$10:$P$3890,2,FALSE),\"\")","v":""}]
[null,null,null,"Academy name",{"$f":"IF(D131<>\"Academy name\",VLOOKUP(D131,Reference!$O$10:$P$3890,2,FALSE),\"\")","v":""}]
[null,null,null,"Academy name",{"$f":"IF(D132<>\"Academy name\",VLOOKUP(D132,Reference!$O$10:$P$3890,2,FALSE),\"\")","v":""}]
[null,null,null,"Academy name",{"$f":"IF(D133<>\"Academy name\",VLOOKUP(D133,Reference!$O$10:$P$3890,2,FALSE),\"\")","v":""}]
[null,null,null,"Academy name",{"$f":"IF(D134<>\"Academy name\",VLOOKUP(D134,Reference!$O$10:$P$3890,2,FALSE),\"\")","v":""}]
[null,null,null,"Academy name",{"$f":"IF(D135<>\"Academy name\",VLOOKUP(D135,Reference!$O$10:$P$3890,2,FALSE),\"\")","v":""}]
[null,null,null,"Academy name",{"$f":"IF(D136<>\"Academy name\",VLOOKUP(D136,Reference!$O$10:$P$3890,2,FALSE),\"\")","v":""}]
[null,null,null,"Academy name",{"$f":"IF(D137<>\"Academy name\",VLOOKUP(D137,Reference!$O$10:$P$3890,2,FALSE),\"\")","v":""}]
[null,null,null,"Academy name",{"$f":"IF(D138<>\"Academy name\",VLOOKUP(D138,Reference!$O$10:$P$3890,2,FALSE),\"\")","v":""}]
[null,null,null,"Academy name",{"$f":"IF(D139<>\"Academy name\",VLOOKUP(D139,Reference!$O$10:$P$3890,2,FALSE),\"\")","v":""}]
[null,null,null,"Academy name",{"$f":"IF(D140<>\"Academy name\",VLOOKUP(D140,Reference!$O$10:$P$3890,2,FALSE),\"\")","v":""}]
[null,null,null,"Academy name",{"$f":"IF(D141<>\"Academy name\",VLOOKUP(D141,Reference!$O$10:$P$3890,2,FALSE),\"\")","v":""}]
[null,null,null,"Academy name",{"$f":"IF(D142<>\"Academy name\",VLOOKUP(D142,Reference!$O$10:$P$3890,2,FALSE),\"\")","v":""}]
[null,null,null,"Academy name",{"$f":"IF(D143<>\"Academy name\",VLOOKUP(D143,Reference!$O$10:$P$3890,2,FALSE),\"\")","v":""}]
[null,null,null,"Academy name",{"$f":"IF(D144<>\"Academy name\",VLOOKUP(D144,Reference!$O$10:$P$3890,2,FALSE),\"\")","v":""}]
[null,null,null,"Academy name",{"$f":"IF(D145<>\"Academy name\",VLOOKUP(D145,Reference!$O$10:$P$3890,2,FALSE),\"\")","v":""}]
[null,null,null,"Academy name",{"$f":"IF(D146<>\"Academy name\",VLOOKUP(D146,Reference!$O$10:$P$3890,2,FALSE),\"\")","v":""}]
[null,null,null,"Academy name",{"$f":"IF(D147<>\"Academy name\",VLOOKUP(D147,Reference!$O$10:$P$3890,2,FALSE),\"\")","v":""}]
[null,null,null,"Academy name",{"$f":"IF(D148<>\"Academy name\",VLOOKUP(D148,Reference!$O$10:$P$3890,2,FALSE),\"\")","v":""}]
[null,null,null,"Please select names from the drop-down box in \nthe cells above",null,"Select from drop-down box in the cells above"]
["Has the Trust/Federation had subsidiaries during the period?"]
[]
[null,null,null,"No"]
[]
["Has the subsidiaries tab been completed?"]
[null,null,null,"No",null,{"$f":"IF(D152=\"Yes\", \"Subsiduaries tab must be completed\",\"Subsiduaries tab not required\")","v":"Subsiduaries tab not required"}]
[]
["PREPARER DETAILS"]
["Contact details of person completing the form:"]
[" (please enter these details, so EFA can contact you if there are any questions)"]
["Contact Name:     "]
["Contact Telephone Number:     "]
["Contact E-mail Address:     "]
[]
["Professional accounting advisors"]
[null,null,null,"Please enter the name of the Trust's accounting advisors, if used, in the cell above"]
[]
["External auditors"]
[null,null,null,"Please enter the name of the Trust's external auditors, including office, in the cell above"]
[]
["ACADEMY TRUST DECLARATION"]
[]
["I confirm that those entries in the Accounts Return denoted as:"]
["·   Green cells have been prepared on a consistent basis (accounting policies and recognition & \n    valuation criteria) with those policies and criteria that will be used to prepare the academy trust’s full \n    audited statutory financial statements for the period."]
["·   Amber and red cells have been properly extracted from the academy’s financial records and \n    presented within the Accounts Return in accordance with the guidance notes issued by the \n    Education Funding Agency."]
[]
["Signed:   ","Please type name here"]
["Accounting Officer"]
[]
["Date: "]
[]
[]
[]
[]
["METRICS"]
[]
[null,null,null,null,"Possible Cells","Completed Cells"]
[null,null,null,null,"Fin.Return","Fin.Return"]
[]
[]
["Cells populate automatically from elsewhere in the Return",null,null,null,{"$f":"Fin.Return!H11","v":0.11531900375298533},{"$f":"+(Fin.Return!AQ13/Fin.Return!AR13)","v":0.61538461538461542}]
[]
["Sourced directly from Financial Statements",null,null,null,{"$f":"Fin.Return!H5","v":0.42340498123507336},{"$f":"+(Fin.Return!AM13/Fin.Return!AR13)","v":0.13609467455621302}]
[]
["Additional to Financial Statements, prepared on a similar basis",null,null,null,{"$f":"Fin.Return!H7","v":0.36028659160696008},{"$f":"+(Fin.Return!AO13/Fin.Return!AR13)","v":0.24852071005917159}]
[]
["Additional to Financial Statements, prepared on a different/new basis",null,null,null,{"$f":"Fin.Return!H9","v":0.10098942340498124},{"$f":"+(Fin.Return!AP13/Fin.Return!AR13)","v":0}]
[]
[]
[null,null,null,"Error totals",{"$f":"Fin.Return!K5+Fin.Return!M5+Fin.Return!O5","v":1}]
[]
[]
[]
[null,"Version date",null,"2014-02-28"]

{"sheet":"Accountant's Report","index":1,"n_rows":27,"n_cols":1,"rows_kept":27,"cut":false,"hidden":true,"merged":[]}
["INDEPENDENT REPORTING ACCOUNTANT’S REPORT ON THE ACCOUNTS RETURN TO [ACADEMY TRUST NAME] FOR THE [YEAR/PERIOD] ENDED 31st AUGUST 2013"]
[]
["We have examined the Accounts Return set out in the attached file, together with the audited statutory financial statements of [academy trust name] for the [period/year] ended 31 August 2013 prepared under section 396 of the Companies Act 2006, and the applicable framework comprising the Charities SORP and the Academies Accounts Direction 2013."]
[]
["This report is made solely to [academy trust name] in accordance with our instructions.  Our work has been undertaken so that we might state to [academy trust name] those matters we are required to state to them in an accountant’s report and for no other purpose.  To the fullest extent permitted by law, we do not accept or assume responsibility to anyone other than [academy trust name], for our work, for this report, or for the conclusions we have drawn."]
[]
["Respective responsibilities of the [trustees]/[directors] and auditor"]
[]
["The [trustees]/[directors] are responsible for preparing the Accounts Return, in accordance with the requirements set out in the guidance notes issued by the Education Funding Agency, and the audited statutory financial statements."]
[]
["It is our responsibility to report to you our conclusion as to whether:"]
["·           information in the Accounts Return marked as ‘sourced directly from financial statements’ is consistent with [academy trust name]’s audited statutory financial statements for the period; and"]
["·           other information provided in the Accounts Return has been properly extracted from [academy trust name]’s financial records and presented in the Accounts Return in accordance with the guidance notes issued by the Education Funding Agency."]
[]
["Scope"]
["As a practising member firm of the [Institute of Chartered Accountants in England and Wales], we are subject to its ethical and other professional requirements which are detailed at [www.icaew.com/en/members/regulations-standards-and-guidance]."]
[]
["We have not been instructed to carry out an audit or a review of the Accounts Return or of the underlying accounting records from which the Accounts Return is prepared. For this reason, we have not verified the accuracy or completeness of the accounting records or information and explanations you have given to us. Consequently the procedures undertaken do not provide all the evidence that would be required in an audit and, therefore, we do not express an audit opinion on the information presented in the Accounts Return nor do we express an audit opinion in respect of the underlying accounting records from which the Accounts Return is prepared."]
[]
["Conclusion"]
[]
["It is our conclusion that the information marked as ‘sourced directly from the financial statements’ in the Accounts Return is consistent with the audited statutory financial statements of [academy trust name] for the [period/year] ended 31 August 2013 and other information provided in the Accounts Return has been properly extracted from [academy trust name]’s financial records and presented in [academy trust name]’s Accounts Return in accordance with the guidance notes issued by the Education Funding Agency."]
[]
[]
["Auditor LLP"]
["[Office]"]
["[Date]"]

{"sheet":"Fin.Return","index":2,"n_rows":1368,"n_cols":44,"rows_kept":1368,"cut":false,"hidden":false,"merged":[[2,9,2,14],[59,0,59,7],[954,4,954,9],[955,4,955,9],[956,4,956,9],[952,4,952,9],[953,4,953,9],[10,3,10,6],[756,0,756,2],[656,1,656,8],[777,0,777,2],[828,6,828,10],[774,2,774,4],[10,38,10,43],[106,0,106,14],[593,1,593,2],[591,1,591,8],[13,0,13,10],[9,15,11,15],[363,1,363,2],[10,32,10,37],[1028,0,1028,2],[1131,1,1131,12],[1204,1,1204,12],[1362,1,1362,2],[1363,1,1363,2],[1331,4,1331,6],[1331,11,1331,12],[1266,1,1266,2],[1226,0,1226,2],[1129,3,1129,10],[1202,3,1202,10],[1267,1,1267,2],[1268,1,1268,2],[1364,1,1364,2],[1234,1,1234,12],[1253,1,1253,12],[1331,8,1331,9],[1357,1,1357,2],[1358,1,1358,2],[1359,1,1359,2],[1360,1,1360,2],[1361,1,1361,2],[1352,1,1352,2],[1353,1,1353,2],[1354,1,1354,2],[1355,1,1355,2],[1356,1,1356,2]]}
["Accounts Return March 2014 - Financial Return"]
[]
["Trust:",null,{"$f":"'Standing Data'!$D$3","v":"Type name here"},null,null,null,null,"% of cells",null,"Navigation Links & Error Counts"]
[]
["Period end:",null,{"$f":"'Standing Data'!$D$6","v":"2014-03-31"},null,null,null,"Sourced directly from Financial Statements",{"$f":"AG13/AL13","v":0.42340498123507336},null,"SoFA",{"$f":"COUNTIF(D16:J57,\"Error*\")","v":0},"Balance Sheet",{"$f":"COUNTIF(D62:H104,\"Error*\")","v":0},"Notes to the F.S.",{"$f":"K7+M7+O7+K9+M9+O9+K11+M11+O11","v":1}]
[]
["Company No.:",null,{"$f":"'Standing Data'!D12","v":"Type number here"},null,null,null,"Additional to Financial Statements, prepared on a similar basis",{"$f":"AI13/AL13","v":0.36028659160696008},null,"Income",{"$f":"COUNTIF(D110:J234,\"Error*\")","v":0},"Expenses",{"$f":"COUNTIF(D237:J415,\"Error*\")","v":0},"Boarding",{"$f":"COUNTIF(D417:H477,\"Error*\")","v":0}]
[]
["Academy UPIN:",null,{"$f":"IF(AND(OR('Standing Data'!D9=\"Multi-academy Trust\",'Standing Data'!D9=\"Federation\"),'Standing Data'!M49=0),'Standing Data'!E49,IF('Standing Data'!M49<>0,'Standing Data'!M49,IF(OR('Standing Data'!D9=\"Other\",'Standing Data'!F15<>\"\"),'Standing Data'!F15,'Standing Data'!D15)))","v":{"$error":"#N/A"}},null,null,null,"Additional to Financial Statements, prepared on a different/new basis",{"$f":"AJ13/AL13","v":0.10098942340498124},null,"Fixed Assets",{"$f":"COUNTIF(D480:P595,\"Error*\")","v":0},"Current Assets",{"$f":"COUNTIF(D597:M669,\"Error*\")","v":0},"Liabilities",{"$f":"COUNTIF(D671:K776,\"Error*\")","v":0}]
[null,null,"Above details will populate automatically"]
[null,null,null,"Cells populate automatically from elsewhere in the Return",null,null,null,{"$f":"AK13/AL13","v":0.11531900375298533},null,"Funds",{"$f":"COUNTIF(D778:L947,\"Error*\")","v":0},"Pensions & Commit'ts",{"$f":"COUNTIF(D949:N971,\"Error*\")+COUNTIF(D1028:Z1225,\"Error*\")","v":0},"PFI & Later Notes",{"$f":"COUNTIF(D1227:N1368,\"Error*\")","v":1},null,null,null,null,null,null,null,null,null,null,null,null,null,null,null,null,null,"Possible Cells",null,null,null,null,null,"Completed Cells"]
["FINANCIAL RETURN",null,null,"Error check cells",null,"HELP",null,null,null,null,null,null,null,null,null,null,null,null,null,null,null,null,null,null,null,null,null,null,null,null,"DESTINATION",null,"Green","Blue","Amber","Red","Grey","Total","Green","Blue","Amber","Red","Grey","Total"]
[null,null,null,null,null,null,null,null,null,null,null,null,null,null,null,null,null,null,null,null,null,null,null,null,null,null,null,null,null,null,null,null,{"$f":"SUM(AG14:AG1424)","v":1241},null,{"$f":"SUM(AI14:AI1424)","v":1056},{"$f":"SUM(AJ14:AJ1424)","v":296},{"$f":"SUM(AK14:AK1424)","v":338},{"$f":"SUM(AG13:AK13)","v":2931},{"$f":"SUM(AM14:AM1424)","v":23},null,{"$f":"SUM(AO14:AO1424)","v":42},{"$f":"SUM(AP14:AP1424)","v":0},{"$f":"SUM(AQ14:AQ1424)","v":104},{"$f":"SUM(AM13:AQ13)","v":169}]
["STATEMENT OF FINANCIAL ACTIVITIES"]
[]
[null,null,null,null,"Total",null,"Unrestricted\nFunds","Restricted\nFunds","Restricted \nFixed Asset \nFunds","Endowment\nFunds",null,"Lower limit","Upper limit "]
["                                                  ",null,null,null,"£000",null,"£000","£000","£000","£000",null,"£000","£000"]
["INCOMING RESOURCES"]
[null,"Incoming resources from generated funds:"]
[null,null,"Voluntary income",null,{"$f":"SUM(G20:J20)","v":0},null,null,null,null,null,null,-750000,750000,null,null,null,null,null,null,null,null,null,null,null,null,null,null,null,null,null,"Consol, SoCNE",null,4,null,null,null,null,null,{"$f":"COUNTA(G20:J20)","v":0}]
[null,null,"Transfer on conversion",null,{"$f":"SUM(G21:J21)","v":0},null,null,null,null,null,null,{"$f":"L20","v":-750000},{"$f":"M20","v":750000},null,null,null,null,null,null,null,null,null,null,null,null,null,null,null,null,null,"Consol, SoCNE",null,4,null,null,null,null,null,{"$f":"COUNTA(G21:J21)","v":0}]
[null,null,"Activities for generating funds",null,0,null,null,null,null,null,null,{"$f":"L21","v":-750000},{"$f":"M21","v":750000},null,null,null,null,null,null,null,null,null,null,null,null,null,null,null,null,null,"Consol, SoCNE",null,4,null,null,null,null,null,{"$f":"COUNTA(G22:J22)","v":0}]
[null,null,"Investment income",null,0,null,null,null,null,null,null,{"$f":"L22","v":-750000},750000,null,null,null,null,null,null,null,null,null,null,null,null,null,null,null,null,null,"Consol, SoCNE",null,4,null,null,null,null,null,{"$f":"COUNTA(G23:J23)","v":0}]
[null,"Incoming resources from charitable activities:"]
[null,null,"Funding for the academy's educational operations",null,0,null,null,null,null,null,null,{"$f":"L23","v":-750000},{"$f":"M23","v":750000},null,null,null,null,null,null,null,null,null,null,null,null,null,null,null,null,null,"Consol, SoCNE",null,4,null,null,null,null,null,{"$f":"COUNTA(G25:J25)","v":0}]
[null,null,"Provision of boarding activities",null,0,null,null,null,null,null,null,{"$f":"L25","v":-750000},{"$f":"M25","v":750000},null,null,null,null,null,null,null,null,null,null,null,null,null,null,null,null,null,"Consol, SoCNE",null,4,null,null,null,null,null,{"$f":"COUNTA(G26:J26)","v":0}]
[]
["Total incoming resources",null,null,null,{"$f":"SUM(E18:E27)","v":0},null,{"$f":"SUM(G18:G27)","v":0},{"$f":"SUM(H18:H27)","v":0},{"$f":"SUM(I18:I27)","v":0},{"$f":"SUM(J18:J27)","v":0}]
["RESOURCES EXPENDED"]
[null,"Cost of generating funds:"]
[null,null,"Costs of generating voluntary income",null,{"$f":"SUM(G31:J31)","v":0},null,null,null,null,null,null,{"$f":"L26","v":-750000},{"$f":"M26","v":750000},null,null,null,null,null,null,null,null,null,null,null,null,null,null,null,null,null,"Consol, SoCNE",null,4,null,null,null,null,null,{"$f":"COUNTA(G31:J31)","v":0}]
[null,null,"Transfer on conversion",null,0,null,null,null,null,null,null,{"$f":"L31","v":-750000},{"$f":"M31","v":750000},null,null,null,null,null,null,null,null,null,null,null,null,null,null,null,null,null,"Consol, SoCNE",null,4,null,null,null,null,null,{"$f":"COUNTA(G32:J32)","v":0}]
[null,null,"Fund raising income",null,0,null,null,null,null,null,null,{"$f":"L32","v":-750000},{"$f":"M32","v":750000},null,null,null,null,null,null,null,null,null,null,null,null,null,null,null,null,null,"Consol, SoCNE",null,4,null,null,null,null,null,{"$f":"COUNTA(G33:J33)","v":0}]
[null,"Charitable activities:"]
[null,null,"Academy's educational operations",null,{"$f":"SUM(G35:J35)","v":0},null,null,null,null,null,null,{"$f":"L33","v":-750000},{"$f":"M33","v":750000},null,null,null,null,null,null,null,null,null,null,null,null,null,null,null,null,null,"Consol, SoCNE",null,4,null,null,null,null,null,{"$f":"COUNTA(G35:J35)","v":0}]
[null,null,"Provision of boarding activities",null,0,null,null,null,null,null,null,{"$f":"L35","v":-750000},{"$f":"M35","v":750000},null,null,null,null,null,null,null,null,null,null,null,null,null,null,null,null,null,"Consol, SoCNE",null,4,null,null,null,null,null,{"$f":"COUNTA(G36:J36)","v":0}]
[null,"Governance costs",null,null,0,null,null,null,null,null,null,{"$f":"L36","v":-750000},{"$f":"M36","v":750000},null,null,null,null,null,null,null,null,null,null,null,null,null,null,null,null,null,"Consol, SoCNE",null,4,null,null,null,null,null,{"$f":"COUNTA(G37:J37)","v":0}]
[]
["Total resources expended",null,null,null,{"$f":"SUM(E31:E38)","v":0},null,{"$f":"SUM(G31:G38)","v":0},{"$f":"SUM(H31:H38)","v":0},0,0]
["Net incoming/(outgoing) resources before transfers",null,null,null,{"$f":"E28-E39","v":0},null,{"$f":"G28-G39","v":0},{"$f":"H28-H39","v":0},{"$f":"I28-I39","v":0},{"$f":"J28-J39","v":0}]
["Gross transfers between funds",null,null,{"$f":"IF(E41<>0,\"Error - should be nil\",\"\")","v":""},{"$f":"SUM(G41:J41)","v":0},null,null,null,null,null,null,{"$f":"L37","v":-750000},{"$f":"M37","v":750000},null,null,null,null,null,null,null,null,null,null,null,null,null,null,null,null,null,"Consol, SoCNE",null,4,null,null,null,null,null,{"$f":"COUNTA(G41:J41)","v":0}]
[]
["Net income/(expenditure) for the period",null,null,null,{"$f":"SUM(E40:E41)","v":0},null,{"$f":"SUM(G40:G41)","v":0},{"$f":"SUM(H40:H41)","v":0},{"$f":"SUM(I40:I41)","v":0},{"$f":"SUM(J40:J41)","v":0}]
["OTHER RECOGNISED GAINS AND LOSSES"]
[null,"Actuarial gains/(losses) on defined benefit pension schemes",null,{"$f":"IF(E45<>E987,\"Error - imbalance with note\",\"\")","v":""},{"$f":"SUM(G45:H45)","v":0},null,null,null,null,null,null,{"$f":"L41","v":-750000},{"$f":"M41","v":750000},null,null,null,null,null,null,null,null,null,null,null,null,null,null,null,null,null,"Consol, SoCNE",null,2,null,null,null,null,null,{"$f":"COUNTA(G45:H45)","v":0}]
[null,"Valuation gains/(losses) on tangible and intangible fixed assets",null,{"$f":"IF(E46<>(E488-E497+E544-E553),\"Error - not equal to tangible and intangible fixed asset notes\",\"\")","v":""},{"$f":"SUM(G46:J46)","v":0},null,null,null,null,null,null,{"$f":"L45","v":-750000},{"$f":"M45","v":750000},null,null,null,null,null,null,null,null,null,null,null,null,null,null,null,null,null,"Consol, SoCNE",null,4,null,null,null,null,null,{"$f":"COUNTA(G46:J46)","v":0}]
[null,"Valuation gains/(losses) on investment portfolio",null,{"$f":"IF(E47<>(E651+E586),\"Error - not equal to fixed and current assets investment notes\",\"\")","v":""},0,null,null,null,null,null,null,{"$f":"L46","v":-750000},750000,null,null,null,null,null,null,null,null,null,null,null,null,null,null,null,null,null,"Consol, SoCNE",null,4,null,null,null,null,null,{"$f":"COUNTA(G47:J47)","v":0}]
[null,"Other",null,null,0,null,null,null,null,null,null,-750000,750000,null,null,null,null,null,null,null,null,null,null,null,null,null,null,null,null,null,null,null,4,null,null,null,null,null,{"$f":"COUNTA(G48:J48)","v":0}]
[]
["NET MOVEMENT IN FUNDS",null,null,null,{"$f":"SUM(E43:E49)","v":0},null,{"$f":"SUM(G43:G49)","v":0},{"$f":"SUM(H43:H49)","v":0},{"$f":"SUM(I43:I49)","v":0},{"$f":"SUM(J43:J49)","v":0}]
["RECONCILIATION OF FUNDS"]
[null,"Funds brought forward",null,null,{"$f":"SUM(G52:J52)","v":0},null,{"$f":"E821","v":0},{"$f":"E799","v":0},{"$f":"E816","v":0},{"$f":"E819","v":0},null,{"$f":"L48","v":-750000},{"$f":"M48","v":750000},null,null,null,null,null,null,null,null,null,null,null,null,null,null,null,null,null,"Consol, SoCNE",null,4,null,null,null,null,null,{"$f":"COUNTA(G52:J52)","v":4}]
[null,"Funds obtained on conversion",null,null,0,null,null,null,null,null,null,{"$f":"L52","v":-750000},{"$f":"M52","v":750000},null,null,null,null,null,null,null,null,null,null,null,null,null,null,null,null,null,"Consol, SoCNE",null,4,null,null,null,null,null,{"$f":"COUNTA(G53:J53)","v":0}]
[null,"Net movement in funds",null,null,0,null,{"$f":"G50","v":0},{"$f":"H50","v":0},{"$f":"I50","v":0},{"$f":"J50","v":0}]
[]
[null,"Funds carried forward",null,{"$f":"IF(E56<>G103,\"Error - with BS\",\"\")","v":""},{"$f":"SUM(E52:E55)","v":0},null,{"$f":"SUM(G52:G55)","v":0},{"$f":"SUM(H52:H55)","v":0},{"$f":"SUM(I52:I55)","v":0},{"$f":"SUM(J52:J55)","v":0}]
[null,null,null,null,null,null,{"$f":"IF(G56<>G101,\"Error - with BS\",\"\")","v":""},{"$f":"IF(H56<>SUM(G94:G95),\"Error - with BS\",\"\")","v":""},{"$f":"IF(I56<>G93,\"Error - with BS\",\"\")","v":""},{"$f":"IF(J56<>G91,\"Error - with BS\",\"\")","v":""}]
[]
[]
["BALANCE SHEET"]
[]
[null,null,null,null,{"$f":"YEAR(C5)","v":2014},null,{"$f":"E62","v":2014},null,"Lower limit","Upper limit "]
[null,null,null,null,"£000",null,"£000",null,"£000","£000"]
["FIXED ASSETS"]
[null,"Tangible assets",null,null,null,null,null,null,0,750000,null,null,null,null,null,null,null,null,null,null,null,null,null,null,null,null,null,null,null,null,"Consol, EFA/DfE SoFP",null,1,null,null,null,null,null,{"$f":"COUNTA(G65:G65)","v":0}]
[null,"Intangible assets",null,null,null,null,null,null,{"$f":"I65","v":0},{"$f":"J65","v":750000},null,null,null,null,null,null,null,null,null,null,null,null,null,null,null,null,null,null,null,null,"Consol, EFA/DfE SoFP",null,1,null,null,null,null,null,{"$f":"COUNTA(G66:G66)","v":0}]
[null,"Investments",null,null,null,null,null,null,{"$f":"I66","v":0},{"$f":"J66","v":750000},null,null,null,null,null,null,null,null,null,null,null,null,null,null,null,null,null,null,null,null,"Consol, EFA/DfE SoFP",null,1,null,null,null,null,null,{"$f":"COUNTA(G67:G67)","v":0}]
[]
[null,null,null,null,null,null,{"$f":"SUM(G65:G68)","v":0}]
["CURRENT ASSETS"]
[null,"Stock",null,null,null,null,null,null,0,{"$f":"J67","v":750000},null,null,null,null,null,null,null,null,null,null,null,null,null,null,null,null,null,null,null,null,"Consol, EFA/DfE SoFP",null,1,null,null,null,null,null,{"$f":"COUNTA(E71:E71)","v":0}]
[null,"Debtors - amounts due within one year",null,null,null,null,null,null,{"$f":"I71","v":0},{"$f":"J71","v":750000},null,null,null,null,null,null,null,null,null,null,null,null,null,null,null,null,null,null,null,null,"Consol, EFA/DfE SoFP",null,1,null,null,null,null,null,{"$f":"COUNTA(E72:E72)","v":0}]
[null,"Debtors  - amounts due after more than one year",null,null,null,null,null,null,0,750000,null,null,null,null,null,null,null,null,null,null,null,null,null,null,null,null,null,null,null,null,"Consol, EFA/DfE SoFP",null,1,null,null,null,null,null,{"$f":"COUNTA(E73:E73)","v":0}]
[null,"Investments",null,null,null,null,null,null,0,750000,null,null,null,null,null,null,null,null,null,null,null,null,null,null,null,null,null,null,null,null,"Consol, EFA/DfE SoFP",null,1,null,null,null,null,null,{"$f":"COUNTA(E74:E74)","v":0}]
[null,"Cash at bank and in hand",null,null,null,null,null,null,0,750000,null,null,null,null,null,null,null,null,null,null,null,null,null,null,null,null,null,null,null,null,"Consol, EFA/DfE SoFP",null,1,null,null,null,null,null,{"$f":"COUNTA(E75:E75)","v":0}]
[]
[null,null,null,null,{"$f":"SUM(E70:E76)","v":0}]
["CREDITORS: AMOUNTS DUE WITHIN ONE YEAR",null,null,null,null,null,null,null,{"$f":"-J65","v":-750000},0,null,null,null,null,null,null,null,null,null,null,null,null,null,null,null,null,null,null,null,null,"Consol, EFA/DfE SoFP",null,1,null,null,null,null,null,{"$f":"COUNTA(E78:E78)","v":0}]
[]
["NET CURRENT ASSETS/(LIABILITIES)",null,null,null,null,null,{"$f":"SUM(E77:E79)","v":0}]
[]
["TOTAL ASSETS LESS CURRENT LIABILTIIES",null,null,null,null,null,{"$f":"SUM(G69:G81)","v":0}]
["CREDITORS: AMOUNTS DUE AFTER MORE THAN ONE YEAR",null,null,null,null,null,null,null,{"$f":"I78","v":-750000},{"$f":"J78","v":0},null,null,null,null,null,null,null,null,null,null,null,null,null,null,null,null,null,null,null,null,"Consol, EFA/DfE SoFP",null,1,null,null,null,null,null,{"$f":"COUNTA(G83:G83)","v":0}]
["PROVISIONS FOR LIABILITIES AND CHARGES",null,null,null,null,null,null,null,{"$f":"I83","v":-750000},{"$f":"J83","v":0},null,null,null,null,null,null,null,null,null,null,null,null,null,null,null,null,null,null,null,null,"Consol, EFA/DfE SoFP",null,1,null,null,null,null,null,{"$f":"COUNTA(G84:G84)","v":0}]
[]
["NET ASSETS EXCLUDING PENSION LIABILTIY",null,null,null,null,null,{"$f":"SUM(G82:G85)","v":0}]
[null,"Pension scheme liability",null,null,null,null,null,null,{"$f":"I84","v":-750000},{"$f":"J75","v":750000},null,null,null,null,null,null,null,null,null,null,null,null,null,null,null,null,null,null,null,null,"Consol, EFA/DfE SoFP",null,1,null,null,null,null,null,{"$f":"COUNTA(G87:G87)","v":0}]
[]
["NET ASSETS INCLUDING PENSION SCHEME LIABILITY",null,null,null,null,null,{"$f":"SUM(G86:G88)","v":0}]
["FUNDS OF THE ACADEMY:"]
["Endowment Funds",null,null,null,null,null,null,null,{"$f":"I87","v":-750000},{"$f":"J87","v":750000}]
["Restricted Funds"]
[null,"Fixed Asset Fund(s)",null,null,null,null,null,null,{"$f":"I91","v":-750000},{"$f":"J91","v":750000},null,null,null,null,null,null,null,null,null,null,null,null,null,null,null,null,null,null,null,null,"Consol, EFA/DfE SoFP",null,1,null,null,null,null,null,{"$f":"COUNTA(G93:G93)","v":0}]
[null,"General Fund(s)",null,null,null,null,null,null,{"$f":"I93","v":-750000},{"$f":"J93","v":750000},null,null,null,null,null,null,null,null,null,null,null,null,null,null,null,null,null,null,null,null,"Consol, EFA/DfE SoFP",null,1,null,null,null,null,null,{"$f":"COUNTA(G94:G94)","v":0}]
[null,"Pension Reserves",null,{"$f":"IF(G95<>G87, \"Error - not equal to pension scheme liability\",\"\")","v":""},null,null,null,null,{"$f":"I94","v":-750000},{"$f":"J94","v":750000},null,null,null,null,null,null,null,null,null,null,null,null,null,null,null,null,null,null,null,null,"Consol, EFA/DfE SoFP",null,1,null,null,null,null,null,{"$f":"COUNTA(G95:G95)","v":0}]
[]
["Total Restricted Funds",null,null,null,null,null,{"$f":"SUM(G93:G96)","v":0}]
["Unrestricted Funds"]
[null,"General Fund(s)",null,null,null,null,null,null,{"$f":"I95","v":-750000},{"$f":"J95","v":750000},null,null,null,null,null,null,null,null,null,null,null,null,null,null,null,null,null,null,null,null,"Consol, EFA/DfE SoFP",null,1,null,null,null,null,null,{"$f":"COUNTA(G99:G99)","v":0}]
[]
["Total Unrestricted Funds",null,null,null,null,null,{"$f":"SUM(G99:G100)","v":0}]
[]
["TOTAL FUNDS",null,null,{"$f":"IF(G89<>G103,\"Error - with net assets\",\"\")","v":""},null,null,{"$f":"G91+G97+G101","v":0}]
[]
[]
[]
["NOTES TO THE FINANCIAL STATEMENTS"]
[]
[]
["GENERAL ANNUAL GRANT",null,null,null,{"$f":"E62","v":2014}]
[null,null,null,null,"£000"]
[null,"Results and Carry Forward for the Year"]
[null,null,"GAG brought forward from previous year",null,null,null,null,null,null,null,null,null,null,null,null,null,null,null,null,null,null,null,null,null,null,null,null,null,null,null,null,null,1,null,null,null,null,null,{"$f":"COUNTA(E113:E113)","v":0}]
[null,null,"GAG allocation for current year",null,null,null,null,null,null,null,null,null,null,null,null,null,null,null,null,null,null,null,null,null,null,null,null,null,null,null,null,null,1,null,null,null,null,null,{"$f":"COUNTA(E114:E114)","v":0}]
[null,null,"GAG transferred from other funds"]
[]
[null,null,"Total GAG available to spend",null,{"$f":"SUM(E113:E116)","v":0}]
[null,null,"Recurrent expenditure from GAG",null,null,null,null,null,null,null,null,null,null,null,null,null,null,null,null,null,null,null,null,null,null,null,null,null,null,null,null,null,1,null,null,null,null,null,{"$f":"COUNTA(E118:E118)","v":0}]
[null,null,"Fixed assets purchased from GAG",null,null,null,null,null,null,null,null,null,null,null,null,null,null,null,null,null,null,null,null,null,null,null,null,null,null,null,null,null,1,null,null,null,null,null,{"$f":"COUNTA(E119:E119)","v":0}]
[]
[null,null,"GAG carried forward to next year",null,{"$f":"SUM(E117:E120)","v":0}]
[null,null,"Maximum permitted GAG carry forward at end of current year",null,{"$f":"-ROUND(E114*0.12,0)","v":0}]
[null,null,"(12% of allocation for current year)"]
[null,null,"GAG to surrender to DfE",null,{"$f":"E121+E122","v":0}]
[null,null,"(12% run breached if result is positive)",null,{"$f":"IF(E124<=0,\"no breach\",\"breach\")","v":"no breach"}]
[null,"Use of GAG brought forward from previous year for recurrent purposes"]
[null,null,"Recurrent expenditure from GAG in current year",null,{"$f":"-E118","v":0}]
[null,null,"GAG allocation for current year",null,{"$f":"-E114","v":0}]
[null,null,"GAG allocation for previous year x 2%",null,null,null,null,null,null,null,null,null,null,null,null,null,null,null,null,null,null,null,null,null,null,null,null,null,null,null,null,null,1,null,null,null,null,null,{"$f":"COUNTA(E129:E129)","v":0}]
[]
[null,null,"GAG b/fwd from previous year in excess of 2%, used on recurrent expenditure in current year",null,{"$f":"SUM(E127:E130)","v":0}]
[null,null,"(2% run breached if result is positive)",null,{"$f":"IF(E131<=0,\"no breach\", \"breach\")","v":"no breach"}]
[]
["VOLUNTARY INCOME",null,null,null,"Total",null,"Unrestricted Funds","Restricted Funds (including Fixed Assets)","Endowment\nFunds",null,"Lower limit","Upper limit "]
["SoFA",null,null,null,"£000",null,"£000","£000","£000",null,"£000","£000"]
[null,"Donations - capital amounts",null,{"$f":"D486","v":""},{"$f":"SUM(G136:I136)","v":0},null,null,null,null,null,{"$f":"$L$20","v":-750000},{"$f":"$M$20","v":750000},null,null,null,null,null,null,null,null,null,null,null,null,null,null,null,null,null,null,"Consol, EFA/DfE SoCNE",null,3,null,null,null,null,null,{"$f":"COUNTA(G136:I136)","v":0}]
[null,"Private sponsorship",null,null,{"$f":"SUM(G137:I137)","v":0},null,null,null,null,null,{"$f":"K136","v":-750000},{"$f":"L136","v":750000},null,null,null,null,null,null,null,null,null,null,null,null,null,null,null,null,null,null,"Consol, EFA/DfE SoCNE",null,3,null,null,null,null,null,{"$f":"COUNTA(G137:I137)","v":0}]
[null,"Other donations",null,null,0,null,null,null,null,null,{"$f":"K137","v":-750000},{"$f":"L137","v":750000},null,null,null,null,null,null,null,null,null,null,null,null,null,null,null,null,null,null,"Consol, EFA/DfE SoCNE",null,3,null,null,null,null,null,{"$f":"COUNTA(G138:I138)","v":0}]
[]
[null,null,null,{"$f":"IF(E140<>SUM(E136:E139),\"Error - column does not cast\",\"\")","v":""},{"$f":"E20","v":0},null,{"$f":"G20","v":0},{"$f":"SUM(H20:I20)","v":0},{"$f":"J20","v":0},null,null,null,null,null,null,null,null,null,null,null,null,null,null,null,null,null,null,null,null,null,null,null,null,null,null,null,4,null,null,null,null,null,{"$f":"COUNTIF(G140:I140,\"<>0\")+COUNTIF(E140:E140,\"<>0\")","v":0}]
[null,null,null,{"$f":"IF(E140<>E20,\"Error - Total does not agree - cell E20\",\"\")","v":""},null,null,{"$f":"IF(G140<>SUM(G136:G139),\"Error - column does not cast\",\"\")","v":""},{"$f":"IF(H140<>SUM(H136:H139),\"Error - column does not cast\",\"\")","v":""},""]
[null,null,null,null,null,null,{"$f":"IF(G141<>\"\",\"Error - Total does not agree - G20\",\"\")","v":""},{"$f":"IF(H140<>(H20+I20),\"Error - Total does not agree - H20 & I20\",\"\")","v":""},{"$f":"IF(I141<>\"\",\"Error - Total does not agree - J20\",\"\")","v":""}]
[]
["ACTIVITIES FOR GENERATING FUNDS",null,null,null,"Total",null,"Unrestricted Funds","Restricted Funds (including Fixed Assets)","Endowment\nFunds",null,"Lower limit","Upper limit "]
["SoFA",null,null,null,"£000",null,"£000","£000","£000",null,"£000","£000"]
[null,"Hire of facilities",null,null,{"$f":"SUM(G146:I146)","v":0},null,null,null,null,null,{"$f":"$L$20","v":-750000},{"$f":"$M$20","v":750000},null,null,null,null,null,null,null,null,null,null,null,null,null,null,null,null,null,null,"Consol, EFA/DfE SoCNE",null,3,null,null,null,null,null,{"$f":"COUNTA(G146:I146)","v":0}]
[null,"Catering income",null,null,{"$f":"SUM(G147:I147)","v":0},null,null,null,null,null,{"$f":"K146","v":-750000},750000,null,null,null,null,null,null,null,null,null,null,null,null,null,null,null,null,null,null,"Consol, EFA/DfE SoCNE",null,3,null,null,null,null,null,{"$f":"COUNTA(G147:I147)","v":0}]
[null,"Rental income",null,null,0,null,null,null,null,null,-750000,750000,null,null,null,null,null,null,null,null,null,null,null,null,null,null,null,null,null,null,"Consol, EFA/DfE SoCNE",null,3,null,null,null,null,null,{"$f":"COUNTA(G148:I148)","v":0}]
[null,"Receipts from supply teacher insurance claims",null,null,0,null,null,null,null,null,{"$f":"K148","v":-750000},750000,null,null,null,null,null,null,null,null,null,null,null,null,null,null,null,null,null,null,null,null,null,null,3]
[null,"Other",null,null,0,null,null,null,null,null,{"$f":"K149","v":-750000},750000,null,null,null,null,null,null,null,null,null,null,null,null,null,null,null,null,null,null,"Consol, EFA/DfE SoCNE",null,null,null,3,null,null,null,{"$f":"COUNTA(G150:I150)","v":0}]
[]
[null,null,null,{"$f":"IF(E152<>SUM(E146:E151),\"Error - column does not cast\",\"\")","v":""},{"$f":"E22","v":0},null,{"$f":"G22","v":0},{"$f":"SUM(H22:I22)","v":0},{"$f":"J22","v":0},null,null,null,null,null,null,null,null,null,null,null,null,null,null,null,null,null,null,null,null,null,null,null,null,null,null,null,4,null,null,null,null,null,{"$f":"COUNTIF(G152:I152,\"<>0\")+COUNTIF(E152:E152,\"<>0\")","v":0}]
[null,null,null,{"$f":"IF(D152<>\"\",\"Total does not agree - cell E22\",\"\")","v":""},null,null,{"$f":"IF(G152<>SUM(G146:G151),\"Error - column does not cast\",\"\")","v":""},{"$f":"IF(H152<>SUM(H146:H151),\"Error - column does not cast\",\"\")","v":""},""]
[null,null,null,null,null,null,{"$f":"IF(G153<>\"\",\"Error -Total does not agree - G22\",\"\")","v":""},{"$f":"IF(H153<>\"\",\"Error - Total does not agree - H22 & I22\",\"\")","v":""},{"$f":"IF(I153<>\"\",\"Error - Total does not agree - J22\",\"\")","v":""}]
[]
["INVESTMENT INCOME",null,null,null,"Total",null,"Unrestricted Funds","Restricted Funds (including Fixed Assets)","Endowment\nFunds",null,"Lower limit","Upper limit "]
["SoFA",null,null,null,"£000",null,"£000","£000","£000",null,"£000","£000"]
[null,"Short-term deposits",null,null,{"$f":"SUM(G158:I158)","v":0},null,null,null,null,null,{"$f":"$L$20","v":-750000},{"$f":"$M$20","v":750000},null,null,null,null,null,null,null,null,null,null,null,null,null,null,null,null,null,null,"Consol, EFA/DfE SoCNE",null,3,null,null,null,null,null,{"$f":"COUNTA(G158:I158)","v":0}]
[null,"Interest",null,null,{"$f":"SUM(G159:I159)","v":0},null,null,null,null,null,{"$f":"K158","v":-750000},750000,null,null,null,null,null,null,null,null,null,null,null,null,null,null,null,null,null,null,"Consol, EFA/DfE SoCNE",null,3,null,null,null,null,null,{"$f":"COUNTA(G159:I159)","v":0}]
[null,"Dividend income",null,null,0,null,null,null,null,null,-750000,750000,null,null,null,null,null,null,null,null,null,null,null,null,null,null,null,null,null,null,null,null,3]
[null,"Other",null,null,0,null,null,null,null,null,-750000,750000,null,null,null,null,null,null,null,null,null,null,null,null,null,null,null,null,null,null,"Consol, EFA/DfE SoCNE",null,3,null,null,null,null,null,{"$f":"COUNTA(G161:I161)","v":0}]
[]
[null,null,null,{"$f":"IF(E163<>SUM(E158:E162),\"Error - column does not cast\",\"\")","v":""},{"$f":"E23","v":0},null,{"$f":"G23","v":0},{"$f":"SUM(H23:I23)","v":0},{"$f":"J23","v":0},null,null,null,null,null,null,null,null,null,null,null,null,null,null,null,null,null,null,null,null,null,null,null,null,null,null,null,4,null,null,null,null,null,{"$f":"COUNTIF(G163:I163,\"<>0\")+COUNTIF(E163:E163,\"<>0\")","v":0}]
[null,null,null,{"$f":"IF(D163<>\"\",\"Error - Total does not agree - cell E23\",\"\")","v":""},null,null,{"$f":"IF(G163<>SUM(G158:G162),\"Error - column does not cast\",\"\")","v":""},{"$f":"IF(H163<>SUM(H158:H162),\"Error - column does not cast\",\"\")","v":""},""]
[null,null,null,null,null,null,{"$f":"IF(G164<>\"\",\"Error - Total does not agree - G23\",\"\")","v":""},{"$f":"IF(H164<>\"\",\"Error - Total does not agree - H23 & I23\",\"\")","v":""},{"$f":"IF(I164<>\"\",\"Error - Total does not agree - J23\",\"\")","v":""}]
[]
["FUNDING FOR ACADEMY'S EDUCATIONAL OPERATIONS",null,null,"Notes","Total",null,"Unrestricted Funds","Restricted Funds (including Fixed Assets)",null,"Lower limit","Upper limit "]
["SoFA",null,null,null,"£000",null,"£000","£000",null,"£000","£000"]
[null,"EFA Grants"]
[null,null,"Revenue Grants"]
[null,null,"Rates Relief",null,{"$f":"SUM(G171:H171)","v":0},null,null,null,null,{"$f":"$L$20","v":-750000},{"$f":"$M$20","v":750000},null,null,null,null,null,null,null,null,null,null,null,null,null,null,null,null,null,null,null,"Consol, EFA/DfE SoCNE",null,null,null,2,null,null,null,null,null,{"$f":"COUNTA(G171:H171)","v":0}]
[null,null,"Pre-16 School Budget Share",null,{"$f":"SUM(G172:H172)","v":0},null,null,null,null,{"$f":"J171","v":-750000},750000,null,null,null,null,null,null,null,null,null,null,null,null,null,null,null,null,null,null,null,"Consol, EFA/DfE SoCNE",null,null,null,2,null,null,null,null,null,{"$f":"COUNTA(G172:H172)","v":0}]
[null,null,"16-19 School Budget Share",null,0,null,null,null,null,-750000,750000,null,null,null,null,null,null,null,null,null,null,null,null,null,null,null,null,null,null,null,"Consol, EFA/DfE SoCNE",null,null,null,2,null,null,null,null,null,0]
[null,null,"Academy Bursary Funding",null,0,null,null,null,null,-750000,750000,null,null,null,null,null,null,null,null,null,null,null,null,null,null,null,null,null,null,null,"Consol, EFA/DfE SoCNE",null,null,null,2,null,null,null,null,null,0]
[null,null,"Local Authority Central Spend Equivalent Grant",null,0,null,null,null,null,{"$f":"J174","v":-750000},{"$f":"K174","v":750000},null,null,null,null,null,null,null,null,null,null,null,null,null,null,null,null,null,null,null,"Consol, EFA/DfE SoCNE",null,null,null,2,null,null,null,null,null,0]
[null,null,"Teacher Threshold Grant",null,0,null,null,null,null,-750000,750000,null,null,null,null,null,null,null,null,null,null,null,null,null,null,null,null,null,null,null,"Consol, EFA/DfE SoCNE",null,null,null,2,null,null,null,null,null,0]
[null,null,"Pupil Premium",null,0,null,null,null,null,-750000,750000,null,null,null,null,null,null,null,null,null,null,null,null,null,null,null,null,null,null,null,null,null,null,null,2,null,null,null,null,null,0]
[null,null,"Start-up Grant A",null,0,null,null,null,null,-750000,750000,null,null,null,null,null,null,null,null,null,null,null,null,null,null,null,null,null,null,null,"Consol, EFA/DfE SoCNE",null,null,null,2,null,null,null,null,null,0]
[null,null,"Start-up Grant B",null,0,null,null,null,null,-750000,750000,null,null,null,null,null,null,null,null,null,null,null,null,null,null,null,null,null,null,null,"Consol, EFA/DfE SoCNE",null,null,null,2,null,null,null,null,null,0]
[null,null,"Insurance",null,0,null,null,null,null,-750000,750000,null,null,null,null,null,null,null,null,null,null,null,null,null,null,null,null,null,null,null,"Consol, EFA/DfE SoCNE",null,null,null,2,null,null,null,null,null,0]
[null,null,"Mainstream Grants",null,0,null,null,null,null,-750000,750000,null,null,null,null,null,null,null,null,null,null,null,null,null,null,null,null,null,null,null,"Consol, EFA/DfE SoCNE",null,null,null,2,null,null,null,null,null,0]
[null,null,"Other",null,0,null,null,null,null,-750000,750000,null,null,null,null,null,null,null,null,null,null,null,null,null,null,null,null,null,null,null,"Consol, EFA/DfE SoCNE",null,null,null,2,null,null,null,null,null,{"$f":"COUNTA(G182:H182)","v":0}]
[]
[null,null,"Capital Grants"]
[null,null,"16-19 Demographic Growth Capital Fund",null,0,null,null,null,null,{"$f":"J182","v":-750000},{"$f":"K182","v":750000},null,null,null,null,null,null,null,null,null,null,null,null,null,null,null,null,null,null,null,null,null,null,null,2,null,null,null,null,null,{"$f":"COUNTA(G185:H185)","v":0}]
[null,null,"Devolved Formula Capital for Young People Aged Under 16 yrs",null,0,null,null,null,null,{"$f":"J185","v":-750000},{"$f":"K185","v":750000},null,null,null,null,null,null,null,null,null,null,null,null,null,null,null,null,null,null,null,null,null,null,null,2,null,null,null,null,null,0]
[null,null,"Centrally Managed Programme - Framework Academies",null,0,null,null,null,null,{"$f":"J186","v":-750000},{"$f":"K186","v":750000},null,null,null,null,null,null,null,null,null,null,null,null,null,null,null,null,null,null,null,null,null,null,null,2,null,null,null,null,null,0]
[null,null,"Centrally Managed Programme - BSF Legacy Academies",null,0,null,null,null,null,-750000,750000,null,null,null,null,null,null,null,null,null,null,null,null,null,null,null,null,null,null,null,null,null,null,null,2,null,null,null,null,null,0]
[null,null,"Centrally Managed Programme - Free Schools",null,0,null,null,null,null,-750000,750000,null,null,null,null,null,null,null,null,null,null,null,null,null,null,null,null,null,null,null,null,null,null,null,2,null,null,null,null,null,0]
[null,null,"Devolved Programmes - Academies Capital Maintenance",null,0,null,null,null,null,-750000,750000,null,null,null,null,null,null,null,null,null,null,null,null,null,null,null,null,null,null,null,null,null,null,null,2,null,null,null,null,null,0]
[null,null,"Continuing Commitments - Building Schools for the Future",null,0,null,null,null,null,-750000,750000,null,null,null,null,null,null,null,null,null,null,null,null,null,null,null,null,null,null,null,null,null,null,null,2,null,null,null,null,null,0]
[null,null,"Other",null,0,null,null,null,null,-750000,750000,null,null,null,null,null,null,null,null,null,null,null,null,null,null,null,null,null,null,null,null,null,null,null,2,null,null,null,null,null,0]
[]
[null,null,null,null,{"$f":"SUM(E171:E193)","v":0},null,{"$f":"SUM(G171:G193)","v":0},0]
[null,"DfE Family Revenue Grants:"]
[null,null,"Department for Education (DfE)",null,{"$f":"SUM(G196:H196)","v":0},null,null,null,null,{"$f":"J192","v":-750000},{"$f":"K192","v":750000},null,null,null,null,null,null,null,null,null,null,null,null,null,null,null,null,null,null,null,"Consol, EFA/DfE SoCNE",null,null,null,2,null,null,null,null,null,{"$f":"COUNTA(G196:H196)","v":0}]
[null,null,"Teaching Agency (TA)",null,0,null,null,null,null,{"$f":"+(J196)","v":-750000},{"$f":"+(K196)","v":750000},null,null,null,null,null,null,null,null,null,null,null,null,null,null,null,null,null,null,null,"Consol, EFA/DfE SoCNE",null,null,null,2,null,null,null,null,null,0]
[null,null,"National College for Teaching and Leadership (NCTL)",null,0,null,null,null,null,{"$f":"+(J197)","v":-750000},{"$f":"+(K197)","v":750000},null,null,null,null,null,null,null,null,null,null,null,null,null,null,null,null,null,null,null,"Consol, EFA/DfE SoCNE",null,null,null,2,null,null,null,null,null,0]
[null,null,"Standards and Testing Agency (STA)",null,0,null,null,null,null,-750000,750000,null,null,null,null,null,null,null,null,null,null,null,null,null,null,null,null,null,null,null,"Consol, EFA/DfE SoCNE",null,null,null,2,null,null,null,null,null,0]
[null,null,"Children and Family Court Advisory and Support Service (CAFCASS)",null,0,null,null,null,null,-750000,750000,null,null,null,null,null,null,null,null,null,null,null,null,null,null,null,null,null,null,null,"Consol, EFA/DfE SoCNE",null,null,null,2,null,null,null,null,null,0]
[null,null,"Office of the Children's Commissioner (OCC)",null,0,null,null,null,null,-750000,750000,null,null,null,null,null,null,null,null,null,null,null,null,null,null,null,null,null,null,null,"Consol, EFA/DfE SoCNE",null,null,null,2,null,null,null,null,null,0]
[]
[null,null,null,null,{"$f":"SUM(E196:E202)","v":0},null,{"$f":"SUM(G196:G202)","v":0},{"$f":"SUM(H196:H202)","v":0}]
[null,"DfE Family Capital Grants"]
[null,null,"DfE",null,{"$f":"SUM(G205:H205)","v":0},null,null,null,null,{"$f":"J201","v":-750000},{"$f":"K201","v":750000},null,null,null,null,null,null,null,null,null,null,null,null,null,null,null,null,null,null,null,"Consol, EFA/DfE SoCNE",null,null,null,2,null,null,null,null,null,{"$f":"COUNTA(G205:H205)","v":0}]
[null,null,"TA",null,0,null,null,null,null,{"$f":"+(J205)","v":-750000},{"$f":"+(K205)","v":750000},null,null,null,null,null,null,null,null,null,null,null,null,null,null,null,null,null,null,null,"Consol, EFA/DfE SoCNE",null,null,null,2,null,null,null,null,null,0]
[null,null,"NCTL",null,0,null,null,null,null,{"$f":"(J206)","v":-750000},{"$f":"(K206)","v":750000},null,null,null,null,null,null,null,null,null,null,null,null,null,null,null,null,null,null,null,"Consol, EFA/DfE SoCNE",null,null,null,2,null,null,null,null,null,0]
[null,null,"STA",null,0,null,null,null,null,-750000,750000,null,null,null,null,null,null,null,null,null,null,null,null,null,null,null,null,null,null,null,"Consol, EFA/DfE SoCNE",null,null,null,2,null,null,null,null,null,0]
[null,null,"CAFCASS",null,0,null,null,null,null,-750000,750000,null,null,null,null,null,null,null,null,null,null,null,null,null,null,null,null,null,null,null,"Consol, EFA/DfE SoCNE",null,null,null,2,null,null,null,null,null,0]
[null,null,"OCC",null,0,null,null,null,null,-750000,750000,null,null,null,null,null,null,null,null,null,null,null,null,null,null,null,null,null,null,null,"Consol, EFA/DfE SoCNE",null,null,null,2,null,null,null,null,null,0]
[]
[null,null,null,null,{"$f":"SUM(E205:E211)","v":0},null,{"$f":"SUM(G205:G211)","v":0},{"$f":"SUM(H205:H211)","v":0}]
[null,"Local Authority Grants",null,null,null,null,null,null,null,null,null,null,null,null,null,null,null,null,null,null,null,null,null,null,null,null,null,null,null,null,null,null,null,null,null,null,null,null,null,null,{"$f":"COUNTA(G213:H213)","v":0}]
[null,null,"SEN ",null,{"$f":"SUM(G214:H214)","v":0},null,null,null,null,{"$f":"(J210)","v":-750000},{"$f":"(K210)","v":750000},null,null,null,null,null,null,null,null,null,null,null,null,null,null,null,null,null,null,null,null,null,null,null,2,null,null,null,null,null,0]
[null,null,"Other Revenue",null,0,null,null,null,null,{"$f":"(J214)","v":-750000},750000,null,null,null,null,null,null,null,null,null,null,null,null,null,null,null,null,null,null,null,null,null,null,null,2,null,null,null,null,null,0]
[null,null,"Capital",null,0,null,null,null,null,-750000,750000,null,null,null,null,null,null,null,null,null,null,null,null,null,null,null,null,null,null,null,null,null,null,null,2,null,null,null,null,null,0]
[]
[null,null,null,null,{"$f":"SUM(E214:E217)","v":0},null,{"$f":"SUM(G211:G217)","v":0},{"$f":"SUM(H211:H217)","v":0}]
[]
[null,"Other Government Grants"]
[null,null,"Revenue",null,{"$f":"SUM(G221:H221)","v":0},null,null,null,null,{"$f":"J210","v":-750000},{"$f":"K210","v":750000},null,null,null,null,null,null,null,null,null,null,null,null,null,null,null,null,null,null,null,"Consol, EFA/DfE SoCNE",null,2,null,null,null,null,null,{"$f":"COUNTA(G221:H221)","v":0}]
[null,null,"Capital",null,0,null,null,null,null,{"$f":"J221","v":-750000},{"$f":"K221","v":750000},null,null,null,null,null,null,null,null,null,null,null,null,null,null,null,null,null,null,null,"Consol, EFA/DfE SoCNE",null,2,null,null,null,null,null,{"$f":"COUNTA(G222:H222)","v":0}]
[]
[null,null,null,null,{"$f":"SUM(E221:E223)","v":0},null,{"$f":"SUM(G221:G223)","v":0},{"$f":"SUM(H221:H223)","v":0}]
[null,"Other Income",null,null,null,null,null,null,null,null,null,null,null,null,null,null,null,null,null,null,null,null,null,null,null,null,null,null,null,null,"Consol, EFA/DfE SoCNE"]
[null,null,"Government sources (non-grant)",null,{"$f":"SUM(G226:H226)","v":0},null,null,null,null,{"$f":"J222","v":-750000},{"$f":"K222","v":750000},null,null,null,null,null,null,null,null,null,null,null,null,null,null,null,null,null,null,null,null,null,2,null,null,null,null,null,{"$f":"COUNTA(G226:H226)","v":0}]
[null,null,"Academies",null,0,null,null,null,null,{"$f":"J226","v":-750000},{"$f":"K226","v":750000},null,null,null,null,null,null,null,null,null,null,null,null,null,null,null,null,null,null,null,null,null,2,null,null,null,null,null,0]
[null,null,"Non-Government - Revenue",null,0,null,null,null,null,-750000,{"$f":"K227","v":750000},null,null,null,null,null,null,null,null,null,null,null,null,null,null,null,null,null,null,null,null,null,2,null,null,null,null,null,0]
[null,null,"Non-Government - Capital",null,0,null,null,null,null,{"$f":"J227","v":-750000},{"$f":"K227","v":750000},null,null,null,null,null,null,null,null,null,null,null,null,null,null,null,null,null,null,null,null,null,2,null,null,null,null,null,0]
[]
[null,null,null,null,{"$f":"SUM(E226:E230)","v":0},null,{"$f":"SUM(G226:G230)","v":0},0]
[]
[null,null,null,{"$f":"IF(E233<>(E194+E203+E212+E224+E231+E218),\"Error - column does not cast\",\"\")","v":""},{"$f":"E25","v":0},null,{"$f":"G25","v":0},{"$f":"SUM(H25:I25)","v":0},null,null,null,null,null,null,null,null,null,null,null,null,null,null,null,null,null,null,null,null,null,null,null,null,null,null,null,null,3,null,null,null,null,null,{"$f":"COUNTIF(G233:H233,\"<>0\")+COUNTIF(E233:E233,\"<>0\")","v":0}]
[null,null,null,{"$f":"IF(D233<>\"\",\"Error - Total does not agree - cell E25\",\"\")","v":""},null,null,{"$f":"IF(G233<>(G194+G203+G212+G224+G231+G218),\"Error - column does not cast\",\"\")","v":""},{"$f":"IF(H233<>(H194+H203+H212+H224+H231+H218),\"Error - column does not cast\",\"\")","v":""}]
[null,null,null,null,null,null,{"$f":"IF(G234<>\"\",\"Error - Total does not agree - G25\",\"\")","v":""},{"$f":"IF(H234<>\"\",\"Error - Total does not agree - H25 & I25\",\"\")","v":""}]
[]
["RESOURCES EXPENDED",null,null,"Notes","Total",null,"Staff Costs","Premises","Other Costs",null,"Lower limit","Upper limit "]
["SoFA",null,null,null,"£000",null,"£000","£000","£000",null,"£000","£000"]
[null,"Costs of generating voluntary income",null,{"$f":"IF(E239<>SUM(G239:I239),\"Error - row does not cross cast\",\"\")","v":""},{"$f":"E275","v":0},null,{"$f":"+(E268+E269)","v":0},null,null,null,{"$f":"$L$20","v":-750000},{"$f":"$M$20","v":750000},null,null,null,null,null,null,null,null,null,null,null,null,null,null,null,null,null,null,"Consol, EFA/DfE SoCNE",null,2,null,null,null,2,null,{"$f":"COUNTA(H239:I239)","v":0},null,null,null,{"$f":"COUNTA(G239)","v":1}]
[null,"Costs of activities for generating funds",null,{"$f":"IF(E240<>SUM(G240:I240),\"Error - row does not cross cast\",\"\")","v":""},{"$f":"E33","v":0},null,null,null,null,null,{"$f":"K239","v":-750000},750000,null,null,null,null,null,null,null,null,null,null,null,null,null,null,null,null,null,null,"Consol, EFA/DfE SoCNE",null,3,null,null,null,1,null,{"$f":"COUNTA(G240:I240)","v":0},null,null,null,{"$f":"COUNTIF(E240:E240,\"<>0\")","v":0}]
[null,"Academy's educational operations:"]
[null,null,"Direct costs",{"$f":"IF(E242<>SUM(G242:I242),\"Error - row does not cross cast\",\"\")","v":""},{"$f":"E294","v":0},null,{"$f":"+(E281)","v":0},null,null,null,{"$f":"K240","v":-750000},{"$f":"L240","v":750000},null,null,null,null,null,null,null,null,null,null,null,null,null,null,null,null,null,null,"Consol, EFA/DfE SoCNE",null,2,null,null,null,2,null,{"$f":"COUNTA(H242:I242)","v":0},null,null,null,{"$f":"COUNTA(G242)","v":1}]
[null,null,"Allocated support costs","",{"$f":"E325","v":0},null,{"$f":"+(E296)","v":0},null,null,null,{"$f":"K242","v":-750000},{"$f":"L242","v":750000},null,null,null,null,null,null,null,null,null,null,null,null,null,null,null,null,null,null,"Consol, EFA/DfE SoCNE",null,2,null,null,null,2,null,{"$f":"COUNTA(H243:I243)","v":0},null,null,null,1]
[]
[null,null,null,{"$f":"IF(E245<>SUM(G245:I245),\"Error - row does not cross cast\",\"\")","v":""},{"$f":"SUM(E239:E244)","v":0},null,{"$f":"SUM(G239:G244)","v":0},{"$f":"SUM(H239:H244)","v":0},{"$f":"SUM(I239:I244)","v":0}]
[null,"Governance costs including allocated support costs",null,"",{"$f":"E348","v":0},null,null,null,null,null,{"$f":"K243","v":-750000},{"$f":"L243","v":750000},null,null,null,null,null,null,null,null,null,null,null,null,null,null,null,null,null,null,"Consol, EFA/DfE SoCNE",null,3,null,null,null,1,null,{"$f":"COUNTA(G246:I246)","v":0},null,null,null,{"$f":"COUNTIF(E246:E246,\"<>0\")","v":0}]
[null,"Provision of boarding activities",null,"",{"$f":"-E443-E463","v":0},null,{"$f":"-E437-E445","v":0},null,null,null,{"$f":"K246","v":-750000},{"$f":"L246","v":750000},null,null,null,null,null,null,null,null,null,null,null,null,null,null,null,null,null,null,null,null,null,null,2,null,2,null,null,null,{"$f":"COUNTA(H247:I247)","v":0},null,{"$f":"COUNTIF(E247:E247,\"<>0\")","v":0}]
[]
[null,null,null,null,{"$f":"SUM(E245:E248)","v":0},null,{"$f":"SUM(G245:G248)","v":0},{"$f":"SUM(H245:H248)","v":0},{"$f":"SUM(I245:I248)","v":0}]
[]
[null,"(Incoming)/outgoing resources for the year include:"]
[null,null,"Operating leases:"]
[null,null,"Land and buildings",null,{"$f":"E306-E448","v":0},null,null,null,null,null,null,null,null,null,null,null,null,null,null,null,null,null,null,null,null,null,null,null,null,null,"Consol, EFA/DfE SoCNE",null,null,null,null,null,1,null,null,null,null,null,{"$f":"COUNTIF(E253:E253,\"<>0\")","v":0}]
[null,null,"Other",null,{"$f":"E305-E447","v":0},null,null,null,null,null,null,null,null,null,null,null,null,null,null,null,null,null,null,null,null,null,null,null,null,null,"Consol, EFA/DfE SoCNE",null,null,null,null,null,1,null,null,null,null,null,{"$f":"COUNTIF(E254:E254,\"<>0\")","v":0}]
[null,null,"Depreciation",{"$f":"IF(E255<>-E495,\"Error - imbalance with FA note\",\"\")","v":""},{"$f":"E270+E282+E298+E333-E454","v":0},null,null,null,null,null,null,null,null,null,null,null,null,null,null,null,null,null,null,null,null,null,null,null,null,null,"Consol, EFA/DfE SoCNE",null,null,null,null,null,1,null,null,null,null,null,{"$f":"COUNTIF(E255:E255,\"<>0\")","v":0}]
[null,null,"Amortisation",{"$f":"IF(E256<>-E551,\"Error - imbalance with FA note\",\"\")","v":""},{"$f":"E271+E283+E299+E334-E455","v":0},null,null,null,null,null,null,null,null,null,null,null,null,null,null,null,null,null,null,null,null,null,null,null,null,null,"Consol, EFA/DfE SoCNE",null,null,null,null,null,1,null,null,null,null,null,{"$f":"COUNTIF(E256:E256,\"<>0\")","v":0}]
[null,null,"Impairment",{"$f":"IF(E257<>-(SUM(E504:E505)+SUM(E560:E561)),\"Error - imbalance with FA note\",\"\")","v":""},{"$f":"E272+E284+E300+E335-E456","v":0},null,null,null,null,null,null,null,null,null,null,null,null,null,null,null,null,null,null,null,null,null,null,null,null,null,"Consol, EFA/DfE SoCNE",null,null,null,null,null,1,null,null,null,null,null,0]
[null,null,"Fees payable to auditors:"]
[null,null,"Audit",null,{"$f":"E337","v":0},null,null,null,null,null,null,null,null,null,null,null,null,null,null,null,null,null,null,null,null,null,null,null,null,null,"Consol, EFA/DfE SoCNE",null,null,null,null,null,1,null,null,null,null,null,{"$f":"COUNTIF(E259:E259,\"<>0\")","v":0}]
[null,null,"Other services",null,{"$f":"E338","v":0},null,null,null,null,null,null,null,null,null,null,null,null,null,null,null,null,null,null,null,null,null,null,null,null,null,"Consol, EFA/DfE SoCNE",null,null,null,null,null,1,null,null,null,null,null,0]
[null,null,"(Gain)/loss on disposal of tangible fixed assets",null,{"$f":"E320+E339-E458","v":0},null,null,null,null,null,null,null,null,null,null,null,null,null,null,null,null,null,null,null,null,null,null,null,null,null,"Consol, EFA/DfE SoCNE",null,null,null,null,null,1,null,null,null,null,null,0]
[null,null,"(Gain)/loss on disposal of intangible fixed assets",null,{"$f":"E321+E340-E459","v":0},null,null,null,null,null,null,null,null,null,null,null,null,null,null,null,null,null,null,null,null,null,null,null,null,null,"Consol, EFA/DfE SoCNE",null,null,null,null,null,1,null,null,null,null,null,0]
[null,null,"(Gain)/loss on disposal of investments",null,{"$f":"E322+E341-E460","v":0},null,null,null,null,null,null,null,null,null,null,null,null,null,null,null,null,null,null,null,null,null,null,null,null,null,"Consol, EFA/DfE SoCNE",null,null,null,null,null,1,null,null,null,null,null,0]
[]
[]
["COSTS OF GENERATING VOLUNTARY INCOME",null,null,null,"Total",null,"Lower limit","Upper limit "]
["SoFA",null,null,null,"£000",null,"£000","£000"]
[null,"Direct staff costs",null,null,null,null,{"$f":"$L$20","v":-750000},{"$f":"$M$20","v":750000},null,null,null,null,null,null,null,null,null,null,null,null,null,null,null,null,null,null,null,null,null,null,null,null,1,null,null,null,null,null,{"$f":"COUNTA(E268:E268)","v":0}]
[null,"Indirect staff costs",null,null,null,null,{"$f":"G268","v":-750000},{"$f":"H268","v":750000},null,null,null,null,null,null,null,null,null,null,null,null,null,null,null,null,null,null,null,null,null,null,null,null,1,null,null,null,null,null,0]
[null,"Depreciation",null,{"$f":"D255","v":""},null,null,{"$f":"G269","v":-750000},{"$f":"H269","v":750000},null,null,null,null,null,null,null,null,null,null,null,null,null,null,null,null,null,null,null,null,null,null,null,null,1,null,null,null,null,null,0]
[null,"Amortisation",null,{"$f":"D256","v":""},null,null,-750000,750000,null,null,null,null,null,null,null,null,null,null,null,null,null,null,null,null,null,null,null,null,null,null,null,null,1,null,null,null,null,null,0]
[null,"Impairment",null,{"$f":"D257","v":""},null,null,-750000,750000,null,null,null,null,null,null,null,null,null,null,null,null,null,null,null,null,null,null,null,null,null,null,null,null,1,null,null,null,null,null,0]
[null,"Other",null,null,null,null,-750000,750000,null,null,null,null,null,null,null,null,null,null,null,null,null,null,null,null,null,null,null,null,null,null,null,null,1,null,null,null,null,null,0]
[]
[null,null,null,{"$f":"IF(E275<>SUM(E268:E274),\"Error - column does not cast\",\"\")","v":""},{"$f":"E31","v":0},null,null,null,null,null,null,null,null,null,null,null,null,null,null,null,null,null,null,null,null,null,null,null,null,null,null,null,null,null,null,null,1,null,null,null,null,null,{"$f":"COUNTIF(E275:E275,\"<>0\")","v":0}]
[null,null,null,{"$f":"IF(D275<>\"\",\"Error - Total does not agree - cell E31\",\"\")","v":""}]
[]
["CHARITABLE ACTIVITIES - ACADEMY'S EDUCATIONAL OPERATIONS",null,null,null,"Total",null,"Lower limit","Upper limit "]
["SoFA",null,null,null,"£000",null,"£000","£000"]
[null,"Direct costs"]
[null,null,"Teaching and educational support staff costs",null,null,null,{"$f":"$L$20","v":-750000},{"$f":"$M$20","v":750000},null,null,null,null,null,null,null,null,null,null,null,null,null,null,null,null,null,null,null,null,null,null,"Consol, EFA/DfE SoCNE",null,1,null,null,null,null,null,{"$f":"COUNTA(E281:E281)","v":0}]
[null,null,"Depreciation",{"$f":"D255","v":""},null,null,{"$f":"G281","v":-750000},{"$f":"H281","v":750000},null,null,null,null,null,null,null,null,null,null,null,null,null,null,null,null,null,null,null,null,null,null,"Consol, EFA/DfE SoCNE",null,1,null,null,null,null,null,0]
[null,null,"Amortisation",{"$f":"D256","v":""},null,null,-750000,750000,null,null,null,null,null,null,null,null,null,null,null,null,null,null,null,null,null,null,null,null,null,null,"Consol, EFA/DfE SoCNE",null,1,null,null,null,null,null,0]
[null,null,"Impairment",{"$f":"D257","v":""},null,null,{"$f":"G283","v":-750000},{"$f":"H283","v":750000},null,null,null,null,null,null,null,null,null,null,null,null,null,null,null,null,null,null,null,null,null,null,"Consol, EFA/DfE SoCNE",null,1,null,null,null,null,null,0]
[null,null,"Educational supplies",null,null,null,-750000,750000,null,null,null,null,null,null,null,null,null,null,null,null,null,null,null,null,null,null,null,null,null,null,"Consol, EFA/DfE SoCNE",null,1,null,null,null,null,null,0]
[null,null,"Examination fees",null,null,null,-750000,750000,null,null,null,null,null,null,null,null,null,null,null,null,null,null,null,null,null,null,null,null,null,null,"Consol, EFA/DfE SoCNE",null,1,null,null,null,null,null,0]
[null,null,"Staff development",null,null,null,-750000,750000,null,null,null,null,null,null,null,null,null,null,null,null,null,null,null,null,null,null,null,null,null,null,"Consol, EFA/DfE SoCNE",null,1,null,null,null,null,null,0]
[null,null,"Staff related insurance",null,null,null,-750000,750000,null,null,null,null,null,null,null,null,null,null,null,null,null,null,null,null,null,null,null,null,null,null,null,null,null,null,1]
[null,null,"Technology costs",null,null,null,{"$f":"G287","v":-750000},{"$f":"H287","v":750000},null,null,null,null,null,null,null,null,null,null,null,null,null,null,null,null,null,null,null,null,null,null,"Consol, EFA/DfE SoCNE",null,1,null,null,null,null,null,0]
[null,null,"Educational consultancy",null,null,null,-750000,750000,null,null,null,null,null,null,null,null,null,null,null,null,null,null,null,null,null,null,null,null,null,null,"Consol, EFA/DfE SoCNE",null,1,null,null,null,null,null,0]
[null,null,"Travel and subsistence","Notes",null,null,-750000,750000,null,null,null,null,null,null,null,null,null,null,null,null,null,null,null,null,null,null,null,null,null,null,"Consol, EFA/DfE SoCNE",null,null,null,1,null,null,null,null,null,{"$f":"COUNTA(E291:E291)","v":0}]
[null,null,"Other direct costs",null,null,null,-750000,750000,null,null,null,null,null,null,null,null,null,null,null,null,null,null,null,null,null,null,null,null,null,null,"Consol, EFA/DfE SoCNE",null,null,null,1,null,null,null,null,null,{"$f":"COUNTA(E292:E292)","v":0}]
[]
[null,null,null,null,{"$f":"SUM(E281:E293)","v":0}]
[null,"Allocated support costs"]
[null,null,"Support staff costs",null,null,null,{"$f":"G292","v":-750000},{"$f":"H292","v":750000},null,null,null,null,null,null,null,null,null,null,null,null,null,null,null,null,null,null,null,null,null,null,"Consol, EFA/DfE SoCNE",null,1,null,null,null,null,null,{"$f":"COUNTA(E296:E296)","v":0}]
[null,null,"Supply teacher insurance",null,null,null,{"$f":"G296","v":-750000},750000,null,null,null,null,null,null,null,null,null,null,null,null,null,null,null,null,null,null,null,null,null,null,null,null,null,null,1]
[null,null,"Depreciation",{"$f":"D255","v":""},null,null,{"$f":"G296","v":-750000},{"$f":"H296","v":750000},null,null,null,null,null,null,null,null,null,null,null,null,null,null,null,null,null,null,null,null,null,null,"Consol, EFA/DfE SoCNE",null,1,null,null,null,null,null,0]
[null,null,"Amortisation",{"$f":"D256","v":""},null,null,{"$f":"G298","v":-750000},{"$f":"H298","v":750000},null,null,null,null,null,null,null,null,null,null,null,null,null,null,null,null,null,null,null,null,null,null,"Consol, EFA/DfE SoCNE",null,1,null,null,null,null,null,0]
[null,null,"Impairment",{"$f":"D257","v":""},null,null,-750000,750000,null,null,null,null,null,null,null,null,null,null,null,null,null,null,null,null,null,null,null,null,null,null,"Consol, EFA/DfE SoCNE",null,1,null,null,null,null,null,0]
[null,null,"Recruitment and support",null,null,null,-750000,750000,null,null,null,null,null,null,null,null,null,null,null,null,null,null,null,null,null,null,null,null,null,null,"Consol, EFA/DfE SoCNE",null,1,null,null,null,null,null,0]
[null,null,"Maintenance of premises",null,null,null,-750000,750000,null,null,null,null,null,null,null,null,null,null,null,null,null,null,null,null,null,null,null,null,null,null,"Consol, EFA/DfE SoCNE",null,null,null,1,null,null,null,null,null,{"$f":"COUNTA(E302:E302)","v":0}]
[null,null,"Maintenance of equipment",null,null,null,-750000,750000,null,null,null,null,null,null,null,null,null,null,null,null,null,null,null,null,null,null,null,null,null,null,"Consol, EFA/DfE SoCNE",null,null,null,1,null,null,null,null,null,{"$f":"COUNTA(E303:E303)","v":0}]
[null,null,"Cleaning",null,null,null,-750000,750000,null,null,null,null,null,null,null,null,null,null,null,null,null,null,null,null,null,null,null,null,null,null,"Consol, EFA/DfE SoCNE",null,1,null,null,null,null,null,0]
[null,null,"Operating lease rentals - other",null,null,null,-750000,750000,null,null,null,null,null,null,null,null,null,null,null,null,null,null,null,null,null,null,null,null,null,null,null,null,null,null,1,null,null,null,null,null,{"$f":"COUNTA(E305:E305)","v":0}]
[null,null,"Operating lease rentals - land & buildings",null,null,null,-750000,750000,null,null,null,null,null,null,null,null,null,null,null,null,null,null,null,null,null,null,null,null,null,null,"Consol, EFA/DfE SoCNE",null,null,null,1,null,null,null,null,null,{"$f":"COUNTA(E306:E306)","v":0}]
[null,null,"Rates",null,null,null,-750000,750000,null,null,null,null,null,null,null,null,null,null,null,null,null,null,null,null,null,null,null,null,null,null,"Consol, EFA/DfE SoCNE",null,null,null,1,null,null,null,null,null,{"$f":"COUNTA(E307:E307)","v":0}]
[null,null,"Water rates",null,null,null,-750000,750000,null,null,null,null,null,null,null,null,null,null,null,null,null,null,null,null,null,null,null,null,null,null,null,null,null,null,1,null,null,null,null,null,{"$f":"COUNTA(E308:E308)","v":0}]
[null,null,"Energy",null,null,null,-750000,750000,null,null,null,null,null,null,null,null,null,null,null,null,null,null,null,null,null,null,null,null,null,null,"Consol, EFA/DfE SoCNE",null,1,null,null,null,null,null,{"$f":"COUNTA(E309:E309)","v":0}]
[null,null,"Insurance",null,null,null,-750000,750000,null,null,null,null,null,null,null,null,null,null,null,null,null,null,null,null,null,null,null,null,null,null,"Consol, EFA/DfE SoCNE",null,null,null,1,null,null,null,0]
[null,null,"Security",null,null,null,-750000,750000,null,null,null,null,null,null,null,null,null,null,null,null,null,null,null,null,null,null,null,null,null,null,"Consol, EFA/DfE SoCNE",null,1,null,null,null,null,null,0]
[null,null,"Transport",null,null,null,-750000,750000,null,null,null,null,null,null,null,null,null,null,null,null,null,null,null,null,null,null,null,null,null,null,"Consol, EFA/DfE SoCNE",null,1,null,null,null,null,null,0]
[null,null,"Catering",null,null,null,-750000,750000,null,null,null,null,null,null,null,null,null,null,null,null,null,null,null,null,null,null,null,null,null,null,"Consol, EFA/DfE SoCNE",null,1,null,null,null,null,null,0]
[null,null,"Technology costs",null,null,null,-750000,750000,null,null,null,null,null,null,null,null,null,null,null,null,null,null,null,null,null,null,null,null,null,null,"Consol, EFA/DfE SoCNE",null,1,null,null,null,null,null,0]
[null,null,"Other occupancy costs",null,null,null,-750000,750000,null,null,null,null,null,null,null,null,null,null,null,null,null,null,null,null,null,null,null,null,null,null,"Consol, EFA/DfE SoCNE",null,1,null,null,null,null,null,0]
[null,null,"PFI Charges",null,null,null,-750000,750000,null,null,null,null,null,null,null,null,null,null,null,null,null,null,null,null,null,null,null,null,null,null,null,null,1]
[null,null,"Finance lease interest",null,null,null,{"$f":"G315","v":-750000},{"$f":"H315","v":750000},null,null,null,null,null,null,null,null,null,null,null,null,null,null,null,null,null,null,null,null,null,null,"Consol, EFA/DfE SoCNE",null,1,null,null,null,null,null,0]
[null,null,"Bank interest and charges",null,null,null,-750000,750000,null,null,null,null,null,null,null,null,null,null,null,null,null,null,null,null,null,null,null,null,null,null,"Consol, EFA/DfE SoCNE",null,1,null,null,null,null,null,0]
[null,null,"Travel and subsistence",null,null,null,-750000,750000,null,null,null,null,null,null,null,null,null,null,null,null,null,null,null,null,null,null,null,null,null,null,"Consol, EFA/DfE SoCNE",null,null,null,1,null,null,null,null,null,{"$f":"COUNTA(E319:E319)","v":0}]
[null,null,"(Gain)/loss on disposal of tangible fixed assets",null,null,null,-750000,750000,null,null,null,null,null,null,null,null,null,null,null,null,null,null,null,null,null,null,null,null,null,null,null,null,null,null,1,null,null,null,null,null,{"$f":"COUNTA(E320:E320)","v":0}]
[null,null,"(Gain)/loss on disposal of intangible fixed assets",null,null,null,-750000,750000,null,null,null,null,null,null,null,null,null,null,null,null,null,null,null,null,null,null,null,null,null,null,null,null,null,null,1,null,null,null,null,null,{"$f":"COUNTA(E321:E321)","v":0}]
[null,null,"(Gain)/loss on disposal of investments",null,null,null,-750000,750000,null,null,null,null,null,null,null,null,null,null,null,null,null,null,null,null,null,null,null,null,null,null,null,null,null,null,1,null,null,null,null,null,{"$f":"COUNTA(E322:E322)","v":0}]
[null,null,"Other support costs",null,null,null,-750000,750000,null,null,null,null,null,null,null,null,null,null,null,null,null,null,null,null,null,null,null,null,null,null,"Consol, EFA/DfE SoCNE",null,null,null,1,null,null,null,null,null,{"$f":"COUNTA(E323:E323)","v":0}]
[]
[null,null,null,null,{"$f":"SUM(E296:E324)","v":0}]
[]
[null,null,null,{"$f":"IF(E327<>(E294+E325),\"Error - column does not cast\",\"\")","v":""},{"$f":"E35","v":0},null,null,null,null,null,null,null,null,null,null,null,null,null,null,null,null,null,null,null,null,null,null,null,null,null,null,null,null,null,null,null,1,null,null,null,null,null,{"$f":"COUNTIF(E327:E327,\"<>0\")","v":0}]
[null,null,null,{"$f":"IF(D327<>\"\",\"Error - Total does not agree with cell E35\",\"\")","v":""}]
[]
["GOVERNANCE COSTS",null,null,null,"Total",null,"Lower limit","Upper limit "]
["SoFA",null,null,null,"£000",null,"£000","£000"]
[null,"Legal and professional fees",null,null,null,null,{"$f":"$L$20","v":-750000},{"$f":"$M$20","v":750000},null,null,null,null,null,null,null,null,null,null,null,null,null,null,null,null,null,null,null,null,null,null,"Consol, EFA/DfE SoCNE",null,1,null,null,null,null,null,{"$f":"COUNTA(E332:E332)","v":0}]
[null,"Depreciation",null,{"$f":"D255","v":""},null,null,{"$f":"G332","v":-750000},{"$f":"H332","v":750000},null,null,null,null,null,null,null,null,null,null,null,null,null,null,null,null,null,null,null,null,null,null,"Consol, EFA/DfE SoCNE",null,1,null,null,null,null,null,{"$f":"COUNTA(E333:E333)","v":0}]
[null,"Amortisation",null,{"$f":"D256","v":""},null,null,{"$f":"G333","v":-750000},{"$f":"H333","v":750000},null,null,null,null,null,null,null,null,null,null,null,null,null,null,null,null,null,null,null,null,null,null,"Consol, EFA/DfE SoCNE",null,1,null,null,null,null,null,{"$f":"COUNTA(E334:E334)","v":0}]
[null,"Impairment",null,{"$f":"D257","v":""},null,null,-750000,750000,null,null,null,null,null,null,null,null,null,null,null,null,null,null,null,null,null,null,null,null,null,null,"Consol, EFA/DfE SoCNE",null,1,null,null,null,null,null,{"$f":"COUNTA(E335:E335)","v":0}]
[null,"Fees paid to auditors"]
[null,null,"Audit",null,null,null,{"$f":"G335","v":-750000},{"$f":"H335","v":750000},null,null,null,null,null,null,null,null,null,null,null,null,null,null,null,null,null,null,null,null,null,null,"Consol, EFA/DfE SoCNE",null,1,null,null,null,null,null,{"$f":"COUNTA(E337:E337)","v":0}]
[null,null,"Other",null,null,null,{"$f":"G337","v":-750000},{"$f":"H337","v":750000},null,null,null,null,null,null,null,null,null,null,null,null,null,null,null,null,null,null,null,null,null,null,"Consol, EFA/DfE SoCNE",null,1,null,null,null,null,null,{"$f":"COUNTA(E338:E338)","v":0}]
[null,"(Gain)/loss on disposal of tangible fixed assets",null,null,null,null,-750000,750000,null,null,null,null,null,null,null,null,null,null,null,null,null,null,null,null,null,null,null,null,null,null,null,null,null,null,1,null,null,null,null,null,{"$f":"COUNTA(E339:E339)","v":0}]
[null,"(Gain)/loss on disposal of intangible fixed assets",null,null,null,null,-750000,750000,null,null,null,null,null,null,null,null,null,null,null,null,null,null,null,null,null,null,null,null,null,null,null,null,null,null,1,null,null,null,null,null,{"$f":"COUNTA(E340:E340)","v":0}]
[null,"(Gain)/loss on disposal of investments",null,null,null,null,-750000,750000,null,null,null,null,null,null,null,null,null,null,null,null,null,null,null,null,null,null,null,null,null,null,null,null,null,null,1,null,null,null,null,null,{"$f":"COUNTA(E341:E341)","v":0}]
[null,"Support costs",null,null,null,null,-750000,750000,null,null,null,null,null,null,null,null,null,null,null,null,null,null,null,null,null,null,null,null,null,null,"Consol, EFA/DfE SoCNE",null,null,null,1,null,null,null,{"$f":"COUNTA(E342:E342)","v":0}]
[null,"Governors' reimbursed expenses"]
[null,null,"Fees","Notes",null,null,{"$f":"G342","v":-750000},{"$f":"H342","v":750000},null,null,null,null,null,null,null,null,null,null,null,null,null,null,null,null,null,null,null,null,null,null,"Consol, EFA/DfE SoCNE",null,null,null,1,null,null,null,null,null,{"$f":"COUNTA(E344:E344)","v":0}]
[null,null,"Travel and subsistence",null,null,null,{"$f":"G344","v":-750000},{"$f":"H344","v":750000},null,null,null,null,null,null,null,null,null,null,null,null,null,null,null,null,null,null,null,null,null,null,"Consol, EFA/DfE SoCNE",null,null,null,1,null,null,null,null,null,{"$f":"COUNTA(E345:E345)","v":0}]
[null,null,"Other",null,null,null,-750000,750000,null,null,null,null,null,null,null,null,null,null,null,null,null,null,null,null,null,null,null,null,null,null,"Consol, EFA/DfE SoCNE",null,null,null,1,null,null,null,null,null,{"$f":"COUNTA(E346:E346)","v":0}]
[]
[null,null,null,{"$f":"IF(E348<>SUM(E332:E347),\"Error - column does not cast\",\"\")","v":""},{"$f":"E37","v":0},null,null,null,null,null,null,null,null,null,null,null,null,null,null,null,null,null,null,null,null,null,null,null,null,null,null,null,null,null,null,null,1,null,null,null,null,null,{"$f":"COUNTIF(E348:E348,\"<>0\")","v":0}]
[null,null,null,{"$f":"IF(D348<>\"\",\"Error - Total does not agree with cell E37\",\"\")","v":""}]
[]
["STAFF COSTS",null,null,null,"Total",null,"Permanently Employed","Temporary/ Interim Staff",null,null,null,"Lower limit","Upper limit "]
["SoFA",null,null,null,"£000",null,"£000","£000",null,null,null,"£000","£000"]
[null,"Staff costs during the period:"]
[null,null,"Wages and salaries",{"$f":"IF(E354<>SUM(G354:H354),\"Error - row does not cross cast\",\"\")","v":""},{"$f":"SUM(G354:H354)","v":0},null,null,null,null,null,null,{"$f":"$L$20","v":-750000},{"$f":"$M$20","v":750000},null,null,null,null,null,null,null,null,null,null,null,null,null,null,null,null,null,"Consol, EFA/DfE SoCNE, Staff Costs Note",null,1,null,2,null,null,null,{"$f":"COUNTA(E354:E354)","v":1},null,{"$f":"COUNTA(G354:H354)","v":0}]
[null,null,"Social security costs","",{"$f":"SUM(G355:H355)","v":0},null,null,null,"Notes",null,null,{"$f":"L354","v":-750000},{"$f":"M354","v":750000},null,null,null,null,null,null,null,null,null,null,null,null,null,null,null,null,null,"Consol, EFA/DfE SoCNE, Staff Costs Note",null,1,null,2,null,null,null,{"$f":"COUNTA(E355:E355)","v":1},null,{"$f":"COUNTA(G355:H355)","v":0}]
[null,null,"Pension costs","",{"$f":"SUM(G356:H356)","v":0},null,null,null,null,null,null,-750000,750000,null,null,null,null,null,null,null,null,null,null,null,null,null,null,null,null,null,"Consol, EFA/DfE SoCNE, Staff Costs Note",null,1,null,2,null,null,null,{"$f":"COUNTA(E356:E356)","v":1},null,{"$f":"COUNTA(G356:H356)","v":0}]
[]
[null,null,null,null,{"$f":"SUM(E354:E357)","v":0},null,{"$f":"SUM(G354:G357)","v":0},{"$f":"SUM(H354:H357)","v":0}]
[null,null,"Agency costs - teaching staff",{"$f":"IF(E359<>SUM(G359:H359),\"Error - row does not cross cast\",\"\")","v":""},{"$f":"SUM(G359:H359)","v":0},null,null,null,null,null,null,{"$f":"L356","v":-750000},{"$f":"M356","v":750000},null,null,null,null,null,null,null,null,null,null,null,null,null,null,null,null,null,"Consol, EFA/DfE SoCNE, Staff Costs Note",null,1,null,1,null,null,null,{"$f":"COUNTA(E359:E359)","v":1},null,{"$f":"COUNTA(G359:H359)","v":0}]
[null,null,"Agency costs - other staff ","",{"$f":"SUM(G360:H360)","v":0},null,null,null,null,null,null,{"$f":"L359","v":-750000},{"$f":"M359","v":750000},null,null,null,null,null,null,null,null,null,null,null,null,null,null,null,null,null,null,null,1,null,1,null,null,null,{"$f":"COUNTA(E360:E360)","v":1},null,{"$f":"COUNTA(G360:H360)","v":0}]
[null,null,"Compensation payments","",{"$f":"SUM(G361:H361)","v":0},null,null,null,null,null,null,-750000,750000,null,null,null,null,null,null,null,null,null,null,null,null,null,null,null,null,null,"Consol, EFA/DfE SoCNE, Staff Costs Note",null,1,null,2,null,null,null,{"$f":"COUNTA(E361:E361)","v":1},null,{"$f":"COUNTA(G361:H361)","v":0}]
[]
[null,null,null,null,{"$f":"SUM(E358:E362)","v":0},null,{"$f":"SUM(G358:G362)","v":0},{"$f":"SUM(H358:H362)","v":0}]
[null,"Less: recoveries of staff costs for employees seconded out of the organisation",null,{"$f":"IF(E364<>SUM(G364:H364),\"Error - row does not cross cast\",\"\")","v":""},{"$f":"SUM(G364:H364)","v":0},null,null,null,null,null,null,{"$f":"L361","v":-750000},0,null,null,null,null,null,null,null,null,null,null,null,null,null,null,null,null,null,"Consol, EFA/DfE SoCNE, Staff Costs Note",null,1,null,2,null,null,null,{"$f":"COUNTA(E364:E364)","v":1},null,{"$f":"COUNTA(G364:H364)","v":0}]
[]
[null,null,null,{"$f":"IF(E366<>(E363+E364),\"Error - column does not cast\",\"\")","v":""},{"$f":"G249","v":0},null,{"$f":"SUM(G363:G365)","v":0},0,null,null,null,null,null,null,null,null,null,null,null,null,null,null,null,null,null,null,null,null,null,null,null,null,null,null,null,null,1,null,null,null,null,null,{"$f":"COUNTIF(E366:E366,\"<>0\")","v":0}]
[null,null,null,{"$f":"IF(D366<>\"\",\"Error - Total does not agree - cell G249\",\"\")","v":""}]
[]
[null,"Average staff numbers (full time equivalent):",null,null,"Total",null,"Permanently Employed","Temporary/ Interim Staff"]
[null,null,null,null,"Number",null,"Number","Number"]
[null,null,"Teachers",{"$f":"IF(E371<>SUM(G371:H371),\"Error - row does not cross cast\",\"\")","v":""},null,null,null,null,null,null,null,0,10000,null,null,null,null,null,null,null,null,null,null,null,null,null,null,null,null,null,null,null,1,null,2,null,null,null,{"$f":"COUNTA(E371:E371)","v":0},null,{"$f":"COUNTA(G371:H371)","v":0}]
[null,null,"Administration & support","",null,null,null,null,null,null,null,{"$f":"L371","v":0},{"$f":"M371","v":10000},null,null,null,null,null,null,null,null,null,null,null,null,null,null,null,null,null,null,null,1,null,2,null,null,null,{"$f":"COUNTA(E372:E372)","v":0},null,{"$f":"COUNTA(G372:H372)","v":0}]
[null,null,"Management","",null,null,null,null,null,null,null,{"$f":"L372","v":0},{"$f":"M372","v":10000},null,null,null,null,null,null,null,null,null,null,null,null,null,null,null,null,null,null,null,1,null,2,null,null,null,{"$f":"COUNTA(E373:E373)","v":0},null,{"$f":"COUNTA(G373:H373)","v":0}]
[]
[null,null,null,null,{"$f":"SUM(E371:E374)","v":0},null,{"$f":"SUM(G371:G374)","v":0},{"$f":"SUM(H371:H374)","v":0}]
[]
[null,"Employee's emoluments:",null,"Notes",null,null,null,null,"Illustrative examples of actual emolument bands"]
[null,null,null,null,{"$f":"E62","v":2014},null,null,null,"for long or short reporting periods"]
[null,null,"Annualised emolument bands",null,"Number",null,null,"4 months","6 months","18 months"]
[null,null,"£60,001 - £70,000",null,null,null,null,"£20,000 - £23,333","£30,000 - £35,000","£90,000 - £105,000",null,{"$f":"L371","v":0},1000,null,null,null,null,null,null,null,null,null,null,null,null,null,null,null,null,null,"Consol, EFA/DfE Staff Costs Note",null,1,null,null,null,null,null,{"$f":"COUNTA(E380:E380)","v":0}]
[null,null,"£70,001 - £80,000",null,null,null,null,"£23,334 - £26,667","£35,001 - £40,000","£105,001 - £120,000",null,{"$f":"L380","v":0},{"$f":"M380","v":1000},null,null,null,null,null,null,null,null,null,null,null,null,null,null,null,null,null,"Consol, EFA/DfE Staff Costs Note",null,1,null,null,null,null,null,0]
[null,null,"£80,001 - £90,000",null,null,null,null,"£26,668 - £30,000","£40,001 - £45,000","£120,001 - £135,000",null,{"$f":"L381","v":0},{"$f":"M381","v":1000},null,null,null,null,null,null,null,null,null,null,null,null,null,null,null,null,null,"Consol, EFA/DfE Staff Costs Note",null,1,null,null,null,null,null,0]
[null,null,"£90,001 - £100,000",null,null,null,null,"£30,001 - £33,333","£45,001 - £50,000","£135,001 - £150,000",null,0,1000,null,null,null,null,null,null,null,null,null,null,null,null,null,null,null,null,null,"Consol, EFA/DfE Staff Costs Note",null,1,null,null,null,null,null,0]
[null,null,"£100,001 - £110,000",null,null,null,null,"£33,334 - £36,667","£50,001 - £55,000","£150,001 - £165,000",null,0,1000,null,null,null,null,null,null,null,null,null,null,null,null,null,null,null,null,null,"Consol, EFA/DfE Staff Costs Note",null,1,null,null,null,null,null,0]
[null,null,"£110,001 - £120,000",null,null,null,null,"£36,668 - £40,000","£55,001 - £60,000","£165,001 - £180,000",null,0,1000,null,null,null,null,null,null,null,null,null,null,null,null,null,null,null,null,null,"Consol, EFA/DfE Staff Costs Note",null,1,null,null,null,null,null,0]
[null,null,"£120,001 - £130,000",null,null,null,null,"£40,001 - £43,333","£60,001 - £65,000","£180,001 - £195,000",null,0,1000,null,null,null,null,null,null,null,null,null,null,null,null,null,null,null,null,null,"Consol, EFA/DfE Staff Costs Note",null,1,null,null,null,null,null,0]
[null,null,"£130,001 - £140,000",null,null,null,null,"£43,334 - £46,667","£65,001 - £70,000","£195,001 - £210,000",null,0,1000,null,null,null,null,null,null,null,null,null,null,null,null,null,null,null,null,null,"Consol, EFA/DfE Staff Costs Note",null,1,null,null,null,null,null,0]
[null,null,"£140,001 - £150,000",null,null,null,null,"£46,668 - £50,000","£70,001 - £75,000","£210,001 - £225,000",null,0,1000,null,null,null,null,null,null,null,null,null,null,null,null,null,null,null,null,null,"Consol, EFA/DfE Staff Costs Note",null,1,null,null,null,null,null,0]
[null,null,"£150,001 - £160,000",null,null,null,null,"£50,001 - £53,133","£75,001 - £80,000","£225,001 - £240,000",null,0,1000,null,null,null,null,null,null,null,null,null,null,null,null,null,null,null,null,null,"Consol, EFA/DfE Staff Costs Note",null,1,null,null,null,null,null,0]
[null,null,"£160,001 - £170,000",null,null,null,null,"£53,134 - £56,667","£80,001 - £85,000","£240,001 - £255,000",null,0,1000,null,null,null,null,null,null,null,null,null,null,null,null,null,null,null,null,null,"Consol, EFA/DfE Staff Costs Note",null,1,null,null,null,null,null,0]
[null,null,"£170,001 - £180,000",null,null,null,null,"£56,668 - £60,000","£85,001 - £90,000","£255,001 - £270,000",null,0,1000,null,null,null,null,null,null,null,null,null,null,null,null,null,null,null,null,null,"Consol, EFA/DfE Staff Costs Note",null,1,null,null,null,null,null,0]
[null,null,"£180,001 - £190,000",null,null,null,null,"£60,001 - £63,133","£90,001 - £95,000","£270,001 - £285,000",null,0,1000,null,null,null,null,null,null,null,null,null,null,null,null,null,null,null,null,null,"Consol, EFA/DfE Staff Costs Note",null,1,null,null,null,null,null,0]
[null,null,"£190,001 - £200,000",null,null,null,null,"£63,134 - £66,667","£95,001 - £100,000","£285,001 - £300,000",null,0,1000,null,null,null,null,null,null,null,null,null,null,null,null,null,null,null,null,null,"Consol, EFA/DfE Staff Costs Note",null,1,null,null,null,null,null,0]
[null,null,"£200,001 - £210,000",null,null,null,null,"£66,668 - £70,000","£100,001 - £105,000","£300,001 - £315,000",null,0,1000,null,null,null,null,null,null,null,null,null,null,null,null,null,null,null,null,null,"Consol, EFA/DfE Staff Costs Note",null,1,null,null,null,null,null,0]
[null,null,"£210,001 - £220,000",null,null,null,null,"£70,001 - £73,133","£105,001 - £110,000","£315,001 - £330,000",null,0,1000,null,null,null,null,null,null,null,null,null,null,null,null,null,null,null,null,null,"Consol, EFA/DfE Staff Costs Note",null,1,null,null,null,null,null,0]
[null,null,"£220,001 - £230,000",null,null,null,null,"£73,134 - £76,667","£110,001 - £115,000","£330,001 - £345,000",null,0,1000,null,null,null,null,null,null,null,null,null,null,null,null,null,null,null,null,null,"Consol, EFA/DfE Staff Costs Note",null,1,null,null,null,null,null,0]
[null,null,"£230,001 - £240,000",null,null,null,null,"£76,668 - £80,000","£115,001 - £120,000","£345,001 - £360,000",null,0,1000,null,null,null,null,null,null,null,null,null,null,null,null,null,null,null,null,null,"Consol, EFA/DfE Staff Costs Note",null,1,null,null,null,null,null,0]
[null,null,"£240,001 - £250,000",null,null,null,null,"£80,001 - £83,133","£120,001 - £125,000","£360,001 - £375,000",null,0,1000,null,null,null,null,null,null,null,null,null,null,null,null,null,null,null,null,null,"Consol, EFA/DfE Staff Costs Note",null,1,null,null,null,null,null,0]
[null,null,"£250,001 - £260,000",null,null,null,null,"£83,134 - £86,667","£125,001 - £130,000","£375,001 - £390,000",null,0,1000,null,null,null,null,null,null,null,null,null,null,null,null,null,null,null,null,null,"Consol, EFA/DfE Staff Costs Note",null,1,null,null,null,null,null,{"$f":"COUNTA(E399:E399)","v":0}]
[null,null,"£260,001 - £270,000",null,null,null,null,"£86,668 - £90,000","£130,001 - £135,000","£390,001 - £405,000",null,0,1000,null,null,null,null,null,null,null,null,null,null,null,null,null,null,null,null,null,"Consol, EFA/DfE Staff Costs Note",null,1,null,null,null,null,null,0]
[null,null,"£270,001 - £280,000",null,null,null,null,"£90,0001 - £93,133","£135,001 - £140,000","£405,001 - £420,000",null,0,1000,null,null,null,null,null,null,null,null,null,null,null,null,null,null,null,null,null,"Consol, EFA/DfE Staff Costs Note",null,1,null,null,null,null,null,0]
[null,null,"£280,001 - £290,000",null,null,null,null,"£93,134 - £96,667","£140,001 - £145,000","£420,001 - £435,000",null,0,1000,null,null,null,null,null,null,null,null,null,null,null,null,null,null,null,null,null,"Consol, EFA/DfE Staff Costs Note",null,1,null,null,null,null,null,0]
[null,null,"£290,001 - £300,000",null,null,null,null,"£96,668 - £100,000","£145,001 - £150,000","£435,001 - £450,000",null,0,1000,null,null,null,null,null,null,null,null,null,null,null,null,null,null,null,null,null,"Consol, EFA/DfE Staff Costs Note",null,1,null,null,null,null,null,0]
[null,null,"£300,001 - £310,000",null,null,null,null,"£100,001 - £103,133","£150,001 - £155,000","£450,001 - £465,000",null,0,1000,null,null,null,null,null,null,null,null,null,null,null,null,null,null,null,null,null,"Consol, EFA/DfE Staff Costs Note",null,1,null,null,null,null,null,0]
[null,null,"£310,001 - £320,000",null,null,null,null,"£103,134 - £106,667","£155,001 - £160,000","£465,001 - £480,000",null,0,1000,null,null,null,null,null,null,null,null,null,null,null,null,null,null,null,null,null,"Consol, EFA/DfE Staff Costs Note",null,1,null,null,null,null,null,0]
[null,null,"£320,001 - £330,000",null,null,null,null,"£106,668 - £110,000","£160,001 - £165,000","£480,001 - £495,000",null,0,1000,null,null,null,null,null,null,null,null,null,null,null,null,null,null,null,null,null,"Consol, EFA/DfE Staff Costs Note",null,1,null,null,null,null,null,0]
[null,null,"£330,001 - £340,000",null,null,null,null,"£110,001 - £113,133","£165,001 - £170,000","£495,001 - £510,000",null,0,1000,null,null,null,null,null,null,null,null,null,null,null,null,null,null,null,null,null,"Consol, EFA/DfE Staff Costs Note",null,1,null,null,null,null,null,0]
[null,null,"£340,001 - £350,000",null,null,null,null,"£113,134 - £116,667","£170,001 - £175,000","£510,001 - £525,000",null,0,1000,null,null,null,null,null,null,null,null,null,null,null,null,null,null,null,null,null,"Consol, EFA/DfE Staff Costs Note",null,1,null,null,null,null,null,0]
[null,null,"£350,001 - £360,000",null,null,null,null,"£116,668 - £120,000","£175,001 - £180,000","£525,001 - £540,000",null,0,1000,null,null,null,null,null,null,null,null,null,null,null,null,null,null,null,null,null,null,null,1,null,null,null,null,null,{"$f":"COUNTA(E409:E409)","v":0}]
[]
[null,"Pension contributions to individuals included within the numerical disclosures above:"]
[null,null,null,null,"Total",null,"TPS","LGPS","Stakeholder/ Private Pension Schemes","Other"]
[null,null,null,null,"£000",null,"£000","£000","£000","£000"]
[null,null,null,null,{"$f":"SUM(G414:J414)","v":0},null,null,null,null,null,null,{"$f":"+(L409)","v":0},{"$f":"+(M364)","v":0},null,null,null,null,null,null,null,null,null,null,null,null,null,null,null,null,null,"Consol, EFA/DfE Staff Costs Note",null,4,null,null,null,null,null,{"$f":"COUNTA(G414:J414)","v":0}]
[]
[]
["PROVISION OF BOARDING ACTIVITIES",null,null,null,null,null,null,null,"Lower limit","Upper limit "]
["SoFA",null,null,null,"£000",null,"£000",null,"£000","£000"]
[null,"INCOME"]
[null,null,"Fee income",null,null,null,null,null,{"$f":"$L$20","v":-750000},{"$f":"$M$20","v":750000},null,null,null,null,null,null,null,null,null,null,null,null,null,null,null,null,null,null,null,null,"Consol, EFA/DfE SoCNE",null,1,null,null,null,null,null,{"$f":"COUNTA(G420:G420)","v":0}]
[null,null,"Grants - EFA",null,null,null,null,null,{"$f":"I420","v":-750000},{"$f":"J420","v":750000},null,null,null,null,null,null,null,null,null,null,null,null,null,null,null,null,null,null,null,null,"Consol, EFA/DfE SoCNE",null,1,null,null,null,null,null,{"$f":"COUNTA(G421:G421)","v":0}]
[null,null,"Grants - DfE Family:"]
[null,null,"DfE",null,null,null,null,null,{"$f":"I421","v":-750000},{"$f":"J421","v":750000},null,null,null,null,null,null,null,null,null,null,null,null,null,null,null,null,null,null,null,null,"Consol, EFA/DfE SoCNE",null,1,null,null,null,null,null,{"$f":"COUNTA(G423:G423)","v":0}]
[null,null,"TA",null,null,null,null,null,{"$f":"I423","v":-750000},{"$f":"J423","v":750000},null,null,null,null,null,null,null,null,null,null,null,null,null,null,null,null,null,null,null,null,"Consol, EFA/DfE SoCNE",null,1,null,null,null,null,null,0]
[null,null,"NCTL",null,null,null,null,null,{"$f":"I424","v":-750000},{"$f":"J424","v":750000},null,null,null,null,null,null,null,null,null,null,null,null,null,null,null,null,null,null,null,null,"Consol, EFA/DfE SoCNE",null,1,null,null,null,null,null,0]
[null,null,"STA",null,null,null,null,null,-750000,750000,null,null,null,null,null,null,null,null,null,null,null,null,null,null,null,null,null,null,null,null,"Consol, EFA/DfE SoCNE",null,1,null,null,null,null,null,0]
[null,null,"CAFCASS",null,null,null,null,null,-750000,750000,null,null,null,null,null,null,null,null,null,null,null,null,null,null,null,null,null,null,null,null,"Consol, EFA/DfE SoCNE",null,1,null,null,null,null,null,0]
[null,null,"OCC",null,null,null,null,null,-750000,750000,null,null,null,null,null,null,null,null,null,null,null,null,null,null,null,null,null,null,null,null,"Consol, EFA/DfE SoCNE",null,1,null,null,null,null,null,0]
[null,null,"Grants - Other Government",null,null,null,null,null,-750000,750000,null,null,null,null,null,null,null,null,null,null,null,null,null,null,null,null,null,null,null,null,"Consol, EFA/DfE SoCNE",null,1,null,null,null,null,null,0]
[null,null,"Grants - Other",null,null,null,null,null,-750000,750000,null,null,null,null,null,null,null,null,null,null,null,null,null,null,null,null,null,null,null,null,"Consol, EFA/DfE SoCNE",null,1,null,null,null,null,null,0]
[null,null,"Other Income",null,null,null,null,null,-750000,750000,null,null,null,null,null,null,null,null,null,null,null,null,null,null,null,null,null,null,null,null,"Consol, EFA/DfE SoCNE",null,1,null,null,null,null,null,0]
[]
[null,null,"TOTAL",{"$f":"IF(G433<>SUM(G420:G432),\"Error - column does not cast\",\"\")","v":""},null,null,{"$f":"E26","v":0},null,null,null,null,null,null,null,null,null,null,null,null,null,null,null,null,null,null,null,null,null,null,null,null,null,null,null,null,null,1,null,null,null,null,null,{"$f":"COUNTIF(G433:G433,\"<>0\")","v":0}]
[null,null,null,{"$f":"IF(D433<>\"\",\"Error - Total does not agree - cell E26\",\"\")","v":""}]
[null,"EXPENDITURE"]
[null,null,"Direct costs"]
[null,null,"Staff costs",null,null,null,null,null,{"$f":"I431","v":-750000},{"$f":"J431","v":750000},null,null,null,null,null,null,null,null,null,null,null,null,null,null,null,null,null,null,null,null,"Consol, EFA/DfE SoCNE",null,1,null,null,null,null,null,{"$f":"COUNTA(E437:E437)","v":0}]
[null,null,"Goods and services",null,null,null,null,null,{"$f":"I437","v":-750000},{"$f":"J437","v":750000},null,null,null,null,null,null,null,null,null,null,null,null,null,null,null,null,null,null,null,null,"Consol, EFA/DfE SoCNE",null,1,null,null,null,null,null,{"$f":"COUNTA(E438:E438)","v":0}]
[null,null,"Travel and subsistence","Notes",null,null,null,null,{"$f":"I438","v":-750000},{"$f":"J438","v":750000},null,null,null,null,null,null,null,null,null,null,null,null,null,null,null,null,null,null,null,null,"Consol, EFA/DfE SoCNE",null,null,null,1,null,null,null,null,null,{"$f":"COUNTA(E439:E439)","v":0}]
[null,null,"Other direct costs",null,null,null,null,null,{"$f":"I439","v":-750000},750000,null,null,null,null,null,null,null,null,null,null,null,null,null,null,null,null,null,null,null,null,"Consol, EFA/DfE SoCNE",null,null,null,1,null,null,null,null,null,{"$f":"COUNTA(E440:E440)","v":0}]
[null,null,"Bad debt write-offs",null,null,null,null,null,-750000,750000,null,null,null,null,null,null,null,null,null,null,null,null,null,null,null,null,null,null,null,null,"Consol, EFA/DfE SoCNE",null,1,null,null,null,null,null,{"$f":"COUNTA(E441:E441)","v":0}]
[]
[null,null,null,null,{"$f":"SUM(E436:E442)","v":0}]
[null,null,"Indirect costs"]
[null,null,"Staff costs",null,null,null,null,null,{"$f":"I441","v":-750000},{"$f":"J441","v":750000},null,null,null,null,null,null,null,null,null,null,null,null,null,null,null,null,null,null,null,null,"Consol, EFA/DfE SoCNE",null,1,null,null,null,null,null,{"$f":"COUNTA(E445:E445)","v":0}]
[null,null,"Utilities",null,null,null,null,null,{"$f":"I445","v":-750000},{"$f":"J445","v":750000},null,null,null,null,null,null,null,null,null,null,null,null,null,null,null,null,null,null,null,null,"Consol, EFA/DfE SoCNE",null,1,null,null,null,null,null,{"$f":"COUNTA(E446:E446)","v":0}]
[null,null,"Operating lease rentals - other",null,null,null,null,null,{"$f":"I446","v":-750000},750000]
[null,null,"Operating lease rentals - land & buildings",null,null,null,null,null,-750000,750000,null,null,null,null,null,null,null,null,null,null,null,null,null,null,null,null,null,null,null,null,"Consol, EFA/DfE SoCNE",null,null,null,1,null,null,null,null,null,{"$f":"COUNTA(E448:E448)","v":0}]
[null,null,"Rates",null,null,null,null,null,-750000,750000,null,null,null,null,null,null,null,null,null,null,null,null,null,null,null,null,null,null,null,null,"Consol, EFA/DfE SoCNE",null,null,null,1,null,null,null,null,null,{"$f":"COUNTA(E449:E449)","v":0}]
[null,null,"Insurance",null,null,null,null,null,-750000,750000,null,null,null,null,null,null,null,null,null,null,null,null,null,null,null,null,null,null,null,null,"Consol, EFA/DfE SoCNE",null,1,null,null,null,null,null,{"$f":"COUNTA(E450:E450)","v":0}]
[null,null,"Security",null,null,null,null,null,-750000,750000,null,null,null,null,null,null,null,null,null,null,null,null,null,null,null,null,null,null,null,null,"Consol, EFA/DfE SoCNE",null,1,null,null,null,null,null,0]
[null,null,"Maintenance of premises",null,null,null,null,null,-750000,750000,null,null,null,null,null,null,null,null,null,null,null,null,null,null,null,null,null,null,null,null,"Consol, EFA/DfE SoCNE",null,null,null,1,null,null,null,null,null,{"$f":"COUNTA(E452:E452)","v":0}]
[null,null,"Maintenance of equipment",null,null,null,null,null,-750000,750000,null,null,null,null,null,null,null,null,null,null,null,null,null,null,null,null,null,null,null,null,"Consol, EFA/DfE SoCNE",null,null,null,1,null,null,null,null,null,{"$f":"COUNTA(E453:E453)","v":0}]
[null,null,"Depreciation",{"$f":"D255","v":""},null,null,null,null,-750000,750000,null,null,null,null,null,null,null,null,null,null,null,null,null,null,null,null,null,null,null,null,"Consol, EFA/DfE SoCNE",null,1,null,null,null,null,null,0]
[null,null,"Amortisation",{"$f":"D256","v":""},null,null,null,null,-750000,750000,null,null,null,null,null,null,null,null,null,null,null,null,null,null,null,null,null,null,null,null,"Consol, EFA/DfE SoCNE",null,1,null,null,null,null,null,0]
[null,null,"Impairment",{"$f":"D257","v":""},null,null,null,null,-750000,750000,null,null,null,null,null,null,null,null,null,null,null,null,null,null,null,null,null,null,null,null,"Consol, EFA/DfE SoCNE",null,1,null,null,null,null,null,0]
[null,null,"Travel and subsistence",null,null,null,null,null,-750000,750000,null,null,null,null,null,null,null,null,null,null,null,null,null,null,null,null,null,null,null,null,"Consol, EFA/DfE SoCNE",null,null,null,1,null,null,null,null,null,{"$f":"COUNTA(E457:E457)","v":0}]
[null,null,"Gain/(loss) on disposal of tangible fixed assets",null,null,null,null,null,-750000,750000,null,null,null,null,null,null,null,null,null,null,null,null,null,null,null,null,null,null,null,null,null,null,null,null,1]
[null,null,"Gain/(loss) on disposal of intangible fixed assets",null,null,null,null,null,-750000,750000,null,null,null,null,null,null,null,null,null,null,null,null,null,null,null,null,null,null,null,null,null,null,null,null,1]
[null,null,"Gain/(loss) on disposal of investments",null,null,null,null,null,-750000,750000,null,null,null,null,null,null,null,null,null,null,null,null,null,null,null,null,null,null,null,null,null,null,null,null,1]
[null,null,"Other indirect costs",null,null,null,null,null,-750000,750000,null,null,null,null,null,null,null,null,null,null,null,null,null,null,null,null,null,null,null,null,"Consol, EFA/DfE SoCNE",null,null,null,1,null,null,null,null,null,{"$f":"COUNTA(E461:E461)","v":0}]
[]
[null,null,null,null,{"$f":"SUM(E444:E462)","v":0}]
[null,null,"Stock costs"]
[null,null,"Opening stock",null,null,null,null,null,{"$f":"I461","v":-750000},{"$f":"J461","v":750000},null,null,null,null,null,null,null,null,null,null,null,null,null,null,null,null,null,null,null,null,"Consol, EFA/DfE SoCNE",null,1,null,null,null,null,null,{"$f":"COUNTA(E465:E465)","v":0}]
[null,null,"Closing stock",null,null,null,null,null,{"$f":"I465","v":-750000},{"$f":"J465","v":750000},null,null,null,null,null,null,null,null,null,null,null,null,null,null,null,null,null,null,null,null,"Consol, EFA/DfE SoCNE",null,1,null,null,null,null,null,{"$f":"COUNTA(E466:E466)","v":0}]
[]
[null,null,"Movement",null,{"$f":"-E466+E465","v":0}]
[]
[null,null,"TOTAL",{"$f":"IF(G470<>-(E443+E463+E468),\"Error - column does not cast\",\"\")","v":""},null,null,{"$f":"-E36","v":0},null,null,null,null,null,null,null,null,null,null,null,null,null,null,null,null,null,null,null,null,null,null,null,null,null,null,null,null,null,1,null,null,null,null,null,{"$f":"COUNTIF(G470:G470,\"<>0\")","v":0}]
[]
[null,null,null,{"$f":"IF(D470<>\"\",\"Error - Total does not agree - cell E36\",\"\")","v":""}]
[null,"SURPLUS/(DEFICIT) ON BOARDING",null,null,null,null,{"$f":"SUM(G433:G471)","v":0}]
[null,"Surplus/(deficit) brought forward",null,null,null,null,null,null,{"$f":"I466","v":-750000},{"$f":"J466","v":750000},null,null,null,null,null,null,null,null,null,null,null,null,null,null,null,null,null,null,null,null,"Consol, Reserves Note",null,1,null,null,null,null,null,{"$f":"COUNTA(G474:G474)","v":0}]
[]
[null,"SURPLUS/(DEFICIT) CARRIED FORWARD",null,null,null,null,{"$f":"SUM(G473:G475)","v":0}]
[]
[]
["TANGIBLE FIXED ASSETS",null,null,null,"Total",null,"Freehold \nLand and Buildings","Leasehold Land and Buildings","Leasehold Improvements","Plant & Machinery","Furniture & Equipment","Computer Equipment","Software","Motor \nVehicles","Assets \nUnder Construction",null,"Lower limit","Upper limit "]
["Balance sheet",null,null,null,"£000",null,"£000","£000","£000","£000","£000","£000","£000","£000","£000",null,"£000","£000"]
[null,"Cost or valuation"]
[null,null,"At start of period",null,{"$f":"SUM(G482:O482)","v":0},null,null,null,null,null,null,null,null,null,null,null,0,{"$f":"$J$65","v":750000},null,null,null,null,null,null,null,null,null,null,null,null,"Consol, EFA/DfE PPE Note",null,7,null,2,null,null,null,{"$f":"COUNTA(G482:O482)-AK482","v":0},null,{"$f":"COUNTA(L482:M482)","v":0}]
[null,null,"Additions",null,0,null,null,null,null,null,null,null,null,null,null,null,{"$f":"Q482","v":0},{"$f":"R482","v":750000},null,null,null,null,null,null,null,null,null,null,null,null,"Consol, EFA/DfE PPE Note",null,7,null,2,null,null,null,{"$f":"COUNTA(G483:O483)-AK483","v":0},null,{"$f":"COUNTA(L483:M483)","v":0}]
[null,null,"Transferred in on conversion - local authority",null,0,null,null,null,null,null,null,null,null,null,null,null,{"$f":"Q483","v":0},{"$f":"R483","v":750000},null,null,null,null,null,null,null,null,null,null,null,null,"Consol, EFA/DfE PPE Note",null,7,null,2,null,null,null,{"$f":"COUNTA(G484:O484)-AK484","v":0},null,{"$f":"COUNTA(L484:M484)","v":0}]
[null,null,"Transferred in on conversion - elsewhere",null,{"$f":"SUM(G485:O485)","v":0},null,null,null,null,null,null,null,null,null,null,null,0,750000,null,null,null,null,null,null,null,null,null,null,null,null,null,null,7,null,2,null,null,null,0,null,0]
[null,null,"Donations",{"$f":"IF(E486<>E136,\"Error - does not equal capital donations in voluntary income - E136\",\"\")","v":""},0,null,null,null,null,null,null,null,null,null,null,null,0,750000,null,null,null,null,null,null,null,null,null,null,null,null,"Consol, EFA/DfE PPE Note",null,7,null,2,null,null,null,0,null,0]
[null,null,"Disposals",null,0,null,null,null,null,null,null,null,null,null,null,null,{"$f":"$I$91","v":-750000},0,null,null,null,null,null,null,null,null,null,null,null,null,"Consol, EFA/DfE PPE Note",null,7,null,2,null,null,null,0,null,0]
["SoFA",null,"Revaluations",null,0,null,null,null,null,null,null,null,null,null,null,null,-750000,{"$f":"R486","v":750000},null,null,null,null,null,null,null,null,null,null,null,null,"Consol, EFA/DfE PPE Note",null,7,null,2,null,null,null,0,null,0]
[null,null,"Reclassifications",{"$f":"IF(E489<>0, \"Error - reclassifications must sum to zero\",\"\")","v":""},0,null,null,null,null,null,null,null,null,null,null,null,-750000,750000,null,null,null,null,null,null,null,null,null,null,null,null,"Consol, EFA/DfE PPE Note",null,7,null,2,null,null,null,0,null,0]
[]
[null,null,"At close of period",null,{"$f":"SUM(E482:E490)","v":0},null,{"$f":"SUM(G482:G490)","v":0},{"$f":"SUM(H482:H490)","v":0},{"$f":"SUM(I482:I490)","v":0},0,{"$f":"SUM(K482:K490)","v":0},{"$f":"SUM(L482:L490)","v":0},{"$f":"SUM(M482:M490)","v":0},{"$f":"SUM(N482:N490)","v":0},{"$f":"SUM(O482:O490)","v":0}]
[null,null,null,null,{"$f":"IF(E491<0,\"Error - credit bal.\",\"\")","v":""},null,{"$f":"IF(G491<0,\"Error - credit bal.\",\"\")","v":""},{"$f":"IF(H491<0,\"Error - credit bal.\",\"\")","v":""},"","","","","","",""]
[null,"Depreciation"]
[null,null,"At start of period",null,{"$f":"SUM(G494:O494)","v":0},null,null,null,null,null,null,null,null,null,null,null,{"$f":"Q489","v":-750000},0,null,null,null,null,null,null,null,null,null,null,null,null,"Consol, EFA/DfE PPE Note",null,7,null,2,null,null,null,{"$f":"COUNTA(G494:O494)-AO494","v":0},null,{"$f":"COUNTA(L494:M494)","v":0}]
[null,null,"Charge in the period",null,0,null,null,null,null,null,null,null,null,null,null,null,{"$f":"Q494","v":-750000},{"$f":"R494","v":0},null,null,null,null,null,null,null,null,null,null,null,null,"Consol, EFA/DfE PPE Note",null,7,null,2,null,null,null,{"$f":"COUNTA(G495:O495)-AO495","v":0},null,{"$f":"COUNTA(L495:M495)","v":0}]
[null,null,"Eliminated on disposal",null,0,null,null,null,null,null,null,null,null,null,null,null,0,{"$f":"$J$65","v":750000},null,null,null,null,null,null,null,null,null,null,null,null,"Consol, EFA/DfE PPE Note",null,7,null,2,null,null,null,0,null,0]
[null,null,"Revaluations",null,0,null,null,null,null,null,null,null,null,null,null,null,{"$f":"Q495","v":-750000},{"$f":"R496","v":750000},null,null,null,null,null,null,null,null,null,null,null,null,"Consol, EFA/DfE PPE Note",null,7,null,2,null,null,null,0,null,0]
[null,null,"Reclassifications",{"$f":"IF(E498<>0, \"Error - reclassifications must sum to zero\",\"\")","v":""},0,null,null,null,null,null,null,null,null,null,null,null,-750000,{"$f":"R497","v":750000},null,null,null,null,null,null,null,null,null,null,null,null,"Consol, EFA/DfE PPE Note",null,7,null,2,null,null,null,0,null,0]
[]
[null,null,"At close of period",null,{"$f":"SUM(E494:E499)","v":0},null,{"$f":"SUM(G494:G499)","v":0},0,0,0,0,0,0,0,0]
[null,null,null,null,{"$f":"IF(E500>0,\"Error - debit bal.\",\"\")","v":""},null,{"$f":"IF(G500>0,\"Error - debit bal.\",\"\")","v":""},{"$f":"IF(H500>0,\"Error - debit bal.\",\"\")","v":""},"","","","","","",""]
[null,"Impairment"]
[null,null,"At start of period",null,{"$f":"SUM(G503:O503)","v":0},null,null,null,null,null,null,null,null,null,null,null,{"$f":"Q498","v":-750000},0,null,null,null,null,null,null,null,null,null,null,null,null,"Consol, EFA/DfE PPE Note",null,7,null,2,null,null,null,{"$f":"COUNTA(G503:O503)-AO503","v":0},null,{"$f":"COUNTA(L503:M503)","v":0}]
[null,null,"Charge in the period",null,{"$f":"SUM(G504:O504)","v":0},null,null,null,null,null,null,null,null,null,null,null,{"$f":"Q503","v":-750000},{"$f":"R503","v":0},null,null,null,null,null,null,null,null,null,null,null,null,"Consol, EFA/DfE PPE Note",null,7,null,2,null,null,null,0,null,0]
[null,null,"Released in period",null,{"$f":"SUM(G505:O505)","v":0},null,null,null,null,null,null,null,null,null,null,null,0,{"$f":"$J$65","v":750000},null,null,null,null,null,null,null,null,null,null,null,null,"Consol, EFA/DfE PPE Note",null,7,null,2,null,null,null,0,null,0]
[]
[null,null,"At close of period",null,{"$f":"SUM(E503:E506)","v":0},null,{"$f":"SUM(G503:G506)","v":0},{"$f":"SUM(H503:H506)","v":0},{"$f":"SUM(I503:I506)","v":0},0,{"$f":"SUM(K503:K506)","v":0},{"$f":"SUM(L503:L506)","v":0},{"$f":"SUM(M503:M506)","v":0},{"$f":"SUM(N503:N506)","v":0},0]
[null,null,null,null,{"$f":"IF(E507>0,\"Error - debit bal.\",\"\")","v":""},null,{"$f":"IF(G507>0,\"Error - debit bal.\",\"\")","v":""},{"$f":"IF(H507>0,\"Error - debit bal.\",\"\")","v":""},"","","","","","",""]
[null,"Net book value"]
[null,null,"At close of period",{"$f":"IF(E510<>E491+E500+E507,\"Error - column does not cast\",\"\")","v":""},{"$f":"G65","v":0},null,{"$f":"G491+G500+G507","v":0},0,0,0,0,0,0,0,0,null,null,null,null,null,null,null,null,null,null,null,null,null,null,null,"Consol, EFA/DfE PPE Note",null,null,null,null,null,1,null,null,null,null,null,{"$f":"COUNTIF(E510:E510,\"<>0\")","v":0}]
[null,null,null,{"$f":"IF(E510<>SUM(G510:O510),\"Error - row does not cross cast\",\"\")","v":""},null,null,{"$f":"IF(G510<0,\"Error - credit bal.\",\"\")","v":""},{"$f":"IF(H510<0,\"Error - credit bal.\",\"\")","v":""},"","","","","","",""]
[null,null,null,{"$f":"IF(OR(D510<>\"\",D511<>\"\"),\"Error - Total does not agree - cell G65\",\"\")","v":""}]
[null,null,"At start of period",null,{"$f":"E482+E494+E503","v":0},null,{"$f":"G482+G494+G503","v":0},0,0,0,0,0,0,0,0]
[null,null,null,null,{"$f":"IF(E513<0,\"Error - credit bal.\",\"\")","v":""},null,{"$f":"IF(G513<0,\"Error - credit bal.\",\"\")","v":""},{"$f":"IF(H513<0,\"Error - credit bal.\",\"\")","v":""},"","","","","","",""]
[]
[null,"Depreciation periods per accounting policies: (months)",null,null,"Notes"]
[null,null,"Single period or minimum of range",null,null,null,null,null,null,null,null,null,null,null,null,null,{"$f":"Q505","v":0},1500,null,null,null,null,null,null,null,null,null,null,null,null,"Consol, EFA/DfE PPE Note",null,7,null,2,null,null,null,{"$f":"COUNTA(G517:O517)-AO517","v":0},null,{"$f":"COUNTA(L517:M517)","v":0}]
[null,null,"Maximum of range",null,null,null,null,null,null,null,null,null,null,null,null,null,{"$f":"Q517","v":0},{"$f":"R517","v":1500},null,null,null,null,null,null,null,null,null,null,null,null,"Consol, EFA/DfE PPE Note",null,7,null,2,null,null,null,{"$f":"COUNTA(G518:N518)-AO518","v":0},null,{"$f":"COUNTA(L518:M518)","v":0}]
[null,null,"Reducing balance rate",null,"Notes",null,null,null,null,null,null,null,null,null,null,null,{"$f":"Q518","v":0},100,null,null,null,null,null,null,null,null,null,null,null,null,null,null,7,null,2,null,null,null,{"$f":"COUNTA(G519:O519)-AO519","v":0},null,{"$f":"COUNTA(L519:M519)","v":0}]
[null,null,null,null,null,null,{"$f":"IF(AND(G491>0,G517=\"\",G519=\"\"),\"Error - depreciation absent\",\"\")","v":""},{"$f":"IF(AND(H491>0,H517=\"\",H519=\"\"),\"Error - depreciation absent\",\"\")","v":""},"","","","","",""]
[null,"Analysis of closing NBV of Land and Buildings:",null,null,"Notes"]
[null,null,"Land",null,null,null,null,null,null,null,null,null,null,null,null,null,0,{"$f":"$J$65","v":750000},null,null,null,null,null,null,null,null,null,null,null,null,"Consol, EFA/DfE PPE Note",null,null,null,2,null,null,null,null,null,{"$f":"COUNTA(G522:H522)","v":0}]
[null,null,"Buildings",null,null,null,null,null,null,null,null,null,null,null,null,null,0,750000,null,null,null,null,null,null,null,null,null,null,null,null,"Consol, EFA/DfE PPE Note",null,null,null,2,null,null,null,null,null,{"$f":"COUNTA(G523:H523)","v":0}]
[]
[null,null,null,null,null,null,{"$f":"G510","v":0},{"$f":"H510","v":0},null,null,null,null,null,null,null,null,null,null,null,null,null,null,null,null,null,null,null,null,null,null,null,null,null,null,null,null,2,null,null,null,null,null,{"$f":"COUNTIF(G525:H525,\"<>0\")","v":0}]
[null,null,null,null,null,null,{"$f":"IF(G525<>SUM(G522:G524),\"Error - column does not cast\",\"\")","v":""},{"$f":"IF(H525<>SUM(H522:H524),\"Error - column does not cast\",\"\")","v":""}]
[null,"Revalued assets - historic cost analysis:"]
[null,null,"Historic cost",null,{"$f":"SUM(G528:O528)","v":0},null,null,null,null,null,null,null,null,null,null,null,{"$f":"Q517","v":0},{"$f":"$J$65","v":750000},null,null,null,null,null,null,null,null,null,null,null,null,"Consol, EFA/DfE PPE Note",null,null,null,9,null,null,null,null,null,{"$f":"COUNTA(G528:O528)","v":0}]
[null,null,"Closing cumulative depreciation based on historic cost",null,{"$f":"SUM(G529:O529)","v":0},null,null,null,null,null,null,null,null,null,null,null,{"$f":"+(Q504)","v":-750000},0,null,null,null,null,null,null,null,null,null,null,null,null,"Consol, EFA/DfE PPE Note",null,null,null,9,null,null,null,null,null,{"$f":"COUNTA(G529:O529)","v":0}]
[]
[null,null,"Historic cost - carrying value",null,{"$f":"SUM(E528:E530)","v":0},null,{"$f":"SUM(G528:G530)","v":0},{"$f":"SUM(H528:H530)","v":0},{"$f":"SUM(I528:I530)","v":0},0,{"$f":"SUM(K528:K530)","v":0},{"$f":"SUM(L528:L530)","v":0},{"$f":"SUM(M528:M530)","v":0},{"$f":"SUM(N528:N530)","v":0},0]
[]
[null,"NBV of finance leased assets:",null,null,{"$f":"SUM(G533:O533)","v":0},null,null,null,null,null,null,null,null,null,null,null,{"$f":"Q528","v":0},{"$f":"R528","v":750000},null,null,null,null,null,null,null,null,null,null,null,null,"Consol, EFA/DfE PPE Note",null,7,null,2,null,null,null,{"$f":"COUNTA(G533:O533)-AO533","v":0},null,{"$f":"COUNTA(L533:M533)","v":0}]
[null,null,null,null,null,null,{"$f":"IF(G533>G510,\"Error - above greater than total NBV\",\"\")","v":""},{"$f":"IF(H533>H510,\"Error - above greater than total NBV\",\"\")","v":""},"","","","","","",""]
[]
["INTANGIBLE FIXED ASSETS",null,null,null,"Total",null,"Other","Trademarks, \nlicences, royalties, etc.","Goodwill",null,"Lower limit","Upper limit "]
["Balance sheet",null,null,null,"£000",null,"£000","£000","£000",null,"£000","£000"]
[null,"Cost or valuation"]
[null,null,"At start of period",null,{"$f":"SUM(G539:I539)","v":0},null,null,null,null,null,0,{"$f":"$J$65","v":750000},null,null,null,null,null,null,null,null,null,null,null,null,null,null,null,null,null,null,"Consol, EFA/DfE Intangible Asset Note",null,3,null,null,null,null,null,{"$f":"COUNTA(G539:I539)","v":0}]
[null,null,"Additions",null,{"$f":"SUM(G540:I540)","v":0},null,null,null,null,null,{"$f":"K539","v":0},{"$f":"L539","v":750000},null,null,null,null,null,null,null,null,null,null,null,null,null,null,null,null,null,null,"Consol, EFA/DfE Intangible Asset Note",null,3,null,null,null,null,null,0]
[null,null,"Transferred in on conversion - local authority",null,0,null,null,null,null,null,0,750000,null,null,null,null,null,null,null,null,null,null,null,null,null,null,null,null,null,null,"Consol, EFA/DfE Intangible Asset Note",null,3,null,null,null,null,null,0]
[null,null,"Transferred in on conversion - elsewhere",null,0,null,null,null,null,null,{"$f":"K541","v":0},{"$f":"L541","v":750000},null,null,null,null,null,null,null,null,null,null,null,null,null,null,null,null,null,null,null,null,3,null,null,null,null,null,{"$f":"COUNTA(G542:I542)","v":0}]
[null,null,"Disposals",null,0,null,null,null,null,null,{"$f":"$I$91","v":-750000},0,null,null,null,null,null,null,null,null,null,null,null,null,null,null,null,null,null,null,"Consol, EFA/DfE Intangible Asset Note",null,3,null,null,null,null,null,0]
["SoFA",null,"Revaluations",null,0,null,null,null,null,null,{"$f":"K543","v":-750000},{"$f":"L542","v":750000},null,null,null,null,null,null,null,null,null,null,null,null,null,null,null,null,null,null,"Consol, EFA/DfE Intangible Asset Note",null,3,null,null,null,null,null,0]
[null,null,"Reclassifications",{"$f":"IF(E545<>0, \"Error - reclassifications must sum to zero\",\"\")","v":""},0,null,null,null,null,null,-750000,{"$f":"L544","v":750000},null,null,null,null,null,null,null,null,null,null,null,null,null,null,null,null,null,null,null,null,3,null,null,null,null,null,0]
[]
[null,null,"At close of period",null,{"$f":"SUM(E539:E546)","v":0},null,{"$f":"SUM(G539:G546)","v":0},{"$f":"SUM(H539:H546)","v":0},{"$f":"SUM(I539:I546)","v":0}]
[null,null,null,null,{"$f":"IF(E547<0,\"Error - credit bal.\",\"\")","v":""},null,{"$f":"IF(G547<0,\"Error - credit bal.\",\"\")","v":""},{"$f":"IF(H547<0,\"Error - credit bal.\",\"\")","v":""},""]
[null,"Amortisation"]
[null,null,"At start of period",null,{"$f":"SUM(G550:I550)","v":0},null,null,null,null,null,{"$f":"K545","v":-750000},0,null,null,null,null,null,null,null,null,null,null,null,null,null,null,null,null,null,null,"Consol, EFA/DfE Intangible Asset Note",null,3,null,null,null,null,null,{"$f":"COUNTA(G550:I550)","v":0}]
[null,null,"Charge in the period",null,0,null,null,null,null,null,{"$f":"K550","v":-750000},{"$f":"L550","v":0},null,null,null,null,null,null,null,null,null,null,null,null,null,null,null,null,null,null,"Consol, EFA/DfE Intangible Asset Note",null,3,null,null,null,null,null,0]
[null,null,"Eliminated on disposal",null,0,null,null,null,null,null,0,{"$f":"L545","v":750000},null,null,null,null,null,null,null,null,null,null,null,null,null,null,null,null,null,null,"Consol, EFA/DfE Intangible Asset Note",null,3,null,null,null,null,null,0]
[null,null,"Revaluations",null,0,null,null,null,null,null,{"$f":"K551","v":-750000},750000,null,null,null,null,null,null,null,null,null,null,null,null,null,null,null,null,null,null,"Consol, EFA/DfE Intangible Asset Note",null,3,null,null,null,null,null,0]
[null,null,"Reclassifications",{"$f":"IF(E554<>0, \"Error - reclassifications must sum to zero\",\"\")","v":""},0,null,null,null,null,null,-750000,750000,null,null,null,null,null,null,null,null,null,null,null,null,null,null,null,null,null,null,null,null,3,null,null,null,null,null,0]
[]
[null,null,"At close of period",null,{"$f":"SUM(E550:E555)","v":0},null,{"$f":"SUM(G550:G555)","v":0},{"$f":"SUM(H550:H555)","v":0},{"$f":"SUM(I550:I555)","v":0}]
[null,null,null,null,{"$f":"IF(E556>0,\"Error - debit bal.\",\"\")","v":""},null,{"$f":"IF(G556>0,\"Error - debit bal.\",\"\")","v":""},{"$f":"IF(H556>0,\"Error - debit bal.\",\"\")","v":""},""]
[null,"Impairment"]
[null,null,"At start of period",null,{"$f":"SUM(G559:I559)","v":0},null,null,null,null,null,{"$f":"K554","v":-750000},0,null,null,null,null,null,null,null,null,null,null,null,null,null,null,null,null,null,null,"Consol, EFA/DfE Intangible Asset Note",null,3,null,null,null,null,null,{"$f":"COUNTA(G559:I559)","v":0}]
[null,null,"Charge in the period",null,0,null,null,null,null,null,{"$f":"K559","v":-750000},0,null,null,null,null,null,null,null,null,null,null,null,null,null,null,null,null,null,null,"Consol, EFA/DfE Intangible Asset Note",null,3,null,null,null,null,null,{"$f":"COUNTA(G560:I560)","v":0}]
[null,null,"Released in period",null,0,null,null,null,null,null,0,{"$f":"L554","v":750000},null,null,null,null,null,null,null,null,null,null,null,null,null,null,null,null,null,null,"Consol, EFA/DfE Intangible Asset Note",null,3,null,null,null,null,null,{"$f":"COUNTA(G561:I561)","v":0}]
[]
[null,null,"At close of period",null,{"$f":"SUM(E559:E562)","v":0},null,{"$f":"SUM(G559:G562)","v":0},{"$f":"SUM(H559:H562)","v":0},{"$f":"SUM(I559:I562)","v":0}]
[null,null,null,null,{"$f":"IF(E563>0,\"Error - debit bal.\",\"\")","v":""},null,{"$f":"IF(G563>0,\"Error - debit bal.\",\"\")","v":""},{"$f":"IF(H563>0,\"Error - debit bal.\",\"\")","v":""},""]
[null,"Net book value"]
[null,null,"At close of period",{"$f":"IF(E566<>(E547+E556+E563),\"Error - column does not cast\",\"\")","v":""},{"$f":"G66","v":0},null,{"$f":"G547+G556+G563","v":0},{"$f":"H547+H556+H563","v":0},{"$f":"I547+I556+I563","v":0},null,null,null,null,null,null,null,null,null,null,null,null,null,null,null,null,null,null,null,null,null,"Consol, EFA/DfE Intangible Asset Note",null,null,null,null,null,1,null,null,null,null,null,{"$f":"COUNTIF(E566:E566,\"<>0\")","v":0}]
[null,null,null,{"$f":"IF(E566<>SUM(G566:I566),\"Error - row does not cross cast\",\"\")","v":""},null,null,{"$f":"IF(G566<0,\"Error - credit bal.\",\"\")","v":""},{"$f":"IF(H566<0,\"Error - credit bal.\",\"\")","v":""},""]
[null,null,null,{"$f":"IF(OR(D566<>\"\",D567<>\"\"),\"Total does not agree - cell G66\",\"\")","v":""}]
[null,null,"At start of period",null,{"$f":"E539+E550+E559","v":0},null,{"$f":"G539+G550+G559","v":0},{"$f":"H539+H550+H559","v":0},{"$f":"I539+I550+I559","v":0}]
[null,null,null,null,{"$f":"IF(E569<0,\"Error - negative\",\"\")","v":""},null,{"$f":"IF(G569<0,\"Error - credit bal.\",\"\")","v":""},{"$f":"IF(H569<0,\"Error - credit bal.\",\"\")","v":""},""]
[null,"Amortisation periods: (months)",null,null,"Notes"]
[null,null,"Single period or minimum of range",null,null,null,null,null,null,null,0,1200,null,null,null,null,null,null,null,null,null,null,null,null,null,null,null,null,null,null,"Consol, EFA/DfE Intangible Asset Note",null,3,null,null,null,null,null,{"$f":"COUNTA(G572:I572)","v":0}]
[null,null,"Maximum of range",null,null,null,null,null,null,null,0,{"$f":"L572","v":1200},null,null,null,null,null,null,null,null,null,null,null,null,null,null,null,null,null,null,"Consol, EFA/DfE Intangible Asset Note",null,3,null,null,null,null,null,{"$f":"COUNTA(G573:I573)","v":0}]
[null,null,"Reducing balance rate",null,"Notes",null,null,null,null,null,0,100,null,null,null,null,null,null,null,null,null,null,null,null,null,null,null,null,null,null,null,null,3,null,null,null,null,null,{"$f":"COUNTA(G574:I574)","v":0}]
[null,null,null,null,null,null,{"$f":"IF(AND(G547>0,G572=\"\",G574=\"\"),\"Error - amortisation absent\",\"\")","v":""},{"$f":"IF(AND(H547>0,H572=\"\",H574=\"\"),\"Error - amortisation absent\",\"\")","v":""},""]
[]
["INVESTMENTS - FIXED",null,null,null,"Total",null,"Subsidiaries \nat cost","Securities \nat cost","Other \nat cost","Securities \nat fair value","Financial instruments \nat fair value","Other \nat fair value",null,"Lower limit","Upper limit "]
["Balance sheet",null,null,null,"£000",null,"£000","£000","£000","£000","£000","£000",null,"£000","£000"]
[null,"Opening balance",null,null,{"$f":"SUM(G579:L579)","v":0},null,null,null,null,null,null,null,null,null,null,null,null,null,null,null,null,null,null,null,null,null,null,null,null,null,"Consol, EFA/DfE Investments Note",null,6,null,null,null,null,null,{"$f":"COUNTA(G579:L579)","v":0}]
[null,"Additions",null,null,{"$f":"SUM(G580:L580)","v":0},null,null,null,null,null,null,null,null,0,{"$f":"$J$65","v":750000},null,null,null,null,null,null,null,null,null,null,null,null,null,null,null,"Consol, EFA/DfE Investments Note",null,6,null,null,null,null,null,{"$f":"COUNTA(G580:L580)","v":0}]
[null,"Reclassification from current asset investments",null,null,0,null,null,null,null,null,null,null,null,{"$f":"N580","v":0},{"$f":"O580","v":750000},null,null,null,null,null,null,null,null,null,null,null,null,null,null,null,null,null,6,null,null,null,null,null,{"$f":"COUNTA(G581:L581)","v":0}]
[null,"Transferred in on conversion - local authority",null,null,0,null,null,null,null,null,null,null,null,{"$f":"N581","v":0},{"$f":"O581","v":750000},null,null,null,null,null,null,null,null,null,null,null,null,null,null,null,"Consol, EFA/DfE Investments Note",null,6,null,null,null,null,null,0]
[null,"Transferred in on conversion - elsewhere",null,null,0,null,null,null,null,null,null,null,null,0,750000,null,null,null,null,null,null,null,null,null,null,null,null,null,null,null,null,null,6,null,null,null,null,null,0]
[null,"Disposals",null,null,0,null,null,null,null,null,null,null,null,{"$f":"$I$91","v":-750000},0,null,null,null,null,null,null,null,null,null,null,null,null,null,null,null,"Consol, EFA/DfE Investments Note",null,6,null,null,null,null,null,{"$f":"COUNTA(G584:L584)","v":0}]
[null,"Reclassification to current asset investments",null,null,0,null,null,null,null,null,null,null,null,-750000,0,null,null,null,null,null,null,null,null,null,null,null,null,null,null,null,"Consol, EFA/DfE Investments Note",null,6,null,null,null,null,null,{"$f":"COUNTA(G585:L585)","v":0}]
["SoFA","Period end fair value gain/(loss)",null,null,0,null,null,null,null,null,null,null,null,-750000,{"$f":"O583","v":750000},null,null,null,null,null,null,null,null,null,null,null,null,null,null,null,"Consol, EFA/DfE Investments Note",null,3,null,null,null,null,null,{"$f":"COUNTA(J586:L586)","v":0}]
[null,"Impairment",null,null,0,null,null,null,null,null,null,null,null,-750000,750000,null,null,null,null,null,null,null,null,null,null,null,null,null,null,null,"Consol, EFA/DfE Investments Note",null,6,null,null,null,null,null,{"$f":"COUNTA(G587:L587)","v":0}]
[]
[null,"Closing balance",null,{"$f":"IF(E589<>SUM(E579:E588),\"Error - column does not cast\",\"\")","v":""},{"$f":"G67","v":0},null,{"$f":"SUM(G579:G588)","v":0},{"$f":"SUM(H579:H588)","v":0},0,0,0,0]
[null,null,null,{"$f":"IF(E589<>SUM(G589:L589),\"Error - row does not cross cast\",\"\")","v":""},null,null,{"$f":"IF(G589<0,\"Error - credit bal.\",\"\")","v":""},{"$f":"IF(H589<0,\"Error - credit bal.\",\"\")","v":""},"","","",""]
[null,"Please describe 'Others' below",null,{"$f":"IF(OR(D589<>\"\",D590<>\"\"),\"Error - Total does not agree - cell G67\",\"\")","v":""}]
[null,null,null,null,null,null,null,null,null,null,null,null,null,null,null,null,null,null,null,null,null,null,null,null,null,null,null,null,null,null,null,null,null,1]
[]
[null,"Does the Academy have financial instruments other than receivables and payables?",null,"No","Notes",null,null,null,null,null,null,null,null,null,null,null,null,null,null,null,null,null,null,null,null,null,null,null,null,null,"Consol, EFA/DfE Investments Note",null,null,null,null,null,1,null,null,null,null,null,{"$f":"COUNTIF(E605:E605,\"<>0\")","v":0}]
[null,null,null,"Select from drop-down box in the cell above"]
[]
["STOCK",null,null,null,{"$f":"E62","v":2014},null,"Lower limit","Upper limit "]
["Balance sheet",null,null,null,"£000",null,"£000","£000"]
[null,"Clothing/uniform",null,null,null,null,0,{"$f":"$J$65","v":750000},null,null,null,null,null,null,null,null,null,null,null,null,null,null,null,null,null,null,null,null,null,null,"Consol, EFA/DfE Inventory Note",null,1,null,null,null,null,null,{"$f":"COUNTA(E599:E599)","v":0}]
[null,"Catering",null,null,null,null,{"$f":"G599","v":0},{"$f":"H599","v":750000},null,null,null,null,null,null,null,null,null,null,null,null,null,null,null,null,null,null,null,null,null,null,"Consol, EFA/DfE Inventory Note",null,1,null,null,null,null,null,{"$f":"COUNTA(E600:E600)","v":0}]
[null,"Grounds maintenance",null,null,null,null,{"$f":"G600","v":0},{"$f":"H600","v":750000},null,null,null,null,null,null,null,null,null,null,null,null,null,null,null,null,null,null,null,null,null,null,"Consol, EFA/DfE Inventory Note",null,1,null,null,null,null,null,{"$f":"COUNTA(E601:E601)","v":0}]
[null,"Stationery",null,null,null,null,0,750000,null,null,null,null,null,null,null,null,null,null,null,null,null,null,null,null,null,null,null,null,null,null,"Consol, EFA/DfE Inventory Note",null,1,null,null,null,null,null,{"$f":"COUNTA(E602:E602)","v":0}]
[null,"Other",null,null,null,null,0,750000,null,null,null,null,null,null,null,null,null,null,null,null,null,null,null,null,null,null,null,null,null,null,"Consol, EFA/DfE Inventory Note",null,1,null,null,null,null,null,{"$f":"COUNTA(E603:E603)","v":0}]
[]
[null,null,null,{"$f":"IF(E605<>SUM(E599:E604),\"Error - column does not cast\",\"\")","v":""},{"$f":"E71","v":0},null,null,null,null,null,null,null,null,null,null,null,null,null,null,null,null,null,null,null,null,null,null,null,null,null,null,null,null,null,null,null,1]
[null,null,null,{"$f":"IF(D605<>\"\",\"Error - Total does not agree - cell E71\",\"\")","v":""}]
[]
["DEBTORS",null,null,null,"Amounts within one year",null,"Amounts due after more than one year",null,"Lower limit","Upper limit "]
["Balance sheet",null,null,null,"£000",null,"£000",null,"£000","£000"]
[null,"Type analysis"]
[null,null,"Trade debtors",null,null,null,null,null,0,{"$f":"$J$65","v":750000},null,null,null,null,null,null,null,null,null,null,null,null,null,null,null,null,null,null,null,null,"Consol, EFA/DfE Receivables Note",null,2,null,null,null,null,null,{"$f":"COUNTA(E611:G611)","v":0}]
[null,null,"Amounts owed by group undertakings",null,null,null,null,null,{"$f":"I611","v":0},{"$f":"J611","v":750000},null,null,null,null,null,null,null,null,null,null,null,null,null,null,null,null,null,null,null,null,"Consol, EFA/DfE Receivables Note",null,2,null,null,null,null,null,{"$f":"COUNTA(E612:G612)","v":0}]
[null,null,"Prepayments and accrued income",null,null,null,null,null,{"$f":"I612","v":0},{"$f":"J612","v":750000},null,null,null,null,null,null,null,null,null,null,null,null,null,null,null,null,null,null,null,null,"Consol, EFA/DfE Receivables Note",null,2,null,null,null,null,null,0]
[null,null,"VAT",null,null,null,null,null,0,750000,null,null,null,null,null,null,null,null,null,null,null,null,null,null,null,null,null,null,null,null,"Consol, EFA/DfE Receivables Note",null,2,null,null,null,null,null,0]
[null,null,"Other debtors",null,null,null,null,null,0,750000,null,null,null,null,null,null,null,null,null,null,null,null,null,null,null,null,null,null,null,null,"Consol, EFA/DfE Receivables Note",null,2,null,null,null,null,null,0]
[]
[null,null,null,{"$f":"IF(E617<>SUM(E611:E616),\"Error - column does not cast\",\"\")","v":""},{"$f":"E72","v":0},null,{"$f":"E73","v":0},{"$f":"IF(G617<>SUM(G611:G616),\"Error - column does not cast\",\"\")","v":""},null,null,null,null,null,null,null,null,null,null,null,null,null,null,null,null,null,null,null,null,null,null,null,null,null,null,null,null,2,null,null,null,null,null,{"$f":"COUNTIF(E617:E617,\"<>0\")+COUNTIF(G617:G617,\"<>0\")","v":0}]
[null,null,null,{"$f":"IF(D617<>\"\",\"Error - Total does not agree - cell E72\",\"\")","v":""},null,null,null,{"$f":"IF(H617<>\"\",\"Error - Total does not agree - cell E73\",\"\")","v":""}]
[null,"Counterparty analysis",null,null,"Amounts within one year",null,"Amounts due after more than one year"]
[null,null,null,null,"£000",null,"£000"]
[null,"Balances with central government bodies"]
[null,null,"DfE Family:"]
[null,null,"EFA","Notes",{"$f":"SUM(CoPty.Return!U23:Y23)","v":0},null,{"$f":"SUM(CoPty.Return!AA23:AD23)","v":0},null,null,null,null,null,null,null,null,null,null,null,null,null,null,null,null,null,null,null,null,null,null,null,"Consol, EFA/DfE Receivables Note",null,null,null,null,null,2,null,null,null,null,null,{"$f":"COUNTIF(E623:E623,\"<>0\")+COUNTIF(G623:G623,\"<>0\")","v":0}]
[null,null,"DfE",null,{"$f":"SUM(CoPty.Return!U22:Y22)","v":0},null,{"$f":"SUM(CoPty.Return!AA22:AD22)","v":0},null,null,null,null,null,null,null,null,null,null,null,null,null,null,null,null,null,null,null,null,null,null,null,"Consol, EFA/DfE Receivables Note",null,null,null,null,null,2,null,null,null,null,null,{"$f":"COUNTIF(E624:E624,\"<>0\")+COUNTIF(G624:G624,\"<>0\")","v":0}]
[null,null,"TA",null,{"$f":"SUM(CoPty.Return!U24:Y24)","v":0},null,{"$f":"SUM(CoPty.Return!AA24:AD24)","v":0},null,null,null,null,null,null,null,null,null,null,null,null,null,null,null,null,null,null,null,null,null,null,null,"Consol, EFA/DfE Receivables Note",null,null,null,null,null,2,null,null,null,null,null,0]
[null,null,"NCTL",null,{"$f":"SUM(CoPty.Return!U25:Y25)","v":0},null,{"$f":"SUM(CoPty.Return!AA25:AD25)","v":0},null,null,null,null,null,null,null,null,null,null,null,null,null,null,null,null,null,null,null,null,null,null,null,"Consol, EFA/DfE Receivables Note",null,null,null,null,null,2,null,null,null,null,null,0]
[null,null,"STA",null,{"$f":"SUM(CoPty.Return!U26:Y26)","v":0},null,{"$f":"SUM(CoPty.Return!AA26:AD26)","v":0},null,null,null,null,null,null,null,null,null,null,null,null,null,null,null,null,null,null,null,null,null,null,null,"Consol, EFA/DfE Receivables Note",null,null,null,null,null,2,null,null,null,null,null,0]
[null,null,"CAFCASS",null,{"$f":"SUM(CoPty.Return!U28:Y28)","v":0},null,{"$f":"SUM(CoPty.Return!AA28:AD28)","v":0},null,null,null,null,null,null,null,null,null,null,null,null,null,null,null,null,null,null,null,null,null,null,null,"Consol, EFA/DfE Receivables Note",null,null,null,null,null,2,null,null,null,null,null,0]
[null,null,"OCC",null,{"$f":"SUM(CoPty.Return!U27:Y27)","v":0},null,{"$f":"SUM(CoPty.Return!AA27:AD27)","v":0},null,null,null,null,null,null,null,null,null,null,null,null,null,null,null,null,null,null,null,null,null,null,null,"Consol, EFA/DfE Receivables Note",null,null,null,null,null,2,null,null,null,null,null,0]
[null,null,"Other Government bodies",null,{"$f":"SUMIF(CoPty.Return!$D$29:$D$721,\"CenGov't\",CoPty.Return!$U$29:$U$721)+SUMIF(CoPty.Return!$D$29:$D$721,\"CenGov't\",CoPty.Return!$V$29:$V$721)+SUMIF(CoPty.Return!$D$29:$D$721,\"CenGov't\",CoPty.Return!$W$29:$W$721)+SUMIF(CoPty.Return!$D$29:$D$721,\"CenGov't\",CoPty.Return!$X$29:$X$721)+SUMIF(CoPty.Return!$D$29:$D$721,\"CenGov't\",CoPty.Return!$Y$29:$Y$721)","v":0},null,{"$f":"SUMIF(CoPty.Return!$D$29:$D$721,\"CenGov't\",CoPty.Return!$AA$29:$AA$721)+SUMIF(CoPty.Return!$D$29:$D$721,\"CenGov't\",CoPty.Return!$AB$29:$AB$721)+SUMIF(CoPty.Return!$D$29:$D$721,\"CenGov't\",CoPty.Return!$AC$29:$AC$721)+SUMIF(CoPty.Return!$D$29:$D$721,\"CenGov't\",CoPty.Return!$AD$29:$AD$721)","v":0},null,null,null,null,null,null,null,null,null,null,null,null,null,null,null,null,null,null,null,null,null,null,null,"Consol, EFA/DfE Receivables Note",null,null,null,null,null,2,null,null,null,null,null,0]
[null,null,"Academies","Notes",{"$f":"SUMIF(CoPty.Return!$D$29:$D$721,\"Academy\",CoPty.Return!$U$29:$U$721)+SUMIF(CoPty.Return!$D$29:$D$721,\"Academy\",CoPty.Return!$V$29:$V$721)+SUMIF(CoPty.Return!$D$29:$D$721,\"Academy\",CoPty.Return!$W$29:$W$721)+SUMIF(CoPty.Return!$D$29:$D$721,\"Academy\",CoPty.Return!$X$29:$X$721)+SUMIF(CoPty.Return!$D$29:$D$721,\"Academy\",CoPty.Return!$Y$29:$Y$721)","v":0},null,{"$f":"SUMIF(CoPty.Return!$D$29:$D$721,\"Academy\",CoPty.Return!$AA$29:$AA$721)+SUMIF(CoPty.Return!$D$29:$D$721,\"Academy\",CoPty.Return!$AB$29:$AB$721)+SUMIF(CoPty.Return!$D$29:$D$721,\"Academy\",CoPty.Return!$AC$29:$AC$721)+SUMIF(CoPty.Return!$D$29:$D$721,\"Academy\",CoPty.Return!$AD$29:$AD$721)","v":0},null,null,null,null,null,null,null,null,null,null,null,null,null,null,null,null,null,null,null,null,null,null,null,"Consol, EFA/DfE Receivables Note",null,null,null,null,null,2,null,null,null,null,null,0]
[null,"Balances with local authorities",null,null,{"$f":"SUMIF(CoPty.Return!$D$29:$D$721,\"LocGov't\",CoPty.Return!$U$29:$U$721)+SUMIF(CoPty.Return!$D$29:$D$721,\"LocGov't\",CoPty.Return!$V$29:$V$721)+SUMIF(CoPty.Return!$D$29:$D$721,\"LocGov't\",CoPty.Return!$W$29:$W$721)+SUMIF(CoPty.Return!$D$29:$D$721,\"LocGov't\",CoPty.Return!$X$29:$X$721)+SUMIF(CoPty.Return!$D$29:$D$721,\"LocGov't\",CoPty.Return!$Y$29:$Y$721)","v":0},null,{"$f":"SUMIF(CoPty.Return!$D$29:$D$721,\"LocGov't\",CoPty.Return!$AA$29:$AA$721)+SUMIF(CoPty.Return!$D$29:$D$721,\"LocGov't\",CoPty.Return!$AB$29:$AB$721)+SUMIF(CoPty.Return!$D$29:$D$721,\"LocGov't\",CoPty.Return!$AC$29:$AC$721)+SUMIF(CoPty.Return!$D$29:$D$721,\"LocGov't\",CoPty.Return!$AD$29:$AD$721)","v":0},null,null,null,null,null,null,null,null,null,null,null,null,null,null,null,null,null,null,null,null,null,null,null,"Consol, EFA/DfE Receivables Note",null,null,null,null,null,2,null,null,null,null,null,0]
[null,"Balances with NHS Trusts",null,null,{"$f":"SUMIF(CoPty.Return!$D$29:$D$721,\"NHS\",CoPty.Return!$U$29:$U$721)+SUMIF(CoPty.Return!$D$29:$D$721,\"NHS\",CoPty.Return!$V$29:$V$721)+SUMIF(CoPty.Return!$D$29:$D$721,\"NHS\",CoPty.Return!$W$29:$W$721)+SUMIF(CoPty.Return!$D$29:$D$721,\"NHS\",CoPty.Return!$X$29:$X$721)+SUMIF(CoPty.Return!$D$29:$D$721,\"NHS\",CoPty.Return!$Y$29:$Y$721)","v":0},null,{"$f":"SUMIF(CoPty.Return!$D$29:$D$721,\"NHS\",CoPty.Return!$AA$29:$AA$721)+SUMIF(CoPty.Return!$D$29:$D$721,\"NHS\",CoPty.Return!$AB$29:$AB$721)+SUMIF(CoPty.Return!$D$29:$D$721,\"NHS\",CoPty.Return!$AC$29:$AC$721)+SUMIF(CoPty.Return!$D$29:$D$721,\"NHS\",CoPty.Return!$AD$29:$AD$721)","v":0},null,null,null,null,null,null,null,null,null,null,null,null,null,null,null,null,null,null,null,null,null,null,null,"Consol, EFA/DfE Receivables Note",null,null,null,null,null,2,null,null,null,null,null,0]
[null,"Balances with public corporations and trading funds",null,null,{"$f":"SUMIF(CoPty.Return!$D$29:$D$721,\"PCs\",CoPty.Return!$U$29:$U$721)+SUMIF(CoPty.Return!$D$29:$D$721,\"PCs\",CoPty.Return!$V$29:$V$721)+SUMIF(CoPty.Return!$D$29:$D$721,\"PCs\",CoPty.Return!$W$29:$W$721)+SUMIF(CoPty.Return!$D$29:$D$721,\"PCs\",CoPty.Return!$X$29:$X$721)+SUMIF(CoPty.Return!$D$29:$D$721,\"PCs\",CoPty.Return!$Y$29:$Y$721)","v":0},null,{"$f":"SUMIF(CoPty.Return!$D$29:$D$721,\"PCs\",CoPty.Return!$AA$29:$AA$721)+SUMIF(CoPty.Return!$D$29:$D$721,\"PCs\",CoPty.Return!$AB$29:$AB$721)+SUMIF(CoPty.Return!$D$29:$D$721,\"PCs\",CoPty.Return!$AC$29:$AC$721)+SUMIF(CoPty.Return!$D$29:$D$721,\"PCs\",CoPty.Return!$AD$29:$AD$721)","v":0},null,null,null,null,null,null,null,null,null,null,null,null,null,null,null,null,null,null,null,null,null,null,null,"Consol, EFA/DfE Receivables Note",null,null,null,null,null,2,null,null,null,null,null,0]
[]
[null,null,null,null,{"$f":"SUM(E623:E635)","v":0},null,{"$f":"SUM(G623:G635)","v":0}]
[null,"Balances with bodies external to government",null,null,{"$f":"E639-E636","v":0},null,{"$f":"G639-G636","v":0},null,null,null,null,null,null,null,null,null,null,null,null,null,null,null,null,null,null,null,null,null,null,null,"Consol, EFA/DfE Receivables Note",null,null,null,null,null,2,null,null,null,null,null,{"$f":"COUNTIF(E637:E637,\"<>0\")+COUNTIF(G637:G637,\"<>0\")","v":0}]
[]
[null,null,null,null,{"$f":"E617","v":0},null,{"$f":"G617","v":0},null,null,null,null,null,null,null,null,null,null,null,null,null,null,null,null,null,null,null,null,null,null,null,null,null,null,null,null,null,2,null,null,null,null,null,{"$f":"COUNTIF(E639:E639,\"<>0\")+COUNTIF(G639:G639,\"<>0\")","v":0}]
[]
[]
["INVESTMENTS - CURRENT",null,null,null,"Total",null,"Subsidiaries \nat cost","Securities \nat cost","Other\nat cost","Securities \nat fair value","Financial instruments \nat fair value","Other \nat fair value",null,"Lower limit","Upper limit "]
["Balance sheet",null,null,null,"£000",null,"£000","£000","£000","£000","£000","£000",null,"£000","£000"]
[null,"Opening balance",null,null,{"$f":"SUM(G644:L644)","v":0},null,null,null,null,null,null,null,null,null,{"$f":"$J$65","v":750000},null,null,null,null,null,null,null,null,null,null,null,null,null,null,null,"Consol, EFA/DfE Investments Note",null,6,null,null,null,null,null,{"$f":"COUNTA(G644:L644)","v":0}]
[null,"Additions",null,null,{"$f":"SUM(G645:L645)","v":0},null,null,null,null,null,null,null,null,0,{"$f":"O644","v":750000},null,null,null,null,null,null,null,null,null,null,null,null,null,null,null,"Consol, EFA/DfE Investments Note",null,6,null,null,null,null,null,0]
[null,"Reclassification from fixed asset investments",null,null,0,null,null,null,null,null,null,null,null,{"$f":"N645","v":0},750000,null,null,null,null,null,null,null,null,null,null,null,null,null,null,null,"Consol, EFA/DfE Investments Note",null,6,null,null,null,null,null,0]
[null,"Transferred in on conversion - local authority",null,null,0,null,null,null,null,null,null,null,null,0,750000,null,null,null,null,null,null,null,null,null,null,null,null,null,null,null,"Consol, EFA/DfE Investments Note",null,6,null,null,null,null,null,0]
[null,"Transferred in on conversion - elsewhere",null,null,0,null,null,null,null,null,null,null,null,0,750000,null,null,null,null,null,null,null,null,null,null,null,null,null,null,null,null,null,6,null,null,null,null,null,0]
[null,"Disposals",null,null,0,null,null,null,null,null,null,null,null,{"$f":"$I$91","v":-750000},0,null,null,null,null,null,null,null,null,null,null,null,null,null,null,null,"Consol, EFA/DfE Investments Note",null,6,null,null,null,null,null,0]
[null,"Reclassification to fixed asset investments",null,null,0,null,null,null,null,null,null,null,null,{"$f":"N649","v":-750000},0,null,null,null,null,null,null,null,null,null,null,null,null,null,null,null,null,null,6,null,null,null,null,null,0]
["SoFA","Period end fair value gain/(loss)",null,null,0,null,null,null,null,null,null,null,null,{"$f":"N650","v":-750000},{"$f":"O648","v":750000},null,null,null,null,null,null,null,null,null,null,null,null,null,null,null,"Consol, EFA/DfE Investments Note",null,3,null,null,null,null,null,{"$f":"COUNTA(J651:L651)","v":0}]
[null,"Impairment",null,null,0,null,null,null,null,null,null,null,null,{"$f":"N651","v":-750000},{"$f":"O651","v":750000},null,null,null,null,null,null,null,null,null,null,null,null,null,null,null,"Consol, EFA/DfE Investments Note",null,6,null,null,null,null,null,0]
[]
[null,"Closing balance",null,{"$f":"IF(E654<>SUM(E644:E653),\"Error - column does not cast\",\"\")","v":""},{"$f":"E74","v":0},null,{"$f":"SUM(G644:G653)","v":0},{"$f":"SUM(H644:H653)","v":0},0,0,0,0,null,null,null,null,null,null,null,null,null,null,null,null,null,null,null,null,null,null,null,null,null,null,null,null,1,null,null,null,null,null,{"$f":"COUNTIF(E654:E654,\"<>0\")","v":0}]
[null,null,null,{"$f":"IF(D654<>\"\",\"Error -Total does not agree - cell E74\",\"\")","v":""},null,null,{"$f":"IF(G654<0,\"Error - credit bal.\",\"\")","v":""},{"$f":"IF(H654<0,\"Error - credit bal.\",\"\")","v":""},"","","",""]
[null,"Please describe 'Others' below"]
[null,null,null,null,null,null,null,null,null,null,null,null,null,null,null,null,null,null,null,null,null,null,null,null,null,null,null,null,null,null,null,null,null,1]
[]
[]
["CASH AT BANK AND IN HAND",null,null,null,{"$f":"E62","v":2014},null,"Lower limit","Upper limit "]
["Balance sheet",null,null,null,"£000",null,"£000","£000"]
[null,"Amounts held by commercial banks",null,"Notes",null,null,0,{"$f":"$J$65","v":750000},null,null,null,null,null,null,null,null,null,null,null,null,null,null,null,null,null,null,null,null,null,null,"Consol, EFA/DfE Cash Note",null,1,null,null,null,null,null,null,null,{"$f":"COUNTA(E662:E662)","v":0}]
[null,"Amounts held by the Government Banking Service",null,null,null,null,{"$f":"G662","v":0},{"$f":"H662","v":750000},null,null,null,null,null,null,null,null,null,null,null,null,null,null,null,null,null,null,null,null,null,null,"Consol, EFA/DfE Cash Note",null,1,null,null,null,null,null,null,null,{"$f":"COUNTA(E663:E663)","v":0}]
[]
[null,null,null,null,{"$f":"SUM(E662:E664)","v":0}]
[null,"Petty cash",null,null,null,null,{"$f":"G665","v":0},{"$f":"H663","v":750000},null,null,null,null,null,null,null,null,null,null,null,null,null,null,null,null,null,null,null,null,null,null,"Consol, EFA/DfE Cash Note",null,1,null,null,null,null,null,{"$f":"COUNTA(E666:E666)","v":0}]
[]
[null,null,null,{"$f":"IF(E668<>SUM(E665:E667),\"Error - column does not cast\",\"\")","v":""},{"$f":"E75","v":0},null,null,null,null,null,null,null,null,null,null,null,null,null,null,null,null,null,null,null,null,null,null,null,null,null,null,null,null,null,null,null,1,null,null,null,null,null,{"$f":"COUNTIF(E668:E668,\"<>0\")","v":0}]
[null,null,null,{"$f":"IF(D668<>\"\",\"Error - Total does not agree - cell E75\",\"\")","v":""}]
[]
["CREDITORS: AMOUNTS DUE WITHIN ONE YEAR",null,null,null,{"$f":"E62","v":2014},null,"Lower limit","Upper limit "]
["Balance sheet",null,null,null,"£000",null,"£000","£000"]
[null,"Bank overdrafts",null,null,null,null,0,{"$f":"-$I$91","v":750000},null,null,null,null,null,null,null,null,null,null,null,null,null,null,null,null,null,null,null,null,null,null,"Consol, EFA/DfE Payables Note",null,1,null,null,null,null,null,{"$f":"COUNTA(E673:E673)","v":0}]
[null,"Loans",null,null,null,null,{"$f":"G673","v":0},{"$f":"H673","v":750000},null,null,null,null,null,null,null,null,null,null,null,null,null,null,null,null,null,null,null,null,null,null,"Consol, EFA/DfE Payables Note",null,1,null,null,null,null,null,0]
[null,"Trade creditors",null,null,null,null,{"$f":"G674","v":0},{"$f":"H674","v":750000},null,null,null,null,null,null,null,null,null,null,null,null,null,null,null,null,null,null,null,null,null,null,"Consol, EFA/DfE Payables Note",null,1,null,null,null,null,null,0]
[null,"Amounts owed to group undertakings",null,null,null,null,0,750000,null,null,null,null,null,null,null,null,null,null,null,null,null,null,null,null,null,null,null,null,null,null,"Consol, EFA/DfE Payables Note",null,1,null,null,null,null,null,0]
[null,"Other taxes and social security",null,null,null,null,0,750000,null,null,null,null,null,null,null,null,null,null,null,null,null,null,null,null,null,null,null,null,null,null,"Consol, EFA/DfE Payables Note",null,1,null,null,null,null,null,0]
[null,"Finance leases",null,null,null,null,0,750000,null,null,null,null,null,null,null,null,null,null,null,null,null,null,null,null,null,null,null,null,null,null,"Consol, EFA/DfE Payables Note",null,1,null,null,null,null,null,0]
[null,"VAT",null,null,null,null,0,750000,null,null,null,null,null,null,null,null,null,null,null,null,null,null,null,null,null,null,null,null,null,null,"Consol, EFA/DfE Payables Note",null,1,null,null,null,null,null,0]
[null,"Other creditors",null,null,null,null,0,750000,null,null,null,null,null,null,null,null,null,null,null,null,null,null,null,null,null,null,null,null,null,null,"Consol, EFA/DfE Payables Note",null,1,null,null,null,null,null,0]
[null,"Corporation tax",null,null,null,null,0,750000,null,null,null,null,null,null,null,null,null,null,null,null,null,null,null,null,null,null,null,null,null,null,"Consol, EFA/DfE Payables Note",null,1,null,null,null,null,null,0]
[null,"Accruals and deferred income",null,null,null,null,0,750000,null,null,null,null,null,null,null,null,null,null,null,null,null,null,null,null,null,null,null,null,null,null,"Consol, EFA/DfE Payables Note",null,1,null,null,null,null,null,0]
[]
[null,null,null,{"$f":"IF(E684<>SUM(E673:E683),\"Error - column does not cast\",\"\")","v":""},{"$f":"-E78","v":0},null,null,null,null,null,null,null,null,null,null,null,null,null,null,null,null,null,null,null,null,null,null,null,null,null,null,null,null,null,null,null,1,null,null,null,null,null,{"$f":"COUNTIF(E684:E684,\"<>0\")","v":0}]
[null,null,null,{"$f":"IF(D684<>\"\",\"Error -Total does not agree - cell E78\",\"\")","v":""}]
[null,"Deferred income analysis"]
[null,null,"Deferred income at start of period",null,null,null,{"$f":"G682","v":0},{"$f":"H682","v":750000},null,null,null,null,null,null,null,null,null,null,null,null,null,null,null,null,null,null,null,null,null,null,"Consol, EFA/DfE Payables Note",null,1,null,null,null,null,null,{"$f":"COUNTA(E687:E687)","v":0}]
[null,null,"Resources deferred in the period",null,null,null,{"$f":"G683","v":0},{"$f":"H687","v":750000},null,null,null,null,null,null,null,null,null,null,null,null,null,null,null,null,null,null,null,null,null,null,"Consol, EFA/DfE Payables Note",null,1,null,null,null,null,null,{"$f":"COUNTA(E688:E688)","v":0}]
[null,null,"Amounts released from previous years",null,null,null,{"$f":"-H688","v":-750000},0,null,null,null,null,null,null,null,null,null,null,null,null,null,null,null,null,null,null,null,null,null,null,"Consol, EFA/DfE Payables Note",null,1,null,null,null,null,null,{"$f":"COUNTA(E689:E689)","v":0}]
[]
[null,null,"Deferred income at close of period",null,{"$f":"SUM(E687:E690)","v":0}]
[]
[]
[null,"Counter-party analysis"]
[null,null,null,null,"Total"]
[null,"Balances with central government bodies",null,null,"£000"]
[null,null,"DfE Family:"]
[null,null,"EFA","Notes",{"$f":"-SUM(CoPty.Return!AF23:AM23)","v":0},null,null,null,null,null,null,null,null,null,null,null,null,null,null,null,null,null,null,null,null,null,null,null,null,null,null,null,null,null,null,null,1,null,null,null,null,null,{"$f":"COUNTIF(E698:E698,\"<>0\")","v":0}]
[null,null,"DfE",null,{"$f":"-SUM(CoPty.Return!AF22:AM22)","v":0},null,null,null,null,null,null,null,null,null,null,null,null,null,null,null,null,null,null,null,null,null,null,null,null,null,null,null,null,null,null,null,1,null,null,null,null,null,{"$f":"COUNTIF(E699:E699,\"<>0\")","v":0}]
[null,null,"TA",null,{"$f":"-SUM(CoPty.Return!AF24:AM24)","v":0},null,null,null,null,null,null,null,null,null,null,null,null,null,null,null,null,null,null,null,null,null,null,null,null,null,null,null,null,null,null,null,1,null,null,null,null,null,0]
[null,null,"NCTL",null,{"$f":"-SUM(CoPty.Return!AF25:AM25)","v":0},null,null,null,null,null,null,null,null,null,null,null,null,null,null,null,null,null,null,null,null,null,null,null,null,null,null,null,null,null,null,null,1,null,null,null,null,null,0]
[null,null,"STA",null,{"$f":"-SUM(CoPty.Return!AF26:AM26)","v":0},null,null,null,null,null,null,null,null,null,null,null,null,null,null,null,null,null,null,null,null,null,null,null,null,null,null,null,null,null,null,null,1,null,null,null,null,null,0]
[null,null,"CAFCASS",null,{"$f":"-SUM(CoPty.Return!AF28:AM28)","v":0},null,null,null,null,null,null,null,null,null,null,null,null,null,null,null,null,null,null,null,null,null,null,null,null,null,null,null,null,null,null,null,1,null,null,null,null,null,0]
[null,null,"OCC",null,{"$f":"-SUM(CoPty.Return!AF27:AM27)","v":0},null,null,null,null,null,null,null,null,null,null,null,null,null,null,null,null,null,null,null,null,null,null,null,null,null,null,null,null,null,null,null,1,null,null,null,null,null,0]
[null,null,"Other Government bodies",null,{"$f":"-SUMIF(CoPty.Return!$D$29:$D$721,\"CenGov't\",CoPty.Return!$AF$29:$AF$721)-SUMIF(CoPty.Return!$D$29:$D$721,\"CenGov't\",CoPty.Return!$AG$29:$AG$721)-SUMIF(CoPty.Return!$D$29:$D$721,\"CenGov't\",CoPty.Return!$AH$29:$AH$721)-SUMIF(CoPty.Return!$D$29:$D$721,\"CenGov't\",CoPty.Return!$AI$29:$AI$721)-SUMIF(CoPty.Return!$D$29:$D$721,\"CenGov't\",CoPty.Return!$AJ$29:$AJ$721)-SUMIF(CoPty.Return!$D$29:$D$721,\"CenGov't\",CoPty.Return!$AK$29:$AK$721)-SUMIF(CoPty.Return!$D$29:$D$721,\"CenGov't\",CoPty.Return!$AL$29:$AL$721)-SUMIF(CoPty.Return!$D$29:$D$721,\"CenGov't\",CoPty.Return!$AM$29:$AM$721)","v":0},null,null,null,null,null,null,null,null,null,null,null,null,null,null,null,null,null,null,null,null,null,null,null,null,null,null,null,null,null,null,null,1,null,null,null,null,null,0]
[null,null,"Academies","Notes",{"$f":"-SUMIF(CoPty.Return!$D$29:$D$721,\"Academy\",CoPty.Return!$AF$29:$AF$721)-SUMIF(CoPty.Return!$D$29:$D$721,\"Academy\",CoPty.Return!$AG$29:$AG$721)-SUMIF(CoPty.Return!$D$29:$D$721,\"Academy\",CoPty.Return!$AH$29:$AH$721)-SUMIF(CoPty.Return!$D$29:$D$721,\"Academy\",CoPty.Return!$AI$29:$AI$721)-SUMIF(CoPty.Return!$D$29:$D$721,\"Academy\",CoPty.Return!$AJ$29:$AJ$721)-SUMIF(CoPty.Return!$D$29:$D$721,\"Academy\",CoPty.Return!$AK$29:$AK$721)-SUMIF(CoPty.Return!$D$29:$D$721,\"Academy\",CoPty.Return!$AL$29:$AL$721)-SUMIF(CoPty.Return!$D$29:$D$721,\"Academy\",CoPty.Return!$AM$29:$AM$721)","v":0},null,null,null,null,null,null,null,null,null,null,null,null,null,null,null,null,null,null,null,null,null,null,null,null,null,null,null,null,null,null,null,1,null,null,null,null,null,0]
[null,"Balances with local authorities",null,null,{"$f":"-SUMIF(CoPty.Return!$D$29:$D$721,\"LocGov't\",CoPty.Return!$AF$29:$AF$721)-SUMIF(CoPty.Return!$D$29:$D$721,\"LocGov't\",CoPty.Return!$AG$29:$AG$721)-SUMIF(CoPty.Return!$D$29:$D$721,\"LocGov't\",CoPty.Return!$AH$29:$AH$721)-SUMIF(CoPty.Return!$D$29:$D$721,\"LocGov't\",CoPty.Return!$AI$29:$AI$721)-SUMIF(CoPty.Return!$D$29:$D$721,\"LocGov't\",CoPty.Return!$AJ$29:$AJ$721)-SUMIF(CoPty.Return!$D$29:$D$721,\"LocGov't\",CoPty.Return!$AK$29:$AK$721)-SUMIF(CoPty.Return!$D$29:$D$721,\"LocGov't\",CoPty.Return!$AL$29:$AL$721)-SUMIF(CoPty.Return!$D$29:$D$721,\"LocGov't\",CoPty.Return!$AM$29:$AM$721)","v":0},null,null,null,null,null,null,null,null,null,null,null,null,null,null,null,null,null,null,null,null,null,null,null,null,null,null,null,null,null,null,null,1,null,null,null,null,null,0]
[null,"Balances with NHS Trusts",null,null,{"$f":"-SUMIF(CoPty.Return!$D$29:$D$721,\"NHS\",CoPty.Return!$AF$29:$AF$721)-SUMIF(CoPty.Return!$D$29:$D$721,\"NHS\",CoPty.Return!$AG$29:$AG$721)-SUMIF(CoPty.Return!$D$29:$D$721,\"NHS\",CoPty.Return!$AH$29:$AH$721)-SUMIF(CoPty.Return!$D$29:$D$721,\"NHS\",CoPty.Return!$AI$29:$AI$721)-SUMIF(CoPty.Return!$D$29:$D$721,\"NHS\",CoPty.Return!$AJ$29:$AJ$721)-SUMIF(CoPty.Return!$D$29:$D$721,\"NHS\",CoPty.Return!$AK$29:$AK$721)-SUMIF(CoPty.Return!$D$29:$D$721,\"NHS\",CoPty.Return!$AL$29:$AL$721)-SUMIF(CoPty.Return!$D$29:$D$721,\"NHS\",CoPty.Return!$AM$29:$AM$721)","v":0},null,null,null,null,null,null,null,null,null,null,null,null,null,null,null,null,null,null,null,null,null,null,null,null,null,null,null,null,null,null,null,1,null,null,null,null,null,0]
[null,"Balances with public corporations and trading funds",null,null,{"$f":"-SUMIF(CoPty.Return!$D$29:$D$721,\"PCs\",CoPty.Return!$AF$29:$AF$721)-SUMIF(CoPty.Return!$D$29:$D$721,\"PCs\",CoPty.Return!$AG$29:$AG$721)-SUMIF(CoPty.Return!$D$29:$D$721,\"PCs\",CoPty.Return!$AH$29:$AH$721)-SUMIF(CoPty.Return!$D$29:$D$721,\"PCs\",CoPty.Return!$AI$29:$AI$721)-SUMIF(CoPty.Return!$D$29:$D$721,\"PCs\",CoPty.Return!$AJ$29:$AJ$721)-SUMIF(CoPty.Return!$D$29:$D$721,\"PCs\",CoPty.Return!$AK$29:$AK$721)-SUMIF(CoPty.Return!$D$29:$D$721,\"PCs\",CoPty.Return!$AL$29:$AL$721)-SUMIF(CoPty.Return!$D$29:$D$721,\"PCs\",CoPty.Return!$AM$29:$AM$721)","v":0},null,null,null,null,null,null,null,null,null,null,null,null,null,null,null,null,null,null,null,null,null,null,null,null,null,null,null,null,null,null,null,1,null,null,null,null,null,0]
[]
[null,null,null,null,{"$f":"SUM(E698:E710)","v":0}]
[null,"Balances with bodies external to government",null,null,{"$f":"E714-E711","v":0},null,null,null,null,null,null,null,null,null,null,null,null,null,null,null,null,null,null,null,null,null,null,null,null,null,null,null,null,null,null,null,1,null,null,null,null,null,{"$f":"COUNTIF(E712:E712,\"<>0\")","v":0}]
[]
[null,null,null,{"$f":"IF(E714<>SUM(E711:E713),\"Error - column does not cast\",\"\")","v":""},{"$f":"E684","v":0},null,null,null,null,null,null,null,null,null,null,null,null,null,null,null,null,null,null,null,null,null,null,null,null,null,null,null,null,null,null,null,1,null,null,null,null,null,{"$f":"COUNTIF(E714:E714,\"<>0\")","v":0}]
[null,null,null,{"$f":"IF(D714<>\"\",\"Total does not agree - cell E76\",\"\")","v":""}]
[]
["CREDITORS: AMOUNTS DUE AFTER MORE THAN ONE YEAR",null,null,null,{"$f":"E62","v":2014},null,"Lower limit","Upper limit "]
["Balance sheet",null,null,null,"£000",null,"£000","£000"]
[null,"Loans",null,null,null,null,0,{"$f":"-$I$91","v":750000},null,null,null,null,null,null,null,null,null,null,null,null,null,null,null,null,null,null,null,null,null,null,"Consol, EFA/DfE Payables Note",null,1,null,null,null,null,null,{"$f":"COUNTA(E719:E719)","v":0}]
[null,"Amounts owed to group undertakings",null,null,null,null,{"$f":"G719","v":0},{"$f":"H719","v":750000},null,null,null,null,null,null,null,null,null,null,null,null,null,null,null,null,null,null,null,null,null,null,"Consol, EFA/DfE Payables Note",null,1,null,null,null,null,null,{"$f":"COUNTA(E720:E720)","v":0}]
[null,"Finance leases",null,null,null,null,{"$f":"G720","v":0},{"$f":"H720","v":750000},null,null,null,null,null,null,null,null,null,null,null,null,null,null,null,null,null,null,null,null,null,null,"Consol, EFA/DfE Payables Note",null,1,null,null,null,null,null,{"$f":"COUNTA(E721:E721)","v":0}]
[null,"Other creditors",null,null,null,null,0,750000,null,null,null,null,null,null,null,null,null,null,null,null,null,null,null,null,null,null,null,null,null,null,"Consol, EFA/DfE Payables Note",null,1,null,null,null,null,null,{"$f":"COUNTA(E722:E722)","v":0}]
[null,"Deferred tax",null,null,null,null,0,750000,null,null,null,null,null,null,null,null,null,null,null,null,null,null,null,null,null,null,null,null,null,null,"Consol, EFA/DfE Payables Note",null,1,null,null,null,null,null,{"$f":"COUNTA(E723:E723)","v":0}]
[]
[null,null,null,{"$f":"IF(E725<>SUM(E719:E724),\"Error - column does not cast\",\"\")","v":""},{"$f":"-G83","v":0},null,null,null,null,null,null,null,null,null,null,null,null,null,null,null,null,null,null,null,null,null,null,null,null,null,null,null,null,null,null,null,1,null,null,null,null,null,{"$f":"COUNTIF(E725:E725,\"<>0\")","v":0}]
[null,null,null,{"$f":"IF(D725<>\"\",\"Error - Total does not agree - cell G83\",\"\")","v":""}]
[null,"Loan maturity analysis:"]
[null,null,"Within one year",null,{"$f":"E674","v":0},null,{"$f":"G723","v":0},{"$f":"H723","v":750000},null,null,null,null,null,null,null,null,null,null,null,null,null,null,null,null,null,null,null,null,null,null,"Consol, EFA/DfE Payables Note",null,null,null,null,null,1,null,null,null,null,null,{"$f":"COUNTIF(E728:E728,\"<>0\")","v":0}]
[null,null,"Between two and five years",null,null,null,{"$f":"G728","v":0},{"$f":"H728","v":750000},null,null,null,null,null,null,null,null,null,null,null,null,null,null,null,null,null,null,null,null,null,null,"Consol, EFA/DfE Payables Note",null,1,null,null,null,null,null,null,null,{"$f":"COUNTA(E729:E729)","v":0}]
[null,null,"After more than five years",null,null,null,{"$f":"G729","v":0},{"$f":"H729","v":750000},null,null,null,null,null,null,null,null,null,null,null,null,null,null,null,null,null,null,null,null,null,null,"Consol, EFA/DfE Payables Note",null,1,null,null,null,null,null,null,null,{"$f":"COUNTA(E730:E730)","v":0}]
[]
[null,null,null,{"$f":"IF(E732<>(E674+E719),\"Error - imbalance within note\",\"\")","v":""},{"$f":"SUM(E728:E731)","v":0}]
[null,null,null,{"$f":"IF(D732<>\"\",\"Error - total does agree - E674 & E719\",\"\")","v":""}]
[null,"Counter-party analysis",null,null,"Amounts due after more than one year"]
[null,null,null,null,"£000"]
[null,"Balances with central government bodies"]
[null,null,"DfE Family:"]
[null,null,"EFA","Notes",{"$f":"-SUM(CoPty.Return!AO23:AQ23)","v":0},null,null,null,null,null,null,null,null,null,null,null,null,null,null,null,null,null,null,null,null,null,null,null,null,null,"Consol, EFA/DfE Payables Note",null,null,null,null,null,1,null,null,null,null,null,{"$f":"COUNTIF(E738:E738,\"<>0\")","v":0}]
[null,null,"DfE",null,{"$f":"-SUM(CoPty.Return!AO22:AQ22)","v":0},null,null,null,null,null,null,null,null,null,null,null,null,null,null,null,null,null,null,null,null,null,null,null,null,null,"Consol, EFA/DfE Payables Note",null,null,null,null,null,1,null,null,null,null,null,{"$f":"COUNTIF(E739:E739,\"<>0\")","v":0}]
[null,null,"TA",null,{"$f":"-SUM(CoPty.Return!AO24:AQ24)","v":0},null,null,null,null,null,null,null,null,null,null,null,null,null,null,null,null,null,null,null,null,null,null,null,null,null,"Consol, EFA/DfE Payables Note",null,null,null,null,null,1,null,null,null,null,null,0]
[null,null,"NCTL",null,{"$f":"-SUM(CoPty.Return!AO25:AQ25)","v":0},null,null,null,null,null,null,null,null,null,null,null,null,null,null,null,null,null,null,null,null,null,null,null,null,null,"Consol, EFA/DfE Payables Note",null,null,null,null,null,1,null,null,null,null,null,0]
[null,null,"STA",null,{"$f":"-SUM(CoPty.Return!AO26:AQ26)","v":0},null,null,null,null,null,null,null,null,null,null,null,null,null,null,null,null,null,null,null,null,null,null,null,null,null,"Consol, EFA/DfE Payables Note",null,null,null,null,null,1,null,null,null,null,null,0]
[null,null,"CAFCASS",null,{"$f":"-SUM(CoPty.Return!AO28:AQ28)","v":0},null,null,null,null,null,null,null,null,null,null,null,null,null,null,null,null,null,null,null,null,null,null,null,null,null,"Consol, EFA/DfE Payables Note",null,null,null,null,null,1,null,null,null,null,null,0]
[null,null,"OCC",null,{"$f":"-SUM(CoPty.Return!AO27:AQ27)","v":0},null,null,null,null,null,null,null,null,null,null,null,null,null,null,null,null,null,null,null,null,null,null,null,null,null,"Consol, EFA/DfE Payables Note",null,null,null,null,null,1,null,null,null,null,null,0]
[null,null,"Other Government bodies",null,{"$f":"-SUMIF(CoPty.Return!$D$29:$D$721,\"CenGov't\",CoPty.Return!$AO$29:$AO$721)-SUMIF(CoPty.Return!$D$29:$D$721,\"CenGov't\",CoPty.Return!$AP$29:$AP$721)-SUMIF(CoPty.Return!$D$29:$D$721,\"CenGov't\",CoPty.Return!$AQ$29:$AQ$721)","v":0},null,null,null,null,null,null,null,null,null,null,null,null,null,null,null,null,null,null,null,null,null,null,null,null,null,"Consol, EFA/DfE Payables Note",null,null,null,null,null,1,null,null,null,null,null,0]
[null,null,"Academies","Notes",{"$f":"-SUMIF(CoPty.Return!$D$29:$D$721,\"Academy\",CoPty.Return!$AO$29:$AO$721)-SUMIF(CoPty.Return!$D$29:$D$721,\"Academy\",CoPty.Return!$AP$29:$AP$721)-SUMIF(CoPty.Return!$D$29:$D$721,\"Academy\",CoPty.Return!$AQ$29:$AQ$721)","v":0},null,null,null,null,null,null,null,null,null,null,null,null,null,null,null,null,null,null,null,null,null,null,null,null,null,"Consol, EFA/DfE Payables Note",null,null,null,null,null,1,null,null,null,null,null,0]
[null,"Balances with local authorities",null,null,{"$f":"-SUMIF(CoPty.Return!$D$29:$D$721,\"LocGov't\",CoPty.Return!$AO$29:$AO$721)-SUMIF(CoPty.Return!$D$29:$D$721,\"LocGov't\",CoPty.Return!$AP$29:$AP$721)-SUMIF(CoPty.Return!$D$29:$D$721,\"LocGov't\",CoPty.Return!$AQ$29:$AQ$721)","v":0},null,null,null,null,null,null,null,null,null,null,null,null,null,null,null,null,null,null,null,null,null,null,null,null,null,"Consol, EFA/DfE Payables Note",null,null,null,null,null,1,null,null,null,null,null,0]
[null,"Balances with NHS Trusts",null,null,{"$f":"-SUMIF(CoPty.Return!$D$29:$D$721,\"NHS\",CoPty.Return!$AO$29:$AO$721)-SUMIF(CoPty.Return!$D$29:$D$721,\"NHS\",CoPty.Return!$AP$29:$AP$721)-SUMIF(CoPty.Return!$D$29:$D$721,\"NHS\",CoPty.Return!$AQ$29:$AQ$721)","v":0},null,null,null,null,null,null,null,null,null,null,null,null,null,null,null,null,null,null,null,null,null,null,null,null,null,"Consol, EFA/DfE Payables Note",null,null,null,null,null,1,null,null,null,null,null,0]
[null,"Balances with public corporations and trading funds",null,null,{"$f":"-SUMIF(CoPty.Return!$D$29:$D$721,\"PCs\",CoPty.Return!$AO$29:$AO$721)-SUMIF(CoPty.Return!$D$29:$D$721,\"PCs\",CoPty.Return!$AP$29:$AP$721)-SUMIF(CoPty.Return!$D$29:$D$721,\"PCs\",CoPty.Return!$AQ$29:$AQ$721)","v":0},null,null,null,null,null,null,null,null,null,null,null,null,null,null,null,null,null,null,null,null,null,null,null,null,null,"Consol, EFA/DfE Payables Note",null,null,null,null,null,1,null,null,null,null,null,0]
[]
[null,null,null,null,{"$f":"SUM(E738:E750)","v":0}]
[null,"Balances with bodies external to government",null,null,{"$f":"E754-E751","v":0},null,null,null,null,null,null,null,null,null,null,null,null,null,null,null,null,null,null,null,null,null,null,null,null,null,"Consol, EFA/DfE Payables Note",null,null,null,null,null,1,null,null,null,null,null,{"$f":"COUNTIF(E752:E752,\"<>0\")","v":0}]
[]
[null,null,null,null,{"$f":"E725","v":0},null,null,null,null,null,null,null,null,null,null,null,null,null,null,null,null,null,null,null,null,null,null,null,null,null,null,null,null,null,null,null,1,null,null,null,null,null,{"$f":"COUNTIF(E754:E754,\"<>0\")","v":0}]
[]
[]
["PROVISIONS FOR LIABILITIES AND CHARGES\nPlease analyse out the provisions balance into the classes provided.",null,null,null,"Total",null,"Property","Early Departure Costs","Retirement Compensation","Other",null,null,"Lower limit","Upper limit "]
["Balance sheet",null,null,null,"£000",null,"£000","£000","£000","£000",null,null,"£000","£000"]
[null,"Opening balance",null,{"$f":"IF(E759<>SUM(G759:J759),\"Error - row does not cross cast\",\"\")","v":""},{"$f":"+SUM(G759:J759)","v":0},null,null,null,null,null,"Notes",null,0,{"$f":"-$I$91","v":750000},null,null,null,null,null,null,null,null,null,null,null,null,null,null,null,null,"Consol, EFA/DfE Provisions Note",null,4,null,null,null,null,null,{"$f":"COUNTA(G759:J759)","v":0},null,{"$f":"COUNTA(G759:J759)","v":0}]
[null,"Charged in the period",null,{"$f":"IF(E760<>SUM(G760:J760),\"Error - row does not cross cast\",\"\")","v":""},{"$f":"+SUM(G760:J760)","v":0},null,null,null,null,null,null,null,{"$f":"M759","v":0},{"$f":"N759","v":750000},null,null,null,null,null,null,null,null,null,null,null,null,null,null,null,null,"Consol, EFA/DfE Provisions Note",null,4,null,null,null,null,null,{"$f":"COUNTA(G760:J760)","v":0},null,{"$f":"COUNTA(G760:J760)","v":0}]
[null,"Utilised in the period",null,"",0,null,null,null,null,null,null,null,{"$f":"-N760","v":-750000},0,null,null,null,null,null,null,null,null,null,null,null,null,null,null,null,null,"Consol, EFA/DfE Provisions Note",null,4,null,null,null,null,null,{"$f":"COUNTA(G761:J761)","v":0},null,{"$f":"COUNTA(G761:J761)","v":0}]
[null,"Released in the period",null,"",0,null,null,null,null,null,null,null,{"$f":"M761","v":-750000},{"$f":"N761","v":0},null,null,null,null,null,null,null,null,null,null,null,null,null,null,null,null,"Consol, EFA/DfE Provisions Note",null,4,null,null,null,null,null,0,null,{"$f":"COUNTA(G762:J762)","v":0}]
[]
[null,"Closing balance",null,{"$f":"IF(E764<>SUM(E759:E763),\"Error - column does not cast\",\"\")","v":""},{"$f":"-G84","v":0},null,{"$f":"SUM(G759:G763)","v":0},{"$f":"SUM(H759:H763)","v":0},{"$f":"SUM(I759:I763)","v":0},{"$f":"SUM(J759:J763)","v":0},null,null,null,null,null,null,null,null,null,null,null,null,null,null,null,null,null,null,null,null,null,null,null,null,null,null,1,null,null,null,null,null,{"$f":"COUNTIF(E764:E764,\"<>0\")","v":0}]
[null,null,null,{"$f":"IF(D764<>\"\",\"Error - Total does not agree - cell G84\",\"\")","v":""},null,null,{"$f":"IF(G764<0,\"Error - debit bal.\",\"\")","v":""},{"$f":"IF(H764<0,\"Error - debit bal.\",\"\")","v":""},"",""]
[]
[null,"Ageing of provisions",null,null,"Total",null,"Property","Early Departure Costs","Retirement Compensation","Other"]
[null,"Please analyse the closing balances of the provisions into maturity buckets.",null,null,"£000",null,"£000","£000","£000","£000"]
[null,null,"Within one year",null,{"$f":"SUM(G769:J769)","v":0},null,null,null,null,null,"Notes",null,0,{"$f":"N759","v":750000},null,null,null,null,null,null,null,null,null,null,null,null,null,null,null,null,"Consol, EFA/DfE Provisions Note",null,4,null,null,null,null,null,null,null,{"$f":"COUNTA(G769:J769)","v":0}]
[null,null,"Between two and five years",null,{"$f":"SUM(G770:J770)","v":0},null,null,null,null,null,null,null,{"$f":"M763","v":0},{"$f":"N769","v":750000},null,null,null,null,null,null,null,null,null,null,null,null,null,null,null,null,"Consol, EFA/DfE Provisions Note",null,4,null,null,null,null,null,null,null,{"$f":"COUNTA(G770:J770)","v":0}]
[null,null,"More than five years",null,0,null,null,null,null,null,null,null,0,750000,null,null,null,null,null,null,null,null,null,null,null,null,null,null,null,null,"Consol, EFA/DfE Provisions Note",null,4,null,null,null,null,null,null,null,{"$f":"COUNTA(G771:J771)","v":0}]
[]
[null,null,null,{"$f":"IF(E773<>SUM(E768:E772),\"Error - column does not cast\",\"\")","v":""},{"$f":"E764","v":0},null,{"$f":"SUM(G769:G772)","v":0},{"$f":"SUM(H769:H772)","v":0},{"$f":"SUM(I769:I772)","v":0},{"$f":"SUM(J769:J772)","v":0},null,null,null,null,null,null,null,null,null,null,null,null,null,null,null,null,null,null,null,null,null,null,null,null,null,null,1,null,null,null,null,null,{"$f":"COUNTIF(E773:E773,\"<>0\")","v":0}]
[null,null,null,{"$f":"IF(D773<>\"\",\"Error - Total does not agree - cell G84\",\"\")","v":""},null,null,{"$f":"IF(G773<>G764,\"Error - within note\",\"\")","v":""},{"$f":"IF(H773<>H764,\"Error - within note\",\"\")","v":""},"",""]
[null,null,"Describe Other here",null,null,null,{"$f":"IF(G774<>\"\",\"Error -Does not agree - G764\",\"\")","v":""},{"$f":"IF(H774<>\"\",\"Error - Does not agree - H764\",\"\")","v":""},{"$f":"IF(I774<>\"\",\"Error - Does not agree - I764\",\"\")","v":""},{"$f":"IF(J774<>\"\",\"Error - Does not agree - J764\",\"\")","v":""},null,null,null,null,null,null,null,null,null,null,null,null,null,null,null,null,null,null,null,null,null,null,null,null,1]
[]
[]
["FUNDS\nPlease analyse DfE grants between the different entities within the \nDfE Family.",null,null,null,"Balance at start of period",null,"Incoming Resources","Resources Expended","Gains, Losses and Transfers",null,"Balance at period end",null,"Lower limit","Upper limit "]
["Balance sheet",null,null,null,"£000",null,"£000","£000","£000",null,"£000",null,"£000","£000"]
[null,"Restricted General Fund(s)"]
[null,null,"EFA - General Annual Grant",null,null,null,null,null,null,null,{"$f":"SUM(E781:J781)","v":0},null,{"$f":"$L$20","v":-750000},{"$f":"$M$20","v":750000},null,null,null,null,null,null,null,null,null,null,null,null,null,null,null,null,"Consol, Reserves Note",null,4,null,null,null,null,null,{"$f":"COUNTA(E781:I781)","v":0}]
[null,null,"Other EFA grants",null,null,null,null,null,null,null,{"$f":"SUM(E782:J782)","v":0},null,{"$f":"M781","v":-750000},{"$f":"N781","v":750000},null,null,null,null,null,null,null,null,null,null,null,null,null,null,null,null,"Consol, Reserves Note",null,4,null,null,null,null,null,{"$f":"COUNTA(E782:I782)","v":0}]
[null,null,"DfE Family:"]
[null,null,"DfE","Notes",null,null,null,null,null,null,{"$f":"SUM(E784:J784)","v":0},null,{"$f":"M782","v":-750000},{"$f":"N782","v":750000},null,null,null,null,null,null,null,null,null,null,null,null,null,null,null,null,"Consol, Reserves Note",null,null,null,4,null,null,null,null,null,{"$f":"COUNTA(E784:I784)","v":0}]
[null,null,"TA",null,null,null,null,null,null,null,0,null,{"$f":"M784","v":-750000},{"$f":"N784","v":750000},null,null,null,null,null,null,null,null,null,null,null,null,null,null,null,null,"Consol, Reserves Note",null,null,null,4,null,null,null,null,null,0]
[null,null,"NCTL",null,null,null,null,null,null,null,0,null,{"$f":"M785","v":-750000},750000,null,null,null,null,null,null,null,null,null,null,null,null,null,null,null,null,"Consol, Reserves Note",null,null,null,4,null,null,null,null,null,0]
[null,null,"STA",null,null,null,null,null,null,null,0,null,-750000,750000,null,null,null,null,null,null,null,null,null,null,null,null,null,null,null,null,"Consol, Reserves Note",null,null,null,4,null,null,null,null,null,0]
[null,null,"CAFCASS",null,null,null,null,null,null,null,0,null,-750000,750000,null,null,null,null,null,null,null,null,null,null,null,null,null,null,null,null,"Consol, Reserves Note",null,null,null,4,null,null,null,null,null,0]
[null,null,"OCC",null,null,null,null,null,null,null,0,null,-750000,750000,null,null,null,null,null,null,null,null,null,null,null,null,null,null,null,null,"Consol, Reserves Note",null,null,null,4,null,null,null,null,null,0]
[null,null,"Provision for boarding activities",null,null,null,null,null,null,null,0,null,-750000,750000,null,null,null,null,null,null,null,null,null,null,null,null,null,null,null,null,"Consol, Reserves Note",null,4,null,null,null,null,null,{"$f":"COUNTA(E790:I790)","v":0}]
[null,null,"Other Government (local and central) grants",null,null,null,null,null,null,null,0,null,-750000,750000,null,null,null,null,null,null,null,null,null,null,null,null,null,null,null,null,"Consol, Reserves Note",null,4,null,null,null,null,null,{"$f":"COUNTA(E791:I791)","v":0}]
[]
[null,null,"Revaluations",null,null,null,null,null,null,null,{"$f":"SUM(E793:J793)","v":0},null,{"$f":"M791","v":-750000},{"$f":"N791","v":750000},null,null,null,null,null,null,null,null,null,null,null,null,null,null,null,null,"Consol, Reserves Note",null,4,null,null,null,null,null,{"$f":"COUNTA(E793:I793)","v":0}]
[null,null,"Other activities",null,null,null,null,null,null,null,0,{"$f":"IF(L796<>\"\",\"Error - Total does not agree - cell G94\",\"\")","v":""},{"$f":"M793","v":-750000},{"$f":"N793","v":750000},null,null,null,null,null,null,null,null,null,null,null,null,null,null,null,null,"Consol, Reserves Note",null,4,null,null,null,null,null,{"$f":"COUNTA(E794:I794)","v":0}]
[]
[null,null,null,null,{"$f":"SUM(E781:E795)","v":0},null,{"$f":"SUM(G781:G795)","v":0},{"$f":"SUM(H781:H795)","v":0},{"$f":"SUM(I781:I795)","v":0},null,{"$f":"G94","v":0},{"$f":"IF(K796<>SUM(E796:I796),\"Error - row does not cross cast\",\"\")","v":""},null,null,null,null,null,null,null,null,null,null,null,null,null,null,null,null,null,null,null,null,null,null,null,null,1,null,null,null,null,null,{"$f":"COUNTIF(K796:K796,\"<>0\")","v":0}]
[null,null,"Pension reserve",null,null,null,null,null,null,null,{"$f":"G95","v":0},"",{"$f":"M794","v":-750000},{"$f":"N794","v":750000},null,null,null,null,null,null,null,null,null,null,null,null,null,null,null,null,"Consol, Reserves Note",null,4,null,null,null,1,null,{"$f":"COUNTA(E797:I797)","v":0},null,null,null,{"$f":"COUNTIF(K796:K796,\"<>0\")","v":0}]
[]
[null,null,null,null,{"$f":"SUM(E796:E798)","v":0},null,{"$f":"SUM(G796:G798)","v":0},{"$f":"SUM(H796:H798)","v":0},{"$f":"SUM(I796:I798)","v":0},null,{"$f":"SUM(K796:K798)","v":0},{"$f":"IF(L797<>\"\",\"Error - Total does not agree - cell G95\",\"\")","v":""}]
[null,"Restricted Fixed Asset Fund(s)"]
[null,null,"EFA capital grants",null,null,null,null,null,null,null,{"$f":"SUM(E801:J801)","v":0},null,{"$f":"M797","v":-750000},{"$f":"N797","v":750000},null,null,null,null,null,null,null,null,null,null,null,null,null,null,null,null,"Consol, Reserves Note",null,4,null,null,null,null,null,{"$f":"COUNTA(E801:I801)","v":0}]
[null,null,"DfE Family:"]
[null,null,"DfE",null,null,null,null,null,null,null,{"$f":"SUM(E803:J803)","v":0},null,{"$f":"M801","v":-750000},{"$f":"N801","v":750000},null,null,null,null,null,null,null,null,null,null,null,null,null,null,null,null,"Consol, Reserves Note",null,null,null,4,null,null,null,null,null,{"$f":"COUNTA(E803:I803)","v":0}]
[null,null,"TA",null,null,null,null,null,null,null,0,null,{"$f":"M803","v":-750000},{"$f":"N803","v":750000},null,null,null,null,null,null,null,null,null,null,null,null,null,null,null,null,"Consol, Reserves Note",null,null,null,4,null,null,null,null,null,0]
[null,null,"NCTL",null,null,null,null,null,null,null,0,null,{"$f":"M804","v":-750000},750000,null,null,null,null,null,null,null,null,null,null,null,null,null,null,null,null,"Consol, Reserves Note",null,null,null,4,null,null,null,null,null,0]
[null,null,"STA",null,null,null,null,null,null,null,0,null,-750000,750000,null,null,null,null,null,null,null,null,null,null,null,null,null,null,null,null,"Consol, Reserves Note",null,null,null,4,null,null,null,null,null,0]
[null,null,"CAFCASS",null,null,null,null,null,null,null,0,null,-750000,750000,null,null,null,null,null,null,null,null,null,null,null,null,null,null,null,null,"Consol, Reserves Note",null,null,null,4,null,null,null,null,null,0]
[null,null,"OCC",null,null,null,null,null,null,null,0,null,-750000,750000,null,null,null,null,null,null,null,null,null,null,null,null,null,null,null,null,"Consol, Reserves Note",null,null,null,4,null,null,null,null,null,0]
[null,null,"Capital expenditure from GAG",null,null,null,null,null,null,null,0,null,-750000,750000,null,null,null,null,null,null,null,null,null,null,null,null,null,null,null,null,"Consol, Reserves Note",null,4,null,null,null,null,null,{"$f":"COUNTA(E809:I809)","v":0}]
[null,null,"Other Government (local and central) grants",null,null,null,null,null,null,null,0,null,-750000,750000,null,null,null,null,null,null,null,null,null,null,null,null,null,null,null,null,"Consol, Reserves Note",null,4,null,null,null,null,null,{"$f":"COUNTA(E810:I810)","v":0}]
[]
[null,null,"Private sector capital sponsorship",null,null,null,null,null,null,null,{"$f":"SUM(E812:J812)","v":0},null,{"$f":"M810","v":-750000},{"$f":"N810","v":750000},null,null,null,null,null,null,null,null,null,null,null,null,null,null,null,null,"Consol, Reserves Note",null,4,null,null,null,null,null,{"$f":"COUNTA(E812:I812)","v":0}]
[null,null,"Revaluations",null,null,null,null,null,null,null,0,null,{"$f":"M812","v":-750000},{"$f":"N812","v":750000},null,null,null,null,null,null,null,null,null,null,null,null,null,null,null,null,"Consol, Reserves Note",null,4,null,null,null,null,null,{"$f":"COUNTA(E813:I813)","v":0}]
[null,null,"Other activities",null,null,null,null,null,null,null,0,{"$f":"IF(L816<>\"\",\"Error - Total does not agree - cell G93\",\"\")","v":""},{"$f":"M813","v":-750000},{"$f":"N813","v":750000},null,null,null,null,null,null,null,null,null,null,null,null,null,null,null,null,"Consol, Reserves Note",null,4,null,null,null,null,null,{"$f":"COUNTA(E814:I814)","v":0}]
[]
[null,null,null,null,{"$f":"SUM(E801:E815)","v":0},null,{"$f":"SUM(G801:G815)","v":0},{"$f":"SUM(H801:H815)","v":0},{"$f":"SUM(I801:I815)","v":0},null,{"$f":"G93","v":0},{"$f":"IF(K816<>SUM(E816:I816),\"Error - row does not cross cast\",\"\")","v":""}]
[null,"Total restricted finds",null,null,{"$f":"E799+E816","v":0},null,{"$f":"G799+G816","v":0},{"$f":"H799+H816","v":0},{"$f":"I799+I816","v":0},null,{"$f":"G97","v":0},{"$f":"IF(K817<>SUM(E817:I817),\"Error - row does not cross cast\",\"\")","v":""}]
[null,null,null,null,null,null,null,null,null,null,null,{"$f":"IF(L817<>\"\",\"Error - Total does not agree - cell G97\",\"\")","v":""}]
[null,"Endowment Funds",null,null,null,null,null,null,null,null,{"$f":"G91","v":0},{"$f":"IF(K819<>SUM(E819:I819),\"Error - row does not cross cast\",\"\")","v":""},{"$f":"M814","v":-750000},{"$f":"N814","v":750000},null,null,null,null,null,null,null,null,null,null,null,null,null,null,null,null,null,null,3,null,null,null,null,null,{"$f":"COUNTA(G819:I819)","v":0}]
[null,"Unrestricted Funds",null,null,null,null,null,null,null,null,null,{"$f":"IF(L819<>\"\",\"Error - Total does not agree - cell G91\",\"\")","v":""}]
[null,null,"Unrestricted funds",null,null,null,null,null,null,null,{"$f":"G99","v":0},{"$f":"IF(K821<>SUM(E821:I821),\"Error - row does not cross cast\",\"\")","v":""},{"$f":"M819","v":-750000},{"$f":"N819","v":750000},null,null,null,null,null,null,null,null,null,null,null,null,null,null,null,null,"Consol, Reserves Note",null,3,null,null,null,null,null,{"$f":"COUNTA(G821:I821)","v":0}]
[]
[null,"Total unrestricted finds",null,null,{"$f":"SUM(E821:E822)","v":0},null,{"$f":"SUM(G821:G822)","v":0},{"$f":"SUM(H821:H822)","v":0},{"$f":"SUM(I821:I822)","v":0},null,{"$f":"SUM(K821:K822)","v":0},{"$f":"IF(L821<>\"\",\"Error - Total does not agree - cell G99\",\"\")","v":""}]
[]
[null,"Total funds",null,null,{"$f":"E817+E819+E823","v":0},null,{"$f":"G817+G819+G823","v":0},0,0,null,{"$f":"G103","v":0},{"$f":"IF(K825<>SUM(E825:I825),\"Error - row does not cross cast\",\"\")","v":""},null,null,null,null,null,null,null,null,null,null,null,null,null,null,null,null,null,null,null,null,null,null,null,null,null,null,null,null,null,null,{"$f":"COUNTIF(K825:K825,\"<>0\")","v":0}]
[null,null,null,null,{"$f":"IF(E825<>E52,\"Error - imbalance with SoFA\",\"\")","v":""},null,null,null,null,null,null,{"$f":"IF(L825<>\"\",\"Error - Total does not agree - cell G103\",\"\")","v":""}]
[]
["FUNDS - FOR MULTI-ACADEMY TRUSTS ONLY"]
[null,null,null,null,"Funds",null,"Analysis of academies by cost"]
["Balance sheet",null,null,null,{"$f":"E62","v":2014},null,"Teaching and Educational Support Staff Costs","Other Support Staff Costs","Educational Supplies","Other Costs (excluding Depreciation)","Total","Lower limit","Upper limit "]
[null,null,"Academy","Notes","£000","Notes","£000","£000","£000","£000","£000","£000","£000"]
[null,null,{"$f":"+('Standing Data'!D49)","v":"Academy name"},null,null,null,null,null,null,null,{"$f":"+SUM(G832:J832)","v":0},{"$f":"$I$91","v":-750000},{"$f":"$J$65","v":750000},null,null,null,null,null,null,null,null,null,null,null,null,null,null,null,null,null,null,null,5,null,null,null,1,null,{"$f":"COUNTA(E832:J832)","v":0},null,null,null,{"$f":"COUNTA(C832)","v":1}]
[null,null,{"$f":"+('Standing Data'!D50)","v":"Academy name"},null,null,null,null,null,null,null,{"$f":"+SUM(G833:J833)","v":0},{"$f":"L832","v":-750000},{"$f":"M832","v":750000},null,null,null,null,null,null,null,null,null,null,null,null,null,null,null,null,null,null,null,5,null,null,null,1,null,{"$f":"COUNTA(E833:J833)","v":0},null,null,null,{"$f":"COUNTA(C833)","v":1}]
[null,null,{"$f":"+('Standing Data'!D51)","v":"Academy name"},null,null,null,null,null,null,null,0,{"$f":"L833","v":-750000},750000,null,null,null,null,null,null,null,null,null,null,null,null,null,null,null,null,null,null,null,5,null,null,null,1,null,0,null,null,null,1]
[null,null,{"$f":"+('Standing Data'!D52)","v":"Academy name"},null,null,null,null,null,null,null,0,-750000,750000,null,null,null,null,null,null,null,null,null,null,null,null,null,null,null,null,null,null,null,5,null,null,null,1,null,0,null,null,null,1]
[null,null,{"$f":"+('Standing Data'!D53)","v":"Academy name"},null,null,null,null,null,null,null,0,-750000,750000,null,null,null,null,null,null,null,null,null,null,null,null,null,null,null,null,null,null,null,5,null,null,null,1,null,0,null,null,null,1]
[null,null,{"$f":"+('Standing Data'!D54)","v":"Academy name"},null,null,null,null,null,null,null,0,-750000,750000,null,null,null,null,null,null,null,null,null,null,null,null,null,null,null,null,null,null,null,5,null,null,null,1,null,0,null,null,null,1]
[null,null,{"$f":"+('Standing Data'!D55)","v":"Academy name"},null,null,null,null,null,null,null,0,{"$f":"L837","v":-750000},750000,null,null,null,null,null,null,null,null,null,null,null,null,null,null,null,null,null,null,null,5,null,null,null,1,null,0,null,null,null,1]
[null,null,{"$f":"+('Standing Data'!D56)","v":"Academy name"},null,null,null,null,null,null,null,0,{"$f":"L838","v":-750000},750000,null,null,null,null,null,null,null,null,null,null,null,null,null,null,null,null,null,null,null,5,null,null,null,1,null,0,null,null,null,1]
[null,null,{"$f":"+('Standing Data'!D57)","v":"Academy name"},null,null,null,null,null,null,null,0,{"$f":"L839","v":-750000},750000,null,null,null,null,null,null,null,null,null,null,null,null,null,null,null,null,null,null,null,5,null,null,null,1,null,0,null,null,null,1]
[null,null,{"$f":"+('Standing Data'!D58)","v":"Academy name"},null,null,null,null,null,null,null,0,{"$f":"L840","v":-750000},750000,null,null,null,null,null,null,null,null,null,null,null,null,null,null,null,null,null,null,null,5,null,null,null,1,null,0,null,null,null,1]
[null,null,{"$f":"+('Standing Data'!D59)","v":"Academy name"},null,null,null,null,null,null,null,0,{"$f":"L841","v":-750000},750000,null,null,null,null,null,null,null,null,null,null,null,null,null,null,null,null,null,null,null,5,null,null,null,1,null,0,null,null,null,1]
[null,null,{"$f":"+('Standing Data'!D60)","v":"Academy name"},null,null,null,null,null,null,null,0,{"$f":"L842","v":-750000},750000,null,null,null,null,null,null,null,null,null,null,null,null,null,null,null,null,null,null,null,5,null,null,null,1,null,0,null,null,null,1]
[null,null,{"$f":"+('Standing Data'!D61)","v":"Academy name"},null,null,null,null,null,null,null,0,{"$f":"L843","v":-750000},750000,null,null,null,null,null,null,null,null,null,null,null,null,null,null,null,null,null,null,null,5,null,null,null,1,null,0,null,null,null,1]
[null,null,{"$f":"+('Standing Data'!D62)","v":"Academy name"},null,null,null,null,null,null,null,0,{"$f":"L844","v":-750000},750000,null,null,null,null,null,null,null,null,null,null,null,null,null,null,null,null,null,null,null,5,null,null,null,1,null,0,null,null,null,1]
[null,null,{"$f":"+('Standing Data'!D63)","v":"Academy name"},null,null,null,null,null,null,null,0,{"$f":"L845","v":-750000},750000,null,null,null,null,null,null,null,null,null,null,null,null,null,null,null,null,null,null,null,5,null,null,null,1,null,0,null,null,null,1]
[null,null,{"$f":"+('Standing Data'!D64)","v":"Academy name"},null,null,null,null,null,null,null,0,{"$f":"L846","v":-750000},750000,null,null,null,null,null,null,null,null,null,null,null,null,null,null,null,null,null,null,null,5,null,null,null,1,null,0,null,null,null,1]
[null,null,{"$f":"+('Standing Data'!D65)","v":"Academy name"},null,null,null,null,null,null,null,0,{"$f":"L847","v":-750000},750000,null,null,null,null,null,null,null,null,null,null,null,null,null,null,null,null,null,null,null,5,null,null,null,1,null,0,null,null,null,1]
[null,null,{"$f":"+('Standing Data'!D66)","v":"Academy name"},null,null,null,null,null,null,null,0,{"$f":"L848","v":-750000},750000,null,null,null,null,null,null,null,null,null,null,null,null,null,null,null,null,null,null,null,5,null,null,null,1,null,0,null,null,null,1]
[null,null,{"$f":"+('Standing Data'!D67)","v":"Academy name"},null,null,null,null,null,null,null,0,{"$f":"L849","v":-750000},750000,null,null,null,null,null,null,null,null,null,null,null,null,null,null,null,null,null,null,null,5,null,null,null,1,null,0,null,null,null,1]
[null,null,{"$f":"+('Standing Data'!D68)","v":"Academy name"},null,null,null,null,null,null,null,0,{"$f":"L850","v":-750000},750000,null,null,null,null,null,null,null,null,null,null,null,null,null,null,null,null,null,null,null,5,null,null,null,1,null,0,null,null,null,1]
[null,null,{"$f":"+('Standing Data'!D69)","v":"Academy name"},null,null,null,null,null,null,null,0,{"$f":"L851","v":-750000},750000,null,null,null,null,null,null,null,null,null,null,null,null,null,null,null,null,null,null,null,5,null,null,null,1,null,0,null,null,null,1]
[null,null,{"$f":"+('Standing Data'!D70)","v":"Academy name"},null,null,null,null,null,null,null,0,{"$f":"L852","v":-750000},750000,null,null,null,null,null,null,null,null,null,null,null,null,null,null,null,null,null,null,null,5,null,null,null,1,null,0,null,null,null,1]
[null,null,{"$f":"+('Standing Data'!D71)","v":"Academy name"},null,null,null,null,null,null,null,0,{"$f":"L853","v":-750000},750000,null,null,null,null,null,null,null,null,null,null,null,null,null,null,null,null,null,null,null,5,null,null,null,1,null,0,null,null,null,1]
[null,null,{"$f":"+('Standing Data'!D72)","v":"Academy name"},null,null,null,null,null,null,null,0,{"$f":"L854","v":-750000},750000,null,null,null,null,null,null,null,null,null,null,null,null,null,null,null,null,null,null,null,5,null,null,null,1,null,0,null,null,null,1]
[null,null,{"$f":"+('Standing Data'!D73)","v":"Academy name"},null,null,null,null,null,null,null,0,{"$f":"L855","v":-750000},750000,null,null,null,null,null,null,null,null,null,null,null,null,null,null,null,null,null,null,null,5,null,null,null,1,null,0,null,null,null,1]
[null,null,{"$f":"+('Standing Data'!D74)","v":"Academy name"},null,null,null,null,null,null,null,0,{"$f":"L856","v":-750000},750000,null,null,null,null,null,null,null,null,null,null,null,null,null,null,null,null,null,null,null,5,null,null,null,1,null,0,null,null,null,1]
[null,null,{"$f":"+('Standing Data'!D75)","v":"Academy name"},null,null,null,null,null,null,null,0,{"$f":"L857","v":-750000},750000,null,null,null,null,null,null,null,null,null,null,null,null,null,null,null,null,null,null,null,5,null,null,null,1,null,0,null,null,null,1]
[null,null,{"$f":"+('Standing Data'!D76)","v":"Academy name"},null,null,null,null,null,null,null,0,{"$f":"L858","v":-750000},750000,null,null,null,null,null,null,null,null,null,null,null,null,null,null,null,null,null,null,null,5,null,null,null,1,null,0,null,null,null,1]
[null,null,{"$f":"+('Standing Data'!D77)","v":"Academy name"},null,null,null,null,null,null,null,0,{"$f":"L859","v":-750000},750000,null,null,null,null,null,null,null,null,null,null,null,null,null,null,null,null,null,null,null,5,null,null,null,1,null,0,null,null,null,1]
[null,null,{"$f":"+('Standing Data'!D78)","v":"Academy name"},null,null,null,null,null,null,null,0,{"$f":"L860","v":-750000},750000,null,null,null,null,null,null,null,null,null,null,null,null,null,null,null,null,null,null,null,5,null,null,null,1,null,0,null,null,null,1]
[null,null,{"$f":"+('Standing Data'!D79)","v":"Academy name"},null,null,null,null,null,null,null,0,{"$f":"L861","v":-750000},750000,null,null,null,null,null,null,null,null,null,null,null,null,null,null,null,null,null,null,null,5,null,null,null,1,null,0,null,null,null,1]
[null,null,{"$f":"+('Standing Data'!D80)","v":"Academy name"},null,null,null,null,null,null,null,0,{"$f":"L862","v":-750000},750000,null,null,null,null,null,null,null,null,null,null,null,null,null,null,null,null,null,null,null,5,null,null,null,1,null,0,null,null,null,1]
[null,null,{"$f":"+('Standing Data'!D81)","v":"Academy name"},null,null,null,null,null,null,null,0,{"$f":"L863","v":-750000},750000,null,null,null,null,null,null,null,null,null,null,null,null,null,null,null,null,null,null,null,5,null,null,null,1,null,0,null,null,null,1]
[null,null,{"$f":"+('Standing Data'!D82)","v":"Academy name"},null,null,null,null,null,null,null,0,{"$f":"L864","v":-750000},750000,null,null,null,null,null,null,null,null,null,null,null,null,null,null,null,null,null,null,null,5,null,null,null,1,null,0,null,null,null,1]
[null,null,{"$f":"+('Standing Data'!D83)","v":"Academy name"},null,null,null,null,null,null,null,0,{"$f":"L865","v":-750000},750000,null,null,null,null,null,null,null,null,null,null,null,null,null,null,null,null,null,null,null,5,null,null,null,1,null,0,null,null,null,1]
[null,null,{"$f":"+('Standing Data'!D84)","v":"Academy name"},null,null,null,null,null,null,null,0,{"$f":"L866","v":-750000},750000,null,null,null,null,null,null,null,null,null,null,null,null,null,null,null,null,null,null,null,5,null,null,null,1,null,0,null,null,null,1]
[null,null,{"$f":"+('Standing Data'!D85)","v":"Academy name"},null,null,null,null,null,null,null,0,{"$f":"L867","v":-750000},750000,null,null,null,null,null,null,null,null,null,null,null,null,null,null,null,null,null,null,null,5,null,null,null,1,null,0,null,null,null,1]
[null,null,{"$f":"+('Standing Data'!D86)","v":"Academy name"},null,null,null,null,null,null,null,0,{"$f":"L868","v":-750000},750000,null,null,null,null,null,null,null,null,null,null,null,null,null,null,null,null,null,null,null,5,null,null,null,1,null,0,null,null,null,1]
[null,null,{"$f":"+('Standing Data'!D87)","v":"Academy name"},null,null,null,null,null,null,null,0,{"$f":"L869","v":-750000},750000,null,null,null,null,null,null,null,null,null,null,null,null,null,null,null,null,null,null,null,5,null,null,null,1,null,0,null,null,null,1]
[null,null,{"$f":"+('Standing Data'!D88)","v":"Academy name"},null,null,null,null,null,null,null,0,{"$f":"L870","v":-750000},750000,null,null,null,null,null,null,null,null,null,null,null,null,null,null,null,null,null,null,null,5,null,null,null,1,null,0,null,null,null,1]
[null,null,{"$f":"+('Standing Data'!D89)","v":"Academy name"},null,null,null,null,null,null,null,0,{"$f":"L871","v":-750000},750000,null,null,null,null,null,null,null,null,null,null,null,null,null,null,null,null,null,null,null,5,null,null,null,1,null,0,null,null,null,1]
[null,null,{"$f":"+('Standing Data'!D90)","v":"Academy name"},null,null,null,null,null,null,null,0,{"$f":"L872","v":-750000},750000,null,null,null,null,null,null,null,null,null,null,null,null,null,null,null,null,null,null,null,5,null,null,null,1,null,0,null,null,null,1]
[null,null,{"$f":"+('Standing Data'!D91)","v":"Academy name"},null,null,null,null,null,null,null,0,{"$f":"L873","v":-750000},750000,null,null,null,null,null,null,null,null,null,null,null,null,null,null,null,null,null,null,null,5,null,null,null,1,null,0,null,null,null,1]
[null,null,{"$f":"+('Standing Data'!D92)","v":"Academy name"},null,null,null,null,null,null,null,0,{"$f":"L874","v":-750000},750000,null,null,null,null,null,null,null,null,null,null,null,null,null,null,null,null,null,null,null,5,null,null,null,1,null,0,null,null,null,1]
[null,null,{"$f":"+('Standing Data'!D93)","v":"Academy name"},null,null,null,null,null,null,null,0,{"$f":"L875","v":-750000},750000,null,null,null,null,null,null,null,null,null,null,null,null,null,null,null,null,null,null,null,5,null,null,null,1,null,0,null,null,null,1]
[null,null,{"$f":"+('Standing Data'!D94)","v":"Academy name"},null,null,null,null,null,null,null,0,{"$f":"L876","v":-750000},750000,null,null,null,null,null,null,null,null,null,null,null,null,null,null,null,null,null,null,null,5,null,null,null,1,null,0,null,null,null,1]
[null,null,{"$f":"+('Standing Data'!D95)","v":"Academy name"},null,null,null,null,null,null,null,0,{"$f":"L877","v":-750000},750000,null,null,null,null,null,null,null,null,null,null,null,null,null,null,null,null,null,null,null,5,null,null,null,1,null,0,null,null,null,1]
[null,null,{"$f":"+('Standing Data'!D96)","v":"Academy name"},null,null,null,null,null,null,null,0,{"$f":"L878","v":-750000},750000,null,null,null,null,null,null,null,null,null,null,null,null,null,null,null,null,null,null,null,5,null,null,null,1,null,0,null,null,null,1]
[null,null,{"$f":"+('Standing Data'!D97)","v":"Academy name"},null,null,null,null,null,null,null,0,{"$f":"L879","v":-750000},750000,null,null,null,null,null,null,null,null,null,null,null,null,null,null,null,null,null,null,null,5,null,null,null,1,null,0,null,null,null,1]
[null,null,{"$f":"+('Standing Data'!D98)","v":"Academy name"},null,null,null,null,null,null,null,0,{"$f":"L880","v":-750000},750000,null,null,null,null,null,null,null,null,null,null,null,null,null,null,null,null,null,null,null,5,null,null,null,1,null,0,null,null,null,1]
[null,null,{"$f":"+('Standing Data'!D99)","v":"Academy name"},null,null,null,null,null,null,null,0,{"$f":"L881","v":-750000},750000,null,null,null,null,null,null,null,null,null,null,null,null,null,null,null,null,null,null,null,5,null,null,null,1,null,0,null,null,null,1]
[null,null,{"$f":"+('Standing Data'!D100)","v":"Academy name"},null,null,null,null,null,null,null,0,{"$f":"L882","v":-750000},750000,null,null,null,null,null,null,null,null,null,null,null,null,null,null,null,null,null,null,null,5,null,null,null,1,null,0,null,null,null,1]
[null,null,{"$f":"+('Standing Data'!D101)","v":"Academy name"},null,null,null,null,null,null,null,0,{"$f":"L883","v":-750000},750000,null,null,null,null,null,null,null,null,null,null,null,null,null,null,null,null,null,null,null,5,null,null,null,1,null,0,null,null,null,1]
[null,null,{"$f":"+('Standing Data'!D102)","v":"Academy name"},null,null,null,null,null,null,null,0,{"$f":"L884","v":-750000},750000,null,null,null,null,null,null,null,null,null,null,null,null,null,null,null,null,null,null,null,5,null,null,null,1,null,0,null,null,null,1]
[null,null,{"$f":"+('Standing Data'!D103)","v":"Academy name"},null,null,null,null,null,null,null,0,{"$f":"L885","v":-750000},750000,null,null,null,null,null,null,null,null,null,null,null,null,null,null,null,null,null,null,null,5,null,null,null,1,null,0,null,null,null,1]
[null,null,{"$f":"+('Standing Data'!D104)","v":"Academy name"},null,null,null,null,null,null,null,0,{"$f":"L886","v":-750000},750000,null,null,null,null,null,null,null,null,null,null,null,null,null,null,null,null,null,null,null,5,null,null,null,1,null,0,null,null,null,1]
[null,null,{"$f":"+('Standing Data'!D105)","v":"Academy name"},null,null,null,null,null,null,null,0,{"$f":"L887","v":-750000},750000,null,null,null,null,null,null,null,null,null,null,null,null,null,null,null,null,null,null,null,5,null,null,null,1,null,0,null,null,null,1]
[null,null,{"$f":"+('Standing Data'!D106)","v":"Academy name"},null,null,null,null,null,null,null,0,{"$f":"L888","v":-750000},750000,null,null,null,null,null,null,null,null,null,null,null,null,null,null,null,null,null,null,null,5,null,null,null,1,null,0,null,null,null,1]
[null,null,{"$f":"+('Standing Data'!D107)","v":"Academy name"},null,null,null,null,null,null,null,0,{"$f":"L889","v":-750000},750000,null,null,null,null,null,null,null,null,null,null,null,null,null,null,null,null,null,null,null,5,null,null,null,1,null,0,null,null,null,1]
[null,null,{"$f":"+('Standing Data'!D108)","v":"Academy name"},null,null,null,null,null,null,null,0,{"$f":"L890","v":-750000},750000,null,null,null,null,null,null,null,null,null,null,null,null,null,null,null,null,null,null,null,5,null,null,null,1,null,0,null,null,null,1]
[null,null,{"$f":"+('Standing Data'!D109)","v":"Academy name"},null,null,null,null,null,null,null,0,{"$f":"L891","v":-750000},750000,null,null,null,null,null,null,null,null,null,null,null,null,null,null,null,null,null,null,null,5,null,null,null,1,null,0,null,null,null,1]
[null,null,{"$f":"+('Standing Data'!D110)","v":"Academy name"},null,null,null,null,null,null,null,0,{"$f":"L892","v":-750000},750000,null,null,null,null,null,null,null,null,null,null,null,null,null,null,null,null,null,null,null,5,null,null,null,1,null,0,null,null,null,1]
[null,null,{"$f":"+('Standing Data'!D111)","v":"Academy name"},null,null,null,null,null,null,null,0,{"$f":"L893","v":-750000},750000,null,null,null,null,null,null,null,null,null,null,null,null,null,null,null,null,null,null,null,5,null,null,null,1,null,0,null,null,null,1]
[null,null,{"$f":"+('Standing Data'!D112)","v":"Academy name"},null,null,null,null,null,null,null,0,{"$f":"L894","v":-750000},750000,null,null,null,null,null,null,null,null,null,null,null,null,null,null,null,null,null,null,null,5,null,null,null,1,null,0,null,null,null,1]
[null,null,{"$f":"+('Standing Data'!D113)","v":"Academy name"},null,null,null,null,null,null,null,0,{"$f":"L895","v":-750000},750000,null,null,null,null,null,null,null,null,null,null,null,null,null,null,null,null,null,null,null,5,null,null,null,1,null,0,null,null,null,1]
[null,null,{"$f":"+('Standing Data'!D114)","v":"Academy name"},null,null,null,null,null,null,null,{"$f":"+SUM(G897:J897)","v":0},{"$f":"L896","v":-750000},750000,null,null,null,null,null,null,null,null,null,null,null,null,null,null,null,null,null,null,null,5,null,null,null,1,null,{"$f":"COUNTA(E897:J897)","v":0},null,null,null,{"$f":"COUNTA(C897)","v":1}]
[null,null,{"$f":"+('Standing Data'!D115)","v":"Academy name"},null,null,null,null,null,null,null,0,{"$f":"L897","v":-750000},750000,null,null,null,null,null,null,null,null,null,null,null,null,null,null,null,null,null,null,null,5,null,null,null,1,null,0,null,null,null,1]
[null,null,{"$f":"+('Standing Data'!D116)","v":"Academy name"},null,null,null,null,null,null,null,0,{"$f":"L898","v":-750000},750000,null,null,null,null,null,null,null,null,null,null,null,null,null,null,null,null,null,null,null,5,null,null,null,1,null,0,null,null,null,1]
[null,null,{"$f":"+('Standing Data'!D117)","v":"Academy name"},null,null,null,null,null,null,null,0,{"$f":"L899","v":-750000},750000,null,null,null,null,null,null,null,null,null,null,null,null,null,null,null,null,null,null,null,5,null,null,null,1,null,0,null,null,null,1]
[null,null,{"$f":"+('Standing Data'!D118)","v":"Academy name"},null,null,null,null,null,null,null,0,{"$f":"L900","v":-750000},750000,null,null,null,null,null,null,null,null,null,null,null,null,null,null,null,null,null,null,null,5,null,null,null,1,null,0,null,null,null,1]
[null,null,{"$f":"+('Standing Data'!D119)","v":"Academy name"},null,null,null,null,null,null,null,0,{"$f":"L901","v":-750000},750000,null,null,null,null,null,null,null,null,null,null,null,null,null,null,null,null,null,null,null,5,null,null,null,1,null,0,null,null,null,1]
[null,null,{"$f":"+('Standing Data'!D120)","v":"Academy name"},null,null,null,null,null,null,null,0,{"$f":"L902","v":-750000},750000,null,null,null,null,null,null,null,null,null,null,null,null,null,null,null,null,null,null,null,5,null,null,null,1,null,0,null,null,null,1]
[null,null,{"$f":"+('Standing Data'!D121)","v":"Academy name"},null,null,null,null,null,null,null,0,{"$f":"L903","v":-750000},750000,null,null,null,null,null,null,null,null,null,null,null,null,null,null,null,null,null,null,null,5,null,null,null,1,null,0,null,null,null,1]
[null,null,{"$f":"+('Standing Data'!D122)","v":"Academy name"},null,null,null,null,null,null,null,0,{"$f":"L904","v":-750000},750000,null,null,null,null,null,null,null,null,null,null,null,null,null,null,null,null,null,null,null,5,null,null,null,1,null,0,null,null,null,1]
[null,null,{"$f":"+('Standing Data'!D123)","v":"Academy name"},null,null,null,null,null,null,null,0,{"$f":"L905","v":-750000},750000,null,null,null,null,null,null,null,null,null,null,null,null,null,null,null,null,null,null,null,5,null,null,null,1,null,0,null,null,null,1]
[null,null,{"$f":"+('Standing Data'!D124)","v":"Academy name"},null,null,null,null,null,null,null,0,{"$f":"L906","v":-750000},750000,null,null,null,null,null,null,null,null,null,null,null,null,null,null,null,null,null,null,null,5,null,null,null,1,null,0,null,null,null,1]
[null,null,{"$f":"+('Standing Data'!D125)","v":"Academy name"},null,null,null,null,null,null,null,0,{"$f":"L907","v":-750000},750000,null,null,null,null,null,null,null,null,null,null,null,null,null,null,null,null,null,null,null,5,null,null,null,1,null,0,null,null,null,1]
[null,null,{"$f":"+('Standing Data'!D126)","v":"Academy name"},null,null,null,null,null,null,null,0,{"$f":"L908","v":-750000},750000,null,null,null,null,null,null,null,null,null,null,null,null,null,null,null,null,null,null,null,5,null,null,null,1,null,0,null,null,null,1]
[null,null,{"$f":"+('Standing Data'!D127)","v":"Academy name"},null,null,null,null,null,null,null,0,{"$f":"L909","v":-750000},750000,null,null,null,null,null,null,null,null,null,null,null,null,null,null,null,null,null,null,null,5,null,null,null,1,null,0,null,null,null,1]
[null,null,{"$f":"+('Standing Data'!D128)","v":"Academy name"},null,null,null,null,null,null,null,0,{"$f":"L910","v":-750000},750000,null,null,null,null,null,null,null,null,null,null,null,null,null,null,null,null,null,null,null,5,null,null,null,1,null,0,null,null,null,1]
[null,null,{"$f":"+('Standing Data'!D129)","v":"Academy name"},null,null,null,null,null,null,null,0,{"$f":"L911","v":-750000},750000,null,null,null,null,null,null,null,null,null,null,null,null,null,null,null,null,null,null,null,5,null,null,null,1,null,0,null,null,null,1]
[null,null,{"$f":"+('Standing Data'!D130)","v":"Academy name"},null,null,null,null,null,null,null,0,{"$f":"L912","v":-750000},750000,null,null,null,null,null,null,null,null,null,null,null,null,null,null,null,null,null,null,null,5,null,null,null,1,null,0,null,null,null,1]
[null,null,{"$f":"+('Standing Data'!D131)","v":"Academy name"},null,null,null,null,null,null,null,0,{"$f":"L913","v":-750000},750000,null,null,null,null,null,null,null,null,null,null,null,null,null,null,null,null,null,null,null,5,null,null,null,1,null,0,null,null,null,1]
[null,null,{"$f":"+('Standing Data'!D132)","v":"Academy name"},null,null,null,null,null,null,null,0,{"$f":"L914","v":-750000},750000,null,null,null,null,null,null,null,null,null,null,null,null,null,null,null,null,null,null,null,5,null,null,null,1,null,0,null,null,null,1]
[null,null,{"$f":"+('Standing Data'!D133)","v":"Academy name"},null,null,null,null,null,null,null,0,{"$f":"L915","v":-750000},750000,null,null,null,null,null,null,null,null,null,null,null,null,null,null,null,null,null,null,null,5,null,null,null,1,null,0,null,null,null,1]
[null,null,{"$f":"+('Standing Data'!D134)","v":"Academy name"},null,null,null,null,null,null,null,0,{"$f":"L916","v":-750000},750000,null,null,null,null,null,null,null,null,null,null,null,null,null,null,null,null,null,null,null,5,null,null,null,1,null,0,null,null,null,1]
[null,null,{"$f":"+('Standing Data'!D135)","v":"Academy name"},null,null,null,null,null,null,null,0,{"$f":"L917","v":-750000},750000,null,null,null,null,null,null,null,null,null,null,null,null,null,null,null,null,null,null,null,5,null,null,null,1,null,0,null,null,null,1]
[null,null,{"$f":"+('Standing Data'!D136)","v":"Academy name"},null,null,null,null,null,null,null,0,{"$f":"L918","v":-750000},750000,null,null,null,null,null,null,null,null,null,null,null,null,null,null,null,null,null,null,null,5,null,null,null,1,null,0,null,null,null,1]
[null,null,{"$f":"+('Standing Data'!D137)","v":"Academy name"},null,null,null,null,null,null,null,0,{"$f":"L919","v":-750000},750000,null,null,null,null,null,null,null,null,null,null,null,null,null,null,null,null,null,null,null,5,null,null,null,1,null,0,null,null,null,1]
[null,null,{"$f":"+('Standing Data'!D138)","v":"Academy name"},null,null,null,null,null,null,null,0,{"$f":"L920","v":-750000},750000,null,null,null,null,null,null,null,null,null,null,null,null,null,null,null,null,null,null,null,5,null,null,null,1,null,0,null,null,null,1]
[null,null,{"$f":"+('Standing Data'!D139)","v":"Academy name"},null,null,null,null,null,null,null,0,{"$f":"L921","v":-750000},750000,null,null,null,null,null,null,null,null,null,null,null,null,null,null,null,null,null,null,null,5,null,null,null,1,null,0,null,null,null,1]
[null,null,{"$f":"+('Standing Data'!D140)","v":"Academy name"},null,null,null,null,null,null,null,0,{"$f":"L922","v":-750000},750000,null,null,null,null,null,null,null,null,null,null,null,null,null,null,null,null,null,null,null,5,null,null,null,1,null,0,null,null,null,1]
[null,null,{"$f":"+('Standing Data'!D141)","v":"Academy name"},null,null,null,null,null,null,null,0,{"$f":"L923","v":-750000},750000,null,null,null,null,null,null,null,null,null,null,null,null,null,null,null,null,null,null,null,5,null,null,null,1,null,0,null,null,null,1]
[null,null,{"$f":"+('Standing Data'!D142)","v":"Academy name"},null,null,null,null,null,null,null,0,{"$f":"L924","v":-750000},750000,null,null,null,null,null,null,null,null,null,null,null,null,null,null,null,null,null,null,null,5,null,null,null,1,null,0,null,null,null,1]
[null,null,{"$f":"+('Standing Data'!D143)","v":"Academy name"},null,null,null,null,null,null,null,0,{"$f":"L925","v":-750000},750000,null,null,null,null,null,null,null,null,null,null,null,null,null,null,null,null,null,null,null,5,null,null,null,1,null,0,null,null,null,1]
[null,null,{"$f":"+('Standing Data'!D144)","v":"Academy name"},null,null,null,null,null,null,null,0,{"$f":"L926","v":-750000},750000,null,null,null,null,null,null,null,null,null,null,null,null,null,null,null,null,null,null,null,5,null,null,null,1,null,0,null,null,null,1]
[null,null,{"$f":"+('Standing Data'!D145)","v":"Academy name"},null,null,null,null,null,null,null,0,{"$f":"L927","v":-750000},750000,null,null,null,null,null,null,null,null,null,null,null,null,null,null,null,null,null,null,null,5,null,null,null,1,null,0,null,null,null,1]
[null,null,{"$f":"+('Standing Data'!D146)","v":"Academy name"},null,null,null,null,null,null,null,0,{"$f":"L928","v":-750000},750000,null,null,null,null,null,null,null,null,null,null,null,null,null,null,null,null,null,null,null,5,null,null,null,1,null,0,null,null,null,1]
[null,null,{"$f":"+('Standing Data'!D147)","v":"Academy name"},null,null,null,null,null,null,null,0,{"$f":"L929","v":-750000},750000,null,null,null,null,null,null,null,null,null,null,null,null,null,null,null,null,null,null,null,5,null,null,null,1,null,0,null,null,null,1]
[null,null,{"$f":"+('Standing Data'!D148)","v":"Academy name"},null,null,null,null,null,null,null,0,{"$f":"L930","v":-750000},750000,null,null,null,null,null,null,null,null,null,null,null,null,null,null,null,null,null,null,null,5,null,null,null,1,null,0,null,null,null,1]
[null,null,"Central Services (if applicable)",null,null,null,null,null,null,null,0,{"$f":"L931","v":-750000},750000,null,null,null,null,null,null,null,null,null,null,null,null,null,null,null,null,null,null,null,5,null,null,null,null,null,0,null,null,null,1]
[null,null,null,{"$f":"IF('Standing Data'!D9=\"Multi-academy Trust\",IF(E933<>(G94+G99),\"Error - imbalance with BS\",\"\"),\"\")","v":""},{"$f":"+SUM(E832:E932)","v":0},null,{"$f":"+SUM(G832:G932)","v":0},0,0,0,0]
[null,null,null,{"$f":"IF(K933>0,IF(K932=0,\"No central service management charges shown, please check before submission\"),\"\")","v":""},null,null,null,null,null,null,{"$f":"IF('Standing Data'!D9=\"Multi-academy Trust\",IF(K933<>(G39+H39),\"Error - imbalance with BS\",\"\"),\"\")","v":""}]
[]
[]
["ANALYSIS OF NET ASSETS BETWEEN FUNDS",null,null,null,"Total",null,"Unrestricted\nFunds","Restricted\nFunds","Restricted\nFixed Asset\nFunds","Endowment\nFunds",null,"Lower limit","Upper limit "]
["Balance sheet",null,null,null,"£000",null,"£000","£000","£000","£000",null,"£000","£000"]
[null,"Fixed assets",null,{"$f":"IF(E939<>SUM(G939:J939),\"Error - row does not cross cast\",\"\")","v":""},{"$f":"G69","v":0},null,null,null,null,null,null,{"$f":"$I$91","v":-750000},{"$f":"$J$65","v":750000},null,null,null,null,null,null,null,null,null,null,null,null,null,null,null,null,null,null,null,4,null,null,null,1,null,{"$f":"COUNTA(G939:J939)","v":0},null,null,null,{"$f":"COUNTIF(E939:E939,\"<>0\")","v":0}]
[null,"Current assets",null,{"$f":"IF(E940<>SUM(G940:J940),\"Error - row does not cross cast\",\"\")","v":""},{"$f":"E77","v":0},null,null,null,null,null,null,{"$f":"L939","v":-750000},{"$f":"M939","v":750000},null,null,null,null,null,null,null,null,null,null,null,null,null,null,null,null,null,null,null,4,null,null,null,1,null,0,null,null,null,{"$f":"COUNTIF(E940:E940,\"<>0\")","v":0}]
[null,"Current liabilities",null,"",{"$f":"E78","v":0},null,null,null,null,null,null,{"$f":"L940","v":-750000},{"$f":"M940","v":750000},null,null,null,null,null,null,null,null,null,null,null,null,null,null,null,null,null,null,null,4,null,null,null,1,null,0,null,null,null,0]
[null,"Non-current liabilities",null,"",{"$f":"G83","v":0},null,null,null,null,null,null,-750000,750000,null,null,null,null,null,null,null,null,null,null,null,null,null,null,null,null,null,null,null,4,null,null,null,1,null,0,null,null,null,0]
[null,"Provisions",null,"",{"$f":"G84","v":0},null,null,null,null,null,null,-750000,750000,null,null,null,null,null,null,null,null,null,null,null,null,null,null,null,null,null,null,null,4,null,null,null,1,null,0,null,null,null,0]
[null,"Pension scheme liabilities",null,"",{"$f":"G87","v":0},null,null,null,null,null,null,-750000,750000,null,null,null,null,null,null,null,null,null,null,null,null,null,null,null,null,null,null,null,4,null,null,null,1,null,{"$f":"COUNTA(G944:J944)","v":0},null,null,null,0]
[]
[null,null,null,null,{"$f":"G89","v":0},null,{"$f":"G101","v":0},{"$f":"G97-G93","v":0},{"$f":"G93","v":0},{"$f":"G91","v":0},null,null,null,null,null,null,null,null,null,null,null,null,null,null,null,null,null,null,null,null,null,null,null,null,null,null,5,null,null,null,null,null,{"$f":"COUNTIF(E946:E946,\"<>0\")+COUNTIF(G946:J946,\"<>0\")","v":0}]
[null,null,null,null,null,null,{"$f":"IF(G946<>SUM(G939:G945),\"Error - column does not cast\",\"\")","v":""},{"$f":"IF(H946<>SUM(H939:H945),\"Error - column does not cast\",\"\")","v":""},"",""]
[]
["PENSION COMMITMENTS"]
["SoFA"]
[null,"Please identify, by scheme type, the Academy's pension schemes from the dropdown boxes below:"]
[null,null,"Scheme",null,"Scheme type"]
[null,null,"Teachers' Pension Scheme",null,"Defined benefit scheme(s) - multi-employer unallocated scheme assets and liabilities",null,null,null,null,null,null,null,null,null,null,null,null,null,null,null,null,null,null,null,null,null,null,null,null,null,"Consol, EFA/DfE Pension Note"]
[null,null,"Local Government Pension Scheme (LGPS)",null,"Defined benefit scheme(s) - multi-employer allocated scheme assets and liabilities",null,null,null,null,null,null,null,null,null,null,null,null,null,null,null,null,null,null,null,null,null,null,null,null,null,"Consol, EFA/DfE Pension Note"]
[null,"Notes","Scheme Name",{"$f":"IF(OR(AND(C955<>\"Scheme Name\",E955=\"Scheme Type\"),AND(C955=\"Scheme Name\",E955<>\"Scheme Type\")),\"Error - within note\",\"\")","v":""},"Scheme Type",null,null,null,null,null,{"$f":"IF(OR(E955=Reference!L$8,E955=Reference!L$9),\"Complete 'Green' disclosures below\", IF(E955=\"Scheme Type\",\"\",\"Ignore 'Green' disclosures below\"))","v":""},null,null,null,null,null,null,null,null,null,null,null,null,null,null,null,null,null,null,null,"Consol, EFA/DfE Pension Note",null,null,null,2,null,null,null,null,null,{"$f":"COUNTA(C955:E955)-1","v":2}]
[null,null,"Scheme Name",{"$f":"IF(OR(AND(C956<>\"Scheme Name\",E956=\"Scheme Type\"),AND(C956=\"Scheme Name\",E956<>\"Scheme Type\")),\"Error - within note\",\"\")","v":""},"Scheme Type",null,null,null,null,null,{"$f":"IF(OR(E956=Reference!L$8,E956=Reference!L$9),\"Complete 'Green' disclosures below\", IF(E956=\"Scheme Type\",\"\",\"Ignore 'Green' disclosures below\"))","v":""},null,null,null,null,null,null,null,null,null,null,null,null,null,null,null,null,null,null,null,"Consol, EFA/DfE Pension Note",null,null,null,2,null,null,null,null,null,{"$f":"COUNTA(C955:E955)-1","v":2}]
[null,null,"Scheme Name",{"$f":"IF(OR(AND(C957<>\"Scheme Name\",E957=\"Scheme Type\"),AND(C957=\"Scheme Name\",E957<>\"Scheme Type\")),\"Error - within note\",\"\")","v":""},"Scheme Type",null,null,null,null,null,{"$f":"IF(OR(E957=Reference!L$8,E957=Reference!L$9),\"Complete 'Green' disclosures below\", IF(E957=\"Scheme Type\",\"\",\"Ignore 'Green' disclosures below\"))","v":""},null,null,null,null,null,null,null,null,null,null,null,null,null,null,null,null,null,null,null,"Consol, EFA/DfE Pension Note",null,null,null,2,null,null,null,null,null,{"$f":"COUNTA(C955:E955)-1","v":2}]
[null,null,"Select scheme name from drop-down box",null,"Select scheme type from drop-down box"]
[]
[null,"Breakdown of SoFA pension charge:",null,null,"Total",null,"Employer Contributions","FRS17 Adjustment",null,null,null,null,"Lower limit","Upper limit "]
[null,null,null,null,"£000",null,"£000","£000",null,null,null,null,"£000","£000"]
[null,null,"LGPS",null,{"$f":"SUM(G962:H962)","v":0},null,null,null,null,null,null,null,0,{"$f":"$J$65","v":750000},null,null,null,null,null,null,null,null,null,null,null,null,null,null,null,null,"Consol, EFA/DfE Pension Note",null,null,null,2,null,null,null,null,null,{"$f":"COUNTA(G962:H962)","v":0}]
[null,null,"Other defined benefit scheme(s) - multi-employer allocated scheme assets and liabilities",null,{"$f":"SUM(G963:H963)","v":0},null,null,null,null,null,null,null,0,{"$f":"$J$65","v":750000}]
[null,null,"Defined benefit scheme(s) - single employer",null,{"$f":"SUM(G964:H964)","v":0},null,null,null,null,null,null,null,0,{"$f":"N962","v":750000},null,null,null,null,null,null,null,null,null,null,null,null,null,null,null,null,"Consol, EFA/DfE Pension Note",null,null,null,2,null,null,null,null,null,{"$f":"COUNTA(G964:H964)","v":0}]
[null,null,"TPS",null,{"$f":"G965","v":0},null,null,null,null,null,null,null,0,750000]
[null,null,"Other defined benefit scheme(s) - multi-employer unallocated scheme assets and liabilities",null,{"$f":"G966","v":0},null,null,null,null,null,null,null,0,750000,null,null,null,null,null,null,null,null,null,null,null,null,null,null,null,null,"Consol, EFA/DfE Pension Note",null,null,null,1,null,null,null,null,null,0]
[null,null,"Defined contribution scheme(s)",null,{"$f":"G967","v":0},null,null,null,null,null,null,null,{"$f":"M966","v":0},750000,null,null,null,null,null,null,null,null,null,null,null,null,null,null,null,null,"Consol, EFA/DfE Pension Note",null,null,null,1,null,null,null,null,null,0]
[null,null,"Stakeholder/private pension provision",null,0,null,null,null,null,null,null,null,0,750000,null,null,null,null,null,null,null,null,null,null,null,null,null,null,null,null,"Consol, EFA/DfE Pension Note",null,null,null,1,null,null,null,null,null,0]
[]
[null,null,null,{"$f":"IF(E970<>SUM(E962:E969),\"Error - column does not cast\",\"\")","v":""},{"$f":"E356","v":0},null,{"$f":"SUM(G962:G969)","v":0},0,null,null,null,null,null,null,null,null,null,null,null,null,null,null,null,null,null,null,null,null,null,null,null,null,null,null,null,null,1]
[null,null,null,{"$f":"IF(D970<>\"\",\"Error - Total does not agree - cell E356\",\"\")","v":""}]
[null,"FRS 17 pension scheme disclosures",null,null,"Total",null,"LGPS",{"$f":"IF(OR($E955=Reference!$L$8,$E955=Reference!$L$9),Fin.Return!$C955,\"\")","v":""},{"$f":"IF(OR($E956=Reference!$L$8,$E956=Reference!$L$9),Fin.Return!$C956,\"\")","v":""},{"$f":"IF(OR($E957=Reference!$L$8,$E957=Reference!$L$9),Fin.Return!$C957,\"\")","v":""},null,null,null,null,null,null,null,null,null,null,null,null,null,null,null,null,null,null,null,null,null,null,null,null,null,null,3]
[null,null,null,null,"£000",null,"£000","£000","£000","£000"]
[null,"Amounts recognised in the financial statements",null,null,null,null,null,{"$f":"IF(P974=TRUE, \"No pension scheme selected\",\"\")","v":""},{"$f":"IF(Q974=TRUE, \"No pension scheme selected\",\"\")","v":""},"",null,null,null,null,null,{"$f":"AND(H972=\"\",H979+H985+H987+H1001+H1012+H1026<>0)","v":false},{"$f":"AND(I972=\"\",I979+I985+I987+I1001+I1012+I1026<>0)","v":false},false]
[null,null,"Current service cost",{"$f":"IF(E975<>SUM(G975:J975),\"Error - row does not cross cast\",\"\")","v":""},null,null,null,null,null,null,null,null,-750000,{"$f":"N968","v":750000},null,null,null,null,null,null,null,null,null,null,null,null,null,null,null,null,"Consol, EFA/DfE Pension Note",null,1,null,3,null,1,null,{"$f":"COUNTA(E975:E975)","v":0},null,{"$f":"COUNTA(H975:J975)","v":0}]
[null,null,"Past service cost",{"$f":"IF(E976<>SUM(G976:J976),\"Error - row does not cross cast\",\"\")","v":""},null,null,null,null,null,null,null,null,{"$f":"M975","v":-750000},{"$f":"N975","v":750000},null,null,null,null,null,null,null,null,null,null,null,null,null,null,null,null,"Consol, EFA/DfE Pension Note",null,1,null,3,null,1,null,{"$f":"COUNTA(E976:E976)","v":0},null,{"$f":"COUNTA(H976:J976)","v":0}]
[null,null,"Curtailment and settlement","",null,null,null,null,null,null,null,null,{"$f":"M976","v":-750000},{"$f":"N976","v":750000},null,null,null,null,null,null,null,null,null,null,null,null,null,null,null,null,"Consol, EFA/DfE Pension Note",null,1,null,3,null,1,null,0,null,0]
[]
[null,null,"Total operating charge",null,{"$f":"SUM(E975:E978)","v":0},null,{"$f":"SUM(G975:G978)","v":0},{"$f":"SUM(H975:H978)","v":0},0,0]
[]
[null,"Analysis of pension finance return/(charge)"]
[null,null,"Expected return on employers' share of scheme assets",{"$f":"IF(E982<>SUM(G982:J982),\"Error - row does not cross cast\",\"\")","v":""},null,null,null,null,null,null,null,null,{"$f":"M977","v":-750000},{"$f":"N977","v":750000},null,null,null,null,null,null,null,null,null,null,null,null,null,null,null,null,"Consol, EFA/DfE Pension Note",null,1,null,4,null,null,null,{"$f":"COUNTA(E982:E982)","v":0},null,{"$f":"COUNTA(H982:J982)","v":0}]
[null,null,"Interest on pension liabilities","",null,null,null,null,null,null,null,null,{"$f":"M982","v":-750000},{"$f":"N982","v":750000},null,null,null,null,null,null,null,null,null,null,null,null,null,null,null,null,"Consol, EFA/DfE Pension Note",null,1,null,4,null,null,null,0,null,0]
[]
[null,null,"Pension finance return/(charge)",null,{"$f":"SUM(E982:E984)","v":0},null,{"$f":"SUM(G982:G984)","v":0},{"$f":"SUM(H982:H984)","v":0},{"$f":"SUM(I982:I984)","v":0},{"$f":"SUM(J982:J984)","v":0}]
[]
["SoFA","Actuarial gains/(losses) recognised",null,{"$f":"IF(E987<>SUM(G987:J987),\"Error - row does not cross cast\",\"\")","v":""},{"$f":"E45","v":0},null,null,null,null,null,null,null,{"$f":"M983","v":-750000},{"$f":"N983","v":750000},null,null,null,null,null,null,null,null,null,null,null,null,null,null,null,null,"Consol, EFA/DfE Pension Note",null,null,null,4,null,null,null,null,null,{"$f":"COUNTA(H987:J987)","v":0}]
[null,null,null,{"$f":"IF(D987<>\"\",\"Total does not agree - cell E43\",\"\")","v":""}]
[null,"Movements in the present value of obligations during the year"]
[null,null,"Opening present value of scheme obligations",{"$f":"IF(E990<>SUM(G990:J990),\"Error - row does not cross cast\",\"\")","v":""},null,null,null,null,null,null,null,null,-750000,null,null,null,null,null,null,null,null,null,null,null,null,null,null,null,null,null,"Consol, EFA/DfE Pension Note",null,1,null,4,null,null,null,{"$f":"COUNTA(E990:E990)","v":0},null,{"$f":"COUNTA(H990:J990)","v":0}]
[null,null,"Service cost","",null,null,null,null,null,null,null,null,-750000,null,null,null,null,null,null,null,null,null,null,null,null,null,null,null,null,null,"Consol, EFA/DfE Pension Note",null,1,null,4,null,null,null,0,null,0]
[null,null,"Interest cost","",null,null,null,null,null,null,null,null,-750000,null,null,null,null,null,null,null,null,null,null,null,null,null,null,null,null,null,"Consol, EFA/DfE Pension Note",null,1,null,4,null,null,null,0,null,0]
[null,null,"Actuarial loss/(gain)","",null,null,null,null,null,null,null,null,-750000,750000,null,null,null,null,null,null,null,null,null,null,null,null,null,null,null,null,"Consol, EFA/DfE Pension Note",null,1,null,4,null,null,null,0,null,0]
[null,null,"Employee contributions","",null,null,null,null,null,null,null,null,-750000,750000,null,null,null,null,null,null,null,null,null,null,null,null,null,null,null,null,"Consol, EFA/DfE Pension Note",null,1,null,4,null,null,null,0,null,0]
[null,null,"Benefits paid","",null,null,null,null,null,null,null,null,null,750000,null,null,null,null,null,null,null,null,null,null,null,null,null,null,null,null,"Consol, EFA/DfE Pension Note",null,1,null,4,null,null,null,0,null,0]
[null,null,"Curtailments and settlements","",null,null,null,null,null,null,null,null,-750000,750000,null,null,null,null,null,null,null,null,null,null,null,null,null,null,null,null,"Consol, EFA/DfE Pension Note",null,1,null,4,null,null,null,0,null,0]
[null,null,"Past service cost/(gain)","",null,null,null,null,null,null,null,null,-750000,750000,null,null,null,null,null,null,null,null,null,null,null,null,null,null,null,null,"Consol, EFA/DfE Pension Note",null,1,null,4,null,null,null,0,null,0]
[null,null,"Unfunded pension payments","",null,null,null,null,null,null,null,null,null,750000,null,null,null,null,null,null,null,null,null,null,null,null,null,null,null,null,"Consol, EFA/DfE Pension Note",null,1,null,4,null,null,null,0,null,0]
[null,null,"Transfer in from new academies","",null,null,null,null,null,null,null,null,-750000,null,null,null,null,null,null,null,null,null,null,null,null,null,null,null,null,null,"Consol, EFA/DfE Pension Note",null,1,null,4,null,null,null,0,null,0]
[]
[null,null,"Closing defined benefit obligation",null,{"$f":"SUM(E990:E1000)","v":0},null,{"$f":"SUM(G990:G1000)","v":0},{"$f":"SUM(H990:H1000)","v":0},{"$f":"SUM(I990:I1000)","v":0},{"$f":"SUM(J990:J1000)","v":0}]
[]
[null,"Movements in the fair value of the Academy's share of scheme assets"]
[null,null,"Opening fair value of scheme assets",{"$f":"IF(E1004<>SUM(G1004:J1004),\"Error - row does not cross cast\",\"\")","v":""},null,null,null,null,null,null,null,null,null,750000,null,null,null,null,null,null,null,null,null,null,null,null,null,null,null,null,"Consol, EFA/DfE Pension Note",null,1,null,4,null,null,null,{"$f":"COUNTA(E1004:E1004)","v":0},null,{"$f":"COUNTA(H1004:J1004)","v":0}]
[null,null,"Expected return on scheme assets","",null,null,null,null,null,null,null,null,null,750000,null,null,null,null,null,null,null,null,null,null,null,null,null,null,null,null,"Consol, EFA/DfE Pension Note",null,1,null,4,null,null,null,0,null,0]
[null,null,"Actuarial (loss)/gain","",null,null,null,null,null,null,null,null,-750000,750000,null,null,null,null,null,null,null,null,null,null,null,null,null,null,null,null,"Consol, EFA/DfE Pension Note",null,1,null,4,null,null,null,0,null,0]
[null,null,"Employer contributions","",null,null,null,null,null,null,null,null,null,750000,null,null,null,null,null,null,null,null,null,null,null,null,null,null,null,null,"Consol, EFA/DfE Pension Note",null,1,null,4,null,null,null,0,null,0]
[null,null,"Employee contributions","",{"$f":"+(E994)","v":0},null,{"$f":"+(G994)","v":0},0,0,0,null,null,null,750000,null,null,null,null,null,null,null,null,null,null,null,null,null,null,null,null,"Consol, EFA/DfE Pension Note",null,null,null,null,null,5,null,1,null,3]
[null,null,"Benefits paid","",{"$f":"+(E995)","v":0},null,0,0,0,0,null,null,-750000,null,null,null,null,null,null,null,null,null,null,null,null,null,null,null,null,null,"Consol, EFA/DfE Pension Note",null,null,null,null,null,5,null,1,null,3]
[null,null,"Transfer in from new academies","",null,null,null,null,null,null,null,null,null,750000,null,null,null,null,null,null,null,null,null,null,null,null,null,null,null,null,"Consol, EFA/DfE Pension Note",null,1,null,4,null,null,null,0,null,0]
[]
[null,null,"Closing fair value of scheme assets",null,{"$f":"SUM(E1004:E1011)","v":0},null,{"$f":"SUM(G1004:G1011)","v":0},{"$f":"SUM(H1004:H1011)","v":0},{"$f":"SUM(I1004:I1011)","v":0},{"$f":"SUM(J1004:J1011)","v":0}]
[]
[null,"Reconciliation of opening to closing (deficit)/surplus"]
[null,null,"Opening balance",{"$f":"IF(E1015<>SUM(G1015:J1015),\"Error - row does not cross cast\",\"\")","v":""},{"$f":"E990+E1004","v":0},null,{"$f":"G990+G1004","v":0},{"$f":"H990+H1004","v":0},0,0,null,null,{"$f":"M1010","v":0},{"$f":"N1010","v":750000},null,null,null,null,null,null,null,null,null,null,null,null,null,null,null,null,"Consol, EFA/DfE Pension Note",null,null,null,null,null,5,null,{"$f":"COUNTA(E1015:E1015)","v":1},null,{"$f":"COUNTA(H1015:J1015)","v":3}]
[null,null,"Change in asset valuation","",{"$f":"E1005","v":0},null,{"$f":"G1005","v":0},{"$f":"H1005","v":0},0,0,null,null,{"$f":"M1015","v":0},{"$f":"N1015","v":750000},null,null,null,null,null,null,null,null,null,null,null,null,null,null,null,null,"Consol, EFA/DfE Pension Note",null,null,null,null,null,5,null,1,null,3]
[null,null,"Current service cost","",{"$f":"E991","v":0},null,{"$f":"G991","v":0},{"$f":"H991","v":0},0,0,null,null,{"$f":"M1016","v":0},750000,null,null,null,null,null,null,null,null,null,null,null,null,null,null,null,null,"Consol, EFA/DfE Pension Note",null,null,null,null,null,5,null,1,null,3]
[null,null,"Employer contributions","",{"$f":"E1007","v":0},null,{"$f":"G1007","v":0},{"$f":"H1007","v":0},0,0,null,null,0,750000,null,null,null,null,null,null,null,null,null,null,null,null,null,null,null,null,"Consol, EFA/DfE Pension Note",null,null,null,null,null,5,null,1,null,3]
[null,null,"Unfunded pension payments","",{"$f":"E998","v":0},null,{"$f":"G998","v":0},{"$f":"H998","v":0},0,0,null,null,0,750000,null,null,null,null,null,null,null,null,null,null,null,null,null,null,null,null,"Consol, EFA/DfE Pension Note",null,null,null,null,null,5,null,1,null,3]
[null,null,"Past service costs","",{"$f":"E997","v":0},null,{"$f":"G997","v":0},{"$f":"H997","v":0},0,0,null,null,0,750000,null,null,null,null,null,null,null,null,null,null,null,null,null,null,null,null,"Consol, EFA/DfE Pension Note",null,null,null,null,null,5,null,1,null,3]
[null,null,"Other finance income","",{"$f":"E992","v":0},null,{"$f":"G992","v":0},{"$f":"H992","v":0},0,0,null,null,0,750000,null,null,null,null,null,null,null,null,null,null,null,null,null,null,null,null,"Consol, EFA/DfE Pension Note",null,null,null,null,null,5,null,1,null,3]
[null,null,"Curtailments and settlements","",{"$f":"E996","v":0},null,{"$f":"G996","v":0},{"$f":"H996","v":0},0,0,null,null,0,750000,null,null,null,null,null,null,null,null,null,null,null,null,null,null,null,null,"Consol, EFA/DfE Pension Note",null,null,null,null,null,5,null,1,null,3]
[null,null,"Actuarial (loss)/gain","",{"$f":"E993+E1006","v":0},null,{"$f":"G993+G1006","v":0},{"$f":"H993+H1006","v":0},0,0,null,null,0,750000,null,null,null,null,null,null,null,null,null,null,null,null,null,null,null,null,"Consol, EFA/DfE Pension Note",null,null,null,null,null,5,null,1,null,3]
[null,null,"Transfer in from new academies","",{"$f":"E1010+E999","v":0},null,{"$f":"G1010+G999","v":0},{"$f":"H1010+H999","v":0},0,0,null,null,0,750000,null,null,null,null,null,null,null,null,null,null,null,null,null,null,null,null,"Consol, EFA/DfE Pension Note",null,null,null,null,null,5,null,1,null,3]
[]
[null,null,"Closing balance",{"$f":"IF(E1026<>G87, \"Error - not equal to balance sheet\",\"\")","v":""},{"$f":"SUM(E1015:E1025)","v":0},null,{"$f":"SUM(G1015:G1025)","v":0},{"$f":"SUM(H1015:H1025)","v":0},{"$f":"SUM(I1015:I1025)","v":0},{"$f":"SUM(J1015:J1025)","v":0}]
[]
[]
["CONVERSION TO AN ACADEMY TRUST\nIN THE YEAR OF CONVERSION ONLY",null,null,{"$f":"IF(COUNTA(G1029:Z1029)<>COUNTIF('Standing Data'!F49:F148,\"New member\"),\"Error - standing data shows more or less new members\",\"\")","v":""},null,"Academy Name"]
[null,null,null,null,null,"UPIN",{"$f":"IFERROR(VLOOKUP(G1029,Reference!$O$10:$S$3921,2,FALSE),\"\")","v":""},{"$f":"IFERROR(VLOOKUP(H1029,Reference!$O$10:$S$3921,2,FALSE),\"\")","v":""},{"$f":"IFERROR(VLOOKUP(I1029,Reference!$O$10:$S$3921,2,FALSE),\"\")","v":""},{"$f":"IFERROR(VLOOKUP(J1029,Reference!$O$10:$S$3921,2,FALSE),\"\")","v":""},{"$f":"IFERROR(VLOOKUP(K1029,Reference!$O$10:$S$3921,2,FALSE),\"\")","v":""},{"$f":"IFERROR(VLOOKUP(L1029,Reference!$O$10:$S$3921,2,FALSE),\"\")","v":""},{"$f":"IFERROR(VLOOKUP(M1029,Reference!$O$10:$S$3921,2,FALSE),\"\")","v":""},{"$f":"IFERROR(VLOOKUP(N1029,Reference!$O$10:$S$3921,2,FALSE),\"\")","v":""},{"$f":"IFERROR(VLOOKUP(O1029,Reference!$O$10:$S$3921,2,FALSE),\"\")","v":""},{"$f":"IFERROR(VLOOKUP(P1029,Reference!$O$10:$S$3921,2,FALSE),\"\")","v":""},{"$f":"IFERROR(VLOOKUP(Q1029,Reference!$O$10:$S$3921,2,FALSE),\"\")","v":""},{"$f":"IFERROR(VLOOKUP(R1029,Reference!$O$10:$S$3921,2,FALSE),\"\")","v":""},{"$f":"IFERROR(VLOOKUP(S1029,Reference!$O$10:$S$3921,2,FALSE),\"\")","v":""},{"$f":"IFERROR(VLOOKUP(T1029,Reference!$O$10:$S$3921,2,FALSE),\"\")","v":""},{"$f":"IFERROR(VLOOKUP(U1029,Reference!$O$10:$S$3921,2,FALSE),\"\")","v":""},{"$f":"IFERROR(VLOOKUP(V1029,Reference!$O$10:$S$3921,2,FALSE),\"\")","v":""},{"$f":"IFERROR(VLOOKUP(W1029,Reference!$O$10:$S$3921,2,FALSE),\"\")","v":""},{"$f":"IFERROR(VLOOKUP(X1029,Reference!$O$10:$S$3921,2,FALSE),\"\")","v":""},{"$f":"IFERROR(VLOOKUP(Y1029,Reference!$O$10:$S$3921,2,FALSE),\"\")","v":""},{"$f":"IFERROR(VLOOKUP(Z1029,Reference!$O$10:$S$3921,2,FALSE),\"\")","v":""}]
[null,null,null,null,null,"LA",{"$f":"IFERROR(VLOOKUP(G$1029,Reference!$O$10:$S$3921,5,FALSE),\"\")","v":""},{"$f":"IFERROR(VLOOKUP(H$1029,Reference!$O$10:$S$3921,5,FALSE),\"\")","v":""},{"$f":"IFERROR(VLOOKUP(I$1029,Reference!$O$10:$S$3921,5,FALSE),\"\")","v":""},{"$f":"IFERROR(VLOOKUP(J$1029,Reference!$O$10:$S$3921,5,FALSE),\"\")","v":""},{"$f":"IFERROR(VLOOKUP(K$1029,Reference!$O$10:$S$3921,5,FALSE),\"\")","v":""},{"$f":"IFERROR(VLOOKUP(L$1029,Reference!$O$10:$S$3921,5,FALSE),\"\")","v":""},{"$f":"IFERROR(VLOOKUP(M$1029,Reference!$O$10:$S$3921,5,FALSE),\"\")","v":""},{"$f":"IFERROR(VLOOKUP(N$1029,Reference!$O$10:$S$3921,5,FALSE),\"\")","v":""},{"$f":"IFERROR(VLOOKUP(O$1029,Reference!$O$10:$S$3921,5,FALSE),\"\")","v":""},{"$f":"IFERROR(VLOOKUP(P$1029,Reference!$O$10:$S$3921,5,FALSE),\"\")","v":""},{"$f":"IFERROR(VLOOKUP(Q$1029,Reference!$O$10:$S$3921,5,FALSE),\"\")","v":""},{"$f":"IFERROR(VLOOKUP(R$1029,Reference!$O$10:$S$3921,5,FALSE),\"\")","v":""},{"$f":"IFERROR(VLOOKUP(S$1029,Reference!$O$10:$S$3921,5,FALSE),\"\")","v":""},{"$f":"IFERROR(VLOOKUP(T$1029,Reference!$O$10:$S$3921,5,FALSE),\"\")","v":""},{"$f":"IFERROR(VLOOKUP(U$1029,Reference!$O$10:$S$3921,5,FALSE),\"\")","v":""},{"$f":"IFERROR(VLOOKUP(V$1029,Reference!$O$10:$S$3921,5,FALSE),\"\")","v":""},{"$f":"IFERROR(VLOOKUP(W$1029,Reference!$O$10:$S$3921,5,FALSE),\"\")","v":""},{"$f":"IFERROR(VLOOKUP(X$1029,Reference!$O$10:$S$3921,5,FALSE),\"\")","v":""},{"$f":"IFERROR(VLOOKUP(Y$1029,Reference!$O$10:$S$3921,5,FALSE),\"\")","v":""},{"$f":"IFERROR(VLOOKUP(Z$1029,Reference!$O$10:$S$3921,5,FALSE),\"\")","v":""},null,"Lower limit","Upper limit ",null,null,null,null,null,null,null,20]
[null,null,null,null,null,"CPID Ref.",{"$f":"IFERROR(VLOOKUP(G1031,'CP IDs'!$A$2:$D$5122,2,FALSE),\"\")","v":""},{"$f":"IFERROR(VLOOKUP(H1031,'CP IDs'!$A$2:$D$5122,2,FALSE),\"\")","v":""},{"$f":"IFERROR(VLOOKUP(I1031,'CP IDs'!$A$2:$D$5122,2,FALSE),\"\")","v":""},{"$f":"IFERROR(VLOOKUP(J1031,'CP IDs'!$A$2:$D$5122,2,FALSE),\"\")","v":""},{"$f":"IFERROR(VLOOKUP(K1031,'CP IDs'!$A$2:$D$5122,2,FALSE),\"\")","v":""},{"$f":"IFERROR(VLOOKUP(L1031,'CP IDs'!$A$2:$D$5122,2,FALSE),\"\")","v":""},{"$f":"IFERROR(VLOOKUP(M1031,'CP IDs'!$A$2:$D$5122,2,FALSE),\"\")","v":""},{"$f":"IFERROR(VLOOKUP(N1031,'CP IDs'!$A$2:$D$5122,2,FALSE),\"\")","v":""},{"$f":"IFERROR(VLOOKUP(O1031,'CP IDs'!$A$2:$D$5122,2,FALSE),\"\")","v":""},{"$f":"IFERROR(VLOOKUP(P1031,'CP IDs'!$A$2:$D$5122,2,FALSE),\"\")","v":""},{"$f":"IFERROR(VLOOKUP(Q1031,'CP IDs'!$A$2:$D$5122,2,FALSE),\"\")","v":""},{"$f":"IFERROR(VLOOKUP(R1031,'CP IDs'!$A$2:$D$5122,2,FALSE),\"\")","v":""},{"$f":"IFERROR(VLOOKUP(S1031,'CP IDs'!$A$2:$D$5122,2,FALSE),\"\")","v":""},{"$f":"IFERROR(VLOOKUP(T1031,'CP IDs'!$A$2:$D$5122,2,FALSE),\"\")","v":""},{"$f":"IFERROR(VLOOKUP(U1031,'CP IDs'!$A$2:$D$5122,2,FALSE),\"\")","v":""},{"$f":"IFERROR(VLOOKUP(V1031,'CP IDs'!$A$2:$D$5122,2,FALSE),\"\")","v":""},{"$f":"IFERROR(VLOOKUP(W1031,'CP IDs'!$A$2:$D$5122,2,FALSE),\"\")","v":""},{"$f":"IFERROR(VLOOKUP(X1031,'CP IDs'!$A$2:$D$5122,2,FALSE),\"\")","v":""},{"$f":"IFERROR(VLOOKUP(Y1031,'CP IDs'!$A$2:$D$5122,2,FALSE),\"\")","v":""},{"$f":"IFERROR(VLOOKUP(Z1031,'CP IDs'!$A$2:$D$5122,2,FALSE),\"\")","v":""}]
[null,null,null,{"$f":"IF(COUNTA(G1033:Z1033)<>COUNTA(G1029:Z1029),\"Error - Imbalance between rows 1029 & 1033\",\"\")","v":""},null,"Converted From"]
[null,"Tangible fixed assets",null,null,"£000",null,"£000","£000","£000","£000","£000","£000","£000","£000","£000","£000","£000","£000","£000","£000","£000","£000","£000","£000","£000","£000",null,"£000","£000"]
[null,null,"Land",{"$f":"IF(SUM(E1035:E1036)<>(G484+G485+H484+H485+I484+I485),\"Error - imbalance with FA note\",\"\")","v":""},{"$f":"SUM(G1035:Z1035)","v":0},null,null,null,null,null,null,null,null,null,null,null,null,null,null,null,null,null,null,null,null,null,null,null,{"$f":"$J$65","v":750000},null,"Consol, EFA/DfE Acquisition Note",null,null,null,20,null,null,null,null,null,{"$f":"COUNTA(G1035:Z1035)","v":0},null,{"$f":"COUNTIF(E1035:E1035,\"<>0\")","v":0}]
[null,null,"Buildings",null,{"$f":"SUM(G1036:Z1036)","v":0},null,null,null,null,null,null,null,null,null,null,null,null,null,null,null,null,null,null,null,null,null,null,null,{"$f":"AC1035","v":750000},null,"Consol, EFA/DfE Acquisition Note",null,null,null,20,null,null,null,null,null,0]
[null,null,"Other assets",{"$f":"IF(E1037<>SUM(J484:O485),\"Error - imbalance with FA note\",\"\")","v":""},0,null,null,null,null,null,null,null,null,null,null,null,null,null,null,null,null,null,null,null,null,null,null,null,{"$f":"AC1036","v":750000},null,"Consol, EFA/DfE Acquisition Note",null,null,null,20,null,null,null,null,null,0,null,{"$f":"COUNTIF(E1037:E1037,\"<>0\")","v":0}]
[null,"Intangible fixed assets",null,{"$f":"IF(E1038<>(E541+E542),\"Error - imbalance with FA Note\",\"\")","v":""},0,null,null,null,null,null,null,null,null,null,null,null,null,null,null,null,null,null,null,null,null,null,null,null,{"$f":"AC1037","v":750000},null,"Consol, EFA/DfE Acquisition Note",null,null,null,20,null,null,null,null,null,0,null,0]
[null,"Investments",null,{"$f":"IF(E1039<>(E582+E647),\"Error - imbalance with Inv. Notes\",\"\")","v":""},0,null,null,null,null,null,null,null,null,null,null,null,null,null,null,null,null,null,null,null,null,null,null,null,750000,null,"Consol, EFA/DfE Acquisition Note",null,null,null,20,null,null,null,null,null,0,null,0]
[null,"Stock",null,null,{"$f":"SUM(G1040:Z1040)","v":0},null,null,null,null,null,null,null,null,null,null,null,null,null,null,null,null,null,null,null,null,null,null,null,{"$f":"AC1039","v":750000},null,"Consol, EFA/DfE Acquisition Note",null,null,null,20,null,null,null,null,null,0]
[null,"Debtors after more than one year",null,null,{"$f":"SUM(G1041:Z1041)","v":0},null,null,null,null,null,null,null,null,null,null,null,null,null,null,null,null,null,null,null,null,null,null,null,{"$f":"AC1040","v":750000},null,"Consol, EFA/DfE Acquisition Note",null,null,null,20,null,null,null,null,null,{"$f":"COUNTA(G1041:Z1041)","v":0}]
[null,"Debtors"]
[null,null,"Trade debtors",null,{"$f":"SUM(G1043:Z1043)","v":0},null,null,null,null,null,null,null,null,null,null,null,null,null,null,null,null,null,null,null,null,null,null,null,{"$f":"AC1041","v":750000},null,"Consol, EFA/DfE Acquisition Note",null,null,null,20,null,null,null,null,null,0]
[null,null,"Prepayments and accrued income",null,0,null,null,null,null,null,null,null,null,null,null,null,null,null,null,null,null,null,null,null,null,null,null,null,{"$f":"AC1043","v":750000},null,"Consol, EFA/DfE Acquisition Note",null,null,null,20,null,null,null,null,null,0]
[null,null,"VAT",null,0,null,null,null,null,null,null,null,null,null,null,null,null,null,null,null,null,null,null,null,null,null,null,null,750000,null,"Consol, EFA/DfE Acquisition Note",null,null,null,20,null,null,null,null,null,0]
[null,null,"Other debtors",null,0,null,null,null,null,null,null,null,null,null,null,null,null,null,null,null,null,null,null,null,null,null,null,null,750000,null,"Consol, EFA/DfE Acquisition Note",null,null,null,20,null,null,null,null,null,0]
[null,"Cash at bank and in hand",null,null,0,null,null,null,null,null,null,null,null,null,null,null,null,null,null,null,null,null,null,null,null,null,null,null,750000,null,"Consol, EFA/DfE Acquisition Note",null,null,null,20,null,null,null,null,null,0]
[]
[null,"Total assets",null,null,{"$f":"SUM(E1034:E1048)","v":0},null,{"$f":"SUM(G1034:G1048)","v":0},0,0,0,0,0,0,0,0,0,0,0,0,0,0,0,0,0,0,0]
[null,"Creditors less than one year"]
[null,null,"Bank overdrafts",null,{"$f":"SUM(G1051:Z1051)","v":0},null,null,null,null,null,null,null,null,null,null,null,null,null,null,null,null,null,null,null,null,null,null,{"$f":"$I$91","v":-750000},0,null,"Consol, EFA/DfE Acquisition Note",null,null,null,20,null,null,null,null,null,0]
[null,null,"Loans",null,0,null,null,null,null,null,null,null,null,null,null,null,null,null,null,null,null,null,null,null,null,null,null,{"$f":"AB1051","v":-750000},{"$f":"AC1051","v":0},null,"Consol, EFA/DfE Acquisition Note",null,null,null,20,null,null,null,null,null,0]
[null,null,"Trade creditors",null,0,null,null,null,null,null,null,null,null,null,null,null,null,null,null,null,null,null,null,null,null,null,null,-750000,0,null,"Consol, EFA/DfE Acquisition Note",null,null,null,20,null,null,null,null,null,0]
[null,null,"Other taxes and social security",null,0,null,null,null,null,null,null,null,null,null,null,null,null,null,null,null,null,null,null,null,null,null,null,-750000,0,null,"Consol, EFA/DfE Acquisition Note",null,null,null,20,null,null,null,null,null,0]
[null,null,"Finance leases",null,0,null,null,null,null,null,null,null,null,null,null,null,null,null,null,null,null,null,null,null,null,null,null,-750000,0,null,"Consol, EFA/DfE Acquisition Note",null,null,null,20,null,null,null,null,null,0]
[null,null,"VAT",null,0,null,null,null,null,null,null,null,null,null,null,null,null,null,null,null,null,null,null,null,null,null,null,-750000,0,null,"Consol, EFA/DfE Acquisition Note",null,null,null,20,null,null,null,null,null,0]
[null,null,"Other creditors",null,0,null,null,null,null,null,null,null,null,null,null,null,null,null,null,null,null,null,null,null,null,null,null,-750000,0,null,"Consol, EFA/DfE Acquisition Note",null,null,null,20,null,null,null,null,null,0]
[null,null,"Accruals and deferred income",null,0,null,null,null,null,null,null,null,null,null,null,null,null,null,null,null,null,null,null,null,null,null,null,-750000,0,null,"Consol, EFA/DfE Acquisition Note",null,null,null,20,null,null,null,null,null,0]
[null,"Creditors more than one year"]
[null,null,"Loans",null,{"$f":"SUM(G1060:Z1060)","v":0},null,null,null,null,null,null,null,null,null,null,null,null,null,null,null,null,null,null,null,null,null,null,{"$f":"AB1058","v":-750000},{"$f":"AC1058","v":0},null,"Consol, EFA/DfE Acquisition Note",null,null,null,20,null,null,null,null,null,0]
[null,null,"Finance leases",null,0,null,null,null,null,null,null,null,null,null,null,null,null,null,null,null,null,null,null,null,null,null,null,{"$f":"AB1060","v":-750000},{"$f":"AC1060","v":0},null,"Consol, EFA/DfE Acquisition Note",null,null,null,20,null,null,null,null,null,0]
[null,null,"Other creditors",null,0,null,null,null,null,null,null,null,null,null,null,null,null,null,null,null,null,null,null,null,null,null,null,-750000,0,null,"Consol, EFA/DfE Acquisition Note",null,null,null,20,null,null,null,null,null,0]
[null,"Provisions for liabilities and charges",null,null,0,null,null,null,null,null,null,null,null,null,null,null,null,null,null,null,null,null,null,null,null,null,null,-750000,0,null,"Consol, EFA/DfE Acquisition Note",null,null,null,20,null,null,null,null,null,0]
[]
[null,"Total assets less trading liabilities",null,null,{"$f":"SUM(E1049:E1064)","v":0},null,{"$f":"SUM(G1049:G1064)","v":0},0,0,0,0,0,0,0,{"$f":"SUM(O1049:O1064)","v":0},0,0,0,0,0,0,0,0,0,0,0]
[null,"Other balances"]
[null,null,"Pensions scheme surplus/(deficit)",{"$f":"IF(E1067<>G87,\"Error - imbalance with pension note\",\"\")","v":""},{"$f":"SUM(G1067:Z1067)","v":0},null,null,null,null,null,null,null,null,null,null,null,null,null,null,null,null,null,null,null,null,null,null,{"$f":"AB1063","v":-750000},{"$f":"AC1047","v":750000},null,"Consol, EFA/DfE Acquisition Note",null,null,null,20,null,null,null,null,null,{"$f":"COUNTA(G1067:Z1067)","v":0}]
[]
[null,"Identifiable net assets/(liabilities)",null,{"$f":"IF(E1069<>(E21-E32+E53),\"Error - Not equal to transfers and funds obtained on conversion in the SoFA\",\"\")","v":""},{"$f":"SUM(E1065:E1068)","v":0},null,{"$f":"SUM(G1065:G1068)","v":0},0,0,0,0,0,0,0,{"$f":"SUM(O1065:O1068)","v":0},0,0,0,0,0,0,0,0,0,0,0]
[null,null,null,null,null,null,{"$f":"IF(AND(G1029=\"\",COUNT(G1035:G1067)-2>0),\"Error - name of academy school not provided in row 1029\",\"\")","v":""},{"$f":"IF(AND(H1029=\"\",COUNT(H1035:H1067)-2>0),\"Error - name of academy school not provided in row 1029\",\"\")","v":""},"","","","","","","","","","","","","","","","","",""]
[]
["CAPITAL COMMITMENTS",null,null,null,{"$f":"E62","v":2014},null,"Lower limit","Upper limit "]
[null,null,null,null,"£000",null,"£000","£000"]
[null,"Contracted for, but not recognised in the financial statements"]
[null,null,"Tangible fixed assets","Notes",null,null,0,{"$f":"$J$65","v":750000},null,null,null,null,null,null,null,null,null,null,null,null,null,null,null,null,null,null,null,null,null,null,"Consol, EFA/DfE Capital Commitments Note",null,null,null,1,null,null,null,null,null,{"$f":"COUNTA(E1075:E1075)","v":0}]
[null,null,"Intangible assets",null,null,null,{"$f":"G1075","v":0},{"$f":"H1075","v":750000},null,null,null,null,null,null,null,null,null,null,null,null,null,null,null,null,null,null,null,null,null,null,"Consol, EFA/DfE Capital Commitments Note",null,null,null,1,null,null,null,null,null,{"$f":"COUNTA(E1076:E1076)","v":0}]
[]
[null,"Please analyse capital commitments between tangible and intangible asset classes.",null,null,null,null,{"$f":"G1076","v":0},{"$f":"H1076","v":750000},null,null,null,null,null,null,null,null,null,null,null,null,null,null,null,null,null,null,null,null,null,null,null,null,1,null,null,null,null,null,{"$f":"COUNTA(E1078:E1078)","v":0}]
[null,null,null,null,{"$f":"IF(E1078<>SUM(E1075:E1076),\"Error - column does not cast\",\"\")","v":""}]
[]
["FINANCIAL COMMITMENTS (Operating leases)",null,null,null,"Total",null,"Land","Buildings","Other",null,null,null,null,null,"Lower limit","Upper limit "]
[null,null,null,null,"£000",null,"£000","£000","£000",null,null,null,null,null,"£000","£000"]
[null,"Academy GAAP (SORP)"]
[null,null,"Expiring within one year",null,{"$f":"SUM(G1084:M1084)","v":0},null,null,null,null,null,null,null,null,null,0,{"$f":"$J$65","v":750000},null,null,null,null,null,null,null,null,null,null,null,null,null,null,null,null,3,null,null,null,null,null,{"$f":"COUNTA(G1084:I1084)","v":0}]
[null,null,"Expiring within two and five years inclusive",null,{"$f":"SUM(G1085:M1085)","v":0},null,null,null,null,null,null,null,null,null,{"$f":"O1084","v":0},{"$f":"P1084","v":750000},null,null,null,null,null,null,null,null,null,null,null,null,null,null,null,null,3,null,null,null,null,null,{"$f":"COUNTA(G1085:I1085)","v":0}]
[null,null,"Expiring in over five years",null,{"$f":"SUM(G1086:M1086)","v":0},null,null,null,null,null,null,null,null,null,{"$f":"O1085","v":0},{"$f":"P1085","v":750000},null,null,null,null,null,null,null,null,null,null,null,null,null,null,null,null,3,null,null,null,null,null,{"$f":"COUNTA(G1086:I1086)","v":0}]
[]
[null,null,null,null,{"$f":"SUM(E1084:E1087)","v":0},null,{"$f":"SUM(G1084:G1087)","v":0},{"$f":"SUM(H1084:H1087)","v":0},{"$f":"SUM(I1084:I1087)","v":0}]
[]
[null,"Academies follow SORP in which the annual cost of each lease is only included within the timestep in which it expires."]
[null,"This is different to the FReM requirements adopted by EFA, DfE and Government."]
[]
[null,null,null,null,"Total",null,"Land","Buildings","Other"]
[null,null,null,null,"£000",null,"£000","£000","£000"]
[null,"EFA/DfE (FReM)"]
[null,null,"Within one year","Notes",{"$f":"SUM(G1096:M1096)","v":0},null,null,null,null,null,null,null,null,null,{"$f":"O1086","v":0},{"$f":"P1086","v":750000},null,null,null,null,null,null,null,null,null,null,null,null,null,null,"Consol, EFA/DfE Lease Commitments Note",null,null,null,null,3,null,null,null,null,null,{"$f":"COUNTA(G1096:I1096)","v":0}]
[null,null,"Within two and five years inclusive",null,{"$f":"SUM(G1097:M1097)","v":0},null,null,null,null,null,null,null,null,null,{"$f":"O1096","v":0},{"$f":"P1096","v":750000},null,null,null,null,null,null,null,null,null,null,null,null,null,null,"Consol, EFA/DfE Lease Commitments Note",null,null,null,null,3,null,null,null,null,null,{"$f":"COUNTA(G1097:I1097)","v":0}]
[null,null,"Over five years",null,{"$f":"SUM(G1098:M1098)","v":0},null,null,null,null,null,null,null,null,null,0,750000,null,null,null,null,null,null,null,null,null,null,null,null,null,null,"Consol, EFA/DfE Lease Commitments Note",null,null,null,null,3,null,null,null,null,null,{"$f":"COUNTA(G1098:I1098)","v":0}]
[]
[null,null,null,null,{"$f":"SUM(E1096:E1099)","v":0},null,{"$f":"SUM(G1096:G1099)","v":0},{"$f":"SUM(H1096:H1099)","v":0},0]
[null,null,"Recovered through sub-letting",null,{"$f":"SUM(G1101:I1101)","v":0},null,null,null,null,null,null,null,null,null,{"$f":"-P1098","v":-750000},{"$f":"P1100","v":0},null,null,null,null,null,null,null,null,null,null,null,null,null,null,null,null,null,null,null,3,null,null,null,null,null,{"$f":"COUNTA(G1101:I1101)","v":0}]
[]
[null,null,null,null,{"$f":"SUM(E1100:E1102)","v":0},null,{"$f":"SUM(G1100:G1102)","v":0},{"$f":"SUM(H1100:H1102)","v":0},0]
[null,null,null,null,{"$f":"IF(E1103<>E1128,\"Error\",\"\")","v":""},null,{"$f":"IF(G1100<>SUM(E1113:E1115),\"Error\",\"\")","v":""},{"$f":"IF(H1100<>SUM(E1117:E1119),\"Error\",\"\")","v":""},{"$f":"IF(I1100<>SUM(E1121:E1123),\"Error\",\"\")","v":""}]
[null,null,null,null,{"$f":"IF(E1104=\"Error\",\"- imbalance E1128\",\"\")","v":""},null,{"$f":"IF(G1104=\"Error\",\"- imbalance E1113 to E1115\",\"\")","v":""},{"$f":"IF(H1104=\"Error\",\"- imbalance E1117 to E1119\",\"\")","v":""},{"$f":"IF(I1104=\"Error\", \"- imbalance E1121 to E1123\",\"\")","v":""}]
[null,"Academies will need to re-work the calculations behind their disclosures.  The annual cost of each lease will need "]
[null,"to be included in every timestep until it expires.  This is a different approach to the SORP adopted by Academies."]
[]
[null,"Counterparty analysis - EFA/DfE (FReM)",null,"Notes"]
[null,null,null,null,"Total",null,"DfE Family\n(see below)","Other Government","Other"]
[null,null,null,null,"£000",null,"£000","£000","£000"]
[null,"Land"]
[null,null,"Within one year",{"$f":"IF(E1113<>G1096,\"Error - within note\",\"\")","v":""},{"$f":"SUM(G1113:M1113)","v":0},null,{"$f":"E1136","v":0},null,null,null,null,null,null,null,{"$f":"O1112","v":0},{"$f":"P1084","v":750000},null,null,null,null,null,null,null,null,null,null,null,null,null,null,"Consol, EFA/DfE Lease Commitments Note",null,null,null,null,2,1,null,null,null,null,{"$f":"COUNTA(H1113:I1113)","v":0},{"$f":"COUNTIF(G1113:G1113,\"<>0\")","v":0}]
[null,null,"Within two and five years inclusive",{"$f":"IF(E1114<>G1097,\"Error - within note\",\"\")","v":""},{"$f":"SUM(G1114:M1114)","v":0},null,{"$f":"E1137","v":0},null,null,null,null,null,null,null,0,{"$f":"P1113","v":750000},null,null,null,null,null,null,null,null,null,null,null,null,null,null,"Consol, EFA/DfE Lease Commitments Note",null,null,null,null,2,1,null,null,null,null,{"$f":"COUNTA(H1114:I1114)","v":0},{"$f":"COUNTIF(G1114:G1114,\"<>0\")","v":0}]
[null,null,"Over five years",{"$f":"IF(E1115<>G1098,\"Error - within note\",\"\")","v":""},{"$f":"SUM(G1115:M1115)","v":0},null,{"$f":"E1138","v":0},null,null,null,null,null,null,null,0,750000,null,null,null,null,null,null,null,null,null,null,null,null,null,null,"Consol, EFA/DfE Lease Commitments Note",null,null,null,null,2,1,null,null,null,null,{"$f":"COUNTA(H1115:I1115)","v":0},0]
[null,"Buildings"]
[null,null,"Within one year",{"$f":"IF(E1117<>H1096,\"Error - within note\",\"\")","v":""},{"$f":"SUM(G1117:M1117)","v":0},null,{"$f":"E1140","v":0},null,null,null,null,null,null,null,{"$f":"O1113","v":0},{"$f":"P1113","v":750000},null,null,null,null,null,null,null,null,null,null,null,null,null,null,"Consol, EFA/DfE Lease Commitments Note",null,null,null,null,2,1,null,null,null,null,{"$f":"COUNTA(H1117:I1117)","v":0},{"$f":"COUNTIF(G1117:G1117,\"<>0\")","v":0}]
[null,null,"Within two and five years inclusive",{"$f":"IF(E1118<>H1097,\"Error - within note\",\"\")","v":""},{"$f":"SUM(G1118:M1118)","v":0},null,{"$f":"E1141","v":0},null,null,null,null,null,null,null,{"$f":"O1117","v":0},{"$f":"P1117","v":750000},null,null,null,null,null,null,null,null,null,null,null,null,null,null,"Consol, EFA/DfE Lease Commitments Note",null,null,null,null,2,1,null,null,null,null,{"$f":"COUNTA(H1118:I1118)","v":0},{"$f":"COUNTIF(G1118:G1118,\"<>0\")","v":0}]
[null,null,"Over five years",{"$f":"IF(E1119<>H1098,\"Error - within note\",\"\")","v":""},{"$f":"SUM(G1119:M1119)","v":0},null,{"$f":"E1142","v":0},null,null,null,null,null,null,null,0,750000,null,null,null,null,null,null,null,null,null,null,null,null,null,null,"Consol, EFA/DfE Lease Commitments Note",null,null,null,null,2,1,null,null,null,null,{"$f":"COUNTA(H1119:I1119)","v":0},0]
[null,"Other"]
[null,null,"Within one year",{"$f":"IF(E1121<>I1096,\"Error - within note\",\"\")","v":""},{"$f":"SUM(G1121:M1121)","v":0},null,{"$f":"E1144","v":0},null,null,null,null,null,null,null,{"$f":"O1117","v":0},{"$f":"P1117","v":750000},null,null,null,null,null,null,null,null,null,null,null,null,null,null,"Consol, EFA/DfE Lease Commitments Note",null,null,null,null,2,1,null,null,null,null,{"$f":"COUNTA(H1121:I1121)","v":0},{"$f":"COUNTIF(G1121:G1121,\"<>0\")","v":0}]
[null,null,"Within two and five years inclusive",{"$f":"IF(E1122<>I1097,\"Error - within note\",\"\")","v":""},{"$f":"SUM(G1122:M1122)","v":0},null,{"$f":"E1145","v":0},null,null,null,null,null,null,null,{"$f":"O1121","v":0},{"$f":"P1121","v":750000},null,null,null,null,null,null,null,null,null,null,null,null,null,null,"Consol, EFA/DfE Lease Commitments Note",null,null,null,null,2,1,null,null,null,null,{"$f":"COUNTA(H1122:I1122)","v":0},{"$f":"COUNTIF(G1122:G1122,\"<>0\")","v":0}]
[null,null,"Over five years",{"$f":"IF(E1123<>I1098,\"Error - within note\",\"\")","v":""},{"$f":"SUM(G1123:M1123)","v":0},null,{"$f":"E1146","v":0},null,null,null,null,null,null,null,0,750000,null,null,null,null,null,null,null,null,null,null,null,null,null,null,"Consol, EFA/DfE Lease Commitments Note",null,null,null,null,2,1,null,null,null,null,{"$f":"COUNTA(H1123:I1123)","v":0},0]
[]
[null,null,null,null,{"$f":"SUM(E1113:E1124)","v":0},null,{"$f":"SUM(G1113:G1124)","v":0},{"$f":"SUM(H1113:H1124)","v":0},{"$f":"SUM(I1113:I1124)","v":0}]
[null,null,"Recovered through sub-letting",{"$f":"IF(E1126<>E1101,\"Error - within note\",\"\")","v":""},{"$f":"SUM(G1126:M1126)","v":0},null,{"$f":"E1149","v":0},null,null,null,null,null,null,null,{"$f":"-P1123","v":-750000},0,null,null,null,null,null,null,null,null,null,null,null,null,null,null,"Consol, EFA/DfE Lease Commitments Note",null,null,null,null,2,1,null,null,null,null,{"$f":"COUNTA(H1126:I1126)","v":0},{"$f":"COUNTIF(G1126:G1126,\"<>0\")","v":0}]
[]
[null,null,null,null,{"$f":"SUM(E1125:E1127)","v":0},null,{"$f":"SUM(G1125:G1127)","v":0},{"$f":"SUM(H1125:H1127)","v":0},0]
[]
[null,"If sub-let to an academic body please identify here:",null,"Name here",null,null,null,null,null,null,null,null,null,null,null,null,null,null,null,null,null,null,null,null,null,null,null,null,null,null,"Consol, EFA/DfE Lease Commitments Note"]
[]
[null,"DfE Family Analysis (for cells G1108 to G1121)"]
[null,null,null,null,"Total",null,"DfE","EFA","NCTL","STA","CAFCASS","OCC"]
[null,null,null,null,"£000",null,"£000","£000","£000","£000","£000","£000"]
[null,"Land"]
[null,null,"Within one year",null,{"$f":"SUM(G1136:L1136)","v":0},null,null,null,null,null,null,null,null,null,{"$f":"O1135","v":0},{"$f":"P1084","v":750000},null,null,null,null,null,null,null,null,null,null,null,null,null,null,"Consol, EFA/DfE Lease Commitments Note",null,null,null,null,7,null,null,null,null,null,{"$f":"COUNTA(G1136:M1136)","v":0}]
[null,null,"Within two and five years inclusive",null,{"$f":"SUM(G1137:L1137)","v":0},null,null,null,null,null,null,null,null,null,0,{"$f":"P1136","v":750000},null,null,null,null,null,null,null,null,null,null,null,null,null,null,"Consol, EFA/DfE Lease Commitments Note",null,null,null,null,7,null,null,null,null,null,{"$f":"COUNTA(G1137:M1137)","v":0}]
[null,null,"Over five years",null,0,null,null,null,null,null,null,null,null,null,0,750000,null,null,null,null,null,null,null,null,null,null,null,null,null,null,"Consol, EFA/DfE Lease Commitments Note",null,null,null,null,7,null,null,null,null,null,{"$f":"COUNTA(G1138:M1138)","v":0}]
[null,"Buildings"]
[null,null,"Within one year",null,{"$f":"SUM(G1140:L1140)","v":0},null,null,null,null,null,null,null,null,null,{"$f":"O1136","v":0},{"$f":"P1136","v":750000},null,null,null,null,null,null,null,null,null,null,null,null,null,null,"Consol, EFA/DfE Lease Commitments Note",null,null,null,null,7,null,null,null,null,null,{"$f":"COUNTA(G1140:M1140)","v":0}]
[null,null,"Within two and five years inclusive",null,0,null,null,null,null,null,null,null,null,null,{"$f":"O1140","v":0},{"$f":"P1140","v":750000},null,null,null,null,null,null,null,null,null,null,null,null,null,null,"Consol, EFA/DfE Lease Commitments Note",null,null,null,null,7,null,null,null,null,null,{"$f":"COUNTA(G1141:M1141)","v":0}]
[null,null,"Over five years",null,0,null,null,null,null,null,null,null,null,null,0,750000,null,null,null,null,null,null,null,null,null,null,null,null,null,null,"Consol, EFA/DfE Lease Commitments Note",null,null,null,null,7,null,null,null,null,null,{"$f":"COUNTA(G1142:M1142)","v":0}]
[null,"Other"]
[null,null,"Within one year",null,{"$f":"SUM(G1144:L1144)","v":0},null,null,null,null,null,null,null,null,null,{"$f":"O1140","v":0},{"$f":"P1140","v":750000},null,null,null,null,null,null,null,null,null,null,null,null,null,null,"Consol, EFA/DfE Lease Commitments Note",null,null,null,null,7,null,null,null,null,null,{"$f":"COUNTA(G1144:M1144)","v":0}]
[null,null,"Within two and five years inclusive",null,0,null,null,null,null,null,null,null,null,null,{"$f":"O1144","v":0},{"$f":"P1144","v":750000},null,null,null,null,null,null,null,null,null,null,null,null,null,null,"Consol, EFA/DfE Lease Commitments Note",null,null,null,null,7,null,null,null,null,null,{"$f":"COUNTA(G1145:M1145)","v":0}]
[null,null,"Over five years",null,0,null,null,null,null,null,null,null,null,null,0,750000,null,null,null,null,null,null,null,null,null,null,null,null,null,null,"Consol, EFA/DfE Lease Commitments Note",null,null,null,null,7,null,null,null,null,null,{"$f":"COUNTA(G1146:M1146)","v":0}]
[]
[null,null,null,null,{"$f":"SUM(E1136:E1147)","v":0},null,{"$f":"SUM(G1136:G1147)","v":0},0,0,0,0,0]
[null,null,"Recovered through sub-letting",null,{"$f":"SUM(G1149:L1149)","v":0},null,null,null,null,null,null,null,null,null,{"$f":"-P1146","v":-750000},0,null,null,null,null,null,null,null,null,null,null,null,null,null,null,"Consol, EFA/DfE Lease Commitments Note",null,null,null,null,7,null,null,null,null,null,{"$f":"COUNTA(G1149:M1149)","v":0}]
[]
[null,null,null,null,{"$f":"SUM(E1148:E1150)","v":0},null,{"$f":"SUM(G1148:G1150)","v":0},{"$f":"SUM(H1148:H1150)","v":0},{"$f":"SUM(I1148:I1150)","v":0},0,0,0]
[]
[]
["FINANCIAL COMMITMENTS (Finance leases)",null,null,null,"Total",null,"Land","Buildings","Other",null,null,null,null,null,"Lower limit","Upper limit "]
[null,null,null,null,"£000",null,"£000","£000","£000",null,null,null,null,null,"£000","£000"]
[null,"Academy GAAP (SORP)"]
[null,null,"Expiring within one year",null,{"$f":"SUM(G1157:M1157)","v":0},null,null,null,null,null,null,null,null,null,0,{"$f":"$J$65","v":750000},null,null,null,null,null,null,null,null,null,null,null,null,null,null,null,null,3,null,null,null,null,null,{"$f":"COUNTA(G1157:I1157)","v":0}]
[null,null,"Expiring within two and five years inclusive",null,{"$f":"SUM(G1158:M1158)","v":0},null,null,null,null,null,null,null,null,null,{"$f":"O1157","v":0},{"$f":"P1157","v":750000},null,null,null,null,null,null,null,null,null,null,null,null,null,null,null,null,3,null,null,null,null,null,{"$f":"COUNTA(G1158:I1158)","v":0}]
[null,null,"Expiring in over five years",null,{"$f":"SUM(G1159:M1159)","v":0},null,null,null,null,null,null,null,null,null,{"$f":"O1158","v":0},{"$f":"P1158","v":750000},null,null,null,null,null,null,null,null,null,null,null,null,null,null,null,null,3,null,null,null,null,null,{"$f":"COUNTA(G1159:I1159)","v":0}]
[]
[null,null,null,null,{"$f":"SUM(E1157:E1160)","v":0},null,{"$f":"SUM(G1157:G1160)","v":0},{"$f":"SUM(H1157:H1160)","v":0},{"$f":"SUM(I1157:I1160)","v":0}]
[]
[null,"Academies follow SORP in which the annual cost of each lease is only included within the timestep in which it expires."]
[null,"This is different to the FReM requirements adopted by EFA, DfE and Government."]
[]
[null,null,null,null,"Total",null,"Land","Buildings","Other"]
[null,null,null,null,"£000",null,"£000","£000","£000"]
[null,"EFA/DfE (FReM)"]
[null,null,"Within one year","Notes",{"$f":"SUM(G1169:M1169)","v":0},null,null,null,null,null,null,null,null,null,{"$f":"O1159","v":0},{"$f":"P1159","v":750000},null,null,null,null,null,null,null,null,null,null,null,null,null,null,"Consol, EFA/DfE Lease Commitments Note",null,null,null,null,3,null,null,null,null,null,{"$f":"COUNTA(G1169:I1169)","v":0}]
[null,null,"Within two and five years inclusive",null,{"$f":"SUM(G1170:M1170)","v":0},null,null,null,null,null,null,null,null,null,{"$f":"O1169","v":0},{"$f":"P1169","v":750000},null,null,null,null,null,null,null,null,null,null,null,null,null,null,"Consol, EFA/DfE Lease Commitments Note",null,null,null,null,3,null,null,null,null,null,{"$f":"COUNTA(G1170:I1170)","v":0}]
[null,null,"Over five years",null,{"$f":"SUM(G1171:M1171)","v":0},null,null,null,null,null,null,null,null,null,{"$f":"O1170","v":0},{"$f":"P1170","v":750000},null,null,null,null,null,null,null,null,null,null,null,null,null,null,"Consol, EFA/DfE Lease Commitments Note",null,null,null,null,3,null,null,null,null,null,{"$f":"COUNTA(G1171:I1171)","v":0}]
[]
[null,null,null,null,{"$f":"SUM(E1169:E1172)","v":0},null,{"$f":"SUM(G1169:G1172)","v":0},{"$f":"SUM(H1169:H1172)","v":0},{"$f":"SUM(I1169:I1172)","v":0}]
[null,null,"Recovered through sub-letting",null,{"$f":"SUM(G1174:M1174)","v":0},null,null,null,null,null,null,null,null,null,{"$f":"-P1171","v":-750000},0,null,null,null,null,null,null,null,null,null,null,null,null,null,null,null,null,null,null,null,3,null,null,null,null,null,{"$f":"COUNTA(G1174:I1174)","v":0}]
[]
[null,null,null,null,{"$f":"SUM(E1173:E1175)","v":0},null,{"$f":"SUM(G1173:G1175)","v":0},{"$f":"SUM(H1173:H1175)","v":0},0]
[null,null,null,null,{"$f":"IF(E1176<>E1201,\"Error\",\"\")","v":""},null,{"$f":"IF(G1173<>SUM(E1186:E1188),\"Error\",\"\")","v":""},{"$f":"IF(H1173<>SUM(E1190:E1192),\"Error\",\"\")","v":""},{"$f":"IF(I1173<>SUM(E1194:E1196),\"Error\",\"\")","v":""}]
[null,null,null,null,{"$f":"IF(E1177=\"Error\",\"- imbalance E1201\",\"\")","v":""},null,{"$f":"IF(G1177=\"Error\", \"- imbalance E1186 to E1188\",\"\")","v":""},{"$f":"IF(H1177=\"Error\", \"- imbalance E1190 to E1192\",\"\")","v":""},{"$f":"IF(I1177=\"Error\",\"- imbalance E1194 to E1196\",\"\")","v":""}]
[null,"Academies will need to re-work the calculations behind their disclosures.  The annual cost of each lease will need "]
[null,"to be included in every timestep until it expires.  This is a different approach to the SORP adopted by Academies."]
[]
[null,"Counterparty analysis - EFA/DfE (FReM)",null,"Notes"]
[null,null,null,null,"Total",null,"DfE Family\n(see below)","Other Government","Other"]
[null,null,null,null,"£000",null,"£000","£000","£000"]
[null,"Land"]
[null,null,"Within one year",{"$f":"IF(E1186<>G1169,\"Error - within note\",\"\")","v":""},{"$f":"SUM(G1186:M1186)","v":0},null,{"$f":"E1209","v":0},null,null,null,null,null,null,null,0,{"$f":"P1169","v":750000},null,null,null,null,null,null,null,null,null,null,null,null,null,null,"Consol, EFA/DfE Lease Commitments Note",null,null,null,null,2,1,null,null,null,null,{"$f":"COUNTA(H1186:I1186)","v":0},{"$f":"COUNTIF(G1186:G1186,\"<>0\")","v":0}]
[null,null,"Within two and five years inclusive",{"$f":"IF(E1187<>G1170,\"Error - within note\",\"\")","v":""},{"$f":"SUM(G1187:M1187)","v":0},null,{"$f":"E1210","v":0},null,null,null,null,null,null,null,{"$f":"O1186","v":0},{"$f":"P1186","v":750000},null,null,null,null,null,null,null,null,null,null,null,null,null,null,"Consol, EFA/DfE Lease Commitments Note",null,null,null,null,2,1,null,null,null,null,{"$f":"COUNTA(H1187:I1187)","v":0},0]
[null,null,"Over five years",{"$f":"IF(E1188<>G1171,\"Error - within note\",\"\")","v":""},{"$f":"SUM(G1188:M1188)","v":0},null,{"$f":"E1211","v":0},null,null,null,null,null,null,null,{"$f":"O1187","v":0},{"$f":"P1187","v":750000},null,null,null,null,null,null,null,null,null,null,null,null,null,null,"Consol, EFA/DfE Lease Commitments Note",null,null,null,null,2,1,null,null,null,null,{"$f":"COUNTA(H1188:I1188)","v":0},0]
[null,"Buildings"]
[null,null,"Within one year",{"$f":"IF(E1190<>H1169,\"Error - within note\",\"\")","v":""},{"$f":"SUM(G1190:M1190)","v":0},null,{"$f":"E1213","v":0},null,null,null,null,null,null,null,{"$f":"O1188","v":0},{"$f":"P1188","v":750000},null,null,null,null,null,null,null,null,null,null,null,null,null,null,"Consol, EFA/DfE Lease Commitments Note",null,null,null,null,2,1,null,null,null,null,{"$f":"COUNTA(H1190:I1190)","v":0},{"$f":"COUNTIF(G1190:G1190,\"<>0\")","v":0}]
[null,null,"Within two and five years inclusive",{"$f":"IF(E1191<>H1170,\"Error - within note\",\"\")","v":""},{"$f":"SUM(G1191:M1191)","v":0},null,{"$f":"E1214","v":0},null,null,null,null,null,null,null,{"$f":"O1190","v":0},750000,null,null,null,null,null,null,null,null,null,null,null,null,null,null,"Consol, EFA/DfE Lease Commitments Note",null,null,null,null,2,1,null,null,null,null,{"$f":"COUNTA(H1191:I1191)","v":0},0]
[null,null,"Over five years",{"$f":"IF(E1192<>H1171,\"Error - within note\",\"\")","v":""},{"$f":"SUM(G1192:M1192)","v":0},null,{"$f":"E1215","v":0},null,null,null,null,null,null,null,0,750000,null,null,null,null,null,null,null,null,null,null,null,null,null,null,"Consol, EFA/DfE Lease Commitments Note",null,null,null,null,2,1,null,null,null,null,{"$f":"COUNTA(H1192:I1192)","v":0},0]
[null,"Other"]
[null,null,"Within one year",{"$f":"IF(E1194<>I1169,\"Error - within note\",\"\")","v":""},{"$f":"SUM(G1194:M1194)","v":0},null,{"$f":"E1217","v":0},null,null,null,null,null,null,null,{"$f":"O1192","v":0},{"$f":"P1192","v":750000},null,null,null,null,null,null,null,null,null,null,null,null,null,null,"Consol, EFA/DfE Lease Commitments Note",null,null,null,null,2,1,null,null,null,null,{"$f":"COUNTA(H1194:I1194)","v":0},{"$f":"COUNTIF(G1194:G1194,\"<>0\")","v":0}]
[null,null,"Within two and five years inclusive",{"$f":"IF(E1195<>I1170,\"Error - within note\",\"\")","v":""},{"$f":"SUM(G1195:M1195)","v":0},null,{"$f":"E1218","v":0},null,null,null,null,null,null,null,{"$f":"O1194","v":0},750000,null,null,null,null,null,null,null,null,null,null,null,null,null,null,"Consol, EFA/DfE Lease Commitments Note",null,null,null,null,2,1,null,null,null,null,{"$f":"COUNTA(H1195:I1195)","v":0},0]
[null,null,"Over five years",{"$f":"IF(E1196<>I1171,\"Error - within note\",\"\")","v":""},{"$f":"SUM(G1196:M1196)","v":0},null,{"$f":"E1219","v":0},null,null,null,null,null,null,null,0,750000,null,null,null,null,null,null,null,null,null,null,null,null,null,null,"Consol, EFA/DfE Lease Commitments Note",null,null,null,null,2,1,null,null,null,null,{"$f":"COUNTA(H1196:I1196)","v":0},0]
[]
[null,null,null,null,{"$f":"SUM(E1186:E1197)","v":0},null,{"$f":"SUM(G1186:G1197)","v":0},{"$f":"SUM(H1186:H1197)","v":0},{"$f":"SUM(I1186:I1197)","v":0}]
[null,null,"Recovered through sub-letting",{"$f":"IF(E1199<>E1174,\"Error - within note\",\"\")","v":""},{"$f":"SUM(G1199:M1199)","v":0},null,{"$f":"E1222","v":0},null,null,null,null,null,null,null,{"$f":"-P1196","v":-750000},{"$f":"P1197","v":0},null,null,null,null,null,null,null,null,null,null,null,null,null,null,"Consol, EFA/DfE Lease Commitments Note",null,null,null,null,2,1,null,null,null,null,{"$f":"COUNTA(H1199:I1199)","v":0},{"$f":"COUNTIF(G1199:G1199,\"<>0\")","v":0}]
[]
[null,null,null,null,{"$f":"SUM(E1198:E1200)","v":0},null,{"$f":"SUM(G1198:G1200)","v":0},{"$f":"SUM(H1198:H1200)","v":0},0]
[]
[null,"If sub-let to an academic body please identify here:",null,"Name here",null,null,null,null,null,null,null,null,null,null,null,null,null,null,null,null,null,null,null,null,null,null,null,null,null,null,"Consol, EFA/DfE Lease Commitments Note"]
[]
[null,"DfE Family Analysis (for cells G1186 to G1199)"]
[null,null,null,null,"Total",null,"DfE","EFA","NCTL","STA","CAFCASS","OCC"]
[null,null,null,null,"£000",null,"£000","£000","£000","£000","£000","£000"]
[null,"Land"]
[null,null,"Within one year",null,{"$f":"SUM(G1209:L1209)","v":0},null,null,null,null,null,null,null,null,null,0,{"$f":"P1186","v":750000},null,null,null,null,null,null,null,null,null,null,null,null,null,null,"Consol, EFA/DfE Lease Commitments Note",null,null,null,null,7,null,null,null,null,null,{"$f":"COUNTA(G1209:M1209)","v":0}]
[null,null,"Within two and five years inclusive",null,{"$f":"SUM(G1210:L1210)","v":0},null,null,null,null,null,null,null,null,null,{"$f":"O1209","v":0},{"$f":"P1209","v":750000},null,null,null,null,null,null,null,null,null,null,null,null,null,null,"Consol, EFA/DfE Lease Commitments Note",null,null,null,null,7,null,null,null,null,null,{"$f":"COUNTA(G1210:M1210)","v":0}]
[null,null,"Over five years",null,0,null,null,null,null,null,null,null,null,null,{"$f":"O1210","v":0},{"$f":"P1210","v":750000},null,null,null,null,null,null,null,null,null,null,null,null,null,null,"Consol, EFA/DfE Lease Commitments Note",null,null,null,null,7,null,null,null,null,null,{"$f":"COUNTA(G1211:M1211)","v":0}]
[null,"Buildings"]
[null,null,"Within one year",null,{"$f":"SUM(G1213:L1213)","v":0},null,null,null,null,null,null,null,null,null,{"$f":"O1211","v":0},{"$f":"P1211","v":750000},null,null,null,null,null,null,null,null,null,null,null,null,null,null,"Consol, EFA/DfE Lease Commitments Note",null,null,null,null,7,null,null,null,null,null,{"$f":"COUNTA(G1213:M1213)","v":0}]
[null,null,"Within two and five years inclusive",null,0,null,null,null,null,null,null,null,null,null,{"$f":"O1213","v":0},750000,null,null,null,null,null,null,null,null,null,null,null,null,null,null,"Consol, EFA/DfE Lease Commitments Note",null,null,null,null,7,null,null,null,null,null,{"$f":"COUNTA(G1214:M1214)","v":0}]
[null,null,"Over five years",null,0,null,null,null,null,null,null,null,null,null,0,750000,null,null,null,null,null,null,null,null,null,null,null,null,null,null,"Consol, EFA/DfE Lease Commitments Note",null,null,null,null,7,null,null,null,null,null,{"$f":"COUNTA(G1215:M1215)","v":0}]
[null,"Other"]
[null,null,"Within one year",null,{"$f":"SUM(G1217:L1217)","v":0},null,null,null,null,null,null,null,null,null,{"$f":"O1215","v":0},{"$f":"P1215","v":750000},null,null,null,null,null,null,null,null,null,null,null,null,null,null,"Consol, EFA/DfE Lease Commitments Note",null,null,null,null,7,null,null,null,null,null,{"$f":"COUNTA(G1217:M1217)","v":0}]
[null,null,"Within two and five years inclusive",null,0,null,null,null,null,null,null,null,null,null,{"$f":"O1217","v":0},750000,null,null,null,null,null,null,null,null,null,null,null,null,null,null,"Consol, EFA/DfE Lease Commitments Note",null,null,null,null,7,null,null,null,null,null,{"$f":"COUNTA(G1218:M1218)","v":0}]
[null,null,"Over five years",null,0,null,null,null,null,null,null,null,null,null,0,750000,null,null,null,null,null,null,null,null,null,null,null,null,null,null,"Consol, EFA/DfE Lease Commitments Note",null,null,null,null,7,null,null,null,null,null,{"$f":"COUNTA(G1219:M1219)","v":0}]
[]
[null,null,null,null,{"$f":"SUM(E1209:E1220)","v":0},null,{"$f":"SUM(G1209:G1220)","v":0},0,0,0,0,0]
[null,"Recovered through sub-letting",null,null,{"$f":"SUM(G1222:L1222)","v":0},null,null,null,null,null,null,null,null,null,{"$f":"-P1219","v":-750000},{"$f":"P1220","v":0},null,null,null,null,null,null,null,null,null,null,null,null,null,null,"Consol, EFA/DfE Lease Commitments Note",null,null,null,null,7,null,null,null,null,null,{"$f":"COUNTA(G1222:M1222)","v":0}]
[]
[null,null,null,null,{"$f":"SUM(E1221:E1223)","v":0},null,{"$f":"SUM(G1221:G1223)","v":0},{"$f":"SUM(H1221:H1223)","v":0},{"$f":"SUM(I1221:I1223)","v":0},0,0,0]
[]
[]
["COMMITMENTS UNDER PFI AND OTHER SERVICE \nCONCESSION ARRANGEMENTS",null,null,null,"Total",null,"DfE Family\n(see below)","Other Government","Other",null,null,null,null,null,"Lower limit","Upper limit "]
[null,null,null,null,"£000",null,"£000","£000","£000",null,null,null,null,null,"£000","£000"]
[null,"Not later than one year",null,null,{"$f":"SUM(G1229:M1229)","v":0},null,{"$f":"E1238","v":0},null,null,null,null,null,null,null,0,{"$f":"$M$20","v":750000},null,null,null,null,null,null,null,null,null,null,null,null,null,null,"Consol, EFA/DfE Note",null,null,null,2,null,1,null,null,null,{"$f":"COUNTA(H1229:I1229)","v":0},null,{"$f":"COUNTIF(G1229:G1229,\"<>0\")","v":0}]
[null,"Later than one year but not later than 5 years",null,null,{"$f":"SUM(G1230:M1230)","v":0},null,{"$f":"E1239","v":0},null,null,null,null,null,null,null,{"$f":"O1229","v":0},{"$f":"P1229","v":750000},null,null,null,null,null,null,null,null,null,null,null,null,null,null,"Consol, EFA/DfE Note",null,null,null,2,null,1,null,null,null,{"$f":"COUNTA(H1230:I1230)","v":0},null,0]
[null,"Later than 5 years",null,null,{"$f":"SUM(G1231:M1231)","v":0},null,{"$f":"E1240","v":0},null,null,null,null,null,null,null,{"$f":"O1230","v":0},{"$f":"P1230","v":750000},null,null,null,null,null,null,null,null,null,null,null,null,null,null,"Consol, EFA/DfE Note",null,null,null,2,null,1,null,null,null,{"$f":"COUNTA(H1231:I1231)","v":0},null,0]
[]
[null,null,null,null,{"$f":"SUM(E1229:E1232)","v":0},null,{"$f":"SUM(G1229:G1232)","v":0},{"$f":"SUM(H1229:H1232)","v":0},0]
[]
[null,"DfE Family Analysis"]
[null,null,null,null,"Total",null,"DfE","EFA","NCTL","STA","CAFCASS","OCC"]
[null,null,null,null,"£000",null,"£000","£000","£000","£000","£000","£000"]
[null,"Not later than one year",null,null,{"$f":"SUM(G1238:L1238)","v":0},null,null,null,null,null,null,null,null,null,{"$f":"O1231","v":0},{"$f":"P1231","v":750000},null,null,null,null,null,null,null,null,null,null,null,null,null,null,"Consol, EFA/DfE Note",null,null,null,7,null,null,null,null,null,{"$f":"COUNTA(G1238:M1238)","v":0}]
[null,"Later than one year but not later than 5 years",null,null,{"$f":"SUM(G1239:L1239)","v":0},null,null,null,null,null,null,null,null,null,{"$f":"O1232","v":0},{"$f":"P1238","v":750000},null,null,null,null,null,null,null,null,null,null,null,null,null,null,"Consol, EFA/DfE Note",null,null,null,7,null,null,null,null,null,{"$f":"COUNTA(G1239:M1239)","v":0}]
[null,"Later than 5 years",null,null,0,null,null,null,null,null,null,null,null,null,{"$f":"O1233","v":0},{"$f":"P1239","v":750000},null,null,null,null,null,null,null,null,null,null,null,null,null,null,"Consol, EFA/DfE Note",null,null,null,7,null,null,null,null,null,{"$f":"COUNTA(G1240:M1240)","v":0}]
[]
[null,null,null,null,{"$f":"SUM(E1238:E1241)","v":0},null,{"$f":"SUM(G1238:G1241)","v":0},{"$f":"SUM(H1238:H1241)","v":0},{"$f":"SUM(I1238:I1241)","v":0},0,0,0]
[]
[]
["OTHER FINANCIAL COMMITMENTS ",null,null,null,"Total",null,"DfE Family\n(see below)","Other Government","Other",null,null,null,null,null,"Lower limit","Upper limit "]
[null,null,null,null,"£000",null,"£000","£000","£000",null,null,null,null,null,"£000","£000"]
[null,"Non-cancellable contracts"]
[null,null,"Not later than one year",null,{"$f":"SUM(G1248:M1248)","v":0},null,{"$f":"E1258","v":0},null,null,null,null,null,null,null,0,{"$f":"$M$20","v":750000},null,null,null,null,null,null,null,null,null,null,null,null,null,null,"Consol, EFA/DfE Note",null,null,null,2,null,1,null,null,null,{"$f":"COUNTA(H1248:I1248)","v":0},null,{"$f":"COUNTIF(G1248:G1248,\"<>0\")","v":0}]
[null,null,"Later than one year but not later than 5 years",null,{"$f":"SUM(G1249:M1249)","v":0},null,{"$f":"E1259","v":0},null,null,null,null,null,null,null,{"$f":"O1248","v":0},{"$f":"P1248","v":750000},null,null,null,null,null,null,null,null,null,null,null,null,null,null,"Consol, EFA/DfE Note",null,null,null,2,null,1,null,null,null,{"$f":"COUNTA(H1249:I1249)","v":0},null,0]
[null,null,"Later than 5 years",null,{"$f":"SUM(G1250:M1250)","v":0},null,{"$f":"E1260","v":0},null,null,null,null,null,null,null,{"$f":"O1249","v":0},{"$f":"P1249","v":750000},null,null,null,null,null,null,null,null,null,null,null,null,null,null,"Consol, EFA/DfE Note",null,null,null,2,null,1,null,null,null,{"$f":"COUNTA(H1250:I1250)","v":0},null,0]
[]
[null,null,null,null,{"$f":"SUM(E1248:E1251)","v":0},null,{"$f":"SUM(G1248:G1251)","v":0},0,{"$f":"SUM(I1248:I1251)","v":0}]
[]
[null,"DfE Family Analysis"]
[null,null,null,null,"Total",null,"DfE","EFA","NCTL","STA","CAFCASS","OCC"]
[null,null,null,null,"£000",null,"£000","£000","£000","£000","£000","£000"]
[null,"Non-cancellable contracts"]
[null,null,"Not later than one year",null,{"$f":"SUM(G1258:L1258)","v":0},null,null,null,null,null,null,null,null,null,{"$f":"O1250","v":0},{"$f":"P1250","v":750000},null,null,null,null,null,null,null,null,null,null,null,null,null,null,"Consol, EFA/DfE Note",null,null,null,7,null,null,null,null,null,{"$f":"COUNTA(G1258:M1258)","v":0}]
[null,null,"Later than one year but not later than 5 years",null,{"$f":"SUM(G1259:L1259)","v":0},null,null,null,null,null,null,null,null,null,{"$f":"O1252","v":0},{"$f":"P1258","v":750000},null,null,null,null,null,null,null,null,null,null,null,null,null,null,"Consol, EFA/DfE Note",null,null,null,7,null,null,null,null,null,0]
[null,null,"Later than 5 years",null,0,null,null,null,null,null,null,null,null,null,{"$f":"O1253","v":0},{"$f":"P1259","v":750000},null,null,null,null,null,null,null,null,null,null,null,null,null,null,"Consol, EFA/DfE Note",null,null,null,7,null,null,null,null,null,0]
[]
[null,null,null,null,{"$f":"SUM(E1258:E1261)","v":0},null,{"$f":"SUM(G1258:G1261)","v":0},{"$f":"SUM(H1258:H1261)","v":0},{"$f":"SUM(I1258:I1261)","v":0},0,0,0]
[]
[]
["CONTINGENT LIABILITIES",null,null,null,"At start of period",null,"Increase in period","Liabilities crystallised in period","Obligation expired in period",null,"At end of period",null,"Lower limit","Upper limit "]
[null,null,null,null,"£000",null,"£000","£000","£000",null,"£000",null,"£000","£000"]
[null,"Contingent liability 1",null,"Notes",null,null,null,null,null,null,{"$f":"SUM(E1267:J1267)","v":0},null,0,{"$f":"$M$20","v":750000},null,null,null,null,null,null,null,null,null,null,null,null,null,null,null,null,"Consol, EFA/DfE Note",null,null,null,4,null,null,null,null,null,{"$f":"COUNTA(E1267:I1267)","v":0}]
[null,"Contingent liability 2",null,null,null,null,null,null,null,null,{"$f":"SUM(E1268:J1268)","v":0},null,{"$f":"M1267","v":0},{"$f":"N1267","v":750000},null,null,null,null,null,null,null,null,null,null,null,null,null,null,null,null,"Consol, EFA/DfE Note",null,null,null,4,null,null,null,null,null,{"$f":"COUNTA(E1268:I1268)","v":0}]
[null,"Contingent liability 3",null,null,null,null,null,null,null,null,0,null,{"$f":"M1268","v":0},{"$f":"N1268","v":750000},null,null,null,null,null,null,null,null,null,null,null,null,null,null,null,null,"Consol, EFA/DfE Note",null,null,null,4,null,null,null,null,null,{"$f":"COUNTA(E1269:I1269)","v":0}]
[]
[null,"Please provide details of all contingent liabilities",null,null,{"$f":"SUM(E1267:E1270)","v":0},null,{"$f":"SUM(G1267:G1270)","v":0},{"$f":"SUM(H1267:H1270)","v":0},0,null,0]
[]
[]
["RELATED PARTY TRANSACTIONS - DfE"]
[null,"Name of Body/Person",null,null,"Closing balance\nDr/(Cr)",null,"Payments","Receipts",null,"Lower limit","Upper limit "]
[null,null,null,null,"£000",null,"£000","£000",null,"£000","£000"]
[null,"The Wellington Academy, Wiltshire",null,null,null,null,null,null,null,{"$f":"$L$20","v":-750000},{"$f":"$M$20","v":750000},null,null,null,null,null,null,null,null,null,null,null,null,null,null,null,null,null,null,null,"Consol, DfE Related Party Note",null,null,null,3,null,null,null,null,null,{"$f":"COUNTA(E1277:H1277)","v":0}]
[null,"Rothchild",null,null,null,null,null,null,null,{"$f":"J1277","v":-750000},{"$f":"K1277","v":750000},null,null,null,null,null,null,null,null,null,null,null,null,null,null,null,null,null,null,null,"Consol, DfE Related Party Note",null,null,null,3,null,null,null,null,null,0]
[null,"The Scott Trust",null,null,null,null,null,null,null,{"$f":"J1278","v":-750000},{"$f":"K1278","v":750000},null,null,null,null,null,null,null,null,null,null,null,null,null,null,null,null,null,null,null,"Consol, DfE Related Party Note",null,null,null,3,null,null,null,null,null,0]
[null,"Tate Foundation",null,null,null,null,null,null,null,-750000,750000,null,null,null,null,null,null,null,null,null,null,null,null,null,null,null,null,null,null,null,"Consol, DfE Related Party Note",null,null,null,3,null,null,null,null,null,0]
[null,"The Eden Trust",null,null,null,null,null,null,null,-750000,750000,null,null,null,null,null,null,null,null,null,null,null,null,null,null,null,null,null,null,null,"Consol, DfE Related Party Note",null,null,null,3,null,null,null,null,null,0]
[null,"Paul Hamlyn Foundation",null,null,null,null,null,null,null,-750000,750000,null,null,null,null,null,null,null,null,null,null,null,null,null,null,null,null,null,null,null,"Consol, DfE Related Party Note",null,null,null,3,null,null,null,null,null,0]
[null,"The Conran Foundation",null,null,null,null,null,null,null,-750000,750000,null,null,null,null,null,null,null,null,null,null,null,null,null,null,null,null,null,null,null,"Consol, DfE Related Party Note",null,null,null,3,null,null,null,null,null,0]
[null,"Media Standards Trust",null,null,null,null,null,null,null,-750000,750000,null,null,null,null,null,null,null,null,null,null,null,null,null,null,null,null,null,null,null,"Consol, DfE Related Party Note",null,null,null,3,null,null,null,null,null,0]
[null,"Royal Opera House",null,null,null,null,null,null,null,-750000,750000,null,null,null,null,null,null,null,null,null,null,null,null,null,null,null,null,null,null,null,"Consol, DfE Related Party Note",null,null,null,3,null,null,null,null,null,0]
[null,"The Royal Opera House Foundation Limited",null,null,null,null,null,null,null,-750000,750000,null,null,null,null,null,null,null,null,null,null,null,null,null,null,null,null,null,null,null,"Consol, DfE Related Party Note",null,null,null,3,null,null,null,null,null,0]
[null,"Friends of Covent Garden Limited",null,null,null,null,null,null,null,-750000,750000,null,null,null,null,null,null,null,null,null,null,null,null,null,null,null,null,null,null,null,"Consol, DfE Related Party Note",null,null,null,3,null,null,null,null,null,0]
[null,"High Street Fund",null,null,null,null,null,null,null,-750000,750000,null,null,null,null,null,null,null,null,null,null,null,null,null,null,null,null,null,null,null,"Consol, DfE Related Party Note",null,null,null,3,null,null,null,null,null,0]
[null,"Freshfields Bruckhaus Deringer",null,null,null,null,null,null,null,-750000,750000,null,null,null,null,null,null,null,null,null,null,null,null,null,null,null,null,null,null,null,null,null,null,null,3,null,null,null,null,null,0]
[null,"Exeter University, Business School",null,null,null,null,null,null,null,-750000,750000,null,null,null,null,null,null,null,null,null,null,null,null,null,null,null,null,null,null,null,null,null,null,null,3,null,null,null,null,null,0]
[null,"Financial Services Knowledge Transfer Network",null,null,null,null,null,null,null,{"$f":"J1290","v":-750000},{"$f":"K1290","v":750000},null,null,null,null,null,null,null,null,null,null,null,null,null,null,null,null,null,null,null,null,null,null,null,3,null,null,null,null,null,0]
[null,"Independent Commission on Youth Crime and Antisocial Behaviour",null,null,null,null,null,null,null,-750000,750000,null,null,null,null,null,null,null,null,null,null,null,null,null,null,null,null,null,null,null,"Consol, DfE Related Party Note",null,null,null,3,null,null,null,null,null,0]
[null,"Reprieve",null,null,null,null,null,null,null,-750000,750000,null,null,null,null,null,null,null,null,null,null,null,null,null,null,null,null,null,null,null,"Consol, DfE Related Party Note",null,null,null,3,null,null,null,null,null,0]
[null,"New School Network",null,null,null,null,null,null,null,-750000,750000,null,null,null,null,null,null,null,null,null,null,null,null,null,null,null,null,null,null,null,"Consol, DfE Related Party Note",null,null,null,3,null,null,null,null,null,0]
[null,"Jubilee Managing Agency Limited",null,null,null,null,null,null,null,-750000,750000,null,null,null,null,null,null,null,null,null,null,null,null,null,null,null,null,null,null,null,"Consol, DfE Related Party Note",null,null,null,3,null,null,null,null,null,0]
[null,"Burnley Group Partnership",null,null,null,null,null,null,null,-750000,750000,null,null,null,null,null,null,null,null,null,null,null,null,null,null,null,null,null,null,null,"Consol, DfE Related Party Note",null,null,null,3,null,null,null,null,null,0]
[null,"Somerton Capital LLP",null,null,null,null,null,null,null,-750000,750000,null,null,null,null,null,null,null,null,null,null,null,null,null,null,null,null,null,null,null,"Consol, DfE Related Party Note",null,null,null,3,null,null,null,null,null,0]
[null,"Flovate/Coverpoint Systems Limited",null,null,null,null,null,null,null,-750000,750000,null,null,null,null,null,null,null,null,null,null,null,null,null,null,null,null,null,null,null,"Consol, DfE Related Party Note",null,null,null,3,null,null,null,null,null,0]
[null,"Policy Exchange",null,null,null,null,null,null,null,-750000,750000,null,null,null,null,null,null,null,null,null,null,null,null,null,null,null,null,null,null,null,"Consol, DfE Related Party Note",null,null,null,3,null,null,null,null,null,0]
[null,"Norfolk Community Foundation",null,null,null,null,null,null,null,-750000,750000,null,null,null,null,null,null,null,null,null,null,null,null,null,null,null,null,null,null,null,"Consol, DfE Related Party Note",null,null,null,3,null,null,null,null,null,0]
[null,"Elsworth Associates Limited",null,null,null,null,null,null,null,-750000,750000,null,null,null,null,null,null,null,null,null,null,null,null,null,null,null,null,null,null,null,"Consol, DfE Related Party Note",null,null,null,3,null,null,null,null,null,0]
[null,"Phoenix Administration Limited",null,null,null,null,null,null,null,-750000,750000,null,null,null,null,null,null,null,null,null,null,null,null,null,null,null,null,null,null,null,"Consol, DfE Related Party Note",null,null,null,3,null,null,null,null,null,0]
[null,"Lampton School, London Borough of Hounslow",null,null,null,null,null,null,null,-750000,750000,null,null,null,null,null,null,null,null,null,null,null,null,null,null,null,null,null,null,null,"Consol, DfE Related Party Note",null,null,null,3,null,null,null,null,null,0]
[null,"London Leadership Strategy",null,null,null,null,null,null,null,-750000,750000,null,null,null,null,null,null,null,null,null,null,null,null,null,null,null,null,null,null,null,"Consol, DfE Related Party Note",null,null,null,3,null,null,null,null,null,0]
[null,"Challenge Partnership",null,null,null,null,null,null,null,-750000,750000,null,null,null,null,null,null,null,null,null,null,null,null,null,null,null,null,null,null,null,"Consol, DfE Related Party Note",null,null,null,3,null,null,null,null,null,0]
[null,"Teaching Leaders",null,null,null,null,null,null,null,-750000,750000,null,null,null,null,null,null,null,null,null,null,null,null,null,null,null,null,null,null,null,"Consol, DfE Related Party Note",null,null,null,3,null,null,null,null,null,0]
[null,"Future Leaders Charitable Trust",null,null,null,null,null,null,null,-750000,750000,null,null,null,null,null,null,null,null,null,null,null,null,null,null,null,null,null,null,null,"Consol, DfE Related Party Note",null,null,null,3,null,null,null,null,null,0]
[null,"The Brilliant Club",null,null,null,null,null,null,null,-750000,750000,null,null,null,null,null,null,null,null,null,null,null,null,null,null,null,null,null,null,null,"Consol, DfE Related Party Note",null,null,null,3,null,null,null,null,null,0]
[null,"Access HE",null,null,null,null,null,null,null,-750000,750000,null,null,null,null,null,null,null,null,null,null,null,null,null,null,null,null,null,null,null,"Consol, DfE Related Party Note",null,null,null,3,null,null,null,null,null,0]
[null,"Pimlico Academy, London Borough of Westminster",null,null,null,null,null,null,null,-750000,750000,null,null,null,null,null,null,null,null,null,null,null,null,null,null,null,null,null,null,null,"Consol, DfE Related Party Note",null,null,null,3,null,null,null,null,null,0]
[null,"Future Academies",null,null,null,null,null,null,null,-750000,750000,null,null,null,null,null,null,null,null,null,null,null,null,null,null,null,null,null,null,null,"Consol, DfE Related Party Note",null,null,null,3,null,null,null,null,null,0]
[null,"New Schools Fund",null,null,null,null,null,null,null,-750000,750000,null,null,null,null,null,null,null,null,null,null,null,null,null,null,null,null,null,null,null,"Consol, DfE Related Party Note",null,null,null,3,null,null,null,null,null,0]
[null,"Sovereign Capital LLP",null,null,null,null,null,null,null,-750000,750000,null,null,null,null,null,null,null,null,null,null,null,null,null,null,null,null,null,null,null,"Consol, DfE Related Party Note",null,null,null,3,null,null,null,null,null,0]
[null,"Softcat",null,null,null,null,null,null,null,-750000,750000,null,null,null,null,null,null,null,null,null,null,null,null,null,null,null,null,null,null,null,"Consol, DfE Related Party Note",null,null,null,3,null,null,null,null,null,0]
[null,"Centre for Policy Studies",null,null,null,null,null,null,null,-750000,750000,null,null,null,null,null,null,null,null,null,null,null,null,null,null,null,null,null,null,null,"Consol, DfE Related Party Note",null,null,null,3,null,null,null,null,null,0]
[null,"Eastside Young Leaders Academy",null,null,null,null,null,null,null,-750000,750000,null,null,null,null,null,null,null,null,null,null,null,null,null,null,null,null,null,null,null,"Consol, DfE Related Party Note",null,null,null,3,null,null,null,null,null,0]
[null,"Millbank Academies",null,null,null,null,null,null,null,-750000,750000,null,null,null,null,null,null,null,null,null,null,null,null,null,null,null,null,null,null,null,"Consol, DfE Related Party Note",null,null,null,3,null,null,null,null,null,0]
[null,"Future (charitable organisation)",null,null,null,null,null,null,null,-750000,750000,null,null,null,null,null,null,null,null,null,null,null,null,null,null,null,null,null,null,null,"Consol, DfE Related Party Note",null,null,null,3,null,null,null,null,null,0]
[null,"Education Endowment Fund",null,null,null,null,null,null,null,-750000,750000,null,null,null,null,null,null,null,null,null,null,null,null,null,null,null,null,null,null,null,"Consol, DfE Related Party Note",null,null,null,3,null,null,null,null,null,0]
[null,"East Sussex County Council",null,null,null,null,null,null,null,-750000,750000,null,null,null,null,null,null,null,null,null,null,null,null,null,null,null,null,null,null,null,"Consol, DfE Related Party Note",null,null,null,3,null,null,null,null,null,0]
[null,"Oasis academy chain",null,null,null,null,null,null,null,-750000,750000,null,null,null,null,null,null,null,null,null,null,null,null,null,null,null,null,null,null,null,"Consol, DfE Related Party Note",null,null,null,3,null,null,null,null,null,0]
[null,"Corpus Christi College, Oxford",null,null,null,null,null,null,null,-750000,750000,null,null,null,null,null,null,null,null,null,null,null,null,null,null,null,null,null,null,null,"Consol, DfE Related Party Note",null,null,null,3,null,null,null,null,null,0]
[null,"Natural History Museum",null,null,null,null,null,null,null,-750000,750000,null,null,null,null,null,null,null,null,null,null,null,null,null,null,null,null,null,null,null,"Consol, DfE Related Party Note",null,null,null,3,null,null,null,null,null,0]
[null,"Accenture",null,null,null,null,null,null,null,-750000,750000,null,null,null,null,null,null,null,null,null,null,null,null,null,null,null,null,null,null,null,"Consol, DfE Related Party Note",null,null,null,3,null,null,null,null,null,0]
[null,"Corpus Christi Primary School",null,null,null,null,null,null,null,-750000,750000,null,null,null,null,null,null,null,null,null,null,null,null,null,null,null,null,null,null,null,"Consol, DfE Related Party Note",null,null,null,3,null,null,null,null,null,0]
[null,"Brixtpon and Ursuline School, Wimbledon",null,null,null,null,null,null,null,-750000,750000,null,null,null,null,null,null,null,null,null,null,null,null,null,null,null,null,null,null,null,"Consol, DfE Related Party Note",null,null,null,3,null,null,null,null,null,0]
[null,"Eric Wright Construction - BSF",null,null,null,null,null,null,null,-750000,750000,null,null,null,null,null,null,null,null,null,null,null,null,null,null,null,null,null,null,null,"Consol, DfE Related Party Note",null,null,null,3,null,null,null,null,null,0]
[]
[null,"Please confirm whether the Trust had transactions in the period with the bodies listed above.",null,null,null,null,{"$f":"IF(OR(AND(E1329=\"No transactions\",SUM(E1277:H1327)=0),AND(E1329=\"Transactions\",SUM(E1277:H1327)<>0)),\"\",\"Error - within note\")","v":"Error - within note"}]
[]
[]
["EXIT PACKAGES - NON-CIVIL SERVICE SCHEMES",null,null,null,"Total Exit Packages Agreed",null,null,null,"Compulsory Redundancies",null,null,"Other Departures Agreed",null,null,"Lower limit","Upper limit "]
[null,"Band",null,null,"No. of cases",null,"Value\n£000",null,"No. of cases","Value\n£000",null,"No. of cases","Value\n£000",null,"£000","£000"]
[null,"< £10,000",null,null,{"$f":"I1334+L1334","v":0},null,{"$f":"J1334+M1334","v":0},null,null,null,{"$f":"IFERROR(IF(J1334/I1334>10,\"Error - ave. cost exceeds band\",\"\"),\"\")","v":""},null,null,{"$f":"IFERROR(IF(M1334/L1334>10,\"Error - ave. cost exceeds band\",\"\"),\"\")","v":""},0,{"$f":"$M$20","v":750000},null,null,null,null,null,null,null,null,null,null,null,null,null,null,"Consol, EFA/DfE Annual Report",null,null,null,null,4,null,null,null,null,null,{"$f":"COUNTA(I1334:J1334)+COUNTA(L1334:M1334)","v":0}]
[null,"£10,001 - £25,000",null,null,0,null,0,null,null,null,{"$f":"IFERROR(IF(J1335/I1335>25,\"Error - ave. cost exceeds band\",\"\"),\"\")","v":""},null,null,{"$f":"IFERROR(IF(M1335/L1335>25,\"Error - ave. cost exceeds band\",\"\"),\"\")","v":""},{"$f":"O1334","v":0},{"$f":"P1334","v":750000},null,null,null,null,null,null,null,null,null,null,null,null,null,null,"Consol, EFA/DfE Annual Report",null,null,null,null,4,null,null,null,null,null,0]
[null,"£25,001 - £50,000",null,null,0,null,0,null,null,null,{"$f":"IFERROR(IF(J1336/I1336>50,\"Error - ave. cost exceeds band\",\"\"),\"\")","v":""},null,null,{"$f":"IFERROR(IF(M1336/L1336>50,\"Error - ave. cost exceeds band\",\"\"),\"\")","v":""},{"$f":"O1335","v":0},{"$f":"P1335","v":750000},null,null,null,null,null,null,null,null,null,null,null,null,null,null,"Consol, EFA/DfE Annual Report",null,null,null,null,4,null,null,null,null,null,0]
[null,"£50,001 - £100,000",null,null,0,null,0,null,null,null,{"$f":"IFERROR(IF(J1337/I1337>100,\"Error - ave. cost exceeds band\",\"\"),\"\")","v":""},null,null,{"$f":"IFERROR(IF(M1337/L1337>100,\"Error - ave. cost exceeds band\",\"\"),\"\")","v":""},{"$f":"O1336","v":0},{"$f":"P1336","v":750000},null,null,null,null,null,null,null,null,null,null,null,null,null,null,"Consol, EFA/DfE Annual Report",null,null,null,null,4,null,null,null,null,null,0]
[null,"£100,001 - £150,000",null,null,0,null,0,null,null,null,{"$f":"IFERROR(IF(J1338/I1338>150,\"Error - ave. cost exceeds band\",\"\"),\"\")","v":""},null,null,{"$f":"IFERROR(IF(M1338/L1338>150,\"Error - ave. cost exceeds band\",\"\"),\"\")","v":""},0,750000,null,null,null,null,null,null,null,null,null,null,null,null,null,null,"Consol, EFA/DfE Annual Report",null,null,null,null,4,null,null,null,null,null,0]
[null,"£150,001 - £200,000",null,null,0,null,0,null,null,null,{"$f":"IFERROR(IF(J1339/I1339>200,\"Error - ave. cost exceeds band\",\"\"),\"\")","v":""},null,null,{"$f":"IFERROR(IF(M1339/L1339>200,\"Error - ave. cost exceeds band\",\"\"),\"\")","v":""},0,750000,null,null,null,null,null,null,null,null,null,null,null,null,null,null,"Consol, EFA/DfE Annual Report",null,null,null,null,4,null,null,null,null,null,0]
[null,"£200,001 - £250,000",null,null,0,null,0,null,null,null,{"$f":"IFERROR(IF(J1340/I1340>250,\"Error - ave. cost exceeds band\",\"\"),\"\")","v":""},null,null,{"$f":"IFERROR(IF(M1340/L1340>250,\"Error - ave. cost exceeds band\",\"\"),\"\")","v":""},0,750000,null,null,null,null,null,null,null,null,null,null,null,null,null,null,"Consol, EFA/DfE Annual Report",null,null,null,null,4,null,null,null,null,null,0]
[null,"£250,001 - £300,000",null,null,0,null,0,null,null,null,{"$f":"IFERROR(IF(J1341/I1341>300,\"Error - ave. cost exceeds band\",\"\"),\"\")","v":""},null,null,{"$f":"IFERROR(IF(M1341/L1341>300,\"Error - ave. cost exceeds band\",\"\"),\"\")","v":""},0,750000,null,null,null,null,null,null,null,null,null,null,null,null,null,null,"Consol, EFA/DfE Annual Report",null,null,null,null,4,null,null,null,null,null,0]
[null,"£300,001 - £350,000",null,null,0,null,0,null,null,null,{"$f":"IFERROR(IF(J1342/I1342>350,\"Error - ave. cost exceeds band\",\"\"),\"\")","v":""},null,null,{"$f":"IFERROR(IF(M1342/L1342>350,\"Error - ave. cost exceeds band\",\"\"),\"\")","v":""},0,750000,null,null,null,null,null,null,null,null,null,null,null,null,null,null,"Consol, EFA/DfE Annual Report",null,null,null,null,4,null,null,null,null,null,0]
[null,"£350,001 - £400,000",null,null,0,null,0,null,null,null,{"$f":"IFERROR(IF(J1343/I1343>400,\"Error - ave. cost exceeds band\",\"\"),\"\")","v":""},null,null,{"$f":"IFERROR(IF(M1343/L1343>400,\"Error - ave. cost exceeds band\",\"\"),\"\")","v":""},0,750000,null,null,null,null,null,null,null,null,null,null,null,null,null,null,"Consol, EFA/DfE Annual Report",null,null,null,null,4,null,null,null,null,null,0]
[null,"£400,001 - £450,000",null,null,0,null,0,null,null,null,{"$f":"IFERROR(IF(J1344/I1344>450,\"Error - ave. cost exceeds band\",\"\"),\"\")","v":""},null,null,{"$f":"IFERROR(IF(M1344/L1344>450,\"Error - ave. cost exceeds band\",\"\"),\"\")","v":""},0,750000,null,null,null,null,null,null,null,null,null,null,null,null,null,null,"Consol, EFA/DfE Annual Report",null,null,null,null,4,null,null,null,null,null,0]
[null,"£450,001 - £500,000",null,null,0,null,0,null,null,null,{"$f":"IFERROR(IF(J1345/I1345>500,\"Error - ave. cost exceeds band\",\"\"),\"\")","v":""},null,null,{"$f":"IFERROR(IF(M1345/L1345>500,\"Error - ave. cost exceeds band\",\"\"),\"\")","v":""},0,750000,null,null,null,null,null,null,null,null,null,null,null,null,null,null,"Consol, EFA/DfE Annual Report",null,null,null,null,4,null,null,null,null,null,0]
[null,"£500,001 - £550,000",null,null,0,null,0,null,null,null,{"$f":"IFERROR(IF(J1346/I1346>550,\"Error - ave. cost exceeds band\",\"\"),\"\")","v":""},null,null,{"$f":"IFERROR(IF(M1346/L1346>550,\"Error - ave. cost exceeds band\",\"\"),\"\")","v":""},0,750000,null,null,null,null,null,null,null,null,null,null,null,null,null,null,"Consol, EFA/DfE Annual Report",null,null,null,null,4,null,null,null,null,null,0]
[null,"£550,001 - £600,000",null,null,0,null,0,null,null,null,{"$f":"IFERROR(IF(J1347/I1347>600,\"Error - ave. cost exceeds band\",\"\"),\"\")","v":""},null,null,{"$f":"IFERROR(IF(M1347/L1347>600,\"Error - ave. cost exceeds band\",\"\"),\"\")","v":""},0,750000,null,null,null,null,null,null,null,null,null,null,null,null,null,null,"Consol, EFA/DfE Annual Report",null,null,null,null,4,null,null,null,null,null,0]
[]
[null,null,null,{"$f":"IF(E361<>G1349,\"Error - Imbalance with Staff note compensation payments\",\"\")","v":""},{"$f":"SUM(E1334:E1348)","v":0},null,{"$f":"SUM(G1334:G1348)","v":0},null,{"$f":"SUM(I1334:I1348)","v":0},{"$f":"SUM(J1334:J1348)","v":0},null,{"$f":"SUM(L1334:L1348)","v":0},{"$f":"SUM(M1334:M1348)","v":0},null,null,null,null,{"$f":"AND(E361>0,G1349=0)","v":false}]
[]
[]
["LOSSES AND SPECIAL PAYMENTS",null,null,null,{"$f":"E62","v":2014},null,null,null,null,null,"Lower limit","Upper limit "]
[null,"Description of loss or special payment",null,null,"£000",null,"Recognition Date","Payment Date","Type",null,"£000","£000"]
[null,"Payment A",null,{"$f":"IF(AND(E1354>0,G1354=0),\"Error - no recognition date\",\"\")","v":""},null,null,null,null,null,{"$f":"IF(AND(E1354>0,I1354=0),\"Error - no type\",\"\")","v":""},0,{"$f":"$M$20","v":750000},null,null,null,null,null,null,null,null,null,null,null,null,null,null,null,null,null,null,"Consol, EFA/DfE Special Payments Note",null,null,null,null,3,null,null,null,null,null,{"$f":"COUNTA(E1354:H1354)","v":0}]
[null,"Payment B",null,{"$f":"IF(AND(E1355>0,G1355=0),\"Error - no recognition date\",\"\")","v":""},null,null,null,null,null,{"$f":"IF(AND(E1355>0,I1355=0),\"Error - no type\",\"\")","v":""},{"$f":"K1354","v":0},{"$f":"L1354","v":750000},null,null,null,null,null,null,null,null,null,null,null,null,null,null,null,null,null,null,"Consol, EFA/DfE Special Payments Note",null,null,null,null,3,null,null,null,null,null,{"$f":"COUNTA(E1355:H1355)","v":0}]
[null,"Payment C",null,"",null,null,null,null,null,"",{"$f":"K1355","v":0},{"$f":"L1355","v":750000},null,null,null,null,null,null,null,null,null,null,null,null,null,null,null,null,null,null,"Consol, EFA/DfE Special Payments Note",null,null,null,null,3,null,null,null,null,null,0]
[null,"Payment D",null,"",null,null,null,null,null,"",{"$f":"K1356","v":0},{"$f":"L1356","v":750000},null,null,null,null,null,null,null,null,null,null,null,null,null,null,null,null,null,null,"Consol, EFA/DfE Special Payments Note",null,null,null,null,3,null,null,null,null,null,0]
[null,"Payment E",null,"",null,null,null,null,null,"",{"$f":"K1357","v":0},{"$f":"L1357","v":750000},null,null,null,null,null,null,null,null,null,null,null,null,null,null,null,null,null,null,"Consol, EFA/DfE Special Payments Note",null,null,null,null,3,null,null,null,null,null,0]
[null,"Payment F",null,"",null,null,null,null,null,"",0,750000,null,null,null,null,null,null,null,null,null,null,null,null,null,null,null,null,null,null,"Consol, EFA/DfE Special Payments Note",null,null,null,null,3,null,null,null,null,null,0]
[null,"Payment G",null,"",null,null,null,null,null,"",0,750000,null,null,null,null,null,null,null,null,null,null,null,null,null,null,null,null,null,null,"Consol, EFA/DfE Special Payments Note",null,null,null,null,3,null,null,null,null,null,0]
[null,"Payment H",null,"",null,null,null,null,null,"",0,750000,null,null,null,null,null,null,null,null,null,null,null,null,null,null,null,null,null,null,"Consol, EFA/DfE Special Payments Note",null,null,null,null,3,null,null,null,null,null,0]
[null,"Payment I",null,"",null,null,null,null,null,"",0,750000,null,null,null,null,null,null,null,null,null,null,null,null,null,null,null,null,null,null,"Consol, EFA/DfE Special Payments Note",null,null,null,null,3,null,null,null,null,null,0]
[null,"Payment J",null,"",null,null,null,null,null,"",0,750000,null,null,null,null,null,null,null,null,null,null,null,null,null,null,null,null,null,null,"Consol, EFA/DfE Special Payments Note",null,null,null,null,3,null,null,null,null,null,0]
[null,"Payment K",null,"",null,null,null,null,null,"",0,750000,null,null,null,null,null,null,null,null,null,null,null,null,null,null,null,null,null,null,"Consol, EFA/DfE Special Payments Note",null,null,null,null,3,null,null,null,null,null,0]
[null,"Payment L",null,"",null,null,null,null,null,"",0,750000,null,null,null,null,null,null,null,null,null,null,null,null,null,null,null,null,null,null,"Consol, EFA/DfE Special Payments Note",null,null,null,null,3,null,null,null,null,null,0]
[]
[null,null,null,null,{"$f":"SUM(E1354:E1366)","v":0},null,null,"No. of cases",{"$f":"COUNTA(E1354:E1366)","v":0}]
[null,null,null,null,null,null,null,null,"Select from drop-down box"]

{"sheet":"CoPty.Return","index":3,"n_rows":721,"n_cols":61,"rows_kept":721,"cut":false,"hidden":false,"merged":[[2,3,2,4],[16,52,16,55],[16,56,16,59],[17,44,17,45],[2,11,2,12],[17,5,17,9],[17,31,17,38],[17,40,17,42],[17,20,17,24],[17,26,17,29],[17,11,17,18]]}
["Accounts Return March 2014 - Counterparty Return"]
[]
["Trust:",null,{"$f":"'Standing Data'!D3","v":"Type name here"},"NAVIGATION LINKS"]
[]
["Period end:",null,{"$f":"'Standing Data'!D6","v":"2014-03-31"},"Incoming resources","Resources expended",null,"Cells will populate automatically from elsewhere in the Return"]
[null,null,null,"Assets","Liabilities <1yr"]
["Company Number:",null,{"$f":"'Standing Data'!D12","v":"Type number here"},"Liabilities >1yr","Provisions",null,"Additional to Financial Statements, prepared on a similar basis"]
[null,null,null,"Pension deficit"]
["Academy UPIN:",null,{"$f":"Fin.Return!C9","v":{"$error":"#N/A"}},null,null,null,"Non-financial cells to be populated by Academy Trust"]
[null,null,"Above details will populate automatically"]
[null,null,null,null,"Errors",null,"Comment cells available to the Academy Trust"]
["COUNTERPARTY RETURN",null,null,null,{"$f":"COUNTIF(A31:A721,\"Error*\")+COUNTIF(E31:E721,\"Error*\")","v":0},"HELP"]
[]
[]
[null,null,"Financial Return caption value",null,null,{"$f":"-Fin.Return!$E140","v":0},{"$f":"-Fin.Return!$E152","v":0},{"$f":"-Fin.Return!$E163","v":0},{"$f":"-Fin.Return!$E233","v":0},{"$f":"-Fin.Return!$G433","v":0},null,{"$f":"Fin.Return!$E354","v":0},{"$f":"Fin.Return!$E356","v":0},{"$f":"Fin.Return!$E253","v":0},null,{"$f":"Fin.Return!$E317","v":0},{"$f":"Fin.Return!$E307-Fin.Return!$E449","v":0},null,{"$f":"-Fin.Return!G470","v":0},null,{"$f":"Fin.Return!E611","v":0},{"$f":"Fin.Return!E613","v":0},null,{"$f":"Fin.Return!E614","v":0},{"$f":"Fin.Return!E615","v":0},null,{"$f":"Fin.Return!G611","v":0},{"$f":"Fin.Return!G613","v":0},{"$f":"Fin.Return!G614","v":0},{"$f":"Fin.Return!G615","v":0},null,{"$f":"-Fin.Return!E674","v":0},{"$f":"-Fin.Return!E675","v":0},{"$f":"-Fin.Return!E677","v":0},{"$f":"-Fin.Return!E678","v":0},{"$f":"-Fin.Return!E680","v":0},{"$f":"-Fin.Return!E679","v":0},{"$f":"-Fin.Return!E682","v":0},null,null,{"$f":"-Fin.Return!E719","v":0},{"$f":"-Fin.Return!E721","v":0},{"$f":"-Fin.Return!E722","v":0},null,{"$f":"-Fin.Return!E764","v":0},{"$f":"Fin.Return!K797","v":0}]
[null,null,null,null,null,{"$f":"+IF(F15-SUM(F22:F721)>0,\"Error - counterparty balances exceed caption value\",\"\")","v":""},{"$f":"+IF(G15-SUM(G22:G721)>0,\"Error - counterparty balances exceed caption value\",\"\")","v":""},{"$f":"+IF(H15-SUM(H22:H721)>0,\"Error - counterparty balances exceed caption value\",\"\")","v":""},{"$f":"+IF(I15-SUM(I22:I721)>0,\"Error - counterparty balances exceed caption value\",\"\")","v":""},{"$f":"+IF(J15-SUM(J22:J721)>0,\"Error - counterparty balances exceed caption value\",\"\")","v":""},null,{"$f":"+IF(L15-SUM(L22:L721)<0,\"Error - counterparty balances exceed caption value\",\"\")","v":""},{"$f":"+IF(M15-SUM(M22:M721)<0,\"Error - counterparty balances exceed caption value\",\"\")","v":""},{"$f":"+IF(N15-SUM(N22:O721)<0,\"Error - counterparty balances exceed caption value\",\"\")","v":""},null,{"$f":"+IF(P15-SUM(P22:P721)<0,\"Error - counterparty balances exceed caption value\",\"\")","v":""},{"$f":"+IF(Q15-SUM(Q22:Q721)<0,\"Error - counterparty balances exceed caption value\",\"\")","v":""},null,{"$f":"+IF(S15-SUM(S22:S721)<0,\"Error - counterparty balances exceed caption value\",\"\")","v":""},null,{"$f":"+IF(U15-SUM(U22:U721)<0,\"Error - counterparty balances exceed caption value\",\"\")","v":""},{"$f":"+IF(V15-SUM(V22:W721)<0,\"Error - counterparty balances exceed caption value\",\"\")","v":""},null,{"$f":"+IF(X15-SUM(X22:X721)<0,\"Error - counterparty balances exceed caption value\",\"\")","v":""},{"$f":"+IF(Y15-SUM(Y22:Y721)<0,\"Error - counterparty balances exceed caption value\",\"\")","v":""},null,{"$f":"+IF(AA15-SUM(AA22:AA721)<0,\"Error - counterparty balances exceed caption value\",\"\")","v":""},{"$f":"+IF(AB15-SUM(AB22:AB721)<0,\"Error - counterparty balances exceed caption value\",\"\")","v":""},{"$f":"+IF(AC15-SUM(AC22:AC721)<0,\"Error - counterparty balances exceed caption value\",\"\")","v":""},{"$f":"+IF(AD15-SUM(AD22:AD721)<0,\"Error - counterparty balances exceed caption value\",\"\")","v":""},null,{"$f":"+IF(AF15-SUM(AF22:AF721)>0,\"Error - counterparty balances exceed caption value\",\"\")","v":""},"","","","","",{"$f":"+IF(AL15-SUM(AL22:AM721)>0,\"Error - counterparty balances exceed caption value\",\"\")","v":""},null,null,{"$f":"+IF(AO15-SUM(AO22:AO721)>0,\"Error - counterparty balances exceed caption value\",\"\")","v":""},{"$f":"+IF(AP15-SUM(AP22:AP721)>0,\"Error - counterparty balances exceed caption value\",\"\")","v":""},{"$f":"+IF(AQ15-SUM(AQ22:AQ721)>0,\"Error - counterparty balances exceed caption value\",\"\")","v":""},null,{"$f":"+IF(AS15-SUM(AS22:AS721)>0,\"Error - counterparty balances exceed caption value\",\"\")","v":""},{"$f":"+IF(AT15-SUM(AT22:AT721)>0,\"Error - counterparty balances exceed caption value\",\"\")","v":""}]
[]
["HELP",null,null,null,null,"Incoming Resources",null,null,null,null,null,"Resources Expended",null,null,null,null,null,null,null,null,"Debtors under one year",null,null,null,null,null,"Debtors over more than one year",null,null,null,null,"Liabilities less than one year",null,null,null,null,null,null,null,null,"Liabilities over one year",null,null,null,"Other",null,null,null,null,null,null,null,"Blue","Grey","Amber","Total","Blue","Grey","Amber","Total"]
[]
[null,"CPID & Academy Code","Name of Public Body and/or Academy\n(populate from drop-down boxes)","Type",null,"Voluntary income","Activities for generating funds","Investment income","Funding for the Academy's educational \noperations","Provision of boarding activities",null,"Wages and salaries","Employer's pension contributions","Operating lease rentals - Buildings","Operating lease rentals - Land","Finance lease interest payments","Business rates","Purchase of goods and services","Boarding Activities",null,"Trade debtors","Prepayments and accrued income (exc government grants)","Accrued Government grants","VAT recoverable","Other debtors",null,"Trade debtors","Prepayments and accrued income","VAT recoverable","Other debtors",null,"Loans within one year","Trade creditors","Taxes and social security","Finance lease creditors within one year","Other creditors within one year","VAT Payable","Accruals and deferred income (excluding deferred government grants)","Deferred Government Grants",null,"Loans","Finance lease creditors","Other creditors",null,"Provisions","Pension scheme surplus/(deficit)",null,"Comment",null,"Lower limit","Upper limit ",null,{"$f":"SUM(BA21:BA996)","v":692},{"$f":"SUM(BB21:BB996)","v":700},{"$f":"SUM(BC21:BC996)","v":21700},{"$f":"SUM(BA20:BC20)","v":23092},{"$f":"SUM(BE21:BE996)","v":1},{"$f":"SUM(BF21:BF996)","v":9},{"$f":"SUM(BG21:BG996)","v":17},{"$f":"SUM(BE20:BG20)","v":27}]
[null,null,null,null,null,"£000","£000","£000","£000","£000",null,"£000","£000","£000","£000","£000","£000","£000","£000",null,"£000","£000","£000","£000","£000",null,"£000","£000","£000","£000",null,"£000","£000","£000","£000","£000","£000","£000","£000",null,"£000","£000","£000",null,"£000","£000",null,null,null,"£000","£000"]
[null,{"$f":"IF(C22<>\"\",VLOOKUP(C22,'CP IDs'!A$2:B$5090,2,FALSE),\"\")","v":"DES022"},"Department for Education","CenGov't",null,null,null,null,{"$f":"-(Fin.Return!E196+Fin.Return!E205)","v":0},{"$f":"-(Fin.Return!G423)","v":0},null,null,null,null,null,null,null,null,null,null,null,null,null,null,null,null,null,null,null,null,null,null,null,null,null,null,null,null,null,null,null,null,null,null,null,null,null,null,null,-500000,500000,null,null,1,31,null,null,1,{"$f":"COUNT(F22:AT22)","v":2}]
[null,{"$f":"IF(C23<>\"\",VLOOKUP(C23,'CP IDs'!A$2:B$5090,2,FALSE),\"\")","v":"DES022a"},"Education Funding Agency (EFA)","CenGov't",null,null,null,null,{"$f":"-(Fin.Return!E194)","v":0},{"$f":"-(Fin.Return!G421)","v":0},null,null,null,null,null,null,null,null,null,null,null,null,null,null,null,null,null,null,null,null,null,null,null,null,null,null,null,null,null,null,null,null,null,null,null,null,null,null,null,{"$f":"AX22","v":-500000},{"$f":"AY22","v":500000},null,null,1,31,null,null,1,2]
[null,{"$f":"IF(C24<>\"\",VLOOKUP(C24,'CP IDs'!A$2:B$5090,2,FALSE),\"\")","v":"DES022b"},"Teaching Agency (TA)","CenGov't",null,null,null,null,{"$f":"-(Fin.Return!E197+Fin.Return!E206)","v":0},{"$f":"-(Fin.Return!G424)","v":0},null,null,null,null,null,null,null,null,null,null,null,null,null,null,null,null,null,null,null,null,null,null,null,null,null,null,null,null,null,null,null,null,null,null,null,null,null,null,null,{"$f":"AX23","v":-500000},{"$f":"AY23","v":500000},null,null,1,31,null,null,1,2]
[null,{"$f":"IF(C25<>\"\",VLOOKUP(C25,'CP IDs'!A$2:B$5090,2,FALSE),\"\")","v":"DES022e"},"National College for Teaching and Leadership (NCTL)","CenGov't",null,null,null,null,{"$f":"-(Fin.Return!E198+Fin.Return!E207)","v":0},{"$f":"-(Fin.Return!G425)","v":0},null,null,null,null,null,null,null,null,null,null,null,null,null,null,null,null,null,null,null,null,null,null,null,null,null,null,null,null,null,null,null,null,null,null,null,null,null,null,null,{"$f":"AX24","v":-500000},{"$f":"AY24","v":500000},null,null,1,31,null,null,1,2]
[null,{"$f":"IF(C26<>\"\",VLOOKUP(C26,'CP IDs'!A$2:B$5090,2,FALSE),\"\")","v":"DES022c"},"Standards and Testing Agency (STA)","CenGov't",null,null,null,null,{"$f":"-(Fin.Return!E199+Fin.Return!E208)","v":0},{"$f":"-(Fin.Return!G426)","v":0},null,null,null,null,null,null,null,null,null,null,null,null,null,null,null,null,null,null,null,null,null,null,null,null,null,null,null,null,null,null,null,null,null,null,null,null,null,null,null,-500000,500000,null,null,1,31,null,null,1,2]
[null,{"$f":"IF(C27<>\"\",VLOOKUP(C27,'CP IDs'!A$2:B$5090,2,FALSE),\"\")","v":"DES022d"},"Office of the Children's Commissioner","CenGov't",null,null,null,null,{"$f":"-(Fin.Return!E201+Fin.Return!E210)","v":0},{"$f":"-(Fin.Return!G428)","v":0},null,null,null,null,null,null,null,null,null,null,null,null,null,null,null,null,null,null,null,null,null,null,null,null,null,null,null,null,null,null,null,null,null,null,null,null,null,null,null,-500000,500000,null,null,1,31,null,null,1,2]
[null,{"$f":"IF(C28<>\"\",VLOOKUP(C28,'CP IDs'!A$2:B$5090,2,FALSE),\"\")","v":"CFA022"},"Children and Family Court Advisory and Support Service","CenGov't",null,null,null,null,{"$f":"-(Fin.Return!E200+Fin.Return!E209)","v":0},{"$f":"-(Fin.Return!G427)","v":0},null,null,null,null,null,null,null,null,null,null,null,null,null,null,null,null,null,null,null,null,null,null,null,null,null,null,null,null,null,null,null,null,null,null,null,null,null,null,null,-500000,500000,null,null,1,31,null,null,1,2]
[null,{"$f":"IF(C29<>\"\",VLOOKUP(C29,'CP IDs'!A$2:B$5090,2,FALSE),\"\")","v":"TPS904"},"Teachers' Pension Scheme (England & Wales)","CenGov't",null,null,null,null,null,null,null,null,null,null,null,null,null,null,null,null,null,null,null,null,null,null,null,null,null,null,null,null,null,null,null,null,null,null,null,null,null,null,null,null,null,null,null,null,null,-500000,500000,null,null,1,31,null,null,1,0]
[null,{"$f":"IF(C30<>\"\",VLOOKUP(C30,'CP IDs'!A$2:B$5090,2,FALSE),\"\")","v":"ILR041"},"HM Revenue and Customs","CenGov't",null,null,null,null,null,null,null,null,null,null,null,null,null,null,null,null,null,null,null,{"$f":"+(Fin.Return!E614)","v":0},null,null,null,null,{"$f":"+(Fin.Return!G614)","v":0},null,null,null,null,null,null,null,{"$f":"+(Fin.Return!E679)","v":0},null,null,null,null,null,null,null,null,null,null,null,null,-500000,500000,null,1,1,31,null,{"$f":"COUNTA(C30)","v":1},{"$f":"1-COUNTBLANK(B30)","v":1},3,null,{"$f":"AND(B30=$C$9,'Standing Data'!$D$9<>\"Multi-academy Trust\")","v":{"$error":"#N/A"}}]
[{"$f":"IF(B31<>\"\",IF('Standing Data'!$D$9<>\"Multi-academy Trust\",IF('Standing Data'!$D$15=B31,\"Error - counterparty with self\",\"\"),IF(N(ISNA(MATCH(B31,'Standing Data'!$E$49:$E$148,0)))<>0,\"\",\"Error - counterparty with self\")),\"\")","v":""},{"$f":"IF(C31<>\"\",VLOOKUP(C31,'CP IDs'!A$2:B$5122,2,FALSE),\"\")","v":""},null,{"$f":"IFERROR(VLOOKUP(C31,'CP IDs'!$A$2:$D$4422,4,FALSE),\"\")","v":""},{"$f":"IF(OR(AND(COUNT(F31:AT31)>0,C31=\"\"),AND(COUNT(F31:AT31)=0,C31<>\"\")),\"Error - on line\",\"\")","v":""},null,null,null,null,null,null,null,null,null,null,null,null,null,null,null,null,null,null,null,null,null,null,null,null,null,null,null,null,null,null,null,null,null,null,null,null,null,null,null,null,null,null,null,null,-500000,500000,null,1,1,31,null,0,0,0,null,{"$f":"AND(B31=$C$9,'Standing Data'!$D$9<>\"Multi-academy Trust\")","v":{"$error":"#N/A"}}]
[{"$f":"IF(B32<>\"\",IF('Standing Data'!$D$9<>\"Multi-academy Trust\",IF('Standing Data'!$D$15=B32,\"Error - counterparty with self\",\"\"),IF(N(ISNA(MATCH(B32,'Standing Data'!$E$49:$E$148,0)))<>0,\"\",\"Error - counterparty with self\")),\"\")","v":""},{"$f":"IF(C32<>\"\",VLOOKUP(C32,'CP IDs'!A$2:B$5122,2,FALSE),\"\")","v":""},null,{"$f":"IFERROR(VLOOKUP(C32,'CP IDs'!$A$2:$D$4422,4,FALSE),\"\")","v":""},"",null,null,null,null,null,null,null,null,null,null,null,null,null,null,null,null,null,null,null,null,null,null,null,null,null,null,null,null,null,null,null,null,null,null,null,null,null,null,null,null,null,null,null,null,-500000,500000,null,1,1,31,null,0,0,0,null,{"$f":"AND(B32=$C$9,'Standing Data'!$D$9<>\"Multi-academy Trust\")","v":{"$error":"#N/A"}}]
[{"$f":"IF(B33<>\"\",IF('Standing Data'!$D$9<>\"Multi-academy Trust\",IF('Standing Data'!$D$15=B33,\"Error - counterparty with self\",\"\"),IF(N(ISNA(MATCH(B33,'Standing Data'!$E$49:$E$148,0)))<>0,\"\",\"Error - counterparty with self\")),\"\")","v":""},{"$f":"IF(C33<>\"\",VLOOKUP(C33,'CP IDs'!A$2:B$5122,2,FALSE),\"\")","v":""},null,{"$f":"IFERROR(VLOOKUP(C33,'CP IDs'!$A$2:$D$4422,4,FALSE),\"\")","v":""},"",null,null,null,null,null,null,null,null,null,null,null,null,null,null,null,null,null,null,null,null,null,null,null,null,null,null,null,null,null,null,null,null,null,null,null,null,null,null,null,null,null,null,null,null,-500000,500000,null,1,1,31,null,0,0,0,null,{"$f":"AND(B33=$C$9,'Standing Data'!$D$9<>\"Multi-academy Trust\")","v":{"$error":"#N/A"}}]
[{"$f":"IF(B34<>\"\",IF('Standing Data'!$D$9<>\"Multi-academy Trust\",IF('Standing Data'!$D$15=B34,\"Error - counterparty with self\",\"\"),IF(N(ISNA(MATCH(B34,'Standing Data'!$E$49:$E$148,0)))<>0,\"\",\"Error - counterparty with self\")),\"\")","v":""},{"$f":"IF(C34<>\"\",VLOOKUP(C34,'CP IDs'!A$2:B$5122,2,FALSE),\"\")","v":""},null,{"$f":"IFERROR(VLOOKUP(C34,'CP IDs'!$A$2:$D$4422,4,FALSE),\"\")","v":""},"",null,null,null,null,null,null,null,null,null,null,null,null,null,null,null,null,null,null,null,null,null,null,null,null,null,null,null,null,null,null,null,null,null,null,null,null,null,null,null,null,null,null,null,null,-500000,500000,null,1,1,31,null,0,0,0,null,{"$f":"AND(B34=$C$9,'Standing Data'!$D$9<>\"Multi-academy Trust\")","v":{"$error":"#N/A"}}]
[{"$f":"IF(B35<>\"\",IF('Standing Data'!$D$9<>\"Multi-academy Trust\",IF('Standing Data'!$D$15=B35,\"Error - counterparty with self\",\"\"),IF(N(ISNA(MATCH(B35,'Standing Data'!$E$49:$E$148,0)))<>0,\"\",\"Error - counterparty with self\")),\"\")","v":""},{"$f":"IF(C35<>\"\",VLOOKUP(C35,'CP IDs'!A$2:B$5122,2,FALSE),\"\")","v":""},null,{"$f":"IFERROR(VLOOKUP(C35,'CP IDs'!$A$2:$D$4422,4,FALSE),\"\")","v":""},"",null,null,null,null,null,null,null,null,null,null,null,null,null,null,null,null,null,null,null,null,null,null,null,null,null,null,null,null,null,null,null,null,null,null,null,null,null,null,null,null,null,null,null,null,-500000,500000,null,1,1,31,null,0,0,0,null,{"$f":"AND(B35=$C$9,'Standing Data'!$D$9<>\"Multi-academy Trust\")","v":{"$error":"#N/A"}}]
[{"$f":"IF(B36<>\"\",IF('Standing Data'!$D$9<>\"Multi-academy Trust\",IF('Standing Data'!$D$15=B36,\"Error - counterparty with self\",\"\"),IF(N(ISNA(MATCH(B36,'Standing Data'!$E$49:$E$148,0)))<>0,\"\",\"Error - counterparty with self\")),\"\")","v":""},{"$f":"IF(C36<>\"\",VLOOKUP(C36,'CP IDs'!A$2:B$5122,2,FALSE),\"\")","v":""},null,{"$f":"IFERROR(VLOOKUP(C36,'CP IDs'!$A$2:$D$4422,4,FALSE),\"\")","v":""},"",null,null,null,null,null,null,null,null,null,null,null,null,null,null,null,null,null,null,null,null,null,null,null,null,null,null,null,null,null,null,null,null,null,null,null,null,null,null,null,null,null,null,null,null,-500000,500000,null,1,1,31,null,0,0,0,null,{"$f":"AND(B36=$C$9,'Standing Data'!$D$9<>\"Multi-academy Trust\")","v":{"$error":"#N/A"}}]
[{"$f":"IF(B37<>\"\",IF('Standing Data'!$D$9<>\"Multi-academy Trust\",IF('Standing Data'!$D$15=B37,\"Error - counterparty with self\",\"\"),IF(N(ISNA(MATCH(B37,'Standing Data'!$E$49:$E$148,0)))<>0,\"\",\"Error - counterparty with self\")),\"\")","v":""},{"$f":"IF(C37<>\"\",VLOOKUP(C37,'CP IDs'!A$2:B$5122,2,FALSE),\"\")","v":""},null,{"$f":"IFERROR(VLOOKUP(C37,'CP IDs'!$A$2:$D$4422,4,FALSE),\"\")","v":""},"",null,null,null,null,null,null,null,null,null,null,null,null,null,null,null,null,null,null,null,null,null,null,null,null,null,null,null,null,null,null,null,null,null,null,null,null,null,null,null,null,null,null,null,null,-500000,500000,null,1,1,31,null,0,0,0,null,{"$f":"AND(B37=$C$9,'Standing Data'!$D$9<>\"Multi-academy Trust\")","v":{"$error":"#N/A"}}]
[{"$f":"IF(B38<>\"\",IF('Standing Data'!$D$9<>\"Multi-academy Trust\",IF('Standing Data'!$D$15=B38,\"Error - counterparty with self\",\"\"),IF(N(ISNA(MATCH(B38,'Standing Data'!$E$49:$E$148,0)))<>0,\"\",\"Error - counterparty with self\")),\"\")","v":""},{"$f":"IF(C38<>\"\",VLOOKUP(C38,'CP IDs'!A$2:B$5122,2,FALSE),\"\")","v":""},null,{"$f":"IFERROR(VLOOKUP(C38,'CP IDs'!$A$2:$D$4422,4,FALSE),\"\")","v":""},"",null,null,null,null,null,null,null,null,null,null,null,null,null,null,null,null,null,null,null,null,null,null,null,null,null,null,null,null,null,null,null,null,null,null,null,null,null,null,null,null,null,null,null,null,-500000,500000,null,1,1,31,null,0,0,0,null,{"$f":"AND(B38=$C$9,'Standing Data'!$D$9<>\"Multi-academy Trust\")","v":{"$error":"#N/A"}}]
[{"$f":"IF(B39<>\"\",IF('Standing Data'!$D$9<>\"Multi-academy Trust\",IF('Standing Data'!$D$15=B39,\"Error - counterparty with self\",\"\"),IF(N(ISNA(MATCH(B39,'Standing Data'!$E$49:$E$148,0)))<>0,\"\",\"Error - counterparty with self\")),\"\")","v":""},{"$f":"IF(C39<>\"\",VLOOKUP(C39,'CP IDs'!A$2:B$5122,2,FALSE),\"\")","v":""},null,{"$f":"IFERROR(VLOOKUP(C39,'CP IDs'!$A$2:$D$4422,4,FALSE),\"\")","v":""},"",null,null,null,null,null,null,null,null,null,null,null,null,null,null,null,null,null,null,null,null,null,null,null,null,null,null,null,null,null,null,null,null,null,null,null,null,null,null,null,null,null,null,null,null,-500000,500000,null,1,1,31,null,0,0,0,null,{"$f":"AND(B39=$C$9,'Standing Data'!$D$9<>\"Multi-academy Trust\")","v":{"$error":"#N/A"}}]
[{"$f":"IF(B40<>\"\",IF('Standing Data'!$D$9<>\"Multi-academy Trust\",IF('Standing Data'!$D$15=B40,\"Error - counterparty with self\",\"\"),IF(N(ISNA(MATCH(B40,'Standing Data'!$E$49:$E$148,0)))<>0,\"\",\"Error - counterparty with self\")),\"\")","v":""},{"$f":"IF(C40<>\"\",VLOOKUP(C40,'CP IDs'!A$2:B$5122,2,FALSE),\"\")","v":""},null,{"$f":"IFERROR(VLOOKUP(C40,'CP IDs'!$A$2:$D$4422,4,FALSE),\"\")","v":""},"",null,null,null,null,null,null,null,null,null,null,null,null,null,null,null,null,null,null,null,null,null,null,null,null,null,null,null,null,null,null,null,null,null,null,null,null,null,null,null,null,null,null,null,null,-500000,500000,null,1,1,31,null,0,0,0,null,{"$f":"AND(B40=$C$9,'Standing Data'!$D$9<>\"Multi-academy Trust\")","v":{"$error":"#N/A"}}]
[{"$f":"IF(B41<>\"\",IF('Standing Data'!$D$9<>\"Multi-academy Trust\",IF('Standing Data'!$D$15=B41,\"Error - counterparty with self\",\"\"),IF(N(ISNA(MATCH(B41,'Standing Data'!$E$49:$E$148,0)))<>0,\"\",\"Error - counterparty with self\")),\"\")","v":""},{"$f":"IF(C41<>\"\",VLOOKUP(C41,'CP IDs'!A$2:B$5122,2,FALSE),\"\")","v":""},null,{"$f":"IFERROR(VLOOKUP(C41,'CP IDs'!$A$2:$D$4422,4,FALSE),\"\")","v":""},"",null,null,null,null,null,null,null,null,null,null,null,null,null,null,null,null,null,null,null,null,null,null,null,null,null,null,null,null,null,null,null,null,null,null,null,null,null,null,null,null,null,null,null,null,-500000,500000,null,1,1,31,null,0,0,0,null,{"$f":"AND(B41=$C$9,'Standing Data'!$D$9<>\"Multi-academy Trust\")","v":{"$error":"#N/A"}}]
[{"$f":"IF(B42<>\"\",IF('Standing Data'!$D$9<>\"Multi-academy Trust\",IF('Standing Data'!$D$15=B42,\"Error - counterparty with self\",\"\"),IF(N(ISNA(MATCH(B42,'Standing Data'!$E$49:$E$148,0)))<>0,\"\",\"Error - counterparty with self\")),\"\")","v":""},{"$f":"IF(C42<>\"\",VLOOKUP(C42,'CP IDs'!A$2:B$5122,2,FALSE),\"\")","v":""},null,{"$f":"IFERROR(VLOOKUP(C42,'CP IDs'!$A$2:$D$4422,4,FALSE),\"\")","v":""},"",null,null,null,null,null,null,null,null,null,null,null,null,null,null,null,null,null,null,null,null,null,null,null,null,null,null,null,null,null,null,null,null,null,null,null,null,null,null,null,null,null,null,null,null,-500000,500000,null,1,1,31,null,0,0,0,null,{"$f":"AND(B42=$C$9,'Standing Data'!$D$9<>\"Multi-academy Trust\")","v":{"$error":"#N/A"}}]
[{"$f":"IF(B43<>\"\",IF('Standing Data'!$D$9<>\"Multi-academy Trust\",IF('Standing Data'!$D$15=B43,\"Error - counterparty with self\",\"\"),IF(N(ISNA(MATCH(B43,'Standing Data'!$E$49:$E$148,0)))<>0,\"\",\"Error - counterparty with self\")),\"\")","v":""},{"$f":"IF(C43<>\"\",VLOOKUP(C43,'CP IDs'!A$2:B$5122,2,FALSE),\"\")","v":""},null,{"$f":"IFERROR(VLOOKUP(C43,'CP IDs'!$A$2:$D$4422,4,FALSE),\"\")","v":""},"",null,null,null,null,null,null,null,null,null,null,null,null,null,null,null,null,null,null,null,null,null,null,null,null,null,null,null,null,null,null,null,null,null,null,null,null,null,null,null,null,null,null,null,null,-500000,500000,null,1,1,31,null,0,0,0,null,{"$f":"AND(B43=$C$9,'Standing Data'!$D$9<>\"Multi-academy Trust\")","v":{"$error":"#N/A"}}]
[{"$f":"IF(B44<>\"\",IF('Standing Data'!$D$9<>\"Multi-academy Trust\",IF('Standing Data'!$D$15=B44,\"Error - counterparty with self\",\"\"),IF(N(ISNA(MATCH(B44,'Standing Data'!$E$49:$E$148,0)))<>0,\"\",\"Error - counterparty with self\")),\"\")","v":""},{"$f":"IF(C44<>\"\",VLOOKUP(C44,'CP IDs'!A$2:B$5122,2,FALSE),\"\")","v":""},null,{"$f":"IFERROR(VLOOKUP(C44,'CP IDs'!$A$2:$D$4422,4,FALSE),\"\")","v":""},"",null,null,null,null,null,null,null,null,null,null,null,null,null,null,null,null,null,null,null,null,null,null,null,null,null,null,null,null,null,null,null,null,null,null,null,null,null,null,null,null,null,null,null,null,-500000,500000,null,1,1,31,null,0,0,0,null,{"$f":"AND(B44=$C$9,'Standing Data'!$D$9<>\"Multi-academy Trust\")","v":{"$error":"#N/A"}}]
[{"$f":"IF(B45<>\"\",IF('Standing Data'!$D$9<>\"Multi-academy Trust\",IF('Standing Data'!$D$15=B45,\"Error - counterparty with self\",\"\"),IF(N(ISNA(MATCH(B45,'Standing Data'!$E$49:$E$148,0)))<>0,\"\",\"Error - counterparty with self\")),\"\")","v":""},{"$f":"IF(C45<>\"\",VLOOKUP(C45,'CP IDs'!A$2:B$5122,2,FALSE),\"\")","v":""},null,{"$f":"IFERROR(VLOOKUP(C45,'CP IDs'!$A$2:$D$4422,4,FALSE),\"\")","v":""},"",null,null,null,null,null,null,null,null,null,null,null,null,null,null,null,null,null,null,null,null,null,null,null,null,null,null,null,null,null,null,null,null,null,null,null,null,null,null,null,null,null,null,null,null,-500000,500000,null,1,1,31,null,0,0,0,null,{"$f":"AND(B45=$C$9,'Standing Data'!$D$9<>\"Multi-academy Trust\")","v":{"$error":"#N/A"}}]
[{"$f":"IF(B46<>\"\",IF('Standing Data'!$D$9<>\"Multi-academy Trust\",IF('Standing Data'!$D$15=B46,\"Error - counterparty with self\",\"\"),IF(N(ISNA(MATCH(B46,'Standing Data'!$E$49:$E$148,0)))<>0,\"\",\"Error - counterparty with self\")),\"\")","v":""},{"$f":"IF(C46<>\"\",VLOOKUP(C46,'CP IDs'!A$2:B$5122,2,FALSE),\"\")","v":""},null,{"$f":"IFERROR(VLOOKUP(C46,'CP IDs'!$A$2:$D$4422,4,FALSE),\"\")","v":""},"",null,null,null,null,null,null,null,null,null,null,null,null,null,null,null,null,null,null,null,null,null,null,null,null,null,null,null,null,null,null,null,null,null,null,null,null,null,null,null,null,null,null,null,null,-500000,500000,null,1,1,31,null,0,0,0,null,{"$f":"AND(B46=$C$9,'Standing Data'!$D$9<>\"Multi-academy Trust\")","v":{"$error":"#N/A"}}]
[{"$f":"IF(B47<>\"\",IF('Standing Data'!$D$9<>\"Multi-academy Trust\",IF('Standing Data'!$D$15=B47,\"Error - counterparty with self\",\"\"),IF(N(ISNA(MATCH(B47,'Standing Data'!$E$49:$E$148,0)))<>0,\"\",\"Error - counterparty with self\")),\"\")","v":""},{"$f":"IF(C47<>\"\",VLOOKUP(C47,'CP IDs'!A$2:B$5122,2,FALSE),\"\")","v":""},null,{"$f":"IFERROR(VLOOKUP(C47,'CP IDs'!$A$2:$D$4422,4,FALSE),\"\")","v":""},"",null,null,null,null,null,null,null,null,null,null,null,null,null,null,null,null,null,null,null,null,null,null,null,null,null,null,null,null,null,null,null,null,null,null,null,null,null,null,null,null,null,null,null,null,-500000,500000,null,1,1,31,null,0,0,0,null,{"$f":"AND(B47=$C$9,'Standing Data'!$D$9<>\"Multi-academy Trust\")","v":{"$error":"#N/A"}}]
[{"$f":"IF(B48<>\"\",IF('Standing Data'!$D$9<>\"Multi-academy Trust\",IF('Standing Data'!$D$15=B48,\"Error - counterparty with self\",\"\"),IF(N(ISNA(MATCH(B48,'Standing Data'!$E$49:$E$148,0)))<>0,\"\",\"Error - counterparty with self\")),\"\")","v":""},{"$f":"IF(C48<>\"\",VLOOKUP(C48,'CP IDs'!A$2:B$5122,2,FALSE),\"\")","v":""},null,{"$f":"IFERROR(VLOOKUP(C48,'CP IDs'!$A$2:$D$4422,4,FALSE),\"\")","v":""},"",null,null,null,null,null,null,null,null,null,null,null,null,null,null,null,null,null,null,null,null,null,null,null,null,null,null,null,null,null,null,null,null,null,null,null,null,null,null,null,null,null,null,null,null,-500000,500000,null,1,1,31,null,0,0,0,null,{"$f":"AND(B48=$C$9,'Standing Data'!$D$9<>\"Multi-academy Trust\")","v":{"$error":"#N/A"}}]
[{"$f":"IF(B49<>\"\",IF('Standing Data'!$D$9<>\"Multi-academy Trust\",IF('Standing Data'!$D$15=B49,\"Error - counterparty with self\",\"\"),IF(N(ISNA(MATCH(B49,'Standing Data'!$E$49:$E$148,0)))<>0,\"\",\"Error - counterparty with self\")),\"\")","v":""},{"$f":"IF(C49<>\"\",VLOOKUP(C49,'CP IDs'!A$2:B$5122,2,FALSE),\"\")","v":""},null,{"$f":"IFERROR(VLOOKUP(C49,'CP IDs'!$A$2:$D$4422,4,FALSE),\"\")","v":""},"",null,null,null,null,null,null,null,null,null,null,null,null,null,null,null,null,null,null,null,null,null,null,null,null,null,null,null,null,null,null,null,null,null,null,null,null,null,null,null,null,null,null,null,null,-500000,500000,null,1,1,31,null,0,0,0,null,{"$f":"AND(B49=$C$9,'Standing Data'!$D$9<>\"Multi-academy Trust\")","v":{"$error":"#N/A"}}]
[{"$f":"IF(B50<>\"\",IF('Standing Data'!$D$9<>\"Multi-academy Trust\",IF('Standing Data'!$D$15=B50,\"Error - counterparty with self\",\"\"),IF(N(ISNA(MATCH(B50,'Standing Data'!$E$49:$E$148,0)))<>0,\"\",\"Error - counterparty with self\")),\"\")","v":""},{"$f":"IF(C50<>\"\",VLOOKUP(C50,'CP IDs'!A$2:B$5122,2,FALSE),\"\")","v":""},null,{"$f":"IFERROR(VLOOKUP(C50,'CP IDs'!$A$2:$D$4422,4,FALSE),\"\")","v":""},"",null,null,null,null,null,null,null,null,null,null,null,null,null,null,null,null,null,null,null,null,null,null,null,null,null,null,null,null,null,null,null,null,null,null,null,null,null,null,null,null,null,null,null,null,-500000,500000,null,1,1,31,null,0,0,0,null,{"$f":"AND(B50=$C$9,'Standing Data'!$D$9<>\"Multi-academy Trust\")","v":{"$error":"#N/A"}}]
[{"$f":"IF(B51<>\"\",IF('Standing Data'!$D$9<>\"Multi-academy Trust\",IF('Standing Data'!$D$15=B51,\"Error - counterparty with self\",\"\"),IF(N(ISNA(MATCH(B51,'Standing Data'!$E$49:$E$148,0)))<>0,\"\",\"Error - counterparty with self\")),\"\")","v":""},{"$f":"IF(C51<>\"\",VLOOKUP(C51,'CP IDs'!A$2:B$5122,2,FALSE),\"\")","v":""},null,{"$f":"IFERROR(VLOOKUP(C51,'CP IDs'!$A$2:$D$4422,4,FALSE),\"\")","v":""},"",null,null,null,null,null,null,null,null,null,null,null,null,null,null,null,null,null,null,null,null,null,null,null,null,null,null,null,null,null,null,null,null,null,null,null,null,null,null,null,null,null,null,null,null,-500000,500000,null,1,1,31,null,0,0,0,null,{"$f":"AND(B51=$C$9,'Standing Data'!$D$9<>\"Multi-academy Trust\")","v":{"$error":"#N/A"}}]
[{"$f":"IF(B52<>\"\",IF('Standing Data'!$D$9<>\"Multi-academy Trust\",IF('Standing Data'!$D$15=B52,\"Error - counterparty with self\",\"\"),IF(N(ISNA(MATCH(B52,'Standing Data'!$E$49:$E$148,0)))<>0,\"\",\"Error - counterparty with self\")),\"\")","v":""},{"$f":"IF(C52<>\"\",VLOOKUP(C52,'CP IDs'!A$2:B$5122,2,FALSE),\"\")","v":""},null,{"$f":"IFERROR(VLOOKUP(C52,'CP IDs'!$A$2:$D$4422,4,FALSE),\"\")","v":""},"",null,null,null,null,null,null,null,null,null,null,null,null,null,null,null,null,null,null,null,null,null,null,null,null,null,null,null,null,null,null,null,null,null,null,null,null,null,null,null,null,null,null,null,null,-500000,500000,null,1,1,31,null,0,0,0,null,{"$f":"AND(B52=$C$9,'Standing Data'!$D$9<>\"Multi-academy Trust\")","v":{"$error":"#N/A"}}]
[{"$f":"IF(B53<>\"\",IF('Standing Data'!$D$9<>\"Multi-academy Trust\",IF('Standing Data'!$D$15=B53,\"Error - counterparty with self\",\"\"),IF(N(ISNA(MATCH(B53,'Standing Data'!$E$49:$E$148,0)))<>0,\"\",\"Error - counterparty with self\")),\"\")","v":""},{"$f":"IF(C53<>\"\",VLOOKUP(C53,'CP IDs'!A$2:B$5122,2,FALSE),\"\")","v":""},null,{"$f":"IFERROR(VLOOKUP(C53,'CP IDs'!$A$2:$D$4422,4,FALSE),\"\")","v":""},"",null,null,null,null,null,null,null,null,null,null,null,null,null,null,null,null,null,null,null,null,null,null,null,null,null,null,null,null,null,null,null,null,null,null,null,null,null,null,null,null,null,null,null,null,-500000,500000,null,1,1,31,null,0,0,0,null,{"$f":"AND(B53=$C$9,'Standing Data'!$D$9<>\"Multi-academy Trust\")","v":{"$error":"#N/A"}}]
[{"$f":"IF(B54<>\"\",IF('Standing Data'!$D$9<>\"Multi-academy Trust\",IF('Standing Data'!$D$15=B54,\"Error - counterparty with self\",\"\"),IF(N(ISNA(MATCH(B54,'Standing Data'!$E$49:$E$148,0)))<>0,\"\",\"Error - counterparty with self\")),\"\")","v":""},{"$f":"IF(C54<>\"\",VLOOKUP(C54,'CP IDs'!A$2:B$5122,2,FALSE),\"\")","v":""},null,{"$f":"IFERROR(VLOOKUP(C54,'CP IDs'!$A$2:$D$4422,4,FALSE),\"\")","v":""},"",null,null,null,null,null,null,null,null,null,null,null,null,null,null,null,null,null,null,null,null,null,null,null,null,null,null,null,null,null,null,null,null,null,null,null,null,null,null,null,null,null,null,null,null,-500000,500000,null,1,1,31,null,0,0,0,null,{"$f":"AND(B54=$C$9,'Standing Data'!$D$9<>\"Multi-academy Trust\")","v":{"$error":"#N/A"}}]
[{"$f":"IF(B55<>\"\",IF('Standing Data'!$D$9<>\"Multi-academy Trust\",IF('Standing Data'!$D$15=B55,\"Error - counterparty with self\",\"\"),IF(N(ISNA(MATCH(B55,'Standing Data'!$E$49:$E$148,0)))<>0,\"\",\"Error - counterparty with self\")),\"\")","v":""},{"$f":"IF(C55<>\"\",VLOOKUP(C55,'CP IDs'!A$2:B$5122,2,FALSE),\"\")","v":""},null,{"$f":"IFERROR(VLOOKUP(C55,'CP IDs'!$A$2:$D$4422,4,FALSE),\"\")","v":""},"",null,null,null,null,null,null,null,null,null,null,null,null,null,null,null,null,null,null,null,null,null,null,null,null,null,null,null,null,null,null,null,null,null,null,null,null,null,null,null,null,null,null,null,null,-500000,500000,null,1,1,31,null,0,0,0,null,{"$f":"AND(B55=$C$9,'Standing Data'!$D$9<>\"Multi-academy Trust\")","v":{"$error":"#N/A"}}]
[{"$f":"IF(B56<>\"\",IF('Standing Data'!$D$9<>\"Multi-academy Trust\",IF('Standing Data'!$D$15=B56,\"Error - counterparty with self\",\"\"),IF(N(ISNA(MATCH(B56,'Standing Data'!$E$49:$E$148,0)))<>0,\"\",\"Error - counterparty with self\")),\"\")","v":""},{"$f":"IF(C56<>\"\",VLOOKUP(C56,'CP IDs'!A$2:B$5122,2,FALSE),\"\")","v":""},null,{"$f":"IFERROR(VLOOKUP(C56,'CP IDs'!$A$2:$D$4422,4,FALSE),\"\")","v":""},"",null,null,null,null,null,null,null,null,null,null,null,null,null,null,null,null,null,null,null,null,null,null,null,null,null,null,null,null,null,null,null,null,null,null,null,null,null,null,null,null,null,null,null,null,-500000,500000,null,1,1,31,null,0,0,0,null,{"$f":"AND(B56=$C$9,'Standing Data'!$D$9<>\"Multi-academy Trust\")","v":{"$error":"#N/A"}}]
[{"$f":"IF(B57<>\"\",IF('Standing Data'!$D$9<>\"Multi-academy Trust\",IF('Standing Data'!$D$15=B57,\"Error - counterparty with self\",\"\"),IF(N(ISNA(MATCH(B57,'Standing Data'!$E$49:$E$148,0)))<>0,\"\",\"Error - counterparty with self\")),\"\")","v":""},{"$f":"IF(C57<>\"\",VLOOKUP(C57,'CP IDs'!A$2:B$5122,2,FALSE),\"\")","v":""},null,{"$f":"IFERROR(VLOOKUP(C57,'CP IDs'!$A$2:$D$4422,4,FALSE),\"\")","v":""},"",null,null,null,null,null,null,null,null,null,null,null,null,null,null,null,null,null,null,null,null,null,null,null,null,null,null,null,null,null,null,null,null,null,null,null,null,null,null,null,null,null,null,null,null,-500000,500000,null,1,1,31,null,0,0,0,null,{"$f":"AND(B57=$C$9,'Standing Data'!$D$9<>\"Multi-academy Trust\")","v":{"$error":"#N/A"}}]
[{"$f":"IF(B58<>\"\",IF('Standing Data'!$D$9<>\"Multi-academy Trust\",IF('Standing Data'!$D$15=B58,\"Error - counterparty with self\",\"\"),IF(N(ISNA(MATCH(B58,'Standing Data'!$E$49:$E$148,0)))<>0,\"\",\"Error - counterparty with self\")),\"\")","v":""},{"$f":"IF(C58<>\"\",VLOOKUP(C58,'CP IDs'!A$2:B$5122,2,FALSE),\"\")","v":""},null,{"$f":"IFERROR(VLOOKUP(C58,'CP IDs'!$A$2:$D$4422,4,FALSE),\"\")","v":""},"",null,null,null,null,null,null,null,null,null,null,null,null,null,null,null,null,null,null,null,null,null,null,null,null,null,null,null,null,null,null,null,null,null,null,null,null,null,null,null,null,null,null,null,null,-500000,500000,null,1,1,31,null,0,0,0,null,{"$f":"AND(B58=$C$9,'Standing Data'!$D$9<>\"Multi-academy Trust\")","v":{"$error":"#N/A"}}]
[{"$f":"IF(B59<>\"\",IF('Standing Data'!$D$9<>\"Multi-academy Trust\",IF('Standing Data'!$D$15=B59,\"Error - counterparty with self\",\"\"),IF(N(ISNA(MATCH(B59,'Standing Data'!$E$49:$E$148,0)))<>0,\"\",\"Error - counterparty with self\")),\"\")","v":""},{"$f":"IF(C59<>\"\",VLOOKUP(C59,'CP IDs'!A$2:B$5122,2,FALSE),\"\")","v":""},null,{"$f":"IFERROR(VLOOKUP(C59,'CP IDs'!$A$2:$D$4422,4,FALSE),\"\")","v":""},"",null,null,null,null,null,null,null,null,null,null,null,null,null,null,null,null,null,null,null,null,null,null,null,null,null,null,null,null,null,null,null,null,null,null,null,null,null,null,null,null,null,null,null,null,-500000,500000,null,1,1,31,null,0,0,0,null,{"$f":"AND(B59=$C$9,'Standing Data'!$D$9<>\"Multi-academy Trust\")","v":{"$error":"#N/A"}}]
[{"$f":"IF(B60<>\"\",IF('Standing Data'!$D$9<>\"Multi-academy Trust\",IF('Standing Data'!$D$15=B60,\"Error - counterparty with self\",\"\"),IF(N(ISNA(MATCH(B60,'Standing Data'!$E$49:$E$148,0)))<>0,\"\",\"Error - counterparty with self\")),\"\")","v":""},{"$f":"IF(C60<>\"\",VLOOKUP(C60,'CP IDs'!A$2:B$5122,2,FALSE),\"\")","v":""},null,{"$f":"IFERROR(VLOOKUP(C60,'CP IDs'!$A$2:$D$4422,4,FALSE),\"\")","v":""},"",null,null,null,null,null,null,null,null,null,null,null,null,null,null,null,null,null,null,null,null,null,null,null,null,null,null,null,null,null,null,null,null,null,null,null,null,null,null,null,null,null,null,null,null,-500000,500000,null,1,1,31,null,0,0,0,null,{"$f":"AND(B60=$C$9,'Standing Data'!$D$9<>\"Multi-academy Trust\")","v":{"$error":"#N/A"}}]
[{"$f":"IF(B61<>\"\",IF('Standing Data'!$D$9<>\"Multi-academy Trust\",IF('Standing Data'!$D$15=B61,\"Error - counterparty with self\",\"\"),IF(N(ISNA(MATCH(B61,'Standing Data'!$E$49:$E$148,0)))<>0,\"\",\"Error - counterparty with self\")),\"\")","v":""},{"$f":"IF(C61<>\"\",VLOOKUP(C61,'CP IDs'!A$2:B$5122,2,FALSE),\"\")","v":""},null,{"$f":"IFERROR(VLOOKUP(C61,'CP IDs'!$A$2:$D$4422,4,FALSE),\"\")","v":""},"",null,null,null,null,null,null,null,null,null,null,null,null,null,null,null,null,null,null,null,null,null,null,null,null,null,null,null,null,null,null,null,null,null,null,null,null,null,null,null,null,null,null,null,null,-500000,500000,null,1,1,31,null,0,0,0,null,{"$f":"AND(B61=$C$9,'Standing Data'!$D$9<>\"Multi-academy Trust\")","v":{"$error":"#N/A"}}]
[{"$f":"IF(B62<>\"\",IF('Standing Data'!$D$9<>\"Multi-academy Trust\",IF('Standing Data'!$D$15=B62,\"Error - counterparty with self\",\"\"),IF(N(ISNA(MATCH(B62,'Standing Data'!$E$49:$E$148,0)))<>0,\"\",\"Error - counterparty with self\")),\"\")","v":""},{"$f":"IF(C62<>\"\",VLOOKUP(C62,'CP IDs'!A$2:B$5122,2,FALSE),\"\")","v":""},null,{"$f":"IFERROR(VLOOKUP(C62,'CP IDs'!$A$2:$D$4422,4,FALSE),\"\")","v":""},"",null,null,null,null,null,null,null,null,null,null,null,null,null,null,null,null,null,null,null,null,null,null,null,null,null,null,null,null,null,null,null,null,null,null,null,null,null,null,null,null,null,null,null,null,-500000,500000,null,1,1,31,null,0,0,0,null,{"$f":"AND(B62=$C$9,'Standing Data'!$D$9<>\"Multi-academy Trust\")","v":{"$error":"#N/A"}}]
[{"$f":"IF(B63<>\"\",IF('Standing Data'!$D$9<>\"Multi-academy Trust\",IF('Standing Data'!$D$15=B63,\"Error - counterparty with self\",\"\"),IF(N(ISNA(MATCH(B63,'Standing Data'!$E$49:$E$148,0)))<>0,\"\",\"Error - counterparty with self\")),\"\")","v":""},{"$f":"IF(C63<>\"\",VLOOKUP(C63,'CP IDs'!A$2:B$5122,2,FALSE),\"\")","v":""},null,{"$f":"IFERROR(VLOOKUP(C63,'CP IDs'!$A$2:$D$4422,4,FALSE),\"\")","v":""},"",null,null,null,null,null,null,null,null,null,null,null,null,null,null,null,null,null,null,null,null,null,null,null,null,null,null,null,null,null,null,null,null,null,null,null,null,null,null,null,null,null,null,null,null,-500000,500000,null,1,1,31,null,0,0,0,null,{"$f":"AND(B63=$C$9,'Standing Data'!$D$9<>\"Multi-academy Trust\")","v":{"$error":"#N/A"}}]
[{"$f":"IF(B64<>\"\",IF('Standing Data'!$D$9<>\"Multi-academy Trust\",IF('Standing Data'!$D$15=B64,\"Error - counterparty with self\",\"\"),IF(N(ISNA(MATCH(B64,'Standing Data'!$E$49:$E$148,0)))<>0,\"\",\"Error - counterparty with self\")),\"\")","v":""},{"$f":"IF(C64<>\"\",VLOOKUP(C64,'CP IDs'!A$2:B$5122,2,FALSE),\"\")","v":""},null,{"$f":"IFERROR(VLOOKUP(C64,'CP IDs'!$A$2:$D$4422,4,FALSE),\"\")","v":""},"",null,null,null,null,null,null,null,null,null,null,null,null,null,null,null,null,null,null,null,null,null,null,null,null,null,null,null,null,null,null,null,null,null,null,null,null,null,null,null,null,null,null,null,null,-500000,500000,null,1,1,31,null,0,0,0,null,{"$f":"AND(B64=$C$9,'Standing Data'!$D$9<>\"Multi-academy Trust\")","v":{"$error":"#N/A"}}]
[{"$f":"IF(B65<>\"\",IF('Standing Data'!$D$9<>\"Multi-academy Trust\",IF('Standing Data'!$D$15=B65,\"Error - counterparty with self\",\"\"),IF(N(ISNA(MATCH(B65,'Standing Data'!$E$49:$E$148,0)))<>0,\"\",\"Error - counterparty with self\")),\"\")","v":""},{"$f":"IF(C65<>\"\",VLOOKUP(C65,'CP IDs'!A$2:B$5122,2,FALSE),\"\")","v":""},null,{"$f":"IFERROR(VLOOKUP(C65,'CP IDs'!$A$2:$D$4422,4,FALSE),\"\")","v":""},"",null,null,null,null,null,null,null,null,null,null,null,null,null,null,null,null,null,null,null,null,null,null,null,null,null,null,null,null,null,null,null,null,null,null,null,null,null,null,null,null,null,null,null,null,-500000,500000,null,1,1,31,null,0,0,0,null,{"$f":"AND(B65=$C$9,'Standing Data'!$D$9<>\"Multi-academy Trust\")","v":{"$error":"#N/A"}}]
[{"$f":"IF(B66<>\"\",IF('Standing Data'!$D$9<>\"Multi-academy Trust\",IF('Standing Data'!$D$15=B66,\"Error - counterparty with self\",\"\"),IF(N(ISNA(MATCH(B66,'Standing Data'!$E$49:$E$148,0)))<>0,\"\",\"Error - counterparty with self\")),\"\")","v":""},{"$f":"IF(C66<>\"\",VLOOKUP(C66,'CP IDs'!A$2:B$5122,2,FALSE),\"\")","v":""},null,{"$f":"IFERROR(VLOOKUP(C66,'CP IDs'!$A$2:$D$4422,4,FALSE),\"\")","v":""},"",null,null,null,null,null,null,null,null,null,null,null,null,null,null,null,null,null,null,null,null,null,null,null,null,null,null,null,null,null,null,null,null,null,null,null,null,null,null,null,null,null,null,null,null,-500000,500000,null,1,1,31,null,0,0,0,null,{"$f":"AND(B66=$C$9,'Standing Data'!$D$9<>\"Multi-academy Trust\")","v":{"$error":"#N/A"}}]
[{"$f":"IF(B67<>\"\",IF('Standing Data'!$D$9<>\"Multi-academy Trust\",IF('Standing Data'!$D$15=B67,\"Error - counterparty with self\",\"\"),IF(N(ISNA(MATCH(B67,'Standing Data'!$E$49:$E$148,0)))<>0,\"\",\"Error - counterparty with self\")),\"\")","v":""},{"$f":"IF(C67<>\"\",VLOOKUP(C67,'CP IDs'!A$2:B$5122,2,FALSE),\"\")","v":""},null,{"$f":"IFERROR(VLOOKUP(C67,'CP IDs'!$A$2:$D$4422,4,FALSE),\"\")","v":""},"",null,null,null,null,null,null,null,null,null,null,null,null,null,null,null,null,null,null,null,null,null,null,null,null,null,null,null,null,null,null,null,null,null,null,null,null,null,null,null,null,null,null,null,null,-500000,500000,null,1,1,31,null,0,0,0,null,{"$f":"AND(B67=$C$9,'Standing Data'!$D$9<>\"Multi-academy Trust\")","v":{"$error":"#N/A"}}]
[{"$f":"IF(B68<>\"\",IF('Standing Data'!$D$9<>\"Multi-academy Trust\",IF('Standing Data'!$D$15=B68,\"Error - counterparty with self\",\"\"),IF(N(ISNA(MATCH(B68,'Standing Data'!$E$49:$E$148,0)))<>0,\"\",\"Error - counterparty with self\")),\"\")","v":""},{"$f":"IF(C68<>\"\",VLOOKUP(C68,'CP IDs'!A$2:B$5122,2,FALSE),\"\")","v":""},null,{"$f":"IFERROR(VLOOKUP(C68,'CP IDs'!$A$2:$D$4422,4,FALSE),\"\")","v":""},"",null,null,null,null,null,null,null,null,null,null,null,null,null,null,null,null,null,null,null,null,null,null,null,null,null,null,null,null,null,null,null,null,null,null,null,null,null,null,null,null,null,null,null,null,-500000,500000,null,1,1,31,null,0,0,0,null,{"$f":"AND(B68=$C$9,'Standing Data'!$D$9<>\"Multi-academy Trust\")","v":{"$error":"#N/A"}}]
[{"$f":"IF(B69<>\"\",IF('Standing Data'!$D$9<>\"Multi-academy Trust\",IF('Standing Data'!$D$15=B69,\"Error - counterparty with self\",\"\"),IF(N(ISNA(MATCH(B69,'Standing Data'!$E$49:$E$148,0)))<>0,\"\",\"Error - counterparty with self\")),\"\")","v":""},{"$f":"IF(C69<>\"\",VLOOKUP(C69,'CP IDs'!A$2:B$5122,2,FALSE),\"\")","v":""},null,{"$f":"IFERROR(VLOOKUP(C69,'CP IDs'!$A$2:$D$4422,4,FALSE),\"\")","v":""},"",null,null,null,null,null,null,null,null,null,null,null,null,null,null,null,null,null,null,null,null,null,null,null,null,null,null,null,null,null,null,null,null,null,null,null,null,null,null,null,null,null,null,null,null,-500000,500000,null,1,1,31,null,0,0,0,null,{"$f":"AND(B69=$C$9,'Standing Data'!$D$9<>\"Multi-academy Trust\")","v":{"$error":"#N/A"}}]
[{"$f":"IF(B70<>\"\",IF('Standing Data'!$D$9<>\"Multi-academy Trust\",IF('Standing Data'!$D$15=B70,\"Error - counterparty with self\",\"\"),IF(N(ISNA(MATCH(B70,'Standing Data'!$E$49:$E$148,0)))<>0,\"\",\"Error - counterparty with self\")),\"\")","v":""},{"$f":"IF(C70<>\"\",VLOOKUP(C70,'CP IDs'!A$2:B$5122,2,FALSE),\"\")","v":""},null,{"$f":"IFERROR(VLOOKUP(C70,'CP IDs'!$A$2:$D$4422,4,FALSE),\"\")","v":""},"",null,null,null,null,null,null,null,null,null,null,null,null,null,null,null,null,null,null,null,null,null,null,null,null,null,null,null,null,null,null,null,null,null,null,null,null,null,null,null,null,null,null,null,null,-500000,500000,null,1,1,31,null,0,0,0,null,{"$f":"AND(B70=$C$9,'Standing Data'!$D$9<>\"Multi-academy Trust\")","v":{"$error":"#N/A"}}]
[{"$f":"IF(B71<>\"\",IF('Standing Data'!$D$9<>\"Multi-academy Trust\",IF('Standing Data'!$D$15=B71,\"Error - counterparty with self\",\"\"),IF(N(ISNA(MATCH(B71,'Standing Data'!$E$49:$E$148,0)))<>0,\"\",\"Error - counterparty with self\")),\"\")","v":""},{"$f":"IF(C71<>\"\",VLOOKUP(C71,'CP IDs'!A$2:B$5122,2,FALSE),\"\")","v":""},null,{"$f":"IFERROR(VLOOKUP(C71,'CP IDs'!$A$2:$D$4422,4,FALSE),\"\")","v":""},"",null,null,null,null,null,null,null,null,null,null,null,null,null,null,null,null,null,null,null,null,null,null,null,null,null,null,null,null,null,null,null,null,null,null,null,null,null,null,null,null,null,null,null,null,-500000,500000,null,1,1,31,null,0,0,0,null,{"$f":"AND(B71=$C$9,'Standing Data'!$D$9<>\"Multi-academy Trust\")","v":{"$error":"#N/A"}}]
[{"$f":"IF(B72<>\"\",IF('Standing Data'!$D$9<>\"Multi-academy Trust\",IF('Standing Data'!$D$15=B72,\"Error - counterparty with self\",\"\"),IF(N(ISNA(MATCH(B72,'Standing Data'!$E$49:$E$148,0)))<>0,\"\",\"Error - counterparty with self\")),\"\")","v":""},{"$f":"IF(C72<>\"\",VLOOKUP(C72,'CP IDs'!A$2:B$5122,2,FALSE),\"\")","v":""},null,{"$f":"IFERROR(VLOOKUP(C72,'CP IDs'!$A$2:$D$4422,4,FALSE),\"\")","v":""},"",null,null,null,null,null,null,null,null,null,null,null,null,null,null,null,null,null,null,null,null,null,null,null,null,null,null,null,null,null,null,null,null,null,null,null,null,null,null,null,null,null,null,null,null,-500000,500000,null,1,1,31,null,0,0,0,null,{"$f":"AND(B72=$C$9,'Standing Data'!$D$9<>\"Multi-academy Trust\")","v":{"$error":"#N/A"}}]
[{"$f":"IF(B73<>\"\",IF('Standing Data'!$D$9<>\"Multi-academy Trust\",IF('Standing Data'!$D$15=B73,\"Error - counterparty with self\",\"\"),IF(N(ISNA(MATCH(B73,'Standing Data'!$E$49:$E$148,0)))<>0,\"\",\"Error - counterparty with self\")),\"\")","v":""},{"$f":"IF(C73<>\"\",VLOOKUP(C73,'CP IDs'!A$2:B$5122,2,FALSE),\"\")","v":""},null,{"$f":"IFERROR(VLOOKUP(C73,'CP IDs'!$A$2:$D$4422,4,FALSE),\"\")","v":""},"",null,null,null,null,null,null,null,null,null,null,null,null,null,null,null,null,null,null,null,null,null,null,null,null,null,null,null,null,null,null,null,null,null,null,null,null,null,null,null,null,null,null,null,null,-500000,500000,null,1,1,31,null,0,0,0,null,{"$f":"AND(B73=$C$9,'Standing Data'!$D$9<>\"Multi-academy Trust\")","v":{"$error":"#N/A"}}]
[{"$f":"IF(B74<>\"\",IF('Standing Data'!$D$9<>\"Multi-academy Trust\",IF('Standing Data'!$D$15=B74,\"Error - counterparty with self\",\"\"),IF(N(ISNA(MATCH(B74,'Standing Data'!$E$49:$E$148,0)))<>0,\"\",\"Error - counterparty with self\")),\"\")","v":""},{"$f":"IF(C74<>\"\",VLOOKUP(C74,'CP IDs'!A$2:B$5122,2,FALSE),\"\")","v":""},null,{"$f":"IFERROR(VLOOKUP(C74,'CP IDs'!$A$2:$D$4422,4,FALSE),\"\")","v":""},"",null,null,null,null,null,null,null,null,null,null,null,null,null,null,null,null,null,null,null,null,null,null,null,null,null,null,null,null,null,null,null,null,null,null,null,null,null,null,null,null,null,null,null,null,-500000,500000,null,1,1,31,null,0,0,0,null,{"$f":"AND(B74=$C$9,'Standing Data'!$D$9<>\"Multi-academy Trust\")","v":{"$error":"#N/A"}}]
[{"$f":"IF(B75<>\"\",IF('Standing Data'!$D$9<>\"Multi-academy Trust\",IF('Standing Data'!$D$15=B75,\"Error - counterparty with self\",\"\"),IF(N(ISNA(MATCH(B75,'Standing Data'!$E$49:$E$148,0)))<>0,\"\",\"Error - counterparty with self\")),\"\")","v":""},{"$f":"IF(C75<>\"\",VLOOKUP(C75,'CP IDs'!A$2:B$5122,2,FALSE),\"\")","v":""},null,{"$f":"IFERROR(VLOOKUP(C75,'CP IDs'!$A$2:$D$4422,4,FALSE),\"\")","v":""},"",null,null,null,null,null,null,null,null,null,null,null,null,null,null,null,null,null,null,null,null,null,null,null,null,null,null,null,null,null,null,null,null,null,null,null,null,null,null,null,null,null,null,null,null,-500000,500000,null,1,1,31,null,0,0,0,null,{"$f":"AND(B75=$C$9,'Standing Data'!$D$9<>\"Multi-academy Trust\")","v":{"$error":"#N/A"}}]
[{"$f":"IF(B76<>\"\",IF('Standing Data'!$D$9<>\"Multi-academy Trust\",IF('Standing Data'!$D$15=B76,\"Error - counterparty with self\",\"\"),IF(N(ISNA(MATCH(B76,'Standing Data'!$E$49:$E$148,0)))<>0,\"\",\"Error - counterparty with self\")),\"\")","v":""},{"$f":"IF(C76<>\"\",VLOOKUP(C76,'CP IDs'!A$2:B$5122,2,FALSE),\"\")","v":""},null,{"$f":"IFERROR(VLOOKUP(C76,'CP IDs'!$A$2:$D$4422,4,FALSE),\"\")","v":""},"",null,null,null,null,null,null,null,null,null,null,null,null,null,null,null,null,null,null,null,null,null,null,null,null,null,null,null,null,null,null,null,null,null,null,null,null,null,null,null,null,null,null,null,null,-500000,500000,null,1,1,31,null,0,0,0,null,{"$f":"AND(B76=$C$9,'Standing Data'!$D$9<>\"Multi-academy Trust\")","v":{"$error":"#N/A"}}]
[{"$f":"IF(B77<>\"\",IF('Standing Data'!$D$9<>\"Multi-academy Trust\",IF('Standing Data'!$D$15=B77,\"Error - counterparty with self\",\"\"),IF(N(ISNA(MATCH(B77,'Standing Data'!$E$49:$E$148,0)))<>0,\"\",\"Error - counterparty with self\")),\"\")","v":""},{"$f":"IF(C77<>\"\",VLOOKUP(C77,'CP IDs'!A$2:B$5122,2,FALSE),\"\")","v":""},null,{"$f":"IFERROR(VLOOKUP(C77,'CP IDs'!$A$2:$D$4422,4,FALSE),\"\")","v":""},"",null,null,null,null,null,null,null,null,null,null,null,null,null,null,null,null,null,null,null,null,null,null,null,null,null,null,null,null,null,null,null,null,null,null,null,null,null,null,null,null,null,null,null,null,-500000,500000,null,1,1,31,null,0,0,0,null,{"$f":"AND(B77=$C$9,'Standing Data'!$D$9<>\"Multi-academy Trust\")","v":{"$error":"#N/A"}}]
[{"$f":"IF(B78<>\"\",IF('Standing Data'!$D$9<>\"Multi-academy Trust\",IF('Standing Data'!$D$15=B78,\"Error - counterparty with self\",\"\"),IF(N(ISNA(MATCH(B78,'Standing Data'!$E$49:$E$148,0)))<>0,\"\",\"Error - counterparty with self\")),\"\")","v":""},{"$f":"IF(C78<>\"\",VLOOKUP(C78,'CP IDs'!A$2:B$5122,2,FALSE),\"\")","v":""},null,{"$f":"IFERROR(VLOOKUP(C78,'CP IDs'!$A$2:$D$4422,4,FALSE),\"\")","v":""},"",null,null,null,null,null,null,null,null,null,null,null,null,null,null,null,null,null,null,null,null,null,null,null,null,null,null,null,null,null,null,null,null,null,null,null,null,null,null,null,null,null,null,null,null,-500000,500000,null,1,1,31,null,0,0,0,null,{"$f":"AND(B78=$C$9,'Standing Data'!$D$9<>\"Multi-academy Trust\")","v":{"$error":"#N/A"}}]
[{"$f":"IF(B79<>\"\",IF('Standing Data'!$D$9<>\"Multi-academy Trust\",IF('Standing Data'!$D$15=B79,\"Error - counterparty with self\",\"\"),IF(N(ISNA(MATCH(B79,'Standing Data'!$E$49:$E$148,0)))<>0,\"\",\"Error - counterparty with self\")),\"\")","v":""},{"$f":"IF(C79<>\"\",VLOOKUP(C79,'CP IDs'!A$2:B$5122,2,FALSE),\"\")","v":""},null,{"$f":"IFERROR(VLOOKUP(C79,'CP IDs'!$A$2:$D$4422,4,FALSE),\"\")","v":""},"",null,null,null,null,null,null,null,null,null,null,null,null,null,null,null,null,null,null,null,null,null,null,null,null,null,null,null,null,null,null,null,null,null,null,null,null,null,null,null,null,null,null,null,null,-500000,500000,null,1,1,31,null,0,0,0,null,{"$f":"AND(B79=$C$9,'Standing Data'!$D$9<>\"Multi-academy Trust\")","v":{"$error":"#N/A"}}]
[{"$f":"IF(B80<>\"\",IF('Standing Data'!$D$9<>\"Multi-academy Trust\",IF('Standing Data'!$D$15=B80,\"Error - counterparty with self\",\"\"),IF(N(ISNA(MATCH(B80,'Standing Data'!$E$49:$E$148,0)))<>0,\"\",\"Error - counterparty with self\")),\"\")","v":""},{"$f":"IF(C80<>\"\",VLOOKUP(C80,'CP IDs'!A$2:B$5122,2,FALSE),\"\")","v":""},null,{"$f":"IFERROR(VLOOKUP(C80,'CP IDs'!$A$2:$D$4422,4,FALSE),\"\")","v":""},"",null,null,null,null,null,null,null,null,null,null,null,null,null,null,null,null,null,null,null,null,null,null,null,null,null,null,null,null,null,null,null,null,null,null,null,null,null,null,null,null,null,null,null,null,-500000,500000,null,1,1,31,null,0,0,0,null,{"$f":"AND(B80=$C$9,'Standing Data'!$D$9<>\"Multi-academy Trust\")","v":{"$error":"#N/A"}}]
[{"$f":"IF(B81<>\"\",IF('Standing Data'!$D$9<>\"Multi-academy Trust\",IF('Standing Data'!$D$15=B81,\"Error - counterparty with self\",\"\"),IF(N(ISNA(MATCH(B81,'Standing Data'!$E$49:$E$148,0)))<>0,\"\",\"Error - counterparty with self\")),\"\")","v":""},{"$f":"IF(C81<>\"\",VLOOKUP(C81,'CP IDs'!A$2:B$5122,2,FALSE),\"\")","v":""},null,{"$f":"IFERROR(VLOOKUP(C81,'CP IDs'!$A$2:$D$4422,4,FALSE),\"\")","v":""},"",null,null,null,null,null,null,null,null,null,null,null,null,null,null,null,null,null,null,null,null,null,null,null,null,null,null,null,null,null,null,null,null,null,null,null,null,null,null,null,null,null,null,null,null,-500000,500000,null,1,1,31,null,0,0,0,null,{"$f":"AND(B81=$C$9,'Standing Data'!$D$9<>\"Multi-academy Trust\")","v":{"$error":"#N/A"}}]
[{"$f":"IF(B82<>\"\",IF('Standing Data'!$D$9<>\"Multi-academy Trust\",IF('Standing Data'!$D$15=B82,\"Error - counterparty with self\",\"\"),IF(N(ISNA(MATCH(B82,'Standing Data'!$E$49:$E$148,0)))<>0,\"\",\"Error - counterparty with self\")),\"\")","v":""},{"$f":"IF(C82<>\"\",VLOOKUP(C82,'CP IDs'!A$2:B$5122,2,FALSE),\"\")","v":""},null,{"$f":"IFERROR(VLOOKUP(C82,'CP IDs'!$A$2:$D$4422,4,FALSE),\"\")","v":""},"",null,null,null,null,null,null,null,null,null,null,null,null,null,null,null,null,null,null,null,null,null,null,null,null,null,null,null,null,null,null,null,null,null,null,null,null,null,null,null,null,null,null,null,null,-500000,500000,null,1,1,31,null,0,0,0,null,{"$f":"AND(B82=$C$9,'Standing Data'!$D$9<>\"Multi-academy Trust\")","v":{"$error":"#N/A"}}]
[{"$f":"IF(B83<>\"\",IF('Standing Data'!$D$9<>\"Multi-academy Trust\",IF('Standing Data'!$D$15=B83,\"Error - counterparty with self\",\"\"),IF(N(ISNA(MATCH(B83,'Standing Data'!$E$49:$E$148,0)))<>0,\"\",\"Error - counterparty with self\")),\"\")","v":""},{"$f":"IF(C83<>\"\",VLOOKUP(C83,'CP IDs'!A$2:B$5122,2,FALSE),\"\")","v":""},null,{"$f":"IFERROR(VLOOKUP(C83,'CP IDs'!$A$2:$D$4422,4,FALSE),\"\")","v":""},"",null,null,null,null,null,null,null,null,null,null,null,null,null,null,null,null,null,null,null,null,null,null,null,null,null,null,null,null,null,null,null,null,null,null,null,null,null,null,null,null,null,null,null,null,-500000,500000,null,1,1,31,null,0,0,0,null,{"$f":"AND(B83=$C$9,'Standing Data'!$D$9<>\"Multi-academy Trust\")","v":{"$error":"#N/A"}}]
[{"$f":"IF(B84<>\"\",IF('Standing Data'!$D$9<>\"Multi-academy Trust\",IF('Standing Data'!$D$15=B84,\"Error - counterparty with self\",\"\"),IF(N(ISNA(MATCH(B84,'Standing Data'!$E$49:$E$148,0)))<>0,\"\",\"Error - counterparty with self\")),\"\")","v":""},{"$f":"IF(C84<>\"\",VLOOKUP(C84,'CP IDs'!A$2:B$5122,2,FALSE),\"\")","v":""},null,{"$f":"IFERROR(VLOOKUP(C84,'CP IDs'!$A$2:$D$4422,4,FALSE),\"\")","v":""},"",null,null,null,null,null,null,null,null,null,null,null,null,null,null,null,null,null,null,null,null,null,null,null,null,null,null,null,null,null,null,null,null,null,null,null,null,null,null,null,null,null,null,null,null,-500000,500000,null,1,1,31,null,0,0,0,null,{"$f":"AND(B84=$C$9,'Standing Data'!$D$9<>\"Multi-academy Trust\")","v":{"$error":"#N/A"}}]
[{"$f":"IF(B85<>\"\",IF('Standing Data'!$D$9<>\"Multi-academy Trust\",IF('Standing Data'!$D$15=B85,\"Error - counterparty with self\",\"\"),IF(N(ISNA(MATCH(B85,'Standing Data'!$E$49:$E$148,0)))<>0,\"\",\"Error - counterparty with self\")),\"\")","v":""},{"$f":"IF(C85<>\"\",VLOOKUP(C85,'CP IDs'!A$2:B$5122,2,FALSE),\"\")","v":""},null,{"$f":"IFERROR(VLOOKUP(C85,'CP IDs'!$A$2:$D$4422,4,FALSE),\"\")","v":""},"",null,null,null,null,null,null,null,null,null,null,null,null,null,null,null,null,null,null,null,null,null,null,null,null,null,null,null,null,null,null,null,null,null,null,null,null,null,null,null,null,null,null,null,null,-500000,500000,null,1,1,31,null,0,0,{"$f":"COUNT(F85:AT85)","v":0},null,{"$f":"AND(B85=$C$9,'Standing Data'!$D$9<>\"Multi-academy Trust\")","v":{"$error":"#N/A"}}]
[{"$f":"IF(B86<>\"\",IF('Standing Data'!$D$9<>\"Multi-academy Trust\",IF('Standing Data'!$D$15=B86,\"Error - counterparty with self\",\"\"),IF(N(ISNA(MATCH(B86,'Standing Data'!$E$49:$E$148,0)))<>0,\"\",\"Error - counterparty with self\")),\"\")","v":""},{"$f":"IF(C86<>\"\",VLOOKUP(C86,'CP IDs'!A$2:B$5122,2,FALSE),\"\")","v":""},null,{"$f":"IFERROR(VLOOKUP(C86,'CP IDs'!$A$2:$D$4422,4,FALSE),\"\")","v":""},"",null,null,null,null,null,null,null,null,null,null,null,null,null,null,null,null,null,null,null,null,null,null,null,null,null,null,null,null,null,null,null,null,null,null,null,null,null,null,null,null,null,null,null,null,-500000,500000,null,1,1,31,null,0,0,0,null,{"$f":"AND(B86=$C$9,'Standing Data'!$D$9<>\"Multi-academy Trust\")","v":{"$error":"#N/A"}}]
[{"$f":"IF(B87<>\"\",IF('Standing Data'!$D$9<>\"Multi-academy Trust\",IF('Standing Data'!$D$15=B87,\"Error - counterparty with self\",\"\"),IF(N(ISNA(MATCH(B87,'Standing Data'!$E$49:$E$148,0)))<>0,\"\",\"Error - counterparty with self\")),\"\")","v":""},{"$f":"IF(C87<>\"\",VLOOKUP(C87,'CP IDs'!A$2:B$5122,2,FALSE),\"\")","v":""},null,{"$f":"IFERROR(VLOOKUP(C87,'CP IDs'!$A$2:$D$4422,4,FALSE),\"\")","v":""},"",null,null,null,null,null,null,null,null,null,null,null,null,null,null,null,null,null,null,null,null,null,null,null,null,null,null,null,null,null,null,null,null,null,null,null,null,null,null,null,null,null,null,null,null,{"$f":"AX86","v":-500000},{"$f":"AY86","v":500000},null,1,1,31,null,0,0,0,null,{"$f":"AND(B87=$C$9,'Standing Data'!$D$9<>\"Multi-academy Trust\")","v":{"$error":"#N/A"}}]
[{"$f":"IF(B88<>\"\",IF('Standing Data'!$D$9<>\"Multi-academy Trust\",IF('Standing Data'!$D$15=B88,\"Error - counterparty with self\",\"\"),IF(N(ISNA(MATCH(B88,'Standing Data'!$E$49:$E$148,0)))<>0,\"\",\"Error - counterparty with self\")),\"\")","v":""},{"$f":"IF(C88<>\"\",VLOOKUP(C88,'CP IDs'!A$2:B$5122,2,FALSE),\"\")","v":""},null,{"$f":"IFERROR(VLOOKUP(C88,'CP IDs'!$A$2:$D$4422,4,FALSE),\"\")","v":""},"",null,null,null,null,null,null,null,null,null,null,null,null,null,null,null,null,null,null,null,null,null,null,null,null,null,null,null,null,null,null,null,null,null,null,null,null,null,null,null,null,null,null,null,null,-500000,500000,null,1,1,31,null,0,0,0,null,{"$f":"AND(B88=$C$9,'Standing Data'!$D$9<>\"Multi-academy Trust\")","v":{"$error":"#N/A"}}]
[{"$f":"IF(B89<>\"\",IF('Standing Data'!$D$9<>\"Multi-academy Trust\",IF('Standing Data'!$D$15=B89,\"Error - counterparty with self\",\"\"),IF(N(ISNA(MATCH(B89,'Standing Data'!$E$49:$E$148,0)))<>0,\"\",\"Error - counterparty with self\")),\"\")","v":""},{"$f":"IF(C89<>\"\",VLOOKUP(C89,'CP IDs'!A$2:B$5122,2,FALSE),\"\")","v":""},null,{"$f":"IFERROR(VLOOKUP(C89,'CP IDs'!$A$2:$D$4422,4,FALSE),\"\")","v":""},"",null,null,null,null,null,null,null,null,null,null,null,null,null,null,null,null,null,null,null,null,null,null,null,null,null,null,null,null,null,null,null,null,null,null,null,null,null,null,null,null,null,null,null,null,-500000,500000,null,1,1,31,null,0,0,0,null,{"$f":"AND(B89=$C$9,'Standing Data'!$D$9<>\"Multi-academy Trust\")","v":{"$error":"#N/A"}}]
[{"$f":"IF(B90<>\"\",IF('Standing Data'!$D$9<>\"Multi-academy Trust\",IF('Standing Data'!$D$15=B90,\"Error - counterparty with self\",\"\"),IF(N(ISNA(MATCH(B90,'Standing Data'!$E$49:$E$148,0)))<>0,\"\",\"Error - counterparty with self\")),\"\")","v":""},{"$f":"IF(C90<>\"\",VLOOKUP(C90,'CP IDs'!A$2:B$5122,2,FALSE),\"\")","v":""},null,{"$f":"IFERROR(VLOOKUP(C90,'CP IDs'!$A$2:$D$4422,4,FALSE),\"\")","v":""},"",null,null,null,null,null,null,null,null,null,null,null,null,null,null,null,null,null,null,null,null,null,null,null,null,null,null,null,null,null,null,null,null,null,null,null,null,null,null,null,null,null,null,null,null,-500000,500000,null,1,1,31,null,0,0,0,null,{"$f":"AND(B90=$C$9,'Standing Data'!$D$9<>\"Multi-academy Trust\")","v":{"$error":"#N/A"}}]
[{"$f":"IF(B91<>\"\",IF('Standing Data'!$D$9<>\"Multi-academy Trust\",IF('Standing Data'!$D$15=B91,\"Error - counterparty with self\",\"\"),IF(N(ISNA(MATCH(B91,'Standing Data'!$E$49:$E$148,0)))<>0,\"\",\"Error - counterparty with self\")),\"\")","v":""},{"$f":"IF(C91<>\"\",VLOOKUP(C91,'CP IDs'!A$2:B$5122,2,FALSE),\"\")","v":""},null,{"$f":"IFERROR(VLOOKUP(C91,'CP IDs'!$A$2:$D$4422,4,FALSE),\"\")","v":""},"",null,null,null,null,null,null,null,null,null,null,null,null,null,null,null,null,null,null,null,null,null,null,null,null,null,null,null,null,null,null,null,null,null,null,null,null,null,null,null,null,null,null,null,null,-500000,500000,null,1,1,31,null,0,0,0,null,{"$f":"AND(B91=$C$9,'Standing Data'!$D$9<>\"Multi-academy Trust\")","v":{"$error":"#N/A"}}]
[{"$f":"IF(B92<>\"\",IF('Standing Data'!$D$9<>\"Multi-academy Trust\",IF('Standing Data'!$D$15=B92,\"Error - counterparty with self\",\"\"),IF(N(ISNA(MATCH(B92,'Standing Data'!$E$49:$E$148,0)))<>0,\"\",\"Error - counterparty with self\")),\"\")","v":""},{"$f":"IF(C92<>\"\",VLOOKUP(C92,'CP IDs'!A$2:B$5122,2,FALSE),\"\")","v":""},null,{"$f":"IFERROR(VLOOKUP(C92,'CP IDs'!$A$2:$D$4422,4,FALSE),\"\")","v":""},"",null,null,null,null,null,null,null,null,null,null,null,null,null,null,null,null,null,null,null,null,null,null,null,null,null,null,null,null,null,null,null,null,null,null,null,null,null,null,null,null,null,null,null,null,-500000,500000,null,1,1,31,null,0,0,0,null,{"$f":"AND(B92=$C$9,'Standing Data'!$D$9<>\"Multi-academy Trust\")","v":{"$error":"#N/A"}}]
[{"$f":"IF(B93<>\"\",IF('Standing Data'!$D$9<>\"Multi-academy Trust\",IF('Standing Data'!$D$15=B93,\"Error - counterparty with self\",\"\"),IF(N(ISNA(MATCH(B93,'Standing Data'!$E$49:$E$148,0)))<>0,\"\",\"Error - counterparty with self\")),\"\")","v":""},{"$f":"IF(C93<>\"\",VLOOKUP(C93,'CP IDs'!A$2:B$5122,2,FALSE),\"\")","v":""},null,{"$f":"IFERROR(VLOOKUP(C93,'CP IDs'!$A$2:$D$4422,4,FALSE),\"\")","v":""},"",null,null,null,null,null,null,null,null,null,null,null,null,null,null,null,null,null,null,null,null,null,null,null,null,null,null,null,null,null,null,null,null,null,null,null,null,null,null,null,null,null,null,null,null,-500000,500000,null,1,1,31,null,0,0,0,null,{"$f":"AND(B93=$C$9,'Standing Data'!$D$9<>\"Multi-academy Trust\")","v":{"$error":"#N/A"}}]
[{"$f":"IF(B94<>\"\",IF('Standing Data'!$D$9<>\"Multi-academy Trust\",IF('Standing Data'!$D$15=B94,\"Error - counterparty with self\",\"\"),IF(N(ISNA(MATCH(B94,'Standing Data'!$E$49:$E$148,0)))<>0,\"\",\"Error - counterparty with self\")),\"\")","v":""},{"$f":"IF(C94<>\"\",VLOOKUP(C94,'CP IDs'!A$2:B$5122,2,FALSE),\"\")","v":""},null,{"$f":"IFERROR(VLOOKUP(C94,'CP IDs'!$A$2:$D$4422,4,FALSE),\"\")","v":""},"",null,null,null,null,null,null,null,null,null,null,null,null,null,null,null,null,null,null,null,null,null,null,null,null,null,null,null,null,null,null,null,null,null,null,null,null,null,null,null,null,null,null,null,null,-500000,500000,null,1,1,31,null,{"$f":"COUNTA(C94)","v":0},{"$f":"1-COUNTBLANK(B94)","v":0},0,null,{"$f":"AND(B94=$C$9,'Standing Data'!$D$9<>\"Multi-academy Trust\")","v":{"$error":"#N/A"}}]
[{"$f":"IF(B95<>\"\",IF('Standing Data'!$D$9<>\"Multi-academy Trust\",IF('Standing Data'!$D$15=B95,\"Error - counterparty with self\",\"\"),IF(N(ISNA(MATCH(B95,'Standing Data'!$E$49:$E$148,0)))<>0,\"\",\"Error - counterparty with self\")),\"\")","v":""},{"$f":"IF(C95<>\"\",VLOOKUP(C95,'CP IDs'!A$2:B$5122,2,FALSE),\"\")","v":""},null,{"$f":"IFERROR(VLOOKUP(C95,'CP IDs'!$A$2:$D$4422,4,FALSE),\"\")","v":""},{"$f":"IF(OR(AND(COUNT(F95:AT95)>0,C95=\"\"),AND(COUNT(F95:AT95)=0,C95<>\"\")),\"Error - on line\",\"\")","v":""},null,null,null,null,null,null,null,null,null,null,null,null,null,null,null,null,null,null,null,null,null,null,null,null,null,null,null,null,null,null,null,null,null,null,null,null,null,null,null,null,null,null,null,null,-500000,500000,null,1,1,31,null,0,0,0,null,{"$f":"AND(B95=$C$9,'Standing Data'!$D$9<>\"Multi-academy Trust\")","v":{"$error":"#N/A"}}]
[{"$f":"IF(B96<>\"\",IF('Standing Data'!$D$9<>\"Multi-academy Trust\",IF('Standing Data'!$D$15=B96,\"Error - counterparty with self\",\"\"),IF(N(ISNA(MATCH(B96,'Standing Data'!$E$49:$E$148,0)))<>0,\"\",\"Error - counterparty with self\")),\"\")","v":""},{"$f":"IF(C96<>\"\",VLOOKUP(C96,'CP IDs'!A$2:B$5122,2,FALSE),\"\")","v":""},null,{"$f":"IFERROR(VLOOKUP(C96,'CP IDs'!$A$2:$D$4422,4,FALSE),\"\")","v":""},"",null,null,null,null,null,null,null,null,null,null,null,null,null,null,null,null,null,null,null,null,null,null,null,null,null,null,null,null,null,null,null,null,null,null,null,null,null,null,null,null,null,null,null,null,-500000,500000,null,1,1,31,null,0,0,0,null,{"$f":"AND(B96=$C$9,'Standing Data'!$D$9<>\"Multi-academy Trust\")","v":{"$error":"#N/A"}}]
[{"$f":"IF(B97<>\"\",IF('Standing Data'!$D$9<>\"Multi-academy Trust\",IF('Standing Data'!$D$15=B97,\"Error - counterparty with self\",\"\"),IF(N(ISNA(MATCH(B97,'Standing Data'!$E$49:$E$148,0)))<>0,\"\",\"Error - counterparty with self\")),\"\")","v":""},{"$f":"IF(C97<>\"\",VLOOKUP(C97,'CP IDs'!A$2:B$5122,2,FALSE),\"\")","v":""},null,{"$f":"IFERROR(VLOOKUP(C97,'CP IDs'!$A$2:$D$4422,4,FALSE),\"\")","v":""},"",null,null,null,null,null,null,null,null,null,null,null,null,null,null,null,null,null,null,null,null,null,null,null,null,null,null,null,null,null,null,null,null,null,null,null,null,null,null,null,null,null,null,null,null,-500000,500000,null,1,1,31,null,0,0,0,null,{"$f":"AND(B97=$C$9,'Standing Data'!$D$9<>\"Multi-academy Trust\")","v":{"$error":"#N/A"}}]
[{"$f":"IF(B98<>\"\",IF('Standing Data'!$D$9<>\"Multi-academy Trust\",IF('Standing Data'!$D$15=B98,\"Error - counterparty with self\",\"\"),IF(N(ISNA(MATCH(B98,'Standing Data'!$E$49:$E$148,0)))<>0,\"\",\"Error - counterparty with self\")),\"\")","v":""},{"$f":"IF(C98<>\"\",VLOOKUP(C98,'CP IDs'!A$2:B$5122,2,FALSE),\"\")","v":""},null,{"$f":"IFERROR(VLOOKUP(C98,'CP IDs'!$A$2:$D$4422,4,FALSE),\"\")","v":""},"",null,null,null,null,null,null,null,null,null,null,null,null,null,null,null,null,null,null,null,null,null,null,null,null,null,null,null,null,null,null,null,null,null,null,null,null,null,null,null,null,null,null,null,null,-500000,500000,null,1,1,31,null,0,0,0,null,{"$f":"AND(B98=$C$9,'Standing Data'!$D$9<>\"Multi-academy Trust\")","v":{"$error":"#N/A"}}]
[{"$f":"IF(B99<>\"\",IF('Standing Data'!$D$9<>\"Multi-academy Trust\",IF('Standing Data'!$D$15=B99,\"Error - counterparty with self\",\"\"),IF(N(ISNA(MATCH(B99,'Standing Data'!$E$49:$E$148,0)))<>0,\"\",\"Error - counterparty with self\")),\"\")","v":""},{"$f":"IF(C99<>\"\",VLOOKUP(C99,'CP IDs'!A$2:B$5122,2,FALSE),\"\")","v":""},null,{"$f":"IFERROR(VLOOKUP(C99,'CP IDs'!$A$2:$D$4422,4,FALSE),\"\")","v":""},"",null,null,null,null,null,null,null,null,null,null,null,null,null,null,null,null,null,null,null,null,null,null,null,null,null,null,null,null,null,null,null,null,null,null,null,null,null,null,null,null,null,null,null,null,-500000,500000,null,1,1,31,null,0,0,0,null,{"$f":"AND(B99=$C$9,'Standing Data'!$D$9<>\"Multi-academy Trust\")","v":{"$error":"#N/A"}}]
[{"$f":"IF(B100<>\"\",IF('Standing Data'!$D$9<>\"Multi-academy Trust\",IF('Standing Data'!$D$15=B100,\"Error - counterparty with self\",\"\"),IF(N(ISNA(MATCH(B100,'Standing Data'!$E$49:$E$148,0)))<>0,\"\",\"Error - counterparty with self\")),\"\")","v":""},{"$f":"IF(C100<>\"\",VLOOKUP(C100,'CP IDs'!A$2:B$5122,2,FALSE),\"\")","v":""},null,{"$f":"IFERROR(VLOOKUP(C100,'CP IDs'!$A$2:$D$4422,4,FALSE),\"\")","v":""},"",null,null,null,null,null,null,null,null,null,null,null,null,null,null,null,null,null,null,null,null,null,null,null,null,null,null,null,null,null,null,null,null,null,null,null,null,null,null,null,null,null,null,null,null,-500000,500000,null,1,1,31,null,0,0,0,null,{"$f":"AND(B100=$C$9,'Standing Data'!$D$9<>\"Multi-academy Trust\")","v":{"$error":"#N/A"}}]
[{"$f":"IF(B101<>\"\",IF('Standing Data'!$D$9<>\"Multi-academy Trust\",IF('Standing Data'!$D$15=B101,\"Error - counterparty with self\",\"\"),IF(N(ISNA(MATCH(B101,'Standing Data'!$E$49:$E$148,0)))<>0,\"\",\"Error - counterparty with self\")),\"\")","v":""},{"$f":"IF(C101<>\"\",VLOOKUP(C101,'CP IDs'!A$2:B$5122,2,FALSE),\"\")","v":""},null,{"$f":"IFERROR(VLOOKUP(C101,'CP IDs'!$A$2:$D$4422,4,FALSE),\"\")","v":""},"",null,null,null,null,null,null,null,null,null,null,null,null,null,null,null,null,null,null,null,null,null,null,null,null,null,null,null,null,null,null,null,null,null,null,null,null,null,null,null,null,null,null,null,null,-500000,500000,null,1,1,31,null,0,0,0,null,{"$f":"AND(B101=$C$9,'Standing Data'!$D$9<>\"Multi-academy Trust\")","v":{"$error":"#N/A"}}]
[{"$f":"IF(B102<>\"\",IF('Standing Data'!$D$9<>\"Multi-academy Trust\",IF('Standing Data'!$D$15=B102,\"Error - counterparty with self\",\"\"),IF(N(ISNA(MATCH(B102,'Standing Data'!$E$49:$E$148,0)))<>0,\"\",\"Error - counterparty with self\")),\"\")","v":""},{"$f":"IF(C102<>\"\",VLOOKUP(C102,'CP IDs'!A$2:B$5122,2,FALSE),\"\")","v":""},null,{"$f":"IFERROR(VLOOKUP(C102,'CP IDs'!$A$2:$D$4422,4,FALSE),\"\")","v":""},"",null,null,null,null,null,null,null,null,null,null,null,null,null,null,null,null,null,null,null,null,null,null,null,null,null,null,null,null,null,null,null,null,null,null,null,null,null,null,null,null,null,null,null,null,-500000,500000,null,1,1,31,null,0,0,0,null,{"$f":"AND(B102=$C$9,'Standing Data'!$D$9<>\"Multi-academy Trust\")","v":{"$error":"#N/A"}}]
[{"$f":"IF(B103<>\"\",IF('Standing Data'!$D$9<>\"Multi-academy Trust\",IF('Standing Data'!$D$15=B103,\"Error - counterparty with self\",\"\"),IF(N(ISNA(MATCH(B103,'Standing Data'!$E$49:$E$148,0)))<>0,\"\",\"Error - counterparty with self\")),\"\")","v":""},{"$f":"IF(C103<>\"\",VLOOKUP(C103,'CP IDs'!A$2:B$5122,2,FALSE),\"\")","v":""},null,{"$f":"IFERROR(VLOOKUP(C103,'CP IDs'!$A$2:$D$4422,4,FALSE),\"\")","v":""},"",null,null,null,null,null,null,null,null,null,null,null,null,null,null,null,null,null,null,null,null,null,null,null,null,null,null,null,null,null,null,null,null,null,null,null,null,null,null,null,null,null,null,null,null,-500000,500000,null,1,1,31,null,0,0,0,null,{"$f":"AND(B103=$C$9,'Standing Data'!$D$9<>\"Multi-academy Trust\")","v":{"$error":"#N/A"}}]
[{"$f":"IF(B104<>\"\",IF('Standing Data'!$D$9<>\"Multi-academy Trust\",IF('Standing Data'!$D$15=B104,\"Error - counterparty with self\",\"\"),IF(N(ISNA(MATCH(B104,'Standing Data'!$E$49:$E$148,0)))<>0,\"\",\"Error - counterparty with self\")),\"\")","v":""},{"$f":"IF(C104<>\"\",VLOOKUP(C104,'CP IDs'!A$2:B$5122,2,FALSE),\"\")","v":""},null,{"$f":"IFERROR(VLOOKUP(C104,'CP IDs'!$A$2:$D$4422,4,FALSE),\"\")","v":""},"",null,null,null,null,null,null,null,null,null,null,null,null,null,null,null,null,null,null,null,null,null,null,null,null,null,null,null,null,null,null,null,null,null,null,null,null,null,null,null,null,null,null,null,null,-500000,500000,null,1,1,31,null,0,0,0,null,{"$f":"AND(B104=$C$9,'Standing Data'!$D$9<>\"Multi-academy Trust\")","v":{"$error":"#N/A"}}]
[{"$f":"IF(B105<>\"\",IF('Standing Data'!$D$9<>\"Multi-academy Trust\",IF('Standing Data'!$D$15=B105,\"Error - counterparty with self\",\"\"),IF(N(ISNA(MATCH(B105,'Standing Data'!$E$49:$E$148,0)))<>0,\"\",\"Error - counterparty with self\")),\"\")","v":""},{"$f":"IF(C105<>\"\",VLOOKUP(C105,'CP IDs'!A$2:B$5122,2,FALSE),\"\")","v":""},null,{"$f":"IFERROR(VLOOKUP(C105,'CP IDs'!$A$2:$D$4422,4,FALSE),\"\")","v":""},"",null,null,null,null,null,null,null,null,null,null,null,null,null,null,null,null,null,null,null,null,null,null,null,null,null,null,null,null,null,null,null,null,null,null,null,null,null,null,null,null,null,null,null,null,-500000,500000,null,1,1,31,null,0,0,0,null,{"$f":"AND(B105=$C$9,'Standing Data'!$D$9<>\"Multi-academy Trust\")","v":{"$error":"#N/A"}}]
[{"$f":"IF(B106<>\"\",IF('Standing Data'!$D$9<>\"Multi-academy Trust\",IF('Standing Data'!$D$15=B106,\"Error - counterparty with self\",\"\"),IF(N(ISNA(MATCH(B106,'Standing Data'!$E$49:$E$148,0)))<>0,\"\",\"Error - counterparty with self\")),\"\")","v":""},{"$f":"IF(C106<>\"\",VLOOKUP(C106,'CP IDs'!A$2:B$5122,2,FALSE),\"\")","v":""},null,{"$f":"IFERROR(VLOOKUP(C106,'CP IDs'!$A$2:$D$4422,4,FALSE),\"\")","v":""},"",null,null,null,null,null,null,null,null,null,null,null,null,null,null,null,null,null,null,null,null,null,null,null,null,null,null,null,null,null,null,null,null,null,null,null,null,null,null,null,null,null,null,null,null,-500000,500000,null,1,1,31,null,0,0,0,null,{"$f":"AND(B106=$C$9,'Standing Data'!$D$9<>\"Multi-academy Trust\")","v":{"$error":"#N/A"}}]
[{"$f":"IF(B107<>\"\",IF('Standing Data'!$D$9<>\"Multi-academy Trust\",IF('Standing Data'!$D$15=B107,\"Error - counterparty with self\",\"\"),IF(N(ISNA(MATCH(B107,'Standing Data'!$E$49:$E$148,0)))<>0,\"\",\"Error - counterparty with self\")),\"\")","v":""},{"$f":"IF(C107<>\"\",VLOOKUP(C107,'CP IDs'!A$2:B$5122,2,FALSE),\"\")","v":""},null,{"$f":"IFERROR(VLOOKUP(C107,'CP IDs'!$A$2:$D$4422,4,FALSE),\"\")","v":""},"",null,null,null,null,null,null,null,null,null,null,null,null,null,null,null,null,null,null,null,null,null,null,null,null,null,null,null,null,null,null,null,null,null,null,null,null,null,null,null,null,null,null,null,null,-500000,500000,null,1,1,31,null,0,0,0,null,{"$f":"AND(B107=$C$9,'Standing Data'!$D$9<>\"Multi-academy Trust\")","v":{"$error":"#N/A"}}]
[{"$f":"IF(B108<>\"\",IF('Standing Data'!$D$9<>\"Multi-academy Trust\",IF('Standing Data'!$D$15=B108,\"Error - counterparty with self\",\"\"),IF(N(ISNA(MATCH(B108,'Standing Data'!$E$49:$E$148,0)))<>0,\"\",\"Error - counterparty with self\")),\"\")","v":""},{"$f":"IF(C108<>\"\",VLOOKUP(C108,'CP IDs'!A$2:B$5122,2,FALSE),\"\")","v":""},null,{"$f":"IFERROR(VLOOKUP(C108,'CP IDs'!$A$2:$D$4422,4,FALSE),\"\")","v":""},"",null,null,null,null,null,null,null,null,null,null,null,null,null,null,null,null,null,null,null,null,null,null,null,null,null,null,null,null,null,null,null,null,null,null,null,null,null,null,null,null,null,null,null,null,-500000,500000,null,1,1,31,null,0,0,0,null,{"$f":"AND(B108=$C$9,'Standing Data'!$D$9<>\"Multi-academy Trust\")","v":{"$error":"#N/A"}}]
[{"$f":"IF(B109<>\"\",IF('Standing Data'!$D$9<>\"Multi-academy Trust\",IF('Standing Data'!$D$15=B109,\"Error - counterparty with self\",\"\"),IF(N(ISNA(MATCH(B109,'Standing Data'!$E$49:$E$148,0)))<>0,\"\",\"Error - counterparty with self\")),\"\")","v":""},{"$f":"IF(C109<>\"\",VLOOKUP(C109,'CP IDs'!A$2:B$5122,2,FALSE),\"\")","v":""},null,{"$f":"IFERROR(VLOOKUP(C109,'CP IDs'!$A$2:$D$4422,4,FALSE),\"\")","v":""},"",null,null,null,null,null,null,null,null,null,null,null,null,null,null,null,null,null,null,null,null,null,null,null,null,null,null,null,null,null,null,null,null,null,null,null,null,null,null,null,null,null,null,null,null,-500000,500000,null,1,1,31,null,0,0,0,null,{"$f":"AND(B109=$C$9,'Standing Data'!$D$9<>\"Multi-academy Trust\")","v":{"$error":"#N/A"}}]
[{"$f":"IF(B110<>\"\",IF('Standing Data'!$D$9<>\"Multi-academy Trust\",IF('Standing Data'!$D$15=B110,\"Error - counterparty with self\",\"\"),IF(N(ISNA(MATCH(B110,'Standing Data'!$E$49:$E$148,0)))<>0,\"\",\"Error - counterparty with self\")),\"\")","v":""},{"$f":"IF(C110<>\"\",VLOOKUP(C110,'CP IDs'!A$2:B$5122,2,FALSE),\"\")","v":""},null,{"$f":"IFERROR(VLOOKUP(C110,'CP IDs'!$A$2:$D$4422,4,FALSE),\"\")","v":""},"",null,null,null,null,null,null,null,null,null,null,null,null,null,null,null,null,null,null,null,null,null,null,null,null,null,null,null,null,null,null,null,null,null,null,null,null,null,null,null,null,null,null,null,null,-500000,500000,null,1,1,31,null,0,0,0,null,{"$f":"AND(B110=$C$9,'Standing Data'!$D$9<>\"Multi-academy Trust\")","v":{"$error":"#N/A"}}]
[{"$f":"IF(B111<>\"\",IF('Standing Data'!$D$9<>\"Multi-academy Trust\",IF('Standing Data'!$D$15=B111,\"Error - counterparty with self\",\"\"),IF(N(ISNA(MATCH(B111,'Standing Data'!$E$49:$E$148,0)))<>0,\"\",\"Error - counterparty with self\")),\"\")","v":""},{"$f":"IF(C111<>\"\",VLOOKUP(C111,'CP IDs'!A$2:B$5122,2,FALSE),\"\")","v":""},null,{"$f":"IFERROR(VLOOKUP(C111,'CP IDs'!$A$2:$D$4422,4,FALSE),\"\")","v":""},"",null,null,null,null,null,null,null,null,null,null,null,null,null,null,null,null,null,null,null,null,null,null,null,null,null,null,null,null,null,null,null,null,null,null,null,null,null,null,null,null,null,null,null,null,-500000,500000,null,1,1,31,null,0,0,0,null,{"$f":"AND(B111=$C$9,'Standing Data'!$D$9<>\"Multi-academy Trust\")","v":{"$error":"#N/A"}}]
[{"$f":"IF(B112<>\"\",IF('Standing Data'!$D$9<>\"Multi-academy Trust\",IF('Standing Data'!$D$15=B112,\"Error - counterparty with self\",\"\"),IF(N(ISNA(MATCH(B112,'Standing Data'!$E$49:$E$148,0)))<>0,\"\",\"Error - counterparty with self\")),\"\")","v":""},{"$f":"IF(C112<>\"\",VLOOKUP(C112,'CP IDs'!A$2:B$5122,2,FALSE),\"\")","v":""},null,{"$f":"IFERROR(VLOOKUP(C112,'CP IDs'!$A$2:$D$4422,4,FALSE),\"\")","v":""},"",null,null,null,null,null,null,null,null,null,null,null,null,null,null,null,null,null,null,null,null,null,null,null,null,null,null,null,null,null,null,null,null,null,null,null,null,null,null,null,null,null,null,null,null,-500000,500000,null,1,1,31,null,0,0,0,null,{"$f":"AND(B112=$C$9,'Standing Data'!$D$9<>\"Multi-academy Trust\")","v":{"$error":"#N/A"}}]
[{"$f":"IF(B113<>\"\",IF('Standing Data'!$D$9<>\"Multi-academy Trust\",IF('Standing Data'!$D$15=B113,\"Error - counterparty with self\",\"\"),IF(N(ISNA(MATCH(B113,'Standing Data'!$E$49:$E$148,0)))<>0,\"\",\"Error - counterparty with self\")),\"\")","v":""},{"$f":"IF(C113<>\"\",VLOOKUP(C113,'CP IDs'!A$2:B$5122,2,FALSE),\"\")","v":""},null,{"$f":"IFERROR(VLOOKUP(C113,'CP IDs'!$A$2:$D$4422,4,FALSE),\"\")","v":""},"",null,null,null,null,null,null,null,null,null,null,null,null,null,null,null,null,null,null,null,null,null,null,null,null,null,null,null,null,null,null,null,null,null,null,null,null,null,null,null,null,null,null,null,null,-500000,500000,null,1,1,31,null,0,0,0,null,{"$f":"AND(B113=$C$9,'Standing Data'!$D$9<>\"Multi-academy Trust\")","v":{"$error":"#N/A"}}]
[{"$f":"IF(B114<>\"\",IF('Standing Data'!$D$9<>\"Multi-academy Trust\",IF('Standing Data'!$D$15=B114,\"Error - counterparty with self\",\"\"),IF(N(ISNA(MATCH(B114,'Standing Data'!$E$49:$E$148,0)))<>0,\"\",\"Error - counterparty with self\")),\"\")","v":""},{"$f":"IF(C114<>\"\",VLOOKUP(C114,'CP IDs'!A$2:B$5122,2,FALSE),\"\")","v":""},null,{"$f":"IFERROR(VLOOKUP(C114,'CP IDs'!$A$2:$D$4422,4,FALSE),\"\")","v":""},"",null,null,null,null,null,null,null,null,null,null,null,null,null,null,null,null,null,null,null,null,null,null,null,null,null,null,null,null,null,null,null,null,null,null,null,null,null,null,null,null,null,null,null,null,-500000,500000,null,1,1,31,null,0,0,0,null,{"$f":"AND(B114=$C$9,'Standing Data'!$D$9<>\"Multi-academy Trust\")","v":{"$error":"#N/A"}}]
[{"$f":"IF(B115<>\"\",IF('Standing Data'!$D$9<>\"Multi-academy Trust\",IF('Standing Data'!$D$15=B115,\"Error - counterparty with self\",\"\"),IF(N(ISNA(MATCH(B115,'Standing Data'!$E$49:$E$148,0)))<>0,\"\",\"Error - counterparty with self\")),\"\")","v":""},{"$f":"IF(C115<>\"\",VLOOKUP(C115,'CP IDs'!A$2:B$5122,2,FALSE),\"\")","v":""},null,{"$f":"IFERROR(VLOOKUP(C115,'CP IDs'!$A$2:$D$4422,4,FALSE),\"\")","v":""},"",null,null,null,null,null,null,null,null,null,null,null,null,null,null,null,null,null,null,null,null,null,null,null,null,null,null,null,null,null,null,null,null,null,null,null,null,null,null,null,null,null,null,null,null,-500000,500000,null,1,1,31,null,0,0,0,null,{"$f":"AND(B115=$C$9,'Standing Data'!$D$9<>\"Multi-academy Trust\")","v":{"$error":"#N/A"}}]
[{"$f":"IF(B116<>\"\",IF('Standing Data'!$D$9<>\"Multi-academy Trust\",IF('Standing Data'!$D$15=B116,\"Error - counterparty with self\",\"\"),IF(N(ISNA(MATCH(B116,'Standing Data'!$E$49:$E$148,0)))<>0,\"\",\"Error - counterparty with self\")),\"\")","v":""},{"$f":"IF(C116<>\"\",VLOOKUP(C116,'CP IDs'!A$2:B$5122,2,FALSE),\"\")","v":""},null,{"$f":"IFERROR(VLOOKUP(C116,'CP IDs'!$A$2:$D$4422,4,FALSE),\"\")","v":""},"",null,null,null,null,null,null,null,null,null,null,null,null,null,null,null,null,null,null,null,null,null,null,null,null,null,null,null,null,null,null,null,null,null,null,null,null,null,null,null,null,null,null,null,null,-500000,500000,null,1,1,31,null,0,0,0,null,{"$f":"AND(B116=$C$9,'Standing Data'!$D$9<>\"Multi-academy Trust\")","v":{"$error":"#N/A"}}]
[{"$f":"IF(B117<>\"\",IF('Standing Data'!$D$9<>\"Multi-academy Trust\",IF('Standing Data'!$D$15=B117,\"Error - counterparty with self\",\"\"),IF(N(ISNA(MATCH(B117,'Standing Data'!$E$49:$E$148,0)))<>0,\"\",\"Error - counterparty with self\")),\"\")","v":""},{"$f":"IF(C117<>\"\",VLOOKUP(C117,'CP IDs'!A$2:B$5122,2,FALSE),\"\")","v":""},null,{"$f":"IFERROR(VLOOKUP(C117,'CP IDs'!$A$2:$D$4422,4,FALSE),\"\")","v":""},"",null,null,null,null,null,null,null,null,null,null,null,null,null,null,null,null,null,null,null,null,null,null,null,null,null,null,null,null,null,null,null,null,null,null,null,null,null,null,null,null,null,null,null,null,-500000,500000,null,1,1,31,null,0,0,0,null,{"$f":"AND(B117=$C$9,'Standing Data'!$D$9<>\"Multi-academy Trust\")","v":{"$error":"#N/A"}}]
[{"$f":"IF(B118<>\"\",IF('Standing Data'!$D$9<>\"Multi-academy Trust\",IF('Standing Data'!$D$15=B118,\"Error - counterparty with self\",\"\"),IF(N(ISNA(MATCH(B118,'Standing Data'!$E$49:$E$148,0)))<>0,\"\",\"Error - counterparty with self\")),\"\")","v":""},{"$f":"IF(C118<>\"\",VLOOKUP(C118,'CP IDs'!A$2:B$5122,2,FALSE),\"\")","v":""},null,{"$f":"IFERROR(VLOOKUP(C118,'CP IDs'!$A$2:$D$4422,4,FALSE),\"\")","v":""},"",null,null,null,null,null,null,null,null,null,null,null,null,null,null,null,null,null,null,null,null,null,null,null,null,null,null,null,null,null,null,null,null,null,null,null,null,null,null,null,null,null,null,null,null,-500000,500000,null,1,1,31,null,0,0,0,null,{"$f":"AND(B118=$C$9,'Standing Data'!$D$9<>\"Multi-academy Trust\")","v":{"$error":"#N/A"}}]
[{"$f":"IF(B119<>\"\",IF('Standing Data'!$D$9<>\"Multi-academy Trust\",IF('Standing Data'!$D$15=B119,\"Error - counterparty with self\",\"\"),IF(N(ISNA(MATCH(B119,'Standing Data'!$E$49:$E$148,0)))<>0,\"\",\"Error - counterparty with self\")),\"\")","v":""},{"$f":"IF(C119<>\"\",VLOOKUP(C119,'CP IDs'!A$2:B$5122,2,FALSE),\"\")","v":""},null,{"$f":"IFERROR(VLOOKUP(C119,'CP IDs'!$A$2:$D$4422,4,FALSE),\"\")","v":""},"",null,null,null,null,null,null,null,null,null,null,null,null,null,null,null,null,null,null,null,null,null,null,null,null,null,null,null,null,null,null,null,null,null,null,null,null,null,null,null,null,null,null,null,null,-500000,500000,null,1,1,31,null,0,0,0,null,{"$f":"AND(B119=$C$9,'Standing Data'!$D$9<>\"Multi-academy Trust\")","v":{"$error":"#N/A"}}]
[{"$f":"IF(B120<>\"\",IF('Standing Data'!$D$9<>\"Multi-academy Trust\",IF('Standing Data'!$D$15=B120,\"Error - counterparty with self\",\"\"),IF(N(ISNA(MATCH(B120,'Standing Data'!$E$49:$E$148,0)))<>0,\"\",\"Error - counterparty with self\")),\"\")","v":""},{"$f":"IF(C120<>\"\",VLOOKUP(C120,'CP IDs'!A$2:B$5122,2,FALSE),\"\")","v":""},null,{"$f":"IFERROR(VLOOKUP(C120,'CP IDs'!$A$2:$D$4422,4,FALSE),\"\")","v":""},"",null,null,null,null,null,null,null,null,null,null,null,null,null,null,null,null,null,null,null,null,null,null,null,null,null,null,null,null,null,null,null,null,null,null,null,null,null,null,null,null,null,null,null,null,-500000,500000,null,1,1,31,null,0,0,0,null,{"$f":"AND(B120=$C$9,'Standing Data'!$D$9<>\"Multi-academy Trust\")","v":{"$error":"#N/A"}}]
[{"$f":"IF(B121<>\"\",IF('Standing Data'!$D$9<>\"Multi-academy Trust\",IF('Standing Data'!$D$15=B121,\"Error - counterparty with self\",\"\"),IF(N(ISNA(MATCH(B121,'Standing Data'!$E$49:$E$148,0)))<>0,\"\",\"Error - counterparty with self\")),\"\")","v":""},{"$f":"IF(C121<>\"\",VLOOKUP(C121,'CP IDs'!A$2:B$5122,2,FALSE),\"\")","v":""},null,{"$f":"IFERROR(VLOOKUP(C121,'CP IDs'!$A$2:$D$4422,4,FALSE),\"\")","v":""},"",null,null,null,null,null,null,null,null,null,null,null,null,null,null,null,null,null,null,null,null,null,null,null,null,null,null,null,null,null,null,null,null,null,null,null,null,null,null,null,null,null,null,null,null,-500000,500000,null,1,1,31,null,0,0,0,null,{"$f":"AND(B121=$C$9,'Standing Data'!$D$9<>\"Multi-academy Trust\")","v":{"$error":"#N/A"}}]
[{"$f":"IF(B122<>\"\",IF('Standing Data'!$D$9<>\"Multi-academy Trust\",IF('Standing Data'!$D$15=B122,\"Error - counterparty with self\",\"\"),IF(N(ISNA(MATCH(B122,'Standing Data'!$E$49:$E$148,0)))<>0,\"\",\"Error - counterparty with self\")),\"\")","v":""},{"$f":"IF(C122<>\"\",VLOOKUP(C122,'CP IDs'!A$2:B$5122,2,FALSE),\"\")","v":""},null,{"$f":"IFERROR(VLOOKUP(C122,'CP IDs'!$A$2:$D$4422,4,FALSE),\"\")","v":""},"",null,null,null,null,null,null,null,null,null,null,null,null,null,null,null,null,null,null,null,null,null,null,null,null,null,null,null,null,null,null,null,null,null,null,null,null,null,null,null,null,null,null,null,null,-500000,500000,null,1,1,31,null,0,0,0,null,{"$f":"AND(B122=$C$9,'Standing Data'!$D$9<>\"Multi-academy Trust\")","v":{"$error":"#N/A"}}]
[{"$f":"IF(B123<>\"\",IF('Standing Data'!$D$9<>\"Multi-academy Trust\",IF('Standing Data'!$D$15=B123,\"Error - counterparty with self\",\"\"),IF(N(ISNA(MATCH(B123,'Standing Data'!$E$49:$E$148,0)))<>0,\"\",\"Error - counterparty with self\")),\"\")","v":""},{"$f":"IF(C123<>\"\",VLOOKUP(C123,'CP IDs'!A$2:B$5122,2,FALSE),\"\")","v":""},null,{"$f":"IFERROR(VLOOKUP(C123,'CP IDs'!$A$2:$D$4422,4,FALSE),\"\")","v":""},"",null,null,null,null,null,null,null,null,null,null,null,null,null,null,null,null,null,null,null,null,null,null,null,null,null,null,null,null,null,null,null,null,null,null,null,null,null,null,null,null,null,null,null,null,-500000,500000,null,1,1,31,null,0,0,0,null,{"$f":"AND(B123=$C$9,'Standing Data'!$D$9<>\"Multi-academy Trust\")","v":{"$error":"#N/A"}}]
[{"$f":"IF(B124<>\"\",IF('Standing Data'!$D$9<>\"Multi-academy Trust\",IF('Standing Data'!$D$15=B124,\"Error - counterparty with self\",\"\"),IF(N(ISNA(MATCH(B124,'Standing Data'!$E$49:$E$148,0)))<>0,\"\",\"Error - counterparty with self\")),\"\")","v":""},{"$f":"IF(C124<>\"\",VLOOKUP(C124,'CP IDs'!A$2:B$5122,2,FALSE),\"\")","v":""},null,{"$f":"IFERROR(VLOOKUP(C124,'CP IDs'!$A$2:$D$4422,4,FALSE),\"\")","v":""},"",null,null,null,null,null,null,null,null,null,null,null,null,null,null,null,null,null,null,null,null,null,null,null,null,null,null,null,null,null,null,null,null,null,null,null,null,null,null,null,null,null,null,null,null,-500000,500000,null,1,1,31,null,0,0,0,null,{"$f":"AND(B124=$C$9,'Standing Data'!$D$9<>\"Multi-academy Trust\")","v":{"$error":"#N/A"}}]
[{"$f":"IF(B125<>\"\",IF('Standing Data'!$D$9<>\"Multi-academy Trust\",IF('Standing Data'!$D$15=B125,\"Error - counterparty with self\",\"\"),IF(N(ISNA(MATCH(B125,'Standing Data'!$E$49:$E$148,0)))<>0,\"\",\"Error - counterparty with self\")),\"\")","v":""},{"$f":"IF(C125<>\"\",VLOOKUP(C125,'CP IDs'!A$2:B$5122,2,FALSE),\"\")","v":""},null,{"$f":"IFERROR(VLOOKUP(C125,'CP IDs'!$A$2:$D$4422,4,FALSE),\"\")","v":""},"",null,null,null,null,null,null,null,null,null,null,null,null,null,null,null,null,null,null,null,null,null,null,null,null,null,null,null,null,null,null,null,null,null,null,null,null,null,null,null,null,null,null,null,null,-500000,500000,null,1,1,31,null,0,0,0,null,{"$f":"AND(B125=$C$9,'Standing Data'!$D$9<>\"Multi-academy Trust\")","v":{"$error":"#N/A"}}]
[{"$f":"IF(B126<>\"\",IF('Standing Data'!$D$9<>\"Multi-academy Trust\",IF('Standing Data'!$D$15=B126,\"Error - counterparty with self\",\"\"),IF(N(ISNA(MATCH(B126,'Standing Data'!$E$49:$E$148,0)))<>0,\"\",\"Error - counterparty with self\")),\"\")","v":""},{"$f":"IF(C126<>\"\",VLOOKUP(C126,'CP IDs'!A$2:B$5122,2,FALSE),\"\")","v":""},null,{"$f":"IFERROR(VLOOKUP(C126,'CP IDs'!$A$2:$D$4422,4,FALSE),\"\")","v":""},"",null,null,null,null,null,null,null,null,null,null,null,null,null,null,null,null,null,null,null,null,null,null,null,null,null,null,null,null,null,null,null,null,null,null,null,null,null,null,null,null,null,null,null,null,-500000,500000,null,1,1,31,null,0,0,0,null,{"$f":"AND(B126=$C$9,'Standing Data'!$D$9<>\"Multi-academy Trust\")","v":{"$error":"#N/A"}}]
[{"$f":"IF(B127<>\"\",IF('Standing Data'!$D$9<>\"Multi-academy Trust\",IF('Standing Data'!$D$15=B127,\"Error - counterparty with self\",\"\"),IF(N(ISNA(MATCH(B127,'Standing Data'!$E$49:$E$148,0)))<>0,\"\",\"Error - counterparty with self\")),\"\")","v":""},{"$f":"IF(C127<>\"\",VLOOKUP(C127,'CP IDs'!A$2:B$5122,2,FALSE),\"\")","v":""},null,{"$f":"IFERROR(VLOOKUP(C127,'CP IDs'!$A$2:$D$4422,4,FALSE),\"\")","v":""},"",null,null,null,null,null,null,null,null,null,null,null,null,null,null,null,null,null,null,null,null,null,null,null,null,null,null,null,null,null,null,null,null,null,null,null,null,null,null,null,null,null,null,null,null,-500000,500000,null,1,1,31,null,0,0,0,null,{"$f":"AND(B127=$C$9,'Standing Data'!$D$9<>\"Multi-academy Trust\")","v":{"$error":"#N/A"}}]
[{"$f":"IF(B128<>\"\",IF('Standing Data'!$D$9<>\"Multi-academy Trust\",IF('Standing Data'!$D$15=B128,\"Error - counterparty with self\",\"\"),IF(N(ISNA(MATCH(B128,'Standing Data'!$E$49:$E$148,0)))<>0,\"\",\"Error - counterparty with self\")),\"\")","v":""},{"$f":"IF(C128<>\"\",VLOOKUP(C128,'CP IDs'!A$2:B$5122,2,FALSE),\"\")","v":""},null,{"$f":"IFERROR(VLOOKUP(C128,'CP IDs'!$A$2:$D$4422,4,FALSE),\"\")","v":""},"",null,null,null,null,null,null,null,null,null,null,null,null,null,null,null,null,null,null,null,null,null,null,null,null,null,null,null,null,null,null,null,null,null,null,null,null,null,null,null,null,null,null,null,null,-500000,500000,null,1,1,31,null,0,0,0,null,{"$f":"AND(B128=$C$9,'Standing Data'!$D$9<>\"Multi-academy Trust\")","v":{"$error":"#N/A"}}]
[{"$f":"IF(B129<>\"\",IF('Standing Data'!$D$9<>\"Multi-academy Trust\",IF('Standing Data'!$D$15=B129,\"Error - counterparty with self\",\"\"),IF(N(ISNA(MATCH(B129,'Standing Data'!$E$49:$E$148,0)))<>0,\"\",\"Error - counterparty with self\")),\"\")","v":""},{"$f":"IF(C129<>\"\",VLOOKUP(C129,'CP IDs'!A$2:B$5122,2,FALSE),\"\")","v":""},null,{"$f":"IFERROR(VLOOKUP(C129,'CP IDs'!$A$2:$D$4422,4,FALSE),\"\")","v":""},"",null,null,null,null,null,null,null,null,null,null,null,null,null,null,null,null,null,null,null,null,null,null,null,null,null,null,null,null,null,null,null,null,null,null,null,null,null,null,null,null,null,null,null,null,-500000,500000,null,1,1,31,null,0,0,0,null,{"$f":"AND(B129=$C$9,'Standing Data'!$D$9<>\"Multi-academy Trust\")","v":{"$error":"#N/A"}}]
[{"$f":"IF(B130<>\"\",IF('Standing Data'!$D$9<>\"Multi-academy Trust\",IF('Standing Data'!$D$15=B130,\"Error - counterparty with self\",\"\"),IF(N(ISNA(MATCH(B130,'Standing Data'!$E$49:$E$148,0)))<>0,\"\",\"Error - counterparty with self\")),\"\")","v":""},{"$f":"IF(C130<>\"\",VLOOKUP(C130,'CP IDs'!A$2:B$5122,2,FALSE),\"\")","v":""},null,{"$f":"IFERROR(VLOOKUP(C130,'CP IDs'!$A$2:$D$4422,4,FALSE),\"\")","v":""},"",null,null,null,null,null,null,null,null,null,null,null,null,null,null,null,null,null,null,null,null,null,null,null,null,null,null,null,null,null,null,null,null,null,null,null,null,null,null,null,null,null,null,null,null,-500000,500000,null,1,1,31,null,0,0,0,null,{"$f":"AND(B130=$C$9,'Standing Data'!$D$9<>\"Multi-academy Trust\")","v":{"$error":"#N/A"}}]
[{"$f":"IF(B131<>\"\",IF('Standing Data'!$D$9<>\"Multi-academy Trust\",IF('Standing Data'!$D$15=B131,\"Error - counterparty with self\",\"\"),IF(N(ISNA(MATCH(B131,'Standing Data'!$E$49:$E$148,0)))<>0,\"\",\"Error - counterparty with self\")),\"\")","v":""},{"$f":"IF(C131<>\"\",VLOOKUP(C131,'CP IDs'!A$2:B$5122,2,FALSE),\"\")","v":""},null,{"$f":"IFERROR(VLOOKUP(C131,'CP IDs'!$A$2:$D$4422,4,FALSE),\"\")","v":""},"",null,null,null,null,null,null,null,null,null,null,null,null,null,null,null,null,null,null,null,null,null,null,null,null,null,null,null,null,null,null,null,null,null,null,null,null,null,null,null,null,null,null,null,null,-500000,500000,null,1,1,31,null,0,0,0,null,{"$f":"AND(B131=$C$9,'Standing Data'!$D$9<>\"Multi-academy Trust\")","v":{"$error":"#N/A"}}]
[{"$f":"IF(B132<>\"\",IF('Standing Data'!$D$9<>\"Multi-academy Trust\",IF('Standing Data'!$D$15=B132,\"Error - counterparty with self\",\"\"),IF(N(ISNA(MATCH(B132,'Standing Data'!$E$49:$E$148,0)))<>0,\"\",\"Error - counterparty with self\")),\"\")","v":""},{"$f":"IF(C132<>\"\",VLOOKUP(C132,'CP IDs'!A$2:B$5122,2,FALSE),\"\")","v":""},null,{"$f":"IFERROR(VLOOKUP(C132,'CP IDs'!$A$2:$D$4422,4,FALSE),\"\")","v":""},"",null,null,null,null,null,null,null,null,null,null,null,null,null,null,null,null,null,null,null,null,null,null,null,null,null,null,null,null,null,null,null,null,null,null,null,null,null,null,null,null,null,null,null,null,-500000,500000,null,1,1,31,null,0,0,0,null,{"$f":"AND(B132=$C$9,'Standing Data'!$D$9<>\"Multi-academy Trust\")","v":{"$error":"#N/A"}}]
[{"$f":"IF(B133<>\"\",IF('Standing Data'!$D$9<>\"Multi-academy Trust\",IF('Standing Data'!$D$15=B133,\"Error - counterparty with self\",\"\"),IF(N(ISNA(MATCH(B133,'Standing Data'!$E$49:$E$148,0)))<>0,\"\",\"Error - counterparty with self\")),\"\")","v":""},{"$f":"IF(C133<>\"\",VLOOKUP(C133,'CP IDs'!A$2:B$5122,2,FALSE),\"\")","v":""},null,{"$f":"IFERROR(VLOOKUP(C133,'CP IDs'!$A$2:$D$4422,4,FALSE),\"\")","v":""},"",null,null,null,null,null,null,null,null,null,null,null,null,null,null,null,null,null,null,null,null,null,null,null,null,null,null,null,null,null,null,null,null,null,null,null,null,null,null,null,null,null,null,null,null,-500000,500000,null,1,1,31,null,0,0,0,null,{"$f":"AND(B133=$C$9,'Standing Data'!$D$9<>\"Multi-academy Trust\")","v":{"$error":"#N/A"}}]
[{"$f":"IF(B134<>\"\",IF('Standing Data'!$D$9<>\"Multi-academy Trust\",IF('Standing Data'!$D$15=B134,\"Error - counterparty with self\",\"\"),IF(N(ISNA(MATCH(B134,'Standing Data'!$E$49:$E$148,0)))<>0,\"\",\"Error - counterparty with self\")),\"\")","v":""},{"$f":"IF(C134<>\"\",VLOOKUP(C134,'CP IDs'!A$2:B$5122,2,FALSE),\"\")","v":""},null,{"$f":"IFERROR(VLOOKUP(C134,'CP IDs'!$A$2:$D$4422,4,FALSE),\"\")","v":""},"",null,null,null,null,null,null,null,null,null,null,null,null,null,null,null,null,null,null,null,null,null,null,null,null,null,null,null,null,null,null,null,null,null,null,null,null,null,null,null,null,null,null,null,null,-500000,500000,null,1,1,31,null,0,0,0,null,{"$f":"AND(B134=$C$9,'Standing Data'!$D$9<>\"Multi-academy Trust\")","v":{"$error":"#N/A"}}]
[{"$f":"IF(B135<>\"\",IF('Standing Data'!$D$9<>\"Multi-academy Trust\",IF('Standing Data'!$D$15=B135,\"Error - counterparty with self\",\"\"),IF(N(ISNA(MATCH(B135,'Standing Data'!$E$49:$E$148,0)))<>0,\"\",\"Error - counterparty with self\")),\"\")","v":""},{"$f":"IF(C135<>\"\",VLOOKUP(C135,'CP IDs'!A$2:B$5122,2,FALSE),\"\")","v":""},null,{"$f":"IFERROR(VLOOKUP(C135,'CP IDs'!$A$2:$D$4422,4,FALSE),\"\")","v":""},"",null,null,null,null,null,null,null,null,null,null,null,null,null,null,null,null,null,null,null,null,null,null,null,null,null,null,null,null,null,null,null,null,null,null,null,null,null,null,null,null,null,null,null,null,-500000,500000,null,1,1,31,null,0,0,0,null,{"$f":"AND(B135=$C$9,'Standing Data'!$D$9<>\"Multi-academy Trust\")","v":{"$error":"#N/A"}}]
[{"$f":"IF(B136<>\"\",IF('Standing Data'!$D$9<>\"Multi-academy Trust\",IF('Standing Data'!$D$15=B136,\"Error - counterparty with self\",\"\"),IF(N(ISNA(MATCH(B136,'Standing Data'!$E$49:$E$148,0)))<>0,\"\",\"Error - counterparty with self\")),\"\")","v":""},{"$f":"IF(C136<>\"\",VLOOKUP(C136,'CP IDs'!A$2:B$5122,2,FALSE),\"\")","v":""},null,{"$f":"IFERROR(VLOOKUP(C136,'CP IDs'!$A$2:$D$4422,4,FALSE),\"\")","v":""},"",null,null,null,null,null,null,null,null,null,null,null,null,null,null,null,null,null,null,null,null,null,null,null,null,null,null,null,null,null,null,null,null,null,null,null,null,null,null,null,null,null,null,null,null,-500000,500000,null,1,1,31,null,0,0,0,null,{"$f":"AND(B136=$C$9,'Standing Data'!$D$9<>\"Multi-academy Trust\")","v":{"$error":"#N/A"}}]
[{"$f":"IF(B137<>\"\",IF('Standing Data'!$D$9<>\"Multi-academy Trust\",IF('Standing Data'!$D$15=B137,\"Error - counterparty with self\",\"\"),IF(N(ISNA(MATCH(B137,'Standing Data'!$E$49:$E$148,0)))<>0,\"\",\"Error - counterparty with self\")),\"\")","v":""},{"$f":"IF(C137<>\"\",VLOOKUP(C137,'CP IDs'!A$2:B$5122,2,FALSE),\"\")","v":""},null,{"$f":"IFERROR(VLOOKUP(C137,'CP IDs'!$A$2:$D$4422,4,FALSE),\"\")","v":""},"",null,null,null,null,null,null,null,null,null,null,null,null,null,null,null,null,null,null,null,null,null,null,null,null,null,null,null,null,null,null,null,null,null,null,null,null,null,null,null,null,null,null,null,null,-500000,500000,null,1,1,31,null,0,0,0,null,{"$f":"AND(B137=$C$9,'Standing Data'!$D$9<>\"Multi-academy Trust\")","v":{"$error":"#N/A"}}]
[{"$f":"IF(B138<>\"\",IF('Standing Data'!$D$9<>\"Multi-academy Trust\",IF('Standing Data'!$D$15=B138,\"Error - counterparty with self\",\"\"),IF(N(ISNA(MATCH(B138,'Standing Data'!$E$49:$E$148,0)))<>0,\"\",\"Error - counterparty with self\")),\"\")","v":""},{"$f":"IF(C138<>\"\",VLOOKUP(C138,'CP IDs'!A$2:B$5122,2,FALSE),\"\")","v":""},null,{"$f":"IFERROR(VLOOKUP(C138,'CP IDs'!$A$2:$D$4422,4,FALSE),\"\")","v":""},"",null,null,null,null,null,null,null,null,null,null,null,null,null,null,null,null,null,null,null,null,null,null,null,null,null,null,null,null,null,null,null,null,null,null,null,null,null,null,null,null,null,null,null,null,-500000,500000,null,1,1,31,null,0,0,0,null,{"$f":"AND(B138=$C$9,'Standing Data'!$D$9<>\"Multi-academy Trust\")","v":{"$error":"#N/A"}}]
[{"$f":"IF(B139<>\"\",IF('Standing Data'!$D$9<>\"Multi-academy Trust\",IF('Standing Data'!$D$15=B139,\"Error - counterparty with self\",\"\"),IF(N(ISNA(MATCH(B139,'Standing Data'!$E$49:$E$148,0)))<>0,\"\",\"Error - counterparty with self\")),\"\")","v":""},{"$f":"IF(C139<>\"\",VLOOKUP(C139,'CP IDs'!A$2:B$5122,2,FALSE),\"\")","v":""},null,{"$f":"IFERROR(VLOOKUP(C139,'CP IDs'!$A$2:$D$4422,4,FALSE),\"\")","v":""},"",null,null,null,null,null,null,null,null,null,null,null,null,null,null,null,null,null,null,null,null,null,null,null,null,null,null,null,null,null,null,null,null,null,null,null,null,null,null,null,null,null,null,null,null,-500000,500000,null,1,1,31,null,0,0,0,null,{"$f":"AND(B139=$C$9,'Standing Data'!$D$9<>\"Multi-academy Trust\")","v":{"$error":"#N/A"}}]
[{"$f":"IF(B140<>\"\",IF('Standing Data'!$D$9<>\"Multi-academy Trust\",IF('Standing Data'!$D$15=B140,\"Error - counterparty with self\",\"\"),IF(N(ISNA(MATCH(B140,'Standing Data'!$E$49:$E$148,0)))<>0,\"\",\"Error - counterparty with self\")),\"\")","v":""},{"$f":"IF(C140<>\"\",VLOOKUP(C140,'CP IDs'!A$2:B$5122,2,FALSE),\"\")","v":""},null,{"$f":"IFERROR(VLOOKUP(C140,'CP IDs'!$A$2:$D$4422,4,FALSE),\"\")","v":""},"",null,null,null,null,null,null,null,null,null,null,null,null,null,null,null,null,null,null,null,null,null,null,null,null,null,null,null,null,null,null,null,null,null,null,null,null,null,null,null,null,null,null,null,null,-500000,500000,null,1,1,31,null,0,0,0,null,{"$f":"AND(B140=$C$9,'Standing Data'!$D$9<>\"Multi-academy Trust\")","v":{"$error":"#N/A"}}]
[{"$f":"IF(B141<>\"\",IF('Standing Data'!$D$9<>\"Multi-academy Trust\",IF('Standing Data'!$D$15=B141,\"Error - counterparty with self\",\"\"),IF(N(ISNA(MATCH(B141,'Standing Data'!$E$49:$E$148,0)))<>0,\"\",\"Error - counterparty with self\")),\"\")","v":""},{"$f":"IF(C141<>\"\",VLOOKUP(C141,'CP IDs'!A$2:B$5122,2,FALSE),\"\")","v":""},null,{"$f":"IFERROR(VLOOKUP(C141,'CP IDs'!$A$2:$D$4422,4,FALSE),\"\")","v":""},"",null,null,null,null,null,null,null,null,null,null,null,null,null,null,null,null,null,null,null,null,null,null,null,null,null,null,null,null,null,null,null,null,null,null,null,null,null,null,null,null,null,null,null,null,-500000,500000,null,1,1,31,null,0,0,0,null,{"$f":"AND(B141=$C$9,'Standing Data'!$D$9<>\"Multi-academy Trust\")","v":{"$error":"#N/A"}}]
[{"$f":"IF(B142<>\"\",IF('Standing Data'!$D$9<>\"Multi-academy Trust\",IF('Standing Data'!$D$15=B142,\"Error - counterparty with self\",\"\"),IF(N(ISNA(MATCH(B142,'Standing Data'!$E$49:$E$148,0)))<>0,\"\",\"Error - counterparty with self\")),\"\")","v":""},{"$f":"IF(C142<>\"\",VLOOKUP(C142,'CP IDs'!A$2:B$5122,2,FALSE),\"\")","v":""},null,{"$f":"IFERROR(VLOOKUP(C142,'CP IDs'!$A$2:$D$4422,4,FALSE),\"\")","v":""},"",null,null,null,null,null,null,null,null,null,null,null,null,null,null,null,null,null,null,null,null,null,null,null,null,null,null,null,null,null,null,null,null,null,null,null,null,null,null,null,null,null,null,null,null,-500000,500000,null,1,1,31,null,0,0,0,null,{"$f":"AND(B142=$C$9,'Standing Data'!$D$9<>\"Multi-academy Trust\")","v":{"$error":"#N/A"}}]
[{"$f":"IF(B143<>\"\",IF('Standing Data'!$D$9<>\"Multi-academy Trust\",IF('Standing Data'!$D$15=B143,\"Error - counterparty with self\",\"\"),IF(N(ISNA(MATCH(B143,'Standing Data'!$E$49:$E$148,0)))<>0,\"\",\"Error - counterparty with self\")),\"\")","v":""},{"$f":"IF(C143<>\"\",VLOOKUP(C143,'CP IDs'!A$2:B$5122,2,FALSE),\"\")","v":""},null,{"$f":"IFERROR(VLOOKUP(C143,'CP IDs'!$A$2:$D$4422,4,FALSE),\"\")","v":""},"",null,null,null,null,null,null,null,null,null,null,null,null,null,null,null,null,null,null,null,null,null,null,null,null,null,null,null,null,null,null,null,null,null,null,null,null,null,null,null,null,null,null,null,null,-500000,500000,null,1,1,31,null,0,0,0,null,{"$f":"AND(B143=$C$9,'Standing Data'!$D$9<>\"Multi-academy Trust\")","v":{"$error":"#N/A"}}]
[{"$f":"IF(B144<>\"\",IF('Standing Data'!$D$9<>\"Multi-academy Trust\",IF('Standing Data'!$D$15=B144,\"Error - counterparty with self\",\"\"),IF(N(ISNA(MATCH(B144,'Standing Data'!$E$49:$E$148,0)))<>0,\"\",\"Error - counterparty with self\")),\"\")","v":""},{"$f":"IF(C144<>\"\",VLOOKUP(C144,'CP IDs'!A$2:B$5122,2,FALSE),\"\")","v":""},null,{"$f":"IFERROR(VLOOKUP(C144,'CP IDs'!$A$2:$D$4422,4,FALSE),\"\")","v":""},"",null,null,null,null,null,null,null,null,null,null,null,null,null,null,null,null,null,null,null,null,null,null,null,null,null,null,null,null,null,null,null,null,null,null,null,null,null,null,null,null,null,null,null,null,-500000,500000,null,1,1,31,null,0,0,0,null,{"$f":"AND(B144=$C$9,'Standing Data'!$D$9<>\"Multi-academy Trust\")","v":{"$error":"#N/A"}}]
[{"$f":"IF(B145<>\"\",IF('Standing Data'!$D$9<>\"Multi-academy Trust\",IF('Standing Data'!$D$15=B145,\"Error - counterparty with self\",\"\"),IF(N(ISNA(MATCH(B145,'Standing Data'!$E$49:$E$148,0)))<>0,\"\",\"Error - counterparty with self\")),\"\")","v":""},{"$f":"IF(C145<>\"\",VLOOKUP(C145,'CP IDs'!A$2:B$5122,2,FALSE),\"\")","v":""},null,{"$f":"IFERROR(VLOOKUP(C145,'CP IDs'!$A$2:$D$4422,4,FALSE),\"\")","v":""},"",null,null,null,null,null,null,null,null,null,null,null,null,null,null,null,null,null,null,null,null,null,null,null,null,null,null,null,null,null,null,null,null,null,null,null,null,null,null,null,null,null,null,null,null,-500000,500000,null,1,1,31,null,0,0,0,null,{"$f":"AND(B145=$C$9,'Standing Data'!$D$9<>\"Multi-academy Trust\")","v":{"$error":"#N/A"}}]
[{"$f":"IF(B146<>\"\",IF('Standing Data'!$D$9<>\"Multi-academy Trust\",IF('Standing Data'!$D$15=B146,\"Error - counterparty with self\",\"\"),IF(N(ISNA(MATCH(B146,'Standing Data'!$E$49:$E$148,0)))<>0,\"\",\"Error - counterparty with self\")),\"\")","v":""},{"$f":"IF(C146<>\"\",VLOOKUP(C146,'CP IDs'!A$2:B$5122,2,FALSE),\"\")","v":""},null,{"$f":"IFERROR(VLOOKUP(C146,'CP IDs'!$A$2:$D$4422,4,FALSE),\"\")","v":""},"",null,null,null,null,null,null,null,null,null,null,null,null,null,null,null,null,null,null,null,null,null,null,null,null,null,null,null,null,null,null,null,null,null,null,null,null,null,null,null,null,null,null,null,null,-500000,500000,null,1,1,31,null,0,0,0,null,{"$f":"AND(B146=$C$9,'Standing Data'!$D$9<>\"Multi-academy Trust\")","v":{"$error":"#N/A"}}]
[{"$f":"IF(B147<>\"\",IF('Standing Data'!$D$9<>\"Multi-academy Trust\",IF('Standing Data'!$D$15=B147,\"Error - counterparty with self\",\"\"),IF(N(ISNA(MATCH(B147,'Standing Data'!$E$49:$E$148,0)))<>0,\"\",\"Error - counterparty with self\")),\"\")","v":""},{"$f":"IF(C147<>\"\",VLOOKUP(C147,'CP IDs'!A$2:B$5122,2,FALSE),\"\")","v":""},null,{"$f":"IFERROR(VLOOKUP(C147,'CP IDs'!$A$2:$D$4422,4,FALSE),\"\")","v":""},"",null,null,null,null,null,null,null,null,null,null,null,null,null,null,null,null,null,null,null,null,null,null,null,null,null,null,null,null,null,null,null,null,null,null,null,null,null,null,null,null,null,null,null,null,-500000,500000,null,1,1,31,null,0,0,0,null,{"$f":"AND(B147=$C$9,'Standing Data'!$D$9<>\"Multi-academy Trust\")","v":{"$error":"#N/A"}}]
[{"$f":"IF(B148<>\"\",IF('Standing Data'!$D$9<>\"Multi-academy Trust\",IF('Standing Data'!$D$15=B148,\"Error - counterparty with self\",\"\"),IF(N(ISNA(MATCH(B148,'Standing Data'!$E$49:$E$148,0)))<>0,\"\",\"Error - counterparty with self\")),\"\")","v":""},{"$f":"IF(C148<>\"\",VLOOKUP(C148,'CP IDs'!A$2:B$5122,2,FALSE),\"\")","v":""},null,{"$f":"IFERROR(VLOOKUP(C148,'CP IDs'!$A$2:$D$4422,4,FALSE),\"\")","v":""},"",null,null,null,null,null,null,null,null,null,null,null,null,null,null,null,null,null,null,null,null,null,null,null,null,null,null,null,null,null,null,null,null,null,null,null,null,null,null,null,null,null,null,null,null,-500000,500000,null,1,1,31,null,0,0,0,null,{"$f":"AND(B148=$C$9,'Standing Data'!$D$9<>\"Multi-academy Trust\")","v":{"$error":"#N/A"}}]
[{"$f":"IF(B149<>\"\",IF('Standing Data'!$D$9<>\"Multi-academy Trust\",IF('Standing Data'!$D$15=B149,\"Error - counterparty with self\",\"\"),IF(N(ISNA(MATCH(B149,'Standing Data'!$E$49:$E$148,0)))<>0,\"\",\"Error - counterparty with self\")),\"\")","v":""},{"$f":"IF(C149<>\"\",VLOOKUP(C149,'CP IDs'!A$2:B$5122,2,FALSE),\"\")","v":""},null,{"$f":"IFERROR(VLOOKUP(C149,'CP IDs'!$A$2:$D$4422,4,FALSE),\"\")","v":""},"",null,null,null,null,null,null,null,null,null,null,null,null,null,null,null,null,null,null,null,null,null,null,null,null,null,null,null,null,null,null,null,null,null,null,null,null,null,null,null,null,null,null,null,null,-500000,500000,null,1,1,31,null,0,0,{"$f":"COUNT(F149:AT149)","v":0},null,{"$f":"AND(B149=$C$9,'Standing Data'!$D$9<>\"Multi-academy Trust\")","v":{"$error":"#N/A"}}]
[{"$f":"IF(B150<>\"\",IF('Standing Data'!$D$9<>\"Multi-academy Trust\",IF('Standing Data'!$D$15=B150,\"Error - counterparty with self\",\"\"),IF(N(ISNA(MATCH(B150,'Standing Data'!$E$49:$E$148,0)))<>0,\"\",\"Error - counterparty with self\")),\"\")","v":""},{"$f":"IF(C150<>\"\",VLOOKUP(C150,'CP IDs'!A$2:B$5122,2,FALSE),\"\")","v":""},null,{"$f":"IFERROR(VLOOKUP(C150,'CP IDs'!$A$2:$D$4422,4,FALSE),\"\")","v":""},"",null,null,null,null,null,null,null,null,null,null,null,null,null,null,null,null,null,null,null,null,null,null,null,null,null,null,null,null,null,null,null,null,null,null,null,null,null,null,null,null,null,null,null,null,-500000,500000,null,1,1,31,null,0,0,0,null,{"$f":"AND(B150=$C$9,'Standing Data'!$D$9<>\"Multi-academy Trust\")","v":{"$error":"#N/A"}}]
[{"$f":"IF(B151<>\"\",IF('Standing Data'!$D$9<>\"Multi-academy Trust\",IF('Standing Data'!$D$15=B151,\"Error - counterparty with self\",\"\"),IF(N(ISNA(MATCH(B151,'Standing Data'!$E$49:$E$148,0)))<>0,\"\",\"Error - counterparty with self\")),\"\")","v":""},{"$f":"IF(C151<>\"\",VLOOKUP(C151,'CP IDs'!A$2:B$5122,2,FALSE),\"\")","v":""},null,{"$f":"IFERROR(VLOOKUP(C151,'CP IDs'!$A$2:$D$4422,4,FALSE),\"\")","v":""},"",null,null,null,null,null,null,null,null,null,null,null,null,null,null,null,null,null,null,null,null,null,null,null,null,null,null,null,null,null,null,null,null,null,null,null,null,null,null,null,null,null,null,null,null,{"$f":"AX150","v":-500000},{"$f":"AY150","v":500000},null,1,1,31,null,0,0,0,null,{"$f":"AND(B151=$C$9,'Standing Data'!$D$9<>\"Multi-academy Trust\")","v":{"$error":"#N/A"}}]
[{"$f":"IF(B152<>\"\",IF('Standing Data'!$D$9<>\"Multi-academy Trust\",IF('Standing Data'!$D$15=B152,\"Error - counterparty with self\",\"\"),IF(N(ISNA(MATCH(B152,'Standing Data'!$E$49:$E$148,0)))<>0,\"\",\"Error - counterparty with self\")),\"\")","v":""},{"$f":"IF(C152<>\"\",VLOOKUP(C152,'CP IDs'!A$2:B$5122,2,FALSE),\"\")","v":""},null,{"$f":"IFERROR(VLOOKUP(C152,'CP IDs'!$A$2:$D$4422,4,FALSE),\"\")","v":""},"",null,null,null,null,null,null,null,null,null,null,null,null,null,null,null,null,null,null,null,null,null,null,null,null,null,null,null,null,null,null,null,null,null,null,null,null,null,null,null,null,null,null,null,null,-500000,500000,null,1,1,31,null,0,0,0,null,{"$f":"AND(B152=$C$9,'Standing Data'!$D$9<>\"Multi-academy Trust\")","v":{"$error":"#N/A"}}]
[{"$f":"IF(B153<>\"\",IF('Standing Data'!$D$9<>\"Multi-academy Trust\",IF('Standing Data'!$D$15=B153,\"Error - counterparty with self\",\"\"),IF(N(ISNA(MATCH(B153,'Standing Data'!$E$49:$E$148,0)))<>0,\"\",\"Error - counterparty with self\")),\"\")","v":""},{"$f":"IF(C153<>\"\",VLOOKUP(C153,'CP IDs'!A$2:B$5122,2,FALSE),\"\")","v":""},null,{"$f":"IFERROR(VLOOKUP(C153,'CP IDs'!$A$2:$D$4422,4,FALSE),\"\")","v":""},"",null,null,null,null,null,null,null,null,null,null,null,null,null,null,null,null,null,null,null,null,null,null,null,null,null,null,null,null,null,null,null,null,null,null,null,null,null,null,null,null,null,null,null,null,-500000,500000,null,1,1,31,null,0,0,0,null,{"$f":"AND(B153=$C$9,'Standing Data'!$D$9<>\"Multi-academy Trust\")","v":{"$error":"#N/A"}}]
[{"$f":"IF(B154<>\"\",IF('Standing Data'!$D$9<>\"Multi-academy Trust\",IF('Standing Data'!$D$15=B154,\"Error - counterparty with self\",\"\"),IF(N(ISNA(MATCH(B154,'Standing Data'!$E$49:$E$148,0)))<>0,\"\",\"Error - counterparty with self\")),\"\")","v":""},{"$f":"IF(C154<>\"\",VLOOKUP(C154,'CP IDs'!A$2:B$5122,2,FALSE),\"\")","v":""},null,{"$f":"IFERROR(VLOOKUP(C154,'CP IDs'!$A$2:$D$4422,4,FALSE),\"\")","v":""},"",null,null,null,null,null,null,null,null,null,null,null,null,null,null,null,null,null,null,null,null,null,null,null,null,null,null,null,null,null,null,null,null,null,null,null,null,null,null,null,null,null,null,null,null,-500000,500000,null,1,1,31,null,0,0,0,null,{"$f":"AND(B154=$C$9,'Standing Data'!$D$9<>\"Multi-academy Trust\")","v":{"$error":"#N/A"}}]
[{"$f":"IF(B155<>\"\",IF('Standing Data'!$D$9<>\"Multi-academy Trust\",IF('Standing Data'!$D$15=B155,\"Error - counterparty with self\",\"\"),IF(N(ISNA(MATCH(B155,'Standing Data'!$E$49:$E$148,0)))<>0,\"\",\"Error - counterparty with self\")),\"\")","v":""},{"$f":"IF(C155<>\"\",VLOOKUP(C155,'CP IDs'!A$2:B$5122,2,FALSE),\"\")","v":""},null,{"$f":"IFERROR(VLOOKUP(C155,'CP IDs'!$A$2:$D$4422,4,FALSE),\"\")","v":""},"",null,null,null,null,null,null,null,null,null,null,null,null,null,null,null,null,null,null,null,null,null,null,null,null,null,null,null,null,null,null,null,null,null,null,null,null,null,null,null,null,null,null,null,null,-500000,500000,null,1,1,31,null,0,0,0,null,{"$f":"AND(B155=$C$9,'Standing Data'!$D$9<>\"Multi-academy Trust\")","v":{"$error":"#N/A"}}]
[{"$f":"IF(B156<>\"\",IF('Standing Data'!$D$9<>\"Multi-academy Trust\",IF('Standing Data'!$D$15=B156,\"Error - counterparty with self\",\"\"),IF(N(ISNA(MATCH(B156,'Standing Data'!$E$49:$E$148,0)))<>0,\"\",\"Error - counterparty with self\")),\"\")","v":""},{"$f":"IF(C156<>\"\",VLOOKUP(C156,'CP IDs'!A$2:B$5122,2,FALSE),\"\")","v":""},null,{"$f":"IFERROR(VLOOKUP(C156,'CP IDs'!$A$2:$D$4422,4,FALSE),\"\")","v":""},"",null,null,null,null,null,null,null,null,null,null,null,null,null,null,null,null,null,null,null,null,null,null,null,null,null,null,null,null,null,null,null,null,null,null,null,null,null,null,null,null,null,null,null,null,-500000,500000,null,1,1,31,null,0,0,0,null,{"$f":"AND(B156=$C$9,'Standing Data'!$D$9<>\"Multi-academy Trust\")","v":{"$error":"#N/A"}}]
[{"$f":"IF(B157<>\"\",IF('Standing Data'!$D$9<>\"Multi-academy Trust\",IF('Standing Data'!$D$15=B157,\"Error - counterparty with self\",\"\"),IF(N(ISNA(MATCH(B157,'Standing Data'!$E$49:$E$148,0)))<>0,\"\",\"Error - counterparty with self\")),\"\")","v":""},{"$f":"IF(C157<>\"\",VLOOKUP(C157,'CP IDs'!A$2:B$5122,2,FALSE),\"\")","v":""},null,{"$f":"IFERROR(VLOOKUP(C157,'CP IDs'!$A$2:$D$4422,4,FALSE),\"\")","v":""},"",null,null,null,null,null,null,null,null,null,null,null,null,null,null,null,null,null,null,null,null,null,null,null,null,null,null,null,null,null,null,null,null,null,null,null,null,null,null,null,null,null,null,null,null,-500000,500000,null,1,1,31,null,0,0,0,null,{"$f":"AND(B157=$C$9,'Standing Data'!$D$9<>\"Multi-academy Trust\")","v":{"$error":"#N/A"}}]
[{"$f":"IF(B158<>\"\",IF('Standing Data'!$D$9<>\"Multi-academy Trust\",IF('Standing Data'!$D$15=B158,\"Error - counterparty with self\",\"\"),IF(N(ISNA(MATCH(B158,'Standing Data'!$E$49:$E$148,0)))<>0,\"\",\"Error - counterparty with self\")),\"\")","v":""},{"$f":"IF(C158<>\"\",VLOOKUP(C158,'CP IDs'!A$2:B$5122,2,FALSE),\"\")","v":""},null,{"$f":"IFERROR(VLOOKUP(C158,'CP IDs'!$A$2:$D$4422,4,FALSE),\"\")","v":""},"",null,null,null,null,null,null,null,null,null,null,null,null,null,null,null,null,null,null,null,null,null,null,null,null,null,null,null,null,null,null,null,null,null,null,null,null,null,null,null,null,null,null,null,null,-500000,500000,null,1,1,31,null,{"$f":"COUNTA(C158)","v":0},{"$f":"1-COUNTBLANK(B158)","v":0},0,null,{"$f":"AND(B158=$C$9,'Standing Data'!$D$9<>\"Multi-academy Trust\")","v":{"$error":"#N/A"}}]
[{"$f":"IF(B159<>\"\",IF('Standing Data'!$D$9<>\"Multi-academy Trust\",IF('Standing Data'!$D$15=B159,\"Error - counterparty with self\",\"\"),IF(N(ISNA(MATCH(B159,'Standing Data'!$E$49:$E$148,0)))<>0,\"\",\"Error - counterparty with self\")),\"\")","v":""},{"$f":"IF(C159<>\"\",VLOOKUP(C159,'CP IDs'!A$2:B$5122,2,FALSE),\"\")","v":""},null,{"$f":"IFERROR(VLOOKUP(C159,'CP IDs'!$A$2:$D$4422,4,FALSE),\"\")","v":""},{"$f":"IF(OR(AND(COUNT(F159:AT159)>0,C159=\"\"),AND(COUNT(F159:AT159)=0,C159<>\"\")),\"Error - on line\",\"\")","v":""},null,null,null,null,null,null,null,null,null,null,null,null,null,null,null,null,null,null,null,null,null,null,null,null,null,null,null,null,null,null,null,null,null,null,null,null,null,null,null,null,null,null,null,null,-500000,500000,null,1,1,31,null,0,0,0,null,{"$f":"AND(B159=$C$9,'Standing Data'!$D$9<>\"Multi-academy Trust\")","v":{"$error":"#N/A"}}]
[{"$f":"IF(B160<>\"\",IF('Standing Data'!$D$9<>\"Multi-academy Trust\",IF('Standing Data'!$D$15=B160,\"Error - counterparty with self\",\"\"),IF(N(ISNA(MATCH(B160,'Standing Data'!$E$49:$E$148,0)))<>0,\"\",\"Error - counterparty with self\")),\"\")","v":""},{"$f":"IF(C160<>\"\",VLOOKUP(C160,'CP IDs'!A$2:B$5122,2,FALSE),\"\")","v":""},null,{"$f":"IFERROR(VLOOKUP(C160,'CP IDs'!$A$2:$D$4422,4,FALSE),\"\")","v":""},"",null,null,null,null,null,null,null,null,null,null,null,null,null,null,null,null,null,null,null,null,null,null,null,null,null,null,null,null,null,null,null,null,null,null,null,null,null,null,null,null,null,null,null,null,-500000,500000,null,1,1,31,null,0,0,0,null,{"$f":"AND(B160=$C$9,'Standing Data'!$D$9<>\"Multi-academy Trust\")","v":{"$error":"#N/A"}}]
[{"$f":"IF(B161<>\"\",IF('Standing Data'!$D$9<>\"Multi-academy Trust\",IF('Standing Data'!$D$15=B161,\"Error - counterparty with self\",\"\"),IF(N(ISNA(MATCH(B161,'Standing Data'!$E$49:$E$148,0)))<>0,\"\",\"Error - counterparty with self\")),\"\")","v":""},{"$f":"IF(C161<>\"\",VLOOKUP(C161,'CP IDs'!A$2:B$5122,2,FALSE),\"\")","v":""},null,{"$f":"IFERROR(VLOOKUP(C161,'CP IDs'!$A$2:$D$4422,4,FALSE),\"\")","v":""},"",null,null,null,null,null,null,null,null,null,null,null,null,null,null,null,null,null,null,null,null,null,null,null,null,null,null,null,null,null,null,null,null,null,null,null,null,null,null,null,null,null,null,null,null,-500000,500000,null,1,1,31,null,0,0,0,null,{"$f":"AND(B161=$C$9,'Standing Data'!$D$9<>\"Multi-academy Trust\")","v":{"$error":"#N/A"}}]
[{"$f":"IF(B162<>\"\",IF('Standing Data'!$D$9<>\"Multi-academy Trust\",IF('Standing Data'!$D$15=B162,\"Error - counterparty with self\",\"\"),IF(N(ISNA(MATCH(B162,'Standing Data'!$E$49:$E$148,0)))<>0,\"\",\"Error - counterparty with self\")),\"\")","v":""},{"$f":"IF(C162<>\"\",VLOOKUP(C162,'CP IDs'!A$2:B$5122,2,FALSE),\"\")","v":""},null,{"$f":"IFERROR(VLOOKUP(C162,'CP IDs'!$A$2:$D$4422,4,FALSE),\"\")","v":""},"",null,null,null,null,null,null,null,null,null,null,null,null,null,null,null,null,null,null,null,null,null,null,null,null,null,null,null,null,null,null,null,null,null,null,null,null,null,null,null,null,null,null,null,null,-500000,500000,null,1,1,31,null,0,0,0,null,{"$f":"AND(B162=$C$9,'Standing Data'!$D$9<>\"Multi-academy Trust\")","v":{"$error":"#N/A"}}]
[{"$f":"IF(B163<>\"\",IF('Standing Data'!$D$9<>\"Multi-academy Trust\",IF('Standing Data'!$D$15=B163,\"Error - counterparty with self\",\"\"),IF(N(ISNA(MATCH(B163,'Standing Data'!$E$49:$E$148,0)))<>0,\"\",\"Error - counterparty with self\")),\"\")","v":""},{"$f":"IF(C163<>\"\",VLOOKUP(C163,'CP IDs'!A$2:B$5122,2,FALSE),\"\")","v":""},null,{"$f":"IFERROR(VLOOKUP(C163,'CP IDs'!$A$2:$D$4422,4,FALSE),\"\")","v":""},"",null,null,null,null,null,null,null,null,null,null,null,null,null,null,null,null,null,null,null,null,null,null,null,null,null,null,null,null,null,null,null,null,null,null,null,null,null,null,null,null,null,null,null,null,-500000,500000,null,1,1,31,null,0,0,0,null,{"$f":"AND(B163=$C$9,'Standing Data'!$D$9<>\"Multi-academy Trust\")","v":{"$error":"#N/A"}}]
[{"$f":"IF(B164<>\"\",IF('Standing Data'!$D$9<>\"Multi-academy Trust\",IF('Standing Data'!$D$15=B164,\"Error - counterparty with self\",\"\"),IF(N(ISNA(MATCH(B164,'Standing Data'!$E$49:$E$148,0)))<>0,\"\",\"Error - counterparty with self\")),\"\")","v":""},{"$f":"IF(C164<>\"\",VLOOKUP(C164,'CP IDs'!A$2:B$5122,2,FALSE),\"\")","v":""},null,{"$f":"IFERROR(VLOOKUP(C164,'CP IDs'!$A$2:$D$4422,4,FALSE),\"\")","v":""},"",null,null,null,null,null,null,null,null,null,null,null,null,null,null,null,null,null,null,null,null,null,null,null,null,null,null,null,null,null,null,null,null,null,null,null,null,null,null,null,null,null,null,null,null,-500000,500000,null,1,1,31,null,0,0,0,null,{"$f":"AND(B164=$C$9,'Standing Data'!$D$9<>\"Multi-academy Trust\")","v":{"$error":"#N/A"}}]
[{"$f":"IF(B165<>\"\",IF('Standing Data'!$D$9<>\"Multi-academy Trust\",IF('Standing Data'!$D$15=B165,\"Error - counterparty with self\",\"\"),IF(N(ISNA(MATCH(B165,'Standing Data'!$E$49:$E$148,0)))<>0,\"\",\"Error - counterparty with self\")),\"\")","v":""},{"$f":"IF(C165<>\"\",VLOOKUP(C165,'CP IDs'!A$2:B$5122,2,FALSE),\"\")","v":""},null,{"$f":"IFERROR(VLOOKUP(C165,'CP IDs'!$A$2:$D$4422,4,FALSE),\"\")","v":""},"",null,null,null,null,null,null,null,null,null,null,null,null,null,null,null,null,null,null,null,null,null,null,null,null,null,null,null,null,null,null,null,null,null,null,null,null,null,null,null,null,null,null,null,null,-500000,500000,null,1,1,31,null,0,0,0,null,{"$f":"AND(B165=$C$9,'Standing Data'!$D$9<>\"Multi-academy Trust\")","v":{"$error":"#N/A"}}]
[{"$f":"IF(B166<>\"\",IF('Standing Data'!$D$9<>\"Multi-academy Trust\",IF('Standing Data'!$D$15=B166,\"Error - counterparty with self\",\"\"),IF(N(ISNA(MATCH(B166,'Standing Data'!$E$49:$E$148,0)))<>0,\"\",\"Error - counterparty with self\")),\"\")","v":""},{"$f":"IF(C166<>\"\",VLOOKUP(C166,'CP IDs'!A$2:B$5122,2,FALSE),\"\")","v":""},null,{"$f":"IFERROR(VLOOKUP(C166,'CP IDs'!$A$2:$D$4422,4,FALSE),\"\")","v":""},"",null,null,null,null,null,null,null,null,null,null,null,null,null,null,null,null,null,null,null,null,null,null,null,null,null,null,null,null,null,null,null,null,null,null,null,null,null,null,null,null,null,null,null,null,-500000,500000,null,1,1,31,null,0,0,0,null,{"$f":"AND(B166=$C$9,'Standing Data'!$D$9<>\"Multi-academy Trust\")","v":{"$error":"#N/A"}}]
[{"$f":"IF(B167<>\"\",IF('Standing Data'!$D$9<>\"Multi-academy Trust\",IF('Standing Data'!$D$15=B167,\"Error - counterparty with self\",\"\"),IF(N(ISNA(MATCH(B167,'Standing Data'!$E$49:$E$148,0)))<>0,\"\",\"Error - counterparty with self\")),\"\")","v":""},{"$f":"IF(C167<>\"\",VLOOKUP(C167,'CP IDs'!A$2:B$5122,2,FALSE),\"\")","v":""},null,{"$f":"IFERROR(VLOOKUP(C167,'CP IDs'!$A$2:$D$4422,4,FALSE),\"\")","v":""},"",null,null,null,null,null,null,null,null,null,null,null,null,null,null,null,null,null,null,null,null,null,null,null,null,null,null,null,null,null,null,null,null,null,null,null,null,null,null,null,null,null,null,null,null,-500000,500000,null,1,1,31,null,0,0,0,null,{"$f":"AND(B167=$C$9,'Standing Data'!$D$9<>\"Multi-academy Trust\")","v":{"$error":"#N/A"}}]
[{"$f":"IF(B168<>\"\",IF('Standing Data'!$D$9<>\"Multi-academy Trust\",IF('Standing Data'!$D$15=B168,\"Error - counterparty with self\",\"\"),IF(N(ISNA(MATCH(B168,'Standing Data'!$E$49:$E$148,0)))<>0,\"\",\"Error - counterparty with self\")),\"\")","v":""},{"$f":"IF(C168<>\"\",VLOOKUP(C168,'CP IDs'!A$2:B$5122,2,FALSE),\"\")","v":""},null,{"$f":"IFERROR(VLOOKUP(C168,'CP IDs'!$A$2:$D$4422,4,FALSE),\"\")","v":""},"",null,null,null,null,null,null,null,null,null,null,null,null,null,null,null,null,null,null,null,null,null,null,null,null,null,null,null,null,null,null,null,null,null,null,null,null,null,null,null,null,null,null,null,null,-500000,500000,null,1,1,31,null,0,0,0,null,{"$f":"AND(B168=$C$9,'Standing Data'!$D$9<>\"Multi-academy Trust\")","v":{"$error":"#N/A"}}]
[{"$f":"IF(B169<>\"\",IF('Standing Data'!$D$9<>\"Multi-academy Trust\",IF('Standing Data'!$D$15=B169,\"Error - counterparty with self\",\"\"),IF(N(ISNA(MATCH(B169,'Standing Data'!$E$49:$E$148,0)))<>0,\"\",\"Error - counterparty with self\")),\"\")","v":""},{"$f":"IF(C169<>\"\",VLOOKUP(C169,'CP IDs'!A$2:B$5122,2,FALSE),\"\")","v":""},null,{"$f":"IFERROR(VLOOKUP(C169,'CP IDs'!$A$2:$D$4422,4,FALSE),\"\")","v":""},"",null,null,null,null,null,null,null,null,null,null,null,null,null,null,null,null,null,null,null,null,null,null,null,null,null,null,null,null,null,null,null,null,null,null,null,null,null,null,null,null,null,null,null,null,-500000,500000,null,1,1,31,null,0,0,0,null,{"$f":"AND(B169=$C$9,'Standing Data'!$D$9<>\"Multi-academy Trust\")","v":{"$error":"#N/A"}}]
[{"$f":"IF(B170<>\"\",IF('Standing Data'!$D$9<>\"Multi-academy Trust\",IF('Standing Data'!$D$15=B170,\"Error - counterparty with self\",\"\"),IF(N(ISNA(MATCH(B170,'Standing Data'!$E$49:$E$148,0)))<>0,\"\",\"Error - counterparty with self\")),\"\")","v":""},{"$f":"IF(C170<>\"\",VLOOKUP(C170,'CP IDs'!A$2:B$5122,2,FALSE),\"\")","v":""},null,{"$f":"IFERROR(VLOOKUP(C170,'CP IDs'!$A$2:$D$4422,4,FALSE),\"\")","v":""},"",null,null,null,null,null,null,null,null,null,null,null,null,null,null,null,null,null,null,null,null,null,null,null,null,null,null,null,null,null,null,null,null,null,null,null,null,null,null,null,null,null,null,null,null,-500000,500000,null,1,1,31,null,0,0,0,null,{"$f":"AND(B170=$C$9,'Standing Data'!$D$9<>\"Multi-academy Trust\")","v":{"$error":"#N/A"}}]
[{"$f":"IF(B171<>\"\",IF('Standing Data'!$D$9<>\"Multi-academy Trust\",IF('Standing Data'!$D$15=B171,\"Error - counterparty with self\",\"\"),IF(N(ISNA(MATCH(B171,'Standing Data'!$E$49:$E$148,0)))<>0,\"\",\"Error - counterparty with self\")),\"\")","v":""},{"$f":"IF(C171<>\"\",VLOOKUP(C171,'CP IDs'!A$2:B$5122,2,FALSE),\"\")","v":""},null,{"$f":"IFERROR(VLOOKUP(C171,'CP IDs'!$A$2:$D$4422,4,FALSE),\"\")","v":""},"",null,null,null,null,null,null,null,null,null,null,null,null,null,null,null,null,null,null,null,null,null,null,null,null,null,null,null,null,null,null,null,null,null,null,null,null,null,null,null,null,null,null,null,null,-500000,500000,null,1,1,31,null,0,0,0,null,{"$f":"AND(B171=$C$9,'Standing Data'!$D$9<>\"Multi-academy Trust\")","v":{"$error":"#N/A"}}]
[{"$f":"IF(B172<>\"\",IF('Standing Data'!$D$9<>\"Multi-academy Trust\",IF('Standing Data'!$D$15=B172,\"Error - counterparty with self\",\"\"),IF(N(ISNA(MATCH(B172,'Standing Data'!$E$49:$E$148,0)))<>0,\"\",\"Error - counterparty with self\")),\"\")","v":""},{"$f":"IF(C172<>\"\",VLOOKUP(C172,'CP IDs'!A$2:B$5122,2,FALSE),\"\")","v":""},null,{"$f":"IFERROR(VLOOKUP(C172,'CP IDs'!$A$2:$D$4422,4,FALSE),\"\")","v":""},"",null,null,null,null,null,null,null,null,null,null,null,null,null,null,null,null,null,null,null,null,null,null,null,null,null,null,null,null,null,null,null,null,null,null,null,null,null,null,null,null,null,null,null,null,-500000,500000,null,1,1,31,null,0,0,0,null,{"$f":"AND(B172=$C$9,'Standing Data'!$D$9<>\"Multi-academy Trust\")","v":{"$error":"#N/A"}}]
[{"$f":"IF(B173<>\"\",IF('Standing Data'!$D$9<>\"Multi-academy Trust\",IF('Standing Data'!$D$15=B173,\"Error - counterparty with self\",\"\"),IF(N(ISNA(MATCH(B173,'Standing Data'!$E$49:$E$148,0)))<>0,\"\",\"Error - counterparty with self\")),\"\")","v":""},{"$f":"IF(C173<>\"\",VLOOKUP(C173,'CP IDs'!A$2:B$5122,2,FALSE),\"\")","v":""},null,{"$f":"IFERROR(VLOOKUP(C173,'CP IDs'!$A$2:$D$4422,4,FALSE),\"\")","v":""},"",null,null,null,null,null,null,null,null,null,null,null,null,null,null,null,null,null,null,null,null,null,null,null,null,null,null,null,null,null,null,null,null,null,null,null,null,null,null,null,null,null,null,null,null,-500000,500000,null,1,1,31,null,0,0,0,null,{"$f":"AND(B173=$C$9,'Standing Data'!$D$9<>\"Multi-academy Trust\")","v":{"$error":"#N/A"}}]
[{"$f":"IF(B174<>\"\",IF('Standing Data'!$D$9<>\"Multi-academy Trust\",IF('Standing Data'!$D$15=B174,\"Error - counterparty with self\",\"\"),IF(N(ISNA(MATCH(B174,'Standing Data'!$E$49:$E$148,0)))<>0,\"\",\"Error - counterparty with self\")),\"\")","v":""},{"$f":"IF(C174<>\"\",VLOOKUP(C174,'CP IDs'!A$2:B$5122,2,FALSE),\"\")","v":""},null,{"$f":"IFERROR(VLOOKUP(C174,'CP IDs'!$A$2:$D$4422,4,FALSE),\"\")","v":""},"",null,null,null,null,null,null,null,null,null,null,null,null,null,null,null,null,null,null,null,null,null,null,null,null,null,null,null,null,null,null,null,null,null,null,null,null,null,null,null,null,null,null,null,null,-500000,500000,null,1,1,31,null,0,0,0,null,{"$f":"AND(B174=$C$9,'Standing Data'!$D$9<>\"Multi-academy Trust\")","v":{"$error":"#N/A"}}]
[{"$f":"IF(B175<>\"\",IF('Standing Data'!$D$9<>\"Multi-academy Trust\",IF('Standing Data'!$D$15=B175,\"Error - counterparty with self\",\"\"),IF(N(ISNA(MATCH(B175,'Standing Data'!$E$49:$E$148,0)))<>0,\"\",\"Error - counterparty with self\")),\"\")","v":""},{"$f":"IF(C175<>\"\",VLOOKUP(C175,'CP IDs'!A$2:B$5122,2,FALSE),\"\")","v":""},null,{"$f":"IFERROR(VLOOKUP(C175,'CP IDs'!$A$2:$D$4422,4,FALSE),\"\")","v":""},"",null,null,null,null,null,null,null,null,null,null,null,null,null,null,null,null,null,null,null,null,null,null,null,null,null,null,null,null,null,null,null,null,null,null,null,null,null,null,null,null,null,null,null,null,-500000,500000,null,1,1,31,null,0,0,0,null,{"$f":"AND(B175=$C$9,'Standing Data'!$D$9<>\"Multi-academy Trust\")","v":{"$error":"#N/A"}}]
[{"$f":"IF(B176<>\"\",IF('Standing Data'!$D$9<>\"Multi-academy Trust\",IF('Standing Data'!$D$15=B176,\"Error - counterparty with self\",\"\"),IF(N(ISNA(MATCH(B176,'Standing Data'!$E$49:$E$148,0)))<>0,\"\",\"Error - counterparty with self\")),\"\")","v":""},{"$f":"IF(C176<>\"\",VLOOKUP(C176,'CP IDs'!A$2:B$5122,2,FALSE),\"\")","v":""},null,{"$f":"IFERROR(VLOOKUP(C176,'CP IDs'!$A$2:$D$4422,4,FALSE),\"\")","v":""},"",null,null,null,null,null,null,null,null,null,null,null,null,null,null,null,null,null,null,null,null,null,null,null,null,null,null,null,null,null,null,null,null,null,null,null,null,null,null,null,null,null,null,null,null,-500000,500000,null,1,1,31,null,0,0,0,null,{"$f":"AND(B176=$C$9,'Standing Data'!$D$9<>\"Multi-academy Trust\")","v":{"$error":"#N/A"}}]
[{"$f":"IF(B177<>\"\",IF('Standing Data'!$D$9<>\"Multi-academy Trust\",IF('Standing Data'!$D$15=B177,\"Error - counterparty with self\",\"\"),IF(N(ISNA(MATCH(B177,'Standing Data'!$E$49:$E$148,0)))<>0,\"\",\"Error - counterparty with self\")),\"\")","v":""},{"$f":"IF(C177<>\"\",VLOOKUP(C177,'CP IDs'!A$2:B$5122,2,FALSE),\"\")","v":""},null,{"$f":"IFERROR(VLOOKUP(C177,'CP IDs'!$A$2:$D$4422,4,FALSE),\"\")","v":""},"",null,null,null,null,null,null,null,null,null,null,null,null,null,null,null,null,null,null,null,null,null,null,null,null,null,null,null,null,null,null,null,null,null,null,null,null,null,null,null,null,null,null,null,null,-500000,500000,null,1,1,31,null,0,0,0,null,{"$f":"AND(B177=$C$9,'Standing Data'!$D$9<>\"Multi-academy Trust\")","v":{"$error":"#N/A"}}]
[{"$f":"IF(B178<>\"\",IF('Standing Data'!$D$9<>\"Multi-academy Trust\",IF('Standing Data'!$D$15=B178,\"Error - counterparty with self\",\"\"),IF(N(ISNA(MATCH(B178,'Standing Data'!$E$49:$E$148,0)))<>0,\"\",\"Error - counterparty with self\")),\"\")","v":""},{"$f":"IF(C178<>\"\",VLOOKUP(C178,'CP IDs'!A$2:B$5122,2,FALSE),\"\")","v":""},null,{"$f":"IFERROR(VLOOKUP(C178,'CP IDs'!$A$2:$D$4422,4,FALSE),\"\")","v":""},"",null,null,null,null,null,null,null,null,null,null,null,null,null,null,null,null,null,null,null,null,null,null,null,null,null,null,null,null,null,null,null,null,null,null,null,null,null,null,null,null,null,null,null,null,-500000,500000,null,1,1,31,null,0,0,0,null,{"$f":"AND(B178=$C$9,'Standing Data'!$D$9<>\"Multi-academy Trust\")","v":{"$error":"#N/A"}}]
[{"$f":"IF(B179<>\"\",IF('Standing Data'!$D$9<>\"Multi-academy Trust\",IF('Standing Data'!$D$15=B179,\"Error - counterparty with self\",\"\"),IF(N(ISNA(MATCH(B179,'Standing Data'!$E$49:$E$148,0)))<>0,\"\",\"Error - counterparty with self\")),\"\")","v":""},{"$f":"IF(C179<>\"\",VLOOKUP(C179,'CP IDs'!A$2:B$5122,2,FALSE),\"\")","v":""},null,{"$f":"IFERROR(VLOOKUP(C179,'CP IDs'!$A$2:$D$4422,4,FALSE),\"\")","v":""},"",null,null,null,null,null,null,null,null,null,null,null,null,null,null,null,null,null,null,null,null,null,null,null,null,null,null,null,null,null,null,null,null,null,null,null,null,null,null,null,null,null,null,null,null,-500000,500000,null,1,1,31,null,0,0,0,null,{"$f":"AND(B179=$C$9,'Standing Data'!$D$9<>\"Multi-academy Trust\")","v":{"$error":"#N/A"}}]
[{"$f":"IF(B180<>\"\",IF('Standing Data'!$D$9<>\"Multi-academy Trust\",IF('Standing Data'!$D$15=B180,\"Error - counterparty with self\",\"\"),IF(N(ISNA(MATCH(B180,'Standing Data'!$E$49:$E$148,0)))<>0,\"\",\"Error - counterparty with self\")),\"\")","v":""},{"$f":"IF(C180<>\"\",VLOOKUP(C180,'CP IDs'!A$2:B$5122,2,FALSE),\"\")","v":""},null,{"$f":"IFERROR(VLOOKUP(C180,'CP IDs'!$A$2:$D$4422,4,FALSE),\"\")","v":""},"",null,null,null,null,null,null,null,null,null,null,null,null,null,null,null,null,null,null,null,null,null,null,null,null,null,null,null,null,null,null,null,null,null,null,null,null,null,null,null,null,null,null,null,null,-500000,500000,null,1,1,31,null,0,0,0,null,{"$f":"AND(B180=$C$9,'Standing Data'!$D$9<>\"Multi-academy Trust\")","v":{"$error":"#N/A"}}]
[{"$f":"IF(B181<>\"\",IF('Standing Data'!$D$9<>\"Multi-academy Trust\",IF('Standing Data'!$D$15=B181,\"Error - counterparty with self\",\"\"),IF(N(ISNA(MATCH(B181,'Standing Data'!$E$49:$E$148,0)))<>0,\"\",\"Error - counterparty with self\")),\"\")","v":""},{"$f":"IF(C181<>\"\",VLOOKUP(C181,'CP IDs'!A$2:B$5122,2,FALSE),\"\")","v":""},null,{"$f":"IFERROR(VLOOKUP(C181,'CP IDs'!$A$2:$D$4422,4,FALSE),\"\")","v":""},"",null,null,null,null,null,null,null,null,null,null,null,null,null,null,null,null,null,null,null,null,null,null,null,null,null,null,null,null,null,null,null,null,null,null,null,null,null,null,null,null,null,null,null,null,-500000,500000,null,1,1,31,null,0,0,0,null,{"$f":"AND(B181=$C$9,'Standing Data'!$D$9<>\"Multi-academy Trust\")","v":{"$error":"#N/A"}}]
[{"$f":"IF(B182<>\"\",IF('Standing Data'!$D$9<>\"Multi-academy Trust\",IF('Standing Data'!$D$15=B182,\"Error - counterparty with self\",\"\"),IF(N(ISNA(MATCH(B182,'Standing Data'!$E$49:$E$148,0)))<>0,\"\",\"Error - counterparty with self\")),\"\")","v":""},{"$f":"IF(C182<>\"\",VLOOKUP(C182,'CP IDs'!A$2:B$5122,2,FALSE),\"\")","v":""},null,{"$f":"IFERROR(VLOOKUP(C182,'CP IDs'!$A$2:$D$4422,4,FALSE),\"\")","v":""},"",null,null,null,null,null,null,null,null,null,null,null,null,null,null,null,null,null,null,null,null,null,null,null,null,null,null,null,null,null,null,null,null,null,null,null,null,null,null,null,null,null,null,null,null,-500000,500000,null,1,1,31,null,0,0,0,null,{"$f":"AND(B182=$C$9,'Standing Data'!$D$9<>\"Multi-academy Trust\")","v":{"$error":"#N/A"}}]
[{"$f":"IF(B183<>\"\",IF('Standing Data'!$D$9<>\"Multi-academy Trust\",IF('Standing Data'!$D$15=B183,\"Error - counterparty with self\",\"\"),IF(N(ISNA(MATCH(B183,'Standing Data'!$E$49:$E$148,0)))<>0,\"\",\"Error - counterparty with self\")),\"\")","v":""},{"$f":"IF(C183<>\"\",VLOOKUP(C183,'CP IDs'!A$2:B$5122,2,FALSE),\"\")","v":""},null,{"$f":"IFERROR(VLOOKUP(C183,'CP IDs'!$A$2:$D$4422,4,FALSE),\"\")","v":""},"",null,null,null,null,null,null,null,null,null,null,null,null,null,null,null,null,null,null,null,null,null,null,null,null,null,null,null,null,null,null,null,null,null,null,null,null,null,null,null,null,null,null,null,null,-500000,500000,null,1,1,31,null,0,0,0,null,{"$f":"AND(B183=$C$9,'Standing Data'!$D$9<>\"Multi-academy Trust\")","v":{"$error":"#N/A"}}]
[{"$f":"IF(B184<>\"\",IF('Standing Data'!$D$9<>\"Multi-academy Trust\",IF('Standing Data'!$D$15=B184,\"Error - counterparty with self\",\"\"),IF(N(ISNA(MATCH(B184,'Standing Data'!$E$49:$E$148,0)))<>0,\"\",\"Error - counterparty with self\")),\"\")","v":""},{"$f":"IF(C184<>\"\",VLOOKUP(C184,'CP IDs'!A$2:B$5122,2,FALSE),\"\")","v":""},null,{"$f":"IFERROR(VLOOKUP(C184,'CP IDs'!$A$2:$D$4422,4,FALSE),\"\")","v":""},"",null,null,null,null,null,null,null,null,null,null,null,null,null,null,null,null,null,null,null,null,null,null,null,null,null,null,null,null,null,null,null,null,null,null,null,null,null,null,null,null,null,null,null,null,-500000,500000,null,1,1,31,null,0,0,0,null,{"$f":"AND(B184=$C$9,'Standing Data'!$D$9<>\"Multi-academy Trust\")","v":{"$error":"#N/A"}}]
[{"$f":"IF(B185<>\"\",IF('Standing Data'!$D$9<>\"Multi-academy Trust\",IF('Standing Data'!$D$15=B185,\"Error - counterparty with self\",\"\"),IF(N(ISNA(MATCH(B185,'Standing Data'!$E$49:$E$148,0)))<>0,\"\",\"Error - counterparty with self\")),\"\")","v":""},{"$f":"IF(C185<>\"\",VLOOKUP(C185,'CP IDs'!A$2:B$5122,2,FALSE),\"\")","v":""},null,{"$f":"IFERROR(VLOOKUP(C185,'CP IDs'!$A$2:$D$4422,4,FALSE),\"\")","v":""},"",null,null,null,null,null,null,null,null,null,null,null,null,null,null,null,null,null,null,null,null,null,null,null,null,null,null,null,null,null,null,null,null,null,null,null,null,null,null,null,null,null,null,null,null,-500000,500000,null,1,1,31,null,0,0,0,null,{"$f":"AND(B185=$C$9,'Standing Data'!$D$9<>\"Multi-academy Trust\")","v":{"$error":"#N/A"}}]
[{"$f":"IF(B186<>\"\",IF('Standing Data'!$D$9<>\"Multi-academy Trust\",IF('Standing Data'!$D$15=B186,\"Error - counterparty with self\",\"\"),IF(N(ISNA(MATCH(B186,'Standing Data'!$E$49:$E$148,0)))<>0,\"\",\"Error - counterparty with self\")),\"\")","v":""},{"$f":"IF(C186<>\"\",VLOOKUP(C186,'CP IDs'!A$2:B$5122,2,FALSE),\"\")","v":""},null,{"$f":"IFERROR(VLOOKUP(C186,'CP IDs'!$A$2:$D$4422,4,FALSE),\"\")","v":""},"",null,null,null,null,null,null,null,null,null,null,null,null,null,null,null,null,null,null,null,null,null,null,null,null,null,null,null,null,null,null,null,null,null,null,null,null,null,null,null,null,null,null,null,null,-500000,500000,null,1,1,31,null,0,0,0,null,{"$f":"AND(B186=$C$9,'Standing Data'!$D$9<>\"Multi-academy Trust\")","v":{"$error":"#N/A"}}]
[{"$f":"IF(B187<>\"\",IF('Standing Data'!$D$9<>\"Multi-academy Trust\",IF('Standing Data'!$D$15=B187,\"Error - counterparty with self\",\"\"),IF(N(ISNA(MATCH(B187,'Standing Data'!$E$49:$E$148,0)))<>0,\"\",\"Error - counterparty with self\")),\"\")","v":""},{"$f":"IF(C187<>\"\",VLOOKUP(C187,'CP IDs'!A$2:B$5122,2,FALSE),\"\")","v":""},null,{"$f":"IFERROR(VLOOKUP(C187,'CP IDs'!$A$2:$D$4422,4,FALSE),\"\")","v":""},"",null,null,null,null,null,null,null,null,null,null,null,null,null,null,null,null,null,null,null,null,null,null,null,null,null,null,null,null,null,null,null,null,null,null,null,null,null,null,null,null,null,null,null,null,-500000,500000,null,1,1,31,null,0,0,0,null,{"$f":"AND(B187=$C$9,'Standing Data'!$D$9<>\"Multi-academy Trust\")","v":{"$error":"#N/A"}}]
[{"$f":"IF(B188<>\"\",IF('Standing Data'!$D$9<>\"Multi-academy Trust\",IF('Standing Data'!$D$15=B188,\"Error - counterparty with self\",\"\"),IF(N(ISNA(MATCH(B188,'Standing Data'!$E$49:$E$148,0)))<>0,\"\",\"Error - counterparty with self\")),\"\")","v":""},{"$f":"IF(C188<>\"\",VLOOKUP(C188,'CP IDs'!A$2:B$5122,2,FALSE),\"\")","v":""},null,{"$f":"IFERROR(VLOOKUP(C188,'CP IDs'!$A$2:$D$4422,4,FALSE),\"\")","v":""},"",null,null,null,null,null,null,null,null,null,null,null,null,null,null,null,null,null,null,null,null,null,null,null,null,null,null,null,null,null,null,null,null,null,null,null,null,null,null,null,null,null,null,null,null,-500000,500000,null,1,1,31,null,0,0,0,null,{"$f":"AND(B188=$C$9,'Standing Data'!$D$9<>\"Multi-academy Trust\")","v":{"$error":"#N/A"}}]
[{"$f":"IF(B189<>\"\",IF('Standing Data'!$D$9<>\"Multi-academy Trust\",IF('Standing Data'!$D$15=B189,\"Error - counterparty with self\",\"\"),IF(N(ISNA(MATCH(B189,'Standing Data'!$E$49:$E$148,0)))<>0,\"\",\"Error - counterparty with self\")),\"\")","v":""},{"$f":"IF(C189<>\"\",VLOOKUP(C189,'CP IDs'!A$2:B$5122,2,FALSE),\"\")","v":""},null,{"$f":"IFERROR(VLOOKUP(C189,'CP IDs'!$A$2:$D$4422,4,FALSE),\"\")","v":""},"",null,null,null,null,null,null,null,null,null,null,null,null,null,null,null,null,null,null,null,null,null,null,null,null,null,null,null,null,null,null,null,null,null,null,null,null,null,null,null,null,null,null,null,null,-500000,500000,null,1,1,31,null,0,0,0,null,{"$f":"AND(B189=$C$9,'Standing Data'!$D$9<>\"Multi-academy Trust\")","v":{"$error":"#N/A"}}]
[{"$f":"IF(B190<>\"\",IF('Standing Data'!$D$9<>\"Multi-academy Trust\",IF('Standing Data'!$D$15=B190,\"Error - counterparty with self\",\"\"),IF(N(ISNA(MATCH(B190,'Standing Data'!$E$49:$E$148,0)))<>0,\"\",\"Error - counterparty with self\")),\"\")","v":""},{"$f":"IF(C190<>\"\",VLOOKUP(C190,'CP IDs'!A$2:B$5122,2,FALSE),\"\")","v":""},null,{"$f":"IFERROR(VLOOKUP(C190,'CP IDs'!$A$2:$D$4422,4,FALSE),\"\")","v":""},"",null,null,null,null,null,null,null,null,null,null,null,null,null,null,null,null,null,null,null,null,null,null,null,null,null,null,null,null,null,null,null,null,null,null,null,null,null,null,null,null,null,null,null,null,-500000,500000,null,1,1,31,null,0,0,0,null,{"$f":"AND(B190=$C$9,'Standing Data'!$D$9<>\"Multi-academy Trust\")","v":{"$error":"#N/A"}}]
[{"$f":"IF(B191<>\"\",IF('Standing Data'!$D$9<>\"Multi-academy Trust\",IF('Standing Data'!$D$15=B191,\"Error - counterparty with self\",\"\"),IF(N(ISNA(MATCH(B191,'Standing Data'!$E$49:$E$148,0)))<>0,\"\",\"Error - counterparty with self\")),\"\")","v":""},{"$f":"IF(C191<>\"\",VLOOKUP(C191,'CP IDs'!A$2:B$5122,2,FALSE),\"\")","v":""},null,{"$f":"IFERROR(VLOOKUP(C191,'CP IDs'!$A$2:$D$4422,4,FALSE),\"\")","v":""},"",null,null,null,null,null,null,null,null,null,null,null,null,null,null,null,null,null,null,null,null,null,null,null,null,null,null,null,null,null,null,null,null,null,null,null,null,null,null,null,null,null,null,null,null,-500000,500000,null,1,1,31,null,0,0,0,null,{"$f":"AND(B191=$C$9,'Standing Data'!$D$9<>\"Multi-academy Trust\")","v":{"$error":"#N/A"}}]
[{"$f":"IF(B192<>\"\",IF('Standing Data'!$D$9<>\"Multi-academy Trust\",IF('Standing Data'!$D$15=B192,\"Error - counterparty with self\",\"\"),IF(N(ISNA(MATCH(B192,'Standing Data'!$E$49:$E$148,0)))<>0,\"\",\"Error - counterparty with self\")),\"\")","v":""},{"$f":"IF(C192<>\"\",VLOOKUP(C192,'CP IDs'!A$2:B$5122,2,FALSE),\"\")","v":""},null,{"$f":"IFERROR(VLOOKUP(C192,'CP IDs'!$A$2:$D$4422,4,FALSE),\"\")","v":""},"",null,null,null,null,null,null,null,null,null,null,null,null,null,null,null,null,null,null,null,null,null,null,null,null,null,null,null,null,null,null,null,null,null,null,null,null,null,null,null,null,null,null,null,null,-500000,500000,null,1,1,31,null,0,0,0,null,{"$f":"AND(B192=$C$9,'Standing Data'!$D$9<>\"Multi-academy Trust\")","v":{"$error":"#N/A"}}]
[{"$f":"IF(B193<>\"\",IF('Standing Data'!$D$9<>\"Multi-academy Trust\",IF('Standing Data'!$D$15=B193,\"Error - counterparty with self\",\"\"),IF(N(ISNA(MATCH(B193,'Standing Data'!$E$49:$E$148,0)))<>0,\"\",\"Error - counterparty with self\")),\"\")","v":""},{"$f":"IF(C193<>\"\",VLOOKUP(C193,'CP IDs'!A$2:B$5122,2,FALSE),\"\")","v":""},null,{"$f":"IFERROR(VLOOKUP(C193,'CP IDs'!$A$2:$D$4422,4,FALSE),\"\")","v":""},"",null,null,null,null,null,null,null,null,null,null,null,null,null,null,null,null,null,null,null,null,null,null,null,null,null,null,null,null,null,null,null,null,null,null,null,null,null,null,null,null,null,null,null,null,-500000,500000,null,1,1,31,null,0,0,0,null,{"$f":"AND(B193=$C$9,'Standing Data'!$D$9<>\"Multi-academy Trust\")","v":{"$error":"#N/A"}}]
[{"$f":"IF(B194<>\"\",IF('Standing Data'!$D$9<>\"Multi-academy Trust\",IF('Standing Data'!$D$15=B194,\"Error - counterparty with self\",\"\"),IF(N(ISNA(MATCH(B194,'Standing Data'!$E$49:$E$148,0)))<>0,\"\",\"Error - counterparty with self\")),\"\")","v":""},{"$f":"IF(C194<>\"\",VLOOKUP(C194,'CP IDs'!A$2:B$5122,2,FALSE),\"\")","v":""},null,{"$f":"IFERROR(VLOOKUP(C194,'CP IDs'!$A$2:$D$4422,4,FALSE),\"\")","v":""},"",null,null,null,null,null,null,null,null,null,null,null,null,null,null,null,null,null,null,null,null,null,null,null,null,null,null,null,null,null,null,null,null,null,null,null,null,null,null,null,null,null,null,null,null,-500000,500000,null,1,1,31,null,0,0,0,null,{"$f":"AND(B194=$C$9,'Standing Data'!$D$9<>\"Multi-academy Trust\")","v":{"$error":"#N/A"}}]
[{"$f":"IF(B195<>\"\",IF('Standing Data'!$D$9<>\"Multi-academy Trust\",IF('Standing Data'!$D$15=B195,\"Error - counterparty with self\",\"\"),IF(N(ISNA(MATCH(B195,'Standing Data'!$E$49:$E$148,0)))<>0,\"\",\"Error - counterparty with self\")),\"\")","v":""},{"$f":"IF(C195<>\"\",VLOOKUP(C195,'CP IDs'!A$2:B$5122,2,FALSE),\"\")","v":""},null,{"$f":"IFERROR(VLOOKUP(C195,'CP IDs'!$A$2:$D$4422,4,FALSE),\"\")","v":""},"",null,null,null,null,null,null,null,null,null,null,null,null,null,null,null,null,null,null,null,null,null,null,null,null,null,null,null,null,null,null,null,null,null,null,null,null,null,null,null,null,null,null,null,null,-500000,500000,null,1,1,31,null,0,0,0,null,{"$f":"AND(B195=$C$9,'Standing Data'!$D$9<>\"Multi-academy Trust\")","v":{"$error":"#N/A"}}]
[{"$f":"IF(B196<>\"\",IF('Standing Data'!$D$9<>\"Multi-academy Trust\",IF('Standing Data'!$D$15=B196,\"Error - counterparty with self\",\"\"),IF(N(ISNA(MATCH(B196,'Standing Data'!$E$49:$E$148,0)))<>0,\"\",\"Error - counterparty with self\")),\"\")","v":""},{"$f":"IF(C196<>\"\",VLOOKUP(C196,'CP IDs'!A$2:B$5122,2,FALSE),\"\")","v":""},null,{"$f":"IFERROR(VLOOKUP(C196,'CP IDs'!$A$2:$D$4422,4,FALSE),\"\")","v":""},"",null,null,null,null,null,null,null,null,null,null,null,null,null,null,null,null,null,null,null,null,null,null,null,null,null,null,null,null,null,null,null,null,null,null,null,null,null,null,null,null,null,null,null,null,-500000,500000,null,1,1,31,null,0,0,0,null,{"$f":"AND(B196=$C$9,'Standing Data'!$D$9<>\"Multi-academy Trust\")","v":{"$error":"#N/A"}}]
[{"$f":"IF(B197<>\"\",IF('Standing Data'!$D$9<>\"Multi-academy Trust\",IF('Standing Data'!$D$15=B197,\"Error - counterparty with self\",\"\"),IF(N(ISNA(MATCH(B197,'Standing Data'!$E$49:$E$148,0)))<>0,\"\",\"Error - counterparty with self\")),\"\")","v":""},{"$f":"IF(C197<>\"\",VLOOKUP(C197,'CP IDs'!A$2:B$5122,2,FALSE),\"\")","v":""},null,{"$f":"IFERROR(VLOOKUP(C197,'CP IDs'!$A$2:$D$4422,4,FALSE),\"\")","v":""},"",null,null,null,null,null,null,null,null,null,null,null,null,null,null,null,null,null,null,null,null,null,null,null,null,null,null,null,null,null,null,null,null,null,null,null,null,null,null,null,null,null,null,null,null,-500000,500000,null,1,1,31,null,0,0,0,null,{"$f":"AND(B197=$C$9,'Standing Data'!$D$9<>\"Multi-academy Trust\")","v":{"$error":"#N/A"}}]
[{"$f":"IF(B198<>\"\",IF('Standing Data'!$D$9<>\"Multi-academy Trust\",IF('Standing Data'!$D$15=B198,\"Error - counterparty with self\",\"\"),IF(N(ISNA(MATCH(B198,'Standing Data'!$E$49:$E$148,0)))<>0,\"\",\"Error - counterparty with self\")),\"\")","v":""},{"$f":"IF(C198<>\"\",VLOOKUP(C198,'CP IDs'!A$2:B$5122,2,FALSE),\"\")","v":""},null,{"$f":"IFERROR(VLOOKUP(C198,'CP IDs'!$A$2:$D$4422,4,FALSE),\"\")","v":""},"",null,null,null,null,null,null,null,null,null,null,null,null,null,null,null,null,null,null,null,null,null,null,null,null,null,null,null,null,null,null,null,null,null,null,null,null,null,null,null,null,null,null,null,null,-500000,500000,null,1,1,31,null,0,0,0,null,{"$f":"AND(B198=$C$9,'Standing Data'!$D$9<>\"Multi-academy Trust\")","v":{"$error":"#N/A"}}]
[{"$f":"IF(B199<>\"\",IF('Standing Data'!$D$9<>\"Multi-academy Trust\",IF('Standing Data'!$D$15=B199,\"Error - counterparty with self\",\"\"),IF(N(ISNA(MATCH(B199,'Standing Data'!$E$49:$E$148,0)))<>0,\"\",\"Error - counterparty with self\")),\"\")","v":""},{"$f":"IF(C199<>\"\",VLOOKUP(C199,'CP IDs'!A$2:B$5122,2,FALSE),\"\")","v":""},null,{"$f":"IFERROR(VLOOKUP(C199,'CP IDs'!$A$2:$D$4422,4,FALSE),\"\")","v":""},"",null,null,null,null,null,null,null,null,null,null,null,null,null,null,null,null,null,null,null,null,null,null,null,null,null,null,null,null,null,null,null,null,null,null,null,null,null,null,null,null,null,null,null,null,-500000,500000,null,1,1,31,null,0,0,0,null,{"$f":"AND(B199=$C$9,'Standing Data'!$D$9<>\"Multi-academy Trust\")","v":{"$error":"#N/A"}}]
[{"$f":"IF(B200<>\"\",IF('Standing Data'!$D$9<>\"Multi-academy Trust\",IF('Standing Data'!$D$15=B200,\"Error - counterparty with self\",\"\"),IF(N(ISNA(MATCH(B200,'Standing Data'!$E$49:$E$148,0)))<>0,\"\",\"Error - counterparty with self\")),\"\")","v":""},{"$f":"IF(C200<>\"\",VLOOKUP(C200,'CP IDs'!A$2:B$5122,2,FALSE),\"\")","v":""},null,{"$f":"IFERROR(VLOOKUP(C200,'CP IDs'!$A$2:$D$4422,4,FALSE),\"\")","v":""},"",null,null,null,null,null,null,null,null,null,null,null,null,null,null,null,null,null,null,null,null,null,null,null,null,null,null,null,null,null,null,null,null,null,null,null,null,null,null,null,null,null,null,null,null,-500000,500000,null,1,1,31,null,0,0,0,null,{"$f":"AND(B200=$C$9,'Standing Data'!$D$9<>\"Multi-academy Trust\")","v":{"$error":"#N/A"}}]
[{"$f":"IF(B201<>\"\",IF('Standing Data'!$D$9<>\"Multi-academy Trust\",IF('Standing Data'!$D$15=B201,\"Error - counterparty with self\",\"\"),IF(N(ISNA(MATCH(B201,'Standing Data'!$E$49:$E$148,0)))<>0,\"\",\"Error - counterparty with self\")),\"\")","v":""},{"$f":"IF(C201<>\"\",VLOOKUP(C201,'CP IDs'!A$2:B$5122,2,FALSE),\"\")","v":""},null,{"$f":"IFERROR(VLOOKUP(C201,'CP IDs'!$A$2:$D$4422,4,FALSE),\"\")","v":""},"",null,null,null,null,null,null,null,null,null,null,null,null,null,null,null,null,null,null,null,null,null,null,null,null,null,null,null,null,null,null,null,null,null,null,null,null,null,null,null,null,null,null,null,null,-500000,500000,null,1,1,31,null,0,0,0,null,{"$f":"AND(B201=$C$9,'Standing Data'!$D$9<>\"Multi-academy Trust\")","v":{"$error":"#N/A"}}]
[{"$f":"IF(B202<>\"\",IF('Standing Data'!$D$9<>\"Multi-academy Trust\",IF('Standing Data'!$D$15=B202,\"Error - counterparty with self\",\"\"),IF(N(ISNA(MATCH(B202,'Standing Data'!$E$49:$E$148,0)))<>0,\"\",\"Error - counterparty with self\")),\"\")","v":""},{"$f":"IF(C202<>\"\",VLOOKUP(C202,'CP IDs'!A$2:B$5122,2,FALSE),\"\")","v":""},null,{"$f":"IFERROR(VLOOKUP(C202,'CP IDs'!$A$2:$D$4422,4,FALSE),\"\")","v":""},"",null,null,null,null,null,null,null,null,null,null,null,null,null,null,null,null,null,null,null,null,null,null,null,null,null,null,null,null,null,null,null,null,null,null,null,null,null,null,null,null,null,null,null,null,-500000,500000,null,1,1,31,null,0,0,0,null,{"$f":"AND(B202=$C$9,'Standing Data'!$D$9<>\"Multi-academy Trust\")","v":{"$error":"#N/A"}}]
[{"$f":"IF(B203<>\"\",IF('Standing Data'!$D$9<>\"Multi-academy Trust\",IF('Standing Data'!$D$15=B203,\"Error - counterparty with self\",\"\"),IF(N(ISNA(MATCH(B203,'Standing Data'!$E$49:$E$148,0)))<>0,\"\",\"Error - counterparty with self\")),\"\")","v":""},{"$f":"IF(C203<>\"\",VLOOKUP(C203,'CP IDs'!A$2:B$5122,2,FALSE),\"\")","v":""},null,{"$f":"IFERROR(VLOOKUP(C203,'CP IDs'!$A$2:$D$4422,4,FALSE),\"\")","v":""},"",null,null,null,null,null,null,null,null,null,null,null,null,null,null,null,null,null,null,null,null,null,null,null,null,null,null,null,null,null,null,null,null,null,null,null,null,null,null,null,null,null,null,null,null,-500000,500000,null,1,1,31,null,0,0,0,null,{"$f":"AND(B203=$C$9,'Standing Data'!$D$9<>\"Multi-academy Trust\")","v":{"$error":"#N/A"}}]
[{"$f":"IF(B204<>\"\",IF('Standing Data'!$D$9<>\"Multi-academy Trust\",IF('Standing Data'!$D$15=B204,\"Error - counterparty with self\",\"\"),IF(N(ISNA(MATCH(B204,'Standing Data'!$E$49:$E$148,0)))<>0,\"\",\"Error - counterparty with self\")),\"\")","v":""},{"$f":"IF(C204<>\"\",VLOOKUP(C204,'CP IDs'!A$2:B$5122,2,FALSE),\"\")","v":""},null,{"$f":"IFERROR(VLOOKUP(C204,'CP IDs'!$A$2:$D$4422,4,FALSE),\"\")","v":""},"",null,null,null,null,null,null,null,null,null,null,null,null,null,null,null,null,null,null,null,null,null,null,null,null,null,null,null,null,null,null,null,null,null,null,null,null,null,null,null,null,null,null,null,null,-500000,500000,null,1,1,31,null,0,0,0,null,{"$f":"AND(B204=$C$9,'Standing Data'!$D$9<>\"Multi-academy Trust\")","v":{"$error":"#N/A"}}]
[{"$f":"IF(B205<>\"\",IF('Standing Data'!$D$9<>\"Multi-academy Trust\",IF('Standing Data'!$D$15=B205,\"Error - counterparty with self\",\"\"),IF(N(ISNA(MATCH(B205,'Standing Data'!$E$49:$E$148,0)))<>0,\"\",\"Error - counterparty with self\")),\"\")","v":""},{"$f":"IF(C205<>\"\",VLOOKUP(C205,'CP IDs'!A$2:B$5122,2,FALSE),\"\")","v":""},null,{"$f":"IFERROR(VLOOKUP(C205,'CP IDs'!$A$2:$D$4422,4,FALSE),\"\")","v":""},"",null,null,null,null,null,null,null,null,null,null,null,null,null,null,null,null,null,null,null,null,null,null,null,null,null,null,null,null,null,null,null,null,null,null,null,null,null,null,null,null,null,null,null,null,-500000,500000,null,1,1,31,null,0,0,0,null,{"$f":"AND(B205=$C$9,'Standing Data'!$D$9<>\"Multi-academy Trust\")","v":{"$error":"#N/A"}}]
[{"$f":"IF(B206<>\"\",IF('Standing Data'!$D$9<>\"Multi-academy Trust\",IF('Standing Data'!$D$15=B206,\"Error - counterparty with self\",\"\"),IF(N(ISNA(MATCH(B206,'Standing Data'!$E$49:$E$148,0)))<>0,\"\",\"Error - counterparty with self\")),\"\")","v":""},{"$f":"IF(C206<>\"\",VLOOKUP(C206,'CP IDs'!A$2:B$5122,2,FALSE),\"\")","v":""},null,{"$f":"IFERROR(VLOOKUP(C206,'CP IDs'!$A$2:$D$4422,4,FALSE),\"\")","v":""},"",null,null,null,null,null,null,null,null,null,null,null,null,null,null,null,null,null,null,null,null,null,null,null,null,null,null,null,null,null,null,null,null,null,null,null,null,null,null,null,null,null,null,null,null,-500000,500000,null,1,1,31,null,0,0,0,null,{"$f":"AND(B206=$C$9,'Standing Data'!$D$9<>\"Multi-academy Trust\")","v":{"$error":"#N/A"}}]
[{"$f":"IF(B207<>\"\",IF('Standing Data'!$D$9<>\"Multi-academy Trust\",IF('Standing Data'!$D$15=B207,\"Error - counterparty with self\",\"\"),IF(N(ISNA(MATCH(B207,'Standing Data'!$E$49:$E$148,0)))<>0,\"\",\"Error - counterparty with self\")),\"\")","v":""},{"$f":"IF(C207<>\"\",VLOOKUP(C207,'CP IDs'!A$2:B$5122,2,FALSE),\"\")","v":""},null,{"$f":"IFERROR(VLOOKUP(C207,'CP IDs'!$A$2:$D$4422,4,FALSE),\"\")","v":""},"",null,null,null,null,null,null,null,null,null,null,null,null,null,null,null,null,null,null,null,null,null,null,null,null,null,null,null,null,null,null,null,null,null,null,null,null,null,null,null,null,null,null,null,null,-500000,500000,null,1,1,31,null,0,0,0,null,{"$f":"AND(B207=$C$9,'Standing Data'!$D$9<>\"Multi-academy Trust\")","v":{"$error":"#N/A"}}]
[{"$f":"IF(B208<>\"\",IF('Standing Data'!$D$9<>\"Multi-academy Trust\",IF('Standing Data'!$D$15=B208,\"Error - counterparty with self\",\"\"),IF(N(ISNA(MATCH(B208,'Standing Data'!$E$49:$E$148,0)))<>0,\"\",\"Error - counterparty with self\")),\"\")","v":""},{"$f":"IF(C208<>\"\",VLOOKUP(C208,'CP IDs'!A$2:B$5122,2,FALSE),\"\")","v":""},null,{"$f":"IFERROR(VLOOKUP(C208,'CP IDs'!$A$2:$D$4422,4,FALSE),\"\")","v":""},"",null,null,null,null,null,null,null,null,null,null,null,null,null,null,null,null,null,null,null,null,null,null,null,null,null,null,null,null,null,null,null,null,null,null,null,null,null,null,null,null,null,null,null,null,-500000,500000,null,1,1,31,null,0,0,0,null,{"$f":"AND(B208=$C$9,'Standing Data'!$D$9<>\"Multi-academy Trust\")","v":{"$error":"#N/A"}}]
[{"$f":"IF(B209<>\"\",IF('Standing Data'!$D$9<>\"Multi-academy Trust\",IF('Standing Data'!$D$15=B209,\"Error - counterparty with self\",\"\"),IF(N(ISNA(MATCH(B209,'Standing Data'!$E$49:$E$148,0)))<>0,\"\",\"Error - counterparty with self\")),\"\")","v":""},{"$f":"IF(C209<>\"\",VLOOKUP(C209,'CP IDs'!A$2:B$5122,2,FALSE),\"\")","v":""},null,{"$f":"IFERROR(VLOOKUP(C209,'CP IDs'!$A$2:$D$4422,4,FALSE),\"\")","v":""},"",null,null,null,null,null,null,null,null,null,null,null,null,null,null,null,null,null,null,null,null,null,null,null,null,null,null,null,null,null,null,null,null,null,null,null,null,null,null,null,null,null,null,null,null,-500000,500000,null,1,1,31,null,0,0,0,null,{"$f":"AND(B209=$C$9,'Standing Data'!$D$9<>\"Multi-academy Trust\")","v":{"$error":"#N/A"}}]
[{"$f":"IF(B210<>\"\",IF('Standing Data'!$D$9<>\"Multi-academy Trust\",IF('Standing Data'!$D$15=B210,\"Error - counterparty with self\",\"\"),IF(N(ISNA(MATCH(B210,'Standing Data'!$E$49:$E$148,0)))<>0,\"\",\"Error - counterparty with self\")),\"\")","v":""},{"$f":"IF(C210<>\"\",VLOOKUP(C210,'CP IDs'!A$2:B$5122,2,FALSE),\"\")","v":""},null,{"$f":"IFERROR(VLOOKUP(C210,'CP IDs'!$A$2:$D$4422,4,FALSE),\"\")","v":""},"",null,null,null,null,null,null,null,null,null,null,null,null,null,null,null,null,null,null,null,null,null,null,null,null,null,null,null,null,null,null,null,null,null,null,null,null,null,null,null,null,null,null,null,null,-500000,500000,null,1,1,31,null,0,0,0,null,{"$f":"AND(B210=$C$9,'Standing Data'!$D$9<>\"Multi-academy Trust\")","v":{"$error":"#N/A"}}]
[{"$f":"IF(B211<>\"\",IF('Standing Data'!$D$9<>\"Multi-academy Trust\",IF('Standing Data'!$D$15=B211,\"Error - counterparty with self\",\"\"),IF(N(ISNA(MATCH(B211,'Standing Data'!$E$49:$E$148,0)))<>0,\"\",\"Error - counterparty with self\")),\"\")","v":""},{"$f":"IF(C211<>\"\",VLOOKUP(C211,'CP IDs'!A$2:B$5122,2,FALSE),\"\")","v":""},null,{"$f":"IFERROR(VLOOKUP(C211,'CP IDs'!$A$2:$D$4422,4,FALSE),\"\")","v":""},"",null,null,null,null,null,null,null,null,null,null,null,null,null,null,null,null,null,null,null,null,null,null,null,null,null,null,null,null,null,null,null,null,null,null,null,null,null,null,null,null,null,null,null,null,-500000,500000,null,1,1,31,null,0,0,0,null,{"$f":"AND(B211=$C$9,'Standing Data'!$D$9<>\"Multi-academy Trust\")","v":{"$error":"#N/A"}}]
[{"$f":"IF(B212<>\"\",IF('Standing Data'!$D$9<>\"Multi-academy Trust\",IF('Standing Data'!$D$15=B212,\"Error - counterparty with self\",\"\"),IF(N(ISNA(MATCH(B212,'Standing Data'!$E$49:$E$148,0)))<>0,\"\",\"Error - counterparty with self\")),\"\")","v":""},{"$f":"IF(C212<>\"\",VLOOKUP(C212,'CP IDs'!A$2:B$5122,2,FALSE),\"\")","v":""},null,{"$f":"IFERROR(VLOOKUP(C212,'CP IDs'!$A$2:$D$4422,4,FALSE),\"\")","v":""},"",null,null,null,null,null,null,null,null,null,null,null,null,null,null,null,null,null,null,null,null,null,null,null,null,null,null,null,null,null,null,null,null,null,null,null,null,null,null,null,null,null,null,null,null,-500000,500000,null,1,1,31,null,0,0,0,null,{"$f":"AND(B212=$C$9,'Standing Data'!$D$9<>\"Multi-academy Trust\")","v":{"$error":"#N/A"}}]
[{"$f":"IF(B213<>\"\",IF('Standing Data'!$D$9<>\"Multi-academy Trust\",IF('Standing Data'!$D$15=B213,\"Error - counterparty with self\",\"\"),IF(N(ISNA(MATCH(B213,'Standing Data'!$E$49:$E$148,0)))<>0,\"\",\"Error - counterparty with self\")),\"\")","v":""},{"$f":"IF(C213<>\"\",VLOOKUP(C213,'CP IDs'!A$2:B$5122,2,FALSE),\"\")","v":""},null,{"$f":"IFERROR(VLOOKUP(C213,'CP IDs'!$A$2:$D$4422,4,FALSE),\"\")","v":""},"",null,null,null,null,null,null,null,null,null,null,null,null,null,null,null,null,null,null,null,null,null,null,null,null,null,null,null,null,null,null,null,null,null,null,null,null,null,null,null,null,null,null,null,null,-500000,500000,null,1,1,31,null,0,0,{"$f":"COUNT(F213:AT213)","v":0},null,{"$f":"AND(B213=$C$9,'Standing Data'!$D$9<>\"Multi-academy Trust\")","v":{"$error":"#N/A"}}]
[{"$f":"IF(B214<>\"\",IF('Standing Data'!$D$9<>\"Multi-academy Trust\",IF('Standing Data'!$D$15=B214,\"Error - counterparty with self\",\"\"),IF(N(ISNA(MATCH(B214,'Standing Data'!$E$49:$E$148,0)))<>0,\"\",\"Error - counterparty with self\")),\"\")","v":""},{"$f":"IF(C214<>\"\",VLOOKUP(C214,'CP IDs'!A$2:B$5122,2,FALSE),\"\")","v":""},null,{"$f":"IFERROR(VLOOKUP(C214,'CP IDs'!$A$2:$D$4422,4,FALSE),\"\")","v":""},"",null,null,null,null,null,null,null,null,null,null,null,null,null,null,null,null,null,null,null,null,null,null,null,null,null,null,null,null,null,null,null,null,null,null,null,null,null,null,null,null,null,null,null,null,-500000,500000,null,1,1,31,null,0,0,0,null,{"$f":"AND(B214=$C$9,'Standing Data'!$D$9<>\"Multi-academy Trust\")","v":{"$error":"#N/A"}}]
[{"$f":"IF(B215<>\"\",IF('Standing Data'!$D$9<>\"Multi-academy Trust\",IF('Standing Data'!$D$15=B215,\"Error - counterparty with self\",\"\"),IF(N(ISNA(MATCH(B215,'Standing Data'!$E$49:$E$148,0)))<>0,\"\",\"Error - counterparty with self\")),\"\")","v":""},{"$f":"IF(C215<>\"\",VLOOKUP(C215,'CP IDs'!A$2:B$5122,2,FALSE),\"\")","v":""},null,{"$f":"IFERROR(VLOOKUP(C215,'CP IDs'!$A$2:$D$4422,4,FALSE),\"\")","v":""},"",null,null,null,null,null,null,null,null,null,null,null,null,null,null,null,null,null,null,null,null,null,null,null,null,null,null,null,null,null,null,null,null,null,null,null,null,null,null,null,null,null,null,null,null,{"$f":"AX214","v":-500000},{"$f":"AY214","v":500000},null,1,1,31,null,0,0,0,null,{"$f":"AND(B215=$C$9,'Standing Data'!$D$9<>\"Multi-academy Trust\")","v":{"$error":"#N/A"}}]
[{"$f":"IF(B216<>\"\",IF('Standing Data'!$D$9<>\"Multi-academy Trust\",IF('Standing Data'!$D$15=B216,\"Error - counterparty with self\",\"\"),IF(N(ISNA(MATCH(B216,'Standing Data'!$E$49:$E$148,0)))<>0,\"\",\"Error - counterparty with self\")),\"\")","v":""},{"$f":"IF(C216<>\"\",VLOOKUP(C216,'CP IDs'!A$2:B$5122,2,FALSE),\"\")","v":""},null,{"$f":"IFERROR(VLOOKUP(C216,'CP IDs'!$A$2:$D$4422,4,FALSE),\"\")","v":""},"",null,null,null,null,null,null,null,null,null,null,null,null,null,null,null,null,null,null,null,null,null,null,null,null,null,null,null,null,null,null,null,null,null,null,null,null,null,null,null,null,null,null,null,null,-500000,500000,null,1,1,31,null,0,0,0,null,{"$f":"AND(B216=$C$9,'Standing Data'!$D$9<>\"Multi-academy Trust\")","v":{"$error":"#N/A"}}]
[{"$f":"IF(B217<>\"\",IF('Standing Data'!$D$9<>\"Multi-academy Trust\",IF('Standing Data'!$D$15=B217,\"Error - counterparty with self\",\"\"),IF(N(ISNA(MATCH(B217,'Standing Data'!$E$49:$E$148,0)))<>0,\"\",\"Error - counterparty with self\")),\"\")","v":""},{"$f":"IF(C217<>\"\",VLOOKUP(C217,'CP IDs'!A$2:B$5122,2,FALSE),\"\")","v":""},null,{"$f":"IFERROR(VLOOKUP(C217,'CP IDs'!$A$2:$D$4422,4,FALSE),\"\")","v":""},"",null,null,null,null,null,null,null,null,null,null,null,null,null,null,null,null,null,null,null,null,null,null,null,null,null,null,null,null,null,null,null,null,null,null,null,null,null,null,null,null,null,null,null,null,-500000,500000,null,1,1,31,null,0,0,0,null,{"$f":"AND(B217=$C$9,'Standing Data'!$D$9<>\"Multi-academy Trust\")","v":{"$error":"#N/A"}}]
[{"$f":"IF(B218<>\"\",IF('Standing Data'!$D$9<>\"Multi-academy Trust\",IF('Standing Data'!$D$15=B218,\"Error - counterparty with self\",\"\"),IF(N(ISNA(MATCH(B218,'Standing Data'!$E$49:$E$148,0)))<>0,\"\",\"Error - counterparty with self\")),\"\")","v":""},{"$f":"IF(C218<>\"\",VLOOKUP(C218,'CP IDs'!A$2:B$5122,2,FALSE),\"\")","v":""},null,{"$f":"IFERROR(VLOOKUP(C218,'CP IDs'!$A$2:$D$4422,4,FALSE),\"\")","v":""},"",null,null,null,null,null,null,null,null,null,null,null,null,null,null,null,null,null,null,null,null,null,null,null,null,null,null,null,null,null,null,null,null,null,null,null,null,null,null,null,null,null,null,null,null,-500000,500000,null,1,1,31,null,0,0,0,null,{"$f":"AND(B218=$C$9,'Standing Data'!$D$9<>\"Multi-academy Trust\")","v":{"$error":"#N/A"}}]
[{"$f":"IF(B219<>\"\",IF('Standing Data'!$D$9<>\"Multi-academy Trust\",IF('Standing Data'!$D$15=B219,\"Error - counterparty with self\",\"\"),IF(N(ISNA(MATCH(B219,'Standing Data'!$E$49:$E$148,0)))<>0,\"\",\"Error - counterparty with self\")),\"\")","v":""},{"$f":"IF(C219<>\"\",VLOOKUP(C219,'CP IDs'!A$2:B$5122,2,FALSE),\"\")","v":""},null,{"$f":"IFERROR(VLOOKUP(C219,'CP IDs'!$A$2:$D$4422,4,FALSE),\"\")","v":""},"",null,null,null,null,null,null,null,null,null,null,null,null,null,null,null,null,null,null,null,null,null,null,null,null,null,null,null,null,null,null,null,null,null,null,null,null,null,null,null,null,null,null,null,null,-500000,500000,null,1,1,31,null,0,0,0,null,{"$f":"AND(B219=$C$9,'Standing Data'!$D$9<>\"Multi-academy Trust\")","v":{"$error":"#N/A"}}]
[{"$f":"IF(B220<>\"\",IF('Standing Data'!$D$9<>\"Multi-academy Trust\",IF('Standing Data'!$D$15=B220,\"Error - counterparty with self\",\"\"),IF(N(ISNA(MATCH(B220,'Standing Data'!$E$49:$E$148,0)))<>0,\"\",\"Error - counterparty with self\")),\"\")","v":""},{"$f":"IF(C220<>\"\",VLOOKUP(C220,'CP IDs'!A$2:B$5122,2,FALSE),\"\")","v":""},null,{"$f":"IFERROR(VLOOKUP(C220,'CP IDs'!$A$2:$D$4422,4,FALSE),\"\")","v":""},"",null,null,null,null,null,null,null,null,null,null,null,null,null,null,null,null,null,null,null,null,null,null,null,null,null,null,null,null,null,null,null,null,null,null,null,null,null,null,null,null,null,null,null,null,-500000,500000,null,1,1,31,null,0,0,0,null,{"$f":"AND(B220=$C$9,'Standing Data'!$D$9<>\"Multi-academy Trust\")","v":{"$error":"#N/A"}}]
[{"$f":"IF(B221<>\"\",IF('Standing Data'!$D$9<>\"Multi-academy Trust\",IF('Standing Data'!$D$15=B221,\"Error - counterparty with self\",\"\"),IF(N(ISNA(MATCH(B221,'Standing Data'!$E$49:$E$148,0)))<>0,\"\",\"Error - counterparty with self\")),\"\")","v":""},{"$f":"IF(C221<>\"\",VLOOKUP(C221,'CP IDs'!A$2:B$5122,2,FALSE),\"\")","v":""},null,{"$f":"IFERROR(VLOOKUP(C221,'CP IDs'!$A$2:$D$4422,4,FALSE),\"\")","v":""},"",null,null,null,null,null,null,null,null,null,null,null,null,null,null,null,null,null,null,null,null,null,null,null,null,null,null,null,null,null,null,null,null,null,null,null,null,null,null,null,null,null,null,null,null,-500000,500000,null,1,1,31,null,0,0,0,null,{"$f":"AND(B221=$C$9,'Standing Data'!$D$9<>\"Multi-academy Trust\")","v":{"$error":"#N/A"}}]
[{"$f":"IF(B222<>\"\",IF('Standing Data'!$D$9<>\"Multi-academy Trust\",IF('Standing Data'!$D$15=B222,\"Error - counterparty with self\",\"\"),IF(N(ISNA(MATCH(B222,'Standing Data'!$E$49:$E$148,0)))<>0,\"\",\"Error - counterparty with self\")),\"\")","v":""},{"$f":"IF(C222<>\"\",VLOOKUP(C222,'CP IDs'!A$2:B$5122,2,FALSE),\"\")","v":""},null,{"$f":"IFERROR(VLOOKUP(C222,'CP IDs'!$A$2:$D$4422,4,FALSE),\"\")","v":""},"",null,null,null,null,null,null,null,null,null,null,null,null,null,null,null,null,null,null,null,null,null,null,null,null,null,null,null,null,null,null,null,null,null,null,null,null,null,null,null,null,null,null,null,null,-500000,500000,null,1,1,31,null,{"$f":"COUNTA(C222)","v":0},{"$f":"1-COUNTBLANK(B222)","v":0},0,null,{"$f":"AND(B222=$C$9,'Standing Data'!$D$9<>\"Multi-academy Trust\")","v":{"$error":"#N/A"}}]
[{"$f":"IF(B223<>\"\",IF('Standing Data'!$D$9<>\"Multi-academy Trust\",IF('Standing Data'!$D$15=B223,\"Error - counterparty with self\",\"\"),IF(N(ISNA(MATCH(B223,'Standing Data'!$E$49:$E$148,0)))<>0,\"\",\"Error - counterparty with self\")),\"\")","v":""},{"$f":"IF(C223<>\"\",VLOOKUP(C223,'CP IDs'!A$2:B$5122,2,FALSE),\"\")","v":""},null,{"$f":"IFERROR(VLOOKUP(C223,'CP IDs'!$A$2:$D$4422,4,FALSE),\"\")","v":""},{"$f":"IF(OR(AND(COUNT(F223:AT223)>0,C223=\"\"),AND(COUNT(F223:AT223)=0,C223<>\"\")),\"Error - on line\",\"\")","v":""},null,null,null,null,null,null,null,null,null,null,null,null,null,null,null,null,null,null,null,null,null,null,null,null,null,null,null,null,null,null,null,null,null,null,null,null,null,null,null,null,null,null,null,null,-500000,500000,null,1,1,31,null,0,0,0,null,{"$f":"AND(B223=$C$9,'Standing Data'!$D$9<>\"Multi-academy Trust\")","v":{"$error":"#N/A"}}]
[{"$f":"IF(B224<>\"\",IF('Standing Data'!$D$9<>\"Multi-academy Trust\",IF('Standing Data'!$D$15=B224,\"Error - counterparty with self\",\"\"),IF(N(ISNA(MATCH(B224,'Standing Data'!$E$49:$E$148,0)))<>0,\"\",\"Error - counterparty with self\")),\"\")","v":""},{"$f":"IF(C224<>\"\",VLOOKUP(C224,'CP IDs'!A$2:B$5122,2,FALSE),\"\")","v":""},null,{"$f":"IFERROR(VLOOKUP(C224,'CP IDs'!$A$2:$D$4422,4,FALSE),\"\")","v":""},"",null,null,null,null,null,null,null,null,null,null,null,null,null,null,null,null,null,null,null,null,null,null,null,null,null,null,null,null,null,null,null,null,null,null,null,null,null,null,null,null,null,null,null,null,-500000,500000,null,1,1,31,null,0,0,0,null,{"$f":"AND(B224=$C$9,'Standing Data'!$D$9<>\"Multi-academy Trust\")","v":{"$error":"#N/A"}}]
[{"$f":"IF(B225<>\"\",IF('Standing Data'!$D$9<>\"Multi-academy Trust\",IF('Standing Data'!$D$15=B225,\"Error - counterparty with self\",\"\"),IF(N(ISNA(MATCH(B225,'Standing Data'!$E$49:$E$148,0)))<>0,\"\",\"Error - counterparty with self\")),\"\")","v":""},{"$f":"IF(C225<>\"\",VLOOKUP(C225,'CP IDs'!A$2:B$5122,2,FALSE),\"\")","v":""},null,{"$f":"IFERROR(VLOOKUP(C225,'CP IDs'!$A$2:$D$4422,4,FALSE),\"\")","v":""},"",null,null,null,null,null,null,null,null,null,null,null,null,null,null,null,null,null,null,null,null,null,null,null,null,null,null,null,null,null,null,null,null,null,null,null,null,null,null,null,null,null,null,null,null,-500000,500000,null,1,1,31,null,0,0,0,null,{"$f":"AND(B225=$C$9,'Standing Data'!$D$9<>\"Multi-academy Trust\")","v":{"$error":"#N/A"}}]
[{"$f":"IF(B226<>\"\",IF('Standing Data'!$D$9<>\"Multi-academy Trust\",IF('Standing Data'!$D$15=B226,\"Error - counterparty with self\",\"\"),IF(N(ISNA(MATCH(B226,'Standing Data'!$E$49:$E$148,0)))<>0,\"\",\"Error - counterparty with self\")),\"\")","v":""},{"$f":"IF(C226<>\"\",VLOOKUP(C226,'CP IDs'!A$2:B$5122,2,FALSE),\"\")","v":""},null,{"$f":"IFERROR(VLOOKUP(C226,'CP IDs'!$A$2:$D$4422,4,FALSE),\"\")","v":""},"",null,null,null,null,null,null,null,null,null,null,null,null,null,null,null,null,null,null,null,null,null,null,null,null,null,null,null,null,null,null,null,null,null,null,null,null,null,null,null,null,null,null,null,null,-500000,500000,null,1,1,31,null,0,0,0,null,{"$f":"AND(B226=$C$9,'Standing Data'!$D$9<>\"Multi-academy Trust\")","v":{"$error":"#N/A"}}]
[{"$f":"IF(B227<>\"\",IF('Standing Data'!$D$9<>\"Multi-academy Trust\",IF('Standing Data'!$D$15=B227,\"Error - counterparty with self\",\"\"),IF(N(ISNA(MATCH(B227,'Standing Data'!$E$49:$E$148,0)))<>0,\"\",\"Error - counterparty with self\")),\"\")","v":""},{"$f":"IF(C227<>\"\",VLOOKUP(C227,'CP IDs'!A$2:B$5122,2,FALSE),\"\")","v":""},null,{"$f":"IFERROR(VLOOKUP(C227,'CP IDs'!$A$2:$D$4422,4,FALSE),\"\")","v":""},"",null,null,null,null,null,null,null,null,null,null,null,null,null,null,null,null,null,null,null,null,null,null,null,null,null,null,null,null,null,null,null,null,null,null,null,null,null,null,null,null,null,null,null,null,-500000,500000,null,1,1,31,null,0,0,0,null,{"$f":"AND(B227=$C$9,'Standing Data'!$D$9<>\"Multi-academy Trust\")","v":{"$error":"#N/A"}}]
[{"$f":"IF(B228<>\"\",IF('Standing Data'!$D$9<>\"Multi-academy Trust\",IF('Standing Data'!$D$15=B228,\"Error - counterparty with self\",\"\"),IF(N(ISNA(MATCH(B228,'Standing Data'!$E$49:$E$148,0)))<>0,\"\",\"Error - counterparty with self\")),\"\")","v":""},{"$f":"IF(C228<>\"\",VLOOKUP(C228,'CP IDs'!A$2:B$5122,2,FALSE),\"\")","v":""},null,{"$f":"IFERROR(VLOOKUP(C228,'CP IDs'!$A$2:$D$4422,4,FALSE),\"\")","v":""},"",null,null,null,null,null,null,null,null,null,null,null,null,null,null,null,null,null,null,null,null,null,null,null,null,null,null,null,null,null,null,null,null,null,null,null,null,null,null,null,null,null,null,null,null,-500000,500000,null,1,1,31,null,0,0,0,null,{"$f":"AND(B228=$C$9,'Standing Data'!$D$9<>\"Multi-academy Trust\")","v":{"$error":"#N/A"}}]
[{"$f":"IF(B229<>\"\",IF('Standing Data'!$D$9<>\"Multi-academy Trust\",IF('Standing Data'!$D$15=B229,\"Error - counterparty with self\",\"\"),IF(N(ISNA(MATCH(B229,'Standing Data'!$E$49:$E$148,0)))<>0,\"\",\"Error - counterparty with self\")),\"\")","v":""},{"$f":"IF(C229<>\"\",VLOOKUP(C229,'CP IDs'!A$2:B$5122,2,FALSE),\"\")","v":""},null,{"$f":"IFERROR(VLOOKUP(C229,'CP IDs'!$A$2:$D$4422,4,FALSE),\"\")","v":""},"",null,null,null,null,null,null,null,null,null,null,null,null,null,null,null,null,null,null,null,null,null,null,null,null,null,null,null,null,null,null,null,null,null,null,null,null,null,null,null,null,null,null,null,null,-500000,500000,null,1,1,31,null,0,0,0,null,{"$f":"AND(B229=$C$9,'Standing Data'!$D$9<>\"Multi-academy Trust\")","v":{"$error":"#N/A"}}]
[{"$f":"IF(B230<>\"\",IF('Standing Data'!$D$9<>\"Multi-academy Trust\",IF('Standing Data'!$D$15=B230,\"Error - counterparty with self\",\"\"),IF(N(ISNA(MATCH(B230,'Standing Data'!$E$49:$E$148,0)))<>0,\"\",\"Error - counterparty with self\")),\"\")","v":""},{"$f":"IF(C230<>\"\",VLOOKUP(C230,'CP IDs'!A$2:B$5122,2,FALSE),\"\")","v":""},null,{"$f":"IFERROR(VLOOKUP(C230,'CP IDs'!$A$2:$D$4422,4,FALSE),\"\")","v":""},"",null,null,null,null,null,null,null,null,null,null,null,null,null,null,null,null,null,null,null,null,null,null,null,null,null,null,null,null,null,null,null,null,null,null,null,null,null,null,null,null,null,null,null,null,-500000,500000,null,1,1,31,null,0,0,0,null,{"$f":"AND(B230=$C$9,'Standing Data'!$D$9<>\"Multi-academy Trust\")","v":{"$error":"#N/A"}}]
[{"$f":"IF(B231<>\"\",IF('Standing Data'!$D$9<>\"Multi-academy Trust\",IF('Standing Data'!$D$15=B231,\"Error - counterparty with self\",\"\"),IF(N(ISNA(MATCH(B231,'Standing Data'!$E$49:$E$148,0)))<>0,\"\",\"Error - counterparty with self\")),\"\")","v":""},{"$f":"IF(C231<>\"\",VLOOKUP(C231,'CP IDs'!A$2:B$5122,2,FALSE),\"\")","v":""},null,{"$f":"IFERROR(VLOOKUP(C231,'CP IDs'!$A$2:$D$4422,4,FALSE),\"\")","v":""},"",null,null,null,null,null,null,null,null,null,null,null,null,null,null,null,null,null,null,null,null,null,null,null,null,null,null,null,null,null,null,null,null,null,null,null,null,null,null,null,null,null,null,null,null,-500000,500000,null,1,1,31,null,0,0,0,null,{"$f":"AND(B231=$C$9,'Standing Data'!$D$9<>\"Multi-academy Trust\")","v":{"$error":"#N/A"}}]
[{"$f":"IF(B232<>\"\",IF('Standing Data'!$D$9<>\"Multi-academy Trust\",IF('Standing Data'!$D$15=B232,\"Error - counterparty with self\",\"\"),IF(N(ISNA(MATCH(B232,'Standing Data'!$E$49:$E$148,0)))<>0,\"\",\"Error - counterparty with self\")),\"\")","v":""},{"$f":"IF(C232<>\"\",VLOOKUP(C232,'CP IDs'!A$2:B$5122,2,FALSE),\"\")","v":""},null,{"$f":"IFERROR(VLOOKUP(C232,'CP IDs'!$A$2:$D$4422,4,FALSE),\"\")","v":""},"",null,null,null,null,null,null,null,null,null,null,null,null,null,null,null,null,null,null,null,null,null,null,null,null,null,null,null,null,null,null,null,null,null,null,null,null,null,null,null,null,null,null,null,null,-500000,500000,null,1,1,31,null,0,0,0,null,{"$f":"AND(B232=$C$9,'Standing Data'!$D$9<>\"Multi-academy Trust\")","v":{"$error":"#N/A"}}]
[{"$f":"IF(B233<>\"\",IF('Standing Data'!$D$9<>\"Multi-academy Trust\",IF('Standing Data'!$D$15=B233,\"Error - counterparty with self\",\"\"),IF(N(ISNA(MATCH(B233,'Standing Data'!$E$49:$E$148,0)))<>0,\"\",\"Error - counterparty with self\")),\"\")","v":""},{"$f":"IF(C233<>\"\",VLOOKUP(C233,'CP IDs'!A$2:B$5122,2,FALSE),\"\")","v":""},null,{"$f":"IFERROR(VLOOKUP(C233,'CP IDs'!$A$2:$D$4422,4,FALSE),\"\")","v":""},"",null,null,null,null,null,null,null,null,null,null,null,null,null,null,null,null,null,null,null,null,null,null,null,null,null,null,null,null,null,null,null,null,null,null,null,null,null,null,null,null,null,null,null,null,-500000,500000,null,1,1,31,null,0,0,0,null,{"$f":"AND(B233=$C$9,'Standing Data'!$D$9<>\"Multi-academy Trust\")","v":{"$error":"#N/A"}}]
[{"$f":"IF(B234<>\"\",IF('Standing Data'!$D$9<>\"Multi-academy Trust\",IF('Standing Data'!$D$15=B234,\"Error - counterparty with self\",\"\"),IF(N(ISNA(MATCH(B234,'Standing Data'!$E$49:$E$148,0)))<>0,\"\",\"Error - counterparty with self\")),\"\")","v":""},{"$f":"IF(C234<>\"\",VLOOKUP(C234,'CP IDs'!A$2:B$5122,2,FALSE),\"\")","v":""},null,{"$f":"IFERROR(VLOOKUP(C234,'CP IDs'!$A$2:$D$4422,4,FALSE),\"\")","v":""},"",null,null,null,null,null,null,null,null,null,null,null,null,null,null,null,null,null,null,null,null,null,null,null,null,null,null,null,null,null,null,null,null,null,null,null,null,null,null,null,null,null,null,null,null,-500000,500000,null,1,1,31,null,0,0,0,null,{"$f":"AND(B234=$C$9,'Standing Data'!$D$9<>\"Multi-academy Trust\")","v":{"$error":"#N/A"}}]
[{"$f":"IF(B235<>\"\",IF('Standing Data'!$D$9<>\"Multi-academy Trust\",IF('Standing Data'!$D$15=B235,\"Error - counterparty with self\",\"\"),IF(N(ISNA(MATCH(B235,'Standing Data'!$E$49:$E$148,0)))<>0,\"\",\"Error - counterparty with self\")),\"\")","v":""},{"$f":"IF(C235<>\"\",VLOOKUP(C235,'CP IDs'!A$2:B$5122,2,FALSE),\"\")","v":""},null,{"$f":"IFERROR(VLOOKUP(C235,'CP IDs'!$A$2:$D$4422,4,FALSE),\"\")","v":""},"",null,null,null,null,null,null,null,null,null,null,null,null,null,null,null,null,null,null,null,null,null,null,null,null,null,null,null,null,null,null,null,null,null,null,null,null,null,null,null,null,null,null,null,null,-500000,500000,null,1,1,31,null,0,0,0,null,{"$f":"AND(B235=$C$9,'Standing Data'!$D$9<>\"Multi-academy Trust\")","v":{"$error":"#N/A"}}]
[{"$f":"IF(B236<>\"\",IF('Standing Data'!$D$9<>\"Multi-academy Trust\",IF('Standing Data'!$D$15=B236,\"Error - counterparty with self\",\"\"),IF(N(ISNA(MATCH(B236,'Standing Data'!$E$49:$E$148,0)))<>0,\"\",\"Error - counterparty with self\")),\"\")","v":""},{"$f":"IF(C236<>\"\",VLOOKUP(C236,'CP IDs'!A$2:B$5122,2,FALSE),\"\")","v":""},null,{"$f":"IFERROR(VLOOKUP(C236,'CP IDs'!$A$2:$D$4422,4,FALSE),\"\")","v":""},"",null,null,null,null,null,null,null,null,null,null,null,null,null,null,null,null,null,null,null,null,null,null,null,null,null,null,null,null,null,null,null,null,null,null,null,null,null,null,null,null,null,null,null,null,-500000,500000,null,1,1,31,null,0,0,0,null,{"$f":"AND(B236=$C$9,'Standing Data'!$D$9<>\"Multi-academy Trust\")","v":{"$error":"#N/A"}}]
[{"$f":"IF(B237<>\"\",IF('Standing Data'!$D$9<>\"Multi-academy Trust\",IF('Standing Data'!$D$15=B237,\"Error - counterparty with self\",\"\"),IF(N(ISNA(MATCH(B237,'Standing Data'!$E$49:$E$148,0)))<>0,\"\",\"Error - counterparty with self\")),\"\")","v":""},{"$f":"IF(C237<>\"\",VLOOKUP(C237,'CP IDs'!A$2:B$5122,2,FALSE),\"\")","v":""},null,{"$f":"IFERROR(VLOOKUP(C237,'CP IDs'!$A$2:$D$4422,4,FALSE),\"\")","v":""},"",null,null,null,null,null,null,null,null,null,null,null,null,null,null,null,null,null,null,null,null,null,null,null,null,null,null,null,null,null,null,null,null,null,null,null,null,null,null,null,null,null,null,null,null,-500000,500000,null,1,1,31,null,0,0,0,null,{"$f":"AND(B237=$C$9,'Standing Data'!$D$9<>\"Multi-academy Trust\")","v":{"$error":"#N/A"}}]
[{"$f":"IF(B238<>\"\",IF('Standing Data'!$D$9<>\"Multi-academy Trust\",IF('Standing Data'!$D$15=B238,\"Error - counterparty with self\",\"\"),IF(N(ISNA(MATCH(B238,'Standing Data'!$E$49:$E$148,0)))<>0,\"\",\"Error - counterparty with self\")),\"\")","v":""},{"$f":"IF(C238<>\"\",VLOOKUP(C238,'CP IDs'!A$2:B$5122,2,FALSE),\"\")","v":""},null,{"$f":"IFERROR(VLOOKUP(C238,'CP IDs'!$A$2:$D$4422,4,FALSE),\"\")","v":""},"",null,null,null,null,null,null,null,null,null,null,null,null,null,null,null,null,null,null,null,null,null,null,null,null,null,null,null,null,null,null,null,null,null,null,null,null,null,null,null,null,null,null,null,null,-500000,500000,null,1,1,31,null,0,0,0,null,{"$f":"AND(B238=$C$9,'Standing Data'!$D$9<>\"Multi-academy Trust\")","v":{"$error":"#N/A"}}]
[{"$f":"IF(B239<>\"\",IF('Standing Data'!$D$9<>\"Multi-academy Trust\",IF('Standing Data'!$D$15=B239,\"Error - counterparty with self\",\"\"),IF(N(ISNA(MATCH(B239,'Standing Data'!$E$49:$E$148,0)))<>0,\"\",\"Error - counterparty with self\")),\"\")","v":""},{"$f":"IF(C239<>\"\",VLOOKUP(C239,'CP IDs'!A$2:B$5122,2,FALSE),\"\")","v":""},null,{"$f":"IFERROR(VLOOKUP(C239,'CP IDs'!$A$2:$D$4422,4,FALSE),\"\")","v":""},"",null,null,null,null,null,null,null,null,null,null,null,null,null,null,null,null,null,null,null,null,null,null,null,null,null,null,null,null,null,null,null,null,null,null,null,null,null,null,null,null,null,null,null,null,-500000,500000,null,1,1,31,null,0,0,0,null,{"$f":"AND(B239=$C$9,'Standing Data'!$D$9<>\"Multi-academy Trust\")","v":{"$error":"#N/A"}}]
[{"$f":"IF(B240<>\"\",IF('Standing Data'!$D$9<>\"Multi-academy Trust\",IF('Standing Data'!$D$15=B240,\"Error - counterparty with self\",\"\"),IF(N(ISNA(MATCH(B240,'Standing Data'!$E$49:$E$148,0)))<>0,\"\",\"Error - counterparty with self\")),\"\")","v":""},{"$f":"IF(C240<>\"\",VLOOKUP(C240,'CP IDs'!A$2:B$5122,2,FALSE),\"\")","v":""},null,{"$f":"IFERROR(VLOOKUP(C240,'CP IDs'!$A$2:$D$4422,4,FALSE),\"\")","v":""},"",null,null,null,null,null,null,null,null,null,null,null,null,null,null,null,null,null,null,null,null,null,null,null,null,null,null,null,null,null,null,null,null,null,null,null,null,null,null,null,null,null,null,null,null,-500000,500000,null,1,1,31,null,0,0,0,null,{"$f":"AND(B240=$C$9,'Standing Data'!$D$9<>\"Multi-academy Trust\")","v":{"$error":"#N/A"}}]
[{"$f":"IF(B241<>\"\",IF('Standing Data'!$D$9<>\"Multi-academy Trust\",IF('Standing Data'!$D$15=B241,\"Error - counterparty with self\",\"\"),IF(N(ISNA(MATCH(B241,'Standing Data'!$E$49:$E$148,0)))<>0,\"\",\"Error - counterparty with self\")),\"\")","v":""},{"$f":"IF(C241<>\"\",VLOOKUP(C241,'CP IDs'!A$2:B$5122,2,FALSE),\"\")","v":""},null,{"$f":"IFERROR(VLOOKUP(C241,'CP IDs'!$A$2:$D$4422,4,FALSE),\"\")","v":""},"",null,null,null,null,null,null,null,null,null,null,null,null,null,null,null,null,null,null,null,null,null,null,null,null,null,null,null,null,null,null,null,null,null,null,null,null,null,null,null,null,null,null,null,null,-500000,500000,null,1,1,31,null,0,0,0,null,{"$f":"AND(B241=$C$9,'Standing Data'!$D$9<>\"Multi-academy Trust\")","v":{"$error":"#N/A"}}]
[{"$f":"IF(B242<>\"\",IF('Standing Data'!$D$9<>\"Multi-academy Trust\",IF('Standing Data'!$D$15=B242,\"Error - counterparty with self\",\"\"),IF(N(ISNA(MATCH(B242,'Standing Data'!$E$49:$E$148,0)))<>0,\"\",\"Error - counterparty with self\")),\"\")","v":""},{"$f":"IF(C242<>\"\",VLOOKUP(C242,'CP IDs'!A$2:B$5122,2,FALSE),\"\")","v":""},null,{"$f":"IFERROR(VLOOKUP(C242,'CP IDs'!$A$2:$D$4422,4,FALSE),\"\")","v":""},"",null,null,null,null,null,null,null,null,null,null,null,null,null,null,null,null,null,null,null,null,null,null,null,null,null,null,null,null,null,null,null,null,null,null,null,null,null,null,null,null,null,null,null,null,-500000,500000,null,1,1,31,null,0,0,0,null,{"$f":"AND(B242=$C$9,'Standing Data'!$D$9<>\"Multi-academy Trust\")","v":{"$error":"#N/A"}}]
[{"$f":"IF(B243<>\"\",IF('Standing Data'!$D$9<>\"Multi-academy Trust\",IF('Standing Data'!$D$15=B243,\"Error - counterparty with self\",\"\"),IF(N(ISNA(MATCH(B243,'Standing Data'!$E$49:$E$148,0)))<>0,\"\",\"Error - counterparty with self\")),\"\")","v":""},{"$f":"IF(C243<>\"\",VLOOKUP(C243,'CP IDs'!A$2:B$5122,2,FALSE),\"\")","v":""},null,{"$f":"IFERROR(VLOOKUP(C243,'CP IDs'!$A$2:$D$4422,4,FALSE),\"\")","v":""},"",null,null,null,null,null,null,null,null,null,null,null,null,null,null,null,null,null,null,null,null,null,null,null,null,null,null,null,null,null,null,null,null,null,null,null,null,null,null,null,null,null,null,null,null,-500000,500000,null,1,1,31,null,0,0,0,null,{"$f":"AND(B243=$C$9,'Standing Data'!$D$9<>\"Multi-academy Trust\")","v":{"$error":"#N/A"}}]
[{"$f":"IF(B244<>\"\",IF('Standing Data'!$D$9<>\"Multi-academy Trust\",IF('Standing Data'!$D$15=B244,\"Error - counterparty with self\",\"\"),IF(N(ISNA(MATCH(B244,'Standing Data'!$E$49:$E$148,0)))<>0,\"\",\"Error - counterparty with self\")),\"\")","v":""},{"$f":"IF(C244<>\"\",VLOOKUP(C244,'CP IDs'!A$2:B$5122,2,FALSE),\"\")","v":""},null,{"$f":"IFERROR(VLOOKUP(C244,'CP IDs'!$A$2:$D$4422,4,FALSE),\"\")","v":""},"",null,null,null,null,null,null,null,null,null,null,null,null,null,null,null,null,null,null,null,null,null,null,null,null,null,null,null,null,null,null,null,null,null,null,null,null,null,null,null,null,null,null,null,null,-500000,500000,null,1,1,31,null,0,0,0,null,{"$f":"AND(B244=$C$9,'Standing Data'!$D$9<>\"Multi-academy Trust\")","v":{"$error":"#N/A"}}]
[{"$f":"IF(B245<>\"\",IF('Standing Data'!$D$9<>\"Multi-academy Trust\",IF('Standing Data'!$D$15=B245,\"Error - counterparty with self\",\"\"),IF(N(ISNA(MATCH(B245,'Standing Data'!$E$49:$E$148,0)))<>0,\"\",\"Error - counterparty with self\")),\"\")","v":""},{"$f":"IF(C245<>\"\",VLOOKUP(C245,'CP IDs'!A$2:B$5122,2,FALSE),\"\")","v":""},null,{"$f":"IFERROR(VLOOKUP(C245,'CP IDs'!$A$2:$D$4422,4,FALSE),\"\")","v":""},"",null,null,null,null,null,null,null,null,null,null,null,null,null,null,null,null,null,null,null,null,null,null,null,null,null,null,null,null,null,null,null,null,null,null,null,null,null,null,null,null,null,null,null,null,-500000,500000,null,1,1,31,null,0,0,0,null,{"$f":"AND(B245=$C$9,'Standing Data'!$D$9<>\"Multi-academy Trust\")","v":{"$error":"#N/A"}}]
[{"$f":"IF(B246<>\"\",IF('Standing Data'!$D$9<>\"Multi-academy Trust\",IF('Standing Data'!$D$15=B246,\"Error - counterparty with self\",\"\"),IF(N(ISNA(MATCH(B246,'Standing Data'!$E$49:$E$148,0)))<>0,\"\",\"Error - counterparty with self\")),\"\")","v":""},{"$f":"IF(C246<>\"\",VLOOKUP(C246,'CP IDs'!A$2:B$5122,2,FALSE),\"\")","v":""},null,{"$f":"IFERROR(VLOOKUP(C246,'CP IDs'!$A$2:$D$4422,4,FALSE),\"\")","v":""},"",null,null,null,null,null,null,null,null,null,null,null,null,null,null,null,null,null,null,null,null,null,null,null,null,null,null,null,null,null,null,null,null,null,null,null,null,null,null,null,null,null,null,null,null,-500000,500000,null,1,1,31,null,0,0,0,null,{"$f":"AND(B246=$C$9,'Standing Data'!$D$9<>\"Multi-academy Trust\")","v":{"$error":"#N/A"}}]
[{"$f":"IF(B247<>\"\",IF('Standing Data'!$D$9<>\"Multi-academy Trust\",IF('Standing Data'!$D$15=B247,\"Error - counterparty with self\",\"\"),IF(N(ISNA(MATCH(B247,'Standing Data'!$E$49:$E$148,0)))<>0,\"\",\"Error - counterparty with self\")),\"\")","v":""},{"$f":"IF(C247<>\"\",VLOOKUP(C247,'CP IDs'!A$2:B$5122,2,FALSE),\"\")","v":""},null,{"$f":"IFERROR(VLOOKUP(C247,'CP IDs'!$A$2:$D$4422,4,FALSE),\"\")","v":""},"",null,null,null,null,null,null,null,null,null,null,null,null,null,null,null,null,null,null,null,null,null,null,null,null,null,null,null,null,null,null,null,null,null,null,null,null,null,null,null,null,null,null,null,null,-500000,500000,null,1,1,31,null,0,0,0,null,{"$f":"AND(B247=$C$9,'Standing Data'!$D$9<>\"Multi-academy Trust\")","v":{"$error":"#N/A"}}]
[{"$f":"IF(B248<>\"\",IF('Standing Data'!$D$9<>\"Multi-academy Trust\",IF('Standing Data'!$D$15=B248,\"Error - counterparty with self\",\"\"),IF(N(ISNA(MATCH(B248,'Standing Data'!$E$49:$E$148,0)))<>0,\"\",\"Error - counterparty with self\")),\"\")","v":""},{"$f":"IF(C248<>\"\",VLOOKUP(C248,'CP IDs'!A$2:B$5122,2,FALSE),\"\")","v":""},null,{"$f":"IFERROR(VLOOKUP(C248,'CP IDs'!$A$2:$D$4422,4,FALSE),\"\")","v":""},"",null,null,null,null,null,null,null,null,null,null,null,null,null,null,null,null,null,null,null,null,null,null,null,null,null,null,null,null,null,null,null,null,null,null,null,null,null,null,null,null,null,null,null,null,-500000,500000,null,1,1,31,null,0,0,0,null,{"$f":"AND(B248=$C$9,'Standing Data'!$D$9<>\"Multi-academy Trust\")","v":{"$error":"#N/A"}}]
[{"$f":"IF(B249<>\"\",IF('Standing Data'!$D$9<>\"Multi-academy Trust\",IF('Standing Data'!$D$15=B249,\"Error - counterparty with self\",\"\"),IF(N(ISNA(MATCH(B249,'Standing Data'!$E$49:$E$148,0)))<>0,\"\",\"Error - counterparty with self\")),\"\")","v":""},{"$f":"IF(C249<>\"\",VLOOKUP(C249,'CP IDs'!A$2:B$5122,2,FALSE),\"\")","v":""},null,{"$f":"IFERROR(VLOOKUP(C249,'CP IDs'!$A$2:$D$4422,4,FALSE),\"\")","v":""},"",null,null,null,null,null,null,null,null,null,null,null,null,null,null,null,null,null,null,null,null,null,null,null,null,null,null,null,null,null,null,null,null,null,null,null,null,null,null,null,null,null,null,null,null,-500000,500000,null,1,1,31,null,0,0,0,null,{"$f":"AND(B249=$C$9,'Standing Data'!$D$9<>\"Multi-academy Trust\")","v":{"$error":"#N/A"}}]
[{"$f":"IF(B250<>\"\",IF('Standing Data'!$D$9<>\"Multi-academy Trust\",IF('Standing Data'!$D$15=B250,\"Error - counterparty with self\",\"\"),IF(N(ISNA(MATCH(B250,'Standing Data'!$E$49:$E$148,0)))<>0,\"\",\"Error - counterparty with self\")),\"\")","v":""},{"$f":"IF(C250<>\"\",VLOOKUP(C250,'CP IDs'!A$2:B$5122,2,FALSE),\"\")","v":""},null,{"$f":"IFERROR(VLOOKUP(C250,'CP IDs'!$A$2:$D$4422,4,FALSE),\"\")","v":""},"",null,null,null,null,null,null,null,null,null,null,null,null,null,null,null,null,null,null,null,null,null,null,null,null,null,null,null,null,null,null,null,null,null,null,null,null,null,null,null,null,null,null,null,null,-500000,500000,null,1,1,31,null,0,0,0,null,{"$f":"AND(B250=$C$9,'Standing Data'!$D$9<>\"Multi-academy Trust\")","v":{"$error":"#N/A"}}]
[{"$f":"IF(B251<>\"\",IF('Standing Data'!$D$9<>\"Multi-academy Trust\",IF('Standing Data'!$D$15=B251,\"Error - counterparty with self\",\"\"),IF(N(ISNA(MATCH(B251,'Standing Data'!$E$49:$E$148,0)))<>0,\"\",\"Error - counterparty with self\")),\"\")","v":""},{"$f":"IF(C251<>\"\",VLOOKUP(C251,'CP IDs'!A$2:B$5122,2,FALSE),\"\")","v":""},null,{"$f":"IFERROR(VLOOKUP(C251,'CP IDs'!$A$2:$D$4422,4,FALSE),\"\")","v":""},"",null,null,null,null,null,null,null,null,null,null,null,null,null,null,null,null,null,null,null,null,null,null,null,null,null,null,null,null,null,null,null,null,null,null,null,null,null,null,null,null,null,null,null,null,-500000,500000,null,1,1,31,null,0,0,0,null,{"$f":"AND(B251=$C$9,'Standing Data'!$D$9<>\"Multi-academy Trust\")","v":{"$error":"#N/A"}}]
[{"$f":"IF(B252<>\"\",IF('Standing Data'!$D$9<>\"Multi-academy Trust\",IF('Standing Data'!$D$15=B252,\"Error - counterparty with self\",\"\"),IF(N(ISNA(MATCH(B252,'Standing Data'!$E$49:$E$148,0)))<>0,\"\",\"Error - counterparty with self\")),\"\")","v":""},{"$f":"IF(C252<>\"\",VLOOKUP(C252,'CP IDs'!A$2:B$5122,2,FALSE),\"\")","v":""},null,{"$f":"IFERROR(VLOOKUP(C252,'CP IDs'!$A$2:$D$4422,4,FALSE),\"\")","v":""},"",null,null,null,null,null,null,null,null,null,null,null,null,null,null,null,null,null,null,null,null,null,null,null,null,null,null,null,null,null,null,null,null,null,null,null,null,null,null,null,null,null,null,null,null,-500000,500000,null,1,1,31,null,0,0,0,null,{"$f":"AND(B252=$C$9,'Standing Data'!$D$9<>\"Multi-academy Trust\")","v":{"$error":"#N/A"}}]
[{"$f":"IF(B253<>\"\",IF('Standing Data'!$D$9<>\"Multi-academy Trust\",IF('Standing Data'!$D$15=B253,\"Error - counterparty with self\",\"\"),IF(N(ISNA(MATCH(B253,'Standing Data'!$E$49:$E$148,0)))<>0,\"\",\"Error - counterparty with self\")),\"\")","v":""},{"$f":"IF(C253<>\"\",VLOOKUP(C253,'CP IDs'!A$2:B$5122,2,FALSE),\"\")","v":""},null,{"$f":"IFERROR(VLOOKUP(C253,'CP IDs'!$A$2:$D$4422,4,FALSE),\"\")","v":""},"",null,null,null,null,null,null,null,null,null,null,null,null,null,null,null,null,null,null,null,null,null,null,null,null,null,null,null,null,null,null,null,null,null,null,null,null,null,null,null,null,null,null,null,null,-500000,500000,null,1,1,31,null,0,0,0,null,{"$f":"AND(B253=$C$9,'Standing Data'!$D$9<>\"Multi-academy Trust\")","v":{"$error":"#N/A"}}]
[{"$f":"IF(B254<>\"\",IF('Standing Data'!$D$9<>\"Multi-academy Trust\",IF('Standing Data'!$D$15=B254,\"Error - counterparty with self\",\"\"),IF(N(ISNA(MATCH(B254,'Standing Data'!$E$49:$E$148,0)))<>0,\"\",\"Error - counterparty with self\")),\"\")","v":""},{"$f":"IF(C254<>\"\",VLOOKUP(C254,'CP IDs'!A$2:B$5122,2,FALSE),\"\")","v":""},null,{"$f":"IFERROR(VLOOKUP(C254,'CP IDs'!$A$2:$D$4422,4,FALSE),\"\")","v":""},"",null,null,null,null,null,null,null,null,null,null,null,null,null,null,null,null,null,null,null,null,null,null,null,null,null,null,null,null,null,null,null,null,null,null,null,null,null,null,null,null,null,null,null,null,-500000,500000,null,1,1,31,null,0,0,0,null,{"$f":"AND(B254=$C$9,'Standing Data'!$D$9<>\"Multi-academy Trust\")","v":{"$error":"#N/A"}}]
[{"$f":"IF(B255<>\"\",IF('Standing Data'!$D$9<>\"Multi-academy Trust\",IF('Standing Data'!$D$15=B255,\"Error - counterparty with self\",\"\"),IF(N(ISNA(MATCH(B255,'Standing Data'!$E$49:$E$148,0)))<>0,\"\",\"Error - counterparty with self\")),\"\")","v":""},{"$f":"IF(C255<>\"\",VLOOKUP(C255,'CP IDs'!A$2:B$5122,2,FALSE),\"\")","v":""},null,{"$f":"IFERROR(VLOOKUP(C255,'CP IDs'!$A$2:$D$4422,4,FALSE),\"\")","v":""},"",null,null,null,null,null,null,null,null,null,null,null,null,null,null,null,null,null,null,null,null,null,null,null,null,null,null,null,null,null,null,null,null,null,null,null,null,null,null,null,null,null,null,null,null,-500000,500000,null,1,1,31,null,0,0,0,null,{"$f":"AND(B255=$C$9,'Standing Data'!$D$9<>\"Multi-academy Trust\")","v":{"$error":"#N/A"}}]
[{"$f":"IF(B256<>\"\",IF('Standing Data'!$D$9<>\"Multi-academy Trust\",IF('Standing Data'!$D$15=B256,\"Error - counterparty with self\",\"\"),IF(N(ISNA(MATCH(B256,'Standing Data'!$E$49:$E$148,0)))<>0,\"\",\"Error - counterparty with self\")),\"\")","v":""},{"$f":"IF(C256<>\"\",VLOOKUP(C256,'CP IDs'!A$2:B$5122,2,FALSE),\"\")","v":""},null,{"$f":"IFERROR(VLOOKUP(C256,'CP IDs'!$A$2:$D$4422,4,FALSE),\"\")","v":""},"",null,null,null,null,null,null,null,null,null,null,null,null,null,null,null,null,null,null,null,null,null,null,null,null,null,null,null,null,null,null,null,null,null,null,null,null,null,null,null,null,null,null,null,null,-500000,500000,null,1,1,31,null,0,0,0,null,{"$f":"AND(B256=$C$9,'Standing Data'!$D$9<>\"Multi-academy Trust\")","v":{"$error":"#N/A"}}]
[{"$f":"IF(B257<>\"\",IF('Standing Data'!$D$9<>\"Multi-academy Trust\",IF('Standing Data'!$D$15=B257,\"Error - counterparty with self\",\"\"),IF(N(ISNA(MATCH(B257,'Standing Data'!$E$49:$E$148,0)))<>0,\"\",\"Error - counterparty with self\")),\"\")","v":""},{"$f":"IF(C257<>\"\",VLOOKUP(C257,'CP IDs'!A$2:B$5122,2,FALSE),\"\")","v":""},null,{"$f":"IFERROR(VLOOKUP(C257,'CP IDs'!$A$2:$D$4422,4,FALSE),\"\")","v":""},"",null,null,null,null,null,null,null,null,null,null,null,null,null,null,null,null,null,null,null,null,null,null,null,null,null,null,null,null,null,null,null,null,null,null,null,null,null,null,null,null,null,null,null,null,-500000,500000,null,1,1,31,null,0,0,0,null,{"$f":"AND(B257=$C$9,'Standing Data'!$D$9<>\"Multi-academy Trust\")","v":{"$error":"#N/A"}}]
[{"$f":"IF(B258<>\"\",IF('Standing Data'!$D$9<>\"Multi-academy Trust\",IF('Standing Data'!$D$15=B258,\"Error - counterparty with self\",\"\"),IF(N(ISNA(MATCH(B258,'Standing Data'!$E$49:$E$148,0)))<>0,\"\",\"Error - counterparty with self\")),\"\")","v":""},{"$f":"IF(C258<>\"\",VLOOKUP(C258,'CP IDs'!A$2:B$5122,2,FALSE),\"\")","v":""},null,{"$f":"IFERROR(VLOOKUP(C258,'CP IDs'!$A$2:$D$4422,4,FALSE),\"\")","v":""},"",null,null,null,null,null,null,null,null,null,null,null,null,null,null,null,null,null,null,null,null,null,null,null,null,null,null,null,null,null,null,null,null,null,null,null,null,null,null,null,null,null,null,null,null,-500000,500000,null,1,1,31,null,0,0,0,null,{"$f":"AND(B258=$C$9,'Standing Data'!$D$9<>\"Multi-academy Trust\")","v":{"$error":"#N/A"}}]
[{"$f":"IF(B259<>\"\",IF('Standing Data'!$D$9<>\"Multi-academy Trust\",IF('Standing Data'!$D$15=B259,\"Error - counterparty with self\",\"\"),IF(N(ISNA(MATCH(B259,'Standing Data'!$E$49:$E$148,0)))<>0,\"\",\"Error - counterparty with self\")),\"\")","v":""},{"$f":"IF(C259<>\"\",VLOOKUP(C259,'CP IDs'!A$2:B$5122,2,FALSE),\"\")","v":""},null,{"$f":"IFERROR(VLOOKUP(C259,'CP IDs'!$A$2:$D$4422,4,FALSE),\"\")","v":""},"",null,null,null,null,null,null,null,null,null,null,null,null,null,null,null,null,null,null,null,null,null,null,null,null,null,null,null,null,null,null,null,null,null,null,null,null,null,null,null,null,null,null,null,null,-500000,500000,null,1,1,31,null,0,0,0,null,{"$f":"AND(B259=$C$9,'Standing Data'!$D$9<>\"Multi-academy Trust\")","v":{"$error":"#N/A"}}]
[{"$f":"IF(B260<>\"\",IF('Standing Data'!$D$9<>\"Multi-academy Trust\",IF('Standing Data'!$D$15=B260,\"Error - counterparty with self\",\"\"),IF(N(ISNA(MATCH(B260,'Standing Data'!$E$49:$E$148,0)))<>0,\"\",\"Error - counterparty with self\")),\"\")","v":""},{"$f":"IF(C260<>\"\",VLOOKUP(C260,'CP IDs'!A$2:B$5122,2,FALSE),\"\")","v":""},null,{"$f":"IFERROR(VLOOKUP(C260,'CP IDs'!$A$2:$D$4422,4,FALSE),\"\")","v":""},"",null,null,null,null,null,null,null,null,null,null,null,null,null,null,null,null,null,null,null,null,null,null,null,null,null,null,null,null,null,null,null,null,null,null,null,null,null,null,null,null,null,null,null,null,-500000,500000,null,1,1,31,null,0,0,0,null,{"$f":"AND(B260=$C$9,'Standing Data'!$D$9<>\"Multi-academy Trust\")","v":{"$error":"#N/A"}}]
[{"$f":"IF(B261<>\"\",IF('Standing Data'!$D$9<>\"Multi-academy Trust\",IF('Standing Data'!$D$15=B261,\"Error - counterparty with self\",\"\"),IF(N(ISNA(MATCH(B261,'Standing Data'!$E$49:$E$148,0)))<>0,\"\",\"Error - counterparty with self\")),\"\")","v":""},{"$f":"IF(C261<>\"\",VLOOKUP(C261,'CP IDs'!A$2:B$5122,2,FALSE),\"\")","v":""},null,{"$f":"IFERROR(VLOOKUP(C261,'CP IDs'!$A$2:$D$4422,4,FALSE),\"\")","v":""},"",null,null,null,null,null,null,null,null,null,null,null,null,null,null,null,null,null,null,null,null,null,null,null,null,null,null,null,null,null,null,null,null,null,null,null,null,null,null,null,null,null,null,null,null,-500000,500000,null,1,1,31,null,0,0,0,null,{"$f":"AND(B261=$C$9,'Standing Data'!$D$9<>\"Multi-academy Trust\")","v":{"$error":"#N/A"}}]
[{"$f":"IF(B262<>\"\",IF('Standing Data'!$D$9<>\"Multi-academy Trust\",IF('Standing Data'!$D$15=B262,\"Error - counterparty with self\",\"\"),IF(N(ISNA(MATCH(B262,'Standing Data'!$E$49:$E$148,0)))<>0,\"\",\"Error - counterparty with self\")),\"\")","v":""},{"$f":"IF(C262<>\"\",VLOOKUP(C262,'CP IDs'!A$2:B$5122,2,FALSE),\"\")","v":""},null,{"$f":"IFERROR(VLOOKUP(C262,'CP IDs'!$A$2:$D$4422,4,FALSE),\"\")","v":""},"",null,null,null,null,null,null,null,null,null,null,null,null,null,null,null,null,null,null,null,null,null,null,null,null,null,null,null,null,null,null,null,null,null,null,null,null,null,null,null,null,null,null,null,null,-500000,500000,null,1,1,31,null,0,0,0,null,{"$f":"AND(B262=$C$9,'Standing Data'!$D$9<>\"Multi-academy Trust\")","v":{"$error":"#N/A"}}]
[{"$f":"IF(B263<>\"\",IF('Standing Data'!$D$9<>\"Multi-academy Trust\",IF('Standing Data'!$D$15=B263,\"Error - counterparty with self\",\"\"),IF(N(ISNA(MATCH(B263,'Standing Data'!$E$49:$E$148,0)))<>0,\"\",\"Error - counterparty with self\")),\"\")","v":""},{"$f":"IF(C263<>\"\",VLOOKUP(C263,'CP IDs'!A$2:B$5122,2,FALSE),\"\")","v":""},null,{"$f":"IFERROR(VLOOKUP(C263,'CP IDs'!$A$2:$D$4422,4,FALSE),\"\")","v":""},"",null,null,null,null,null,null,null,null,null,null,null,null,null,null,null,null,null,null,null,null,null,null,null,null,null,null,null,null,null,null,null,null,null,null,null,null,null,null,null,null,null,null,null,null,-500000,500000,null,1,1,31,null,0,0,0,null,{"$f":"AND(B263=$C$9,'Standing Data'!$D$9<>\"Multi-academy Trust\")","v":{"$error":"#N/A"}}]
[{"$f":"IF(B264<>\"\",IF('Standing Data'!$D$9<>\"Multi-academy Trust\",IF('Standing Data'!$D$15=B264,\"Error - counterparty with self\",\"\"),IF(N(ISNA(MATCH(B264,'Standing Data'!$E$49:$E$148,0)))<>0,\"\",\"Error - counterparty with self\")),\"\")","v":""},{"$f":"IF(C264<>\"\",VLOOKUP(C264,'CP IDs'!A$2:B$5122,2,FALSE),\"\")","v":""},null,{"$f":"IFERROR(VLOOKUP(C264,'CP IDs'!$A$2:$D$4422,4,FALSE),\"\")","v":""},"",null,null,null,null,null,null,null,null,null,null,null,null,null,null,null,null,null,null,null,null,null,null,null,null,null,null,null,null,null,null,null,null,null,null,null,null,null,null,null,null,null,null,null,null,-500000,500000,null,1,1,31,null,0,0,0,null,{"$f":"AND(B264=$C$9,'Standing Data'!$D$9<>\"Multi-academy Trust\")","v":{"$error":"#N/A"}}]
[{"$f":"IF(B265<>\"\",IF('Standing Data'!$D$9<>\"Multi-academy Trust\",IF('Standing Data'!$D$15=B265,\"Error - counterparty with self\",\"\"),IF(N(ISNA(MATCH(B265,'Standing Data'!$E$49:$E$148,0)))<>0,\"\",\"Error - counterparty with self\")),\"\")","v":""},{"$f":"IF(C265<>\"\",VLOOKUP(C265,'CP IDs'!A$2:B$5122,2,FALSE),\"\")","v":""},null,{"$f":"IFERROR(VLOOKUP(C265,'CP IDs'!$A$2:$D$4422,4,FALSE),\"\")","v":""},"",null,null,null,null,null,null,null,null,null,null,null,null,null,null,null,null,null,null,null,null,null,null,null,null,null,null,null,null,null,null,null,null,null,null,null,null,null,null,null,null,null,null,null,null,-500000,500000,null,1,1,31,null,0,0,0,null,{"$f":"AND(B265=$C$9,'Standing Data'!$D$9<>\"Multi-academy Trust\")","v":{"$error":"#N/A"}}]
[{"$f":"IF(B266<>\"\",IF('Standing Data'!$D$9<>\"Multi-academy Trust\",IF('Standing Data'!$D$15=B266,\"Error - counterparty with self\",\"\"),IF(N(ISNA(MATCH(B266,'Standing Data'!$E$49:$E$148,0)))<>0,\"\",\"Error - counterparty with self\")),\"\")","v":""},{"$f":"IF(C266<>\"\",VLOOKUP(C266,'CP IDs'!A$2:B$5122,2,FALSE),\"\")","v":""},null,{"$f":"IFERROR(VLOOKUP(C266,'CP IDs'!$A$2:$D$4422,4,FALSE),\"\")","v":""},"",null,null,null,null,null,null,null,null,null,null,null,null,null,null,null,null,null,null,null,null,null,null,null,null,null,null,null,null,null,null,null,null,null,null,null,null,null,null,null,null,null,null,null,null,-500000,500000,null,1,1,31,null,0,0,0,null,{"$f":"AND(B266=$C$9,'Standing Data'!$D$9<>\"Multi-academy Trust\")","v":{"$error":"#N/A"}}]
[{"$f":"IF(B267<>\"\",IF('Standing Data'!$D$9<>\"Multi-academy Trust\",IF('Standing Data'!$D$15=B267,\"Error - counterparty with self\",\"\"),IF(N(ISNA(MATCH(B267,'Standing Data'!$E$49:$E$148,0)))<>0,\"\",\"Error - counterparty with self\")),\"\")","v":""},{"$f":"IF(C267<>\"\",VLOOKUP(C267,'CP IDs'!A$2:B$5122,2,FALSE),\"\")","v":""},null,{"$f":"IFERROR(VLOOKUP(C267,'CP IDs'!$A$2:$D$4422,4,FALSE),\"\")","v":""},"",null,null,null,null,null,null,null,null,null,null,null,null,null,null,null,null,null,null,null,null,null,null,null,null,null,null,null,null,null,null,null,null,null,null,null,null,null,null,null,null,null,null,null,null,-500000,500000,null,1,1,31,null,0,0,0,null,{"$f":"AND(B267=$C$9,'Standing Data'!$D$9<>\"Multi-academy Trust\")","v":{"$error":"#N/A"}}]
[{"$f":"IF(B268<>\"\",IF('Standing Data'!$D$9<>\"Multi-academy Trust\",IF('Standing Data'!$D$15=B268,\"Error - counterparty with self\",\"\"),IF(N(ISNA(MATCH(B268,'Standing Data'!$E$49:$E$148,0)))<>0,\"\",\"Error - counterparty with self\")),\"\")","v":""},{"$f":"IF(C268<>\"\",VLOOKUP(C268,'CP IDs'!A$2:B$5122,2,FALSE),\"\")","v":""},null,{"$f":"IFERROR(VLOOKUP(C268,'CP IDs'!$A$2:$D$4422,4,FALSE),\"\")","v":""},"",null,null,null,null,null,null,null,null,null,null,null,null,null,null,null,null,null,null,null,null,null,null,null,null,null,null,null,null,null,null,null,null,null,null,null,null,null,null,null,null,null,null,null,null,-500000,500000,null,1,1,31,null,0,0,0,null,{"$f":"AND(B268=$C$9,'Standing Data'!$D$9<>\"Multi-academy Trust\")","v":{"$error":"#N/A"}}]
[{"$f":"IF(B269<>\"\",IF('Standing Data'!$D$9<>\"Multi-academy Trust\",IF('Standing Data'!$D$15=B269,\"Error - counterparty with self\",\"\"),IF(N(ISNA(MATCH(B269,'Standing Data'!$E$49:$E$148,0)))<>0,\"\",\"Error - counterparty with self\")),\"\")","v":""},{"$f":"IF(C269<>\"\",VLOOKUP(C269,'CP IDs'!A$2:B$5122,2,FALSE),\"\")","v":""},null,{"$f":"IFERROR(VLOOKUP(C269,'CP IDs'!$A$2:$D$4422,4,FALSE),\"\")","v":""},"",null,null,null,null,null,null,null,null,null,null,null,null,null,null,null,null,null,null,null,null,null,null,null,null,null,null,null,null,null,null,null,null,null,null,null,null,null,null,null,null,null,null,null,null,-500000,500000,null,1,1,31,null,0,0,0,null,{"$f":"AND(B269=$C$9,'Standing Data'!$D$9<>\"Multi-academy Trust\")","v":{"$error":"#N/A"}}]
[{"$f":"IF(B270<>\"\",IF('Standing Data'!$D$9<>\"Multi-academy Trust\",IF('Standing Data'!$D$15=B270,\"Error - counterparty with self\",\"\"),IF(N(ISNA(MATCH(B270,'Standing Data'!$E$49:$E$148,0)))<>0,\"\",\"Error - counterparty with self\")),\"\")","v":""},{"$f":"IF(C270<>\"\",VLOOKUP(C270,'CP IDs'!A$2:B$5122,2,FALSE),\"\")","v":""},null,{"$f":"IFERROR(VLOOKUP(C270,'CP IDs'!$A$2:$D$4422,4,FALSE),\"\")","v":""},"",null,null,null,null,null,null,null,null,null,null,null,null,null,null,null,null,null,null,null,null,null,null,null,null,null,null,null,null,null,null,null,null,null,null,null,null,null,null,null,null,null,null,null,null,-500000,500000,null,1,1,31,null,0,0,0,null,{"$f":"AND(B270=$C$9,'Standing Data'!$D$9<>\"Multi-academy Trust\")","v":{"$error":"#N/A"}}]
[{"$f":"IF(B271<>\"\",IF('Standing Data'!$D$9<>\"Multi-academy Trust\",IF('Standing Data'!$D$15=B271,\"Error - counterparty with self\",\"\"),IF(N(ISNA(MATCH(B271,'Standing Data'!$E$49:$E$148,0)))<>0,\"\",\"Error - counterparty with self\")),\"\")","v":""},{"$f":"IF(C271<>\"\",VLOOKUP(C271,'CP IDs'!A$2:B$5122,2,FALSE),\"\")","v":""},null,{"$f":"IFERROR(VLOOKUP(C271,'CP IDs'!$A$2:$D$4422,4,FALSE),\"\")","v":""},"",null,null,null,null,null,null,null,null,null,null,null,null,null,null,null,null,null,null,null,null,null,null,null,null,null,null,null,null,null,null,null,null,null,null,null,null,null,null,null,null,null,null,null,null,-500000,500000,null,1,1,31,null,0,0,0,null,{"$f":"AND(B271=$C$9,'Standing Data'!$D$9<>\"Multi-academy Trust\")","v":{"$error":"#N/A"}}]
[{"$f":"IF(B272<>\"\",IF('Standing Data'!$D$9<>\"Multi-academy Trust\",IF('Standing Data'!$D$15=B272,\"Error - counterparty with self\",\"\"),IF(N(ISNA(MATCH(B272,'Standing Data'!$E$49:$E$148,0)))<>0,\"\",\"Error - counterparty with self\")),\"\")","v":""},{"$f":"IF(C272<>\"\",VLOOKUP(C272,'CP IDs'!A$2:B$5122,2,FALSE),\"\")","v":""},null,{"$f":"IFERROR(VLOOKUP(C272,'CP IDs'!$A$2:$D$4422,4,FALSE),\"\")","v":""},"",null,null,null,null,null,null,null,null,null,null,null,null,null,null,null,null,null,null,null,null,null,null,null,null,null,null,null,null,null,null,null,null,null,null,null,null,null,null,null,null,null,null,null,null,-500000,500000,null,1,1,31,null,0,0,0,null,{"$f":"AND(B272=$C$9,'Standing Data'!$D$9<>\"Multi-academy Trust\")","v":{"$error":"#N/A"}}]
[{"$f":"IF(B273<>\"\",IF('Standing Data'!$D$9<>\"Multi-academy Trust\",IF('Standing Data'!$D$15=B273,\"Error - counterparty with self\",\"\"),IF(N(ISNA(MATCH(B273,'Standing Data'!$E$49:$E$148,0)))<>0,\"\",\"Error - counterparty with self\")),\"\")","v":""},{"$f":"IF(C273<>\"\",VLOOKUP(C273,'CP IDs'!A$2:B$5122,2,FALSE),\"\")","v":""},null,{"$f":"IFERROR(VLOOKUP(C273,'CP IDs'!$A$2:$D$4422,4,FALSE),\"\")","v":""},"",null,null,null,null,null,null,null,null,null,null,null,null,null,null,null,null,null,null,null,null,null,null,null,null,null,null,null,null,null,null,null,null,null,null,null,null,null,null,null,null,null,null,null,null,-500000,500000,null,1,1,31,null,0,0,0,null,{"$f":"AND(B273=$C$9,'Standing Data'!$D$9<>\"Multi-academy Trust\")","v":{"$error":"#N/A"}}]
[{"$f":"IF(B274<>\"\",IF('Standing Data'!$D$9<>\"Multi-academy Trust\",IF('Standing Data'!$D$15=B274,\"Error - counterparty with self\",\"\"),IF(N(ISNA(MATCH(B274,'Standing Data'!$E$49:$E$148,0)))<>0,\"\",\"Error - counterparty with self\")),\"\")","v":""},{"$f":"IF(C274<>\"\",VLOOKUP(C274,'CP IDs'!A$2:B$5122,2,FALSE),\"\")","v":""},null,{"$f":"IFERROR(VLOOKUP(C274,'CP IDs'!$A$2:$D$4422,4,FALSE),\"\")","v":""},"",null,null,null,null,null,null,null,null,null,null,null,null,null,null,null,null,null,null,null,null,null,null,null,null,null,null,null,null,null,null,null,null,null,null,null,null,null,null,null,null,null,null,null,null,-500000,500000,null,1,1,31,null,0,0,0,null,{"$f":"AND(B274=$C$9,'Standing Data'!$D$9<>\"Multi-academy Trust\")","v":{"$error":"#N/A"}}]
[{"$f":"IF(B275<>\"\",IF('Standing Data'!$D$9<>\"Multi-academy Trust\",IF('Standing Data'!$D$15=B275,\"Error - counterparty with self\",\"\"),IF(N(ISNA(MATCH(B275,'Standing Data'!$E$49:$E$148,0)))<>0,\"\",\"Error - counterparty with self\")),\"\")","v":""},{"$f":"IF(C275<>\"\",VLOOKUP(C275,'CP IDs'!A$2:B$5122,2,FALSE),\"\")","v":""},null,{"$f":"IFERROR(VLOOKUP(C275,'CP IDs'!$A$2:$D$4422,4,FALSE),\"\")","v":""},"",null,null,null,null,null,null,null,null,null,null,null,null,null,null,null,null,null,null,null,null,null,null,null,null,null,null,null,null,null,null,null,null,null,null,null,null,null,null,null,null,null,null,null,null,-500000,500000,null,1,1,31,null,0,0,0,null,{"$f":"AND(B275=$C$9,'Standing Data'!$D$9<>\"Multi-academy Trust\")","v":{"$error":"#N/A"}}]
[{"$f":"IF(B276<>\"\",IF('Standing Data'!$D$9<>\"Multi-academy Trust\",IF('Standing Data'!$D$15=B276,\"Error - counterparty with self\",\"\"),IF(N(ISNA(MATCH(B276,'Standing Data'!$E$49:$E$148,0)))<>0,\"\",\"Error - counterparty with self\")),\"\")","v":""},{"$f":"IF(C276<>\"\",VLOOKUP(C276,'CP IDs'!A$2:B$5122,2,FALSE),\"\")","v":""},null,{"$f":"IFERROR(VLOOKUP(C276,'CP IDs'!$A$2:$D$4422,4,FALSE),\"\")","v":""},"",null,null,null,null,null,null,null,null,null,null,null,null,null,null,null,null,null,null,null,null,null,null,null,null,null,null,null,null,null,null,null,null,null,null,null,null,null,null,null,null,null,null,null,null,-500000,500000,null,1,1,31,null,0,0,0,null,{"$f":"AND(B276=$C$9,'Standing Data'!$D$9<>\"Multi-academy Trust\")","v":{"$error":"#N/A"}}]
[{"$f":"IF(B277<>\"\",IF('Standing Data'!$D$9<>\"Multi-academy Trust\",IF('Standing Data'!$D$15=B277,\"Error - counterparty with self\",\"\"),IF(N(ISNA(MATCH(B277,'Standing Data'!$E$49:$E$148,0)))<>0,\"\",\"Error - counterparty with self\")),\"\")","v":""},{"$f":"IF(C277<>\"\",VLOOKUP(C277,'CP IDs'!A$2:B$5122,2,FALSE),\"\")","v":""},null,{"$f":"IFERROR(VLOOKUP(C277,'CP IDs'!$A$2:$D$4422,4,FALSE),\"\")","v":""},"",null,null,null,null,null,null,null,null,null,null,null,null,null,null,null,null,null,null,null,null,null,null,null,null,null,null,null,null,null,null,null,null,null,null,null,null,null,null,null,null,null,null,null,null,-500000,500000,null,1,1,31,null,0,0,{"$f":"COUNT(F277:AT277)","v":0},null,{"$f":"AND(B277=$C$9,'Standing Data'!$D$9<>\"Multi-academy Trust\")","v":{"$error":"#N/A"}}]
[{"$f":"IF(B278<>\"\",IF('Standing Data'!$D$9<>\"Multi-academy Trust\",IF('Standing Data'!$D$15=B278,\"Error - counterparty with self\",\"\"),IF(N(ISNA(MATCH(B278,'Standing Data'!$E$49:$E$148,0)))<>0,\"\",\"Error - counterparty with self\")),\"\")","v":""},{"$f":"IF(C278<>\"\",VLOOKUP(C278,'CP IDs'!A$2:B$5122,2,FALSE),\"\")","v":""},null,{"$f":"IFERROR(VLOOKUP(C278,'CP IDs'!$A$2:$D$4422,4,FALSE),\"\")","v":""},"",null,null,null,null,null,null,null,null,null,null,null,null,null,null,null,null,null,null,null,null,null,null,null,null,null,null,null,null,null,null,null,null,null,null,null,null,null,null,null,null,null,null,null,null,-500000,500000,null,1,1,31,null,0,0,0,null,{"$f":"AND(B278=$C$9,'Standing Data'!$D$9<>\"Multi-academy Trust\")","v":{"$error":"#N/A"}}]
[{"$f":"IF(B279<>\"\",IF('Standing Data'!$D$9<>\"Multi-academy Trust\",IF('Standing Data'!$D$15=B279,\"Error - counterparty with self\",\"\"),IF(N(ISNA(MATCH(B279,'Standing Data'!$E$49:$E$148,0)))<>0,\"\",\"Error - counterparty with self\")),\"\")","v":""},{"$f":"IF(C279<>\"\",VLOOKUP(C279,'CP IDs'!A$2:B$5122,2,FALSE),\"\")","v":""},null,{"$f":"IFERROR(VLOOKUP(C279,'CP IDs'!$A$2:$D$4422,4,FALSE),\"\")","v":""},"",null,null,null,null,null,null,null,null,null,null,null,null,null,null,null,null,null,null,null,null,null,null,null,null,null,null,null,null,null,null,null,null,null,null,null,null,null,null,null,null,null,null,null,null,{"$f":"AX278","v":-500000},{"$f":"AY278","v":500000},null,1,1,31,null,0,0,0,null,{"$f":"AND(B279=$C$9,'Standing Data'!$D$9<>\"Multi-academy Trust\")","v":{"$error":"#N/A"}}]
[{"$f":"IF(B280<>\"\",IF('Standing Data'!$D$9<>\"Multi-academy Trust\",IF('Standing Data'!$D$15=B280,\"Error - counterparty with self\",\"\"),IF(N(ISNA(MATCH(B280,'Standing Data'!$E$49:$E$148,0)))<>0,\"\",\"Error - counterparty with self\")),\"\")","v":""},{"$f":"IF(C280<>\"\",VLOOKUP(C280,'CP IDs'!A$2:B$5122,2,FALSE),\"\")","v":""},null,{"$f":"IFERROR(VLOOKUP(C280,'CP IDs'!$A$2:$D$4422,4,FALSE),\"\")","v":""},"",null,null,null,null,null,null,null,null,null,null,null,null,null,null,null,null,null,null,null,null,null,null,null,null,null,null,null,null,null,null,null,null,null,null,null,null,null,null,null,null,null,null,null,null,-500000,500000,null,1,1,31,null,0,0,0,null,{"$f":"AND(B280=$C$9,'Standing Data'!$D$9<>\"Multi-academy Trust\")","v":{"$error":"#N/A"}}]
[{"$f":"IF(B281<>\"\",IF('Standing Data'!$D$9<>\"Multi-academy Trust\",IF('Standing Data'!$D$15=B281,\"Error - counterparty with self\",\"\"),IF(N(ISNA(MATCH(B281,'Standing Data'!$E$49:$E$148,0)))<>0,\"\",\"Error - counterparty with self\")),\"\")","v":""},{"$f":"IF(C281<>\"\",VLOOKUP(C281,'CP IDs'!A$2:B$5122,2,FALSE),\"\")","v":""},null,{"$f":"IFERROR(VLOOKUP(C281,'CP IDs'!$A$2:$D$4422,4,FALSE),\"\")","v":""},"",null,null,null,null,null,null,null,null,null,null,null,null,null,null,null,null,null,null,null,null,null,null,null,null,null,null,null,null,null,null,null,null,null,null,null,null,null,null,null,null,null,null,null,null,-500000,500000,null,1,1,31,null,0,0,0,null,{"$f":"AND(B281=$C$9,'Standing Data'!$D$9<>\"Multi-academy Trust\")","v":{"$error":"#N/A"}}]
[{"$f":"IF(B282<>\"\",IF('Standing Data'!$D$9<>\"Multi-academy Trust\",IF('Standing Data'!$D$15=B282,\"Error - counterparty with self\",\"\"),IF(N(ISNA(MATCH(B282,'Standing Data'!$E$49:$E$148,0)))<>0,\"\",\"Error - counterparty with self\")),\"\")","v":""},{"$f":"IF(C282<>\"\",VLOOKUP(C282,'CP IDs'!A$2:B$5122,2,FALSE),\"\")","v":""},null,{"$f":"IFERROR(VLOOKUP(C282,'CP IDs'!$A$2:$D$4422,4,FALSE),\"\")","v":""},"",null,null,null,null,null,null,null,null,null,null,null,null,null,null,null,null,null,null,null,null,null,null,null,null,null,null,null,null,null,null,null,null,null,null,null,null,null,null,null,null,null,null,null,null,-500000,500000,null,1,1,31,null,0,0,0,null,{"$f":"AND(B282=$C$9,'Standing Data'!$D$9<>\"Multi-academy Trust\")","v":{"$error":"#N/A"}}]
[{"$f":"IF(B283<>\"\",IF('Standing Data'!$D$9<>\"Multi-academy Trust\",IF('Standing Data'!$D$15=B283,\"Error - counterparty with self\",\"\"),IF(N(ISNA(MATCH(B283,'Standing Data'!$E$49:$E$148,0)))<>0,\"\",\"Error - counterparty with self\")),\"\")","v":""},{"$f":"IF(C283<>\"\",VLOOKUP(C283,'CP IDs'!A$2:B$5122,2,FALSE),\"\")","v":""},null,{"$f":"IFERROR(VLOOKUP(C283,'CP IDs'!$A$2:$D$4422,4,FALSE),\"\")","v":""},"",null,null,null,null,null,null,null,null,null,null,null,null,null,null,null,null,null,null,null,null,null,null,null,null,null,null,null,null,null,null,null,null,null,null,null,null,null,null,null,null,null,null,null,null,-500000,500000,null,1,1,31,null,0,0,0,null,{"$f":"AND(B283=$C$9,'Standing Data'!$D$9<>\"Multi-academy Trust\")","v":{"$error":"#N/A"}}]
[{"$f":"IF(B284<>\"\",IF('Standing Data'!$D$9<>\"Multi-academy Trust\",IF('Standing Data'!$D$15=B284,\"Error - counterparty with self\",\"\"),IF(N(ISNA(MATCH(B284,'Standing Data'!$E$49:$E$148,0)))<>0,\"\",\"Error - counterparty with self\")),\"\")","v":""},{"$f":"IF(C284<>\"\",VLOOKUP(C284,'CP IDs'!A$2:B$5122,2,FALSE),\"\")","v":""},null,{"$f":"IFERROR(VLOOKUP(C284,'CP IDs'!$A$2:$D$4422,4,FALSE),\"\")","v":""},"",null,null,null,null,null,null,null,null,null,null,null,null,null,null,null,null,null,null,null,null,null,null,null,null,null,null,null,null,null,null,null,null,null,null,null,null,null,null,null,null,null,null,null,null,-500000,500000,null,1,1,31,null,0,0,0,null,{"$f":"AND(B284=$C$9,'Standing Data'!$D$9<>\"Multi-academy Trust\")","v":{"$error":"#N/A"}}]
[{"$f":"IF(B285<>\"\",IF('Standing Data'!$D$9<>\"Multi-academy Trust\",IF('Standing Data'!$D$15=B285,\"Error - counterparty with self\",\"\"),IF(N(ISNA(MATCH(B285,'Standing Data'!$E$49:$E$148,0)))<>0,\"\",\"Error - counterparty with self\")),\"\")","v":""},{"$f":"IF(C285<>\"\",VLOOKUP(C285,'CP IDs'!A$2:B$5122,2,FALSE),\"\")","v":""},null,{"$f":"IFERROR(VLOOKUP(C285,'CP IDs'!$A$2:$D$4422,4,FALSE),\"\")","v":""},"",null,null,null,null,null,null,null,null,null,null,null,null,null,null,null,null,null,null,null,null,null,null,null,null,null,null,null,null,null,null,null,null,null,null,null,null,null,null,null,null,null,null,null,null,-500000,500000,null,1,1,31,null,0,0,0,null,{"$f":"AND(B285=$C$9,'Standing Data'!$D$9<>\"Multi-academy Trust\")","v":{"$error":"#N/A"}}]
[{"$f":"IF(B286<>\"\",IF('Standing Data'!$D$9<>\"Multi-academy Trust\",IF('Standing Data'!$D$15=B286,\"Error - counterparty with self\",\"\"),IF(N(ISNA(MATCH(B286,'Standing Data'!$E$49:$E$148,0)))<>0,\"\",\"Error - counterparty with self\")),\"\")","v":""},{"$f":"IF(C286<>\"\",VLOOKUP(C286,'CP IDs'!A$2:B$5122,2,FALSE),\"\")","v":""},null,{"$f":"IFERROR(VLOOKUP(C286,'CP IDs'!$A$2:$D$4422,4,FALSE),\"\")","v":""},"",null,null,null,null,null,null,null,null,null,null,null,null,null,null,null,null,null,null,null,null,null,null,null,null,null,null,null,null,null,null,null,null,null,null,null,null,null,null,null,null,null,null,null,null,-500000,500000,null,1,1,31,null,{"$f":"COUNTA(C286)","v":0},{"$f":"1-COUNTBLANK(B286)","v":0},0,null,{"$f":"AND(B286=$C$9,'Standing Data'!$D$9<>\"Multi-academy Trust\")","v":{"$error":"#N/A"}}]
[{"$f":"IF(B287<>\"\",IF('Standing Data'!$D$9<>\"Multi-academy Trust\",IF('Standing Data'!$D$15=B287,\"Error - counterparty with self\",\"\"),IF(N(ISNA(MATCH(B287,'Standing Data'!$E$49:$E$148,0)))<>0,\"\",\"Error - counterparty with self\")),\"\")","v":""},{"$f":"IF(C287<>\"\",VLOOKUP(C287,'CP IDs'!A$2:B$5122,2,FALSE),\"\")","v":""},null,{"$f":"IFERROR(VLOOKUP(C287,'CP IDs'!$A$2:$D$4422,4,FALSE),\"\")","v":""},{"$f":"IF(OR(AND(COUNT(F287:AT287)>0,C287=\"\"),AND(COUNT(F287:AT287)=0,C287<>\"\")),\"Error - on line\",\"\")","v":""},null,null,null,null,null,null,null,null,null,null,null,null,null,null,null,null,null,null,null,null,null,null,null,null,null,null,null,null,null,null,null,null,null,null,null,null,null,null,null,null,null,null,null,null,-500000,500000,null,1,1,31,null,0,0,0,null,{"$f":"AND(B287=$C$9,'Standing Data'!$D$9<>\"Multi-academy Trust\")","v":{"$error":"#N/A"}}]
[{"$f":"IF(B288<>\"\",IF('Standing Data'!$D$9<>\"Multi-academy Trust\",IF('Standing Data'!$D$15=B288,\"Error - counterparty with self\",\"\"),IF(N(ISNA(MATCH(B288,'Standing Data'!$E$49:$E$148,0)))<>0,\"\",\"Error - counterparty with self\")),\"\")","v":""},{"$f":"IF(C288<>\"\",VLOOKUP(C288,'CP IDs'!A$2:B$5122,2,FALSE),\"\")","v":""},null,{"$f":"IFERROR(VLOOKUP(C288,'CP IDs'!$A$2:$D$4422,4,FALSE),\"\")","v":""},"",null,null,null,null,null,null,null,null,null,null,null,null,null,null,null,null,null,null,null,null,null,null,null,null,null,null,null,null,null,null,null,null,null,null,null,null,null,null,null,null,null,null,null,null,-500000,500000,null,1,1,31,null,0,0,0,null,{"$f":"AND(B288=$C$9,'Standing Data'!$D$9<>\"Multi-academy Trust\")","v":{"$error":"#N/A"}}]
[{"$f":"IF(B289<>\"\",IF('Standing Data'!$D$9<>\"Multi-academy Trust\",IF('Standing Data'!$D$15=B289,\"Error - counterparty with self\",\"\"),IF(N(ISNA(MATCH(B289,'Standing Data'!$E$49:$E$148,0)))<>0,\"\",\"Error - counterparty with self\")),\"\")","v":""},{"$f":"IF(C289<>\"\",VLOOKUP(C289,'CP IDs'!A$2:B$5122,2,FALSE),\"\")","v":""},null,{"$f":"IFERROR(VLOOKUP(C289,'CP IDs'!$A$2:$D$4422,4,FALSE),\"\")","v":""},"",null,null,null,null,null,null,null,null,null,null,null,null,null,null,null,null,null,null,null,null,null,null,null,null,null,null,null,null,null,null,null,null,null,null,null,null,null,null,null,null,null,null,null,null,-500000,500000,null,1,1,31,null,0,0,0,null,{"$f":"AND(B289=$C$9,'Standing Data'!$D$9<>\"Multi-academy Trust\")","v":{"$error":"#N/A"}}]
[{"$f":"IF(B290<>\"\",IF('Standing Data'!$D$9<>\"Multi-academy Trust\",IF('Standing Data'!$D$15=B290,\"Error - counterparty with self\",\"\"),IF(N(ISNA(MATCH(B290,'Standing Data'!$E$49:$E$148,0)))<>0,\"\",\"Error - counterparty with self\")),\"\")","v":""},{"$f":"IF(C290<>\"\",VLOOKUP(C290,'CP IDs'!A$2:B$5122,2,FALSE),\"\")","v":""},null,{"$f":"IFERROR(VLOOKUP(C290,'CP IDs'!$A$2:$D$4422,4,FALSE),\"\")","v":""},"",null,null,null,null,null,null,null,null,null,null,null,null,null,null,null,null,null,null,null,null,null,null,null,null,null,null,null,null,null,null,null,null,null,null,null,null,null,null,null,null,null,null,null,null,-500000,500000,null,1,1,31,null,0,0,0,null,{"$f":"AND(B290=$C$9,'Standing Data'!$D$9<>\"Multi-academy Trust\")","v":{"$error":"#N/A"}}]
[{"$f":"IF(B291<>\"\",IF('Standing Data'!$D$9<>\"Multi-academy Trust\",IF('Standing Data'!$D$15=B291,\"Error - counterparty with self\",\"\"),IF(N(ISNA(MATCH(B291,'Standing Data'!$E$49:$E$148,0)))<>0,\"\",\"Error - counterparty with self\")),\"\")","v":""},{"$f":"IF(C291<>\"\",VLOOKUP(C291,'CP IDs'!A$2:B$5122,2,FALSE),\"\")","v":""},null,{"$f":"IFERROR(VLOOKUP(C291,'CP IDs'!$A$2:$D$4422,4,FALSE),\"\")","v":""},"",null,null,null,null,null,null,null,null,null,null,null,null,null,null,null,null,null,null,null,null,null,null,null,null,null,null,null,null,null,null,null,null,null,null,null,null,null,null,null,null,null,null,null,null,-500000,500000,null,1,1,31,null,0,0,0,null,{"$f":"AND(B291=$C$9,'Standing Data'!$D$9<>\"Multi-academy Trust\")","v":{"$error":"#N/A"}}]
[{"$f":"IF(B292<>\"\",IF('Standing Data'!$D$9<>\"Multi-academy Trust\",IF('Standing Data'!$D$15=B292,\"Error - counterparty with self\",\"\"),IF(N(ISNA(MATCH(B292,'Standing Data'!$E$49:$E$148,0)))<>0,\"\",\"Error - counterparty with self\")),\"\")","v":""},{"$f":"IF(C292<>\"\",VLOOKUP(C292,'CP IDs'!A$2:B$5122,2,FALSE),\"\")","v":""},null,{"$f":"IFERROR(VLOOKUP(C292,'CP IDs'!$A$2:$D$4422,4,FALSE),\"\")","v":""},"",null,null,null,null,null,null,null,null,null,null,null,null,null,null,null,null,null,null,null,null,null,null,null,null,null,null,null,null,null,null,null,null,null,null,null,null,null,null,null,null,null,null,null,null,-500000,500000,null,1,1,31,null,0,0,0,null,{"$f":"AND(B292=$C$9,'Standing Data'!$D$9<>\"Multi-academy Trust\")","v":{"$error":"#N/A"}}]
[{"$f":"IF(B293<>\"\",IF('Standing Data'!$D$9<>\"Multi-academy Trust\",IF('Standing Data'!$D$15=B293,\"Error - counterparty with self\",\"\"),IF(N(ISNA(MATCH(B293,'Standing Data'!$E$49:$E$148,0)))<>0,\"\",\"Error - counterparty with self\")),\"\")","v":""},{"$f":"IF(C293<>\"\",VLOOKUP(C293,'CP IDs'!A$2:B$5122,2,FALSE),\"\")","v":""},null,{"$f":"IFERROR(VLOOKUP(C293,'CP IDs'!$A$2:$D$4422,4,FALSE),\"\")","v":""},"",null,null,null,null,null,null,null,null,null,null,null,null,null,null,null,null,null,null,null,null,null,null,null,null,null,null,null,null,null,null,null,null,null,null,null,null,null,null,null,null,null,null,null,null,-500000,500000,null,1,1,31,null,0,0,0,null,{"$f":"AND(B293=$C$9,'Standing Data'!$D$9<>\"Multi-academy Trust\")","v":{"$error":"#N/A"}}]
[{"$f":"IF(B294<>\"\",IF('Standing Data'!$D$9<>\"Multi-academy Trust\",IF('Standing Data'!$D$15=B294,\"Error - counterparty with self\",\"\"),IF(N(ISNA(MATCH(B294,'Standing Data'!$E$49:$E$148,0)))<>0,\"\",\"Error - counterparty with self\")),\"\")","v":""},{"$f":"IF(C294<>\"\",VLOOKUP(C294,'CP IDs'!A$2:B$5122,2,FALSE),\"\")","v":""},null,{"$f":"IFERROR(VLOOKUP(C294,'CP IDs'!$A$2:$D$4422,4,FALSE),\"\")","v":""},"",null,null,null,null,null,null,null,null,null,null,null,null,null,null,null,null,null,null,null,null,null,null,null,null,null,null,null,null,null,null,null,null,null,null,null,null,null,null,null,null,null,null,null,null,-500000,500000,null,1,1,31,null,0,0,0,null,{"$f":"AND(B294=$C$9,'Standing Data'!$D$9<>\"Multi-academy Trust\")","v":{"$error":"#N/A"}}]
[{"$f":"IF(B295<>\"\",IF('Standing Data'!$D$9<>\"Multi-academy Trust\",IF('Standing Data'!$D$15=B295,\"Error - counterparty with self\",\"\"),IF(N(ISNA(MATCH(B295,'Standing Data'!$E$49:$E$148,0)))<>0,\"\",\"Error - counterparty with self\")),\"\")","v":""},{"$f":"IF(C295<>\"\",VLOOKUP(C295,'CP IDs'!A$2:B$5122,2,FALSE),\"\")","v":""},null,{"$f":"IFERROR(VLOOKUP(C295,'CP IDs'!$A$2:$D$4422,4,FALSE),\"\")","v":""},"",null,null,null,null,null,null,null,null,null,null,null,null,null,null,null,null,null,null,null,null,null,null,null,null,null,null,null,null,null,null,null,null,null,null,null,null,null,null,null,null,null,null,null,null,-500000,500000,null,1,1,31,null,0,0,0,null,{"$f":"AND(B295=$C$9,'Standing Data'!$D$9<>\"Multi-academy Trust\")","v":{"$error":"#N/A"}}]
[{"$f":"IF(B296<>\"\",IF('Standing Data'!$D$9<>\"Multi-academy Trust\",IF('Standing Data'!$D$15=B296,\"Error - counterparty with self\",\"\"),IF(N(ISNA(MATCH(B296,'Standing Data'!$E$49:$E$148,0)))<>0,\"\",\"Error - counterparty with self\")),\"\")","v":""},{"$f":"IF(C296<>\"\",VLOOKUP(C296,'CP IDs'!A$2:B$5122,2,FALSE),\"\")","v":""},null,{"$f":"IFERROR(VLOOKUP(C296,'CP IDs'!$A$2:$D$4422,4,FALSE),\"\")","v":""},"",null,null,null,null,null,null,null,null,null,null,null,null,null,null,null,null,null,null,null,null,null,null,null,null,null,null,null,null,null,null,null,null,null,null,null,null,null,null,null,null,null,null,null,null,-500000,500000,null,1,1,31,null,0,0,0,null,{"$f":"AND(B296=$C$9,'Standing Data'!$D$9<>\"Multi-academy Trust\")","v":{"$error":"#N/A"}}]
[{"$f":"IF(B297<>\"\",IF('Standing Data'!$D$9<>\"Multi-academy Trust\",IF('Standing Data'!$D$15=B297,\"Error - counterparty with self\",\"\"),IF(N(ISNA(MATCH(B297,'Standing Data'!$E$49:$E$148,0)))<>0,\"\",\"Error - counterparty with self\")),\"\")","v":""},{"$f":"IF(C297<>\"\",VLOOKUP(C297,'CP IDs'!A$2:B$5122,2,FALSE),\"\")","v":""},null,{"$f":"IFERROR(VLOOKUP(C297,'CP IDs'!$A$2:$D$4422,4,FALSE),\"\")","v":""},"",null,null,null,null,null,null,null,null,null,null,null,null,null,null,null,null,null,null,null,null,null,null,null,null,null,null,null,null,null,null,null,null,null,null,null,null,null,null,null,null,null,null,null,null,-500000,500000,null,1,1,31,null,0,0,0,null,{"$f":"AND(B297=$C$9,'Standing Data'!$D$9<>\"Multi-academy Trust\")","v":{"$error":"#N/A"}}]
[{"$f":"IF(B298<>\"\",IF('Standing Data'!$D$9<>\"Multi-academy Trust\",IF('Standing Data'!$D$15=B298,\"Error - counterparty with self\",\"\"),IF(N(ISNA(MATCH(B298,'Standing Data'!$E$49:$E$148,0)))<>0,\"\",\"Error - counterparty with self\")),\"\")","v":""},{"$f":"IF(C298<>\"\",VLOOKUP(C298,'CP IDs'!A$2:B$5122,2,FALSE),\"\")","v":""},null,{"$f":"IFERROR(VLOOKUP(C298,'CP IDs'!$A$2:$D$4422,4,FALSE),\"\")","v":""},"",null,null,null,null,null,null,null,null,null,null,null,null,null,null,null,null,null,null,null,null,null,null,null,null,null,null,null,null,null,null,null,null,null,null,null,null,null,null,null,null,null,null,null,null,-500000,500000,null,1,1,31,null,0,0,0,null,{"$f":"AND(B298=$C$9,'Standing Data'!$D$9<>\"Multi-academy Trust\")","v":{"$error":"#N/A"}}]
[{"$f":"IF(B299<>\"\",IF('Standing Data'!$D$9<>\"Multi-academy Trust\",IF('Standing Data'!$D$15=B299,\"Error - counterparty with self\",\"\"),IF(N(ISNA(MATCH(B299,'Standing Data'!$E$49:$E$148,0)))<>0,\"\",\"Error - counterparty with self\")),\"\")","v":""},{"$f":"IF(C299<>\"\",VLOOKUP(C299,'CP IDs'!A$2:B$5122,2,FALSE),\"\")","v":""},null,{"$f":"IFERROR(VLOOKUP(C299,'CP IDs'!$A$2:$D$4422,4,FALSE),\"\")","v":""},"",null,null,null,null,null,null,null,null,null,null,null,null,null,null,null,null,null,null,null,null,null,null,null,null,null,null,null,null,null,null,null,null,null,null,null,null,null,null,null,null,null,null,null,null,-500000,500000,null,1,1,31,null,0,0,0,null,{"$f":"AND(B299=$C$9,'Standing Data'!$D$9<>\"Multi-academy Trust\")","v":{"$error":"#N/A"}}]
[{"$f":"IF(B300<>\"\",IF('Standing Data'!$D$9<>\"Multi-academy Trust\",IF('Standing Data'!$D$15=B300,\"Error - counterparty with self\",\"\"),IF(N(ISNA(MATCH(B300,'Standing Data'!$E$49:$E$148,0)))<>0,\"\",\"Error - counterparty with self\")),\"\")","v":""},{"$f":"IF(C300<>\"\",VLOOKUP(C300,'CP IDs'!A$2:B$5122,2,FALSE),\"\")","v":""},null,{"$f":"IFERROR(VLOOKUP(C300,'CP IDs'!$A$2:$D$4422,4,FALSE),\"\")","v":""},"",null,null,null,null,null,null,null,null,null,null,null,null,null,null,null,null,null,null,null,null,null,null,null,null,null,null,null,null,null,null,null,null,null,null,null,null,null,null,null,null,null,null,null,null,-500000,500000,null,1,1,31,null,0,0,0,null,{"$f":"AND(B300=$C$9,'Standing Data'!$D$9<>\"Multi-academy Trust\")","v":{"$error":"#N/A"}}]
[{"$f":"IF(B301<>\"\",IF('Standing Data'!$D$9<>\"Multi-academy Trust\",IF('Standing Data'!$D$15=B301,\"Error - counterparty with self\",\"\"),IF(N(ISNA(MATCH(B301,'Standing Data'!$E$49:$E$148,0)))<>0,\"\",\"Error - counterparty with self\")),\"\")","v":""},{"$f":"IF(C301<>\"\",VLOOKUP(C301,'CP IDs'!A$2:B$5122,2,FALSE),\"\")","v":""},null,{"$f":"IFERROR(VLOOKUP(C301,'CP IDs'!$A$2:$D$4422,4,FALSE),\"\")","v":""},"",null,null,null,null,null,null,null,null,null,null,null,null,null,null,null,null,null,null,null,null,null,null,null,null,null,null,null,null,null,null,null,null,null,null,null,null,null,null,null,null,null,null,null,null,-500000,500000,null,1,1,31,null,0,0,0,null,{"$f":"AND(B301=$C$9,'Standing Data'!$D$9<>\"Multi-academy Trust\")","v":{"$error":"#N/A"}}]
[{"$f":"IF(B302<>\"\",IF('Standing Data'!$D$9<>\"Multi-academy Trust\",IF('Standing Data'!$D$15=B302,\"Error - counterparty with self\",\"\"),IF(N(ISNA(MATCH(B302,'Standing Data'!$E$49:$E$148,0)))<>0,\"\",\"Error - counterparty with self\")),\"\")","v":""},{"$f":"IF(C302<>\"\",VLOOKUP(C302,'CP IDs'!A$2:B$5122,2,FALSE),\"\")","v":""},null,{"$f":"IFERROR(VLOOKUP(C302,'CP IDs'!$A$2:$D$4422,4,FALSE),\"\")","v":""},"",null,null,null,null,null,null,null,null,null,null,null,null,null,null,null,null,null,null,null,null,null,null,null,null,null,null,null,null,null,null,null,null,null,null,null,null,null,null,null,null,null,null,null,null,-500000,500000,null,1,1,31,null,0,0,0,null,{"$f":"AND(B302=$C$9,'Standing Data'!$D$9<>\"Multi-academy Trust\")","v":{"$error":"#N/A"}}]
[{"$f":"IF(B303<>\"\",IF('Standing Data'!$D$9<>\"Multi-academy Trust\",IF('Standing Data'!$D$15=B303,\"Error - counterparty with self\",\"\"),IF(N(ISNA(MATCH(B303,'Standing Data'!$E$49:$E$148,0)))<>0,\"\",\"Error - counterparty with self\")),\"\")","v":""},{"$f":"IF(C303<>\"\",VLOOKUP(C303,'CP IDs'!A$2:B$5122,2,FALSE),\"\")","v":""},null,{"$f":"IFERROR(VLOOKUP(C303,'CP IDs'!$A$2:$D$4422,4,FALSE),\"\")","v":""},"",null,null,null,null,null,null,null,null,null,null,null,null,null,null,null,null,null,null,null,null,null,null,null,null,null,null,null,null,null,null,null,null,null,null,null,null,null,null,null,null,null,null,null,null,-500000,500000,null,1,1,31,null,0,0,0,null,{"$f":"AND(B303=$C$9,'Standing Data'!$D$9<>\"Multi-academy Trust\")","v":{"$error":"#N/A"}}]
[{"$f":"IF(B304<>\"\",IF('Standing Data'!$D$9<>\"Multi-academy Trust\",IF('Standing Data'!$D$15=B304,\"Error - counterparty with self\",\"\"),IF(N(ISNA(MATCH(B304,'Standing Data'!$E$49:$E$148,0)))<>0,\"\",\"Error - counterparty with self\")),\"\")","v":""},{"$f":"IF(C304<>\"\",VLOOKUP(C304,'CP IDs'!A$2:B$5122,2,FALSE),\"\")","v":""},null,{"$f":"IFERROR(VLOOKUP(C304,'CP IDs'!$A$2:$D$4422,4,FALSE),\"\")","v":""},"",null,null,null,null,null,null,null,null,null,null,null,null,null,null,null,null,null,null,null,null,null,null,null,null,null,null,null,null,null,null,null,null,null,null,null,null,null,null,null,null,null,null,null,null,-500000,500000,null,1,1,31,null,0,0,0,null,{"$f":"AND(B304=$C$9,'Standing Data'!$D$9<>\"Multi-academy Trust\")","v":{"$error":"#N/A"}}]
[{"$f":"IF(B305<>\"\",IF('Standing Data'!$D$9<>\"Multi-academy Trust\",IF('Standing Data'!$D$15=B305,\"Error - counterparty with self\",\"\"),IF(N(ISNA(MATCH(B305,'Standing Data'!$E$49:$E$148,0)))<>0,\"\",\"Error - counterparty with self\")),\"\")","v":""},{"$f":"IF(C305<>\"\",VLOOKUP(C305,'CP IDs'!A$2:B$5122,2,FALSE),\"\")","v":""},null,{"$f":"IFERROR(VLOOKUP(C305,'CP IDs'!$A$2:$D$4422,4,FALSE),\"\")","v":""},"",null,null,null,null,null,null,null,null,null,null,null,null,null,null,null,null,null,null,null,null,null,null,null,null,null,null,null,null,null,null,null,null,null,null,null,null,null,null,null,null,null,null,null,null,-500000,500000,null,1,1,31,null,0,0,0,null,{"$f":"AND(B305=$C$9,'Standing Data'!$D$9<>\"Multi-academy Trust\")","v":{"$error":"#N/A"}}]
[{"$f":"IF(B306<>\"\",IF('Standing Data'!$D$9<>\"Multi-academy Trust\",IF('Standing Data'!$D$15=B306,\"Error - counterparty with self\",\"\"),IF(N(ISNA(MATCH(B306,'Standing Data'!$E$49:$E$148,0)))<>0,\"\",\"Error - counterparty with self\")),\"\")","v":""},{"$f":"IF(C306<>\"\",VLOOKUP(C306,'CP IDs'!A$2:B$5122,2,FALSE),\"\")","v":""},null,{"$f":"IFERROR(VLOOKUP(C306,'CP IDs'!$A$2:$D$4422,4,FALSE),\"\")","v":""},"",null,null,null,null,null,null,null,null,null,null,null,null,null,null,null,null,null,null,null,null,null,null,null,null,null,null,null,null,null,null,null,null,null,null,null,null,null,null,null,null,null,null,null,null,-500000,500000,null,1,1,31,null,0,0,0,null,{"$f":"AND(B306=$C$9,'Standing Data'!$D$9<>\"Multi-academy Trust\")","v":{"$error":"#N/A"}}]
[{"$f":"IF(B307<>\"\",IF('Standing Data'!$D$9<>\"Multi-academy Trust\",IF('Standing Data'!$D$15=B307,\"Error - counterparty with self\",\"\"),IF(N(ISNA(MATCH(B307,'Standing Data'!$E$49:$E$148,0)))<>0,\"\",\"Error - counterparty with self\")),\"\")","v":""},{"$f":"IF(C307<>\"\",VLOOKUP(C307,'CP IDs'!A$2:B$5122,2,FALSE),\"\")","v":""},null,{"$f":"IFERROR(VLOOKUP(C307,'CP IDs'!$A$2:$D$4422,4,FALSE),\"\")","v":""},"",null,null,null,null,null,null,null,null,null,null,null,null,null,null,null,null,null,null,null,null,null,null,null,null,null,null,null,null,null,null,null,null,null,null,null,null,null,null,null,null,null,null,null,null,-500000,500000,null,1,1,31,null,0,0,0,null,{"$f":"AND(B307=$C$9,'Standing Data'!$D$9<>\"Multi-academy Trust\")","v":{"$error":"#N/A"}}]
[{"$f":"IF(B308<>\"\",IF('Standing Data'!$D$9<>\"Multi-academy Trust\",IF('Standing Data'!$D$15=B308,\"Error - counterparty with self\",\"\"),IF(N(ISNA(MATCH(B308,'Standing Data'!$E$49:$E$148,0)))<>0,\"\",\"Error - counterparty with self\")),\"\")","v":""},{"$f":"IF(C308<>\"\",VLOOKUP(C308,'CP IDs'!A$2:B$5122,2,FALSE),\"\")","v":""},null,{"$f":"IFERROR(VLOOKUP(C308,'CP IDs'!$A$2:$D$4422,4,FALSE),\"\")","v":""},"",null,null,null,null,null,null,null,null,null,null,null,null,null,null,null,null,null,null,null,null,null,null,null,null,null,null,null,null,null,null,null,null,null,null,null,null,null,null,null,null,null,null,null,null,-500000,500000,null,1,1,31,null,0,0,0,null,{"$f":"AND(B308=$C$9,'Standing Data'!$D$9<>\"Multi-academy Trust\")","v":{"$error":"#N/A"}}]
[{"$f":"IF(B309<>\"\",IF('Standing Data'!$D$9<>\"Multi-academy Trust\",IF('Standing Data'!$D$15=B309,\"Error - counterparty with self\",\"\"),IF(N(ISNA(MATCH(B309,'Standing Data'!$E$49:$E$148,0)))<>0,\"\",\"Error - counterparty with self\")),\"\")","v":""},{"$f":"IF(C309<>\"\",VLOOKUP(C309,'CP IDs'!A$2:B$5122,2,FALSE),\"\")","v":""},null,{"$f":"IFERROR(VLOOKUP(C309,'CP IDs'!$A$2:$D$4422,4,FALSE),\"\")","v":""},"",null,null,null,null,null,null,null,null,null,null,null,null,null,null,null,null,null,null,null,null,null,null,null,null,null,null,null,null,null,null,null,null,null,null,null,null,null,null,null,null,null,null,null,null,-500000,500000,null,1,1,31,null,0,0,0,null,{"$f":"AND(B309=$C$9,'Standing Data'!$D$9<>\"Multi-academy Trust\")","v":{"$error":"#N/A"}}]
[{"$f":"IF(B310<>\"\",IF('Standing Data'!$D$9<>\"Multi-academy Trust\",IF('Standing Data'!$D$15=B310,\"Error - counterparty with self\",\"\"),IF(N(ISNA(MATCH(B310,'Standing Data'!$E$49:$E$148,0)))<>0,\"\",\"Error - counterparty with self\")),\"\")","v":""},{"$f":"IF(C310<>\"\",VLOOKUP(C310,'CP IDs'!A$2:B$5122,2,FALSE),\"\")","v":""},null,{"$f":"IFERROR(VLOOKUP(C310,'CP IDs'!$A$2:$D$4422,4,FALSE),\"\")","v":""},"",null,null,null,null,null,null,null,null,null,null,null,null,null,null,null,null,null,null,null,null,null,null,null,null,null,null,null,null,null,null,null,null,null,null,null,null,null,null,null,null,null,null,null,null,-500000,500000,null,1,1,31,null,0,0,0,null,{"$f":"AND(B310=$C$9,'Standing Data'!$D$9<>\"Multi-academy Trust\")","v":{"$error":"#N/A"}}]
[{"$f":"IF(B311<>\"\",IF('Standing Data'!$D$9<>\"Multi-academy Trust\",IF('Standing Data'!$D$15=B311,\"Error - counterparty with self\",\"\"),IF(N(ISNA(MATCH(B311,'Standing Data'!$E$49:$E$148,0)))<>0,\"\",\"Error - counterparty with self\")),\"\")","v":""},{"$f":"IF(C311<>\"\",VLOOKUP(C311,'CP IDs'!A$2:B$5122,2,FALSE),\"\")","v":""},null,{"$f":"IFERROR(VLOOKUP(C311,'CP IDs'!$A$2:$D$4422,4,FALSE),\"\")","v":""},"",null,null,null,null,null,null,null,null,null,null,null,null,null,null,null,null,null,null,null,null,null,null,null,null,null,null,null,null,null,null,null,null,null,null,null,null,null,null,null,null,null,null,null,null,-500000,500000,null,1,1,31,null,0,0,0,null,{"$f":"AND(B311=$C$9,'Standing Data'!$D$9<>\"Multi-academy Trust\")","v":{"$error":"#N/A"}}]
[{"$f":"IF(B312<>\"\",IF('Standing Data'!$D$9<>\"Multi-academy Trust\",IF('Standing Data'!$D$15=B312,\"Error - counterparty with self\",\"\"),IF(N(ISNA(MATCH(B312,'Standing Data'!$E$49:$E$148,0)))<>0,\"\",\"Error - counterparty with self\")),\"\")","v":""},{"$f":"IF(C312<>\"\",VLOOKUP(C312,'CP IDs'!A$2:B$5122,2,FALSE),\"\")","v":""},null,{"$f":"IFERROR(VLOOKUP(C312,'CP IDs'!$A$2:$D$4422,4,FALSE),\"\")","v":""},"",null,null,null,null,null,null,null,null,null,null,null,null,null,null,null,null,null,null,null,null,null,null,null,null,null,null,null,null,null,null,null,null,null,null,null,null,null,null,null,null,null,null,null,null,-500000,500000,null,1,1,31,null,0,0,0,null,{"$f":"AND(B312=$C$9,'Standing Data'!$D$9<>\"Multi-academy Trust\")","v":{"$error":"#N/A"}}]
[{"$f":"IF(B313<>\"\",IF('Standing Data'!$D$9<>\"Multi-academy Trust\",IF('Standing Data'!$D$15=B313,\"Error - counterparty with self\",\"\"),IF(N(ISNA(MATCH(B313,'Standing Data'!$E$49:$E$148,0)))<>0,\"\",\"Error - counterparty with self\")),\"\")","v":""},{"$f":"IF(C313<>\"\",VLOOKUP(C313,'CP IDs'!A$2:B$5122,2,FALSE),\"\")","v":""},null,{"$f":"IFERROR(VLOOKUP(C313,'CP IDs'!$A$2:$D$4422,4,FALSE),\"\")","v":""},"",null,null,null,null,null,null,null,null,null,null,null,null,null,null,null,null,null,null,null,null,null,null,null,null,null,null,null,null,null,null,null,null,null,null,null,null,null,null,null,null,null,null,null,null,-500000,500000,null,1,1,31,null,0,0,0,null,{"$f":"AND(B313=$C$9,'Standing Data'!$D$9<>\"Multi-academy Trust\")","v":{"$error":"#N/A"}}]
[{"$f":"IF(B314<>\"\",IF('Standing Data'!$D$9<>\"Multi-academy Trust\",IF('Standing Data'!$D$15=B314,\"Error - counterparty with self\",\"\"),IF(N(ISNA(MATCH(B314,'Standing Data'!$E$49:$E$148,0)))<>0,\"\",\"Error - counterparty with self\")),\"\")","v":""},{"$f":"IF(C314<>\"\",VLOOKUP(C314,'CP IDs'!A$2:B$5122,2,FALSE),\"\")","v":""},null,{"$f":"IFERROR(VLOOKUP(C314,'CP IDs'!$A$2:$D$4422,4,FALSE),\"\")","v":""},"",null,null,null,null,null,null,null,null,null,null,null,null,null,null,null,null,null,null,null,null,null,null,null,null,null,null,null,null,null,null,null,null,null,null,null,null,null,null,null,null,null,null,null,null,-500000,500000,null,1,1,31,null,0,0,0,null,{"$f":"AND(B314=$C$9,'Standing Data'!$D$9<>\"Multi-academy Trust\")","v":{"$error":"#N/A"}}]
[{"$f":"IF(B315<>\"\",IF('Standing Data'!$D$9<>\"Multi-academy Trust\",IF('Standing Data'!$D$15=B315,\"Error - counterparty with self\",\"\"),IF(N(ISNA(MATCH(B315,'Standing Data'!$E$49:$E$148,0)))<>0,\"\",\"Error - counterparty with self\")),\"\")","v":""},{"$f":"IF(C315<>\"\",VLOOKUP(C315,'CP IDs'!A$2:B$5122,2,FALSE),\"\")","v":""},null,{"$f":"IFERROR(VLOOKUP(C315,'CP IDs'!$A$2:$D$4422,4,FALSE),\"\")","v":""},"",null,null,null,null,null,null,null,null,null,null,null,null,null,null,null,null,null,null,null,null,null,null,null,null,null,null,null,null,null,null,null,null,null,null,null,null,null,null,null,null,null,null,null,null,-500000,500000,null,1,1,31,null,0,0,0,null,{"$f":"AND(B315=$C$9,'Standing Data'!$D$9<>\"Multi-academy Trust\")","v":{"$error":"#N/A"}}]
[{"$f":"IF(B316<>\"\",IF('Standing Data'!$D$9<>\"Multi-academy Trust\",IF('Standing Data'!$D$15=B316,\"Error - counterparty with self\",\"\"),IF(N(ISNA(MATCH(B316,'Standing Data'!$E$49:$E$148,0)))<>0,\"\",\"Error - counterparty with self\")),\"\")","v":""},{"$f":"IF(C316<>\"\",VLOOKUP(C316,'CP IDs'!A$2:B$5122,2,FALSE),\"\")","v":""},null,{"$f":"IFERROR(VLOOKUP(C316,'CP IDs'!$A$2:$D$4422,4,FALSE),\"\")","v":""},"",null,null,null,null,null,null,null,null,null,null,null,null,null,null,null,null,null,null,null,null,null,null,null,null,null,null,null,null,null,null,null,null,null,null,null,null,null,null,null,null,null,null,null,null,-500000,500000,null,1,1,31,null,0,0,0,null,{"$f":"AND(B316=$C$9,'Standing Data'!$D$9<>\"Multi-academy Trust\")","v":{"$error":"#N/A"}}]
[{"$f":"IF(B317<>\"\",IF('Standing Data'!$D$9<>\"Multi-academy Trust\",IF('Standing Data'!$D$15=B317,\"Error - counterparty with self\",\"\"),IF(N(ISNA(MATCH(B317,'Standing Data'!$E$49:$E$148,0)))<>0,\"\",\"Error - counterparty with self\")),\"\")","v":""},{"$f":"IF(C317<>\"\",VLOOKUP(C317,'CP IDs'!A$2:B$5122,2,FALSE),\"\")","v":""},null,{"$f":"IFERROR(VLOOKUP(C317,'CP IDs'!$A$2:$D$4422,4,FALSE),\"\")","v":""},"",null,null,null,null,null,null,null,null,null,null,null,null,null,null,null,null,null,null,null,null,null,null,null,null,null,null,null,null,null,null,null,null,null,null,null,null,null,null,null,null,null,null,null,null,-500000,500000,null,1,1,31,null,0,0,0,null,{"$f":"AND(B317=$C$9,'Standing Data'!$D$9<>\"Multi-academy Trust\")","v":{"$error":"#N/A"}}]
[{"$f":"IF(B318<>\"\",IF('Standing Data'!$D$9<>\"Multi-academy Trust\",IF('Standing Data'!$D$15=B318,\"Error - counterparty with self\",\"\"),IF(N(ISNA(MATCH(B318,'Standing Data'!$E$49:$E$148,0)))<>0,\"\",\"Error - counterparty with self\")),\"\")","v":""},{"$f":"IF(C318<>\"\",VLOOKUP(C318,'CP IDs'!A$2:B$5122,2,FALSE),\"\")","v":""},null,{"$f":"IFERROR(VLOOKUP(C318,'CP IDs'!$A$2:$D$4422,4,FALSE),\"\")","v":""},"",null,null,null,null,null,null,null,null,null,null,null,null,null,null,null,null,null,null,null,null,null,null,null,null,null,null,null,null,null,null,null,null,null,null,null,null,null,null,null,null,null,null,null,null,-500000,500000,null,1,1,31,null,0,0,0,null,{"$f":"AND(B318=$C$9,'Standing Data'!$D$9<>\"Multi-academy Trust\")","v":{"$error":"#N/A"}}]
[{"$f":"IF(B319<>\"\",IF('Standing Data'!$D$9<>\"Multi-academy Trust\",IF('Standing Data'!$D$15=B319,\"Error - counterparty with self\",\"\"),IF(N(ISNA(MATCH(B319,'Standing Data'!$E$49:$E$148,0)))<>0,\"\",\"Error - counterparty with self\")),\"\")","v":""},{"$f":"IF(C319<>\"\",VLOOKUP(C319,'CP IDs'!A$2:B$5122,2,FALSE),\"\")","v":""},null,{"$f":"IFERROR(VLOOKUP(C319,'CP IDs'!$A$2:$D$4422,4,FALSE),\"\")","v":""},"",null,null,null,null,null,null,null,null,null,null,null,null,null,null,null,null,null,null,null,null,null,null,null,null,null,null,null,null,null,null,null,null,null,null,null,null,null,null,null,null,null,null,null,null,-500000,500000,null,1,1,31,null,0,0,0,null,{"$f":"AND(B319=$C$9,'Standing Data'!$D$9<>\"Multi-academy Trust\")","v":{"$error":"#N/A"}}]
[{"$f":"IF(B320<>\"\",IF('Standing Data'!$D$9<>\"Multi-academy Trust\",IF('Standing Data'!$D$15=B320,\"Error - counterparty with self\",\"\"),IF(N(ISNA(MATCH(B320,'Standing Data'!$E$49:$E$148,0)))<>0,\"\",\"Error - counterparty with self\")),\"\")","v":""},{"$f":"IF(C320<>\"\",VLOOKUP(C320,'CP IDs'!A$2:B$5122,2,FALSE),\"\")","v":""},null,{"$f":"IFERROR(VLOOKUP(C320,'CP IDs'!$A$2:$D$4422,4,FALSE),\"\")","v":""},"",null,null,null,null,null,null,null,null,null,null,null,null,null,null,null,null,null,null,null,null,null,null,null,null,null,null,null,null,null,null,null,null,null,null,null,null,null,null,null,null,null,null,null,null,-500000,500000,null,1,1,31,null,0,0,0,null,{"$f":"AND(B320=$C$9,'Standing Data'!$D$9<>\"Multi-academy Trust\")","v":{"$error":"#N/A"}}]
[{"$f":"IF(B321<>\"\",IF('Standing Data'!$D$9<>\"Multi-academy Trust\",IF('Standing Data'!$D$15=B321,\"Error - counterparty with self\",\"\"),IF(N(ISNA(MATCH(B321,'Standing Data'!$E$49:$E$148,0)))<>0,\"\",\"Error - counterparty with self\")),\"\")","v":""},{"$f":"IF(C321<>\"\",VLOOKUP(C321,'CP IDs'!A$2:B$5122,2,FALSE),\"\")","v":""},null,{"$f":"IFERROR(VLOOKUP(C321,'CP IDs'!$A$2:$D$4422,4,FALSE),\"\")","v":""},"",null,null,null,null,null,null,null,null,null,null,null,null,null,null,null,null,null,null,null,null,null,null,null,null,null,null,null,null,null,null,null,null,null,null,null,null,null,null,null,null,null,null,null,null,-500000,500000,null,1,1,31,null,0,0,0,null,{"$f":"AND(B321=$C$9,'Standing Data'!$D$9<>\"Multi-academy Trust\")","v":{"$error":"#N/A"}}]
[{"$f":"IF(B322<>\"\",IF('Standing Data'!$D$9<>\"Multi-academy Trust\",IF('Standing Data'!$D$15=B322,\"Error - counterparty with self\",\"\"),IF(N(ISNA(MATCH(B322,'Standing Data'!$E$49:$E$148,0)))<>0,\"\",\"Error - counterparty with self\")),\"\")","v":""},{"$f":"IF(C322<>\"\",VLOOKUP(C322,'CP IDs'!A$2:B$5122,2,FALSE),\"\")","v":""},null,{"$f":"IFERROR(VLOOKUP(C322,'CP IDs'!$A$2:$D$4422,4,FALSE),\"\")","v":""},"",null,null,null,null,null,null,null,null,null,null,null,null,null,null,null,null,null,null,null,null,null,null,null,null,null,null,null,null,null,null,null,null,null,null,null,null,null,null,null,null,null,null,null,null,-500000,500000,null,1,1,31,null,0,0,0,null,{"$f":"AND(B322=$C$9,'Standing Data'!$D$9<>\"Multi-academy Trust\")","v":{"$error":"#N/A"}}]
[{"$f":"IF(B323<>\"\",IF('Standing Data'!$D$9<>\"Multi-academy Trust\",IF('Standing Data'!$D$15=B323,\"Error - counterparty with self\",\"\"),IF(N(ISNA(MATCH(B323,'Standing Data'!$E$49:$E$148,0)))<>0,\"\",\"Error - counterparty with self\")),\"\")","v":""},{"$f":"IF(C323<>\"\",VLOOKUP(C323,'CP IDs'!A$2:B$5122,2,FALSE),\"\")","v":""},null,{"$f":"IFERROR(VLOOKUP(C323,'CP IDs'!$A$2:$D$4422,4,FALSE),\"\")","v":""},"",null,null,null,null,null,null,null,null,null,null,null,null,null,null,null,null,null,null,null,null,null,null,null,null,null,null,null,null,null,null,null,null,null,null,null,null,null,null,null,null,null,null,null,null,-500000,500000,null,1,1,31,null,0,0,0,null,{"$f":"AND(B323=$C$9,'Standing Data'!$D$9<>\"Multi-academy Trust\")","v":{"$error":"#N/A"}}]
[{"$f":"IF(B324<>\"\",IF('Standing Data'!$D$9<>\"Multi-academy Trust\",IF('Standing Data'!$D$15=B324,\"Error - counterparty with self\",\"\"),IF(N(ISNA(MATCH(B324,'Standing Data'!$E$49:$E$148,0)))<>0,\"\",\"Error - counterparty with self\")),\"\")","v":""},{"$f":"IF(C324<>\"\",VLOOKUP(C324,'CP IDs'!A$2:B$5122,2,FALSE),\"\")","v":""},null,{"$f":"IFERROR(VLOOKUP(C324,'CP IDs'!$A$2:$D$4422,4,FALSE),\"\")","v":""},"",null,null,null,null,null,null,null,null,null,null,null,null,null,null,null,null,null,null,null,null,null,null,null,null,null,null,null,null,null,null,null,null,null,null,null,null,null,null,null,null,null,null,null,null,-500000,500000,null,1,1,31,null,0,0,0,null,{"$f":"AND(B324=$C$9,'Standing Data'!$D$9<>\"Multi-academy Trust\")","v":{"$error":"#N/A"}}]
[{"$f":"IF(B325<>\"\",IF('Standing Data'!$D$9<>\"Multi-academy Trust\",IF('Standing Data'!$D$15=B325,\"Error - counterparty with self\",\"\"),IF(N(ISNA(MATCH(B325,'Standing Data'!$E$49:$E$148,0)))<>0,\"\",\"Error - counterparty with self\")),\"\")","v":""},{"$f":"IF(C325<>\"\",VLOOKUP(C325,'CP IDs'!A$2:B$5122,2,FALSE),\"\")","v":""},null,{"$f":"IFERROR(VLOOKUP(C325,'CP IDs'!$A$2:$D$4422,4,FALSE),\"\")","v":""},"",null,null,null,null,null,null,null,null,null,null,null,null,null,null,null,null,null,null,null,null,null,null,null,null,null,null,null,null,null,null,null,null,null,null,null,null,null,null,null,null,null,null,null,null,-500000,500000,null,1,1,31,null,0,0,0,null,{"$f":"AND(B325=$C$9,'Standing Data'!$D$9<>\"Multi-academy Trust\")","v":{"$error":"#N/A"}}]
[{"$f":"IF(B326<>\"\",IF('Standing Data'!$D$9<>\"Multi-academy Trust\",IF('Standing Data'!$D$15=B326,\"Error - counterparty with self\",\"\"),IF(N(ISNA(MATCH(B326,'Standing Data'!$E$49:$E$148,0)))<>0,\"\",\"Error - counterparty with self\")),\"\")","v":""},{"$f":"IF(C326<>\"\",VLOOKUP(C326,'CP IDs'!A$2:B$5122,2,FALSE),\"\")","v":""},null,{"$f":"IFERROR(VLOOKUP(C326,'CP IDs'!$A$2:$D$4422,4,FALSE),\"\")","v":""},"",null,null,null,null,null,null,null,null,null,null,null,null,null,null,null,null,null,null,null,null,null,null,null,null,null,null,null,null,null,null,null,null,null,null,null,null,null,null,null,null,null,null,null,null,-500000,500000,null,1,1,31,null,0,0,0,null,{"$f":"AND(B326=$C$9,'Standing Data'!$D$9<>\"Multi-academy Trust\")","v":{"$error":"#N/A"}}]
[{"$f":"IF(B327<>\"\",IF('Standing Data'!$D$9<>\"Multi-academy Trust\",IF('Standing Data'!$D$15=B327,\"Error - counterparty with self\",\"\"),IF(N(ISNA(MATCH(B327,'Standing Data'!$E$49:$E$148,0)))<>0,\"\",\"Error - counterparty with self\")),\"\")","v":""},{"$f":"IF(C327<>\"\",VLOOKUP(C327,'CP IDs'!A$2:B$5122,2,FALSE),\"\")","v":""},null,{"$f":"IFERROR(VLOOKUP(C327,'CP IDs'!$A$2:$D$4422,4,FALSE),\"\")","v":""},"",null,null,null,null,null,null,null,null,null,null,null,null,null,null,null,null,null,null,null,null,null,null,null,null,null,null,null,null,null,null,null,null,null,null,null,null,null,null,null,null,null,null,null,null,-500000,500000,null,1,1,31,null,0,0,0,null,{"$f":"AND(B327=$C$9,'Standing Data'!$D$9<>\"Multi-academy Trust\")","v":{"$error":"#N/A"}}]
[{"$f":"IF(B328<>\"\",IF('Standing Data'!$D$9<>\"Multi-academy Trust\",IF('Standing Data'!$D$15=B328,\"Error - counterparty with self\",\"\"),IF(N(ISNA(MATCH(B328,'Standing Data'!$E$49:$E$148,0)))<>0,\"\",\"Error - counterparty with self\")),\"\")","v":""},{"$f":"IF(C328<>\"\",VLOOKUP(C328,'CP IDs'!A$2:B$5122,2,FALSE),\"\")","v":""},null,{"$f":"IFERROR(VLOOKUP(C328,'CP IDs'!$A$2:$D$4422,4,FALSE),\"\")","v":""},"",null,null,null,null,null,null,null,null,null,null,null,null,null,null,null,null,null,null,null,null,null,null,null,null,null,null,null,null,null,null,null,null,null,null,null,null,null,null,null,null,null,null,null,null,-500000,500000,null,1,1,31,null,0,0,0,null,{"$f":"AND(B328=$C$9,'Standing Data'!$D$9<>\"Multi-academy Trust\")","v":{"$error":"#N/A"}}]
[{"$f":"IF(B329<>\"\",IF('Standing Data'!$D$9<>\"Multi-academy Trust\",IF('Standing Data'!$D$15=B329,\"Error - counterparty with self\",\"\"),IF(N(ISNA(MATCH(B329,'Standing Data'!$E$49:$E$148,0)))<>0,\"\",\"Error - counterparty with self\")),\"\")","v":""},{"$f":"IF(C329<>\"\",VLOOKUP(C329,'CP IDs'!A$2:B$5122,2,FALSE),\"\")","v":""},null,{"$f":"IFERROR(VLOOKUP(C329,'CP IDs'!$A$2:$D$4422,4,FALSE),\"\")","v":""},"",null,null,null,null,null,null,null,null,null,null,null,null,null,null,null,null,null,null,null,null,null,null,null,null,null,null,null,null,null,null,null,null,null,null,null,null,null,null,null,null,null,null,null,null,-500000,500000,null,1,1,31,null,0,0,0,null,{"$f":"AND(B329=$C$9,'Standing Data'!$D$9<>\"Multi-academy Trust\")","v":{"$error":"#N/A"}}]
[{"$f":"IF(B330<>\"\",IF('Standing Data'!$D$9<>\"Multi-academy Trust\",IF('Standing Data'!$D$15=B330,\"Error - counterparty with self\",\"\"),IF(N(ISNA(MATCH(B330,'Standing Data'!$E$49:$E$148,0)))<>0,\"\",\"Error - counterparty with self\")),\"\")","v":""},{"$f":"IF(C330<>\"\",VLOOKUP(C330,'CP IDs'!A$2:B$5122,2,FALSE),\"\")","v":""},null,{"$f":"IFERROR(VLOOKUP(C330,'CP IDs'!$A$2:$D$4422,4,FALSE),\"\")","v":""},"",null,null,null,null,null,null,null,null,null,null,null,null,null,null,null,null,null,null,null,null,null,null,null,null,null,null,null,null,null,null,null,null,null,null,null,null,null,null,null,null,null,null,null,null,-500000,500000,null,1,1,31,null,0,0,0,null,{"$f":"AND(B330=$C$9,'Standing Data'!$D$9<>\"Multi-academy Trust\")","v":{"$error":"#N/A"}}]
[{"$f":"IF(B331<>\"\",IF('Standing Data'!$D$9<>\"Multi-academy Trust\",IF('Standing Data'!$D$15=B331,\"Error - counterparty with self\",\"\"),IF(N(ISNA(MATCH(B331,'Standing Data'!$E$49:$E$148,0)))<>0,\"\",\"Error - counterparty with self\")),\"\")","v":""},{"$f":"IF(C331<>\"\",VLOOKUP(C331,'CP IDs'!A$2:B$5122,2,FALSE),\"\")","v":""},null,{"$f":"IFERROR(VLOOKUP(C331,'CP IDs'!$A$2:$D$4422,4,FALSE),\"\")","v":""},"",null,null,null,null,null,null,null,null,null,null,null,null,null,null,null,null,null,null,null,null,null,null,null,null,null,null,null,null,null,null,null,null,null,null,null,null,null,null,null,null,null,null,null,null,-500000,500000,null,1,1,31,null,0,0,0,null,{"$f":"AND(B331=$C$9,'Standing Data'!$D$9<>\"Multi-academy Trust\")","v":{"$error":"#N/A"}}]
[{"$f":"IF(B332<>\"\",IF('Standing Data'!$D$9<>\"Multi-academy Trust\",IF('Standing Data'!$D$15=B332,\"Error - counterparty with self\",\"\"),IF(N(ISNA(MATCH(B332,'Standing Data'!$E$49:$E$148,0)))<>0,\"\",\"Error - counterparty with self\")),\"\")","v":""},{"$f":"IF(C332<>\"\",VLOOKUP(C332,'CP IDs'!A$2:B$5122,2,FALSE),\"\")","v":""},null,{"$f":"IFERROR(VLOOKUP(C332,'CP IDs'!$A$2:$D$4422,4,FALSE),\"\")","v":""},"",null,null,null,null,null,null,null,null,null,null,null,null,null,null,null,null,null,null,null,null,null,null,null,null,null,null,null,null,null,null,null,null,null,null,null,null,null,null,null,null,null,null,null,null,-500000,500000,null,1,1,31,null,0,0,0,null,{"$f":"AND(B332=$C$9,'Standing Data'!$D$9<>\"Multi-academy Trust\")","v":{"$error":"#N/A"}}]
[{"$f":"IF(B333<>\"\",IF('Standing Data'!$D$9<>\"Multi-academy Trust\",IF('Standing Data'!$D$15=B333,\"Error - counterparty with self\",\"\"),IF(N(ISNA(MATCH(B333,'Standing Data'!$E$49:$E$148,0)))<>0,\"\",\"Error - counterparty with self\")),\"\")","v":""},{"$f":"IF(C333<>\"\",VLOOKUP(C333,'CP IDs'!A$2:B$5122,2,FALSE),\"\")","v":""},null,{"$f":"IFERROR(VLOOKUP(C333,'CP IDs'!$A$2:$D$4422,4,FALSE),\"\")","v":""},"",null,null,null,null,null,null,null,null,null,null,null,null,null,null,null,null,null,null,null,null,null,null,null,null,null,null,null,null,null,null,null,null,null,null,null,null,null,null,null,null,null,null,null,null,-500000,500000,null,1,1,31,null,0,0,0,null,{"$f":"AND(B333=$C$9,'Standing Data'!$D$9<>\"Multi-academy Trust\")","v":{"$error":"#N/A"}}]
[{"$f":"IF(B334<>\"\",IF('Standing Data'!$D$9<>\"Multi-academy Trust\",IF('Standing Data'!$D$15=B334,\"Error - counterparty with self\",\"\"),IF(N(ISNA(MATCH(B334,'Standing Data'!$E$49:$E$148,0)))<>0,\"\",\"Error - counterparty with self\")),\"\")","v":""},{"$f":"IF(C334<>\"\",VLOOKUP(C334,'CP IDs'!A$2:B$5122,2,FALSE),\"\")","v":""},null,{"$f":"IFERROR(VLOOKUP(C334,'CP IDs'!$A$2:$D$4422,4,FALSE),\"\")","v":""},"",null,null,null,null,null,null,null,null,null,null,null,null,null,null,null,null,null,null,null,null,null,null,null,null,null,null,null,null,null,null,null,null,null,null,null,null,null,null,null,null,null,null,null,null,-500000,500000,null,1,1,31,null,0,0,0,null,{"$f":"AND(B334=$C$9,'Standing Data'!$D$9<>\"Multi-academy Trust\")","v":{"$error":"#N/A"}}]
[{"$f":"IF(B335<>\"\",IF('Standing Data'!$D$9<>\"Multi-academy Trust\",IF('Standing Data'!$D$15=B335,\"Error - counterparty with self\",\"\"),IF(N(ISNA(MATCH(B335,'Standing Data'!$E$49:$E$148,0)))<>0,\"\",\"Error - counterparty with self\")),\"\")","v":""},{"$f":"IF(C335<>\"\",VLOOKUP(C335,'CP IDs'!A$2:B$5122,2,FALSE),\"\")","v":""},null,{"$f":"IFERROR(VLOOKUP(C335,'CP IDs'!$A$2:$D$4422,4,FALSE),\"\")","v":""},"",null,null,null,null,null,null,null,null,null,null,null,null,null,null,null,null,null,null,null,null,null,null,null,null,null,null,null,null,null,null,null,null,null,null,null,null,null,null,null,null,null,null,null,null,-500000,500000,null,1,1,31,null,0,0,0,null,{"$f":"AND(B335=$C$9,'Standing Data'!$D$9<>\"Multi-academy Trust\")","v":{"$error":"#N/A"}}]
[{"$f":"IF(B336<>\"\",IF('Standing Data'!$D$9<>\"Multi-academy Trust\",IF('Standing Data'!$D$15=B336,\"Error - counterparty with self\",\"\"),IF(N(ISNA(MATCH(B336,'Standing Data'!$E$49:$E$148,0)))<>0,\"\",\"Error - counterparty with self\")),\"\")","v":""},{"$f":"IF(C336<>\"\",VLOOKUP(C336,'CP IDs'!A$2:B$5122,2,FALSE),\"\")","v":""},null,{"$f":"IFERROR(VLOOKUP(C336,'CP IDs'!$A$2:$D$4422,4,FALSE),\"\")","v":""},"",null,null,null,null,null,null,null,null,null,null,null,null,null,null,null,null,null,null,null,null,null,null,null,null,null,null,null,null,null,null,null,null,null,null,null,null,null,null,null,null,null,null,null,null,-500000,500000,null,1,1,31,null,0,0,0,null,{"$f":"AND(B336=$C$9,'Standing Data'!$D$9<>\"Multi-academy Trust\")","v":{"$error":"#N/A"}}]
[{"$f":"IF(B337<>\"\",IF('Standing Data'!$D$9<>\"Multi-academy Trust\",IF('Standing Data'!$D$15=B337,\"Error - counterparty with self\",\"\"),IF(N(ISNA(MATCH(B337,'Standing Data'!$E$49:$E$148,0)))<>0,\"\",\"Error - counterparty with self\")),\"\")","v":""},{"$f":"IF(C337<>\"\",VLOOKUP(C337,'CP IDs'!A$2:B$5122,2,FALSE),\"\")","v":""},null,{"$f":"IFERROR(VLOOKUP(C337,'CP IDs'!$A$2:$D$4422,4,FALSE),\"\")","v":""},"",null,null,null,null,null,null,null,null,null,null,null,null,null,null,null,null,null,null,null,null,null,null,null,null,null,null,null,null,null,null,null,null,null,null,null,null,null,null,null,null,null,null,null,null,-500000,500000,null,1,1,31,null,0,0,0,null,{"$f":"AND(B337=$C$9,'Standing Data'!$D$9<>\"Multi-academy Trust\")","v":{"$error":"#N/A"}}]
[{"$f":"IF(B338<>\"\",IF('Standing Data'!$D$9<>\"Multi-academy Trust\",IF('Standing Data'!$D$15=B338,\"Error - counterparty with self\",\"\"),IF(N(ISNA(MATCH(B338,'Standing Data'!$E$49:$E$148,0)))<>0,\"\",\"Error - counterparty with self\")),\"\")","v":""},{"$f":"IF(C338<>\"\",VLOOKUP(C338,'CP IDs'!A$2:B$5122,2,FALSE),\"\")","v":""},null,{"$f":"IFERROR(VLOOKUP(C338,'CP IDs'!$A$2:$D$4422,4,FALSE),\"\")","v":""},"",null,null,null,null,null,null,null,null,null,null,null,null,null,null,null,null,null,null,null,null,null,null,null,null,null,null,null,null,null,null,null,null,null,null,null,null,null,null,null,null,null,null,null,null,-500000,500000,null,1,1,31,null,0,0,0,null,{"$f":"AND(B338=$C$9,'Standing Data'!$D$9<>\"Multi-academy Trust\")","v":{"$error":"#N/A"}}]
[{"$f":"IF(B339<>\"\",IF('Standing Data'!$D$9<>\"Multi-academy Trust\",IF('Standing Data'!$D$15=B339,\"Error - counterparty with self\",\"\"),IF(N(ISNA(MATCH(B339,'Standing Data'!$E$49:$E$148,0)))<>0,\"\",\"Error - counterparty with self\")),\"\")","v":""},{"$f":"IF(C339<>\"\",VLOOKUP(C339,'CP IDs'!A$2:B$5122,2,FALSE),\"\")","v":""},null,{"$f":"IFERROR(VLOOKUP(C339,'CP IDs'!$A$2:$D$4422,4,FALSE),\"\")","v":""},"",null,null,null,null,null,null,null,null,null,null,null,null,null,null,null,null,null,null,null,null,null,null,null,null,null,null,null,null,null,null,null,null,null,null,null,null,null,null,null,null,null,null,null,null,-500000,500000,null,1,1,31,null,0,0,0,null,{"$f":"AND(B339=$C$9,'Standing Data'!$D$9<>\"Multi-academy Trust\")","v":{"$error":"#N/A"}}]
[{"$f":"IF(B340<>\"\",IF('Standing Data'!$D$9<>\"Multi-academy Trust\",IF('Standing Data'!$D$15=B340,\"Error - counterparty with self\",\"\"),IF(N(ISNA(MATCH(B340,'Standing Data'!$E$49:$E$148,0)))<>0,\"\",\"Error - counterparty with self\")),\"\")","v":""},{"$f":"IF(C340<>\"\",VLOOKUP(C340,'CP IDs'!A$2:B$5122,2,FALSE),\"\")","v":""},null,{"$f":"IFERROR(VLOOKUP(C340,'CP IDs'!$A$2:$D$4422,4,FALSE),\"\")","v":""},"",null,null,null,null,null,null,null,null,null,null,null,null,null,null,null,null,null,null,null,null,null,null,null,null,null,null,null,null,null,null,null,null,null,null,null,null,null,null,null,null,null,null,null,null,-500000,500000,null,1,1,31,null,0,0,0,null,{"$f":"AND(B340=$C$9,'Standing Data'!$D$9<>\"Multi-academy Trust\")","v":{"$error":"#N/A"}}]
[{"$f":"IF(B341<>\"\",IF('Standing Data'!$D$9<>\"Multi-academy Trust\",IF('Standing Data'!$D$15=B341,\"Error - counterparty with self\",\"\"),IF(N(ISNA(MATCH(B341,'Standing Data'!$E$49:$E$148,0)))<>0,\"\",\"Error - counterparty with self\")),\"\")","v":""},{"$f":"IF(C341<>\"\",VLOOKUP(C341,'CP IDs'!A$2:B$5122,2,FALSE),\"\")","v":""},null,{"$f":"IFERROR(VLOOKUP(C341,'CP IDs'!$A$2:$D$4422,4,FALSE),\"\")","v":""},"",null,null,null,null,null,null,null,null,null,null,null,null,null,null,null,null,null,null,null,null,null,null,null,null,null,null,null,null,null,null,null,null,null,null,null,null,null,null,null,null,null,null,null,null,-500000,500000,null,1,1,31,null,0,0,{"$f":"COUNT(F341:AT341)","v":0},null,{"$f":"AND(B341=$C$9,'Standing Data'!$D$9<>\"Multi-academy Trust\")","v":{"$error":"#N/A"}}]
[{"$f":"IF(B342<>\"\",IF('Standing Data'!$D$9<>\"Multi-academy Trust\",IF('Standing Data'!$D$15=B342,\"Error - counterparty with self\",\"\"),IF(N(ISNA(MATCH(B342,'Standing Data'!$E$49:$E$148,0)))<>0,\"\",\"Error - counterparty with self\")),\"\")","v":""},{"$f":"IF(C342<>\"\",VLOOKUP(C342,'CP IDs'!A$2:B$5122,2,FALSE),\"\")","v":""},null,{"$f":"IFERROR(VLOOKUP(C342,'CP IDs'!$A$2:$D$4422,4,FALSE),\"\")","v":""},"",null,null,null,null,null,null,null,null,null,null,null,null,null,null,null,null,null,null,null,null,null,null,null,null,null,null,null,null,null,null,null,null,null,null,null,null,null,null,null,null,null,null,null,null,-500000,500000,null,1,1,31,null,0,0,0,null,{"$f":"AND(B342=$C$9,'Standing Data'!$D$9<>\"Multi-academy Trust\")","v":{"$error":"#N/A"}}]
[{"$f":"IF(B343<>\"\",IF('Standing Data'!$D$9<>\"Multi-academy Trust\",IF('Standing Data'!$D$15=B343,\"Error - counterparty with self\",\"\"),IF(N(ISNA(MATCH(B343,'Standing Data'!$E$49:$E$148,0)))<>0,\"\",\"Error - counterparty with self\")),\"\")","v":""},{"$f":"IF(C343<>\"\",VLOOKUP(C343,'CP IDs'!A$2:B$5122,2,FALSE),\"\")","v":""},null,{"$f":"IFERROR(VLOOKUP(C343,'CP IDs'!$A$2:$D$4422,4,FALSE),\"\")","v":""},"",null,null,null,null,null,null,null,null,null,null,null,null,null,null,null,null,null,null,null,null,null,null,null,null,null,null,null,null,null,null,null,null,null,null,null,null,null,null,null,null,null,null,null,null,{"$f":"AX342","v":-500000},{"$f":"AY342","v":500000},null,1,1,31,null,0,0,0,null,{"$f":"AND(B343=$C$9,'Standing Data'!$D$9<>\"Multi-academy Trust\")","v":{"$error":"#N/A"}}]
[{"$f":"IF(B344<>\"\",IF('Standing Data'!$D$9<>\"Multi-academy Trust\",IF('Standing Data'!$D$15=B344,\"Error - counterparty with self\",\"\"),IF(N(ISNA(MATCH(B344,'Standing Data'!$E$49:$E$148,0)))<>0,\"\",\"Error - counterparty with self\")),\"\")","v":""},{"$f":"IF(C344<>\"\",VLOOKUP(C344,'CP IDs'!A$2:B$5122,2,FALSE),\"\")","v":""},null,{"$f":"IFERROR(VLOOKUP(C344,'CP IDs'!$A$2:$D$4422,4,FALSE),\"\")","v":""},"",null,null,null,null,null,null,null,null,null,null,null,null,null,null,null,null,null,null,null,null,null,null,null,null,null,null,null,null,null,null,null,null,null,null,null,null,null,null,null,null,null,null,null,null,-500000,500000,null,1,1,31,null,0,0,0,null,{"$f":"AND(B344=$C$9,'Standing Data'!$D$9<>\"Multi-academy Trust\")","v":{"$error":"#N/A"}}]
[{"$f":"IF(B345<>\"\",IF('Standing Data'!$D$9<>\"Multi-academy Trust\",IF('Standing Data'!$D$15=B345,\"Error - counterparty with self\",\"\"),IF(N(ISNA(MATCH(B345,'Standing Data'!$E$49:$E$148,0)))<>0,\"\",\"Error - counterparty with self\")),\"\")","v":""},{"$f":"IF(C345<>\"\",VLOOKUP(C345,'CP IDs'!A$2:B$5122,2,FALSE),\"\")","v":""},null,{"$f":"IFERROR(VLOOKUP(C345,'CP IDs'!$A$2:$D$4422,4,FALSE),\"\")","v":""},"",null,null,null,null,null,null,null,null,null,null,null,null,null,null,null,null,null,null,null,null,null,null,null,null,null,null,null,null,null,null,null,null,null,null,null,null,null,null,null,null,null,null,null,null,-500000,500000,null,1,1,31,null,0,0,0,null,{"$f":"AND(B345=$C$9,'Standing Data'!$D$9<>\"Multi-academy Trust\")","v":{"$error":"#N/A"}}]
[{"$f":"IF(B346<>\"\",IF('Standing Data'!$D$9<>\"Multi-academy Trust\",IF('Standing Data'!$D$15=B346,\"Error - counterparty with self\",\"\"),IF(N(ISNA(MATCH(B346,'Standing Data'!$E$49:$E$148,0)))<>0,\"\",\"Error - counterparty with self\")),\"\")","v":""},{"$f":"IF(C346<>\"\",VLOOKUP(C346,'CP IDs'!A$2:B$5122,2,FALSE),\"\")","v":""},null,{"$f":"IFERROR(VLOOKUP(C346,'CP IDs'!$A$2:$D$4422,4,FALSE),\"\")","v":""},"",null,null,null,null,null,null,null,null,null,null,null,null,null,null,null,null,null,null,null,null,null,null,null,null,null,null,null,null,null,null,null,null,null,null,null,null,null,null,null,null,null,null,null,null,-500000,500000,null,1,1,31,null,0,0,0,null,{"$f":"AND(B346=$C$9,'Standing Data'!$D$9<>\"Multi-academy Trust\")","v":{"$error":"#N/A"}}]
[{"$f":"IF(B347<>\"\",IF('Standing Data'!$D$9<>\"Multi-academy Trust\",IF('Standing Data'!$D$15=B347,\"Error - counterparty with self\",\"\"),IF(N(ISNA(MATCH(B347,'Standing Data'!$E$49:$E$148,0)))<>0,\"\",\"Error - counterparty with self\")),\"\")","v":""},{"$f":"IF(C347<>\"\",VLOOKUP(C347,'CP IDs'!A$2:B$5122,2,FALSE),\"\")","v":""},null,{"$f":"IFERROR(VLOOKUP(C347,'CP IDs'!$A$2:$D$4422,4,FALSE),\"\")","v":""},"",null,null,null,null,null,null,null,null,null,null,null,null,null,null,null,null,null,null,null,null,null,null,null,null,null,null,null,null,null,null,null,null,null,null,null,null,null,null,null,null,null,null,null,null,-500000,500000,null,1,1,31,null,0,0,0,null,{"$f":"AND(B347=$C$9,'Standing Data'!$D$9<>\"Multi-academy Trust\")","v":{"$error":"#N/A"}}]
[{"$f":"IF(B348<>\"\",IF('Standing Data'!$D$9<>\"Multi-academy Trust\",IF('Standing Data'!$D$15=B348,\"Error - counterparty with self\",\"\"),IF(N(ISNA(MATCH(B348,'Standing Data'!$E$49:$E$148,0)))<>0,\"\",\"Error - counterparty with self\")),\"\")","v":""},{"$f":"IF(C348<>\"\",VLOOKUP(C348,'CP IDs'!A$2:B$5122,2,FALSE),\"\")","v":""},null,{"$f":"IFERROR(VLOOKUP(C348,'CP IDs'!$A$2:$D$4422,4,FALSE),\"\")","v":""},"",null,null,null,null,null,null,null,null,null,null,null,null,null,null,null,null,null,null,null,null,null,null,null,null,null,null,null,null,null,null,null,null,null,null,null,null,null,null,null,null,null,null,null,null,-500000,500000,null,1,1,31,null,0,0,0,null,{"$f":"AND(B348=$C$9,'Standing Data'!$D$9<>\"Multi-academy Trust\")","v":{"$error":"#N/A"}}]
[{"$f":"IF(B349<>\"\",IF('Standing Data'!$D$9<>\"Multi-academy Trust\",IF('Standing Data'!$D$15=B349,\"Error - counterparty with self\",\"\"),IF(N(ISNA(MATCH(B349,'Standing Data'!$E$49:$E$148,0)))<>0,\"\",\"Error - counterparty with self\")),\"\")","v":""},{"$f":"IF(C349<>\"\",VLOOKUP(C349,'CP IDs'!A$2:B$5122,2,FALSE),\"\")","v":""},null,{"$f":"IFERROR(VLOOKUP(C349,'CP IDs'!$A$2:$D$4422,4,FALSE),\"\")","v":""},"",null,null,null,null,null,null,null,null,null,null,null,null,null,null,null,null,null,null,null,null,null,null,null,null,null,null,null,null,null,null,null,null,null,null,null,null,null,null,null,null,null,null,null,null,-500000,500000,null,1,1,31,null,0,0,0,null,{"$f":"AND(B349=$C$9,'Standing Data'!$D$9<>\"Multi-academy Trust\")","v":{"$error":"#N/A"}}]
[{"$f":"IF(B350<>\"\",IF('Standing Data'!$D$9<>\"Multi-academy Trust\",IF('Standing Data'!$D$15=B350,\"Error - counterparty with self\",\"\"),IF(N(ISNA(MATCH(B350,'Standing Data'!$E$49:$E$148,0)))<>0,\"\",\"Error - counterparty with self\")),\"\")","v":""},{"$f":"IF(C350<>\"\",VLOOKUP(C350,'CP IDs'!A$2:B$5122,2,FALSE),\"\")","v":""},null,{"$f":"IFERROR(VLOOKUP(C350,'CP IDs'!$A$2:$D$4422,4,FALSE),\"\")","v":""},"",null,null,null,null,null,null,null,null,null,null,null,null,null,null,null,null,null,null,null,null,null,null,null,null,null,null,null,null,null,null,null,null,null,null,null,null,null,null,null,null,null,null,null,null,-500000,500000,null,1,1,31,null,{"$f":"COUNTA(C350)","v":0},{"$f":"1-COUNTBLANK(B350)","v":0},0,null,{"$f":"AND(B350=$C$9,'Standing Data'!$D$9<>\"Multi-academy Trust\")","v":{"$error":"#N/A"}}]
[{"$f":"IF(B351<>\"\",IF('Standing Data'!$D$9<>\"Multi-academy Trust\",IF('Standing Data'!$D$15=B351,\"Error - counterparty with self\",\"\"),IF(N(ISNA(MATCH(B351,'Standing Data'!$E$49:$E$148,0)))<>0,\"\",\"Error - counterparty with self\")),\"\")","v":""},{"$f":"IF(C351<>\"\",VLOOKUP(C351,'CP IDs'!A$2:B$5122,2,FALSE),\"\")","v":""},null,{"$f":"IFERROR(VLOOKUP(C351,'CP IDs'!$A$2:$D$4422,4,FALSE),\"\")","v":""},{"$f":"IF(OR(AND(COUNT(F351:AT351)>0,C351=\"\"),AND(COUNT(F351:AT351)=0,C351<>\"\")),\"Error - on line\",\"\")","v":""},null,null,null,null,null,null,null,null,null,null,null,null,null,null,null,null,null,null,null,null,null,null,null,null,null,null,null,null,null,null,null,null,null,null,null,null,null,null,null,null,null,null,null,null,-500000,500000,null,1,1,31,null,0,0,0,null,{"$f":"AND(B351=$C$9,'Standing Data'!$D$9<>\"Multi-academy Trust\")","v":{"$error":"#N/A"}}]
[{"$f":"IF(B352<>\"\",IF('Standing Data'!$D$9<>\"Multi-academy Trust\",IF('Standing Data'!$D$15=B352,\"Error - counterparty with self\",\"\"),IF(N(ISNA(MATCH(B352,'Standing Data'!$E$49:$E$148,0)))<>0,\"\",\"Error - counterparty with self\")),\"\")","v":""},{"$f":"IF(C352<>\"\",VLOOKUP(C352,'CP IDs'!A$2:B$5122,2,FALSE),\"\")","v":""},null,{"$f":"IFERROR(VLOOKUP(C352,'CP IDs'!$A$2:$D$4422,4,FALSE),\"\")","v":""},"",null,null,null,null,null,null,null,null,null,null,null,null,null,null,null,null,null,null,null,null,null,null,null,null,null,null,null,null,null,null,null,null,null,null,null,null,null,null,null,null,null,null,null,null,-500000,500000,null,1,1,31,null,0,0,0,null,{"$f":"AND(B352=$C$9,'Standing Data'!$D$9<>\"Multi-academy Trust\")","v":{"$error":"#N/A"}}]
[{"$f":"IF(B353<>\"\",IF('Standing Data'!$D$9<>\"Multi-academy Trust\",IF('Standing Data'!$D$15=B353,\"Error - counterparty with self\",\"\"),IF(N(ISNA(MATCH(B353,'Standing Data'!$E$49:$E$148,0)))<>0,\"\",\"Error - counterparty with self\")),\"\")","v":""},{"$f":"IF(C353<>\"\",VLOOKUP(C353,'CP IDs'!A$2:B$5122,2,FALSE),\"\")","v":""},null,{"$f":"IFERROR(VLOOKUP(C353,'CP IDs'!$A$2:$D$4422,4,FALSE),\"\")","v":""},"",null,null,null,null,null,null,null,null,null,null,null,null,null,null,null,null,null,null,null,null,null,null,null,null,null,null,null,null,null,null,null,null,null,null,null,null,null,null,null,null,null,null,null,null,-500000,500000,null,1,1,31,null,0,0,0,null,{"$f":"AND(B353=$C$9,'Standing Data'!$D$9<>\"Multi-academy Trust\")","v":{"$error":"#N/A"}}]
[{"$f":"IF(B354<>\"\",IF('Standing Data'!$D$9<>\"Multi-academy Trust\",IF('Standing Data'!$D$15=B354,\"Error - counterparty with self\",\"\"),IF(N(ISNA(MATCH(B354,'Standing Data'!$E$49:$E$148,0)))<>0,\"\",\"Error - counterparty with self\")),\"\")","v":""},{"$f":"IF(C354<>\"\",VLOOKUP(C354,'CP IDs'!A$2:B$5122,2,FALSE),\"\")","v":""},null,{"$f":"IFERROR(VLOOKUP(C354,'CP IDs'!$A$2:$D$4422,4,FALSE),\"\")","v":""},"",null,null,null,null,null,null,null,null,null,null,null,null,null,null,null,null,null,null,null,null,null,null,null,null,null,null,null,null,null,null,null,null,null,null,null,null,null,null,null,null,null,null,null,null,-500000,500000,null,1,1,31,null,0,0,0,null,{"$f":"AND(B354=$C$9,'Standing Data'!$D$9<>\"Multi-academy Trust\")","v":{"$error":"#N/A"}}]
[{"$f":"IF(B355<>\"\",IF('Standing Data'!$D$9<>\"Multi-academy Trust\",IF('Standing Data'!$D$15=B355,\"Error - counterparty with self\",\"\"),IF(N(ISNA(MATCH(B355,'Standing Data'!$E$49:$E$148,0)))<>0,\"\",\"Error - counterparty with self\")),\"\")","v":""},{"$f":"IF(C355<>\"\",VLOOKUP(C355,'CP IDs'!A$2:B$5122,2,FALSE),\"\")","v":""},null,{"$f":"IFERROR(VLOOKUP(C355,'CP IDs'!$A$2:$D$4422,4,FALSE),\"\")","v":""},"",null,null,null,null,null,null,null,null,null,null,null,null,null,null,null,null,null,null,null,null,null,null,null,null,null,null,null,null,null,null,null,null,null,null,null,null,null,null,null,null,null,null,null,null,-500000,500000,null,1,1,31,null,0,0,0,null,{"$f":"AND(B355=$C$9,'Standing Data'!$D$9<>\"Multi-academy Trust\")","v":{"$error":"#N/A"}}]
[{"$f":"IF(B356<>\"\",IF('Standing Data'!$D$9<>\"Multi-academy Trust\",IF('Standing Data'!$D$15=B356,\"Error - counterparty with self\",\"\"),IF(N(ISNA(MATCH(B356,'Standing Data'!$E$49:$E$148,0)))<>0,\"\",\"Error - counterparty with self\")),\"\")","v":""},{"$f":"IF(C356<>\"\",VLOOKUP(C356,'CP IDs'!A$2:B$5122,2,FALSE),\"\")","v":""},null,{"$f":"IFERROR(VLOOKUP(C356,'CP IDs'!$A$2:$D$4422,4,FALSE),\"\")","v":""},"",null,null,null,null,null,null,null,null,null,null,null,null,null,null,null,null,null,null,null,null,null,null,null,null,null,null,null,null,null,null,null,null,null,null,null,null,null,null,null,null,null,null,null,null,-500000,500000,null,1,1,31,null,0,0,0,null,{"$f":"AND(B356=$C$9,'Standing Data'!$D$9<>\"Multi-academy Trust\")","v":{"$error":"#N/A"}}]
[{"$f":"IF(B357<>\"\",IF('Standing Data'!$D$9<>\"Multi-academy Trust\",IF('Standing Data'!$D$15=B357,\"Error - counterparty with self\",\"\"),IF(N(ISNA(MATCH(B357,'Standing Data'!$E$49:$E$148,0)))<>0,\"\",\"Error - counterparty with self\")),\"\")","v":""},{"$f":"IF(C357<>\"\",VLOOKUP(C357,'CP IDs'!A$2:B$5122,2,FALSE),\"\")","v":""},null,{"$f":"IFERROR(VLOOKUP(C357,'CP IDs'!$A$2:$D$4422,4,FALSE),\"\")","v":""},"",null,null,null,null,null,null,null,null,null,null,null,null,null,null,null,null,null,null,null,null,null,null,null,null,null,null,null,null,null,null,null,null,null,null,null,null,null,null,null,null,null,null,null,null,-500000,500000,null,1,1,31,null,0,0,0,null,{"$f":"AND(B357=$C$9,'Standing Data'!$D$9<>\"Multi-academy Trust\")","v":{"$error":"#N/A"}}]
[{"$f":"IF(B358<>\"\",IF('Standing Data'!$D$9<>\"Multi-academy Trust\",IF('Standing Data'!$D$15=B358,\"Error - counterparty with self\",\"\"),IF(N(ISNA(MATCH(B358,'Standing Data'!$E$49:$E$148,0)))<>0,\"\",\"Error - counterparty with self\")),\"\")","v":""},{"$f":"IF(C358<>\"\",VLOOKUP(C358,'CP IDs'!A$2:B$5122,2,FALSE),\"\")","v":""},null,{"$f":"IFERROR(VLOOKUP(C358,'CP IDs'!$A$2:$D$4422,4,FALSE),\"\")","v":""},"",null,null,null,null,null,null,null,null,null,null,null,null,null,null,null,null,null,null,null,null,null,null,null,null,null,null,null,null,null,null,null,null,null,null,null,null,null,null,null,null,null,null,null,null,-500000,500000,null,1,1,31,null,0,0,0,null,{"$f":"AND(B358=$C$9,'Standing Data'!$D$9<>\"Multi-academy Trust\")","v":{"$error":"#N/A"}}]
[{"$f":"IF(B359<>\"\",IF('Standing Data'!$D$9<>\"Multi-academy Trust\",IF('Standing Data'!$D$15=B359,\"Error - counterparty with self\",\"\"),IF(N(ISNA(MATCH(B359,'Standing Data'!$E$49:$E$148,0)))<>0,\"\",\"Error - counterparty with self\")),\"\")","v":""},{"$f":"IF(C359<>\"\",VLOOKUP(C359,'CP IDs'!A$2:B$5122,2,FALSE),\"\")","v":""},null,{"$f":"IFERROR(VLOOKUP(C359,'CP IDs'!$A$2:$D$4422,4,FALSE),\"\")","v":""},"",null,null,null,null,null,null,null,null,null,null,null,null,null,null,null,null,null,null,null,null,null,null,null,null,null,null,null,null,null,null,null,null,null,null,null,null,null,null,null,null,null,null,null,null,-500000,500000,null,1,1,31,null,0,0,0,null,{"$f":"AND(B359=$C$9,'Standing Data'!$D$9<>\"Multi-academy Trust\")","v":{"$error":"#N/A"}}]
[{"$f":"IF(B360<>\"\",IF('Standing Data'!$D$9<>\"Multi-academy Trust\",IF('Standing Data'!$D$15=B360,\"Error - counterparty with self\",\"\"),IF(N(ISNA(MATCH(B360,'Standing Data'!$E$49:$E$148,0)))<>0,\"\",\"Error - counterparty with self\")),\"\")","v":""},{"$f":"IF(C360<>\"\",VLOOKUP(C360,'CP IDs'!A$2:B$5122,2,FALSE),\"\")","v":""},null,{"$f":"IFERROR(VLOOKUP(C360,'CP IDs'!$A$2:$D$4422,4,FALSE),\"\")","v":""},"",null,null,null,null,null,null,null,null,null,null,null,null,null,null,null,null,null,null,null,null,null,null,null,null,null,null,null,null,null,null,null,null,null,null,null,null,null,null,null,null,null,null,null,null,-500000,500000,null,1,1,31,null,0,0,0,null,{"$f":"AND(B360=$C$9,'Standing Data'!$D$9<>\"Multi-academy Trust\")","v":{"$error":"#N/A"}}]
[{"$f":"IF(B361<>\"\",IF('Standing Data'!$D$9<>\"Multi-academy Trust\",IF('Standing Data'!$D$15=B361,\"Error - counterparty with self\",\"\"),IF(N(ISNA(MATCH(B361,'Standing Data'!$E$49:$E$148,0)))<>0,\"\",\"Error - counterparty with self\")),\"\")","v":""},{"$f":"IF(C361<>\"\",VLOOKUP(C361,'CP IDs'!A$2:B$5122,2,FALSE),\"\")","v":""},null,{"$f":"IFERROR(VLOOKUP(C361,'CP IDs'!$A$2:$D$4422,4,FALSE),\"\")","v":""},"",null,null,null,null,null,null,null,null,null,null,null,null,null,null,null,null,null,null,null,null,null,null,null,null,null,null,null,null,null,null,null,null,null,null,null,null,null,null,null,null,null,null,null,null,-500000,500000,null,1,1,31,null,0,0,0,null,{"$f":"AND(B361=$C$9,'Standing Data'!$D$9<>\"Multi-academy Trust\")","v":{"$error":"#N/A"}}]
[{"$f":"IF(B362<>\"\",IF('Standing Data'!$D$9<>\"Multi-academy Trust\",IF('Standing Data'!$D$15=B362,\"Error - counterparty with self\",\"\"),IF(N(ISNA(MATCH(B362,'Standing Data'!$E$49:$E$148,0)))<>0,\"\",\"Error - counterparty with self\")),\"\")","v":""},{"$f":"IF(C362<>\"\",VLOOKUP(C362,'CP IDs'!A$2:B$5122,2,FALSE),\"\")","v":""},null,{"$f":"IFERROR(VLOOKUP(C362,'CP IDs'!$A$2:$D$4422,4,FALSE),\"\")","v":""},"",null,null,null,null,null,null,null,null,null,null,null,null,null,null,null,null,null,null,null,null,null,null,null,null,null,null,null,null,null,null,null,null,null,null,null,null,null,null,null,null,null,null,null,null,-500000,500000,null,1,1,31,null,0,0,0,null,{"$f":"AND(B362=$C$9,'Standing Data'!$D$9<>\"Multi-academy Trust\")","v":{"$error":"#N/A"}}]
[{"$f":"IF(B363<>\"\",IF('Standing Data'!$D$9<>\"Multi-academy Trust\",IF('Standing Data'!$D$15=B363,\"Error - counterparty with self\",\"\"),IF(N(ISNA(MATCH(B363,'Standing Data'!$E$49:$E$148,0)))<>0,\"\",\"Error - counterparty with self\")),\"\")","v":""},{"$f":"IF(C363<>\"\",VLOOKUP(C363,'CP IDs'!A$2:B$5122,2,FALSE),\"\")","v":""},null,{"$f":"IFERROR(VLOOKUP(C363,'CP IDs'!$A$2:$D$4422,4,FALSE),\"\")","v":""},"",null,null,null,null,null,null,null,null,null,null,null,null,null,null,null,null,null,null,null,null,null,null,null,null,null,null,null,null,null,null,null,null,null,null,null,null,null,null,null,null,null,null,null,null,-500000,500000,null,1,1,31,null,0,0,0,null,{"$f":"AND(B363=$C$9,'Standing Data'!$D$9<>\"Multi-academy Trust\")","v":{"$error":"#N/A"}}]
[{"$f":"IF(B364<>\"\",IF('Standing Data'!$D$9<>\"Multi-academy Trust\",IF('Standing Data'!$D$15=B364,\"Error - counterparty with self\",\"\"),IF(N(ISNA(MATCH(B364,'Standing Data'!$E$49:$E$148,0)))<>0,\"\",\"Error - counterparty with self\")),\"\")","v":""},{"$f":"IF(C364<>\"\",VLOOKUP(C364,'CP IDs'!A$2:B$5122,2,FALSE),\"\")","v":""},null,{"$f":"IFERROR(VLOOKUP(C364,'CP IDs'!$A$2:$D$4422,4,FALSE),\"\")","v":""},"",null,null,null,null,null,null,null,null,null,null,null,null,null,null,null,null,null,null,null,null,null,null,null,null,null,null,null,null,null,null,null,null,null,null,null,null,null,null,null,null,null,null,null,null,-500000,500000,null,1,1,31,null,0,0,0,null,{"$f":"AND(B364=$C$9,'Standing Data'!$D$9<>\"Multi-academy Trust\")","v":{"$error":"#N/A"}}]
[{"$f":"IF(B365<>\"\",IF('Standing Data'!$D$9<>\"Multi-academy Trust\",IF('Standing Data'!$D$15=B365,\"Error - counterparty with self\",\"\"),IF(N(ISNA(MATCH(B365,'Standing Data'!$E$49:$E$148,0)))<>0,\"\",\"Error - counterparty with self\")),\"\")","v":""},{"$f":"IF(C365<>\"\",VLOOKUP(C365,'CP IDs'!A$2:B$5122,2,FALSE),\"\")","v":""},null,{"$f":"IFERROR(VLOOKUP(C365,'CP IDs'!$A$2:$D$4422,4,FALSE),\"\")","v":""},"",null,null,null,null,null,null,null,null,null,null,null,null,null,null,null,null,null,null,null,null,null,null,null,null,null,null,null,null,null,null,null,null,null,null,null,null,null,null,null,null,null,null,null,null,-500000,500000,null,1,1,31,null,0,0,0,null,{"$f":"AND(B365=$C$9,'Standing Data'!$D$9<>\"Multi-academy Trust\")","v":{"$error":"#N/A"}}]
[{"$f":"IF(B366<>\"\",IF('Standing Data'!$D$9<>\"Multi-academy Trust\",IF('Standing Data'!$D$15=B366,\"Error - counterparty with self\",\"\"),IF(N(ISNA(MATCH(B366,'Standing Data'!$E$49:$E$148,0)))<>0,\"\",\"Error - counterparty with self\")),\"\")","v":""},{"$f":"IF(C366<>\"\",VLOOKUP(C366,'CP IDs'!A$2:B$5122,2,FALSE),\"\")","v":""},null,{"$f":"IFERROR(VLOOKUP(C366,'CP IDs'!$A$2:$D$4422,4,FALSE),\"\")","v":""},"",null,null,null,null,null,null,null,null,null,null,null,null,null,null,null,null,null,null,null,null,null,null,null,null,null,null,null,null,null,null,null,null,null,null,null,null,null,null,null,null,null,null,null,null,-500000,500000,null,1,1,31,null,0,0,0,null,{"$f":"AND(B366=$C$9,'Standing Data'!$D$9<>\"Multi-academy Trust\")","v":{"$error":"#N/A"}}]
[{"$f":"IF(B367<>\"\",IF('Standing Data'!$D$9<>\"Multi-academy Trust\",IF('Standing Data'!$D$15=B367,\"Error - counterparty with self\",\"\"),IF(N(ISNA(MATCH(B367,'Standing Data'!$E$49:$E$148,0)))<>0,\"\",\"Error - counterparty with self\")),\"\")","v":""},{"$f":"IF(C367<>\"\",VLOOKUP(C367,'CP IDs'!A$2:B$5122,2,FALSE),\"\")","v":""},null,{"$f":"IFERROR(VLOOKUP(C367,'CP IDs'!$A$2:$D$4422,4,FALSE),\"\")","v":""},"",null,null,null,null,null,null,null,null,null,null,null,null,null,null,null,null,null,null,null,null,null,null,null,null,null,null,null,null,null,null,null,null,null,null,null,null,null,null,null,null,null,null,null,null,-500000,500000,null,1,1,31,null,0,0,0,null,{"$f":"AND(B367=$C$9,'Standing Data'!$D$9<>\"Multi-academy Trust\")","v":{"$error":"#N/A"}}]
[{"$f":"IF(B368<>\"\",IF('Standing Data'!$D$9<>\"Multi-academy Trust\",IF('Standing Data'!$D$15=B368,\"Error - counterparty with self\",\"\"),IF(N(ISNA(MATCH(B368,'Standing Data'!$E$49:$E$148,0)))<>0,\"\",\"Error - counterparty with self\")),\"\")","v":""},{"$f":"IF(C368<>\"\",VLOOKUP(C368,'CP IDs'!A$2:B$5122,2,FALSE),\"\")","v":""},null,{"$f":"IFERROR(VLOOKUP(C368,'CP IDs'!$A$2:$D$4422,4,FALSE),\"\")","v":""},"",null,null,null,null,null,null,null,null,null,null,null,null,null,null,null,null,null,null,null,null,null,null,null,null,null,null,null,null,null,null,null,null,null,null,null,null,null,null,null,null,null,null,null,null,-500000,500000,null,1,1,31,null,0,0,0,null,{"$f":"AND(B368=$C$9,'Standing Data'!$D$9<>\"Multi-academy Trust\")","v":{"$error":"#N/A"}}]
[{"$f":"IF(B369<>\"\",IF('Standing Data'!$D$9<>\"Multi-academy Trust\",IF('Standing Data'!$D$15=B369,\"Error - counterparty with self\",\"\"),IF(N(ISNA(MATCH(B369,'Standing Data'!$E$49:$E$148,0)))<>0,\"\",\"Error - counterparty with self\")),\"\")","v":""},{"$f":"IF(C369<>\"\",VLOOKUP(C369,'CP IDs'!A$2:B$5122,2,FALSE),\"\")","v":""},null,{"$f":"IFERROR(VLOOKUP(C369,'CP IDs'!$A$2:$D$4422,4,FALSE),\"\")","v":""},"",null,null,null,null,null,null,null,null,null,null,null,null,null,null,null,null,null,null,null,null,null,null,null,null,null,null,null,null,null,null,null,null,null,null,null,null,null,null,null,null,null,null,null,null,-500000,500000,null,1,1,31,null,0,0,0,null,{"$f":"AND(B369=$C$9,'Standing Data'!$D$9<>\"Multi-academy Trust\")","v":{"$error":"#N/A"}}]
[{"$f":"IF(B370<>\"\",IF('Standing Data'!$D$9<>\"Multi-academy Trust\",IF('Standing Data'!$D$15=B370,\"Error - counterparty with self\",\"\"),IF(N(ISNA(MATCH(B370,'Standing Data'!$E$49:$E$148,0)))<>0,\"\",\"Error - counterparty with self\")),\"\")","v":""},{"$f":"IF(C370<>\"\",VLOOKUP(C370,'CP IDs'!A$2:B$5122,2,FALSE),\"\")","v":""},null,{"$f":"IFERROR(VLOOKUP(C370,'CP IDs'!$A$2:$D$4422,4,FALSE),\"\")","v":""},"",null,null,null,null,null,null,null,null,null,null,null,null,null,null,null,null,null,null,null,null,null,null,null,null,null,null,null,null,null,null,null,null,null,null,null,null,null,null,null,null,null,null,null,null,-500000,500000,null,1,1,31,null,0,0,0,null,{"$f":"AND(B370=$C$9,'Standing Data'!$D$9<>\"Multi-academy Trust\")","v":{"$error":"#N/A"}}]
[{"$f":"IF(B371<>\"\",IF('Standing Data'!$D$9<>\"Multi-academy Trust\",IF('Standing Data'!$D$15=B371,\"Error - counterparty with self\",\"\"),IF(N(ISNA(MATCH(B371,'Standing Data'!$E$49:$E$148,0)))<>0,\"\",\"Error - counterparty with self\")),\"\")","v":""},{"$f":"IF(C371<>\"\",VLOOKUP(C371,'CP IDs'!A$2:B$5122,2,FALSE),\"\")","v":""},null,{"$f":"IFERROR(VLOOKUP(C371,'CP IDs'!$A$2:$D$4422,4,FALSE),\"\")","v":""},"",null,null,null,null,null,null,null,null,null,null,null,null,null,null,null,null,null,null,null,null,null,null,null,null,null,null,null,null,null,null,null,null,null,null,null,null,null,null,null,null,null,null,null,null,-500000,500000,null,1,1,31,null,0,0,0,null,{"$f":"AND(B371=$C$9,'Standing Data'!$D$9<>\"Multi-academy Trust\")","v":{"$error":"#N/A"}}]
[{"$f":"IF(B372<>\"\",IF('Standing Data'!$D$9<>\"Multi-academy Trust\",IF('Standing Data'!$D$15=B372,\"Error - counterparty with self\",\"\"),IF(N(ISNA(MATCH(B372,'Standing Data'!$E$49:$E$148,0)))<>0,\"\",\"Error - counterparty with self\")),\"\")","v":""},{"$f":"IF(C372<>\"\",VLOOKUP(C372,'CP IDs'!A$2:B$5122,2,FALSE),\"\")","v":""},null,{"$f":"IFERROR(VLOOKUP(C372,'CP IDs'!$A$2:$D$4422,4,FALSE),\"\")","v":""},"",null,null,null,null,null,null,null,null,null,null,null,null,null,null,null,null,null,null,null,null,null,null,null,null,null,null,null,null,null,null,null,null,null,null,null,null,null,null,null,null,null,null,null,null,-500000,500000,null,1,1,31,null,0,0,0,null,{"$f":"AND(B372=$C$9,'Standing Data'!$D$9<>\"Multi-academy Trust\")","v":{"$error":"#N/A"}}]
[{"$f":"IF(B373<>\"\",IF('Standing Data'!$D$9<>\"Multi-academy Trust\",IF('Standing Data'!$D$15=B373,\"Error - counterparty with self\",\"\"),IF(N(ISNA(MATCH(B373,'Standing Data'!$E$49:$E$148,0)))<>0,\"\",\"Error - counterparty with self\")),\"\")","v":""},{"$f":"IF(C373<>\"\",VLOOKUP(C373,'CP IDs'!A$2:B$5122,2,FALSE),\"\")","v":""},null,{"$f":"IFERROR(VLOOKUP(C373,'CP IDs'!$A$2:$D$4422,4,FALSE),\"\")","v":""},"",null,null,null,null,null,null,null,null,null,null,null,null,null,null,null,null,null,null,null,null,null,null,null,null,null,null,null,null,null,null,null,null,null,null,null,null,null,null,null,null,null,null,null,null,-500000,500000,null,1,1,31,null,0,0,0,null,{"$f":"AND(B373=$C$9,'Standing Data'!$D$9<>\"Multi-academy Trust\")","v":{"$error":"#N/A"}}]
[{"$f":"IF(B374<>\"\",IF('Standing Data'!$D$9<>\"Multi-academy Trust\",IF('Standing Data'!$D$15=B374,\"Error - counterparty with self\",\"\"),IF(N(ISNA(MATCH(B374,'Standing Data'!$E$49:$E$148,0)))<>0,\"\",\"Error - counterparty with self\")),\"\")","v":""},{"$f":"IF(C374<>\"\",VLOOKUP(C374,'CP IDs'!A$2:B$5122,2,FALSE),\"\")","v":""},null,{"$f":"IFERROR(VLOOKUP(C374,'CP IDs'!$A$2:$D$4422,4,FALSE),\"\")","v":""},"",null,null,null,null,null,null,null,null,null,null,null,null,null,null,null,null,null,null,null,null,null,null,null,null,null,null,null,null,null,null,null,null,null,null,null,null,null,null,null,null,null,null,null,null,-500000,500000,null,1,1,31,null,0,0,0,null,{"$f":"AND(B374=$C$9,'Standing Data'!$D$9<>\"Multi-academy Trust\")","v":{"$error":"#N/A"}}]
[{"$f":"IF(B375<>\"\",IF('Standing Data'!$D$9<>\"Multi-academy Trust\",IF('Standing Data'!$D$15=B375,\"Error - counterparty with self\",\"\"),IF(N(ISNA(MATCH(B375,'Standing Data'!$E$49:$E$148,0)))<>0,\"\",\"Error - counterparty with self\")),\"\")","v":""},{"$f":"IF(C375<>\"\",VLOOKUP(C375,'CP IDs'!A$2:B$5122,2,FALSE),\"\")","v":""},null,{"$f":"IFERROR(VLOOKUP(C375,'CP IDs'!$A$2:$D$4422,4,FALSE),\"\")","v":""},"",null,null,null,null,null,null,null,null,null,null,null,null,null,null,null,null,null,null,null,null,null,null,null,null,null,null,null,null,null,null,null,null,null,null,null,null,null,null,null,null,null,null,null,null,-500000,500000,null,1,1,31,null,0,0,0,null,{"$f":"AND(B375=$C$9,'Standing Data'!$D$9<>\"Multi-academy Trust\")","v":{"$error":"#N/A"}}]
[{"$f":"IF(B376<>\"\",IF('Standing Data'!$D$9<>\"Multi-academy Trust\",IF('Standing Data'!$D$15=B376,\"Error - counterparty with self\",\"\"),IF(N(ISNA(MATCH(B376,'Standing Data'!$E$49:$E$148,0)))<>0,\"\",\"Error - counterparty with self\")),\"\")","v":""},{"$f":"IF(C376<>\"\",VLOOKUP(C376,'CP IDs'!A$2:B$5122,2,FALSE),\"\")","v":""},null,{"$f":"IFERROR(VLOOKUP(C376,'CP IDs'!$A$2:$D$4422,4,FALSE),\"\")","v":""},"",null,null,null,null,null,null,null,null,null,null,null,null,null,null,null,null,null,null,null,null,null,null,null,null,null,null,null,null,null,null,null,null,null,null,null,null,null,null,null,null,null,null,null,null,-500000,500000,null,1,1,31,null,0,0,0,null,{"$f":"AND(B376=$C$9,'Standing Data'!$D$9<>\"Multi-academy Trust\")","v":{"$error":"#N/A"}}]
[{"$f":"IF(B377<>\"\",IF('Standing Data'!$D$9<>\"Multi-academy Trust\",IF('Standing Data'!$D$15=B377,\"Error - counterparty with self\",\"\"),IF(N(ISNA(MATCH(B377,'Standing Data'!$E$49:$E$148,0)))<>0,\"\",\"Error - counterparty with self\")),\"\")","v":""},{"$f":"IF(C377<>\"\",VLOOKUP(C377,'CP IDs'!A$2:B$5122,2,FALSE),\"\")","v":""},null,{"$f":"IFERROR(VLOOKUP(C377,'CP IDs'!$A$2:$D$4422,4,FALSE),\"\")","v":""},"",null,null,null,null,null,null,null,null,null,null,null,null,null,null,null,null,null,null,null,null,null,null,null,null,null,null,null,null,null,null,null,null,null,null,null,null,null,null,null,null,null,null,null,null,-500000,500000,null,1,1,31,null,0,0,0,null,{"$f":"AND(B377=$C$9,'Standing Data'!$D$9<>\"Multi-academy Trust\")","v":{"$error":"#N/A"}}]
[{"$f":"IF(B378<>\"\",IF('Standing Data'!$D$9<>\"Multi-academy Trust\",IF('Standing Data'!$D$15=B378,\"Error - counterparty with self\",\"\"),IF(N(ISNA(MATCH(B378,'Standing Data'!$E$49:$E$148,0)))<>0,\"\",\"Error - counterparty with self\")),\"\")","v":""},{"$f":"IF(C378<>\"\",VLOOKUP(C378,'CP IDs'!A$2:B$5122,2,FALSE),\"\")","v":""},null,{"$f":"IFERROR(VLOOKUP(C378,'CP IDs'!$A$2:$D$4422,4,FALSE),\"\")","v":""},"",null,null,null,null,null,null,null,null,null,null,null,null,null,null,null,null,null,null,null,null,null,null,null,null,null,null,null,null,null,null,null,null,null,null,null,null,null,null,null,null,null,null,null,null,-500000,500000,null,1,1,31,null,0,0,0,null,{"$f":"AND(B378=$C$9,'Standing Data'!$D$9<>\"Multi-academy Trust\")","v":{"$error":"#N/A"}}]
[{"$f":"IF(B379<>\"\",IF('Standing Data'!$D$9<>\"Multi-academy Trust\",IF('Standing Data'!$D$15=B379,\"Error - counterparty with self\",\"\"),IF(N(ISNA(MATCH(B379,'Standing Data'!$E$49:$E$148,0)))<>0,\"\",\"Error - counterparty with self\")),\"\")","v":""},{"$f":"IF(C379<>\"\",VLOOKUP(C379,'CP IDs'!A$2:B$5122,2,FALSE),\"\")","v":""},null,{"$f":"IFERROR(VLOOKUP(C379,'CP IDs'!$A$2:$D$4422,4,FALSE),\"\")","v":""},"",null,null,null,null,null,null,null,null,null,null,null,null,null,null,null,null,null,null,null,null,null,null,null,null,null,null,null,null,null,null,null,null,null,null,null,null,null,null,null,null,null,null,null,null,-500000,500000,null,1,1,31,null,0,0,0,null,{"$f":"AND(B379=$C$9,'Standing Data'!$D$9<>\"Multi-academy Trust\")","v":{"$error":"#N/A"}}]
[{"$f":"IF(B380<>\"\",IF('Standing Data'!$D$9<>\"Multi-academy Trust\",IF('Standing Data'!$D$15=B380,\"Error - counterparty with self\",\"\"),IF(N(ISNA(MATCH(B380,'Standing Data'!$E$49:$E$148,0)))<>0,\"\",\"Error - counterparty with self\")),\"\")","v":""},{"$f":"IF(C380<>\"\",VLOOKUP(C380,'CP IDs'!A$2:B$5122,2,FALSE),\"\")","v":""},null,{"$f":"IFERROR(VLOOKUP(C380,'CP IDs'!$A$2:$D$4422,4,FALSE),\"\")","v":""},"",null,null,null,null,null,null,null,null,null,null,null,null,null,null,null,null,null,null,null,null,null,null,null,null,null,null,null,null,null,null,null,null,null,null,null,null,null,null,null,null,null,null,null,null,-500000,500000,null,1,1,31,null,0,0,0,null,{"$f":"AND(B380=$C$9,'Standing Data'!$D$9<>\"Multi-academy Trust\")","v":{"$error":"#N/A"}}]
[{"$f":"IF(B381<>\"\",IF('Standing Data'!$D$9<>\"Multi-academy Trust\",IF('Standing Data'!$D$15=B381,\"Error - counterparty with self\",\"\"),IF(N(ISNA(MATCH(B381,'Standing Data'!$E$49:$E$148,0)))<>0,\"\",\"Error - counterparty with self\")),\"\")","v":""},{"$f":"IF(C381<>\"\",VLOOKUP(C381,'CP IDs'!A$2:B$5122,2,FALSE),\"\")","v":""},null,{"$f":"IFERROR(VLOOKUP(C381,'CP IDs'!$A$2:$D$4422,4,FALSE),\"\")","v":""},"",null,null,null,null,null,null,null,null,null,null,null,null,null,null,null,null,null,null,null,null,null,null,null,null,null,null,null,null,null,null,null,null,null,null,null,null,null,null,null,null,null,null,null,null,-500000,500000,null,1,1,31,null,0,0,0,null,{"$f":"AND(B381=$C$9,'Standing Data'!$D$9<>\"Multi-academy Trust\")","v":{"$error":"#N/A"}}]
[{"$f":"IF(B382<>\"\",IF('Standing Data'!$D$9<>\"Multi-academy Trust\",IF('Standing Data'!$D$15=B382,\"Error - counterparty with self\",\"\"),IF(N(ISNA(MATCH(B382,'Standing Data'!$E$49:$E$148,0)))<>0,\"\",\"Error - counterparty with self\")),\"\")","v":""},{"$f":"IF(C382<>\"\",VLOOKUP(C382,'CP IDs'!A$2:B$5122,2,FALSE),\"\")","v":""},null,{"$f":"IFERROR(VLOOKUP(C382,'CP IDs'!$A$2:$D$4422,4,FALSE),\"\")","v":""},"",null,null,null,null,null,null,null,null,null,null,null,null,null,null,null,null,null,null,null,null,null,null,null,null,null,null,null,null,null,null,null,null,null,null,null,null,null,null,null,null,null,null,null,null,-500000,500000,null,1,1,31,null,0,0,0,null,{"$f":"AND(B382=$C$9,'Standing Data'!$D$9<>\"Multi-academy Trust\")","v":{"$error":"#N/A"}}]
[{"$f":"IF(B383<>\"\",IF('Standing Data'!$D$9<>\"Multi-academy Trust\",IF('Standing Data'!$D$15=B383,\"Error - counterparty with self\",\"\"),IF(N(ISNA(MATCH(B383,'Standing Data'!$E$49:$E$148,0)))<>0,\"\",\"Error - counterparty with self\")),\"\")","v":""},{"$f":"IF(C383<>\"\",VLOOKUP(C383,'CP IDs'!A$2:B$5122,2,FALSE),\"\")","v":""},null,{"$f":"IFERROR(VLOOKUP(C383,'CP IDs'!$A$2:$D$4422,4,FALSE),\"\")","v":""},"",null,null,null,null,null,null,null,null,null,null,null,null,null,null,null,null,null,null,null,null,null,null,null,null,null,null,null,null,null,null,null,null,null,null,null,null,null,null,null,null,null,null,null,null,-500000,500000,null,1,1,31,null,0,0,0,null,{"$f":"AND(B383=$C$9,'Standing Data'!$D$9<>\"Multi-academy Trust\")","v":{"$error":"#N/A"}}]
[{"$f":"IF(B384<>\"\",IF('Standing Data'!$D$9<>\"Multi-academy Trust\",IF('Standing Data'!$D$15=B384,\"Error - counterparty with self\",\"\"),IF(N(ISNA(MATCH(B384,'Standing Data'!$E$49:$E$148,0)))<>0,\"\",\"Error - counterparty with self\")),\"\")","v":""},{"$f":"IF(C384<>\"\",VLOOKUP(C384,'CP IDs'!A$2:B$5122,2,FALSE),\"\")","v":""},null,{"$f":"IFERROR(VLOOKUP(C384,'CP IDs'!$A$2:$D$4422,4,FALSE),\"\")","v":""},"",null,null,null,null,null,null,null,null,null,null,null,null,null,null,null,null,null,null,null,null,null,null,null,null,null,null,null,null,null,null,null,null,null,null,null,null,null,null,null,null,null,null,null,null,-500000,500000,null,1,1,31,null,0,0,0,null,{"$f":"AND(B384=$C$9,'Standing Data'!$D$9<>\"Multi-academy Trust\")","v":{"$error":"#N/A"}}]
[{"$f":"IF(B385<>\"\",IF('Standing Data'!$D$9<>\"Multi-academy Trust\",IF('Standing Data'!$D$15=B385,\"Error - counterparty with self\",\"\"),IF(N(ISNA(MATCH(B385,'Standing Data'!$E$49:$E$148,0)))<>0,\"\",\"Error - counterparty with self\")),\"\")","v":""},{"$f":"IF(C385<>\"\",VLOOKUP(C385,'CP IDs'!A$2:B$5122,2,FALSE),\"\")","v":""},null,{"$f":"IFERROR(VLOOKUP(C385,'CP IDs'!$A$2:$D$4422,4,FALSE),\"\")","v":""},"",null,null,null,null,null,null,null,null,null,null,null,null,null,null,null,null,null,null,null,null,null,null,null,null,null,null,null,null,null,null,null,null,null,null,null,null,null,null,null,null,null,null,null,null,-500000,500000,null,1,1,31,null,0,0,0,null,{"$f":"AND(B385=$C$9,'Standing Data'!$D$9<>\"Multi-academy Trust\")","v":{"$error":"#N/A"}}]
[{"$f":"IF(B386<>\"\",IF('Standing Data'!$D$9<>\"Multi-academy Trust\",IF('Standing Data'!$D$15=B386,\"Error - counterparty with self\",\"\"),IF(N(ISNA(MATCH(B386,'Standing Data'!$E$49:$E$148,0)))<>0,\"\",\"Error - counterparty with self\")),\"\")","v":""},{"$f":"IF(C386<>\"\",VLOOKUP(C386,'CP IDs'!A$2:B$5122,2,FALSE),\"\")","v":""},null,{"$f":"IFERROR(VLOOKUP(C386,'CP IDs'!$A$2:$D$4422,4,FALSE),\"\")","v":""},"",null,null,null,null,null,null,null,null,null,null,null,null,null,null,null,null,null,null,null,null,null,null,null,null,null,null,null,null,null,null,null,null,null,null,null,null,null,null,null,null,null,null,null,null,-500000,500000,null,1,1,31,null,0,0,0,null,{"$f":"AND(B386=$C$9,'Standing Data'!$D$9<>\"Multi-academy Trust\")","v":{"$error":"#N/A"}}]
[{"$f":"IF(B387<>\"\",IF('Standing Data'!$D$9<>\"Multi-academy Trust\",IF('Standing Data'!$D$15=B387,\"Error - counterparty with self\",\"\"),IF(N(ISNA(MATCH(B387,'Standing Data'!$E$49:$E$148,0)))<>0,\"\",\"Error - counterparty with self\")),\"\")","v":""},{"$f":"IF(C387<>\"\",VLOOKUP(C387,'CP IDs'!A$2:B$5122,2,FALSE),\"\")","v":""},null,{"$f":"IFERROR(VLOOKUP(C387,'CP IDs'!$A$2:$D$4422,4,FALSE),\"\")","v":""},"",null,null,null,null,null,null,null,null,null,null,null,null,null,null,null,null,null,null,null,null,null,null,null,null,null,null,null,null,null,null,null,null,null,null,null,null,null,null,null,null,null,null,null,null,-500000,500000,null,1,1,31,null,0,0,0,null,{"$f":"AND(B387=$C$9,'Standing Data'!$D$9<>\"Multi-academy Trust\")","v":{"$error":"#N/A"}}]
[{"$f":"IF(B388<>\"\",IF('Standing Data'!$D$9<>\"Multi-academy Trust\",IF('Standing Data'!$D$15=B388,\"Error - counterparty with self\",\"\"),IF(N(ISNA(MATCH(B388,'Standing Data'!$E$49:$E$148,0)))<>0,\"\",\"Error - counterparty with self\")),\"\")","v":""},{"$f":"IF(C388<>\"\",VLOOKUP(C388,'CP IDs'!A$2:B$5122,2,FALSE),\"\")","v":""},null,{"$f":"IFERROR(VLOOKUP(C388,'CP IDs'!$A$2:$D$4422,4,FALSE),\"\")","v":""},"",null,null,null,null,null,null,null,null,null,null,null,null,null,null,null,null,null,null,null,null,null,null,null,null,null,null,null,null,null,null,null,null,null,null,null,null,null,null,null,null,null,null,null,null,-500000,500000,null,1,1,31,null,0,0,0,null,{"$f":"AND(B388=$C$9,'Standing Data'!$D$9<>\"Multi-academy Trust\")","v":{"$error":"#N/A"}}]
[{"$f":"IF(B389<>\"\",IF('Standing Data'!$D$9<>\"Multi-academy Trust\",IF('Standing Data'!$D$15=B389,\"Error - counterparty with self\",\"\"),IF(N(ISNA(MATCH(B389,'Standing Data'!$E$49:$E$148,0)))<>0,\"\",\"Error - counterparty with self\")),\"\")","v":""},{"$f":"IF(C389<>\"\",VLOOKUP(C389,'CP IDs'!A$2:B$5122,2,FALSE),\"\")","v":""},null,{"$f":"IFERROR(VLOOKUP(C389,'CP IDs'!$A$2:$D$4422,4,FALSE),\"\")","v":""},"",null,null,null,null,null,null,null,null,null,null,null,null,null,null,null,null,null,null,null,null,null,null,null,null,null,null,null,null,null,null,null,null,null,null,null,null,null,null,null,null,null,null,null,null,-500000,500000,null,1,1,31,null,0,0,0,null,{"$f":"AND(B389=$C$9,'Standing Data'!$D$9<>\"Multi-academy Trust\")","v":{"$error":"#N/A"}}]
[{"$f":"IF(B390<>\"\",IF('Standing Data'!$D$9<>\"Multi-academy Trust\",IF('Standing Data'!$D$15=B390,\"Error - counterparty with self\",\"\"),IF(N(ISNA(MATCH(B390,'Standing Data'!$E$49:$E$148,0)))<>0,\"\",\"Error - counterparty with self\")),\"\")","v":""},{"$f":"IF(C390<>\"\",VLOOKUP(C390,'CP IDs'!A$2:B$5122,2,FALSE),\"\")","v":""},null,{"$f":"IFERROR(VLOOKUP(C390,'CP IDs'!$A$2:$D$4422,4,FALSE),\"\")","v":""},"",null,null,null,null,null,null,null,null,null,null,null,null,null,null,null,null,null,null,null,null,null,null,null,null,null,null,null,null,null,null,null,null,null,null,null,null,null,null,null,null,null,null,null,null,-500000,500000,null,1,1,31,null,0,0,0,null,{"$f":"AND(B390=$C$9,'Standing Data'!$D$9<>\"Multi-academy Trust\")","v":{"$error":"#N/A"}}]
[{"$f":"IF(B391<>\"\",IF('Standing Data'!$D$9<>\"Multi-academy Trust\",IF('Standing Data'!$D$15=B391,\"Error - counterparty with self\",\"\"),IF(N(ISNA(MATCH(B391,'Standing Data'!$E$49:$E$148,0)))<>0,\"\",\"Error - counterparty with self\")),\"\")","v":""},{"$f":"IF(C391<>\"\",VLOOKUP(C391,'CP IDs'!A$2:B$5122,2,FALSE),\"\")","v":""},null,{"$f":"IFERROR(VLOOKUP(C391,'CP IDs'!$A$2:$D$4422,4,FALSE),\"\")","v":""},"",null,null,null,null,null,null,null,null,null,null,null,null,null,null,null,null,null,null,null,null,null,null,null,null,null,null,null,null,null,null,null,null,null,null,null,null,null,null,null,null,null,null,null,null,-500000,500000,null,1,1,31,null,0,0,0,null,{"$f":"AND(B391=$C$9,'Standing Data'!$D$9<>\"Multi-academy Trust\")","v":{"$error":"#N/A"}}]
[{"$f":"IF(B392<>\"\",IF('Standing Data'!$D$9<>\"Multi-academy Trust\",IF('Standing Data'!$D$15=B392,\"Error - counterparty with self\",\"\"),IF(N(ISNA(MATCH(B392,'Standing Data'!$E$49:$E$148,0)))<>0,\"\",\"Error - counterparty with self\")),\"\")","v":""},{"$f":"IF(C392<>\"\",VLOOKUP(C392,'CP IDs'!A$2:B$5122,2,FALSE),\"\")","v":""},null,{"$f":"IFERROR(VLOOKUP(C392,'CP IDs'!$A$2:$D$4422,4,FALSE),\"\")","v":""},"",null,null,null,null,null,null,null,null,null,null,null,null,null,null,null,null,null,null,null,null,null,null,null,null,null,null,null,null,null,null,null,null,null,null,null,null,null,null,null,null,null,null,null,null,-500000,500000,null,1,1,31,null,0,0,0,null,{"$f":"AND(B392=$C$9,'Standing Data'!$D$9<>\"Multi-academy Trust\")","v":{"$error":"#N/A"}}]
[{"$f":"IF(B393<>\"\",IF('Standing Data'!$D$9<>\"Multi-academy Trust\",IF('Standing Data'!$D$15=B393,\"Error - counterparty with self\",\"\"),IF(N(ISNA(MATCH(B393,'Standing Data'!$E$49:$E$148,0)))<>0,\"\",\"Error - counterparty with self\")),\"\")","v":""},{"$f":"IF(C393<>\"\",VLOOKUP(C393,'CP IDs'!A$2:B$5122,2,FALSE),\"\")","v":""},null,{"$f":"IFERROR(VLOOKUP(C393,'CP IDs'!$A$2:$D$4422,4,FALSE),\"\")","v":""},"",null,null,null,null,null,null,null,null,null,null,null,null,null,null,null,null,null,null,null,null,null,null,null,null,null,null,null,null,null,null,null,null,null,null,null,null,null,null,null,null,null,null,null,null,-500000,500000,null,1,1,31,null,0,0,0,null,{"$f":"AND(B393=$C$9,'Standing Data'!$D$9<>\"Multi-academy Trust\")","v":{"$error":"#N/A"}}]
[{"$f":"IF(B394<>\"\",IF('Standing Data'!$D$9<>\"Multi-academy Trust\",IF('Standing Data'!$D$15=B394,\"Error - counterparty with self\",\"\"),IF(N(ISNA(MATCH(B394,'Standing Data'!$E$49:$E$148,0)))<>0,\"\",\"Error - counterparty with self\")),\"\")","v":""},{"$f":"IF(C394<>\"\",VLOOKUP(C394,'CP IDs'!A$2:B$5122,2,FALSE),\"\")","v":""},null,{"$f":"IFERROR(VLOOKUP(C394,'CP IDs'!$A$2:$D$4422,4,FALSE),\"\")","v":""},"",null,null,null,null,null,null,null,null,null,null,null,null,null,null,null,null,null,null,null,null,null,null,null,null,null,null,null,null,null,null,null,null,null,null,null,null,null,null,null,null,null,null,null,null,-500000,500000,null,1,1,31,null,0,0,0,null,{"$f":"AND(B394=$C$9,'Standing Data'!$D$9<>\"Multi-academy Trust\")","v":{"$error":"#N/A"}}]
[{"$f":"IF(B395<>\"\",IF('Standing Data'!$D$9<>\"Multi-academy Trust\",IF('Standing Data'!$D$15=B395,\"Error - counterparty with self\",\"\"),IF(N(ISNA(MATCH(B395,'Standing Data'!$E$49:$E$148,0)))<>0,\"\",\"Error - counterparty with self\")),\"\")","v":""},{"$f":"IF(C395<>\"\",VLOOKUP(C395,'CP IDs'!A$2:B$5122,2,FALSE),\"\")","v":""},null,{"$f":"IFERROR(VLOOKUP(C395,'CP IDs'!$A$2:$D$4422,4,FALSE),\"\")","v":""},"",null,null,null,null,null,null,null,null,null,null,null,null,null,null,null,null,null,null,null,null,null,null,null,null,null,null,null,null,null,null,null,null,null,null,null,null,null,null,null,null,null,null,null,null,-500000,500000,null,1,1,31,null,0,0,0,null,{"$f":"AND(B395=$C$9,'Standing Data'!$D$9<>\"Multi-academy Trust\")","v":{"$error":"#N/A"}}]
[{"$f":"IF(B396<>\"\",IF('Standing Data'!$D$9<>\"Multi-academy Trust\",IF('Standing Data'!$D$15=B396,\"Error - counterparty with self\",\"\"),IF(N(ISNA(MATCH(B396,'Standing Data'!$E$49:$E$148,0)))<>0,\"\",\"Error - counterparty with self\")),\"\")","v":""},{"$f":"IF(C396<>\"\",VLOOKUP(C396,'CP IDs'!A$2:B$5122,2,FALSE),\"\")","v":""},null,{"$f":"IFERROR(VLOOKUP(C396,'CP IDs'!$A$2:$D$4422,4,FALSE),\"\")","v":""},"",null,null,null,null,null,null,null,null,null,null,null,null,null,null,null,null,null,null,null,null,null,null,null,null,null,null,null,null,null,null,null,null,null,null,null,null,null,null,null,null,null,null,null,null,-500000,500000,null,1,1,31,null,0,0,0,null,{"$f":"AND(B396=$C$9,'Standing Data'!$D$9<>\"Multi-academy Trust\")","v":{"$error":"#N/A"}}]
[{"$f":"IF(B397<>\"\",IF('Standing Data'!$D$9<>\"Multi-academy Trust\",IF('Standing Data'!$D$15=B397,\"Error - counterparty with self\",\"\"),IF(N(ISNA(MATCH(B397,'Standing Data'!$E$49:$E$148,0)))<>0,\"\",\"Error - counterparty with self\")),\"\")","v":""},{"$f":"IF(C397<>\"\",VLOOKUP(C397,'CP IDs'!A$2:B$5122,2,FALSE),\"\")","v":""},null,{"$f":"IFERROR(VLOOKUP(C397,'CP IDs'!$A$2:$D$4422,4,FALSE),\"\")","v":""},"",null,null,null,null,null,null,null,null,null,null,null,null,null,null,null,null,null,null,null,null,null,null,null,null,null,null,null,null,null,null,null,null,null,null,null,null,null,null,null,null,null,null,null,null,-500000,500000,null,1,1,31,null,0,0,0,null,{"$f":"AND(B397=$C$9,'Standing Data'!$D$9<>\"Multi-academy Trust\")","v":{"$error":"#N/A"}}]
[{"$f":"IF(B398<>\"\",IF('Standing Data'!$D$9<>\"Multi-academy Trust\",IF('Standing Data'!$D$15=B398,\"Error - counterparty with self\",\"\"),IF(N(ISNA(MATCH(B398,'Standing Data'!$E$49:$E$148,0)))<>0,\"\",\"Error - counterparty with self\")),\"\")","v":""},{"$f":"IF(C398<>\"\",VLOOKUP(C398,'CP IDs'!A$2:B$5122,2,FALSE),\"\")","v":""},null,{"$f":"IFERROR(VLOOKUP(C398,'CP IDs'!$A$2:$D$4422,4,FALSE),\"\")","v":""},"",null,null,null,null,null,null,null,null,null,null,null,null,null,null,null,null,null,null,null,null,null,null,null,null,null,null,null,null,null,null,null,null,null,null,null,null,null,null,null,null,null,null,null,null,-500000,500000,null,1,1,31,null,0,0,0,null,{"$f":"AND(B398=$C$9,'Standing Data'!$D$9<>\"Multi-academy Trust\")","v":{"$error":"#N/A"}}]
[{"$f":"IF(B399<>\"\",IF('Standing Data'!$D$9<>\"Multi-academy Trust\",IF('Standing Data'!$D$15=B399,\"Error - counterparty with self\",\"\"),IF(N(ISNA(MATCH(B399,'Standing Data'!$E$49:$E$148,0)))<>0,\"\",\"Error - counterparty with self\")),\"\")","v":""},{"$f":"IF(C399<>\"\",VLOOKUP(C399,'CP IDs'!A$2:B$5122,2,FALSE),\"\")","v":""},null,{"$f":"IFERROR(VLOOKUP(C399,'CP IDs'!$A$2:$D$4422,4,FALSE),\"\")","v":""},"",null,null,null,null,null,null,null,null,null,null,null,null,null,null,null,null,null,null,null,null,null,null,null,null,null,null,null,null,null,null,null,null,null,null,null,null,null,null,null,null,null,null,null,null,-500000,500000,null,1,1,31,null,0,0,0,null,{"$f":"AND(B399=$C$9,'Standing Data'!$D$9<>\"Multi-academy Trust\")","v":{"$error":"#N/A"}}]
[{"$f":"IF(B400<>\"\",IF('Standing Data'!$D$9<>\"Multi-academy Trust\",IF('Standing Data'!$D$15=B400,\"Error - counterparty with self\",\"\"),IF(N(ISNA(MATCH(B400,'Standing Data'!$E$49:$E$148,0)))<>0,\"\",\"Error - counterparty with self\")),\"\")","v":""},{"$f":"IF(C400<>\"\",VLOOKUP(C400,'CP IDs'!A$2:B$5122,2,FALSE),\"\")","v":""},null,{"$f":"IFERROR(VLOOKUP(C400,'CP IDs'!$A$2:$D$4422,4,FALSE),\"\")","v":""},"",null,null,null,null,null,null,null,null,null,null,null,null,null,null,null,null,null,null,null,null,null,null,null,null,null,null,null,null,null,null,null,null,null,null,null,null,null,null,null,null,null,null,null,null,-500000,500000,null,1,1,31,null,0,0,0,null,{"$f":"AND(B400=$C$9,'Standing Data'!$D$9<>\"Multi-academy Trust\")","v":{"$error":"#N/A"}}]
[{"$f":"IF(B401<>\"\",IF('Standing Data'!$D$9<>\"Multi-academy Trust\",IF('Standing Data'!$D$15=B401,\"Error - counterparty with self\",\"\"),IF(N(ISNA(MATCH(B401,'Standing Data'!$E$49:$E$148,0)))<>0,\"\",\"Error - counterparty with self\")),\"\")","v":""},{"$f":"IF(C401<>\"\",VLOOKUP(C401,'CP IDs'!A$2:B$5122,2,FALSE),\"\")","v":""},null,{"$f":"IFERROR(VLOOKUP(C401,'CP IDs'!$A$2:$D$4422,4,FALSE),\"\")","v":""},"",null,null,null,null,null,null,null,null,null,null,null,null,null,null,null,null,null,null,null,null,null,null,null,null,null,null,null,null,null,null,null,null,null,null,null,null,null,null,null,null,null,null,null,null,-500000,500000,null,1,1,31,null,0,0,0,null,{"$f":"AND(B401=$C$9,'Standing Data'!$D$9<>\"Multi-academy Trust\")","v":{"$error":"#N/A"}}]
[{"$f":"IF(B402<>\"\",IF('Standing Data'!$D$9<>\"Multi-academy Trust\",IF('Standing Data'!$D$15=B402,\"Error - counterparty with self\",\"\"),IF(N(ISNA(MATCH(B402,'Standing Data'!$E$49:$E$148,0)))<>0,\"\",\"Error - counterparty with self\")),\"\")","v":""},{"$f":"IF(C402<>\"\",VLOOKUP(C402,'CP IDs'!A$2:B$5122,2,FALSE),\"\")","v":""},null,{"$f":"IFERROR(VLOOKUP(C402,'CP IDs'!$A$2:$D$4422,4,FALSE),\"\")","v":""},"",null,null,null,null,null,null,null,null,null,null,null,null,null,null,null,null,null,null,null,null,null,null,null,null,null,null,null,null,null,null,null,null,null,null,null,null,null,null,null,null,null,null,null,null,-500000,500000,null,1,1,31,null,0,0,0,null,{"$f":"AND(B402=$C$9,'Standing Data'!$D$9<>\"Multi-academy Trust\")","v":{"$error":"#N/A"}}]
[{"$f":"IF(B403<>\"\",IF('Standing Data'!$D$9<>\"Multi-academy Trust\",IF('Standing Data'!$D$15=B403,\"Error - counterparty with self\",\"\"),IF(N(ISNA(MATCH(B403,'Standing Data'!$E$49:$E$148,0)))<>0,\"\",\"Error - counterparty with self\")),\"\")","v":""},{"$f":"IF(C403<>\"\",VLOOKUP(C403,'CP IDs'!A$2:B$5122,2,FALSE),\"\")","v":""},null,{"$f":"IFERROR(VLOOKUP(C403,'CP IDs'!$A$2:$D$4422,4,FALSE),\"\")","v":""},"",null,null,null,null,null,null,null,null,null,null,null,null,null,null,null,null,null,null,null,null,null,null,null,null,null,null,null,null,null,null,null,null,null,null,null,null,null,null,null,null,null,null,null,null,-500000,500000,null,1,1,31,null,0,0,0,null,{"$f":"AND(B403=$C$9,'Standing Data'!$D$9<>\"Multi-academy Trust\")","v":{"$error":"#N/A"}}]
[{"$f":"IF(B404<>\"\",IF('Standing Data'!$D$9<>\"Multi-academy Trust\",IF('Standing Data'!$D$15=B404,\"Error - counterparty with self\",\"\"),IF(N(ISNA(MATCH(B404,'Standing Data'!$E$49:$E$148,0)))<>0,\"\",\"Error - counterparty with self\")),\"\")","v":""},{"$f":"IF(C404<>\"\",VLOOKUP(C404,'CP IDs'!A$2:B$5122,2,FALSE),\"\")","v":""},null,{"$f":"IFERROR(VLOOKUP(C404,'CP IDs'!$A$2:$D$4422,4,FALSE),\"\")","v":""},"",null,null,null,null,null,null,null,null,null,null,null,null,null,null,null,null,null,null,null,null,null,null,null,null,null,null,null,null,null,null,null,null,null,null,null,null,null,null,null,null,null,null,null,null,-500000,500000,null,1,1,31,null,0,0,0,null,{"$f":"AND(B404=$C$9,'Standing Data'!$D$9<>\"Multi-academy Trust\")","v":{"$error":"#N/A"}}]
[{"$f":"IF(B405<>\"\",IF('Standing Data'!$D$9<>\"Multi-academy Trust\",IF('Standing Data'!$D$15=B405,\"Error - counterparty with self\",\"\"),IF(N(ISNA(MATCH(B405,'Standing Data'!$E$49:$E$148,0)))<>0,\"\",\"Error - counterparty with self\")),\"\")","v":""},{"$f":"IF(C405<>\"\",VLOOKUP(C405,'CP IDs'!A$2:B$5122,2,FALSE),\"\")","v":""},null,{"$f":"IFERROR(VLOOKUP(C405,'CP IDs'!$A$2:$D$4422,4,FALSE),\"\")","v":""},"",null,null,null,null,null,null,null,null,null,null,null,null,null,null,null,null,null,null,null,null,null,null,null,null,null,null,null,null,null,null,null,null,null,null,null,null,null,null,null,null,null,null,null,null,-500000,500000,null,1,1,31,null,0,0,{"$f":"COUNT(F405:AT405)","v":0},null,{"$f":"AND(B405=$C$9,'Standing Data'!$D$9<>\"Multi-academy Trust\")","v":{"$error":"#N/A"}}]
[{"$f":"IF(B406<>\"\",IF('Standing Data'!$D$9<>\"Multi-academy Trust\",IF('Standing Data'!$D$15=B406,\"Error - counterparty with self\",\"\"),IF(N(ISNA(MATCH(B406,'Standing Data'!$E$49:$E$148,0)))<>0,\"\",\"Error - counterparty with self\")),\"\")","v":""},{"$f":"IF(C406<>\"\",VLOOKUP(C406,'CP IDs'!A$2:B$5122,2,FALSE),\"\")","v":""},null,{"$f":"IFERROR(VLOOKUP(C406,'CP IDs'!$A$2:$D$4422,4,FALSE),\"\")","v":""},"",null,null,null,null,null,null,null,null,null,null,null,null,null,null,null,null,null,null,null,null,null,null,null,null,null,null,null,null,null,null,null,null,null,null,null,null,null,null,null,null,null,null,null,null,-500000,500000,null,1,1,31,null,0,0,0,null,{"$f":"AND(B406=$C$9,'Standing Data'!$D$9<>\"Multi-academy Trust\")","v":{"$error":"#N/A"}}]
[{"$f":"IF(B407<>\"\",IF('Standing Data'!$D$9<>\"Multi-academy Trust\",IF('Standing Data'!$D$15=B407,\"Error - counterparty with self\",\"\"),IF(N(ISNA(MATCH(B407,'Standing Data'!$E$49:$E$148,0)))<>0,\"\",\"Error - counterparty with self\")),\"\")","v":""},{"$f":"IF(C407<>\"\",VLOOKUP(C407,'CP IDs'!A$2:B$5122,2,FALSE),\"\")","v":""},null,{"$f":"IFERROR(VLOOKUP(C407,'CP IDs'!$A$2:$D$4422,4,FALSE),\"\")","v":""},"",null,null,null,null,null,null,null,null,null,null,null,null,null,null,null,null,null,null,null,null,null,null,null,null,null,null,null,null,null,null,null,null,null,null,null,null,null,null,null,null,null,null,null,null,{"$f":"AX406","v":-500000},{"$f":"AY406","v":500000},null,1,1,31,null,0,0,0,null,{"$f":"AND(B407=$C$9,'Standing Data'!$D$9<>\"Multi-academy Trust\")","v":{"$error":"#N/A"}}]
[{"$f":"IF(B408<>\"\",IF('Standing Data'!$D$9<>\"Multi-academy Trust\",IF('Standing Data'!$D$15=B408,\"Error - counterparty with self\",\"\"),IF(N(ISNA(MATCH(B408,'Standing Data'!$E$49:$E$148,0)))<>0,\"\",\"Error - counterparty with self\")),\"\")","v":""},{"$f":"IF(C408<>\"\",VLOOKUP(C408,'CP IDs'!A$2:B$5122,2,FALSE),\"\")","v":""},null,{"$f":"IFERROR(VLOOKUP(C408,'CP IDs'!$A$2:$D$4422,4,FALSE),\"\")","v":""},"",null,null,null,null,null,null,null,null,null,null,null,null,null,null,null,null,null,null,null,null,null,null,null,null,null,null,null,null,null,null,null,null,null,null,null,null,null,null,null,null,null,null,null,null,-500000,500000,null,1,1,31,null,0,0,0,null,{"$f":"AND(B408=$C$9,'Standing Data'!$D$9<>\"Multi-academy Trust\")","v":{"$error":"#N/A"}}]
[{"$f":"IF(B409<>\"\",IF('Standing Data'!$D$9<>\"Multi-academy Trust\",IF('Standing Data'!$D$15=B409,\"Error - counterparty with self\",\"\"),IF(N(ISNA(MATCH(B409,'Standing Data'!$E$49:$E$148,0)))<>0,\"\",\"Error - counterparty with self\")),\"\")","v":""},{"$f":"IF(C409<>\"\",VLOOKUP(C409,'CP IDs'!A$2:B$5122,2,FALSE),\"\")","v":""},null,{"$f":"IFERROR(VLOOKUP(C409,'CP IDs'!$A$2:$D$4422,4,FALSE),\"\")","v":""},"",null,null,null,null,null,null,null,null,null,null,null,null,null,null,null,null,null,null,null,null,null,null,null,null,null,null,null,null,null,null,null,null,null,null,null,null,null,null,null,null,null,null,null,null,-500000,500000,null,1,1,31,null,0,0,0,null,{"$f":"AND(B409=$C$9,'Standing Data'!$D$9<>\"Multi-academy Trust\")","v":{"$error":"#N/A"}}]
[{"$f":"IF(B410<>\"\",IF('Standing Data'!$D$9<>\"Multi-academy Trust\",IF('Standing Data'!$D$15=B410,\"Error - counterparty with self\",\"\"),IF(N(ISNA(MATCH(B410,'Standing Data'!$E$49:$E$148,0)))<>0,\"\",\"Error - counterparty with self\")),\"\")","v":""},{"$f":"IF(C410<>\"\",VLOOKUP(C410,'CP IDs'!A$2:B$5122,2,FALSE),\"\")","v":""},null,{"$f":"IFERROR(VLOOKUP(C410,'CP IDs'!$A$2:$D$4422,4,FALSE),\"\")","v":""},"",null,null,null,null,null,null,null,null,null,null,null,null,null,null,null,null,null,null,null,null,null,null,null,null,null,null,null,null,null,null,null,null,null,null,null,null,null,null,null,null,null,null,null,null,-500000,500000,null,1,1,31,null,0,0,0,null,{"$f":"AND(B410=$C$9,'Standing Data'!$D$9<>\"Multi-academy Trust\")","v":{"$error":"#N/A"}}]
[{"$f":"IF(B411<>\"\",IF('Standing Data'!$D$9<>\"Multi-academy Trust\",IF('Standing Data'!$D$15=B411,\"Error - counterparty with self\",\"\"),IF(N(ISNA(MATCH(B411,'Standing Data'!$E$49:$E$148,0)))<>0,\"\",\"Error - counterparty with self\")),\"\")","v":""},{"$f":"IF(C411<>\"\",VLOOKUP(C411,'CP IDs'!A$2:B$5122,2,FALSE),\"\")","v":""},null,{"$f":"IFERROR(VLOOKUP(C411,'CP IDs'!$A$2:$D$4422,4,FALSE),\"\")","v":""},"",null,null,null,null,null,null,null,null,null,null,null,null,null,null,null,null,null,null,null,null,null,null,null,null,null,null,null,null,null,null,null,null,null,null,null,null,null,null,null,null,null,null,null,null,-500000,500000,null,1,1,31,null,0,0,0,null,{"$f":"AND(B411=$C$9,'Standing Data'!$D$9<>\"Multi-academy Trust\")","v":{"$error":"#N/A"}}]
[{"$f":"IF(B412<>\"\",IF('Standing Data'!$D$9<>\"Multi-academy Trust\",IF('Standing Data'!$D$15=B412,\"Error - counterparty with self\",\"\"),IF(N(ISNA(MATCH(B412,'Standing Data'!$E$49:$E$148,0)))<>0,\"\",\"Error - counterparty with self\")),\"\")","v":""},{"$f":"IF(C412<>\"\",VLOOKUP(C412,'CP IDs'!A$2:B$5122,2,FALSE),\"\")","v":""},null,{"$f":"IFERROR(VLOOKUP(C412,'CP IDs'!$A$2:$D$4422,4,FALSE),\"\")","v":""},"",null,null,null,null,null,null,null,null,null,null,null,null,null,null,null,null,null,null,null,null,null,null,null,null,null,null,null,null,null,null,null,null,null,null,null,null,null,null,null,null,null,null,null,null,-500000,500000,null,1,1,31,null,0,0,0,null,{"$f":"AND(B412=$C$9,'Standing Data'!$D$9<>\"Multi-academy Trust\")","v":{"$error":"#N/A"}}]
[{"$f":"IF(B413<>\"\",IF('Standing Data'!$D$9<>\"Multi-academy Trust\",IF('Standing Data'!$D$15=B413,\"Error - counterparty with self\",\"\"),IF(N(ISNA(MATCH(B413,'Standing Data'!$E$49:$E$148,0)))<>0,\"\",\"Error - counterparty with self\")),\"\")","v":""},{"$f":"IF(C413<>\"\",VLOOKUP(C413,'CP IDs'!A$2:B$5122,2,FALSE),\"\")","v":""},null,{"$f":"IFERROR(VLOOKUP(C413,'CP IDs'!$A$2:$D$4422,4,FALSE),\"\")","v":""},"",null,null,null,null,null,null,null,null,null,null,null,null,null,null,null,null,null,null,null,null,null,null,null,null,null,null,null,null,null,null,null,null,null,null,null,null,null,null,null,null,null,null,null,null,-500000,500000,null,1,1,31,null,0,0,0,null,{"$f":"AND(B413=$C$9,'Standing Data'!$D$9<>\"Multi-academy Trust\")","v":{"$error":"#N/A"}}]
[{"$f":"IF(B414<>\"\",IF('Standing Data'!$D$9<>\"Multi-academy Trust\",IF('Standing Data'!$D$15=B414,\"Error - counterparty with self\",\"\"),IF(N(ISNA(MATCH(B414,'Standing Data'!$E$49:$E$148,0)))<>0,\"\",\"Error - counterparty with self\")),\"\")","v":""},{"$f":"IF(C414<>\"\",VLOOKUP(C414,'CP IDs'!A$2:B$5122,2,FALSE),\"\")","v":""},null,{"$f":"IFERROR(VLOOKUP(C414,'CP IDs'!$A$2:$D$4422,4,FALSE),\"\")","v":""},"",null,null,null,null,null,null,null,null,null,null,null,null,null,null,null,null,null,null,null,null,null,null,null,null,null,null,null,null,null,null,null,null,null,null,null,null,null,null,null,null,null,null,null,null,-500000,500000,null,1,1,31,null,{"$f":"COUNTA(C414)","v":0},{"$f":"1-COUNTBLANK(B414)","v":0},0,null,{"$f":"AND(B414=$C$9,'Standing Data'!$D$9<>\"Multi-academy Trust\")","v":{"$error":"#N/A"}}]
[{"$f":"IF(B415<>\"\",IF('Standing Data'!$D$9<>\"Multi-academy Trust\",IF('Standing Data'!$D$15=B415,\"Error - counterparty with self\",\"\"),IF(N(ISNA(MATCH(B415,'Standing Data'!$E$49:$E$148,0)))<>0,\"\",\"Error - counterparty with self\")),\"\")","v":""},{"$f":"IF(C415<>\"\",VLOOKUP(C415,'CP IDs'!A$2:B$5122,2,FALSE),\"\")","v":""},null,{"$f":"IFERROR(VLOOKUP(C415,'CP IDs'!$A$2:$D$4422,4,FALSE),\"\")","v":""},{"$f":"IF(OR(AND(COUNT(F415:AT415)>0,C415=\"\"),AND(COUNT(F415:AT415)=0,C415<>\"\")),\"Error - on line\",\"\")","v":""},null,null,null,null,null,null,null,null,null,null,null,null,null,null,null,null,null,null,null,null,null,null,null,null,null,null,null,null,null,null,null,null,null,null,null,null,null,null,null,null,null,null,null,null,-500000,500000,null,1,1,31,null,0,0,0,null,{"$f":"AND(B415=$C$9,'Standing Data'!$D$9<>\"Multi-academy Trust\")","v":{"$error":"#N/A"}}]
[{"$f":"IF(B416<>\"\",IF('Standing Data'!$D$9<>\"Multi-academy Trust\",IF('Standing Data'!$D$15=B416,\"Error - counterparty with self\",\"\"),IF(N(ISNA(MATCH(B416,'Standing Data'!$E$49:$E$148,0)))<>0,\"\",\"Error - counterparty with self\")),\"\")","v":""},{"$f":"IF(C416<>\"\",VLOOKUP(C416,'CP IDs'!A$2:B$5122,2,FALSE),\"\")","v":""},null,{"$f":"IFERROR(VLOOKUP(C416,'CP IDs'!$A$2:$D$4422,4,FALSE),\"\")","v":""},"",null,null,null,null,null,null,null,null,null,null,null,null,null,null,null,null,null,null,null,null,null,null,null,null,null,null,null,null,null,null,null,null,null,null,null,null,null,null,null,null,null,null,null,null,-500000,500000,null,1,1,31,null,0,0,0,null,{"$f":"AND(B416=$C$9,'Standing Data'!$D$9<>\"Multi-academy Trust\")","v":{"$error":"#N/A"}}]
[{"$f":"IF(B417<>\"\",IF('Standing Data'!$D$9<>\"Multi-academy Trust\",IF('Standing Data'!$D$15=B417,\"Error - counterparty with self\",\"\"),IF(N(ISNA(MATCH(B417,'Standing Data'!$E$49:$E$148,0)))<>0,\"\",\"Error - counterparty with self\")),\"\")","v":""},{"$f":"IF(C417<>\"\",VLOOKUP(C417,'CP IDs'!A$2:B$5122,2,FALSE),\"\")","v":""},null,{"$f":"IFERROR(VLOOKUP(C417,'CP IDs'!$A$2:$D$4422,4,FALSE),\"\")","v":""},"",null,null,null,null,null,null,null,null,null,null,null,null,null,null,null,null,null,null,null,null,null,null,null,null,null,null,null,null,null,null,null,null,null,null,null,null,null,null,null,null,null,null,null,null,-500000,500000,null,1,1,31,null,0,0,0,null,{"$f":"AND(B417=$C$9,'Standing Data'!$D$9<>\"Multi-academy Trust\")","v":{"$error":"#N/A"}}]
[{"$f":"IF(B418<>\"\",IF('Standing Data'!$D$9<>\"Multi-academy Trust\",IF('Standing Data'!$D$15=B418,\"Error - counterparty with self\",\"\"),IF(N(ISNA(MATCH(B418,'Standing Data'!$E$49:$E$148,0)))<>0,\"\",\"Error - counterparty with self\")),\"\")","v":""},{"$f":"IF(C418<>\"\",VLOOKUP(C418,'CP IDs'!A$2:B$5122,2,FALSE),\"\")","v":""},null,{"$f":"IFERROR(VLOOKUP(C418,'CP IDs'!$A$2:$D$4422,4,FALSE),\"\")","v":""},"",null,null,null,null,null,null,null,null,null,null,null,null,null,null,null,null,null,null,null,null,null,null,null,null,null,null,null,null,null,null,null,null,null,null,null,null,null,null,null,null,null,null,null,null,-500000,500000,null,1,1,31,null,0,0,0,null,{"$f":"AND(B418=$C$9,'Standing Data'!$D$9<>\"Multi-academy Trust\")","v":{"$error":"#N/A"}}]
[{"$f":"IF(B419<>\"\",IF('Standing Data'!$D$9<>\"Multi-academy Trust\",IF('Standing Data'!$D$15=B419,\"Error - counterparty with self\",\"\"),IF(N(ISNA(MATCH(B419,'Standing Data'!$E$49:$E$148,0)))<>0,\"\",\"Error - counterparty with self\")),\"\")","v":""},{"$f":"IF(C419<>\"\",VLOOKUP(C419,'CP IDs'!A$2:B$5122,2,FALSE),\"\")","v":""},null,{"$f":"IFERROR(VLOOKUP(C419,'CP IDs'!$A$2:$D$4422,4,FALSE),\"\")","v":""},"",null,null,null,null,null,null,null,null,null,null,null,null,null,null,null,null,null,null,null,null,null,null,null,null,null,null,null,null,null,null,null,null,null,null,null,null,null,null,null,null,null,null,null,null,-500000,500000,null,1,1,31,null,0,0,0,null,{"$f":"AND(B419=$C$9,'Standing Data'!$D$9<>\"Multi-academy Trust\")","v":{"$error":"#N/A"}}]
[{"$f":"IF(B420<>\"\",IF('Standing Data'!$D$9<>\"Multi-academy Trust\",IF('Standing Data'!$D$15=B420,\"Error - counterparty with self\",\"\"),IF(N(ISNA(MATCH(B420,'Standing Data'!$E$49:$E$148,0)))<>0,\"\",\"Error - counterparty with self\")),\"\")","v":""},{"$f":"IF(C420<>\"\",VLOOKUP(C420,'CP IDs'!A$2:B$5122,2,FALSE),\"\")","v":""},null,{"$f":"IFERROR(VLOOKUP(C420,'CP IDs'!$A$2:$D$4422,4,FALSE),\"\")","v":""},"",null,null,null,null,null,null,null,null,null,null,null,null,null,null,null,null,null,null,null,null,null,null,null,null,null,null,null,null,null,null,null,null,null,null,null,null,null,null,null,null,null,null,null,null,-500000,500000,null,1,1,31,null,0,0,0,null,{"$f":"AND(B420=$C$9,'Standing Data'!$D$9<>\"Multi-academy Trust\")","v":{"$error":"#N/A"}}]
[{"$f":"IF(B421<>\"\",IF('Standing Data'!$D$9<>\"Multi-academy Trust\",IF('Standing Data'!$D$15=B421,\"Error - counterparty with self\",\"\"),IF(N(ISNA(MATCH(B421,'Standing Data'!$E$49:$E$148,0)))<>0,\"\",\"Error - counterparty with self\")),\"\")","v":""},{"$f":"IF(C421<>\"\",VLOOKUP(C421,'CP IDs'!A$2:B$5122,2,FALSE),\"\")","v":""},null,{"$f":"IFERROR(VLOOKUP(C421,'CP IDs'!$A$2:$D$4422,4,FALSE),\"\")","v":""},"",null,null,null,null,null,null,null,null,null,null,null,null,null,null,null,null,null,null,null,null,null,null,null,null,null,null,null,null,null,null,null,null,null,null,null,null,null,null,null,null,null,null,null,null,-500000,500000,null,1,1,31,null,0,0,0,null,{"$f":"AND(B421=$C$9,'Standing Data'!$D$9<>\"Multi-academy Trust\")","v":{"$error":"#N/A"}}]
[{"$f":"IF(B422<>\"\",IF('Standing Data'!$D$9<>\"Multi-academy Trust\",IF('Standing Data'!$D$15=B422,\"Error - counterparty with self\",\"\"),IF(N(ISNA(MATCH(B422,'Standing Data'!$E$49:$E$148,0)))<>0,\"\",\"Error - counterparty with self\")),\"\")","v":""},{"$f":"IF(C422<>\"\",VLOOKUP(C422,'CP IDs'!A$2:B$5122,2,FALSE),\"\")","v":""},null,{"$f":"IFERROR(VLOOKUP(C422,'CP IDs'!$A$2:$D$4422,4,FALSE),\"\")","v":""},"",null,null,null,null,null,null,null,null,null,null,null,null,null,null,null,null,null,null,null,null,null,null,null,null,null,null,null,null,null,null,null,null,null,null,null,null,null,null,null,null,null,null,null,null,-500000,500000,null,1,1,31,null,0,0,0,null,{"$f":"AND(B422=$C$9,'Standing Data'!$D$9<>\"Multi-academy Trust\")","v":{"$error":"#N/A"}}]
[{"$f":"IF(B423<>\"\",IF('Standing Data'!$D$9<>\"Multi-academy Trust\",IF('Standing Data'!$D$15=B423,\"Error - counterparty with self\",\"\"),IF(N(ISNA(MATCH(B423,'Standing Data'!$E$49:$E$148,0)))<>0,\"\",\"Error - counterparty with self\")),\"\")","v":""},{"$f":"IF(C423<>\"\",VLOOKUP(C423,'CP IDs'!A$2:B$5122,2,FALSE),\"\")","v":""},null,{"$f":"IFERROR(VLOOKUP(C423,'CP IDs'!$A$2:$D$4422,4,FALSE),\"\")","v":""},"",null,null,null,null,null,null,null,null,null,null,null,null,null,null,null,null,null,null,null,null,null,null,null,null,null,null,null,null,null,null,null,null,null,null,null,null,null,null,null,null,null,null,null,null,-500000,500000,null,1,1,31,null,0,0,0,null,{"$f":"AND(B423=$C$9,'Standing Data'!$D$9<>\"Multi-academy Trust\")","v":{"$error":"#N/A"}}]
[{"$f":"IF(B424<>\"\",IF('Standing Data'!$D$9<>\"Multi-academy Trust\",IF('Standing Data'!$D$15=B424,\"Error - counterparty with self\",\"\"),IF(N(ISNA(MATCH(B424,'Standing Data'!$E$49:$E$148,0)))<>0,\"\",\"Error - counterparty with self\")),\"\")","v":""},{"$f":"IF(C424<>\"\",VLOOKUP(C424,'CP IDs'!A$2:B$5122,2,FALSE),\"\")","v":""},null,{"$f":"IFERROR(VLOOKUP(C424,'CP IDs'!$A$2:$D$4422,4,FALSE),\"\")","v":""},"",null,null,null,null,null,null,null,null,null,null,null,null,null,null,null,null,null,null,null,null,null,null,null,null,null,null,null,null,null,null,null,null,null,null,null,null,null,null,null,null,null,null,null,null,-500000,500000,null,1,1,31,null,0,0,0,null,{"$f":"AND(B424=$C$9,'Standing Data'!$D$9<>\"Multi-academy Trust\")","v":{"$error":"#N/A"}}]
[{"$f":"IF(B425<>\"\",IF('Standing Data'!$D$9<>\"Multi-academy Trust\",IF('Standing Data'!$D$15=B425,\"Error - counterparty with self\",\"\"),IF(N(ISNA(MATCH(B425,'Standing Data'!$E$49:$E$148,0)))<>0,\"\",\"Error - counterparty with self\")),\"\")","v":""},{"$f":"IF(C425<>\"\",VLOOKUP(C425,'CP IDs'!A$2:B$5122,2,FALSE),\"\")","v":""},null,{"$f":"IFERROR(VLOOKUP(C425,'CP IDs'!$A$2:$D$4422,4,FALSE),\"\")","v":""},"",null,null,null,null,null,null,null,null,null,null,null,null,null,null,null,null,null,null,null,null,null,null,null,null,null,null,null,null,null,null,null,null,null,null,null,null,null,null,null,null,null,null,null,null,-500000,500000,null,1,1,31,null,0,0,0,null,{"$f":"AND(B425=$C$9,'Standing Data'!$D$9<>\"Multi-academy Trust\")","v":{"$error":"#N/A"}}]
[{"$f":"IF(B426<>\"\",IF('Standing Data'!$D$9<>\"Multi-academy Trust\",IF('Standing Data'!$D$15=B426,\"Error - counterparty with self\",\"\"),IF(N(ISNA(MATCH(B426,'Standing Data'!$E$49:$E$148,0)))<>0,\"\",\"Error - counterparty with self\")),\"\")","v":""},{"$f":"IF(C426<>\"\",VLOOKUP(C426,'CP IDs'!A$2:B$5122,2,FALSE),\"\")","v":""},null,{"$f":"IFERROR(VLOOKUP(C426,'CP IDs'!$A$2:$D$4422,4,FALSE),\"\")","v":""},"",null,null,null,null,null,null,null,null,null,null,null,null,null,null,null,null,null,null,null,null,null,null,null,null,null,null,null,null,null,null,null,null,null,null,null,null,null,null,null,null,null,null,null,null,-500000,500000,null,1,1,31,null,0,0,0,null,{"$f":"AND(B426=$C$9,'Standing Data'!$D$9<>\"Multi-academy Trust\")","v":{"$error":"#N/A"}}]
[{"$f":"IF(B427<>\"\",IF('Standing Data'!$D$9<>\"Multi-academy Trust\",IF('Standing Data'!$D$15=B427,\"Error - counterparty with self\",\"\"),IF(N(ISNA(MATCH(B427,'Standing Data'!$E$49:$E$148,0)))<>0,\"\",\"Error - counterparty with self\")),\"\")","v":""},{"$f":"IF(C427<>\"\",VLOOKUP(C427,'CP IDs'!A$2:B$5122,2,FALSE),\"\")","v":""},null,{"$f":"IFERROR(VLOOKUP(C427,'CP IDs'!$A$2:$D$4422,4,FALSE),\"\")","v":""},"",null,null,null,null,null,null,null,null,null,null,null,null,null,null,null,null,null,null,null,null,null,null,null,null,null,null,null,null,null,null,null,null,null,null,null,null,null,null,null,null,null,null,null,null,-500000,500000,null,1,1,31,null,0,0,0,null,{"$f":"AND(B427=$C$9,'Standing Data'!$D$9<>\"Multi-academy Trust\")","v":{"$error":"#N/A"}}]
[{"$f":"IF(B428<>\"\",IF('Standing Data'!$D$9<>\"Multi-academy Trust\",IF('Standing Data'!$D$15=B428,\"Error - counterparty with self\",\"\"),IF(N(ISNA(MATCH(B428,'Standing Data'!$E$49:$E$148,0)))<>0,\"\",\"Error - counterparty with self\")),\"\")","v":""},{"$f":"IF(C428<>\"\",VLOOKUP(C428,'CP IDs'!A$2:B$5122,2,FALSE),\"\")","v":""},null,{"$f":"IFERROR(VLOOKUP(C428,'CP IDs'!$A$2:$D$4422,4,FALSE),\"\")","v":""},"",null,null,null,null,null,null,null,null,null,null,null,null,null,null,null,null,null,null,null,null,null,null,null,null,null,null,null,null,null,null,null,null,null,null,null,null,null,null,null,null,null,null,null,null,-500000,500000,null,1,1,31,null,0,0,0,null,{"$f":"AND(B428=$C$9,'Standing Data'!$D$9<>\"Multi-academy Trust\")","v":{"$error":"#N/A"}}]
[{"$f":"IF(B429<>\"\",IF('Standing Data'!$D$9<>\"Multi-academy Trust\",IF('Standing Data'!$D$15=B429,\"Error - counterparty with self\",\"\"),IF(N(ISNA(MATCH(B429,'Standing Data'!$E$49:$E$148,0)))<>0,\"\",\"Error - counterparty with self\")),\"\")","v":""},{"$f":"IF(C429<>\"\",VLOOKUP(C429,'CP IDs'!A$2:B$5122,2,FALSE),\"\")","v":""},null,{"$f":"IFERROR(VLOOKUP(C429,'CP IDs'!$A$2:$D$4422,4,FALSE),\"\")","v":""},"",null,null,null,null,null,null,null,null,null,null,null,null,null,null,null,null,null,null,null,null,null,null,null,null,null,null,null,null,null,null,null,null,null,null,null,null,null,null,null,null,null,null,null,null,-500000,500000,null,1,1,31,null,0,0,0,null,{"$f":"AND(B429=$C$9,'Standing Data'!$D$9<>\"Multi-academy Trust\")","v":{"$error":"#N/A"}}]
[{"$f":"IF(B430<>\"\",IF('Standing Data'!$D$9<>\"Multi-academy Trust\",IF('Standing Data'!$D$15=B430,\"Error - counterparty with self\",\"\"),IF(N(ISNA(MATCH(B430,'Standing Data'!$E$49:$E$148,0)))<>0,\"\",\"Error - counterparty with self\")),\"\")","v":""},{"$f":"IF(C430<>\"\",VLOOKUP(C430,'CP IDs'!A$2:B$5122,2,FALSE),\"\")","v":""},null,{"$f":"IFERROR(VLOOKUP(C430,'CP IDs'!$A$2:$D$4422,4,FALSE),\"\")","v":""},"",null,null,null,null,null,null,null,null,null,null,null,null,null,null,null,null,null,null,null,null,null,null,null,null,null,null,null,null,null,null,null,null,null,null,null,null,null,null,null,null,null,null,null,null,-500000,500000,null,1,1,31,null,0,0,0,null,{"$f":"AND(B430=$C$9,'Standing Data'!$D$9<>\"Multi-academy Trust\")","v":{"$error":"#N/A"}}]
[{"$f":"IF(B431<>\"\",IF('Standing Data'!$D$9<>\"Multi-academy Trust\",IF('Standing Data'!$D$15=B431,\"Error - counterparty with self\",\"\"),IF(N(ISNA(MATCH(B431,'Standing Data'!$E$49:$E$148,0)))<>0,\"\",\"Error - counterparty with self\")),\"\")","v":""},{"$f":"IF(C431<>\"\",VLOOKUP(C431,'CP IDs'!A$2:B$5122,2,FALSE),\"\")","v":""},null,{"$f":"IFERROR(VLOOKUP(C431,'CP IDs'!$A$2:$D$4422,4,FALSE),\"\")","v":""},"",null,null,null,null,null,null,null,null,null,null,null,null,null,null,null,null,null,null,null,null,null,null,null,null,null,null,null,null,null,null,null,null,null,null,null,null,null,null,null,null,null,null,null,null,-500000,500000,null,1,1,31,null,0,0,0,null,{"$f":"AND(B431=$C$9,'Standing Data'!$D$9<>\"Multi-academy Trust\")","v":{"$error":"#N/A"}}]
[{"$f":"IF(B432<>\"\",IF('Standing Data'!$D$9<>\"Multi-academy Trust\",IF('Standing Data'!$D$15=B432,\"Error - counterparty with self\",\"\"),IF(N(ISNA(MATCH(B432,'Standing Data'!$E$49:$E$148,0)))<>0,\"\",\"Error - counterparty with self\")),\"\")","v":""},{"$f":"IF(C432<>\"\",VLOOKUP(C432,'CP IDs'!A$2:B$5122,2,FALSE),\"\")","v":""},null,{"$f":"IFERROR(VLOOKUP(C432,'CP IDs'!$A$2:$D$4422,4,FALSE),\"\")","v":""},"",null,null,null,null,null,null,null,null,null,null,null,null,null,null,null,null,null,null,null,null,null,null,null,null,null,null,null,null,null,null,null,null,null,null,null,null,null,null,null,null,null,null,null,null,-500000,500000,null,1,1,31,null,0,0,0,null,{"$f":"AND(B432=$C$9,'Standing Data'!$D$9<>\"Multi-academy Trust\")","v":{"$error":"#N/A"}}]
[{"$f":"IF(B433<>\"\",IF('Standing Data'!$D$9<>\"Multi-academy Trust\",IF('Standing Data'!$D$15=B433,\"Error - counterparty with self\",\"\"),IF(N(ISNA(MATCH(B433,'Standing Data'!$E$49:$E$148,0)))<>0,\"\",\"Error - counterparty with self\")),\"\")","v":""},{"$f":"IF(C433<>\"\",VLOOKUP(C433,'CP IDs'!A$2:B$5122,2,FALSE),\"\")","v":""},null,{"$f":"IFERROR(VLOOKUP(C433,'CP IDs'!$A$2:$D$4422,4,FALSE),\"\")","v":""},"",null,null,null,null,null,null,null,null,null,null,null,null,null,null,null,null,null,null,null,null,null,null,null,null,null,null,null,null,null,null,null,null,null,null,null,null,null,null,null,null,null,null,null,null,-500000,500000,null,1,1,31,null,0,0,0,null,{"$f":"AND(B433=$C$9,'Standing Data'!$D$9<>\"Multi-academy Trust\")","v":{"$error":"#N/A"}}]
[{"$f":"IF(B434<>\"\",IF('Standing Data'!$D$9<>\"Multi-academy Trust\",IF('Standing Data'!$D$15=B434,\"Error - counterparty with self\",\"\"),IF(N(ISNA(MATCH(B434,'Standing Data'!$E$49:$E$148,0)))<>0,\"\",\"Error - counterparty with self\")),\"\")","v":""},{"$f":"IF(C434<>\"\",VLOOKUP(C434,'CP IDs'!A$2:B$5122,2,FALSE),\"\")","v":""},null,{"$f":"IFERROR(VLOOKUP(C434,'CP IDs'!$A$2:$D$4422,4,FALSE),\"\")","v":""},"",null,null,null,null,null,null,null,null,null,null,null,null,null,null,null,null,null,null,null,null,null,null,null,null,null,null,null,null,null,null,null,null,null,null,null,null,null,null,null,null,null,null,null,null,-500000,500000,null,1,1,31,null,0,0,0,null,{"$f":"AND(B434=$C$9,'Standing Data'!$D$9<>\"Multi-academy Trust\")","v":{"$error":"#N/A"}}]
[{"$f":"IF(B435<>\"\",IF('Standing Data'!$D$9<>\"Multi-academy Trust\",IF('Standing Data'!$D$15=B435,\"Error - counterparty with self\",\"\"),IF(N(ISNA(MATCH(B435,'Standing Data'!$E$49:$E$148,0)))<>0,\"\",\"Error - counterparty with self\")),\"\")","v":""},{"$f":"IF(C435<>\"\",VLOOKUP(C435,'CP IDs'!A$2:B$5122,2,FALSE),\"\")","v":""},null,{"$f":"IFERROR(VLOOKUP(C435,'CP IDs'!$A$2:$D$4422,4,FALSE),\"\")","v":""},"",null,null,null,null,null,null,null,null,null,null,null,null,null,null,null,null,null,null,null,null,null,null,null,null,null,null,null,null,null,null,null,null,null,null,null,null,null,null,null,null,null,null,null,null,-500000,500000,null,1,1,31,null,0,0,0,null,{"$f":"AND(B435=$C$9,'Standing Data'!$D$9<>\"Multi-academy Trust\")","v":{"$error":"#N/A"}}]
[{"$f":"IF(B436<>\"\",IF('Standing Data'!$D$9<>\"Multi-academy Trust\",IF('Standing Data'!$D$15=B436,\"Error - counterparty with self\",\"\"),IF(N(ISNA(MATCH(B436,'Standing Data'!$E$49:$E$148,0)))<>0,\"\",\"Error - counterparty with self\")),\"\")","v":""},{"$f":"IF(C436<>\"\",VLOOKUP(C436,'CP IDs'!A$2:B$5122,2,FALSE),\"\")","v":""},null,{"$f":"IFERROR(VLOOKUP(C436,'CP IDs'!$A$2:$D$4422,4,FALSE),\"\")","v":""},"",null,null,null,null,null,null,null,null,null,null,null,null,null,null,null,null,null,null,null,null,null,null,null,null,null,null,null,null,null,null,null,null,null,null,null,null,null,null,null,null,null,null,null,null,-500000,500000,null,1,1,31,null,0,0,0,null,{"$f":"AND(B436=$C$9,'Standing Data'!$D$9<>\"Multi-academy Trust\")","v":{"$error":"#N/A"}}]
[{"$f":"IF(B437<>\"\",IF('Standing Data'!$D$9<>\"Multi-academy Trust\",IF('Standing Data'!$D$15=B437,\"Error - counterparty with self\",\"\"),IF(N(ISNA(MATCH(B437,'Standing Data'!$E$49:$E$148,0)))<>0,\"\",\"Error - counterparty with self\")),\"\")","v":""},{"$f":"IF(C437<>\"\",VLOOKUP(C437,'CP IDs'!A$2:B$5122,2,FALSE),\"\")","v":""},null,{"$f":"IFERROR(VLOOKUP(C437,'CP IDs'!$A$2:$D$4422,4,FALSE),\"\")","v":""},"",null,null,null,null,null,null,null,null,null,null,null,null,null,null,null,null,null,null,null,null,null,null,null,null,null,null,null,null,null,null,null,null,null,null,null,null,null,null,null,null,null,null,null,null,-500000,500000,null,1,1,31,null,0,0,0,null,{"$f":"AND(B437=$C$9,'Standing Data'!$D$9<>\"Multi-academy Trust\")","v":{"$error":"#N/A"}}]
[{"$f":"IF(B438<>\"\",IF('Standing Data'!$D$9<>\"Multi-academy Trust\",IF('Standing Data'!$D$15=B438,\"Error - counterparty with self\",\"\"),IF(N(ISNA(MATCH(B438,'Standing Data'!$E$49:$E$148,0)))<>0,\"\",\"Error - counterparty with self\")),\"\")","v":""},{"$f":"IF(C438<>\"\",VLOOKUP(C438,'CP IDs'!A$2:B$5122,2,FALSE),\"\")","v":""},null,{"$f":"IFERROR(VLOOKUP(C438,'CP IDs'!$A$2:$D$4422,4,FALSE),\"\")","v":""},"",null,null,null,null,null,null,null,null,null,null,null,null,null,null,null,null,null,null,null,null,null,null,null,null,null,null,null,null,null,null,null,null,null,null,null,null,null,null,null,null,null,null,null,null,-500000,500000,null,1,1,31,null,0,0,0,null,{"$f":"AND(B438=$C$9,'Standing Data'!$D$9<>\"Multi-academy Trust\")","v":{"$error":"#N/A"}}]
[{"$f":"IF(B439<>\"\",IF('Standing Data'!$D$9<>\"Multi-academy Trust\",IF('Standing Data'!$D$15=B439,\"Error - counterparty with self\",\"\"),IF(N(ISNA(MATCH(B439,'Standing Data'!$E$49:$E$148,0)))<>0,\"\",\"Error - counterparty with self\")),\"\")","v":""},{"$f":"IF(C439<>\"\",VLOOKUP(C439,'CP IDs'!A$2:B$5122,2,FALSE),\"\")","v":""},null,{"$f":"IFERROR(VLOOKUP(C439,'CP IDs'!$A$2:$D$4422,4,FALSE),\"\")","v":""},"",null,null,null,null,null,null,null,null,null,null,null,null,null,null,null,null,null,null,null,null,null,null,null,null,null,null,null,null,null,null,null,null,null,null,null,null,null,null,null,null,null,null,null,null,-500000,500000,null,1,1,31,null,0,0,0,null,{"$f":"AND(B439=$C$9,'Standing Data'!$D$9<>\"Multi-academy Trust\")","v":{"$error":"#N/A"}}]
[{"$f":"IF(B440<>\"\",IF('Standing Data'!$D$9<>\"Multi-academy Trust\",IF('Standing Data'!$D$15=B440,\"Error - counterparty with self\",\"\"),IF(N(ISNA(MATCH(B440,'Standing Data'!$E$49:$E$148,0)))<>0,\"\",\"Error - counterparty with self\")),\"\")","v":""},{"$f":"IF(C440<>\"\",VLOOKUP(C440,'CP IDs'!A$2:B$5122,2,FALSE),\"\")","v":""},null,{"$f":"IFERROR(VLOOKUP(C440,'CP IDs'!$A$2:$D$4422,4,FALSE),\"\")","v":""},"",null,null,null,null,null,null,null,null,null,null,null,null,null,null,null,null,null,null,null,null,null,null,null,null,null,null,null,null,null,null,null,null,null,null,null,null,null,null,null,null,null,null,null,null,-500000,500000,null,1,1,31,null,0,0,0,null,{"$f":"AND(B440=$C$9,'Standing Data'!$D$9<>\"Multi-academy Trust\")","v":{"$error":"#N/A"}}]
[{"$f":"IF(B441<>\"\",IF('Standing Data'!$D$9<>\"Multi-academy Trust\",IF('Standing Data'!$D$15=B441,\"Error - counterparty with self\",\"\"),IF(N(ISNA(MATCH(B441,'Standing Data'!$E$49:$E$148,0)))<>0,\"\",\"Error - counterparty with self\")),\"\")","v":""},{"$f":"IF(C441<>\"\",VLOOKUP(C441,'CP IDs'!A$2:B$5122,2,FALSE),\"\")","v":""},null,{"$f":"IFERROR(VLOOKUP(C441,'CP IDs'!$A$2:$D$4422,4,FALSE),\"\")","v":""},"",null,null,null,null,null,null,null,null,null,null,null,null,null,null,null,null,null,null,null,null,null,null,null,null,null,null,null,null,null,null,null,null,null,null,null,null,null,null,null,null,null,null,null,null,-500000,500000,null,1,1,31,null,0,0,0,null,{"$f":"AND(B441=$C$9,'Standing Data'!$D$9<>\"Multi-academy Trust\")","v":{"$error":"#N/A"}}]
[{"$f":"IF(B442<>\"\",IF('Standing Data'!$D$9<>\"Multi-academy Trust\",IF('Standing Data'!$D$15=B442,\"Error - counterparty with self\",\"\"),IF(N(ISNA(MATCH(B442,'Standing Data'!$E$49:$E$148,0)))<>0,\"\",\"Error - counterparty with self\")),\"\")","v":""},{"$f":"IF(C442<>\"\",VLOOKUP(C442,'CP IDs'!A$2:B$5122,2,FALSE),\"\")","v":""},null,{"$f":"IFERROR(VLOOKUP(C442,'CP IDs'!$A$2:$D$4422,4,FALSE),\"\")","v":""},"",null,null,null,null,null,null,null,null,null,null,null,null,null,null,null,null,null,null,null,null,null,null,null,null,null,null,null,null,null,null,null,null,null,null,null,null,null,null,null,null,null,null,null,null,-500000,500000,null,1,1,31,null,0,0,0,null,{"$f":"AND(B442=$C$9,'Standing Data'!$D$9<>\"Multi-academy Trust\")","v":{"$error":"#N/A"}}]
[{"$f":"IF(B443<>\"\",IF('Standing Data'!$D$9<>\"Multi-academy Trust\",IF('Standing Data'!$D$15=B443,\"Error - counterparty with self\",\"\"),IF(N(ISNA(MATCH(B443,'Standing Data'!$E$49:$E$148,0)))<>0,\"\",\"Error - counterparty with self\")),\"\")","v":""},{"$f":"IF(C443<>\"\",VLOOKUP(C443,'CP IDs'!A$2:B$5122,2,FALSE),\"\")","v":""},null,{"$f":"IFERROR(VLOOKUP(C443,'CP IDs'!$A$2:$D$4422,4,FALSE),\"\")","v":""},"",null,null,null,null,null,null,null,null,null,null,null,null,null,null,null,null,null,null,null,null,null,null,null,null,null,null,null,null,null,null,null,null,null,null,null,null,null,null,null,null,null,null,null,null,-500000,500000,null,1,1,31,null,0,0,0,null,{"$f":"AND(B443=$C$9,'Standing Data'!$D$9<>\"Multi-academy Trust\")","v":{"$error":"#N/A"}}]
[{"$f":"IF(B444<>\"\",IF('Standing Data'!$D$9<>\"Multi-academy Trust\",IF('Standing Data'!$D$15=B444,\"Error - counterparty with self\",\"\"),IF(N(ISNA(MATCH(B444,'Standing Data'!$E$49:$E$148,0)))<>0,\"\",\"Error - counterparty with self\")),\"\")","v":""},{"$f":"IF(C444<>\"\",VLOOKUP(C444,'CP IDs'!A$2:B$5122,2,FALSE),\"\")","v":""},null,{"$f":"IFERROR(VLOOKUP(C444,'CP IDs'!$A$2:$D$4422,4,FALSE),\"\")","v":""},"",null,null,null,null,null,null,null,null,null,null,null,null,null,null,null,null,null,null,null,null,null,null,null,null,null,null,null,null,null,null,null,null,null,null,null,null,null,null,null,null,null,null,null,null,-500000,500000,null,1,1,31,null,0,0,0,null,{"$f":"AND(B444=$C$9,'Standing Data'!$D$9<>\"Multi-academy Trust\")","v":{"$error":"#N/A"}}]
[{"$f":"IF(B445<>\"\",IF('Standing Data'!$D$9<>\"Multi-academy Trust\",IF('Standing Data'!$D$15=B445,\"Error - counterparty with self\",\"\"),IF(N(ISNA(MATCH(B445,'Standing Data'!$E$49:$E$148,0)))<>0,\"\",\"Error - counterparty with self\")),\"\")","v":""},{"$f":"IF(C445<>\"\",VLOOKUP(C445,'CP IDs'!A$2:B$5122,2,FALSE),\"\")","v":""},null,{"$f":"IFERROR(VLOOKUP(C445,'CP IDs'!$A$2:$D$4422,4,FALSE),\"\")","v":""},"",null,null,null,null,null,null,null,null,null,null,null,null,null,null,null,null,null,null,null,null,null,null,null,null,null,null,null,null,null,null,null,null,null,null,null,null,null,null,null,null,null,null,null,null,-500000,500000,null,1,1,31,null,0,0,0,null,{"$f":"AND(B445=$C$9,'Standing Data'!$D$9<>\"Multi-academy Trust\")","v":{"$error":"#N/A"}}]
[{"$f":"IF(B446<>\"\",IF('Standing Data'!$D$9<>\"Multi-academy Trust\",IF('Standing Data'!$D$15=B446,\"Error - counterparty with self\",\"\"),IF(N(ISNA(MATCH(B446,'Standing Data'!$E$49:$E$148,0)))<>0,\"\",\"Error - counterparty with self\")),\"\")","v":""},{"$f":"IF(C446<>\"\",VLOOKUP(C446,'CP IDs'!A$2:B$5122,2,FALSE),\"\")","v":""},null,{"$f":"IFERROR(VLOOKUP(C446,'CP IDs'!$A$2:$D$4422,4,FALSE),\"\")","v":""},"",null,null,null,null,null,null,null,null,null,null,null,null,null,null,null,null,null,null,null,null,null,null,null,null,null,null,null,null,null,null,null,null,null,null,null,null,null,null,null,null,null,null,null,null,-500000,500000,null,1,1,31,null,0,0,0,null,{"$f":"AND(B446=$C$9,'Standing Data'!$D$9<>\"Multi-academy Trust\")","v":{"$error":"#N/A"}}]
[{"$f":"IF(B447<>\"\",IF('Standing Data'!$D$9<>\"Multi-academy Trust\",IF('Standing Data'!$D$15=B447,\"Error - counterparty with self\",\"\"),IF(N(ISNA(MATCH(B447,'Standing Data'!$E$49:$E$148,0)))<>0,\"\",\"Error - counterparty with self\")),\"\")","v":""},{"$f":"IF(C447<>\"\",VLOOKUP(C447,'CP IDs'!A$2:B$5122,2,FALSE),\"\")","v":""},null,{"$f":"IFERROR(VLOOKUP(C447,'CP IDs'!$A$2:$D$4422,4,FALSE),\"\")","v":""},"",null,null,null,null,null,null,null,null,null,null,null,null,null,null,null,null,null,null,null,null,null,null,null,null,null,null,null,null,null,null,null,null,null,null,null,null,null,null,null,null,null,null,null,null,-500000,500000,null,1,1,31,null,0,0,0,null,{"$f":"AND(B447=$C$9,'Standing Data'!$D$9<>\"Multi-academy Trust\")","v":{"$error":"#N/A"}}]
[{"$f":"IF(B448<>\"\",IF('Standing Data'!$D$9<>\"Multi-academy Trust\",IF('Standing Data'!$D$15=B448,\"Error - counterparty with self\",\"\"),IF(N(ISNA(MATCH(B448,'Standing Data'!$E$49:$E$148,0)))<>0,\"\",\"Error - counterparty with self\")),\"\")","v":""},{"$f":"IF(C448<>\"\",VLOOKUP(C448,'CP IDs'!A$2:B$5122,2,FALSE),\"\")","v":""},null,{"$f":"IFERROR(VLOOKUP(C448,'CP IDs'!$A$2:$D$4422,4,FALSE),\"\")","v":""},"",null,null,null,null,null,null,null,null,null,null,null,null,null,null,null,null,null,null,null,null,null,null,null,null,null,null,null,null,null,null,null,null,null,null,null,null,null,null,null,null,null,null,null,null,-500000,500000,null,1,1,31,null,0,0,0,null,{"$f":"AND(B448=$C$9,'Standing Data'!$D$9<>\"Multi-academy Trust\")","v":{"$error":"#N/A"}}]
[{"$f":"IF(B449<>\"\",IF('Standing Data'!$D$9<>\"Multi-academy Trust\",IF('Standing Data'!$D$15=B449,\"Error - counterparty with self\",\"\"),IF(N(ISNA(MATCH(B449,'Standing Data'!$E$49:$E$148,0)))<>0,\"\",\"Error - counterparty with self\")),\"\")","v":""},{"$f":"IF(C449<>\"\",VLOOKUP(C449,'CP IDs'!A$2:B$5122,2,FALSE),\"\")","v":""},null,{"$f":"IFERROR(VLOOKUP(C449,'CP IDs'!$A$2:$D$4422,4,FALSE),\"\")","v":""},"",null,null,null,null,null,null,null,null,null,null,null,null,null,null,null,null,null,null,null,null,null,null,null,null,null,null,null,null,null,null,null,null,null,null,null,null,null,null,null,null,null,null,null,null,-500000,500000,null,1,1,31,null,0,0,0,null,{"$f":"AND(B449=$C$9,'Standing Data'!$D$9<>\"Multi-academy Trust\")","v":{"$error":"#N/A"}}]
[{"$f":"IF(B450<>\"\",IF('Standing Data'!$D$9<>\"Multi-academy Trust\",IF('Standing Data'!$D$15=B450,\"Error - counterparty with self\",\"\"),IF(N(ISNA(MATCH(B450,'Standing Data'!$E$49:$E$148,0)))<>0,\"\",\"Error - counterparty with self\")),\"\")","v":""},{"$f":"IF(C450<>\"\",VLOOKUP(C450,'CP IDs'!A$2:B$5122,2,FALSE),\"\")","v":""},null,{"$f":"IFERROR(VLOOKUP(C450,'CP IDs'!$A$2:$D$4422,4,FALSE),\"\")","v":""},"",null,null,null,null,null,null,null,null,null,null,null,null,null,null,null,null,null,null,null,null,null,null,null,null,null,null,null,null,null,null,null,null,null,null,null,null,null,null,null,null,null,null,null,null,-500000,500000,null,1,1,31,null,0,0,0,null,{"$f":"AND(B450=$C$9,'Standing Data'!$D$9<>\"Multi-academy Trust\")","v":{"$error":"#N/A"}}]
[{"$f":"IF(B451<>\"\",IF('Standing Data'!$D$9<>\"Multi-academy Trust\",IF('Standing Data'!$D$15=B451,\"Error - counterparty with self\",\"\"),IF(N(ISNA(MATCH(B451,'Standing Data'!$E$49:$E$148,0)))<>0,\"\",\"Error - counterparty with self\")),\"\")","v":""},{"$f":"IF(C451<>\"\",VLOOKUP(C451,'CP IDs'!A$2:B$5122,2,FALSE),\"\")","v":""},null,{"$f":"IFERROR(VLOOKUP(C451,'CP IDs'!$A$2:$D$4422,4,FALSE),\"\")","v":""},"",null,null,null,null,null,null,null,null,null,null,null,null,null,null,null,null,null,null,null,null,null,null,null,null,null,null,null,null,null,null,null,null,null,null,null,null,null,null,null,null,null,null,null,null,-500000,500000,null,1,1,31,null,0,0,0,null,{"$f":"AND(B451=$C$9,'Standing Data'!$D$9<>\"Multi-academy Trust\")","v":{"$error":"#N/A"}}]
[{"$f":"IF(B452<>\"\",IF('Standing Data'!$D$9<>\"Multi-academy Trust\",IF('Standing Data'!$D$15=B452,\"Error - counterparty with self\",\"\"),IF(N(ISNA(MATCH(B452,'Standing Data'!$E$49:$E$148,0)))<>0,\"\",\"Error - counterparty with self\")),\"\")","v":""},{"$f":"IF(C452<>\"\",VLOOKUP(C452,'CP IDs'!A$2:B$5122,2,FALSE),\"\")","v":""},null,{"$f":"IFERROR(VLOOKUP(C452,'CP IDs'!$A$2:$D$4422,4,FALSE),\"\")","v":""},"",null,null,null,null,null,null,null,null,null,null,null,null,null,null,null,null,null,null,null,null,null,null,null,null,null,null,null,null,null,null,null,null,null,null,null,null,null,null,null,null,null,null,null,null,-500000,500000,null,1,1,31,null,0,0,0,null,{"$f":"AND(B452=$C$9,'Standing Data'!$D$9<>\"Multi-academy Trust\")","v":{"$error":"#N/A"}}]
[{"$f":"IF(B453<>\"\",IF('Standing Data'!$D$9<>\"Multi-academy Trust\",IF('Standing Data'!$D$15=B453,\"Error - counterparty with self\",\"\"),IF(N(ISNA(MATCH(B453,'Standing Data'!$E$49:$E$148,0)))<>0,\"\",\"Error - counterparty with self\")),\"\")","v":""},{"$f":"IF(C453<>\"\",VLOOKUP(C453,'CP IDs'!A$2:B$5122,2,FALSE),\"\")","v":""},null,{"$f":"IFERROR(VLOOKUP(C453,'CP IDs'!$A$2:$D$4422,4,FALSE),\"\")","v":""},"",null,null,null,null,null,null,null,null,null,null,null,null,null,null,null,null,null,null,null,null,null,null,null,null,null,null,null,null,null,null,null,null,null,null,null,null,null,null,null,null,null,null,null,null,-500000,500000,null,1,1,31,null,0,0,0,null,{"$f":"AND(B453=$C$9,'Standing Data'!$D$9<>\"Multi-academy Trust\")","v":{"$error":"#N/A"}}]
[{"$f":"IF(B454<>\"\",IF('Standing Data'!$D$9<>\"Multi-academy Trust\",IF('Standing Data'!$D$15=B454,\"Error - counterparty with self\",\"\"),IF(N(ISNA(MATCH(B454,'Standing Data'!$E$49:$E$148,0)))<>0,\"\",\"Error - counterparty with self\")),\"\")","v":""},{"$f":"IF(C454<>\"\",VLOOKUP(C454,'CP IDs'!A$2:B$5122,2,FALSE),\"\")","v":""},null,{"$f":"IFERROR(VLOOKUP(C454,'CP IDs'!$A$2:$D$4422,4,FALSE),\"\")","v":""},"",null,null,null,null,null,null,null,null,null,null,null,null,null,null,null,null,null,null,null,null,null,null,null,null,null,null,null,null,null,null,null,null,null,null,null,null,null,null,null,null,null,null,null,null,-500000,500000,null,1,1,31,null,0,0,0,null,{"$f":"AND(B454=$C$9,'Standing Data'!$D$9<>\"Multi-academy Trust\")","v":{"$error":"#N/A"}}]
[{"$f":"IF(B455<>\"\",IF('Standing Data'!$D$9<>\"Multi-academy Trust\",IF('Standing Data'!$D$15=B455,\"Error - counterparty with self\",\"\"),IF(N(ISNA(MATCH(B455,'Standing Data'!$E$49:$E$148,0)))<>0,\"\",\"Error - counterparty with self\")),\"\")","v":""},{"$f":"IF(C455<>\"\",VLOOKUP(C455,'CP IDs'!A$2:B$5122,2,FALSE),\"\")","v":""},null,{"$f":"IFERROR(VLOOKUP(C455,'CP IDs'!$A$2:$D$4422,4,FALSE),\"\")","v":""},"",null,null,null,null,null,null,null,null,null,null,null,null,null,null,null,null,null,null,null,null,null,null,null,null,null,null,null,null,null,null,null,null,null,null,null,null,null,null,null,null,null,null,null,null,-500000,500000,null,1,1,31,null,0,0,0,null,{"$f":"AND(B455=$C$9,'Standing Data'!$D$9<>\"Multi-academy Trust\")","v":{"$error":"#N/A"}}]
[{"$f":"IF(B456<>\"\",IF('Standing Data'!$D$9<>\"Multi-academy Trust\",IF('Standing Data'!$D$15=B456,\"Error - counterparty with self\",\"\"),IF(N(ISNA(MATCH(B456,'Standing Data'!$E$49:$E$148,0)))<>0,\"\",\"Error - counterparty with self\")),\"\")","v":""},{"$f":"IF(C456<>\"\",VLOOKUP(C456,'CP IDs'!A$2:B$5122,2,FALSE),\"\")","v":""},null,{"$f":"IFERROR(VLOOKUP(C456,'CP IDs'!$A$2:$D$4422,4,FALSE),\"\")","v":""},"",null,null,null,null,null,null,null,null,null,null,null,null,null,null,null,null,null,null,null,null,null,null,null,null,null,null,null,null,null,null,null,null,null,null,null,null,null,null,null,null,null,null,null,null,-500000,500000,null,1,1,31,null,0,0,0,null,{"$f":"AND(B456=$C$9,'Standing Data'!$D$9<>\"Multi-academy Trust\")","v":{"$error":"#N/A"}}]
[{"$f":"IF(B457<>\"\",IF('Standing Data'!$D$9<>\"Multi-academy Trust\",IF('Standing Data'!$D$15=B457,\"Error - counterparty with self\",\"\"),IF(N(ISNA(MATCH(B457,'Standing Data'!$E$49:$E$148,0)))<>0,\"\",\"Error - counterparty with self\")),\"\")","v":""},{"$f":"IF(C457<>\"\",VLOOKUP(C457,'CP IDs'!A$2:B$5122,2,FALSE),\"\")","v":""},null,{"$f":"IFERROR(VLOOKUP(C457,'CP IDs'!$A$2:$D$4422,4,FALSE),\"\")","v":""},"",null,null,null,null,null,null,null,null,null,null,null,null,null,null,null,null,null,null,null,null,null,null,null,null,null,null,null,null,null,null,null,null,null,null,null,null,null,null,null,null,null,null,null,null,-500000,500000,null,1,1,31,null,0,0,0,null,{"$f":"AND(B457=$C$9,'Standing Data'!$D$9<>\"Multi-academy Trust\")","v":{"$error":"#N/A"}}]
[{"$f":"IF(B458<>\"\",IF('Standing Data'!$D$9<>\"Multi-academy Trust\",IF('Standing Data'!$D$15=B458,\"Error - counterparty with self\",\"\"),IF(N(ISNA(MATCH(B458,'Standing Data'!$E$49:$E$148,0)))<>0,\"\",\"Error - counterparty with self\")),\"\")","v":""},{"$f":"IF(C458<>\"\",VLOOKUP(C458,'CP IDs'!A$2:B$5122,2,FALSE),\"\")","v":""},null,{"$f":"IFERROR(VLOOKUP(C458,'CP IDs'!$A$2:$D$4422,4,FALSE),\"\")","v":""},"",null,null,null,null,null,null,null,null,null,null,null,null,null,null,null,null,null,null,null,null,null,null,null,null,null,null,null,null,null,null,null,null,null,null,null,null,null,null,null,null,null,null,null,null,-500000,500000,null,1,1,31,null,0,0,0,null,{"$f":"AND(B458=$C$9,'Standing Data'!$D$9<>\"Multi-academy Trust\")","v":{"$error":"#N/A"}}]
[{"$f":"IF(B459<>\"\",IF('Standing Data'!$D$9<>\"Multi-academy Trust\",IF('Standing Data'!$D$15=B459,\"Error - counterparty with self\",\"\"),IF(N(ISNA(MATCH(B459,'Standing Data'!$E$49:$E$148,0)))<>0,\"\",\"Error - counterparty with self\")),\"\")","v":""},{"$f":"IF(C459<>\"\",VLOOKUP(C459,'CP IDs'!A$2:B$5122,2,FALSE),\"\")","v":""},null,{"$f":"IFERROR(VLOOKUP(C459,'CP IDs'!$A$2:$D$4422,4,FALSE),\"\")","v":""},"",null,null,null,null,null,null,null,null,null,null,null,null,null,null,null,null,null,null,null,null,null,null,null,null,null,null,null,null,null,null,null,null,null,null,null,null,null,null,null,null,null,null,null,null,-500000,500000,null,1,1,31,null,0,0,0,null,{"$f":"AND(B459=$C$9,'Standing Data'!$D$9<>\"Multi-academy Trust\")","v":{"$error":"#N/A"}}]
[{"$f":"IF(B460<>\"\",IF('Standing Data'!$D$9<>\"Multi-academy Trust\",IF('Standing Data'!$D$15=B460,\"Error - counterparty with self\",\"\"),IF(N(ISNA(MATCH(B460,'Standing Data'!$E$49:$E$148,0)))<>0,\"\",\"Error - counterparty with self\")),\"\")","v":""},{"$f":"IF(C460<>\"\",VLOOKUP(C460,'CP IDs'!A$2:B$5122,2,FALSE),\"\")","v":""},null,{"$f":"IFERROR(VLOOKUP(C460,'CP IDs'!$A$2:$D$4422,4,FALSE),\"\")","v":""},"",null,null,null,null,null,null,null,null,null,null,null,null,null,null,null,null,null,null,null,null,null,null,null,null,null,null,null,null,null,null,null,null,null,null,null,null,null,null,null,null,null,null,null,null,-500000,500000,null,1,1,31,null,0,0,0,null,{"$f":"AND(B460=$C$9,'Standing Data'!$D$9<>\"Multi-academy Trust\")","v":{"$error":"#N/A"}}]
[{"$f":"IF(B461<>\"\",IF('Standing Data'!$D$9<>\"Multi-academy Trust\",IF('Standing Data'!$D$15=B461,\"Error - counterparty with self\",\"\"),IF(N(ISNA(MATCH(B461,'Standing Data'!$E$49:$E$148,0)))<>0,\"\",\"Error - counterparty with self\")),\"\")","v":""},{"$f":"IF(C461<>\"\",VLOOKUP(C461,'CP IDs'!A$2:B$5122,2,FALSE),\"\")","v":""},null,{"$f":"IFERROR(VLOOKUP(C461,'CP IDs'!$A$2:$D$4422,4,FALSE),\"\")","v":""},"",null,null,null,null,null,null,null,null,null,null,null,null,null,null,null,null,null,null,null,null,null,null,null,null,null,null,null,null,null,null,null,null,null,null,null,null,null,null,null,null,null,null,null,null,-500000,500000,null,1,1,31,null,0,0,0,null,{"$f":"AND(B461=$C$9,'Standing Data'!$D$9<>\"Multi-academy Trust\")","v":{"$error":"#N/A"}}]
[{"$f":"IF(B462<>\"\",IF('Standing Data'!$D$9<>\"Multi-academy Trust\",IF('Standing Data'!$D$15=B462,\"Error - counterparty with self\",\"\"),IF(N(ISNA(MATCH(B462,'Standing Data'!$E$49:$E$148,0)))<>0,\"\",\"Error - counterparty with self\")),\"\")","v":""},{"$f":"IF(C462<>\"\",VLOOKUP(C462,'CP IDs'!A$2:B$5122,2,FALSE),\"\")","v":""},null,{"$f":"IFERROR(VLOOKUP(C462,'CP IDs'!$A$2:$D$4422,4,FALSE),\"\")","v":""},"",null,null,null,null,null,null,null,null,null,null,null,null,null,null,null,null,null,null,null,null,null,null,null,null,null,null,null,null,null,null,null,null,null,null,null,null,null,null,null,null,null,null,null,null,-500000,500000,null,1,1,31,null,0,0,0,null,{"$f":"AND(B462=$C$9,'Standing Data'!$D$9<>\"Multi-academy Trust\")","v":{"$error":"#N/A"}}]
[{"$f":"IF(B463<>\"\",IF('Standing Data'!$D$9<>\"Multi-academy Trust\",IF('Standing Data'!$D$15=B463,\"Error - counterparty with self\",\"\"),IF(N(ISNA(MATCH(B463,'Standing Data'!$E$49:$E$148,0)))<>0,\"\",\"Error - counterparty with self\")),\"\")","v":""},{"$f":"IF(C463<>\"\",VLOOKUP(C463,'CP IDs'!A$2:B$5122,2,FALSE),\"\")","v":""},null,{"$f":"IFERROR(VLOOKUP(C463,'CP IDs'!$A$2:$D$4422,4,FALSE),\"\")","v":""},"",null,null,null,null,null,null,null,null,null,null,null,null,null,null,null,null,null,null,null,null,null,null,null,null,null,null,null,null,null,null,null,null,null,null,null,null,null,null,null,null,null,null,null,null,-500000,500000,null,1,1,31,null,0,0,0,null,{"$f":"AND(B463=$C$9,'Standing Data'!$D$9<>\"Multi-academy Trust\")","v":{"$error":"#N/A"}}]
[{"$f":"IF(B464<>\"\",IF('Standing Data'!$D$9<>\"Multi-academy Trust\",IF('Standing Data'!$D$15=B464,\"Error - counterparty with self\",\"\"),IF(N(ISNA(MATCH(B464,'Standing Data'!$E$49:$E$148,0)))<>0,\"\",\"Error - counterparty with self\")),\"\")","v":""},{"$f":"IF(C464<>\"\",VLOOKUP(C464,'CP IDs'!A$2:B$5122,2,FALSE),\"\")","v":""},null,{"$f":"IFERROR(VLOOKUP(C464,'CP IDs'!$A$2:$D$4422,4,FALSE),\"\")","v":""},"",null,null,null,null,null,null,null,null,null,null,null,null,null,null,null,null,null,null,null,null,null,null,null,null,null,null,null,null,null,null,null,null,null,null,null,null,null,null,null,null,null,null,null,null,-500000,500000,null,1,1,31,null,0,0,0,null,{"$f":"AND(B464=$C$9,'Standing Data'!$D$9<>\"Multi-academy Trust\")","v":{"$error":"#N/A"}}]
[{"$f":"IF(B465<>\"\",IF('Standing Data'!$D$9<>\"Multi-academy Trust\",IF('Standing Data'!$D$15=B465,\"Error - counterparty with self\",\"\"),IF(N(ISNA(MATCH(B465,'Standing Data'!$E$49:$E$148,0)))<>0,\"\",\"Error - counterparty with self\")),\"\")","v":""},{"$f":"IF(C465<>\"\",VLOOKUP(C465,'CP IDs'!A$2:B$5122,2,FALSE),\"\")","v":""},null,{"$f":"IFERROR(VLOOKUP(C465,'CP IDs'!$A$2:$D$4422,4,FALSE),\"\")","v":""},"",null,null,null,null,null,null,null,null,null,null,null,null,null,null,null,null,null,null,null,null,null,null,null,null,null,null,null,null,null,null,null,null,null,null,null,null,null,null,null,null,null,null,null,null,-500000,500000,null,1,1,31,null,0,0,0,null,{"$f":"AND(B465=$C$9,'Standing Data'!$D$9<>\"Multi-academy Trust\")","v":{"$error":"#N/A"}}]
[{"$f":"IF(B466<>\"\",IF('Standing Data'!$D$9<>\"Multi-academy Trust\",IF('Standing Data'!$D$15=B466,\"Error - counterparty with self\",\"\"),IF(N(ISNA(MATCH(B466,'Standing Data'!$E$49:$E$148,0)))<>0,\"\",\"Error - counterparty with self\")),\"\")","v":""},{"$f":"IF(C466<>\"\",VLOOKUP(C466,'CP IDs'!A$2:B$5122,2,FALSE),\"\")","v":""},null,{"$f":"IFERROR(VLOOKUP(C466,'CP IDs'!$A$2:$D$4422,4,FALSE),\"\")","v":""},"",null,null,null,null,null,null,null,null,null,null,null,null,null,null,null,null,null,null,null,null,null,null,null,null,null,null,null,null,null,null,null,null,null,null,null,null,null,null,null,null,null,null,null,null,-500000,500000,null,1,1,31,null,0,0,0,null,{"$f":"AND(B466=$C$9,'Standing Data'!$D$9<>\"Multi-academy Trust\")","v":{"$error":"#N/A"}}]
[{"$f":"IF(B467<>\"\",IF('Standing Data'!$D$9<>\"Multi-academy Trust\",IF('Standing Data'!$D$15=B467,\"Error - counterparty with self\",\"\"),IF(N(ISNA(MATCH(B467,'Standing Data'!$E$49:$E$148,0)))<>0,\"\",\"Error - counterparty with self\")),\"\")","v":""},{"$f":"IF(C467<>\"\",VLOOKUP(C467,'CP IDs'!A$2:B$5122,2,FALSE),\"\")","v":""},null,{"$f":"IFERROR(VLOOKUP(C467,'CP IDs'!$A$2:$D$4422,4,FALSE),\"\")","v":""},"",null,null,null,null,null,null,null,null,null,null,null,null,null,null,null,null,null,null,null,null,null,null,null,null,null,null,null,null,null,null,null,null,null,null,null,null,null,null,null,null,null,null,null,null,-500000,500000,null,1,1,31,null,0,0,0,null,{"$f":"AND(B467=$C$9,'Standing Data'!$D$9<>\"Multi-academy Trust\")","v":{"$error":"#N/A"}}]
[{"$f":"IF(B468<>\"\",IF('Standing Data'!$D$9<>\"Multi-academy Trust\",IF('Standing Data'!$D$15=B468,\"Error - counterparty with self\",\"\"),IF(N(ISNA(MATCH(B468,'Standing Data'!$E$49:$E$148,0)))<>0,\"\",\"Error - counterparty with self\")),\"\")","v":""},{"$f":"IF(C468<>\"\",VLOOKUP(C468,'CP IDs'!A$2:B$5122,2,FALSE),\"\")","v":""},null,{"$f":"IFERROR(VLOOKUP(C468,'CP IDs'!$A$2:$D$4422,4,FALSE),\"\")","v":""},"",null,null,null,null,null,null,null,null,null,null,null,null,null,null,null,null,null,null,null,null,null,null,null,null,null,null,null,null,null,null,null,null,null,null,null,null,null,null,null,null,null,null,null,null,-500000,500000,null,1,1,31,null,0,0,0,null,{"$f":"AND(B468=$C$9,'Standing Data'!$D$9<>\"Multi-academy Trust\")","v":{"$error":"#N/A"}}]
[{"$f":"IF(B469<>\"\",IF('Standing Data'!$D$9<>\"Multi-academy Trust\",IF('Standing Data'!$D$15=B469,\"Error - counterparty with self\",\"\"),IF(N(ISNA(MATCH(B469,'Standing Data'!$E$49:$E$148,0)))<>0,\"\",\"Error - counterparty with self\")),\"\")","v":""},{"$f":"IF(C469<>\"\",VLOOKUP(C469,'CP IDs'!A$2:B$5122,2,FALSE),\"\")","v":""},null,{"$f":"IFERROR(VLOOKUP(C469,'CP IDs'!$A$2:$D$4422,4,FALSE),\"\")","v":""},"",null,null,null,null,null,null,null,null,null,null,null,null,null,null,null,null,null,null,null,null,null,null,null,null,null,null,null,null,null,null,null,null,null,null,null,null,null,null,null,null,null,null,null,null,-500000,500000,null,1,1,31,null,0,0,{"$f":"COUNT(F469:AT469)","v":0},null,{"$f":"AND(B469=$C$9,'Standing Data'!$D$9<>\"Multi-academy Trust\")","v":{"$error":"#N/A"}}]
[{"$f":"IF(B470<>\"\",IF('Standing Data'!$D$9<>\"Multi-academy Trust\",IF('Standing Data'!$D$15=B470,\"Error - counterparty with self\",\"\"),IF(N(ISNA(MATCH(B470,'Standing Data'!$E$49:$E$148,0)))<>0,\"\",\"Error - counterparty with self\")),\"\")","v":""},{"$f":"IF(C470<>\"\",VLOOKUP(C470,'CP IDs'!A$2:B$5122,2,FALSE),\"\")","v":""},null,{"$f":"IFERROR(VLOOKUP(C470,'CP IDs'!$A$2:$D$4422,4,FALSE),\"\")","v":""},"",null,null,null,null,null,null,null,null,null,null,null,null,null,null,null,null,null,null,null,null,null,null,null,null,null,null,null,null,null,null,null,null,null,null,null,null,null,null,null,null,null,null,null,null,-500000,500000,null,1,1,31,null,0,0,0,null,{"$f":"AND(B470=$C$9,'Standing Data'!$D$9<>\"Multi-academy Trust\")","v":{"$error":"#N/A"}}]
[{"$f":"IF(B471<>\"\",IF('Standing Data'!$D$9<>\"Multi-academy Trust\",IF('Standing Data'!$D$15=B471,\"Error - counterparty with self\",\"\"),IF(N(ISNA(MATCH(B471,'Standing Data'!$E$49:$E$148,0)))<>0,\"\",\"Error - counterparty with self\")),\"\")","v":""},{"$f":"IF(C471<>\"\",VLOOKUP(C471,'CP IDs'!A$2:B$5122,2,FALSE),\"\")","v":""},null,{"$f":"IFERROR(VLOOKUP(C471,'CP IDs'!$A$2:$D$4422,4,FALSE),\"\")","v":""},"",null,null,null,null,null,null,null,null,null,null,null,null,null,null,null,null,null,null,null,null,null,null,null,null,null,null,null,null,null,null,null,null,null,null,null,null,null,null,null,null,null,null,null,null,{"$f":"AX470","v":-500000},{"$f":"AY470","v":500000},null,1,1,31,null,0,0,0,null,{"$f":"AND(B471=$C$9,'Standing Data'!$D$9<>\"Multi-academy Trust\")","v":{"$error":"#N/A"}}]
[{"$f":"IF(B472<>\"\",IF('Standing Data'!$D$9<>\"Multi-academy Trust\",IF('Standing Data'!$D$15=B472,\"Error - counterparty with self\",\"\"),IF(N(ISNA(MATCH(B472,'Standing Data'!$E$49:$E$148,0)))<>0,\"\",\"Error - counterparty with self\")),\"\")","v":""},{"$f":"IF(C472<>\"\",VLOOKUP(C472,'CP IDs'!A$2:B$5122,2,FALSE),\"\")","v":""},null,{"$f":"IFERROR(VLOOKUP(C472,'CP IDs'!$A$2:$D$4422,4,FALSE),\"\")","v":""},"",null,null,null,null,null,null,null,null,null,null,null,null,null,null,null,null,null,null,null,null,null,null,null,null,null,null,null,null,null,null,null,null,null,null,null,null,null,null,null,null,null,null,null,null,-500000,500000,null,1,1,31,null,0,0,0,null,{"$f":"AND(B472=$C$9,'Standing Data'!$D$9<>\"Multi-academy Trust\")","v":{"$error":"#N/A"}}]
[{"$f":"IF(B473<>\"\",IF('Standing Data'!$D$9<>\"Multi-academy Trust\",IF('Standing Data'!$D$15=B473,\"Error - counterparty with self\",\"\"),IF(N(ISNA(MATCH(B473,'Standing Data'!$E$49:$E$148,0)))<>0,\"\",\"Error - counterparty with self\")),\"\")","v":""},{"$f":"IF(C473<>\"\",VLOOKUP(C473,'CP IDs'!A$2:B$5122,2,FALSE),\"\")","v":""},null,{"$f":"IFERROR(VLOOKUP(C473,'CP IDs'!$A$2:$D$4422,4,FALSE),\"\")","v":""},"",null,null,null,null,null,null,null,null,null,null,null,null,null,null,null,null,null,null,null,null,null,null,null,null,null,null,null,null,null,null,null,null,null,null,null,null,null,null,null,null,null,null,null,null,-500000,500000,null,1,1,31,null,0,0,0,null,{"$f":"AND(B473=$C$9,'Standing Data'!$D$9<>\"Multi-academy Trust\")","v":{"$error":"#N/A"}}]
[{"$f":"IF(B474<>\"\",IF('Standing Data'!$D$9<>\"Multi-academy Trust\",IF('Standing Data'!$D$15=B474,\"Error - counterparty with self\",\"\"),IF(N(ISNA(MATCH(B474,'Standing Data'!$E$49:$E$148,0)))<>0,\"\",\"Error - counterparty with self\")),\"\")","v":""},{"$f":"IF(C474<>\"\",VLOOKUP(C474,'CP IDs'!A$2:B$5122,2,FALSE),\"\")","v":""},null,{"$f":"IFERROR(VLOOKUP(C474,'CP IDs'!$A$2:$D$4422,4,FALSE),\"\")","v":""},"",null,null,null,null,null,null,null,null,null,null,null,null,null,null,null,null,null,null,null,null,null,null,null,null,null,null,null,null,null,null,null,null,null,null,null,null,null,null,null,null,null,null,null,null,-500000,500000,null,1,1,31,null,0,0,0,null,{"$f":"AND(B474=$C$9,'Standing Data'!$D$9<>\"Multi-academy Trust\")","v":{"$error":"#N/A"}}]
[{"$f":"IF(B475<>\"\",IF('Standing Data'!$D$9<>\"Multi-academy Trust\",IF('Standing Data'!$D$15=B475,\"Error - counterparty with self\",\"\"),IF(N(ISNA(MATCH(B475,'Standing Data'!$E$49:$E$148,0)))<>0,\"\",\"Error - counterparty with self\")),\"\")","v":""},{"$f":"IF(C475<>\"\",VLOOKUP(C475,'CP IDs'!A$2:B$5122,2,FALSE),\"\")","v":""},null,{"$f":"IFERROR(VLOOKUP(C475,'CP IDs'!$A$2:$D$4422,4,FALSE),\"\")","v":""},"",null,null,null,null,null,null,null,null,null,null,null,null,null,null,null,null,null,null,null,null,null,null,null,null,null,null,null,null,null,null,null,null,null,null,null,null,null,null,null,null,null,null,null,null,-500000,500000,null,1,1,31,null,0,0,0,null,{"$f":"AND(B475=$C$9,'Standing Data'!$D$9<>\"Multi-academy Trust\")","v":{"$error":"#N/A"}}]
[{"$f":"IF(B476<>\"\",IF('Standing Data'!$D$9<>\"Multi-academy Trust\",IF('Standing Data'!$D$15=B476,\"Error - counterparty with self\",\"\"),IF(N(ISNA(MATCH(B476,'Standing Data'!$E$49:$E$148,0)))<>0,\"\",\"Error - counterparty with self\")),\"\")","v":""},{"$f":"IF(C476<>\"\",VLOOKUP(C476,'CP IDs'!A$2:B$5122,2,FALSE),\"\")","v":""},null,{"$f":"IFERROR(VLOOKUP(C476,'CP IDs'!$A$2:$D$4422,4,FALSE),\"\")","v":""},"",null,null,null,null,null,null,null,null,null,null,null,null,null,null,null,null,null,null,null,null,null,null,null,null,null,null,null,null,null,null,null,null,null,null,null,null,null,null,null,null,null,null,null,null,-500000,500000,null,1,1,31,null,0,0,0,null,{"$f":"AND(B476=$C$9,'Standing Data'!$D$9<>\"Multi-academy Trust\")","v":{"$error":"#N/A"}}]
[{"$f":"IF(B477<>\"\",IF('Standing Data'!$D$9<>\"Multi-academy Trust\",IF('Standing Data'!$D$15=B477,\"Error - counterparty with self\",\"\"),IF(N(ISNA(MATCH(B477,'Standing Data'!$E$49:$E$148,0)))<>0,\"\",\"Error - counterparty with self\")),\"\")","v":""},{"$f":"IF(C477<>\"\",VLOOKUP(C477,'CP IDs'!A$2:B$5122,2,FALSE),\"\")","v":""},null,{"$f":"IFERROR(VLOOKUP(C477,'CP IDs'!$A$2:$D$4422,4,FALSE),\"\")","v":""},"",null,null,null,null,null,null,null,null,null,null,null,null,null,null,null,null,null,null,null,null,null,null,null,null,null,null,null,null,null,null,null,null,null,null,null,null,null,null,null,null,null,null,null,null,-500000,500000,null,1,1,31,null,0,0,0,null,{"$f":"AND(B477=$C$9,'Standing Data'!$D$9<>\"Multi-academy Trust\")","v":{"$error":"#N/A"}}]
[{"$f":"IF(B478<>\"\",IF('Standing Data'!$D$9<>\"Multi-academy Trust\",IF('Standing Data'!$D$15=B478,\"Error - counterparty with self\",\"\"),IF(N(ISNA(MATCH(B478,'Standing Data'!$E$49:$E$148,0)))<>0,\"\",\"Error - counterparty with self\")),\"\")","v":""},{"$f":"IF(C478<>\"\",VLOOKUP(C478,'CP IDs'!A$2:B$5122,2,FALSE),\"\")","v":""},null,{"$f":"IFERROR(VLOOKUP(C478,'CP IDs'!$A$2:$D$4422,4,FALSE),\"\")","v":""},"",null,null,null,null,null,null,null,null,null,null,null,null,null,null,null,null,null,null,null,null,null,null,null,null,null,null,null,null,null,null,null,null,null,null,null,null,null,null,null,null,null,null,null,null,-500000,500000,null,1,1,31,null,{"$f":"COUNTA(C478)","v":0},{"$f":"1-COUNTBLANK(B478)","v":0},0,null,{"$f":"AND(B478=$C$9,'Standing Data'!$D$9<>\"Multi-academy Trust\")","v":{"$error":"#N/A"}}]
[{"$f":"IF(B479<>\"\",IF('Standing Data'!$D$9<>\"Multi-academy Trust\",IF('Standing Data'!$D$15=B479,\"Error - counterparty with self\",\"\"),IF(N(ISNA(MATCH(B479,'Standing Data'!$E$49:$E$148,0)))<>0,\"\",\"Error - counterparty with self\")),\"\")","v":""},{"$f":"IF(C479<>\"\",VLOOKUP(C479,'CP IDs'!A$2:B$5122,2,FALSE),\"\")","v":""},null,{"$f":"IFERROR(VLOOKUP(C479,'CP IDs'!$A$2:$D$4422,4,FALSE),\"\")","v":""},{"$f":"IF(OR(AND(COUNT(F479:AT479)>0,C479=\"\"),AND(COUNT(F479:AT479)=0,C479<>\"\")),\"Error - on line\",\"\")","v":""},null,null,null,null,null,null,null,null,null,null,null,null,null,null,null,null,null,null,null,null,null,null,null,null,null,null,null,null,null,null,null,null,null,null,null,null,null,null,null,null,null,null,null,null,-500000,500000,null,1,1,31,null,0,0,0,null,{"$f":"AND(B479=$C$9,'Standing Data'!$D$9<>\"Multi-academy Trust\")","v":{"$error":"#N/A"}}]
[{"$f":"IF(B480<>\"\",IF('Standing Data'!$D$9<>\"Multi-academy Trust\",IF('Standing Data'!$D$15=B480,\"Error - counterparty with self\",\"\"),IF(N(ISNA(MATCH(B480,'Standing Data'!$E$49:$E$148,0)))<>0,\"\",\"Error - counterparty with self\")),\"\")","v":""},{"$f":"IF(C480<>\"\",VLOOKUP(C480,'CP IDs'!A$2:B$5122,2,FALSE),\"\")","v":""},null,{"$f":"IFERROR(VLOOKUP(C480,'CP IDs'!$A$2:$D$4422,4,FALSE),\"\")","v":""},"",null,null,null,null,null,null,null,null,null,null,null,null,null,null,null,null,null,null,null,null,null,null,null,null,null,null,null,null,null,null,null,null,null,null,null,null,null,null,null,null,null,null,null,null,-500000,500000,null,1,1,31,null,0,0,0,null,{"$f":"AND(B480=$C$9,'Standing Data'!$D$9<>\"Multi-academy Trust\")","v":{"$error":"#N/A"}}]
[{"$f":"IF(B481<>\"\",IF('Standing Data'!$D$9<>\"Multi-academy Trust\",IF('Standing Data'!$D$15=B481,\"Error - counterparty with self\",\"\"),IF(N(ISNA(MATCH(B481,'Standing Data'!$E$49:$E$148,0)))<>0,\"\",\"Error - counterparty with self\")),\"\")","v":""},{"$f":"IF(C481<>\"\",VLOOKUP(C481,'CP IDs'!A$2:B$5122,2,FALSE),\"\")","v":""},null,{"$f":"IFERROR(VLOOKUP(C481,'CP IDs'!$A$2:$D$4422,4,FALSE),\"\")","v":""},"",null,null,null,null,null,null,null,null,null,null,null,null,null,null,null,null,null,null,null,null,null,null,null,null,null,null,null,null,null,null,null,null,null,null,null,null,null,null,null,null,null,null,null,null,-500000,500000,null,1,1,31,null,0,0,0,null,{"$f":"AND(B481=$C$9,'Standing Data'!$D$9<>\"Multi-academy Trust\")","v":{"$error":"#N/A"}}]
[{"$f":"IF(B482<>\"\",IF('Standing Data'!$D$9<>\"Multi-academy Trust\",IF('Standing Data'!$D$15=B482,\"Error - counterparty with self\",\"\"),IF(N(ISNA(MATCH(B482,'Standing Data'!$E$49:$E$148,0)))<>0,\"\",\"Error - counterparty with self\")),\"\")","v":""},{"$f":"IF(C482<>\"\",VLOOKUP(C482,'CP IDs'!A$2:B$5122,2,FALSE),\"\")","v":""},null,{"$f":"IFERROR(VLOOKUP(C482,'CP IDs'!$A$2:$D$4422,4,FALSE),\"\")","v":""},"",null,null,null,null,null,null,null,null,null,null,null,null,null,null,null,null,null,null,null,null,null,null,null,null,null,null,null,null,null,null,null,null,null,null,null,null,null,null,null,null,null,null,null,null,-500000,500000,null,1,1,31,null,0,0,0,null,{"$f":"AND(B482=$C$9,'Standing Data'!$D$9<>\"Multi-academy Trust\")","v":{"$error":"#N/A"}}]
[{"$f":"IF(B483<>\"\",IF('Standing Data'!$D$9<>\"Multi-academy Trust\",IF('Standing Data'!$D$15=B483,\"Error - counterparty with self\",\"\"),IF(N(ISNA(MATCH(B483,'Standing Data'!$E$49:$E$148,0)))<>0,\"\",\"Error - counterparty with self\")),\"\")","v":""},{"$f":"IF(C483<>\"\",VLOOKUP(C483,'CP IDs'!A$2:B$5122,2,FALSE),\"\")","v":""},null,{"$f":"IFERROR(VLOOKUP(C483,'CP IDs'!$A$2:$D$4422,4,FALSE),\"\")","v":""},"",null,null,null,null,null,null,null,null,null,null,null,null,null,null,null,null,null,null,null,null,null,null,null,null,null,null,null,null,null,null,null,null,null,null,null,null,null,null,null,null,null,null,null,null,-500000,500000,null,1,1,31,null,0,0,0,null,{"$f":"AND(B483=$C$9,'Standing Data'!$D$9<>\"Multi-academy Trust\")","v":{"$error":"#N/A"}}]
[{"$f":"IF(B484<>\"\",IF('Standing Data'!$D$9<>\"Multi-academy Trust\",IF('Standing Data'!$D$15=B484,\"Error - counterparty with self\",\"\"),IF(N(ISNA(MATCH(B484,'Standing Data'!$E$49:$E$148,0)))<>0,\"\",\"Error - counterparty with self\")),\"\")","v":""},{"$f":"IF(C484<>\"\",VLOOKUP(C484,'CP IDs'!A$2:B$5122,2,FALSE),\"\")","v":""},null,{"$f":"IFERROR(VLOOKUP(C484,'CP IDs'!$A$2:$D$4422,4,FALSE),\"\")","v":""},"",null,null,null,null,null,null,null,null,null,null,null,null,null,null,null,null,null,null,null,null,null,null,null,null,null,null,null,null,null,null,null,null,null,null,null,null,null,null,null,null,null,null,null,null,-500000,500000,null,1,1,31,null,0,0,0,null,{"$f":"AND(B484=$C$9,'Standing Data'!$D$9<>\"Multi-academy Trust\")","v":{"$error":"#N/A"}}]
[{"$f":"IF(B485<>\"\",IF('Standing Data'!$D$9<>\"Multi-academy Trust\",IF('Standing Data'!$D$15=B485,\"Error - counterparty with self\",\"\"),IF(N(ISNA(MATCH(B485,'Standing Data'!$E$49:$E$148,0)))<>0,\"\",\"Error - counterparty with self\")),\"\")","v":""},{"$f":"IF(C485<>\"\",VLOOKUP(C485,'CP IDs'!A$2:B$5122,2,FALSE),\"\")","v":""},null,{"$f":"IFERROR(VLOOKUP(C485,'CP IDs'!$A$2:$D$4422,4,FALSE),\"\")","v":""},"",null,null,null,null,null,null,null,null,null,null,null,null,null,null,null,null,null,null,null,null,null,null,null,null,null,null,null,null,null,null,null,null,null,null,null,null,null,null,null,null,null,null,null,null,-500000,500000,null,1,1,31,null,0,0,0,null,{"$f":"AND(B485=$C$9,'Standing Data'!$D$9<>\"Multi-academy Trust\")","v":{"$error":"#N/A"}}]
[{"$f":"IF(B486<>\"\",IF('Standing Data'!$D$9<>\"Multi-academy Trust\",IF('Standing Data'!$D$15=B486,\"Error - counterparty with self\",\"\"),IF(N(ISNA(MATCH(B486,'Standing Data'!$E$49:$E$148,0)))<>0,\"\",\"Error - counterparty with self\")),\"\")","v":""},{"$f":"IF(C486<>\"\",VLOOKUP(C486,'CP IDs'!A$2:B$5122,2,FALSE),\"\")","v":""},null,{"$f":"IFERROR(VLOOKUP(C486,'CP IDs'!$A$2:$D$4422,4,FALSE),\"\")","v":""},"",null,null,null,null,null,null,null,null,null,null,null,null,null,null,null,null,null,null,null,null,null,null,null,null,null,null,null,null,null,null,null,null,null,null,null,null,null,null,null,null,null,null,null,null,-500000,500000,null,1,1,31,null,0,0,0,null,{"$f":"AND(B486=$C$9,'Standing Data'!$D$9<>\"Multi-academy Trust\")","v":{"$error":"#N/A"}}]
[{"$f":"IF(B487<>\"\",IF('Standing Data'!$D$9<>\"Multi-academy Trust\",IF('Standing Data'!$D$15=B487,\"Error - counterparty with self\",\"\"),IF(N(ISNA(MATCH(B487,'Standing Data'!$E$49:$E$148,0)))<>0,\"\",\"Error - counterparty with self\")),\"\")","v":""},{"$f":"IF(C487<>\"\",VLOOKUP(C487,'CP IDs'!A$2:B$5122,2,FALSE),\"\")","v":""},null,{"$f":"IFERROR(VLOOKUP(C487,'CP IDs'!$A$2:$D$4422,4,FALSE),\"\")","v":""},"",null,null,null,null,null,null,null,null,null,null,null,null,null,null,null,null,null,null,null,null,null,null,null,null,null,null,null,null,null,null,null,null,null,null,null,null,null,null,null,null,null,null,null,null,-500000,500000,null,1,1,31,null,0,0,0,null,{"$f":"AND(B487=$C$9,'Standing Data'!$D$9<>\"Multi-academy Trust\")","v":{"$error":"#N/A"}}]
[{"$f":"IF(B488<>\"\",IF('Standing Data'!$D$9<>\"Multi-academy Trust\",IF('Standing Data'!$D$15=B488,\"Error - counterparty with self\",\"\"),IF(N(ISNA(MATCH(B488,'Standing Data'!$E$49:$E$148,0)))<>0,\"\",\"Error - counterparty with self\")),\"\")","v":""},{"$f":"IF(C488<>\"\",VLOOKUP(C488,'CP IDs'!A$2:B$5122,2,FALSE),\"\")","v":""},null,{"$f":"IFERROR(VLOOKUP(C488,'CP IDs'!$A$2:$D$4422,4,FALSE),\"\")","v":""},"",null,null,null,null,null,null,null,null,null,null,null,null,null,null,null,null,null,null,null,null,null,null,null,null,null,null,null,null,null,null,null,null,null,null,null,null,null,null,null,null,null,null,null,null,-500000,500000,null,1,1,31,null,0,0,0,null,{"$f":"AND(B488=$C$9,'Standing Data'!$D$9<>\"Multi-academy Trust\")","v":{"$error":"#N/A"}}]
[{"$f":"IF(B489<>\"\",IF('Standing Data'!$D$9<>\"Multi-academy Trust\",IF('Standing Data'!$D$15=B489,\"Error - counterparty with self\",\"\"),IF(N(ISNA(MATCH(B489,'Standing Data'!$E$49:$E$148,0)))<>0,\"\",\"Error - counterparty with self\")),\"\")","v":""},{"$f":"IF(C489<>\"\",VLOOKUP(C489,'CP IDs'!A$2:B$5122,2,FALSE),\"\")","v":""},null,{"$f":"IFERROR(VLOOKUP(C489,'CP IDs'!$A$2:$D$4422,4,FALSE),\"\")","v":""},"",null,null,null,null,null,null,null,null,null,null,null,null,null,null,null,null,null,null,null,null,null,null,null,null,null,null,null,null,null,null,null,null,null,null,null,null,null,null,null,null,null,null,null,null,-500000,500000,null,1,1,31,null,0,0,0,null,{"$f":"AND(B489=$C$9,'Standing Data'!$D$9<>\"Multi-academy Trust\")","v":{"$error":"#N/A"}}]
[{"$f":"IF(B490<>\"\",IF('Standing Data'!$D$9<>\"Multi-academy Trust\",IF('Standing Data'!$D$15=B490,\"Error - counterparty with self\",\"\"),IF(N(ISNA(MATCH(B490,'Standing Data'!$E$49:$E$148,0)))<>0,\"\",\"Error - counterparty with self\")),\"\")","v":""},{"$f":"IF(C490<>\"\",VLOOKUP(C490,'CP IDs'!A$2:B$5122,2,FALSE),\"\")","v":""},null,{"$f":"IFERROR(VLOOKUP(C490,'CP IDs'!$A$2:$D$4422,4,FALSE),\"\")","v":""},"",null,null,null,null,null,null,null,null,null,null,null,null,null,null,null,null,null,null,null,null,null,null,null,null,null,null,null,null,null,null,null,null,null,null,null,null,null,null,null,null,null,null,null,null,-500000,500000,null,1,1,31,null,0,0,0,null,{"$f":"AND(B490=$C$9,'Standing Data'!$D$9<>\"Multi-academy Trust\")","v":{"$error":"#N/A"}}]
[{"$f":"IF(B491<>\"\",IF('Standing Data'!$D$9<>\"Multi-academy Trust\",IF('Standing Data'!$D$15=B491,\"Error - counterparty with self\",\"\"),IF(N(ISNA(MATCH(B491,'Standing Data'!$E$49:$E$148,0)))<>0,\"\",\"Error - counterparty with self\")),\"\")","v":""},{"$f":"IF(C491<>\"\",VLOOKUP(C491,'CP IDs'!A$2:B$5122,2,FALSE),\"\")","v":""},null,{"$f":"IFERROR(VLOOKUP(C491,'CP IDs'!$A$2:$D$4422,4,FALSE),\"\")","v":""},"",null,null,null,null,null,null,null,null,null,null,null,null,null,null,null,null,null,null,null,null,null,null,null,null,null,null,null,null,null,null,null,null,null,null,null,null,null,null,null,null,null,null,null,null,-500000,500000,null,1,1,31,null,0,0,0,null,{"$f":"AND(B491=$C$9,'Standing Data'!$D$9<>\"Multi-academy Trust\")","v":{"$error":"#N/A"}}]
[{"$f":"IF(B492<>\"\",IF('Standing Data'!$D$9<>\"Multi-academy Trust\",IF('Standing Data'!$D$15=B492,\"Error - counterparty with self\",\"\"),IF(N(ISNA(MATCH(B492,'Standing Data'!$E$49:$E$148,0)))<>0,\"\",\"Error - counterparty with self\")),\"\")","v":""},{"$f":"IF(C492<>\"\",VLOOKUP(C492,'CP IDs'!A$2:B$5122,2,FALSE),\"\")","v":""},null,{"$f":"IFERROR(VLOOKUP(C492,'CP IDs'!$A$2:$D$4422,4,FALSE),\"\")","v":""},"",null,null,null,null,null,null,null,null,null,null,null,null,null,null,null,null,null,null,null,null,null,null,null,null,null,null,null,null,null,null,null,null,null,null,null,null,null,null,null,null,null,null,null,null,-500000,500000,null,1,1,31,null,0,0,0,null,{"$f":"AND(B492=$C$9,'Standing Data'!$D$9<>\"Multi-academy Trust\")","v":{"$error":"#N/A"}}]
[{"$f":"IF(B493<>\"\",IF('Standing Data'!$D$9<>\"Multi-academy Trust\",IF('Standing Data'!$D$15=B493,\"Error - counterparty with self\",\"\"),IF(N(ISNA(MATCH(B493,'Standing Data'!$E$49:$E$148,0)))<>0,\"\",\"Error - counterparty with self\")),\"\")","v":""},{"$f":"IF(C493<>\"\",VLOOKUP(C493,'CP IDs'!A$2:B$5122,2,FALSE),\"\")","v":""},null,{"$f":"IFERROR(VLOOKUP(C493,'CP IDs'!$A$2:$D$4422,4,FALSE),\"\")","v":""},"",null,null,null,null,null,null,null,null,null,null,null,null,null,null,null,null,null,null,null,null,null,null,null,null,null,null,null,null,null,null,null,null,null,null,null,null,null,null,null,null,null,null,null,null,-500000,500000,null,1,1,31,null,0,0,0,null,{"$f":"AND(B493=$C$9,'Standing Data'!$D$9<>\"Multi-academy Trust\")","v":{"$error":"#N/A"}}]
[{"$f":"IF(B494<>\"\",IF('Standing Data'!$D$9<>\"Multi-academy Trust\",IF('Standing Data'!$D$15=B494,\"Error - counterparty with self\",\"\"),IF(N(ISNA(MATCH(B494,'Standing Data'!$E$49:$E$148,0)))<>0,\"\",\"Error - counterparty with self\")),\"\")","v":""},{"$f":"IF(C494<>\"\",VLOOKUP(C494,'CP IDs'!A$2:B$5122,2,FALSE),\"\")","v":""},null,{"$f":"IFERROR(VLOOKUP(C494,'CP IDs'!$A$2:$D$4422,4,FALSE),\"\")","v":""},"",null,null,null,null,null,null,null,null,null,null,null,null,null,null,null,null,null,null,null,null,null,null,null,null,null,null,null,null,null,null,null,null,null,null,null,null,null,null,null,null,null,null,null,null,-500000,500000,null,1,1,31,null,0,0,0,null,{"$f":"AND(B494=$C$9,'Standing Data'!$D$9<>\"Multi-academy Trust\")","v":{"$error":"#N/A"}}]
[{"$f":"IF(B495<>\"\",IF('Standing Data'!$D$9<>\"Multi-academy Trust\",IF('Standing Data'!$D$15=B495,\"Error - counterparty with self\",\"\"),IF(N(ISNA(MATCH(B495,'Standing Data'!$E$49:$E$148,0)))<>0,\"\",\"Error - counterparty with self\")),\"\")","v":""},{"$f":"IF(C495<>\"\",VLOOKUP(C495,'CP IDs'!A$2:B$5122,2,FALSE),\"\")","v":""},null,{"$f":"IFERROR(VLOOKUP(C495,'CP IDs'!$A$2:$D$4422,4,FALSE),\"\")","v":""},"",null,null,null,null,null,null,null,null,null,null,null,null,null,null,null,null,null,null,null,null,null,null,null,null,null,null,null,null,null,null,null,null,null,null,null,null,null,null,null,null,null,null,null,null,-500000,500000,null,1,1,31,null,0,0,0,null,{"$f":"AND(B495=$C$9,'Standing Data'!$D$9<>\"Multi-academy Trust\")","v":{"$error":"#N/A"}}]
[{"$f":"IF(B496<>\"\",IF('Standing Data'!$D$9<>\"Multi-academy Trust\",IF('Standing Data'!$D$15=B496,\"Error - counterparty with self\",\"\"),IF(N(ISNA(MATCH(B496,'Standing Data'!$E$49:$E$148,0)))<>0,\"\",\"Error - counterparty with self\")),\"\")","v":""},{"$f":"IF(C496<>\"\",VLOOKUP(C496,'CP IDs'!A$2:B$5122,2,FALSE),\"\")","v":""},null,{"$f":"IFERROR(VLOOKUP(C496,'CP IDs'!$A$2:$D$4422,4,FALSE),\"\")","v":""},"",null,null,null,null,null,null,null,null,null,null,null,null,null,null,null,null,null,null,null,null,null,null,null,null,null,null,null,null,null,null,null,null,null,null,null,null,null,null,null,null,null,null,null,null,-500000,500000,null,1,1,31,null,0,0,0,null,{"$f":"AND(B496=$C$9,'Standing Data'!$D$9<>\"Multi-academy Trust\")","v":{"$error":"#N/A"}}]
[{"$f":"IF(B497<>\"\",IF('Standing Data'!$D$9<>\"Multi-academy Trust\",IF('Standing Data'!$D$15=B497,\"Error - counterparty with self\",\"\"),IF(N(ISNA(MATCH(B497,'Standing Data'!$E$49:$E$148,0)))<>0,\"\",\"Error - counterparty with self\")),\"\")","v":""},{"$f":"IF(C497<>\"\",VLOOKUP(C497,'CP IDs'!A$2:B$5122,2,FALSE),\"\")","v":""},null,{"$f":"IFERROR(VLOOKUP(C497,'CP IDs'!$A$2:$D$4422,4,FALSE),\"\")","v":""},"",null,null,null,null,null,null,null,null,null,null,null,null,null,null,null,null,null,null,null,null,null,null,null,null,null,null,null,null,null,null,null,null,null,null,null,null,null,null,null,null,null,null,null,null,-500000,500000,null,1,1,31,null,0,0,0,null,{"$f":"AND(B497=$C$9,'Standing Data'!$D$9<>\"Multi-academy Trust\")","v":{"$error":"#N/A"}}]
[{"$f":"IF(B498<>\"\",IF('Standing Data'!$D$9<>\"Multi-academy Trust\",IF('Standing Data'!$D$15=B498,\"Error - counterparty with self\",\"\"),IF(N(ISNA(MATCH(B498,'Standing Data'!$E$49:$E$148,0)))<>0,\"\",\"Error - counterparty with self\")),\"\")","v":""},{"$f":"IF(C498<>\"\",VLOOKUP(C498,'CP IDs'!A$2:B$5122,2,FALSE),\"\")","v":""},null,{"$f":"IFERROR(VLOOKUP(C498,'CP IDs'!$A$2:$D$4422,4,FALSE),\"\")","v":""},"",null,null,null,null,null,null,null,null,null,null,null,null,null,null,null,null,null,null,null,null,null,null,null,null,null,null,null,null,null,null,null,null,null,null,null,null,null,null,null,null,null,null,null,null,-500000,500000,null,1,1,31,null,0,0,0,null,{"$f":"AND(B498=$C$9,'Standing Data'!$D$9<>\"Multi-academy Trust\")","v":{"$error":"#N/A"}}]
[{"$f":"IF(B499<>\"\",IF('Standing Data'!$D$9<>\"Multi-academy Trust\",IF('Standing Data'!$D$15=B499,\"Error - counterparty with self\",\"\"),IF(N(ISNA(MATCH(B499,'Standing Data'!$E$49:$E$148,0)))<>0,\"\",\"Error - counterparty with self\")),\"\")","v":""},{"$f":"IF(C499<>\"\",VLOOKUP(C499,'CP IDs'!A$2:B$5122,2,FALSE),\"\")","v":""},null,{"$f":"IFERROR(VLOOKUP(C499,'CP IDs'!$A$2:$D$4422,4,FALSE),\"\")","v":""},"",null,null,null,null,null,null,null,null,null,null,null,null,null,null,null,null,null,null,null,null,null,null,null,null,null,null,null,null,null,null,null,null,null,null,null,null,null,null,null,null,null,null,null,null,-500000,500000,null,1,1,31,null,0,0,0,null,{"$f":"AND(B499=$C$9,'Standing Data'!$D$9<>\"Multi-academy Trust\")","v":{"$error":"#N/A"}}]
[{"$f":"IF(B500<>\"\",IF('Standing Data'!$D$9<>\"Multi-academy Trust\",IF('Standing Data'!$D$15=B500,\"Error - counterparty with self\",\"\"),IF(N(ISNA(MATCH(B500,'Standing Data'!$E$49:$E$148,0)))<>0,\"\",\"Error - counterparty with self\")),\"\")","v":""},{"$f":"IF(C500<>\"\",VLOOKUP(C500,'CP IDs'!A$2:B$5122,2,FALSE),\"\")","v":""},null,{"$f":"IFERROR(VLOOKUP(C500,'CP IDs'!$A$2:$D$4422,4,FALSE),\"\")","v":""},"",null,null,null,null,null,null,null,null,null,null,null,null,null,null,null,null,null,null,null,null,null,null,null,null,null,null,null,null,null,null,null,null,null,null,null,null,null,null,null,null,null,null,null,null,-500000,500000,null,1,1,31,null,0,0,0,null,{"$f":"AND(B500=$C$9,'Standing Data'!$D$9<>\"Multi-academy Trust\")","v":{"$error":"#N/A"}}]
[{"$f":"IF(B501<>\"\",IF('Standing Data'!$D$9<>\"Multi-academy Trust\",IF('Standing Data'!$D$15=B501,\"Error - counterparty with self\",\"\"),IF(N(ISNA(MATCH(B501,'Standing Data'!$E$49:$E$148,0)))<>0,\"\",\"Error - counterparty with self\")),\"\")","v":""},{"$f":"IF(C501<>\"\",VLOOKUP(C501,'CP IDs'!A$2:B$5122,2,FALSE),\"\")","v":""},null,{"$f":"IFERROR(VLOOKUP(C501,'CP IDs'!$A$2:$D$4422,4,FALSE),\"\")","v":""},"",null,null,null,null,null,null,null,null,null,null,null,null,null,null,null,null,null,null,null,null,null,null,null,null,null,null,null,null,null,null,null,null,null,null,null,null,null,null,null,null,null,null,null,null,-500000,500000,null,1,1,31,null,0,0,0,null,{"$f":"AND(B501=$C$9,'Standing Data'!$D$9<>\"Multi-academy Trust\")","v":{"$error":"#N/A"}}]
[{"$f":"IF(B502<>\"\",IF('Standing Data'!$D$9<>\"Multi-academy Trust\",IF('Standing Data'!$D$15=B502,\"Error - counterparty with self\",\"\"),IF(N(ISNA(MATCH(B502,'Standing Data'!$E$49:$E$148,0)))<>0,\"\",\"Error - counterparty with self\")),\"\")","v":""},{"$f":"IF(C502<>\"\",VLOOKUP(C502,'CP IDs'!A$2:B$5122,2,FALSE),\"\")","v":""},null,{"$f":"IFERROR(VLOOKUP(C502,'CP IDs'!$A$2:$D$4422,4,FALSE),\"\")","v":""},"",null,null,null,null,null,null,null,null,null,null,null,null,null,null,null,null,null,null,null,null,null,null,null,null,null,null,null,null,null,null,null,null,null,null,null,null,null,null,null,null,null,null,null,null,-500000,500000,null,1,1,31,null,0,0,0,null,{"$f":"AND(B502=$C$9,'Standing Data'!$D$9<>\"Multi-academy Trust\")","v":{"$error":"#N/A"}}]
[{"$f":"IF(B503<>\"\",IF('Standing Data'!$D$9<>\"Multi-academy Trust\",IF('Standing Data'!$D$15=B503,\"Error - counterparty with self\",\"\"),IF(N(ISNA(MATCH(B503,'Standing Data'!$E$49:$E$148,0)))<>0,\"\",\"Error - counterparty with self\")),\"\")","v":""},{"$f":"IF(C503<>\"\",VLOOKUP(C503,'CP IDs'!A$2:B$5122,2,FALSE),\"\")","v":""},null,{"$f":"IFERROR(VLOOKUP(C503,'CP IDs'!$A$2:$D$4422,4,FALSE),\"\")","v":""},"",null,null,null,null,null,null,null,null,null,null,null,null,null,null,null,null,null,null,null,null,null,null,null,null,null,null,null,null,null,null,null,null,null,null,null,null,null,null,null,null,null,null,null,null,-500000,500000,null,1,1,31,null,0,0,0,null,{"$f":"AND(B503=$C$9,'Standing Data'!$D$9<>\"Multi-academy Trust\")","v":{"$error":"#N/A"}}]
[{"$f":"IF(B504<>\"\",IF('Standing Data'!$D$9<>\"Multi-academy Trust\",IF('Standing Data'!$D$15=B504,\"Error - counterparty with self\",\"\"),IF(N(ISNA(MATCH(B504,'Standing Data'!$E$49:$E$148,0)))<>0,\"\",\"Error - counterparty with self\")),\"\")","v":""},{"$f":"IF(C504<>\"\",VLOOKUP(C504,'CP IDs'!A$2:B$5122,2,FALSE),\"\")","v":""},null,{"$f":"IFERROR(VLOOKUP(C504,'CP IDs'!$A$2:$D$4422,4,FALSE),\"\")","v":""},"",null,null,null,null,null,null,null,null,null,null,null,null,null,null,null,null,null,null,null,null,null,null,null,null,null,null,null,null,null,null,null,null,null,null,null,null,null,null,null,null,null,null,null,null,-500000,500000,null,1,1,31,null,0,0,0,null,{"$f":"AND(B504=$C$9,'Standing Data'!$D$9<>\"Multi-academy Trust\")","v":{"$error":"#N/A"}}]
[{"$f":"IF(B505<>\"\",IF('Standing Data'!$D$9<>\"Multi-academy Trust\",IF('Standing Data'!$D$15=B505,\"Error - counterparty with self\",\"\"),IF(N(ISNA(MATCH(B505,'Standing Data'!$E$49:$E$148,0)))<>0,\"\",\"Error - counterparty with self\")),\"\")","v":""},{"$f":"IF(C505<>\"\",VLOOKUP(C505,'CP IDs'!A$2:B$5122,2,FALSE),\"\")","v":""},null,{"$f":"IFERROR(VLOOKUP(C505,'CP IDs'!$A$2:$D$4422,4,FALSE),\"\")","v":""},"",null,null,null,null,null,null,null,null,null,null,null,null,null,null,null,null,null,null,null,null,null,null,null,null,null,null,null,null,null,null,null,null,null,null,null,null,null,null,null,null,null,null,null,null,-500000,500000,null,1,1,31,null,0,0,0,null,{"$f":"AND(B505=$C$9,'Standing Data'!$D$9<>\"Multi-academy Trust\")","v":{"$error":"#N/A"}}]
[{"$f":"IF(B506<>\"\",IF('Standing Data'!$D$9<>\"Multi-academy Trust\",IF('Standing Data'!$D$15=B506,\"Error - counterparty with self\",\"\"),IF(N(ISNA(MATCH(B506,'Standing Data'!$E$49:$E$148,0)))<>0,\"\",\"Error - counterparty with self\")),\"\")","v":""},{"$f":"IF(C506<>\"\",VLOOKUP(C506,'CP IDs'!A$2:B$5122,2,FALSE),\"\")","v":""},null,{"$f":"IFERROR(VLOOKUP(C506,'CP IDs'!$A$2:$D$4422,4,FALSE),\"\")","v":""},"",null,null,null,null,null,null,null,null,null,null,null,null,null,null,null,null,null,null,null,null,null,null,null,null,null,null,null,null,null,null,null,null,null,null,null,null,null,null,null,null,null,null,null,null,-500000,500000,null,1,1,31,null,0,0,0,null,{"$f":"AND(B506=$C$9,'Standing Data'!$D$9<>\"Multi-academy Trust\")","v":{"$error":"#N/A"}}]
[{"$f":"IF(B507<>\"\",IF('Standing Data'!$D$9<>\"Multi-academy Trust\",IF('Standing Data'!$D$15=B507,\"Error - counterparty with self\",\"\"),IF(N(ISNA(MATCH(B507,'Standing Data'!$E$49:$E$148,0)))<>0,\"\",\"Error - counterparty with self\")),\"\")","v":""},{"$f":"IF(C507<>\"\",VLOOKUP(C507,'CP IDs'!A$2:B$5122,2,FALSE),\"\")","v":""},null,{"$f":"IFERROR(VLOOKUP(C507,'CP IDs'!$A$2:$D$4422,4,FALSE),\"\")","v":""},"",null,null,null,null,null,null,null,null,null,null,null,null,null,null,null,null,null,null,null,null,null,null,null,null,null,null,null,null,null,null,null,null,null,null,null,null,null,null,null,null,null,null,null,null,-500000,500000,null,1,1,31,null,0,0,0,null,{"$f":"AND(B507=$C$9,'Standing Data'!$D$9<>\"Multi-academy Trust\")","v":{"$error":"#N/A"}}]
[{"$f":"IF(B508<>\"\",IF('Standing Data'!$D$9<>\"Multi-academy Trust\",IF('Standing Data'!$D$15=B508,\"Error - counterparty with self\",\"\"),IF(N(ISNA(MATCH(B508,'Standing Data'!$E$49:$E$148,0)))<>0,\"\",\"Error - counterparty with self\")),\"\")","v":""},{"$f":"IF(C508<>\"\",VLOOKUP(C508,'CP IDs'!A$2:B$5122,2,FALSE),\"\")","v":""},null,{"$f":"IFERROR(VLOOKUP(C508,'CP IDs'!$A$2:$D$4422,4,FALSE),\"\")","v":""},"",null,null,null,null,null,null,null,null,null,null,null,null,null,null,null,null,null,null,null,null,null,null,null,null,null,null,null,null,null,null,null,null,null,null,null,null,null,null,null,null,null,null,null,null,-500000,500000,null,1,1,31,null,0,0,0,null,{"$f":"AND(B508=$C$9,'Standing Data'!$D$9<>\"Multi-academy Trust\")","v":{"$error":"#N/A"}}]
[{"$f":"IF(B509<>\"\",IF('Standing Data'!$D$9<>\"Multi-academy Trust\",IF('Standing Data'!$D$15=B509,\"Error - counterparty with self\",\"\"),IF(N(ISNA(MATCH(B509,'Standing Data'!$E$49:$E$148,0)))<>0,\"\",\"Error - counterparty with self\")),\"\")","v":""},{"$f":"IF(C509<>\"\",VLOOKUP(C509,'CP IDs'!A$2:B$5122,2,FALSE),\"\")","v":""},null,{"$f":"IFERROR(VLOOKUP(C509,'CP IDs'!$A$2:$D$4422,4,FALSE),\"\")","v":""},"",null,null,null,null,null,null,null,null,null,null,null,null,null,null,null,null,null,null,null,null,null,null,null,null,null,null,null,null,null,null,null,null,null,null,null,null,null,null,null,null,null,null,null,null,-500000,500000,null,1,1,31,null,0,0,0,null,{"$f":"AND(B509=$C$9,'Standing Data'!$D$9<>\"Multi-academy Trust\")","v":{"$error":"#N/A"}}]
[{"$f":"IF(B510<>\"\",IF('Standing Data'!$D$9<>\"Multi-academy Trust\",IF('Standing Data'!$D$15=B510,\"Error - counterparty with self\",\"\"),IF(N(ISNA(MATCH(B510,'Standing Data'!$E$49:$E$148,0)))<>0,\"\",\"Error - counterparty with self\")),\"\")","v":""},{"$f":"IF(C510<>\"\",VLOOKUP(C510,'CP IDs'!A$2:B$5122,2,FALSE),\"\")","v":""},null,{"$f":"IFERROR(VLOOKUP(C510,'CP IDs'!$A$2:$D$4422,4,FALSE),\"\")","v":""},"",null,null,null,null,null,null,null,null,null,null,null,null,null,null,null,null,null,null,null,null,null,null,null,null,null,null,null,null,null,null,null,null,null,null,null,null,null,null,null,null,null,null,null,null,-500000,500000,null,1,1,31,null,0,0,0,null,{"$f":"AND(B510=$C$9,'Standing Data'!$D$9<>\"Multi-academy Trust\")","v":{"$error":"#N/A"}}]
[{"$f":"IF(B511<>\"\",IF('Standing Data'!$D$9<>\"Multi-academy Trust\",IF('Standing Data'!$D$15=B511,\"Error - counterparty with self\",\"\"),IF(N(ISNA(MATCH(B511,'Standing Data'!$E$49:$E$148,0)))<>0,\"\",\"Error - counterparty with self\")),\"\")","v":""},{"$f":"IF(C511<>\"\",VLOOKUP(C511,'CP IDs'!A$2:B$5122,2,FALSE),\"\")","v":""},null,{"$f":"IFERROR(VLOOKUP(C511,'CP IDs'!$A$2:$D$4422,4,FALSE),\"\")","v":""},"",null,null,null,null,null,null,null,null,null,null,null,null,null,null,null,null,null,null,null,null,null,null,null,null,null,null,null,null,null,null,null,null,null,null,null,null,null,null,null,null,null,null,null,null,-500000,500000,null,1,1,31,null,0,0,0,null,{"$f":"AND(B511=$C$9,'Standing Data'!$D$9<>\"Multi-academy Trust\")","v":{"$error":"#N/A"}}]
[{"$f":"IF(B512<>\"\",IF('Standing Data'!$D$9<>\"Multi-academy Trust\",IF('Standing Data'!$D$15=B512,\"Error - counterparty with self\",\"\"),IF(N(ISNA(MATCH(B512,'Standing Data'!$E$49:$E$148,0)))<>0,\"\",\"Error - counterparty with self\")),\"\")","v":""},{"$f":"IF(C512<>\"\",VLOOKUP(C512,'CP IDs'!A$2:B$5122,2,FALSE),\"\")","v":""},null,{"$f":"IFERROR(VLOOKUP(C512,'CP IDs'!$A$2:$D$4422,4,FALSE),\"\")","v":""},"",null,null,null,null,null,null,null,null,null,null,null,null,null,null,null,null,null,null,null,null,null,null,null,null,null,null,null,null,null,null,null,null,null,null,null,null,null,null,null,null,null,null,null,null,-500000,500000,null,1,1,31,null,0,0,0,null,{"$f":"AND(B512=$C$9,'Standing Data'!$D$9<>\"Multi-academy Trust\")","v":{"$error":"#N/A"}}]
[{"$f":"IF(B513<>\"\",IF('Standing Data'!$D$9<>\"Multi-academy Trust\",IF('Standing Data'!$D$15=B513,\"Error - counterparty with self\",\"\"),IF(N(ISNA(MATCH(B513,'Standing Data'!$E$49:$E$148,0)))<>0,\"\",\"Error - counterparty with self\")),\"\")","v":""},{"$f":"IF(C513<>\"\",VLOOKUP(C513,'CP IDs'!A$2:B$5122,2,FALSE),\"\")","v":""},null,{"$f":"IFERROR(VLOOKUP(C513,'CP IDs'!$A$2:$D$4422,4,FALSE),\"\")","v":""},"",null,null,null,null,null,null,null,null,null,null,null,null,null,null,null,null,null,null,null,null,null,null,null,null,null,null,null,null,null,null,null,null,null,null,null,null,null,null,null,null,null,null,null,null,-500000,500000,null,1,1,31,null,0,0,0,null,{"$f":"AND(B513=$C$9,'Standing Data'!$D$9<>\"Multi-academy Trust\")","v":{"$error":"#N/A"}}]
[{"$f":"IF(B514<>\"\",IF('Standing Data'!$D$9<>\"Multi-academy Trust\",IF('Standing Data'!$D$15=B514,\"Error - counterparty with self\",\"\"),IF(N(ISNA(MATCH(B514,'Standing Data'!$E$49:$E$148,0)))<>0,\"\",\"Error - counterparty with self\")),\"\")","v":""},{"$f":"IF(C514<>\"\",VLOOKUP(C514,'CP IDs'!A$2:B$5122,2,FALSE),\"\")","v":""},null,{"$f":"IFERROR(VLOOKUP(C514,'CP IDs'!$A$2:$D$4422,4,FALSE),\"\")","v":""},"",null,null,null,null,null,null,null,null,null,null,null,null,null,null,null,null,null,null,null,null,null,null,null,null,null,null,null,null,null,null,null,null,null,null,null,null,null,null,null,null,null,null,null,null,-500000,500000,null,1,1,31,null,0,0,0,null,{"$f":"AND(B514=$C$9,'Standing Data'!$D$9<>\"Multi-academy Trust\")","v":{"$error":"#N/A"}}]
[{"$f":"IF(B515<>\"\",IF('Standing Data'!$D$9<>\"Multi-academy Trust\",IF('Standing Data'!$D$15=B515,\"Error - counterparty with self\",\"\"),IF(N(ISNA(MATCH(B515,'Standing Data'!$E$49:$E$148,0)))<>0,\"\",\"Error - counterparty with self\")),\"\")","v":""},{"$f":"IF(C515<>\"\",VLOOKUP(C515,'CP IDs'!A$2:B$5122,2,FALSE),\"\")","v":""},null,{"$f":"IFERROR(VLOOKUP(C515,'CP IDs'!$A$2:$D$4422,4,FALSE),\"\")","v":""},"",null,null,null,null,null,null,null,null,null,null,null,null,null,null,null,null,null,null,null,null,null,null,null,null,null,null,null,null,null,null,null,null,null,null,null,null,null,null,null,null,null,null,null,null,-500000,500000,null,1,1,31,null,0,0,0,null,{"$f":"AND(B515=$C$9,'Standing Data'!$D$9<>\"Multi-academy Trust\")","v":{"$error":"#N/A"}}]
[{"$f":"IF(B516<>\"\",IF('Standing Data'!$D$9<>\"Multi-academy Trust\",IF('Standing Data'!$D$15=B516,\"Error - counterparty with self\",\"\"),IF(N(ISNA(MATCH(B516,'Standing Data'!$E$49:$E$148,0)))<>0,\"\",\"Error - counterparty with self\")),\"\")","v":""},{"$f":"IF(C516<>\"\",VLOOKUP(C516,'CP IDs'!A$2:B$5122,2,FALSE),\"\")","v":""},null,{"$f":"IFERROR(VLOOKUP(C516,'CP IDs'!$A$2:$D$4422,4,FALSE),\"\")","v":""},"",null,null,null,null,null,null,null,null,null,null,null,null,null,null,null,null,null,null,null,null,null,null,null,null,null,null,null,null,null,null,null,null,null,null,null,null,null,null,null,null,null,null,null,null,-500000,500000,null,1,1,31,null,0,0,0,null,{"$f":"AND(B516=$C$9,'Standing Data'!$D$9<>\"Multi-academy Trust\")","v":{"$error":"#N/A"}}]
[{"$f":"IF(B517<>\"\",IF('Standing Data'!$D$9<>\"Multi-academy Trust\",IF('Standing Data'!$D$15=B517,\"Error - counterparty with self\",\"\"),IF(N(ISNA(MATCH(B517,'Standing Data'!$E$49:$E$148,0)))<>0,\"\",\"Error - counterparty with self\")),\"\")","v":""},{"$f":"IF(C517<>\"\",VLOOKUP(C517,'CP IDs'!A$2:B$5122,2,FALSE),\"\")","v":""},null,{"$f":"IFERROR(VLOOKUP(C517,'CP IDs'!$A$2:$D$4422,4,FALSE),\"\")","v":""},"",null,null,null,null,null,null,null,null,null,null,null,null,null,null,null,null,null,null,null,null,null,null,null,null,null,null,null,null,null,null,null,null,null,null,null,null,null,null,null,null,null,null,null,null,-500000,500000,null,1,1,31,null,0,0,0,null,{"$f":"AND(B517=$C$9,'Standing Data'!$D$9<>\"Multi-academy Trust\")","v":{"$error":"#N/A"}}]
[{"$f":"IF(B518<>\"\",IF('Standing Data'!$D$9<>\"Multi-academy Trust\",IF('Standing Data'!$D$15=B518,\"Error - counterparty with self\",\"\"),IF(N(ISNA(MATCH(B518,'Standing Data'!$E$49:$E$148,0)))<>0,\"\",\"Error - counterparty with self\")),\"\")","v":""},{"$f":"IF(C518<>\"\",VLOOKUP(C518,'CP IDs'!A$2:B$5122,2,FALSE),\"\")","v":""},null,{"$f":"IFERROR(VLOOKUP(C518,'CP IDs'!$A$2:$D$4422,4,FALSE),\"\")","v":""},"",null,null,null,null,null,null,null,null,null,null,null,null,null,null,null,null,null,null,null,null,null,null,null,null,null,null,null,null,null,null,null,null,null,null,null,null,null,null,null,null,null,null,null,null,-500000,500000,null,1,1,31,null,0,0,0,null,{"$f":"AND(B518=$C$9,'Standing Data'!$D$9<>\"Multi-academy Trust\")","v":{"$error":"#N/A"}}]
[{"$f":"IF(B519<>\"\",IF('Standing Data'!$D$9<>\"Multi-academy Trust\",IF('Standing Data'!$D$15=B519,\"Error - counterparty with self\",\"\"),IF(N(ISNA(MATCH(B519,'Standing Data'!$E$49:$E$148,0)))<>0,\"\",\"Error - counterparty with self\")),\"\")","v":""},{"$f":"IF(C519<>\"\",VLOOKUP(C519,'CP IDs'!A$2:B$5122,2,FALSE),\"\")","v":""},null,{"$f":"IFERROR(VLOOKUP(C519,'CP IDs'!$A$2:$D$4422,4,FALSE),\"\")","v":""},"",null,null,null,null,null,null,null,null,null,null,null,null,null,null,null,null,null,null,null,null,null,null,null,null,null,null,null,null,null,null,null,null,null,null,null,null,null,null,null,null,null,null,null,null,-500000,500000,null,1,1,31,null,0,0,0,null,{"$f":"AND(B519=$C$9,'Standing Data'!$D$9<>\"Multi-academy Trust\")","v":{"$error":"#N/A"}}]
[{"$f":"IF(B520<>\"\",IF('Standing Data'!$D$9<>\"Multi-academy Trust\",IF('Standing Data'!$D$15=B520,\"Error - counterparty with self\",\"\"),IF(N(ISNA(MATCH(B520,'Standing Data'!$E$49:$E$148,0)))<>0,\"\",\"Error - counterparty with self\")),\"\")","v":""},{"$f":"IF(C520<>\"\",VLOOKUP(C520,'CP IDs'!A$2:B$5122,2,FALSE),\"\")","v":""},null,{"$f":"IFERROR(VLOOKUP(C520,'CP IDs'!$A$2:$D$4422,4,FALSE),\"\")","v":""},"",null,null,null,null,null,null,null,null,null,null,null,null,null,null,null,null,null,null,null,null,null,null,null,null,null,null,null,null,null,null,null,null,null,null,null,null,null,null,null,null,null,null,null,null,-500000,500000,null,1,1,31,null,0,0,0,null,{"$f":"AND(B520=$C$9,'Standing Data'!$D$9<>\"Multi-academy Trust\")","v":{"$error":"#N/A"}}]
[{"$f":"IF(B521<>\"\",IF('Standing Data'!$D$9<>\"Multi-academy Trust\",IF('Standing Data'!$D$15=B521,\"Error - counterparty with self\",\"\"),IF(N(ISNA(MATCH(B521,'Standing Data'!$E$49:$E$148,0)))<>0,\"\",\"Error - counterparty with self\")),\"\")","v":""},{"$f":"IF(C521<>\"\",VLOOKUP(C521,'CP IDs'!A$2:B$5122,2,FALSE),\"\")","v":""},null,{"$f":"IFERROR(VLOOKUP(C521,'CP IDs'!$A$2:$D$4422,4,FALSE),\"\")","v":""},"",null,null,null,null,null,null,null,null,null,null,null,null,null,null,null,null,null,null,null,null,null,null,null,null,null,null,null,null,null,null,null,null,null,null,null,null,null,null,null,null,null,null,null,null,-500000,500000,null,1,1,31,null,0,0,0,null,{"$f":"AND(B521=$C$9,'Standing Data'!$D$9<>\"Multi-academy Trust\")","v":{"$error":"#N/A"}}]
[{"$f":"IF(B522<>\"\",IF('Standing Data'!$D$9<>\"Multi-academy Trust\",IF('Standing Data'!$D$15=B522,\"Error - counterparty with self\",\"\"),IF(N(ISNA(MATCH(B522,'Standing Data'!$E$49:$E$148,0)))<>0,\"\",\"Error - counterparty with self\")),\"\")","v":""},{"$f":"IF(C522<>\"\",VLOOKUP(C522,'CP IDs'!A$2:B$5122,2,FALSE),\"\")","v":""},null,{"$f":"IFERROR(VLOOKUP(C522,'CP IDs'!$A$2:$D$4422,4,FALSE),\"\")","v":""},"",null,null,null,null,null,null,null,null,null,null,null,null,null,null,null,null,null,null,null,null,null,null,null,null,null,null,null,null,null,null,null,null,null,null,null,null,null,null,null,null,null,null,null,null,-500000,500000,null,1,1,31,null,0,0,0,null,{"$f":"AND(B522=$C$9,'Standing Data'!$D$9<>\"Multi-academy Trust\")","v":{"$error":"#N/A"}}]
[{"$f":"IF(B523<>\"\",IF('Standing Data'!$D$9<>\"Multi-academy Trust\",IF('Standing Data'!$D$15=B523,\"Error - counterparty with self\",\"\"),IF(N(ISNA(MATCH(B523,'Standing Data'!$E$49:$E$148,0)))<>0,\"\",\"Error - counterparty with self\")),\"\")","v":""},{"$f":"IF(C523<>\"\",VLOOKUP(C523,'CP IDs'!A$2:B$5122,2,FALSE),\"\")","v":""},null,{"$f":"IFERROR(VLOOKUP(C523,'CP IDs'!$A$2:$D$4422,4,FALSE),\"\")","v":""},"",null,null,null,null,null,null,null,null,null,null,null,null,null,null,null,null,null,null,null,null,null,null,null,null,null,null,null,null,null,null,null,null,null,null,null,null,null,null,null,null,null,null,null,null,-500000,500000,null,1,1,31,null,0,0,0,null,{"$f":"AND(B523=$C$9,'Standing Data'!$D$9<>\"Multi-academy Trust\")","v":{"$error":"#N/A"}}]
[{"$f":"IF(B524<>\"\",IF('Standing Data'!$D$9<>\"Multi-academy Trust\",IF('Standing Data'!$D$15=B524,\"Error - counterparty with self\",\"\"),IF(N(ISNA(MATCH(B524,'Standing Data'!$E$49:$E$148,0)))<>0,\"\",\"Error - counterparty with self\")),\"\")","v":""},{"$f":"IF(C524<>\"\",VLOOKUP(C524,'CP IDs'!A$2:B$5122,2,FALSE),\"\")","v":""},null,{"$f":"IFERROR(VLOOKUP(C524,'CP IDs'!$A$2:$D$4422,4,FALSE),\"\")","v":""},"",null,null,null,null,null,null,null,null,null,null,null,null,null,null,null,null,null,null,null,null,null,null,null,null,null,null,null,null,null,null,null,null,null,null,null,null,null,null,null,null,null,null,null,null,-500000,500000,null,1,1,31,null,0,0,0,null,{"$f":"AND(B524=$C$9,'Standing Data'!$D$9<>\"Multi-academy Trust\")","v":{"$error":"#N/A"}}]
[{"$f":"IF(B525<>\"\",IF('Standing Data'!$D$9<>\"Multi-academy Trust\",IF('Standing Data'!$D$15=B525,\"Error - counterparty with self\",\"\"),IF(N(ISNA(MATCH(B525,'Standing Data'!$E$49:$E$148,0)))<>0,\"\",\"Error - counterparty with self\")),\"\")","v":""},{"$f":"IF(C525<>\"\",VLOOKUP(C525,'CP IDs'!A$2:B$5122,2,FALSE),\"\")","v":""},null,{"$f":"IFERROR(VLOOKUP(C525,'CP IDs'!$A$2:$D$4422,4,FALSE),\"\")","v":""},"",null,null,null,null,null,null,null,null,null,null,null,null,null,null,null,null,null,null,null,null,null,null,null,null,null,null,null,null,null,null,null,null,null,null,null,null,null,null,null,null,null,null,null,null,-500000,500000,null,1,1,31,null,0,0,0,null,{"$f":"AND(B525=$C$9,'Standing Data'!$D$9<>\"Multi-academy Trust\")","v":{"$error":"#N/A"}}]
[{"$f":"IF(B526<>\"\",IF('Standing Data'!$D$9<>\"Multi-academy Trust\",IF('Standing Data'!$D$15=B526,\"Error - counterparty with self\",\"\"),IF(N(ISNA(MATCH(B526,'Standing Data'!$E$49:$E$148,0)))<>0,\"\",\"Error - counterparty with self\")),\"\")","v":""},{"$f":"IF(C526<>\"\",VLOOKUP(C526,'CP IDs'!A$2:B$5122,2,FALSE),\"\")","v":""},null,{"$f":"IFERROR(VLOOKUP(C526,'CP IDs'!$A$2:$D$4422,4,FALSE),\"\")","v":""},"",null,null,null,null,null,null,null,null,null,null,null,null,null,null,null,null,null,null,null,null,null,null,null,null,null,null,null,null,null,null,null,null,null,null,null,null,null,null,null,null,null,null,null,null,-500000,500000,null,1,1,31,null,0,0,0,null,{"$f":"AND(B526=$C$9,'Standing Data'!$D$9<>\"Multi-academy Trust\")","v":{"$error":"#N/A"}}]
[{"$f":"IF(B527<>\"\",IF('Standing Data'!$D$9<>\"Multi-academy Trust\",IF('Standing Data'!$D$15=B527,\"Error - counterparty with self\",\"\"),IF(N(ISNA(MATCH(B527,'Standing Data'!$E$49:$E$148,0)))<>0,\"\",\"Error - counterparty with self\")),\"\")","v":""},{"$f":"IF(C527<>\"\",VLOOKUP(C527,'CP IDs'!A$2:B$5122,2,FALSE),\"\")","v":""},null,{"$f":"IFERROR(VLOOKUP(C527,'CP IDs'!$A$2:$D$4422,4,FALSE),\"\")","v":""},"",null,null,null,null,null,null,null,null,null,null,null,null,null,null,null,null,null,null,null,null,null,null,null,null,null,null,null,null,null,null,null,null,null,null,null,null,null,null,null,null,null,null,null,null,-500000,500000,null,1,1,31,null,0,0,0,null,{"$f":"AND(B527=$C$9,'Standing Data'!$D$9<>\"Multi-academy Trust\")","v":{"$error":"#N/A"}}]
[{"$f":"IF(B528<>\"\",IF('Standing Data'!$D$9<>\"Multi-academy Trust\",IF('Standing Data'!$D$15=B528,\"Error - counterparty with self\",\"\"),IF(N(ISNA(MATCH(B528,'Standing Data'!$E$49:$E$148,0)))<>0,\"\",\"Error - counterparty with self\")),\"\")","v":""},{"$f":"IF(C528<>\"\",VLOOKUP(C528,'CP IDs'!A$2:B$5122,2,FALSE),\"\")","v":""},null,{"$f":"IFERROR(VLOOKUP(C528,'CP IDs'!$A$2:$D$4422,4,FALSE),\"\")","v":""},"",null,null,null,null,null,null,null,null,null,null,null,null,null,null,null,null,null,null,null,null,null,null,null,null,null,null,null,null,null,null,null,null,null,null,null,null,null,null,null,null,null,null,null,null,-500000,500000,null,1,1,31,null,0,0,0,null,{"$f":"AND(B528=$C$9,'Standing Data'!$D$9<>\"Multi-academy Trust\")","v":{"$error":"#N/A"}}]
[{"$f":"IF(B529<>\"\",IF('Standing Data'!$D$9<>\"Multi-academy Trust\",IF('Standing Data'!$D$15=B529,\"Error - counterparty with self\",\"\"),IF(N(ISNA(MATCH(B529,'Standing Data'!$E$49:$E$148,0)))<>0,\"\",\"Error - counterparty with self\")),\"\")","v":""},{"$f":"IF(C529<>\"\",VLOOKUP(C529,'CP IDs'!A$2:B$5122,2,FALSE),\"\")","v":""},null,{"$f":"IFERROR(VLOOKUP(C529,'CP IDs'!$A$2:$D$4422,4,FALSE),\"\")","v":""},"",null,null,null,null,null,null,null,null,null,null,null,null,null,null,null,null,null,null,null,null,null,null,null,null,null,null,null,null,null,null,null,null,null,null,null,null,null,null,null,null,null,null,null,null,-500000,500000,null,1,1,31,null,0,0,0,null,{"$f":"AND(B529=$C$9,'Standing Data'!$D$9<>\"Multi-academy Trust\")","v":{"$error":"#N/A"}}]
[{"$f":"IF(B530<>\"\",IF('Standing Data'!$D$9<>\"Multi-academy Trust\",IF('Standing Data'!$D$15=B530,\"Error - counterparty with self\",\"\"),IF(N(ISNA(MATCH(B530,'Standing Data'!$E$49:$E$148,0)))<>0,\"\",\"Error - counterparty with self\")),\"\")","v":""},{"$f":"IF(C530<>\"\",VLOOKUP(C530,'CP IDs'!A$2:B$5122,2,FALSE),\"\")","v":""},null,{"$f":"IFERROR(VLOOKUP(C530,'CP IDs'!$A$2:$D$4422,4,FALSE),\"\")","v":""},"",null,null,null,null,null,null,null,null,null,null,null,null,null,null,null,null,null,null,null,null,null,null,null,null,null,null,null,null,null,null,null,null,null,null,null,null,null,null,null,null,null,null,null,null,-500000,500000,null,1,1,31,null,0,0,0,null,{"$f":"AND(B530=$C$9,'Standing Data'!$D$9<>\"Multi-academy Trust\")","v":{"$error":"#N/A"}}]
[{"$f":"IF(B531<>\"\",IF('Standing Data'!$D$9<>\"Multi-academy Trust\",IF('Standing Data'!$D$15=B531,\"Error - counterparty with self\",\"\"),IF(N(ISNA(MATCH(B531,'Standing Data'!$E$49:$E$148,0)))<>0,\"\",\"Error - counterparty with self\")),\"\")","v":""},{"$f":"IF(C531<>\"\",VLOOKUP(C531,'CP IDs'!A$2:B$5122,2,FALSE),\"\")","v":""},null,{"$f":"IFERROR(VLOOKUP(C531,'CP IDs'!$A$2:$D$4422,4,FALSE),\"\")","v":""},"",null,null,null,null,null,null,null,null,null,null,null,null,null,null,null,null,null,null,null,null,null,null,null,null,null,null,null,null,null,null,null,null,null,null,null,null,null,null,null,null,null,null,null,null,-500000,500000,null,1,1,31,null,0,0,0,null,{"$f":"AND(B531=$C$9,'Standing Data'!$D$9<>\"Multi-academy Trust\")","v":{"$error":"#N/A"}}]
[{"$f":"IF(B532<>\"\",IF('Standing Data'!$D$9<>\"Multi-academy Trust\",IF('Standing Data'!$D$15=B532,\"Error - counterparty with self\",\"\"),IF(N(ISNA(MATCH(B532,'Standing Data'!$E$49:$E$148,0)))<>0,\"\",\"Error - counterparty with self\")),\"\")","v":""},{"$f":"IF(C532<>\"\",VLOOKUP(C532,'CP IDs'!A$2:B$5122,2,FALSE),\"\")","v":""},null,{"$f":"IFERROR(VLOOKUP(C532,'CP IDs'!$A$2:$D$4422,4,FALSE),\"\")","v":""},"",null,null,null,null,null,null,null,null,null,null,null,null,null,null,null,null,null,null,null,null,null,null,null,null,null,null,null,null,null,null,null,null,null,null,null,null,null,null,null,null,null,null,null,null,-500000,500000,null,1,1,31,null,0,0,0,null,{"$f":"AND(B532=$C$9,'Standing Data'!$D$9<>\"Multi-academy Trust\")","v":{"$error":"#N/A"}}]
[{"$f":"IF(B533<>\"\",IF('Standing Data'!$D$9<>\"Multi-academy Trust\",IF('Standing Data'!$D$15=B533,\"Error - counterparty with self\",\"\"),IF(N(ISNA(MATCH(B533,'Standing Data'!$E$49:$E$148,0)))<>0,\"\",\"Error - counterparty with self\")),\"\")","v":""},{"$f":"IF(C533<>\"\",VLOOKUP(C533,'CP IDs'!A$2:B$5122,2,FALSE),\"\")","v":""},null,{"$f":"IFERROR(VLOOKUP(C533,'CP IDs'!$A$2:$D$4422,4,FALSE),\"\")","v":""},"",null,null,null,null,null,null,null,null,null,null,null,null,null,null,null,null,null,null,null,null,null,null,null,null,null,null,null,null,null,null,null,null,null,null,null,null,null,null,null,null,null,null,null,null,-500000,500000,null,1,1,31,null,0,0,{"$f":"COUNT(F533:AT533)","v":0},null,{"$f":"AND(B533=$C$9,'Standing Data'!$D$9<>\"Multi-academy Trust\")","v":{"$error":"#N/A"}}]
[{"$f":"IF(B534<>\"\",IF('Standing Data'!$D$9<>\"Multi-academy Trust\",IF('Standing Data'!$D$15=B534,\"Error - counterparty with self\",\"\"),IF(N(ISNA(MATCH(B534,'Standing Data'!$E$49:$E$148,0)))<>0,\"\",\"Error - counterparty with self\")),\"\")","v":""},{"$f":"IF(C534<>\"\",VLOOKUP(C534,'CP IDs'!A$2:B$5122,2,FALSE),\"\")","v":""},null,{"$f":"IFERROR(VLOOKUP(C534,'CP IDs'!$A$2:$D$4422,4,FALSE),\"\")","v":""},"",null,null,null,null,null,null,null,null,null,null,null,null,null,null,null,null,null,null,null,null,null,null,null,null,null,null,null,null,null,null,null,null,null,null,null,null,null,null,null,null,null,null,null,null,-500000,500000,null,1,1,31,null,0,0,0,null,{"$f":"AND(B534=$C$9,'Standing Data'!$D$9<>\"Multi-academy Trust\")","v":{"$error":"#N/A"}}]
[{"$f":"IF(B535<>\"\",IF('Standing Data'!$D$9<>\"Multi-academy Trust\",IF('Standing Data'!$D$15=B535,\"Error - counterparty with self\",\"\"),IF(N(ISNA(MATCH(B535,'Standing Data'!$E$49:$E$148,0)))<>0,\"\",\"Error - counterparty with self\")),\"\")","v":""},{"$f":"IF(C535<>\"\",VLOOKUP(C535,'CP IDs'!A$2:B$5122,2,FALSE),\"\")","v":""},null,{"$f":"IFERROR(VLOOKUP(C535,'CP IDs'!$A$2:$D$4422,4,FALSE),\"\")","v":""},"",null,null,null,null,null,null,null,null,null,null,null,null,null,null,null,null,null,null,null,null,null,null,null,null,null,null,null,null,null,null,null,null,null,null,null,null,null,null,null,null,null,null,null,null,{"$f":"AX534","v":-500000},{"$f":"AY534","v":500000},null,1,1,31,null,0,0,0,null,{"$f":"AND(B535=$C$9,'Standing Data'!$D$9<>\"Multi-academy Trust\")","v":{"$error":"#N/A"}}]
[{"$f":"IF(B536<>\"\",IF('Standing Data'!$D$9<>\"Multi-academy Trust\",IF('Standing Data'!$D$15=B536,\"Error - counterparty with self\",\"\"),IF(N(ISNA(MATCH(B536,'Standing Data'!$E$49:$E$148,0)))<>0,\"\",\"Error - counterparty with self\")),\"\")","v":""},{"$f":"IF(C536<>\"\",VLOOKUP(C536,'CP IDs'!A$2:B$5122,2,FALSE),\"\")","v":""},null,{"$f":"IFERROR(VLOOKUP(C536,'CP IDs'!$A$2:$D$4422,4,FALSE),\"\")","v":""},"",null,null,null,null,null,null,null,null,null,null,null,null,null,null,null,null,null,null,null,null,null,null,null,null,null,null,null,null,null,null,null,null,null,null,null,null,null,null,null,null,null,null,null,null,-500000,500000,null,1,1,31,null,0,0,0,null,{"$f":"AND(B536=$C$9,'Standing Data'!$D$9<>\"Multi-academy Trust\")","v":{"$error":"#N/A"}}]
[{"$f":"IF(B537<>\"\",IF('Standing Data'!$D$9<>\"Multi-academy Trust\",IF('Standing Data'!$D$15=B537,\"Error - counterparty with self\",\"\"),IF(N(ISNA(MATCH(B537,'Standing Data'!$E$49:$E$148,0)))<>0,\"\",\"Error - counterparty with self\")),\"\")","v":""},{"$f":"IF(C537<>\"\",VLOOKUP(C537,'CP IDs'!A$2:B$5122,2,FALSE),\"\")","v":""},null,{"$f":"IFERROR(VLOOKUP(C537,'CP IDs'!$A$2:$D$4422,4,FALSE),\"\")","v":""},"",null,null,null,null,null,null,null,null,null,null,null,null,null,null,null,null,null,null,null,null,null,null,null,null,null,null,null,null,null,null,null,null,null,null,null,null,null,null,null,null,null,null,null,null,-500000,500000,null,1,1,31,null,0,0,0,null,{"$f":"AND(B537=$C$9,'Standing Data'!$D$9<>\"Multi-academy Trust\")","v":{"$error":"#N/A"}}]
[{"$f":"IF(B538<>\"\",IF('Standing Data'!$D$9<>\"Multi-academy Trust\",IF('Standing Data'!$D$15=B538,\"Error - counterparty with self\",\"\"),IF(N(ISNA(MATCH(B538,'Standing Data'!$E$49:$E$148,0)))<>0,\"\",\"Error - counterparty with self\")),\"\")","v":""},{"$f":"IF(C538<>\"\",VLOOKUP(C538,'CP IDs'!A$2:B$5122,2,FALSE),\"\")","v":""},null,{"$f":"IFERROR(VLOOKUP(C538,'CP IDs'!$A$2:$D$4422,4,FALSE),\"\")","v":""},"",null,null,null,null,null,null,null,null,null,null,null,null,null,null,null,null,null,null,null,null,null,null,null,null,null,null,null,null,null,null,null,null,null,null,null,null,null,null,null,null,null,null,null,null,-500000,500000,null,1,1,31,null,0,0,0,null,{"$f":"AND(B538=$C$9,'Standing Data'!$D$9<>\"Multi-academy Trust\")","v":{"$error":"#N/A"}}]
[{"$f":"IF(B539<>\"\",IF('Standing Data'!$D$9<>\"Multi-academy Trust\",IF('Standing Data'!$D$15=B539,\"Error - counterparty with self\",\"\"),IF(N(ISNA(MATCH(B539,'Standing Data'!$E$49:$E$148,0)))<>0,\"\",\"Error - counterparty with self\")),\"\")","v":""},{"$f":"IF(C539<>\"\",VLOOKUP(C539,'CP IDs'!A$2:B$5122,2,FALSE),\"\")","v":""},null,{"$f":"IFERROR(VLOOKUP(C539,'CP IDs'!$A$2:$D$4422,4,FALSE),\"\")","v":""},"",null,null,null,null,null,null,null,null,null,null,null,null,null,null,null,null,null,null,null,null,null,null,null,null,null,null,null,null,null,null,null,null,null,null,null,null,null,null,null,null,null,null,null,null,-500000,500000,null,1,1,31,null,0,0,0,null,{"$f":"AND(B539=$C$9,'Standing Data'!$D$9<>\"Multi-academy Trust\")","v":{"$error":"#N/A"}}]
[{"$f":"IF(B540<>\"\",IF('Standing Data'!$D$9<>\"Multi-academy Trust\",IF('Standing Data'!$D$15=B540,\"Error - counterparty with self\",\"\"),IF(N(ISNA(MATCH(B540,'Standing Data'!$E$49:$E$148,0)))<>0,\"\",\"Error - counterparty with self\")),\"\")","v":""},{"$f":"IF(C540<>\"\",VLOOKUP(C540,'CP IDs'!A$2:B$5122,2,FALSE),\"\")","v":""},null,{"$f":"IFERROR(VLOOKUP(C540,'CP IDs'!$A$2:$D$4422,4,FALSE),\"\")","v":""},"",null,null,null,null,null,null,null,null,null,null,null,null,null,null,null,null,null,null,null,null,null,null,null,null,null,null,null,null,null,null,null,null,null,null,null,null,null,null,null,null,null,null,null,null,-500000,500000,null,1,1,31,null,0,0,0,null,{"$f":"AND(B540=$C$9,'Standing Data'!$D$9<>\"Multi-academy Trust\")","v":{"$error":"#N/A"}}]
[{"$f":"IF(B541<>\"\",IF('Standing Data'!$D$9<>\"Multi-academy Trust\",IF('Standing Data'!$D$15=B541,\"Error - counterparty with self\",\"\"),IF(N(ISNA(MATCH(B541,'Standing Data'!$E$49:$E$148,0)))<>0,\"\",\"Error - counterparty with self\")),\"\")","v":""},{"$f":"IF(C541<>\"\",VLOOKUP(C541,'CP IDs'!A$2:B$5122,2,FALSE),\"\")","v":""},null,{"$f":"IFERROR(VLOOKUP(C541,'CP IDs'!$A$2:$D$4422,4,FALSE),\"\")","v":""},"",null,null,null,null,null,null,null,null,null,null,null,null,null,null,null,null,null,null,null,null,null,null,null,null,null,null,null,null,null,null,null,null,null,null,null,null,null,null,null,null,null,null,null,null,-500000,500000,null,1,1,31,null,0,0,0,null,{"$f":"AND(B541=$C$9,'Standing Data'!$D$9<>\"Multi-academy Trust\")","v":{"$error":"#N/A"}}]
[{"$f":"IF(B542<>\"\",IF('Standing Data'!$D$9<>\"Multi-academy Trust\",IF('Standing Data'!$D$15=B542,\"Error - counterparty with self\",\"\"),IF(N(ISNA(MATCH(B542,'Standing Data'!$E$49:$E$148,0)))<>0,\"\",\"Error - counterparty with self\")),\"\")","v":""},{"$f":"IF(C542<>\"\",VLOOKUP(C542,'CP IDs'!A$2:B$5122,2,FALSE),\"\")","v":""},null,{"$f":"IFERROR(VLOOKUP(C542,'CP IDs'!$A$2:$D$4422,4,FALSE),\"\")","v":""},"",null,null,null,null,null,null,null,null,null,null,null,null,null,null,null,null,null,null,null,null,null,null,null,null,null,null,null,null,null,null,null,null,null,null,null,null,null,null,null,null,null,null,null,null,-500000,500000,null,1,1,31,null,{"$f":"COUNTA(C542)","v":0},{"$f":"1-COUNTBLANK(B542)","v":0},0,null,{"$f":"AND(B542=$C$9,'Standing Data'!$D$9<>\"Multi-academy Trust\")","v":{"$error":"#N/A"}}]
[{"$f":"IF(B543<>\"\",IF('Standing Data'!$D$9<>\"Multi-academy Trust\",IF('Standing Data'!$D$15=B543,\"Error - counterparty with self\",\"\"),IF(N(ISNA(MATCH(B543,'Standing Data'!$E$49:$E$148,0)))<>0,\"\",\"Error - counterparty with self\")),\"\")","v":""},{"$f":"IF(C543<>\"\",VLOOKUP(C543,'CP IDs'!A$2:B$5122,2,FALSE),\"\")","v":""},null,{"$f":"IFERROR(VLOOKUP(C543,'CP IDs'!$A$2:$D$4422,4,FALSE),\"\")","v":""},{"$f":"IF(OR(AND(COUNT(F543:AT543)>0,C543=\"\"),AND(COUNT(F543:AT543)=0,C543<>\"\")),\"Error - on line\",\"\")","v":""},null,null,null,null,null,null,null,null,null,null,null,null,null,null,null,null,null,null,null,null,null,null,null,null,null,null,null,null,null,null,null,null,null,null,null,null,null,null,null,null,null,null,null,null,-500000,500000,null,1,1,31,null,0,0,0,null,{"$f":"AND(B543=$C$9,'Standing Data'!$D$9<>\"Multi-academy Trust\")","v":{"$error":"#N/A"}}]
[{"$f":"IF(B544<>\"\",IF('Standing Data'!$D$9<>\"Multi-academy Trust\",IF('Standing Data'!$D$15=B544,\"Error - counterparty with self\",\"\"),IF(N(ISNA(MATCH(B544,'Standing Data'!$E$49:$E$148,0)))<>0,\"\",\"Error - counterparty with self\")),\"\")","v":""},{"$f":"IF(C544<>\"\",VLOOKUP(C544,'CP IDs'!A$2:B$5122,2,FALSE),\"\")","v":""},null,{"$f":"IFERROR(VLOOKUP(C544,'CP IDs'!$A$2:$D$4422,4,FALSE),\"\")","v":""},"",null,null,null,null,null,null,null,null,null,null,null,null,null,null,null,null,null,null,null,null,null,null,null,null,null,null,null,null,null,null,null,null,null,null,null,null,null,null,null,null,null,null,null,null,-500000,500000,null,1,1,31,null,0,0,0,null,{"$f":"AND(B544=$C$9,'Standing Data'!$D$9<>\"Multi-academy Trust\")","v":{"$error":"#N/A"}}]
[{"$f":"IF(B545<>\"\",IF('Standing Data'!$D$9<>\"Multi-academy Trust\",IF('Standing Data'!$D$15=B545,\"Error - counterparty with self\",\"\"),IF(N(ISNA(MATCH(B545,'Standing Data'!$E$49:$E$148,0)))<>0,\"\",\"Error - counterparty with self\")),\"\")","v":""},{"$f":"IF(C545<>\"\",VLOOKUP(C545,'CP IDs'!A$2:B$5122,2,FALSE),\"\")","v":""},null,{"$f":"IFERROR(VLOOKUP(C545,'CP IDs'!$A$2:$D$4422,4,FALSE),\"\")","v":""},"",null,null,null,null,null,null,null,null,null,null,null,null,null,null,null,null,null,null,null,null,null,null,null,null,null,null,null,null,null,null,null,null,null,null,null,null,null,null,null,null,null,null,null,null,-500000,500000,null,1,1,31,null,0,0,0,null,{"$f":"AND(B545=$C$9,'Standing Data'!$D$9<>\"Multi-academy Trust\")","v":{"$error":"#N/A"}}]
[{"$f":"IF(B546<>\"\",IF('Standing Data'!$D$9<>\"Multi-academy Trust\",IF('Standing Data'!$D$15=B546,\"Error - counterparty with self\",\"\"),IF(N(ISNA(MATCH(B546,'Standing Data'!$E$49:$E$148,0)))<>0,\"\",\"Error - counterparty with self\")),\"\")","v":""},{"$f":"IF(C546<>\"\",VLOOKUP(C546,'CP IDs'!A$2:B$5122,2,FALSE),\"\")","v":""},null,{"$f":"IFERROR(VLOOKUP(C546,'CP IDs'!$A$2:$D$4422,4,FALSE),\"\")","v":""},"",null,null,null,null,null,null,null,null,null,null,null,null,null,null,null,null,null,null,null,null,null,null,null,null,null,null,null,null,null,null,null,null,null,null,null,null,null,null,null,null,null,null,null,null,-500000,500000,null,1,1,31,null,0,0,0,null,{"$f":"AND(B546=$C$9,'Standing Data'!$D$9<>\"Multi-academy Trust\")","v":{"$error":"#N/A"}}]
[{"$f":"IF(B547<>\"\",IF('Standing Data'!$D$9<>\"Multi-academy Trust\",IF('Standing Data'!$D$15=B547,\"Error - counterparty with self\",\"\"),IF(N(ISNA(MATCH(B547,'Standing Data'!$E$49:$E$148,0)))<>0,\"\",\"Error - counterparty with self\")),\"\")","v":""},{"$f":"IF(C547<>\"\",VLOOKUP(C547,'CP IDs'!A$2:B$5122,2,FALSE),\"\")","v":""},null,{"$f":"IFERROR(VLOOKUP(C547,'CP IDs'!$A$2:$D$4422,4,FALSE),\"\")","v":""},"",null,null,null,null,null,null,null,null,null,null,null,null,null,null,null,null,null,null,null,null,null,null,null,null,null,null,null,null,null,null,null,null,null,null,null,null,null,null,null,null,null,null,null,null,-500000,500000,null,1,1,31,null,0,0,0,null,{"$f":"AND(B547=$C$9,'Standing Data'!$D$9<>\"Multi-academy Trust\")","v":{"$error":"#N/A"}}]
[{"$f":"IF(B548<>\"\",IF('Standing Data'!$D$9<>\"Multi-academy Trust\",IF('Standing Data'!$D$15=B548,\"Error - counterparty with self\",\"\"),IF(N(ISNA(MATCH(B548,'Standing Data'!$E$49:$E$148,0)))<>0,\"\",\"Error - counterparty with self\")),\"\")","v":""},{"$f":"IF(C548<>\"\",VLOOKUP(C548,'CP IDs'!A$2:B$5122,2,FALSE),\"\")","v":""},null,{"$f":"IFERROR(VLOOKUP(C548,'CP IDs'!$A$2:$D$4422,4,FALSE),\"\")","v":""},"",null,null,null,null,null,null,null,null,null,null,null,null,null,null,null,null,null,null,null,null,null,null,null,null,null,null,null,null,null,null,null,null,null,null,null,null,null,null,null,null,null,null,null,null,-500000,500000,null,1,1,31,null,0,0,0,null,{"$f":"AND(B548=$C$9,'Standing Data'!$D$9<>\"Multi-academy Trust\")","v":{"$error":"#N/A"}}]
[{"$f":"IF(B549<>\"\",IF('Standing Data'!$D$9<>\"Multi-academy Trust\",IF('Standing Data'!$D$15=B549,\"Error - counterparty with self\",\"\"),IF(N(ISNA(MATCH(B549,'Standing Data'!$E$49:$E$148,0)))<>0,\"\",\"Error - counterparty with self\")),\"\")","v":""},{"$f":"IF(C549<>\"\",VLOOKUP(C549,'CP IDs'!A$2:B$5122,2,FALSE),\"\")","v":""},null,{"$f":"IFERROR(VLOOKUP(C549,'CP IDs'!$A$2:$D$4422,4,FALSE),\"\")","v":""},"",null,null,null,null,null,null,null,null,null,null,null,null,null,null,null,null,null,null,null,null,null,null,null,null,null,null,null,null,null,null,null,null,null,null,null,null,null,null,null,null,null,null,null,null,-500000,500000,null,1,1,31,null,0,0,0,null,{"$f":"AND(B549=$C$9,'Standing Data'!$D$9<>\"Multi-academy Trust\")","v":{"$error":"#N/A"}}]
[{"$f":"IF(B550<>\"\",IF('Standing Data'!$D$9<>\"Multi-academy Trust\",IF('Standing Data'!$D$15=B550,\"Error - counterparty with self\",\"\"),IF(N(ISNA(MATCH(B550,'Standing Data'!$E$49:$E$148,0)))<>0,\"\",\"Error - counterparty with self\")),\"\")","v":""},{"$f":"IF(C550<>\"\",VLOOKUP(C550,'CP IDs'!A$2:B$5122,2,FALSE),\"\")","v":""},null,{"$f":"IFERROR(VLOOKUP(C550,'CP IDs'!$A$2:$D$4422,4,FALSE),\"\")","v":""},"",null,null,null,null,null,null,null,null,null,null,null,null,null,null,null,null,null,null,null,null,null,null,null,null,null,null,null,null,null,null,null,null,null,null,null,null,null,null,null,null,null,null,null,null,-500000,500000,null,1,1,31,null,0,0,0,null,{"$f":"AND(B550=$C$9,'Standing Data'!$D$9<>\"Multi-academy Trust\")","v":{"$error":"#N/A"}}]
[{"$f":"IF(B551<>\"\",IF('Standing Data'!$D$9<>\"Multi-academy Trust\",IF('Standing Data'!$D$15=B551,\"Error - counterparty with self\",\"\"),IF(N(ISNA(MATCH(B551,'Standing Data'!$E$49:$E$148,0)))<>0,\"\",\"Error - counterparty with self\")),\"\")","v":""},{"$f":"IF(C551<>\"\",VLOOKUP(C551,'CP IDs'!A$2:B$5122,2,FALSE),\"\")","v":""},null,{"$f":"IFERROR(VLOOKUP(C551,'CP IDs'!$A$2:$D$4422,4,FALSE),\"\")","v":""},"",null,null,null,null,null,null,null,null,null,null,null,null,null,null,null,null,null,null,null,null,null,null,null,null,null,null,null,null,null,null,null,null,null,null,null,null,null,null,null,null,null,null,null,null,-500000,500000,null,1,1,31,null,0,0,0,null,{"$f":"AND(B551=$C$9,'Standing Data'!$D$9<>\"Multi-academy Trust\")","v":{"$error":"#N/A"}}]
[{"$f":"IF(B552<>\"\",IF('Standing Data'!$D$9<>\"Multi-academy Trust\",IF('Standing Data'!$D$15=B552,\"Error - counterparty with self\",\"\"),IF(N(ISNA(MATCH(B552,'Standing Data'!$E$49:$E$148,0)))<>0,\"\",\"Error - counterparty with self\")),\"\")","v":""},{"$f":"IF(C552<>\"\",VLOOKUP(C552,'CP IDs'!A$2:B$5122,2,FALSE),\"\")","v":""},null,{"$f":"IFERROR(VLOOKUP(C552,'CP IDs'!$A$2:$D$4422,4,FALSE),\"\")","v":""},"",null,null,null,null,null,null,null,null,null,null,null,null,null,null,null,null,null,null,null,null,null,null,null,null,null,null,null,null,null,null,null,null,null,null,null,null,null,null,null,null,null,null,null,null,-500000,500000,null,1,1,31,null,0,0,0,null,{"$f":"AND(B552=$C$9,'Standing Data'!$D$9<>\"Multi-academy Trust\")","v":{"$error":"#N/A"}}]
[{"$f":"IF(B553<>\"\",IF('Standing Data'!$D$9<>\"Multi-academy Trust\",IF('Standing Data'!$D$15=B553,\"Error - counterparty with self\",\"\"),IF(N(ISNA(MATCH(B553,'Standing Data'!$E$49:$E$148,0)))<>0,\"\",\"Error - counterparty with self\")),\"\")","v":""},{"$f":"IF(C553<>\"\",VLOOKUP(C553,'CP IDs'!A$2:B$5122,2,FALSE),\"\")","v":""},null,{"$f":"IFERROR(VLOOKUP(C553,'CP IDs'!$A$2:$D$4422,4,FALSE),\"\")","v":""},"",null,null,null,null,null,null,null,null,null,null,null,null,null,null,null,null,null,null,null,null,null,null,null,null,null,null,null,null,null,null,null,null,null,null,null,null,null,null,null,null,null,null,null,null,-500000,500000,null,1,1,31,null,0,0,0,null,{"$f":"AND(B553=$C$9,'Standing Data'!$D$9<>\"Multi-academy Trust\")","v":{"$error":"#N/A"}}]
[{"$f":"IF(B554<>\"\",IF('Standing Data'!$D$9<>\"Multi-academy Trust\",IF('Standing Data'!$D$15=B554,\"Error - counterparty with self\",\"\"),IF(N(ISNA(MATCH(B554,'Standing Data'!$E$49:$E$148,0)))<>0,\"\",\"Error - counterparty with self\")),\"\")","v":""},{"$f":"IF(C554<>\"\",VLOOKUP(C554,'CP IDs'!A$2:B$5122,2,FALSE),\"\")","v":""},null,{"$f":"IFERROR(VLOOKUP(C554,'CP IDs'!$A$2:$D$4422,4,FALSE),\"\")","v":""},"",null,null,null,null,null,null,null,null,null,null,null,null,null,null,null,null,null,null,null,null,null,null,null,null,null,null,null,null,null,null,null,null,null,null,null,null,null,null,null,null,null,null,null,null,-500000,500000,null,1,1,31,null,0,0,0,null,{"$f":"AND(B554=$C$9,'Standing Data'!$D$9<>\"Multi-academy Trust\")","v":{"$error":"#N/A"}}]
[{"$f":"IF(B555<>\"\",IF('Standing Data'!$D$9<>\"Multi-academy Trust\",IF('Standing Data'!$D$15=B555,\"Error - counterparty with self\",\"\"),IF(N(ISNA(MATCH(B555,'Standing Data'!$E$49:$E$148,0)))<>0,\"\",\"Error - counterparty with self\")),\"\")","v":""},{"$f":"IF(C555<>\"\",VLOOKUP(C555,'CP IDs'!A$2:B$5122,2,FALSE),\"\")","v":""},null,{"$f":"IFERROR(VLOOKUP(C555,'CP IDs'!$A$2:$D$4422,4,FALSE),\"\")","v":""},"",null,null,null,null,null,null,null,null,null,null,null,null,null,null,null,null,null,null,null,null,null,null,null,null,null,null,null,null,null,null,null,null,null,null,null,null,null,null,null,null,null,null,null,null,-500000,500000,null,1,1,31,null,0,0,0,null,{"$f":"AND(B555=$C$9,'Standing Data'!$D$9<>\"Multi-academy Trust\")","v":{"$error":"#N/A"}}]
[{"$f":"IF(B556<>\"\",IF('Standing Data'!$D$9<>\"Multi-academy Trust\",IF('Standing Data'!$D$15=B556,\"Error - counterparty with self\",\"\"),IF(N(ISNA(MATCH(B556,'Standing Data'!$E$49:$E$148,0)))<>0,\"\",\"Error - counterparty with self\")),\"\")","v":""},{"$f":"IF(C556<>\"\",VLOOKUP(C556,'CP IDs'!A$2:B$5122,2,FALSE),\"\")","v":""},null,{"$f":"IFERROR(VLOOKUP(C556,'CP IDs'!$A$2:$D$4422,4,FALSE),\"\")","v":""},"",null,null,null,null,null,null,null,null,null,null,null,null,null,null,null,null,null,null,null,null,null,null,null,null,null,null,null,null,null,null,null,null,null,null,null,null,null,null,null,null,null,null,null,null,-500000,500000,null,1,1,31,null,0,0,0,null,{"$f":"AND(B556=$C$9,'Standing Data'!$D$9<>\"Multi-academy Trust\")","v":{"$error":"#N/A"}}]
[{"$f":"IF(B557<>\"\",IF('Standing Data'!$D$9<>\"Multi-academy Trust\",IF('Standing Data'!$D$15=B557,\"Error - counterparty with self\",\"\"),IF(N(ISNA(MATCH(B557,'Standing Data'!$E$49:$E$148,0)))<>0,\"\",\"Error - counterparty with self\")),\"\")","v":""},{"$f":"IF(C557<>\"\",VLOOKUP(C557,'CP IDs'!A$2:B$5122,2,FALSE),\"\")","v":""},null,{"$f":"IFERROR(VLOOKUP(C557,'CP IDs'!$A$2:$D$4422,4,FALSE),\"\")","v":""},"",null,null,null,null,null,null,null,null,null,null,null,null,null,null,null,null,null,null,null,null,null,null,null,null,null,null,null,null,null,null,null,null,null,null,null,null,null,null,null,null,null,null,null,null,-500000,500000,null,1,1,31,null,0,0,0,null,{"$f":"AND(B557=$C$9,'Standing Data'!$D$9<>\"Multi-academy Trust\")","v":{"$error":"#N/A"}}]
[{"$f":"IF(B558<>\"\",IF('Standing Data'!$D$9<>\"Multi-academy Trust\",IF('Standing Data'!$D$15=B558,\"Error - counterparty with self\",\"\"),IF(N(ISNA(MATCH(B558,'Standing Data'!$E$49:$E$148,0)))<>0,\"\",\"Error - counterparty with self\")),\"\")","v":""},{"$f":"IF(C558<>\"\",VLOOKUP(C558,'CP IDs'!A$2:B$5122,2,FALSE),\"\")","v":""},null,{"$f":"IFERROR(VLOOKUP(C558,'CP IDs'!$A$2:$D$4422,4,FALSE),\"\")","v":""},"",null,null,null,null,null,null,null,null,null,null,null,null,null,null,null,null,null,null,null,null,null,null,null,null,null,null,null,null,null,null,null,null,null,null,null,null,null,null,null,null,null,null,null,null,-500000,500000,null,1,1,31,null,0,0,0,null,{"$f":"AND(B558=$C$9,'Standing Data'!$D$9<>\"Multi-academy Trust\")","v":{"$error":"#N/A"}}]
[{"$f":"IF(B559<>\"\",IF('Standing Data'!$D$9<>\"Multi-academy Trust\",IF('Standing Data'!$D$15=B559,\"Error - counterparty with self\",\"\"),IF(N(ISNA(MATCH(B559,'Standing Data'!$E$49:$E$148,0)))<>0,\"\",\"Error - counterparty with self\")),\"\")","v":""},{"$f":"IF(C559<>\"\",VLOOKUP(C559,'CP IDs'!A$2:B$5122,2,FALSE),\"\")","v":""},null,{"$f":"IFERROR(VLOOKUP(C559,'CP IDs'!$A$2:$D$4422,4,FALSE),\"\")","v":""},"",null,null,null,null,null,null,null,null,null,null,null,null,null,null,null,null,null,null,null,null,null,null,null,null,null,null,null,null,null,null,null,null,null,null,null,null,null,null,null,null,null,null,null,null,-500000,500000,null,1,1,31,null,0,0,0,null,{"$f":"AND(B559=$C$9,'Standing Data'!$D$9<>\"Multi-academy Trust\")","v":{"$error":"#N/A"}}]
[{"$f":"IF(B560<>\"\",IF('Standing Data'!$D$9<>\"Multi-academy Trust\",IF('Standing Data'!$D$15=B560,\"Error - counterparty with self\",\"\"),IF(N(ISNA(MATCH(B560,'Standing Data'!$E$49:$E$148,0)))<>0,\"\",\"Error - counterparty with self\")),\"\")","v":""},{"$f":"IF(C560<>\"\",VLOOKUP(C560,'CP IDs'!A$2:B$5122,2,FALSE),\"\")","v":""},null,{"$f":"IFERROR(VLOOKUP(C560,'CP IDs'!$A$2:$D$4422,4,FALSE),\"\")","v":""},"",null,null,null,null,null,null,null,null,null,null,null,null,null,null,null,null,null,null,null,null,null,null,null,null,null,null,null,null,null,null,null,null,null,null,null,null,null,null,null,null,null,null,null,null,-500000,500000,null,1,1,31,null,0,0,0,null,{"$f":"AND(B560=$C$9,'Standing Data'!$D$9<>\"Multi-academy Trust\")","v":{"$error":"#N/A"}}]
[{"$f":"IF(B561<>\"\",IF('Standing Data'!$D$9<>\"Multi-academy Trust\",IF('Standing Data'!$D$15=B561,\"Error - counterparty with self\",\"\"),IF(N(ISNA(MATCH(B561,'Standing Data'!$E$49:$E$148,0)))<>0,\"\",\"Error - counterparty with self\")),\"\")","v":""},{"$f":"IF(C561<>\"\",VLOOKUP(C561,'CP IDs'!A$2:B$5122,2,FALSE),\"\")","v":""},null,{"$f":"IFERROR(VLOOKUP(C561,'CP IDs'!$A$2:$D$4422,4,FALSE),\"\")","v":""},"",null,null,null,null,null,null,null,null,null,null,null,null,null,null,null,null,null,null,null,null,null,null,null,null,null,null,null,null,null,null,null,null,null,null,null,null,null,null,null,null,null,null,null,null,-500000,500000,null,1,1,31,null,0,0,0,null,{"$f":"AND(B561=$C$9,'Standing Data'!$D$9<>\"Multi-academy Trust\")","v":{"$error":"#N/A"}}]
[{"$f":"IF(B562<>\"\",IF('Standing Data'!$D$9<>\"Multi-academy Trust\",IF('Standing Data'!$D$15=B562,\"Error - counterparty with self\",\"\"),IF(N(ISNA(MATCH(B562,'Standing Data'!$E$49:$E$148,0)))<>0,\"\",\"Error - counterparty with self\")),\"\")","v":""},{"$f":"IF(C562<>\"\",VLOOKUP(C562,'CP IDs'!A$2:B$5122,2,FALSE),\"\")","v":""},null,{"$f":"IFERROR(VLOOKUP(C562,'CP IDs'!$A$2:$D$4422,4,FALSE),\"\")","v":""},"",null,null,null,null,null,null,null,null,null,null,null,null,null,null,null,null,null,null,null,null,null,null,null,null,null,null,null,null,null,null,null,null,null,null,null,null,null,null,null,null,null,null,null,null,-500000,500000,null,1,1,31,null,0,0,0,null,{"$f":"AND(B562=$C$9,'Standing Data'!$D$9<>\"Multi-academy Trust\")","v":{"$error":"#N/A"}}]
[{"$f":"IF(B563<>\"\",IF('Standing Data'!$D$9<>\"Multi-academy Trust\",IF('Standing Data'!$D$15=B563,\"Error - counterparty with self\",\"\"),IF(N(ISNA(MATCH(B563,'Standing Data'!$E$49:$E$148,0)))<>0,\"\",\"Error - counterparty with self\")),\"\")","v":""},{"$f":"IF(C563<>\"\",VLOOKUP(C563,'CP IDs'!A$2:B$5122,2,FALSE),\"\")","v":""},null,{"$f":"IFERROR(VLOOKUP(C563,'CP IDs'!$A$2:$D$4422,4,FALSE),\"\")","v":""},"",null,null,null,null,null,null,null,null,null,null,null,null,null,null,null,null,null,null,null,null,null,null,null,null,null,null,null,null,null,null,null,null,null,null,null,null,null,null,null,null,null,null,null,null,-500000,500000,null,1,1,31,null,0,0,0,null,{"$f":"AND(B563=$C$9,'Standing Data'!$D$9<>\"Multi-academy Trust\")","v":{"$error":"#N/A"}}]
[{"$f":"IF(B564<>\"\",IF('Standing Data'!$D$9<>\"Multi-academy Trust\",IF('Standing Data'!$D$15=B564,\"Error - counterparty with self\",\"\"),IF(N(ISNA(MATCH(B564,'Standing Data'!$E$49:$E$148,0)))<>0,\"\",\"Error - counterparty with self\")),\"\")","v":""},{"$f":"IF(C564<>\"\",VLOOKUP(C564,'CP IDs'!A$2:B$5122,2,FALSE),\"\")","v":""},null,{"$f":"IFERROR(VLOOKUP(C564,'CP IDs'!$A$2:$D$4422,4,FALSE),\"\")","v":""},"",null,null,null,null,null,null,null,null,null,null,null,null,null,null,null,null,null,null,null,null,null,null,null,null,null,null,null,null,null,null,null,null,null,null,null,null,null,null,null,null,null,null,null,null,-500000,500000,null,1,1,31,null,0,0,0,null,{"$f":"AND(B564=$C$9,'Standing Data'!$D$9<>\"Multi-academy Trust\")","v":{"$error":"#N/A"}}]
[{"$f":"IF(B565<>\"\",IF('Standing Data'!$D$9<>\"Multi-academy Trust\",IF('Standing Data'!$D$15=B565,\"Error - counterparty with self\",\"\"),IF(N(ISNA(MATCH(B565,'Standing Data'!$E$49:$E$148,0)))<>0,\"\",\"Error - counterparty with self\")),\"\")","v":""},{"$f":"IF(C565<>\"\",VLOOKUP(C565,'CP IDs'!A$2:B$5122,2,FALSE),\"\")","v":""},null,{"$f":"IFERROR(VLOOKUP(C565,'CP IDs'!$A$2:$D$4422,4,FALSE),\"\")","v":""},"",null,null,null,null,null,null,null,null,null,null,null,null,null,null,null,null,null,null,null,null,null,null,null,null,null,null,null,null,null,null,null,null,null,null,null,null,null,null,null,null,null,null,null,null,-500000,500000,null,1,1,31,null,0,0,0,null,{"$f":"AND(B565=$C$9,'Standing Data'!$D$9<>\"Multi-academy Trust\")","v":{"$error":"#N/A"}}]
[{"$f":"IF(B566<>\"\",IF('Standing Data'!$D$9<>\"Multi-academy Trust\",IF('Standing Data'!$D$15=B566,\"Error - counterparty with self\",\"\"),IF(N(ISNA(MATCH(B566,'Standing Data'!$E$49:$E$148,0)))<>0,\"\",\"Error - counterparty with self\")),\"\")","v":""},{"$f":"IF(C566<>\"\",VLOOKUP(C566,'CP IDs'!A$2:B$5122,2,FALSE),\"\")","v":""},null,{"$f":"IFERROR(VLOOKUP(C566,'CP IDs'!$A$2:$D$4422,4,FALSE),\"\")","v":""},"",null,null,null,null,null,null,null,null,null,null,null,null,null,null,null,null,null,null,null,null,null,null,null,null,null,null,null,null,null,null,null,null,null,null,null,null,null,null,null,null,null,null,null,null,-500000,500000,null,1,1,31,null,0,0,0,null,{"$f":"AND(B566=$C$9,'Standing Data'!$D$9<>\"Multi-academy Trust\")","v":{"$error":"#N/A"}}]
[{"$f":"IF(B567<>\"\",IF('Standing Data'!$D$9<>\"Multi-academy Trust\",IF('Standing Data'!$D$15=B567,\"Error - counterparty with self\",\"\"),IF(N(ISNA(MATCH(B567,'Standing Data'!$E$49:$E$148,0)))<>0,\"\",\"Error - counterparty with self\")),\"\")","v":""},{"$f":"IF(C567<>\"\",VLOOKUP(C567,'CP IDs'!A$2:B$5122,2,FALSE),\"\")","v":""},null,{"$f":"IFERROR(VLOOKUP(C567,'CP IDs'!$A$2:$D$4422,4,FALSE),\"\")","v":""},"",null,null,null,null,null,null,null,null,null,null,null,null,null,null,null,null,null,null,null,null,null,null,null,null,null,null,null,null,null,null,null,null,null,null,null,null,null,null,null,null,null,null,null,null,-500000,500000,null,1,1,31,null,0,0,0,null,{"$f":"AND(B567=$C$9,'Standing Data'!$D$9<>\"Multi-academy Trust\")","v":{"$error":"#N/A"}}]
[{"$f":"IF(B568<>\"\",IF('Standing Data'!$D$9<>\"Multi-academy Trust\",IF('Standing Data'!$D$15=B568,\"Error - counterparty with self\",\"\"),IF(N(ISNA(MATCH(B568,'Standing Data'!$E$49:$E$148,0)))<>0,\"\",\"Error - counterparty with self\")),\"\")","v":""},{"$f":"IF(C568<>\"\",VLOOKUP(C568,'CP IDs'!A$2:B$5122,2,FALSE),\"\")","v":""},null,{"$f":"IFERROR(VLOOKUP(C568,'CP IDs'!$A$2:$D$4422,4,FALSE),\"\")","v":""},"",null,null,null,null,null,null,null,null,null,null,null,null,null,null,null,null,null,null,null,null,null,null,null,null,null,null,null,null,null,null,null,null,null,null,null,null,null,null,null,null,null,null,null,null,-500000,500000,null,1,1,31,null,0,0,0,null,{"$f":"AND(B568=$C$9,'Standing Data'!$D$9<>\"Multi-academy Trust\")","v":{"$error":"#N/A"}}]
[{"$f":"IF(B569<>\"\",IF('Standing Data'!$D$9<>\"Multi-academy Trust\",IF('Standing Data'!$D$15=B569,\"Error - counterparty with self\",\"\"),IF(N(ISNA(MATCH(B569,'Standing Data'!$E$49:$E$148,0)))<>0,\"\",\"Error - counterparty with self\")),\"\")","v":""},{"$f":"IF(C569<>\"\",VLOOKUP(C569,'CP IDs'!A$2:B$5122,2,FALSE),\"\")","v":""},null,{"$f":"IFERROR(VLOOKUP(C569,'CP IDs'!$A$2:$D$4422,4,FALSE),\"\")","v":""},"",null,null,null,null,null,null,null,null,null,null,null,null,null,null,null,null,null,null,null,null,null,null,null,null,null,null,null,null,null,null,null,null,null,null,null,null,null,null,null,null,null,null,null,null,-500000,500000,null,1,1,31,null,0,0,0,null,{"$f":"AND(B569=$C$9,'Standing Data'!$D$9<>\"Multi-academy Trust\")","v":{"$error":"#N/A"}}]
[{"$f":"IF(B570<>\"\",IF('Standing Data'!$D$9<>\"Multi-academy Trust\",IF('Standing Data'!$D$15=B570,\"Error - counterparty with self\",\"\"),IF(N(ISNA(MATCH(B570,'Standing Data'!$E$49:$E$148,0)))<>0,\"\",\"Error - counterparty with self\")),\"\")","v":""},{"$f":"IF(C570<>\"\",VLOOKUP(C570,'CP IDs'!A$2:B$5122,2,FALSE),\"\")","v":""},null,{"$f":"IFERROR(VLOOKUP(C570,'CP IDs'!$A$2:$D$4422,4,FALSE),\"\")","v":""},"",null,null,null,null,null,null,null,null,null,null,null,null,null,null,null,null,null,null,null,null,null,null,null,null,null,null,null,null,null,null,null,null,null,null,null,null,null,null,null,null,null,null,null,null,-500000,500000,null,1,1,31,null,0,0,0,null,{"$f":"AND(B570=$C$9,'Standing Data'!$D$9<>\"Multi-academy Trust\")","v":{"$error":"#N/A"}}]
[{"$f":"IF(B571<>\"\",IF('Standing Data'!$D$9<>\"Multi-academy Trust\",IF('Standing Data'!$D$15=B571,\"Error - counterparty with self\",\"\"),IF(N(ISNA(MATCH(B571,'Standing Data'!$E$49:$E$148,0)))<>0,\"\",\"Error - counterparty with self\")),\"\")","v":""},{"$f":"IF(C571<>\"\",VLOOKUP(C571,'CP IDs'!A$2:B$5122,2,FALSE),\"\")","v":""},null,{"$f":"IFERROR(VLOOKUP(C571,'CP IDs'!$A$2:$D$4422,4,FALSE),\"\")","v":""},"",null,null,null,null,null,null,null,null,null,null,null,null,null,null,null,null,null,null,null,null,null,null,null,null,null,null,null,null,null,null,null,null,null,null,null,null,null,null,null,null,null,null,null,null,-500000,500000,null,1,1,31,null,0,0,0,null,{"$f":"AND(B571=$C$9,'Standing Data'!$D$9<>\"Multi-academy Trust\")","v":{"$error":"#N/A"}}]
[{"$f":"IF(B572<>\"\",IF('Standing Data'!$D$9<>\"Multi-academy Trust\",IF('Standing Data'!$D$15=B572,\"Error - counterparty with self\",\"\"),IF(N(ISNA(MATCH(B572,'Standing Data'!$E$49:$E$148,0)))<>0,\"\",\"Error - counterparty with self\")),\"\")","v":""},{"$f":"IF(C572<>\"\",VLOOKUP(C572,'CP IDs'!A$2:B$5122,2,FALSE),\"\")","v":""},null,{"$f":"IFERROR(VLOOKUP(C572,'CP IDs'!$A$2:$D$4422,4,FALSE),\"\")","v":""},"",null,null,null,null,null,null,null,null,null,null,null,null,null,null,null,null,null,null,null,null,null,null,null,null,null,null,null,null,null,null,null,null,null,null,null,null,null,null,null,null,null,null,null,null,-500000,500000,null,1,1,31,null,0,0,0,null,{"$f":"AND(B572=$C$9,'Standing Data'!$D$9<>\"Multi-academy Trust\")","v":{"$error":"#N/A"}}]
[{"$f":"IF(B573<>\"\",IF('Standing Data'!$D$9<>\"Multi-academy Trust\",IF('Standing Data'!$D$15=B573,\"Error - counterparty with self\",\"\"),IF(N(ISNA(MATCH(B573,'Standing Data'!$E$49:$E$148,0)))<>0,\"\",\"Error - counterparty with self\")),\"\")","v":""},{"$f":"IF(C573<>\"\",VLOOKUP(C573,'CP IDs'!A$2:B$5122,2,FALSE),\"\")","v":""},null,{"$f":"IFERROR(VLOOKUP(C573,'CP IDs'!$A$2:$D$4422,4,FALSE),\"\")","v":""},"",null,null,null,null,null,null,null,null,null,null,null,null,null,null,null,null,null,null,null,null,null,null,null,null,null,null,null,null,null,null,null,null,null,null,null,null,null,null,null,null,null,null,null,null,-500000,500000,null,1,1,31,null,0,0,0,null,{"$f":"AND(B573=$C$9,'Standing Data'!$D$9<>\"Multi-academy Trust\")","v":{"$error":"#N/A"}}]
[{"$f":"IF(B574<>\"\",IF('Standing Data'!$D$9<>\"Multi-academy Trust\",IF('Standing Data'!$D$15=B574,\"Error - counterparty with self\",\"\"),IF(N(ISNA(MATCH(B574,'Standing Data'!$E$49:$E$148,0)))<>0,\"\",\"Error - counterparty with self\")),\"\")","v":""},{"$f":"IF(C574<>\"\",VLOOKUP(C574,'CP IDs'!A$2:B$5122,2,FALSE),\"\")","v":""},null,{"$f":"IFERROR(VLOOKUP(C574,'CP IDs'!$A$2:$D$4422,4,FALSE),\"\")","v":""},"",null,null,null,null,null,null,null,null,null,null,null,null,null,null,null,null,null,null,null,null,null,null,null,null,null,null,null,null,null,null,null,null,null,null,null,null,null,null,null,null,null,null,null,null,-500000,500000,null,1,1,31,null,0,0,0,null,{"$f":"AND(B574=$C$9,'Standing Data'!$D$9<>\"Multi-academy Trust\")","v":{"$error":"#N/A"}}]
[{"$f":"IF(B575<>\"\",IF('Standing Data'!$D$9<>\"Multi-academy Trust\",IF('Standing Data'!$D$15=B575,\"Error - counterparty with self\",\"\"),IF(N(ISNA(MATCH(B575,'Standing Data'!$E$49:$E$148,0)))<>0,\"\",\"Error - counterparty with self\")),\"\")","v":""},{"$f":"IF(C575<>\"\",VLOOKUP(C575,'CP IDs'!A$2:B$5122,2,FALSE),\"\")","v":""},null,{"$f":"IFERROR(VLOOKUP(C575,'CP IDs'!$A$2:$D$4422,4,FALSE),\"\")","v":""},"",null,null,null,null,null,null,null,null,null,null,null,null,null,null,null,null,null,null,null,null,null,null,null,null,null,null,null,null,null,null,null,null,null,null,null,null,null,null,null,null,null,null,null,null,-500000,500000,null,1,1,31,null,0,0,0,null,{"$f":"AND(B575=$C$9,'Standing Data'!$D$9<>\"Multi-academy Trust\")","v":{"$error":"#N/A"}}]
[{"$f":"IF(B576<>\"\",IF('Standing Data'!$D$9<>\"Multi-academy Trust\",IF('Standing Data'!$D$15=B576,\"Error - counterparty with self\",\"\"),IF(N(ISNA(MATCH(B576,'Standing Data'!$E$49:$E$148,0)))<>0,\"\",\"Error - counterparty with self\")),\"\")","v":""},{"$f":"IF(C576<>\"\",VLOOKUP(C576,'CP IDs'!A$2:B$5122,2,FALSE),\"\")","v":""},null,{"$f":"IFERROR(VLOOKUP(C576,'CP IDs'!$A$2:$D$4422,4,FALSE),\"\")","v":""},"",null,null,null,null,null,null,null,null,null,null,null,null,null,null,null,null,null,null,null,null,null,null,null,null,null,null,null,null,null,null,null,null,null,null,null,null,null,null,null,null,null,null,null,null,-500000,500000,null,1,1,31,null,0,0,0,null,{"$f":"AND(B576=$C$9,'Standing Data'!$D$9<>\"Multi-academy Trust\")","v":{"$error":"#N/A"}}]
[{"$f":"IF(B577<>\"\",IF('Standing Data'!$D$9<>\"Multi-academy Trust\",IF('Standing Data'!$D$15=B577,\"Error - counterparty with self\",\"\"),IF(N(ISNA(MATCH(B577,'Standing Data'!$E$49:$E$148,0)))<>0,\"\",\"Error - counterparty with self\")),\"\")","v":""},{"$f":"IF(C577<>\"\",VLOOKUP(C577,'CP IDs'!A$2:B$5122,2,FALSE),\"\")","v":""},null,{"$f":"IFERROR(VLOOKUP(C577,'CP IDs'!$A$2:$D$4422,4,FALSE),\"\")","v":""},"",null,null,null,null,null,null,null,null,null,null,null,null,null,null,null,null,null,null,null,null,null,null,null,null,null,null,null,null,null,null,null,null,null,null,null,null,null,null,null,null,null,null,null,null,-500000,500000,null,1,1,31,null,0,0,0,null,{"$f":"AND(B577=$C$9,'Standing Data'!$D$9<>\"Multi-academy Trust\")","v":{"$error":"#N/A"}}]
[{"$f":"IF(B578<>\"\",IF('Standing Data'!$D$9<>\"Multi-academy Trust\",IF('Standing Data'!$D$15=B578,\"Error - counterparty with self\",\"\"),IF(N(ISNA(MATCH(B578,'Standing Data'!$E$49:$E$148,0)))<>0,\"\",\"Error - counterparty with self\")),\"\")","v":""},{"$f":"IF(C578<>\"\",VLOOKUP(C578,'CP IDs'!A$2:B$5122,2,FALSE),\"\")","v":""},null,{"$f":"IFERROR(VLOOKUP(C578,'CP IDs'!$A$2:$D$4422,4,FALSE),\"\")","v":""},"",null,null,null,null,null,null,null,null,null,null,null,null,null,null,null,null,null,null,null,null,null,null,null,null,null,null,null,null,null,null,null,null,null,null,null,null,null,null,null,null,null,null,null,null,-500000,500000,null,1,1,31,null,0,0,0,null,{"$f":"AND(B578=$C$9,'Standing Data'!$D$9<>\"Multi-academy Trust\")","v":{"$error":"#N/A"}}]
[{"$f":"IF(B579<>\"\",IF('Standing Data'!$D$9<>\"Multi-academy Trust\",IF('Standing Data'!$D$15=B579,\"Error - counterparty with self\",\"\"),IF(N(ISNA(MATCH(B579,'Standing Data'!$E$49:$E$148,0)))<>0,\"\",\"Error - counterparty with self\")),\"\")","v":""},{"$f":"IF(C579<>\"\",VLOOKUP(C579,'CP IDs'!A$2:B$5122,2,FALSE),\"\")","v":""},null,{"$f":"IFERROR(VLOOKUP(C579,'CP IDs'!$A$2:$D$4422,4,FALSE),\"\")","v":""},"",null,null,null,null,null,null,null,null,null,null,null,null,null,null,null,null,null,null,null,null,null,null,null,null,null,null,null,null,null,null,null,null,null,null,null,null,null,null,null,null,null,null,null,null,-500000,500000,null,1,1,31,null,0,0,0,null,{"$f":"AND(B579=$C$9,'Standing Data'!$D$9<>\"Multi-academy Trust\")","v":{"$error":"#N/A"}}]
[{"$f":"IF(B580<>\"\",IF('Standing Data'!$D$9<>\"Multi-academy Trust\",IF('Standing Data'!$D$15=B580,\"Error - counterparty with self\",\"\"),IF(N(ISNA(MATCH(B580,'Standing Data'!$E$49:$E$148,0)))<>0,\"\",\"Error - counterparty with self\")),\"\")","v":""},{"$f":"IF(C580<>\"\",VLOOKUP(C580,'CP IDs'!A$2:B$5122,2,FALSE),\"\")","v":""},null,{"$f":"IFERROR(VLOOKUP(C580,'CP IDs'!$A$2:$D$4422,4,FALSE),\"\")","v":""},"",null,null,null,null,null,null,null,null,null,null,null,null,null,null,null,null,null,null,null,null,null,null,null,null,null,null,null,null,null,null,null,null,null,null,null,null,null,null,null,null,null,null,null,null,-500000,500000,null,1,1,31,null,0,0,0,null,{"$f":"AND(B580=$C$9,'Standing Data'!$D$9<>\"Multi-academy Trust\")","v":{"$error":"#N/A"}}]
[{"$f":"IF(B581<>\"\",IF('Standing Data'!$D$9<>\"Multi-academy Trust\",IF('Standing Data'!$D$15=B581,\"Error - counterparty with self\",\"\"),IF(N(ISNA(MATCH(B581,'Standing Data'!$E$49:$E$148,0)))<>0,\"\",\"Error - counterparty with self\")),\"\")","v":""},{"$f":"IF(C581<>\"\",VLOOKUP(C581,'CP IDs'!A$2:B$5122,2,FALSE),\"\")","v":""},null,{"$f":"IFERROR(VLOOKUP(C581,'CP IDs'!$A$2:$D$4422,4,FALSE),\"\")","v":""},"",null,null,null,null,null,null,null,null,null,null,null,null,null,null,null,null,null,null,null,null,null,null,null,null,null,null,null,null,null,null,null,null,null,null,null,null,null,null,null,null,null,null,null,null,-500000,500000,null,1,1,31,null,0,0,0,null,{"$f":"AND(B581=$C$9,'Standing Data'!$D$9<>\"Multi-academy Trust\")","v":{"$error":"#N/A"}}]
[{"$f":"IF(B582<>\"\",IF('Standing Data'!$D$9<>\"Multi-academy Trust\",IF('Standing Data'!$D$15=B582,\"Error - counterparty with self\",\"\"),IF(N(ISNA(MATCH(B582,'Standing Data'!$E$49:$E$148,0)))<>0,\"\",\"Error - counterparty with self\")),\"\")","v":""},{"$f":"IF(C582<>\"\",VLOOKUP(C582,'CP IDs'!A$2:B$5122,2,FALSE),\"\")","v":""},null,{"$f":"IFERROR(VLOOKUP(C582,'CP IDs'!$A$2:$D$4422,4,FALSE),\"\")","v":""},"",null,null,null,null,null,null,null,null,null,null,null,null,null,null,null,null,null,null,null,null,null,null,null,null,null,null,null,null,null,null,null,null,null,null,null,null,null,null,null,null,null,null,null,null,-500000,500000,null,1,1,31,null,0,0,0,null,{"$f":"AND(B582=$C$9,'Standing Data'!$D$9<>\"Multi-academy Trust\")","v":{"$error":"#N/A"}}]
[{"$f":"IF(B583<>\"\",IF('Standing Data'!$D$9<>\"Multi-academy Trust\",IF('Standing Data'!$D$15=B583,\"Error - counterparty with self\",\"\"),IF(N(ISNA(MATCH(B583,'Standing Data'!$E$49:$E$148,0)))<>0,\"\",\"Error - counterparty with self\")),\"\")","v":""},{"$f":"IF(C583<>\"\",VLOOKUP(C583,'CP IDs'!A$2:B$5122,2,FALSE),\"\")","v":""},null,{"$f":"IFERROR(VLOOKUP(C583,'CP IDs'!$A$2:$D$4422,4,FALSE),\"\")","v":""},"",null,null,null,null,null,null,null,null,null,null,null,null,null,null,null,null,null,null,null,null,null,null,null,null,null,null,null,null,null,null,null,null,null,null,null,null,null,null,null,null,null,null,null,null,-500000,500000,null,1,1,31,null,0,0,0,null,{"$f":"AND(B583=$C$9,'Standing Data'!$D$9<>\"Multi-academy Trust\")","v":{"$error":"#N/A"}}]
[{"$f":"IF(B584<>\"\",IF('Standing Data'!$D$9<>\"Multi-academy Trust\",IF('Standing Data'!$D$15=B584,\"Error - counterparty with self\",\"\"),IF(N(ISNA(MATCH(B584,'Standing Data'!$E$49:$E$148,0)))<>0,\"\",\"Error - counterparty with self\")),\"\")","v":""},{"$f":"IF(C584<>\"\",VLOOKUP(C584,'CP IDs'!A$2:B$5122,2,FALSE),\"\")","v":""},null,{"$f":"IFERROR(VLOOKUP(C584,'CP IDs'!$A$2:$D$4422,4,FALSE),\"\")","v":""},"",null,null,null,null,null,null,null,null,null,null,null,null,null,null,null,null,null,null,null,null,null,null,null,null,null,null,null,null,null,null,null,null,null,null,null,null,null,null,null,null,null,null,null,null,-500000,500000,null,1,1,31,null,0,0,0,null,{"$f":"AND(B584=$C$9,'Standing Data'!$D$9<>\"Multi-academy Trust\")","v":{"$error":"#N/A"}}]
[{"$f":"IF(B585<>\"\",IF('Standing Data'!$D$9<>\"Multi-academy Trust\",IF('Standing Data'!$D$15=B585,\"Error - counterparty with self\",\"\"),IF(N(ISNA(MATCH(B585,'Standing Data'!$E$49:$E$148,0)))<>0,\"\",\"Error - counterparty with self\")),\"\")","v":""},{"$f":"IF(C585<>\"\",VLOOKUP(C585,'CP IDs'!A$2:B$5122,2,FALSE),\"\")","v":""},null,{"$f":"IFERROR(VLOOKUP(C585,'CP IDs'!$A$2:$D$4422,4,FALSE),\"\")","v":""},"",null,null,null,null,null,null,null,null,null,null,null,null,null,null,null,null,null,null,null,null,null,null,null,null,null,null,null,null,null,null,null,null,null,null,null,null,null,null,null,null,null,null,null,null,-500000,500000,null,1,1,31,null,0,0,0,null,{"$f":"AND(B585=$C$9,'Standing Data'!$D$9<>\"Multi-academy Trust\")","v":{"$error":"#N/A"}}]
[{"$f":"IF(B586<>\"\",IF('Standing Data'!$D$9<>\"Multi-academy Trust\",IF('Standing Data'!$D$15=B586,\"Error - counterparty with self\",\"\"),IF(N(ISNA(MATCH(B586,'Standing Data'!$E$49:$E$148,0)))<>0,\"\",\"Error - counterparty with self\")),\"\")","v":""},{"$f":"IF(C586<>\"\",VLOOKUP(C586,'CP IDs'!A$2:B$5122,2,FALSE),\"\")","v":""},null,{"$f":"IFERROR(VLOOKUP(C586,'CP IDs'!$A$2:$D$4422,4,FALSE),\"\")","v":""},"",null,null,null,null,null,null,null,null,null,null,null,null,null,null,null,null,null,null,null,null,null,null,null,null,null,null,null,null,null,null,null,null,null,null,null,null,null,null,null,null,null,null,null,null,-500000,500000,null,1,1,31,null,0,0,0,null,{"$f":"AND(B586=$C$9,'Standing Data'!$D$9<>\"Multi-academy Trust\")","v":{"$error":"#N/A"}}]
[{"$f":"IF(B587<>\"\",IF('Standing Data'!$D$9<>\"Multi-academy Trust\",IF('Standing Data'!$D$15=B587,\"Error - counterparty with self\",\"\"),IF(N(ISNA(MATCH(B587,'Standing Data'!$E$49:$E$148,0)))<>0,\"\",\"Error - counterparty with self\")),\"\")","v":""},{"$f":"IF(C587<>\"\",VLOOKUP(C587,'CP IDs'!A$2:B$5122,2,FALSE),\"\")","v":""},null,{"$f":"IFERROR(VLOOKUP(C587,'CP IDs'!$A$2:$D$4422,4,FALSE),\"\")","v":""},"",null,null,null,null,null,null,null,null,null,null,null,null,null,null,null,null,null,null,null,null,null,null,null,null,null,null,null,null,null,null,null,null,null,null,null,null,null,null,null,null,null,null,null,null,-500000,500000,null,1,1,31,null,0,0,0,null,{"$f":"AND(B587=$C$9,'Standing Data'!$D$9<>\"Multi-academy Trust\")","v":{"$error":"#N/A"}}]
[{"$f":"IF(B588<>\"\",IF('Standing Data'!$D$9<>\"Multi-academy Trust\",IF('Standing Data'!$D$15=B588,\"Error - counterparty with self\",\"\"),IF(N(ISNA(MATCH(B588,'Standing Data'!$E$49:$E$148,0)))<>0,\"\",\"Error - counterparty with self\")),\"\")","v":""},{"$f":"IF(C588<>\"\",VLOOKUP(C588,'CP IDs'!A$2:B$5122,2,FALSE),\"\")","v":""},null,{"$f":"IFERROR(VLOOKUP(C588,'CP IDs'!$A$2:$D$4422,4,FALSE),\"\")","v":""},"",null,null,null,null,null,null,null,null,null,null,null,null,null,null,null,null,null,null,null,null,null,null,null,null,null,null,null,null,null,null,null,null,null,null,null,null,null,null,null,null,null,null,null,null,-500000,500000,null,1,1,31,null,0,0,0,null,{"$f":"AND(B588=$C$9,'Standing Data'!$D$9<>\"Multi-academy Trust\")","v":{"$error":"#N/A"}}]
[{"$f":"IF(B589<>\"\",IF('Standing Data'!$D$9<>\"Multi-academy Trust\",IF('Standing Data'!$D$15=B589,\"Error - counterparty with self\",\"\"),IF(N(ISNA(MATCH(B589,'Standing Data'!$E$49:$E$148,0)))<>0,\"\",\"Error - counterparty with self\")),\"\")","v":""},{"$f":"IF(C589<>\"\",VLOOKUP(C589,'CP IDs'!A$2:B$5122,2,FALSE),\"\")","v":""},null,{"$f":"IFERROR(VLOOKUP(C589,'CP IDs'!$A$2:$D$4422,4,FALSE),\"\")","v":""},"",null,null,null,null,null,null,null,null,null,null,null,null,null,null,null,null,null,null,null,null,null,null,null,null,null,null,null,null,null,null,null,null,null,null,null,null,null,null,null,null,null,null,null,null,-500000,500000,null,1,1,31,null,0,0,0,null,{"$f":"AND(B589=$C$9,'Standing Data'!$D$9<>\"Multi-academy Trust\")","v":{"$error":"#N/A"}}]
[{"$f":"IF(B590<>\"\",IF('Standing Data'!$D$9<>\"Multi-academy Trust\",IF('Standing Data'!$D$15=B590,\"Error - counterparty with self\",\"\"),IF(N(ISNA(MATCH(B590,'Standing Data'!$E$49:$E$148,0)))<>0,\"\",\"Error - counterparty with self\")),\"\")","v":""},{"$f":"IF(C590<>\"\",VLOOKUP(C590,'CP IDs'!A$2:B$5122,2,FALSE),\"\")","v":""},null,{"$f":"IFERROR(VLOOKUP(C590,'CP IDs'!$A$2:$D$4422,4,FALSE),\"\")","v":""},"",null,null,null,null,null,null,null,null,null,null,null,null,null,null,null,null,null,null,null,null,null,null,null,null,null,null,null,null,null,null,null,null,null,null,null,null,null,null,null,null,null,null,null,null,-500000,500000,null,1,1,31,null,0,0,0,null,{"$f":"AND(B590=$C$9,'Standing Data'!$D$9<>\"Multi-academy Trust\")","v":{"$error":"#N/A"}}]
[{"$f":"IF(B591<>\"\",IF('Standing Data'!$D$9<>\"Multi-academy Trust\",IF('Standing Data'!$D$15=B591,\"Error - counterparty with self\",\"\"),IF(N(ISNA(MATCH(B591,'Standing Data'!$E$49:$E$148,0)))<>0,\"\",\"Error - counterparty with self\")),\"\")","v":""},{"$f":"IF(C591<>\"\",VLOOKUP(C591,'CP IDs'!A$2:B$5122,2,FALSE),\"\")","v":""},null,{"$f":"IFERROR(VLOOKUP(C591,'CP IDs'!$A$2:$D$4422,4,FALSE),\"\")","v":""},"",null,null,null,null,null,null,null,null,null,null,null,null,null,null,null,null,null,null,null,null,null,null,null,null,null,null,null,null,null,null,null,null,null,null,null,null,null,null,null,null,null,null,null,null,-500000,500000,null,1,1,31,null,0,0,0,null,{"$f":"AND(B591=$C$9,'Standing Data'!$D$9<>\"Multi-academy Trust\")","v":{"$error":"#N/A"}}]
[{"$f":"IF(B592<>\"\",IF('Standing Data'!$D$9<>\"Multi-academy Trust\",IF('Standing Data'!$D$15=B592,\"Error - counterparty with self\",\"\"),IF(N(ISNA(MATCH(B592,'Standing Data'!$E$49:$E$148,0)))<>0,\"\",\"Error - counterparty with self\")),\"\")","v":""},{"$f":"IF(C592<>\"\",VLOOKUP(C592,'CP IDs'!A$2:B$5122,2,FALSE),\"\")","v":""},null,{"$f":"IFERROR(VLOOKUP(C592,'CP IDs'!$A$2:$D$4422,4,FALSE),\"\")","v":""},"",null,null,null,null,null,null,null,null,null,null,null,null,null,null,null,null,null,null,null,null,null,null,null,null,null,null,null,null,null,null,null,null,null,null,null,null,null,null,null,null,null,null,null,null,-500000,500000,null,1,1,31,null,0,0,0,null,{"$f":"AND(B592=$C$9,'Standing Data'!$D$9<>\"Multi-academy Trust\")","v":{"$error":"#N/A"}}]
[{"$f":"IF(B593<>\"\",IF('Standing Data'!$D$9<>\"Multi-academy Trust\",IF('Standing Data'!$D$15=B593,\"Error - counterparty with self\",\"\"),IF(N(ISNA(MATCH(B593,'Standing Data'!$E$49:$E$148,0)))<>0,\"\",\"Error - counterparty with self\")),\"\")","v":""},{"$f":"IF(C593<>\"\",VLOOKUP(C593,'CP IDs'!A$2:B$5122,2,FALSE),\"\")","v":""},null,{"$f":"IFERROR(VLOOKUP(C593,'CP IDs'!$A$2:$D$4422,4,FALSE),\"\")","v":""},"",null,null,null,null,null,null,null,null,null,null,null,null,null,null,null,null,null,null,null,null,null,null,null,null,null,null,null,null,null,null,null,null,null,null,null,null,null,null,null,null,null,null,null,null,-500000,500000,null,1,1,31,null,0,0,0,null,{"$f":"AND(B593=$C$9,'Standing Data'!$D$9<>\"Multi-academy Trust\")","v":{"$error":"#N/A"}}]
[{"$f":"IF(B594<>\"\",IF('Standing Data'!$D$9<>\"Multi-academy Trust\",IF('Standing Data'!$D$15=B594,\"Error - counterparty with self\",\"\"),IF(N(ISNA(MATCH(B594,'Standing Data'!$E$49:$E$148,0)))<>0,\"\",\"Error - counterparty with self\")),\"\")","v":""},{"$f":"IF(C594<>\"\",VLOOKUP(C594,'CP IDs'!A$2:B$5122,2,FALSE),\"\")","v":""},null,{"$f":"IFERROR(VLOOKUP(C594,'CP IDs'!$A$2:$D$4422,4,FALSE),\"\")","v":""},"",null,null,null,null,null,null,null,null,null,null,null,null,null,null,null,null,null,null,null,null,null,null,null,null,null,null,null,null,null,null,null,null,null,null,null,null,null,null,null,null,null,null,null,null,-500000,500000,null,1,1,31,null,0,0,0,null,{"$f":"AND(B594=$C$9,'Standing Data'!$D$9<>\"Multi-academy Trust\")","v":{"$error":"#N/A"}}]
[{"$f":"IF(B595<>\"\",IF('Standing Data'!$D$9<>\"Multi-academy Trust\",IF('Standing Data'!$D$15=B595,\"Error - counterparty with self\",\"\"),IF(N(ISNA(MATCH(B595,'Standing Data'!$E$49:$E$148,0)))<>0,\"\",\"Error - counterparty with self\")),\"\")","v":""},{"$f":"IF(C595<>\"\",VLOOKUP(C595,'CP IDs'!A$2:B$5122,2,FALSE),\"\")","v":""},null,{"$f":"IFERROR(VLOOKUP(C595,'CP IDs'!$A$2:$D$4422,4,FALSE),\"\")","v":""},"",null,null,null,null,null,null,null,null,null,null,null,null,null,null,null,null,null,null,null,null,null,null,null,null,null,null,null,null,null,null,null,null,null,null,null,null,null,null,null,null,null,null,null,null,-500000,500000,null,1,1,31,null,0,0,0,null,{"$f":"AND(B595=$C$9,'Standing Data'!$D$9<>\"Multi-academy Trust\")","v":{"$error":"#N/A"}}]
[{"$f":"IF(B596<>\"\",IF('Standing Data'!$D$9<>\"Multi-academy Trust\",IF('Standing Data'!$D$15=B596,\"Error - counterparty with self\",\"\"),IF(N(ISNA(MATCH(B596,'Standing Data'!$E$49:$E$148,0)))<>0,\"\",\"Error - counterparty with self\")),\"\")","v":""},{"$f":"IF(C596<>\"\",VLOOKUP(C596,'CP IDs'!A$2:B$5122,2,FALSE),\"\")","v":""},null,{"$f":"IFERROR(VLOOKUP(C596,'CP IDs'!$A$2:$D$4422,4,FALSE),\"\")","v":""},"",null,null,null,null,null,null,null,null,null,null,null,null,null,null,null,null,null,null,null,null,null,null,null,null,null,null,null,null,null,null,null,null,null,null,null,null,null,null,null,null,null,null,null,null,-500000,500000,null,1,1,31,null,0,0,0,null,{"$f":"AND(B596=$C$9,'Standing Data'!$D$9<>\"Multi-academy Trust\")","v":{"$error":"#N/A"}}]
[{"$f":"IF(B597<>\"\",IF('Standing Data'!$D$9<>\"Multi-academy Trust\",IF('Standing Data'!$D$15=B597,\"Error - counterparty with self\",\"\"),IF(N(ISNA(MATCH(B597,'Standing Data'!$E$49:$E$148,0)))<>0,\"\",\"Error - counterparty with self\")),\"\")","v":""},{"$f":"IF(C597<>\"\",VLOOKUP(C597,'CP IDs'!A$2:B$5122,2,FALSE),\"\")","v":""},null,{"$f":"IFERROR(VLOOKUP(C597,'CP IDs'!$A$2:$D$4422,4,FALSE),\"\")","v":""},"",null,null,null,null,null,null,null,null,null,null,null,null,null,null,null,null,null,null,null,null,null,null,null,null,null,null,null,null,null,null,null,null,null,null,null,null,null,null,null,null,null,null,null,null,-500000,500000,null,1,1,31,null,0,0,{"$f":"COUNT(F597:AT597)","v":0},null,{"$f":"AND(B597=$C$9,'Standing Data'!$D$9<>\"Multi-academy Trust\")","v":{"$error":"#N/A"}}]
[{"$f":"IF(B598<>\"\",IF('Standing Data'!$D$9<>\"Multi-academy Trust\",IF('Standing Data'!$D$15=B598,\"Error - counterparty with self\",\"\"),IF(N(ISNA(MATCH(B598,'Standing Data'!$E$49:$E$148,0)))<>0,\"\",\"Error - counterparty with self\")),\"\")","v":""},{"$f":"IF(C598<>\"\",VLOOKUP(C598,'CP IDs'!A$2:B$5122,2,FALSE),\"\")","v":""},null,{"$f":"IFERROR(VLOOKUP(C598,'CP IDs'!$A$2:$D$4422,4,FALSE),\"\")","v":""},"",null,null,null,null,null,null,null,null,null,null,null,null,null,null,null,null,null,null,null,null,null,null,null,null,null,null,null,null,null,null,null,null,null,null,null,null,null,null,null,null,null,null,null,null,-500000,500000,null,1,1,31,null,0,0,0,null,{"$f":"AND(B598=$C$9,'Standing Data'!$D$9<>\"Multi-academy Trust\")","v":{"$error":"#N/A"}}]
[{"$f":"IF(B599<>\"\",IF('Standing Data'!$D$9<>\"Multi-academy Trust\",IF('Standing Data'!$D$15=B599,\"Error - counterparty with self\",\"\"),IF(N(ISNA(MATCH(B599,'Standing Data'!$E$49:$E$148,0)))<>0,\"\",\"Error - counterparty with self\")),\"\")","v":""},{"$f":"IF(C599<>\"\",VLOOKUP(C599,'CP IDs'!A$2:B$5122,2,FALSE),\"\")","v":""},null,{"$f":"IFERROR(VLOOKUP(C599,'CP IDs'!$A$2:$D$4422,4,FALSE),\"\")","v":""},"",null,null,null,null,null,null,null,null,null,null,null,null,null,null,null,null,null,null,null,null,null,null,null,null,null,null,null,null,null,null,null,null,null,null,null,null,null,null,null,null,null,null,null,null,{"$f":"AX598","v":-500000},{"$f":"AY598","v":500000},null,1,1,31,null,0,0,0,null,{"$f":"AND(B599=$C$9,'Standing Data'!$D$9<>\"Multi-academy Trust\")","v":{"$error":"#N/A"}}]
[{"$f":"IF(B600<>\"\",IF('Standing Data'!$D$9<>\"Multi-academy Trust\",IF('Standing Data'!$D$15=B600,\"Error - counterparty with self\",\"\"),IF(N(ISNA(MATCH(B600,'Standing Data'!$E$49:$E$148,0)))<>0,\"\",\"Error - counterparty with self\")),\"\")","v":""},{"$f":"IF(C600<>\"\",VLOOKUP(C600,'CP IDs'!A$2:B$5122,2,FALSE),\"\")","v":""},null,{"$f":"IFERROR(VLOOKUP(C600,'CP IDs'!$A$2:$D$4422,4,FALSE),\"\")","v":""},"",null,null,null,null,null,null,null,null,null,null,null,null,null,null,null,null,null,null,null,null,null,null,null,null,null,null,null,null,null,null,null,null,null,null,null,null,null,null,null,null,null,null,null,null,-500000,500000,null,1,1,31,null,0,0,0,null,{"$f":"AND(B600=$C$9,'Standing Data'!$D$9<>\"Multi-academy Trust\")","v":{"$error":"#N/A"}}]
[{"$f":"IF(B601<>\"\",IF('Standing Data'!$D$9<>\"Multi-academy Trust\",IF('Standing Data'!$D$15=B601,\"Error - counterparty with self\",\"\"),IF(N(ISNA(MATCH(B601,'Standing Data'!$E$49:$E$148,0)))<>0,\"\",\"Error - counterparty with self\")),\"\")","v":""},{"$f":"IF(C601<>\"\",VLOOKUP(C601,'CP IDs'!A$2:B$5122,2,FALSE),\"\")","v":""},null,{"$f":"IFERROR(VLOOKUP(C601,'CP IDs'!$A$2:$D$4422,4,FALSE),\"\")","v":""},"",null,null,null,null,null,null,null,null,null,null,null,null,null,null,null,null,null,null,null,null,null,null,null,null,null,null,null,null,null,null,null,null,null,null,null,null,null,null,null,null,null,null,null,null,-500000,500000,null,1,1,31,null,0,0,0,null,{"$f":"AND(B601=$C$9,'Standing Data'!$D$9<>\"Multi-academy Trust\")","v":{"$error":"#N/A"}}]
[{"$f":"IF(B602<>\"\",IF('Standing Data'!$D$9<>\"Multi-academy Trust\",IF('Standing Data'!$D$15=B602,\"Error - counterparty with self\",\"\"),IF(N(ISNA(MATCH(B602,'Standing Data'!$E$49:$E$148,0)))<>0,\"\",\"Error - counterparty with self\")),\"\")","v":""},{"$f":"IF(C602<>\"\",VLOOKUP(C602,'CP IDs'!A$2:B$5122,2,FALSE),\"\")","v":""},null,{"$f":"IFERROR(VLOOKUP(C602,'CP IDs'!$A$2:$D$4422,4,FALSE),\"\")","v":""},"",null,null,null,null,null,null,null,null,null,null,null,null,null,null,null,null,null,null,null,null,null,null,null,null,null,null,null,null,null,null,null,null,null,null,null,null,null,null,null,null,null,null,null,null,-500000,500000,null,1,1,31,null,0,0,0,null,{"$f":"AND(B602=$C$9,'Standing Data'!$D$9<>\"Multi-academy Trust\")","v":{"$error":"#N/A"}}]
[{"$f":"IF(B603<>\"\",IF('Standing Data'!$D$9<>\"Multi-academy Trust\",IF('Standing Data'!$D$15=B603,\"Error - counterparty with self\",\"\"),IF(N(ISNA(MATCH(B603,'Standing Data'!$E$49:$E$148,0)))<>0,\"\",\"Error - counterparty with self\")),\"\")","v":""},{"$f":"IF(C603<>\"\",VLOOKUP(C603,'CP IDs'!A$2:B$5122,2,FALSE),\"\")","v":""},null,{"$f":"IFERROR(VLOOKUP(C603,'CP IDs'!$A$2:$D$4422,4,FALSE),\"\")","v":""},"",null,null,null,null,null,null,null,null,null,null,null,null,null,null,null,null,null,null,null,null,null,null,null,null,null,null,null,null,null,null,null,null,null,null,null,null,null,null,null,null,null,null,null,null,-500000,500000,null,1,1,31,null,0,0,0,null,{"$f":"AND(B603=$C$9,'Standing Data'!$D$9<>\"Multi-academy Trust\")","v":{"$error":"#N/A"}}]
[{"$f":"IF(B604<>\"\",IF('Standing Data'!$D$9<>\"Multi-academy Trust\",IF('Standing Data'!$D$15=B604,\"Error - counterparty with self\",\"\"),IF(N(ISNA(MATCH(B604,'Standing Data'!$E$49:$E$148,0)))<>0,\"\",\"Error - counterparty with self\")),\"\")","v":""},{"$f":"IF(C604<>\"\",VLOOKUP(C604,'CP IDs'!A$2:B$5122,2,FALSE),\"\")","v":""},null,{"$f":"IFERROR(VLOOKUP(C604,'CP IDs'!$A$2:$D$4422,4,FALSE),\"\")","v":""},"",null,null,null,null,null,null,null,null,null,null,null,null,null,null,null,null,null,null,null,null,null,null,null,null,null,null,null,null,null,null,null,null,null,null,null,null,null,null,null,null,null,null,null,null,-500000,500000,null,1,1,31,null,0,0,0,null,{"$f":"AND(B604=$C$9,'Standing Data'!$D$9<>\"Multi-academy Trust\")","v":{"$error":"#N/A"}}]
[{"$f":"IF(B605<>\"\",IF('Standing Data'!$D$9<>\"Multi-academy Trust\",IF('Standing Data'!$D$15=B605,\"Error - counterparty with self\",\"\"),IF(N(ISNA(MATCH(B605,'Standing Data'!$E$49:$E$148,0)))<>0,\"\",\"Error - counterparty with self\")),\"\")","v":""},{"$f":"IF(C605<>\"\",VLOOKUP(C605,'CP IDs'!A$2:B$5122,2,FALSE),\"\")","v":""},null,{"$f":"IFERROR(VLOOKUP(C605,'CP IDs'!$A$2:$D$4422,4,FALSE),\"\")","v":""},"",null,null,null,null,null,null,null,null,null,null,null,null,null,null,null,null,null,null,null,null,null,null,null,null,null,null,null,null,null,null,null,null,null,null,null,null,null,null,null,null,null,null,null,null,-500000,500000,null,1,1,31,null,0,0,0,null,{"$f":"AND(B605=$C$9,'Standing Data'!$D$9<>\"Multi-academy Trust\")","v":{"$error":"#N/A"}}]
[{"$f":"IF(B606<>\"\",IF('Standing Data'!$D$9<>\"Multi-academy Trust\",IF('Standing Data'!$D$15=B606,\"Error - counterparty with self\",\"\"),IF(N(ISNA(MATCH(B606,'Standing Data'!$E$49:$E$148,0)))<>0,\"\",\"Error - counterparty with self\")),\"\")","v":""},{"$f":"IF(C606<>\"\",VLOOKUP(C606,'CP IDs'!A$2:B$5122,2,FALSE),\"\")","v":""},null,{"$f":"IFERROR(VLOOKUP(C606,'CP IDs'!$A$2:$D$4422,4,FALSE),\"\")","v":""},"",null,null,null,null,null,null,null,null,null,null,null,null,null,null,null,null,null,null,null,null,null,null,null,null,null,null,null,null,null,null,null,null,null,null,null,null,null,null,null,null,null,null,null,null,-500000,500000,null,1,1,31,null,{"$f":"COUNTA(C606)","v":0},{"$f":"1-COUNTBLANK(B606)","v":0},0,null,{"$f":"AND(B606=$C$9,'Standing Data'!$D$9<>\"Multi-academy Trust\")","v":{"$error":"#N/A"}}]
[{"$f":"IF(B607<>\"\",IF('Standing Data'!$D$9<>\"Multi-academy Trust\",IF('Standing Data'!$D$15=B607,\"Error - counterparty with self\",\"\"),IF(N(ISNA(MATCH(B607,'Standing Data'!$E$49:$E$148,0)))<>0,\"\",\"Error - counterparty with self\")),\"\")","v":""},{"$f":"IF(C607<>\"\",VLOOKUP(C607,'CP IDs'!A$2:B$5122,2,FALSE),\"\")","v":""},null,{"$f":"IFERROR(VLOOKUP(C607,'CP IDs'!$A$2:$D$4422,4,FALSE),\"\")","v":""},{"$f":"IF(OR(AND(COUNT(F607:AT607)>0,C607=\"\"),AND(COUNT(F607:AT607)=0,C607<>\"\")),\"Error - on line\",\"\")","v":""},null,null,null,null,null,null,null,null,null,null,null,null,null,null,null,null,null,null,null,null,null,null,null,null,null,null,null,null,null,null,null,null,null,null,null,null,null,null,null,null,null,null,null,null,-500000,500000,null,1,1,31,null,0,0,0,null,{"$f":"AND(B607=$C$9,'Standing Data'!$D$9<>\"Multi-academy Trust\")","v":{"$error":"#N/A"}}]
[{"$f":"IF(B608<>\"\",IF('Standing Data'!$D$9<>\"Multi-academy Trust\",IF('Standing Data'!$D$15=B608,\"Error - counterparty with self\",\"\"),IF(N(ISNA(MATCH(B608,'Standing Data'!$E$49:$E$148,0)))<>0,\"\",\"Error - counterparty with self\")),\"\")","v":""},{"$f":"IF(C608<>\"\",VLOOKUP(C608,'CP IDs'!A$2:B$5122,2,FALSE),\"\")","v":""},null,{"$f":"IFERROR(VLOOKUP(C608,'CP IDs'!$A$2:$D$4422,4,FALSE),\"\")","v":""},"",null,null,null,null,null,null,null,null,null,null,null,null,null,null,null,null,null,null,null,null,null,null,null,null,null,null,null,null,null,null,null,null,null,null,null,null,null,null,null,null,null,null,null,null,-500000,500000,null,1,1,31,null,0,0,0,null,{"$f":"AND(B608=$C$9,'Standing Data'!$D$9<>\"Multi-academy Trust\")","v":{"$error":"#N/A"}}]
[{"$f":"IF(B609<>\"\",IF('Standing Data'!$D$9<>\"Multi-academy Trust\",IF('Standing Data'!$D$15=B609,\"Error - counterparty with self\",\"\"),IF(N(ISNA(MATCH(B609,'Standing Data'!$E$49:$E$148,0)))<>0,\"\",\"Error - counterparty with self\")),\"\")","v":""},{"$f":"IF(C609<>\"\",VLOOKUP(C609,'CP IDs'!A$2:B$5122,2,FALSE),\"\")","v":""},null,{"$f":"IFERROR(VLOOKUP(C609,'CP IDs'!$A$2:$D$4422,4,FALSE),\"\")","v":""},"",null,null,null,null,null,null,null,null,null,null,null,null,null,null,null,null,null,null,null,null,null,null,null,null,null,null,null,null,null,null,null,null,null,null,null,null,null,null,null,null,null,null,null,null,-500000,500000,null,1,1,31,null,0,0,0,null,{"$f":"AND(B609=$C$9,'Standing Data'!$D$9<>\"Multi-academy Trust\")","v":{"$error":"#N/A"}}]
[{"$f":"IF(B610<>\"\",IF('Standing Data'!$D$9<>\"Multi-academy Trust\",IF('Standing Data'!$D$15=B610,\"Error - counterparty with self\",\"\"),IF(N(ISNA(MATCH(B610,'Standing Data'!$E$49:$E$148,0)))<>0,\"\",\"Error - counterparty with self\")),\"\")","v":""},{"$f":"IF(C610<>\"\",VLOOKUP(C610,'CP IDs'!A$2:B$5122,2,FALSE),\"\")","v":""},null,{"$f":"IFERROR(VLOOKUP(C610,'CP IDs'!$A$2:$D$4422,4,FALSE),\"\")","v":""},"",null,null,null,null,null,null,null,null,null,null,null,null,null,null,null,null,null,null,null,null,null,null,null,null,null,null,null,null,null,null,null,null,null,null,null,null,null,null,null,null,null,null,null,null,-500000,500000,null,1,1,31,null,0,0,0,null,{"$f":"AND(B610=$C$9,'Standing Data'!$D$9<>\"Multi-academy Trust\")","v":{"$error":"#N/A"}}]
[{"$f":"IF(B611<>\"\",IF('Standing Data'!$D$9<>\"Multi-academy Trust\",IF('Standing Data'!$D$15=B611,\"Error - counterparty with self\",\"\"),IF(N(ISNA(MATCH(B611,'Standing Data'!$E$49:$E$148,0)))<>0,\"\",\"Error - counterparty with self\")),\"\")","v":""},{"$f":"IF(C611<>\"\",VLOOKUP(C611,'CP IDs'!A$2:B$5122,2,FALSE),\"\")","v":""},null,{"$f":"IFERROR(VLOOKUP(C611,'CP IDs'!$A$2:$D$4422,4,FALSE),\"\")","v":""},"",null,null,null,null,null,null,null,null,null,null,null,null,null,null,null,null,null,null,null,null,null,null,null,null,null,null,null,null,null,null,null,null,null,null,null,null,null,null,null,null,null,null,null,null,-500000,500000,null,1,1,31,null,0,0,0,null,{"$f":"AND(B611=$C$9,'Standing Data'!$D$9<>\"Multi-academy Trust\")","v":{"$error":"#N/A"}}]
[{"$f":"IF(B612<>\"\",IF('Standing Data'!$D$9<>\"Multi-academy Trust\",IF('Standing Data'!$D$15=B612,\"Error - counterparty with self\",\"\"),IF(N(ISNA(MATCH(B612,'Standing Data'!$E$49:$E$148,0)))<>0,\"\",\"Error - counterparty with self\")),\"\")","v":""},{"$f":"IF(C612<>\"\",VLOOKUP(C612,'CP IDs'!A$2:B$5122,2,FALSE),\"\")","v":""},null,{"$f":"IFERROR(VLOOKUP(C612,'CP IDs'!$A$2:$D$4422,4,FALSE),\"\")","v":""},"",null,null,null,null,null,null,null,null,null,null,null,null,null,null,null,null,null,null,null,null,null,null,null,null,null,null,null,null,null,null,null,null,null,null,null,null,null,null,null,null,null,null,null,null,-500000,500000,null,1,1,31,null,0,0,0,null,{"$f":"AND(B612=$C$9,'Standing Data'!$D$9<>\"Multi-academy Trust\")","v":{"$error":"#N/A"}}]
[{"$f":"IF(B613<>\"\",IF('Standing Data'!$D$9<>\"Multi-academy Trust\",IF('Standing Data'!$D$15=B613,\"Error - counterparty with self\",\"\"),IF(N(ISNA(MATCH(B613,'Standing Data'!$E$49:$E$148,0)))<>0,\"\",\"Error - counterparty with self\")),\"\")","v":""},{"$f":"IF(C613<>\"\",VLOOKUP(C613,'CP IDs'!A$2:B$5122,2,FALSE),\"\")","v":""},null,{"$f":"IFERROR(VLOOKUP(C613,'CP IDs'!$A$2:$D$4422,4,FALSE),\"\")","v":""},"",null,null,null,null,null,null,null,null,null,null,null,null,null,null,null,null,null,null,null,null,null,null,null,null,null,null,null,null,null,null,null,null,null,null,null,null,null,null,null,null,null,null,null,null,-500000,500000,null,1,1,31,null,0,0,0,null,{"$f":"AND(B613=$C$9,'Standing Data'!$D$9<>\"Multi-academy Trust\")","v":{"$error":"#N/A"}}]
[{"$f":"IF(B614<>\"\",IF('Standing Data'!$D$9<>\"Multi-academy Trust\",IF('Standing Data'!$D$15=B614,\"Error - counterparty with self\",\"\"),IF(N(ISNA(MATCH(B614,'Standing Data'!$E$49:$E$148,0)))<>0,\"\",\"Error - counterparty with self\")),\"\")","v":""},{"$f":"IF(C614<>\"\",VLOOKUP(C614,'CP IDs'!A$2:B$5122,2,FALSE),\"\")","v":""},null,{"$f":"IFERROR(VLOOKUP(C614,'CP IDs'!$A$2:$D$4422,4,FALSE),\"\")","v":""},"",null,null,null,null,null,null,null,null,null,null,null,null,null,null,null,null,null,null,null,null,null,null,null,null,null,null,null,null,null,null,null,null,null,null,null,null,null,null,null,null,null,null,null,null,-500000,500000,null,1,1,31,null,0,0,0,null,{"$f":"AND(B614=$C$9,'Standing Data'!$D$9<>\"Multi-academy Trust\")","v":{"$error":"#N/A"}}]
[{"$f":"IF(B615<>\"\",IF('Standing Data'!$D$9<>\"Multi-academy Trust\",IF('Standing Data'!$D$15=B615,\"Error - counterparty with self\",\"\"),IF(N(ISNA(MATCH(B615,'Standing Data'!$E$49:$E$148,0)))<>0,\"\",\"Error - counterparty with self\")),\"\")","v":""},{"$f":"IF(C615<>\"\",VLOOKUP(C615,'CP IDs'!A$2:B$5122,2,FALSE),\"\")","v":""},null,{"$f":"IFERROR(VLOOKUP(C615,'CP IDs'!$A$2:$D$4422,4,FALSE),\"\")","v":""},"",null,null,null,null,null,null,null,null,null,null,null,null,null,null,null,null,null,null,null,null,null,null,null,null,null,null,null,null,null,null,null,null,null,null,null,null,null,null,null,null,null,null,null,null,-500000,500000,null,1,1,31,null,0,0,0,null,{"$f":"AND(B615=$C$9,'Standing Data'!$D$9<>\"Multi-academy Trust\")","v":{"$error":"#N/A"}}]
[{"$f":"IF(B616<>\"\",IF('Standing Data'!$D$9<>\"Multi-academy Trust\",IF('Standing Data'!$D$15=B616,\"Error - counterparty with self\",\"\"),IF(N(ISNA(MATCH(B616,'Standing Data'!$E$49:$E$148,0)))<>0,\"\",\"Error - counterparty with self\")),\"\")","v":""},{"$f":"IF(C616<>\"\",VLOOKUP(C616,'CP IDs'!A$2:B$5122,2,FALSE),\"\")","v":""},null,{"$f":"IFERROR(VLOOKUP(C616,'CP IDs'!$A$2:$D$4422,4,FALSE),\"\")","v":""},"",null,null,null,null,null,null,null,null,null,null,null,null,null,null,null,null,null,null,null,null,null,null,null,null,null,null,null,null,null,null,null,null,null,null,null,null,null,null,null,null,null,null,null,null,-500000,500000,null,1,1,31,null,0,0,0,null,{"$f":"AND(B616=$C$9,'Standing Data'!$D$9<>\"Multi-academy Trust\")","v":{"$error":"#N/A"}}]
[{"$f":"IF(B617<>\"\",IF('Standing Data'!$D$9<>\"Multi-academy Trust\",IF('Standing Data'!$D$15=B617,\"Error - counterparty with self\",\"\"),IF(N(ISNA(MATCH(B617,'Standing Data'!$E$49:$E$148,0)))<>0,\"\",\"Error - counterparty with self\")),\"\")","v":""},{"$f":"IF(C617<>\"\",VLOOKUP(C617,'CP IDs'!A$2:B$5122,2,FALSE),\"\")","v":""},null,{"$f":"IFERROR(VLOOKUP(C617,'CP IDs'!$A$2:$D$4422,4,FALSE),\"\")","v":""},"",null,null,null,null,null,null,null,null,null,null,null,null,null,null,null,null,null,null,null,null,null,null,null,null,null,null,null,null,null,null,null,null,null,null,null,null,null,null,null,null,null,null,null,null,-500000,500000,null,1,1,31,null,0,0,0,null,{"$f":"AND(B617=$C$9,'Standing Data'!$D$9<>\"Multi-academy Trust\")","v":{"$error":"#N/A"}}]
[{"$f":"IF(B618<>\"\",IF('Standing Data'!$D$9<>\"Multi-academy Trust\",IF('Standing Data'!$D$15=B618,\"Error - counterparty with self\",\"\"),IF(N(ISNA(MATCH(B618,'Standing Data'!$E$49:$E$148,0)))<>0,\"\",\"Error - counterparty with self\")),\"\")","v":""},{"$f":"IF(C618<>\"\",VLOOKUP(C618,'CP IDs'!A$2:B$5122,2,FALSE),\"\")","v":""},null,{"$f":"IFERROR(VLOOKUP(C618,'CP IDs'!$A$2:$D$4422,4,FALSE),\"\")","v":""},"",null,null,null,null,null,null,null,null,null,null,null,null,null,null,null,null,null,null,null,null,null,null,null,null,null,null,null,null,null,null,null,null,null,null,null,null,null,null,null,null,null,null,null,null,-500000,500000,null,1,1,31,null,0,0,0,null,{"$f":"AND(B618=$C$9,'Standing Data'!$D$9<>\"Multi-academy Trust\")","v":{"$error":"#N/A"}}]
[{"$f":"IF(B619<>\"\",IF('Standing Data'!$D$9<>\"Multi-academy Trust\",IF('Standing Data'!$D$15=B619,\"Error - counterparty with self\",\"\"),IF(N(ISNA(MATCH(B619,'Standing Data'!$E$49:$E$148,0)))<>0,\"\",\"Error - counterparty with self\")),\"\")","v":""},{"$f":"IF(C619<>\"\",VLOOKUP(C619,'CP IDs'!A$2:B$5122,2,FALSE),\"\")","v":""},null,{"$f":"IFERROR(VLOOKUP(C619,'CP IDs'!$A$2:$D$4422,4,FALSE),\"\")","v":""},"",null,null,null,null,null,null,null,null,null,null,null,null,null,null,null,null,null,null,null,null,null,null,null,null,null,null,null,null,null,null,null,null,null,null,null,null,null,null,null,null,null,null,null,null,-500000,500000,null,1,1,31,null,0,0,0,null,{"$f":"AND(B619=$C$9,'Standing Data'!$D$9<>\"Multi-academy Trust\")","v":{"$error":"#N/A"}}]
[{"$f":"IF(B620<>\"\",IF('Standing Data'!$D$9<>\"Multi-academy Trust\",IF('Standing Data'!$D$15=B620,\"Error - counterparty with self\",\"\"),IF(N(ISNA(MATCH(B620,'Standing Data'!$E$49:$E$148,0)))<>0,\"\",\"Error - counterparty with self\")),\"\")","v":""},{"$f":"IF(C620<>\"\",VLOOKUP(C620,'CP IDs'!A$2:B$5122,2,FALSE),\"\")","v":""},null,{"$f":"IFERROR(VLOOKUP(C620,'CP IDs'!$A$2:$D$4422,4,FALSE),\"\")","v":""},"",null,null,null,null,null,null,null,null,null,null,null,null,null,null,null,null,null,null,null,null,null,null,null,null,null,null,null,null,null,null,null,null,null,null,null,null,null,null,null,null,null,null,null,null,-500000,500000,null,1,1,31,null,0,0,0,null,{"$f":"AND(B620=$C$9,'Standing Data'!$D$9<>\"Multi-academy Trust\")","v":{"$error":"#N/A"}}]
[{"$f":"IF(B621<>\"\",IF('Standing Data'!$D$9<>\"Multi-academy Trust\",IF('Standing Data'!$D$15=B621,\"Error - counterparty with self\",\"\"),IF(N(ISNA(MATCH(B621,'Standing Data'!$E$49:$E$148,0)))<>0,\"\",\"Error - counterparty with self\")),\"\")","v":""},{"$f":"IF(C621<>\"\",VLOOKUP(C621,'CP IDs'!A$2:B$5122,2,FALSE),\"\")","v":""},null,{"$f":"IFERROR(VLOOKUP(C621,'CP IDs'!$A$2:$D$4422,4,FALSE),\"\")","v":""},"",null,null,null,null,null,null,null,null,null,null,null,null,null,null,null,null,null,null,null,null,null,null,null,null,null,null,null,null,null,null,null,null,null,null,null,null,null,null,null,null,null,null,null,null,-500000,500000,null,1,1,31,null,0,0,0,null,{"$f":"AND(B621=$C$9,'Standing Data'!$D$9<>\"Multi-academy Trust\")","v":{"$error":"#N/A"}}]
[{"$f":"IF(B622<>\"\",IF('Standing Data'!$D$9<>\"Multi-academy Trust\",IF('Standing Data'!$D$15=B622,\"Error - counterparty with self\",\"\"),IF(N(ISNA(MATCH(B622,'Standing Data'!$E$49:$E$148,0)))<>0,\"\",\"Error - counterparty with self\")),\"\")","v":""},{"$f":"IF(C622<>\"\",VLOOKUP(C622,'CP IDs'!A$2:B$5122,2,FALSE),\"\")","v":""},null,{"$f":"IFERROR(VLOOKUP(C622,'CP IDs'!$A$2:$D$4422,4,FALSE),\"\")","v":""},"",null,null,null,null,null,null,null,null,null,null,null,null,null,null,null,null,null,null,null,null,null,null,null,null,null,null,null,null,null,null,null,null,null,null,null,null,null,null,null,null,null,null,null,null,-500000,500000,null,1,1,31,null,0,0,0,null,{"$f":"AND(B622=$C$9,'Standing Data'!$D$9<>\"Multi-academy Trust\")","v":{"$error":"#N/A"}}]
[{"$f":"IF(B623<>\"\",IF('Standing Data'!$D$9<>\"Multi-academy Trust\",IF('Standing Data'!$D$15=B623,\"Error - counterparty with self\",\"\"),IF(N(ISNA(MATCH(B623,'Standing Data'!$E$49:$E$148,0)))<>0,\"\",\"Error - counterparty with self\")),\"\")","v":""},{"$f":"IF(C623<>\"\",VLOOKUP(C623,'CP IDs'!A$2:B$5122,2,FALSE),\"\")","v":""},null,{"$f":"IFERROR(VLOOKUP(C623,'CP IDs'!$A$2:$D$4422,4,FALSE),\"\")","v":""},"",null,null,null,null,null,null,null,null,null,null,null,null,null,null,null,null,null,null,null,null,null,null,null,null,null,null,null,null,null,null,null,null,null,null,null,null,null,null,null,null,null,null,null,null,-500000,500000,null,1,1,31,null,0,0,0,null,{"$f":"AND(B623=$C$9,'Standing Data'!$D$9<>\"Multi-academy Trust\")","v":{"$error":"#N/A"}}]
[{"$f":"IF(B624<>\"\",IF('Standing Data'!$D$9<>\"Multi-academy Trust\",IF('Standing Data'!$D$15=B624,\"Error - counterparty with self\",\"\"),IF(N(ISNA(MATCH(B624,'Standing Data'!$E$49:$E$148,0)))<>0,\"\",\"Error - counterparty with self\")),\"\")","v":""},{"$f":"IF(C624<>\"\",VLOOKUP(C624,'CP IDs'!A$2:B$5122,2,FALSE),\"\")","v":""},null,{"$f":"IFERROR(VLOOKUP(C624,'CP IDs'!$A$2:$D$4422,4,FALSE),\"\")","v":""},"",null,null,null,null,null,null,null,null,null,null,null,null,null,null,null,null,null,null,null,null,null,null,null,null,null,null,null,null,null,null,null,null,null,null,null,null,null,null,null,null,null,null,null,null,-500000,500000,null,1,1,31,null,0,0,0,null,{"$f":"AND(B624=$C$9,'Standing Data'!$D$9<>\"Multi-academy Trust\")","v":{"$error":"#N/A"}}]
[{"$f":"IF(B625<>\"\",IF('Standing Data'!$D$9<>\"Multi-academy Trust\",IF('Standing Data'!$D$15=B625,\"Error - counterparty with self\",\"\"),IF(N(ISNA(MATCH(B625,'Standing Data'!$E$49:$E$148,0)))<>0,\"\",\"Error - counterparty with self\")),\"\")","v":""},{"$f":"IF(C625<>\"\",VLOOKUP(C625,'CP IDs'!A$2:B$5122,2,FALSE),\"\")","v":""},null,{"$f":"IFERROR(VLOOKUP(C625,'CP IDs'!$A$2:$D$4422,4,FALSE),\"\")","v":""},"",null,null,null,null,null,null,null,null,null,null,null,null,null,null,null,null,null,null,null,null,null,null,null,null,null,null,null,null,null,null,null,null,null,null,null,null,null,null,null,null,null,null,null,null,-500000,500000,null,1,1,31,null,0,0,0,null,{"$f":"AND(B625=$C$9,'Standing Data'!$D$9<>\"Multi-academy Trust\")","v":{"$error":"#N/A"}}]
[{"$f":"IF(B626<>\"\",IF('Standing Data'!$D$9<>\"Multi-academy Trust\",IF('Standing Data'!$D$15=B626,\"Error - counterparty with self\",\"\"),IF(N(ISNA(MATCH(B626,'Standing Data'!$E$49:$E$148,0)))<>0,\"\",\"Error - counterparty with self\")),\"\")","v":""},{"$f":"IF(C626<>\"\",VLOOKUP(C626,'CP IDs'!A$2:B$5122,2,FALSE),\"\")","v":""},null,{"$f":"IFERROR(VLOOKUP(C626,'CP IDs'!$A$2:$D$4422,4,FALSE),\"\")","v":""},"",null,null,null,null,null,null,null,null,null,null,null,null,null,null,null,null,null,null,null,null,null,null,null,null,null,null,null,null,null,null,null,null,null,null,null,null,null,null,null,null,null,null,null,null,-500000,500000,null,1,1,31,null,0,0,0,null,{"$f":"AND(B626=$C$9,'Standing Data'!$D$9<>\"Multi-academy Trust\")","v":{"$error":"#N/A"}}]
[{"$f":"IF(B627<>\"\",IF('Standing Data'!$D$9<>\"Multi-academy Trust\",IF('Standing Data'!$D$15=B627,\"Error - counterparty with self\",\"\"),IF(N(ISNA(MATCH(B627,'Standing Data'!$E$49:$E$148,0)))<>0,\"\",\"Error - counterparty with self\")),\"\")","v":""},{"$f":"IF(C627<>\"\",VLOOKUP(C627,'CP IDs'!A$2:B$5122,2,FALSE),\"\")","v":""},null,{"$f":"IFERROR(VLOOKUP(C627,'CP IDs'!$A$2:$D$4422,4,FALSE),\"\")","v":""},"",null,null,null,null,null,null,null,null,null,null,null,null,null,null,null,null,null,null,null,null,null,null,null,null,null,null,null,null,null,null,null,null,null,null,null,null,null,null,null,null,null,null,null,null,-500000,500000,null,1,1,31,null,0,0,0,null,{"$f":"AND(B627=$C$9,'Standing Data'!$D$9<>\"Multi-academy Trust\")","v":{"$error":"#N/A"}}]
[{"$f":"IF(B628<>\"\",IF('Standing Data'!$D$9<>\"Multi-academy Trust\",IF('Standing Data'!$D$15=B628,\"Error - counterparty with self\",\"\"),IF(N(ISNA(MATCH(B628,'Standing Data'!$E$49:$E$148,0)))<>0,\"\",\"Error - counterparty with self\")),\"\")","v":""},{"$f":"IF(C628<>\"\",VLOOKUP(C628,'CP IDs'!A$2:B$5122,2,FALSE),\"\")","v":""},null,{"$f":"IFERROR(VLOOKUP(C628,'CP IDs'!$A$2:$D$4422,4,FALSE),\"\")","v":""},"",null,null,null,null,null,null,null,null,null,null,null,null,null,null,null,null,null,null,null,null,null,null,null,null,null,null,null,null,null,null,null,null,null,null,null,null,null,null,null,null,null,null,null,null,-500000,500000,null,1,1,31,null,0,0,0,null,{"$f":"AND(B628=$C$9,'Standing Data'!$D$9<>\"Multi-academy Trust\")","v":{"$error":"#N/A"}}]
[{"$f":"IF(B629<>\"\",IF('Standing Data'!$D$9<>\"Multi-academy Trust\",IF('Standing Data'!$D$15=B629,\"Error - counterparty with self\",\"\"),IF(N(ISNA(MATCH(B629,'Standing Data'!$E$49:$E$148,0)))<>0,\"\",\"Error - counterparty with self\")),\"\")","v":""},{"$f":"IF(C629<>\"\",VLOOKUP(C629,'CP IDs'!A$2:B$5122,2,FALSE),\"\")","v":""},null,{"$f":"IFERROR(VLOOKUP(C629,'CP IDs'!$A$2:$D$4422,4,FALSE),\"\")","v":""},"",null,null,null,null,null,null,null,null,null,null,null,null,null,null,null,null,null,null,null,null,null,null,null,null,null,null,null,null,null,null,null,null,null,null,null,null,null,null,null,null,null,null,null,null,-500000,500000,null,1,1,31,null,0,0,0,null,{"$f":"AND(B629=$C$9,'Standing Data'!$D$9<>\"Multi-academy Trust\")","v":{"$error":"#N/A"}}]
[{"$f":"IF(B630<>\"\",IF('Standing Data'!$D$9<>\"Multi-academy Trust\",IF('Standing Data'!$D$15=B630,\"Error - counterparty with self\",\"\"),IF(N(ISNA(MATCH(B630,'Standing Data'!$E$49:$E$148,0)))<>0,\"\",\"Error - counterparty with self\")),\"\")","v":""},{"$f":"IF(C630<>\"\",VLOOKUP(C630,'CP IDs'!A$2:B$5122,2,FALSE),\"\")","v":""},null,{"$f":"IFERROR(VLOOKUP(C630,'CP IDs'!$A$2:$D$4422,4,FALSE),\"\")","v":""},"",null,null,null,null,null,null,null,null,null,null,null,null,null,null,null,null,null,null,null,null,null,null,null,null,null,null,null,null,null,null,null,null,null,null,null,null,null,null,null,null,null,null,null,null,-500000,500000,null,1,1,31,null,0,0,0,null,{"$f":"AND(B630=$C$9,'Standing Data'!$D$9<>\"Multi-academy Trust\")","v":{"$error":"#N/A"}}]
[{"$f":"IF(B631<>\"\",IF('Standing Data'!$D$9<>\"Multi-academy Trust\",IF('Standing Data'!$D$15=B631,\"Error - counterparty with self\",\"\"),IF(N(ISNA(MATCH(B631,'Standing Data'!$E$49:$E$148,0)))<>0,\"\",\"Error - counterparty with self\")),\"\")","v":""},{"$f":"IF(C631<>\"\",VLOOKUP(C631,'CP IDs'!A$2:B$5122,2,FALSE),\"\")","v":""},null,{"$f":"IFERROR(VLOOKUP(C631,'CP IDs'!$A$2:$D$4422,4,FALSE),\"\")","v":""},"",null,null,null,null,null,null,null,null,null,null,null,null,null,null,null,null,null,null,null,null,null,null,null,null,null,null,null,null,null,null,null,null,null,null,null,null,null,null,null,null,null,null,null,null,-500000,500000,null,1,1,31,null,0,0,0,null,{"$f":"AND(B631=$C$9,'Standing Data'!$D$9<>\"Multi-academy Trust\")","v":{"$error":"#N/A"}}]
[{"$f":"IF(B632<>\"\",IF('Standing Data'!$D$9<>\"Multi-academy Trust\",IF('Standing Data'!$D$15=B632,\"Error - counterparty with self\",\"\"),IF(N(ISNA(MATCH(B632,'Standing Data'!$E$49:$E$148,0)))<>0,\"\",\"Error - counterparty with self\")),\"\")","v":""},{"$f":"IF(C632<>\"\",VLOOKUP(C632,'CP IDs'!A$2:B$5122,2,FALSE),\"\")","v":""},null,{"$f":"IFERROR(VLOOKUP(C632,'CP IDs'!$A$2:$D$4422,4,FALSE),\"\")","v":""},"",null,null,null,null,null,null,null,null,null,null,null,null,null,null,null,null,null,null,null,null,null,null,null,null,null,null,null,null,null,null,null,null,null,null,null,null,null,null,null,null,null,null,null,null,-500000,500000,null,1,1,31,null,0,0,0,null,{"$f":"AND(B632=$C$9,'Standing Data'!$D$9<>\"Multi-academy Trust\")","v":{"$error":"#N/A"}}]
[{"$f":"IF(B633<>\"\",IF('Standing Data'!$D$9<>\"Multi-academy Trust\",IF('Standing Data'!$D$15=B633,\"Error - counterparty with self\",\"\"),IF(N(ISNA(MATCH(B633,'Standing Data'!$E$49:$E$148,0)))<>0,\"\",\"Error - counterparty with self\")),\"\")","v":""},{"$f":"IF(C633<>\"\",VLOOKUP(C633,'CP IDs'!A$2:B$5122,2,FALSE),\"\")","v":""},null,{"$f":"IFERROR(VLOOKUP(C633,'CP IDs'!$A$2:$D$4422,4,FALSE),\"\")","v":""},"",null,null,null,null,null,null,null,null,null,null,null,null,null,null,null,null,null,null,null,null,null,null,null,null,null,null,null,null,null,null,null,null,null,null,null,null,null,null,null,null,null,null,null,null,-500000,500000,null,1,1,31,null,0,0,0,null,{"$f":"AND(B633=$C$9,'Standing Data'!$D$9<>\"Multi-academy Trust\")","v":{"$error":"#N/A"}}]
[{"$f":"IF(B634<>\"\",IF('Standing Data'!$D$9<>\"Multi-academy Trust\",IF('Standing Data'!$D$15=B634,\"Error - counterparty with self\",\"\"),IF(N(ISNA(MATCH(B634,'Standing Data'!$E$49:$E$148,0)))<>0,\"\",\"Error - counterparty with self\")),\"\")","v":""},{"$f":"IF(C634<>\"\",VLOOKUP(C634,'CP IDs'!A$2:B$5122,2,FALSE),\"\")","v":""},null,{"$f":"IFERROR(VLOOKUP(C634,'CP IDs'!$A$2:$D$4422,4,FALSE),\"\")","v":""},"",null,null,null,null,null,null,null,null,null,null,null,null,null,null,null,null,null,null,null,null,null,null,null,null,null,null,null,null,null,null,null,null,null,null,null,null,null,null,null,null,null,null,null,null,-500000,500000,null,1,1,31,null,0,0,0,null,{"$f":"AND(B634=$C$9,'Standing Data'!$D$9<>\"Multi-academy Trust\")","v":{"$error":"#N/A"}}]
[{"$f":"IF(B635<>\"\",IF('Standing Data'!$D$9<>\"Multi-academy Trust\",IF('Standing Data'!$D$15=B635,\"Error - counterparty with self\",\"\"),IF(N(ISNA(MATCH(B635,'Standing Data'!$E$49:$E$148,0)))<>0,\"\",\"Error - counterparty with self\")),\"\")","v":""},{"$f":"IF(C635<>\"\",VLOOKUP(C635,'CP IDs'!A$2:B$5122,2,FALSE),\"\")","v":""},null,{"$f":"IFERROR(VLOOKUP(C635,'CP IDs'!$A$2:$D$4422,4,FALSE),\"\")","v":""},"",null,null,null,null,null,null,null,null,null,null,null,null,null,null,null,null,null,null,null,null,null,null,null,null,null,null,null,null,null,null,null,null,null,null,null,null,null,null,null,null,null,null,null,null,-500000,500000,null,1,1,31,null,0,0,0,null,{"$f":"AND(B635=$C$9,'Standing Data'!$D$9<>\"Multi-academy Trust\")","v":{"$error":"#N/A"}}]
[{"$f":"IF(B636<>\"\",IF('Standing Data'!$D$9<>\"Multi-academy Trust\",IF('Standing Data'!$D$15=B636,\"Error - counterparty with self\",\"\"),IF(N(ISNA(MATCH(B636,'Standing Data'!$E$49:$E$148,0)))<>0,\"\",\"Error - counterparty with self\")),\"\")","v":""},{"$f":"IF(C636<>\"\",VLOOKUP(C636,'CP IDs'!A$2:B$5122,2,FALSE),\"\")","v":""},null,{"$f":"IFERROR(VLOOKUP(C636,'CP IDs'!$A$2:$D$4422,4,FALSE),\"\")","v":""},"",null,null,null,null,null,null,null,null,null,null,null,null,null,null,null,null,null,null,null,null,null,null,null,null,null,null,null,null,null,null,null,null,null,null,null,null,null,null,null,null,null,null,null,null,-500000,500000,null,1,1,31,null,0,0,0,null,{"$f":"AND(B636=$C$9,'Standing Data'!$D$9<>\"Multi-academy Trust\")","v":{"$error":"#N/A"}}]
[{"$f":"IF(B637<>\"\",IF('Standing Data'!$D$9<>\"Multi-academy Trust\",IF('Standing Data'!$D$15=B637,\"Error - counterparty with self\",\"\"),IF(N(ISNA(MATCH(B637,'Standing Data'!$E$49:$E$148,0)))<>0,\"\",\"Error - counterparty with self\")),\"\")","v":""},{"$f":"IF(C637<>\"\",VLOOKUP(C637,'CP IDs'!A$2:B$5122,2,FALSE),\"\")","v":""},null,{"$f":"IFERROR(VLOOKUP(C637,'CP IDs'!$A$2:$D$4422,4,FALSE),\"\")","v":""},"",null,null,null,null,null,null,null,null,null,null,null,null,null,null,null,null,null,null,null,null,null,null,null,null,null,null,null,null,null,null,null,null,null,null,null,null,null,null,null,null,null,null,null,null,-500000,500000,null,1,1,31,null,0,0,0,null,{"$f":"AND(B637=$C$9,'Standing Data'!$D$9<>\"Multi-academy Trust\")","v":{"$error":"#N/A"}}]
[{"$f":"IF(B638<>\"\",IF('Standing Data'!$D$9<>\"Multi-academy Trust\",IF('Standing Data'!$D$15=B638,\"Error - counterparty with self\",\"\"),IF(N(ISNA(MATCH(B638,'Standing Data'!$E$49:$E$148,0)))<>0,\"\",\"Error - counterparty with self\")),\"\")","v":""},{"$f":"IF(C638<>\"\",VLOOKUP(C638,'CP IDs'!A$2:B$5122,2,FALSE),\"\")","v":""},null,{"$f":"IFERROR(VLOOKUP(C638,'CP IDs'!$A$2:$D$4422,4,FALSE),\"\")","v":""},"",null,null,null,null,null,null,null,null,null,null,null,null,null,null,null,null,null,null,null,null,null,null,null,null,null,null,null,null,null,null,null,null,null,null,null,null,null,null,null,null,null,null,null,null,-500000,500000,null,1,1,31,null,0,0,0,null,{"$f":"AND(B638=$C$9,'Standing Data'!$D$9<>\"Multi-academy Trust\")","v":{"$error":"#N/A"}}]
[{"$f":"IF(B639<>\"\",IF('Standing Data'!$D$9<>\"Multi-academy Trust\",IF('Standing Data'!$D$15=B639,\"Error - counterparty with self\",\"\"),IF(N(ISNA(MATCH(B639,'Standing Data'!$E$49:$E$148,0)))<>0,\"\",\"Error - counterparty with self\")),\"\")","v":""},{"$f":"IF(C639<>\"\",VLOOKUP(C639,'CP IDs'!A$2:B$5122,2,FALSE),\"\")","v":""},null,{"$f":"IFERROR(VLOOKUP(C639,'CP IDs'!$A$2:$D$4422,4,FALSE),\"\")","v":""},"",null,null,null,null,null,null,null,null,null,null,null,null,null,null,null,null,null,null,null,null,null,null,null,null,null,null,null,null,null,null,null,null,null,null,null,null,null,null,null,null,null,null,null,null,-500000,500000,null,1,1,31,null,0,0,0,null,{"$f":"AND(B639=$C$9,'Standing Data'!$D$9<>\"Multi-academy Trust\")","v":{"$error":"#N/A"}}]
[{"$f":"IF(B640<>\"\",IF('Standing Data'!$D$9<>\"Multi-academy Trust\",IF('Standing Data'!$D$15=B640,\"Error - counterparty with self\",\"\"),IF(N(ISNA(MATCH(B640,'Standing Data'!$E$49:$E$148,0)))<>0,\"\",\"Error - counterparty with self\")),\"\")","v":""},{"$f":"IF(C640<>\"\",VLOOKUP(C640,'CP IDs'!A$2:B$5122,2,FALSE),\"\")","v":""},null,{"$f":"IFERROR(VLOOKUP(C640,'CP IDs'!$A$2:$D$4422,4,FALSE),\"\")","v":""},"",null,null,null,null,null,null,null,null,null,null,null,null,null,null,null,null,null,null,null,null,null,null,null,null,null,null,null,null,null,null,null,null,null,null,null,null,null,null,null,null,null,null,null,null,-500000,500000,null,1,1,31,null,0,0,0,null,{"$f":"AND(B640=$C$9,'Standing Data'!$D$9<>\"Multi-academy Trust\")","v":{"$error":"#N/A"}}]
[{"$f":"IF(B641<>\"\",IF('Standing Data'!$D$9<>\"Multi-academy Trust\",IF('Standing Data'!$D$15=B641,\"Error - counterparty with self\",\"\"),IF(N(ISNA(MATCH(B641,'Standing Data'!$E$49:$E$148,0)))<>0,\"\",\"Error - counterparty with self\")),\"\")","v":""},{"$f":"IF(C641<>\"\",VLOOKUP(C641,'CP IDs'!A$2:B$5122,2,FALSE),\"\")","v":""},null,{"$f":"IFERROR(VLOOKUP(C641,'CP IDs'!$A$2:$D$4422,4,FALSE),\"\")","v":""},"",null,null,null,null,null,null,null,null,null,null,null,null,null,null,null,null,null,null,null,null,null,null,null,null,null,null,null,null,null,null,null,null,null,null,null,null,null,null,null,null,null,null,null,null,-500000,500000,null,1,1,31,null,0,0,0,null,{"$f":"AND(B641=$C$9,'Standing Data'!$D$9<>\"Multi-academy Trust\")","v":{"$error":"#N/A"}}]
[{"$f":"IF(B642<>\"\",IF('Standing Data'!$D$9<>\"Multi-academy Trust\",IF('Standing Data'!$D$15=B642,\"Error - counterparty with self\",\"\"),IF(N(ISNA(MATCH(B642,'Standing Data'!$E$49:$E$148,0)))<>0,\"\",\"Error - counterparty with self\")),\"\")","v":""},{"$f":"IF(C642<>\"\",VLOOKUP(C642,'CP IDs'!A$2:B$5122,2,FALSE),\"\")","v":""},null,{"$f":"IFERROR(VLOOKUP(C642,'CP IDs'!$A$2:$D$4422,4,FALSE),\"\")","v":""},"",null,null,null,null,null,null,null,null,null,null,null,null,null,null,null,null,null,null,null,null,null,null,null,null,null,null,null,null,null,null,null,null,null,null,null,null,null,null,null,null,null,null,null,null,-500000,500000,null,1,1,31,null,0,0,0,null,{"$f":"AND(B642=$C$9,'Standing Data'!$D$9<>\"Multi-academy Trust\")","v":{"$error":"#N/A"}}]
[{"$f":"IF(B643<>\"\",IF('Standing Data'!$D$9<>\"Multi-academy Trust\",IF('Standing Data'!$D$15=B643,\"Error - counterparty with self\",\"\"),IF(N(ISNA(MATCH(B643,'Standing Data'!$E$49:$E$148,0)))<>0,\"\",\"Error - counterparty with self\")),\"\")","v":""},{"$f":"IF(C643<>\"\",VLOOKUP(C643,'CP IDs'!A$2:B$5122,2,FALSE),\"\")","v":""},null,{"$f":"IFERROR(VLOOKUP(C643,'CP IDs'!$A$2:$D$4422,4,FALSE),\"\")","v":""},"",null,null,null,null,null,null,null,null,null,null,null,null,null,null,null,null,null,null,null,null,null,null,null,null,null,null,null,null,null,null,null,null,null,null,null,null,null,null,null,null,null,null,null,null,-500000,500000,null,1,1,31,null,0,0,0,null,{"$f":"AND(B643=$C$9,'Standing Data'!$D$9<>\"Multi-academy Trust\")","v":{"$error":"#N/A"}}]
[{"$f":"IF(B644<>\"\",IF('Standing Data'!$D$9<>\"Multi-academy Trust\",IF('Standing Data'!$D$15=B644,\"Error - counterparty with self\",\"\"),IF(N(ISNA(MATCH(B644,'Standing Data'!$E$49:$E$148,0)))<>0,\"\",\"Error - counterparty with self\")),\"\")","v":""},{"$f":"IF(C644<>\"\",VLOOKUP(C644,'CP IDs'!A$2:B$5122,2,FALSE),\"\")","v":""},null,{"$f":"IFERROR(VLOOKUP(C644,'CP IDs'!$A$2:$D$4422,4,FALSE),\"\")","v":""},"",null,null,null,null,null,null,null,null,null,null,null,null,null,null,null,null,null,null,null,null,null,null,null,null,null,null,null,null,null,null,null,null,null,null,null,null,null,null,null,null,null,null,null,null,-500000,500000,null,1,1,31,null,0,0,0,null,{"$f":"AND(B644=$C$9,'Standing Data'!$D$9<>\"Multi-academy Trust\")","v":{"$error":"#N/A"}}]
[{"$f":"IF(B645<>\"\",IF('Standing Data'!$D$9<>\"Multi-academy Trust\",IF('Standing Data'!$D$15=B645,\"Error - counterparty with self\",\"\"),IF(N(ISNA(MATCH(B645,'Standing Data'!$E$49:$E$148,0)))<>0,\"\",\"Error - counterparty with self\")),\"\")","v":""},{"$f":"IF(C645<>\"\",VLOOKUP(C645,'CP IDs'!A$2:B$5122,2,FALSE),\"\")","v":""},null,{"$f":"IFERROR(VLOOKUP(C645,'CP IDs'!$A$2:$D$4422,4,FALSE),\"\")","v":""},"",null,null,null,null,null,null,null,null,null,null,null,null,null,null,null,null,null,null,null,null,null,null,null,null,null,null,null,null,null,null,null,null,null,null,null,null,null,null,null,null,null,null,null,null,-500000,500000,null,1,1,31,null,0,0,0,null,{"$f":"AND(B645=$C$9,'Standing Data'!$D$9<>\"Multi-academy Trust\")","v":{"$error":"#N/A"}}]
[{"$f":"IF(B646<>\"\",IF('Standing Data'!$D$9<>\"Multi-academy Trust\",IF('Standing Data'!$D$15=B646,\"Error - counterparty with self\",\"\"),IF(N(ISNA(MATCH(B646,'Standing Data'!$E$49:$E$148,0)))<>0,\"\",\"Error - counterparty with self\")),\"\")","v":""},{"$f":"IF(C646<>\"\",VLOOKUP(C646,'CP IDs'!A$2:B$5122,2,FALSE),\"\")","v":""},null,{"$f":"IFERROR(VLOOKUP(C646,'CP IDs'!$A$2:$D$4422,4,FALSE),\"\")","v":""},"",null,null,null,null,null,null,null,null,null,null,null,null,null,null,null,null,null,null,null,null,null,null,null,null,null,null,null,null,null,null,null,null,null,null,null,null,null,null,null,null,null,null,null,null,-500000,500000,null,1,1,31,null,0,0,0,null,{"$f":"AND(B646=$C$9,'Standing Data'!$D$9<>\"Multi-academy Trust\")","v":{"$error":"#N/A"}}]
[{"$f":"IF(B647<>\"\",IF('Standing Data'!$D$9<>\"Multi-academy Trust\",IF('Standing Data'!$D$15=B647,\"Error - counterparty with self\",\"\"),IF(N(ISNA(MATCH(B647,'Standing Data'!$E$49:$E$148,0)))<>0,\"\",\"Error - counterparty with self\")),\"\")","v":""},{"$f":"IF(C647<>\"\",VLOOKUP(C647,'CP IDs'!A$2:B$5122,2,FALSE),\"\")","v":""},null,{"$f":"IFERROR(VLOOKUP(C647,'CP IDs'!$A$2:$D$4422,4,FALSE),\"\")","v":""},"",null,null,null,null,null,null,null,null,null,null,null,null,null,null,null,null,null,null,null,null,null,null,null,null,null,null,null,null,null,null,null,null,null,null,null,null,null,null,null,null,null,null,null,null,-500000,500000,null,1,1,31,null,0,0,0,null,{"$f":"AND(B647=$C$9,'Standing Data'!$D$9<>\"Multi-academy Trust\")","v":{"$error":"#N/A"}}]
[{"$f":"IF(B648<>\"\",IF('Standing Data'!$D$9<>\"Multi-academy Trust\",IF('Standing Data'!$D$15=B648,\"Error - counterparty with self\",\"\"),IF(N(ISNA(MATCH(B648,'Standing Data'!$E$49:$E$148,0)))<>0,\"\",\"Error - counterparty with self\")),\"\")","v":""},{"$f":"IF(C648<>\"\",VLOOKUP(C648,'CP IDs'!A$2:B$5122,2,FALSE),\"\")","v":""},null,{"$f":"IFERROR(VLOOKUP(C648,'CP IDs'!$A$2:$D$4422,4,FALSE),\"\")","v":""},"",null,null,null,null,null,null,null,null,null,null,null,null,null,null,null,null,null,null,null,null,null,null,null,null,null,null,null,null,null,null,null,null,null,null,null,null,null,null,null,null,null,null,null,null,-500000,500000,null,1,1,31,null,0,0,0,null,{"$f":"AND(B648=$C$9,'Standing Data'!$D$9<>\"Multi-academy Trust\")","v":{"$error":"#N/A"}}]
[{"$f":"IF(B649<>\"\",IF('Standing Data'!$D$9<>\"Multi-academy Trust\",IF('Standing Data'!$D$15=B649,\"Error - counterparty with self\",\"\"),IF(N(ISNA(MATCH(B649,'Standing Data'!$E$49:$E$148,0)))<>0,\"\",\"Error - counterparty with self\")),\"\")","v":""},{"$f":"IF(C649<>\"\",VLOOKUP(C649,'CP IDs'!A$2:B$5122,2,FALSE),\"\")","v":""},null,{"$f":"IFERROR(VLOOKUP(C649,'CP IDs'!$A$2:$D$4422,4,FALSE),\"\")","v":""},"",null,null,null,null,null,null,null,null,null,null,null,null,null,null,null,null,null,null,null,null,null,null,null,null,null,null,null,null,null,null,null,null,null,null,null,null,null,null,null,null,null,null,null,null,-500000,500000,null,1,1,31,null,0,0,0,null,{"$f":"AND(B649=$C$9,'Standing Data'!$D$9<>\"Multi-academy Trust\")","v":{"$error":"#N/A"}}]
[{"$f":"IF(B650<>\"\",IF('Standing Data'!$D$9<>\"Multi-academy Trust\",IF('Standing Data'!$D$15=B650,\"Error - counterparty with self\",\"\"),IF(N(ISNA(MATCH(B650,'Standing Data'!$E$49:$E$148,0)))<>0,\"\",\"Error - counterparty with self\")),\"\")","v":""},{"$f":"IF(C650<>\"\",VLOOKUP(C650,'CP IDs'!A$2:B$5122,2,FALSE),\"\")","v":""},null,{"$f":"IFERROR(VLOOKUP(C650,'CP IDs'!$A$2:$D$4422,4,FALSE),\"\")","v":""},"",null,null,null,null,null,null,null,null,null,null,null,null,null,null,null,null,null,null,null,null,null,null,null,null,null,null,null,null,null,null,null,null,null,null,null,null,null,null,null,null,null,null,null,null,-500000,500000,null,1,1,31,null,0,0,0,null,{"$f":"AND(B650=$C$9,'Standing Data'!$D$9<>\"Multi-academy Trust\")","v":{"$error":"#N/A"}}]
[{"$f":"IF(B651<>\"\",IF('Standing Data'!$D$9<>\"Multi-academy Trust\",IF('Standing Data'!$D$15=B651,\"Error - counterparty with self\",\"\"),IF(N(ISNA(MATCH(B651,'Standing Data'!$E$49:$E$148,0)))<>0,\"\",\"Error - counterparty with self\")),\"\")","v":""},{"$f":"IF(C651<>\"\",VLOOKUP(C651,'CP IDs'!A$2:B$5122,2,FALSE),\"\")","v":""},null,{"$f":"IFERROR(VLOOKUP(C651,'CP IDs'!$A$2:$D$4422,4,FALSE),\"\")","v":""},"",null,null,null,null,null,null,null,null,null,null,null,null,null,null,null,null,null,null,null,null,null,null,null,null,null,null,null,null,null,null,null,null,null,null,null,null,null,null,null,null,null,null,null,null,-500000,500000,null,1,1,31,null,0,0,0,null,{"$f":"AND(B651=$C$9,'Standing Data'!$D$9<>\"Multi-academy Trust\")","v":{"$error":"#N/A"}}]
[{"$f":"IF(B652<>\"\",IF('Standing Data'!$D$9<>\"Multi-academy Trust\",IF('Standing Data'!$D$15=B652,\"Error - counterparty with self\",\"\"),IF(N(ISNA(MATCH(B652,'Standing Data'!$E$49:$E$148,0)))<>0,\"\",\"Error - counterparty with self\")),\"\")","v":""},{"$f":"IF(C652<>\"\",VLOOKUP(C652,'CP IDs'!A$2:B$5122,2,FALSE),\"\")","v":""},null,{"$f":"IFERROR(VLOOKUP(C652,'CP IDs'!$A$2:$D$4422,4,FALSE),\"\")","v":""},"",null,null,null,null,null,null,null,null,null,null,null,null,null,null,null,null,null,null,null,null,null,null,null,null,null,null,null,null,null,null,null,null,null,null,null,null,null,null,null,null,null,null,null,null,-500000,500000,null,1,1,31,null,0,0,0,null,{"$f":"AND(B652=$C$9,'Standing Data'!$D$9<>\"Multi-academy Trust\")","v":{"$error":"#N/A"}}]
[{"$f":"IF(B653<>\"\",IF('Standing Data'!$D$9<>\"Multi-academy Trust\",IF('Standing Data'!$D$15=B653,\"Error - counterparty with self\",\"\"),IF(N(ISNA(MATCH(B653,'Standing Data'!$E$49:$E$148,0)))<>0,\"\",\"Error - counterparty with self\")),\"\")","v":""},{"$f":"IF(C653<>\"\",VLOOKUP(C653,'CP IDs'!A$2:B$5122,2,FALSE),\"\")","v":""},null,{"$f":"IFERROR(VLOOKUP(C653,'CP IDs'!$A$2:$D$4422,4,FALSE),\"\")","v":""},"",null,null,null,null,null,null,null,null,null,null,null,null,null,null,null,null,null,null,null,null,null,null,null,null,null,null,null,null,null,null,null,null,null,null,null,null,null,null,null,null,null,null,null,null,-500000,500000,null,1,1,31,null,0,0,0,null,{"$f":"AND(B653=$C$9,'Standing Data'!$D$9<>\"Multi-academy Trust\")","v":{"$error":"#N/A"}}]
[{"$f":"IF(B654<>\"\",IF('Standing Data'!$D$9<>\"Multi-academy Trust\",IF('Standing Data'!$D$15=B654,\"Error - counterparty with self\",\"\"),IF(N(ISNA(MATCH(B654,'Standing Data'!$E$49:$E$148,0)))<>0,\"\",\"Error - counterparty with self\")),\"\")","v":""},{"$f":"IF(C654<>\"\",VLOOKUP(C654,'CP IDs'!A$2:B$5122,2,FALSE),\"\")","v":""},null,{"$f":"IFERROR(VLOOKUP(C654,'CP IDs'!$A$2:$D$4422,4,FALSE),\"\")","v":""},"",null,null,null,null,null,null,null,null,null,null,null,null,null,null,null,null,null,null,null,null,null,null,null,null,null,null,null,null,null,null,null,null,null,null,null,null,null,null,null,null,null,null,null,null,-500000,500000,null,1,1,31,null,0,0,0,null,{"$f":"AND(B654=$C$9,'Standing Data'!$D$9<>\"Multi-academy Trust\")","v":{"$error":"#N/A"}}]
[{"$f":"IF(B655<>\"\",IF('Standing Data'!$D$9<>\"Multi-academy Trust\",IF('Standing Data'!$D$15=B655,\"Error - counterparty with self\",\"\"),IF(N(ISNA(MATCH(B655,'Standing Data'!$E$49:$E$148,0)))<>0,\"\",\"Error - counterparty with self\")),\"\")","v":""},{"$f":"IF(C655<>\"\",VLOOKUP(C655,'CP IDs'!A$2:B$5122,2,FALSE),\"\")","v":""},null,{"$f":"IFERROR(VLOOKUP(C655,'CP IDs'!$A$2:$D$4422,4,FALSE),\"\")","v":""},"",null,null,null,null,null,null,null,null,null,null,null,null,null,null,null,null,null,null,null,null,null,null,null,null,null,null,null,null,null,null,null,null,null,null,null,null,null,null,null,null,null,null,null,null,-500000,500000,null,1,1,31,null,0,0,0,null,{"$f":"AND(B655=$C$9,'Standing Data'!$D$9<>\"Multi-academy Trust\")","v":{"$error":"#N/A"}}]
[{"$f":"IF(B656<>\"\",IF('Standing Data'!$D$9<>\"Multi-academy Trust\",IF('Standing Data'!$D$15=B656,\"Error - counterparty with self\",\"\"),IF(N(ISNA(MATCH(B656,'Standing Data'!$E$49:$E$148,0)))<>0,\"\",\"Error - counterparty with self\")),\"\")","v":""},{"$f":"IF(C656<>\"\",VLOOKUP(C656,'CP IDs'!A$2:B$5122,2,FALSE),\"\")","v":""},null,{"$f":"IFERROR(VLOOKUP(C656,'CP IDs'!$A$2:$D$4422,4,FALSE),\"\")","v":""},"",null,null,null,null,null,null,null,null,null,null,null,null,null,null,null,null,null,null,null,null,null,null,null,null,null,null,null,null,null,null,null,null,null,null,null,null,null,null,null,null,null,null,null,null,-500000,500000,null,1,1,31,null,0,0,0,null,{"$f":"AND(B656=$C$9,'Standing Data'!$D$9<>\"Multi-academy Trust\")","v":{"$error":"#N/A"}}]
[{"$f":"IF(B657<>\"\",IF('Standing Data'!$D$9<>\"Multi-academy Trust\",IF('Standing Data'!$D$15=B657,\"Error - counterparty with self\",\"\"),IF(N(ISNA(MATCH(B657,'Standing Data'!$E$49:$E$148,0)))<>0,\"\",\"Error - counterparty with self\")),\"\")","v":""},{"$f":"IF(C657<>\"\",VLOOKUP(C657,'CP IDs'!A$2:B$5122,2,FALSE),\"\")","v":""},null,{"$f":"IFERROR(VLOOKUP(C657,'CP IDs'!$A$2:$D$4422,4,FALSE),\"\")","v":""},"",null,null,null,null,null,null,null,null,null,null,null,null,null,null,null,null,null,null,null,null,null,null,null,null,null,null,null,null,null,null,null,null,null,null,null,null,null,null,null,null,null,null,null,null,-500000,500000,null,1,1,31,null,0,0,0,null,{"$f":"AND(B657=$C$9,'Standing Data'!$D$9<>\"Multi-academy Trust\")","v":{"$error":"#N/A"}}]
[{"$f":"IF(B658<>\"\",IF('Standing Data'!$D$9<>\"Multi-academy Trust\",IF('Standing Data'!$D$15=B658,\"Error - counterparty with self\",\"\"),IF(N(ISNA(MATCH(B658,'Standing Data'!$E$49:$E$148,0)))<>0,\"\",\"Error - counterparty with self\")),\"\")","v":""},{"$f":"IF(C658<>\"\",VLOOKUP(C658,'CP IDs'!A$2:B$5122,2,FALSE),\"\")","v":""},null,{"$f":"IFERROR(VLOOKUP(C658,'CP IDs'!$A$2:$D$4422,4,FALSE),\"\")","v":""},"",null,null,null,null,null,null,null,null,null,null,null,null,null,null,null,null,null,null,null,null,null,null,null,null,null,null,null,null,null,null,null,null,null,null,null,null,null,null,null,null,null,null,null,null,-500000,500000,null,1,1,31,null,0,0,0,null,{"$f":"AND(B658=$C$9,'Standing Data'!$D$9<>\"Multi-academy Trust\")","v":{"$error":"#N/A"}}]
[{"$f":"IF(B659<>\"\",IF('Standing Data'!$D$9<>\"Multi-academy Trust\",IF('Standing Data'!$D$15=B659,\"Error - counterparty with self\",\"\"),IF(N(ISNA(MATCH(B659,'Standing Data'!$E$49:$E$148,0)))<>0,\"\",\"Error - counterparty with self\")),\"\")","v":""},{"$f":"IF(C659<>\"\",VLOOKUP(C659,'CP IDs'!A$2:B$5122,2,FALSE),\"\")","v":""},null,{"$f":"IFERROR(VLOOKUP(C659,'CP IDs'!$A$2:$D$4422,4,FALSE),\"\")","v":""},"",null,null,null,null,null,null,null,null,null,null,null,null,null,null,null,null,null,null,null,null,null,null,null,null,null,null,null,null,null,null,null,null,null,null,null,null,null,null,null,null,null,null,null,null,-500000,500000,null,1,1,31,null,0,0,0,null,{"$f":"AND(B659=$C$9,'Standing Data'!$D$9<>\"Multi-academy Trust\")","v":{"$error":"#N/A"}}]
[{"$f":"IF(B660<>\"\",IF('Standing Data'!$D$9<>\"Multi-academy Trust\",IF('Standing Data'!$D$15=B660,\"Error - counterparty with self\",\"\"),IF(N(ISNA(MATCH(B660,'Standing Data'!$E$49:$E$148,0)))<>0,\"\",\"Error - counterparty with self\")),\"\")","v":""},{"$f":"IF(C660<>\"\",VLOOKUP(C660,'CP IDs'!A$2:B$5122,2,FALSE),\"\")","v":""},null,{"$f":"IFERROR(VLOOKUP(C660,'CP IDs'!$A$2:$D$4422,4,FALSE),\"\")","v":""},"",null,null,null,null,null,null,null,null,null,null,null,null,null,null,null,null,null,null,null,null,null,null,null,null,null,null,null,null,null,null,null,null,null,null,null,null,null,null,null,null,null,null,null,null,-500000,500000,null,1,1,31,null,0,0,0,null,{"$f":"AND(B660=$C$9,'Standing Data'!$D$9<>\"Multi-academy Trust\")","v":{"$error":"#N/A"}}]
[{"$f":"IF(B661<>\"\",IF('Standing Data'!$D$9<>\"Multi-academy Trust\",IF('Standing Data'!$D$15=B661,\"Error - counterparty with self\",\"\"),IF(N(ISNA(MATCH(B661,'Standing Data'!$E$49:$E$148,0)))<>0,\"\",\"Error - counterparty with self\")),\"\")","v":""},{"$f":"IF(C661<>\"\",VLOOKUP(C661,'CP IDs'!A$2:B$5122,2,FALSE),\"\")","v":""},null,{"$f":"IFERROR(VLOOKUP(C661,'CP IDs'!$A$2:$D$4422,4,FALSE),\"\")","v":""},"",null,null,null,null,null,null,null,null,null,null,null,null,null,null,null,null,null,null,null,null,null,null,null,null,null,null,null,null,null,null,null,null,null,null,null,null,null,null,null,null,null,null,null,null,-500000,500000,null,1,1,31,null,0,0,{"$f":"COUNT(F661:AT661)","v":0},null,{"$f":"AND(B661=$C$9,'Standing Data'!$D$9<>\"Multi-academy Trust\")","v":{"$error":"#N/A"}}]
[{"$f":"IF(B662<>\"\",IF('Standing Data'!$D$9<>\"Multi-academy Trust\",IF('Standing Data'!$D$15=B662,\"Error - counterparty with self\",\"\"),IF(N(ISNA(MATCH(B662,'Standing Data'!$E$49:$E$148,0)))<>0,\"\",\"Error - counterparty with self\")),\"\")","v":""},{"$f":"IF(C662<>\"\",VLOOKUP(C662,'CP IDs'!A$2:B$5122,2,FALSE),\"\")","v":""},null,{"$f":"IFERROR(VLOOKUP(C662,'CP IDs'!$A$2:$D$4422,4,FALSE),\"\")","v":""},"",null,null,null,null,null,null,null,null,null,null,null,null,null,null,null,null,null,null,null,null,null,null,null,null,null,null,null,null,null,null,null,null,null,null,null,null,null,null,null,null,null,null,null,null,-500000,500000,null,1,1,31,null,0,0,0,null,{"$f":"AND(B662=$C$9,'Standing Data'!$D$9<>\"Multi-academy Trust\")","v":{"$error":"#N/A"}}]
[{"$f":"IF(B663<>\"\",IF('Standing Data'!$D$9<>\"Multi-academy Trust\",IF('Standing Data'!$D$15=B663,\"Error - counterparty with self\",\"\"),IF(N(ISNA(MATCH(B663,'Standing Data'!$E$49:$E$148,0)))<>0,\"\",\"Error - counterparty with self\")),\"\")","v":""},{"$f":"IF(C663<>\"\",VLOOKUP(C663,'CP IDs'!A$2:B$5122,2,FALSE),\"\")","v":""},null,{"$f":"IFERROR(VLOOKUP(C663,'CP IDs'!$A$2:$D$4422,4,FALSE),\"\")","v":""},"",null,null,null,null,null,null,null,null,null,null,null,null,null,null,null,null,null,null,null,null,null,null,null,null,null,null,null,null,null,null,null,null,null,null,null,null,null,null,null,null,null,null,null,null,{"$f":"AX662","v":-500000},{"$f":"AY662","v":500000},null,1,1,31,null,0,0,0,null,{"$f":"AND(B663=$C$9,'Standing Data'!$D$9<>\"Multi-academy Trust\")","v":{"$error":"#N/A"}}]
[{"$f":"IF(B664<>\"\",IF('Standing Data'!$D$9<>\"Multi-academy Trust\",IF('Standing Data'!$D$15=B664,\"Error - counterparty with self\",\"\"),IF(N(ISNA(MATCH(B664,'Standing Data'!$E$49:$E$148,0)))<>0,\"\",\"Error - counterparty with self\")),\"\")","v":""},{"$f":"IF(C664<>\"\",VLOOKUP(C664,'CP IDs'!A$2:B$5122,2,FALSE),\"\")","v":""},null,{"$f":"IFERROR(VLOOKUP(C664,'CP IDs'!$A$2:$D$4422,4,FALSE),\"\")","v":""},"",null,null,null,null,null,null,null,null,null,null,null,null,null,null,null,null,null,null,null,null,null,null,null,null,null,null,null,null,null,null,null,null,null,null,null,null,null,null,null,null,null,null,null,null,-500000,500000,null,1,1,31,null,0,0,0,null,{"$f":"AND(B664=$C$9,'Standing Data'!$D$9<>\"Multi-academy Trust\")","v":{"$error":"#N/A"}}]
[{"$f":"IF(B665<>\"\",IF('Standing Data'!$D$9<>\"Multi-academy Trust\",IF('Standing Data'!$D$15=B665,\"Error - counterparty with self\",\"\"),IF(N(ISNA(MATCH(B665,'Standing Data'!$E$49:$E$148,0)))<>0,\"\",\"Error - counterparty with self\")),\"\")","v":""},{"$f":"IF(C665<>\"\",VLOOKUP(C665,'CP IDs'!A$2:B$5122,2,FALSE),\"\")","v":""},null,{"$f":"IFERROR(VLOOKUP(C665,'CP IDs'!$A$2:$D$4422,4,FALSE),\"\")","v":""},"",null,null,null,null,null,null,null,null,null,null,null,null,null,null,null,null,null,null,null,null,null,null,null,null,null,null,null,null,null,null,null,null,null,null,null,null,null,null,null,null,null,null,null,null,-500000,500000,null,1,1,31,null,0,0,0,null,{"$f":"AND(B665=$C$9,'Standing Data'!$D$9<>\"Multi-academy Trust\")","v":{"$error":"#N/A"}}]
[{"$f":"IF(B666<>\"\",IF('Standing Data'!$D$9<>\"Multi-academy Trust\",IF('Standing Data'!$D$15=B666,\"Error - counterparty with self\",\"\"),IF(N(ISNA(MATCH(B666,'Standing Data'!$E$49:$E$148,0)))<>0,\"\",\"Error - counterparty with self\")),\"\")","v":""},{"$f":"IF(C666<>\"\",VLOOKUP(C666,'CP IDs'!A$2:B$5122,2,FALSE),\"\")","v":""},null,{"$f":"IFERROR(VLOOKUP(C666,'CP IDs'!$A$2:$D$4422,4,FALSE),\"\")","v":""},"",null,null,null,null,null,null,null,null,null,null,null,null,null,null,null,null,null,null,null,null,null,null,null,null,null,null,null,null,null,null,null,null,null,null,null,null,null,null,null,null,null,null,null,null,-500000,500000,null,1,1,31,null,0,0,0,null,{"$f":"AND(B666=$C$9,'Standing Data'!$D$9<>\"Multi-academy Trust\")","v":{"$error":"#N/A"}}]
[{"$f":"IF(B667<>\"\",IF('Standing Data'!$D$9<>\"Multi-academy Trust\",IF('Standing Data'!$D$15=B667,\"Error - counterparty with self\",\"\"),IF(N(ISNA(MATCH(B667,'Standing Data'!$E$49:$E$148,0)))<>0,\"\",\"Error - counterparty with self\")),\"\")","v":""},{"$f":"IF(C667<>\"\",VLOOKUP(C667,'CP IDs'!A$2:B$5122,2,FALSE),\"\")","v":""},null,{"$f":"IFERROR(VLOOKUP(C667,'CP IDs'!$A$2:$D$4422,4,FALSE),\"\")","v":""},"",null,null,null,null,null,null,null,null,null,null,null,null,null,null,null,null,null,null,null,null,null,null,null,null,null,null,null,null,null,null,null,null,null,null,null,null,null,null,null,null,null,null,null,null,-500000,500000,null,1,1,31,null,0,0,0,null,{"$f":"AND(B667=$C$9,'Standing Data'!$D$9<>\"Multi-academy Trust\")","v":{"$error":"#N/A"}}]
[{"$f":"IF(B668<>\"\",IF('Standing Data'!$D$9<>\"Multi-academy Trust\",IF('Standing Data'!$D$15=B668,\"Error - counterparty with self\",\"\"),IF(N(ISNA(MATCH(B668,'Standing Data'!$E$49:$E$148,0)))<>0,\"\",\"Error - counterparty with self\")),\"\")","v":""},{"$f":"IF(C668<>\"\",VLOOKUP(C668,'CP IDs'!A$2:B$5122,2,FALSE),\"\")","v":""},null,{"$f":"IFERROR(VLOOKUP(C668,'CP IDs'!$A$2:$D$4422,4,FALSE),\"\")","v":""},"",null,null,null,null,null,null,null,null,null,null,null,null,null,null,null,null,null,null,null,null,null,null,null,null,null,null,null,null,null,null,null,null,null,null,null,null,null,null,null,null,null,null,null,null,-500000,500000,null,1,1,31,null,0,0,0,null,{"$f":"AND(B668=$C$9,'Standing Data'!$D$9<>\"Multi-academy Trust\")","v":{"$error":"#N/A"}}]
[{"$f":"IF(B669<>\"\",IF('Standing Data'!$D$9<>\"Multi-academy Trust\",IF('Standing Data'!$D$15=B669,\"Error - counterparty with self\",\"\"),IF(N(ISNA(MATCH(B669,'Standing Data'!$E$49:$E$148,0)))<>0,\"\",\"Error - counterparty with self\")),\"\")","v":""},{"$f":"IF(C669<>\"\",VLOOKUP(C669,'CP IDs'!A$2:B$5122,2,FALSE),\"\")","v":""},null,{"$f":"IFERROR(VLOOKUP(C669,'CP IDs'!$A$2:$D$4422,4,FALSE),\"\")","v":""},"",null,null,null,null,null,null,null,null,null,null,null,null,null,null,null,null,null,null,null,null,null,null,null,null,null,null,null,null,null,null,null,null,null,null,null,null,null,null,null,null,null,null,null,null,-500000,500000,null,1,1,31,null,0,0,0,null,{"$f":"AND(B669=$C$9,'Standing Data'!$D$9<>\"Multi-academy Trust\")","v":{"$error":"#N/A"}}]
[{"$f":"IF(B670<>\"\",IF('Standing Data'!$D$9<>\"Multi-academy Trust\",IF('Standing Data'!$D$15=B670,\"Error - counterparty with self\",\"\"),IF(N(ISNA(MATCH(B670,'Standing Data'!$E$49:$E$148,0)))<>0,\"\",\"Error - counterparty with self\")),\"\")","v":""},{"$f":"IF(C670<>\"\",VLOOKUP(C670,'CP IDs'!A$2:B$5122,2,FALSE),\"\")","v":""},null,{"$f":"IFERROR(VLOOKUP(C670,'CP IDs'!$A$2:$D$4422,4,FALSE),\"\")","v":""},"",null,null,null,null,null,null,null,null,null,null,null,null,null,null,null,null,null,null,null,null,null,null,null,null,null,null,null,null,null,null,null,null,null,null,null,null,null,null,null,null,null,null,null,null,-500000,500000,null,1,1,31,null,{"$f":"COUNTA(C670)","v":0},{"$f":"1-COUNTBLANK(B670)","v":0},0,null,{"$f":"AND(B670=$C$9,'Standing Data'!$D$9<>\"Multi-academy Trust\")","v":{"$error":"#N/A"}}]
[{"$f":"IF(B671<>\"\",IF('Standing Data'!$D$9<>\"Multi-academy Trust\",IF('Standing Data'!$D$15=B671,\"Error - counterparty with self\",\"\"),IF(N(ISNA(MATCH(B671,'Standing Data'!$E$49:$E$148,0)))<>0,\"\",\"Error - counterparty with self\")),\"\")","v":""},{"$f":"IF(C671<>\"\",VLOOKUP(C671,'CP IDs'!A$2:B$5122,2,FALSE),\"\")","v":""},null,{"$f":"IFERROR(VLOOKUP(C671,'CP IDs'!$A$2:$D$4422,4,FALSE),\"\")","v":""},{"$f":"IF(OR(AND(COUNT(F671:AT671)>0,C671=\"\"),AND(COUNT(F671:AT671)=0,C671<>\"\")),\"Error - on line\",\"\")","v":""},null,null,null,null,null,null,null,null,null,null,null,null,null,null,null,null,null,null,null,null,null,null,null,null,null,null,null,null,null,null,null,null,null,null,null,null,null,null,null,null,null,null,null,null,-500000,500000,null,1,1,31,null,0,0,0,null,{"$f":"AND(B671=$C$9,'Standing Data'!$D$9<>\"Multi-academy Trust\")","v":{"$error":"#N/A"}}]
[{"$f":"IF(B672<>\"\",IF('Standing Data'!$D$9<>\"Multi-academy Trust\",IF('Standing Data'!$D$15=B672,\"Error - counterparty with self\",\"\"),IF(N(ISNA(MATCH(B672,'Standing Data'!$E$49:$E$148,0)))<>0,\"\",\"Error - counterparty with self\")),\"\")","v":""},{"$f":"IF(C672<>\"\",VLOOKUP(C672,'CP IDs'!A$2:B$5122,2,FALSE),\"\")","v":""},null,{"$f":"IFERROR(VLOOKUP(C672,'CP IDs'!$A$2:$D$4422,4,FALSE),\"\")","v":""},"",null,null,null,null,null,null,null,null,null,null,null,null,null,null,null,null,null,null,null,null,null,null,null,null,null,null,null,null,null,null,null,null,null,null,null,null,null,null,null,null,null,null,null,null,-500000,500000,null,1,1,31,null,0,0,0,null,{"$f":"AND(B672=$C$9,'Standing Data'!$D$9<>\"Multi-academy Trust\")","v":{"$error":"#N/A"}}]
[{"$f":"IF(B673<>\"\",IF('Standing Data'!$D$9<>\"Multi-academy Trust\",IF('Standing Data'!$D$15=B673,\"Error - counterparty with self\",\"\"),IF(N(ISNA(MATCH(B673,'Standing Data'!$E$49:$E$148,0)))<>0,\"\",\"Error - counterparty with self\")),\"\")","v":""},{"$f":"IF(C673<>\"\",VLOOKUP(C673,'CP IDs'!A$2:B$5122,2,FALSE),\"\")","v":""},null,{"$f":"IFERROR(VLOOKUP(C673,'CP IDs'!$A$2:$D$4422,4,FALSE),\"\")","v":""},"",null,null,null,null,null,null,null,null,null,null,null,null,null,null,null,null,null,null,null,null,null,null,null,null,null,null,null,null,null,null,null,null,null,null,null,null,null,null,null,null,null,null,null,null,-500000,500000,null,1,1,31,null,0,0,0,null,{"$f":"AND(B673=$C$9,'Standing Data'!$D$9<>\"Multi-academy Trust\")","v":{"$error":"#N/A"}}]
[{"$f":"IF(B674<>\"\",IF('Standing Data'!$D$9<>\"Multi-academy Trust\",IF('Standing Data'!$D$15=B674,\"Error - counterparty with self\",\"\"),IF(N(ISNA(MATCH(B674,'Standing Data'!$E$49:$E$148,0)))<>0,\"\",\"Error - counterparty with self\")),\"\")","v":""},{"$f":"IF(C674<>\"\",VLOOKUP(C674,'CP IDs'!A$2:B$5122,2,FALSE),\"\")","v":""},null,{"$f":"IFERROR(VLOOKUP(C674,'CP IDs'!$A$2:$D$4422,4,FALSE),\"\")","v":""},"",null,null,null,null,null,null,null,null,null,null,null,null,null,null,null,null,null,null,null,null,null,null,null,null,null,null,null,null,null,null,null,null,null,null,null,null,null,null,null,null,null,null,null,null,-500000,500000,null,1,1,31,null,0,0,0,null,{"$f":"AND(B674=$C$9,'Standing Data'!$D$9<>\"Multi-academy Trust\")","v":{"$error":"#N/A"}}]
[{"$f":"IF(B675<>\"\",IF('Standing Data'!$D$9<>\"Multi-academy Trust\",IF('Standing Data'!$D$15=B675,\"Error - counterparty with self\",\"\"),IF(N(ISNA(MATCH(B675,'Standing Data'!$E$49:$E$148,0)))<>0,\"\",\"Error - counterparty with self\")),\"\")","v":""},{"$f":"IF(C675<>\"\",VLOOKUP(C675,'CP IDs'!A$2:B$5122,2,FALSE),\"\")","v":""},null,{"$f":"IFERROR(VLOOKUP(C675,'CP IDs'!$A$2:$D$4422,4,FALSE),\"\")","v":""},"",null,null,null,null,null,null,null,null,null,null,null,null,null,null,null,null,null,null,null,null,null,null,null,null,null,null,null,null,null,null,null,null,null,null,null,null,null,null,null,null,null,null,null,null,-500000,500000,null,1,1,31,null,0,0,0,null,{"$f":"AND(B675=$C$9,'Standing Data'!$D$9<>\"Multi-academy Trust\")","v":{"$error":"#N/A"}}]
[{"$f":"IF(B676<>\"\",IF('Standing Data'!$D$9<>\"Multi-academy Trust\",IF('Standing Data'!$D$15=B676,\"Error - counterparty with self\",\"\"),IF(N(ISNA(MATCH(B676,'Standing Data'!$E$49:$E$148,0)))<>0,\"\",\"Error - counterparty with self\")),\"\")","v":""},{"$f":"IF(C676<>\"\",VLOOKUP(C676,'CP IDs'!A$2:B$5122,2,FALSE),\"\")","v":""},null,{"$f":"IFERROR(VLOOKUP(C676,'CP IDs'!$A$2:$D$4422,4,FALSE),\"\")","v":""},"",null,null,null,null,null,null,null,null,null,null,null,null,null,null,null,null,null,null,null,null,null,null,null,null,null,null,null,null,null,null,null,null,null,null,null,null,null,null,null,null,null,null,null,null,-500000,500000,null,1,1,31,null,0,0,0,null,{"$f":"AND(B676=$C$9,'Standing Data'!$D$9<>\"Multi-academy Trust\")","v":{"$error":"#N/A"}}]
[{"$f":"IF(B677<>\"\",IF('Standing Data'!$D$9<>\"Multi-academy Trust\",IF('Standing Data'!$D$15=B677,\"Error - counterparty with self\",\"\"),IF(N(ISNA(MATCH(B677,'Standing Data'!$E$49:$E$148,0)))<>0,\"\",\"Error - counterparty with self\")),\"\")","v":""},{"$f":"IF(C677<>\"\",VLOOKUP(C677,'CP IDs'!A$2:B$5122,2,FALSE),\"\")","v":""},null,{"$f":"IFERROR(VLOOKUP(C677,'CP IDs'!$A$2:$D$4422,4,FALSE),\"\")","v":""},"",null,null,null,null,null,null,null,null,null,null,null,null,null,null,null,null,null,null,null,null,null,null,null,null,null,null,null,null,null,null,null,null,null,null,null,null,null,null,null,null,null,null,null,null,-500000,500000,null,1,1,31,null,0,0,0,null,{"$f":"AND(B677=$C$9,'Standing Data'!$D$9<>\"Multi-academy Trust\")","v":{"$error":"#N/A"}}]
[{"$f":"IF(B678<>\"\",IF('Standing Data'!$D$9<>\"Multi-academy Trust\",IF('Standing Data'!$D$15=B678,\"Error - counterparty with self\",\"\"),IF(N(ISNA(MATCH(B678,'Standing Data'!$E$49:$E$148,0)))<>0,\"\",\"Error - counterparty with self\")),\"\")","v":""},{"$f":"IF(C678<>\"\",VLOOKUP(C678,'CP IDs'!A$2:B$5122,2,FALSE),\"\")","v":""},null,{"$f":"IFERROR(VLOOKUP(C678,'CP IDs'!$A$2:$D$4422,4,FALSE),\"\")","v":""},"",null,null,null,null,null,null,null,null,null,null,null,null,null,null,null,null,null,null,null,null,null,null,null,null,null,null,null,null,null,null,null,null,null,null,null,null,null,null,null,null,null,null,null,null,-500000,500000,null,1,1,31,null,0,0,0,null,{"$f":"AND(B678=$C$9,'Standing Data'!$D$9<>\"Multi-academy Trust\")","v":{"$error":"#N/A"}}]
[{"$f":"IF(B679<>\"\",IF('Standing Data'!$D$9<>\"Multi-academy Trust\",IF('Standing Data'!$D$15=B679,\"Error - counterparty with self\",\"\"),IF(N(ISNA(MATCH(B679,'Standing Data'!$E$49:$E$148,0)))<>0,\"\",\"Error - counterparty with self\")),\"\")","v":""},{"$f":"IF(C679<>\"\",VLOOKUP(C679,'CP IDs'!A$2:B$5122,2,FALSE),\"\")","v":""},null,{"$f":"IFERROR(VLOOKUP(C679,'CP IDs'!$A$2:$D$4422,4,FALSE),\"\")","v":""},"",null,null,null,null,null,null,null,null,null,null,null,null,null,null,null,null,null,null,null,null,null,null,null,null,null,null,null,null,null,null,null,null,null,null,null,null,null,null,null,null,null,null,null,null,-500000,500000,null,1,1,31,null,0,0,0,null,{"$f":"AND(B679=$C$9,'Standing Data'!$D$9<>\"Multi-academy Trust\")","v":{"$error":"#N/A"}}]
[{"$f":"IF(B680<>\"\",IF('Standing Data'!$D$9<>\"Multi-academy Trust\",IF('Standing Data'!$D$15=B680,\"Error - counterparty with self\",\"\"),IF(N(ISNA(MATCH(B680,'Standing Data'!$E$49:$E$148,0)))<>0,\"\",\"Error - counterparty with self\")),\"\")","v":""},{"$f":"IF(C680<>\"\",VLOOKUP(C680,'CP IDs'!A$2:B$5122,2,FALSE),\"\")","v":""},null,{"$f":"IFERROR(VLOOKUP(C680,'CP IDs'!$A$2:$D$4422,4,FALSE),\"\")","v":""},"",null,null,null,null,null,null,null,null,null,null,null,null,null,null,null,null,null,null,null,null,null,null,null,null,null,null,null,null,null,null,null,null,null,null,null,null,null,null,null,null,null,null,null,null,-500000,500000,null,1,1,31,null,0,0,0,null,{"$f":"AND(B680=$C$9,'Standing Data'!$D$9<>\"Multi-academy Trust\")","v":{"$error":"#N/A"}}]
[{"$f":"IF(B681<>\"\",IF('Standing Data'!$D$9<>\"Multi-academy Trust\",IF('Standing Data'!$D$15=B681,\"Error - counterparty with self\",\"\"),IF(N(ISNA(MATCH(B681,'Standing Data'!$E$49:$E$148,0)))<>0,\"\",\"Error - counterparty with self\")),\"\")","v":""},{"$f":"IF(C681<>\"\",VLOOKUP(C681,'CP IDs'!A$2:B$5122,2,FALSE),\"\")","v":""},null,{"$f":"IFERROR(VLOOKUP(C681,'CP IDs'!$A$2:$D$4422,4,FALSE),\"\")","v":""},"",null,null,null,null,null,null,null,null,null,null,null,null,null,null,null,null,null,null,null,null,null,null,null,null,null,null,null,null,null,null,null,null,null,null,null,null,null,null,null,null,null,null,null,null,-500000,500000,null,1,1,31,null,0,0,0,null,{"$f":"AND(B681=$C$9,'Standing Data'!$D$9<>\"Multi-academy Trust\")","v":{"$error":"#N/A"}}]
[{"$f":"IF(B682<>\"\",IF('Standing Data'!$D$9<>\"Multi-academy Trust\",IF('Standing Data'!$D$15=B682,\"Error - counterparty with self\",\"\"),IF(N(ISNA(MATCH(B682,'Standing Data'!$E$49:$E$148,0)))<>0,\"\",\"Error - counterparty with self\")),\"\")","v":""},{"$f":"IF(C682<>\"\",VLOOKUP(C682,'CP IDs'!A$2:B$5122,2,FALSE),\"\")","v":""},null,{"$f":"IFERROR(VLOOKUP(C682,'CP IDs'!$A$2:$D$4422,4,FALSE),\"\")","v":""},"",null,null,null,null,null,null,null,null,null,null,null,null,null,null,null,null,null,null,null,null,null,null,null,null,null,null,null,null,null,null,null,null,null,null,null,null,null,null,null,null,null,null,null,null,-500000,500000,null,1,1,31,null,0,0,0,null,{"$f":"AND(B682=$C$9,'Standing Data'!$D$9<>\"Multi-academy Trust\")","v":{"$error":"#N/A"}}]
[{"$f":"IF(B683<>\"\",IF('Standing Data'!$D$9<>\"Multi-academy Trust\",IF('Standing Data'!$D$15=B683,\"Error - counterparty with self\",\"\"),IF(N(ISNA(MATCH(B683,'Standing Data'!$E$49:$E$148,0)))<>0,\"\",\"Error - counterparty with self\")),\"\")","v":""},{"$f":"IF(C683<>\"\",VLOOKUP(C683,'CP IDs'!A$2:B$5122,2,FALSE),\"\")","v":""},null,{"$f":"IFERROR(VLOOKUP(C683,'CP IDs'!$A$2:$D$4422,4,FALSE),\"\")","v":""},"",null,null,null,null,null,null,null,null,null,null,null,null,null,null,null,null,null,null,null,null,null,null,null,null,null,null,null,null,null,null,null,null,null,null,null,null,null,null,null,null,null,null,null,null,-500000,500000,null,1,1,31,null,0,0,0,null,{"$f":"AND(B683=$C$9,'Standing Data'!$D$9<>\"Multi-academy Trust\")","v":{"$error":"#N/A"}}]
[{"$f":"IF(B684<>\"\",IF('Standing Data'!$D$9<>\"Multi-academy Trust\",IF('Standing Data'!$D$15=B684,\"Error - counterparty with self\",\"\"),IF(N(ISNA(MATCH(B684,'Standing Data'!$E$49:$E$148,0)))<>0,\"\",\"Error - counterparty with self\")),\"\")","v":""},{"$f":"IF(C684<>\"\",VLOOKUP(C684,'CP IDs'!A$2:B$5122,2,FALSE),\"\")","v":""},null,{"$f":"IFERROR(VLOOKUP(C684,'CP IDs'!$A$2:$D$4422,4,FALSE),\"\")","v":""},"",null,null,null,null,null,null,null,null,null,null,null,null,null,null,null,null,null,null,null,null,null,null,null,null,null,null,null,null,null,null,null,null,null,null,null,null,null,null,null,null,null,null,null,null,-500000,500000,null,1,1,31,null,0,0,0,null,{"$f":"AND(B684=$C$9,'Standing Data'!$D$9<>\"Multi-academy Trust\")","v":{"$error":"#N/A"}}]
[{"$f":"IF(B685<>\"\",IF('Standing Data'!$D$9<>\"Multi-academy Trust\",IF('Standing Data'!$D$15=B685,\"Error - counterparty with self\",\"\"),IF(N(ISNA(MATCH(B685,'Standing Data'!$E$49:$E$148,0)))<>0,\"\",\"Error - counterparty with self\")),\"\")","v":""},{"$f":"IF(C685<>\"\",VLOOKUP(C685,'CP IDs'!A$2:B$5122,2,FALSE),\"\")","v":""},null,{"$f":"IFERROR(VLOOKUP(C685,'CP IDs'!$A$2:$D$4422,4,FALSE),\"\")","v":""},"",null,null,null,null,null,null,null,null,null,null,null,null,null,null,null,null,null,null,null,null,null,null,null,null,null,null,null,null,null,null,null,null,null,null,null,null,null,null,null,null,null,null,null,null,-500000,500000,null,1,1,31,null,0,0,0,null,{"$f":"AND(B685=$C$9,'Standing Data'!$D$9<>\"Multi-academy Trust\")","v":{"$error":"#N/A"}}]
[{"$f":"IF(B686<>\"\",IF('Standing Data'!$D$9<>\"Multi-academy Trust\",IF('Standing Data'!$D$15=B686,\"Error - counterparty with self\",\"\"),IF(N(ISNA(MATCH(B686,'Standing Data'!$E$49:$E$148,0)))<>0,\"\",\"Error - counterparty with self\")),\"\")","v":""},{"$f":"IF(C686<>\"\",VLOOKUP(C686,'CP IDs'!A$2:B$5122,2,FALSE),\"\")","v":""},null,{"$f":"IFERROR(VLOOKUP(C686,'CP IDs'!$A$2:$D$4422,4,FALSE),\"\")","v":""},"",null,null,null,null,null,null,null,null,null,null,null,null,null,null,null,null,null,null,null,null,null,null,null,null,null,null,null,null,null,null,null,null,null,null,null,null,null,null,null,null,null,null,null,null,-500000,500000,null,1,1,31,null,0,0,0,null,{"$f":"AND(B686=$C$9,'Standing Data'!$D$9<>\"Multi-academy Trust\")","v":{"$error":"#N/A"}}]
[{"$f":"IF(B687<>\"\",IF('Standing Data'!$D$9<>\"Multi-academy Trust\",IF('Standing Data'!$D$15=B687,\"Error - counterparty with self\",\"\"),IF(N(ISNA(MATCH(B687,'Standing Data'!$E$49:$E$148,0)))<>0,\"\",\"Error - counterparty with self\")),\"\")","v":""},{"$f":"IF(C687<>\"\",VLOOKUP(C687,'CP IDs'!A$2:B$5122,2,FALSE),\"\")","v":""},null,{"$f":"IFERROR(VLOOKUP(C687,'CP IDs'!$A$2:$D$4422,4,FALSE),\"\")","v":""},"",null,null,null,null,null,null,null,null,null,null,null,null,null,null,null,null,null,null,null,null,null,null,null,null,null,null,null,null,null,null,null,null,null,null,null,null,null,null,null,null,null,null,null,null,-500000,500000,null,1,1,31,null,0,0,0,null,{"$f":"AND(B687=$C$9,'Standing Data'!$D$9<>\"Multi-academy Trust\")","v":{"$error":"#N/A"}}]
[{"$f":"IF(B688<>\"\",IF('Standing Data'!$D$9<>\"Multi-academy Trust\",IF('Standing Data'!$D$15=B688,\"Error - counterparty with self\",\"\"),IF(N(ISNA(MATCH(B688,'Standing Data'!$E$49:$E$148,0)))<>0,\"\",\"Error - counterparty with self\")),\"\")","v":""},{"$f":"IF(C688<>\"\",VLOOKUP(C688,'CP IDs'!A$2:B$5122,2,FALSE),\"\")","v":""},null,{"$f":"IFERROR(VLOOKUP(C688,'CP IDs'!$A$2:$D$4422,4,FALSE),\"\")","v":""},"",null,null,null,null,null,null,null,null,null,null,null,null,null,null,null,null,null,null,null,null,null,null,null,null,null,null,null,null,null,null,null,null,null,null,null,null,null,null,null,null,null,null,null,null,-500000,500000,null,1,1,31,null,0,0,0,null,{"$f":"AND(B688=$C$9,'Standing Data'!$D$9<>\"Multi-academy Trust\")","v":{"$error":"#N/A"}}]
[{"$f":"IF(B689<>\"\",IF('Standing Data'!$D$9<>\"Multi-academy Trust\",IF('Standing Data'!$D$15=B689,\"Error - counterparty with self\",\"\"),IF(N(ISNA(MATCH(B689,'Standing Data'!$E$49:$E$148,0)))<>0,\"\",\"Error - counterparty with self\")),\"\")","v":""},{"$f":"IF(C689<>\"\",VLOOKUP(C689,'CP IDs'!A$2:B$5122,2,FALSE),\"\")","v":""},null,{"$f":"IFERROR(VLOOKUP(C689,'CP IDs'!$A$2:$D$4422,4,FALSE),\"\")","v":""},"",null,null,null,null,null,null,null,null,null,null,null,null,null,null,null,null,null,null,null,null,null,null,null,null,null,null,null,null,null,null,null,null,null,null,null,null,null,null,null,null,null,null,null,null,-500000,500000,null,1,1,31,null,0,0,0,null,{"$f":"AND(B689=$C$9,'Standing Data'!$D$9<>\"Multi-academy Trust\")","v":{"$error":"#N/A"}}]
[{"$f":"IF(B690<>\"\",IF('Standing Data'!$D$9<>\"Multi-academy Trust\",IF('Standing Data'!$D$15=B690,\"Error - counterparty with self\",\"\"),IF(N(ISNA(MATCH(B690,'Standing Data'!$E$49:$E$148,0)))<>0,\"\",\"Error - counterparty with self\")),\"\")","v":""},{"$f":"IF(C690<>\"\",VLOOKUP(C690,'CP IDs'!A$2:B$5122,2,FALSE),\"\")","v":""},null,{"$f":"IFERROR(VLOOKUP(C690,'CP IDs'!$A$2:$D$4422,4,FALSE),\"\")","v":""},"",null,null,null,null,null,null,null,null,null,null,null,null,null,null,null,null,null,null,null,null,null,null,null,null,null,null,null,null,null,null,null,null,null,null,null,null,null,null,null,null,null,null,null,null,-500000,500000,null,1,1,31,null,0,0,0,null,{"$f":"AND(B690=$C$9,'Standing Data'!$D$9<>\"Multi-academy Trust\")","v":{"$error":"#N/A"}}]
[{"$f":"IF(B691<>\"\",IF('Standing Data'!$D$9<>\"Multi-academy Trust\",IF('Standing Data'!$D$15=B691,\"Error - counterparty with self\",\"\"),IF(N(ISNA(MATCH(B691,'Standing Data'!$E$49:$E$148,0)))<>0,\"\",\"Error - counterparty with self\")),\"\")","v":""},{"$f":"IF(C691<>\"\",VLOOKUP(C691,'CP IDs'!A$2:B$5122,2,FALSE),\"\")","v":""},null,{"$f":"IFERROR(VLOOKUP(C691,'CP IDs'!$A$2:$D$4422,4,FALSE),\"\")","v":""},"",null,null,null,null,null,null,null,null,null,null,null,null,null,null,null,null,null,null,null,null,null,null,null,null,null,null,null,null,null,null,null,null,null,null,null,null,null,null,null,null,null,null,null,null,-500000,500000,null,1,1,31,null,0,0,0,null,{"$f":"AND(B691=$C$9,'Standing Data'!$D$9<>\"Multi-academy Trust\")","v":{"$error":"#N/A"}}]
[{"$f":"IF(B692<>\"\",IF('Standing Data'!$D$9<>\"Multi-academy Trust\",IF('Standing Data'!$D$15=B692,\"Error - counterparty with self\",\"\"),IF(N(ISNA(MATCH(B692,'Standing Data'!$E$49:$E$148,0)))<>0,\"\",\"Error - counterparty with self\")),\"\")","v":""},{"$f":"IF(C692<>\"\",VLOOKUP(C692,'CP IDs'!A$2:B$5122,2,FALSE),\"\")","v":""},null,{"$f":"IFERROR(VLOOKUP(C692,'CP IDs'!$A$2:$D$4422,4,FALSE),\"\")","v":""},"",null,null,null,null,null,null,null,null,null,null,null,null,null,null,null,null,null,null,null,null,null,null,null,null,null,null,null,null,null,null,null,null,null,null,null,null,null,null,null,null,null,null,null,null,-500000,500000,null,1,1,31,null,0,0,0,null,{"$f":"AND(B692=$C$9,'Standing Data'!$D$9<>\"Multi-academy Trust\")","v":{"$error":"#N/A"}}]
[{"$f":"IF(B693<>\"\",IF('Standing Data'!$D$9<>\"Multi-academy Trust\",IF('Standing Data'!$D$15=B693,\"Error - counterparty with self\",\"\"),IF(N(ISNA(MATCH(B693,'Standing Data'!$E$49:$E$148,0)))<>0,\"\",\"Error - counterparty with self\")),\"\")","v":""},{"$f":"IF(C693<>\"\",VLOOKUP(C693,'CP IDs'!A$2:B$5122,2,FALSE),\"\")","v":""},null,{"$f":"IFERROR(VLOOKUP(C693,'CP IDs'!$A$2:$D$4422,4,FALSE),\"\")","v":""},"",null,null,null,null,null,null,null,null,null,null,null,null,null,null,null,null,null,null,null,null,null,null,null,null,null,null,null,null,null,null,null,null,null,null,null,null,null,null,null,null,null,null,null,null,-500000,500000,null,1,1,31,null,0,0,0,null,{"$f":"AND(B693=$C$9,'Standing Data'!$D$9<>\"Multi-academy Trust\")","v":{"$error":"#N/A"}}]
[{"$f":"IF(B694<>\"\",IF('Standing Data'!$D$9<>\"Multi-academy Trust\",IF('Standing Data'!$D$15=B694,\"Error - counterparty with self\",\"\"),IF(N(ISNA(MATCH(B694,'Standing Data'!$E$49:$E$148,0)))<>0,\"\",\"Error - counterparty with self\")),\"\")","v":""},{"$f":"IF(C694<>\"\",VLOOKUP(C694,'CP IDs'!A$2:B$5122,2,FALSE),\"\")","v":""},null,{"$f":"IFERROR(VLOOKUP(C694,'CP IDs'!$A$2:$D$4422,4,FALSE),\"\")","v":""},"",null,null,null,null,null,null,null,null,null,null,null,null,null,null,null,null,null,null,null,null,null,null,null,null,null,null,null,null,null,null,null,null,null,null,null,null,null,null,null,null,null,null,null,null,-500000,500000,null,1,1,31,null,0,0,0,null,{"$f":"AND(B694=$C$9,'Standing Data'!$D$9<>\"Multi-academy Trust\")","v":{"$error":"#N/A"}}]
[{"$f":"IF(B695<>\"\",IF('Standing Data'!$D$9<>\"Multi-academy Trust\",IF('Standing Data'!$D$15=B695,\"Error - counterparty with self\",\"\"),IF(N(ISNA(MATCH(B695,'Standing Data'!$E$49:$E$148,0)))<>0,\"\",\"Error - counterparty with self\")),\"\")","v":""},{"$f":"IF(C695<>\"\",VLOOKUP(C695,'CP IDs'!A$2:B$5122,2,FALSE),\"\")","v":""},null,{"$f":"IFERROR(VLOOKUP(C695,'CP IDs'!$A$2:$D$4422,4,FALSE),\"\")","v":""},"",null,null,null,null,null,null,null,null,null,null,null,null,null,null,null,null,null,null,null,null,null,null,null,null,null,null,null,null,null,null,null,null,null,null,null,null,null,null,null,null,null,null,null,null,-500000,500000,null,1,1,31,null,0,0,0,null,{"$f":"AND(B695=$C$9,'Standing Data'!$D$9<>\"Multi-academy Trust\")","v":{"$error":"#N/A"}}]
[{"$f":"IF(B696<>\"\",IF('Standing Data'!$D$9<>\"Multi-academy Trust\",IF('Standing Data'!$D$15=B696,\"Error - counterparty with self\",\"\"),IF(N(ISNA(MATCH(B696,'Standing Data'!$E$49:$E$148,0)))<>0,\"\",\"Error - counterparty with self\")),\"\")","v":""},{"$f":"IF(C696<>\"\",VLOOKUP(C696,'CP IDs'!A$2:B$5122,2,FALSE),\"\")","v":""},null,{"$f":"IFERROR(VLOOKUP(C696,'CP IDs'!$A$2:$D$4422,4,FALSE),\"\")","v":""},"",null,null,null,null,null,null,null,null,null,null,null,null,null,null,null,null,null,null,null,null,null,null,null,null,null,null,null,null,null,null,null,null,null,null,null,null,null,null,null,null,null,null,null,null,-500000,500000,null,1,1,31,null,0,0,0,null,{"$f":"AND(B696=$C$9,'Standing Data'!$D$9<>\"Multi-academy Trust\")","v":{"$error":"#N/A"}}]
[{"$f":"IF(B697<>\"\",IF('Standing Data'!$D$9<>\"Multi-academy Trust\",IF('Standing Data'!$D$15=B697,\"Error - counterparty with self\",\"\"),IF(N(ISNA(MATCH(B697,'Standing Data'!$E$49:$E$148,0)))<>0,\"\",\"Error - counterparty with self\")),\"\")","v":""},{"$f":"IF(C697<>\"\",VLOOKUP(C697,'CP IDs'!A$2:B$5122,2,FALSE),\"\")","v":""},null,{"$f":"IFERROR(VLOOKUP(C697,'CP IDs'!$A$2:$D$4422,4,FALSE),\"\")","v":""},"",null,null,null,null,null,null,null,null,null,null,null,null,null,null,null,null,null,null,null,null,null,null,null,null,null,null,null,null,null,null,null,null,null,null,null,null,null,null,null,null,null,null,null,null,-500000,500000,null,1,1,31,null,0,0,0,null,{"$f":"AND(B697=$C$9,'Standing Data'!$D$9<>\"Multi-academy Trust\")","v":{"$error":"#N/A"}}]
[{"$f":"IF(B698<>\"\",IF('Standing Data'!$D$9<>\"Multi-academy Trust\",IF('Standing Data'!$D$15=B698,\"Error - counterparty with self\",\"\"),IF(N(ISNA(MATCH(B698,'Standing Data'!$E$49:$E$148,0)))<>0,\"\",\"Error - counterparty with self\")),\"\")","v":""},{"$f":"IF(C698<>\"\",VLOOKUP(C698,'CP IDs'!A$2:B$5122,2,FALSE),\"\")","v":""},null,{"$f":"IFERROR(VLOOKUP(C698,'CP IDs'!$A$2:$D$4422,4,FALSE),\"\")","v":""},"",null,null,null,null,null,null,null,null,null,null,null,null,null,null,null,null,null,null,null,null,null,null,null,null,null,null,null,null,null,null,null,null,null,null,null,null,null,null,null,null,null,null,null,null,-500000,500000,null,1,1,31,null,0,0,0,null,{"$f":"AND(B698=$C$9,'Standing Data'!$D$9<>\"Multi-academy Trust\")","v":{"$error":"#N/A"}}]
[{"$f":"IF(B699<>\"\",IF('Standing Data'!$D$9<>\"Multi-academy Trust\",IF('Standing Data'!$D$15=B699,\"Error - counterparty with self\",\"\"),IF(N(ISNA(MATCH(B699,'Standing Data'!$E$49:$E$148,0)))<>0,\"\",\"Error - counterparty with self\")),\"\")","v":""},{"$f":"IF(C699<>\"\",VLOOKUP(C699,'CP IDs'!A$2:B$5122,2,FALSE),\"\")","v":""},null,{"$f":"IFERROR(VLOOKUP(C699,'CP IDs'!$A$2:$D$4422,4,FALSE),\"\")","v":""},"",null,null,null,null,null,null,null,null,null,null,null,null,null,null,null,null,null,null,null,null,null,null,null,null,null,null,null,null,null,null,null,null,null,null,null,null,null,null,null,null,null,null,null,null,-500000,500000,null,1,1,31,null,0,0,0,null,{"$f":"AND(B699=$C$9,'Standing Data'!$D$9<>\"Multi-academy Trust\")","v":{"$error":"#N/A"}}]
[{"$f":"IF(B700<>\"\",IF('Standing Data'!$D$9<>\"Multi-academy Trust\",IF('Standing Data'!$D$15=B700,\"Error - counterparty with self\",\"\"),IF(N(ISNA(MATCH(B700,'Standing Data'!$E$49:$E$148,0)))<>0,\"\",\"Error - counterparty with self\")),\"\")","v":""},{"$f":"IF(C700<>\"\",VLOOKUP(C700,'CP IDs'!A$2:B$5122,2,FALSE),\"\")","v":""},null,{"$f":"IFERROR(VLOOKUP(C700,'CP IDs'!$A$2:$D$4422,4,FALSE),\"\")","v":""},"",null,null,null,null,null,null,null,null,null,null,null,null,null,null,null,null,null,null,null,null,null,null,null,null,null,null,null,null,null,null,null,null,null,null,null,null,null,null,null,null,null,null,null,null,-500000,500000,null,1,1,31,null,0,0,0,null,{"$f":"AND(B700=$C$9,'Standing Data'!$D$9<>\"Multi-academy Trust\")","v":{"$error":"#N/A"}}]
[{"$f":"IF(B701<>\"\",IF('Standing Data'!$D$9<>\"Multi-academy Trust\",IF('Standing Data'!$D$15=B701,\"Error - counterparty with self\",\"\"),IF(N(ISNA(MATCH(B701,'Standing Data'!$E$49:$E$148,0)))<>0,\"\",\"Error - counterparty with self\")),\"\")","v":""},{"$f":"IF(C701<>\"\",VLOOKUP(C701,'CP IDs'!A$2:B$5122,2,FALSE),\"\")","v":""},null,{"$f":"IFERROR(VLOOKUP(C701,'CP IDs'!$A$2:$D$4422,4,FALSE),\"\")","v":""},"",null,null,null,null,null,null,null,null,null,null,null,null,null,null,null,null,null,null,null,null,null,null,null,null,null,null,null,null,null,null,null,null,null,null,null,null,null,null,null,null,null,null,null,null,-500000,500000,null,1,1,31,null,0,0,0,null,{"$f":"AND(B701=$C$9,'Standing Data'!$D$9<>\"Multi-academy Trust\")","v":{"$error":"#N/A"}}]
[{"$f":"IF(B702<>\"\",IF('Standing Data'!$D$9<>\"Multi-academy Trust\",IF('Standing Data'!$D$15=B702,\"Error - counterparty with self\",\"\"),IF(N(ISNA(MATCH(B702,'Standing Data'!$E$49:$E$148,0)))<>0,\"\",\"Error - counterparty with self\")),\"\")","v":""},{"$f":"IF(C702<>\"\",VLOOKUP(C702,'CP IDs'!A$2:B$5122,2,FALSE),\"\")","v":""},null,{"$f":"IFERROR(VLOOKUP(C702,'CP IDs'!$A$2:$D$4422,4,FALSE),\"\")","v":""},"",null,null,null,null,null,null,null,null,null,null,null,null,null,null,null,null,null,null,null,null,null,null,null,null,null,null,null,null,null,null,null,null,null,null,null,null,null,null,null,null,null,null,null,null,-500000,500000,null,1,1,31,null,0,0,0,null,{"$f":"AND(B702=$C$9,'Standing Data'!$D$9<>\"Multi-academy Trust\")","v":{"$error":"#N/A"}}]
[{"$f":"IF(B703<>\"\",IF('Standing Data'!$D$9<>\"Multi-academy Trust\",IF('Standing Data'!$D$15=B703,\"Error - counterparty with self\",\"\"),IF(N(ISNA(MATCH(B703,'Standing Data'!$E$49:$E$148,0)))<>0,\"\",\"Error - counterparty with self\")),\"\")","v":""},{"$f":"IF(C703<>\"\",VLOOKUP(C703,'CP IDs'!A$2:B$5122,2,FALSE),\"\")","v":""},null,{"$f":"IFERROR(VLOOKUP(C703,'CP IDs'!$A$2:$D$4422,4,FALSE),\"\")","v":""},"",null,null,null,null,null,null,null,null,null,null,null,null,null,null,null,null,null,null,null,null,null,null,null,null,null,null,null,null,null,null,null,null,null,null,null,null,null,null,null,null,null,null,null,null,-500000,500000,null,1,1,31,null,0,0,0,null,{"$f":"AND(B703=$C$9,'Standing Data'!$D$9<>\"Multi-academy Trust\")","v":{"$error":"#N/A"}}]
[{"$f":"IF(B704<>\"\",IF('Standing Data'!$D$9<>\"Multi-academy Trust\",IF('Standing Data'!$D$15=B704,\"Error - counterparty with self\",\"\"),IF(N(ISNA(MATCH(B704,'Standing Data'!$E$49:$E$148,0)))<>0,\"\",\"Error - counterparty with self\")),\"\")","v":""},{"$f":"IF(C704<>\"\",VLOOKUP(C704,'CP IDs'!A$2:B$5122,2,FALSE),\"\")","v":""},null,{"$f":"IFERROR(VLOOKUP(C704,'CP IDs'!$A$2:$D$4422,4,FALSE),\"\")","v":""},"",null,null,null,null,null,null,null,null,null,null,null,null,null,null,null,null,null,null,null,null,null,null,null,null,null,null,null,null,null,null,null,null,null,null,null,null,null,null,null,null,null,null,null,null,-500000,500000,null,1,1,31,null,0,0,0,null,{"$f":"AND(B704=$C$9,'Standing Data'!$D$9<>\"Multi-academy Trust\")","v":{"$error":"#N/A"}}]
[{"$f":"IF(B705<>\"\",IF('Standing Data'!$D$9<>\"Multi-academy Trust\",IF('Standing Data'!$D$15=B705,\"Error - counterparty with self\",\"\"),IF(N(ISNA(MATCH(B705,'Standing Data'!$E$49:$E$148,0)))<>0,\"\",\"Error - counterparty with self\")),\"\")","v":""},{"$f":"IF(C705<>\"\",VLOOKUP(C705,'CP IDs'!A$2:B$5122,2,FALSE),\"\")","v":""},null,{"$f":"IFERROR(VLOOKUP(C705,'CP IDs'!$A$2:$D$4422,4,FALSE),\"\")","v":""},"",null,null,null,null,null,null,null,null,null,null,null,null,null,null,null,null,null,null,null,null,null,null,null,null,null,null,null,null,null,null,null,null,null,null,null,null,null,null,null,null,null,null,null,null,-500000,500000,null,1,1,31,null,0,0,0,null,{"$f":"AND(B705=$C$9,'Standing Data'!$D$9<>\"Multi-academy Trust\")","v":{"$error":"#N/A"}}]
[{"$f":"IF(B706<>\"\",IF('Standing Data'!$D$9<>\"Multi-academy Trust\",IF('Standing Data'!$D$15=B706,\"Error - counterparty with self\",\"\"),IF(N(ISNA(MATCH(B706,'Standing Data'!$E$49:$E$148,0)))<>0,\"\",\"Error - counterparty with self\")),\"\")","v":""},{"$f":"IF(C706<>\"\",VLOOKUP(C706,'CP IDs'!A$2:B$5122,2,FALSE),\"\")","v":""},null,{"$f":"IFERROR(VLOOKUP(C706,'CP IDs'!$A$2:$D$4422,4,FALSE),\"\")","v":""},"",null,null,null,null,null,null,null,null,null,null,null,null,null,null,null,null,null,null,null,null,null,null,null,null,null,null,null,null,null,null,null,null,null,null,null,null,null,null,null,null,null,null,null,null,-500000,500000,null,1,1,31,null,0,0,0,null,{"$f":"AND(B706=$C$9,'Standing Data'!$D$9<>\"Multi-academy Trust\")","v":{"$error":"#N/A"}}]
[{"$f":"IF(B707<>\"\",IF('Standing Data'!$D$9<>\"Multi-academy Trust\",IF('Standing Data'!$D$15=B707,\"Error - counterparty with self\",\"\"),IF(N(ISNA(MATCH(B707,'Standing Data'!$E$49:$E$148,0)))<>0,\"\",\"Error - counterparty with self\")),\"\")","v":""},{"$f":"IF(C707<>\"\",VLOOKUP(C707,'CP IDs'!A$2:B$5122,2,FALSE),\"\")","v":""},null,{"$f":"IFERROR(VLOOKUP(C707,'CP IDs'!$A$2:$D$4422,4,FALSE),\"\")","v":""},"",null,null,null,null,null,null,null,null,null,null,null,null,null,null,null,null,null,null,null,null,null,null,null,null,null,null,null,null,null,null,null,null,null,null,null,null,null,null,null,null,null,null,null,null,-500000,500000,null,1,1,31,null,0,0,0,null,{"$f":"AND(B707=$C$9,'Standing Data'!$D$9<>\"Multi-academy Trust\")","v":{"$error":"#N/A"}}]
[{"$f":"IF(B708<>\"\",IF('Standing Data'!$D$9<>\"Multi-academy Trust\",IF('Standing Data'!$D$15=B708,\"Error - counterparty with self\",\"\"),IF(N(ISNA(MATCH(B708,'Standing Data'!$E$49:$E$148,0)))<>0,\"\",\"Error - counterparty with self\")),\"\")","v":""},{"$f":"IF(C708<>\"\",VLOOKUP(C708,'CP IDs'!A$2:B$5122,2,FALSE),\"\")","v":""},null,{"$f":"IFERROR(VLOOKUP(C708,'CP IDs'!$A$2:$D$4422,4,FALSE),\"\")","v":""},"",null,null,null,null,null,null,null,null,null,null,null,null,null,null,null,null,null,null,null,null,null,null,null,null,null,null,null,null,null,null,null,null,null,null,null,null,null,null,null,null,null,null,null,null,-500000,500000,null,1,1,31,null,0,0,0,null,{"$f":"AND(B708=$C$9,'Standing Data'!$D$9<>\"Multi-academy Trust\")","v":{"$error":"#N/A"}}]
[{"$f":"IF(B709<>\"\",IF('Standing Data'!$D$9<>\"Multi-academy Trust\",IF('Standing Data'!$D$15=B709,\"Error - counterparty with self\",\"\"),IF(N(ISNA(MATCH(B709,'Standing Data'!$E$49:$E$148,0)))<>0,\"\",\"Error - counterparty with self\")),\"\")","v":""},{"$f":"IF(C709<>\"\",VLOOKUP(C709,'CP IDs'!A$2:B$5122,2,FALSE),\"\")","v":""},null,{"$f":"IFERROR(VLOOKUP(C709,'CP IDs'!$A$2:$D$4422,4,FALSE),\"\")","v":""},"",null,null,null,null,null,null,null,null,null,null,null,null,null,null,null,null,null,null,null,null,null,null,null,null,null,null,null,null,null,null,null,null,null,null,null,null,null,null,null,null,null,null,null,null,-500000,500000,null,1,1,31,null,0,0,0,null,{"$f":"AND(B709=$C$9,'Standing Data'!$D$9<>\"Multi-academy Trust\")","v":{"$error":"#N/A"}}]
[{"$f":"IF(B710<>\"\",IF('Standing Data'!$D$9<>\"Multi-academy Trust\",IF('Standing Data'!$D$15=B710,\"Error - counterparty with self\",\"\"),IF(N(ISNA(MATCH(B710,'Standing Data'!$E$49:$E$148,0)))<>0,\"\",\"Error - counterparty with self\")),\"\")","v":""},{"$f":"IF(C710<>\"\",VLOOKUP(C710,'CP IDs'!A$2:B$5122,2,FALSE),\"\")","v":""},null,{"$f":"IFERROR(VLOOKUP(C710,'CP IDs'!$A$2:$D$4422,4,FALSE),\"\")","v":""},"",null,null,null,null,null,null,null,null,null,null,null,null,null,null,null,null,null,null,null,null,null,null,null,null,null,null,null,null,null,null,null,null,null,null,null,null,null,null,null,null,null,null,null,null,-500000,500000,null,1,1,31,null,0,0,0,null,{"$f":"AND(B710=$C$9,'Standing Data'!$D$9<>\"Multi-academy Trust\")","v":{"$error":"#N/A"}}]
[{"$f":"IF(B711<>\"\",IF('Standing Data'!$D$9<>\"Multi-academy Trust\",IF('Standing Data'!$D$15=B711,\"Error - counterparty with self\",\"\"),IF(N(ISNA(MATCH(B711,'Standing Data'!$E$49:$E$148,0)))<>0,\"\",\"Error - counterparty with self\")),\"\")","v":""},{"$f":"IF(C711<>\"\",VLOOKUP(C711,'CP IDs'!A$2:B$5122,2,FALSE),\"\")","v":""},null,{"$f":"IFERROR(VLOOKUP(C711,'CP IDs'!$A$2:$D$4422,4,FALSE),\"\")","v":""},"",null,null,null,null,null,null,null,null,null,null,null,null,null,null,null,null,null,null,null,null,null,null,null,null,null,null,null,null,null,null,null,null,null,null,null,null,null,null,null,null,null,null,null,null,-500000,500000,null,1,1,31,null,0,0,0,null,{"$f":"AND(B711=$C$9,'Standing Data'!$D$9<>\"Multi-academy Trust\")","v":{"$error":"#N/A"}}]
[{"$f":"IF(B712<>\"\",IF('Standing Data'!$D$9<>\"Multi-academy Trust\",IF('Standing Data'!$D$15=B712,\"Error - counterparty with self\",\"\"),IF(N(ISNA(MATCH(B712,'Standing Data'!$E$49:$E$148,0)))<>0,\"\",\"Error - counterparty with self\")),\"\")","v":""},{"$f":"IF(C712<>\"\",VLOOKUP(C712,'CP IDs'!A$2:B$5122,2,FALSE),\"\")","v":""},null,{"$f":"IFERROR(VLOOKUP(C712,'CP IDs'!$A$2:$D$4422,4,FALSE),\"\")","v":""},"",null,null,null,null,null,null,null,null,null,null,null,null,null,null,null,null,null,null,null,null,null,null,null,null,null,null,null,null,null,null,null,null,null,null,null,null,null,null,null,null,null,null,null,null,-500000,500000,null,1,1,31,null,0,0,0,null,{"$f":"AND(B712=$C$9,'Standing Data'!$D$9<>\"Multi-academy Trust\")","v":{"$error":"#N/A"}}]
[{"$f":"IF(B713<>\"\",IF('Standing Data'!$D$9<>\"Multi-academy Trust\",IF('Standing Data'!$D$15=B713,\"Error - counterparty with self\",\"\"),IF(N(ISNA(MATCH(B713,'Standing Data'!$E$49:$E$148,0)))<>0,\"\",\"Error - counterparty with self\")),\"\")","v":""},{"$f":"IF(C713<>\"\",VLOOKUP(C713,'CP IDs'!A$2:B$5122,2,FALSE),\"\")","v":""},null,{"$f":"IFERROR(VLOOKUP(C713,'CP IDs'!$A$2:$D$4422,4,FALSE),\"\")","v":""},"",null,null,null,null,null,null,null,null,null,null,null,null,null,null,null,null,null,null,null,null,null,null,null,null,null,null,null,null,null,null,null,null,null,null,null,null,null,null,null,null,null,null,null,null,-500000,500000,null,1,1,31,null,0,0,0,null,{"$f":"AND(B713=$C$9,'Standing Data'!$D$9<>\"Multi-academy Trust\")","v":{"$error":"#N/A"}}]
[{"$f":"IF(B714<>\"\",IF('Standing Data'!$D$9<>\"Multi-academy Trust\",IF('Standing Data'!$D$15=B714,\"Error - counterparty with self\",\"\"),IF(N(ISNA(MATCH(B714,'Standing Data'!$E$49:$E$148,0)))<>0,\"\",\"Error - counterparty with self\")),\"\")","v":""},{"$f":"IF(C714<>\"\",VLOOKUP(C714,'CP IDs'!A$2:B$5122,2,FALSE),\"\")","v":""},null,{"$f":"IFERROR(VLOOKUP(C714,'CP IDs'!$A$2:$D$4422,4,FALSE),\"\")","v":""},"",null,null,null,null,null,null,null,null,null,null,null,null,null,null,null,null,null,null,null,null,null,null,null,null,null,null,null,null,null,null,null,null,null,null,null,null,null,null,null,null,null,null,null,null,-500000,500000,null,1,1,31,null,0,0,0,null,{"$f":"AND(B714=$C$9,'Standing Data'!$D$9<>\"Multi-academy Trust\")","v":{"$error":"#N/A"}}]
[{"$f":"IF(B715<>\"\",IF('Standing Data'!$D$9<>\"Multi-academy Trust\",IF('Standing Data'!$D$15=B715,\"Error - counterparty with self\",\"\"),IF(N(ISNA(MATCH(B715,'Standing Data'!$E$49:$E$148,0)))<>0,\"\",\"Error - counterparty with self\")),\"\")","v":""},{"$f":"IF(C715<>\"\",VLOOKUP(C715,'CP IDs'!A$2:B$5122,2,FALSE),\"\")","v":""},null,{"$f":"IFERROR(VLOOKUP(C715,'CP IDs'!$A$2:$D$4422,4,FALSE),\"\")","v":""},"",null,null,null,null,null,null,null,null,null,null,null,null,null,null,null,null,null,null,null,null,null,null,null,null,null,null,null,null,null,null,null,null,null,null,null,null,null,null,null,null,null,null,null,null,-500000,500000,null,1,1,31,null,0,0,0,null,{"$f":"AND(B715=$C$9,'Standing Data'!$D$9<>\"Multi-academy Trust\")","v":{"$error":"#N/A"}}]
[{"$f":"IF(B716<>\"\",IF('Standing Data'!$D$9<>\"Multi-academy Trust\",IF('Standing Data'!$D$15=B716,\"Error - counterparty with self\",\"\"),IF(N(ISNA(MATCH(B716,'Standing Data'!$E$49:$E$148,0)))<>0,\"\",\"Error - counterparty with self\")),\"\")","v":""},{"$f":"IF(C716<>\"\",VLOOKUP(C716,'CP IDs'!A$2:B$5122,2,FALSE),\"\")","v":""},null,{"$f":"IFERROR(VLOOKUP(C716,'CP IDs'!$A$2:$D$4422,4,FALSE),\"\")","v":""},"",null,null,null,null,null,null,null,null,null,null,null,null,null,null,null,null,null,null,null,null,null,null,null,null,null,null,null,null,null,null,null,null,null,null,null,null,null,null,null,null,null,null,null,null,-500000,500000,null,1,1,31,null,0,0,0,null,{"$f":"AND(B716=$C$9,'Standing Data'!$D$9<>\"Multi-academy Trust\")","v":{"$error":"#N/A"}}]
[{"$f":"IF(B717<>\"\",IF('Standing Data'!$D$9<>\"Multi-academy Trust\",IF('Standing Data'!$D$15=B717,\"Error - counterparty with self\",\"\"),IF(N(ISNA(MATCH(B717,'Standing Data'!$E$49:$E$148,0)))<>0,\"\",\"Error - counterparty with self\")),\"\")","v":""},{"$f":"IF(C717<>\"\",VLOOKUP(C717,'CP IDs'!A$2:B$5122,2,FALSE),\"\")","v":""},null,{"$f":"IFERROR(VLOOKUP(C717,'CP IDs'!$A$2:$D$4422,4,FALSE),\"\")","v":""},"",null,null,null,null,null,null,null,null,null,null,null,null,null,null,null,null,null,null,null,null,null,null,null,null,null,null,null,null,null,null,null,null,null,null,null,null,null,null,null,null,null,null,null,null,-500000,500000,null,1,1,31,null,0,0,0,null,{"$f":"AND(B717=$C$9,'Standing Data'!$D$9<>\"Multi-academy Trust\")","v":{"$error":"#N/A"}}]
[{"$f":"IF(B718<>\"\",IF('Standing Data'!$D$9<>\"Multi-academy Trust\",IF('Standing Data'!$D$15=B718,\"Error - counterparty with self\",\"\"),IF(N(ISNA(MATCH(B718,'Standing Data'!$E$49:$E$148,0)))<>0,\"\",\"Error - counterparty with self\")),\"\")","v":""},{"$f":"IF(C718<>\"\",VLOOKUP(C718,'CP IDs'!A$2:B$5122,2,FALSE),\"\")","v":""},null,{"$f":"IFERROR(VLOOKUP(C718,'CP IDs'!$A$2:$D$4422,4,FALSE),\"\")","v":""},"",null,null,null,null,null,null,null,null,null,null,null,null,null,null,null,null,null,null,null,null,null,null,null,null,null,null,null,null,null,null,null,null,null,null,null,null,null,null,null,null,null,null,null,null,-500000,500000,null,1,1,31,null,0,0,0,null,{"$f":"AND(B718=$C$9,'Standing Data'!$D$9<>\"Multi-academy Trust\")","v":{"$error":"#N/A"}}]
[{"$f":"IF(B719<>\"\",IF('Standing Data'!$D$9<>\"Multi-academy Trust\",IF('Standing Data'!$D$15=B719,\"Error - counterparty with self\",\"\"),IF(N(ISNA(MATCH(B719,'Standing Data'!$E$49:$E$148,0)))<>0,\"\",\"Error - counterparty with self\")),\"\")","v":""},{"$f":"IF(C719<>\"\",VLOOKUP(C719,'CP IDs'!A$2:B$5122,2,FALSE),\"\")","v":""},null,{"$f":"IFERROR(VLOOKUP(C719,'CP IDs'!$A$2:$D$4422,4,FALSE),\"\")","v":""},"",null,null,null,null,null,null,null,null,null,null,null,null,null,null,null,null,null,null,null,null,null,null,null,null,null,null,null,null,null,null,null,null,null,null,null,null,null,null,null,null,null,null,null,null,-500000,500000,null,1,1,31,null,0,0,{"$f":"COUNT(F719:AT719)","v":0},null,{"$f":"AND(B719=$C$9,'Standing Data'!$D$9<>\"Multi-academy Trust\")","v":{"$error":"#N/A"}}]
[{"$f":"IF(B720<>\"\",IF('Standing Data'!$D$9<>\"Multi-academy Trust\",IF('Standing Data'!$D$15=B720,\"Error - counterparty with self\",\"\"),IF(N(ISNA(MATCH(B720,'Standing Data'!$E$49:$E$148,0)))<>0,\"\",\"Error - counterparty with self\")),\"\")","v":""},{"$f":"IF(C720<>\"\",VLOOKUP(C720,'CP IDs'!A$2:B$5122,2,FALSE),\"\")","v":""},null,{"$f":"IFERROR(VLOOKUP(C720,'CP IDs'!$A$2:$D$4422,4,FALSE),\"\")","v":""},"",null,null,null,null,null,null,null,null,null,null,null,null,null,null,null,null,null,null,null,null,null,null,null,null,null,null,null,null,null,null,null,null,null,null,null,null,null,null,null,null,null,null,null,null,-500000,500000,null,1,1,31,null,0,0,{"$f":"COUNT(F720:AT720)","v":0},null,{"$f":"AND(B720=$C$9,'Standing Data'!$D$9<>\"Multi-academy Trust\")","v":{"$error":"#N/A"}}]
[{"$f":"IF(B721<>\"\",IF('Standing Data'!$D$9<>\"Multi-academy Trust\",IF('Standing Data'!$D$15=B721,\"Error - counterparty with self\",\"\"),IF(N(ISNA(MATCH(B721,'Standing Data'!$E$49:$E$148,0)))<>0,\"\",\"Error - counterparty with self\")),\"\")","v":""},{"$f":"IF(C721<>\"\",VLOOKUP(C721,'CP IDs'!A$2:B$5122,2,FALSE),\"\")","v":""},null,{"$f":"IFERROR(VLOOKUP(C721,'CP IDs'!$A$2:$D$4422,4,FALSE),\"\")","v":""},"",null,null,null,null,null,null,null,null,null,null,null,null,null,null,null,null,null,null,null,null,null,null,null,null,null,null,null,null,null,null,null,null,null,null,null,null,null,null,null,null,null,null,null,null,-500000,500000,null,1,1,31,null,0,0,{"$f":"COUNT(F721:AT721)","v":0},null,{"$f":"AND(B721=$C$9,'Standing Data'!$D$9<>\"Multi-academy Trust\")","v":{"$error":"#N/A"}}]

{"sheet":"Subsidiaries","index":4,"n_rows":23,"n_cols":23,"rows_kept":23,"cut":false,"hidden":true,"merged":[[10,4,10,5],[10,6,10,9],[8,13,8,17],[8,18,8,22]]}
["Accounts Return March 2014 - Subsidiaries"]
[]
["Trust:",null,{"$f":"'Standing Data'!$D$3","v":"Type name here"},null,null,null,"% of cells"]
[]
["Period end:",null,{"$f":"'Standing Data'!$D$6","v":"2014-03-31"},null,null,"Sourced directly from Financial Statements",{"$f":"+(N11/R11)","v":0.625}]
[]
["Co. No.:",null,{"$f":"'Standing Data'!D12","v":"Type number here"},null,null,"Additional to Financial Statements, prepared on a similar basis",{"$f":"+(O11/R11)","v":0.25}]
[]
["Academy UPIN:",null,{"$f":"IF(AND(OR('Standing Data'!D9=\"Multi-academy Trust\",'Standing Data'!D9=\"Federation\"),'Standing Data'!M49=0),'Standing Data'!E49,IF('Standing Data'!M49<>0,'Standing Data'!M49,IF(OR('Standing Data'!D9=\"Other\",'Standing Data'!F15<>\"\"),'Standing Data'!F15,'Standing Data'!D15)))","v":{"$error":"#N/A"}},null,null,"Additional to Financial Statements, prepared on a different/new basis",{"$f":"+(P11/R11)","v":0.125},null,null,null,null,null,null,"Possible Cells",null,null,null,null,"Completed Cells"]
[null,null,"Above details will populate automatically","Error check cells",null,null,null,null,null,null,null,null,null,"Green","Amber","Red","Grey","Total","Green","Amber","Red","Grey","Total"]
[null,null,null,null,"For the period",null,"At the period end",null,null,null,null,null,null,{"$f":"+SUM(N14:N23)","v":50},{"$f":"+SUM(O14:O23)","v":20},10,0,80]
[null,null,"Full name of subsidiary company","Company number","Turnover","Profit","Assets","Loans","Other Liabilities","Capital and Reserves",null,"Lower limit","Upper limit "]
[null,null,null,null,"£000","£000","£000","£000","£000","£000",null,"£000","£000"]
[null,null,"Subsidiary 1",null,null,null,null,null,null,null,{"$f":"+IF(G14<>SUM(H14:J14), \"Error-balance sheet does not balance\",\"\")","v":""},-500000,500000,5,2,1,null,{"$f":"+SUM(N14:Q14)","v":8}]
[null,null,"Subsidiary 2",null,null,null,null,null,null,null,{"$f":"+IF(G15<>SUM(H15:J15), \"Error-balance sheet does not balance\",\"\")","v":""},-500000,500000,5,2,1,null,{"$f":"+SUM(N15:Q15)","v":8}]
[null,null,"Subsidiary 3",null,null,null,null,null,null,null,"",-500000,500000,5,2,1,null,8]
[null,null,"Subsidiary 4",null,null,null,null,null,null,null,"",-500000,500000,5,2,1,null,8]
[null,null,"Subsidiary 5",null,null,null,null,null,null,null,"",-500000,500000,5,2,1,null,8]
[null,null,"Subsidiary 6",null,null,null,null,null,null,null,"",-500000,500000,5,2,1,null,8]
[null,null,"Subsidiary 7",null,null,null,null,null,null,null,"",-500000,500000,5,2,1,null,8]
[null,null,"Subsidiary 8",null,null,null,null,null,null,null,"",-500000,500000,5,2,1,null,8]
[null,null,"Subsidiary 9",null,null,null,null,null,null,null,"",-500000,500000,5,2,1,null,8]
[null,null,"Subsidiary 10",null,null,null,null,null,null,null,"",-500000,500000,5,2,1,null,8]

{"sheet":"Bench.Return ","index":5,"n_rows":155,"n_cols":113,"rows_kept":155,"cut":false,"hidden":true,"merged":[[12,5,12,8],[13,5,13,8],[14,5,14,8]]}
["Accounts Return March 2014 - Benchmarking Return"]
[]
["Trust:",null,{"$f":"'Standing Data'!$D$3","v":"Type name here"}]
[]
["Period end:",null,{"$f":"'Standing Data'!$D$6","v":"2014-03-31"},null,null,"Sourced directly from Financial Statements"]
[]
["Co. No.:",null,{"$f":"'Standing Data'!D12","v":"Type number here"},null,null,"Additional to Financial Statements, prepared on a similar basis"]
[]
["Academy UPIN:",null,{"$f":"Fin.Return!C9","v":{"$error":"#N/A"}},null,null,"Cells populate automatically from elsewhere in the Return"]
[null,null,"Above details will populate automatically"]
[]
["BENCHMARKING RETURN",null,null,null,null,null,null,null,null,null,"These columns are for MATs only"]
[null,null,"Academy Name",null,null,{"$f":"+(C3)","v":"Type name here"},null,null,null,null,"Central Services",{"$f":"'Standing Data'!D49","v":"Academy name"},{"$f":"'Standing Data'!D50","v":"Academy name"},{"$f":"'Standing Data'!D51","v":"Academy name"},{"$f":"'Standing Data'!D52","v":"Academy name"},{"$f":"'Standing Data'!D53","v":"Academy name"},{"$f":"'Standing Data'!D54","v":"Academy name"},{"$f":"'Standing Data'!D55","v":"Academy name"},{"$f":"'Standing Data'!D56","v":"Academy name"},{"$f":"'Standing Data'!D57","v":"Academy name"},{"$f":"'Standing Data'!D58","v":"Academy name"},{"$f":"'Standing Data'!D59","v":"Academy name"},{"$f":"'Standing Data'!D60","v":"Academy name"},{"$f":"'Standing Data'!D61","v":"Academy name"},{"$f":"'Standing Data'!D62","v":"Academy name"},{"$f":"'Standing Data'!D63","v":"Academy name"},{"$f":"'Standing Data'!D64","v":"Academy name"},{"$f":"'Standing Data'!D65","v":"Academy name"},{"$f":"'Standing Data'!D66","v":"Academy name"},{"$f":"'Standing Data'!D67","v":"Academy name"},{"$f":"'Standing Data'!D68","v":"Academy name"},{"$f":"'Standing Data'!D69","v":"Academy name"},{"$f":"'Standing Data'!D70","v":"Academy name"},{"$f":"'Standing Data'!D71","v":"Academy name"},{"$f":"'Standing Data'!D72","v":"Academy name"},{"$f":"'Standing Data'!D73","v":"Academy name"},{"$f":"'Standing Data'!D74","v":"Academy name"},{"$f":"'Standing Data'!D75","v":"Academy name"},{"$f":"'Standing Data'!D76","v":"Academy name"},{"$f":"'Standing Data'!D77","v":"Academy name"},{"$f":"'Standing Data'!D78","v":"Academy name"},{"$f":"'Standing Data'!D79","v":"Academy name"},{"$f":"'Standing Data'!D80","v":"Academy name"},{"$f":"'Standing Data'!D81","v":"Academy name"},{"$f":"'Standing Data'!D82","v":"Academy name"},{"$f":"'Standing Data'!D83","v":"Academy name"},{"$f":"'Standing Data'!D84","v":"Academy name"},{"$f":"'Standing Data'!D85","v":"Academy name"},{"$f":"'Standing Data'!D86","v":"Academy name"},{"$f":"'Standing Data'!D87","v":"Academy name"},{"$f":"'Standing Data'!D88","v":"Academy name"},{"$f":"'Standing Data'!D89","v":"Academy name"},{"$f":"'Standing Data'!D90","v":"Academy name"},{"$f":"'Standing Data'!D91","v":"Academy name"},{"$f":"'Standing Data'!D92","v":"Academy name"},{"$f":"'Standing Data'!D93","v":"Academy name"},{"$f":"'Standing Data'!D94","v":"Academy name"},{"$f":"'Standing Data'!D95","v":"Academy name"},{"$f":"'Standing Data'!D96","v":"Academy name"},{"$f":"'Standing Data'!D97","v":"Academy name"},{"$f":"'Standing Data'!D98","v":"Academy name"},{"$f":"'Standing Data'!D99","v":"Academy name"},{"$f":"'Standing Data'!D100","v":"Academy name"},{"$f":"'Standing Data'!D101","v":"Academy name"},{"$f":"'Standing Data'!D102","v":"Academy name"},{"$f":"'Standing Data'!D103","v":"Academy name"},{"$f":"'Standing Data'!D104","v":"Academy name"},{"$f":"'Standing Data'!D105","v":"Academy name"},{"$f":"'Standing Data'!D106","v":"Academy name"},{"$f":"'Standing Data'!D107","v":"Academy name"},{"$f":"'Standing Data'!D108","v":"Academy name"},{"$f":"'Standing Data'!D109","v":"Academy name"},{"$f":"'Standing Data'!D110","v":"Academy name"},{"$f":"'Standing Data'!D111","v":"Academy name"},{"$f":"'Standing Data'!D112","v":"Academy name"},{"$f":"'Standing Data'!D113","v":"Academy name"},{"$f":"'Standing Data'!D114","v":"Academy name"},{"$f":"'Standing Data'!D115","v":"Academy name"},{"$f":"'Standing Data'!D116","v":"Academy name"},{"$f":"'Standing Data'!D117","v":"Academy name"},{"$f":"'Standing Data'!D118","v":"Academy name"},{"$f":"'Standing Data'!D119","v":"Academy name"},{"$f":"'Standing Data'!D120","v":"Academy name"},{"$f":"'Standing Data'!D121","v":"Academy name"},{"$f":"'Standing Data'!D122","v":"Academy name"},{"$f":"'Standing Data'!D123","v":"Academy name"},{"$f":"'Standing Data'!D124","v":"Academy name"},{"$f":"'Standing Data'!D125","v":"Academy name"},{"$f":"'Standing Data'!D126","v":"Academy name"},{"$f":"'Standing Data'!D127","v":"Academy name"},{"$f":"'Standing Data'!D128","v":"Academy name"},{"$f":"'Standing Data'!D129","v":"Academy name"},{"$f":"'Standing Data'!D130","v":"Academy name"},{"$f":"'Standing Data'!D131","v":"Academy name"},{"$f":"'Standing Data'!D132","v":"Academy name"},{"$f":"'Standing Data'!D133","v":"Academy name"},{"$f":"'Standing Data'!D134","v":"Academy name"},{"$f":"'Standing Data'!D135","v":"Academy name"},{"$f":"'Standing Data'!D136","v":"Academy name"},{"$f":"'Standing Data'!D137","v":"Academy name"},{"$f":"'Standing Data'!D138","v":"Academy name"},{"$f":"'Standing Data'!D139","v":"Academy name"},{"$f":"'Standing Data'!D140","v":"Academy name"},{"$f":"'Standing Data'!D141","v":"Academy name"},{"$f":"'Standing Data'!D142","v":"Academy name"},{"$f":"'Standing Data'!D143","v":"Academy name"},{"$f":"'Standing Data'!D144","v":"Academy name"},{"$f":"'Standing Data'!D145","v":"Academy name"},{"$f":"'Standing Data'!D146","v":"Academy name"},{"$f":"'Standing Data'!D147","v":"Academy name"},{"$f":"'Standing Data'!D148","v":"Academy name"}]
[null,null,"Period Length (months)"]
[null,null,"UPIN",null,"Errors",{"$f":"IFERROR(VLOOKUP(F$1031,Reference!$O$11:$S$2833,5,FALSE),\"\")","v":""},{"$f":"IFERROR(VLOOKUP(G$1031,Reference!$O$11:$S$2833,5,FALSE),\"\")","v":""},{"$f":"IFERROR(VLOOKUP(H$1031,Reference!$O$11:$S$2833,5,FALSE),\"\")","v":""},{"$f":"IFERROR(VLOOKUP(I$1031,Reference!$O$11:$S$2833,5,FALSE),\"\")","v":""},null,{"$f":"IFERROR(VLOOKUP(K$1031,Reference!$O$11:$S$2833,5,FALSE),\"\")","v":""},{"$f":"+('Standing Data'!$E49)","v":""},{"$f":"+('Standing Data'!$E50)","v":""},{"$f":"+('Standing Data'!$E51)","v":""},{"$f":"+('Standing Data'!$E52)","v":""},{"$f":"+('Standing Data'!$E53)","v":""},{"$f":"+('Standing Data'!$E54)","v":""},{"$f":"+('Standing Data'!$E55)","v":""},{"$f":"+('Standing Data'!$E56)","v":""},{"$f":"+('Standing Data'!$E57)","v":""},{"$f":"+('Standing Data'!$E58)","v":""},{"$f":"+('Standing Data'!$E59)","v":""},{"$f":"+('Standing Data'!$E60)","v":""},{"$f":"+('Standing Data'!$E61)","v":""},{"$f":"+('Standing Data'!$E62)","v":""},{"$f":"+('Standing Data'!$E63)","v":""},{"$f":"+('Standing Data'!$E64)","v":""},{"$f":"+('Standing Data'!$E65)","v":""},{"$f":"+('Standing Data'!$E66)","v":""},{"$f":"+('Standing Data'!$E67)","v":""},{"$f":"+('Standing Data'!$E68)","v":""},{"$f":"+('Standing Data'!$E69)","v":""},{"$f":"+('Standing Data'!$E70)","v":""},{"$f":"+('Standing Data'!$E71)","v":""},{"$f":"+('Standing Data'!$E72)","v":""},{"$f":"+('Standing Data'!$E73)","v":""},{"$f":"+('Standing Data'!$E74)","v":""},{"$f":"+('Standing Data'!$E75)","v":""},{"$f":"+('Standing Data'!$E76)","v":""},{"$f":"+('Standing Data'!$E77)","v":""},{"$f":"+('Standing Data'!$E78)","v":""},{"$f":"+('Standing Data'!$E79)","v":""},{"$f":"+('Standing Data'!$E80)","v":""},{"$f":"+('Standing Data'!$E81)","v":""},{"$f":"+('Standing Data'!$E82)","v":""},{"$f":"+('Standing Data'!$E83)","v":""},{"$f":"+('Standing Data'!$E84)","v":""},{"$f":"+('Standing Data'!$E85)","v":""},{"$f":"+('Standing Data'!$E86)","v":""},{"$f":"+('Standing Data'!$E87)","v":""},{"$f":"+('Standing Data'!$E88)","v":""},{"$f":"+('Standing Data'!$E89)","v":""},{"$f":"+('Standing Data'!$E90)","v":""},{"$f":"+('Standing Data'!$E91)","v":""},{"$f":"+('Standing Data'!$E92)","v":""},{"$f":"+('Standing Data'!$E93)","v":""},{"$f":"+('Standing Data'!$E94)","v":""},{"$f":"+('Standing Data'!$E95)","v":""},{"$f":"+('Standing Data'!$E96)","v":""},{"$f":"+('Standing Data'!$E97)","v":""},{"$f":"+('Standing Data'!$E98)","v":""},{"$f":"+('Standing Data'!$E99)","v":""},{"$f":"+('Standing Data'!$E100)","v":""},{"$f":"+('Standing Data'!$E101)","v":""},{"$f":"+('Standing Data'!$E102)","v":""},{"$f":"+('Standing Data'!$E103)","v":""},{"$f":"+('Standing Data'!$E104)","v":""},{"$f":"+('Standing Data'!$E105)","v":""},{"$f":"+('Standing Data'!$E106)","v":""},{"$f":"+('Standing Data'!$E107)","v":""},{"$f":"+('Standing Data'!$E108)","v":""},{"$f":"+('Standing Data'!$E109)","v":""},{"$f":"+('Standing Data'!$E110)","v":""},{"$f":"+('Standing Data'!$E111)","v":""},{"$f":"+('Standing Data'!$E112)","v":""},{"$f":"+('Standing Data'!$E113)","v":""},{"$f":"+('Standing Data'!$E114)","v":""},{"$f":"+('Standing Data'!$E115)","v":""},{"$f":"+('Standing Data'!$E116)","v":""},{"$f":"+('Standing Data'!$E117)","v":""},{"$f":"+('Standing Data'!$E118)","v":""},{"$f":"+('Standing Data'!$E119)","v":""},{"$f":"+('Standing Data'!$E120)","v":""},{"$f":"+('Standing Data'!$E121)","v":""},{"$f":"+('Standing Data'!$E122)","v":""},{"$f":"+('Standing Data'!$E123)","v":""},{"$f":"+('Standing Data'!$E124)","v":""},{"$f":"+('Standing Data'!$E125)","v":""},{"$f":"+('Standing Data'!$E126)","v":""},{"$f":"+('Standing Data'!$E127)","v":""},{"$f":"+('Standing Data'!$E128)","v":""},{"$f":"+('Standing Data'!$E129)","v":""},{"$f":"+('Standing Data'!$E130)","v":""},{"$f":"+('Standing Data'!$E131)","v":""},{"$f":"+('Standing Data'!$E132)","v":""},{"$f":"+('Standing Data'!$E133)","v":""},{"$f":"+('Standing Data'!$E134)","v":""},{"$f":"+('Standing Data'!$E135)","v":""},{"$f":"+('Standing Data'!$E136)","v":""},{"$f":"+('Standing Data'!$E137)","v":""},{"$f":"+('Standing Data'!$E138)","v":""},{"$f":"+('Standing Data'!$E139)","v":""},{"$f":"+('Standing Data'!$E140)","v":""},{"$f":"+('Standing Data'!$E141)","v":""},{"$f":"+('Standing Data'!$E142)","v":""},{"$f":"+('Standing Data'!$E143)","v":""},{"$f":"+('Standing Data'!$E144)","v":""},{"$f":"+('Standing Data'!$E145)","v":""},{"$f":"+('Standing Data'!$E146)","v":""},{"$f":"+('Standing Data'!$E147)","v":""},{"$f":"+('Standing Data'!$E148)","v":""}]
[null,null,null,"Line no.",null,"£000","£000",null,"£000",null,"£000","£000","£000","£000","£000","£000","£000","£000","£000","£000","£000","£000","£000","£000","£000","£000","£000","£000","£000","£000","£000","£000","£000","£000","£000","£000","£000","£000","£000","£000","£000","£000","£000","£000","£000","£000","£000","£000","£000","£000","£000","£000","£000","£000","£000","£000","£000","£000","£000","£000","£000","£000","£000","£000","£000","£000","£000","£000","£000","£000","£000","£000","£000","£000","£000","£000","£000","£000","£000","£000","£000","£000","£000","£000","£000","£000","£000","£000","£000","£000","£000","£000","£000","£000","£000","£000","£000","£000","£000","£000","£000","£000","£000","£000","£000","£000","£000","£000","£000","£000","£000"]
["REVENUE INCOME"]
[null,"Grant funding"]
[null,"EFA","Rates Relief",1,{"$f":"IF(DI19=TRUE, \"Error - imbalance\",\"\")","v":""},null,{"$f":"Fin.Return!E171","v":0},null,null,null,null,null,null,null,null,null,null,null,null,null,null,null,null,null,null,null,null,null,null,null,null,null,null,null,null,null,null,null,null,null,null,null,null,null,null,null,null,null,null,null,null,null,null,null,null,null,null,null,null,null,null,null,null,null,null,null,null,null,null,null,null,null,null,null,null,null,null,null,null,null,null,null,null,null,null,null,null,null,null,null,null,null,null,null,null,null,null,null,null,null,null,null,null,null,null,null,null,null,null,null,null,null,{"$f":"AND(G19<>SUM(K19:DG19),'Standing Data'!$D$9=\"Multi-academy Trust\")","v":false}]
[null,null,"Pre-16 School Budget Share",2,{"$f":"IF(DI20=TRUE, \"Error - imbalance\",\"\")","v":""},null,{"$f":"Fin.Return!E172","v":0},null,null,null,null,null,null,null,null,null,null,null,null,null,null,null,null,null,null,null,null,null,null,null,null,null,null,null,null,null,null,null,null,null,null,null,null,null,null,null,null,null,null,null,null,null,null,null,null,null,null,null,null,null,null,null,null,null,null,null,null,null,null,null,null,null,null,null,null,null,null,null,null,null,null,null,null,null,null,null,null,null,null,null,null,null,null,null,null,null,null,null,null,null,null,null,null,null,null,null,null,null,null,null,null,null,{"$f":"AND(G20<>SUM(K20:DG20),'Standing Data'!$D$9=\"Multi-academy Trust\")","v":false}]
[null,null,"16-19 School Budget Share",3,"",null,{"$f":"Fin.Return!E173","v":0},null,null,null,null,null,null,null,null,null,null,null,null,null,null,null,null,null,null,null,null,null,null,null,null,null,null,null,null,null,null,null,null,null,null,null,null,null,null,null,null,null,null,null,null,null,null,null,null,null,null,null,null,null,null,null,null,null,null,null,null,null,null,null,null,null,null,null,null,null,null,null,null,null,null,null,null,null,null,null,null,null,null,null,null,null,null,null,null,null,null,null,null,null,null,null,null,null,null,null,null,null,null,null,null,null,{"$f":"AND(G21<>SUM(K21:DG21),'Standing Data'!$D$9=\"Multi-academy Trust\")","v":false}]
[null,null,"Academy Bursary Funding",4,"",null,{"$f":"Fin.Return!E174","v":0},null,null,null,null,null,null,null,null,null,null,null,null,null,null,null,null,null,null,null,null,null,null,null,null,null,null,null,null,null,null,null,null,null,null,null,null,null,null,null,null,null,null,null,null,null,null,null,null,null,null,null,null,null,null,null,null,null,null,null,null,null,null,null,null,null,null,null,null,null,null,null,null,null,null,null,null,null,null,null,null,null,null,null,null,null,null,null,null,null,null,null,null,null,null,null,null,null,null,null,null,null,null,null,null,null,{"$f":"AND(G22<>SUM(K22:DG22),'Standing Data'!$D$9=\"Multi-academy Trust\")","v":false}]
[null,null,"Local Authority Central Support Equipment Grant",5,"",null,{"$f":"Fin.Return!E175","v":0},null,null,null,null,null,null,null,null,null,null,null,null,null,null,null,null,null,null,null,null,null,null,null,null,null,null,null,null,null,null,null,null,null,null,null,null,null,null,null,null,null,null,null,null,null,null,null,null,null,null,null,null,null,null,null,null,null,null,null,null,null,null,null,null,null,null,null,null,null,null,null,null,null,null,null,null,null,null,null,null,null,null,null,null,null,null,null,null,null,null,null,null,null,null,null,null,null,null,null,null,null,null,null,null,null,{"$f":"AND(G23<>SUM(K23:DG23),'Standing Data'!$D$9=\"Multi-academy Trust\")","v":false}]
[null,null,"Teacher Threshold Grant",6,"",null,{"$f":"Fin.Return!E176","v":0},null,null,null,null,null,null,null,null,null,null,null,null,null,null,null,null,null,null,null,null,null,null,null,null,null,null,null,null,null,null,null,null,null,null,null,null,null,null,null,null,null,null,null,null,null,null,null,null,null,null,null,null,null,null,null,null,null,null,null,null,null,null,null,null,null,null,null,null,null,null,null,null,null,null,null,null,null,null,null,null,null,null,null,null,null,null,null,null,null,null,null,null,null,null,null,null,null,null,null,null,null,null,null,null,null,{"$f":"AND(G24<>SUM(K24:DG24),'Standing Data'!$D$9=\"Multi-academy Trust\")","v":false}]
[null,null,"Pupil Premium",7,"",null,{"$f":"Fin.Return!E177","v":0},null,null,null,null,null,null,null,null,null,null,null,null,null,null,null,null,null,null,null,null,null,null,null,null,null,null,null,null,null,null,null,null,null,null,null,null,null,null,null,null,null,null,null,null,null,null,null,null,null,null,null,null,null,null,null,null,null,null,null,null,null,null,null,null,null,null,null,null,null,null,null,null,null,null,null,null,null,null,null,null,null,null,null,null,null,null,null,null,null,null,null,null,null,null,null,null,null,null,null,null,null,null,null,null,null,{"$f":"AND(G25<>SUM(K25:DG25),'Standing Data'!$D$9=\"Multi-academy Trust\")","v":false}]
[null,null,"Start-up Grant A",8,"",null,{"$f":"Fin.Return!E178","v":0},null,null,null,null,null,null,null,null,null,null,null,null,null,null,null,null,null,null,null,null,null,null,null,null,null,null,null,null,null,null,null,null,null,null,null,null,null,null,null,null,null,null,null,null,null,null,null,null,null,null,null,null,null,null,null,null,null,null,null,null,null,null,null,null,null,null,null,null,null,null,null,null,null,null,null,null,null,null,null,null,null,null,null,null,null,null,null,null,null,null,null,null,null,null,null,null,null,null,null,null,null,null,null,null,null,{"$f":"AND(G26<>SUM(K26:DG26),'Standing Data'!$D$9=\"Multi-academy Trust\")","v":false}]
[null,null,"Start-up Grant B",9,"",null,{"$f":"Fin.Return!E179","v":0},null,null,null,null,null,null,null,null,null,null,null,null,null,null,null,null,null,null,null,null,null,null,null,null,null,null,null,null,null,null,null,null,null,null,null,null,null,null,null,null,null,null,null,null,null,null,null,null,null,null,null,null,null,null,null,null,null,null,null,null,null,null,null,null,null,null,null,null,null,null,null,null,null,null,null,null,null,null,null,null,null,null,null,null,null,null,null,null,null,null,null,null,null,null,null,null,null,null,null,null,null,null,null,null,null,{"$f":"AND(G27<>SUM(K27:DG27),'Standing Data'!$D$9=\"Multi-academy Trust\")","v":false}]
[null,null,"Insurance",10,"",null,{"$f":"Fin.Return!E180","v":0},null,null,null,null,null,null,null,null,null,null,null,null,null,null,null,null,null,null,null,null,null,null,null,null,null,null,null,null,null,null,null,null,null,null,null,null,null,null,null,null,null,null,null,null,null,null,null,null,null,null,null,null,null,null,null,null,null,null,null,null,null,null,null,null,null,null,null,null,null,null,null,null,null,null,null,null,null,null,null,null,null,null,null,null,null,null,null,null,null,null,null,null,null,null,null,null,null,null,null,null,null,null,null,null,null,{"$f":"AND(G28<>SUM(K28:DG28),'Standing Data'!$D$9=\"Multi-academy Trust\")","v":false}]
[null,null,"Mainstream Grants",11,"",null,{"$f":"Fin.Return!E181","v":0},null,null,null,null,null,null,null,null,null,null,null,null,null,null,null,null,null,null,null,null,null,null,null,null,null,null,null,null,null,null,null,null,null,null,null,null,null,null,null,null,null,null,null,null,null,null,null,null,null,null,null,null,null,null,null,null,null,null,null,null,null,null,null,null,null,null,null,null,null,null,null,null,null,null,null,null,null,null,null,null,null,null,null,null,null,null,null,null,null,null,null,null,null,null,null,null,null,null,null,null,null,null,null,null,null,{"$f":"AND(G29<>SUM(K29:DG29),'Standing Data'!$D$9=\"Multi-academy Trust\")","v":false}]
[null,null,"Other",12,"",null,{"$f":"Fin.Return!E182","v":0},null,null,null,null,null,null,null,null,null,null,null,null,null,null,null,null,null,null,null,null,null,null,null,null,null,null,null,null,null,null,null,null,null,null,null,null,null,null,null,null,null,null,null,null,null,null,null,null,null,null,null,null,null,null,null,null,null,null,null,null,null,null,null,null,null,null,null,null,null,null,null,null,null,null,null,null,null,null,null,null,null,null,null,null,null,null,null,null,null,null,null,null,null,null,null,null,null,null,null,null,null,null,null,null,null,{"$f":"AND(G30<>SUM(K30:DG30),'Standing Data'!$D$9=\"Multi-academy Trust\")","v":false}]
[null,"DfE","Other DfE grants (Revenue)",13,"",null,{"$f":"Fin.Return!E203","v":0},null,null,null,null,null,null,null,null,null,null,null,null,null,null,null,null,null,null,null,null,null,null,null,null,null,null,null,null,null,null,null,null,null,null,null,null,null,null,null,null,null,null,null,null,null,null,null,null,null,null,null,null,null,null,null,null,null,null,null,null,null,null,null,null,null,null,null,null,null,null,null,null,null,null,null,null,null,null,null,null,null,null,null,null,null,null,null,null,null,null,null,null,null,null,null,null,null,null,null,null,null,null,null,null,null,{"$f":"AND(G31<>SUM(K31:DG31),'Standing Data'!$D$9=\"Multi-academy Trust\")","v":false}]
[null,"LA","SEN",14,"",null,{"$f":"Fin.Return!E214","v":0},null,null,null,null,null,null,null,null,null,null,null,null,null,null,null,null,null,null,null,null,null,null,null,null,null,null,null,null,null,null,null,null,null,null,null,null,null,null,null,null,null,null,null,null,null,null,null,null,null,null,null,null,null,null,null,null,null,null,null,null,null,null,null,null,null,null,null,null,null,null,null,null,null,null,null,null,null,null,null,null,null,null,null,null,null,null,null,null,null,null,null,null,null,null,null,null,null,null,null,null,null,null,null,null,null,{"$f":"AND(G32<>SUM(K32:DG32),'Standing Data'!$D$9=\"Multi-academy Trust\")","v":false}]
[null,"LA","Other income",15,"",null,{"$f":"Fin.Return!E215","v":0},null,null,null,null,null,null,null,null,null,null,null,null,null,null,null,null,null,null,null,null,null,null,null,null,null,null,null,null,null,null,null,null,null,null,null,null,null,null,null,null,null,null,null,null,null,null,null,null,null,null,null,null,null,null,null,null,null,null,null,null,null,null,null,null,null,null,null,null,null,null,null,null,null,null,null,null,null,null,null,null,null,null,null,null,null,null,null,null,null,null,null,null,null,null,null,null,null,null,null,null,null,null,null,null,null,{"$f":"AND(G33<>SUM(K33:DG33),'Standing Data'!$D$9=\"Multi-academy Trust\")","v":false}]
[null,"Other","Other Government grants",16,"",null,{"$f":"Fin.Return!E221","v":0},null,null,null,null,null,null,null,null,null,null,null,null,null,null,null,null,null,null,null,null,null,null,null,null,null,null,null,null,null,null,null,null,null,null,null,null,null,null,null,null,null,null,null,null,null,null,null,null,null,null,null,null,null,null,null,null,null,null,null,null,null,null,null,null,null,null,null,null,null,null,null,null,null,null,null,null,null,null,null,null,null,null,null,null,null,null,null,null,null,null,null,null,null,null,null,null,null,null,null,null,null,null,null,null,null,{"$f":"AND(G34<>SUM(K34:DG34),'Standing Data'!$D$9=\"Multi-academy Trust\")","v":false}]
[null,null,null,null,null,null,null,null,{"$f":"SUM(G19:G34)","v":0},null,{"$f":"SUM(K19:K34)","v":0},{"$f":"SUM(L19:L34)","v":0},0,0,0,0,0,0,0,0,0,0,0,0,0,0,0,0,0,0,0,0,0,0,0,0,0,0,0,0,0,0,0,0,0,0,0,0,0,{"$f":"SUM(AX19:AX34)","v":0},0,0,0,0,0,0,0,0,0,0,0,0,0,0,0,0,0,0,0,0,0,0,0,0,0,0,0,0,0,0,0,0,0,0,0,0,0,0,0,0,0,0,0,0,0,0,0,0,0,0,0,0,0,0,0,0,0,0,0,0,0]
[null,"Other Revenue income"]
[null,null,"Government source (non-grant)",17,{"$f":"IF(DI37=TRUE, \"Error - imbalance\",\"\")","v":""},null,{"$f":"Fin.Return!E226","v":0},null,null,null,null,null,null,null,null,null,null,null,null,null,null,null,null,null,null,null,null,null,null,null,null,null,null,null,null,null,null,null,null,null,null,null,null,null,null,null,null,null,null,null,null,null,null,null,null,null,null,null,null,null,null,null,null,null,null,null,null,null,null,null,null,null,null,null,null,null,null,null,null,null,null,null,null,null,null,null,null,null,null,null,null,null,null,null,null,null,null,null,null,null,null,null,null,null,null,null,null,null,null,null,null,null,{"$f":"AND(G37<>SUM(K37:DG37),'Standing Data'!$D$9=\"Multi-academy Trust\")","v":false}]
[null,null,"Academies",18,"",null,{"$f":"Fin.Return!E227","v":0},null,null,null,null,null,null,null,null,null,null,null,null,null,null,null,null,null,null,null,null,null,null,null,null,null,null,null,null,null,null,null,null,null,null,null,null,null,null,null,null,null,null,null,null,null,null,null,null,null,null,null,null,null,null,null,null,null,null,null,null,null,null,null,null,null,null,null,null,null,null,null,null,null,null,null,null,null,null,null,null,null,null,null,null,null,null,null,null,null,null,null,null,null,null,null,null,null,null,null,null,null,null,null,null,null,{"$f":"AND(G38<>SUM(K38:DG38),'Standing Data'!$D$9=\"Multi-academy Trust\")","v":false}]
[null,null,"Non- Government",19,"",null,{"$f":"Fin.Return!E228","v":0},null,null,null,null,null,null,null,null,null,null,null,null,null,null,null,null,null,null,null,null,null,null,null,null,null,null,null,null,null,null,null,null,null,null,null,null,null,null,null,null,null,null,null,null,null,null,null,null,null,null,null,null,null,null,null,null,null,null,null,null,null,null,null,null,null,null,null,null,null,null,null,null,null,null,null,null,null,null,null,null,null,null,null,null,null,null,null,null,null,null,null,null,null,null,null,null,null,null,null,null,null,null,null,null,null,{"$f":"AND(G39<>SUM(K39:DG39),'Standing Data'!$D$9=\"Multi-academy Trust\")","v":false}]
[null,null,null,null,null,null,null,null,{"$f":"SUM(G37:G39)","v":0},null,{"$f":"SUM(K37:K39)","v":0},{"$f":"SUM(L37:L39)","v":0},0,0,0,0,0,0,0,0,0,0,0,0,0,0,0,0,0,0,0,0,0,0,0,0,0,0,0,0,0,0,0,0,0,0,0,0,0,{"$f":"SUM(AX37:AX39)","v":0},0,0,0,0,0,0,0,0,0,0,0,0,0,0,0,0,0,0,0,0,0,0,0,0,0,0,0,0,0,0,0,0,0,0,0,0,0,0,0,0,0,0,0,0,0,0,0,0,0,0,0,0,0,0,0,0,0,0,0,0,0]
[null,"Self-generated income"]
[null,null,"Income from facilities and services",20,{"$f":"IF(DI42=TRUE, \"Error - imbalance\",\"\")","v":""},null,{"$f":"Fin.Return!E146+Fin.Return!E148","v":0},null,null,null,null,null,null,null,null,null,null,null,null,null,null,null,null,null,null,null,null,null,null,null,null,null,null,null,null,null,null,null,null,null,null,null,null,null,null,null,null,null,null,null,null,null,null,null,null,null,null,null,null,null,null,null,null,null,null,null,null,null,null,null,null,null,null,null,null,null,null,null,null,null,null,null,null,null,null,null,null,null,null,null,null,null,null,null,null,null,null,null,null,null,null,null,null,null,null,null,null,null,null,null,null,null,{"$f":"AND(G42<>SUM(K42:DG42),'Standing Data'!$D$9=\"Multi-academy Trust\")","v":false}]
[null,null,"Income from catering",21,"",null,{"$f":"Fin.Return!E147","v":0},null,null,null,null,null,null,null,null,null,null,null,null,null,null,null,null,null,null,null,null,null,null,null,null,null,null,null,null,null,null,null,null,null,null,null,null,null,null,null,null,null,null,null,null,null,null,null,null,null,null,null,null,null,null,null,null,null,null,null,null,null,null,null,null,null,null,null,null,null,null,null,null,null,null,null,null,null,null,null,null,null,null,null,null,null,null,null,null,null,null,null,null,null,null,null,null,null,null,null,null,null,null,null,null,null,{"$f":"AND(G43<>SUM(K43:DG43),'Standing Data'!$D$9=\"Multi-academy Trust\")","v":false}]
[null,null,"Receipts from supply teacher insurance claims",22,"",null,{"$f":"+(Fin.Return!E149)","v":0},null,null,null,null,null,null,null,null,null,null,null,null,null,null,null,null,null,null,null,null,null,null,null,null,null,null,null,null,null,null,null,null,null,null,null,null,null,null,null,null,null,null,null,null,null,null,null,null,null,null,null,null,null,null,null,null,null,null,null,null,null,null,null,null,null,null,null,null,null,null,null,null,null,null,null,null,null,null,null,null,null,null,null,null,null,null,null,null,null,null,null,null,null,null,null,null,null,null,null,null,null,null,null,null,null,{"$f":"AND(G44<>SUM(K44:DG44),'Standing Data'!$D$9=\"Multi-academy Trust\")","v":false}]
[null,null,"Other income - revenue",23,"",null,{"$f":"Fin.Return!E150","v":0},null,null,null,null,null,null,null,null,null,null,null,null,null,null,null,null,null,null,null,null,null,null,null,null,null,null,null,null,null,null,null,null,null,null,null,null,null,null,null,null,null,null,null,null,null,null,null,null,null,null,null,null,null,null,null,null,null,null,null,null,null,null,null,null,null,null,null,null,null,null,null,null,null,null,null,null,null,null,null,null,null,null,null,null,null,null,null,null,null,null,null,null,null,null,null,null,null,null,null,null,null,null,null,null,null,{"$f":"AND(G45<>SUM(K45:DG45),'Standing Data'!$D$9=\"Multi-academy Trust\")","v":false}]
[null,null,null,null,null,null,null,null,{"$f":"SUM(G42:G45)","v":0},null,{"$f":"SUM(K42:K45)","v":0},{"$f":"SUM(L42:L45)","v":0},0,0,0,0,0,0,0,0,0,0,0,0,0,0,0,0,0,0,0,0,0,0,0,0,0,0,0,0,0,0,0,0,0,0,0,0,0,0,0,0,0,0,0,0,0,0,0,0,0,0,0,0,0,0,0,0,0,0,0,0,0,0,0,{"$f":"SUM(BX42:BX45)","v":0},0,0,0,0,0,0,0,0,0,0,0,0,0,0,0,0,0,0,0,0,0,0,0,0,0,0,0,0,0,0,0,0,0,0,0]
[null,"Voluntary income"]
[null,null,"Donations and/or voluntary funds - revenue",24,{"$f":"IF(DI48=TRUE, \"Error - imbalance\",\"\")","v":""},null,{"$f":"Fin.Return!E137+Fin.Return!E138","v":0},null,null,null,null,null,null,null,null,null,null,null,null,null,null,null,null,null,null,null,null,null,null,null,null,null,null,null,null,null,null,null,null,null,null,null,null,null,null,null,null,null,null,null,null,null,null,null,null,null,null,null,null,null,null,null,null,null,null,null,null,null,null,null,null,null,null,null,null,null,null,null,null,null,null,null,null,null,null,null,null,null,null,null,null,null,null,null,null,null,null,null,null,null,null,null,null,null,null,null,null,null,null,null,null,null,{"$f":"AND(G48<>SUM(K48:DG48),'Standing Data'!$D$9=\"Multi-academy Trust\")","v":false}]
[null,null,null,null,null,null,null,null,{"$f":"SUM(G48)","v":0}]
[null,"Investment income"]
[null,null,"Investment income",25,{"$f":"IF(DI51=TRUE, \"Error - imbalance\",\"\")","v":""},null,{"$f":"Fin.Return!E163","v":0},null,{"$f":"G51","v":0},null,null,null,null,null,null,null,null,null,null,null,null,null,null,null,null,null,null,null,null,null,null,null,null,null,null,null,null,null,null,null,null,null,null,null,null,null,null,null,null,null,null,null,null,null,null,null,null,null,null,null,null,null,null,null,null,null,null,null,null,null,null,null,null,null,null,null,null,null,null,null,null,null,null,null,null,null,null,null,null,null,null,null,null,null,null,null,null,null,null,null,null,null,null,null,null,null,null,null,null,null,null,null,{"$f":"AND(G51<>SUM(K51:DG51),'Standing Data'!$D$9=\"Multi-academy Trust\")","v":false}]
[]
[]
["TOTAL REVENUE INCOME",null,null,26,{"$f":"IF(DI54=TRUE, \"Error - imbalance\",\"\")","v":""},null,null,null,{"$f":"SUM(I35:I53)","v":0},null,{"$f":"+K51+K48+K46+K40+K35","v":0},{"$f":"+L51+L48+L46+L40+L35","v":0},0,0,0,0,0,0,0,0,0,0,0,0,0,0,0,0,0,0,0,0,0,0,0,0,0,0,0,0,0,0,0,0,0,0,0,0,0,0,0,0,0,0,0,0,0,0,0,0,0,0,0,0,0,0,0,0,0,0,0,0,0,0,0,{"$f":"+BX51+BX48+BX46+BX40+BX35","v":0},0,0,0,0,0,0,0,0,0,0,0,0,0,0,0,0,0,0,0,0,0,0,0,0,0,0,0,0,0,0,0,0,0,0,0,null,{"$f":"AND(I54<>SUM(K54:DG54),'Standing Data'!$D$9=\"Multi-academy Trust\")","v":false}]
[]
["CAPITAL INCOME"]
[null,"EFA","16-19 Demographic Growth Capital Fund",27,{"$f":"IF(DI57=TRUE, \"Error - imbalance\",\"\")","v":""},null,{"$f":"Fin.Return!E185","v":0},null,null,null,null,null,null,null,null,null,null,null,null,null,null,null,null,null,null,null,null,null,null,null,null,null,null,null,null,null,null,null,null,null,null,null,null,null,null,null,null,null,null,null,null,null,null,null,null,null,null,null,null,null,null,null,null,null,null,null,null,null,null,null,null,null,null,null,null,null,null,null,null,null,null,null,null,null,null,null,null,null,null,null,null,null,null,null,null,null,null,null,null,null,null,null,null,null,null,null,null,null,null,null,null,null,{"$f":"AND(G57<>SUM(K57:DG57),'Standing Data'!$D$9=\"Multi-academy Trust\")","v":false}]
[null,null,"Devolved Formula Capital for Young People Aged Under 16 yrs",28,"",null,{"$f":"Fin.Return!E186","v":0},null,null,null,null,null,null,null,null,null,null,null,null,null,null,null,null,null,null,null,null,null,null,null,null,null,null,null,null,null,null,null,null,null,null,null,null,null,null,null,null,null,null,null,null,null,null,null,null,null,null,null,null,null,null,null,null,null,null,null,null,null,null,null,null,null,null,null,null,null,null,null,null,null,null,null,null,null,null,null,null,null,null,null,null,null,null,null,null,null,null,null,null,null,null,null,null,null,null,null,null,null,null,null,null,null,{"$f":"AND(G58<>SUM(K58:DG58),'Standing Data'!$D$9=\"Multi-academy Trust\")","v":false}]
[null,null,"Centrally Managed Programme - Framework Academies",29,"",null,{"$f":"Fin.Return!E187","v":0},null,null,null,null,null,null,null,null,null,null,null,null,null,null,null,null,null,null,null,null,null,null,null,null,null,null,null,null,null,null,null,null,null,null,null,null,null,null,null,null,null,null,null,null,null,null,null,null,null,null,null,null,null,null,null,null,null,null,null,null,null,null,null,null,null,null,null,null,null,null,null,null,null,null,null,null,null,null,null,null,null,null,null,null,null,null,null,null,null,null,null,null,null,null,null,null,null,null,null,null,null,null,null,null,null,{"$f":"AND(G59<>SUM(K59:DG59),'Standing Data'!$D$9=\"Multi-academy Trust\")","v":false}]
[null,null,"Centrally Managed Programme - BSF Legacy Academies",30,"",null,{"$f":"Fin.Return!E188","v":0},null,null,null,null,null,null,null,null,null,null,null,null,null,null,null,null,null,null,null,null,null,null,null,null,null,null,null,null,null,null,null,null,null,null,null,null,null,null,null,null,null,null,null,null,null,null,null,null,null,null,null,null,null,null,null,null,null,null,null,null,null,null,null,null,null,null,null,null,null,null,null,null,null,null,null,null,null,null,null,null,null,null,null,null,null,null,null,null,null,null,null,null,null,null,null,null,null,null,null,null,null,null,null,null,null,{"$f":"AND(G60<>SUM(K60:DG60),'Standing Data'!$D$9=\"Multi-academy Trust\")","v":false}]
[null,null,"Centrally Managed Programme - Free Schools",31,"",null,{"$f":"Fin.Return!E189","v":0},null,null,null,null,null,null,null,null,null,null,null,null,null,null,null,null,null,null,null,null,null,null,null,null,null,null,null,null,null,null,null,null,null,null,null,null,null,null,null,null,null,null,null,null,null,null,null,null,null,null,null,null,null,null,null,null,null,null,null,null,null,null,null,null,null,null,null,null,null,null,null,null,null,null,null,null,null,null,null,null,null,null,null,null,null,null,null,null,null,null,null,null,null,null,null,null,null,null,null,null,null,null,null,null,null,{"$f":"AND(G61<>SUM(K61:DG61),'Standing Data'!$D$9=\"Multi-academy Trust\")","v":false}]
[null,null,"Devolved Programmes - Academies Capital Maintenance",32,"",null,{"$f":"Fin.Return!E190","v":0},null,null,null,null,null,null,null,null,null,null,null,null,null,null,null,null,null,null,null,null,null,null,null,null,null,null,null,null,null,null,null,null,null,null,null,null,null,null,null,null,null,null,null,null,null,null,null,null,null,null,null,null,null,null,null,null,null,null,null,null,null,null,null,null,null,null,null,null,null,null,null,null,null,null,null,null,null,null,null,null,null,null,null,null,null,null,null,null,null,null,null,null,null,null,null,null,null,null,null,null,null,null,null,null,null,{"$f":"AND(G62<>SUM(K62:DG62),'Standing Data'!$D$9=\"Multi-academy Trust\")","v":false}]
[null,null,"Continuing Commitments - Building Schools for the Future",33,"",null,{"$f":"Fin.Return!E191","v":0},null,null,null,null,null,null,null,null,null,null,null,null,null,null,null,null,null,null,null,null,null,null,null,null,null,null,null,null,null,null,null,null,null,null,null,null,null,null,null,null,null,null,null,null,null,null,null,null,null,null,null,null,null,null,null,null,null,null,null,null,null,null,null,null,null,null,null,null,null,null,null,null,null,null,null,null,null,null,null,null,null,null,null,null,null,null,null,null,null,null,null,null,null,null,null,null,null,null,null,null,null,null,null,null,null,{"$f":"AND(G63<>SUM(K63:DG63),'Standing Data'!$D$9=\"Multi-academy Trust\")","v":false}]
[null,null,"Other",34,"",null,{"$f":"Fin.Return!E192","v":0},null,null,null,null,null,null,null,null,null,null,null,null,null,null,null,null,null,null,null,null,null,null,null,null,null,null,null,null,null,null,null,null,null,null,null,null,null,null,null,null,null,null,null,null,null,null,null,null,null,null,null,null,null,null,null,null,null,null,null,null,null,null,null,null,null,null,null,null,null,null,null,null,null,null,null,null,null,null,null,null,null,null,null,null,null,null,null,null,null,null,null,null,null,null,null,null,null,null,null,null,null,null,null,null,null,{"$f":"AND(G64<>SUM(K64:DG64),'Standing Data'!$D$9=\"Multi-academy Trust\")","v":false}]
[null,"DfE","Other DfE grants (Capital)",35,"",null,{"$f":"Fin.Return!E212","v":0},null,null,null,null,null,null,null,null,null,null,null,null,null,null,null,null,null,null,null,null,null,null,null,null,null,null,null,null,null,null,null,null,null,null,null,null,null,null,null,null,null,null,null,null,null,null,null,null,null,null,null,null,null,null,null,null,null,null,null,null,null,null,null,null,null,null,null,null,null,null,null,null,null,null,null,null,null,null,null,null,null,null,null,null,null,null,null,null,null,null,null,null,null,null,null,null,null,null,null,null,null,null,null,null,null,{"$f":"AND(G65<>SUM(K65:DG65),'Standing Data'!$D$9=\"Multi-academy Trust\")","v":false}]
[null,"Other","Other Government grants",36,"",null,{"$f":"+Fin.Return!E216+Fin.Return!E222","v":0},null,null,null,null,null,null,null,null,null,null,null,null,null,null,null,null,null,null,null,null,null,null,null,null,null,null,null,null,null,null,null,null,null,null,null,null,null,null,null,null,null,null,null,null,null,null,null,null,null,null,null,null,null,null,null,null,null,null,null,null,null,null,null,null,null,null,null,null,null,null,null,null,null,null,null,null,null,null,null,null,null,null,null,null,null,null,null,null,null,null,null,null,null,null,null,null,null,null,null,null,null,null,null,null,null,{"$f":"AND(G66<>SUM(K66:DG66),'Standing Data'!$D$9=\"Multi-academy Trust\")","v":false}]
[null,null,"Other grants and payments received",37,"",null,{"$f":"+Fin.Return!E229+Fin.Return!E136","v":0},null,null,null,null,null,null,null,null,null,null,null,null,null,null,null,null,null,null,null,null,null,null,null,null,null,null,null,null,null,null,null,null,null,null,null,null,null,null,null,null,null,null,null,null,null,null,null,null,null,null,null,null,null,null,null,null,null,null,null,null,null,null,null,null,null,null,null,null,null,null,null,null,null,null,null,null,null,null,null,null,null,null,null,null,null,null,null,null,null,null,null,null,null,null,null,null,null,null,null,null,null,null,null,null,null,{"$f":"AND(G67<>SUM(K67:DG67),'Standing Data'!$D$9=\"Multi-academy Trust\")","v":false}]
[null,null,"Direct revenue financing (Revenue contributions to capital)",38,"",null,{"$f":"F121","v":0},null,null,null,null,null,null,null,null,null,null,null,null,null,null,null,null,null,null,null,null,null,null,null,null,null,null,null,null,null,null,null,null,null,null,null,null,null,null,null,null,null,null,null,null,null,null,null,null,null,null,null,null,null,null,null,null,null,null,null,null,null,null,null,null,null,null,null,null,null,null,null,null,null,null,null,null,null,null,null,null,null,null,null,null,null,null,null,null,null,null,null,null,null,null,null,null,null,null,null,null,null,null,null,null,null,{"$f":"AND(G68<>SUM(K68:DG68),'Standing Data'!$D$9=\"Multi-academy Trust\")","v":false}]
[null,null,null,null,null,null,null,null,{"$f":"SUM(G57:G68)","v":0},null,{"$f":"SUM(K57:K68)","v":0},0,0,0,0,0,0,0,0,0,0,0,0,0,0,0,0,0,0,0,0,0,0,0,0,0,0,0,0,0,0,0,0,0,0,0,0,0,0,0,0,0,0,0,0,0,0,0,0,0,0,0,0,0,0,0,0,0,0,0,0,0,0,0,{"$f":"SUM(BW57:BW68)","v":0},0,0,0,0,0,0,0,0,0,0,0,0,0,0,0,0,0,0,0,0,0,0,0,0,0,0,0,0,0,0,0,0,0,0,0,0]
[]
[null,"TOTAL INCOME",null,39,{"$f":"IF(DI71=TRUE, \"Error - imbalance\",\"\")","v":""},null,null,null,{"$f":"SUM(I54:I69)","v":0},null,{"$f":"+K69+K54","v":0},0,0,0,0,0,0,0,0,0,0,0,0,0,0,0,0,0,0,0,0,0,0,0,0,0,0,0,0,0,0,0,0,0,0,0,0,0,0,0,0,0,0,0,0,0,0,0,0,0,0,0,0,0,0,0,0,0,0,0,0,0,0,0,{"$f":"+BW69+BW54","v":0},0,0,0,0,0,0,0,0,0,0,0,0,0,0,0,0,0,0,0,0,0,0,0,0,0,0,0,0,0,0,0,0,0,0,0,0,null,{"$f":"AND(I71<>SUM(K71:DG71),'Standing Data'!$D$9=\"Multi-academy Trust\")","v":false}]
[]
["FUNDS INHERITED ON CONVERSION",null,null,40,{"$f":"IF(DI73=TRUE, \"Error - imbalance\",\"\")","v":""},null,null,null,{"$f":"Fin.Return!E21","v":0},null,null,null,null,null,null,null,null,null,null,null,null,null,null,null,null,null,null,null,null,null,null,null,null,null,null,null,null,null,null,null,null,null,null,null,null,null,null,null,null,null,null,null,null,null,null,null,null,null,null,null,null,null,null,null,null,null,null,null,null,null,null,null,null,null,null,null,null,null,null,null,null,null,null,null,null,null,null,null,null,null,null,null,null,null,null,null,null,null,null,null,null,null,null,null,null,null,null,null,null,null,null,null,{"$f":"AND(I73<>SUM(K73:DG73),'Standing Data'!$D$9=\"Multi-academy Trust\")","v":false}]
[]
["REVENUE EXPENDITURE"]
[null,"Staff costs - extra note for guidance for Staff re-structure"]
[null,null,"Teaching staff",41,{"$f":"IF(DI77=TRUE, \"Error - imbalance\",\"\")","v":""},null,null,null,null,null,null,null,null,null,null,null,null,null,null,null,null,null,null,null,null,null,null,null,null,null,null,null,null,null,null,null,null,null,null,null,null,null,null,null,null,null,null,null,null,null,null,null,null,null,null,null,null,null,null,null,null,null,null,null,null,null,null,null,null,null,null,null,null,null,null,null,null,null,null,null,null,null,null,null,null,null,null,null,null,null,null,null,null,null,null,null,null,null,null,null,null,null,null,null,null,null,null,null,null,null,null,null,{"$f":"AND(F77<>SUM(K77:DG77),'Standing Data'!$D$9=\"Multi-academy Trust\")","v":false}]
[null,null,"Supply teaching staff - extra note in guidance",42,"",null,null,null,null,null,null,null,null,null,null,null,null,null,null,null,null,null,null,null,null,null,null,null,null,null,null,null,null,null,null,null,null,null,null,null,null,null,null,null,null,null,null,null,null,null,null,null,null,null,null,null,null,null,null,null,null,null,null,null,null,null,null,null,null,null,null,null,null,null,null,null,null,null,null,null,null,null,null,null,null,null,null,null,null,null,null,null,null,null,null,null,null,null,null,null,null,null,null,null,null,null,null,null,null,null,null,null,{"$f":"AND(F78<>SUM(K78:DG78),'Standing Data'!$D$9=\"Multi-academy Trust\")","v":false}]
[null,null,"Education support staff",43,"",null,null,null,null,null,null,null,null,null,null,null,null,null,null,null,null,null,null,null,null,null,null,null,null,null,null,null,null,null,null,null,null,null,null,null,null,null,null,null,null,null,null,null,null,null,null,null,null,null,null,null,null,null,null,null,null,null,null,null,null,null,null,null,null,null,null,null,null,null,null,null,null,null,null,null,null,null,null,null,null,null,null,null,null,null,null,null,null,null,null,null,null,null,null,null,null,null,null,null,null,null,null,null,null,null,null,null,{"$f":"AND(F79<>SUM(K79:DG79),'Standing Data'!$D$9=\"Multi-academy Trust\")","v":false}]
[null,null,"Administrative and clerical staff",44,"",null,null,null,null,null,null,null,null,null,null,null,null,null,null,null,null,null,null,null,null,null,null,null,null,null,null,null,null,null,null,null,null,null,null,null,null,null,null,null,null,null,null,null,null,null,null,null,null,null,null,null,null,null,null,null,null,null,null,null,null,null,null,null,null,null,null,null,null,null,null,null,null,null,null,null,null,null,null,null,null,null,null,null,null,null,null,null,null,null,null,null,null,null,null,null,null,null,null,null,null,null,null,null,null,null,null,null,{"$f":"AND(F80<>SUM(K80:DG80),'Standing Data'!$D$9=\"Multi-academy Trust\")","v":false}]
[null,null,"Premises staff",45,"",null,null,null,null,null,null,null,null,null,null,null,null,null,null,null,null,null,null,null,null,null,null,null,null,null,null,null,null,null,null,null,null,null,null,null,null,null,null,null,null,null,null,null,null,null,null,null,null,null,null,null,null,null,null,null,null,null,null,null,null,null,null,null,null,null,null,null,null,null,null,null,null,null,null,null,null,null,null,null,null,null,null,null,null,null,null,null,null,null,null,null,null,null,null,null,null,null,null,null,null,null,null,null,null,null,null,null,{"$f":"AND(F81<>SUM(K81:DG81),'Standing Data'!$D$9=\"Multi-academy Trust\")","v":false}]
[null,null,"Catering staff",46,"",null,null,null,null,null,null,null,null,null,null,null,null,null,null,null,null,null,null,null,null,null,null,null,null,null,null,null,null,null,null,null,null,null,null,null,null,null,null,null,null,null,null,null,null,null,null,null,null,null,null,null,null,null,null,null,null,null,null,null,null,null,null,null,null,null,null,null,null,null,null,null,null,null,null,null,null,null,null,null,null,null,null,null,null,null,null,null,null,null,null,null,null,null,null,null,null,null,null,null,null,null,null,null,null,null,null,null,{"$f":"AND(F82<>SUM(K82:DG82),'Standing Data'!$D$9=\"Multi-academy Trust\")","v":false}]
[null,null,"Other staff",47,"",null,null,null,null,null,null,null,null,null,null,null,null,null,null,null,null,null,null,null,null,null,null,null,null,null,null,null,null,null,null,null,null,null,null,null,null,null,null,null,null,null,null,null,null,null,null,null,null,null,null,null,null,null,null,null,null,null,null,null,null,null,null,null,null,null,null,null,null,null,null,null,null,null,null,null,null,null,null,null,null,null,null,null,null,null,null,null,null,null,null,null,null,null,null,null,null,null,null,null,null,null,null,null,null,null,null,null,{"$f":"AND(F83<>SUM(K83:DG83),'Standing Data'!$D$9=\"Multi-academy Trust\")","v":false}]
[null,null,null,null,{"$f":"IF(G84<>Fin.Return!E366,\"Error - does not equal staff note in financial return\",\"\")","v":""},null,{"$f":"SUM(F77:F83)","v":0},null,null,null,{"$f":"SUM(K76:K83)","v":0},{"$f":"SUM(L76:L83)","v":0},0,0,0,0,0,0,0,0,0,0,0,0,0,0,0,0,0,0,0,0,0,0,0,0,0,0,0,0,0,0,0,0,0,0,0,0,0,{"$f":"SUM(AX76:AX83)","v":0},0,0,0,0,0,0,0,0,0,0,0,0,0,0,0,0,0,0,0,0,0,0,0,0,0,0,0,0,0,0,0,0,0,0,0,0,0,0,0,0,0,0,0,0,0,0,0,0,0,0,0,0,0,0,0,0,0,0,0,0,0]
[]
[null,null,"Indirect employee expenses",48,{"$f":"IF(DI86=TRUE, \"Error - imbalance\",\"\")","v":""},{"$f":"+Fin.Return!E319","v":0},null,null,null,null,null,null,null,null,null,null,null,null,null,null,null,null,null,null,null,null,null,null,null,null,null,null,null,null,null,null,null,null,null,null,null,null,null,null,null,null,null,null,null,null,null,null,null,null,null,null,null,null,null,null,null,null,null,null,null,null,null,null,null,null,null,null,null,null,null,null,null,null,null,null,null,null,null,null,null,null,null,null,null,null,null,null,null,null,null,null,null,null,null,null,null,null,null,null,null,null,null,null,null,null,null,null,{"$f":"AND(F86<>SUM(K86:DG86),'Standing Data'!$D$9=\"Multi-academy Trust\")","v":false}]
[null,null,"Staff development and training",49,"",{"$f":"+Fin.Return!E287","v":0},null,null,null,null,null,null,null,null,null,null,null,null,null,null,null,null,null,null,null,null,null,null,null,null,null,null,null,null,null,null,null,null,null,null,null,null,null,null,null,null,null,null,null,null,null,null,null,null,null,null,null,null,null,null,null,null,null,null,null,null,null,null,null,null,null,null,null,null,null,null,null,null,null,null,null,null,null,null,null,null,null,null,null,null,null,null,null,null,null,null,null,null,null,null,null,null,null,null,null,null,null,null,null,null,null,null,{"$f":"AND(F87<>SUM(K87:DG87),'Standing Data'!$D$9=\"Multi-academy Trust\")","v":false}]
[null,null,"Staff-related insurance",50,"",{"$f":"+Fin.Return!E288","v":0},null,null,null,null,null,null,null,null,null,null,null,null,null,null,null,null,null,null,null,null,null,null,null,null,null,null,null,null,null,null,null,null,null,null,null,null,null,null,null,null,null,null,null,null,null,null,null,null,null,null,null,null,null,null,null,null,null,null,null,null,null,null,null,null,null,null,null,null,null,null,null,null,null,null,null,null,null,null,null,null,null,null,null,null,null,null,null,null,null,null,null,null,null,null,null,null,null,null,null,null,null,null,null,null,null,null,{"$f":"AND(F88<>SUM(K88:DG88),'Standing Data'!$D$9=\"Multi-academy Trust\")","v":false}]
[null,null,null,null,null,null,{"$f":"SUM(F86:F88)","v":0},null,null,null,{"$f":"SUM(K86:K88)","v":0},{"$f":"SUM(L86:L88)","v":0},0,0,0,0,0,0,0,0,0,0,0,0,0,0,0,0,0,0,0,0,0,0,0,0,0,0,0,0,0,0,0,0,0,0,0,0,0,{"$f":"SUM(AX86:AX88)","v":0},0,0,0,0,0,0,0,0,0,0,0,0,0,0,0,0,0,0,0,0,0,0,0,0,0,0,0,0,0,0,0,0,0,0,0,0,0,0,0,0,0,0,0,0,0,0,0,0,0,0,0,0,0,0,0,0,0,0,0,0,0]
[]
[null,"Maintenance of premises",null,51,{"$f":"IF(DI91=TRUE, \"Error - imbalance\",\"\")","v":""},null,{"$f":"+Fin.Return!E302+Fin.Return!E303","v":0},null,null,null,null,null,null,null,null,null,null,null,null,null,null,null,null,null,null,null,null,null,null,null,null,null,null,null,null,null,null,null,null,null,null,null,null,null,null,null,null,null,null,null,null,null,null,null,null,null,null,null,null,null,null,null,null,null,null,null,null,null,null,null,null,null,null,null,null,null,null,null,null,null,null,null,null,null,null,null,null,null,null,null,null,null,null,null,null,null,null,null,null,null,null,null,null,null,null,null,null,null,null,null,null,null,{"$f":"AND(G91<>SUM(K91:DG91),'Standing Data'!$D$9=\"Multi-academy Trust\")","v":false}]
[]
[null,"Other occupancy costs"]
[null,null,"Cleaning",52,{"$f":"IF(DI94=TRUE, \"Error - imbalance\",\"\")","v":""},{"$f":"+Fin.Return!E304","v":0},null,null,null,null,null,null,null,null,null,null,null,null,null,null,null,null,null,null,null,null,null,null,null,null,null,null,null,null,null,null,null,null,null,null,null,null,null,null,null,null,null,null,null,null,null,null,null,null,null,null,null,null,null,null,null,null,null,null,null,null,null,null,null,null,null,null,null,null,null,null,null,null,null,null,null,null,null,null,null,null,null,null,null,null,null,null,null,null,null,null,null,null,null,null,null,null,null,null,null,null,null,null,null,null,null,null,{"$f":"AND(F94<>SUM(K94:DG94),'Standing Data'!$D$9=\"Multi-academy Trust\")","v":false}]
[null,null,"Water and sewerage",53,"",{"$f":"+Fin.Return!E308","v":0},null,null,null,null,null,null,null,null,null,null,null,null,null,null,null,null,null,null,null,null,null,null,null,null,null,null,null,null,null,null,null,null,null,null,null,null,null,null,null,null,null,null,null,null,null,null,null,null,null,null,null,null,null,null,null,null,null,null,null,null,null,null,null,null,null,null,null,null,null,null,null,null,null,null,null,null,null,null,null,null,null,null,null,null,null,null,null,null,null,null,null,null,null,null,null,null,null,null,null,null,null,null,null,null,null,null,{"$f":"AND(F95<>SUM(K95:DG95),'Standing Data'!$D$9=\"Multi-academy Trust\")","v":false}]
[null,null,"Energy",54,"",{"$f":"+Fin.Return!E309","v":0},null,null,null,null,null,null,null,null,null,null,null,null,null,null,null,null,null,null,null,null,null,null,null,null,null,null,null,null,null,null,null,null,null,null,null,null,null,null,null,null,null,null,null,null,null,null,null,null,null,null,null,null,null,null,null,null,null,null,null,null,null,null,null,null,null,null,null,null,null,null,null,null,null,null,null,null,null,null,null,null,null,null,null,null,null,null,null,null,null,null,null,null,null,null,null,null,null,null,null,null,null,null,null,null,null,null,{"$f":"AND(F96<>SUM(K96:DG96),'Standing Data'!$D$9=\"Multi-academy Trust\")","v":false}]
[null,null,"Rates",55,"",{"$f":"+Fin.Return!E307","v":0},null,null,null,null,null,null,null,null,null,null,null,null,null,null,null,null,null,null,null,null,null,null,null,null,null,null,null,null,null,null,null,null,null,null,null,null,null,null,null,null,null,null,null,null,null,null,null,null,null,null,null,null,null,null,null,null,null,null,null,null,null,null,null,null,null,null,null,null,null,null,null,null,null,null,null,null,null,null,null,null,null,null,null,null,null,null,null,null,null,null,null,null,null,null,null,null,null,null,null,null,null,null,null,null,null,null,{"$f":"AND(F97<>SUM(K97:DG97),'Standing Data'!$D$9=\"Multi-academy Trust\")","v":false}]
[null,null,"Rent",56,"",{"$f":"+Fin.Return!E306","v":0},null,null,null,null,null,null,null,null,null,null,null,null,null,null,null,null,null,null,null,null,null,null,null,null,null,null,null,null,null,null,null,null,null,null,null,null,null,null,null,null,null,null,null,null,null,null,null,null,null,null,null,null,null,null,null,null,null,null,null,null,null,null,null,null,null,null,null,null,null,null,null,null,null,null,null,null,null,null,null,null,null,null,null,null,null,null,null,null,null,null,null,null,null,null,null,null,null,null,null,null,null,null,null,null,null,null,{"$f":"AND(F98<>SUM(K98:DG98),'Standing Data'!$D$9=\"Multi-academy Trust\")","v":false}]
[null,null,"Other occupation costs",57,"",{"$f":"Fin.Return!E311","v":0},null,null,null,null,null,null,null,null,null,null,null,null,null,null,null,null,null,null,null,null,null,null,null,null,null,null,null,null,null,null,null,null,null,null,null,null,null,null,null,null,null,null,null,null,null,null,null,null,null,null,null,null,null,null,null,null,null,null,null,null,null,null,null,null,null,null,null,null,null,null,null,null,null,null,null,null,null,null,null,null,null,null,null,null,null,null,null,null,null,null,null,null,null,null,null,null,null,null,null,null,null,null,null,null,null,null,{"$f":"AND(F99<>SUM(K99:DG99),'Standing Data'!$D$9=\"Multi-academy Trust\")","v":false}]
[null,null,null,null,null,null,{"$f":"SUM(F94:F99)","v":0},null,null,null,{"$f":"SUM(K94:K99)","v":0},{"$f":"SUM(L94:L99)","v":0},0,0,0,0,0,0,0,0,0,0,0,0,0,0,0,0,0,0,0,0,0,0,0,0,0,0,0,0,0,0,0,0,0,0,0,0,0,0,0,0,0,0,0,0,0,0,0,0,0,0,0,0,0,0,0,0,0,0,0,0,0,0,0,{"$f":"SUM(BX94:BX99)","v":0},0,0,0,0,0,0,0,0,0,0,0,0,0,0,0,0,0,0,0,0,0,0,0,0,0,0,0,0,0,0,0,0,0,0,0]
[]
[null,"Special facilities",null,58,{"$f":"IF(DI102=TRUE, \"Error - imbalance\",\"\")","v":""},null,{"$f":"+Fin.Return!E463+Fin.Return!E240","v":0},null,null,null,null,null,null,null,null,null,null,null,null,null,null,null,null,null,null,null,null,null,null,null,null,null,null,null,null,null,null,null,null,null,null,null,null,null,null,null,null,null,null,null,null,null,null,null,null,null,null,null,null,null,null,null,null,null,null,null,null,null,null,null,null,null,null,null,null,null,null,null,null,null,null,null,null,null,null,null,null,null,null,null,null,null,null,null,null,null,null,null,null,null,null,null,null,null,null,null,null,null,null,null,null,null,{"$f":"AND(G102<>SUM(K102:DG102),'Standing Data'!$D$9=\"Multi-academy Trust\")","v":false}]
[]
[null,"Educational supplies and services"]
[null,null,"Learning resources (not ICT equipment)",59,{"$f":"IF(DI105=TRUE, \"Error - imbalance\",\"\")","v":""},{"$f":"+Fin.Return!E285+Fin.Return!E292","v":0},null,null,null,null,null,null,null,null,null,null,null,null,null,null,null,null,null,null,null,null,null,null,null,null,null,null,null,null,null,null,null,null,null,null,null,null,null,null,null,null,null,null,null,null,null,null,null,null,null,null,null,null,null,null,null,null,null,null,null,null,null,null,null,null,null,null,null,null,null,null,null,null,null,null,null,null,null,null,null,null,null,null,null,null,null,null,null,null,null,null,null,null,null,null,null,null,null,null,null,null,null,null,null,null,null,null,{"$f":"AND(F105<>SUM(K105:DG105),'Standing Data'!$D$9=\"Multi-academy Trust\")","v":false}]
[null,null,"ICT learning resources",60,"",{"$f":"+Fin.Return!E289","v":0},null,null,null,null,null,null,null,null,null,null,null,null,null,null,null,null,null,null,null,null,null,null,null,null,null,null,null,null,null,null,null,null,null,null,null,null,null,null,null,null,null,null,null,null,null,null,null,null,null,null,null,null,null,null,null,null,null,null,null,null,null,null,null,null,null,null,null,null,null,null,null,null,null,null,null,null,null,null,null,null,null,null,null,null,null,null,null,null,null,null,null,null,null,null,null,null,null,null,null,null,null,null,null,null,null,null,{"$f":"AND(F106<>SUM(K106:DG106),'Standing Data'!$D$9=\"Multi-academy Trust\")","v":false}]
[null,null,"Examination fees",61,"",{"$f":"+Fin.Return!E286","v":0},null,null,null,null,null,null,null,null,null,null,null,null,null,null,null,null,null,null,null,null,null,null,null,null,null,null,null,null,null,null,null,null,null,null,null,null,null,null,null,null,null,null,null,null,null,null,null,null,null,null,null,null,null,null,null,null,null,null,null,null,null,null,null,null,null,null,null,null,null,null,null,null,null,null,null,null,null,null,null,null,null,null,null,null,null,null,null,null,null,null,null,null,null,null,null,null,null,null,null,null,null,null,null,null,null,null,{"$f":"AND(F107<>SUM(K107:DG107),'Standing Data'!$D$9=\"Multi-academy Trust\")","v":false}]
[null,null,"Educational Consultancy",62,"",{"$f":"+Fin.Return!E290","v":0},null,null,null,null,null,null,null,null,null,null,null,null,null,null,null,null,null,null,null,null,null,null,null,null,null,null,null,null,null,null,null,null,null,null,null,null,null,null,null,null,null,null,null,null,null,null,null,null,null,null,null,null,null,null,null,null,null,null,null,null,null,null,null,null,null,null,null,null,null,null,null,null,null,null,null,null,null,null,null,null,null,null,null,null,null,null,null,null,null,null,null,null,null,null,null,null,null,null,null,null,null,null,null,null,null,null,{"$f":"AND(F108<>SUM(K108:DG108),'Standing Data'!$D$9=\"Multi-academy Trust\")","v":false}]
[null,null,"Supply teacher insurance",63,"",{"$f":"Fin.Return!E297","v":0},null,null,null,null,null,null,null,null,null,null,null,null,null,null,null,null,null,null,null,null,null,null,null,null,null,null,null,null,null,null,null,null,null,null,null,null,null,null,null,null,null,null,null,null,null,null,null,null,null,null,null,null,null,null,null,null,null,null,null,null,null,null,null,null,null,null,null,null,null,null,null,null,null,null,null,null,null,null,null,null,null,null,null,null,null,null,null,null,null,null,null,null,null,null,null,null,null,null,null,null,null,null,null,null,null,null,{"$f":"AND(F109<>SUM(K109:DG109),'Standing Data'!$D$9=\"Multi-academy Trust\")","v":false}]
[null,null,"Agency supply teaching staff",64,"",{"$f":"Fin.Return!E359","v":0},null,null,null,null,null,null,null,null,null,null,null,null,null,null,null,null,null,null,null,null,null,null,null,null,null,null,null,null,null,null,null,null,null,null,null,null,null,null,null,null,null,null,null,null,null,null,null,null,null,null,null,null,null,null,null,null,null,null,null,null,null,null,null,null,null,null,null,null,null,null,null,null,null,null,null,null,null,null,null,null,null,null,null,null,null,null,null,null,null,null,null,null,null,null,null,null,null,null,null,null,null,null,null,null,null,null,{"$f":"AND(F110<>SUM(K110:DG110),'Standing Data'!$D$9=\"Multi-academy Trust\")","v":false}]
[null,null,null,null,null,null,{"$f":"SUM(F105:F110)","v":0},null,null,null,{"$f":"SUM(K105:K110)","v":0},{"$f":"SUM(L105:L110)","v":0},0,0,0,0,0,0,0,0,0,0,0,0,0,0,0,0,0,0,0,0,0,0,0,0,0,0,0,0,0,0,0,0,0,0,0,0,0,{"$f":"SUM(AX105:AX110)","v":0},0,0,0,0,0,0,0,0,0,0,0,0,0,0,0,0,0,0,0,0,0,0,0,0,0,0,0,0,0,0,0,0,0,0,0,0,0,0,0,0,0,0,0,0,0,0,0,0,0,0,0,0,0,0,0,0,0,0,0,0,0]
[]
[]
[null,"Other supplies and services"]
[null,null,"Catering supplies",65,{"$f":"IF(DI115=TRUE, \"Error - imbalance\",\"\")","v":""},{"$f":"Fin.Return!E313","v":0},null,null,null,null,null,null,null,null,null,null,null,null,null,null,null,null,null,null,null,null,null,null,null,null,null,null,null,null,null,null,null,null,null,null,null,null,null,null,null,null,null,null,null,null,null,null,null,null,null,null,null,null,null,null,null,null,null,null,null,null,null,null,null,null,null,null,null,null,null,null,null,null,null,null,null,null,null,null,null,null,null,null,null,null,null,null,null,null,null,null,null,null,null,null,null,null,null,null,null,null,null,null,null,null,null,null,{"$f":"AND(F115<>SUM(K115:DG115),'Standing Data'!$D$9=\"Multi-academy Trust\")","v":false}]
[null,null,"Legal & Professional",66,"",{"$f":"Fin.Return!E332","v":0},null,null,null,null,null,null,null,null,null,null,null,null,null,null,null,null,null,null,null,null,null,null,null,null,null,null,null,null,null,null,null,null,null,null,null,null,null,null,null,null,null,null,null,null,null,null,null,null,null,null,null,null,null,null,null,null,null,null,null,null,null,null,null,null,null,null,null,null,null,null,null,null,null,null,null,null,null,null,null,null,null,null,null,null,null,null,null,null,null,null,null,null,null,null,null,null,null,null,null,null,null,null,null,null,null,null,{"$f":"AND(F116<>SUM(K116:DG116),'Standing Data'!$D$9=\"Multi-academy Trust\")","v":false}]
[null,null,"Auditor costs - Audit fees",67,"",{"$f":"Fin.Return!E337","v":0},null,null,null,null,null,null,null,null,null,null,null,null,null,null,null,null,null,null,null,null,null,null,null,null,null,null,null,null,null,null,null,null,null,null,null,null,null,null,null,null,null,null,null,null,null,null,null,null,null,null,null,null,null,null,null,null,null,null,null,null,null,null,null,null,null,null,null,null,null,null,null,null,null,null,null,null,null,null,null,null,null,null,null,null,null,null,null,null,null,null,null,null,null,null,null,null,null,null,null,null,null,null,null,null,null,null,{"$f":"AND(F117<>SUM(K117:DG117),'Standing Data'!$D$9=\"Multi-academy Trust\")","v":false}]
[null,null,"Auditor costs - Other fees",68,"",{"$f":"Fin.Return!E338","v":0},null,null,null,null,null,null,null,null,null,null,null,null,null,null,null,null,null,null,null,null,null,null,null,null,null,null,null,null,null,null,null,null,null,null,null,null,null,null,null,null,null,null,null,null,null,null,null,null,null,null,null,null,null,null,null,null,null,null,null,null,null,null,null,null,null,null,null,null,null,null,null,null,null,null,null,null,null,null,null,null,null,null,null,null,null,null,null,null,null,null,null,null,null,null,null,null,null,null,null,null,null,null,null,null,null,null,{"$f":"AND(F118<>SUM(K118:DG118),'Standing Data'!$D$9=\"Multi-academy Trust\")","v":false}]
[null,null,"Other insurance premiums",69,"",{"$f":"Fin.Return!E310","v":0},null,null,null,null,null,null,null,null,null,null,null,null,null,null,null,null,null,null,null,null,null,null,null,null,null,null,null,null,null,null,null,null,null,null,null,null,null,null,null,null,null,null,null,null,null,null,null,null,null,null,null,null,null,null,null,null,null,null,null,null,null,null,null,null,null,null,null,null,null,null,null,null,null,null,null,null,null,null,null,null,null,null,null,null,null,null,null,null,null,null,null,null,null,null,null,null,null,null,null,null,null,null,null,null,null,null,{"$f":"AND(F119<>SUM(K119:DG119),'Standing Data'!$D$9=\"Multi-academy Trust\")","v":false}]
[null,null,"Administrative supplies - non educational",70,"",{"$f":"+Fin.Return!E273+Fin.Return!E301+Fin.Return!E305+Fin.Return!E312+Fin.Return!E314+Fin.Return!E323+Fin.Return!E342+Fin.Return!E344+Fin.Return!E345+Fin.Return!E346","v":0},null,null,null,null,null,null,null,null,null,null,null,null,null,null,null,null,null,null,null,null,null,null,null,null,null,null,null,null,null,null,null,null,null,null,null,null,null,null,null,null,null,null,null,null,null,null,null,null,null,null,null,null,null,null,null,null,null,null,null,null,null,null,null,null,null,null,null,null,null,null,null,null,null,null,null,null,null,null,null,null,null,null,null,null,null,null,null,null,null,null,null,null,null,null,null,null,null,null,null,null,null,null,null,null,null,null,{"$f":"AND(F120<>SUM(K120:DG120),'Standing Data'!$D$9=\"Multi-academy Trust\")","v":false}]
[null,null,"Direct revenue financing (Revenue contributions to capital)",71,"",{"$f":"Fin.Return!I41","v":0},null,null,null,null,null,null,null,null,null,null,null,null,null,null,null,null,null,null,null,null,null,null,null,null,null,null,null,null,null,null,null,null,null,null,null,null,null,null,null,null,null,null,null,null,null,null,null,null,null,null,null,null,null,null,null,null,null,null,null,null,null,null,null,null,null,null,null,null,null,null,null,null,null,null,null,null,null,null,null,null,null,null,null,null,null,null,null,null,null,null,null,null,null,null,null,null,null,null,null,null,null,null,null,null,null,null,{"$f":"AND(F121<>SUM(K121:DG121),'Standing Data'!$D$9=\"Multi-academy Trust\")","v":false}]
[null,null,"Other",72,"",{"$f":"+Fin.Return!E320+Fin.Return!E321+Fin.Return!E322+Fin.Return!E339+Fin.Return!E340+Fin.Return!E341","v":0},null,null,null,null,null,null,null,null,null,null,null,null,null,null,null,null,null,null,null,null,null,null,null,null,null,null,null,null,null,null,null,null,null,null,null,null,null,null,null,null,null,null,null,null,null,null,null,null,null,null,null,null,null,null,null,null,null,null,null,null,null,null,null,null,null,null,null,null,null,null,null,null,null,null,null,null,null,null,null,null,null,null,null,null,null,null,null,null,null,null,null,null,null,null,null,null,null,null,null,null,null,null,null,null,null,null,{"$f":"AND(F122<>SUM(K122:DG122),'Standing Data'!$D$9=\"Multi-academy Trust\")","v":false}]
[null,null,null,null,null,null,{"$f":"SUM(F115:F122)","v":0},null,null,null,{"$f":"SUM(K115:K122)","v":0},{"$f":"SUM(L115:L122)","v":0},0,0,0,0,0,0,0,0,0,0,0,0,0,0,0,0,0,0,0,0,0,0,0,0,0,0,0,0,0,0,0,0,0,0,0,0,0,0,0,0,0,0,0,0,0,0,0,0,0,0,0,0,0,0,0,0,0,0,0,0,0,0,0,{"$f":"SUM(BX115:BX122)","v":0},0,0,0,0,0,0,0,0,0,0,0,0,0,0,0,0,0,0,0,0,0,0,0,0,0,0,0,0,0,0,0,0,0,0,0]
[]
[null,"Funding costs"]
[null,null,"Interest charges for Loan and bank",73,{"$f":"IF(DI126=TRUE, \"Error - imbalance\",\"\")","v":""},{"$f":"+Fin.Return!E317+Fin.Return!E318","v":0},null,null,null,null,null,null,null,null,null,null,null,null,null,null,null,null,null,null,null,null,null,null,null,null,null,null,null,null,null,null,null,null,null,null,null,null,null,null,null,null,null,null,null,null,null,null,null,null,null,null,null,null,null,null,null,null,null,null,null,null,null,null,null,null,null,null,null,null,null,null,null,null,null,null,null,null,null,null,null,null,null,null,null,null,null,null,null,null,null,null,null,null,null,null,null,null,null,null,null,null,null,null,null,null,null,null,{"$f":"AND(F126<>SUM(K126:DG126),'Standing Data'!$D$9=\"Multi-academy Trust\")","v":false}]
[null,null,"PFI Charges",74,"",{"$f":"+Fin.Return!E316","v":0},null,null,null,null,null,null,null,null,null,null,null,null,null,null,null,null,null,null,null,null,null,null,null,null,null,null,null,null,null,null,null,null,null,null,null,null,null,null,null,null,null,null,null,null,null,null,null,null,null,null,null,null,null,null,null,null,null,null,null,null,null,null,null,null,null,null,null,null,null,null,null,null,null,null,null,null,null,null,null,null,null,null,null,null,null,null,null,null,null,null,null,null,null,null,null,null,null,null,null,null,null,null,null,null,null,null,{"$f":"AND(F127<>SUM(K127:DG127),'Standing Data'!$D$9=\"Multi-academy Trust\")","v":false}]
[null,null,"Central Recharges - MATs only ",75,"",null,null,null,null,null,null,null,null,null,null,null,null,null,null,null,null,null,null,null,null,null,null,null,null,null,null,null,null,null,null,null,null,null,null,null,null,null,null,null,null,null,null,null,null,null,null,null,null,null,null,null,null,null,null,null,null,null,null,null,null,null,null,null,null,null,null,null,null,null,null,null,null,null,null,null,null,null,null,null,null,null,null,null,null,null,null,null,null,null,null,null,null,null,null,null,null,null,null,null,null,null,null,null,null,null,null,null,{"$f":"AND(F128<>SUM(K128:DG128),'Standing Data'!$D$9=\"Multi-academy Trust\")","v":false}]
[null,null,null,null,null,null,{"$f":"SUM(F126:F128)","v":0},null,null,null,{"$f":"SUM(K126:K128)","v":0},{"$f":"SUM(L126:L128)","v":0},0,0,0,0,0,0,0,0,0,0,0,0,0,0,0,0,0,0,0,0,0,0,0,0,0,0,0,0,0,0,0,0,0,0,0,0,0,{"$f":"SUM(AX126:AX128)","v":0},0,0,0,0,0,0,0,0,0,0,0,0,0,0,0,0,0,0,0,0,0,0,0,0,0,0,0,0,0,0,0,0,0,0,0,0,0,0,0,0,0,0,0,0,0,0,0,0,0,0,0,0,0,0,0,0,0,0,0,0,0]
[]
[null,null,null,null,null,null,null,null,{"$f":"SUM(G77:G129)+I73","v":0},null,{"$f":"+K129+K123+K111+K102+K100+K91+K89+K84+K73","v":0},{"$f":"+L129+L123+L111+L102+L100+L91+L89+L84+L73","v":0},0,0,0,0,0,0,0,0,0,0,0,0,0,0,0,0,0,0,0,0,0,0,0,0,0,0,0,0,0,0,0,0,0,0,0,0,0,0,0,0,0,0,0,0,0,0,0,0,0,0,0,0,0,0,0,0,0,0,0,0,0,0,0,{"$f":"+BX129+BX123+BX111+BX102+BX100+BX91+BX89+BX84+BX73","v":0},0,0,0,0,0,0,0,0,0,0,0,0,0,0,0,0,0,0,0,0,0,0,0,0,0,0,0,0,0,0,0,0,0,0,0]
["CAPITAL COSTS"]
[null,"Tangible Fixed Assets"]
[null,null,"Purchase of tangible fixed assets",76,{"$f":"IF(DI134=TRUE, \"Error - imbalance\",\"\")","v":""},null,{"$f":"Fin.Return!E483","v":0},null,null,null,null,null,null,null,null,null,null,null,null,null,null,null,null,null,null,null,null,null,null,null,null,null,null,null,null,null,null,null,null,null,null,null,null,null,null,null,null,null,null,null,null,null,null,null,null,null,null,null,null,null,null,null,null,null,null,null,null,null,null,null,null,null,null,null,null,null,null,null,null,null,null,null,null,null,null,null,null,null,null,null,null,null,null,null,null,null,null,null,null,null,null,null,null,null,null,null,null,null,null,null,null,null,{"$f":"AND(G134<>SUM(K134:DG134),'Standing Data'!$D$9=\"Multi-academy Trust\")","v":false}]
[null,null,"Depreciation",77,"",null,{"$f":"Fin.Return!E495","v":0},null,null,null,null,null,null,null,null,null,null,null,null,null,null,null,null,null,null,null,null,null,null,null,null,null,null,null,null,null,null,null,null,null,null,null,null,null,null,null,null,null,null,null,null,null,null,null,null,null,null,null,null,null,null,null,null,null,null,null,null,null,null,null,null,null,null,null,null,null,null,null,null,null,null,null,null,null,null,null,null,null,null,null,null,null,null,null,null,null,null,null,null,null,null,null,null,null,null,null,null,null,null,null,null,null,{"$f":"AND(G135<>SUM(K135:DG135),'Standing Data'!$D$9=\"Multi-academy Trust\")","v":false}]
[null,null,"Impairment",78,"",null,{"$f":"Fin.Return!E504","v":0},null,null,null,null,null,null,null,null,null,null,null,null,null,null,null,null,null,null,null,null,null,null,null,null,null,null,null,null,null,null,null,null,null,null,null,null,null,null,null,null,null,null,null,null,null,null,null,null,null,null,null,null,null,null,null,null,null,null,null,null,null,null,null,null,null,null,null,null,null,null,null,null,null,null,null,null,null,null,null,null,null,null,null,null,null,null,null,null,null,null,null,null,null,null,null,null,null,null,null,null,null,null,null,null,null,{"$f":"AND(G136<>SUM(K136:DG136),'Standing Data'!$D$9=\"Multi-academy Trust\")","v":false}]
[null,null,"Net book Value (NBV)",79,"",null,{"$f":"+(Fin.Return!E513)","v":0},null,null,null,null,null,null,null,null,null,null,null,null,null,null,null,null,null,null,null,null,null,null,null,null,null,null,null,null,null,null,null,null,null,null,null,null,null,null,null,null,null,null,null,null,null,null,null,null,null,null,null,null,null,null,null,null,null,null,null,null,null,null,null,null,null,null,null,null,null,null,null,null,null,null,null,null,null,null,null,null,null,null,null,null,null,null,null,null,null,null,null,null,null,null,null,null,null,null,null,null,null,null,null,null,null,{"$f":"AND(G137<>SUM(K137:DG137),'Standing Data'!$D$9=\"Multi-academy Trust\")","v":false}]
[null,"Intangible Fixed Assets"]
[null,null,"Purchase of intangible fixed assets",80,{"$f":"IF(DI139=TRUE, \"Error - imbalance\",\"\")","v":""},null,{"$f":"Fin.Return!E540","v":0},null,null,null,null,null,null,null,null,null,null,null,null,null,null,null,null,null,null,null,null,null,null,null,null,null,null,null,null,null,null,null,null,null,null,null,null,null,null,null,null,null,null,null,null,null,null,null,null,null,null,null,null,null,null,null,null,null,null,null,null,null,null,null,null,null,null,null,null,null,null,null,null,null,null,null,null,null,null,null,null,null,null,null,null,null,null,null,null,null,null,null,null,null,null,null,null,null,null,null,null,null,null,null,null,null,{"$f":"AND(G139<>SUM(K139:DG139),'Standing Data'!$D$9=\"Multi-academy Trust\")","v":false}]
[null,null,"Amortisation",81,"",null,{"$f":"Fin.Return!E551","v":0},null,null,null,null,null,null,null,null,null,null,null,null,null,null,null,null,null,null,null,null,null,null,null,null,null,null,null,null,null,null,null,null,null,null,null,null,null,null,null,null,null,null,null,null,null,null,null,null,null,null,null,null,null,null,null,null,null,null,null,null,null,null,null,null,null,null,null,null,null,null,null,null,null,null,null,null,null,null,null,null,null,null,null,null,null,null,null,null,null,null,null,null,null,null,null,null,null,null,null,null,null,null,null,null,null,{"$f":"AND(G140<>SUM(K140:DG140),'Standing Data'!$D$9=\"Multi-academy Trust\")","v":false}]
[null,null,"Impairment",82,"",null,{"$f":"Fin.Return!E560","v":0},null,null,null,null,null,null,null,null,null,null,null,null,null,null,null,null,null,null,null,null,null,null,null,null,null,null,null,null,null,null,null,null,null,null,null,null,null,null,null,null,null,null,null,null,null,null,null,null,null,null,null,null,null,null,null,null,null,null,null,null,null,null,null,null,null,null,null,null,null,null,null,null,null,null,null,null,null,null,null,null,null,null,null,null,null,null,null,null,null,null,null,null,null,null,null,null,null,null,null,null,null,null,null,null,null,{"$f":"AND(G141<>SUM(K141:DG141),'Standing Data'!$D$9=\"Multi-academy Trust\")","v":false}]
[null,null,"Net book Value (NBV)",83,"",null,{"$f":"+(Fin.Return!E569)","v":0},null,null,null,null,null,null,null,null,null,null,null,null,null,null,null,null,null,null,null,null,null,null,null,null,null,null,null,null,null,null,null,null,null,null,null,null,null,null,null,null,null,null,null,null,null,null,null,null,null,null,null,null,null,null,null,null,null,null,null,null,null,null,null,null,null,null,null,null,null,null,null,null,null,null,null,null,null,null,null,null,null,null,null,null,null,null,null,null,null,null,null,null,null,null,null,null,null,null,null,null,null,null,null,null,null,{"$f":"AND(G142<>SUM(K142:DG142),'Standing Data'!$D$9=\"Multi-academy Trust\")","v":false}]
[null,"Purchase of investments",null,84,"",null,{"$f":"Fin.Return!E580","v":0},null,null,null,null,null,null,null,null,null,null,null,null,null,null,null,null,null,null,null,null,null,null,null,null,null,null,null,null,null,null,null,null,null,null,null,null,null,null,null,null,null,null,null,null,null,null,null,null,null,null,null,null,null,null,null,null,null,null,null,null,null,null,null,null,null,null,null,null,null,null,null,null,null,null,null,null,null,null,null,null,null,null,null,null,null,null,null,null,null,null,null,null,null,null,null,null,null,null,null,null,null,null,null,null,null,{"$f":"AND(G143<>SUM(K143:DG143),'Standing Data'!$D$9=\"Multi-academy Trust\")","v":false}]
[null,null,null,null,null,null,null,null,{"$f":"SUM(G134:G143)","v":0},null,{"$f":"SUM(K134:K143)","v":0},{"$f":"SUM(L134:L143)","v":0},0,0,0,0,0,0,0,0,0,0,0,0,0,0,0,0,0,0,0,0,0,0,0,0,0,0,0,0,0,0,0,0,0,0,0,0,0,{"$f":"SUM(AX134:AX143)","v":0},0,0,0,0,0,0,0,0,0,0,0,0,0,0,0,0,0,0,0,0,0,0,0,0,0,0,0,0,0,0,0,0,0,0,0,0,0,0,0,0,0,0,0,0,0,0,0,0,0,0,0,0,0,0,0,0,0,0,0,0,0]
[]
[]
[null,"TOTAL COSTS",null,85,{"$f":"IF(DI147=TRUE, \"Error - imbalance\",\"\")","v":""},null,null,null,{"$f":"SUM(I131:I146)","v":0},null,{"$f":"+K144+K131","v":0},{"$f":"+L144+L131","v":0},0,0,0,0,0,0,0,0,0,0,0,0,0,0,0,0,0,0,0,0,0,0,0,0,0,0,0,0,0,0,0,0,0,0,0,0,0,0,0,0,0,0,0,0,0,0,0,0,0,0,0,0,0,0,0,0,0,0,0,0,0,0,0,{"$f":"+BX144+BX131","v":0},0,0,0,0,0,0,0,0,0,0,0,0,0,0,0,0,0,0,0,0,0,0,0,0,0,0,0,0,0,0,0,0,0,0,0,null,{"$f":"AND(I147<>SUM(K147:DG147),'Standing Data'!$D$9=\"Multi-academy Trust\")","v":false}]
[]
[]
["Average staff numbers (full time equivalent)",null,null,null,null,"Total Number","Permanently Employed Number","Temporary/ Interim Staff Number"]
[]
[null,null,"Teachers",86,{"$f":"IF(DI152=TRUE, \"Error - imbalance\",\"\")","v":""},{"$f":"Fin.Return!E371","v":0},{"$f":"Fin.Return!G371","v":0},{"$f":"Fin.Return!H371","v":0},null,null,null,null,null,null,null,null,null,null,null,null,null,null,null,null,null,null,null,null,null,null,null,null,null,null,null,null,null,null,null,null,null,null,null,null,null,null,null,null,null,null,null,null,null,null,null,null,null,null,null,null,null,null,null,null,null,null,null,null,null,null,null,null,null,null,null,null,null,null,null,null,null,null,null,null,null,null,null,null,null,null,null,null,null,null,null,null,null,null,null,null,null,null,null,null,null,null,null,null,null,null,null,null,{"$f":"AND(F152<>SUM(K152:DG152),'Standing Data'!$D$9=\"Multi-academy Trust\")","v":false}]
[null,null,"Administration & Support",87,"",{"$f":"Fin.Return!E372","v":0},{"$f":"Fin.Return!G372","v":0},{"$f":"Fin.Return!H372","v":0},null,null,null,null,null,null,null,null,null,null,null,null,null,null,null,null,null,null,null,null,null,null,null,null,null,null,null,null,null,null,null,null,null,null,null,null,null,null,null,null,null,null,null,null,null,null,null,null,null,null,null,null,null,null,null,null,null,null,null,null,null,null,null,null,null,null,null,null,null,null,null,null,null,null,null,null,null,null,null,null,null,null,null,null,null,null,null,null,null,null,null,null,null,null,null,null,null,null,null,null,null,null,null,null,{"$f":"AND(F153<>SUM(K153:DG153),'Standing Data'!$D$9=\"Multi-academy Trust\")","v":false}]
[null,null,"Management",88,"",{"$f":"Fin.Return!E373","v":0},{"$f":"Fin.Return!G373","v":0},{"$f":"Fin.Return!H373","v":0},null,null,null,null,null,null,null,null,null,null,null,null,null,null,null,null,null,null,null,null,null,null,null,null,null,null,null,null,null,null,null,null,null,null,null,null,null,null,null,null,null,null,null,null,null,null,null,null,null,null,null,null,null,null,null,null,null,null,null,null,null,null,null,null,null,null,null,null,null,null,null,null,null,null,null,null,null,null,null,null,null,null,null,null,null,null,null,null,null,null,null,null,null,null,null,null,null,null,null,null,null,null,null,null,{"$f":"AND(F154<>SUM(K154:DG154),'Standing Data'!$D$9=\"Multi-academy Trust\")","v":false}]
[null,null,null,null,null,{"$f":"SUM(F152:F154)","v":0},{"$f":"SUM(G152:G154)","v":0},{"$f":"SUM(H152:H154)","v":0},null,null,{"$f":"SUM(K152:K154)","v":0},{"$f":"SUM(L152:L154)","v":0},0,0,0,0,0,0,0,0,0,0,0,0,0,0,0,0,0,0,0,0,0,0,0,0,0,0,0,0,0,0,0,0,0,0,0,0,0,{"$f":"SUM(AX152:AX154)","v":0},0,0,0,0,0,0,0,0,0,0,0,0,0,0,0,0,0,0,0,0,0,0,0,0,0,0,0,0,0,0,0,0,0,0,0,0,0,0,0,0,0,0,0,0,0,0,0,0,0,0,0,0,0,0,0,0,0,0,0,0,0]

{"sheet":"Land and Property","index":6,"n_rows":112,"n_cols":15,"rows_kept":112,"cut":false,"hidden":false,"merged":[]}
["Accounts Return March 2014 - Land and property",null,null,null,null,null,null,"Below","Fin.Return","Diff.","Validation"]
[null,null,null,null,null,null,null,"£'000","£'000","£'000"]
["Trust:",null,{"$f":"'Standing Data'!$D$3","v":"Type name here"},null,null,null,"Freehold Land and Buildings",{"$f":"SUMIF($G$14:$G$112,G3,$F$14:$F$112)","v":0},{"$f":"Fin.Return!G510","v":0},{"$f":"H3-I3","v":0},{"$f":"IF(J3<>0,\"ERROR\",\"OK\")","v":"OK"}]
[null,null,null,null,null,null,"Leasehold Land and Buildings",{"$f":"SUMIF($G$14:$G$112,G4,$F$14:$F$112)","v":0},{"$f":"Fin.Return!H510","v":0},{"$f":"H4-I4","v":0},{"$f":"IF(J4<>0,\"ERROR\",\"OK\")","v":"OK"}]
["Period end:",null,{"$f":"('Standing Data'!D6)","v":"2014-03-31"},"Cells will populate automatically from elsewhere in the Return",null,null,"Leasehold Improvements",0,{"$f":"Fin.Return!I510","v":0},0,"OK"]
[]
["Company No.:",null,{"$f":"'Standing Data'!D12","v":"Type number here"},"Additional to Financial Statements, prepared on a similar basis"]
[]
["Academy UPIN:",null,{"$f":"Fin.Return!C9","v":{"$error":"#N/A"}},"Non-financial cells to be populated by Academy Trust"]
[null,null,"Above details will populate automatically",null,"Error check cells"]
[]
[null,null,"Academy Name","UPIN","Description of property","Net Book Value included in financial return","Leasehold / Freehold / Leasehold Improvements","Donor/ Lessor/ Purchaser Type","Lease term if applicable (years)","If leasehold, lease type","Rental/lease payment type (if applicable)",null,null,"Lower limit","Upper limit "]
[null,null,null,null,null,"£000",null,null,null,null,null,null,null,"£000","£000"]
[null,null,null,{"$f":"IF(C14<>\"\", VLOOKUP(C14,Reference!$O$10:$P$3888,2,FALSE),\"\")","v":""},null,null,null,null,null,null,null,{"$f":"IF(AND(F14<>0,G14=\"\"),\"Complete column G\",IF(AND(LEFT(G14,9)=\"Leasehold\",OR(I14=\"\",I14=0)),\"ERROR - Missing lease input\",IF(AND(LEFT(G14,9)=\"Leasehold\",OR(J14=\"\",J14=0,J14=\"n/a\")),\"ERROR - Missing lease input\",IF(AND(LEFT(G14,9)=\"Leasehold\",OR(K14=\"\",K14=0,K14=\"n/a\")),\"ERROR - Missing lease input\",\"\"))))","v":""},null,0,100000]
[null,null,null,{"$f":"IF(C15<>\"\", VLOOKUP(C15,Reference!$O$10:$P$3888,2,FALSE),\"\")","v":""},null,null,null,null,null,null,null,{"$f":"IF(AND(F15<>0,G15=\"\"),\"Complete column G\",IF(AND(LEFT(G15,9)=\"Leasehold\",OR(I15=\"\",I15=0)),\"ERROR - Missing lease input\",IF(AND(LEFT(G15,9)=\"Leasehold\",OR(J15=\"\",J15=0,J15=\"n/a\")),\"ERROR - Missing lease input\",IF(AND(LEFT(G15,9)=\"Leasehold\",OR(K15=\"\",K15=0,K15=\"n/a\")),\"ERROR - Missing lease input\",\"\"))))","v":""}]
[null,null,null,{"$f":"IF(C16<>\"\", VLOOKUP(C16,[2]Reference!$O$11:$P$3755,2,FALSE),\"\")","v":""},null,null,null,null,null,null,null,""]
[null,null,null,{"$f":"IF(C17<>\"\", VLOOKUP(C17,[2]Reference!$O$11:$P$3755,2,FALSE),\"\")","v":""},null,null,null,null,null,null,null,""]
[null,null,null,{"$f":"IF(C18<>\"\", VLOOKUP(C18,[2]Reference!$O$11:$P$3755,2,FALSE),\"\")","v":""},null,null,null,null,null,null,null,""]
[null,null,null,{"$f":"IF(C19<>\"\", VLOOKUP(C19,[2]Reference!$O$11:$P$3755,2,FALSE),\"\")","v":""},null,null,null,null,null,null,null,""]
[null,null,null,{"$f":"IF(C20<>\"\", VLOOKUP(C20,[2]Reference!$O$11:$P$3755,2,FALSE),\"\")","v":""},null,null,null,null,null,null,null,""]
[null,null,null,{"$f":"IF(C21<>\"\", VLOOKUP(C21,[2]Reference!$O$11:$P$3755,2,FALSE),\"\")","v":""},null,null,null,null,null,null,null,""]
[null,null,null,{"$f":"IF(C22<>\"\", VLOOKUP(C22,[2]Reference!$O$11:$P$3755,2,FALSE),\"\")","v":""},null,null,null,null,null,null,null,""]
[null,null,null,{"$f":"IF(C23<>\"\", VLOOKUP(C23,[2]Reference!$O$11:$P$3755,2,FALSE),\"\")","v":""},null,null,null,null,null,null,null,""]
[null,null,null,{"$f":"IF(C24<>\"\", VLOOKUP(C24,[2]Reference!$O$11:$P$3755,2,FALSE),\"\")","v":""},null,null,null,null,null,null,null,""]
[null,null,null,{"$f":"IF(C25<>\"\", VLOOKUP(C25,[2]Reference!$O$11:$P$3755,2,FALSE),\"\")","v":""},null,null,null,null,null,null,null,""]
[null,null,null,{"$f":"IF(C26<>\"\", VLOOKUP(C26,[2]Reference!$O$11:$P$3755,2,FALSE),\"\")","v":""},null,null,null,null,null,null,null,""]
[null,null,null,{"$f":"IF(C27<>\"\", VLOOKUP(C27,[2]Reference!$O$11:$P$3755,2,FALSE),\"\")","v":""},null,null,null,null,null,null,null,""]
[null,null,null,{"$f":"IF(C28<>\"\", VLOOKUP(C28,[2]Reference!$O$11:$P$3755,2,FALSE),\"\")","v":""},null,null,null,null,null,null,null,""]
[null,null,null,{"$f":"IF(C29<>\"\", VLOOKUP(C29,[2]Reference!$O$11:$P$3755,2,FALSE),\"\")","v":""},null,null,null,null,null,null,null,""]
[null,null,null,{"$f":"IF(C30<>\"\", VLOOKUP(C30,[2]Reference!$O$11:$P$3755,2,FALSE),\"\")","v":""},null,null,null,null,null,null,null,""]
[null,null,null,{"$f":"IF(C31<>\"\", VLOOKUP(C31,[2]Reference!$O$11:$P$3755,2,FALSE),\"\")","v":""},null,null,null,null,null,null,null,""]
[null,null,null,{"$f":"IF(C32<>\"\", VLOOKUP(C32,[2]Reference!$O$11:$P$3755,2,FALSE),\"\")","v":""},null,null,null,null,null,null,null,""]
[null,null,null,{"$f":"IF(C33<>\"\", VLOOKUP(C33,[2]Reference!$O$11:$P$3755,2,FALSE),\"\")","v":""},null,null,null,null,null,null,null,""]
[null,null,null,{"$f":"IF(C34<>\"\", VLOOKUP(C34,[2]Reference!$O$11:$P$3755,2,FALSE),\"\")","v":""},null,null,null,null,null,null,null,""]
[null,null,null,{"$f":"IF(C35<>\"\", VLOOKUP(C35,[2]Reference!$O$11:$P$3755,2,FALSE),\"\")","v":""},null,null,null,null,null,null,null,""]
[null,null,null,{"$f":"IF(C36<>\"\", VLOOKUP(C36,[2]Reference!$O$11:$P$3755,2,FALSE),\"\")","v":""},null,null,null,null,null,null,null,""]
[null,null,null,{"$f":"IF(C37<>\"\", VLOOKUP(C37,[2]Reference!$O$11:$P$3755,2,FALSE),\"\")","v":""},null,null,null,null,null,null,null,""]
[null,null,null,{"$f":"IF(C38<>\"\", VLOOKUP(C38,[2]Reference!$O$11:$P$3755,2,FALSE),\"\")","v":""},null,null,null,null,null,null,null,""]
[null,null,null,{"$f":"IF(C39<>\"\", VLOOKUP(C39,[2]Reference!$O$11:$P$3755,2,FALSE),\"\")","v":""},null,null,null,null,null,null,null,""]
[null,null,null,{"$f":"IF(C40<>\"\", VLOOKUP(C40,[2]Reference!$O$11:$P$3755,2,FALSE),\"\")","v":""},null,null,null,null,null,null,null,""]
[null,null,null,{"$f":"IF(C41<>\"\", VLOOKUP(C41,[2]Reference!$O$11:$P$3755,2,FALSE),\"\")","v":""},null,null,null,null,null,null,null,""]
[null,null,null,{"$f":"IF(C42<>\"\", VLOOKUP(C42,[2]Reference!$O$11:$P$3755,2,FALSE),\"\")","v":""},null,null,null,null,null,null,null,""]
[null,null,null,{"$f":"IF(C43<>\"\", VLOOKUP(C43,[2]Reference!$O$11:$P$3755,2,FALSE),\"\")","v":""},null,null,null,null,null,null,null,""]
[null,null,null,{"$f":"IF(C44<>\"\", VLOOKUP(C44,[2]Reference!$O$11:$P$3755,2,FALSE),\"\")","v":""},null,null,null,null,null,null,null,""]
[null,null,null,{"$f":"IF(C45<>\"\", VLOOKUP(C45,[2]Reference!$O$11:$P$3755,2,FALSE),\"\")","v":""},null,null,null,null,null,null,null,""]
[null,null,null,{"$f":"IF(C46<>\"\", VLOOKUP(C46,[2]Reference!$O$11:$P$3755,2,FALSE),\"\")","v":""},null,null,null,null,null,null,null,""]
[null,null,null,{"$f":"IF(C47<>\"\", VLOOKUP(C47,[2]Reference!$O$11:$P$3755,2,FALSE),\"\")","v":""},null,null,null,null,null,null,null,""]
[null,null,null,{"$f":"IF(C48<>\"\", VLOOKUP(C48,[2]Reference!$O$11:$P$3755,2,FALSE),\"\")","v":""},null,null,null,null,null,null,null,""]
[null,null,null,{"$f":"IF(C49<>\"\", VLOOKUP(C49,[2]Reference!$O$11:$P$3755,2,FALSE),\"\")","v":""},null,null,null,null,null,null,null,""]
[null,null,null,{"$f":"IF(C50<>\"\", VLOOKUP(C50,[2]Reference!$O$11:$P$3755,2,FALSE),\"\")","v":""},null,null,null,null,null,null,null,""]
[null,null,null,{"$f":"IF(C51<>\"\", VLOOKUP(C51,[2]Reference!$O$11:$P$3755,2,FALSE),\"\")","v":""},null,null,null,null,null,null,null,""]
[null,null,null,{"$f":"IF(C52<>\"\", VLOOKUP(C52,[2]Reference!$O$11:$P$3755,2,FALSE),\"\")","v":""},null,null,null,null,null,null,null,""]
[null,null,null,{"$f":"IF(C53<>\"\", VLOOKUP(C53,[2]Reference!$O$11:$P$3755,2,FALSE),\"\")","v":""},null,null,null,null,null,null,null,""]
[null,null,null,{"$f":"IF(C54<>\"\", VLOOKUP(C54,[2]Reference!$O$11:$P$3755,2,FALSE),\"\")","v":""},null,null,null,null,null,null,null,""]
[null,null,null,{"$f":"IF(C55<>\"\", VLOOKUP(C55,[2]Reference!$O$11:$P$3755,2,FALSE),\"\")","v":""},null,null,null,null,null,null,null,""]
[null,null,null,{"$f":"IF(C56<>\"\", VLOOKUP(C56,[2]Reference!$O$11:$P$3755,2,FALSE),\"\")","v":""},null,null,null,null,null,null,null,""]
[null,null,null,{"$f":"IF(C57<>\"\", VLOOKUP(C57,[2]Reference!$O$11:$P$3755,2,FALSE),\"\")","v":""},null,null,null,null,null,null,null,""]
[null,null,null,{"$f":"IF(C58<>\"\", VLOOKUP(C58,[2]Reference!$O$11:$P$3755,2,FALSE),\"\")","v":""},null,null,null,null,null,null,null,""]
[null,null,null,{"$f":"IF(C59<>\"\", VLOOKUP(C59,[2]Reference!$O$11:$P$3755,2,FALSE),\"\")","v":""},null,null,null,null,null,null,null,""]
[null,null,null,{"$f":"IF(C60<>\"\", VLOOKUP(C60,[2]Reference!$O$11:$P$3755,2,FALSE),\"\")","v":""},null,null,null,null,null,null,null,""]
[null,null,null,{"$f":"IF(C61<>\"\", VLOOKUP(C61,[2]Reference!$O$11:$P$3755,2,FALSE),\"\")","v":""},null,null,null,null,null,null,null,""]
[null,null,null,{"$f":"IF(C62<>\"\", VLOOKUP(C62,[2]Reference!$O$11:$P$3755,2,FALSE),\"\")","v":""},null,null,null,null,null,null,null,""]
[null,null,null,{"$f":"IF(C63<>\"\", VLOOKUP(C63,[2]Reference!$O$11:$P$3755,2,FALSE),\"\")","v":""},null,null,null,null,null,null,null,""]
[null,null,null,{"$f":"IF(C64<>\"\", VLOOKUP(C64,[2]Reference!$O$11:$P$3755,2,FALSE),\"\")","v":""},null,null,null,null,null,null,null,""]
[null,null,null,{"$f":"IF(C65<>\"\", VLOOKUP(C65,[2]Reference!$O$11:$P$3755,2,FALSE),\"\")","v":""},null,null,null,null,null,null,null,""]
[null,null,null,{"$f":"IF(C66<>\"\", VLOOKUP(C66,[2]Reference!$O$11:$P$3755,2,FALSE),\"\")","v":""},null,null,null,null,null,null,null,""]
[null,null,null,{"$f":"IF(C67<>\"\", VLOOKUP(C67,[2]Reference!$O$11:$P$3755,2,FALSE),\"\")","v":""},null,null,null,null,null,null,null,""]
[null,null,null,{"$f":"IF(C68<>\"\", VLOOKUP(C68,[2]Reference!$O$11:$P$3755,2,FALSE),\"\")","v":""},null,null,null,null,null,null,null,""]
[null,null,null,{"$f":"IF(C69<>\"\", VLOOKUP(C69,[2]Reference!$O$11:$P$3755,2,FALSE),\"\")","v":""},null,null,null,null,null,null,null,""]
[null,null,null,{"$f":"IF(C70<>\"\", VLOOKUP(C70,[2]Reference!$O$11:$P$3755,2,FALSE),\"\")","v":""},null,null,null,null,null,null,null,""]
[null,null,null,{"$f":"IF(C71<>\"\", VLOOKUP(C71,[2]Reference!$O$11:$P$3755,2,FALSE),\"\")","v":""},null,null,null,null,null,null,null,""]
[null,null,null,{"$f":"IF(C72<>\"\", VLOOKUP(C72,[2]Reference!$O$11:$P$3755,2,FALSE),\"\")","v":""},null,null,null,null,null,null,null,""]
[null,null,null,{"$f":"IF(C73<>\"\", VLOOKUP(C73,[2]Reference!$O$11:$P$3755,2,FALSE),\"\")","v":""},null,null,null,null,null,null,null,""]
[null,null,null,{"$f":"IF(C74<>\"\", VLOOKUP(C74,[2]Reference!$O$11:$P$3755,2,FALSE),\"\")","v":""},null,null,null,null,null,null,null,""]
[null,null,null,{"$f":"IF(C75<>\"\", VLOOKUP(C75,[2]Reference!$O$11:$P$3755,2,FALSE),\"\")","v":""},null,null,null,null,null,null,null,""]
[null,null,null,{"$f":"IF(C76<>\"\", VLOOKUP(C76,[2]Reference!$O$11:$P$3755,2,FALSE),\"\")","v":""},null,null,null,null,null,null,null,""]
[null,null,null,{"$f":"IF(C77<>\"\", VLOOKUP(C77,[2]Reference!$O$11:$P$3755,2,FALSE),\"\")","v":""},null,null,null,null,null,null,null,""]
[null,null,null,{"$f":"IF(C78<>\"\", VLOOKUP(C78,[2]Reference!$O$11:$P$3755,2,FALSE),\"\")","v":""},null,null,null,null,null,null,null,""]
[null,null,null,{"$f":"IF(C79<>\"\", VLOOKUP(C79,[2]Reference!$O$11:$P$3755,2,FALSE),\"\")","v":""},null,null,null,null,null,null,null,{"$f":"IF(AND(F79<>0,G79=\"\"),\"Complete column G\",IF(AND(LEFT(G79,9)=\"Leasehold\",OR(I79=\"\",I79=0)),\"ERROR - Missing lease input\",IF(AND(LEFT(G79,9)=\"Leasehold\",OR(J79=\"\",J79=0,J79=\"n/a\")),\"ERROR - Missing lease input\",IF(AND(LEFT(G79,9)=\"Leasehold\",OR(K79=\"\",K79=0,K79=\"n/a\")),\"ERROR - Missing lease input\",\"\"))))","v":""}]
[null,null,null,{"$f":"IF(C80<>\"\", VLOOKUP(C80,[2]Reference!$O$11:$P$3755,2,FALSE),\"\")","v":""},null,null,null,null,null,null,null,""]
[null,null,null,{"$f":"IF(C81<>\"\", VLOOKUP(C81,[2]Reference!$O$11:$P$3755,2,FALSE),\"\")","v":""},null,null,null,null,null,null,null,""]
[null,null,null,{"$f":"IF(C82<>\"\", VLOOKUP(C82,[2]Reference!$O$11:$P$3755,2,FALSE),\"\")","v":""},null,null,null,null,null,null,null,""]
[null,null,null,{"$f":"IF(C83<>\"\", VLOOKUP(C83,[2]Reference!$O$11:$P$3755,2,FALSE),\"\")","v":""},null,null,null,null,null,null,null,""]
[null,null,null,{"$f":"IF(C84<>\"\", VLOOKUP(C84,[2]Reference!$O$11:$P$3755,2,FALSE),\"\")","v":""},null,null,null,null,null,null,null,""]
[null,null,null,{"$f":"IF(C85<>\"\", VLOOKUP(C85,[2]Reference!$O$11:$P$3755,2,FALSE),\"\")","v":""},null,null,null,null,null,null,null,""]
[null,null,null,{"$f":"IF(C86<>\"\", VLOOKUP(C86,[2]Reference!$O$11:$P$3755,2,FALSE),\"\")","v":""},null,null,null,null,null,null,null,""]
[null,null,null,{"$f":"IF(C87<>\"\", VLOOKUP(C87,[2]Reference!$O$11:$P$3755,2,FALSE),\"\")","v":""},null,null,null,null,null,null,null,""]
[null,null,null,{"$f":"IF(C88<>\"\", VLOOKUP(C88,[2]Reference!$O$11:$P$3755,2,FALSE),\"\")","v":""},null,null,null,null,null,null,null,""]
[null,null,null,{"$f":"IF(C89<>\"\", VLOOKUP(C89,[2]Reference!$O$11:$P$3755,2,FALSE),\"\")","v":""},null,null,null,null,null,null,null,""]
[null,null,null,{"$f":"IF(C90<>\"\", VLOOKUP(C90,[2]Reference!$O$11:$P$3755,2,FALSE),\"\")","v":""},null,null,null,null,null,null,null,""]
[null,null,null,{"$f":"IF(C91<>\"\", VLOOKUP(C91,[2]Reference!$O$11:$P$3755,2,FALSE),\"\")","v":""},null,null,null,null,null,null,null,""]
[null,null,null,{"$f":"IF(C92<>\"\", VLOOKUP(C92,[2]Reference!$O$11:$P$3755,2,FALSE),\"\")","v":""},null,null,null,null,null,null,null,""]
[null,null,null,{"$f":"IF(C93<>\"\", VLOOKUP(C93,[2]Reference!$O$11:$P$3755,2,FALSE),\"\")","v":""},null,null,null,null,null,null,null,""]
[null,null,null,{"$f":"IF(C94<>\"\", VLOOKUP(C94,[2]Reference!$O$11:$P$3755,2,FALSE),\"\")","v":""},null,null,null,null,null,null,null,""]
[null,null,null,{"$f":"IF(C95<>\"\", VLOOKUP(C95,[2]Reference!$O$11:$P$3755,2,FALSE),\"\")","v":""},null,null,null,null,null,null,null,""]
[null,null,null,{"$f":"IF(C96<>\"\", VLOOKUP(C96,[2]Reference!$O$11:$P$3755,2,FALSE),\"\")","v":""},null,null,null,null,null,null,null,""]
[null,null,null,{"$f":"IF(C97<>\"\", VLOOKUP(C97,[2]Reference!$O$11:$P$3755,2,FALSE),\"\")","v":""},null,null,null,null,null,null,null,""]
[null,null,null,{"$f":"IF(C98<>\"\", VLOOKUP(C98,[2]Reference!$O$11:$P$3755,2,FALSE),\"\")","v":""},null,null,null,null,null,null,null,""]
[null,null,null,{"$f":"IF(C99<>\"\", VLOOKUP(C99,[2]Reference!$O$11:$P$3755,2,FALSE),\"\")","v":""},null,null,null,null,null,null,null,""]
[null,null,null,{"$f":"IF(C100<>\"\", VLOOKUP(C100,[2]Reference!$O$11:$P$3755,2,FALSE),\"\")","v":""},null,null,null,null,null,null,null,""]
[null,null,null,{"$f":"IF(C101<>\"\", VLOOKUP(C101,[2]Reference!$O$11:$P$3755,2,FALSE),\"\")","v":""},null,null,null,null,null,null,null,""]
[null,null,null,{"$f":"IF(C102<>\"\", VLOOKUP(C102,[2]Reference!$O$11:$P$3755,2,FALSE),\"\")","v":""},null,null,null,null,null,null,null,""]
[null,null,null,{"$f":"IF(C103<>\"\", VLOOKUP(C103,[2]Reference!$O$11:$P$3755,2,FALSE),\"\")","v":""},null,null,null,null,null,null,null,""]
[null,null,null,{"$f":"IF(C104<>\"\", VLOOKUP(C104,[2]Reference!$O$11:$P$3755,2,FALSE),\"\")","v":""},null,null,null,null,null,null,null,""]
[null,null,null,{"$f":"IF(C105<>\"\", VLOOKUP(C105,[2]Reference!$O$11:$P$3755,2,FALSE),\"\")","v":""},null,null,null,null,null,null,null,""]
[null,null,null,{"$f":"IF(C106<>\"\", VLOOKUP(C106,[2]Reference!$O$11:$P$3755,2,FALSE),\"\")","v":""},null,null,null,null,null,null,null,""]
[null,null,null,{"$f":"IF(C107<>\"\", VLOOKUP(C107,[2]Reference!$O$11:$P$3755,2,FALSE),\"\")","v":""},null,null,null,null,null,null,null,""]
[null,null,null,{"$f":"IF(C108<>\"\", VLOOKUP(C108,[2]Reference!$O$11:$P$3755,2,FALSE),\"\")","v":""},null,null,null,null,null,null,null,""]
[null,null,null,{"$f":"IF(C109<>\"\", VLOOKUP(C109,[2]Reference!$O$11:$P$3755,2,FALSE),\"\")","v":""},null,null,null,null,null,null,null,""]
[null,null,null,{"$f":"IF(C110<>\"\", VLOOKUP(C110,[2]Reference!$O$11:$P$3755,2,FALSE),\"\")","v":""},null,null,null,null,null,null,null,""]
[null,null,null,{"$f":"IF(C111<>\"\", VLOOKUP(C111,[2]Reference!$O$11:$P$3755,2,FALSE),\"\")","v":""},null,null,null,null,null,null,null,""]
[null,null,null,{"$f":"IF(C112<>\"\", VLOOKUP(C112,[2]Reference!$O$11:$P$3755,2,FALSE),\"\")","v":""},null,null,null,null,null,null,null,""]

{"sheet":"CP IDs","index":7,"n_rows":5122,"n_cols":4,"rows_kept":5122,"cut":false,"hidden":false,"merged":[]}
["NAME","CODE","Counterparty Type","Counterparty Gross"]
["Abacus Belsize Primary School","123288","Academy","Academy"]
["Abbey College - Ramsey","120322","Academy","Academy"]
["Abbey Grange Church of England High School","120083","Academy","Academy"]
["Abbey Hey Primary School",124243,"Academy","Academy"]
["Abbey Hill School and Technology College","124569","Academy","Academy"]
["Abbey Infants' School","119988","Academy","Academy"]
["Abbey Junior School","119989","Academy","Academy"]
["Abbey Park Junior, Infant and Nursery School",126329,"Academy","Academy"]
["Abbey School, The","120154","Academy","Academy"]
["Abbey View","123404","Academy","Academy"]
["Abbey Woods Academy","123534","Academy","Academy"]
["Abbeyfield School","122250","Academy","Academy"]
["Abbeywood Community School","122309","Academy","Academy"]
["Abbots Hall Primary School","122896","Academy","Academy"]
["Abbs Cross Academy and Art College","119551","Academy","Academy"]
["Abington Academy","121203","Academy","Academy"]
["Abington Vale Primary School","121187","Academy","Academy"]
["Abraham Darby Academy","119101","Academy","Academy"]
["Abraham Guest Academy","120210","Academy","Academy"]
["Academies Consolidated Account","CAD022","CenGov't","CenGov't"]
["Academy @ Worden","122270","Academy","Academy"]
["Academy 360","119119","Academy","Academy"]
["Academy at Shotton Hall, The","119508","Academy","Academy"]
["Academy of Central Bedfordshire, THe","123407","Academy","Academy"]
["Academy of St Francis of Assisi, The","119111","Academy","Academy"]
["Academy of Trinity C of E Primary","119813","Academy","Academy"]
["Academy St Joseph’s Catholic Primary School - Aylesham ",125019,"Academy","Academy"]
["Accrington Academy","118597","Academy","Academy"]
["Accrington St Christopher's Church of England High School","120359","Academy","Academy"]
["ACE Academy, The","122775","Academy","Academy"]
["Acle High School","122565","Academy","Academy"]
["Acocks Green Primary School","123272","Academy","Academy"]
["Acorn Free School, The","123412","Academy","Academy"]
["Acre Hall Academy","122311","Academy","Academy"]
["Acre Rigg Junior School","122739","Academy","Academy"]
["Adams' Grammar School","120418","Academy","Academy"]
["Addington High School","122641","Academy","Academy"]
["Adelaide School",129409,"Academy","Academy"]
["Admirals' Junior School","122656","Academy","Academy"]
["Adur District Council","E3831","EngLocGov't","LocGov't"]
["Advantage West Midlands","WMD084","CenGov't","CenGov't"]
["Aerodrome School, The","123037","Academy","Academy"]
["Agriculture & Horticulture Development Board","AHD003","CenGov't","CenGov't"]
["Agrifood and Biosciences Institute of Northern Ireland","ARI201","CenGov't","CenGov't"]
["Ainthorpe Primary School",124306,"Academy","Academy"]
["Airedale Academy Trust","119563","Academy","Academy"]
["Al Madinah School","122100","Academy","Academy"]
["Alameda Middle School","120249","Academy","Academy"]
["Alban Church of England Academy Trust","119583","Academy","Academy"]
["Alban City Free School","122102","Academy","Academy"]
["Albany Academy - Chorley","121853","Academy","Academy"]
["Albany, The - Havering","120189","Academy","Academy"]
["Albion Academy, The","121940","Academy","Academy"]
["Alcester Academy","120172","Academy","Academy"]
["Alcester Grammar School","119579","Academy","Academy"]
["Aldborough E-ACT Free School","120534","Academy","Academy"]
["Alderbrook Leading Edge School and Arts College","119994","Academy","Academy"]
["Alderman Jacobs Primary School","119676","Academy","Academy"]
["Alderman White School","122717","Academy","Academy"]
["Aldersley High School","122992","Academy","Academy"]
["Aldridge School - A Science College","121205","Academy","Academy"]
["Alec Hunter Humanities College","123939","Academy","Academy"]
["Alec Reed Academy, The","118409","Academy","Academy"]
["Alexandra Infant School",125230,"Academy","Academy"]
["Alexandra Junior School","125200","Academy","Academy"]
["Alexandra Park School","120567","Academy","Academy"]
["Alexandra School","124171","Academy","Academy"]
["Alfriston School","120753","Academy","Academy"]
["All Faiths' Children's Community School","121000","Academy","Academy"]
["All Hallows Catholic College","123111","Academy","Academy"]
["All Saints Academy - Barnsley","120930","Academy","Academy"]
["All Saints Academy - Bedford","119040","Academy","Academy"]
["All Saints Academy - Stockton-on-Tees","120760","Academy","Academy"]
["All Saints' Academy, The - Cheltenham","119150","Academy","Academy"]
["All Saints Babbacombe CofE Primary School","130163","Academy","Academy"]
["All Saints Catholic College - Dukinfield","124644","Academy","Academy"]
["All Saints' Catholic High School - Sheffield","121197","Academy","Academy"]
["All Saints Church of England Academy - Plymouth","119199","Academy","Academy"]
["All Saints Interchurch Academy - March","124183","Academy","Academy"]
["All Saints Junior School - Reading","120504","Academy","Academy"]
["Allerdale Borough Council","E0931","EngLocGov't","LocGov't"]
["Alleyne's Academy","123084","Academy","Academy"]
["Allhallows Primary School","124701","Academy","Academy"]
["Allington Primary School","122969","Academy","Academy"]
["Alma Primary","123357","Academy","Academy"]
["Alperton Community School","122325","Academy","Academy"]
["Alsager School","124251","Academy","Academy"]
["Altrincham College of Arts","122124","Academy","Academy"]
["Altrincham Grammar School for Boys","119511","Academy","Academy"]
["Altrincham Grammar School for Girls","120289","Academy","Academy"]
["Altwood CofE Secondary School","122326","Academy","Academy"]
["Amber Valley Borough Council","E1031","EngLocGov't","LocGov't"]
["Ambleside Primary School","122945","Academy","Academy"]
["Amersham School","120372","Academy","Academy"]
["Amery Hill School","120500","Academy","Academy"]
["Amherst School","119499","Academy","Academy"]
["Anand Primary School","123289","Academy","Academy"]
["Anchorsholme Primary School","124111","Academy","Academy"]
["Anglesey Primary Academy","123086","Academy","Academy"]
["Anglo European School","120813","Academy","Academy"]
["Ansford Academy","119839","Academy","Academy"]
["Appleby Grammar School","120251","Academy","Academy"]
["Applecroft School","120654","Academy","Academy"]
["Applegarth Nursery and Infant School","123941","Academy","Academy"]
["Appleton Academy - Bradford","119126","Academy","Academy"]
["Appleton Primary School - Hull",124252,"Academy","Academy"]
["Appleton School, The - Benfleet","119556","Academy","Academy"]
["Arbours Academy, The","122541","Academy","Academy"]
["Archbishop Benson CofE Primary School","120258","Academy","Academy"]
["Archbishop Cranmer Church of England Academy ",124584,"Academy","Academy"]
["Archbishop Holgate's School","119523","Academy","Academy"]
["Archbishop Sentamu Academy","119095","Academy","Academy"]
["Archer Academy, The","123349","Academy","Academy"]
["Arden Academy","119276","Academy","Academy"]
["Arden Grove Infant and Nursery School","124389","Academy","Academy"]
["Ardley Hill Academy","121192","Academy","Academy"]
["Ark Academy","118659","Academy","Academy"]
["ARK All Saints Academy","122186","Academy","Academy"]
["ARK Atwood Primary Academy","120505","Academy","Academy"]
["ARK Ayrton Primary Academy","123906","Academy","Academy"]
["ARK Bentworth Primary Academy","122381","Academy","Academy"]
["ARK Bolingbroke Academy","122013","Academy","Academy"]
["ARK Brunel Primary Academy","124488","Academy","Academy"]
["ARK Conway Primary Academy","120506","Academy","Academy"]
["ARK Franklin Primary Academy","124680","Academy","Academy"]
["ARK Globe Academy","118614","Academy","Academy"]
["ARK John Keats Academy","123290","Academy","Academy"]
["ARK Kings Academy","120907","Academy","Academy"]
["ARK Oval Primary Academy","120114","Academy","Academy"]
["ARK Priory Primary Academy","121923","Academy","Academy"]
["ARK Putney Academy","122388","Academy","Academy"]
["ARK Rose Academy","121847","Academy","Academy"]
["ARK Swift Primary Academy","124224","Academy","Academy"]
["ARK Tindal Primary Academy","120992","Academy","Academy"]
["ARK William Parker Academy","124511","Academy","Academy"]
["Armagh Planetarium and Observatory","APO202","CenGov't","CenGov't"]
["Armed Forces Retired Pay, Pensions etc","AFS902","CenGov't","CenGov't"]
["Armthorpe School, The","121002","Academy","Academy"]
["Arnewood School Academy, The","119649","Academy","Academy"]
["Arnold Academy","119841","Academy","Academy"]
["Arnold Hill School and Technology College","120591","Academy","Academy"]
["Arnside National CofE School","120652","Academy","Academy"]
["Arrow Vale RSA Academy","122314","Academy","Academy"]
["Arthur Mellows Village College","119274","Academy","Academy"]
["Arthur Terry School, The","120018","Academy","Academy"]
["Arts and Humanities Research Council","AHC084","CenGov't","CenGov't"]
["Arts Council of England","ACE048","CenGov't","CenGov't"]
["Arts Council of England Lottery","ACL048","CenGov't","CenGov't"]
["Arts Council of Northern Ireland","ACI202","CenGov't","CenGov't"]
["Arts Council of Northern Ireland Lottery Distribution Account","ANL850","CenGov't","CenGov't"]
["Arts Council of Wales","ACW090","CenGov't","CenGov't"]
["Arts Council of Wales National Lottery","AWL090","CenGov't","CenGov't"]
["Arun District Council","E3832","EngLocGov't","LocGov't"]
["Asfordby Hill Primary School","124150","Academy","Academy"]
["Ash Field Academy","121036","Academy","Academy"]
["Ash Green School and Arts College","120803","Academy","Academy"]
["Ash Grove Primary and Nursery School",124642,"Academy","Academy"]
["Ash Hill Academy","120458","Academy","Academy"]
["Ashburton Primary School","119678","Academy","Academy"]
["Ashby Hill Top Primary School","122680","Academy","Academy"]
["Ashby School","122080","Academy","Academy"]
["Ashcroft Technology Academy","118598","Academy","Academy"]
["Ashfield Comprehensive School","121097","Academy","Academy"]
["Ashfield District Council","E3031","EngLocGov't","LocGov't"]
["Ashford Borough Council","E2231","EngLocGov't","LocGov't"]
["Ashingdon Primary Academy","120332","Academy","Academy"]
["Ashlawn School Academy Trust","119553","Academy","Academy"]
["Ashley School, The","120339","Academy","Academy"]
["Ashmole Academy","119277","Academy","Academy"]
["Ashperton Primary Academy","119524","Academy","Academy"]
["Ashton-on-Mersey School","122001","Academy","Academy"]
["Ashwell Pupil Referral Unit","123233","Academy","Academy"]
["Aston Academy - Rotherham","119718","Academy","Academy"]
["Aston Manor Academy - Birmingham","119882","Academy","Academy"]
["Aston UTC - Birmingham","122150","Academy","Academy"]
["Astor College","122113","Academy","Academy"]
["Astwood Bank First School",124767,"Academy","Academy"]
["Atherton Community School","121960","Academy","Academy"]
["Atkinson Road Primary School","121210","Academy","Academy"]
["Attleborough High School",127652,"Academy","Academy"]
["Atwood Primary School",128107,"Academy","Academy"]
["Auckley Junior and Infant School","120431","Academy","Academy"]
["Audenshaw School","119350","Academy","Academy"]
["Austrey CofE Primary School","123227","Academy","Academy"]
["Avanti House School","123026","Academy","Academy"]
["Avenue School, The","120383","Academy","Academy"]
["Aveton Gifford CofE Primary School","122910","Academy","Academy"]
["Avishayes Community Primary School","120174","Academy","Academy"]
["Avon and Somerset Police Authority","E6050","EngLocGov't","LocGov't"]
["Avon Fire Authority","E6101","EngLocGov't","LocGov't"]
["Avonbourne School","121944","Academy","Academy"]
["Axbridge Church of England First School","122395","Academy","Academy"]
["Axholme Academy, The","120982","Academy","Academy"]
["Aylesbury Grammar School","119884","Academy","Academy"]
["Aylesbury High School","119846","Academy","Academy"]
["Aylesbury Vale Academy, The","118894","Academy","Academy"]
["Aylesbury Vale District Council","E0431","EngLocGov't","LocGov't"]
["Aylesford Primary School",124228,"Academy","Academy"]
["Aylesford School & Sixth Form College","120810","Academy","Academy"]
["Aylward Academy","119211","Academy","Academy"]
["Babergh District Council","E3531","EngLocGov't","LocGov't"]
["Backwell School","119719","Academy","Academy"]
["Bacon's College","118383","Academy","Academy"]
["Bacup and Rawtenstall Grammar School","122800","Academy","Academy"]
["Baird Primary Academy, The",124819,"Academy","Academy"]
["Balby Carr Community Sports and Science College",124987,"Academy","Academy"]
["Balcarras School","119474","Academy","Academy"]
["Balgowan Primary School","120216","Academy","Academy"]
["Balsall Common Primary School","122160","Academy","Academy"]
["Bamford Academy","120360","Academy","Academy"]
["Banbury Academy","120641","Academy","Academy"]
["Bank of England","BOE091","CenGov't","CenGov't"]
["Bannerman Road Community Academy","122940","Academy","Academy"]
["Barbara Priestman School","122338","Academy","Academy"]
["Barclay Primary School","122408","Academy","Academy"]
["Barking & Dagenham London Borough Council","E5030","EngLocGov't","LocGov't"]
["Barking and Dagenham - LGPS","LG001","LGPS","LocGov't"]
["Barnby Dun Primary School","121426","Academy","Academy"]
["Barnby Road Academy Primary and Nursery school","119256","Academy","Academy"]
["Barnehurst Infant School",126400,"Academy","Academy"]
["Barnehurst Junior School",126291,"Academy","Academy"]
["Barnet - LGPS","LG002","LGPS","LocGov't"]
["Barnet London Borough Council","E5031","EngLocGov't","LocGov't"]
["Barnfield Business and Enterprise Studio Academy","119325","Academy","Academy"]
["Barnfield Moorlands Free School","120524","Academy","Academy"]
["Barnfield South Academy - Luton","118599","Academy","Academy"]
["Barnfield Vale Academy - Dunstable","120860","Academy","Academy"]
["Barnfield West Academy - Luton","118600","Academy","Academy"]
["Barnhill Community High School","120071","Academy","Academy"]
["Barnsbury Primary School",127442,"Academy","Academy"]
["Barnsley Academy","118649","Academy","Academy"]
["Barnsley Metropolitan Borough Council","E4401","EngLocGov't","LocGov't"]
["Barr Beacon School","119885","Academy","Academy"]
["Barrow 1618","121961","Academy","Academy"]
["Barrow-in-Furness Borough Council","E0932","EngLocGov't","LocGov't"]
["Barrs Court School","122903","Academy","Academy"]
["Bartholomew School","120914","Academy","Academy"]
["Bartley Green School","119552","Academy","Academy"]
["Barton Court Grammar School","120444","Academy","Academy"]
["Barton Hill Primary Academy","120920","Academy","Academy"]
["Barton Junior School","122170","Academy","Academy"]
["Barwell Church of England Junior School","122989","Academy","Academy"]
["Basildon District Council","E1531","EngLocGov't","LocGov't"]
["Basildon Lower Academy, The","119146","Academy","Academy"]
["Basildon Upper Academy, The","119147","Academy","Academy"]
["Basingstoke and Deane Borough Council","E1731","EngLocGov't","LocGov't"]
["Bassetlaw District Council","E3032","EngLocGov't","LocGov't"]
["Bassingbourn Village College","120401","Academy","Academy"]
["Bath & North East Somerset Council","E0101","EngLocGov't","LocGov't"]
["Bath and North East Somerset Council - LGPS","LG003","LGPS","LocGov't"]
["Bath Community Academy","120949","Academy","Academy"]
["Batley Girls' High School","120432","Academy","Academy"]
["Batley Grammar School","120487","Academy","Academy"]
["Battle Primary Academy","122633","Academy","Academy"]
["Battling Brook Community Primary School","124192","Academy","Academy"]
["Baverstock Foundation School and Specialist Sports College","124250","Academy","Academy"]
["Baxter College","122417","Academy","Academy"]
["Bay House School","120781","Academy","Academy"]
["Baylis Court School","120259","Academy","Academy"]
["BBG Academy Trust","121045","Academy","Academy"]
["Beacon Academy - Loughborough","122916","Academy","Academy"]
["Beacon Community College - Crowborough","113087","Academy","Academy"]
["Beacon Hill Academy","121872","Academy","Academy"]
["Beacon School, The - Banstead","120708","Academy","Academy"]
["Beaconsfield School, The","123082","Academy","Academy"]
["Beal Academy",129576,"Academy","Academy"]
["Beaminster St Mary's Academy",129542,"Academy","Academy"]
["Beamont Collegiate Academy","122491","Academy","Academy"]
["Beanfield Primary School","122248","Academy","Academy"]
["Beauchamp College, The","113692","Academy","Academy"]
["Beaufort Community School - Gloucester",125001,"Academy","Academy"]
["Beaufort Primary School - Woking",126292,"Academy","Academy"]
["Beaumont Hill Academy","120531","Academy","Academy"]
["Beaumont School","122174","Academy","Academy"]
["Beaver Road Primary School",125217,"Academy","Academy"]
["Beaverwood School for Girls","119467","Academy","Academy"]
["Beccles Free School, The","122025","Academy","Academy"]
["Becket Keys Church School","121966","Academy","Academy"]
["Becket School, The","120279","Academy","Academy"]
["Beckfoot School","121064","Academy","Academy"]
["Bede Academy","118883","Academy","Academy"]
["Bedford Academy, The","119151","Academy","Academy"]
["Bedford Free School","122011","Academy","Academy"]
["Bedford Hall Methodist Primary School","124687","Academy","Academy"]
["Bedford Unitary Authority","E0202","EngLocGov't","LocGov't"]
["Bedfordshire and Luton Fire Authority","E6102","EngLocGov't","LocGov't"]
["Bedfordshire Pension Fund - LGPS","LG004","LGPS","LocGov't"]
["Bedfordshire Police Authority","E6002","EngLocGov't","LocGov't"]
["Bedminster Down School","120556","Academy","Academy"]
["Beech Hill Junior and Infant School","120433","Academy","Academy"]
["Beechen Cliff School","119570","Academy","Academy"]
["Beechwood Junior School",125244,"Academy","Academy"]
["Beecroft Lower School",124120,"Academy","Academy"]
["Begbrook Primary School","122143","Academy","Academy"]
["Beis Yaakov High School","120898","Academy","Academy"]
["Belfairs High School","120834","Academy","Academy"]
["Belfast Education & Library Board - Northern Ireland","BEL203","CenGov't","CenGov't"]
["Belgrave St. Bartholomew’s Academy","119546","Academy","Academy"]
["Belle Vue Girls' School","120720","Academy","Academy"]
["Bellerive FCJ Catholic College","122087","Academy","Academy"]
["Belleville Primary School","120640","Academy","Academy"]
["Bellfield Primary School","124079","Academy","Academy"]
["Belmont Castle Academy","122972","Academy","Academy"]
["Belmore Primary Academy","122850","Academy","Academy"]
["Belthorn Academy Primary School","120507","Academy","Academy"]
["Belvedere Academy, The","118601","Academy","Academy"]
["Belvedere Junior School","122812","Academy","Academy"]
["Belvoir High School and Melton Vale Post 16 Centre","122736","Academy","Academy"]
["Benedict Biscop Church of England Aided Primary School","121022","Academy","Academy"]
["Benedict Primary School",127409,"Academy","Academy"]
["Bennett Memorial Diocesan School","119633","Academy","Academy"]
["Bentley Heath Church of England Primary School",124781,"Academy","Academy"]
["Bentley Wood High School","120178","Academy","Academy"]
["Benyon Primary School","123282","Academy","Academy"]
["Berrygrove Academy","121889","Academy","Academy"]
["Berwick Academy","120647","Academy","Academy"]
["Bethnal Green Academy","120739","Academy","Academy"]
["Beths Grammar School","119278","Academy","Academy"]
["Beverley Grammar School","119995","Academy","Academy"]
["Bewbush Academy, The","121160","Academy","Academy"]
["Bexhill High School","122894","Academy","Academy"]
["Bexhill Primary School","119487","Academy","Academy"]
["Bexley - LGPS","LG005","LGPS","LocGov't"]
["Bexley Grammar School","119389","Academy","Academy"]
["Bexley London Borough Council","E5032","EngLocGov't","LocGov't"]
["Bexleyheath Academy","120138","Academy","Academy"]
["Bickleigh on Exe Church of England Primary School","120895","Academy","Academy"]
["Biddick School Sports College","124397","Academy","Academy"]
["Biddulph High School","120427","Academy","Academy"]
["Big Lottery Fund","NLB048","CenGov't","CenGov't"]
["Biggin Hill Primary Academy - Hull","122915","Academy","Academy"]
["Biggin Hill Primary School - Bromley","120244","Academy","Academy"]
["Bilingual Primary School for Brighton and Hove","121967","Academy","Academy"]
["Billericay School, The","119861","Academy","Academy"]
["Billesley Primary School","122846","Academy","Academy"]
["Billing Brook Academy",125231,"Academy","Academy"]
["Bilton School","120838","Academy","Academy"]
["Biotechnology and Biological Sciences Research Council","BRC084","CenGov't","CenGov't"]
["Birchills Church of England Primary Community School","123862","Academy","Academy"]
["Birchwood Community High School - Warrington","124126","Academy","Academy"]
["Birchwood High School - Bishop's Stortford","120632","Academy","Academy"]
["Birchwood Primary School - Tamworth","122649","Academy","Academy"]
["Birdwell Primary School","124162","Academy","Academy"]
["Birkdale High School","120297","Academy","Academy"]
["Birkenhead High School Academy","118888","Academy","Academy"]
["Birmingham City Council","E4601","EngLocGov't","LocGov't"]
["Birmingham Ormiston Academy","119944","Academy","Academy"]
["Birstall Community Primary School","123240","Academy","Academy"]
["Biscovey Junior School","120945","Academy","Academy"]
["Bishop Alexander Primary and Nursery School",129240,"Academy","Academy"]
["Bishop Blue Coat Church of England High School","119587","Academy","Academy"]
["Bishop Bronescombe CofE VA School",127392,"Academy","Academy"]
["Bishop Creighton Academy","119720","Academy","Academy"]
["Bishop Fox's Community School","119851","Academy","Academy"]
["Bishop Justus Church of England School","119466","Academy","Academy"]
["Bishop Luffa School",127604,"Academy","Academy"]
["Bishop Milner Catholic School","124380","Academy","Academy"]
["Bishop of Rochester Academy","119166","Academy","Academy"]
["Bishop of Winchester Academy, The","119200","Academy","Academy"]
["Bishop Perowne Church of England College","121136","Academy","Academy"]
["Bishop Ramsey","120457","Academy","Academy"]
["Bishop Rawstorne Church of England Language College","120296","Academy","Academy"]
["Bishop Stopford School","120086","Academy","Academy"]
["Bishop Vesey's Grammar School","120745","Academy","Academy"]
["Bishop Walsh Catholic Secondary School",123911,"Academy","Academy"]
["Bishop Wand Church of England School, The","122089","Academy","Academy"]
["Bishop Wordsworth's Grammar School","119500","Academy","Academy"]
["Bishops Cleeve Primary School","120271","Academy","Academy"]
["Bishop's Hatfield Girls' School","120821","Academy","Academy"]
["Bishopshalt School","120519","Academy","Academy"]
["Bishopton Redmarshall CofE Primary School","120021","Academy","Academy"]
["Blaby District Council","E2431","EngLocGov't","LocGov't"]
["Black Country UTC","119933","Academy","Academy"]
["Blackburn with Darwen Borough Council","E2301","EngLocGov't","LocGov't"]
["Blackfen School for Girls","121186","Academy","Academy"]
["Blackpool Borough Council","E2302","EngLocGov't","LocGov't"]
["Blackpool Church of England Primary School","120479","Academy","Academy"]
["Blackthorn Primary School","122845","Academy","Academy"]
["Blenheim High School","120717","Academy","Academy"]
["Blessed Robert Widmerpool Catholic Primary and Nursery School","120042","Academy","Academy"]
["Blockley Church of England Primary School","120799","Academy","Academy"]
["Blue Bell Hill Academy Trust","124253","Academy","Academy"]
["Blue Coat Church of England Academy - Walsall","122313","Academy","Academy"]
["Blue Coat CofE School, The - Oldham","120133","Academy","Academy"]
["Blue Coat School, The - Liverpool","120903","Academy","Academy"]
["Blue School, The - Wells","120285","Academy","Academy"]
["Bluecoat Academy - Nottingham","120792","Academy","Academy"]
["Blyth Academy","113218","Academy","Academy"]
["Blyth Morpeth Road First School","124151","Academy","Academy"]
["Boddington Church of England Voluntary School","124087","Academy","Academy"]
["Bodmin College","119408","Academy","Academy"]
["Bodriggy Academy","119584","Academy","Academy"]
["Bohunt School","119646","Academy","Academy"]
["Bolsover District Council","E1032","EngLocGov't","LocGov't"]
["Bolsover School, The","120597","Academy","Academy"]
["Bolton Brow Junior Infant and Nursery School","120434","Academy","Academy"]
["Bolton Metropolitan Borough Council","E4201","EngLocGov't","LocGov't"]
["Bolton St Catherine's Academy","119135","Academy","Academy"]
["Boothroyd Primary Academy",124702,"Academy","Academy"]
["Borden Grammar School","120721","Academy","Academy"]
["Boston Borough Council","E2531","EngLocGov't","LocGov't"]
["Boston Grammar School, The","123054","Academy","Academy"]
["Boston High School","122993","Academy","Academy"]
["Boston Pioneers Free School Academy","123293","Academy","Academy"]
["Boston West Primary School","122016","Academy","Academy"]
["Boswells School, The","120999","Academy","Academy"]
["Bosworth Academy","121188","Academy","Academy"]
["Bottesford Church of England Primary School","122714","Academy","Academy"]
["Bottisham Village College","119687","Academy","Academy"]
["Boughton Primary School","121833","Academy","Academy"]
["Boulevard Academy, The","122527","Academy","Academy"]
["Bourn CofE Primary Academy","120572","Academy","Academy"]
["Bourne Abbey Church of England Primary School","119379","Academy","Academy"]
["Bourne Academy - Bourne","120400","Academy","Academy"]
["Bourne Academy, The - Bournemouth","119201","Academy","Academy"]
["Bourne Grammar School - Bourne","120801","Academy","Academy"]
["Bourne Westfield Primary Academy","120639","Academy","Academy"]
["Bournemouth Council","E1202","EngLocGov't","LocGov't"]
["Bournemouth School","120387","Academy","Academy"]
["Bournemouth School for Girls","119996","Academy","Academy"]
["Bourton Meadow Academy","120734","Academy","Academy"]
["Bourton-on-the-Water Primary School","120736","Academy","Academy"]
["Bovingdon Primary Academy","119825","Academy","Academy"]
["Bower Park School","123072","Academy","Academy"]
["Bowland High","119997","Academy","Academy"]
["Boxgrove Primary School","124514","Academy","Academy"]
["Boyton Community Primary School",129560,"Academy","Academy"]
["Bracebridge Infant and Nursery School","123122","Academy","Academy"]
["Bracknell Forest Borough Council","E0301","EngLocGov't","LocGov't"]
["Braddock CofE Primary School",124513,"Academy","Academy"]
["Bradfield School","120972","Academy","Academy"]
["Bradford Academy","118603","Academy","Academy"]
["Bradford City Council","E4701","EngLocGov't","LocGov't"]
["Bradford Girls' Grammar School","123294","Academy","Academy"]
["Bradley Stoke Community School","120766","Academy","Academy"]
["Bradshaw Primary School","121004","Academy","Academy"]
["Bradworthy Primary Academy","119492","Academy","Academy"]
["Braintree District Council","E1532","EngLocGov't","LocGov't"]
["Brambles Primary School","122242","Academy","Academy"]
["Bramcote School, The","122719","Academy","Academy"]
["Bramford Primary School","123893","Academy","Academy"]
["Brampton Manor Academy","119684","Academy","Academy"]
["Bransgore Church of England Primary School","120617","Academy","Academy"]
["Branston Community Academy","119378","Academy","Academy"]
["Branston Junior Academy","122339","Academy","Academy"]
["Braunton School and Community College","120993","Academy","Academy"]
["Breckland District Council","E2631","EngLocGov't","LocGov't"]
["Brent - LGPS","LG006","LGPS","LocGov't"]
["Brent London Borough Council","E5033","EngLocGov't","LocGov't"]
["Brent Primary Academy, The",129429,"Academy","Academy"]
["Brentford School for Girls","122944","Academy","Academy"]
["Brentside Primary School","123055","Academy","Academy"]
["Brentwood Borough Council","E1533","EngLocGov't","LocGov't"]
["Brentwood Ursuline Convent High School","122961","Academy","Academy"]
["Briar Hill Primary School","122799","Academy","Academy"]
["Bricknell Primary School",124245,"Academy","Academy"]
["Bridge [AP] Academy, The - Hammersmith and Fulham","122831","Academy","Academy"]
["Bridge Academy, The - Hackney","118650","Academy","Academy"]
["Bridge Learning Campus - Bristol","120926","Academy","Academy"]
["Bridge, The - Milton Keynes",126429,"Academy","Academy"]
["Bridgemary School","121885","Academy","Academy"]
["Bridgnorth Endowed School","122900","Academy","Academy"]
["Bridgwater Academy","120953","Academy","Academy"]
["Brighouse High School","119609","Academy","Academy"]
["Brighton & Hove City Council","E1401","EngLocGov't","LocGov't"]
["Brighton Aldridge Community Academy","119232","Academy","Academy"]
["Brill Church of England Combined School","122683","Academy","Academy"]
["Brine Leas High School","119250","Academy","Academy"]
["Brinsworth School","119279","Academy","Academy"]
["Briscoe Academy","121877","Academy","Academy"]
["Briscoe Lane Primary School","122142","Academy","Academy"]
["Bristnall Hall Technology College","123843","Academy","Academy"]
["Bristol Brunel Academy","118609","Academy","Academy"]
["Bristol Cathedral Choir School","118660","Academy","Academy"]
["Bristol City Council","E0102","EngLocGov't","LocGov't"]
["Bristol Free School","120522","Academy","Academy"]
["Bristol Metropolitan Academy","119139","Academy","Academy"]
["Bristol Technology and Engineering Academy","122153","Academy","Academy"]
["BRIT School for the Performing Arts & Technology, The","118384","Academy","Academy"]
["British Educational Communications and Technology Agency","BEC022","CenGov't","CenGov't"]
["British Film Institute","BFI048","CenGov't","CenGov't"]
["British Library","BRL048","CenGov't","CenGov't"]
["British Museum","BRM048","CenGov't","CenGov't"]
["British Railways Board (Residuary) Ltd","BRB004","CenGov't","CenGov't"]
["British Transport Police","BTP004","CenGov't","CenGov't"]
["Brittons Academy Trust, The","119558","Academy","Academy"]
["Brixham College","120789","Academy","Academy"]
["Broadclyst Community Primary School","119258","Academy","Academy"]
["Broadfield East Infant School and Nursery - Crawley","122284","Academy","Academy"]
["Broadfield East Junior School - Crawley","122064","Academy","Academy"]
["Broadfields Primary School - Edgware",124302,"Academy","Academy"]
["Broadland District Council","E2632","EngLocGov't","LocGov't"]
["Broadlands School","122287","Academy","Academy"]
["Broadmere Community Primary School","123856","Academy","Academy"]
["Broadoak Mathematics and Computing College","120912","Academy","Academy"]
["Broadoak Primary School - Salford","120550","Academy","Academy"]
["Broadoak School - Trafford","122012","Academy","Academy"]
["Broads Authority","E6408","EngLocGov't","LocGov't"]
["Broadway School","124188","Academy","Academy"]
["Brockhampton Primary School","120599","Academy","Academy"]
["Brockhill Park Performing Arts College","120466","Academy","Academy"]
["Brockington College","122370","Academy","Academy"]
["Brocks Hill Primary School","124323","Academy","Academy"]
["Brockworth Primary School","121848","Academy","Academy"]
["Bromfords School, The","123077","Academy","Academy"]
["Bromley - LGPS","LG007","LGPS","LocGov't"]
["Bromley London Borough Council","E5034","EngLocGov't","LocGov't"]
["Brompton Academy","119167","Academy","Academy"]
["Bromsgrove District Council","E1831","EngLocGov't","LocGov't"]
["Brooke Hill Academy","120065","Academy","Academy"]
["Brooke Weston Academy","118385","Academy","Academy"]
["Brookfield Community School - Chesterfield","119537","Academy","Academy"]
["Brookfield House School - Woodford Green","122405","Academy","Academy"]
["Brooklands Middle School","120638","Academy","Academy"]
["Brooksbank School, The","120495","Academy","Academy"]
["Brookside Community Primary School - Street","119826","Academy","Academy"]
["Brookside Primary School - Hayes","122808","Academy","Academy"]
["Brookvale High School - Groby","122091","Academy","Academy"]
["Brookvale Primary School - Erdington","122695","Academy","Academy"]
["Broom Leys School","122960","Academy","Academy"]
["Broomfield Primary School","122368","Academy","Academy"]
["Broughton Jewish Cassel Fox Primary School","121902","Academy","Academy"]
["Broughton Primary School","120605","Academy","Academy"]
["Browney Primary Academy","126485","Academy","Academy"]
["Brownhill Primary School","121963","Academy","Academy"]
["Broxbourne Borough Council","E1931","EngLocGov't","LocGov't"]
["Broxbourne School, The","119410","Academy","Academy"]
["Broxtowe Borough Council","E3033","EngLocGov't","LocGov't"]
["Brunel Academy","119957","Academy","Academy"]
["Brunts School, The","120785","Academy","Academy"]
["Brymore School","123954","Academy","Academy"]
["Buckden CofE Primary School","120593","Academy","Academy"]
["Buckfastleigh Primary School","119679","Academy","Academy"]
["Buckinghamshire and Milton Keynes Fire Authority","E6104","EngLocGov't","LocGov't"]
["Buckinghamshire County Council","E0421","EngLocGov't","LocGov't"]
["Buckinghamshire County Council- LGPS","LG008","LGPS","LocGov't"]
["Buckinghamshire UTC","122154","Academy","Academy"]
["Buckland Church of England Primary School",124562,"Academy","Academy"]
["Bucklers Mead Academy","120193","Academy","Academy"]
["Bude Park Primary School","122912","Academy","Academy"]
["Bullers Wood School","119721","Academy","Academy"]
["Bulwell Academy, The","118884","Academy","Academy"]
["Bungay High School","119998","Academy","Academy"]
["Burbage Primary School","123286","Academy","Academy"]
["Burford School","121840","Academy","Academy"]
["Burgate School and Sixth Form, The","119737","Academy","Academy"]
["Burghill Community Primary School","120629","Academy","Academy"]
["Burlington Danes Academy","118604","Academy","Academy"]
["Burnham Grammar School","120551","Academy","Academy"]
["Burnham Park E-ACT Academy","120931","Academy","Academy"]
["Burnley Borough Council","E2333","EngLocGov't","LocGov't"]
["Burnley Road Academy","120435","Academy","Academy"]
["Burnt Mill Comprehensive School","120833","Academy","Academy"]
["Burntwood School","124381","Academy","Academy"]
["Burrington Church of England Controlled Primary School","120026","Academy","Academy"]
["Burrowmoor Primary School","124979","Academy","Academy"]
["Burrsville Community infants Academy",124684,"Academy","Academy"]
["Bursar Primary Academy","121143","Academy","Academy"]
["Bursley Academy","121042","Academy","Academy"]
["Bursted Wood Primary School",124678,"Academy","Academy"]
["Burton Morewood CofE Primary School","120512","Academy","Academy"]
["Bury CofE Primary School","123367","Academy","Academy"]
["Bury Metropolitan Borough Council","E4202","EngLocGov't","LocGov't"]
["Bury St Edmunds County Upper School","119990","Academy","Academy"]
["Bushey Academy, THe","119103","Academy","Academy"]
["Bushey Meads School","121008","Academy","Academy"]
["Bushloe High School","122601","Academy","Academy"]
["Business Academy, The - Bexley","118403","Academy","Academy"]
["Buttsbury Junior School, The","119722","Academy","Academy"]
["By Brook Valley Academy Trust","120844","Academy","Academy"]
["Byrchall High School, The","122801","Academy","Academy"]
["Cabinet Office","CAB010","CenGov't","CenGov't"]
["Cabinet Office: Civil superannuation","PCS901","CenGov't","CenGov't"]
["Caistor Grammar School","119377","Academy","Academy"]
["Caistor Yarborough School","119958","Academy","Academy"]
["Calday Grange Grammar School","121860","Academy","Academy"]
["Calderdale Metropolitan Borough Council","E4702","EngLocGov't","LocGov't"]
["Caldew School","120254","Academy","Academy"]
["Caldicotes Primary School","123882","Academy","Academy"]
["Callington Community College","119608","Academy","Academy"]
["Callington Primary School",129568,"Academy","Academy"]
["Caludon Castle School","120328","Academy","Academy"]
["Camborne Science and International Academy","119596","Academy","Academy"]
["Cambourne Village College","123295","Academy","Academy"]
["Cambridge City Council","E0531","EngLocGov't","LocGov't"]
["Cambridge Park Academy","120437","Academy","Academy"]
["Cambridgeshire and Peterborough Fire Authority","E6105","EngLocGov't","LocGov't"]
["Cambridgeshire County Council","E0521","EngLocGov't","LocGov't"]
["Cambridgeshire County Council - LGPS","LG009","LGPS","LocGov't"]
["Cambridgeshire Police Authority","E6005","EngLocGov't","LocGov't"]
["Camden - LGPS","LG010","LGPS","LocGov't"]
["Camden London Borough Council","E5011","EngLocGov't","LocGov't"]
["Campion School - Leamington Spa","120347","Academy","Academy"]
["Campion School - Northampton","120087","Academy","Academy"]
["Campion School, The - Hornchurch","120040","Academy","Academy"]
["Campsmount Technology College","120489","Academy","Academy"]
["Cams Hill School","120494","Academy","Academy"]
["Canary Wharf College","120467","Academy","Academy"]
["Canklow Woods Primary School","124559","Academy","Academy"]
["Cann Hall Primary School","122279","Academy","Academy"]
["Cannock Chase District Council","E3431","EngLocGov't","LocGov't"]
["Cannock Chase High School","120423","Academy","Academy"]
["Canon Pyon CofE Primary School","121115","Academy","Academy"]
["Canons High School","120199","Academy","Academy"]
["Canterbury Academy, The","119281","Academy","Academy"]
["Canterbury City Council","E2232","EngLocGov't","LocGov't"]
["Canterbury Primary School, The","119282","Academy","Academy"]
["Capacity Builders","CAP010","CenGov't","CenGov't"]
["Capital City Academy","118386","Academy","Academy"]
["Captains Close Primary School","124187","Academy","Academy"]
["Cardinal Hume Catholic School","120889","Academy","Academy"]
["Care Council for Wales","CLW090","CenGov't","CenGov't"]
["Care Quality Commission","CQC033","CenGov't","CenGov't"]
["Carew Academy","123956","Academy","Academy"]
["Carleton Community High School","123252","Academy","Academy"]
["Carlisle City Council","E0933","EngLocGov't","LocGov't"]
["Carlton Academy","120085","Academy","Academy"]
["Carlton Le Willows Academy","119542","Academy","Academy"]
["Carlton Primary School","122772","Academy","Academy"]
["Carlton Road Academy","121234","Academy","Academy"]
["Carmel College, A Catholic Academy","120603","Academy","Academy"]
["Carmountside Primary School","122114","Academy","Academy"]
["Caroline Chisholm School","120089","Academy","Academy"]
["Carradon PRU","122708","Academy","Academy"]
["Carre's Grammar School","120213","Academy","Academy"]
["Carshalton Boys Sports College","119760","Academy","Academy"]
["Carshalton High School for Girls","119761","Academy","Academy"]
["Carter Community School","122880","Academy","Academy"]
["Cartmel Priory CofE School","120410","Academy","Academy"]
["Casterton Business & Enterprise College","120405","Academy","Academy"]
["Castle Academy - Doncaster","121987","Academy","Academy"]
["Castle Carrock School","120361","Academy","Academy"]
["Castle Community College","119280","Academy","Academy"]
["Castle Donington Community College","122372","Academy","Academy"]
["Castle Hall School - Mirfield","120438","Academy","Academy"]
["Castle Hill Academy - Croydon",124668,"Academy","Academy"]
["Castle Manor Business and Enterprise College","120815","Academy","Academy"]
["Castle Point Borough Council","E1534","EngLocGov't","LocGov't"]
["Castle Primary Academy - Northampton",127821,"Academy","Academy"]
["Castle Rock High School","122135","Academy","Academy"]
["Castle School, The - Taunton","119916","Academy","Academy"]
["Castle School, The - Thornbury","123062","Academy","Academy"]
["Castle View Enterprise Academy","119127","Academy","Academy"]
["Castlecombe Primary School",127709,"Academy","Academy"]
["Castleford Academy","119602","Academy","Academy"]
["Castleford Park Junior School","122958","Academy","Academy"]
["Castleview Primary School","122340","Academy","Academy"]
["Catcote School","124489","Academy","Academy"]
["Cathedral Primary School","123296","Academy","Academy"]
["Cathedral School, The","120756","Academy","Academy"]
["Catholic High School, The","123813","Academy","Academy"]
["Catmose College","119527","Academy","Academy"]
["Catmose Primary","121113","Academy","Academy"]
["Cavendish High School - Runcorn",125223,"Academy","Academy"]
["Cavendish School, The - Eastbourne","122177","Academy","Academy"]
["Cawston Grange Primary School","123212","Academy","Academy"]
["Cedar Mount Academy","120927","Academy","Academy"]
["Cedar Road Primary School Academy","120686","Academy","Academy"]
["Cedars School, The - Gateshead","122702","Academy","Academy"]
["Cedars Upper School - Leighton Buzzard","120411","Academy","Academy"]
["Central Bedfordshire Unitary Authority","E0203","EngLocGov't","LocGov't"]
["Central Bedfordshire UTC","122156","Academy","Academy"]
["Centre School, The","120340","Academy","Academy"]
["CET Primary School - Tower Hamlets","122034","Academy","Academy"]
["CET Primary School - Westminster","121952","Academy","Academy"]
["Chacombe Church of England Voluntary Aided Primary School","123887","Academy","Academy"]
["Chadsmead Primary Academy","120268","Academy","Academy"]
["Chadwell Heath Academy, The","119269","Academy","Academy"]
["Chafford School, The ",124495,"Academy","Academy"]
["Chalfont St Peter CofE Academy","119723","Academy","Academy"]
["Chalfont Valley E-ACT Primary Academy","120924","Academy","Academy"]
["Chalfonts Community College, The","120215","Academy","Academy"]
["Challney High School For Boys and Community College","119648","Academy","Academy"]
["Chandlers Ridge Primary School","122120","Academy","Academy"]
["Chantry Community Academy - Gravesend","122685","Academy","Academy"]
["Chantry Primary School - Luton","122103","Academy","Academy"]
["Chantry School, The - Worcester","119897","Academy","Academy"]
["Chapel End Junior Academy","122882","Academy","Academy"]
["Charfield Primary School","124579","Academy","Academy"]
["Charity Commission","CHC009","CenGov't","CenGov't"]
["Charles Coddy Walker Academy, The","123087","Academy","Academy"]
["Charles Darwin School","119586","Academy","Academy"]
["Charles Read Academy, The","119479","Academy","Academy"]
["Charles Warren Academy","121954","Academy","Academy"]
["Charlestown Primary School","119799","Academy","Academy"]
["Charlton Kings Infant School","119999","Academy","Academy"]
["Charlton Kings Junior School","120266","Academy","Academy"]
["Charlton Park Academy","122099","Academy","Academy"]
["Charlton Primary School",124203,"Academy","Academy"]
["Charnwood Borough Council","E2432","EngLocGov't","LocGov't"]
["Charter Academy - Portsmouth","119137","Academy","Academy"]
["Charter School, The - Southwark","119271","Academy","Academy"]
["Charters School - Windsor & Maidenhead","120779","Academy","Academy"]
["Charville Primary School","123176","Academy","Academy"]
["Chase, The","120628","Academy","Academy"]
["Chatham Grammar School for Boys","119601","Academy","Academy"]
["Chatham Grammar School for Girls","120429","Academy","Academy"]
["Chatham House Grammar School","119418","Academy","Academy"]
["Chattenden Primary School","121879","Academy","Academy"]
["Chaucer School Academy","120928","Academy","Academy"]
["Chaulden Junior School","124062","Academy","Academy"]
["Chauncy School, The","120090","Academy","Academy"]
["Cheadle Academy, The","119959","Academy","Academy"]
["Cheadle Hulme High School","120752","Academy","Academy"]
["Cheam High School","119775","Academy","Academy"]
["Cheam Park Farm Infants' School",125010,"Academy","Academy"]
["Cheam Park Farm Junior School","119591","Academy","Academy"]
["Cheddon Fitzpaine Church of England Primary School","124578","Academy","Academy"]
["Cheetham CofE Community Academy","120528","Academy","Academy"]
["Chellaston Academy","119381","Academy","Academy"]
["Chelmer Valley High School","120260","Academy","Academy"]
["Chelmsford Borough Council","E1535","EngLocGov't","LocGov't"]
["Chelmsford County High School","119432","Academy","Academy"]
["Chelsea Academy","118895","Academy","Academy"]
["Cheltenham Borough Council","E1631","EngLocGov't","LocGov't"]
["Cheltenham Bournside School and Sixth Form Centre","119724","Academy","Academy"]
["Chenderit School","120989","Academy","Academy"]
["Cheney School","123080","Academy","Academy"]
["Chepping View Primary School","121029","Academy","Academy"]
["Cherwell District Council","E3131","EngLocGov't","LocGov't"]
["Cherwell School, The","121116","Academy","Academy"]
["Chesham Grammar School","120091","Academy","Academy"]
["Cheshire East Unitary Authority","E0603","EngLocGov't","LocGov't"]
["Cheshire Fire Authority","E6106","EngLocGov't","LocGov't"]
["Cheshire Pension Fund - LGPS","LG011","LGPS","LocGov't"]
["Cheshire Police Authority","E6006","EngLocGov't","LocGov't"]
["Cheshire West and Chester Unitary Authority","E0604","EngLocGov't","LocGov't"]
["Chesterfield Borough Council","E1033","EngLocGov't","LocGov't"]
["Chesterfield High School","120486","Academy","Academy"]
["Chesterton Community College - Cambridge","119887","Academy","Academy"]
["Chesterton Community Sports College - Newcastle-u-Lyme",124993,"Academy","Academy"]
["Chesterton Primary School","126498","Academy","Academy"]
["Chestnut Grove School","119883","Academy","Academy"]
["Chetwynd Primary Academy","120890","Academy","Academy"]
["Chew Stoke CofE VA Primary School","122392","Academy","Academy"]
["Chichester District Council","E3833","EngLocGov't","LocGov't"]
["Chichester Free School","123297","Academy","Academy"]
["Chichester High School for Boys","124980","Academy","Academy"]
["Chichester High School for Girls","124981","Academy","Academy"]
["Chickerell Primary Academy","123171","Academy","Academy"]
["Chiddingstone Church of England Voluntary Controlled Primary School","120625","Academy","Academy"]
["Children and Family Court Advisory and Support Service","CFA022","DfE Family","DfE Family"]
["Children's Workforce Development Council","CWD022","CenGov't","CenGov't"]
["Childwall Sports and Science Academy","122492","Academy","Academy"]
["Chiltern District Council","E0432","EngLocGov't","LocGov't"]
["Chiltern Hills Academy","120280","Academy","Academy"]
["Chilwell Croft Primary School","122259","Academy","Academy"]
["Chingford Foundation School","122263","Academy","Academy"]
["Chingford Hall Primary School","121432","Academy","Academy"]
["Chipping Campden School","119960","Academy","Academy"]
["Chipping Norton School","113956","Academy","Academy"]
["Chipping Warden School","124173","Academy","Academy"]
["Chislehurst and Sidcup Grammar School","120344","Academy","Academy"]
["Chiswick School","121123","Academy","Academy"]
["Chivenor Primary School",124208,"Academy","Academy"]
["Chobham Academy","121928","Academy","Academy"]
["Cholsey Primary School",124596,"Academy","Academy"]
["Chorley Borough Council","E2334","EngLocGov't","LocGov't"]
["Chorlton High School","122953","Academy","Academy"]
["Chosen Hill School","119611","Academy","Academy"]
["Christ Church Academy","119961","Academy","Academy"]
["Christ Church Church of England Academy - Shipley","123167","Academy","Academy"]
["Christ Church Church of England Primary School - Bristol","121013","Academy","Academy"]
["Christ Church Church of England School - Rickmansworth","122959","Academy","Academy"]
["Christ Church CofE Primary School - Cheltenham","122715","Academy","Academy"]
["Christ Church Woodhouse C of E (Voluntary Aided) Junior, Infant & Early Years School","121859","Academy","Academy"]
["Christ Church, CofE VA Primary School - Erith","122919","Academy","Academy"]
["Christ The King Catholic Voluntary Academy","121100","Academy","Academy"]
["Christchurch Borough Council","E1232","EngLocGov't","LocGov't"]
["Christian Malford CofE Primary School",127978,"Academy","Academy"]
["Christleton High School","119680","Academy","Academy"]
["Christopher Whitehead Language College","119890","Academy","Academy"]
["Christow Community School","121088","Academy","Academy"]
["Christ's College Finchley","120345","Academy","Academy"]
["Chudleigh Knighton Church of England Primary School","120474","Academy","Academy"]
["Chulmleigh Community College","120024","Academy","Academy"]
["Chulmleigh Primary School","120023","Academy","Academy"]
["Church Hill Church of England Junior School","122394","Academy","Academy"]
["Church Hill Infant School","122410","Academy","Academy"]
["Church Stretton School","123865","Academy","Academy"]
["Churchdown School","119956","Academy","Academy"]
["Churchdown Village Infant School","120173","Academy","Academy"]
["Churchend School","119461","Academy","Academy"]
["Churchfield Church School","122817","Academy","Academy"]
["Churchfields Academy - Swindon","120388","Academy","Academy"]
["Churchfields Primary School - Newcastle-u-Lyme",124639,"Academy","Academy"]
["Churchill Academy and Sixth Form Centre","120000","Academy","Academy"]
["Churchill Gardens Community Primary School","126330","Academy","Academy"]
["Churchill Special Free School","123396","Academy","Academy"]
["Churston Ferrers Grammar School","119406","Academy","Academy"]
["Cippenham Infant School","121194","Academy","Academy"]
["Cippenham Primary School","121195","Academy","Academy"]
["Cirencester Deer Park School","119533","Academy","Academy"]
["Cirencester Kingshill School","120217","Academy","Academy"]
["City Academy - Norwich","119104","Academy","Academy"]
["City Academy Whitehawk","123896","Academy","Academy"]
["City Academy, The - Bristol","117017","Academy","Academy"]
["City Academy, The - Hackney","118896","Academy","Academy"]
["City Gateway","122804","Academy","Academy"]
["City Heights E-ACT Academy","121926","Academy","Academy"]
["City of Derby Academy","121869","Academy","Academy"]
["City of London Academy, The - Islington","118605","Academy","Academy"]
["City of London Academy, The - Southwark","118387","Academy","Academy"]
["City of Peterborough Academy","124497","Academy","Academy"]
["City of Peterborough Academy Special School","122220","Academy","Academy"]
["City of York Council","E2701","EngLocGov't","LocGov't"]
["City Road Primary School","123855","Academy","Academy"]
["City School, The - Sheffield",124294,"Academy","Academy"]
["Civil Nuclear Police Authority and Constabulary","CNC066","CenGov't","CenGov't"]
["Civil Service Commission","CSS010","CenGov't","CenGov't"]
["Clacton Coastal Academy","119097","Academy","Academy"]
["Clacton County High School","121144","Academy","Academy"]
["Clapton Girls' Academy","119950","Academy","Academy"]
["Claremont High School Academy Trust","119612","Academy","Academy"]
["Clarendon College, The","122867","Academy","Academy"]
["Clarendon House Grammar School, The","119417","Academy","Academy"]
["Clayton-le-Moors All Saints Church of England Primary School","120548","Academy","Academy"]
["Cleethorpes Academy","119311","Academy","Academy"]
["Cleeve Park School - Sidcup","121830","Academy","Academy"]
["Cleeve Primary School - Hull",125222,"Academy","Academy"]
["Cleeve School - Cheltenham","119773","Academy","Academy"]
["Clevedon School","120636","Academy","Academy"]
["Cleveland Fire Authority","E6107","EngLocGov't","LocGov't"]
["Cleveland Police Authority","E6007","EngLocGov't","LocGov't"]
["Cleves Cross Primary School",128237,"Academy","Academy"]
["Cleves School","119358","Academy","Academy"]
["Cliff Park Infant School","123953","Academy","Academy"]
["Cliff Park Junior School","123937","Academy","Academy"]
["Cliff Park Ormiston Academy",123121,"Academy","Academy"]
["Cliffdale Primary School",124217,"Academy","Academy"]
["Cliffe Woods Primary","119827","Academy","Academy"]
["Clifton All Saints Academy - Shefford",123206,"Academy","Academy"]
["Cliftonville Primary School",125021,"Academy","Academy"]
["Clitheroe Royal Grammar School","119403","Academy","Academy"]
["Cloughwood School","124771","Academy","Academy"]
["Clyst Vale Academy Trust","119545","Academy","Academy"]
["Coal Authority","COL066","CenGov't","CenGov't"]
["Cobden Primary School & Children's Centre","123074","Academy","Academy"]
["Cobham Free School","121974","Academy","Academy"]
["Cockington Community Primary School","124153","Academy","Academy"]
["Colchester Academy","119333","Academy","Academy"]
["Colchester Borough Council","E1536","EngLocGov't","LocGov't"]
["Colchester County High School for Girls","120554","Academy","Academy"]
["Colchester Royal Grammar School","120596","Academy","Academy"]
["Colebrook Infant Academy","120614","Academy","Academy"]
["Coleridge Community College","119664","Academy","Academy"]
["Coleridge Primary School","122335","Academy","Academy"]
["Coleshill School, The","119986","Academy","Academy"]
["Collective Spirit","123298","Academy","Academy"]
["Collingwood College","119837","Academy","Academy"]
["Collingwood Primary School","124081","Academy","Academy"]
["Colnbrook Church of England Primary School","124561","Academy","Academy"]
["Colne Community School and College","120460","Academy","Academy"]
["Colne Primet High School","122260","Academy","Academy"]
["Colston's Girls' School","118661","Academy","Academy"]
["Colston's Primary School","120843","Academy","Academy"]
["Columbus School and College","120671","Academy","Academy"]
["Colyton Grammar School","119405","Academy","Academy"]
["Combe Pafford School","124141","Academy","Academy"]
["Comberton Village College","119503","Academy","Academy"]
["Commission for Local Administration","CLA085","CenGov't","CenGov't"]
["Common Council of the City of London","E5010","EngLocGov't","LocGov't"]
["Commonweal School, The","120190","Academy","Academy"]
["Community & Hospital Education Service","122700","Academy","Academy"]
["Community Development Foundation","CDF085","CenGov't","CenGov't"]
["Community Relations Council for Northern Ireland","COR211","CenGov't","CenGov't"]
["Compass School","121990","Academy","Academy"]
["Competition Commission","CMC084","CenGov't","CenGov't"]
["Complementary Education","122728","Academy","Academy"]
["Compton School, The","119441","Academy","Academy"]
["Concord Junior School","128063","Academy","Academy"]
["Congleton High School","119672","Academy","Academy"]
["Conisbrough Ivanhoe Primary Academy","120757","Academy","Academy"]
["Connaught Junior School",124574,"Academy","Academy"]
["Connaught School for Girls","123061","Academy","Academy"]
["Connell Sixth Form College","123351","Academy","Academy"]
["Consett Academy","120915","Academy","Academy"]
["Consolidated Fund","COF888","CenGov't","CenGov't"]
["Construction Skills","CIT084","CenGov't","CenGov't"]
["Consumer Focus","CFO084","CenGov't","CenGov't"]
["Contingencies Fund","CTF888","CenGov't","CenGov't"]
["ContinU Plus Academy","123408","Academy","Academy"]
["Convent of Jesus and Mary Language College","121834","Academy","Academy"]
["Conyers School","123323","Academy","Academy"]
["Cooks Spinney Primary School and Nursery",124689,"Academy","Academy"]
["Coombe Boys' School","120886","Academy","Academy"]
["Coombe Dean School Academy Trust","119575","Academy","Academy"]
["Coombe Girls' School","120864","Academy","Academy"]
["Coombeshead Academy","120176","Academy","Academy"]
["Co-operative Academy of Leeds, The","121005","Academy","Academy"]
["Co-operative Academy of Manchester, The","119221","Academy","Academy"]
["Co-operative Academy of Stoke on Trent, The","119168","Academy","Academy"]
["Coopers' Company and Coborn School, The","119636","Academy","Academy"]
["Coopers Technology College","119504","Academy","Academy"]
["Copeland Borough Council","E0934","EngLocGov't","LocGov't"]
["Copleston High School","119835","Academy","Academy"]
["Copley High School","123081","Academy","Academy"]
["Coppice Primary Academy","123263","Academy","Academy"]
["Copthall School","120826","Academy","Academy"]
["Corbet School Technology College, The","120430","Academy","Academy"]
["Corby Borough Council","E2831","EngLocGov't","LocGov't"]
["Corby Business Academy, The","118606","Academy","Academy"]
["Corby Primary Academy","126905","Academy","Academy"]
["Corby Technical School","121975","Academy","Academy"]
["Cordeaux Academy","122315","Academy","Academy"]
["Cordwalles Junior School",124348,"Academy","Academy"]
["Corelli College","120350","Academy","Academy"]
["Corfe Hills School Academy Trust","119560","Academy","Academy"]
["Cornelius Vermuyden",125020,"Academy","Academy"]
["Corngreaves Primary School","122996","Academy","Academy"]
["Cornwall County Council - LGPS","LG012","LGPS","LocGov't"]
["Cornwall Unitary Authority","E0801","EngLocGov't","LocGov't"]
["Cornwallis Academy","118607","Academy","Academy"]
["Corporation of London - LGPS","LG013","LGPS","LocGov't"]
["Corpus Christi Catholic Primary School","120295","Academy","Academy"]
["Corringham Primary School",124988,"Academy","Academy"]
["Corsham Primary School","119565","Academy","Academy"]
["Corsham Regis Primary School","122832","Academy","Academy"]
["Corsham School, The","119625","Academy","Academy"]
["Cosby Primary School","122373","Academy","Academy"]
["Costello School, The","121453","Academy","Academy"]
["Costessey Infant School","124742","Academy","Academy"]
["Costessey Junior School","121043","Academy","Academy"]
["Coteford Junior School","122984","Academy","Academy"]
["Cotgrave Candleby Lane School","121190","Academy","Academy"]
["Cotham School","120389","Academy","Academy"]
["Cotswold District Council","E1632","EngLocGov't","LocGov't"]
["Cotswold School, The","119252","Academy","Academy"]
["Cottenham Academy","120325","Academy","Academy"]
["Cottingham High School and Sixth Form College","119907","Academy","Academy"]
["Cottingley Primary School","122304","Academy","Academy"]
["Council for Catholic Maintained Schools","CCS203","CenGov't","CenGov't"]
["Coundon Court School and Community College","121126","Academy","Academy"]
["Countess Anne Church of England School - Hatfield",124586,"Academy","Academy"]
["Countesthorpe Community College","122374","Academy","Academy"]
["Countryside Council for Wales","CCW090","CenGov't","CenGov't"]
["County Durham and Darlington Fire and Rescue Authority","E6113","EngLocGov't","LocGov't"]
["County Durham Unitary Authority","E1302","EngLocGov't","LocGov't"]
["County High School, The - Leftwich","122134","Academy","Academy"]
["Court Fields Community School",124670,"Academy","Academy"]
["Courtyard AP Academy, The","124256","Academy","Academy"]
["Coventry Blue Coat Church of England School and Music College, The","120275","Academy","Academy"]
["Coventry City Council","E4602","EngLocGov't","LocGov't"]
["Coverack Community Primary School","126521","Academy","Academy"]
["Cowley St Laurence CofE Primary School","123160","Academy","Academy"]
["Cowplain Community School","120847","Academy","Academy"]
["Cox Green School","120817","Academy","Academy"]
["Crabbs' Cross Academy","123828","Academy","Academy"]
["Cramlington Learning Village","120424","Academy","Academy"]
["Cramlington Village Primary School","121976","Academy","Academy"]
["Cranberry Primary School",124635,"Academy","Academy"]
["Cranbrook School","120626","Academy","Academy"]
["Cranfield VC Lower School","120772","Academy","Academy"]
["Cranford Community College","119613","Academy","Academy"]
["Cranford Park Primary School","122678","Academy","Academy"]
["Craven District Council","E2731","EngLocGov't","LocGov't"]
["Craven Primary Academy",124229,"Academy","Academy"]
["Crawley Borough Council","E3834","EngLocGov't","LocGov't"]
["Crawshaw School","122149","Academy","Academy"]
["Crescent Primary School","119941","Academy","Academy"]
["Crest Boys' Academy","119084","Academy","Academy"]
["Crest Girls' Academy","119083","Academy","Academy"]
["Crigglestone St James Church of England Voluntary Controlled Junior and Infant School","122119","Academy","Academy"]
["Criminal Injuries Compensation Authority","CIC047","CenGov't","CenGov't"]
["Crispin School","119913","Academy","Academy"]
["Croft Academy","122046","Academy","Academy"]
["Croft Primary School, The","121917","Academy","Academy"]
["Crofton High School","120001","Academy","Academy"]
["Crofton Infant School","122398","Academy","Academy"]
["Crofton Junior School","120518","Academy","Academy"]
["Croftway Primary School","124118","Academy","Academy"]
["Cromer Academy","120326","Academy","Academy"]
["Crompton House CofE School","120294","Academy","Academy"]
["Cromwell Community College","121145","Academy","Academy"]
["Crookesbroom Primary Academy","120897","Academy","Academy"]
["Crosby-on-Eden CofE School","123053","Academy","Academy"]
["Crosshall Infant School","119283","Academy","Academy"]
["Crosshall Junior School","119284","Academy","Academy"]
["Crossley Heath School, The","120701","Academy","Academy"]
["Crowle Primary School","122995","Academy","Academy"]
["Crown Prosecution Service","CPS016","CenGov't","CenGov't"]
["Croxton Kerrial Church of England Primary School",127313,"Academy","Academy"]
["Croydon - LGPS","LG014","LGPS","LocGov't"]
["Croydon London Borough Council","E5035","EngLocGov't","LocGov't"]
["Crypt School, The","119557","Academy","Academy"]
["CTC Kingshurst Academy","117814","Academy","Academy"]
["Cuckoo Hall Academy","119260","Academy","Academy"]
["Culloden Primary School","122986","Academy","Academy"]
["Culworth Church of England School","124157","Academy","Academy"]
["Cumbria County Council","E0920","EngLocGov't","LocGov't"]
["Cumbria County Council - LGPS","LG015","LGPS","LocGov't"]
["Cumbria Police Authority","E6009","EngLocGov't","LocGov't"]
["Curledge Street Academy","122662","Academy","Academy"]
["Cutteslowe Primary School","122430","Academy","Academy"]
["Da Vinci Studio School of Creative Enterprise, The","123381","Academy","Academy"]
["Da Vinci Studio School of Science and Engineering","122525","Academy","Academy"]
["Dacorum Borough Council","E1932","EngLocGov't","LocGov't"]
["Dallam School","120205","Academy","Academy"]
["Dallow Primary School",123262,"Academy","Academy"]
["Dame Alice Owen's School","119614","Academy","Academy"]
["Dame Janet Primary Academy","121938","Academy","Academy"]
["Dane Court Grammar School","119663","Academy","Academy"]
["Danesfield Church of England Voluntary Controlled Community Middle School","127273","Academy","Academy"]
["Daneswood Junior School","124829","Academy","Academy"]
["Danetree Junior School","122792","Academy","Academy"]
["Danum Academy","120490","Academy","Academy"]
["Darfield Primary Academy","124061","Academy","Academy"]
["Darfield Upperwood Primary School","120601","Academy","Academy"]
["Darlinghurst School",129557,"Academy","Academy"]
["Darlington Borough Council","E1301","EngLocGov't","LocGov't"]
["Darlington School of Maths and Science","120122","Academy","Academy"]
["Darrick Wood Infant School","120032","Academy","Academy"]
["Darrick Wood School","119382","Academy","Academy"]
["Darrington Church of England Voluntary Controlled Junior and Infant School","124643","Academy","Academy"]
["Dartford Borough Council","E2233","EngLocGov't","LocGov't"]
["Dartford Grammar School","119383","Academy","Academy"]
["Dartmoor National Park Authority","E6401","EngLocGov't","LocGov't"]
["Dartmouth Academy","119337","Academy","Academy"]
["Darton Primary School",126451,"Academy","Academy"]
["Darwen Aldridge Community Academy","118611","Academy","Academy"]
["Darwen Aldridge Enterprise Studio","123382","Academy","Academy"]
["Dashwood Primary Academy","120592","Academy","Academy"]
["Datchet St Mary's CofE Primary School","120827","Academy","Academy"]
["Daubeney Middle School","121098","Academy","Academy"]
["Dauntsey's (Aided) Primary School","124328","Academy","Academy"]
["Davenant Foundation School","119539","Academy","Academy"]
["Daventry Abbey Junior School",127210,"Academy","Academy"]
["Daventry District Council","E2832","EngLocGov't","LocGov't"]
["Daventry UTC","122157","Academy","Academy"]
["David Livingstone Primary School","120195","Academy","Academy"]
["David Young Community Academy","118608","Academy","Academy"]
["De Aston School","119491","Academy","Academy"]
["de Ferrers Academy, The","119433","Academy","Academy"]
["De La Salle Academy","119442","Academy","Academy"]
["De Lacy Academy","121031","Academy","Academy"]
["De Lisle Catholic School - Loughborough","122501","Academy","Academy"]
["De Warenne Academy","119133","Academy","Academy"]
["Dean Academy, The","121945","Academy","Academy"]
["Deanery Church of England Voluntary Aided Primary School, The","120155","Academy","Academy"]
["Deansbrook Junior School","123058","Academy","Academy"]
["Dearham Primary School","120651","Academy","Academy"]
["Dearne Carrfield Primary School","121198","Academy","Academy"]
["Dearne Highgate Primary School","121073","Academy","Academy"]
["Debden Park High School","119681","Academy","Academy"]
["Debenham High School","119434","Academy","Academy"]
["Debt Management Accounts","DMA888","CenGov't","CenGov't"]
["Deepings School, The","120710","Academy","Academy"]
["Delamere CofE Primary Academy","119528","Academy","Academy"]
["Denbigh High School - Luton","119351","Academy","Academy"]
["Denbigh School - Milton Keynes","119468","Academy","Academy"]
["Dene Magna School","120422","Academy","Academy"]
["Denefield School","120913","Academy","Academy"]
["Denham Green E-ACT Academy","123805","Academy","Academy"]
["Denton West End Primary School","120561","Academy","Academy"]
["Department for Business Innovation and Skills","DTI084","CenGov't","CenGov't"]
["Department for Business, Enterprise & Regulatory Reform: UKAEA pension schemes","UKP905","CenGov't","CenGov't"]
["Department for Communities and Local Government","DPM085","CenGov't","CenGov't"]
["Department for Culture, Media and Sport","DCM048","CenGov't","CenGov't"]
["Department for Education","DES022","DfE Family","DfE Family"]
["Department for Employment and Learning - Northern Ireland","DEL207","CenGov't","CenGov't"]
["Department for Environment, Food and Rural Affairs","EFR003","CenGov't","CenGov't"]
["Department for International Development","DID030","CenGov't","CenGov't"]
["Department for International Development: Overseas Superannuation","OSS907","CenGov't","CenGov't"]
["Department for Regional Development - Northern Ireland","DRD209","CenGov't","CenGov't"]
["Department for Social Development - Northern Ireland","DSD210","CenGov't","CenGov't"]
["Department for Transport","DFT004","CenGov't","CenGov't"]
["Department for Work and Pensions","DWP032","CenGov't","CenGov't"]
["Department of Agriculture and Rural Development - Northern Ireland","DAR201","CenGov't","CenGov't"]
["Department of Culture Arts and Leisure - Northern Ireland","DCA202","CenGov't","CenGov't"]
["Department of Education - Northern Ireland","ENI203","CenGov't","CenGov't"]
["Department of Energy and Climate Change","DEC066","CenGov't","CenGov't"]
["Department of Enterprise Trade and Investment - Northern Ireland","DET204","CenGov't","CenGov't"]
["Department of Finance and Personnel - Northern Ireland","DFP205","CenGov't","CenGov't"]
["Department of Health","DOH033","CenGov't","CenGov't"]
["Department of Health Social Services & Public Safety","HSP208","CenGov't","CenGov't"]
["Department of Justice - Northern Ireland","DOJ213","CenGov't","CenGov't"]
["Department of the Environment - Northern Ireland","DEN206","CenGov't","CenGov't"]
["Derby City Council","E1001","EngLocGov't","LocGov't"]
["Derby Pride Academy","122536","Academy","Academy"]
["Derbyshire County Council","E1021","EngLocGov't","LocGov't"]
["Derbyshire County Council - LGPS","LG016","LGPS","LocGov't"]
["Derbyshire Dales District Council","E1035","EngLocGov't","LocGov't"]
["Derbyshire Fire Authority","E6110","EngLocGov't","LocGov't"]
["Derbyshire Police Authority","E6010","EngLocGov't","LocGov't"]
["Desborough College","123430","Academy","Academy"]
["Devizes School","111451","Academy","Academy"]
["Devon & Somerset Fire and Rescue Authority","E6161","EngLocGov't","LocGov't"]
["Devon and Cornwall Police Authority","E6051","EngLocGov't","LocGov't"]
["Devon County Council","E1121","EngLocGov't","LocGov't"]
["Devon County Council - LGPS","LG017","LGPS","LocGov't"]
["Devon Studio School","123383","Academy","Academy"]
["Devonport High School for Boys","119496","Academy","Academy"]
["Devonport High School for Girls","119615","Academy","Academy"]
["Devonshire Primary School","124114","Academy","Academy"]
["Deyes High School","120485","Academy","Academy"]
["DFP - Superannuation & Other Allowances - Northern Ireland","FPS911","CenGov't","CenGov't"]
["Diamond Academy","121957","Academy","Academy"]
["Diamond Hall Infant School","124576","Academy","Academy"]
["Didcot Girls' School","122589","Academy","Academy"]
["Dilkes Primary School","120782","Academy","Academy"]
["Discovery Academy - Stoke-on-Trent","119522","Academy","Academy"]
["Discovery New School - Crawley","120473","Academy","Academy"]
["Diss High School","120092","Academy","Academy"]
["Ditchingham Church of England Primary School",127777,"Academy","Academy"]
["Dixons Allerton Academy","118885","Academy","Academy"]
["Dixons Bradford Moor",127700,"Academy","Academy"]
["Dixons City Academy","118388","Academy","Academy"]
["Dixons Music Primary","121977","Academy","Academy"]
["Dixons Trinity Academy","122017","Academy","Academy"]
["Djanogly City Academy","118389","Academy","Academy"]
["Djanogly Northgate Academy","120182","Academy","Academy"]
["Djanogly Strelley Academy ",129257,"Academy","Academy"]
["Dodworth St John the Baptist CE Primary Academy ",124145,"Academy","Academy"]
["Dolphin School, The","122299","Academy","Academy"]
["Don Valley Academy","120472","Academy","Academy"]
["Doncaster Metropolitan Borough Council","E4402","EngLocGov't","LocGov't"]
["Dorcan Academy","120699","Academy","Academy"]
["Dorchester Middle School","122131","Academy","Academy"]
["Dorchester Primary School","124143","Academy","Academy"]
["Dordon Community Primary School","122571","Academy","Academy"]
["Dormanstown Primary School","124653","Academy","Academy"]
["Dorothy Goodman School Hinckley","121016","Academy","Academy"]
["Dorrington Academy Trust","121865","Academy","Academy"]
["Dorset County Council","E1221","EngLocGov't","LocGov't"]
["Dorset County Council  - LGPS","LG018","LGPS","LocGov't"]
["Dorset Fire Authority","E6112","EngLocGov't","LocGov't"]
["Dorset Police Authority","E6012","EngLocGov't","LocGov't"]
["Douay Martyrs Catholic School, The","121058","Academy","Academy"]
["Dove House School","120565","Academy","Academy"]
["Dover Christ Church Academy","119220","Academy","Academy"]
["Dover District Council","E2234","EngLocGov't","LocGov't"]
["Dover Road Primary Academy",123900,"Academy","Academy"]
["Downend Comprehensive School","123248","Academy","Academy"]
["Downham Market High School","122810","Academy","Academy"]
["Downview Primary School","124527","Academy","Academy"]
["Dr Challoner's Grammar School","119435","Academy","Academy"]
["Dr Challoner's High School","120219","Academy","Academy"]
["Drapers' Academy","119152","Academy","Academy"]
["Drapers Mills Primary School","122031","Academy","Academy"]
["Drayton Manor High School","120221","Academy","Academy"]
["Driver and Vehicle Licensing Agency","DVL004","CenGov't","CenGov't"]
["Droitwich Spa High School","119902","Academy","Academy"]
["Drove Primary School","122002","Academy","Academy"]
["Droylsden Academy","118886","Academy","Academy"]
["DSLV E-ACT Academy","121069","Academy","Academy"]
["Duchy School Bradninch, The","123249","Academy","Academy"]
["Dudley Infant Academy, The",125028,"Academy","Academy"]
["Dudley Metropolitan Borough Council","E4603","EngLocGov't","LocGov't"]
["Duke of York's Royal Military School","119233","Academy","Academy"]
["Dukeries Academy","122429","Academy","Academy"]
["Dukesgate Primary School","122086","Academy","Academy"]
["Dulwich Hamlet Junior School Educational Trust","119581","Academy","Academy"]
["Dunbury Church of England Primary Academy, The",124725,"Academy","Academy"]
["Dunraven School","120093","Academy","Academy"]
["Dunsville Primary School","122690","Academy","Academy"]
["Dunswell Primary School","126428","Academy","Academy"]
["Durand Primary School","119264","Academy","Academy"]
["Durham County Council - LGPS","LG019","LGPS","LocGov't"]
["Durham Free School, The","123299","Academy","Academy"]
["Durham Police Authority","E6013","EngLocGov't","LocGov't"]
["Dursley Church of England Primary School","123052","Academy","Academy"]
["Duston School, The","119935","Academy","Academy"]
["Dyke House Sports and Technology College","124065","Academy","Academy"]
["Dyson Perrins CofE Sports College","120186","Academy","Academy"]
["E-ACT Blackley Academy","120973","Academy","Academy"]
["E-ACT Leeds East Academy","119926","Academy","Academy"]
["E-ACT Parker Academy","121897","Academy","Academy"]
["Eaglesfield Paddle Church of England VA Primary School","119758","Academy","Academy"]
["Eagley Infant School","121150","Academy","Academy"]
["Eagley Junior School","121164","Academy","Academy"]
["Ealing - LGPS","LG020","LGPS","LocGov't"]
["Ealing London Borough Council","E5036","EngLocGov't","LocGov't"]
["Earls High School, The","120746","Academy","Academy"]
["Easington Academy","121001","Academy","Academy"]
["East Barnet School","119674","Academy","Academy"]
["East Bergholt High School","120218","Academy","Academy"]
["East Bridgford St Peter’s Church of England Academy",124629,"Academy","Academy"]
["East Cambridgeshire District Council","E0532","EngLocGov't","LocGov't"]
["East Dene Primary","122323","Academy","Academy"]
["East Devon District Council","E1131","EngLocGov't","LocGov't"]
["East Dorset District Council","E1233","EngLocGov't","LocGov't"]
["East Garforth Primary Academy","125195","Academy","Academy"]
["East Hampshire District Council","E1732","EngLocGov't","LocGov't"]
["East Herrington Primary School","122083","Academy","Academy"]
["East Hertfordshire District Council","E1933","EngLocGov't","LocGov't"]
["East Leake Academy","122413","Academy","Academy"]
["East Lindsey District Council","E2532","EngLocGov't","LocGov't"]
["East London Science School","123300","Academy","Academy"]
["East London Waste Authority","E6201","EngLocGov't","LocGov't"]
["East Manchester Academy, The","119145","Academy","Academy"]
["East Midlands Regional Development Agency","EMD084","CenGov't","CenGov't"]
["East Northamptonshire District Council","E2833","EngLocGov't","LocGov't"]
["East of England Development Agency","EED084","CenGov't","CenGov't"]
["East Point Academy","120134","Academy","Academy"]
["East Ravendale CofE School Academy","120770","Academy","Academy"]
["East Riding of Yorkshire Council","E2001","EngLocGov't","LocGov't"]
["East Riding Pension Fund - LGPS","LG021","LGPS","LocGov't"]
["East Staffordshire Borough Council","E3432","EngLocGov't","LocGov't"]
["East Sussex County Council","E1421","EngLocGov't","LocGov't"]
["East Sussex County Council - LGPS","LG022","LGPS","LocGov't"]
["East Sussex Fire Authority","E6114","EngLocGov't","LocGov't"]
["East Tilbury Infant School","121024","Academy","Academy"]
["East Tilbury Junior School","122014","Academy","Academy"]
["East Wickham Infant School","119662","Academy","Academy"]
["East Worlington Primary School","120025","Academy","Academy"]
["Eastbourne Academy","119169","Academy","Academy"]
["Eastbourne Borough Council","E1432","EngLocGov't","LocGov't"]
["Eastbrook Primary Academy","123101","Academy","Academy"]
["Eastfield Academy","120935","Academy","Academy"]
["Eastfield Primary School - Hull","124080","Academy","Academy"]
["Eastfield Primary School - Immingham","124597","Academy","Academy"]
["Eastfield Primary School - Leicester","122375","Academy","Academy"]
["Eastleigh Borough Council","E1733","EngLocGov't","LocGov't"]
["Easton Royal Primary School","122140","Academy","Academy"]
["Eastrop Infant School","120390","Academy","Academy"]
["Eastwood Academy, The","120284","Academy","Academy"]
["Eaton Bank Academy - Congleton","122027","Academy","Academy"]
["Eaton Bray Academy - Dunstable","119536","Academy","Academy"]
["Eaton Hall School","122975","Academy","Academy"]
["Eaton Park Primary School","120783","Academy","Academy"]
["Ebbsfleet Academy",120981,"Academy","Academy"]
["EBN East Birmingham Network Free School","122537","Academy","Academy"]
["Ecclesbourne Primary School - Croydon","119661","Academy","Academy"]
["Ecclesbourne School, The - Belper","119514","Academy","Academy"]
["Echelford Primary Academy",124665,"Academy","Academy"]
["Economic and Social Research Council","ESR084","CenGov't","CenGov't"]
["Ecton Brook Primary School","121428","Academy","Academy"]
["Eden District Council","E0935","EngLocGov't","LocGov't"]
["Eden Park Primary School Academy","119892","Academy","Academy"]
["Eden Primary School","120469","Academy","Academy"]
["Edgar Stammers Primary Academy","124115","Academy","Academy"]
["Edna G Olds Primary and Nursery School","120574","Academy","Academy"]
["Education Funding Agency (EFA)","DES022a","DfE Family","DfE Family"]
["Edward Bryant Primary School","121007","Academy","Academy"]
["Edward Heneage Primary School","121995","Academy","Academy"]
["Eggar's School","120832","Academy","Academy"]
["Eggbuckland Community College","124785","Academy","Academy"]
["Elaine Primary Academy","121893","Academy","Academy"]
["Elburton Primary School","121458","Academy","Academy"]
["Eldon Grove Primary School","124581","Academy","Academy"]
["Elizabeth Woodville School","123041","Academy","Academy"]
["Elizabethan High School, The","120873","Academy","Academy"]
["Ellacombe Primary School Academy","121154","Academy","Academy"]
["Ellison Boulters Church of England Primary School","122676","Academy","Academy"]
["Elm Academy","123051","Academy","Academy"]
["Elmbridge Borough Council","E3631","EngLocGov't","LocGov't"]
["Elmlea Junior School","119843","Academy","Academy"]
["Elmridge Primary School","122009","Academy","Academy"]
["Elstree UTC, The","123376","Academy","Academy"]
["Elveden Church of England Voluntary Aided Primary School","122802","Academy","Academy"]
["Ely College","120613","Academy","Academy"]
["Emerson Park School","120346","Academy","Academy"]
["Emmanuel College - Gateshead","118390","Academy","Academy"]
["Emmanuel Community School - Walthamstow","122320","Academy","Academy"]
["Enderby Danemill Primary School",126441,"Academy","Academy"]
["Endike Primary School",124992,"Academy","Academy"]
["Enfield - LGPS","LG023","LGPS","LocGov't"]
["Enfield Grammar School","120094","Academy","Academy"]
["Enfield Heights Academy","121979","Academy","Academy"]
["Enfield London Borough Council","E5037","EngLocGov't","LocGov't"]
["Engineering and Physical Sciences Research Council","EPS084","CenGov't","CenGov't"]
["Engineering Construction Industry Training Board","EIT084","CenGov't","CenGov't"]
["English Heritage","EHG048","CenGov't","CenGov't"]
["English Martyrs' Catholic Primary - Nottingham","126519","Academy","Academy"]
["English Martyrs' Catholic Primary School - Biddulph","123377","Academy","Academy"]
["English Martyrs' Catholic Primary School - Oakham","124329","Academy","Academy"]
["Enmore Church of England Primary School","120391","Academy","Academy"]
["Enterprise South Liverpool Academy","119202","Academy","Academy"]
["Environment Agency","ENV003","CenGov't","CenGov't"]
["Environment Agency - LGPS","LG024","LGPS","LocGov't"]
["Epiphany Church of England Primary School, The","121086","Academy","Academy"]
["Epping Forest District Council","E1537","EngLocGov't","LocGov't"]
["Eppleton Primary School","122067","Academy","Academy"]
["Epsom and Ewell Borough Council","E3632","EngLocGov't","LocGov't"]
["Epsom and Ewell High School","120508","Academy","Academy"]
["Epworth Primary Academy","122066","Academy","Academy"]
["Equality and Human Rights Commission","EHR064","CenGov't","CenGov't"]
["Equality Commission for Northern Ireland","ECN211","CenGov't","CenGov't"]
["Erasmus Darwin Academy","119886","Academy","Academy"]
["Erdington Hall Primary School","121166","Academy","Academy"]
["Eresby School, The - Spilsby","122974","Academy","Academy"]
["Erewash Borough Council","E1036","EngLocGov't","LocGov't"]
["Erith School","119285","Academy","Academy"]
["Ermine Primary School","119871","Academy","Academy"]
["Ernesford Grange Community School",126323,"Academy","Academy"]
["Ernulf Academy","120187","Academy","Academy"]
["Esher CofE High School","124917","Academy","Academy"]
["Essa Academy","119125","Academy","Academy"]
["Essex County Council","E1521","EngLocGov't","LocGov't"]
["Essex County Council - LGPS","LG025","LGPS","LocGov't"]
["Essex Fire Authority","E6115","EngLocGov't","LocGov't"]
["Essex Police Authority","E6071","EngLocGov't","LocGov't"]
["Eston Park Academy","120911","Academy","Academy"]
["Estyn: Her Majesty's Inspectorate for Education & Training for Wales","EST090","CenGov't","CenGov't"]
["Etonbury Academy","120584","Academy","Academy"]
["Etone Technology Language Vocational College","120804","Academy","Academy"]
["Etz Chaim Jewish Primary School","120538","Academy","Academy"]
["Europa School UK","121980","Academy","Academy"]
["Evelyn Grace Academy","118662","Academy","Academy"]
["Everest Community Academy","120113","Academy","Academy"]
["Eversholt Lower School","119946","Academy","Academy"]
["Everton in the Community Free School Trust","122538","Academy","Academy"]
["Excelsior Academy","118610","Academy","Academy"]
["Exchange Equalisation Account","EEA888","CenGov't","CenGov't"]
["Exeter City Council","E1132","EngLocGov't","LocGov't"]
["Exeter Primary School","122586","Academy","Academy"]
["Exmoor National Park Authority","E6402","EngLocGov't","LocGov't"]
["Exmouth Community College","119526","Academy","Academy"]
["Export Credits Guarantee Department","ECG025","CenGov't","CenGov't"]
["Faber Catholic Primary School, The","122660","Academy","Academy"]
["Fair Oak Academy","120100","Academy","Academy"]
["Fairfax School","119908","Academy","Academy"]
["Fairfield High School for Girls","119603","Academy","Academy"]
["Fairfield Primary School - Nottingham","123274","Academy","Academy"]
["Fairfield Primary School - Wigston","121158","Academy","Academy"]
["Fairway Primary Academy","123210","Academy","Academy"]
["Fakenham High School and College",123891,"Academy","Academy"]
["Fallibroome Academy, The","119251","Academy","Academy"]
["Falmouth Primary School",124651,"Academy","Academy"]
["Falmouth School","120223","Academy","Academy"]
["Fareham Academy","124768","Academy","Academy"]
["Fareham Borough Council","E1734","EngLocGov't","LocGov't"]
["Faringdon Community College - Faringdon","121091","Academy","Academy"]
["Faringdon Infant School - Faringdon","121092","Academy","Academy"]
["Faringdon Junior School - Faringdon","121162","Academy","Academy"]
["Farlingaye High School","119834","Academy","Academy"]
["Farmor's School","120097","Academy","Academy"]
["Farnborough Primary School",125242,"Academy","Academy"]
["Farndon Fields Primary School","122176","Academy","Academy"]
["Farnham Heath End School","123222","Academy","Academy"]
["Farnley Academy, The","121065","Academy","Academy"]
["Farringdon Community Sports College - Sunderland","124537","Academy","Academy"]
["Farringdon Primary School - Sunderland","123118","Academy","Academy"]
["Featherstone High School","120693","Academy","Academy"]
["Felixstowe Academy","120321","Academy","Academy"]
["Feltham Community College","120514","Academy","Academy"]
["Fen Park Community Primary School","129428","Academy","Academy"]
["Fenland District Council","E0533","EngLocGov't","LocGov't"]
["Fennwood Academy",124753,"Academy","Academy"]
["Ferns Primary Academy, The","121852","Academy","Academy"]
["Fernwood Academy Trust, The","119738","Academy","Academy"]
["Ferrars Infant School","122710","Academy","Academy"]
["Ferrers Specialist Arts College, The","124777","Academy","Academy"]
["Feversham College","119962","Academy","Academy"]
["Feversham Primary School","122249","Academy","Academy"]
["Field Court Church of England Infant School","120393","Academy","Academy"]
["Field Court Junior School","120392","Academy","Academy"]
["Field Lane Primary School","122079","Academy","Academy"]
["Fieldhead Junior Infant and Nursery School","123234","Academy","Academy"]
["Filton Avenue Infant School","121179","Academy","Academy"]
["Financial Reporting Council Ltd","FRC084","CenGov't","CenGov't"]
["Finham Park School","119963","Academy","Academy"]
["Fir Tree Primary School and Nursery","122632","Academy","Academy"]
["Fir Vale School","120750","Academy","Academy"]
["Firbeck Primary and Nursery School","123934","Academy","Academy"]
["Firs Lower School, The","120795","Academy","Academy"]
["Firth Park Community Arts College","123198","Academy","Academy"]
["Firthmoor Primary School","121831","Academy","Academy"]
["Fishponds CofE Academy","120961","Academy","Academy"]
["Fishtoft School, The","123158","Academy","Academy"]
["Fitzwaryn School","123157","Academy","Academy"]
["Flamstead End Primary and Nursery School","123151","Academy","Academy"]
["Flanshaw St Michaels CofE (Voluntary Controlled) Primary (Nij) School","122881","Academy","Academy"]
["Flax Hill Junior Academy",124729,"Academy","Academy"]
["Fleetville Infant and Nursery School","121094","Academy","Academy"]
["Fleetville Junior School","121193","Academy","Academy"]
["Flegg High School","122343","Academy","Academy"]
["Flitch Green Academy","119450","Academy","Academy"]
["Flixton Girls' High School","119965","Academy","Academy"]
["Flying High Academy at Ladybrook, The",124750,"Academy","Academy"]
["Folkestone Academy, The","118612","Academy","Academy"]
["Folkestone Christ Church CofE Primary School","123038","Academy","Academy"]
["Folkestone School for Girls, The","120899","Academy","Academy"]
["Folkestone, St Mary's Church of England Primary School","123049","Academy","Academy"]
["Food Standards Agency","FSA026","CenGov't","CenGov't"]
["Foreign and Commonwealth Office","FCO027","CenGov't","CenGov't"]
["Forest Academy - Brandon","119371","Academy","Academy"]
["Forest Academy - Croydon","124169","Academy","Academy"]
["Forest Academy - Ilford","121111","Academy","Academy"]
["Forest E-ACT Academy - Cinderford","120938","Academy","Academy"]
["Forest Gate Community Primary School","122240","Academy","Academy"]
["Forest Heath District Council","E3532","EngLocGov't","LocGov't"]
["Forest of Dean District Council","E1633","EngLocGov't","LocGov't"]
["Forest School - Wokingham","124300","Academy","Academy"]
["Forest View Primary School","122977","Academy","Academy"]
["Forest Way School - Coalville","120879","Academy","Academy"]
["Forestry Commission","FCM028","CenGov't","CenGov't"]
["Formby High School","120363","Academy","Academy"]
["Fort Pitt Grammar School","119357","Academy","Academy"]
["Fosse Way Academy - Lincoln","119764","Academy","Academy"]
["Fosse Way School - Bath","120394","Academy","Academy"]
["Four Dwellings Academy","122290","Academy","Academy"]
["Four Dwellings Primary School","122485","Academy","Academy"]
["Fox Hill Primary School","122652","Academy","Academy"]
["Foxbrough Primary School",123886,"Academy","Academy"]
["Foxhole Primary School",124703,"Academy","Academy"]
["Foxwood Foundation School and Technology College","122350","Academy","Academy"]
["Framwellgate School Durham","120818","Academy","Academy"]
["Frances Bardsley School for Girls, The","121842","Academy","Academy"]
["Francis Combe Academy","118887","Academy","Academy"]
["Fred Longworth High School","120364","Academy","Academy"]
["Frederick Nattrass Primary School","124155","Academy","Academy"]
["Free School Norwich, The","120521","Academy","Academy"]
["Freebrough Academy","119192","Academy","Academy"]
["Freemans Endowed Church of England Junior School","123073","Academy","Academy"]
["Freemantle Church of England Community Academy","119616","Academy","Academy"]
["Freeston Business and Enterprise College, The","120509","Academy","Academy"]
["Freman College","120002","Academy","Academy"]
["Freshwaters Primary Academy","123935","Academy","Academy"]
["Friars School",123859,"Academy","Academy"]
["Frisby Church of England Primary School","124085","Academy","Academy"]
["Frogmore Junior School","124249","Academy","Academy"]
["Frome Vale Academy","121075","Academy","Academy"]
["Front Lawn Primary Academy","122000","Academy","Academy"]
["Fulbridge Primary School","122774","Academy","Academy"]
["Fulbrook Academy - Milton Keynes","121231","Academy","Academy"]
["Fulham College Boys' School","123178","Academy","Academy"]
["Fulham Cross Girls' School and Language College","123175","Academy","Academy"]
["Fullbrook School - Addlestone","120003","Academy","Academy"]
["Fulston Manor School","119286","Academy","Academy"]
["Fulwell Infant School","122990","Academy","Academy"]
["Fulwood Academy","119131","Academy","Academy"]
["Furley Park Primary School",127276,"Academy","Academy"]
["Furness Academy","119132","Academy","Academy"]
["Furze Platt Senior School","120695","Academy","Academy"]
["Fylde Borough Council","E2335","EngLocGov't","LocGov't"]
["Gable Hall School","119854","Academy","Academy"]
["Gaddesby Primary School","122376","Academy","Academy"]
["Gainsborough Benjamin Adlard Community School","120676","Academy","Academy"]
["Gainsborough Parish Church Primary School, The","122498","Academy","Academy"]
["Gambling Commission","GBG048","CenGov't","CenGov't"]
["Gamlingay Village College","120990","Academy","Academy"]
["Garden City Academy","121888","Academy","Academy"]
["Garforth Academy","119360","Academy","Academy"]
["Garstang Community Academy","120365","Academy","Academy"]
["Gartree High School Oadby","122041","Academy","Academy"]
["Gateshead Council","E4501","EngLocGov't","LocGov't"]
["Gateway Academy - Free School, The - Grays","121982","Academy","Academy"]
["Gateway Academy - Westminster","124529","Academy","Academy"]
["Gateway Academy, The - Grays","118651","Academy","Academy"]
["Gateway Primary Academy, The - Dartford",129440,"Academy","Academy"]
["Gawthorpe Community Primary School","120661","Academy","Academy"]
["Gedling Borough Council","E3034","EngLocGov't","LocGov't"]
["Geffrye Museum","GFF048","CenGov't","CenGov't"]
["General Registers of Scotland","GRS075","CenGov't","CenGov't"]
["General Social Care Council","GSC033","CenGov't","CenGov't"]
["George Abbot School","119853","Academy","Academy"]
["George Betts Primary School","124335","Academy","Academy"]
["George Dixon International School and Sixth Form Centre","121912","Academy","Academy"]
["George Elliot School, The","120079","Academy","Academy"]
["George Salter Collegiate Academy","118613","Academy","Academy"]
["George Spencer Academy","119255","Academy","Academy"]
["Gerrards Cross Church of England School, The","120777","Academy","Academy"]
["Ghyllside Primary School","122418","Academy","Academy"]
["Giffard Catholic Primary School, The","125015","Academy","Academy"]
["Gilberd School, The","121141","Academy","Academy"]
["Gilbert Inglefield Academy","120835","Academy","Academy"]
["Gildredge House","123301","Academy","Academy"]
["Giles Academy, The","119247","Academy","Academy"]
["Gillbrook Academy","120909","Academy","Academy"]
["Gillotts School","120811","Academy","Academy"]
["Gilmorton Chandler Church of England Primary School","124185","Academy","Academy"]
["Gilsland CofE Primary School","121886","Academy","Academy"]
["Gipsey Bridge Primary School","123124","Academy","Academy"]
["Glapton Academy, The",124177,"Academy","Academy"]
["Glasshoughton Infant School",124999,"Academy","Academy"]
["Glebe Primary School",124519,"Academy","Academy"]
["Glen Hills Primary School","121039","Academy","Academy"]
["Glendene School","122597","Academy","Academy"]
["Glenfield Infant School",129437,"Academy","Academy"]
["Glenleigh Park Academy","122042","Academy","Academy"]
["Glenmere Community Primary School","124533","Academy","Academy"]
["Glenmoor School","127405","Academy","Academy"]
["Glenthorne High School","119914","Academy","Academy"]
["Gloucester Academy","119328","Academy","Academy"]
["Gloucester City Council","E1634","EngLocGov't","LocGov't"]
["Gloucestershire County Council","E1620","EngLocGov't","LocGov't"]
["Gloucestershire County Council - LGPS","LG026","LGPS","LocGov't"]
["Gloucestershire Police Authority","E6016","EngLocGov't","LocGov't"]
["Glyn School","119592","Academy","Academy"]
["Glyne Gap School","122127","Academy","Academy"]
["Glynn House Short Stay School","122605","Academy","Academy"]
["Goddard Park Community Primary School","119352","Academy","Academy"]
["Godmanchester Primary School","121209","Academy","Academy"]
["Godolphin Infant School","122296","Academy","Academy"]
["Godolphin Junior School","122294","Academy","Academy"]
["Goffs School","120515","Academy","Academy"]
["Golden Hillock School. A Specialist College for Sport",125180,"Academy","Academy"]
["Goldington Academy","119531","Academy","Academy"]
["Goldington Green Academy","123268","Academy","Academy"]
["Goldsmith Primary Academy","122141","Academy","Academy"]
["Goldsworth Primary School","120673","Academy","Academy"]
["Gonville Academy","119725","Academy","Academy"]
["Good Shepherd Primary Catholic Voluntary Academy, The","121096","Academy","Academy"]
["Goole Create Studio School","123385","Academy","Academy"]
["Goole High School","120316","Academy","Academy"]
["Goose Green Primary School","122559","Academy","Academy"]
["Gooseacre Academy","121937","Academy","Academy"]
["Gordano School","119856","Academy","Academy"]
["Gordon Infant School","128087","Academy","Academy"]
["Gordon Junior School","124823","Academy","Academy"]
["Gordon's School","120674","Academy","Academy"]
["Gorse Hill Primary School","121867","Academy","Academy"]
["Gorton Mount Academy","120937","Academy","Academy"]
["Gosberton Community Primary School","123820","Academy","Academy"]
["Gosford Hill School","122906","Academy","Academy"]
["Gosforth Academy","119376","Academy","Academy"]
["Gosforth Junior High Academy","119375","Academy","Academy"]
["Gosport Borough Council","E1735","EngLocGov't","LocGov't"]
["Gotherington Primary School","120207","Academy","Academy"]
["Gothic Mede Lower School",123200,"Academy","Academy"]
["Government Actuary's Department","GAD031","CenGov't","CenGov't"]
["Government Equalities Office","GEO064","CenGov't","CenGov't"]
["Grace Academy - Coventry","118616","Academy","Academy"]
["Grace Academy - Darlaston","119087","Academy","Academy"]
["Grace Academy - Solihull","118615","Academy","Academy"]
["Grade-Ruan CofE School","126434","Academy","Academy"]
["Graham James Primary School","122907","Academy","Academy"]
["Grampian Primary School","122256","Academy","Academy"]
["Grampound Road Village CofE School",127842,"Academy","Academy"]
["Grampound-with-Creed CofE School",127480,"Academy","Academy"]
["Grange Community School - Kettering","124322","Academy","Academy"]
["Grange Lane Infant Academy","120439","Academy","Academy"]
["Grange Primary - Shrewsbury","124655","Academy","Academy"]
["Grange School - Bedford","122976","Academy","Academy"]
["Grange School, The - Shrewsbury","123159","Academy","Academy"]
["Grange Technology College - Bradford","120525","Academy","Academy"]
["Grangefield Academy, The",124590,"Academy","Academy"]
["Grangewood School","121112","Academy","Academy"]
["Grasmere Academy","122274","Academy","Academy"]
["Grasvenor Avenue Infant School","122386","Academy","Academy"]
["Graveney Primary School","120829","Academy","Academy"]
["Graveney School","120005","Academy","Academy"]
["Gravenhurst Lower School","122383","Academy","Academy"]
["Gravesend Grammar School","120099","Academy","Academy"]
["Gravesham Borough Council","E2236","EngLocGov't","LocGov't"]
["Grays Farm Primary Academy","123079","Academy","Academy"]
["Grays School Media Arts College, The","124320","Academy","Academy"]
["Great Baddow High School","119855","Academy","Academy"]
["Great Barr Primary School","122125","Academy","Academy"]
["Great Berry Primary School","120226","Academy","Academy"]
["Great Bowden Church of England Primary School","122049","Academy","Academy"]
["Great Chesterford Church of England Primary Academy","120510","Academy","Academy"]
["Great Clacton Church of England (Voluntary Aided) Junior School","127907","Academy","Academy"]
["Great Corby Primary School","120366","Academy","Academy"]
["Great Dalby School","123868","Academy","Academy"]
["Great Malvern Primary School","119984","Academy","Academy"]
["Great Marlow School","119964","Academy","Academy"]
["Great Sankey High School","122006","Academy","Academy"]
["Great Smeaton School","120442","Academy","Academy"]
["Great Staughton Primary School",127610,"Academy","Academy"]
["Great Yarmouth Borough Council","E2633","EngLocGov't","LocGov't"]
["Great Yarmouth Primary Academy","122285","Academy","Academy"]
["Greater London Authority","E5100","EngLocGov't","LocGov't"]
["Greater Manchester Fire and Rescue Authority","E6142","EngLocGov't","LocGov't"]
["Greater Manchester Integrated Transport Authority","E6342","EngLocGov't","LocGov't"]
["Greater Manchester Pension Fund - LGPS","LG027","LGPS","LocGov't"]
["Greater Manchester Police Authority","E6042","EngLocGov't","LocGov't"]
["Greater Manchester Waste Disposal Authority","E6202","EngLocGov't","LocGov't"]
["Green End Primary School","124673","Academy","Academy"]
["Green Field Academy","121881","Academy","Academy"]
["Green Lane Primary Academy","119356","Academy","Academy"]
["Green Oaks Primary Academy",126496,"Academy","Academy"]
["Green Rock Primary School",126483,"Academy","Academy"]
["Green School, The","124560","Academy","Academy"]
["Green Street Green Primary School","120067","Academy","Academy"]
["Green Way Academy, The","121837","Academy","Academy"]
["Greenacre School","120888","Academy","Academy"]
["Greenbank High School","120609","Academy","Academy"]
["Greenfield CofE VC Lower School","120290","Academy","Academy"]
["Greenfield E-ACT Primary Academy","122291","Academy","Academy"]
["Greenfields Community Primary School",126997,"Academy","Academy"]
["Greengate Lane Primary School","123125","Academy","Academy"]
["Greenhill Primary School",128097,"Academy","Academy"]
["Greenholm Primary School","122075","Academy","Academy"]
["Greenshaw High School","119768","Academy","Academy"]
["Greensted Junior School","122247","Academy","Academy"]
["Greensward Academy","118664","Academy","Academy"]
["Greenway School","122295","Academy","Academy"]
["Greenwich - LGPS","LG028","LGPS","LocGov't"]
["Greenwich Free School, The","122037","Academy","Academy"]
["Greenwich London Borough Council","E5012","EngLocGov't","LocGov't"]
["Greenwood Academy","122297","Academy","Academy"]
["Greetland Academy, The","119396","Academy","Academy"]
["Greig City Academy","118391","Academy","Academy"]
["Greneway School, The","119945","Academy","Academy"]
["Grestone Primary School",124649,"Academy","Academy"]
["Gretton Primary School - Cheltenham","120623","Academy","Academy"]
["Gretton Primary School - Corby","122743","Academy","Academy"]
["Grey Coat Hospital, The","122178","Academy","Academy"]
["Grey Court School","122576","Academy","Academy"]
["Greys Education Centre","122674","Academy","Academy"]
["Grindon Hall Christian School","121984","Academy","Academy"]
["Groby Community College","122282","Academy","Academy"]
["Grove Academy, The","122951","Academy","Academy"]
["Grove Church of England School",125228,"Academy","Academy"]
["Grove Park Community Primary School","121895","Academy","Academy"]
["Gryphon School, The","122602","Academy","Academy"]
["GTS Academy Trust","120228","Academy","Academy"]
["Guaranteed Export Finance Corporation","GEF025","CenGov't","CenGov't"]
["Guildford Borough Council","E3633","EngLocGov't","LocGov't"]
["Guildford County School","123854","Academy","Academy"]
["Guilsborough School","119489","Academy","Academy"]
["Gumley House RC Convent School, FCJ","121127","Academy","Academy"]
["Gurney Pease Primary","122356","Academy","Academy"]
["Guru Nanak Academy","119373","Academy","Academy"]
["Gusford Community Primary School","124627","Academy","Academy"]
["Guthlaxton College Wigston","122917","Academy","Academy"]
["Haberdashers' Aske's Crayford Academy","119138","Academy","Academy"]
["Haberdashers' Aske's Hatcham Academy","118392","Academy","Academy"]
["Haberdashers' Aske's Hatcham Temple Grove Free School","123307","Academy","Academy"]
["Haberdashers' Aske's Knights Academy","118617","Academy","Academy"]
["Hackney - LGPS","LG029","LGPS","LocGov't"]
["Hackney London Borough Council","E5013","EngLocGov't","LocGov't"]
["Hackney New School","123305","Academy","Academy"]
["Hackney UTC","122152","Academy","Academy"]
["Hadleigh High School","119918","Academy","Academy"]
["Hadleigh Infant and Nursery School","120027","Academy","Academy"]
["Hadleigh Junior School","120327","Academy","Academy"]
["Hadlow Rural Community School","123306","Academy","Academy"]
["Hadrian Academy","120668","Academy","Academy"]
["Hagley Park Academy","120103","Academy","Academy"]
["Hailsham Community College","122327","Academy","Academy"]
["Halewood Centre for Learning","121011","Academy","Academy"]
["Halifax High at Wellesley Park",123165,"Academy","Academy"]
["Halifax Holy Trinity CofE (VA) Primary School","122132","Academy","Academy"]
["Hall Cross School","120696","Academy","Academy"]
["Hall Green School","120887","Academy","Academy"]
["Hall Mead School","120197","Academy","Academy"]
["Hall Orchard Barrow CE Primary School",124068,"Academy","Academy"]
["Hall Road Academy","121838","Academy","Academy"]
["Halton Borough Council","E0601","EngLocGov't","LocGov't"]
["Haltwhistle Community Campus Lower School","124121","Academy","Academy"]
["Haltwhistle Community Campus Upper School","124122","Academy","Academy"]
["Hambleton District Council","E2732","EngLocGov't","LocGov't"]
["Hambleton Primary School","119413","Academy","Academy"]
["Hamford Primary Academy","121076","Academy","Academy"]
["Hamilton Primary School","121202","Academy","Academy"]
["Hammersmith Academy","119223","Academy","Academy"]
["Hammersmith and Fulham - LGPS","LG030","LGPS","LocGov't"]
["Hammersmith and Fulham London Borough Council","E5014","EngLocGov't","LocGov't"]
["Hammond Primary School, The","120238","Academy","Academy"]
["Hamp Academy","122934","Academy","Academy"]
["Hampshire County Council","E1721","EngLocGov't","LocGov't"]
["Hampshire Fire and Rescue Authority","E6117","EngLocGov't","LocGov't"]
["Hampshire Pension Fund - LGPS","LG031","LGPS","LocGov't"]
["Hampshire Police Authority","E6052","EngLocGov't","LocGov't"]
["Hampton Academy","119170","Academy","Academy"]
["Hampton Primary School","121204","Academy","Academy"]
["Hamstead Hall Community Learning Centre","124640","Academy","Academy"]
["Hamstreet Primary School",127318,"Academy","Academy"]
["Handsworth Wood Girls' School","122707","Academy","Academy"]
["Hanley Castle High School","120101","Academy","Academy"]
["Hans Price Academy","119753","Academy","Academy"]
["Hanwell Fields Community School","120808","Academy","Academy"]
["Harborne Academy","119308","Academy","Academy"]
["Harborough District Council","E2433","EngLocGov't","LocGov't"]
["Harden Primary School","124738","Academy","Academy"]
["Hardenhuish School","111710","Academy","Academy"]
["Hardingstone Primary School",127606,"Academy","Academy"]
["Hardwick Green Primary School","123944","Academy","Academy"]
["Hareclive Academy Trust","121121","Academy","Academy"]
["Harefield Academy - Uxbridge","118404","Academy","Academy"]
["Harefield Primary School - Southampton","124069","Academy","Academy"]
["Harewood College","121968","Academy","Academy"]
["Haringey - LGPS","LG032","LGPS","LocGov't"]
["Haringey London Borough Council","E5038","EngLocGov't","LocGov't"]
["Haringey Sixth Form Centre","123244","Academy","Academy"]
["Harlington Lower School","122126","Academy","Academy"]
["Harlington Upper School","119954","Academy","Academy"]
["Harlow District Council","E1538","EngLocGov't","LocGov't"]
["Harmonize Academy","122539","Academy","Academy"]
["Harpenden Free School","121986","Academy","Academy"]
["Harpfield Primary School","122488","Academy","Academy"]
["Harriers Banbury","123223","Academy","Academy"]
["Harris Academy Beckenham","120121","Academy","Academy"]
["Harris Academy Bermondsey","118633","Academy","Academy"]
["Harris Academy Bromley","120343","Academy","Academy"]
["Harris Academy Chafford Hundred","120594","Academy","Academy"]
["Harris Academy Falconwood","118665","Academy","Academy"]
["Harris Academy Greenwich","120964","Academy","Academy"]
["Harris Academy Merton","118634","Academy","Academy"]
["Harris Academy Morden","122637","Academy","Academy"]
["Harris Academy Peckham","118402","Academy","Academy"]
["Harris Academy Purley","118967","Academy","Academy"]
["Harris Academy South Norwood","118618","Academy","Academy"]
["Harris Academy Upper Norwood","124212","Academy","Academy"]
["Harris Aspire Academy","123409","Academy","Academy"]
["Harris Boys' Academy East Dulwich","118889","Academy","Academy"]
["Harris City Academy Crystal Palace","118619","Academy","Academy"]
["Harris Girls' Academy East Dulwich","118635","Academy","Academy"]
["Harris Junior Academy Carshalton","124236","Academy","Academy"]
["Harris Primary Academy Benson","124735","Academy","Academy"]
["Harris Primary Academy Chafford Hundred","121887","Academy","Academy"]
["Harris Primary Academy Coleraine Park","121949","Academy","Academy"]
["Harris Primary Academy Crystal Palace","124223","Academy","Academy"]
["Harris Primary Academy Kenley","123899","Academy","Academy"]
["Harris Primary Academy Kent House","123018","Academy","Academy"]
["Harris Primary Academy Peckham Park","120357","Academy","Academy"]
["Harris Primary Academy Philip Lane","122303","Academy","Academy"]
["Harris Primary Free School Peckham","122026","Academy","Academy"]
["Harris School - Rugby",124641,"Academy","Academy"]
["Harrogate Borough Council","E2753","EngLocGov't","LocGov't"]
["Harrogate Grammar School","119497","Academy","Academy"]
["Harrogate High School","120719","Academy","Academy"]
["Harrold Priory Middle School","119472","Academy","Academy"]
["Harrow - LGPS","LG033","LGPS","LocGov't"]
["Harrow High School and Sports College","120177","Academy","Academy"]
["Harrow London Borough Council","E5039","EngLocGov't","LocGov't"]
["Harrowbarrow School","120604","Academy","Academy"]
["Harrowby Church of England Infant School, The","122360","Academy","Academy"]
["Hart District Council","E1736","EngLocGov't","LocGov't"]
["Hartismere School","119243","Academy","Academy"]
["Hartlepool Borough Council","E0701","EngLocGov't","LocGov't"]
["Hartley Brook Primary School","121165","Academy","Academy"]
["Hartley Primary School","122281","Academy","Academy"]
["Hartsbrook E-ACT Free School","121985","Academy","Academy"]
["Hartsdown Technology College","119564","Academy","Academy"]
["Hartshill School","120882","Academy","Academy"]
["Hartsholme Primary School","120730","Academy","Academy"]
["Hartwell Primary School","119588","Academy","Academy"]
["Harvey Grammar School, The","122101","Academy","Academy"]
["Harwich School, The","121047","Academy","Academy"]
["Harwood Meadows Primary School","121072","Academy","Academy"]
["Hasmonean High School","120480","Academy","Academy"]
["Hassenbrook School Specialist Technology College","120449","Academy","Academy"]
["Hasting Hill Academy","122310","Academy","Academy"]
["Hastings Academy, The","119430","Academy","Academy"]
["Hastings Borough Council","E1433","EngLocGov't","LocGov't"]
["Hastings High School","124626","Academy","Academy"]
["Hatch End High School","120204","Academy","Academy"]
["Hatfield Community Free School","121988","Academy","Academy"]
["Hatfield Primary School","121147","Academy","Academy"]
["Hatfield Woodhouse Primary Academy","120894","Academy","Academy"]
["Hathershaw College of Technology & Sport, The","120039","Academy","Academy"]
["Hatton Park Primary School","122568","Academy","Academy"]
["Haughton Community School","120585","Academy","Academy"]
["Havant Academy","119228","Academy","Academy"]
["Havant Borough Council","E1737","EngLocGov't","LocGov't"]
["Haveley Hey Community School","123284","Academy","Academy"]
["Havelock Academy","118620","Academy","Academy"]
["Havelock Infant School","124528","Academy","Academy"]
["Havelock Junior School","126427","Academy","Academy"]
["Haven High Academy","121172","Academy","Academy"]
["Havercroft Academy","123191","Academy","Academy"]
["Havering - LGPS","LG034","LGPS","LocGov't"]
["Havering London Borough Council","E5040","EngLocGov't","LocGov't"]
["Hawes Side Primary School","122117","Academy","Academy"]
["Hawkesley Coe Primary School","122875","Academy","Academy"]
["Hawkley Hall High School","121935","Academy","Academy"]
["Hawthorne’s Free School, The","121969","Academy","Academy"]
["Hawthorns Community School","124301","Academy","Academy"]
["Haxby Road Primary Academy",124733,"Academy","Academy"]
["Haybridge High School and Sixth Form","119898","Academy","Academy"]
["Haybrook College",124756,"Academy","Academy"]
["Haybrook College PRU",124388,"Academy","Academy"]
["Haydon School","119610","Academy","Academy"]
["Hayes Primary School","119920","Academy","Academy"]
["Hayes School - Bromley","119617","Academy","Academy"]
["Hayes School - Paignton","119677","Academy","Academy"]
["Hayesbrook School, The","119302","Academy","Academy"]
["Hayesdown First School","124648","Academy","Academy"]
["Hayesfield Girls School","119966","Academy","Academy"]
["Hayfield School, The","119623","Academy","Academy"]
["Haygrove Secondary School","119917","Academy","Academy"]
["Haywood Engineering College","120546","Academy","Academy"]
["Hazel Grove High School","120837","Academy","Academy"]
["Hazelbeck Special School","122344","Academy","Academy"]
["Hazeley Academy, The","119844","Academy","Academy"]
["Hazelwick School","120263","Academy","Academy"]
["Hazelwood Academy","122818","Academy","Academy"]
["Headlands Primary School","121459","Academy","Academy"]
["Healing School","119265","Academy","Academy"]
["Health and Safety Executive for Northern Ireland","HSE204","CenGov't","CenGov't"]
["Health Protection Agency","HPG033","CenGov't","CenGov't"]
["Heanor Gate Science College","120578","Academy","Academy"]
["Heart of England","119909","Academy","Academy"]
["Heartlands Academy - Birmingham","119140","Academy","Academy"]
["Heartlands High School - Haringey","124247","Academy","Academy"]
["Heartsease Primary School","122097","Academy","Academy"]
["Heath Hayes Academy",129555,"Academy","Academy"]
["Heath Park Business and Enterprise College","120754","Academy","Academy"]
["Heath School, The","119790","Academy","Academy"]
["Heather Garth Primary School","123110","Academy","Academy"]
["Heathfield Academy, The","122081","Academy","Academy"]
["Heathfield Primary School","121941","Academy","Academy"]
["Heckmondwike Grammar School","119267","Academy","Academy"]
["Hedingham School and Sixth Form","123066","Academy","Academy"]
["Heighington Church of England Primary School","120022","Academy","Academy"]
["Heighington Millfield Primary Academy","120201","Academy","Academy"]
["Heights Free School, The","123413","Academy","Academy"]
["Helena Romanes School and Sixth Form Centre","121057","Academy","Academy"]
["Helenswood Academy","124685","Academy","Academy"]
["Hele's Trust","119576","Academy","Academy"]
["Hellesdon High School","120916","Academy","Academy"]
["Hemlington Hall Academy",125017,"Academy","Academy"]
["Hemsworth Arts and Community College","123199","Academy","Academy"]
["Hemsworth St Helens Church of England Voluntary Aided Junior and Infant School","124308","Academy","Academy"]
["Hemyock Primary School","120543","Academy","Academy"]
["Henbury Court Primary School","122813","Academy","Academy"]
["Henbury School","120840","Academy","Academy"]
["Hendon School","120517","Academy","Academy"]
["Hendreds Church of England School, The",125250,"Academy","Academy"]
["Henleaze Junior School","120492","Academy","Academy"]
["Henley in Arden High School","119991","Academy","Academy"]
["Henley-In-Arden Voluntary Aided CofE Primary School","123059","Academy","Academy"]
["Henlow Church of England Academy","120570","Academy","Academy"]
["Henrietta Barnett School, The","120690","Academy","Academy"]
["Henry Box School, The","122060","Academy","Academy"]
["Henry Hinde Infant School","120905","Academy","Academy"]
["Henry Hinde Junior School",127508,"Academy","Academy"]
["Hereford Academy, The","118672","Academy","Academy"]
["Hereford and Worcester Fire and Rescue Authority","E6118","EngLocGov't","LocGov't"]
["Herefordshire Council","E1801","EngLocGov't","LocGov't"]
["Heritage Lottery Fund","HLF048","CenGov't","CenGov't"]
["Hermitage School - Chester-le-Street","119665","Academy","Academy"]
["Hermitage School, The - Woking",127810,"Academy","Academy"]
["Herne Bay High School","119506","Academy","Academy"]
["Heron Hall Academy","123308","Academy","Academy"]
["Heron Park Primary Academy","122019","Academy","Academy"]
["Herons' Moor Academy","122651","Academy","Academy"]
["Heronsgate School","123231","Academy","Academy"]
["Herringham Primary School","121044","Academy","Academy"]
["Herschel Grammar School","120995","Academy","Academy"]
["Hersden Community Primary School","122255","Academy","Academy"]
["Hertfordshire County Council","E1920","EngLocGov't","LocGov't"]
["Hertfordshire County Council - LGPS","LG035","LGPS","LocGov't"]
["Hertfordshire Police Authority","E6072","EngLocGov't","LocGov't"]
["Hertsmere Borough Council","E1934","EngLocGov't","LocGov't"]
["Hertswood School","120802","Academy","Academy"]
["Hessle High School and Sixth Form College","120306","Academy","Academy"]
["Hessle Penshurst Primary School","120307","Academy","Academy"]
["Heston Community School","121146","Academy","Academy"]
["Hethersett Academy",126311,"Academy","Academy"]
["Hewens College","120078","Academy","Academy"]
["Hewens Primary School","123309","Academy","Academy"]
["Heybridge Primary School","123102","Academy","Academy"]
["Heyford Park Free School","123310","Academy","Academy"]
["Hibaldstow Academy","121052","Academy","Academy"]
["High Arcal School, The","120823","Academy","Academy"]
["High Halstow Primary School","121054","Academy","Academy"]
["High Peak Borough Council","E1037","EngLocGov't","LocGov't"]
["High School for Girls","119682","Academy","Academy"]
["High Weald Academy","120934","Academy","Academy"]
["Higham Lane School, A Business & Enterprise College","120853","Academy","Academy"]
["Highams Park School","120484","Academy","Academy"]
["Highbank Primary",125182,"Academy","Academy"]
["Highcliffe School","119769","Academy","Academy"]
["Highcrest Academy, The","119858","Academy","Academy"]
["Highdown School and Sixth Form Centre","119364","Academy","Academy"]
["Higher Education Funding Council for England","HEF084","CenGov't","CenGov't"]
["Higher Education Funding Council for Wales","HFW090","CenGov't","CenGov't"]
["Highfield Infants' School - Bromley","125203","Academy","Academy"]
["Highfield Junior School - Bromley",125204,"Academy","Academy"]
["Highfields Primary Academy - Doncaster","120952","Academy","Academy"]
["Highlands and Islands Enterprise","HIE075","CenGov't","CenGov't"]
["Highlands Primary School","122898","Academy","Academy"]
["Highlees Community Primary School","124667","Academy","Academy"]
["Highnam Church of England Primary School","120102","Academy","Academy"]
["Highsted Grammar School","119287","Academy","Academy"]
["Hightown Primary School","124679","Academy","Academy"]
["Highwoods Community Primary School","123224","Academy","Academy"]
["Highworth Grammar School","119416","Academy","Academy"]
["Highworth Warneford School","119860","Academy","Academy"]
["Hilbre High School","120885","Academy","Academy"]
["Hill Farm Academy","124127","Academy","Academy"]
["Hill Primary School, The","121211","Academy","Academy"]
["Hill West Primary School","122599","Academy","Academy"]
["Hillcrest Early Years Academy - Gainsborough","122008","Academy","Academy"]
["Hillcrest Primary School - Leeds",124293,"Academy","Academy"]
["Hillcrest School and Sixth Form Centre","120482","Academy","Academy"]
["Hillingdon - LGPS","LG036","LGPS","LocGov't"]
["Hillingdon London Borough Council","E5041","EngLocGov't","LocGov't"]
["Hills Academy, The","123278","Academy","Academy"]
["Hillsborough Primary School",125023,"Academy","Academy"]
["Hillside Primary and Nursery Academy - Nottingham",124737,"Academy","Academy"]
["Hillside Primary School - Orpington","121862","Academy","Academy"]
["Hilltop Junior School - Wickford","120245","Academy","Academy"]
["Hilltop Primary School - Crawley","122063","Academy","Academy"]
["Hillview School for Girls","120104","Academy","Academy"]
["Hillyfield Academy","119436","Academy","Academy"]
["Hilton Academy","122905","Academy","Academy"]
["Hinchingbrooke School","120503","Academy","Academy"]
["Hinchley Wood School","120416","Academy","Academy"]
["Hinckley and Bosworth Borough Council","E2434","EngLocGov't","LocGov't"]
["Hinde House 3-16 School","122797","Academy","Academy"]
["Hinderwell Community Primary School",124746,"Academy","Academy"]
["Hipperholme and Lightcliffe High School and Sports College","120036","Academy","Academy"]
["Histon and Impington Infant School","122679","Academy","Academy"]
["Histon and Impington Junior School","122718","Academy","Academy"]
["Hitchin Boys' School","122668","Academy","Academy"]
["Hitchin Girls' School","120288","Academy","Academy"]
["HM Procurator General and Treasury Solicitor","HGT089","CenGov't","CenGov't"]
["HM Revenue and Customs","ILR041","CenGov't","CenGov't"]
["HM Revenue and Customs taxes and duties","IRT813","CenGov't","CenGov't"]
["HM Treasury","HMT087","CenGov't","CenGov't"]
["Hobart High School","122709","Academy","Academy"]
["Hockerill Anglo-European College","119482","Academy","Academy"]
["Hockley Heath Academy","121857","Academy","Academy"]
["Hodgson Academy","119726","Academy","Academy"]
["Hogarth Primary and Nursery School",126107,"Academy","Academy"]
["Hogsthorpe Primary Academy","122262","Academy","Academy"]
["Holbrook High School","120208","Academy","Academy"]
["Holden Lane High School Specialist Sports College","123238","Academy","Academy"]
["Holgate Comprehensive School, The","124990","Academy","Academy"]
["Holland Park School","124090","Academy","Academy"]
["Holley Park Primary School","122147","Academy","Academy"]
["Hollingworth Business and Enterprise College","120921","Academy","Academy"]
["Holly Hall Maths and Computing College","120425","Academy","Academy"]
["Hollybrook Infant School","122588","Academy","Academy"]
["Hollybrook Junior School","122859","Academy","Academy"]
["Hollyfield School and Sixth Form Centre, The","120544","Academy","Academy"]
["Hollywood, the Coppice Primary School","120715","Academy","Academy"]
["Holme Church of England Controlled Primary School, The","124580","Academy","Academy"]
["Holmemead Middle School","120576","Academy","Academy"]
["Holmer CofE Primary School","120499","Academy","Academy"]
["Holmer Green Senior School","121070","Academy","Academy"]
["Holmes Chapel Comprehensive School","120367","Academy","Academy"]
["Holmes Chapel Primary School","124565","Academy","Academy"]
["Holt School, The","119880","Academy","Academy"]
["Holy Cross Catholic Primary School - Harlow","119967","Academy","Academy"]
["Holy Cross Catholic Primary School - Nottingham","121055","Academy","Academy"]
["Holy Cross Catholic Primary School - Suttom Coldfield",123902,"Academy","Academy"]
["Holy Cross Catholic Primary School - Whitwick","122363","Academy","Academy"]
["Holy Cross School, The","122725","Academy","Academy"]
["Holy Family Catholic Academy - Cleethorpes","123904","Academy","Academy"]
["Holy Family Catholic Primary School - Swindon","122507","Academy","Academy"]
["Holy Family RC Primary School - Darlington","124097","Academy","Academy"]
["Holy Rood Catholic Infant School","120074","Academy","Academy"]
["Holy Rood Catholic Junior School","119981","Academy","Academy"]
["Holy Trinity CE Primary Academy - Haringey","123196","Academy","Academy"]
["Holy Trinity Church of England Primary Academy - Calne","121913","Academy","Academy"]
["Holy Trinity Church of England Primary School - Handsworth",124168,"Academy","Academy"]
["Holy Trinity Church of England Voluntary Aided School, The - Devizes","120441","Academy","Academy"]
["Holyhead School","120034","Academy","Academy"]
["Holyrood Academy","119244","Academy","Academy"]
["Holywell Primary School - Loughborough","122555","Academy","Academy"]
["Holywell School - Bedford","122088","Academy","Academy"]
["Home Office","HOF034","CenGov't","CenGov't"]
["Homes and Communities Agency","HCA085","CenGov't","CenGov't"]
["Homewood School and Sixth Form Centre","120373","Academy","Academy"]
["Honeybourne First School","124330","Academy","Academy"]
["Honiton Community College","119912","Academy","Academy"]
["Honywood Community Science School","119727","Academy","Academy"]
["Hooe Primary School","122819","Academy","Academy"]
["Hook-with-Warsash Church of England Primary School","122163","Academy","Academy"]
["Hope Academy","119925","Academy","Academy"]
["Hope Community School","123313","Academy","Academy"]
["Hope Valley College","120066","Academy","Academy"]
["Horbury Academy","122558","Academy","Academy"]
["Horbury Bridge Church of England Voluntary Controlled Junior and Infant School","120893","Academy","Academy"]
["Horizon Primary Academy","120136","Academy","Academy"]
["Horniman Museum","HMM048","CenGov't","CenGov't"]
["Horringer Court Middle School","120179","Academy","Academy"]
["Horrington Primary School","124132","Academy","Academy"]
["Horsell Village School","123940","Academy","Academy"]
["Horserace Betting Levy Board","HBL048","CenGov't","CenGov't"]
["Horsforth School","120765","Academy","Academy"]
["Horsham District Council","E3835","EngLocGov't","LocGov't"]
["Horsington Church of England Primary School",125025,"Academy","Academy"]
["Hounsdown School","120229","Academy","Academy"]
["Hounslow - LGPS","LG037","LGPS","LocGov't"]
["Hounslow London Borough Council","E5042","EngLocGov't","LocGov't"]
["Howard of Effingham","119833","Academy","Academy"]
["Hoyland Common Primary School",123036,"Academy","Academy"]
["HPSS Superannuation Account - Northern Ireland","HPS910","CenGov't","CenGov't"]
["Huish Episcopi School","119245","Academy","Academy"]
["Huish Primary School",124759,"Academy","Academy"]
["Hull Studio School","122028","Academy","Academy"]
["Hull Trinity House Academy","120922","Academy","Academy"]
["Humberside Fire Authority","E6120","EngLocGov't","LocGov't"]
["Humberside Police Authority","E6020","EngLocGov't","LocGov't"]
["Humberston Academy","120200","Academy","Academy"]
["Humberston Park School","120443","Academy","Academy"]
["Humberstone Junior School","124337","Academy","Academy"]
["Hummersknott Academy","119838","Academy","Academy"]
["Humphrey Perkins High School & Community Centre","120901","Academy","Academy"]
["Huncote Community Primary School","122173","Academy","Academy"]
["Hundred of Hoo Academy, The","120119","Academy","Academy"]
["Hungerhill School","120940","Academy","Academy"]
["Huntcliff School","120568","Academy","Academy"]
["Huntingdon Primary and Nursery School","120539","Academy","Academy"]
["Huntingdonshire District Council","E0551","EngLocGov't","LocGov't"]
["Huntingtower Community Primary School","124181","Academy","Academy"]
["Hurst Primary School",124620,"Academy","Academy"]
["Hurstmere Foundation School for Boys","120404","Academy","Academy"]
["Hurworth Primary School","121832","Academy","Academy"]
["Hurworth School","119572","Academy","Academy"]
["Huttoft Primary School","122869","Academy","Academy"]
["Hutton All Saints' Church of England Primary School","120718","Academy","Academy"]
["Huxlow Science College","121017","Academy","Academy"]
["Huyton Arts & Sports Centre for Learning",124231,"Academy","Academy"]
["Hyde School, The","124345","Academy","Academy"]
["Hylands School","120072","Academy","Academy"]
["Hyndburn Borough Council","E2336","EngLocGov't","LocGov't"]
["Hyndburn Studio School","122529","Academy","Academy"]
["Ibstock Community College","122655","Academy","Academy"]
["Iceni Academy, The","122542","Academy","Academy"]
["Icknield High School","120569","Academy","Academy"]
["IES Breckland Free School","122015","Academy","Academy"]
["Ilex Urban Regeneration Co Ltd","IUR210","CenGov't","CenGov't"]
["Ilfracombe Arts College","124360","Academy","Academy"]
["Ilkley Grammar School","119821","Academy","Academy"]
["Ilminster Avenue E-ACT Academy","120906","Academy","Academy"]
["Ilsham Church of England Primary School","120304","Academy","Academy"]
["Ilsington Church of England Primary School","119919","Academy","Academy"]
["Imperial War Museum","IWM048","CenGov't","CenGov't"]
["Impington Village College","120714","Academy","Academy"]
["Independent Jewish Day School","120303","Academy","Academy"]
["Independent Living Fund","ILF811","CenGov't","CenGov't"]
["Independent Police Complaints Commission","IPO034","CenGov't","CenGov't"]
["Independent Safeguarding Authority","ISA034","CenGov't","CenGov't"]
["Ingoldmells Primary School","121167","Academy","Academy"]
["Insolvency Service Investment Account","ISI814","CenGov't","CenGov't"]
["International Food and Travel Studio","122530","Academy","Academy"]
["Invenio Academy","120004","Academy","Academy"]
["Inverteign Community Nursery and Primary School","119493","Academy","Academy"]
["Invest Northern Ireland","INL204","CenGov't","CenGov't"]
["Invicta Grammar School","119660","Academy","Academy"]
["Ipsley CE RSA Academy","122543","Academy","Academy"]
["Ipswich Academy","119502","Academy","Academy"]
["Ipswich Borough Council","E3533","EngLocGov't","LocGov't"]
["Iqra Community Primary School","124195","Academy","Academy"]
["Isaac Newton Academy","120917","Academy","Academy"]
["Isca College of Media Arts",122640,"Academy","Academy"]
["Isis Academy, The","122868","Academy","Academy"]
["Isle of Portland Aldridge Community Academy","120983","Academy","Academy"]
["Isle of Sheppey Academy, The","119099","Academy","Academy"]
["Isle of Wight Council","E2101","EngLocGov't","LocGov't"]
["Isle of Wight Council - LGPS","LG038","LGPS","LocGov't"]
["Isles of Scilly (Council of the)","E4001","EngLocGov't","LocGov't"]
["Isleworth and Syon School for Boys","120870","Academy","Academy"]
["Islington - LGPS","LG039","LGPS","LocGov't"]
["Islington London Borough Council","E5015","EngLocGov't","LocGov't"]
["Ivanhoe College Ashby-De-La-Zouch","122128","Academy","Academy"]
["Ivybridge Community College","119367","Academy","Academy"]
["James Brindley School","120663","Academy","Academy"]
["James Elliman Academy","123285","Academy","Academy"]
["James Hornsby School, The","121878","Academy","Academy"]
["JCB Academy, The","119213","Academy","Academy"]
["Jerry Clay Academy","120148","Academy","Academy"]
["Jewell Academy Bournemouth","126491","Academy","Academy"]
["John Baskeyfield VC CofE Primary School","123857","Academy","Academy"]
["John Bentley School, The","120571","Academy","Academy"]
["John Blandy VC Primary School",124731,"Academy","Academy"]
["John Cabot Academy","118621","Academy","Academy"]
["John Cleveland College","122331","Academy","Academy"]
["John Colet School","120261","Academy","Academy"]
["John Donne Primary School",129075,"Academy","Academy"]
["John Ferneley College","120644","Academy","Academy"]
["John Hampden Grammar School","119770","Academy","Academy"]
["John Henry Newman Catholic College - Solihull","119437","Academy","Academy"]
["John Henry Newman Catholic School, The - Stevenage","121183","Academy","Academy"]
["John Henry Newman CofE (A) Primary School, The","122336","Academy","Academy"]
["John Kyrle High School and Sixth Form Centre","119414","Academy","Academy"]
["John Madejski Academy","118622","Academy","Academy"]
["John Masefield High School","119800","Academy","Academy"]
["John Mason School",129426,"Academy","Academy"]
["John of Gaunt School, The","120822","Academy","Academy"]
["John Port School","119618","Academy","Academy"]
["John Smeaton Academy, The",120516,"Academy","Academy"]
["John Spendluffe Foundation Technology College","119968","Academy","Academy"]
["John Taylor High School","119353","Academy","Academy"]
["John Wallis Church of England Academy, The","119309","Academy","Academy"]
["John Warner School, The","119627","Academy","Academy"]
["John Whitgift Academy","120464","Academy","Academy"]
["Joseph Leckie Academy","120848","Academy","Academy"]
["Joseph Swan School","120691","Academy","Academy"]
["Joseph Whitaker School","120678","Academy","Academy"]
["Jotmans Hall Primary School","120247","Academy","Academy"]
["Joydens Wood Infant School","120619","Academy","Academy"]
["Joydens Wood Junior School","120618","Academy","Academy"]
["Jubilee Academy - Walsall","122043","Academy","Academy"]
["Jubilee Academy, The - Harrow","123414","Academy","Academy"]
["Jubilee High School","124734","Academy","Academy"]
["Jubilee Park Primary School","124117","Academy","Academy"]
["Judith Kerr Primary School","123315","Academy","Academy"]
["Kajans Hospitality & Catering Studio College - Khcsc","123387","Academy","Academy"]
["Kanes Hill Primary School","123860","Academy","Academy"]
["Katharine Lady Berkeley's School","120033","Academy","Academy"]
["Kearsley Academy","119227","Academy","Academy"]
["Kedington Primary School","123254","Academy","Academy"]
["Kelsall Primary School","122569","Academy","Academy"]
["Kelvedon St Mary's Church of England Primary School","123161","Academy","Academy"]
["Kemnal Technology College","119273","Academy","Academy"]
["Kemsley Primary School","123946","Academy","Academy"]
["Kendray Primary School (The Forest Academy)","122857","Academy","Academy"]
["Kendrick School","119464","Academy","Academy"]
["Kennet School","119645","Academy","Academy"]
["Kennett Community Primary School","122516","Academy","Academy"]
["Kenningtons Primary School","122566","Academy","Academy"]
["Kensington and Chelsea - LGPS","LG040","LGPS","LocGov't"]
["Kensington and Chelsea Council (Royal Borough of)","E5016","EngLocGov't","LocGov't"]
["Kent and Medway Fire and Rescue Authority","E6122","EngLocGov't","LocGov't"]
["Kent County Council","E2221","EngLocGov't","LocGov't"]
["Kent County Council (Kent Pension Fund) - LGPS","LG041","LGPS","LocGov't"]
["Kent Police Authority","E6022","EngLocGov't","LocGov't"]
["Kenton School Newcastle","120910","Academy","Academy"]
["Kents Hill Infant School","120330","Academy","Academy"]
["Kents Hill Junior School","120586","Academy","Academy"]
["Kenyngton Manor Primary School",124295,"Academy","Academy"]
["Kepier","120262","Academy","Academy"]
["Kesgrave High School","119969","Academy","Academy"]
["Kesteven and Grantham Girls' School","122564","Academy","Academy"]
["Kesteven and Sleaford High School","120675","Academy","Academy"]
["Keswick School","119862","Academy","Academy"]
["Kettering Borough Council","E2834","EngLocGov't","LocGov't"]
["Kettering Buccleuch Academy","119105","Academy","Academy"]
["Kettering Science Academy","119106","Academy","Academy"]
["Khalsa Science Academy","123316","Academy","Academy"]
["Khalsa Secondary Acdemy","123317","Academy","Academy"]
["Kibblesworth Academy","121908","Academy","Academy"]
["Kibworth Church of England Primary School","122048","Academy","Academy"]
["Kibworth High School & Community Technology College","120555","Academy","Academy"]
["Kilton Thorpe School","122603","Academy","Academy"]
["Kimberley 16 - 19 Stem College","123318","Academy","Academy"]
["Kimberley School, The","122726","Academy","Academy"]
["King Alfred's","120140","Academy","Academy"]
["King Charles I Secondary School","121012","Academy","Academy"]
["King David High School, The","120309","Academy","Academy"]
["King David Primary School","123275","Academy","Academy"]
["King Ecgbert School","121930","Academy","Academy"]
["King Edmund School, The","119868","Academy","Academy"]
["King Edward VI Academy - Spilsby","121215","Academy","Academy"]
["King Edward VI Aston School","120043","Academy","Academy"]
["King Edward VI Camp Hill School for Boys","120045","Academy","Academy"]
["King Edward VI Camp Hill School for Girls","120044","Academy","Academy"]
["King Edward VI Five Ways School","120046","Academy","Academy"]
["King Edward VI Grammar School - Chelmsford","119685","Academy","Academy"]
["King Edward VI Handsworth School","120047","Academy","Academy"]
["King Edward VI School - Stratford-upon-Avon","120302","Academy","Academy"]
["King Edward VI Sheldon Heath Academy","119208","Academy","Academy"]
["King Edward VII Science and Sport College","114115","Academy","Academy"]
["King Ethelbert School","119658","Academy","Academy"]
["King Harold School","119365","Academy","Academy"]
["King James I Community Arts College","119771","Academy","Academy"]
["King James's School","122293","Academy","Academy"]
["King John School, The","119652","Academy","Academy"]
["King Offa Academy","122301","Academy","Academy"]
["King Solomon Academy","118623","Academy","Academy"]
["King William Street Church of England Primary School","121875","Academy","Academy"]
["Kingdown School - Warminster","120230","Academy","Academy"]
["Kingfisher Academy, The - Bristol","122666","Academy","Academy"]
["Kingfisher Community Primary School","124656","Academy","Academy"]
["Kingfisher Hall Primary Academy","121993","Academy","Academy"]
["Kingfisher School - Abingdon","122544","Academy","Academy"]
["Kingfisher School, The - Redditch",127196,"Academy","Academy"]
["King's Academy","118405","Academy","Academy"]
["Kings Ash Primary School","122663","Academy","Academy"]
["Kings Caple Primary School","119795","Academy","Academy"]
["Kings Heath Academy",124669,"Academy","Academy"]
["Kings Houghton Middle School","121836","Academy","Academy"]
["Kings Langley School","123186","Academy","Academy"]
["King's Leadership Academy","121989","Academy","Academy"]
["King's Lynn Academy","119326","Academy","Academy"]
["Kings Lynn and West Norfolk Borough Council","E2634","EngLocGov't","LocGov't"]
["Kings Norton Girls School","119621","Academy","Academy"]
["King's Oak Academy","120106","Academy","Academy"]
["Kings of Wessex School, The","119289","Academy","Academy"]
["Kings Park Primary Academy","122852","Academy","Academy"]
["Kings Priory School","123100","Academy","Academy"]
["Kings Rise Community Primary School","122851","Academy","Academy"]
["King's School - Hove","123319","Academy","Academy"]
["King's School, The - Devon","119688","Academy","Academy"]
["King's School, The - Grantham","120166","Academy","Academy"]
["King's School, The - Peterborough","119404","Academy","Academy"]
["King's School, The - Wakefield","123220","Academy","Academy"]
["Kings Science Academy","120465","Academy","Academy"]
["Kings Sutton Primary School","124193","Academy","Academy"]
["Kingsbridge Community College","119402","Academy","Academy"]
["Kingsbury High School","120732","Academy","Academy"]
["Kingsdale Foundation School","119361","Academy","Academy"]
["Kingsdown School","120265","Academy","Academy"]
["Kingshill Church School","122815","Academy","Academy"]
["Kingsley Academy - Hounslow","121991","Academy","Academy"]
["Kingsley School - Kettering","120656","Academy","Academy"]
["Kingsmead Academy - Taunton","119540","Academy","Academy"]
["Kingsmead School - Enfield","119288","Academy","Academy"]
["Kingsmoor Primary School","122841","Academy","Academy"]
["Kingsthorpe College","122371","Academy","Academy"]
["Kingston Park Primary and Nursery School","122956","Academy","Academy"]
["Kingston School","120220","Academy","Academy"]
["Kingston upon Hull City Council","E2002","EngLocGov't","LocGov't"]
["Kingston upon Thames - LGPS","LG042","LGPS","LocGov't"]
["Kingston upon Thames Council (Royal Borough of)","E5043","EngLocGov't","LocGov't"]
["Kingstone and Thruxton Primary School","120426","Academy","Academy"]
["Kingstone High School","120073","Academy","Academy"]
["Kingswinford School & Science College, The","120520","Academy","Academy"]
["Kingswood Academy - Hull","122809","Academy","Academy"]
["Kingswood Primary Academy - Corby","122684","Academy","Academy"]
["Kingswood School, The - Corby","124835","Academy","Academy"]
["Kirby Muxloe Primary School",126355,"Academy","Academy"]
["Kirby Primary School",124683,"Academy","Academy"]
["Kirk Hallam Community Technology & Sports College","119485","Academy","Academy"]
["Kirk Sandall Infant School","122723","Academy","Academy"]
["Kirkbie Kendal School","119686","Academy","Academy"]
["Kirkby College","121041","Academy","Academy"]
["Kirkby High School","124216","Academy","Academy"]
["Kirkby Stephen Grammar School","120107","Academy","Academy"]
["Kirkby-la-Thorpe Church of England Primary School, The",124736,"Academy","Academy"]
["Kirklees Metropolitan Council","E4703","EngLocGov't","LocGov't"]
["Knights Templar School, The","119626","Academy","Academy"]
["Knightsfield School","122167","Academy","Academy"]
["Knole Academy","119193","Academy","Academy"]
["Knottingley Church of England Voluntary Controlled Junior and Infant School","122738","Academy","Academy"]
["Knottingley England Lane Junior Infant and Nursery School",127205,"Academy","Academy"]
["Knowle Church of England Primary School","123878","Academy","Academy"]
["Knowsley Metropolitan Borough Council","E4301","EngLocGov't","LocGov't"]
["Knutsford High School","121163","Academy","Academy"]
["Krishna-Avanti Primary School - Harrow","122713","Academy","Academy"]
["Krishna-Avanti Primary School - Leicester","120530","Academy","Academy"]
["Laceby Acres Primary School",128058,"Academy","Academy"]
["Lacey Green Primary School","120368","Academy","Academy"]
["Ladock CofE School",127543,"Academy","Academy"]
["Lady Hawkins High School","120540","Academy","Academy"]
["Lady Jane Grey Primary School","122816","Academy","Academy"]
["Lady Margaret School","122577","Academy","Academy"]
["Lady Seaward's Church of England Primary School","120523","Academy","Academy"]
["Ladybarn Primary School","124681","Academy","Academy"]
["Ladygrove Park Primary School","123909","Academy","Academy"]
["Lake District National Park Authority","E6403","EngLocGov't","LocGov't"]
["Lakelands School, Sports and Language College, The","122587","Academy","Academy"]
["Lakeside Academy","124325","Academy","Academy"]
["Lambeth - LGPS","LG043","LGPS","LocGov't"]
["Lambeth Academy","118624","Academy","Academy"]
["Lambeth London Borough Council","E5017","EngLocGov't","LocGov't"]
["Lampton School","119270","Academy","Academy"]
["Lancashire County Council","E2321","EngLocGov't","LocGov't"]
["Lancashire County Council - LGPS","LG044","LGPS","LocGov't"]
["Lancashire Fire Authority","E6123","EngLocGov't","LocGov't"]
["Lancashire Police Authority","E6023","EngLocGov't","LocGov't"]
["Lancaster City Council","E2337","EngLocGov't","LocGov't"]
["Lancaster Girls' Grammar School","119412","Academy","Academy"]
["Lancaster Royal Grammar School","119751","Academy","Academy"]
["Landau Forte Academy - Amington","119203","Academy","Academy"]
["Landau Forte Academy - Moorhead","121918","Academy","Academy"]
["Landau Forte Academy - QEMS","120146","Academy","Academy"]
["Landau Forte Academy Greenacres","123267","Academy","Academy"]
["Landau Forte College - Derby","118636","Academy","Academy"]
["Landulph School",127406,"Academy","Academy"]
["Langdale Free School","123320","Academy","Academy"]
["Langdon Academy",127703,"Academy","Academy"]
["Langer Primary School","121077","Academy","Academy"]
["Langham CofE (Controlled) Primary School","124624","Academy","Academy"]
["Langley Academy - Slough","118632","Academy","Academy"]
["Langley Grammar School","119554","Academy","Academy"]
["Langley Hall Primary Academy","120461","Academy","Academy"]
["Langley Park School for Boys","119544","Academy","Academy"]
["Langley Park School for Girls","120006","Academy","Academy"]
["Langley School - Solihull","120007","Academy","Academy"]
["Langmoor Primary School Oadby","124538","Academy","Academy"]
["Langtons Junior School","124242","Academy","Academy"]
["Langtree School","120994","Academy","Academy"]
["Lansdowne Primary Academy","121152","Academy","Academy"]
["Lapford Community Primary School","120869","Academy","Academy"]
["Lark Hall Infant and Nursery Academy",124782,"Academy","Academy"]
["Lark Rise Lower School","119290","Academy","Academy"]
["Larkman Primary School","124572","Academy","Academy"]
["Latchmere School","122414","Academy","Academy"]
["Launceston College","123169","Academy","Academy"]
["Launde Primary School","124350","Academy","Academy"]
["Laurel Lane Primary School","122935","Academy","Academy"]
["Lavington School","119400","Academy","Academy"]
["Lea Forest Academy","122574","Academy","Academy"]
["LeAF Studio School, The","122885","Academy","Academy"]
["Leamington Primary and Nursery Academy","124824","Academy","Academy"]
["Learning and Skills Improvement Service","LSI084","CenGov't","CenGov't"]
["Learning and Teaching Scotland","LTS075","CenGov't","CenGov't"]
["Lee Chapel Primary School","120108","Academy","Academy"]
["Lee Valley Regional Park Authority","E6803","EngLocGov't","LocGov't"]
["Leeds City Council","E4704","EngLocGov't","LocGov't"]
["Leeds Jewish Free School","123321","Academy","Academy"]
["Leeds West Academy","119091","Academy","Academy"]
["Lees Brook Community Sports College","120095","Academy","Academy"]
["Legal Services Commission","LEC047","CenGov't","CenGov't"]
["Leicester City Council","E2401","EngLocGov't","LocGov't"]
["Leicester, Leicestershire and Rutland Combined Fire Authority","E6124","EngLocGov't","LocGov't"]
["Leicestershire County Council","E2421","EngLocGov't","LocGov't"]
["Leicestershire County Council - LGPS","LG045","LGPS","LocGov't"]
["Leicestershire Police Authority","E6024","EngLocGov't","LocGov't"]
["Leigh Primary School",127383,"Academy","Academy"]
["Leigh Technology Academy","118686","Academy","Academy"]
["Leigh Westleigh Methodist Primary School","124692","Academy","Academy"]
["Leighfield Primary School","123260","Academy","Academy"]
["Leighton Primary School","124179","Academy","Academy"]
["Lena Gardens Primary School","129583","Academy","Academy"]
["Lerryn CofE Primary School","123078","Academy","Academy"]
["Lethbridge Primary School","120191","Academy","Academy"]
["Leventhorpe School, The","120156","Academy","Academy"]
["Lever Edge Primary Academy","119392","Academy","Academy"]
["Leverington Primary Academy","119585","Academy","Academy"]
["Lewannick Community Primary School",129552,"Academy","Academy"]
["Lewes District Council","E1435","EngLocGov't","LocGov't"]
["Lewisham - LGPS","LG046","LGPS","LocGov't"]
["Lewisham London Borough Council","E5018","EngLocGov't","LocGov't"]
["Leysland High School","122377","Academy","Academy"]
["Lichfield District Council","E3433","EngLocGov't","LocGov't"]
["Lickhill Primary School","120615","Academy","Academy"]
["Light Hall School Specialist Mathematics and Computing College","120231","Academy","Academy"]
["Lighthouse School","122534","Academy","Academy"]
["Lime Tree Primary School","126289","Academy","Academy"]
["Limehurst Academy","120098","Academy","Academy"]
["Lincoln Carlton Academy",126508,"Academy","Academy"]
["Lincoln Castle Academy","119669","Academy","Academy"]
["Lincoln Christ's Hospital School","120408","Academy","Academy"]
["Lincoln City Council","E2533","EngLocGov't","LocGov't"]
["Lincoln Manor Leas Junior School, The","124196","Academy","Academy"]
["Lincolnshire County Council","E2520","EngLocGov't","LocGov't"]
["Lincolnshire County Council - LGPS","LG047","LGPS","LocGov't"]
["Lincolnshire Police Authority","E6025","EngLocGov't","LocGov't"]
["Lincroft Middle School","119471","Academy","Academy"]
["Lindley Junior School","120547","Academy","Academy"]
["Lings Primary School","122490","Academy","Academy"]
["Links Education Support Centre, The","122706","Academy","Academy"]
["Linslade Middle School","119759","Academy","Academy"]
["Linton Village College","119451","Academy","Academy"]
["Lipson Cooperative Academy Trust","119683","Academy","Academy"]
["Lisle Marsden Church of England Academy","120559","Academy","Academy"]
["Little Gonerby Church of England Infant School, The","122711","Academy","Academy"]
["Little Mead Primary School","122769","Academy","Academy"]
["Little Reddings Primary School","121208","Academy","Academy"]
["Littledown School",124730,"Academy","Academy"]
["Littlehampton Academy, The","118853","Academy","Academy"]
["Littletown Primary School","120849","Academy","Academy"]
["Littleworth Grange Academy","121939","Academy","Academy"]
["Liverpool City Council","E4302","EngLocGov't","LocGov't"]
["Liverpool College","122814","Academy","Academy"]
["Liverpool Life Sciences UTC","122158","Academy","Academy"]
["Llangrove CofE Primary School","122821","Academy","Academy"]
["Loatlands Primary School","124516","Academy","Academy"]
["Lode Heath School","120008","Academy","Academy"]
["Lodge Park Academy","120943","Academy","Academy"]
["Lofthouse Gate Primary School","124778","Academy","Academy"]
["London & Continental Railways Limited","LCR004","CenGov't","CenGov't"]
["London Academy - Barnet","118396","Academy","Academy"]
["London Academy of Excellence - Newham","121994","Academy","Academy"]
["London Development Agency","E5101","EngLocGov't","LocGov't"]
["London Fire and Emergency Planning Authority","E5102","EngLocGov't","LocGov't"]
["London Oratory School, The","120157","Academy","Academy"]
["London Organising Committee of the Olympic Games Limited","LOG048","CenGov't","CenGov't"]
["London Pension Fund Authority - LGPS","LG048","LGPS","LocGov't"]
["London Thames Gateway Development Corporation","LTG085","CenGov't","CenGov't"]
["Long Bennington Church of England Primary School","121040","Academy","Academy"]
["Long Eaton School, The","119650","Academy","Academy"]
["Long Field School","122654","Academy","Academy"]
["Longcot and Fernham Church of England Primary School",124532,"Academy","Academy"]
["Longdean School","120110","Academy","Academy"]
["Longfield Academy - Kent","118625","Academy","Academy"]
["Longfield Academy of Sport - Darlington","120222","Academy","Academy"]
["Longhill Primary School",124261,"Academy","Academy"]
["Longley Primary School","124615","Academy","Academy"]
["Longsands College","119992","Academy","Academy"]
["Longsight Community Primary","123322","Academy","Academy"]
["Longspee School","124205","Academy","Academy"]
["Looe Community School","120828","Academy","Academy"]
["Looe Primary School",125175,"Academy","Academy"]
["Lord Lawson of Beamish Academy","120758","Academy","Academy"]
["Lord Scudamore Foundation School","119796","Academy","Academy"]
["Lord Williams's School","122280","Academy","Academy"]
["Lordswood Boys' School - Birmingham","122557","Academy","Academy"]
["Lordswood Girls School and Sixth Form Centre - Birmingham","119622","Academy","Academy"]
["Lordswood School - Chatham",124659,"Academy","Academy"]
["Loreto College - St. Albans","121920","Academy","Academy"]
["Loreto Grammar School - Trafford","122561","Academy","Academy"]
["Lostock Hall Community High School and Arts College","120111","Academy","Academy"]
["Loughton School","124158","Academy","Academy"]
["Lound Infant School","124315","Academy","Academy"]
["Lound Junior School","124298","Academy","Academy"]
["Louth Kidgate Primary School","121871","Academy","Academy"]
["Lowbrook Primary School","119659","Academy","Academy"]
["Loxford School of Science and Technology",126527,"Academy","Academy"]
["Lubenham All Saints Church of England Primary School","124556","Academy","Academy"]
["Luddendenfoot Junior and Infant School","120764","Academy","Academy"]
["Luddenham School","121132","Academy","Academy"]
["Ludgvan Community Primary School","120395","Academy","Academy"]
["Ludlow Infant School","122604","Academy","Academy"]
["Ludlow Junior School","122948","Academy","Academy"]
["Lugwardine Primary School","121087","Academy","Academy"]
["Lumbertubs Primary School","122254","Academy","Academy"]
["Luton Borough Council","E0201","EngLocGov't","LocGov't"]
["Lutterworth College","121464","Academy","Academy"]
["Lutterworth High School","120115","Academy","Academy"]
["Lydiard Park Academy","120264","Academy","Academy"]
["Lymm High Voluntary Controlled School","122502","Academy","Academy"]
["Lynch Hill (Foundation Primary) School","120010","Academy","Academy"]
["Lyndhurst Junior School","122991","Academy","Academy"]
["Lynn Grove High School","120607","Academy","Academy"]
["Lynsted & Norton Primary School","120374","Academy","Academy"]
["Lyons Hall Primary School","121080","Academy","Academy"]
["Mablethorpe Community Primary and Nursery School","121873","Academy","Academy"]
["Macaulay School","122794","Academy","Academy"]
["Macclesfield Academy, The","120064","Academy","Academy"]
["Macmillan Academy","118397","Academy","Academy"]
["Madeley Academy","119112","Academy","Academy"]
["Madeley High School","124490","Academy","Academy"]
["Magdalen College School","122354","Academy","Academy"]
["Maghull High School","120488","Academy","Academy"]
["Magna Academy","123952","Academy","Academy"]
["Magna Carta School, The","120116","Academy","Academy"]
["Magnus CofE School",127677,"Academy","Academy"]
["Maharishi School","120462","Academy","Academy"]
["Maiden Beech Middle School","120118","Academy","Academy"]
["Maiden Erlegh School","119547","Academy","Academy"]
["Maidstone Borough Council","E2237","EngLocGov't","LocGov't"]
["Malcolm Arnold Academy","119331","Academy","Academy"]
["Malcolm Sargent Primary School, The","120735","Academy","Academy"]
["Maldon District Council","E1539","EngLocGov't","LocGov't"]
["Malmesbury Church of England Primary School","121117","Academy","Academy"]
["Malmesbury School","120308","Academy","Academy"]
["Maltby Academy","119142","Academy","Academy"]
["Maltby Redwood Academy",127292,"Academy","Academy"]
["Maltings Academy","118666","Academy","Academy"]
["Maltings Free College, The","123356","Academy","Academy"]
["Malvern Hills District Council","E1851","EngLocGov't","LocGov't"]
["Malvin's Close Primary School","124147","Academy","Academy"]
["Manaccan Primary School","126513","Academy","Academy"]
["Manchester Academy","119074","Academy","Academy"]
["Manchester City Council","E4203","EngLocGov't","LocGov't"]
["Manchester Communication Academy","119171","Academy","Academy"]
["Manchester Creative and Media Academy (Boys)","119149","Academy","Academy"]
["Manchester Creative and Media Academy (Girls)","119148","Academy","Academy"]
["Manchester Creative Learning Academy","120496","Academy","Academy"]
["Manchester Enterprise Academy","118890","Academy","Academy"]
["Manchester Health Academy","118891","Academy","Academy"]
["Mandeville Primary School","123179","Academy","Academy"]
["Manningtree High School","121170","Academy","Academy"]
["Manor Academy, The - Mansfield","120158","Academy","Academy"]
["Manor Church of England Academy Trust","119567","Academy","Academy"]
["Manor CofE VC Primary School, The","122796","Academy","Academy"]
["Manor Court Community Primary School","123849","Academy","Academy"]
["Manor Croft Academy","122426","Academy","Academy"]
["Manor High School - Oadby","120120","Academy","Academy"]
["Manor Leas Infants School","122137","Academy","Academy"]
["Manor Oak Primary School",125184,"Academy","Academy"]
["Manor School - Didcot","123897","Academy","Academy"]
["Manor School and Sports College - Wellingborough","120606","Academy","Academy"]
["Mansel Primary School","122653","Academy","Academy"]
["Mansfield District Council","E3035","EngLocGov't","LocGov't"]
["Mansfield Green Academy","122848","Academy","Academy"]
["Mansfield Primary Academy","122494","Academy","Academy"]
["Manston St James Church of England Primary School","122162","Academy","Academy"]
["Maple Court Primary School","122487","Academy","Academy"]
["Maplefields School","120716","Academy","Academy"]
["Maplesden Noakes School, The","120854","Academy","Academy"]
["Marchbank Free School","123397","Academy","Academy"]
["Marches School and Technology College, The","119979","Academy","Academy"]
["Marden Lodge Primary School - Caterham","124747","Academy","Academy"]
["Marden Primary School - Marden",127115,"Academy","Academy"]
["Margaret Beaufort Middle School and Arts College","119475","Academy","Academy"]
["Marine Academy Plymouth","119222","Academy","Academy"]
["Marine Academy Primary (Map2)","123324","Academy","Academy"]
["Marine Management Organisation","MMO003","CenGov't","CenGov't"]
["Marish Primary School","122065","Academy","Academy"]
["Mark Hall Academy","122431","Academy","Academy"]
["Mark Rutherford School","123075","Academy","Academy"]
["Market Bosworth High School","121956","Academy","Academy"]
["Marlborough Church of England School, The","122590","Academy","Academy"]
["Marlborough Road Academy","120942","Academy","Academy"]
["Marlborough Science Academy, The","121214","Academy","Academy"]
["Marling School","120123","Academy","Academy"]
["Marlowe Academy","118398","Academy","Academy"]
["Marsh Academy","118626","Academy","Academy"]
["Marston Vale Middle School","122735","Academy","Academy"]
["Martham Foundation Primary School and Nursery","119384","Academy","Academy"]
["Martin High School","121032","Academy","Academy"]
["Mary Rose School",123241,"Academy","Academy"]
["Maryhill Primary School","125183","Academy","Academy"]
["Mascalls School","119847","Academy","Academy"]
["Matchborough First School",126349,"Academy","Academy"]
["Matthew Arnold School, The","120819","Academy","Academy"]
["Maybury Primary School",124241,"Academy","Academy"]
["Mayfield Grammar","120867","Academy","Academy"]
["Mayflower Community Academy","123103","Academy","Academy"]
["Mayflower High School","120048","Academy","Academy"]
["Mead Academy Trust, The","121106","Academy","Academy"]
["Meadow Community Primary School, The","121890","Academy","Academy"]
["Meadow Park Academy","121899","Academy","Academy"]
["Meadowdale Middle School","120868","Academy","Academy"]
["Meadowdale Primary School","122092","Academy","Academy"]
["Meadowhead School","121019","Academy","Academy"]
["Measham Church of England Primary School","123060","Academy","Academy"]
["Meden School and Technology College, The","122396","Academy","Academy"]
["Medical Research Council","MRC084","CenGov't","CenGov't"]
["Medmerry Primary School","120375","Academy","Academy"]
["Medway Council","E2201","EngLocGov't","LocGov't"]
["Melbourn Village College","120478","Academy","Academy"]
["Melior Community Academy","122636","Academy","Academy"]
["Melland High School","122273","Academy","Academy"]
["Mellor Primary School","120643","Academy","Academy"]
["Melton Borough Council","E2436","EngLocGov't","LocGov't"]
["Mendip District Council","E3331","EngLocGov't","LocGov't"]
["Meopham Community Academy","119385","Academy","Academy"]
["Meopham School","120845","Academy","Academy"]
["Meppershall CofE VA Lower School","124180","Academy","Academy"]
["Mercenfeld Primary School","123269","Academy","Academy"]
["Merchants' Academy","118627","Academy","Academy"]
["Mere Green Combined School","122693","Academy","Academy"]
["Meridian School","119940","Academy","Academy"]
["Merlin Top Primary School","122854","Academy","Academy"]
["Merrill Academy, The","120960","Academy","Academy"]
["Merritts Brook E-ACT Primary Academy","122661","Academy","Academy"]
["Mersey Primary Academy",124661,"Academy","Academy"]
["Merseyside Fire and Civil Defence Authority","E6143","EngLocGov't","LocGov't"]
["Merseyside Integrated Transport Authority","E6343","EngLocGov't","LocGov't"]
["Merseyside Pension Fund - LGPS","LG049","LGPS","LocGov't"]
["Merseyside Police Authority","E6043","EngLocGov't","LocGov't"]
["Merseyside Waste Disposal Authority","E6204","EngLocGov't","LocGov't"]
["Merton - LGPS","LG050","LGPS","LocGov't"]
["Merton Borough Council","E5044","EngLocGov't","LocGov't"]
["Merton Primary School, The","122384","Academy","Academy"]
["Messing Primary School","122876","Academy","Academy"]
["Mesty Croft Academy","120645","Academy","Academy"]
["Metropolitan Police Authority","E5103","EngLocGov't","LocGov't"]
["Meynell Community Primary School","122779","Academy","Academy"]
["Mid Devon District Council","E1133","EngLocGov't","LocGov't"]
["Mid Suffolk District Council","E3534","EngLocGov't","LocGov't"]
["Mid Sussex District Council","E3836","EngLocGov't","LocGov't"]
["Middlefield Community Primary School","122077","Academy","Academy"]
["Middlesbrough Council","E0702","EngLocGov't","LocGov't"]
["Middlethorpe Primary Academy","121082","Academy","Academy"]
["Middleton Cheney Community Primary School","124170","Academy","Academy"]
["Midhurst Rother College","118907","Academy","Academy"]
["Midland Studio College - Hinckley","122528","Academy","Academy"]
["Midland Studio College - Nuneaton","123389","Academy","Academy"]
["Mildenhall College of Technology","124383","Academy","Academy"]
["Milestone Academy","120666","Academy","Academy"]
["Milford Primary School","122716","Academy","Academy"]
["Milford-on-Sea Church of England Primary School","124765","Academy","Academy"]
["Mill Chase Community Technology College",124995,"Academy","Academy"]
["Mill Hill County High School","119934","Academy","Academy"]
["Mill Primary School, The","124064","Academy","Academy"]
["Millbank Primary School","122182","Academy","Academy"]
["Millbrook Academy - Gloucester","120918","Academy","Academy"]
["Millbrook CofE VA Primary School - Torpoint",124515,"Academy","Academy"]
["Millbrook Primary School - Swindon",124164,"Academy","Academy"]
["Millfield L.E.A.D Academy","122872","Academy","Academy"]
["Milstead and Frinsted Church of England Primary School","120376","Academy","Academy"]
["Milton Court Primary School","123947","Academy","Academy"]
["Milton Keynes Academy, The","118892","Academy","Academy"]
["Milton Keynes Council","E0401","EngLocGov't","LocGov't"]
["Minehead Middle School","119774","Academy","Academy"]
["Minerva Primary Academy","121085","Academy","Academy"]
["Ministry of Defence","MOD017","CenGov't","CenGov't"]
["Ministry of Justice","LCD047","CenGov't","CenGov't"]
["Ministry of Justice: Judicial Pensions Scheme","JPS908","CenGov't","CenGov't"]
["Minsthorpe Community College","120011","Academy","Academy"]
["Mirfield Free Grammar and Sixth Form, The","119643","Academy","Academy"]
["Mirus Academy, The","120274","Academy","Academy"]
["Mitton Manor Primary School",127725,"Academy","Academy"]
["Mole Valley District Council","E3634","EngLocGov't","LocGov't"]
["Molehill Copse Primary School","121174","Academy","Academy"]
["Monitor - Independent Regulator of NHS Foundation Trusts","MIR033","CenGov't","CenGov't"]
["Monk's Walk School","122506","Academy","Academy"]
["Monkton Infants' School","123068","Academy","Academy"]
["Monkton Junior School","120763","Academy","Academy"]
["Monkwearmouth School",129441,"Academy","Academy"]
["Montacute School","120286","Academy","Academy"]
["Monteclefe Church of England VA Junior School","122181","Academy","Academy"]
["Montem Primary School",126341,"Academy","Academy"]
["Monteney Primary School","122646","Academy","Academy"]
["Montgomery High School","121827","Academy","Academy"]
["Montgomery Primary Academy","122298","Academy","Academy"]
["Montsaye Community College","120049","Academy","Academy"]
["Moor End Technology College","120016","Academy","Academy"]
["Moor Green Primary","122924","Academy","Academy"]
["Moorcroft School","121020","Academy","Academy"]
["Moorlands CofE Voluntary Controlled Primary School",124696,"Academy","Academy"]
["Moorside Community Primary Academy School","123811","Academy","Academy"]
["Mordiford CofE Primary School",122598,"Academy","Academy"]
["Moredon Primary School",121861,"Academy","Academy"]
["Morgan's Vale and Woodfalls Church of England Voluntary Aided Primary School","124566","Academy","Academy"]
["Morley Academy","119424","Academy","Academy"]
["Morpeth Chantry Middle School","120712","Academy","Academy"]
["Morpeth Newminster Middle School","120670","Academy","Academy"]
["Mosaic Jewish Primary School","123339","Academy","Academy"]
["Moseley Park","120977","Academy","Academy"]
["Mosley Primary School","122512","Academy","Academy"]
["Mossbourne Community Academy","119080","Academy","Academy"]
["Mottram St Andrew Primary School","119607","Academy","Academy"]
["Moulsham High School and Humanities College","119863","Academy","Academy"]
["Moulsham Infant School","119830","Academy","Academy"]
["Moulsham Junior School","121180","Academy","Academy"]
["Moulton School and Science College","120662","Academy","Academy"]
["Mount Grace High School - Hinckley","122510","Academy","Academy"]
["Mount Grace School - Potters Bar","120224","Academy","Academy"]
["Mount Hawke Academy","119635","Academy","Academy"]
["Mount Pellon Junior and Infant School","121898","Academy","Academy"]
["Mount Street Academy","120627","Academy","Academy"]
["Mountbatten School, The","119642","Academy","Academy"]
["Mountfields Lodge School","122694","Academy","Academy"]
["Mountford Manor Primary School","121903","Academy","Academy"]
["Mounts Bay School","119873","Academy","Academy"]
["Mowden Infants' School","122168","Academy","Academy"]
["Mowden Junior School","122070","Academy","Academy"]
["Murrow Primary School","124410","Academy","Academy"]
["Murton Community Primary School","122347","Academy","Academy"]
["Museum of London","E5105","EngLocGov't","LocGov't"]
["Museum of Science and Industry in Manchester","MSI048","CenGov't","CenGov't"]
["Museums, Libraries and Archives Council","RCM048","CenGov't","CenGov't"]
["Myton School","119900","Academy","Academy"]
["Nailsea School","122737","Academy","Academy"]
["Nanaksar Primary School","123325","Academy","Academy"]
["Nansen Primary School","122484","Academy","Academy"]
["Nansloe Community Primary School","120684","Academy","Academy"]
["NAS Thames Valley School, The","123399","Academy","Academy"]
["National Archives","PRO067","CenGov't","CenGov't"]
["National Archives of Scotland","NAS075","CenGov't","CenGov't"]
["National Army Museum","NAM017","CenGov't","CenGov't"]
["National Church of England Junior School, The - Grantham","122359","Academy","Academy"]
["National College (NC)","NCS022","DfE Family","DfE Family"]
["National College for Teaching and Leadership (NCTL)","DES022e","DfE Family","DfE Family"]
["National Employment Savings Trust","NST032","CenGov't","CenGov't"]
["National Endowment for Science, Technology and the Arts","NES084","CenGov't","CenGov't"]
["National Galleries of Scotland","NGS075","CenGov't","CenGov't"]
["National Gallery","NGL048","CenGov't","CenGov't"]
["National Health Service Pension Scheme","NHP903","CenGov't","CenGov't"]
["National Heritage Memorial Fund","NHF048","CenGov't","CenGov't"]
["National Insurance Fund","NIF822","CenGov't","CenGov't"]
["National Library of Scotland","NLS075","CenGov't","CenGov't"]
["National Library of Wales","NLW090","CenGov't","CenGov't"]
["National Loans Fund","NLF888","CenGov't","CenGov't"]
["National Lottery Distribution Fund","NLD048","CenGov't","CenGov't"]
["National Lottery: UKSC Lottery","NLL048","CenGov't","CenGov't"]
["National Maritime Museum","NMM048","CenGov't","CenGov't"]
["National Museum of Science and Industry","NMS048","CenGov't","CenGov't"]
["National Museums and Galleries of Northern Ireland","NMN202","CenGov't","CenGov't"]
["National Museums and Galleries of Wales","NMW090","CenGov't","CenGov't"]
["National Museums Liverpool","NMG048","CenGov't","CenGov't"]
["National Museums of Scotland","NMU075","CenGov't","CenGov't"]
["National Policing Improvement Agency","PIA034","CenGov't","CenGov't"]
["National Portrait Gallery","NPG048","CenGov't","CenGov't"]
["National Savings and Investments","DNS049","CenGov't","CenGov't"]
["National School of Government","NSG062","CenGov't","CenGov't"]
["National School, The A CofE Technology College","120159","Academy","Academy"]
["Natural England","NEN003","CenGov't","CenGov't"]
["Natural Environment Research Council","NER084","CenGov't","CenGov't"]
["Natural History Museum","NHM048","CenGov't","CenGov't"]
["Neale-Wade Academy, The","122936","Academy","Academy"]
["Neasden Primary School",124775,"Academy","Academy"]
["Nechells Junior and Infant School","122258","Academy","Academy"]
["Nelson Academy, The - Downham Market",127386,"Academy","Academy"]
["Nelson Primary School - Whitton",126481,"Academy","Academy"]
["Nene Infant School, The",125026,"Academy","Academy"]
["Nene Park","120082","Academy","Academy"]
["Neston High School","121828","Academy","Academy"]
["Nethergate School","121026","Academy","Academy"]
["Nethersole CofE Primary School, The","122486","Academy","Academy"]
["Netherthorpe School","120700","Academy","Academy"]
["Nettleham Infant School, The","122698","Academy","Academy"]
["New Bridge School","121914","Academy","Academy"]
["New Campus Basildon Studio School","123390","Academy","Academy"]
["New Chapter Primary School","119938","Academy","Academy"]
["New Charter Academy","118628","Academy","Academy"]
["New Forest Academy","122253","Academy","Academy"]
["New Forest District Council","E1738","EngLocGov't","LocGov't"]
["New Forest National Park Authority","E6409","EngLocGov't","LocGov't"]
["New Islington Free School","123326","Academy","Academy"]
["New Line Learning Academy","119073","Academy","Academy"]
["New Monument School","123877","Academy","Academy"]
["New North Academy","119939","Academy","Academy"]
["New Penshaw Academy","123943","Academy","Academy"]
["New Rickstones Academy","118667","Academy","Academy"]
["New Road Primary School",127443,"Academy","Academy"]
["New Seaham Primary School","122264","Academy","Academy"]
["New Waltham Academy","120768","Academy","Academy"]
["Newark Academy, The","122307","Academy","Academy"]
["Newark and Sherwood District Council","E3036","EngLocGov't","LocGov't"]
["Newbottle Primary School",127708,"Academy","Academy"]
["Newbridge High School","122107","Academy","Academy"]
["Newcastle upon Tyne City Council","E4502","EngLocGov't","LocGov't"]
["Newcastle-under-Lyme Borough Council","E3434","EngLocGov't","LocGov't"]
["Newent Community School and Sixth Form Centre","114738","Academy","Academy"]
["Newham - LGPS","LG051","LGPS","LocGov't"]
["Newham London Borough Council","E5045","EngLocGov't","LocGov't"]
["Newington Primary School","121850","Academy","Academy"]
["Newlands Primary School - Ramsgate","121947","Academy","Academy"]
["Newlands School - Southwark","126464","Academy","Academy"]
["Newlands Spring Primary School - Chelmsford","122104","Academy","Academy"]
["Newnham Primary School","124327","Academy","Academy"]
["Newport Community School","120012","Academy","Academy"]
["Newport Free Grammar School","122136","Academy","Academy"]
["Newport Girls' High School Academy Trust","119605","Academy","Academy"]
["Newquay Junior School","119407","Academy","Academy"]
["Newquay Tretherras","119593","Academy","Academy"]
["Newstead Primary School",124632,"Academy","Academy"]
["Newstead Wood School","119582","Academy","Academy"]
["Newton Abbot College","120124","Academy","Academy"]
["Newton Ferrers Church of England Primary School","120476","Academy","Academy"]
["Newton Regis CofE Primary School","123247","Academy","Academy"]
["Nicholas Breakspear Catholic School","121182","Academy","Academy"]
["Nicholas Chamberlaine Technology College","124658","Academy","Academy"]
["Nicholas Hamond Academy, The","122493","Academy","Academy"]
["Nicholas Hawksmoor Primary School","119480","Academy","Academy"]
["Nightingale Academy","119229","Academy","Academy"]
["Nine Maidens Short Stay School","122704","Academy","Academy"]
["Ninestiles School","119291","Academy","Academy"]
["Nishkam Primary School","120502","Academy","Academy"]
["Nishkam School Trust","122052","Academy","Academy"]
["Nishkam School West London","123327","Academy","Academy"]
["Noadswood School","120125","Academy","Academy"]
["Noel Park Primary Academy","121950","Academy","Academy"]
["Nonsuch High School for Girls","119772","Academy","Academy"]
["Norbreck Primary Academy","122169","Academy","Academy"]
["Norbridge Primary School","120105","Academy","Academy"]
["Norbury Manor Business and Enterprise College for Girls","120706","Academy","Academy"]
["Norfolk County Council","E2620","EngLocGov't","LocGov't"]
["Norfolk County Council - LGPS","LG052","LGPS","LocGov't"]
["Norfolk Police Authority","E6026","EngLocGov't","LocGov't"]
["North Birmingham Academy","119143","Academy","Academy"]
["North Cambridge Academy","123938","Academy","Academy"]
["North Cornwall Short Stay School","122703","Academy","Academy"]
["North Devon District Council","E1134","EngLocGov't","LocGov't"]
["North Dorset District Council","E1234","EngLocGov't","LocGov't"]
["North Durham Academy, The","119929","Academy","Academy"]
["North East Derbyshire District Council","E1038","EngLocGov't","LocGov't"]
["North East Lincolnshire Council","E2003","EngLocGov't","LocGov't"]
["North East Wolverhampton Academy","119237","Academy","Academy"]
["North Eastern Education and Library Board - Northern Ireland","NEE203","CenGov't","CenGov't"]
["North Halifax Grammar School, The","119786","Academy","Academy"]
["North Hertfordshire District Council","E1935","EngLocGov't","LocGov't"]
["North Hykeham Ling Moor Primary School","122378","Academy","Academy"]
["North Kesteven District Council","E2534","EngLocGov't","LocGov't"]
["North Kesteven School","119870","Academy","Academy"]
["North Leverton CofE Primary School","120728","Academy","Academy"]
["North Lincolnshire Council","E2004","EngLocGov't","LocGov't"]
["North Liverpool Academy","118629","Academy","Academy"]
["North London Waste Authority","E6205","EngLocGov't","LocGov't"]
["North Norfolk District Council","E2635","EngLocGov't","LocGov't"]
["North Ormesby Primary School","122833","Academy","Academy"]
["North Oxfordshire Academy","118908","Academy","Academy"]
["North Shore Academy","119210","Academy","Academy"]
["North Somerset Council","E0104","EngLocGov't","LocGov't"]
["North Thoresby Primary School","123823","Academy","Academy"]
["North Town Primary School","120126","Academy","Academy"]
["North Tyneside Metropolitan Borough Council","E4503","EngLocGov't","LocGov't"]
["North Warwickshire Borough Council","E3731","EngLocGov't","LocGov't"]
["North West Leicestershire District Council","E2437","EngLocGov't","LocGov't"]
["North West Regional Development Agency","NWD084","CenGov't","CenGov't"]
["North York Moors National Park Authority","E6404","EngLocGov't","LocGov't"]
["North Yorkshire County Council","E2721","EngLocGov't","LocGov't"]
["North Yorkshire County Council - LGPS","LG053","LGPS","LocGov't"]
["North Yorkshire Fire and Rescue Authority","E6127","EngLocGov't","LocGov't"]
["North Yorkshire Police Authority","E6027","EngLocGov't","LocGov't"]
["Northampton Academy","118399","Academy","Academy"]
["Northampton Borough Council","E2835","EngLocGov't","LocGov't"]
["Northampton School for Boys","119246","Academy","Academy"]
["Northampton School for Girls",124176,"Academy","Academy"]
["Northamptonshire County Council","E2820","EngLocGov't","LocGov't"]
["Northamptonshire County Council - LGPS","LG054","LGPS","LocGov't"]
["Northamptonshire Police Authority","E6028","EngLocGov't","LocGov't"]
["North-County Primary School, The","124222","Academy","Academy"]
["Northdown Primary School","122517","Academy","Academy"]
["Northern House School","122146","Academy","Academy"]
["Northern Ireland Authority for Utility Regulation","REG212","CenGov't","CenGov't"]
["Northern Ireland Blood Transfusion Service","BTS208","CenGov't","CenGov't"]
["Northern Ireland Consolidated Fund","NCF843","CenGov't","CenGov't"]
["Northern Ireland Council for the Curriculum, Examinations and Assessment","CEA203","CenGov't","CenGov't"]
["Northern Ireland Fire and Rescue Service","FIA208","CenGov't","CenGov't"]
["Northern Ireland Fishery Harbour Authority","FHA201","CenGov't","CenGov't"]
["Northern Ireland Legal Services Commission","ILS081","CenGov't","CenGov't"]
["Northern Ireland Library Authority","NLY202","CenGov't","CenGov't"]
["Northern Ireland Local Government Officers Superannuation Committee","NIL206","CenGov't","CenGov't"]
["Northern Ireland Medical and Dental Training Agency","PMD208","CenGov't","CenGov't"]
["Northern Ireland National Insurance Fund","IIF848","CenGov't","CenGov't"]
["Northern Ireland Office","NIO097","CenGov't","CenGov't"]
["Northern Ireland Policing Board","NIP097","CenGov't","CenGov't"]
["Northern Ireland Screen Commission","NIS202","CenGov't","CenGov't"]
["Northern Ireland Tourist Board","NTB204","CenGov't","CenGov't"]
["Northgate Primary School","122109","Academy","Academy"]
["Northgate School Arts College","120135","Academy","Academy"]
["Northumberland Church of England Academy","118897","Academy","Academy"]
["Northumberland County Council - LGPS","LG055","LGPS","LocGov't"]
["Northumberland Heath Primary School","119947","Academy","Academy"]
["Northumberland National Park Authority","E6405","EngLocGov't","LocGov't"]
["Northumberland Unitary Authority","E2901","EngLocGov't","LocGov't"]
["Northumbria Police Authority","E6045","EngLocGov't","LocGov't"]
["Northwood Primary School","124066","Academy","Academy"]
["Northwood School","120877","Academy","Academy"]
["Norton Canes Academy",129553,"Academy","Academy"]
["Norton College","119743","Academy","Academy"]
["Norton Hill School","119292","Academy","Academy"]
["Norton Knatchbull School, The","121028","Academy","Academy"]
["Norton Primary Academy",127309,"Academy","Academy"]
["Norwich City Council","E2636","EngLocGov't","LocGov't"]
["Norwich Road Academy","124318","Academy","Academy"]
["Norwood Green Junior School","124313","Academy","Academy"]
["Notley Green Primary School","122074","Academy","Academy"]
["Notley High School","120013","Academy","Academy"]
["Notre Dame High School - Norwich","121105","Academy","Academy"]
["Notre Dame High School - Sheffield","121460","Academy","Academy"]
["Nottingham Academy","118893","Academy","Academy"]
["Nottingham City Council","E3001","EngLocGov't","LocGov't"]
["Nottingham Emmanuel School, The","123817","Academy","Academy"]
["Nottingham Girls' Academy","120184","Academy","Academy"]
["Nottingham University Samworth Academy","118852","Academy","Academy"]
["Nottinghamshire and City of Nottingham Fire and Rescue Authority","E6130","EngLocGov't","LocGov't"]
["Nottinghamshire County Council","E3021","EngLocGov't","LocGov't"]
["Nottinghamshire County Council - LGPS","LG056","LGPS","LocGov't"]
["Nottinghamshire Police Authority","E6030","EngLocGov't","LocGov't"]
["Nova Hreod Academy",121084,"Academy","Academy"]
["Nower Hill High School","120028","Academy","Academy"]
["Nuclear Decommissioning Authority","NDA066","CenGov't","CenGov't"]
["Nuclear Liabilities Fund","NUL066","CenGov't","CenGov't"]
["Nuneaton Academy","119230","Academy","Academy"]
["Nuneaton and Bedworth Borough Council","E3732","EngLocGov't","LocGov't"]
["Nunnery Wood High School","120051","Academy","Academy"]
["Nunthorpe School","122721","Academy","Academy"]
["Nyland School","121900","Academy","Academy"]
["Oadby and Wigston Borough Council","E2438","EngLocGov't","LocGov't"]
["Oak Academy - Bournemouth","123089","Academy","Academy"]
["Oak Bank School",124078,"Academy","Academy"]
["Oak Tree Primary School, The","124161","Academy","Academy"]
["Oak Wood Primary School","124142","Academy","Academy"]
["Oak Wood Secondary School","124146","Academy","Academy"]
["Oakbank School","121997","Academy","Academy"]
["Oakefield Primary and Nursery School - Crewe",124762,"Academy","Academy"]
["Oakfield Primary School - Rugby","122866","Academy","Academy"]
["Oakfield School - Frome","119970","Academy","Academy"]
["Oakgrove School","119509","Academy","Academy"]
["Oakhill Primary Academy","120577","Academy","Academy"]
["Oaklands Catholic School","120377","Academy","Academy"]
["Oaklands Primary School, The","122954","Academy","Academy"]
["Oakley Vale Primary School","124135","Academy","Academy"]
["Oaks Academy - Maidstone","122237","Academy","Academy"]
["Oaks Primary School, The","122130","Academy","Academy"]
["Oaktree School, The","123873","Academy","Academy"]
["Oakwood Academy - Eccles","120825","Academy","Academy"]
["Oakwood High School - Rotherham",127503,"Academy","Academy"]
["Oakwood Park Grammar School","119728","Academy","Academy"]
["Oakwood Primary Academy - Eastbourne","122020","Academy","Academy"]
["Oakwood Primary School - Leeds","122639","Academy","Academy"]
["Oasis Academy Aspinal","124752","Academy","Academy"]
["Oasis Academy Bank Leaze","122246","Academy","Academy"]
["Oasis Academy Blakenhale Infants","122788","Academy","Academy"]
["Oasis Academy Blakenhale Junior School","122847","Academy","Academy"]
["Oasis Academy Boulton","122839","Academy","Academy"]
["Oasis Academy Brightstowe","118668","Academy","Academy"]
["Oasis Academy Byron","122111","Academy","Academy"]
["Oasis Academy Connaught","121855","Academy","Academy"]
["Oasis Academy Coulsdon","119122","Academy","Academy"]
["Oasis Academy Enfield","118630","Academy","Academy"]
["Oasis Academy Foundry",124160,"Academy","Academy"]
["Oasis Academy Hadley","119085","Academy","Academy"]
["Oasis Academy Harpur Mount","122044","Academy","Academy"]
["Oasis Academy Henderson Avenue","122321","Academy","Academy"]
["Oasis Academy Hextable","124336","Academy","Academy"]
["Oasis Academy Hobmoor","122838","Academy","Academy"]
["Oasis Academy Immingham","118631","Academy","Academy"]
["Oasis Academy Johanna","120349","Academy","Academy"]
["Oasis Academy John Williams","118671","Academy","Academy"]
["Oasis Academy Limeside","120369","Academy","Academy"]
["Oasis Academy Lister Park","124211","Academy","Academy"]
["Oasis Academy Long Cross",124602,"Academy","Academy"]
["Oasis Academy Longmeadow","122884","Academy","Academy"]
["Oasis Academy Lord's Hill","119120","Academy","Academy"]
["Oasis Academy Mayfield","119121","Academy","Academy"]
["Oasis Academy MediaCityUK","118669","Academy","Academy"]
["Oasis Academy New Oak","121199","Academy","Academy"]
["Oasis Academy Nunsthorpe","120947","Academy","Academy"]
["Oasis Academy Oldham","119153","Academy","Academy"]
["Oasis Academy Parkwood","122849","Academy","Academy"]
["Oasis Academy Pinewood",125027,"Academy","Academy"]
["Oasis Academy Shirley Park","119141","Academy","Academy"]
["Oasis Academy Short Heath","122853","Academy","Academy"]
["Oasis Academy Skinner Street","122664","Academy","Academy"]
["Oasis Academy South Bank","123328","Academy","Academy"]
["Oasis Academy Wintringham","118637","Academy","Academy"]
["Oasis Academy Woodview","122890","Academy","Academy"]
["Ockendon School, The","119409","Academy","Academy"]
["Ocker Hill Junior School","124123","Academy","Academy"]
["Offa's Mead Primary School","122243","Academy","Academy"]
["Office for National Statistics","ONS005","CenGov't","CenGov't"]
["Office for Standards in Education, Children's Services and Skills","OIS022","CenGov't","CenGov't"]
["Office of Fair Trading","OFT074","CenGov't","CenGov't"]
["Office of Gas and Electricity Markets","OGE020","CenGov't","CenGov't"]
["Office of Rail Regulation","ORR088","CenGov't","CenGov't"]
["Office of the Children's Commissioner","DES022d","DfE Family","DfE Family"]
["Office of the First Minister and Deputy First Minister - Northern Ireland","OFM211","CenGov't","CenGov't"]
["Office of the Information Commissioner","OIC047","CenGov't","CenGov't"]
["Old Basford Primary and Nursery School","122672","Academy","Academy"]
["Old Clee Primary School","124184","Academy","Academy"]
["Old Cleeve CofE School, Washford","124606","Academy","Academy"]
["Old Dalby Church of England Primary School","124067","Academy","Academy"]
["Old Earth Primary School","120445","Academy","Academy"]
["Old Ford Primary School","122994","Academy","Academy"]
["Old Priory Junior Academy","120729","Academy","Academy"]
["Oldbury College of Sport","120610","Academy","Academy"]
["Oldershaw Academy, The","119895","Academy","Academy"]
["Oldfield School","119483","Academy","Academy"]
["Oldham Academy North, The","119194","Academy","Academy"]
["Oldham Metropolitan Borough Council","E4204","EngLocGov't","LocGov't"]
["Oldknow Junior School","120428","Academy","Academy"]
["Olive School Blackburn, The","123359","Academy","Academy"]
["Olive School Hackney, The","123360","Academy","Academy"]
["Olive Tree Primary School Bolton, The","123361","Academy","Academy"]
["Olney Infant School","119765","Academy","Academy"]
["Olympic Delivery Authority","OLA048","CenGov't","CenGov't"]
["Olympic Lottery Distribution Fund","OLF048","CenGov't","CenGov't"]
["Olympic Lottery Distributor","OLD048","CenGov't","CenGov't"]
["Olympic Primary School","124309","Academy","Academy"]
["One In A Million Free School","121998","Academy","Academy"]
["One North East","NED084","CenGov't","CenGov't"]
["Onslow St Audrey's School","120806","Academy","Academy"]
["Open Academy","118673","Academy","Academy"]
["Orchard Meadow Primary School","122879","Academy","Academy"]
["Orchard School - Bristol","120948","Academy","Academy"]
["Orchard School - Milton Keynes","120963","Academy","Academy"]
["Orchard Vale Community School","120527","Academy","Academy"]
["Orchards Academy - Swanley","119368","Academy","Academy"]
["Orchards Primary Academy, The","124324","Academy","Academy"]
["Ordinary Deposit Account - National Savings","ODA888","CenGov't","CenGov't"]
["Ore Village Primary Academy","123949","Academy","Academy"]
["Oreston Community Academy","119411","Academy","Academy"]
["Oriel Primary School",125177,"Academy","Academy"]
["Orleans Park School","121910","Academy","Academy"]
["Ormesby School","122122","Academy","Academy"]
["Ormiston Bolingbroke Academy","119335","Academy","Academy"]
["Ormiston Bushfield Academy","118910","Academy","Academy"]
["Ormiston Denes Academy","120566","Academy","Academy"]
["Ormiston Endeavour Academy","120967","Academy","Academy"]
["Ormiston Forge Academy","120919","Academy","Academy"]
["Ormiston Herman Academy",125172,"Academy","Academy"]
["Ormiston Horizon Academy","119928","Academy","Academy"]
["Ormiston Ilkeston Academy","120253","Academy","Academy"]
["Ormiston Ilkeston Enterprise Academy","120109","Academy","Academy"]
["Ormiston Maritime Academy","120196","Academy","Academy"]
["Ormiston Meadows Academy",127191,"Academy","Academy"]
["Ormiston Park Academy","119036","Academy","Academy"]
["Ormiston Rivers Academy","120152","Academy","Academy"]
["Ormiston Sandwell Community Academy","119066","Academy","Academy"]
["Ormiston Sir Stanley Matthews Academy","119209","Academy","Academy"]
["Ormiston South Parade Academy","122265","Academy","Academy"]
["Ormiston Sudbury Academy","121009","Academy","Academy"]
["Ormiston Venture Academy","119338","Academy","Academy"]
["Ormiston Victory Academy","119339","Academy","Academy"]
["Ormiston Westergate Academy",125181,"Academy","Academy"]
["Ossett Academy","119473","Academy","Academy"]
["Otley Prince Henry's Grammar School Specialist Language College","120702","Academy","Academy"]
["Our Lady and St Benedict Catholic Primary School","123405","Academy","Academy"]
["Our Lady and St Edward's Catholic Primary School","120209","Academy","Academy"]
["Our Lady Immaculate Catholic Primary School","120790","Academy","Academy"]
["Our Lady of Good Counsel Catholic Primary School","124331","Academy","Academy"]
["Our Lady of Lincoln Catholic Primary School","124317","Academy","Academy"]
["Our Lady of Lourdes Catholic Primary School, Witney","124082","Academy","Academy"]
["Our Lady of Perpetual Succour Catholic Primary School","122348","Academy","Academy"]
["Our Lady of Pity Catholic Primary School",125264,"Academy","Academy"]
["Our Lady Roman Catholic Primary School","122399","Academy","Academy"]
["Our Lady's Catholic Primary School - Oxford","123876","Academy","Academy"]
["Our Lady's Catholic Primary School - Stoke",124634,"Academy","Academy"]
["Ousedale School","120052","Academy","Academy"]
["Outwood Academy - Adwick","119090","Academy","Academy"]
["Outwood Academy - Brumby","122932","Academy","Academy"]
["Outwood Academy - Kirkhamgate","122312","Academy","Academy"]
["Outwood Academy - Portland","120143","Academy","Academy"]
["Outwood Academy - Ripon","120447","Academy","Academy"]
["Outwood Academy Acklam","122305","Academy","Academy"]
["Outwood Grange Academy","119076","Academy","Academy"]
["Outwood Grange Academy Valley","120144","Academy","Academy"]
["Outwood Ledger Lane Junior and Infant School","122780","Academy","Academy"]
["Outwoods Edge Primary School","122669","Academy","Academy"]
["Over Hall Community School","124307","Academy","Academy"]
["Overhills Primary School",127277,"Academy","Academy"]
["Overthorpe Church of England Voluntary Controlled Junior, Infant and Nursery School","122973","Academy","Academy"]
["Overton Grange School","119779","Academy","Academy"]
["Owton Manor Primary School","124568","Academy","Academy"]
["Oxclose Community School","122983","Academy","Academy"]
["Oxford Academy, The","118674","Academy","Academy"]
["Oxford City Council","E3132","EngLocGov't","LocGov't"]
["Oxford Spires Academy","119438","Academy","Academy"]
["Oxfordshire County Council","E3120","EngLocGov't","LocGov't"]
["Oxfordshire County Council - LGPS","LG057","LGPS","LocGov't"]
["Oxley Park Primary School","119828","Academy","Academy"]
["Paddington Academy","118638","Academy","Academy"]
["Padstow School","120183","Academy","Academy"]
["Paignton Community and Sports College","122789","Academy","Academy"]
["Painsley Catholic College","122686","Academy","Academy"]
["Palace Fields Primary School","120301","Academy","Academy"]
["Palatine Community Sports College",124998,"Academy","Academy"]
["Palmer Catholic Academy, The","120088","Academy","Academy"]
["Palmer Primary Academy, The","123180","Academy","Academy"]
["Parbold Douglas Church of England Primary School","120127","Academy","Academy"]
["Parish Church of England Primary School","120741","Academy","Academy"]
["Park Hall Academy - Solihull","118922","Academy","Academy"]
["Park Hall Infant Academy - Walsall","119293","Academy","Academy"]
["Park Hall Junior School","120751","Academy","Academy"]
["Park High School","120075","Academy","Academy"]
["Park House School & Sports College","119729","Academy","Academy"]
["Park Lane (Foundation) Primary School, The",121061,"Academy","Academy"]
["Park Lane Primary School Nursery and Parents' Centre",124296,"Academy","Academy"]
["Park Primary School - Boston","123827","Academy","Academy"]
["Park Road Primary School - Altrincham","119393","Academy","Academy"]
["Park Road Primary School - Sale","124518","Academy","Academy"]
["Park School","124119","Academy","Academy"]
["Park View Business and Enterprise School","120743","Academy","Academy"]
["Park View Community School","119971","Academy","Academy"]
["Park View Primary Academy","122482","Academy","Academy"]
["Parkfield Community School - Saltley","122778","Academy","Academy"]
["Parkfield Primary School - Hendon","124343","Academy","Academy"]
["Parkfield School - Bournemouth","121999","Academy","Academy"]
["Parkland Primary School","122115","Academy","Academy"]
["Parklands High School","121171","Academy","Academy"]
["Parkroyal Community School",126541,"Academy","Academy"]
["Parks Academy The - Hull",124662,"Academy","Academy"]
["Parkside Community College","119655","Academy","Academy"]
["Parkside Primary Academy","122724","Academy","Academy"]
["Parkside Sports College","121093","Academy","Academy"]
["Parkside Studio College","122531","Academy","Academy"]
["Parkstone Grammar School","119399","Academy","Academy"]
["Parkwood Academy","119130","Academy","Academy"]
["Parmiter's School","119869","Academy","Academy"]
["Parson Street Primary School","122891","Academy","Academy"]
["Partnerships for Schools","PFS022","CenGov't","CenGov't"]
["Passmores Academy","120323","Academy","Academy"]
["Pastures Primary School, The - Narborough","123880","Academy","Academy"]
["Patchway Community College",124517,"Academy","Academy"]
["Pate's Grammar School","119380","Academy","Academy"]
["Paulsgrove Primary School","122635","Academy","Academy"]
["Peafield Lane Academy","127357","Academy","Academy"]
["Peak Academy","121883","Academy","Academy"]
["Peak District National Park Authority","E6406","EngLocGov't","LocGov't"]
["Peareswood Primary School","120329","Academy","Academy"]
["Peaslake Free School","123329","Academy","Academy"]
["Peatmoor Community Primary School",124131,"Academy","Academy"]
["Pebsham Community Primary School",124603,"Academy","Academy"]
["Peckover Primary School","124194","Academy","Academy"]
["Pegasus Primary School - Birmingham","123852","Academy","Academy"]
["Pegasus School - Oxford","123093","Academy","Academy"]
["Pelham Primary School","123912","Academy","Academy"]
["Pembroke Park Primary School","123850","Academy","Academy"]
["Pen Mill Infants' School","122745","Academy","Academy"]
["Penair School A Science College","119571","Academy","Academy"]
["Pencalenick School","120396","Academy","Academy"]
["Pendle Borough Council","E2338","EngLocGov't","LocGov't"]
["Penketh High School","123091","Academy","Academy"]
["Pennine Way Junior School","120511","Academy","Academy"]
["Penny Bridge CofE School",124983,"Academy","Academy"]
["Pennyman Primary School","122241","Academy","Academy"]
["Penrice Community College","119561","Academy","Academy"]
["Penryn College","119852","Academy","Academy"]
["Pensions Regulator","TPR032","CenGov't","CenGov't"]
["Penwith Short Stay School","122648","Academy","Academy"]
["Percy Shurmer Primary School","122090","Academy","Academy"]
["Perins School A Community Sports College","120128","Academy","Academy"]
["Perry Beeches 2 Free School","122185","Academy","Academy"]
["Perry Beeches III","128244","Academy","Academy"]
["Perry Beeches School","120050","Academy","Academy"]
["Perry Hall Primary School - Wednesfield","124207","Academy","Academy"]
["Perry Hall School - Orpington",126479,"Academy","Academy"]
["Perry Wood Primary and Nursery School","123088","Academy","Academy"]
["Pershore High School","119905","Academy","Academy"]
["Petchey Academy, The","118653","Academy","Academy"]
["Peterborough City Council","E0501","EngLocGov't","LocGov't"]
["Petersfield School, The","119857","Academy","Academy"]
["Petham Primary School","124764","Academy","Academy"]
["Pewsey Vale Specialist Arts College","119849","Academy","Academy"]
["Pheasant Bank Academy","120450","Academy","Academy"]
["Philip Morant School and College","120589","Academy","Academy"]
["Phoenix Junior Academy - Medway","121892","Academy","Academy"]
["Phoenix School, The - Grantham","120724","Academy","Academy"]
["Phoenix School, The - Telford","123888","Academy","Academy"]
["Pickhurst Infant School","120069","Academy","Academy"]
["Pickhurst Junior School","120070","Academy","Academy"]
["Piggott School, The","119891","Academy","Academy"]
["Pilgrims' Way Primary School and Nursery",120950,"Academy","Academy"]
["Pilton Community College","119867","Academy","Academy"]
["Pilton the Bluecoat Church of England Junior School","122351","Academy","Academy"]
["Pimlico Academy","118663","Academy","Academy"]
["Pimlico Primary","122038","Academy","Academy"]
["Pioneer School, The","122071","Academy","Academy"]
["Place Farm Primary Academy","120836","Academy","Academy"]
["Plains Farm Primary School","123942","Academy","Academy"]
["Plantsbrook School","120053","Academy","Academy"]
["Platanos College","119507","Academy","Academy"]
["Platt Bridge Community Primary School","123236","Academy","Academy"]
["Pluckley Church of England Primary School","120642","Academy","Academy"]
["Plumberow Primary School","120333","Academy","Academy"]
["Plume School","120904","Academy","Academy"]
["Plymouth City Council","E1101","EngLocGov't","LocGov't"]
["Plymouth School of Creative Arts","123330","Academy","Academy"]
["Plymstock School","119569","Academy","Academy"]
["Pochin School, THe","122406","Academy","Academy"]
["Pokesdown Community Primary School","123915","Academy","Academy"]
["Polesworth School, The","119512","Academy","Academy"]
["Police Ombudsman for Northern Ireland","PON097","CenGov't","CenGov't"]
["Police Pension Scheme - Northern Ireland Office","PPS912","CenGov't","CenGov't"]
["Police Service of Northern Ireland","PSN097","CenGov't","CenGov't"]
["Pontefract Carleton Park Junior and Infant School",124600,"Academy","Academy"]
["Pontefract De Lacy Primary School",124599,"Academy","Academy"]
["Pontefract Halfpenny Lane Junior Infant and Nursery School","123279","Academy","Academy"]
["Pontefract Larks Hill Junior and Infant School","123215","Academy","Academy"]
["Pontefract Orchard Head Junior and Infant School","123209","Academy","Academy"]
["Pool Academy","119590","Academy","Academy"]
["Poole (Borough of)","E1201","EngLocGov't","LocGov't"]
["Poole Grammar School","119850","Academy","Academy"]
["Porter Croft Sheffield Church of England Primary School","124347","Academy","Academy"]
["Portfield Primary Academy","121962","Academy","Academy"]
["Portland College - Sunderland","122328","Academy","Academy"]
["Portland School - Nottingham",124989,"Academy","Academy"]
["Portslade Aldridge Community Academy","119937","Academy","Academy"]
["Portsmouth Academy for Girls","123958","Academy","Academy"]
["Portsmouth City Council","E1701","EngLocGov't","LocGov't"]
["Portswood Primary School","121114","Academy","Academy"]
["Postal Services Commission","PSC006","CenGov't","CenGov't"]
["Potter Street Primary School","124618","Academy","Academy"]
["Powers Hall Junior School","124619","Academy","Academy"]
["Premier Academy, The","119259","Academy","Academy"]
["Prenton High School for Girls","120130","Academy","Academy"]
["Presdales School","121129","Academy","Academy"]
["President Kennedy School and Community College",124494,"Academy","Academy"]
["Preston City Council","E2339","EngLocGov't","LocGov't"]
["Preston CofE VC Primary School",124783,"Academy","Academy"]
["Preston Hedges Primary School","122505","Academy","Academy"]
["Preston Manor School","123910","Academy","Academy"]
["Preston School","119894","Academy","Academy"]
["Priestlands School","120129","Academy","Academy"]
["Primrose Hill CofE Primary",123261,"Academy","Academy"]
["Prince Henry's High school","119469","Academy","Academy"]
["Princes Risborough","120378","Academy","Academy"]
["Priors School, The","120470","Academy","Academy"]
["Priorslee Primary School","119439","Academy","Academy"]
["Priorswood Primary School","123890","Academy","Academy"]
["Priory Academy - Dunstable","121207","Academy","Academy"]
["Priory Academy LSST, The","118690","Academy","Academy"]
["Priory Academy Trust, The - Orpington","121934","Academy","Academy"]
["Priory Catholic Primary School Eastwood","121063","Academy","Academy"]
["Priory City of Lincoln Academy","118689","Academy","Academy"]
["Priory Community School","120300","Academy","Academy"]
["Priory Primary School - Hull",124766,"Academy","Academy"]
["Priory Primary School, The - Tadley","119463","Academy","Academy"]
["Priory Ruskin Academy, The","119334","Academy","Academy"]
["Priory School - Bury St Edmunds","120334","Academy","Academy"]
["Priory School, The - A Business and Enterprise College - Shrewsbury","121168","Academy","Academy"]
["Priory Sports and Technology College - Penwortham","121835","Academy","Academy"]
["Priory Witham Academy","118688","Academy","Academy"]
["Probation Board for Northern Ireland","PBN097","CenGov't","CenGov't"]
["Prospect School","119876","Academy","Academy"]
["Public Prosecution Service - Northern Ireland","PRS214","CenGov't","CenGov't"]
["Public Works Loans Board","PWL888","CenGov't","CenGov't"]
["Pulloxhill Lower School","120291","Academy","Academy"]
["Purbeck District Council","E1236","EngLocGov't","LocGov't"]
["Purfleet Primary School","123281","Academy","Academy"]
["Purford Green Primary School","124751","Academy","Academy"]
["Purston E-ACT Academy","120985","Academy","Academy"]
["Putnoe Primary School","123257","Academy","Academy"]
["Pyrcroft Grange Primary School",123763,"Academy","Academy"]
["Q3 Academy","118641","Academy","Academy"]
["Qualifications and Curriculum Development Agency","QCA022","CenGov't","CenGov't"]
["Quarry Hill Primary and Pre School","124321","Academy","Academy"]
["Quarrydale School","120944","Academy","Academy"]
["Quay School, The","122950","Academy","Academy"]
["Queen Eleanor Primary Academy, The","123905","Academy","Academy"]
["Queen Elizabeth Grammar School - Penrith","119730","Academy","Academy"]
["Queen Elizabeth Humanities College - Bromyard","120824","Academy","Academy"]
["Queen Elizabeth School - Kirby Lonsdale","119387","Academy","Academy"]
["Queen Elizabeth’s Grammar - Alford","119304","Academy","Academy"]
["Queen Elizabeth's Academy - Mansfield","121103","Academy","Academy"]
["Queen Elizabeth's Academy Trust - Crediton","119673","Academy","Academy"]
["Queen Elizabeth's Girls' School - Barnet","120131","Academy","Academy"]
["Queen Elizabeth's Grammar School - Ashbourne","119972","Academy","Academy"]
["Queen Elizabeth's Grammar School - Faversham","119566","Academy","Academy"]
["Queen Elizabeth's Grammar School - Horncastle","122791","Academy","Academy"]
["Queen Elizabeth's School - Barnet","119272","Academy","Academy"]
["Queen Katherine School, The","119629","Academy","Academy"]
["Queen Mary's Grammar School","119780","Academy","Academy"]
["Queen Mary's High School","119781","Academy","Academy"]
["Queens Church of England Academy",124671,"Academy","Academy"]
["Queen's Park Academy","119577","Academy","Academy"]
["Queens Park Community School","122740","Academy","Academy"]
["Queens Park Infant School","124136","Academy","Academy"]
["Queen's Park Junior School","122570","Academy","Academy"]
["Queens Road Academy","122844","Academy","Academy"]
["Queens' School","119877","Academy","Academy"]
["Queensbury Academy","121863","Academy","Academy"]
["Queensmead Community Primary School","122873","Academy","Academy"]
["Queensmead School","119731","Academy","Academy"]
["Queniborough Church of England Primary School","122369","Academy","Academy"]
["Quest Academy, The","119329","Academy","Academy"]
["Quethiock CofE VA School",129580,"Academy","Academy"]
["Quinta Primary School, The",127590,"Academy","Academy"]
["Quintin Kynaston School","120595","Academy","Academy"]
["RA Butler Infant School, The","119355","Academy","Academy"]
["RA Butler Junior School, The","119354","Academy","Academy"]
["Race Leys Junior School","122244","Academy","Academy"]
["Racemeadow Primary School",124654,"Academy","Academy"]
["Radcliffe Primary School",124288,"Academy","Academy"]
["Radford Primary School",126326,"Academy","Academy"]
["Raglan Primary School","121206","Academy","Academy"]
["Rainbow Primary","120320","Academy","Academy"]
["Rainham Mark Grammar School","119864","Academy","Academy"]
["Rainham School for Girls","119462","Academy","Academy"]
["Raleigh School, The","120014","Academy","Academy"]
["Ralph Allen School","122732","Academy","Academy"]
["Ralph Sadleir Middle School",121846,"Academy","Academy"]
["Ramnoth Junior School",125173,"Academy","Academy"]
["Ramsey Academy, Halstead, The","120966","Academy","Academy"]
["Ramsgate, Christ Church Church of England Junior School",122877,"Academy","Academy"]
["Ranelagh Church of England School","120267","Academy","Academy"]
["Range High School","120526","Academy","Academy"]
["Rastrick High School","120446","Academy","Academy"]
["Ratby Primary School","123085","Academy","Academy"]
["Ratton School","122093","Academy","Academy"]
["Rauceby Church of England Primary School","122082","Academy","Academy"]
["Ravens Academy","122937","Academy","Academy"]
["Ravens Wood School","119606","Academy","Academy"]
["Ravensbourne School, The","119670","Academy","Academy"]
["Ravensthorpe Infant and Nursery School",126480,"Academy","Academy"]
["Rawlett School, The","122358","Academy","Academy"]
["Rawlins Community College","114120","Academy","Academy"]
["Rawmarsh Sandhill Primary School",125201,"Academy","Academy"]
["Rayleigh Primary School Academy Trust, The","123174","Academy","Academy"]
["Raynsford VC Lower School","122508","Academy","Academy"]
["Reach Academy: Feltham","122007","Academy","Academy"]
["Reach Free School, The","123363","Academy","Academy"]
["Reach School","123410","Academy","Academy"]
["Reading Borough Council","E0303","EngLocGov't","LocGov't"]
["Reading School","119465","Academy","Academy"]
["Reaside Academy","122591","Academy","Academy"]
["Red Hill Field Primary School","123258","Academy","Academy"]
["Red House Academy","119144","Academy","Academy"]
["Redborne Upper School and Community College","119574","Academy","Academy"]
["Redbridge - LGPS","LG058","LGPS","LocGov't"]
["Redbridge London Borough Council","E5046","EngLocGov't","LocGov't"]
["Redby Primary School","120356","Academy","Academy"]
["Redcar and Cleveland Borough Council","E0703","EngLocGov't","LocGov't"]
["Redcar Community College","123071","Academy","Academy"]
["Redden Court School","120351","Academy","Academy"]
["Reddish Vale Technology College","120733","Academy","Academy"]
["Redditch Borough Council","E1835","EngLocGov't","LocGov't"]
["Redhill Academy","119386","Academy","Academy"]
["Redhill Foundation Primary School","121006","Academy","Academy"]
["Redhill School and Specialist Language College","123889","Academy","Academy"]
["Redland Green","122427","Academy","Academy"]
["Redmarley Church of England Primary School","120132","Academy","Academy"]
["Redmoor High School Academy Trust","121153","Academy","Academy"]
["Redriff Primary School","120878","Academy","Academy"]
["Redstart Primary School, The","119903","Academy","Academy"]
["Reedswood E-ACT Primary Academy","122033","Academy","Academy"]
["Reepham High School and College","122382","Academy","Academy"]
["Regency High School",125024,"Academy","Academy"]
["Regis Manor Community Primary School","119798","Academy","Academy"]
["Regis School, The","120908","Academy","Academy"]
["Regulation and Quality and Improvement Agency","RAI208","CenGov't","CenGov't"]
["Reid Street Primary School","119836","Academy","Academy"]
["Reigate and Banstead Borough Council","E3635","EngLocGov't","LocGov't"]
["Rendell Primary School","122562","Academy","Academy"]
["Research Councils Pension Scheme","RCP906","CenGov't","CenGov't"]
["Research Councils Shared Service Centre","SSC084","CenGov't","CenGov't"]
["Restormel PRU","122701","Academy","Academy"]
["Retford Oaks Academy","120117","Academy","Academy"]
["Reynolds Primary School","124663","Academy","Academy"]
["Ribble Valley Borough Council","E2340","EngLocGov't","LocGov't"]
["Ribston Hall High School","119782","Academy","Academy"]
["Richard Challoner School","120299","Academy","Academy"]
["Richard Hale School","120857","Academy","Academy"]
["Richard Rose Central Academy","118687","Academy","Academy"]
["Richard Rose Morton Academy","118691","Academy","Academy"]
["Richmond Hill Primary School",129570,"Academy","Academy"]
["Richmond Park Academy","119310","Academy","Academy"]
["Richmond upon Thames - LGPS","LG059","LGPS","LocGov't"]
["Richmond upon Thames Borough Council","E5047","EngLocGov't","LocGov't"]
["Richmondshire District Council","E2734","EngLocGov't","LocGov't"]
["Rickley Park Primary School","122608","Academy","Academy"]
["Rickmansworth School","119620","Academy","Academy"]
["Riddlesdown Collegiate","121932","Academy","Academy"]
["Ridge Academy, The","121882","Academy","Academy"]
["Ridgeway Middle School","122957","Academy","Academy"]
["Ridgeway Primary Academy - Market Harborough","122179","Academy","Academy"]
["Ridgeway Primary School - South Shields","123050","Academy","Academy"]
["Ridgeway School - Plymouth","119599","Academy","Academy"]
["Ridgeway School & Sixth Form College, The - Swindon","120160","Academy","Academy"]
["Ridgewood School","120553","Academy","Academy"]
["Rimon Jewish Primary School","121983","Academy","Academy"]
["Ringmer Academy","120232","Academy","Academy"]
["Ringwood School","119644","Academy","Academy"]
["Ripley St Thomas C of E High School","119732","Academy","Academy"]
["Risdene Academy (ex Newton Road Community Primary School)","124676","Academy","Academy"]
["River Bank Primary School","123332","Academy","Academy"]
["River Beach Primary School","124984","Academy","Academy"]
["Riverley Primary School",123192,"Academy","Academy"]
["Rivers Academy West London","120009","Academy","Academy"]
["Riverside Primary Academy - Gateshead","122345","Academy","Academy"]
["Riverside Primary School - Newbold","122862","Academy","Academy"]
["Riverside School - Barking","123355","Academy","Academy"]
["Riversides School - Worcester",127343,"Academy","Academy"]
["RNIB Three Spires Academy","124573","Academy","Academy"]
["Robert Bakewell Primary School and Community Centre",122742,"Academy","Academy"]
["Robert Bloomfield Academy","119733","Academy","Academy"]
["Robert Drake Primary School, The","120246","Academy","Academy"]
["Robert Fitzroy Academy","122747","Academy","Academy"]
["Robert May's School","120711","Academy","Academy"]
["Robert Napier Academy","121891","Academy","Academy"]
["Robert Owen Vocational School","123334","Academy","Academy"]
["Robert Smyth School, The","120161","Academy","Academy"]
["Robert Wilkinson Primary School",124206,"Academy","Academy"]
["Robin Hood Junior and Infant School",125260,"Academy","Academy"]
["Robinswood Primary School","119598","Academy","Academy"]
["Rochdale Borough Council","E4205","EngLocGov't","LocGov't"]
["Rochester Grammar School, The","119362","Academy","Academy"]
["Rochford District Council","E1540","EngLocGov't","LocGov't"]
["Rockingham Primary School","124646","Academy","Academy"]
["Rodborough Technology College","120019","Academy","Academy"]
["Rodbourne Cheney Primary School","121904","Academy","Academy"]
["Rodillian Academy, The","120842","Academy","Academy"]
["Roger Ascham Primary School","119391","Academy","Academy"]
["Rolph Church of England Primary School",129443,"Academy","Academy"]
["Romsey School, The","120239","Academy","Academy"]
["Rookeries Carleton Junior and Infant School: With Hearing Impairment Resource, The","123205","Academy","Academy"]
["Rookery School & Children's Centre","120168","Academy","Academy"]
["Rooks Heath High School","120198","Academy","Academy"]
["Rooks Nest Junior, Infant and Nursery School","120448","Academy","Academy"]
["Rosary Catholic Primary School, The","120419","Academy","Academy"]
["Rose Wood Academy",125009,"Academy","Academy"]
["Roseacre Primary Academy","122389","Academy","Academy"]
["Rosebery School","120707","Academy","Academy"]
["Rosedale College","120077","Academy","Academy"]
["Roseland Community College, The","119562","Academy","Academy"]
["Rosewood Free School","122535","Academy","Academy"]
["Rossendale Borough Council","E2341","EngLocGov't","LocGov't"]
["Rossett School","119896","Academy","Academy"]
["Rossington All Saints Academy","119754","Academy","Academy"]
["Rother District Council","E1436","EngLocGov't","LocGov't"]
["Rotherham Borough Council","E4403","EngLocGov't","LocGov't"]
["Rothley Church of England Primary School","122874","Academy","Academy"]
["Rothwell Junior School","124520","Academy","Academy"]
["Rothwell Victoria Infant School","124487","Academy","Academy"]
["Rough Hay Primary School","123864","Academy","Academy"]
["Round House Primary School, The","124377","Academy","Academy"]
["Roundhill Community College","121181","Academy","Academy"]
["Roundthorn Community Primary School","124672","Academy","Academy"]
["Roundwood Park School","119973","Academy","Academy"]
["Route 39 Academy","123335","Academy","Academy"]
["Rowanfield Junior School","120255","Academy","Academy"]
["Rowde Church of England Voluntary Aided Primary School","123123","Academy","Academy"]
["Rowena Nursery and Infant Academy","120608","Academy","Academy"]
["Royal Air Force Museum","RAF017","CenGov't","CenGov't"]
["Royal Armouries Museum","RAM048","CenGov't","CenGov't"]
["Royal Berkshire Fire Authority","E6103","EngLocGov't","LocGov't"]
["Royal Botanic Garden, Edinburgh","RBG075","CenGov't","CenGov't"]
["Royal Botanic Gardens, Kew","KEW003","CenGov't","CenGov't"]
["Royal County of Berkshire Pension Fund - LGPS","LG060","LGPS","LocGov't"]
["Royal Grammar School, The - High Wycombe","119484","Academy","Academy"]
["Royal Hospital, Chelsea","RHC017","CenGov't","CenGov't"]
["Royal Latin School","120501","Academy","Academy"]
["Royal Wootton Bassett Academy","119911","Academy","Academy"]
["Roydon Primary School",123936,"Academy","Academy"]
["Roysia Middle School","119949","Academy","Academy"]
["Royston Meadstead Primary School","122650","Academy","Academy"]
["Royston Summer Fields Primary School","122795","Academy","Academy"]
["RSA Academy, The - Tipton","118675","Academy","Academy"]
["Rudheath Community Primary School","123283","Academy","Academy"]
["Rugby Borough Council","E3733","EngLocGov't","LocGov't"]
["Rugby High School","119632","Academy","Academy"]
["Runnymede Borough Council","E3636","EngLocGov't","LocGov't"]
["Runwell Community Primary School","120054","Academy","Academy"]
["Rural Enterprise Academy, The","121970","Academy","Academy"]
["Rush Common School","121074","Academy","Academy"]
["Rush Croft Sports College","122667","Academy","Academy"]
["Rushcliffe Borough Council","E3038","EngLocGov't","LocGov't"]
["Rushcliffe School","122129","Academy","Academy"]
["Rushden Community College, The","123097","Academy","Academy"]
["Rushmoor Borough Council","E1740","EngLocGov't","LocGov't"]
["Rushton Primary School","124536","Academy","Academy"]
["Ruskin Junior School","122835","Academy","Academy"]
["Ruskington Chestnut Street Church of England Academy","121159","Academy","Academy"]
["Rustington Community Primary School","123883","Academy","Academy"]
["Rutherford House School","123291","Academy","Academy"]
["Rutland County Council","E2402","EngLocGov't","LocGov't"]
["Rydal Academy, The","123090","Academy","Academy"]
["Ryde Academy","119953","Academy","Academy"]
["Rydens School","120137","Academy","Academy"]
["Ryders Hayes Academy Trust","119594","Academy","Academy"]
["Rydon Primary School","120497","Academy","Academy"]
["Rye College","122385","Academy","Academy"]
["Rye Studio School","123391","Academy","Academy"]
["Ryecroft Primary School","122483","Academy","Academy"]
["Ryedale District Council","E2755","EngLocGov't","LocGov't"]
["Ryvers School","121829","Academy","Academy"]
["Sacred Heart Catholic Primary Academy - Sheffield",124631,"Academy","Academy"]
["Sacred Heart Catholic Primary School - Carlton","121090","Academy","Academy"]
["Sacred Heart Catholic Primary School - Leicester","121184","Academy","Academy"]
["Sacred Heart Catholic Primary School - Wakefield","122409","Academy","Academy"]
["Sacred Heart Catholic Primary School, The - Bradford","123818","Academy","Academy"]
["Sacred Heart Catholic Voluntary Academy","122496","Academy","Academy"]
["Sacred Heart High School - Hammersmith and Fulham","121110","Academy","Academy"]
["Sacred Heart High School - Newcastle-u-Tyne","120896","Academy","Academy"]
["Sacred Heart of Mary Girls' School","120233","Academy","Academy"]
["Sacred Heart RC Voluntary Aided Primary School","130129","Academy","Academy"]
["Sacred Heart Roman Catholic Secondary School - Southwark","121905","Academy","Academy"]
["Saffron Walden County High School","119783","Academy","Academy"]
["Saint Augustine Webster Catholic Academy","121826","Academy","Academy"]
["Saint Augustine's Catholic Primary School, The - Stamford","124332","Academy","Academy"]
["Saint Benedict Catholic School and Performing Arts College","122806","Academy","Academy"]
["Saint George's Church of England School","120624","Academy","Academy"]
["Saint Hugh's Catholic Primary School, The - Lincoln","124326","Academy","Academy"]
["Saint Joan of Arc Catholic School","121078","Academy","Academy"]
["Saint John Fisher Catholic Primary School - Wigston","121156","Academy","Academy"]
["Saint John Houghton Catholic School","121034","Academy","Academy"]
["Saint Martin's Catholic School - Stoke Golding","122402","Academy","Academy"]
["Saint Mary's Catholic Primary School - Loughborough","122362","Academy","Academy"]
["Saint Michael's Catholic High School","121157","Academy","Academy"]
["Saint Norbert's Catholic Primary School","121924","Academy","Academy"]
["Saint Winefride's Catholic Primary School - Shepshed","122364","Academy","Academy"]
["Salcombe Church of England Primary School","120475","Academy","Academy"]
["Sale Grammar School","119498","Academy","Academy"]
["Salendine Nook High School","120713","Academy","Academy"]
["Salford City Academy","118916","Academy","Academy"]
["Salford City Council","E4206","EngLocGov't","LocGov't"]
["Salmestone Primary School","122252","Academy","Academy"]
["Saltash.net Community School","119559","Academy","Academy"]
["Salterlee Primary School","120452","Academy","Academy"]
["Salvatorian Roman Catholic College","122500","Academy","Academy"]
["Sampford Peverell Church of England Primary School","120477","Academy","Academy"]
["Samuel Lister Academy, The","120923","Academy","Academy"]
["Samuel Ryder Academy, The","121015","Academy","Academy"]
["Samuel Ward Academy","119369","Academy","Academy"]
["Samuel Whitbread Community College","119952","Academy","Academy"]
["Samworth Church Academy","118654","Academy","Academy"]
["Samworth Enterprise Academy","119113","Academy","Academy"]
["Sandal Magna Community Academy","122938","Academy","Academy"]
["Sandbach High School and Sixth Form College","119374","Academy","Academy"]
["Sandbach School","120535","Academy","Academy"]
["Sandon School, The","120240","Academy","Academy"]
["Sandown Bay Academy","119927","Academy","Academy"]
["Sandringham School","119628","Academy","Academy"]
["Sandwell Academy","118639","Academy","Academy"]
["Sandwell Metropolitan Borough Council","E4604","EngLocGov't","LocGov't"]
["Sandwich Technology School","119370","Academy","Academy"]
["Sandy Hill Academy","119359","Academy","Academy"]
["Sandye Place Academy","119589","Academy","Academy"]
["Sandymoor School","122010","Academy","Academy"]
["Sarum Academy","119238","Academy","Academy"]
["Sawston Village College","119791","Academy","Academy"]
["Sawtry Community College","119974","Academy","Academy"]
["Saxmundham Free School, The","121971","Academy","Academy"]
["Saxon Primary Academy - Shepperton",124732,"Academy","Academy"]
["Saxon Way Primary School - Gillingham","124657","Academy","Academy"]
["Scarborough Borough Council","E2736","EngLocGov't","LocGov't"]
["Scartho Junior Academy","120769","Academy","Academy"]
["Scawby Academy","121056","Academy","Academy"]
["School 21","122021","Academy","Academy"]
["School Food Trust","STU022","CenGov't","CenGov't"]
["Science and Technology Facilities Council","STF084","CenGov't","CenGov't"]
["Scientia Academy","122807","Academy","Academy"]
["Scottish Arts Council","SAC075","CenGov't","CenGov't"]
["Scottish Childrens Reporter Administration","CRA075","CenGov't","CenGov't"]
["Scottish Commission for the Regulation of Care","SCR075","CenGov't","CenGov't"]
["Scottish Consolidated Fund","SCF842","CenGov't","CenGov't"]
["Scottish Enterprise","SEN075","CenGov't","CenGov't"]
["Scottish Environment Protection Agency","EPA075","CenGov't","CenGov't"]
["Scottish Funding Council","SFC075","CenGov't","CenGov't"]
["Scottish Government","SCT075","CenGov't","CenGov't"]
["Scottish Legal Aid Board","LAB075","CenGov't","CenGov't"]
["Scottish Natural Heritage","SNH075","CenGov't","CenGov't"]
["Scottish Police Services Authority","SPA075","CenGov't","CenGov't"]
["Scottish Public Pensions Agency","SNP914","CenGov't","CenGov't"]
["Scottish Qualifications Authority","SQA075","CenGov't","CenGov't"]
["Scottish Social Services Council","SSO075","CenGov't","CenGov't"]
["Scottish Teachers Pension Scheme","STP913","CenGov't","CenGov't"]
["Scout Road Primary School","120456","Academy","Academy"]
["SeaFish Industry Authority","SIA003","CenGov't","CenGov't"]
["Seaford Head School","122276","Academy","Academy"]
["Seal Primary Academy","121155","Academy","Academy"]
["Seaton Academy","119253","Academy","Academy"]
["Security and Intelligence Agencies","SIV007","CenGov't","CenGov't"]
["Security Industry Authority","SIY034","CenGov't","CenGov't"]
["Sedgemoor District Council","E3332","EngLocGov't","LocGov't"]
["Seer Green Church of England Combined School","122955","Academy","Academy"]
["Sefton Metropolitan Borough Council","E4304","EngLocGov't","LocGov't"]
["Selby District Council","E2757","EngLocGov't","LocGov't"]
["Sele School, The","120797","Academy","Academy"]
["Selling Church of England Primary School","120379","Academy","Academy"]
["Selsey Academy, The","120096","Academy","Academy"]
["Selwood Anglican/Methodist Middle School","120852","Academy","Academy"]
["Serious Fraud Office","SFO019","CenGov't","CenGov't"]
["Serious Organised Crime Agency","SOC034","CenGov't","CenGov't"]
["Serlby Park Academy","120141","Academy","Academy"]
["Settlebeck High School","120269","Academy","Academy"]
["Seven Fields Primary School","121851","Academy","Academy"]
["Sevenoaks District Council","E2239","EngLocGov't","LocGov't"]
["Severn Vale School","120298","Academy","Academy"]
["Severn View Primary Academy","122302","Academy","Academy"]
["Severnbanks Primary School","123216","Academy","Academy"]
["Severndale Specialist Academy",126347,"Academy","Academy"]
["Sexey's School","120313","Academy","Academy"]
["Seymour Primary School","122269","Academy","Academy"]
["Seymour Road Primary School","122638","Academy","Academy"]
["Shade Primary School, The","126497","Academy","Academy"]
["Shafton Primary School","122914","Academy","Academy"]
["Sharnbrook John Gibbard Lower School","123070","Academy","Academy"]
["Sharnbrook Upper School","119470","Academy","Academy"]
["Shatterlocks Infant School","122116","Academy","Academy"]
["Shaw Primary School","122985","Academy","Academy"]
["Shaw Ridge Primary School",124130,"Academy","Academy"]
["Shaw Wood Primary School","121125","Academy","Academy"]
["Sheffield City Council","E4404","EngLocGov't","LocGov't"]
["Sheffield Park Academy","118640","Academy","Academy"]
["Sheffield Springs Academy","118642","Academy","Academy"]
["Sheldon School","119550","Academy","Academy"]
["Sheldwich Primary School","120380","Academy","Academy"]
["Shelfield Community Academy","118909","Academy","Academy"]
["Shelley College","120454","Academy","Academy"]
["Shenfield High School","121067","Academy","Academy"]
["Shenley Academy","119086","Academy","Academy"]
["Shenley Brook End School","119734","Academy","Academy"]
["Shepherdswell School","122329","Academy","Academy"]
["Shepway District Council","E2240","EngLocGov't","LocGov't"]
["Sheringham High School and Sixth Form Centre","120646","Academy","Academy"]
["Sherwood E-ACT Academy","120936","Academy","Academy"]
["Sherwood Park Primary School",127459,"Academy","Academy"]
["Shibden Head Primary School","123251","Academy","Academy"]
["Shiphay Learning Academy","119675","Academy","Academy"]
["Shipston High School","120649","Academy","Academy"]
["Shire Oak Academy","119534","Academy","Academy"]
["Shirebrook Academy","119195","Academy","Academy"]
["Shireland Collegiate Academy","118644","Academy","Academy"]
["Shireland Hall Primary School","124361","Academy","Academy"]
["Shirestone Community Primary School","122556","Academy","Academy"]
["Shirley High School Performing Arts College","120742","Academy","Academy"]
["Shirley Infant School","122357","Academy","Academy"]
["Shirley Junior School","122595","Academy","Academy"]
["Shirley Manor Primary School","129417","Academy","Academy"]
["Shoeburyness High School","120634","Academy","Academy"]
["Shooters Hill Post-16 Campus","122727","Academy","Academy"]
["Shoreham Academy","119107","Academy","Academy"]
["Shrivenham Church of England Controlled School",124539,"Academy","Academy"]
["Shropshire and Wrekin Fire Authority","E6132","EngLocGov't","LocGov't"]
["Shropshire Unitary Authority","E3202","EngLocGov't","LocGov't"]
["Shropshire County Pension Fund - LGPS","LG061","LGPS","LocGov't"]
["Sidbury Church of England Primary School","120545","Academy","Academy"]
["Siddal Primary School","120564","Academy","Academy"]
["Sidney Stringer Academy","119196","Academy","Academy"]
["Signhills Academy","119975","Academy","Academy"]
["Signhills Infants' Academy","121175","Academy","Academy"]
["Sileby Redlands Community Primary School","122856","Academy","Academy"]
["Silver Springs Primary Academy","120951","Academy","Academy"]
["Silverdale Primary Academy - Newcastle",124664,"Academy","Academy"]
["Silverdale School - Sheffield","122404","Academy","Academy"]
["Silverstone UTC","122050","Academy","Academy"]
["Simon Balle School",121196,"Academy","Academy"]
["Simpson's Lane Academy","122161","Academy","Academy"]
["Sir Christopher Hatton School","121109","Academy","Academy"]
["Sir Harry Smith Community College","121151","Academy","Academy"]
["Sir Henry Floyd Grammar School","119845","Academy","Academy"]
["Sir Herbert Leon Academy","121894","Academy","Academy"]
["Sir Isaac Newton Sixth Form Free School","123337","Academy","Academy"]
["Sir John Gleed School","118043","Academy","Academy"]
["Sir John Lawes School","120270","Academy","Academy"]
["Sir John Leman High School","120055","Academy","Academy"]
["Sir Joseph Williamson's Mathematical School","119657","Academy","Academy"]
["Sir Robert Geffery's Voluntary Aided Church of England Primary School","120257","Academy","Academy"]
["Sir Robert Pattinson Academy","113716","Academy","Academy"]
["Sir Robert Woodard Academy","118898","Academy","Academy"]
["Sir Roger Manwood's School","119501","Academy","Academy"]
["Sir Thomas Fremantle School","123338","Academy","Academy"]
["Sir Thomas Rich's School","119297","Academy","Academy"]
["Sir Thomas Wharton Community College","122731","Academy","Academy"]
["Sir William Borlase's Grammar School","119757","Academy","Academy"]
["Sir William Burrough Primary School","120557","Academy","Academy"]
["Sir William Ramsay School","120256","Academy","Academy"]
["Sir William Robertson High School, The - Welbourn","122899","Academy","Academy"]
["Sir William Romney's School","119985","Academy","Academy"]
["Sir William Stanier Community School","123945","Academy","Academy"]
["Sirius Academy","119129","Academy","Academy"]
["Sittingbourne Academy","121053","Academy","Academy"]
["Skegness Academy","119332","Academy","Academy"]
["Skegness Grammar School, The","122110","Academy","Academy"]
["Skegness Infant Academy","122390","Academy","Academy"]
["Skegness Junior School","121189","Academy","Academy"]
["Skelton Primary School",126488,"Academy","Academy"]
["Skerne Park Primary School","122909","Academy","Academy"]
["Skills Development Scotland","SDS075","CenGov't","CenGov't"]
["Skinners' Academy","119204","Academy","Academy"]
["Skinners' Kent Academy","118899","Academy","Academy"]
["Skinners' School, The",129554,"Academy","Academy"]
["Skipton Girls' High School","119580","Academy","Academy"]
["Slade Junior and Infant School","121173","Academy","Academy"]
["Slough and Eton CofE Business and Enterprise College","120287","Academy","Academy"]
["Slough Borough Council","E0304","EngLocGov't","LocGov't"]
["Slough Grammar School","119440","Academy","Academy"]
["Smarden Primary School","120588","Academy","Academy"]
["Smestow School",128017,"Academy","Academy"]
["Smithills School",124749,"Academy","Academy"]
["Sneinton St Stephen's CofE Primary School","120681","Academy","Academy"]
["Soham Village College","119624","Academy","Academy"]
["Solihull Metropolitan Borough Council","E4605","EngLocGov't","LocGov't"]
["Somers Park Primary School","120292","Academy","Academy"]
["Somerset County Council","E3320","EngLocGov't","LocGov't"]
["Somerset County Council - LGPS","LG062","LGPS","LocGov't"]
["Somervale School","119298","Academy","Academy"]
["South Avenue Infant School",129435,"Academy","Academy"]
["South Avenue Junior School",127043,"Academy","Academy"]
["South Axholme Academy","120683","Academy","Academy"]
["South Benfleet Foundation Primary School","120029","Academy","Academy"]
["South Brent Primary School","120541","Academy","Academy"]
["South Bromsgrove Community High School",123303,"Academy","Academy"]
["South Bucks District Council","E0434","EngLocGov't","LocGov't"]
["South Cambridgeshire District Council","E0536","EngLocGov't","LocGov't"]
["South Charnwood High School","123276","Academy","Academy"]
["South Craven School","119735","Academy","Academy"]
["South Dartmoor Academy","119568","Academy","Academy"]
["South Derbyshire District Council","E1039","EngLocGov't","LocGov't"]
["South Downs National Park Authority","E6410","EngLocGov't","LocGov't"]
["South East England Development Agency","SED084","CenGov't","CenGov't"]
["South Eastern Education and Library Board - Northern Ireland","SEE203","CenGov't","CenGov't"]
["South Farnham School","119888","Academy","Academy"]
["South Gloucestershire Council","E0103","EngLocGov't","LocGov't"]
["South Hams District Council","E1136","EngLocGov't","LocGov't"]
["South Holland District Council","E2535","EngLocGov't","LocGov't"]
["South Hunsley School and Sixth Form College","119651","Academy","Academy"]
["South Kesteven District Council","E2536","EngLocGov't","LocGov't"]
["South Lakeland District Council","E0936","EngLocGov't","LocGov't"]
["South Leeds Academy","119092","Academy","Academy"]
["South Norfolk District Council","E2637","EngLocGov't","LocGov't"]
["South Northamptonshire Council","E2836","EngLocGov't","LocGov't"]
["South Nottinghamshire Academy","120112","Academy","Academy"]
["South Ossett Infant School","120616","Academy","Academy"]
["South Oxfordshire District Council","E3133","EngLocGov't","LocGov't"]
["South Ribble Borough Council","E2342","EngLocGov't","LocGov't"]
["South Somerset District Council","E3334","EngLocGov't","LocGov't"]
["South Staffordshire District Council","E3435","EngLocGov't","LocGov't"]
["South Tyneside Council","E4504","EngLocGov't","LocGov't"]
["South West Regional Development Agency","SWD084","CenGov't","CenGov't"]
["South Wigston High School","121037","Academy","Academy"]
["South Wiltshire Grammar School for Girls","119401","Academy","Academy"]
["South Wolds Academy & Sixth Form, The","121854","Academy","Academy"]
["South Wolverhampton and Bilston Academy","119088","Academy","Academy"]
["South Yorkshire Fire and Civil Defence Authority","E6144","EngLocGov't","LocGov't"]
["South Yorkshire Integrated Transport Authority","E6344","EngLocGov't","LocGov't"]
["South Yorkshire Integrated Transport Pension Fund - LGPS","LG063","LGPS","LocGov't"]
["South Yorkshire Pension Authority - LGPS","LG064","LGPS","LocGov't"]
["South Yorkshire Police Authority","E6044","EngLocGov't","LocGov't"]
["Southampton City Council","E1702","EngLocGov't","LocGov't"]
["Southampton Studio School","123392","Academy","Academy"]
["Southborough High School","120679","Academy","Academy"]
["Southbroom St James Academy",124299,"Academy","Academy"]
["Southend High School for Boys","119452","Academy","Academy"]
["Southend High School for Girls","119454","Academy","Academy"]
["Southend YMCA Community School","123411","Academy","Academy"]
["Southend-on-Sea Borough Council","E1501","EngLocGov't","LocGov't"]
["Southern Education and Library Board - Northern Ireland","SEB203","CenGov't","CenGov't"]
["Southey Green Community Primary School and Nurseries","122787","Academy","Academy"]
["Southfield Junior School","120398","Academy","Academy"]
["Southfield Primary School","122355","Academy","Academy"]
["Southfield School - Bradford","120573","Academy","Academy"]
["Southfield School for Girls - Kettering","119976","Academy","Academy"]
["Southfields Community College","122705","Academy","Academy"]
["Southlands Lower School","122268","Academy","Academy"]
["Southminster Church of England (Controlled) Primary School",123120,"Academy","Academy"]
["Southmoor Academy","121955","Academy","Academy"]
["Southwark - LGPS","LG065","LGPS","LocGov't"]
["Southwark Free School","122022","Academy","Academy"]
["Southwark London Borough Council","E5019","EngLocGov't","LocGov't"]
["Southwark Primary School","120272","Academy","Academy"]
["Southwater Infant School","119866","Academy","Academy"]
["Southwater Junior School","119865","Academy","Academy"]
["Southway Primary School","121973","Academy","Academy"]
["Spalding Grammar School","123875","Academy","Academy"]
["Sparkwell All Saints Primary School","123340","Academy","Academy"]
["Spelthorne Borough Council","E3637","EngLocGov't","LocGov't"]
["Spires Academy","119115","Academy","Academy"]
["Sponne School","119488","Academy","Academy"]
["Sport England","SPE048","CenGov't","CenGov't"]
["Sport England Lottery","SEL048","CenGov't","CenGov't"]
["Sport Scotland","SPS075","CenGov't","CenGov't"]
["Sports Council for Northern Ireland","SCN202","CenGov't","CenGov't"]
["Sports Council for Northern Ireland Lottery Distribution Account","SNL851","CenGov't","CenGov't"]
["Sports Council for Wales","SCW090","CenGov't","CenGov't"]
["Spring Cottage Primary School",124260,"Academy","Academy"]
["Spring Lane Primary School","122171","Academy","Academy"]
["Springbank Primary Academy","120194","Academy","Academy"]
["Springfield Academy - Darlington","120659","Academy","Academy"]
["Springfield Primary School - Sunbury-on-Thames",124349,"Academy","Academy"]
["Springfields Academy - Calne","120399","Academy","Academy"]
["Springhill Catholic Primary School","120293","Academy","Academy"]
["Springhill Primary Academy",129419,"Academy","Academy"]
["Springwell Dene School","123155","Academy","Academy"]
["Springwood High School","119604","Academy","Academy"]
["St Agatha's Catholic Primary School","121033","Academy","Academy"]
["St Aidan's Catholic Primary School - Ilford",127207,"Academy","Academy"]
["St Aidan's Catholic School - Ashbrooke","124239","Academy","Academy"]
["St Aidan's Church of England Academy","119117","Academy","Academy"]
["St Alban's Academy","119134","Academy","Academy"]
["St Alban's Catholic High School","121003","Academy","Academy"]
["St Alban's Catholic Primary School","120056","Academy","Academy"]
["St Albans City and District Council","E1936","EngLocGov't","LocGov't"]
["St Albans Girls' School","120335","Academy","Academy"]
["St Aldhelm's Academy","119348","Academy","Academy"]
["St Ambrose College","120533","Academy","Academy"]
["St Andrew the Apostle Greek Orthodox School","123341","Academy","Academy"]
["St Andrew's Church of England Primary School","124991","Academy","Academy"]
["St Andrew's CofE Primary School","121858","Academy","Academy"]
["St Anne's Academy","118645","Academy","Academy"]
["St Anne's Catholic School","122697","Academy","Academy"]
["St Ann's Catholic Primary Academy - Sheffield",125202,"Academy","Academy"]
["St Ann's CofE Primary School","123204","Academy","Academy"]
["St Anns Well Primary School","120631","Academy","Academy"]
["St Anselm's College","119778","Academy","Academy"]
["St Anthony's Catholic Girls' School","121140","Academy","Academy"]
["St Anthony's Catholic Primary School - Fareham","120381","Academy","Academy"]
["St Anthony's Catholic Primary School - Manchester","123869","Academy","Academy"]
["St Anthony's School","123342","Academy","Academy"]
["St Augustine Academy - Maidstone","119943","Academy","Academy"]
["St Augustine of Canterbury CE Primary School - Belvedere","122918","Academy","Academy"]
["St Augustine's Academy - Dunstable","122165","Academy","Academy"]
["St Augustine's Catholic College - Darlington","124088","Academy","Academy"]
["St Augustine's Catholic College - Trowbridge","120403","Academy","Academy"]
["St Augustine's RC (A) Primary School",124652,"Academy","Academy"]
["St Barnabas CofE Academy","120957","Academy","Academy"]
["St Bartholomew’s Church of England Primary School - Coventry","123806","Academy","Academy"]
["St Bartholomew's School - Newbury","120402","Academy","Academy"]
["St Bede Academy - Bolton","119889","Academy","Academy"]
["St Bede's Catholic Academy - Stockton-on-Tees",127917,"Academy","Academy"]
["St Bede's Catholic College - Bristol","120562","Academy","Academy"]
["St Bede's Catholic Comprehensive School and Sixth Form College - Lanchester","122144","Academy","Academy"]
["St Bede's Catholic Primary School - Rotherham","124191","Academy","Academy"]
["St Bede's Catholic Voluntary Academy - Scunthorpe","121200","Academy","Academy"]
["St Bede's Inter-Church School","121102","Academy","Academy"]
["St Bede's RC Primary School - Darlington","122352","Academy","Academy"]
["St Benedict's Catholic Primary School","122365","Academy","Academy"]
["St Bernadette's Catholic Primary Voluntary Academy","121925","Academy","Academy"]
["St Bernard's Catholic High School","122062","Academy","Academy"]
["St Bernard's High School and Arts College","120312","Academy","Academy"]
["St Birinus School","122729","Academy","Academy"]
["St Blasius Shanklin CofE Primary Academy","123808","Academy","Academy"]
["St Breock Primary School","120142","Academy","Academy"]
["St Buryan Primary School","119254","Academy","Academy"]
["St Catherine of Siena Catholic Primary School","122511","Academy","Academy"]
["St Catherine's Catholic Primary School - Swindon","122138","Academy","Academy"]
["St Catherine's Catholic School for Girls","119931","Academy","Academy"]
["St Catherine's Primary School - Sheffield",125002,"Academy","Academy"]
["St Chad's Catholic Primary School","124484","Academy","Academy"]
["St Chad's Church of England Primary School",122166,"Academy","Academy"]
["St Christopher School, The","121050","Academy","Academy"]
["St Christopher's Church of England School - Cowley",127580,"Academy","Academy"]
["St Christophers Lower School","120726","Academy","Academy"]
["St Clare's Catholic Primary School","124555","Academy","Academy"]
["St Clare's Primary School - A Catholic Voluntary Academy","122497","Academy","Academy"]
["St Clement Danes School","119859","Academy","Academy"]
["St Clement's Church of England Academy","122108","Academy","Academy"]
["St Clement's High School",129411,"Academy","Academy"]
["St Clere's School","120440","Academy","Academy"]
["St Columb Major Community Primary School","119822","Academy","Academy"]
["St Columb Minor School","119823","Academy","Academy"]
["St Columba Church of England Primary Academy","121948","Academy","Academy"]
["St Columba's Catholic Boys' School","121201","Academy","Academy"]
["St Cuthbert's Church of England Infants School","120858","Academy","Academy"]
["St Cuthbert's High School","121035","Academy","Academy"]
["St Cyprian's Greek Orthodox Primary School","121191","Academy","Academy"]
["St David's School","120856","Academy","Academy"]
["St Dominic's Catholic Primary School","120407","Academy","Academy"]
["St Dunstan's Community School","120202","Academy","Academy"]
["St Eanswythe's Church of England Primary School","123048","Academy","Academy"]
["St Edmund Campion Catholic Primary School","120273","Academy","Academy"]
["St Edmunds Catholic School - Wolverhampton","125005","Academy","Academy"]
["St Edmund's Church of England Girls' School and Sports College","120611","Academy","Academy"]
["St Edmund's Roman Catholic Primary School","120397","Academy","Academy"]
["St Edmundsbury Borough Council","E3535","EngLocGov't","LocGov't"]
["St Edward's Church of England School & Sixth Form College","120145","Academy","Academy"]
["St Edward's CofE (VA) Junior High School","122913","Academy","Academy"]
["St Edward's College","119736","Academy","Academy"]
["St Filumena's Catholic Primary School","122657","Academy","Academy"]
["St Francis Xavier's College","122503","Academy","Academy"]
["St George and St Martin's Catholic Primary School","123406","Academy","Academy"]
["St George RC School - Westminster","121849","Academy","Academy"]
["St Georges Academy - Birmingham","123415","Academy","Academy"]
["St George's Academy - Sleaford","119012","Academy","Academy"]
["St George's Catholic Primary School - Derby","122691","Academy","Academy"]
["St George's Church of England Academy - Birmingham","123197","Academy","Academy"]
["St George's CofE Junior and Infant School","123045","Academy","Academy"]
["St George's CofE Primary School - Plymouth","124802","Academy","Academy"]
["St George's CofE VA Primary School - Darlington","121844","Academy","Academy"]
["St George's School - Harpenden","120807","Academy","Academy"]
["St Gerard's Catholic Primary School","124186","Academy","Academy"]
["St Giles Catholic Primary School","122659","Academy","Academy"]
["St Giles CofE (VA) J&I - Pontefract",127247,"Academy","Academy"]
["St Gregory the Great VA Catholic Secondary School","124075","Academy","Academy"]
["St Gregory's Catholic Comprehensive School","123235","Academy","Academy"]
["St Gregory's Catholic Middle School","123183","Academy","Academy"]
["St Gregory's Catholic Primary School - Longton",124638,"Academy","Academy"]
["St Gregory's Catholic Primary School - Stockton-on-Tees","124074","Academy","Academy"]
["St Helena School","121048","Academy","Academy"]
["St Helen's Catholic Junior School","119977","Academy","Academy"]
["St Helens Metropolitan Borough Council","E4303","EngLocGov't","LocGov't"]
["St Helen's Primary Academy","122596","Academy","Academy"]
["St Hilary School","119824","Academy","Academy"]
["St Ignatius Catholic Primary School","122332","Academy","Academy"]
["St Ives Infant School","120412","Academy","Academy"]
["St Ivo School","120305","Academy","Academy"]
["St James' Church of England Voluntary Aided Primary School - Rochester","121953","Academy","Academy"]
["St James Church School - Taunton","123119","Academy","Academy"]
["St James' Roman Catholic Primary School","121465","Academy","Academy"]
["St James the Great Academy - East Maling","121099","Academy","Academy"]
["St James the Great RC Primary and Nursery School","121461","Academy","Academy"]
["St John and St Francis Church School","123098","Academy","Academy"]
["St John Fisher and Thomas More Catholic Primary School","123848","Academy","Academy"]
["St John Fisher Catholic Primary Academy - Sheffield",124138,"Academy","Academy"]
["St John Fisher Catholic Primary School - Alvaston","122133","Academy","Academy"]
["St John Fisher Catholic Primary School - Littlemore","124083","Academy","Academy"]
["St John Plessington Catholic College","122865","Academy","Academy"]
["St John Rigby Catholic Primary School","123150","Academy","Academy"]
["St John Roman Catholic Primary School","122573","Academy","Academy"]
["St John the Evangelist Catholic Primary","123362","Academy","Academy"]
["St John's and St Peter's Church of England Academy","122798","Academy","Academy"]
["St John's Catholic School & Sixth Form Centre","120831","Academy","Academy"]
["St John's Church of England Primary School - Coleford","122688","Academy","Academy"]
["St John's Church of England Primary School - Darlington","121906","Academy","Academy"]
["St John's Church of England Primary School - Dorking",123099,"Academy","Academy"]
["St John's Church of England Primary School - Maidstone","120672","Academy","Academy"]
["St John's CofE (VA) Primary School - Brighouse","120493","Academy","Academy"]
["St John's CofE Foundation Middle School - Bromsgrove","123250","Academy","Academy"]
["St John's CofE Primary School - Birmingham","122106","Academy","Academy"]
["St John's CofE Primary School - Radstock",123245,"Academy","Academy"]
["St John's CofE VA Primary School - Rishworth","122722","Academy","Academy"]
["St John's Marlborough","111443","Academy","Academy"]
["St John's Primary Academy - Bracebridge Heath","120809","Academy","Academy"]
["St John's Primary School - Wallingford","123907","Academy","Academy"]
["St John's Primary School - Woking",127095,"Academy","Academy"]
["St John's School - Bedford","120336","Academy","Academy"]
["St Joseph's Catholic Academy - Hebburn","124633","Academy","Academy"]
["St Joseph's Catholic College - Swindon","119980","Academy","Academy"]
["St Joseph's Catholic Lower School","123152","Academy","Academy"]
["St Joseph's Catholic Primary Academy - Doncaster",127180,"Academy","Academy"]
["St Joseph's Catholic Primary School - Aldershot","120382","Academy","Academy"]
["St Joseph's Catholic Primary School - Carterton","124056","Academy","Academy"]
["St Joseph's Catholic Primary School - Castleford","122349","Academy","Academy"]
["St Joseph's Catholic Primary School - Devizes","120413","Academy","Academy"]
["St Joseph's Catholic Primary School - Dinnington",127307,"Academy","Academy"]
["St Joseph's Catholic Primary School - Dudley","124442","Academy","Academy"]
["St Joseph's Catholic Primary School - Goldenhill","123400","Academy","Academy"]
["St Joseph's Catholic Primary School - Moorthorpe",129425,"Academy","Academy"]
["St Joseph's Catholic Primary School - Otley","123824","Academy","Academy"]
["St Joseph's Catholic Primary School - Pudsey","123861","Academy","Academy"]
["St Joseph's Catholic Primary School - Sheffield","123230","Academy","Academy"]
["St Joseph's Catholic Primary School - Thame","124099","Academy","Academy"]
["St Joseph's Catholic Primary School - Uttoxeter","122834","Academy","Academy"]
["St Joseph's Catholic Primary School - Wakefield","122403","Academy","Academy"]
["St Joseph's Catholic Primary School, Broadstairs","124290","Academy","Academy"]
["St Joseph's Catholic Primary Voluntary Academy","121864","Academy","Academy"]
["St Joseph's Catholic Voluntary Academy - Leicester","121124","Academy","Academy"]
["St Joseph's Catholic Voluntary Academy - Leicestershire","121177","Academy","Academy"]
["St Joseph's College - Croydon","121138","Academy","Academy"]
["St Joseph's College Edmund Rice Trust Academy","119510","Academy","Academy"]
["St Josephs RC Primary School - Sutton Coldfield",123901,"Academy","Academy"]
["St Jude's Church of England Primary School","127323","Academy","Academy"]
["St Keverne Community Primary School","126520","Academy","Academy"]
["St Laurence in Thanet Church of England Junior School","122870","Academy","Academy"]
["St Laurence School - Bradford-on-Avon","120057","Academy","Academy"]
["St Laurence's CofE Primary School - Coventry","123851","Academy","Academy"]
["St Lawrence Academy, The - Scunthorpe","119124","Academy","Academy"]
["St Lawrence CofE Primary School - Hassocks","124523","Academy","Academy"]
["St Leonards Academy, The","119431","Academy","Academy"]
["St Leonards CE Primary Academy","120621","Academy","Academy"]
["St Louis Roman Catholic Primary School","124098","Academy","Academy"]
["St Loys Church of England Primary School, Weedon Lois","123874","Academy","Academy"]
["St Luke’s Church of England School","120536","Academy","Academy"]
["St Luke's Catholic Primary School","124522","Academy","Academy"]
["St Mabyn CofE School","123065","Academy","Academy"]
["St Margaret Clitherow Catholic Primary School","121059","Academy","Academy"]
["St Margaret Ward Catholic School and Arts College","123311","Academy","Academy"]
["St Margaret's Academy","119671","Academy","Academy"]
["St Margaret's Church of England High School","122342","Academy","Academy"]
["St Maria Goretti Catholic Primary School",124616,"Academy","Academy"]
["St Marie's Catholic Primary School","122671","Academy","Academy"]
["St Mark's Catholic School","121095","Academy","Academy"]
["St Mark's Church of England Academy","118646","Academy","Academy"]
["St Mark's West Essex Catholic School","120058","Academy","Academy"]
["St Martin in the Fields High School for Girls","121874","Academy","Academy"]
["St Martin-in-Meneage Community Primary School","126523","Academy","Academy"]
["St Martin's Academy Chester","123343","Academy","Academy"]
["St Martin's CofE Primary School - Liskeard",124485,"Academy","Academy"]
["St Martin's School - Brentwood","119875","Academy","Academy"]
["St Mary and St John Catholic Primary School","124666","Academy","Academy"]
["St Mary Magdalene Academy","118670","Academy","Academy"]
["St Mary Magdalene Academy: the Courtyard","123398","Academy","Academy"]
["St Mary Roman Catholic Primary School","122600","Academy","Academy"]
["St Marychurch Church of England Primary and Nursery School","130165","Academy","Academy"]
["St Marylebone Church of England Bridge School, The","123401","Academy","Academy"]
["St Marylebone CofE School, The","120352","Academy","Academy"]
["St Mary's (Melton Mowbray) Church of England Primary School","123149","Academy","Academy"]
["St Mary's Catholic Comprehensive School","124614","Academy","Academy"]
["St Mary's Catholic Comprehensive School - Menston","123825","Academy","Academy"]
["St Mary's Catholic High School - Chesterfield","122513","Academy","Academy"]
["St Mary's Catholic Primary Academy - High Green",124623,"Academy","Academy"]
["St Mary's Catholic Primary School - Gloucester","120031","Academy","Academy"]
["St Mary's Catholic Primary School - Horsforth","123819","Academy","Academy"]
["St Mary's Catholic Primary School - Leek","122793","Academy","Academy"]
["St Mary's Catholic Primary School - Maidenhead","124344","Academy","Academy"]
["St Mary's Catholic Primary School - Maltby","124189","Academy","Academy"]
["St Mary's Catholic Primary School - Nottingham","122379","Academy","Academy"]
["St Mary's Catholic Primary School - Rotherham","124182","Academy","Academy"]
["St Marys Catholic Primary School - Stoke-on-Trent","123403","Academy","Academy"]
["St Mary's Catholic Primary School - Swindon","120147","Academy","Academy"]
["St Mary's Catholic Primary School Voluntary Academy - Grimsby","123168","Academy","Academy"]
["St Mary's Catholic Primary Voluntary Academy - Brigg","121463","Academy","Academy"]
["St Mary's CE Academy - Stotfold","120814","Academy","Academy"]
["St Mary's CE Primary School - Dilwyn","123344","Academy","Academy"]
["St Mary's Church of England High School (VA)","121232","Academy","Academy"]
["St Mary's Church of England Junior School - Norwich","120311","Academy","Academy"]
["St Mary's Church of England Middle School - Puddletown","121942","Academy","Academy"]
["St Mary's Church of England Primary School - Burton Latimer","123064","Academy","Academy"]
["St Mary's Church of England Voluntary Aided Primary School - Barnsley","120549","Academy","Academy"]
["St Mary's Church of England Voluntary Aided Primary School - Bury St Edmunds","120337","Academy","Academy"]
["St Mary's Church of England Voluntary Aided Primary School - Kettering","123112","Academy","Academy"]
["St Mary's Church of England Voluntary Aided Primary School - Shenfield","124535","Academy","Academy"]
["St Mary's CofE Aided Primary School",125176,"Academy","Academy"]
["St Mary's CofE Junior and Infant School","121135","Academy","Academy"]
["St Mary's Hampton Church of England School","123345","Academy","Academy"]
["St Matthew Academy","119114","Academy","Academy"]
["St Matthew's Church of England Primary School - Stockport",123908,"Academy","Academy"]
["St Matthews CofE (A) Primary School - Stoke-on-Trent",123353,"Academy","Academy"]
["St Matthew's CofE Primary School - West Drayton","123166","Academy","Academy"]
["St Matthias Church of England Primary School","120185","Academy","Academy"]
["St Merryn School","120635","Academy","Academy"]
["St Mewan Community Primary School","120414","Academy","Academy"]
["St Michael and All Angels Church of England (Aided) Primary School","122412","Academy","Academy"]
["St Michael and All Angels CofE - Southwark","118647","Academy","Academy"]
["St Michael C of E High School","119893","Academy","Academy"]
["St Michael’s Academy - Yeovil","122689","Academy","Academy"]
["St Michael’s CE Junior & Infants","121118","Academy","Academy"]
["St Michael's Catholic Academy - Billingham","123955","Academy","Academy"]
["St Michael's Catholic College - Bermondsey","121843","Academy","Academy"]
["St Michael's Catholic Primary School - Wolverhampton","125007","Academy","Academy"]
["St Michael's Catholic Secondary School - Camborne","122024","Academy","Academy"]
["St Michael's Church of England Aided Primary School - Birmingham","122771","Academy","Academy"]
["St Michael's Church of England VA Primary School - Exeter","124291","Academy","Academy"]
["St Michael's CofE Primary School - Haringey","123207","Academy","Academy"]
["St Michael's Voluntary Controlled Church of England Primary School - Helston",124524,"Academy","Academy"]
["St Newlyn East Primary School","123021","Academy","Academy"]
["St Nicholas Catholic Primary School - Exeter","123948","Academy","Academy"]
["St Nicholas Catholic Primary School - Sutton Coldfield",123913,"Academy","Academy"]
["St Nicholas' CofE Primary - Alcester","122175","Academy","Academy"]
["St Nicholas of Tolentine Catholic Primary School","122858","Academy","Academy"]
["St Nicolas' CE Combined School Taplow","120946","Academy","Academy"]
["St Nicolas' CofE VA School - Downderry",124525,"Academy","Academy"]
["St Osmund's Church of England Voluntary Aided Middle School - Dorcester","121933","Academy","Academy"]
["St Oswald's CofE Academy - Doncaster","122277","Academy","Academy"]
["St Oswald's CofE Primary School - Bradford","122245","Academy","Academy"]
["St Patrick's Catholic Primary and Nursery School - Nottingham","124148","Academy","Academy"]
["St Patrick's Catholic Primary School - Bristol","122411","Academy","Academy"]
["St Patrick's Catholic Primary School - Sheffield","123237","Academy","Academy"]
["St Patrick's CofE Junior and Infant School - Solihull","119372","Academy","Academy"]
["St Paul's Academy - Greenwich","119110","Academy","Academy"]
["St Paul's and All Hallows CofE Infant School","123202","Academy","Academy"]
["St Paul's and All Hallows CofE Junior School","123208","Academy","Academy"]
["St Paul's Catholic High School - Manchester","123866","Academy","Academy"]
["St Paul's CofE Primary School - Astley Bridge","122145","Academy","Academy"]
["St Paul's CofE Primary School - Hereford","121133","Academy","Academy"]
["St Peter and Paul Catholic Primary School - Yeadon","123826","Academy","Academy"]
["St Peter and St Paul Church of England Primary School","122380","Academy","Academy"]
["St Peter and St Paul, Lincoln's Catholic High School","124351","Academy","Academy"]
["St Peter's Academy - Stoke-on-Trent","119936","Academy","Academy"]
["St Peter's Catholic High School and Sixth Form Centre","119982","Academy","Academy"]
["St Peter's Catholic Primary School","123402","Academy","Academy"]
["St Peter's Catholic School - Bournemouth","120421","Academy","Academy"]
["St Peter's Church of England First School","127243","Academy","Academy"]
["St Peter's Church of England Junior School - Wellingborough",127147,"Academy","Academy"]
["St Peter's Church of England Primary School","123044","Academy","Academy"]
["St Peter's Collegiate Church of England School","122401","Academy","Academy"]
["St Peter's School - Huntingdon","120248","Academy","Academy"]
["St Petroc's Church of England Voluntary Aided Primary School","123092","Academy","Academy"]
["St Simon and Jude CofE Primary School - Bolton","121845","Academy","Academy"]
["St Simon Stock Catholic School ",123872,"Academy","Academy"]
["St Stephen's Community Academy",129009,"Academy","Academy"]
["St Stephen's Junior School","119415","Academy","Academy"]
["St Teresa's Catholic Primary School - Basildon",124577,"Academy","Academy"]
["St Teresa's Catholic Primary School - Bristol","122864","Academy","Academy"]
["St Teresa's Catholic Primary School - Colchester","122421","Academy","Academy"]
["St Teresa's Catholic Primary School - Nottingham","122361","Academy","Academy"]
["St Teresa's Catholic Primary School - Parkfield","125011","Academy","Academy"]
["St Thomas A Becket Catholic College - Wakefield","122353","Academy","Academy"]
["St Thomas Becket Catholic Primary School - Croydon","122730","Academy","Academy"]
["St Thomas Cantilupe Church of England Academy",125145,"Academy","Academy"]
["St Thomas' Catholic Primary School - Stoke-on-Trent","122673","Academy","Academy"]
["St Thomas More Catholic College - Longton",125000,"Academy","Academy"]
["St Thomas More Catholic High School - Crewe","123812","Academy","Academy"]
["St Thomas More Catholic Primary School - Kidlington","124073","Academy","Academy"]
["St Thomas More Catholic Primary School - Leicester","121185","Academy","Academy"]
["St Thomas More Catholic Primary School - Saffron Walden","120281","Academy","Academy"]
["St Thomas More Catholic School - Gateshead","120513","Academy","Academy"]
["St Thomas More Catholic School - Haringey","123203","Academy","Academy"]
["St Thomas More Catholic Teaching School","123184","Academy","Academy"]
["St Thomas More High School for Boys","120310","Academy","Academy"]
["St Thomas More Roman Catholic High School Aided","120865","Academy","Academy"]
["St Thomas More Roman Catholic Primary School - Letchworth","122400","Academy","Academy"]
["St Thomas More's Catholic Primary School - Colchester","120324","Academy","Academy"]
["St Thomas of Canterbury Catholic Primary School","122514","Academy","Academy"]
["St Tudy CofE VA Primary School","123057","Academy","Academy"]
["St Ursula’s E-ACT Academy","120468","Academy","Academy"]
["St Wilfrid's Catholic High School and Sixth Form College","122334","Academy","Academy"]
["St Wilfrid's Catholic Primary School - Sheffield","122712","Academy","Academy"]
["St Wilfrid's Catholic Primary School - Tunstall","123287","Academy","Academy"]
["St Wilfrid's Cof E High School and Technology College.","119872","Academy","Academy"]
["St Winnow CofE School","123164","Academy","Academy"]
["St. Aidan's Church of England High School","120139","Academy","Academy"]
["St. Augustine’s Catholic Primary & Nursery School","120956","Academy","Academy"]
["St. John the Baptist Catholic Primary School","122330","Academy","Academy"]
["Stafford Borough Council","E3436","EngLocGov't","LocGov't"]
["Stafford Leys Community Primary School","121946","Academy","Academy"]
["Staffordshire County Council","E3421","EngLocGov't","LocGov't"]
["Staffordshire County Council - LGPS","LG066","LGPS","LocGov't"]
["Staffordshire Moorlands District Council","E3437","EngLocGov't","LocGov't"]
["Staffordshire Police Authority","E6034","EngLocGov't","LocGov't"]
["Staffordshire University Academy","120164","Academy","Academy"]
["Staindrop School A Business and Enterprise College","120234","Academy","Academy"]
["Stamford Queen Eleanor School","120687","Academy","Academy"]
["Stamford St Gilberts Church of England Primary School","123217","Academy","Academy"]
["Stanborough School","120664","Academy","Academy"]
["Stanchester Community School","120080","Academy","Academy"]
["Standards and Testing Agency (STA)","DES022c","DfE Family","DfE Family"]
["Standish St Wilfrid's CofE Primary School","124557","Academy","Academy"]
["Stanford-le-Hope Primary School","123879","Academy","Academy"]
["Stanground Academy","120991","Academy","Academy"]
["Stanground St John's Church of England Primary School",125178,"Academy","Academy"]
["Staniland Academy","121139","Academy","Academy"]
["Stanley Green Infant School",127673,"Academy","Academy"]
["Stanley Grove Academy","120962","Academy","Academy"]
["Stanton Under Bardon Community Primary School",123270,"Academy","Academy"]
["Stanway School, The","121062","Academy","Academy"]
["Stapeley Broad Lane CofE Primary School","124197","Academy","Academy"]
["Star Academy","121119","Academy","Academy"]
["Staunton and Corse Church of England Primary School","120149","Academy","Academy"]
["Steiner Academy - Exeter","123346","Academy","Academy"]
["Steiner Academy - Frome","121981","Academy","Academy"]
["Steiner Academy, The - Hereford","119118","Academy","Academy"]
["Stem 6th Form Academy","123347","Academy","Academy"]
["Stephenson Academy","120965","Academy","Academy"]
["Stephenson Studio School","120459","Academy","Academy"]
["Stephenson Way Community Primary School","122790","Academy","Academy"]
["Stevenage Borough Council","E1937","EngLocGov't","LocGov't"]
["Stewards School - Harlow","120498","Academy","Academy"]
["Stewart Fleming Primary School","120035","Academy","Academy"]
["Stisted Church of England Voluntary Aided Primary School","120560","Academy","Academy"]
["Stockland Church of England Primary School","120417","Academy","Academy"]
["Stockland Green School","119993","Academy","Academy"]
["Stockley Academy","118400","Academy","Academy"]
["Stockport Academy","118648","Academy","Academy"]
["Stockport Metropolitan Borough Council","E4207","EngLocGov't","LocGov't"]
["Stockport Technical School","123348","Academy","Academy"]
["Stockton-on-Tees Borough Council","E0704","EngLocGov't","LocGov't"]
["Stoke Bishop Church of England Primary School","123225","Academy","Academy"]
["Stoke Damerel Community College","119541","Academy","Academy"]
["Stoke High School - Ormiston Academy",124773,"Academy","Academy"]
["Stoke Lodge Primary School",124739,"Academy","Academy"]
["Stoke Studio College for Construction and the Built Environment","122526","Academy","Academy"]
["Stoke Studio College for Manufacturing and Design Engineering","123393","Academy","Academy"]
["Stoke-on-Trent and Staffordshire Fire Authority","E6134","EngLocGov't","LocGov't"]
["Stoke-on-Trent City Council","E3401","EngLocGov't","LocGov't"]
["Stone Soup Learns","122803","Academy","Academy"]
["Stone with Woodford Church of England Primary School","124598","Academy","Academy"]
["Stonebow Primary School - Loughborough","122675","Academy","Academy"]
["Stoneleigh Primary School","121958","Academy","Academy"]
["Stour Valley Community School","120537","Academy","Academy"]
["Stourfield Infant School","122415","Academy","Academy"]
["Stourport High School and Sixth Form Centre, The","120162","Academy","Academy"]
["Stowford School","120996","Academy","Academy"]
["Stradbroke High School","121051","Academy","Academy"]
["Stramongate Primary School","120722","Academy","Academy"]
["Strand Primary Academy","122306","Academy","Academy"]
["Stranton Primary School","124156","Academy","Academy"]
["Strategic Investment Board","SIB211","CenGov't","CenGov't"]
["Stratford School - Newham","119978","Academy","Academy"]
["Stratford upon Avon School","120236","Academy","Academy"]
["Stratford-on-Avon District Council","E3734","EngLocGov't","LocGov't"]
["Stratford-upon-Avon Grammar School for Girls","120235","Academy","Academy"]
["Stratton Upper School and Community College","120575","Academy","Academy"]
["Streetly School, The","120669","Academy","Academy"]
["Stretton Church of England Primary School","123853","Academy","Academy"]
["Stretton Sugwas CofE Primary School","120068","Academy","Academy"]
["Strood Academy","119100","Academy","Academy"]
["Stroud District Council","E1635","EngLocGov't","LocGov't"]
["Stroud High School","119874","Academy","Academy"]
["Student Loans Company Ltd","SLC084","CenGov't","CenGov't"]
["Studio, Liverpool, The","122532","Academy","Academy"]
["Studley High School","119793","Academy","Academy"]
["Sturry Church of England Primary School","122180","Academy","Academy"]
["Suckley Primary School","119983","Academy","Academy"]
["Sudbury Primary School","122776","Academy","Academy"]
["Suffolk Coastal District Council","E3536","EngLocGov't","LocGov't"]
["Suffolk County Council","E3520","EngLocGov't","LocGov't"]
["Suffolk County Council - LGPS","LG067","LGPS","LocGov't"]
["Suffolk New Academy","120958","Academy","Academy"]
["Suffolk Police Authority","E6035","EngLocGov't","LocGov't"]
["Summercourt Community Primary School - Newquay",127552,"Academy","Academy"]
["Summercroft Primary School - Bishop's Stortford","120338","Academy","Academy"]
["Summerhill Junior School","122098","Academy","Academy"]
["Sunbury Manor School","119597","Academy","Academy"]
["Sunderland City Metropolitan Borough Council","E4505","EngLocGov't","LocGov't"]
["Sundon Lower School","122283","Academy","Academy"]
["Sundorne School and Sports College","123095","Academy","Academy"]
["Sunnyside Primary School - Middlesborough",125016,"Academy","Academy"]
["Sunnyside Primary School - Northampton","123096","Academy","Academy"]
["Surrey County Council","E3620","EngLocGov't","LocGov't"]
["Surrey County Council - LGPS","LG068","LGPS","LocGov't"]
["Surrey Heath Borough Council","E3638","EngLocGov't","LocGov't"]
["Surrey Police Authority","E6073","EngLocGov't","LocGov't"]
["Sussex Police Authority","E6053","EngLocGov't","LocGov't"]
["Sutherland Business and Enterprise College","123894","Academy","Academy"]
["Sutherland Primary Academy","120737","Academy","Academy"]
["Sutton - LGPS","LG069","LGPS","LocGov't"]
["Sutton Academy, The","119197","Academy","Academy"]
["Sutton Coldfield Grammar School for Girls","119785","Academy","Academy"]
["Sutton Community Academy, The","122308","Academy","Academy"]
["Sutton Grammar School for Boys","119776","Academy","Academy"]
["Sutton London Borough Council","E5048","EngLocGov't","LocGov't"]
["Sutton Park Primary School","122895","Academy","Academy"]
["Sutton Primary School","119797","Academy","Academy"]
["Swakeleys School for Girls","119549","Academy","Academy"]
["Swale Borough Council","E2241","EngLocGov't","LocGov't"]
["Swallow Hill Community College","121049","Academy","Academy"]
["Swallowdale Primary School and Community Centre","124159","Academy","Academy"]
["Swanage School, The","122039","Academy","Academy"]
["Swanland Primary School","120151","Academy","Academy"]
["Swavesey Village College","119656","Academy","Academy"]
["Sweyne Park School, The","124071","Academy","Academy"]
["Swindon Academy","118643","Academy","Academy"]
["Swindon Borough Council","E3901","EngLocGov't","LocGov't"]
["Swinton Brookfield Primary Academy",127103,"Academy","Academy"]
["Swinton High School, The","119987","Academy","Academy"]
["Sybourn Primary School","123957","Academy","Academy"]
["Sycamore Primary School","120830","Academy","Academy"]
["Sythwood Primary School",127676,"Academy","Academy"]
["Tabor Academy","123170","Academy","Academy"]
["Tame Valley Academy","122139","Academy","Academy"]
["Tameside Metropolitan Borough Council","E4208","EngLocGov't","LocGov't"]
["Tamworth Borough Council","E3439","EngLocGov't","LocGov't"]
["Tamworth Enterprise College","120986","Academy","Academy"]
["Tandridge District Council","E3639","EngLocGov't","LocGov't"]
["Tangmere Primary Academy","121068","Academy","Academy"]
["Tanworth-in-Arden CofE Primary School","122096","Academy","Academy"]
["Tapton School","120017","Academy","Academy"]
["Tarleton High School, A Community Technology College","120778","Academy","Academy"]
["Tarporley High School and Sixth Form College","122275","Academy","Academy"]
["Tate Gallery","TGL048","CenGov't","CenGov't"]
["Tatworth Primary School","120175","Academy","Academy"]
["Tauheedul","122029","Academy","Academy"]
["Taunton Academy, The","119349","Academy","Academy"]
["Taunton Deane Borough Council","E3333","EngLocGov't","LocGov't"]
["Taverham High School","122084","Academy","Academy"]
["Teachers' Pension Scheme (England & Wales)","TPS904","CenGov't","CenGov't"]
["Teachers Superanuation Scheme Statements - Northern Ireland","SNI909","CenGov't","CenGov't"]
["Teaching Agency (TA)","DES022b","DfE Family","DfE Family"]
["Technology Strategy Board","TST084","CenGov't","CenGov't"]
["Teddington School","120883","Academy","Academy"]
["Teesdale School","120153","Academy","Academy"]
["Teesside Pension Fund - LGPS","LG070","LGPS","LocGov't"]
["Teign School","119494","Academy","Academy"]
["Teignbridge District Council","E1137","EngLocGov't","LocGov't"]
["Teignmouth Community College","119495","Academy","Academy"]
["Telford and Wrekin (Borough of)","E3201","EngLocGov't","LocGov't"]
["Temple Ewell Church of England Primary School",123109,"Academy","Academy"]
["Temple Grove Academy","122425","Academy","Academy"]
["Tenant Services Authority","TSA085","CenGov't","CenGov't"]
["Tendring District Council","E1542","EngLocGov't","LocGov't"]
["Tendring Enterprise Studio School","122533","Academy","Academy"]
["Tendring Technology College","120188","Academy","Academy"]
["Test Valley Borough Council","E1742","EngLocGov't","LocGov't"]
["Testwood Sports College","120315","Academy","Academy"]
["Tewkesbury Borough Council","E1636","EngLocGov't","LocGov't"]
["Tewkesbury School","120800","Academy","Academy"]
["Thames Primary School","122720","Academy","Academy"]
["Thames Valley Police Authority","E6054","EngLocGov't","LocGov't"]
["Thames View Infants' School","122581","Academy","Academy"]
["Thameside Primary School Academy","121921","Academy","Academy"]
["Thamesmead School","120237","Academy","Academy"]
["Thanet District Council","E2242","EngLocGov't","LocGov't"]
["Theale Green Community School","124637","Academy","Academy"]
["Thetford Academy, The","119327","Academy","Academy"]
["Thetford Alternative Provision Free School","123416","Academy","Academy"]
["Thistley Hough Academy","122045","Academy","Academy"]
["Thomas Alleyne School, The","124697","Academy","Academy"]
["Thomas Aveling School, The","120451","Academy","Academy"]
["Thomas Bennett Community College","120900","Academy","Academy"]
["Thomas Clarkson Academy","121027","Academy","Academy"]
["Thomas Cowley High School, The","122337","Academy","Academy"]
["Thomas Deacon Academy","118655","Academy","Academy"]
["Thomas Estley Community College","122387","Academy","Academy"]
["Thomas Ferens Academy, The","120984","Academy","Academy"]
["Thomas Gamuel Primary School",127697,"Academy","Academy"]
["Thomas Hardye School, The","120163","Academy","Academy"]
["Thomas Hepburn Community Comprehensive School, The",126332,"Academy","Academy"]
["Thomas Keble School","120059","Academy","Academy"]
["Thomas Knyvett College","119832","Academy","Academy"]
["Thomas Lord Audley School, The","121120","Academy","Academy"]
["Thomas Mills High School","119794","Academy","Academy"]
["Thomas Telford School","118401","Academy","Academy"]
["Thomas Wolsey School","120648","Academy","Academy"]
["Thomson House School","123365","Academy","Academy"]
["Thoresby Primary School","124089","Academy","Academy"]
["Thornaby Academy","119198","Academy","Academy"]
["Thornden School","119739","Academy","Academy"]
["Thornhill Community Academy","121060","Academy","Academy"]
["Thornton Primary School",123259,"Academy","Academy"]
["Thorplands Primary School","123015","Academy","Academy"]
["Three Rivers Academy, The","120871","Academy","Academy"]
["Three Rivers District Council","E1938","EngLocGov't","LocGov't"]
["Three Ways School","123156","Academy","Academy"]
["Thriftwood School","120563","Academy","Academy"]
["Thringstone Primary School","124255","Academy","Academy"]
["Thrunscoe Primary Academy","121023","Academy","Academy"]
["Thrussington Church of England Primary School","122393","Academy","Academy"]
["Thrybergh School and Sports College",122860,"Academy","Academy"]
["Thurcroft Junior School","121959","Academy","Academy"]
["Thurrock Borough Council","E1502","EngLocGov't","LocGov't"]
["Thurrock Urban Development Corporation","UDC085","CenGov't","CenGov't"]
["Thurstable School Sports College and Sixth Form Centre","120241","Academy","Academy"]
["Tidemill Primary School","120353","Academy","Academy"]
["Tiffin Girls' School, The","119529","Academy","Academy"]
["Tiffin School (Boys)","119910","Academy","Academy"]
["Tiger School, The","121972","Academy","Academy"]
["Tile Hill Wood School and Language College","120276","Academy","Academy"]
["Timberley Academy Trust","122095","Academy","Academy"]
["Timbertree Primary School","122988","Academy","Academy"]
["Tiverton Junior and Infant School","123892","Academy","Academy"]
["Toddington St George Lower School","122416","Academy","Academy"]
["Tollbar Academy","119266","Academy","Academy"]
["Tolworth Girls’ School and Sixth Form","120060","Academy","Academy"]
["Tomlinscote School and Sixth Form College","124690","Academy","Academy"]
["Tonbridge and Malling Borough Council","E2243","EngLocGov't","LocGov't"]
["Tonbridge Grammar School","119443","Academy","Academy"]
["Toot Hill School","119878","Academy","Academy"]
["Tooting Primary School","123366","Academy","Academy"]
["Top Valley Academy","120968","Academy","Academy"]
["Tor Bridge High","120206","Academy","Academy"]
["Torbay Council","E1102","EngLocGov't","LocGov't"]
["Torquay Academy","120970","Academy","Academy"]
["Torquay Boys' Grammar School","119363","Academy","Academy"]
["Torquay Girls' Grammar School","119515","Academy","Academy"]
["Torre Church of England Primary School","123858","Academy","Academy"]
["Torridge District Council","E1139","EngLocGov't","LocGov't"]
["Totley Primary School",127603,"Academy","Academy"]
["Totteridge Academy, The","120409","Academy","Academy"]
["Tower Hamlets - LGPS","LG071","LGPS","LocGov't"]
["Tower Hamlets London Borough Council","E5020","EngLocGov't","LocGov't"]
["Tower Road Primary","119766","Academy","Academy"]
["Towers School and Sixth Form Centre","119555","Academy","Academy"]
["Town End Primary School","119486","Academy","Academy"]
["Townhill Infant School",127547,"Academy","Academy"]
["Townley Grammar School for Girls","120740","Academy","Academy"]
["Trafford Metropolitan Borough Council","E4209","EngLocGov't","LocGov't"]
["Training and Development Agency for Schools","TTA022","CenGov't","CenGov't"]
["Transport for London","E5104","EngLocGov't","LocGov't"]
["Tree Tops Academy","120925","Academy","Academy"]
["Tregolls School, The","120971","Academy","Academy"]
["Tregonwell Academy","120998","Academy","Academy"]
["Tregoze Primary School","121919","Academy","Academy"]
["Tremona Road Hospital and Home","124175","Academy","Academy"]
["Trenance Infant School","119366","Academy","Academy"]
["Trent Valley Academy","119123","Academy","Academy"]
["Treverbyn Academy","120076","Academy","Academy"]
["Trevithick Learning Academy","119637","Academy","Academy"]
["Trewirgie Infant School","119881","Academy","Academy"]
["Trewirgie Junior School","119848","Academy","Academy"]
["Tring School","122333","Academy","Academy"]
["Trinity Academy - Doncaster","118407","Academy","Academy"]
["Trinity Academy - Halifax","119154","Academy","Academy"]
["Trinity Catholic School, The - Aspley","122324","Academy","Academy"]
["Trinity Church of England School - Belvedere","119525","Academy","Academy"]
["Trinity CofE High School - Hulme","120665","Academy","Academy"]
["Trinity High School and Sixth Form Centre","120167","Academy","Academy"]
["Trinity Primary Academy","122422","Academy","Academy"]
["Trinity School - Cumbria","120063","Academy","Academy"]
["Trinity School - Newbury","122391","Academy","Academy"]
["Trinity School (Sevenoaks Christian School)","123336","Academy","Academy"]
["Truro Learning Academy, The",124704,"Academy","Academy"]
["Tubbenden Primary School","120862","Academy","Academy"]
["Tudhoe Colliery Primary School","122366","Academy","Academy"]
["Tudor Grange Academy - Solihull","119299","Academy","Academy"]
["Tudor Grange Academy - Worcester","119128","Academy","Academy"]
["Tudor Grange Primary Academy - Haselor",128100,"Academy","Academy"]
["Tudor Grange Primary Academy - St James","123047","Academy","Academy"]
["Tunbridge Wells Borough Council","E2244","EngLocGov't","LocGov't"]
["Tuxford Primary School and Early Years Centre","123280","Academy","Academy"]
["Tuxford School","120319","Academy","Academy"]
["Tweendykes School","124592","Academy","Academy"]
["Twickenham Academy","119172","Academy","Academy"]
["Twickenham Primary School",124779,"Academy","Academy"]
["Two Mile Ash School","120061","Academy","Academy"]
["Twyford Church of England High School","120602","Academy","Academy"]
["Twynham School","119647","Academy","Academy"]
["Tyldesley Primary School","120892","Academy","Academy"]
["Tymberwood Academy",124227,"Academy","Academy"]
["Tyndale Community School","123368","Academy","Academy"]
["Tyne & Wear Integrated Transport Authority","E6345","EngLocGov't","LocGov't"]
["Tyne and Wear Fire and Civil Defence Authority","E6145","EngLocGov't","LocGov't"]
["Tyne and Wear Pension Fund - LGPS","LG072","LGPS","LocGov't"]
["Tyrrells School, The","120650","Academy","Academy"]
["UCL Camden Academy","120181","Academy","Academy"]
["Uffculme Primary School","124072","Academy","Academy"]
["Uffculme School","119263","Academy","Academy"]
["UFI Limited","UNI084","CenGov't","CenGov't"]
["UK Commission for Employment and Skills","UKC084","CenGov't","CenGov't"]
["UK Film Council","FCL048","CenGov't","CenGov't"]
["UK Sport","UKS048","CenGov't","CenGov't"]
["UK Trade & Investment","BTI013","CenGov't","CenGov't"]
["Ulceby St Nicholas Church of England Primary School",127507,"Academy","Academy"]
["Ulster Supported Employment Limited - Northern Ireland","USE207","CenGov't","CenGov't"]
["United Kingdom Atomic Energy Authority","UKA084","CenGov't","CenGov't"]
["Unity Academy Blackpool","123069","Academy","Academy"]
["Unity City Academy","117095","Academy","Academy"]
["University Academy - Keighley","119307","Academy","Academy"]
["University Academy - Kidsgrove","124084","Academy","Academy"]
["University Academy - Liverpool","120954","Academy","Academy"]
["University Academy - Warrington","120725","Academy","Academy"]
["University Academy of Birkenhead","119444","Academy","Academy"]
["University Academy, The - Holbeach","120282","Academy","Academy"]
["University Cathedral Free School","123369","Academy","Academy"]
["University of Chester Academy - Northwich","120987","Academy","Academy"]
["University of Chester Church of England Academy, The","119102","Academy","Academy"]
["University Primary Academy Weaverham",124588,"Academy","Academy"]
["University Technical College, Royal Borough of Greenwich","122151","Academy","Academy"]
["Upminster Infant School","122777","Academy","Academy"]
["Upminster Junior School","122840","Academy","Academy"]
["Upper Shirley High School","120037","Academy","Academy"]
["Uppingham Community College","119631","Academy","Academy"]
["Upton Hall School FCJ","121081","Academy","Academy"]
["Urmston Grammar Academy","119268","Academy","Academy"]
["Ursula Taylor VC Lower School","124304","Academy","Academy"]
["Ursuline Academy Ilford, The","120348","Academy","Academy"]
["UTC Plymouth","122056","Academy","Academy"]
["UTC Reading","122057","Academy","Academy"]
["UTC Sheffield","122058","Academy","Academy"]
["Utterby Primary School, The","123822","Academy","Academy"]
["Uttlesford District Council","E1544","EngLocGov't","LocGov't"]
["Uxbridge High School","119789","Academy","Academy"]
["Vale Academy","120463","Academy","Academy"]
["Vale of Evesham School","122971","Academy","Academy"]
["Vale of White Horse District Council","E3134","EngLocGov't","LocGov't"]
["Vale Primary Academy, The","122061","Academy","Academy"]
["Valley Park Community School","119653","Academy","Academy"]
["Valley Primary School","120242","Academy","Academy"]
["Valuation Tribunal Service","VTS085","CenGov't","CenGov't"]
["Vandyke Upper School and Community College","120169","Academy","Academy"]
["Vaynor First School, The","121134","Academy","Academy"]
["Vehicle Excise Duty","VED837","CenGov't","CenGov't"]
["Venerable Bede Church of England [Aided] Secondary School","123243","Academy","Academy"]
["Verulam School","120038","Academy","Academy"]
["Veryan CofE School",128057,"Academy","Academy"]
["Victoria and Albert Museum","VAM048","CenGov't","CenGov't"]
["Victoria Lane Academy","122842","Academy","Academy"]
["Victoria Park Primary","121122","Academy","Academy"]
["Victoria Primary Academy - Wellingborough",126452,"Academy","Academy"]
["Victory Primary School, The","123016","Academy","Academy"]
["Viewley Hill Academy Trust",124506,"Academy","Academy"]
["Violet Way Academy","119762","Academy","Academy"]
["Visions Learning Trust UTC","122155","Academy","Academy"]
["Visit Britain","BTA048","CenGov't","CenGov't"]
["Visit Scotland","STB075","CenGov't","CenGov't"]
["Voyager Academy, The","120084","Academy","Academy"]
["Vyners School","120542","Academy","Academy"]
["Waddesdon Church of England School","120384","Academy","Academy"]
["Wade Deacon High School","122567","Academy","Academy"]
["Wadebridge Community Primary School","120420","Academy","Academy"]
["Wadebridge School","120705","Academy","Academy"]
["Wainstalls School","124137","Academy","Academy"]
["Wainwright Primary School","122495","Academy","Academy"]
["Wakefield City Academy","119397","Academy","Academy"]
["Wakefield City Council","E4705","EngLocGov't","LocGov't"]
["Waldegrave School for Girls","121021","Academy","Academy"]
["Walderslade Girls' School","120667","Academy","Academy"]
["Wales High School","119300","Academy","Academy"]
["Walkwood CofE Middle School","122949","Academy","Academy"]
["Wallace Collection","WCO048","CenGov't","CenGov't"]
["Wallingford School","120385","Academy","Academy"]
["Wallington County Grammar School","119777","Academy","Academy"]
["Wallington High School for Girls","119792","Academy","Academy"]
["Wallscourt Farm Academy","122432","Academy","Academy"]
["Walsall Academy","118408","Academy","Academy"]
["Walsall Metropolitan Borough Council","E4606","EngLocGov't","LocGov't"]
["Walsall Studio School","123394","Academy","Academy"]
["Walter Street Primary Academy","122316","Academy","Academy"]
["Waltham Forest - LGPS","LG073","LGPS","LocGov't"]
["Waltham Forest London Borough Council","E5049","EngLocGov't","LocGov't"]
["Waltham Leas Primary Academy","120771","Academy","Academy"]
["Walthamstow Academy","118656","Academy","Academy"]
["Walton Girls' High School and Sixth Form","119538","Academy","Academy"]
["Walton High","119842","Academy","Academy"]
["Walworth Academy","119116","Academy","Academy"]
["Wandle Valley School","120354","Academy","Academy"]
["Wandsworth - LGPS","LG074","LGPS","LocGov't"]
["Wandsworth London Borough Council","E5021","EngLocGov't","LocGov't"]
["Wansbeck Primary School","124650","Academy","Academy"]
["Wansdyke Community School","122579","Academy","Academy"]
["Wantage Church of England Primary School",124163,"Academy","Academy"]
["Wapping High School","121978","Academy","Academy"]
["Warden House Primary School","123067","Academy","Academy"]
["Warden Park Primary Academy","120211","Academy","Academy"]
["Warden Park School","120386","Academy","Academy"]
["Wardle High School","122073","Academy","Academy"]
["Warlingham School","122593","Academy","Academy"]
["Warlingham Village Primary School","124770","Academy","Academy"]
["Warndon Primary School",125022,"Academy","Academy"]
["Warren Farm Primary School","122068","Academy","Academy"]
["Warren Primary School","120283","Academy","Academy"]
["Warren Road Primary School","119915","Academy","Academy"]
["Warrington Borough Council","E0602","EngLocGov't","LocGov't"]
["Warton Nethersole's CofE Primary School","123232","Academy","Academy"]
["Warwick District Council","E3735","EngLocGov't","LocGov't"]
["Warwick Primary School","122734","Academy","Academy"]
["Warwickshire County Council","E3720","EngLocGov't","LocGov't"]
["Warwickshire County Council - LGPS","LG075","LGPS","LocGov't"]
["Warwickshire Police Authority","E6037","EngLocGov't","LocGov't"]
["Waseley Hills High School and Sixth Form Centre","122594","Academy","Academy"]
["Washingborough Primary School","121212","Academy","Academy"]
["Washwood Heath Technology College","124134","Academy","Academy"]
["Watchfield Primary School",124352,"Academy","Academy"]
["Water Services Regulation Authority","OWS057","CenGov't","CenGov't"]
["Waterhead Academy","119212","Academy","Academy"]
["Waterloo Primary School","122121","Academy","Academy"]
["Waterwells Primary Academy","124128","Academy","Academy"]
["Watford Borough Council","E1939","EngLocGov't","LocGov't"]
["Watford Grammar School for Boys","119248","Academy","Academy"]
["Watford Grammar School for Girls","119249","Academy","Academy"]
["Waveney District Council","E3537","EngLocGov't","LocGov't"]
["Waverley Borough Council","E3640","EngLocGov't","LocGov't"]
["Waverley Studio College","123395","Academy","Academy"]
["Waycroft Academy","120212","Academy","Academy"]
["Wayfield Primary School",125268,"Academy","Academy"]
["Wayland Community High School","120855","Academy","Academy"]
["Waynflete Infants' School","121089","Academy","Academy"]
["Weald of Kent Grammar School","119505","Academy","Academy"]
["Wealden District Council","E1437","EngLocGov't","LocGov't"]
["Weare Academy First School","119634","Academy","Academy"]
["Weatherfield School","120776","Academy","Academy"]
["Weatherhead High School","120749","Academy","Academy"]
["Weavers Academy","124232","Academy","Academy"]
["Weavers Close Church of England Primary School","123153","Academy","Academy"]
["Webheath First School","121235","Academy","Academy"]
["Webster Primary School","122893","Academy","Academy"]
["Wedmore First School","119829","Academy","Academy"]
["Weeley St Andrew's CofE Primary School",124694,"Academy","Academy"]
["Weelsby Primary School","121992","Academy","Academy"]
["Welbeck Primary School","122322","Academy","Academy"]
["Wellacre Technology College","119394","Academy","Academy"]
["Welland Park Community College - Market Harborough","120170","Academy","Academy"]
["Welland Primary Academy - Peterborough",124996,"Academy","Academy"]
["Wellesley Park Primary School","123885","Academy","Academy"]
["Welling School","119740","Academy","Academy"]
["Wellingborough Borough Council","E2837","EngLocGov't","LocGov't"]
["Wellington Academy, The - Ludgershall","118900","Academy","Academy"]
["Wellington School - Altrincham","119395","Academy","Academy"]
["Wells Free School, The","123364","Academy","Academy"]
["Wellsway School","120630","Academy","Academy"]
["Welsh Assembly Government","WAG090","CenGov't","CenGov't"]
["Welsh Consolidated Fund","WCF854","CenGov't","CenGov't"]
["Welsh Language Board","WLB090","CenGov't","CenGov't"]
["Welton Church of England Primary School","122076","Academy","Academy"]
["Welton St Mary's Church of England Primary School","122658","Academy","Academy"]
["Welwyn Hatfield District Council","E1940","EngLocGov't","LocGov't"]
["Wembley High Technology College","122580","Academy","Academy"]
["Wensley Fold (VC) Church of England Primary School","122563","Academy","Academy"]
["Wentworth Primary School","120784","Academy","Academy"]
["Werneth Primary School",129550,"Academy","Academy"]
["West Berkshire Council","E0302","EngLocGov't","LocGov't"]
["West Bridgford School, The","119543","Academy","Academy"]
["West Derby School","122696","Academy","Academy"]
["West Devon Borough Council","E1140","EngLocGov't","LocGov't"]
["West Dorset District Council","E1237","EngLocGov't","LocGov't"]
["West End Academy",123229,"Academy","Academy"]
["West Grantham Academy - Earl of Dysart","119477","Academy","Academy"]
["West Grantham Academy - Spitalgate","119478","Academy","Academy"]
["West Grantham Academy - St Hugh's","119476","Academy","Academy"]
["West Hatch High School","119787","Academy","Academy"]
["West Hill School","120020","Academy","Academy"]
["West Kirby Grammar School","120243","Academy","Academy"]
["West Lakes Academy","118657","Academy","Academy"]
["West Lancashire District Council","E2343","EngLocGov't","LocGov't"]
["West Lindsey District Council","E2537","EngLocGov't","LocGov't"]
["West London Free School","120471","Academy","Academy"]
["West London Free School Primary","123371","Academy","Academy"]
["West London Waste Authority","E6207","EngLocGov't","LocGov't"]
["West Malling Church of England Voluntary Controlled Primary School","122286","Academy","Academy"]
["West Meadows Primary School",127592,"Academy","Academy"]
["West Mercia Police Authority","E6055","EngLocGov't","LocGov't"]
["West Midlands Fire and Civil Defence Authority","E6146","EngLocGov't","LocGov't"]
["West Midlands Integrated Transport Authority","E6346","EngLocGov't","LocGov't"]
["West Midlands Pension Fund - LGPS","LG076","LGPS","LocGov't"]
["West Midlands Police Authority","E6046","EngLocGov't","LocGov't"]
["West Newcastle Academy","123372","Academy","Academy"]
["West Northants UDC","WNU085","CenGov't","CenGov't"]
["West Oxfordshire District Council","E3135","EngLocGov't","LocGov't"]
["West Park Academy","119901","Academy","Academy"]
["West Park School","119548","Academy","Academy"]
["West Somerset Community College, The","119784","Academy","Academy"]
["West Somerset District Council","E3335","EngLocGov't","LocGov't"]
["West St Leonards Primary Academy",125003,"Academy","Academy"]
["West Sussex County Council","E3820","EngLocGov't","LocGov't"]
["West Sussex County Council - LGPS","LG077","LGPS","LocGov't"]
["West Thornton Primary School","119763","Academy","Academy"]
["West Thurrock Primary School","122892","Academy","Academy"]
["West Town Lane Academy","120436","Academy","Academy"]
["West Walsall E-ACT Academy","121922","Academy","Academy"]
["West Yorkshire Fire and Civil Defence Authority","E6147","EngLocGov't","LocGov't"]
["West Yorkshire Integrated Transport Authority","E6347","EngLocGov't","LocGov't"]
["West Yorkshire Pension Fund - LGPS","LG078","LGPS","LocGov't"]
["West Yorkshire Police Authority","E6047","EngLocGov't","LocGov't"]
["Westborough Academy, The","119301","Academy","Academy"]
["Westbourne Primary School","119767","Academy","Academy"]
["Westbourne Sports College","123185","Academy","Academy"]
["Westbrook Primary","124492","Academy","Academy"]
["Westbury Park Primary School","122341","Academy","Academy"]
["Westbury-on-Trym CofE Primary School","120062","Academy","Academy"]
["Westcliff High School for Boys Academy","119262","Academy","Academy"]
["Westcliff High School for Girls","119490","Academy","Academy"]
["Westcliff Primary School","120370","Academy","Academy"]
["Westerings Primary School, The","120341","Academy","Academy"]
["Western Education and Library Board - Northern Ireland","WEL203","CenGov't","CenGov't"]
["Western Riverside Waste Authority","E6206","EngLocGov't","LocGov't"]
["Westfield Academy","124311","Academy","Academy"]
["Westfield Community Primary School - Haverhill",124755,"Academy","Academy"]
["Westfield Community School - Yeovil","120203","Academy","Academy"]
["Westgate Junior School","120317","Academy","Academy"]
["Westgate School, The","121066","Academy","Academy"]
["Westlands Primary School","119257","Academy","Academy"]
["Westlands School - Thornaby","124564","Academy","Academy"]
["Westlands School, The - Sittingbourne","119261","Academy","Academy"]
["Westlea Primary School",124152,"Academy","Academy"]
["Westley Middle School","120180","Academy","Academy"]
["Westminster Academy","118658","Academy","Academy"]
["Westminster City Council","E5022","EngLocGov't","LocGov't"]
["Westminster City Council - LGPS","LG079","LGPS","LocGov't"]
["Westminster City School","122164","Academy","Academy"]
["Weston Community School","120816","Academy","Academy"]
["Weston Favell Academy","119948","Academy","Academy"]
["Weston Favell CofE VA Primary School","121467","Academy","Academy"]
["Weston Road Academy","120583","Academy","Academy"]
["Westside Free School","123417","Academy","Academy"]
["Westwood Academy - Benfleet","120030","Academy","Academy"]
["Westwood School, The - Coventry","120225","Academy","Academy"]
["Westwoodside CofE Primary School","122499","Academy","Academy"]
["Wey Valley School, The","122687","Academy","Academy"]
["Weydon School","119595","Academy","Academy"]
["Weyfield Primary School","122545","Academy","Academy"]
["Weymouth and Portland Borough Council","E1238","EngLocGov't","LocGov't"]
["Wheatley Church of England (C) Primary School","125171","Academy","Academy"]
["Wheeler Primary School",124063,"Academy","Academy"]
["Whetley Primary School","122861","Academy","Academy"]
["Whickham School and Sports College","120358","Academy","Academy"]
["Whipperley Infant School","122346","Academy","Academy"]
["Whirley Primary School",124204,"Academy","Academy"]
["Whiston Junior and Infant School","124563","Academy","Academy"]
["Whiston Worry Goose Junior and Infant School","124583","Academy","Academy"]
["Whitburn Church of England Academy","119398","Academy","Academy"]
["White Cliffs Primary College for the Arts","122069","Academy","Academy"]
["White Hall Academy","120929","Academy","Academy"]
["White Waltham CofE School","122292","Academy","Academy"]
["Whitecross Hereford; High School and Specialist Sports College","120600","Academy","Academy"]
["Whitefield School","120355","Academy","Academy"]
["Whitehaven School",127198,"Academy","Academy"]
["Whitehill Community Academy","119600","Academy","Academy"]
["Whitehorse Manor Infant School","119666","Academy","Academy"]
["Whitehorse Manor Junior School","119667","Academy","Academy"]
["Whitelands Park Primary School ",127278,"Academy","Academy"]
["Whitemoor Academy","122897","Academy","Academy"]
["Whitemoor Primary and Nursery School","122018","Academy","Academy"]
["White's Wood Lane Community Junior School, The","123807","Academy","Academy"]
["Whitesheet Church Academy",124297,"Academy","Academy"]
["Whitley Academy","119840","Academy","Academy"]
["Whitstone","120192","Academy","Academy"]
["Whittingham Community Primary School","123201","Academy","Academy"]
["Whitton Green Community Primary School","124630","Academy","Academy"]
["Wickersley School and Sports College","129177","Academy","Academy"]
["Wickford Church of England Voluntary Controlled Infant School","120590","Academy","Academy"]
["Widecombe-in-the-Moor Primary School","119668","Academy","Academy"]
["Widewell Primary School","122942","Academy","Academy"]
["Wigan Metropolitan Borough Council","E4210","EngLocGov't","LocGov't"]
["Wigan UTC","122059","Academy","Academy"]
["Wigmore High School","119421","Academy","Academy"]
["Wigmore Primary School","119420","Academy","Academy"]
["Wigston Birkett House Community Special School","122105","Academy","Academy"]
["Wilbarston Church of England Primary School","124530","Academy","Academy"]
["Wilberforce Primary School","123271","Academy","Academy"]
["Wilcombe Primary School","120362","Academy","Academy"]
["Wildern School","119641","Academy","Academy"]
["Willenhall E-ACT Academy","120976","Academy","Academy"]
["William Alvey School","120637","Academy","Academy"]
["William Brookes School","123181","Academy","Academy"]
["William de Ferrers School","119630","Academy","Academy"]
["William Edwards School and Sports College","120214","Academy","Academy"]
["William Farr Church of England Comprehensive School","119445","Academy","Academy"]
["William Howard School","120252","Academy","Academy"]
["William Hulme's Grammar School","118652","Academy","Academy"]
["William Lovell Church of England School","121866","Academy","Academy"]
["William Morris School","122172","Academy","Academy"]
["William Perkin Church of England High School","121996","Academy","Academy"]
["William Tyndale Primary School","120481","Academy","Academy"]
["Willow Bank Primary School","120532","Academy","Academy"]
["Willow Brook Primary School Academy","120974","Academy","Academy"]
["Willow Green Academy","122251","Academy","Academy"]
["Willow Primary School - Doncaster","120698","Academy","Academy"]
["Willow Primary School - Slough","122871","Academy","Academy"]
["Willowcroft Community School","124112","Academy","Academy"]
["Willows Academy","123017","Academy","Academy"]
["Willows Primary School, The - Manchester","124303","Academy","Academy"]
["Willows School, The - Hillingdon","120483","Academy","Academy"]
["Wilmington Academy","119330","Academy","Academy"]
["Wilmington Grammar School for Boys","120227","Academy","Academy"]
["Wilmington Grammar School for Girls","120250","Academy","Academy"]
["Wilmington Primary School","120620","Academy","Academy"]
["Wilnecote High School","122943","Academy","Academy"]
["Wilshere-Dacre Junior School","129588","Academy","Academy"]
["Wilson Stuart School","121131","Academy","Academy"]
["Wilson's School","119535","Academy","Academy"]
["Wiltshire and Swindon Fire Authority","E6139","EngLocGov't","LocGov't"]
["Wiltshire County Council - LGPS","LG080","LGPS","LocGov't"]
["Wiltshire Police Authority","E6039","EngLocGov't","LocGov't"]
["Wiltshire Unitary Authority","E3902","EngLocGov't","LocGov't"]
["Winchcombe School","119788","Academy","Academy"]
["Winchester City Council","E1743","EngLocGov't","LocGov't"]
["Wincobank Nursery and Infant School","129432","Academy","Academy"]
["Windale Community Primary School","122878","Academy","Academy"]
["Windmill Academy","126512","Academy","Academy"]
["Windmill Hill Academy",127710,"Academy","Academy"]
["Windmill LEAD Academy","122939","Academy","Academy"]
["Windmill Primary School","124316","Academy","Academy"]
["Windsor and Maidenhead (Royal Borough of)","E0305","EngLocGov't","LocGov't"]
["Windsor High School and Sixth Form","119532","Academy","Academy"]
["Wingfield Business and Enterprise College","123211","Academy","Academy"]
["Winhills Primary School","122047","Academy","Academy"]
["Winifred Holtby Academy Trust","122911","Academy","Academy"]
["Winsford E-ACT Academy, The","119336","Academy","Academy"]
["Winstanley Community College","122148","Academy","Academy"]
["Winterbourne International Academy","119094","Academy","Academy"]
["Winterton Comprehensive School","122560","Academy","Academy"]
["Winton Arts and Media College","123804","Academy","Academy"]
["Winton Community Academy","121884","Academy","Academy"]
["Wirral Grammar School for Boys","120371","Academy","Academy"]
["Wirral Grammar School for Girls","120171","Academy","Academy"]
["Wirral Metropolitan Borough Council","E4305","EngLocGov't","LocGov't"]
["Wishmore Cross School","122424","Academy","Academy"]
["Wistaston Green Primary and Nursery School","129605","Academy","Academy"]
["Witchford Village College","120655","Academy","Academy"]
["Witham St Hughs Primary School","121856","Academy","Academy"]
["Woden Primary School","122489","Academy","Academy"]
["Wodensborough Community Technology College",126339,"Academy","Academy"]
["Woking Borough Council","E3641","EngLocGov't","LocGov't"]
["Woking High School","124312","Academy","Academy"]
["Wokingham Council","E0306","EngLocGov't","LocGov't"]
["Wold Primary School",124230,"Academy","Academy"]
["Wolsey Junior School",125013,"Academy","Academy"]
["Wolverhampton City Council","E4607","EngLocGov't","LocGov't"]
["Wood End Junior School - Greenford","119741","Academy","Academy"]
["Wood End Park Community School - Hayes","122682","Academy","Academy"]
["Wood End Primary School - Atherstone",124605,"Academy","Academy"]
["Wood Green Academy","119530","Academy","Academy"]
["Woodbrook Vale High School","120318","Academy","Academy"]
["Woodchurch High School Engineering College","120612","Academy","Academy"]
["Woodcote High School","121951","Academy","Academy"]
["Woodfield Middle School","121936","Academy","Academy"]
["Woodford Valley Church of England Aided School","121107","Academy","Academy"]
["Woodham Community Technology College","122575","Academy","Academy"]
["Woodhouse Primary Academy","123256","Academy","Academy"]
["Woodkirk High Specialist Science School","120455","Academy","Academy"]
["Woodland Middle School Academy","119573","Academy","Academy"]
["Woodland View Primary School","121104","Academy","Academy"]
["Woodlands Academy - Coventry","120165","Academy","Academy"]
["Woodlands Academy, The - Scarborough","123219","Academy","Academy"]
["Woodlands Primary School - Leeds","122319","Academy","Academy"]
["Woodlands Primary School - Medway","123042","Academy","Academy"]
["Woodlands Primary School - Willenhall","122118","Academy","Academy"]
["Woodlands School","121014","Academy","Academy"]
["Woodlands School - Bradwell","124246","Academy","Academy"]
["Woodnewton","121108","Academy","Academy"]
["Woodpecker Hall Primary Academy","120552","Academy","Academy"]
["Woodrush Community High School","119904","Academy","Academy"]
["Woodside Academy","121178","Academy","Academy"]
["Woodside CofE Controlled Primary School","123242","Academy","Academy"]
["Woodside High School - Hargingey","120694","Academy","Academy"]
["Woodside Primary School - Essex","122592","Academy","Academy"]
["Woodside Primary School - Oswestry","122397","Academy","Academy"]
["Woodside School","122843","Academy","Academy"]
["Woodvale Primary School","123094","Academy","Academy"]
["Woodwater Academy, The","122420","Academy","Academy"]
["Woolavington Village Primary School",127647,"Academy","Academy"]
["Woolgrove School","121841","Academy","Academy"]
["Woolmer Hill Technology College","120314","Academy","Academy"]
["Wootton Primary School","122266","Academy","Academy"]
["Wootton Upper School","120406","Academy","Academy"]
["Worcester City Council","E1837","EngLocGov't","LocGov't"]
["Worcestershire County Council","E1821","EngLocGov't","LocGov't"]
["Worcestershire County Council - LGPS","LG081","LGPS","LocGov't"]
["Worlaby Academy","122741","Academy","Academy"]
["Worth Primary School","123814","Academy","Academy"]
["Worthing Borough Council","E3837","EngLocGov't","LocGov't"]
["Worthing High School","122970","Academy","Academy"]
["Wreake Valley Academy","113696","Academy","Academy"]
["Wren Academy - North Finchley","118676","Academy","Academy"]
["Wrenn School - Wellingborough","124748","Academy","Academy"]
["Writhlington School","120633","Academy","Academy"]
["Wrockwardine Wood Arts College","123881","Academy","Academy"]
["Wrotham School","120709","Academy","Academy"]
["Wroxham School, The","121916","Academy","Academy"]
["Wybers Wood Academy","122428","Academy","Academy"]
["Wychavon District Council","E1838","EngLocGov't","LocGov't"]
["Wycombe District Council","E0435","EngLocGov't","LocGov't"]
["Wycombe High School","119742","Academy","Academy"]
["Wye Free School","123373","Academy","Academy"]
["Wyedean School and 6th Form Centre","120415","Academy","Academy"]
["Wymondham College","119481","Academy","Academy"]
["Wymondham High School","120342","Academy","Academy"]
["Wyndham Primary Academy","120997","Academy","Academy"]
["Wyre Borough Council","E2344","EngLocGov't","LocGov't"]
["Wyre Forest District Council","E1839","EngLocGov't","LocGov't"]
["Wyvern Academy","122578","Academy","Academy"]
["Wyvern Technology College","121161","Academy","Academy"]
["Yarborough Primary School","121901","Academy","Academy"]
["Yardley Primary School - Waltham Forrest","119390","Academy","Academy"]
["Yardleys School - Birmingham","123056","Academy","Academy"]
["Yarm Primary School",129569,"Academy","Academy"]
["Yarnfield Primary School","122947","Academy","Academy"]
["Yate International Academy","119093","Academy","Academy"]
["Yavneh College","119906","Academy","Academy"]
["Yealmpton Primary School","119654","Academy","Academy"]
["Yesoiday Hatorah School","119578","Academy","Academy"]
["Yewlands School Technology College","120453","Academy","Academy"]
["York Road Junior Academy","120980","Academy","Academy"]
["Yorkshire Dales National Park Authority","E6407","EngLocGov't","LocGov't"]
["Yorkshire Forward","YHD084","CenGov't","CenGov't"]
["Young People's Learning Agency","YPL002","CenGov't","CenGov't"]
["Youth Justice Board for England and Wales","YJB047","CenGov't","CenGov't"]
["2gether NHS Foundation Trust","NHTRTQFT","NHS","NHS"]
["5 Boroughs Partnership Foundation Trust","NHTRTVFT","NHS","NHS"]
["Aintree University Hospitals NHS Foundation Trust","NHTREMFT","NHS","NHS"]
["Airedale Foundation Trust","NHTRCFFT","NHS","NHS"]
["Alder Hey Children's NHS Foundation Trust","NHTRBSFT","NHS","NHS"]
["Ashford and St Peter's Hospitals FT","NHTRTKFT","NHS","NHS"]
["Avon and Wiltshire Mental Health Partner NFT","NHTRVNNFT","NHS","NHS"]
["Barking, Havering and Redbridge Hospital NFT","NHTRF4NFT","NHS","NHS"]
["Barnet and Chase Farm Hospitals NFT","NHTRVLNFT","NHS","NHS"]
["Barnet, Enfield and Haringey Mental Heal NFT","NHTRRPNFT","NHS","NHS"]
["Barnsley Hospital NHS Foundation Trust","NHTRFFFT","NHS","NHS"]
["Barts and The London NFT","NHTRNJNFT","NHS","NHS"]
["Basildon and Thurrock University Hospitals NHS Foundation Trust","NHTR01FT","NHS","NHS"]
["Basingstoke and North Hampshire NHS Foundation Trust","NHTRN5FT","NHS","NHS"]
["Bedford Hospitals NFT","NHTRC1NFT","NHS","NHS"]
["Bedfordshire and Luton Community NFT","NHTRV7NFT","NHS","NHS"]
["Belfast Health and Social Care Trust","NISCT1","NHS","NHS"]
["Berkshire Healthcare NHS Foundation Trust","NHTRWXFT","NHS","NHS"]
["Birmingham and Solihull Mental Health NHS Foundation Trust","NHTRXTFT","NHS","NHS"]
["Birmingham Children's Hospital NHS Foundation Trust","NHTRQ3FT","NHS","NHS"]
["Birmingham Women's NHS Foundation Trust","NHTRLUFT","NHS","NHS"]
["Blackpool Fylde and Wyre Hospitals NHS Foundation Trust","NHTRXLFT","NHS","NHS"]
["Bradford District Care Trust NFT","NHTTADNFT","NHS","NHS"]
["Bradford Teaching Hospitals NHS Foundation Trust","NHTR02FT","NHS","NHS"]
["Brighton and Sussex University Hospitals NFT","NHTRXHNFT","NHS","NHS"]
["Buckinghamshire Hospitals NFT","NHTRXQNFT","NHS","NHS"]
["Burton Hospitals NHS Foundation Trust","NHTRJFFT","NHS","NHS"]
["Business Services Organisation","BSO208","NHS","NHS"]
["Calderdale and Huddersfield NHS Foundation Trust","NHTRWYFT","NHS","NHS"]
["Calderstones Partnership NHS Foundation Trust","NHTRJXFT","NHS","NHS"]
["Cambridge University Hospitals NHS Foundation Trust","NHTR11FT","NHS","NHS"]
["Cambridgeshire and Peterborough NHS Foundation Trust","NHTRT1FT","NHS","NHS"]
["Camden and Islington NHS Foundation Trust","NHTTAFFT","NHS","NHS"]
["Central and North West London NHS Foundation Trust","NHTRV3FT","NHS","NHS"]
["Central Manchester University Hospitals NHS Foundation Trust","NHTRW3FT","NHS","NHS"]
["Chelsea and Westminster Hospital NHS Foundation Trust","NHTRQMFT","NHS","NHS"]
["Cheshire and Wirral Partnership NHS Foundation Trust","NHTRXAFT","NHS","NHS"]
["Chesterfield Royal Hospital NHS Foundation Trust","NHTRFSFT","NHS","NHS"]
["Christie NHS Foundation Trust","NHTRBVFT","NHS","NHS"]
["City Hospitals Sunderland NHS Foundation Trust","NHTR12FT","NHS","NHS"]
["Clatterbridge Centre for Oncology NHS Foundation Trust","NHTRENFT","NHS","NHS"]
["Colchester Hospital University NHS Foundation Trust","NHTRDEFT","NHS","NHS"]
["Cornwall Partnership Foundation Trust","NHTRJ8FT","NHS","NHS"]
["Countess of Chester Hospital NHS Foundation Trust","NHTR03FT","NHS","NHS"]
["County Durham and Darlington NHS Foundation Trust","NHTRXPFT","NHS","NHS"]
["Coventry and Warwickshire Partnership NHS Trust","NHTRYGNFT","NHS","NHS"]
["Croydon Health Services NFT","NHTRJ6NFT","NHS","NHS"]
["Cumbria Partnership NHS Foundation Trust","NHTRNNFT","NHS","NHS"]
["Dartford and Gravesham NFT","NHTRN7NFT","NHS","NHS"]
["Derby Hospitals NHS Foundation Trust","NHTR13FT","NHS","NHS"]
["Devon Partnership NFT","NHTRWVNFT","NHS","NHS"]
["Doncaster and Bassetlaw Hospitals NHS Foundation Trust","NHTRP5FT","NHS","NHS"]
["Dorset County Hospital NHS Foundation Trust","NHTRBDFT","NHS","NHS"]
["Dorset Healthcare NHS Foundation Trust","NHTRDYFT","NHS","NHS"]
["Dudley and Walsall Mental Health Partnership NHS Trust","NHTRYKNFT","NHS","NHS"]
["Dudley Group of Hospitals NHS Foundation Trust","NHTRNAFT","NHS","NHS"]
["Ealing Hospital NFT","NHTRC3NFT","NHS","NHS"]
["East And North Hertfordshire NFT","NHTRWHNFT","NHS","NHS"]
["East Cheshire NFT","NHTRJNNFT","NHS","NHS"]
["East Kent Hospitals University NHS Foundation Trust","NHTRVVFT","NHS","NHS"]
["East Lancashire Hospitals NFT","NHTRXRNFT","NHS","NHS"]
["East London NHS Foundation Trust","NHTRWKFT","NHS","NHS"]
["East Midlands Ambulance Service NHS Trust","NHTRX9NFT","NHS","NHS"]
["East of England Ambulance Service NHS Trust","NHTRYCNFT","NHS","NHS"]
["East Sussex Hospitals NFT","NHTRXCNFT","NHS","NHS"]
["Epsom and St Helier University Hospitals NFT","NHTRVRNFT","NHS","NHS"]
["Frimley Park Hospital NHS Foundation Trust","NHTRDUFT","NHS","NHS"]
["Gateshead Health NHS Foundation Trust","NHTRR7FT","NHS","NHS"]
["George Eliot Hospital NFT","NHTRLTNFT","NHS","NHS"]
["Gloucestershire Hospitals NHS Foundation Trust","NHTRTEFT","NHS","NHS"]
["Great Ormond Street Hospital NFT","NHTRP4NFT","NHS","NHS"]
["Great Western Ambulance Service NHS Trust","NHTRX5NFT","NHS","NHS"]
["Great Western Hospitals NHS Foundation Trust","NHTRN3FT","NHS","NHS"]
["Greater Manchester West Mental Health NHS Foundation Trust","NHTRXVFT","NHS","NHS"]
["Guy's and St. Thomas' NHS Foundation Trust","NHTRJ1FT","NHS","NHS"]
["Hampshire Partnership NSH Foundation Trust","NHTRW1FT","NHS","NHS"]
["Harrogate and District NHS Foundation Trust","NHTRCDFT","NHS","NHS"]
["Heart of England NHS Foundation Trust","NHTRR1FT","NHS","NHS"]
["Heatherwood and Wexham Park Hospitals NHS Foundation Trust","NHTRD7FT","NHS","NHS"]
["Hereford Hospitals NFT","NHTRLQNFT","NHS","NHS"]
["Hertfordshire Partnership NHS Foundation Trust","NHTRWRFT","NHS","NHS"]
["Hillingdon Hospital NFT","NHTRASNFT","NHS","NHS"]
["Hinchingbrooke Health Care NFT","NHTRQQNFT","NHS","NHS"]
["Homerton University Hospital NHS Foundation Trust","NHTRQXFT","NHS","NHS"]
["Hull and East Yorkshire Hospitals NFT","NHTRWANFT","NHS","NHS"]
["Humber NHS Foundation Trust","NHTRV9FT","NHS","NHS"]
["Imperial College Healthcare NFT","NHTRYJNFT","NHS","NHS"]
["Ipswich Hospital NFT","NHTRGQNFT","NHS","NHS"]
["James Paget University Hospitals NHS Foundation Trust","NHTRGPFT","NHS","NHS"]
["Kent and Medway NHS and Social Care Partnership Trust","NHTRXYNFT","NHS","NHS"]
["Kettering General Hospital NHS Foundation Trust","NHTRNQFT","NHS","NHS"]
["King's College Hospital NHS Foundation Trust","NHTRJZFT","NHS","NHS"]
["Kingston Hospital NFT","NHTRAXNFT","NHS","NHS"]
["Lancashire Care NHS Foundation Trust","NHTRW5FT","NHS","NHS"]
["Lancashire Teaching Hospitals NHS Foundation Trust","NHTRXNFT","NHS","NHS"]
["Leeds Partnerships NHS Foundation Trust","NHTRGDFT","NHS","NHS"]
["Leeds Teaching Hospitals NFT","NHTRR8NFT","NHS","NHS"]
["Leicestershire Partnership NFT","NHTRT5NFT","NHS","NHS"]
["Lewisham Healthcare NFT","NHTRJ2NFT","NHS","NHS"]
["Lincolnshire Partnership NHS Foundation Trust","NHTRP7FT","NHS","NHS"]
["Liverpool Heart and Chest Hospital NHS Foundation Trust","NHTRBQFT","NHS","NHS"]
["Liverpool Women's NHS Foundation Trust","NHTREPFT","NHS","NHS"]
["Local Health Partnerships NFT","NHTRT6NFT","NHS","NHS"]
["London Ambulance Service NFT","NHTRRUNFT","NHS","NHS"]
["Luton and Dunstable Hospital NHS Foundation Trust","NHTRC9FT","NHS","NHS"]
["Maidstone and Tunbridge Wells NFT","NHTRWFNFT","NHS","NHS"]
["Manchester Mental Health and Social Care NFT","NHTTAENFT","NHS","NHS"]
["Medway NHS Foundation Trust","NHTRPAFT","NHS","NHS"]
["Mersey Care NFT","NHTRW4NFT","NHS","NHS"]
["Mid Cheshire Hospitals NHS Foundation Trust","NHTRBTFT","NHS","NHS"]
["Mid Essex Hospital Services NFT","NHTRQ8NFT","NHS","NHS"]
["Mid Staffordshire NHS Foundation Trust","NHTRJDFT","NHS","NHS"]
["Mid Yorkshire Hospitals NFT","NHTRXFNFT","NHS","NHS"]
["Milton Keynes Hospital NHS Foundation Trust","NHTRD8FT","NHS","NHS"]
["Moorfields Eye Hospital NHS Foundation Trust","NHTR06FT","NHS","NHS"]
["Newcastle Upon Tyne Hospitals NHS Foundation Trust","NHTRTDFT","NHS","NHS"]
["Newham Healthcare NFT","NHTRNHNFT","NHS","NHS"]
["NHS Direct","NHD033","NHS","NHS"]
["NI Ambulance Service HSS Trust","HSST14","NHS","NHS"]
["Norfolk and Norwich University Hospitals NHS Foundation Trust","NHTRM1FT","NHS","NHS"]
["Norfolk and Waveney Mental Health NHS Foundation Trust","NHTRMYFT","NHS","NHS"]
["North Bristol NFT","NHTRVJNFT","NHS","NHS"]
["North Cumbria Acute Hospitals NFT","NHTRNLNFT","NHS","NHS"]
["North East Ambulance Service NHS Trust","NHTRX6NFT","NHS","NHS"]
["North East London NHS Foundation Trust","NHTRATFT","NHS","NHS"]
["North Essex Partnership NHS Foundation Trust","NHTRRDFT","NHS","NHS"]
["North Middlesex University Hospital NFT","NHTRAPNFT","NHS","NHS"]
["North Staffordshire Combined Healthcare NFT","NHTRLYNFT","NHS","NHS"]
["North Tees and Hartlepool NHS Foundation Trust","NHTRVWFT","NHS","NHS"]
["North West Ambulance Service NHS Trust","NHTRX7NFT","NHS","NHS"]
["North West London Hospitals NFT","NHTRV8NFT","NHS","NHS"]
["Northampton General Hospital NFT","NHTRNSNFT","NHS","NHS"]
["Northamptonshire Healthcare NHS Foundation Trust","NHTRP1FT","NHS","NHS"]
["Northern Devon Healthcare NFT","NHTRBZNFT","NHS","NHS"]
["Northern Health and Social Care Trust","NISCT2","NHS","NHS"]
["Northern Lincolnshire and Goole Hospitals NHS Foundation Trust","NHTRJLFT","NHS","NHS"]
["Northumberland, Tyne and Wear NHS Foundation Trust","NHTRX4FT","NHS","NHS"]
["Northumbria Healthcare NHS Foundation Trust","NHTRTFFT","NHS","NHS"]
["Nottingham University Hospitals NHS Trust","NHTRX1NFT","NHS","NHS"]
["Nottinghamshire Healthcare NFT","NHTRHANFT","NHS","NHS"]
["Nuffield Orthopaedic Centre NFT","NHTRBFNFT","NHS","NHS"]
["Oxford Radcliffe Hospitals NFT","NHTRTHNFT","NHS","NHS"]
["Oxfordshire and Buckinghamshire Mental Health NHS Foundation Trust","NHTRNUFT","NHS","NHS"]
["Oxfordshire Learning Disability NFT","NHTRHXNFT","NHS","NHS"]
["Oxleas NHS Foundation Trust","NHTRPGFT","NHS","NHS"]
["Papworth Hospital NHS Foundation Trust","NHTR16FT","NHS","NHS"]
["Pennine Acute Hospitals NFT","NHTRW6NFT","NHS","NHS"]
["Pennine Care NHS Foundation Trust","NHTRT2FT","NHS","NHS"]
["Peterborough and Stamford Hospitals NHS Foundation Trust","NHTR07FT","NHS","NHS"]
["Plymouth Hospitals NFT","NHTRK9NFT","NHS","NHS"]
["Poole Hospital NHS Foundation Trust","NHTRD3FT","NHS","NHS"]
["Portsmouth Hospitals NFT","NHTRHUNFT","NHS","NHS"]
["Princess Alexandra Hospital NFT","NHTRQWNFT","NHS","NHS"]
["Public Health Wales NHS Trust","WNHT15","NHS","NHS"]
["Queen Elizabeth Hospital Kings Lynn NHS Foundation Trust","NHTRCXFT","NHS","NHS"]
["Queen Victoria Hospital NHS Foundation Trust","NHTRPCFT","NHS","NHS"]
["Robert Jones and Agnes Hunt Orthopaedic NFT","NHTRL1NFT","NHS","NHS"]
["Rotherham Doncaster and South Humber Mental Health NHS Foundation Trust","NHTRWCFT","NHS","NHS"]
["Rotherham NHS Foundation Trust","NHTRFRFT","NHS","NHS"]
["Royal Berkshire NHS Foundation Trust","NHTRHWFT","NHS","NHS"]
["Royal Bolton Hospital NHS Foundation Trust","NHTRMCFT","NHS","NHS"]
["Royal Bournemouth & Christchurch Hospitals NHS Foundation Trust","NHTRDZFT","NHS","NHS"]
["Royal Brompton and Harefield NHS Foundation Trust","NHTRT3FT","NHS","NHS"]
["Royal Cornwall Hospitals NFT","NHTREFNFT","NHS","NHS"]
["Royal Devon and Exeter NHS Foundation Trust","NHTR08FT","NHS","NHS"]
["Royal Free Hampstead NFT","NHTRALNFT","NHS","NHS"]
["Royal Liverpool and Broadgreen Universit NFT","NHTRQ6NFT","NHS","NHS"]
["Royal Marsden NHS Foundation Trust","NHTR10FT","NHS","NHS"]
["Royal National Hospital For Rheumatic Diseases NHS Foundation Trust","NHTRBBFT","NHS","NHS"]
["Royal National Orthopaedic Hospital NFT","NHTRANNFT","NHS","NHS"]
["Royal Orthopaedic Hospital NHS Foundation Trust","NHTRRJFT","NHS","NHS"]
["Royal Surrey County Hospital NHS Foundation Trust","NHTRA2FT","NHS","NHS"]
["Royal United Hospital Bath NFT","NHTRD1NFT","NHS","NHS"]
["Royal Wolverhampton Hospitals NFT","NHTRL4NFT","NHS","NHS"]
["Salford Royal NHS Foundation Trust","NHTRM3FT","NHS","NHS"]
["Salisbury NHS Foundation Trust","NHTRNZFT","NHS","NHS"]
["Sandwell and West Birmingham Hospitals NFT","NHTRXKNFT","NHS","NHS"]
["Sandwell Mental Health and Social Care NHS Foundation Trust","NHTTAJFT","NHS","NHS"]
["Scarborough and North East Yorkshire Hea NFT","NHTRCCNFT","NHS","NHS"]
["Sheffield Children’s NHS Foundation Trust","NHTRCUFT","NHS","NHS"]
["Sheffield Health & Social Care NHS Foundation Trust","NHTTAHFT","NHS","NHS"]
["Sheffield Teaching Hospitals NHS Foundation Trust","NHTR18FT","NHS","NHS"]
["Sherwood Forest Hospitals NHS Foundation Trust","NHTRK5FT","NHS","NHS"]
["Shrewsbury and Telford Hospitals NFT","NHTRXWNFT","NHS","NHS"]
["Somerset Partnership NHS Foundation Trust","NHTRH5FT","NHS","NHS"]
["South Central Ambulance Service NHS Trust","NHTRYENFT","NHS","NHS"]
["South Devon Healthcare NHS Foundation Trust","NHTRA9FT","NHS","NHS"]
["South East Coast Ambulance Service NHS Trust","NHTRYDNFT","NHS","NHS"]
["South Eastern Health and Social Care Trust","NISCT3","NHS","NHS"]
["South Essex Partnership University NHS Foundation Trust","NHTRWNFT","NHS","NHS"]
["South London and Maudsley NHS Foundation Trust","NHTRV5FT","NHS","NHS"]
["South London Healthcare NHS Trust","NHTRYQNFT","NHS","NHS"]
["South Staffordshire and Shropshire Healthcare NHS Foundation Trust","NHTRREFT","NHS","NHS"]
["South Tees Hospitals NHS Foundation Trust","NHTRTRFT","NHS","NHS"]
["South Tyneside NHS Foundation Trust","NHTRE9FT","NHS","NHS"]
["South Warwickshire General Hospitals Foundation Trust","NHTRJCFT","NHS","NHS"]
["South West London and St George's Mental NFT","NHTRQYNFT","NHS","NHS"]
["South West Yorkshire Partnership NHS Foundation Trust","NHTRXGFT","NHS","NHS"]
["South Western Ambulance Service NHS Trust","NHTRYFNFT","NHS","NHS"]
["Southampton University Hospitals NFT","NHTRHMNFT","NHS","NHS"]
["Southend University Hospital NHS Foundation Trust","NHTRAJFT","NHS","NHS"]
["Southern Health and Social Care Trust","NISCT4","NHS","NHS"]
["Southport and Ormskirk Hospital NFT","NHTRVYNFT","NHS","NHS"]
["St George's Healthcare NFT","NHTRJ7NFT","NHS","NHS"]
["St Helens and Knowsley Hospitals NFT","NHTRBNNFT","NHS","NHS"]
["Stockport NHS Foundation Trust","NHTR09FT","NHS","NHS"]
["Surrey and Borders Partnership NHS Foundation Trust","NHTRXXFT","NHS","NHS"]
["Surrey And Sussex Healthcare NFT","NHTRTPNFT","NHS","NHS"]
["Sussex Community NFT","NHTRDRNFT","NHS","NHS"]
["Sussex Partnership NHS Foundation Trust","NHTRX2FT","NHS","NHS"]
["Tameside Hospital NHS Foundation Trust","NHTRMPFT","NHS","NHS"]
["Taunton and Somerset NHS Foundation Trust","NHTRBAFT","NHS","NHS"]
["Tavistock and Portman NHS Foundation Trust","NHTRNKFT","NHS","NHS"]
["Tees, Esk and Wear Valleys NHS Foundation Trust","NHTRX3FT","NHS","NHS"]
["Trafford Healthcare NFT","NHTRM4NFT","NHS","NHS"]
["United Lincolnshire Hospitals NFT","NHTRWDNFT","NHS","NHS"]
["University College London Hospitals NHS Foundation Trust","NHTRRVFT","NHS","NHS"]
["University Hospital of North Staffordshi NFT","NHTRJENFT","NHS","NHS"]
["University Hospital of South Manchester NHS Foundation Trust","NHTRM2FT","NHS","NHS"]
["University Hospitals Birmingham NHS Foundation Trust","NHTR20FT","NHS","NHS"]
["University Hospitals Bristol NHS Foundation Trust","NHTRA7FT","NHS","NHS"]
["University Hospitals Coventry and Warwic NFT","NHTRKBNFT","NHS","NHS"]
["University Hospitals of Leicester NFT","NHTRWENFT","NHS","NHS"]
["University Hospitals of Morecambe Bay NHS Foundation Trust","NHTRTXFT","NHS","NHS"]
["Velindre","WNHT13","NHS","NHS"]
["Walsall Hospitals NFT","NHTRBKNFT","NHS","NHS"]
["Walton Centre NHS Foundation Trust","NHTRETFT","NHS","NHS"]
["Warrington and Halton Hospitals NHS Foundation Trust","NHTRWWFT","NHS","NHS"]
["Welsh Ambulance Services","WNHT14","NHS","NHS"]
["West Hertfordshire Hospitals NFT","NHTRWGNFT","NHS","NHS"]
["West London Mental Health NFT","NHTRKLNFT","NHS","NHS"]
["West Middlesex University NFT","NHTRFWNFT","NHS","NHS"]
["West Midlands Ambulance Service NHS Trust","NHTRYANFT","NHS","NHS"]
["West Suffolk Hospitals NFT","NHTRGRNFT","NHS","NHS"]
["Western Health and Social Care Trust","NISCT5","NHS","NHS"]
["Western Sussex Hospitals NFT","NHTRPRNFT","NHS","NHS"]
["Weston Area Health NFT","NHTRA3NFT","NHS","NHS"]
["Whipps Cross University Hospital NFT","NHTRGCNFT","NHS","NHS"]
["Whittington Hospital NFT","NHTRKENFT","NHS","NHS"]
["Winchester and Eastleigh Healthcare NFT","NHTRN1NFT","NHS","NHS"]
["Wirral University Teaching Hospital NHS Foundation Trust","NHTRBLFT","NHS","NHS"]
["Worcestershire Acute Hospitals NFT","NHTRWPNFT","NHS","NHS"]
["Worcestershire Mental Health Partnership NFT","NHTRWQNFT","NHS","NHS"]
["Wrightington, Wigan and Leigh NHS Foundation Trust","NHTRRFFT","NHS","NHS"]
["Yeovil District Hospital NHS Foundation Trust","NHTRA4FT","NHS","NHS"]
["York Hospitals NHS Foundation Trust","NHTRCBFT","NHS","NHS"]
["Yorkshire Ambulance Service NHS Trust","NHTRX8NFT","NHS","NHS"]
["Antrim Borough Council","NI001","NILocGov't","LocGov't"]
["ARC 21 Joint Committee","NI027","NILocGov't","LocGov't"]
["Ards Borough Council","NI002","NILocGov't","LocGov't"]
["Armagh City & District Council","NI003","NILocGov't","LocGov't"]
["Ballymena Borough Council","NI004","NILocGov't","LocGov't"]
["Ballymoney Borough Council","NI005","NILocGov't","LocGov't"]
["Banbridge District Council","NI006","NILocGov't","LocGov't"]
["Belfast City Council","NI007","NILocGov't","LocGov't"]
["Carrickfergus Borough Council","NI008","NILocGov't","LocGov't"]
["Castlereagh Borough Council","NI009","NILocGov't","LocGov't"]
["Coleraine Borough Council","NI010","NILocGov't","LocGov't"]
["Cookstown District County Council","NI011","NILocGov't","LocGov't"]
["Craigavon Borough Council","NI012","NILocGov't","LocGov't"]
["Derry City Council","NI013","NILocGov't","LocGov't"]
["Down District Council","NI014","NILocGov't","LocGov't"]
["Dungannon and South Tyrone Borough Council","NI015","NILocGov't","LocGov't"]
["Fermanagh District Council","NI016","NILocGov't","LocGov't"]
["Larne Borough Council","NI017","NILocGov't","LocGov't"]
["Limavady Borough Council","NI018","NILocGov't","LocGov't"]
["Lisburn Borough Council","NI019","NILocGov't","LocGov't"]
["Magherafelt District Council","NI020","NILocGov't","LocGov't"]
["Moyle District Council","NI021","NILocGov't","LocGov't"]
["Newry and Mourne District Council","NI022","NILocGov't","LocGov't"]
["Newtownabbey Borough Council","NI023","NILocGov't","LocGov't"]
["North Down Borough Council","NI024","NILocGov't","LocGov't"]
["Omagh District Council","NI025","NILocGov't","LocGov't"]
["Strabane District Council","NI026","NILocGov't","LocGov't"]
["Audit Commission","AUC085","PCs","PCs"]
["British Broadcasting Corporation","BBC048","PCs","PCs"]
["British Council","BCL027","PCs","PCs"]
["British Nuclear Fuels plc","BNC084","PCs","PCs"]
["British Waterways Board","BWB003","PCs","PCs"]
["Caledonian Maritime Assets Ltd","CMB075","PCs","PCs"]
["Central Office of Information","COI010","PCs","PCs"]
["Channel Four Television Corporation","CFT048","PCs","PCs"]
["Civil Aviation Authority","CAA004","PCs","PCs"]
["Commonwealth Development Corporation","CDC030","PCs","PCs"]
["Companies House","COH084","PCs","PCs"]
["David MacBrayne Ltd","DMB075","PCs","PCs"]
["Defence Science and Technology Laboratory","DST017","PCs","PCs"]
["Defence Support Group","DSG017","PCs","PCs"]
["Driver and Vehicle Agency (Trading Fund element only) Northern Ireland","VTA206","PCs","PCs"]
["Driving Standards Agency","DSA004","PCs","PCs"]
["FCO Services","FCS027","PCs","PCs"]
["Fire Service College","FSC085","PCs","PCs"]
["Forensic Science Service","FSS034","PCs","PCs"]
["Forest Enterprise Agency","FEA028","PCs","PCs"]
["General Lighthouse Fund","GLF004","PCs","PCs"]
["General Teaching Council","GTC022","PCs","PCs"]
["General Teaching Council for Wales","TCW090","PCs","PCs"]
["Greater Manchester Passenger Transport Executive","GMP004","PCs","PCs"]
["Horserace Totalisator Board","HTB048","PCs","PCs"]
["Intellectual Property Office","PAO084","PCs","PCs"]
["Land Registry","LRG045","PCs","PCs"]
["Medicines and Healthcare Products Regulatory Agency","MHP033","PCs","PCs"]
["Meteorological Office","MEO017","PCs","PCs"]
["National Nuclear Laboratory Ltd","NNL066","PCs","PCs"]
["Nexus (Tyne & Wear Passenger Transport Executive)","NXS004","PCs","PCs"]
["NHS Blood and Transplant","NBA033","PCs","PCs"]
["NHS Professionals","NSP033","PCs","PCs"]
["Northern Ireland Housing Executive","IHE210","PCs","PCs"]
["Northern Ireland Transport Holding Company","THC209","PCs","PCs"]
["Northern Ireland Water Ltd","NIW099","PCs","PCs"]
["OFCOM","OFC084","PCs","PCs"]
["OGC Buying Solutions","BYA087","PCs","PCs"]
["Ordnance Survey","ORD085","PCs","PCs"]
["Registers of Scotland","ROS075","PCs","PCs"]
["Remploy Ltd","REL032","PCs","PCs"]
["Royal Mail Holdings plc","RMH084","PCs","PCs"]
["Royal Mint","RMT087","PCs","PCs"]
["Scottish Water","SWA075","PCs","PCs"]
["UK Hydrographic Office","HYO017","PCs","PCs"]
["Vehicle and Operator Services Agency","VOS004","PCs","PCs"]
["Welsh Fourth Channel Authority","WFC048","PCs","PCs"]
["Aberdeen City Council","S001","ScotLocGov't","LocGov't"]
["Aberdeenshire Council","S002","ScotLocGov't","LocGov't"]
["Angus Council","S003","ScotLocGov't","LocGov't"]
["Argyll and Bute Council","S004","ScotLocGov't","LocGov't"]
["Central Scotland Fire and Rescue Service","S034","ScotLocGov't","LocGov't"]
["Central Scotland Police","S040","ScotLocGov't","LocGov't"]
["Clackmannanshire Council","S005","ScotLocGov't","LocGov't"]
["Comhairle nan Eilean Siar (Western Isles Council)","S006","ScotLocGov't","LocGov't"]
["Dumfries and Galloway Council","S007","ScotLocGov't","LocGov't"]
["Dundee City Council","S008","ScotLocGov't","LocGov't"]
["East Ayrshire Council","S009","ScotLocGov't","LocGov't"]
["East Dunbartonshire Council","S010","ScotLocGov't","LocGov't"]
["East Lothian Council","S011","ScotLocGov't","LocGov't"]
["East Renfrewshire Council","S012","ScotLocGov't","LocGov't"]
["Edinburgh City Council","S013","ScotLocGov't","LocGov't"]
["Falkirk Council","S014","ScotLocGov't","LocGov't"]
["Fife Council","S015","ScotLocGov't","LocGov't"]
["Forth Estuary Transport Authority","S055","ScotLocGov't","LocGov't"]
["Glasgow City Council","S016","ScotLocGov't","LocGov't"]
["Grampian Fire and Rescue Service","S035","ScotLocGov't","LocGov't"]
["Grampian Police","S041","ScotLocGov't","LocGov't"]
["Highland Council","S017","ScotLocGov't","LocGov't"]
["Highlands & Islands Fire Brigade","S036","ScotLocGov't","LocGov't"]
["Inverclyde Council","S018","ScotLocGov't","LocGov't"]
["Lothian & Borders Fire and Rescue Service","S037","ScotLocGov't","LocGov't"]
["Lothian & Borders Police ","S042","ScotLocGov't","LocGov't"]
["Midlothian Council","S019","ScotLocGov't","LocGov't"]
["Moray Council","S020","ScotLocGov't","LocGov't"]
["North Ayrshire Council","S021","ScotLocGov't","LocGov't"]
["North Lanarkshire Council","S022","ScotLocGov't","LocGov't"]
["Northern Constabulary","S043","ScotLocGov't","LocGov't"]
["Orkney Islands Council","S023","ScotLocGov't","LocGov't"]
["Perth and Kinross Council","S025","ScotLocGov't","LocGov't"]
["Renfrewshire Council","S026","ScotLocGov't","LocGov't"]
["Scottish Borders Council","S027","ScotLocGov't","LocGov't"]
["Shetland Charitable Trust","S099","ScotLocGov't","LocGov't"]
["Shetland Islands Council","S028","ScotLocGov't","LocGov't"]
["South Ayrshire Council","S029","ScotLocGov't","LocGov't"]
["South Lanarkshire Council","S030","ScotLocGov't","LocGov't"]
["South-East of Scotland Transport Partnership (SESTRAN)","S049","ScotLocGov't","LocGov't"]
["Stirling Council","S031","ScotLocGov't","LocGov't"]
["Strathclyde Fire and Rescue Service","S038","ScotLocGov't","LocGov't"]
["Strathclyde Partnership for Transport","S046","ScotLocGov't","LocGov't"]
["Strathclyde Police","S044","ScotLocGov't","LocGov't"]
["Tay Road Bridge Joint Board","S056","ScotLocGov't","LocGov't"]
["Tayside Fire and Rescue","S039","ScotLocGov't","LocGov't"]
["Tayside Police","S045","ScotLocGov't","LocGov't"]
["West Dunbartonshire Council","S032","ScotLocGov't","LocGov't"]
["West Lothian Council","S033","ScotLocGov't","LocGov't"]
["Blaenau Gwent County Borough Council","W545","WelLocGov't","LocGov't"]
["Brecon Beacons National Park Authority","W582","WelLocGov't","LocGov't"]
["Bridgend County Borough Council","W536","WelLocGov't","LocGov't"]
["Caerphilly County Borough Council","W544","WelLocGov't","LocGov't"]
["Cardiff City and County Council","W552","WelLocGov't","LocGov't"]
["Carmarthenshire County Council","W530","WelLocGov't","LocGov't"]
["Ceredigion County Council","W526","WelLocGov't","LocGov't"]
["Conwy County Borough Council","W516","WelLocGov't","LocGov't"]
["Denbighshire County Council","W518","WelLocGov't","LocGov't"]
["Dyfed Powys Police Authority","W562","WelLocGov't","LocGov't"]
["Flintshire County Council","W520","WelLocGov't","LocGov't"]
["Gwent Police Authority","W564","WelLocGov't","LocGov't"]
["Gwynedd County Council","W514","WelLocGov't","LocGov't"]
["Isle of Anglesey County Council","W512","WelLocGov't","LocGov't"]
["Merthyr Tydfil County Borough Council","W542","WelLocGov't","LocGov't"]
["Mid and West Wales Fire Authority","W572","WelLocGov't","LocGov't"]
["Monmouthshire County Council","W548","WelLocGov't","LocGov't"]
["Neath Port Talbot County Borough Council","W534","WelLocGov't","LocGov't"]
["Newport City Council","W550","WelLocGov't","LocGov't"]
["North Wales Fire Authority","W574","WelLocGov't","LocGov't"]
["North Wales Police Authority","W566","WelLocGov't","LocGov't"]
["Pembrokeshire Coast National Park Authority","W584","WelLocGov't","LocGov't"]
["Pembrokeshire County Council","W528","WelLocGov't","LocGov't"]
["Powys County Council","W524","WelLocGov't","LocGov't"]
["Rhondda Cynon Taff County Borough Council","W540","WelLocGov't","LocGov't"]
["Snowdonia National Park Authority","W586","WelLocGov't","LocGov't"]
["South Wales Fire Authority","W576","WelLocGov't","LocGov't"]
["South Wales Police Authority","W568","WelLocGov't","LocGov't"]
["Swansea City and County Council","W532","WelLocGov't","LocGov't"]
["Torfaen County Borough Council","W546","WelLocGov't","LocGov't"]
["Vale of Glamorgan County Council","W538","WelLocGov't","LocGov't"]
["Wrexham County Borough Council","W522","WelLocGov't","LocGov't"]

{"sheet":"Reference","index":8,"n_rows":3922,"n_cols":19,"rows_kept":3922,"cut":false,"hidden":true,"merged":[[4,14,4,18]]}
["EFA Accounts Return"]
["Period end:",{"$f":"'Standing Data'!D6","v":"2014-03-31"}]
[]
["LOOKUPS AND DATA TABLES"]
[null,null,null,null,null,null,null,null,null,null,null,null,null,null,"Academy schools - as at 13th March 2014"]
[]
["Period End",null,null,null,"Period length",null,"New or existing member",null,"Pension Schemes",null,null,"Pension scheme types",null,null,"NAME","CODE","Date of conversion","Region","Local Authority"]
["2014-03-31",null,"Yes",null,"Year",null,"Existing member",null,"LGPS",1,null,"Defined benefit scheme(s) - multi-employer allocated scheme assets and liabilities"]
[null,null,"No",null,"Short first period",null,"New member",null,"Teachers Pension Scheme",2,null,"Defined benefit scheme(s) - single employer",null,null,"Multi-academy Trust","Multiple","Multiple","Multiple","Multiple"]
[null,null,null,null,"Long first period",null,null,null,"Stakeholder/private pension scheme provider",3,null,"Defined benefit scheme(s) - multi-employer unallocated scheme assets and liabilities",null,null,"Abacus Belsize Primary School","123288","2013-09-01","London","Camden London Borough Council"]
[null,null,null,null,"Short later period",null,null,null,"Other",4,null,"Defined contribution scheme(s)",null,null,"Abbey College - Ramsey","120322","2011-09-01","East of England","Cambridgeshire County Council"]
[null,null,null,null,"Long later period",null,null,null,"Scheme Name",5,null,"Stakeholder/private pension provision",null,null,"Abbey Grange Church of England High School","120083","2011-08-01","Yorkshire & Humberside","Leeds City Council"]
["Predecessor School Type",null,null,null,null,null,null,null,null,6,null,"Scheme Type",null,null,"Abbey Hey Primary School",124243,"2013-12-01","North West","Manchester City Council"]
["LA school",null,null,null,null,null,null,null,null,7,null,null,null,null,"Abbey Hill School and Technology College","124569","2013-08-01","North East","Stockton-on-Tees Borough Council"]
["Independent school",null,null,null,null,null,null,null,null,8,null,null,null,null,"Abbey Infants' School","119988","2011-08-01","North East","Darlington Borough Council"]
["Faith school",null,null,null,null,null,null,null,null,9,null,null,null,null,"Abbey Junior School","119989","2011-08-01","North East","Darlington Borough Council"]
["Foundation school",null,null,null,null,null,null,null,null,10,null,null,null,null,"Abbey Park Junior, Infant and Nursery School",126329,"2013-12-01","Yorkshire & Humberside","Calderdale Metropolitan Borough Council"]
["Voluntary aided/controlled",null,null,null,"Special payments and losses",null,"Related parties",null,null,null,null,null,null,null,"Abbey School, The","120154","2011-08-01","South East","Kent County Council"]
["No predecessor",null,null,null,"Cash losses",null,"No transactions",null,null,null,null,null,null,null,"Abbey View","123404","2013-09-01","South West","Gloucestershire County Council"]
[null,null,null,null,"Claims abandoned",null,"Transactions",null,null,null,null,null,null,null,"Abbey Woods Academy","123534","2013-09-01","South East","Oxfordshire County Council"]
["Audit opinion",null,null,null,"Administration write-offs",null,null,null,null,null,null,null,null,null,"Abbeyfield School","122250","2012-10-01T15:56:04","East Midlands","Northamptonshire County Council"]
["Unqualified",null,null,null,"Fruitless payments",null,null,null,null,null,null,null,null,null,"Abbeywood Community School","122309","2013-01-01","South West","South Gloucestershire Council"]
["Qualified",null,null,null,"Store/stock losses",null,null,null,"Assurance report on regularity conclusion",null,null,"LGPS Schemes",null,null,"Abbots Hall Primary School","122896","2013-05-01","East of England","Thurrock Borough Council"]
["Emphasis of Matter",null,null,null,"Special payments - non contractual exit packages",null,null,null,"No matters by exception",null,null,"Barking and Dagenham - LGPS",null,null,"Abbs Cross Academy and Art College","119551","2011-04-01","London","Havering London Borough Council"]
["Adverse",null,null,null,"Special payments -other",null,null,null,"Matters by exception",null,null,"Barnet - LGPS",null,null,"Abington Academy","121203","2012-04-01","East Midlands","Leicestershire County Council"]
["N/A - 31 March",null,null,null,"Gifts",null,null,null,"N/A - 31 March",null,null,"Bath and North East Somerset Council - LGPS",null,null,"Abington Vale Primary School","121187","2012-11-01","East Midlands","Northamptonshire County Council"]
[null,null,null,null,null,null,null,null,null,null,null,"Bedfordshire Pension Fund - LGPS",null,null,"Abraham Darby Academy","119101","2008-09-02","West Midlands","Telford and Wrekin Council"]
[null,null,null,null,null,null,null,null,"Benchmarking period",null,null,"Bexley - LGPS",null,null,"Abraham Guest Academy","120210","2012-01-01","North West","Wigan Metropolitan Borough Council"]
[null,null,null,null,"Academy Type",null,null,null,null,null,null,"Brent - LGPS",null,null,"Academy @ Worden","122270","2013-02-01","North West","Lancashire County Council"]
[null,null,null,null,"Sponsored Academy",null,null,null,"0 -6 months",null,null,"Bromley - LGPS",null,null,"Academy 360","119119","2008-09-01","North East","Sunderland City Council"]
[null,null,null,null,"Converter Academy",null,null,null,"6 - 12 months",null,null,"Buckinghamshire County Council- LGPS",null,null,"Academy at Shotton Hall, The","119508","2011-02-01","North East","Durham County Council"]
[null,null,null,null,"Fast Track Sponsored",null,null,null,"12 months",null,null,"Cambridgeshire County Council - LGPS",null,null,"Academy of Central Bedfordshire, THe","123407","2013-09-01","East of England","Bedford Borough Council"]
[null,null,null,null,"Free School",null,null,null,"12 - 18 months",null,null,"Camden - LGPS",null,null,"Academy of St Francis of Assisi, The","119111","2005-09-01","North West","Liverpool City Council"]
[null,null,null,null,"University Technical College",null,null,null,"18 + months",null,null,"Cheshire Pension Fund - LGPS",null,null,"Academy of Trinity C of E Primary","119813","2011-06-01","South West","Bath & North East Somerset Council"]
[null,null,null,null,"Special School",null,null,null,null,null,null,"Cornwall County Council - LGPS",null,null,"Academy St Joseph’s Catholic Primary School - Aylesham ",125019,"2014-01-01","South East","Kent County Council"]
[null,null,null,null,"Studio School",null,null,null,"Land and Buildings",null,null,"Corporation of London - LGPS",null,null,"Accrington Academy","118597","2008-09-01","North West","Lancashire County Council"]
[null,null,null,null,"Multiple",null,null,null,"Land and Buildings - school buildings",null,null,"Croydon - LGPS",null,null,"Accrington St Christopher's Church of England High School","120359","2011-09-01","North West","Lancashire County Council"]
[null,null,null,null,"Other",null,null,null,"Land and Buildings - sports facilities",null,null,"Cumbria County Council - LGPS",null,null,"ACE Academy, The","122775","2013-03-01T15:53:24","West Midlands","Sandwell Metropolitan Borough Council"]
[null,null,null,null,null,null,null,null,"Land and Buildings - HQ/admin",null,null,"Derbyshire County Council - LGPS",null,null,"Acle High School","122565","2012-09-01","East of England","Norfolk County Council"]
[null,null,null,null,"Freehold/leasehold",null,null,null,"Land and Buildings - Other",null,null,"Devon County Council - LGPS",null,null,"Acocks Green Primary School","123272","2013-04-01","West Midlands","Birmingham City Council"]
[null,null,null,null,"Freehold Land and Buildings","_FreeholdLandandBuildings","_FreeholdLBRental",null,"Land only - sports pitches",null,null,"Dorset County Council  - LGPS",null,null,"Acorn Free School, The","123412","2013-09-01","East Midlands","Lincolnshire County Council"]
[null,null,null,null,"Leasehold Land and Buildings","_LeaseholdLandandBuildings","_LeaseholdLBRental",null,"Land only - car parks",null,null,"Durham County Council - LGPS",null,null,"Acre Hall Academy","122311","2013-07-01","North West","Trafford Borough Council"]
[null,null,null,null,"Leasehold Improvements","_LeaseholdImprovements","_ImprovementsLBRental",null,"Land only - other",null,null,"Ealing - LGPS",null,null,"Acre Rigg Junior School","122739","2012-12-01","North East","Durham County Council"]
[null,null,null,null,"Donor/lessor",null,null,null,null,null,null,"East Riding Pension Fund - LGPS",null,null,"Adams' Grammar School","120418","2011-09-01","West Midlands","Telford and Wrekin Council"]
[null,null,null,null,"Purchase by trust",null,null,null,null,null,null,"East Sussex County Council - LGPS",null,null,"Addington High School","122641","2013-06-01","London","Croydon London Borough Council"]
[null,null,null,null,"Local authority",null,null,null,null,null,null,"Enfield - LGPS",null,null,"Adelaide School",129409,"2013-12-01","North West","Cheshire East Council"]
[null,null,null,null,"Church",null,null,null,null,null,null,"Environment Agency - LGPS",null,null,"Admirals' Junior School","122656","2012-11-01","East of England","Norfolk County Council"]
[null,null,null,null,"Other faith body",null,null,null,"_LeaseholdLandandBuildings",null,null,"Essex County Council - LGPS",null,null,"Aerodrome School, The","123037","2012-12-01","London","Croydon London Borough Council"]
[null,null,null,null,"Other",null,null,null,"Operating",null,null,"Gloucestershire County Council - LGPS",null,null,"Ainthorpe Primary School",124306,"2013-12-01","Yorkshire & Humberside","Hull City Council"]
[null,null,null,null,null,null,null,null,"Finance",null,null,"Greater Manchester Pension Fund - LGPS",null,null,"Airedale Academy Trust","119563","2011-04-01","Yorkshire & Humberside","Wakefield Council"]
[null,null,null,null,"_FreeholdLBRental",null,null,null,null,null,null,"Greenwich - LGPS",null,null,"Al Madinah School","122100","2012-09-01","East Midlands","Derby City Council"]
[null,null,null,null,"n/a",null,null,null,null,null,null,"Hackney - LGPS",null,null,"Alameda Middle School","120249","2011-08-01","East of England","Central Bedfordshire Council"]
[null,null,null,null,null,null,null,null,"_LeaseholdImprovements",null,null,"Hammersmith and Fulham - LGPS",null,null,"Alban Church of England Academy Trust","119583","2011-04-01","East of England","Bedford Borough Council"]
[null,null,null,null,null,null,null,null,"Operating",null,null,"Hampshire Pension Fund - LGPS",null,null,"Alban City Free School","122102","2012-09-01","East of England","Hertfordshire County Council"]
[null,null,null,null,"_LeaseholdLBRental",null,null,null,"Finance",null,null,"Haringey - LGPS",null,null,"Albany Academy - Chorley","121853","2012-08-01","North West","Lancashire County Council"]
[null,null,null,null,"Nominal",null,null,null,"Rental",null,null,"Harrow - LGPS",null,null,"Albany, The - Havering","120189","2011-08-01","London","Havering London Borough Council"]
[null,null,null,null,"Market Value",null,null,null,null,null,null,"Havering - LGPS",null,null,"Albion Academy, The","121940","2012-09-01","North West","Salford City Council"]
[null,null,null,null,null,null,null,null,"_FreeholdLandandBuildings",null,null,"Hertfordshire County Council - LGPS",null,null,"Alcester Academy","120172","2011-08-01","West Midlands","Warwickshire County Council"]
[null,null,null,null,"_ImprovementsLBRental",null,null,null,"n/a",null,null,"Hillingdon - LGPS",null,null,"Alcester Grammar School","119579","2011-04-01","West Midlands","Warwickshire County Council"]
[null,null,null,null,"Nominal",null,null,null,null,null,null,"Hounslow - LGPS",null,null,"Aldborough E-ACT Free School","120534","2011-09-01","London","Redbridge London Borough Council"]
[null,null,null,null,"Market Value",null,null,null,null,null,null,"Isle of Wight Council - LGPS",null,null,"Alderbrook Leading Edge School and Arts College","119994","2011-08-01","West Midlands","Solihull Metropolitan Borough Council"]
[null,null,null,null,null,null,null,null,null,null,null,"Islington - LGPS",null,null,"Alderman Jacobs Primary School","119676","2011-04-01","East of England","Cambridgeshire County Council"]
[null,null,null,null,null,null,null,null,null,null,null,"Kensington and Chelsea - LGPS",null,null,"Alderman White School","122717","2012-10-01","East Midlands","Nottinghamshire County Council"]
[null,null,null,null,null,null,null,null,null,null,null,"Kent County Council (Kent Pension Fund) - LGPS",null,null,"Aldersley High School","122992","2013-01-01","West Midlands","Wolverhampton City Council"]
[null,null,null,null,null,null,null,null,null,null,null,"Kingston upon Thames - LGPS",null,null,"Aldridge School - A Science College","121205","2012-04-01","West Midlands","Walsall Metropolitan Borough Council"]
[null,null,null,null,null,null,null,null,null,null,null,"Lambeth - LGPS",null,null,"Alec Hunter Humanities College","123939","2013-04-01","East of England","Essex County Council"]
[null,null,null,null,null,null,null,null,null,null,null,"Lancashire County Council - LGPS",null,null,"Alec Reed Academy, The","118409","2003-09-01","London","Ealing London Borough Council"]
[null,null,null,null,null,null,null,null,null,null,null,"Leicestershire County Council - LGPS",null,null,"Alexandra Infant School",125230,"2013-12-01","London","Bromley London Borough Council"]
[null,null,null,null,null,null,null,null,null,null,null,"Lewisham - LGPS",null,null,"Alexandra Junior School","125200","2013-09-01","London","Bromley London Borough Council"]
[null,null,null,null,null,null,null,null,null,null,null,"Lincolnshire County Council - LGPS",null,null,"Alexandra Park School","120567","2011-10-01","London","Haringey London Borough Council"]
[null,null,null,null,null,null,null,null,null,null,null,"London Pension Fund Authority - LGPS",null,null,"Alexandra School","124171","2013-09-01","London","Harrow London Borough Council"]
[null,null,null,null,null,null,null,null,null,null,null,"Merseyside Pension Fund - LGPS",null,null,"Alfriston School","120753","2012-03-01","South East","Buckinghamshire County Council"]
[null,null,null,null,null,null,null,null,null,null,null,"Merton - LGPS",null,null,"All Faiths' Children's Community School","121000","2012-06-01","South East","Medway Council"]
[null,null,null,null,null,null,null,null,null,null,null,"Newham - LGPS",null,null,"All Hallows Catholic College","123111","2013-01-01","North West","Cheshire East Council"]
[null,null,null,null,null,null,null,null,null,null,null,"Norfolk County Council - LGPS",null,null,"All Saints Academy - Barnsley","120930","2012-09-01","Yorkshire & Humberside","Barnsley Metropolitan Borough Council"]
[null,null,null,null,null,null,null,null,null,null,null,"North Yorkshire County Council - LGPS",null,null,"All Saints Academy - Bedford","119040","2009-09-01","East of England","Central Bedfordshire Council"]
[null,null,null,null,null,null,null,null,null,null,null,"Northamptonshire County Council - LGPS",null,null,"All Saints Academy - Stockton-on-Tees","120760","2013-05-01","North East","Stockton-on-Tees Borough Council"]
[null,null,null,null,null,null,null,null,null,null,null,"Northumberland County Council - LGPS",null,null,"All Saints' Academy, The - Cheltenham","119150","2011-09-01","South West","Gloucestershire County Council"]
[null,null,null,null,null,null,null,null,null,null,null,"Nottinghamshire County Council - LGPS",null,null,"All Saints Babbacombe CofE Primary School","130163","2014-03-01","South West","Torbay Council"]
[null,null,null,null,null,null,null,null,null,null,null,"Oxfordshire County Council - LGPS",null,null,"All Saints Catholic College - Dukinfield","124644","2013-06-01","North West","Tameside Metropolitan Borough Council"]
[null,null,null,null,null,null,null,null,null,null,null,"Redbridge - LGPS",null,null,"All Saints' Catholic High School - Sheffield","121197","2012-07-01","Yorkshire & Humberside","Sheffield City Council"]
[null,null,null,null,null,null,null,null,null,null,null,"Richmond upon Thames - LGPS",null,null,"All Saints Church of England Academy - Plymouth","119199","2010-09-01","South West","Plymouth City Council"]
[null,null,null,null,null,null,null,null,null,null,null,"Royal County of Berkshire Pension Fund - LGPS",null,null,"All Saints Interchurch Academy - March","124183","2013-04-01","East of England","Cambridgeshire County Council"]
[null,null,null,null,null,null,null,null,null,null,null,"Shropshire County Pension Fund - LGPS",null,null,"All Saints Junior School - Reading","120504","2011-09-01","South East","Reading Borough Council"]
[null,null,null,null,null,null,null,null,null,null,null,"Somerset County Council - LGPS",null,null,"Alleyne's Academy","123084","2013-09-01","West Midlands","Staffordshire County Council"]
[null,null,null,null,null,null,null,null,null,null,null,"South Yorkshire Integrated Transport Pension Fund - LGPS",null,null,"Allhallows Primary School","124701","2013-09-01","South East","Medway Council"]
[null,null,null,null,null,null,null,null,null,null,null,"South Yorkshire Pension Authority - LGPS",null,null,"Allington Primary School","122969","2012-12-01","South East","Kent County Council"]
[null,null,null,null,null,null,null,null,null,null,null,"Southwark - LGPS",null,null,"Alma Primary","123357","2013-09-01","London","Barnet London Borough Council"]
[null,null,null,null,null,null,null,null,null,null,null,"Staffordshire County Council - LGPS",null,null,"Alperton Community School","122325","2012-09-01","London","Brent London Borough Council"]
[null,null,null,null,null,null,null,null,null,null,null,"Suffolk County Council - LGPS",null,null,"Alsager School","124251","2013-09-01","North West","Cheshire East Council"]
[null,null,null,null,null,null,null,null,null,null,null,"Surrey County Council - LGPS",null,null,"Altrincham College of Arts","122124","2012-09-01","North West","Trafford Borough Council"]
[null,null,null,null,null,null,null,null,null,null,null,"Sutton - LGPS",null,null,"Altrincham Grammar School for Boys","119511","2011-02-01","North West","Trafford Borough Council"]
[null,null,null,null,null,null,null,null,null,null,null,"Teesside Pension Fund - LPGS",null,null,"Altrincham Grammar School for Girls","120289","2011-08-17","North West","Trafford Borough Council"]
[null,null,null,null,null,null,null,null,null,null,null,"Tower Hamlets - LGPS",null,null,"Altwood CofE Secondary School","122326","2012-07-01","South East","Royal Borough of Windsor and Maidenhead"]
[null,null,null,null,null,null,null,null,null,null,null,"Tyne and Wear Pension Fund - LGPS",null,null,"Ambleside Primary School","122945","2013-04-01","East Midlands","Nottingham City Council"]
[null,null,null,null,null,null,null,null,null,null,null,"Waltham Forest - LGPS",null,null,"Amersham School","120372","2011-09-01","South East","Buckinghamshire County Council"]
[null,null,null,null,null,null,null,null,null,null,null,"Wandsworth - LGPS",null,null,"Amery Hill School","120500","2011-10-01","South East","Hampshire County Council"]
[null,null,null,null,null,null,null,null,null,null,null,"Warwickshire County Council - LGPS",null,null,"Amherst School","119499","2011-03-01","South East","Kent County Council"]
[null,null,null,null,null,null,null,null,null,null,null,"West Midlands Pension Fund - LGPS",null,null,"Anand Primary School","123289","2013-09-01","West Midlands","Wolverhampton City Council"]
[null,null,null,null,null,null,null,null,null,null,null,"West Sussex County Council - LGPS",null,null,"Anchorsholme Primary School","124111","2013-09-01","North West","Blackpool Council"]
[null,null,null,null,null,null,null,null,null,null,null,"West Yorkshire Pension Fund - LGPS",null,null,"Anglesey Primary Academy","123086","2012-12-01","West Midlands","Staffordshire County Council"]
[null,null,null,null,null,null,null,null,null,null,null,"Westminster City Council - LGPS",null,null,"Anglo European School","120813","2011-12-01T12:06:56","East of England","Essex County Council"]
[null,null,null,null,null,null,null,null,null,null,null,"Wiltshire County Council - LGPS",null,null,"Ansford Academy","119839","2011-07-01","South West","Somerset County Council"]
[null,null,null,null,null,null,null,null,null,null,null,"Worcestershire County Council - LGPS",null,null,"Appleby Grammar School","120251","2011-08-01","North West","Cumbria County Council"]
[null,null,null,null,null,null,null,null,null,null,null,null,null,null,"Applecroft School","120654","2012-03-01","East of England","Hertfordshire County Council"]
[null,null,null,null,null,null,null,null,null,null,null,null,null,null,"Applegarth Nursery and Infant School","123941","2013-04-01","London","Croydon London Borough Council"]
[null,null,null,null,null,null,null,null,null,null,null,null,null,null,"Appleton Academy - Bradford","119126","2009-09-01","Yorkshire & Humberside","Bradford Metropolitan District Council"]
[null,null,null,null,null,null,null,null,null,null,null,null,null,null,"Appleton Primary School - Hull",124252,"2013-10-01","Yorkshire & Humberside","Hull City Council"]
[null,null,null,null,null,null,null,null,null,null,null,null,null,null,"Appleton School, The - Benfleet","119556","2011-04-01","East of England","Essex County Council"]
[null,null,null,null,null,null,null,null,null,null,null,null,null,null,"Arbours Academy, The","122541","2013-01-01","East Midlands","Northamptonshire County Council"]
[null,null,null,null,null,null,null,null,null,null,null,null,null,null,"Archbishop Benson CofE Primary School","120258","2011-08-01","South West","Cornwall Council"]
[null,null,null,null,null,null,null,null,null,null,null,null,null,null,"Archbishop Cranmer Church of England Academy ",124584,"2014-02-01","East Midlands","Nottinghamshire County Council"]
[null,null,null,null,null,null,null,null,null,null,null,null,null,null,"Archbishop Holgate's School","119523","2011-04-01","Yorkshire & Humberside","City of York Council"]
[null,null,null,null,null,null,null,null,null,null,null,null,null,null,"Archbishop Sentamu Academy","119095","2008-09-01","Yorkshire & Humberside","Hull City Council"]
[null,null,null,null,null,null,null,null,null,null,null,null,null,null,"Archer Academy, The","123349","2013-09-01","London","Barnet London Borough Council"]
[null,null,null,null,null,null,null,null,null,null,null,null,null,null,"Arden Academy","119276","2010-10-01","West Midlands","Solihull Metropolitan Borough Council"]
[null,null,null,null,null,null,null,null,null,null,null,null,null,null,"Arden Grove Infant and Nursery School","124389","2013-06-01","East of England","Norfolk County Council"]
[null,null,null,null,null,null,null,null,null,null,null,null,null,null,"Ardley Hill Academy","121192","2012-06-01","East of England","Central Bedfordshire Council"]
[null,null,null,null,null,null,null,null,null,null,null,null,null,null,"Ark Academy","118659","2008-09-30","London","Brent London Borough Council"]
[null,null,null,null,null,null,null,null,null,null,null,null,null,null,"ARK All Saints Academy","122186","2013-09-01","London","Southwark London Borough Council"]
[null,null,null,null,null,null,null,null,null,null,null,null,null,null,"ARK Atwood Primary Academy","120505","2011-09-01","London","Westminster City Council"]
[null,null,null,null,null,null,null,null,null,null,null,null,null,null,"ARK Ayrton Primary Academy","123906","2013-09-01","South East","Portsmouth City Council"]
[null,null,null,null,null,null,null,null,null,null,null,null,null,null,"ARK Bentworth Primary Academy","122381","2012-09-01","London","Hammersmith and Fulham London Borough Council"]
[null,null,null,null,null,null,null,null,null,null,null,null,null,null,"ARK Bolingbroke Academy","122013","2012-09-01","London","Wandsworth London Borough Council"]
[null,null,null,null,null,null,null,null,null,null,null,null,null,null,"ARK Brunel Primary Academy","124488","2013-09-01","London","Royal Borough of Kensington and Chelsea Council"]
[null,null,null,null,null,null,null,null,null,null,null,null,null,null,"ARK Conway Primary Academy","120506","2011-09-01","London","Hammersmith and Fulham London Borough Council"]
[null,null,null,null,null,null,null,null,null,null,null,null,null,null,"ARK Franklin Primary Academy","124680","2013-09-01","London","Brent London Borough Council"]
[null,null,null,null,null,null,null,null,null,null,null,null,null,null,"ARK Globe Academy","118614","2008-09-01","London","Southwark London Borough Council"]
[null,null,null,null,null,null,null,null,null,null,null,null,null,null,"ARK John Keats Academy","123290","2013-09-01","London","Enfield London Borough Council"]
[null,null,null,null,null,null,null,null,null,null,null,null,null,null,"ARK Kings Academy","120907","2012-09-01","West Midlands","Birmingham City Council"]
[null,null,null,null,null,null,null,null,null,null,null,null,null,null,"ARK Oval Primary Academy","120114","2011-09-01","London","Croydon London Borough Council"]
[null,null,null,null,null,null,null,null,null,null,null,null,null,null,"ARK Priory Primary Academy","121923","2013-09-01","London","Ealing London Borough Council"]
[null,null,null,null,null,null,null,null,null,null,null,null,null,null,"ARK Putney Academy","122388","2012-09-01","London","Wandsworth London Borough Council"]
[null,null,null,null,null,null,null,null,null,null,null,null,null,null,"ARK Rose Academy","121847","2012-09-01","West Midlands","Birmingham City Council"]
[null,null,null,null,null,null,null,null,null,null,null,null,null,null,"ARK Swift Primary Academy","124224","2013-09-01","London","Hammersmith and Fulham London Borough Council"]
[null,null,null,null,null,null,null,null,null,null,null,null,null,null,"ARK Tindal Primary Academy","120992","2012-09-01","West Midlands","Birmingham City Council"]
[null,null,null,null,null,null,null,null,null,null,null,null,null,null,"ARK William Parker Academy","124511","2013-09-01","South East","East Sussex County Council"]
[null,null,null,null,null,null,null,null,null,null,null,null,null,null,"Armthorpe School, The","121002","2012-07-01","Yorkshire & Humberside","Doncaster Metropolitan Borough Council"]
[null,null,null,null,null,null,null,null,null,null,null,null,null,null,"Arnewood School Academy, The","119649","2011-04-01","South East","Hampshire County Council"]
[null,null,null,null,null,null,null,null,null,null,null,null,null,null,"Arnold Academy","119841","2011-07-01","East of England","Central Bedfordshire Council"]
[null,null,null,null,null,null,null,null,null,null,null,null,null,null,"Arnold Hill School and Technology College","120591","2011-10-01","East Midlands","Nottinghamshire County Council"]
[null,null,null,null,null,null,null,null,null,null,null,null,null,null,"Arnside National CofE School","120652","2011-12-01","North West","Cumbria County Council"]
[null,null,null,null,null,null,null,null,null,null,null,null,null,null,"Arrow Vale RSA Academy","122314","2012-09-01","West Midlands","Worcestershire County Council"]
[null,null,null,null,null,null,null,null,null,null,null,null,null,null,"Arthur Mellows Village College","119274","2010-09-01","East of England","Peterborough City Council"]
[null,null,null,null,null,null,null,null,null,null,null,null,null,null,"Arthur Terry School, The","120018","2012-05-01","West Midlands","Birmingham City Council"]
[null,null,null,null,null,null,null,null,null,null,null,null,null,null,"Asfordby Hill Primary School","124150","2013-03-01","East Midlands","Leicestershire County Council"]
[null,null,null,null,null,null,null,null,null,null,null,null,null,null,"Ash Field Academy","121036","2012-04-01","East Midlands","Leicester City Council"]
[null,null,null,null,null,null,null,null,null,null,null,null,null,null,"Ash Green School and Arts College","120803","2012-01-01","West Midlands","Warwickshire County Council"]
[null,null,null,null,null,null,null,null,null,null,null,null,null,null,"Ash Grove Primary and Nursery School",124642,"2013-12-01","North West","Cheshire East Council"]
[null,null,null,null,null,null,null,null,null,null,null,null,null,null,"Ash Hill Academy","120458","2011-09-01","Yorkshire & Humberside","Doncaster Metropolitan Borough Council"]
[null,null,null,null,null,null,null,null,null,null,null,null,null,null,"Ashburton Primary School","119678","2011-04-01","South West","Devon County Council"]
[null,null,null,null,null,null,null,null,null,null,null,null,null,null,"Ashby Hill Top Primary School","122680","2012-10-01","East Midlands","Leicestershire County Council"]
[null,null,null,null,null,null,null,null,null,null,null,null,null,null,"Ashby School","122080","2012-10-01","East Midlands","Leicestershire County Council"]
[null,null,null,null,null,null,null,null,null,null,null,null,null,null,"Ashcroft Technology Academy","118598","2007-09-01","London","Wandsworth London Borough Council"]
[null,null,null,null,null,null,null,null,null,null,null,null,null,null,"Ashfield Comprehensive School","121097","2012-04-01","East Midlands","Nottingham City Council"]
[null,null,null,null,null,null,null,null,null,null,null,null,null,null,"Ashingdon Primary Academy","120332","2011-09-01","East of England","Essex County Council"]
[null,null,null,null,null,null,null,null,null,null,null,null,null,null,"Ashlawn School Academy Trust","119553","2011-04-01","West Midlands","Warwickshire County Council"]
[null,null,null,null,null,null,null,null,null,null,null,null,null,null,"Ashley School, The","120339","2011-09-01","East of England","Suffolk County Council"]
[null,null,null,null,null,null,null,null,null,null,null,null,null,null,"Ashmole Academy","119277","2010-10-01","London","Barnet London Borough Council"]
[null,null,null,null,null,null,null,null,null,null,null,null,null,null,"Ashperton Primary Academy","119524","2011-04-01","West Midlands","Herefordshire Council"]
[null,null,null,null,null,null,null,null,null,null,null,null,null,null,"Ashton-on-Mersey School","122001","2012-05-01T14:15:11","North West","Trafford Borough Council"]
[null,null,null,null,null,null,null,null,null,null,null,null,null,null,"Ashwell Pupil Referral Unit","123233","2013-04-01","Yorkshire & Humberside","Hull City Council"]
[null,null,null,null,null,null,null,null,null,null,null,null,null,null,"Aston Academy - Rotherham","119718","2011-05-01","Yorkshire & Humberside","Rotherham Metropolitan Borough Council"]
[null,null,null,null,null,null,null,null,null,null,null,null,null,null,"Aston Manor Academy - Birmingham","119882","2011-07-01","West Midlands","Birmingham City Council"]
[null,null,null,null,null,null,null,null,null,null,null,null,null,null,"Aston UTC - Birmingham","122150","2012-09-01","West Midlands","Birmingham City Council"]
[null,null,null,null,null,null,null,null,null,null,null,null,null,null,"Astor College","122113","2012-06-01","South East","Kent County Council"]
[null,null,null,null,null,null,null,null,null,null,null,null,null,null,"Astwood Bank First School",124767,"2013-10-01","West Midlands","Worcestershire County Council"]
[null,null,null,null,null,null,null,null,null,null,null,null,null,null,"Atherton Community School","121960","2012-09-01","North West","Wigan Metropolitan Borough Council"]
[null,null,null,null,null,null,null,null,null,null,null,null,null,null,"Atkinson Road Primary School","121210","2012-06-01","North East","Newcastle Upon Tyne City Council"]
[null,null,null,null,null,null,null,null,null,null,null,null,null,null,"Attleborough High School",127652,"2014-01-01","East of England","Norfolk County Council"]
[null,null,null,null,null,null,null,null,null,null,null,null,null,null,"Atwood Primary School",128107,"2014-01-01","London","Croydon London Borough Council"]
[null,null,null,null,null,null,null,null,null,null,null,null,null,null,"Auckley Junior and Infant School","120431","2011-09-01","Yorkshire & Humberside","Doncaster Metropolitan Borough Council"]
[null,null,null,null,null,null,null,null,null,null,null,null,null,null,"Audenshaw School","119350","2010-09-01","North West","Tameside Metropolitan Borough Council"]
[null,null,null,null,null,null,null,null,null,null,null,null,null,null,"Austrey CofE Primary School","123227","2013-09-01","West Midlands","Warwickshire County Council"]
[null,null,null,null,null,null,null,null,null,null,null,null,null,null,"Avanti House School","123026","2012-09-01","London","Harrow London Borough Council"]
[null,null,null,null,null,null,null,null,null,null,null,null,null,null,"Avenue School, The","120383","2011-09-01","South East","Reading Borough Council"]
[null,null,null,null,null,null,null,null,null,null,null,null,null,null,"Aveton Gifford CofE Primary School","122910","2012-09-01","South West","Devon County Council"]
[null,null,null,null,null,null,null,null,null,null,null,null,null,null,"Avishayes Community Primary School","120174","2011-08-01","South West","Somerset County Council"]
[null,null,null,null,null,null,null,null,null,null,null,null,null,null,"Avonbourne School","121944","2012-06-01","South West","Bournemouth Borough Council"]
[null,null,null,null,null,null,null,null,null,null,null,null,null,null,"Axbridge Church of England First School","122395","2012-09-01","South West","Somerset County Council"]
[null,null,null,null,null,null,null,null,null,null,null,null,null,null,"Axholme Academy, The","120982","2012-01-01","Yorkshire & Humberside","North Lincolnshire Council"]
[null,null,null,null,null,null,null,null,null,null,null,null,null,null,"Aylesbury Grammar School","119884","2011-07-01","South East","Buckinghamshire County Council"]
[null,null,null,null,null,null,null,null,null,null,null,null,null,null,"Aylesbury High School","119846","2011-07-01","South East","Buckinghamshire County Council"]
[null,null,null,null,null,null,null,null,null,null,null,null,null,null,"Aylesbury Vale Academy, The","118894","2009-09-01","South East","Buckinghamshire County Council"]
[null,null,null,null,null,null,null,null,null,null,null,null,null,null,"Aylesford Primary School",124228,"2013-12-01","South East","Kent County Council"]
[null,null,null,null,null,null,null,null,null,null,null,null,null,null,"Aylesford School & Sixth Form College","120810","2012-01-01","West Midlands","Warwickshire County Council"]
[null,null,null,null,null,null,null,null,null,null,null,null,null,null,"Aylward Academy","119211","2010-09-01","London","Enfield London Borough Council"]
[null,null,null,null,null,null,null,null,null,null,null,null,null,null,"Backwell School","119719","2011-05-01","South West","North Somerset District Council"]
[null,null,null,null,null,null,null,null,null,null,null,null,null,null,"Bacon's College","118383","2007-09-01","London","Southwark London Borough Council"]
[null,null,null,null,null,null,null,null,null,null,null,null,null,null,"Bacup and Rawtenstall Grammar School","122800","2012-10-01","North West","Lancashire County Council"]
[null,null,null,null,null,null,null,null,null,null,null,null,null,null,"Baird Primary Academy, The",124819,"2014-01-01","South East","East Sussex County Council"]
[null,null,null,null,null,null,null,null,null,null,null,null,null,null,"Balby Carr Community Sports and Science College",124987,"2013-11-01","Yorkshire & Humberside","Doncaster Metropolitan Borough Council"]
[null,null,null,null,null,null,null,null,null,null,null,null,null,null,"Balcarras School","119474","2011-02-01","South West","Gloucestershire County Council"]
[null,null,null,null,null,null,null,null,null,null,null,null,null,null,"Balgowan Primary School","120216","2011-08-01","London","Bromley London Borough Council"]
[null,null,null,null,null,null,null,null,null,null,null,null,null,null,"Balsall Common Primary School","122160","2012-08-01","West Midlands","Solihull Metropolitan Borough Council"]
[null,null,null,null,null,null,null,null,null,null,null,null,null,null,"Bamford Academy","120360","2011-09-01","North West","Rochdale Metropolitan Borough Council"]
[null,null,null,null,null,null,null,null,null,null,null,null,null,null,"Banbury Academy","120641","2012-08-01T12:41:05","South East","Oxfordshire County Council"]
[null,null,null,null,null,null,null,null,null,null,null,null,null,null,"Bannerman Road Community Academy","122940","2013-01-01","South West","Bristol City Council"]
[null,null,null,null,null,null,null,null,null,null,null,null,null,null,"Barbara Priestman School","122338","2012-08-01","North East","Sunderland City Council"]
[null,null,null,null,null,null,null,null,null,null,null,null,null,null,"Barclay Primary School","122408","2012-09-01","London","Waltham Forest London Borough Council"]
[null,null,null,null,null,null,null,null,null,null,null,null,null,null,"Barnby Dun Primary School","121426","2012-06-01","Yorkshire & Humberside","Doncaster Metropolitan Borough Council"]
[null,null,null,null,null,null,null,null,null,null,null,null,null,null,"Barnby Road Academy Primary and Nursery school","119256","2010-09-06","East Midlands","Nottinghamshire County Council"]
[null,null,null,null,null,null,null,null,null,null,null,null,null,null,"Barnehurst Infant School",126400,"2013-11-01","London","Bexley London Borough Council"]
[null,null,null,null,null,null,null,null,null,null,null,null,null,null,"Barnehurst Junior School",126291,"2013-11-01","London","Bexley London Borough Council"]
[null,null,null,null,null,null,null,null,null,null,null,null,null,null,"Barnfield Business and Enterprise Studio Academy","119325","2010-09-01","East of England","Luton Borough Council"]
[null,null,null,null,null,null,null,null,null,null,null,null,null,null,"Barnfield Moorlands Free School","120524","2011-09-01","East of England","Luton Borough Council"]
[null,null,null,null,null,null,null,null,null,null,null,null,null,null,"Barnfield South Academy - Luton","118599","2007-09-01","East of England","Luton Borough Council"]
[null,null,null,null,null,null,null,null,null,null,null,null,null,null,"Barnfield Vale Academy - Dunstable","120860","2012-09-01","East of England","Central Bedfordshire Council"]
[null,null,null,null,null,null,null,null,null,null,null,null,null,null,"Barnfield West Academy - Luton","118600","2007-09-01","East of England","Luton Borough Council"]
[null,null,null,null,null,null,null,null,null,null,null,null,null,null,"Barnhill Community High School","120071","2012-02-01","London","Hillingdon London Borough Council"]
[null,null,null,null,null,null,null,null,null,null,null,null,null,null,"Barnsbury Primary School",127442,"2014-01-01","South East","Surrey County Council"]
[null,null,null,null,null,null,null,null,null,null,null,null,null,null,"Barnsley Academy","118649","2006-09-01","Yorkshire & Humberside","Barnsley Metropolitan Borough Council"]
[null,null,null,null,null,null,null,null,null,null,null,null,null,null,"Barr Beacon School","119885","2011-07-01","West Midlands","Walsall Metropolitan Borough Council"]
[null,null,null,null,null,null,null,null,null,null,null,null,null,null,"Barrow 1618","121961","2012-09-01","West Midlands","Shropshire Council"]
[null,null,null,null,null,null,null,null,null,null,null,null,null,null,"Barrs Court School","122903","2013-05-01","West Midlands","Herefordshire Council"]
[null,null,null,null,null,null,null,null,null,null,null,null,null,null,"Bartholomew School","120914","2012-03-01T10:15:07","South East","Oxfordshire County Council"]
[null,null,null,null,null,null,null,null,null,null,null,null,null,null,"Bartley Green School","119552","2011-04-01","West Midlands","Birmingham City Council"]
[null,null,null,null,null,null,null,null,null,null,null,null,null,null,"Barton Court Grammar School","120444","2011-09-01","South East","Kent County Council"]
[null,null,null,null,null,null,null,null,null,null,null,null,null,null,"Barton Hill Primary Academy","120920","2012-09-01","South West","Torbay Council"]
[null,null,null,null,null,null,null,null,null,null,null,null,null,null,"Barton Junior School","122170","2012-06-01","South East","Kent County Council"]
[null,null,null,null,null,null,null,null,null,null,null,null,null,null,"Barwell Church of England Junior School","122989","2012-11-01","East Midlands","Leicestershire County Council"]
[null,null,null,null,null,null,null,null,null,null,null,null,null,null,"Basildon Lower Academy, The","119146","2009-09-01","East of England","Essex County Council"]
[null,null,null,null,null,null,null,null,null,null,null,null,null,null,"Basildon Upper Academy, The","119147","2009-09-01","East of England","Essex County Council"]
[null,null,null,null,null,null,null,null,null,null,null,null,null,null,"Bassingbourn Village College","120401","2011-09-01","East of England","Cambridgeshire County Council"]
[null,null,null,null,null,null,null,null,null,null,null,null,null,null,"Bath Community Academy","120949","2012-09-01","South West","Bath & North East Somerset Council"]
[null,null,null,null,null,null,null,null,null,null,null,null,null,null,"Batley Girls' High School","120432","2011-09-01","Yorkshire & Humberside","Kirklees Metropolitan Council"]
[null,null,null,null,null,null,null,null,null,null,null,null,null,null,"Batley Grammar School","120487","2011-09-01","Yorkshire & Humberside","Kirklees Metropolitan Council"]
[null,null,null,null,null,null,null,null,null,null,null,null,null,null,"Battle Primary Academy","122633","2013-01-01","South East","Reading Borough Council"]
[null,null,null,null,null,null,null,null,null,null,null,null,null,null,"Battling Brook Community Primary School","124192","2013-06-01","East Midlands","Leicestershire County Council"]
[null,null,null,null,null,null,null,null,null,null,null,null,null,null,"Baverstock Foundation School and Specialist Sports College","124250","2013-06-01","West Midlands","Birmingham City Council"]
[null,null,null,null,null,null,null,null,null,null,null,null,null,null,"Baxter College","122417","2012-09-01","West Midlands","Worcestershire County Council"]
[null,null,null,null,null,null,null,null,null,null,null,null,null,null,"Bay House School","120781","2012-01-01","South East","Hampshire County Council"]
[null,null,null,null,null,null,null,null,null,null,null,null,null,null,"Baylis Court School","120259","2011-08-01","South East","Slough Borough Council"]
[null,null,null,null,null,null,null,null,null,null,null,null,null,null,"BBG Academy Trust","121045","2012-05-01","Yorkshire & Humberside","Kirklees Metropolitan Council"]
[null,null,null,null,null,null,null,null,null,null,null,null,null,null,"Beacon Academy - Loughborough","122916","2012-12-01","East Midlands","Leicestershire County Council"]
[null,null,null,null,null,null,null,null,null,null,null,null,null,null,"Beacon Community College - Crowborough","113087","2012-04-01","South East","East Sussex County Council"]
[null,null,null,null,null,null,null,null,null,null,null,null,null,null,"Beacon Hill Academy","121872","2012-09-01","East of England","Thurrock Borough Council"]
[null,null,null,null,null,null,null,null,null,null,null,null,null,null,"Beacon School, The - Banstead","120708","2011-12-01T12:23:36","South East","Surrey County Council"]
[null,null,null,null,null,null,null,null,null,null,null,null,null,null,"Beaconsfield School, The","123082","2013-03-01T15:57:34","South East","Buckinghamshire County Council"]
[null,null,null,null,null,null,null,null,null,null,null,null,null,null,"Beal Academy",129576,"2014-02-01","London","Redbridge London Borough Council"]
[null,null,null,null,null,null,null,null,null,null,null,null,null,null,"Beaminster St Mary's Academy",129542,"2014-02-01","South West","Dorset County Council"]
[null,null,null,null,null,null,null,null,null,null,null,null,null,null,"Beamont Collegiate Academy","122491","2013-03-01","North West","Warrington Borough Council"]
[null,null,null,null,null,null,null,null,null,null,null,null,null,null,"Beanfield Primary School","122248","2012-09-01","East Midlands","Northamptonshire County Council"]
[null,null,null,null,null,null,null,null,null,null,null,null,null,null,"Beauchamp College, The","113692","2013-05-01","East Midlands","Leicestershire County Council"]
[null,null,null,null,null,null,null,null,null,null,null,null,null,null,"Beaufort Community School - Gloucester",125001,"2013-10-01","South West","Gloucestershire County Council"]
[null,null,null,null,null,null,null,null,null,null,null,null,null,null,"Beaufort Primary School - Woking",126292,"2014-01-01","South East","Surrey County Council"]
[null,null,null,null,null,null,null,null,null,null,null,null,null,null,"Beaumont Hill Academy","120531","2012-04-01","North East","Darlington Borough Council"]
[null,null,null,null,null,null,null,null,null,null,null,null,null,null,"Beaumont School","122174","2012-07-01","East of England","Hertfordshire County Council"]
[null,null,null,null,null,null,null,null,null,null,null,null,null,null,"Beaver Road Primary School",125217,"2013-11-01","North West","Manchester City Council"]
[null,null,null,null,null,null,null,null,null,null,null,null,null,null,"Beaverwood School for Girls","119467","2011-03-01","London","Bromley London Borough Council"]
[null,null,null,null,null,null,null,null,null,null,null,null,null,null,"Beccles Free School, The","122025","2012-09-01","East of England","Suffolk County Council"]
[null,null,null,null,null,null,null,null,null,null,null,null,null,null,"Becket Keys Church School","121966","2012-09-01","East of England","Essex County Council"]
[null,null,null,null,null,null,null,null,null,null,null,null,null,null,"Becket School, The","120279","2011-09-01","East Midlands","Nottinghamshire County Council"]
[null,null,null,null,null,null,null,null,null,null,null,null,null,null,"Beckfoot School","121064","2013-08-01","Yorkshire & Humberside","Bradford Metropolitan District Council"]
[null,null,null,null,null,null,null,null,null,null,null,null,null,null,"Bede Academy","118883","2009-09-01","North East","Northumberland County Council"]
[null,null,null,null,null,null,null,null,null,null,null,null,null,null,"Bedford Academy, The","119151","2010-09-01","East of England","Bedford Borough Council"]
[null,null,null,null,null,null,null,null,null,null,null,null,null,null,"Bedford Free School","122011","2012-09-01","East of England","Bedford Borough Council"]
[null,null,null,null,null,null,null,null,null,null,null,null,null,null,"Bedford Hall Methodist Primary School","124687","2013-09-01","North West","Wigan Metropolitan Borough Council"]
[null,null,null,null,null,null,null,null,null,null,null,null,null,null,"Bedminster Down School","120556","2012-06-01","South West","Bristol City Council"]
[null,null,null,null,null,null,null,null,null,null,null,null,null,null,"Beech Hill Junior and Infant School","120433","2011-09-01","Yorkshire & Humberside","Calderdale Metropolitan Borough Council"]
[null,null,null,null,null,null,null,null,null,null,null,null,null,null,"Beechen Cliff School","119570","2011-04-01","South West","Bath & North East Somerset Council"]
[null,null,null,null,null,null,null,null,null,null,null,null,null,null,"Beechwood Junior School",125244,"2013-10-01","South East","Southampton City Council"]
[null,null,null,null,null,null,null,null,null,null,null,null,null,null,"Beecroft Lower School",124120,"2013-11-01","East of England","Central Bedfordshire Council"]
[null,null,null,null,null,null,null,null,null,null,null,null,null,null,"Begbrook Primary School","122143","2012-09-01","South West","Bristol City Council"]
[null,null,null,null,null,null,null,null,null,null,null,null,null,null,"Beis Yaakov High School","120898","2012-09-01","North West","Salford City Council"]
[null,null,null,null,null,null,null,null,null,null,null,null,null,null,"Belfairs High School","120834","2012-06-01","East of England","Southend-on-Sea Borough Council"]
[null,null,null,null,null,null,null,null,null,null,null,null,null,null,"Belgrave St. Bartholomew’s Academy","119546","2011-04-01","West Midlands","Stoke on Trent City Council"]
[null,null,null,null,null,null,null,null,null,null,null,null,null,null,"Belle Vue Girls' School","120720","2012-04-01","Yorkshire & Humberside","Bradford Metropolitan District Council"]
[null,null,null,null,null,null,null,null,null,null,null,null,null,null,"Bellerive FCJ Catholic College","122087","2012-06-01","North West","Liverpool City Council"]
[null,null,null,null,null,null,null,null,null,null,null,null,null,null,"Belleville Primary School","120640","2011-10-01","London","Wandsworth London Borough Council"]
[null,null,null,null,null,null,null,null,null,null,null,null,null,null,"Bellfield Primary School","124079","2013-07-01","Yorkshire & Humberside","Hull City Council"]
[null,null,null,null,null,null,null,null,null,null,null,null,null,null,"Belmont Castle Academy","122972","2012-12-01","East of England","Thurrock Borough Council"]
[null,null,null,null,null,null,null,null,null,null,null,null,null,null,"Belmore Primary Academy","122850","2012-12-01","London","Hillingdon London Borough Council"]
[null,null,null,null,null,null,null,null,null,null,null,null,null,null,"Belthorn Academy Primary School","120507","2011-10-01","North West","Lancashire County Council"]
[null,null,null,null,null,null,null,null,null,null,null,null,null,null,"Belvedere Academy, The","118601","2007-09-01","North West","Liverpool City Council"]
[null,null,null,null,null,null,null,null,null,null,null,null,null,null,"Belvedere Junior School","122812","2013-04-01","London","Bexley London Borough Council"]
[null,null,null,null,null,null,null,null,null,null,null,null,null,null,"Belvoir High School and Melton Vale Post 16 Centre","122736","2012-10-01","East Midlands","Leicestershire County Council"]
[null,null,null,null,null,null,null,null,null,null,null,null,null,null,"Benedict Biscop Church of England Aided Primary School","121022","2012-02-01","North East","Sunderland City Council"]
[null,null,null,null,null,null,null,null,null,null,null,null,null,null,"Benedict Primary School",127409,"2014-01-01","London","Merton Borough Council"]
[null,null,null,null,null,null,null,null,null,null,null,null,null,null,"Bennett Memorial Diocesan School","119633","2011-04-01","South East","Kent County Council"]
[null,null,null,null,null,null,null,null,null,null,null,null,null,null,"Bentley Heath Church of England Primary School",124781,"2013-12-01","West Midlands","Solihull Metropolitan Borough Council"]
[null,null,null,null,null,null,null,null,null,null,null,null,null,null,"Bentley Wood High School","120178","2011-08-01","London","Harrow London Borough Council"]
[null,null,null,null,null,null,null,null,null,null,null,null,null,null,"Benyon Primary School","123282","2013-04-01","East of England","Thurrock Borough Council"]
[null,null,null,null,null,null,null,null,null,null,null,null,null,null,"Berrygrove Academy","121889","2012-09-01","East of England","Hertfordshire County Council"]
[null,null,null,null,null,null,null,null,null,null,null,null,null,null,"Berwick Academy","120647","2011-11-01T13:35:20","North East","Northumberland County Council"]
[null,null,null,null,null,null,null,null,null,null,null,null,null,null,"Bethnal Green Academy","120739","2012-01-01","London","Tower Hamlets London Borough Council"]
[null,null,null,null,null,null,null,null,null,null,null,null,null,null,"Beths Grammar School","119278","2010-10-01","London","Bexley London Borough Council"]
[null,null,null,null,null,null,null,null,null,null,null,null,null,null,"Beverley Grammar School","119995","2011-08-01","Yorkshire & Humberside","East Riding of Yorkshire Council"]
[null,null,null,null,null,null,null,null,null,null,null,null,null,null,"Bewbush Academy, The","121160","2012-04-01","South East","West Sussex County Council"]
[null,null,null,null,null,null,null,null,null,null,null,null,null,null,"Bexhill High School","122894","2011-03-01","South East","East Sussex County Council"]
[null,null,null,null,null,null,null,null,null,null,null,null,null,null,"Bexhill Primary School","119487","2011-03-01","North East","Sunderland City Council"]
[null,null,null,null,null,null,null,null,null,null,null,null,null,null,"Bexley Grammar School","119389","2011-01-01","London","Bexley London Borough Council"]
[null,null,null,null,null,null,null,null,null,null,null,null,null,null,"Bexleyheath Academy","120138","2011-09-01","London","Bexley London Borough Council"]
[null,null,null,null,null,null,null,null,null,null,null,null,null,null,"Bickleigh on Exe Church of England Primary School","120895","2012-01-01","South West","Devon County Council"]
[null,null,null,null,null,null,null,null,null,null,null,null,null,null,"Biddick School Sports College","124397","2013-07-01","North East","Sunderland City Council"]
[null,null,null,null,null,null,null,null,null,null,null,null,null,null,"Biddulph High School","120427","2011-09-01","West Midlands","Staffordshire County Council"]
[null,null,null,null,null,null,null,null,null,null,null,null,null,null,"Biggin Hill Primary Academy - Hull","122915","2013-04-01","Yorkshire & Humberside","Hull City Council"]
[null,null,null,null,null,null,null,null,null,null,null,null,null,null,"Biggin Hill Primary School - Bromley","120244","2011-08-01","London","Bromley London Borough Council"]
[null,null,null,null,null,null,null,null,null,null,null,null,null,null,"Bilingual Primary School for Brighton and Hove","121967","2012-09-01","South East","Brighton and Hove City Council"]
[null,null,null,null,null,null,null,null,null,null,null,null,null,null,"Billericay School, The","119861","2011-07-01","East of England","Essex County Council"]
[null,null,null,null,null,null,null,null,null,null,null,null,null,null,"Billesley Primary School","122846","2012-11-01","West Midlands","Birmingham City Council"]
[null,null,null,null,null,null,null,null,null,null,null,null,null,null,"Billing Brook Academy",125231,"2013-12-01","East Midlands","Northamptonshire County Council"]
[null,null,null,null,null,null,null,null,null,null,null,null,null,null,"Bilton School","120838","2011-12-01","West Midlands","Warwickshire County Council"]
[null,null,null,null,null,null,null,null,null,null,null,null,null,null,"Birchills Church of England Primary Community School","123862","2013-07-01","West Midlands","Walsall Metropolitan Borough Council"]
[null,null,null,null,null,null,null,null,null,null,null,null,null,null,"Birchwood Community High School - Warrington","124126","2013-07-01","North West","Warrington Borough Council"]
[null,null,null,null,null,null,null,null,null,null,null,null,null,null,"Birchwood High School - Bishop's Stortford","120632","2011-11-01T15:46:00","East of England","Hertfordshire County Council"]
[null,null,null,null,null,null,null,null,null,null,null,null,null,null,"Birchwood Primary School - Tamworth","122649","2012-11-01","West Midlands","Warwickshire County Council"]
[null,null,null,null,null,null,null,null,null,null,null,null,null,null,"Birdwell Primary School","124162","2013-04-01","South West","North Somerset District Council"]
[null,null,null,null,null,null,null,null,null,null,null,null,null,null,"Birkdale High School","120297","2011-08-17","North West","Sefton Metropolitan Borough Council"]
[null,null,null,null,null,null,null,null,null,null,null,null,null,null,"Birkenhead High School Academy","118888","2009-09-01","North West","Wirral Metropolitan Borough Council"]
[null,null,null,null,null,null,null,null,null,null,null,null,null,null,"Birmingham Ormiston Academy","119944","2011-09-01","West Midlands","Birmingham City Council"]
[null,null,null,null,null,null,null,null,null,null,null,null,null,null,"Birstall Community Primary School","123240","2013-03-01","Yorkshire & Humberside","Kirklees Metropolitan Council"]
[null,null,null,null,null,null,null,null,null,null,null,null,null,null,"Biscovey Junior School","120945","2012-01-01","South West","Cornwall Council"]
[null,null,null,null,null,null,null,null,null,null,null,null,null,null,"Bishop Alexander Primary and Nursery School",129240,"2014-02-01","East Midlands","Nottinghamshire County Council"]
[null,null,null,null,null,null,null,null,null,null,null,null,null,null,"Bishop Blue Coat Church of England High School","119587","2011-04-01","North West","Cheshire West and Chester Council"]
[null,null,null,null,null,null,null,null,null,null,null,null,null,null,"Bishop Bronescombe CofE VA School",127392,"2013-12-01","South West","Cornwall Council"]
[null,null,null,null,null,null,null,null,null,null,null,null,null,null,"Bishop Creighton Academy","119720","2011-05-01","East of England","Peterborough City Council"]
[null,null,null,null,null,null,null,null,null,null,null,null,null,null,"Bishop Fox's Community School","119851","2011-07-01","South West","Somerset County Council"]
[null,null,null,null,null,null,null,null,null,null,null,null,null,null,"Bishop Justus Church of England School","119466","2011-03-01","London","Bromley London Borough Council"]
[null,null,null,null,null,null,null,null,null,null,null,null,null,null,"Bishop Luffa School",127604,"2013-12-01","South East","West Sussex County Council"]
[null,null,null,null,null,null,null,null,null,null,null,null,null,null,"Bishop Milner Catholic School","124380","2013-09-01","West Midlands","Dudley Metropolitan Borough Council"]
[null,null,null,null,null,null,null,null,null,null,null,null,null,null,"Bishop of Rochester Academy","119166","2010-09-01","South East","Medway Council"]
[null,null,null,null,null,null,null,null,null,null,null,null,null,null,"Bishop of Winchester Academy, The","119200","2010-09-01","South West","Bournemouth Borough Council"]
[null,null,null,null,null,null,null,null,null,null,null,null,null,null,"Bishop Perowne Church of England College","121136","2012-05-01","West Midlands","Worcestershire County Council"]
[null,null,null,null,null,null,null,null,null,null,null,null,null,null,"Bishop Ramsey","120457","2011-09-01","London","Hillingdon London Borough Council"]
[null,null,null,null,null,null,null,null,null,null,null,null,null,null,"Bishop Rawstorne Church of England Language College","120296","2011-08-17","North West","Lancashire County Council"]
[null,null,null,null,null,null,null,null,null,null,null,null,null,null,"Bishop Stopford School","120086","2011-08-01","East Midlands","Northamptonshire County Council"]
[null,null,null,null,null,null,null,null,null,null,null,null,null,null,"Bishop Vesey's Grammar School","120745","2012-04-01","West Midlands","Birmingham City Council"]
[null,null,null,null,null,null,null,null,null,null,null,null,null,null,"Bishop Walsh Catholic Secondary School",123911,"2014-01-01","West Midlands","Birmingham City Council"]
[null,null,null,null,null,null,null,null,null,null,null,null,null,null,"Bishop Wand Church of England School, The","122089","2012-08-01T12:33:13","South East","Surrey County Council"]
[null,null,null,null,null,null,null,null,null,null,null,null,null,null,"Bishop Wordsworth's Grammar School","119500","2011-03-01","South West","Wiltshire Council"]
[null,null,null,null,null,null,null,null,null,null,null,null,null,null,"Bishops Cleeve Primary School","120271","2011-08-01","South West","Gloucestershire County Council"]
[null,null,null,null,null,null,null,null,null,null,null,null,null,null,"Bishop's Hatfield Girls' School","120821","2012-01-01","East of England","Hertfordshire County Council"]
[null,null,null,null,null,null,null,null,null,null,null,null,null,null,"Bishopshalt School","120519","2011-11-01","London","Hillingdon London Borough Council"]
[null,null,null,null,null,null,null,null,null,null,null,null,null,null,"Bishopton Redmarshall CofE Primary School","120021","2011-08-01","North East","Darlington Borough Council"]
[null,null,null,null,null,null,null,null,null,null,null,null,null,null,"Black Country UTC","119933","2011-09-01","West Midlands","Walsall Metropolitan Borough Council"]
[null,null,null,null,null,null,null,null,null,null,null,null,null,null,"Blackfen School for Girls","121186","2012-04-01","London","Bexley London Borough Council"]
[null,null,null,null,null,null,null,null,null,null,null,null,null,null,"Blackpool Church of England Primary School","120479","2011-11-01","South West","Devon County Council"]
[null,null,null,null,null,null,null,null,null,null,null,null,null,null,"Blackthorn Primary School","122845","2012-12-01","East Midlands","Northamptonshire County Council"]
[null,null,null,null,null,null,null,null,null,null,null,null,null,null,"Blenheim High School","120717","2012-03-01T10:17:16","South East","Surrey County Council"]
[null,null,null,null,null,null,null,null,null,null,null,null,null,null,"Blessed Robert Widmerpool Catholic Primary and Nursery School","120042","2011-09-01","East Midlands","Nottingham City Council"]
[null,null,null,null,null,null,null,null,null,null,null,null,null,null,"Blockley Church of England Primary School","120799","2013-04-01","South West","Gloucestershire County Council"]
[null,null,null,null,null,null,null,null,null,null,null,null,null,null,"Blue Bell Hill Academy Trust","124253","2013-10-01","East Midlands","Nottingham City Council"]
[null,null,null,null,null,null,null,null,null,null,null,null,null,null,"Blue Coat Church of England Academy - Walsall","122313","2012-09-01","West Midlands","Walsall Metropolitan Borough Council"]
[null,null,null,null,null,null,null,null,null,null,null,null,null,null,"Blue Coat CofE School, The - Oldham","120133","2011-08-01","North West","Oldham Metropolitan Borough Council"]
[null,null,null,null,null,null,null,null,null,null,null,null,null,null,"Blue Coat School, The - Liverpool","120903","2012-03-01T12:02:03","North West","Liverpool City Council"]
[null,null,null,null,null,null,null,null,null,null,null,null,null,null,"Blue School, The - Wells","120285","2011-08-17","South West","Somerset County Council"]
[null,null,null,null,null,null,null,null,null,null,null,null,null,null,"Bluecoat Academy - Nottingham","120792","2012-01-01","East Midlands","Nottingham City Council"]
[null,null,null,null,null,null,null,null,null,null,null,null,null,null,"Blyth Academy","113218","2013-10-01","North East","Northumberland County Council"]
[null,null,null,null,null,null,null,null,null,null,null,null,null,null,"Blyth Morpeth Road First School","124151","2013-06-01","North East","Northumberland County Council"]
[null,null,null,null,null,null,null,null,null,null,null,null,null,null,"Boddington Church of England Voluntary School","124087","2013-09-01","East Midlands","Northamptonshire County Council"]
[null,null,null,null,null,null,null,null,null,null,null,null,null,null,"Bodmin College","119408","2011-01-01","South West","Cornwall Council"]
[null,null,null,null,null,null,null,null,null,null,null,null,null,null,"Bodriggy Academy","119584","2011-04-01","South West","Cornwall Council"]
[null,null,null,null,null,null,null,null,null,null,null,null,null,null,"Bohunt School","119646","2011-04-01","South East","Hampshire County Council"]
[null,null,null,null,null,null,null,null,null,null,null,null,null,null,"Bolsover School, The","120597","2012-10-01","East Midlands","Derbyshire County Council"]
[null,null,null,null,null,null,null,null,null,null,null,null,null,null,"Bolton Brow Junior Infant and Nursery School","120434","2011-09-01","Yorkshire & Humberside","Calderdale Metropolitan Borough Council"]
[null,null,null,null,null,null,null,null,null,null,null,null,null,null,"Bolton St Catherine's Academy","119135","2009-09-01","North West","Bolton Metropolitan Borough Council"]
[null,null,null,null,null,null,null,null,null,null,null,null,null,null,"Boothroyd Primary Academy",124702,"2013-10-01","Yorkshire & Humberside","Kirklees Metropolitan Council"]
[null,null,null,null,null,null,null,null,null,null,null,null,null,null,"Borden Grammar School","120721","2012-01-01","South East","Kent County Council"]
[null,null,null,null,null,null,null,null,null,null,null,null,null,null,"Boston Grammar School, The","123054","2013-01-01","East Midlands","Lincolnshire County Council"]
[null,null,null,null,null,null,null,null,null,null,null,null,null,null,"Boston High School","122993","2013-01-01","East Midlands","Lincolnshire County Council"]
[null,null,null,null,null,null,null,null,null,null,null,null,null,null,"Boston Pioneers Free School Academy","123293","2013-09-01","East Midlands","Lincolnshire County Council"]
[null,null,null,null,null,null,null,null,null,null,null,null,null,null,"Boston West Primary School","122016","2012-07-01","East Midlands","Lincolnshire County Council"]
[null,null,null,null,null,null,null,null,null,null,null,null,null,null,"Boswells School, The","120999","2012-02-01","East of England","Essex County Council"]
[null,null,null,null,null,null,null,null,null,null,null,null,null,null,"Bosworth Academy","121188","2012-04-01","East Midlands","Leicestershire County Council"]
[null,null,null,null,null,null,null,null,null,null,null,null,null,null,"Bottesford Church of England Primary School","122714","2012-11-01","East Midlands","Leicestershire County Council"]
[null,null,null,null,null,null,null,null,null,null,null,null,null,null,"Bottisham Village College","119687","2011-04-01","East of England","Cambridgeshire County Council"]
[null,null,null,null,null,null,null,null,null,null,null,null,null,null,"Boughton Primary School","121833","2012-09-01","East Midlands","Northamptonshire County Council"]
[null,null,null,null,null,null,null,null,null,null,null,null,null,null,"Boulevard Academy, The","122527","2013-09-01","Yorkshire & Humberside","Hull City Council"]
[null,null,null,null,null,null,null,null,null,null,null,null,null,null,"Bourn CofE Primary Academy","120572","2011-11-01","East of England","Cambridgeshire County Council"]
[null,null,null,null,null,null,null,null,null,null,null,null,null,null,"Bourne Abbey Church of England Primary School","119379","2010-12-01","East Midlands","Lincolnshire County Council"]
[null,null,null,null,null,null,null,null,null,null,null,null,null,null,"Bourne Academy - Bourne","120400","2011-09-01","East Midlands","Lincolnshire County Council"]
[null,null,null,null,null,null,null,null,null,null,null,null,null,null,"Bourne Academy, The - Bournemouth","119201","2010-09-01","South West","Bournemouth Borough Council"]
[null,null,null,null,null,null,null,null,null,null,null,null,null,null,"Bourne Grammar School - Bourne","120801","2012-01-01","East Midlands","Lincolnshire County Council"]
[null,null,null,null,null,null,null,null,null,null,null,null,null,null,"Bourne Westfield Primary Academy","120639","2011-11-01","East Midlands","Lincolnshire County Council"]
[null,null,null,null,null,null,null,null,null,null,null,null,null,null,"Bournemouth School","120387","2011-09-01","South West","Bournemouth Borough Council"]
[null,null,null,null,null,null,null,null,null,null,null,null,null,null,"Bournemouth School for Girls","119996","2011-08-01","South West","Bournemouth Borough Council"]
[null,null,null,null,null,null,null,null,null,null,null,null,null,null,"Bourton Meadow Academy","120734","2012-03-01","South East","Buckinghamshire County Council"]
[null,null,null,null,null,null,null,null,null,null,null,null,null,null,"Bourton-on-the-Water Primary School","120736","2013-02-01","South West","Gloucestershire County Council"]
[null,null,null,null,null,null,null,null,null,null,null,null,null,null,"Bovingdon Primary Academy","119825","2011-07-01","East of England","Hertfordshire County Council"]
[null,null,null,null,null,null,null,null,null,null,null,null,null,null,"Bower Park School","123072","2013-02-01","London","Havering London Borough Council"]
[null,null,null,null,null,null,null,null,null,null,null,null,null,null,"Bowland High","119997","2011-08-01","North West","Lancashire County Council"]
[null,null,null,null,null,null,null,null,null,null,null,null,null,null,"Boxgrove Primary School","124514","2013-09-01","South East","Surrey County Council"]
[null,null,null,null,null,null,null,null,null,null,null,null,null,null,"Boyton Community Primary School",129560,"2014-02-01","South West","Cornwall Council"]
[null,null,null,null,null,null,null,null,null,null,null,null,null,null,"Bracebridge Infant and Nursery School","123122","2013-01-01","East Midlands","Lincolnshire County Council"]
[null,null,null,null,null,null,null,null,null,null,null,null,null,null,"Braddock CofE Primary School",124513,"2013-12-01","South West","Cornwall Council"]
[null,null,null,null,null,null,null,null,null,null,null,null,null,null,"Bradfield School","120972","2012-12-01","Yorkshire & Humberside","Sheffield City Council"]
[null,null,null,null,null,null,null,null,null,null,null,null,null,null,"Bradford Academy","118603","2007-09-01","Yorkshire & Humberside","Bradford Metropolitan District Council"]
[null,null,null,null,null,null,null,null,null,null,null,null,null,null,"Bradford Girls' Grammar School","123294","2013-09-01","Yorkshire & Humberside","Bradford Metropolitan District Council"]
[null,null,null,null,null,null,null,null,null,null,null,null,null,null,"Bradley Stoke Community School","120766","2012-01-01","South West","South Gloucestershire Council"]
[null,null,null,null,null,null,null,null,null,null,null,null,null,null,"Bradshaw Primary School","121004","2012-04-01","Yorkshire & Humberside","Calderdale Metropolitan Borough Council"]
[null,null,null,null,null,null,null,null,null,null,null,null,null,null,"Bradworthy Primary Academy","119492","2011-03-01","South West","Devon County Council"]
[null,null,null,null,null,null,null,null,null,null,null,null,null,null,"Brambles Primary School","122242","2012-09-01","North East","Middlesbrough Council"]
[null,null,null,null,null,null,null,null,null,null,null,null,null,null,"Bramcote School, The","122719","2012-10-01","East Midlands","Nottinghamshire County Council"]
[null,null,null,null,null,null,null,null,null,null,null,null,null,null,"Bramford Primary School","123893","2013-06-01","West Midlands","Dudley Metropolitan Borough Council"]
[null,null,null,null,null,null,null,null,null,null,null,null,null,null,"Brampton Manor Academy","119684","2011-04-01","London","Newham London Borough Council"]
[null,null,null,null,null,null,null,null,null,null,null,null,null,null,"Bransgore Church of England Primary School","120617","2011-12-01","South East","Hampshire County Council"]
[null,null,null,null,null,null,null,null,null,null,null,null,null,null,"Branston Community Academy","119378","2010-12-01","East Midlands","Lincolnshire County Council"]
[null,null,null,null,null,null,null,null,null,null,null,null,null,null,"Branston Junior Academy","122339","2012-08-01","East Midlands","Lincolnshire County Council"]
[null,null,null,null,null,null,null,null,null,null,null,null,null,null,"Braunton School and Community College","120993","2012-04-01","South West","Devon County Council"]
[null,null,null,null,null,null,null,null,null,null,null,null,null,null,"Brent Primary Academy, The",129429,"2014-02-01","South East","Kent County Council"]
[null,null,null,null,null,null,null,null,null,null,null,null,null,null,"Brentford School for Girls","122944","2012-12-01","London","Hounslow London Borough Council"]
[null,null,null,null,null,null,null,null,null,null,null,null,null,null,"Brentside Primary School","123055","2013-04-01","London","Ealing London Borough Council"]
[null,null,null,null,null,null,null,null,null,null,null,null,null,null,"Brentwood Ursuline Convent High School","122961","2012-10-01","East of England","Essex County Council"]
[null,null,null,null,null,null,null,null,null,null,null,null,null,null,"Briar Hill Primary School","122799","2012-11-01","East Midlands","Northamptonshire County Council"]
[null,null,null,null,null,null,null,null,null,null,null,null,null,null,"Bricknell Primary School",124245,"2013-10-01","Yorkshire & Humberside","Hull City Council"]
[null,null,null,null,null,null,null,null,null,null,null,null,null,null,"Bridge [AP] Academy, The - Hammersmith and Fulham","122831","2013-04-01","London","Hammersmith and Fulham London Borough Council"]
[null,null,null,null,null,null,null,null,null,null,null,null,null,null,"Bridge Academy, The - Hackney","118650","2007-09-06","London","Hackney London Borough Council (The Learning Trust)"]
[null,null,null,null,null,null,null,null,null,null,null,null,null,null,"Bridge Learning Campus - Bristol","120926","2013-03-01","South West","Bristol City Council"]
[null,null,null,null,null,null,null,null,null,null,null,null,null,null,"Bridge, The - Milton Keynes",126429,"2013-10-01","South East","Milton Keynes Council"]
[null,null,null,null,null,null,null,null,null,null,null,null,null,null,"Bridgemary School","121885","2012-09-01","South East","Hampshire County Council"]
[null,null,null,null,null,null,null,null,null,null,null,null,null,null,"Bridgnorth Endowed School","122900","2013-03-01T15:53:45","West Midlands","Shropshire Council"]
[null,null,null,null,null,null,null,null,null,null,null,null,null,null,"Bridgwater Academy","120953","2012-09-01","South West","Somerset County Council"]
[null,null,null,null,null,null,null,null,null,null,null,null,null,null,"Brighouse High School","119609","2011-04-01","Yorkshire & Humberside","Calderdale Metropolitan Borough Council"]
[null,null,null,null,null,null,null,null,null,null,null,null,null,null,"Brighton Aldridge Community Academy","119232","2010-09-01","South East","Brighton and Hove City Council"]
[null,null,null,null,null,null,null,null,null,null,null,null,null,null,"Brill Church of England Combined School","122683","2013-04-01","South East","Buckinghamshire County Council"]
[null,null,null,null,null,null,null,null,null,null,null,null,null,null,"Brine Leas High School","119250","2010-09-02","North West","Cheshire East Council"]
[null,null,null,null,null,null,null,null,null,null,null,null,null,null,"Brinsworth School","119279","2010-10-01","Yorkshire & Humberside","Rotherham Metropolitan Borough Council"]
[null,null,null,null,null,null,null,null,null,null,null,null,null,null,"Briscoe Academy","121877","2012-09-01","East of England","Essex County Council"]
[null,null,null,null,null,null,null,null,null,null,null,null,null,null,"Briscoe Lane Primary School","122142","2012-09-01","North West","Manchester City Council"]
[null,null,null,null,null,null,null,null,null,null,null,null,null,null,"Bristnall Hall Technology College","123843","2012-12-01","West Midlands","Sandwell Metropolitan Borough Council"]
[null,null,null,null,null,null,null,null,null,null,null,null,null,null,"Bristol Brunel Academy","118609","2007-09-01","South West","Bristol City Council"]
[null,null,null,null,null,null,null,null,null,null,null,null,null,null,"Bristol Cathedral Choir School","118660","2008-09-04","South West","Bristol City Council"]
[null,null,null,null,null,null,null,null,null,null,null,null,null,null,"Bristol Free School","120522","2011-09-01","South West","Bristol City Council"]
[null,null,null,null,null,null,null,null,null,null,null,null,null,null,"Bristol Metropolitan Academy","119139","2009-09-01","South West","Bristol City Council"]
[null,null,null,null,null,null,null,null,null,null,null,null,null,null,"Bristol Technology and Engineering Academy","122153","2013-09-01","South West","South Gloucestershire Council"]
[null,null,null,null,null,null,null,null,null,null,null,null,null,null,"BRIT School for the Performing Arts & Technology, The","118384","1991-10-22","London","Croydon London Borough Council"]
[null,null,null,null,null,null,null,null,null,null,null,null,null,null,"Brittons Academy Trust, The","119558","2011-04-01","London","Havering London Borough Council"]
[null,null,null,null,null,null,null,null,null,null,null,null,null,null,"Brixham College","120789","2012-01-01","South West","Torbay Council"]
[null,null,null,null,null,null,null,null,null,null,null,null,null,null,"Broadclyst Community Primary School","119258","2010-09-01","South West","Devon County Council"]
[null,null,null,null,null,null,null,null,null,null,null,null,null,null,"Broadfield East Infant School and Nursery - Crawley","122284","2012-09-01","South East","West Sussex County Council"]
[null,null,null,null,null,null,null,null,null,null,null,null,null,null,"Broadfield East Junior School - Crawley","122064","2012-09-01","South East","West Sussex County Council"]
[null,null,null,null,null,null,null,null,null,null,null,null,null,null,"Broadfields Primary School - Edgware",124302,"2013-10-01","London","Barnet London Borough Council"]
[null,null,null,null,null,null,null,null,null,null,null,null,null,null,"Broadlands School","122287","2012-12-01","South West","Bath & North East Somerset Council"]
[null,null,null,null,null,null,null,null,null,null,null,null,null,null,"Broadmere Community Primary School","123856","2013-04-01","South East","Surrey County Council"]
[null,null,null,null,null,null,null,null,null,null,null,null,null,null,"Broadoak Mathematics and Computing College","120912","2012-02-01","South West","North Somerset District Council"]
[null,null,null,null,null,null,null,null,null,null,null,null,null,null,"Broadoak Primary School - Salford","120550","2011-10-01","North West","Salford City Council"]
[null,null,null,null,null,null,null,null,null,null,null,null,null,null,"Broadoak School - Trafford","122012","2012-05-01","North West","Trafford Borough Council"]
[null,null,null,null,null,null,null,null,null,null,null,null,null,null,"Broadway School","124188","2013-07-01","West Midlands","Birmingham City Council"]
[null,null,null,null,null,null,null,null,null,null,null,null,null,null,"Brockhampton Primary School","120599","2011-11-01","West Midlands","Herefordshire Council"]
[null,null,null,null,null,null,null,null,null,null,null,null,null,null,"Brockhill Park Performing Arts College","120466","2011-09-01","South East","Kent County Council"]
[null,null,null,null,null,null,null,null,null,null,null,null,null,null,"Brockington College","122370","2012-08-01","East Midlands","Leicestershire County Council"]
[null,null,null,null,null,null,null,null,null,null,null,null,null,null,"Brocks Hill Primary School","124323","2013-06-01","East Midlands","Leicestershire County Council"]
[null,null,null,null,null,null,null,null,null,null,null,null,null,null,"Brockworth Primary School","121848","2012-09-01","South West","Gloucestershire County Council"]
[null,null,null,null,null,null,null,null,null,null,null,null,null,null,"Bromfords School, The","123077","2013-01-01","East of England","Essex County Council"]
[null,null,null,null,null,null,null,null,null,null,null,null,null,null,"Brompton Academy","119167","2010-09-01","South East","Medway Council"]
[null,null,null,null,null,null,null,null,null,null,null,null,null,null,"Brooke Hill Academy","120065","2011-09-01","East Midlands","Rutland County Council"]
[null,null,null,null,null,null,null,null,null,null,null,null,null,null,"Brooke Weston Academy","118385","2008-08-18","East Midlands","Northamptonshire County Council"]
[null,null,null,null,null,null,null,null,null,null,null,null,null,null,"Brookfield Community School - Chesterfield","119537","2011-04-01","East Midlands","Derbyshire County Council"]
[null,null,null,null,null,null,null,null,null,null,null,null,null,null,"Brookfield House School - Woodford Green","122405","2012-09-01","London","Waltham Forest London Borough Council"]
[null,null,null,null,null,null,null,null,null,null,null,null,null,null,"Brooklands Middle School","120638","2011-11-01","East of England","Central Bedfordshire Council"]
[null,null,null,null,null,null,null,null,null,null,null,null,null,null,"Brooksbank School, The","120495","2011-10-01","Yorkshire & Humberside","Calderdale Metropolitan Borough Council"]
[null,null,null,null,null,null,null,null,null,null,null,null,null,null,"Brookside Community Primary School - Street","119826","2011-07-01","South West","Somerset County Council"]
[null,null,null,null,null,null,null,null,null,null,null,null,null,null,"Brookside Primary School - Hayes","122808","2013-04-01","London","Hillingdon London Borough Council"]
[null,null,null,null,null,null,null,null,null,null,null,null,null,null,"Brookvale High School - Groby","122091","2012-07-01","East Midlands","Leicestershire County Council"]
[null,null,null,null,null,null,null,null,null,null,null,null,null,null,"Brookvale Primary School - Erdington","122695","2013-04-01","West Midlands","Birmingham City Council"]
[null,null,null,null,null,null,null,null,null,null,null,null,null,null,"Broom Leys School","122960","2012-11-01","East Midlands","Leicestershire County Council"]
[null,null,null,null,null,null,null,null,null,null,null,null,null,null,"Broomfield Primary School","122368","2012-10-01","East Midlands","Leicestershire County Council"]
[null,null,null,null,null,null,null,null,null,null,null,null,null,null,"Broughton Jewish Cassel Fox Primary School","121902","2012-08-01","North West","Salford City Council"]
[null,null,null,null,null,null,null,null,null,null,null,null,null,null,"Broughton Primary School","120605","2011-10-01","North West","Cumbria County Council"]
[null,null,null,null,null,null,null,null,null,null,null,null,null,null,"Browney Primary Academy","126485","2014-03-01","North East ","Durham County Council"]
[null,null,null,null,null,null,null,null,null,null,null,null,null,null,"Brownhill Primary School","121963","2012-12-01","Yorkshire & Humberside","Leeds City Council"]
[null,null,null,null,null,null,null,null,null,null,null,null,null,null,"Broxbourne School, The","119410","2011-01-01","East of England","Hertfordshire County Council"]
[null,null,null,null,null,null,null,null,null,null,null,null,null,null,"Brunel Academy","119957","2011-08-01","South West","Cornwall Council"]
[null,null,null,null,null,null,null,null,null,null,null,null,null,null,"Brunts School, The","120785","2012-01-01","East Midlands","Nottinghamshire County Council"]
[null,null,null,null,null,null,null,null,null,null,null,null,null,null,"Brymore School","123954","2013-09-01","South West","Somerset County Council"]
[null,null,null,null,null,null,null,null,null,null,null,null,null,null,"Buckden CofE Primary School","120593","2011-11-01","East of England","Cambridgeshire County Council"]
[null,null,null,null,null,null,null,null,null,null,null,null,null,null,"Buckfastleigh Primary School","119679","2011-04-01","South West","Devon County Council"]
[null,null,null,null,null,null,null,null,null,null,null,null,null,null,"Buckinghamshire UTC","122154","2013-09-01","South East","Buckinghamshire County Council"]
[null,null,null,null,null,null,null,null,null,null,null,null,null,null,"Buckland Church of England Primary School",124562,"2013-11-01","South East","Oxfordshire County Council"]
[null,null,null,null,null,null,null,null,null,null,null,null,null,null,"Bucklers Mead Academy","120193","2011-08-01","South West","Somerset County Council"]
[null,null,null,null,null,null,null,null,null,null,null,null,null,null,"Bude Park Primary School","122912","2013-04-01","Yorkshire & Humberside","Hull City Council"]
[null,null,null,null,null,null,null,null,null,null,null,null,null,null,"Bullers Wood School","119721","2011-05-01","London","Bromley London Borough Council"]
[null,null,null,null,null,null,null,null,null,null,null,null,null,null,"Bulwell Academy, The","118884","2009-09-01","East Midlands","Nottingham City Council"]
[null,null,null,null,null,null,null,null,null,null,null,null,null,null,"Bungay High School","119998","2011-08-01","East of England","Suffolk County Council"]
[null,null,null,null,null,null,null,null,null,null,null,null,null,null,"Burbage Primary School","123286","2013-04-01","South West","Wiltshire Council"]
[null,null,null,null,null,null,null,null,null,null,null,null,null,null,"Burford School","121840","2012-07-01","South East","Oxfordshire County Council"]
[null,null,null,null,null,null,null,null,null,null,null,null,null,null,"Burgate School and Sixth Form, The","119737","2011-05-01","South East","Hampshire County Council"]
[null,null,null,null,null,null,null,null,null,null,null,null,null,null,"Burghill Community Primary School","120629","2013-05-01","West Midlands","Herefordshire Council"]
[null,null,null,null,null,null,null,null,null,null,null,null,null,null,"Burlington Danes Academy","118604","2006-09-01","London","Hammersmith and Fulham London Borough Council"]
[null,null,null,null,null,null,null,null,null,null,null,null,null,null,"Burnham Grammar School","120551","2011-10-01","South East","Buckinghamshire County Council"]
[null,null,null,null,null,null,null,null,null,null,null,null,null,null,"Burnham Park E-ACT Academy","120931","2012-04-01","South East","Buckinghamshire County Council"]
[null,null,null,null,null,null,null,null,null,null,null,null,null,null,"Burnley Road Academy","120435","2011-09-01","Yorkshire & Humberside","Calderdale Metropolitan Borough Council"]
[null,null,null,null,null,null,null,null,null,null,null,null,null,null,"Burnt Mill Comprehensive School","120833","2011-12-01","East of England","Essex County Council"]
[null,null,null,null,null,null,null,null,null,null,null,null,null,null,"Burntwood School","124381","2013-07-01","London","Wandsworth London Borough Council"]
[null,null,null,null,null,null,null,null,null,null,null,null,null,null,"Burrington Church of England Controlled Primary School","120026","2011-08-01","South West","Devon County Council"]
[null,null,null,null,null,null,null,null,null,null,null,null,null,null,"Burrowmoor Primary School","124979","2013-07-01","East of England","Cambridgeshire County Council"]
[null,null,null,null,null,null,null,null,null,null,null,null,null,null,"Burrsville Community infants Academy",124684,"2013-12-01","East of England","Essex County Council"]
[null,null,null,null,null,null,null,null,null,null,null,null,null,null,"Bursar Primary Academy","121143","2012-08-01","Yorkshire & Humberside","North East Lincolnshire Council"]
[null,null,null,null,null,null,null,null,null,null,null,null,null,null,"Bursley Academy","121042","2012-04-01","West Midlands","Staffordshire County Council"]
[null,null,null,null,null,null,null,null,null,null,null,null,null,null,"Bursted Wood Primary School",124678,"2013-12-01","London","Bexley London Borough Council"]
[null,null,null,null,null,null,null,null,null,null,null,null,null,null,"Burton Morewood CofE Primary School","120512","2011-10-01","North West","Cumbria County Council"]
[null,null,null,null,null,null,null,null,null,null,null,null,null,null,"Bury CofE Primary School","123367","2013-07-01","East of England","Cambridgeshire County Council"]
[null,null,null,null,null,null,null,null,null,null,null,null,null,null,"Bury St Edmunds County Upper School","119990","2011-08-01","East of England","Suffolk County Council"]
[null,null,null,null,null,null,null,null,null,null,null,null,null,null,"Bushey Academy, THe","119103","2009-09-01","East of England","Hertfordshire County Council"]
[null,null,null,null,null,null,null,null,null,null,null,null,null,null,"Bushey Meads School","121008","2012-02-01T13:31:30","East of England","Hertfordshire County Council"]
[null,null,null,null,null,null,null,null,null,null,null,null,null,null,"Bushloe High School","122601","2012-11-01","East Midlands","Leicestershire County Council"]
[null,null,null,null,null,null,null,null,null,null,null,null,null,null,"Business Academy, The - Bexley","118403","2002-09-01","London","Bexley London Borough Council"]
[null,null,null,null,null,null,null,null,null,null,null,null,null,null,"Buttsbury Junior School, The","119722","2011-05-01","East of England","Essex County Council"]
[null,null,null,null,null,null,null,null,null,null,null,null,null,null,"By Brook Valley Academy Trust","120844","2012-05-01","South West","Wiltshire Council"]
[null,null,null,null,null,null,null,null,null,null,null,null,null,null,"Byrchall High School, The","122801","2012-09-01","North West","Wigan Metropolitan Borough Council"]
[null,null,null,null,null,null,null,null,null,null,null,null,null,null,"Caistor Grammar School","119377","2010-12-01","East Midlands","Lincolnshire County Council"]
[null,null,null,null,null,null,null,null,null,null,null,null,null,null,"Caistor Yarborough School","119958","2011-08-01","East Midlands","Lincolnshire County Council"]
[null,null,null,null,null,null,null,null,null,null,null,null,null,null,"Calday Grange Grammar School","121860","2013-01-01","North West","Wirral Metropolitan Borough Council"]
[null,null,null,null,null,null,null,null,null,null,null,null,null,null,"Caldew School","120254","2011-08-01","North West","Cumbria County Council"]
[null,null,null,null,null,null,null,null,null,null,null,null,null,null,"Caldicotes Primary School","123882","2013-04-01","North East","Middlesbrough Council"]
[null,null,null,null,null,null,null,null,null,null,null,null,null,null,"Callington Community College","119608","2011-04-01","South West","Cornwall Council"]
[null,null,null,null,null,null,null,null,null,null,null,null,null,null,"Callington Primary School",129568,"2014-02-01","South West","Cornwall Council"]
[null,null,null,null,null,null,null,null,null,null,null,null,null,null,"Caludon Castle School","120328","2013-02-01","West Midlands","Coventry City Council"]
[null,null,null,null,null,null,null,null,null,null,null,null,null,null,"Camborne Science and International Academy","119596","2011-04-01","South West","Cornwall Council"]
[null,null,null,null,null,null,null,null,null,null,null,null,null,null,"Cambourne Village College","123295","2013-09-01","East of England","Cambridgeshire County Council"]
[null,null,null,null,null,null,null,null,null,null,null,null,null,null,"Cambridge Park Academy","120437","2011-09-01","Yorkshire & Humberside","North East Lincolnshire Council"]
[null,null,null,null,null,null,null,null,null,null,null,null,null,null,"Campion School - Leamington Spa","120347","2012-01-01","West Midlands","Warwickshire County Council"]
[null,null,null,null,null,null,null,null,null,null,null,null,null,null,"Campion School - Northampton","120087","2011-08-01","East Midlands","Northamptonshire County Council"]
[null,null,null,null,null,null,null,null,null,null,null,null,null,null,"Campion School, The - Hornchurch","120040","2011-08-01","London","Havering London Borough Council"]
[null,null,null,null,null,null,null,null,null,null,null,null,null,null,"Campsmount Technology College","120489","2012-05-01T14:07:30","Yorkshire & Humberside","Doncaster Metropolitan Borough Council"]
[null,null,null,null,null,null,null,null,null,null,null,null,null,null,"Cams Hill School","120494","2011-10-01","South East","Hampshire County Council"]
[null,null,null,null,null,null,null,null,null,null,null,null,null,null,"Canary Wharf College","120467","2011-09-01","London","Tower Hamlets London Borough Council"]
[null,null,null,null,null,null,null,null,null,null,null,null,null,null,"Canklow Woods Primary School","124559","2013-09-01","Yorkshire & Humberside","Rotherham Metropolitan Borough Council"]
[null,null,null,null,null,null,null,null,null,null,null,null,null,null,"Cann Hall Primary School","122279","2012-11-01","East of England","Essex County Council"]
[null,null,null,null,null,null,null,null,null,null,null,null,null,null,"Cannock Chase High School","120423","2011-09-01","West Midlands","Staffordshire County Council"]
[null,null,null,null,null,null,null,null,null,null,null,null,null,null,"Canon Pyon CofE Primary School","121115","2013-02-01","West Midlands","Herefordshire Council"]
[null,null,null,null,null,null,null,null,null,null,null,null,null,null,"Canons High School","120199","2011-08-01","London","Harrow London Borough Council"]
[null,null,null,null,null,null,null,null,null,null,null,null,null,null,"Canterbury Academy, The","119281","2010-10-01","South East","Kent County Council"]
[null,null,null,null,null,null,null,null,null,null,null,null,null,null,"Canterbury Primary School, The","119282","2010-10-01","South East","Kent County Council"]
[null,null,null,null,null,null,null,null,null,null,null,null,null,null,"Capital City Academy","118386","2003-09-01","London","Brent London Borough Council"]
[null,null,null,null,null,null,null,null,null,null,null,null,null,null,"Captains Close Primary School","124187","2013-07-01","East Midlands","Leicestershire County Council"]
[null,null,null,null,null,null,null,null,null,null,null,null,null,null,"Cardinal Hume Catholic School","120889","2012-02-01T13:32:29","North East","Gateshead Council"]
[null,null,null,null,null,null,null,null,null,null,null,null,null,null,"Carew Academy","123956","2013-09-01","London","Sutton London Borough Council"]
[null,null,null,null,null,null,null,null,null,null,null,null,null,null,"Carleton Community High School","123252","2013-04-01","Yorkshire & Humberside","Wakefield Council"]
[null,null,null,null,null,null,null,null,null,null,null,null,null,null,"Carlton Academy","120085","2011-09-01","East Midlands","Nottinghamshire County Council"]
[null,null,null,null,null,null,null,null,null,null,null,null,null,null,"Carlton Le Willows Academy","119542","2011-04-01","East Midlands","Nottinghamshire County Council"]
[null,null,null,null,null,null,null,null,null,null,null,null,null,null,"Carlton Primary School","122772","2012-12-01","Yorkshire & Humberside","Barnsley Metropolitan Borough Council"]
[null,null,null,null,null,null,null,null,null,null,null,null,null,null,"Carlton Road Academy","121234","2012-09-01","East Midlands","Lincolnshire County Council"]
[null,null,null,null,null,null,null,null,null,null,null,null,null,null,"Carmel College, A Catholic Academy","120603","2011-11-01T13:51:42","North East","Darlington Borough Council"]
[null,null,null,null,null,null,null,null,null,null,null,null,null,null,"Carmountside Primary School","122114","2013-07-01","West Midlands","Stoke on Trent City Council"]
[null,null,null,null,null,null,null,null,null,null,null,null,null,null,"Caroline Chisholm School","120089","2011-08-01","East Midlands","Northamptonshire County Council"]
[null,null,null,null,null,null,null,null,null,null,null,null,null,null,"Carradon PRU","122708","2013-06-01","South West","Cornwall Council"]
[null,null,null,null,null,null,null,null,null,null,null,null,null,null,"Carre's Grammar School","120213","2011-08-01","East Midlands","Lincolnshire County Council"]
[null,null,null,null,null,null,null,null,null,null,null,null,null,null,"Carshalton Boys Sports College","119760","2011-06-01","London","Sutton London Borough Council"]
[null,null,null,null,null,null,null,null,null,null,null,null,null,null,"Carshalton High School for Girls","119761","2011-06-01","London","Sutton London Borough Council"]
[null,null,null,null,null,null,null,null,null,null,null,null,null,null,"Carter Community School","122880","2013-04-01","South West","Poole Borough Council"]
[null,null,null,null,null,null,null,null,null,null,null,null,null,null,"Cartmel Priory CofE School","120410","2011-09-01","North West","Cumbria County Council"]
[null,null,null,null,null,null,null,null,null,null,null,null,null,null,"Casterton Business & Enterprise College","120405","2011-09-01","East Midlands","Rutland County Council"]
[null,null,null,null,null,null,null,null,null,null,null,null,null,null,"Castle Academy - Doncaster","121987","2012-09-01","Yorkshire & Humberside","Doncaster Metropolitan Borough Council"]
[null,null,null,null,null,null,null,null,null,null,null,null,null,null,"Castle Carrock School","120361","2011-11-01","North West","Cumbria County Council"]
[null,null,null,null,null,null,null,null,null,null,null,null,null,null,"Castle Community College","119280","2010-10-01","South East","Kent County Council"]
[null,null,null,null,null,null,null,null,null,null,null,null,null,null,"Castle Donington Community College","122372","2012-10-01","East Midlands","Leicestershire County Council"]
[null,null,null,null,null,null,null,null,null,null,null,null,null,null,"Castle Hall School - Mirfield","120438","2011-09-01","Yorkshire & Humberside","Kirklees Metropolitan Council"]
[null,null,null,null,null,null,null,null,null,null,null,null,null,null,"Castle Hill Academy - Croydon",124668,"2013-11-01","London","Croydon London Borough Council"]
[null,null,null,null,null,null,null,null,null,null,null,null,null,null,"Castle Manor Business and Enterprise College","120815","2012-06-01","East of England","Suffolk County Council"]
[null,null,null,null,null,null,null,null,null,null,null,null,null,null,"Castle Primary Academy - Northampton",127821,"2014-01-01","East Midlands","Northamptonshire County Council"]
[null,null,null,null,null,null,null,null,null,null,null,null,null,null,"Castle Rock High School","122135","2012-08-01","East Midlands","Leicestershire County Council"]
[null,null,null,null,null,null,null,null,null,null,null,null,null,null,"Castle School, The - Taunton","119916","2011-07-01","South West","Somerset County Council"]
[null,null,null,null,null,null,null,null,null,null,null,null,null,null,"Castle School, The - Thornbury","123062","2013-03-01T15:57:05","South West","South Gloucestershire Council"]
[null,null,null,null,null,null,null,null,null,null,null,null,null,null,"Castle View Enterprise Academy","119127","2009-09-01","North East","Sunderland City Council"]
[null,null,null,null,null,null,null,null,null,null,null,null,null,null,"Castlecombe Primary School",127709,"2014-01-01","London","Bromley London Borough Council"]
[null,null,null,null,null,null,null,null,null,null,null,null,null,null,"Castleford Academy","119602","2011-04-01","Yorkshire & Humberside","Wakefield Council"]
[null,null,null,null,null,null,null,null,null,null,null,null,null,null,"Castleford Park Junior School","122958","2013-03-01","Yorkshire & Humberside","Wakefield Council"]
[null,null,null,null,null,null,null,null,null,null,null,null,null,null,"Castleview Primary School","122340","2012-09-01","South East","Slough Borough Council"]
[null,null,null,null,null,null,null,null,null,null,null,null,null,null,"Catcote School","124489","2013-08-01","North East","Hartlepool Borough Council"]
[null,null,null,null,null,null,null,null,null,null,null,null,null,null,"Cathedral Primary School","123296","2013-09-01","South West","Bristol City Council"]
[null,null,null,null,null,null,null,null,null,null,null,null,null,null,"Cathedral School, The","120756","2012-01-01","Yorkshire & Humberside","Wakefield Council"]
[null,null,null,null,null,null,null,null,null,null,null,null,null,null,"Catholic High School, The","123813","2013-03-01T15:57:51","North West","Cheshire West and Chester Council"]
[null,null,null,null,null,null,null,null,null,null,null,null,null,null,"Catmose College","119527","2011-04-01","East Midlands","Rutland County Council"]
[null,null,null,null,null,null,null,null,null,null,null,null,null,null,"Catmose Primary","121113","2012-05-01","East Midlands","Rutland County Council"]
[null,null,null,null,null,null,null,null,null,null,null,null,null,null,"Cavendish High School - Runcorn",125223,"2014-02-01","North West","Halton Borough Council"]
[null,null,null,null,null,null,null,null,null,null,null,null,null,null,"Cavendish School, The - Eastbourne","122177","2012-08-01","South East","East Sussex County Council"]
[null,null,null,null,null,null,null,null,null,null,null,null,null,null,"Cawston Grange Primary School","123212","2013-09-01","West Midlands","Warwickshire County Council"]
[null,null,null,null,null,null,null,null,null,null,null,null,null,null,"Cedar Mount Academy","120927","2012-08-01","North West","Manchester City Council"]
[null,null,null,null,null,null,null,null,null,null,null,null,null,null,"Cedar Road Primary School Academy","120686","2012-06-01","East Midlands","Northamptonshire County Council"]
[null,null,null,null,null,null,null,null,null,null,null,null,null,null,"Cedars School, The - Gateshead","122702","2012-09-01","North East","Gateshead Council"]
[null,null,null,null,null,null,null,null,null,null,null,null,null,null,"Cedars Upper School - Leighton Buzzard","120411","2011-09-01","East of England","Central Bedfordshire Council"]
[null,null,null,null,null,null,null,null,null,null,null,null,null,null,"Central Bedfordshire UTC","122156","2012-09-01","East of England","Central Bedfordshire Council"]
[null,null,null,null,null,null,null,null,null,null,null,null,null,null,"Centre School, The","120340","2011-09-01","East of England","Cambridgeshire County Council"]
[null,null,null,null,null,null,null,null,null,null,null,null,null,null,"CET Primary School - Tower Hamlets","122034","2012-09-01","London","Tower Hamlets London Borough Council"]
[null,null,null,null,null,null,null,null,null,null,null,null,null,null,"CET Primary School - Westminster","121952","2012-09-01","London","Westminster City Council"]
[null,null,null,null,null,null,null,null,null,null,null,null,null,null,"Chacombe Church of England Voluntary Aided Primary School","123887","2013-09-01","East Midlands","Northamptonshire County Council"]
[null,null,null,null,null,null,null,null,null,null,null,null,null,null,"Chadsmead Primary Academy","120268","2011-08-01","West Midlands","Staffordshire County Council"]
[null,null,null,null,null,null,null,null,null,null,null,null,null,null,"Chadwell Heath Academy, The","119269","2010-09-01","London","Redbridge London Borough Council"]
[null,null,null,null,null,null,null,null,null,null,null,null,null,null,"Chafford School, The ",124495,"2013-11-01","London","Havering London Borough Council"]
[null,null,null,null,null,null,null,null,null,null,null,null,null,null,"Chalfont St Peter CofE Academy","119723","2011-05-01","South East","Buckinghamshire County Council"]
[null,null,null,null,null,null,null,null,null,null,null,null,null,null,"Chalfont Valley E-ACT Primary Academy","120924","2012-09-01","South East","Buckinghamshire County Council"]
[null,null,null,null,null,null,null,null,null,null,null,null,null,null,"Chalfonts Community College, The","120215","2011-08-01","South East","Buckinghamshire County Council"]
[null,null,null,null,null,null,null,null,null,null,null,null,null,null,"Challney High School For Boys and Community College","119648","2011-04-01","East of England","Luton Borough Council"]
[null,null,null,null,null,null,null,null,null,null,null,null,null,null,"Chandlers Ridge Primary School","122120","2012-09-01","North East","Middlesbrough Council"]
[null,null,null,null,null,null,null,null,null,null,null,null,null,null,"Chantry Community Academy - Gravesend","122685","2013-06-01","South East","Kent County Council"]
[null,null,null,null,null,null,null,null,null,null,null,null,null,null,"Chantry Primary School - Luton","122103","2012-08-01","East of England","Luton Borough Council"]
[null,null,null,null,null,null,null,null,null,null,null,null,null,null,"Chantry School, The - Worcester","119897","2011-07-01","West Midlands","Worcestershire County Council"]
[null,null,null,null,null,null,null,null,null,null,null,null,null,null,"Chapel End Junior Academy","122882","2013-04-01","London","Waltham Forest London Borough Council"]
[null,null,null,null,null,null,null,null,null,null,null,null,null,null,"Charfield Primary School","124579","2013-09-01","South West","South Gloucestershire Council"]
[null,null,null,null,null,null,null,null,null,null,null,null,null,null,"Charles Coddy Walker Academy, The","123087","2013-01-01","West Midlands","Walsall Metropolitan Borough Council"]
[null,null,null,null,null,null,null,null,null,null,null,null,null,null,"Charles Darwin School","119586","2011-04-01","London","Bromley London Borough Council"]
[null,null,null,null,null,null,null,null,null,null,null,null,null,null,"Charles Read Academy, The","119479","2011-02-01","East Midlands","Lincolnshire County Council"]
[null,null,null,null,null,null,null,null,null,null,null,null,null,null,"Charles Warren Academy","121954","2012-09-01","South East","Milton Keynes Council"]
[null,null,null,null,null,null,null,null,null,null,null,null,null,null,"Charlestown Primary School","119799","2011-06-01","South West","Cornwall Council"]
[null,null,null,null,null,null,null,null,null,null,null,null,null,null,"Charlton Kings Infant School","119999","2011-08-01","South West","Gloucestershire County Council"]
[null,null,null,null,null,null,null,null,null,null,null,null,null,null,"Charlton Kings Junior School","120266","2011-08-01","South West","Gloucestershire County Council"]
[null,null,null,null,null,null,null,null,null,null,null,null,null,null,"Charlton Park Academy","122099","2012-08-01","London","Greenwich London Borough Council"]
[null,null,null,null,null,null,null,null,null,null,null,null,null,null,"Charlton Primary School",124203,"2013-10-01","South East","Oxfordshire County Council"]
[null,null,null,null,null,null,null,null,null,null,null,null,null,null,"Charter Academy - Portsmouth","119137","2009-09-01","South East","Portsmouth City Council"]
[null,null,null,null,null,null,null,null,null,null,null,null,null,null,"Charter School, The - Southwark","119271","2010-09-06","London","Southwark London Borough Council"]
[null,null,null,null,null,null,null,null,null,null,null,null,null,null,"Charters School - Windsor & Maidenhead","120779","2012-10-01","South East","Royal Borough of Windsor and Maidenhead"]
[null,null,null,null,null,null,null,null,null,null,null,null,null,null,"Charville Primary School","123176","2013-05-01","London","Hillingdon London Borough Council"]
[null,null,null,null,null,null,null,null,null,null,null,null,null,null,"Chase, The","120628","2011-11-01","West Midlands","Worcestershire County Council"]
[null,null,null,null,null,null,null,null,null,null,null,null,null,null,"Chatham Grammar School for Boys","119601","2011-04-01","South East","Medway Council"]
[null,null,null,null,null,null,null,null,null,null,null,null,null,null,"Chatham Grammar School for Girls","120429","2011-09-01","South East","Medway Council"]
[null,null,null,null,null,null,null,null,null,null,null,null,null,null,"Chatham House Grammar School","119418","2011-01-01","South East","Kent County Council"]
[null,null,null,null,null,null,null,null,null,null,null,null,null,null,"Chattenden Primary School","121879","2012-07-01","South East","Medway Council"]
[null,null,null,null,null,null,null,null,null,null,null,null,null,null,"Chaucer School Academy","120928","2012-09-01","Yorkshire & Humberside","Sheffield City Council"]
[null,null,null,null,null,null,null,null,null,null,null,null,null,null,"Chaulden Junior School","124062","2013-05-01","East of England","Hertfordshire County Council"]
[null,null,null,null,null,null,null,null,null,null,null,null,null,null,"Chauncy School, The","120090","2011-08-01","East of England","Hertfordshire County Council"]
[null,null,null,null,null,null,null,null,null,null,null,null,null,null,"Cheadle Academy, The","119959","2011-08-01","West Midlands","Staffordshire County Council"]
[null,null,null,null,null,null,null,null,null,null,null,null,null,null,"Cheadle Hulme High School","120752","2012-02-01","North West","Stockport Metropolitan Borough Council"]
[null,null,null,null,null,null,null,null,null,null,null,null,null,null,"Cheam High School","119775","2011-06-01","London","Sutton London Borough Council"]
[null,null,null,null,null,null,null,null,null,null,null,null,null,null,"Cheam Park Farm Infants' School",125010,"2013-10-01","London","Sutton London Borough Council"]
[null,null,null,null,null,null,null,null,null,null,null,null,null,null,"Cheam Park Farm Junior School","119591","2011-04-01","London","Sutton London Borough Council"]
[null,null,null,null,null,null,null,null,null,null,null,null,null,null,"Cheddon Fitzpaine Church of England Primary School","124578","2013-09-01","South West","Somerset County Council"]
[null,null,null,null,null,null,null,null,null,null,null,null,null,null,"Cheetham CofE Community Academy","120528","2011-11-01","North West","Manchester City Council"]
[null,null,null,null,null,null,null,null,null,null,null,null,null,null,"Chellaston Academy","119381","2010-12-01","East Midlands","Derby City Council"]
[null,null,null,null,null,null,null,null,null,null,null,null,null,null,"Chelmer Valley High School","120260","2011-08-01","East of England","Essex County Council"]
[null,null,null,null,null,null,null,null,null,null,null,null,null,null,"Chelmsford County High School","119432","2011-01-01","East of England","Essex County Council"]
[null,null,null,null,null,null,null,null,null,null,null,null,null,null,"Chelsea Academy","118895","2009-09-01","London","Royal Borough of Kensington and Chelsea Council"]
[null,null,null,null,null,null,null,null,null,null,null,null,null,null,"Cheltenham Bournside School and Sixth Form Centre","119724","2011-05-01","South West","Gloucestershire County Council"]
[null,null,null,null,null,null,null,null,null,null,null,null,null,null,"Chenderit School","120989","2012-02-01T13:40:46","East Midlands","Northamptonshire County Council"]
[null,null,null,null,null,null,null,null,null,null,null,null,null,null,"Cheney School","123080","2013-01-01","South East","Oxfordshire County Council"]
[null,null,null,null,null,null,null,null,null,null,null,null,null,null,"Chepping View Primary School","121029","2012-04-01","South East","Buckinghamshire County Council"]
[null,null,null,null,null,null,null,null,null,null,null,null,null,null,"Cherwell School, The","121116","2012-04-01","South East","Oxfordshire County Council"]
[null,null,null,null,null,null,null,null,null,null,null,null,null,null,"Chesham Grammar School","120091","2011-08-01","South East","Buckinghamshire County Council"]
[null,null,null,null,null,null,null,null,null,null,null,null,null,null,"Chesterfield High School","120486","2011-10-01","North West","Sefton Metropolitan Borough Council"]
[null,null,null,null,null,null,null,null,null,null,null,null,null,null,"Chesterton Community College - Cambridge","119887","2011-07-01","East of England","Cambridgeshire County Council"]
[null,null,null,null,null,null,null,null,null,null,null,null,null,null,"Chesterton Community Sports College - Newcastle-u-Lyme",124993,"2013-12-01","West Midlands","Staffordshire County Council"]
[null,null,null,null,null,null,null,null,null,null,null,null,null,null,"Chesterton Primary School","126498","2013-09-01","East of England","Cambridgeshire County Council"]
[null,null,null,null,null,null,null,null,null,null,null,null,null,null,"Chestnut Grove School","119883","2011-07-01","London","Wandsworth London Borough Council"]
[null,null,null,null,null,null,null,null,null,null,null,null,null,null,"Chetwynd Primary Academy","120890","2012-04-01","East Midlands","Nottinghamshire County Council"]
[null,null,null,null,null,null,null,null,null,null,null,null,null,null,"Chew Stoke CofE VA Primary School","122392","2012-09-01","South West","Bath & North East Somerset Council"]
[null,null,null,null,null,null,null,null,null,null,null,null,null,null,"Chichester Free School","123297","2013-09-01","South East","West Sussex County Council"]
[null,null,null,null,null,null,null,null,null,null,null,null,null,null,"Chichester High School for Boys","124980","2013-09-01","South East","West Sussex County Council"]
[null,null,null,null,null,null,null,null,null,null,null,null,null,null,"Chichester High School for Girls","124981","2013-09-01","South East","West Sussex County Council"]
[null,null,null,null,null,null,null,null,null,null,null,null,null,null,"Chickerell Primary Academy","123171","2013-01-01","South West","Dorset County Council"]
[null,null,null,null,null,null,null,null,null,null,null,null,null,null,"Chiddingstone Church of England Voluntary Controlled Primary School","120625","2011-12-01","South East","Kent County Council"]
[null,null,null,null,null,null,null,null,null,null,null,null,null,null,"Childwall Sports and Science Academy","122492","2012-09-01","North West","Liverpool City Council"]
[null,null,null,null,null,null,null,null,null,null,null,null,null,null,"Chiltern Hills Academy","120280","2011-09-01","South East","Buckinghamshire County Council"]
[null,null,null,null,null,null,null,null,null,null,null,null,null,null,"Chilwell Croft Primary School","122259","2012-09-01","West Midlands","Birmingham City Council"]
[null,null,null,null,null,null,null,null,null,null,null,null,null,null,"Chingford Foundation School","122263","2012-09-01","London","Waltham Forest London Borough Council"]
[null,null,null,null,null,null,null,null,null,null,null,null,null,null,"Chingford Hall Primary School","121432","2012-07-01","London","Waltham Forest London Borough Council"]
[null,null,null,null,null,null,null,null,null,null,null,null,null,null,"Chipping Campden School","119960","2011-08-01","South West","Gloucestershire County Council"]
[null,null,null,null,null,null,null,null,null,null,null,null,null,null,"Chipping Norton School","113956","2012-03-01T10:22:20","South East","Oxfordshire County Council"]
[null,null,null,null,null,null,null,null,null,null,null,null,null,null,"Chipping Warden School","124173","2013-09-01","East Midlands","Northamptonshire County Council"]
[null,null,null,null,null,null,null,null,null,null,null,null,null,null,"Chislehurst and Sidcup Grammar School","120344","2011-09-01","London","Bexley London Borough Council"]
[null,null,null,null,null,null,null,null,null,null,null,null,null,null,"Chiswick School","121123","2012-03-01T10:23:56","London","Hounslow London Borough Council"]
[null,null,null,null,null,null,null,null,null,null,null,null,null,null,"Chivenor Primary School",124208,"2014-02-01","West Midlands","Birmingham City Council"]
[null,null,null,null,null,null,null,null,null,null,null,null,null,null,"Chobham Academy","121928","2013-09-01","London","Newham London Borough Council"]
[null,null,null,null,null,null,null,null,null,null,null,null,null,null,"Cholsey Primary School",124596,"2013-11-01","South East","Oxfordshire County Council"]
[null,null,null,null,null,null,null,null,null,null,null,null,null,null,"Chorlton High School","122953","2013-01-01","North West","Manchester City Council"]
[null,null,null,null,null,null,null,null,null,null,null,null,null,null,"Chosen Hill School","119611","2011-04-01","South West","Gloucestershire County Council"]
[null,null,null,null,null,null,null,null,null,null,null,null,null,null,"Christ Church Academy","119961","2011-08-01","West Midlands","Staffordshire County Council"]
[null,null,null,null,null,null,null,null,null,null,null,null,null,null,"Christ Church Church of England Academy - Shipley","123167","2013-08-01","Yorkshire & Humberside","Bradford Metropolitan District Council"]
[null,null,null,null,null,null,null,null,null,null,null,null,null,null,"Christ Church Church of England Primary School - Bristol","121013","2012-07-01","South West","Bristol City Council"]
[null,null,null,null,null,null,null,null,null,null,null,null,null,null,"Christ Church Church of England School - Rickmansworth","122959","2013-04-01","East of England","Hertfordshire County Council"]
[null,null,null,null,null,null,null,null,null,null,null,null,null,null,"Christ Church CofE Primary School - Cheltenham","122715","2012-11-01","South West","Gloucestershire County Council"]
[null,null,null,null,null,null,null,null,null,null,null,null,null,null,"Christ Church Woodhouse C of E (Voluntary Aided) Junior, Infant & Early Years School","121859","2012-09-01","Yorkshire & Humberside","Kirklees Metropolitan Council"]
[null,null,null,null,null,null,null,null,null,null,null,null,null,null,"Christ Church, CofE VA Primary School - Erith","122919","2013-05-01","London","Bexley London Borough Council"]
[null,null,null,null,null,null,null,null,null,null,null,null,null,null,"Christ The King Catholic Voluntary Academy","121100","2012-10-01","East Midlands","Nottinghamshire County Council"]
[null,null,null,null,null,null,null,null,null,null,null,null,null,null,"Christian Malford CofE Primary School",127978,"2013-12-01","South West","Wiltshire Council"]
[null,null,null,null,null,null,null,null,null,null,null,null,null,null,"Christleton High School","119680","2011-04-01","North West","Cheshire West and Chester Council"]
[null,null,null,null,null,null,null,null,null,null,null,null,null,null,"Christopher Whitehead Language College","119890","2011-07-01","West Midlands","Worcestershire County Council"]
[null,null,null,null,null,null,null,null,null,null,null,null,null,null,"Christow Community School","121088","2012-09-01","South West","Devon County Council"]
[null,null,null,null,null,null,null,null,null,null,null,null,null,null,"Christ's College Finchley","120345","2011-09-01","London","Barnet London Borough Council"]
[null,null,null,null,null,null,null,null,null,null,null,null,null,null,"Chudleigh Knighton Church of England Primary School","120474","2011-11-01","South West","Devon County Council"]
[null,null,null,null,null,null,null,null,null,null,null,null,null,null,"Chulmleigh Community College","120024","2011-08-01","South West","Devon County Council"]
[null,null,null,null,null,null,null,null,null,null,null,null,null,null,"Chulmleigh Primary School","120023","2011-08-01","South West","Devon County Council"]
[null,null,null,null,null,null,null,null,null,null,null,null,null,null,"Church Hill Church of England Junior School","122394","2012-11-01","East Midlands","Leicestershire County Council"]
[null,null,null,null,null,null,null,null,null,null,null,null,null,null,"Church Hill Infant School","122410","2012-11-01","East Midlands","Leicestershire County Council"]
[null,null,null,null,null,null,null,null,null,null,null,null,null,null,"Church Stretton School","123865","2013-04-01","West Midlands","Shropshire Council"]
[null,null,null,null,null,null,null,null,null,null,null,null,null,null,"Churchdown School","119956","2011-11-01T13:54:52","South West","Gloucestershire County Council"]
[null,null,null,null,null,null,null,null,null,null,null,null,null,null,"Churchdown Village Infant School","120173","2011-08-01","South West","Gloucestershire County Council"]
[null,null,null,null,null,null,null,null,null,null,null,null,null,null,"Churchend School","119461","2011-02-01","South East","Reading Borough Council"]
[null,null,null,null,null,null,null,null,null,null,null,null,null,null,"Churchfield Church School","122817","2013-04-01","South West","Somerset County Council"]
[null,null,null,null,null,null,null,null,null,null,null,null,null,null,"Churchfields Academy - Swindon","120388","2011-09-01","South West","Swindon Borough Council"]
[null,null,null,null,null,null,null,null,null,null,null,null,null,null,"Churchfields Primary School - Newcastle-u-Lyme",124639,"2013-12-01","West Midlands","Staffordshire County Council"]
[null,null,null,null,null,null,null,null,null,null,null,null,null,null,"Churchill Academy and Sixth Form Centre","120000","2011-08-01","South West","North Somerset District Council"]
[null,null,null,null,null,null,null,null,null,null,null,null,null,null,"Churchill Gardens Community Primary School","126330","2013-09-01","London","Westminster City Council"]
[null,null,null,null,null,null,null,null,null,null,null,null,null,null,"Churchill Special Free School","123396","2013-09-01","East of England","Suffolk County Council"]
[null,null,null,null,null,null,null,null,null,null,null,null,null,null,"Churston Ferrers Grammar School","119406","2011-01-01","South West","Torbay Council"]
[null,null,null,null,null,null,null,null,null,null,null,null,null,null,"Cippenham Infant School","121194","2012-04-01","South East","Slough Borough Council"]
[null,null,null,null,null,null,null,null,null,null,null,null,null,null,"Cippenham Primary School","121195","2012-04-01","South East","Slough Borough Council"]
[null,null,null,null,null,null,null,null,null,null,null,null,null,null,"Cirencester Deer Park School","119533","2011-04-01","South West","Gloucestershire County Council"]
[null,null,null,null,null,null,null,null,null,null,null,null,null,null,"Cirencester Kingshill School","120217","2011-08-01","South West","Gloucestershire County Council"]
[null,null,null,null,null,null,null,null,null,null,null,null,null,null,"City Academy - Norwich","119104","2009-09-01","East of England","Norfolk County Council"]
[null,null,null,null,null,null,null,null,null,null,null,null,null,null,"City Academy Whitehawk","123896","2013-09-01","South East","Brighton and Hove City Council"]
[null,null,null,null,null,null,null,null,null,null,null,null,null,null,"City Academy, The - Bristol","117017","2003-09-01","South West","Bristol City Council"]
[null,null,null,null,null,null,null,null,null,null,null,null,null,null,"City Academy, The - Hackney","118896","2009-09-03","London","Hackney London Borough Council (The Learning Trust)"]
[null,null,null,null,null,null,null,null,null,null,null,null,null,null,"City Gateway","122804","2012-09-01","London","Tower Hamlets London Borough Council"]
[null,null,null,null,null,null,null,null,null,null,null,null,null,null,"City Heights E-ACT Academy","121926","2013-09-01","London","Hackney London Borough Council (The Learning Trust)"]
[null,null,null,null,null,null,null,null,null,null,null,null,null,null,"City of Derby Academy","121869","2013-06-01","East Midlands","Derby City Council"]
[null,null,null,null,null,null,null,null,null,null,null,null,null,null,"City of London Academy, The - Islington","118605","2008-09-01","London","Islington London Borough Council"]
[null,null,null,null,null,null,null,null,null,null,null,null,null,null,"City of London Academy, The - Southwark","118387","2003-09-01","London","Southwark London Borough Council"]
[null,null,null,null,null,null,null,null,null,null,null,null,null,null,"City of Peterborough Academy","124497","2013-09-01","East of England","Peterborough City Council"]
[null,null,null,null,null,null,null,null,null,null,null,null,null,null,"City of Peterborough Academy Special School","122220","2012-09-01","East of England","Peterborough City Council"]
[null,null,null,null,null,null,null,null,null,null,null,null,null,null,"City Road Primary School","123855","2013-07-01","West Midlands","Birmingham City Council"]
[null,null,null,null,null,null,null,null,null,null,null,null,null,null,"City School, The - Sheffield",124294,"2014-01-01","Yorkshire & Humberside","Sheffield City Council"]
[null,null,null,null,null,null,null,null,null,null,null,null,null,null,"Clacton Coastal Academy","119097","2009-09-01","East of England","Essex County Council"]
[null,null,null,null,null,null,null,null,null,null,null,null,null,null,"Clacton County High School","121144","2012-04-01","East of England","Essex County Council"]
[null,null,null,null,null,null,null,null,null,null,null,null,null,null,"Clapton Girls' Academy","119950","2011-09-01","London","Hackney London Borough Council (The Learning Trust)"]
[null,null,null,null,null,null,null,null,null,null,null,null,null,null,"Claremont High School Academy Trust","119612","2011-04-01","London","Brent London Borough Council"]
[null,null,null,null,null,null,null,null,null,null,null,null,null,null,"Clarendon College, The","122867","2012-12-01","South West","Wiltshire Council"]
[null,null,null,null,null,null,null,null,null,null,null,null,null,null,"Clarendon House Grammar School, The","119417","2011-01-01","South East","Kent County Council"]
[null,null,null,null,null,null,null,null,null,null,null,null,null,null,"Clayton-le-Moors All Saints Church of England Primary School","120548","2011-11-01","North West","Lancashire County Council"]
[null,null,null,null,null,null,null,null,null,null,null,null,null,null,"Cleethorpes Academy","119311","2010-09-01","Yorkshire & Humberside","North East Lincolnshire Council"]
[null,null,null,null,null,null,null,null,null,null,null,null,null,null,"Cleeve Park School - Sidcup","121830","2012-09-01","London","Bexley London Borough Council"]
[null,null,null,null,null,null,null,null,null,null,null,null,null,null,"Cleeve Primary School - Hull",125222,"2013-12-01","Yorkshire & Humberside","Hull City Council"]
[null,null,null,null,null,null,null,null,null,null,null,null,null,null,"Cleeve School - Cheltenham","119773","2011-06-01","South West","Gloucestershire County Council"]
[null,null,null,null,null,null,null,null,null,null,null,null,null,null,"Clevedon School","120636","2012-02-01T15:06:13","South West","North Somerset District Council"]
[null,null,null,null,null,null,null,null,null,null,null,null,null,null,"Cleves Cross Primary School",128237,"2013-11-01","North East","Durham County Council"]
[null,null,null,null,null,null,null,null,null,null,null,null,null,null,"Cleves School","119358","2010-11-01","South East","Surrey County Council"]
[null,null,null,null,null,null,null,null,null,null,null,null,null,null,"Cliff Park Infant School","123953","2013-04-01","East of England","Norfolk County Council"]
[null,null,null,null,null,null,null,null,null,null,null,null,null,null,"Cliff Park Junior School","123937","2013-04-01","East of England","Norfolk County Council"]
[null,null,null,null,null,null,null,null,null,null,null,null,null,null,"Cliff Park Ormiston Academy",123121,"2014-01-01","East of England","Norfolk County Council"]
[null,null,null,null,null,null,null,null,null,null,null,null,null,null,"Cliffdale Primary School",124217,"2013-12-01","South East","Portsmouth City Council"]
[null,null,null,null,null,null,null,null,null,null,null,null,null,null,"Cliffe Woods Primary","119827","2011-07-01","South East","Medway Council"]
[null,null,null,null,null,null,null,null,null,null,null,null,null,null,"Clifton All Saints Academy - Shefford",123206,"2013-10-01","East of England","Central Bedfordshire Council"]
[null,null,null,null,null,null,null,null,null,null,null,null,null,null,"Cliftonville Primary School",125021,"2013-12-01","South East","Kent County Council"]
[null,null,null,null,null,null,null,null,null,null,null,null,null,null,"Clitheroe Royal Grammar School","119403","2011-01-01","North West","Lancashire County Council"]
[null,null,null,null,null,null,null,null,null,null,null,null,null,null,"Cloughwood School","124771","2013-09-01","North West","Cheshire West and Chester Council"]
[null,null,null,null,null,null,null,null,null,null,null,null,null,null,"Clyst Vale Academy Trust","119545","2011-04-01","South West","Devon County Council"]
[null,null,null,null,null,null,null,null,null,null,null,null,null,null,"Cobden Primary School & Children's Centre","123074","2013-03-01","East Midlands","Leicestershire County Council"]
[null,null,null,null,null,null,null,null,null,null,null,null,null,null,"Cobham Free School","121974","2012-09-01","South East","Surrey County Council"]
[null,null,null,null,null,null,null,null,null,null,null,null,null,null,"Cockington Community Primary School","124153","2013-09-01","South West","Torbay Council"]
[null,null,null,null,null,null,null,null,null,null,null,null,null,null,"Colchester Academy","119333","2010-09-01","East of England","Essex County Council"]
[null,null,null,null,null,null,null,null,null,null,null,null,null,null,"Colchester County High School for Girls","120554","2011-10-01","East of England","Essex County Council"]
[null,null,null,null,null,null,null,null,null,null,null,null,null,null,"Colchester Royal Grammar School","120596","2012-01-01","East of England","Essex County Council"]
[null,null,null,null,null,null,null,null,null,null,null,null,null,null,"Colebrook Infant Academy","120614","2011-11-01","South West","Swindon Borough Council"]
[null,null,null,null,null,null,null,null,null,null,null,null,null,null,"Coleridge Community College","119664","2011-04-01","East of England","Cambridgeshire County Council"]
[null,null,null,null,null,null,null,null,null,null,null,null,null,null,"Coleridge Primary School","122335","2013-04-01","Yorkshire & Humberside","Rotherham Metropolitan Borough Council"]
[null,null,null,null,null,null,null,null,null,null,null,null,null,null,"Coleshill School, The","119986","2011-08-01","West Midlands","Warwickshire County Council"]
[null,null,null,null,null,null,null,null,null,null,null,null,null,null,"Collective Spirit","123298","2013-09-01","North West","Oldham Metropolitan Borough Council"]
[null,null,null,null,null,null,null,null,null,null,null,null,null,null,"Collingwood College","119837","2011-07-01","South East","Surrey County Council"]
[null,null,null,null,null,null,null,null,null,null,null,null,null,null,"Collingwood Primary School","124081","2013-07-01","Yorkshire & Humberside","Hull City Council"]
[null,null,null,null,null,null,null,null,null,null,null,null,null,null,"Colnbrook Church of England Primary School","124561","2013-06-01","South East","Slough Borough Council"]
[null,null,null,null,null,null,null,null,null,null,null,null,null,null,"Colne Community School and College","120460","2011-09-01","East of England","Essex County Council"]
[null,null,null,null,null,null,null,null,null,null,null,null,null,null,"Colne Primet High School","122260","2013-01-01","North West","Lancashire County Council"]
[null,null,null,null,null,null,null,null,null,null,null,null,null,null,"Colston's Girls' School","118661","2008-09-02","South West","Bristol City Council"]
[null,null,null,null,null,null,null,null,null,null,null,null,null,null,"Colston's Primary School","120843","2012-09-01","South West","Bristol City Council"]
[null,null,null,null,null,null,null,null,null,null,null,null,null,null,"Columbus School and College","120671","2012-05-01","East of England","Essex County Council"]
[null,null,null,null,null,null,null,null,null,null,null,null,null,null,"Colyton Grammar School","119405","2011-01-01","South West","Devon County Council"]
[null,null,null,null,null,null,null,null,null,null,null,null,null,null,"Combe Pafford School","124141","2013-04-01","South West","Torbay Council"]
[null,null,null,null,null,null,null,null,null,null,null,null,null,null,"Comberton Village College","119503","2011-02-01","East of England","Cambridgeshire County Council"]
[null,null,null,null,null,null,null,null,null,null,null,null,null,null,"Commonweal School, The","120190","2011-08-01","South West","Swindon Borough Council"]
[null,null,null,null,null,null,null,null,null,null,null,null,null,null,"Community & Hospital Education Service","122700","2013-06-01","South West","Cornwall Council"]
[null,null,null,null,null,null,null,null,null,null,null,null,null,null,"Compass School","121990","2013-09-01","London","Southwark London Borough Council"]
[null,null,null,null,null,null,null,null,null,null,null,null,null,null,"Complementary Education","122728","2012-11-01","East Midlands","Northamptonshire County Council"]
[null,null,null,null,null,null,null,null,null,null,null,null,null,null,"Compton School, The","119441","2011-01-01","London","Barnet London Borough Council"]
[null,null,null,null,null,null,null,null,null,null,null,null,null,null,"Concord Junior School","128063","2014-03-01","Yorkshire & Humberside","Sheffield City Council"]
[null,null,null,null,null,null,null,null,null,null,null,null,null,null,"Congleton High School","119672","2011-04-01","North West","Cheshire East Council"]
[null,null,null,null,null,null,null,null,null,null,null,null,null,null,"Conisbrough Ivanhoe Primary Academy","120757","2012-01-01","Yorkshire & Humberside","Doncaster Metropolitan Borough Council"]
[null,null,null,null,null,null,null,null,null,null,null,null,null,null,"Connaught Junior School",124574,"2013-10-01","South East","Surrey County Council"]
[null,null,null,null,null,null,null,null,null,null,null,null,null,null,"Connaught School for Girls","123061","2013-02-01","London","Waltham Forest London Borough Council"]
[null,null,null,null,null,null,null,null,null,null,null,null,null,null,"Connell Sixth Form College","123351","2013-09-01","North West","Manchester City Council"]
[null,null,null,null,null,null,null,null,null,null,null,null,null,null,"Consett Academy","120915","2012-01-01","North East","Durham County Council"]
[null,null,null,null,null,null,null,null,null,null,null,null,null,null,"ContinU Plus Academy","123408","2013-09-01","West Midlands","Worcestershire County Council"]
[null,null,null,null,null,null,null,null,null,null,null,null,null,null,"Convent of Jesus and Mary Language College","121834","2012-04-01","London","Brent London Borough Council"]
[null,null,null,null,null,null,null,null,null,null,null,null,null,null,"Conyers School","123323","2013-02-01","North East","Stockton-on-Tees Borough Council"]
[null,null,null,null,null,null,null,null,null,null,null,null,null,null,"Cooks Spinney Primary School and Nursery",124689,"2013-12-01","East of England","Essex County Council"]
[null,null,null,null,null,null,null,null,null,null,null,null,null,null,"Coombe Boys' School","120886","2012-02-01","London","Royal Borough of Kingston Upon Thames Council"]
[null,null,null,null,null,null,null,null,null,null,null,null,null,null,"Coombe Dean School Academy Trust","119575","2011-04-01","South West","Plymouth City Council"]
[null,null,null,null,null,null,null,null,null,null,null,null,null,null,"Coombe Girls' School","120864","2012-02-01","London","Royal Borough of Kingston Upon Thames Council"]
[null,null,null,null,null,null,null,null,null,null,null,null,null,null,"Coombeshead Academy","120176","2011-08-01","South West","Devon County Council"]
[null,null,null,null,null,null,null,null,null,null,null,null,null,null,"Co-operative Academy of Leeds, The","121005","2012-09-01","Yorkshire & Humberside","Leeds City Council"]
[null,null,null,null,null,null,null,null,null,null,null,null,null,null,"Co-operative Academy of Manchester, The","119221","2010-09-01","North West","Manchester City Council"]
[null,null,null,null,null,null,null,null,null,null,null,null,null,null,"Co-operative Academy of Stoke on Trent, The","119168","2010-09-01","West Midlands","Stoke on Trent City Council"]
[null,null,null,null,null,null,null,null,null,null,null,null,null,null,"Coopers' Company and Coborn School, The","119636","2011-04-01","London","Havering London Borough Council"]
[null,null,null,null,null,null,null,null,null,null,null,null,null,null,"Coopers Technology College","119504","2011-03-01","London","Bromley London Borough Council"]
[null,null,null,null,null,null,null,null,null,null,null,null,null,null,"Copleston High School","119835","2011-07-01","East of England","Suffolk County Council"]
[null,null,null,null,null,null,null,null,null,null,null,null,null,null,"Copley High School","123081","2013-02-01","North West","Tameside Metropolitan Borough Council"]
[null,null,null,null,null,null,null,null,null,null,null,null,null,null,"Coppice Primary Academy","123263","2013-09-01","North West","Oldham Metropolitan Borough Council"]
[null,null,null,null,null,null,null,null,null,null,null,null,null,null,"Copthall School","120826","2012-09-01","London","Barnet London Borough Council"]
[null,null,null,null,null,null,null,null,null,null,null,null,null,null,"Corbet School Technology College, The","120430","2011-09-01","West Midlands","Shropshire Council"]
[null,null,null,null,null,null,null,null,null,null,null,null,null,null,"Corby Business Academy, The","118606","2008-09-03","East Midlands","Northamptonshire County Council"]
[null,null,null,null,null,null,null,null,null,null,null,null,null,null,"Corby Primary Academy","126905","2013-09-01","East Midlands","Northamptonshire County Council"]
[null,null,null,null,null,null,null,null,null,null,null,null,null,null,"Corby Technical School","121975","2012-09-01","East Midlands","Northamptonshire County Council"]
[null,null,null,null,null,null,null,null,null,null,null,null,null,null,"Cordeaux Academy","122315","2013-01-01","East Midlands","Lincolnshire County Council"]
[null,null,null,null,null,null,null,null,null,null,null,null,null,null,"Cordwalles Junior School",124348,"2013-12-01","South East","Surrey County Council"]
[null,null,null,null,null,null,null,null,null,null,null,null,null,null,"Corelli College","120350","2011-09-01","London","Greenwich London Borough Council"]
[null,null,null,null,null,null,null,null,null,null,null,null,null,null,"Corfe Hills School Academy Trust","119560","2011-04-01","South West","Poole Borough Council"]
[null,null,null,null,null,null,null,null,null,null,null,null,null,null,"Cornelius Vermuyden",125020,"2013-11-01","East of England","Essex County Council"]
[null,null,null,null,null,null,null,null,null,null,null,null,null,null,"Corngreaves Primary School","122996","2013-06-01","West Midlands","Sandwell Metropolitan Borough Council"]
[null,null,null,null,null,null,null,null,null,null,null,null,null,null,"Cornwallis Academy","118607","2007-09-01","South East","Kent County Council"]
[null,null,null,null,null,null,null,null,null,null,null,null,null,null,"Corpus Christi Catholic Primary School","120295","2011-08-17","London","Lambeth London Borough Council"]
[null,null,null,null,null,null,null,null,null,null,null,null,null,null,"Corringham Primary School",124988,"2013-10-01","East of England","Thurrock Borough Council"]
[null,null,null,null,null,null,null,null,null,null,null,null,null,null,"Corsham Primary School","119565","2011-04-01","South West","Wiltshire Council"]
[null,null,null,null,null,null,null,null,null,null,null,null,null,null,"Corsham Regis Primary School","122832","2013-01-01","South West","Wiltshire Council"]
[null,null,null,null,null,null,null,null,null,null,null,null,null,null,"Corsham School, The","119625","2011-04-01","South West","Wiltshire Council"]
[null,null,null,null,null,null,null,null,null,null,null,null,null,null,"Cosby Primary School","122373","2012-08-01","East Midlands","Leicestershire County Council"]
[null,null,null,null,null,null,null,null,null,null,null,null,null,null,"Costello School, The","121453","2012-07-01","South East","Hampshire County Council"]
[null,null,null,null,null,null,null,null,null,null,null,null,null,null,"Costessey Infant School","124742","2013-09-01","East of England","Norfolk County Council"]
[null,null,null,null,null,null,null,null,null,null,null,null,null,null,"Costessey Junior School","121043","2012-09-01","East of England","Norfolk County Council"]
[null,null,null,null,null,null,null,null,null,null,null,null,null,null,"Coteford Junior School","122984","2013-02-01","London","Hillingdon London Borough Council"]
[null,null,null,null,null,null,null,null,null,null,null,null,null,null,"Cotgrave Candleby Lane School","121190","2012-07-01","East Midlands","Nottinghamshire County Council"]
[null,null,null,null,null,null,null,null,null,null,null,null,null,null,"Cotham School","120389","2011-09-01","South West","Bristol City Council"]
[null,null,null,null,null,null,null,null,null,null,null,null,null,null,"Cotswold School, The","119252","2010-09-06","South West","Gloucestershire County Council"]
[null,null,null,null,null,null,null,null,null,null,null,null,null,null,"Cottenham Academy","120325","2011-09-01","East of England","Cambridgeshire County Council"]
[null,null,null,null,null,null,null,null,null,null,null,null,null,null,"Cottingham High School and Sixth Form College","119907","2011-07-01","Yorkshire & Humberside","East Riding of Yorkshire Council"]
[null,null,null,null,null,null,null,null,null,null,null,null,null,null,"Cottingley Primary School","122304","2012-12-01","Yorkshire & Humberside","Leeds City Council"]
[null,null,null,null,null,null,null,null,null,null,null,null,null,null,"Coundon Court School and Community College","121126","2012-04-01","West Midlands","Coventry City Council"]
[null,null,null,null,null,null,null,null,null,null,null,null,null,null,"Countess Anne Church of England School - Hatfield",124586,"2013-10-01","East of England","Hertfordshire County Council"]
[null,null,null,null,null,null,null,null,null,null,null,null,null,null,"Countesthorpe Community College","122374","2012-08-01T15:47:35","East Midlands","Leicestershire County Council"]
[null,null,null,null,null,null,null,null,null,null,null,null,null,null,"County High School, The - Leftwich","122134","2012-09-01","North West","Cheshire West and Chester Council"]
[null,null,null,null,null,null,null,null,null,null,null,null,null,null,"Court Fields Community School",124670,"2014-01-01","South West","Somerset County Council"]
[null,null,null,null,null,null,null,null,null,null,null,null,null,null,"Courtyard AP Academy, The","124256","2013-04-01","London","Hammersmith and Fulham London Borough Council"]
[null,null,null,null,null,null,null,null,null,null,null,null,null,null,"Coventry Blue Coat Church of England School and Music College, The","120275","2011-07-12","West Midlands","Coventry City Council"]
[null,null,null,null,null,null,null,null,null,null,null,null,null,null,"Coverack Community Primary School","126521","2014-03-01","South West","Cornwall Council"]
[null,null,null,null,null,null,null,null,null,null,null,null,null,null,"Cowley St Laurence CofE Primary School","123160","2013-02-01","London","Hillingdon London Borough Council"]
[null,null,null,null,null,null,null,null,null,null,null,null,null,null,"Cowplain Community School","120847","2012-04-01","South East","Hampshire County Council"]
[null,null,null,null,null,null,null,null,null,null,null,null,null,null,"Cox Green School","120817","2011-12-01T12:12:20","South East","Royal Borough of Windsor and Maidenhead"]
[null,null,null,null,null,null,null,null,null,null,null,null,null,null,"Crabbs' Cross Academy","123828","2013-09-01","West Midlands","Worcestershire County Council"]
[null,null,null,null,null,null,null,null,null,null,null,null,null,null,"Cramlington Learning Village","120424","2011-09-01","North East","Northumberland County Council"]
[null,null,null,null,null,null,null,null,null,null,null,null,null,null,"Cramlington Village Primary School","121976","2012-09-01","North East","Northumberland County Council"]
[null,null,null,null,null,null,null,null,null,null,null,null,null,null,"Cranberry Primary School",124635,"2013-11-01","North West","Cheshire East Council"]
[null,null,null,null,null,null,null,null,null,null,null,null,null,null,"Cranbrook School","120626","2011-12-01T12:12:36","South East","Kent County Council"]
[null,null,null,null,null,null,null,null,null,null,null,null,null,null,"Cranfield VC Lower School","120772","2012-02-01","East of England","Central Bedfordshire Council"]
[null,null,null,null,null,null,null,null,null,null,null,null,null,null,"Cranford Community College","119613","2011-04-01","London","Hounslow London Borough Council"]
[null,null,null,null,null,null,null,null,null,null,null,null,null,null,"Cranford Park Primary School","122678","2012-09-01","London","Hillingdon London Borough Council"]
[null,null,null,null,null,null,null,null,null,null,null,null,null,null,"Craven Primary Academy",124229,"2013-11-01","Yorkshire & Humberside","Hull City Council"]
[null,null,null,null,null,null,null,null,null,null,null,null,null,null,"Crawshaw School","122149","2012-07-01","Yorkshire & Humberside","Leeds City Council"]
[null,null,null,null,null,null,null,null,null,null,null,null,null,null,"Crescent Primary School","119941","2012-08-01","West Midlands","Stoke on Trent City Council"]
[null,null,null,null,null,null,null,null,null,null,null,null,null,null,"Crest Boys' Academy","119084","2009-09-09","London","Brent London Borough Council"]
[null,null,null,null,null,null,null,null,null,null,null,null,null,null,"Crest Girls' Academy","119083","2009-09-07","London","Brent London Borough Council"]
[null,null,null,null,null,null,null,null,null,null,null,null,null,null,"Crigglestone St James Church of England Voluntary Controlled Junior and Infant School","122119","2012-07-01","Yorkshire & Humberside","Wakefield Council"]
[null,null,null,null,null,null,null,null,null,null,null,null,null,null,"Crispin School","119913","2011-07-01","South West","Somerset County Council"]
[null,null,null,null,null,null,null,null,null,null,null,null,null,null,"Croft Academy","122046","2012-09-01","West Midlands","Walsall Metropolitan Borough Council"]
[null,null,null,null,null,null,null,null,null,null,null,null,null,null,"Croft Primary School, The","121917","2012-09-01","South West","Swindon Borough Council"]
[null,null,null,null,null,null,null,null,null,null,null,null,null,null,"Crofton High School","120001","2011-08-01","Yorkshire & Humberside","Wakefield Council"]
[null,null,null,null,null,null,null,null,null,null,null,null,null,null,"Crofton Infant School","122398","2012-09-01","London","Bromley London Borough Council"]
[null,null,null,null,null,null,null,null,null,null,null,null,null,null,"Crofton Junior School","120518","2011-12-01","London","Bromley London Borough Council"]
[null,null,null,null,null,null,null,null,null,null,null,null,null,null,"Croftway Primary School","124118","2013-06-01","North East","Northumberland County Council"]
[null,null,null,null,null,null,null,null,null,null,null,null,null,null,"Cromer Academy","120326","2011-09-01","East of England","Norfolk County Council"]
[null,null,null,null,null,null,null,null,null,null,null,null,null,null,"Crompton House CofE School","120294","2011-08-17","North West","Oldham Metropolitan Borough Council"]
[null,null,null,null,null,null,null,null,null,null,null,null,null,null,"Cromwell Community College","121145","2012-06-01","East of England","Cambridgeshire County Council"]
[null,null,null,null,null,null,null,null,null,null,null,null,null,null,"Crookesbroom Primary Academy","120897","2012-04-01","Yorkshire & Humberside","Doncaster Metropolitan Borough Council"]
[null,null,null,null,null,null,null,null,null,null,null,null,null,null,"Crosby-on-Eden CofE School","123053","2012-11-01","North West","Cumbria County Council"]
[null,null,null,null,null,null,null,null,null,null,null,null,null,null,"Crosshall Infant School","119283","2010-10-01","East of England","Cambridgeshire County Council"]
[null,null,null,null,null,null,null,null,null,null,null,null,null,null,"Crosshall Junior School","119284","2010-10-01","East of England","Cambridgeshire County Council"]
[null,null,null,null,null,null,null,null,null,null,null,null,null,null,"Crossley Heath School, The","120701","2013-01-01","Yorkshire & Humberside","Calderdale Metropolitan Borough Council"]
[null,null,null,null,null,null,null,null,null,null,null,null,null,null,"Crowle Primary School","122995","2012-12-01","Yorkshire & Humberside","North Lincolnshire Council"]
[null,null,null,null,null,null,null,null,null,null,null,null,null,null,"Croxton Kerrial Church of England Primary School",127313,"2013-11-01","East Midlands","Leicestershire County Council"]
[null,null,null,null,null,null,null,null,null,null,null,null,null,null,"Crypt School, The","119557","2011-04-01","South West","Gloucestershire County Council"]
[null,null,null,null,null,null,null,null,null,null,null,null,null,null,"CTC Kingshurst Academy","117814","2008-09-05","West Midlands","Solihull Metropolitan Borough Council"]
[null,null,null,null,null,null,null,null,null,null,null,null,null,null,"Cuckoo Hall Academy","119260","2010-09-01","London","Enfield London Borough Council"]
[null,null,null,null,null,null,null,null,null,null,null,null,null,null,"Culloden Primary School","122986","2013-09-01","London","Tower Hamlets London Borough Council"]
[null,null,null,null,null,null,null,null,null,null,null,null,null,null,"Culworth Church of England School","124157","2013-09-01","East Midlands","Northamptonshire County Council"]
[null,null,null,null,null,null,null,null,null,null,null,null,null,null,"Curledge Street Academy","122662","2012-09-01","South West","Torbay Council"]
[null,null,null,null,null,null,null,null,null,null,null,null,null,null,"Cutteslowe Primary School","122430","2013-04-01","South East","Oxfordshire County Council"]
[null,null,null,null,null,null,null,null,null,null,null,null,null,null,"Da Vinci Studio School of Creative Enterprise, The","123381","2013-09-01","East of England","Hertfordshire County Council"]
[null,null,null,null,null,null,null,null,null,null,null,null,null,null,"Da Vinci Studio School of Science and Engineering","122525","2012-09-01","East of England","Hertfordshire County Council"]
[null,null,null,null,null,null,null,null,null,null,null,null,null,null,"Dallam School","120205","2011-08-01","North West","Cumbria County Council"]
[null,null,null,null,null,null,null,null,null,null,null,null,null,null,"Dallow Primary School",123262,"2013-12-01","East of England","Luton Borough Council"]
[null,null,null,null,null,null,null,null,null,null,null,null,null,null,"Dame Alice Owen's School","119614","2011-04-01","East of England","Hertfordshire County Council"]
[null,null,null,null,null,null,null,null,null,null,null,null,null,null,"Dame Janet Primary Academy","121938","2012-12-01","South East","Kent County Council"]
[null,null,null,null,null,null,null,null,null,null,null,null,null,null,"Dane Court Grammar School","119663","2011-04-01","South East","Kent County Council"]
[null,null,null,null,null,null,null,null,null,null,null,null,null,null,"Danesfield Church of England Voluntary Controlled Community Middle School","127273","2014-03-01","South West","Somerset County Council"]
[null,null,null,null,null,null,null,null,null,null,null,null,null,null,"Daneswood Junior School","124829","2013-09-01","East Midlands","Nottinghamshire County Council"]
[null,null,null,null,null,null,null,null,null,null,null,null,null,null,"Danetree Junior School","122792","2012-09-01","South East","Surrey County Council"]
[null,null,null,null,null,null,null,null,null,null,null,null,null,null,"Danum Academy","120490","2011-10-01","Yorkshire & Humberside","Doncaster Metropolitan Borough Council"]
[null,null,null,null,null,null,null,null,null,null,null,null,null,null,"Darfield Primary Academy","124061","2013-09-01","Yorkshire & Humberside","Barnsley Metropolitan Borough Council"]
[null,null,null,null,null,null,null,null,null,null,null,null,null,null,"Darfield Upperwood Primary School","120601","2012-09-01","Yorkshire & Humberside","Barnsley Metropolitan Borough Council"]
[null,null,null,null,null,null,null,null,null,null,null,null,null,null,"Darlinghurst School",129557,"2014-01-01","East of England","Southend-on-Sea Borough Council"]
[null,null,null,null,null,null,null,null,null,null,null,null,null,null,"Darlington School of Maths and Science","120122","2012-01-01","North East","Darlington Borough Council"]
[null,null,null,null,null,null,null,null,null,null,null,null,null,null,"Darrick Wood Infant School","120032","2011-08-01","London","Bromley London Borough Council"]
[null,null,null,null,null,null,null,null,null,null,null,null,null,null,"Darrick Wood School","119382","2010-12-01","London","Bromley London Borough Council"]
[null,null,null,null,null,null,null,null,null,null,null,null,null,null,"Darrington Church of England Voluntary Controlled Junior and Infant School","124643","2013-09-01","Yorkshire & Humberside","Wakefield Council"]
[null,null,null,null,null,null,null,null,null,null,null,null,null,null,"Dartford Grammar School","119383","2010-12-01","South East","Kent County Council"]
[null,null,null,null,null,null,null,null,null,null,null,null,null,null,"Dartmouth Academy","119337","2010-09-01","South West","Devon County Council"]
[null,null,null,null,null,null,null,null,null,null,null,null,null,null,"Darton Primary School",126451,"2014-02-01","Yorkshire & Humberside","Barnsley Metropolitan Borough Council"]
[null,null,null,null,null,null,null,null,null,null,null,null,null,null,"Darwen Aldridge Community Academy","118611","2008-09-01","North West","Blackburn with Darwen Borough Council"]
[null,null,null,null,null,null,null,null,null,null,null,null,null,null,"Darwen Aldridge Enterprise Studio","123382","2013-09-01","North West","Blackburn with Darwen Borough Council"]
[null,null,null,null,null,null,null,null,null,null,null,null,null,null,"Dashwood Primary Academy","120592","2012-08-01","South East","Oxfordshire County Council"]
[null,null,null,null,null,null,null,null,null,null,null,null,null,null,"Datchet St Mary's CofE Primary School","120827","2012-01-01","South East","Royal Borough of Windsor and Maidenhead"]
[null,null,null,null,null,null,null,null,null,null,null,null,null,null,"Daubeney Middle School","121098","2012-04-01","East of England","Bedford Borough Council"]
[null,null,null,null,null,null,null,null,null,null,null,null,null,null,"Dauntsey's (Aided) Primary School","124328","2013-08-01","South West","Wiltshire Council"]
[null,null,null,null,null,null,null,null,null,null,null,null,null,null,"Davenant Foundation School","119539","2011-04-01","East of England","Essex County Council"]
[null,null,null,null,null,null,null,null,null,null,null,null,null,null,"Daventry Abbey Junior School",127210,"2013-12-01","East Midlands","Northamptonshire County Council"]
[null,null,null,null,null,null,null,null,null,null,null,null,null,null,"Daventry UTC","122157","2013-09-01","East Midlands","Northamptonshire County Council"]
[null,null,null,null,null,null,null,null,null,null,null,null,null,null,"David Livingstone Primary School","120195","2011-08-01","London","Croydon London Borough Council"]
[null,null,null,null,null,null,null,null,null,null,null,null,null,null,"David Young Community Academy","118608","2006-09-01","Yorkshire & Humberside","Leeds City Council"]
[null,null,null,null,null,null,null,null,null,null,null,null,null,null,"De Aston School","119491","2011-03-01","East Midlands","Lincolnshire County Council"]
[null,null,null,null,null,null,null,null,null,null,null,null,null,null,"de Ferrers Academy, The","119433","2011-01-01","West Midlands","Staffordshire County Council"]
[null,null,null,null,null,null,null,null,null,null,null,null,null,null,"De La Salle Academy","119442","2011-01-01","North West","Liverpool City Council"]
[null,null,null,null,null,null,null,null,null,null,null,null,null,null,"De Lacy Academy","121031","2012-04-01","Yorkshire & Humberside","Wakefield Council"]
[null,null,null,null,null,null,null,null,null,null,null,null,null,null,"De Lisle Catholic School - Loughborough","122501","2012-07-01","East Midlands","Leicestershire County Council"]
[null,null,null,null,null,null,null,null,null,null,null,null,null,null,"De Warenne Academy","119133","2009-09-01","Yorkshire & Humberside","Doncaster Metropolitan Borough Council"]
[null,null,null,null,null,null,null,null,null,null,null,null,null,null,"Dean Academy, The","121945","2012-11-01","South West","Gloucestershire County Council"]
[null,null,null,null,null,null,null,null,null,null,null,null,null,null,"Deanery Church of England Voluntary Aided Primary School, The","120155","2011-08-01","West Midlands","Birmingham City Council"]
[null,null,null,null,null,null,null,null,null,null,null,null,null,null,"Deansbrook Junior School","123058","2013-04-01","London","Barnet London Borough Council"]
[null,null,null,null,null,null,null,null,null,null,null,null,null,null,"Dearham Primary School","120651","2011-11-01","North West","Cumbria County Council"]
[null,null,null,null,null,null,null,null,null,null,null,null,null,null,"Dearne Carrfield Primary School","121198","2012-09-01","Yorkshire & Humberside","Barnsley Metropolitan Borough Council"]
[null,null,null,null,null,null,null,null,null,null,null,null,null,null,"Dearne Highgate Primary School","121073","2012-09-01","Yorkshire & Humberside","Barnsley Metropolitan Borough Council"]
[null,null,null,null,null,null,null,null,null,null,null,null,null,null,"Debden Park High School","119681","2011-04-01","East of England","Essex County Council"]
[null,null,null,null,null,null,null,null,null,null,null,null,null,null,"Debenham High School","119434","2011-01-01","East of England","Suffolk County Council"]
[null,null,null,null,null,null,null,null,null,null,null,null,null,null,"Deepings School, The","120710","2012-02-01","East Midlands","Lincolnshire County Council"]
[null,null,null,null,null,null,null,null,null,null,null,null,null,null,"Delamere CofE Primary Academy","119528","2011-04-01","North West","Cheshire West and Chester Council"]
[null,null,null,null,null,null,null,null,null,null,null,null,null,null,"Denbigh High School - Luton","119351","2010-11-01","East of England","Luton Borough Council"]
[null,null,null,null,null,null,null,null,null,null,null,null,null,null,"Denbigh School - Milton Keynes","119468","2011-03-01","South East","Milton Keynes Council"]
[null,null,null,null,null,null,null,null,null,null,null,null,null,null,"Dene Magna School","120422","2011-09-01","South West","Gloucestershire County Council"]
[null,null,null,null,null,null,null,null,null,null,null,null,null,null,"Denefield School","120913","2012-01-01","South East","West Berkshire Council"]
[null,null,null,null,null,null,null,null,null,null,null,null,null,null,"Denham Green E-ACT Academy","123805","2013-09-01","South East","Buckinghamshire County Council"]
[null,null,null,null,null,null,null,null,null,null,null,null,null,null,"Denton West End Primary School","120561","2012-06-01","North West","Tameside Metropolitan Borough Council"]
[null,null,null,null,null,null,null,null,null,null,null,null,null,null,"Derby Pride Academy","122536","2012-09-01","East Midlands","Derby City Council"]
[null,null,null,null,null,null,null,null,null,null,null,null,null,null,"Desborough College","123430","2012-10-01","South East","Royal Borough of Windsor and Maidenhead"]
[null,null,null,null,null,null,null,null,null,null,null,null,null,null,"Devizes School","111451","2012-09-01","South West","Wiltshire Council"]
[null,null,null,null,null,null,null,null,null,null,null,null,null,null,"Devon Studio School","123383","2013-09-01","South West","Torbay Council"]
[null,null,null,null,null,null,null,null,null,null,null,null,null,null,"Devonport High School for Boys","119496","2011-03-01","South West","Plymouth City Council"]
[null,null,null,null,null,null,null,null,null,null,null,null,null,null,"Devonport High School for Girls","119615","2011-04-01","South West","Plymouth City Council"]
[null,null,null,null,null,null,null,null,null,null,null,null,null,null,"Devonshire Primary School","124114","2013-09-01","North West","Blackpool Council"]
[null,null,null,null,null,null,null,null,null,null,null,null,null,null,"Deyes High School","120485","2011-10-01","North West","Sefton Metropolitan Borough Council"]
[null,null,null,null,null,null,null,null,null,null,null,null,null,null,"Diamond Academy","121957","2012-09-01","East of England","Norfolk County Council"]
[null,null,null,null,null,null,null,null,null,null,null,null,null,null,"Diamond Hall Infant School","124576","2013-07-01","North East","Sunderland City Council"]
[null,null,null,null,null,null,null,null,null,null,null,null,null,null,"Didcot Girls' School","122589","2012-08-01T12:36:59","South East","Oxfordshire County Council"]
[null,null,null,null,null,null,null,null,null,null,null,null,null,null,"Dilkes Primary School","120782","2012-12-01","East of England","Thurrock Borough Council"]
[null,null,null,null,null,null,null,null,null,null,null,null,null,null,"Discovery Academy - Stoke-on-Trent","119522","2011-09-01","West Midlands","Stoke on Trent City Council"]
[null,null,null,null,null,null,null,null,null,null,null,null,null,null,"Discovery New School - Crawley","120473","2011-09-01","South East","West Sussex County Council"]
[null,null,null,null,null,null,null,null,null,null,null,null,null,null,"Diss High School","120092","2011-08-01","East of England","Norfolk County Council"]
[null,null,null,null,null,null,null,null,null,null,null,null,null,null,"Ditchingham Church of England Primary School",127777,"2014-02-01","East of England","Norfolk County Council"]
[null,null,null,null,null,null,null,null,null,null,null,null,null,null,"Dixons Allerton Academy","118885","2009-09-01","Yorkshire & Humberside","Bradford Metropolitan District Council"]
[null,null,null,null,null,null,null,null,null,null,null,null,null,null,"Dixons Bradford Moor",127700,"2014-01-01","Yorkshire & Humberside","Bradford Metropolitan District Council"]
[null,null,null,null,null,null,null,null,null,null,null,null,null,null,"Dixons City Academy","118388","2005-09-01","Yorkshire & Humberside","Bradford Metropolitan District Council"]
[null,null,null,null,null,null,null,null,null,null,null,null,null,null,"Dixons Music Primary","121977","2012-09-01","Yorkshire & Humberside","Bradford Metropolitan District Council"]
[null,null,null,null,null,null,null,null,null,null,null,null,null,null,"Dixons Trinity Academy","122017","2012-09-01","Yorkshire & Humberside","Bradford Metropolitan District Council"]
[null,null,null,null,null,null,null,null,null,null,null,null,null,null,"Djanogly City Academy","118389","2003-09-01","East Midlands","Nottingham City Council"]
[null,null,null,null,null,null,null,null,null,null,null,null,null,null,"Djanogly Northgate Academy","120182","2011-08-01","East Midlands","Nottingham City Council"]
[null,null,null,null,null,null,null,null,null,null,null,null,null,null,"Djanogly Strelley Academy ",129257,"2014-02-01","East Midlands","Nottingham City Council"]
[null,null,null,null,null,null,null,null,null,null,null,null,null,null,"Dodworth St John the Baptist CE Primary Academy ",124145,"2014-01-01","Yorkshire & Humberside","Barnsley Metropolitan Borough Council"]
[null,null,null,null,null,null,null,null,null,null,null,null,null,null,"Dolphin School, The","122299","2012-09-01","South West","Bristol City Council"]
[null,null,null,null,null,null,null,null,null,null,null,null,null,null,"Don Valley Academy","120472","2011-09-01","Yorkshire & Humberside","Doncaster Metropolitan Borough Council"]
[null,null,null,null,null,null,null,null,null,null,null,null,null,null,"Dorcan Academy","120699","2011-12-01","South West","Swindon Borough Council"]
[null,null,null,null,null,null,null,null,null,null,null,null,null,null,"Dorchester Middle School","122131","2012-06-01","South West","Dorset County Council"]
[null,null,null,null,null,null,null,null,null,null,null,null,null,null,"Dorchester Primary School","124143","2013-04-01","Yorkshire & Humberside","Hull City Council"]
[null,null,null,null,null,null,null,null,null,null,null,null,null,null,"Dordon Community Primary School","122571","2012-11-01","West Midlands","Warwickshire County Council"]
[null,null,null,null,null,null,null,null,null,null,null,null,null,null,"Dormanstown Primary School","124653","2013-09-01","North East","Redcar and Cleveland Borough Council"]
[null,null,null,null,null,null,null,null,null,null,null,null,null,null,"Dorothy Goodman School Hinckley","121016","2012-06-01","East Midlands","Leicestershire County Council"]
[null,null,null,null,null,null,null,null,null,null,null,null,null,null,"Dorrington Academy Trust","121865","2012-06-01","West Midlands","Birmingham City Council"]
[null,null,null,null,null,null,null,null,null,null,null,null,null,null,"Douay Martyrs Catholic School, The","121058","2012-03-01T12:02:47","London","Hillingdon London Borough Council"]
[null,null,null,null,null,null,null,null,null,null,null,null,null,null,"Dove House School","120565","2011-11-01","South East","Hampshire County Council"]
[null,null,null,null,null,null,null,null,null,null,null,null,null,null,"Dover Christ Church Academy","119220","2010-09-01","South East","Kent County Council"]
[null,null,null,null,null,null,null,null,null,null,null,null,null,null,"Dover Road Primary Academy",123900,"2013-11-01","South East","Kent County Council"]
[null,null,null,null,null,null,null,null,null,null,null,null,null,null,"Downend Comprehensive School","123248","2013-03-01T15:56:44","South West","South Gloucestershire Council"]
[null,null,null,null,null,null,null,null,null,null,null,null,null,null,"Downham Market High School","122810","2013-07-01","East of England","Norfolk County Council"]
[null,null,null,null,null,null,null,null,null,null,null,null,null,null,"Downview Primary School","124527","2013-09-01","South East","West Sussex County Council"]
[null,null,null,null,null,null,null,null,null,null,null,null,null,null,"Dr Challoner's Grammar School","119435","2011-01-01","South East","Buckinghamshire County Council"]
[null,null,null,null,null,null,null,null,null,null,null,null,null,null,"Dr Challoner's High School","120219","2011-08-01","South East","Buckinghamshire County Council"]
[null,null,null,null,null,null,null,null,null,null,null,null,null,null,"Drapers' Academy","119152","2010-09-01","London","Havering London Borough Council"]
[null,null,null,null,null,null,null,null,null,null,null,null,null,null,"Drapers Mills Primary School","122031","2012-12-01","South East","Kent County Council"]
[null,null,null,null,null,null,null,null,null,null,null,null,null,null,"Drayton Manor High School","120221","2011-08-01","London","Ealing London Borough Council"]
[null,null,null,null,null,null,null,null,null,null,null,null,null,null,"Droitwich Spa High School","119902","2011-07-01","West Midlands","Worcestershire County Council"]
[null,null,null,null,null,null,null,null,null,null,null,null,null,null,"Drove Primary School","122002","2012-07-01","South West","Swindon Borough Council"]
[null,null,null,null,null,null,null,null,null,null,null,null,null,null,"Droylsden Academy","118886","2009-09-03","North West","Tameside Metropolitan Borough Council"]
[null,null,null,null,null,null,null,null,null,null,null,null,null,null,"DSLV E-ACT Academy","121069","2012-04-01","East Midlands","Northamptonshire County Council"]
[null,null,null,null,null,null,null,null,null,null,null,null,null,null,"Duchy School Bradninch, The","123249","2013-09-01","South West","Devon County Council"]
[null,null,null,null,null,null,null,null,null,null,null,null,null,null,"Dudley Infant Academy, The",125028,"2013-11-01","South East","East Sussex County Council"]
[null,null,null,null,null,null,null,null,null,null,null,null,null,null,"Duke of York's Royal Military School","119233","2010-09-10","South East","Kent County Council"]
[null,null,null,null,null,null,null,null,null,null,null,null,null,null,"Dukeries Academy","122429","2013-01-01","East Midlands","Nottinghamshire County Council"]
[null,null,null,null,null,null,null,null,null,null,null,null,null,null,"Dukesgate Primary School","122086","2012-09-01","North West","Salford City Council"]
[null,null,null,null,null,null,null,null,null,null,null,null,null,null,"Dulwich Hamlet Junior School Educational Trust","119581","2011-04-01","London","Southwark London Borough Council"]
[null,null,null,null,null,null,null,null,null,null,null,null,null,null,"Dunbury Church of England Primary Academy, The",124725,"2014-02-01","South West","Dorset County Council"]
[null,null,null,null,null,null,null,null,null,null,null,null,null,null,"Dunraven School","120093","2011-08-01","London","Lambeth London Borough Council"]
[null,null,null,null,null,null,null,null,null,null,null,null,null,null,"Dunsville Primary School","122690","2012-11-01","Yorkshire & Humberside","Doncaster Metropolitan Borough Council"]
[null,null,null,null,null,null,null,null,null,null,null,null,null,null,"Dunswell Primary School","126428","2013-09-01","Yorkshire & Humberside","East Riding of Yorkshire Council"]
[null,null,null,null,null,null,null,null,null,null,null,null,null,null,"Durand Primary School","119264","2010-09-01","London","Lambeth London Borough Council"]
[null,null,null,null,null,null,null,null,null,null,null,null,null,null,"Durham Free School, The","123299","2013-09-01","North East","Durham County Council"]
[null,null,null,null,null,null,null,null,null,null,null,null,null,null,"Dursley Church of England Primary School","123052","2013-06-01","South West","Gloucestershire County Council"]
[null,null,null,null,null,null,null,null,null,null,null,null,null,null,"Duston School, The","119935","2012-06-01","East Midlands","Northamptonshire County Council"]
[null,null,null,null,null,null,null,null,null,null,null,null,null,null,"Dyke House Sports and Technology College","124065","2013-04-01","North East","Hartlepool Borough Council"]
[null,null,null,null,null,null,null,null,null,null,null,null,null,null,"Dyson Perrins CofE Sports College","120186","2011-08-01","West Midlands","Worcestershire County Council"]
[null,null,null,null,null,null,null,null,null,null,null,null,null,null,"E-ACT Blackley Academy","120973","2012-01-01","North West","Manchester City Council"]
[null,null,null,null,null,null,null,null,null,null,null,null,null,null,"E-ACT Leeds East Academy","119926","2011-09-01","Yorkshire & Humberside","Leeds City Council"]
[null,null,null,null,null,null,null,null,null,null,null,null,null,null,"E-ACT Parker Academy","121897","2012-09-01","East Midlands","Northamptonshire County Council"]
[null,null,null,null,null,null,null,null,null,null,null,null,null,null,"Eaglesfield Paddle Church of England VA Primary School","119758","2011-06-01","North West","Cumbria County Council"]
[null,null,null,null,null,null,null,null,null,null,null,null,null,null,"Eagley Infant School","121150","2012-04-01","North West","Bolton Metropolitan Borough Council"]
[null,null,null,null,null,null,null,null,null,null,null,null,null,null,"Eagley Junior School","121164","2012-06-01","North West","Bolton Metropolitan Borough Council"]
[null,null,null,null,null,null,null,null,null,null,null,null,null,null,"Earls High School, The","120746","2012-01-01","West Midlands","Dudley Metropolitan Borough Council"]
[null,null,null,null,null,null,null,null,null,null,null,null,null,null,"Easington Academy","121001","2012-04-01","North East","Durham County Council"]
[null,null,null,null,null,null,null,null,null,null,null,null,null,null,"East Barnet School","119674","2011-04-01","London","Barnet London Borough Council"]
[null,null,null,null,null,null,null,null,null,null,null,null,null,null,"East Bergholt High School","120218","2011-08-01","East of England","Suffolk County Council"]
[null,null,null,null,null,null,null,null,null,null,null,null,null,null,"East Bridgford St Peter’s Church of England Academy",124629,"2014-02-01","East Midlands","Nottinghamshire County Council"]
[null,null,null,null,null,null,null,null,null,null,null,null,null,null,"East Dene Primary","122323","2013-04-01","Yorkshire & Humberside","Rotherham Metropolitan Borough Council"]
[null,null,null,null,null,null,null,null,null,null,null,null,null,null,"East Garforth Primary Academy","125195","2013-09-01","Yorkshire & Humberside","Leeds City Council"]
[null,null,null,null,null,null,null,null,null,null,null,null,null,null,"East Herrington Primary School","122083","2012-07-01","North East","Sunderland City Council"]
[null,null,null,null,null,null,null,null,null,null,null,null,null,null,"East Leake Academy","122413","2012-11-01T14:52:48","East Midlands","Nottinghamshire County Council"]
[null,null,null,null,null,null,null,null,null,null,null,null,null,null,"East London Science School","123300","2013-09-01","London","Tower Hamlets London Borough Council"]
[null,null,null,null,null,null,null,null,null,null,null,null,null,null,"East Manchester Academy, The","119145","2010-09-01","North West","Manchester City Council"]
[null,null,null,null,null,null,null,null,null,null,null,null,null,null,"East Point Academy","120134","2011-09-01","East of England","Suffolk County Council"]
[null,null,null,null,null,null,null,null,null,null,null,null,null,null,"East Ravendale CofE School Academy","120770","2012-01-01","Yorkshire & Humberside","North East Lincolnshire Council"]
[null,null,null,null,null,null,null,null,null,null,null,null,null,null,"East Tilbury Infant School","121024","2012-04-01","East of England","Thurrock Borough Council"]
[null,null,null,null,null,null,null,null,null,null,null,null,null,null,"East Tilbury Junior School","122014","2012-04-01","East of England","Thurrock Borough Council"]
[null,null,null,null,null,null,null,null,null,null,null,null,null,null,"East Wickham Infant School","119662","2011-04-01","London","Bexley London Borough Council"]
[null,null,null,null,null,null,null,null,null,null,null,null,null,null,"East Worlington Primary School","120025","2011-08-01","South West","Devon County Council"]
[null,null,null,null,null,null,null,null,null,null,null,null,null,null,"Eastbourne Academy","119169","2010-09-01","South East","East Sussex County Council"]
[null,null,null,null,null,null,null,null,null,null,null,null,null,null,"Eastbrook Primary Academy","123101","2013-09-01","South East","West Sussex County Council"]
[null,null,null,null,null,null,null,null,null,null,null,null,null,null,"Eastfield Academy","120935","2012-11-01","East Midlands","Northamptonshire County Council"]
[null,null,null,null,null,null,null,null,null,null,null,null,null,null,"Eastfield Primary School - Hull","124080","2013-07-01","Yorkshire & Humberside","Hull City Council"]
[null,null,null,null,null,null,null,null,null,null,null,null,null,null,"Eastfield Primary School - Immingham","124597","2013-08-01","Yorkshire & Humberside","North East Lincolnshire Council"]
[null,null,null,null,null,null,null,null,null,null,null,null,null,null,"Eastfield Primary School - Leicester","122375","2012-10-01","East Midlands","Leicestershire County Council"]
[null,null,null,null,null,null,null,null,null,null,null,null,null,null,"Easton Royal Primary School","122140","2012-09-01","South West","Wiltshire Council"]
[null,null,null,null,null,null,null,null,null,null,null,null,null,null,"Eastrop Infant School","120390","2011-09-01","South West","Swindon Borough Council"]
[null,null,null,null,null,null,null,null,null,null,null,null,null,null,"Eastwood Academy, The","120284","2011-08-17","East of England","Southend-on-Sea Borough Council"]
[null,null,null,null,null,null,null,null,null,null,null,null,null,null,"Eaton Bank Academy - Congleton","122027","2012-09-01","North West","Cheshire East Council"]
[null,null,null,null,null,null,null,null,null,null,null,null,null,null,"Eaton Bray Academy - Dunstable","119536","2011-04-01","East of England","Central Bedfordshire Council"]
[null,null,null,null,null,null,null,null,null,null,null,null,null,null,"Eaton Hall School","122975","2012-12-01","East of England","Norfolk County Council"]
[null,null,null,null,null,null,null,null,null,null,null,null,null,null,"Eaton Park Primary School","120783","2012-08-01","West Midlands","Stoke on Trent City Council"]
[null,null,null,null,null,null,null,null,null,null,null,null,null,null,"Ebbsfleet Academy",120981,"2013-11-01","South East","Kent County Council"]
[null,null,null,null,null,null,null,null,null,null,null,null,null,null,"EBN East Birmingham Network Free School","122537","2012-09-01","West Midlands","Birmingham City Council"]
[null,null,null,null,null,null,null,null,null,null,null,null,null,null,"Ecclesbourne Primary School - Croydon","119661","2011-04-01","London","Croydon London Borough Council"]
[null,null,null,null,null,null,null,null,null,null,null,null,null,null,"Ecclesbourne School, The - Belper","119514","2011-03-01","East Midlands","Derbyshire County Council"]
[null,null,null,null,null,null,null,null,null,null,null,null,null,null,"Echelford Primary Academy",124665,"2013-10-01","South East","Surrey County Council"]
[null,null,null,null,null,null,null,null,null,null,null,null,null,null,"Ecton Brook Primary School","121428","2012-11-01","East Midlands","Northamptonshire County Council"]
[null,null,null,null,null,null,null,null,null,null,null,null,null,null,"Eden Park Primary School Academy","119892","2011-07-01","South West","Torbay Council"]
[null,null,null,null,null,null,null,null,null,null,null,null,null,null,"Eden Primary School","120469","2011-09-01","London","Haringey London Borough Council"]
[null,null,null,null,null,null,null,null,null,null,null,null,null,null,"Edgar Stammers Primary Academy","124115","2013-07-01","West Midlands","Walsall Metropolitan Borough Council"]
[null,null,null,null,null,null,null,null,null,null,null,null,null,null,"Edna G Olds Primary and Nursery School","120574","2011-10-01","East Midlands","Nottingham City Council"]
[null,null,null,null,null,null,null,null,null,null,null,null,null,null,"Edward Bryant Primary School","121007","2012-04-01","South East","West Sussex County Council"]
[null,null,null,null,null,null,null,null,null,null,null,null,null,null,"Edward Heneage Primary School","121995","2012-10-01","Yorkshire & Humberside","North East Lincolnshire Council"]
[null,null,null,null,null,null,null,null,null,null,null,null,null,null,"Eggar's School","120832","2012-09-01","South East","Hampshire County Council"]
[null,null,null,null,null,null,null,null,null,null,null,null,null,null,"Eggbuckland Community College","124785","2013-09-01","South West","Plymouth City Council"]
[null,null,null,null,null,null,null,null,null,null,null,null,null,null,"Elaine Primary Academy","121893","2012-09-01","South East","Medway Council"]
[null,null,null,null,null,null,null,null,null,null,null,null,null,null,"Elburton Primary School","121458","2012-07-01","South West","Plymouth City Council"]
[null,null,null,null,null,null,null,null,null,null,null,null,null,null,"Eldon Grove Primary School","124581","2013-07-01","North East","Hartlepool Borough Council"]
[null,null,null,null,null,null,null,null,null,null,null,null,null,null,"Elizabeth Woodville School","123041","2012-12-01","East Midlands","Northamptonshire County Council"]
[null,null,null,null,null,null,null,null,null,null,null,null,null,null,"Elizabethan High School, The","120873","2012-04-01","East Midlands","Nottinghamshire County Council"]
[null,null,null,null,null,null,null,null,null,null,null,null,null,null,"Ellacombe Primary School Academy","121154","2012-04-01","South West","Torbay Council"]
[null,null,null,null,null,null,null,null,null,null,null,null,null,null,"Ellison Boulters Church of England Primary School","122676","2012-09-01","East Midlands","Lincolnshire County Council"]
[null,null,null,null,null,null,null,null,null,null,null,null,null,null,"Elm Academy","123051","2012-12-01","South West","Bournemouth Borough Council"]
[null,null,null,null,null,null,null,null,null,null,null,null,null,null,"Elmlea Junior School","119843","2011-07-01","South West","Bristol City Council"]
[null,null,null,null,null,null,null,null,null,null,null,null,null,null,"Elmridge Primary School","122009","2012-09-01","North West","Trafford Borough Council"]
[null,null,null,null,null,null,null,null,null,null,null,null,null,null,"Elstree UTC, The","123376","2013-09-01","East of England","Hertfordshire County Council"]
[null,null,null,null,null,null,null,null,null,null,null,null,null,null,"Elveden Church of England Voluntary Aided Primary School","122802","2013-01-01","East of England","Suffolk County Council"]
[null,null,null,null,null,null,null,null,null,null,null,null,null,null,"Ely College","120613","2012-01-01","East of England","Cambridgeshire County Council"]
[null,null,null,null,null,null,null,null,null,null,null,null,null,null,"Emerson Park School","120346","2011-09-01","London","Havering London Borough Council"]
[null,null,null,null,null,null,null,null,null,null,null,null,null,null,"Emmanuel College - Gateshead","118390","1991-04-05","North East","Gateshead Council"]
[null,null,null,null,null,null,null,null,null,null,null,null,null,null,"Emmanuel Community School - Walthamstow","122320","2012-09-01","London","Waltham Forest London Borough Council"]
[null,null,null,null,null,null,null,null,null,null,null,null,null,null,"Enderby Danemill Primary School",126441,"2013-11-01","East Midlands","Leicestershire County Council"]
[null,null,null,null,null,null,null,null,null,null,null,null,null,null,"Endike Primary School",124992,"2013-11-01","Yorkshire & Humberside","Hull City Council"]
[null,null,null,null,null,null,null,null,null,null,null,null,null,null,"Enfield Grammar School","120094","2011-08-01","London","Enfield London Borough Council"]
[null,null,null,null,null,null,null,null,null,null,null,null,null,null,"Enfield Heights Academy","121979","2012-09-01","London","Enfield London Borough Council"]
[null,null,null,null,null,null,null,null,null,null,null,null,null,null,"English Martyrs' Catholic Primary - Nottingham","126519","2013-09-01","East Midlands","Derbyshire County Council"]
[null,null,null,null,null,null,null,null,null,null,null,null,null,null,"English Martyrs' Catholic Primary School - Biddulph","123377","2013-09-01","West Midlands","Staffordshire County Council"]
[null,null,null,null,null,null,null,null,null,null,null,null,null,null,"English Martyrs' Catholic Primary School - Oakham","124329","2013-05-01","East Midlands","Rutland County Council"]
[null,null,null,null,null,null,null,null,null,null,null,null,null,null,"Enmore Church of England Primary School","120391","2011-09-01","South West","Somerset County Council"]
[null,null,null,null,null,null,null,null,null,null,null,null,null,null,"Enterprise South Liverpool Academy","119202","2010-09-01","North West","Liverpool City Council"]
[null,null,null,null,null,null,null,null,null,null,null,null,null,null,"Epiphany Church of England Primary School, The","121086","2012-04-01","South West","Bournemouth Borough Council"]
[null,null,null,null,null,null,null,null,null,null,null,null,null,null,"Eppleton Primary School","122067","2012-06-01","North East","Sunderland City Council"]
[null,null,null,null,null,null,null,null,null,null,null,null,null,null,"Epsom and Ewell High School","120508","2011-10-01","South East","Surrey County Council"]
[null,null,null,null,null,null,null,null,null,null,null,null,null,null,"Epworth Primary Academy","122066","2012-09-01","Yorkshire & Humberside","North Lincolnshire Council"]
[null,null,null,null,null,null,null,null,null,null,null,null,null,null,"Erasmus Darwin Academy","119886","2011-07-01","West Midlands","Staffordshire County Council"]
[null,null,null,null,null,null,null,null,null,null,null,null,null,null,"Erdington Hall Primary School","121166","2012-06-01","West Midlands","Birmingham City Council"]
[null,null,null,null,null,null,null,null,null,null,null,null,null,null,"Eresby School, The - Spilsby","122974","2013-05-01","East Midlands","Lincolnshire County Council"]
[null,null,null,null,null,null,null,null,null,null,null,null,null,null,"Erith School","119285","2010-10-01","London","Bexley London Borough Council"]
[null,null,null,null,null,null,null,null,null,null,null,null,null,null,"Ermine Primary School","119871","2011-07-01","East Midlands","Lincolnshire County Council"]
[null,null,null,null,null,null,null,null,null,null,null,null,null,null,"Ernesford Grange Community School",126323,"2014-01-01","West Midlands","Coventry City Council"]
[null,null,null,null,null,null,null,null,null,null,null,null,null,null,"Ernulf Academy","120187","2011-08-01","East of England","Cambridgeshire County Council"]
[null,null,null,null,null,null,null,null,null,null,null,null,null,null,"Esher CofE High School","124917","2014-03-01","South East","Surrey County Council"]
[null,null,null,null,null,null,null,null,null,null,null,null,null,null,"Essa Academy","119125","2009-01-05","North West","Bolton Metropolitan Borough Council"]
[null,null,null,null,null,null,null,null,null,null,null,null,null,null,"Eston Park Academy","120911","2012-01-01","North East","Redcar and Cleveland Borough Council"]
[null,null,null,null,null,null,null,null,null,null,null,null,null,null,"Etonbury Academy","120584","2011-11-01","East of England","Central Bedfordshire Council"]
[null,null,null,null,null,null,null,null,null,null,null,null,null,null,"Etone Technology Language Vocational College","120804","2012-01-01","West Midlands","Warwickshire County Council"]
[null,null,null,null,null,null,null,null,null,null,null,null,null,null,"Etz Chaim Jewish Primary School","120538","2011-09-01","London","Barnet London Borough Council"]
[null,null,null,null,null,null,null,null,null,null,null,null,null,null,"Europa School UK","121980","2012-09-01","South East","Oxfordshire County Council"]
[null,null,null,null,null,null,null,null,null,null,null,null,null,null,"Evelyn Grace Academy","118662","2009-09-01","London","Lambeth London Borough Council"]
[null,null,null,null,null,null,null,null,null,null,null,null,null,null,"Everest Community Academy","120113","2011-09-01","South East","Hampshire County Council"]
[null,null,null,null,null,null,null,null,null,null,null,null,null,null,"Eversholt Lower School","119946","2011-10-01","East of England","Central Bedfordshire Council"]
[null,null,null,null,null,null,null,null,null,null,null,null,null,null,"Everton in the Community Free School Trust","122538","2012-09-01","North West","Liverpool City Council"]
[null,null,null,null,null,null,null,null,null,null,null,null,null,null,"Excelsior Academy","118610","2008-09-01","North East","Newcastle Upon Tyne City Council"]
[null,null,null,null,null,null,null,null,null,null,null,null,null,null,"Exeter Primary School","122586","2013-01-01","East Midlands","Northamptonshire County Council"]
[null,null,null,null,null,null,null,null,null,null,null,null,null,null,"Exmouth Community College","119526","2011-04-01","South West","Devon County Council"]
[null,null,null,null,null,null,null,null,null,null,null,null,null,null,"Faber Catholic Primary School, The","122660","2012-09-01","West Midlands","Staffordshire County Council"]
[null,null,null,null,null,null,null,null,null,null,null,null,null,null,"Fair Oak Academy","120100","2011-09-01","West Midlands","Staffordshire County Council"]
[null,null,null,null,null,null,null,null,null,null,null,null,null,null,"Fairfax School","119908","2011-07-01","West Midlands","Birmingham City Council"]
[null,null,null,null,null,null,null,null,null,null,null,null,null,null,"Fairfield High School for Girls","119603","2011-04-01","North West","Tameside Metropolitan Borough Council"]
[null,null,null,null,null,null,null,null,null,null,null,null,null,null,"Fairfield Primary School - Nottingham","123274","2013-09-01","East Midlands","Nottinghamshire County Council"]
[null,null,null,null,null,null,null,null,null,null,null,null,null,null,"Fairfield Primary School - Wigston","121158","2012-03-01","East Midlands","Leicestershire County Council"]
[null,null,null,null,null,null,null,null,null,null,null,null,null,null,"Fairway Primary Academy","123210","2013-04-01","West Midlands","Birmingham City Council"]
[null,null,null,null,null,null,null,null,null,null,null,null,null,null,"Fakenham High School and College",123891,"2013-10-01","East of England","Norfolk County Council"]
[null,null,null,null,null,null,null,null,null,null,null,null,null,null,"Fallibroome Academy, The","119251","2010-09-01","North West","Cheshire East Council"]
[null,null,null,null,null,null,null,null,null,null,null,null,null,null,"Falmouth Primary School",124651,"2013-12-01","South West","Cornwall Council"]
[null,null,null,null,null,null,null,null,null,null,null,null,null,null,"Falmouth School","120223","2011-08-01","South West","Cornwall Council"]
[null,null,null,null,null,null,null,null,null,null,null,null,null,null,"Fareham Academy","124768","2013-09-01","South East","Hampshire County Council"]
[null,null,null,null,null,null,null,null,null,null,null,null,null,null,"Faringdon Community College - Faringdon","121091","2012-04-01","South East","Oxfordshire County Council"]
[null,null,null,null,null,null,null,null,null,null,null,null,null,null,"Faringdon Infant School - Faringdon","121092","2012-04-01","South East","Oxfordshire County Council"]
[null,null,null,null,null,null,null,null,null,null,null,null,null,null,"Faringdon Junior School - Faringdon","121162","2012-04-01","South East","Oxfordshire County Council"]
[null,null,null,null,null,null,null,null,null,null,null,null,null,null,"Farlingaye High School","119834","2011-07-01","East of England","Suffolk County Council"]
[null,null,null,null,null,null,null,null,null,null,null,null,null,null,"Farmor's School","120097","2011-08-01","South West","Gloucestershire County Council"]
[null,null,null,null,null,null,null,null,null,null,null,null,null,null,"Farnborough Primary School",125242,"2013-12-01","London","Bromley London Borough Council"]
[null,null,null,null,null,null,null,null,null,null,null,null,null,null,"Farndon Fields Primary School","122176","2012-07-01","East Midlands","Leicestershire County Council"]
[null,null,null,null,null,null,null,null,null,null,null,null,null,null,"Farnham Heath End School","123222","2013-04-01","South East","Surrey County Council"]
[null,null,null,null,null,null,null,null,null,null,null,null,null,null,"Farnley Academy, The","121065","2012-02-01","Yorkshire & Humberside","Leeds City Council"]
[null,null,null,null,null,null,null,null,null,null,null,null,null,null,"Farringdon Community Sports College - Sunderland","124537","2013-07-01","North East","Sunderland City Council"]
[null,null,null,null,null,null,null,null,null,null,null,null,null,null,"Farringdon Primary School - Sunderland","123118","2012-12-01","North East","Sunderland City Council"]
[null,null,null,null,null,null,null,null,null,null,null,null,null,null,"Featherstone High School","120693","2011-12-01T12:13:56","London","Ealing London Borough Council"]
[null,null,null,null,null,null,null,null,null,null,null,null,null,null,"Felixstowe Academy","120321","2011-09-01","East of England","Suffolk County Council"]
[null,null,null,null,null,null,null,null,null,null,null,null,null,null,"Feltham Community College","120514","2011-11-01T14:11:45","London","Hounslow London Borough Council"]
[null,null,null,null,null,null,null,null,null,null,null,null,null,null,"Fen Park Community Primary School","129428","2014-03-01","East of England","Suffolk County Council"]
[null,null,null,null,null,null,null,null,null,null,null,null,null,null,"Fennwood Academy",124753,"2013-12-01","East of England","Essex County Council"]
[null,null,null,null,null,null,null,null,null,null,null,null,null,null,"Ferns Primary Academy, The","121852","2012-09-01","North West","Bolton Metropolitan Borough Council"]
[null,null,null,null,null,null,null,null,null,null,null,null,null,null,"Fernwood Academy Trust, The","119738","2011-05-01","East Midlands","Nottingham City Council"]
[null,null,null,null,null,null,null,null,null,null,null,null,null,null,"Ferrars Infant School","122710","2013-05-01","East of England","Luton Borough Council"]
[null,null,null,null,null,null,null,null,null,null,null,null,null,null,"Ferrers Specialist Arts College, The","124777","2013-08-01","East Midlands","Northamptonshire County Council"]
[null,null,null,null,null,null,null,null,null,null,null,null,null,null,"Feversham College","119962","2011-08-01","Yorkshire & Humberside","Bradford Metropolitan District Council"]
[null,null,null,null,null,null,null,null,null,null,null,null,null,null,"Feversham Primary School","122249","2012-11-01","Yorkshire & Humberside","Bradford Metropolitan District Council"]
[null,null,null,null,null,null,null,null,null,null,null,null,null,null,"Field Court Church of England Infant School","120393","2011-09-01","South West","Gloucestershire County Council"]
[null,null,null,null,null,null,null,null,null,null,null,null,null,null,"Field Court Junior School","120392","2011-09-01","South West","Gloucestershire County Council"]
[null,null,null,null,null,null,null,null,null,null,null,null,null,null,"Field Lane Primary School","122079","2012-09-01","Yorkshire & Humberside","Calderdale Metropolitan Borough Council"]
[null,null,null,null,null,null,null,null,null,null,null,null,null,null,"Fieldhead Junior Infant and Nursery School","123234","2013-03-01","Yorkshire & Humberside","Kirklees Metropolitan Council"]
[null,null,null,null,null,null,null,null,null,null,null,null,null,null,"Filton Avenue Infant School","121179","2012-09-01","South West","Bristol City Council"]
[null,null,null,null,null,null,null,null,null,null,null,null,null,null,"Finham Park School","119963","2011-08-01","West Midlands","Coventry City Council"]
[null,null,null,null,null,null,null,null,null,null,null,null,null,null,"Fir Tree Primary School and Nursery","122632","2013-03-01","South East","West Berkshire Council"]
[null,null,null,null,null,null,null,null,null,null,null,null,null,null,"Fir Vale School","120750","2012-11-01","Yorkshire & Humberside","Sheffield City Council"]
[null,null,null,null,null,null,null,null,null,null,null,null,null,null,"Firbeck Primary and Nursery School","123934","2013-07-01","East Midlands","Nottingham City Council"]
[null,null,null,null,null,null,null,null,null,null,null,null,null,null,"Firs Lower School, The","120795","2012-01-01","East of England","Central Bedfordshire Council"]
[null,null,null,null,null,null,null,null,null,null,null,null,null,null,"Firth Park Community Arts College","123198","2013-08-01","Yorkshire & Humberside","Sheffield City Council"]
[null,null,null,null,null,null,null,null,null,null,null,null,null,null,"Firthmoor Primary School","121831","2012-05-01","North East","Darlington Borough Council"]
[null,null,null,null,null,null,null,null,null,null,null,null,null,null,"Fishponds CofE Academy","120961","2012-09-01","South West","Bristol City Council"]
[null,null,null,null,null,null,null,null,null,null,null,null,null,null,"Fishtoft School, The","123158","2013-02-01","East Midlands","Lincolnshire County Council"]
[null,null,null,null,null,null,null,null,null,null,null,null,null,null,"Fitzwaryn School","123157","2013-02-01","South East","Oxfordshire County Council"]
[null,null,null,null,null,null,null,null,null,null,null,null,null,null,"Flamstead End Primary and Nursery School","123151","2013-04-01","East of England","Hertfordshire County Council"]
[null,null,null,null,null,null,null,null,null,null,null,null,null,null,"Flanshaw St Michaels CofE (Voluntary Controlled) Primary (Nij) School","122881","2013-05-01","Yorkshire & Humberside","Wakefield Council"]
[null,null,null,null,null,null,null,null,null,null,null,null,null,null,"Flax Hill Junior Academy",124729,"2014-01-01","West Midlands","Staffordshire County Council"]
[null,null,null,null,null,null,null,null,null,null,null,null,null,null,"Fleetville Infant and Nursery School","121094","2012-06-01","East of England","Hertfordshire County Council"]
[null,null,null,null,null,null,null,null,null,null,null,null,null,null,"Fleetville Junior School","121193","2012-06-01","East of England","Hertfordshire County Council"]
[null,null,null,null,null,null,null,null,null,null,null,null,null,null,"Flegg High School","122343","2012-09-01","East of England","Norfolk County Council"]
[null,null,null,null,null,null,null,null,null,null,null,null,null,null,"Flitch Green Academy","119450","2011-02-01","East of England","Essex County Council"]
[null,null,null,null,null,null,null,null,null,null,null,null,null,null,"Flixton Girls' High School","119965","2011-08-01","North West","Trafford Borough Council"]
[null,null,null,null,null,null,null,null,null,null,null,null,null,null,"Flying High Academy at Ladybrook, The",124750,"2014-01-01","East Midlands","Nottinghamshire County Council"]
[null,null,null,null,null,null,null,null,null,null,null,null,null,null,"Folkestone Academy, The","118612","2007-09-01","South East","Kent County Council"]
[null,null,null,null,null,null,null,null,null,null,null,null,null,null,"Folkestone Christ Church CofE Primary School","123038","2013-03-01","South East","Kent County Council"]
[null,null,null,null,null,null,null,null,null,null,null,null,null,null,"Folkestone School for Girls, The","120899","2012-02-01T14:39:03","South East","Kent County Council"]
[null,null,null,null,null,null,null,null,null,null,null,null,null,null,"Folkestone, St Mary's Church of England Primary School","123049","2013-02-01","South East","Kent County Council"]
[null,null,null,null,null,null,null,null,null,null,null,null,null,null,"Forest Academy - Brandon","119371","2010-11-01","East of England","Suffolk County Council"]
[null,null,null,null,null,null,null,null,null,null,null,null,null,null,"Forest Academy - Croydon","124169","2013-09-01","London","Croydon London Borough Council"]
[null,null,null,null,null,null,null,null,null,null,null,null,null,null,"Forest Academy - Ilford","121111","2012-01-01","London","Redbridge London Borough Council"]
[null,null,null,null,null,null,null,null,null,null,null,null,null,null,"Forest E-ACT Academy - Cinderford","120938","2012-09-01","South West","Gloucestershire County Council"]
[null,null,null,null,null,null,null,null,null,null,null,null,null,null,"Forest Gate Community Primary School","122240","2012-09-01","North West","Trafford Borough Council"]
[null,null,null,null,null,null,null,null,null,null,null,null,null,null,"Forest School - Wokingham","124300","2013-07-01","South East","Wokingham Borough Council"]
[null,null,null,null,null,null,null,null,null,null,null,null,null,null,"Forest View Primary School","122977","2013-02-01","South West","Gloucestershire County Council"]
[null,null,null,null,null,null,null,null,null,null,null,null,null,null,"Forest Way School - Coalville","120879","2012-03-01","East Midlands","Leicestershire County Council"]
[null,null,null,null,null,null,null,null,null,null,null,null,null,null,"Formby High School","120363","2011-09-01","North West","Sefton Metropolitan Borough Council"]
[null,null,null,null,null,null,null,null,null,null,null,null,null,null,"Fort Pitt Grammar School","119357","2010-11-01","South East","Medway Council"]
[null,null,null,null,null,null,null,null,null,null,null,null,null,null,"Fosse Way Academy - Lincoln","119764","2011-06-01","East Midlands","Lincolnshire County Council"]
[null,null,null,null,null,null,null,null,null,null,null,null,null,null,"Fosse Way School - Bath","120394","2011-09-01","South West","Bath & North East Somerset Council"]
[null,null,null,null,null,null,null,null,null,null,null,null,null,null,"Four Dwellings Academy","122290","2013-03-01","West Midlands","Birmingham City Council"]
[null,null,null,null,null,null,null,null,null,null,null,null,null,null,"Four Dwellings Primary School","122485","2013-01-01","West Midlands","Birmingham City Council"]
[null,null,null,null,null,null,null,null,null,null,null,null,null,null,"Fox Hill Primary School","122652","2013-04-01","Yorkshire & Humberside","Sheffield City Council"]
[null,null,null,null,null,null,null,null,null,null,null,null,null,null,"Foxbrough Primary School",123886,"2014-01-01","South East","Slough Borough Council"]
[null,null,null,null,null,null,null,null,null,null,null,null,null,null,"Foxhole Primary School",124703,"2013-12-01","South West","Cornwall Council"]
[null,null,null,null,null,null,null,null,null,null,null,null,null,null,"Foxwood Foundation School and Technology College","122350","2012-09-01","East Midlands","Nottinghamshire County Council"]
[null,null,null,null,null,null,null,null,null,null,null,null,null,null,"Framwellgate School Durham","120818","2011-12-01T12:14:24","North East","Durham County Council"]
[null,null,null,null,null,null,null,null,null,null,null,null,null,null,"Frances Bardsley School for Girls, The","121842","2012-07-01","London","Havering London Borough Council"]
[null,null,null,null,null,null,null,null,null,null,null,null,null,null,"Francis Combe Academy","118887","2009-09-01","East of England","Hertfordshire County Council"]
[null,null,null,null,null,null,null,null,null,null,null,null,null,null,"Fred Longworth High School","120364","2011-09-01","North West","Wigan Metropolitan Borough Council"]
[null,null,null,null,null,null,null,null,null,null,null,null,null,null,"Frederick Nattrass Primary School","124155","2013-09-01","North East","Stockton-on-Tees Borough Council"]
[null,null,null,null,null,null,null,null,null,null,null,null,null,null,"Free School Norwich, The","120521","2011-09-01","East of England","Norfolk County Council"]
[null,null,null,null,null,null,null,null,null,null,null,null,null,null,"Freebrough Academy","119192","2010-09-01","North East","Redcar and Cleveland Borough Council"]
[null,null,null,null,null,null,null,null,null,null,null,null,null,null,"Freemans Endowed Church of England Junior School","123073","2013-04-01","East Midlands","Northamptonshire County Council"]
[null,null,null,null,null,null,null,null,null,null,null,null,null,null,"Freemantle Church of England Community Academy","119616","2011-04-01","South East","Southampton City Council"]
[null,null,null,null,null,null,null,null,null,null,null,null,null,null,"Freeston Business and Enterprise College, The","120509","2011-11-01","Yorkshire & Humberside","Wakefield Council"]
[null,null,null,null,null,null,null,null,null,null,null,null,null,null,"Freman College","120002","2011-08-01","East of England","Hertfordshire County Council"]
[null,null,null,null,null,null,null,null,null,null,null,null,null,null,"Freshwaters Primary Academy","123935","2013-09-01","East of England","Essex County Council"]
[null,null,null,null,null,null,null,null,null,null,null,null,null,null,"Friars School",123859,"2013-11-01","East Midlands","Northamptonshire County Council"]
[null,null,null,null,null,null,null,null,null,null,null,null,null,null,"Frisby Church of England Primary School","124085","2013-06-01","East Midlands","Leicestershire County Council"]
[null,null,null,null,null,null,null,null,null,null,null,null,null,null,"Frogmore Junior School","124249","2013-09-01","South East","Hampshire County Council"]
[null,null,null,null,null,null,null,null,null,null,null,null,null,null,"Frome Vale Academy","121075","2012-09-01","South West","Bristol City Council"]
[null,null,null,null,null,null,null,null,null,null,null,null,null,null,"Front Lawn Primary Academy","122000","2013-04-01","South East","Hampshire County Council"]
[null,null,null,null,null,null,null,null,null,null,null,null,null,null,"Fulbridge Primary School","122774","2013-03-01","East of England","Peterborough City Council"]
[null,null,null,null,null,null,null,null,null,null,null,null,null,null,"Fulbrook Academy - Milton Keynes","121231","2012-03-01","East of England","Central Bedfordshire Council"]
[null,null,null,null,null,null,null,null,null,null,null,null,null,null,"Fulham College Boys' School","123178","2013-03-01","London","Hammersmith and Fulham London Borough Council"]
[null,null,null,null,null,null,null,null,null,null,null,null,null,null,"Fulham Cross Girls' School and Language College","123175","2013-03-01","London","Hammersmith and Fulham London Borough Council"]
[null,null,null,null,null,null,null,null,null,null,null,null,null,null,"Fullbrook School - Addlestone","120003","2011-08-01","South East","Surrey County Council"]
[null,null,null,null,null,null,null,null,null,null,null,null,null,null,"Fulston Manor School","119286","2010-10-01","South East","Kent County Council"]
[null,null,null,null,null,null,null,null,null,null,null,null,null,null,"Fulwell Infant School","122990","2012-12-01","North East","Sunderland City Council"]
[null,null,null,null,null,null,null,null,null,null,null,null,null,null,"Fulwood Academy","119131","2009-09-07","North West","Lancashire County Council"]
[null,null,null,null,null,null,null,null,null,null,null,null,null,null,"Furley Park Primary School",127276,"2013-11-01","South East","Kent County Council"]
[null,null,null,null,null,null,null,null,null,null,null,null,null,null,"Furness Academy","119132","2009-09-01","North West","Cumbria County Council"]
[null,null,null,null,null,null,null,null,null,null,null,null,null,null,"Furze Platt Senior School","120695","2011-12-01T12:14:51","South East","Royal Borough of Windsor and Maidenhead"]
[null,null,null,null,null,null,null,null,null,null,null,null,null,null,"Gable Hall School","119854","2011-07-01","East of England","Thurrock Borough Council"]
[null,null,null,null,null,null,null,null,null,null,null,null,null,null,"Gaddesby Primary School","122376","2012-10-01","East Midlands","Leicestershire County Council"]
[null,null,null,null,null,null,null,null,null,null,null,null,null,null,"Gainsborough Benjamin Adlard Community School","120676","2012-04-01","East Midlands","Lincolnshire County Council"]
[null,null,null,null,null,null,null,null,null,null,null,null,null,null,"Gainsborough Parish Church Primary School, The","122498","2012-09-01","East Midlands","Lincolnshire County Council"]
[null,null,null,null,null,null,null,null,null,null,null,null,null,null,"Gamlingay Village College","120990","2012-02-01","East of England","Cambridgeshire County Council"]
[null,null,null,null,null,null,null,null,null,null,null,null,null,null,"Garden City Academy","121888","2012-09-01","East of England","Hertfordshire County Council"]
[null,null,null,null,null,null,null,null,null,null,null,null,null,null,"Garforth Academy","119360","2010-11-01","Yorkshire & Humberside","Leeds City Council"]
[null,null,null,null,null,null,null,null,null,null,null,null,null,null,"Garstang Community Academy","120365","2011-09-01","North West","Lancashire County Council"]
[null,null,null,null,null,null,null,null,null,null,null,null,null,null,"Gartree High School Oadby","122041","2012-06-01","East Midlands","Leicestershire County Council"]
[null,null,null,null,null,null,null,null,null,null,null,null,null,null,"Gateway Academy - Free School, The - Grays","121982","2012-09-01","East of England","Thurrock Borough Council"]
[null,null,null,null,null,null,null,null,null,null,null,null,null,null,"Gateway Academy - Westminster","124529","2013-09-01","London","Westminster City Council"]
[null,null,null,null,null,null,null,null,null,null,null,null,null,null,"Gateway Academy, The - Grays","118651","2006-09-01","East of England","Thurrock Borough Council"]
[null,null,null,null,null,null,null,null,null,null,null,null,null,null,"Gateway Primary Academy, The - Dartford",129440,"2014-02-01","South East","Kent County Council"]
[null,null,null,null,null,null,null,null,null,null,null,null,null,null,"Gawthorpe Community Primary School","120661","2011-11-01","Yorkshire & Humberside","Wakefield Council"]
[null,null,null,null,null,null,null,null,null,null,null,null,null,null,"George Abbot School","119853","2011-07-01","South East","Surrey County Council"]
[null,null,null,null,null,null,null,null,null,null,null,null,null,null,"George Betts Primary School","124335","2013-07-01","West Midlands","Sandwell Metropolitan Borough Council"]
[null,null,null,null,null,null,null,null,null,null,null,null,null,null,"George Dixon International School and Sixth Form Centre","121912","2012-09-01","West Midlands","Birmingham City Council"]
[null,null,null,null,null,null,null,null,null,null,null,null,null,null,"George Elliot School, The","120079","2011-09-01","West Midlands","Warwickshire County Council"]
[null,null,null,null,null,null,null,null,null,null,null,null,null,null,"George Salter Collegiate Academy","118613","2007-09-01","West Midlands","Sandwell Metropolitan Borough Council"]
[null,null,null,null,null,null,null,null,null,null,null,null,null,null,"George Spencer Academy","119255","2010-09-01","East Midlands","Nottinghamshire County Council"]
[null,null,null,null,null,null,null,null,null,null,null,null,null,null,"Gerrards Cross Church of England School, The","120777","2012-01-01","South East","Buckinghamshire County Council"]
[null,null,null,null,null,null,null,null,null,null,null,null,null,null,"Ghyllside Primary School","122418","2012-09-01","North West","Cumbria County Council"]
[null,null,null,null,null,null,null,null,null,null,null,null,null,null,"Giffard Catholic Primary School, The","125015","2013-07-01","West Midlands","Wolverhampton City Council"]
[null,null,null,null,null,null,null,null,null,null,null,null,null,null,"Gilberd School, The","121141","2012-03-01","East of England","Essex County Council"]
[null,null,null,null,null,null,null,null,null,null,null,null,null,null,"Gilbert Inglefield Academy","120835","2012-04-01","East of England","Central Bedfordshire Council"]
[null,null,null,null,null,null,null,null,null,null,null,null,null,null,"Gildredge House","123301","2013-09-01","South East","East Sussex County Council"]
[null,null,null,null,null,null,null,null,null,null,null,null,null,null,"Giles Academy, The","119247","2010-09-01","East Midlands","Lincolnshire County Council"]
[null,null,null,null,null,null,null,null,null,null,null,null,null,null,"Gillbrook Academy","120909","2012-09-01","North East","Redcar and Cleveland Borough Council"]
[null,null,null,null,null,null,null,null,null,null,null,null,null,null,"Gillotts School","120811","2012-03-01","South East","Oxfordshire County Council"]
[null,null,null,null,null,null,null,null,null,null,null,null,null,null,"Gilmorton Chandler Church of England Primary School","124185","2013-07-01","East Midlands","Leicestershire County Council"]
[null,null,null,null,null,null,null,null,null,null,null,null,null,null,"Gilsland CofE Primary School","121886","2012-06-01","North West","Cumbria County Council"]
[null,null,null,null,null,null,null,null,null,null,null,null,null,null,"Gipsey Bridge Primary School","123124","2013-02-01","East Midlands","Lincolnshire County Council"]
[null,null,null,null,null,null,null,null,null,null,null,null,null,null,"Glapton Academy, The",124177,"2013-10-01","East Midlands","Nottingham City Council"]
[null,null,null,null,null,null,null,null,null,null,null,null,null,null,"Glasshoughton Infant School",124999,"2013-11-01","Yorkshire & Humberside","Wakefield Council"]
[null,null,null,null,null,null,null,null,null,null,null,null,null,null,"Glebe Primary School",124519,"2013-11-01","West Midlands","Stoke on Trent City Council"]
[null,null,null,null,null,null,null,null,null,null,null,null,null,null,"Glen Hills Primary School","121039","2012-03-01","East Midlands","Leicestershire County Council"]
[null,null,null,null,null,null,null,null,null,null,null,null,null,null,"Glendene School","122597","2012-09-01","North East","Durham County Council"]
[null,null,null,null,null,null,null,null,null,null,null,null,null,null,"Glenfield Infant School",129437,"2014-01-01","South East","Southampton City Council"]
[null,null,null,null,null,null,null,null,null,null,null,null,null,null,"Glenleigh Park Academy","122042","2012-09-01","South East","East Sussex County Council"]
[null,null,null,null,null,null,null,null,null,null,null,null,null,null,"Glenmere Community Primary School","124533","2013-07-01","East Midlands","Leicestershire County Council"]
[null,null,null,null,null,null,null,null,null,null,null,null,null,null,"Glenmoor School","127405","2013-09-01","South West","Bournemouth Borough Council"]
[null,null,null,null,null,null,null,null,null,null,null,null,null,null,"Glenthorne High School","119914","2011-07-01","London","Sutton London Borough Council"]
[null,null,null,null,null,null,null,null,null,null,null,null,null,null,"Gloucester Academy","119328","2010-09-01","South West","Gloucestershire County Council"]
[null,null,null,null,null,null,null,null,null,null,null,null,null,null,"Glyn School","119592","2011-04-01","South East","Surrey County Council"]
[null,null,null,null,null,null,null,null,null,null,null,null,null,null,"Glyne Gap School","122127","2013-04-01","South East","East Sussex County Council"]
[null,null,null,null,null,null,null,null,null,null,null,null,null,null,"Glynn House Short Stay School","122605","2013-06-01","South West","Cornwall Council"]
[null,null,null,null,null,null,null,null,null,null,null,null,null,null,"Goddard Park Community Primary School","119352","2010-09-22","South West","Swindon Borough Council"]
[null,null,null,null,null,null,null,null,null,null,null,null,null,null,"Godmanchester Primary School","121209","2012-04-01","East of England","Cambridgeshire County Council"]
[null,null,null,null,null,null,null,null,null,null,null,null,null,null,"Godolphin Infant School","122296","2012-09-01","South East","Slough Borough Council"]
[null,null,null,null,null,null,null,null,null,null,null,null,null,null,"Godolphin Junior School","122294","2012-07-01","South East","Slough Borough Council"]
[null,null,null,null,null,null,null,null,null,null,null,null,null,null,"Goffs School","120515","2011-10-01","East of England","Hertfordshire County Council"]
[null,null,null,null,null,null,null,null,null,null,null,null,null,null,"Golden Hillock School. A Specialist College for Sport",125180,"2013-10-01","West Midlands","Birmingham City Council"]
[null,null,null,null,null,null,null,null,null,null,null,null,null,null,"Goldington Academy","119531","2011-04-01","East of England","Bedford Borough Council"]
[null,null,null,null,null,null,null,null,null,null,null,null,null,null,"Goldington Green Academy","123268","2013-04-01","East of England","Bedford Borough Council"]
[null,null,null,null,null,null,null,null,null,null,null,null,null,null,"Goldsmith Primary Academy","122141","2012-09-01","West Midlands","Walsall Metropolitan Borough Council"]
[null,null,null,null,null,null,null,null,null,null,null,null,null,null,"Goldsworth Primary School","120673","2012-02-01","South East","Surrey County Council"]
[null,null,null,null,null,null,null,null,null,null,null,null,null,null,"Gonville Academy","119725","2011-05-01","London","Croydon London Borough Council"]
[null,null,null,null,null,null,null,null,null,null,null,null,null,null,"Good Shepherd Primary Catholic Voluntary Academy, The","121096","2012-10-01","East Midlands","Nottinghamshire County Council"]
[null,null,null,null,null,null,null,null,null,null,null,null,null,null,"Goole Create Studio School","123385","2013-09-01","Yorkshire & Humberside","East Riding of Yorkshire Council"]
[null,null,null,null,null,null,null,null,null,null,null,null,null,null,"Goole High School","120316","2011-08-17","Yorkshire & Humberside","East Riding of Yorkshire Council"]
[null,null,null,null,null,null,null,null,null,null,null,null,null,null,"Goose Green Primary School","122559","2012-10-01","London","Southwark London Borough Council"]
[null,null,null,null,null,null,null,null,null,null,null,null,null,null,"Gooseacre Academy","121937","2012-09-01","Yorkshire & Humberside","Barnsley Metropolitan Borough Council"]
[null,null,null,null,null,null,null,null,null,null,null,null,null,null,"Gordano School","119856","2011-07-01","South West","North Somerset District Council"]
[null,null,null,null,null,null,null,null,null,null,null,null,null,null,"Gordon Infant School","128087","2014-03-01","South East","Medway Council"]
[null,null,null,null,null,null,null,null,null,null,null,null,null,null,"Gordon Junior School","124823","2014-03-01","South East","Medway Council"]
[null,null,null,null,null,null,null,null,null,null,null,null,null,null,"Gordon's School","120674","2013-01-01","South East","Surrey County Council"]
[null,null,null,null,null,null,null,null,null,null,null,null,null,null,"Gorse Hill Primary School","121867","2012-04-01","South West","Swindon Borough Council"]
[null,null,null,null,null,null,null,null,null,null,null,null,null,null,"Gorton Mount Academy","120937","2012-09-01","North West","Manchester City Council"]
[null,null,null,null,null,null,null,null,null,null,null,null,null,null,"Gosberton Community Primary School","123820","2013-01-01","East Midlands","Lincolnshire County Council"]
[null,null,null,null,null,null,null,null,null,null,null,null,null,null,"Gosford Hill School","122906","2012-11-01T14:55:58","South East","Oxfordshire County Council"]
[null,null,null,null,null,null,null,null,null,null,null,null,null,null,"Gosforth Academy","119376","2010-12-01","North East","Newcastle Upon Tyne City Council"]
[null,null,null,null,null,null,null,null,null,null,null,null,null,null,"Gosforth Junior High Academy","119375","2010-12-01","North East","Newcastle Upon Tyne City Council"]
[null,null,null,null,null,null,null,null,null,null,null,null,null,null,"Gotherington Primary School","120207","2011-08-01","South West","Gloucestershire County Council"]
[null,null,null,null,null,null,null,null,null,null,null,null,null,null,"Gothic Mede Lower School",123200,"2013-11-01","East of England","Central Bedfordshire Council"]
[null,null,null,null,null,null,null,null,null,null,null,null,null,null,"Grace Academy - Coventry","118616","2008-09-01","West Midlands","Coventry City Council"]
[null,null,null,null,null,null,null,null,null,null,null,null,null,null,"Grace Academy - Darlaston","119087","2009-09-01","West Midlands","Walsall Metropolitan Borough Council"]
[null,null,null,null,null,null,null,null,null,null,null,null,null,null,"Grace Academy - Solihull","118615","2006-09-01","West Midlands","Solihull Metropolitan Borough Council"]
[null,null,null,null,null,null,null,null,null,null,null,null,null,null,"Grade-Ruan CofE School","126434","2014-03-01","South West","Cornwall Council"]
[null,null,null,null,null,null,null,null,null,null,null,null,null,null,"Graham James Primary School","122907","2013-05-01","East of England","Thurrock Borough Council"]
[null,null,null,null,null,null,null,null,null,null,null,null,null,null,"Grampian Primary School","122256","2012-12-01","East Midlands","Derby City Council"]
[null,null,null,null,null,null,null,null,null,null,null,null,null,null,"Grampound Road Village CofE School",127842,"2013-12-01","South West","Cornwall Council"]
[null,null,null,null,null,null,null,null,null,null,null,null,null,null,"Grampound-with-Creed CofE School",127480,"2013-12-01","South West","Cornwall Council"]
[null,null,null,null,null,null,null,null,null,null,null,null,null,null,"Grange Community School - Kettering","124322","2013-08-01","East Midlands","Northamptonshire County Council"]
[null,null,null,null,null,null,null,null,null,null,null,null,null,null,"Grange Lane Infant Academy","120439","2011-09-01","Yorkshire & Humberside","Doncaster Metropolitan Borough Council"]
[null,null,null,null,null,null,null,null,null,null,null,null,null,null,"Grange Primary - Shrewsbury","124655","2013-08-01","West Midlands","Shropshire Council"]
[null,null,null,null,null,null,null,null,null,null,null,null,null,null,"Grange School - Bedford","122976","2013-03-01","East of England","Bedford Borough Council"]
[null,null,null,null,null,null,null,null,null,null,null,null,null,null,"Grange School, The - Shrewsbury","123159","2013-04-01","West Midlands","Shropshire Council"]
[null,null,null,null,null,null,null,null,null,null,null,null,null,null,"Grange Technology College - Bradford","120525","2013-08-01","Yorkshire & Humberside","Bradford Metropolitan District Council"]
[null,null,null,null,null,null,null,null,null,null,null,null,null,null,"Grangefield Academy, The",124590,"2014-01-01","North East","Stockton-on-Tees Borough Council"]
[null,null,null,null,null,null,null,null,null,null,null,null,null,null,"Grangewood School","121112","2012-06-01","London","Hillingdon London Borough Council"]
[null,null,null,null,null,null,null,null,null,null,null,null,null,null,"Grasmere Academy","122274","2012-09-01","North East","North Tyneside Council"]
[null,null,null,null,null,null,null,null,null,null,null,null,null,null,"Grasvenor Avenue Infant School","122386","2012-09-01","London","Barnet London Borough Council"]
[null,null,null,null,null,null,null,null,null,null,null,null,null,null,"Graveney Primary School","120829","2012-02-01","South East","Kent County Council"]
[null,null,null,null,null,null,null,null,null,null,null,null,null,null,"Graveney School","120005","2011-08-01","London","Wandsworth London Borough Council"]
[null,null,null,null,null,null,null,null,null,null,null,null,null,null,"Gravenhurst Lower School","122383","2013-09-01","East of England","Central Bedfordshire Council"]
[null,null,null,null,null,null,null,null,null,null,null,null,null,null,"Gravesend Grammar School","120099","2011-08-01","South East","Kent County Council"]
[null,null,null,null,null,null,null,null,null,null,null,null,null,null,"Grays Farm Primary Academy","123079","2013-09-01","London","Bromley London Borough Council"]
[null,null,null,null,null,null,null,null,null,null,null,null,null,null,"Grays School Media Arts College, The","124320","2013-07-01","East of England","Thurrock Borough Council"]
[null,null,null,null,null,null,null,null,null,null,null,null,null,null,"Great Baddow High School","119855","2011-07-01","East of England","Essex County Council"]
[null,null,null,null,null,null,null,null,null,null,null,null,null,null,"Great Barr Primary School","122125","2012-09-01","West Midlands","Birmingham City Council"]
[null,null,null,null,null,null,null,null,null,null,null,null,null,null,"Great Berry Primary School","120226","2011-08-01","East of England","Essex County Council"]
[null,null,null,null,null,null,null,null,null,null,null,null,null,null,"Great Bowden Church of England Primary School","122049","2012-07-01","East Midlands","Leicestershire County Council"]
[null,null,null,null,null,null,null,null,null,null,null,null,null,null,"Great Chesterford Church of England Primary Academy","120510","2011-10-01","East of England","Essex County Council"]
[null,null,null,null,null,null,null,null,null,null,null,null,null,null,"Great Clacton Church of England (Voluntary Aided) Junior School","127907","2014-03-01","East of England ","Essex County Council"]
[null,null,null,null,null,null,null,null,null,null,null,null,null,null,"Great Corby Primary School","120366","2012-02-01","North West","Cumbria County Council"]
[null,null,null,null,null,null,null,null,null,null,null,null,null,null,"Great Dalby School","123868","2013-03-01","East Midlands","Leicestershire County Council"]
[null,null,null,null,null,null,null,null,null,null,null,null,null,null,"Great Malvern Primary School","119984","2011-08-01","West Midlands","Worcestershire County Council"]
[null,null,null,null,null,null,null,null,null,null,null,null,null,null,"Great Marlow School","119964","2011-08-01","South East","Buckinghamshire County Council"]
[null,null,null,null,null,null,null,null,null,null,null,null,null,null,"Great Sankey High School","122006","2013-01-01","North West","Warrington Borough Council"]
[null,null,null,null,null,null,null,null,null,null,null,null,null,null,"Great Smeaton School","120442","2011-09-01","Yorkshire & Humberside","North Yorkshire County Council"]
[null,null,null,null,null,null,null,null,null,null,null,null,null,null,"Great Staughton Primary School",127610,"2014-01-01","East of England","Cambridgeshire County Council"]
[null,null,null,null,null,null,null,null,null,null,null,null,null,null,"Great Yarmouth Primary Academy","122285","2012-09-01","East of England","Norfolk County Council"]
[null,null,null,null,null,null,null,null,null,null,null,null,null,null,"Green End Primary School","124673","2013-09-01","North West","Manchester City Council"]
[null,null,null,null,null,null,null,null,null,null,null,null,null,null,"Green Field Academy","121881","2012-09-01","South West","Gloucestershire County Council"]
[null,null,null,null,null,null,null,null,null,null,null,null,null,null,"Green Lane Primary Academy","119356","2010-11-01","Yorkshire & Humberside","Leeds City Council"]
[null,null,null,null,null,null,null,null,null,null,null,null,null,null,"Green Oaks Primary Academy",126496,"2014-01-01","East Midlands","Northamptonshire County Council"]
[null,null,null,null,null,null,null,null,null,null,null,null,null,null,"Green Rock Primary School",126483,"2013-11-01","West Midlands","Walsall Metropolitan Borough Council"]
[null,null,null,null,null,null,null,null,null,null,null,null,null,null,"Green School, The","124560","2013-08-01","London","Hounslow London Borough Council"]
[null,null,null,null,null,null,null,null,null,null,null,null,null,null,"Green Street Green Primary School","120067","2011-08-01","London","Bromley London Borough Council"]
[null,null,null,null,null,null,null,null,null,null,null,null,null,null,"Green Way Academy, The","121837","2012-09-01","Yorkshire & Humberside","Hull City Council"]
[null,null,null,null,null,null,null,null,null,null,null,null,null,null,"Greenacre School","120888","2012-04-01","South East","Medway Council"]
[null,null,null,null,null,null,null,null,null,null,null,null,null,null,"Greenbank High School","120609","2011-11-01","North West","Sefton Metropolitan Borough Council"]
[null,null,null,null,null,null,null,null,null,null,null,null,null,null,"Greenfield CofE VC Lower School","120290","2011-08-17","East of England","Central Bedfordshire Council"]
[null,null,null,null,null,null,null,null,null,null,null,null,null,null,"Greenfield E-ACT Primary Academy","122291","2012-09-01","South West","Bristol City Council"]
[null,null,null,null,null,null,null,null,null,null,null,null,null,null,"Greenfields Community Primary School",126997,"2013-11-01","East Midlands","Northamptonshire County Council"]
[null,null,null,null,null,null,null,null,null,null,null,null,null,null,"Greengate Lane Primary School","123125","2013-02-01","Yorkshire & Humberside","Sheffield City Council"]
[null,null,null,null,null,null,null,null,null,null,null,null,null,null,"Greenhill Primary School",128097,"2014-02-01","North West","Oldham Metropolitan Borough Council"]
[null,null,null,null,null,null,null,null,null,null,null,null,null,null,"Greenholm Primary School","122075","2012-09-01","West Midlands","Birmingham City Council"]
[null,null,null,null,null,null,null,null,null,null,null,null,null,null,"Greenshaw High School","119768","2011-06-01","London","Sutton London Borough Council"]
[null,null,null,null,null,null,null,null,null,null,null,null,null,null,"Greensted Junior School","122247","2012-09-01","East of England","Essex County Council"]
[null,null,null,null,null,null,null,null,null,null,null,null,null,null,"Greensward Academy","118664","2008-09-04","East of England","Essex County Council"]
[null,null,null,null,null,null,null,null,null,null,null,null,null,null,"Greenway School","122295","2012-08-01","South East","West Sussex County Council"]
[null,null,null,null,null,null,null,null,null,null,null,null,null,null,"Greenwich Free School, The","122037","2012-09-01","London","Greenwich London Borough Council"]
[null,null,null,null,null,null,null,null,null,null,null,null,null,null,"Greenwood Academy","122297","2013-01-01","West Midlands","Birmingham City Council"]
[null,null,null,null,null,null,null,null,null,null,null,null,null,null,"Greetland Academy, The","119396","2011-01-01","Yorkshire & Humberside","Calderdale Metropolitan Borough Council"]
[null,null,null,null,null,null,null,null,null,null,null,null,null,null,"Greig City Academy","118391","2002-09-01","London","Haringey London Borough Council"]
[null,null,null,null,null,null,null,null,null,null,null,null,null,null,"Greneway School, The","119945","2011-11-01","East of England","Hertfordshire County Council"]
[null,null,null,null,null,null,null,null,null,null,null,null,null,null,"Grestone Primary School",124649,"2013-10-01","West Midlands","Birmingham City Council"]
[null,null,null,null,null,null,null,null,null,null,null,null,null,null,"Gretton Primary School - Cheltenham","120623","2012-02-01","South West","Gloucestershire County Council"]
[null,null,null,null,null,null,null,null,null,null,null,null,null,null,"Gretton Primary School - Corby","122743","2012-09-01","East Midlands","Northamptonshire County Council"]
[null,null,null,null,null,null,null,null,null,null,null,null,null,null,"Grey Coat Hospital, The","122178","2012-07-01","London","Westminster City Council"]
[null,null,null,null,null,null,null,null,null,null,null,null,null,null,"Grey Court School","122576","2012-10-01","London","Richmond Upon Thames Borough Council"]
[null,null,null,null,null,null,null,null,null,null,null,null,null,null,"Greys Education Centre","122674","2013-02-01","East of England","Bedford Borough Council"]
[null,null,null,null,null,null,null,null,null,null,null,null,null,null,"Grindon Hall Christian School","121984","2012-09-01","North East","Sunderland City Council"]
[null,null,null,null,null,null,null,null,null,null,null,null,null,null,"Groby Community College","122282","2012-09-01","East Midlands","Leicestershire County Council"]
[null,null,null,null,null,null,null,null,null,null,null,null,null,null,"Grove Academy, The","122951","2013-09-01","Yorkshire & Humberside","North Yorkshire County Council"]
[null,null,null,null,null,null,null,null,null,null,null,null,null,null,"Grove Church of England School",125228,"2013-12-01","South East","Oxfordshire County Council"]
[null,null,null,null,null,null,null,null,null,null,null,null,null,null,"Grove Park Community Primary School","121895","2012-06-01","South East","Kent County Council"]
[null,null,null,null,null,null,null,null,null,null,null,null,null,null,"Gryphon School, The","122602","2012-08-01T12:45:40","South West","Dorset County Council"]
[null,null,null,null,null,null,null,null,null,null,null,null,null,null,"GTS Academy Trust","120228","2011-08-01","South West","Devon County Council"]
[null,null,null,null,null,null,null,null,null,null,null,null,null,null,"Guildford County School","123854","2013-01-01","South East","Surrey County Council"]
[null,null,null,null,null,null,null,null,null,null,null,null,null,null,"Guilsborough School","119489","2011-03-01","East Midlands","Northamptonshire County Council"]
[null,null,null,null,null,null,null,null,null,null,null,null,null,null,"Gumley House RC Convent School, FCJ","121127","2012-03-01","London","Hounslow London Borough Council"]
[null,null,null,null,null,null,null,null,null,null,null,null,null,null,"Gurney Pease Primary","122356","2012-07-01","North East","Darlington Borough Council"]
[null,null,null,null,null,null,null,null,null,null,null,null,null,null,"Guru Nanak Academy","119373","2010-11-01","London","Hillingdon London Borough Council"]
[null,null,null,null,null,null,null,null,null,null,null,null,null,null,"Gusford Community Primary School","124627","2013-08-01","East of England","Suffolk County Council"]
[null,null,null,null,null,null,null,null,null,null,null,null,null,null,"Guthlaxton College Wigston","122917","2012-11-01T14:56:30","East Midlands","Leicestershire County Council"]
[null,null,null,null,null,null,null,null,null,null,null,null,null,null,"Haberdashers' Aske's Crayford Academy","119138","2009-09-01","London","Bexley London Borough Council"]
[null,null,null,null,null,null,null,null,null,null,null,null,null,null,"Haberdashers' Aske's Hatcham Academy","118392","2005-09-01","London","Lewisham London Borough Council"]
[null,null,null,null,null,null,null,null,null,null,null,null,null,null,"Haberdashers' Aske's Hatcham Temple Grove Free School","123307","2013-09-01","London","Lewisham London Borough Council"]
[null,null,null,null,null,null,null,null,null,null,null,null,null,null,"Haberdashers' Aske's Knights Academy","118617","2005-09-01","London","Lewisham London Borough Council"]
[null,null,null,null,null,null,null,null,null,null,null,null,null,null,"Hackney New School","123305","2013-09-01","London","Hackney London Borough Council (The Learning Trust)"]
[null,null,null,null,null,null,null,null,null,null,null,null,null,null,"Hackney UTC","122152","2012-09-01","London","Hackney London Borough Council (The Learning Trust)"]
[null,null,null,null,null,null,null,null,null,null,null,null,null,null,"Hadleigh High School","119918","2011-07-01","East of England","Suffolk County Council"]
[null,null,null,null,null,null,null,null,null,null,null,null,null,null,"Hadleigh Infant and Nursery School","120027","2011-08-01","East of England","Essex County Council"]
[null,null,null,null,null,null,null,null,null,null,null,null,null,null,"Hadleigh Junior School","120327","2011-09-01","East of England","Essex County Council"]
[null,null,null,null,null,null,null,null,null,null,null,null,null,null,"Hadlow Rural Community School","123306","2013-09-01","South East","Kent County Council"]
[null,null,null,null,null,null,null,null,null,null,null,null,null,null,"Hadrian Academy","120668","2012-01-01","East of England","Central Bedfordshire Council"]
[null,null,null,null,null,null,null,null,null,null,null,null,null,null,"Hagley Park Academy","120103","2011-09-01","West Midlands","Staffordshire County Council"]
[null,null,null,null,null,null,null,null,null,null,null,null,null,null,"Hailsham Community College","122327","2012-08-01T12:44:51","South East","East Sussex County Council"]
[null,null,null,null,null,null,null,null,null,null,null,null,null,null,"Halewood Centre for Learning","121011","2013-05-01","North West","Knowsley Metropolitan Borough Council"]
[null,null,null,null,null,null,null,null,null,null,null,null,null,null,"Halifax High at Wellesley Park",123165,"2013-11-01","Yorkshire & Humberside","Calderdale Metropolitan Borough Council"]
[null,null,null,null,null,null,null,null,null,null,null,null,null,null,"Halifax Holy Trinity CofE (VA) Primary School","122132","2012-07-01","Yorkshire & Humberside","Calderdale Metropolitan Borough Council"]
[null,null,null,null,null,null,null,null,null,null,null,null,null,null,"Hall Cross School","120696","2012-02-01","Yorkshire & Humberside","Doncaster Metropolitan Borough Council"]
[null,null,null,null,null,null,null,null,null,null,null,null,null,null,"Hall Green School","120887","2012-02-01","West Midlands","Birmingham City Council"]
[null,null,null,null,null,null,null,null,null,null,null,null,null,null,"Hall Mead School","120197","2011-08-01","London","Havering London Borough Council"]
[null,null,null,null,null,null,null,null,null,null,null,null,null,null,"Hall Orchard Barrow CE Primary School",124068,"2013-10-01","East Midlands","Leicestershire County Council"]
[null,null,null,null,null,null,null,null,null,null,null,null,null,null,"Hall Road Academy","121838","2012-09-01","Yorkshire & Humberside","Hull City Council"]
[null,null,null,null,null,null,null,null,null,null,null,null,null,null,"Haltwhistle Community Campus Lower School","124121","2013-09-01","North East","Northumberland County Council"]
[null,null,null,null,null,null,null,null,null,null,null,null,null,null,"Haltwhistle Community Campus Upper School","124122","2013-09-01","North East","Northumberland County Council"]
[null,null,null,null,null,null,null,null,null,null,null,null,null,null,"Hambleton Primary School","119413","2011-01-01","North West","Lancashire County Council"]
[null,null,null,null,null,null,null,null,null,null,null,null,null,null,"Hamford Primary Academy","121076","2012-04-01","East of England","Essex County Council"]
[null,null,null,null,null,null,null,null,null,null,null,null,null,null,"Hamilton Primary School","121202","2012-04-01","South East","Buckinghamshire County Council"]
[null,null,null,null,null,null,null,null,null,null,null,null,null,null,"Hammersmith Academy","119223","2011-09-01","London","Hammersmith and Fulham London Borough Council"]
[null,null,null,null,null,null,null,null,null,null,null,null,null,null,"Hammond Primary School, The","120238","2011-08-01","East of England","Hertfordshire County Council"]
[null,null,null,null,null,null,null,null,null,null,null,null,null,null,"Hamp Academy","122934","2013-09-01","South West","Somerset County Council"]
[null,null,null,null,null,null,null,null,null,null,null,null,null,null,"Hampton Academy","119170","2010-09-01","London","Richmond Upon Thames Borough Council"]
[null,null,null,null,null,null,null,null,null,null,null,null,null,null,"Hampton Primary School","121204","2012-04-01","South East","Kent County Council"]
[null,null,null,null,null,null,null,null,null,null,null,null,null,null,"Hamstead Hall Community Learning Centre","124640","2013-06-01","West Midlands","Birmingham City Council"]
[null,null,null,null,null,null,null,null,null,null,null,null,null,null,"Hamstreet Primary School",127318,"2013-11-01","South East","Kent County Council"]
[null,null,null,null,null,null,null,null,null,null,null,null,null,null,"Handsworth Wood Girls' School","122707","2012-11-01T14:57:15","West Midlands","Birmingham City Council"]
[null,null,null,null,null,null,null,null,null,null,null,null,null,null,"Hanley Castle High School","120101","2011-08-01","West Midlands","Worcestershire County Council"]
[null,null,null,null,null,null,null,null,null,null,null,null,null,null,"Hans Price Academy","119753","2011-05-01","South West","North Somerset District Council"]
[null,null,null,null,null,null,null,null,null,null,null,null,null,null,"Hanwell Fields Community School","120808","2012-03-01","South East","Oxfordshire County Council"]
[null,null,null,null,null,null,null,null,null,null,null,null,null,null,"Harborne Academy","119308","2010-09-01","West Midlands","Birmingham City Council"]
[null,null,null,null,null,null,null,null,null,null,null,null,null,null,"Harden Primary School","124738","2013-09-01","Yorkshire & Humberside","Bradford Metropolitan District Council"]
[null,null,null,null,null,null,null,null,null,null,null,null,null,null,"Hardenhuish School","111710","2010-09-01","South West","Wiltshire Council"]
[null,null,null,null,null,null,null,null,null,null,null,null,null,null,"Hardingstone Primary School",127606,"2014-01-01","East Midlands","Northamptonshire County Council"]
[null,null,null,null,null,null,null,null,null,null,null,null,null,null,"Hardwick Green Primary School","123944","2013-06-01","North East","Stockton-on-Tees Borough Council"]
[null,null,null,null,null,null,null,null,null,null,null,null,null,null,"Hareclive Academy Trust","121121","2012-08-01","South West","Bristol City Council"]
[null,null,null,null,null,null,null,null,null,null,null,null,null,null,"Harefield Academy - Uxbridge","118404","2005-09-01","London","Hillingdon London Borough Council"]
[null,null,null,null,null,null,null,null,null,null,null,null,null,null,"Harefield Primary School - Southampton","124069","2013-06-01","South East","Southampton City Council"]
[null,null,null,null,null,null,null,null,null,null,null,null,null,null,"Harewood College","121968","2012-06-01","South West","Bournemouth Borough Council"]
[null,null,null,null,null,null,null,null,null,null,null,null,null,null,"Haringey Sixth Form Centre","123244","2013-03-01T15:56:24","London","Haringey London Borough Council"]
[null,null,null,null,null,null,null,null,null,null,null,null,null,null,"Harlington Lower School","122126","2013-04-01","East of England","Bedford Borough Council"]
[null,null,null,null,null,null,null,null,null,null,null,null,null,null,"Harlington Upper School","119954","2012-03-01T10:47:07","East of England","Central Bedfordshire Council"]
[null,null,null,null,null,null,null,null,null,null,null,null,null,null,"Harmonize Academy","122539","2013-04-01","North West","Liverpool City Council"]
[null,null,null,null,null,null,null,null,null,null,null,null,null,null,"Harpenden Free School","121986","2012-09-01","East of England","Hertfordshire County Council"]
[null,null,null,null,null,null,null,null,null,null,null,null,null,null,"Harpfield Primary School","122488","2013-05-01","West Midlands","Stoke on Trent City Council"]
[null,null,null,null,null,null,null,null,null,null,null,null,null,null,"Harriers Banbury","123223","2013-02-01","South East","Oxfordshire County Council"]
[null,null,null,null,null,null,null,null,null,null,null,null,null,null,"Harris Academy Beckenham","120121","2011-09-01","London","Bromley London Borough Council"]
[null,null,null,null,null,null,null,null,null,null,null,null,null,null,"Harris Academy Bermondsey","118633","2006-09-01","London","Southwark London Borough Council"]
[null,null,null,null,null,null,null,null,null,null,null,null,null,null,"Harris Academy Bromley","120343","2011-09-01","London","Bromley London Borough Council"]
[null,null,null,null,null,null,null,null,null,null,null,null,null,null,"Harris Academy Chafford Hundred","120594","2011-10-01","East of England","Thurrock Borough Council"]
[null,null,null,null,null,null,null,null,null,null,null,null,null,null,"Harris Academy Falconwood","118665","2008-09-03","London","Bexley London Borough Council"]
[null,null,null,null,null,null,null,null,null,null,null,null,null,null,"Harris Academy Greenwich","120964","2012-09-01","London","Greenwich London Borough Council"]
[null,null,null,null,null,null,null,null,null,null,null,null,null,null,"Harris Academy Merton","118634","2006-09-01","London","Merton Borough Council"]
[null,null,null,null,null,null,null,null,null,null,null,null,null,null,"Harris Academy Morden","122637","2013-03-01","London","Merton Borough Council"]
[null,null,null,null,null,null,null,null,null,null,null,null,null,null,"Harris Academy Peckham","118402","2003-09-01","London","Southwark London Borough Council"]
[null,null,null,null,null,null,null,null,null,null,null,null,null,null,"Harris Academy Purley","118967","2009-09-01","London","Croydon London Borough Council"]
[null,null,null,null,null,null,null,null,null,null,null,null,null,null,"Harris Academy South Norwood","118618","2007-09-01","London","Croydon London Borough Council"]
[null,null,null,null,null,null,null,null,null,null,null,null,null,null,"Harris Academy Upper Norwood","124212","2013-09-01","London","Croydon London Borough Council"]
[null,null,null,null,null,null,null,null,null,null,null,null,null,null,"Harris Aspire Academy","123409","2013-09-01","London","Croydon London Borough Council"]
[null,null,null,null,null,null,null,null,null,null,null,null,null,null,"Harris Boys' Academy East Dulwich","118889","2009-09-01","London","Southwark London Borough Council"]
[null,null,null,null,null,null,null,null,null,null,null,null,null,null,"Harris City Academy Crystal Palace","118619","2007-09-01","London","Croydon London Borough Council"]
[null,null,null,null,null,null,null,null,null,null,null,null,null,null,"Harris Girls' Academy East Dulwich","118635","2006-09-01","London","Southwark London Borough Council"]
[null,null,null,null,null,null,null,null,null,null,null,null,null,null,"Harris Junior Academy Carshalton","124236","2013-09-01","London","Sutton London Borough Council"]
[null,null,null,null,null,null,null,null,null,null,null,null,null,null,"Harris Primary Academy Benson","124735","2013-09-01","London","Croydon London Borough Council"]
[null,null,null,null,null,null,null,null,null,null,null,null,null,null,"Harris Primary Academy Chafford Hundred","121887","2012-07-01","East of England","Thurrock Borough Council"]
[null,null,null,null,null,null,null,null,null,null,null,null,null,null,"Harris Primary Academy Coleraine Park","121949","2012-09-01","London","Haringey London Borough Council"]
[null,null,null,null,null,null,null,null,null,null,null,null,null,null,"Harris Primary Academy Crystal Palace","124223","2013-09-01","London","Bromley London Borough Council"]
[null,null,null,null,null,null,null,null,null,null,null,null,null,null,"Harris Primary Academy Kenley","123899","2013-09-01","London","Croydon London Borough Council"]
[null,null,null,null,null,null,null,null,null,null,null,null,null,null,"Harris Primary Academy Kent House","123018","2013-09-01","London","Bromley London Borough Council"]
[null,null,null,null,null,null,null,null,null,null,null,null,null,null,"Harris Primary Academy Peckham Park","120357","2011-09-01","London","Southwark London Borough Council"]
[null,null,null,null,null,null,null,null,null,null,null,null,null,null,"Harris Primary Academy Philip Lane","122303","2012-09-01","London","Haringey London Borough Council"]
[null,null,null,null,null,null,null,null,null,null,null,null,null,null,"Harris Primary Free School Peckham","122026","2012-09-01","London","Southwark London Borough Council"]
[null,null,null,null,null,null,null,null,null,null,null,null,null,null,"Harris School - Rugby",124641,"2014-01-01","West Midlands","Warwickshire County Council"]
[null,null,null,null,null,null,null,null,null,null,null,null,null,null,"Harrogate Grammar School","119497","2011-03-01","Yorkshire & Humberside","North Yorkshire County Council"]
[null,null,null,null,null,null,null,null,null,null,null,null,null,null,"Harrogate High School","120719","2012-06-01","Yorkshire & Humberside","North Yorkshire County Council"]
[null,null,null,null,null,null,null,null,null,null,null,null,null,null,"Harrold Priory Middle School","119472","2011-02-01","East of England","Bedford Borough Council"]
[null,null,null,null,null,null,null,null,null,null,null,null,null,null,"Harrow High School and Sports College","120177","2011-08-01","London","Harrow London Borough Council"]
[null,null,null,null,null,null,null,null,null,null,null,null,null,null,"Harrowbarrow School","120604","2011-10-01","South West","Cornwall Council"]
[null,null,null,null,null,null,null,null,null,null,null,null,null,null,"Harrowby Church of England Infant School, The","122360","2012-07-01","East Midlands","Lincolnshire County Council"]
[null,null,null,null,null,null,null,null,null,null,null,null,null,null,"Hartismere School","119243","2010-09-01","East of England","Suffolk County Council"]
[null,null,null,null,null,null,null,null,null,null,null,null,null,null,"Hartley Brook Primary School","121165","2012-05-01","Yorkshire & Humberside","Sheffield City Council"]
[null,null,null,null,null,null,null,null,null,null,null,null,null,null,"Hartley Primary School","122281","2013-05-01","South East","Kent County Council"]
[null,null,null,null,null,null,null,null,null,null,null,null,null,null,"Hartsbrook E-ACT Free School","121985","2012-09-01","London","Haringey London Borough Council"]
[null,null,null,null,null,null,null,null,null,null,null,null,null,null,"Hartsdown Technology College","119564","2011-04-01","South East","Kent County Council"]
[null,null,null,null,null,null,null,null,null,null,null,null,null,null,"Hartshill School","120882","2012-09-01","West Midlands","Warwickshire County Council"]
[null,null,null,null,null,null,null,null,null,null,null,null,null,null,"Hartsholme Primary School","120730","2012-01-01","East Midlands","Lincolnshire County Council"]
[null,null,null,null,null,null,null,null,null,null,null,null,null,null,"Hartwell Primary School","119588","2011-04-01","East Midlands","Northamptonshire County Council"]
[null,null,null,null,null,null,null,null,null,null,null,null,null,null,"Harvey Grammar School, The","122101","2012-08-01T12:43:55","South East","Kent County Council"]
[null,null,null,null,null,null,null,null,null,null,null,null,null,null,"Harwich School, The","121047","2012-03-01T12:08:22","East of England","Essex County Council"]
[null,null,null,null,null,null,null,null,null,null,null,null,null,null,"Harwood Meadows Primary School","121072","2012-04-01","North West","Bolton Metropolitan Borough Council"]
[null,null,null,null,null,null,null,null,null,null,null,null,null,null,"Hasmonean High School","120480","2011-10-01","London","Barnet London Borough Council"]
[null,null,null,null,null,null,null,null,null,null,null,null,null,null,"Hassenbrook School Specialist Technology College","120449","2011-09-01","East of England","Thurrock Borough Council"]
[null,null,null,null,null,null,null,null,null,null,null,null,null,null,"Hasting Hill Academy","122310","2012-12-01","North East","Sunderland City Council"]
[null,null,null,null,null,null,null,null,null,null,null,null,null,null,"Hastings Academy, The","119430","2011-09-01","South East","East Sussex County Council"]
[null,null,null,null,null,null,null,null,null,null,null,null,null,null,"Hastings High School","124626","2013-09-01","East Midlands","Leicestershire County Council"]
[null,null,null,null,null,null,null,null,null,null,null,null,null,null,"Hatch End High School","120204","2011-08-01","London","Harrow London Borough Council"]
[null,null,null,null,null,null,null,null,null,null,null,null,null,null,"Hatfield Community Free School","121988","2012-09-01","East of England","Hertfordshire County Council"]
[null,null,null,null,null,null,null,null,null,null,null,null,null,null,"Hatfield Primary School","121147","2012-05-01","Yorkshire & Humberside","Sheffield City Council"]
[null,null,null,null,null,null,null,null,null,null,null,null,null,null,"Hatfield Woodhouse Primary Academy","120894","2012-04-01","Yorkshire & Humberside","Doncaster Metropolitan Borough Council"]
[null,null,null,null,null,null,null,null,null,null,null,null,null,null,"Hathershaw College of Technology & Sport, The","120039","2011-08-01","North West","Oldham Metropolitan Borough Council"]
[null,null,null,null,null,null,null,null,null,null,null,null,null,null,"Hatton Park Primary School","122568","2012-12-01","East of England","Cambridgeshire County Council"]
[null,null,null,null,null,null,null,null,null,null,null,null,null,null,"Haughton Community School","120585","2012-04-01","North East","Darlington Borough Council"]
[null,null,null,null,null,null,null,null,null,null,null,null,null,null,"Havant Academy","119228","2010-09-01","South East","Hampshire County Council"]
[null,null,null,null,null,null,null,null,null,null,null,null,null,null,"Haveley Hey Community School","123284","2013-04-01","North West","Manchester City Council"]
[null,null,null,null,null,null,null,null,null,null,null,null,null,null,"Havelock Academy","118620","2007-09-01","Yorkshire & Humberside","North East Lincolnshire Council"]
[null,null,null,null,null,null,null,null,null,null,null,null,null,null,"Havelock Infant School","124528","2013-09-01","East Midlands","Northamptonshire County Council"]
[null,null,null,null,null,null,null,null,null,null,null,null,null,null,"Havelock Junior School","126427","2013-09-01","East Midlands","Northamptonshire County Council"]
[null,null,null,null,null,null,null,null,null,null,null,null,null,null,"Haven High Academy","121172","2012-09-01","East Midlands","Lincolnshire County Council"]
[null,null,null,null,null,null,null,null,null,null,null,null,null,null,"Havercroft Academy","123191","2013-09-01","Yorkshire & Humberside","Wakefield Council"]
[null,null,null,null,null,null,null,null,null,null,null,null,null,null,"Hawes Side Primary School","122117","2012-08-01","North West","Blackpool Council"]
[null,null,null,null,null,null,null,null,null,null,null,null,null,null,"Hawkesley Coe Primary School","122875","2013-06-01","West Midlands","Birmingham City Council"]
[null,null,null,null,null,null,null,null,null,null,null,null,null,null,"Hawkley Hall High School","121935","2012-05-01","North West","Wigan Metropolitan Borough Council"]
[null,null,null,null,null,null,null,null,null,null,null,null,null,null,"Hawthorne’s Free School, The","121969","2012-09-01","North West","Sefton Metropolitan Borough Council"]
[null,null,null,null,null,null,null,null,null,null,null,null,null,null,"Hawthorns Community School","124301","2013-09-01","North West","Tameside Metropolitan Borough Council"]
[null,null,null,null,null,null,null,null,null,null,null,null,null,null,"Haxby Road Primary Academy",124733,"2014-02-01","Yorkshire & Humberside","City of York Council"]
[null,null,null,null,null,null,null,null,null,null,null,null,null,null,"Haybridge High School and Sixth Form","119898","2011-07-01","West Midlands","Worcestershire County Council"]
[null,null,null,null,null,null,null,null,null,null,null,null,null,null,"Haybrook College",124756,"2013-10-01","South East","Slough Borough Council"]
[null,null,null,null,null,null,null,null,null,null,null,null,null,null,"Haybrook College PRU",124388,"2013-10-01","South East","Slough Borough Council"]
[null,null,null,null,null,null,null,null,null,null,null,null,null,null,"Haydon School","119610","2011-04-01","London","Hillingdon London Borough Council"]
[null,null,null,null,null,null,null,null,null,null,null,null,null,null,"Hayes Primary School","119920","2011-07-01","London","Bromley London Borough Council"]
[null,null,null,null,null,null,null,null,null,null,null,null,null,null,"Hayes School - Bromley","119617","2011-04-01","London","Bromley London Borough Council"]
[null,null,null,null,null,null,null,null,null,null,null,null,null,null,"Hayes School - Paignton","119677","2011-04-01","South West","Torbay Council"]
[null,null,null,null,null,null,null,null,null,null,null,null,null,null,"Hayesbrook School, The","119302","2010-12-01","South East","Kent County Council"]
[null,null,null,null,null,null,null,null,null,null,null,null,null,null,"Hayesdown First School","124648","2013-09-01","South West","Somerset County Council"]
[null,null,null,null,null,null,null,null,null,null,null,null,null,null,"Hayesfield Girls School","119966","2011-08-01","South West","Bath & North East Somerset Council"]
[null,null,null,null,null,null,null,null,null,null,null,null,null,null,"Hayfield School, The","119623","2011-04-01","Yorkshire & Humberside","Doncaster Metropolitan Borough Council"]
[null,null,null,null,null,null,null,null,null,null,null,null,null,null,"Haygrove Secondary School","119917","2011-07-01","South West","Somerset County Council"]
[null,null,null,null,null,null,null,null,null,null,null,null,null,null,"Haywood Engineering College","120546","2012-08-01","West Midlands","Stoke on Trent City Council"]
[null,null,null,null,null,null,null,null,null,null,null,null,null,null,"Hazel Grove High School","120837","2012-03-01","North West","Stockport Metropolitan Borough Council"]
[null,null,null,null,null,null,null,null,null,null,null,null,null,null,"Hazelbeck Special School","122344","2013-08-01","Yorkshire & Humberside","Bradford Metropolitan District Council"]
[null,null,null,null,null,null,null,null,null,null,null,null,null,null,"Hazeley Academy, The","119844","2011-07-01","South East","Milton Keynes Council"]
[null,null,null,null,null,null,null,null,null,null,null,null,null,null,"Hazelwick School","120263","2011-08-01","South East","West Sussex County Council"]
[null,null,null,null,null,null,null,null,null,null,null,null,null,null,"Hazelwood Academy","122818","2013-06-01","South West","Swindon Borough Council"]
[null,null,null,null,null,null,null,null,null,null,null,null,null,null,"Headlands Primary School","121459","2012-11-01","East Midlands","Northamptonshire County Council"]
[null,null,null,null,null,null,null,null,null,null,null,null,null,null,"Healing School","119265","2010-09-01","Yorkshire & Humberside","North East Lincolnshire Council"]
[null,null,null,null,null,null,null,null,null,null,null,null,null,null,"Heanor Gate Science College","120578","2011-11-01T14:18:05","East Midlands","Derbyshire County Council"]
[null,null,null,null,null,null,null,null,null,null,null,null,null,null,"Heart of England","119909","2011-07-01","West Midlands","Solihull Metropolitan Borough Council"]
[null,null,null,null,null,null,null,null,null,null,null,null,null,null,"Heartlands Academy - Birmingham","119140","2009-09-01","West Midlands","Birmingham City Council"]
[null,null,null,null,null,null,null,null,null,null,null,null,null,null,"Heartlands High School - Haringey","124247","2013-05-01","London","Haringey London Borough Council"]
[null,null,null,null,null,null,null,null,null,null,null,null,null,null,"Heartsease Primary School","122097","2013-04-01","East of England","Norfolk County Council"]
[null,null,null,null,null,null,null,null,null,null,null,null,null,null,"Heath Hayes Academy",129555,"2014-01-01","West Midlands","Staffordshire County Council"]
[null,null,null,null,null,null,null,null,null,null,null,null,null,null,"Heath Park Business and Enterprise College","120754","2011-12-01T12:15:14","West Midlands","Wolverhampton City Council"]
[null,null,null,null,null,null,null,null,null,null,null,null,null,null,"Heath School, The","119790","2011-06-01","North West","Halton Borough Council"]
[null,null,null,null,null,null,null,null,null,null,null,null,null,null,"Heather Garth Primary School","123110","2013-06-01","Yorkshire & Humberside","Barnsley Metropolitan Borough Council"]
[null,null,null,null,null,null,null,null,null,null,null,null,null,null,"Heathfield Academy, The","122081","2012-07-01","East Midlands","Leicestershire County Council"]
[null,null,null,null,null,null,null,null,null,null,null,null,null,null,"Heathfield Primary School","121941","2012-06-01","North East","Darlington Borough Council"]
[null,null,null,null,null,null,null,null,null,null,null,null,null,null,"Heckmondwike Grammar School","119267","2010-09-01","Yorkshire & Humberside","Kirklees Metropolitan Council"]
[null,null,null,null,null,null,null,null,null,null,null,null,null,null,"Hedingham School and Sixth Form","123066","2013-01-01","East of England","Essex County Council"]
[null,null,null,null,null,null,null,null,null,null,null,null,null,null,"Heighington Church of England Primary School","120022","2011-08-01","North East","Darlington Borough Council"]
[null,null,null,null,null,null,null,null,null,null,null,null,null,null,"Heighington Millfield Primary Academy","120201","2011-08-01","East Midlands","Lincolnshire County Council"]
[null,null,null,null,null,null,null,null,null,null,null,null,null,null,"Heights Free School, The","123413","2013-09-01","North West","Blackburn with Darwen Borough Council"]
[null,null,null,null,null,null,null,null,null,null,null,null,null,null,"Helena Romanes School and Sixth Form Centre","121057","2012-04-01","East of England","Essex County Council"]
[null,null,null,null,null,null,null,null,null,null,null,null,null,null,"Helenswood Academy","124685","2013-09-01","South East","East Sussex County Council"]
[null,null,null,null,null,null,null,null,null,null,null,null,null,null,"Hele's Trust","119576","2011-04-01","South West","Plymouth City Council"]
[null,null,null,null,null,null,null,null,null,null,null,null,null,null,"Hellesdon High School","120916","2012-04-01","East of England","Norfolk County Council"]
[null,null,null,null,null,null,null,null,null,null,null,null,null,null,"Hemlington Hall Academy",125017,"2014-01-01","North East","Middlesbrough Council"]
[null,null,null,null,null,null,null,null,null,null,null,null,null,null,"Hemsworth Arts and Community College","123199","2013-08-01","Yorkshire & Humberside","Wakefield Council"]
[null,null,null,null,null,null,null,null,null,null,null,null,null,null,"Hemsworth St Helens Church of England Voluntary Aided Junior and Infant School","124308","2013-07-01","Yorkshire & Humberside","Wakefield Council"]
[null,null,null,null,null,null,null,null,null,null,null,null,null,null,"Hemyock Primary School","120543","2011-11-01","South West","Devon County Council"]
[null,null,null,null,null,null,null,null,null,null,null,null,null,null,"Henbury Court Primary School","122813","2013-04-01","South West","Bristol City Council"]
[null,null,null,null,null,null,null,null,null,null,null,null,null,null,"Henbury School","120840","2012-06-01","South West","Bristol City Council"]
[null,null,null,null,null,null,null,null,null,null,null,null,null,null,"Hendon School","120517","2011-11-01","London","Barnet London Borough Council"]
[null,null,null,null,null,null,null,null,null,null,null,null,null,null,"Hendreds Church of England School, The",125250,"2013-12-01","South East","Oxfordshire County Council"]
[null,null,null,null,null,null,null,null,null,null,null,null,null,null,"Henleaze Junior School","120492","2011-10-01","South West","Bristol City Council"]
[null,null,null,null,null,null,null,null,null,null,null,null,null,null,"Henley in Arden High School","119991","2011-08-01","West Midlands","Warwickshire County Council"]
[null,null,null,null,null,null,null,null,null,null,null,null,null,null,"Henley-In-Arden Voluntary Aided CofE Primary School","123059","2013-09-01","West Midlands","Warwickshire County Council"]
[null,null,null,null,null,null,null,null,null,null,null,null,null,null,"Henlow Church of England Academy","120570","2012-04-01","East of England","Central Bedfordshire Council"]
[null,null,null,null,null,null,null,null,null,null,null,null,null,null,"Henrietta Barnett School, The","120690","2012-04-01","London","Barnet London Borough Council"]
[null,null,null,null,null,null,null,null,null,null,null,null,null,null,"Henry Box School, The","122060","2012-06-01","South East","Oxfordshire County Council"]
[null,null,null,null,null,null,null,null,null,null,null,null,null,null,"Henry Hinde Infant School","120905","2012-04-01","West Midlands","Warwickshire County Council"]
[null,null,null,null,null,null,null,null,null,null,null,null,null,null,"Henry Hinde Junior School",127508,"2014-01-01","West Midlands","Warwickshire County Council"]
[null,null,null,null,null,null,null,null,null,null,null,null,null,null,"Hereford Academy, The","118672","2008-09-08","West Midlands","Herefordshire Council"]
[null,null,null,null,null,null,null,null,null,null,null,null,null,null,"Hermitage School - Chester-le-Street","119665","2011-04-01","North East","Durham County Council"]
[null,null,null,null,null,null,null,null,null,null,null,null,null,null,"Hermitage School, The - Woking",127810,"2014-02-01","South East","Surrey County Council"]
[null,null,null,null,null,null,null,null,null,null,null,null,null,null,"Herne Bay High School","119506","2011-03-01","South East","Kent County Council"]
[null,null,null,null,null,null,null,null,null,null,null,null,null,null,"Heron Hall Academy","123308","2013-09-01","London","Enfield London Borough Council"]
[null,null,null,null,null,null,null,null,null,null,null,null,null,null,"Heron Park Primary Academy","122019","2012-09-01","South East","East Sussex County Council"]
[null,null,null,null,null,null,null,null,null,null,null,null,null,null,"Herons' Moor Academy","122651","2012-09-01","South West","North Somerset District Council"]
[null,null,null,null,null,null,null,null,null,null,null,null,null,null,"Heronsgate School","123231","2013-04-01","South East","Milton Keynes Council"]
[null,null,null,null,null,null,null,null,null,null,null,null,null,null,"Herringham Primary School","121044","2012-11-01","East of England","Thurrock Borough Council"]
[null,null,null,null,null,null,null,null,null,null,null,null,null,null,"Herschel Grammar School","120995","2012-02-01","South East","Slough Borough Council"]
[null,null,null,null,null,null,null,null,null,null,null,null,null,null,"Hersden Community Primary School","122255","2012-09-01","South East","Kent County Council"]
[null,null,null,null,null,null,null,null,null,null,null,null,null,null,"Hertswood School","120802","2012-09-01","East of England","Hertfordshire County Council"]
[null,null,null,null,null,null,null,null,null,null,null,null,null,null,"Hessle High School and Sixth Form College","120306","2011-08-17","Yorkshire & Humberside","East Riding of Yorkshire Council"]
[null,null,null,null,null,null,null,null,null,null,null,null,null,null,"Hessle Penshurst Primary School","120307","2011-08-17","Yorkshire & Humberside","East Riding of Yorkshire Council"]
[null,null,null,null,null,null,null,null,null,null,null,null,null,null,"Heston Community School","121146","2012-11-01T14:58:09","London","Hounslow London Borough Council"]
[null,null,null,null,null,null,null,null,null,null,null,null,null,null,"Hethersett Academy",126311,"2013-11-01","East of England","Norfolk County Council"]
[null,null,null,null,null,null,null,null,null,null,null,null,null,null,"Hewens College","120078","2011-08-01","London","Hillingdon London Borough Council"]
[null,null,null,null,null,null,null,null,null,null,null,null,null,null,"Hewens Primary School","123309","2013-09-01","London","Hillingdon London Borough Council"]
[null,null,null,null,null,null,null,null,null,null,null,null,null,null,"Heybridge Primary School","123102","2012-12-01","East of England","Essex County Council"]
[null,null,null,null,null,null,null,null,null,null,null,null,null,null,"Heyford Park Free School","123310","2013-09-01","South East","Oxfordshire County Council"]
[null,null,null,null,null,null,null,null,null,null,null,null,null,null,"Hibaldstow Academy","121052","2012-04-01","Yorkshire & Humberside","North Lincolnshire Council"]
[null,null,null,null,null,null,null,null,null,null,null,null,null,null,"High Arcal School, The","120823","2011-12-01","West Midlands","Dudley Metropolitan Borough Council"]
[null,null,null,null,null,null,null,null,null,null,null,null,null,null,"High Halstow Primary School","121054","2012-04-01","South East","Medway Council"]
[null,null,null,null,null,null,null,null,null,null,null,null,null,null,"High School for Girls","119682","2011-04-01","South West","Gloucestershire County Council"]
[null,null,null,null,null,null,null,null,null,null,null,null,null,null,"High Weald Academy","120934","2012-09-01","South East","Kent County Council"]
[null,null,null,null,null,null,null,null,null,null,null,null,null,null,"Higham Lane School, A Business & Enterprise College","120853","2012-01-01","West Midlands","Warwickshire County Council"]
[null,null,null,null,null,null,null,null,null,null,null,null,null,null,"Highams Park School","120484","2011-10-01","London","Waltham Forest London Borough Council"]
[null,null,null,null,null,null,null,null,null,null,null,null,null,null,"Highbank Primary",125182,"2013-10-01","East Midlands","Nottingham City Council"]
[null,null,null,null,null,null,null,null,null,null,null,null,null,null,"Highcliffe School","119769","2011-06-01","South West","Dorset County Council"]
[null,null,null,null,null,null,null,null,null,null,null,null,null,null,"Highcrest Academy, The","119858","2011-07-01","South East","Buckinghamshire County Council"]
[null,null,null,null,null,null,null,null,null,null,null,null,null,null,"Highdown School and Sixth Form Centre","119364","2010-11-01","South East","Reading Borough Council"]
[null,null,null,null,null,null,null,null,null,null,null,null,null,null,"Highfield Infants' School - Bromley","125203","2013-09-01","London","Bromley London Borough Council"]
[null,null,null,null,null,null,null,null,null,null,null,null,null,null,"Highfield Junior School - Bromley",125204,"2013-10-01","London","Bromley London Borough Council"]
[null,null,null,null,null,null,null,null,null,null,null,null,null,null,"Highfields Primary Academy - Doncaster","120952","2012-04-01","Yorkshire & Humberside","Doncaster Metropolitan Borough Council"]
[null,null,null,null,null,null,null,null,null,null,null,null,null,null,"Highlands Primary School","122898","2013-04-01","Yorkshire & Humberside","Hull City Council"]
[null,null,null,null,null,null,null,null,null,null,null,null,null,null,"Highlees Community Primary School","124667","2013-09-01","East of England","Peterborough City Council"]
[null,null,null,null,null,null,null,null,null,null,null,null,null,null,"Highnam Church of England Primary School","120102","2011-08-01","South West","Gloucestershire County Council"]
[null,null,null,null,null,null,null,null,null,null,null,null,null,null,"Highsted Grammar School","119287","2010-10-01","South East","Kent County Council"]
[null,null,null,null,null,null,null,null,null,null,null,null,null,null,"Hightown Primary School","124679","2013-09-01","South East","Southampton City Council"]
[null,null,null,null,null,null,null,null,null,null,null,null,null,null,"Highwoods Community Primary School","123224","2013-04-01","East of England","Essex County Council"]
[null,null,null,null,null,null,null,null,null,null,null,null,null,null,"Highworth Grammar School","119416","2011-01-01","South East","Kent County Council"]
[null,null,null,null,null,null,null,null,null,null,null,null,null,null,"Highworth Warneford School","119860","2011-07-01","South West","Swindon Borough Council"]
[null,null,null,null,null,null,null,null,null,null,null,null,null,null,"Hilbre High School","120885","2012-07-01","North West","Wirral Metropolitan Borough Council"]
[null,null,null,null,null,null,null,null,null,null,null,null,null,null,"Hill Farm Academy","124127","2013-09-01","West Midlands","Coventry City Council"]
[null,null,null,null,null,null,null,null,null,null,null,null,null,null,"Hill Primary School, The","121211","2012-09-01","Yorkshire & Humberside","Barnsley Metropolitan Borough Council"]
[null,null,null,null,null,null,null,null,null,null,null,null,null,null,"Hill West Primary School","122599","2013-04-01","West Midlands","Birmingham City Council"]
[null,null,null,null,null,null,null,null,null,null,null,null,null,null,"Hillcrest Early Years Academy - Gainsborough","122008","2012-07-01","East Midlands","Lincolnshire County Council"]
[null,null,null,null,null,null,null,null,null,null,null,null,null,null,"Hillcrest Primary School - Leeds",124293,"2014-01-01","Yorkshire & Humberside","Leeds City Council"]
[null,null,null,null,null,null,null,null,null,null,null,null,null,null,"Hillcrest School and Sixth Form Centre","120482","2011-09-01","West Midlands","Birmingham City Council"]
[null,null,null,null,null,null,null,null,null,null,null,null,null,null,"Hills Academy, The","123278","2013-04-01","East of England","Bedford Borough Council"]
[null,null,null,null,null,null,null,null,null,null,null,null,null,null,"Hillsborough Primary School",125023,"2013-11-01","Yorkshire & Humberside","Sheffield City Council"]
[null,null,null,null,null,null,null,null,null,null,null,null,null,null,"Hillside Primary and Nursery Academy - Nottingham",124737,"2013-11-01","East Midlands","Nottinghamshire County Council"]
[null,null,null,null,null,null,null,null,null,null,null,null,null,null,"Hillside Primary School - Orpington","121862","2012-09-01","London","Bromley London Borough Council"]
[null,null,null,null,null,null,null,null,null,null,null,null,null,null,"Hilltop Junior School - Wickford","120245","2011-08-01","East of England","Essex County Council"]
[null,null,null,null,null,null,null,null,null,null,null,null,null,null,"Hilltop Primary School - Crawley","122063","2012-09-01","South East","West Sussex County Council"]
[null,null,null,null,null,null,null,null,null,null,null,null,null,null,"Hillview School for Girls","120104","2011-08-01","South East","Kent County Council"]
[null,null,null,null,null,null,null,null,null,null,null,null,null,null,"Hillyfield Academy","119436","2011-01-11","London","Waltham Forest London Borough Council"]
[null,null,null,null,null,null,null,null,null,null,null,null,null,null,"Hilton Academy","122905","2012-12-01","North East","Newcastle Upon Tyne City Council"]
[null,null,null,null,null,null,null,null,null,null,null,null,null,null,"Hinchingbrooke School","120503","2011-09-01","East of England","Cambridgeshire County Council"]
[null,null,null,null,null,null,null,null,null,null,null,null,null,null,"Hinchley Wood School","120416","2012-02-01T14:24:19","South East","Surrey County Council"]
[null,null,null,null,null,null,null,null,null,null,null,null,null,null,"Hinde House 3-16 School","122797","2013-07-01","Yorkshire & Humberside","Sheffield City Council"]
[null,null,null,null,null,null,null,null,null,null,null,null,null,null,"Hinderwell Community Primary School",124746,"2013-11-01","Yorkshire & Humberside","North Yorkshire County Council"]
[null,null,null,null,null,null,null,null,null,null,null,null,null,null,"Hipperholme and Lightcliffe High School and Sports College","120036","2011-08-01","Yorkshire & Humberside","Calderdale Metropolitan Borough Council"]
[null,null,null,null,null,null,null,null,null,null,null,null,null,null,"Histon and Impington Infant School","122679","2012-12-01","East of England","Cambridgeshire County Council"]
[null,null,null,null,null,null,null,null,null,null,null,null,null,null,"Histon and Impington Junior School","122718","2012-12-01","East of England","Cambridgeshire County Council"]
[null,null,null,null,null,null,null,null,null,null,null,null,null,null,"Hitchin Boys' School","122668","2013-01-01","East of England","Hertfordshire County Council"]
[null,null,null,null,null,null,null,null,null,null,null,null,null,null,"Hitchin Girls' School","120288","2011-08-17","East of England","Hertfordshire County Council"]
[null,null,null,null,null,null,null,null,null,null,null,null,null,null,"Hobart High School","122709","2013-02-01","East of England","Norfolk County Council"]
[null,null,null,null,null,null,null,null,null,null,null,null,null,null,"Hockerill Anglo-European College","119482","2011-02-01","East of England","Hertfordshire County Council"]
[null,null,null,null,null,null,null,null,null,null,null,null,null,null,"Hockley Heath Academy","121857","2012-08-01","West Midlands","Solihull Metropolitan Borough Council"]
[null,null,null,null,null,null,null,null,null,null,null,null,null,null,"Hodgson Academy","119726","2011-05-01","North West","Lancashire County Council"]
[null,null,null,null,null,null,null,null,null,null,null,null,null,null,"Hogarth Primary and Nursery School",126107,"2013-11-01","East Midlands","Nottingham City Council"]
[null,null,null,null,null,null,null,null,null,null,null,null,null,null,"Hogsthorpe Primary Academy","122262","2012-09-01","East Midlands","Lincolnshire County Council"]
[null,null,null,null,null,null,null,null,null,null,null,null,null,null,"Holbrook High School","120208","2011-08-01","East of England","Suffolk County Council"]
[null,null,null,null,null,null,null,null,null,null,null,null,null,null,"Holden Lane High School Specialist Sports College","123238","2014-03-01","West Midlands","Stoke on Trent City Council"]
[null,null,null,null,null,null,null,null,null,null,null,null,null,null,"Holgate Comprehensive School, The","124990","2013-09-01","East Midlands","Nottinghamshire County Council"]
[null,null,null,null,null,null,null,null,null,null,null,null,null,null,"Holland Park School","124090","2013-09-01","London","Royal Borough of Kensington and Chelsea Council"]
[null,null,null,null,null,null,null,null,null,null,null,null,null,null,"Holley Park Primary School","122147","2012-08-01","North East","Sunderland City Council"]
[null,null,null,null,null,null,null,null,null,null,null,null,null,null,"Hollingworth Business and Enterprise College","120921","2013-09-01","North West","Rochdale Metropolitan Borough Council"]
[null,null,null,null,null,null,null,null,null,null,null,null,null,null,"Holly Hall Maths and Computing College","120425","2011-09-01","West Midlands","Dudley Metropolitan Borough Council"]
[null,null,null,null,null,null,null,null,null,null,null,null,null,null,"Hollybrook Infant School","122588","2012-11-01","South East","Southampton City Council"]
[null,null,null,null,null,null,null,null,null,null,null,null,null,null,"Hollybrook Junior School","122859","2013-05-01","South East","Southampton City Council"]
[null,null,null,null,null,null,null,null,null,null,null,null,null,null,"Hollyfield School and Sixth Form Centre, The","120544","2011-12-01T12:24:21","London","Royal Borough of Kingston Upon Thames Council"]
[null,null,null,null,null,null,null,null,null,null,null,null,null,null,"Hollywood, the Coppice Primary School","120715","2011-12-01","West Midlands","Worcestershire County Council"]
[null,null,null,null,null,null,null,null,null,null,null,null,null,null,"Holme Church of England Controlled Primary School, The","124580","2013-09-01","South East","Hampshire County Council"]
[null,null,null,null,null,null,null,null,null,null,null,null,null,null,"Holmemead Middle School","120576","2012-03-01","East of England","Central Bedfordshire Council"]
[null,null,null,null,null,null,null,null,null,null,null,null,null,null,"Holmer CofE Primary School","120499","2011-12-01","West Midlands","Herefordshire Council"]
[null,null,null,null,null,null,null,null,null,null,null,null,null,null,"Holmer Green Senior School","121070","2012-04-01","South East","Buckinghamshire County Council"]
[null,null,null,null,null,null,null,null,null,null,null,null,null,null,"Holmes Chapel Comprehensive School","120367","2011-09-01","North West","Cheshire East Council"]
[null,null,null,null,null,null,null,null,null,null,null,null,null,null,"Holmes Chapel Primary School","124565","2013-09-01","North West","Cheshire East Council"]
[null,null,null,null,null,null,null,null,null,null,null,null,null,null,"Holt School, The","119880","2011-07-01","South East","Wokingham Borough Council"]
[null,null,null,null,null,null,null,null,null,null,null,null,null,null,"Holy Cross Catholic Primary School - Harlow","119967","2011-08-01","East of England","Essex County Council"]
[null,null,null,null,null,null,null,null,null,null,null,null,null,null,"Holy Cross Catholic Primary School - Nottingham","121055","2012-10-01","East Midlands","Nottinghamshire County Council"]
[null,null,null,null,null,null,null,null,null,null,null,null,null,null,"Holy Cross Catholic Primary School - Suttom Coldfield",123902,"2014-01-01","West Midlands","Birmingham City Council"]
[null,null,null,null,null,null,null,null,null,null,null,null,null,null,"Holy Cross Catholic Primary School - Whitwick","122363","2012-07-01","East Midlands","Leicestershire County Council"]
[null,null,null,null,null,null,null,null,null,null,null,null,null,null,"Holy Cross School, The","122725","2012-08-01T12:49:41","London","Royal Borough of Kingston Upon Thames Council"]
[null,null,null,null,null,null,null,null,null,null,null,null,null,null,"Holy Family Catholic Academy - Cleethorpes","123904","2013-09-01","Yorkshire & Humberside","North East Lincolnshire Council"]
[null,null,null,null,null,null,null,null,null,null,null,null,null,null,"Holy Family Catholic Primary School - Swindon","122507","2012-09-01","South West","Swindon Borough Council"]
[null,null,null,null,null,null,null,null,null,null,null,null,null,null,"Holy Family RC Primary School - Darlington","124097","2013-04-01","North East","Darlington Borough Council"]
[null,null,null,null,null,null,null,null,null,null,null,null,null,null,"Holy Rood Catholic Infant School","120074","2011-08-01","South West","Swindon Borough Council"]
[null,null,null,null,null,null,null,null,null,null,null,null,null,null,"Holy Rood Catholic Junior School","119981","2011-08-01","South West","Swindon Borough Council"]
[null,null,null,null,null,null,null,null,null,null,null,null,null,null,"Holy Trinity CE Primary Academy - Haringey","123196","2013-02-01","London","Haringey London Borough Council"]
[null,null,null,null,null,null,null,null,null,null,null,null,null,null,"Holy Trinity Church of England Primary Academy - Calne","121913","2012-05-01","South West","Wiltshire Council"]
[null,null,null,null,null,null,null,null,null,null,null,null,null,null,"Holy Trinity Church of England Primary School - Handsworth",124168,"2013-12-01","West Midlands","Birmingham City Council"]
[null,null,null,null,null,null,null,null,null,null,null,null,null,null,"Holy Trinity Church of England Voluntary Aided School, The - Devizes","120441","2011-09-01","South West","Wiltshire Council"]
[null,null,null,null,null,null,null,null,null,null,null,null,null,null,"Holyhead School","120034","2011-08-01","West Midlands","Birmingham City Council"]
[null,null,null,null,null,null,null,null,null,null,null,null,null,null,"Holyrood Academy","119244","2010-09-01","South West","Somerset County Council"]
[null,null,null,null,null,null,null,null,null,null,null,null,null,null,"Holywell Primary School - Loughborough","122555","2012-11-01","East Midlands","Leicestershire County Council"]
[null,null,null,null,null,null,null,null,null,null,null,null,null,null,"Holywell School - Bedford","122088","2012-10-01","East of England","Central Bedfordshire Council"]
[null,null,null,null,null,null,null,null,null,null,null,null,null,null,"Homewood School and Sixth Form Centre","120373","2011-09-01","South East","Kent County Council"]
[null,null,null,null,null,null,null,null,null,null,null,null,null,null,"Honeybourne First School","124330","2013-06-01","West Midlands","Worcestershire County Council"]
[null,null,null,null,null,null,null,null,null,null,null,null,null,null,"Honiton Community College","119912","2011-07-01","South West","Devon County Council"]
[null,null,null,null,null,null,null,null,null,null,null,null,null,null,"Honywood Community Science School","119727","2011-05-01","East of England","Essex County Council"]
[null,null,null,null,null,null,null,null,null,null,null,null,null,null,"Hooe Primary School","122819","2013-03-01","South West","Plymouth City Council"]
[null,null,null,null,null,null,null,null,null,null,null,null,null,null,"Hook-with-Warsash Church of England Primary School","122163","2012-09-01","South East","Hampshire County Council"]
[null,null,null,null,null,null,null,null,null,null,null,null,null,null,"Hope Academy","119925","2011-09-01","North West","St Helens Metropolitan Borough Council"]
[null,null,null,null,null,null,null,null,null,null,null,null,null,null,"Hope Community School","123313","2013-09-01","London","Bexley London Borough Council"]
[null,null,null,null,null,null,null,null,null,null,null,null,null,null,"Hope Valley College","120066","2011-09-01","East Midlands","Derbyshire County Council"]
[null,null,null,null,null,null,null,null,null,null,null,null,null,null,"Horbury Academy","122558","2012-09-01","Yorkshire & Humberside","Wakefield Council"]
[null,null,null,null,null,null,null,null,null,null,null,null,null,null,"Horbury Bridge Church of England Voluntary Controlled Junior and Infant School","120893","2012-04-01","Yorkshire & Humberside","Wakefield Council"]
[null,null,null,null,null,null,null,null,null,null,null,null,null,null,"Horizon Primary Academy","120136","2011-09-01","South East","Kent County Council"]
[null,null,null,null,null,null,null,null,null,null,null,null,null,null,"Horringer Court Middle School","120179","2011-08-01","East of England","Suffolk County Council"]
[null,null,null,null,null,null,null,null,null,null,null,null,null,null,"Horrington Primary School","124132","2013-05-01","South West","Somerset County Council"]
[null,null,null,null,null,null,null,null,null,null,null,null,null,null,"Horsell Village School","123940","2013-09-01","South East","Surrey County Council"]
[null,null,null,null,null,null,null,null,null,null,null,null,null,null,"Horsforth School","120765","2012-01-01","Yorkshire & Humberside","Leeds City Council"]
[null,null,null,null,null,null,null,null,null,null,null,null,null,null,"Horsington Church of England Primary School",125025,"2013-12-01","South West","Somerset County Council"]
[null,null,null,null,null,null,null,null,null,null,null,null,null,null,"Hounsdown School","120229","2011-08-01","South East","Hampshire County Council"]
[null,null,null,null,null,null,null,null,null,null,null,null,null,null,"Howard of Effingham","119833","2011-07-01","South East","Surrey County Council"]
[null,null,null,null,null,null,null,null,null,null,null,null,null,null,"Hoyland Common Primary School",123036,"2013-10-01","Yorkshire & Humberside","Barnsley Metropolitan Borough Council"]
[null,null,null,null,null,null,null,null,null,null,null,null,null,null,"Huish Episcopi School","119245","2010-09-02","South West","Somerset County Council"]
[null,null,null,null,null,null,null,null,null,null,null,null,null,null,"Huish Primary School",124759,"2013-12-01","South West","Somerset County Council"]
[null,null,null,null,null,null,null,null,null,null,null,null,null,null,"Hull Studio School","122028","2012-09-01","Yorkshire & Humberside","Hull City Council"]
[null,null,null,null,null,null,null,null,null,null,null,null,null,null,"Hull Trinity House Academy","120922","2012-04-01","Yorkshire & Humberside","Hull City Council"]
[null,null,null,null,null,null,null,null,null,null,null,null,null,null,"Humberston Academy","120200","2011-08-01","Yorkshire & Humberside","North East Lincolnshire Council"]
[null,null,null,null,null,null,null,null,null,null,null,null,null,null,"Humberston Park School","120443","2011-09-01","Yorkshire & Humberside","North East Lincolnshire Council"]
[null,null,null,null,null,null,null,null,null,null,null,null,null,null,"Humberstone Junior School","124337","2013-08-01","East Midlands","Leicester City Council"]
[null,null,null,null,null,null,null,null,null,null,null,null,null,null,"Hummersknott Academy","119838","2011-07-01","North East","Darlington Borough Council"]
[null,null,null,null,null,null,null,null,null,null,null,null,null,null,"Humphrey Perkins High School & Community Centre","120901","2012-01-01","East Midlands","Leicestershire County Council"]
[null,null,null,null,null,null,null,null,null,null,null,null,null,null,"Huncote Community Primary School","122173","2012-07-01","East Midlands","Leicestershire County Council"]
[null,null,null,null,null,null,null,null,null,null,null,null,null,null,"Hundred of Hoo Academy, The","120119","2011-09-01","South East","Medway Council"]
[null,null,null,null,null,null,null,null,null,null,null,null,null,null,"Hungerhill School","120940","2012-03-01","Yorkshire & Humberside","Doncaster Metropolitan Borough Council"]
[null,null,null,null,null,null,null,null,null,null,null,null,null,null,"Huntcliff School","120568","2012-02-01","Yorkshire & Humberside","North Lincolnshire Council"]
[null,null,null,null,null,null,null,null,null,null,null,null,null,null,"Huntingdon Primary and Nursery School","120539","2011-10-01","East Midlands","Nottingham City Council"]
[null,null,null,null,null,null,null,null,null,null,null,null,null,null,"Huntingtower Community Primary School","124181","2013-05-01","East Midlands","Lincolnshire County Council"]
[null,null,null,null,null,null,null,null,null,null,null,null,null,null,"Hurst Primary School",124620,"2013-10-01","London","Bexley London Borough Council"]
[null,null,null,null,null,null,null,null,null,null,null,null,null,null,"Hurstmere Foundation School for Boys","120404","2011-09-01","London","Bexley London Borough Council"]
[null,null,null,null,null,null,null,null,null,null,null,null,null,null,"Hurworth Primary School","121832","2012-06-01","North East","Darlington Borough Council"]
[null,null,null,null,null,null,null,null,null,null,null,null,null,null,"Hurworth School","119572","2011-04-01","North East","Darlington Borough Council"]
[null,null,null,null,null,null,null,null,null,null,null,null,null,null,"Huttoft Primary School","122869","2012-10-01","East Midlands","Lincolnshire County Council"]
[null,null,null,null,null,null,null,null,null,null,null,null,null,null,"Hutton All Saints' Church of England Primary School","120718","2011-12-01","East of England","Essex County Council"]
[null,null,null,null,null,null,null,null,null,null,null,null,null,null,"Huxlow Science College","121017","2012-04-01","East Midlands","Northamptonshire County Council"]
[null,null,null,null,null,null,null,null,null,null,null,null,null,null,"Huyton Arts & Sports Centre for Learning",124231,"2014-02-01","North West","Knowsley Metropolitan Borough Council"]
[null,null,null,null,null,null,null,null,null,null,null,null,null,null,"Hyde School, The","124345","2013-09-01","London","Barnet London Borough Council"]
[null,null,null,null,null,null,null,null,null,null,null,null,null,null,"Hylands School","120072","2011-08-01","East of England","Essex County Council"]
[null,null,null,null,null,null,null,null,null,null,null,null,null,null,"Hyndburn Studio School","122529","2012-09-01","North West","Lancashire County Council"]
[null,null,null,null,null,null,null,null,null,null,null,null,null,null,"Ibstock Community College","122655","2012-09-01","East Midlands","Leicestershire County Council"]
[null,null,null,null,null,null,null,null,null,null,null,null,null,null,"Iceni Academy, The","122542","2013-01-01","East of England","Norfolk County Council"]
[null,null,null,null,null,null,null,null,null,null,null,null,null,null,"Icknield High School","120569","2011-12-01","East of England","Luton Borough Council"]
[null,null,null,null,null,null,null,null,null,null,null,null,null,null,"IES Breckland Free School","122015","2012-09-01","East of England","Suffolk County Council"]
[null,null,null,null,null,null,null,null,null,null,null,null,null,null,"Ilfracombe Arts College","124360","2013-05-01","South West","Devon County Council"]
[null,null,null,null,null,null,null,null,null,null,null,null,null,null,"Ilkley Grammar School","119821","2011-07-01","Yorkshire & Humberside","Bradford Metropolitan District Council"]
[null,null,null,null,null,null,null,null,null,null,null,null,null,null,"Ilminster Avenue E-ACT Academy","120906","2012-01-01","South West","Bristol City Council"]
[null,null,null,null,null,null,null,null,null,null,null,null,null,null,"Ilsham Church of England Primary School","120304","2011-08-17","South West","Torbay Council"]
[null,null,null,null,null,null,null,null,null,null,null,null,null,null,"Ilsington Church of England Primary School","119919","2011-07-01","South West","Devon County Council"]
[null,null,null,null,null,null,null,null,null,null,null,null,null,null,"Impington Village College","120714","2012-02-01T14:26:06","East of England","Cambridgeshire County Council"]
[null,null,null,null,null,null,null,null,null,null,null,null,null,null,"Independent Jewish Day School","120303","2011-08-17","London","Barnet London Borough Council"]
[null,null,null,null,null,null,null,null,null,null,null,null,null,null,"Ingoldmells Primary School","121167","2012-09-01","East Midlands","Lincolnshire County Council"]
[null,null,null,null,null,null,null,null,null,null,null,null,null,null,"International Food and Travel Studio","122530","2012-09-01","Yorkshire & Humberside","Bradford Metropolitan District Council"]
[null,null,null,null,null,null,null,null,null,null,null,null,null,null,"Invenio Academy","120004","2011-08-01","Yorkshire & Humberside","North Lincolnshire Council"]
[null,null,null,null,null,null,null,null,null,null,null,null,null,null,"Inverteign Community Nursery and Primary School","119493","2011-03-01","South West","Devon County Council"]
[null,null,null,null,null,null,null,null,null,null,null,null,null,null,"Invicta Grammar School","119660","2011-04-01","South East","Kent County Council"]
[null,null,null,null,null,null,null,null,null,null,null,null,null,null,"Ipsley CE RSA Academy","122543","2013-01-01","West Midlands","Worcestershire County Council"]
[null,null,null,null,null,null,null,null,null,null,null,null,null,null,"Ipswich Academy","119502","2011-03-01","East of England","Suffolk County Council"]
[null,null,null,null,null,null,null,null,null,null,null,null,null,null,"Iqra Community Primary School","124195","2013-09-01","Yorkshire & Humberside","Bradford Metropolitan District Council"]
[null,null,null,null,null,null,null,null,null,null,null,null,null,null,"Isaac Newton Academy","120917","2012-09-01","London","Redbridge London Borough Council"]
[null,null,null,null,null,null,null,null,null,null,null,null,null,null,"Isca College of Media Arts",122640,"2013-10-01","South West","Devon County Council"]
[null,null,null,null,null,null,null,null,null,null,null,null,null,null,"Isis Academy, The","122868","2013-02-01","South East","Oxfordshire County Council"]
[null,null,null,null,null,null,null,null,null,null,null,null,null,null,"Isle of Portland Aldridge Community Academy","120983","2012-09-01","South West","Dorset County Council"]
[null,null,null,null,null,null,null,null,null,null,null,null,null,null,"Isle of Sheppey Academy, The","119099","2009-09-01","South East","Kent County Council"]
[null,null,null,null,null,null,null,null,null,null,null,null,null,null,"Isleworth and Syon School for Boys","120870","2012-03-01T10:53:14","London","Hounslow London Borough Council"]
[null,null,null,null,null,null,null,null,null,null,null,null,null,null,"Ivanhoe College Ashby-De-La-Zouch","122128","2012-07-01","East Midlands","Leicestershire County Council"]
[null,null,null,null,null,null,null,null,null,null,null,null,null,null,"Ivybridge Community College","119367","2010-11-01","South West","Devon County Council"]
[null,null,null,null,null,null,null,null,null,null,null,null,null,null,"James Brindley School","120663","2013-04-01","West Midlands","Birmingham City Council"]
[null,null,null,null,null,null,null,null,null,null,null,null,null,null,"James Elliman Academy","123285","2013-04-01","South East","Slough Borough Council"]
[null,null,null,null,null,null,null,null,null,null,null,null,null,null,"James Hornsby School, The","121878","2012-10-01","East of England","Essex County Council"]
[null,null,null,null,null,null,null,null,null,null,null,null,null,null,"JCB Academy, The","119213","2010-09-01","West Midlands","Staffordshire County Council"]
[null,null,null,null,null,null,null,null,null,null,null,null,null,null,"Jerry Clay Academy","120148","2011-08-01","Yorkshire & Humberside","Wakefield Council"]
[null,null,null,null,null,null,null,null,null,null,null,null,null,null,"Jewell Academy Bournemouth","126491","2013-09-01","South West","Bournemouth Borough Council"]
[null,null,null,null,null,null,null,null,null,null,null,null,null,null,"John Baskeyfield VC CofE Primary School","123857","2014-03-01","West Midlands","Stoke on Trent City Council"]
[null,null,null,null,null,null,null,null,null,null,null,null,null,null,"John Bentley School, The","120571","2011-11-01","South West","Wiltshire Council"]
[null,null,null,null,null,null,null,null,null,null,null,null,null,null,"John Blandy VC Primary School",124731,"2013-11-01","South East","Oxfordshire County Council"]
[null,null,null,null,null,null,null,null,null,null,null,null,null,null,"John Cabot Academy","118621","2007-09-01","South West","South Gloucestershire Council"]
[null,null,null,null,null,null,null,null,null,null,null,null,null,null,"John Cleveland College","122331","2012-07-01","East Midlands","Leicestershire County Council"]
[null,null,null,null,null,null,null,null,null,null,null,null,null,null,"John Colet School","120261","2011-08-01","South East","Buckinghamshire County Council"]
[null,null,null,null,null,null,null,null,null,null,null,null,null,null,"John Donne Primary School",129075,"2014-01-01","London","Southwark London Borough Council"]
[null,null,null,null,null,null,null,null,null,null,null,null,null,null,"John Ferneley College","120644","2011-11-01","East Midlands","Leicestershire County Council"]
[null,null,null,null,null,null,null,null,null,null,null,null,null,null,"John Hampden Grammar School","119770","2011-06-01","South East","Buckinghamshire County Council"]
[null,null,null,null,null,null,null,null,null,null,null,null,null,null,"John Henry Newman Catholic College - Solihull","119437","2011-01-01","West Midlands","Solihull Metropolitan Borough Council"]
[null,null,null,null,null,null,null,null,null,null,null,null,null,null,"John Henry Newman Catholic School, The - Stevenage","121183","2012-03-01T12:09:12","East of England","Hertfordshire County Council"]
[null,null,null,null,null,null,null,null,null,null,null,null,null,null,"John Henry Newman CofE (A) Primary School, The","122336","2012-09-01","South East","Oxfordshire County Council"]
[null,null,null,null,null,null,null,null,null,null,null,null,null,null,"John Kyrle High School and Sixth Form Centre","119414","2011-01-01","West Midlands","Herefordshire Council"]
[null,null,null,null,null,null,null,null,null,null,null,null,null,null,"John Madejski Academy","118622","2006-09-01","South East","Reading Borough Council"]
[null,null,null,null,null,null,null,null,null,null,null,null,null,null,"John Masefield High School","119800","2011-06-01","West Midlands","Herefordshire Council"]
[null,null,null,null,null,null,null,null,null,null,null,null,null,null,"John Mason School",129426,"2014-02-01","South East","Oxfordshire County Council"]
[null,null,null,null,null,null,null,null,null,null,null,null,null,null,"John of Gaunt School, The","120822","2012-04-01","South West","Wiltshire Council"]
[null,null,null,null,null,null,null,null,null,null,null,null,null,null,"John Port School","119618","2011-04-01","East Midlands","Derbyshire County Council"]
[null,null,null,null,null,null,null,null,null,null,null,null,null,null,"John Smeaton Academy, The",120516,"2014-01-01","Yorkshire & Humberside","Leeds City Council"]
[null,null,null,null,null,null,null,null,null,null,null,null,null,null,"John Spendluffe Foundation Technology College","119968","2011-08-01","East Midlands","Lincolnshire County Council"]
[null,null,null,null,null,null,null,null,null,null,null,null,null,null,"John Taylor High School","119353","2010-11-01","West Midlands","Staffordshire County Council"]
[null,null,null,null,null,null,null,null,null,null,null,null,null,null,"John Wallis Church of England Academy, The","119309","2010-09-01","South East","Kent County Council"]
[null,null,null,null,null,null,null,null,null,null,null,null,null,null,"John Warner School, The","119627","2011-04-01","East of England","Hertfordshire County Council"]
[null,null,null,null,null,null,null,null,null,null,null,null,null,null,"John Whitgift Academy","120464","2011-09-01","Yorkshire & Humberside","North East Lincolnshire Council"]
[null,null,null,null,null,null,null,null,null,null,null,null,null,null,"Joseph Leckie Academy","120848","2012-02-01","West Midlands","Walsall Metropolitan Borough Council"]
[null,null,null,null,null,null,null,null,null,null,null,null,null,null,"Joseph Swan School","120691","2012-03-01T10:58:56","North East","Gateshead Council"]
[null,null,null,null,null,null,null,null,null,null,null,null,null,null,"Joseph Whitaker School","120678","2011-11-01","East Midlands","Nottinghamshire County Council"]
[null,null,null,null,null,null,null,null,null,null,null,null,null,null,"Jotmans Hall Primary School","120247","2011-08-01","East of England","Essex County Council"]
[null,null,null,null,null,null,null,null,null,null,null,null,null,null,"Joydens Wood Infant School","120619","2011-11-01","South East","Kent County Council"]
[null,null,null,null,null,null,null,null,null,null,null,null,null,null,"Joydens Wood Junior School","120618","2011-11-01","South East","Kent County Council"]
[null,null,null,null,null,null,null,null,null,null,null,null,null,null,"Jubilee Academy - Walsall","122043","2012-08-01","West Midlands","Walsall Metropolitan Borough Council"]
[null,null,null,null,null,null,null,null,null,null,null,null,null,null,"Jubilee Academy, The - Harrow","123414","2013-09-01","London","Harrow London Borough Council"]
[null,null,null,null,null,null,null,null,null,null,null,null,null,null,"Jubilee High School","124734","2013-09-01","South East","Surrey County Council"]
[null,null,null,null,null,null,null,null,null,null,null,null,null,null,"Jubilee Park Primary School","124117","2013-09-01","West Midlands","Sandwell metropolitan Borough Council"]
[null,null,null,null,null,null,null,null,null,null,null,null,null,null,"Judith Kerr Primary School","123315","2013-09-01","London","Southwark London Borough Council"]
[null,null,null,null,null,null,null,null,null,null,null,null,null,null,"Kajans Hospitality & Catering Studio College - Khcsc","123387","2013-09-01","West Midlands","Birmingham City Council"]
[null,null,null,null,null,null,null,null,null,null,null,null,null,null,"Kanes Hill Primary School","123860","2013-05-01","South East","Southampton City Council"]
[null,null,null,null,null,null,null,null,null,null,null,null,null,null,"Katharine Lady Berkeley's School","120033","2011-08-01","South West","Gloucestershire County Council"]
[null,null,null,null,null,null,null,null,null,null,null,null,null,null,"Kearsley Academy","119227","2010-09-01","North West","Bolton Metropolitan Borough Council"]
[null,null,null,null,null,null,null,null,null,null,null,null,null,null,"Kedington Primary School","123254","2013-04-01","East of England","Suffolk County Council"]
[null,null,null,null,null,null,null,null,null,null,null,null,null,null,"Kelsall Primary School","122569","2012-09-01","North West","Cheshire West and Chester Council"]
[null,null,null,null,null,null,null,null,null,null,null,null,null,null,"Kelvedon St Mary's Church of England Primary School","123161","2013-03-01","East of England","Essex County Council"]
[null,null,null,null,null,null,null,null,null,null,null,null,null,null,"Kemnal Technology College","119273","2010-09-01","London","Bromley London Borough Council"]
[null,null,null,null,null,null,null,null,null,null,null,null,null,null,"Kemsley Primary School","123946","2013-04-01","South East","Kent County Council"]
[null,null,null,null,null,null,null,null,null,null,null,null,null,null,"Kendray Primary School (The Forest Academy)","122857","2013-05-01","Yorkshire & Humberside","Barnsley Metropolitan Borough Council"]
[null,null,null,null,null,null,null,null,null,null,null,null,null,null,"Kendrick School","119464","2011-02-01","South East","Reading Borough Council"]
[null,null,null,null,null,null,null,null,null,null,null,null,null,null,"Kennet School","119645","2011-04-01","South East","West Berkshire Council"]
[null,null,null,null,null,null,null,null,null,null,null,null,null,null,"Kennett Community Primary School","122516","2012-12-01","East of England","Cambridgeshire County Council"]
[null,null,null,null,null,null,null,null,null,null,null,null,null,null,"Kenningtons Primary School","122566","2012-09-01","East of England","Thurrock Borough Council"]
[null,null,null,null,null,null,null,null,null,null,null,null,null,null,"Kenton School Newcastle","120910","2012-05-01T14:16:05","North East","Newcastle Upon Tyne City Council"]
[null,null,null,null,null,null,null,null,null,null,null,null,null,null,"Kents Hill Infant School","120330","2011-09-01","East of England","Essex County Council"]
[null,null,null,null,null,null,null,null,null,null,null,null,null,null,"Kents Hill Junior School","120586","2011-11-01","East of England","Essex County Council"]
[null,null,null,null,null,null,null,null,null,null,null,null,null,null,"Kenyngton Manor Primary School",124295,"2013-12-01","South East","Surrey County Council"]
[null,null,null,null,null,null,null,null,null,null,null,null,null,null,"Kepier","120262","2011-08-01","North East","Sunderland City Council"]
[null,null,null,null,null,null,null,null,null,null,null,null,null,null,"Kesgrave High School","119969","2011-08-01","East of England","Suffolk County Council"]
[null,null,null,null,null,null,null,null,null,null,null,null,null,null,"Kesteven and Grantham Girls' School","122564","2012-09-01","East Midlands","Lincolnshire County Council"]
[null,null,null,null,null,null,null,null,null,null,null,null,null,null,"Kesteven and Sleaford High School","120675","2011-11-01","East Midlands","Lincolnshire County Council"]
[null,null,null,null,null,null,null,null,null,null,null,null,null,null,"Keswick School","119862","2011-07-01","North West","Cumbria County Council"]
[null,null,null,null,null,null,null,null,null,null,null,null,null,null,"Kettering Buccleuch Academy","119105","2009-09-01","East Midlands","Northamptonshire County Council"]
[null,null,null,null,null,null,null,null,null,null,null,null,null,null,"Kettering Science Academy","119106","2009-09-01","East Midlands","Northamptonshire County Council"]
[null,null,null,null,null,null,null,null,null,null,null,null,null,null,"Khalsa Science Academy","123316","2013-09-01","Yorkshire & Humberside","Leeds City Council"]
[null,null,null,null,null,null,null,null,null,null,null,null,null,null,"Khalsa Secondary Acdemy","123317","2013-09-01","South East","Slough Borough Council"]
[null,null,null,null,null,null,null,null,null,null,null,null,null,null,"Kibblesworth Academy","121908","2012-06-01","North East","Gateshead Council"]
[null,null,null,null,null,null,null,null,null,null,null,null,null,null,"Kibworth Church of England Primary School","122048","2012-07-01","East Midlands","Leicestershire County Council"]
[null,null,null,null,null,null,null,null,null,null,null,null,null,null,"Kibworth High School & Community Technology College","120555","2011-10-01","East Midlands","Leicestershire County Council"]
[null,null,null,null,null,null,null,null,null,null,null,null,null,null,"Kilton Thorpe School","122603","2012-12-01","North East","Redcar and Cleveland Borough Council"]
[null,null,null,null,null,null,null,null,null,null,null,null,null,null,"Kimberley 16 - 19 Stem College","123318","2013-09-01","East of England","Bedford Borough Council"]
[null,null,null,null,null,null,null,null,null,null,null,null,null,null,"Kimberley School, The","122726","2012-09-01","East Midlands","Nottinghamshire County Council"]
[null,null,null,null,null,null,null,null,null,null,null,null,null,null,"King Alfred's","120140","2011-08-01","South East","Oxfordshire County Council"]
[null,null,null,null,null,null,null,null,null,null,null,null,null,null,"King Charles I Secondary School","121012","2012-04-01","West Midlands","Worcestershire County Council"]
[null,null,null,null,null,null,null,null,null,null,null,null,null,null,"King David High School, The","120309","2011-08-17","North West","Manchester City Council"]
[null,null,null,null,null,null,null,null,null,null,null,null,null,null,"King David Primary School","123275","2013-06-01","North West","Manchester City Council"]
[null,null,null,null,null,null,null,null,null,null,null,null,null,null,"King Ecgbert School","121930","2012-10-01","Yorkshire & Humberside","Sheffield City Council"]
[null,null,null,null,null,null,null,null,null,null,null,null,null,null,"King Edmund School, The","119868","2011-07-01","East of England","Essex County Council"]
[null,null,null,null,null,null,null,null,null,null,null,null,null,null,"King Edward VI Academy - Spilsby","121215","2012-09-01","East Midlands","Lincolnshire County Council"]
[null,null,null,null,null,null,null,null,null,null,null,null,null,null,"King Edward VI Aston School","120043","2011-08-01","West Midlands","Birmingham City Council"]
[null,null,null,null,null,null,null,null,null,null,null,null,null,null,"King Edward VI Camp Hill School for Boys","120045","2011-08-01","West Midlands","Birmingham City Council"]
[null,null,null,null,null,null,null,null,null,null,null,null,null,null,"King Edward VI Camp Hill School for Girls","120044","2011-08-01","West Midlands","Birmingham City Council"]
[null,null,null,null,null,null,null,null,null,null,null,null,null,null,"King Edward VI Five Ways School","120046","2011-08-01","West Midlands","Birmingham City Council"]
[null,null,null,null,null,null,null,null,null,null,null,null,null,null,"King Edward VI Grammar School - Chelmsford","119685","2011-04-01","East of England","Essex County Council"]
[null,null,null,null,null,null,null,null,null,null,null,null,null,null,"King Edward VI Handsworth School","120047","2011-08-01","West Midlands","Birmingham City Council"]
[null,null,null,null,null,null,null,null,null,null,null,null,null,null,"King Edward VI School - Stratford-upon-Avon","120302","2011-08-17","West Midlands","Warwickshire County Council"]
[null,null,null,null,null,null,null,null,null,null,null,null,null,null,"King Edward VI Sheldon Heath Academy","119208","2010-09-01","West Midlands","Birmingham City Council"]
[null,null,null,null,null,null,null,null,null,null,null,null,null,null,"King Edward VII Science and Sport College","114115","2012-10-01","East Midlands","Leicestershire County Council"]
[null,null,null,null,null,null,null,null,null,null,null,null,null,null,"King Ethelbert School","119658","2011-04-01","South East","Kent County Council"]
[null,null,null,null,null,null,null,null,null,null,null,null,null,null,"King Harold School","119365","2010-11-01","East of England","Essex County Council"]
[null,null,null,null,null,null,null,null,null,null,null,null,null,null,"King James I Community Arts College","119771","2011-06-01","North East","Durham County Council"]
[null,null,null,null,null,null,null,null,null,null,null,null,null,null,"King James's School","122293","2012-09-01","Yorkshire & Humberside","Kirklees Metropolitan Council"]
[null,null,null,null,null,null,null,null,null,null,null,null,null,null,"King John School, The","119652","2011-04-01","East of England","Essex County Council"]
[null,null,null,null,null,null,null,null,null,null,null,null,null,null,"King Offa Academy","122301","2012-09-01","South East","East Sussex County Council"]
[null,null,null,null,null,null,null,null,null,null,null,null,null,null,"King Solomon Academy","118623","2007-09-01","London","Westminster City Council"]
[null,null,null,null,null,null,null,null,null,null,null,null,null,null,"King William Street Church of England Primary School","121875","2012-08-01","South West","Swindon Borough Council"]
[null,null,null,null,null,null,null,null,null,null,null,null,null,null,"Kingdown School - Warminster","120230","2011-08-01","South West","Wiltshire Council"]
[null,null,null,null,null,null,null,null,null,null,null,null,null,null,"Kingfisher Academy, The - Bristol","122666","2013-04-01","South West","Bristol City Council"]
[null,null,null,null,null,null,null,null,null,null,null,null,null,null,"Kingfisher Community Primary School","124656","2013-09-01","South East","Medway Council"]
[null,null,null,null,null,null,null,null,null,null,null,null,null,null,"Kingfisher Hall Primary Academy","121993","2012-09-01","London","Enfield London Borough Council"]
[null,null,null,null,null,null,null,null,null,null,null,null,null,null,"Kingfisher School - Abingdon","122544","2013-02-01","South East","Oxfordshire County Council"]
[null,null,null,null,null,null,null,null,null,null,null,null,null,null,"Kingfisher School, The - Redditch",127196,"2014-01-01","West Midlands","Worcestershire County Council"]
[null,null,null,null,null,null,null,null,null,null,null,null,null,null,"King's Academy","118405","2003-09-01","North East","Middlesbrough Council"]
[null,null,null,null,null,null,null,null,null,null,null,null,null,null,"Kings Ash Primary School","122663","2012-09-01","South West","Torbay Council"]
[null,null,null,null,null,null,null,null,null,null,null,null,null,null,"Kings Caple Primary School","119795","2011-06-01","West Midlands","Herefordshire Council"]
[null,null,null,null,null,null,null,null,null,null,null,null,null,null,"Kings Heath Academy",124669,"2014-02-01","East Midlands","Northamptonshire County Council"]
[null,null,null,null,null,null,null,null,null,null,null,null,null,null,"Kings Houghton Middle School","121836","2012-09-01","East of England","Central Bedfordshire Council"]
[null,null,null,null,null,null,null,null,null,null,null,null,null,null,"Kings Langley School","123186","2012-12-01","East of England","Hertfordshire County Council"]
[null,null,null,null,null,null,null,null,null,null,null,null,null,null,"King's Leadership Academy","121989","2012-09-01","North West","Warrington Borough Council"]
[null,null,null,null,null,null,null,null,null,null,null,null,null,null,"King's Lynn Academy","119326","2010-09-01","East of England","Norfolk County Council"]
[null,null,null,null,null,null,null,null,null,null,null,null,null,null,"Kings Norton Girls School","119621","2011-04-01","West Midlands","Birmingham City Council"]
[null,null,null,null,null,null,null,null,null,null,null,null,null,null,"King's Oak Academy","120106","2011-09-01","South West","South Gloucestershire Council"]
[null,null,null,null,null,null,null,null,null,null,null,null,null,null,"Kings of Wessex School, The","119289","2011-06-01","South West","Somerset County Council"]
[null,null,null,null,null,null,null,null,null,null,null,null,null,null,"Kings Park Primary Academy","122852","2013-04-01","South West","Wiltshire Council"]
[null,null,null,null,null,null,null,null,null,null,null,null,null,null,"Kings Priory School","123100","2013-09-01","North East","North Tyneside Council"]
[null,null,null,null,null,null,null,null,null,null,null,null,null,null,"Kings Rise Community Primary School","122851","2012-11-01","West Midlands","Birmingham City Council"]
[null,null,null,null,null,null,null,null,null,null,null,null,null,null,"King's School - Hove","123319","2013-09-01","South East","Brighton and Hove City Council"]
[null,null,null,null,null,null,null,null,null,null,null,null,null,null,"King's School, The - Devon","119688","2011-04-01","South West","Devon County Council"]
[null,null,null,null,null,null,null,null,null,null,null,null,null,null,"King's School, The - Grantham","120166","2011-08-01","East Midlands","Lincolnshire County Council"]
[null,null,null,null,null,null,null,null,null,null,null,null,null,null,"King's School, The - Peterborough","119404","2011-01-01","East of England","Peterborough City Council"]
[null,null,null,null,null,null,null,null,null,null,null,null,null,null,"King's School, The - Wakefield","123220","2013-04-01","Yorkshire & Humberside","Wakefield Council"]
[null,null,null,null,null,null,null,null,null,null,null,null,null,null,"Kings Science Academy","120465","2011-09-01","Yorkshire & Humberside","Bradford Metropolitan District Council"]
[null,null,null,null,null,null,null,null,null,null,null,null,null,null,"Kings Sutton Primary School","124193","2013-09-01","East Midlands","Northamptonshire County Council"]
[null,null,null,null,null,null,null,null,null,null,null,null,null,null,"Kingsbridge Community College","119402","2011-01-01","South West","Devon County Council"]
[null,null,null,null,null,null,null,null,null,null,null,null,null,null,"Kingsbury High School","120732","2011-12-01T12:16:59","London","Brent London Borough Council"]
[null,null,null,null,null,null,null,null,null,null,null,null,null,null,"Kingsdale Foundation School","119361","2010-11-01","London","Southwark London Borough Council"]
[null,null,null,null,null,null,null,null,null,null,null,null,null,null,"Kingsdown School","120265","2011-08-01","South West","Swindon Borough Council"]
[null,null,null,null,null,null,null,null,null,null,null,null,null,null,"Kingshill Church School","122815","2013-04-01","South West","North Somerset District Council"]
[null,null,null,null,null,null,null,null,null,null,null,null,null,null,"Kingsley Academy - Hounslow","121991","2013-04-01","London","Hounslow London Borough Council"]
[null,null,null,null,null,null,null,null,null,null,null,null,null,null,"Kingsley School - Kettering","120656","2012-02-01","East Midlands","Northamptonshire County Council"]
[null,null,null,null,null,null,null,null,null,null,null,null,null,null,"Kingsmead Academy - Taunton","119540","2011-04-01","South West","Somerset County Council"]
[null,null,null,null,null,null,null,null,null,null,null,null,null,null,"Kingsmead School - Enfield","119288","2010-10-01","London","Enfield London Borough Council"]
[null,null,null,null,null,null,null,null,null,null,null,null,null,null,"Kingsmoor Primary School","122841","2012-12-01","East of England","Essex County Council"]
[null,null,null,null,null,null,null,null,null,null,null,null,null,null,"Kingsthorpe College","122371","2012-11-01T14:53:40","East Midlands","Northamptonshire County Council"]
[null,null,null,null,null,null,null,null,null,null,null,null,null,null,"Kingston Park Primary and Nursery School","122956","2012-12-01","East Midlands","Nottinghamshire County Council"]
[null,null,null,null,null,null,null,null,null,null,null,null,null,null,"Kingston School","120220","2011-08-01","East of England","Essex County Council"]
[null,null,null,null,null,null,null,null,null,null,null,null,null,null,"Kingstone and Thruxton Primary School","120426","2011-09-01","West Midlands","Herefordshire Council"]
[null,null,null,null,null,null,null,null,null,null,null,null,null,null,"Kingstone High School","120073","2011-08-01","West Midlands","Herefordshire Council"]
[null,null,null,null,null,null,null,null,null,null,null,null,null,null,"Kingswinford School & Science College, The","120520","2012-01-01","West Midlands","Dudley Metropolitan Borough Council"]
[null,null,null,null,null,null,null,null,null,null,null,null,null,null,"Kingswood Academy - Hull","122809","2013-07-01","Yorkshire & Humberside","Hull City Council"]
[null,null,null,null,null,null,null,null,null,null,null,null,null,null,"Kingswood Primary Academy - Corby","122684","2013-04-01","East Midlands","Northamptonshire County Council"]
[null,null,null,null,null,null,null,null,null,null,null,null,null,null,"Kingswood School, The - Corby","124835","2013-09-01","East Midlands","Northamptonshire County Council"]
[null,null,null,null,null,null,null,null,null,null,null,null,null,null,"Kirby Muxloe Primary School",126355,"2013-11-01","East Midlands","Leicestershire County Council"]
[null,null,null,null,null,null,null,null,null,null,null,null,null,null,"Kirby Primary School",124683,"2013-10-01","East of England","Essex County Council"]
[null,null,null,null,null,null,null,null,null,null,null,null,null,null,"Kirk Hallam Community Technology & Sports College","119485","2011-03-01","East Midlands","Derbyshire County Council"]
[null,null,null,null,null,null,null,null,null,null,null,null,null,null,"Kirk Sandall Infant School","122723","2012-11-01","Yorkshire & Humberside","Doncaster Metropolitan Borough Council"]
[null,null,null,null,null,null,null,null,null,null,null,null,null,null,"Kirkbie Kendal School","119686","2011-04-01","North West","Cumbria County Council"]
[null,null,null,null,null,null,null,null,null,null,null,null,null,null,"Kirkby College","121041","2012-08-01T12:43:15","East Midlands","Nottinghamshire County Council"]
[null,null,null,null,null,null,null,null,null,null,null,null,null,null,"Kirkby High School","124216","2013-09-01","North West","Knowsley Metropolitan Borough Council"]
[null,null,null,null,null,null,null,null,null,null,null,null,null,null,"Kirkby Stephen Grammar School","120107","2011-08-01","North West","Cumbria County Council"]
[null,null,null,null,null,null,null,null,null,null,null,null,null,null,"Kirkby-la-Thorpe Church of England Primary School, The",124736,"2013-12-01","East Midlands","Lincolnshire County Council"]
[null,null,null,null,null,null,null,null,null,null,null,null,null,null,"Knights Templar School, The","119626","2011-04-01","East of England","Hertfordshire County Council"]
[null,null,null,null,null,null,null,null,null,null,null,null,null,null,"Knightsfield School","122167","2012-08-01","East of England","Hertfordshire County Council"]
[null,null,null,null,null,null,null,null,null,null,null,null,null,null,"Knole Academy","119193","2010-09-01","South East","Kent County Council"]
[null,null,null,null,null,null,null,null,null,null,null,null,null,null,"Knottingley Church of England Voluntary Controlled Junior and Infant School","122738","2012-12-01","Yorkshire & Humberside","Wakefield Council"]
[null,null,null,null,null,null,null,null,null,null,null,null,null,null,"Knottingley England Lane Junior Infant and Nursery School",127205,"2013-12-01","Yorkshire & Humberside","Wakefield Council"]
[null,null,null,null,null,null,null,null,null,null,null,null,null,null,"Knowle Church of England Primary School","123878","2013-04-01","West Midlands","Solihull Metropolitan Borough Council"]
[null,null,null,null,null,null,null,null,null,null,null,null,null,null,"Knutsford High School","121163","2012-04-01","North West","Cheshire East Council"]
[null,null,null,null,null,null,null,null,null,null,null,null,null,null,"Krishna-Avanti Primary School - Harrow","122713","2012-09-01","London","Harrow London Borough Council"]
[null,null,null,null,null,null,null,null,null,null,null,null,null,null,"Krishna-Avanti Primary School - Leicester","120530","2011-09-01","East Midlands","Leicester City Council"]
[null,null,null,null,null,null,null,null,null,null,null,null,null,null,"Laceby Acres Primary School",128058,"2014-02-01","Yorkshire & Humberside","North East Lincolnshire Council"]
[null,null,null,null,null,null,null,null,null,null,null,null,null,null,"Lacey Green Primary School","120368","2011-09-01","North West","Cheshire East Council"]
[null,null,null,null,null,null,null,null,null,null,null,null,null,null,"Ladock CofE School",127543,"2013-12-01","South West","Cornwall Council"]
[null,null,null,null,null,null,null,null,null,null,null,null,null,null,"Lady Hawkins High School","120540","2011-11-01","West Midlands","Herefordshire Council"]
[null,null,null,null,null,null,null,null,null,null,null,null,null,null,"Lady Jane Grey Primary School","122816","2012-10-01","East Midlands","Leicestershire County Council"]
[null,null,null,null,null,null,null,null,null,null,null,null,null,null,"Lady Margaret School","122577","2012-09-01","London","Hammersmith and Fulham London Borough Council"]
[null,null,null,null,null,null,null,null,null,null,null,null,null,null,"Lady Seaward's Church of England Primary School","120523","2011-11-01","South West","Devon County Council"]
[null,null,null,null,null,null,null,null,null,null,null,null,null,null,"Ladybarn Primary School","124681","2013-09-01","North West","Manchester City Council"]
[null,null,null,null,null,null,null,null,null,null,null,null,null,null,"Ladygrove Park Primary School","123909","2013-06-01","South East","Oxfordshire County Council"]
[null,null,null,null,null,null,null,null,null,null,null,null,null,null,"Lakelands School, Sports and Language College, The","122587","2012-12-01","West Midlands","Shropshire Council"]
[null,null,null,null,null,null,null,null,null,null,null,null,null,null,"Lakeside Academy","124325","2013-04-01","West Midlands","Telford and Wrekin Council"]
[null,null,null,null,null,null,null,null,null,null,null,null,null,null,"Lambeth Academy","118624","2004-09-01","London","Lambeth London Borough Council"]
[null,null,null,null,null,null,null,null,null,null,null,null,null,null,"Lampton School","119270","2010-09-01","London","Hounslow London Borough Council"]
[null,null,null,null,null,null,null,null,null,null,null,null,null,null,"Lancaster Girls' Grammar School","119412","2011-01-01","North West","Lancashire County Council"]
[null,null,null,null,null,null,null,null,null,null,null,null,null,null,"Lancaster Royal Grammar School","119751","2011-04-15","North West","Lancashire County Council"]
[null,null,null,null,null,null,null,null,null,null,null,null,null,null,"Landau Forte Academy - Amington","119203","2010-09-01","West Midlands","Staffordshire County Council"]
[null,null,null,null,null,null,null,null,null,null,null,null,null,null,"Landau Forte Academy - Moorhead","121918","2012-09-01","East Midlands","Derby City Council"]
[null,null,null,null,null,null,null,null,null,null,null,null,null,null,"Landau Forte Academy - QEMS","120146","2011-09-01","West Midlands","Staffordshire County Council"]
[null,null,null,null,null,null,null,null,null,null,null,null,null,null,"Landau Forte Academy Greenacres","123267","2013-09-01","West Midlands","Staffordshire County Council"]
[null,null,null,null,null,null,null,null,null,null,null,null,null,null,"Landau Forte College - Derby","118636","2006-09-01","East Midlands","Derby City Council"]
[null,null,null,null,null,null,null,null,null,null,null,null,null,null,"Landulph School",127406,"2014-01-01","South West","Cornwall Council"]
[null,null,null,null,null,null,null,null,null,null,null,null,null,null,"Langdale Free School","123320","2013-09-01","North West","Blackpool Council"]
[null,null,null,null,null,null,null,null,null,null,null,null,null,null,"Langdon Academy",127703,"2014-01-01","London","Newham London Borough Council"]
[null,null,null,null,null,null,null,null,null,null,null,null,null,null,"Langer Primary School","121077","2012-05-01","East of England","Suffolk County Council"]
[null,null,null,null,null,null,null,null,null,null,null,null,null,null,"Langham CofE (Controlled) Primary School","124624","2013-07-01","East Midlands","Rutland County Council"]
[null,null,null,null,null,null,null,null,null,null,null,null,null,null,"Langley Academy - Slough","118632","2008-09-14","South East","Slough Borough Council"]
[null,null,null,null,null,null,null,null,null,null,null,null,null,null,"Langley Grammar School","119554","2011-04-01","South East","Slough Borough Council"]
[null,null,null,null,null,null,null,null,null,null,null,null,null,null,"Langley Hall Primary Academy","120461","2011-09-01","South East","Slough Borough Council"]
[null,null,null,null,null,null,null,null,null,null,null,null,null,null,"Langley Park School for Boys","119544","2011-04-01","London","Bromley London Borough Council"]
[null,null,null,null,null,null,null,null,null,null,null,null,null,null,"Langley Park School for Girls","120006","2011-08-01","London","Bromley London Borough Council"]
[null,null,null,null,null,null,null,null,null,null,null,null,null,null,"Langley School - Solihull","120007","2011-08-01","West Midlands","Solihull Metropolitan Borough Council"]
[null,null,null,null,null,null,null,null,null,null,null,null,null,null,"Langmoor Primary School Oadby","124538","2013-07-01","East Midlands","Leicestershire County Council"]
[null,null,null,null,null,null,null,null,null,null,null,null,null,null,"Langtons Junior School","124242","2013-04-01","London","Havering London Borough Council"]
[null,null,null,null,null,null,null,null,null,null,null,null,null,null,"Langtree School","120994","2012-04-01","South East","Oxfordshire County Council"]
[null,null,null,null,null,null,null,null,null,null,null,null,null,null,"Lansdowne Primary Academy","121152","2012-04-01","East of England","Thurrock Borough Council"]
[null,null,null,null,null,null,null,null,null,null,null,null,null,null,"Lapford Community Primary School","120869","2012-01-01","South West","Devon County Council"]
[null,null,null,null,null,null,null,null,null,null,null,null,null,null,"Lark Hall Infant and Nursery Academy",124782,"2014-01-01","West Midlands","Staffordshire County Council"]
[null,null,null,null,null,null,null,null,null,null,null,null,null,null,"Lark Rise Lower School","119290","2010-10-01","East of England","Central Bedfordshire Council"]
[null,null,null,null,null,null,null,null,null,null,null,null,null,null,"Larkman Primary School","124572","2013-09-01","East of England","Norfolk County Council"]
[null,null,null,null,null,null,null,null,null,null,null,null,null,null,"Latchmere School","122414","2012-09-01","London","Royal Borough of Kingston Upon Thames Council"]
[null,null,null,null,null,null,null,null,null,null,null,null,null,null,"Launceston College","123169","2013-01-01","South West","Cornwall Council"]
[null,null,null,null,null,null,null,null,null,null,null,null,null,null,"Launde Primary School","124350","2013-06-01","East Midlands","Leicestershire County Council"]
[null,null,null,null,null,null,null,null,null,null,null,null,null,null,"Laurel Lane Primary School","122935","2013-04-01","London","Hillingdon London Borough Council"]
[null,null,null,null,null,null,null,null,null,null,null,null,null,null,"Lavington School","119400","2011-01-01","South West","Wiltshire Council"]
[null,null,null,null,null,null,null,null,null,null,null,null,null,null,"Lea Forest Academy","122574","2012-12-01","West Midlands","Birmingham City Council"]
[null,null,null,null,null,null,null,null,null,null,null,null,null,null,"LeAF Studio School, The","122885","2012-09-01","South West","Bournemouth Borough Council"]
[null,null,null,null,null,null,null,null,null,null,null,null,null,null,"Leamington Primary and Nursery Academy","124824","2013-09-01","East Midlands","Nottinghamshire County Council"]
[null,null,null,null,null,null,null,null,null,null,null,null,null,null,"Lee Chapel Primary School","120108","2011-08-01","East of England","Essex County Council"]
[null,null,null,null,null,null,null,null,null,null,null,null,null,null,"Leeds Jewish Free School","123321","2013-09-01","Yorkshire & Humberside","Leeds City Council"]
[null,null,null,null,null,null,null,null,null,null,null,null,null,null,"Leeds West Academy","119091","2009-09-01","Yorkshire & Humberside","Leeds City Council"]
[null,null,null,null,null,null,null,null,null,null,null,null,null,null,"Lees Brook Community Sports College","120095","2011-09-01","East Midlands","Derby City Council"]
[null,null,null,null,null,null,null,null,null,null,null,null,null,null,"Leigh Primary School",127383,"2014-01-01","West Midlands","Birmingham City Council"]
[null,null,null,null,null,null,null,null,null,null,null,null,null,null,"Leigh Technology Academy","118686","2007-09-01","South East","Kent County Council"]
[null,null,null,null,null,null,null,null,null,null,null,null,null,null,"Leigh Westleigh Methodist Primary School","124692","2013-09-01","North West","Wigan Metropolitan Borough Council"]
[null,null,null,null,null,null,null,null,null,null,null,null,null,null,"Leighfield Primary School","123260","2013-04-01","East Midlands","Rutland County Council"]
[null,null,null,null,null,null,null,null,null,null,null,null,null,null,"Leighton Primary School","124179","2013-06-01","North West","Cheshire East Council"]
[null,null,null,null,null,null,null,null,null,null,null,null,null,null,"Lena Gardens Primary School","129583","2014-03-01","London","Hammersmith and Fulham London Borough Council"]
[null,null,null,null,null,null,null,null,null,null,null,null,null,null,"Lerryn CofE Primary School","123078","2012-12-01","South West","Cornwall Council"]
[null,null,null,null,null,null,null,null,null,null,null,null,null,null,"Lethbridge Primary School","120191","2011-08-01","South West","Swindon Borough Council"]
[null,null,null,null,null,null,null,null,null,null,null,null,null,null,"Leventhorpe School, The","120156","2011-08-01","East of England","Hertfordshire County Council"]
[null,null,null,null,null,null,null,null,null,null,null,null,null,null,"Lever Edge Primary Academy","119392","2011-01-01","North West","Bolton Metropolitan Borough Council"]
[null,null,null,null,null,null,null,null,null,null,null,null,null,null,"Leverington Primary Academy","119585","2011-04-01","East of England","Cambridgeshire County Council"]
[null,null,null,null,null,null,null,null,null,null,null,null,null,null,"Lewannick Community Primary School",129552,"2014-02-01","South West","Cornwall Council"]
[null,null,null,null,null,null,null,null,null,null,null,null,null,null,"Leysland High School","122377","2012-08-01","East Midlands","Leicestershire County Council"]
[null,null,null,null,null,null,null,null,null,null,null,null,null,null,"Lickhill Primary School","120615","2012-02-01","West Midlands","Worcestershire County Council"]
[null,null,null,null,null,null,null,null,null,null,null,null,null,null,"Light Hall School Specialist Mathematics and Computing College","120231","2011-08-01","West Midlands","Solihull Metropolitan Borough Council"]
[null,null,null,null,null,null,null,null,null,null,null,null,null,null,"Lighthouse School","122534","2012-09-01","Yorkshire & Humberside","Leeds City Council"]
[null,null,null,null,null,null,null,null,null,null,null,null,null,null,"Lime Tree Primary School","126289","2013-08-01","South East","Surrey County Council"]
[null,null,null,null,null,null,null,null,null,null,null,null,null,null,"Limehurst Academy","120098","2011-09-01","East Midlands","Leicestershire County Council"]
[null,null,null,null,null,null,null,null,null,null,null,null,null,null,"Lincoln Carlton Academy",126508,"2013-10-01","East Midlands","Lincolnshire County Council"]
[null,null,null,null,null,null,null,null,null,null,null,null,null,null,"Lincoln Castle Academy","119669","2011-04-01","East Midlands","Lincolnshire County Council"]
[null,null,null,null,null,null,null,null,null,null,null,null,null,null,"Lincoln Christ's Hospital School","120408","2011-09-01","East Midlands","Lincolnshire County Council"]
[null,null,null,null,null,null,null,null,null,null,null,null,null,null,"Lincoln Manor Leas Junior School, The","124196","2013-04-01","East Midlands","Lincolnshire County Council"]
[null,null,null,null,null,null,null,null,null,null,null,null,null,null,"Lincroft Middle School","119471","2011-02-01","East of England","Bedford Borough Council"]
[null,null,null,null,null,null,null,null,null,null,null,null,null,null,"Lindley Junior School","120547","2011-10-01","Yorkshire & Humberside","Kirklees Metropolitan Council"]
[null,null,null,null,null,null,null,null,null,null,null,null,null,null,"Lings Primary School","122490","2012-11-01","East Midlands","Northamptonshire County Council"]
[null,null,null,null,null,null,null,null,null,null,null,null,null,null,"Links Education Support Centre, The","122706","2013-02-01","East of England","Hertfordshire County Council"]
[null,null,null,null,null,null,null,null,null,null,null,null,null,null,"Linslade Middle School","119759","2011-06-01","East of England","Central Bedfordshire Council"]
[null,null,null,null,null,null,null,null,null,null,null,null,null,null,"Linton Village College","119451","2011-02-01","East of England","Cambridgeshire County Council"]
[null,null,null,null,null,null,null,null,null,null,null,null,null,null,"Lipson Cooperative Academy Trust","119683","2011-04-01","South West","Plymouth City Council"]
[null,null,null,null,null,null,null,null,null,null,null,null,null,null,"Lisle Marsden Church of England Academy","120559","2011-11-01","Yorkshire & Humberside","North East Lincolnshire Council"]
[null,null,null,null,null,null,null,null,null,null,null,null,null,null,"Little Gonerby Church of England Infant School, The","122711","2012-10-01","East Midlands","Lincolnshire County Council"]
[null,null,null,null,null,null,null,null,null,null,null,null,null,null,"Little Mead Primary School","122769","2012-11-01","South West","Bristol City Council"]
[null,null,null,null,null,null,null,null,null,null,null,null,null,null,"Little Reddings Primary School","121208","2012-02-01","East of England","Hertfordshire County Council"]
[null,null,null,null,null,null,null,null,null,null,null,null,null,null,"Littledown School",124730,"2013-10-01","South East","Slough Borough Council"]
[null,null,null,null,null,null,null,null,null,null,null,null,null,null,"Littlehampton Academy, The","118853","2009-09-01","South East","West Sussex County Council"]
[null,null,null,null,null,null,null,null,null,null,null,null,null,null,"Littletown Primary School","120849","2011-12-01","South West","Devon County Council"]
[null,null,null,null,null,null,null,null,null,null,null,null,null,null,"Littleworth Grange Academy","121939","2013-09-01","Yorkshire & Humberside","Barnsley Metropolitan Borough Council"]
[null,null,null,null,null,null,null,null,null,null,null,null,null,null,"Liverpool College","122814","2013-09-01","North West","Liverpool City Council"]
[null,null,null,null,null,null,null,null,null,null,null,null,null,null,"Liverpool Life Sciences UTC","122158","2013-09-01","North West","Liverpool City Council"]
[null,null,null,null,null,null,null,null,null,null,null,null,null,null,"Llangrove CofE Primary School","122821","2013-02-01","West Midlands","Herefordshire Council"]
[null,null,null,null,null,null,null,null,null,null,null,null,null,null,"Loatlands Primary School","124516","2013-09-01","East Midlands","Northamptonshire County Council"]
[null,null,null,null,null,null,null,null,null,null,null,null,null,null,"Lode Heath School","120008","2011-08-01","West Midlands","Solihull Metropolitan Borough Council"]
[null,null,null,null,null,null,null,null,null,null,null,null,null,null,"Lodge Park Academy","120943","2013-01-01","East Midlands","Northamptonshire County Council"]
[null,null,null,null,null,null,null,null,null,null,null,null,null,null,"Lofthouse Gate Primary School","124778","2013-09-01","Yorkshire & Humberside","Wakefield Council"]
[null,null,null,null,null,null,null,null,null,null,null,null,null,null,"London Academy - Barnet","118396","2004-09-01","London","Barnet London Borough Council"]
[null,null,null,null,null,null,null,null,null,null,null,null,null,null,"London Academy of Excellence - Newham","121994","2012-09-01","London","Newham London Borough Council"]
[null,null,null,null,null,null,null,null,null,null,null,null,null,null,"London Oratory School, The","120157","2011-08-01","London","Hammersmith and Fulham London Borough Council"]
[null,null,null,null,null,null,null,null,null,null,null,null,null,null,"Long Bennington Church of England Primary School","121040","2012-04-01","East Midlands","Lincolnshire County Council"]
[null,null,null,null,null,null,null,null,null,null,null,null,null,null,"Long Eaton School, The","119650","2011-04-01","East Midlands","Derbyshire County Council"]
[null,null,null,null,null,null,null,null,null,null,null,null,null,null,"Long Field School","122654","2012-09-01","East Midlands","Leicestershire County Council"]
[null,null,null,null,null,null,null,null,null,null,null,null,null,null,"Longcot and Fernham Church of England Primary School",124532,"2013-11-01","South East","Oxfordshire County Council"]
[null,null,null,null,null,null,null,null,null,null,null,null,null,null,"Longdean School","120110","2011-08-01","East of England","Hertfordshire County Council"]
[null,null,null,null,null,null,null,null,null,null,null,null,null,null,"Longfield Academy - Kent","118625","2008-09-01","South East","Kent County Council"]
[null,null,null,null,null,null,null,null,null,null,null,null,null,null,"Longfield Academy of Sport - Darlington","120222","2011-08-01","North East","Darlington Borough Council"]
[null,null,null,null,null,null,null,null,null,null,null,null,null,null,"Longhill Primary School",124261,"2013-10-01","Yorkshire & Humberside","Hull City Council"]
[null,null,null,null,null,null,null,null,null,null,null,null,null,null,"Longley Primary School","124615","2013-09-01","Yorkshire & Humberside","Sheffield City Council"]
[null,null,null,null,null,null,null,null,null,null,null,null,null,null,"Longsands College","119992","2011-08-01","East of England","Cambridgeshire County Council"]
[null,null,null,null,null,null,null,null,null,null,null,null,null,null,"Longsight Community Primary","123322","2013-09-01","North West","Manchester City Council"]
[null,null,null,null,null,null,null,null,null,null,null,null,null,null,"Longspee School","124205","2013-09-01","South West","Poole Borough Council"]
[null,null,null,null,null,null,null,null,null,null,null,null,null,null,"Looe Community School","120828","2012-02-01","South West","Cornwall Council"]
[null,null,null,null,null,null,null,null,null,null,null,null,null,null,"Looe Primary School",125175,"2013-11-01","South West","Cornwall Council"]
[null,null,null,null,null,null,null,null,null,null,null,null,null,null,"Lord Lawson of Beamish Academy","120758","2012-03-01T11:00:19","North East","Gateshead Council"]
[null,null,null,null,null,null,null,null,null,null,null,null,null,null,"Lord Scudamore Foundation School","119796","2011-06-01","West Midlands","Herefordshire Council"]
[null,null,null,null,null,null,null,null,null,null,null,null,null,null,"Lord Williams's School","122280","2012-09-01","South East","Oxfordshire County Council"]
[null,null,null,null,null,null,null,null,null,null,null,null,null,null,"Lordswood Boys' School - Birmingham","122557","2013-01-01","West Midlands","Birmingham City Council"]
[null,null,null,null,null,null,null,null,null,null,null,null,null,null,"Lordswood Girls School and Sixth Form Centre - Birmingham","119622","2011-04-01","West Midlands","Birmingham City Council"]
[null,null,null,null,null,null,null,null,null,null,null,null,null,null,"Lordswood School - Chatham",124659,"2013-11-01","South East","Medway Council"]
[null,null,null,null,null,null,null,null,null,null,null,null,null,null,"Loreto College - St. Albans","121920","2012-05-01T14:05:41","East of England","Hertfordshire County Council"]
[null,null,null,null,null,null,null,null,null,null,null,null,null,null,"Loreto Grammar School - Trafford","122561","2012-08-01T12:24:43","North West","Trafford Borough Council"]
[null,null,null,null,null,null,null,null,null,null,null,null,null,null,"Lostock Hall Community High School and Arts College","120111","2011-08-01","North West","Lancashire County Council"]
[null,null,null,null,null,null,null,null,null,null,null,null,null,null,"Loughton School","124158","2013-07-01","South East","Milton Keynes Council"]
[null,null,null,null,null,null,null,null,null,null,null,null,null,null,"Lound Infant School","124315","2013-07-01","Yorkshire & Humberside","Sheffield City Council"]
[null,null,null,null,null,null,null,null,null,null,null,null,null,null,"Lound Junior School","124298","2013-07-01","Yorkshire & Humberside","Sheffield City Council"]
[null,null,null,null,null,null,null,null,null,null,null,null,null,null,"Louth Kidgate Primary School","121871","2012-09-01","East Midlands","Lincolnshire County Council"]
[null,null,null,null,null,null,null,null,null,null,null,null,null,null,"Lowbrook Primary School","119659","2011-04-01","South East","Royal Borough of Windsor and Maidenhead"]
[null,null,null,null,null,null,null,null,null,null,null,null,null,null,"Loxford School of Science and Technology",126527,"2013-12-01","London","Redbridge London Borough Council"]
[null,null,null,null,null,null,null,null,null,null,null,null,null,null,"Lubenham All Saints Church of England Primary School","124556","2013-07-01","East Midlands","Leicestershire County Council"]
[null,null,null,null,null,null,null,null,null,null,null,null,null,null,"Luddendenfoot Junior and Infant School","120764","2011-12-01","Yorkshire & Humberside","Calderdale Metropolitan Borough Council"]
[null,null,null,null,null,null,null,null,null,null,null,null,null,null,"Luddenham School","121132","2012-04-01","South East","Kent County Council"]
[null,null,null,null,null,null,null,null,null,null,null,null,null,null,"Ludgvan Community Primary School","120395","2011-09-01","South West","Cornwall Council"]
[null,null,null,null,null,null,null,null,null,null,null,null,null,null,"Ludlow Infant School","122604","2012-09-01","South East","Southampton City Council"]
[null,null,null,null,null,null,null,null,null,null,null,null,null,null,"Ludlow Junior School","122948","2012-12-01","South East","Southampton City Council"]
[null,null,null,null,null,null,null,null,null,null,null,null,null,null,"Lugwardine Primary School","121087","2012-04-01","West Midlands","Herefordshire Council"]
[null,null,null,null,null,null,null,null,null,null,null,null,null,null,"Lumbertubs Primary School","122254","2012-11-01","East Midlands","Northamptonshire County Council"]
[null,null,null,null,null,null,null,null,null,null,null,null,null,null,"Lutterworth College","121464","2012-06-01","East Midlands","Leicestershire County Council"]
[null,null,null,null,null,null,null,null,null,null,null,null,null,null,"Lutterworth High School","120115","2011-08-01","East Midlands","Leicestershire County Council"]
[null,null,null,null,null,null,null,null,null,null,null,null,null,null,"Lydiard Park Academy","120264","2011-08-01","South West","Swindon Borough Council"]
[null,null,null,null,null,null,null,null,null,null,null,null,null,null,"Lymm High Voluntary Controlled School","122502","2012-09-01","North West","Warrington Borough Council"]
[null,null,null,null,null,null,null,null,null,null,null,null,null,null,"Lynch Hill (Foundation Primary) School","120010","2011-08-01","South East","Slough Borough Council"]
[null,null,null,null,null,null,null,null,null,null,null,null,null,null,"Lyndhurst Junior School","122991","2013-04-01","South East","Portsmouth City Council"]
[null,null,null,null,null,null,null,null,null,null,null,null,null,null,"Lynn Grove High School","120607","2011-10-01","East of England","Norfolk County Council"]
[null,null,null,null,null,null,null,null,null,null,null,null,null,null,"Lynsted & Norton Primary School","120374","2011-09-01","South East","Kent County Council"]
[null,null,null,null,null,null,null,null,null,null,null,null,null,null,"Lyons Hall Primary School","121080","2012-04-01","East of England","Essex County Council"]
[null,null,null,null,null,null,null,null,null,null,null,null,null,null,"Mablethorpe Community Primary and Nursery School","121873","2012-09-01","East Midlands","Lincolnshire County Council"]
[null,null,null,null,null,null,null,null,null,null,null,null,null,null,"Macaulay School","122794","2012-11-01","Yorkshire & Humberside","North East Lincolnshire Council"]
[null,null,null,null,null,null,null,null,null,null,null,null,null,null,"Macclesfield Academy, The","120064","2011-09-01","North West","Cheshire East Council"]
[null,null,null,null,null,null,null,null,null,null,null,null,null,null,"Macmillan Academy","118397","2005-09-01","North East","Middlesbrough Council"]
[null,null,null,null,null,null,null,null,null,null,null,null,null,null,"Madeley Academy","119112","2007-04-01","West Midlands","Telford and Wrekin Council"]
[null,null,null,null,null,null,null,null,null,null,null,null,null,null,"Madeley High School","124490","2013-09-01","West Midlands","Staffordshire County Council"]
[null,null,null,null,null,null,null,null,null,null,null,null,null,null,"Magdalen College School","122354","2013-01-01","East Midlands","Northamptonshire County Council"]
[null,null,null,null,null,null,null,null,null,null,null,null,null,null,"Maghull High School","120488","2011-10-01","North West","Sefton Metropolitan Borough Council"]
[null,null,null,null,null,null,null,null,null,null,null,null,null,null,"Magna Academy","123952","2013-09-01","South West","Poole Borough Council"]
[null,null,null,null,null,null,null,null,null,null,null,null,null,null,"Magna Carta School, The","120116","2011-08-01","South East","Surrey County Council"]
[null,null,null,null,null,null,null,null,null,null,null,null,null,null,"Magnus CofE School",127677,"2014-02-01","East Midlands","Nottinghamshire County Council"]
[null,null,null,null,null,null,null,null,null,null,null,null,null,null,"Maharishi School","120462","2011-09-01","North West","Lancashire County Council"]
[null,null,null,null,null,null,null,null,null,null,null,null,null,null,"Maiden Beech Middle School","120118","2011-08-01","South West","Somerset County Council"]
[null,null,null,null,null,null,null,null,null,null,null,null,null,null,"Maiden Erlegh School","119547","2011-04-01","South East","Wokingham Borough Council"]
[null,null,null,null,null,null,null,null,null,null,null,null,null,null,"Malcolm Arnold Academy","119331","2010-09-01","East Midlands","Northamptonshire County Council"]
[null,null,null,null,null,null,null,null,null,null,null,null,null,null,"Malcolm Sargent Primary School, The","120735","2011-12-01","East Midlands","Lincolnshire County Council"]
[null,null,null,null,null,null,null,null,null,null,null,null,null,null,"Malmesbury Church of England Primary School","121117","2013-06-01","South West","Wiltshire Council"]
[null,null,null,null,null,null,null,null,null,null,null,null,null,null,"Malmesbury School","120308","2011-08-17","South West","Wiltshire Council"]
[null,null,null,null,null,null,null,null,null,null,null,null,null,null,"Maltby Academy","119142","2010-01-04","Yorkshire & Humberside","Rotherham Metropolitan Borough Council"]
[null,null,null,null,null,null,null,null,null,null,null,null,null,null,"Maltby Redwood Academy",127292,"2014-02-01","Yorkshire & Humberside","Rotherham Metropolitan Borough Council"]
[null,null,null,null,null,null,null,null,null,null,null,null,null,null,"Maltings Academy","118666","2008-09-04","East of England","Essex County Council"]
[null,null,null,null,null,null,null,null,null,null,null,null,null,null,"Maltings Free College, The","123356","2013-09-01","Yorkshire & Humberside","Calderdale Metropolitan Borough Council"]
[null,null,null,null,null,null,null,null,null,null,null,null,null,null,"Malvin's Close Primary School","124147","2013-06-01","North East","Northumberland County Council"]
[null,null,null,null,null,null,null,null,null,null,null,null,null,null,"Manaccan Primary School","126513","2014-03-01","South West ","Cornwall Council"]
[null,null,null,null,null,null,null,null,null,null,null,null,null,null,"Manchester Academy","119074","2003-09-01","North West","Manchester City Council"]
[null,null,null,null,null,null,null,null,null,null,null,null,null,null,"Manchester Communication Academy","119171","2010-09-01","North West","Manchester City Council"]
[null,null,null,null,null,null,null,null,null,null,null,null,null,null,"Manchester Creative and Media Academy (Boys)","119149","2009-09-04","North West","Manchester City Council"]
[null,null,null,null,null,null,null,null,null,null,null,null,null,null,"Manchester Creative and Media Academy (Girls)","119148","2009-09-04","North West","Manchester City Council"]
[null,null,null,null,null,null,null,null,null,null,null,null,null,null,"Manchester Creative Learning Academy","120496","2012-09-01","North West","Manchester City Council"]
[null,null,null,null,null,null,null,null,null,null,null,null,null,null,"Manchester Enterprise Academy","118890","2009-09-07","North West","Manchester City Council"]
[null,null,null,null,null,null,null,null,null,null,null,null,null,null,"Manchester Health Academy","118891","2009-09-07","North West","Manchester City Council"]
[null,null,null,null,null,null,null,null,null,null,null,null,null,null,"Mandeville Primary School","123179","2013-01-01","East of England","Hertfordshire County Council"]
[null,null,null,null,null,null,null,null,null,null,null,null,null,null,"Manningtree High School","121170","2012-03-01","East of England","Essex County Council"]
[null,null,null,null,null,null,null,null,null,null,null,null,null,null,"Manor Academy, The - Mansfield","120158","2011-08-01","East Midlands","Nottinghamshire County Council"]
[null,null,null,null,null,null,null,null,null,null,null,null,null,null,"Manor Church of England Academy Trust","119567","2011-04-01","Yorkshire & Humberside","City of York Council"]
[null,null,null,null,null,null,null,null,null,null,null,null,null,null,"Manor CofE VC Primary School, The","122796","2012-09-01","South West","Wiltshire Council"]
[null,null,null,null,null,null,null,null,null,null,null,null,null,null,"Manor Court Community Primary School","123849","2013-04-01","South West","Somerset County Council"]
[null,null,null,null,null,null,null,null,null,null,null,null,null,null,"Manor Croft Academy","122426","2013-09-01","Yorkshire & Humberside","Kirklees Metropolitan Council"]
[null,null,null,null,null,null,null,null,null,null,null,null,null,null,"Manor High School - Oadby","120120","2011-08-01","East Midlands","Leicestershire County Council"]
[null,null,null,null,null,null,null,null,null,null,null,null,null,null,"Manor Leas Infants School","122137","2012-06-01","East Midlands","Lincolnshire County Council"]
[null,null,null,null,null,null,null,null,null,null,null,null,null,null,"Manor Oak Primary School",125184,"2013-12-01","London","Bromley London Borough Council"]
[null,null,null,null,null,null,null,null,null,null,null,null,null,null,"Manor School - Didcot","123897","2013-06-01","South East","Oxfordshire County Council"]
[null,null,null,null,null,null,null,null,null,null,null,null,null,null,"Manor School and Sports College - Wellingborough","120606","2011-11-01","East Midlands","Northamptonshire County Council"]
[null,null,null,null,null,null,null,null,null,null,null,null,null,null,"Mansel Primary School","122653","2013-04-01","Yorkshire & Humberside","Sheffield City Council"]
[null,null,null,null,null,null,null,null,null,null,null,null,null,null,"Mansfield Green Academy","122848","2013-01-01","West Midlands","Birmingham City Council"]
[null,null,null,null,null,null,null,null,null,null,null,null,null,null,"Mansfield Primary Academy","122494","2012-09-01","East Midlands","Nottinghamshire County Council"]
[null,null,null,null,null,null,null,null,null,null,null,null,null,null,"Manston St James Church of England Primary School","122162","2012-10-01","Yorkshire & Humberside","Leeds City Council"]
[null,null,null,null,null,null,null,null,null,null,null,null,null,null,"Maple Court Primary School","122487","2013-06-01","West Midlands","Stoke on Trent City Council"]
[null,null,null,null,null,null,null,null,null,null,null,null,null,null,"Maplefields School","120716","2012-09-01","East Midlands","Northamptonshire County Council"]
[null,null,null,null,null,null,null,null,null,null,null,null,null,null,"Maplesden Noakes School, The","120854","2012-02-01","South East","Kent County Council"]
[null,null,null,null,null,null,null,null,null,null,null,null,null,null,"Marchbank Free School","123397","2013-09-01","North East","Darlington Borough Council"]
[null,null,null,null,null,null,null,null,null,null,null,null,null,null,"Marches School and Technology College, The","119979","2011-08-01","West Midlands","Shropshire Council"]
[null,null,null,null,null,null,null,null,null,null,null,null,null,null,"Marden Lodge Primary School - Caterham","124747","2013-09-01","South East","Surrey County Council"]
[null,null,null,null,null,null,null,null,null,null,null,null,null,null,"Marden Primary School - Marden",127115,"2014-01-01","West Midlands","Herefordshire Council"]
[null,null,null,null,null,null,null,null,null,null,null,null,null,null,"Margaret Beaufort Middle School and Arts College","119475","2011-02-01","East of England","Bedford Borough Council"]
[null,null,null,null,null,null,null,null,null,null,null,null,null,null,"Marine Academy Plymouth","119222","2010-09-01","South West","Plymouth City Council"]
[null,null,null,null,null,null,null,null,null,null,null,null,null,null,"Marine Academy Primary (Map2)","123324","2013-09-01","South West","Plymouth City Council"]
[null,null,null,null,null,null,null,null,null,null,null,null,null,null,"Marish Primary School","122065","2012-06-01","South East","Slough Borough Council"]
[null,null,null,null,null,null,null,null,null,null,null,null,null,null,"Mark Hall Academy","122431","2013-09-01","East of England","Essex County Council"]
[null,null,null,null,null,null,null,null,null,null,null,null,null,null,"Mark Rutherford School","123075","2013-01-01","East of England","Bedford Borough Council"]
[null,null,null,null,null,null,null,null,null,null,null,null,null,null,"Market Bosworth High School","121956","2012-05-01","East Midlands","Leicestershire County Council"]
[null,null,null,null,null,null,null,null,null,null,null,null,null,null,"Marlborough Church of England School, The","122590","2012-10-01","South East","Oxfordshire County Council"]
[null,null,null,null,null,null,null,null,null,null,null,null,null,null,"Marlborough Road Academy","120942","2012-09-01","North West","Salford City Council"]
[null,null,null,null,null,null,null,null,null,null,null,null,null,null,"Marlborough Science Academy, The","121214","2012-04-01","East of England","Hertfordshire County Council"]
[null,null,null,null,null,null,null,null,null,null,null,null,null,null,"Marling School","120123","2011-08-01","South West","Gloucestershire County Council"]
[null,null,null,null,null,null,null,null,null,null,null,null,null,null,"Marlowe Academy","118398","2005-09-01","South East","Kent County Council"]
[null,null,null,null,null,null,null,null,null,null,null,null,null,null,"Marsh Academy","118626","2007-09-01","South East","Kent County Council"]
[null,null,null,null,null,null,null,null,null,null,null,null,null,null,"Marston Vale Middle School","122735","2013-01-01","East of England","Bedford Borough Council"]
[null,null,null,null,null,null,null,null,null,null,null,null,null,null,"Martham Foundation Primary School and Nursery","119384","2010-12-01","East of England","Norfolk County Council"]
[null,null,null,null,null,null,null,null,null,null,null,null,null,null,"Martin High School","121032","2012-02-01","East Midlands","Leicestershire County Council"]
[null,null,null,null,null,null,null,null,null,null,null,null,null,null,"Mary Rose School",123241,"2013-11-01","South East","Portsmouth City Council"]
[null,null,null,null,null,null,null,null,null,null,null,null,null,null,"Maryhill Primary School","125183","2013-09-01","West Midlands","Staffordshire County Council"]
[null,null,null,null,null,null,null,null,null,null,null,null,null,null,"Mascalls School","119847","2011-07-01","South East","Kent County Council"]
[null,null,null,null,null,null,null,null,null,null,null,null,null,null,"Matchborough First School",126349,"2013-11-01","West Midlands","Worcestershire County Council"]
[null,null,null,null,null,null,null,null,null,null,null,null,null,null,"Matthew Arnold School, The","120819","2012-09-01","South East","Surrey County Council"]
[null,null,null,null,null,null,null,null,null,null,null,null,null,null,"Maybury Primary School",124241,"2013-10-01","Yorkshire & Humberside","Hull City Council"]
[null,null,null,null,null,null,null,null,null,null,null,null,null,null,"Mayfield Grammar","120867","2012-02-01","South East","Kent County Council"]
[null,null,null,null,null,null,null,null,null,null,null,null,null,null,"Mayflower Community Academy","123103","2013-09-01","South West","Plymouth City Council"]
[null,null,null,null,null,null,null,null,null,null,null,null,null,null,"Mayflower High School","120048","2011-08-01","East of England","Essex County Council"]
[null,null,null,null,null,null,null,null,null,null,null,null,null,null,"Mead Academy Trust, The","121106","2012-05-01","South West","Wiltshire Council"]
[null,null,null,null,null,null,null,null,null,null,null,null,null,null,"Meadow Community Primary School, The","121890","2012-06-01","East Midlands","Leicestershire County Council"]
[null,null,null,null,null,null,null,null,null,null,null,null,null,null,"Meadow Park Academy","121899","2012-09-01","South East","Reading Borough Council"]
[null,null,null,null,null,null,null,null,null,null,null,null,null,null,"Meadowdale Middle School","120868","2012-04-01","North East","Northumberland County Council"]
[null,null,null,null,null,null,null,null,null,null,null,null,null,null,"Meadowdale Primary School","122092","2012-07-01","East Midlands","Leicestershire County Council"]
[null,null,null,null,null,null,null,null,null,null,null,null,null,null,"Meadowhead School","121019","2012-08-01","Yorkshire & Humberside","Sheffield City Council"]
[null,null,null,null,null,null,null,null,null,null,null,null,null,null,"Measham Church of England Primary School","123060","2012-12-01","East Midlands","Leicestershire County Council"]
[null,null,null,null,null,null,null,null,null,null,null,null,null,null,"Meden School and Technology College, The","122396","2012-09-01","East Midlands","Nottinghamshire County Council"]
[null,null,null,null,null,null,null,null,null,null,null,null,null,null,"Medmerry Primary School","120375","2011-09-01","South East","West Sussex County Council"]
[null,null,null,null,null,null,null,null,null,null,null,null,null,null,"Melbourn Village College","120478","2011-10-01","East of England","Cambridgeshire County Council"]
[null,null,null,null,null,null,null,null,null,null,null,null,null,null,"Melior Community Academy","122636","2013-01-01","Yorkshire & Humberside","North Lincolnshire Council"]
[null,null,null,null,null,null,null,null,null,null,null,null,null,null,"Melland High School","122273","2012-08-01","North West","Manchester City Council"]
[null,null,null,null,null,null,null,null,null,null,null,null,null,null,"Mellor Primary School","120643","2011-10-01","North West","Stockport Metropolitan Borough Council"]
[null,null,null,null,null,null,null,null,null,null,null,null,null,null,"Meopham Community Academy","119385","2010-12-01","South East","Kent County Council"]
[null,null,null,null,null,null,null,null,null,null,null,null,null,null,"Meopham School","120845","2013-02-01","South East","Kent County Council"]
[null,null,null,null,null,null,null,null,null,null,null,null,null,null,"Meppershall CofE VA Lower School","124180","2013-07-01","East of England","Central Bedfordshire Council"]
[null,null,null,null,null,null,null,null,null,null,null,null,null,null,"Mercenfeld Primary School","123269","2013-04-01","East Midlands","Leicestershire County Council"]
[null,null,null,null,null,null,null,null,null,null,null,null,null,null,"Merchants' Academy","118627","2008-09-10","South West","Bristol City Council"]
[null,null,null,null,null,null,null,null,null,null,null,null,null,null,"Mere Green Combined School","122693","2013-04-01","West Midlands","Birmingham City Council"]
[null,null,null,null,null,null,null,null,null,null,null,null,null,null,"Meridian School","119940","2011-11-01","East of England","Hertfordshire County Council"]
[null,null,null,null,null,null,null,null,null,null,null,null,null,null,"Merlin Top Primary School","122854","2013-04-01","Yorkshire & Humberside","Bradford Metropolitan District Council"]
[null,null,null,null,null,null,null,null,null,null,null,null,null,null,"Merrill Academy, The","120960","2013-01-01","East Midlands","Derby City Council"]
[null,null,null,null,null,null,null,null,null,null,null,null,null,null,"Merritts Brook E-ACT Primary Academy","122661","2013-01-01","West Midlands","Birmingham City Council"]
[null,null,null,null,null,null,null,null,null,null,null,null,null,null,"Mersey Primary Academy",124661,"2013-10-01","Yorkshire & Humberside","Hull City Council"]
[null,null,null,null,null,null,null,null,null,null,null,null,null,null,"Merton Primary School, The","122384","2012-10-01","East Midlands","Leicestershire County Council"]
[null,null,null,null,null,null,null,null,null,null,null,null,null,null,"Messing Primary School","122876","2013-09-01","East of England","Essex County Council"]
[null,null,null,null,null,null,null,null,null,null,null,null,null,null,"Mesty Croft Academy","120645","2012-04-01","West Midlands","Sandwell Metropolitan Borough Council"]
[null,null,null,null,null,null,null,null,null,null,null,null,null,null,"Meynell Community Primary School","122779","2013-04-01","Yorkshire & Humberside","Sheffield City Council"]
[null,null,null,null,null,null,null,null,null,null,null,null,null,null,"Middlefield Community Primary School","122077","2012-06-01","East of England","Cambridgeshire County Council"]
[null,null,null,null,null,null,null,null,null,null,null,null,null,null,"Middlethorpe Primary Academy","121082","2012-04-01","Yorkshire & Humberside","North East Lincolnshire Council"]
[null,null,null,null,null,null,null,null,null,null,null,null,null,null,"Middleton Cheney Community Primary School","124170","2013-09-01","East Midlands","Northamptonshire County Council"]
[null,null,null,null,null,null,null,null,null,null,null,null,null,null,"Midhurst Rother College","118907","2009-01-01","South East","West Sussex County Council"]
[null,null,null,null,null,null,null,null,null,null,null,null,null,null,"Midland Studio College - Hinckley","122528","2012-09-01","East Midlands","Leicestershire County Council"]
[null,null,null,null,null,null,null,null,null,null,null,null,null,null,"Midland Studio College - Nuneaton","123389","2013-09-01","West Midlands","Warwickshire County Council"]
[null,null,null,null,null,null,null,null,null,null,null,null,null,null,"Mildenhall College of Technology","124383","2013-07-01","East of England","Suffolk County Council"]
[null,null,null,null,null,null,null,null,null,null,null,null,null,null,"Milestone Academy","120666","2012-02-01","South East","Kent County Council"]
[null,null,null,null,null,null,null,null,null,null,null,null,null,null,"Milford Primary School","122716","2012-09-01","East Midlands","Nottingham City Council"]
[null,null,null,null,null,null,null,null,null,null,null,null,null,null,"Milford-on-Sea Church of England Primary School","124765","2013-09-01","South East","Hampshire County Council"]
[null,null,null,null,null,null,null,null,null,null,null,null,null,null,"Mill Chase Community Technology College",124995,"2013-11-01","South East","Hampshire County Council"]
[null,null,null,null,null,null,null,null,null,null,null,null,null,null,"Mill Hill County High School","119934","2011-09-01","London","Barnet London Borough Council"]
[null,null,null,null,null,null,null,null,null,null,null,null,null,null,"Mill Primary School, The","124064","2013-09-01","South East","West Sussex County Council"]
[null,null,null,null,null,null,null,null,null,null,null,null,null,null,"Millbank Primary School","122182","2012-09-01","London","Westminster City Council"]
[null,null,null,null,null,null,null,null,null,null,null,null,null,null,"Millbrook Academy - Gloucester","120918","2012-01-01","South West","Gloucestershire County Council"]
[null,null,null,null,null,null,null,null,null,null,null,null,null,null,"Millbrook CofE VA Primary School - Torpoint",124515,"2013-12-01","South West","Cornwall Council"]
[null,null,null,null,null,null,null,null,null,null,null,null,null,null,"Millbrook Primary School - Swindon",124164,"2013-11-01","South West","Swindon Borough Council"]
[null,null,null,null,null,null,null,null,null,null,null,null,null,null,"Millfield L.E.A.D Academy","122872","2013-01-01","East Midlands","Leicestershire County Council"]
[null,null,null,null,null,null,null,null,null,null,null,null,null,null,"Milstead and Frinsted Church of England Primary School","120376","2011-09-01","South East","Kent County Council"]
[null,null,null,null,null,null,null,null,null,null,null,null,null,null,"Milton Court Primary School","123947","2013-04-01","South East","Kent County Council"]
[null,null,null,null,null,null,null,null,null,null,null,null,null,null,"Milton Keynes Academy, The","118892","2009-09-01","South East","Milton Keynes Council"]
[null,null,null,null,null,null,null,null,null,null,null,null,null,null,"Minehead Middle School","119774","2011-06-01","South West","Somerset County Council"]
[null,null,null,null,null,null,null,null,null,null,null,null,null,null,"Minerva Primary Academy","121085","2012-09-01","South West","Bristol City Council"]
[null,null,null,null,null,null,null,null,null,null,null,null,null,null,"Minsthorpe Community College","120011","2011-08-01","Yorkshire & Humberside","Wakefield Council"]
[null,null,null,null,null,null,null,null,null,null,null,null,null,null,"Mirfield Free Grammar and Sixth Form, The","119643","2011-04-01","Yorkshire & Humberside","Kirklees Metropolitan Council"]
[null,null,null,null,null,null,null,null,null,null,null,null,null,null,"Mirus Academy, The","120274","2012-01-01","West Midlands","Walsall Metropolitan Borough Council"]
[null,null,null,null,null,null,null,null,null,null,null,null,null,null,"Mitton Manor Primary School",127725,"2014-01-01","South West","Gloucestershire County Council"]
[null,null,null,null,null,null,null,null,null,null,null,null,null,null,"Molehill Copse Primary School","121174","2012-06-01","South East","Kent County Council"]
[null,null,null,null,null,null,null,null,null,null,null,null,null,null,"Monk's Walk School","122506","2012-09-01","East of England","Hertfordshire County Council"]
[null,null,null,null,null,null,null,null,null,null,null,null,null,null,"Monkton Infants' School","123068","2013-02-01","North East","South Tyneside Council"]
[null,null,null,null,null,null,null,null,null,null,null,null,null,null,"Monkton Junior School","120763","2012-04-01","North East","South Tyneside Council"]
[null,null,null,null,null,null,null,null,null,null,null,null,null,null,"Monkwearmouth School",129441,"2013-12-01","North East","Sunderland City Council"]
[null,null,null,null,null,null,null,null,null,null,null,null,null,null,"Montacute School","120286","2011-10-01","South West","Poole Borough Council"]
[null,null,null,null,null,null,null,null,null,null,null,null,null,null,"Monteclefe Church of England VA Junior School","122181","2012-08-01","South West","Somerset County Council"]
[null,null,null,null,null,null,null,null,null,null,null,null,null,null,"Montem Primary School",126341,"2013-12-01","South East","Slough Borough Council"]
[null,null,null,null,null,null,null,null,null,null,null,null,null,null,"Monteney Primary School","122646","2013-04-01","Yorkshire & Humberside","Sheffield City Council"]
[null,null,null,null,null,null,null,null,null,null,null,null,null,null,"Montgomery High School","121827","2012-04-01","North West","Blackpool Council"]
[null,null,null,null,null,null,null,null,null,null,null,null,null,null,"Montgomery Primary Academy","122298","2012-10-01","West Midlands","Birmingham City Council"]
[null,null,null,null,null,null,null,null,null,null,null,null,null,null,"Montsaye Community College","120049","2011-08-01","East Midlands","Northamptonshire County Council"]
[null,null,null,null,null,null,null,null,null,null,null,null,null,null,"Moor End Technology College","120016","2011-08-17","Yorkshire & Humberside","Kirklees Metropolitan Council"]
[null,null,null,null,null,null,null,null,null,null,null,null,null,null,"Moor Green Primary","122924","2013-01-01","West Midlands","Birmingham City Council"]
[null,null,null,null,null,null,null,null,null,null,null,null,null,null,"Moorcroft School","121020","2012-06-01","London","Hillingdon London Borough Council"]
[null,null,null,null,null,null,null,null,null,null,null,null,null,null,"Moorlands CofE Voluntary Controlled Primary School",124696,"2013-11-01","East of England","Norfolk County Council"]
[null,null,null,null,null,null,null,null,null,null,null,null,null,null,"Moorside Community Primary Academy School","123811","2013-04-01","North West","Lancashire County Council"]
[null,null,null,null,null,null,null,null,null,null,null,null,null,null,"Mordiford CofE Primary School",122598,"2013-12-01","West Midlands","Herefordshire Council"]
[null,null,null,null,null,null,null,null,null,null,null,null,null,null,"Moredon Primary School",121861,"2013-10-01","South West","Swindon Borough Council"]
[null,null,null,null,null,null,null,null,null,null,null,null,null,null,"Morgan's Vale and Woodfalls Church of England Voluntary Aided Primary School","124566","2013-09-01","South West","Wiltshire Council"]
[null,null,null,null,null,null,null,null,null,null,null,null,null,null,"Morley Academy","119424","2011-01-01","Yorkshire & Humberside","Leeds City Council"]
[null,null,null,null,null,null,null,null,null,null,null,null,null,null,"Morpeth Chantry Middle School","120712","2011-12-01","North East","Northumberland County Council"]
[null,null,null,null,null,null,null,null,null,null,null,null,null,null,"Morpeth Newminster Middle School","120670","2011-12-01","North East","Northumberland County Council"]
[null,null,null,null,null,null,null,null,null,null,null,null,null,null,"Mosaic Jewish Primary School","123339","2013-09-01","London","Wandsworth London Borough Council"]
[null,null,null,null,null,null,null,null,null,null,null,null,null,null,"Moseley Park","120977","2012-06-01","West Midlands","Wolverhampton City Council"]
[null,null,null,null,null,null,null,null,null,null,null,null,null,null,"Mosley Primary School","122512","2012-11-01","West Midlands","Staffordshire County Council"]
[null,null,null,null,null,null,null,null,null,null,null,null,null,null,"Mossbourne Community Academy","119080","2004-09-01","London","Hackney London Borough Council (The Learning Trust)"]
[null,null,null,null,null,null,null,null,null,null,null,null,null,null,"Mottram St Andrew Primary School","119607","2011-04-01","North West","Cheshire East Council"]
[null,null,null,null,null,null,null,null,null,null,null,null,null,null,"Moulsham High School and Humanities College","119863","2011-07-01","East of England","Essex County Council"]
[null,null,null,null,null,null,null,null,null,null,null,null,null,null,"Moulsham Infant School","119830","2011-07-01","East of England","Essex County Council"]
[null,null,null,null,null,null,null,null,null,null,null,null,null,null,"Moulsham Junior School","121180","2012-04-01","East of England","Essex County Council"]
[null,null,null,null,null,null,null,null,null,null,null,null,null,null,"Moulton School and Science College","120662","2011-11-01","East Midlands","Northamptonshire County Council"]
[null,null,null,null,null,null,null,null,null,null,null,null,null,null,"Mount Grace High School - Hinckley","122510","2012-08-01","East Midlands","Leicestershire County Council"]
[null,null,null,null,null,null,null,null,null,null,null,null,null,null,"Mount Grace School - Potters Bar","120224","2011-08-01","East of England","Hertfordshire County Council"]
[null,null,null,null,null,null,null,null,null,null,null,null,null,null,"Mount Hawke Academy","119635","2011-04-01","South West","Cornwall Council"]
[null,null,null,null,null,null,null,null,null,null,null,null,null,null,"Mount Pellon Junior and Infant School","121898","2013-04-01","Yorkshire & Humberside","Calderdale Metropolitan Borough Council"]
[null,null,null,null,null,null,null,null,null,null,null,null,null,null,"Mount Street Academy","120627","2011-10-01","East Midlands","Lincolnshire County Council"]
[null,null,null,null,null,null,null,null,null,null,null,null,null,null,"Mountbatten School, The","119642","2011-04-01","South East","Hampshire County Council"]
[null,null,null,null,null,null,null,null,null,null,null,null,null,null,"Mountfields Lodge School","122694","2012-12-01","East Midlands","Leicestershire County Council"]
[null,null,null,null,null,null,null,null,null,null,null,null,null,null,"Mountford Manor Primary School","121903","2012-07-01","South West","Swindon Borough Council"]
[null,null,null,null,null,null,null,null,null,null,null,null,null,null,"Mounts Bay School","119873","2011-07-01","South West","Cornwall Council"]
[null,null,null,null,null,null,null,null,null,null,null,null,null,null,"Mowden Infants' School","122168","2012-06-01","North East","Darlington Borough Council"]
[null,null,null,null,null,null,null,null,null,null,null,null,null,null,"Mowden Junior School","122070","2012-06-01","North East","Darlington Borough Council"]
[null,null,null,null,null,null,null,null,null,null,null,null,null,null,"Multi-academy Trust","Multiple","Multiple","Multiple","Multiple"]
[null,null,null,null,null,null,null,null,null,null,null,null,null,null,"Murrow Primary School","124410","2013-07-01","East of England","Cambridgeshire County Council"]
[null,null,null,null,null,null,null,null,null,null,null,null,null,null,"Murton Community Primary School","122347","2012-09-01","North East","Durham County Council"]
[null,null,null,null,null,null,null,null,null,null,null,null,null,null,"Myton School","119900","2011-07-01","West Midlands","Warwickshire County Council"]
[null,null,null,null,null,null,null,null,null,null,null,null,null,null,"Nailsea School","122737","2012-08-01T12:47:16","South West","North Somerset District Council"]
[null,null,null,null,null,null,null,null,null,null,null,null,null,null,"Nanaksar Primary School","123325","2013-09-01","London","Hillingdon London Borough Council"]
[null,null,null,null,null,null,null,null,null,null,null,null,null,null,"Nansen Primary School","122484","2012-10-01","West Midlands","Birmingham City Council"]
[null,null,null,null,null,null,null,null,null,null,null,null,null,null,"Nansloe Community Primary School","120684","2011-11-01","South West","Cornwall Council"]
[null,null,null,null,null,null,null,null,null,null,null,null,null,null,"NAS Thames Valley School, The","123399","2013-09-01","South East","Reading Borough Council"]
[null,null,null,null,null,null,null,null,null,null,null,null,null,null,"National Church of England Junior School, The - Grantham","122359","2012-07-01","East Midlands","Lincolnshire County Council"]
[null,null,null,null,null,null,null,null,null,null,null,null,null,null,"National School, The A CofE Technology College","120159","2011-08-01","East Midlands","Nottinghamshire County Council"]
[null,null,null,null,null,null,null,null,null,null,null,null,null,null,"Neale-Wade Academy, The","122936","2013-04-01","East of England","Cambridgeshire County Council"]
[null,null,null,null,null,null,null,null,null,null,null,null,null,null,"Neasden Primary School",124775,"2013-10-01","Yorkshire & Humberside","Hull City Council"]
[null,null,null,null,null,null,null,null,null,null,null,null,null,null,"Nechells Junior and Infant School","122258","2012-09-01","West Midlands","Birmingham City Council"]
[null,null,null,null,null,null,null,null,null,null,null,null,null,null,"Nelson Academy, The - Downham Market",127386,"2014-01-01","East of England","Norfolk County Council"]
[null,null,null,null,null,null,null,null,null,null,null,null,null,null,"Nelson Primary School - Whitton",126481,"2014-01-01","London","Richmond upon Thames Borough Council"]
[null,null,null,null,null,null,null,null,null,null,null,null,null,null,"Nene Infant School, The",125026,"2013-10-01","East of England","Cambridgeshire County Council"]
[null,null,null,null,null,null,null,null,null,null,null,null,null,null,"Nene Park","120082","2011-09-01","East of England","Peterborough City Council"]
[null,null,null,null,null,null,null,null,null,null,null,null,null,null,"Neston High School","121828","2012-07-01","North West","Cheshire West and Chester Council"]
[null,null,null,null,null,null,null,null,null,null,null,null,null,null,"Nethergate School","121026","2012-03-01","East Midlands","Nottingham City Council"]
[null,null,null,null,null,null,null,null,null,null,null,null,null,null,"Nethersole CofE Primary School, The","122486","2013-04-01","West Midlands","Warwickshire County Council"]
[null,null,null,null,null,null,null,null,null,null,null,null,null,null,"Netherthorpe School","120700","2012-03-01T11:30:42","East Midlands","Derbyshire County Council"]
[null,null,null,null,null,null,null,null,null,null,null,null,null,null,"Nettleham Infant School, The","122698","2012-09-01","East Midlands","Lincolnshire County Council"]
[null,null,null,null,null,null,null,null,null,null,null,null,null,null,"New Bridge School","121914","2012-09-01","North West","Oldham Metropolitan Borough Council"]
[null,null,null,null,null,null,null,null,null,null,null,null,null,null,"New Campus Basildon Studio School","123390","2013-09-01","East of England","Essex County Council"]
[null,null,null,null,null,null,null,null,null,null,null,null,null,null,"New Chapter Primary School","119938","2013-01-01","South East","Milton Keynes Council"]
[null,null,null,null,null,null,null,null,null,null,null,null,null,null,"New Charter Academy","118628","2008-09-04","North West","Tameside Metropolitan Borough Council"]
[null,null,null,null,null,null,null,null,null,null,null,null,null,null,"New Forest Academy","122253","2012-09-01","South East","Hampshire County Council"]
[null,null,null,null,null,null,null,null,null,null,null,null,null,null,"New Islington Free School","123326","2013-09-01","North West","Manchester City Council"]
[null,null,null,null,null,null,null,null,null,null,null,null,null,null,"New Line Learning Academy","119073","2007-09-01","South East","Kent County Council"]
[null,null,null,null,null,null,null,null,null,null,null,null,null,null,"New Monument School","123877","2013-07-01","South East","Surrey County Council"]
[null,null,null,null,null,null,null,null,null,null,null,null,null,null,"New North Academy","119939","2011-09-01","London","Islington London Borough Council"]
[null,null,null,null,null,null,null,null,null,null,null,null,null,null,"New Penshaw Academy","123943","2013-04-01","North East","Sunderland City Council"]
[null,null,null,null,null,null,null,null,null,null,null,null,null,null,"New Rickstones Academy","118667","2008-09-04","East of England","Essex County Council"]
[null,null,null,null,null,null,null,null,null,null,null,null,null,null,"New Road Primary School",127443,"2014-01-01","East of England","Cambridgeshire County Council"]
[null,null,null,null,null,null,null,null,null,null,null,null,null,null,"New Seaham Primary School","122264","2012-10-01","North East","Durham County Council"]
[null,null,null,null,null,null,null,null,null,null,null,null,null,null,"New Waltham Academy","120768","2012-01-01","Yorkshire & Humberside","North East Lincolnshire Council"]
[null,null,null,null,null,null,null,null,null,null,null,null,null,null,"Newark Academy, The","122307","2012-11-01T14:50:34","East Midlands","Nottinghamshire County Council"]
[null,null,null,null,null,null,null,null,null,null,null,null,null,null,"Newbottle Primary School",127708,"2014-02-01","North East","Sunderland City Council"]
[null,null,null,null,null,null,null,null,null,null,null,null,null,null,"Newbridge High School","122107","2012-07-01","East Midlands","Leicestershire County Council"]
[null,null,null,null,null,null,null,null,null,null,null,null,null,null,"Newent Community School and Sixth Form Centre","114738","2012-09-01","South West","Gloucestershire County Council"]
[null,null,null,null,null,null,null,null,null,null,null,null,null,null,"Newington Primary School","121850","2012-09-01","Yorkshire & Humberside","Hull City Council"]
[null,null,null,null,null,null,null,null,null,null,null,null,null,null,"Newlands Primary School - Ramsgate","121947","2012-09-01","South East","Kent County Council"]
[null,null,null,null,null,null,null,null,null,null,null,null,null,null,"Newlands School - Southwark","126464","2013-09-01","London","Southwark London Borough Council"]
[null,null,null,null,null,null,null,null,null,null,null,null,null,null,"Newlands Spring Primary School - Chelmsford","122104","2012-08-01","East of England","Essex County Council"]
[null,null,null,null,null,null,null,null,null,null,null,null,null,null,"Newnham Primary School","124327","2013-09-01","East Midlands","Northamptonshire County Council"]
[null,null,null,null,null,null,null,null,null,null,null,null,null,null,"Newport Community School","120012","2011-08-01","South West","Devon County Council"]
[null,null,null,null,null,null,null,null,null,null,null,null,null,null,"Newport Free Grammar School","122136","2012-09-01","East of England","Essex County Council"]
[null,null,null,null,null,null,null,null,null,null,null,null,null,null,"Newport Girls' High School Academy Trust","119605","2011-04-01","West Midlands","Telford and Wrekin Council"]
[null,null,null,null,null,null,null,null,null,null,null,null,null,null,"Newquay Junior School","119407","2011-01-01","South West","Cornwall Council"]
[null,null,null,null,null,null,null,null,null,null,null,null,null,null,"Newquay Tretherras","119593","2011-04-01","South West","Cornwall Council"]
[null,null,null,null,null,null,null,null,null,null,null,null,null,null,"Newstead Primary School",124632,"2013-11-01","West Midlands","Stoke on Trent City Council"]
[null,null,null,null,null,null,null,null,null,null,null,null,null,null,"Newstead Wood School","119582","2011-04-01","London","Bromley London Borough Council"]
[null,null,null,null,null,null,null,null,null,null,null,null,null,null,"Newton Abbot College","120124","2011-08-01","South West","Devon County Council"]
[null,null,null,null,null,null,null,null,null,null,null,null,null,null,"Newton Ferrers Church of England Primary School","120476","2011-11-01","South West","Devon County Council"]
[null,null,null,null,null,null,null,null,null,null,null,null,null,null,"Newton Regis CofE Primary School","123247","2013-09-01","West Midlands","Warwickshire County Council"]
[null,null,null,null,null,null,null,null,null,null,null,null,null,null,"Nicholas Breakspear Catholic School","121182","2012-03-01T11:32:19","East of England","Hertfordshire County Council"]
[null,null,null,null,null,null,null,null,null,null,null,null,null,null,"Nicholas Chamberlaine Technology College","124658","2013-09-01","West Midlands","Warwickshire County Council"]
[null,null,null,null,null,null,null,null,null,null,null,null,null,null,"Nicholas Hamond Academy, The","122493","2012-11-01T14:54:40","East of England","Norfolk County Council"]
[null,null,null,null,null,null,null,null,null,null,null,null,null,null,"Nicholas Hawksmoor Primary School","119480","2011-02-01","East Midlands","Northamptonshire County Council"]
[null,null,null,null,null,null,null,null,null,null,null,null,null,null,"Nightingale Academy","119229","2010-09-01","London","Enfield London Borough Council"]
[null,null,null,null,null,null,null,null,null,null,null,null,null,null,"Nine Maidens Short Stay School","122704","2013-06-01","South West","Cornwall Council"]
[null,null,null,null,null,null,null,null,null,null,null,null,null,null,"Ninestiles School","119291","2011-01-01","West Midlands","Birmingham City Council"]
[null,null,null,null,null,null,null,null,null,null,null,null,null,null,"Nishkam Primary School","120502","2011-09-01","West Midlands","Birmingham City Council"]
[null,null,null,null,null,null,null,null,null,null,null,null,null,null,"Nishkam School Trust","122052","2012-09-01","West Midlands","Birmingham City Council"]
[null,null,null,null,null,null,null,null,null,null,null,null,null,null,"Nishkam School West London","123327","2013-09-01","London","Hounslow London Borough Council"]
[null,null,null,null,null,null,null,null,null,null,null,null,null,null,"Noadswood School","120125","2011-08-01","South East","Hampshire County Council"]
[null,null,null,null,null,null,null,null,null,null,null,null,null,null,"Noel Park Primary Academy","121950","2012-09-01","London","Haringey London Borough Council"]
[null,null,null,null,null,null,null,null,null,null,null,null,null,null,"Nonsuch High School for Girls","119772","2011-06-01","London","Sutton London Borough Council"]
[null,null,null,null,null,null,null,null,null,null,null,null,null,null,"Norbreck Primary Academy","122169","2012-09-01","North West","Blackpool Council"]
[null,null,null,null,null,null,null,null,null,null,null,null,null,null,"Norbridge Primary School","120105","2011-09-01","East Midlands","Nottinghamshire County Council"]
[null,null,null,null,null,null,null,null,null,null,null,null,null,null,"Norbury Manor Business and Enterprise College for Girls","120706","2012-01-01","London","Croydon London Borough Council"]
[null,null,null,null,null,null,null,null,null,null,null,null,null,null,"North Birmingham Academy","119143","2010-01-01","West Midlands","Birmingham City Council"]
[null,null,null,null,null,null,null,null,null,null,null,null,null,null,"North Cambridge Academy","123938","2013-09-01","East of England","Cambridgeshire County Council"]
[null,null,null,null,null,null,null,null,null,null,null,null,null,null,"North Cornwall Short Stay School","122703","2013-06-01","South West","Cornwall Council"]
[null,null,null,null,null,null,null,null,null,null,null,null,null,null,"North Durham Academy, The","119929","2011-09-01","North East","Durham County Council"]
[null,null,null,null,null,null,null,null,null,null,null,null,null,null,"North East Wolverhampton Academy","119237","2010-09-01","West Midlands","Wolverhampton City Council"]
[null,null,null,null,null,null,null,null,null,null,null,null,null,null,"North Halifax Grammar School, The","119786","2011-06-01","Yorkshire & Humberside","Calderdale Metropolitan Borough Council"]
[null,null,null,null,null,null,null,null,null,null,null,null,null,null,"North Hykeham Ling Moor Primary School","122378","2012-09-01","East Midlands","Lincolnshire County Council"]
[null,null,null,null,null,null,null,null,null,null,null,null,null,null,"North Kesteven School","119870","2011-07-01","East Midlands","Lincolnshire County Council"]
[null,null,null,null,null,null,null,null,null,null,null,null,null,null,"North Leverton CofE Primary School","120728","2012-04-01","East Midlands","Nottinghamshire County Council"]
[null,null,null,null,null,null,null,null,null,null,null,null,null,null,"North Liverpool Academy","118629","2006-09-01","North West","Liverpool City Council"]
[null,null,null,null,null,null,null,null,null,null,null,null,null,null,"North Ormesby Primary School","122833","2012-10-01","North East","Middlesbrough Council"]
[null,null,null,null,null,null,null,null,null,null,null,null,null,null,"North Oxfordshire Academy","118908","2007-09-01","South East","Oxfordshire County Council"]
[null,null,null,null,null,null,null,null,null,null,null,null,null,null,"North Shore Academy","119210","2010-09-01","North East","Stockton-on-Tees Borough Council"]
[null,null,null,null,null,null,null,null,null,null,null,null,null,null,"North Thoresby Primary School","123823","2013-07-01","East Midlands","Lincolnshire County Council"]
[null,null,null,null,null,null,null,null,null,null,null,null,null,null,"North Town Primary School","120126","2011-08-01","South West","Somerset County Council"]
[null,null,null,null,null,null,null,null,null,null,null,null,null,null,"Northampton Academy","118399","2004-09-01","East Midlands","Northamptonshire County Council"]
[null,null,null,null,null,null,null,null,null,null,null,null,null,null,"Northampton School for Boys","119246","2010-09-01","East Midlands","Northamptonshire County Council"]
[null,null,null,null,null,null,null,null,null,null,null,null,null,null,"Northampton School for Girls",124176,"2014-01-01","East Midlands","Northamptonshire County Council"]
[null,null,null,null,null,null,null,null,null,null,null,null,null,null,"North-County Primary School, The","124222","2013-03-01","East Midlands","Lincolnshire County Council"]
[null,null,null,null,null,null,null,null,null,null,null,null,null,null,"Northdown Primary School","122517","2012-09-01","South East","Kent County Council"]
[null,null,null,null,null,null,null,null,null,null,null,null,null,null,"Northern House School","122146","2012-09-01","South East","Oxfordshire County Council"]
[null,null,null,null,null,null,null,null,null,null,null,null,null,null,"Northgate Primary School","122109","2012-08-01","East of England","Hertfordshire County Council"]
[null,null,null,null,null,null,null,null,null,null,null,null,null,null,"Northgate School Arts College","120135","2011-09-01","East Midlands","Northamptonshire County Council"]
[null,null,null,null,null,null,null,null,null,null,null,null,null,null,"Northumberland Church of England Academy","118897","2009-09-01","North East","Northumberland County Council"]
[null,null,null,null,null,null,null,null,null,null,null,null,null,null,"Northumberland Heath Primary School","119947","2011-09-01","London","Bexley London Borough Council"]
[null,null,null,null,null,null,null,null,null,null,null,null,null,null,"Northwood Primary School","124066","2013-04-01","South East","Isle of Wight Council"]
[null,null,null,null,null,null,null,null,null,null,null,null,null,null,"Northwood School","120877","2012-02-01","London","Hillingdon London Borough Council"]
[null,null,null,null,null,null,null,null,null,null,null,null,null,null,"Norton Canes Academy",129553,"2014-01-01","West Midlands","Staffordshire County Council"]
[null,null,null,null,null,null,null,null,null,null,null,null,null,null,"Norton College","119743","2011-05-01","Yorkshire & Humberside","North Yorkshire County Council"]
[null,null,null,null,null,null,null,null,null,null,null,null,null,null,"Norton Hill School","119292","2010-10-01","South West","Bath & North East Somerset Council"]
[null,null,null,null,null,null,null,null,null,null,null,null,null,null,"Norton Knatchbull School, The","121028","2012-04-01","South East","Kent County Council"]
[null,null,null,null,null,null,null,null,null,null,null,null,null,null,"Norton Primary Academy",127309,"2014-01-01","North East","Stockton-on-Tees Borough Council"]
[null,null,null,null,null,null,null,null,null,null,null,null,null,null,"Norwich Road Academy","124318","2013-08-01","East of England","Norfolk County Council"]
[null,null,null,null,null,null,null,null,null,null,null,null,null,null,"Norwood Green Junior School","124313","2013-07-01","London","Hounslow London Borough Council"]
[null,null,null,null,null,null,null,null,null,null,null,null,null,null,"Notley Green Primary School","122074","2012-11-01","East of England","Essex County Council"]
[null,null,null,null,null,null,null,null,null,null,null,null,null,null,"Notley High School","120013","2011-08-01","East of England","Essex County Council"]
[null,null,null,null,null,null,null,null,null,null,null,null,null,null,"Notre Dame High School - Norwich","121105","2012-03-01T11:34:09","East of England","Norfolk County Council"]
[null,null,null,null,null,null,null,null,null,null,null,null,null,null,"Notre Dame High School - Sheffield","121460","2012-07-01","Yorkshire & Humberside","Sheffield City Council"]
[null,null,null,null,null,null,null,null,null,null,null,null,null,null,"Nottingham Academy","118893","2009-09-01","East Midlands","Nottingham City Council"]
[null,null,null,null,null,null,null,null,null,null,null,null,null,null,"Nottingham Emmanuel School, The","123817","2013-06-01","East Midlands","Nottingham City Council"]
[null,null,null,null,null,null,null,null,null,null,null,null,null,null,"Nottingham Girls' Academy","120184","2011-09-01","East Midlands","Nottingham City Council"]
[null,null,null,null,null,null,null,null,null,null,null,null,null,null,"Nottingham University Samworth Academy","118852","2009-09-01","East Midlands","Nottingham City Council"]
[null,null,null,null,null,null,null,null,null,null,null,null,null,null,"Nova Hreod Academy",121084,"2014-01-01","South West","Swindon Borough Council"]
[null,null,null,null,null,null,null,null,null,null,null,null,null,null,"Nower Hill High School","120028","2011-08-01","London","Harrow London Borough Council"]
[null,null,null,null,null,null,null,null,null,null,null,null,null,null,"Nuneaton Academy","119230","2010-09-01","West Midlands","Warwickshire County Council"]
[null,null,null,null,null,null,null,null,null,null,null,null,null,null,"Nunnery Wood High School","120051","2011-08-01","West Midlands","Worcestershire County Council"]
[null,null,null,null,null,null,null,null,null,null,null,null,null,null,"Nunthorpe School","122721","2012-10-01","North East","Redcar and Cleveland Borough Council"]
[null,null,null,null,null,null,null,null,null,null,null,null,null,null,"Nyland School","121900","2012-07-01","South West","Swindon Borough Council"]
[null,null,null,null,null,null,null,null,null,null,null,null,null,null,"Oak Academy - Bournemouth","123089","2012-12-01","South West","Bournemouth Borough Council"]
[null,null,null,null,null,null,null,null,null,null,null,null,null,null,"Oak Bank School",124078,"2013-11-01","East of England","Central Bedfordshire Council"]
[null,null,null,null,null,null,null,null,null,null,null,null,null,null,"Oak Tree Primary School, The","124161","2013-09-01","North East","Stockton-on-Tees Borough Council"]
[null,null,null,null,null,null,null,null,null,null,null,null,null,null,"Oak Wood Primary School","124142","2013-04-01","West Midlands","Warwickshire County Council"]
[null,null,null,null,null,null,null,null,null,null,null,null,null,null,"Oak Wood Secondary School","124146","2013-04-01","West Midlands","Warwickshire County Council"]
[null,null,null,null,null,null,null,null,null,null,null,null,null,null,"Oakbank School","121997","2012-09-01","South East","Wokingham Borough Council"]
[null,null,null,null,null,null,null,null,null,null,null,null,null,null,"Oakefield Primary and Nursery School - Crewe",124762,"2013-11-01","North West","Cheshire East Council"]
[null,null,null,null,null,null,null,null,null,null,null,null,null,null,"Oakfield Primary School - Rugby","122866","2012-11-01","West Midlands","Warwickshire County Council"]
[null,null,null,null,null,null,null,null,null,null,null,null,null,null,"Oakfield School - Frome","119970","2011-08-01","South West","Somerset County Council"]
[null,null,null,null,null,null,null,null,null,null,null,null,null,null,"Oakgrove School","119509","2011-02-01","South East","Milton Keynes Council"]
[null,null,null,null,null,null,null,null,null,null,null,null,null,null,"Oakhill Primary Academy","120577","2012-02-01","Yorkshire & Humberside","Barnsley Metropolitan Borough Council"]
[null,null,null,null,null,null,null,null,null,null,null,null,null,null,"Oaklands Catholic School","120377","2011-09-01","South East","Hampshire County Council"]
[null,null,null,null,null,null,null,null,null,null,null,null,null,null,"Oaklands Primary School, The","122954","2013-01-01","West Midlands","Birmingham City Council"]
[null,null,null,null,null,null,null,null,null,null,null,null,null,null,"Oakley Vale Primary School","124135","2013-09-01","East Midlands","Northamptonshire County Council"]
[null,null,null,null,null,null,null,null,null,null,null,null,null,null,"Oaks Academy - Maidstone","122237","2012-04-01","South East","Kent County Council"]
[null,null,null,null,null,null,null,null,null,null,null,null,null,null,"Oaks Primary School, The","122130","2012-09-01","South East","West Sussex County Council"]
[null,null,null,null,null,null,null,null,null,null,null,null,null,null,"Oaktree School, The","123873","2013-09-01","South East","Surrey County Council"]
[null,null,null,null,null,null,null,null,null,null,null,null,null,null,"Oakwood Academy - Eccles","120825","2012-05-01","North West","Salford City Council"]
[null,null,null,null,null,null,null,null,null,null,null,null,null,null,"Oakwood High School - Rotherham",127503,"2013-12-01","Yorkshire & Humberside","Rotherham Metropolitan Borough Council"]
[null,null,null,null,null,null,null,null,null,null,null,null,null,null,"Oakwood Park Grammar School","119728","2011-05-01","South East","Kent County Council"]
[null,null,null,null,null,null,null,null,null,null,null,null,null,null,"Oakwood Primary Academy - Eastbourne","122020","2012-09-01","South East","East Sussex County Council"]
[null,null,null,null,null,null,null,null,null,null,null,null,null,null,"Oakwood Primary School - Leeds","122639","2013-09-01","Yorkshire & Humberside","Leeds City Council"]
[null,null,null,null,null,null,null,null,null,null,null,null,null,null,"Oasis Academy Aspinal","124752","2013-09-01","North West","Manchester City Council"]
[null,null,null,null,null,null,null,null,null,null,null,null,null,null,"Oasis Academy Bank Leaze","122246","2012-09-01","South West","Bristol City Council"]
[null,null,null,null,null,null,null,null,null,null,null,null,null,null,"Oasis Academy Blakenhale Infants","122788","2013-02-01","West Midlands","Birmingham City Council"]
[null,null,null,null,null,null,null,null,null,null,null,null,null,null,"Oasis Academy Blakenhale Junior School","122847","2013-02-01","West Midlands","Birmingham City Council"]
[null,null,null,null,null,null,null,null,null,null,null,null,null,null,"Oasis Academy Boulton","122839","2013-04-01","West Midlands","Birmingham City Council"]
[null,null,null,null,null,null,null,null,null,null,null,null,null,null,"Oasis Academy Brightstowe","118668","2008-09-03","South West","Bristol City Council"]
[null,null,null,null,null,null,null,null,null,null,null,null,null,null,"Oasis Academy Byron","122111","2012-09-01","London","Croydon London Borough Council"]
[null,null,null,null,null,null,null,null,null,null,null,null,null,null,"Oasis Academy Connaught","121855","2012-09-01","South West","Bristol City Council"]
[null,null,null,null,null,null,null,null,null,null,null,null,null,null,"Oasis Academy Coulsdon","119122","2008-09-08","London","Croydon London Borough Council"]
[null,null,null,null,null,null,null,null,null,null,null,null,null,null,"Oasis Academy Enfield","118630","2007-09-01","London","Enfield London Borough Council"]
[null,null,null,null,null,null,null,null,null,null,null,null,null,null,"Oasis Academy Foundry",124160,"2014-01-01","West Midlands","Birmingham City Council"]
[null,null,null,null,null,null,null,null,null,null,null,null,null,null,"Oasis Academy Hadley","119085","2009-09-01","London","Enfield London Borough Council"]
[null,null,null,null,null,null,null,null,null,null,null,null,null,null,"Oasis Academy Harpur Mount","122044","2013-01-01","North West","Manchester City Council"]
[null,null,null,null,null,null,null,null,null,null,null,null,null,null,"Oasis Academy Henderson Avenue","122321","2012-12-01","Yorkshire & Humberside","North Lincolnshire Council"]
[null,null,null,null,null,null,null,null,null,null,null,null,null,null,"Oasis Academy Hextable","124336","2013-09-01","South East","Kent County Council"]
[null,null,null,null,null,null,null,null,null,null,null,null,null,null,"Oasis Academy Hobmoor","122838","2013-09-01","West Midlands","Birmingham City Council"]
[null,null,null,null,null,null,null,null,null,null,null,null,null,null,"Oasis Academy Immingham","118631","2007-09-01","Yorkshire & Humberside","North East Lincolnshire Council"]
[null,null,null,null,null,null,null,null,null,null,null,null,null,null,"Oasis Academy Johanna","120349","2011-09-01","London","Lambeth London Borough Council"]
[null,null,null,null,null,null,null,null,null,null,null,null,null,null,"Oasis Academy John Williams","118671","2008-09-03","South West","Bristol City Council"]
[null,null,null,null,null,null,null,null,null,null,null,null,null,null,"Oasis Academy Limeside","120369","2011-09-01","North West","Oldham Metropolitan Borough Council"]
[null,null,null,null,null,null,null,null,null,null,null,null,null,null,"Oasis Academy Lister Park","124211","2013-09-01","Yorkshire & Humberside","Bradford Metropolitan District Council"]
[null,null,null,null,null,null,null,null,null,null,null,null,null,null,"Oasis Academy Long Cross",124602,"2014-01-01","South West","Bristol City Council"]
[null,null,null,null,null,null,null,null,null,null,null,null,null,null,"Oasis Academy Longmeadow","122884","2013-04-01","South West","Wiltshire Council"]
[null,null,null,null,null,null,null,null,null,null,null,null,null,null,"Oasis Academy Lord's Hill","119120","2008-09-01","South East","Southampton City Council"]
[null,null,null,null,null,null,null,null,null,null,null,null,null,null,"Oasis Academy Mayfield","119121","2008-09-01","South East","Southampton City Council"]
[null,null,null,null,null,null,null,null,null,null,null,null,null,null,"Oasis Academy MediaCityUK","118669","2008-09-08","North West","Salford City Council"]
[null,null,null,null,null,null,null,null,null,null,null,null,null,null,"Oasis Academy New Oak","121199","2012-09-01","South West","Bristol City Council"]
[null,null,null,null,null,null,null,null,null,null,null,null,null,null,"Oasis Academy Nunsthorpe","120947","2012-09-01","Yorkshire & Humberside","North East Lincolnshire Council"]
[null,null,null,null,null,null,null,null,null,null,null,null,null,null,"Oasis Academy Oldham","119153","2010-09-01","North West","Oldham Metropolitan Borough Council"]
[null,null,null,null,null,null,null,null,null,null,null,null,null,null,"Oasis Academy Parkwood","122849","2012-12-01","Yorkshire & Humberside","North Lincolnshire Council"]
[null,null,null,null,null,null,null,null,null,null,null,null,null,null,"Oasis Academy Pinewood",125027,"2013-10-01","London","Havering London Borough Council"]
[null,null,null,null,null,null,null,null,null,null,null,null,null,null,"Oasis Academy Shirley Park","119141","2009-09-01","London","Croydon London Borough Council"]
[null,null,null,null,null,null,null,null,null,null,null,null,null,null,"Oasis Academy Short Heath","122853","2013-02-01","West Midlands","Birmingham City Council"]
[null,null,null,null,null,null,null,null,null,null,null,null,null,null,"Oasis Academy Skinner Street","122664","2013-09-01","South East","Medway Council"]
[null,null,null,null,null,null,null,null,null,null,null,null,null,null,"Oasis Academy South Bank","123328","2013-09-01","London","Lambeth London Borough Council"]
[null,null,null,null,null,null,null,null,null,null,null,null,null,null,"Oasis Academy Wintringham","118637","2007-09-01","Yorkshire & Humberside","North East Lincolnshire Council"]
[null,null,null,null,null,null,null,null,null,null,null,null,null,null,"Oasis Academy Woodview","122890","2013-02-01","West Midlands","Birmingham City Council"]
[null,null,null,null,null,null,null,null,null,null,null,null,null,null,"Ockendon School, The","119409","2011-01-01","East of England","Thurrock Borough Council"]
[null,null,null,null,null,null,null,null,null,null,null,null,null,null,"Ocker Hill Junior School","124123","2013-09-01","West Midlands","Sandwell metropolitan Borough Council"]
[null,null,null,null,null,null,null,null,null,null,null,null,null,null,"Offa's Mead Primary School","122243","2012-09-01","South West","Gloucestershire County Council"]
[null,null,null,null,null,null,null,null,null,null,null,null,null,null,"Old Basford Primary and Nursery School","122672","2012-09-01","East Midlands","Nottingham City Council"]
[null,null,null,null,null,null,null,null,null,null,null,null,null,null,"Old Clee Primary School","124184","2013-04-01","Yorkshire & Humberside","North East Lincolnshire Council"]
[null,null,null,null,null,null,null,null,null,null,null,null,null,null,"Old Cleeve CofE School, Washford","124606","2014-03-01","South West","Somerset County Council"]
[null,null,null,null,null,null,null,null,null,null,null,null,null,null,"Old Dalby Church of England Primary School","124067","2013-09-01","East Midlands","Leicestershire County Council"]
[null,null,null,null,null,null,null,null,null,null,null,null,null,null,"Old Earth Primary School","120445","2011-09-01","Yorkshire & Humberside","Calderdale Metropolitan Borough Council"]
[null,null,null,null,null,null,null,null,null,null,null,null,null,null,"Old Ford Primary School","122994","2013-09-01","London","Tower Hamlets London Borough Council"]
[null,null,null,null,null,null,null,null,null,null,null,null,null,null,"Old Priory Junior Academy","120729","2012-02-01","South West","Plymouth City Council"]
[null,null,null,null,null,null,null,null,null,null,null,null,null,null,"Oldbury College of Sport","120610","2011-12-01T12:18:51","West Midlands","Sandwell Metropolitan Borough Council"]
[null,null,null,null,null,null,null,null,null,null,null,null,null,null,"Oldershaw Academy, The","119895","2011-07-01","North West","Wirral Metropolitan Borough Council"]
[null,null,null,null,null,null,null,null,null,null,null,null,null,null,"Oldfield School","119483","2011-02-01","South West","Bath & North East Somerset Council"]
[null,null,null,null,null,null,null,null,null,null,null,null,null,null,"Oldham Academy North, The","119194","2010-09-01","North West","Oldham Metropolitan Borough Council"]
[null,null,null,null,null,null,null,null,null,null,null,null,null,null,"Oldknow Junior School","120428","2012-04-01","West Midlands","Birmingham City Council"]
[null,null,null,null,null,null,null,null,null,null,null,null,null,null,"Olive School Blackburn, The","123359","2013-09-01","North West","Blackburn with Darwen Borough Council"]
[null,null,null,null,null,null,null,null,null,null,null,null,null,null,"Olive School Hackney, The","123360","2013-09-01","London","Hackney London Borough Council (The Learning Trust)"]
[null,null,null,null,null,null,null,null,null,null,null,null,null,null,"Olive Tree Primary School Bolton, The","123361","2013-09-01","North West","Bolton Metropolitan Borough Council"]
[null,null,null,null,null,null,null,null,null,null,null,null,null,null,"Olney Infant School","119765","2011-06-01","South East","Milton Keynes Council"]
[null,null,null,null,null,null,null,null,null,null,null,null,null,null,"Olympic Primary School","124309","2013-05-01","East Midlands","Northamptonshire County Council"]
[null,null,null,null,null,null,null,null,null,null,null,null,null,null,"One In A Million Free School","121998","2013-09-01","Yorkshire & Humberside","Bradford Metropolitan District Council"]
[null,null,null,null,null,null,null,null,null,null,null,null,null,null,"Onslow St Audrey's School","120806","2012-01-01","East of England","Hertfordshire County Council"]
[null,null,null,null,null,null,null,null,null,null,null,null,null,null,"Open Academy","118673","2008-09-01","East of England","Norfolk County Council"]
[null,null,null,null,null,null,null,null,null,null,null,null,null,null,"Orchard Meadow Primary School","122879","2013-08-01","South East","Oxfordshire County Council"]
[null,null,null,null,null,null,null,null,null,null,null,null,null,null,"Orchard School - Bristol","120948","2012-09-01","South West","Bristol City Council"]
[null,null,null,null,null,null,null,null,null,null,null,null,null,null,"Orchard School - Milton Keynes","120963","2012-09-01","South East","Milton Keynes Council"]
[null,null,null,null,null,null,null,null,null,null,null,null,null,null,"Orchard Vale Community School","120527","2011-11-01","South West","Devon County Council"]
[null,null,null,null,null,null,null,null,null,null,null,null,null,null,"Orchards Academy - Swanley","119368","2010-11-01","South East","Kent County Council"]
[null,null,null,null,null,null,null,null,null,null,null,null,null,null,"Orchards Primary Academy, The","124324","2013-07-01","West Midlands","Birmingham City Council"]
[null,null,null,null,null,null,null,null,null,null,null,null,null,null,"Ore Village Primary Academy","123949","2013-09-01","South East","East Sussex County Council"]
[null,null,null,null,null,null,null,null,null,null,null,null,null,null,"Oreston Community Academy","119411","2011-01-01","South West","Plymouth City Council"]
[null,null,null,null,null,null,null,null,null,null,null,null,null,null,"Oriel Primary School",125177,"2013-10-01","London","Hounslow London Borough Council"]
[null,null,null,null,null,null,null,null,null,null,null,null,null,null,"Orleans Park School","121910","2012-09-01","London","Richmond Upon Thames Borough Council"]
[null,null,null,null,null,null,null,null,null,null,null,null,null,null,"Ormesby School","122122","2012-09-01","North East","Middlesbrough Council"]
[null,null,null,null,null,null,null,null,null,null,null,null,null,null,"Ormiston Bolingbroke Academy","119335","2010-09-01","North West","Halton Borough Council"]
[null,null,null,null,null,null,null,null,null,null,null,null,null,null,"Ormiston Bushfield Academy","118910","2009-09-01","East of England","Peterborough City Council"]
[null,null,null,null,null,null,null,null,null,null,null,null,null,null,"Ormiston Denes Academy","120566","2013-06-01","East of England","Suffolk County Council"]
[null,null,null,null,null,null,null,null,null,null,null,null,null,null,"Ormiston Endeavour Academy","120967","2012-01-01","East of England","Suffolk County Council"]
[null,null,null,null,null,null,null,null,null,null,null,null,null,null,"Ormiston Forge Academy","120919","2012-01-01","West Midlands","Sandwell Metropolitan Borough Council"]
[null,null,null,null,null,null,null,null,null,null,null,null,null,null,"Ormiston Herman Academy",125172,"2014-01-01","East of England","Norfolk County Council"]
[null,null,null,null,null,null,null,null,null,null,null,null,null,null,"Ormiston Horizon Academy","119928","2011-09-01","West Midlands","Stoke on Trent City Council"]
[null,null,null,null,null,null,null,null,null,null,null,null,null,null,"Ormiston Ilkeston Academy","120253","2011-08-01","East Midlands","Derbyshire County Council"]
[null,null,null,null,null,null,null,null,null,null,null,null,null,null,"Ormiston Ilkeston Enterprise Academy","120109","2011-09-01","East Midlands","Derbyshire County Council"]
[null,null,null,null,null,null,null,null,null,null,null,null,null,null,"Ormiston Maritime Academy","120196","2011-08-01","Yorkshire & Humberside","North East Lincolnshire Council"]
[null,null,null,null,null,null,null,null,null,null,null,null,null,null,"Ormiston Meadows Academy",127191,"2014-01-01","East of England","Peterborough City Council"]
[null,null,null,null,null,null,null,null,null,null,null,null,null,null,"Ormiston Park Academy","119036","2009-09-01","East of England","Thurrock Borough Council"]
[null,null,null,null,null,null,null,null,null,null,null,null,null,null,"Ormiston Rivers Academy","120152","2011-09-01","East of England","Essex County Council"]
[null,null,null,null,null,null,null,null,null,null,null,null,null,null,"Ormiston Sandwell Community Academy","119066","2009-09-01","West Midlands","Sandwell Metropolitan Borough Council"]
[null,null,null,null,null,null,null,null,null,null,null,null,null,null,"Ormiston Sir Stanley Matthews Academy","119209","2010-09-01","West Midlands","Stoke on Trent City Council"]
[null,null,null,null,null,null,null,null,null,null,null,null,null,null,"Ormiston South Parade Academy","122265","2012-10-01","Yorkshire & Humberside","North East Lincolnshire Council"]
[null,null,null,null,null,null,null,null,null,null,null,null,null,null,"Ormiston Sudbury Academy","121009","2012-09-01","East of England","Suffolk County Council"]
[null,null,null,null,null,null,null,null,null,null,null,null,null,null,"Ormiston Venture Academy","119338","2010-09-01","East of England","Norfolk County Council"]
[null,null,null,null,null,null,null,null,null,null,null,null,null,null,"Ormiston Victory Academy","119339","2010-09-01","East of England","Norfolk County Council"]
[null,null,null,null,null,null,null,null,null,null,null,null,null,null,"Ormiston Westergate Academy",125181,"2013-11-01","South East","West Sussex County Council"]
[null,null,null,null,null,null,null,null,null,null,null,null,null,null,"Ossett Academy","119473","2011-02-01","Yorkshire & Humberside","Wakefield Council"]
[null,null,null,null,null,null,null,null,null,null,null,null,null,null,"Otley Prince Henry's Grammar School Specialist Language College","120702","2011-12-01","Yorkshire & Humberside","Leeds City Council"]
[null,null,null,null,null,null,null,null,null,null,null,null,null,null,"Our Lady and St Benedict Catholic Primary School","123405","2013-09-01","West Midlands","Stoke on Trent City Council"]
[null,null,null,null,null,null,null,null,null,null,null,null,null,null,"Our Lady and St Edward's Catholic Primary School","120209","2011-09-01","East Midlands","Nottingham City Council"]
[null,null,null,null,null,null,null,null,null,null,null,null,null,null,"Our Lady Immaculate Catholic Primary School","120790","2012-05-01","East of England","Essex County Council"]
[null,null,null,null,null,null,null,null,null,null,null,null,null,null,"Our Lady of Good Counsel Catholic Primary School","124331","2013-05-01","East Midlands","Lincolnshire County Council"]
[null,null,null,null,null,null,null,null,null,null,null,null,null,null,"Our Lady of Lincoln Catholic Primary School","124317","2013-05-01","East Midlands","Lincolnshire County Council"]
[null,null,null,null,null,null,null,null,null,null,null,null,null,null,"Our Lady of Lourdes Catholic Primary School, Witney","124082","2013-04-01","South East","Oxfordshire County Council"]
[null,null,null,null,null,null,null,null,null,null,null,null,null,null,"Our Lady of Perpetual Succour Catholic Primary School","122348","2012-07-01","East Midlands","Nottingham City Council"]
[null,null,null,null,null,null,null,null,null,null,null,null,null,null,"Our Lady of Pity Catholic Primary School",125264,"2013-12-01","North West","Wirral Metropolitan Borough Council"]
[null,null,null,null,null,null,null,null,null,null,null,null,null,null,"Our Lady Roman Catholic Primary School","122399","2012-07-01","East of England","Hertfordshire County Council"]
[null,null,null,null,null,null,null,null,null,null,null,null,null,null,"Our Lady's Catholic Primary School - Oxford","123876","2013-04-01","South East","Oxfordshire County Council"]
[null,null,null,null,null,null,null,null,null,null,null,null,null,null,"Our Lady's Catholic Primary School - Stoke",124634,"2013-11-01","West Midlands","Stoke on Trent City Council"]
[null,null,null,null,null,null,null,null,null,null,null,null,null,null,"Ousedale School","120052","2011-08-01","South East","Milton Keynes Council"]
[null,null,null,null,null,null,null,null,null,null,null,null,null,null,"Outwood Academy - Adwick","119090","2009-09-01","Yorkshire & Humberside","Doncaster Metropolitan Borough Council"]
[null,null,null,null,null,null,null,null,null,null,null,null,null,null,"Outwood Academy - Brumby","122932","2013-04-01","Yorkshire & Humberside","North Lincolnshire Council"]
[null,null,null,null,null,null,null,null,null,null,null,null,null,null,"Outwood Academy - Kirkhamgate","122312","2013-03-01","Yorkshire & Humberside","Wakefield Council"]
[null,null,null,null,null,null,null,null,null,null,null,null,null,null,"Outwood Academy - Portland","120143","2012-06-01","East Midlands","Nottinghamshire County Council"]
[null,null,null,null,null,null,null,null,null,null,null,null,null,null,"Outwood Academy - Ripon","120447","2011-09-01","Yorkshire & Humberside","North Yorkshire County Council"]
[null,null,null,null,null,null,null,null,null,null,null,null,null,null,"Outwood Academy Acklam","122305","2013-09-01","North East","Middlesbrough Council"]
[null,null,null,null,null,null,null,null,null,null,null,null,null,null,"Outwood Grange Academy","119076","2009-09-01","Yorkshire & Humberside","Wakefield Council"]
[null,null,null,null,null,null,null,null,null,null,null,null,null,null,"Outwood Grange Academy Valley","120144","2012-06-01","East Midlands","Nottinghamshire County Council"]
[null,null,null,null,null,null,null,null,null,null,null,null,null,null,"Outwood Ledger Lane Junior and Infant School","122780","2012-12-01","Yorkshire & Humberside","Wakefield Council"]
[null,null,null,null,null,null,null,null,null,null,null,null,null,null,"Outwoods Edge Primary School","122669","2012-12-01","East Midlands","Leicestershire County Council"]
[null,null,null,null,null,null,null,null,null,null,null,null,null,null,"Over Hall Community School","124307","2013-09-01","North West","Cheshire West and Chester Council"]
[null,null,null,null,null,null,null,null,null,null,null,null,null,null,"Overhills Primary School",127277,"2014-01-01","East of England","Cambridgeshire County Council"]
[null,null,null,null,null,null,null,null,null,null,null,null,null,null,"Overthorpe Church of England Voluntary Controlled Junior, Infant and Nursery School","122973","2013-03-01","Yorkshire & Humberside","Kirklees Metropolitan Council"]
[null,null,null,null,null,null,null,null,null,null,null,null,null,null,"Overton Grange School","119779","2011-06-01","London","Sutton London Borough Council"]
[null,null,null,null,null,null,null,null,null,null,null,null,null,null,"Owton Manor Primary School","124568","2013-07-01","North East","Hartlepool Borough Council"]
[null,null,null,null,null,null,null,null,null,null,null,null,null,null,"Oxclose Community School","122983","2012-11-01","North East","Sunderland City Council"]
[null,null,null,null,null,null,null,null,null,null,null,null,null,null,"Oxford Academy, The","118674","2008-09-02","South East","Oxfordshire County Council"]
[null,null,null,null,null,null,null,null,null,null,null,null,null,null,"Oxford Spires Academy","119438","2011-01-01","South East","Oxfordshire County Council"]
[null,null,null,null,null,null,null,null,null,null,null,null,null,null,"Oxley Park Primary School","119828","2011-07-01","South East","Milton Keynes Council"]
[null,null,null,null,null,null,null,null,null,null,null,null,null,null,"Paddington Academy","118638","2006-09-01","London","Westminster City Council"]
[null,null,null,null,null,null,null,null,null,null,null,null,null,null,"Padstow School","120183","2011-08-01","South West","Cornwall Council"]
[null,null,null,null,null,null,null,null,null,null,null,null,null,null,"Paignton Community and Sports College","122789","2012-10-01","South West","Torbay Council"]
[null,null,null,null,null,null,null,null,null,null,null,null,null,null,"Painsley Catholic College","122686","2012-09-01","West Midlands","Staffordshire County Council"]
[null,null,null,null,null,null,null,null,null,null,null,null,null,null,"Palace Fields Primary School","120301","2011-08-17","North West","Halton Borough Council"]
[null,null,null,null,null,null,null,null,null,null,null,null,null,null,"Palatine Community Sports College",124998,"2013-12-01","North West","Blackpool Council"]
[null,null,null,null,null,null,null,null,null,null,null,null,null,null,"Palmer Catholic Academy, The","120088","2011-08-01","London","Redbridge London Borough Council"]
[null,null,null,null,null,null,null,null,null,null,null,null,null,null,"Palmer Primary Academy, The","123180","2013-09-01","South East","Reading Borough Council"]
[null,null,null,null,null,null,null,null,null,null,null,null,null,null,"Parbold Douglas Church of England Primary School","120127","2011-08-01","North West","Lancashire County Council"]
[null,null,null,null,null,null,null,null,null,null,null,null,null,null,"Parish Church of England Primary School","120741","2013-08-01","London","Bromley London Borough Council"]
[null,null,null,null,null,null,null,null,null,null,null,null,null,null,"Park Hall Academy - Solihull","118922","2009-09-01","West Midlands","Solihull Metropolitan Borough Council"]
[null,null,null,null,null,null,null,null,null,null,null,null,null,null,"Park Hall Infant Academy - Walsall","119293","2010-10-01","West Midlands","Walsall Metropolitan Borough Council"]
[null,null,null,null,null,null,null,null,null,null,null,null,null,null,"Park Hall Junior School","120751","2012-01-01","West Midlands","Walsall Metropolitan Borough Council"]
[null,null,null,null,null,null,null,null,null,null,null,null,null,null,"Park High School","120075","2011-08-01","London","Harrow London Borough Council"]
[null,null,null,null,null,null,null,null,null,null,null,null,null,null,"Park House School & Sports College","119729","2011-05-01","South East","West Berkshire Council"]
[null,null,null,null,null,null,null,null,null,null,null,null,null,null,"Park Lane (Foundation) Primary School, The",121061,"2014-01-01","East of England","Cambridgeshire County Council"]
[null,null,null,null,null,null,null,null,null,null,null,null,null,null,"Park Lane Primary School Nursery and Parents' Centre",124296,"2013-11-01","West Midlands","Warwickshire County Council"]
[null,null,null,null,null,null,null,null,null,null,null,null,null,null,"Park Primary School - Boston","123827","2013-01-01","East Midlands","Lincolnshire County Council"]
[null,null,null,null,null,null,null,null,null,null,null,null,null,null,"Park Road Primary School - Altrincham","119393","2011-01-01","North West","Trafford Borough Council"]
[null,null,null,null,null,null,null,null,null,null,null,null,null,null,"Park Road Primary School - Sale","124518","2013-09-01","North West","Trafford Borough Council"]
[null,null,null,null,null,null,null,null,null,null,null,null,null,null,"Park School","124119","2013-09-01","North West","Blackpool Council"]
[null,null,null,null,null,null,null,null,null,null,null,null,null,null,"Park View Business and Enterprise School","120743","2012-04-01","West Midlands","Birmingham City Council"]
[null,null,null,null,null,null,null,null,null,null,null,null,null,null,"Park View Community School","119971","2011-08-01","North East","Durham County Council"]
[null,null,null,null,null,null,null,null,null,null,null,null,null,null,"Park View Primary Academy","122482","2012-09-01","Yorkshire & Humberside","Leeds City Council"]
[null,null,null,null,null,null,null,null,null,null,null,null,null,null,"Parkfield Community School - Saltley","122778","2013-01-01","West Midlands","Birmingham City Council"]
[null,null,null,null,null,null,null,null,null,null,null,null,null,null,"Parkfield Primary School - Hendon","124343","2013-08-01","London","Barnet London Borough Council"]
[null,null,null,null,null,null,null,null,null,null,null,null,null,null,"Parkfield School - Bournemouth","121999","2013-09-01","South West","Bournemouth Borough Council"]
[null,null,null,null,null,null,null,null,null,null,null,null,null,null,"Parkland Primary School","122115","2012-07-01","East Midlands","Leicestershire County Council"]
[null,null,null,null,null,null,null,null,null,null,null,null,null,null,"Parklands High School","121171","2012-09-01","North West","Lancashire County Council"]
[null,null,null,null,null,null,null,null,null,null,null,null,null,null,"Parkroyal Community School",126541,"2013-12-01","North West","Cheshire East Council"]
[null,null,null,null,null,null,null,null,null,null,null,null,null,null,"Parks Academy, The - Hull",124662,"2013-12-01","Yorkshire & Humberside","Hull City Council"]
[null,null,null,null,null,null,null,null,null,null,null,null,null,null,"Parkside Community College","119655","2011-04-01","East of England","Cambridgeshire County Council"]
[null,null,null,null,null,null,null,null,null,null,null,null,null,null,"Parkside Primary Academy","122724","2012-12-01","Yorkshire & Humberside","Barnsley Metropolitan Borough Council"]
[null,null,null,null,null,null,null,null,null,null,null,null,null,null,"Parkside Sports College","121093","2012-03-01","North East","Durham County Council"]
[null,null,null,null,null,null,null,null,null,null,null,null,null,null,"Parkside Studio College","122531","2012-09-01","London","Hillingdon London Borough Council"]
[null,null,null,null,null,null,null,null,null,null,null,null,null,null,"Parkstone Grammar School","119399","2011-01-01","South West","Poole Borough Council"]
[null,null,null,null,null,null,null,null,null,null,null,null,null,null,"Parkwood Academy","119130","2009-09-01","Yorkshire & Humberside","Sheffield City Council"]
[null,null,null,null,null,null,null,null,null,null,null,null,null,null,"Parmiter's School","119869","2011-07-01","East of England","Hertfordshire County Council"]
[null,null,null,null,null,null,null,null,null,null,null,null,null,null,"Parson Street Primary School","122891","2012-11-01","South West","Bristol City Council"]
[null,null,null,null,null,null,null,null,null,null,null,null,null,null,"Passmores Academy","120323","2011-09-01","East of England","Essex County Council"]
[null,null,null,null,null,null,null,null,null,null,null,null,null,null,"Pastures Primary School, The - Narborough","123880","2013-05-01","East Midlands","Leicestershire County Council"]
[null,null,null,null,null,null,null,null,null,null,null,null,null,null,"Patchway Community College",124517,"2013-11-01","South West","South Gloucestershire Council"]
[null,null,null,null,null,null,null,null,null,null,null,null,null,null,"Pate's Grammar School","119380","2010-12-01","South West","Gloucestershire County Council"]
[null,null,null,null,null,null,null,null,null,null,null,null,null,null,"Paulsgrove Primary School","122635","2013-01-01","South East","Portsmouth City Council"]
[null,null,null,null,null,null,null,null,null,null,null,null,null,null,"Peafield Lane Academy","127357","2014-03-01","East Midlands","Nottinghamshire County Council"]
[null,null,null,null,null,null,null,null,null,null,null,null,null,null,"Peak Academy","121883","2012-09-01","South West","Gloucestershire County Council"]
[null,null,null,null,null,null,null,null,null,null,null,null,null,null,"Peareswood Primary School","120329","2011-09-01","London","Bexley London Borough Council"]
[null,null,null,null,null,null,null,null,null,null,null,null,null,null,"Peaslake Free School","123329","2013-09-01","South East","Surrey County Council"]
[null,null,null,null,null,null,null,null,null,null,null,null,null,null,"Peatmoor Community Primary School",124131,"2013-11-01","South West","Swindon Borough Council"]
[null,null,null,null,null,null,null,null,null,null,null,null,null,null,"Pebsham Community Primary School",124603,"2014-01-01","South East","East Sussex County Council"]
[null,null,null,null,null,null,null,null,null,null,null,null,null,null,"Peckover Primary School","124194","2013-04-01","East of England","Cambridgeshire County Council"]
[null,null,null,null,null,null,null,null,null,null,null,null,null,null,"Pegasus Primary School - Birmingham","123852","2013-05-01","West Midlands","Birmingham City Council"]
[null,null,null,null,null,null,null,null,null,null,null,null,null,null,"Pegasus School - Oxford","123093","2013-08-01","South East","Oxfordshire County Council"]
[null,null,null,null,null,null,null,null,null,null,null,null,null,null,"Pelham Primary School","123912","2013-04-01","London","Bexley London Borough Council"]
[null,null,null,null,null,null,null,null,null,null,null,null,null,null,"Pembroke Park Primary School","123850","2013-04-01","South West","Wiltshire Council"]
[null,null,null,null,null,null,null,null,null,null,null,null,null,null,"Pen Mill Infants' School","122745","2012-10-01","South West","Somerset County Council"]
[null,null,null,null,null,null,null,null,null,null,null,null,null,null,"Penair School A Science College","119571","2011-04-01","South West","Cornwall Council"]
[null,null,null,null,null,null,null,null,null,null,null,null,null,null,"Pencalenick School","120396","2011-09-01","South West","Cornwall Council"]
[null,null,null,null,null,null,null,null,null,null,null,null,null,null,"Penketh High School","123091","2013-04-01","North West","Warrington Borough Council"]
[null,null,null,null,null,null,null,null,null,null,null,null,null,null,"Pennine Way Junior School","120511","2011-10-01","East Midlands","Derbyshire County Council"]
[null,null,null,null,null,null,null,null,null,null,null,null,null,null,"Penny Bridge CofE School",124983,"2013-11-01","North West","Cumbria County Council"]
[null,null,null,null,null,null,null,null,null,null,null,null,null,null,"Pennyman Primary School","122241","2012-09-01","North East","Middlesbrough Council"]
[null,null,null,null,null,null,null,null,null,null,null,null,null,null,"Penrice Community College","119561","2011-04-01","South West","Cornwall Council"]
[null,null,null,null,null,null,null,null,null,null,null,null,null,null,"Penryn College","119852","2011-07-01","South West","Cornwall Council"]
[null,null,null,null,null,null,null,null,null,null,null,null,null,null,"Penwith Short Stay School","122648","2013-06-01","South West","Cornwall Council"]
[null,null,null,null,null,null,null,null,null,null,null,null,null,null,"Percy Shurmer Primary School","122090","2012-09-01","West Midlands","Birmingham City Council"]
[null,null,null,null,null,null,null,null,null,null,null,null,null,null,"Perins School A Community Sports College","120128","2011-08-01","South East","Hampshire County Council"]
[null,null,null,null,null,null,null,null,null,null,null,null,null,null,"Perry Beeches 2 Free School","122185","2012-09-01","West Midlands","Birmingham City Council"]
[null,null,null,null,null,null,null,null,null,null,null,null,null,null,"Perry Beeches III","128244","2013-09-01","West Midlands","Birmingham City Council"]
[null,null,null,null,null,null,null,null,null,null,null,null,null,null,"Perry Beeches School","120050","2012-05-03","West Midlands","Birmingham City Council"]
[null,null,null,null,null,null,null,null,null,null,null,null,null,null,"Perry Hall Primary School - Wednesfield","124207","2013-07-01","West Midlands","Wolverhampton City Council"]
[null,null,null,null,null,null,null,null,null,null,null,null,null,null,"Perry Hall School - Orpington",126479,"2013-12-01","London","Bromley London Borough Council"]
[null,null,null,null,null,null,null,null,null,null,null,null,null,null,"Perry Wood Primary and Nursery School","123088","2012-12-01","West Midlands","Worcestershire County Council"]
[null,null,null,null,null,null,null,null,null,null,null,null,null,null,"Pershore High School","119905","2011-07-01","West Midlands","Worcestershire County Council"]
[null,null,null,null,null,null,null,null,null,null,null,null,null,null,"Petchey Academy, The","118653","2006-09-01","London","Hackney London Borough Council (The Learning Trust)"]
[null,null,null,null,null,null,null,null,null,null,null,null,null,null,"Petersfield School, The","119857","2011-07-01","South East","Hampshire County Council"]
[null,null,null,null,null,null,null,null,null,null,null,null,null,null,"Petham Primary School","124764","2013-09-01","South East","Kent County Council"]
[null,null,null,null,null,null,null,null,null,null,null,null,null,null,"Pewsey Vale Specialist Arts College","119849","2011-07-01","South West","Wiltshire Council"]
[null,null,null,null,null,null,null,null,null,null,null,null,null,null,"Pheasant Bank Academy","120450","2011-09-01","Yorkshire & Humberside","Doncaster Metropolitan Borough Council"]
[null,null,null,null,null,null,null,null,null,null,null,null,null,null,"Philip Morant School and College","120589","2011-11-01","East of England","Essex County Council"]
[null,null,null,null,null,null,null,null,null,null,null,null,null,null,"Phoenix Junior Academy - Medway","121892","2012-09-01","South East","Medway Council"]
[null,null,null,null,null,null,null,null,null,null,null,null,null,null,"Phoenix School, The - Grantham","120724","2013-03-01","East Midlands","Lincolnshire County Council"]
[null,null,null,null,null,null,null,null,null,null,null,null,null,null,"Phoenix School, The - Telford","123888","2013-06-01","West Midlands","Telford and Wrekin Council"]
[null,null,null,null,null,null,null,null,null,null,null,null,null,null,"Pickhurst Infant School","120069","2011-08-01","London","Bromley London Borough Council"]
[null,null,null,null,null,null,null,null,null,null,null,null,null,null,"Pickhurst Junior School","120070","2011-08-01","London","Bromley London Borough Council"]
[null,null,null,null,null,null,null,null,null,null,null,null,null,null,"Piggott School, The","119891","2011-07-01","South East","Wokingham Borough Council"]
[null,null,null,null,null,null,null,null,null,null,null,null,null,null,"Pilgrims' Way Primary School and Nursery",120950,"2013-12-01","South East","Kent County Council"]
[null,null,null,null,null,null,null,null,null,null,null,null,null,null,"Pilton Community College","119867","2011-07-01","South West","Devon County Council"]
[null,null,null,null,null,null,null,null,null,null,null,null,null,null,"Pilton the Bluecoat Church of England Junior School","122351","2012-07-01","South West","Devon County Council"]
[null,null,null,null,null,null,null,null,null,null,null,null,null,null,"Pimlico Academy","118663","2008-09-01","London","Westminster City Council"]
[null,null,null,null,null,null,null,null,null,null,null,null,null,null,"Pimlico Primary","122038","2013-09-01","London","Westminster City Council"]
[null,null,null,null,null,null,null,null,null,null,null,null,null,null,"Pioneer School, The","122071","2012-06-01","East of England","Essex County Council"]
[null,null,null,null,null,null,null,null,null,null,null,null,null,null,"Place Farm Primary Academy","120836","2012-06-01","East of England","Suffolk County Council"]
[null,null,null,null,null,null,null,null,null,null,null,null,null,null,"Plains Farm Primary School","123942","2013-04-01","North East","Sunderland City Council"]
[null,null,null,null,null,null,null,null,null,null,null,null,null,null,"Plantsbrook School","120053","2011-08-01","West Midlands","Birmingham City Council"]
[null,null,null,null,null,null,null,null,null,null,null,null,null,null,"Platanos College","119507","2011-02-01","London","Lambeth London Borough Council"]
[null,null,null,null,null,null,null,null,null,null,null,null,null,null,"Platt Bridge Community Primary School","123236","2013-02-01","North West","Wigan Metropolitan Borough Council"]
[null,null,null,null,null,null,null,null,null,null,null,null,null,null,"Pluckley Church of England Primary School","120642","2012-04-01","South East","Kent County Council"]
[null,null,null,null,null,null,null,null,null,null,null,null,null,null,"Plumberow Primary School","120333","2011-09-01","East of England","Essex County Council"]
[null,null,null,null,null,null,null,null,null,null,null,null,null,null,"Plume School","120904","2012-01-01","East of England","Essex County Council"]
[null,null,null,null,null,null,null,null,null,null,null,null,null,null,"Plymouth School of Creative Arts","123330","2013-09-01","South West","Plymouth City Council"]
[null,null,null,null,null,null,null,null,null,null,null,null,null,null,"Plymstock School","119569","2011-04-01","South West","Plymouth City Council"]
[null,null,null,null,null,null,null,null,null,null,null,null,null,null,"Pochin School, THe","122406","2012-10-01","East Midlands","Leicestershire County Council"]
[null,null,null,null,null,null,null,null,null,null,null,null,null,null,"Pokesdown Community Primary School","123915","2013-04-01","South West","Bournemouth Borough Council"]
[null,null,null,null,null,null,null,null,null,null,null,null,null,null,"Polesworth School, The","119512","2011-02-01","West Midlands","Warwickshire County Council"]
[null,null,null,null,null,null,null,null,null,null,null,null,null,null,"Pontefract Carleton Park Junior and Infant School",124600,"2013-12-01","Yorkshire & Humberside","Wakefield Council"]
[null,null,null,null,null,null,null,null,null,null,null,null,null,null,"Pontefract De Lacy Primary School",124599,"2013-10-01","Yorkshire & Humberside","Wakefield Council"]
[null,null,null,null,null,null,null,null,null,null,null,null,null,null,"Pontefract Halfpenny Lane Junior Infant and Nursery School","123279","2013-04-01","Yorkshire & Humberside","Wakefield Council"]
[null,null,null,null,null,null,null,null,null,null,null,null,null,null,"Pontefract Larks Hill Junior and Infant School","123215","2013-04-01","Yorkshire & Humberside","Wakefield Council"]
[null,null,null,null,null,null,null,null,null,null,null,null,null,null,"Pontefract Orchard Head Junior and Infant School","123209","2013-04-01","Yorkshire & Humberside","Wakefield Council"]
[null,null,null,null,null,null,null,null,null,null,null,null,null,null,"Pool Academy","119590","2011-04-01","South West","Cornwall Council"]
[null,null,null,null,null,null,null,null,null,null,null,null,null,null,"Poole Grammar School","119850","2011-07-01","South West","Poole Borough Council"]
[null,null,null,null,null,null,null,null,null,null,null,null,null,null,"Porter Croft Sheffield Church of England Primary School","124347","2013-08-01","Yorkshire & Humberside","Sheffield City Council"]
[null,null,null,null,null,null,null,null,null,null,null,null,null,null,"Portfield Primary Academy","121962","2012-09-01","South East","West Sussex County Council"]
[null,null,null,null,null,null,null,null,null,null,null,null,null,null,"Portland College - Sunderland","122328","2012-08-01","North East","Sunderland City Council"]
[null,null,null,null,null,null,null,null,null,null,null,null,null,null,"Portland School - Nottingham",124989,"2014-02-01","East Midlands","Nottingham City Council"]
[null,null,null,null,null,null,null,null,null,null,null,null,null,null,"Portslade Aldridge Community Academy","119937","2011-09-01","South East","Brighton and Hove City Council"]
[null,null,null,null,null,null,null,null,null,null,null,null,null,null,"Portsmouth Academy for Girls","123958","2013-09-01","South East","Portsmouth City Council"]
[null,null,null,null,null,null,null,null,null,null,null,null,null,null,"Portswood Primary School","121114","2012-09-01","South East","Southampton City Council"]
[null,null,null,null,null,null,null,null,null,null,null,null,null,null,"Potter Street Primary School","124618","2013-09-01","East of England","Essex County Council"]
[null,null,null,null,null,null,null,null,null,null,null,null,null,null,"Powers Hall Junior School","124619","2013-07-01","East of England","Essex County Council"]
[null,null,null,null,null,null,null,null,null,null,null,null,null,null,"Premier Academy, The","119259","2010-09-01","South East","Milton Keynes Council"]
[null,null,null,null,null,null,null,null,null,null,null,null,null,null,"Prenton High School for Girls","120130","2011-08-01","North West","Wirral Metropolitan Borough Council"]
[null,null,null,null,null,null,null,null,null,null,null,null,null,null,"Presdales School","121129","2012-04-01","East of England","Hertfordshire County Council"]
[null,null,null,null,null,null,null,null,null,null,null,null,null,null,"President Kennedy School and Community College",124494,"2013-10-01","West Midlands","Coventry City Council"]
[null,null,null,null,null,null,null,null,null,null,null,null,null,null,"Preston CofE VC Primary School",124783,"2013-11-01","South West","Somerset County Council"]
[null,null,null,null,null,null,null,null,null,null,null,null,null,null,"Preston Hedges Primary School","122505","2012-12-01","East Midlands","Northamptonshire County Council"]
[null,null,null,null,null,null,null,null,null,null,null,null,null,null,"Preston Manor School","123910","2013-02-01","London","Brent London Borough Council"]
[null,null,null,null,null,null,null,null,null,null,null,null,null,null,"Preston School","119894","2011-07-01","South West","Somerset County Council"]
[null,null,null,null,null,null,null,null,null,null,null,null,null,null,"Priestlands School","120129","2011-08-01","South East","Hampshire County Council"]
[null,null,null,null,null,null,null,null,null,null,null,null,null,null,"Primrose Hill CofE Primary",123261,"2013-10-01","South West","Gloucestershire County Council"]
[null,null,null,null,null,null,null,null,null,null,null,null,null,null,"Prince Henry's High school","119469","2011-03-01","West Midlands","Worcestershire County Council"]
[null,null,null,null,null,null,null,null,null,null,null,null,null,null,"Princes Risborough","120378","2011-09-01","South East","Buckinghamshire County Council"]
[null,null,null,null,null,null,null,null,null,null,null,null,null,null,"Priors School, The","120470","2011-09-01","West Midlands","Warwickshire County Council"]
[null,null,null,null,null,null,null,null,null,null,null,null,null,null,"Priorslee Primary School","119439","2011-02-01","West Midlands","Telford and Wrekin Council"]
[null,null,null,null,null,null,null,null,null,null,null,null,null,null,"Priorswood Primary School","123890","2013-04-01","South West","Somerset County Council"]
[null,null,null,null,null,null,null,null,null,null,null,null,null,null,"Priory Academy - Dunstable","121207","2012-06-01","East of England","Central Bedfordshire Council"]
[null,null,null,null,null,null,null,null,null,null,null,null,null,null,"Priory Academy LSST, The","118690","2008-09-01","East Midlands","Lincolnshire County Council"]
[null,null,null,null,null,null,null,null,null,null,null,null,null,null,"Priory Academy Trust, The - Orpington","121934","2012-05-01T14:10:20","London","Bromley London Borough Council"]
[null,null,null,null,null,null,null,null,null,null,null,null,null,null,"Priory Catholic Primary School Eastwood","121063","2012-03-01","East Midlands","Nottinghamshire County Council"]
[null,null,null,null,null,null,null,null,null,null,null,null,null,null,"Priory City of Lincoln Academy","118689","2008-09-01","East Midlands","Lincolnshire County Council"]
[null,null,null,null,null,null,null,null,null,null,null,null,null,null,"Priory Community School","120300","2011-08-17","South West","North Somerset District Council"]
[null,null,null,null,null,null,null,null,null,null,null,null,null,null,"Priory Primary School - Hull",124766,"2013-11-01","Yorkshire & Humberside","Hull City Council"]
[null,null,null,null,null,null,null,null,null,null,null,null,null,null,"Priory Primary School, The - Tadley","119463","2011-02-01","South East","Hampshire County Council"]
[null,null,null,null,null,null,null,null,null,null,null,null,null,null,"Priory Ruskin Academy, The","119334","2010-09-01","East Midlands","Lincolnshire County Council"]
[null,null,null,null,null,null,null,null,null,null,null,null,null,null,"Priory School - Bury St Edmunds","120334","2011-09-01","East of England","Suffolk County Council"]
[null,null,null,null,null,null,null,null,null,null,null,null,null,null,"Priory School, The - A Business and Enterprise College - Shrewsbury","121168","2012-06-01","West Midlands","Shropshire Council"]
[null,null,null,null,null,null,null,null,null,null,null,null,null,null,"Priory Sports and Technology College - Penwortham","121835","2012-11-01","North West","Lancashire County Council"]
[null,null,null,null,null,null,null,null,null,null,null,null,null,null,"Priory Witham Academy","118688","2008-09-01","East Midlands","Lincolnshire County Council"]
[null,null,null,null,null,null,null,null,null,null,null,null,null,null,"Prospect School","119876","2011-07-01","South East","Reading Borough Council"]
[null,null,null,null,null,null,null,null,null,null,null,null,null,null,"Pulloxhill Lower School","120291","2011-08-17","East of England","Central Bedfordshire Council"]
[null,null,null,null,null,null,null,null,null,null,null,null,null,null,"Purfleet Primary School","123281","2013-04-01","East of England","Thurrock Borough Council"]
[null,null,null,null,null,null,null,null,null,null,null,null,null,null,"Purford Green Primary School","124751","2013-09-01","East of England","Essex County Council"]
[null,null,null,null,null,null,null,null,null,null,null,null,null,null,"Purston E-ACT Academy","120985","2012-09-01","Yorkshire & Humberside","Wakefield Council"]
[null,null,null,null,null,null,null,null,null,null,null,null,null,null,"Putnoe Primary School","123257","2013-04-01","East of England","Bedford Borough Council"]
[null,null,null,null,null,null,null,null,null,null,null,null,null,null,"Pyrcroft Grange Primary School",123763,"2013-12-01","South East","Surrey County Council"]
[null,null,null,null,null,null,null,null,null,null,null,null,null,null,"Q3 Academy","118641","2008-09-01","West Midlands","Sandwell Metropolitan Borough Council"]
[null,null,null,null,null,null,null,null,null,null,null,null,null,null,"Quarry Hill Primary and Pre School","124321","2013-07-01","East of England","Thurrock Borough Council"]
[null,null,null,null,null,null,null,null,null,null,null,null,null,null,"Quarrydale School","120944","2012-02-01T14:32:12","East Midlands","Nottinghamshire County Council"]
[null,null,null,null,null,null,null,null,null,null,null,null,null,null,"Quay School, The","122950","2013-04-01","South West","Poole Borough Council"]
[null,null,null,null,null,null,null,null,null,null,null,null,null,null,"Queen Eleanor Primary Academy, The","123905","2013-09-01","East Midlands","Northamptonshire County Council"]
[null,null,null,null,null,null,null,null,null,null,null,null,null,null,"Queen Elizabeth Grammar School - Penrith","119730","2011-05-01","North West","Cumbria County Council"]
[null,null,null,null,null,null,null,null,null,null,null,null,null,null,"Queen Elizabeth Humanities College - Bromyard","120824","2011-12-01","West Midlands","Herefordshire Council"]
[null,null,null,null,null,null,null,null,null,null,null,null,null,null,"Queen Elizabeth School - Kirby Lonsdale","119387","2010-12-01","North West","Cumbria County Council"]
[null,null,null,null,null,null,null,null,null,null,null,null,null,null,"Queen Elizabeth’s Grammar - Alford","119304","2010-10-01","East Midlands","Lincolnshire County Council"]
[null,null,null,null,null,null,null,null,null,null,null,null,null,null,"Queen Elizabeth's Academy - Mansfield","121103","2012-01-01","East Midlands","Nottinghamshire County Council"]
[null,null,null,null,null,null,null,null,null,null,null,null,null,null,"Queen Elizabeth's Academy Trust - Crediton","119673","2011-04-01","South West","Devon County Council"]
[null,null,null,null,null,null,null,null,null,null,null,null,null,null,"Queen Elizabeth's Girls' School - Barnet","120131","2011-08-01","London","Barnet London Borough Council"]
[null,null,null,null,null,null,null,null,null,null,null,null,null,null,"Queen Elizabeth's Grammar School - Ashbourne","119972","2011-08-01","East Midlands","Derbyshire County Council"]
[null,null,null,null,null,null,null,null,null,null,null,null,null,null,"Queen Elizabeth's Grammar School - Faversham","119566","2011-04-01","South East","Kent County Council"]
[null,null,null,null,null,null,null,null,null,null,null,null,null,null,"Queen Elizabeth's Grammar School - Horncastle","122791","2012-09-01","East Midlands","Lincolnshire County Council"]
[null,null,null,null,null,null,null,null,null,null,null,null,null,null,"Queen Elizabeth's School - Barnet","119272","2010-09-01","London","Barnet London Borough Council"]
[null,null,null,null,null,null,null,null,null,null,null,null,null,null,"Queen Katherine School, The","119629","2011-04-01","North West","Cumbria County Council"]
[null,null,null,null,null,null,null,null,null,null,null,null,null,null,"Queen Mary's Grammar School","119780","2011-06-01","West Midlands","Walsall Metropolitan Borough Council"]
[null,null,null,null,null,null,null,null,null,null,null,null,null,null,"Queen Mary's High School","119781","2011-06-01","West Midlands","Walsall Metropolitan Borough Council"]
[null,null,null,null,null,null,null,null,null,null,null,null,null,null,"Queens Church of England Academy",124671,"2014-01-01","West Midlands","Warwickshire County Council"]
[null,null,null,null,null,null,null,null,null,null,null,null,null,null,"Queen's Park Academy","119577","2011-04-01","East of England","Bedford Borough Council"]
[null,null,null,null,null,null,null,null,null,null,null,null,null,null,"Queens Park Community School","122740","2012-09-01","London","Brent London Borough Council"]
[null,null,null,null,null,null,null,null,null,null,null,null,null,null,"Queens Park Infant School","124136","2013-04-01","South West","Bournemouth Borough Council"]
[null,null,null,null,null,null,null,null,null,null,null,null,null,null,"Queen's Park Junior School","122570","2012-10-01","South West","Bournemouth Borough Council"]
[null,null,null,null,null,null,null,null,null,null,null,null,null,null,"Queens Road Academy","122844","2013-09-01","Yorkshire & Humberside","Barnsley Metropolitan Borough Council"]
[null,null,null,null,null,null,null,null,null,null,null,null,null,null,"Queens' School","119877","2011-07-01","East of England","Hertfordshire County Council"]
[null,null,null,null,null,null,null,null,null,null,null,null,null,null,"Queensbury Academy","121863","2012-09-01","East of England","Central Bedfordshire Council"]
[null,null,null,null,null,null,null,null,null,null,null,null,null,null,"Queensmead Community Primary School","122873","2012-11-01","East Midlands","Leicester City Council"]
[null,null,null,null,null,null,null,null,null,null,null,null,null,null,"Queensmead School","119731","2011-05-01","London","Hillingdon London Borough Council"]
[null,null,null,null,null,null,null,null,null,null,null,null,null,null,"Queniborough Church of England Primary School","122369","2012-11-01","East Midlands","Leicestershire County Council"]
[null,null,null,null,null,null,null,null,null,null,null,null,null,null,"Quest Academy, The","119329","2010-09-01","London","Croydon London Borough Council"]
[null,null,null,null,null,null,null,null,null,null,null,null,null,null,"Quethiock CofE VA School",129580,"2013-12-01","South West","Cornwall Council"]
[null,null,null,null,null,null,null,null,null,null,null,null,null,null,"Quinta Primary School, The",127590,"2014-01-01","North West","Cheshire East Council"]
[null,null,null,null,null,null,null,null,null,null,null,null,null,null,"Quintin Kynaston School","120595","2011-11-01","London","Westminster City Council"]
[null,null,null,null,null,null,null,null,null,null,null,null,null,null,"RA Butler Infant School, The","119355","2010-11-01","East of England","Essex County Council"]
[null,null,null,null,null,null,null,null,null,null,null,null,null,null,"RA Butler Junior School, The","119354","2010-11-01","East of England","Essex County Council"]
[null,null,null,null,null,null,null,null,null,null,null,null,null,null,"Race Leys Junior School","122244","2012-09-01","West Midlands","Warwickshire County Council"]
[null,null,null,null,null,null,null,null,null,null,null,null,null,null,"Racemeadow Primary School",124654,"2013-11-01","West Midlands","Warwickshire County Council"]
[null,null,null,null,null,null,null,null,null,null,null,null,null,null,"Radcliffe Primary School",124288,"2014-01-01","North West","Bury Metropolitan Borough Council"]
[null,null,null,null,null,null,null,null,null,null,null,null,null,null,"Radford Primary School",126326,"2014-01-01","West Midlands","Coventry City Council"]
[null,null,null,null,null,null,null,null,null,null,null,null,null,null,"Raglan Primary School","121206","2013-09-01","London","Bromley London Borough Council"]
[null,null,null,null,null,null,null,null,null,null,null,null,null,null,"Rainbow Primary","120320","2011-09-01","Yorkshire & Humberside","Bradford Metropolitan District Council"]
[null,null,null,null,null,null,null,null,null,null,null,null,null,null,"Rainham Mark Grammar School","119864","2011-07-01","South East","Medway Council"]
[null,null,null,null,null,null,null,null,null,null,null,null,null,null,"Rainham School for Girls","119462","2011-02-01","South East","Medway Council"]
[null,null,null,null,null,null,null,null,null,null,null,null,null,null,"Raleigh School, The","120014","2011-08-01","South East","Surrey County Council"]
[null,null,null,null,null,null,null,null,null,null,null,null,null,null,"Ralph Allen School","122732","2012-08-01","South West","Bath & North East Somerset Council"]
[null,null,null,null,null,null,null,null,null,null,null,null,null,null,"Ralph Sadleir Middle School",121846,"2013-10-01","East of England","Hertfordshire County Council"]
[null,null,null,null,null,null,null,null,null,null,null,null,null,null,"Ramnoth Junior School",125173,"2013-10-01","East of England","Cambridgeshire County Council"]
[null,null,null,null,null,null,null,null,null,null,null,null,null,null,"Ramsey Academy, Halstead, The","120966","2013-09-01","East of England","Essex County Council"]
[null,null,null,null,null,null,null,null,null,null,null,null,null,null,"Ramsgate, Christ Church Church of England Junior School",122877,"2013-12-01","South East","Kent County Council"]
[null,null,null,null,null,null,null,null,null,null,null,null,null,null,"Ranelagh Church of England School","120267","2011-08-01","South East","Bracknell Forest Council"]
[null,null,null,null,null,null,null,null,null,null,null,null,null,null,"Range High School","120526","2011-11-01","North West","Sefton Metropolitan Borough Council"]
[null,null,null,null,null,null,null,null,null,null,null,null,null,null,"Rastrick High School","120446","2011-09-01","Yorkshire & Humberside","Calderdale Metropolitan Borough Council"]
[null,null,null,null,null,null,null,null,null,null,null,null,null,null,"Ratby Primary School","123085","2013-02-01","East Midlands","Leicestershire County Council"]
[null,null,null,null,null,null,null,null,null,null,null,null,null,null,"Ratton School","122093","2012-08-01","South East","East Sussex County Council"]
[null,null,null,null,null,null,null,null,null,null,null,null,null,null,"Rauceby Church of England Primary School","122082","2012-07-01","East Midlands","Lincolnshire County Council"]
[null,null,null,null,null,null,null,null,null,null,null,null,null,null,"Ravens Academy","122937","2013-09-01","East of England","Essex County Council"]
[null,null,null,null,null,null,null,null,null,null,null,null,null,null,"Ravens Wood School","119606","2011-04-01","London","Bromley London Borough Council"]
[null,null,null,null,null,null,null,null,null,null,null,null,null,null,"Ravensbourne School, The","119670","2011-04-01","London","Bromley London Borough Council"]
[null,null,null,null,null,null,null,null,null,null,null,null,null,null,"Ravensthorpe Infant and Nursery School",126480,"2014-02-01","Yorkshire & Humberside","Kirklees Metropolitan Council"]
[null,null,null,null,null,null,null,null,null,null,null,null,null,null,"Rawlett School, The","122358","2012-09-01","West Midlands","Staffordshire County Council"]
[null,null,null,null,null,null,null,null,null,null,null,null,null,null,"Rawlins Community College","114120","2011-11-01","East Midlands","Leicestershire County Council"]
[null,null,null,null,null,null,null,null,null,null,null,null,null,null,"Rawmarsh Sandhill Primary School",125201,"2013-12-01","Yorkshire & Humberside","Rotherham Metropolitan Borough Council"]
[null,null,null,null,null,null,null,null,null,null,null,null,null,null,"Rayleigh Primary School Academy Trust, The","123174","2013-04-01","East of England","Essex County Council"]
[null,null,null,null,null,null,null,null,null,null,null,null,null,null,"Raynsford VC Lower School","122508","2013-04-01","East of England","Central Bedfordshire Council"]
[null,null,null,null,null,null,null,null,null,null,null,null,null,null,"Reach Academy: Feltham","122007","2012-09-01","London","Hounslow London Borough Council"]
[null,null,null,null,null,null,null,null,null,null,null,null,null,null,"Reach Free School, The","123363","2013-09-01","East of England","Hertfordshire County Council"]
[null,null,null,null,null,null,null,null,null,null,null,null,null,null,"Reach School","123410","2013-09-01","West Midlands","Birmingham City Council"]
[null,null,null,null,null,null,null,null,null,null,null,null,null,null,"Reading School","119465","2011-02-01","South East","Reading Borough Council"]
[null,null,null,null,null,null,null,null,null,null,null,null,null,null,"Reaside Academy","122591","2012-12-01","West Midlands","Birmingham City Council"]
[null,null,null,null,null,null,null,null,null,null,null,null,null,null,"Red Hill Field Primary School","123258","2013-03-01","East Midlands","Leicestershire County Council"]
[null,null,null,null,null,null,null,null,null,null,null,null,null,null,"Red House Academy","119144","2009-09-01","North East","Sunderland City Council"]
[null,null,null,null,null,null,null,null,null,null,null,null,null,null,"Redborne Upper School and Community College","119574","2011-04-01","East of England","Central Bedfordshire Council"]
[null,null,null,null,null,null,null,null,null,null,null,null,null,null,"Redby Primary School","120356","2011-09-01","North East","Sunderland City Council"]
[null,null,null,null,null,null,null,null,null,null,null,null,null,null,"Redcar Community College","123071","2012-12-01","North East","Redcar and Cleveland Borough Council"]
[null,null,null,null,null,null,null,null,null,null,null,null,null,null,"Redden Court School","120351","2011-09-01","London","Havering London Borough Council"]
[null,null,null,null,null,null,null,null,null,null,null,null,null,null,"Reddish Vale Technology College","120733","2012-02-01","North West","Stockport Metropolitan Borough Council"]
[null,null,null,null,null,null,null,null,null,null,null,null,null,null,"Redhill Academy","119386","2010-12-01","East Midlands","Nottinghamshire County Council"]
[null,null,null,null,null,null,null,null,null,null,null,null,null,null,"Redhill Foundation Primary School","121006","2012-03-01","East Midlands","Derbyshire County Council"]
[null,null,null,null,null,null,null,null,null,null,null,null,null,null,"Redhill School and Specialist Language College","123889","2013-07-01","West Midlands","Dudley Metropolitan Borough Council"]
[null,null,null,null,null,null,null,null,null,null,null,null,null,null,"Redland Green","122427","2012-10-01","South West","Bristol City Council"]
[null,null,null,null,null,null,null,null,null,null,null,null,null,null,"Redmarley Church of England Primary School","120132","2011-08-01","South West","Gloucestershire County Council"]
[null,null,null,null,null,null,null,null,null,null,null,null,null,null,"Redmoor High School Academy Trust","121153","2012-04-01","East Midlands","Leicestershire County Council"]
[null,null,null,null,null,null,null,null,null,null,null,null,null,null,"Redriff Primary School","120878","2011-11-01","London","Southwark London Borough Council"]
[null,null,null,null,null,null,null,null,null,null,null,null,null,null,"Redstart Primary School, The","119903","2011-07-01","South West","Somerset County Council"]
[null,null,null,null,null,null,null,null,null,null,null,null,null,null,"Reedswood E-ACT Primary Academy","122033","2012-09-01","West Midlands","Walsall Metropolitan Borough Council"]
[null,null,null,null,null,null,null,null,null,null,null,null,null,null,"Reepham High School and College","122382","2012-10-01","East of England","Norfolk County Council"]
[null,null,null,null,null,null,null,null,null,null,null,null,null,null,"Regency High School",125024,"2013-10-01","West Midlands","Worcestershire County Council"]
[null,null,null,null,null,null,null,null,null,null,null,null,null,null,"Regis Manor Community Primary School","119798","2011-06-01","South East","Kent County Council"]
[null,null,null,null,null,null,null,null,null,null,null,null,null,null,"Regis School, The","120908","2012-01-01","South East","West Sussex County Council"]
[null,null,null,null,null,null,null,null,null,null,null,null,null,null,"Reid Street Primary School","119836","2011-07-01","North East","Darlington Borough Council"]
[null,null,null,null,null,null,null,null,null,null,null,null,null,null,"Rendell Primary School","122562","2012-11-01","East Midlands","Leicestershire County Council"]
[null,null,null,null,null,null,null,null,null,null,null,null,null,null,"Restormel PRU","122701","2013-06-01","South West","Cornwall Council"]
[null,null,null,null,null,null,null,null,null,null,null,null,null,null,"Retford Oaks Academy","120117","2012-04-01","East Midlands","Nottinghamshire County Council"]
[null,null,null,null,null,null,null,null,null,null,null,null,null,null,"Reynolds Primary School","124663","2013-09-01","Yorkshire & Humberside","North East Lincolnshire Council"]
[null,null,null,null,null,null,null,null,null,null,null,null,null,null,"Ribston Hall High School","119782","2011-06-01","South West","Gloucestershire County Council"]
[null,null,null,null,null,null,null,null,null,null,null,null,null,null,"Richard Challoner School","120299","2011-08-17","London","Royal Borough of Kingston Upon Thames Council"]
[null,null,null,null,null,null,null,null,null,null,null,null,null,null,"Richard Hale School","120857","2013-07-01","East of England","Hertfordshire County Council"]
[null,null,null,null,null,null,null,null,null,null,null,null,null,null,"Richard Rose Central Academy","118687","2008-09-04","North West","Cumbria County Council"]
[null,null,null,null,null,null,null,null,null,null,null,null,null,null,"Richard Rose Morton Academy","118691","2008-09-04","North West","Cumbria County Council"]
[null,null,null,null,null,null,null,null,null,null,null,null,null,null,"Richmond Hill Primary School",129570,"2014-02-01","Yorkshire & Humberside","Doncaster Metropolitan Borough Council"]
[null,null,null,null,null,null,null,null,null,null,null,null,null,null,"Richmond Park Academy","119310","2010-09-01","London","Richmond Upon Thames Borough Council"]
[null,null,null,null,null,null,null,null,null,null,null,null,null,null,"Rickley Park Primary School","122608","2012-11-01","South East","Milton Keynes Council"]
[null,null,null,null,null,null,null,null,null,null,null,null,null,null,"Rickmansworth School","119620","2011-04-01","East of England","Hertfordshire County Council"]
[null,null,null,null,null,null,null,null,null,null,null,null,null,null,"Riddlesdown Collegiate","121932","2012-06-01","London","Croydon London Borough Council"]
[null,null,null,null,null,null,null,null,null,null,null,null,null,null,"Ridge Academy, The","121882","2012-09-01","South West","Gloucestershire County Council"]
[null,null,null,null,null,null,null,null,null,null,null,null,null,null,"Ridgeway Middle School","122957","2012-12-01","West Midlands","Worcestershire County Council"]
[null,null,null,null,null,null,null,null,null,null,null,null,null,null,"Ridgeway Primary Academy - Market Harborough","122179","2012-07-01","East Midlands","Leicestershire County Council"]
[null,null,null,null,null,null,null,null,null,null,null,null,null,null,"Ridgeway Primary School - South Shields","123050","2013-02-01","North East","South Tyneside Council"]
[null,null,null,null,null,null,null,null,null,null,null,null,null,null,"Ridgeway School - Plymouth","119599","2011-04-01","South West","Plymouth City Council"]
[null,null,null,null,null,null,null,null,null,null,null,null,null,null,"Ridgeway School & Sixth Form College, The - Swindon","120160","2011-08-01","South West","Swindon Borough Council"]
[null,null,null,null,null,null,null,null,null,null,null,null,null,null,"Ridgewood School","120553","2011-11-01","Yorkshire & Humberside","Doncaster Metropolitan Borough Council"]
[null,null,null,null,null,null,null,null,null,null,null,null,null,null,"Rimon Jewish Primary School","121983","2012-09-01","London","Barnet London Borough Council"]
[null,null,null,null,null,null,null,null,null,null,null,null,null,null,"Ringmer Academy","120232","2011-08-01","South East","East Sussex County Council"]
[null,null,null,null,null,null,null,null,null,null,null,null,null,null,"Ringwood School","119644","2011-04-01","South East","Hampshire County Council"]
[null,null,null,null,null,null,null,null,null,null,null,null,null,null,"Ripley St Thomas C of E High School","119732","2011-05-01","North West","Lancashire County Council"]
[null,null,null,null,null,null,null,null,null,null,null,null,null,null,"Risdene Academy (ex Newton Road Community Primary School)","124676","2013-06-01","East Midlands","Northamptonshire County Council"]
[null,null,null,null,null,null,null,null,null,null,null,null,null,null,"River Bank Primary School","123332","2013-09-01","East of England","Luton Borough Council"]
[null,null,null,null,null,null,null,null,null,null,null,null,null,null,"River Beach Primary School","124984","2013-09-01","South East","West Sussex County Council"]
[null,null,null,null,null,null,null,null,null,null,null,null,null,null,"Riverley Primary School",123192,"2013-11-01","London","Waltham Forest London Borough Council"]
[null,null,null,null,null,null,null,null,null,null,null,null,null,null,"Rivers Academy West London","120009","2011-08-01","London","Hounslow London Borough Council"]
[null,null,null,null,null,null,null,null,null,null,null,null,null,null,"Riverside Primary Academy - Gateshead","122345","2012-07-01","North East","Gateshead Council"]
[null,null,null,null,null,null,null,null,null,null,null,null,null,null,"Riverside Primary School - Newbold","122862","2012-11-01","West Midlands","Warwickshire County Council"]
[null,null,null,null,null,null,null,null,null,null,null,null,null,null,"Riverside School - Barking","123355","2013-09-01","London","Barking and Dagenham London Borough Council"]
[null,null,null,null,null,null,null,null,null,null,null,null,null,null,"Riversides School - Worcester",127343,"2014-01-01","West Midlands","Worcestershire County Council"]
[null,null,null,null,null,null,null,null,null,null,null,null,null,null,"RNIB Three Spires Academy","124573","2013-09-01","West Midlands","Coventry City Council"]
[null,null,null,null,null,null,null,null,null,null,null,null,null,null,"Robert Bakewell Primary School and Community Centre",122742,"2013-12-01","East Midlands","Leicestershire County Council"]
[null,null,null,null,null,null,null,null,null,null,null,null,null,null,"Robert Bloomfield Academy","119733","2011-05-01","East of England","Central Bedfordshire Council"]
[null,null,null,null,null,null,null,null,null,null,null,null,null,null,"Robert Drake Primary School, The","120246","2011-08-01","East of England","Essex County Council"]
[null,null,null,null,null,null,null,null,null,null,null,null,null,null,"Robert Fitzroy Academy","122747","2012-09-01","London","Croydon London Borough Council"]
[null,null,null,null,null,null,null,null,null,null,null,null,null,null,"Robert May's School","120711","2012-05-01","South East","Hampshire County Council"]
[null,null,null,null,null,null,null,null,null,null,null,null,null,null,"Robert Napier Academy","121891","2012-09-01","South East","Medway Council"]
[null,null,null,null,null,null,null,null,null,null,null,null,null,null,"Robert Owen Vocational School","123334","2013-09-01","West Midlands","Herefordshire Council"]
[null,null,null,null,null,null,null,null,null,null,null,null,null,null,"Robert Smyth School, The","120161","2011-08-01","East Midlands","Leicestershire County Council"]
[null,null,null,null,null,null,null,null,null,null,null,null,null,null,"Robert Wilkinson Primary School",124206,"2013-12-01","Yorkshire & Humberside","City of York Council"]
[null,null,null,null,null,null,null,null,null,null,null,null,null,null,"Robin Hood Junior and Infant School",125260,"2013-10-01","West Midlands","Birmingham City Council"]
[null,null,null,null,null,null,null,null,null,null,null,null,null,null,"Robinswood Primary School","119598","2011-04-01","South West","Gloucestershire County Council"]
[null,null,null,null,null,null,null,null,null,null,null,null,null,null,"Rochester Grammar School, The","119362","2010-11-01","South East","Medway Council"]
[null,null,null,null,null,null,null,null,null,null,null,null,null,null,"Rockingham Primary School","124646","2013-08-01","East Midlands","Northamptonshire County Council"]
[null,null,null,null,null,null,null,null,null,null,null,null,null,null,"Rodborough Technology College","120019","2011-08-01","South East","Surrey County Council"]
[null,null,null,null,null,null,null,null,null,null,null,null,null,null,"Rodbourne Cheney Primary School","121904","2012-07-01","South West","Swindon Borough Council"]
[null,null,null,null,null,null,null,null,null,null,null,null,null,null,"Rodillian Academy, The","120842","2012-07-01","Yorkshire & Humberside","Leeds City Council"]
[null,null,null,null,null,null,null,null,null,null,null,null,null,null,"Roger Ascham Primary School","119391","2011-01-01","London","Waltham Forest London Borough Council"]
[null,null,null,null,null,null,null,null,null,null,null,null,null,null,"Rolph Church of England Primary School",129443,"2014-01-01","East of England","Essex County Council"]
[null,null,null,null,null,null,null,null,null,null,null,null,null,null,"Romsey School, The","120239","2011-08-01","South East","Hampshire County Council"]
[null,null,null,null,null,null,null,null,null,null,null,null,null,null,"Rookeries Carleton Junior and Infant School: With Hearing Impairment Resource, The","123205","2013-04-01","Yorkshire & Humberside","Wakefield Council"]
[null,null,null,null,null,null,null,null,null,null,null,null,null,null,"Rookery School & Children's Centre","120168","2011-08-01","West Midlands","Birmingham City Council"]
[null,null,null,null,null,null,null,null,null,null,null,null,null,null,"Rooks Heath High School","120198","2011-08-01","London","Harrow London Borough Council"]
[null,null,null,null,null,null,null,null,null,null,null,null,null,null,"Rooks Nest Junior, Infant and Nursery School","120448","2011-09-01","Yorkshire & Humberside","Wakefield Council"]
[null,null,null,null,null,null,null,null,null,null,null,null,null,null,"Rosary Catholic Primary School, The","120419","2011-09-01","South West","Gloucestershire County Council"]
[null,null,null,null,null,null,null,null,null,null,null,null,null,null,"Rose Wood Academy",125009,"2014-01-01","North East","Middlesbrough Council"]
[null,null,null,null,null,null,null,null,null,null,null,null,null,null,"Roseacre Primary Academy","122389","2012-10-01","North West","Blackpool Council"]
[null,null,null,null,null,null,null,null,null,null,null,null,null,null,"Rosebery School","120707","2011-12-01T12:19:54","South East","Surrey County Council"]
[null,null,null,null,null,null,null,null,null,null,null,null,null,null,"Rosedale College","120077","2011-08-01","London","Hillingdon London Borough Council"]
[null,null,null,null,null,null,null,null,null,null,null,null,null,null,"Roseland Community College, The","119562","2011-04-01","South West","Cornwall Council"]
[null,null,null,null,null,null,null,null,null,null,null,null,null,null,"Rosewood Free School","122535","2012-09-01","South East","Southampton City Council"]
[null,null,null,null,null,null,null,null,null,null,null,null,null,null,"Rossett School","119896","2011-07-01","Yorkshire & Humberside","North Yorkshire County Council"]
[null,null,null,null,null,null,null,null,null,null,null,null,null,null,"Rossington All Saints Academy","119754","2011-04-26","Yorkshire & Humberside","Doncaster Metropolitan Borough Council"]
[null,null,null,null,null,null,null,null,null,null,null,null,null,null,"Rothley Church of England Primary School","122874","2013-07-01","East Midlands","Leicestershire County Council"]
[null,null,null,null,null,null,null,null,null,null,null,null,null,null,"Rothwell Junior School","124520","2013-09-01","East Midlands","Northamptonshire County Council"]
[null,null,null,null,null,null,null,null,null,null,null,null,null,null,"Rothwell Victoria Infant School","124487","2013-09-01","East Midlands","Northamptonshire County Council"]
[null,null,null,null,null,null,null,null,null,null,null,null,null,null,"Rough Hay Primary School","123864","2013-02-01","West Midlands","Walsall Metropolitan Borough Council"]
[null,null,null,null,null,null,null,null,null,null,null,null,null,null,"Round House Primary School, The","124377","2013-08-01","East of England","Cambridgeshire County Council"]
[null,null,null,null,null,null,null,null,null,null,null,null,null,null,"Roundhill Community College","121181","2012-04-01","East Midlands","Leicestershire County Council"]
[null,null,null,null,null,null,null,null,null,null,null,null,null,null,"Roundthorn Community Primary School","124672","2013-09-01","North West","Oldham Metropolitan Borough Council"]
[null,null,null,null,null,null,null,null,null,null,null,null,null,null,"Roundwood Park School","119973","2011-08-01","East of England","Hertfordshire County Council"]
[null,null,null,null,null,null,null,null,null,null,null,null,null,null,"Route 39 Academy","123335","2013-09-01","South West","Devon County Council"]
[null,null,null,null,null,null,null,null,null,null,null,null,null,null,"Rowanfield Junior School","120255","2011-08-01","South West","Gloucestershire County Council"]
[null,null,null,null,null,null,null,null,null,null,null,null,null,null,"Rowde Church of England Voluntary Aided Primary School","123123","2013-01-01","South West","Wiltshire Council"]
[null,null,null,null,null,null,null,null,null,null,null,null,null,null,"Rowena Nursery and Infant Academy","120608","2011-11-01","Yorkshire & Humberside","Doncaster Metropolitan Borough Council"]
[null,null,null,null,null,null,null,null,null,null,null,null,null,null,"Royal Grammar School, The - High Wycombe","119484","2011-02-01","South East","Buckinghamshire County Council"]
[null,null,null,null,null,null,null,null,null,null,null,null,null,null,"Royal Latin School","120501","2011-09-01","South East","Buckinghamshire County Council"]
[null,null,null,null,null,null,null,null,null,null,null,null,null,null,"Royal Wootton Bassett Academy","119911","2011-07-01","South West","Wiltshire Council"]
[null,null,null,null,null,null,null,null,null,null,null,null,null,null,"Roydon Primary School",123936,"2013-12-01","East of England","Essex County Council"]
[null,null,null,null,null,null,null,null,null,null,null,null,null,null,"Roysia Middle School","119949","2011-11-01","East of England","Hertfordshire County Council"]
[null,null,null,null,null,null,null,null,null,null,null,null,null,null,"Royston Meadstead Primary School","122650","2013-06-01","Yorkshire & Humberside","Barnsley Metropolitan Borough Council"]
[null,null,null,null,null,null,null,null,null,null,null,null,null,null,"Royston Summer Fields Primary School","122795","2012-12-01","Yorkshire & Humberside","Barnsley Metropolitan Borough Council"]
[null,null,null,null,null,null,null,null,null,null,null,null,null,null,"RSA Academy, The - Tipton","118675","2008-09-01","West Midlands","Sandwell Metropolitan Borough Council"]
[null,null,null,null,null,null,null,null,null,null,null,null,null,null,"Rudheath Community Primary School","123283","2013-04-01","North West","Cheshire West and Chester Council"]
[null,null,null,null,null,null,null,null,null,null,null,null,null,null,"Rugby High School","119632","2011-04-01","West Midlands","Warwickshire County Council"]
[null,null,null,null,null,null,null,null,null,null,null,null,null,null,"Runwell Community Primary School","120054","2011-08-01","East of England","Essex County Council"]
[null,null,null,null,null,null,null,null,null,null,null,null,null,null,"Rural Enterprise Academy, The","121970","2012-09-01","West Midlands","Staffordshire County Council"]
[null,null,null,null,null,null,null,null,null,null,null,null,null,null,"Rush Common School","121074","2012-03-01","South East","Oxfordshire County Council"]
[null,null,null,null,null,null,null,null,null,null,null,null,null,null,"Rush Croft Sports College","122667","2012-10-01","London","Waltham Forest London Borough Council"]
[null,null,null,null,null,null,null,null,null,null,null,null,null,null,"Rushcliffe School","122129","2012-08-01T12:42:40","East Midlands","Nottinghamshire County Council"]
[null,null,null,null,null,null,null,null,null,null,null,null,null,null,"Rushden Community College, The","123097","2012-12-01","East Midlands","Northamptonshire County Council"]
[null,null,null,null,null,null,null,null,null,null,null,null,null,null,"Rushton Primary School","124536","2013-09-01","East Midlands","Northamptonshire County Council"]
[null,null,null,null,null,null,null,null,null,null,null,null,null,null,"Ruskin Junior School","122835","2012-11-01","East Midlands","Northamptonshire County Council"]
[null,null,null,null,null,null,null,null,null,null,null,null,null,null,"Ruskington Chestnut Street Church of England Academy","121159","2012-07-01","East Midlands","Lincolnshire County Council"]
[null,null,null,null,null,null,null,null,null,null,null,null,null,null,"Rustington Community Primary School","123883","2013-04-01","South East","West Sussex County Council"]
[null,null,null,null,null,null,null,null,null,null,null,null,null,null,"Rutherford House School","123291","2013-09-01","London","Wandsworth London Borough Council"]
[null,null,null,null,null,null,null,null,null,null,null,null,null,null,"Rydal Academy, The","123090","2012-12-01","North East","Darlington Borough Council"]
[null,null,null,null,null,null,null,null,null,null,null,null,null,null,"Ryde Academy","119953","2011-09-01","South East","Isle of Wight Council"]
[null,null,null,null,null,null,null,null,null,null,null,null,null,null,"Rydens School","120137","2011-08-01","South East","Surrey County Council"]
[null,null,null,null,null,null,null,null,null,null,null,null,null,null,"Ryders Hayes Academy Trust","119594","2011-04-01","West Midlands","Walsall Metropolitan Borough Council"]
[null,null,null,null,null,null,null,null,null,null,null,null,null,null,"Rydon Primary School","120497","2011-10-01","South West","Devon County Council"]
[null,null,null,null,null,null,null,null,null,null,null,null,null,null,"Rye College","122385","2012-09-01","South East","East Sussex County Council"]
[null,null,null,null,null,null,null,null,null,null,null,null,null,null,"Rye Studio School","123391","2013-09-01","South East","East Sussex County Council"]
[null,null,null,null,null,null,null,null,null,null,null,null,null,null,"Ryecroft Primary School","122483","2012-09-01","Yorkshire & Humberside","Bradford Metropolitan District Council"]
[null,null,null,null,null,null,null,null,null,null,null,null,null,null,"Ryvers School","121829","2012-06-01","South East","Slough Borough Council"]
[null,null,null,null,null,null,null,null,null,null,null,null,null,null,"Sacred Heart Catholic Primary Academy - Sheffield",124631,"2013-12-01","Yorkshire & Humberside","Sheffield City Council"]
[null,null,null,null,null,null,null,null,null,null,null,null,null,null,"Sacred Heart Catholic Primary School - Carlton","121090","2012-10-01","East Midlands","Nottinghamshire County Council"]
[null,null,null,null,null,null,null,null,null,null,null,null,null,null,"Sacred Heart Catholic Primary School - Leicester","121184","2012-04-01","East Midlands","Leicester City Council"]
[null,null,null,null,null,null,null,null,null,null,null,null,null,null,"Sacred Heart Catholic Primary School - Wakefield","122409","2012-11-01","Yorkshire & Humberside","Wakefield Council"]
[null,null,null,null,null,null,null,null,null,null,null,null,null,null,"Sacred Heart Catholic Primary School, The - Bradford","123818","2013-04-01","Yorkshire & Humberside","Bradford Metropolitan District Council"]
[null,null,null,null,null,null,null,null,null,null,null,null,null,null,"Sacred Heart Catholic Voluntary Academy","122496","2012-07-01","East Midlands","Leicestershire County Council"]
[null,null,null,null,null,null,null,null,null,null,null,null,null,null,"Sacred Heart High School - Hammersmith and Fulham","121110","2012-03-01","London","Hammersmith and Fulham London Borough Council"]
[null,null,null,null,null,null,null,null,null,null,null,null,null,null,"Sacred Heart High School - Newcastle-u-Tyne","120896","2011-12-01","North East","Newcastle Upon Tyne City Council"]
[null,null,null,null,null,null,null,null,null,null,null,null,null,null,"Sacred Heart of Mary Girls' School","120233","2011-08-01","London","Havering London Borough Council"]
[null,null,null,null,null,null,null,null,null,null,null,null,null,null,"Sacred Heart RC Voluntary Aided Primary School","130129","2014-03-01","North East","Gateshead Council"]
[null,null,null,null,null,null,null,null,null,null,null,null,null,null,"Sacred Heart Roman Catholic Secondary School - Southwark","121905","2012-11-01","London","Southwark London Borough Council"]
[null,null,null,null,null,null,null,null,null,null,null,null,null,null,"Saffron Walden County High School","119783","2011-06-01","East of England","Essex County Council"]
[null,null,null,null,null,null,null,null,null,null,null,null,null,null,"Saint Augustine Webster Catholic Academy","121826","2012-04-01","Yorkshire & Humberside","North Lincolnshire Council"]
[null,null,null,null,null,null,null,null,null,null,null,null,null,null,"Saint Augustine's Catholic Primary School, The - Stamford","124332","2013-05-01","East Midlands","Lincolnshire County Council"]
[null,null,null,null,null,null,null,null,null,null,null,null,null,null,"Saint Benedict Catholic School and Performing Arts College","122806","2012-09-01","East Midlands","Derby City Council"]
[null,null,null,null,null,null,null,null,null,null,null,null,null,null,"Saint George's Church of England School","120624","2011-11-01","South East","Kent County Council"]
[null,null,null,null,null,null,null,null,null,null,null,null,null,null,"Saint Hugh's Catholic Primary School, The - Lincoln","124326","2013-05-01","East Midlands","Lincolnshire County Council"]
[null,null,null,null,null,null,null,null,null,null,null,null,null,null,"Saint Joan of Arc Catholic School","121078","2012-03-01T11:49:16","East of England","Hertfordshire County Council"]
[null,null,null,null,null,null,null,null,null,null,null,null,null,null,"Saint John Fisher Catholic Primary School - Wigston","121156","2012-04-01","East Midlands","Leicestershire County Council"]
[null,null,null,null,null,null,null,null,null,null,null,null,null,null,"Saint John Houghton Catholic School","121034","2012-03-01","East Midlands","Derbyshire County Council"]
[null,null,null,null,null,null,null,null,null,null,null,null,null,null,"Saint Martin's Catholic School - Stoke Golding","122402","2012-07-01","East Midlands","Leicestershire County Council"]
[null,null,null,null,null,null,null,null,null,null,null,null,null,null,"Saint Mary's Catholic Primary School - Loughborough","122362","2012-07-01","East Midlands","Leicestershire County Council"]
[null,null,null,null,null,null,null,null,null,null,null,null,null,null,"Saint Michael's Catholic High School","121157","2012-03-01T11:52:11","East of England","Hertfordshire County Council"]
[null,null,null,null,null,null,null,null,null,null,null,null,null,null,"Saint Norbert's Catholic Primary School","121924","2012-10-01","Yorkshire & Humberside","North Lincolnshire Council"]
[null,null,null,null,null,null,null,null,null,null,null,null,null,null,"Saint Winefride's Catholic Primary School - Shepshed","122364","2012-07-01","East Midlands","Leicestershire County Council"]
[null,null,null,null,null,null,null,null,null,null,null,null,null,null,"Salcombe Church of England Primary School","120475","2011-11-01","South West","Devon County Council"]
[null,null,null,null,null,null,null,null,null,null,null,null,null,null,"Sale Grammar School","119498","2011-03-01","North West","Trafford Borough Council"]
[null,null,null,null,null,null,null,null,null,null,null,null,null,null,"Salendine Nook High School","120713","2012-02-01","Yorkshire & Humberside","Kirklees Metropolitan Council"]
[null,null,null,null,null,null,null,null,null,null,null,null,null,null,"Salford City Academy","118916","2005-09-01","North West","Salford City Council"]
[null,null,null,null,null,null,null,null,null,null,null,null,null,null,"Salmestone Primary School","122252","2012-09-01","South East","Kent County Council"]
[null,null,null,null,null,null,null,null,null,null,null,null,null,null,"Saltash.net Community School","119559","2011-04-01","South West","Cornwall Council"]
[null,null,null,null,null,null,null,null,null,null,null,null,null,null,"Salterlee Primary School","120452","2011-09-01","Yorkshire & Humberside","Calderdale Metropolitan Borough Council"]
[null,null,null,null,null,null,null,null,null,null,null,null,null,null,"Salvatorian Roman Catholic College","122500","2012-08-01","London","Harrow London Borough Council"]
[null,null,null,null,null,null,null,null,null,null,null,null,null,null,"Sampford Peverell Church of England Primary School","120477","2011-11-01","South West","Devon County Council"]
[null,null,null,null,null,null,null,null,null,null,null,null,null,null,"Samuel Lister Academy, The","120923","2012-04-01","Yorkshire & Humberside","Bradford Metropolitan District Council"]
[null,null,null,null,null,null,null,null,null,null,null,null,null,null,"Samuel Ryder Academy, The","121015","2012-09-01","East of England","Hertfordshire County Council"]
[null,null,null,null,null,null,null,null,null,null,null,null,null,null,"Samuel Ward Academy","119369","2010-11-01","East of England","Suffolk County Council"]
[null,null,null,null,null,null,null,null,null,null,null,null,null,null,"Samuel Whitbread Community College","119952","2012-03-01T11:54:02","East of England","Central Bedfordshire Council"]
[null,null,null,null,null,null,null,null,null,null,null,null,null,null,"Samworth Church Academy","118654","2008-09-01","East Midlands","Nottinghamshire County Council"]
[null,null,null,null,null,null,null,null,null,null,null,null,null,null,"Samworth Enterprise Academy","119113","2007-09-01","East Midlands","Leicester City Council"]
[null,null,null,null,null,null,null,null,null,null,null,null,null,null,"Sandal Magna Community Academy","122938","2013-05-01","Yorkshire & Humberside","Wakefield Council"]
[null,null,null,null,null,null,null,null,null,null,null,null,null,null,"Sandbach High School and Sixth Form College","119374","2010-11-01","North West","Cheshire East Council"]
[null,null,null,null,null,null,null,null,null,null,null,null,null,null,"Sandbach School","120535","2011-09-01","North West","Cheshire East Council"]
[null,null,null,null,null,null,null,null,null,null,null,null,null,null,"Sandon School, The","120240","2011-08-01","East of England","Essex County Council"]
[null,null,null,null,null,null,null,null,null,null,null,null,null,null,"Sandown Bay Academy","119927","2011-09-01","South East","Isle of Wight Council"]
[null,null,null,null,null,null,null,null,null,null,null,null,null,null,"Sandringham School","119628","2011-04-01","East of England","Hertfordshire County Council"]
[null,null,null,null,null,null,null,null,null,null,null,null,null,null,"Sandwell Academy","118639","2006-09-01","West Midlands","Sandwell Metropolitan Borough Council"]
[null,null,null,null,null,null,null,null,null,null,null,null,null,null,"Sandwich Technology School","119370","2010-11-01","South East","Kent County Council"]
[null,null,null,null,null,null,null,null,null,null,null,null,null,null,"Sandy Hill Academy","119359","2010-11-01","South West","Cornwall Council"]
[null,null,null,null,null,null,null,null,null,null,null,null,null,null,"Sandye Place Academy","119589","2011-04-01","East of England","Central Bedfordshire Council"]
[null,null,null,null,null,null,null,null,null,null,null,null,null,null,"Sandymoor School","122010","2012-09-01","North West","Halton Borough Council"]
[null,null,null,null,null,null,null,null,null,null,null,null,null,null,"Sarum Academy","119238","2010-09-01","South West","Wiltshire Council"]
[null,null,null,null,null,null,null,null,null,null,null,null,null,null,"Sawston Village College","119791","2011-06-01","East of England","Cambridgeshire County Council"]
[null,null,null,null,null,null,null,null,null,null,null,null,null,null,"Sawtry Community College","119974","2011-08-01","East of England","Cambridgeshire County Council"]
[null,null,null,null,null,null,null,null,null,null,null,null,null,null,"Saxmundham Free School, The","121971","2012-09-01","East of England","Suffolk County Council"]
[null,null,null,null,null,null,null,null,null,null,null,null,null,null,"Saxon Primary Academy - Shepperton",124732,"2013-10-01","South East","Surrey County Council"]
[null,null,null,null,null,null,null,null,null,null,null,null,null,null,"Saxon Way Primary School - Gillingham","124657","2013-09-01","South East","Medway Council"]
[null,null,null,null,null,null,null,null,null,null,null,null,null,null,"Scartho Junior Academy","120769","2012-01-01","Yorkshire & Humberside","North East Lincolnshire Council"]
[null,null,null,null,null,null,null,null,null,null,null,null,null,null,"Scawby Academy","121056","2012-04-01","Yorkshire & Humberside","North Lincolnshire Council"]
[null,null,null,null,null,null,null,null,null,null,null,null,null,null,"School 21","122021","2012-09-01","London","Newham London Borough Council"]
[null,null,null,null,null,null,null,null,null,null,null,null,null,null,"Scientia Academy","122807","2013-09-01","West Midlands","Staffordshire County Council"]
[null,null,null,null,null,null,null,null,null,null,null,null,null,null,"Scout Road Primary School","120456","2011-09-01","Yorkshire & Humberside","Calderdale Metropolitan Borough Council"]
[null,null,null,null,null,null,null,null,null,null,null,null,null,null,"Seaford Head School","122276","2012-08-01","South East","East Sussex County Council"]
[null,null,null,null,null,null,null,null,null,null,null,null,null,null,"Seal Primary Academy","121155","2012-04-01","South East","West Sussex County Council"]
[null,null,null,null,null,null,null,null,null,null,null,null,null,null,"Seaton Academy","119253","2010-09-01","North West","Cumbria County Council"]
[null,null,null,null,null,null,null,null,null,null,null,null,null,null,"Seer Green Church of England Combined School","122955","2013-02-01","South East","Buckinghamshire County Council"]
[null,null,null,null,null,null,null,null,null,null,null,null,null,null,"Sele School, The","120797","2012-08-01T12:39:54","East of England","Hertfordshire County Council"]
[null,null,null,null,null,null,null,null,null,null,null,null,null,null,"Selling Church of England Primary School","120379","2011-09-01","South East","Kent County Council"]
[null,null,null,null,null,null,null,null,null,null,null,null,null,null,"Selsey Academy, The","120096","2011-09-01","South East","West Sussex County Council"]
[null,null,null,null,null,null,null,null,null,null,null,null,null,null,"Selwood Anglican/Methodist Middle School","120852","2011-12-01","South West","Somerset County Council"]
[null,null,null,null,null,null,null,null,null,null,null,null,null,null,"Serlby Park Academy","120141","2011-09-01","East Midlands","Nottinghamshire County Council"]
[null,null,null,null,null,null,null,null,null,null,null,null,null,null,"Settlebeck High School","120269","2011-08-01","North West","Cumbria County Council"]
[null,null,null,null,null,null,null,null,null,null,null,null,null,null,"Seven Fields Primary School","121851","2012-04-01","South West","Swindon Borough Council"]
[null,null,null,null,null,null,null,null,null,null,null,null,null,null,"Severn Vale School","120298","2011-08-17","South West","Gloucestershire County Council"]
[null,null,null,null,null,null,null,null,null,null,null,null,null,null,"Severn View Primary Academy","122302","2012-09-01","South West","Gloucestershire County Council"]
[null,null,null,null,null,null,null,null,null,null,null,null,null,null,"Severnbanks Primary School","123216","2013-01-01","South West","Gloucestershire County Council"]
[null,null,null,null,null,null,null,null,null,null,null,null,null,null,"Severndale Specialist Academy",126347,"2014-01-01","West Midlands","Shropshire Council"]
[null,null,null,null,null,null,null,null,null,null,null,null,null,null,"Sexey's School","120313","2011-08-17","South West","Somerset County Council"]
[null,null,null,null,null,null,null,null,null,null,null,null,null,null,"Seymour Primary School","122269","2012-09-01","South East","West Sussex County Council"]
[null,null,null,null,null,null,null,null,null,null,null,null,null,null,"Seymour Road Primary School","122638","2013-02-01","North West","Manchester City Council"]
[null,null,null,null,null,null,null,null,null,null,null,null,null,null,"Shade Primary School, The","126497","2013-09-01","East of England","Cambridgeshire County Council"]
[null,null,null,null,null,null,null,null,null,null,null,null,null,null,"Shafton Primary School","122914","2012-12-01","Yorkshire & Humberside","Barnsley Metropolitan Borough Council"]
[null,null,null,null,null,null,null,null,null,null,null,null,null,null,"Sharnbrook John Gibbard Lower School","123070","2013-04-01","East of England","Bedford Borough Council"]
[null,null,null,null,null,null,null,null,null,null,null,null,null,null,"Sharnbrook Upper School","119470","2011-02-01","East of England","Bedford Borough Council"]
[null,null,null,null,null,null,null,null,null,null,null,null,null,null,"Shatterlocks Infant School","122116","2012-06-01","South East","Kent County Council"]
[null,null,null,null,null,null,null,null,null,null,null,null,null,null,"Shaw Primary School","122985","2013-02-01","East of England","Thurrock Borough Council"]
[null,null,null,null,null,null,null,null,null,null,null,null,null,null,"Shaw Ridge Primary School",124130,"2013-11-01","South West","Swindon Borough Council"]
[null,null,null,null,null,null,null,null,null,null,null,null,null,null,"Shaw Wood Primary School","121125","2012-09-01","Yorkshire & Humberside","Doncaster Metropolitan Borough Council"]
[null,null,null,null,null,null,null,null,null,null,null,null,null,null,"Sheffield Park Academy","118640","2006-09-01","Yorkshire & Humberside","Sheffield City Council"]
[null,null,null,null,null,null,null,null,null,null,null,null,null,null,"Sheffield Springs Academy","118642","2006-09-01","Yorkshire & Humberside","Sheffield City Council"]
[null,null,null,null,null,null,null,null,null,null,null,null,null,null,"Sheldon School","119550","2011-04-01","South West","Wiltshire Council"]
[null,null,null,null,null,null,null,null,null,null,null,null,null,null,"Sheldwich Primary School","120380","2011-09-01","South East","Kent County Council"]
[null,null,null,null,null,null,null,null,null,null,null,null,null,null,"Shelfield Community Academy","118909","2009-01-01","West Midlands","Walsall Metropolitan Borough Council"]
[null,null,null,null,null,null,null,null,null,null,null,null,null,null,"Shelley College","120454","2011-09-01","Yorkshire & Humberside","Kirklees Metropolitan Council"]
[null,null,null,null,null,null,null,null,null,null,null,null,null,null,"Shenfield High School","121067","2012-02-01T14:34:27","East of England","Essex County Council"]
[null,null,null,null,null,null,null,null,null,null,null,null,null,null,"Shenley Academy","119086","2009-09-01","West Midlands","Birmingham City Council"]
[null,null,null,null,null,null,null,null,null,null,null,null,null,null,"Shenley Brook End School","119734","2011-05-01","South East","Milton Keynes Council"]
[null,null,null,null,null,null,null,null,null,null,null,null,null,null,"Shepherdswell School","122329","2012-09-01","South East","Milton Keynes Council"]
[null,null,null,null,null,null,null,null,null,null,null,null,null,null,"Sheringham High School and Sixth Form Centre","120646","2011-11-01","East of England","Norfolk County Council"]
[null,null,null,null,null,null,null,null,null,null,null,null,null,null,"Sherwood E-ACT Academy","120936","2012-09-01","East Midlands","Nottinghamshire County Council"]
[null,null,null,null,null,null,null,null,null,null,null,null,null,null,"Sherwood Park Primary School",127459,"2014-01-01","London","Bexley London Borough Council"]
[null,null,null,null,null,null,null,null,null,null,null,null,null,null,"Shibden Head Primary School","123251","2013-03-01","Yorkshire & Humberside","Bradford Metropolitan District Council"]
[null,null,null,null,null,null,null,null,null,null,null,null,null,null,"Shiphay Learning Academy","119675","2011-04-01","South West","Torbay Council"]
[null,null,null,null,null,null,null,null,null,null,null,null,null,null,"Shipston High School","120649","2012-09-01","West Midlands","Warwickshire County Council"]
[null,null,null,null,null,null,null,null,null,null,null,null,null,null,"Shire Oak Academy","119534","2011-04-01","West Midlands","Walsall Metropolitan Borough Council"]
[null,null,null,null,null,null,null,null,null,null,null,null,null,null,"Shirebrook Academy","119195","2010-09-01","East Midlands","Derbyshire County Council"]
[null,null,null,null,null,null,null,null,null,null,null,null,null,null,"Shireland Collegiate Academy","118644","2007-09-01","West Midlands","Sandwell Metropolitan Borough Council"]
[null,null,null,null,null,null,null,null,null,null,null,null,null,null,"Shireland Hall Primary School","124361","2013-07-01","West Midlands","Sandwell Metropolitan Borough Council"]
[null,null,null,null,null,null,null,null,null,null,null,null,null,null,"Shirestone Community Primary School","122556","2012-11-01","West Midlands","Birmingham City Council"]
[null,null,null,null,null,null,null,null,null,null,null,null,null,null,"Shirley High School Performing Arts College","120742","2012-01-01","London","Croydon London Borough Council"]
[null,null,null,null,null,null,null,null,null,null,null,null,null,null,"Shirley Infant School","122357","2012-11-01","South East","Southampton City Council"]
[null,null,null,null,null,null,null,null,null,null,null,null,null,null,"Shirley Junior School","122595","2012-11-01","South East","Southampton City Council"]
[null,null,null,null,null,null,null,null,null,null,null,null,null,null,"Shirley Manor Primary School","129417","2014-03-01","Yorkshire & Humberside","Bradford Metropolitan District Council"]
[null,null,null,null,null,null,null,null,null,null,null,null,null,null,"Shoeburyness High School","120634","2011-12-01T12:20:56","East of England","Southend-on-Sea Borough Council"]
[null,null,null,null,null,null,null,null,null,null,null,null,null,null,"Shooters Hill Post-16 Campus","122727","2012-11-01T15:12:01","London","Greenwich London Borough Council"]
[null,null,null,null,null,null,null,null,null,null,null,null,null,null,"Shoreham Academy","119107","2009-09-01","South East","West Sussex County Council"]
[null,null,null,null,null,null,null,null,null,null,null,null,null,null,"Shrivenham Church of England Controlled School",124539,"2013-11-01","South East","Oxfordshire County Council"]
[null,null,null,null,null,null,null,null,null,null,null,null,null,null,"Sidbury Church of England Primary School","120545","2011-11-01","South West","Devon County Council"]
[null,null,null,null,null,null,null,null,null,null,null,null,null,null,"Siddal Primary School","120564","2012-09-01","Yorkshire & Humberside","Calderdale Metropolitan Borough Council"]
[null,null,null,null,null,null,null,null,null,null,null,null,null,null,"Sidney Stringer Academy","119196","2010-09-01","West Midlands","Coventry City Council"]
[null,null,null,null,null,null,null,null,null,null,null,null,null,null,"Signhills Academy","119975","2011-08-01","Yorkshire & Humberside","North East Lincolnshire Council"]
[null,null,null,null,null,null,null,null,null,null,null,null,null,null,"Signhills Infants' Academy","121175","2012-04-01","Yorkshire & Humberside","North East Lincolnshire Council"]
[null,null,null,null,null,null,null,null,null,null,null,null,null,null,"Sileby Redlands Community Primary School","122856","2013-09-01","East Midlands","Leicestershire County Council"]
[null,null,null,null,null,null,null,null,null,null,null,null,null,null,"Silver Springs Primary Academy","120951","2012-04-01","North West","Tameside Metropolitan Borough Council"]
[null,null,null,null,null,null,null,null,null,null,null,null,null,null,"Silverdale Primary Academy - Newcastle",124664,"2014-01-01","West Midlands","Staffordshire County Council"]
[null,null,null,null,null,null,null,null,null,null,null,null,null,null,"Silverdale School - Sheffield","122404","2013-01-01","Yorkshire & Humberside","Sheffield City Council"]
[null,null,null,null,null,null,null,null,null,null,null,null,null,null,"Silverstone UTC","122050","2013-09-01","East Midlands","Northamptonshire County Council"]
[null,null,null,null,null,null,null,null,null,null,null,null,null,null,"Simon Balle School",121196,"2013-11-01","East of England","Hertfordshire County Council"]
[null,null,null,null,null,null,null,null,null,null,null,null,null,null,"Simpson's Lane Academy","122161","2012-08-01","Yorkshire & Humberside","Wakefield Council"]
[null,null,null,null,null,null,null,null,null,null,null,null,null,null,"Sir Christopher Hatton School","121109","2012-03-01T11:55:07","East Midlands","Northamptonshire County Council"]
[null,null,null,null,null,null,null,null,null,null,null,null,null,null,"Sir Harry Smith Community College","121151","2012-04-01","East of England","Cambridgeshire County Council"]
[null,null,null,null,null,null,null,null,null,null,null,null,null,null,"Sir Henry Floyd Grammar School","119845","2011-07-01","South East","Buckinghamshire County Council"]
[null,null,null,null,null,null,null,null,null,null,null,null,null,null,"Sir Herbert Leon Academy","121894","2012-09-01","South East","Milton Keynes Council"]
[null,null,null,null,null,null,null,null,null,null,null,null,null,null,"Sir Isaac Newton Sixth Form Free School","123337","2013-09-01","East of England","Norfolk County Council"]
[null,null,null,null,null,null,null,null,null,null,null,null,null,null,"Sir John Gleed School","118043","2013-01-01","East Midlands","Lincolnshire County Council"]
[null,null,null,null,null,null,null,null,null,null,null,null,null,null,"Sir John Lawes School","120270","2011-08-01","East of England","Hertfordshire County Council"]
[null,null,null,null,null,null,null,null,null,null,null,null,null,null,"Sir John Leman High School","120055","2011-08-01","East of England","Suffolk County Council"]
[null,null,null,null,null,null,null,null,null,null,null,null,null,null,"Sir Joseph Williamson's Mathematical School","119657","2011-04-01","South East","Medway Council"]
[null,null,null,null,null,null,null,null,null,null,null,null,null,null,"Sir Robert Geffery's Voluntary Aided Church of England Primary School","120257","2011-08-01","South West","Cornwall Council"]
[null,null,null,null,null,null,null,null,null,null,null,null,null,null,"Sir Robert Pattinson Academy","113716","2011-08-01","East Midlands","Lincolnshire County Council"]
[null,null,null,null,null,null,null,null,null,null,null,null,null,null,"Sir Robert Woodard Academy","118898","2009-09-01","South East","West Sussex County Council"]
[null,null,null,null,null,null,null,null,null,null,null,null,null,null,"Sir Roger Manwood's School","119501","2011-03-01","South East","Kent County Council"]
[null,null,null,null,null,null,null,null,null,null,null,null,null,null,"Sir Thomas Fremantle School","123338","2013-09-01","South East","Buckinghamshire County Council"]
[null,null,null,null,null,null,null,null,null,null,null,null,null,null,"Sir Thomas Rich's School","119297","2010-10-01","South West","Gloucestershire County Council"]
[null,null,null,null,null,null,null,null,null,null,null,null,null,null,"Sir Thomas Wharton Community College","122731","2013-02-01","Yorkshire & Humberside","Doncaster Metropolitan Borough Council"]
[null,null,null,null,null,null,null,null,null,null,null,null,null,null,"Sir William Borlase's Grammar School","119757","2011-06-01","South East","Buckinghamshire County Council"]
[null,null,null,null,null,null,null,null,null,null,null,null,null,null,"Sir William Burrough Primary School","120557","2011-12-01","London","Tower Hamlets London Borough Council"]
[null,null,null,null,null,null,null,null,null,null,null,null,null,null,"Sir William Ramsay School","120256","2011-08-01","South East","Buckinghamshire County Council"]
[null,null,null,null,null,null,null,null,null,null,null,null,null,null,"Sir William Robertson High School, The - Welbourn","122899","2012-10-01","East Midlands","Lincolnshire County Council"]
[null,null,null,null,null,null,null,null,null,null,null,null,null,null,"Sir William Romney's School","119985","2011-08-01","South West","Gloucestershire County Council"]
[null,null,null,null,null,null,null,null,null,null,null,null,null,null,"Sir William Stanier Community School","123945","2013-09-01","North West","Cheshire East Council"]
[null,null,null,null,null,null,null,null,null,null,null,null,null,null,"Sirius Academy","119129","2009-09-01","Yorkshire & Humberside","Hull City Council"]
[null,null,null,null,null,null,null,null,null,null,null,null,null,null,"Sittingbourne Academy","121053","2012-01-01","South East","Kent County Council"]
[null,null,null,null,null,null,null,null,null,null,null,null,null,null,"Skegness Academy","119332","2010-09-01","East Midlands","Lincolnshire County Council"]
[null,null,null,null,null,null,null,null,null,null,null,null,null,null,"Skegness Grammar School, The","122110","2012-09-01","East Midlands","Lincolnshire County Council"]
[null,null,null,null,null,null,null,null,null,null,null,null,null,null,"Skegness Infant Academy","122390","2012-09-01","East Midlands","Lincolnshire County Council"]
[null,null,null,null,null,null,null,null,null,null,null,null,null,null,"Skegness Junior School","121189","2012-09-01","East Midlands","Lincolnshire County Council"]
[null,null,null,null,null,null,null,null,null,null,null,null,null,null,"Skelton Primary School",126488,"2013-11-01","North East","Redcar and Cleveland Borough Council"]
[null,null,null,null,null,null,null,null,null,null,null,null,null,null,"Skerne Park Primary School","122909","2013-02-01","North East","Darlington Borough Council"]
[null,null,null,null,null,null,null,null,null,null,null,null,null,null,"Skinners' Academy","119204","2010-09-01","London","Hackney London Borough Council (The Learning Trust)"]
[null,null,null,null,null,null,null,null,null,null,null,null,null,null,"Skinners' Kent Academy","118899","2009-09-01","South East","Kent County Council"]
[null,null,null,null,null,null,null,null,null,null,null,null,null,null,"Skinners' School, The",129554,"2014-02-01","South East","Kent County Council"]
[null,null,null,null,null,null,null,null,null,null,null,null,null,null,"Skipton Girls' High School","119580","2011-04-01","Yorkshire & Humberside","North Yorkshire County Council"]
[null,null,null,null,null,null,null,null,null,null,null,null,null,null,"Slade Junior and Infant School","121173","2012-09-01","West Midlands","Birmingham City Council"]
[null,null,null,null,null,null,null,null,null,null,null,null,null,null,"Slough and Eton CofE Business and Enterprise College","120287","2011-08-17","South East","Slough Borough Council"]
[null,null,null,null,null,null,null,null,null,null,null,null,null,null,"Slough Grammar School","119440","2011-01-01","South East","Slough Borough Council"]
[null,null,null,null,null,null,null,null,null,null,null,null,null,null,"Smarden Primary School","120588","2011-10-01","South East","Kent County Council"]
[null,null,null,null,null,null,null,null,null,null,null,null,null,null,"Smestow School",128017,"2014-02-01","West Midlands","Wolverhampton City Council"]
[null,null,null,null,null,null,null,null,null,null,null,null,null,null,"Smithills School",124749,"2014-01-01","North West","Bolton Metropolitan Borough Council"]
[null,null,null,null,null,null,null,null,null,null,null,null,null,null,"Sneinton St Stephen's CofE Primary School","120681","2013-01-01","East Midlands","Nottingham City Council"]
[null,null,null,null,null,null,null,null,null,null,null,null,null,null,"Soham Village College","119624","2011-04-01","East of England","Cambridgeshire County Council"]
[null,null,null,null,null,null,null,null,null,null,null,null,null,null,"Somers Park Primary School","120292","2011-08-17","West Midlands","Worcestershire County Council"]
[null,null,null,null,null,null,null,null,null,null,null,null,null,null,"Somervale School","119298","2010-10-01","South West","Bath & North East Somerset Council"]
[null,null,null,null,null,null,null,null,null,null,null,null,null,null,"South Avenue Infant School",129435,"2014-01-01","South East","Kent County Council"]
[null,null,null,null,null,null,null,null,null,null,null,null,null,null,"South Avenue Junior School",127043,"2014-01-01","South East","Kent County Council"]
[null,null,null,null,null,null,null,null,null,null,null,null,null,null,"South Axholme Academy","120683","2011-12-01","Yorkshire & Humberside","North Lincolnshire Council"]
[null,null,null,null,null,null,null,null,null,null,null,null,null,null,"South Benfleet Foundation Primary School","120029","2011-08-01","East of England","Essex County Council"]
[null,null,null,null,null,null,null,null,null,null,null,null,null,null,"South Brent Primary School","120541","2011-11-01","South West","Devon County Council"]
[null,null,null,null,null,null,null,null,null,null,null,null,null,null,"South Bromsgrove Community High School",123303,"2013-11-01","West Midlands","Worcestershire County Council"]
[null,null,null,null,null,null,null,null,null,null,null,null,null,null,"South Charnwood High School","123276","2013-04-01","East Midlands","Leicestershire County Council"]
[null,null,null,null,null,null,null,null,null,null,null,null,null,null,"South Craven School","119735","2011-05-01","Yorkshire & Humberside","North Yorkshire County Council"]
[null,null,null,null,null,null,null,null,null,null,null,null,null,null,"South Dartmoor Academy","119568","2011-04-01","South West","Devon County Council"]
[null,null,null,null,null,null,null,null,null,null,null,null,null,null,"South Farnham School","119888","2011-07-01","South East","Surrey County Council"]
[null,null,null,null,null,null,null,null,null,null,null,null,null,null,"South Hunsley School and Sixth Form College","119651","2011-04-01","Yorkshire & Humberside","East Riding of Yorkshire Council"]
[null,null,null,null,null,null,null,null,null,null,null,null,null,null,"South Leeds Academy","119092","2009-09-01","Yorkshire & Humberside","Leeds City Council"]
[null,null,null,null,null,null,null,null,null,null,null,null,null,null,"South Nottinghamshire Academy","120112","2011-09-01","East Midlands","Nottinghamshire County Council"]
[null,null,null,null,null,null,null,null,null,null,null,null,null,null,"South Ossett Infant School","120616","2011-12-01","Yorkshire & Humberside","Wakefield Council"]
[null,null,null,null,null,null,null,null,null,null,null,null,null,null,"South Wigston High School","121037","2012-03-01","East Midlands","Leicestershire County Council"]
[null,null,null,null,null,null,null,null,null,null,null,null,null,null,"South Wiltshire Grammar School for Girls","119401","2011-01-01","South West","Wiltshire Council"]
[null,null,null,null,null,null,null,null,null,null,null,null,null,null,"South Wolds Academy & Sixth Form, The","121854","2012-06-01","East Midlands","Nottinghamshire County Council"]
[null,null,null,null,null,null,null,null,null,null,null,null,null,null,"South Wolverhampton and Bilston Academy","119088","2009-09-01","West Midlands","Wolverhampton City Council"]
[null,null,null,null,null,null,null,null,null,null,null,null,null,null,"Southampton Studio School","123392","2013-09-01","South East","Southampton City Council"]
[null,null,null,null,null,null,null,null,null,null,null,null,null,null,"Southborough High School","120679","2012-03-01T11:57:32","London","Royal Borough of Kingston Upon Thames Council"]
[null,null,null,null,null,null,null,null,null,null,null,null,null,null,"Southbroom St James Academy",124299,"2013-12-01","South West","Wiltshire Council"]
[null,null,null,null,null,null,null,null,null,null,null,null,null,null,"Southend High School for Boys","119452","2011-02-01","East of England","Southend-on-Sea Borough Council"]
[null,null,null,null,null,null,null,null,null,null,null,null,null,null,"Southend High School for Girls","119454","2011-02-01","East of England","Southend-on-Sea Borough Council"]
[null,null,null,null,null,null,null,null,null,null,null,null,null,null,"Southend YMCA Community School","123411","2013-09-01","East of England","Essex County Council"]
[null,null,null,null,null,null,null,null,null,null,null,null,null,null,"Southey Green Community Primary School and Nurseries","122787","2013-01-01","Yorkshire & Humberside","Sheffield City Council"]
[null,null,null,null,null,null,null,null,null,null,null,null,null,null,"Southfield Junior School","120398","2011-09-01","South West","Swindon Borough Council"]
[null,null,null,null,null,null,null,null,null,null,null,null,null,null,"Southfield Primary School","122355","2012-12-01","East Midlands","Northamptonshire County Council"]
[null,null,null,null,null,null,null,null,null,null,null,null,null,null,"Southfield School - Bradford","120573","2013-08-01","Yorkshire & Humberside","Bradford Metropolitan District Council"]
[null,null,null,null,null,null,null,null,null,null,null,null,null,null,"Southfield School for Girls - Kettering","119976","2011-08-01","East Midlands","Northamptonshire County Council"]
[null,null,null,null,null,null,null,null,null,null,null,null,null,null,"Southfields Community College","122705","2012-09-01","London","Wandsworth London Borough Council"]
[null,null,null,null,null,null,null,null,null,null,null,null,null,null,"Southlands Lower School","122268","2013-03-01","East of England","Central Bedfordshire Council"]
[null,null,null,null,null,null,null,null,null,null,null,null,null,null,"Southminster Church of England (Controlled) Primary School",123120,"2013-11-01","East of England","Essex County Council"]
[null,null,null,null,null,null,null,null,null,null,null,null,null,null,"Southmoor Academy","121955","2012-05-01","North East","Sunderland City Council"]
[null,null,null,null,null,null,null,null,null,null,null,null,null,null,"Southwark Free School","122022","2012-09-01","London","Southwark London Borough Council"]
[null,null,null,null,null,null,null,null,null,null,null,null,null,null,"Southwark Primary School","120272","2011-09-01","East Midlands","Nottingham City Council"]
[null,null,null,null,null,null,null,null,null,null,null,null,null,null,"Southwater Infant School","119866","2011-07-01","South East","West Sussex County Council"]
[null,null,null,null,null,null,null,null,null,null,null,null,null,null,"Southwater Junior School","119865","2011-07-01","South East","West Sussex County Council"]
[null,null,null,null,null,null,null,null,null,null,null,null,null,null,"Southway Primary School","121973","2012-09-01","South East","West Sussex County Council"]
[null,null,null,null,null,null,null,null,null,null,null,null,null,null,"Spalding Grammar School","123875","2013-02-01","East Midlands","Lincolnshire County Council"]
[null,null,null,null,null,null,null,null,null,null,null,null,null,null,"Sparkwell All Saints Primary School","123340","2013-09-01","South West","Devon County Council"]
[null,null,null,null,null,null,null,null,null,null,null,null,null,null,"Spires Academy","119115","2007-09-01","South East","Kent County Council"]
[null,null,null,null,null,null,null,null,null,null,null,null,null,null,"Sponne School","119488","2011-03-01","East Midlands","Northamptonshire County Council"]
[null,null,null,null,null,null,null,null,null,null,null,null,null,null,"Spring Cottage Primary School",124260,"2014-02-01","Yorkshire & Humberside","Hull City Council"]
[null,null,null,null,null,null,null,null,null,null,null,null,null,null,"Spring Lane Primary School","122171","2012-11-01","East Midlands","Northamptonshire County Council"]
[null,null,null,null,null,null,null,null,null,null,null,null,null,null,"Springbank Primary Academy","120194","2011-08-01","South West","Gloucestershire County Council"]
[null,null,null,null,null,null,null,null,null,null,null,null,null,null,"Springfield Academy - Darlington","120659","2012-04-01","North East","Darlington Borough Council"]
[null,null,null,null,null,null,null,null,null,null,null,null,null,null,"Springfield Primary School - Sunbury-on-Thames",124349,"2013-12-01","South East","Surrey County Council"]
[null,null,null,null,null,null,null,null,null,null,null,null,null,null,"Springfields Academy - Calne","120399","2011-09-01","South West","Wiltshire Council"]
[null,null,null,null,null,null,null,null,null,null,null,null,null,null,"Springhill Catholic Primary School","120293","2011-08-17","South East","Southampton City Council"]
[null,null,null,null,null,null,null,null,null,null,null,null,null,null,"Springhill Primary Academy",129419,"2014-01-01","West Midlands","Staffordshire County Council"]
[null,null,null,null,null,null,null,null,null,null,null,null,null,null,"Springwell Dene School","123155","2013-02-01","North East","Sunderland City Council"]
[null,null,null,null,null,null,null,null,null,null,null,null,null,null,"Springwood High School","119604","2011-04-01","East of England","Norfolk County Council"]
[null,null,null,null,null,null,null,null,null,null,null,null,null,null,"St Agatha's Catholic Primary School","121033","2012-02-01","London","Royal Borough of Kingston Upon Thames Council"]
[null,null,null,null,null,null,null,null,null,null,null,null,null,null,"St Aidan's Catholic Primary School - Ilford",127207,"2013-11-01","London","Redbridge London Borough Council"]
[null,null,null,null,null,null,null,null,null,null,null,null,null,null,"St Aidan's Catholic School - Ashbrooke","124239","2013-04-01","North East","Sunderland City Council"]
[null,null,null,null,null,null,null,null,null,null,null,null,null,null,"St Aidan's Church of England Academy","119117","2007-09-01","North East","Darlington Borough Council"]
[null,null,null,null,null,null,null,null,null,null,null,null,null,null,"St Alban's Academy","119134","2009-09-01","West Midlands","Birmingham City Council"]
[null,null,null,null,null,null,null,null,null,null,null,null,null,null,"St Alban's Catholic High School","121003","2012-02-01T14:36:12","East of England","Suffolk County Council"]
[null,null,null,null,null,null,null,null,null,null,null,null,null,null,"St Alban's Catholic Primary School","120056","2011-08-01","East of England","Essex County Council"]
[null,null,null,null,null,null,null,null,null,null,null,null,null,null,"St Albans Girls' School","120335","2011-09-01","East of England","Hertfordshire County Council"]
[null,null,null,null,null,null,null,null,null,null,null,null,null,null,"St Aldhelm's Academy","119348","2010-09-01","South West","Poole Borough Council"]
[null,null,null,null,null,null,null,null,null,null,null,null,null,null,"St Ambrose College","120533","2012-05-01T14:11:35","North West","Trafford Borough Council"]
[null,null,null,null,null,null,null,null,null,null,null,null,null,null,"St Andrew the Apostle Greek Orthodox School","123341","2013-09-01","London","Enfield London Borough Council"]
[null,null,null,null,null,null,null,null,null,null,null,null,null,null,"St Andrew's Church of England Primary School","124991","2013-09-01","South West","Somerset County Council"]
[null,null,null,null,null,null,null,null,null,null,null,null,null,null,"St Andrew's CofE Primary School","121858","2012-08-01","East Midlands","Lincolnshire County Council"]
[null,null,null,null,null,null,null,null,null,null,null,null,null,null,"St Anne's Academy","118645","2007-09-01","North West","Rochdale Metropolitan Borough Council"]
[null,null,null,null,null,null,null,null,null,null,null,null,null,null,"St Anne's Catholic School","122697","2012-08-01T12:44:25","South East","Southampton City Council"]
[null,null,null,null,null,null,null,null,null,null,null,null,null,null,"St Ann's Catholic Primary Academy - Sheffield",125202,"2013-12-01","Yorkshire & Humberside","Sheffield City Council"]
[null,null,null,null,null,null,null,null,null,null,null,null,null,null,"St Ann's CofE Primary School","123204","2013-01-01","London","Haringey London Borough Council"]
[null,null,null,null,null,null,null,null,null,null,null,null,null,null,"St Anns Well Primary School","120631","2011-10-01","East Midlands","Nottingham City Council"]
[null,null,null,null,null,null,null,null,null,null,null,null,null,null,"St Anselm's College","119778","2011-06-01","North West","Wirral Metropolitan Borough Council"]
[null,null,null,null,null,null,null,null,null,null,null,null,null,null,"St Anthony's Catholic Girls' School","121140","2012-04-01","North East","Sunderland City Council"]
[null,null,null,null,null,null,null,null,null,null,null,null,null,null,"St Anthony's Catholic Primary School - Fareham","120381","2011-09-01","South East","Hampshire County Council"]
[null,null,null,null,null,null,null,null,null,null,null,null,null,null,"St Anthony's Catholic Primary School - Manchester","123869","2013-04-01","North West","Manchester City Council"]
[null,null,null,null,null,null,null,null,null,null,null,null,null,null,"St Anthony's School","123342","2013-09-01","South West","Gloucestershire County Council"]
[null,null,null,null,null,null,null,null,null,null,null,null,null,null,"St Augustine Academy - Maidstone","119943","2011-09-01","South East","Kent County Council"]
[null,null,null,null,null,null,null,null,null,null,null,null,null,null,"St Augustine of Canterbury CE Primary School - Belvedere","122918","2013-08-01","London","Bexley London Borough Council"]
[null,null,null,null,null,null,null,null,null,null,null,null,null,null,"St Augustine's Academy - Dunstable","122165","2012-09-01","East of England","Central Bedfordshire Council"]
[null,null,null,null,null,null,null,null,null,null,null,null,null,null,"St Augustine's Catholic College - Darlington","124088","2013-04-01","North East","Darlington Borough Council"]
[null,null,null,null,null,null,null,null,null,null,null,null,null,null,"St Augustine's Catholic College - Trowbridge","120403","2011-09-01","South West","Wiltshire Council"]
[null,null,null,null,null,null,null,null,null,null,null,null,null,null,"St Augustine's RC (A) Primary School",124652,"2013-11-01","West Midlands","Stoke on Trent City Council"]
[null,null,null,null,null,null,null,null,null,null,null,null,null,null,"St Barnabas CofE Academy","120957","2012-04-01","North West","Manchester City Council"]
[null,null,null,null,null,null,null,null,null,null,null,null,null,null,"St Bartholomew’s Church of England Primary School - Coventry","123806","2013-09-01","West Midlands","Coventry City Council"]
[null,null,null,null,null,null,null,null,null,null,null,null,null,null,"St Bartholomew's School - Newbury","120402","2011-09-01","South East","West Berkshire Council"]
[null,null,null,null,null,null,null,null,null,null,null,null,null,null,"St Bede Academy - Bolton","119889","2011-07-01","North West","Bolton Metropolitan Borough Council"]
[null,null,null,null,null,null,null,null,null,null,null,null,null,null,"St Bede's Catholic Academy - Stockton-on-Tees",127917,"2013-12-01","North East","Stockton-on-Tees Borough Council"]
[null,null,null,null,null,null,null,null,null,null,null,null,null,null,"St Bede's Catholic College - Bristol","120562","2011-11-01","South West","Bristol City Council"]
[null,null,null,null,null,null,null,null,null,null,null,null,null,null,"St Bede's Catholic Comprehensive School and Sixth Form College - Lanchester","122144","2012-06-01","North East","Durham County Council"]
[null,null,null,null,null,null,null,null,null,null,null,null,null,null,"St Bede's Catholic Primary School - Rotherham","124191","2013-07-01","Yorkshire & Humberside","Rotherham Metropolitan Borough Council"]
[null,null,null,null,null,null,null,null,null,null,null,null,null,null,"St Bede's Catholic Voluntary Academy - Scunthorpe","121200","2012-04-01","Yorkshire & Humberside","North Lincolnshire Council"]
[null,null,null,null,null,null,null,null,null,null,null,null,null,null,"St Bede's Inter-Church School","121102","2012-03-01","East of England","Cambridgeshire County Council"]
[null,null,null,null,null,null,null,null,null,null,null,null,null,null,"St Bede's RC Primary School - Darlington","122352","2012-08-01","North East","Darlington Borough Council"]
[null,null,null,null,null,null,null,null,null,null,null,null,null,null,"St Benedict's Catholic Primary School","122365","2012-11-01","Yorkshire & Humberside","Leeds City Council"]
[null,null,null,null,null,null,null,null,null,null,null,null,null,null,"St Bernadette's Catholic Primary Voluntary Academy","121925","2012-04-01","Yorkshire & Humberside","North Lincolnshire Council"]
[null,null,null,null,null,null,null,null,null,null,null,null,null,null,"St Bernard's Catholic High School","122062","2012-07-01","Yorkshire & Humberside","Rotherham Metropolitan Borough Council"]
[null,null,null,null,null,null,null,null,null,null,null,null,null,null,"St Bernard's High School and Arts College","120312","2011-08-17","East of England","Southend-on-Sea Borough Council"]
[null,null,null,null,null,null,null,null,null,null,null,null,null,null,"St Birinus School","122729","2012-09-01","South East","Oxfordshire County Council"]
[null,null,null,null,null,null,null,null,null,null,null,null,null,null,"St Blasius Shanklin CofE Primary Academy","123808","2013-09-01","South East","Isle of Wight Council"]
[null,null,null,null,null,null,null,null,null,null,null,null,null,null,"St Breock Primary School","120142","2011-08-01","South West","Cornwall Council"]
[null,null,null,null,null,null,null,null,null,null,null,null,null,null,"St Buryan Primary School","119254","2010-09-01","South West","Cornwall Council"]
[null,null,null,null,null,null,null,null,null,null,null,null,null,null,"St Catherine of Siena Catholic Primary School","122511","2012-07-01","East of England","Hertfordshire County Council"]
[null,null,null,null,null,null,null,null,null,null,null,null,null,null,"St Catherine's Catholic Primary School - Swindon","122138","2012-09-01","South West","Swindon Borough Council"]
[null,null,null,null,null,null,null,null,null,null,null,null,null,null,"St Catherine's Catholic School for Girls","119931","2011-12-01","London","Bexley London Borough Council"]
[null,null,null,null,null,null,null,null,null,null,null,null,null,null,"St Catherine's Primary School - Sheffield",125002,"2014-02-01","Yorkshire & Humberside","Sheffield City Council"]
[null,null,null,null,null,null,null,null,null,null,null,null,null,null,"St Chad's Catholic Primary School","124484","2013-09-01","West Midlands","Dudley Metropolitan Borough Council"]
[null,null,null,null,null,null,null,null,null,null,null,null,null,null,"St Chad's Church of England Primary School",122166,"2014-02-01","North West","Oldham Metropolitan Borough Council"]
[null,null,null,null,null,null,null,null,null,null,null,null,null,null,"St Christopher School, The","121050","2012-04-01","East of England","Southend-on-Sea Borough Council"]
[null,null,null,null,null,null,null,null,null,null,null,null,null,null,"St Christopher's Church of England School - Cowley",127580,"2014-02-01","South East","Oxfordshire County Council"]
[null,null,null,null,null,null,null,null,null,null,null,null,null,null,"St Christophers Lower School","120726","2012-04-01","East of England","Central Bedfordshire Council"]
[null,null,null,null,null,null,null,null,null,null,null,null,null,null,"St Clare's Catholic Primary School","124555","2013-09-01","East of England","Essex County Council"]
[null,null,null,null,null,null,null,null,null,null,null,null,null,null,"St Clare's Primary School - A Catholic Voluntary Academy","122497","2012-07-01","East Midlands","Leicestershire County Council"]
[null,null,null,null,null,null,null,null,null,null,null,null,null,null,"St Clement Danes School","119859","2011-07-01","East of England","Hertfordshire County Council"]
[null,null,null,null,null,null,null,null,null,null,null,null,null,null,"St Clement's Church of England Academy","122108","2012-10-01","West Midlands","Birmingham City Council"]
[null,null,null,null,null,null,null,null,null,null,null,null,null,null,"St Clement's High School",129411,"2014-02-01","East of England","Norfolk County Council"]
[null,null,null,null,null,null,null,null,null,null,null,null,null,null,"St Clere's School","120440","2011-09-01","East of England","Thurrock Borough Council"]
[null,null,null,null,null,null,null,null,null,null,null,null,null,null,"St Columb Major Community Primary School","119822","2011-07-01","South West","Cornwall Council"]
[null,null,null,null,null,null,null,null,null,null,null,null,null,null,"St Columb Minor School","119823","2011-07-01","South West","Cornwall Council"]
[null,null,null,null,null,null,null,null,null,null,null,null,null,null,"St Columba Church of England Primary Academy","121948","2012-09-01","South East","Hampshire County Council"]
[null,null,null,null,null,null,null,null,null,null,null,null,null,null,"St Columba's Catholic Boys' School","121201","2012-09-01","London","Bexley London Borough Council"]
[null,null,null,null,null,null,null,null,null,null,null,null,null,null,"St Cuthbert's Church of England Infants School","120858","2012-11-01","South West","Somerset County Council"]
[null,null,null,null,null,null,null,null,null,null,null,null,null,null,"St Cuthbert's High School","121035","2012-03-01T11:59:33","North East","Newcastle Upon Tyne City Council"]
[null,null,null,null,null,null,null,null,null,null,null,null,null,null,"St Cyprian's Greek Orthodox Primary School","121191","2012-07-01","London","Croydon London Borough Council"]
[null,null,null,null,null,null,null,null,null,null,null,null,null,null,"St David's School","120856","2013-01-01","South West","Gloucestershire County Council"]
[null,null,null,null,null,null,null,null,null,null,null,null,null,null,"St Dominic's Catholic Primary School","120407","2011-09-01","South West","Gloucestershire County Council"]
[null,null,null,null,null,null,null,null,null,null,null,null,null,null,"St Dunstan's Community School","120202","2011-08-01","South West","Somerset County Council"]
[null,null,null,null,null,null,null,null,null,null,null,null,null,null,"St Eanswythe's Church of England Primary School","123048","2013-02-01","South East","Kent County Council"]
[null,null,null,null,null,null,null,null,null,null,null,null,null,null,"St Edmund Campion Catholic Primary School","120273","2011-09-01","East Midlands","Nottinghamshire County Council"]
[null,null,null,null,null,null,null,null,null,null,null,null,null,null,"St Edmunds Catholic School - Wolverhampton","125005","2013-07-01","West Midlands","Wolverhampton City Council"]
[null,null,null,null,null,null,null,null,null,null,null,null,null,null,"St Edmund's Church of England Girls' School and Sports College","120611","2012-02-01","South West","Wiltshire Council"]
[null,null,null,null,null,null,null,null,null,null,null,null,null,null,"St Edmund's Roman Catholic Primary School","120397","2011-09-01","South West","Wiltshire Council"]
[null,null,null,null,null,null,null,null,null,null,null,null,null,null,"St Edward's Church of England School & Sixth Form College","120145","2011-08-01","London","Havering London Borough Council"]
[null,null,null,null,null,null,null,null,null,null,null,null,null,null,"St Edward's CofE (VA) Junior High School","122913","2013-01-01","West Midlands","Staffordshire County Council"]
[null,null,null,null,null,null,null,null,null,null,null,null,null,null,"St Edward's College","119736","2011-05-01","North West","Liverpool City Council"]
[null,null,null,null,null,null,null,null,null,null,null,null,null,null,"St Filumena's Catholic Primary School","122657","2012-09-01","West Midlands","Staffordshire County Council"]
[null,null,null,null,null,null,null,null,null,null,null,null,null,null,"St Francis Xavier's College","122503","2012-08-01T12:48:32","North West","Liverpool City Council"]
[null,null,null,null,null,null,null,null,null,null,null,null,null,null,"St George and St Martin's Catholic Primary School","123406","2013-09-01","West Midlands","Stoke on Trent City Council"]
[null,null,null,null,null,null,null,null,null,null,null,null,null,null,"St George RC School - Westminster","121849","2013-03-01","London","Westminster City Council"]
[null,null,null,null,null,null,null,null,null,null,null,null,null,null,"St Georges Academy - Birmingham","123415","2013-09-01","West Midlands","Birmingham City Council"]
[null,null,null,null,null,null,null,null,null,null,null,null,null,null,"St George's Academy - Sleaford","119012","2010-01-01","East Midlands","Lincolnshire County Council"]
[null,null,null,null,null,null,null,null,null,null,null,null,null,null,"St George's Catholic Primary School - Derby","122691","2012-09-01","East Midlands","Derby City Council"]
[null,null,null,null,null,null,null,null,null,null,null,null,null,null,"St George's Church of England Academy - Birmingham","123197","2013-07-01","West Midlands","Birmingham City Council"]
[null,null,null,null,null,null,null,null,null,null,null,null,null,null,"St George's CofE Junior and Infant School","123045","2013-03-01","West Midlands","Birmingham City Council"]
[null,null,null,null,null,null,null,null,null,null,null,null,null,null,"St George's CofE Primary School - Plymouth","124802","2013-09-01","South West","Plymouth City Council"]
[null,null,null,null,null,null,null,null,null,null,null,null,null,null,"St George's CofE VA Primary School - Darlington","121844","2012-04-01","North East","Darlington Borough Council"]
[null,null,null,null,null,null,null,null,null,null,null,null,null,null,"St George's School - Harpenden","120807","2012-07-01","East of England","Hertfordshire County Council"]
[null,null,null,null,null,null,null,null,null,null,null,null,null,null,"St Gerard's Catholic Primary School","124186","2013-07-01","Yorkshire & Humberside","Rotherham Metropolitan Borough Council"]
[null,null,null,null,null,null,null,null,null,null,null,null,null,null,"St Giles Catholic Primary School","122659","2012-09-01","West Midlands","Staffordshire County Council"]
[null,null,null,null,null,null,null,null,null,null,null,null,null,null,"St Giles CofE (VA) J&I - Pontefract",127247,"2013-12-01","Yorkshire & Humberside","Wakefield Council"]
[null,null,null,null,null,null,null,null,null,null,null,null,null,null,"St Gregory the Great VA Catholic Secondary School","124075","2013-04-01","South East","Oxfordshire County Council"]
[null,null,null,null,null,null,null,null,null,null,null,null,null,null,"St Gregory's Catholic Comprehensive School","123235","2014-03-01","South East ","Kent County Council"]
[null,null,null,null,null,null,null,null,null,null,null,null,null,null,"St Gregory's Catholic Middle School","123183","2013-04-01","East of England","Bedford Borough Council"]
[null,null,null,null,null,null,null,null,null,null,null,null,null,null,"St Gregory's Catholic Primary School - Longton",124638,"2013-11-01","West Midlands","Stoke on Trent City Council"]
[null,null,null,null,null,null,null,null,null,null,null,null,null,null,"St Gregory's Catholic Primary School - Stockton-on-Tees","124074","2013-04-01","North East","Stockton-on-Tees Borough Council"]
[null,null,null,null,null,null,null,null,null,null,null,null,null,null,"St Helena School","121048","2012-03-01","East of England","Essex County Council"]
[null,null,null,null,null,null,null,null,null,null,null,null,null,null,"St Helen's Catholic Junior School","119977","2011-08-01","East of England","Essex County Council"]
[null,null,null,null,null,null,null,null,null,null,null,null,null,null,"St Helen's Primary Academy","122596","2012-12-01","Yorkshire & Humberside","Barnsley Metropolitan Borough Council"]
[null,null,null,null,null,null,null,null,null,null,null,null,null,null,"St Hilary School","119824","2011-07-01","South West","Cornwall Council"]
[null,null,null,null,null,null,null,null,null,null,null,null,null,null,"St Ignatius Catholic Primary School","122332","2012-11-01","Yorkshire & Humberside","Wakefield Council"]
[null,null,null,null,null,null,null,null,null,null,null,null,null,null,"St Ives Infant School","120412","2011-09-01","South West","Cornwall Council"]
[null,null,null,null,null,null,null,null,null,null,null,null,null,null,"St Ivo School","120305","2011-08-17","East of England","Cambridgeshire County Council"]
[null,null,null,null,null,null,null,null,null,null,null,null,null,null,"St James' Church of England Voluntary Aided Primary School - Rochester","121953","2012-12-01","South East","Medway Council"]
[null,null,null,null,null,null,null,null,null,null,null,null,null,null,"St James Church School - Taunton","123119","2013-04-01","South West","Somerset County Council"]
[null,null,null,null,null,null,null,null,null,null,null,null,null,null,"St James' Roman Catholic Primary School","121465","2012-04-01","London","Bromley London Borough Council"]
[null,null,null,null,null,null,null,null,null,null,null,null,null,null,"St James the Great Academy - East Maling","121099","2012-04-01","South East","Kent County Council"]
[null,null,null,null,null,null,null,null,null,null,null,null,null,null,"St James the Great RC Primary and Nursery School","121461","2012-04-01","London","Croydon London Borough Council"]
[null,null,null,null,null,null,null,null,null,null,null,null,null,null,"St John and St Francis Church School","123098","2013-04-01","South West","Somerset County Council"]
[null,null,null,null,null,null,null,null,null,null,null,null,null,null,"St John Fisher and Thomas More Catholic Primary School","123848","2013-04-01","North West","Manchester City Council"]
[null,null,null,null,null,null,null,null,null,null,null,null,null,null,"St John Fisher Catholic Primary Academy - Sheffield",124138,"2013-12-01","Yorkshire & Humberside","Sheffield City Council"]
[null,null,null,null,null,null,null,null,null,null,null,null,null,null,"St John Fisher Catholic Primary School - Alvaston","122133","2012-09-01","East Midlands","Derby City Council"]
[null,null,null,null,null,null,null,null,null,null,null,null,null,null,"St John Fisher Catholic Primary School - Littlemore","124083","2013-04-01","South East","Oxfordshire County Council"]
[null,null,null,null,null,null,null,null,null,null,null,null,null,null,"St John Plessington Catholic College","122865","2012-12-01","North West","Wirral Metropolitan Borough Council"]
[null,null,null,null,null,null,null,null,null,null,null,null,null,null,"St John Rigby Catholic Primary School","123150","2013-04-01","East of England","Bedford Borough Council"]
[null,null,null,null,null,null,null,null,null,null,null,null,null,null,"St John Roman Catholic Primary School","122573","2012-07-01","East of England","Hertfordshire County Council"]
[null,null,null,null,null,null,null,null,null,null,null,null,null,null,"St John the Evangelist Catholic Primary","123362","2013-09-01","West Midlands","Staffordshire County Council"]
[null,null,null,null,null,null,null,null,null,null,null,null,null,null,"St John's and St Peter's Church of England Academy","122798","2012-11-01","West Midlands","Birmingham City Council"]
[null,null,null,null,null,null,null,null,null,null,null,null,null,null,"St John's Catholic School & Sixth Form Centre","120831","2011-12-01","North East","Durham County Council"]
[null,null,null,null,null,null,null,null,null,null,null,null,null,null,"St John's Church of England Primary School - Coleford","122688","2012-09-01","South West","Gloucestershire County Council"]
[null,null,null,null,null,null,null,null,null,null,null,null,null,null,"St John's Church of England Primary School - Darlington","121906","2012-05-01","North East","Darlington Borough Council"]
[null,null,null,null,null,null,null,null,null,null,null,null,null,null,"St John's Church of England Primary School - Dorking",123099,"2013-11-01","South East","Surrey County Council"]
[null,null,null,null,null,null,null,null,null,null,null,null,null,null,"St John's Church of England Primary School - Maidstone","120672","2011-11-01","South East","Kent County Council"]
[null,null,null,null,null,null,null,null,null,null,null,null,null,null,"St John's CofE (VA) Primary School - Brighouse","120493","2011-10-01","Yorkshire & Humberside","Calderdale Metropolitan Borough Council"]
[null,null,null,null,null,null,null,null,null,null,null,null,null,null,"St John's CofE Foundation Middle School - Bromsgrove","123250","2013-02-01","West Midlands","Worcestershire County Council"]
[null,null,null,null,null,null,null,null,null,null,null,null,null,null,"St John's CofE Primary School - Birmingham","122106","2013-01-01","West Midlands","Birmingham City Council"]
[null,null,null,null,null,null,null,null,null,null,null,null,null,null,"St John's CofE Primary School - Radstock",123245,"2013-12-01","South West","Bath & North East Somerset Council"]
[null,null,null,null,null,null,null,null,null,null,null,null,null,null,"St John's CofE VA Primary School - Rishworth","122722","2012-12-01","Yorkshire & Humberside","Calderdale Metropolitan Borough Council"]
[null,null,null,null,null,null,null,null,null,null,null,null,null,null,"St John's Marlborough","111443","2012-09-01","South West","Wiltshire Council"]
[null,null,null,null,null,null,null,null,null,null,null,null,null,null,"St John's Primary Academy - Bracebridge Heath","120809","2012-01-01","East Midlands","Lincolnshire County Council"]
[null,null,null,null,null,null,null,null,null,null,null,null,null,null,"St John's Primary School - Wallingford","123907","2013-06-01","South East","Oxfordshire County Council"]
[null,null,null,null,null,null,null,null,null,null,null,null,null,null,"St John's Primary School - Woking",127095,"2013-12-01","South East","Surrey County Council"]
[null,null,null,null,null,null,null,null,null,null,null,null,null,null,"St John's School - Bedford","120336","2011-09-01","East of England","Bedford Borough Council"]
[null,null,null,null,null,null,null,null,null,null,null,null,null,null,"St Joseph's Catholic Academy - Hebburn","124633","2013-07-01","North East","South Tyneside Council"]
[null,null,null,null,null,null,null,null,null,null,null,null,null,null,"St Joseph's Catholic College - Swindon","119980","2011-08-01","South West","Swindon Borough Council"]
[null,null,null,null,null,null,null,null,null,null,null,null,null,null,"St Joseph's Catholic Lower School","123152","2013-04-01","East of England","Bedford Borough Council"]
[null,null,null,null,null,null,null,null,null,null,null,null,null,null,"St Joseph's Catholic Primary Academy - Doncaster",127180,"2013-12-01","Yorkshire & Humberside","Doncaster Metropolitan Borough Council"]
[null,null,null,null,null,null,null,null,null,null,null,null,null,null,"St Joseph's Catholic Primary School - Aldershot","120382","2011-09-01","South East","Hampshire County Council"]
[null,null,null,null,null,null,null,null,null,null,null,null,null,null,"St Joseph's Catholic Primary School - Carterton","124056","2013-04-01","South East","Oxfordshire County Council"]
[null,null,null,null,null,null,null,null,null,null,null,null,null,null,"St Joseph's Catholic Primary School - Castleford","122349","2012-11-01","Yorkshire & Humberside","Wakefield Council"]
[null,null,null,null,null,null,null,null,null,null,null,null,null,null,"St Joseph's Catholic Primary School - Devizes","120413","2011-09-01","South West","Wiltshire Council"]
[null,null,null,null,null,null,null,null,null,null,null,null,null,null,"St Joseph's Catholic Primary School - Dinnington",127307,"2014-02-01","Yorkshire & Humberside","Rotherham Metropolitan Borough Council"]
[null,null,null,null,null,null,null,null,null,null,null,null,null,null,"St Joseph's Catholic Primary School - Dudley","124442","2013-09-01","West Midlands","Dudley Metropolitan Borough Council"]
[null,null,null,null,null,null,null,null,null,null,null,null,null,null,"St Joseph's Catholic Primary School - Goldenhill","123400","2013-09-01","West Midlands","Stoke on Trent City Council"]
[null,null,null,null,null,null,null,null,null,null,null,null,null,null,"St Joseph's Catholic Primary School - Moorthorpe",129425,"2014-02-01","Yorkshire & Humberside","Wakefield Council"]
[null,null,null,null,null,null,null,null,null,null,null,null,null,null,"St Joseph's Catholic Primary School - Otley","123824","2013-03-01","Yorkshire & Humberside","Leeds City Council"]
[null,null,null,null,null,null,null,null,null,null,null,null,null,null,"St Joseph's Catholic Primary School - Pudsey","123861","2013-03-01","Yorkshire & Humberside","Leeds City Council"]
[null,null,null,null,null,null,null,null,null,null,null,null,null,null,"St Joseph's Catholic Primary School - Sheffield","123230","2013-03-01","Yorkshire & Humberside","Sheffield City Council"]
[null,null,null,null,null,null,null,null,null,null,null,null,null,null,"St Joseph's Catholic Primary School - Thame","124099","2013-04-01","South East","Oxfordshire County Council"]
[null,null,null,null,null,null,null,null,null,null,null,null,null,null,"St Joseph's Catholic Primary School - Uttoxeter","122834","2012-09-01","West Midlands","Staffordshire County Council"]
[null,null,null,null,null,null,null,null,null,null,null,null,null,null,"St Joseph's Catholic Primary School - Wakefield","122403","2012-11-01","Yorkshire & Humberside","Wakefield Council"]
[null,null,null,null,null,null,null,null,null,null,null,null,null,null,"St Joseph's Catholic Primary School, Broadstairs","124290","2014-03-01","South East","Kent County Council"]
[null,null,null,null,null,null,null,null,null,null,null,null,null,null,"St Joseph's Catholic Primary Voluntary Academy","121864","2012-04-01","Yorkshire & Humberside","North East Lincolnshire Council"]
[null,null,null,null,null,null,null,null,null,null,null,null,null,null,"St Joseph's Catholic Voluntary Academy - Leicester","121124","2012-05-01","East Midlands","Leicester City Council"]
[null,null,null,null,null,null,null,null,null,null,null,null,null,null,"St Joseph's Catholic Voluntary Academy - Leicestershire","121177","2012-04-01","East Midlands","Leicestershire County Council"]
[null,null,null,null,null,null,null,null,null,null,null,null,null,null,"St Joseph's College - Croydon","121138","2012-06-01","London","Croydon London Borough Council"]
[null,null,null,null,null,null,null,null,null,null,null,null,null,null,"St Joseph's College Edmund Rice Trust Academy","119510","2011-02-01","West Midlands","Stoke on Trent City Council"]
[null,null,null,null,null,null,null,null,null,null,null,null,null,null,"St Josephs RC Primary School - Sutton Coldfield",123901,"2014-01-01","West Midlands","Birmingham City Council"]
[null,null,null,null,null,null,null,null,null,null,null,null,null,null,"St Jude's Church of England Primary School","127323","2014-03-01","West Midlands","Wolverhampton City Council"]
[null,null,null,null,null,null,null,null,null,null,null,null,null,null,"St Keverne Community Primary School","126520","2014-03-01","South West","Cornwall Council"]
[null,null,null,null,null,null,null,null,null,null,null,null,null,null,"St Laurence in Thanet Church of England Junior School","122870","2012-12-01","South East","Kent County Council"]
[null,null,null,null,null,null,null,null,null,null,null,null,null,null,"St Laurence School - Bradford-on-Avon","120057","2011-08-01","South West","Wiltshire Council"]
[null,null,null,null,null,null,null,null,null,null,null,null,null,null,"St Laurence's CofE Primary School - Coventry","123851","2013-04-01","West Midlands","Coventry City Council"]
[null,null,null,null,null,null,null,null,null,null,null,null,null,null,"St Lawrence Academy, The - Scunthorpe","119124","2008-09-01","Yorkshire & Humberside","North Lincolnshire Council"]
[null,null,null,null,null,null,null,null,null,null,null,null,null,null,"St Lawrence CofE Primary School - Hassocks","124523","2013-07-01","South East","West Sussex County Council"]
[null,null,null,null,null,null,null,null,null,null,null,null,null,null,"St Leonards Academy, The","119431","2011-09-01","South East","East Sussex County Council"]
[null,null,null,null,null,null,null,null,null,null,null,null,null,null,"St Leonards CE Primary Academy","120621","2011-11-01","South West","Swindon Borough Council"]
[null,null,null,null,null,null,null,null,null,null,null,null,null,null,"St Louis Roman Catholic Primary School","124098","2013-04-01","East of England","Suffolk County Council"]
[null,null,null,null,null,null,null,null,null,null,null,null,null,null,"St Loys Church of England Primary School, Weedon Lois","123874","2013-09-01","East Midlands","Northamptonshire County Council"]
[null,null,null,null,null,null,null,null,null,null,null,null,null,null,"St Luke’s Church of England School","120536","2011-09-01","London","Camden London Borough Council"]
[null,null,null,null,null,null,null,null,null,null,null,null,null,null,"St Luke's Catholic Primary School","124522","2013-08-01","East of England","Essex County Council"]
[null,null,null,null,null,null,null,null,null,null,null,null,null,null,"St Mabyn CofE School","123065","2012-12-01","South West","Cornwall Council"]
[null,null,null,null,null,null,null,null,null,null,null,null,null,null,"St Margaret Clitherow Catholic Primary School","121059","2012-10-01","East Midlands","Nottingham City Council"]
[null,null,null,null,null,null,null,null,null,null,null,null,null,null,"St Margaret Ward Catholic School and Arts College","123311","2013-09-01","West Midlands","Stoke on Trent City Council"]
[null,null,null,null,null,null,null,null,null,null,null,null,null,null,"St Margaret's Academy","119671","2011-04-01","South West","Torbay Council"]
[null,null,null,null,null,null,null,null,null,null,null,null,null,null,"St Margaret's Church of England High School","122342","2012-10-01","North West","Liverpool City Council"]
[null,null,null,null,null,null,null,null,null,null,null,null,null,null,"St Maria Goretti Catholic Primary School",124616,"2013-11-01","West Midlands","Stoke on Trent City Council"]
[null,null,null,null,null,null,null,null,null,null,null,null,null,null,"St Marie's Catholic Primary School","122671","2012-10-01","Yorkshire & Humberside","Sheffield City Council"]
[null,null,null,null,null,null,null,null,null,null,null,null,null,null,"St Mark's Catholic School","121095","2012-04-01","London","Hounslow London Borough Council"]
[null,null,null,null,null,null,null,null,null,null,null,null,null,null,"St Mark's Church of England Academy","118646","2006-09-01","London","Merton Borough Council"]
[null,null,null,null,null,null,null,null,null,null,null,null,null,null,"St Mark's West Essex Catholic School","120058","2011-08-01","East of England","Essex County Council"]
[null,null,null,null,null,null,null,null,null,null,null,null,null,null,"St Martin in the Fields High School for Girls","121874","2012-04-01","London","Lambeth London Borough Council"]
[null,null,null,null,null,null,null,null,null,null,null,null,null,null,"St Martin-in-Meneage Community Primary School","126523","2014-03-01","South West","Cornwall Council"]
[null,null,null,null,null,null,null,null,null,null,null,null,null,null,"St Martin's Academy Chester","123343","2013-09-01","North West","Cheshire West and Chester Council"]
[null,null,null,null,null,null,null,null,null,null,null,null,null,null,"St Martin's CofE Primary School - Liskeard",124485,"2013-12-01","South West","Cornwall Council"]
[null,null,null,null,null,null,null,null,null,null,null,null,null,null,"St Martin's School - Brentwood","119875","2011-07-01","East of England","Essex County Council"]
[null,null,null,null,null,null,null,null,null,null,null,null,null,null,"St Mary and St John Catholic Primary School","124666","2013-07-01","West Midlands","Wolverhampton City Council"]
[null,null,null,null,null,null,null,null,null,null,null,null,null,null,"St Mary Magdalene Academy","118670","2007-09-01","London","Islington London Borough Council"]
[null,null,null,null,null,null,null,null,null,null,null,null,null,null,"St Mary Magdalene Academy: the Courtyard","123398","2013-09-01","London","Islington London Borough Council"]
[null,null,null,null,null,null,null,null,null,null,null,null,null,null,"St Mary Roman Catholic Primary School","122600","2012-07-01","East of England","Hertfordshire County Council"]
[null,null,null,null,null,null,null,null,null,null,null,null,null,null,"St Marychurch Church of England Primary and Nursery School","130165","2014-03-01","South West","Torbay Council"]
[null,null,null,null,null,null,null,null,null,null,null,null,null,null,"St Marylebone Church of England Bridge School, The","123401","2013-09-01","London","Westminster City Council"]
[null,null,null,null,null,null,null,null,null,null,null,null,null,null,"St Marylebone CofE School, The","120352","2011-09-01","London","Westminster City Council"]
[null,null,null,null,null,null,null,null,null,null,null,null,null,null,"St Mary's (Melton Mowbray) Church of England Primary School","123149","2013-03-01","East Midlands","Leicestershire County Council"]
[null,null,null,null,null,null,null,null,null,null,null,null,null,null,"St Mary's Catholic Comprehensive School","124614","2013-09-01","North East","Newcastle Upon Tyne City Council"]
[null,null,null,null,null,null,null,null,null,null,null,null,null,null,"St Mary's Catholic Comprehensive School - Menston","123825","2013-03-01T15:58:16","Yorkshire & Humberside","Leeds City Council"]
[null,null,null,null,null,null,null,null,null,null,null,null,null,null,"St Mary's Catholic High School - Chesterfield","122513","2012-08-01T12:46:41","East Midlands","Derbyshire County Council"]
[null,null,null,null,null,null,null,null,null,null,null,null,null,null,"St Mary's Catholic Primary Academy - High Green",124623,"2013-12-01","Yorkshire & Humberside","Sheffield City Council"]
[null,null,null,null,null,null,null,null,null,null,null,null,null,null,"St Mary's Catholic Primary School - Gloucester","120031","2011-08-01","South West","Gloucestershire County Council"]
[null,null,null,null,null,null,null,null,null,null,null,null,null,null,"St Mary's Catholic Primary School - Horsforth","123819","2013-03-01","Yorkshire & Humberside","Leeds City Council"]
[null,null,null,null,null,null,null,null,null,null,null,null,null,null,"St Mary's Catholic Primary School - Leek","122793","2012-09-01","West Midlands","Staffordshire County Council"]
[null,null,null,null,null,null,null,null,null,null,null,null,null,null,"St Mary's Catholic Primary School - Maidenhead","124344","2013-07-01","South East","Royal Borough of Windsor and Maidenhead"]
[null,null,null,null,null,null,null,null,null,null,null,null,null,null,"St Mary's Catholic Primary School - Maltby","124189","2013-07-01","Yorkshire & Humberside","Rotherham Metropolitan Borough Council"]
[null,null,null,null,null,null,null,null,null,null,null,null,null,null,"St Mary's Catholic Primary School - Nottingham","122379","2012-07-01","East Midlands","Nottingham City Council"]
[null,null,null,null,null,null,null,null,null,null,null,null,null,null,"St Mary's Catholic Primary School - Rotherham","124182","2013-07-01","Yorkshire & Humberside","Rotherham Metropolitan Borough Council"]
[null,null,null,null,null,null,null,null,null,null,null,null,null,null,"St Marys Catholic Primary School - Stoke-on-Trent","123403","2013-09-01","West Midlands","Stoke on Trent City Council"]
[null,null,null,null,null,null,null,null,null,null,null,null,null,null,"St Mary's Catholic Primary School - Swindon","120147","2011-08-01","South West","Swindon Borough Council"]
[null,null,null,null,null,null,null,null,null,null,null,null,null,null,"St Mary's Catholic Primary School Voluntary Academy - Grimsby","123168","2012-12-01","Yorkshire & Humberside","North East Lincolnshire Council"]
[null,null,null,null,null,null,null,null,null,null,null,null,null,null,"St Mary's Catholic Primary Voluntary Academy - Brigg","121463","2012-04-01","Yorkshire & Humberside","North Lincolnshire Council"]
[null,null,null,null,null,null,null,null,null,null,null,null,null,null,"St Mary's CE Academy - Stotfold","120814","2012-04-01","East of England","Central Bedfordshire Council"]
[null,null,null,null,null,null,null,null,null,null,null,null,null,null,"St Mary's CE Primary School - Dilwyn","123344","2013-01-07","West Midlands","Herefordshire Council"]
[null,null,null,null,null,null,null,null,null,null,null,null,null,null,"St Mary's Church of England High School (VA)","121232","2012-07-01","East of England","Hertfordshire County Council"]
[null,null,null,null,null,null,null,null,null,null,null,null,null,null,"St Mary's Church of England Junior School - Norwich","120311","2011-08-17","East of England","Norfolk County Council"]
[null,null,null,null,null,null,null,null,null,null,null,null,null,null,"St Mary's Church of England Middle School - Puddletown","121942","2012-06-01","South West","Dorset County Council"]
[null,null,null,null,null,null,null,null,null,null,null,null,null,null,"St Mary's Church of England Primary School - Burton Latimer","123064","2013-04-01","East Midlands","Northamptonshire County Council"]
[null,null,null,null,null,null,null,null,null,null,null,null,null,null,"St Mary's Church of England Voluntary Aided Primary School - Barnsley","120549","2012-02-01","Yorkshire & Humberside","Barnsley Metropolitan Borough Council"]
[null,null,null,null,null,null,null,null,null,null,null,null,null,null,"St Mary's Church of England Voluntary Aided Primary School - Bury St Edmunds","120337","2011-09-01","East of England","Suffolk County Council"]
[null,null,null,null,null,null,null,null,null,null,null,null,null,null,"St Mary's Church of England Voluntary Aided Primary School - Kettering","123112","2013-04-01","East Midlands","Northamptonshire County Council"]
[null,null,null,null,null,null,null,null,null,null,null,null,null,null,"St Mary's Church of England Voluntary Aided Primary School - Shenfield","124535","2013-06-01","East of England","Essex County Council"]
[null,null,null,null,null,null,null,null,null,null,null,null,null,null,"St Mary's CofE Aided Primary School",125176,"2013-11-01","South East","Surrey County Council"]
[null,null,null,null,null,null,null,null,null,null,null,null,null,null,"St Mary's CofE Junior and Infant School","121135","2013-02-01","West Midlands","Birmingham City Council"]
[null,null,null,null,null,null,null,null,null,null,null,null,null,null,"St Mary's Hampton Church of England School","123345","2013-09-01","London","Richmond Upon Thames Borough Council"]
[null,null,null,null,null,null,null,null,null,null,null,null,null,null,"St Matthew Academy","119114","2007-09-01","London","Lewisham London Borough Council"]
[null,null,null,null,null,null,null,null,null,null,null,null,null,null,"St Matthew's Church of England Primary School - Stockport",123908,"2014-01-01","North West","Stockport Metropolitan Borough Council"]
[null,null,null,null,null,null,null,null,null,null,null,null,null,null,"St Matthews CofE (A) Primary School - Stoke-on-Trent",123353,"2013-11-01","West Midlands","Stoke on Trent City Council"]
[null,null,null,null,null,null,null,null,null,null,null,null,null,null,"St Matthew's CofE Primary School - West Drayton","123166","2013-02-01","London","Hillingdon London Borough Council"]
[null,null,null,null,null,null,null,null,null,null,null,null,null,null,"St Matthias Church of England Primary School","120185","2011-08-01","West Midlands","Worcestershire County Council"]
[null,null,null,null,null,null,null,null,null,null,null,null,null,null,"St Merryn School","120635","2011-11-01","South West","Cornwall Council"]
[null,null,null,null,null,null,null,null,null,null,null,null,null,null,"St Mewan Community Primary School","120414","2011-09-01","South West","Cornwall Council"]
[null,null,null,null,null,null,null,null,null,null,null,null,null,null,"St Michael and All Angels Church of England (Aided) Primary School","122412","2012-11-01","East Midlands","Leicestershire County Council"]
[null,null,null,null,null,null,null,null,null,null,null,null,null,null,"St Michael and All Angels CofE - Southwark","118647","2007-09-01","London","Southwark London Borough Council"]
[null,null,null,null,null,null,null,null,null,null,null,null,null,null,"St Michael C of E High School","119893","2011-07-01","North West","Lancashire County Council"]
[null,null,null,null,null,null,null,null,null,null,null,null,null,null,"St Michael’s Academy - Yeovil","122689","2012-10-01","South West","Somerset County Council"]
[null,null,null,null,null,null,null,null,null,null,null,null,null,null,"St Michael’s CE Junior & Infants","121118","2012-10-01","West Midlands","Birmingham City Council"]
[null,null,null,null,null,null,null,null,null,null,null,null,null,null,"St Michael's Catholic Academy - Billingham","123955","2013-09-01","North East","Stockton-on-Tees Borough Council"]
[null,null,null,null,null,null,null,null,null,null,null,null,null,null,"St Michael's Catholic College - Bermondsey","121843","2012-11-01","London","Southwark London Borough Council"]
[null,null,null,null,null,null,null,null,null,null,null,null,null,null,"St Michael's Catholic Primary School - Wolverhampton","125007","2013-07-01","West Midlands","Wolverhampton City Council"]
[null,null,null,null,null,null,null,null,null,null,null,null,null,null,"St Michael's Catholic Secondary School - Camborne","122024","2012-09-01","South West","Cornwall Council"]
[null,null,null,null,null,null,null,null,null,null,null,null,null,null,"St Michael's Church of England Aided Primary School - Birmingham","122771","2013-01-01","West Midlands","Birmingham City Council"]
[null,null,null,null,null,null,null,null,null,null,null,null,null,null,"St Michael's Church of England VA Primary School - Exeter","124291","2013-09-01","South West","Devon County Council"]
[null,null,null,null,null,null,null,null,null,null,null,null,null,null,"St Michael's CofE Primary School - Haringey","123207","2013-01-01","London","Haringey London Borough Council"]
[null,null,null,null,null,null,null,null,null,null,null,null,null,null,"St Michael's Voluntary Controlled Church of England Primary School - Helston",124524,"2013-12-01","South West","Cornwall Council"]
[null,null,null,null,null,null,null,null,null,null,null,null,null,null,"St Newlyn East Primary School","123021","2013-09-01","South West","Cornwall Council"]
[null,null,null,null,null,null,null,null,null,null,null,null,null,null,"St Nicholas Catholic Primary School - Exeter","123948","2013-06-01","South West","Devon County Council"]
[null,null,null,null,null,null,null,null,null,null,null,null,null,null,"St Nicholas Catholic Primary School - Sutton Coldfield",123913,"2014-01-01","West Midlands","Birmingham City Council"]
[null,null,null,null,null,null,null,null,null,null,null,null,null,null,"St Nicholas' CofE Primary - Alcester","122175","2013-04-01","West Midlands","Warwickshire County Council"]
[null,null,null,null,null,null,null,null,null,null,null,null,null,null,"St Nicholas of Tolentine Catholic Primary School","122858","2012-12-01","South West","Bristol City Council"]
[null,null,null,null,null,null,null,null,null,null,null,null,null,null,"St Nicolas' CE Combined School Taplow","120946","2012-05-01","South East","Buckinghamshire County Council"]
[null,null,null,null,null,null,null,null,null,null,null,null,null,null,"St Nicolas' CofE VA School - Downderry",124525,"2013-12-01","South West","Cornwall Council"]
[null,null,null,null,null,null,null,null,null,null,null,null,null,null,"St Osmund's Church of England Voluntary Aided Middle School - Dorcester","121933","2012-06-01","South West","Dorset County Council"]
[null,null,null,null,null,null,null,null,null,null,null,null,null,null,"St Oswald's CofE Academy - Doncaster","122277","2012-09-01","Yorkshire & Humberside","Doncaster Metropolitan Borough Council"]
[null,null,null,null,null,null,null,null,null,null,null,null,null,null,"St Oswald's CofE Primary School - Bradford","122245","2012-11-01","Yorkshire & Humberside","Bradford Metropolitan District Council"]
[null,null,null,null,null,null,null,null,null,null,null,null,null,null,"St Patrick's Catholic Primary and Nursery School - Nottingham","124148","2013-04-01","East Midlands","Nottingham City Council"]
[null,null,null,null,null,null,null,null,null,null,null,null,null,null,"St Patrick's Catholic Primary School - Bristol","122411","2012-08-01","South West","Bristol City Council"]
[null,null,null,null,null,null,null,null,null,null,null,null,null,null,"St Patrick's Catholic Primary School - Sheffield","123237","2013-03-01","Yorkshire & Humberside","Sheffield City Council"]
[null,null,null,null,null,null,null,null,null,null,null,null,null,null,"St Patrick's CofE Junior and Infant School - Solihull","119372","2010-11-01","West Midlands","Solihull Metropolitan Borough Council"]
[null,null,null,null,null,null,null,null,null,null,null,null,null,null,"St Paul's Academy - Greenwich","119110","2005-09-01","London","Greenwich London Borough Council"]
[null,null,null,null,null,null,null,null,null,null,null,null,null,null,"St Paul's and All Hallows CofE Infant School","123202","2013-01-01","London","Haringey London Borough Council"]
[null,null,null,null,null,null,null,null,null,null,null,null,null,null,"St Paul's and All Hallows CofE Junior School","123208","2013-01-01","London","Haringey London Borough Council"]
[null,null,null,null,null,null,null,null,null,null,null,null,null,null,"St Paul's Catholic High School - Manchester","123866","2013-04-01","North West","Manchester City Council"]
[null,null,null,null,null,null,null,null,null,null,null,null,null,null,"St Paul's CofE Primary School - Astley Bridge","122145","2012-10-01","North West","Bolton Metropolitan Borough Council"]
[null,null,null,null,null,null,null,null,null,null,null,null,null,null,"St Paul's CofE Primary School - Hereford","121133","2012-04-01","West Midlands","Herefordshire Council"]
[null,null,null,null,null,null,null,null,null,null,null,null,null,null,"St Peter and Paul Catholic Primary School - Yeadon","123826","2013-04-01","Yorkshire & Humberside","Leeds City Council"]
[null,null,null,null,null,null,null,null,null,null,null,null,null,null,"St Peter and St Paul Church of England Primary School","122380","2013-03-01","East Midlands","Leicestershire County Council"]
[null,null,null,null,null,null,null,null,null,null,null,null,null,null,"St Peter and St Paul, Lincoln's Catholic High School","124351","2013-05-01","East Midlands","Lincolnshire County Council"]
[null,null,null,null,null,null,null,null,null,null,null,null,null,null,"St Peter's Academy - Stoke-on-Trent","119936","2011-09-01","West Midlands","Stoke on Trent City Council"]
[null,null,null,null,null,null,null,null,null,null,null,null,null,null,"St Peter's Catholic High School and Sixth Form Centre","119982","2011-08-01","South West","Gloucestershire County Council"]
[null,null,null,null,null,null,null,null,null,null,null,null,null,null,"St Peter's Catholic Primary School","123402","2013-09-01","West Midlands","Stoke on Trent City Council"]
[null,null,null,null,null,null,null,null,null,null,null,null,null,null,"St Peter's Catholic School - Bournemouth","120421","2011-09-01","South West","Bournemouth Borough Council"]
[null,null,null,null,null,null,null,null,null,null,null,null,null,null,"St Peter's Church of England First School","127243","2014-03-01","South West","Somerset County Council"]
[null,null,null,null,null,null,null,null,null,null,null,null,null,null,"St Peter's Church of England Junior School - Wellingborough",127147,"2013-11-01","East Midlands","Northamptonshire County Council"]
[null,null,null,null,null,null,null,null,null,null,null,null,null,null,"St Peter's Church of England Primary School","123044","2012-12-01","East Midlands","Leicestershire County Council"]
[null,null,null,null,null,null,null,null,null,null,null,null,null,null,"St Peter's Collegiate Church of England School","122401","2012-10-01","West Midlands","Wolverhampton City Council"]
[null,null,null,null,null,null,null,null,null,null,null,null,null,null,"St Peter's School - Huntingdon","120248","2011-08-01","East of England","Cambridgeshire County Council"]
[null,null,null,null,null,null,null,null,null,null,null,null,null,null,"St Petroc's Church of England Voluntary Aided Primary School","123092","2012-12-01","South West","Cornwall Council"]
[null,null,null,null,null,null,null,null,null,null,null,null,null,null,"St Simon and Jude CofE Primary School - Bolton","121845","2012-11-01","North West","Bolton Metropolitan Borough Council"]
[null,null,null,null,null,null,null,null,null,null,null,null,null,null,"St Simon Stock Catholic School ",123872,"2014-01-01","South East","Kent County Council"]
[null,null,null,null,null,null,null,null,null,null,null,null,null,null,"St Stephen's Community Academy",129009,"2014-01-01","South West","Cornwall Council"]
[null,null,null,null,null,null,null,null,null,null,null,null,null,null,"St Stephen's Junior School","119415","2011-01-01","South East","Kent County Council"]
[null,null,null,null,null,null,null,null,null,null,null,null,null,null,"St Teresa's Catholic Primary School - Basildon",124577,"2013-12-01","East of England","Essex County Council"]
[null,null,null,null,null,null,null,null,null,null,null,null,null,null,"St Teresa's Catholic Primary School - Bristol","122864","2012-12-01","South West","Bristol City Council"]
[null,null,null,null,null,null,null,null,null,null,null,null,null,null,"St Teresa's Catholic Primary School - Colchester","122421","2012-07-01","East of England","Essex County Council"]
[null,null,null,null,null,null,null,null,null,null,null,null,null,null,"St Teresa's Catholic Primary School - Nottingham","122361","2012-07-01","East Midlands","Nottingham City Council"]
[null,null,null,null,null,null,null,null,null,null,null,null,null,null,"St Teresa's Catholic Primary School - Parkfield","125011","2013-07-01","West Midlands","Wolverhampton City Council"]
[null,null,null,null,null,null,null,null,null,null,null,null,null,null,"St Thomas A Becket Catholic College - Wakefield","122353","2012-11-01","Yorkshire & Humberside","Wakefield Council"]
[null,null,null,null,null,null,null,null,null,null,null,null,null,null,"St Thomas Becket Catholic Primary School - Croydon","122730","2012-09-01","London","Croydon London Borough Council"]
[null,null,null,null,null,null,null,null,null,null,null,null,null,null,"St Thomas Cantilupe Church of England Academy",125145,"2014-01-01","West Midlands","Herefordshire Council"]
[null,null,null,null,null,null,null,null,null,null,null,null,null,null,"St Thomas' Catholic Primary School - Stoke-on-Trent","122673","2012-09-01","West Midlands","Staffordshire County Council"]
[null,null,null,null,null,null,null,null,null,null,null,null,null,null,"St Thomas More Catholic College - Longton",125000,"2013-11-01","West Midlands","Stoke on Trent City Council"]
[null,null,null,null,null,null,null,null,null,null,null,null,null,null,"St Thomas More Catholic High School - Crewe","123812","2013-06-01","North West","Cheshire East Council"]
[null,null,null,null,null,null,null,null,null,null,null,null,null,null,"St Thomas More Catholic Primary School - Kidlington","124073","2013-04-01","South East","Oxfordshire County Council"]
[null,null,null,null,null,null,null,null,null,null,null,null,null,null,"St Thomas More Catholic Primary School - Leicester","121185","2012-06-01","East Midlands","Leicester City Council"]
[null,null,null,null,null,null,null,null,null,null,null,null,null,null,"St Thomas More Catholic Primary School - Saffron Walden","120281","2011-08-01","East of England","Essex County Council"]
[null,null,null,null,null,null,null,null,null,null,null,null,null,null,"St Thomas More Catholic School - Gateshead","120513","2012-02-01","North East","Gateshead Council"]
[null,null,null,null,null,null,null,null,null,null,null,null,null,null,"St Thomas More Catholic School - Haringey","123203","2013-03-01T15:55:45","London","Haringey London Borough Council"]
[null,null,null,null,null,null,null,null,null,null,null,null,null,null,"St Thomas More Catholic Teaching School","123184","2013-04-01","East of England","Bedford Borough Council"]
[null,null,null,null,null,null,null,null,null,null,null,null,null,null,"St Thomas More High School for Boys","120310","2011-08-17","East of England","Southend-on-Sea Borough Council"]
[null,null,null,null,null,null,null,null,null,null,null,null,null,null,"St Thomas More Roman Catholic High School Aided","120865","2011-12-01T12:23:16","North East","North Tyneside Council"]
[null,null,null,null,null,null,null,null,null,null,null,null,null,null,"St Thomas More Roman Catholic Primary School - Letchworth","122400","2012-07-01","East of England","Hertfordshire County Council"]
[null,null,null,null,null,null,null,null,null,null,null,null,null,null,"St Thomas More's Catholic Primary School - Colchester","120324","2012-06-01","East of England","Essex County Council"]
[null,null,null,null,null,null,null,null,null,null,null,null,null,null,"St Thomas of Canterbury Catholic Primary School","122514","2012-10-01","Yorkshire & Humberside","Sheffield City Council"]
[null,null,null,null,null,null,null,null,null,null,null,null,null,null,"St Tudy CofE VA Primary School","123057","2012-12-01","South West","Cornwall Council"]
[null,null,null,null,null,null,null,null,null,null,null,null,null,null,"St Ursula’s E-ACT Academy","120468","2011-09-01","South West","Bristol City Council"]
[null,null,null,null,null,null,null,null,null,null,null,null,null,null,"St Wilfrid's Catholic High School and Sixth Form College","122334","2012-11-01T14:52:09","Yorkshire & Humberside","Wakefield Council"]
[null,null,null,null,null,null,null,null,null,null,null,null,null,null,"St Wilfrid's Catholic Primary School - Sheffield","122712","2012-10-01","Yorkshire & Humberside","Sheffield City Council"]
[null,null,null,null,null,null,null,null,null,null,null,null,null,null,"St Wilfrid's Catholic Primary School - Tunstall","123287","2013-09-01","West Midlands","Stoke on Trent City Council"]
[null,null,null,null,null,null,null,null,null,null,null,null,null,null,"St Wilfrid's Cof E High School and Technology College.","119872","2011-07-01","North West","Blackburn with Darwen Borough Council"]
[null,null,null,null,null,null,null,null,null,null,null,null,null,null,"St Winnow CofE School","123164","2012-12-01","South West","Cornwall Council"]
[null,null,null,null,null,null,null,null,null,null,null,null,null,null,"St. Aidan's Church of England High School","120139","2011-08-01","Yorkshire & Humberside","North Yorkshire County Council"]
[null,null,null,null,null,null,null,null,null,null,null,null,null,null,"St. Augustine’s Catholic Primary & Nursery School","120956","2012-09-01","East Midlands","Nottingham City Council"]
[null,null,null,null,null,null,null,null,null,null,null,null,null,null,"St. John the Baptist Catholic Primary School","122330","2012-11-01","Yorkshire & Humberside","Wakefield Council"]
[null,null,null,null,null,null,null,null,null,null,null,null,null,null,"Stafford Leys Community Primary School","121946","2012-06-01","East Midlands","Leicestershire County Council"]
[null,null,null,null,null,null,null,null,null,null,null,null,null,null,"Staffordshire University Academy","120164","2011-09-01","West Midlands","Staffordshire County Council"]
[null,null,null,null,null,null,null,null,null,null,null,null,null,null,"Staindrop School A Business and Enterprise College","120234","2011-08-01","North East","Durham County Council"]
[null,null,null,null,null,null,null,null,null,null,null,null,null,null,"Stamford Queen Eleanor School","120687","2011-11-01","East Midlands","Lincolnshire County Council"]
[null,null,null,null,null,null,null,null,null,null,null,null,null,null,"Stamford St Gilberts Church of England Primary School","123217","2013-01-01","East Midlands","Lincolnshire County Council"]
[null,null,null,null,null,null,null,null,null,null,null,null,null,null,"Stanborough School","120664","2012-02-01","East of England","Hertfordshire County Council"]
[null,null,null,null,null,null,null,null,null,null,null,null,null,null,"Stanchester Community School","120080","2011-08-01","South West","Somerset County Council"]
[null,null,null,null,null,null,null,null,null,null,null,null,null,null,"Standish St Wilfrid's CofE Primary School","124557","2013-07-01","North West","Wigan Metropolitan Borough Council"]
[null,null,null,null,null,null,null,null,null,null,null,null,null,null,"Stanford-le-Hope Primary School","123879","2013-06-01","East of England","Thurrock Borough Council"]
[null,null,null,null,null,null,null,null,null,null,null,null,null,null,"Stanground Academy","120991","2012-04-01","East of England","Peterborough City Council"]
[null,null,null,null,null,null,null,null,null,null,null,null,null,null,"Stanground St John's Church of England Primary School",125178,"2013-11-01","East of England","Peterborough City Council"]
[null,null,null,null,null,null,null,null,null,null,null,null,null,null,"Staniland Academy","121139","2012-09-01","East Midlands","Lincolnshire County Council"]
[null,null,null,null,null,null,null,null,null,null,null,null,null,null,"Stanley Green Infant School",127673,"2014-01-01","South West","Poole Borough Council"]
[null,null,null,null,null,null,null,null,null,null,null,null,null,null,"Stanley Grove Academy","120962","2012-09-01","North West","Manchester City Council"]
[null,null,null,null,null,null,null,null,null,null,null,null,null,null,"Stanton Under Bardon Community Primary School",123270,"2013-10-01","East Midlands","Leicestershire County Council"]
[null,null,null,null,null,null,null,null,null,null,null,null,null,null,"Stanway School, The","121062","2012-03-01","East of England","Essex County Council"]
[null,null,null,null,null,null,null,null,null,null,null,null,null,null,"Stapeley Broad Lane CofE Primary School","124197","2013-04-01","North West","Cheshire East Council"]
[null,null,null,null,null,null,null,null,null,null,null,null,null,null,"Star Academy","121119","2013-04-01","West Midlands","Stoke on Trent City Council"]
[null,null,null,null,null,null,null,null,null,null,null,null,null,null,"Staunton and Corse Church of England Primary School","120149","2011-08-01","South West","Gloucestershire County Council"]
[null,null,null,null,null,null,null,null,null,null,null,null,null,null,"Steiner Academy - Exeter","123346","2013-09-01","South West","Devon County Council"]
[null,null,null,null,null,null,null,null,null,null,null,null,null,null,"Steiner Academy - Frome","121981","2012-09-01","South West","Somerset County Council"]
[null,null,null,null,null,null,null,null,null,null,null,null,null,null,"Steiner Academy, The - Hereford","119118","2008-09-04","West Midlands","Herefordshire Council"]
[null,null,null,null,null,null,null,null,null,null,null,null,null,null,"Stem 6th Form Academy","123347","2013-09-01","London","Islington London Borough Council"]
[null,null,null,null,null,null,null,null,null,null,null,null,null,null,"Stephenson Academy","120965","2012-04-01","South East","Milton Keynes Council"]
[null,null,null,null,null,null,null,null,null,null,null,null,null,null,"Stephenson Studio School","120459","2011-09-01","East Midlands","Leicestershire County Council"]
[null,null,null,null,null,null,null,null,null,null,null,null,null,null,"Stephenson Way Community Primary School","122790","2012-12-01","North East","Durham County Council"]
[null,null,null,null,null,null,null,null,null,null,null,null,null,null,"Stewards School - Harlow","120498","2011-10-01","East of England","Essex County Council"]
[null,null,null,null,null,null,null,null,null,null,null,null,null,null,"Stewart Fleming Primary School","120035","2011-08-01","London","Bromley London Borough Council"]
[null,null,null,null,null,null,null,null,null,null,null,null,null,null,"Stisted Church of England Voluntary Aided Primary School","120560","2011-10-01","East of England","Essex County Council"]
[null,null,null,null,null,null,null,null,null,null,null,null,null,null,"Stockland Church of England Primary School","120417","2011-09-01","South West","Devon County Council"]
[null,null,null,null,null,null,null,null,null,null,null,null,null,null,"Stockland Green School","119993","2012-05-01","West Midlands","Birmingham City Council"]
[null,null,null,null,null,null,null,null,null,null,null,null,null,null,"Stockley Academy","118400","2004-09-01","London","Hillingdon London Borough Council"]
[null,null,null,null,null,null,null,null,null,null,null,null,null,null,"Stockport Academy","118648","2007-09-01","North West","Stockport Metropolitan Borough Council"]
[null,null,null,null,null,null,null,null,null,null,null,null,null,null,"Stockport Technical School","123348","2013-09-01","North West","Stockport Metropolitan Borough Council"]
[null,null,null,null,null,null,null,null,null,null,null,null,null,null,"Stoke Bishop Church of England Primary School","123225","2013-04-01","South West","Bristol City Council"]
[null,null,null,null,null,null,null,null,null,null,null,null,null,null,"Stoke Damerel Community College","119541","2011-04-01","South West","Plymouth City Council"]
[null,null,null,null,null,null,null,null,null,null,null,null,null,null,"Stoke High School - Ormiston Academy",124773,"2013-10-01","East of England","Suffolk County Council"]
[null,null,null,null,null,null,null,null,null,null,null,null,null,null,"Stoke Lodge Primary School",124739,"2013-10-01","South West","South Gloucestershire Council"]
[null,null,null,null,null,null,null,null,null,null,null,null,null,null,"Stoke Studio College for Construction and the Built Environment","122526","2012-09-01","West Midlands","Stoke on Trent City Council"]
[null,null,null,null,null,null,null,null,null,null,null,null,null,null,"Stoke Studio College for Manufacturing and Design Engineering","123393","2013-09-01","West Midlands","Stoke on Trent City Council"]
[null,null,null,null,null,null,null,null,null,null,null,null,null,null,"Stone Soup Learns","122803","2012-09-01","East Midlands","Nottingham City Council"]
[null,null,null,null,null,null,null,null,null,null,null,null,null,null,"Stone with Woodford Church of England Primary School","124598","2013-08-01","South West","Gloucestershire County Council"]
[null,null,null,null,null,null,null,null,null,null,null,null,null,null,"Stonebow Primary School - Loughborough","122675","2013-02-01","East Midlands","Leicestershire County Council"]
[null,null,null,null,null,null,null,null,null,null,null,null,null,null,"Stoneleigh Primary School","121958","2012-09-01","North West","Oldham Metropolitan Borough Council"]
[null,null,null,null,null,null,null,null,null,null,null,null,null,null,"Stour Valley Community School","120537","2011-09-01","East of England","Suffolk County Council"]
[null,null,null,null,null,null,null,null,null,null,null,null,null,null,"Stourfield Infant School","122415","2012-10-01","South West","Bournemouth Borough Council"]
[null,null,null,null,null,null,null,null,null,null,null,null,null,null,"Stourport High School and Sixth Form Centre, The","120162","2011-08-01","West Midlands","Worcestershire County Council"]
[null,null,null,null,null,null,null,null,null,null,null,null,null,null,"Stowford School","120996","2012-04-01","South West","Devon County Council"]
[null,null,null,null,null,null,null,null,null,null,null,null,null,null,"Stradbroke High School","121051","2012-03-01","East of England","Suffolk County Council"]
[null,null,null,null,null,null,null,null,null,null,null,null,null,null,"Stramongate Primary School","120722","2012-04-01","North West","Cumbria County Council"]
[null,null,null,null,null,null,null,null,null,null,null,null,null,null,"Strand Primary Academy","122306","2012-10-01","Yorkshire & Humberside","North East Lincolnshire Council"]
[null,null,null,null,null,null,null,null,null,null,null,null,null,null,"Stranton Primary School","124156","2013-07-01","North East","Hartlepool Borough Council"]
[null,null,null,null,null,null,null,null,null,null,null,null,null,null,"Stratford School - Newham","119978","2011-08-01","London","Newham London Borough Council"]
[null,null,null,null,null,null,null,null,null,null,null,null,null,null,"Stratford upon Avon School","120236","2011-08-01","West Midlands","Warwickshire County Council"]
[null,null,null,null,null,null,null,null,null,null,null,null,null,null,"Stratford-upon-Avon Grammar School for Girls","120235","2011-08-01","West Midlands","Warwickshire County Council"]
[null,null,null,null,null,null,null,null,null,null,null,null,null,null,"Stratton Upper School and Community College","120575","2012-02-01T15:08:08","East of England","Central Bedfordshire Council"]
[null,null,null,null,null,null,null,null,null,null,null,null,null,null,"Streetly School, The","120669","2011-12-01T12:25:21","West Midlands","Walsall Metropolitan Borough Council"]
[null,null,null,null,null,null,null,null,null,null,null,null,null,null,"Stretton Church of England Primary School","123853","2013-04-01","West Midlands","Coventry City Council"]
[null,null,null,null,null,null,null,null,null,null,null,null,null,null,"Stretton Sugwas CofE Primary School","120068","2012-04-01","West Midlands","Herefordshire Council"]
[null,null,null,null,null,null,null,null,null,null,null,null,null,null,"Strood Academy","119100","2009-09-01","South East","Medway Council"]
[null,null,null,null,null,null,null,null,null,null,null,null,null,null,"Stroud High School","119874","2011-07-01","South West","Gloucestershire County Council"]
[null,null,null,null,null,null,null,null,null,null,null,null,null,null,"Studio, Liverpool, The","122532","2013-09-01","North West","Liverpool City Council"]
[null,null,null,null,null,null,null,null,null,null,null,null,null,null,"Studley High School","119793","2011-06-01","West Midlands","Warwickshire County Council"]
[null,null,null,null,null,null,null,null,null,null,null,null,null,null,"Sturry Church of England Primary School","122180","2012-09-01","South East","Kent County Council"]
[null,null,null,null,null,null,null,null,null,null,null,null,null,null,"Suckley Primary School","119983","2011-08-01","West Midlands","Worcestershire County Council"]
[null,null,null,null,null,null,null,null,null,null,null,null,null,null,"Sudbury Primary School","122776","2012-09-01","London","Brent London Borough Council"]
[null,null,null,null,null,null,null,null,null,null,null,null,null,null,"Suffolk New Academy","120958","2013-02-01","East of England","Suffolk County Council"]
[null,null,null,null,null,null,null,null,null,null,null,null,null,null,"Summercourt Community Primary School - Newquay",127552,"2013-11-01","South West","Cornwall Council"]
[null,null,null,null,null,null,null,null,null,null,null,null,null,null,"Summercroft Primary School - Bishop's Stortford","120338","2011-09-01","East of England","Hertfordshire County Council"]
[null,null,null,null,null,null,null,null,null,null,null,null,null,null,"Summerhill Junior School","122098","2012-09-01","South West","Bristol City Council"]
[null,null,null,null,null,null,null,null,null,null,null,null,null,null,"Sunbury Manor School","119597","2011-04-01","South East","Surrey County Council"]
[null,null,null,null,null,null,null,null,null,null,null,null,null,null,"Sundon Lower School","122283","2013-04-01","East of England","Central Bedfordshire Council"]
[null,null,null,null,null,null,null,null,null,null,null,null,null,null,"Sundorne School and Sports College","123095","2013-04-01","West Midlands","Shropshire Council"]
[null,null,null,null,null,null,null,null,null,null,null,null,null,null,"Sunnyside Primary School - Middlesborough",125016,"2014-01-01","North East","Middlesbrough Council"]
[null,null,null,null,null,null,null,null,null,null,null,null,null,null,"Sunnyside Primary School - Northampton","123096","2013-02-01","East Midlands","Northamptonshire County Council"]
[null,null,null,null,null,null,null,null,null,null,null,null,null,null,"Sutherland Business and Enterprise College","123894","2013-04-01","West Midlands","Telford and Wrekin Council"]
[null,null,null,null,null,null,null,null,null,null,null,null,null,null,"Sutherland Primary Academy","120737","2012-08-01","West Midlands","Stoke on Trent City Council"]
[null,null,null,null,null,null,null,null,null,null,null,null,null,null,"Sutton Academy, The","119197","2010-09-01","North West","St Helens Metropolitan Borough Council"]
[null,null,null,null,null,null,null,null,null,null,null,null,null,null,"Sutton Coldfield Grammar School for Girls","119785","2011-06-01","West Midlands","Birmingham City Council"]
[null,null,null,null,null,null,null,null,null,null,null,null,null,null,"Sutton Community Academy, The","122308","2013-01-01","East Midlands","Nottinghamshire County Council"]
[null,null,null,null,null,null,null,null,null,null,null,null,null,null,"Sutton Grammar School for Boys","119776","2011-06-01","London","Sutton London Borough Council"]
[null,null,null,null,null,null,null,null,null,null,null,null,null,null,"Sutton Park Primary School","122895","2013-04-01","Yorkshire & Humberside","Hull City Council"]
[null,null,null,null,null,null,null,null,null,null,null,null,null,null,"Sutton Primary School","119797","2011-06-01","West Midlands","Herefordshire Council"]
[null,null,null,null,null,null,null,null,null,null,null,null,null,null,"Swakeleys School for Girls","119549","2011-04-01","London","Hillingdon London Borough Council"]
[null,null,null,null,null,null,null,null,null,null,null,null,null,null,"Swallow Hill Community College","121049","2013-07-01","Yorkshire & Humberside","Leeds City Council"]
[null,null,null,null,null,null,null,null,null,null,null,null,null,null,"Swallowdale Primary School and Community Centre","124159","2013-03-01","East Midlands","Leicestershire County Council"]
[null,null,null,null,null,null,null,null,null,null,null,null,null,null,"Swanage School, The","122039","2013-09-01","South West","Dorset County Council"]
[null,null,null,null,null,null,null,null,null,null,null,null,null,null,"Swanland Primary School","120151","2011-08-01","Yorkshire & Humberside","East Riding of Yorkshire Council"]
[null,null,null,null,null,null,null,null,null,null,null,null,null,null,"Swavesey Village College","119656","2011-04-01","East of England","Cambridgeshire County Council"]
[null,null,null,null,null,null,null,null,null,null,null,null,null,null,"Sweyne Park School, The","124071","2013-04-01","East of England","Essex County Council"]
[null,null,null,null,null,null,null,null,null,null,null,null,null,null,"Swindon Academy","118643","2007-09-01","South West","Swindon Borough Council"]
[null,null,null,null,null,null,null,null,null,null,null,null,null,null,"Swinton Brookfield Primary Academy",127103,"2014-01-01","Yorkshire & Humberside","Rotherham Metropolitan Borough Council"]
[null,null,null,null,null,null,null,null,null,null,null,null,null,null,"Swinton High School, The","119987","2011-08-01","North West","Salford City Council"]
[null,null,null,null,null,null,null,null,null,null,null,null,null,null,"Sybourn Primary School","123957","2013-09-01","London","Waltham Forest London Borough Council"]
[null,null,null,null,null,null,null,null,null,null,null,null,null,null,"Sycamore Primary School","120830","2012-01-01","East Midlands","Nottingham City Council"]
[null,null,null,null,null,null,null,null,null,null,null,null,null,null,"Sythwood Primary School",127676,"2014-01-01","South East","Surrey County Council"]
[null,null,null,null,null,null,null,null,null,null,null,null,null,null,"Tabor Academy","123170","2013-01-01","East of England","Essex County Council"]
[null,null,null,null,null,null,null,null,null,null,null,null,null,null,"Tame Valley Academy","122139","2012-12-01","West Midlands","Birmingham City Council"]
[null,null,null,null,null,null,null,null,null,null,null,null,null,null,"Tamworth Enterprise College","120986","2012-09-01","West Midlands","Staffordshire County Council"]
[null,null,null,null,null,null,null,null,null,null,null,null,null,null,"Tangmere Primary Academy","121068","2012-04-01","South East","West Sussex County Council"]
[null,null,null,null,null,null,null,null,null,null,null,null,null,null,"Tanworth-in-Arden CofE Primary School","122096","2012-11-01","West Midlands","Warwickshire County Council"]
[null,null,null,null,null,null,null,null,null,null,null,null,null,null,"Tapton School","120017","2012-04-01","Yorkshire & Humberside","Sheffield City Council"]
[null,null,null,null,null,null,null,null,null,null,null,null,null,null,"Tarleton High School, A Community Technology College","120778","2012-01-01","North West","Lancashire County Council"]
[null,null,null,null,null,null,null,null,null,null,null,null,null,null,"Tarporley High School and Sixth Form College","122275","2012-08-01T12:41:40","North West","Cheshire West and Chester Council"]
[null,null,null,null,null,null,null,null,null,null,null,null,null,null,"Tatworth Primary School","120175","2011-08-01","South West","Somerset County Council"]
[null,null,null,null,null,null,null,null,null,null,null,null,null,null,"Tauheedul","122029","2012-09-01","North West","Blackburn with Darwen Borough Council"]
[null,null,null,null,null,null,null,null,null,null,null,null,null,null,"Taunton Academy, The","119349","2010-09-01","South West","Somerset County Council"]
[null,null,null,null,null,null,null,null,null,null,null,null,null,null,"Taverham High School","122084","2013-04-01","East of England","Norfolk County Council"]
[null,null,null,null,null,null,null,null,null,null,null,null,null,null,"Teddington School","120883","2012-08-01","London","Richmond Upon Thames Borough Council"]
[null,null,null,null,null,null,null,null,null,null,null,null,null,null,"Teesdale School","120153","2011-08-01","North East","Durham County Council"]
[null,null,null,null,null,null,null,null,null,null,null,null,null,null,"Teign School","119494","2011-03-01","South West","Devon County Council"]
[null,null,null,null,null,null,null,null,null,null,null,null,null,null,"Teignmouth Community College","119495","2011-03-01","South West","Devon County Council"]
[null,null,null,null,null,null,null,null,null,null,null,null,null,null,"Temple Ewell Church of England Primary School",123109,"2014-02-01","South East","Kent County Council"]
[null,null,null,null,null,null,null,null,null,null,null,null,null,null,"Temple Grove Academy","122425","2013-01-01","South East","Kent County Council"]
[null,null,null,null,null,null,null,null,null,null,null,null,null,null,"Tendring Enterprise Studio School","122533","2012-09-01","East of England","Essex County Council"]
[null,null,null,null,null,null,null,null,null,null,null,null,null,null,"Tendring Technology College","120188","2011-08-01","East of England","Essex County Council"]
[null,null,null,null,null,null,null,null,null,null,null,null,null,null,"Testwood Sports College","120315","2011-08-17","South East","Hampshire County Council"]
[null,null,null,null,null,null,null,null,null,null,null,null,null,null,"Tewkesbury School","120800","2012-01-01","South West","Gloucestershire County Council"]
[null,null,null,null,null,null,null,null,null,null,null,null,null,null,"Thames Primary School","122720","2012-11-01","North West","Blackpool Council"]
[null,null,null,null,null,null,null,null,null,null,null,null,null,null,"Thames View Infants' School","122581","2012-09-01","London","Barking and Dagenham London Borough Council"]
[null,null,null,null,null,null,null,null,null,null,null,null,null,null,"Thameside Primary School Academy","121921","2012-09-01","East of England","Thurrock Borough Council"]
[null,null,null,null,null,null,null,null,null,null,null,null,null,null,"Thamesmead School","120237","2011-08-01","South East","Surrey County Council"]
[null,null,null,null,null,null,null,null,null,null,null,null,null,null,"Theale Green Community School","124637","2013-09-01","South East","West Berkshire Council"]
[null,null,null,null,null,null,null,null,null,null,null,null,null,null,"Thetford Academy, The","119327","2010-09-01","East of England","Norfolk County Council"]
[null,null,null,null,null,null,null,null,null,null,null,null,null,null,"Thetford Alternative Provision Free School","123416","2013-09-01","East of England","Norfolk County Council"]
[null,null,null,null,null,null,null,null,null,null,null,null,null,null,"Thistley Hough Academy","122045","2013-09-01","West Midlands","Stoke on Trent City Council"]
[null,null,null,null,null,null,null,null,null,null,null,null,null,null,"Thomas Alleyne School, The","124697","2013-09-01","East of England","Hertfordshire County Council"]
[null,null,null,null,null,null,null,null,null,null,null,null,null,null,"Thomas Aveling School, The","120451","2011-09-01","South East","Medway Council"]
[null,null,null,null,null,null,null,null,null,null,null,null,null,null,"Thomas Bennett Community College","120900","2012-09-01","South East","West Sussex County Council"]
[null,null,null,null,null,null,null,null,null,null,null,null,null,null,"Thomas Clarkson Academy","121027","2012-06-01","East of England","Cambridgeshire County Council"]
[null,null,null,null,null,null,null,null,null,null,null,null,null,null,"Thomas Cowley High School, The","122337","2012-09-01","East Midlands","Lincolnshire County Council"]
[null,null,null,null,null,null,null,null,null,null,null,null,null,null,"Thomas Deacon Academy","118655","2007-09-01","East of England","Peterborough City Council"]
[null,null,null,null,null,null,null,null,null,null,null,null,null,null,"Thomas Estley Community College","122387","2012-08-01","East Midlands","Leicestershire County Council"]
[null,null,null,null,null,null,null,null,null,null,null,null,null,null,"Thomas Ferens Academy, The","120984","2012-09-01","Yorkshire & Humberside","Hull City Council"]
[null,null,null,null,null,null,null,null,null,null,null,null,null,null,"Thomas Gamuel Primary School",127697,"2014-01-01","London","Waltham Forest London Borough Council"]
[null,null,null,null,null,null,null,null,null,null,null,null,null,null,"Thomas Hardye School, The","120163","2011-08-01","South West","Dorset County Council"]
[null,null,null,null,null,null,null,null,null,null,null,null,null,null,"Thomas Hepburn Community Comprehensive School, The",126332,"2013-10-01","North East","Gateshead Council"]
[null,null,null,null,null,null,null,null,null,null,null,null,null,null,"Thomas Keble School","120059","2011-08-01","South West","Gloucestershire County Council"]
[null,null,null,null,null,null,null,null,null,null,null,null,null,null,"Thomas Knyvett College","119832","2011-07-01","South East","Surrey County Council"]
[null,null,null,null,null,null,null,null,null,null,null,null,null,null,"Thomas Lord Audley School, The","121120","2012-03-01","East of England","Essex County Council"]
[null,null,null,null,null,null,null,null,null,null,null,null,null,null,"Thomas Mills High School","119794","2011-06-01","East of England","Suffolk County Council"]
[null,null,null,null,null,null,null,null,null,null,null,null,null,null,"Thomas Telford School","118401","1992-02-07","West Midlands","Telford and Wrekin Council"]
[null,null,null,null,null,null,null,null,null,null,null,null,null,null,"Thomas Wolsey School","120648","2012-02-01","East of England","Suffolk County Council"]
[null,null,null,null,null,null,null,null,null,null,null,null,null,null,"Thomson House School","123365","2013-09-01","London","Richmond Upon Thames Borough Council"]
[null,null,null,null,null,null,null,null,null,null,null,null,null,null,"Thoresby Primary School","124089","2013-07-01","Yorkshire & Humberside","Hull City Council"]
[null,null,null,null,null,null,null,null,null,null,null,null,null,null,"Thornaby Academy","119198","2010-09-01","North East","Stockton-on-Tees Borough Council"]
[null,null,null,null,null,null,null,null,null,null,null,null,null,null,"Thornden School","119739","2011-05-01","South East","Hampshire County Council"]
[null,null,null,null,null,null,null,null,null,null,null,null,null,null,"Thornhill Community Academy","121060","2012-12-01","Yorkshire & Humberside","Kirklees Metropolitan Council"]
[null,null,null,null,null,null,null,null,null,null,null,null,null,null,"Thornton Primary School",123259,"2013-10-01","East Midlands","Leicestershire County Council"]
[null,null,null,null,null,null,null,null,null,null,null,null,null,null,"Thorplands Primary School","123015","2013-04-01","East Midlands","Northamptonshire County Council"]
[null,null,null,null,null,null,null,null,null,null,null,null,null,null,"Three Rivers Academy, The","120871","2011-12-01T12:24:41","North East","Northumberland County Council"]
[null,null,null,null,null,null,null,null,null,null,null,null,null,null,"Three Ways School","123156","2013-09-01","South West","Bath & North East Somerset Council"]
[null,null,null,null,null,null,null,null,null,null,null,null,null,null,"Thriftwood School","120563","2011-10-01","East of England","Essex County Council"]
[null,null,null,null,null,null,null,null,null,null,null,null,null,null,"Thringstone Primary School","124255","2013-06-01","East Midlands","Leicestershire County Council"]
[null,null,null,null,null,null,null,null,null,null,null,null,null,null,"Thrunscoe Primary Academy","121023","2012-08-01","Yorkshire & Humberside","North East Lincolnshire Council"]
[null,null,null,null,null,null,null,null,null,null,null,null,null,null,"Thrussington Church of England Primary School","122393","2012-11-01","East Midlands","Leicestershire County Council"]
[null,null,null,null,null,null,null,null,null,null,null,null,null,null,"Thrybergh School and Sports College",122860,"2013-10-01","Yorkshire & Humberside","Rotherham Metropolitan Borough Council"]
[null,null,null,null,null,null,null,null,null,null,null,null,null,null,"Thurcroft Junior School","121959","2012-07-01","Yorkshire & Humberside","Rotherham Metropolitan Borough Council"]
[null,null,null,null,null,null,null,null,null,null,null,null,null,null,"Thurstable School Sports College and Sixth Form Centre","120241","2011-08-01","East of England","Essex County Council"]
[null,null,null,null,null,null,null,null,null,null,null,null,null,null,"Tidemill Primary School","120353","2011-09-01","London","Lewisham London Borough Council"]
[null,null,null,null,null,null,null,null,null,null,null,null,null,null,"Tiffin Girls' School, The","119529","2011-04-01","London","Royal Borough of Kingston Upon Thames Council"]
[null,null,null,null,null,null,null,null,null,null,null,null,null,null,"Tiffin School (Boys)","119910","2011-07-01","London","Royal Borough of Kingston Upon Thames Council"]
[null,null,null,null,null,null,null,null,null,null,null,null,null,null,"Tiger School, The","121972","2012-09-01","South East","Kent County Council"]
[null,null,null,null,null,null,null,null,null,null,null,null,null,null,"Tile Hill Wood School and Language College","120276","2011-07-11","West Midlands","Coventry City Council"]
[null,null,null,null,null,null,null,null,null,null,null,null,null,null,"Timberley Academy Trust","122095","2012-05-01","West Midlands","Birmingham City Council"]
[null,null,null,null,null,null,null,null,null,null,null,null,null,null,"Timbertree Primary School","122988","2013-06-01","West Midlands","Sandwell Metropolitan Borough Council"]
[null,null,null,null,null,null,null,null,null,null,null,null,null,null,"Tiverton Junior and Infant School","123892","2013-05-01","West Midlands","Birmingham City Council"]
[null,null,null,null,null,null,null,null,null,null,null,null,null,null,"Toddington St George Lower School","122416","2013-03-01","East of England","Central Bedfordshire Council"]
[null,null,null,null,null,null,null,null,null,null,null,null,null,null,"Tollbar Academy","119266","2010-09-01","Yorkshire & Humberside","North East Lincolnshire Council"]
[null,null,null,null,null,null,null,null,null,null,null,null,null,null,"Tolworth Girls’ School and Sixth Form","120060","2011-08-01","London","Royal Borough of Kingston Upon Thames Council"]
[null,null,null,null,null,null,null,null,null,null,null,null,null,null,"Tomlinscote School and Sixth Form College","124690","2013-09-01","South East","Surrey County Council"]
[null,null,null,null,null,null,null,null,null,null,null,null,null,null,"Tonbridge Grammar School","119443","2011-01-01","South East","Kent County Council"]
[null,null,null,null,null,null,null,null,null,null,null,null,null,null,"Toot Hill School","119878","2011-07-01","East Midlands","Nottinghamshire County Council"]
[null,null,null,null,null,null,null,null,null,null,null,null,null,null,"Tooting Primary School","123366","2013-09-01","London","Wandsworth London Borough Council"]
[null,null,null,null,null,null,null,null,null,null,null,null,null,null,"Top Valley Academy","120968","2012-09-01","East Midlands","Nottingham City Council"]
[null,null,null,null,null,null,null,null,null,null,null,null,null,null,"Tor Bridge High","120206","2011-08-01","South West","Plymouth City Council"]
[null,null,null,null,null,null,null,null,null,null,null,null,null,null,"Torquay Academy","120970","2012-09-01","South West","Torbay Council"]
[null,null,null,null,null,null,null,null,null,null,null,null,null,null,"Torquay Boys' Grammar School","119363","2010-11-01","South West","Torbay Council"]
[null,null,null,null,null,null,null,null,null,null,null,null,null,null,"Torquay Girls' Grammar School","119515","2011-02-01","South West","Torbay Council"]
[null,null,null,null,null,null,null,null,null,null,null,null,null,null,"Torre Church of England Primary School","123858","2013-09-01","South West","Torbay Council"]
[null,null,null,null,null,null,null,null,null,null,null,null,null,null,"Totley Primary School",127603,"2014-02-01","Yorkshire & Humberside","Sheffield City Council"]
[null,null,null,null,null,null,null,null,null,null,null,null,null,null,"Totteridge Academy, The","120409","2011-09-01","London","Barnet London Borough Council"]
[null,null,null,null,null,null,null,null,null,null,null,null,null,null,"Tower Road Primary","119766","2011-06-01","East Midlands","Lincolnshire County Council"]
[null,null,null,null,null,null,null,null,null,null,null,null,null,null,"Towers School and Sixth Form Centre","119555","2011-04-01","South East","Kent County Council"]
[null,null,null,null,null,null,null,null,null,null,null,null,null,null,"Town End Primary School","119486","2011-03-01","North East","Sunderland City Council"]
[null,null,null,null,null,null,null,null,null,null,null,null,null,null,"Townhill Infant School",127547,"2013-12-01","South East","Southampton City Council"]
[null,null,null,null,null,null,null,null,null,null,null,null,null,null,"Townley Grammar School for Girls","120740","2012-01-01","London","Bexley London Borough Council"]
[null,null,null,null,null,null,null,null,null,null,null,null,null,null,"Tree Tops Academy","120925","2012-04-01","South East","Kent County Council"]
[null,null,null,null,null,null,null,null,null,null,null,null,null,null,"Tregolls School, The","120971","2012-09-01","South West","Cornwall Council"]
[null,null,null,null,null,null,null,null,null,null,null,null,null,null,"Tregonwell Academy","120998","2012-04-01","South West","Bournemouth Borough Council"]
[null,null,null,null,null,null,null,null,null,null,null,null,null,null,"Tregoze Primary School","121919","2012-07-01","South West","Swindon Borough Council"]
[null,null,null,null,null,null,null,null,null,null,null,null,null,null,"Tremona Road Hospital and Home","124175","2014-03-01","South East","Southampton City Council"]
[null,null,null,null,null,null,null,null,null,null,null,null,null,null,"Trenance Infant School","119366","2010-11-01","South West","Cornwall Council"]
[null,null,null,null,null,null,null,null,null,null,null,null,null,null,"Trent Valley Academy","119123","2008-09-01","East Midlands","Lincolnshire County Council"]
[null,null,null,null,null,null,null,null,null,null,null,null,null,null,"Treverbyn Academy","120076","2011-09-01","South West","Cornwall Council"]
[null,null,null,null,null,null,null,null,null,null,null,null,null,null,"Trevithick Learning Academy","119637","2011-04-01","South West","Cornwall Council"]
[null,null,null,null,null,null,null,null,null,null,null,null,null,null,"Trewirgie Infant School","119881","2011-07-01","South West","Cornwall Council"]
[null,null,null,null,null,null,null,null,null,null,null,null,null,null,"Trewirgie Junior School","119848","2011-07-01","South West","Cornwall Council"]
[null,null,null,null,null,null,null,null,null,null,null,null,null,null,"Tring School","122333","2012-07-01","East of England","Hertfordshire County Council"]
[null,null,null,null,null,null,null,null,null,null,null,null,null,null,"Trinity Academy - Doncaster","118407","2005-09-01","Yorkshire & Humberside","Doncaster Metropolitan Borough Council"]
[null,null,null,null,null,null,null,null,null,null,null,null,null,null,"Trinity Academy - Halifax","119154","2010-09-01","Yorkshire & Humberside","Calderdale Metropolitan Borough Council"]
[null,null,null,null,null,null,null,null,null,null,null,null,null,null,"Trinity Catholic School, The - Aspley","122324","2012-07-01","East Midlands","Nottingham City Council"]
[null,null,null,null,null,null,null,null,null,null,null,null,null,null,"Trinity Church of England School - Belvedere","119525","2011-04-01","London","Bexley London Borough Council"]
[null,null,null,null,null,null,null,null,null,null,null,null,null,null,"Trinity CofE High School - Hulme","120665","2012-01-01","North West","Manchester City Council"]
[null,null,null,null,null,null,null,null,null,null,null,null,null,null,"Trinity High School and Sixth Form Centre","120167","2011-08-01","West Midlands","Worcestershire County Council"]
[null,null,null,null,null,null,null,null,null,null,null,null,null,null,"Trinity Primary Academy","122422","2012-09-01","London","Haringey London Borough Council"]
[null,null,null,null,null,null,null,null,null,null,null,null,null,null,"Trinity School - Cumbria","120063","2011-09-01","North West","Cumbria County Council"]
[null,null,null,null,null,null,null,null,null,null,null,null,null,null,"Trinity School - Newbury","122391","2012-08-01","South East","West Berkshire Council"]
[null,null,null,null,null,null,null,null,null,null,null,null,null,null,"Trinity School (Sevenoaks Christian School)","123336","2013-09-01","South East","Kent County Council"]
[null,null,null,null,null,null,null,null,null,null,null,null,null,null,"Truro Learning Academy, The",124704,"2013-12-01","South West","Cornwall Council"]
[null,null,null,null,null,null,null,null,null,null,null,null,null,null,"Tubbenden Primary School","120862","2012-03-01","London","Bromley London Borough Council"]
[null,null,null,null,null,null,null,null,null,null,null,null,null,null,"Tudhoe Colliery Primary School","122366","2012-12-01","North East","Durham County Council"]
[null,null,null,null,null,null,null,null,null,null,null,null,null,null,"Tudor Grange Academy - Solihull","119299","2010-10-01","West Midlands","Solihull Metropolitan Borough Council"]
[null,null,null,null,null,null,null,null,null,null,null,null,null,null,"Tudor Grange Academy - Worcester","119128","2009-09-01","West Midlands","Worcestershire County Council"]
[null,null,null,null,null,null,null,null,null,null,null,null,null,null,"Tudor Grange Primary Academy - Haselor",128100,"2014-01-01","West Midlands","Warwickshire County Council"]
[null,null,null,null,null,null,null,null,null,null,null,null,null,null,"Tudor Grange Primary Academy - St James","123047","2013-01-01","West Midlands","Solihull Metropolitan Borough Council"]
[null,null,null,null,null,null,null,null,null,null,null,null,null,null,"Tuxford Primary School and Early Years Centre","123280","2013-02-01","East Midlands","Nottinghamshire County Council"]
[null,null,null,null,null,null,null,null,null,null,null,null,null,null,"Tuxford School","120319","2011-08-01","East Midlands","Nottinghamshire County Council"]
[null,null,null,null,null,null,null,null,null,null,null,null,null,null,"Tweendykes School","124592","2013-05-01","Yorkshire & Humberside","Hull City Council"]
[null,null,null,null,null,null,null,null,null,null,null,null,null,null,"Twickenham Academy","119172","2010-09-01","London","Richmond Upon Thames Borough Council"]
[null,null,null,null,null,null,null,null,null,null,null,null,null,null,"Twickenham Primary School",124779,"2014-01-01","West Midlands","Birmingham City Council"]
[null,null,null,null,null,null,null,null,null,null,null,null,null,null,"Two Mile Ash School","120061","2011-08-01","South East","Milton Keynes Council"]
[null,null,null,null,null,null,null,null,null,null,null,null,null,null,"Twyford Church of England High School","120602","2011-10-01","London","Ealing London Borough Council"]
[null,null,null,null,null,null,null,null,null,null,null,null,null,null,"Twynham School","119647","2011-04-01","South West","Dorset County Council"]
[null,null,null,null,null,null,null,null,null,null,null,null,null,null,"Tyldesley Primary School","120892","2012-04-01","North West","Wigan Metropolitan Borough Council"]
[null,null,null,null,null,null,null,null,null,null,null,null,null,null,"Tymberwood Academy",124227,"2014-02-01","South East","Kent County Council"]
[null,null,null,null,null,null,null,null,null,null,null,null,null,null,"Tyndale Community School","123368","2013-09-01","South East","Oxfordshire County Council"]
[null,null,null,null,null,null,null,null,null,null,null,null,null,null,"Tyrrells School, The","120650","2011-11-01","East of England","Essex County Council"]
[null,null,null,null,null,null,null,null,null,null,null,null,null,null,"UCL Camden Academy","120181","2012-09-01","London","Camden London Borough Council"]
[null,null,null,null,null,null,null,null,null,null,null,null,null,null,"Uffculme Primary School","124072","2013-07-01","South West","Devon County Council"]
[null,null,null,null,null,null,null,null,null,null,null,null,null,null,"Uffculme School","119263","2010-09-01","South West","Devon County Council"]
[null,null,null,null,null,null,null,null,null,null,null,null,null,null,"Ulceby St Nicholas Church of England Primary School",127507,"2014-01-01","Yorkshire & Humberside","North Lincolnshire Council"]
[null,null,null,null,null,null,null,null,null,null,null,null,null,null,"Unity Academy Blackpool","123069","2013-09-01","North West","Blackpool Council"]
[null,null,null,null,null,null,null,null,null,null,null,null,null,null,"Unity City Academy","117095","2002-09-01","North East","Middlesbrough Council"]
[null,null,null,null,null,null,null,null,null,null,null,null,null,null,"University Academy - Keighley","119307","2010-09-01","Yorkshire & Humberside","Bradford Metropolitan District Council"]
[null,null,null,null,null,null,null,null,null,null,null,null,null,null,"University Academy - Kidsgrove","124084","2013-06-01","West Midlands","Staffordshire County Council"]
[null,null,null,null,null,null,null,null,null,null,null,null,null,null,"University Academy - Liverpool","120954","2012-06-01","North West","Liverpool City Council"]
[null,null,null,null,null,null,null,null,null,null,null,null,null,null,"University Academy - Warrington","120725","2013-01-01","North West","Warrington Borough Council"]
[null,null,null,null,null,null,null,null,null,null,null,null,null,null,"University Academy of Birkenhead","119444","2011-01-01","North West","Wirral Metropolitan Borough Council"]
[null,null,null,null,null,null,null,null,null,null,null,null,null,null,"University Academy, The - Holbeach","120282","2011-09-01","East Midlands","Lincolnshire County Council"]
[null,null,null,null,null,null,null,null,null,null,null,null,null,null,"University Cathedral Free School","123369","2013-09-01","North West","Cheshire West and Chester Council"]
[null,null,null,null,null,null,null,null,null,null,null,null,null,null,"University of Chester Academy - Northwich","120987","2012-01-01","North West","Cheshire West and Chester Council"]
[null,null,null,null,null,null,null,null,null,null,null,null,null,null,"University of Chester Church of England Academy, The","119102","2009-09-01","North West","Cheshire West and Chester Council"]
[null,null,null,null,null,null,null,null,null,null,null,null,null,null,"University Primary Academy Weaverham",124588,"2014-01-01","North West","Cheshire West and Chester Council"]
[null,null,null,null,null,null,null,null,null,null,null,null,null,null,"University Technical College, Royal Borough of Greenwich","122151","2013-09-01","London","Greenwich London Borough Council"]
[null,null,null,null,null,null,null,null,null,null,null,null,null,null,"Upminster Infant School","122777","2012-11-01","London","Havering London Borough Council"]
[null,null,null,null,null,null,null,null,null,null,null,null,null,null,"Upminster Junior School","122840","2012-11-01","London","Havering London Borough Council"]
[null,null,null,null,null,null,null,null,null,null,null,null,null,null,"Upper Shirley High School","120037","2011-08-01","South East","Southampton City Council"]
[null,null,null,null,null,null,null,null,null,null,null,null,null,null,"Uppingham Community College","119631","2011-04-01","East Midlands","Rutland County Council"]
[null,null,null,null,null,null,null,null,null,null,null,null,null,null,"Upton Hall School FCJ","121081","2012-03-01T12:12:33","North West","Wirral Metropolitan Borough Council"]
[null,null,null,null,null,null,null,null,null,null,null,null,null,null,"Urmston Grammar Academy","119268","2010-09-01","North West","Trafford Borough Council"]
[null,null,null,null,null,null,null,null,null,null,null,null,null,null,"Ursula Taylor VC Lower School","124304","2013-08-01","East of England","Bedford Borough Council"]
[null,null,null,null,null,null,null,null,null,null,null,null,null,null,"Ursuline Academy Ilford, The","120348","2011-09-01","London","Redbridge London Borough Council"]
[null,null,null,null,null,null,null,null,null,null,null,null,null,null,"UTC Plymouth","122056","2013-09-01","South West","Plymouth City Council"]
[null,null,null,null,null,null,null,null,null,null,null,null,null,null,"UTC Reading","122057","2013-09-01","South East","Reading Borough Council"]
[null,null,null,null,null,null,null,null,null,null,null,null,null,null,"UTC Sheffield","122058","2013-09-01","Yorkshire & Humberside","Sheffield City Council"]
[null,null,null,null,null,null,null,null,null,null,null,null,null,null,"Utterby Primary School, The","123822","2013-07-01","East Midlands","Lincolnshire County Council"]
[null,null,null,null,null,null,null,null,null,null,null,null,null,null,"Uxbridge High School","119789","2011-06-01","London","Hillingdon London Borough Council"]
[null,null,null,null,null,null,null,null,null,null,null,null,null,null,"Vale Academy","120463","2011-09-01","Yorkshire & Humberside","North Lincolnshire Council"]
[null,null,null,null,null,null,null,null,null,null,null,null,null,null,"Vale of Evesham School","122971","2013-05-14T10:14:43","West Midlands","Worcestershire County Council"]
[null,null,null,null,null,null,null,null,null,null,null,null,null,null,"Vale Primary Academy, The","122061","2012-07-01","Yorkshire & Humberside","Wakefield Council"]
[null,null,null,null,null,null,null,null,null,null,null,null,null,null,"Valley Park Community School","119653","2011-04-01","South East","Kent County Council"]
[null,null,null,null,null,null,null,null,null,null,null,null,null,null,"Valley Primary School","120242","2011-08-01","London","Bromley London Borough Council"]
[null,null,null,null,null,null,null,null,null,null,null,null,null,null,"Vandyke Upper School and Community College","120169","2011-08-01","East of England","Central Bedfordshire Council"]
[null,null,null,null,null,null,null,null,null,null,null,null,null,null,"Vaynor First School, The","121134","2012-04-01","West Midlands","Worcestershire County Council"]
[null,null,null,null,null,null,null,null,null,null,null,null,null,null,"Venerable Bede Church of England [Aided] Secondary School","123243","2013-01-01","North East","Sunderland City Council"]
[null,null,null,null,null,null,null,null,null,null,null,null,null,null,"Verulam School","120038","2011-08-01","East of England","Hertfordshire County Council"]
[null,null,null,null,null,null,null,null,null,null,null,null,null,null,"Veryan CofE School",128057,"2013-12-01","South West","Cornwall Council"]
[null,null,null,null,null,null,null,null,null,null,null,null,null,null,"Victoria Lane Academy","122842","2012-12-01","North East","Durham County Council"]
[null,null,null,null,null,null,null,null,null,null,null,null,null,null,"Victoria Park Primary","121122","2012-04-01","West Midlands","Sandwell Metropolitan Borough Council"]
[null,null,null,null,null,null,null,null,null,null,null,null,null,null,"Victoria Primary Academy - Wellingborough",126452,"2014-01-01","East Midlands","Northamptonshire County Council"]
[null,null,null,null,null,null,null,null,null,null,null,null,null,null,"Victory Primary School, The","123016","2013-09-01","South East","Portsmouth City Council"]
[null,null,null,null,null,null,null,null,null,null,null,null,null,null,"Viewley Hill Academy Trust",124506,"2014-01-01","North East","Middlesbrough Council"]
[null,null,null,null,null,null,null,null,null,null,null,null,null,null,"Violet Way Academy","119762","2011-06-01","West Midlands","Staffordshire County Council"]
[null,null,null,null,null,null,null,null,null,null,null,null,null,null,"Visions Learning Trust UTC","122155","2013-09-01","North West","Lancashire County Council"]
[null,null,null,null,null,null,null,null,null,null,null,null,null,null,"Voyager Academy, The","120084","2011-09-01","East of England","Peterborough City Council"]
[null,null,null,null,null,null,null,null,null,null,null,null,null,null,"Vyners School","120542","2011-11-01","London","Hillingdon London Borough Council"]
[null,null,null,null,null,null,null,null,null,null,null,null,null,null,"Waddesdon Church of England School","120384","2011-09-01","South East","Buckinghamshire County Council"]
[null,null,null,null,null,null,null,null,null,null,null,null,null,null,"Wade Deacon High School","122567","2013-03-01","North West","Halton Borough Council"]
[null,null,null,null,null,null,null,null,null,null,null,null,null,null,"Wadebridge Community Primary School","120420","2011-09-01","South West","Cornwall Council"]
[null,null,null,null,null,null,null,null,null,null,null,null,null,null,"Wadebridge School","120705","2012-04-01","South West","Cornwall Council"]
[null,null,null,null,null,null,null,null,null,null,null,null,null,null,"Wainstalls School","124137","2013-09-01","Yorkshire & Humberside","Calderdale Metropolitan Borough Council"]
[null,null,null,null,null,null,null,null,null,null,null,null,null,null,"Wainwright Primary School","122495","2012-09-01","East Midlands","Nottinghamshire County Council"]
[null,null,null,null,null,null,null,null,null,null,null,null,null,null,"Wakefield City Academy","119397","2011-01-01","Yorkshire & Humberside","Wakefield Council"]
[null,null,null,null,null,null,null,null,null,null,null,null,null,null,"Waldegrave School for Girls","121021","2012-08-01","London","Richmond Upon Thames Borough Council"]
[null,null,null,null,null,null,null,null,null,null,null,null,null,null,"Walderslade Girls' School","120667","2011-11-01","South East","Medway Council"]
[null,null,null,null,null,null,null,null,null,null,null,null,null,null,"Wales High School","119300","2010-10-01","Yorkshire & Humberside","Rotherham Metropolitan Borough Council"]
[null,null,null,null,null,null,null,null,null,null,null,null,null,null,"Walkwood CofE Middle School","122949","2013-01-01","West Midlands","Worcestershire County Council"]
[null,null,null,null,null,null,null,null,null,null,null,null,null,null,"Wallingford School","120385","2011-09-01","South East","Oxfordshire County Council"]
[null,null,null,null,null,null,null,null,null,null,null,null,null,null,"Wallington County Grammar School","119777","2011-06-01","London","Sutton London Borough Council"]
[null,null,null,null,null,null,null,null,null,null,null,null,null,null,"Wallington High School for Girls","119792","2011-06-01","London","Sutton London Borough Council"]
[null,null,null,null,null,null,null,null,null,null,null,null,null,null,"Wallscourt Farm Academy","122432","2013-09-01","South West","South Gloucestershire Council"]
[null,null,null,null,null,null,null,null,null,null,null,null,null,null,"Walsall Academy","118408","2003-09-01","West Midlands","Walsall Metropolitan Borough Council"]
[null,null,null,null,null,null,null,null,null,null,null,null,null,null,"Walsall Studio School","123394","2013-09-01","West Midlands","Walsall Metropolitan Borough Council"]
[null,null,null,null,null,null,null,null,null,null,null,null,null,null,"Walter Street Primary Academy","122316","2013-03-01","North West","Lancashire County Council"]
[null,null,null,null,null,null,null,null,null,null,null,null,null,null,"Waltham Leas Primary Academy","120771","2012-01-01","Yorkshire & Humberside","North East Lincolnshire Council"]
[null,null,null,null,null,null,null,null,null,null,null,null,null,null,"Walthamstow Academy","118656","2006-09-01","London","Waltham Forest London Borough Council"]
[null,null,null,null,null,null,null,null,null,null,null,null,null,null,"Walton Girls' High School and Sixth Form","119538","2011-04-01","East Midlands","Lincolnshire County Council"]
[null,null,null,null,null,null,null,null,null,null,null,null,null,null,"Walton High","119842","2011-07-01","South East","Milton Keynes Council"]
[null,null,null,null,null,null,null,null,null,null,null,null,null,null,"Walworth Academy","119116","2007-09-05","London","Southwark London Borough Council"]
[null,null,null,null,null,null,null,null,null,null,null,null,null,null,"Wandle Valley School","120354","2011-09-01","London","Sutton London Borough Council"]
[null,null,null,null,null,null,null,null,null,null,null,null,null,null,"Wansbeck Primary School","124650","2013-07-01","Yorkshire & Humberside","Hull City Council"]
[null,null,null,null,null,null,null,null,null,null,null,null,null,null,"Wansdyke Community School","122579","2013-02-01","South West","Wiltshire Council"]
[null,null,null,null,null,null,null,null,null,null,null,null,null,null,"Wantage Church of England Primary School",124163,"2013-10-01","South East","Oxfordshire County Council"]
[null,null,null,null,null,null,null,null,null,null,null,null,null,null,"Wapping High School","121978","2012-09-01","London","Tower Hamlets London Borough Council"]
[null,null,null,null,null,null,null,null,null,null,null,null,null,null,"Warden House Primary School","123067","2013-01-01","South East","Kent County Council"]
[null,null,null,null,null,null,null,null,null,null,null,null,null,null,"Warden Park Primary Academy","120211","2012-01-01","South East","West Sussex County Council"]
[null,null,null,null,null,null,null,null,null,null,null,null,null,null,"Warden Park School","120386","2011-09-01","South East","West Sussex County Council"]
[null,null,null,null,null,null,null,null,null,null,null,null,null,null,"Wardle High School","122073","2013-09-01","North West","Rochdale Metropolitan Borough Council"]
[null,null,null,null,null,null,null,null,null,null,null,null,null,null,"Warlingham School","122593","2012-11-01T14:55:18","South East","Surrey County Council"]
[null,null,null,null,null,null,null,null,null,null,null,null,null,null,"Warlingham Village Primary School","124770","2013-09-01","South East","Surrey County Council"]
[null,null,null,null,null,null,null,null,null,null,null,null,null,null,"Warndon Primary School",125022,"2013-10-01","West Midlands","Worcestershire County Council"]
[null,null,null,null,null,null,null,null,null,null,null,null,null,null,"Warren Farm Primary School","122068","2012-07-01","West Midlands","Birmingham City Council"]
[null,null,null,null,null,null,null,null,null,null,null,null,null,null,"Warren Primary School","120283","2011-09-01","East Midlands","Nottingham City Council"]
[null,null,null,null,null,null,null,null,null,null,null,null,null,null,"Warren Road Primary School","119915","2011-07-01","London","Bromley London Borough Council"]
[null,null,null,null,null,null,null,null,null,null,null,null,null,null,"Warton Nethersole's CofE Primary School","123232","2013-09-01","West Midlands","Warwickshire County Council"]
[null,null,null,null,null,null,null,null,null,null,null,null,null,null,"Warwick Primary School","122734","2012-11-01","East Midlands","Northamptonshire County Council"]
[null,null,null,null,null,null,null,null,null,null,null,null,null,null,"Waseley Hills High School and Sixth Form Centre","122594","2012-09-01","West Midlands","Worcestershire County Council"]
[null,null,null,null,null,null,null,null,null,null,null,null,null,null,"Washingborough Primary School","121212","2012-04-01","East Midlands","Lincolnshire County Council"]
[null,null,null,null,null,null,null,null,null,null,null,null,null,null,"Washwood Heath Technology College","124134","2013-07-01","West Midlands","Birmingham City Council"]
[null,null,null,null,null,null,null,null,null,null,null,null,null,null,"Watchfield Primary School",124352,"2013-11-01","South East","Oxfordshire County Council"]
[null,null,null,null,null,null,null,null,null,null,null,null,null,null,"Waterhead Academy","119212","2010-09-01","North West","Oldham Metropolitan Borough Council"]
[null,null,null,null,null,null,null,null,null,null,null,null,null,null,"Waterloo Primary School","122121","2012-07-01","North West","Blackpool Council"]
[null,null,null,null,null,null,null,null,null,null,null,null,null,null,"Waterwells Primary Academy","124128","2013-09-01","South West","Gloucestershire County Council"]
[null,null,null,null,null,null,null,null,null,null,null,null,null,null,"Watford Grammar School for Boys","119248","2010-09-01","East of England","Hertfordshire County Council"]
[null,null,null,null,null,null,null,null,null,null,null,null,null,null,"Watford Grammar School for Girls","119249","2010-09-01","East of England","Hertfordshire County Council"]
[null,null,null,null,null,null,null,null,null,null,null,null,null,null,"Waverley Studio College","123395","2013-09-01","West Midlands","Birmingham City Council"]
[null,null,null,null,null,null,null,null,null,null,null,null,null,null,"Waycroft Academy","120212","2011-08-01","South West","Bristol City Council"]
[null,null,null,null,null,null,null,null,null,null,null,null,null,null,"Wayfield Primary School",125268,"2013-11-01","South East","Medway Council"]
[null,null,null,null,null,null,null,null,null,null,null,null,null,null,"Wayland Community High School","120855","2012-03-01","East of England","Norfolk County Council"]
[null,null,null,null,null,null,null,null,null,null,null,null,null,null,"Waynflete Infants' School","121089","2012-04-01","East Midlands","Northamptonshire County Council"]
[null,null,null,null,null,null,null,null,null,null,null,null,null,null,"Weald of Kent Grammar School","119505","2011-02-01","South East","Kent County Council"]
[null,null,null,null,null,null,null,null,null,null,null,null,null,null,"Weare Academy First School","119634","2011-04-01","South West","Somerset County Council"]
[null,null,null,null,null,null,null,null,null,null,null,null,null,null,"Weatherfield School","120776","2012-03-01","East of England","Central Bedfordshire Council"]
[null,null,null,null,null,null,null,null,null,null,null,null,null,null,"Weatherhead High School","120749","2012-01-01","North West","Wirral Metropolitan Borough Council"]
[null,null,null,null,null,null,null,null,null,null,null,null,null,null,"Weavers Academy","124232","2013-09-01","East Midlands","Northamptonshire County Council"]
[null,null,null,null,null,null,null,null,null,null,null,null,null,null,"Weavers Close Church of England Primary School","123153","2013-03-01","East Midlands","Leicestershire County Council"]
[null,null,null,null,null,null,null,null,null,null,null,null,null,null,"Webheath First School","121235","2012-04-01","West Midlands","Worcestershire County Council"]
[null,null,null,null,null,null,null,null,null,null,null,null,null,null,"Webster Primary School","122893","2013-04-01","North West","Manchester City Council"]
[null,null,null,null,null,null,null,null,null,null,null,null,null,null,"Wedmore First School","119829","2011-07-01","South West","Somerset County Council"]
[null,null,null,null,null,null,null,null,null,null,null,null,null,null,"Weeley St Andrew's CofE Primary School",124694,"2013-11-01","East of England","Essex County Council"]
[null,null,null,null,null,null,null,null,null,null,null,null,null,null,"Weelsby Primary School","121992","2012-07-01","Yorkshire & Humberside","North East Lincolnshire Council"]
[null,null,null,null,null,null,null,null,null,null,null,null,null,null,"Welbeck Primary School","122322","2012-09-01","North East","Newcastle Upon Tyne City Council"]
[null,null,null,null,null,null,null,null,null,null,null,null,null,null,"Wellacre Technology College","119394","2011-01-01","North West","Trafford Borough Council"]
[null,null,null,null,null,null,null,null,null,null,null,null,null,null,"Welland Park Community College - Market Harborough","120170","2011-08-01","East Midlands","Leicestershire County Council"]
[null,null,null,null,null,null,null,null,null,null,null,null,null,null,"Welland Primary Academy - Peterborough",124996,"2013-10-01","East of England","Peterborough City Council"]
[null,null,null,null,null,null,null,null,null,null,null,null,null,null,"Wellesley Park Primary School","123885","2013-04-01","South West","Somerset County Council"]
[null,null,null,null,null,null,null,null,null,null,null,null,null,null,"Welling School","119740","2011-05-01","London","Bexley London Borough Council"]
[null,null,null,null,null,null,null,null,null,null,null,null,null,null,"Wellington Academy, The - Ludgershall","118900","2009-09-01","South West","Wiltshire Council"]
[null,null,null,null,null,null,null,null,null,null,null,null,null,null,"Wellington School - Altrincham","119395","2011-01-01","North West","Trafford Borough Council"]
[null,null,null,null,null,null,null,null,null,null,null,null,null,null,"Wells Free School, The","123364","2013-09-01","South East","Kent County Council"]
[null,null,null,null,null,null,null,null,null,null,null,null,null,null,"Wellsway School","120630","2011-10-01","South West","Bath & North East Somerset Council"]
[null,null,null,null,null,null,null,null,null,null,null,null,null,null,"Welton Church of England Primary School","122076","2012-10-01","East Midlands","Northamptonshire County Council"]
[null,null,null,null,null,null,null,null,null,null,null,null,null,null,"Welton St Mary's Church of England Primary School","122658","2013-01-01","East Midlands","Lincolnshire County Council"]
[null,null,null,null,null,null,null,null,null,null,null,null,null,null,"Wembley High Technology College","122580","2012-08-01","London","Brent London Borough Council"]
[null,null,null,null,null,null,null,null,null,null,null,null,null,null,"Wensley Fold (VC) Church of England Primary School","122563","2013-04-01","North West","Blackburn with Darwen Borough Council"]
[null,null,null,null,null,null,null,null,null,null,null,null,null,null,"Wentworth Primary School","120784","2012-02-01","South East","Kent County Council"]
[null,null,null,null,null,null,null,null,null,null,null,null,null,null,"Werneth Primary School",129550,"2014-02-01","North West","Oldham Metropolitan Borough Council"]
[null,null,null,null,null,null,null,null,null,null,null,null,null,null,"West Bridgford School, The","119543","2011-04-01","East Midlands","Nottinghamshire County Council"]
[null,null,null,null,null,null,null,null,null,null,null,null,null,null,"West Derby School","122696","2012-09-01","North West","Liverpool City Council"]
[null,null,null,null,null,null,null,null,null,null,null,null,null,null,"West End Academy",123229,"2013-10-01","Yorkshire & Humberside","Wakefield Council"]
[null,null,null,null,null,null,null,null,null,null,null,null,null,null,"West Grantham Academy - Earl of Dysart","119477","2011-02-01","East Midlands","Lincolnshire County Council"]
[null,null,null,null,null,null,null,null,null,null,null,null,null,null,"West Grantham Academy - Spitalgate","119478","2011-02-01","East Midlands","Lincolnshire County Council"]
[null,null,null,null,null,null,null,null,null,null,null,null,null,null,"West Grantham Academy - St Hugh's","119476","2011-02-01","East Midlands","Lincolnshire County Council"]
[null,null,null,null,null,null,null,null,null,null,null,null,null,null,"West Hatch High School","119787","2011-06-01","East of England","Essex County Council"]
[null,null,null,null,null,null,null,null,null,null,null,null,null,null,"West Hill School","120020","2011-08-01","North West","Tameside Metropolitan Borough Council"]
[null,null,null,null,null,null,null,null,null,null,null,null,null,null,"West Kirby Grammar School","120243","2011-08-01","North West","Wirral Metropolitan Borough Council"]
[null,null,null,null,null,null,null,null,null,null,null,null,null,null,"West Lakes Academy","118657","2008-09-01","North West","Cumbria County Council"]
[null,null,null,null,null,null,null,null,null,null,null,null,null,null,"West London Free School","120471","2011-09-01","London","Hammersmith and Fulham London Borough Council"]
[null,null,null,null,null,null,null,null,null,null,null,null,null,null,"West London Free School Primary","123371","2013-09-01","London","Hammersmith and Fulham London Borough Council"]
[null,null,null,null,null,null,null,null,null,null,null,null,null,null,"West Malling Church of England Voluntary Controlled Primary School","122286","2012-09-01","South East","Kent County Council"]
[null,null,null,null,null,null,null,null,null,null,null,null,null,null,"West Meadows Primary School",127592,"2013-12-01","Yorkshire & Humberside","Barnsley Metropolitan Borough Council"]
[null,null,null,null,null,null,null,null,null,null,null,null,null,null,"West Newcastle Academy","123372","2013-09-01","North East","Newcastle Upon Tyne City Council"]
[null,null,null,null,null,null,null,null,null,null,null,null,null,null,"West Park Academy","119901","2011-07-01","North East","Darlington Borough Council"]
[null,null,null,null,null,null,null,null,null,null,null,null,null,null,"West Park School","119548","2011-04-01","East Midlands","Derby City Council"]
[null,null,null,null,null,null,null,null,null,null,null,null,null,null,"West Somerset Community College, The","119784","2011-06-01","South West","Somerset County Council"]
[null,null,null,null,null,null,null,null,null,null,null,null,null,null,"West St Leonards Primary Academy",125003,"2013-11-01","South East","East Sussex County Council"]
[null,null,null,null,null,null,null,null,null,null,null,null,null,null,"West Thornton Primary School","119763","2011-06-01","London","Croydon London Borough Council"]
[null,null,null,null,null,null,null,null,null,null,null,null,null,null,"West Thurrock Primary School","122892","2013-08-01","East of England","Thurrock Borough Council"]
[null,null,null,null,null,null,null,null,null,null,null,null,null,null,"West Town Lane Academy","120436","2012-01-01","South West","Bristol City Council"]
[null,null,null,null,null,null,null,null,null,null,null,null,null,null,"West Walsall E-ACT Academy","121922","2012-09-01","West Midlands","Walsall Metropolitan Borough Council"]
[null,null,null,null,null,null,null,null,null,null,null,null,null,null,"Westborough Academy, The","119301","2010-10-01","East of England","Southend-on-Sea Borough Council"]
[null,null,null,null,null,null,null,null,null,null,null,null,null,null,"Westbourne Primary School","119767","2011-06-01","London","Sutton London Borough Council"]
[null,null,null,null,null,null,null,null,null,null,null,null,null,null,"Westbourne Sports College","123185","2013-02-01","East of England","Suffolk County Council"]
[null,null,null,null,null,null,null,null,null,null,null,null,null,null,"Westbrook Primary","124492","2013-07-01","London","Hounslow London Borough Council"]
[null,null,null,null,null,null,null,null,null,null,null,null,null,null,"Westbury Park Primary School","122341","2012-08-01","South West","Bristol City Council"]
[null,null,null,null,null,null,null,null,null,null,null,null,null,null,"Westbury-on-Trym CofE Primary School","120062","2011-08-01","South West","Bristol City Council"]
[null,null,null,null,null,null,null,null,null,null,null,null,null,null,"Westcliff High School for Boys Academy","119262","2010-09-01","East of England","Southend-on-Sea Borough Council"]
[null,null,null,null,null,null,null,null,null,null,null,null,null,null,"Westcliff High School for Girls","119490","2011-03-01","East of England","Southend-on-Sea Borough Council"]
[null,null,null,null,null,null,null,null,null,null,null,null,null,null,"Westcliff Primary School","120370","2011-09-01","North West","Blackpool Council"]
[null,null,null,null,null,null,null,null,null,null,null,null,null,null,"Westerings Primary School, The","120341","2011-09-01","East of England","Essex County Council"]
[null,null,null,null,null,null,null,null,null,null,null,null,null,null,"Westfield Academy","124311","2013-09-01","East of England","Hertfordshire County Council"]
[null,null,null,null,null,null,null,null,null,null,null,null,null,null,"Westfield Community Primary School - Haverhill",124755,"2013-10-01","East of England","Suffolk County Council"]
[null,null,null,null,null,null,null,null,null,null,null,null,null,null,"Westfield Community School - Yeovil","120203","2011-08-01","South West","Somerset County Council"]
[null,null,null,null,null,null,null,null,null,null,null,null,null,null,"Westgate Junior School","120317","2011-09-01","East Midlands","Lincolnshire County Council"]
[null,null,null,null,null,null,null,null,null,null,null,null,null,null,"Westgate School, The","121066","2012-04-01","South East","Slough Borough Council"]
[null,null,null,null,null,null,null,null,null,null,null,null,null,null,"Westlands Primary School","119257","2010-09-01","South East","Kent County Council"]
[null,null,null,null,null,null,null,null,null,null,null,null,null,null,"Westlands School - Thornaby","124564","2013-08-01","North East","Stockton-on-Tees Borough Council"]
[null,null,null,null,null,null,null,null,null,null,null,null,null,null,"Westlands School, The - Sittingbourne","119261","2010-09-01","South East","Kent County Council"]
[null,null,null,null,null,null,null,null,null,null,null,null,null,null,"Westlea Primary School",124152,"2013-11-01","South West","Swindon Borough Council"]
[null,null,null,null,null,null,null,null,null,null,null,null,null,null,"Westley Middle School","120180","2011-08-01","East of England","Suffolk County Council"]
[null,null,null,null,null,null,null,null,null,null,null,null,null,null,"Westminster Academy","118658","2006-09-01","London","Westminster City Council"]
[null,null,null,null,null,null,null,null,null,null,null,null,null,null,"Westminster City School","122164","2012-07-01","London","Westminster City Council"]
[null,null,null,null,null,null,null,null,null,null,null,null,null,null,"Weston Community School","120816","2012-04-01","South East","Isle of Wight Council"]
[null,null,null,null,null,null,null,null,null,null,null,null,null,null,"Weston Favell Academy","119948","2012-09-01","East Midlands","Northamptonshire County Council"]
[null,null,null,null,null,null,null,null,null,null,null,null,null,null,"Weston Favell CofE VA Primary School","121467","2012-11-01","East Midlands","Northamptonshire County Council"]
[null,null,null,null,null,null,null,null,null,null,null,null,null,null,"Weston Road Academy","120583","2011-10-01","West Midlands","Staffordshire County Council"]
[null,null,null,null,null,null,null,null,null,null,null,null,null,null,"Westside Free School","123417","2013-09-01","London","Westminster City Council"]
[null,null,null,null,null,null,null,null,null,null,null,null,null,null,"Westwood Academy - Benfleet","120030","2011-08-01","East of England","Essex County Council"]
[null,null,null,null,null,null,null,null,null,null,null,null,null,null,"Westwood School, The - Coventry","120225","2011-08-01","West Midlands","Coventry City Council"]
[null,null,null,null,null,null,null,null,null,null,null,null,null,null,"Westwoodside CofE Primary School","122499","2012-09-01","Yorkshire & Humberside","North Lincolnshire Council"]
[null,null,null,null,null,null,null,null,null,null,null,null,null,null,"Wey Valley School, The","122687","2012-09-01","South West","Dorset County Council"]
[null,null,null,null,null,null,null,null,null,null,null,null,null,null,"Weydon School","119595","2011-04-01","South East","Surrey County Council"]
[null,null,null,null,null,null,null,null,null,null,null,null,null,null,"Weyfield Primary School","122545","2013-02-01","South East","Surrey County Council"]
[null,null,null,null,null,null,null,null,null,null,null,null,null,null,"Wheatley Church of England (C) Primary School","125171","2014-03-01","South East","Oxfordshire County Council"]
[null,null,null,null,null,null,null,null,null,null,null,null,null,null,"Wheeler Primary School",124063,"2014-01-01","Yorkshire & Humberside","Hull City Council"]
[null,null,null,null,null,null,null,null,null,null,null,null,null,null,"Whetley Primary School","122861","2012-12-01","Yorkshire & Humberside","Bradford Metropolitan District Council"]
[null,null,null,null,null,null,null,null,null,null,null,null,null,null,"Whickham School and Sports College","120358","2011-09-01","North East","Gateshead Council"]
[null,null,null,null,null,null,null,null,null,null,null,null,null,null,"Whipperley Infant School","122346","2013-01-01","East of England","Luton Borough Council"]
[null,null,null,null,null,null,null,null,null,null,null,null,null,null,"Whirley Primary School",124204,"2014-02-01","North West","Cheshire East Council"]
[null,null,null,null,null,null,null,null,null,null,null,null,null,null,"Whiston Junior and Infant School","124563","2013-09-01","Yorkshire & Humberside","Rotherham Metropolitan Borough Council"]
[null,null,null,null,null,null,null,null,null,null,null,null,null,null,"Whiston Worry Goose Junior and Infant School","124583","2013-09-01","Yorkshire & Humberside","Rotherham Metropolitan Borough Council"]
[null,null,null,null,null,null,null,null,null,null,null,null,null,null,"Whitburn Church of England Academy","119398","2011-01-01","North East","South Tyneside Council"]
[null,null,null,null,null,null,null,null,null,null,null,null,null,null,"White Cliffs Primary College for the Arts","122069","2012-06-01","South East","Kent County Council"]
[null,null,null,null,null,null,null,null,null,null,null,null,null,null,"White Hall Academy","120929","2012-09-01","East of England","Essex County Council"]
[null,null,null,null,null,null,null,null,null,null,null,null,null,null,"White Waltham CofE School","122292","2012-09-01","South East","Royal Borough of Windsor and Maidenhead"]
[null,null,null,null,null,null,null,null,null,null,null,null,null,null,"Whitecross Hereford; High School and Specialist Sports College","120600","2013-01-01","West Midlands","Herefordshire Council"]
[null,null,null,null,null,null,null,null,null,null,null,null,null,null,"Whitefield School","120355","2011-09-01","London","Barnet London Borough Council"]
[null,null,null,null,null,null,null,null,null,null,null,null,null,null,"Whitehaven School",127198,"2014-01-01","North West","Cumbria County Council"]
[null,null,null,null,null,null,null,null,null,null,null,null,null,null,"Whitehill Community Academy","119600","2011-04-01","Yorkshire & Humberside","Calderdale Metropolitan Borough Council"]
[null,null,null,null,null,null,null,null,null,null,null,null,null,null,"Whitehorse Manor Infant School","119666","2011-04-01","London","Croydon London Borough Council"]
[null,null,null,null,null,null,null,null,null,null,null,null,null,null,"Whitehorse Manor Junior School","119667","2011-04-01","London","Croydon London Borough Council"]
[null,null,null,null,null,null,null,null,null,null,null,null,null,null,"Whitelands Park Primary School ",127278,"2014-01-01","South East","West Berkshire Council"]
[null,null,null,null,null,null,null,null,null,null,null,null,null,null,"Whitemoor Academy","122897","2012-11-01","South West","Cornwall Council"]
[null,null,null,null,null,null,null,null,null,null,null,null,null,null,"Whitemoor Primary and Nursery School","122018","2012-09-01","East Midlands","Nottingham City Council"]
[null,null,null,null,null,null,null,null,null,null,null,null,null,null,"White's Wood Lane Community Junior School, The","123807","2013-03-01","East Midlands","Lincolnshire County Council"]
[null,null,null,null,null,null,null,null,null,null,null,null,null,null,"Whitesheet Church Academy",124297,"2013-12-01","South West","Wiltshire Council"]
[null,null,null,null,null,null,null,null,null,null,null,null,null,null,"Whitley Academy","119840","2011-07-01","West Midlands","Coventry City Council"]
[null,null,null,null,null,null,null,null,null,null,null,null,null,null,"Whitstone","120192","2011-08-01","South West","Somerset County Council"]
[null,null,null,null,null,null,null,null,null,null,null,null,null,null,"Whittingham Community Primary School","123201","2013-02-01","London","Waltham Forest London Borough Council"]
[null,null,null,null,null,null,null,null,null,null,null,null,null,null,"Whitton Green Community Primary School","124630","2013-08-01","East of England","Suffolk County Council"]
[null,null,null,null,null,null,null,null,null,null,null,null,null,null,"Wickersley School and Sports College","129177","2014-03-01","Yorkshire & Humberside","Rotherham Metropolitan Borough Council"]
[null,null,null,null,null,null,null,null,null,null,null,null,null,null,"Wickford Church of England Voluntary Controlled Infant School","120590","2011-12-01","East of England","Essex County Council"]
[null,null,null,null,null,null,null,null,null,null,null,null,null,null,"Widecombe-in-the-Moor Primary School","119668","2011-04-01","South West","Devon County Council"]
[null,null,null,null,null,null,null,null,null,null,null,null,null,null,"Widewell Primary School","122942","2013-02-01","South West","Plymouth City Council"]
[null,null,null,null,null,null,null,null,null,null,null,null,null,null,"Wigan UTC","122059","2013-09-01","North West","Wigan Metropolitan Borough Council"]
[null,null,null,null,null,null,null,null,null,null,null,null,null,null,"Wigmore High School","119421","2011-01-01","West Midlands","Herefordshire Council"]
[null,null,null,null,null,null,null,null,null,null,null,null,null,null,"Wigmore Primary School","119420","2011-01-01","West Midlands","Herefordshire Council"]
[null,null,null,null,null,null,null,null,null,null,null,null,null,null,"Wigston Birkett House Community Special School","122105","2012-11-01","East Midlands","Leicestershire County Council"]
[null,null,null,null,null,null,null,null,null,null,null,null,null,null,"Wilbarston Church of England Primary School","124530","2013-09-01","East Midlands","Northamptonshire County Council"]
[null,null,null,null,null,null,null,null,null,null,null,null,null,null,"Wilberforce Primary School","123271","2013-09-01","London","Westminster City Council"]
[null,null,null,null,null,null,null,null,null,null,null,null,null,null,"Wilcombe Primary School","120362","2011-11-01","South West","Devon County Council"]
[null,null,null,null,null,null,null,null,null,null,null,null,null,null,"Wildern School","119641","2011-04-01","South East","Hampshire County Council"]
[null,null,null,null,null,null,null,null,null,null,null,null,null,null,"Willenhall E-ACT Academy","120976","2012-01-01","West Midlands","Walsall Metropolitan Borough Council"]
[null,null,null,null,null,null,null,null,null,null,null,null,null,null,"William Alvey School","120637","2011-10-01","East Midlands","Lincolnshire County Council"]
[null,null,null,null,null,null,null,null,null,null,null,null,null,null,"William Brookes School","123181","2013-06-01","West Midlands","Shropshire Council"]
[null,null,null,null,null,null,null,null,null,null,null,null,null,null,"William de Ferrers School","119630","2011-04-01","East of England","Essex County Council"]
[null,null,null,null,null,null,null,null,null,null,null,null,null,null,"William Edwards School and Sports College","120214","2011-08-01","East of England","Thurrock Borough Council"]
[null,null,null,null,null,null,null,null,null,null,null,null,null,null,"William Farr Church of England Comprehensive School","119445","2011-01-01","East Midlands","Lincolnshire County Council"]
[null,null,null,null,null,null,null,null,null,null,null,null,null,null,"William Howard School","120252","2011-08-01","North West","Cumbria County Council"]
[null,null,null,null,null,null,null,null,null,null,null,null,null,null,"William Hulme's Grammar School","118652","2007-09-01","North West","Manchester City Council"]
[null,null,null,null,null,null,null,null,null,null,null,null,null,null,"William Lovell Church of England School","121866","2012-09-01","East Midlands","Lincolnshire County Council"]
[null,null,null,null,null,null,null,null,null,null,null,null,null,null,"William Morris School","122172","2012-09-01","London","Waltham Forest London Borough Council"]
[null,null,null,null,null,null,null,null,null,null,null,null,null,null,"William Perkin Church of England High School","121996","2013-09-01","London","Ealing London Borough Council"]
[null,null,null,null,null,null,null,null,null,null,null,null,null,null,"William Tyndale Primary School","120481","2011-10-01","London","Islington London Borough Council"]
[null,null,null,null,null,null,null,null,null,null,null,null,null,null,"Willow Bank Primary School","120532","2011-09-01","London","Bexley London Borough Council"]
[null,null,null,null,null,null,null,null,null,null,null,null,null,null,"Willow Brook Primary School Academy","120974","2012-09-01","London","Waltham Forest London Borough Council"]
[null,null,null,null,null,null,null,null,null,null,null,null,null,null,"Willow Green Academy","122251","2012-08-01","Yorkshire & Humberside","Wakefield Council"]
[null,null,null,null,null,null,null,null,null,null,null,null,null,null,"Willow Primary School - Doncaster","120698","2012-04-01","Yorkshire & Humberside","Doncaster Metropolitan Borough Council"]
[null,null,null,null,null,null,null,null,null,null,null,null,null,null,"Willow Primary School - Slough","122871","2013-02-01","South East","Slough Borough Council"]
[null,null,null,null,null,null,null,null,null,null,null,null,null,null,"Willowcroft Community School","124112","2013-06-01","South East","Oxfordshire County Council"]
[null,null,null,null,null,null,null,null,null,null,null,null,null,null,"Willows Academy","123017","2013-05-01","Yorkshire & Humberside","North East Lincolnshire Council"]
[null,null,null,null,null,null,null,null,null,null,null,null,null,null,"Willows Primary School, The - Manchester","124303","2013-04-01","North West","Manchester City Council"]
[null,null,null,null,null,null,null,null,null,null,null,null,null,null,"Willows School, The - Hillingdon","120483","2011-11-01","London","Hillingdon London Borough Council"]
[null,null,null,null,null,null,null,null,null,null,null,null,null,null,"Wilmington Academy","119330","2010-09-01","South East","Kent County Council"]
[null,null,null,null,null,null,null,null,null,null,null,null,null,null,"Wilmington Grammar School for Boys","120227","2011-08-01","South East","Kent County Council"]
[null,null,null,null,null,null,null,null,null,null,null,null,null,null,"Wilmington Grammar School for Girls","120250","2011-08-01","South East","Kent County Council"]
[null,null,null,null,null,null,null,null,null,null,null,null,null,null,"Wilmington Primary School","120620","2011-11-01","South East","Kent County Council"]
[null,null,null,null,null,null,null,null,null,null,null,null,null,null,"Wilnecote High School","122943","2012-11-01","West Midlands","Staffordshire County Council"]
[null,null,null,null,null,null,null,null,null,null,null,null,null,null,"Wilshere-Dacre Junior School","129588","2014-03-01","East of England ","Hertfordshire County Council"]
[null,null,null,null,null,null,null,null,null,null,null,null,null,null,"Wilson Stuart School","121131","2012-07-01","West Midlands","Birmingham City Council"]
[null,null,null,null,null,null,null,null,null,null,null,null,null,null,"Wilson's School","119535","2011-04-01","London","Sutton London Borough Council"]
[null,null,null,null,null,null,null,null,null,null,null,null,null,null,"Winchcombe School","119788","2011-06-01","South West","Gloucestershire County Council"]
[null,null,null,null,null,null,null,null,null,null,null,null,null,null,"Wincobank Nursery and Infant School","129432","2014-03-01","Yorkshire & Humberside","Sheffield City Council"]
[null,null,null,null,null,null,null,null,null,null,null,null,null,null,"Windale Community Primary School","122878","2013-08-01","South East","Oxfordshire County Council"]
[null,null,null,null,null,null,null,null,null,null,null,null,null,null,"Windmill Academy","126512","2013-09-01","South East","Wokingham Borough Council"]
[null,null,null,null,null,null,null,null,null,null,null,null,null,null,"Windmill Hill Academy",127710,"2014-01-01","South West","Cornwall Council"]
[null,null,null,null,null,null,null,null,null,null,null,null,null,null,"Windmill LEAD Academy","122939","2013-02-01","East Midlands","Nottingham City Council"]
[null,null,null,null,null,null,null,null,null,null,null,null,null,null,"Windmill Primary School","124316","2013-05-01","East Midlands","Northamptonshire County Council"]
[null,null,null,null,null,null,null,null,null,null,null,null,null,null,"Windsor High School and Sixth Form","119532","2011-04-01","West Midlands","Dudley Metropolitan Borough Council"]
[null,null,null,null,null,null,null,null,null,null,null,null,null,null,"Wingfield Business and Enterprise College","123211","2013-08-01","Yorkshire & Humberside","Rotherham Metropolitan Borough Council"]
[null,null,null,null,null,null,null,null,null,null,null,null,null,null,"Winhills Primary School","122047","2012-07-01","East of England","Cambridgeshire County Council"]
[null,null,null,null,null,null,null,null,null,null,null,null,null,null,"Winifred Holtby Academy Trust","122911","2013-05-01","Yorkshire & Humberside","Hull City Council"]
[null,null,null,null,null,null,null,null,null,null,null,null,null,null,"Winsford E-ACT Academy, The","119336","2010-09-01","North West","Cheshire West and Chester Council"]
[null,null,null,null,null,null,null,null,null,null,null,null,null,null,"Winstanley Community College","122148","2012-08-01","East Midlands","Leicestershire County Council"]
[null,null,null,null,null,null,null,null,null,null,null,null,null,null,"Winterbourne International Academy","119094","2009-09-01","South West","South Gloucestershire Council"]
[null,null,null,null,null,null,null,null,null,null,null,null,null,null,"Winterton Comprehensive School","122560","2012-10-01","Yorkshire & Humberside","North Lincolnshire Council"]
[null,null,null,null,null,null,null,null,null,null,null,null,null,null,"Winton Arts and Media College","123804","2013-09-01","South West","Bournemouth Borough Council"]
[null,null,null,null,null,null,null,null,null,null,null,null,null,null,"Winton Community Academy","121884","2012-11-01","South East","Hampshire County Council"]
[null,null,null,null,null,null,null,null,null,null,null,null,null,null,"Wirral Grammar School for Boys","120371","2011-09-01","North West","Wirral Metropolitan Borough Council"]
[null,null,null,null,null,null,null,null,null,null,null,null,null,null,"Wirral Grammar School for Girls","120171","2011-08-01","North West","Wirral Metropolitan Borough Council"]
[null,null,null,null,null,null,null,null,null,null,null,null,null,null,"Wishmore Cross School","122424","2012-09-01","South East","Surrey County Council"]
[null,null,null,null,null,null,null,null,null,null,null,null,null,null,"Wistaston Green Primary and Nursery School","129605","2014-03-01","North West","Cheshire East Council"]
[null,null,null,null,null,null,null,null,null,null,null,null,null,null,"Witchford Village College","120655","2011-10-01","East of England","Cambridgeshire County Council"]
[null,null,null,null,null,null,null,null,null,null,null,null,null,null,"Witham St Hughs Primary School","121856","2012-04-01","East Midlands","Lincolnshire County Council"]
[null,null,null,null,null,null,null,null,null,null,null,null,null,null,"Woden Primary School","122489","2013-04-01","West Midlands","Wolverhampton City Council"]
[null,null,null,null,null,null,null,null,null,null,null,null,null,null,"Wodensborough Community Technology College",126339,"2013-11-01","West Midlands","Sandwell Metropolitan Borough Council"]
[null,null,null,null,null,null,null,null,null,null,null,null,null,null,"Woking High School","124312","2013-08-01","South East","Surrey County Council"]
[null,null,null,null,null,null,null,null,null,null,null,null,null,null,"Wold Primary School",124230,"2013-10-01","Yorkshire & Humberside","Hull City Council"]
[null,null,null,null,null,null,null,null,null,null,null,null,null,null,"Wolsey Junior School",125013,"2013-11-01","London","Croydon London Borough Council"]
[null,null,null,null,null,null,null,null,null,null,null,null,null,null,"Wood End Junior School - Greenford","119741","2011-05-01","London","Ealing London Borough Council"]
[null,null,null,null,null,null,null,null,null,null,null,null,null,null,"Wood End Park Community School - Hayes","122682","2012-09-01","London","Hillingdon London Borough Council"]
[null,null,null,null,null,null,null,null,null,null,null,null,null,null,"Wood End Primary School - Atherstone",124605,"2014-01-01","West Midlands","Warwickshire County Council"]
[null,null,null,null,null,null,null,null,null,null,null,null,null,null,"Wood Green Academy","119530","2011-04-01","West Midlands","Sandwell Metropolitan Borough Council"]
[null,null,null,null,null,null,null,null,null,null,null,null,null,null,"Woodbrook Vale High School","120318","2011-09-01","East Midlands","Leicestershire County Council"]
[null,null,null,null,null,null,null,null,null,null,null,null,null,null,"Woodchurch High School Engineering College","120612","2012-10-01","North West","Wirral Metropolitan Borough Council"]
[null,null,null,null,null,null,null,null,null,null,null,null,null,null,"Woodcote High School","121951","2012-06-01","London","Croydon London Borough Council"]
[null,null,null,null,null,null,null,null,null,null,null,null,null,null,"Woodfield Middle School","121936","2012-06-01","West Midlands","Worcestershire County Council"]
[null,null,null,null,null,null,null,null,null,null,null,null,null,null,"Woodford Valley Church of England Aided School","121107","2012-06-01","South West","Wiltshire Council"]
[null,null,null,null,null,null,null,null,null,null,null,null,null,null,"Woodham Community Technology College","122575","2012-09-01","North East","Durham County Council"]
[null,null,null,null,null,null,null,null,null,null,null,null,null,null,"Woodhouse Primary Academy","123256","2013-09-01","West Midlands","Birmingham City Council"]
[null,null,null,null,null,null,null,null,null,null,null,null,null,null,"Woodkirk High Specialist Science School","120455","2011-09-01","Yorkshire & Humberside","Leeds City Council"]
[null,null,null,null,null,null,null,null,null,null,null,null,null,null,"Woodland Middle School Academy","119573","2011-04-01","East of England","Central Bedfordshire Council"]
[null,null,null,null,null,null,null,null,null,null,null,null,null,null,"Woodland View Primary School","121104","2012-03-01","East Midlands","Northamptonshire County Council"]
[null,null,null,null,null,null,null,null,null,null,null,null,null,null,"Woodlands Academy - Coventry","120165","2011-08-01","West Midlands","Coventry City Council"]
[null,null,null,null,null,null,null,null,null,null,null,null,null,null,"Woodlands Academy, The - Scarborough","123219","2013-04-01","Yorkshire & Humberside","North Yorkshire County Council"]
[null,null,null,null,null,null,null,null,null,null,null,null,null,null,"Woodlands Primary School - Leeds","122319","2012-12-01","Yorkshire & Humberside","Leeds City Council"]
[null,null,null,null,null,null,null,null,null,null,null,null,null,null,"Woodlands Primary School - Medway","123042","2013-04-01","South East","Medway Council"]
[null,null,null,null,null,null,null,null,null,null,null,null,null,null,"Woodlands Primary School - Willenhall","122118","2012-07-01","West Midlands","Walsall Metropolitan Borough Council"]
[null,null,null,null,null,null,null,null,null,null,null,null,null,null,"Woodlands School","121014","2012-03-01T12:15:32","East Midlands","Derby City Council"]
[null,null,null,null,null,null,null,null,null,null,null,null,null,null,"Woodlands School - Bradwell","124246","2013-07-01","East of England","Norfolk County Council"]
[null,null,null,null,null,null,null,null,null,null,null,null,null,null,"Woodnewton","121108","2012-06-01","East Midlands","Northamptonshire County Council"]
[null,null,null,null,null,null,null,null,null,null,null,null,null,null,"Woodpecker Hall Primary Academy","120552","2011-09-01","London","Enfield London Borough Council"]
[null,null,null,null,null,null,null,null,null,null,null,null,null,null,"Woodrush Community High School","119904","2011-07-01","West Midlands","Worcestershire County Council"]
[null,null,null,null,null,null,null,null,null,null,null,null,null,null,"Woodside Academy","121178","2012-12-01","Yorkshire & Humberside","Bradford Metropolitan District Council"]
[null,null,null,null,null,null,null,null,null,null,null,null,null,null,"Woodside CofE Controlled Primary School","123242","2013-09-01","West Midlands","Warwickshire County Council"]
[null,null,null,null,null,null,null,null,null,null,null,null,null,null,"Woodside High School - Hargingey","120694","2011-12-01","London","Haringey London Borough Council"]
[null,null,null,null,null,null,null,null,null,null,null,null,null,null,"Woodside Primary School - Essex","122592","2012-12-01","East of England","Thurrock Borough Council"]
[null,null,null,null,null,null,null,null,null,null,null,null,null,null,"Woodside Primary School - Oswestry","122397","2013-05-01","West Midlands","Shropshire Council"]
[null,null,null,null,null,null,null,null,null,null,null,null,null,null,"Woodside School","122843","2012-12-01","London","Waltham Forest London Borough Council"]
[null,null,null,null,null,null,null,null,null,null,null,null,null,null,"Woodvale Primary School","123094","2013-02-01","East Midlands","Northamptonshire County Council"]
[null,null,null,null,null,null,null,null,null,null,null,null,null,null,"Woodwater Academy, The","122420","2013-01-01","South West","Devon County Council"]
[null,null,null,null,null,null,null,null,null,null,null,null,null,null,"Woolavington Village Primary School",127647,"2014-01-01","South West","Somerset County Council"]
[null,null,null,null,null,null,null,null,null,null,null,null,null,null,"Woolgrove School","121841","2012-04-01","East of England","Hertfordshire County Council"]
[null,null,null,null,null,null,null,null,null,null,null,null,null,null,"Woolmer Hill Technology College","120314","2011-08-17","South East","Surrey County Council"]
[null,null,null,null,null,null,null,null,null,null,null,null,null,null,"Wootton Primary School","122266","2012-10-01","East Midlands","Northamptonshire County Council"]
[null,null,null,null,null,null,null,null,null,null,null,null,null,null,"Wootton Upper School","120406","2011-10-01","East of England","Bedford Borough Council"]
[null,null,null,null,null,null,null,null,null,null,null,null,null,null,"Worlaby Academy","122741","2012-08-01","Yorkshire & Humberside","North Lincolnshire Council"]
[null,null,null,null,null,null,null,null,null,null,null,null,null,null,"Worth Primary School","123814","2013-04-01","North West","Cheshire East Council"]
[null,null,null,null,null,null,null,null,null,null,null,null,null,null,"Worthing High School","122970","2012-12-01","South East","West Sussex County Council"]
[null,null,null,null,null,null,null,null,null,null,null,null,null,null,"Wreake Valley Academy","113696","2012-04-01","East Midlands","Leicestershire County Council"]
[null,null,null,null,null,null,null,null,null,null,null,null,null,null,"Wren Academy - North Finchley","118676","2008-09-01","London","Barnet London Borough Council"]
[null,null,null,null,null,null,null,null,null,null,null,null,null,null,"Wrenn School - Wellingborough","124748","2013-09-01","East Midlands","Northamptonshire County Council"]
[null,null,null,null,null,null,null,null,null,null,null,null,null,null,"Writhlington School","120633","2011-10-01","South West","Bath & North East Somerset Council"]
[null,null,null,null,null,null,null,null,null,null,null,null,null,null,"Wrockwardine Wood Arts College","123881","2013-04-01","West Midlands","Telford and Wrekin Council"]
[null,null,null,null,null,null,null,null,null,null,null,null,null,null,"Wrotham School","120709","2013-04-01","South East","Kent County Council"]
[null,null,null,null,null,null,null,null,null,null,null,null,null,null,"Wroxham School, The","121916","2012-06-01","East of England","Hertfordshire County Council"]
[null,null,null,null,null,null,null,null,null,null,null,null,null,null,"Wybers Wood Academy","122428","2012-12-01","Yorkshire & Humberside","North East Lincolnshire Council"]
[null,null,null,null,null,null,null,null,null,null,null,null,null,null,"Wycombe High School","119742","2011-05-01","South East","Buckinghamshire County Council"]
[null,null,null,null,null,null,null,null,null,null,null,null,null,null,"Wye Free School","123373","2013-09-01","South East","Kent County Council"]
[null,null,null,null,null,null,null,null,null,null,null,null,null,null,"Wyedean School and 6th Form Centre","120415","2011-09-01","South West","Gloucestershire County Council"]
[null,null,null,null,null,null,null,null,null,null,null,null,null,null,"Wymondham College","119481","2011-02-01","East of England","Norfolk County Council"]
[null,null,null,null,null,null,null,null,null,null,null,null,null,null,"Wymondham High School","120342","2011-09-01","East of England","Norfolk County Council"]
[null,null,null,null,null,null,null,null,null,null,null,null,null,null,"Wyndham Primary Academy","120997","2012-09-01","East Midlands","Derby City Council"]
[null,null,null,null,null,null,null,null,null,null,null,null,null,null,"Wyvern Academy","122578","2012-09-01","South West","Dorset County Council"]
[null,null,null,null,null,null,null,null,null,null,null,null,null,null,"Wyvern Technology College","121161","2012-06-01","South East","Hampshire County Council"]
[null,null,null,null,null,null,null,null,null,null,null,null,null,null,"Yarborough Primary School","121901","2012-08-01","Yorkshire & Humberside","North East Lincolnshire Council"]
[null,null,null,null,null,null,null,null,null,null,null,null,null,null,"Yardley Primary School - Waltham Forrest","119390","2011-01-01","London","Waltham Forest London Borough Council"]
[null,null,null,null,null,null,null,null,null,null,null,null,null,null,"Yardleys School - Birmingham","123056","2013-08-01","West Midlands","Birmingham City Council"]
[null,null,null,null,null,null,null,null,null,null,null,null,null,null,"Yarm Primary School",129569,"2014-02-01","North East","Stockton-on-Tees Borough Council"]
[null,null,null,null,null,null,null,null,null,null,null,null,null,null,"Yarnfield Primary School","122947","2013-07-01","West Midlands","Birmingham City Council"]
[null,null,null,null,null,null,null,null,null,null,null,null,null,null,"Yate International Academy","119093","2009-09-01","South West","South Gloucestershire Council"]
[null,null,null,null,null,null,null,null,null,null,null,null,null,null,"Yavneh College","119906","2011-07-01","East of England","Hertfordshire County Council"]
[null,null,null,null,null,null,null,null,null,null,null,null,null,null,"Yealmpton Primary School","119654","2011-04-01","South West","Devon County Council"]
[null,null,null,null,null,null,null,null,null,null,null,null,null,null,"Yesoiday Hatorah School","119578","2011-04-01","North West","Bury Metropolitan Borough Council"]
[null,null,null,null,null,null,null,null,null,null,null,null,null,null,"Yewlands School Technology College","120453","2011-09-01","Yorkshire & Humberside","Sheffield City Council"]
[null,null,null,null,null,null,null,null,null,null,null,null,null,null,"York Road Junior Academy","120980","2012-04-01","South East","Kent County Council"]
[null,null,null,null,null,null,null,null,null,null,null,null,null,null,"Coketown Academy",999999,"2011-04-01","South East ","Kent"]

{"sheet":"NumData","index":9,"n_rows":3074,"n_cols":6,"rows_kept":3074,"cut":false,"hidden":true,"merged":[]}
["Academy ID 1","Academy ID 2","Academy Name 2","Sheet Name","Cell ID","Value"]
[{"$f":"'Standing Data'!$D$15","v":{"$error":"#N/A"}},{"$f":"'Standing Data'!$F$15","v":0},{"$f":"'Standing Data'!$F$9","v":0},"Fin.Return","E18",{"$f":"Fin.Return!E20","v":0}]
[{"$f":"'Standing Data'!$D$15","v":{"$error":"#N/A"}},{"$f":"'Standing Data'!$F$15","v":0},{"$f":"'Standing Data'!$F$9","v":0},"Fin.Return","E19",{"$f":"Fin.Return!E21","v":0}]
[{"$f":"'Standing Data'!$D$15","v":{"$error":"#N/A"}},{"$f":"'Standing Data'!$F$15","v":0},{"$f":"'Standing Data'!$F$9","v":0},"Fin.Return","E20",{"$f":"Fin.Return!E22","v":0}]
[{"$f":"'Standing Data'!$D$15","v":{"$error":"#N/A"}},{"$f":"'Standing Data'!$F$15","v":0},{"$f":"'Standing Data'!$F$9","v":0},"Fin.Return","E21",{"$f":"Fin.Return!E23","v":0}]
[{"$f":"'Standing Data'!$D$15","v":{"$error":"#N/A"}},{"$f":"'Standing Data'!$F$15","v":0},{"$f":"'Standing Data'!$F$9","v":0},"Fin.Return","E23",{"$f":"Fin.Return!E25","v":0}]
[{"$f":"'Standing Data'!$D$15","v":{"$error":"#N/A"}},{"$f":"'Standing Data'!$F$15","v":0},{"$f":"'Standing Data'!$F$9","v":0},"Fin.Return","E24",{"$f":"Fin.Return!E26","v":0}]
[{"$f":"'Standing Data'!$D$15","v":{"$error":"#N/A"}},{"$f":"'Standing Data'!$F$15","v":0},{"$f":"'Standing Data'!$F$9","v":0},"Fin.Return","E26",{"$f":"Fin.Return!E28","v":0}]
[{"$f":"'Standing Data'!$D$15","v":{"$error":"#N/A"}},{"$f":"'Standing Data'!$F$15","v":0},{"$f":"'Standing Data'!$F$9","v":0},"Fin.Return","E29",{"$f":"Fin.Return!E31","v":0}]
[{"$f":"'Standing Data'!$D$15","v":{"$error":"#N/A"}},{"$f":"'Standing Data'!$F$15","v":0},{"$f":"'Standing Data'!$F$9","v":0},"Fin.Return","E30",{"$f":"Fin.Return!E32","v":0}]
[{"$f":"'Standing Data'!$D$15","v":{"$error":"#N/A"}},{"$f":"'Standing Data'!$F$15","v":0},{"$f":"'Standing Data'!$F$9","v":0},"Fin.Return","E31",{"$f":"Fin.Return!E33","v":0}]
[{"$f":"'Standing Data'!$D$15","v":{"$error":"#N/A"}},{"$f":"'Standing Data'!$F$15","v":0},{"$f":"'Standing Data'!$F$9","v":0},"Fin.Return","E33",{"$f":"Fin.Return!E35","v":0}]
[{"$f":"'Standing Data'!$D$15","v":{"$error":"#N/A"}},{"$f":"'Standing Data'!$F$15","v":0},{"$f":"'Standing Data'!$F$9","v":0},"Fin.Return","E34",{"$f":"Fin.Return!E36","v":0}]
[{"$f":"'Standing Data'!$D$15","v":{"$error":"#N/A"}},{"$f":"'Standing Data'!$F$15","v":0},{"$f":"'Standing Data'!$F$9","v":0},"Fin.Return","E35",{"$f":"Fin.Return!E37","v":0}]
[{"$f":"'Standing Data'!$D$15","v":{"$error":"#N/A"}},{"$f":"'Standing Data'!$F$15","v":0},{"$f":"'Standing Data'!$F$9","v":0},"Fin.Return","E37",{"$f":"Fin.Return!E39","v":0}]
[{"$f":"'Standing Data'!$D$15","v":{"$error":"#N/A"}},{"$f":"'Standing Data'!$F$15","v":0},{"$f":"'Standing Data'!$F$9","v":0},"Fin.Return","E38",{"$f":"Fin.Return!E40","v":0}]
[{"$f":"'Standing Data'!$D$15","v":{"$error":"#N/A"}},{"$f":"'Standing Data'!$F$15","v":0},{"$f":"'Standing Data'!$F$9","v":0},"Fin.Return","E39",{"$f":"Fin.Return!E41","v":0}]
[{"$f":"'Standing Data'!$D$15","v":{"$error":"#N/A"}},{"$f":"'Standing Data'!$F$15","v":0},{"$f":"'Standing Data'!$F$9","v":0},"Fin.Return","E41",{"$f":"Fin.Return!E43","v":0}]
[{"$f":"'Standing Data'!$D$15","v":{"$error":"#N/A"}},{"$f":"'Standing Data'!$F$15","v":0},{"$f":"'Standing Data'!$F$9","v":0},"Fin.Return","E43",{"$f":"Fin.Return!E45","v":0}]
[{"$f":"'Standing Data'!$D$15","v":{"$error":"#N/A"}},{"$f":"'Standing Data'!$F$15","v":0},{"$f":"'Standing Data'!$F$9","v":0},"Fin.Return","E44",{"$f":"Fin.Return!E46","v":0}]
[{"$f":"'Standing Data'!$D$15","v":{"$error":"#N/A"}},{"$f":"'Standing Data'!$F$15","v":0},{"$f":"'Standing Data'!$F$9","v":0},"Fin.Return","E45",{"$f":"Fin.Return!E47","v":0}]
[{"$f":"'Standing Data'!$D$15","v":{"$error":"#N/A"}},{"$f":"'Standing Data'!$F$15","v":0},{"$f":"'Standing Data'!$F$9","v":0},"Fin.Return","E46",{"$f":"Fin.Return!E48","v":0}]
[{"$f":"'Standing Data'!$D$15","v":{"$error":"#N/A"}},{"$f":"'Standing Data'!$F$15","v":0},{"$f":"'Standing Data'!$F$9","v":0},"Fin.Return","E48",{"$f":"Fin.Return!E50","v":0}]
[{"$f":"'Standing Data'!$D$15","v":{"$error":"#N/A"}},{"$f":"'Standing Data'!$F$15","v":0},{"$f":"'Standing Data'!$F$9","v":0},"Fin.Return","E50",{"$f":"Fin.Return!E52","v":0}]
[{"$f":"'Standing Data'!$D$15","v":{"$error":"#N/A"}},{"$f":"'Standing Data'!$F$15","v":0},{"$f":"'Standing Data'!$F$9","v":0},"Fin.Return","E51",{"$f":"Fin.Return!E53","v":0}]
[{"$f":"'Standing Data'!$D$15","v":{"$error":"#N/A"}},{"$f":"'Standing Data'!$F$15","v":0},{"$f":"'Standing Data'!$F$9","v":0},"Fin.Return","E52",{"$f":"Fin.Return!E54","v":0}]
[{"$f":"'Standing Data'!$D$15","v":{"$error":"#N/A"}},{"$f":"'Standing Data'!$F$15","v":0},{"$f":"'Standing Data'!$F$9","v":0},"Fin.Return","E54",{"$f":"Fin.Return!E56","v":0}]
[{"$f":"'Standing Data'!$D$15","v":{"$error":"#N/A"}},{"$f":"'Standing Data'!$F$15","v":0},{"$f":"'Standing Data'!$F$9","v":0},"Fin.Return","E69",{"$f":"Fin.Return!E71","v":0}]
[{"$f":"'Standing Data'!$D$15","v":{"$error":"#N/A"}},{"$f":"'Standing Data'!$F$15","v":0},{"$f":"'Standing Data'!$F$9","v":0},"Fin.Return","E70",{"$f":"Fin.Return!E72","v":0}]
[{"$f":"'Standing Data'!$D$15","v":{"$error":"#N/A"}},{"$f":"'Standing Data'!$F$15","v":0},{"$f":"'Standing Data'!$F$9","v":0},"Fin.Return","E71",{"$f":"Fin.Return!E73","v":0}]
[{"$f":"'Standing Data'!$D$15","v":{"$error":"#N/A"}},{"$f":"'Standing Data'!$F$15","v":0},{"$f":"'Standing Data'!$F$9","v":0},"Fin.Return","E72",{"$f":"Fin.Return!E74","v":0}]
[{"$f":"'Standing Data'!$D$15","v":{"$error":"#N/A"}},{"$f":"'Standing Data'!$F$15","v":0},{"$f":"'Standing Data'!$F$9","v":0},"Fin.Return","E73",{"$f":"Fin.Return!E75","v":0}]
[{"$f":"'Standing Data'!$D$15","v":{"$error":"#N/A"}},{"$f":"'Standing Data'!$F$15","v":0},{"$f":"'Standing Data'!$F$9","v":0},"Fin.Return","E75",{"$f":"Fin.Return!E77","v":0}]
[{"$f":"'Standing Data'!$D$15","v":{"$error":"#N/A"}},{"$f":"'Standing Data'!$F$15","v":0},{"$f":"'Standing Data'!$F$9","v":0},"Fin.Return","E76",{"$f":"Fin.Return!E78","v":0}]
[{"$f":"'Standing Data'!$D$15","v":{"$error":"#N/A"}},{"$f":"'Standing Data'!$F$15","v":0},{"$f":"'Standing Data'!$F$9","v":0},"Fin.Return","E134",{"$f":"Fin.Return!E136","v":0}]
[{"$f":"'Standing Data'!$D$15","v":{"$error":"#N/A"}},{"$f":"'Standing Data'!$F$15","v":0},{"$f":"'Standing Data'!$F$9","v":0},"Fin.Return","E135",{"$f":"Fin.Return!E137","v":0}]
[{"$f":"'Standing Data'!$D$15","v":{"$error":"#N/A"}},{"$f":"'Standing Data'!$F$15","v":0},{"$f":"'Standing Data'!$F$9","v":0},"Fin.Return","E136",{"$f":"Fin.Return!E138","v":0}]
[{"$f":"'Standing Data'!$D$15","v":{"$error":"#N/A"}},{"$f":"'Standing Data'!$F$15","v":0},{"$f":"'Standing Data'!$F$9","v":0},"Fin.Return","E138",{"$f":"Fin.Return!E140","v":0}]
[{"$f":"'Standing Data'!$D$15","v":{"$error":"#N/A"}},{"$f":"'Standing Data'!$F$15","v":0},{"$f":"'Standing Data'!$F$9","v":0},"Fin.Return","E144",{"$f":"Fin.Return!E146","v":0}]
[{"$f":"'Standing Data'!$D$15","v":{"$error":"#N/A"}},{"$f":"'Standing Data'!$F$15","v":0},{"$f":"'Standing Data'!$F$9","v":0},"Fin.Return","E145",{"$f":"Fin.Return!E147","v":0}]
[{"$f":"'Standing Data'!$D$15","v":{"$error":"#N/A"}},{"$f":"'Standing Data'!$F$15","v":0},{"$f":"'Standing Data'!$F$9","v":0},"Fin.Return","E146",{"$f":"Fin.Return!E148","v":0}]
[{"$f":"'Standing Data'!$D$15","v":{"$error":"#N/A"}},{"$f":"'Standing Data'!$F$15","v":0},{"$f":"'Standing Data'!$F$9","v":0},"Fin.Return","E147",{"$f":"Fin.Return!E150","v":0}]
[{"$f":"'Standing Data'!$D$15","v":{"$error":"#N/A"}},{"$f":"'Standing Data'!$F$15","v":0},{"$f":"'Standing Data'!$F$9","v":0},"Fin.Return","E149",{"$f":"Fin.Return!E152","v":0}]
[{"$f":"'Standing Data'!$D$15","v":{"$error":"#N/A"}},{"$f":"'Standing Data'!$F$15","v":0},{"$f":"'Standing Data'!$F$9","v":0},"Fin.Return","E155",{"$f":"Fin.Return!E158","v":0}]
[{"$f":"'Standing Data'!$D$15","v":{"$error":"#N/A"}},{"$f":"'Standing Data'!$F$15","v":0},{"$f":"'Standing Data'!$F$9","v":0},"Fin.Return","E156",{"$f":"Fin.Return!E159","v":0}]
[{"$f":"'Standing Data'!$D$15","v":{"$error":"#N/A"}},{"$f":"'Standing Data'!$F$15","v":0},{"$f":"'Standing Data'!$F$9","v":0},"Fin.Return","E157",{"$f":"Fin.Return!E160","v":0}]
[{"$f":"'Standing Data'!$D$15","v":{"$error":"#N/A"}},{"$f":"'Standing Data'!$F$15","v":0},{"$f":"'Standing Data'!$F$9","v":0},"Fin.Return","E158",{"$f":"Fin.Return!E161","v":0}]
[{"$f":"'Standing Data'!$D$15","v":{"$error":"#N/A"}},{"$f":"'Standing Data'!$F$15","v":0},{"$f":"'Standing Data'!$F$9","v":0},"Fin.Return","E160",{"$f":"Fin.Return!E163","v":0}]
[{"$f":"'Standing Data'!$D$15","v":{"$error":"#N/A"}},{"$f":"'Standing Data'!$F$15","v":0},{"$f":"'Standing Data'!$F$9","v":0},"Fin.Return","E168",{"$f":"Fin.Return!E171","v":0}]
[{"$f":"'Standing Data'!$D$15","v":{"$error":"#N/A"}},{"$f":"'Standing Data'!$F$15","v":0},{"$f":"'Standing Data'!$F$9","v":0},"Fin.Return","E169",{"$f":"Fin.Return!E172","v":0}]
[{"$f":"'Standing Data'!$D$15","v":{"$error":"#N/A"}},{"$f":"'Standing Data'!$F$15","v":0},{"$f":"'Standing Data'!$F$9","v":0},"Fin.Return","E170",{"$f":"Fin.Return!E173","v":0}]
[{"$f":"'Standing Data'!$D$15","v":{"$error":"#N/A"}},{"$f":"'Standing Data'!$F$15","v":0},{"$f":"'Standing Data'!$F$9","v":0},"Fin.Return","E171",{"$f":"Fin.Return!E174","v":0}]
[{"$f":"'Standing Data'!$D$15","v":{"$error":"#N/A"}},{"$f":"'Standing Data'!$F$15","v":0},{"$f":"'Standing Data'!$F$9","v":0},"Fin.Return","E172",{"$f":"Fin.Return!E175","v":0}]
[{"$f":"'Standing Data'!$D$15","v":{"$error":"#N/A"}},{"$f":"'Standing Data'!$F$15","v":0},{"$f":"'Standing Data'!$F$9","v":0},"Fin.Return","E173",{"$f":"Fin.Return!E176","v":0}]
[{"$f":"'Standing Data'!$D$15","v":{"$error":"#N/A"}},{"$f":"'Standing Data'!$F$15","v":0},{"$f":"'Standing Data'!$F$9","v":0},"Fin.Return","E174",{"$f":"Fin.Return!E177","v":0}]
[{"$f":"'Standing Data'!$D$15","v":{"$error":"#N/A"}},{"$f":"'Standing Data'!$F$15","v":0},{"$f":"'Standing Data'!$F$9","v":0},"Fin.Return","E175",{"$f":"Fin.Return!E178","v":0}]
[{"$f":"'Standing Data'!$D$15","v":{"$error":"#N/A"}},{"$f":"'Standing Data'!$F$15","v":0},{"$f":"'Standing Data'!$F$9","v":0},"Fin.Return","E176",{"$f":"Fin.Return!E179","v":0}]
[{"$f":"'Standing Data'!$D$15","v":{"$error":"#N/A"}},{"$f":"'Standing Data'!$F$15","v":0},{"$f":"'Standing Data'!$F$9","v":0},"Fin.Return","E177",{"$f":"Fin.Return!E180","v":0}]
[{"$f":"'Standing Data'!$D$15","v":{"$error":"#N/A"}},{"$f":"'Standing Data'!$F$15","v":0},{"$f":"'Standing Data'!$F$9","v":0},"Fin.Return","E178",{"$f":"Fin.Return!E181","v":0}]
[{"$f":"'Standing Data'!$D$15","v":{"$error":"#N/A"}},{"$f":"'Standing Data'!$F$15","v":0},{"$f":"'Standing Data'!$F$9","v":0},"Fin.Return","E179",{"$f":"Fin.Return!E182","v":0}]
[{"$f":"'Standing Data'!$D$15","v":{"$error":"#N/A"}},{"$f":"'Standing Data'!$F$15","v":0},{"$f":"'Standing Data'!$F$9","v":0},"Fin.Return","E182",{"$f":"Fin.Return!E185","v":0}]
[{"$f":"'Standing Data'!$D$15","v":{"$error":"#N/A"}},{"$f":"'Standing Data'!$F$15","v":0},{"$f":"'Standing Data'!$F$9","v":0},"Fin.Return","E183",{"$f":"Fin.Return!E186","v":0}]
[{"$f":"'Standing Data'!$D$15","v":{"$error":"#N/A"}},{"$f":"'Standing Data'!$F$15","v":0},{"$f":"'Standing Data'!$F$9","v":0},"Fin.Return","E184",{"$f":"Fin.Return!E187","v":0}]
[{"$f":"'Standing Data'!$D$15","v":{"$error":"#N/A"}},{"$f":"'Standing Data'!$F$15","v":0},{"$f":"'Standing Data'!$F$9","v":0},"Fin.Return","E185",{"$f":"Fin.Return!E188","v":0}]
[{"$f":"'Standing Data'!$D$15","v":{"$error":"#N/A"}},{"$f":"'Standing Data'!$F$15","v":0},{"$f":"'Standing Data'!$F$9","v":0},"Fin.Return","E186",{"$f":"Fin.Return!E189","v":0}]
[{"$f":"'Standing Data'!$D$15","v":{"$error":"#N/A"}},{"$f":"'Standing Data'!$F$15","v":0},{"$f":"'Standing Data'!$F$9","v":0},"Fin.Return","E187",{"$f":"Fin.Return!E190","v":0}]
[{"$f":"'Standing Data'!$D$15","v":{"$error":"#N/A"}},{"$f":"'Standing Data'!$F$15","v":0},{"$f":"'Standing Data'!$F$9","v":0},"Fin.Return","E188",{"$f":"Fin.Return!E191","v":0}]
[{"$f":"'Standing Data'!$D$15","v":{"$error":"#N/A"}},{"$f":"'Standing Data'!$F$15","v":0},{"$f":"'Standing Data'!$F$9","v":0},"Fin.Return","E189",{"$f":"Fin.Return!E192","v":0}]
[{"$f":"'Standing Data'!$D$15","v":{"$error":"#N/A"}},{"$f":"'Standing Data'!$F$15","v":0},{"$f":"'Standing Data'!$F$9","v":0},"Fin.Return","E191",{"$f":"Fin.Return!E194","v":0}]
[{"$f":"'Standing Data'!$D$15","v":{"$error":"#N/A"}},{"$f":"'Standing Data'!$F$15","v":0},{"$f":"'Standing Data'!$F$9","v":0},"Fin.Return","E193",{"$f":"Fin.Return!E196","v":0}]
[{"$f":"'Standing Data'!$D$15","v":{"$error":"#N/A"}},{"$f":"'Standing Data'!$F$15","v":0},{"$f":"'Standing Data'!$F$9","v":0},"Fin.Return","E194",{"$f":"Fin.Return!E197","v":0}]
[{"$f":"'Standing Data'!$D$15","v":{"$error":"#N/A"}},{"$f":"'Standing Data'!$F$15","v":0},{"$f":"'Standing Data'!$F$9","v":0},"Fin.Return","E195",{"$f":"Fin.Return!E198","v":0}]
[{"$f":"'Standing Data'!$D$15","v":{"$error":"#N/A"}},{"$f":"'Standing Data'!$F$15","v":0},{"$f":"'Standing Data'!$F$9","v":0},"Fin.Return","E196",{"$f":"Fin.Return!E199","v":0}]
[{"$f":"'Standing Data'!$D$15","v":{"$error":"#N/A"}},{"$f":"'Standing Data'!$F$15","v":0},{"$f":"'Standing Data'!$F$9","v":0},"Fin.Return","E197",{"$f":"Fin.Return!E200","v":0}]
[{"$f":"'Standing Data'!$D$15","v":{"$error":"#N/A"}},{"$f":"'Standing Data'!$F$15","v":0},{"$f":"'Standing Data'!$F$9","v":0},"Fin.Return","E198",{"$f":"Fin.Return!E201","v":0}]
[{"$f":"'Standing Data'!$D$15","v":{"$error":"#N/A"}},{"$f":"'Standing Data'!$F$15","v":0},{"$f":"'Standing Data'!$F$9","v":0},"Fin.Return","E200",{"$f":"Fin.Return!E203","v":0}]
[{"$f":"'Standing Data'!$D$15","v":{"$error":"#N/A"}},{"$f":"'Standing Data'!$F$15","v":0},{"$f":"'Standing Data'!$F$9","v":0},"Fin.Return","E202",{"$f":"Fin.Return!E205","v":0}]
[{"$f":"'Standing Data'!$D$15","v":{"$error":"#N/A"}},{"$f":"'Standing Data'!$F$15","v":0},{"$f":"'Standing Data'!$F$9","v":0},"Fin.Return","E203",{"$f":"Fin.Return!E206","v":0}]
[{"$f":"'Standing Data'!$D$15","v":{"$error":"#N/A"}},{"$f":"'Standing Data'!$F$15","v":0},{"$f":"'Standing Data'!$F$9","v":0},"Fin.Return","E204",{"$f":"Fin.Return!E207","v":0}]
[{"$f":"'Standing Data'!$D$15","v":{"$error":"#N/A"}},{"$f":"'Standing Data'!$F$15","v":0},{"$f":"'Standing Data'!$F$9","v":0},"Fin.Return","E205",{"$f":"Fin.Return!E208","v":0}]
[{"$f":"'Standing Data'!$D$15","v":{"$error":"#N/A"}},{"$f":"'Standing Data'!$F$15","v":0},{"$f":"'Standing Data'!$F$9","v":0},"Fin.Return","E206",{"$f":"Fin.Return!E209","v":0}]
[{"$f":"'Standing Data'!$D$15","v":{"$error":"#N/A"}},{"$f":"'Standing Data'!$F$15","v":0},{"$f":"'Standing Data'!$F$9","v":0},"Fin.Return","E207",{"$f":"Fin.Return!E210","v":0}]
[{"$f":"'Standing Data'!$D$15","v":{"$error":"#N/A"}},{"$f":"'Standing Data'!$F$15","v":0},{"$f":"'Standing Data'!$F$9","v":0},"Fin.Return","E209",{"$f":"Fin.Return!E212","v":0}]
[{"$f":"'Standing Data'!$D$15","v":{"$error":"#N/A"}},{"$f":"'Standing Data'!$F$15","v":0},{"$f":"'Standing Data'!$F$9","v":0},"Fin.Return","E211",{"$f":"Fin.Return!E221","v":0}]
[{"$f":"'Standing Data'!$D$15","v":{"$error":"#N/A"}},{"$f":"'Standing Data'!$F$15","v":0},{"$f":"'Standing Data'!$F$9","v":0},"Fin.Return","E212",{"$f":"Fin.Return!E222","v":0}]
[{"$f":"'Standing Data'!$D$15","v":{"$error":"#N/A"}},{"$f":"'Standing Data'!$F$15","v":0},{"$f":"'Standing Data'!$F$9","v":0},"Fin.Return","E214",{"$f":"Fin.Return!E224","v":0}]
[{"$f":"'Standing Data'!$D$15","v":{"$error":"#N/A"}},{"$f":"'Standing Data'!$F$15","v":0},{"$f":"'Standing Data'!$F$9","v":0},"Fin.Return","E216",{"$f":"Fin.Return!E226","v":0}]
[{"$f":"'Standing Data'!$D$15","v":{"$error":"#N/A"}},{"$f":"'Standing Data'!$F$15","v":0},{"$f":"'Standing Data'!$F$9","v":0},"Fin.Return","E217",{"$f":"Fin.Return!E227","v":0}]
[{"$f":"'Standing Data'!$D$15","v":{"$error":"#N/A"}},{"$f":"'Standing Data'!$F$15","v":0},{"$f":"'Standing Data'!$F$9","v":0},"Fin.Return","E218",{"$f":"Fin.Return!E229","v":0}]
[{"$f":"'Standing Data'!$D$15","v":{"$error":"#N/A"}},{"$f":"'Standing Data'!$F$15","v":0},{"$f":"'Standing Data'!$F$9","v":0},"Fin.Return","E220",{"$f":"Fin.Return!E231","v":0}]
[{"$f":"'Standing Data'!$D$15","v":{"$error":"#N/A"}},{"$f":"'Standing Data'!$F$15","v":0},{"$f":"'Standing Data'!$F$9","v":0},"Fin.Return","E222",{"$f":"Fin.Return!E233","v":0}]
[{"$f":"'Standing Data'!$D$15","v":{"$error":"#N/A"}},{"$f":"'Standing Data'!$F$15","v":0},{"$f":"'Standing Data'!$F$9","v":0},"Fin.Return","E228",{"$f":"Fin.Return!E239","v":0}]
[{"$f":"'Standing Data'!$D$15","v":{"$error":"#N/A"}},{"$f":"'Standing Data'!$F$15","v":0},{"$f":"'Standing Data'!$F$9","v":0},"Fin.Return","E229",{"$f":"Fin.Return!E240","v":0}]
[{"$f":"'Standing Data'!$D$15","v":{"$error":"#N/A"}},{"$f":"'Standing Data'!$F$15","v":0},{"$f":"'Standing Data'!$F$9","v":0},"Fin.Return","E231",{"$f":"Fin.Return!E242","v":0}]
[{"$f":"'Standing Data'!$D$15","v":{"$error":"#N/A"}},{"$f":"'Standing Data'!$F$15","v":0},{"$f":"'Standing Data'!$F$9","v":0},"Fin.Return","E232",{"$f":"Fin.Return!E243","v":0}]
[{"$f":"'Standing Data'!$D$15","v":{"$error":"#N/A"}},{"$f":"'Standing Data'!$F$15","v":0},{"$f":"'Standing Data'!$F$9","v":0},"Fin.Return","E234",{"$f":"Fin.Return!E245","v":0}]
[{"$f":"'Standing Data'!$D$15","v":{"$error":"#N/A"}},{"$f":"'Standing Data'!$F$15","v":0},{"$f":"'Standing Data'!$F$9","v":0},"Fin.Return","E235",{"$f":"Fin.Return!E246","v":0}]
[{"$f":"'Standing Data'!$D$15","v":{"$error":"#N/A"}},{"$f":"'Standing Data'!$F$15","v":0},{"$f":"'Standing Data'!$F$9","v":0},"Fin.Return","E236",{"$f":"Fin.Return!E247","v":0}]
[{"$f":"'Standing Data'!$D$15","v":{"$error":"#N/A"}},{"$f":"'Standing Data'!$F$15","v":0},{"$f":"'Standing Data'!$F$9","v":0},"Fin.Return","E238",{"$f":"Fin.Return!E249","v":0}]
[{"$f":"'Standing Data'!$D$15","v":{"$error":"#N/A"}},{"$f":"'Standing Data'!$F$15","v":0},{"$f":"'Standing Data'!$F$9","v":0},"Fin.Return","E242",{"$f":"Fin.Return!E253","v":0}]
[{"$f":"'Standing Data'!$D$15","v":{"$error":"#N/A"}},{"$f":"'Standing Data'!$F$15","v":0},{"$f":"'Standing Data'!$F$9","v":0},"Fin.Return","E243",{"$f":"Fin.Return!E254","v":0}]
[{"$f":"'Standing Data'!$D$15","v":{"$error":"#N/A"}},{"$f":"'Standing Data'!$F$15","v":0},{"$f":"'Standing Data'!$F$9","v":0},"Fin.Return","E244",{"$f":"Fin.Return!E255","v":0}]
[{"$f":"'Standing Data'!$D$15","v":{"$error":"#N/A"}},{"$f":"'Standing Data'!$F$15","v":0},{"$f":"'Standing Data'!$F$9","v":0},"Fin.Return","E245",{"$f":"Fin.Return!E256","v":0}]
[{"$f":"'Standing Data'!$D$15","v":{"$error":"#N/A"}},{"$f":"'Standing Data'!$F$15","v":0},{"$f":"'Standing Data'!$F$9","v":0},"Fin.Return","E246",{"$f":"Fin.Return!E257","v":0}]
[{"$f":"'Standing Data'!$D$15","v":{"$error":"#N/A"}},{"$f":"'Standing Data'!$F$15","v":0},{"$f":"'Standing Data'!$F$9","v":0},"Fin.Return","E248",{"$f":"Fin.Return!E259","v":0}]
[{"$f":"'Standing Data'!$D$15","v":{"$error":"#N/A"}},{"$f":"'Standing Data'!$F$15","v":0},{"$f":"'Standing Data'!$F$9","v":0},"Fin.Return","E249",{"$f":"Fin.Return!E260","v":0}]
[{"$f":"'Standing Data'!$D$15","v":{"$error":"#N/A"}},{"$f":"'Standing Data'!$F$15","v":0},{"$f":"'Standing Data'!$F$9","v":0},"Fin.Return","E250",{"$f":"Fin.Return!E261","v":0}]
[{"$f":"'Standing Data'!$D$15","v":{"$error":"#N/A"}},{"$f":"'Standing Data'!$F$15","v":0},{"$f":"'Standing Data'!$F$9","v":0},"Fin.Return","E251",{"$f":"Fin.Return!E262","v":0}]
[{"$f":"'Standing Data'!$D$15","v":{"$error":"#N/A"}},{"$f":"'Standing Data'!$F$15","v":0},{"$f":"'Standing Data'!$F$9","v":0},"Fin.Return","E252",{"$f":"Fin.Return!E263","v":0}]
[{"$f":"'Standing Data'!$D$15","v":{"$error":"#N/A"}},{"$f":"'Standing Data'!$F$15","v":0},{"$f":"'Standing Data'!$F$9","v":0},"Fin.Return","E257",{"$f":"Fin.Return!E268","v":0}]
[{"$f":"'Standing Data'!$D$15","v":{"$error":"#N/A"}},{"$f":"'Standing Data'!$F$15","v":0},{"$f":"'Standing Data'!$F$9","v":0},"Fin.Return","E258",{"$f":"Fin.Return!E269","v":0}]
[{"$f":"'Standing Data'!$D$15","v":{"$error":"#N/A"}},{"$f":"'Standing Data'!$F$15","v":0},{"$f":"'Standing Data'!$F$9","v":0},"Fin.Return","E259",{"$f":"Fin.Return!E270","v":0}]
[{"$f":"'Standing Data'!$D$15","v":{"$error":"#N/A"}},{"$f":"'Standing Data'!$F$15","v":0},{"$f":"'Standing Data'!$F$9","v":0},"Fin.Return","E260",{"$f":"Fin.Return!E271","v":0}]
[{"$f":"'Standing Data'!$D$15","v":{"$error":"#N/A"}},{"$f":"'Standing Data'!$F$15","v":0},{"$f":"'Standing Data'!$F$9","v":0},"Fin.Return","E261",{"$f":"Fin.Return!E272","v":0}]
[{"$f":"'Standing Data'!$D$15","v":{"$error":"#N/A"}},{"$f":"'Standing Data'!$F$15","v":0},{"$f":"'Standing Data'!$F$9","v":0},"Fin.Return","E262",{"$f":"Fin.Return!E273","v":0}]
[{"$f":"'Standing Data'!$D$15","v":{"$error":"#N/A"}},{"$f":"'Standing Data'!$F$15","v":0},{"$f":"'Standing Data'!$F$9","v":0},"Fin.Return","E264",{"$f":"Fin.Return!E275","v":0}]
[{"$f":"'Standing Data'!$D$15","v":{"$error":"#N/A"}},{"$f":"'Standing Data'!$F$15","v":0},{"$f":"'Standing Data'!$F$9","v":0},"Fin.Return","E270",{"$f":"Fin.Return!E281","v":0}]
[{"$f":"'Standing Data'!$D$15","v":{"$error":"#N/A"}},{"$f":"'Standing Data'!$F$15","v":0},{"$f":"'Standing Data'!$F$9","v":0},"Fin.Return","E271",{"$f":"Fin.Return!E282","v":0}]
[{"$f":"'Standing Data'!$D$15","v":{"$error":"#N/A"}},{"$f":"'Standing Data'!$F$15","v":0},{"$f":"'Standing Data'!$F$9","v":0},"Fin.Return","E272",{"$f":"Fin.Return!E283","v":0}]
[{"$f":"'Standing Data'!$D$15","v":{"$error":"#N/A"}},{"$f":"'Standing Data'!$F$15","v":0},{"$f":"'Standing Data'!$F$9","v":0},"Fin.Return","E273",{"$f":"Fin.Return!E284","v":0}]
[{"$f":"'Standing Data'!$D$15","v":{"$error":"#N/A"}},{"$f":"'Standing Data'!$F$15","v":0},{"$f":"'Standing Data'!$F$9","v":0},"Fin.Return","E274",{"$f":"Fin.Return!E285","v":0}]
[{"$f":"'Standing Data'!$D$15","v":{"$error":"#N/A"}},{"$f":"'Standing Data'!$F$15","v":0},{"$f":"'Standing Data'!$F$9","v":0},"Fin.Return","E275",{"$f":"Fin.Return!E286","v":0}]
[{"$f":"'Standing Data'!$D$15","v":{"$error":"#N/A"}},{"$f":"'Standing Data'!$F$15","v":0},{"$f":"'Standing Data'!$F$9","v":0},"Fin.Return","E276",{"$f":"Fin.Return!E287","v":0}]
[{"$f":"'Standing Data'!$D$15","v":{"$error":"#N/A"}},{"$f":"'Standing Data'!$F$15","v":0},{"$f":"'Standing Data'!$F$9","v":0},"Fin.Return","E277",{"$f":"Fin.Return!E289","v":0}]
[{"$f":"'Standing Data'!$D$15","v":{"$error":"#N/A"}},{"$f":"'Standing Data'!$F$15","v":0},{"$f":"'Standing Data'!$F$9","v":0},"Fin.Return","E278",{"$f":"Fin.Return!E290","v":0}]
[{"$f":"'Standing Data'!$D$15","v":{"$error":"#N/A"}},{"$f":"'Standing Data'!$F$15","v":0},{"$f":"'Standing Data'!$F$9","v":0},"Fin.Return","E279",{"$f":"Fin.Return!E291","v":0}]
[{"$f":"'Standing Data'!$D$15","v":{"$error":"#N/A"}},{"$f":"'Standing Data'!$F$15","v":0},{"$f":"'Standing Data'!$F$9","v":0},"Fin.Return","E280",{"$f":"Fin.Return!E292","v":0}]
[{"$f":"'Standing Data'!$D$15","v":{"$error":"#N/A"}},{"$f":"'Standing Data'!$F$15","v":0},{"$f":"'Standing Data'!$F$9","v":0},"Fin.Return","E282",{"$f":"Fin.Return!E294","v":0}]
[{"$f":"'Standing Data'!$D$15","v":{"$error":"#N/A"}},{"$f":"'Standing Data'!$F$15","v":0},{"$f":"'Standing Data'!$F$9","v":0},"Fin.Return","E284",{"$f":"Fin.Return!E296","v":0}]
[{"$f":"'Standing Data'!$D$15","v":{"$error":"#N/A"}},{"$f":"'Standing Data'!$F$15","v":0},{"$f":"'Standing Data'!$F$9","v":0},"Fin.Return","E285",{"$f":"Fin.Return!E298","v":0}]
[{"$f":"'Standing Data'!$D$15","v":{"$error":"#N/A"}},{"$f":"'Standing Data'!$F$15","v":0},{"$f":"'Standing Data'!$F$9","v":0},"Fin.Return","E286",{"$f":"Fin.Return!E299","v":0}]
[{"$f":"'Standing Data'!$D$15","v":{"$error":"#N/A"}},{"$f":"'Standing Data'!$F$15","v":0},{"$f":"'Standing Data'!$F$9","v":0},"Fin.Return","E287",{"$f":"Fin.Return!E300","v":0}]
[{"$f":"'Standing Data'!$D$15","v":{"$error":"#N/A"}},{"$f":"'Standing Data'!$F$15","v":0},{"$f":"'Standing Data'!$F$9","v":0},"Fin.Return","E288",{"$f":"Fin.Return!E301","v":0}]
[{"$f":"'Standing Data'!$D$15","v":{"$error":"#N/A"}},{"$f":"'Standing Data'!$F$15","v":0},{"$f":"'Standing Data'!$F$9","v":0},"Fin.Return","E289",{"$f":"Fin.Return!E302","v":0}]
[{"$f":"'Standing Data'!$D$15","v":{"$error":"#N/A"}},{"$f":"'Standing Data'!$F$15","v":0},{"$f":"'Standing Data'!$F$9","v":0},"Fin.Return","E290",{"$f":"Fin.Return!E303","v":0}]
[{"$f":"'Standing Data'!$D$15","v":{"$error":"#N/A"}},{"$f":"'Standing Data'!$F$15","v":0},{"$f":"'Standing Data'!$F$9","v":0},"Fin.Return","E291",{"$f":"Fin.Return!E304","v":0}]
[{"$f":"'Standing Data'!$D$15","v":{"$error":"#N/A"}},{"$f":"'Standing Data'!$F$15","v":0},{"$f":"'Standing Data'!$F$9","v":0},"Fin.Return","E292",{"$f":"Fin.Return!E305","v":0}]
[{"$f":"'Standing Data'!$D$15","v":{"$error":"#N/A"}},{"$f":"'Standing Data'!$F$15","v":0},{"$f":"'Standing Data'!$F$9","v":0},"Fin.Return","E293",{"$f":"Fin.Return!E306","v":0}]
[{"$f":"'Standing Data'!$D$15","v":{"$error":"#N/A"}},{"$f":"'Standing Data'!$F$15","v":0},{"$f":"'Standing Data'!$F$9","v":0},"Fin.Return","E294",{"$f":"Fin.Return!E307","v":0}]
[{"$f":"'Standing Data'!$D$15","v":{"$error":"#N/A"}},{"$f":"'Standing Data'!$F$15","v":0},{"$f":"'Standing Data'!$F$9","v":0},"Fin.Return","E295",{"$f":"Fin.Return!E308","v":0}]
[{"$f":"'Standing Data'!$D$15","v":{"$error":"#N/A"}},{"$f":"'Standing Data'!$F$15","v":0},{"$f":"'Standing Data'!$F$9","v":0},"Fin.Return","E296",{"$f":"Fin.Return!E309","v":0}]
[{"$f":"'Standing Data'!$D$15","v":{"$error":"#N/A"}},{"$f":"'Standing Data'!$F$15","v":0},{"$f":"'Standing Data'!$F$9","v":0},"Fin.Return","E297",{"$f":"Fin.Return!E310","v":0}]
[{"$f":"'Standing Data'!$D$15","v":{"$error":"#N/A"}},{"$f":"'Standing Data'!$F$15","v":0},{"$f":"'Standing Data'!$F$9","v":0},"Fin.Return","E298",{"$f":"Fin.Return!E311","v":0}]
[{"$f":"'Standing Data'!$D$15","v":{"$error":"#N/A"}},{"$f":"'Standing Data'!$F$15","v":0},{"$f":"'Standing Data'!$F$9","v":0},"Fin.Return","E299",{"$f":"Fin.Return!E312","v":0}]
[{"$f":"'Standing Data'!$D$15","v":{"$error":"#N/A"}},{"$f":"'Standing Data'!$F$15","v":0},{"$f":"'Standing Data'!$F$9","v":0},"Fin.Return","E300",{"$f":"Fin.Return!E313","v":0}]
[{"$f":"'Standing Data'!$D$15","v":{"$error":"#N/A"}},{"$f":"'Standing Data'!$F$15","v":0},{"$f":"'Standing Data'!$F$9","v":0},"Fin.Return","E301",{"$f":"Fin.Return!E314","v":0}]
[{"$f":"'Standing Data'!$D$15","v":{"$error":"#N/A"}},{"$f":"'Standing Data'!$F$15","v":0},{"$f":"'Standing Data'!$F$9","v":0},"Fin.Return","E302",{"$f":"Fin.Return!E315","v":0}]
[{"$f":"'Standing Data'!$D$15","v":{"$error":"#N/A"}},{"$f":"'Standing Data'!$F$15","v":0},{"$f":"'Standing Data'!$F$9","v":0},"Fin.Return","E303",{"$f":"Fin.Return!E317","v":0}]
[{"$f":"'Standing Data'!$D$15","v":{"$error":"#N/A"}},{"$f":"'Standing Data'!$F$15","v":0},{"$f":"'Standing Data'!$F$9","v":0},"Fin.Return","E304",{"$f":"Fin.Return!E318","v":0}]
[{"$f":"'Standing Data'!$D$15","v":{"$error":"#N/A"}},{"$f":"'Standing Data'!$F$15","v":0},{"$f":"'Standing Data'!$F$9","v":0},"Fin.Return","E305",{"$f":"Fin.Return!E319","v":0}]
[{"$f":"'Standing Data'!$D$15","v":{"$error":"#N/A"}},{"$f":"'Standing Data'!$F$15","v":0},{"$f":"'Standing Data'!$F$9","v":0},"Fin.Return","E306",{"$f":"Fin.Return!E320","v":0}]
[{"$f":"'Standing Data'!$D$15","v":{"$error":"#N/A"}},{"$f":"'Standing Data'!$F$15","v":0},{"$f":"'Standing Data'!$F$9","v":0},"Fin.Return","E307",{"$f":"Fin.Return!E321","v":0}]
[{"$f":"'Standing Data'!$D$15","v":{"$error":"#N/A"}},{"$f":"'Standing Data'!$F$15","v":0},{"$f":"'Standing Data'!$F$9","v":0},"Fin.Return","E308",{"$f":"Fin.Return!E322","v":0}]
[{"$f":"'Standing Data'!$D$15","v":{"$error":"#N/A"}},{"$f":"'Standing Data'!$F$15","v":0},{"$f":"'Standing Data'!$F$9","v":0},"Fin.Return","E309",{"$f":"Fin.Return!E323","v":0}]
[{"$f":"'Standing Data'!$D$15","v":{"$error":"#N/A"}},{"$f":"'Standing Data'!$F$15","v":0},{"$f":"'Standing Data'!$F$9","v":0},"Fin.Return","E311",{"$f":"Fin.Return!E325","v":0}]
[{"$f":"'Standing Data'!$D$15","v":{"$error":"#N/A"}},{"$f":"'Standing Data'!$F$15","v":0},{"$f":"'Standing Data'!$F$9","v":0},"Fin.Return","E313",{"$f":"Fin.Return!E327","v":0}]
[{"$f":"'Standing Data'!$D$15","v":{"$error":"#N/A"}},{"$f":"'Standing Data'!$F$15","v":0},{"$f":"'Standing Data'!$F$9","v":0},"Fin.Return","E318",{"$f":"Fin.Return!E332","v":0}]
[{"$f":"'Standing Data'!$D$15","v":{"$error":"#N/A"}},{"$f":"'Standing Data'!$F$15","v":0},{"$f":"'Standing Data'!$F$9","v":0},"Fin.Return","E319",{"$f":"Fin.Return!E333","v":0}]
[{"$f":"'Standing Data'!$D$15","v":{"$error":"#N/A"}},{"$f":"'Standing Data'!$F$15","v":0},{"$f":"'Standing Data'!$F$9","v":0},"Fin.Return","E320",{"$f":"Fin.Return!E334","v":0}]
[{"$f":"'Standing Data'!$D$15","v":{"$error":"#N/A"}},{"$f":"'Standing Data'!$F$15","v":0},{"$f":"'Standing Data'!$F$9","v":0},"Fin.Return","E321",{"$f":"Fin.Return!E335","v":0}]
[{"$f":"'Standing Data'!$D$15","v":{"$error":"#N/A"}},{"$f":"'Standing Data'!$F$15","v":0},{"$f":"'Standing Data'!$F$9","v":0},"Fin.Return","E323",{"$f":"Fin.Return!E337","v":0}]
[{"$f":"'Standing Data'!$D$15","v":{"$error":"#N/A"}},{"$f":"'Standing Data'!$F$15","v":0},{"$f":"'Standing Data'!$F$9","v":0},"Fin.Return","E324",{"$f":"Fin.Return!E338","v":0}]
[{"$f":"'Standing Data'!$D$15","v":{"$error":"#N/A"}},{"$f":"'Standing Data'!$F$15","v":0},{"$f":"'Standing Data'!$F$9","v":0},"Fin.Return","E325",{"$f":"Fin.Return!E339","v":0}]
[{"$f":"'Standing Data'!$D$15","v":{"$error":"#N/A"}},{"$f":"'Standing Data'!$F$15","v":0},{"$f":"'Standing Data'!$F$9","v":0},"Fin.Return","E326",{"$f":"Fin.Return!E340","v":0}]
[{"$f":"'Standing Data'!$D$15","v":{"$error":"#N/A"}},{"$f":"'Standing Data'!$F$15","v":0},{"$f":"'Standing Data'!$F$9","v":0},"Fin.Return","E327",{"$f":"Fin.Return!E341","v":0}]
[{"$f":"'Standing Data'!$D$15","v":{"$error":"#N/A"}},{"$f":"'Standing Data'!$F$15","v":0},{"$f":"'Standing Data'!$F$9","v":0},"Fin.Return","E328",{"$f":"Fin.Return!E342","v":0}]
[{"$f":"'Standing Data'!$D$15","v":{"$error":"#N/A"}},{"$f":"'Standing Data'!$F$15","v":0},{"$f":"'Standing Data'!$F$9","v":0},"Fin.Return","E330",{"$f":"Fin.Return!E344","v":0}]
[{"$f":"'Standing Data'!$D$15","v":{"$error":"#N/A"}},{"$f":"'Standing Data'!$F$15","v":0},{"$f":"'Standing Data'!$F$9","v":0},"Fin.Return","E331",{"$f":"Fin.Return!E345","v":0}]
[{"$f":"'Standing Data'!$D$15","v":{"$error":"#N/A"}},{"$f":"'Standing Data'!$F$15","v":0},{"$f":"'Standing Data'!$F$9","v":0},"Fin.Return","E332",{"$f":"Fin.Return!E346","v":0}]
[{"$f":"'Standing Data'!$D$15","v":{"$error":"#N/A"}},{"$f":"'Standing Data'!$F$15","v":0},{"$f":"'Standing Data'!$F$9","v":0},"Fin.Return","E334",{"$f":"Fin.Return!E348","v":0}]
[{"$f":"'Standing Data'!$D$15","v":{"$error":"#N/A"}},{"$f":"'Standing Data'!$F$15","v":0},{"$f":"'Standing Data'!$F$9","v":0},"Fin.Return","E340",{"$f":"Fin.Return!E354","v":0}]
[{"$f":"'Standing Data'!$D$15","v":{"$error":"#N/A"}},{"$f":"'Standing Data'!$F$15","v":0},{"$f":"'Standing Data'!$F$9","v":0},"Fin.Return","E341",{"$f":"Fin.Return!E355","v":0}]
[{"$f":"'Standing Data'!$D$15","v":{"$error":"#N/A"}},{"$f":"'Standing Data'!$F$15","v":0},{"$f":"'Standing Data'!$F$9","v":0},"Fin.Return","E342",{"$f":"Fin.Return!E356","v":0}]
[{"$f":"'Standing Data'!$D$15","v":{"$error":"#N/A"}},{"$f":"'Standing Data'!$F$15","v":0},{"$f":"'Standing Data'!$F$9","v":0},"Fin.Return","E344",{"$f":"Fin.Return!E358","v":0}]
[{"$f":"'Standing Data'!$D$15","v":{"$error":"#N/A"}},{"$f":"'Standing Data'!$F$15","v":0},{"$f":"'Standing Data'!$F$9","v":0},"Fin.Return","E345",{"$f":"Fin.Return!E359","v":0}]
[{"$f":"'Standing Data'!$D$15","v":{"$error":"#N/A"}},{"$f":"'Standing Data'!$F$15","v":0},{"$f":"'Standing Data'!$F$9","v":0},"Fin.Return","E346",{"$f":"Fin.Return!E360","v":0}]
[{"$f":"'Standing Data'!$D$15","v":{"$error":"#N/A"}},{"$f":"'Standing Data'!$F$15","v":0},{"$f":"'Standing Data'!$F$9","v":0},"Fin.Return","E347",{"$f":"Fin.Return!E361","v":0}]
[{"$f":"'Standing Data'!$D$15","v":{"$error":"#N/A"}},{"$f":"'Standing Data'!$F$15","v":0},{"$f":"'Standing Data'!$F$9","v":0},"Fin.Return","E349",{"$f":"Fin.Return!E363","v":0}]
[{"$f":"'Standing Data'!$D$15","v":{"$error":"#N/A"}},{"$f":"'Standing Data'!$F$15","v":0},{"$f":"'Standing Data'!$F$9","v":0},"Fin.Return","E350",{"$f":"Fin.Return!E364","v":0}]
[{"$f":"'Standing Data'!$D$15","v":{"$error":"#N/A"}},{"$f":"'Standing Data'!$F$15","v":0},{"$f":"'Standing Data'!$F$9","v":0},"Fin.Return","E352",{"$f":"Fin.Return!E366","v":0}]
[{"$f":"'Standing Data'!$D$15","v":{"$error":"#N/A"}},{"$f":"'Standing Data'!$F$15","v":0},{"$f":"'Standing Data'!$F$9","v":0},"Fin.Return","E357",{"$f":"Fin.Return!E371","v":0}]
[{"$f":"'Standing Data'!$D$15","v":{"$error":"#N/A"}},{"$f":"'Standing Data'!$F$15","v":0},{"$f":"'Standing Data'!$F$9","v":0},"Fin.Return","E358",{"$f":"Fin.Return!E372","v":0}]
[{"$f":"'Standing Data'!$D$15","v":{"$error":"#N/A"}},{"$f":"'Standing Data'!$F$15","v":0},{"$f":"'Standing Data'!$F$9","v":0},"Fin.Return","E359",{"$f":"Fin.Return!E373","v":0}]
[{"$f":"'Standing Data'!$D$15","v":{"$error":"#N/A"}},{"$f":"'Standing Data'!$F$15","v":0},{"$f":"'Standing Data'!$F$9","v":0},"Fin.Return","E361",{"$f":"Fin.Return!E375","v":0}]
[{"$f":"'Standing Data'!$D$15","v":{"$error":"#N/A"}},{"$f":"'Standing Data'!$F$15","v":0},{"$f":"'Standing Data'!$F$9","v":0},"Fin.Return","E366",{"$f":"Fin.Return!E380","v":0}]
[{"$f":"'Standing Data'!$D$15","v":{"$error":"#N/A"}},{"$f":"'Standing Data'!$F$15","v":0},{"$f":"'Standing Data'!$F$9","v":0},"Fin.Return","E367",{"$f":"Fin.Return!E381","v":0}]
[{"$f":"'Standing Data'!$D$15","v":{"$error":"#N/A"}},{"$f":"'Standing Data'!$F$15","v":0},{"$f":"'Standing Data'!$F$9","v":0},"Fin.Return","E368",{"$f":"Fin.Return!E382","v":0}]
[{"$f":"'Standing Data'!$D$15","v":{"$error":"#N/A"}},{"$f":"'Standing Data'!$F$15","v":0},{"$f":"'Standing Data'!$F$9","v":0},"Fin.Return","E369",{"$f":"Fin.Return!E383","v":0}]
[{"$f":"'Standing Data'!$D$15","v":{"$error":"#N/A"}},{"$f":"'Standing Data'!$F$15","v":0},{"$f":"'Standing Data'!$F$9","v":0},"Fin.Return","E370",{"$f":"Fin.Return!E384","v":0}]
[{"$f":"'Standing Data'!$D$15","v":{"$error":"#N/A"}},{"$f":"'Standing Data'!$F$15","v":0},{"$f":"'Standing Data'!$F$9","v":0},"Fin.Return","E371",{"$f":"Fin.Return!E385","v":0}]
[{"$f":"'Standing Data'!$D$15","v":{"$error":"#N/A"}},{"$f":"'Standing Data'!$F$15","v":0},{"$f":"'Standing Data'!$F$9","v":0},"Fin.Return","E372",{"$f":"Fin.Return!E386","v":0}]
[{"$f":"'Standing Data'!$D$15","v":{"$error":"#N/A"}},{"$f":"'Standing Data'!$F$15","v":0},{"$f":"'Standing Data'!$F$9","v":0},"Fin.Return","E373",{"$f":"Fin.Return!E387","v":0}]
[{"$f":"'Standing Data'!$D$15","v":{"$error":"#N/A"}},{"$f":"'Standing Data'!$F$15","v":0},{"$f":"'Standing Data'!$F$9","v":0},"Fin.Return","E374",{"$f":"Fin.Return!E388","v":0}]
[{"$f":"'Standing Data'!$D$15","v":{"$error":"#N/A"}},{"$f":"'Standing Data'!$F$15","v":0},{"$f":"'Standing Data'!$F$9","v":0},"Fin.Return","E375",{"$f":"Fin.Return!E389","v":0}]
[{"$f":"'Standing Data'!$D$15","v":{"$error":"#N/A"}},{"$f":"'Standing Data'!$F$15","v":0},{"$f":"'Standing Data'!$F$9","v":0},"Fin.Return","E376",{"$f":"Fin.Return!E390","v":0}]
[{"$f":"'Standing Data'!$D$15","v":{"$error":"#N/A"}},{"$f":"'Standing Data'!$F$15","v":0},{"$f":"'Standing Data'!$F$9","v":0},"Fin.Return","E377",{"$f":"Fin.Return!E391","v":0}]
[{"$f":"'Standing Data'!$D$15","v":{"$error":"#N/A"}},{"$f":"'Standing Data'!$F$15","v":0},{"$f":"'Standing Data'!$F$9","v":0},"Fin.Return","E378",{"$f":"Fin.Return!E392","v":0}]
[{"$f":"'Standing Data'!$D$15","v":{"$error":"#N/A"}},{"$f":"'Standing Data'!$F$15","v":0},{"$f":"'Standing Data'!$F$9","v":0},"Fin.Return","E379",{"$f":"Fin.Return!E393","v":0}]
[{"$f":"'Standing Data'!$D$15","v":{"$error":"#N/A"}},{"$f":"'Standing Data'!$F$15","v":0},{"$f":"'Standing Data'!$F$9","v":0},"Fin.Return","E380",{"$f":"Fin.Return!E394","v":0}]
[{"$f":"'Standing Data'!$D$15","v":{"$error":"#N/A"}},{"$f":"'Standing Data'!$F$15","v":0},{"$f":"'Standing Data'!$F$9","v":0},"Fin.Return","E381",{"$f":"Fin.Return!E395","v":0}]
[{"$f":"'Standing Data'!$D$15","v":{"$error":"#N/A"}},{"$f":"'Standing Data'!$F$15","v":0},{"$f":"'Standing Data'!$F$9","v":0},"Fin.Return","E382",{"$f":"Fin.Return!E396","v":0}]
[{"$f":"'Standing Data'!$D$15","v":{"$error":"#N/A"}},{"$f":"'Standing Data'!$F$15","v":0},{"$f":"'Standing Data'!$F$9","v":0},"Fin.Return","E383",{"$f":"Fin.Return!E397","v":0}]
[{"$f":"'Standing Data'!$D$15","v":{"$error":"#N/A"}},{"$f":"'Standing Data'!$F$15","v":0},{"$f":"'Standing Data'!$F$9","v":0},"Fin.Return","E384",{"$f":"Fin.Return!E398","v":0}]
[{"$f":"'Standing Data'!$D$15","v":{"$error":"#N/A"}},{"$f":"'Standing Data'!$F$15","v":0},{"$f":"'Standing Data'!$F$9","v":0},"Fin.Return","E385",{"$f":"Fin.Return!E399","v":0}]
[{"$f":"'Standing Data'!$D$15","v":{"$error":"#N/A"}},{"$f":"'Standing Data'!$F$15","v":0},{"$f":"'Standing Data'!$F$9","v":0},"Fin.Return","E386",{"$f":"Fin.Return!E400","v":0}]
[{"$f":"'Standing Data'!$D$15","v":{"$error":"#N/A"}},{"$f":"'Standing Data'!$F$15","v":0},{"$f":"'Standing Data'!$F$9","v":0},"Fin.Return","E387",{"$f":"Fin.Return!E401","v":0}]
[{"$f":"'Standing Data'!$D$15","v":{"$error":"#N/A"}},{"$f":"'Standing Data'!$F$15","v":0},{"$f":"'Standing Data'!$F$9","v":0},"Fin.Return","E388",{"$f":"Fin.Return!E402","v":0}]
[{"$f":"'Standing Data'!$D$15","v":{"$error":"#N/A"}},{"$f":"'Standing Data'!$F$15","v":0},{"$f":"'Standing Data'!$F$9","v":0},"Fin.Return","E389",{"$f":"Fin.Return!E403","v":0}]
[{"$f":"'Standing Data'!$D$15","v":{"$error":"#N/A"}},{"$f":"'Standing Data'!$F$15","v":0},{"$f":"'Standing Data'!$F$9","v":0},"Fin.Return","E390",{"$f":"Fin.Return!E404","v":0}]
[{"$f":"'Standing Data'!$D$15","v":{"$error":"#N/A"}},{"$f":"'Standing Data'!$F$15","v":0},{"$f":"'Standing Data'!$F$9","v":0},"Fin.Return","E391",{"$f":"Fin.Return!E405","v":0}]
[{"$f":"'Standing Data'!$D$15","v":{"$error":"#N/A"}},{"$f":"'Standing Data'!$F$15","v":0},{"$f":"'Standing Data'!$F$9","v":0},"Fin.Return","E392",{"$f":"Fin.Return!E406","v":0}]
[{"$f":"'Standing Data'!$D$15","v":{"$error":"#N/A"}},{"$f":"'Standing Data'!$F$15","v":0},{"$f":"'Standing Data'!$F$9","v":0},"Fin.Return","E393",{"$f":"Fin.Return!E407","v":0}]
[{"$f":"'Standing Data'!$D$15","v":{"$error":"#N/A"}},{"$f":"'Standing Data'!$F$15","v":0},{"$f":"'Standing Data'!$F$9","v":0},"Fin.Return","E394",{"$f":"Fin.Return!E408","v":0}]
[{"$f":"'Standing Data'!$D$15","v":{"$error":"#N/A"}},{"$f":"'Standing Data'!$F$15","v":0},{"$f":"'Standing Data'!$F$9","v":0},"Fin.Return","E395",{"$f":"Fin.Return!E409","v":0}]
[{"$f":"'Standing Data'!$D$15","v":{"$error":"#N/A"}},{"$f":"'Standing Data'!$F$15","v":0},{"$f":"'Standing Data'!$F$9","v":0},"Fin.Return","E400",{"$f":"Fin.Return!E414","v":0}]
[{"$f":"'Standing Data'!$D$15","v":{"$error":"#N/A"}},{"$f":"'Standing Data'!$F$15","v":0},{"$f":"'Standing Data'!$F$9","v":0},"Fin.Return","E423",{"$f":"Fin.Return!E437","v":0}]
[{"$f":"'Standing Data'!$D$15","v":{"$error":"#N/A"}},{"$f":"'Standing Data'!$F$15","v":0},{"$f":"'Standing Data'!$F$9","v":0},"Fin.Return","E424",{"$f":"Fin.Return!E438","v":0}]
[{"$f":"'Standing Data'!$D$15","v":{"$error":"#N/A"}},{"$f":"'Standing Data'!$F$15","v":0},{"$f":"'Standing Data'!$F$9","v":0},"Fin.Return","E425",{"$f":"Fin.Return!E439","v":0}]
[{"$f":"'Standing Data'!$D$15","v":{"$error":"#N/A"}},{"$f":"'Standing Data'!$F$15","v":0},{"$f":"'Standing Data'!$F$9","v":0},"Fin.Return","E426",{"$f":"Fin.Return!E440","v":0}]
[{"$f":"'Standing Data'!$D$15","v":{"$error":"#N/A"}},{"$f":"'Standing Data'!$F$15","v":0},{"$f":"'Standing Data'!$F$9","v":0},"Fin.Return","E427",{"$f":"Fin.Return!E441","v":0}]
[{"$f":"'Standing Data'!$D$15","v":{"$error":"#N/A"}},{"$f":"'Standing Data'!$F$15","v":0},{"$f":"'Standing Data'!$F$9","v":0},"Fin.Return","E429",{"$f":"Fin.Return!E443","v":0}]
[{"$f":"'Standing Data'!$D$15","v":{"$error":"#N/A"}},{"$f":"'Standing Data'!$F$15","v":0},{"$f":"'Standing Data'!$F$9","v":0},"Fin.Return","E431",{"$f":"Fin.Return!E445","v":0}]
[{"$f":"'Standing Data'!$D$15","v":{"$error":"#N/A"}},{"$f":"'Standing Data'!$F$15","v":0},{"$f":"'Standing Data'!$F$9","v":0},"Fin.Return","E432",{"$f":"Fin.Return!E446","v":0}]
[{"$f":"'Standing Data'!$D$15","v":{"$error":"#N/A"}},{"$f":"'Standing Data'!$F$15","v":0},{"$f":"'Standing Data'!$F$9","v":0},"Fin.Return","E433",{"$f":"Fin.Return!E447","v":0}]
[{"$f":"'Standing Data'!$D$15","v":{"$error":"#N/A"}},{"$f":"'Standing Data'!$F$15","v":0},{"$f":"'Standing Data'!$F$9","v":0},"Fin.Return","E434",{"$f":"Fin.Return!E448","v":0}]
[{"$f":"'Standing Data'!$D$15","v":{"$error":"#N/A"}},{"$f":"'Standing Data'!$F$15","v":0},{"$f":"'Standing Data'!$F$9","v":0},"Fin.Return","E435",{"$f":"Fin.Return!E449","v":0}]
[{"$f":"'Standing Data'!$D$15","v":{"$error":"#N/A"}},{"$f":"'Standing Data'!$F$15","v":0},{"$f":"'Standing Data'!$F$9","v":0},"Fin.Return","E436",{"$f":"Fin.Return!E450","v":0}]
[{"$f":"'Standing Data'!$D$15","v":{"$error":"#N/A"}},{"$f":"'Standing Data'!$F$15","v":0},{"$f":"'Standing Data'!$F$9","v":0},"Fin.Return","E437",{"$f":"Fin.Return!E451","v":0}]
[{"$f":"'Standing Data'!$D$15","v":{"$error":"#N/A"}},{"$f":"'Standing Data'!$F$15","v":0},{"$f":"'Standing Data'!$F$9","v":0},"Fin.Return","E438",{"$f":"Fin.Return!E452","v":0}]
[{"$f":"'Standing Data'!$D$15","v":{"$error":"#N/A"}},{"$f":"'Standing Data'!$F$15","v":0},{"$f":"'Standing Data'!$F$9","v":0},"Fin.Return","E439",{"$f":"Fin.Return!E453","v":0}]
[{"$f":"'Standing Data'!$D$15","v":{"$error":"#N/A"}},{"$f":"'Standing Data'!$F$15","v":0},{"$f":"'Standing Data'!$F$9","v":0},"Fin.Return","E440",{"$f":"Fin.Return!E454","v":0}]
[{"$f":"'Standing Data'!$D$15","v":{"$error":"#N/A"}},{"$f":"'Standing Data'!$F$15","v":0},{"$f":"'Standing Data'!$F$9","v":0},"Fin.Return","E441",{"$f":"Fin.Return!E455","v":0}]
[{"$f":"'Standing Data'!$D$15","v":{"$error":"#N/A"}},{"$f":"'Standing Data'!$F$15","v":0},{"$f":"'Standing Data'!$F$9","v":0},"Fin.Return","E442",{"$f":"Fin.Return!E456","v":0}]
[{"$f":"'Standing Data'!$D$15","v":{"$error":"#N/A"}},{"$f":"'Standing Data'!$F$15","v":0},{"$f":"'Standing Data'!$F$9","v":0},"Fin.Return","E443",{"$f":"Fin.Return!E457","v":0}]
[{"$f":"'Standing Data'!$D$15","v":{"$error":"#N/A"}},{"$f":"'Standing Data'!$F$15","v":0},{"$f":"'Standing Data'!$F$9","v":0},"Fin.Return","E444",{"$f":"Fin.Return!E458","v":0}]
[{"$f":"'Standing Data'!$D$15","v":{"$error":"#N/A"}},{"$f":"'Standing Data'!$F$15","v":0},{"$f":"'Standing Data'!$F$9","v":0},"Fin.Return","E445",{"$f":"Fin.Return!E459","v":0}]
[{"$f":"'Standing Data'!$D$15","v":{"$error":"#N/A"}},{"$f":"'Standing Data'!$F$15","v":0},{"$f":"'Standing Data'!$F$9","v":0},"Fin.Return","E446",{"$f":"Fin.Return!E460","v":0}]
[{"$f":"'Standing Data'!$D$15","v":{"$error":"#N/A"}},{"$f":"'Standing Data'!$F$15","v":0},{"$f":"'Standing Data'!$F$9","v":0},"Fin.Return","E447",{"$f":"Fin.Return!E461","v":0}]
[{"$f":"'Standing Data'!$D$15","v":{"$error":"#N/A"}},{"$f":"'Standing Data'!$F$15","v":0},{"$f":"'Standing Data'!$F$9","v":0},"Fin.Return","E449",{"$f":"Fin.Return!E463","v":0}]
[{"$f":"'Standing Data'!$D$15","v":{"$error":"#N/A"}},{"$f":"'Standing Data'!$F$15","v":0},{"$f":"'Standing Data'!$F$9","v":0},"Fin.Return","E451",{"$f":"Fin.Return!E465","v":0}]
[{"$f":"'Standing Data'!$D$15","v":{"$error":"#N/A"}},{"$f":"'Standing Data'!$F$15","v":0},{"$f":"'Standing Data'!$F$9","v":0},"Fin.Return","E452",{"$f":"Fin.Return!E466","v":0}]
[{"$f":"'Standing Data'!$D$15","v":{"$error":"#N/A"}},{"$f":"'Standing Data'!$F$15","v":0},{"$f":"'Standing Data'!$F$9","v":0},"Fin.Return","E454",{"$f":"Fin.Return!E468","v":0}]
[{"$f":"'Standing Data'!$D$15","v":{"$error":"#N/A"}},{"$f":"'Standing Data'!$F$15","v":0},{"$f":"'Standing Data'!$F$9","v":0},"Fin.Return","E468",{"$f":"Fin.Return!E482","v":0}]
[{"$f":"'Standing Data'!$D$15","v":{"$error":"#N/A"}},{"$f":"'Standing Data'!$F$15","v":0},{"$f":"'Standing Data'!$F$9","v":0},"Fin.Return","E469",{"$f":"Fin.Return!E483","v":0}]
[{"$f":"'Standing Data'!$D$15","v":{"$error":"#N/A"}},{"$f":"'Standing Data'!$F$15","v":0},{"$f":"'Standing Data'!$F$9","v":0},"Fin.Return","E470",{"$f":"Fin.Return!E484","v":0}]
[{"$f":"'Standing Data'!$D$15","v":{"$error":"#N/A"}},{"$f":"'Standing Data'!$F$15","v":0},{"$f":"'Standing Data'!$F$9","v":0},"Fin.Return","E471",{"$f":"Fin.Return!E485","v":0}]
[{"$f":"'Standing Data'!$D$15","v":{"$error":"#N/A"}},{"$f":"'Standing Data'!$F$15","v":0},{"$f":"'Standing Data'!$F$9","v":0},"Fin.Return","E472",{"$f":"Fin.Return!E486","v":0}]
[{"$f":"'Standing Data'!$D$15","v":{"$error":"#N/A"}},{"$f":"'Standing Data'!$F$15","v":0},{"$f":"'Standing Data'!$F$9","v":0},"Fin.Return","E473",{"$f":"Fin.Return!E487","v":0}]
[{"$f":"'Standing Data'!$D$15","v":{"$error":"#N/A"}},{"$f":"'Standing Data'!$F$15","v":0},{"$f":"'Standing Data'!$F$9","v":0},"Fin.Return","E474",{"$f":"Fin.Return!E488","v":0}]
[{"$f":"'Standing Data'!$D$15","v":{"$error":"#N/A"}},{"$f":"'Standing Data'!$F$15","v":0},{"$f":"'Standing Data'!$F$9","v":0},"Fin.Return","E475",{"$f":"Fin.Return!E489","v":0}]
[{"$f":"'Standing Data'!$D$15","v":{"$error":"#N/A"}},{"$f":"'Standing Data'!$F$15","v":0},{"$f":"'Standing Data'!$F$9","v":0},"Fin.Return","E477",{"$f":"Fin.Return!E491","v":0}]
[{"$f":"'Standing Data'!$D$15","v":{"$error":"#N/A"}},{"$f":"'Standing Data'!$F$15","v":0},{"$f":"'Standing Data'!$F$9","v":0},"Fin.Return","E480",{"$f":"Fin.Return!E494","v":0}]
[{"$f":"'Standing Data'!$D$15","v":{"$error":"#N/A"}},{"$f":"'Standing Data'!$F$15","v":0},{"$f":"'Standing Data'!$F$9","v":0},"Fin.Return","E481",{"$f":"Fin.Return!E495","v":0}]
[{"$f":"'Standing Data'!$D$15","v":{"$error":"#N/A"}},{"$f":"'Standing Data'!$F$15","v":0},{"$f":"'Standing Data'!$F$9","v":0},"Fin.Return","E482",{"$f":"Fin.Return!E496","v":0}]
[{"$f":"'Standing Data'!$D$15","v":{"$error":"#N/A"}},{"$f":"'Standing Data'!$F$15","v":0},{"$f":"'Standing Data'!$F$9","v":0},"Fin.Return","E483",{"$f":"Fin.Return!E497","v":0}]
[{"$f":"'Standing Data'!$D$15","v":{"$error":"#N/A"}},{"$f":"'Standing Data'!$F$15","v":0},{"$f":"'Standing Data'!$F$9","v":0},"Fin.Return","E484",{"$f":"Fin.Return!E498","v":0}]
[{"$f":"'Standing Data'!$D$15","v":{"$error":"#N/A"}},{"$f":"'Standing Data'!$F$15","v":0},{"$f":"'Standing Data'!$F$9","v":0},"Fin.Return","E486",{"$f":"Fin.Return!E500","v":0}]
[{"$f":"'Standing Data'!$D$15","v":{"$error":"#N/A"}},{"$f":"'Standing Data'!$F$15","v":0},{"$f":"'Standing Data'!$F$9","v":0},"Fin.Return","E489",{"$f":"Fin.Return!E503","v":0}]
[{"$f":"'Standing Data'!$D$15","v":{"$error":"#N/A"}},{"$f":"'Standing Data'!$F$15","v":0},{"$f":"'Standing Data'!$F$9","v":0},"Fin.Return","E490",{"$f":"Fin.Return!E504","v":0}]
[{"$f":"'Standing Data'!$D$15","v":{"$error":"#N/A"}},{"$f":"'Standing Data'!$F$15","v":0},{"$f":"'Standing Data'!$F$9","v":0},"Fin.Return","E491",{"$f":"Fin.Return!E505","v":0}]
[{"$f":"'Standing Data'!$D$15","v":{"$error":"#N/A"}},{"$f":"'Standing Data'!$F$15","v":0},{"$f":"'Standing Data'!$F$9","v":0},"Fin.Return","E493",{"$f":"Fin.Return!E507","v":0}]
[{"$f":"'Standing Data'!$D$15","v":{"$error":"#N/A"}},{"$f":"'Standing Data'!$F$15","v":0},{"$f":"'Standing Data'!$F$9","v":0},"Fin.Return","E496",{"$f":"Fin.Return!E510","v":0}]
[{"$f":"'Standing Data'!$D$15","v":{"$error":"#N/A"}},{"$f":"'Standing Data'!$F$15","v":0},{"$f":"'Standing Data'!$F$9","v":0},"Fin.Return","E499",{"$f":"Fin.Return!E513","v":0}]
[{"$f":"'Standing Data'!$D$15","v":{"$error":"#N/A"}},{"$f":"'Standing Data'!$F$15","v":0},{"$f":"'Standing Data'!$F$9","v":0},"Fin.Return","E514",{"$f":"Fin.Return!E528","v":0}]
[{"$f":"'Standing Data'!$D$15","v":{"$error":"#N/A"}},{"$f":"'Standing Data'!$F$15","v":0},{"$f":"'Standing Data'!$F$9","v":0},"Fin.Return","E515",{"$f":"Fin.Return!E529","v":0}]
[{"$f":"'Standing Data'!$D$15","v":{"$error":"#N/A"}},{"$f":"'Standing Data'!$F$15","v":0},{"$f":"'Standing Data'!$F$9","v":0},"Fin.Return","E517",{"$f":"Fin.Return!E531","v":0}]
[{"$f":"'Standing Data'!$D$15","v":{"$error":"#N/A"}},{"$f":"'Standing Data'!$F$15","v":0},{"$f":"'Standing Data'!$F$9","v":0},"Fin.Return","E519",{"$f":"Fin.Return!E533","v":0}]
[{"$f":"'Standing Data'!$D$15","v":{"$error":"#N/A"}},{"$f":"'Standing Data'!$F$15","v":0},{"$f":"'Standing Data'!$F$9","v":0},"Fin.Return","E525",{"$f":"Fin.Return!E539","v":0}]
[{"$f":"'Standing Data'!$D$15","v":{"$error":"#N/A"}},{"$f":"'Standing Data'!$F$15","v":0},{"$f":"'Standing Data'!$F$9","v":0},"Fin.Return","E526",{"$f":"Fin.Return!E540","v":0}]
[{"$f":"'Standing Data'!$D$15","v":{"$error":"#N/A"}},{"$f":"'Standing Data'!$F$15","v":0},{"$f":"'Standing Data'!$F$9","v":0},"Fin.Return","E527",{"$f":"Fin.Return!E541","v":0}]
[{"$f":"'Standing Data'!$D$15","v":{"$error":"#N/A"}},{"$f":"'Standing Data'!$F$15","v":0},{"$f":"'Standing Data'!$F$9","v":0},"Fin.Return","E528",{"$f":"Fin.Return!E542","v":0}]
[{"$f":"'Standing Data'!$D$15","v":{"$error":"#N/A"}},{"$f":"'Standing Data'!$F$15","v":0},{"$f":"'Standing Data'!$F$9","v":0},"Fin.Return","E529",{"$f":"Fin.Return!E543","v":0}]
[{"$f":"'Standing Data'!$D$15","v":{"$error":"#N/A"}},{"$f":"'Standing Data'!$F$15","v":0},{"$f":"'Standing Data'!$F$9","v":0},"Fin.Return","E530",{"$f":"Fin.Return!E544","v":0}]
[{"$f":"'Standing Data'!$D$15","v":{"$error":"#N/A"}},{"$f":"'Standing Data'!$F$15","v":0},{"$f":"'Standing Data'!$F$9","v":0},"Fin.Return","E531",{"$f":"Fin.Return!E545","v":0}]
[{"$f":"'Standing Data'!$D$15","v":{"$error":"#N/A"}},{"$f":"'Standing Data'!$F$15","v":0},{"$f":"'Standing Data'!$F$9","v":0},"Fin.Return","E533",{"$f":"Fin.Return!E547","v":0}]
[{"$f":"'Standing Data'!$D$15","v":{"$error":"#N/A"}},{"$f":"'Standing Data'!$F$15","v":0},{"$f":"'Standing Data'!$F$9","v":0},"Fin.Return","E536",{"$f":"Fin.Return!E550","v":0}]
[{"$f":"'Standing Data'!$D$15","v":{"$error":"#N/A"}},{"$f":"'Standing Data'!$F$15","v":0},{"$f":"'Standing Data'!$F$9","v":0},"Fin.Return","E537",{"$f":"Fin.Return!E551","v":0}]
[{"$f":"'Standing Data'!$D$15","v":{"$error":"#N/A"}},{"$f":"'Standing Data'!$F$15","v":0},{"$f":"'Standing Data'!$F$9","v":0},"Fin.Return","E538",{"$f":"Fin.Return!E552","v":0}]
[{"$f":"'Standing Data'!$D$15","v":{"$error":"#N/A"}},{"$f":"'Standing Data'!$F$15","v":0},{"$f":"'Standing Data'!$F$9","v":0},"Fin.Return","E539",{"$f":"Fin.Return!E553","v":0}]
[{"$f":"'Standing Data'!$D$15","v":{"$error":"#N/A"}},{"$f":"'Standing Data'!$F$15","v":0},{"$f":"'Standing Data'!$F$9","v":0},"Fin.Return","E540",{"$f":"Fin.Return!E554","v":0}]
[{"$f":"'Standing Data'!$D$15","v":{"$error":"#N/A"}},{"$f":"'Standing Data'!$F$15","v":0},{"$f":"'Standing Data'!$F$9","v":0},"Fin.Return","E542",{"$f":"Fin.Return!E556","v":0}]
[{"$f":"'Standing Data'!$D$15","v":{"$error":"#N/A"}},{"$f":"'Standing Data'!$F$15","v":0},{"$f":"'Standing Data'!$F$9","v":0},"Fin.Return","E545",{"$f":"Fin.Return!E559","v":0}]
[{"$f":"'Standing Data'!$D$15","v":{"$error":"#N/A"}},{"$f":"'Standing Data'!$F$15","v":0},{"$f":"'Standing Data'!$F$9","v":0},"Fin.Return","E546",{"$f":"Fin.Return!E560","v":0}]
[{"$f":"'Standing Data'!$D$15","v":{"$error":"#N/A"}},{"$f":"'Standing Data'!$F$15","v":0},{"$f":"'Standing Data'!$F$9","v":0},"Fin.Return","E547",{"$f":"Fin.Return!E561","v":0}]
[{"$f":"'Standing Data'!$D$15","v":{"$error":"#N/A"}},{"$f":"'Standing Data'!$F$15","v":0},{"$f":"'Standing Data'!$F$9","v":0},"Fin.Return","E549",{"$f":"Fin.Return!E563","v":0}]
[{"$f":"'Standing Data'!$D$15","v":{"$error":"#N/A"}},{"$f":"'Standing Data'!$F$15","v":0},{"$f":"'Standing Data'!$F$9","v":0},"Fin.Return","E552",{"$f":"Fin.Return!E566","v":0}]
[{"$f":"'Standing Data'!$D$15","v":{"$error":"#N/A"}},{"$f":"'Standing Data'!$F$15","v":0},{"$f":"'Standing Data'!$F$9","v":0},"Fin.Return","E555",{"$f":"Fin.Return!E569","v":0}]
[{"$f":"'Standing Data'!$D$15","v":{"$error":"#N/A"}},{"$f":"'Standing Data'!$F$15","v":0},{"$f":"'Standing Data'!$F$9","v":0},"Fin.Return","E556",{"$f":"Fin.Return!E570","v":""}]
[{"$f":"'Standing Data'!$D$15","v":{"$error":"#N/A"}},{"$f":"'Standing Data'!$F$15","v":0},{"$f":"'Standing Data'!$F$9","v":0},"Fin.Return","E565",{"$f":"Fin.Return!E579","v":0}]
[{"$f":"'Standing Data'!$D$15","v":{"$error":"#N/A"}},{"$f":"'Standing Data'!$F$15","v":0},{"$f":"'Standing Data'!$F$9","v":0},"Fin.Return","E566",{"$f":"Fin.Return!E580","v":0}]
[{"$f":"'Standing Data'!$D$15","v":{"$error":"#N/A"}},{"$f":"'Standing Data'!$F$15","v":0},{"$f":"'Standing Data'!$F$9","v":0},"Fin.Return","E567",{"$f":"Fin.Return!E581","v":0}]
[{"$f":"'Standing Data'!$D$15","v":{"$error":"#N/A"}},{"$f":"'Standing Data'!$F$15","v":0},{"$f":"'Standing Data'!$F$9","v":0},"Fin.Return","E568",{"$f":"Fin.Return!E582","v":0}]
[{"$f":"'Standing Data'!$D$15","v":{"$error":"#N/A"}},{"$f":"'Standing Data'!$F$15","v":0},{"$f":"'Standing Data'!$F$9","v":0},"Fin.Return","E569",{"$f":"Fin.Return!E583","v":0}]
[{"$f":"'Standing Data'!$D$15","v":{"$error":"#N/A"}},{"$f":"'Standing Data'!$F$15","v":0},{"$f":"'Standing Data'!$F$9","v":0},"Fin.Return","E570",{"$f":"Fin.Return!E584","v":0}]
[{"$f":"'Standing Data'!$D$15","v":{"$error":"#N/A"}},{"$f":"'Standing Data'!$F$15","v":0},{"$f":"'Standing Data'!$F$9","v":0},"Fin.Return","E571",{"$f":"Fin.Return!E585","v":0}]
[{"$f":"'Standing Data'!$D$15","v":{"$error":"#N/A"}},{"$f":"'Standing Data'!$F$15","v":0},{"$f":"'Standing Data'!$F$9","v":0},"Fin.Return","E572",{"$f":"Fin.Return!E586","v":0}]
[{"$f":"'Standing Data'!$D$15","v":{"$error":"#N/A"}},{"$f":"'Standing Data'!$F$15","v":0},{"$f":"'Standing Data'!$F$9","v":0},"Fin.Return","E573",{"$f":"Fin.Return!E587","v":0}]
[{"$f":"'Standing Data'!$D$15","v":{"$error":"#N/A"}},{"$f":"'Standing Data'!$F$15","v":0},{"$f":"'Standing Data'!$F$9","v":0},"Fin.Return","E575",{"$f":"Fin.Return!E589","v":0}]
[{"$f":"'Standing Data'!$D$15","v":{"$error":"#N/A"}},{"$f":"'Standing Data'!$F$15","v":0},{"$f":"'Standing Data'!$F$9","v":0},"Fin.Return","E585",{"$f":"Fin.Return!E599","v":0}]
[{"$f":"'Standing Data'!$D$15","v":{"$error":"#N/A"}},{"$f":"'Standing Data'!$F$15","v":0},{"$f":"'Standing Data'!$F$9","v":0},"Fin.Return","E586",{"$f":"Fin.Return!E600","v":0}]
[{"$f":"'Standing Data'!$D$15","v":{"$error":"#N/A"}},{"$f":"'Standing Data'!$F$15","v":0},{"$f":"'Standing Data'!$F$9","v":0},"Fin.Return","E587",{"$f":"Fin.Return!E601","v":0}]
[{"$f":"'Standing Data'!$D$15","v":{"$error":"#N/A"}},{"$f":"'Standing Data'!$F$15","v":0},{"$f":"'Standing Data'!$F$9","v":0},"Fin.Return","E588",{"$f":"Fin.Return!E602","v":0}]
[{"$f":"'Standing Data'!$D$15","v":{"$error":"#N/A"}},{"$f":"'Standing Data'!$F$15","v":0},{"$f":"'Standing Data'!$F$9","v":0},"Fin.Return","E589",{"$f":"Fin.Return!E603","v":0}]
[{"$f":"'Standing Data'!$D$15","v":{"$error":"#N/A"}},{"$f":"'Standing Data'!$F$15","v":0},{"$f":"'Standing Data'!$F$9","v":0},"Fin.Return","E591",{"$f":"Fin.Return!E605","v":0}]
[{"$f":"'Standing Data'!$D$15","v":{"$error":"#N/A"}},{"$f":"'Standing Data'!$F$15","v":0},{"$f":"'Standing Data'!$F$9","v":0},"Fin.Return","E597",{"$f":"Fin.Return!E611","v":0}]
[{"$f":"'Standing Data'!$D$15","v":{"$error":"#N/A"}},{"$f":"'Standing Data'!$F$15","v":0},{"$f":"'Standing Data'!$F$9","v":0},"Fin.Return","E598",{"$f":"Fin.Return!E612","v":0}]
[{"$f":"'Standing Data'!$D$15","v":{"$error":"#N/A"}},{"$f":"'Standing Data'!$F$15","v":0},{"$f":"'Standing Data'!$F$9","v":0},"Fin.Return","E599",{"$f":"Fin.Return!E613","v":0}]
[{"$f":"'Standing Data'!$D$15","v":{"$error":"#N/A"}},{"$f":"'Standing Data'!$F$15","v":0},{"$f":"'Standing Data'!$F$9","v":0},"Fin.Return","E600",{"$f":"Fin.Return!E614","v":0}]
[{"$f":"'Standing Data'!$D$15","v":{"$error":"#N/A"}},{"$f":"'Standing Data'!$F$15","v":0},{"$f":"'Standing Data'!$F$9","v":0},"Fin.Return","E601",{"$f":"Fin.Return!E615","v":0}]
[{"$f":"'Standing Data'!$D$15","v":{"$error":"#N/A"}},{"$f":"'Standing Data'!$F$15","v":0},{"$f":"'Standing Data'!$F$9","v":0},"Fin.Return","E603",{"$f":"Fin.Return!E617","v":0}]
[{"$f":"'Standing Data'!$D$15","v":{"$error":"#N/A"}},{"$f":"'Standing Data'!$F$15","v":0},{"$f":"'Standing Data'!$F$9","v":0},"Fin.Return","E609",{"$f":"Fin.Return!E623","v":0}]
[{"$f":"'Standing Data'!$D$15","v":{"$error":"#N/A"}},{"$f":"'Standing Data'!$F$15","v":0},{"$f":"'Standing Data'!$F$9","v":0},"Fin.Return","E610",{"$f":"Fin.Return!E624","v":0}]
[{"$f":"'Standing Data'!$D$15","v":{"$error":"#N/A"}},{"$f":"'Standing Data'!$F$15","v":0},{"$f":"'Standing Data'!$F$9","v":0},"Fin.Return","E611",{"$f":"Fin.Return!E625","v":0}]
[{"$f":"'Standing Data'!$D$15","v":{"$error":"#N/A"}},{"$f":"'Standing Data'!$F$15","v":0},{"$f":"'Standing Data'!$F$9","v":0},"Fin.Return","E612",{"$f":"Fin.Return!E626","v":0}]
[{"$f":"'Standing Data'!$D$15","v":{"$error":"#N/A"}},{"$f":"'Standing Data'!$F$15","v":0},{"$f":"'Standing Data'!$F$9","v":0},"Fin.Return","E613",{"$f":"Fin.Return!E627","v":0}]
[{"$f":"'Standing Data'!$D$15","v":{"$error":"#N/A"}},{"$f":"'Standing Data'!$F$15","v":0},{"$f":"'Standing Data'!$F$9","v":0},"Fin.Return","E614",{"$f":"Fin.Return!E628","v":0}]
[{"$f":"'Standing Data'!$D$15","v":{"$error":"#N/A"}},{"$f":"'Standing Data'!$F$15","v":0},{"$f":"'Standing Data'!$F$9","v":0},"Fin.Return","E615",{"$f":"Fin.Return!E629","v":0}]
[{"$f":"'Standing Data'!$D$15","v":{"$error":"#N/A"}},{"$f":"'Standing Data'!$F$15","v":0},{"$f":"'Standing Data'!$F$9","v":0},"Fin.Return","E616",{"$f":"Fin.Return!E630","v":0}]
[{"$f":"'Standing Data'!$D$15","v":{"$error":"#N/A"}},{"$f":"'Standing Data'!$F$15","v":0},{"$f":"'Standing Data'!$F$9","v":0},"Fin.Return","E617",{"$f":"Fin.Return!E631","v":0}]
[{"$f":"'Standing Data'!$D$15","v":{"$error":"#N/A"}},{"$f":"'Standing Data'!$F$15","v":0},{"$f":"'Standing Data'!$F$9","v":0},"Fin.Return","E618",{"$f":"Fin.Return!E632","v":0}]
[{"$f":"'Standing Data'!$D$15","v":{"$error":"#N/A"}},{"$f":"'Standing Data'!$F$15","v":0},{"$f":"'Standing Data'!$F$9","v":0},"Fin.Return","E619",{"$f":"Fin.Return!E633","v":0}]
[{"$f":"'Standing Data'!$D$15","v":{"$error":"#N/A"}},{"$f":"'Standing Data'!$F$15","v":0},{"$f":"'Standing Data'!$F$9","v":0},"Fin.Return","E620",{"$f":"Fin.Return!E634","v":0}]
[{"$f":"'Standing Data'!$D$15","v":{"$error":"#N/A"}},{"$f":"'Standing Data'!$F$15","v":0},{"$f":"'Standing Data'!$F$9","v":0},"Fin.Return","E622",{"$f":"Fin.Return!E636","v":0}]
[{"$f":"'Standing Data'!$D$15","v":{"$error":"#N/A"}},{"$f":"'Standing Data'!$F$15","v":0},{"$f":"'Standing Data'!$F$9","v":0},"Fin.Return","E623",{"$f":"Fin.Return!E637","v":0}]
[{"$f":"'Standing Data'!$D$15","v":{"$error":"#N/A"}},{"$f":"'Standing Data'!$F$15","v":0},{"$f":"'Standing Data'!$F$9","v":0},"Fin.Return","E625",{"$f":"Fin.Return!E639","v":0}]
[{"$f":"'Standing Data'!$D$15","v":{"$error":"#N/A"}},{"$f":"'Standing Data'!$F$15","v":0},{"$f":"'Standing Data'!$F$9","v":0},"Fin.Return","E630",{"$f":"Fin.Return!E644","v":0}]
[{"$f":"'Standing Data'!$D$15","v":{"$error":"#N/A"}},{"$f":"'Standing Data'!$F$15","v":0},{"$f":"'Standing Data'!$F$9","v":0},"Fin.Return","E631",{"$f":"Fin.Return!E645","v":0}]
[{"$f":"'Standing Data'!$D$15","v":{"$error":"#N/A"}},{"$f":"'Standing Data'!$F$15","v":0},{"$f":"'Standing Data'!$F$9","v":0},"Fin.Return","E632",{"$f":"Fin.Return!E646","v":0}]
[{"$f":"'Standing Data'!$D$15","v":{"$error":"#N/A"}},{"$f":"'Standing Data'!$F$15","v":0},{"$f":"'Standing Data'!$F$9","v":0},"Fin.Return","E633",{"$f":"Fin.Return!E647","v":0}]
[{"$f":"'Standing Data'!$D$15","v":{"$error":"#N/A"}},{"$f":"'Standing Data'!$F$15","v":0},{"$f":"'Standing Data'!$F$9","v":0},"Fin.Return","E634",{"$f":"Fin.Return!E648","v":0}]
[{"$f":"'Standing Data'!$D$15","v":{"$error":"#N/A"}},{"$f":"'Standing Data'!$F$15","v":0},{"$f":"'Standing Data'!$F$9","v":0},"Fin.Return","E635",{"$f":"Fin.Return!E649","v":0}]
[{"$f":"'Standing Data'!$D$15","v":{"$error":"#N/A"}},{"$f":"'Standing Data'!$F$15","v":0},{"$f":"'Standing Data'!$F$9","v":0},"Fin.Return","E636",{"$f":"Fin.Return!E650","v":0}]
[{"$f":"'Standing Data'!$D$15","v":{"$error":"#N/A"}},{"$f":"'Standing Data'!$F$15","v":0},{"$f":"'Standing Data'!$F$9","v":0},"Fin.Return","E637",{"$f":"Fin.Return!E651","v":0}]
[{"$f":"'Standing Data'!$D$15","v":{"$error":"#N/A"}},{"$f":"'Standing Data'!$F$15","v":0},{"$f":"'Standing Data'!$F$9","v":0},"Fin.Return","E638",{"$f":"Fin.Return!E652","v":0}]
[{"$f":"'Standing Data'!$D$15","v":{"$error":"#N/A"}},{"$f":"'Standing Data'!$F$15","v":0},{"$f":"'Standing Data'!$F$9","v":0},"Fin.Return","E640",{"$f":"Fin.Return!E654","v":0}]
[{"$f":"'Standing Data'!$D$15","v":{"$error":"#N/A"}},{"$f":"'Standing Data'!$F$15","v":0},{"$f":"'Standing Data'!$F$9","v":0},"Fin.Return","E648",{"$f":"Fin.Return!E662","v":0}]
[{"$f":"'Standing Data'!$D$15","v":{"$error":"#N/A"}},{"$f":"'Standing Data'!$F$15","v":0},{"$f":"'Standing Data'!$F$9","v":0},"Fin.Return","E649",{"$f":"Fin.Return!E663","v":0}]
[{"$f":"'Standing Data'!$D$15","v":{"$error":"#N/A"}},{"$f":"'Standing Data'!$F$15","v":0},{"$f":"'Standing Data'!$F$9","v":0},"Fin.Return","E651",{"$f":"Fin.Return!E665","v":0}]
[{"$f":"'Standing Data'!$D$15","v":{"$error":"#N/A"}},{"$f":"'Standing Data'!$F$15","v":0},{"$f":"'Standing Data'!$F$9","v":0},"Fin.Return","E652",{"$f":"Fin.Return!E666","v":0}]
[{"$f":"'Standing Data'!$D$15","v":{"$error":"#N/A"}},{"$f":"'Standing Data'!$F$15","v":0},{"$f":"'Standing Data'!$F$9","v":0},"Fin.Return","E654",{"$f":"Fin.Return!E668","v":0}]
[{"$f":"'Standing Data'!$D$15","v":{"$error":"#N/A"}},{"$f":"'Standing Data'!$F$15","v":0},{"$f":"'Standing Data'!$F$9","v":0},"Fin.Return","E659",{"$f":"Fin.Return!E673","v":0}]
[{"$f":"'Standing Data'!$D$15","v":{"$error":"#N/A"}},{"$f":"'Standing Data'!$F$15","v":0},{"$f":"'Standing Data'!$F$9","v":0},"Fin.Return","E660",{"$f":"Fin.Return!E674","v":0}]
[{"$f":"'Standing Data'!$D$15","v":{"$error":"#N/A"}},{"$f":"'Standing Data'!$F$15","v":0},{"$f":"'Standing Data'!$F$9","v":0},"Fin.Return","E661",{"$f":"Fin.Return!E675","v":0}]
[{"$f":"'Standing Data'!$D$15","v":{"$error":"#N/A"}},{"$f":"'Standing Data'!$F$15","v":0},{"$f":"'Standing Data'!$F$9","v":0},"Fin.Return","E662",{"$f":"Fin.Return!E676","v":0}]
[{"$f":"'Standing Data'!$D$15","v":{"$error":"#N/A"}},{"$f":"'Standing Data'!$F$15","v":0},{"$f":"'Standing Data'!$F$9","v":0},"Fin.Return","E663",{"$f":"Fin.Return!E677","v":0}]
[{"$f":"'Standing Data'!$D$15","v":{"$error":"#N/A"}},{"$f":"'Standing Data'!$F$15","v":0},{"$f":"'Standing Data'!$F$9","v":0},"Fin.Return","E664",{"$f":"Fin.Return!E678","v":0}]
[{"$f":"'Standing Data'!$D$15","v":{"$error":"#N/A"}},{"$f":"'Standing Data'!$F$15","v":0},{"$f":"'Standing Data'!$F$9","v":0},"Fin.Return","E665",{"$f":"Fin.Return!E679","v":0}]
[{"$f":"'Standing Data'!$D$15","v":{"$error":"#N/A"}},{"$f":"'Standing Data'!$F$15","v":0},{"$f":"'Standing Data'!$F$9","v":0},"Fin.Return","E666",{"$f":"Fin.Return!E680","v":0}]
[{"$f":"'Standing Data'!$D$15","v":{"$error":"#N/A"}},{"$f":"'Standing Data'!$F$15","v":0},{"$f":"'Standing Data'!$F$9","v":0},"Fin.Return","E667",{"$f":"Fin.Return!E681","v":0}]
[{"$f":"'Standing Data'!$D$15","v":{"$error":"#N/A"}},{"$f":"'Standing Data'!$F$15","v":0},{"$f":"'Standing Data'!$F$9","v":0},"Fin.Return","E668",{"$f":"Fin.Return!E682","v":0}]
[{"$f":"'Standing Data'!$D$15","v":{"$error":"#N/A"}},{"$f":"'Standing Data'!$F$15","v":0},{"$f":"'Standing Data'!$F$9","v":0},"Fin.Return","E670",{"$f":"Fin.Return!E684","v":0}]
[{"$f":"'Standing Data'!$D$15","v":{"$error":"#N/A"}},{"$f":"'Standing Data'!$F$15","v":0},{"$f":"'Standing Data'!$F$9","v":0},"Fin.Return","E673",{"$f":"Fin.Return!E687","v":0}]
[{"$f":"'Standing Data'!$D$15","v":{"$error":"#N/A"}},{"$f":"'Standing Data'!$F$15","v":0},{"$f":"'Standing Data'!$F$9","v":0},"Fin.Return","E674",{"$f":"Fin.Return!E688","v":0}]
[{"$f":"'Standing Data'!$D$15","v":{"$error":"#N/A"}},{"$f":"'Standing Data'!$F$15","v":0},{"$f":"'Standing Data'!$F$9","v":0},"Fin.Return","E675",{"$f":"Fin.Return!E689","v":0}]
[{"$f":"'Standing Data'!$D$15","v":{"$error":"#N/A"}},{"$f":"'Standing Data'!$F$15","v":0},{"$f":"'Standing Data'!$F$9","v":0},"Fin.Return","E677",{"$f":"Fin.Return!E691","v":0}]
[{"$f":"'Standing Data'!$D$15","v":{"$error":"#N/A"}},{"$f":"'Standing Data'!$F$15","v":0},{"$f":"'Standing Data'!$F$9","v":0},"Fin.Return","E684",{"$f":"Fin.Return!E698","v":0}]
[{"$f":"'Standing Data'!$D$15","v":{"$error":"#N/A"}},{"$f":"'Standing Data'!$F$15","v":0},{"$f":"'Standing Data'!$F$9","v":0},"Fin.Return","E685",{"$f":"Fin.Return!E699","v":0}]
[{"$f":"'Standing Data'!$D$15","v":{"$error":"#N/A"}},{"$f":"'Standing Data'!$F$15","v":0},{"$f":"'Standing Data'!$F$9","v":0},"Fin.Return","E686",{"$f":"Fin.Return!E700","v":0}]
[{"$f":"'Standing Data'!$D$15","v":{"$error":"#N/A"}},{"$f":"'Standing Data'!$F$15","v":0},{"$f":"'Standing Data'!$F$9","v":0},"Fin.Return","E687",{"$f":"Fin.Return!E701","v":0}]
[{"$f":"'Standing Data'!$D$15","v":{"$error":"#N/A"}},{"$f":"'Standing Data'!$F$15","v":0},{"$f":"'Standing Data'!$F$9","v":0},"Fin.Return","E688",{"$f":"Fin.Return!E702","v":0}]
[{"$f":"'Standing Data'!$D$15","v":{"$error":"#N/A"}},{"$f":"'Standing Data'!$F$15","v":0},{"$f":"'Standing Data'!$F$9","v":0},"Fin.Return","E689",{"$f":"Fin.Return!E703","v":0}]
[{"$f":"'Standing Data'!$D$15","v":{"$error":"#N/A"}},{"$f":"'Standing Data'!$F$15","v":0},{"$f":"'Standing Data'!$F$9","v":0},"Fin.Return","E690",{"$f":"Fin.Return!E704","v":0}]
[{"$f":"'Standing Data'!$D$15","v":{"$error":"#N/A"}},{"$f":"'Standing Data'!$F$15","v":0},{"$f":"'Standing Data'!$F$9","v":0},"Fin.Return","E691",{"$f":"Fin.Return!E705","v":0}]
[{"$f":"'Standing Data'!$D$15","v":{"$error":"#N/A"}},{"$f":"'Standing Data'!$F$15","v":0},{"$f":"'Standing Data'!$F$9","v":0},"Fin.Return","E692",{"$f":"Fin.Return!E706","v":0}]
[{"$f":"'Standing Data'!$D$15","v":{"$error":"#N/A"}},{"$f":"'Standing Data'!$F$15","v":0},{"$f":"'Standing Data'!$F$9","v":0},"Fin.Return","E693",{"$f":"Fin.Return!E707","v":0}]
[{"$f":"'Standing Data'!$D$15","v":{"$error":"#N/A"}},{"$f":"'Standing Data'!$F$15","v":0},{"$f":"'Standing Data'!$F$9","v":0},"Fin.Return","E694",{"$f":"Fin.Return!E708","v":0}]
[{"$f":"'Standing Data'!$D$15","v":{"$error":"#N/A"}},{"$f":"'Standing Data'!$F$15","v":0},{"$f":"'Standing Data'!$F$9","v":0},"Fin.Return","E695",{"$f":"Fin.Return!E709","v":0}]
[{"$f":"'Standing Data'!$D$15","v":{"$error":"#N/A"}},{"$f":"'Standing Data'!$F$15","v":0},{"$f":"'Standing Data'!$F$9","v":0},"Fin.Return","E697",{"$f":"Fin.Return!E711","v":0}]
[{"$f":"'Standing Data'!$D$15","v":{"$error":"#N/A"}},{"$f":"'Standing Data'!$F$15","v":0},{"$f":"'Standing Data'!$F$9","v":0},"Fin.Return","E698",{"$f":"Fin.Return!E712","v":0}]
[{"$f":"'Standing Data'!$D$15","v":{"$error":"#N/A"}},{"$f":"'Standing Data'!$F$15","v":0},{"$f":"'Standing Data'!$F$9","v":0},"Fin.Return","E700",{"$f":"Fin.Return!E714","v":0}]
[{"$f":"'Standing Data'!$D$15","v":{"$error":"#N/A"}},{"$f":"'Standing Data'!$F$15","v":0},{"$f":"'Standing Data'!$F$9","v":0},"Fin.Return","E705",{"$f":"Fin.Return!E719","v":0}]
[{"$f":"'Standing Data'!$D$15","v":{"$error":"#N/A"}},{"$f":"'Standing Data'!$F$15","v":0},{"$f":"'Standing Data'!$F$9","v":0},"Fin.Return","E706",{"$f":"Fin.Return!E720","v":0}]
[{"$f":"'Standing Data'!$D$15","v":{"$error":"#N/A"}},{"$f":"'Standing Data'!$F$15","v":0},{"$f":"'Standing Data'!$F$9","v":0},"Fin.Return","E707",{"$f":"Fin.Return!E721","v":0}]
[{"$f":"'Standing Data'!$D$15","v":{"$error":"#N/A"}},{"$f":"'Standing Data'!$F$15","v":0},{"$f":"'Standing Data'!$F$9","v":0},"Fin.Return","E708",{"$f":"Fin.Return!E722","v":0}]
[{"$f":"'Standing Data'!$D$15","v":{"$error":"#N/A"}},{"$f":"'Standing Data'!$F$15","v":0},{"$f":"'Standing Data'!$F$9","v":0},"Fin.Return","E709",{"$f":"Fin.Return!E723","v":0}]
[{"$f":"'Standing Data'!$D$15","v":{"$error":"#N/A"}},{"$f":"'Standing Data'!$F$15","v":0},{"$f":"'Standing Data'!$F$9","v":0},"Fin.Return","E711",{"$f":"Fin.Return!E725","v":0}]
[{"$f":"'Standing Data'!$D$15","v":{"$error":"#N/A"}},{"$f":"'Standing Data'!$F$15","v":0},{"$f":"'Standing Data'!$F$9","v":0},"Fin.Return","E714",{"$f":"Fin.Return!E728","v":0}]
[{"$f":"'Standing Data'!$D$15","v":{"$error":"#N/A"}},{"$f":"'Standing Data'!$F$15","v":0},{"$f":"'Standing Data'!$F$9","v":0},"Fin.Return","E715",{"$f":"Fin.Return!E729","v":0}]
[{"$f":"'Standing Data'!$D$15","v":{"$error":"#N/A"}},{"$f":"'Standing Data'!$F$15","v":0},{"$f":"'Standing Data'!$F$9","v":0},"Fin.Return","E716",{"$f":"Fin.Return!E730","v":0}]
[{"$f":"'Standing Data'!$D$15","v":{"$error":"#N/A"}},{"$f":"'Standing Data'!$F$15","v":0},{"$f":"'Standing Data'!$F$9","v":0},"Fin.Return","E718",{"$f":"Fin.Return!E732","v":0}]
[{"$f":"'Standing Data'!$D$15","v":{"$error":"#N/A"}},{"$f":"'Standing Data'!$F$15","v":0},{"$f":"'Standing Data'!$F$9","v":0},"Fin.Return","E724",{"$f":"Fin.Return!E738","v":0}]
[{"$f":"'Standing Data'!$D$15","v":{"$error":"#N/A"}},{"$f":"'Standing Data'!$F$15","v":0},{"$f":"'Standing Data'!$F$9","v":0},"Fin.Return","E725",{"$f":"Fin.Return!E739","v":0}]
[{"$f":"'Standing Data'!$D$15","v":{"$error":"#N/A"}},{"$f":"'Standing Data'!$F$15","v":0},{"$f":"'Standing Data'!$F$9","v":0},"Fin.Return","E726",{"$f":"Fin.Return!E740","v":0}]
[{"$f":"'Standing Data'!$D$15","v":{"$error":"#N/A"}},{"$f":"'Standing Data'!$F$15","v":0},{"$f":"'Standing Data'!$F$9","v":0},"Fin.Return","E727",{"$f":"Fin.Return!E741","v":0}]
[{"$f":"'Standing Data'!$D$15","v":{"$error":"#N/A"}},{"$f":"'Standing Data'!$F$15","v":0},{"$f":"'Standing Data'!$F$9","v":0},"Fin.Return","E728",{"$f":"Fin.Return!E742","v":0}]
[{"$f":"'Standing Data'!$D$15","v":{"$error":"#N/A"}},{"$f":"'Standing Data'!$F$15","v":0},{"$f":"'Standing Data'!$F$9","v":0},"Fin.Return","E729",{"$f":"Fin.Return!E743","v":0}]
[{"$f":"'Standing Data'!$D$15","v":{"$error":"#N/A"}},{"$f":"'Standing Data'!$F$15","v":0},{"$f":"'Standing Data'!$F$9","v":0},"Fin.Return","E730",{"$f":"Fin.Return!E744","v":0}]
[{"$f":"'Standing Data'!$D$15","v":{"$error":"#N/A"}},{"$f":"'Standing Data'!$F$15","v":0},{"$f":"'Standing Data'!$F$9","v":0},"Fin.Return","E731",{"$f":"Fin.Return!E745","v":0}]
[{"$f":"'Standing Data'!$D$15","v":{"$error":"#N/A"}},{"$f":"'Standing Data'!$F$15","v":0},{"$f":"'Standing Data'!$F$9","v":0},"Fin.Return","E732",{"$f":"Fin.Return!E746","v":0}]
[{"$f":"'Standing Data'!$D$15","v":{"$error":"#N/A"}},{"$f":"'Standing Data'!$F$15","v":0},{"$f":"'Standing Data'!$F$9","v":0},"Fin.Return","E733",{"$f":"Fin.Return!E747","v":0}]
[{"$f":"'Standing Data'!$D$15","v":{"$error":"#N/A"}},{"$f":"'Standing Data'!$F$15","v":0},{"$f":"'Standing Data'!$F$9","v":0},"Fin.Return","E734",{"$f":"Fin.Return!E748","v":0}]
[{"$f":"'Standing Data'!$D$15","v":{"$error":"#N/A"}},{"$f":"'Standing Data'!$F$15","v":0},{"$f":"'Standing Data'!$F$9","v":0},"Fin.Return","E735",{"$f":"Fin.Return!E749","v":0}]
[{"$f":"'Standing Data'!$D$15","v":{"$error":"#N/A"}},{"$f":"'Standing Data'!$F$15","v":0},{"$f":"'Standing Data'!$F$9","v":0},"Fin.Return","E737",{"$f":"Fin.Return!E751","v":0}]
[{"$f":"'Standing Data'!$D$15","v":{"$error":"#N/A"}},{"$f":"'Standing Data'!$F$15","v":0},{"$f":"'Standing Data'!$F$9","v":0},"Fin.Return","E738",{"$f":"Fin.Return!E752","v":0}]
[{"$f":"'Standing Data'!$D$15","v":{"$error":"#N/A"}},{"$f":"'Standing Data'!$F$15","v":0},{"$f":"'Standing Data'!$F$9","v":0},"Fin.Return","E740",{"$f":"Fin.Return!E754","v":0}]
[{"$f":"'Standing Data'!$D$15","v":{"$error":"#N/A"}},{"$f":"'Standing Data'!$F$15","v":0},{"$f":"'Standing Data'!$F$9","v":0},"Fin.Return","E745",{"$f":"Fin.Return!E759","v":0}]
[{"$f":"'Standing Data'!$D$15","v":{"$error":"#N/A"}},{"$f":"'Standing Data'!$F$15","v":0},{"$f":"'Standing Data'!$F$9","v":0},"Fin.Return","E746",{"$f":"Fin.Return!E760","v":0}]
[{"$f":"'Standing Data'!$D$15","v":{"$error":"#N/A"}},{"$f":"'Standing Data'!$F$15","v":0},{"$f":"'Standing Data'!$F$9","v":0},"Fin.Return","E747",{"$f":"Fin.Return!E761","v":0}]
[{"$f":"'Standing Data'!$D$15","v":{"$error":"#N/A"}},{"$f":"'Standing Data'!$F$15","v":0},{"$f":"'Standing Data'!$F$9","v":0},"Fin.Return","E748",{"$f":"Fin.Return!E762","v":0}]
[{"$f":"'Standing Data'!$D$15","v":{"$error":"#N/A"}},{"$f":"'Standing Data'!$F$15","v":0},{"$f":"'Standing Data'!$F$9","v":0},"Fin.Return","E750",{"$f":"Fin.Return!E764","v":0}]
[{"$f":"'Standing Data'!$D$15","v":{"$error":"#N/A"}},{"$f":"'Standing Data'!$F$15","v":0},{"$f":"'Standing Data'!$F$9","v":0},"Fin.Return","E755",{"$f":"Fin.Return!E769","v":0}]
[{"$f":"'Standing Data'!$D$15","v":{"$error":"#N/A"}},{"$f":"'Standing Data'!$F$15","v":0},{"$f":"'Standing Data'!$F$9","v":0},"Fin.Return","E756",{"$f":"Fin.Return!E770","v":0}]
[{"$f":"'Standing Data'!$D$15","v":{"$error":"#N/A"}},{"$f":"'Standing Data'!$F$15","v":0},{"$f":"'Standing Data'!$F$9","v":0},"Fin.Return","E757",{"$f":"Fin.Return!E771","v":0}]
[{"$f":"'Standing Data'!$D$15","v":{"$error":"#N/A"}},{"$f":"'Standing Data'!$F$15","v":0},{"$f":"'Standing Data'!$F$9","v":0},"Fin.Return","E759",{"$f":"Fin.Return!E773","v":0}]
[{"$f":"'Standing Data'!$D$15","v":{"$error":"#N/A"}},{"$f":"'Standing Data'!$F$15","v":0},{"$f":"'Standing Data'!$F$9","v":0},"Fin.Return","E767",{"$f":"Fin.Return!E781","v":0}]
[{"$f":"'Standing Data'!$D$15","v":{"$error":"#N/A"}},{"$f":"'Standing Data'!$F$15","v":0},{"$f":"'Standing Data'!$F$9","v":0},"Fin.Return","E768",{"$f":"Fin.Return!E782","v":0}]
[{"$f":"'Standing Data'!$D$15","v":{"$error":"#N/A"}},{"$f":"'Standing Data'!$F$15","v":0},{"$f":"'Standing Data'!$F$9","v":0},"Fin.Return","E770",{"$f":"Fin.Return!E784","v":0}]
[{"$f":"'Standing Data'!$D$15","v":{"$error":"#N/A"}},{"$f":"'Standing Data'!$F$15","v":0},{"$f":"'Standing Data'!$F$9","v":0},"Fin.Return","E771",{"$f":"Fin.Return!E785","v":0}]
[{"$f":"'Standing Data'!$D$15","v":{"$error":"#N/A"}},{"$f":"'Standing Data'!$F$15","v":0},{"$f":"'Standing Data'!$F$9","v":0},"Fin.Return","E772",{"$f":"Fin.Return!E786","v":0}]
[{"$f":"'Standing Data'!$D$15","v":{"$error":"#N/A"}},{"$f":"'Standing Data'!$F$15","v":0},{"$f":"'Standing Data'!$F$9","v":0},"Fin.Return","E773",{"$f":"Fin.Return!E787","v":0}]
[{"$f":"'Standing Data'!$D$15","v":{"$error":"#N/A"}},{"$f":"'Standing Data'!$F$15","v":0},{"$f":"'Standing Data'!$F$9","v":0},"Fin.Return","E774",{"$f":"Fin.Return!E788","v":0}]
[{"$f":"'Standing Data'!$D$15","v":{"$error":"#N/A"}},{"$f":"'Standing Data'!$F$15","v":0},{"$f":"'Standing Data'!$F$9","v":0},"Fin.Return","E775",{"$f":"Fin.Return!E789","v":0}]
[{"$f":"'Standing Data'!$D$15","v":{"$error":"#N/A"}},{"$f":"'Standing Data'!$F$15","v":0},{"$f":"'Standing Data'!$F$9","v":0},"Fin.Return","E776",{"$f":"Fin.Return!E790","v":0}]
[{"$f":"'Standing Data'!$D$15","v":{"$error":"#N/A"}},{"$f":"'Standing Data'!$F$15","v":0},{"$f":"'Standing Data'!$F$9","v":0},"Fin.Return","E777",{"$f":"Fin.Return!E791","v":0}]
[{"$f":"'Standing Data'!$D$15","v":{"$error":"#N/A"}},{"$f":"'Standing Data'!$F$15","v":0},{"$f":"'Standing Data'!$F$9","v":0},"Fin.Return","E779",{"$f":"Fin.Return!E793","v":0}]
[{"$f":"'Standing Data'!$D$15","v":{"$error":"#N/A"}},{"$f":"'Standing Data'!$F$15","v":0},{"$f":"'Standing Data'!$F$9","v":0},"Fin.Return","E780",{"$f":"Fin.Return!E794","v":0}]
[{"$f":"'Standing Data'!$D$15","v":{"$error":"#N/A"}},{"$f":"'Standing Data'!$F$15","v":0},{"$f":"'Standing Data'!$F$9","v":0},"Fin.Return","E782",{"$f":"Fin.Return!E796","v":0}]
[{"$f":"'Standing Data'!$D$15","v":{"$error":"#N/A"}},{"$f":"'Standing Data'!$F$15","v":0},{"$f":"'Standing Data'!$F$9","v":0},"Fin.Return","E783",{"$f":"Fin.Return!E797","v":0}]
[{"$f":"'Standing Data'!$D$15","v":{"$error":"#N/A"}},{"$f":"'Standing Data'!$F$15","v":0},{"$f":"'Standing Data'!$F$9","v":0},"Fin.Return","E787",{"$f":"Fin.Return!E801","v":0}]
[{"$f":"'Standing Data'!$D$15","v":{"$error":"#N/A"}},{"$f":"'Standing Data'!$F$15","v":0},{"$f":"'Standing Data'!$F$9","v":0},"Fin.Return","E789",{"$f":"Fin.Return!E803","v":0}]
[{"$f":"'Standing Data'!$D$15","v":{"$error":"#N/A"}},{"$f":"'Standing Data'!$F$15","v":0},{"$f":"'Standing Data'!$F$9","v":0},"Fin.Return","E790",{"$f":"Fin.Return!E804","v":0}]
[{"$f":"'Standing Data'!$D$15","v":{"$error":"#N/A"}},{"$f":"'Standing Data'!$F$15","v":0},{"$f":"'Standing Data'!$F$9","v":0},"Fin.Return","E791",{"$f":"Fin.Return!E805","v":0}]
[{"$f":"'Standing Data'!$D$15","v":{"$error":"#N/A"}},{"$f":"'Standing Data'!$F$15","v":0},{"$f":"'Standing Data'!$F$9","v":0},"Fin.Return","E792",{"$f":"Fin.Return!E806","v":0}]
[{"$f":"'Standing Data'!$D$15","v":{"$error":"#N/A"}},{"$f":"'Standing Data'!$F$15","v":0},{"$f":"'Standing Data'!$F$9","v":0},"Fin.Return","E793",{"$f":"Fin.Return!E807","v":0}]
[{"$f":"'Standing Data'!$D$15","v":{"$error":"#N/A"}},{"$f":"'Standing Data'!$F$15","v":0},{"$f":"'Standing Data'!$F$9","v":0},"Fin.Return","E794",{"$f":"Fin.Return!E808","v":0}]
[{"$f":"'Standing Data'!$D$15","v":{"$error":"#N/A"}},{"$f":"'Standing Data'!$F$15","v":0},{"$f":"'Standing Data'!$F$9","v":0},"Fin.Return","E795",{"$f":"Fin.Return!E809","v":0}]
[{"$f":"'Standing Data'!$D$15","v":{"$error":"#N/A"}},{"$f":"'Standing Data'!$F$15","v":0},{"$f":"'Standing Data'!$F$9","v":0},"Fin.Return","E796",{"$f":"Fin.Return!E810","v":0}]
[{"$f":"'Standing Data'!$D$15","v":{"$error":"#N/A"}},{"$f":"'Standing Data'!$F$15","v":0},{"$f":"'Standing Data'!$F$9","v":0},"Fin.Return","E798",{"$f":"Fin.Return!E812","v":0}]
[{"$f":"'Standing Data'!$D$15","v":{"$error":"#N/A"}},{"$f":"'Standing Data'!$F$15","v":0},{"$f":"'Standing Data'!$F$9","v":0},"Fin.Return","E799",{"$f":"Fin.Return!E813","v":0}]
[{"$f":"'Standing Data'!$D$15","v":{"$error":"#N/A"}},{"$f":"'Standing Data'!$F$15","v":0},{"$f":"'Standing Data'!$F$9","v":0},"Fin.Return","E800",{"$f":"Fin.Return!E814","v":0}]
[{"$f":"'Standing Data'!$D$15","v":{"$error":"#N/A"}},{"$f":"'Standing Data'!$F$15","v":0},{"$f":"'Standing Data'!$F$9","v":0},"Fin.Return","E802",{"$f":"Fin.Return!E816","v":0}]
[{"$f":"'Standing Data'!$D$15","v":{"$error":"#N/A"}},{"$f":"'Standing Data'!$F$15","v":0},{"$f":"'Standing Data'!$F$9","v":0},"Fin.Return","E803",{"$f":"Fin.Return!E817","v":0}]
[{"$f":"'Standing Data'!$D$15","v":{"$error":"#N/A"}},{"$f":"'Standing Data'!$F$15","v":0},{"$f":"'Standing Data'!$F$9","v":0},"Fin.Return","E805",{"$f":"Fin.Return!E819","v":0}]
[{"$f":"'Standing Data'!$D$15","v":{"$error":"#N/A"}},{"$f":"'Standing Data'!$F$15","v":0},{"$f":"'Standing Data'!$F$9","v":0},"Fin.Return","E807",{"$f":"Fin.Return!E821","v":0}]
[{"$f":"'Standing Data'!$D$15","v":{"$error":"#N/A"}},{"$f":"'Standing Data'!$F$15","v":0},{"$f":"'Standing Data'!$F$9","v":0},"Fin.Return","E809",{"$f":"Fin.Return!E823","v":0}]
[{"$f":"'Standing Data'!$D$15","v":{"$error":"#N/A"}},{"$f":"'Standing Data'!$F$15","v":0},{"$f":"'Standing Data'!$F$9","v":0},"Fin.Return","E811",{"$f":"Fin.Return!E825","v":0}]
[{"$f":"'Standing Data'!$D$15","v":{"$error":"#N/A"}},{"$f":"'Standing Data'!$F$15","v":0},{"$f":"'Standing Data'!$F$9","v":0},"Fin.Return","E812",{"$f":"Fin.Return!E826","v":""}]
[{"$f":"'Standing Data'!$D$15","v":{"$error":"#N/A"}},{"$f":"'Standing Data'!$F$15","v":0},{"$f":"'Standing Data'!$F$9","v":0},"Fin.Return","E816",{"$f":"Fin.Return!E939","v":0}]
[{"$f":"'Standing Data'!$D$15","v":{"$error":"#N/A"}},{"$f":"'Standing Data'!$F$15","v":0},{"$f":"'Standing Data'!$F$9","v":0},"Fin.Return","E817",{"$f":"Fin.Return!E940","v":0}]
[{"$f":"'Standing Data'!$D$15","v":{"$error":"#N/A"}},{"$f":"'Standing Data'!$F$15","v":0},{"$f":"'Standing Data'!$F$9","v":0},"Fin.Return","E818",{"$f":"Fin.Return!E941","v":0}]
[{"$f":"'Standing Data'!$D$15","v":{"$error":"#N/A"}},{"$f":"'Standing Data'!$F$15","v":0},{"$f":"'Standing Data'!$F$9","v":0},"Fin.Return","E819",{"$f":"Fin.Return!E942","v":0}]
[{"$f":"'Standing Data'!$D$15","v":{"$error":"#N/A"}},{"$f":"'Standing Data'!$F$15","v":0},{"$f":"'Standing Data'!$F$9","v":0},"Fin.Return","E820",{"$f":"Fin.Return!E943","v":0}]
[{"$f":"'Standing Data'!$D$15","v":{"$error":"#N/A"}},{"$f":"'Standing Data'!$F$15","v":0},{"$f":"'Standing Data'!$F$9","v":0},"Fin.Return","E821",{"$f":"Fin.Return!E944","v":0}]
[{"$f":"'Standing Data'!$D$15","v":{"$error":"#N/A"}},{"$f":"'Standing Data'!$F$15","v":0},{"$f":"'Standing Data'!$F$9","v":0},"Fin.Return","E823",{"$f":"Fin.Return!E946","v":0}]
[{"$f":"'Standing Data'!$D$15","v":{"$error":"#N/A"}},{"$f":"'Standing Data'!$F$15","v":0},{"$f":"'Standing Data'!$F$9","v":0},"Fin.Return","E839",{"$f":"Fin.Return!E962","v":0}]
[{"$f":"'Standing Data'!$D$15","v":{"$error":"#N/A"}},{"$f":"'Standing Data'!$F$15","v":0},{"$f":"'Standing Data'!$F$9","v":0},"Fin.Return","E840",{"$f":"Fin.Return!E964","v":0}]
[{"$f":"'Standing Data'!$D$15","v":{"$error":"#N/A"}},{"$f":"'Standing Data'!$F$15","v":0},{"$f":"'Standing Data'!$F$9","v":0},"Fin.Return","E841",{"$f":"Fin.Return!E966","v":0}]
[{"$f":"'Standing Data'!$D$15","v":{"$error":"#N/A"}},{"$f":"'Standing Data'!$F$15","v":0},{"$f":"'Standing Data'!$F$9","v":0},"Fin.Return","E842",{"$f":"Fin.Return!E967","v":0}]
[{"$f":"'Standing Data'!$D$15","v":{"$error":"#N/A"}},{"$f":"'Standing Data'!$F$15","v":0},{"$f":"'Standing Data'!$F$9","v":0},"Fin.Return","E843",{"$f":"Fin.Return!E968","v":0}]
[{"$f":"'Standing Data'!$D$15","v":{"$error":"#N/A"}},{"$f":"'Standing Data'!$F$15","v":0},{"$f":"'Standing Data'!$F$9","v":0},"Fin.Return","E845",{"$f":"Fin.Return!E970","v":0}]
[{"$f":"'Standing Data'!$D$15","v":{"$error":"#N/A"}},{"$f":"'Standing Data'!$F$15","v":0},{"$f":"'Standing Data'!$F$9","v":0},"Fin.Return","E850",{"$f":"Fin.Return!E975","v":0}]
[{"$f":"'Standing Data'!$D$15","v":{"$error":"#N/A"}},{"$f":"'Standing Data'!$F$15","v":0},{"$f":"'Standing Data'!$F$9","v":0},"Fin.Return","E851",{"$f":"Fin.Return!E976","v":0}]
[{"$f":"'Standing Data'!$D$15","v":{"$error":"#N/A"}},{"$f":"'Standing Data'!$F$15","v":0},{"$f":"'Standing Data'!$F$9","v":0},"Fin.Return","E852",{"$f":"Fin.Return!E977","v":0}]
[{"$f":"'Standing Data'!$D$15","v":{"$error":"#N/A"}},{"$f":"'Standing Data'!$F$15","v":0},{"$f":"'Standing Data'!$F$9","v":0},"Fin.Return","E854",{"$f":"Fin.Return!E979","v":0}]
[{"$f":"'Standing Data'!$D$15","v":{"$error":"#N/A"}},{"$f":"'Standing Data'!$F$15","v":0},{"$f":"'Standing Data'!$F$9","v":0},"Fin.Return","E856",{"$f":"Fin.Return!E981","v":0}]
[{"$f":"'Standing Data'!$D$15","v":{"$error":"#N/A"}},{"$f":"'Standing Data'!$F$15","v":0},{"$f":"'Standing Data'!$F$9","v":0},"Fin.Return","E857",{"$f":"Fin.Return!E982","v":0}]
[{"$f":"'Standing Data'!$D$15","v":{"$error":"#N/A"}},{"$f":"'Standing Data'!$F$15","v":0},{"$f":"'Standing Data'!$F$9","v":0},"Fin.Return","E858",{"$f":"Fin.Return!E983","v":0}]
[{"$f":"'Standing Data'!$D$15","v":{"$error":"#N/A"}},{"$f":"'Standing Data'!$F$15","v":0},{"$f":"'Standing Data'!$F$9","v":0},"Fin.Return","E860",{"$f":"Fin.Return!E985","v":0}]
[{"$f":"'Standing Data'!$D$15","v":{"$error":"#N/A"}},{"$f":"'Standing Data'!$F$15","v":0},{"$f":"'Standing Data'!$F$9","v":0},"Fin.Return","E862",{"$f":"Fin.Return!E987","v":0}]
[{"$f":"'Standing Data'!$D$15","v":{"$error":"#N/A"}},{"$f":"'Standing Data'!$F$15","v":0},{"$f":"'Standing Data'!$F$9","v":0},"Fin.Return","E865",{"$f":"Fin.Return!E990","v":0}]
[{"$f":"'Standing Data'!$D$15","v":{"$error":"#N/A"}},{"$f":"'Standing Data'!$F$15","v":0},{"$f":"'Standing Data'!$F$9","v":0},"Fin.Return","E866",{"$f":"Fin.Return!E991","v":0}]
[{"$f":"'Standing Data'!$D$15","v":{"$error":"#N/A"}},{"$f":"'Standing Data'!$F$15","v":0},{"$f":"'Standing Data'!$F$9","v":0},"Fin.Return","E867",{"$f":"Fin.Return!E992","v":0}]
[{"$f":"'Standing Data'!$D$15","v":{"$error":"#N/A"}},{"$f":"'Standing Data'!$F$15","v":0},{"$f":"'Standing Data'!$F$9","v":0},"Fin.Return","E868",{"$f":"Fin.Return!E993","v":0}]
[{"$f":"'Standing Data'!$D$15","v":{"$error":"#N/A"}},{"$f":"'Standing Data'!$F$15","v":0},{"$f":"'Standing Data'!$F$9","v":0},"Fin.Return","E869",{"$f":"Fin.Return!E994","v":0}]
[{"$f":"'Standing Data'!$D$15","v":{"$error":"#N/A"}},{"$f":"'Standing Data'!$F$15","v":0},{"$f":"'Standing Data'!$F$9","v":0},"Fin.Return","E870",{"$f":"Fin.Return!E995","v":0}]
[{"$f":"'Standing Data'!$D$15","v":{"$error":"#N/A"}},{"$f":"'Standing Data'!$F$15","v":0},{"$f":"'Standing Data'!$F$9","v":0},"Fin.Return","E871",{"$f":"Fin.Return!E996","v":0}]
[{"$f":"'Standing Data'!$D$15","v":{"$error":"#N/A"}},{"$f":"'Standing Data'!$F$15","v":0},{"$f":"'Standing Data'!$F$9","v":0},"Fin.Return","E872",{"$f":"Fin.Return!E997","v":0}]
[{"$f":"'Standing Data'!$D$15","v":{"$error":"#N/A"}},{"$f":"'Standing Data'!$F$15","v":0},{"$f":"'Standing Data'!$F$9","v":0},"Fin.Return","E873",{"$f":"Fin.Return!E998","v":0}]
[{"$f":"'Standing Data'!$D$15","v":{"$error":"#N/A"}},{"$f":"'Standing Data'!$F$15","v":0},{"$f":"'Standing Data'!$F$9","v":0},"Fin.Return","E874",{"$f":"Fin.Return!E999","v":0}]
[{"$f":"'Standing Data'!$D$15","v":{"$error":"#N/A"}},{"$f":"'Standing Data'!$F$15","v":0},{"$f":"'Standing Data'!$F$9","v":0},"Fin.Return","E876",{"$f":"Fin.Return!E1001","v":0}]
[{"$f":"'Standing Data'!$D$15","v":{"$error":"#N/A"}},{"$f":"'Standing Data'!$F$15","v":0},{"$f":"'Standing Data'!$F$9","v":0},"Fin.Return","E879",{"$f":"Fin.Return!E1004","v":0}]
[{"$f":"'Standing Data'!$D$15","v":{"$error":"#N/A"}},{"$f":"'Standing Data'!$F$15","v":0},{"$f":"'Standing Data'!$F$9","v":0},"Fin.Return","E880",{"$f":"Fin.Return!E1005","v":0}]
[{"$f":"'Standing Data'!$D$15","v":{"$error":"#N/A"}},{"$f":"'Standing Data'!$F$15","v":0},{"$f":"'Standing Data'!$F$9","v":0},"Fin.Return","E881",{"$f":"Fin.Return!E1006","v":0}]
[{"$f":"'Standing Data'!$D$15","v":{"$error":"#N/A"}},{"$f":"'Standing Data'!$F$15","v":0},{"$f":"'Standing Data'!$F$9","v":0},"Fin.Return","E882",{"$f":"Fin.Return!E1007","v":0}]
[{"$f":"'Standing Data'!$D$15","v":{"$error":"#N/A"}},{"$f":"'Standing Data'!$F$15","v":0},{"$f":"'Standing Data'!$F$9","v":0},"Fin.Return","E883",{"$f":"Fin.Return!E1008","v":0}]
[{"$f":"'Standing Data'!$D$15","v":{"$error":"#N/A"}},{"$f":"'Standing Data'!$F$15","v":0},{"$f":"'Standing Data'!$F$9","v":0},"Fin.Return","E884",{"$f":"Fin.Return!E1009","v":0}]
[{"$f":"'Standing Data'!$D$15","v":{"$error":"#N/A"}},{"$f":"'Standing Data'!$F$15","v":0},{"$f":"'Standing Data'!$F$9","v":0},"Fin.Return","E885",{"$f":"Fin.Return!E1010","v":0}]
[{"$f":"'Standing Data'!$D$15","v":{"$error":"#N/A"}},{"$f":"'Standing Data'!$F$15","v":0},{"$f":"'Standing Data'!$F$9","v":0},"Fin.Return","E887",{"$f":"Fin.Return!E1012","v":0}]
[{"$f":"'Standing Data'!$D$15","v":{"$error":"#N/A"}},{"$f":"'Standing Data'!$F$15","v":0},{"$f":"'Standing Data'!$F$9","v":0},"Fin.Return","E890",{"$f":"Fin.Return!E1015","v":0}]
[{"$f":"'Standing Data'!$D$15","v":{"$error":"#N/A"}},{"$f":"'Standing Data'!$F$15","v":0},{"$f":"'Standing Data'!$F$9","v":0},"Fin.Return","E891",{"$f":"Fin.Return!E1016","v":0}]
[{"$f":"'Standing Data'!$D$15","v":{"$error":"#N/A"}},{"$f":"'Standing Data'!$F$15","v":0},{"$f":"'Standing Data'!$F$9","v":0},"Fin.Return","E892",{"$f":"Fin.Return!E1017","v":0}]
[{"$f":"'Standing Data'!$D$15","v":{"$error":"#N/A"}},{"$f":"'Standing Data'!$F$15","v":0},{"$f":"'Standing Data'!$F$9","v":0},"Fin.Return","E893",{"$f":"Fin.Return!E1018","v":0}]
[{"$f":"'Standing Data'!$D$15","v":{"$error":"#N/A"}},{"$f":"'Standing Data'!$F$15","v":0},{"$f":"'Standing Data'!$F$9","v":0},"Fin.Return","E894",{"$f":"Fin.Return!E1019","v":0}]
[{"$f":"'Standing Data'!$D$15","v":{"$error":"#N/A"}},{"$f":"'Standing Data'!$F$15","v":0},{"$f":"'Standing Data'!$F$9","v":0},"Fin.Return","E895",{"$f":"Fin.Return!E1020","v":0}]
[{"$f":"'Standing Data'!$D$15","v":{"$error":"#N/A"}},{"$f":"'Standing Data'!$F$15","v":0},{"$f":"'Standing Data'!$F$9","v":0},"Fin.Return","E896",{"$f":"Fin.Return!E1021","v":0}]
[{"$f":"'Standing Data'!$D$15","v":{"$error":"#N/A"}},{"$f":"'Standing Data'!$F$15","v":0},{"$f":"'Standing Data'!$F$9","v":0},"Fin.Return","E897",{"$f":"Fin.Return!E1022","v":0}]
[{"$f":"'Standing Data'!$D$15","v":{"$error":"#N/A"}},{"$f":"'Standing Data'!$F$15","v":0},{"$f":"'Standing Data'!$F$9","v":0},"Fin.Return","E898",{"$f":"Fin.Return!E1023","v":0}]
[{"$f":"'Standing Data'!$D$15","v":{"$error":"#N/A"}},{"$f":"'Standing Data'!$F$15","v":0},{"$f":"'Standing Data'!$F$9","v":0},"Fin.Return","E899",{"$f":"Fin.Return!E1024","v":0}]
[{"$f":"'Standing Data'!$D$15","v":{"$error":"#N/A"}},{"$f":"'Standing Data'!$F$15","v":0},{"$f":"'Standing Data'!$F$9","v":0},"Fin.Return","E901",{"$f":"Fin.Return!E1026","v":0}]
[{"$f":"'Standing Data'!$D$15","v":{"$error":"#N/A"}},{"$f":"'Standing Data'!$F$15","v":0},{"$f":"'Standing Data'!$F$9","v":0},"Fin.Return","E908",{"$f":"Fin.Return!E1035","v":0}]
[{"$f":"'Standing Data'!$D$15","v":{"$error":"#N/A"}},{"$f":"'Standing Data'!$F$15","v":0},{"$f":"'Standing Data'!$F$9","v":0},"Fin.Return","E909",{"$f":"Fin.Return!E1036","v":0}]
[{"$f":"'Standing Data'!$D$15","v":{"$error":"#N/A"}},{"$f":"'Standing Data'!$F$15","v":0},{"$f":"'Standing Data'!$F$9","v":0},"Fin.Return","E910",{"$f":"Fin.Return!E1037","v":0}]
[{"$f":"'Standing Data'!$D$15","v":{"$error":"#N/A"}},{"$f":"'Standing Data'!$F$15","v":0},{"$f":"'Standing Data'!$F$9","v":0},"Fin.Return","E911",{"$f":"Fin.Return!E1038","v":0}]
[{"$f":"'Standing Data'!$D$15","v":{"$error":"#N/A"}},{"$f":"'Standing Data'!$F$15","v":0},{"$f":"'Standing Data'!$F$9","v":0},"Fin.Return","E912",{"$f":"Fin.Return!E1039","v":0}]
[{"$f":"'Standing Data'!$D$15","v":{"$error":"#N/A"}},{"$f":"'Standing Data'!$F$15","v":0},{"$f":"'Standing Data'!$F$9","v":0},"Fin.Return","E913",{"$f":"Fin.Return!E1040","v":0}]
[{"$f":"'Standing Data'!$D$15","v":{"$error":"#N/A"}},{"$f":"'Standing Data'!$F$15","v":0},{"$f":"'Standing Data'!$F$9","v":0},"Fin.Return","E914",{"$f":"Fin.Return!E1041","v":0}]
[{"$f":"'Standing Data'!$D$15","v":{"$error":"#N/A"}},{"$f":"'Standing Data'!$F$15","v":0},{"$f":"'Standing Data'!$F$9","v":0},"Fin.Return","E915",{"$f":"Fin.Return!E1042","v":0}]
[{"$f":"'Standing Data'!$D$15","v":{"$error":"#N/A"}},{"$f":"'Standing Data'!$F$15","v":0},{"$f":"'Standing Data'!$F$9","v":0},"Fin.Return","E916",{"$f":"Fin.Return!E1043","v":0}]
[{"$f":"'Standing Data'!$D$15","v":{"$error":"#N/A"}},{"$f":"'Standing Data'!$F$15","v":0},{"$f":"'Standing Data'!$F$9","v":0},"Fin.Return","E917",{"$f":"Fin.Return!E1044","v":0}]
[{"$f":"'Standing Data'!$D$15","v":{"$error":"#N/A"}},{"$f":"'Standing Data'!$F$15","v":0},{"$f":"'Standing Data'!$F$9","v":0},"Fin.Return","E918",{"$f":"Fin.Return!E1045","v":0}]
[{"$f":"'Standing Data'!$D$15","v":{"$error":"#N/A"}},{"$f":"'Standing Data'!$F$15","v":0},{"$f":"'Standing Data'!$F$9","v":0},"Fin.Return","E919",{"$f":"Fin.Return!E1046","v":0}]
[{"$f":"'Standing Data'!$D$15","v":{"$error":"#N/A"}},{"$f":"'Standing Data'!$F$15","v":0},{"$f":"'Standing Data'!$F$9","v":0},"Fin.Return","E920",{"$f":"Fin.Return!E1047","v":0}]
[{"$f":"'Standing Data'!$D$15","v":{"$error":"#N/A"}},{"$f":"'Standing Data'!$F$15","v":0},{"$f":"'Standing Data'!$F$9","v":0},"Fin.Return","E922",{"$f":"Fin.Return!E1049","v":0}]
[{"$f":"'Standing Data'!$D$15","v":{"$error":"#N/A"}},{"$f":"'Standing Data'!$F$15","v":0},{"$f":"'Standing Data'!$F$9","v":0},"Fin.Return","E923",{"$f":"Fin.Return!E1050","v":0}]
[{"$f":"'Standing Data'!$D$15","v":{"$error":"#N/A"}},{"$f":"'Standing Data'!$F$15","v":0},{"$f":"'Standing Data'!$F$9","v":0},"Fin.Return","E924",{"$f":"Fin.Return!E1051","v":0}]
[{"$f":"'Standing Data'!$D$15","v":{"$error":"#N/A"}},{"$f":"'Standing Data'!$F$15","v":0},{"$f":"'Standing Data'!$F$9","v":0},"Fin.Return","E925",{"$f":"Fin.Return!E1052","v":0}]
[{"$f":"'Standing Data'!$D$15","v":{"$error":"#N/A"}},{"$f":"'Standing Data'!$F$15","v":0},{"$f":"'Standing Data'!$F$9","v":0},"Fin.Return","E926",{"$f":"Fin.Return!E1053","v":0}]
[{"$f":"'Standing Data'!$D$15","v":{"$error":"#N/A"}},{"$f":"'Standing Data'!$F$15","v":0},{"$f":"'Standing Data'!$F$9","v":0},"Fin.Return","E927",{"$f":"Fin.Return!E1054","v":0}]
[{"$f":"'Standing Data'!$D$15","v":{"$error":"#N/A"}},{"$f":"'Standing Data'!$F$15","v":0},{"$f":"'Standing Data'!$F$9","v":0},"Fin.Return","E928",{"$f":"Fin.Return!E1055","v":0}]
[{"$f":"'Standing Data'!$D$15","v":{"$error":"#N/A"}},{"$f":"'Standing Data'!$F$15","v":0},{"$f":"'Standing Data'!$F$9","v":0},"Fin.Return","E929",{"$f":"Fin.Return!E1056","v":0}]
[{"$f":"'Standing Data'!$D$15","v":{"$error":"#N/A"}},{"$f":"'Standing Data'!$F$15","v":0},{"$f":"'Standing Data'!$F$9","v":0},"Fin.Return","E930",{"$f":"Fin.Return!E1057","v":0}]
[{"$f":"'Standing Data'!$D$15","v":{"$error":"#N/A"}},{"$f":"'Standing Data'!$F$15","v":0},{"$f":"'Standing Data'!$F$9","v":0},"Fin.Return","E931",{"$f":"Fin.Return!E1058","v":0}]
[{"$f":"'Standing Data'!$D$15","v":{"$error":"#N/A"}},{"$f":"'Standing Data'!$F$15","v":0},{"$f":"'Standing Data'!$F$9","v":0},"Fin.Return","E933",{"$f":"Fin.Return!E1060","v":0}]
[{"$f":"'Standing Data'!$D$15","v":{"$error":"#N/A"}},{"$f":"'Standing Data'!$F$15","v":0},{"$f":"'Standing Data'!$F$9","v":0},"Fin.Return","E934",{"$f":"Fin.Return!E1061","v":0}]
[{"$f":"'Standing Data'!$D$15","v":{"$error":"#N/A"}},{"$f":"'Standing Data'!$F$15","v":0},{"$f":"'Standing Data'!$F$9","v":0},"Fin.Return","E935",{"$f":"Fin.Return!E1062","v":0}]
[{"$f":"'Standing Data'!$D$15","v":{"$error":"#N/A"}},{"$f":"'Standing Data'!$F$15","v":0},{"$f":"'Standing Data'!$F$9","v":0},"Fin.Return","E936",{"$f":"Fin.Return!E1063","v":0}]
[{"$f":"'Standing Data'!$D$15","v":{"$error":"#N/A"}},{"$f":"'Standing Data'!$F$15","v":0},{"$f":"'Standing Data'!$F$9","v":0},"Fin.Return","E938",{"$f":"Fin.Return!E1065","v":0}]
[{"$f":"'Standing Data'!$D$15","v":{"$error":"#N/A"}},{"$f":"'Standing Data'!$F$15","v":0},{"$f":"'Standing Data'!$F$9","v":0},"Fin.Return","E940",{"$f":"Fin.Return!E1067","v":0}]
[{"$f":"'Standing Data'!$D$15","v":{"$error":"#N/A"}},{"$f":"'Standing Data'!$F$15","v":0},{"$f":"'Standing Data'!$F$9","v":0},"Fin.Return","E942",{"$f":"Fin.Return!E1069","v":0}]
[{"$f":"'Standing Data'!$D$15","v":{"$error":"#N/A"}},{"$f":"'Standing Data'!$F$15","v":0},{"$f":"'Standing Data'!$F$9","v":0},"Fin.Return","E948",{"$f":"Fin.Return!E1075","v":0}]
[{"$f":"'Standing Data'!$D$15","v":{"$error":"#N/A"}},{"$f":"'Standing Data'!$F$15","v":0},{"$f":"'Standing Data'!$F$9","v":0},"Fin.Return","E949",{"$f":"Fin.Return!E1076","v":0}]
[{"$f":"'Standing Data'!$D$15","v":{"$error":"#N/A"}},{"$f":"'Standing Data'!$F$15","v":0},{"$f":"'Standing Data'!$F$9","v":0},"Fin.Return","E951",{"$f":"Fin.Return!E1078","v":0}]
[{"$f":"'Standing Data'!$D$15","v":{"$error":"#N/A"}},{"$f":"'Standing Data'!$F$15","v":0},{"$f":"'Standing Data'!$F$9","v":0},"Fin.Return","E957",{"$f":"Fin.Return!E1084","v":0}]
[{"$f":"'Standing Data'!$D$15","v":{"$error":"#N/A"}},{"$f":"'Standing Data'!$F$15","v":0},{"$f":"'Standing Data'!$F$9","v":0},"Fin.Return","E958",{"$f":"Fin.Return!E1085","v":0}]
[{"$f":"'Standing Data'!$D$15","v":{"$error":"#N/A"}},{"$f":"'Standing Data'!$F$15","v":0},{"$f":"'Standing Data'!$F$9","v":0},"Fin.Return","E959",{"$f":"Fin.Return!E1086","v":0}]
[{"$f":"'Standing Data'!$D$15","v":{"$error":"#N/A"}},{"$f":"'Standing Data'!$F$15","v":0},{"$f":"'Standing Data'!$F$9","v":0},"Fin.Return","E961",{"$f":"Fin.Return!E1088","v":0}]
[{"$f":"'Standing Data'!$D$15","v":{"$error":"#N/A"}},{"$f":"'Standing Data'!$F$15","v":0},{"$f":"'Standing Data'!$F$9","v":0},"Fin.Return","E969",{"$f":"Fin.Return!E1096","v":0}]
[{"$f":"'Standing Data'!$D$15","v":{"$error":"#N/A"}},{"$f":"'Standing Data'!$F$15","v":0},{"$f":"'Standing Data'!$F$9","v":0},"Fin.Return","E970",{"$f":"Fin.Return!E1097","v":0}]
[{"$f":"'Standing Data'!$D$15","v":{"$error":"#N/A"}},{"$f":"'Standing Data'!$F$15","v":0},{"$f":"'Standing Data'!$F$9","v":0},"Fin.Return","E971",{"$f":"Fin.Return!E1098","v":0}]
[{"$f":"'Standing Data'!$D$15","v":{"$error":"#N/A"}},{"$f":"'Standing Data'!$F$15","v":0},{"$f":"'Standing Data'!$F$9","v":0},"Fin.Return","E973",{"$f":"Fin.Return!E1100","v":0}]
[{"$f":"'Standing Data'!$D$15","v":{"$error":"#N/A"}},{"$f":"'Standing Data'!$F$15","v":0},{"$f":"'Standing Data'!$F$9","v":0},"Fin.Return","E974",{"$f":"Fin.Return!E1101","v":0}]
[{"$f":"'Standing Data'!$D$15","v":{"$error":"#N/A"}},{"$f":"'Standing Data'!$F$15","v":0},{"$f":"'Standing Data'!$F$9","v":0},"Fin.Return","E976",{"$f":"Fin.Return!E1103","v":0}]
[{"$f":"'Standing Data'!$D$15","v":{"$error":"#N/A"}},{"$f":"'Standing Data'!$F$15","v":0},{"$f":"'Standing Data'!$F$9","v":0},"Fin.Return","E986",{"$f":"Fin.Return!E1113","v":0}]
[{"$f":"'Standing Data'!$D$15","v":{"$error":"#N/A"}},{"$f":"'Standing Data'!$F$15","v":0},{"$f":"'Standing Data'!$F$9","v":0},"Fin.Return","E987",{"$f":"Fin.Return!E1114","v":0}]
[{"$f":"'Standing Data'!$D$15","v":{"$error":"#N/A"}},{"$f":"'Standing Data'!$F$15","v":0},{"$f":"'Standing Data'!$F$9","v":0},"Fin.Return","E988",{"$f":"Fin.Return!E1115","v":0}]
[{"$f":"'Standing Data'!$D$15","v":{"$error":"#N/A"}},{"$f":"'Standing Data'!$F$15","v":0},{"$f":"'Standing Data'!$F$9","v":0},"Fin.Return","E990",{"$f":"Fin.Return!E1117","v":0}]
[{"$f":"'Standing Data'!$D$15","v":{"$error":"#N/A"}},{"$f":"'Standing Data'!$F$15","v":0},{"$f":"'Standing Data'!$F$9","v":0},"Fin.Return","E991",{"$f":"Fin.Return!E1118","v":0}]
[{"$f":"'Standing Data'!$D$15","v":{"$error":"#N/A"}},{"$f":"'Standing Data'!$F$15","v":0},{"$f":"'Standing Data'!$F$9","v":0},"Fin.Return","E992",{"$f":"Fin.Return!E1119","v":0}]
[{"$f":"'Standing Data'!$D$15","v":{"$error":"#N/A"}},{"$f":"'Standing Data'!$F$15","v":0},{"$f":"'Standing Data'!$F$9","v":0},"Fin.Return","E994",{"$f":"Fin.Return!E1121","v":0}]
[{"$f":"'Standing Data'!$D$15","v":{"$error":"#N/A"}},{"$f":"'Standing Data'!$F$15","v":0},{"$f":"'Standing Data'!$F$9","v":0},"Fin.Return","E995",{"$f":"Fin.Return!E1122","v":0}]
[{"$f":"'Standing Data'!$D$15","v":{"$error":"#N/A"}},{"$f":"'Standing Data'!$F$15","v":0},{"$f":"'Standing Data'!$F$9","v":0},"Fin.Return","E996",{"$f":"Fin.Return!E1123","v":0}]
[{"$f":"'Standing Data'!$D$15","v":{"$error":"#N/A"}},{"$f":"'Standing Data'!$F$15","v":0},{"$f":"'Standing Data'!$F$9","v":0},"Fin.Return","E998",{"$f":"Fin.Return!E1125","v":0}]
[{"$f":"'Standing Data'!$D$15","v":{"$error":"#N/A"}},{"$f":"'Standing Data'!$F$15","v":0},{"$f":"'Standing Data'!$F$9","v":0},"Fin.Return","E999",{"$f":"Fin.Return!E1126","v":0}]
[{"$f":"'Standing Data'!$D$15","v":{"$error":"#N/A"}},{"$f":"'Standing Data'!$F$15","v":0},{"$f":"'Standing Data'!$F$9","v":0},"Fin.Return","E1001",{"$f":"Fin.Return!E1128","v":0}]
[{"$f":"'Standing Data'!$D$15","v":{"$error":"#N/A"}},{"$f":"'Standing Data'!$F$15","v":0},{"$f":"'Standing Data'!$F$9","v":0},"Fin.Return","E1009",{"$f":"Fin.Return!E1136","v":0}]
[{"$f":"'Standing Data'!$D$15","v":{"$error":"#N/A"}},{"$f":"'Standing Data'!$F$15","v":0},{"$f":"'Standing Data'!$F$9","v":0},"Fin.Return","E1010",{"$f":"Fin.Return!E1137","v":0}]
[{"$f":"'Standing Data'!$D$15","v":{"$error":"#N/A"}},{"$f":"'Standing Data'!$F$15","v":0},{"$f":"'Standing Data'!$F$9","v":0},"Fin.Return","E1011",{"$f":"Fin.Return!E1138","v":0}]
[{"$f":"'Standing Data'!$D$15","v":{"$error":"#N/A"}},{"$f":"'Standing Data'!$F$15","v":0},{"$f":"'Standing Data'!$F$9","v":0},"Fin.Return","E1012",{"$f":"Fin.Return!E1139","v":0}]
[{"$f":"'Standing Data'!$D$15","v":{"$error":"#N/A"}},{"$f":"'Standing Data'!$F$15","v":0},{"$f":"'Standing Data'!$F$9","v":0},"Fin.Return","E1013",{"$f":"Fin.Return!E1140","v":0}]
[{"$f":"'Standing Data'!$D$15","v":{"$error":"#N/A"}},{"$f":"'Standing Data'!$F$15","v":0},{"$f":"'Standing Data'!$F$9","v":0},"Fin.Return","E1014",{"$f":"Fin.Return!E1141","v":0}]
[{"$f":"'Standing Data'!$D$15","v":{"$error":"#N/A"}},{"$f":"'Standing Data'!$F$15","v":0},{"$f":"'Standing Data'!$F$9","v":0},"Fin.Return","E1015",{"$f":"Fin.Return!E1142","v":0}]
[{"$f":"'Standing Data'!$D$15","v":{"$error":"#N/A"}},{"$f":"'Standing Data'!$F$15","v":0},{"$f":"'Standing Data'!$F$9","v":0},"Fin.Return","E1016",{"$f":"Fin.Return!E1143","v":0}]
[{"$f":"'Standing Data'!$D$15","v":{"$error":"#N/A"}},{"$f":"'Standing Data'!$F$15","v":0},{"$f":"'Standing Data'!$F$9","v":0},"Fin.Return","E1017",{"$f":"Fin.Return!E1144","v":0}]
[{"$f":"'Standing Data'!$D$15","v":{"$error":"#N/A"}},{"$f":"'Standing Data'!$F$15","v":0},{"$f":"'Standing Data'!$F$9","v":0},"Fin.Return","E1018",{"$f":"Fin.Return!E1145","v":0}]
[{"$f":"'Standing Data'!$D$15","v":{"$error":"#N/A"}},{"$f":"'Standing Data'!$F$15","v":0},{"$f":"'Standing Data'!$F$9","v":0},"Fin.Return","E1019",{"$f":"Fin.Return!E1146","v":0}]
[{"$f":"'Standing Data'!$D$15","v":{"$error":"#N/A"}},{"$f":"'Standing Data'!$F$15","v":0},{"$f":"'Standing Data'!$F$9","v":0},"Fin.Return","E1021",{"$f":"Fin.Return!E1148","v":0}]
[{"$f":"'Standing Data'!$D$15","v":{"$error":"#N/A"}},{"$f":"'Standing Data'!$F$15","v":0},{"$f":"'Standing Data'!$F$9","v":0},"Fin.Return","E1022",{"$f":"Fin.Return!E1149","v":0}]
[{"$f":"'Standing Data'!$D$15","v":{"$error":"#N/A"}},{"$f":"'Standing Data'!$F$15","v":0},{"$f":"'Standing Data'!$F$9","v":0},"Fin.Return","E1024",{"$f":"Fin.Return!E1151","v":0}]
[{"$f":"'Standing Data'!$D$15","v":{"$error":"#N/A"}},{"$f":"'Standing Data'!$F$15","v":0},{"$f":"'Standing Data'!$F$9","v":0},"Fin.Return","E1030",{"$f":"Fin.Return!E1157","v":0}]
[{"$f":"'Standing Data'!$D$15","v":{"$error":"#N/A"}},{"$f":"'Standing Data'!$F$15","v":0},{"$f":"'Standing Data'!$F$9","v":0},"Fin.Return","E1031",{"$f":"Fin.Return!E1158","v":0}]
[{"$f":"'Standing Data'!$D$15","v":{"$error":"#N/A"}},{"$f":"'Standing Data'!$F$15","v":0},{"$f":"'Standing Data'!$F$9","v":0},"Fin.Return","E1032",{"$f":"Fin.Return!E1159","v":0}]
[{"$f":"'Standing Data'!$D$15","v":{"$error":"#N/A"}},{"$f":"'Standing Data'!$F$15","v":0},{"$f":"'Standing Data'!$F$9","v":0},"Fin.Return","E1034",{"$f":"Fin.Return!E1161","v":0}]
[{"$f":"'Standing Data'!$D$15","v":{"$error":"#N/A"}},{"$f":"'Standing Data'!$F$15","v":0},{"$f":"'Standing Data'!$F$9","v":0},"Fin.Return","E1042",{"$f":"Fin.Return!E1169","v":0}]
[{"$f":"'Standing Data'!$D$15","v":{"$error":"#N/A"}},{"$f":"'Standing Data'!$F$15","v":0},{"$f":"'Standing Data'!$F$9","v":0},"Fin.Return","E1043",{"$f":"Fin.Return!E1170","v":0}]
[{"$f":"'Standing Data'!$D$15","v":{"$error":"#N/A"}},{"$f":"'Standing Data'!$F$15","v":0},{"$f":"'Standing Data'!$F$9","v":0},"Fin.Return","E1044",{"$f":"Fin.Return!E1171","v":0}]
[{"$f":"'Standing Data'!$D$15","v":{"$error":"#N/A"}},{"$f":"'Standing Data'!$F$15","v":0},{"$f":"'Standing Data'!$F$9","v":0},"Fin.Return","E1046",{"$f":"Fin.Return!E1173","v":0}]
[{"$f":"'Standing Data'!$D$15","v":{"$error":"#N/A"}},{"$f":"'Standing Data'!$F$15","v":0},{"$f":"'Standing Data'!$F$9","v":0},"Fin.Return","E1047",{"$f":"Fin.Return!E1174","v":0}]
[{"$f":"'Standing Data'!$D$15","v":{"$error":"#N/A"}},{"$f":"'Standing Data'!$F$15","v":0},{"$f":"'Standing Data'!$F$9","v":0},"Fin.Return","E1049",{"$f":"Fin.Return!E1176","v":0}]
[{"$f":"'Standing Data'!$D$15","v":{"$error":"#N/A"}},{"$f":"'Standing Data'!$F$15","v":0},{"$f":"'Standing Data'!$F$9","v":0},"Fin.Return","E1059",{"$f":"Fin.Return!E1186","v":0}]
[{"$f":"'Standing Data'!$D$15","v":{"$error":"#N/A"}},{"$f":"'Standing Data'!$F$15","v":0},{"$f":"'Standing Data'!$F$9","v":0},"Fin.Return","E1060",{"$f":"Fin.Return!E1187","v":0}]
[{"$f":"'Standing Data'!$D$15","v":{"$error":"#N/A"}},{"$f":"'Standing Data'!$F$15","v":0},{"$f":"'Standing Data'!$F$9","v":0},"Fin.Return","E1061",{"$f":"Fin.Return!E1188","v":0}]
[{"$f":"'Standing Data'!$D$15","v":{"$error":"#N/A"}},{"$f":"'Standing Data'!$F$15","v":0},{"$f":"'Standing Data'!$F$9","v":0},"Fin.Return","E1063",{"$f":"Fin.Return!E1190","v":0}]
[{"$f":"'Standing Data'!$D$15","v":{"$error":"#N/A"}},{"$f":"'Standing Data'!$F$15","v":0},{"$f":"'Standing Data'!$F$9","v":0},"Fin.Return","E1064",{"$f":"Fin.Return!E1191","v":0}]
[{"$f":"'Standing Data'!$D$15","v":{"$error":"#N/A"}},{"$f":"'Standing Data'!$F$15","v":0},{"$f":"'Standing Data'!$F$9","v":0},"Fin.Return","E1065",{"$f":"Fin.Return!E1192","v":0}]
[{"$f":"'Standing Data'!$D$15","v":{"$error":"#N/A"}},{"$f":"'Standing Data'!$F$15","v":0},{"$f":"'Standing Data'!$F$9","v":0},"Fin.Return","E1067",{"$f":"Fin.Return!E1194","v":0}]
[{"$f":"'Standing Data'!$D$15","v":{"$error":"#N/A"}},{"$f":"'Standing Data'!$F$15","v":0},{"$f":"'Standing Data'!$F$9","v":0},"Fin.Return","E1068",{"$f":"Fin.Return!E1195","v":0}]
[{"$f":"'Standing Data'!$D$15","v":{"$error":"#N/A"}},{"$f":"'Standing Data'!$F$15","v":0},{"$f":"'Standing Data'!$F$9","v":0},"Fin.Return","E1069",{"$f":"Fin.Return!E1196","v":0}]
[{"$f":"'Standing Data'!$D$15","v":{"$error":"#N/A"}},{"$f":"'Standing Data'!$F$15","v":0},{"$f":"'Standing Data'!$F$9","v":0},"Fin.Return","E1071",{"$f":"Fin.Return!E1198","v":0}]
[{"$f":"'Standing Data'!$D$15","v":{"$error":"#N/A"}},{"$f":"'Standing Data'!$F$15","v":0},{"$f":"'Standing Data'!$F$9","v":0},"Fin.Return","E1072",{"$f":"Fin.Return!E1199","v":0}]
[{"$f":"'Standing Data'!$D$15","v":{"$error":"#N/A"}},{"$f":"'Standing Data'!$F$15","v":0},{"$f":"'Standing Data'!$F$9","v":0},"Fin.Return","E1074",{"$f":"Fin.Return!E1201","v":0}]
[{"$f":"'Standing Data'!$D$15","v":{"$error":"#N/A"}},{"$f":"'Standing Data'!$F$15","v":0},{"$f":"'Standing Data'!$F$9","v":0},"Fin.Return","E1082",{"$f":"Fin.Return!E1209","v":0}]
[{"$f":"'Standing Data'!$D$15","v":{"$error":"#N/A"}},{"$f":"'Standing Data'!$F$15","v":0},{"$f":"'Standing Data'!$F$9","v":0},"Fin.Return","E1083",{"$f":"Fin.Return!E1210","v":0}]
[{"$f":"'Standing Data'!$D$15","v":{"$error":"#N/A"}},{"$f":"'Standing Data'!$F$15","v":0},{"$f":"'Standing Data'!$F$9","v":0},"Fin.Return","E1084",{"$f":"Fin.Return!E1211","v":0}]
[{"$f":"'Standing Data'!$D$15","v":{"$error":"#N/A"}},{"$f":"'Standing Data'!$F$15","v":0},{"$f":"'Standing Data'!$F$9","v":0},"Fin.Return","E1086",{"$f":"Fin.Return!E1213","v":0}]
[{"$f":"'Standing Data'!$D$15","v":{"$error":"#N/A"}},{"$f":"'Standing Data'!$F$15","v":0},{"$f":"'Standing Data'!$F$9","v":0},"Fin.Return","E1087",{"$f":"Fin.Return!E1214","v":0}]
[{"$f":"'Standing Data'!$D$15","v":{"$error":"#N/A"}},{"$f":"'Standing Data'!$F$15","v":0},{"$f":"'Standing Data'!$F$9","v":0},"Fin.Return","E1088",{"$f":"Fin.Return!E1215","v":0}]
[{"$f":"'Standing Data'!$D$15","v":{"$error":"#N/A"}},{"$f":"'Standing Data'!$F$15","v":0},{"$f":"'Standing Data'!$F$9","v":0},"Fin.Return","E1090",{"$f":"Fin.Return!E1217","v":0}]
[{"$f":"'Standing Data'!$D$15","v":{"$error":"#N/A"}},{"$f":"'Standing Data'!$F$15","v":0},{"$f":"'Standing Data'!$F$9","v":0},"Fin.Return","E1091",{"$f":"Fin.Return!E1218","v":0}]
[{"$f":"'Standing Data'!$D$15","v":{"$error":"#N/A"}},{"$f":"'Standing Data'!$F$15","v":0},{"$f":"'Standing Data'!$F$9","v":0},"Fin.Return","E1092",{"$f":"Fin.Return!E1219","v":0}]
[{"$f":"'Standing Data'!$D$15","v":{"$error":"#N/A"}},{"$f":"'Standing Data'!$F$15","v":0},{"$f":"'Standing Data'!$F$9","v":0},"Fin.Return","E1094",{"$f":"Fin.Return!E1221","v":0}]
[{"$f":"'Standing Data'!$D$15","v":{"$error":"#N/A"}},{"$f":"'Standing Data'!$F$15","v":0},{"$f":"'Standing Data'!$F$9","v":0},"Fin.Return","E1095",{"$f":"Fin.Return!E1222","v":0}]
[{"$f":"'Standing Data'!$D$15","v":{"$error":"#N/A"}},{"$f":"'Standing Data'!$F$15","v":0},{"$f":"'Standing Data'!$F$9","v":0},"Fin.Return","E1097",{"$f":"Fin.Return!E1224","v":0}]
[{"$f":"'Standing Data'!$D$15","v":{"$error":"#N/A"}},{"$f":"'Standing Data'!$F$15","v":0},{"$f":"'Standing Data'!$F$9","v":0},"Fin.Return","E1102",{"$f":"Fin.Return!E1229","v":0}]
[{"$f":"'Standing Data'!$D$15","v":{"$error":"#N/A"}},{"$f":"'Standing Data'!$F$15","v":0},{"$f":"'Standing Data'!$F$9","v":0},"Fin.Return","E1103",{"$f":"Fin.Return!E1230","v":0}]
[{"$f":"'Standing Data'!$D$15","v":{"$error":"#N/A"}},{"$f":"'Standing Data'!$F$15","v":0},{"$f":"'Standing Data'!$F$9","v":0},"Fin.Return","E1104",{"$f":"Fin.Return!E1231","v":0}]
[{"$f":"'Standing Data'!$D$15","v":{"$error":"#N/A"}},{"$f":"'Standing Data'!$F$15","v":0},{"$f":"'Standing Data'!$F$9","v":0},"Fin.Return","E1106",{"$f":"Fin.Return!E1233","v":0}]
[{"$f":"'Standing Data'!$D$15","v":{"$error":"#N/A"}},{"$f":"'Standing Data'!$F$15","v":0},{"$f":"'Standing Data'!$F$9","v":0},"Fin.Return","E1111",{"$f":"Fin.Return!E1238","v":0}]
[{"$f":"'Standing Data'!$D$15","v":{"$error":"#N/A"}},{"$f":"'Standing Data'!$F$15","v":0},{"$f":"'Standing Data'!$F$9","v":0},"Fin.Return","E1112",{"$f":"Fin.Return!E1239","v":0}]
[{"$f":"'Standing Data'!$D$15","v":{"$error":"#N/A"}},{"$f":"'Standing Data'!$F$15","v":0},{"$f":"'Standing Data'!$F$9","v":0},"Fin.Return","E1113",{"$f":"Fin.Return!E1240","v":0}]
[{"$f":"'Standing Data'!$D$15","v":{"$error":"#N/A"}},{"$f":"'Standing Data'!$F$15","v":0},{"$f":"'Standing Data'!$F$9","v":0},"Fin.Return","E1115",{"$f":"Fin.Return!E1242","v":0}]
[{"$f":"'Standing Data'!$D$15","v":{"$error":"#N/A"}},{"$f":"'Standing Data'!$F$15","v":0},{"$f":"'Standing Data'!$F$9","v":0},"Fin.Return","E1121",{"$f":"Fin.Return!E1248","v":0}]
[{"$f":"'Standing Data'!$D$15","v":{"$error":"#N/A"}},{"$f":"'Standing Data'!$F$15","v":0},{"$f":"'Standing Data'!$F$9","v":0},"Fin.Return","E1122",{"$f":"Fin.Return!E1249","v":0}]
[{"$f":"'Standing Data'!$D$15","v":{"$error":"#N/A"}},{"$f":"'Standing Data'!$F$15","v":0},{"$f":"'Standing Data'!$F$9","v":0},"Fin.Return","E1123",{"$f":"Fin.Return!E1250","v":0}]
[{"$f":"'Standing Data'!$D$15","v":{"$error":"#N/A"}},{"$f":"'Standing Data'!$F$15","v":0},{"$f":"'Standing Data'!$F$9","v":0},"Fin.Return","E1125",{"$f":"Fin.Return!E1252","v":0}]
[{"$f":"'Standing Data'!$D$15","v":{"$error":"#N/A"}},{"$f":"'Standing Data'!$F$15","v":0},{"$f":"'Standing Data'!$F$9","v":0},"Fin.Return","E1131",{"$f":"Fin.Return!E1258","v":0}]
[{"$f":"'Standing Data'!$D$15","v":{"$error":"#N/A"}},{"$f":"'Standing Data'!$F$15","v":0},{"$f":"'Standing Data'!$F$9","v":0},"Fin.Return","E1132",{"$f":"Fin.Return!E1259","v":0}]
[{"$f":"'Standing Data'!$D$15","v":{"$error":"#N/A"}},{"$f":"'Standing Data'!$F$15","v":0},{"$f":"'Standing Data'!$F$9","v":0},"Fin.Return","E1133",{"$f":"Fin.Return!E1260","v":0}]
[{"$f":"'Standing Data'!$D$15","v":{"$error":"#N/A"}},{"$f":"'Standing Data'!$F$15","v":0},{"$f":"'Standing Data'!$F$9","v":0},"Fin.Return","E1135",{"$f":"Fin.Return!E1262","v":0}]
[{"$f":"'Standing Data'!$D$15","v":{"$error":"#N/A"}},{"$f":"'Standing Data'!$F$15","v":0},{"$f":"'Standing Data'!$F$9","v":0},"Fin.Return","E1140",{"$f":"Fin.Return!E1267","v":0}]
[{"$f":"'Standing Data'!$D$15","v":{"$error":"#N/A"}},{"$f":"'Standing Data'!$F$15","v":0},{"$f":"'Standing Data'!$F$9","v":0},"Fin.Return","E1141",{"$f":"Fin.Return!E1268","v":0}]
[{"$f":"'Standing Data'!$D$15","v":{"$error":"#N/A"}},{"$f":"'Standing Data'!$F$15","v":0},{"$f":"'Standing Data'!$F$9","v":0},"Fin.Return","E1142",{"$f":"Fin.Return!E1269","v":0}]
[{"$f":"'Standing Data'!$D$15","v":{"$error":"#N/A"}},{"$f":"'Standing Data'!$F$15","v":0},{"$f":"'Standing Data'!$F$9","v":0},"Fin.Return","E1144",{"$f":"Fin.Return!E1271","v":0}]
[{"$f":"'Standing Data'!$D$15","v":{"$error":"#N/A"}},{"$f":"'Standing Data'!$F$15","v":0},{"$f":"'Standing Data'!$F$9","v":0},"Fin.Return","E1149",{"$f":"Fin.Return!#REF!","v":{"$error":"#REF!"}}]
[{"$f":"'Standing Data'!$D$15","v":{"$error":"#N/A"}},{"$f":"'Standing Data'!$F$15","v":0},{"$f":"'Standing Data'!$F$9","v":0},"Fin.Return","E1150",{"$f":"Fin.Return!#REF!","v":{"$error":"#REF!"}}]
[{"$f":"'Standing Data'!$D$15","v":{"$error":"#N/A"}},{"$f":"'Standing Data'!$F$15","v":0},{"$f":"'Standing Data'!$F$9","v":0},"Fin.Return","E1151",{"$f":"Fin.Return!#REF!","v":{"$error":"#REF!"}}]
[{"$f":"'Standing Data'!$D$15","v":{"$error":"#N/A"}},{"$f":"'Standing Data'!$F$15","v":0},{"$f":"'Standing Data'!$F$9","v":0},"Fin.Return","E1153",{"$f":"Fin.Return!#REF!","v":{"$error":"#REF!"}}]
[{"$f":"'Standing Data'!$D$15","v":{"$error":"#N/A"}},{"$f":"'Standing Data'!$F$15","v":0},{"$f":"'Standing Data'!$F$9","v":0},"Fin.Return","E1159",{"$f":"Fin.Return!#REF!","v":{"$error":"#REF!"}}]
[{"$f":"'Standing Data'!$D$15","v":{"$error":"#N/A"}},{"$f":"'Standing Data'!$F$15","v":0},{"$f":"'Standing Data'!$F$9","v":0},"Fin.Return","E1160",{"$f":"Fin.Return!#REF!","v":{"$error":"#REF!"}}]
[{"$f":"'Standing Data'!$D$15","v":{"$error":"#N/A"}},{"$f":"'Standing Data'!$F$15","v":0},{"$f":"'Standing Data'!$F$9","v":0},"Fin.Return","E1161",{"$f":"Fin.Return!#REF!","v":{"$error":"#REF!"}}]
[{"$f":"'Standing Data'!$D$15","v":{"$error":"#N/A"}},{"$f":"'Standing Data'!$F$15","v":0},{"$f":"'Standing Data'!$F$9","v":0},"Fin.Return","E1162",{"$f":"Fin.Return!#REF!","v":{"$error":"#REF!"}}]
[{"$f":"'Standing Data'!$D$15","v":{"$error":"#N/A"}},{"$f":"'Standing Data'!$F$15","v":0},{"$f":"'Standing Data'!$F$9","v":0},"Fin.Return","E1163",{"$f":"Fin.Return!#REF!","v":{"$error":"#REF!"}}]
[{"$f":"'Standing Data'!$D$15","v":{"$error":"#N/A"}},{"$f":"'Standing Data'!$F$15","v":0},{"$f":"'Standing Data'!$F$9","v":0},"Fin.Return","E1164",{"$f":"Fin.Return!#REF!","v":{"$error":"#REF!"}}]
[{"$f":"'Standing Data'!$D$15","v":{"$error":"#N/A"}},{"$f":"'Standing Data'!$F$15","v":0},{"$f":"'Standing Data'!$F$9","v":0},"Fin.Return","E1165",{"$f":"Fin.Return!#REF!","v":{"$error":"#REF!"}}]
[{"$f":"'Standing Data'!$D$15","v":{"$error":"#N/A"}},{"$f":"'Standing Data'!$F$15","v":0},{"$f":"'Standing Data'!$F$9","v":0},"Fin.Return","E1166",{"$f":"Fin.Return!#REF!","v":{"$error":"#REF!"}}]
[{"$f":"'Standing Data'!$D$15","v":{"$error":"#N/A"}},{"$f":"'Standing Data'!$F$15","v":0},{"$f":"'Standing Data'!$F$9","v":0},"Fin.Return","E1167",{"$f":"Fin.Return!#REF!","v":{"$error":"#REF!"}}]
[{"$f":"'Standing Data'!$D$15","v":{"$error":"#N/A"}},{"$f":"'Standing Data'!$F$15","v":0},{"$f":"'Standing Data'!$F$9","v":0},"Fin.Return","E1168",{"$f":"Fin.Return!#REF!","v":{"$error":"#REF!"}}]
[{"$f":"'Standing Data'!$D$15","v":{"$error":"#N/A"}},{"$f":"'Standing Data'!$F$15","v":0},{"$f":"'Standing Data'!$F$9","v":0},"Fin.Return","E1169",{"$f":"Fin.Return!#REF!","v":{"$error":"#REF!"}}]
[{"$f":"'Standing Data'!$D$15","v":{"$error":"#N/A"}},{"$f":"'Standing Data'!$F$15","v":0},{"$f":"'Standing Data'!$F$9","v":0},"Fin.Return","E1170",{"$f":"Fin.Return!#REF!","v":{"$error":"#REF!"}}]
[{"$f":"'Standing Data'!$D$15","v":{"$error":"#N/A"}},{"$f":"'Standing Data'!$F$15","v":0},{"$f":"'Standing Data'!$F$9","v":0},"Fin.Return","E1171",{"$f":"Fin.Return!#REF!","v":{"$error":"#REF!"}}]
[{"$f":"'Standing Data'!$D$15","v":{"$error":"#N/A"}},{"$f":"'Standing Data'!$F$15","v":0},{"$f":"'Standing Data'!$F$9","v":0},"Fin.Return","E1172",{"$f":"Fin.Return!#REF!","v":{"$error":"#REF!"}}]
[{"$f":"'Standing Data'!$D$15","v":{"$error":"#N/A"}},{"$f":"'Standing Data'!$F$15","v":0},{"$f":"'Standing Data'!$F$9","v":0},"Fin.Return","E1180",{"$f":"Fin.Return!E1277","v":0}]
[{"$f":"'Standing Data'!$D$15","v":{"$error":"#N/A"}},{"$f":"'Standing Data'!$F$15","v":0},{"$f":"'Standing Data'!$F$9","v":0},"Fin.Return","E1181",{"$f":"Fin.Return!E1278","v":0}]
[{"$f":"'Standing Data'!$D$15","v":{"$error":"#N/A"}},{"$f":"'Standing Data'!$F$15","v":0},{"$f":"'Standing Data'!$F$9","v":0},"Fin.Return","E1182",{"$f":"Fin.Return!E1279","v":0}]
[{"$f":"'Standing Data'!$D$15","v":{"$error":"#N/A"}},{"$f":"'Standing Data'!$F$15","v":0},{"$f":"'Standing Data'!$F$9","v":0},"Fin.Return","E1183",{"$f":"Fin.Return!E1280","v":0}]
[{"$f":"'Standing Data'!$D$15","v":{"$error":"#N/A"}},{"$f":"'Standing Data'!$F$15","v":0},{"$f":"'Standing Data'!$F$9","v":0},"Fin.Return","E1184",{"$f":"Fin.Return!E1281","v":0}]
[{"$f":"'Standing Data'!$D$15","v":{"$error":"#N/A"}},{"$f":"'Standing Data'!$F$15","v":0},{"$f":"'Standing Data'!$F$9","v":0},"Fin.Return","E1185",{"$f":"Fin.Return!E1282","v":0}]
[{"$f":"'Standing Data'!$D$15","v":{"$error":"#N/A"}},{"$f":"'Standing Data'!$F$15","v":0},{"$f":"'Standing Data'!$F$9","v":0},"Fin.Return","E1186",{"$f":"Fin.Return!E1283","v":0}]
[{"$f":"'Standing Data'!$D$15","v":{"$error":"#N/A"}},{"$f":"'Standing Data'!$F$15","v":0},{"$f":"'Standing Data'!$F$9","v":0},"Fin.Return","E1187",{"$f":"Fin.Return!E1284","v":0}]
[{"$f":"'Standing Data'!$D$15","v":{"$error":"#N/A"}},{"$f":"'Standing Data'!$F$15","v":0},{"$f":"'Standing Data'!$F$9","v":0},"Fin.Return","E1188",{"$f":"Fin.Return!E1285","v":0}]
[{"$f":"'Standing Data'!$D$15","v":{"$error":"#N/A"}},{"$f":"'Standing Data'!$F$15","v":0},{"$f":"'Standing Data'!$F$9","v":0},"Fin.Return","E1189",{"$f":"Fin.Return!E1286","v":0}]
[{"$f":"'Standing Data'!$D$15","v":{"$error":"#N/A"}},{"$f":"'Standing Data'!$F$15","v":0},{"$f":"'Standing Data'!$F$9","v":0},"Fin.Return","E1190",{"$f":"Fin.Return!E1287","v":0}]
[{"$f":"'Standing Data'!$D$15","v":{"$error":"#N/A"}},{"$f":"'Standing Data'!$F$15","v":0},{"$f":"'Standing Data'!$F$9","v":0},"Fin.Return","E1191",{"$f":"Fin.Return!E1288","v":0}]
[{"$f":"'Standing Data'!$D$15","v":{"$error":"#N/A"}},{"$f":"'Standing Data'!$F$15","v":0},{"$f":"'Standing Data'!$F$9","v":0},"Fin.Return","E1192",{"$f":"Fin.Return!E1289","v":0}]
[{"$f":"'Standing Data'!$D$15","v":{"$error":"#N/A"}},{"$f":"'Standing Data'!$F$15","v":0},{"$f":"'Standing Data'!$F$9","v":0},"Fin.Return","E1193",{"$f":"Fin.Return!E1290","v":0}]
[{"$f":"'Standing Data'!$D$15","v":{"$error":"#N/A"}},{"$f":"'Standing Data'!$F$15","v":0},{"$f":"'Standing Data'!$F$9","v":0},"Fin.Return","E1194",{"$f":"Fin.Return!E1291","v":0}]
[{"$f":"'Standing Data'!$D$15","v":{"$error":"#N/A"}},{"$f":"'Standing Data'!$F$15","v":0},{"$f":"'Standing Data'!$F$9","v":0},"Fin.Return","E1195",{"$f":"Fin.Return!E1292","v":0}]
[{"$f":"'Standing Data'!$D$15","v":{"$error":"#N/A"}},{"$f":"'Standing Data'!$F$15","v":0},{"$f":"'Standing Data'!$F$9","v":0},"Fin.Return","E1196",{"$f":"Fin.Return!E1293","v":0}]
[{"$f":"'Standing Data'!$D$15","v":{"$error":"#N/A"}},{"$f":"'Standing Data'!$F$15","v":0},{"$f":"'Standing Data'!$F$9","v":0},"Fin.Return","E1197",{"$f":"Fin.Return!E1294","v":0}]
[{"$f":"'Standing Data'!$D$15","v":{"$error":"#N/A"}},{"$f":"'Standing Data'!$F$15","v":0},{"$f":"'Standing Data'!$F$9","v":0},"Fin.Return","E1198",{"$f":"Fin.Return!E1295","v":0}]
[{"$f":"'Standing Data'!$D$15","v":{"$error":"#N/A"}},{"$f":"'Standing Data'!$F$15","v":0},{"$f":"'Standing Data'!$F$9","v":0},"Fin.Return","E1199",{"$f":"Fin.Return!E1296","v":0}]
[{"$f":"'Standing Data'!$D$15","v":{"$error":"#N/A"}},{"$f":"'Standing Data'!$F$15","v":0},{"$f":"'Standing Data'!$F$9","v":0},"Fin.Return","E1200",{"$f":"Fin.Return!E1297","v":0}]
[{"$f":"'Standing Data'!$D$15","v":{"$error":"#N/A"}},{"$f":"'Standing Data'!$F$15","v":0},{"$f":"'Standing Data'!$F$9","v":0},"Fin.Return","E1201",{"$f":"Fin.Return!E1298","v":0}]
[{"$f":"'Standing Data'!$D$15","v":{"$error":"#N/A"}},{"$f":"'Standing Data'!$F$15","v":0},{"$f":"'Standing Data'!$F$9","v":0},"Fin.Return","E1202",{"$f":"Fin.Return!E1299","v":0}]
[{"$f":"'Standing Data'!$D$15","v":{"$error":"#N/A"}},{"$f":"'Standing Data'!$F$15","v":0},{"$f":"'Standing Data'!$F$9","v":0},"Fin.Return","E1203",{"$f":"Fin.Return!E1300","v":0}]
[{"$f":"'Standing Data'!$D$15","v":{"$error":"#N/A"}},{"$f":"'Standing Data'!$F$15","v":0},{"$f":"'Standing Data'!$F$9","v":0},"Fin.Return","E1204",{"$f":"Fin.Return!E1301","v":0}]
[{"$f":"'Standing Data'!$D$15","v":{"$error":"#N/A"}},{"$f":"'Standing Data'!$F$15","v":0},{"$f":"'Standing Data'!$F$9","v":0},"Fin.Return","E1205",{"$f":"Fin.Return!E1302","v":0}]
[{"$f":"'Standing Data'!$D$15","v":{"$error":"#N/A"}},{"$f":"'Standing Data'!$F$15","v":0},{"$f":"'Standing Data'!$F$9","v":0},"Fin.Return","E1206",{"$f":"Fin.Return!E1303","v":0}]
[{"$f":"'Standing Data'!$D$15","v":{"$error":"#N/A"}},{"$f":"'Standing Data'!$F$15","v":0},{"$f":"'Standing Data'!$F$9","v":0},"Fin.Return","E1207",{"$f":"Fin.Return!E1304","v":0}]
[{"$f":"'Standing Data'!$D$15","v":{"$error":"#N/A"}},{"$f":"'Standing Data'!$F$15","v":0},{"$f":"'Standing Data'!$F$9","v":0},"Fin.Return","E1208",{"$f":"Fin.Return!E1305","v":0}]
[{"$f":"'Standing Data'!$D$15","v":{"$error":"#N/A"}},{"$f":"'Standing Data'!$F$15","v":0},{"$f":"'Standing Data'!$F$9","v":0},"Fin.Return","E1209",{"$f":"Fin.Return!E1306","v":0}]
[{"$f":"'Standing Data'!$D$15","v":{"$error":"#N/A"}},{"$f":"'Standing Data'!$F$15","v":0},{"$f":"'Standing Data'!$F$9","v":0},"Fin.Return","E1210",{"$f":"Fin.Return!E1307","v":0}]
[{"$f":"'Standing Data'!$D$15","v":{"$error":"#N/A"}},{"$f":"'Standing Data'!$F$15","v":0},{"$f":"'Standing Data'!$F$9","v":0},"Fin.Return","E1211",{"$f":"Fin.Return!E1308","v":0}]
[{"$f":"'Standing Data'!$D$15","v":{"$error":"#N/A"}},{"$f":"'Standing Data'!$F$15","v":0},{"$f":"'Standing Data'!$F$9","v":0},"Fin.Return","E1212",{"$f":"Fin.Return!E1309","v":0}]
[{"$f":"'Standing Data'!$D$15","v":{"$error":"#N/A"}},{"$f":"'Standing Data'!$F$15","v":0},{"$f":"'Standing Data'!$F$9","v":0},"Fin.Return","E1213",{"$f":"Fin.Return!E1310","v":0}]
[{"$f":"'Standing Data'!$D$15","v":{"$error":"#N/A"}},{"$f":"'Standing Data'!$F$15","v":0},{"$f":"'Standing Data'!$F$9","v":0},"Fin.Return","E1214",{"$f":"Fin.Return!E1311","v":0}]
[{"$f":"'Standing Data'!$D$15","v":{"$error":"#N/A"}},{"$f":"'Standing Data'!$F$15","v":0},{"$f":"'Standing Data'!$F$9","v":0},"Fin.Return","E1215",{"$f":"Fin.Return!E1312","v":0}]
[{"$f":"'Standing Data'!$D$15","v":{"$error":"#N/A"}},{"$f":"'Standing Data'!$F$15","v":0},{"$f":"'Standing Data'!$F$9","v":0},"Fin.Return","E1216",{"$f":"Fin.Return!E1313","v":0}]
[{"$f":"'Standing Data'!$D$15","v":{"$error":"#N/A"}},{"$f":"'Standing Data'!$F$15","v":0},{"$f":"'Standing Data'!$F$9","v":0},"Fin.Return","E1217",{"$f":"Fin.Return!E1314","v":0}]
[{"$f":"'Standing Data'!$D$15","v":{"$error":"#N/A"}},{"$f":"'Standing Data'!$F$15","v":0},{"$f":"'Standing Data'!$F$9","v":0},"Fin.Return","E1218",{"$f":"Fin.Return!E1315","v":0}]
[{"$f":"'Standing Data'!$D$15","v":{"$error":"#N/A"}},{"$f":"'Standing Data'!$F$15","v":0},{"$f":"'Standing Data'!$F$9","v":0},"Fin.Return","E1219",{"$f":"Fin.Return!E1316","v":0}]
[{"$f":"'Standing Data'!$D$15","v":{"$error":"#N/A"}},{"$f":"'Standing Data'!$F$15","v":0},{"$f":"'Standing Data'!$F$9","v":0},"Fin.Return","E1220",{"$f":"Fin.Return!E1317","v":0}]
[{"$f":"'Standing Data'!$D$15","v":{"$error":"#N/A"}},{"$f":"'Standing Data'!$F$15","v":0},{"$f":"'Standing Data'!$F$9","v":0},"Fin.Return","E1221",{"$f":"Fin.Return!E1318","v":0}]
[{"$f":"'Standing Data'!$D$15","v":{"$error":"#N/A"}},{"$f":"'Standing Data'!$F$15","v":0},{"$f":"'Standing Data'!$F$9","v":0},"Fin.Return","E1222",{"$f":"Fin.Return!E1319","v":0}]
[{"$f":"'Standing Data'!$D$15","v":{"$error":"#N/A"}},{"$f":"'Standing Data'!$F$15","v":0},{"$f":"'Standing Data'!$F$9","v":0},"Fin.Return","E1223",{"$f":"Fin.Return!E1320","v":0}]
[{"$f":"'Standing Data'!$D$15","v":{"$error":"#N/A"}},{"$f":"'Standing Data'!$F$15","v":0},{"$f":"'Standing Data'!$F$9","v":0},"Fin.Return","E1224",{"$f":"Fin.Return!E1321","v":0}]
[{"$f":"'Standing Data'!$D$15","v":{"$error":"#N/A"}},{"$f":"'Standing Data'!$F$15","v":0},{"$f":"'Standing Data'!$F$9","v":0},"Fin.Return","E1225",{"$f":"Fin.Return!E1322","v":0}]
[{"$f":"'Standing Data'!$D$15","v":{"$error":"#N/A"}},{"$f":"'Standing Data'!$F$15","v":0},{"$f":"'Standing Data'!$F$9","v":0},"Fin.Return","E1226",{"$f":"Fin.Return!E1323","v":0}]
[{"$f":"'Standing Data'!$D$15","v":{"$error":"#N/A"}},{"$f":"'Standing Data'!$F$15","v":0},{"$f":"'Standing Data'!$F$9","v":0},"Fin.Return","E1227",{"$f":"Fin.Return!E1324","v":0}]
[{"$f":"'Standing Data'!$D$15","v":{"$error":"#N/A"}},{"$f":"'Standing Data'!$F$15","v":0},{"$f":"'Standing Data'!$F$9","v":0},"Fin.Return","E1228",{"$f":"Fin.Return!E1325","v":0}]
[{"$f":"'Standing Data'!$D$15","v":{"$error":"#N/A"}},{"$f":"'Standing Data'!$F$15","v":0},{"$f":"'Standing Data'!$F$9","v":0},"Fin.Return","E1229",{"$f":"Fin.Return!E1326","v":0}]
[{"$f":"'Standing Data'!$D$15","v":{"$error":"#N/A"}},{"$f":"'Standing Data'!$F$15","v":0},{"$f":"'Standing Data'!$F$9","v":0},"Fin.Return","E1230",{"$f":"Fin.Return!E1327","v":0}]
[{"$f":"'Standing Data'!$D$15","v":{"$error":"#N/A"}},{"$f":"'Standing Data'!$F$15","v":0},{"$f":"'Standing Data'!$F$9","v":0},"Fin.Return","E1237",{"$f":"Fin.Return!E1334","v":0}]
[{"$f":"'Standing Data'!$D$15","v":{"$error":"#N/A"}},{"$f":"'Standing Data'!$F$15","v":0},{"$f":"'Standing Data'!$F$9","v":0},"Fin.Return","E1238",{"$f":"Fin.Return!E1335","v":0}]
[{"$f":"'Standing Data'!$D$15","v":{"$error":"#N/A"}},{"$f":"'Standing Data'!$F$15","v":0},{"$f":"'Standing Data'!$F$9","v":0},"Fin.Return","E1239",{"$f":"Fin.Return!E1336","v":0}]
[{"$f":"'Standing Data'!$D$15","v":{"$error":"#N/A"}},{"$f":"'Standing Data'!$F$15","v":0},{"$f":"'Standing Data'!$F$9","v":0},"Fin.Return","E1240",{"$f":"Fin.Return!E1337","v":0}]
[{"$f":"'Standing Data'!$D$15","v":{"$error":"#N/A"}},{"$f":"'Standing Data'!$F$15","v":0},{"$f":"'Standing Data'!$F$9","v":0},"Fin.Return","E1241",{"$f":"Fin.Return!E1338","v":0}]
[{"$f":"'Standing Data'!$D$15","v":{"$error":"#N/A"}},{"$f":"'Standing Data'!$F$15","v":0},{"$f":"'Standing Data'!$F$9","v":0},"Fin.Return","E1242",{"$f":"Fin.Return!E1339","v":0}]
[{"$f":"'Standing Data'!$D$15","v":{"$error":"#N/A"}},{"$f":"'Standing Data'!$F$15","v":0},{"$f":"'Standing Data'!$F$9","v":0},"Fin.Return","E1243",{"$f":"Fin.Return!E1340","v":0}]
[{"$f":"'Standing Data'!$D$15","v":{"$error":"#N/A"}},{"$f":"'Standing Data'!$F$15","v":0},{"$f":"'Standing Data'!$F$9","v":0},"Fin.Return","E1244",{"$f":"Fin.Return!E1341","v":0}]
[{"$f":"'Standing Data'!$D$15","v":{"$error":"#N/A"}},{"$f":"'Standing Data'!$F$15","v":0},{"$f":"'Standing Data'!$F$9","v":0},"Fin.Return","E1245",{"$f":"Fin.Return!E1342","v":0}]
[{"$f":"'Standing Data'!$D$15","v":{"$error":"#N/A"}},{"$f":"'Standing Data'!$F$15","v":0},{"$f":"'Standing Data'!$F$9","v":0},"Fin.Return","E1246",{"$f":"Fin.Return!E1343","v":0}]
[{"$f":"'Standing Data'!$D$15","v":{"$error":"#N/A"}},{"$f":"'Standing Data'!$F$15","v":0},{"$f":"'Standing Data'!$F$9","v":0},"Fin.Return","E1247",{"$f":"Fin.Return!E1344","v":0}]
[{"$f":"'Standing Data'!$D$15","v":{"$error":"#N/A"}},{"$f":"'Standing Data'!$F$15","v":0},{"$f":"'Standing Data'!$F$9","v":0},"Fin.Return","E1248",{"$f":"Fin.Return!E1345","v":0}]
[{"$f":"'Standing Data'!$D$15","v":{"$error":"#N/A"}},{"$f":"'Standing Data'!$F$15","v":0},{"$f":"'Standing Data'!$F$9","v":0},"Fin.Return","E1249",{"$f":"Fin.Return!E1346","v":0}]
[{"$f":"'Standing Data'!$D$15","v":{"$error":"#N/A"}},{"$f":"'Standing Data'!$F$15","v":0},{"$f":"'Standing Data'!$F$9","v":0},"Fin.Return","E1250",{"$f":"Fin.Return!E1347","v":0}]
[{"$f":"'Standing Data'!$D$15","v":{"$error":"#N/A"}},{"$f":"'Standing Data'!$F$15","v":0},{"$f":"'Standing Data'!$F$9","v":0},"Fin.Return","E1252",{"$f":"Fin.Return!E1349","v":0}]
[{"$f":"'Standing Data'!$D$15","v":{"$error":"#N/A"}},{"$f":"'Standing Data'!$F$15","v":0},{"$f":"'Standing Data'!$F$9","v":0},"Fin.Return","E1257",{"$f":"Fin.Return!E1354","v":0}]
[{"$f":"'Standing Data'!$D$15","v":{"$error":"#N/A"}},{"$f":"'Standing Data'!$F$15","v":0},{"$f":"'Standing Data'!$F$9","v":0},"Fin.Return","E1258",{"$f":"Fin.Return!E1355","v":0}]
[{"$f":"'Standing Data'!$D$15","v":{"$error":"#N/A"}},{"$f":"'Standing Data'!$F$15","v":0},{"$f":"'Standing Data'!$F$9","v":0},"Fin.Return","E1259",{"$f":"Fin.Return!E1356","v":0}]
[{"$f":"'Standing Data'!$D$15","v":{"$error":"#N/A"}},{"$f":"'Standing Data'!$F$15","v":0},{"$f":"'Standing Data'!$F$9","v":0},"Fin.Return","E1260",{"$f":"Fin.Return!E1357","v":0}]
[{"$f":"'Standing Data'!$D$15","v":{"$error":"#N/A"}},{"$f":"'Standing Data'!$F$15","v":0},{"$f":"'Standing Data'!$F$9","v":0},"Fin.Return","E1261",{"$f":"Fin.Return!E1358","v":0}]
[{"$f":"'Standing Data'!$D$15","v":{"$error":"#N/A"}},{"$f":"'Standing Data'!$F$15","v":0},{"$f":"'Standing Data'!$F$9","v":0},"Fin.Return","E1262",{"$f":"Fin.Return!E1359","v":0}]
[{"$f":"'Standing Data'!$D$15","v":{"$error":"#N/A"}},{"$f":"'Standing Data'!$F$15","v":0},{"$f":"'Standing Data'!$F$9","v":0},"Fin.Return","E1263",{"$f":"Fin.Return!E1360","v":0}]
[{"$f":"'Standing Data'!$D$15","v":{"$error":"#N/A"}},{"$f":"'Standing Data'!$F$15","v":0},{"$f":"'Standing Data'!$F$9","v":0},"Fin.Return","E1264",{"$f":"Fin.Return!E1361","v":0}]
[{"$f":"'Standing Data'!$D$15","v":{"$error":"#N/A"}},{"$f":"'Standing Data'!$F$15","v":0},{"$f":"'Standing Data'!$F$9","v":0},"Fin.Return","E1265",{"$f":"Fin.Return!E1362","v":0}]
[{"$f":"'Standing Data'!$D$15","v":{"$error":"#N/A"}},{"$f":"'Standing Data'!$F$15","v":0},{"$f":"'Standing Data'!$F$9","v":0},"Fin.Return","E1266",{"$f":"Fin.Return!E1363","v":0}]
[{"$f":"'Standing Data'!$D$15","v":{"$error":"#N/A"}},{"$f":"'Standing Data'!$F$15","v":0},{"$f":"'Standing Data'!$F$9","v":0},"Fin.Return","E1267",{"$f":"Fin.Return!E1364","v":0}]
[{"$f":"'Standing Data'!$D$15","v":{"$error":"#N/A"}},{"$f":"'Standing Data'!$F$15","v":0},{"$f":"'Standing Data'!$F$9","v":0},"Fin.Return","E1268",{"$f":"Fin.Return!E1365","v":0}]
[{"$f":"'Standing Data'!$D$15","v":{"$error":"#N/A"}},{"$f":"'Standing Data'!$F$15","v":0},{"$f":"'Standing Data'!$F$9","v":0},"Fin.Return","G18",{"$f":"Fin.Return!G20","v":0}]
[{"$f":"'Standing Data'!$D$15","v":{"$error":"#N/A"}},{"$f":"'Standing Data'!$F$15","v":0},{"$f":"'Standing Data'!$F$9","v":0},"Fin.Return","G19",{"$f":"Fin.Return!G21","v":0}]
[{"$f":"'Standing Data'!$D$15","v":{"$error":"#N/A"}},{"$f":"'Standing Data'!$F$15","v":0},{"$f":"'Standing Data'!$F$9","v":0},"Fin.Return","G20",{"$f":"Fin.Return!G22","v":0}]
[{"$f":"'Standing Data'!$D$15","v":{"$error":"#N/A"}},{"$f":"'Standing Data'!$F$15","v":0},{"$f":"'Standing Data'!$F$9","v":0},"Fin.Return","G21",{"$f":"Fin.Return!G23","v":0}]
[{"$f":"'Standing Data'!$D$15","v":{"$error":"#N/A"}},{"$f":"'Standing Data'!$F$15","v":0},{"$f":"'Standing Data'!$F$9","v":0},"Fin.Return","G23",{"$f":"Fin.Return!G25","v":0}]
[{"$f":"'Standing Data'!$D$15","v":{"$error":"#N/A"}},{"$f":"'Standing Data'!$F$15","v":0},{"$f":"'Standing Data'!$F$9","v":0},"Fin.Return","G24",{"$f":"Fin.Return!G26","v":0}]
[{"$f":"'Standing Data'!$D$15","v":{"$error":"#N/A"}},{"$f":"'Standing Data'!$F$15","v":0},{"$f":"'Standing Data'!$F$9","v":0},"Fin.Return","G26",{"$f":"Fin.Return!G28","v":0}]
[{"$f":"'Standing Data'!$D$15","v":{"$error":"#N/A"}},{"$f":"'Standing Data'!$F$15","v":0},{"$f":"'Standing Data'!$F$9","v":0},"Fin.Return","G29",{"$f":"Fin.Return!G31","v":0}]
[{"$f":"'Standing Data'!$D$15","v":{"$error":"#N/A"}},{"$f":"'Standing Data'!$F$15","v":0},{"$f":"'Standing Data'!$F$9","v":0},"Fin.Return","G30",{"$f":"Fin.Return!G32","v":0}]
[{"$f":"'Standing Data'!$D$15","v":{"$error":"#N/A"}},{"$f":"'Standing Data'!$F$15","v":0},{"$f":"'Standing Data'!$F$9","v":0},"Fin.Return","G31",{"$f":"Fin.Return!G33","v":0}]
[{"$f":"'Standing Data'!$D$15","v":{"$error":"#N/A"}},{"$f":"'Standing Data'!$F$15","v":0},{"$f":"'Standing Data'!$F$9","v":0},"Fin.Return","G33",{"$f":"Fin.Return!G35","v":0}]
[{"$f":"'Standing Data'!$D$15","v":{"$error":"#N/A"}},{"$f":"'Standing Data'!$F$15","v":0},{"$f":"'Standing Data'!$F$9","v":0},"Fin.Return","G34",{"$f":"Fin.Return!G36","v":0}]
[{"$f":"'Standing Data'!$D$15","v":{"$error":"#N/A"}},{"$f":"'Standing Data'!$F$15","v":0},{"$f":"'Standing Data'!$F$9","v":0},"Fin.Return","G35",{"$f":"Fin.Return!G37","v":0}]
[{"$f":"'Standing Data'!$D$15","v":{"$error":"#N/A"}},{"$f":"'Standing Data'!$F$15","v":0},{"$f":"'Standing Data'!$F$9","v":0},"Fin.Return","G37",{"$f":"Fin.Return!G39","v":0}]
[{"$f":"'Standing Data'!$D$15","v":{"$error":"#N/A"}},{"$f":"'Standing Data'!$F$15","v":0},{"$f":"'Standing Data'!$F$9","v":0},"Fin.Return","G38",{"$f":"Fin.Return!G40","v":0}]
[{"$f":"'Standing Data'!$D$15","v":{"$error":"#N/A"}},{"$f":"'Standing Data'!$F$15","v":0},{"$f":"'Standing Data'!$F$9","v":0},"Fin.Return","G39",{"$f":"Fin.Return!G41","v":0}]
[{"$f":"'Standing Data'!$D$15","v":{"$error":"#N/A"}},{"$f":"'Standing Data'!$F$15","v":0},{"$f":"'Standing Data'!$F$9","v":0},"Fin.Return","G41",{"$f":"Fin.Return!G43","v":0}]
[{"$f":"'Standing Data'!$D$15","v":{"$error":"#N/A"}},{"$f":"'Standing Data'!$F$15","v":0},{"$f":"'Standing Data'!$F$9","v":0},"Fin.Return","G43",{"$f":"Fin.Return!G45","v":0}]
[{"$f":"'Standing Data'!$D$15","v":{"$error":"#N/A"}},{"$f":"'Standing Data'!$F$15","v":0},{"$f":"'Standing Data'!$F$9","v":0},"Fin.Return","G44",{"$f":"Fin.Return!G46","v":0}]
[{"$f":"'Standing Data'!$D$15","v":{"$error":"#N/A"}},{"$f":"'Standing Data'!$F$15","v":0},{"$f":"'Standing Data'!$F$9","v":0},"Fin.Return","G45",{"$f":"Fin.Return!G47","v":0}]
[{"$f":"'Standing Data'!$D$15","v":{"$error":"#N/A"}},{"$f":"'Standing Data'!$F$15","v":0},{"$f":"'Standing Data'!$F$9","v":0},"Fin.Return","G46",{"$f":"Fin.Return!G48","v":0}]
[{"$f":"'Standing Data'!$D$15","v":{"$error":"#N/A"}},{"$f":"'Standing Data'!$F$15","v":0},{"$f":"'Standing Data'!$F$9","v":0},"Fin.Return","G48",{"$f":"Fin.Return!G50","v":0}]
[{"$f":"'Standing Data'!$D$15","v":{"$error":"#N/A"}},{"$f":"'Standing Data'!$F$15","v":0},{"$f":"'Standing Data'!$F$9","v":0},"Fin.Return","G50",{"$f":"Fin.Return!G52","v":0}]
[{"$f":"'Standing Data'!$D$15","v":{"$error":"#N/A"}},{"$f":"'Standing Data'!$F$15","v":0},{"$f":"'Standing Data'!$F$9","v":0},"Fin.Return","G51",{"$f":"Fin.Return!G53","v":0}]
[{"$f":"'Standing Data'!$D$15","v":{"$error":"#N/A"}},{"$f":"'Standing Data'!$F$15","v":0},{"$f":"'Standing Data'!$F$9","v":0},"Fin.Return","G52",{"$f":"Fin.Return!G54","v":0}]
[{"$f":"'Standing Data'!$D$15","v":{"$error":"#N/A"}},{"$f":"'Standing Data'!$F$15","v":0},{"$f":"'Standing Data'!$F$9","v":0},"Fin.Return","G54",{"$f":"Fin.Return!G56","v":0}]
[{"$f":"'Standing Data'!$D$15","v":{"$error":"#N/A"}},{"$f":"'Standing Data'!$F$15","v":0},{"$f":"'Standing Data'!$F$9","v":0},"Fin.Return","G63",{"$f":"Fin.Return!G65","v":0}]
[{"$f":"'Standing Data'!$D$15","v":{"$error":"#N/A"}},{"$f":"'Standing Data'!$F$15","v":0},{"$f":"'Standing Data'!$F$9","v":0},"Fin.Return","G64",{"$f":"Fin.Return!G66","v":0}]
[{"$f":"'Standing Data'!$D$15","v":{"$error":"#N/A"}},{"$f":"'Standing Data'!$F$15","v":0},{"$f":"'Standing Data'!$F$9","v":0},"Fin.Return","G65",{"$f":"Fin.Return!G67","v":0}]
[{"$f":"'Standing Data'!$D$15","v":{"$error":"#N/A"}},{"$f":"'Standing Data'!$F$15","v":0},{"$f":"'Standing Data'!$F$9","v":0},"Fin.Return","G67",{"$f":"Fin.Return!G69","v":0}]
[{"$f":"'Standing Data'!$D$15","v":{"$error":"#N/A"}},{"$f":"'Standing Data'!$F$15","v":0},{"$f":"'Standing Data'!$F$9","v":0},"Fin.Return","G78",{"$f":"Fin.Return!G80","v":0}]
[{"$f":"'Standing Data'!$D$15","v":{"$error":"#N/A"}},{"$f":"'Standing Data'!$F$15","v":0},{"$f":"'Standing Data'!$F$9","v":0},"Fin.Return","G80",{"$f":"Fin.Return!G82","v":0}]
[{"$f":"'Standing Data'!$D$15","v":{"$error":"#N/A"}},{"$f":"'Standing Data'!$F$15","v":0},{"$f":"'Standing Data'!$F$9","v":0},"Fin.Return","G81",{"$f":"Fin.Return!G83","v":0}]
[{"$f":"'Standing Data'!$D$15","v":{"$error":"#N/A"}},{"$f":"'Standing Data'!$F$15","v":0},{"$f":"'Standing Data'!$F$9","v":0},"Fin.Return","G82",{"$f":"Fin.Return!G84","v":0}]
[{"$f":"'Standing Data'!$D$15","v":{"$error":"#N/A"}},{"$f":"'Standing Data'!$F$15","v":0},{"$f":"'Standing Data'!$F$9","v":0},"Fin.Return","G84",{"$f":"Fin.Return!G86","v":0}]
[{"$f":"'Standing Data'!$D$15","v":{"$error":"#N/A"}},{"$f":"'Standing Data'!$F$15","v":0},{"$f":"'Standing Data'!$F$9","v":0},"Fin.Return","G85",{"$f":"Fin.Return!G87","v":0}]
[{"$f":"'Standing Data'!$D$15","v":{"$error":"#N/A"}},{"$f":"'Standing Data'!$F$15","v":0},{"$f":"'Standing Data'!$F$9","v":0},"Fin.Return","G87",{"$f":"Fin.Return!G89","v":0}]
[{"$f":"'Standing Data'!$D$15","v":{"$error":"#N/A"}},{"$f":"'Standing Data'!$F$15","v":0},{"$f":"'Standing Data'!$F$9","v":0},"Fin.Return","G89",{"$f":"Fin.Return!G91","v":0}]
[{"$f":"'Standing Data'!$D$15","v":{"$error":"#N/A"}},{"$f":"'Standing Data'!$F$15","v":0},{"$f":"'Standing Data'!$F$9","v":0},"Fin.Return","G91",{"$f":"Fin.Return!G93","v":0}]
[{"$f":"'Standing Data'!$D$15","v":{"$error":"#N/A"}},{"$f":"'Standing Data'!$F$15","v":0},{"$f":"'Standing Data'!$F$9","v":0},"Fin.Return","G92",{"$f":"Fin.Return!G94","v":0}]
[{"$f":"'Standing Data'!$D$15","v":{"$error":"#N/A"}},{"$f":"'Standing Data'!$F$15","v":0},{"$f":"'Standing Data'!$F$9","v":0},"Fin.Return","G93",{"$f":"Fin.Return!G95","v":0}]
[{"$f":"'Standing Data'!$D$15","v":{"$error":"#N/A"}},{"$f":"'Standing Data'!$F$15","v":0},{"$f":"'Standing Data'!$F$9","v":0},"Fin.Return","G95",{"$f":"Fin.Return!G97","v":0}]
[{"$f":"'Standing Data'!$D$15","v":{"$error":"#N/A"}},{"$f":"'Standing Data'!$F$15","v":0},{"$f":"'Standing Data'!$F$9","v":0},"Fin.Return","G97",{"$f":"Fin.Return!G99","v":0}]
[{"$f":"'Standing Data'!$D$15","v":{"$error":"#N/A"}},{"$f":"'Standing Data'!$F$15","v":0},{"$f":"'Standing Data'!$F$9","v":0},"Fin.Return","G99",{"$f":"Fin.Return!G101","v":0}]
[{"$f":"'Standing Data'!$D$15","v":{"$error":"#N/A"}},{"$f":"'Standing Data'!$F$15","v":0},{"$f":"'Standing Data'!$F$9","v":0},"Fin.Return","G101",{"$f":"Fin.Return!G103","v":0}]
[{"$f":"'Standing Data'!$D$15","v":{"$error":"#N/A"}},{"$f":"'Standing Data'!$F$15","v":0},{"$f":"'Standing Data'!$F$9","v":0},"Fin.Return","G134",{"$f":"Fin.Return!G136","v":0}]
[{"$f":"'Standing Data'!$D$15","v":{"$error":"#N/A"}},{"$f":"'Standing Data'!$F$15","v":0},{"$f":"'Standing Data'!$F$9","v":0},"Fin.Return","G135",{"$f":"Fin.Return!G137","v":0}]
[{"$f":"'Standing Data'!$D$15","v":{"$error":"#N/A"}},{"$f":"'Standing Data'!$F$15","v":0},{"$f":"'Standing Data'!$F$9","v":0},"Fin.Return","G136",{"$f":"Fin.Return!G138","v":0}]
[{"$f":"'Standing Data'!$D$15","v":{"$error":"#N/A"}},{"$f":"'Standing Data'!$F$15","v":0},{"$f":"'Standing Data'!$F$9","v":0},"Fin.Return","G138",{"$f":"Fin.Return!G140","v":0}]
[{"$f":"'Standing Data'!$D$15","v":{"$error":"#N/A"}},{"$f":"'Standing Data'!$F$15","v":0},{"$f":"'Standing Data'!$F$9","v":0},"Fin.Return","G144",{"$f":"Fin.Return!G146","v":0}]
[{"$f":"'Standing Data'!$D$15","v":{"$error":"#N/A"}},{"$f":"'Standing Data'!$F$15","v":0},{"$f":"'Standing Data'!$F$9","v":0},"Fin.Return","G145",{"$f":"Fin.Return!G147","v":0}]
[{"$f":"'Standing Data'!$D$15","v":{"$error":"#N/A"}},{"$f":"'Standing Data'!$F$15","v":0},{"$f":"'Standing Data'!$F$9","v":0},"Fin.Return","G146",{"$f":"Fin.Return!G148","v":0}]
[{"$f":"'Standing Data'!$D$15","v":{"$error":"#N/A"}},{"$f":"'Standing Data'!$F$15","v":0},{"$f":"'Standing Data'!$F$9","v":0},"Fin.Return","G147",{"$f":"Fin.Return!G150","v":0}]
[{"$f":"'Standing Data'!$D$15","v":{"$error":"#N/A"}},{"$f":"'Standing Data'!$F$15","v":0},{"$f":"'Standing Data'!$F$9","v":0},"Fin.Return","G149",{"$f":"Fin.Return!G152","v":0}]
[{"$f":"'Standing Data'!$D$15","v":{"$error":"#N/A"}},{"$f":"'Standing Data'!$F$15","v":0},{"$f":"'Standing Data'!$F$9","v":0},"Fin.Return","G155",{"$f":"Fin.Return!G158","v":0}]
[{"$f":"'Standing Data'!$D$15","v":{"$error":"#N/A"}},{"$f":"'Standing Data'!$F$15","v":0},{"$f":"'Standing Data'!$F$9","v":0},"Fin.Return","G156",{"$f":"Fin.Return!G159","v":0}]
[{"$f":"'Standing Data'!$D$15","v":{"$error":"#N/A"}},{"$f":"'Standing Data'!$F$15","v":0},{"$f":"'Standing Data'!$F$9","v":0},"Fin.Return","G157",{"$f":"Fin.Return!G160","v":0}]
[{"$f":"'Standing Data'!$D$15","v":{"$error":"#N/A"}},{"$f":"'Standing Data'!$F$15","v":0},{"$f":"'Standing Data'!$F$9","v":0},"Fin.Return","G158",{"$f":"Fin.Return!G161","v":0}]
[{"$f":"'Standing Data'!$D$15","v":{"$error":"#N/A"}},{"$f":"'Standing Data'!$F$15","v":0},{"$f":"'Standing Data'!$F$9","v":0},"Fin.Return","G160",{"$f":"Fin.Return!G163","v":0}]
[{"$f":"'Standing Data'!$D$15","v":{"$error":"#N/A"}},{"$f":"'Standing Data'!$F$15","v":0},{"$f":"'Standing Data'!$F$9","v":0},"Fin.Return","G168",{"$f":"Fin.Return!G171","v":0}]
[{"$f":"'Standing Data'!$D$15","v":{"$error":"#N/A"}},{"$f":"'Standing Data'!$F$15","v":0},{"$f":"'Standing Data'!$F$9","v":0},"Fin.Return","G169",{"$f":"Fin.Return!G172","v":0}]
[{"$f":"'Standing Data'!$D$15","v":{"$error":"#N/A"}},{"$f":"'Standing Data'!$F$15","v":0},{"$f":"'Standing Data'!$F$9","v":0},"Fin.Return","G170",{"$f":"Fin.Return!G173","v":0}]
[{"$f":"'Standing Data'!$D$15","v":{"$error":"#N/A"}},{"$f":"'Standing Data'!$F$15","v":0},{"$f":"'Standing Data'!$F$9","v":0},"Fin.Return","G171",{"$f":"Fin.Return!G174","v":0}]
[{"$f":"'Standing Data'!$D$15","v":{"$error":"#N/A"}},{"$f":"'Standing Data'!$F$15","v":0},{"$f":"'Standing Data'!$F$9","v":0},"Fin.Return","G172",{"$f":"Fin.Return!G175","v":0}]
[{"$f":"'Standing Data'!$D$15","v":{"$error":"#N/A"}},{"$f":"'Standing Data'!$F$15","v":0},{"$f":"'Standing Data'!$F$9","v":0},"Fin.Return","G173",{"$f":"Fin.Return!G176","v":0}]
[{"$f":"'Standing Data'!$D$15","v":{"$error":"#N/A"}},{"$f":"'Standing Data'!$F$15","v":0},{"$f":"'Standing Data'!$F$9","v":0},"Fin.Return","G174",{"$f":"Fin.Return!G177","v":0}]
[{"$f":"'Standing Data'!$D$15","v":{"$error":"#N/A"}},{"$f":"'Standing Data'!$F$15","v":0},{"$f":"'Standing Data'!$F$9","v":0},"Fin.Return","G175",{"$f":"Fin.Return!G178","v":0}]
[{"$f":"'Standing Data'!$D$15","v":{"$error":"#N/A"}},{"$f":"'Standing Data'!$F$15","v":0},{"$f":"'Standing Data'!$F$9","v":0},"Fin.Return","G176",{"$f":"Fin.Return!G179","v":0}]
[{"$f":"'Standing Data'!$D$15","v":{"$error":"#N/A"}},{"$f":"'Standing Data'!$F$15","v":0},{"$f":"'Standing Data'!$F$9","v":0},"Fin.Return","G177",{"$f":"Fin.Return!G180","v":0}]
[{"$f":"'Standing Data'!$D$15","v":{"$error":"#N/A"}},{"$f":"'Standing Data'!$F$15","v":0},{"$f":"'Standing Data'!$F$9","v":0},"Fin.Return","G178",{"$f":"Fin.Return!G181","v":0}]
[{"$f":"'Standing Data'!$D$15","v":{"$error":"#N/A"}},{"$f":"'Standing Data'!$F$15","v":0},{"$f":"'Standing Data'!$F$9","v":0},"Fin.Return","G179",{"$f":"Fin.Return!G182","v":0}]
[{"$f":"'Standing Data'!$D$15","v":{"$error":"#N/A"}},{"$f":"'Standing Data'!$F$15","v":0},{"$f":"'Standing Data'!$F$9","v":0},"Fin.Return","G180",{"$f":"Fin.Return!G183","v":0}]
[{"$f":"'Standing Data'!$D$15","v":{"$error":"#N/A"}},{"$f":"'Standing Data'!$F$15","v":0},{"$f":"'Standing Data'!$F$9","v":0},"Fin.Return","G181",{"$f":"Fin.Return!G184","v":0}]
[{"$f":"'Standing Data'!$D$15","v":{"$error":"#N/A"}},{"$f":"'Standing Data'!$F$15","v":0},{"$f":"'Standing Data'!$F$9","v":0},"Fin.Return","G182",{"$f":"Fin.Return!G185","v":0}]
[{"$f":"'Standing Data'!$D$15","v":{"$error":"#N/A"}},{"$f":"'Standing Data'!$F$15","v":0},{"$f":"'Standing Data'!$F$9","v":0},"Fin.Return","G183",{"$f":"Fin.Return!G186","v":0}]
[{"$f":"'Standing Data'!$D$15","v":{"$error":"#N/A"}},{"$f":"'Standing Data'!$F$15","v":0},{"$f":"'Standing Data'!$F$9","v":0},"Fin.Return","G184",{"$f":"Fin.Return!G187","v":0}]
[{"$f":"'Standing Data'!$D$15","v":{"$error":"#N/A"}},{"$f":"'Standing Data'!$F$15","v":0},{"$f":"'Standing Data'!$F$9","v":0},"Fin.Return","G185",{"$f":"Fin.Return!G188","v":0}]
[{"$f":"'Standing Data'!$D$15","v":{"$error":"#N/A"}},{"$f":"'Standing Data'!$F$15","v":0},{"$f":"'Standing Data'!$F$9","v":0},"Fin.Return","G186",{"$f":"Fin.Return!G189","v":0}]
[{"$f":"'Standing Data'!$D$15","v":{"$error":"#N/A"}},{"$f":"'Standing Data'!$F$15","v":0},{"$f":"'Standing Data'!$F$9","v":0},"Fin.Return","G187",{"$f":"Fin.Return!G190","v":0}]
[{"$f":"'Standing Data'!$D$15","v":{"$error":"#N/A"}},{"$f":"'Standing Data'!$F$15","v":0},{"$f":"'Standing Data'!$F$9","v":0},"Fin.Return","G188",{"$f":"Fin.Return!G191","v":0}]
[{"$f":"'Standing Data'!$D$15","v":{"$error":"#N/A"}},{"$f":"'Standing Data'!$F$15","v":0},{"$f":"'Standing Data'!$F$9","v":0},"Fin.Return","G189",{"$f":"Fin.Return!G192","v":0}]
[{"$f":"'Standing Data'!$D$15","v":{"$error":"#N/A"}},{"$f":"'Standing Data'!$F$15","v":0},{"$f":"'Standing Data'!$F$9","v":0},"Fin.Return","G191",{"$f":"Fin.Return!G194","v":0}]
[{"$f":"'Standing Data'!$D$15","v":{"$error":"#N/A"}},{"$f":"'Standing Data'!$F$15","v":0},{"$f":"'Standing Data'!$F$9","v":0},"Fin.Return","G193",{"$f":"Fin.Return!G196","v":0}]
[{"$f":"'Standing Data'!$D$15","v":{"$error":"#N/A"}},{"$f":"'Standing Data'!$F$15","v":0},{"$f":"'Standing Data'!$F$9","v":0},"Fin.Return","G194",{"$f":"Fin.Return!G197","v":0}]
[{"$f":"'Standing Data'!$D$15","v":{"$error":"#N/A"}},{"$f":"'Standing Data'!$F$15","v":0},{"$f":"'Standing Data'!$F$9","v":0},"Fin.Return","G195",{"$f":"Fin.Return!G198","v":0}]
[{"$f":"'Standing Data'!$D$15","v":{"$error":"#N/A"}},{"$f":"'Standing Data'!$F$15","v":0},{"$f":"'Standing Data'!$F$9","v":0},"Fin.Return","G196",{"$f":"Fin.Return!G199","v":0}]
[{"$f":"'Standing Data'!$D$15","v":{"$error":"#N/A"}},{"$f":"'Standing Data'!$F$15","v":0},{"$f":"'Standing Data'!$F$9","v":0},"Fin.Return","G197",{"$f":"Fin.Return!G200","v":0}]
[{"$f":"'Standing Data'!$D$15","v":{"$error":"#N/A"}},{"$f":"'Standing Data'!$F$15","v":0},{"$f":"'Standing Data'!$F$9","v":0},"Fin.Return","G198",{"$f":"Fin.Return!G201","v":0}]
[{"$f":"'Standing Data'!$D$15","v":{"$error":"#N/A"}},{"$f":"'Standing Data'!$F$15","v":0},{"$f":"'Standing Data'!$F$9","v":0},"Fin.Return","G200",{"$f":"Fin.Return!G203","v":0}]
[{"$f":"'Standing Data'!$D$15","v":{"$error":"#N/A"}},{"$f":"'Standing Data'!$F$15","v":0},{"$f":"'Standing Data'!$F$9","v":0},"Fin.Return","G202",{"$f":"Fin.Return!G205","v":0}]
[{"$f":"'Standing Data'!$D$15","v":{"$error":"#N/A"}},{"$f":"'Standing Data'!$F$15","v":0},{"$f":"'Standing Data'!$F$9","v":0},"Fin.Return","G203",{"$f":"Fin.Return!G206","v":0}]
[{"$f":"'Standing Data'!$D$15","v":{"$error":"#N/A"}},{"$f":"'Standing Data'!$F$15","v":0},{"$f":"'Standing Data'!$F$9","v":0},"Fin.Return","G204",{"$f":"Fin.Return!G207","v":0}]
[{"$f":"'Standing Data'!$D$15","v":{"$error":"#N/A"}},{"$f":"'Standing Data'!$F$15","v":0},{"$f":"'Standing Data'!$F$9","v":0},"Fin.Return","G205",{"$f":"Fin.Return!G208","v":0}]
[{"$f":"'Standing Data'!$D$15","v":{"$error":"#N/A"}},{"$f":"'Standing Data'!$F$15","v":0},{"$f":"'Standing Data'!$F$9","v":0},"Fin.Return","G206",{"$f":"Fin.Return!G209","v":0}]
[{"$f":"'Standing Data'!$D$15","v":{"$error":"#N/A"}},{"$f":"'Standing Data'!$F$15","v":0},{"$f":"'Standing Data'!$F$9","v":0},"Fin.Return","G207",{"$f":"Fin.Return!G210","v":0}]
[{"$f":"'Standing Data'!$D$15","v":{"$error":"#N/A"}},{"$f":"'Standing Data'!$F$15","v":0},{"$f":"'Standing Data'!$F$9","v":0},"Fin.Return","G209",{"$f":"Fin.Return!G212","v":0}]
[{"$f":"'Standing Data'!$D$15","v":{"$error":"#N/A"}},{"$f":"'Standing Data'!$F$15","v":0},{"$f":"'Standing Data'!$F$9","v":0},"Fin.Return","G211",{"$f":"Fin.Return!G221","v":0}]
[{"$f":"'Standing Data'!$D$15","v":{"$error":"#N/A"}},{"$f":"'Standing Data'!$F$15","v":0},{"$f":"'Standing Data'!$F$9","v":0},"Fin.Return","G212",{"$f":"Fin.Return!G222","v":0}]
[{"$f":"'Standing Data'!$D$15","v":{"$error":"#N/A"}},{"$f":"'Standing Data'!$F$15","v":0},{"$f":"'Standing Data'!$F$9","v":0},"Fin.Return","G214",{"$f":"Fin.Return!G224","v":0}]
[{"$f":"'Standing Data'!$D$15","v":{"$error":"#N/A"}},{"$f":"'Standing Data'!$F$15","v":0},{"$f":"'Standing Data'!$F$9","v":0},"Fin.Return","G216",{"$f":"Fin.Return!G226","v":0}]
[{"$f":"'Standing Data'!$D$15","v":{"$error":"#N/A"}},{"$f":"'Standing Data'!$F$15","v":0},{"$f":"'Standing Data'!$F$9","v":0},"Fin.Return","G217",{"$f":"Fin.Return!G227","v":0}]
[{"$f":"'Standing Data'!$D$15","v":{"$error":"#N/A"}},{"$f":"'Standing Data'!$F$15","v":0},{"$f":"'Standing Data'!$F$9","v":0},"Fin.Return","G218",{"$f":"Fin.Return!G229","v":0}]
[{"$f":"'Standing Data'!$D$15","v":{"$error":"#N/A"}},{"$f":"'Standing Data'!$F$15","v":0},{"$f":"'Standing Data'!$F$9","v":0},"Fin.Return","G220",{"$f":"Fin.Return!G231","v":0}]
[{"$f":"'Standing Data'!$D$15","v":{"$error":"#N/A"}},{"$f":"'Standing Data'!$F$15","v":0},{"$f":"'Standing Data'!$F$9","v":0},"Fin.Return","G222",{"$f":"Fin.Return!G233","v":0}]
[{"$f":"'Standing Data'!$D$15","v":{"$error":"#N/A"}},{"$f":"'Standing Data'!$F$15","v":0},{"$f":"'Standing Data'!$F$9","v":0},"Fin.Return","G228",{"$f":"Fin.Return!G239","v":0}]
[{"$f":"'Standing Data'!$D$15","v":{"$error":"#N/A"}},{"$f":"'Standing Data'!$F$15","v":0},{"$f":"'Standing Data'!$F$9","v":0},"Fin.Return","G229",{"$f":"Fin.Return!G240","v":0}]
[{"$f":"'Standing Data'!$D$15","v":{"$error":"#N/A"}},{"$f":"'Standing Data'!$F$15","v":0},{"$f":"'Standing Data'!$F$9","v":0},"Fin.Return","G231",{"$f":"Fin.Return!G242","v":0}]
[{"$f":"'Standing Data'!$D$15","v":{"$error":"#N/A"}},{"$f":"'Standing Data'!$F$15","v":0},{"$f":"'Standing Data'!$F$9","v":0},"Fin.Return","G232",{"$f":"Fin.Return!G243","v":0}]
[{"$f":"'Standing Data'!$D$15","v":{"$error":"#N/A"}},{"$f":"'Standing Data'!$F$15","v":0},{"$f":"'Standing Data'!$F$9","v":0},"Fin.Return","G234",{"$f":"Fin.Return!G245","v":0}]
[{"$f":"'Standing Data'!$D$15","v":{"$error":"#N/A"}},{"$f":"'Standing Data'!$F$15","v":0},{"$f":"'Standing Data'!$F$9","v":0},"Fin.Return","G235",{"$f":"Fin.Return!G246","v":0}]
[{"$f":"'Standing Data'!$D$15","v":{"$error":"#N/A"}},{"$f":"'Standing Data'!$F$15","v":0},{"$f":"'Standing Data'!$F$9","v":0},"Fin.Return","G236",{"$f":"Fin.Return!G247","v":0}]
[{"$f":"'Standing Data'!$D$15","v":{"$error":"#N/A"}},{"$f":"'Standing Data'!$F$15","v":0},{"$f":"'Standing Data'!$F$9","v":0},"Fin.Return","G238",{"$f":"Fin.Return!G249","v":0}]
[{"$f":"'Standing Data'!$D$15","v":{"$error":"#N/A"}},{"$f":"'Standing Data'!$F$15","v":0},{"$f":"'Standing Data'!$F$9","v":0},"Fin.Return","G340",{"$f":"Fin.Return!G354","v":0}]
[{"$f":"'Standing Data'!$D$15","v":{"$error":"#N/A"}},{"$f":"'Standing Data'!$F$15","v":0},{"$f":"'Standing Data'!$F$9","v":0},"Fin.Return","G341",{"$f":"Fin.Return!G355","v":0}]
[{"$f":"'Standing Data'!$D$15","v":{"$error":"#N/A"}},{"$f":"'Standing Data'!$F$15","v":0},{"$f":"'Standing Data'!$F$9","v":0},"Fin.Return","G342",{"$f":"Fin.Return!G356","v":0}]
[{"$f":"'Standing Data'!$D$15","v":{"$error":"#N/A"}},{"$f":"'Standing Data'!$F$15","v":0},{"$f":"'Standing Data'!$F$9","v":0},"Fin.Return","G344",{"$f":"Fin.Return!G358","v":0}]
[{"$f":"'Standing Data'!$D$15","v":{"$error":"#N/A"}},{"$f":"'Standing Data'!$F$15","v":0},{"$f":"'Standing Data'!$F$9","v":0},"Fin.Return","G345",{"$f":"Fin.Return!G359","v":0}]
[{"$f":"'Standing Data'!$D$15","v":{"$error":"#N/A"}},{"$f":"'Standing Data'!$F$15","v":0},{"$f":"'Standing Data'!$F$9","v":0},"Fin.Return","G346",{"$f":"Fin.Return!G360","v":0}]
[{"$f":"'Standing Data'!$D$15","v":{"$error":"#N/A"}},{"$f":"'Standing Data'!$F$15","v":0},{"$f":"'Standing Data'!$F$9","v":0},"Fin.Return","G347",{"$f":"Fin.Return!G361","v":0}]
[{"$f":"'Standing Data'!$D$15","v":{"$error":"#N/A"}},{"$f":"'Standing Data'!$F$15","v":0},{"$f":"'Standing Data'!$F$9","v":0},"Fin.Return","G349",{"$f":"Fin.Return!G363","v":0}]
[{"$f":"'Standing Data'!$D$15","v":{"$error":"#N/A"}},{"$f":"'Standing Data'!$F$15","v":0},{"$f":"'Standing Data'!$F$9","v":0},"Fin.Return","G350",{"$f":"Fin.Return!G364","v":0}]
[{"$f":"'Standing Data'!$D$15","v":{"$error":"#N/A"}},{"$f":"'Standing Data'!$F$15","v":0},{"$f":"'Standing Data'!$F$9","v":0},"Fin.Return","G352",{"$f":"Fin.Return!G366","v":0}]
[{"$f":"'Standing Data'!$D$15","v":{"$error":"#N/A"}},{"$f":"'Standing Data'!$F$15","v":0},{"$f":"'Standing Data'!$F$9","v":0},"Fin.Return","G357",{"$f":"Fin.Return!G371","v":0}]
[{"$f":"'Standing Data'!$D$15","v":{"$error":"#N/A"}},{"$f":"'Standing Data'!$F$15","v":0},{"$f":"'Standing Data'!$F$9","v":0},"Fin.Return","G358",{"$f":"Fin.Return!G372","v":0}]
[{"$f":"'Standing Data'!$D$15","v":{"$error":"#N/A"}},{"$f":"'Standing Data'!$F$15","v":0},{"$f":"'Standing Data'!$F$9","v":0},"Fin.Return","G359",{"$f":"Fin.Return!G373","v":0}]
[{"$f":"'Standing Data'!$D$15","v":{"$error":"#N/A"}},{"$f":"'Standing Data'!$F$15","v":0},{"$f":"'Standing Data'!$F$9","v":0},"Fin.Return","G361",{"$f":"Fin.Return!G375","v":0}]
[{"$f":"'Standing Data'!$D$15","v":{"$error":"#N/A"}},{"$f":"'Standing Data'!$F$15","v":0},{"$f":"'Standing Data'!$F$9","v":0},"Fin.Return","G400",{"$f":"Fin.Return!G414","v":0}]
[{"$f":"'Standing Data'!$D$15","v":{"$error":"#N/A"}},{"$f":"'Standing Data'!$F$15","v":0},{"$f":"'Standing Data'!$F$9","v":0},"Fin.Return","G406",{"$f":"Fin.Return!G420","v":0}]
[{"$f":"'Standing Data'!$D$15","v":{"$error":"#N/A"}},{"$f":"'Standing Data'!$F$15","v":0},{"$f":"'Standing Data'!$F$9","v":0},"Fin.Return","G407",{"$f":"Fin.Return!G421","v":0}]
[{"$f":"'Standing Data'!$D$15","v":{"$error":"#N/A"}},{"$f":"'Standing Data'!$F$15","v":0},{"$f":"'Standing Data'!$F$9","v":0},"Fin.Return","G409",{"$f":"Fin.Return!G423","v":0}]
[{"$f":"'Standing Data'!$D$15","v":{"$error":"#N/A"}},{"$f":"'Standing Data'!$F$15","v":0},{"$f":"'Standing Data'!$F$9","v":0},"Fin.Return","G410",{"$f":"Fin.Return!G424","v":0}]
[{"$f":"'Standing Data'!$D$15","v":{"$error":"#N/A"}},{"$f":"'Standing Data'!$F$15","v":0},{"$f":"'Standing Data'!$F$9","v":0},"Fin.Return","G411",{"$f":"Fin.Return!G425","v":0}]
[{"$f":"'Standing Data'!$D$15","v":{"$error":"#N/A"}},{"$f":"'Standing Data'!$F$15","v":0},{"$f":"'Standing Data'!$F$9","v":0},"Fin.Return","G412",{"$f":"Fin.Return!G426","v":0}]
[{"$f":"'Standing Data'!$D$15","v":{"$error":"#N/A"}},{"$f":"'Standing Data'!$F$15","v":0},{"$f":"'Standing Data'!$F$9","v":0},"Fin.Return","G413",{"$f":"Fin.Return!G427","v":0}]
[{"$f":"'Standing Data'!$D$15","v":{"$error":"#N/A"}},{"$f":"'Standing Data'!$F$15","v":0},{"$f":"'Standing Data'!$F$9","v":0},"Fin.Return","G414",{"$f":"Fin.Return!G428","v":0}]
[{"$f":"'Standing Data'!$D$15","v":{"$error":"#N/A"}},{"$f":"'Standing Data'!$F$15","v":0},{"$f":"'Standing Data'!$F$9","v":0},"Fin.Return","G415",{"$f":"Fin.Return!G429","v":0}]
[{"$f":"'Standing Data'!$D$15","v":{"$error":"#N/A"}},{"$f":"'Standing Data'!$F$15","v":0},{"$f":"'Standing Data'!$F$9","v":0},"Fin.Return","G416",{"$f":"Fin.Return!G430","v":0}]
[{"$f":"'Standing Data'!$D$15","v":{"$error":"#N/A"}},{"$f":"'Standing Data'!$F$15","v":0},{"$f":"'Standing Data'!$F$9","v":0},"Fin.Return","G417",{"$f":"Fin.Return!G431","v":0}]
[{"$f":"'Standing Data'!$D$15","v":{"$error":"#N/A"}},{"$f":"'Standing Data'!$F$15","v":0},{"$f":"'Standing Data'!$F$9","v":0},"Fin.Return","G419",{"$f":"Fin.Return!G433","v":0}]
[{"$f":"'Standing Data'!$D$15","v":{"$error":"#N/A"}},{"$f":"'Standing Data'!$F$15","v":0},{"$f":"'Standing Data'!$F$9","v":0},"Fin.Return","G456",{"$f":"Fin.Return!G470","v":0}]
[{"$f":"'Standing Data'!$D$15","v":{"$error":"#N/A"}},{"$f":"'Standing Data'!$F$15","v":0},{"$f":"'Standing Data'!$F$9","v":0},"Fin.Return","G459",{"$f":"Fin.Return!G473","v":0}]
[{"$f":"'Standing Data'!$D$15","v":{"$error":"#N/A"}},{"$f":"'Standing Data'!$F$15","v":0},{"$f":"'Standing Data'!$F$9","v":0},"Fin.Return","G460",{"$f":"Fin.Return!G474","v":0}]
[{"$f":"'Standing Data'!$D$15","v":{"$error":"#N/A"}},{"$f":"'Standing Data'!$F$15","v":0},{"$f":"'Standing Data'!$F$9","v":0},"Fin.Return","G462",{"$f":"Fin.Return!G476","v":0}]
[{"$f":"'Standing Data'!$D$15","v":{"$error":"#N/A"}},{"$f":"'Standing Data'!$F$15","v":0},{"$f":"'Standing Data'!$F$9","v":0},"Fin.Return","G468",{"$f":"Fin.Return!G482","v":0}]
[{"$f":"'Standing Data'!$D$15","v":{"$error":"#N/A"}},{"$f":"'Standing Data'!$F$15","v":0},{"$f":"'Standing Data'!$F$9","v":0},"Fin.Return","G469",{"$f":"Fin.Return!G483","v":0}]
[{"$f":"'Standing Data'!$D$15","v":{"$error":"#N/A"}},{"$f":"'Standing Data'!$F$15","v":0},{"$f":"'Standing Data'!$F$9","v":0},"Fin.Return","G470",{"$f":"Fin.Return!G484","v":0}]
[{"$f":"'Standing Data'!$D$15","v":{"$error":"#N/A"}},{"$f":"'Standing Data'!$F$15","v":0},{"$f":"'Standing Data'!$F$9","v":0},"Fin.Return","G471",{"$f":"Fin.Return!G485","v":0}]
[{"$f":"'Standing Data'!$D$15","v":{"$error":"#N/A"}},{"$f":"'Standing Data'!$F$15","v":0},{"$f":"'Standing Data'!$F$9","v":0},"Fin.Return","G472",{"$f":"Fin.Return!G486","v":0}]
[{"$f":"'Standing Data'!$D$15","v":{"$error":"#N/A"}},{"$f":"'Standing Data'!$F$15","v":0},{"$f":"'Standing Data'!$F$9","v":0},"Fin.Return","G473",{"$f":"Fin.Return!G487","v":0}]
[{"$f":"'Standing Data'!$D$15","v":{"$error":"#N/A"}},{"$f":"'Standing Data'!$F$15","v":0},{"$f":"'Standing Data'!$F$9","v":0},"Fin.Return","G474",{"$f":"Fin.Return!G488","v":0}]
[{"$f":"'Standing Data'!$D$15","v":{"$error":"#N/A"}},{"$f":"'Standing Data'!$F$15","v":0},{"$f":"'Standing Data'!$F$9","v":0},"Fin.Return","G475",{"$f":"Fin.Return!G489","v":0}]
[{"$f":"'Standing Data'!$D$15","v":{"$error":"#N/A"}},{"$f":"'Standing Data'!$F$15","v":0},{"$f":"'Standing Data'!$F$9","v":0},"Fin.Return","G477",{"$f":"Fin.Return!G491","v":0}]
[{"$f":"'Standing Data'!$D$15","v":{"$error":"#N/A"}},{"$f":"'Standing Data'!$F$15","v":0},{"$f":"'Standing Data'!$F$9","v":0},"Fin.Return","G480",{"$f":"Fin.Return!G494","v":0}]
[{"$f":"'Standing Data'!$D$15","v":{"$error":"#N/A"}},{"$f":"'Standing Data'!$F$15","v":0},{"$f":"'Standing Data'!$F$9","v":0},"Fin.Return","G481",{"$f":"Fin.Return!G495","v":0}]
[{"$f":"'Standing Data'!$D$15","v":{"$error":"#N/A"}},{"$f":"'Standing Data'!$F$15","v":0},{"$f":"'Standing Data'!$F$9","v":0},"Fin.Return","G482",{"$f":"Fin.Return!G496","v":0}]
[{"$f":"'Standing Data'!$D$15","v":{"$error":"#N/A"}},{"$f":"'Standing Data'!$F$15","v":0},{"$f":"'Standing Data'!$F$9","v":0},"Fin.Return","G483",{"$f":"Fin.Return!G497","v":0}]
[{"$f":"'Standing Data'!$D$15","v":{"$error":"#N/A"}},{"$f":"'Standing Data'!$F$15","v":0},{"$f":"'Standing Data'!$F$9","v":0},"Fin.Return","G484",{"$f":"Fin.Return!G498","v":0}]
[{"$f":"'Standing Data'!$D$15","v":{"$error":"#N/A"}},{"$f":"'Standing Data'!$F$15","v":0},{"$f":"'Standing Data'!$F$9","v":0},"Fin.Return","G486",{"$f":"Fin.Return!G500","v":0}]
[{"$f":"'Standing Data'!$D$15","v":{"$error":"#N/A"}},{"$f":"'Standing Data'!$F$15","v":0},{"$f":"'Standing Data'!$F$9","v":0},"Fin.Return","G489",{"$f":"Fin.Return!G503","v":0}]
[{"$f":"'Standing Data'!$D$15","v":{"$error":"#N/A"}},{"$f":"'Standing Data'!$F$15","v":0},{"$f":"'Standing Data'!$F$9","v":0},"Fin.Return","G490",{"$f":"Fin.Return!G504","v":0}]
[{"$f":"'Standing Data'!$D$15","v":{"$error":"#N/A"}},{"$f":"'Standing Data'!$F$15","v":0},{"$f":"'Standing Data'!$F$9","v":0},"Fin.Return","G491",{"$f":"Fin.Return!G505","v":0}]
[{"$f":"'Standing Data'!$D$15","v":{"$error":"#N/A"}},{"$f":"'Standing Data'!$F$15","v":0},{"$f":"'Standing Data'!$F$9","v":0},"Fin.Return","G493",{"$f":"Fin.Return!G507","v":0}]
[{"$f":"'Standing Data'!$D$15","v":{"$error":"#N/A"}},{"$f":"'Standing Data'!$F$15","v":0},{"$f":"'Standing Data'!$F$9","v":0},"Fin.Return","G496",{"$f":"Fin.Return!G510","v":0}]
[{"$f":"'Standing Data'!$D$15","v":{"$error":"#N/A"}},{"$f":"'Standing Data'!$F$15","v":0},{"$f":"'Standing Data'!$F$9","v":0},"Fin.Return","G499",{"$f":"Fin.Return!G513","v":0}]
[{"$f":"'Standing Data'!$D$15","v":{"$error":"#N/A"}},{"$f":"'Standing Data'!$F$15","v":0},{"$f":"'Standing Data'!$F$9","v":0},"Fin.Return","G503",{"$f":"Fin.Return!G517","v":0}]
[{"$f":"'Standing Data'!$D$15","v":{"$error":"#N/A"}},{"$f":"'Standing Data'!$F$15","v":0},{"$f":"'Standing Data'!$F$9","v":0},"Fin.Return","G504",{"$f":"Fin.Return!G518","v":0}]
[{"$f":"'Standing Data'!$D$15","v":{"$error":"#N/A"}},{"$f":"'Standing Data'!$F$15","v":0},{"$f":"'Standing Data'!$F$9","v":0},"Fin.Return","G505",{"$f":"Fin.Return!G519","v":0}]
[{"$f":"'Standing Data'!$D$15","v":{"$error":"#N/A"}},{"$f":"'Standing Data'!$F$15","v":0},{"$f":"'Standing Data'!$F$9","v":0},"Fin.Return","G508",{"$f":"Fin.Return!G522","v":0}]
[{"$f":"'Standing Data'!$D$15","v":{"$error":"#N/A"}},{"$f":"'Standing Data'!$F$15","v":0},{"$f":"'Standing Data'!$F$9","v":0},"Fin.Return","G509",{"$f":"Fin.Return!G523","v":0}]
[{"$f":"'Standing Data'!$D$15","v":{"$error":"#N/A"}},{"$f":"'Standing Data'!$F$15","v":0},{"$f":"'Standing Data'!$F$9","v":0},"Fin.Return","G511",{"$f":"Fin.Return!G525","v":0}]
[{"$f":"'Standing Data'!$D$15","v":{"$error":"#N/A"}},{"$f":"'Standing Data'!$F$15","v":0},{"$f":"'Standing Data'!$F$9","v":0},"Fin.Return","G514",{"$f":"Fin.Return!G528","v":0}]
[{"$f":"'Standing Data'!$D$15","v":{"$error":"#N/A"}},{"$f":"'Standing Data'!$F$15","v":0},{"$f":"'Standing Data'!$F$9","v":0},"Fin.Return","G515",{"$f":"Fin.Return!G529","v":0}]
[{"$f":"'Standing Data'!$D$15","v":{"$error":"#N/A"}},{"$f":"'Standing Data'!$F$15","v":0},{"$f":"'Standing Data'!$F$9","v":0},"Fin.Return","G517",{"$f":"Fin.Return!G531","v":0}]
[{"$f":"'Standing Data'!$D$15","v":{"$error":"#N/A"}},{"$f":"'Standing Data'!$F$15","v":0},{"$f":"'Standing Data'!$F$9","v":0},"Fin.Return","G519",{"$f":"Fin.Return!G533","v":0}]
[{"$f":"'Standing Data'!$D$15","v":{"$error":"#N/A"}},{"$f":"'Standing Data'!$F$15","v":0},{"$f":"'Standing Data'!$F$9","v":0},"Fin.Return","G525",{"$f":"Fin.Return!G539","v":0}]
[{"$f":"'Standing Data'!$D$15","v":{"$error":"#N/A"}},{"$f":"'Standing Data'!$F$15","v":0},{"$f":"'Standing Data'!$F$9","v":0},"Fin.Return","G526",{"$f":"Fin.Return!G540","v":0}]
[{"$f":"'Standing Data'!$D$15","v":{"$error":"#N/A"}},{"$f":"'Standing Data'!$F$15","v":0},{"$f":"'Standing Data'!$F$9","v":0},"Fin.Return","G527",{"$f":"Fin.Return!G541","v":0}]
[{"$f":"'Standing Data'!$D$15","v":{"$error":"#N/A"}},{"$f":"'Standing Data'!$F$15","v":0},{"$f":"'Standing Data'!$F$9","v":0},"Fin.Return","G528",{"$f":"Fin.Return!G542","v":0}]
[{"$f":"'Standing Data'!$D$15","v":{"$error":"#N/A"}},{"$f":"'Standing Data'!$F$15","v":0},{"$f":"'Standing Data'!$F$9","v":0},"Fin.Return","G529",{"$f":"Fin.Return!G543","v":0}]
[{"$f":"'Standing Data'!$D$15","v":{"$error":"#N/A"}},{"$f":"'Standing Data'!$F$15","v":0},{"$f":"'Standing Data'!$F$9","v":0},"Fin.Return","G530",{"$f":"Fin.Return!G544","v":0}]
[{"$f":"'Standing Data'!$D$15","v":{"$error":"#N/A"}},{"$f":"'Standing Data'!$F$15","v":0},{"$f":"'Standing Data'!$F$9","v":0},"Fin.Return","G531",{"$f":"Fin.Return!G545","v":0}]
[{"$f":"'Standing Data'!$D$15","v":{"$error":"#N/A"}},{"$f":"'Standing Data'!$F$15","v":0},{"$f":"'Standing Data'!$F$9","v":0},"Fin.Return","G533",{"$f":"Fin.Return!G547","v":0}]
[{"$f":"'Standing Data'!$D$15","v":{"$error":"#N/A"}},{"$f":"'Standing Data'!$F$15","v":0},{"$f":"'Standing Data'!$F$9","v":0},"Fin.Return","G536",{"$f":"Fin.Return!G550","v":0}]
[{"$f":"'Standing Data'!$D$15","v":{"$error":"#N/A"}},{"$f":"'Standing Data'!$F$15","v":0},{"$f":"'Standing Data'!$F$9","v":0},"Fin.Return","G537",{"$f":"Fin.Return!G551","v":0}]
[{"$f":"'Standing Data'!$D$15","v":{"$error":"#N/A"}},{"$f":"'Standing Data'!$F$15","v":0},{"$f":"'Standing Data'!$F$9","v":0},"Fin.Return","G538",{"$f":"Fin.Return!G552","v":0}]
[{"$f":"'Standing Data'!$D$15","v":{"$error":"#N/A"}},{"$f":"'Standing Data'!$F$15","v":0},{"$f":"'Standing Data'!$F$9","v":0},"Fin.Return","G539",{"$f":"Fin.Return!G553","v":0}]
[{"$f":"'Standing Data'!$D$15","v":{"$error":"#N/A"}},{"$f":"'Standing Data'!$F$15","v":0},{"$f":"'Standing Data'!$F$9","v":0},"Fin.Return","G540",{"$f":"Fin.Return!G554","v":0}]
[{"$f":"'Standing Data'!$D$15","v":{"$error":"#N/A"}},{"$f":"'Standing Data'!$F$15","v":0},{"$f":"'Standing Data'!$F$9","v":0},"Fin.Return","G542",{"$f":"Fin.Return!G556","v":0}]
[{"$f":"'Standing Data'!$D$15","v":{"$error":"#N/A"}},{"$f":"'Standing Data'!$F$15","v":0},{"$f":"'Standing Data'!$F$9","v":0},"Fin.Return","G545",{"$f":"Fin.Return!G559","v":0}]
[{"$f":"'Standing Data'!$D$15","v":{"$error":"#N/A"}},{"$f":"'Standing Data'!$F$15","v":0},{"$f":"'Standing Data'!$F$9","v":0},"Fin.Return","G546",{"$f":"Fin.Return!G560","v":0}]
[{"$f":"'Standing Data'!$D$15","v":{"$error":"#N/A"}},{"$f":"'Standing Data'!$F$15","v":0},{"$f":"'Standing Data'!$F$9","v":0},"Fin.Return","G547",{"$f":"Fin.Return!G561","v":0}]
[{"$f":"'Standing Data'!$D$15","v":{"$error":"#N/A"}},{"$f":"'Standing Data'!$F$15","v":0},{"$f":"'Standing Data'!$F$9","v":0},"Fin.Return","G549",{"$f":"Fin.Return!G563","v":0}]
[{"$f":"'Standing Data'!$D$15","v":{"$error":"#N/A"}},{"$f":"'Standing Data'!$F$15","v":0},{"$f":"'Standing Data'!$F$9","v":0},"Fin.Return","G552",{"$f":"Fin.Return!G566","v":0}]
[{"$f":"'Standing Data'!$D$15","v":{"$error":"#N/A"}},{"$f":"'Standing Data'!$F$15","v":0},{"$f":"'Standing Data'!$F$9","v":0},"Fin.Return","G555",{"$f":"Fin.Return!G569","v":0}]
[{"$f":"'Standing Data'!$D$15","v":{"$error":"#N/A"}},{"$f":"'Standing Data'!$F$15","v":0},{"$f":"'Standing Data'!$F$9","v":0},"Fin.Return","G558",{"$f":"Fin.Return!G572","v":0}]
[{"$f":"'Standing Data'!$D$15","v":{"$error":"#N/A"}},{"$f":"'Standing Data'!$F$15","v":0},{"$f":"'Standing Data'!$F$9","v":0},"Fin.Return","G559",{"$f":"Fin.Return!G573","v":0}]
[{"$f":"'Standing Data'!$D$15","v":{"$error":"#N/A"}},{"$f":"'Standing Data'!$F$15","v":0},{"$f":"'Standing Data'!$F$9","v":0},"Fin.Return","G565",{"$f":"Fin.Return!G579","v":0}]
[{"$f":"'Standing Data'!$D$15","v":{"$error":"#N/A"}},{"$f":"'Standing Data'!$F$15","v":0},{"$f":"'Standing Data'!$F$9","v":0},"Fin.Return","G566",{"$f":"Fin.Return!G580","v":0}]
[{"$f":"'Standing Data'!$D$15","v":{"$error":"#N/A"}},{"$f":"'Standing Data'!$F$15","v":0},{"$f":"'Standing Data'!$F$9","v":0},"Fin.Return","G567",{"$f":"Fin.Return!G581","v":0}]
[{"$f":"'Standing Data'!$D$15","v":{"$error":"#N/A"}},{"$f":"'Standing Data'!$F$15","v":0},{"$f":"'Standing Data'!$F$9","v":0},"Fin.Return","G568",{"$f":"Fin.Return!G582","v":0}]
[{"$f":"'Standing Data'!$D$15","v":{"$error":"#N/A"}},{"$f":"'Standing Data'!$F$15","v":0},{"$f":"'Standing Data'!$F$9","v":0},"Fin.Return","G569",{"$f":"Fin.Return!G583","v":0}]
[{"$f":"'Standing Data'!$D$15","v":{"$error":"#N/A"}},{"$f":"'Standing Data'!$F$15","v":0},{"$f":"'Standing Data'!$F$9","v":0},"Fin.Return","G570",{"$f":"Fin.Return!G584","v":0}]
[{"$f":"'Standing Data'!$D$15","v":{"$error":"#N/A"}},{"$f":"'Standing Data'!$F$15","v":0},{"$f":"'Standing Data'!$F$9","v":0},"Fin.Return","G571",{"$f":"Fin.Return!G585","v":0}]
[{"$f":"'Standing Data'!$D$15","v":{"$error":"#N/A"}},{"$f":"'Standing Data'!$F$15","v":0},{"$f":"'Standing Data'!$F$9","v":0},"Fin.Return","G573",{"$f":"Fin.Return!G587","v":0}]
[{"$f":"'Standing Data'!$D$15","v":{"$error":"#N/A"}},{"$f":"'Standing Data'!$F$15","v":0},{"$f":"'Standing Data'!$F$9","v":0},"Fin.Return","G575",{"$f":"Fin.Return!G589","v":0}]
[{"$f":"'Standing Data'!$D$15","v":{"$error":"#N/A"}},{"$f":"'Standing Data'!$F$15","v":0},{"$f":"'Standing Data'!$F$9","v":0},"Fin.Return","G597",{"$f":"Fin.Return!G611","v":0}]
[{"$f":"'Standing Data'!$D$15","v":{"$error":"#N/A"}},{"$f":"'Standing Data'!$F$15","v":0},{"$f":"'Standing Data'!$F$9","v":0},"Fin.Return","G598",{"$f":"Fin.Return!G612","v":0}]
[{"$f":"'Standing Data'!$D$15","v":{"$error":"#N/A"}},{"$f":"'Standing Data'!$F$15","v":0},{"$f":"'Standing Data'!$F$9","v":0},"Fin.Return","G599",{"$f":"Fin.Return!G613","v":0}]
[{"$f":"'Standing Data'!$D$15","v":{"$error":"#N/A"}},{"$f":"'Standing Data'!$F$15","v":0},{"$f":"'Standing Data'!$F$9","v":0},"Fin.Return","G600",{"$f":"Fin.Return!G614","v":0}]
[{"$f":"'Standing Data'!$D$15","v":{"$error":"#N/A"}},{"$f":"'Standing Data'!$F$15","v":0},{"$f":"'Standing Data'!$F$9","v":0},"Fin.Return","G601",{"$f":"Fin.Return!G615","v":0}]
[{"$f":"'Standing Data'!$D$15","v":{"$error":"#N/A"}},{"$f":"'Standing Data'!$F$15","v":0},{"$f":"'Standing Data'!$F$9","v":0},"Fin.Return","G603",{"$f":"Fin.Return!G617","v":0}]
[{"$f":"'Standing Data'!$D$15","v":{"$error":"#N/A"}},{"$f":"'Standing Data'!$F$15","v":0},{"$f":"'Standing Data'!$F$9","v":0},"Fin.Return","G609",{"$f":"Fin.Return!G623","v":0}]
[{"$f":"'Standing Data'!$D$15","v":{"$error":"#N/A"}},{"$f":"'Standing Data'!$F$15","v":0},{"$f":"'Standing Data'!$F$9","v":0},"Fin.Return","G610",{"$f":"Fin.Return!G624","v":0}]
[{"$f":"'Standing Data'!$D$15","v":{"$error":"#N/A"}},{"$f":"'Standing Data'!$F$15","v":0},{"$f":"'Standing Data'!$F$9","v":0},"Fin.Return","G611",{"$f":"Fin.Return!G625","v":0}]
[{"$f":"'Standing Data'!$D$15","v":{"$error":"#N/A"}},{"$f":"'Standing Data'!$F$15","v":0},{"$f":"'Standing Data'!$F$9","v":0},"Fin.Return","G612",{"$f":"Fin.Return!G626","v":0}]
[{"$f":"'Standing Data'!$D$15","v":{"$error":"#N/A"}},{"$f":"'Standing Data'!$F$15","v":0},{"$f":"'Standing Data'!$F$9","v":0},"Fin.Return","G613",{"$f":"Fin.Return!G627","v":0}]
[{"$f":"'Standing Data'!$D$15","v":{"$error":"#N/A"}},{"$f":"'Standing Data'!$F$15","v":0},{"$f":"'Standing Data'!$F$9","v":0},"Fin.Return","G614",{"$f":"Fin.Return!G628","v":0}]
[{"$f":"'Standing Data'!$D$15","v":{"$error":"#N/A"}},{"$f":"'Standing Data'!$F$15","v":0},{"$f":"'Standing Data'!$F$9","v":0},"Fin.Return","G615",{"$f":"Fin.Return!G629","v":0}]
[{"$f":"'Standing Data'!$D$15","v":{"$error":"#N/A"}},{"$f":"'Standing Data'!$F$15","v":0},{"$f":"'Standing Data'!$F$9","v":0},"Fin.Return","G616",{"$f":"Fin.Return!G630","v":0}]
[{"$f":"'Standing Data'!$D$15","v":{"$error":"#N/A"}},{"$f":"'Standing Data'!$F$15","v":0},{"$f":"'Standing Data'!$F$9","v":0},"Fin.Return","G617",{"$f":"Fin.Return!G631","v":0}]
[{"$f":"'Standing Data'!$D$15","v":{"$error":"#N/A"}},{"$f":"'Standing Data'!$F$15","v":0},{"$f":"'Standing Data'!$F$9","v":0},"Fin.Return","G618",{"$f":"Fin.Return!G632","v":0}]
[{"$f":"'Standing Data'!$D$15","v":{"$error":"#N/A"}},{"$f":"'Standing Data'!$F$15","v":0},{"$f":"'Standing Data'!$F$9","v":0},"Fin.Return","G619",{"$f":"Fin.Return!G633","v":0}]
[{"$f":"'Standing Data'!$D$15","v":{"$error":"#N/A"}},{"$f":"'Standing Data'!$F$15","v":0},{"$f":"'Standing Data'!$F$9","v":0},"Fin.Return","G620",{"$f":"Fin.Return!G634","v":0}]
[{"$f":"'Standing Data'!$D$15","v":{"$error":"#N/A"}},{"$f":"'Standing Data'!$F$15","v":0},{"$f":"'Standing Data'!$F$9","v":0},"Fin.Return","G622",{"$f":"Fin.Return!G636","v":0}]
[{"$f":"'Standing Data'!$D$15","v":{"$error":"#N/A"}},{"$f":"'Standing Data'!$F$15","v":0},{"$f":"'Standing Data'!$F$9","v":0},"Fin.Return","G623",{"$f":"Fin.Return!G637","v":0}]
[{"$f":"'Standing Data'!$D$15","v":{"$error":"#N/A"}},{"$f":"'Standing Data'!$F$15","v":0},{"$f":"'Standing Data'!$F$9","v":0},"Fin.Return","G625",{"$f":"Fin.Return!G639","v":0}]
[{"$f":"'Standing Data'!$D$15","v":{"$error":"#N/A"}},{"$f":"'Standing Data'!$F$15","v":0},{"$f":"'Standing Data'!$F$9","v":0},"Fin.Return","G630",{"$f":"Fin.Return!G644","v":0}]
[{"$f":"'Standing Data'!$D$15","v":{"$error":"#N/A"}},{"$f":"'Standing Data'!$F$15","v":0},{"$f":"'Standing Data'!$F$9","v":0},"Fin.Return","G631",{"$f":"Fin.Return!G645","v":0}]
[{"$f":"'Standing Data'!$D$15","v":{"$error":"#N/A"}},{"$f":"'Standing Data'!$F$15","v":0},{"$f":"'Standing Data'!$F$9","v":0},"Fin.Return","G632",{"$f":"Fin.Return!G646","v":0}]
[{"$f":"'Standing Data'!$D$15","v":{"$error":"#N/A"}},{"$f":"'Standing Data'!$F$15","v":0},{"$f":"'Standing Data'!$F$9","v":0},"Fin.Return","G633",{"$f":"Fin.Return!G647","v":0}]
[{"$f":"'Standing Data'!$D$15","v":{"$error":"#N/A"}},{"$f":"'Standing Data'!$F$15","v":0},{"$f":"'Standing Data'!$F$9","v":0},"Fin.Return","G634",{"$f":"Fin.Return!G648","v":0}]
[{"$f":"'Standing Data'!$D$15","v":{"$error":"#N/A"}},{"$f":"'Standing Data'!$F$15","v":0},{"$f":"'Standing Data'!$F$9","v":0},"Fin.Return","G635",{"$f":"Fin.Return!G649","v":0}]
[{"$f":"'Standing Data'!$D$15","v":{"$error":"#N/A"}},{"$f":"'Standing Data'!$F$15","v":0},{"$f":"'Standing Data'!$F$9","v":0},"Fin.Return","G636",{"$f":"Fin.Return!G650","v":0}]
[{"$f":"'Standing Data'!$D$15","v":{"$error":"#N/A"}},{"$f":"'Standing Data'!$F$15","v":0},{"$f":"'Standing Data'!$F$9","v":0},"Fin.Return","G638",{"$f":"Fin.Return!G652","v":0}]
[{"$f":"'Standing Data'!$D$15","v":{"$error":"#N/A"}},{"$f":"'Standing Data'!$F$15","v":0},{"$f":"'Standing Data'!$F$9","v":0},"Fin.Return","G640",{"$f":"Fin.Return!G654","v":0}]
[{"$f":"'Standing Data'!$D$15","v":{"$error":"#N/A"}},{"$f":"'Standing Data'!$F$15","v":0},{"$f":"'Standing Data'!$F$9","v":0},"Fin.Return","G745",{"$f":"Fin.Return!G759","v":0}]
[{"$f":"'Standing Data'!$D$15","v":{"$error":"#N/A"}},{"$f":"'Standing Data'!$F$15","v":0},{"$f":"'Standing Data'!$F$9","v":0},"Fin.Return","G746",{"$f":"Fin.Return!G760","v":0}]
[{"$f":"'Standing Data'!$D$15","v":{"$error":"#N/A"}},{"$f":"'Standing Data'!$F$15","v":0},{"$f":"'Standing Data'!$F$9","v":0},"Fin.Return","G747",{"$f":"Fin.Return!G761","v":0}]
[{"$f":"'Standing Data'!$D$15","v":{"$error":"#N/A"}},{"$f":"'Standing Data'!$F$15","v":0},{"$f":"'Standing Data'!$F$9","v":0},"Fin.Return","G748",{"$f":"Fin.Return!G762","v":0}]
[{"$f":"'Standing Data'!$D$15","v":{"$error":"#N/A"}},{"$f":"'Standing Data'!$F$15","v":0},{"$f":"'Standing Data'!$F$9","v":0},"Fin.Return","G750",{"$f":"Fin.Return!G764","v":0}]
[{"$f":"'Standing Data'!$D$15","v":{"$error":"#N/A"}},{"$f":"'Standing Data'!$F$15","v":0},{"$f":"'Standing Data'!$F$9","v":0},"Fin.Return","G755",{"$f":"Fin.Return!G769","v":0}]
[{"$f":"'Standing Data'!$D$15","v":{"$error":"#N/A"}},{"$f":"'Standing Data'!$F$15","v":0},{"$f":"'Standing Data'!$F$9","v":0},"Fin.Return","G756",{"$f":"Fin.Return!G770","v":0}]
[{"$f":"'Standing Data'!$D$15","v":{"$error":"#N/A"}},{"$f":"'Standing Data'!$F$15","v":0},{"$f":"'Standing Data'!$F$9","v":0},"Fin.Return","G757",{"$f":"Fin.Return!G771","v":0}]
[{"$f":"'Standing Data'!$D$15","v":{"$error":"#N/A"}},{"$f":"'Standing Data'!$F$15","v":0},{"$f":"'Standing Data'!$F$9","v":0},"Fin.Return","G759",{"$f":"Fin.Return!G773","v":0}]
[{"$f":"'Standing Data'!$D$15","v":{"$error":"#N/A"}},{"$f":"'Standing Data'!$F$15","v":0},{"$f":"'Standing Data'!$F$9","v":0},"Fin.Return","G767",{"$f":"Fin.Return!G781","v":0}]
[{"$f":"'Standing Data'!$D$15","v":{"$error":"#N/A"}},{"$f":"'Standing Data'!$F$15","v":0},{"$f":"'Standing Data'!$F$9","v":0},"Fin.Return","G768",{"$f":"Fin.Return!G782","v":0}]
[{"$f":"'Standing Data'!$D$15","v":{"$error":"#N/A"}},{"$f":"'Standing Data'!$F$15","v":0},{"$f":"'Standing Data'!$F$9","v":0},"Fin.Return","G770",{"$f":"Fin.Return!G784","v":0}]
[{"$f":"'Standing Data'!$D$15","v":{"$error":"#N/A"}},{"$f":"'Standing Data'!$F$15","v":0},{"$f":"'Standing Data'!$F$9","v":0},"Fin.Return","G771",{"$f":"Fin.Return!G785","v":0}]
[{"$f":"'Standing Data'!$D$15","v":{"$error":"#N/A"}},{"$f":"'Standing Data'!$F$15","v":0},{"$f":"'Standing Data'!$F$9","v":0},"Fin.Return","G772",{"$f":"Fin.Return!G786","v":0}]
[{"$f":"'Standing Data'!$D$15","v":{"$error":"#N/A"}},{"$f":"'Standing Data'!$F$15","v":0},{"$f":"'Standing Data'!$F$9","v":0},"Fin.Return","G773",{"$f":"Fin.Return!G787","v":0}]
[{"$f":"'Standing Data'!$D$15","v":{"$error":"#N/A"}},{"$f":"'Standing Data'!$F$15","v":0},{"$f":"'Standing Data'!$F$9","v":0},"Fin.Return","G774",{"$f":"Fin.Return!G788","v":0}]
[{"$f":"'Standing Data'!$D$15","v":{"$error":"#N/A"}},{"$f":"'Standing Data'!$F$15","v":0},{"$f":"'Standing Data'!$F$9","v":0},"Fin.Return","G775",{"$f":"Fin.Return!G789","v":0}]
[{"$f":"'Standing Data'!$D$15","v":{"$error":"#N/A"}},{"$f":"'Standing Data'!$F$15","v":0},{"$f":"'Standing Data'!$F$9","v":0},"Fin.Return","G776",{"$f":"Fin.Return!G790","v":0}]
[{"$f":"'Standing Data'!$D$15","v":{"$error":"#N/A"}},{"$f":"'Standing Data'!$F$15","v":0},{"$f":"'Standing Data'!$F$9","v":0},"Fin.Return","G777",{"$f":"Fin.Return!G791","v":0}]
[{"$f":"'Standing Data'!$D$15","v":{"$error":"#N/A"}},{"$f":"'Standing Data'!$F$15","v":0},{"$f":"'Standing Data'!$F$9","v":0},"Fin.Return","G779",{"$f":"Fin.Return!G793","v":0}]
[{"$f":"'Standing Data'!$D$15","v":{"$error":"#N/A"}},{"$f":"'Standing Data'!$F$15","v":0},{"$f":"'Standing Data'!$F$9","v":0},"Fin.Return","G780",{"$f":"Fin.Return!G794","v":0}]
[{"$f":"'Standing Data'!$D$15","v":{"$error":"#N/A"}},{"$f":"'Standing Data'!$F$15","v":0},{"$f":"'Standing Data'!$F$9","v":0},"Fin.Return","G782",{"$f":"Fin.Return!G796","v":0}]
[{"$f":"'Standing Data'!$D$15","v":{"$error":"#N/A"}},{"$f":"'Standing Data'!$F$15","v":0},{"$f":"'Standing Data'!$F$9","v":0},"Fin.Return","G783",{"$f":"Fin.Return!G797","v":0}]
[{"$f":"'Standing Data'!$D$15","v":{"$error":"#N/A"}},{"$f":"'Standing Data'!$F$15","v":0},{"$f":"'Standing Data'!$F$9","v":0},"Fin.Return","G785",{"$f":"Fin.Return!G799","v":0}]
[{"$f":"'Standing Data'!$D$15","v":{"$error":"#N/A"}},{"$f":"'Standing Data'!$F$15","v":0},{"$f":"'Standing Data'!$F$9","v":0},"Fin.Return","G787",{"$f":"Fin.Return!G801","v":0}]
[{"$f":"'Standing Data'!$D$15","v":{"$error":"#N/A"}},{"$f":"'Standing Data'!$F$15","v":0},{"$f":"'Standing Data'!$F$9","v":0},"Fin.Return","G789",{"$f":"Fin.Return!G803","v":0}]
[{"$f":"'Standing Data'!$D$15","v":{"$error":"#N/A"}},{"$f":"'Standing Data'!$F$15","v":0},{"$f":"'Standing Data'!$F$9","v":0},"Fin.Return","G790",{"$f":"Fin.Return!G804","v":0}]
[{"$f":"'Standing Data'!$D$15","v":{"$error":"#N/A"}},{"$f":"'Standing Data'!$F$15","v":0},{"$f":"'Standing Data'!$F$9","v":0},"Fin.Return","G791",{"$f":"Fin.Return!G805","v":0}]
[{"$f":"'Standing Data'!$D$15","v":{"$error":"#N/A"}},{"$f":"'Standing Data'!$F$15","v":0},{"$f":"'Standing Data'!$F$9","v":0},"Fin.Return","G792",{"$f":"Fin.Return!G806","v":0}]
[{"$f":"'Standing Data'!$D$15","v":{"$error":"#N/A"}},{"$f":"'Standing Data'!$F$15","v":0},{"$f":"'Standing Data'!$F$9","v":0},"Fin.Return","G793",{"$f":"Fin.Return!G807","v":0}]
[{"$f":"'Standing Data'!$D$15","v":{"$error":"#N/A"}},{"$f":"'Standing Data'!$F$15","v":0},{"$f":"'Standing Data'!$F$9","v":0},"Fin.Return","G794",{"$f":"Fin.Return!G808","v":0}]
[{"$f":"'Standing Data'!$D$15","v":{"$error":"#N/A"}},{"$f":"'Standing Data'!$F$15","v":0},{"$f":"'Standing Data'!$F$9","v":0},"Fin.Return","G795",{"$f":"Fin.Return!G809","v":0}]
[{"$f":"'Standing Data'!$D$15","v":{"$error":"#N/A"}},{"$f":"'Standing Data'!$F$15","v":0},{"$f":"'Standing Data'!$F$9","v":0},"Fin.Return","G796",{"$f":"Fin.Return!G810","v":0}]
[{"$f":"'Standing Data'!$D$15","v":{"$error":"#N/A"}},{"$f":"'Standing Data'!$F$15","v":0},{"$f":"'Standing Data'!$F$9","v":0},"Fin.Return","G798",{"$f":"Fin.Return!G812","v":0}]
[{"$f":"'Standing Data'!$D$15","v":{"$error":"#N/A"}},{"$f":"'Standing Data'!$F$15","v":0},{"$f":"'Standing Data'!$F$9","v":0},"Fin.Return","G799",{"$f":"Fin.Return!G813","v":0}]
[{"$f":"'Standing Data'!$D$15","v":{"$error":"#N/A"}},{"$f":"'Standing Data'!$F$15","v":0},{"$f":"'Standing Data'!$F$9","v":0},"Fin.Return","G800",{"$f":"Fin.Return!G814","v":0}]
[{"$f":"'Standing Data'!$D$15","v":{"$error":"#N/A"}},{"$f":"'Standing Data'!$F$15","v":0},{"$f":"'Standing Data'!$F$9","v":0},"Fin.Return","G802",{"$f":"Fin.Return!G816","v":0}]
[{"$f":"'Standing Data'!$D$15","v":{"$error":"#N/A"}},{"$f":"'Standing Data'!$F$15","v":0},{"$f":"'Standing Data'!$F$9","v":0},"Fin.Return","G803",{"$f":"Fin.Return!G817","v":0}]
[{"$f":"'Standing Data'!$D$15","v":{"$error":"#N/A"}},{"$f":"'Standing Data'!$F$15","v":0},{"$f":"'Standing Data'!$F$9","v":0},"Fin.Return","G805",{"$f":"Fin.Return!G819","v":0}]
[{"$f":"'Standing Data'!$D$15","v":{"$error":"#N/A"}},{"$f":"'Standing Data'!$F$15","v":0},{"$f":"'Standing Data'!$F$9","v":0},"Fin.Return","G807",{"$f":"Fin.Return!G821","v":0}]
[{"$f":"'Standing Data'!$D$15","v":{"$error":"#N/A"}},{"$f":"'Standing Data'!$F$15","v":0},{"$f":"'Standing Data'!$F$9","v":0},"Fin.Return","G809",{"$f":"Fin.Return!G823","v":0}]
[{"$f":"'Standing Data'!$D$15","v":{"$error":"#N/A"}},{"$f":"'Standing Data'!$F$15","v":0},{"$f":"'Standing Data'!$F$9","v":0},"Fin.Return","G811",{"$f":"Fin.Return!G825","v":0}]
[{"$f":"'Standing Data'!$D$15","v":{"$error":"#N/A"}},{"$f":"'Standing Data'!$F$15","v":0},{"$f":"'Standing Data'!$F$9","v":0},"Fin.Return","G816",{"$f":"Fin.Return!G939","v":0}]
[{"$f":"'Standing Data'!$D$15","v":{"$error":"#N/A"}},{"$f":"'Standing Data'!$F$15","v":0},{"$f":"'Standing Data'!$F$9","v":0},"Fin.Return","G817",{"$f":"Fin.Return!G940","v":0}]
[{"$f":"'Standing Data'!$D$15","v":{"$error":"#N/A"}},{"$f":"'Standing Data'!$F$15","v":0},{"$f":"'Standing Data'!$F$9","v":0},"Fin.Return","G818",{"$f":"Fin.Return!G941","v":0}]
[{"$f":"'Standing Data'!$D$15","v":{"$error":"#N/A"}},{"$f":"'Standing Data'!$F$15","v":0},{"$f":"'Standing Data'!$F$9","v":0},"Fin.Return","G819",{"$f":"Fin.Return!G942","v":0}]
[{"$f":"'Standing Data'!$D$15","v":{"$error":"#N/A"}},{"$f":"'Standing Data'!$F$15","v":0},{"$f":"'Standing Data'!$F$9","v":0},"Fin.Return","G820",{"$f":"Fin.Return!G943","v":0}]
[{"$f":"'Standing Data'!$D$15","v":{"$error":"#N/A"}},{"$f":"'Standing Data'!$F$15","v":0},{"$f":"'Standing Data'!$F$9","v":0},"Fin.Return","G821",{"$f":"Fin.Return!G944","v":0}]
[{"$f":"'Standing Data'!$D$15","v":{"$error":"#N/A"}},{"$f":"'Standing Data'!$F$15","v":0},{"$f":"'Standing Data'!$F$9","v":0},"Fin.Return","G823",{"$f":"Fin.Return!G946","v":0}]
[{"$f":"'Standing Data'!$D$15","v":{"$error":"#N/A"}},{"$f":"'Standing Data'!$F$15","v":0},{"$f":"'Standing Data'!$F$9","v":0},"Fin.Return","G839",{"$f":"Fin.Return!G962","v":0}]
[{"$f":"'Standing Data'!$D$15","v":{"$error":"#N/A"}},{"$f":"'Standing Data'!$F$15","v":0},{"$f":"'Standing Data'!$F$9","v":0},"Fin.Return","G840",{"$f":"Fin.Return!G964","v":0}]
[{"$f":"'Standing Data'!$D$15","v":{"$error":"#N/A"}},{"$f":"'Standing Data'!$F$15","v":0},{"$f":"'Standing Data'!$F$9","v":0},"Fin.Return","G841",{"$f":"Fin.Return!G966","v":0}]
[{"$f":"'Standing Data'!$D$15","v":{"$error":"#N/A"}},{"$f":"'Standing Data'!$F$15","v":0},{"$f":"'Standing Data'!$F$9","v":0},"Fin.Return","G842",{"$f":"Fin.Return!G967","v":0}]
[{"$f":"'Standing Data'!$D$15","v":{"$error":"#N/A"}},{"$f":"'Standing Data'!$F$15","v":0},{"$f":"'Standing Data'!$F$9","v":0},"Fin.Return","G843",{"$f":"Fin.Return!G968","v":0}]
[{"$f":"'Standing Data'!$D$15","v":{"$error":"#N/A"}},{"$f":"'Standing Data'!$F$15","v":0},{"$f":"'Standing Data'!$F$9","v":0},"Fin.Return","G845",{"$f":"Fin.Return!G970","v":0}]
[{"$f":"'Standing Data'!$D$15","v":{"$error":"#N/A"}},{"$f":"'Standing Data'!$F$15","v":0},{"$f":"'Standing Data'!$F$9","v":0},"Fin.Return","G850",{"$f":"Fin.Return!G975","v":0}]
[{"$f":"'Standing Data'!$D$15","v":{"$error":"#N/A"}},{"$f":"'Standing Data'!$F$15","v":0},{"$f":"'Standing Data'!$F$9","v":0},"Fin.Return","G851",{"$f":"Fin.Return!G976","v":0}]
[{"$f":"'Standing Data'!$D$15","v":{"$error":"#N/A"}},{"$f":"'Standing Data'!$F$15","v":0},{"$f":"'Standing Data'!$F$9","v":0},"Fin.Return","G852",{"$f":"Fin.Return!G977","v":0}]
[{"$f":"'Standing Data'!$D$15","v":{"$error":"#N/A"}},{"$f":"'Standing Data'!$F$15","v":0},{"$f":"'Standing Data'!$F$9","v":0},"Fin.Return","G854",{"$f":"Fin.Return!G979","v":0}]
[{"$f":"'Standing Data'!$D$15","v":{"$error":"#N/A"}},{"$f":"'Standing Data'!$F$15","v":0},{"$f":"'Standing Data'!$F$9","v":0},"Fin.Return","G857",{"$f":"Fin.Return!G982","v":0}]
[{"$f":"'Standing Data'!$D$15","v":{"$error":"#N/A"}},{"$f":"'Standing Data'!$F$15","v":0},{"$f":"'Standing Data'!$F$9","v":0},"Fin.Return","G858",{"$f":"Fin.Return!G983","v":0}]
[{"$f":"'Standing Data'!$D$15","v":{"$error":"#N/A"}},{"$f":"'Standing Data'!$F$15","v":0},{"$f":"'Standing Data'!$F$9","v":0},"Fin.Return","G860",{"$f":"Fin.Return!G985","v":0}]
[{"$f":"'Standing Data'!$D$15","v":{"$error":"#N/A"}},{"$f":"'Standing Data'!$F$15","v":0},{"$f":"'Standing Data'!$F$9","v":0},"Fin.Return","G862",{"$f":"Fin.Return!G987","v":0}]
[{"$f":"'Standing Data'!$D$15","v":{"$error":"#N/A"}},{"$f":"'Standing Data'!$F$15","v":0},{"$f":"'Standing Data'!$F$9","v":0},"Fin.Return","G865",{"$f":"Fin.Return!G990","v":0}]
[{"$f":"'Standing Data'!$D$15","v":{"$error":"#N/A"}},{"$f":"'Standing Data'!$F$15","v":0},{"$f":"'Standing Data'!$F$9","v":0},"Fin.Return","G866",{"$f":"Fin.Return!G991","v":0}]
[{"$f":"'Standing Data'!$D$15","v":{"$error":"#N/A"}},{"$f":"'Standing Data'!$F$15","v":0},{"$f":"'Standing Data'!$F$9","v":0},"Fin.Return","G867",{"$f":"Fin.Return!G992","v":0}]
[{"$f":"'Standing Data'!$D$15","v":{"$error":"#N/A"}},{"$f":"'Standing Data'!$F$15","v":0},{"$f":"'Standing Data'!$F$9","v":0},"Fin.Return","G868",{"$f":"Fin.Return!G993","v":0}]
[{"$f":"'Standing Data'!$D$15","v":{"$error":"#N/A"}},{"$f":"'Standing Data'!$F$15","v":0},{"$f":"'Standing Data'!$F$9","v":0},"Fin.Return","G869",{"$f":"Fin.Return!G994","v":0}]
[{"$f":"'Standing Data'!$D$15","v":{"$error":"#N/A"}},{"$f":"'Standing Data'!$F$15","v":0},{"$f":"'Standing Data'!$F$9","v":0},"Fin.Return","G870",{"$f":"Fin.Return!G995","v":0}]
[{"$f":"'Standing Data'!$D$15","v":{"$error":"#N/A"}},{"$f":"'Standing Data'!$F$15","v":0},{"$f":"'Standing Data'!$F$9","v":0},"Fin.Return","G871",{"$f":"Fin.Return!G996","v":0}]
[{"$f":"'Standing Data'!$D$15","v":{"$error":"#N/A"}},{"$f":"'Standing Data'!$F$15","v":0},{"$f":"'Standing Data'!$F$9","v":0},"Fin.Return","G872",{"$f":"Fin.Return!G997","v":0}]
[{"$f":"'Standing Data'!$D$15","v":{"$error":"#N/A"}},{"$f":"'Standing Data'!$F$15","v":0},{"$f":"'Standing Data'!$F$9","v":0},"Fin.Return","G873",{"$f":"Fin.Return!G998","v":0}]
[{"$f":"'Standing Data'!$D$15","v":{"$error":"#N/A"}},{"$f":"'Standing Data'!$F$15","v":0},{"$f":"'Standing Data'!$F$9","v":0},"Fin.Return","G874",{"$f":"Fin.Return!G999","v":0}]
[{"$f":"'Standing Data'!$D$15","v":{"$error":"#N/A"}},{"$f":"'Standing Data'!$F$15","v":0},{"$f":"'Standing Data'!$F$9","v":0},"Fin.Return","G876",{"$f":"Fin.Return!G1001","v":0}]
[{"$f":"'Standing Data'!$D$15","v":{"$error":"#N/A"}},{"$f":"'Standing Data'!$F$15","v":0},{"$f":"'Standing Data'!$F$9","v":0},"Fin.Return","G879",{"$f":"Fin.Return!G1004","v":0}]
[{"$f":"'Standing Data'!$D$15","v":{"$error":"#N/A"}},{"$f":"'Standing Data'!$F$15","v":0},{"$f":"'Standing Data'!$F$9","v":0},"Fin.Return","G880",{"$f":"Fin.Return!G1005","v":0}]
[{"$f":"'Standing Data'!$D$15","v":{"$error":"#N/A"}},{"$f":"'Standing Data'!$F$15","v":0},{"$f":"'Standing Data'!$F$9","v":0},"Fin.Return","G881",{"$f":"Fin.Return!G1006","v":0}]
[{"$f":"'Standing Data'!$D$15","v":{"$error":"#N/A"}},{"$f":"'Standing Data'!$F$15","v":0},{"$f":"'Standing Data'!$F$9","v":0},"Fin.Return","G882",{"$f":"Fin.Return!G1007","v":0}]
[{"$f":"'Standing Data'!$D$15","v":{"$error":"#N/A"}},{"$f":"'Standing Data'!$F$15","v":0},{"$f":"'Standing Data'!$F$9","v":0},"Fin.Return","G883",{"$f":"Fin.Return!G1008","v":0}]
[{"$f":"'Standing Data'!$D$15","v":{"$error":"#N/A"}},{"$f":"'Standing Data'!$F$15","v":0},{"$f":"'Standing Data'!$F$9","v":0},"Fin.Return","G884",{"$f":"Fin.Return!G1009","v":0}]
[{"$f":"'Standing Data'!$D$15","v":{"$error":"#N/A"}},{"$f":"'Standing Data'!$F$15","v":0},{"$f":"'Standing Data'!$F$9","v":0},"Fin.Return","G885",{"$f":"Fin.Return!G1010","v":0}]
[{"$f":"'Standing Data'!$D$15","v":{"$error":"#N/A"}},{"$f":"'Standing Data'!$F$15","v":0},{"$f":"'Standing Data'!$F$9","v":0},"Fin.Return","G887",{"$f":"Fin.Return!G1012","v":0}]
[{"$f":"'Standing Data'!$D$15","v":{"$error":"#N/A"}},{"$f":"'Standing Data'!$F$15","v":0},{"$f":"'Standing Data'!$F$9","v":0},"Fin.Return","G890",{"$f":"Fin.Return!G1015","v":0}]
[{"$f":"'Standing Data'!$D$15","v":{"$error":"#N/A"}},{"$f":"'Standing Data'!$F$15","v":0},{"$f":"'Standing Data'!$F$9","v":0},"Fin.Return","G891",{"$f":"Fin.Return!G1016","v":0}]
[{"$f":"'Standing Data'!$D$15","v":{"$error":"#N/A"}},{"$f":"'Standing Data'!$F$15","v":0},{"$f":"'Standing Data'!$F$9","v":0},"Fin.Return","G892",{"$f":"Fin.Return!G1017","v":0}]
[{"$f":"'Standing Data'!$D$15","v":{"$error":"#N/A"}},{"$f":"'Standing Data'!$F$15","v":0},{"$f":"'Standing Data'!$F$9","v":0},"Fin.Return","G893",{"$f":"Fin.Return!G1018","v":0}]
[{"$f":"'Standing Data'!$D$15","v":{"$error":"#N/A"}},{"$f":"'Standing Data'!$F$15","v":0},{"$f":"'Standing Data'!$F$9","v":0},"Fin.Return","G894",{"$f":"Fin.Return!G1019","v":0}]
[{"$f":"'Standing Data'!$D$15","v":{"$error":"#N/A"}},{"$f":"'Standing Data'!$F$15","v":0},{"$f":"'Standing Data'!$F$9","v":0},"Fin.Return","G895",{"$f":"Fin.Return!G1020","v":0}]
[{"$f":"'Standing Data'!$D$15","v":{"$error":"#N/A"}},{"$f":"'Standing Data'!$F$15","v":0},{"$f":"'Standing Data'!$F$9","v":0},"Fin.Return","G896",{"$f":"Fin.Return!G1021","v":0}]
[{"$f":"'Standing Data'!$D$15","v":{"$error":"#N/A"}},{"$f":"'Standing Data'!$F$15","v":0},{"$f":"'Standing Data'!$F$9","v":0},"Fin.Return","G897",{"$f":"Fin.Return!G1022","v":0}]
[{"$f":"'Standing Data'!$D$15","v":{"$error":"#N/A"}},{"$f":"'Standing Data'!$F$15","v":0},{"$f":"'Standing Data'!$F$9","v":0},"Fin.Return","G898",{"$f":"Fin.Return!G1023","v":0}]
[{"$f":"'Standing Data'!$D$15","v":{"$error":"#N/A"}},{"$f":"'Standing Data'!$F$15","v":0},{"$f":"'Standing Data'!$F$9","v":0},"Fin.Return","G899",{"$f":"Fin.Return!G1024","v":0}]
[{"$f":"'Standing Data'!$D$15","v":{"$error":"#N/A"}},{"$f":"'Standing Data'!$F$15","v":0},{"$f":"'Standing Data'!$F$9","v":0},"Fin.Return","G901",{"$f":"Fin.Return!G1026","v":0}]
[{"$f":"'Standing Data'!$D$15","v":{"$error":"#N/A"}},{"$f":"'Standing Data'!$F$15","v":0},{"$f":"'Standing Data'!$F$9","v":0},"Fin.Return","G908",{"$f":"Fin.Return!G1035","v":0}]
[{"$f":"'Standing Data'!$D$15","v":{"$error":"#N/A"}},{"$f":"'Standing Data'!$F$15","v":0},{"$f":"'Standing Data'!$F$9","v":0},"Fin.Return","G909",{"$f":"Fin.Return!G1036","v":0}]
[{"$f":"'Standing Data'!$D$15","v":{"$error":"#N/A"}},{"$f":"'Standing Data'!$F$15","v":0},{"$f":"'Standing Data'!$F$9","v":0},"Fin.Return","G910",{"$f":"Fin.Return!G1037","v":0}]
[{"$f":"'Standing Data'!$D$15","v":{"$error":"#N/A"}},{"$f":"'Standing Data'!$F$15","v":0},{"$f":"'Standing Data'!$F$9","v":0},"Fin.Return","G911",{"$f":"Fin.Return!G1038","v":0}]
[{"$f":"'Standing Data'!$D$15","v":{"$error":"#N/A"}},{"$f":"'Standing Data'!$F$15","v":0},{"$f":"'Standing Data'!$F$9","v":0},"Fin.Return","G912",{"$f":"Fin.Return!G1039","v":0}]
[{"$f":"'Standing Data'!$D$15","v":{"$error":"#N/A"}},{"$f":"'Standing Data'!$F$15","v":0},{"$f":"'Standing Data'!$F$9","v":0},"Fin.Return","G914",{"$f":"Fin.Return!G1041","v":0}]
[{"$f":"'Standing Data'!$D$15","v":{"$error":"#N/A"}},{"$f":"'Standing Data'!$F$15","v":0},{"$f":"'Standing Data'!$F$9","v":0},"Fin.Return","G913",{"$f":"Fin.Return!G1040","v":0}]
[{"$f":"'Standing Data'!$D$15","v":{"$error":"#N/A"}},{"$f":"'Standing Data'!$F$15","v":0},{"$f":"'Standing Data'!$F$9","v":0},"Fin.Return","G916",{"$f":"Fin.Return!G1043","v":0}]
[{"$f":"'Standing Data'!$D$15","v":{"$error":"#N/A"}},{"$f":"'Standing Data'!$F$15","v":0},{"$f":"'Standing Data'!$F$9","v":0},"Fin.Return","G917",{"$f":"Fin.Return!G1044","v":0}]
[{"$f":"'Standing Data'!$D$15","v":{"$error":"#N/A"}},{"$f":"'Standing Data'!$F$15","v":0},{"$f":"'Standing Data'!$F$9","v":0},"Fin.Return","G918",{"$f":"Fin.Return!G1045","v":0}]
[{"$f":"'Standing Data'!$D$15","v":{"$error":"#N/A"}},{"$f":"'Standing Data'!$F$15","v":0},{"$f":"'Standing Data'!$F$9","v":0},"Fin.Return","G919",{"$f":"Fin.Return!G1046","v":0}]
[{"$f":"'Standing Data'!$D$15","v":{"$error":"#N/A"}},{"$f":"'Standing Data'!$F$15","v":0},{"$f":"'Standing Data'!$F$9","v":0},"Fin.Return","G920",{"$f":"Fin.Return!G1047","v":0}]
[{"$f":"'Standing Data'!$D$15","v":{"$error":"#N/A"}},{"$f":"'Standing Data'!$F$15","v":0},{"$f":"'Standing Data'!$F$9","v":0},"Fin.Return","G922",{"$f":"Fin.Return!G1049","v":0}]
[{"$f":"'Standing Data'!$D$15","v":{"$error":"#N/A"}},{"$f":"'Standing Data'!$F$15","v":0},{"$f":"'Standing Data'!$F$9","v":0},"Fin.Return","G924",{"$f":"Fin.Return!G1051","v":0}]
[{"$f":"'Standing Data'!$D$15","v":{"$error":"#N/A"}},{"$f":"'Standing Data'!$F$15","v":0},{"$f":"'Standing Data'!$F$9","v":0},"Fin.Return","G925",{"$f":"Fin.Return!G1052","v":0}]
[{"$f":"'Standing Data'!$D$15","v":{"$error":"#N/A"}},{"$f":"'Standing Data'!$F$15","v":0},{"$f":"'Standing Data'!$F$9","v":0},"Fin.Return","G926",{"$f":"Fin.Return!G1053","v":0}]
[{"$f":"'Standing Data'!$D$15","v":{"$error":"#N/A"}},{"$f":"'Standing Data'!$F$15","v":0},{"$f":"'Standing Data'!$F$9","v":0},"Fin.Return","G927",{"$f":"Fin.Return!G1054","v":0}]
[{"$f":"'Standing Data'!$D$15","v":{"$error":"#N/A"}},{"$f":"'Standing Data'!$F$15","v":0},{"$f":"'Standing Data'!$F$9","v":0},"Fin.Return","G928",{"$f":"Fin.Return!G1055","v":0}]
[{"$f":"'Standing Data'!$D$15","v":{"$error":"#N/A"}},{"$f":"'Standing Data'!$F$15","v":0},{"$f":"'Standing Data'!$F$9","v":0},"Fin.Return","G929",{"$f":"Fin.Return!G1056","v":0}]
[{"$f":"'Standing Data'!$D$15","v":{"$error":"#N/A"}},{"$f":"'Standing Data'!$F$15","v":0},{"$f":"'Standing Data'!$F$9","v":0},"Fin.Return","G930",{"$f":"Fin.Return!G1057","v":0}]
[{"$f":"'Standing Data'!$D$15","v":{"$error":"#N/A"}},{"$f":"'Standing Data'!$F$15","v":0},{"$f":"'Standing Data'!$F$9","v":0},"Fin.Return","G931",{"$f":"Fin.Return!G1058","v":0}]
[{"$f":"'Standing Data'!$D$15","v":{"$error":"#N/A"}},{"$f":"'Standing Data'!$F$15","v":0},{"$f":"'Standing Data'!$F$9","v":0},"Fin.Return","G933",{"$f":"Fin.Return!G1060","v":0}]
[{"$f":"'Standing Data'!$D$15","v":{"$error":"#N/A"}},{"$f":"'Standing Data'!$F$15","v":0},{"$f":"'Standing Data'!$F$9","v":0},"Fin.Return","G934",{"$f":"Fin.Return!G1061","v":0}]
[{"$f":"'Standing Data'!$D$15","v":{"$error":"#N/A"}},{"$f":"'Standing Data'!$F$15","v":0},{"$f":"'Standing Data'!$F$9","v":0},"Fin.Return","G935",{"$f":"Fin.Return!G1062","v":0}]
[{"$f":"'Standing Data'!$D$15","v":{"$error":"#N/A"}},{"$f":"'Standing Data'!$F$15","v":0},{"$f":"'Standing Data'!$F$9","v":0},"Fin.Return","G936",{"$f":"Fin.Return!G1063","v":0}]
[{"$f":"'Standing Data'!$D$15","v":{"$error":"#N/A"}},{"$f":"'Standing Data'!$F$15","v":0},{"$f":"'Standing Data'!$F$9","v":0},"Fin.Return","G938",{"$f":"Fin.Return!G1065","v":0}]
[{"$f":"'Standing Data'!$D$15","v":{"$error":"#N/A"}},{"$f":"'Standing Data'!$F$15","v":0},{"$f":"'Standing Data'!$F$9","v":0},"Fin.Return","G940",{"$f":"Fin.Return!G1067","v":0}]
[{"$f":"'Standing Data'!$D$15","v":{"$error":"#N/A"}},{"$f":"'Standing Data'!$F$15","v":0},{"$f":"'Standing Data'!$F$9","v":0},"Fin.Return","G942",{"$f":"Fin.Return!G1069","v":0}]
[{"$f":"'Standing Data'!$D$15","v":{"$error":"#N/A"}},{"$f":"'Standing Data'!$F$15","v":0},{"$f":"'Standing Data'!$F$9","v":0},"Fin.Return","G957",{"$f":"Fin.Return!G1084","v":0}]
[{"$f":"'Standing Data'!$D$15","v":{"$error":"#N/A"}},{"$f":"'Standing Data'!$F$15","v":0},{"$f":"'Standing Data'!$F$9","v":0},"Fin.Return","G958",{"$f":"Fin.Return!G1085","v":0}]
[{"$f":"'Standing Data'!$D$15","v":{"$error":"#N/A"}},{"$f":"'Standing Data'!$F$15","v":0},{"$f":"'Standing Data'!$F$9","v":0},"Fin.Return","G959",{"$f":"Fin.Return!G1086","v":0}]
[{"$f":"'Standing Data'!$D$15","v":{"$error":"#N/A"}},{"$f":"'Standing Data'!$F$15","v":0},{"$f":"'Standing Data'!$F$9","v":0},"Fin.Return","G961",{"$f":"Fin.Return!G1088","v":0}]
[{"$f":"'Standing Data'!$D$15","v":{"$error":"#N/A"}},{"$f":"'Standing Data'!$F$15","v":0},{"$f":"'Standing Data'!$F$9","v":0},"Fin.Return","G969",{"$f":"Fin.Return!G1096","v":0}]
[{"$f":"'Standing Data'!$D$15","v":{"$error":"#N/A"}},{"$f":"'Standing Data'!$F$15","v":0},{"$f":"'Standing Data'!$F$9","v":0},"Fin.Return","G970",{"$f":"Fin.Return!G1097","v":0}]
[{"$f":"'Standing Data'!$D$15","v":{"$error":"#N/A"}},{"$f":"'Standing Data'!$F$15","v":0},{"$f":"'Standing Data'!$F$9","v":0},"Fin.Return","G971",{"$f":"Fin.Return!G1098","v":0}]
[{"$f":"'Standing Data'!$D$15","v":{"$error":"#N/A"}},{"$f":"'Standing Data'!$F$15","v":0},{"$f":"'Standing Data'!$F$9","v":0},"Fin.Return","G973",{"$f":"Fin.Return!G1100","v":0}]
[{"$f":"'Standing Data'!$D$15","v":{"$error":"#N/A"}},{"$f":"'Standing Data'!$F$15","v":0},{"$f":"'Standing Data'!$F$9","v":0},"Fin.Return","G974",{"$f":"Fin.Return!G1101","v":0}]
[{"$f":"'Standing Data'!$D$15","v":{"$error":"#N/A"}},{"$f":"'Standing Data'!$F$15","v":0},{"$f":"'Standing Data'!$F$9","v":0},"Fin.Return","G976",{"$f":"Fin.Return!G1103","v":0}]
[{"$f":"'Standing Data'!$D$15","v":{"$error":"#N/A"}},{"$f":"'Standing Data'!$F$15","v":0},{"$f":"'Standing Data'!$F$9","v":0},"Fin.Return","G986",{"$f":"Fin.Return!G1113","v":0}]
[{"$f":"'Standing Data'!$D$15","v":{"$error":"#N/A"}},{"$f":"'Standing Data'!$F$15","v":0},{"$f":"'Standing Data'!$F$9","v":0},"Fin.Return","G987",{"$f":"Fin.Return!G1114","v":0}]
[{"$f":"'Standing Data'!$D$15","v":{"$error":"#N/A"}},{"$f":"'Standing Data'!$F$15","v":0},{"$f":"'Standing Data'!$F$9","v":0},"Fin.Return","G988",{"$f":"Fin.Return!G1115","v":0}]
[{"$f":"'Standing Data'!$D$15","v":{"$error":"#N/A"}},{"$f":"'Standing Data'!$F$15","v":0},{"$f":"'Standing Data'!$F$9","v":0},"Fin.Return","G990",{"$f":"Fin.Return!G1117","v":0}]
[{"$f":"'Standing Data'!$D$15","v":{"$error":"#N/A"}},{"$f":"'Standing Data'!$F$15","v":0},{"$f":"'Standing Data'!$F$9","v":0},"Fin.Return","G991",{"$f":"Fin.Return!G1118","v":0}]
[{"$f":"'Standing Data'!$D$15","v":{"$error":"#N/A"}},{"$f":"'Standing Data'!$F$15","v":0},{"$f":"'Standing Data'!$F$9","v":0},"Fin.Return","G992",{"$f":"Fin.Return!G1119","v":0}]
[{"$f":"'Standing Data'!$D$15","v":{"$error":"#N/A"}},{"$f":"'Standing Data'!$F$15","v":0},{"$f":"'Standing Data'!$F$9","v":0},"Fin.Return","G994",{"$f":"Fin.Return!G1121","v":0}]
[{"$f":"'Standing Data'!$D$15","v":{"$error":"#N/A"}},{"$f":"'Standing Data'!$F$15","v":0},{"$f":"'Standing Data'!$F$9","v":0},"Fin.Return","G995",{"$f":"Fin.Return!G1122","v":0}]
[{"$f":"'Standing Data'!$D$15","v":{"$error":"#N/A"}},{"$f":"'Standing Data'!$F$15","v":0},{"$f":"'Standing Data'!$F$9","v":0},"Fin.Return","G996",{"$f":"Fin.Return!G1123","v":0}]
[{"$f":"'Standing Data'!$D$15","v":{"$error":"#N/A"}},{"$f":"'Standing Data'!$F$15","v":0},{"$f":"'Standing Data'!$F$9","v":0},"Fin.Return","G998",{"$f":"Fin.Return!G1125","v":0}]
[{"$f":"'Standing Data'!$D$15","v":{"$error":"#N/A"}},{"$f":"'Standing Data'!$F$15","v":0},{"$f":"'Standing Data'!$F$9","v":0},"Fin.Return","G999",{"$f":"Fin.Return!G1126","v":0}]
[{"$f":"'Standing Data'!$D$15","v":{"$error":"#N/A"}},{"$f":"'Standing Data'!$F$15","v":0},{"$f":"'Standing Data'!$F$9","v":0},"Fin.Return","G1001",{"$f":"Fin.Return!G1128","v":0}]
[{"$f":"'Standing Data'!$D$15","v":{"$error":"#N/A"}},{"$f":"'Standing Data'!$F$15","v":0},{"$f":"'Standing Data'!$F$9","v":0},"Fin.Return","G1009",{"$f":"Fin.Return!G1136","v":0}]
[{"$f":"'Standing Data'!$D$15","v":{"$error":"#N/A"}},{"$f":"'Standing Data'!$F$15","v":0},{"$f":"'Standing Data'!$F$9","v":0},"Fin.Return","G1010",{"$f":"Fin.Return!G1137","v":0}]
[{"$f":"'Standing Data'!$D$15","v":{"$error":"#N/A"}},{"$f":"'Standing Data'!$F$15","v":0},{"$f":"'Standing Data'!$F$9","v":0},"Fin.Return","G1011",{"$f":"Fin.Return!G1138","v":0}]
[{"$f":"'Standing Data'!$D$15","v":{"$error":"#N/A"}},{"$f":"'Standing Data'!$F$15","v":0},{"$f":"'Standing Data'!$F$9","v":0},"Fin.Return","G1013",{"$f":"Fin.Return!G1140","v":0}]
[{"$f":"'Standing Data'!$D$15","v":{"$error":"#N/A"}},{"$f":"'Standing Data'!$F$15","v":0},{"$f":"'Standing Data'!$F$9","v":0},"Fin.Return","G1014",{"$f":"Fin.Return!G1141","v":0}]
[{"$f":"'Standing Data'!$D$15","v":{"$error":"#N/A"}},{"$f":"'Standing Data'!$F$15","v":0},{"$f":"'Standing Data'!$F$9","v":0},"Fin.Return","G1015",{"$f":"Fin.Return!G1142","v":0}]
[{"$f":"'Standing Data'!$D$15","v":{"$error":"#N/A"}},{"$f":"'Standing Data'!$F$15","v":0},{"$f":"'Standing Data'!$F$9","v":0},"Fin.Return","G1017",{"$f":"Fin.Return!G1144","v":0}]
[{"$f":"'Standing Data'!$D$15","v":{"$error":"#N/A"}},{"$f":"'Standing Data'!$F$15","v":0},{"$f":"'Standing Data'!$F$9","v":0},"Fin.Return","G1018",{"$f":"Fin.Return!G1145","v":0}]
[{"$f":"'Standing Data'!$D$15","v":{"$error":"#N/A"}},{"$f":"'Standing Data'!$F$15","v":0},{"$f":"'Standing Data'!$F$9","v":0},"Fin.Return","G1019",{"$f":"Fin.Return!G1146","v":0}]
[{"$f":"'Standing Data'!$D$15","v":{"$error":"#N/A"}},{"$f":"'Standing Data'!$F$15","v":0},{"$f":"'Standing Data'!$F$9","v":0},"Fin.Return","G1021",{"$f":"Fin.Return!G1148","v":0}]
[{"$f":"'Standing Data'!$D$15","v":{"$error":"#N/A"}},{"$f":"'Standing Data'!$F$15","v":0},{"$f":"'Standing Data'!$F$9","v":0},"Fin.Return","G1022",{"$f":"Fin.Return!G1149","v":0}]
[{"$f":"'Standing Data'!$D$15","v":{"$error":"#N/A"}},{"$f":"'Standing Data'!$F$15","v":0},{"$f":"'Standing Data'!$F$9","v":0},"Fin.Return","G1024",{"$f":"Fin.Return!G1151","v":0}]
[{"$f":"'Standing Data'!$D$15","v":{"$error":"#N/A"}},{"$f":"'Standing Data'!$F$15","v":0},{"$f":"'Standing Data'!$F$9","v":0},"Fin.Return","G1030",{"$f":"Fin.Return!G1157","v":0}]
[{"$f":"'Standing Data'!$D$15","v":{"$error":"#N/A"}},{"$f":"'Standing Data'!$F$15","v":0},{"$f":"'Standing Data'!$F$9","v":0},"Fin.Return","G1031",{"$f":"Fin.Return!G1158","v":0}]
[{"$f":"'Standing Data'!$D$15","v":{"$error":"#N/A"}},{"$f":"'Standing Data'!$F$15","v":0},{"$f":"'Standing Data'!$F$9","v":0},"Fin.Return","G1032",{"$f":"Fin.Return!G1159","v":0}]
[{"$f":"'Standing Data'!$D$15","v":{"$error":"#N/A"}},{"$f":"'Standing Data'!$F$15","v":0},{"$f":"'Standing Data'!$F$9","v":0},"Fin.Return","G1034",{"$f":"Fin.Return!G1161","v":0}]
[{"$f":"'Standing Data'!$D$15","v":{"$error":"#N/A"}},{"$f":"'Standing Data'!$F$15","v":0},{"$f":"'Standing Data'!$F$9","v":0},"Fin.Return","G1042",{"$f":"Fin.Return!G1169","v":0}]
[{"$f":"'Standing Data'!$D$15","v":{"$error":"#N/A"}},{"$f":"'Standing Data'!$F$15","v":0},{"$f":"'Standing Data'!$F$9","v":0},"Fin.Return","G1043",{"$f":"Fin.Return!G1170","v":0}]
[{"$f":"'Standing Data'!$D$15","v":{"$error":"#N/A"}},{"$f":"'Standing Data'!$F$15","v":0},{"$f":"'Standing Data'!$F$9","v":0},"Fin.Return","G1044",{"$f":"Fin.Return!G1171","v":0}]
[{"$f":"'Standing Data'!$D$15","v":{"$error":"#N/A"}},{"$f":"'Standing Data'!$F$15","v":0},{"$f":"'Standing Data'!$F$9","v":0},"Fin.Return","G1046",{"$f":"Fin.Return!G1173","v":0}]
[{"$f":"'Standing Data'!$D$15","v":{"$error":"#N/A"}},{"$f":"'Standing Data'!$F$15","v":0},{"$f":"'Standing Data'!$F$9","v":0},"Fin.Return","G1047",{"$f":"Fin.Return!G1174","v":0}]
[{"$f":"'Standing Data'!$D$15","v":{"$error":"#N/A"}},{"$f":"'Standing Data'!$F$15","v":0},{"$f":"'Standing Data'!$F$9","v":0},"Fin.Return","G1049",{"$f":"Fin.Return!G1176","v":0}]
[{"$f":"'Standing Data'!$D$15","v":{"$error":"#N/A"}},{"$f":"'Standing Data'!$F$15","v":0},{"$f":"'Standing Data'!$F$9","v":0},"Fin.Return","G1059",{"$f":"Fin.Return!G1186","v":0}]
[{"$f":"'Standing Data'!$D$15","v":{"$error":"#N/A"}},{"$f":"'Standing Data'!$F$15","v":0},{"$f":"'Standing Data'!$F$9","v":0},"Fin.Return","G1060",{"$f":"Fin.Return!G1187","v":0}]
[{"$f":"'Standing Data'!$D$15","v":{"$error":"#N/A"}},{"$f":"'Standing Data'!$F$15","v":0},{"$f":"'Standing Data'!$F$9","v":0},"Fin.Return","G1061",{"$f":"Fin.Return!G1188","v":0}]
[{"$f":"'Standing Data'!$D$15","v":{"$error":"#N/A"}},{"$f":"'Standing Data'!$F$15","v":0},{"$f":"'Standing Data'!$F$9","v":0},"Fin.Return","G1063",{"$f":"Fin.Return!G1190","v":0}]
[{"$f":"'Standing Data'!$D$15","v":{"$error":"#N/A"}},{"$f":"'Standing Data'!$F$15","v":0},{"$f":"'Standing Data'!$F$9","v":0},"Fin.Return","G1064",{"$f":"Fin.Return!G1191","v":0}]
[{"$f":"'Standing Data'!$D$15","v":{"$error":"#N/A"}},{"$f":"'Standing Data'!$F$15","v":0},{"$f":"'Standing Data'!$F$9","v":0},"Fin.Return","G1065",{"$f":"Fin.Return!G1192","v":0}]
[{"$f":"'Standing Data'!$D$15","v":{"$error":"#N/A"}},{"$f":"'Standing Data'!$F$15","v":0},{"$f":"'Standing Data'!$F$9","v":0},"Fin.Return","G1067",{"$f":"Fin.Return!G1194","v":0}]
[{"$f":"'Standing Data'!$D$15","v":{"$error":"#N/A"}},{"$f":"'Standing Data'!$F$15","v":0},{"$f":"'Standing Data'!$F$9","v":0},"Fin.Return","G1068",{"$f":"Fin.Return!G1195","v":0}]
[{"$f":"'Standing Data'!$D$15","v":{"$error":"#N/A"}},{"$f":"'Standing Data'!$F$15","v":0},{"$f":"'Standing Data'!$F$9","v":0},"Fin.Return","G1069",{"$f":"Fin.Return!G1196","v":0}]
[{"$f":"'Standing Data'!$D$15","v":{"$error":"#N/A"}},{"$f":"'Standing Data'!$F$15","v":0},{"$f":"'Standing Data'!$F$9","v":0},"Fin.Return","G1071",{"$f":"Fin.Return!G1198","v":0}]
[{"$f":"'Standing Data'!$D$15","v":{"$error":"#N/A"}},{"$f":"'Standing Data'!$F$15","v":0},{"$f":"'Standing Data'!$F$9","v":0},"Fin.Return","G1072",{"$f":"Fin.Return!G1199","v":0}]
[{"$f":"'Standing Data'!$D$15","v":{"$error":"#N/A"}},{"$f":"'Standing Data'!$F$15","v":0},{"$f":"'Standing Data'!$F$9","v":0},"Fin.Return","G1074",{"$f":"Fin.Return!G1201","v":0}]
[{"$f":"'Standing Data'!$D$15","v":{"$error":"#N/A"}},{"$f":"'Standing Data'!$F$15","v":0},{"$f":"'Standing Data'!$F$9","v":0},"Fin.Return","G1082",{"$f":"Fin.Return!G1209","v":0}]
[{"$f":"'Standing Data'!$D$15","v":{"$error":"#N/A"}},{"$f":"'Standing Data'!$F$15","v":0},{"$f":"'Standing Data'!$F$9","v":0},"Fin.Return","G1083",{"$f":"Fin.Return!G1210","v":0}]
[{"$f":"'Standing Data'!$D$15","v":{"$error":"#N/A"}},{"$f":"'Standing Data'!$F$15","v":0},{"$f":"'Standing Data'!$F$9","v":0},"Fin.Return","G1084",{"$f":"Fin.Return!G1211","v":0}]
[{"$f":"'Standing Data'!$D$15","v":{"$error":"#N/A"}},{"$f":"'Standing Data'!$F$15","v":0},{"$f":"'Standing Data'!$F$9","v":0},"Fin.Return","G1086",{"$f":"Fin.Return!G1213","v":0}]
[{"$f":"'Standing Data'!$D$15","v":{"$error":"#N/A"}},{"$f":"'Standing Data'!$F$15","v":0},{"$f":"'Standing Data'!$F$9","v":0},"Fin.Return","G1087",{"$f":"Fin.Return!G1214","v":0}]
[{"$f":"'Standing Data'!$D$15","v":{"$error":"#N/A"}},{"$f":"'Standing Data'!$F$15","v":0},{"$f":"'Standing Data'!$F$9","v":0},"Fin.Return","G1088",{"$f":"Fin.Return!G1215","v":0}]
[{"$f":"'Standing Data'!$D$15","v":{"$error":"#N/A"}},{"$f":"'Standing Data'!$F$15","v":0},{"$f":"'Standing Data'!$F$9","v":0},"Fin.Return","G1090",{"$f":"Fin.Return!G1217","v":0}]
[{"$f":"'Standing Data'!$D$15","v":{"$error":"#N/A"}},{"$f":"'Standing Data'!$F$15","v":0},{"$f":"'Standing Data'!$F$9","v":0},"Fin.Return","G1091",{"$f":"Fin.Return!G1218","v":0}]
[{"$f":"'Standing Data'!$D$15","v":{"$error":"#N/A"}},{"$f":"'Standing Data'!$F$15","v":0},{"$f":"'Standing Data'!$F$9","v":0},"Fin.Return","G1092",{"$f":"Fin.Return!G1219","v":0}]
[{"$f":"'Standing Data'!$D$15","v":{"$error":"#N/A"}},{"$f":"'Standing Data'!$F$15","v":0},{"$f":"'Standing Data'!$F$9","v":0},"Fin.Return","G1094",{"$f":"Fin.Return!G1221","v":0}]
[{"$f":"'Standing Data'!$D$15","v":{"$error":"#N/A"}},{"$f":"'Standing Data'!$F$15","v":0},{"$f":"'Standing Data'!$F$9","v":0},"Fin.Return","G1095",{"$f":"Fin.Return!G1222","v":0}]
[{"$f":"'Standing Data'!$D$15","v":{"$error":"#N/A"}},{"$f":"'Standing Data'!$F$15","v":0},{"$f":"'Standing Data'!$F$9","v":0},"Fin.Return","G1097",{"$f":"Fin.Return!G1224","v":0}]
[{"$f":"'Standing Data'!$D$15","v":{"$error":"#N/A"}},{"$f":"'Standing Data'!$F$15","v":0},{"$f":"'Standing Data'!$F$9","v":0},"Fin.Return","G1102",{"$f":"Fin.Return!G1229","v":0}]
[{"$f":"'Standing Data'!$D$15","v":{"$error":"#N/A"}},{"$f":"'Standing Data'!$F$15","v":0},{"$f":"'Standing Data'!$F$9","v":0},"Fin.Return","G1103",{"$f":"Fin.Return!G1230","v":0}]
[{"$f":"'Standing Data'!$D$15","v":{"$error":"#N/A"}},{"$f":"'Standing Data'!$F$15","v":0},{"$f":"'Standing Data'!$F$9","v":0},"Fin.Return","G1104",{"$f":"Fin.Return!G1231","v":0}]
[{"$f":"'Standing Data'!$D$15","v":{"$error":"#N/A"}},{"$f":"'Standing Data'!$F$15","v":0},{"$f":"'Standing Data'!$F$9","v":0},"Fin.Return","G1106",{"$f":"Fin.Return!G1233","v":0}]
[{"$f":"'Standing Data'!$D$15","v":{"$error":"#N/A"}},{"$f":"'Standing Data'!$F$15","v":0},{"$f":"'Standing Data'!$F$9","v":0},"Fin.Return","G1111",{"$f":"Fin.Return!G1238","v":0}]
[{"$f":"'Standing Data'!$D$15","v":{"$error":"#N/A"}},{"$f":"'Standing Data'!$F$15","v":0},{"$f":"'Standing Data'!$F$9","v":0},"Fin.Return","G1112",{"$f":"Fin.Return!G1239","v":0}]
[{"$f":"'Standing Data'!$D$15","v":{"$error":"#N/A"}},{"$f":"'Standing Data'!$F$15","v":0},{"$f":"'Standing Data'!$F$9","v":0},"Fin.Return","G1113",{"$f":"Fin.Return!G1240","v":0}]
[{"$f":"'Standing Data'!$D$15","v":{"$error":"#N/A"}},{"$f":"'Standing Data'!$F$15","v":0},{"$f":"'Standing Data'!$F$9","v":0},"Fin.Return","G1115",{"$f":"Fin.Return!G1242","v":0}]
[{"$f":"'Standing Data'!$D$15","v":{"$error":"#N/A"}},{"$f":"'Standing Data'!$F$15","v":0},{"$f":"'Standing Data'!$F$9","v":0},"Fin.Return","G1121",{"$f":"Fin.Return!G1248","v":0}]
[{"$f":"'Standing Data'!$D$15","v":{"$error":"#N/A"}},{"$f":"'Standing Data'!$F$15","v":0},{"$f":"'Standing Data'!$F$9","v":0},"Fin.Return","G1122",{"$f":"Fin.Return!G1249","v":0}]
[{"$f":"'Standing Data'!$D$15","v":{"$error":"#N/A"}},{"$f":"'Standing Data'!$F$15","v":0},{"$f":"'Standing Data'!$F$9","v":0},"Fin.Return","G1123",{"$f":"Fin.Return!G1250","v":0}]
[{"$f":"'Standing Data'!$D$15","v":{"$error":"#N/A"}},{"$f":"'Standing Data'!$F$15","v":0},{"$f":"'Standing Data'!$F$9","v":0},"Fin.Return","G1125",{"$f":"Fin.Return!G1252","v":0}]
[{"$f":"'Standing Data'!$D$15","v":{"$error":"#N/A"}},{"$f":"'Standing Data'!$F$15","v":0},{"$f":"'Standing Data'!$F$9","v":0},"Fin.Return","G1131",{"$f":"Fin.Return!G1258","v":0}]
[{"$f":"'Standing Data'!$D$15","v":{"$error":"#N/A"}},{"$f":"'Standing Data'!$F$15","v":0},{"$f":"'Standing Data'!$F$9","v":0},"Fin.Return","G1132",{"$f":"Fin.Return!G1259","v":0}]
[{"$f":"'Standing Data'!$D$15","v":{"$error":"#N/A"}},{"$f":"'Standing Data'!$F$15","v":0},{"$f":"'Standing Data'!$F$9","v":0},"Fin.Return","G1133",{"$f":"Fin.Return!G1260","v":0}]
[{"$f":"'Standing Data'!$D$15","v":{"$error":"#N/A"}},{"$f":"'Standing Data'!$F$15","v":0},{"$f":"'Standing Data'!$F$9","v":0},"Fin.Return","G1135",{"$f":"Fin.Return!G1262","v":0}]
[{"$f":"'Standing Data'!$D$15","v":{"$error":"#N/A"}},{"$f":"'Standing Data'!$F$15","v":0},{"$f":"'Standing Data'!$F$9","v":0},"Fin.Return","G1140",{"$f":"Fin.Return!G1267","v":0}]
[{"$f":"'Standing Data'!$D$15","v":{"$error":"#N/A"}},{"$f":"'Standing Data'!$F$15","v":0},{"$f":"'Standing Data'!$F$9","v":0},"Fin.Return","G1141",{"$f":"Fin.Return!G1268","v":0}]
[{"$f":"'Standing Data'!$D$15","v":{"$error":"#N/A"}},{"$f":"'Standing Data'!$F$15","v":0},{"$f":"'Standing Data'!$F$9","v":0},"Fin.Return","G1142",{"$f":"Fin.Return!G1269","v":0}]
[{"$f":"'Standing Data'!$D$15","v":{"$error":"#N/A"}},{"$f":"'Standing Data'!$F$15","v":0},{"$f":"'Standing Data'!$F$9","v":0},"Fin.Return","G1144",{"$f":"Fin.Return!G1271","v":0}]
[{"$f":"'Standing Data'!$D$15","v":{"$error":"#N/A"}},{"$f":"'Standing Data'!$F$15","v":0},{"$f":"'Standing Data'!$F$9","v":0},"Fin.Return","G1149",{"$f":"Fin.Return!#REF!","v":{"$error":"#REF!"}}]
[{"$f":"'Standing Data'!$D$15","v":{"$error":"#N/A"}},{"$f":"'Standing Data'!$F$15","v":0},{"$f":"'Standing Data'!$F$9","v":0},"Fin.Return","G1150",{"$f":"Fin.Return!#REF!","v":{"$error":"#REF!"}}]
[{"$f":"'Standing Data'!$D$15","v":{"$error":"#N/A"}},{"$f":"'Standing Data'!$F$15","v":0},{"$f":"'Standing Data'!$F$9","v":0},"Fin.Return","G1151",{"$f":"Fin.Return!#REF!","v":{"$error":"#REF!"}}]
[{"$f":"'Standing Data'!$D$15","v":{"$error":"#N/A"}},{"$f":"'Standing Data'!$F$15","v":0},{"$f":"'Standing Data'!$F$9","v":0},"Fin.Return","G1153",{"$f":"Fin.Return!#REF!","v":{"$error":"#REF!"}}]
[{"$f":"'Standing Data'!$D$15","v":{"$error":"#N/A"}},{"$f":"'Standing Data'!$F$15","v":0},{"$f":"'Standing Data'!$F$9","v":0},"Fin.Return","G1159",{"$f":"Fin.Return!#REF!","v":{"$error":"#REF!"}}]
[{"$f":"'Standing Data'!$D$15","v":{"$error":"#N/A"}},{"$f":"'Standing Data'!$F$15","v":0},{"$f":"'Standing Data'!$F$9","v":0},"Fin.Return","G1160",{"$f":"Fin.Return!#REF!","v":{"$error":"#REF!"}}]
[{"$f":"'Standing Data'!$D$15","v":{"$error":"#N/A"}},{"$f":"'Standing Data'!$F$15","v":0},{"$f":"'Standing Data'!$F$9","v":0},"Fin.Return","G1161",{"$f":"Fin.Return!#REF!","v":{"$error":"#REF!"}}]
[{"$f":"'Standing Data'!$D$15","v":{"$error":"#N/A"}},{"$f":"'Standing Data'!$F$15","v":0},{"$f":"'Standing Data'!$F$9","v":0},"Fin.Return","G1162",{"$f":"Fin.Return!#REF!","v":{"$error":"#REF!"}}]
[{"$f":"'Standing Data'!$D$15","v":{"$error":"#N/A"}},{"$f":"'Standing Data'!$F$15","v":0},{"$f":"'Standing Data'!$F$9","v":0},"Fin.Return","G1163",{"$f":"Fin.Return!#REF!","v":{"$error":"#REF!"}}]
[{"$f":"'Standing Data'!$D$15","v":{"$error":"#N/A"}},{"$f":"'Standing Data'!$F$15","v":0},{"$f":"'Standing Data'!$F$9","v":0},"Fin.Return","G1164",{"$f":"Fin.Return!#REF!","v":{"$error":"#REF!"}}]
[{"$f":"'Standing Data'!$D$15","v":{"$error":"#N/A"}},{"$f":"'Standing Data'!$F$15","v":0},{"$f":"'Standing Data'!$F$9","v":0},"Fin.Return","G1165",{"$f":"Fin.Return!#REF!","v":{"$error":"#REF!"}}]
[{"$f":"'Standing Data'!$D$15","v":{"$error":"#N/A"}},{"$f":"'Standing Data'!$F$15","v":0},{"$f":"'Standing Data'!$F$9","v":0},"Fin.Return","G1166",{"$f":"Fin.Return!#REF!","v":{"$error":"#REF!"}}]
[{"$f":"'Standing Data'!$D$15","v":{"$error":"#N/A"}},{"$f":"'Standing Data'!$F$15","v":0},{"$f":"'Standing Data'!$F$9","v":0},"Fin.Return","G1167",{"$f":"Fin.Return!#REF!","v":{"$error":"#REF!"}}]
[{"$f":"'Standing Data'!$D$15","v":{"$error":"#N/A"}},{"$f":"'Standing Data'!$F$15","v":0},{"$f":"'Standing Data'!$F$9","v":0},"Fin.Return","G1168",{"$f":"Fin.Return!#REF!","v":{"$error":"#REF!"}}]
[{"$f":"'Standing Data'!$D$15","v":{"$error":"#N/A"}},{"$f":"'Standing Data'!$F$15","v":0},{"$f":"'Standing Data'!$F$9","v":0},"Fin.Return","G1169",{"$f":"Fin.Return!#REF!","v":{"$error":"#REF!"}}]
[{"$f":"'Standing Data'!$D$15","v":{"$error":"#N/A"}},{"$f":"'Standing Data'!$F$15","v":0},{"$f":"'Standing Data'!$F$9","v":0},"Fin.Return","G1170",{"$f":"Fin.Return!#REF!","v":{"$error":"#REF!"}}]
[{"$f":"'Standing Data'!$D$15","v":{"$error":"#N/A"}},{"$f":"'Standing Data'!$F$15","v":0},{"$f":"'Standing Data'!$F$9","v":0},"Fin.Return","G1171",{"$f":"Fin.Return!#REF!","v":{"$error":"#REF!"}}]
[{"$f":"'Standing Data'!$D$15","v":{"$error":"#N/A"}},{"$f":"'Standing Data'!$F$15","v":0},{"$f":"'Standing Data'!$F$9","v":0},"Fin.Return","G1172",{"$f":"Fin.Return!#REF!","v":{"$error":"#REF!"}}]
[{"$f":"'Standing Data'!$D$15","v":{"$error":"#N/A"}},{"$f":"'Standing Data'!$F$15","v":0},{"$f":"'Standing Data'!$F$9","v":0},"Fin.Return","G1180",{"$f":"Fin.Return!G1277","v":0}]
[{"$f":"'Standing Data'!$D$15","v":{"$error":"#N/A"}},{"$f":"'Standing Data'!$F$15","v":0},{"$f":"'Standing Data'!$F$9","v":0},"Fin.Return","G1181",{"$f":"Fin.Return!G1278","v":0}]
[{"$f":"'Standing Data'!$D$15","v":{"$error":"#N/A"}},{"$f":"'Standing Data'!$F$15","v":0},{"$f":"'Standing Data'!$F$9","v":0},"Fin.Return","G1182",{"$f":"Fin.Return!G1279","v":0}]
[{"$f":"'Standing Data'!$D$15","v":{"$error":"#N/A"}},{"$f":"'Standing Data'!$F$15","v":0},{"$f":"'Standing Data'!$F$9","v":0},"Fin.Return","G1183",{"$f":"Fin.Return!G1280","v":0}]
[{"$f":"'Standing Data'!$D$15","v":{"$error":"#N/A"}},{"$f":"'Standing Data'!$F$15","v":0},{"$f":"'Standing Data'!$F$9","v":0},"Fin.Return","G1184",{"$f":"Fin.Return!G1281","v":0}]
[{"$f":"'Standing Data'!$D$15","v":{"$error":"#N/A"}},{"$f":"'Standing Data'!$F$15","v":0},{"$f":"'Standing Data'!$F$9","v":0},"Fin.Return","G1185",{"$f":"Fin.Return!G1282","v":0}]
[{"$f":"'Standing Data'!$D$15","v":{"$error":"#N/A"}},{"$f":"'Standing Data'!$F$15","v":0},{"$f":"'Standing Data'!$F$9","v":0},"Fin.Return","G1186",{"$f":"Fin.Return!G1283","v":0}]
[{"$f":"'Standing Data'!$D$15","v":{"$error":"#N/A"}},{"$f":"'Standing Data'!$F$15","v":0},{"$f":"'Standing Data'!$F$9","v":0},"Fin.Return","G1187",{"$f":"Fin.Return!G1284","v":0}]
[{"$f":"'Standing Data'!$D$15","v":{"$error":"#N/A"}},{"$f":"'Standing Data'!$F$15","v":0},{"$f":"'Standing Data'!$F$9","v":0},"Fin.Return","G1188",{"$f":"Fin.Return!G1285","v":0}]
[{"$f":"'Standing Data'!$D$15","v":{"$error":"#N/A"}},{"$f":"'Standing Data'!$F$15","v":0},{"$f":"'Standing Data'!$F$9","v":0},"Fin.Return","G1189",{"$f":"Fin.Return!G1286","v":0}]
[{"$f":"'Standing Data'!$D$15","v":{"$error":"#N/A"}},{"$f":"'Standing Data'!$F$15","v":0},{"$f":"'Standing Data'!$F$9","v":0},"Fin.Return","G1190",{"$f":"Fin.Return!G1287","v":0}]
[{"$f":"'Standing Data'!$D$15","v":{"$error":"#N/A"}},{"$f":"'Standing Data'!$F$15","v":0},{"$f":"'Standing Data'!$F$9","v":0},"Fin.Return","G1191",{"$f":"Fin.Return!G1288","v":0}]
[{"$f":"'Standing Data'!$D$15","v":{"$error":"#N/A"}},{"$f":"'Standing Data'!$F$15","v":0},{"$f":"'Standing Data'!$F$9","v":0},"Fin.Return","G1192",{"$f":"Fin.Return!G1289","v":0}]
[{"$f":"'Standing Data'!$D$15","v":{"$error":"#N/A"}},{"$f":"'Standing Data'!$F$15","v":0},{"$f":"'Standing Data'!$F$9","v":0},"Fin.Return","G1193",{"$f":"Fin.Return!G1290","v":0}]
[{"$f":"'Standing Data'!$D$15","v":{"$error":"#N/A"}},{"$f":"'Standing Data'!$F$15","v":0},{"$f":"'Standing Data'!$F$9","v":0},"Fin.Return","G1194",{"$f":"Fin.Return!G1291","v":0}]
[{"$f":"'Standing Data'!$D$15","v":{"$error":"#N/A"}},{"$f":"'Standing Data'!$F$15","v":0},{"$f":"'Standing Data'!$F$9","v":0},"Fin.Return","G1195",{"$f":"Fin.Return!G1292","v":0}]
[{"$f":"'Standing Data'!$D$15","v":{"$error":"#N/A"}},{"$f":"'Standing Data'!$F$15","v":0},{"$f":"'Standing Data'!$F$9","v":0},"Fin.Return","G1196",{"$f":"Fin.Return!G1293","v":0}]
[{"$f":"'Standing Data'!$D$15","v":{"$error":"#N/A"}},{"$f":"'Standing Data'!$F$15","v":0},{"$f":"'Standing Data'!$F$9","v":0},"Fin.Return","G1197",{"$f":"Fin.Return!G1294","v":0}]
[{"$f":"'Standing Data'!$D$15","v":{"$error":"#N/A"}},{"$f":"'Standing Data'!$F$15","v":0},{"$f":"'Standing Data'!$F$9","v":0},"Fin.Return","G1198",{"$f":"Fin.Return!G1295","v":0}]
[{"$f":"'Standing Data'!$D$15","v":{"$error":"#N/A"}},{"$f":"'Standing Data'!$F$15","v":0},{"$f":"'Standing Data'!$F$9","v":0},"Fin.Return","G1199",{"$f":"Fin.Return!G1296","v":0}]
[{"$f":"'Standing Data'!$D$15","v":{"$error":"#N/A"}},{"$f":"'Standing Data'!$F$15","v":0},{"$f":"'Standing Data'!$F$9","v":0},"Fin.Return","G1200",{"$f":"Fin.Return!G1297","v":0}]
[{"$f":"'Standing Data'!$D$15","v":{"$error":"#N/A"}},{"$f":"'Standing Data'!$F$15","v":0},{"$f":"'Standing Data'!$F$9","v":0},"Fin.Return","G1201",{"$f":"Fin.Return!G1298","v":0}]
[{"$f":"'Standing Data'!$D$15","v":{"$error":"#N/A"}},{"$f":"'Standing Data'!$F$15","v":0},{"$f":"'Standing Data'!$F$9","v":0},"Fin.Return","G1202",{"$f":"Fin.Return!G1299","v":0}]
[{"$f":"'Standing Data'!$D$15","v":{"$error":"#N/A"}},{"$f":"'Standing Data'!$F$15","v":0},{"$f":"'Standing Data'!$F$9","v":0},"Fin.Return","G1203",{"$f":"Fin.Return!G1300","v":0}]
[{"$f":"'Standing Data'!$D$15","v":{"$error":"#N/A"}},{"$f":"'Standing Data'!$F$15","v":0},{"$f":"'Standing Data'!$F$9","v":0},"Fin.Return","G1204",{"$f":"Fin.Return!G1301","v":0}]
[{"$f":"'Standing Data'!$D$15","v":{"$error":"#N/A"}},{"$f":"'Standing Data'!$F$15","v":0},{"$f":"'Standing Data'!$F$9","v":0},"Fin.Return","G1205",{"$f":"Fin.Return!G1302","v":0}]
[{"$f":"'Standing Data'!$D$15","v":{"$error":"#N/A"}},{"$f":"'Standing Data'!$F$15","v":0},{"$f":"'Standing Data'!$F$9","v":0},"Fin.Return","G1206",{"$f":"Fin.Return!G1303","v":0}]
[{"$f":"'Standing Data'!$D$15","v":{"$error":"#N/A"}},{"$f":"'Standing Data'!$F$15","v":0},{"$f":"'Standing Data'!$F$9","v":0},"Fin.Return","G1207",{"$f":"Fin.Return!G1304","v":0}]
[{"$f":"'Standing Data'!$D$15","v":{"$error":"#N/A"}},{"$f":"'Standing Data'!$F$15","v":0},{"$f":"'Standing Data'!$F$9","v":0},"Fin.Return","G1208",{"$f":"Fin.Return!G1305","v":0}]
[{"$f":"'Standing Data'!$D$15","v":{"$error":"#N/A"}},{"$f":"'Standing Data'!$F$15","v":0},{"$f":"'Standing Data'!$F$9","v":0},"Fin.Return","G1209",{"$f":"Fin.Return!G1306","v":0}]
[{"$f":"'Standing Data'!$D$15","v":{"$error":"#N/A"}},{"$f":"'Standing Data'!$F$15","v":0},{"$f":"'Standing Data'!$F$9","v":0},"Fin.Return","G1210",{"$f":"Fin.Return!G1307","v":0}]
[{"$f":"'Standing Data'!$D$15","v":{"$error":"#N/A"}},{"$f":"'Standing Data'!$F$15","v":0},{"$f":"'Standing Data'!$F$9","v":0},"Fin.Return","G1211",{"$f":"Fin.Return!G1308","v":0}]
[{"$f":"'Standing Data'!$D$15","v":{"$error":"#N/A"}},{"$f":"'Standing Data'!$F$15","v":0},{"$f":"'Standing Data'!$F$9","v":0},"Fin.Return","G1212",{"$f":"Fin.Return!G1309","v":0}]
[{"$f":"'Standing Data'!$D$15","v":{"$error":"#N/A"}},{"$f":"'Standing Data'!$F$15","v":0},{"$f":"'Standing Data'!$F$9","v":0},"Fin.Return","G1213",{"$f":"Fin.Return!G1310","v":0}]
[{"$f":"'Standing Data'!$D$15","v":{"$error":"#N/A"}},{"$f":"'Standing Data'!$F$15","v":0},{"$f":"'Standing Data'!$F$9","v":0},"Fin.Return","G1214",{"$f":"Fin.Return!G1311","v":0}]
[{"$f":"'Standing Data'!$D$15","v":{"$error":"#N/A"}},{"$f":"'Standing Data'!$F$15","v":0},{"$f":"'Standing Data'!$F$9","v":0},"Fin.Return","G1215",{"$f":"Fin.Return!G1312","v":0}]
[{"$f":"'Standing Data'!$D$15","v":{"$error":"#N/A"}},{"$f":"'Standing Data'!$F$15","v":0},{"$f":"'Standing Data'!$F$9","v":0},"Fin.Return","G1216",{"$f":"Fin.Return!G1313","v":0}]
[{"$f":"'Standing Data'!$D$15","v":{"$error":"#N/A"}},{"$f":"'Standing Data'!$F$15","v":0},{"$f":"'Standing Data'!$F$9","v":0},"Fin.Return","G1217",{"$f":"Fin.Return!G1314","v":0}]
[{"$f":"'Standing Data'!$D$15","v":{"$error":"#N/A"}},{"$f":"'Standing Data'!$F$15","v":0},{"$f":"'Standing Data'!$F$9","v":0},"Fin.Return","G1218",{"$f":"Fin.Return!G1315","v":0}]
[{"$f":"'Standing Data'!$D$15","v":{"$error":"#N/A"}},{"$f":"'Standing Data'!$F$15","v":0},{"$f":"'Standing Data'!$F$9","v":0},"Fin.Return","G1219",{"$f":"Fin.Return!G1316","v":0}]
[{"$f":"'Standing Data'!$D$15","v":{"$error":"#N/A"}},{"$f":"'Standing Data'!$F$15","v":0},{"$f":"'Standing Data'!$F$9","v":0},"Fin.Return","G1220",{"$f":"Fin.Return!G1317","v":0}]
[{"$f":"'Standing Data'!$D$15","v":{"$error":"#N/A"}},{"$f":"'Standing Data'!$F$15","v":0},{"$f":"'Standing Data'!$F$9","v":0},"Fin.Return","G1221",{"$f":"Fin.Return!G1318","v":0}]
[{"$f":"'Standing Data'!$D$15","v":{"$error":"#N/A"}},{"$f":"'Standing Data'!$F$15","v":0},{"$f":"'Standing Data'!$F$9","v":0},"Fin.Return","G1222",{"$f":"Fin.Return!G1319","v":0}]
[{"$f":"'Standing Data'!$D$15","v":{"$error":"#N/A"}},{"$f":"'Standing Data'!$F$15","v":0},{"$f":"'Standing Data'!$F$9","v":0},"Fin.Return","G1223",{"$f":"Fin.Return!G1320","v":0}]
[{"$f":"'Standing Data'!$D$15","v":{"$error":"#N/A"}},{"$f":"'Standing Data'!$F$15","v":0},{"$f":"'Standing Data'!$F$9","v":0},"Fin.Return","G1224",{"$f":"Fin.Return!G1321","v":0}]
[{"$f":"'Standing Data'!$D$15","v":{"$error":"#N/A"}},{"$f":"'Standing Data'!$F$15","v":0},{"$f":"'Standing Data'!$F$9","v":0},"Fin.Return","G1225",{"$f":"Fin.Return!G1322","v":0}]
[{"$f":"'Standing Data'!$D$15","v":{"$error":"#N/A"}},{"$f":"'Standing Data'!$F$15","v":0},{"$f":"'Standing Data'!$F$9","v":0},"Fin.Return","G1226",{"$f":"Fin.Return!G1323","v":0}]
[{"$f":"'Standing Data'!$D$15","v":{"$error":"#N/A"}},{"$f":"'Standing Data'!$F$15","v":0},{"$f":"'Standing Data'!$F$9","v":0},"Fin.Return","G1227",{"$f":"Fin.Return!G1324","v":0}]
[{"$f":"'Standing Data'!$D$15","v":{"$error":"#N/A"}},{"$f":"'Standing Data'!$F$15","v":0},{"$f":"'Standing Data'!$F$9","v":0},"Fin.Return","G1228",{"$f":"Fin.Return!G1325","v":0}]
[{"$f":"'Standing Data'!$D$15","v":{"$error":"#N/A"}},{"$f":"'Standing Data'!$F$15","v":0},{"$f":"'Standing Data'!$F$9","v":0},"Fin.Return","G1229",{"$f":"Fin.Return!G1326","v":0}]
[{"$f":"'Standing Data'!$D$15","v":{"$error":"#N/A"}},{"$f":"'Standing Data'!$F$15","v":0},{"$f":"'Standing Data'!$F$9","v":0},"Fin.Return","G1230",{"$f":"Fin.Return!G1327","v":0}]
[{"$f":"'Standing Data'!$D$15","v":{"$error":"#N/A"}},{"$f":"'Standing Data'!$F$15","v":0},{"$f":"'Standing Data'!$F$9","v":0},"Fin.Return","G1237",{"$f":"Fin.Return!G1334","v":0}]
[{"$f":"'Standing Data'!$D$15","v":{"$error":"#N/A"}},{"$f":"'Standing Data'!$F$15","v":0},{"$f":"'Standing Data'!$F$9","v":0},"Fin.Return","G1238",{"$f":"Fin.Return!G1335","v":0}]
[{"$f":"'Standing Data'!$D$15","v":{"$error":"#N/A"}},{"$f":"'Standing Data'!$F$15","v":0},{"$f":"'Standing Data'!$F$9","v":0},"Fin.Return","G1239",{"$f":"Fin.Return!G1336","v":0}]
[{"$f":"'Standing Data'!$D$15","v":{"$error":"#N/A"}},{"$f":"'Standing Data'!$F$15","v":0},{"$f":"'Standing Data'!$F$9","v":0},"Fin.Return","G1240",{"$f":"Fin.Return!G1337","v":0}]
[{"$f":"'Standing Data'!$D$15","v":{"$error":"#N/A"}},{"$f":"'Standing Data'!$F$15","v":0},{"$f":"'Standing Data'!$F$9","v":0},"Fin.Return","G1241",{"$f":"Fin.Return!G1338","v":0}]
[{"$f":"'Standing Data'!$D$15","v":{"$error":"#N/A"}},{"$f":"'Standing Data'!$F$15","v":0},{"$f":"'Standing Data'!$F$9","v":0},"Fin.Return","G1242",{"$f":"Fin.Return!G1339","v":0}]
[{"$f":"'Standing Data'!$D$15","v":{"$error":"#N/A"}},{"$f":"'Standing Data'!$F$15","v":0},{"$f":"'Standing Data'!$F$9","v":0},"Fin.Return","G1243",{"$f":"Fin.Return!G1340","v":0}]
[{"$f":"'Standing Data'!$D$15","v":{"$error":"#N/A"}},{"$f":"'Standing Data'!$F$15","v":0},{"$f":"'Standing Data'!$F$9","v":0},"Fin.Return","G1244",{"$f":"Fin.Return!G1341","v":0}]
[{"$f":"'Standing Data'!$D$15","v":{"$error":"#N/A"}},{"$f":"'Standing Data'!$F$15","v":0},{"$f":"'Standing Data'!$F$9","v":0},"Fin.Return","G1245",{"$f":"Fin.Return!G1342","v":0}]
[{"$f":"'Standing Data'!$D$15","v":{"$error":"#N/A"}},{"$f":"'Standing Data'!$F$15","v":0},{"$f":"'Standing Data'!$F$9","v":0},"Fin.Return","G1246",{"$f":"Fin.Return!G1343","v":0}]
[{"$f":"'Standing Data'!$D$15","v":{"$error":"#N/A"}},{"$f":"'Standing Data'!$F$15","v":0},{"$f":"'Standing Data'!$F$9","v":0},"Fin.Return","G1247",{"$f":"Fin.Return!G1344","v":0}]
[{"$f":"'Standing Data'!$D$15","v":{"$error":"#N/A"}},{"$f":"'Standing Data'!$F$15","v":0},{"$f":"'Standing Data'!$F$9","v":0},"Fin.Return","G1248",{"$f":"Fin.Return!G1345","v":0}]
[{"$f":"'Standing Data'!$D$15","v":{"$error":"#N/A"}},{"$f":"'Standing Data'!$F$15","v":0},{"$f":"'Standing Data'!$F$9","v":0},"Fin.Return","G1249",{"$f":"Fin.Return!G1346","v":0}]
[{"$f":"'Standing Data'!$D$15","v":{"$error":"#N/A"}},{"$f":"'Standing Data'!$F$15","v":0},{"$f":"'Standing Data'!$F$9","v":0},"Fin.Return","G1250",{"$f":"Fin.Return!G1347","v":0}]
[{"$f":"'Standing Data'!$D$15","v":{"$error":"#N/A"}},{"$f":"'Standing Data'!$F$15","v":0},{"$f":"'Standing Data'!$F$9","v":0},"Fin.Return","G1252",{"$f":"Fin.Return!G1349","v":0}]
[{"$f":"'Standing Data'!$D$15","v":{"$error":"#N/A"}},{"$f":"'Standing Data'!$F$15","v":0},{"$f":"'Standing Data'!$F$9","v":0},"Fin.Return","G1257",{"$f":"Fin.Return!G1354","v":0}]
[{"$f":"'Standing Data'!$D$15","v":{"$error":"#N/A"}},{"$f":"'Standing Data'!$F$15","v":0},{"$f":"'Standing Data'!$F$9","v":0},"Fin.Return","G1258",{"$f":"Fin.Return!G1355","v":0}]
[{"$f":"'Standing Data'!$D$15","v":{"$error":"#N/A"}},{"$f":"'Standing Data'!$F$15","v":0},{"$f":"'Standing Data'!$F$9","v":0},"Fin.Return","G1259",{"$f":"Fin.Return!G1356","v":0}]
[{"$f":"'Standing Data'!$D$15","v":{"$error":"#N/A"}},{"$f":"'Standing Data'!$F$15","v":0},{"$f":"'Standing Data'!$F$9","v":0},"Fin.Return","G1260",{"$f":"Fin.Return!G1357","v":0}]
[{"$f":"'Standing Data'!$D$15","v":{"$error":"#N/A"}},{"$f":"'Standing Data'!$F$15","v":0},{"$f":"'Standing Data'!$F$9","v":0},"Fin.Return","G1261",{"$f":"Fin.Return!G1358","v":0}]
[{"$f":"'Standing Data'!$D$15","v":{"$error":"#N/A"}},{"$f":"'Standing Data'!$F$15","v":0},{"$f":"'Standing Data'!$F$9","v":0},"Fin.Return","G1262",{"$f":"Fin.Return!G1359","v":0}]
[{"$f":"'Standing Data'!$D$15","v":{"$error":"#N/A"}},{"$f":"'Standing Data'!$F$15","v":0},{"$f":"'Standing Data'!$F$9","v":0},"Fin.Return","G1263",{"$f":"Fin.Return!G1360","v":0}]
[{"$f":"'Standing Data'!$D$15","v":{"$error":"#N/A"}},{"$f":"'Standing Data'!$F$15","v":0},{"$f":"'Standing Data'!$F$9","v":0},"Fin.Return","G1264",{"$f":"Fin.Return!G1361","v":0}]
[{"$f":"'Standing Data'!$D$15","v":{"$error":"#N/A"}},{"$f":"'Standing Data'!$F$15","v":0},{"$f":"'Standing Data'!$F$9","v":0},"Fin.Return","G1265",{"$f":"Fin.Return!G1362","v":0}]
[{"$f":"'Standing Data'!$D$15","v":{"$error":"#N/A"}},{"$f":"'Standing Data'!$F$15","v":0},{"$f":"'Standing Data'!$F$9","v":0},"Fin.Return","G1266",{"$f":"Fin.Return!G1363","v":0}]
[{"$f":"'Standing Data'!$D$15","v":{"$error":"#N/A"}},{"$f":"'Standing Data'!$F$15","v":0},{"$f":"'Standing Data'!$F$9","v":0},"Fin.Return","G1267",{"$f":"Fin.Return!G1364","v":0}]
[{"$f":"'Standing Data'!$D$15","v":{"$error":"#N/A"}},{"$f":"'Standing Data'!$F$15","v":0},{"$f":"'Standing Data'!$F$9","v":0},"Fin.Return","G1268",{"$f":"Fin.Return!G1365","v":0}]
[{"$f":"'Standing Data'!$D$15","v":{"$error":"#N/A"}},{"$f":"'Standing Data'!$F$15","v":0},{"$f":"'Standing Data'!$F$9","v":0},"Fin.Return","H18",{"$f":"Fin.Return!H20","v":0}]
[{"$f":"'Standing Data'!$D$15","v":{"$error":"#N/A"}},{"$f":"'Standing Data'!$F$15","v":0},{"$f":"'Standing Data'!$F$9","v":0},"Fin.Return","H19",{"$f":"Fin.Return!H21","v":0}]
[{"$f":"'Standing Data'!$D$15","v":{"$error":"#N/A"}},{"$f":"'Standing Data'!$F$15","v":0},{"$f":"'Standing Data'!$F$9","v":0},"Fin.Return","H20",{"$f":"Fin.Return!H22","v":0}]
[{"$f":"'Standing Data'!$D$15","v":{"$error":"#N/A"}},{"$f":"'Standing Data'!$F$15","v":0},{"$f":"'Standing Data'!$F$9","v":0},"Fin.Return","H21",{"$f":"Fin.Return!H23","v":0}]
[{"$f":"'Standing Data'!$D$15","v":{"$error":"#N/A"}},{"$f":"'Standing Data'!$F$15","v":0},{"$f":"'Standing Data'!$F$9","v":0},"Fin.Return","H23",{"$f":"Fin.Return!H25","v":0}]
[{"$f":"'Standing Data'!$D$15","v":{"$error":"#N/A"}},{"$f":"'Standing Data'!$F$15","v":0},{"$f":"'Standing Data'!$F$9","v":0},"Fin.Return","H24",{"$f":"Fin.Return!H26","v":0}]
[{"$f":"'Standing Data'!$D$15","v":{"$error":"#N/A"}},{"$f":"'Standing Data'!$F$15","v":0},{"$f":"'Standing Data'!$F$9","v":0},"Fin.Return","H26",{"$f":"Fin.Return!H28","v":0}]
[{"$f":"'Standing Data'!$D$15","v":{"$error":"#N/A"}},{"$f":"'Standing Data'!$F$15","v":0},{"$f":"'Standing Data'!$F$9","v":0},"Fin.Return","H29",{"$f":"Fin.Return!H31","v":0}]
[{"$f":"'Standing Data'!$D$15","v":{"$error":"#N/A"}},{"$f":"'Standing Data'!$F$15","v":0},{"$f":"'Standing Data'!$F$9","v":0},"Fin.Return","H30",{"$f":"Fin.Return!H32","v":0}]
[{"$f":"'Standing Data'!$D$15","v":{"$error":"#N/A"}},{"$f":"'Standing Data'!$F$15","v":0},{"$f":"'Standing Data'!$F$9","v":0},"Fin.Return","H31",{"$f":"Fin.Return!H33","v":0}]
[{"$f":"'Standing Data'!$D$15","v":{"$error":"#N/A"}},{"$f":"'Standing Data'!$F$15","v":0},{"$f":"'Standing Data'!$F$9","v":0},"Fin.Return","H33",{"$f":"Fin.Return!H35","v":0}]
[{"$f":"'Standing Data'!$D$15","v":{"$error":"#N/A"}},{"$f":"'Standing Data'!$F$15","v":0},{"$f":"'Standing Data'!$F$9","v":0},"Fin.Return","H34",{"$f":"Fin.Return!H36","v":0}]
[{"$f":"'Standing Data'!$D$15","v":{"$error":"#N/A"}},{"$f":"'Standing Data'!$F$15","v":0},{"$f":"'Standing Data'!$F$9","v":0},"Fin.Return","H35",{"$f":"Fin.Return!H37","v":0}]
[{"$f":"'Standing Data'!$D$15","v":{"$error":"#N/A"}},{"$f":"'Standing Data'!$F$15","v":0},{"$f":"'Standing Data'!$F$9","v":0},"Fin.Return","H37",{"$f":"Fin.Return!H39","v":0}]
[{"$f":"'Standing Data'!$D$15","v":{"$error":"#N/A"}},{"$f":"'Standing Data'!$F$15","v":0},{"$f":"'Standing Data'!$F$9","v":0},"Fin.Return","H38",{"$f":"Fin.Return!H40","v":0}]
[{"$f":"'Standing Data'!$D$15","v":{"$error":"#N/A"}},{"$f":"'Standing Data'!$F$15","v":0},{"$f":"'Standing Data'!$F$9","v":0},"Fin.Return","H39",{"$f":"Fin.Return!H41","v":0}]
[{"$f":"'Standing Data'!$D$15","v":{"$error":"#N/A"}},{"$f":"'Standing Data'!$F$15","v":0},{"$f":"'Standing Data'!$F$9","v":0},"Fin.Return","H41",{"$f":"Fin.Return!H43","v":0}]
[{"$f":"'Standing Data'!$D$15","v":{"$error":"#N/A"}},{"$f":"'Standing Data'!$F$15","v":0},{"$f":"'Standing Data'!$F$9","v":0},"Fin.Return","H43",{"$f":"Fin.Return!H45","v":0}]
[{"$f":"'Standing Data'!$D$15","v":{"$error":"#N/A"}},{"$f":"'Standing Data'!$F$15","v":0},{"$f":"'Standing Data'!$F$9","v":0},"Fin.Return","H44",{"$f":"Fin.Return!H46","v":0}]
[{"$f":"'Standing Data'!$D$15","v":{"$error":"#N/A"}},{"$f":"'Standing Data'!$F$15","v":0},{"$f":"'Standing Data'!$F$9","v":0},"Fin.Return","H45",{"$f":"Fin.Return!H47","v":0}]
[{"$f":"'Standing Data'!$D$15","v":{"$error":"#N/A"}},{"$f":"'Standing Data'!$F$15","v":0},{"$f":"'Standing Data'!$F$9","v":0},"Fin.Return","H46",{"$f":"Fin.Return!H48","v":0}]
[{"$f":"'Standing Data'!$D$15","v":{"$error":"#N/A"}},{"$f":"'Standing Data'!$F$15","v":0},{"$f":"'Standing Data'!$F$9","v":0},"Fin.Return","H48",{"$f":"Fin.Return!H50","v":0}]
[{"$f":"'Standing Data'!$D$15","v":{"$error":"#N/A"}},{"$f":"'Standing Data'!$F$15","v":0},{"$f":"'Standing Data'!$F$9","v":0},"Fin.Return","H50",{"$f":"Fin.Return!H52","v":0}]
[{"$f":"'Standing Data'!$D$15","v":{"$error":"#N/A"}},{"$f":"'Standing Data'!$F$15","v":0},{"$f":"'Standing Data'!$F$9","v":0},"Fin.Return","H51",{"$f":"Fin.Return!H53","v":0}]
[{"$f":"'Standing Data'!$D$15","v":{"$error":"#N/A"}},{"$f":"'Standing Data'!$F$15","v":0},{"$f":"'Standing Data'!$F$9","v":0},"Fin.Return","H52",{"$f":"Fin.Return!H54","v":0}]
[{"$f":"'Standing Data'!$D$15","v":{"$error":"#N/A"}},{"$f":"'Standing Data'!$F$15","v":0},{"$f":"'Standing Data'!$F$9","v":0},"Fin.Return","H54",{"$f":"Fin.Return!H56","v":0}]
[{"$f":"'Standing Data'!$D$15","v":{"$error":"#N/A"}},{"$f":"'Standing Data'!$F$15","v":0},{"$f":"'Standing Data'!$F$9","v":0},"Fin.Return","H134",{"$f":"Fin.Return!H136","v":0}]
[{"$f":"'Standing Data'!$D$15","v":{"$error":"#N/A"}},{"$f":"'Standing Data'!$F$15","v":0},{"$f":"'Standing Data'!$F$9","v":0},"Fin.Return","H135",{"$f":"Fin.Return!H137","v":0}]
[{"$f":"'Standing Data'!$D$15","v":{"$error":"#N/A"}},{"$f":"'Standing Data'!$F$15","v":0},{"$f":"'Standing Data'!$F$9","v":0},"Fin.Return","H136",{"$f":"Fin.Return!H138","v":0}]
[{"$f":"'Standing Data'!$D$15","v":{"$error":"#N/A"}},{"$f":"'Standing Data'!$F$15","v":0},{"$f":"'Standing Data'!$F$9","v":0},"Fin.Return","H138",{"$f":"Fin.Return!H140","v":0}]
[{"$f":"'Standing Data'!$D$15","v":{"$error":"#N/A"}},{"$f":"'Standing Data'!$F$15","v":0},{"$f":"'Standing Data'!$F$9","v":0},"Fin.Return","H144",{"$f":"Fin.Return!H146","v":0}]
[{"$f":"'Standing Data'!$D$15","v":{"$error":"#N/A"}},{"$f":"'Standing Data'!$F$15","v":0},{"$f":"'Standing Data'!$F$9","v":0},"Fin.Return","H145",{"$f":"Fin.Return!H147","v":0}]
[{"$f":"'Standing Data'!$D$15","v":{"$error":"#N/A"}},{"$f":"'Standing Data'!$F$15","v":0},{"$f":"'Standing Data'!$F$9","v":0},"Fin.Return","H146",{"$f":"Fin.Return!H148","v":0}]
[{"$f":"'Standing Data'!$D$15","v":{"$error":"#N/A"}},{"$f":"'Standing Data'!$F$15","v":0},{"$f":"'Standing Data'!$F$9","v":0},"Fin.Return","H147",{"$f":"Fin.Return!H150","v":0}]
[{"$f":"'Standing Data'!$D$15","v":{"$error":"#N/A"}},{"$f":"'Standing Data'!$F$15","v":0},{"$f":"'Standing Data'!$F$9","v":0},"Fin.Return","H149",{"$f":"Fin.Return!H152","v":0}]
[{"$f":"'Standing Data'!$D$15","v":{"$error":"#N/A"}},{"$f":"'Standing Data'!$F$15","v":0},{"$f":"'Standing Data'!$F$9","v":0},"Fin.Return","H155",{"$f":"Fin.Return!H158","v":0}]
[{"$f":"'Standing Data'!$D$15","v":{"$error":"#N/A"}},{"$f":"'Standing Data'!$F$15","v":0},{"$f":"'Standing Data'!$F$9","v":0},"Fin.Return","H156",{"$f":"Fin.Return!H159","v":0}]
[{"$f":"'Standing Data'!$D$15","v":{"$error":"#N/A"}},{"$f":"'Standing Data'!$F$15","v":0},{"$f":"'Standing Data'!$F$9","v":0},"Fin.Return","H157",{"$f":"Fin.Return!H160","v":0}]
[{"$f":"'Standing Data'!$D$15","v":{"$error":"#N/A"}},{"$f":"'Standing Data'!$F$15","v":0},{"$f":"'Standing Data'!$F$9","v":0},"Fin.Return","H158",{"$f":"Fin.Return!H161","v":0}]
[{"$f":"'Standing Data'!$D$15","v":{"$error":"#N/A"}},{"$f":"'Standing Data'!$F$15","v":0},{"$f":"'Standing Data'!$F$9","v":0},"Fin.Return","H160",{"$f":"Fin.Return!H163","v":0}]
[{"$f":"'Standing Data'!$D$15","v":{"$error":"#N/A"}},{"$f":"'Standing Data'!$F$15","v":0},{"$f":"'Standing Data'!$F$9","v":0},"Fin.Return","H168",{"$f":"Fin.Return!H171","v":0}]
[{"$f":"'Standing Data'!$D$15","v":{"$error":"#N/A"}},{"$f":"'Standing Data'!$F$15","v":0},{"$f":"'Standing Data'!$F$9","v":0},"Fin.Return","H169",{"$f":"Fin.Return!H172","v":0}]
[{"$f":"'Standing Data'!$D$15","v":{"$error":"#N/A"}},{"$f":"'Standing Data'!$F$15","v":0},{"$f":"'Standing Data'!$F$9","v":0},"Fin.Return","H170",{"$f":"Fin.Return!H173","v":0}]
[{"$f":"'Standing Data'!$D$15","v":{"$error":"#N/A"}},{"$f":"'Standing Data'!$F$15","v":0},{"$f":"'Standing Data'!$F$9","v":0},"Fin.Return","H171",{"$f":"Fin.Return!H174","v":0}]
[{"$f":"'Standing Data'!$D$15","v":{"$error":"#N/A"}},{"$f":"'Standing Data'!$F$15","v":0},{"$f":"'Standing Data'!$F$9","v":0},"Fin.Return","H172",{"$f":"Fin.Return!H175","v":0}]
[{"$f":"'Standing Data'!$D$15","v":{"$error":"#N/A"}},{"$f":"'Standing Data'!$F$15","v":0},{"$f":"'Standing Data'!$F$9","v":0},"Fin.Return","H173",{"$f":"Fin.Return!H176","v":0}]
[{"$f":"'Standing Data'!$D$15","v":{"$error":"#N/A"}},{"$f":"'Standing Data'!$F$15","v":0},{"$f":"'Standing Data'!$F$9","v":0},"Fin.Return","H174",{"$f":"Fin.Return!H177","v":0}]
[{"$f":"'Standing Data'!$D$15","v":{"$error":"#N/A"}},{"$f":"'Standing Data'!$F$15","v":0},{"$f":"'Standing Data'!$F$9","v":0},"Fin.Return","H175",{"$f":"Fin.Return!H178","v":0}]
[{"$f":"'Standing Data'!$D$15","v":{"$error":"#N/A"}},{"$f":"'Standing Data'!$F$15","v":0},{"$f":"'Standing Data'!$F$9","v":0},"Fin.Return","H176",{"$f":"Fin.Return!H179","v":0}]
[{"$f":"'Standing Data'!$D$15","v":{"$error":"#N/A"}},{"$f":"'Standing Data'!$F$15","v":0},{"$f":"'Standing Data'!$F$9","v":0},"Fin.Return","H177",{"$f":"Fin.Return!H180","v":0}]
[{"$f":"'Standing Data'!$D$15","v":{"$error":"#N/A"}},{"$f":"'Standing Data'!$F$15","v":0},{"$f":"'Standing Data'!$F$9","v":0},"Fin.Return","H178",{"$f":"Fin.Return!H181","v":0}]
[{"$f":"'Standing Data'!$D$15","v":{"$error":"#N/A"}},{"$f":"'Standing Data'!$F$15","v":0},{"$f":"'Standing Data'!$F$9","v":0},"Fin.Return","H179",{"$f":"Fin.Return!H182","v":0}]
[{"$f":"'Standing Data'!$D$15","v":{"$error":"#N/A"}},{"$f":"'Standing Data'!$F$15","v":0},{"$f":"'Standing Data'!$F$9","v":0},"Fin.Return","H180",{"$f":"Fin.Return!H183","v":0}]
[{"$f":"'Standing Data'!$D$15","v":{"$error":"#N/A"}},{"$f":"'Standing Data'!$F$15","v":0},{"$f":"'Standing Data'!$F$9","v":0},"Fin.Return","H181",{"$f":"Fin.Return!H184","v":0}]
[{"$f":"'Standing Data'!$D$15","v":{"$error":"#N/A"}},{"$f":"'Standing Data'!$F$15","v":0},{"$f":"'Standing Data'!$F$9","v":0},"Fin.Return","H182",{"$f":"Fin.Return!H185","v":0}]
[{"$f":"'Standing Data'!$D$15","v":{"$error":"#N/A"}},{"$f":"'Standing Data'!$F$15","v":0},{"$f":"'Standing Data'!$F$9","v":0},"Fin.Return","H183",{"$f":"Fin.Return!H186","v":0}]
[{"$f":"'Standing Data'!$D$15","v":{"$error":"#N/A"}},{"$f":"'Standing Data'!$F$15","v":0},{"$f":"'Standing Data'!$F$9","v":0},"Fin.Return","H184",{"$f":"Fin.Return!H187","v":0}]
[{"$f":"'Standing Data'!$D$15","v":{"$error":"#N/A"}},{"$f":"'Standing Data'!$F$15","v":0},{"$f":"'Standing Data'!$F$9","v":0},"Fin.Return","H185",{"$f":"Fin.Return!H188","v":0}]
[{"$f":"'Standing Data'!$D$15","v":{"$error":"#N/A"}},{"$f":"'Standing Data'!$F$15","v":0},{"$f":"'Standing Data'!$F$9","v":0},"Fin.Return","H186",{"$f":"Fin.Return!H189","v":0}]
[{"$f":"'Standing Data'!$D$15","v":{"$error":"#N/A"}},{"$f":"'Standing Data'!$F$15","v":0},{"$f":"'Standing Data'!$F$9","v":0},"Fin.Return","H187",{"$f":"Fin.Return!H190","v":0}]
[{"$f":"'Standing Data'!$D$15","v":{"$error":"#N/A"}},{"$f":"'Standing Data'!$F$15","v":0},{"$f":"'Standing Data'!$F$9","v":0},"Fin.Return","H188",{"$f":"Fin.Return!H191","v":0}]
[{"$f":"'Standing Data'!$D$15","v":{"$error":"#N/A"}},{"$f":"'Standing Data'!$F$15","v":0},{"$f":"'Standing Data'!$F$9","v":0},"Fin.Return","H189",{"$f":"Fin.Return!H192","v":0}]
[{"$f":"'Standing Data'!$D$15","v":{"$error":"#N/A"}},{"$f":"'Standing Data'!$F$15","v":0},{"$f":"'Standing Data'!$F$9","v":0},"Fin.Return","H191",{"$f":"Fin.Return!H194","v":0}]
[{"$f":"'Standing Data'!$D$15","v":{"$error":"#N/A"}},{"$f":"'Standing Data'!$F$15","v":0},{"$f":"'Standing Data'!$F$9","v":0},"Fin.Return","H193",{"$f":"Fin.Return!H196","v":0}]
[{"$f":"'Standing Data'!$D$15","v":{"$error":"#N/A"}},{"$f":"'Standing Data'!$F$15","v":0},{"$f":"'Standing Data'!$F$9","v":0},"Fin.Return","H194",{"$f":"Fin.Return!H197","v":0}]
[{"$f":"'Standing Data'!$D$15","v":{"$error":"#N/A"}},{"$f":"'Standing Data'!$F$15","v":0},{"$f":"'Standing Data'!$F$9","v":0},"Fin.Return","H195",{"$f":"Fin.Return!H198","v":0}]
[{"$f":"'Standing Data'!$D$15","v":{"$error":"#N/A"}},{"$f":"'Standing Data'!$F$15","v":0},{"$f":"'Standing Data'!$F$9","v":0},"Fin.Return","H196",{"$f":"Fin.Return!H199","v":0}]
[{"$f":"'Standing Data'!$D$15","v":{"$error":"#N/A"}},{"$f":"'Standing Data'!$F$15","v":0},{"$f":"'Standing Data'!$F$9","v":0},"Fin.Return","H197",{"$f":"Fin.Return!H200","v":0}]
[{"$f":"'Standing Data'!$D$15","v":{"$error":"#N/A"}},{"$f":"'Standing Data'!$F$15","v":0},{"$f":"'Standing Data'!$F$9","v":0},"Fin.Return","H198",{"$f":"Fin.Return!H201","v":0}]
[{"$f":"'Standing Data'!$D$15","v":{"$error":"#N/A"}},{"$f":"'Standing Data'!$F$15","v":0},{"$f":"'Standing Data'!$F$9","v":0},"Fin.Return","H200",{"$f":"Fin.Return!H203","v":0}]
[{"$f":"'Standing Data'!$D$15","v":{"$error":"#N/A"}},{"$f":"'Standing Data'!$F$15","v":0},{"$f":"'Standing Data'!$F$9","v":0},"Fin.Return","H202",{"$f":"Fin.Return!H205","v":0}]
[{"$f":"'Standing Data'!$D$15","v":{"$error":"#N/A"}},{"$f":"'Standing Data'!$F$15","v":0},{"$f":"'Standing Data'!$F$9","v":0},"Fin.Return","H203",{"$f":"Fin.Return!H206","v":0}]
[{"$f":"'Standing Data'!$D$15","v":{"$error":"#N/A"}},{"$f":"'Standing Data'!$F$15","v":0},{"$f":"'Standing Data'!$F$9","v":0},"Fin.Return","H204",{"$f":"Fin.Return!H207","v":0}]
[{"$f":"'Standing Data'!$D$15","v":{"$error":"#N/A"}},{"$f":"'Standing Data'!$F$15","v":0},{"$f":"'Standing Data'!$F$9","v":0},"Fin.Return","H205",{"$f":"Fin.Return!H208","v":0}]
[{"$f":"'Standing Data'!$D$15","v":{"$error":"#N/A"}},{"$f":"'Standing Data'!$F$15","v":0},{"$f":"'Standing Data'!$F$9","v":0},"Fin.Return","H206",{"$f":"Fin.Return!H209","v":0}]
[{"$f":"'Standing Data'!$D$15","v":{"$error":"#N/A"}},{"$f":"'Standing Data'!$F$15","v":0},{"$f":"'Standing Data'!$F$9","v":0},"Fin.Return","H207",{"$f":"Fin.Return!H210","v":0}]
[{"$f":"'Standing Data'!$D$15","v":{"$error":"#N/A"}},{"$f":"'Standing Data'!$F$15","v":0},{"$f":"'Standing Data'!$F$9","v":0},"Fin.Return","H209",{"$f":"Fin.Return!H212","v":0}]
[{"$f":"'Standing Data'!$D$15","v":{"$error":"#N/A"}},{"$f":"'Standing Data'!$F$15","v":0},{"$f":"'Standing Data'!$F$9","v":0},"Fin.Return","H211",{"$f":"Fin.Return!H221","v":0}]
[{"$f":"'Standing Data'!$D$15","v":{"$error":"#N/A"}},{"$f":"'Standing Data'!$F$15","v":0},{"$f":"'Standing Data'!$F$9","v":0},"Fin.Return","H212",{"$f":"Fin.Return!H222","v":0}]
[{"$f":"'Standing Data'!$D$15","v":{"$error":"#N/A"}},{"$f":"'Standing Data'!$F$15","v":0},{"$f":"'Standing Data'!$F$9","v":0},"Fin.Return","H214",{"$f":"Fin.Return!H224","v":0}]
[{"$f":"'Standing Data'!$D$15","v":{"$error":"#N/A"}},{"$f":"'Standing Data'!$F$15","v":0},{"$f":"'Standing Data'!$F$9","v":0},"Fin.Return","H216",{"$f":"Fin.Return!H226","v":0}]
[{"$f":"'Standing Data'!$D$15","v":{"$error":"#N/A"}},{"$f":"'Standing Data'!$F$15","v":0},{"$f":"'Standing Data'!$F$9","v":0},"Fin.Return","H217",{"$f":"Fin.Return!H227","v":0}]
[{"$f":"'Standing Data'!$D$15","v":{"$error":"#N/A"}},{"$f":"'Standing Data'!$F$15","v":0},{"$f":"'Standing Data'!$F$9","v":0},"Fin.Return","H218",{"$f":"Fin.Return!H229","v":0}]
[{"$f":"'Standing Data'!$D$15","v":{"$error":"#N/A"}},{"$f":"'Standing Data'!$F$15","v":0},{"$f":"'Standing Data'!$F$9","v":0},"Fin.Return","H220",{"$f":"Fin.Return!H231","v":0}]
[{"$f":"'Standing Data'!$D$15","v":{"$error":"#N/A"}},{"$f":"'Standing Data'!$F$15","v":0},{"$f":"'Standing Data'!$F$9","v":0},"Fin.Return","H222",{"$f":"Fin.Return!H233","v":0}]
[{"$f":"'Standing Data'!$D$15","v":{"$error":"#N/A"}},{"$f":"'Standing Data'!$F$15","v":0},{"$f":"'Standing Data'!$F$9","v":0},"Fin.Return","H228",{"$f":"Fin.Return!H239","v":0}]
[{"$f":"'Standing Data'!$D$15","v":{"$error":"#N/A"}},{"$f":"'Standing Data'!$F$15","v":0},{"$f":"'Standing Data'!$F$9","v":0},"Fin.Return","H229",{"$f":"Fin.Return!H240","v":0}]
[{"$f":"'Standing Data'!$D$15","v":{"$error":"#N/A"}},{"$f":"'Standing Data'!$F$15","v":0},{"$f":"'Standing Data'!$F$9","v":0},"Fin.Return","H231",{"$f":"Fin.Return!H242","v":0}]
[{"$f":"'Standing Data'!$D$15","v":{"$error":"#N/A"}},{"$f":"'Standing Data'!$F$15","v":0},{"$f":"'Standing Data'!$F$9","v":0},"Fin.Return","H232",{"$f":"Fin.Return!H243","v":0}]
[{"$f":"'Standing Data'!$D$15","v":{"$error":"#N/A"}},{"$f":"'Standing Data'!$F$15","v":0},{"$f":"'Standing Data'!$F$9","v":0},"Fin.Return","H234",{"$f":"Fin.Return!H245","v":0}]
[{"$f":"'Standing Data'!$D$15","v":{"$error":"#N/A"}},{"$f":"'Standing Data'!$F$15","v":0},{"$f":"'Standing Data'!$F$9","v":0},"Fin.Return","H235",{"$f":"Fin.Return!H246","v":0}]
[{"$f":"'Standing Data'!$D$15","v":{"$error":"#N/A"}},{"$f":"'Standing Data'!$F$15","v":0},{"$f":"'Standing Data'!$F$9","v":0},"Fin.Return","H236",{"$f":"Fin.Return!H247","v":0}]
[{"$f":"'Standing Data'!$D$15","v":{"$error":"#N/A"}},{"$f":"'Standing Data'!$F$15","v":0},{"$f":"'Standing Data'!$F$9","v":0},"Fin.Return","H238",{"$f":"Fin.Return!H249","v":0}]
[{"$f":"'Standing Data'!$D$15","v":{"$error":"#N/A"}},{"$f":"'Standing Data'!$F$15","v":0},{"$f":"'Standing Data'!$F$9","v":0},"Fin.Return","H357",{"$f":"Fin.Return!H371","v":0}]
[{"$f":"'Standing Data'!$D$15","v":{"$error":"#N/A"}},{"$f":"'Standing Data'!$F$15","v":0},{"$f":"'Standing Data'!$F$9","v":0},"Fin.Return","H358",{"$f":"Fin.Return!H372","v":0}]
[{"$f":"'Standing Data'!$D$15","v":{"$error":"#N/A"}},{"$f":"'Standing Data'!$F$15","v":0},{"$f":"'Standing Data'!$F$9","v":0},"Fin.Return","H359",{"$f":"Fin.Return!H373","v":0}]
[{"$f":"'Standing Data'!$D$15","v":{"$error":"#N/A"}},{"$f":"'Standing Data'!$F$15","v":0},{"$f":"'Standing Data'!$F$9","v":0},"Fin.Return","H361",{"$f":"Fin.Return!H375","v":0}]
[{"$f":"'Standing Data'!$D$15","v":{"$error":"#N/A"}},{"$f":"'Standing Data'!$F$15","v":0},{"$f":"'Standing Data'!$F$9","v":0},"Fin.Return","H400",{"$f":"Fin.Return!H414","v":0}]
[{"$f":"'Standing Data'!$D$15","v":{"$error":"#N/A"}},{"$f":"'Standing Data'!$F$15","v":0},{"$f":"'Standing Data'!$F$9","v":0},"Fin.Return","H468",{"$f":"Fin.Return!H482","v":0}]
[{"$f":"'Standing Data'!$D$15","v":{"$error":"#N/A"}},{"$f":"'Standing Data'!$F$15","v":0},{"$f":"'Standing Data'!$F$9","v":0},"Fin.Return","H469",{"$f":"Fin.Return!H483","v":0}]
[{"$f":"'Standing Data'!$D$15","v":{"$error":"#N/A"}},{"$f":"'Standing Data'!$F$15","v":0},{"$f":"'Standing Data'!$F$9","v":0},"Fin.Return","H470",{"$f":"Fin.Return!H484","v":0}]
[{"$f":"'Standing Data'!$D$15","v":{"$error":"#N/A"}},{"$f":"'Standing Data'!$F$15","v":0},{"$f":"'Standing Data'!$F$9","v":0},"Fin.Return","H471",{"$f":"Fin.Return!H485","v":0}]
[{"$f":"'Standing Data'!$D$15","v":{"$error":"#N/A"}},{"$f":"'Standing Data'!$F$15","v":0},{"$f":"'Standing Data'!$F$9","v":0},"Fin.Return","H472",{"$f":"Fin.Return!H486","v":0}]
[{"$f":"'Standing Data'!$D$15","v":{"$error":"#N/A"}},{"$f":"'Standing Data'!$F$15","v":0},{"$f":"'Standing Data'!$F$9","v":0},"Fin.Return","H473",{"$f":"Fin.Return!H487","v":0}]
[{"$f":"'Standing Data'!$D$15","v":{"$error":"#N/A"}},{"$f":"'Standing Data'!$F$15","v":0},{"$f":"'Standing Data'!$F$9","v":0},"Fin.Return","H474",{"$f":"Fin.Return!H488","v":0}]
[{"$f":"'Standing Data'!$D$15","v":{"$error":"#N/A"}},{"$f":"'Standing Data'!$F$15","v":0},{"$f":"'Standing Data'!$F$9","v":0},"Fin.Return","H475",{"$f":"Fin.Return!H489","v":0}]
[{"$f":"'Standing Data'!$D$15","v":{"$error":"#N/A"}},{"$f":"'Standing Data'!$F$15","v":0},{"$f":"'Standing Data'!$F$9","v":0},"Fin.Return","H477",{"$f":"Fin.Return!H491","v":0}]
[{"$f":"'Standing Data'!$D$15","v":{"$error":"#N/A"}},{"$f":"'Standing Data'!$F$15","v":0},{"$f":"'Standing Data'!$F$9","v":0},"Fin.Return","H480",{"$f":"Fin.Return!H494","v":0}]
[{"$f":"'Standing Data'!$D$15","v":{"$error":"#N/A"}},{"$f":"'Standing Data'!$F$15","v":0},{"$f":"'Standing Data'!$F$9","v":0},"Fin.Return","H481",{"$f":"Fin.Return!H495","v":0}]
[{"$f":"'Standing Data'!$D$15","v":{"$error":"#N/A"}},{"$f":"'Standing Data'!$F$15","v":0},{"$f":"'Standing Data'!$F$9","v":0},"Fin.Return","H482",{"$f":"Fin.Return!H496","v":0}]
[{"$f":"'Standing Data'!$D$15","v":{"$error":"#N/A"}},{"$f":"'Standing Data'!$F$15","v":0},{"$f":"'Standing Data'!$F$9","v":0},"Fin.Return","H483",{"$f":"Fin.Return!H497","v":0}]
[{"$f":"'Standing Data'!$D$15","v":{"$error":"#N/A"}},{"$f":"'Standing Data'!$F$15","v":0},{"$f":"'Standing Data'!$F$9","v":0},"Fin.Return","H484",{"$f":"Fin.Return!H498","v":0}]
[{"$f":"'Standing Data'!$D$15","v":{"$error":"#N/A"}},{"$f":"'Standing Data'!$F$15","v":0},{"$f":"'Standing Data'!$F$9","v":0},"Fin.Return","H486",{"$f":"Fin.Return!H500","v":0}]
[{"$f":"'Standing Data'!$D$15","v":{"$error":"#N/A"}},{"$f":"'Standing Data'!$F$15","v":0},{"$f":"'Standing Data'!$F$9","v":0},"Fin.Return","H489",{"$f":"Fin.Return!H503","v":0}]
[{"$f":"'Standing Data'!$D$15","v":{"$error":"#N/A"}},{"$f":"'Standing Data'!$F$15","v":0},{"$f":"'Standing Data'!$F$9","v":0},"Fin.Return","H490",{"$f":"Fin.Return!H504","v":0}]
[{"$f":"'Standing Data'!$D$15","v":{"$error":"#N/A"}},{"$f":"'Standing Data'!$F$15","v":0},{"$f":"'Standing Data'!$F$9","v":0},"Fin.Return","H491",{"$f":"Fin.Return!H505","v":0}]
[{"$f":"'Standing Data'!$D$15","v":{"$error":"#N/A"}},{"$f":"'Standing Data'!$F$15","v":0},{"$f":"'Standing Data'!$F$9","v":0},"Fin.Return","H493",{"$f":"Fin.Return!H507","v":0}]
[{"$f":"'Standing Data'!$D$15","v":{"$error":"#N/A"}},{"$f":"'Standing Data'!$F$15","v":0},{"$f":"'Standing Data'!$F$9","v":0},"Fin.Return","H496",{"$f":"Fin.Return!H510","v":0}]
[{"$f":"'Standing Data'!$D$15","v":{"$error":"#N/A"}},{"$f":"'Standing Data'!$F$15","v":0},{"$f":"'Standing Data'!$F$9","v":0},"Fin.Return","H499",{"$f":"Fin.Return!H513","v":0}]
[{"$f":"'Standing Data'!$D$15","v":{"$error":"#N/A"}},{"$f":"'Standing Data'!$F$15","v":0},{"$f":"'Standing Data'!$F$9","v":0},"Fin.Return","H503",{"$f":"Fin.Return!H517","v":0}]
[{"$f":"'Standing Data'!$D$15","v":{"$error":"#N/A"}},{"$f":"'Standing Data'!$F$15","v":0},{"$f":"'Standing Data'!$F$9","v":0},"Fin.Return","H504",{"$f":"Fin.Return!H518","v":0}]
[{"$f":"'Standing Data'!$D$15","v":{"$error":"#N/A"}},{"$f":"'Standing Data'!$F$15","v":0},{"$f":"'Standing Data'!$F$9","v":0},"Fin.Return","H505",{"$f":"Fin.Return!H519","v":0}]
[{"$f":"'Standing Data'!$D$15","v":{"$error":"#N/A"}},{"$f":"'Standing Data'!$F$15","v":0},{"$f":"'Standing Data'!$F$9","v":0},"Fin.Return","H508",{"$f":"Fin.Return!H522","v":0}]
[{"$f":"'Standing Data'!$D$15","v":{"$error":"#N/A"}},{"$f":"'Standing Data'!$F$15","v":0},{"$f":"'Standing Data'!$F$9","v":0},"Fin.Return","H509",{"$f":"Fin.Return!H523","v":0}]
[{"$f":"'Standing Data'!$D$15","v":{"$error":"#N/A"}},{"$f":"'Standing Data'!$F$15","v":0},{"$f":"'Standing Data'!$F$9","v":0},"Fin.Return","H511",{"$f":"Fin.Return!H525","v":0}]
[{"$f":"'Standing Data'!$D$15","v":{"$error":"#N/A"}},{"$f":"'Standing Data'!$F$15","v":0},{"$f":"'Standing Data'!$F$9","v":0},"Fin.Return","H514",{"$f":"Fin.Return!H528","v":0}]
[{"$f":"'Standing Data'!$D$15","v":{"$error":"#N/A"}},{"$f":"'Standing Data'!$F$15","v":0},{"$f":"'Standing Data'!$F$9","v":0},"Fin.Return","H515",{"$f":"Fin.Return!H529","v":0}]
[{"$f":"'Standing Data'!$D$15","v":{"$error":"#N/A"}},{"$f":"'Standing Data'!$F$15","v":0},{"$f":"'Standing Data'!$F$9","v":0},"Fin.Return","H517",{"$f":"Fin.Return!H531","v":0}]
[{"$f":"'Standing Data'!$D$15","v":{"$error":"#N/A"}},{"$f":"'Standing Data'!$F$15","v":0},{"$f":"'Standing Data'!$F$9","v":0},"Fin.Return","H519",{"$f":"Fin.Return!H533","v":0}]
[{"$f":"'Standing Data'!$D$15","v":{"$error":"#N/A"}},{"$f":"'Standing Data'!$F$15","v":0},{"$f":"'Standing Data'!$F$9","v":0},"Fin.Return","H525",{"$f":"Fin.Return!H539","v":0}]
[{"$f":"'Standing Data'!$D$15","v":{"$error":"#N/A"}},{"$f":"'Standing Data'!$F$15","v":0},{"$f":"'Standing Data'!$F$9","v":0},"Fin.Return","H526",{"$f":"Fin.Return!H540","v":0}]
[{"$f":"'Standing Data'!$D$15","v":{"$error":"#N/A"}},{"$f":"'Standing Data'!$F$15","v":0},{"$f":"'Standing Data'!$F$9","v":0},"Fin.Return","H527",{"$f":"Fin.Return!H541","v":0}]
[{"$f":"'Standing Data'!$D$15","v":{"$error":"#N/A"}},{"$f":"'Standing Data'!$F$15","v":0},{"$f":"'Standing Data'!$F$9","v":0},"Fin.Return","H528",{"$f":"Fin.Return!H542","v":0}]
[{"$f":"'Standing Data'!$D$15","v":{"$error":"#N/A"}},{"$f":"'Standing Data'!$F$15","v":0},{"$f":"'Standing Data'!$F$9","v":0},"Fin.Return","H529",{"$f":"Fin.Return!H543","v":0}]
[{"$f":"'Standing Data'!$D$15","v":{"$error":"#N/A"}},{"$f":"'Standing Data'!$F$15","v":0},{"$f":"'Standing Data'!$F$9","v":0},"Fin.Return","H530",{"$f":"Fin.Return!H544","v":0}]
[{"$f":"'Standing Data'!$D$15","v":{"$error":"#N/A"}},{"$f":"'Standing Data'!$F$15","v":0},{"$f":"'Standing Data'!$F$9","v":0},"Fin.Return","H531",{"$f":"Fin.Return!H545","v":0}]
[{"$f":"'Standing Data'!$D$15","v":{"$error":"#N/A"}},{"$f":"'Standing Data'!$F$15","v":0},{"$f":"'Standing Data'!$F$9","v":0},"Fin.Return","H533",{"$f":"Fin.Return!H547","v":0}]
[{"$f":"'Standing Data'!$D$15","v":{"$error":"#N/A"}},{"$f":"'Standing Data'!$F$15","v":0},{"$f":"'Standing Data'!$F$9","v":0},"Fin.Return","H536",{"$f":"Fin.Return!H550","v":0}]
[{"$f":"'Standing Data'!$D$15","v":{"$error":"#N/A"}},{"$f":"'Standing Data'!$F$15","v":0},{"$f":"'Standing Data'!$F$9","v":0},"Fin.Return","H537",{"$f":"Fin.Return!H551","v":0}]
[{"$f":"'Standing Data'!$D$15","v":{"$error":"#N/A"}},{"$f":"'Standing Data'!$F$15","v":0},{"$f":"'Standing Data'!$F$9","v":0},"Fin.Return","H538",{"$f":"Fin.Return!H552","v":0}]
[{"$f":"'Standing Data'!$D$15","v":{"$error":"#N/A"}},{"$f":"'Standing Data'!$F$15","v":0},{"$f":"'Standing Data'!$F$9","v":0},"Fin.Return","H539",{"$f":"Fin.Return!H553","v":0}]
[{"$f":"'Standing Data'!$D$15","v":{"$error":"#N/A"}},{"$f":"'Standing Data'!$F$15","v":0},{"$f":"'Standing Data'!$F$9","v":0},"Fin.Return","H540",{"$f":"Fin.Return!H554","v":0}]
[{"$f":"'Standing Data'!$D$15","v":{"$error":"#N/A"}},{"$f":"'Standing Data'!$F$15","v":0},{"$f":"'Standing Data'!$F$9","v":0},"Fin.Return","H542",{"$f":"Fin.Return!H556","v":0}]
[{"$f":"'Standing Data'!$D$15","v":{"$error":"#N/A"}},{"$f":"'Standing Data'!$F$15","v":0},{"$f":"'Standing Data'!$F$9","v":0},"Fin.Return","H545",{"$f":"Fin.Return!H559","v":0}]
[{"$f":"'Standing Data'!$D$15","v":{"$error":"#N/A"}},{"$f":"'Standing Data'!$F$15","v":0},{"$f":"'Standing Data'!$F$9","v":0},"Fin.Return","H546",{"$f":"Fin.Return!H560","v":0}]
[{"$f":"'Standing Data'!$D$15","v":{"$error":"#N/A"}},{"$f":"'Standing Data'!$F$15","v":0},{"$f":"'Standing Data'!$F$9","v":0},"Fin.Return","H547",{"$f":"Fin.Return!H561","v":0}]
[{"$f":"'Standing Data'!$D$15","v":{"$error":"#N/A"}},{"$f":"'Standing Data'!$F$15","v":0},{"$f":"'Standing Data'!$F$9","v":0},"Fin.Return","H549",{"$f":"Fin.Return!H563","v":0}]
[{"$f":"'Standing Data'!$D$15","v":{"$error":"#N/A"}},{"$f":"'Standing Data'!$F$15","v":0},{"$f":"'Standing Data'!$F$9","v":0},"Fin.Return","H552",{"$f":"Fin.Return!H566","v":0}]
[{"$f":"'Standing Data'!$D$15","v":{"$error":"#N/A"}},{"$f":"'Standing Data'!$F$15","v":0},{"$f":"'Standing Data'!$F$9","v":0},"Fin.Return","H555",{"$f":"Fin.Return!H569","v":0}]
[{"$f":"'Standing Data'!$D$15","v":{"$error":"#N/A"}},{"$f":"'Standing Data'!$F$15","v":0},{"$f":"'Standing Data'!$F$9","v":0},"Fin.Return","H558",{"$f":"Fin.Return!H572","v":0}]
[{"$f":"'Standing Data'!$D$15","v":{"$error":"#N/A"}},{"$f":"'Standing Data'!$F$15","v":0},{"$f":"'Standing Data'!$F$9","v":0},"Fin.Return","H559",{"$f":"Fin.Return!H573","v":0}]
[{"$f":"'Standing Data'!$D$15","v":{"$error":"#N/A"}},{"$f":"'Standing Data'!$F$15","v":0},{"$f":"'Standing Data'!$F$9","v":0},"Fin.Return","H565",{"$f":"Fin.Return!H579","v":0}]
[{"$f":"'Standing Data'!$D$15","v":{"$error":"#N/A"}},{"$f":"'Standing Data'!$F$15","v":0},{"$f":"'Standing Data'!$F$9","v":0},"Fin.Return","H566",{"$f":"Fin.Return!H580","v":0}]
[{"$f":"'Standing Data'!$D$15","v":{"$error":"#N/A"}},{"$f":"'Standing Data'!$F$15","v":0},{"$f":"'Standing Data'!$F$9","v":0},"Fin.Return","H567",{"$f":"Fin.Return!H581","v":0}]
[{"$f":"'Standing Data'!$D$15","v":{"$error":"#N/A"}},{"$f":"'Standing Data'!$F$15","v":0},{"$f":"'Standing Data'!$F$9","v":0},"Fin.Return","H568",{"$f":"Fin.Return!H582","v":0}]
[{"$f":"'Standing Data'!$D$15","v":{"$error":"#N/A"}},{"$f":"'Standing Data'!$F$15","v":0},{"$f":"'Standing Data'!$F$9","v":0},"Fin.Return","H569",{"$f":"Fin.Return!H583","v":0}]
[{"$f":"'Standing Data'!$D$15","v":{"$error":"#N/A"}},{"$f":"'Standing Data'!$F$15","v":0},{"$f":"'Standing Data'!$F$9","v":0},"Fin.Return","H570",{"$f":"Fin.Return!H584","v":0}]
[{"$f":"'Standing Data'!$D$15","v":{"$error":"#N/A"}},{"$f":"'Standing Data'!$F$15","v":0},{"$f":"'Standing Data'!$F$9","v":0},"Fin.Return","H571",{"$f":"Fin.Return!H585","v":0}]
[{"$f":"'Standing Data'!$D$15","v":{"$error":"#N/A"}},{"$f":"'Standing Data'!$F$15","v":0},{"$f":"'Standing Data'!$F$9","v":0},"Fin.Return","H573",{"$f":"Fin.Return!H587","v":0}]
[{"$f":"'Standing Data'!$D$15","v":{"$error":"#N/A"}},{"$f":"'Standing Data'!$F$15","v":0},{"$f":"'Standing Data'!$F$9","v":0},"Fin.Return","H575",{"$f":"Fin.Return!H589","v":0}]
[{"$f":"'Standing Data'!$D$15","v":{"$error":"#N/A"}},{"$f":"'Standing Data'!$F$15","v":0},{"$f":"'Standing Data'!$F$9","v":0},"Fin.Return","H630",{"$f":"Fin.Return!H644","v":0}]
[{"$f":"'Standing Data'!$D$15","v":{"$error":"#N/A"}},{"$f":"'Standing Data'!$F$15","v":0},{"$f":"'Standing Data'!$F$9","v":0},"Fin.Return","H631",{"$f":"Fin.Return!H645","v":0}]
[{"$f":"'Standing Data'!$D$15","v":{"$error":"#N/A"}},{"$f":"'Standing Data'!$F$15","v":0},{"$f":"'Standing Data'!$F$9","v":0},"Fin.Return","H632",{"$f":"Fin.Return!H646","v":0}]
[{"$f":"'Standing Data'!$D$15","v":{"$error":"#N/A"}},{"$f":"'Standing Data'!$F$15","v":0},{"$f":"'Standing Data'!$F$9","v":0},"Fin.Return","H633",{"$f":"Fin.Return!H647","v":0}]
[{"$f":"'Standing Data'!$D$15","v":{"$error":"#N/A"}},{"$f":"'Standing Data'!$F$15","v":0},{"$f":"'Standing Data'!$F$9","v":0},"Fin.Return","H634",{"$f":"Fin.Return!H648","v":0}]
[{"$f":"'Standing Data'!$D$15","v":{"$error":"#N/A"}},{"$f":"'Standing Data'!$F$15","v":0},{"$f":"'Standing Data'!$F$9","v":0},"Fin.Return","H635",{"$f":"Fin.Return!H649","v":0}]
[{"$f":"'Standing Data'!$D$15","v":{"$error":"#N/A"}},{"$f":"'Standing Data'!$F$15","v":0},{"$f":"'Standing Data'!$F$9","v":0},"Fin.Return","H636",{"$f":"Fin.Return!H650","v":0}]
[{"$f":"'Standing Data'!$D$15","v":{"$error":"#N/A"}},{"$f":"'Standing Data'!$F$15","v":0},{"$f":"'Standing Data'!$F$9","v":0},"Fin.Return","H638",{"$f":"Fin.Return!H652","v":0}]
[{"$f":"'Standing Data'!$D$15","v":{"$error":"#N/A"}},{"$f":"'Standing Data'!$F$15","v":0},{"$f":"'Standing Data'!$F$9","v":0},"Fin.Return","H640",{"$f":"Fin.Return!H654","v":0}]
[{"$f":"'Standing Data'!$D$15","v":{"$error":"#N/A"}},{"$f":"'Standing Data'!$F$15","v":0},{"$f":"'Standing Data'!$F$9","v":0},"Fin.Return","H745",{"$f":"Fin.Return!H759","v":0}]
[{"$f":"'Standing Data'!$D$15","v":{"$error":"#N/A"}},{"$f":"'Standing Data'!$F$15","v":0},{"$f":"'Standing Data'!$F$9","v":0},"Fin.Return","H746",{"$f":"Fin.Return!H760","v":0}]
[{"$f":"'Standing Data'!$D$15","v":{"$error":"#N/A"}},{"$f":"'Standing Data'!$F$15","v":0},{"$f":"'Standing Data'!$F$9","v":0},"Fin.Return","H747",{"$f":"Fin.Return!H761","v":0}]
[{"$f":"'Standing Data'!$D$15","v":{"$error":"#N/A"}},{"$f":"'Standing Data'!$F$15","v":0},{"$f":"'Standing Data'!$F$9","v":0},"Fin.Return","H748",{"$f":"Fin.Return!H762","v":0}]
[{"$f":"'Standing Data'!$D$15","v":{"$error":"#N/A"}},{"$f":"'Standing Data'!$F$15","v":0},{"$f":"'Standing Data'!$F$9","v":0},"Fin.Return","H750",{"$f":"Fin.Return!H764","v":0}]
[{"$f":"'Standing Data'!$D$15","v":{"$error":"#N/A"}},{"$f":"'Standing Data'!$F$15","v":0},{"$f":"'Standing Data'!$F$9","v":0},"Fin.Return","H755",{"$f":"Fin.Return!H769","v":0}]
[{"$f":"'Standing Data'!$D$15","v":{"$error":"#N/A"}},{"$f":"'Standing Data'!$F$15","v":0},{"$f":"'Standing Data'!$F$9","v":0},"Fin.Return","H756",{"$f":"Fin.Return!H770","v":0}]
[{"$f":"'Standing Data'!$D$15","v":{"$error":"#N/A"}},{"$f":"'Standing Data'!$F$15","v":0},{"$f":"'Standing Data'!$F$9","v":0},"Fin.Return","H757",{"$f":"Fin.Return!H771","v":0}]
[{"$f":"'Standing Data'!$D$15","v":{"$error":"#N/A"}},{"$f":"'Standing Data'!$F$15","v":0},{"$f":"'Standing Data'!$F$9","v":0},"Fin.Return","H759",{"$f":"Fin.Return!H773","v":0}]
[{"$f":"'Standing Data'!$D$15","v":{"$error":"#N/A"}},{"$f":"'Standing Data'!$F$15","v":0},{"$f":"'Standing Data'!$F$9","v":0},"Fin.Return","H767",{"$f":"Fin.Return!H781","v":0}]
[{"$f":"'Standing Data'!$D$15","v":{"$error":"#N/A"}},{"$f":"'Standing Data'!$F$15","v":0},{"$f":"'Standing Data'!$F$9","v":0},"Fin.Return","H768",{"$f":"Fin.Return!H782","v":0}]
[{"$f":"'Standing Data'!$D$15","v":{"$error":"#N/A"}},{"$f":"'Standing Data'!$F$15","v":0},{"$f":"'Standing Data'!$F$9","v":0},"Fin.Return","H770",{"$f":"Fin.Return!H784","v":0}]
[{"$f":"'Standing Data'!$D$15","v":{"$error":"#N/A"}},{"$f":"'Standing Data'!$F$15","v":0},{"$f":"'Standing Data'!$F$9","v":0},"Fin.Return","H771",{"$f":"Fin.Return!H785","v":0}]
[{"$f":"'Standing Data'!$D$15","v":{"$error":"#N/A"}},{"$f":"'Standing Data'!$F$15","v":0},{"$f":"'Standing Data'!$F$9","v":0},"Fin.Return","H772",{"$f":"Fin.Return!H786","v":0}]
[{"$f":"'Standing Data'!$D$15","v":{"$error":"#N/A"}},{"$f":"'Standing Data'!$F$15","v":0},{"$f":"'Standing Data'!$F$9","v":0},"Fin.Return","H773",{"$f":"Fin.Return!H787","v":0}]
[{"$f":"'Standing Data'!$D$15","v":{"$error":"#N/A"}},{"$f":"'Standing Data'!$F$15","v":0},{"$f":"'Standing Data'!$F$9","v":0},"Fin.Return","H774",{"$f":"Fin.Return!H788","v":0}]
[{"$f":"'Standing Data'!$D$15","v":{"$error":"#N/A"}},{"$f":"'Standing Data'!$F$15","v":0},{"$f":"'Standing Data'!$F$9","v":0},"Fin.Return","H775",{"$f":"Fin.Return!H789","v":0}]
[{"$f":"'Standing Data'!$D$15","v":{"$error":"#N/A"}},{"$f":"'Standing Data'!$F$15","v":0},{"$f":"'Standing Data'!$F$9","v":0},"Fin.Return","H776",{"$f":"Fin.Return!H790","v":0}]
[{"$f":"'Standing Data'!$D$15","v":{"$error":"#N/A"}},{"$f":"'Standing Data'!$F$15","v":0},{"$f":"'Standing Data'!$F$9","v":0},"Fin.Return","H777",{"$f":"Fin.Return!H791","v":0}]
[{"$f":"'Standing Data'!$D$15","v":{"$error":"#N/A"}},{"$f":"'Standing Data'!$F$15","v":0},{"$f":"'Standing Data'!$F$9","v":0},"Fin.Return","H779",{"$f":"Fin.Return!H793","v":0}]
[{"$f":"'Standing Data'!$D$15","v":{"$error":"#N/A"}},{"$f":"'Standing Data'!$F$15","v":0},{"$f":"'Standing Data'!$F$9","v":0},"Fin.Return","H780",{"$f":"Fin.Return!H794","v":0}]
[{"$f":"'Standing Data'!$D$15","v":{"$error":"#N/A"}},{"$f":"'Standing Data'!$F$15","v":0},{"$f":"'Standing Data'!$F$9","v":0},"Fin.Return","H782",{"$f":"Fin.Return!H796","v":0}]
[{"$f":"'Standing Data'!$D$15","v":{"$error":"#N/A"}},{"$f":"'Standing Data'!$F$15","v":0},{"$f":"'Standing Data'!$F$9","v":0},"Fin.Return","H783",{"$f":"Fin.Return!H797","v":0}]
[{"$f":"'Standing Data'!$D$15","v":{"$error":"#N/A"}},{"$f":"'Standing Data'!$F$15","v":0},{"$f":"'Standing Data'!$F$9","v":0},"Fin.Return","H785",{"$f":"Fin.Return!H799","v":0}]
[{"$f":"'Standing Data'!$D$15","v":{"$error":"#N/A"}},{"$f":"'Standing Data'!$F$15","v":0},{"$f":"'Standing Data'!$F$9","v":0},"Fin.Return","H787",{"$f":"Fin.Return!H801","v":0}]
[{"$f":"'Standing Data'!$D$15","v":{"$error":"#N/A"}},{"$f":"'Standing Data'!$F$15","v":0},{"$f":"'Standing Data'!$F$9","v":0},"Fin.Return","H789",{"$f":"Fin.Return!H803","v":0}]
[{"$f":"'Standing Data'!$D$15","v":{"$error":"#N/A"}},{"$f":"'Standing Data'!$F$15","v":0},{"$f":"'Standing Data'!$F$9","v":0},"Fin.Return","H790",{"$f":"Fin.Return!H804","v":0}]
[{"$f":"'Standing Data'!$D$15","v":{"$error":"#N/A"}},{"$f":"'Standing Data'!$F$15","v":0},{"$f":"'Standing Data'!$F$9","v":0},"Fin.Return","H791",{"$f":"Fin.Return!H805","v":0}]
[{"$f":"'Standing Data'!$D$15","v":{"$error":"#N/A"}},{"$f":"'Standing Data'!$F$15","v":0},{"$f":"'Standing Data'!$F$9","v":0},"Fin.Return","H792",{"$f":"Fin.Return!H806","v":0}]
[{"$f":"'Standing Data'!$D$15","v":{"$error":"#N/A"}},{"$f":"'Standing Data'!$F$15","v":0},{"$f":"'Standing Data'!$F$9","v":0},"Fin.Return","H793",{"$f":"Fin.Return!H807","v":0}]
[{"$f":"'Standing Data'!$D$15","v":{"$error":"#N/A"}},{"$f":"'Standing Data'!$F$15","v":0},{"$f":"'Standing Data'!$F$9","v":0},"Fin.Return","H794",{"$f":"Fin.Return!H808","v":0}]
[{"$f":"'Standing Data'!$D$15","v":{"$error":"#N/A"}},{"$f":"'Standing Data'!$F$15","v":0},{"$f":"'Standing Data'!$F$9","v":0},"Fin.Return","H795",{"$f":"Fin.Return!H809","v":0}]
[{"$f":"'Standing Data'!$D$15","v":{"$error":"#N/A"}},{"$f":"'Standing Data'!$F$15","v":0},{"$f":"'Standing Data'!$F$9","v":0},"Fin.Return","H796",{"$f":"Fin.Return!H810","v":0}]
[{"$f":"'Standing Data'!$D$15","v":{"$error":"#N/A"}},{"$f":"'Standing Data'!$F$15","v":0},{"$f":"'Standing Data'!$F$9","v":0},"Fin.Return","H798",{"$f":"Fin.Return!H812","v":0}]
[{"$f":"'Standing Data'!$D$15","v":{"$error":"#N/A"}},{"$f":"'Standing Data'!$F$15","v":0},{"$f":"'Standing Data'!$F$9","v":0},"Fin.Return","H799",{"$f":"Fin.Return!H813","v":0}]
[{"$f":"'Standing Data'!$D$15","v":{"$error":"#N/A"}},{"$f":"'Standing Data'!$F$15","v":0},{"$f":"'Standing Data'!$F$9","v":0},"Fin.Return","H800",{"$f":"Fin.Return!H814","v":0}]
[{"$f":"'Standing Data'!$D$15","v":{"$error":"#N/A"}},{"$f":"'Standing Data'!$F$15","v":0},{"$f":"'Standing Data'!$F$9","v":0},"Fin.Return","H802",{"$f":"Fin.Return!H816","v":0}]
[{"$f":"'Standing Data'!$D$15","v":{"$error":"#N/A"}},{"$f":"'Standing Data'!$F$15","v":0},{"$f":"'Standing Data'!$F$9","v":0},"Fin.Return","H803",{"$f":"Fin.Return!H817","v":0}]
[{"$f":"'Standing Data'!$D$15","v":{"$error":"#N/A"}},{"$f":"'Standing Data'!$F$15","v":0},{"$f":"'Standing Data'!$F$9","v":0},"Fin.Return","H805",{"$f":"Fin.Return!H819","v":0}]
[{"$f":"'Standing Data'!$D$15","v":{"$error":"#N/A"}},{"$f":"'Standing Data'!$F$15","v":0},{"$f":"'Standing Data'!$F$9","v":0},"Fin.Return","H807",{"$f":"Fin.Return!H821","v":0}]
[{"$f":"'Standing Data'!$D$15","v":{"$error":"#N/A"}},{"$f":"'Standing Data'!$F$15","v":0},{"$f":"'Standing Data'!$F$9","v":0},"Fin.Return","H809",{"$f":"Fin.Return!H823","v":0}]
[{"$f":"'Standing Data'!$D$15","v":{"$error":"#N/A"}},{"$f":"'Standing Data'!$F$15","v":0},{"$f":"'Standing Data'!$F$9","v":0},"Fin.Return","H811",{"$f":"Fin.Return!H825","v":0}]
[{"$f":"'Standing Data'!$D$15","v":{"$error":"#N/A"}},{"$f":"'Standing Data'!$F$15","v":0},{"$f":"'Standing Data'!$F$9","v":0},"Fin.Return","H816",{"$f":"Fin.Return!H939","v":0}]
[{"$f":"'Standing Data'!$D$15","v":{"$error":"#N/A"}},{"$f":"'Standing Data'!$F$15","v":0},{"$f":"'Standing Data'!$F$9","v":0},"Fin.Return","H817",{"$f":"Fin.Return!H940","v":0}]
[{"$f":"'Standing Data'!$D$15","v":{"$error":"#N/A"}},{"$f":"'Standing Data'!$F$15","v":0},{"$f":"'Standing Data'!$F$9","v":0},"Fin.Return","H818",{"$f":"Fin.Return!H941","v":0}]
[{"$f":"'Standing Data'!$D$15","v":{"$error":"#N/A"}},{"$f":"'Standing Data'!$F$15","v":0},{"$f":"'Standing Data'!$F$9","v":0},"Fin.Return","H819",{"$f":"Fin.Return!H942","v":0}]
[{"$f":"'Standing Data'!$D$15","v":{"$error":"#N/A"}},{"$f":"'Standing Data'!$F$15","v":0},{"$f":"'Standing Data'!$F$9","v":0},"Fin.Return","H820",{"$f":"Fin.Return!H943","v":0}]
[{"$f":"'Standing Data'!$D$15","v":{"$error":"#N/A"}},{"$f":"'Standing Data'!$F$15","v":0},{"$f":"'Standing Data'!$F$9","v":0},"Fin.Return","H821",{"$f":"Fin.Return!H944","v":0}]
[{"$f":"'Standing Data'!$D$15","v":{"$error":"#N/A"}},{"$f":"'Standing Data'!$F$15","v":0},{"$f":"'Standing Data'!$F$9","v":0},"Fin.Return","H823",{"$f":"Fin.Return!H946","v":0}]
[{"$f":"'Standing Data'!$D$15","v":{"$error":"#N/A"}},{"$f":"'Standing Data'!$F$15","v":0},{"$f":"'Standing Data'!$F$9","v":0},"Fin.Return","H839",{"$f":"Fin.Return!H962","v":0}]
[{"$f":"'Standing Data'!$D$15","v":{"$error":"#N/A"}},{"$f":"'Standing Data'!$F$15","v":0},{"$f":"'Standing Data'!$F$9","v":0},"Fin.Return","H840",{"$f":"Fin.Return!H964","v":0}]
[{"$f":"'Standing Data'!$D$15","v":{"$error":"#N/A"}},{"$f":"'Standing Data'!$F$15","v":0},{"$f":"'Standing Data'!$F$9","v":0},"Fin.Return","H845",{"$f":"Fin.Return!H970","v":0}]
[{"$f":"'Standing Data'!$D$15","v":{"$error":"#N/A"}},{"$f":"'Standing Data'!$F$15","v":0},{"$f":"'Standing Data'!$F$9","v":0},"Fin.Return","H850",{"$f":"Fin.Return!H975","v":0}]
[{"$f":"'Standing Data'!$D$15","v":{"$error":"#N/A"}},{"$f":"'Standing Data'!$F$15","v":0},{"$f":"'Standing Data'!$F$9","v":0},"Fin.Return","H851",{"$f":"Fin.Return!H976","v":0}]
[{"$f":"'Standing Data'!$D$15","v":{"$error":"#N/A"}},{"$f":"'Standing Data'!$F$15","v":0},{"$f":"'Standing Data'!$F$9","v":0},"Fin.Return","H852",{"$f":"Fin.Return!H977","v":0}]
[{"$f":"'Standing Data'!$D$15","v":{"$error":"#N/A"}},{"$f":"'Standing Data'!$F$15","v":0},{"$f":"'Standing Data'!$F$9","v":0},"Fin.Return","H854",{"$f":"Fin.Return!H979","v":0}]
[{"$f":"'Standing Data'!$D$15","v":{"$error":"#N/A"}},{"$f":"'Standing Data'!$F$15","v":0},{"$f":"'Standing Data'!$F$9","v":0},"Fin.Return","H857",{"$f":"Fin.Return!H982","v":0}]
[{"$f":"'Standing Data'!$D$15","v":{"$error":"#N/A"}},{"$f":"'Standing Data'!$F$15","v":0},{"$f":"'Standing Data'!$F$9","v":0},"Fin.Return","H858",{"$f":"Fin.Return!H983","v":0}]
[{"$f":"'Standing Data'!$D$15","v":{"$error":"#N/A"}},{"$f":"'Standing Data'!$F$15","v":0},{"$f":"'Standing Data'!$F$9","v":0},"Fin.Return","H860",{"$f":"Fin.Return!H985","v":0}]
[{"$f":"'Standing Data'!$D$15","v":{"$error":"#N/A"}},{"$f":"'Standing Data'!$F$15","v":0},{"$f":"'Standing Data'!$F$9","v":0},"Fin.Return","H862",{"$f":"Fin.Return!H987","v":0}]
[{"$f":"'Standing Data'!$D$15","v":{"$error":"#N/A"}},{"$f":"'Standing Data'!$F$15","v":0},{"$f":"'Standing Data'!$F$9","v":0},"Fin.Return","H865",{"$f":"Fin.Return!H990","v":0}]
[{"$f":"'Standing Data'!$D$15","v":{"$error":"#N/A"}},{"$f":"'Standing Data'!$F$15","v":0},{"$f":"'Standing Data'!$F$9","v":0},"Fin.Return","H866",{"$f":"Fin.Return!H991","v":0}]
[{"$f":"'Standing Data'!$D$15","v":{"$error":"#N/A"}},{"$f":"'Standing Data'!$F$15","v":0},{"$f":"'Standing Data'!$F$9","v":0},"Fin.Return","H867",{"$f":"Fin.Return!H992","v":0}]
[{"$f":"'Standing Data'!$D$15","v":{"$error":"#N/A"}},{"$f":"'Standing Data'!$F$15","v":0},{"$f":"'Standing Data'!$F$9","v":0},"Fin.Return","H868",{"$f":"Fin.Return!H993","v":0}]
[{"$f":"'Standing Data'!$D$15","v":{"$error":"#N/A"}},{"$f":"'Standing Data'!$F$15","v":0},{"$f":"'Standing Data'!$F$9","v":0},"Fin.Return","H869",{"$f":"Fin.Return!H994","v":0}]
[{"$f":"'Standing Data'!$D$15","v":{"$error":"#N/A"}},{"$f":"'Standing Data'!$F$15","v":0},{"$f":"'Standing Data'!$F$9","v":0},"Fin.Return","H870",{"$f":"Fin.Return!H995","v":0}]
[{"$f":"'Standing Data'!$D$15","v":{"$error":"#N/A"}},{"$f":"'Standing Data'!$F$15","v":0},{"$f":"'Standing Data'!$F$9","v":0},"Fin.Return","H871",{"$f":"Fin.Return!H996","v":0}]
[{"$f":"'Standing Data'!$D$15","v":{"$error":"#N/A"}},{"$f":"'Standing Data'!$F$15","v":0},{"$f":"'Standing Data'!$F$9","v":0},"Fin.Return","H872",{"$f":"Fin.Return!H997","v":0}]
[{"$f":"'Standing Data'!$D$15","v":{"$error":"#N/A"}},{"$f":"'Standing Data'!$F$15","v":0},{"$f":"'Standing Data'!$F$9","v":0},"Fin.Return","H873",{"$f":"Fin.Return!H998","v":0}]
[{"$f":"'Standing Data'!$D$15","v":{"$error":"#N/A"}},{"$f":"'Standing Data'!$F$15","v":0},{"$f":"'Standing Data'!$F$9","v":0},"Fin.Return","H874",{"$f":"Fin.Return!H999","v":0}]
[{"$f":"'Standing Data'!$D$15","v":{"$error":"#N/A"}},{"$f":"'Standing Data'!$F$15","v":0},{"$f":"'Standing Data'!$F$9","v":0},"Fin.Return","H876",{"$f":"Fin.Return!H1001","v":0}]
[{"$f":"'Standing Data'!$D$15","v":{"$error":"#N/A"}},{"$f":"'Standing Data'!$F$15","v":0},{"$f":"'Standing Data'!$F$9","v":0},"Fin.Return","H879",{"$f":"Fin.Return!H1004","v":0}]
[{"$f":"'Standing Data'!$D$15","v":{"$error":"#N/A"}},{"$f":"'Standing Data'!$F$15","v":0},{"$f":"'Standing Data'!$F$9","v":0},"Fin.Return","H880",{"$f":"Fin.Return!H1005","v":0}]
[{"$f":"'Standing Data'!$D$15","v":{"$error":"#N/A"}},{"$f":"'Standing Data'!$F$15","v":0},{"$f":"'Standing Data'!$F$9","v":0},"Fin.Return","H881",{"$f":"Fin.Return!H1006","v":0}]
[{"$f":"'Standing Data'!$D$15","v":{"$error":"#N/A"}},{"$f":"'Standing Data'!$F$15","v":0},{"$f":"'Standing Data'!$F$9","v":0},"Fin.Return","H882",{"$f":"Fin.Return!H1007","v":0}]
[{"$f":"'Standing Data'!$D$15","v":{"$error":"#N/A"}},{"$f":"'Standing Data'!$F$15","v":0},{"$f":"'Standing Data'!$F$9","v":0},"Fin.Return","H883",{"$f":"Fin.Return!H1008","v":0}]
[{"$f":"'Standing Data'!$D$15","v":{"$error":"#N/A"}},{"$f":"'Standing Data'!$F$15","v":0},{"$f":"'Standing Data'!$F$9","v":0},"Fin.Return","H884",{"$f":"Fin.Return!H1009","v":0}]
[{"$f":"'Standing Data'!$D$15","v":{"$error":"#N/A"}},{"$f":"'Standing Data'!$F$15","v":0},{"$f":"'Standing Data'!$F$9","v":0},"Fin.Return","H885",{"$f":"Fin.Return!H1010","v":0}]
[{"$f":"'Standing Data'!$D$15","v":{"$error":"#N/A"}},{"$f":"'Standing Data'!$F$15","v":0},{"$f":"'Standing Data'!$F$9","v":0},"Fin.Return","H887",{"$f":"Fin.Return!H1012","v":0}]
[{"$f":"'Standing Data'!$D$15","v":{"$error":"#N/A"}},{"$f":"'Standing Data'!$F$15","v":0},{"$f":"'Standing Data'!$F$9","v":0},"Fin.Return","H890",{"$f":"Fin.Return!H1015","v":0}]
[{"$f":"'Standing Data'!$D$15","v":{"$error":"#N/A"}},{"$f":"'Standing Data'!$F$15","v":0},{"$f":"'Standing Data'!$F$9","v":0},"Fin.Return","H891",{"$f":"Fin.Return!H1016","v":0}]
[{"$f":"'Standing Data'!$D$15","v":{"$error":"#N/A"}},{"$f":"'Standing Data'!$F$15","v":0},{"$f":"'Standing Data'!$F$9","v":0},"Fin.Return","H892",{"$f":"Fin.Return!H1017","v":0}]
[{"$f":"'Standing Data'!$D$15","v":{"$error":"#N/A"}},{"$f":"'Standing Data'!$F$15","v":0},{"$f":"'Standing Data'!$F$9","v":0},"Fin.Return","H893",{"$f":"Fin.Return!H1018","v":0}]
[{"$f":"'Standing Data'!$D$15","v":{"$error":"#N/A"}},{"$f":"'Standing Data'!$F$15","v":0},{"$f":"'Standing Data'!$F$9","v":0},"Fin.Return","H894",{"$f":"Fin.Return!H1019","v":0}]
[{"$f":"'Standing Data'!$D$15","v":{"$error":"#N/A"}},{"$f":"'Standing Data'!$F$15","v":0},{"$f":"'Standing Data'!$F$9","v":0},"Fin.Return","H895",{"$f":"Fin.Return!H1020","v":0}]
[{"$f":"'Standing Data'!$D$15","v":{"$error":"#N/A"}},{"$f":"'Standing Data'!$F$15","v":0},{"$f":"'Standing Data'!$F$9","v":0},"Fin.Return","H896",{"$f":"Fin.Return!H1021","v":0}]
[{"$f":"'Standing Data'!$D$15","v":{"$error":"#N/A"}},{"$f":"'Standing Data'!$F$15","v":0},{"$f":"'Standing Data'!$F$9","v":0},"Fin.Return","H897",{"$f":"Fin.Return!H1022","v":0}]
[{"$f":"'Standing Data'!$D$15","v":{"$error":"#N/A"}},{"$f":"'Standing Data'!$F$15","v":0},{"$f":"'Standing Data'!$F$9","v":0},"Fin.Return","H898",{"$f":"Fin.Return!H1023","v":0}]
[{"$f":"'Standing Data'!$D$15","v":{"$error":"#N/A"}},{"$f":"'Standing Data'!$F$15","v":0},{"$f":"'Standing Data'!$F$9","v":0},"Fin.Return","H899",{"$f":"Fin.Return!H1024","v":0}]
[{"$f":"'Standing Data'!$D$15","v":{"$error":"#N/A"}},{"$f":"'Standing Data'!$F$15","v":0},{"$f":"'Standing Data'!$F$9","v":0},"Fin.Return","H901",{"$f":"Fin.Return!H1026","v":0}]
[{"$f":"'Standing Data'!$D$15","v":{"$error":"#N/A"}},{"$f":"'Standing Data'!$F$15","v":0},{"$f":"'Standing Data'!$F$9","v":0},"Fin.Return","H908",{"$f":"Fin.Return!H1035","v":0}]
[{"$f":"'Standing Data'!$D$15","v":{"$error":"#N/A"}},{"$f":"'Standing Data'!$F$15","v":0},{"$f":"'Standing Data'!$F$9","v":0},"Fin.Return","H909",{"$f":"Fin.Return!H1036","v":0}]
[{"$f":"'Standing Data'!$D$15","v":{"$error":"#N/A"}},{"$f":"'Standing Data'!$F$15","v":0},{"$f":"'Standing Data'!$F$9","v":0},"Fin.Return","H910",{"$f":"Fin.Return!H1037","v":0}]
[{"$f":"'Standing Data'!$D$15","v":{"$error":"#N/A"}},{"$f":"'Standing Data'!$F$15","v":0},{"$f":"'Standing Data'!$F$9","v":0},"Fin.Return","H911",{"$f":"Fin.Return!H1038","v":0}]
[{"$f":"'Standing Data'!$D$15","v":{"$error":"#N/A"}},{"$f":"'Standing Data'!$F$15","v":0},{"$f":"'Standing Data'!$F$9","v":0},"Fin.Return","H912",{"$f":"Fin.Return!H1039","v":0}]
[{"$f":"'Standing Data'!$D$15","v":{"$error":"#N/A"}},{"$f":"'Standing Data'!$F$15","v":0},{"$f":"'Standing Data'!$F$9","v":0},"Fin.Return","H914",{"$f":"Fin.Return!H1041","v":0}]
[{"$f":"'Standing Data'!$D$15","v":{"$error":"#N/A"}},{"$f":"'Standing Data'!$F$15","v":0},{"$f":"'Standing Data'!$F$9","v":0},"Fin.Return","H913",{"$f":"Fin.Return!H1040","v":0}]
[{"$f":"'Standing Data'!$D$15","v":{"$error":"#N/A"}},{"$f":"'Standing Data'!$F$15","v":0},{"$f":"'Standing Data'!$F$9","v":0},"Fin.Return","H916",{"$f":"Fin.Return!H1043","v":0}]
[{"$f":"'Standing Data'!$D$15","v":{"$error":"#N/A"}},{"$f":"'Standing Data'!$F$15","v":0},{"$f":"'Standing Data'!$F$9","v":0},"Fin.Return","H917",{"$f":"Fin.Return!H1044","v":0}]
[{"$f":"'Standing Data'!$D$15","v":{"$error":"#N/A"}},{"$f":"'Standing Data'!$F$15","v":0},{"$f":"'Standing Data'!$F$9","v":0},"Fin.Return","H918",{"$f":"Fin.Return!H1045","v":0}]
[{"$f":"'Standing Data'!$D$15","v":{"$error":"#N/A"}},{"$f":"'Standing Data'!$F$15","v":0},{"$f":"'Standing Data'!$F$9","v":0},"Fin.Return","H919",{"$f":"Fin.Return!H1046","v":0}]
[{"$f":"'Standing Data'!$D$15","v":{"$error":"#N/A"}},{"$f":"'Standing Data'!$F$15","v":0},{"$f":"'Standing Data'!$F$9","v":0},"Fin.Return","H920",{"$f":"Fin.Return!H1047","v":0}]
[{"$f":"'Standing Data'!$D$15","v":{"$error":"#N/A"}},{"$f":"'Standing Data'!$F$15","v":0},{"$f":"'Standing Data'!$F$9","v":0},"Fin.Return","H922",{"$f":"Fin.Return!H1049","v":0}]
[{"$f":"'Standing Data'!$D$15","v":{"$error":"#N/A"}},{"$f":"'Standing Data'!$F$15","v":0},{"$f":"'Standing Data'!$F$9","v":0},"Fin.Return","H924",{"$f":"Fin.Return!H1051","v":0}]
[{"$f":"'Standing Data'!$D$15","v":{"$error":"#N/A"}},{"$f":"'Standing Data'!$F$15","v":0},{"$f":"'Standing Data'!$F$9","v":0},"Fin.Return","H925",{"$f":"Fin.Return!H1052","v":0}]
[{"$f":"'Standing Data'!$D$15","v":{"$error":"#N/A"}},{"$f":"'Standing Data'!$F$15","v":0},{"$f":"'Standing Data'!$F$9","v":0},"Fin.Return","H926",{"$f":"Fin.Return!H1053","v":0}]
[{"$f":"'Standing Data'!$D$15","v":{"$error":"#N/A"}},{"$f":"'Standing Data'!$F$15","v":0},{"$f":"'Standing Data'!$F$9","v":0},"Fin.Return","H927",{"$f":"Fin.Return!H1054","v":0}]
[{"$f":"'Standing Data'!$D$15","v":{"$error":"#N/A"}},{"$f":"'Standing Data'!$F$15","v":0},{"$f":"'Standing Data'!$F$9","v":0},"Fin.Return","H928",{"$f":"Fin.Return!H1055","v":0}]
[{"$f":"'Standing Data'!$D$15","v":{"$error":"#N/A"}},{"$f":"'Standing Data'!$F$15","v":0},{"$f":"'Standing Data'!$F$9","v":0},"Fin.Return","H929",{"$f":"Fin.Return!H1056","v":0}]
[{"$f":"'Standing Data'!$D$15","v":{"$error":"#N/A"}},{"$f":"'Standing Data'!$F$15","v":0},{"$f":"'Standing Data'!$F$9","v":0},"Fin.Return","H930",{"$f":"Fin.Return!H1057","v":0}]
[{"$f":"'Standing Data'!$D$15","v":{"$error":"#N/A"}},{"$f":"'Standing Data'!$F$15","v":0},{"$f":"'Standing Data'!$F$9","v":0},"Fin.Return","H931",{"$f":"Fin.Return!H1058","v":0}]
[{"$f":"'Standing Data'!$D$15","v":{"$error":"#N/A"}},{"$f":"'Standing Data'!$F$15","v":0},{"$f":"'Standing Data'!$F$9","v":0},"Fin.Return","H933",{"$f":"Fin.Return!H1060","v":0}]
[{"$f":"'Standing Data'!$D$15","v":{"$error":"#N/A"}},{"$f":"'Standing Data'!$F$15","v":0},{"$f":"'Standing Data'!$F$9","v":0},"Fin.Return","H934",{"$f":"Fin.Return!H1061","v":0}]
[{"$f":"'Standing Data'!$D$15","v":{"$error":"#N/A"}},{"$f":"'Standing Data'!$F$15","v":0},{"$f":"'Standing Data'!$F$9","v":0},"Fin.Return","H935",{"$f":"Fin.Return!H1062","v":0}]
[{"$f":"'Standing Data'!$D$15","v":{"$error":"#N/A"}},{"$f":"'Standing Data'!$F$15","v":0},{"$f":"'Standing Data'!$F$9","v":0},"Fin.Return","H936",{"$f":"Fin.Return!H1063","v":0}]
[{"$f":"'Standing Data'!$D$15","v":{"$error":"#N/A"}},{"$f":"'Standing Data'!$F$15","v":0},{"$f":"'Standing Data'!$F$9","v":0},"Fin.Return","H938",{"$f":"Fin.Return!H1065","v":0}]
[{"$f":"'Standing Data'!$D$15","v":{"$error":"#N/A"}},{"$f":"'Standing Data'!$F$15","v":0},{"$f":"'Standing Data'!$F$9","v":0},"Fin.Return","H940",{"$f":"Fin.Return!H1067","v":0}]
[{"$f":"'Standing Data'!$D$15","v":{"$error":"#N/A"}},{"$f":"'Standing Data'!$F$15","v":0},{"$f":"'Standing Data'!$F$9","v":0},"Fin.Return","H942",{"$f":"Fin.Return!H1069","v":0}]
[{"$f":"'Standing Data'!$D$15","v":{"$error":"#N/A"}},{"$f":"'Standing Data'!$F$15","v":0},{"$f":"'Standing Data'!$F$9","v":0},"Fin.Return","H957",{"$f":"Fin.Return!H1084","v":0}]
[{"$f":"'Standing Data'!$D$15","v":{"$error":"#N/A"}},{"$f":"'Standing Data'!$F$15","v":0},{"$f":"'Standing Data'!$F$9","v":0},"Fin.Return","H958",{"$f":"Fin.Return!H1085","v":0}]
[{"$f":"'Standing Data'!$D$15","v":{"$error":"#N/A"}},{"$f":"'Standing Data'!$F$15","v":0},{"$f":"'Standing Data'!$F$9","v":0},"Fin.Return","H959",{"$f":"Fin.Return!H1086","v":0}]
[{"$f":"'Standing Data'!$D$15","v":{"$error":"#N/A"}},{"$f":"'Standing Data'!$F$15","v":0},{"$f":"'Standing Data'!$F$9","v":0},"Fin.Return","H961",{"$f":"Fin.Return!H1088","v":0}]
[{"$f":"'Standing Data'!$D$15","v":{"$error":"#N/A"}},{"$f":"'Standing Data'!$F$15","v":0},{"$f":"'Standing Data'!$F$9","v":0},"Fin.Return","H969",{"$f":"Fin.Return!H1096","v":0}]
[{"$f":"'Standing Data'!$D$15","v":{"$error":"#N/A"}},{"$f":"'Standing Data'!$F$15","v":0},{"$f":"'Standing Data'!$F$9","v":0},"Fin.Return","H970",{"$f":"Fin.Return!H1097","v":0}]
[{"$f":"'Standing Data'!$D$15","v":{"$error":"#N/A"}},{"$f":"'Standing Data'!$F$15","v":0},{"$f":"'Standing Data'!$F$9","v":0},"Fin.Return","H971",{"$f":"Fin.Return!H1098","v":0}]
[{"$f":"'Standing Data'!$D$15","v":{"$error":"#N/A"}},{"$f":"'Standing Data'!$F$15","v":0},{"$f":"'Standing Data'!$F$9","v":0},"Fin.Return","H973",{"$f":"Fin.Return!H1100","v":0}]
[{"$f":"'Standing Data'!$D$15","v":{"$error":"#N/A"}},{"$f":"'Standing Data'!$F$15","v":0},{"$f":"'Standing Data'!$F$9","v":0},"Fin.Return","H974",{"$f":"Fin.Return!H1101","v":0}]
[{"$f":"'Standing Data'!$D$15","v":{"$error":"#N/A"}},{"$f":"'Standing Data'!$F$15","v":0},{"$f":"'Standing Data'!$F$9","v":0},"Fin.Return","H976",{"$f":"Fin.Return!H1103","v":0}]
[{"$f":"'Standing Data'!$D$15","v":{"$error":"#N/A"}},{"$f":"'Standing Data'!$F$15","v":0},{"$f":"'Standing Data'!$F$9","v":0},"Fin.Return","H986",{"$f":"Fin.Return!H1113","v":0}]
[{"$f":"'Standing Data'!$D$15","v":{"$error":"#N/A"}},{"$f":"'Standing Data'!$F$15","v":0},{"$f":"'Standing Data'!$F$9","v":0},"Fin.Return","H987",{"$f":"Fin.Return!H1114","v":0}]
[{"$f":"'Standing Data'!$D$15","v":{"$error":"#N/A"}},{"$f":"'Standing Data'!$F$15","v":0},{"$f":"'Standing Data'!$F$9","v":0},"Fin.Return","H988",{"$f":"Fin.Return!H1115","v":0}]
[{"$f":"'Standing Data'!$D$15","v":{"$error":"#N/A"}},{"$f":"'Standing Data'!$F$15","v":0},{"$f":"'Standing Data'!$F$9","v":0},"Fin.Return","H990",{"$f":"Fin.Return!H1117","v":0}]
[{"$f":"'Standing Data'!$D$15","v":{"$error":"#N/A"}},{"$f":"'Standing Data'!$F$15","v":0},{"$f":"'Standing Data'!$F$9","v":0},"Fin.Return","H991",{"$f":"Fin.Return!H1118","v":0}]
[{"$f":"'Standing Data'!$D$15","v":{"$error":"#N/A"}},{"$f":"'Standing Data'!$F$15","v":0},{"$f":"'Standing Data'!$F$9","v":0},"Fin.Return","H992",{"$f":"Fin.Return!H1119","v":0}]
[{"$f":"'Standing Data'!$D$15","v":{"$error":"#N/A"}},{"$f":"'Standing Data'!$F$15","v":0},{"$f":"'Standing Data'!$F$9","v":0},"Fin.Return","H994",{"$f":"Fin.Return!H1121","v":0}]
[{"$f":"'Standing Data'!$D$15","v":{"$error":"#N/A"}},{"$f":"'Standing Data'!$F$15","v":0},{"$f":"'Standing Data'!$F$9","v":0},"Fin.Return","H995",{"$f":"Fin.Return!H1122","v":0}]
[{"$f":"'Standing Data'!$D$15","v":{"$error":"#N/A"}},{"$f":"'Standing Data'!$F$15","v":0},{"$f":"'Standing Data'!$F$9","v":0},"Fin.Return","H996",{"$f":"Fin.Return!H1123","v":0}]
[{"$f":"'Standing Data'!$D$15","v":{"$error":"#N/A"}},{"$f":"'Standing Data'!$F$15","v":0},{"$f":"'Standing Data'!$F$9","v":0},"Fin.Return","H998",{"$f":"Fin.Return!H1125","v":0}]
[{"$f":"'Standing Data'!$D$15","v":{"$error":"#N/A"}},{"$f":"'Standing Data'!$F$15","v":0},{"$f":"'Standing Data'!$F$9","v":0},"Fin.Return","H999",{"$f":"Fin.Return!H1126","v":0}]
[{"$f":"'Standing Data'!$D$15","v":{"$error":"#N/A"}},{"$f":"'Standing Data'!$F$15","v":0},{"$f":"'Standing Data'!$F$9","v":0},"Fin.Return","H1001",{"$f":"Fin.Return!H1128","v":0}]
[{"$f":"'Standing Data'!$D$15","v":{"$error":"#N/A"}},{"$f":"'Standing Data'!$F$15","v":0},{"$f":"'Standing Data'!$F$9","v":0},"Fin.Return","H1009",{"$f":"Fin.Return!H1136","v":0}]
[{"$f":"'Standing Data'!$D$15","v":{"$error":"#N/A"}},{"$f":"'Standing Data'!$F$15","v":0},{"$f":"'Standing Data'!$F$9","v":0},"Fin.Return","H1010",{"$f":"Fin.Return!H1137","v":0}]
[{"$f":"'Standing Data'!$D$15","v":{"$error":"#N/A"}},{"$f":"'Standing Data'!$F$15","v":0},{"$f":"'Standing Data'!$F$9","v":0},"Fin.Return","H1011",{"$f":"Fin.Return!H1138","v":0}]
[{"$f":"'Standing Data'!$D$15","v":{"$error":"#N/A"}},{"$f":"'Standing Data'!$F$15","v":0},{"$f":"'Standing Data'!$F$9","v":0},"Fin.Return","H1013",{"$f":"Fin.Return!H1140","v":0}]
[{"$f":"'Standing Data'!$D$15","v":{"$error":"#N/A"}},{"$f":"'Standing Data'!$F$15","v":0},{"$f":"'Standing Data'!$F$9","v":0},"Fin.Return","H1014",{"$f":"Fin.Return!H1141","v":0}]
[{"$f":"'Standing Data'!$D$15","v":{"$error":"#N/A"}},{"$f":"'Standing Data'!$F$15","v":0},{"$f":"'Standing Data'!$F$9","v":0},"Fin.Return","H1015",{"$f":"Fin.Return!H1142","v":0}]
[{"$f":"'Standing Data'!$D$15","v":{"$error":"#N/A"}},{"$f":"'Standing Data'!$F$15","v":0},{"$f":"'Standing Data'!$F$9","v":0},"Fin.Return","H1017",{"$f":"Fin.Return!H1144","v":0}]
[{"$f":"'Standing Data'!$D$15","v":{"$error":"#N/A"}},{"$f":"'Standing Data'!$F$15","v":0},{"$f":"'Standing Data'!$F$9","v":0},"Fin.Return","H1018",{"$f":"Fin.Return!H1145","v":0}]
[{"$f":"'Standing Data'!$D$15","v":{"$error":"#N/A"}},{"$f":"'Standing Data'!$F$15","v":0},{"$f":"'Standing Data'!$F$9","v":0},"Fin.Return","H1019",{"$f":"Fin.Return!H1146","v":0}]
[{"$f":"'Standing Data'!$D$15","v":{"$error":"#N/A"}},{"$f":"'Standing Data'!$F$15","v":0},{"$f":"'Standing Data'!$F$9","v":0},"Fin.Return","H1021",{"$f":"Fin.Return!H1148","v":0}]
[{"$f":"'Standing Data'!$D$15","v":{"$error":"#N/A"}},{"$f":"'Standing Data'!$F$15","v":0},{"$f":"'Standing Data'!$F$9","v":0},"Fin.Return","H1022",{"$f":"Fin.Return!H1149","v":0}]
[{"$f":"'Standing Data'!$D$15","v":{"$error":"#N/A"}},{"$f":"'Standing Data'!$F$15","v":0},{"$f":"'Standing Data'!$F$9","v":0},"Fin.Return","H1024",{"$f":"Fin.Return!H1151","v":0}]
[{"$f":"'Standing Data'!$D$15","v":{"$error":"#N/A"}},{"$f":"'Standing Data'!$F$15","v":0},{"$f":"'Standing Data'!$F$9","v":0},"Fin.Return","H1030",{"$f":"Fin.Return!H1157","v":0}]
[{"$f":"'Standing Data'!$D$15","v":{"$error":"#N/A"}},{"$f":"'Standing Data'!$F$15","v":0},{"$f":"'Standing Data'!$F$9","v":0},"Fin.Return","H1031",{"$f":"Fin.Return!H1158","v":0}]
[{"$f":"'Standing Data'!$D$15","v":{"$error":"#N/A"}},{"$f":"'Standing Data'!$F$15","v":0},{"$f":"'Standing Data'!$F$9","v":0},"Fin.Return","H1032",{"$f":"Fin.Return!H1159","v":0}]
[{"$f":"'Standing Data'!$D$15","v":{"$error":"#N/A"}},{"$f":"'Standing Data'!$F$15","v":0},{"$f":"'Standing Data'!$F$9","v":0},"Fin.Return","H1034",{"$f":"Fin.Return!H1161","v":0}]
[{"$f":"'Standing Data'!$D$15","v":{"$error":"#N/A"}},{"$f":"'Standing Data'!$F$15","v":0},{"$f":"'Standing Data'!$F$9","v":0},"Fin.Return","H1042",{"$f":"Fin.Return!H1169","v":0}]
[{"$f":"'Standing Data'!$D$15","v":{"$error":"#N/A"}},{"$f":"'Standing Data'!$F$15","v":0},{"$f":"'Standing Data'!$F$9","v":0},"Fin.Return","H1043",{"$f":"Fin.Return!H1170","v":0}]
[{"$f":"'Standing Data'!$D$15","v":{"$error":"#N/A"}},{"$f":"'Standing Data'!$F$15","v":0},{"$f":"'Standing Data'!$F$9","v":0},"Fin.Return","H1044",{"$f":"Fin.Return!H1171","v":0}]
[{"$f":"'Standing Data'!$D$15","v":{"$error":"#N/A"}},{"$f":"'Standing Data'!$F$15","v":0},{"$f":"'Standing Data'!$F$9","v":0},"Fin.Return","H1046",{"$f":"Fin.Return!H1173","v":0}]
[{"$f":"'Standing Data'!$D$15","v":{"$error":"#N/A"}},{"$f":"'Standing Data'!$F$15","v":0},{"$f":"'Standing Data'!$F$9","v":0},"Fin.Return","H1047",{"$f":"Fin.Return!H1174","v":0}]
[{"$f":"'Standing Data'!$D$15","v":{"$error":"#N/A"}},{"$f":"'Standing Data'!$F$15","v":0},{"$f":"'Standing Data'!$F$9","v":0},"Fin.Return","H1049",{"$f":"Fin.Return!H1176","v":0}]
[{"$f":"'Standing Data'!$D$15","v":{"$error":"#N/A"}},{"$f":"'Standing Data'!$F$15","v":0},{"$f":"'Standing Data'!$F$9","v":0},"Fin.Return","H1059",{"$f":"Fin.Return!H1186","v":0}]
[{"$f":"'Standing Data'!$D$15","v":{"$error":"#N/A"}},{"$f":"'Standing Data'!$F$15","v":0},{"$f":"'Standing Data'!$F$9","v":0},"Fin.Return","H1060",{"$f":"Fin.Return!H1187","v":0}]
[{"$f":"'Standing Data'!$D$15","v":{"$error":"#N/A"}},{"$f":"'Standing Data'!$F$15","v":0},{"$f":"'Standing Data'!$F$9","v":0},"Fin.Return","H1061",{"$f":"Fin.Return!H1188","v":0}]
[{"$f":"'Standing Data'!$D$15","v":{"$error":"#N/A"}},{"$f":"'Standing Data'!$F$15","v":0},{"$f":"'Standing Data'!$F$9","v":0},"Fin.Return","H1063",{"$f":"Fin.Return!H1190","v":0}]
[{"$f":"'Standing Data'!$D$15","v":{"$error":"#N/A"}},{"$f":"'Standing Data'!$F$15","v":0},{"$f":"'Standing Data'!$F$9","v":0},"Fin.Return","H1064",{"$f":"Fin.Return!H1191","v":0}]
[{"$f":"'Standing Data'!$D$15","v":{"$error":"#N/A"}},{"$f":"'Standing Data'!$F$15","v":0},{"$f":"'Standing Data'!$F$9","v":0},"Fin.Return","H1065",{"$f":"Fin.Return!H1192","v":0}]
[{"$f":"'Standing Data'!$D$15","v":{"$error":"#N/A"}},{"$f":"'Standing Data'!$F$15","v":0},{"$f":"'Standing Data'!$F$9","v":0},"Fin.Return","H1067",{"$f":"Fin.Return!H1194","v":0}]
[{"$f":"'Standing Data'!$D$15","v":{"$error":"#N/A"}},{"$f":"'Standing Data'!$F$15","v":0},{"$f":"'Standing Data'!$F$9","v":0},"Fin.Return","H1068",{"$f":"Fin.Return!H1195","v":0}]
[{"$f":"'Standing Data'!$D$15","v":{"$error":"#N/A"}},{"$f":"'Standing Data'!$F$15","v":0},{"$f":"'Standing Data'!$F$9","v":0},"Fin.Return","H1069",{"$f":"Fin.Return!H1196","v":0}]
[{"$f":"'Standing Data'!$D$15","v":{"$error":"#N/A"}},{"$f":"'Standing Data'!$F$15","v":0},{"$f":"'Standing Data'!$F$9","v":0},"Fin.Return","H1071",{"$f":"Fin.Return!H1198","v":0}]
[{"$f":"'Standing Data'!$D$15","v":{"$error":"#N/A"}},{"$f":"'Standing Data'!$F$15","v":0},{"$f":"'Standing Data'!$F$9","v":0},"Fin.Return","H1072",{"$f":"Fin.Return!H1199","v":0}]
[{"$f":"'Standing Data'!$D$15","v":{"$error":"#N/A"}},{"$f":"'Standing Data'!$F$15","v":0},{"$f":"'Standing Data'!$F$9","v":0},"Fin.Return","H1074",{"$f":"Fin.Return!H1201","v":0}]
[{"$f":"'Standing Data'!$D$15","v":{"$error":"#N/A"}},{"$f":"'Standing Data'!$F$15","v":0},{"$f":"'Standing Data'!$F$9","v":0},"Fin.Return","H1082",{"$f":"Fin.Return!H1209","v":0}]
[{"$f":"'Standing Data'!$D$15","v":{"$error":"#N/A"}},{"$f":"'Standing Data'!$F$15","v":0},{"$f":"'Standing Data'!$F$9","v":0},"Fin.Return","H1083",{"$f":"Fin.Return!H1210","v":0}]
[{"$f":"'Standing Data'!$D$15","v":{"$error":"#N/A"}},{"$f":"'Standing Data'!$F$15","v":0},{"$f":"'Standing Data'!$F$9","v":0},"Fin.Return","H1084",{"$f":"Fin.Return!H1211","v":0}]
[{"$f":"'Standing Data'!$D$15","v":{"$error":"#N/A"}},{"$f":"'Standing Data'!$F$15","v":0},{"$f":"'Standing Data'!$F$9","v":0},"Fin.Return","H1086",{"$f":"Fin.Return!H1213","v":0}]
[{"$f":"'Standing Data'!$D$15","v":{"$error":"#N/A"}},{"$f":"'Standing Data'!$F$15","v":0},{"$f":"'Standing Data'!$F$9","v":0},"Fin.Return","H1087",{"$f":"Fin.Return!H1214","v":0}]
[{"$f":"'Standing Data'!$D$15","v":{"$error":"#N/A"}},{"$f":"'Standing Data'!$F$15","v":0},{"$f":"'Standing Data'!$F$9","v":0},"Fin.Return","H1088",{"$f":"Fin.Return!H1215","v":0}]
[{"$f":"'Standing Data'!$D$15","v":{"$error":"#N/A"}},{"$f":"'Standing Data'!$F$15","v":0},{"$f":"'Standing Data'!$F$9","v":0},"Fin.Return","H1090",{"$f":"Fin.Return!H1217","v":0}]
[{"$f":"'Standing Data'!$D$15","v":{"$error":"#N/A"}},{"$f":"'Standing Data'!$F$15","v":0},{"$f":"'Standing Data'!$F$9","v":0},"Fin.Return","H1091",{"$f":"Fin.Return!H1218","v":0}]
[{"$f":"'Standing Data'!$D$15","v":{"$error":"#N/A"}},{"$f":"'Standing Data'!$F$15","v":0},{"$f":"'Standing Data'!$F$9","v":0},"Fin.Return","H1092",{"$f":"Fin.Return!H1219","v":0}]
[{"$f":"'Standing Data'!$D$15","v":{"$error":"#N/A"}},{"$f":"'Standing Data'!$F$15","v":0},{"$f":"'Standing Data'!$F$9","v":0},"Fin.Return","H1094",{"$f":"Fin.Return!H1221","v":0}]
[{"$f":"'Standing Data'!$D$15","v":{"$error":"#N/A"}},{"$f":"'Standing Data'!$F$15","v":0},{"$f":"'Standing Data'!$F$9","v":0},"Fin.Return","H1095",{"$f":"Fin.Return!H1222","v":0}]
[{"$f":"'Standing Data'!$D$15","v":{"$error":"#N/A"}},{"$f":"'Standing Data'!$F$15","v":0},{"$f":"'Standing Data'!$F$9","v":0},"Fin.Return","H1097",{"$f":"Fin.Return!H1224","v":0}]
[{"$f":"'Standing Data'!$D$15","v":{"$error":"#N/A"}},{"$f":"'Standing Data'!$F$15","v":0},{"$f":"'Standing Data'!$F$9","v":0},"Fin.Return","H1102",{"$f":"Fin.Return!H1229","v":0}]
[{"$f":"'Standing Data'!$D$15","v":{"$error":"#N/A"}},{"$f":"'Standing Data'!$F$15","v":0},{"$f":"'Standing Data'!$F$9","v":0},"Fin.Return","H1103",{"$f":"Fin.Return!H1230","v":0}]
[{"$f":"'Standing Data'!$D$15","v":{"$error":"#N/A"}},{"$f":"'Standing Data'!$F$15","v":0},{"$f":"'Standing Data'!$F$9","v":0},"Fin.Return","H1104",{"$f":"Fin.Return!H1231","v":0}]
[{"$f":"'Standing Data'!$D$15","v":{"$error":"#N/A"}},{"$f":"'Standing Data'!$F$15","v":0},{"$f":"'Standing Data'!$F$9","v":0},"Fin.Return","H1106",{"$f":"Fin.Return!H1233","v":0}]
[{"$f":"'Standing Data'!$D$15","v":{"$error":"#N/A"}},{"$f":"'Standing Data'!$F$15","v":0},{"$f":"'Standing Data'!$F$9","v":0},"Fin.Return","H1111",{"$f":"Fin.Return!H1238","v":0}]
[{"$f":"'Standing Data'!$D$15","v":{"$error":"#N/A"}},{"$f":"'Standing Data'!$F$15","v":0},{"$f":"'Standing Data'!$F$9","v":0},"Fin.Return","H1112",{"$f":"Fin.Return!H1239","v":0}]
[{"$f":"'Standing Data'!$D$15","v":{"$error":"#N/A"}},{"$f":"'Standing Data'!$F$15","v":0},{"$f":"'Standing Data'!$F$9","v":0},"Fin.Return","H1113",{"$f":"Fin.Return!H1240","v":0}]
[{"$f":"'Standing Data'!$D$15","v":{"$error":"#N/A"}},{"$f":"'Standing Data'!$F$15","v":0},{"$f":"'Standing Data'!$F$9","v":0},"Fin.Return","H1115",{"$f":"Fin.Return!H1242","v":0}]
[{"$f":"'Standing Data'!$D$15","v":{"$error":"#N/A"}},{"$f":"'Standing Data'!$F$15","v":0},{"$f":"'Standing Data'!$F$9","v":0},"Fin.Return","H1121",{"$f":"Fin.Return!H1248","v":0}]
[{"$f":"'Standing Data'!$D$15","v":{"$error":"#N/A"}},{"$f":"'Standing Data'!$F$15","v":0},{"$f":"'Standing Data'!$F$9","v":0},"Fin.Return","H1122",{"$f":"Fin.Return!H1249","v":0}]
[{"$f":"'Standing Data'!$D$15","v":{"$error":"#N/A"}},{"$f":"'Standing Data'!$F$15","v":0},{"$f":"'Standing Data'!$F$9","v":0},"Fin.Return","H1123",{"$f":"Fin.Return!H1250","v":0}]
[{"$f":"'Standing Data'!$D$15","v":{"$error":"#N/A"}},{"$f":"'Standing Data'!$F$15","v":0},{"$f":"'Standing Data'!$F$9","v":0},"Fin.Return","H1125",{"$f":"Fin.Return!H1252","v":0}]
[{"$f":"'Standing Data'!$D$15","v":{"$error":"#N/A"}},{"$f":"'Standing Data'!$F$15","v":0},{"$f":"'Standing Data'!$F$9","v":0},"Fin.Return","H1131",{"$f":"Fin.Return!H1258","v":0}]
[{"$f":"'Standing Data'!$D$15","v":{"$error":"#N/A"}},{"$f":"'Standing Data'!$F$15","v":0},{"$f":"'Standing Data'!$F$9","v":0},"Fin.Return","H1132",{"$f":"Fin.Return!H1259","v":0}]
[{"$f":"'Standing Data'!$D$15","v":{"$error":"#N/A"}},{"$f":"'Standing Data'!$F$15","v":0},{"$f":"'Standing Data'!$F$9","v":0},"Fin.Return","H1133",{"$f":"Fin.Return!H1260","v":0}]
[{"$f":"'Standing Data'!$D$15","v":{"$error":"#N/A"}},{"$f":"'Standing Data'!$F$15","v":0},{"$f":"'Standing Data'!$F$9","v":0},"Fin.Return","H1135",{"$f":"Fin.Return!H1262","v":0}]
[{"$f":"'Standing Data'!$D$15","v":{"$error":"#N/A"}},{"$f":"'Standing Data'!$F$15","v":0},{"$f":"'Standing Data'!$F$9","v":0},"Fin.Return","H1140",{"$f":"Fin.Return!H1267","v":0}]
[{"$f":"'Standing Data'!$D$15","v":{"$error":"#N/A"}},{"$f":"'Standing Data'!$F$15","v":0},{"$f":"'Standing Data'!$F$9","v":0},"Fin.Return","H1141",{"$f":"Fin.Return!H1268","v":0}]
[{"$f":"'Standing Data'!$D$15","v":{"$error":"#N/A"}},{"$f":"'Standing Data'!$F$15","v":0},{"$f":"'Standing Data'!$F$9","v":0},"Fin.Return","H1142",{"$f":"Fin.Return!H1269","v":0}]
[{"$f":"'Standing Data'!$D$15","v":{"$error":"#N/A"}},{"$f":"'Standing Data'!$F$15","v":0},{"$f":"'Standing Data'!$F$9","v":0},"Fin.Return","H1144",{"$f":"Fin.Return!H1271","v":0}]
[{"$f":"'Standing Data'!$D$15","v":{"$error":"#N/A"}},{"$f":"'Standing Data'!$F$15","v":0},{"$f":"'Standing Data'!$F$9","v":0},"Fin.Return","H1149",{"$f":"Fin.Return!#REF!","v":{"$error":"#REF!"}}]
[{"$f":"'Standing Data'!$D$15","v":{"$error":"#N/A"}},{"$f":"'Standing Data'!$F$15","v":0},{"$f":"'Standing Data'!$F$9","v":0},"Fin.Return","H1150",{"$f":"Fin.Return!#REF!","v":{"$error":"#REF!"}}]
[{"$f":"'Standing Data'!$D$15","v":{"$error":"#N/A"}},{"$f":"'Standing Data'!$F$15","v":0},{"$f":"'Standing Data'!$F$9","v":0},"Fin.Return","H1151",{"$f":"Fin.Return!#REF!","v":{"$error":"#REF!"}}]
[{"$f":"'Standing Data'!$D$15","v":{"$error":"#N/A"}},{"$f":"'Standing Data'!$F$15","v":0},{"$f":"'Standing Data'!$F$9","v":0},"Fin.Return","H1153",{"$f":"Fin.Return!#REF!","v":{"$error":"#REF!"}}]
[{"$f":"'Standing Data'!$D$15","v":{"$error":"#N/A"}},{"$f":"'Standing Data'!$F$15","v":0},{"$f":"'Standing Data'!$F$9","v":0},"Fin.Return","H1159",{"$f":"Fin.Return!#REF!","v":{"$error":"#REF!"}}]
[{"$f":"'Standing Data'!$D$15","v":{"$error":"#N/A"}},{"$f":"'Standing Data'!$F$15","v":0},{"$f":"'Standing Data'!$F$9","v":0},"Fin.Return","H1160",{"$f":"Fin.Return!#REF!","v":{"$error":"#REF!"}}]
[{"$f":"'Standing Data'!$D$15","v":{"$error":"#N/A"}},{"$f":"'Standing Data'!$F$15","v":0},{"$f":"'Standing Data'!$F$9","v":0},"Fin.Return","H1161",{"$f":"Fin.Return!#REF!","v":{"$error":"#REF!"}}]
[{"$f":"'Standing Data'!$D$15","v":{"$error":"#N/A"}},{"$f":"'Standing Data'!$F$15","v":0},{"$f":"'Standing Data'!$F$9","v":0},"Fin.Return","H1162",{"$f":"Fin.Return!#REF!","v":{"$error":"#REF!"}}]
[{"$f":"'Standing Data'!$D$15","v":{"$error":"#N/A"}},{"$f":"'Standing Data'!$F$15","v":0},{"$f":"'Standing Data'!$F$9","v":0},"Fin.Return","H1163",{"$f":"Fin.Return!#REF!","v":{"$error":"#REF!"}}]
[{"$f":"'Standing Data'!$D$15","v":{"$error":"#N/A"}},{"$f":"'Standing Data'!$F$15","v":0},{"$f":"'Standing Data'!$F$9","v":0},"Fin.Return","H1164",{"$f":"Fin.Return!#REF!","v":{"$error":"#REF!"}}]
[{"$f":"'Standing Data'!$D$15","v":{"$error":"#N/A"}},{"$f":"'Standing Data'!$F$15","v":0},{"$f":"'Standing Data'!$F$9","v":0},"Fin.Return","H1165",{"$f":"Fin.Return!#REF!","v":{"$error":"#REF!"}}]
[{"$f":"'Standing Data'!$D$15","v":{"$error":"#N/A"}},{"$f":"'Standing Data'!$F$15","v":0},{"$f":"'Standing Data'!$F$9","v":0},"Fin.Return","H1166",{"$f":"Fin.Return!#REF!","v":{"$error":"#REF!"}}]
[{"$f":"'Standing Data'!$D$15","v":{"$error":"#N/A"}},{"$f":"'Standing Data'!$F$15","v":0},{"$f":"'Standing Data'!$F$9","v":0},"Fin.Return","H1167",{"$f":"Fin.Return!#REF!","v":{"$error":"#REF!"}}]
[{"$f":"'Standing Data'!$D$15","v":{"$error":"#N/A"}},{"$f":"'Standing Data'!$F$15","v":0},{"$f":"'Standing Data'!$F$9","v":0},"Fin.Return","H1168",{"$f":"Fin.Return!#REF!","v":{"$error":"#REF!"}}]
[{"$f":"'Standing Data'!$D$15","v":{"$error":"#N/A"}},{"$f":"'Standing Data'!$F$15","v":0},{"$f":"'Standing Data'!$F$9","v":0},"Fin.Return","H1169",{"$f":"Fin.Return!#REF!","v":{"$error":"#REF!"}}]
[{"$f":"'Standing Data'!$D$15","v":{"$error":"#N/A"}},{"$f":"'Standing Data'!$F$15","v":0},{"$f":"'Standing Data'!$F$9","v":0},"Fin.Return","H1170",{"$f":"Fin.Return!#REF!","v":{"$error":"#REF!"}}]
[{"$f":"'Standing Data'!$D$15","v":{"$error":"#N/A"}},{"$f":"'Standing Data'!$F$15","v":0},{"$f":"'Standing Data'!$F$9","v":0},"Fin.Return","H1171",{"$f":"Fin.Return!#REF!","v":{"$error":"#REF!"}}]
[{"$f":"'Standing Data'!$D$15","v":{"$error":"#N/A"}},{"$f":"'Standing Data'!$F$15","v":0},{"$f":"'Standing Data'!$F$9","v":0},"Fin.Return","H1172",{"$f":"Fin.Return!#REF!","v":{"$error":"#REF!"}}]
[{"$f":"'Standing Data'!$D$15","v":{"$error":"#N/A"}},{"$f":"'Standing Data'!$F$15","v":0},{"$f":"'Standing Data'!$F$9","v":0},"Fin.Return","H1180",{"$f":"Fin.Return!H1277","v":0}]
[{"$f":"'Standing Data'!$D$15","v":{"$error":"#N/A"}},{"$f":"'Standing Data'!$F$15","v":0},{"$f":"'Standing Data'!$F$9","v":0},"Fin.Return","H1181",{"$f":"Fin.Return!H1278","v":0}]
[{"$f":"'Standing Data'!$D$15","v":{"$error":"#N/A"}},{"$f":"'Standing Data'!$F$15","v":0},{"$f":"'Standing Data'!$F$9","v":0},"Fin.Return","H1182",{"$f":"Fin.Return!H1279","v":0}]
[{"$f":"'Standing Data'!$D$15","v":{"$error":"#N/A"}},{"$f":"'Standing Data'!$F$15","v":0},{"$f":"'Standing Data'!$F$9","v":0},"Fin.Return","H1183",{"$f":"Fin.Return!H1280","v":0}]
[{"$f":"'Standing Data'!$D$15","v":{"$error":"#N/A"}},{"$f":"'Standing Data'!$F$15","v":0},{"$f":"'Standing Data'!$F$9","v":0},"Fin.Return","H1184",{"$f":"Fin.Return!H1281","v":0}]
[{"$f":"'Standing Data'!$D$15","v":{"$error":"#N/A"}},{"$f":"'Standing Data'!$F$15","v":0},{"$f":"'Standing Data'!$F$9","v":0},"Fin.Return","H1185",{"$f":"Fin.Return!H1282","v":0}]
[{"$f":"'Standing Data'!$D$15","v":{"$error":"#N/A"}},{"$f":"'Standing Data'!$F$15","v":0},{"$f":"'Standing Data'!$F$9","v":0},"Fin.Return","H1186",{"$f":"Fin.Return!H1283","v":0}]
[{"$f":"'Standing Data'!$D$15","v":{"$error":"#N/A"}},{"$f":"'Standing Data'!$F$15","v":0},{"$f":"'Standing Data'!$F$9","v":0},"Fin.Return","H1187",{"$f":"Fin.Return!H1284","v":0}]
[{"$f":"'Standing Data'!$D$15","v":{"$error":"#N/A"}},{"$f":"'Standing Data'!$F$15","v":0},{"$f":"'Standing Data'!$F$9","v":0},"Fin.Return","H1188",{"$f":"Fin.Return!H1285","v":0}]
[{"$f":"'Standing Data'!$D$15","v":{"$error":"#N/A"}},{"$f":"'Standing Data'!$F$15","v":0},{"$f":"'Standing Data'!$F$9","v":0},"Fin.Return","H1189",{"$f":"Fin.Return!H1286","v":0}]
[{"$f":"'Standing Data'!$D$15","v":{"$error":"#N/A"}},{"$f":"'Standing Data'!$F$15","v":0},{"$f":"'Standing Data'!$F$9","v":0},"Fin.Return","H1190",{"$f":"Fin.Return!H1287","v":0}]
[{"$f":"'Standing Data'!$D$15","v":{"$error":"#N/A"}},{"$f":"'Standing Data'!$F$15","v":0},{"$f":"'Standing Data'!$F$9","v":0},"Fin.Return","H1191",{"$f":"Fin.Return!H1288","v":0}]
[{"$f":"'Standing Data'!$D$15","v":{"$error":"#N/A"}},{"$f":"'Standing Data'!$F$15","v":0},{"$f":"'Standing Data'!$F$9","v":0},"Fin.Return","H1192",{"$f":"Fin.Return!H1289","v":0}]
[{"$f":"'Standing Data'!$D$15","v":{"$error":"#N/A"}},{"$f":"'Standing Data'!$F$15","v":0},{"$f":"'Standing Data'!$F$9","v":0},"Fin.Return","H1193",{"$f":"Fin.Return!H1290","v":0}]
[{"$f":"'Standing Data'!$D$15","v":{"$error":"#N/A"}},{"$f":"'Standing Data'!$F$15","v":0},{"$f":"'Standing Data'!$F$9","v":0},"Fin.Return","H1194",{"$f":"Fin.Return!H1291","v":0}]
[{"$f":"'Standing Data'!$D$15","v":{"$error":"#N/A"}},{"$f":"'Standing Data'!$F$15","v":0},{"$f":"'Standing Data'!$F$9","v":0},"Fin.Return","H1195",{"$f":"Fin.Return!H1292","v":0}]
[{"$f":"'Standing Data'!$D$15","v":{"$error":"#N/A"}},{"$f":"'Standing Data'!$F$15","v":0},{"$f":"'Standing Data'!$F$9","v":0},"Fin.Return","H1196",{"$f":"Fin.Return!H1293","v":0}]
[{"$f":"'Standing Data'!$D$15","v":{"$error":"#N/A"}},{"$f":"'Standing Data'!$F$15","v":0},{"$f":"'Standing Data'!$F$9","v":0},"Fin.Return","H1197",{"$f":"Fin.Return!H1294","v":0}]
[{"$f":"'Standing Data'!$D$15","v":{"$error":"#N/A"}},{"$f":"'Standing Data'!$F$15","v":0},{"$f":"'Standing Data'!$F$9","v":0},"Fin.Return","H1198",{"$f":"Fin.Return!H1295","v":0}]
[{"$f":"'Standing Data'!$D$15","v":{"$error":"#N/A"}},{"$f":"'Standing Data'!$F$15","v":0},{"$f":"'Standing Data'!$F$9","v":0},"Fin.Return","H1199",{"$f":"Fin.Return!H1296","v":0}]
[{"$f":"'Standing Data'!$D$15","v":{"$error":"#N/A"}},{"$f":"'Standing Data'!$F$15","v":0},{"$f":"'Standing Data'!$F$9","v":0},"Fin.Return","H1200",{"$f":"Fin.Return!H1297","v":0}]
[{"$f":"'Standing Data'!$D$15","v":{"$error":"#N/A"}},{"$f":"'Standing Data'!$F$15","v":0},{"$f":"'Standing Data'!$F$9","v":0},"Fin.Return","H1201",{"$f":"Fin.Return!H1298","v":0}]
[{"$f":"'Standing Data'!$D$15","v":{"$error":"#N/A"}},{"$f":"'Standing Data'!$F$15","v":0},{"$f":"'Standing Data'!$F$9","v":0},"Fin.Return","H1202",{"$f":"Fin.Return!H1299","v":0}]
[{"$f":"'Standing Data'!$D$15","v":{"$error":"#N/A"}},{"$f":"'Standing Data'!$F$15","v":0},{"$f":"'Standing Data'!$F$9","v":0},"Fin.Return","H1203",{"$f":"Fin.Return!H1300","v":0}]
[{"$f":"'Standing Data'!$D$15","v":{"$error":"#N/A"}},{"$f":"'Standing Data'!$F$15","v":0},{"$f":"'Standing Data'!$F$9","v":0},"Fin.Return","H1204",{"$f":"Fin.Return!H1301","v":0}]
[{"$f":"'Standing Data'!$D$15","v":{"$error":"#N/A"}},{"$f":"'Standing Data'!$F$15","v":0},{"$f":"'Standing Data'!$F$9","v":0},"Fin.Return","H1205",{"$f":"Fin.Return!H1302","v":0}]
[{"$f":"'Standing Data'!$D$15","v":{"$error":"#N/A"}},{"$f":"'Standing Data'!$F$15","v":0},{"$f":"'Standing Data'!$F$9","v":0},"Fin.Return","H1206",{"$f":"Fin.Return!H1303","v":0}]
[{"$f":"'Standing Data'!$D$15","v":{"$error":"#N/A"}},{"$f":"'Standing Data'!$F$15","v":0},{"$f":"'Standing Data'!$F$9","v":0},"Fin.Return","H1207",{"$f":"Fin.Return!H1304","v":0}]
[{"$f":"'Standing Data'!$D$15","v":{"$error":"#N/A"}},{"$f":"'Standing Data'!$F$15","v":0},{"$f":"'Standing Data'!$F$9","v":0},"Fin.Return","H1208",{"$f":"Fin.Return!H1305","v":0}]
[{"$f":"'Standing Data'!$D$15","v":{"$error":"#N/A"}},{"$f":"'Standing Data'!$F$15","v":0},{"$f":"'Standing Data'!$F$9","v":0},"Fin.Return","H1209",{"$f":"Fin.Return!H1306","v":0}]
[{"$f":"'Standing Data'!$D$15","v":{"$error":"#N/A"}},{"$f":"'Standing Data'!$F$15","v":0},{"$f":"'Standing Data'!$F$9","v":0},"Fin.Return","H1210",{"$f":"Fin.Return!H1307","v":0}]
[{"$f":"'Standing Data'!$D$15","v":{"$error":"#N/A"}},{"$f":"'Standing Data'!$F$15","v":0},{"$f":"'Standing Data'!$F$9","v":0},"Fin.Return","H1211",{"$f":"Fin.Return!H1308","v":0}]
[{"$f":"'Standing Data'!$D$15","v":{"$error":"#N/A"}},{"$f":"'Standing Data'!$F$15","v":0},{"$f":"'Standing Data'!$F$9","v":0},"Fin.Return","H1212",{"$f":"Fin.Return!H1309","v":0}]
[{"$f":"'Standing Data'!$D$15","v":{"$error":"#N/A"}},{"$f":"'Standing Data'!$F$15","v":0},{"$f":"'Standing Data'!$F$9","v":0},"Fin.Return","H1213",{"$f":"Fin.Return!H1310","v":0}]
[{"$f":"'Standing Data'!$D$15","v":{"$error":"#N/A"}},{"$f":"'Standing Data'!$F$15","v":0},{"$f":"'Standing Data'!$F$9","v":0},"Fin.Return","H1214",{"$f":"Fin.Return!H1311","v":0}]
[{"$f":"'Standing Data'!$D$15","v":{"$error":"#N/A"}},{"$f":"'Standing Data'!$F$15","v":0},{"$f":"'Standing Data'!$F$9","v":0},"Fin.Return","H1215",{"$f":"Fin.Return!H1312","v":0}]
[{"$f":"'Standing Data'!$D$15","v":{"$error":"#N/A"}},{"$f":"'Standing Data'!$F$15","v":0},{"$f":"'Standing Data'!$F$9","v":0},"Fin.Return","H1216",{"$f":"Fin.Return!H1313","v":0}]
[{"$f":"'Standing Data'!$D$15","v":{"$error":"#N/A"}},{"$f":"'Standing Data'!$F$15","v":0},{"$f":"'Standing Data'!$F$9","v":0},"Fin.Return","H1217",{"$f":"Fin.Return!H1314","v":0}]
[{"$f":"'Standing Data'!$D$15","v":{"$error":"#N/A"}},{"$f":"'Standing Data'!$F$15","v":0},{"$f":"'Standing Data'!$F$9","v":0},"Fin.Return","H1218",{"$f":"Fin.Return!H1315","v":0}]
[{"$f":"'Standing Data'!$D$15","v":{"$error":"#N/A"}},{"$f":"'Standing Data'!$F$15","v":0},{"$f":"'Standing Data'!$F$9","v":0},"Fin.Return","H1219",{"$f":"Fin.Return!H1316","v":0}]
[{"$f":"'Standing Data'!$D$15","v":{"$error":"#N/A"}},{"$f":"'Standing Data'!$F$15","v":0},{"$f":"'Standing Data'!$F$9","v":0},"Fin.Return","H1220",{"$f":"Fin.Return!H1317","v":0}]
[{"$f":"'Standing Data'!$D$15","v":{"$error":"#N/A"}},{"$f":"'Standing Data'!$F$15","v":0},{"$f":"'Standing Data'!$F$9","v":0},"Fin.Return","H1221",{"$f":"Fin.Return!H1318","v":0}]
[{"$f":"'Standing Data'!$D$15","v":{"$error":"#N/A"}},{"$f":"'Standing Data'!$F$15","v":0},{"$f":"'Standing Data'!$F$9","v":0},"Fin.Return","H1222",{"$f":"Fin.Return!H1319","v":0}]
[{"$f":"'Standing Data'!$D$15","v":{"$error":"#N/A"}},{"$f":"'Standing Data'!$F$15","v":0},{"$f":"'Standing Data'!$F$9","v":0},"Fin.Return","H1223",{"$f":"Fin.Return!H1320","v":0}]
[{"$f":"'Standing Data'!$D$15","v":{"$error":"#N/A"}},{"$f":"'Standing Data'!$F$15","v":0},{"$f":"'Standing Data'!$F$9","v":0},"Fin.Return","H1224",{"$f":"Fin.Return!H1321","v":0}]
[{"$f":"'Standing Data'!$D$15","v":{"$error":"#N/A"}},{"$f":"'Standing Data'!$F$15","v":0},{"$f":"'Standing Data'!$F$9","v":0},"Fin.Return","H1225",{"$f":"Fin.Return!H1322","v":0}]
[{"$f":"'Standing Data'!$D$15","v":{"$error":"#N/A"}},{"$f":"'Standing Data'!$F$15","v":0},{"$f":"'Standing Data'!$F$9","v":0},"Fin.Return","H1226",{"$f":"Fin.Return!H1323","v":0}]
[{"$f":"'Standing Data'!$D$15","v":{"$error":"#N/A"}},{"$f":"'Standing Data'!$F$15","v":0},{"$f":"'Standing Data'!$F$9","v":0},"Fin.Return","H1227",{"$f":"Fin.Return!H1324","v":0}]
[{"$f":"'Standing Data'!$D$15","v":{"$error":"#N/A"}},{"$f":"'Standing Data'!$F$15","v":0},{"$f":"'Standing Data'!$F$9","v":0},"Fin.Return","H1228",{"$f":"Fin.Return!H1325","v":0}]
[{"$f":"'Standing Data'!$D$15","v":{"$error":"#N/A"}},{"$f":"'Standing Data'!$F$15","v":0},{"$f":"'Standing Data'!$F$9","v":0},"Fin.Return","H1229",{"$f":"Fin.Return!H1326","v":0}]
[{"$f":"'Standing Data'!$D$15","v":{"$error":"#N/A"}},{"$f":"'Standing Data'!$F$15","v":0},{"$f":"'Standing Data'!$F$9","v":0},"Fin.Return","H1230",{"$f":"Fin.Return!H1327","v":0}]
[{"$f":"'Standing Data'!$D$15","v":{"$error":"#N/A"}},{"$f":"'Standing Data'!$F$15","v":0},{"$f":"'Standing Data'!$F$9","v":0},"Fin.Return","H1257",{"$f":"Fin.Return!H1354","v":0}]
[{"$f":"'Standing Data'!$D$15","v":{"$error":"#N/A"}},{"$f":"'Standing Data'!$F$15","v":0},{"$f":"'Standing Data'!$F$9","v":0},"Fin.Return","H1258",{"$f":"Fin.Return!H1355","v":0}]
[{"$f":"'Standing Data'!$D$15","v":{"$error":"#N/A"}},{"$f":"'Standing Data'!$F$15","v":0},{"$f":"'Standing Data'!$F$9","v":0},"Fin.Return","H1259",{"$f":"Fin.Return!H1356","v":0}]
[{"$f":"'Standing Data'!$D$15","v":{"$error":"#N/A"}},{"$f":"'Standing Data'!$F$15","v":0},{"$f":"'Standing Data'!$F$9","v":0},"Fin.Return","H1260",{"$f":"Fin.Return!H1357","v":0}]
[{"$f":"'Standing Data'!$D$15","v":{"$error":"#N/A"}},{"$f":"'Standing Data'!$F$15","v":0},{"$f":"'Standing Data'!$F$9","v":0},"Fin.Return","H1261",{"$f":"Fin.Return!H1358","v":0}]
[{"$f":"'Standing Data'!$D$15","v":{"$error":"#N/A"}},{"$f":"'Standing Data'!$F$15","v":0},{"$f":"'Standing Data'!$F$9","v":0},"Fin.Return","H1262",{"$f":"Fin.Return!H1359","v":0}]
[{"$f":"'Standing Data'!$D$15","v":{"$error":"#N/A"}},{"$f":"'Standing Data'!$F$15","v":0},{"$f":"'Standing Data'!$F$9","v":0},"Fin.Return","H1263",{"$f":"Fin.Return!H1360","v":0}]
[{"$f":"'Standing Data'!$D$15","v":{"$error":"#N/A"}},{"$f":"'Standing Data'!$F$15","v":0},{"$f":"'Standing Data'!$F$9","v":0},"Fin.Return","H1264",{"$f":"Fin.Return!H1361","v":0}]
[{"$f":"'Standing Data'!$D$15","v":{"$error":"#N/A"}},{"$f":"'Standing Data'!$F$15","v":0},{"$f":"'Standing Data'!$F$9","v":0},"Fin.Return","H1265",{"$f":"Fin.Return!H1362","v":0}]
[{"$f":"'Standing Data'!$D$15","v":{"$error":"#N/A"}},{"$f":"'Standing Data'!$F$15","v":0},{"$f":"'Standing Data'!$F$9","v":0},"Fin.Return","H1266",{"$f":"Fin.Return!H1363","v":0}]
[{"$f":"'Standing Data'!$D$15","v":{"$error":"#N/A"}},{"$f":"'Standing Data'!$F$15","v":0},{"$f":"'Standing Data'!$F$9","v":0},"Fin.Return","H1267",{"$f":"Fin.Return!H1364","v":0}]
[{"$f":"'Standing Data'!$D$15","v":{"$error":"#N/A"}},{"$f":"'Standing Data'!$F$15","v":0},{"$f":"'Standing Data'!$F$9","v":0},"Fin.Return","H1268",{"$f":"Fin.Return!H1365","v":0}]
[{"$f":"'Standing Data'!$D$15","v":{"$error":"#N/A"}},{"$f":"'Standing Data'!$F$15","v":0},{"$f":"'Standing Data'!$F$9","v":0},"Fin.Return","I18",{"$f":"Fin.Return!I20","v":0}]
[{"$f":"'Standing Data'!$D$15","v":{"$error":"#N/A"}},{"$f":"'Standing Data'!$F$15","v":0},{"$f":"'Standing Data'!$F$9","v":0},"Fin.Return","I19",{"$f":"Fin.Return!I21","v":0}]
[{"$f":"'Standing Data'!$D$15","v":{"$error":"#N/A"}},{"$f":"'Standing Data'!$F$15","v":0},{"$f":"'Standing Data'!$F$9","v":0},"Fin.Return","I20",{"$f":"Fin.Return!I22","v":0}]
[{"$f":"'Standing Data'!$D$15","v":{"$error":"#N/A"}},{"$f":"'Standing Data'!$F$15","v":0},{"$f":"'Standing Data'!$F$9","v":0},"Fin.Return","I21",{"$f":"Fin.Return!I23","v":0}]
[{"$f":"'Standing Data'!$D$15","v":{"$error":"#N/A"}},{"$f":"'Standing Data'!$F$15","v":0},{"$f":"'Standing Data'!$F$9","v":0},"Fin.Return","I23",{"$f":"Fin.Return!I25","v":0}]
[{"$f":"'Standing Data'!$D$15","v":{"$error":"#N/A"}},{"$f":"'Standing Data'!$F$15","v":0},{"$f":"'Standing Data'!$F$9","v":0},"Fin.Return","I24",{"$f":"Fin.Return!I26","v":0}]
[{"$f":"'Standing Data'!$D$15","v":{"$error":"#N/A"}},{"$f":"'Standing Data'!$F$15","v":0},{"$f":"'Standing Data'!$F$9","v":0},"Fin.Return","I26",{"$f":"Fin.Return!I28","v":0}]
[{"$f":"'Standing Data'!$D$15","v":{"$error":"#N/A"}},{"$f":"'Standing Data'!$F$15","v":0},{"$f":"'Standing Data'!$F$9","v":0},"Fin.Return","I29",{"$f":"Fin.Return!I31","v":0}]
[{"$f":"'Standing Data'!$D$15","v":{"$error":"#N/A"}},{"$f":"'Standing Data'!$F$15","v":0},{"$f":"'Standing Data'!$F$9","v":0},"Fin.Return","I30",{"$f":"Fin.Return!I32","v":0}]
[{"$f":"'Standing Data'!$D$15","v":{"$error":"#N/A"}},{"$f":"'Standing Data'!$F$15","v":0},{"$f":"'Standing Data'!$F$9","v":0},"Fin.Return","I31",{"$f":"Fin.Return!I33","v":0}]
[{"$f":"'Standing Data'!$D$15","v":{"$error":"#N/A"}},{"$f":"'Standing Data'!$F$15","v":0},{"$f":"'Standing Data'!$F$9","v":0},"Fin.Return","I33",{"$f":"Fin.Return!I35","v":0}]
[{"$f":"'Standing Data'!$D$15","v":{"$error":"#N/A"}},{"$f":"'Standing Data'!$F$15","v":0},{"$f":"'Standing Data'!$F$9","v":0},"Fin.Return","I34",{"$f":"Fin.Return!I36","v":0}]
[{"$f":"'Standing Data'!$D$15","v":{"$error":"#N/A"}},{"$f":"'Standing Data'!$F$15","v":0},{"$f":"'Standing Data'!$F$9","v":0},"Fin.Return","I35",{"$f":"Fin.Return!I37","v":0}]
[{"$f":"'Standing Data'!$D$15","v":{"$error":"#N/A"}},{"$f":"'Standing Data'!$F$15","v":0},{"$f":"'Standing Data'!$F$9","v":0},"Fin.Return","I37",{"$f":"Fin.Return!I39","v":0}]
[{"$f":"'Standing Data'!$D$15","v":{"$error":"#N/A"}},{"$f":"'Standing Data'!$F$15","v":0},{"$f":"'Standing Data'!$F$9","v":0},"Fin.Return","I38",{"$f":"Fin.Return!I40","v":0}]
[{"$f":"'Standing Data'!$D$15","v":{"$error":"#N/A"}},{"$f":"'Standing Data'!$F$15","v":0},{"$f":"'Standing Data'!$F$9","v":0},"Fin.Return","I39",{"$f":"Fin.Return!I41","v":0}]
[{"$f":"'Standing Data'!$D$15","v":{"$error":"#N/A"}},{"$f":"'Standing Data'!$F$15","v":0},{"$f":"'Standing Data'!$F$9","v":0},"Fin.Return","I41",{"$f":"Fin.Return!I43","v":0}]
[{"$f":"'Standing Data'!$D$15","v":{"$error":"#N/A"}},{"$f":"'Standing Data'!$F$15","v":0},{"$f":"'Standing Data'!$F$9","v":0},"Fin.Return","I44",{"$f":"Fin.Return!I46","v":0}]
[{"$f":"'Standing Data'!$D$15","v":{"$error":"#N/A"}},{"$f":"'Standing Data'!$F$15","v":0},{"$f":"'Standing Data'!$F$9","v":0},"Fin.Return","I45",{"$f":"Fin.Return!I47","v":0}]
[{"$f":"'Standing Data'!$D$15","v":{"$error":"#N/A"}},{"$f":"'Standing Data'!$F$15","v":0},{"$f":"'Standing Data'!$F$9","v":0},"Fin.Return","I46",{"$f":"Fin.Return!I48","v":0}]
[{"$f":"'Standing Data'!$D$15","v":{"$error":"#N/A"}},{"$f":"'Standing Data'!$F$15","v":0},{"$f":"'Standing Data'!$F$9","v":0},"Fin.Return","I48",{"$f":"Fin.Return!I50","v":0}]
[{"$f":"'Standing Data'!$D$15","v":{"$error":"#N/A"}},{"$f":"'Standing Data'!$F$15","v":0},{"$f":"'Standing Data'!$F$9","v":0},"Fin.Return","I50",{"$f":"Fin.Return!I52","v":0}]
[{"$f":"'Standing Data'!$D$15","v":{"$error":"#N/A"}},{"$f":"'Standing Data'!$F$15","v":0},{"$f":"'Standing Data'!$F$9","v":0},"Fin.Return","I51",{"$f":"Fin.Return!I53","v":0}]
[{"$f":"'Standing Data'!$D$15","v":{"$error":"#N/A"}},{"$f":"'Standing Data'!$F$15","v":0},{"$f":"'Standing Data'!$F$9","v":0},"Fin.Return","I52",{"$f":"Fin.Return!I54","v":0}]
[{"$f":"'Standing Data'!$D$15","v":{"$error":"#N/A"}},{"$f":"'Standing Data'!$F$15","v":0},{"$f":"'Standing Data'!$F$9","v":0},"Fin.Return","I54",{"$f":"Fin.Return!I56","v":0}]
[{"$f":"'Standing Data'!$D$15","v":{"$error":"#N/A"}},{"$f":"'Standing Data'!$F$15","v":0},{"$f":"'Standing Data'!$F$9","v":0},"Fin.Return","I134",{"$f":"Fin.Return!I136","v":0}]
[{"$f":"'Standing Data'!$D$15","v":{"$error":"#N/A"}},{"$f":"'Standing Data'!$F$15","v":0},{"$f":"'Standing Data'!$F$9","v":0},"Fin.Return","I135",{"$f":"Fin.Return!I137","v":0}]
[{"$f":"'Standing Data'!$D$15","v":{"$error":"#N/A"}},{"$f":"'Standing Data'!$F$15","v":0},{"$f":"'Standing Data'!$F$9","v":0},"Fin.Return","I136",{"$f":"Fin.Return!I138","v":0}]
[{"$f":"'Standing Data'!$D$15","v":{"$error":"#N/A"}},{"$f":"'Standing Data'!$F$15","v":0},{"$f":"'Standing Data'!$F$9","v":0},"Fin.Return","I138",{"$f":"Fin.Return!I140","v":0}]
[{"$f":"'Standing Data'!$D$15","v":{"$error":"#N/A"}},{"$f":"'Standing Data'!$F$15","v":0},{"$f":"'Standing Data'!$F$9","v":0},"Fin.Return","I144",{"$f":"Fin.Return!I146","v":0}]
[{"$f":"'Standing Data'!$D$15","v":{"$error":"#N/A"}},{"$f":"'Standing Data'!$F$15","v":0},{"$f":"'Standing Data'!$F$9","v":0},"Fin.Return","I145",{"$f":"Fin.Return!I147","v":0}]
[{"$f":"'Standing Data'!$D$15","v":{"$error":"#N/A"}},{"$f":"'Standing Data'!$F$15","v":0},{"$f":"'Standing Data'!$F$9","v":0},"Fin.Return","I146",{"$f":"Fin.Return!I148","v":0}]
[{"$f":"'Standing Data'!$D$15","v":{"$error":"#N/A"}},{"$f":"'Standing Data'!$F$15","v":0},{"$f":"'Standing Data'!$F$9","v":0},"Fin.Return","I147",{"$f":"Fin.Return!I150","v":0}]
[{"$f":"'Standing Data'!$D$15","v":{"$error":"#N/A"}},{"$f":"'Standing Data'!$F$15","v":0},{"$f":"'Standing Data'!$F$9","v":0},"Fin.Return","I149",{"$f":"Fin.Return!I152","v":0}]
[{"$f":"'Standing Data'!$D$15","v":{"$error":"#N/A"}},{"$f":"'Standing Data'!$F$15","v":0},{"$f":"'Standing Data'!$F$9","v":0},"Fin.Return","I155",{"$f":"Fin.Return!I158","v":0}]
[{"$f":"'Standing Data'!$D$15","v":{"$error":"#N/A"}},{"$f":"'Standing Data'!$F$15","v":0},{"$f":"'Standing Data'!$F$9","v":0},"Fin.Return","I156",{"$f":"Fin.Return!I159","v":0}]
[{"$f":"'Standing Data'!$D$15","v":{"$error":"#N/A"}},{"$f":"'Standing Data'!$F$15","v":0},{"$f":"'Standing Data'!$F$9","v":0},"Fin.Return","I157",{"$f":"Fin.Return!I160","v":0}]
[{"$f":"'Standing Data'!$D$15","v":{"$error":"#N/A"}},{"$f":"'Standing Data'!$F$15","v":0},{"$f":"'Standing Data'!$F$9","v":0},"Fin.Return","I158",{"$f":"Fin.Return!I161","v":0}]
[{"$f":"'Standing Data'!$D$15","v":{"$error":"#N/A"}},{"$f":"'Standing Data'!$F$15","v":0},{"$f":"'Standing Data'!$F$9","v":0},"Fin.Return","I160",{"$f":"Fin.Return!I163","v":0}]
[{"$f":"'Standing Data'!$D$15","v":{"$error":"#N/A"}},{"$f":"'Standing Data'!$F$15","v":0},{"$f":"'Standing Data'!$F$9","v":0},"Fin.Return","I228",{"$f":"Fin.Return!I239","v":0}]
[{"$f":"'Standing Data'!$D$15","v":{"$error":"#N/A"}},{"$f":"'Standing Data'!$F$15","v":0},{"$f":"'Standing Data'!$F$9","v":0},"Fin.Return","I229",{"$f":"Fin.Return!I240","v":0}]
[{"$f":"'Standing Data'!$D$15","v":{"$error":"#N/A"}},{"$f":"'Standing Data'!$F$15","v":0},{"$f":"'Standing Data'!$F$9","v":0},"Fin.Return","I231",{"$f":"Fin.Return!I242","v":0}]
[{"$f":"'Standing Data'!$D$15","v":{"$error":"#N/A"}},{"$f":"'Standing Data'!$F$15","v":0},{"$f":"'Standing Data'!$F$9","v":0},"Fin.Return","I232",{"$f":"Fin.Return!I243","v":0}]
[{"$f":"'Standing Data'!$D$15","v":{"$error":"#N/A"}},{"$f":"'Standing Data'!$F$15","v":0},{"$f":"'Standing Data'!$F$9","v":0},"Fin.Return","I234",{"$f":"Fin.Return!I245","v":0}]
[{"$f":"'Standing Data'!$D$15","v":{"$error":"#N/A"}},{"$f":"'Standing Data'!$F$15","v":0},{"$f":"'Standing Data'!$F$9","v":0},"Fin.Return","I235",{"$f":"Fin.Return!I246","v":0}]
[{"$f":"'Standing Data'!$D$15","v":{"$error":"#N/A"}},{"$f":"'Standing Data'!$F$15","v":0},{"$f":"'Standing Data'!$F$9","v":0},"Fin.Return","I236",{"$f":"Fin.Return!I247","v":0}]
[{"$f":"'Standing Data'!$D$15","v":{"$error":"#N/A"}},{"$f":"'Standing Data'!$F$15","v":0},{"$f":"'Standing Data'!$F$9","v":0},"Fin.Return","I238",{"$f":"Fin.Return!I249","v":0}]
[{"$f":"'Standing Data'!$D$15","v":{"$error":"#N/A"}},{"$f":"'Standing Data'!$F$15","v":0},{"$f":"'Standing Data'!$F$9","v":0},"Fin.Return","I400",{"$f":"Fin.Return!I414","v":0}]
[{"$f":"'Standing Data'!$D$15","v":{"$error":"#N/A"}},{"$f":"'Standing Data'!$F$15","v":0},{"$f":"'Standing Data'!$F$9","v":0},"Fin.Return","I468",{"$f":"Fin.Return!I482","v":0}]
[{"$f":"'Standing Data'!$D$15","v":{"$error":"#N/A"}},{"$f":"'Standing Data'!$F$15","v":0},{"$f":"'Standing Data'!$F$9","v":0},"Fin.Return","I469",{"$f":"Fin.Return!I483","v":0}]
[{"$f":"'Standing Data'!$D$15","v":{"$error":"#N/A"}},{"$f":"'Standing Data'!$F$15","v":0},{"$f":"'Standing Data'!$F$9","v":0},"Fin.Return","I470",{"$f":"Fin.Return!I484","v":0}]
[{"$f":"'Standing Data'!$D$15","v":{"$error":"#N/A"}},{"$f":"'Standing Data'!$F$15","v":0},{"$f":"'Standing Data'!$F$9","v":0},"Fin.Return","I471",{"$f":"Fin.Return!I485","v":0}]
[{"$f":"'Standing Data'!$D$15","v":{"$error":"#N/A"}},{"$f":"'Standing Data'!$F$15","v":0},{"$f":"'Standing Data'!$F$9","v":0},"Fin.Return","I472",{"$f":"Fin.Return!I486","v":0}]
[{"$f":"'Standing Data'!$D$15","v":{"$error":"#N/A"}},{"$f":"'Standing Data'!$F$15","v":0},{"$f":"'Standing Data'!$F$9","v":0},"Fin.Return","I473",{"$f":"Fin.Return!I487","v":0}]
[{"$f":"'Standing Data'!$D$15","v":{"$error":"#N/A"}},{"$f":"'Standing Data'!$F$15","v":0},{"$f":"'Standing Data'!$F$9","v":0},"Fin.Return","I474",{"$f":"Fin.Return!I488","v":0}]
[{"$f":"'Standing Data'!$D$15","v":{"$error":"#N/A"}},{"$f":"'Standing Data'!$F$15","v":0},{"$f":"'Standing Data'!$F$9","v":0},"Fin.Return","I475",{"$f":"Fin.Return!I489","v":0}]
[{"$f":"'Standing Data'!$D$15","v":{"$error":"#N/A"}},{"$f":"'Standing Data'!$F$15","v":0},{"$f":"'Standing Data'!$F$9","v":0},"Fin.Return","I477",{"$f":"Fin.Return!I491","v":0}]
[{"$f":"'Standing Data'!$D$15","v":{"$error":"#N/A"}},{"$f":"'Standing Data'!$F$15","v":0},{"$f":"'Standing Data'!$F$9","v":0},"Fin.Return","I480",{"$f":"Fin.Return!I494","v":0}]
[{"$f":"'Standing Data'!$D$15","v":{"$error":"#N/A"}},{"$f":"'Standing Data'!$F$15","v":0},{"$f":"'Standing Data'!$F$9","v":0},"Fin.Return","I481",{"$f":"Fin.Return!I495","v":0}]
[{"$f":"'Standing Data'!$D$15","v":{"$error":"#N/A"}},{"$f":"'Standing Data'!$F$15","v":0},{"$f":"'Standing Data'!$F$9","v":0},"Fin.Return","I482",{"$f":"Fin.Return!I496","v":0}]
[{"$f":"'Standing Data'!$D$15","v":{"$error":"#N/A"}},{"$f":"'Standing Data'!$F$15","v":0},{"$f":"'Standing Data'!$F$9","v":0},"Fin.Return","I483",{"$f":"Fin.Return!I497","v":0}]
[{"$f":"'Standing Data'!$D$15","v":{"$error":"#N/A"}},{"$f":"'Standing Data'!$F$15","v":0},{"$f":"'Standing Data'!$F$9","v":0},"Fin.Return","I484",{"$f":"Fin.Return!I498","v":0}]
[{"$f":"'Standing Data'!$D$15","v":{"$error":"#N/A"}},{"$f":"'Standing Data'!$F$15","v":0},{"$f":"'Standing Data'!$F$9","v":0},"Fin.Return","I486",{"$f":"Fin.Return!I500","v":0}]
[{"$f":"'Standing Data'!$D$15","v":{"$error":"#N/A"}},{"$f":"'Standing Data'!$F$15","v":0},{"$f":"'Standing Data'!$F$9","v":0},"Fin.Return","I489",{"$f":"Fin.Return!I503","v":0}]
[{"$f":"'Standing Data'!$D$15","v":{"$error":"#N/A"}},{"$f":"'Standing Data'!$F$15","v":0},{"$f":"'Standing Data'!$F$9","v":0},"Fin.Return","I490",{"$f":"Fin.Return!I504","v":0}]
[{"$f":"'Standing Data'!$D$15","v":{"$error":"#N/A"}},{"$f":"'Standing Data'!$F$15","v":0},{"$f":"'Standing Data'!$F$9","v":0},"Fin.Return","I491",{"$f":"Fin.Return!I505","v":0}]
[{"$f":"'Standing Data'!$D$15","v":{"$error":"#N/A"}},{"$f":"'Standing Data'!$F$15","v":0},{"$f":"'Standing Data'!$F$9","v":0},"Fin.Return","I493",{"$f":"Fin.Return!I507","v":0}]
[{"$f":"'Standing Data'!$D$15","v":{"$error":"#N/A"}},{"$f":"'Standing Data'!$F$15","v":0},{"$f":"'Standing Data'!$F$9","v":0},"Fin.Return","I496",{"$f":"Fin.Return!I510","v":0}]
[{"$f":"'Standing Data'!$D$15","v":{"$error":"#N/A"}},{"$f":"'Standing Data'!$F$15","v":0},{"$f":"'Standing Data'!$F$9","v":0},"Fin.Return","I499",{"$f":"Fin.Return!I513","v":0}]
[{"$f":"'Standing Data'!$D$15","v":{"$error":"#N/A"}},{"$f":"'Standing Data'!$F$15","v":0},{"$f":"'Standing Data'!$F$9","v":0},"Fin.Return","I503",{"$f":"Fin.Return!I517","v":0}]
[{"$f":"'Standing Data'!$D$15","v":{"$error":"#N/A"}},{"$f":"'Standing Data'!$F$15","v":0},{"$f":"'Standing Data'!$F$9","v":0},"Fin.Return","I504",{"$f":"Fin.Return!I518","v":0}]
[{"$f":"'Standing Data'!$D$15","v":{"$error":"#N/A"}},{"$f":"'Standing Data'!$F$15","v":0},{"$f":"'Standing Data'!$F$9","v":0},"Fin.Return","I505",{"$f":"Fin.Return!I519","v":0}]
[{"$f":"'Standing Data'!$D$15","v":{"$error":"#N/A"}},{"$f":"'Standing Data'!$F$15","v":0},{"$f":"'Standing Data'!$F$9","v":0},"Fin.Return","I514",{"$f":"Fin.Return!I528","v":0}]
[{"$f":"'Standing Data'!$D$15","v":{"$error":"#N/A"}},{"$f":"'Standing Data'!$F$15","v":0},{"$f":"'Standing Data'!$F$9","v":0},"Fin.Return","I515",{"$f":"Fin.Return!I529","v":0}]
[{"$f":"'Standing Data'!$D$15","v":{"$error":"#N/A"}},{"$f":"'Standing Data'!$F$15","v":0},{"$f":"'Standing Data'!$F$9","v":0},"Fin.Return","I517",{"$f":"Fin.Return!I531","v":0}]
[{"$f":"'Standing Data'!$D$15","v":{"$error":"#N/A"}},{"$f":"'Standing Data'!$F$15","v":0},{"$f":"'Standing Data'!$F$9","v":0},"Fin.Return","I519",{"$f":"Fin.Return!I533","v":0}]
[{"$f":"'Standing Data'!$D$15","v":{"$error":"#N/A"}},{"$f":"'Standing Data'!$F$15","v":0},{"$f":"'Standing Data'!$F$9","v":0},"Fin.Return","I525",{"$f":"Fin.Return!I539","v":0}]
[{"$f":"'Standing Data'!$D$15","v":{"$error":"#N/A"}},{"$f":"'Standing Data'!$F$15","v":0},{"$f":"'Standing Data'!$F$9","v":0},"Fin.Return","I526",{"$f":"Fin.Return!I540","v":0}]
[{"$f":"'Standing Data'!$D$15","v":{"$error":"#N/A"}},{"$f":"'Standing Data'!$F$15","v":0},{"$f":"'Standing Data'!$F$9","v":0},"Fin.Return","I527",{"$f":"Fin.Return!I541","v":0}]
[{"$f":"'Standing Data'!$D$15","v":{"$error":"#N/A"}},{"$f":"'Standing Data'!$F$15","v":0},{"$f":"'Standing Data'!$F$9","v":0},"Fin.Return","I528",{"$f":"Fin.Return!I542","v":0}]
[{"$f":"'Standing Data'!$D$15","v":{"$error":"#N/A"}},{"$f":"'Standing Data'!$F$15","v":0},{"$f":"'Standing Data'!$F$9","v":0},"Fin.Return","I529",{"$f":"Fin.Return!I543","v":0}]
[{"$f":"'Standing Data'!$D$15","v":{"$error":"#N/A"}},{"$f":"'Standing Data'!$F$15","v":0},{"$f":"'Standing Data'!$F$9","v":0},"Fin.Return","I530",{"$f":"Fin.Return!I544","v":0}]
[{"$f":"'Standing Data'!$D$15","v":{"$error":"#N/A"}},{"$f":"'Standing Data'!$F$15","v":0},{"$f":"'Standing Data'!$F$9","v":0},"Fin.Return","I531",{"$f":"Fin.Return!I545","v":0}]
[{"$f":"'Standing Data'!$D$15","v":{"$error":"#N/A"}},{"$f":"'Standing Data'!$F$15","v":0},{"$f":"'Standing Data'!$F$9","v":0},"Fin.Return","I533",{"$f":"Fin.Return!I547","v":0}]
[{"$f":"'Standing Data'!$D$15","v":{"$error":"#N/A"}},{"$f":"'Standing Data'!$F$15","v":0},{"$f":"'Standing Data'!$F$9","v":0},"Fin.Return","I536",{"$f":"Fin.Return!I550","v":0}]
[{"$f":"'Standing Data'!$D$15","v":{"$error":"#N/A"}},{"$f":"'Standing Data'!$F$15","v":0},{"$f":"'Standing Data'!$F$9","v":0},"Fin.Return","I537",{"$f":"Fin.Return!I551","v":0}]
[{"$f":"'Standing Data'!$D$15","v":{"$error":"#N/A"}},{"$f":"'Standing Data'!$F$15","v":0},{"$f":"'Standing Data'!$F$9","v":0},"Fin.Return","I538",{"$f":"Fin.Return!I552","v":0}]
[{"$f":"'Standing Data'!$D$15","v":{"$error":"#N/A"}},{"$f":"'Standing Data'!$F$15","v":0},{"$f":"'Standing Data'!$F$9","v":0},"Fin.Return","I539",{"$f":"Fin.Return!I553","v":0}]
[{"$f":"'Standing Data'!$D$15","v":{"$error":"#N/A"}},{"$f":"'Standing Data'!$F$15","v":0},{"$f":"'Standing Data'!$F$9","v":0},"Fin.Return","I540",{"$f":"Fin.Return!I554","v":0}]
[{"$f":"'Standing Data'!$D$15","v":{"$error":"#N/A"}},{"$f":"'Standing Data'!$F$15","v":0},{"$f":"'Standing Data'!$F$9","v":0},"Fin.Return","I542",{"$f":"Fin.Return!I556","v":0}]
[{"$f":"'Standing Data'!$D$15","v":{"$error":"#N/A"}},{"$f":"'Standing Data'!$F$15","v":0},{"$f":"'Standing Data'!$F$9","v":0},"Fin.Return","I545",{"$f":"Fin.Return!I559","v":0}]
[{"$f":"'Standing Data'!$D$15","v":{"$error":"#N/A"}},{"$f":"'Standing Data'!$F$15","v":0},{"$f":"'Standing Data'!$F$9","v":0},"Fin.Return","I546",{"$f":"Fin.Return!I560","v":0}]
[{"$f":"'Standing Data'!$D$15","v":{"$error":"#N/A"}},{"$f":"'Standing Data'!$F$15","v":0},{"$f":"'Standing Data'!$F$9","v":0},"Fin.Return","I547",{"$f":"Fin.Return!I561","v":0}]
[{"$f":"'Standing Data'!$D$15","v":{"$error":"#N/A"}},{"$f":"'Standing Data'!$F$15","v":0},{"$f":"'Standing Data'!$F$9","v":0},"Fin.Return","I549",{"$f":"Fin.Return!I563","v":0}]
[{"$f":"'Standing Data'!$D$15","v":{"$error":"#N/A"}},{"$f":"'Standing Data'!$F$15","v":0},{"$f":"'Standing Data'!$F$9","v":0},"Fin.Return","I552",{"$f":"Fin.Return!I566","v":0}]
[{"$f":"'Standing Data'!$D$15","v":{"$error":"#N/A"}},{"$f":"'Standing Data'!$F$15","v":0},{"$f":"'Standing Data'!$F$9","v":0},"Fin.Return","I555",{"$f":"Fin.Return!I569","v":0}]
[{"$f":"'Standing Data'!$D$15","v":{"$error":"#N/A"}},{"$f":"'Standing Data'!$F$15","v":0},{"$f":"'Standing Data'!$F$9","v":0},"Fin.Return","I558",{"$f":"Fin.Return!I572","v":0}]
[{"$f":"'Standing Data'!$D$15","v":{"$error":"#N/A"}},{"$f":"'Standing Data'!$F$15","v":0},{"$f":"'Standing Data'!$F$9","v":0},"Fin.Return","I559",{"$f":"Fin.Return!I573","v":0}]
[{"$f":"'Standing Data'!$D$15","v":{"$error":"#N/A"}},{"$f":"'Standing Data'!$F$15","v":0},{"$f":"'Standing Data'!$F$9","v":0},"Fin.Return","I565",{"$f":"Fin.Return!I579","v":0}]
[{"$f":"'Standing Data'!$D$15","v":{"$error":"#N/A"}},{"$f":"'Standing Data'!$F$15","v":0},{"$f":"'Standing Data'!$F$9","v":0},"Fin.Return","I566",{"$f":"Fin.Return!I580","v":0}]
[{"$f":"'Standing Data'!$D$15","v":{"$error":"#N/A"}},{"$f":"'Standing Data'!$F$15","v":0},{"$f":"'Standing Data'!$F$9","v":0},"Fin.Return","I567",{"$f":"Fin.Return!I581","v":0}]
[{"$f":"'Standing Data'!$D$15","v":{"$error":"#N/A"}},{"$f":"'Standing Data'!$F$15","v":0},{"$f":"'Standing Data'!$F$9","v":0},"Fin.Return","I568",{"$f":"Fin.Return!I582","v":0}]
[{"$f":"'Standing Data'!$D$15","v":{"$error":"#N/A"}},{"$f":"'Standing Data'!$F$15","v":0},{"$f":"'Standing Data'!$F$9","v":0},"Fin.Return","I569",{"$f":"Fin.Return!I583","v":0}]
[{"$f":"'Standing Data'!$D$15","v":{"$error":"#N/A"}},{"$f":"'Standing Data'!$F$15","v":0},{"$f":"'Standing Data'!$F$9","v":0},"Fin.Return","I570",{"$f":"Fin.Return!I584","v":0}]
[{"$f":"'Standing Data'!$D$15","v":{"$error":"#N/A"}},{"$f":"'Standing Data'!$F$15","v":0},{"$f":"'Standing Data'!$F$9","v":0},"Fin.Return","I571",{"$f":"Fin.Return!I585","v":0}]
[{"$f":"'Standing Data'!$D$15","v":{"$error":"#N/A"}},{"$f":"'Standing Data'!$F$15","v":0},{"$f":"'Standing Data'!$F$9","v":0},"Fin.Return","I573",{"$f":"Fin.Return!I587","v":0}]
[{"$f":"'Standing Data'!$D$15","v":{"$error":"#N/A"}},{"$f":"'Standing Data'!$F$15","v":0},{"$f":"'Standing Data'!$F$9","v":0},"Fin.Return","I575",{"$f":"Fin.Return!I589","v":0}]
[{"$f":"'Standing Data'!$D$15","v":{"$error":"#N/A"}},{"$f":"'Standing Data'!$F$15","v":0},{"$f":"'Standing Data'!$F$9","v":0},"Fin.Return","I630",{"$f":"Fin.Return!I644","v":0}]
[{"$f":"'Standing Data'!$D$15","v":{"$error":"#N/A"}},{"$f":"'Standing Data'!$F$15","v":0},{"$f":"'Standing Data'!$F$9","v":0},"Fin.Return","I631",{"$f":"Fin.Return!I645","v":0}]
[{"$f":"'Standing Data'!$D$15","v":{"$error":"#N/A"}},{"$f":"'Standing Data'!$F$15","v":0},{"$f":"'Standing Data'!$F$9","v":0},"Fin.Return","I632",{"$f":"Fin.Return!I646","v":0}]
[{"$f":"'Standing Data'!$D$15","v":{"$error":"#N/A"}},{"$f":"'Standing Data'!$F$15","v":0},{"$f":"'Standing Data'!$F$9","v":0},"Fin.Return","I633",{"$f":"Fin.Return!I647","v":0}]
[{"$f":"'Standing Data'!$D$15","v":{"$error":"#N/A"}},{"$f":"'Standing Data'!$F$15","v":0},{"$f":"'Standing Data'!$F$9","v":0},"Fin.Return","I634",{"$f":"Fin.Return!I648","v":0}]
[{"$f":"'Standing Data'!$D$15","v":{"$error":"#N/A"}},{"$f":"'Standing Data'!$F$15","v":0},{"$f":"'Standing Data'!$F$9","v":0},"Fin.Return","I635",{"$f":"Fin.Return!I649","v":0}]
[{"$f":"'Standing Data'!$D$15","v":{"$error":"#N/A"}},{"$f":"'Standing Data'!$F$15","v":0},{"$f":"'Standing Data'!$F$9","v":0},"Fin.Return","I636",{"$f":"Fin.Return!I650","v":0}]
[{"$f":"'Standing Data'!$D$15","v":{"$error":"#N/A"}},{"$f":"'Standing Data'!$F$15","v":0},{"$f":"'Standing Data'!$F$9","v":0},"Fin.Return","I638",{"$f":"Fin.Return!I652","v":0}]
[{"$f":"'Standing Data'!$D$15","v":{"$error":"#N/A"}},{"$f":"'Standing Data'!$F$15","v":0},{"$f":"'Standing Data'!$F$9","v":0},"Fin.Return","I640",{"$f":"Fin.Return!I654","v":0}]
[{"$f":"'Standing Data'!$D$15","v":{"$error":"#N/A"}},{"$f":"'Standing Data'!$F$15","v":0},{"$f":"'Standing Data'!$F$9","v":0},"Fin.Return","I745",{"$f":"Fin.Return!I759","v":0}]
[{"$f":"'Standing Data'!$D$15","v":{"$error":"#N/A"}},{"$f":"'Standing Data'!$F$15","v":0},{"$f":"'Standing Data'!$F$9","v":0},"Fin.Return","I746",{"$f":"Fin.Return!I760","v":0}]
[{"$f":"'Standing Data'!$D$15","v":{"$error":"#N/A"}},{"$f":"'Standing Data'!$F$15","v":0},{"$f":"'Standing Data'!$F$9","v":0},"Fin.Return","I747",{"$f":"Fin.Return!I761","v":0}]
[{"$f":"'Standing Data'!$D$15","v":{"$error":"#N/A"}},{"$f":"'Standing Data'!$F$15","v":0},{"$f":"'Standing Data'!$F$9","v":0},"Fin.Return","I748",{"$f":"Fin.Return!I762","v":0}]
[{"$f":"'Standing Data'!$D$15","v":{"$error":"#N/A"}},{"$f":"'Standing Data'!$F$15","v":0},{"$f":"'Standing Data'!$F$9","v":0},"Fin.Return","I750",{"$f":"Fin.Return!I764","v":0}]
[{"$f":"'Standing Data'!$D$15","v":{"$error":"#N/A"}},{"$f":"'Standing Data'!$F$15","v":0},{"$f":"'Standing Data'!$F$9","v":0},"Fin.Return","I755",{"$f":"Fin.Return!I769","v":0}]
[{"$f":"'Standing Data'!$D$15","v":{"$error":"#N/A"}},{"$f":"'Standing Data'!$F$15","v":0},{"$f":"'Standing Data'!$F$9","v":0},"Fin.Return","I756",{"$f":"Fin.Return!I770","v":0}]
[{"$f":"'Standing Data'!$D$15","v":{"$error":"#N/A"}},{"$f":"'Standing Data'!$F$15","v":0},{"$f":"'Standing Data'!$F$9","v":0},"Fin.Return","I757",{"$f":"Fin.Return!I771","v":0}]
[{"$f":"'Standing Data'!$D$15","v":{"$error":"#N/A"}},{"$f":"'Standing Data'!$F$15","v":0},{"$f":"'Standing Data'!$F$9","v":0},"Fin.Return","I759",{"$f":"Fin.Return!I773","v":0}]
[{"$f":"'Standing Data'!$D$15","v":{"$error":"#N/A"}},{"$f":"'Standing Data'!$F$15","v":0},{"$f":"'Standing Data'!$F$9","v":0},"Fin.Return","I767",{"$f":"Fin.Return!I781","v":0}]
[{"$f":"'Standing Data'!$D$15","v":{"$error":"#N/A"}},{"$f":"'Standing Data'!$F$15","v":0},{"$f":"'Standing Data'!$F$9","v":0},"Fin.Return","I768",{"$f":"Fin.Return!I782","v":0}]
[{"$f":"'Standing Data'!$D$15","v":{"$error":"#N/A"}},{"$f":"'Standing Data'!$F$15","v":0},{"$f":"'Standing Data'!$F$9","v":0},"Fin.Return","I770",{"$f":"Fin.Return!I784","v":0}]
[{"$f":"'Standing Data'!$D$15","v":{"$error":"#N/A"}},{"$f":"'Standing Data'!$F$15","v":0},{"$f":"'Standing Data'!$F$9","v":0},"Fin.Return","I771",{"$f":"Fin.Return!I785","v":0}]
[{"$f":"'Standing Data'!$D$15","v":{"$error":"#N/A"}},{"$f":"'Standing Data'!$F$15","v":0},{"$f":"'Standing Data'!$F$9","v":0},"Fin.Return","I772",{"$f":"Fin.Return!I786","v":0}]
[{"$f":"'Standing Data'!$D$15","v":{"$error":"#N/A"}},{"$f":"'Standing Data'!$F$15","v":0},{"$f":"'Standing Data'!$F$9","v":0},"Fin.Return","I773",{"$f":"Fin.Return!I787","v":0}]
[{"$f":"'Standing Data'!$D$15","v":{"$error":"#N/A"}},{"$f":"'Standing Data'!$F$15","v":0},{"$f":"'Standing Data'!$F$9","v":0},"Fin.Return","I774",{"$f":"Fin.Return!I788","v":0}]
[{"$f":"'Standing Data'!$D$15","v":{"$error":"#N/A"}},{"$f":"'Standing Data'!$F$15","v":0},{"$f":"'Standing Data'!$F$9","v":0},"Fin.Return","I775",{"$f":"Fin.Return!I789","v":0}]
[{"$f":"'Standing Data'!$D$15","v":{"$error":"#N/A"}},{"$f":"'Standing Data'!$F$15","v":0},{"$f":"'Standing Data'!$F$9","v":0},"Fin.Return","I776",{"$f":"Fin.Return!I790","v":0}]
[{"$f":"'Standing Data'!$D$15","v":{"$error":"#N/A"}},{"$f":"'Standing Data'!$F$15","v":0},{"$f":"'Standing Data'!$F$9","v":0},"Fin.Return","I777",{"$f":"Fin.Return!I791","v":0}]
[{"$f":"'Standing Data'!$D$15","v":{"$error":"#N/A"}},{"$f":"'Standing Data'!$F$15","v":0},{"$f":"'Standing Data'!$F$9","v":0},"Fin.Return","I779",{"$f":"Fin.Return!I793","v":0}]
[{"$f":"'Standing Data'!$D$15","v":{"$error":"#N/A"}},{"$f":"'Standing Data'!$F$15","v":0},{"$f":"'Standing Data'!$F$9","v":0},"Fin.Return","I780",{"$f":"Fin.Return!I794","v":0}]
[{"$f":"'Standing Data'!$D$15","v":{"$error":"#N/A"}},{"$f":"'Standing Data'!$F$15","v":0},{"$f":"'Standing Data'!$F$9","v":0},"Fin.Return","I782",{"$f":"Fin.Return!I796","v":0}]
[{"$f":"'Standing Data'!$D$15","v":{"$error":"#N/A"}},{"$f":"'Standing Data'!$F$15","v":0},{"$f":"'Standing Data'!$F$9","v":0},"Fin.Return","I783",{"$f":"Fin.Return!I797","v":0}]
[{"$f":"'Standing Data'!$D$15","v":{"$error":"#N/A"}},{"$f":"'Standing Data'!$F$15","v":0},{"$f":"'Standing Data'!$F$9","v":0},"Fin.Return","I785",{"$f":"Fin.Return!I799","v":0}]
[{"$f":"'Standing Data'!$D$15","v":{"$error":"#N/A"}},{"$f":"'Standing Data'!$F$15","v":0},{"$f":"'Standing Data'!$F$9","v":0},"Fin.Return","I787",{"$f":"Fin.Return!I801","v":0}]
[{"$f":"'Standing Data'!$D$15","v":{"$error":"#N/A"}},{"$f":"'Standing Data'!$F$15","v":0},{"$f":"'Standing Data'!$F$9","v":0},"Fin.Return","I789",{"$f":"Fin.Return!I803","v":0}]
[{"$f":"'Standing Data'!$D$15","v":{"$error":"#N/A"}},{"$f":"'Standing Data'!$F$15","v":0},{"$f":"'Standing Data'!$F$9","v":0},"Fin.Return","I790",{"$f":"Fin.Return!I804","v":0}]
[{"$f":"'Standing Data'!$D$15","v":{"$error":"#N/A"}},{"$f":"'Standing Data'!$F$15","v":0},{"$f":"'Standing Data'!$F$9","v":0},"Fin.Return","I791",{"$f":"Fin.Return!I805","v":0}]
[{"$f":"'Standing Data'!$D$15","v":{"$error":"#N/A"}},{"$f":"'Standing Data'!$F$15","v":0},{"$f":"'Standing Data'!$F$9","v":0},"Fin.Return","I792",{"$f":"Fin.Return!I806","v":0}]
[{"$f":"'Standing Data'!$D$15","v":{"$error":"#N/A"}},{"$f":"'Standing Data'!$F$15","v":0},{"$f":"'Standing Data'!$F$9","v":0},"Fin.Return","I793",{"$f":"Fin.Return!I807","v":0}]
[{"$f":"'Standing Data'!$D$15","v":{"$error":"#N/A"}},{"$f":"'Standing Data'!$F$15","v":0},{"$f":"'Standing Data'!$F$9","v":0},"Fin.Return","I794",{"$f":"Fin.Return!I808","v":0}]
[{"$f":"'Standing Data'!$D$15","v":{"$error":"#N/A"}},{"$f":"'Standing Data'!$F$15","v":0},{"$f":"'Standing Data'!$F$9","v":0},"Fin.Return","I795",{"$f":"Fin.Return!I809","v":0}]
[{"$f":"'Standing Data'!$D$15","v":{"$error":"#N/A"}},{"$f":"'Standing Data'!$F$15","v":0},{"$f":"'Standing Data'!$F$9","v":0},"Fin.Return","I796",{"$f":"Fin.Return!I810","v":0}]
[{"$f":"'Standing Data'!$D$15","v":{"$error":"#N/A"}},{"$f":"'Standing Data'!$F$15","v":0},{"$f":"'Standing Data'!$F$9","v":0},"Fin.Return","I798",{"$f":"Fin.Return!I812","v":0}]
[{"$f":"'Standing Data'!$D$15","v":{"$error":"#N/A"}},{"$f":"'Standing Data'!$F$15","v":0},{"$f":"'Standing Data'!$F$9","v":0},"Fin.Return","I799",{"$f":"Fin.Return!I813","v":0}]
[{"$f":"'Standing Data'!$D$15","v":{"$error":"#N/A"}},{"$f":"'Standing Data'!$F$15","v":0},{"$f":"'Standing Data'!$F$9","v":0},"Fin.Return","I800",{"$f":"Fin.Return!I814","v":0}]
[{"$f":"'Standing Data'!$D$15","v":{"$error":"#N/A"}},{"$f":"'Standing Data'!$F$15","v":0},{"$f":"'Standing Data'!$F$9","v":0},"Fin.Return","I802",{"$f":"Fin.Return!I816","v":0}]
[{"$f":"'Standing Data'!$D$15","v":{"$error":"#N/A"}},{"$f":"'Standing Data'!$F$15","v":0},{"$f":"'Standing Data'!$F$9","v":0},"Fin.Return","I803",{"$f":"Fin.Return!I817","v":0}]
[{"$f":"'Standing Data'!$D$15","v":{"$error":"#N/A"}},{"$f":"'Standing Data'!$F$15","v":0},{"$f":"'Standing Data'!$F$9","v":0},"Fin.Return","I805",{"$f":"Fin.Return!I819","v":0}]
[{"$f":"'Standing Data'!$D$15","v":{"$error":"#N/A"}},{"$f":"'Standing Data'!$F$15","v":0},{"$f":"'Standing Data'!$F$9","v":0},"Fin.Return","I807",{"$f":"Fin.Return!I821","v":0}]
[{"$f":"'Standing Data'!$D$15","v":{"$error":"#N/A"}},{"$f":"'Standing Data'!$F$15","v":0},{"$f":"'Standing Data'!$F$9","v":0},"Fin.Return","I809",{"$f":"Fin.Return!I823","v":0}]
[{"$f":"'Standing Data'!$D$15","v":{"$error":"#N/A"}},{"$f":"'Standing Data'!$F$15","v":0},{"$f":"'Standing Data'!$F$9","v":0},"Fin.Return","I811",{"$f":"Fin.Return!I825","v":0}]
[{"$f":"'Standing Data'!$D$15","v":{"$error":"#N/A"}},{"$f":"'Standing Data'!$F$15","v":0},{"$f":"'Standing Data'!$F$9","v":0},"Fin.Return","I816",{"$f":"Fin.Return!I939","v":0}]
[{"$f":"'Standing Data'!$D$15","v":{"$error":"#N/A"}},{"$f":"'Standing Data'!$F$15","v":0},{"$f":"'Standing Data'!$F$9","v":0},"Fin.Return","I817",{"$f":"Fin.Return!I940","v":0}]
[{"$f":"'Standing Data'!$D$15","v":{"$error":"#N/A"}},{"$f":"'Standing Data'!$F$15","v":0},{"$f":"'Standing Data'!$F$9","v":0},"Fin.Return","I818",{"$f":"Fin.Return!I941","v":0}]
[{"$f":"'Standing Data'!$D$15","v":{"$error":"#N/A"}},{"$f":"'Standing Data'!$F$15","v":0},{"$f":"'Standing Data'!$F$9","v":0},"Fin.Return","I819",{"$f":"Fin.Return!I942","v":0}]
[{"$f":"'Standing Data'!$D$15","v":{"$error":"#N/A"}},{"$f":"'Standing Data'!$F$15","v":0},{"$f":"'Standing Data'!$F$9","v":0},"Fin.Return","I820",{"$f":"Fin.Return!I943","v":0}]
[{"$f":"'Standing Data'!$D$15","v":{"$error":"#N/A"}},{"$f":"'Standing Data'!$F$15","v":0},{"$f":"'Standing Data'!$F$9","v":0},"Fin.Return","I821",{"$f":"Fin.Return!I944","v":0}]
[{"$f":"'Standing Data'!$D$15","v":{"$error":"#N/A"}},{"$f":"'Standing Data'!$F$15","v":0},{"$f":"'Standing Data'!$F$9","v":0},"Fin.Return","I823",{"$f":"Fin.Return!I946","v":0}]
[{"$f":"'Standing Data'!$D$15","v":{"$error":"#N/A"}},{"$f":"'Standing Data'!$F$15","v":0},{"$f":"'Standing Data'!$F$9","v":0},"Fin.Return","I850",{"$f":"Fin.Return!I975","v":0}]
[{"$f":"'Standing Data'!$D$15","v":{"$error":"#N/A"}},{"$f":"'Standing Data'!$F$15","v":0},{"$f":"'Standing Data'!$F$9","v":0},"Fin.Return","I851",{"$f":"Fin.Return!I976","v":0}]
[{"$f":"'Standing Data'!$D$15","v":{"$error":"#N/A"}},{"$f":"'Standing Data'!$F$15","v":0},{"$f":"'Standing Data'!$F$9","v":0},"Fin.Return","I852",{"$f":"Fin.Return!I977","v":0}]
[{"$f":"'Standing Data'!$D$15","v":{"$error":"#N/A"}},{"$f":"'Standing Data'!$F$15","v":0},{"$f":"'Standing Data'!$F$9","v":0},"Fin.Return","I854",{"$f":"Fin.Return!I979","v":0}]
[{"$f":"'Standing Data'!$D$15","v":{"$error":"#N/A"}},{"$f":"'Standing Data'!$F$15","v":0},{"$f":"'Standing Data'!$F$9","v":0},"Fin.Return","I857",{"$f":"Fin.Return!I982","v":0}]
[{"$f":"'Standing Data'!$D$15","v":{"$error":"#N/A"}},{"$f":"'Standing Data'!$F$15","v":0},{"$f":"'Standing Data'!$F$9","v":0},"Fin.Return","I858",{"$f":"Fin.Return!I983","v":0}]
[{"$f":"'Standing Data'!$D$15","v":{"$error":"#N/A"}},{"$f":"'Standing Data'!$F$15","v":0},{"$f":"'Standing Data'!$F$9","v":0},"Fin.Return","I860",{"$f":"Fin.Return!I985","v":0}]
[{"$f":"'Standing Data'!$D$15","v":{"$error":"#N/A"}},{"$f":"'Standing Data'!$F$15","v":0},{"$f":"'Standing Data'!$F$9","v":0},"Fin.Return","I862",{"$f":"Fin.Return!I987","v":0}]
[{"$f":"'Standing Data'!$D$15","v":{"$error":"#N/A"}},{"$f":"'Standing Data'!$F$15","v":0},{"$f":"'Standing Data'!$F$9","v":0},"Fin.Return","I865",{"$f":"Fin.Return!I990","v":0}]
[{"$f":"'Standing Data'!$D$15","v":{"$error":"#N/A"}},{"$f":"'Standing Data'!$F$15","v":0},{"$f":"'Standing Data'!$F$9","v":0},"Fin.Return","I866",{"$f":"Fin.Return!I991","v":0}]
[{"$f":"'Standing Data'!$D$15","v":{"$error":"#N/A"}},{"$f":"'Standing Data'!$F$15","v":0},{"$f":"'Standing Data'!$F$9","v":0},"Fin.Return","I867",{"$f":"Fin.Return!I992","v":0}]
[{"$f":"'Standing Data'!$D$15","v":{"$error":"#N/A"}},{"$f":"'Standing Data'!$F$15","v":0},{"$f":"'Standing Data'!$F$9","v":0},"Fin.Return","I868",{"$f":"Fin.Return!I993","v":0}]
[{"$f":"'Standing Data'!$D$15","v":{"$error":"#N/A"}},{"$f":"'Standing Data'!$F$15","v":0},{"$f":"'Standing Data'!$F$9","v":0},"Fin.Return","I869",{"$f":"Fin.Return!I994","v":0}]
[{"$f":"'Standing Data'!$D$15","v":{"$error":"#N/A"}},{"$f":"'Standing Data'!$F$15","v":0},{"$f":"'Standing Data'!$F$9","v":0},"Fin.Return","I870",{"$f":"Fin.Return!I995","v":0}]
[{"$f":"'Standing Data'!$D$15","v":{"$error":"#N/A"}},{"$f":"'Standing Data'!$F$15","v":0},{"$f":"'Standing Data'!$F$9","v":0},"Fin.Return","I871",{"$f":"Fin.Return!I996","v":0}]
[{"$f":"'Standing Data'!$D$15","v":{"$error":"#N/A"}},{"$f":"'Standing Data'!$F$15","v":0},{"$f":"'Standing Data'!$F$9","v":0},"Fin.Return","I872",{"$f":"Fin.Return!I997","v":0}]
[{"$f":"'Standing Data'!$D$15","v":{"$error":"#N/A"}},{"$f":"'Standing Data'!$F$15","v":0},{"$f":"'Standing Data'!$F$9","v":0},"Fin.Return","I873",{"$f":"Fin.Return!I998","v":0}]
[{"$f":"'Standing Data'!$D$15","v":{"$error":"#N/A"}},{"$f":"'Standing Data'!$F$15","v":0},{"$f":"'Standing Data'!$F$9","v":0},"Fin.Return","I874",{"$f":"Fin.Return!I999","v":0}]
[{"$f":"'Standing Data'!$D$15","v":{"$error":"#N/A"}},{"$f":"'Standing Data'!$F$15","v":0},{"$f":"'Standing Data'!$F$9","v":0},"Fin.Return","I876",{"$f":"Fin.Return!I1001","v":0}]
[{"$f":"'Standing Data'!$D$15","v":{"$error":"#N/A"}},{"$f":"'Standing Data'!$F$15","v":0},{"$f":"'Standing Data'!$F$9","v":0},"Fin.Return","I879",{"$f":"Fin.Return!I1004","v":0}]
[{"$f":"'Standing Data'!$D$15","v":{"$error":"#N/A"}},{"$f":"'Standing Data'!$F$15","v":0},{"$f":"'Standing Data'!$F$9","v":0},"Fin.Return","I880",{"$f":"Fin.Return!I1005","v":0}]
[{"$f":"'Standing Data'!$D$15","v":{"$error":"#N/A"}},{"$f":"'Standing Data'!$F$15","v":0},{"$f":"'Standing Data'!$F$9","v":0},"Fin.Return","I881",{"$f":"Fin.Return!I1006","v":0}]
[{"$f":"'Standing Data'!$D$15","v":{"$error":"#N/A"}},{"$f":"'Standing Data'!$F$15","v":0},{"$f":"'Standing Data'!$F$9","v":0},"Fin.Return","I882",{"$f":"Fin.Return!I1007","v":0}]
[{"$f":"'Standing Data'!$D$15","v":{"$error":"#N/A"}},{"$f":"'Standing Data'!$F$15","v":0},{"$f":"'Standing Data'!$F$9","v":0},"Fin.Return","I883",{"$f":"Fin.Return!I1008","v":0}]
[{"$f":"'Standing Data'!$D$15","v":{"$error":"#N/A"}},{"$f":"'Standing Data'!$F$15","v":0},{"$f":"'Standing Data'!$F$9","v":0},"Fin.Return","I884",{"$f":"Fin.Return!I1009","v":0}]
[{"$f":"'Standing Data'!$D$15","v":{"$error":"#N/A"}},{"$f":"'Standing Data'!$F$15","v":0},{"$f":"'Standing Data'!$F$9","v":0},"Fin.Return","I885",{"$f":"Fin.Return!I1010","v":0}]
[{"$f":"'Standing Data'!$D$15","v":{"$error":"#N/A"}},{"$f":"'Standing Data'!$F$15","v":0},{"$f":"'Standing Data'!$F$9","v":0},"Fin.Return","I887",{"$f":"Fin.Return!I1012","v":0}]
[{"$f":"'Standing Data'!$D$15","v":{"$error":"#N/A"}},{"$f":"'Standing Data'!$F$15","v":0},{"$f":"'Standing Data'!$F$9","v":0},"Fin.Return","I890",{"$f":"Fin.Return!I1015","v":0}]
[{"$f":"'Standing Data'!$D$15","v":{"$error":"#N/A"}},{"$f":"'Standing Data'!$F$15","v":0},{"$f":"'Standing Data'!$F$9","v":0},"Fin.Return","I891",{"$f":"Fin.Return!I1016","v":0}]
[{"$f":"'Standing Data'!$D$15","v":{"$error":"#N/A"}},{"$f":"'Standing Data'!$F$15","v":0},{"$f":"'Standing Data'!$F$9","v":0},"Fin.Return","I892",{"$f":"Fin.Return!I1017","v":0}]
[{"$f":"'Standing Data'!$D$15","v":{"$error":"#N/A"}},{"$f":"'Standing Data'!$F$15","v":0},{"$f":"'Standing Data'!$F$9","v":0},"Fin.Return","I893",{"$f":"Fin.Return!I1018","v":0}]
[{"$f":"'Standing Data'!$D$15","v":{"$error":"#N/A"}},{"$f":"'Standing Data'!$F$15","v":0},{"$f":"'Standing Data'!$F$9","v":0},"Fin.Return","I894",{"$f":"Fin.Return!I1019","v":0}]
[{"$f":"'Standing Data'!$D$15","v":{"$error":"#N/A"}},{"$f":"'Standing Data'!$F$15","v":0},{"$f":"'Standing Data'!$F$9","v":0},"Fin.Return","I895",{"$f":"Fin.Return!I1020","v":0}]
[{"$f":"'Standing Data'!$D$15","v":{"$error":"#N/A"}},{"$f":"'Standing Data'!$F$15","v":0},{"$f":"'Standing Data'!$F$9","v":0},"Fin.Return","I896",{"$f":"Fin.Return!I1021","v":0}]
[{"$f":"'Standing Data'!$D$15","v":{"$error":"#N/A"}},{"$f":"'Standing Data'!$F$15","v":0},{"$f":"'Standing Data'!$F$9","v":0},"Fin.Return","I897",{"$f":"Fin.Return!I1022","v":0}]
[{"$f":"'Standing Data'!$D$15","v":{"$error":"#N/A"}},{"$f":"'Standing Data'!$F$15","v":0},{"$f":"'Standing Data'!$F$9","v":0},"Fin.Return","I898",{"$f":"Fin.Return!I1023","v":0}]
[{"$f":"'Standing Data'!$D$15","v":{"$error":"#N/A"}},{"$f":"'Standing Data'!$F$15","v":0},{"$f":"'Standing Data'!$F$9","v":0},"Fin.Return","I899",{"$f":"Fin.Return!I1024","v":0}]
[{"$f":"'Standing Data'!$D$15","v":{"$error":"#N/A"}},{"$f":"'Standing Data'!$F$15","v":0},{"$f":"'Standing Data'!$F$9","v":0},"Fin.Return","I901",{"$f":"Fin.Return!I1026","v":0}]
[{"$f":"'Standing Data'!$D$15","v":{"$error":"#N/A"}},{"$f":"'Standing Data'!$F$15","v":0},{"$f":"'Standing Data'!$F$9","v":0},"Fin.Return","I908",{"$f":"Fin.Return!I1035","v":0}]
[{"$f":"'Standing Data'!$D$15","v":{"$error":"#N/A"}},{"$f":"'Standing Data'!$F$15","v":0},{"$f":"'Standing Data'!$F$9","v":0},"Fin.Return","I909",{"$f":"Fin.Return!I1036","v":0}]
[{"$f":"'Standing Data'!$D$15","v":{"$error":"#N/A"}},{"$f":"'Standing Data'!$F$15","v":0},{"$f":"'Standing Data'!$F$9","v":0},"Fin.Return","I910",{"$f":"Fin.Return!I1037","v":0}]
[{"$f":"'Standing Data'!$D$15","v":{"$error":"#N/A"}},{"$f":"'Standing Data'!$F$15","v":0},{"$f":"'Standing Data'!$F$9","v":0},"Fin.Return","I911",{"$f":"Fin.Return!I1038","v":0}]
[{"$f":"'Standing Data'!$D$15","v":{"$error":"#N/A"}},{"$f":"'Standing Data'!$F$15","v":0},{"$f":"'Standing Data'!$F$9","v":0},"Fin.Return","I912",{"$f":"Fin.Return!I1039","v":0}]
[{"$f":"'Standing Data'!$D$15","v":{"$error":"#N/A"}},{"$f":"'Standing Data'!$F$15","v":0},{"$f":"'Standing Data'!$F$9","v":0},"Fin.Return","I914",{"$f":"Fin.Return!I1041","v":0}]
[{"$f":"'Standing Data'!$D$15","v":{"$error":"#N/A"}},{"$f":"'Standing Data'!$F$15","v":0},{"$f":"'Standing Data'!$F$9","v":0},"Fin.Return","I913",{"$f":"Fin.Return!I1040","v":0}]
[{"$f":"'Standing Data'!$D$15","v":{"$error":"#N/A"}},{"$f":"'Standing Data'!$F$15","v":0},{"$f":"'Standing Data'!$F$9","v":0},"Fin.Return","I916",{"$f":"Fin.Return!I1043","v":0}]
[{"$f":"'Standing Data'!$D$15","v":{"$error":"#N/A"}},{"$f":"'Standing Data'!$F$15","v":0},{"$f":"'Standing Data'!$F$9","v":0},"Fin.Return","I917",{"$f":"Fin.Return!I1044","v":0}]
[{"$f":"'Standing Data'!$D$15","v":{"$error":"#N/A"}},{"$f":"'Standing Data'!$F$15","v":0},{"$f":"'Standing Data'!$F$9","v":0},"Fin.Return","I918",{"$f":"Fin.Return!I1045","v":0}]
[{"$f":"'Standing Data'!$D$15","v":{"$error":"#N/A"}},{"$f":"'Standing Data'!$F$15","v":0},{"$f":"'Standing Data'!$F$9","v":0},"Fin.Return","I919",{"$f":"Fin.Return!I1046","v":0}]
[{"$f":"'Standing Data'!$D$15","v":{"$error":"#N/A"}},{"$f":"'Standing Data'!$F$15","v":0},{"$f":"'Standing Data'!$F$9","v":0},"Fin.Return","I920",{"$f":"Fin.Return!I1047","v":0}]
[{"$f":"'Standing Data'!$D$15","v":{"$error":"#N/A"}},{"$f":"'Standing Data'!$F$15","v":0},{"$f":"'Standing Data'!$F$9","v":0},"Fin.Return","I922",{"$f":"Fin.Return!I1049","v":0}]
[{"$f":"'Standing Data'!$D$15","v":{"$error":"#N/A"}},{"$f":"'Standing Data'!$F$15","v":0},{"$f":"'Standing Data'!$F$9","v":0},"Fin.Return","I924",{"$f":"Fin.Return!I1051","v":0}]
[{"$f":"'Standing Data'!$D$15","v":{"$error":"#N/A"}},{"$f":"'Standing Data'!$F$15","v":0},{"$f":"'Standing Data'!$F$9","v":0},"Fin.Return","I925",{"$f":"Fin.Return!I1052","v":0}]
[{"$f":"'Standing Data'!$D$15","v":{"$error":"#N/A"}},{"$f":"'Standing Data'!$F$15","v":0},{"$f":"'Standing Data'!$F$9","v":0},"Fin.Return","I926",{"$f":"Fin.Return!I1053","v":0}]
[{"$f":"'Standing Data'!$D$15","v":{"$error":"#N/A"}},{"$f":"'Standing Data'!$F$15","v":0},{"$f":"'Standing Data'!$F$9","v":0},"Fin.Return","I927",{"$f":"Fin.Return!I1054","v":0}]
[{"$f":"'Standing Data'!$D$15","v":{"$error":"#N/A"}},{"$f":"'Standing Data'!$F$15","v":0},{"$f":"'Standing Data'!$F$9","v":0},"Fin.Return","I928",{"$f":"Fin.Return!I1055","v":0}]
[{"$f":"'Standing Data'!$D$15","v":{"$error":"#N/A"}},{"$f":"'Standing Data'!$F$15","v":0},{"$f":"'Standing Data'!$F$9","v":0},"Fin.Return","I929",{"$f":"Fin.Return!I1056","v":0}]
[{"$f":"'Standing Data'!$D$15","v":{"$error":"#N/A"}},{"$f":"'Standing Data'!$F$15","v":0},{"$f":"'Standing Data'!$F$9","v":0},"Fin.Return","I930",{"$f":"Fin.Return!I1057","v":0}]
[{"$f":"'Standing Data'!$D$15","v":{"$error":"#N/A"}},{"$f":"'Standing Data'!$F$15","v":0},{"$f":"'Standing Data'!$F$9","v":0},"Fin.Return","I931",{"$f":"Fin.Return!I1058","v":0}]
[{"$f":"'Standing Data'!$D$15","v":{"$error":"#N/A"}},{"$f":"'Standing Data'!$F$15","v":0},{"$f":"'Standing Data'!$F$9","v":0},"Fin.Return","I933",{"$f":"Fin.Return!I1060","v":0}]
[{"$f":"'Standing Data'!$D$15","v":{"$error":"#N/A"}},{"$f":"'Standing Data'!$F$15","v":0},{"$f":"'Standing Data'!$F$9","v":0},"Fin.Return","I934",{"$f":"Fin.Return!I1061","v":0}]
[{"$f":"'Standing Data'!$D$15","v":{"$error":"#N/A"}},{"$f":"'Standing Data'!$F$15","v":0},{"$f":"'Standing Data'!$F$9","v":0},"Fin.Return","I935",{"$f":"Fin.Return!I1062","v":0}]
[{"$f":"'Standing Data'!$D$15","v":{"$error":"#N/A"}},{"$f":"'Standing Data'!$F$15","v":0},{"$f":"'Standing Data'!$F$9","v":0},"Fin.Return","I936",{"$f":"Fin.Return!I1063","v":0}]
[{"$f":"'Standing Data'!$D$15","v":{"$error":"#N/A"}},{"$f":"'Standing Data'!$F$15","v":0},{"$f":"'Standing Data'!$F$9","v":0},"Fin.Return","I938",{"$f":"Fin.Return!I1065","v":0}]
[{"$f":"'Standing Data'!$D$15","v":{"$error":"#N/A"}},{"$f":"'Standing Data'!$F$15","v":0},{"$f":"'Standing Data'!$F$9","v":0},"Fin.Return","I940",{"$f":"Fin.Return!I1067","v":0}]
[{"$f":"'Standing Data'!$D$15","v":{"$error":"#N/A"}},{"$f":"'Standing Data'!$F$15","v":0},{"$f":"'Standing Data'!$F$9","v":0},"Fin.Return","I942",{"$f":"Fin.Return!I1069","v":0}]
[{"$f":"'Standing Data'!$D$15","v":{"$error":"#N/A"}},{"$f":"'Standing Data'!$F$15","v":0},{"$f":"'Standing Data'!$F$9","v":0},"Fin.Return","I957",{"$f":"Fin.Return!I1084","v":0}]
[{"$f":"'Standing Data'!$D$15","v":{"$error":"#N/A"}},{"$f":"'Standing Data'!$F$15","v":0},{"$f":"'Standing Data'!$F$9","v":0},"Fin.Return","I958",{"$f":"Fin.Return!I1085","v":0}]
[{"$f":"'Standing Data'!$D$15","v":{"$error":"#N/A"}},{"$f":"'Standing Data'!$F$15","v":0},{"$f":"'Standing Data'!$F$9","v":0},"Fin.Return","I959",{"$f":"Fin.Return!I1086","v":0}]
[{"$f":"'Standing Data'!$D$15","v":{"$error":"#N/A"}},{"$f":"'Standing Data'!$F$15","v":0},{"$f":"'Standing Data'!$F$9","v":0},"Fin.Return","I961",{"$f":"Fin.Return!I1088","v":0}]
[{"$f":"'Standing Data'!$D$15","v":{"$error":"#N/A"}},{"$f":"'Standing Data'!$F$15","v":0},{"$f":"'Standing Data'!$F$9","v":0},"Fin.Return","I969",{"$f":"Fin.Return!I1096","v":0}]
[{"$f":"'Standing Data'!$D$15","v":{"$error":"#N/A"}},{"$f":"'Standing Data'!$F$15","v":0},{"$f":"'Standing Data'!$F$9","v":0},"Fin.Return","I970",{"$f":"Fin.Return!I1097","v":0}]
[{"$f":"'Standing Data'!$D$15","v":{"$error":"#N/A"}},{"$f":"'Standing Data'!$F$15","v":0},{"$f":"'Standing Data'!$F$9","v":0},"Fin.Return","I971",{"$f":"Fin.Return!I1098","v":0}]
[{"$f":"'Standing Data'!$D$15","v":{"$error":"#N/A"}},{"$f":"'Standing Data'!$F$15","v":0},{"$f":"'Standing Data'!$F$9","v":0},"Fin.Return","I973",{"$f":"Fin.Return!I1100","v":0}]
[{"$f":"'Standing Data'!$D$15","v":{"$error":"#N/A"}},{"$f":"'Standing Data'!$F$15","v":0},{"$f":"'Standing Data'!$F$9","v":0},"Fin.Return","I974",{"$f":"Fin.Return!I1101","v":0}]
[{"$f":"'Standing Data'!$D$15","v":{"$error":"#N/A"}},{"$f":"'Standing Data'!$F$15","v":0},{"$f":"'Standing Data'!$F$9","v":0},"Fin.Return","I976",{"$f":"Fin.Return!I1103","v":0}]
[{"$f":"'Standing Data'!$D$15","v":{"$error":"#N/A"}},{"$f":"'Standing Data'!$F$15","v":0},{"$f":"'Standing Data'!$F$9","v":0},"Fin.Return","I986",{"$f":"Fin.Return!I1113","v":0}]
[{"$f":"'Standing Data'!$D$15","v":{"$error":"#N/A"}},{"$f":"'Standing Data'!$F$15","v":0},{"$f":"'Standing Data'!$F$9","v":0},"Fin.Return","I987",{"$f":"Fin.Return!I1114","v":0}]
[{"$f":"'Standing Data'!$D$15","v":{"$error":"#N/A"}},{"$f":"'Standing Data'!$F$15","v":0},{"$f":"'Standing Data'!$F$9","v":0},"Fin.Return","I988",{"$f":"Fin.Return!I1115","v":0}]
[{"$f":"'Standing Data'!$D$15","v":{"$error":"#N/A"}},{"$f":"'Standing Data'!$F$15","v":0},{"$f":"'Standing Data'!$F$9","v":0},"Fin.Return","I990",{"$f":"Fin.Return!I1117","v":0}]
[{"$f":"'Standing Data'!$D$15","v":{"$error":"#N/A"}},{"$f":"'Standing Data'!$F$15","v":0},{"$f":"'Standing Data'!$F$9","v":0},"Fin.Return","I991",{"$f":"Fin.Return!I1118","v":0}]
[{"$f":"'Standing Data'!$D$15","v":{"$error":"#N/A"}},{"$f":"'Standing Data'!$F$15","v":0},{"$f":"'Standing Data'!$F$9","v":0},"Fin.Return","I992",{"$f":"Fin.Return!I1119","v":0}]
[{"$f":"'Standing Data'!$D$15","v":{"$error":"#N/A"}},{"$f":"'Standing Data'!$F$15","v":0},{"$f":"'Standing Data'!$F$9","v":0},"Fin.Return","I994",{"$f":"Fin.Return!I1121","v":0}]
[{"$f":"'Standing Data'!$D$15","v":{"$error":"#N/A"}},{"$f":"'Standing Data'!$F$15","v":0},{"$f":"'Standing Data'!$F$9","v":0},"Fin.Return","I995",{"$f":"Fin.Return!I1122","v":0}]
[{"$f":"'Standing Data'!$D$15","v":{"$error":"#N/A"}},{"$f":"'Standing Data'!$F$15","v":0},{"$f":"'Standing Data'!$F$9","v":0},"Fin.Return","I996",{"$f":"Fin.Return!I1123","v":0}]
[{"$f":"'Standing Data'!$D$15","v":{"$error":"#N/A"}},{"$f":"'Standing Data'!$F$15","v":0},{"$f":"'Standing Data'!$F$9","v":0},"Fin.Return","I998",{"$f":"Fin.Return!I1125","v":0}]
[{"$f":"'Standing Data'!$D$15","v":{"$error":"#N/A"}},{"$f":"'Standing Data'!$F$15","v":0},{"$f":"'Standing Data'!$F$9","v":0},"Fin.Return","I999",{"$f":"Fin.Return!I1126","v":0}]
[{"$f":"'Standing Data'!$D$15","v":{"$error":"#N/A"}},{"$f":"'Standing Data'!$F$15","v":0},{"$f":"'Standing Data'!$F$9","v":0},"Fin.Return","I1001",{"$f":"Fin.Return!I1128","v":0}]
[{"$f":"'Standing Data'!$D$15","v":{"$error":"#N/A"}},{"$f":"'Standing Data'!$F$15","v":0},{"$f":"'Standing Data'!$F$9","v":0},"Fin.Return","I1009",{"$f":"Fin.Return!I1136","v":0}]
[{"$f":"'Standing Data'!$D$15","v":{"$error":"#N/A"}},{"$f":"'Standing Data'!$F$15","v":0},{"$f":"'Standing Data'!$F$9","v":0},"Fin.Return","I1010",{"$f":"Fin.Return!I1137","v":0}]
[{"$f":"'Standing Data'!$D$15","v":{"$error":"#N/A"}},{"$f":"'Standing Data'!$F$15","v":0},{"$f":"'Standing Data'!$F$9","v":0},"Fin.Return","I1011",{"$f":"Fin.Return!I1138","v":0}]
[{"$f":"'Standing Data'!$D$15","v":{"$error":"#N/A"}},{"$f":"'Standing Data'!$F$15","v":0},{"$f":"'Standing Data'!$F$9","v":0},"Fin.Return","I1013",{"$f":"Fin.Return!I1140","v":0}]
[{"$f":"'Standing Data'!$D$15","v":{"$error":"#N/A"}},{"$f":"'Standing Data'!$F$15","v":0},{"$f":"'Standing Data'!$F$9","v":0},"Fin.Return","I1014",{"$f":"Fin.Return!I1141","v":0}]
[{"$f":"'Standing Data'!$D$15","v":{"$error":"#N/A"}},{"$f":"'Standing Data'!$F$15","v":0},{"$f":"'Standing Data'!$F$9","v":0},"Fin.Return","I1015",{"$f":"Fin.Return!I1142","v":0}]
[{"$f":"'Standing Data'!$D$15","v":{"$error":"#N/A"}},{"$f":"'Standing Data'!$F$15","v":0},{"$f":"'Standing Data'!$F$9","v":0},"Fin.Return","I1017",{"$f":"Fin.Return!I1144","v":0}]
[{"$f":"'Standing Data'!$D$15","v":{"$error":"#N/A"}},{"$f":"'Standing Data'!$F$15","v":0},{"$f":"'Standing Data'!$F$9","v":0},"Fin.Return","I1018",{"$f":"Fin.Return!I1145","v":0}]
[{"$f":"'Standing Data'!$D$15","v":{"$error":"#N/A"}},{"$f":"'Standing Data'!$F$15","v":0},{"$f":"'Standing Data'!$F$9","v":0},"Fin.Return","I1019",{"$f":"Fin.Return!I1146","v":0}]
[{"$f":"'Standing Data'!$D$15","v":{"$error":"#N/A"}},{"$f":"'Standing Data'!$F$15","v":0},{"$f":"'Standing Data'!$F$9","v":0},"Fin.Return","I1021",{"$f":"Fin.Return!I1148","v":0}]
[{"$f":"'Standing Data'!$D$15","v":{"$error":"#N/A"}},{"$f":"'Standing Data'!$F$15","v":0},{"$f":"'Standing Data'!$F$9","v":0},"Fin.Return","I1022",{"$f":"Fin.Return!I1149","v":0}]
[{"$f":"'Standing Data'!$D$15","v":{"$error":"#N/A"}},{"$f":"'Standing Data'!$F$15","v":0},{"$f":"'Standing Data'!$F$9","v":0},"Fin.Return","I1024",{"$f":"Fin.Return!I1151","v":0}]
[{"$f":"'Standing Data'!$D$15","v":{"$error":"#N/A"}},{"$f":"'Standing Data'!$F$15","v":0},{"$f":"'Standing Data'!$F$9","v":0},"Fin.Return","I1030",{"$f":"Fin.Return!I1157","v":0}]
[{"$f":"'Standing Data'!$D$15","v":{"$error":"#N/A"}},{"$f":"'Standing Data'!$F$15","v":0},{"$f":"'Standing Data'!$F$9","v":0},"Fin.Return","I1031",{"$f":"Fin.Return!I1158","v":0}]
[{"$f":"'Standing Data'!$D$15","v":{"$error":"#N/A"}},{"$f":"'Standing Data'!$F$15","v":0},{"$f":"'Standing Data'!$F$9","v":0},"Fin.Return","I1032",{"$f":"Fin.Return!I1159","v":0}]
[{"$f":"'Standing Data'!$D$15","v":{"$error":"#N/A"}},{"$f":"'Standing Data'!$F$15","v":0},{"$f":"'Standing Data'!$F$9","v":0},"Fin.Return","I1034",{"$f":"Fin.Return!I1161","v":0}]
[{"$f":"'Standing Data'!$D$15","v":{"$error":"#N/A"}},{"$f":"'Standing Data'!$F$15","v":0},{"$f":"'Standing Data'!$F$9","v":0},"Fin.Return","I1042",{"$f":"Fin.Return!I1169","v":0}]
[{"$f":"'Standing Data'!$D$15","v":{"$error":"#N/A"}},{"$f":"'Standing Data'!$F$15","v":0},{"$f":"'Standing Data'!$F$9","v":0},"Fin.Return","I1043",{"$f":"Fin.Return!I1170","v":0}]
[{"$f":"'Standing Data'!$D$15","v":{"$error":"#N/A"}},{"$f":"'Standing Data'!$F$15","v":0},{"$f":"'Standing Data'!$F$9","v":0},"Fin.Return","I1044",{"$f":"Fin.Return!I1171","v":0}]
[{"$f":"'Standing Data'!$D$15","v":{"$error":"#N/A"}},{"$f":"'Standing Data'!$F$15","v":0},{"$f":"'Standing Data'!$F$9","v":0},"Fin.Return","I1046",{"$f":"Fin.Return!I1173","v":0}]
[{"$f":"'Standing Data'!$D$15","v":{"$error":"#N/A"}},{"$f":"'Standing Data'!$F$15","v":0},{"$f":"'Standing Data'!$F$9","v":0},"Fin.Return","I1047",{"$f":"Fin.Return!I1174","v":0}]
[{"$f":"'Standing Data'!$D$15","v":{"$error":"#N/A"}},{"$f":"'Standing Data'!$F$15","v":0},{"$f":"'Standing Data'!$F$9","v":0},"Fin.Return","I1049",{"$f":"Fin.Return!I1176","v":0}]
[{"$f":"'Standing Data'!$D$15","v":{"$error":"#N/A"}},{"$f":"'Standing Data'!$F$15","v":0},{"$f":"'Standing Data'!$F$9","v":0},"Fin.Return","I1059",{"$f":"Fin.Return!I1186","v":0}]
[{"$f":"'Standing Data'!$D$15","v":{"$error":"#N/A"}},{"$f":"'Standing Data'!$F$15","v":0},{"$f":"'Standing Data'!$F$9","v":0},"Fin.Return","I1060",{"$f":"Fin.Return!I1187","v":0}]
[{"$f":"'Standing Data'!$D$15","v":{"$error":"#N/A"}},{"$f":"'Standing Data'!$F$15","v":0},{"$f":"'Standing Data'!$F$9","v":0},"Fin.Return","I1061",{"$f":"Fin.Return!I1188","v":0}]
[{"$f":"'Standing Data'!$D$15","v":{"$error":"#N/A"}},{"$f":"'Standing Data'!$F$15","v":0},{"$f":"'Standing Data'!$F$9","v":0},"Fin.Return","I1063",{"$f":"Fin.Return!I1190","v":0}]
[{"$f":"'Standing Data'!$D$15","v":{"$error":"#N/A"}},{"$f":"'Standing Data'!$F$15","v":0},{"$f":"'Standing Data'!$F$9","v":0},"Fin.Return","I1064",{"$f":"Fin.Return!I1191","v":0}]
[{"$f":"'Standing Data'!$D$15","v":{"$error":"#N/A"}},{"$f":"'Standing Data'!$F$15","v":0},{"$f":"'Standing Data'!$F$9","v":0},"Fin.Return","I1065",{"$f":"Fin.Return!I1192","v":0}]
[{"$f":"'Standing Data'!$D$15","v":{"$error":"#N/A"}},{"$f":"'Standing Data'!$F$15","v":0},{"$f":"'Standing Data'!$F$9","v":0},"Fin.Return","I1067",{"$f":"Fin.Return!I1194","v":0}]
[{"$f":"'Standing Data'!$D$15","v":{"$error":"#N/A"}},{"$f":"'Standing Data'!$F$15","v":0},{"$f":"'Standing Data'!$F$9","v":0},"Fin.Return","I1068",{"$f":"Fin.Return!I1195","v":0}]
[{"$f":"'Standing Data'!$D$15","v":{"$error":"#N/A"}},{"$f":"'Standing Data'!$F$15","v":0},{"$f":"'Standing Data'!$F$9","v":0},"Fin.Return","I1069",{"$f":"Fin.Return!I1196","v":0}]
[{"$f":"'Standing Data'!$D$15","v":{"$error":"#N/A"}},{"$f":"'Standing Data'!$F$15","v":0},{"$f":"'Standing Data'!$F$9","v":0},"Fin.Return","I1071",{"$f":"Fin.Return!I1198","v":0}]
[{"$f":"'Standing Data'!$D$15","v":{"$error":"#N/A"}},{"$f":"'Standing Data'!$F$15","v":0},{"$f":"'Standing Data'!$F$9","v":0},"Fin.Return","I1072",{"$f":"Fin.Return!I1199","v":0}]
[{"$f":"'Standing Data'!$D$15","v":{"$error":"#N/A"}},{"$f":"'Standing Data'!$F$15","v":0},{"$f":"'Standing Data'!$F$9","v":0},"Fin.Return","I1074",{"$f":"Fin.Return!I1201","v":0}]
[{"$f":"'Standing Data'!$D$15","v":{"$error":"#N/A"}},{"$f":"'Standing Data'!$F$15","v":0},{"$f":"'Standing Data'!$F$9","v":0},"Fin.Return","I1082",{"$f":"Fin.Return!I1209","v":0}]
[{"$f":"'Standing Data'!$D$15","v":{"$error":"#N/A"}},{"$f":"'Standing Data'!$F$15","v":0},{"$f":"'Standing Data'!$F$9","v":0},"Fin.Return","I1083",{"$f":"Fin.Return!I1210","v":0}]
[{"$f":"'Standing Data'!$D$15","v":{"$error":"#N/A"}},{"$f":"'Standing Data'!$F$15","v":0},{"$f":"'Standing Data'!$F$9","v":0},"Fin.Return","I1084",{"$f":"Fin.Return!I1211","v":0}]
[{"$f":"'Standing Data'!$D$15","v":{"$error":"#N/A"}},{"$f":"'Standing Data'!$F$15","v":0},{"$f":"'Standing Data'!$F$9","v":0},"Fin.Return","I1086",{"$f":"Fin.Return!I1213","v":0}]
[{"$f":"'Standing Data'!$D$15","v":{"$error":"#N/A"}},{"$f":"'Standing Data'!$F$15","v":0},{"$f":"'Standing Data'!$F$9","v":0},"Fin.Return","I1087",{"$f":"Fin.Return!I1214","v":0}]
[{"$f":"'Standing Data'!$D$15","v":{"$error":"#N/A"}},{"$f":"'Standing Data'!$F$15","v":0},{"$f":"'Standing Data'!$F$9","v":0},"Fin.Return","I1088",{"$f":"Fin.Return!I1215","v":0}]
[{"$f":"'Standing Data'!$D$15","v":{"$error":"#N/A"}},{"$f":"'Standing Data'!$F$15","v":0},{"$f":"'Standing Data'!$F$9","v":0},"Fin.Return","I1090",{"$f":"Fin.Return!I1217","v":0}]
[{"$f":"'Standing Data'!$D$15","v":{"$error":"#N/A"}},{"$f":"'Standing Data'!$F$15","v":0},{"$f":"'Standing Data'!$F$9","v":0},"Fin.Return","I1091",{"$f":"Fin.Return!I1218","v":0}]
[{"$f":"'Standing Data'!$D$15","v":{"$error":"#N/A"}},{"$f":"'Standing Data'!$F$15","v":0},{"$f":"'Standing Data'!$F$9","v":0},"Fin.Return","I1092",{"$f":"Fin.Return!I1219","v":0}]
[{"$f":"'Standing Data'!$D$15","v":{"$error":"#N/A"}},{"$f":"'Standing Data'!$F$15","v":0},{"$f":"'Standing Data'!$F$9","v":0},"Fin.Return","I1094",{"$f":"Fin.Return!I1221","v":0}]
[{"$f":"'Standing Data'!$D$15","v":{"$error":"#N/A"}},{"$f":"'Standing Data'!$F$15","v":0},{"$f":"'Standing Data'!$F$9","v":0},"Fin.Return","I1095",{"$f":"Fin.Return!I1222","v":0}]
[{"$f":"'Standing Data'!$D$15","v":{"$error":"#N/A"}},{"$f":"'Standing Data'!$F$15","v":0},{"$f":"'Standing Data'!$F$9","v":0},"Fin.Return","I1097",{"$f":"Fin.Return!I1224","v":0}]
[{"$f":"'Standing Data'!$D$15","v":{"$error":"#N/A"}},{"$f":"'Standing Data'!$F$15","v":0},{"$f":"'Standing Data'!$F$9","v":0},"Fin.Return","I1102",{"$f":"Fin.Return!I1229","v":0}]
[{"$f":"'Standing Data'!$D$15","v":{"$error":"#N/A"}},{"$f":"'Standing Data'!$F$15","v":0},{"$f":"'Standing Data'!$F$9","v":0},"Fin.Return","I1103",{"$f":"Fin.Return!I1230","v":0}]
[{"$f":"'Standing Data'!$D$15","v":{"$error":"#N/A"}},{"$f":"'Standing Data'!$F$15","v":0},{"$f":"'Standing Data'!$F$9","v":0},"Fin.Return","I1104",{"$f":"Fin.Return!I1231","v":0}]
[{"$f":"'Standing Data'!$D$15","v":{"$error":"#N/A"}},{"$f":"'Standing Data'!$F$15","v":0},{"$f":"'Standing Data'!$F$9","v":0},"Fin.Return","I1106",{"$f":"Fin.Return!I1233","v":0}]
[{"$f":"'Standing Data'!$D$15","v":{"$error":"#N/A"}},{"$f":"'Standing Data'!$F$15","v":0},{"$f":"'Standing Data'!$F$9","v":0},"Fin.Return","I1111",{"$f":"Fin.Return!I1238","v":0}]
[{"$f":"'Standing Data'!$D$15","v":{"$error":"#N/A"}},{"$f":"'Standing Data'!$F$15","v":0},{"$f":"'Standing Data'!$F$9","v":0},"Fin.Return","I1112",{"$f":"Fin.Return!I1239","v":0}]
[{"$f":"'Standing Data'!$D$15","v":{"$error":"#N/A"}},{"$f":"'Standing Data'!$F$15","v":0},{"$f":"'Standing Data'!$F$9","v":0},"Fin.Return","I1113",{"$f":"Fin.Return!I1240","v":0}]
[{"$f":"'Standing Data'!$D$15","v":{"$error":"#N/A"}},{"$f":"'Standing Data'!$F$15","v":0},{"$f":"'Standing Data'!$F$9","v":0},"Fin.Return","I1115",{"$f":"Fin.Return!I1242","v":0}]
[{"$f":"'Standing Data'!$D$15","v":{"$error":"#N/A"}},{"$f":"'Standing Data'!$F$15","v":0},{"$f":"'Standing Data'!$F$9","v":0},"Fin.Return","I1121",{"$f":"Fin.Return!I1248","v":0}]
[{"$f":"'Standing Data'!$D$15","v":{"$error":"#N/A"}},{"$f":"'Standing Data'!$F$15","v":0},{"$f":"'Standing Data'!$F$9","v":0},"Fin.Return","I1122",{"$f":"Fin.Return!I1249","v":0}]
[{"$f":"'Standing Data'!$D$15","v":{"$error":"#N/A"}},{"$f":"'Standing Data'!$F$15","v":0},{"$f":"'Standing Data'!$F$9","v":0},"Fin.Return","I1123",{"$f":"Fin.Return!I1250","v":0}]
[{"$f":"'Standing Data'!$D$15","v":{"$error":"#N/A"}},{"$f":"'Standing Data'!$F$15","v":0},{"$f":"'Standing Data'!$F$9","v":0},"Fin.Return","I1125",{"$f":"Fin.Return!I1252","v":0}]
[{"$f":"'Standing Data'!$D$15","v":{"$error":"#N/A"}},{"$f":"'Standing Data'!$F$15","v":0},{"$f":"'Standing Data'!$F$9","v":0},"Fin.Return","I1131",{"$f":"Fin.Return!I1258","v":0}]
[{"$f":"'Standing Data'!$D$15","v":{"$error":"#N/A"}},{"$f":"'Standing Data'!$F$15","v":0},{"$f":"'Standing Data'!$F$9","v":0},"Fin.Return","I1132",{"$f":"Fin.Return!I1259","v":0}]
[{"$f":"'Standing Data'!$D$15","v":{"$error":"#N/A"}},{"$f":"'Standing Data'!$F$15","v":0},{"$f":"'Standing Data'!$F$9","v":0},"Fin.Return","I1133",{"$f":"Fin.Return!I1260","v":0}]
[{"$f":"'Standing Data'!$D$15","v":{"$error":"#N/A"}},{"$f":"'Standing Data'!$F$15","v":0},{"$f":"'Standing Data'!$F$9","v":0},"Fin.Return","I1135",{"$f":"Fin.Return!I1262","v":0}]
[{"$f":"'Standing Data'!$D$15","v":{"$error":"#N/A"}},{"$f":"'Standing Data'!$F$15","v":0},{"$f":"'Standing Data'!$F$9","v":0},"Fin.Return","I1140",{"$f":"Fin.Return!I1267","v":0}]
[{"$f":"'Standing Data'!$D$15","v":{"$error":"#N/A"}},{"$f":"'Standing Data'!$F$15","v":0},{"$f":"'Standing Data'!$F$9","v":0},"Fin.Return","I1141",{"$f":"Fin.Return!I1268","v":0}]
[{"$f":"'Standing Data'!$D$15","v":{"$error":"#N/A"}},{"$f":"'Standing Data'!$F$15","v":0},{"$f":"'Standing Data'!$F$9","v":0},"Fin.Return","I1142",{"$f":"Fin.Return!I1269","v":0}]
[{"$f":"'Standing Data'!$D$15","v":{"$error":"#N/A"}},{"$f":"'Standing Data'!$F$15","v":0},{"$f":"'Standing Data'!$F$9","v":0},"Fin.Return","I1144",{"$f":"Fin.Return!I1271","v":0}]
[{"$f":"'Standing Data'!$D$15","v":{"$error":"#N/A"}},{"$f":"'Standing Data'!$F$15","v":0},{"$f":"'Standing Data'!$F$9","v":0},"Fin.Return","I1149",{"$f":"Fin.Return!#REF!","v":{"$error":"#REF!"}}]
[{"$f":"'Standing Data'!$D$15","v":{"$error":"#N/A"}},{"$f":"'Standing Data'!$F$15","v":0},{"$f":"'Standing Data'!$F$9","v":0},"Fin.Return","I1150",{"$f":"Fin.Return!#REF!","v":{"$error":"#REF!"}}]
[{"$f":"'Standing Data'!$D$15","v":{"$error":"#N/A"}},{"$f":"'Standing Data'!$F$15","v":0},{"$f":"'Standing Data'!$F$9","v":0},"Fin.Return","I1151",{"$f":"Fin.Return!#REF!","v":{"$error":"#REF!"}}]
[{"$f":"'Standing Data'!$D$15","v":{"$error":"#N/A"}},{"$f":"'Standing Data'!$F$15","v":0},{"$f":"'Standing Data'!$F$9","v":0},"Fin.Return","I1153",{"$f":"Fin.Return!#REF!","v":{"$error":"#REF!"}}]
[{"$f":"'Standing Data'!$D$15","v":{"$error":"#N/A"}},{"$f":"'Standing Data'!$F$15","v":0},{"$f":"'Standing Data'!$F$9","v":0},"Fin.Return","I1237",{"$f":"Fin.Return!I1334","v":0}]
[{"$f":"'Standing Data'!$D$15","v":{"$error":"#N/A"}},{"$f":"'Standing Data'!$F$15","v":0},{"$f":"'Standing Data'!$F$9","v":0},"Fin.Return","I1238",{"$f":"Fin.Return!I1335","v":0}]
[{"$f":"'Standing Data'!$D$15","v":{"$error":"#N/A"}},{"$f":"'Standing Data'!$F$15","v":0},{"$f":"'Standing Data'!$F$9","v":0},"Fin.Return","I1239",{"$f":"Fin.Return!I1336","v":0}]
[{"$f":"'Standing Data'!$D$15","v":{"$error":"#N/A"}},{"$f":"'Standing Data'!$F$15","v":0},{"$f":"'Standing Data'!$F$9","v":0},"Fin.Return","I1240",{"$f":"Fin.Return!I1337","v":0}]
[{"$f":"'Standing Data'!$D$15","v":{"$error":"#N/A"}},{"$f":"'Standing Data'!$F$15","v":0},{"$f":"'Standing Data'!$F$9","v":0},"Fin.Return","I1241",{"$f":"Fin.Return!I1338","v":0}]
[{"$f":"'Standing Data'!$D$15","v":{"$error":"#N/A"}},{"$f":"'Standing Data'!$F$15","v":0},{"$f":"'Standing Data'!$F$9","v":0},"Fin.Return","I1242",{"$f":"Fin.Return!I1339","v":0}]
[{"$f":"'Standing Data'!$D$15","v":{"$error":"#N/A"}},{"$f":"'Standing Data'!$F$15","v":0},{"$f":"'Standing Data'!$F$9","v":0},"Fin.Return","I1243",{"$f":"Fin.Return!I1340","v":0}]
[{"$f":"'Standing Data'!$D$15","v":{"$error":"#N/A"}},{"$f":"'Standing Data'!$F$15","v":0},{"$f":"'Standing Data'!$F$9","v":0},"Fin.Return","I1244",{"$f":"Fin.Return!I1341","v":0}]
[{"$f":"'Standing Data'!$D$15","v":{"$error":"#N/A"}},{"$f":"'Standing Data'!$F$15","v":0},{"$f":"'Standing Data'!$F$9","v":0},"Fin.Return","I1245",{"$f":"Fin.Return!I1342","v":0}]
[{"$f":"'Standing Data'!$D$15","v":{"$error":"#N/A"}},{"$f":"'Standing Data'!$F$15","v":0},{"$f":"'Standing Data'!$F$9","v":0},"Fin.Return","I1246",{"$f":"Fin.Return!I1343","v":0}]
[{"$f":"'Standing Data'!$D$15","v":{"$error":"#N/A"}},{"$f":"'Standing Data'!$F$15","v":0},{"$f":"'Standing Data'!$F$9","v":0},"Fin.Return","I1247",{"$f":"Fin.Return!I1344","v":0}]
[{"$f":"'Standing Data'!$D$15","v":{"$error":"#N/A"}},{"$f":"'Standing Data'!$F$15","v":0},{"$f":"'Standing Data'!$F$9","v":0},"Fin.Return","I1248",{"$f":"Fin.Return!I1345","v":0}]
[{"$f":"'Standing Data'!$D$15","v":{"$error":"#N/A"}},{"$f":"'Standing Data'!$F$15","v":0},{"$f":"'Standing Data'!$F$9","v":0},"Fin.Return","I1249",{"$f":"Fin.Return!I1346","v":0}]
[{"$f":"'Standing Data'!$D$15","v":{"$error":"#N/A"}},{"$f":"'Standing Data'!$F$15","v":0},{"$f":"'Standing Data'!$F$9","v":0},"Fin.Return","I1250",{"$f":"Fin.Return!I1347","v":0}]
[{"$f":"'Standing Data'!$D$15","v":{"$error":"#N/A"}},{"$f":"'Standing Data'!$F$15","v":0},{"$f":"'Standing Data'!$F$9","v":0},"Fin.Return","I1252",{"$f":"Fin.Return!I1349","v":0}]
[{"$f":"'Standing Data'!$D$15","v":{"$error":"#N/A"}},{"$f":"'Standing Data'!$F$15","v":0},{"$f":"'Standing Data'!$F$9","v":0},"Fin.Return","I1257",{"$f":"Fin.Return!I1354","v":0}]
[{"$f":"'Standing Data'!$D$15","v":{"$error":"#N/A"}},{"$f":"'Standing Data'!$F$15","v":0},{"$f":"'Standing Data'!$F$9","v":0},"Fin.Return","I1258",{"$f":"Fin.Return!I1355","v":0}]
[{"$f":"'Standing Data'!$D$15","v":{"$error":"#N/A"}},{"$f":"'Standing Data'!$F$15","v":0},{"$f":"'Standing Data'!$F$9","v":0},"Fin.Return","I1259",{"$f":"Fin.Return!I1356","v":0}]
[{"$f":"'Standing Data'!$D$15","v":{"$error":"#N/A"}},{"$f":"'Standing Data'!$F$15","v":0},{"$f":"'Standing Data'!$F$9","v":0},"Fin.Return","I1260",{"$f":"Fin.Return!I1357","v":0}]
[{"$f":"'Standing Data'!$D$15","v":{"$error":"#N/A"}},{"$f":"'Standing Data'!$F$15","v":0},{"$f":"'Standing Data'!$F$9","v":0},"Fin.Return","I1261",{"$f":"Fin.Return!I1358","v":0}]
[{"$f":"'Standing Data'!$D$15","v":{"$error":"#N/A"}},{"$f":"'Standing Data'!$F$15","v":0},{"$f":"'Standing Data'!$F$9","v":0},"Fin.Return","I1262",{"$f":"Fin.Return!I1359","v":0}]
[{"$f":"'Standing Data'!$D$15","v":{"$error":"#N/A"}},{"$f":"'Standing Data'!$F$15","v":0},{"$f":"'Standing Data'!$F$9","v":0},"Fin.Return","I1263",{"$f":"Fin.Return!I1360","v":0}]
[{"$f":"'Standing Data'!$D$15","v":{"$error":"#N/A"}},{"$f":"'Standing Data'!$F$15","v":0},{"$f":"'Standing Data'!$F$9","v":0},"Fin.Return","I1264",{"$f":"Fin.Return!I1361","v":0}]
[{"$f":"'Standing Data'!$D$15","v":{"$error":"#N/A"}},{"$f":"'Standing Data'!$F$15","v":0},{"$f":"'Standing Data'!$F$9","v":0},"Fin.Return","I1265",{"$f":"Fin.Return!I1362","v":0}]
[{"$f":"'Standing Data'!$D$15","v":{"$error":"#N/A"}},{"$f":"'Standing Data'!$F$15","v":0},{"$f":"'Standing Data'!$F$9","v":0},"Fin.Return","I1266",{"$f":"Fin.Return!I1363","v":0}]
[{"$f":"'Standing Data'!$D$15","v":{"$error":"#N/A"}},{"$f":"'Standing Data'!$F$15","v":0},{"$f":"'Standing Data'!$F$9","v":0},"Fin.Return","I1267",{"$f":"Fin.Return!I1364","v":0}]
[{"$f":"'Standing Data'!$D$15","v":{"$error":"#N/A"}},{"$f":"'Standing Data'!$F$15","v":0},{"$f":"'Standing Data'!$F$9","v":0},"Fin.Return","I1268",{"$f":"Fin.Return!I1365","v":0}]
[{"$f":"'Standing Data'!$D$15","v":{"$error":"#N/A"}},{"$f":"'Standing Data'!$F$15","v":0},{"$f":"'Standing Data'!$F$9","v":0},"Fin.Return","J18",{"$f":"Fin.Return!J20","v":0}]
[{"$f":"'Standing Data'!$D$15","v":{"$error":"#N/A"}},{"$f":"'Standing Data'!$F$15","v":0},{"$f":"'Standing Data'!$F$9","v":0},"Fin.Return","J19",{"$f":"Fin.Return!J21","v":0}]
[{"$f":"'Standing Data'!$D$15","v":{"$error":"#N/A"}},{"$f":"'Standing Data'!$F$15","v":0},{"$f":"'Standing Data'!$F$9","v":0},"Fin.Return","J20",{"$f":"Fin.Return!J22","v":0}]
[{"$f":"'Standing Data'!$D$15","v":{"$error":"#N/A"}},{"$f":"'Standing Data'!$F$15","v":0},{"$f":"'Standing Data'!$F$9","v":0},"Fin.Return","J21",{"$f":"Fin.Return!J23","v":0}]
[{"$f":"'Standing Data'!$D$15","v":{"$error":"#N/A"}},{"$f":"'Standing Data'!$F$15","v":0},{"$f":"'Standing Data'!$F$9","v":0},"Fin.Return","J23",{"$f":"Fin.Return!J25","v":0}]
[{"$f":"'Standing Data'!$D$15","v":{"$error":"#N/A"}},{"$f":"'Standing Data'!$F$15","v":0},{"$f":"'Standing Data'!$F$9","v":0},"Fin.Return","J24",{"$f":"Fin.Return!J26","v":0}]
[{"$f":"'Standing Data'!$D$15","v":{"$error":"#N/A"}},{"$f":"'Standing Data'!$F$15","v":0},{"$f":"'Standing Data'!$F$9","v":0},"Fin.Return","J26",{"$f":"Fin.Return!J28","v":0}]
[{"$f":"'Standing Data'!$D$15","v":{"$error":"#N/A"}},{"$f":"'Standing Data'!$F$15","v":0},{"$f":"'Standing Data'!$F$9","v":0},"Fin.Return","J29",{"$f":"Fin.Return!J31","v":0}]
[{"$f":"'Standing Data'!$D$15","v":{"$error":"#N/A"}},{"$f":"'Standing Data'!$F$15","v":0},{"$f":"'Standing Data'!$F$9","v":0},"Fin.Return","J30",{"$f":"Fin.Return!J32","v":0}]
[{"$f":"'Standing Data'!$D$15","v":{"$error":"#N/A"}},{"$f":"'Standing Data'!$F$15","v":0},{"$f":"'Standing Data'!$F$9","v":0},"Fin.Return","J31",{"$f":"Fin.Return!J33","v":0}]
[{"$f":"'Standing Data'!$D$15","v":{"$error":"#N/A"}},{"$f":"'Standing Data'!$F$15","v":0},{"$f":"'Standing Data'!$F$9","v":0},"Fin.Return","J33",{"$f":"Fin.Return!J35","v":0}]
[{"$f":"'Standing Data'!$D$15","v":{"$error":"#N/A"}},{"$f":"'Standing Data'!$F$15","v":0},{"$f":"'Standing Data'!$F$9","v":0},"Fin.Return","J34",{"$f":"Fin.Return!J36","v":0}]
[{"$f":"'Standing Data'!$D$15","v":{"$error":"#N/A"}},{"$f":"'Standing Data'!$F$15","v":0},{"$f":"'Standing Data'!$F$9","v":0},"Fin.Return","J35",{"$f":"Fin.Return!J37","v":0}]
[{"$f":"'Standing Data'!$D$15","v":{"$error":"#N/A"}},{"$f":"'Standing Data'!$F$15","v":0},{"$f":"'Standing Data'!$F$9","v":0},"Fin.Return","J37",{"$f":"Fin.Return!J39","v":0}]
[{"$f":"'Standing Data'!$D$15","v":{"$error":"#N/A"}},{"$f":"'Standing Data'!$F$15","v":0},{"$f":"'Standing Data'!$F$9","v":0},"Fin.Return","J38",{"$f":"Fin.Return!J40","v":0}]
[{"$f":"'Standing Data'!$D$15","v":{"$error":"#N/A"}},{"$f":"'Standing Data'!$F$15","v":0},{"$f":"'Standing Data'!$F$9","v":0},"Fin.Return","J39",{"$f":"Fin.Return!J41","v":0}]
[{"$f":"'Standing Data'!$D$15","v":{"$error":"#N/A"}},{"$f":"'Standing Data'!$F$15","v":0},{"$f":"'Standing Data'!$F$9","v":0},"Fin.Return","J41",{"$f":"Fin.Return!J43","v":0}]
[{"$f":"'Standing Data'!$D$15","v":{"$error":"#N/A"}},{"$f":"'Standing Data'!$F$15","v":0},{"$f":"'Standing Data'!$F$9","v":0},"Fin.Return","J44",{"$f":"Fin.Return!J46","v":0}]
[{"$f":"'Standing Data'!$D$15","v":{"$error":"#N/A"}},{"$f":"'Standing Data'!$F$15","v":0},{"$f":"'Standing Data'!$F$9","v":0},"Fin.Return","J45",{"$f":"Fin.Return!J47","v":0}]
[{"$f":"'Standing Data'!$D$15","v":{"$error":"#N/A"}},{"$f":"'Standing Data'!$F$15","v":0},{"$f":"'Standing Data'!$F$9","v":0},"Fin.Return","J46",{"$f":"Fin.Return!J48","v":0}]
[{"$f":"'Standing Data'!$D$15","v":{"$error":"#N/A"}},{"$f":"'Standing Data'!$F$15","v":0},{"$f":"'Standing Data'!$F$9","v":0},"Fin.Return","J48",{"$f":"Fin.Return!J50","v":0}]
[{"$f":"'Standing Data'!$D$15","v":{"$error":"#N/A"}},{"$f":"'Standing Data'!$F$15","v":0},{"$f":"'Standing Data'!$F$9","v":0},"Fin.Return","J50",{"$f":"Fin.Return!J52","v":0}]
[{"$f":"'Standing Data'!$D$15","v":{"$error":"#N/A"}},{"$f":"'Standing Data'!$F$15","v":0},{"$f":"'Standing Data'!$F$9","v":0},"Fin.Return","J51",{"$f":"Fin.Return!J53","v":0}]
[{"$f":"'Standing Data'!$D$15","v":{"$error":"#N/A"}},{"$f":"'Standing Data'!$F$15","v":0},{"$f":"'Standing Data'!$F$9","v":0},"Fin.Return","J52",{"$f":"Fin.Return!J54","v":0}]
[{"$f":"'Standing Data'!$D$15","v":{"$error":"#N/A"}},{"$f":"'Standing Data'!$F$15","v":0},{"$f":"'Standing Data'!$F$9","v":0},"Fin.Return","J54",{"$f":"Fin.Return!J56","v":0}]
[{"$f":"'Standing Data'!$D$15","v":{"$error":"#N/A"}},{"$f":"'Standing Data'!$F$15","v":0},{"$f":"'Standing Data'!$F$9","v":0},"Fin.Return","J400",{"$f":"Fin.Return!J414","v":0}]
[{"$f":"'Standing Data'!$D$15","v":{"$error":"#N/A"}},{"$f":"'Standing Data'!$F$15","v":0},{"$f":"'Standing Data'!$F$9","v":0},"Fin.Return","J468",{"$f":"Fin.Return!J482","v":0}]
[{"$f":"'Standing Data'!$D$15","v":{"$error":"#N/A"}},{"$f":"'Standing Data'!$F$15","v":0},{"$f":"'Standing Data'!$F$9","v":0},"Fin.Return","J469",{"$f":"Fin.Return!J483","v":0}]
[{"$f":"'Standing Data'!$D$15","v":{"$error":"#N/A"}},{"$f":"'Standing Data'!$F$15","v":0},{"$f":"'Standing Data'!$F$9","v":0},"Fin.Return","J470",{"$f":"Fin.Return!J484","v":0}]
[{"$f":"'Standing Data'!$D$15","v":{"$error":"#N/A"}},{"$f":"'Standing Data'!$F$15","v":0},{"$f":"'Standing Data'!$F$9","v":0},"Fin.Return","J471",{"$f":"Fin.Return!J485","v":0}]
[{"$f":"'Standing Data'!$D$15","v":{"$error":"#N/A"}},{"$f":"'Standing Data'!$F$15","v":0},{"$f":"'Standing Data'!$F$9","v":0},"Fin.Return","J472",{"$f":"Fin.Return!J486","v":0}]
[{"$f":"'Standing Data'!$D$15","v":{"$error":"#N/A"}},{"$f":"'Standing Data'!$F$15","v":0},{"$f":"'Standing Data'!$F$9","v":0},"Fin.Return","J473",{"$f":"Fin.Return!J487","v":0}]
[{"$f":"'Standing Data'!$D$15","v":{"$error":"#N/A"}},{"$f":"'Standing Data'!$F$15","v":0},{"$f":"'Standing Data'!$F$9","v":0},"Fin.Return","J474",{"$f":"Fin.Return!J488","v":0}]
[{"$f":"'Standing Data'!$D$15","v":{"$error":"#N/A"}},{"$f":"'Standing Data'!$F$15","v":0},{"$f":"'Standing Data'!$F$9","v":0},"Fin.Return","J475",{"$f":"Fin.Return!J489","v":0}]
[{"$f":"'Standing Data'!$D$15","v":{"$error":"#N/A"}},{"$f":"'Standing Data'!$F$15","v":0},{"$f":"'Standing Data'!$F$9","v":0},"Fin.Return","J477",{"$f":"Fin.Return!J491","v":0}]
[{"$f":"'Standing Data'!$D$15","v":{"$error":"#N/A"}},{"$f":"'Standing Data'!$F$15","v":0},{"$f":"'Standing Data'!$F$9","v":0},"Fin.Return","J480",{"$f":"Fin.Return!J494","v":0}]
[{"$f":"'Standing Data'!$D$15","v":{"$error":"#N/A"}},{"$f":"'Standing Data'!$F$15","v":0},{"$f":"'Standing Data'!$F$9","v":0},"Fin.Return","J481",{"$f":"Fin.Return!J495","v":0}]
[{"$f":"'Standing Data'!$D$15","v":{"$error":"#N/A"}},{"$f":"'Standing Data'!$F$15","v":0},{"$f":"'Standing Data'!$F$9","v":0},"Fin.Return","J482",{"$f":"Fin.Return!J496","v":0}]
[{"$f":"'Standing Data'!$D$15","v":{"$error":"#N/A"}},{"$f":"'Standing Data'!$F$15","v":0},{"$f":"'Standing Data'!$F$9","v":0},"Fin.Return","J483",{"$f":"Fin.Return!J497","v":0}]
[{"$f":"'Standing Data'!$D$15","v":{"$error":"#N/A"}},{"$f":"'Standing Data'!$F$15","v":0},{"$f":"'Standing Data'!$F$9","v":0},"Fin.Return","J484",{"$f":"Fin.Return!J498","v":0}]
[{"$f":"'Standing Data'!$D$15","v":{"$error":"#N/A"}},{"$f":"'Standing Data'!$F$15","v":0},{"$f":"'Standing Data'!$F$9","v":0},"Fin.Return","J486",{"$f":"Fin.Return!J500","v":0}]
[{"$f":"'Standing Data'!$D$15","v":{"$error":"#N/A"}},{"$f":"'Standing Data'!$F$15","v":0},{"$f":"'Standing Data'!$F$9","v":0},"Fin.Return","J489",{"$f":"Fin.Return!J503","v":0}]
[{"$f":"'Standing Data'!$D$15","v":{"$error":"#N/A"}},{"$f":"'Standing Data'!$F$15","v":0},{"$f":"'Standing Data'!$F$9","v":0},"Fin.Return","J490",{"$f":"Fin.Return!J504","v":0}]
[{"$f":"'Standing Data'!$D$15","v":{"$error":"#N/A"}},{"$f":"'Standing Data'!$F$15","v":0},{"$f":"'Standing Data'!$F$9","v":0},"Fin.Return","J491",{"$f":"Fin.Return!J505","v":0}]
[{"$f":"'Standing Data'!$D$15","v":{"$error":"#N/A"}},{"$f":"'Standing Data'!$F$15","v":0},{"$f":"'Standing Data'!$F$9","v":0},"Fin.Return","J493",{"$f":"Fin.Return!J507","v":0}]
[{"$f":"'Standing Data'!$D$15","v":{"$error":"#N/A"}},{"$f":"'Standing Data'!$F$15","v":0},{"$f":"'Standing Data'!$F$9","v":0},"Fin.Return","J496",{"$f":"Fin.Return!J510","v":0}]
[{"$f":"'Standing Data'!$D$15","v":{"$error":"#N/A"}},{"$f":"'Standing Data'!$F$15","v":0},{"$f":"'Standing Data'!$F$9","v":0},"Fin.Return","J499",{"$f":"Fin.Return!J513","v":0}]
[{"$f":"'Standing Data'!$D$15","v":{"$error":"#N/A"}},{"$f":"'Standing Data'!$F$15","v":0},{"$f":"'Standing Data'!$F$9","v":0},"Fin.Return","J503",{"$f":"Fin.Return!J517","v":0}]
[{"$f":"'Standing Data'!$D$15","v":{"$error":"#N/A"}},{"$f":"'Standing Data'!$F$15","v":0},{"$f":"'Standing Data'!$F$9","v":0},"Fin.Return","J504",{"$f":"Fin.Return!J518","v":0}]
[{"$f":"'Standing Data'!$D$15","v":{"$error":"#N/A"}},{"$f":"'Standing Data'!$F$15","v":0},{"$f":"'Standing Data'!$F$9","v":0},"Fin.Return","J505",{"$f":"Fin.Return!J519","v":0}]
[{"$f":"'Standing Data'!$D$15","v":{"$error":"#N/A"}},{"$f":"'Standing Data'!$F$15","v":0},{"$f":"'Standing Data'!$F$9","v":0},"Fin.Return","J514",{"$f":"Fin.Return!J528","v":0}]
[{"$f":"'Standing Data'!$D$15","v":{"$error":"#N/A"}},{"$f":"'Standing Data'!$F$15","v":0},{"$f":"'Standing Data'!$F$9","v":0},"Fin.Return","J515",{"$f":"Fin.Return!J529","v":0}]
[{"$f":"'Standing Data'!$D$15","v":{"$error":"#N/A"}},{"$f":"'Standing Data'!$F$15","v":0},{"$f":"'Standing Data'!$F$9","v":0},"Fin.Return","J517",{"$f":"Fin.Return!J531","v":0}]
[{"$f":"'Standing Data'!$D$15","v":{"$error":"#N/A"}},{"$f":"'Standing Data'!$F$15","v":0},{"$f":"'Standing Data'!$F$9","v":0},"Fin.Return","J519",{"$f":"Fin.Return!J533","v":0}]
[{"$f":"'Standing Data'!$D$15","v":{"$error":"#N/A"}},{"$f":"'Standing Data'!$F$15","v":0},{"$f":"'Standing Data'!$F$9","v":0},"Fin.Return","J565",{"$f":"Fin.Return!J579","v":0}]
[{"$f":"'Standing Data'!$D$15","v":{"$error":"#N/A"}},{"$f":"'Standing Data'!$F$15","v":0},{"$f":"'Standing Data'!$F$9","v":0},"Fin.Return","J566",{"$f":"Fin.Return!J580","v":0}]
[{"$f":"'Standing Data'!$D$15","v":{"$error":"#N/A"}},{"$f":"'Standing Data'!$F$15","v":0},{"$f":"'Standing Data'!$F$9","v":0},"Fin.Return","J567",{"$f":"Fin.Return!J581","v":0}]
[{"$f":"'Standing Data'!$D$15","v":{"$error":"#N/A"}},{"$f":"'Standing Data'!$F$15","v":0},{"$f":"'Standing Data'!$F$9","v":0},"Fin.Return","J568",{"$f":"Fin.Return!J582","v":0}]
[{"$f":"'Standing Data'!$D$15","v":{"$error":"#N/A"}},{"$f":"'Standing Data'!$F$15","v":0},{"$f":"'Standing Data'!$F$9","v":0},"Fin.Return","J569",{"$f":"Fin.Return!J583","v":0}]
[{"$f":"'Standing Data'!$D$15","v":{"$error":"#N/A"}},{"$f":"'Standing Data'!$F$15","v":0},{"$f":"'Standing Data'!$F$9","v":0},"Fin.Return","J570",{"$f":"Fin.Return!J584","v":0}]
[{"$f":"'Standing Data'!$D$15","v":{"$error":"#N/A"}},{"$f":"'Standing Data'!$F$15","v":0},{"$f":"'Standing Data'!$F$9","v":0},"Fin.Return","J571",{"$f":"Fin.Return!J585","v":0}]
[{"$f":"'Standing Data'!$D$15","v":{"$error":"#N/A"}},{"$f":"'Standing Data'!$F$15","v":0},{"$f":"'Standing Data'!$F$9","v":0},"Fin.Return","J572",{"$f":"Fin.Return!J586","v":0}]
[{"$f":"'Standing Data'!$D$15","v":{"$error":"#N/A"}},{"$f":"'Standing Data'!$F$15","v":0},{"$f":"'Standing Data'!$F$9","v":0},"Fin.Return","J573",{"$f":"Fin.Return!J587","v":0}]
[{"$f":"'Standing Data'!$D$15","v":{"$error":"#N/A"}},{"$f":"'Standing Data'!$F$15","v":0},{"$f":"'Standing Data'!$F$9","v":0},"Fin.Return","J575",{"$f":"Fin.Return!J589","v":0}]
[{"$f":"'Standing Data'!$D$15","v":{"$error":"#N/A"}},{"$f":"'Standing Data'!$F$15","v":0},{"$f":"'Standing Data'!$F$9","v":0},"Fin.Return","J630",{"$f":"Fin.Return!J644","v":0}]
[{"$f":"'Standing Data'!$D$15","v":{"$error":"#N/A"}},{"$f":"'Standing Data'!$F$15","v":0},{"$f":"'Standing Data'!$F$9","v":0},"Fin.Return","J631",{"$f":"Fin.Return!J645","v":0}]
[{"$f":"'Standing Data'!$D$15","v":{"$error":"#N/A"}},{"$f":"'Standing Data'!$F$15","v":0},{"$f":"'Standing Data'!$F$9","v":0},"Fin.Return","J632",{"$f":"Fin.Return!J646","v":0}]
[{"$f":"'Standing Data'!$D$15","v":{"$error":"#N/A"}},{"$f":"'Standing Data'!$F$15","v":0},{"$f":"'Standing Data'!$F$9","v":0},"Fin.Return","J633",{"$f":"Fin.Return!J647","v":0}]
[{"$f":"'Standing Data'!$D$15","v":{"$error":"#N/A"}},{"$f":"'Standing Data'!$F$15","v":0},{"$f":"'Standing Data'!$F$9","v":0},"Fin.Return","J634",{"$f":"Fin.Return!J648","v":0}]
[{"$f":"'Standing Data'!$D$15","v":{"$error":"#N/A"}},{"$f":"'Standing Data'!$F$15","v":0},{"$f":"'Standing Data'!$F$9","v":0},"Fin.Return","J635",{"$f":"Fin.Return!J649","v":0}]
[{"$f":"'Standing Data'!$D$15","v":{"$error":"#N/A"}},{"$f":"'Standing Data'!$F$15","v":0},{"$f":"'Standing Data'!$F$9","v":0},"Fin.Return","J636",{"$f":"Fin.Return!J650","v":0}]
[{"$f":"'Standing Data'!$D$15","v":{"$error":"#N/A"}},{"$f":"'Standing Data'!$F$15","v":0},{"$f":"'Standing Data'!$F$9","v":0},"Fin.Return","J637",{"$f":"Fin.Return!J651","v":0}]
[{"$f":"'Standing Data'!$D$15","v":{"$error":"#N/A"}},{"$f":"'Standing Data'!$F$15","v":0},{"$f":"'Standing Data'!$F$9","v":0},"Fin.Return","J638",{"$f":"Fin.Return!J652","v":0}]
[{"$f":"'Standing Data'!$D$15","v":{"$error":"#N/A"}},{"$f":"'Standing Data'!$F$15","v":0},{"$f":"'Standing Data'!$F$9","v":0},"Fin.Return","J640",{"$f":"Fin.Return!J654","v":0}]
[{"$f":"'Standing Data'!$D$15","v":{"$error":"#N/A"}},{"$f":"'Standing Data'!$F$15","v":0},{"$f":"'Standing Data'!$F$9","v":0},"Fin.Return","J745",{"$f":"Fin.Return!J759","v":0}]
[{"$f":"'Standing Data'!$D$15","v":{"$error":"#N/A"}},{"$f":"'Standing Data'!$F$15","v":0},{"$f":"'Standing Data'!$F$9","v":0},"Fin.Return","J746",{"$f":"Fin.Return!J760","v":0}]
[{"$f":"'Standing Data'!$D$15","v":{"$error":"#N/A"}},{"$f":"'Standing Data'!$F$15","v":0},{"$f":"'Standing Data'!$F$9","v":0},"Fin.Return","J747",{"$f":"Fin.Return!J761","v":0}]
[{"$f":"'Standing Data'!$D$15","v":{"$error":"#N/A"}},{"$f":"'Standing Data'!$F$15","v":0},{"$f":"'Standing Data'!$F$9","v":0},"Fin.Return","J748",{"$f":"Fin.Return!J762","v":0}]
[{"$f":"'Standing Data'!$D$15","v":{"$error":"#N/A"}},{"$f":"'Standing Data'!$F$15","v":0},{"$f":"'Standing Data'!$F$9","v":0},"Fin.Return","J750",{"$f":"Fin.Return!J764","v":0}]
[{"$f":"'Standing Data'!$D$15","v":{"$error":"#N/A"}},{"$f":"'Standing Data'!$F$15","v":0},{"$f":"'Standing Data'!$F$9","v":0},"Fin.Return","J755",{"$f":"Fin.Return!J769","v":0}]
[{"$f":"'Standing Data'!$D$15","v":{"$error":"#N/A"}},{"$f":"'Standing Data'!$F$15","v":0},{"$f":"'Standing Data'!$F$9","v":0},"Fin.Return","J756",{"$f":"Fin.Return!J770","v":0}]
[{"$f":"'Standing Data'!$D$15","v":{"$error":"#N/A"}},{"$f":"'Standing Data'!$F$15","v":0},{"$f":"'Standing Data'!$F$9","v":0},"Fin.Return","J757",{"$f":"Fin.Return!J771","v":0}]
[{"$f":"'Standing Data'!$D$15","v":{"$error":"#N/A"}},{"$f":"'Standing Data'!$F$15","v":0},{"$f":"'Standing Data'!$F$9","v":0},"Fin.Return","J759",{"$f":"Fin.Return!J773","v":0}]
[{"$f":"'Standing Data'!$D$15","v":{"$error":"#N/A"}},{"$f":"'Standing Data'!$F$15","v":0},{"$f":"'Standing Data'!$F$9","v":0},"Fin.Return","J816",{"$f":"Fin.Return!J939","v":0}]
[{"$f":"'Standing Data'!$D$15","v":{"$error":"#N/A"}},{"$f":"'Standing Data'!$F$15","v":0},{"$f":"'Standing Data'!$F$9","v":0},"Fin.Return","J817",{"$f":"Fin.Return!J940","v":0}]
[{"$f":"'Standing Data'!$D$15","v":{"$error":"#N/A"}},{"$f":"'Standing Data'!$F$15","v":0},{"$f":"'Standing Data'!$F$9","v":0},"Fin.Return","J818",{"$f":"Fin.Return!J941","v":0}]
[{"$f":"'Standing Data'!$D$15","v":{"$error":"#N/A"}},{"$f":"'Standing Data'!$F$15","v":0},{"$f":"'Standing Data'!$F$9","v":0},"Fin.Return","J819",{"$f":"Fin.Return!J942","v":0}]
[{"$f":"'Standing Data'!$D$15","v":{"$error":"#N/A"}},{"$f":"'Standing Data'!$F$15","v":0},{"$f":"'Standing Data'!$F$9","v":0},"Fin.Return","J820",{"$f":"Fin.Return!J943","v":0}]
[{"$f":"'Standing Data'!$D$15","v":{"$error":"#N/A"}},{"$f":"'Standing Data'!$F$15","v":0},{"$f":"'Standing Data'!$F$9","v":0},"Fin.Return","J821",{"$f":"Fin.Return!J944","v":0}]
[{"$f":"'Standing Data'!$D$15","v":{"$error":"#N/A"}},{"$f":"'Standing Data'!$F$15","v":0},{"$f":"'Standing Data'!$F$9","v":0},"Fin.Return","J823",{"$f":"Fin.Return!J946","v":0}]
[{"$f":"'Standing Data'!$D$15","v":{"$error":"#N/A"}},{"$f":"'Standing Data'!$F$15","v":0},{"$f":"'Standing Data'!$F$9","v":0},"Fin.Return","J850",{"$f":"Fin.Return!J975","v":0}]
[{"$f":"'Standing Data'!$D$15","v":{"$error":"#N/A"}},{"$f":"'Standing Data'!$F$15","v":0},{"$f":"'Standing Data'!$F$9","v":0},"Fin.Return","J851",{"$f":"Fin.Return!J976","v":0}]
[{"$f":"'Standing Data'!$D$15","v":{"$error":"#N/A"}},{"$f":"'Standing Data'!$F$15","v":0},{"$f":"'Standing Data'!$F$9","v":0},"Fin.Return","J852",{"$f":"Fin.Return!J977","v":0}]
[{"$f":"'Standing Data'!$D$15","v":{"$error":"#N/A"}},{"$f":"'Standing Data'!$F$15","v":0},{"$f":"'Standing Data'!$F$9","v":0},"Fin.Return","J854",{"$f":"Fin.Return!J979","v":0}]
[{"$f":"'Standing Data'!$D$15","v":{"$error":"#N/A"}},{"$f":"'Standing Data'!$F$15","v":0},{"$f":"'Standing Data'!$F$9","v":0},"Fin.Return","J857",{"$f":"Fin.Return!J982","v":0}]
[{"$f":"'Standing Data'!$D$15","v":{"$error":"#N/A"}},{"$f":"'Standing Data'!$F$15","v":0},{"$f":"'Standing Data'!$F$9","v":0},"Fin.Return","J858",{"$f":"Fin.Return!J983","v":0}]
[{"$f":"'Standing Data'!$D$15","v":{"$error":"#N/A"}},{"$f":"'Standing Data'!$F$15","v":0},{"$f":"'Standing Data'!$F$9","v":0},"Fin.Return","J860",{"$f":"Fin.Return!J985","v":0}]
[{"$f":"'Standing Data'!$D$15","v":{"$error":"#N/A"}},{"$f":"'Standing Data'!$F$15","v":0},{"$f":"'Standing Data'!$F$9","v":0},"Fin.Return","J862",{"$f":"Fin.Return!J987","v":0}]
[{"$f":"'Standing Data'!$D$15","v":{"$error":"#N/A"}},{"$f":"'Standing Data'!$F$15","v":0},{"$f":"'Standing Data'!$F$9","v":0},"Fin.Return","J865",{"$f":"Fin.Return!J990","v":0}]
[{"$f":"'Standing Data'!$D$15","v":{"$error":"#N/A"}},{"$f":"'Standing Data'!$F$15","v":0},{"$f":"'Standing Data'!$F$9","v":0},"Fin.Return","J866",{"$f":"Fin.Return!J991","v":0}]
[{"$f":"'Standing Data'!$D$15","v":{"$error":"#N/A"}},{"$f":"'Standing Data'!$F$15","v":0},{"$f":"'Standing Data'!$F$9","v":0},"Fin.Return","J867",{"$f":"Fin.Return!J992","v":0}]
[{"$f":"'Standing Data'!$D$15","v":{"$error":"#N/A"}},{"$f":"'Standing Data'!$F$15","v":0},{"$f":"'Standing Data'!$F$9","v":0},"Fin.Return","J868",{"$f":"Fin.Return!J993","v":0}]
[{"$f":"'Standing Data'!$D$15","v":{"$error":"#N/A"}},{"$f":"'Standing Data'!$F$15","v":0},{"$f":"'Standing Data'!$F$9","v":0},"Fin.Return","J869",{"$f":"Fin.Return!J994","v":0}]
[{"$f":"'Standing Data'!$D$15","v":{"$error":"#N/A"}},{"$f":"'Standing Data'!$F$15","v":0},{"$f":"'Standing Data'!$F$9","v":0},"Fin.Return","J870",{"$f":"Fin.Return!J995","v":0}]
[{"$f":"'Standing Data'!$D$15","v":{"$error":"#N/A"}},{"$f":"'Standing Data'!$F$15","v":0},{"$f":"'Standing Data'!$F$9","v":0},"Fin.Return","J871",{"$f":"Fin.Return!J996","v":0}]
[{"$f":"'Standing Data'!$D$15","v":{"$error":"#N/A"}},{"$f":"'Standing Data'!$F$15","v":0},{"$f":"'Standing Data'!$F$9","v":0},"Fin.Return","J872",{"$f":"Fin.Return!J997","v":0}]
[{"$f":"'Standing Data'!$D$15","v":{"$error":"#N/A"}},{"$f":"'Standing Data'!$F$15","v":0},{"$f":"'Standing Data'!$F$9","v":0},"Fin.Return","J873",{"$f":"Fin.Return!J998","v":0}]
[{"$f":"'Standing Data'!$D$15","v":{"$error":"#N/A"}},{"$f":"'Standing Data'!$F$15","v":0},{"$f":"'Standing Data'!$F$9","v":0},"Fin.Return","J874",{"$f":"Fin.Return!J999","v":0}]
[{"$f":"'Standing Data'!$D$15","v":{"$error":"#N/A"}},{"$f":"'Standing Data'!$F$15","v":0},{"$f":"'Standing Data'!$F$9","v":0},"Fin.Return","J876",{"$f":"Fin.Return!J1001","v":0}]
[{"$f":"'Standing Data'!$D$15","v":{"$error":"#N/A"}},{"$f":"'Standing Data'!$F$15","v":0},{"$f":"'Standing Data'!$F$9","v":0},"Fin.Return","J879",{"$f":"Fin.Return!J1004","v":0}]
[{"$f":"'Standing Data'!$D$15","v":{"$error":"#N/A"}},{"$f":"'Standing Data'!$F$15","v":0},{"$f":"'Standing Data'!$F$9","v":0},"Fin.Return","J880",{"$f":"Fin.Return!J1005","v":0}]
[{"$f":"'Standing Data'!$D$15","v":{"$error":"#N/A"}},{"$f":"'Standing Data'!$F$15","v":0},{"$f":"'Standing Data'!$F$9","v":0},"Fin.Return","J881",{"$f":"Fin.Return!J1006","v":0}]
[{"$f":"'Standing Data'!$D$15","v":{"$error":"#N/A"}},{"$f":"'Standing Data'!$F$15","v":0},{"$f":"'Standing Data'!$F$9","v":0},"Fin.Return","J882",{"$f":"Fin.Return!J1007","v":0}]
[{"$f":"'Standing Data'!$D$15","v":{"$error":"#N/A"}},{"$f":"'Standing Data'!$F$15","v":0},{"$f":"'Standing Data'!$F$9","v":0},"Fin.Return","J883",{"$f":"Fin.Return!J1008","v":0}]
[{"$f":"'Standing Data'!$D$15","v":{"$error":"#N/A"}},{"$f":"'Standing Data'!$F$15","v":0},{"$f":"'Standing Data'!$F$9","v":0},"Fin.Return","J884",{"$f":"Fin.Return!J1009","v":0}]
[{"$f":"'Standing Data'!$D$15","v":{"$error":"#N/A"}},{"$f":"'Standing Data'!$F$15","v":0},{"$f":"'Standing Data'!$F$9","v":0},"Fin.Return","J885",{"$f":"Fin.Return!J1010","v":0}]
[{"$f":"'Standing Data'!$D$15","v":{"$error":"#N/A"}},{"$f":"'Standing Data'!$F$15","v":0},{"$f":"'Standing Data'!$F$9","v":0},"Fin.Return","J887",{"$f":"Fin.Return!J1012","v":0}]
[{"$f":"'Standing Data'!$D$15","v":{"$error":"#N/A"}},{"$f":"'Standing Data'!$F$15","v":0},{"$f":"'Standing Data'!$F$9","v":0},"Fin.Return","J890",{"$f":"Fin.Return!J1015","v":0}]
[{"$f":"'Standing Data'!$D$15","v":{"$error":"#N/A"}},{"$f":"'Standing Data'!$F$15","v":0},{"$f":"'Standing Data'!$F$9","v":0},"Fin.Return","J891",{"$f":"Fin.Return!J1016","v":0}]
[{"$f":"'Standing Data'!$D$15","v":{"$error":"#N/A"}},{"$f":"'Standing Data'!$F$15","v":0},{"$f":"'Standing Data'!$F$9","v":0},"Fin.Return","J892",{"$f":"Fin.Return!J1017","v":0}]
[{"$f":"'Standing Data'!$D$15","v":{"$error":"#N/A"}},{"$f":"'Standing Data'!$F$15","v":0},{"$f":"'Standing Data'!$F$9","v":0},"Fin.Return","J893",{"$f":"Fin.Return!J1018","v":0}]
[{"$f":"'Standing Data'!$D$15","v":{"$error":"#N/A"}},{"$f":"'Standing Data'!$F$15","v":0},{"$f":"'Standing Data'!$F$9","v":0},"Fin.Return","J894",{"$f":"Fin.Return!J1019","v":0}]
[{"$f":"'Standing Data'!$D$15","v":{"$error":"#N/A"}},{"$f":"'Standing Data'!$F$15","v":0},{"$f":"'Standing Data'!$F$9","v":0},"Fin.Return","J895",{"$f":"Fin.Return!J1020","v":0}]
[{"$f":"'Standing Data'!$D$15","v":{"$error":"#N/A"}},{"$f":"'Standing Data'!$F$15","v":0},{"$f":"'Standing Data'!$F$9","v":0},"Fin.Return","J896",{"$f":"Fin.Return!J1021","v":0}]
[{"$f":"'Standing Data'!$D$15","v":{"$error":"#N/A"}},{"$f":"'Standing Data'!$F$15","v":0},{"$f":"'Standing Data'!$F$9","v":0},"Fin.Return","J897",{"$f":"Fin.Return!J1022","v":0}]
[{"$f":"'Standing Data'!$D$15","v":{"$error":"#N/A"}},{"$f":"'Standing Data'!$F$15","v":0},{"$f":"'Standing Data'!$F$9","v":0},"Fin.Return","J898",{"$f":"Fin.Return!J1023","v":0}]
[{"$f":"'Standing Data'!$D$15","v":{"$error":"#N/A"}},{"$f":"'Standing Data'!$F$15","v":0},{"$f":"'Standing Data'!$F$9","v":0},"Fin.Return","J899",{"$f":"Fin.Return!J1024","v":0}]
[{"$f":"'Standing Data'!$D$15","v":{"$error":"#N/A"}},{"$f":"'Standing Data'!$F$15","v":0},{"$f":"'Standing Data'!$F$9","v":0},"Fin.Return","J901",{"$f":"Fin.Return!J1026","v":0}]
[{"$f":"'Standing Data'!$D$15","v":{"$error":"#N/A"}},{"$f":"'Standing Data'!$F$15","v":0},{"$f":"'Standing Data'!$F$9","v":0},"Fin.Return","J908",{"$f":"Fin.Return!J1035","v":0}]
[{"$f":"'Standing Data'!$D$15","v":{"$error":"#N/A"}},{"$f":"'Standing Data'!$F$15","v":0},{"$f":"'Standing Data'!$F$9","v":0},"Fin.Return","J909",{"$f":"Fin.Return!J1036","v":0}]
[{"$f":"'Standing Data'!$D$15","v":{"$error":"#N/A"}},{"$f":"'Standing Data'!$F$15","v":0},{"$f":"'Standing Data'!$F$9","v":0},"Fin.Return","J910",{"$f":"Fin.Return!J1037","v":0}]
[{"$f":"'Standing Data'!$D$15","v":{"$error":"#N/A"}},{"$f":"'Standing Data'!$F$15","v":0},{"$f":"'Standing Data'!$F$9","v":0},"Fin.Return","J911",{"$f":"Fin.Return!J1038","v":0}]
[{"$f":"'Standing Data'!$D$15","v":{"$error":"#N/A"}},{"$f":"'Standing Data'!$F$15","v":0},{"$f":"'Standing Data'!$F$9","v":0},"Fin.Return","J912",{"$f":"Fin.Return!J1039","v":0}]
[{"$f":"'Standing Data'!$D$15","v":{"$error":"#N/A"}},{"$f":"'Standing Data'!$F$15","v":0},{"$f":"'Standing Data'!$F$9","v":0},"Fin.Return","J914",{"$f":"Fin.Return!J1041","v":0}]
[{"$f":"'Standing Data'!$D$15","v":{"$error":"#N/A"}},{"$f":"'Standing Data'!$F$15","v":0},{"$f":"'Standing Data'!$F$9","v":0},"Fin.Return","J913",{"$f":"Fin.Return!J1040","v":0}]
[{"$f":"'Standing Data'!$D$15","v":{"$error":"#N/A"}},{"$f":"'Standing Data'!$F$15","v":0},{"$f":"'Standing Data'!$F$9","v":0},"Fin.Return","J916",{"$f":"Fin.Return!J1043","v":0}]
[{"$f":"'Standing Data'!$D$15","v":{"$error":"#N/A"}},{"$f":"'Standing Data'!$F$15","v":0},{"$f":"'Standing Data'!$F$9","v":0},"Fin.Return","J917",{"$f":"Fin.Return!J1044","v":0}]
[{"$f":"'Standing Data'!$D$15","v":{"$error":"#N/A"}},{"$f":"'Standing Data'!$F$15","v":0},{"$f":"'Standing Data'!$F$9","v":0},"Fin.Return","J918",{"$f":"Fin.Return!J1045","v":0}]
[{"$f":"'Standing Data'!$D$15","v":{"$error":"#N/A"}},{"$f":"'Standing Data'!$F$15","v":0},{"$f":"'Standing Data'!$F$9","v":0},"Fin.Return","J919",{"$f":"Fin.Return!J1046","v":0}]
[{"$f":"'Standing Data'!$D$15","v":{"$error":"#N/A"}},{"$f":"'Standing Data'!$F$15","v":0},{"$f":"'Standing Data'!$F$9","v":0},"Fin.Return","J920",{"$f":"Fin.Return!J1047","v":0}]
[{"$f":"'Standing Data'!$D$15","v":{"$error":"#N/A"}},{"$f":"'Standing Data'!$F$15","v":0},{"$f":"'Standing Data'!$F$9","v":0},"Fin.Return","J922",{"$f":"Fin.Return!J1049","v":0}]
[{"$f":"'Standing Data'!$D$15","v":{"$error":"#N/A"}},{"$f":"'Standing Data'!$F$15","v":0},{"$f":"'Standing Data'!$F$9","v":0},"Fin.Return","J924",{"$f":"Fin.Return!J1051","v":0}]
[{"$f":"'Standing Data'!$D$15","v":{"$error":"#N/A"}},{"$f":"'Standing Data'!$F$15","v":0},{"$f":"'Standing Data'!$F$9","v":0},"Fin.Return","J925",{"$f":"Fin.Return!J1052","v":0}]
[{"$f":"'Standing Data'!$D$15","v":{"$error":"#N/A"}},{"$f":"'Standing Data'!$F$15","v":0},{"$f":"'Standing Data'!$F$9","v":0},"Fin.Return","J926",{"$f":"Fin.Return!J1053","v":0}]
[{"$f":"'Standing Data'!$D$15","v":{"$error":"#N/A"}},{"$f":"'Standing Data'!$F$15","v":0},{"$f":"'Standing Data'!$F$9","v":0},"Fin.Return","J927",{"$f":"Fin.Return!J1054","v":0}]
[{"$f":"'Standing Data'!$D$15","v":{"$error":"#N/A"}},{"$f":"'Standing Data'!$F$15","v":0},{"$f":"'Standing Data'!$F$9","v":0},"Fin.Return","J928",{"$f":"Fin.Return!J1055","v":0}]
[{"$f":"'Standing Data'!$D$15","v":{"$error":"#N/A"}},{"$f":"'Standing Data'!$F$15","v":0},{"$f":"'Standing Data'!$F$9","v":0},"Fin.Return","J929",{"$f":"Fin.Return!J1056","v":0}]
[{"$f":"'Standing Data'!$D$15","v":{"$error":"#N/A"}},{"$f":"'Standing Data'!$F$15","v":0},{"$f":"'Standing Data'!$F$9","v":0},"Fin.Return","J930",{"$f":"Fin.Return!J1057","v":0}]
[{"$f":"'Standing Data'!$D$15","v":{"$error":"#N/A"}},{"$f":"'Standing Data'!$F$15","v":0},{"$f":"'Standing Data'!$F$9","v":0},"Fin.Return","J931",{"$f":"Fin.Return!J1058","v":0}]
[{"$f":"'Standing Data'!$D$15","v":{"$error":"#N/A"}},{"$f":"'Standing Data'!$F$15","v":0},{"$f":"'Standing Data'!$F$9","v":0},"Fin.Return","J933",{"$f":"Fin.Return!J1060","v":0}]
[{"$f":"'Standing Data'!$D$15","v":{"$error":"#N/A"}},{"$f":"'Standing Data'!$F$15","v":0},{"$f":"'Standing Data'!$F$9","v":0},"Fin.Return","J934",{"$f":"Fin.Return!J1061","v":0}]
[{"$f":"'Standing Data'!$D$15","v":{"$error":"#N/A"}},{"$f":"'Standing Data'!$F$15","v":0},{"$f":"'Standing Data'!$F$9","v":0},"Fin.Return","J935",{"$f":"Fin.Return!J1062","v":0}]
[{"$f":"'Standing Data'!$D$15","v":{"$error":"#N/A"}},{"$f":"'Standing Data'!$F$15","v":0},{"$f":"'Standing Data'!$F$9","v":0},"Fin.Return","J936",{"$f":"Fin.Return!J1063","v":0}]
[{"$f":"'Standing Data'!$D$15","v":{"$error":"#N/A"}},{"$f":"'Standing Data'!$F$15","v":0},{"$f":"'Standing Data'!$F$9","v":0},"Fin.Return","J938",{"$f":"Fin.Return!J1065","v":0}]
[{"$f":"'Standing Data'!$D$15","v":{"$error":"#N/A"}},{"$f":"'Standing Data'!$F$15","v":0},{"$f":"'Standing Data'!$F$9","v":0},"Fin.Return","J940",{"$f":"Fin.Return!J1067","v":0}]
[{"$f":"'Standing Data'!$D$15","v":{"$error":"#N/A"}},{"$f":"'Standing Data'!$F$15","v":0},{"$f":"'Standing Data'!$F$9","v":0},"Fin.Return","J942",{"$f":"Fin.Return!J1069","v":0}]
[{"$f":"'Standing Data'!$D$15","v":{"$error":"#N/A"}},{"$f":"'Standing Data'!$F$15","v":0},{"$f":"'Standing Data'!$F$9","v":0},"Fin.Return","J1009",{"$f":"Fin.Return!J1136","v":0}]
[{"$f":"'Standing Data'!$D$15","v":{"$error":"#N/A"}},{"$f":"'Standing Data'!$F$15","v":0},{"$f":"'Standing Data'!$F$9","v":0},"Fin.Return","J1010",{"$f":"Fin.Return!J1137","v":0}]
[{"$f":"'Standing Data'!$D$15","v":{"$error":"#N/A"}},{"$f":"'Standing Data'!$F$15","v":0},{"$f":"'Standing Data'!$F$9","v":0},"Fin.Return","J1011",{"$f":"Fin.Return!J1138","v":0}]
[{"$f":"'Standing Data'!$D$15","v":{"$error":"#N/A"}},{"$f":"'Standing Data'!$F$15","v":0},{"$f":"'Standing Data'!$F$9","v":0},"Fin.Return","J1013",{"$f":"Fin.Return!J1140","v":0}]
[{"$f":"'Standing Data'!$D$15","v":{"$error":"#N/A"}},{"$f":"'Standing Data'!$F$15","v":0},{"$f":"'Standing Data'!$F$9","v":0},"Fin.Return","J1014",{"$f":"Fin.Return!J1141","v":0}]
[{"$f":"'Standing Data'!$D$15","v":{"$error":"#N/A"}},{"$f":"'Standing Data'!$F$15","v":0},{"$f":"'Standing Data'!$F$9","v":0},"Fin.Return","J1015",{"$f":"Fin.Return!J1142","v":0}]
[{"$f":"'Standing Data'!$D$15","v":{"$error":"#N/A"}},{"$f":"'Standing Data'!$F$15","v":0},{"$f":"'Standing Data'!$F$9","v":0},"Fin.Return","J1017",{"$f":"Fin.Return!J1144","v":0}]
[{"$f":"'Standing Data'!$D$15","v":{"$error":"#N/A"}},{"$f":"'Standing Data'!$F$15","v":0},{"$f":"'Standing Data'!$F$9","v":0},"Fin.Return","J1018",{"$f":"Fin.Return!J1145","v":0}]
[{"$f":"'Standing Data'!$D$15","v":{"$error":"#N/A"}},{"$f":"'Standing Data'!$F$15","v":0},{"$f":"'Standing Data'!$F$9","v":0},"Fin.Return","J1019",{"$f":"Fin.Return!J1146","v":0}]
[{"$f":"'Standing Data'!$D$15","v":{"$error":"#N/A"}},{"$f":"'Standing Data'!$F$15","v":0},{"$f":"'Standing Data'!$F$9","v":0},"Fin.Return","J1021",{"$f":"Fin.Return!J1148","v":0}]
[{"$f":"'Standing Data'!$D$15","v":{"$error":"#N/A"}},{"$f":"'Standing Data'!$F$15","v":0},{"$f":"'Standing Data'!$F$9","v":0},"Fin.Return","J1022",{"$f":"Fin.Return!J1149","v":0}]
[{"$f":"'Standing Data'!$D$15","v":{"$error":"#N/A"}},{"$f":"'Standing Data'!$F$15","v":0},{"$f":"'Standing Data'!$F$9","v":0},"Fin.Return","J1024",{"$f":"Fin.Return!J1151","v":0}]
[{"$f":"'Standing Data'!$D$15","v":{"$error":"#N/A"}},{"$f":"'Standing Data'!$F$15","v":0},{"$f":"'Standing Data'!$F$9","v":0},"Fin.Return","J1082",{"$f":"Fin.Return!J1209","v":0}]
[{"$f":"'Standing Data'!$D$15","v":{"$error":"#N/A"}},{"$f":"'Standing Data'!$F$15","v":0},{"$f":"'Standing Data'!$F$9","v":0},"Fin.Return","J1083",{"$f":"Fin.Return!J1210","v":0}]
[{"$f":"'Standing Data'!$D$15","v":{"$error":"#N/A"}},{"$f":"'Standing Data'!$F$15","v":0},{"$f":"'Standing Data'!$F$9","v":0},"Fin.Return","J1084",{"$f":"Fin.Return!J1211","v":0}]
[{"$f":"'Standing Data'!$D$15","v":{"$error":"#N/A"}},{"$f":"'Standing Data'!$F$15","v":0},{"$f":"'Standing Data'!$F$9","v":0},"Fin.Return","J1086",{"$f":"Fin.Return!J1213","v":0}]
[{"$f":"'Standing Data'!$D$15","v":{"$error":"#N/A"}},{"$f":"'Standing Data'!$F$15","v":0},{"$f":"'Standing Data'!$F$9","v":0},"Fin.Return","J1087",{"$f":"Fin.Return!J1214","v":0}]
[{"$f":"'Standing Data'!$D$15","v":{"$error":"#N/A"}},{"$f":"'Standing Data'!$F$15","v":0},{"$f":"'Standing Data'!$F$9","v":0},"Fin.Return","J1088",{"$f":"Fin.Return!J1215","v":0}]
[{"$f":"'Standing Data'!$D$15","v":{"$error":"#N/A"}},{"$f":"'Standing Data'!$F$15","v":0},{"$f":"'Standing Data'!$F$9","v":0},"Fin.Return","J1090",{"$f":"Fin.Return!J1217","v":0}]
[{"$f":"'Standing Data'!$D$15","v":{"$error":"#N/A"}},{"$f":"'Standing Data'!$F$15","v":0},{"$f":"'Standing Data'!$F$9","v":0},"Fin.Return","J1091",{"$f":"Fin.Return!J1218","v":0}]
[{"$f":"'Standing Data'!$D$15","v":{"$error":"#N/A"}},{"$f":"'Standing Data'!$F$15","v":0},{"$f":"'Standing Data'!$F$9","v":0},"Fin.Return","J1092",{"$f":"Fin.Return!J1219","v":0}]
[{"$f":"'Standing Data'!$D$15","v":{"$error":"#N/A"}},{"$f":"'Standing Data'!$F$15","v":0},{"$f":"'Standing Data'!$F$9","v":0},"Fin.Return","J1094",{"$f":"Fin.Return!J1221","v":0}]
[{"$f":"'Standing Data'!$D$15","v":{"$error":"#N/A"}},{"$f":"'Standing Data'!$F$15","v":0},{"$f":"'Standing Data'!$F$9","v":0},"Fin.Return","J1095",{"$f":"Fin.Return!J1222","v":0}]
[{"$f":"'Standing Data'!$D$15","v":{"$error":"#N/A"}},{"$f":"'Standing Data'!$F$15","v":0},{"$f":"'Standing Data'!$F$9","v":0},"Fin.Return","J1097",{"$f":"Fin.Return!J1224","v":0}]
[{"$f":"'Standing Data'!$D$15","v":{"$error":"#N/A"}},{"$f":"'Standing Data'!$F$15","v":0},{"$f":"'Standing Data'!$F$9","v":0},"Fin.Return","J1111",{"$f":"Fin.Return!J1238","v":0}]
[{"$f":"'Standing Data'!$D$15","v":{"$error":"#N/A"}},{"$f":"'Standing Data'!$F$15","v":0},{"$f":"'Standing Data'!$F$9","v":0},"Fin.Return","J1112",{"$f":"Fin.Return!J1239","v":0}]
[{"$f":"'Standing Data'!$D$15","v":{"$error":"#N/A"}},{"$f":"'Standing Data'!$F$15","v":0},{"$f":"'Standing Data'!$F$9","v":0},"Fin.Return","J1113",{"$f":"Fin.Return!J1240","v":0}]
[{"$f":"'Standing Data'!$D$15","v":{"$error":"#N/A"}},{"$f":"'Standing Data'!$F$15","v":0},{"$f":"'Standing Data'!$F$9","v":0},"Fin.Return","J1115",{"$f":"Fin.Return!J1242","v":0}]
[{"$f":"'Standing Data'!$D$15","v":{"$error":"#N/A"}},{"$f":"'Standing Data'!$F$15","v":0},{"$f":"'Standing Data'!$F$9","v":0},"Fin.Return","J1131",{"$f":"Fin.Return!J1258","v":0}]
[{"$f":"'Standing Data'!$D$15","v":{"$error":"#N/A"}},{"$f":"'Standing Data'!$F$15","v":0},{"$f":"'Standing Data'!$F$9","v":0},"Fin.Return","J1132",{"$f":"Fin.Return!J1259","v":0}]
[{"$f":"'Standing Data'!$D$15","v":{"$error":"#N/A"}},{"$f":"'Standing Data'!$F$15","v":0},{"$f":"'Standing Data'!$F$9","v":0},"Fin.Return","J1133",{"$f":"Fin.Return!J1260","v":0}]
[{"$f":"'Standing Data'!$D$15","v":{"$error":"#N/A"}},{"$f":"'Standing Data'!$F$15","v":0},{"$f":"'Standing Data'!$F$9","v":0},"Fin.Return","J1135",{"$f":"Fin.Return!J1262","v":0}]
[{"$f":"'Standing Data'!$D$15","v":{"$error":"#N/A"}},{"$f":"'Standing Data'!$F$15","v":0},{"$f":"'Standing Data'!$F$9","v":0},"Fin.Return","J1237",{"$f":"Fin.Return!J1334","v":0}]
[{"$f":"'Standing Data'!$D$15","v":{"$error":"#N/A"}},{"$f":"'Standing Data'!$F$15","v":0},{"$f":"'Standing Data'!$F$9","v":0},"Fin.Return","J1238",{"$f":"Fin.Return!J1335","v":0}]
[{"$f":"'Standing Data'!$D$15","v":{"$error":"#N/A"}},{"$f":"'Standing Data'!$F$15","v":0},{"$f":"'Standing Data'!$F$9","v":0},"Fin.Return","J1239",{"$f":"Fin.Return!J1336","v":0}]
[{"$f":"'Standing Data'!$D$15","v":{"$error":"#N/A"}},{"$f":"'Standing Data'!$F$15","v":0},{"$f":"'Standing Data'!$F$9","v":0},"Fin.Return","J1240",{"$f":"Fin.Return!J1337","v":0}]
[{"$f":"'Standing Data'!$D$15","v":{"$error":"#N/A"}},{"$f":"'Standing Data'!$F$15","v":0},{"$f":"'Standing Data'!$F$9","v":0},"Fin.Return","J1241",{"$f":"Fin.Return!J1338","v":0}]
[{"$f":"'Standing Data'!$D$15","v":{"$error":"#N/A"}},{"$f":"'Standing Data'!$F$15","v":0},{"$f":"'Standing Data'!$F$9","v":0},"Fin.Return","J1242",{"$f":"Fin.Return!J1339","v":0}]
[{"$f":"'Standing Data'!$D$15","v":{"$error":"#N/A"}},{"$f":"'Standing Data'!$F$15","v":0},{"$f":"'Standing Data'!$F$9","v":0},"Fin.Return","J1243",{"$f":"Fin.Return!J1340","v":0}]
[{"$f":"'Standing Data'!$D$15","v":{"$error":"#N/A"}},{"$f":"'Standing Data'!$F$15","v":0},{"$f":"'Standing Data'!$F$9","v":0},"Fin.Return","J1244",{"$f":"Fin.Return!J1341","v":0}]
[{"$f":"'Standing Data'!$D$15","v":{"$error":"#N/A"}},{"$f":"'Standing Data'!$F$15","v":0},{"$f":"'Standing Data'!$F$9","v":0},"Fin.Return","J1245",{"$f":"Fin.Return!J1342","v":0}]
[{"$f":"'Standing Data'!$D$15","v":{"$error":"#N/A"}},{"$f":"'Standing Data'!$F$15","v":0},{"$f":"'Standing Data'!$F$9","v":0},"Fin.Return","J1246",{"$f":"Fin.Return!J1343","v":0}]
[{"$f":"'Standing Data'!$D$15","v":{"$error":"#N/A"}},{"$f":"'Standing Data'!$F$15","v":0},{"$f":"'Standing Data'!$F$9","v":0},"Fin.Return","J1247",{"$f":"Fin.Return!J1344","v":0}]
[{"$f":"'Standing Data'!$D$15","v":{"$error":"#N/A"}},{"$f":"'Standing Data'!$F$15","v":0},{"$f":"'Standing Data'!$F$9","v":0},"Fin.Return","J1248",{"$f":"Fin.Return!J1345","v":0}]
[{"$f":"'Standing Data'!$D$15","v":{"$error":"#N/A"}},{"$f":"'Standing Data'!$F$15","v":0},{"$f":"'Standing Data'!$F$9","v":0},"Fin.Return","J1249",{"$f":"Fin.Return!J1346","v":0}]
[{"$f":"'Standing Data'!$D$15","v":{"$error":"#N/A"}},{"$f":"'Standing Data'!$F$15","v":0},{"$f":"'Standing Data'!$F$9","v":0},"Fin.Return","J1250",{"$f":"Fin.Return!J1347","v":0}]
[{"$f":"'Standing Data'!$D$15","v":{"$error":"#N/A"}},{"$f":"'Standing Data'!$F$15","v":0},{"$f":"'Standing Data'!$F$9","v":0},"Fin.Return","J1252",{"$f":"Fin.Return!J1349","v":0}]
[{"$f":"'Standing Data'!$D$15","v":{"$error":"#N/A"}},{"$f":"'Standing Data'!$F$15","v":0},{"$f":"'Standing Data'!$F$9","v":0},"Fin.Return","K468",{"$f":"Fin.Return!K482","v":0}]
[{"$f":"'Standing Data'!$D$15","v":{"$error":"#N/A"}},{"$f":"'Standing Data'!$F$15","v":0},{"$f":"'Standing Data'!$F$9","v":0},"Fin.Return","K469",{"$f":"Fin.Return!K483","v":0}]
[{"$f":"'Standing Data'!$D$15","v":{"$error":"#N/A"}},{"$f":"'Standing Data'!$F$15","v":0},{"$f":"'Standing Data'!$F$9","v":0},"Fin.Return","K470",{"$f":"Fin.Return!K484","v":0}]
[{"$f":"'Standing Data'!$D$15","v":{"$error":"#N/A"}},{"$f":"'Standing Data'!$F$15","v":0},{"$f":"'Standing Data'!$F$9","v":0},"Fin.Return","K471",{"$f":"Fin.Return!K485","v":0}]
[{"$f":"'Standing Data'!$D$15","v":{"$error":"#N/A"}},{"$f":"'Standing Data'!$F$15","v":0},{"$f":"'Standing Data'!$F$9","v":0},"Fin.Return","K472",{"$f":"Fin.Return!K486","v":0}]
[{"$f":"'Standing Data'!$D$15","v":{"$error":"#N/A"}},{"$f":"'Standing Data'!$F$15","v":0},{"$f":"'Standing Data'!$F$9","v":0},"Fin.Return","K473",{"$f":"Fin.Return!K487","v":0}]
[{"$f":"'Standing Data'!$D$15","v":{"$error":"#N/A"}},{"$f":"'Standing Data'!$F$15","v":0},{"$f":"'Standing Data'!$F$9","v":0},"Fin.Return","K474",{"$f":"Fin.Return!K488","v":0}]
[{"$f":"'Standing Data'!$D$15","v":{"$error":"#N/A"}},{"$f":"'Standing Data'!$F$15","v":0},{"$f":"'Standing Data'!$F$9","v":0},"Fin.Return","K475",{"$f":"Fin.Return!K489","v":0}]
[{"$f":"'Standing Data'!$D$15","v":{"$error":"#N/A"}},{"$f":"'Standing Data'!$F$15","v":0},{"$f":"'Standing Data'!$F$9","v":0},"Fin.Return","K477",{"$f":"Fin.Return!K491","v":0}]
[{"$f":"'Standing Data'!$D$15","v":{"$error":"#N/A"}},{"$f":"'Standing Data'!$F$15","v":0},{"$f":"'Standing Data'!$F$9","v":0},"Fin.Return","K480",{"$f":"Fin.Return!K494","v":0}]
[{"$f":"'Standing Data'!$D$15","v":{"$error":"#N/A"}},{"$f":"'Standing Data'!$F$15","v":0},{"$f":"'Standing Data'!$F$9","v":0},"Fin.Return","K481",{"$f":"Fin.Return!K495","v":0}]
[{"$f":"'Standing Data'!$D$15","v":{"$error":"#N/A"}},{"$f":"'Standing Data'!$F$15","v":0},{"$f":"'Standing Data'!$F$9","v":0},"Fin.Return","K482",{"$f":"Fin.Return!K496","v":0}]
[{"$f":"'Standing Data'!$D$15","v":{"$error":"#N/A"}},{"$f":"'Standing Data'!$F$15","v":0},{"$f":"'Standing Data'!$F$9","v":0},"Fin.Return","K483",{"$f":"Fin.Return!K497","v":0}]
[{"$f":"'Standing Data'!$D$15","v":{"$error":"#N/A"}},{"$f":"'Standing Data'!$F$15","v":0},{"$f":"'Standing Data'!$F$9","v":0},"Fin.Return","K484",{"$f":"Fin.Return!K498","v":0}]
[{"$f":"'Standing Data'!$D$15","v":{"$error":"#N/A"}},{"$f":"'Standing Data'!$F$15","v":0},{"$f":"'Standing Data'!$F$9","v":0},"Fin.Return","K486",{"$f":"Fin.Return!K500","v":0}]
[{"$f":"'Standing Data'!$D$15","v":{"$error":"#N/A"}},{"$f":"'Standing Data'!$F$15","v":0},{"$f":"'Standing Data'!$F$9","v":0},"Fin.Return","K489",{"$f":"Fin.Return!K503","v":0}]
[{"$f":"'Standing Data'!$D$15","v":{"$error":"#N/A"}},{"$f":"'Standing Data'!$F$15","v":0},{"$f":"'Standing Data'!$F$9","v":0},"Fin.Return","K490",{"$f":"Fin.Return!K504","v":0}]
[{"$f":"'Standing Data'!$D$15","v":{"$error":"#N/A"}},{"$f":"'Standing Data'!$F$15","v":0},{"$f":"'Standing Data'!$F$9","v":0},"Fin.Return","K491",{"$f":"Fin.Return!K505","v":0}]
[{"$f":"'Standing Data'!$D$15","v":{"$error":"#N/A"}},{"$f":"'Standing Data'!$F$15","v":0},{"$f":"'Standing Data'!$F$9","v":0},"Fin.Return","K493",{"$f":"Fin.Return!K507","v":0}]
[{"$f":"'Standing Data'!$D$15","v":{"$error":"#N/A"}},{"$f":"'Standing Data'!$F$15","v":0},{"$f":"'Standing Data'!$F$9","v":0},"Fin.Return","K496",{"$f":"Fin.Return!K510","v":0}]
[{"$f":"'Standing Data'!$D$15","v":{"$error":"#N/A"}},{"$f":"'Standing Data'!$F$15","v":0},{"$f":"'Standing Data'!$F$9","v":0},"Fin.Return","K499",{"$f":"Fin.Return!K513","v":0}]
[{"$f":"'Standing Data'!$D$15","v":{"$error":"#N/A"}},{"$f":"'Standing Data'!$F$15","v":0},{"$f":"'Standing Data'!$F$9","v":0},"Fin.Return","K503",{"$f":"Fin.Return!K517","v":0}]
[{"$f":"'Standing Data'!$D$15","v":{"$error":"#N/A"}},{"$f":"'Standing Data'!$F$15","v":0},{"$f":"'Standing Data'!$F$9","v":0},"Fin.Return","K504",{"$f":"Fin.Return!K518","v":0}]
[{"$f":"'Standing Data'!$D$15","v":{"$error":"#N/A"}},{"$f":"'Standing Data'!$F$15","v":0},{"$f":"'Standing Data'!$F$9","v":0},"Fin.Return","K505",{"$f":"Fin.Return!K519","v":0}]
[{"$f":"'Standing Data'!$D$15","v":{"$error":"#N/A"}},{"$f":"'Standing Data'!$F$15","v":0},{"$f":"'Standing Data'!$F$9","v":0},"Fin.Return","K514",{"$f":"Fin.Return!K528","v":0}]
[{"$f":"'Standing Data'!$D$15","v":{"$error":"#N/A"}},{"$f":"'Standing Data'!$F$15","v":0},{"$f":"'Standing Data'!$F$9","v":0},"Fin.Return","K515",{"$f":"Fin.Return!K529","v":0}]
[{"$f":"'Standing Data'!$D$15","v":{"$error":"#N/A"}},{"$f":"'Standing Data'!$F$15","v":0},{"$f":"'Standing Data'!$F$9","v":0},"Fin.Return","K517",{"$f":"Fin.Return!K531","v":0}]
[{"$f":"'Standing Data'!$D$15","v":{"$error":"#N/A"}},{"$f":"'Standing Data'!$F$15","v":0},{"$f":"'Standing Data'!$F$9","v":0},"Fin.Return","K519",{"$f":"Fin.Return!K533","v":0}]
[{"$f":"'Standing Data'!$D$15","v":{"$error":"#N/A"}},{"$f":"'Standing Data'!$F$15","v":0},{"$f":"'Standing Data'!$F$9","v":0},"Fin.Return","K565",{"$f":"Fin.Return!K579","v":0}]
[{"$f":"'Standing Data'!$D$15","v":{"$error":"#N/A"}},{"$f":"'Standing Data'!$F$15","v":0},{"$f":"'Standing Data'!$F$9","v":0},"Fin.Return","K566",{"$f":"Fin.Return!K580","v":0}]
[{"$f":"'Standing Data'!$D$15","v":{"$error":"#N/A"}},{"$f":"'Standing Data'!$F$15","v":0},{"$f":"'Standing Data'!$F$9","v":0},"Fin.Return","K567",{"$f":"Fin.Return!K581","v":0}]
[{"$f":"'Standing Data'!$D$15","v":{"$error":"#N/A"}},{"$f":"'Standing Data'!$F$15","v":0},{"$f":"'Standing Data'!$F$9","v":0},"Fin.Return","K568",{"$f":"Fin.Return!K582","v":0}]
[{"$f":"'Standing Data'!$D$15","v":{"$error":"#N/A"}},{"$f":"'Standing Data'!$F$15","v":0},{"$f":"'Standing Data'!$F$9","v":0},"Fin.Return","K569",{"$f":"Fin.Return!K583","v":0}]
[{"$f":"'Standing Data'!$D$15","v":{"$error":"#N/A"}},{"$f":"'Standing Data'!$F$15","v":0},{"$f":"'Standing Data'!$F$9","v":0},"Fin.Return","K570",{"$f":"Fin.Return!K584","v":0}]
[{"$f":"'Standing Data'!$D$15","v":{"$error":"#N/A"}},{"$f":"'Standing Data'!$F$15","v":0},{"$f":"'Standing Data'!$F$9","v":0},"Fin.Return","K571",{"$f":"Fin.Return!K585","v":0}]
[{"$f":"'Standing Data'!$D$15","v":{"$error":"#N/A"}},{"$f":"'Standing Data'!$F$15","v":0},{"$f":"'Standing Data'!$F$9","v":0},"Fin.Return","K572",{"$f":"Fin.Return!K586","v":0}]
[{"$f":"'Standing Data'!$D$15","v":{"$error":"#N/A"}},{"$f":"'Standing Data'!$F$15","v":0},{"$f":"'Standing Data'!$F$9","v":0},"Fin.Return","K573",{"$f":"Fin.Return!K587","v":0}]
[{"$f":"'Standing Data'!$D$15","v":{"$error":"#N/A"}},{"$f":"'Standing Data'!$F$15","v":0},{"$f":"'Standing Data'!$F$9","v":0},"Fin.Return","K575",{"$f":"Fin.Return!K589","v":0}]
[{"$f":"'Standing Data'!$D$15","v":{"$error":"#N/A"}},{"$f":"'Standing Data'!$F$15","v":0},{"$f":"'Standing Data'!$F$9","v":0},"Fin.Return","K630",{"$f":"Fin.Return!K644","v":0}]
[{"$f":"'Standing Data'!$D$15","v":{"$error":"#N/A"}},{"$f":"'Standing Data'!$F$15","v":0},{"$f":"'Standing Data'!$F$9","v":0},"Fin.Return","K631",{"$f":"Fin.Return!K645","v":0}]
[{"$f":"'Standing Data'!$D$15","v":{"$error":"#N/A"}},{"$f":"'Standing Data'!$F$15","v":0},{"$f":"'Standing Data'!$F$9","v":0},"Fin.Return","K632",{"$f":"Fin.Return!K646","v":0}]
[{"$f":"'Standing Data'!$D$15","v":{"$error":"#N/A"}},{"$f":"'Standing Data'!$F$15","v":0},{"$f":"'Standing Data'!$F$9","v":0},"Fin.Return","K633",{"$f":"Fin.Return!K647","v":0}]
[{"$f":"'Standing Data'!$D$15","v":{"$error":"#N/A"}},{"$f":"'Standing Data'!$F$15","v":0},{"$f":"'Standing Data'!$F$9","v":0},"Fin.Return","K634",{"$f":"Fin.Return!K648","v":0}]
[{"$f":"'Standing Data'!$D$15","v":{"$error":"#N/A"}},{"$f":"'Standing Data'!$F$15","v":0},{"$f":"'Standing Data'!$F$9","v":0},"Fin.Return","K635",{"$f":"Fin.Return!K649","v":0}]
[{"$f":"'Standing Data'!$D$15","v":{"$error":"#N/A"}},{"$f":"'Standing Data'!$F$15","v":0},{"$f":"'Standing Data'!$F$9","v":0},"Fin.Return","K636",{"$f":"Fin.Return!K650","v":0}]
[{"$f":"'Standing Data'!$D$15","v":{"$error":"#N/A"}},{"$f":"'Standing Data'!$F$15","v":0},{"$f":"'Standing Data'!$F$9","v":0},"Fin.Return","K637",{"$f":"Fin.Return!K651","v":0}]
[{"$f":"'Standing Data'!$D$15","v":{"$error":"#N/A"}},{"$f":"'Standing Data'!$F$15","v":0},{"$f":"'Standing Data'!$F$9","v":0},"Fin.Return","K638",{"$f":"Fin.Return!K652","v":0}]
[{"$f":"'Standing Data'!$D$15","v":{"$error":"#N/A"}},{"$f":"'Standing Data'!$F$15","v":0},{"$f":"'Standing Data'!$F$9","v":0},"Fin.Return","K640",{"$f":"Fin.Return!K654","v":0}]
[{"$f":"'Standing Data'!$D$15","v":{"$error":"#N/A"}},{"$f":"'Standing Data'!$F$15","v":0},{"$f":"'Standing Data'!$F$9","v":0},"Fin.Return","K767",{"$f":"Fin.Return!K781","v":0}]
[{"$f":"'Standing Data'!$D$15","v":{"$error":"#N/A"}},{"$f":"'Standing Data'!$F$15","v":0},{"$f":"'Standing Data'!$F$9","v":0},"Fin.Return","K768",{"$f":"Fin.Return!K782","v":0}]
[{"$f":"'Standing Data'!$D$15","v":{"$error":"#N/A"}},{"$f":"'Standing Data'!$F$15","v":0},{"$f":"'Standing Data'!$F$9","v":0},"Fin.Return","K770",{"$f":"Fin.Return!K784","v":0}]
[{"$f":"'Standing Data'!$D$15","v":{"$error":"#N/A"}},{"$f":"'Standing Data'!$F$15","v":0},{"$f":"'Standing Data'!$F$9","v":0},"Fin.Return","K771",{"$f":"Fin.Return!K785","v":0}]
[{"$f":"'Standing Data'!$D$15","v":{"$error":"#N/A"}},{"$f":"'Standing Data'!$F$15","v":0},{"$f":"'Standing Data'!$F$9","v":0},"Fin.Return","K772",{"$f":"Fin.Return!K786","v":0}]
[{"$f":"'Standing Data'!$D$15","v":{"$error":"#N/A"}},{"$f":"'Standing Data'!$F$15","v":0},{"$f":"'Standing Data'!$F$9","v":0},"Fin.Return","K773",{"$f":"Fin.Return!K787","v":0}]
[{"$f":"'Standing Data'!$D$15","v":{"$error":"#N/A"}},{"$f":"'Standing Data'!$F$15","v":0},{"$f":"'Standing Data'!$F$9","v":0},"Fin.Return","K774",{"$f":"Fin.Return!K788","v":0}]
[{"$f":"'Standing Data'!$D$15","v":{"$error":"#N/A"}},{"$f":"'Standing Data'!$F$15","v":0},{"$f":"'Standing Data'!$F$9","v":0},"Fin.Return","K775",{"$f":"Fin.Return!K789","v":0}]
[{"$f":"'Standing Data'!$D$15","v":{"$error":"#N/A"}},{"$f":"'Standing Data'!$F$15","v":0},{"$f":"'Standing Data'!$F$9","v":0},"Fin.Return","K776",{"$f":"Fin.Return!K790","v":0}]
[{"$f":"'Standing Data'!$D$15","v":{"$error":"#N/A"}},{"$f":"'Standing Data'!$F$15","v":0},{"$f":"'Standing Data'!$F$9","v":0},"Fin.Return","K777",{"$f":"Fin.Return!K791","v":0}]
[{"$f":"'Standing Data'!$D$15","v":{"$error":"#N/A"}},{"$f":"'Standing Data'!$F$15","v":0},{"$f":"'Standing Data'!$F$9","v":0},"Fin.Return","K779",{"$f":"Fin.Return!K793","v":0}]
[{"$f":"'Standing Data'!$D$15","v":{"$error":"#N/A"}},{"$f":"'Standing Data'!$F$15","v":0},{"$f":"'Standing Data'!$F$9","v":0},"Fin.Return","K780",{"$f":"Fin.Return!K794","v":0}]
[{"$f":"'Standing Data'!$D$15","v":{"$error":"#N/A"}},{"$f":"'Standing Data'!$F$15","v":0},{"$f":"'Standing Data'!$F$9","v":0},"Fin.Return","K782",{"$f":"Fin.Return!K796","v":0}]
[{"$f":"'Standing Data'!$D$15","v":{"$error":"#N/A"}},{"$f":"'Standing Data'!$F$15","v":0},{"$f":"'Standing Data'!$F$9","v":0},"Fin.Return","K783",{"$f":"Fin.Return!K797","v":0}]
[{"$f":"'Standing Data'!$D$15","v":{"$error":"#N/A"}},{"$f":"'Standing Data'!$F$15","v":0},{"$f":"'Standing Data'!$F$9","v":0},"Fin.Return","K785",{"$f":"Fin.Return!K799","v":0}]
[{"$f":"'Standing Data'!$D$15","v":{"$error":"#N/A"}},{"$f":"'Standing Data'!$F$15","v":0},{"$f":"'Standing Data'!$F$9","v":0},"Fin.Return","K787",{"$f":"Fin.Return!K801","v":0}]
[{"$f":"'Standing Data'!$D$15","v":{"$error":"#N/A"}},{"$f":"'Standing Data'!$F$15","v":0},{"$f":"'Standing Data'!$F$9","v":0},"Fin.Return","K789",{"$f":"Fin.Return!K803","v":0}]
[{"$f":"'Standing Data'!$D$15","v":{"$error":"#N/A"}},{"$f":"'Standing Data'!$F$15","v":0},{"$f":"'Standing Data'!$F$9","v":0},"Fin.Return","K790",{"$f":"Fin.Return!K804","v":0}]
[{"$f":"'Standing Data'!$D$15","v":{"$error":"#N/A"}},{"$f":"'Standing Data'!$F$15","v":0},{"$f":"'Standing Data'!$F$9","v":0},"Fin.Return","K791",{"$f":"Fin.Return!K805","v":0}]
[{"$f":"'Standing Data'!$D$15","v":{"$error":"#N/A"}},{"$f":"'Standing Data'!$F$15","v":0},{"$f":"'Standing Data'!$F$9","v":0},"Fin.Return","K792",{"$f":"Fin.Return!K806","v":0}]
[{"$f":"'Standing Data'!$D$15","v":{"$error":"#N/A"}},{"$f":"'Standing Data'!$F$15","v":0},{"$f":"'Standing Data'!$F$9","v":0},"Fin.Return","K793",{"$f":"Fin.Return!K807","v":0}]
[{"$f":"'Standing Data'!$D$15","v":{"$error":"#N/A"}},{"$f":"'Standing Data'!$F$15","v":0},{"$f":"'Standing Data'!$F$9","v":0},"Fin.Return","K794",{"$f":"Fin.Return!K808","v":0}]
[{"$f":"'Standing Data'!$D$15","v":{"$error":"#N/A"}},{"$f":"'Standing Data'!$F$15","v":0},{"$f":"'Standing Data'!$F$9","v":0},"Fin.Return","K795",{"$f":"Fin.Return!K809","v":0}]
[{"$f":"'Standing Data'!$D$15","v":{"$error":"#N/A"}},{"$f":"'Standing Data'!$F$15","v":0},{"$f":"'Standing Data'!$F$9","v":0},"Fin.Return","K796",{"$f":"Fin.Return!K810","v":0}]
[{"$f":"'Standing Data'!$D$15","v":{"$error":"#N/A"}},{"$f":"'Standing Data'!$F$15","v":0},{"$f":"'Standing Data'!$F$9","v":0},"Fin.Return","K797",{"$f":"Fin.Return!K811","v":0}]
[{"$f":"'Standing Data'!$D$15","v":{"$error":"#N/A"}},{"$f":"'Standing Data'!$F$15","v":0},{"$f":"'Standing Data'!$F$9","v":0},"Fin.Return","K798",{"$f":"Fin.Return!K812","v":0}]
[{"$f":"'Standing Data'!$D$15","v":{"$error":"#N/A"}},{"$f":"'Standing Data'!$F$15","v":0},{"$f":"'Standing Data'!$F$9","v":0},"Fin.Return","K799",{"$f":"Fin.Return!K813","v":0}]
[{"$f":"'Standing Data'!$D$15","v":{"$error":"#N/A"}},{"$f":"'Standing Data'!$F$15","v":0},{"$f":"'Standing Data'!$F$9","v":0},"Fin.Return","K800",{"$f":"Fin.Return!K814","v":0}]
[{"$f":"'Standing Data'!$D$15","v":{"$error":"#N/A"}},{"$f":"'Standing Data'!$F$15","v":0},{"$f":"'Standing Data'!$F$9","v":0},"Fin.Return","K802",{"$f":"Fin.Return!K816","v":0}]
[{"$f":"'Standing Data'!$D$15","v":{"$error":"#N/A"}},{"$f":"'Standing Data'!$F$15","v":0},{"$f":"'Standing Data'!$F$9","v":0},"Fin.Return","K803",{"$f":"Fin.Return!K817","v":0}]
[{"$f":"'Standing Data'!$D$15","v":{"$error":"#N/A"}},{"$f":"'Standing Data'!$F$15","v":0},{"$f":"'Standing Data'!$F$9","v":0},"Fin.Return","K805",{"$f":"Fin.Return!K819","v":0}]
[{"$f":"'Standing Data'!$D$15","v":{"$error":"#N/A"}},{"$f":"'Standing Data'!$F$15","v":0},{"$f":"'Standing Data'!$F$9","v":0},"Fin.Return","K807",{"$f":"Fin.Return!K821","v":0}]
[{"$f":"'Standing Data'!$D$15","v":{"$error":"#N/A"}},{"$f":"'Standing Data'!$F$15","v":0},{"$f":"'Standing Data'!$F$9","v":0},"Fin.Return","K809",{"$f":"Fin.Return!K823","v":0}]
[{"$f":"'Standing Data'!$D$15","v":{"$error":"#N/A"}},{"$f":"'Standing Data'!$F$15","v":0},{"$f":"'Standing Data'!$F$9","v":0},"Fin.Return","K811",{"$f":"Fin.Return!K825","v":0}]
[{"$f":"'Standing Data'!$D$15","v":{"$error":"#N/A"}},{"$f":"'Standing Data'!$F$15","v":0},{"$f":"'Standing Data'!$F$9","v":0},"Fin.Return","K908",{"$f":"Fin.Return!K1035","v":0}]
[{"$f":"'Standing Data'!$D$15","v":{"$error":"#N/A"}},{"$f":"'Standing Data'!$F$15","v":0},{"$f":"'Standing Data'!$F$9","v":0},"Fin.Return","K909",{"$f":"Fin.Return!K1036","v":0}]
[{"$f":"'Standing Data'!$D$15","v":{"$error":"#N/A"}},{"$f":"'Standing Data'!$F$15","v":0},{"$f":"'Standing Data'!$F$9","v":0},"Fin.Return","K910",{"$f":"Fin.Return!K1037","v":0}]
[{"$f":"'Standing Data'!$D$15","v":{"$error":"#N/A"}},{"$f":"'Standing Data'!$F$15","v":0},{"$f":"'Standing Data'!$F$9","v":0},"Fin.Return","K911",{"$f":"Fin.Return!K1038","v":0}]
[{"$f":"'Standing Data'!$D$15","v":{"$error":"#N/A"}},{"$f":"'Standing Data'!$F$15","v":0},{"$f":"'Standing Data'!$F$9","v":0},"Fin.Return","K912",{"$f":"Fin.Return!K1039","v":0}]
[{"$f":"'Standing Data'!$D$15","v":{"$error":"#N/A"}},{"$f":"'Standing Data'!$F$15","v":0},{"$f":"'Standing Data'!$F$9","v":0},"Fin.Return","K914",{"$f":"Fin.Return!K1041","v":0}]
[{"$f":"'Standing Data'!$D$15","v":{"$error":"#N/A"}},{"$f":"'Standing Data'!$F$15","v":0},{"$f":"'Standing Data'!$F$9","v":0},"Fin.Return","K913",{"$f":"Fin.Return!K1040","v":0}]
[{"$f":"'Standing Data'!$D$15","v":{"$error":"#N/A"}},{"$f":"'Standing Data'!$F$15","v":0},{"$f":"'Standing Data'!$F$9","v":0},"Fin.Return","K916",{"$f":"Fin.Return!K1043","v":0}]
[{"$f":"'Standing Data'!$D$15","v":{"$error":"#N/A"}},{"$f":"'Standing Data'!$F$15","v":0},{"$f":"'Standing Data'!$F$9","v":0},"Fin.Return","K917",{"$f":"Fin.Return!K1044","v":0}]
[{"$f":"'Standing Data'!$D$15","v":{"$error":"#N/A"}},{"$f":"'Standing Data'!$F$15","v":0},{"$f":"'Standing Data'!$F$9","v":0},"Fin.Return","K918",{"$f":"Fin.Return!K1045","v":0}]
[{"$f":"'Standing Data'!$D$15","v":{"$error":"#N/A"}},{"$f":"'Standing Data'!$F$15","v":0},{"$f":"'Standing Data'!$F$9","v":0},"Fin.Return","K919",{"$f":"Fin.Return!K1046","v":0}]
[{"$f":"'Standing Data'!$D$15","v":{"$error":"#N/A"}},{"$f":"'Standing Data'!$F$15","v":0},{"$f":"'Standing Data'!$F$9","v":0},"Fin.Return","K920",{"$f":"Fin.Return!K1047","v":0}]
[{"$f":"'Standing Data'!$D$15","v":{"$error":"#N/A"}},{"$f":"'Standing Data'!$F$15","v":0},{"$f":"'Standing Data'!$F$9","v":0},"Fin.Return","K922",{"$f":"Fin.Return!K1049","v":0}]
[{"$f":"'Standing Data'!$D$15","v":{"$error":"#N/A"}},{"$f":"'Standing Data'!$F$15","v":0},{"$f":"'Standing Data'!$F$9","v":0},"Fin.Return","K924",{"$f":"Fin.Return!K1051","v":0}]
[{"$f":"'Standing Data'!$D$15","v":{"$error":"#N/A"}},{"$f":"'Standing Data'!$F$15","v":0},{"$f":"'Standing Data'!$F$9","v":0},"Fin.Return","K925",{"$f":"Fin.Return!K1052","v":0}]
[{"$f":"'Standing Data'!$D$15","v":{"$error":"#N/A"}},{"$f":"'Standing Data'!$F$15","v":0},{"$f":"'Standing Data'!$F$9","v":0},"Fin.Return","K926",{"$f":"Fin.Return!K1053","v":0}]
[{"$f":"'Standing Data'!$D$15","v":{"$error":"#N/A"}},{"$f":"'Standing Data'!$F$15","v":0},{"$f":"'Standing Data'!$F$9","v":0},"Fin.Return","K927",{"$f":"Fin.Return!K1054","v":0}]
[{"$f":"'Standing Data'!$D$15","v":{"$error":"#N/A"}},{"$f":"'Standing Data'!$F$15","v":0},{"$f":"'Standing Data'!$F$9","v":0},"Fin.Return","K928",{"$f":"Fin.Return!K1055","v":0}]
[{"$f":"'Standing Data'!$D$15","v":{"$error":"#N/A"}},{"$f":"'Standing Data'!$F$15","v":0},{"$f":"'Standing Data'!$F$9","v":0},"Fin.Return","K929",{"$f":"Fin.Return!K1056","v":0}]
[{"$f":"'Standing Data'!$D$15","v":{"$error":"#N/A"}},{"$f":"'Standing Data'!$F$15","v":0},{"$f":"'Standing Data'!$F$9","v":0},"Fin.Return","K930",{"$f":"Fin.Return!K1057","v":0}]
[{"$f":"'Standing Data'!$D$15","v":{"$error":"#N/A"}},{"$f":"'Standing Data'!$F$15","v":0},{"$f":"'Standing Data'!$F$9","v":0},"Fin.Return","K931",{"$f":"Fin.Return!K1058","v":0}]
[{"$f":"'Standing Data'!$D$15","v":{"$error":"#N/A"}},{"$f":"'Standing Data'!$F$15","v":0},{"$f":"'Standing Data'!$F$9","v":0},"Fin.Return","K933",{"$f":"Fin.Return!K1060","v":0}]
[{"$f":"'Standing Data'!$D$15","v":{"$error":"#N/A"}},{"$f":"'Standing Data'!$F$15","v":0},{"$f":"'Standing Data'!$F$9","v":0},"Fin.Return","K934",{"$f":"Fin.Return!K1061","v":0}]
[{"$f":"'Standing Data'!$D$15","v":{"$error":"#N/A"}},{"$f":"'Standing Data'!$F$15","v":0},{"$f":"'Standing Data'!$F$9","v":0},"Fin.Return","K935",{"$f":"Fin.Return!K1062","v":0}]
[{"$f":"'Standing Data'!$D$15","v":{"$error":"#N/A"}},{"$f":"'Standing Data'!$F$15","v":0},{"$f":"'Standing Data'!$F$9","v":0},"Fin.Return","K936",{"$f":"Fin.Return!K1063","v":0}]
[{"$f":"'Standing Data'!$D$15","v":{"$error":"#N/A"}},{"$f":"'Standing Data'!$F$15","v":0},{"$f":"'Standing Data'!$F$9","v":0},"Fin.Return","K938",{"$f":"Fin.Return!K1065","v":0}]
[{"$f":"'Standing Data'!$D$15","v":{"$error":"#N/A"}},{"$f":"'Standing Data'!$F$15","v":0},{"$f":"'Standing Data'!$F$9","v":0},"Fin.Return","K940",{"$f":"Fin.Return!K1067","v":0}]
[{"$f":"'Standing Data'!$D$15","v":{"$error":"#N/A"}},{"$f":"'Standing Data'!$F$15","v":0},{"$f":"'Standing Data'!$F$9","v":0},"Fin.Return","K942",{"$f":"Fin.Return!K1069","v":0}]
[{"$f":"'Standing Data'!$D$15","v":{"$error":"#N/A"}},{"$f":"'Standing Data'!$F$15","v":0},{"$f":"'Standing Data'!$F$9","v":0},"Fin.Return","K1009",{"$f":"Fin.Return!K1136","v":0}]
[{"$f":"'Standing Data'!$D$15","v":{"$error":"#N/A"}},{"$f":"'Standing Data'!$F$15","v":0},{"$f":"'Standing Data'!$F$9","v":0},"Fin.Return","K1010",{"$f":"Fin.Return!K1137","v":0}]
[{"$f":"'Standing Data'!$D$15","v":{"$error":"#N/A"}},{"$f":"'Standing Data'!$F$15","v":0},{"$f":"'Standing Data'!$F$9","v":0},"Fin.Return","K1011",{"$f":"Fin.Return!K1138","v":0}]
[{"$f":"'Standing Data'!$D$15","v":{"$error":"#N/A"}},{"$f":"'Standing Data'!$F$15","v":0},{"$f":"'Standing Data'!$F$9","v":0},"Fin.Return","K1013",{"$f":"Fin.Return!K1140","v":0}]
[{"$f":"'Standing Data'!$D$15","v":{"$error":"#N/A"}},{"$f":"'Standing Data'!$F$15","v":0},{"$f":"'Standing Data'!$F$9","v":0},"Fin.Return","K1014",{"$f":"Fin.Return!K1141","v":0}]
[{"$f":"'Standing Data'!$D$15","v":{"$error":"#N/A"}},{"$f":"'Standing Data'!$F$15","v":0},{"$f":"'Standing Data'!$F$9","v":0},"Fin.Return","K1015",{"$f":"Fin.Return!K1142","v":0}]
[{"$f":"'Standing Data'!$D$15","v":{"$error":"#N/A"}},{"$f":"'Standing Data'!$F$15","v":0},{"$f":"'Standing Data'!$F$9","v":0},"Fin.Return","K1017",{"$f":"Fin.Return!K1144","v":0}]
[{"$f":"'Standing Data'!$D$15","v":{"$error":"#N/A"}},{"$f":"'Standing Data'!$F$15","v":0},{"$f":"'Standing Data'!$F$9","v":0},"Fin.Return","K1018",{"$f":"Fin.Return!K1145","v":0}]
[{"$f":"'Standing Data'!$D$15","v":{"$error":"#N/A"}},{"$f":"'Standing Data'!$F$15","v":0},{"$f":"'Standing Data'!$F$9","v":0},"Fin.Return","K1019",{"$f":"Fin.Return!K1146","v":0}]
[{"$f":"'Standing Data'!$D$15","v":{"$error":"#N/A"}},{"$f":"'Standing Data'!$F$15","v":0},{"$f":"'Standing Data'!$F$9","v":0},"Fin.Return","K1021",{"$f":"Fin.Return!K1148","v":0}]
[{"$f":"'Standing Data'!$D$15","v":{"$error":"#N/A"}},{"$f":"'Standing Data'!$F$15","v":0},{"$f":"'Standing Data'!$F$9","v":0},"Fin.Return","K1022",{"$f":"Fin.Return!K1149","v":0}]
[{"$f":"'Standing Data'!$D$15","v":{"$error":"#N/A"}},{"$f":"'Standing Data'!$F$15","v":0},{"$f":"'Standing Data'!$F$9","v":0},"Fin.Return","K1024",{"$f":"Fin.Return!K1151","v":0}]
[{"$f":"'Standing Data'!$D$15","v":{"$error":"#N/A"}},{"$f":"'Standing Data'!$F$15","v":0},{"$f":"'Standing Data'!$F$9","v":0},"Fin.Return","K1082",{"$f":"Fin.Return!K1209","v":0}]
[{"$f":"'Standing Data'!$D$15","v":{"$error":"#N/A"}},{"$f":"'Standing Data'!$F$15","v":0},{"$f":"'Standing Data'!$F$9","v":0},"Fin.Return","K1083",{"$f":"Fin.Return!K1210","v":0}]
[{"$f":"'Standing Data'!$D$15","v":{"$error":"#N/A"}},{"$f":"'Standing Data'!$F$15","v":0},{"$f":"'Standing Data'!$F$9","v":0},"Fin.Return","K1084",{"$f":"Fin.Return!K1211","v":0}]
[{"$f":"'Standing Data'!$D$15","v":{"$error":"#N/A"}},{"$f":"'Standing Data'!$F$15","v":0},{"$f":"'Standing Data'!$F$9","v":0},"Fin.Return","K1086",{"$f":"Fin.Return!K1213","v":0}]
[{"$f":"'Standing Data'!$D$15","v":{"$error":"#N/A"}},{"$f":"'Standing Data'!$F$15","v":0},{"$f":"'Standing Data'!$F$9","v":0},"Fin.Return","K1087",{"$f":"Fin.Return!K1214","v":0}]
[{"$f":"'Standing Data'!$D$15","v":{"$error":"#N/A"}},{"$f":"'Standing Data'!$F$15","v":0},{"$f":"'Standing Data'!$F$9","v":0},"Fin.Return","K1088",{"$f":"Fin.Return!K1215","v":0}]
[{"$f":"'Standing Data'!$D$15","v":{"$error":"#N/A"}},{"$f":"'Standing Data'!$F$15","v":0},{"$f":"'Standing Data'!$F$9","v":0},"Fin.Return","K1090",{"$f":"Fin.Return!K1217","v":0}]
[{"$f":"'Standing Data'!$D$15","v":{"$error":"#N/A"}},{"$f":"'Standing Data'!$F$15","v":0},{"$f":"'Standing Data'!$F$9","v":0},"Fin.Return","K1091",{"$f":"Fin.Return!K1218","v":0}]
[{"$f":"'Standing Data'!$D$15","v":{"$error":"#N/A"}},{"$f":"'Standing Data'!$F$15","v":0},{"$f":"'Standing Data'!$F$9","v":0},"Fin.Return","K1092",{"$f":"Fin.Return!K1219","v":0}]
[{"$f":"'Standing Data'!$D$15","v":{"$error":"#N/A"}},{"$f":"'Standing Data'!$F$15","v":0},{"$f":"'Standing Data'!$F$9","v":0},"Fin.Return","K1094",{"$f":"Fin.Return!K1221","v":0}]
[{"$f":"'Standing Data'!$D$15","v":{"$error":"#N/A"}},{"$f":"'Standing Data'!$F$15","v":0},{"$f":"'Standing Data'!$F$9","v":0},"Fin.Return","K1095",{"$f":"Fin.Return!K1222","v":0}]
[{"$f":"'Standing Data'!$D$15","v":{"$error":"#N/A"}},{"$f":"'Standing Data'!$F$15","v":0},{"$f":"'Standing Data'!$F$9","v":0},"Fin.Return","K1097",{"$f":"Fin.Return!K1224","v":0}]
[{"$f":"'Standing Data'!$D$15","v":{"$error":"#N/A"}},{"$f":"'Standing Data'!$F$15","v":0},{"$f":"'Standing Data'!$F$9","v":0},"Fin.Return","K1111",{"$f":"Fin.Return!K1238","v":0}]
[{"$f":"'Standing Data'!$D$15","v":{"$error":"#N/A"}},{"$f":"'Standing Data'!$F$15","v":0},{"$f":"'Standing Data'!$F$9","v":0},"Fin.Return","K1112",{"$f":"Fin.Return!K1239","v":0}]
[{"$f":"'Standing Data'!$D$15","v":{"$error":"#N/A"}},{"$f":"'Standing Data'!$F$15","v":0},{"$f":"'Standing Data'!$F$9","v":0},"Fin.Return","K1113",{"$f":"Fin.Return!K1240","v":0}]
[{"$f":"'Standing Data'!$D$15","v":{"$error":"#N/A"}},{"$f":"'Standing Data'!$F$15","v":0},{"$f":"'Standing Data'!$F$9","v":0},"Fin.Return","K1115",{"$f":"Fin.Return!K1242","v":0}]
[{"$f":"'Standing Data'!$D$15","v":{"$error":"#N/A"}},{"$f":"'Standing Data'!$F$15","v":0},{"$f":"'Standing Data'!$F$9","v":0},"Fin.Return","K1131",{"$f":"Fin.Return!K1258","v":0}]
[{"$f":"'Standing Data'!$D$15","v":{"$error":"#N/A"}},{"$f":"'Standing Data'!$F$15","v":0},{"$f":"'Standing Data'!$F$9","v":0},"Fin.Return","K1132",{"$f":"Fin.Return!K1259","v":0}]
[{"$f":"'Standing Data'!$D$15","v":{"$error":"#N/A"}},{"$f":"'Standing Data'!$F$15","v":0},{"$f":"'Standing Data'!$F$9","v":0},"Fin.Return","K1133",{"$f":"Fin.Return!K1260","v":0}]
[{"$f":"'Standing Data'!$D$15","v":{"$error":"#N/A"}},{"$f":"'Standing Data'!$F$15","v":0},{"$f":"'Standing Data'!$F$9","v":0},"Fin.Return","K1135",{"$f":"Fin.Return!K1262","v":0}]
[{"$f":"'Standing Data'!$D$15","v":{"$error":"#N/A"}},{"$f":"'Standing Data'!$F$15","v":0},{"$f":"'Standing Data'!$F$9","v":0},"Fin.Return","K1140",{"$f":"Fin.Return!K1267","v":0}]
[{"$f":"'Standing Data'!$D$15","v":{"$error":"#N/A"}},{"$f":"'Standing Data'!$F$15","v":0},{"$f":"'Standing Data'!$F$9","v":0},"Fin.Return","K1141",{"$f":"Fin.Return!K1268","v":0}]
[{"$f":"'Standing Data'!$D$15","v":{"$error":"#N/A"}},{"$f":"'Standing Data'!$F$15","v":0},{"$f":"'Standing Data'!$F$9","v":0},"Fin.Return","K1142",{"$f":"Fin.Return!K1269","v":0}]
[{"$f":"'Standing Data'!$D$15","v":{"$error":"#N/A"}},{"$f":"'Standing Data'!$F$15","v":0},{"$f":"'Standing Data'!$F$9","v":0},"Fin.Return","K1144",{"$f":"Fin.Return!K1271","v":0}]
[{"$f":"'Standing Data'!$D$15","v":{"$error":"#N/A"}},{"$f":"'Standing Data'!$F$15","v":0},{"$f":"'Standing Data'!$F$9","v":0},"Fin.Return","K1149",{"$f":"Fin.Return!#REF!","v":{"$error":"#REF!"}}]
[{"$f":"'Standing Data'!$D$15","v":{"$error":"#N/A"}},{"$f":"'Standing Data'!$F$15","v":0},{"$f":"'Standing Data'!$F$9","v":0},"Fin.Return","K1150",{"$f":"Fin.Return!#REF!","v":{"$error":"#REF!"}}]
[{"$f":"'Standing Data'!$D$15","v":{"$error":"#N/A"}},{"$f":"'Standing Data'!$F$15","v":0},{"$f":"'Standing Data'!$F$9","v":0},"Fin.Return","K1151",{"$f":"Fin.Return!#REF!","v":{"$error":"#REF!"}}]
[{"$f":"'Standing Data'!$D$15","v":{"$error":"#N/A"}},{"$f":"'Standing Data'!$F$15","v":0},{"$f":"'Standing Data'!$F$9","v":0},"Fin.Return","K1153",{"$f":"Fin.Return!#REF!","v":{"$error":"#REF!"}}]
[{"$f":"'Standing Data'!$D$15","v":{"$error":"#N/A"}},{"$f":"'Standing Data'!$F$15","v":0},{"$f":"'Standing Data'!$F$9","v":0},"Fin.Return","L468",{"$f":"Fin.Return!L482","v":0}]
[{"$f":"'Standing Data'!$D$15","v":{"$error":"#N/A"}},{"$f":"'Standing Data'!$F$15","v":0},{"$f":"'Standing Data'!$F$9","v":0},"Fin.Return","L469",{"$f":"Fin.Return!L483","v":0}]
[{"$f":"'Standing Data'!$D$15","v":{"$error":"#N/A"}},{"$f":"'Standing Data'!$F$15","v":0},{"$f":"'Standing Data'!$F$9","v":0},"Fin.Return","L470",{"$f":"Fin.Return!L484","v":0}]
[{"$f":"'Standing Data'!$D$15","v":{"$error":"#N/A"}},{"$f":"'Standing Data'!$F$15","v":0},{"$f":"'Standing Data'!$F$9","v":0},"Fin.Return","L471",{"$f":"Fin.Return!L485","v":0}]
[{"$f":"'Standing Data'!$D$15","v":{"$error":"#N/A"}},{"$f":"'Standing Data'!$F$15","v":0},{"$f":"'Standing Data'!$F$9","v":0},"Fin.Return","L472",{"$f":"Fin.Return!L486","v":0}]
[{"$f":"'Standing Data'!$D$15","v":{"$error":"#N/A"}},{"$f":"'Standing Data'!$F$15","v":0},{"$f":"'Standing Data'!$F$9","v":0},"Fin.Return","L473",{"$f":"Fin.Return!L487","v":0}]
[{"$f":"'Standing Data'!$D$15","v":{"$error":"#N/A"}},{"$f":"'Standing Data'!$F$15","v":0},{"$f":"'Standing Data'!$F$9","v":0},"Fin.Return","L474",{"$f":"Fin.Return!L488","v":0}]
[{"$f":"'Standing Data'!$D$15","v":{"$error":"#N/A"}},{"$f":"'Standing Data'!$F$15","v":0},{"$f":"'Standing Data'!$F$9","v":0},"Fin.Return","L475",{"$f":"Fin.Return!L489","v":0}]
[{"$f":"'Standing Data'!$D$15","v":{"$error":"#N/A"}},{"$f":"'Standing Data'!$F$15","v":0},{"$f":"'Standing Data'!$F$9","v":0},"Fin.Return","L477",{"$f":"Fin.Return!L491","v":0}]
[{"$f":"'Standing Data'!$D$15","v":{"$error":"#N/A"}},{"$f":"'Standing Data'!$F$15","v":0},{"$f":"'Standing Data'!$F$9","v":0},"Fin.Return","L480",{"$f":"Fin.Return!L494","v":0}]
[{"$f":"'Standing Data'!$D$15","v":{"$error":"#N/A"}},{"$f":"'Standing Data'!$F$15","v":0},{"$f":"'Standing Data'!$F$9","v":0},"Fin.Return","L481",{"$f":"Fin.Return!L495","v":0}]
[{"$f":"'Standing Data'!$D$15","v":{"$error":"#N/A"}},{"$f":"'Standing Data'!$F$15","v":0},{"$f":"'Standing Data'!$F$9","v":0},"Fin.Return","L482",{"$f":"Fin.Return!L496","v":0}]
[{"$f":"'Standing Data'!$D$15","v":{"$error":"#N/A"}},{"$f":"'Standing Data'!$F$15","v":0},{"$f":"'Standing Data'!$F$9","v":0},"Fin.Return","L483",{"$f":"Fin.Return!L497","v":0}]
[{"$f":"'Standing Data'!$D$15","v":{"$error":"#N/A"}},{"$f":"'Standing Data'!$F$15","v":0},{"$f":"'Standing Data'!$F$9","v":0},"Fin.Return","L484",{"$f":"Fin.Return!L498","v":0}]
[{"$f":"'Standing Data'!$D$15","v":{"$error":"#N/A"}},{"$f":"'Standing Data'!$F$15","v":0},{"$f":"'Standing Data'!$F$9","v":0},"Fin.Return","L486",{"$f":"Fin.Return!L500","v":0}]
[{"$f":"'Standing Data'!$D$15","v":{"$error":"#N/A"}},{"$f":"'Standing Data'!$F$15","v":0},{"$f":"'Standing Data'!$F$9","v":0},"Fin.Return","L489",{"$f":"Fin.Return!L503","v":0}]
[{"$f":"'Standing Data'!$D$15","v":{"$error":"#N/A"}},{"$f":"'Standing Data'!$F$15","v":0},{"$f":"'Standing Data'!$F$9","v":0},"Fin.Return","L490",{"$f":"Fin.Return!L504","v":0}]
[{"$f":"'Standing Data'!$D$15","v":{"$error":"#N/A"}},{"$f":"'Standing Data'!$F$15","v":0},{"$f":"'Standing Data'!$F$9","v":0},"Fin.Return","L491",{"$f":"Fin.Return!L505","v":0}]
[{"$f":"'Standing Data'!$D$15","v":{"$error":"#N/A"}},{"$f":"'Standing Data'!$F$15","v":0},{"$f":"'Standing Data'!$F$9","v":0},"Fin.Return","L493",{"$f":"Fin.Return!L507","v":0}]
[{"$f":"'Standing Data'!$D$15","v":{"$error":"#N/A"}},{"$f":"'Standing Data'!$F$15","v":0},{"$f":"'Standing Data'!$F$9","v":0},"Fin.Return","L496",{"$f":"Fin.Return!L510","v":0}]
[{"$f":"'Standing Data'!$D$15","v":{"$error":"#N/A"}},{"$f":"'Standing Data'!$F$15","v":0},{"$f":"'Standing Data'!$F$9","v":0},"Fin.Return","L499",{"$f":"Fin.Return!L513","v":0}]
[{"$f":"'Standing Data'!$D$15","v":{"$error":"#N/A"}},{"$f":"'Standing Data'!$F$15","v":0},{"$f":"'Standing Data'!$F$9","v":0},"Fin.Return","L503",{"$f":"Fin.Return!L517","v":0}]
[{"$f":"'Standing Data'!$D$15","v":{"$error":"#N/A"}},{"$f":"'Standing Data'!$F$15","v":0},{"$f":"'Standing Data'!$F$9","v":0},"Fin.Return","L504",{"$f":"Fin.Return!L518","v":0}]
[{"$f":"'Standing Data'!$D$15","v":{"$error":"#N/A"}},{"$f":"'Standing Data'!$F$15","v":0},{"$f":"'Standing Data'!$F$9","v":0},"Fin.Return","L505",{"$f":"Fin.Return!L519","v":0}]
[{"$f":"'Standing Data'!$D$15","v":{"$error":"#N/A"}},{"$f":"'Standing Data'!$F$15","v":0},{"$f":"'Standing Data'!$F$9","v":0},"Fin.Return","L514",{"$f":"Fin.Return!L528","v":0}]
[{"$f":"'Standing Data'!$D$15","v":{"$error":"#N/A"}},{"$f":"'Standing Data'!$F$15","v":0},{"$f":"'Standing Data'!$F$9","v":0},"Fin.Return","L515",{"$f":"Fin.Return!L529","v":0}]
[{"$f":"'Standing Data'!$D$15","v":{"$error":"#N/A"}},{"$f":"'Standing Data'!$F$15","v":0},{"$f":"'Standing Data'!$F$9","v":0},"Fin.Return","L517",{"$f":"Fin.Return!L531","v":0}]
[{"$f":"'Standing Data'!$D$15","v":{"$error":"#N/A"}},{"$f":"'Standing Data'!$F$15","v":0},{"$f":"'Standing Data'!$F$9","v":0},"Fin.Return","L519",{"$f":"Fin.Return!L533","v":0}]
[{"$f":"'Standing Data'!$D$15","v":{"$error":"#N/A"}},{"$f":"'Standing Data'!$F$15","v":0},{"$f":"'Standing Data'!$F$9","v":0},"Fin.Return","L565",{"$f":"Fin.Return!L579","v":0}]
[{"$f":"'Standing Data'!$D$15","v":{"$error":"#N/A"}},{"$f":"'Standing Data'!$F$15","v":0},{"$f":"'Standing Data'!$F$9","v":0},"Fin.Return","L566",{"$f":"Fin.Return!L580","v":0}]
[{"$f":"'Standing Data'!$D$15","v":{"$error":"#N/A"}},{"$f":"'Standing Data'!$F$15","v":0},{"$f":"'Standing Data'!$F$9","v":0},"Fin.Return","L567",{"$f":"Fin.Return!L581","v":0}]
[{"$f":"'Standing Data'!$D$15","v":{"$error":"#N/A"}},{"$f":"'Standing Data'!$F$15","v":0},{"$f":"'Standing Data'!$F$9","v":0},"Fin.Return","L568",{"$f":"Fin.Return!L582","v":0}]
[{"$f":"'Standing Data'!$D$15","v":{"$error":"#N/A"}},{"$f":"'Standing Data'!$F$15","v":0},{"$f":"'Standing Data'!$F$9","v":0},"Fin.Return","L569",{"$f":"Fin.Return!L583","v":0}]
[{"$f":"'Standing Data'!$D$15","v":{"$error":"#N/A"}},{"$f":"'Standing Data'!$F$15","v":0},{"$f":"'Standing Data'!$F$9","v":0},"Fin.Return","L570",{"$f":"Fin.Return!L584","v":0}]
[{"$f":"'Standing Data'!$D$15","v":{"$error":"#N/A"}},{"$f":"'Standing Data'!$F$15","v":0},{"$f":"'Standing Data'!$F$9","v":0},"Fin.Return","L571",{"$f":"Fin.Return!L585","v":0}]
[{"$f":"'Standing Data'!$D$15","v":{"$error":"#N/A"}},{"$f":"'Standing Data'!$F$15","v":0},{"$f":"'Standing Data'!$F$9","v":0},"Fin.Return","L572",{"$f":"Fin.Return!L586","v":0}]
[{"$f":"'Standing Data'!$D$15","v":{"$error":"#N/A"}},{"$f":"'Standing Data'!$F$15","v":0},{"$f":"'Standing Data'!$F$9","v":0},"Fin.Return","L573",{"$f":"Fin.Return!L587","v":0}]
[{"$f":"'Standing Data'!$D$15","v":{"$error":"#N/A"}},{"$f":"'Standing Data'!$F$15","v":0},{"$f":"'Standing Data'!$F$9","v":0},"Fin.Return","L575",{"$f":"Fin.Return!L589","v":0}]
[{"$f":"'Standing Data'!$D$15","v":{"$error":"#N/A"}},{"$f":"'Standing Data'!$F$15","v":0},{"$f":"'Standing Data'!$F$9","v":0},"Fin.Return","L630",{"$f":"Fin.Return!L644","v":0}]
[{"$f":"'Standing Data'!$D$15","v":{"$error":"#N/A"}},{"$f":"'Standing Data'!$F$15","v":0},{"$f":"'Standing Data'!$F$9","v":0},"Fin.Return","L631",{"$f":"Fin.Return!L645","v":0}]
[{"$f":"'Standing Data'!$D$15","v":{"$error":"#N/A"}},{"$f":"'Standing Data'!$F$15","v":0},{"$f":"'Standing Data'!$F$9","v":0},"Fin.Return","L632",{"$f":"Fin.Return!L646","v":0}]
[{"$f":"'Standing Data'!$D$15","v":{"$error":"#N/A"}},{"$f":"'Standing Data'!$F$15","v":0},{"$f":"'Standing Data'!$F$9","v":0},"Fin.Return","L633",{"$f":"Fin.Return!L647","v":0}]
[{"$f":"'Standing Data'!$D$15","v":{"$error":"#N/A"}},{"$f":"'Standing Data'!$F$15","v":0},{"$f":"'Standing Data'!$F$9","v":0},"Fin.Return","L634",{"$f":"Fin.Return!L648","v":0}]
[{"$f":"'Standing Data'!$D$15","v":{"$error":"#N/A"}},{"$f":"'Standing Data'!$F$15","v":0},{"$f":"'Standing Data'!$F$9","v":0},"Fin.Return","L635",{"$f":"Fin.Return!L649","v":0}]
[{"$f":"'Standing Data'!$D$15","v":{"$error":"#N/A"}},{"$f":"'Standing Data'!$F$15","v":0},{"$f":"'Standing Data'!$F$9","v":0},"Fin.Return","L636",{"$f":"Fin.Return!L650","v":0}]
[{"$f":"'Standing Data'!$D$15","v":{"$error":"#N/A"}},{"$f":"'Standing Data'!$F$15","v":0},{"$f":"'Standing Data'!$F$9","v":0},"Fin.Return","L637",{"$f":"Fin.Return!L651","v":0}]
[{"$f":"'Standing Data'!$D$15","v":{"$error":"#N/A"}},{"$f":"'Standing Data'!$F$15","v":0},{"$f":"'Standing Data'!$F$9","v":0},"Fin.Return","L638",{"$f":"Fin.Return!L652","v":0}]
[{"$f":"'Standing Data'!$D$15","v":{"$error":"#N/A"}},{"$f":"'Standing Data'!$F$15","v":0},{"$f":"'Standing Data'!$F$9","v":0},"Fin.Return","L640",{"$f":"Fin.Return!L654","v":0}]
[{"$f":"'Standing Data'!$D$15","v":{"$error":"#N/A"}},{"$f":"'Standing Data'!$F$15","v":0},{"$f":"'Standing Data'!$F$9","v":0},"Fin.Return","L908",{"$f":"Fin.Return!L1035","v":0}]
[{"$f":"'Standing Data'!$D$15","v":{"$error":"#N/A"}},{"$f":"'Standing Data'!$F$15","v":0},{"$f":"'Standing Data'!$F$9","v":0},"Fin.Return","L909",{"$f":"Fin.Return!L1036","v":0}]
[{"$f":"'Standing Data'!$D$15","v":{"$error":"#N/A"}},{"$f":"'Standing Data'!$F$15","v":0},{"$f":"'Standing Data'!$F$9","v":0},"Fin.Return","L910",{"$f":"Fin.Return!L1037","v":0}]
[{"$f":"'Standing Data'!$D$15","v":{"$error":"#N/A"}},{"$f":"'Standing Data'!$F$15","v":0},{"$f":"'Standing Data'!$F$9","v":0},"Fin.Return","L911",{"$f":"Fin.Return!L1038","v":0}]
[{"$f":"'Standing Data'!$D$15","v":{"$error":"#N/A"}},{"$f":"'Standing Data'!$F$15","v":0},{"$f":"'Standing Data'!$F$9","v":0},"Fin.Return","L912",{"$f":"Fin.Return!L1039","v":0}]
[{"$f":"'Standing Data'!$D$15","v":{"$error":"#N/A"}},{"$f":"'Standing Data'!$F$15","v":0},{"$f":"'Standing Data'!$F$9","v":0},"Fin.Return","L914",{"$f":"Fin.Return!L1041","v":0}]
[{"$f":"'Standing Data'!$D$15","v":{"$error":"#N/A"}},{"$f":"'Standing Data'!$F$15","v":0},{"$f":"'Standing Data'!$F$9","v":0},"Fin.Return","L913",{"$f":"Fin.Return!L1040","v":0}]
[{"$f":"'Standing Data'!$D$15","v":{"$error":"#N/A"}},{"$f":"'Standing Data'!$F$15","v":0},{"$f":"'Standing Data'!$F$9","v":0},"Fin.Return","L916",{"$f":"Fin.Return!L1043","v":0}]
[{"$f":"'Standing Data'!$D$15","v":{"$error":"#N/A"}},{"$f":"'Standing Data'!$F$15","v":0},{"$f":"'Standing Data'!$F$9","v":0},"Fin.Return","L917",{"$f":"Fin.Return!L1044","v":0}]
[{"$f":"'Standing Data'!$D$15","v":{"$error":"#N/A"}},{"$f":"'Standing Data'!$F$15","v":0},{"$f":"'Standing Data'!$F$9","v":0},"Fin.Return","L918",{"$f":"Fin.Return!L1045","v":0}]
[{"$f":"'Standing Data'!$D$15","v":{"$error":"#N/A"}},{"$f":"'Standing Data'!$F$15","v":0},{"$f":"'Standing Data'!$F$9","v":0},"Fin.Return","L919",{"$f":"Fin.Return!L1046","v":0}]
[{"$f":"'Standing Data'!$D$15","v":{"$error":"#N/A"}},{"$f":"'Standing Data'!$F$15","v":0},{"$f":"'Standing Data'!$F$9","v":0},"Fin.Return","L920",{"$f":"Fin.Return!L1047","v":0}]
[{"$f":"'Standing Data'!$D$15","v":{"$error":"#N/A"}},{"$f":"'Standing Data'!$F$15","v":0},{"$f":"'Standing Data'!$F$9","v":0},"Fin.Return","L922",{"$f":"Fin.Return!L1049","v":0}]
[{"$f":"'Standing Data'!$D$15","v":{"$error":"#N/A"}},{"$f":"'Standing Data'!$F$15","v":0},{"$f":"'Standing Data'!$F$9","v":0},"Fin.Return","L924",{"$f":"Fin.Return!L1051","v":0}]
[{"$f":"'Standing Data'!$D$15","v":{"$error":"#N/A"}},{"$f":"'Standing Data'!$F$15","v":0},{"$f":"'Standing Data'!$F$9","v":0},"Fin.Return","L925",{"$f":"Fin.Return!L1052","v":0}]
[{"$f":"'Standing Data'!$D$15","v":{"$error":"#N/A"}},{"$f":"'Standing Data'!$F$15","v":0},{"$f":"'Standing Data'!$F$9","v":0},"Fin.Return","L926",{"$f":"Fin.Return!L1053","v":0}]
[{"$f":"'Standing Data'!$D$15","v":{"$error":"#N/A"}},{"$f":"'Standing Data'!$F$15","v":0},{"$f":"'Standing Data'!$F$9","v":0},"Fin.Return","L927",{"$f":"Fin.Return!L1054","v":0}]
[{"$f":"'Standing Data'!$D$15","v":{"$error":"#N/A"}},{"$f":"'Standing Data'!$F$15","v":0},{"$f":"'Standing Data'!$F$9","v":0},"Fin.Return","L928",{"$f":"Fin.Return!L1055","v":0}]
[{"$f":"'Standing Data'!$D$15","v":{"$error":"#N/A"}},{"$f":"'Standing Data'!$F$15","v":0},{"$f":"'Standing Data'!$F$9","v":0},"Fin.Return","L929",{"$f":"Fin.Return!L1056","v":0}]
[{"$f":"'Standing Data'!$D$15","v":{"$error":"#N/A"}},{"$f":"'Standing Data'!$F$15","v":0},{"$f":"'Standing Data'!$F$9","v":0},"Fin.Return","L930",{"$f":"Fin.Return!L1057","v":0}]
[{"$f":"'Standing Data'!$D$15","v":{"$error":"#N/A"}},{"$f":"'Standing Data'!$F$15","v":0},{"$f":"'Standing Data'!$F$9","v":0},"Fin.Return","L931",{"$f":"Fin.Return!L1058","v":0}]
[{"$f":"'Standing Data'!$D$15","v":{"$error":"#N/A"}},{"$f":"'Standing Data'!$F$15","v":0},{"$f":"'Standing Data'!$F$9","v":0},"Fin.Return","L933",{"$f":"Fin.Return!L1060","v":0}]
[{"$f":"'Standing Data'!$D$15","v":{"$error":"#N/A"}},{"$f":"'Standing Data'!$F$15","v":0},{"$f":"'Standing Data'!$F$9","v":0},"Fin.Return","L934",{"$f":"Fin.Return!L1061","v":0}]
[{"$f":"'Standing Data'!$D$15","v":{"$error":"#N/A"}},{"$f":"'Standing Data'!$F$15","v":0},{"$f":"'Standing Data'!$F$9","v":0},"Fin.Return","L935",{"$f":"Fin.Return!L1062","v":0}]
[{"$f":"'Standing Data'!$D$15","v":{"$error":"#N/A"}},{"$f":"'Standing Data'!$F$15","v":0},{"$f":"'Standing Data'!$F$9","v":0},"Fin.Return","L936",{"$f":"Fin.Return!L1063","v":0}]
[{"$f":"'Standing Data'!$D$15","v":{"$error":"#N/A"}},{"$f":"'Standing Data'!$F$15","v":0},{"$f":"'Standing Data'!$F$9","v":0},"Fin.Return","L938",{"$f":"Fin.Return!L1065","v":0}]
[{"$f":"'Standing Data'!$D$15","v":{"$error":"#N/A"}},{"$f":"'Standing Data'!$F$15","v":0},{"$f":"'Standing Data'!$F$9","v":0},"Fin.Return","L940",{"$f":"Fin.Return!L1067","v":0}]
[{"$f":"'Standing Data'!$D$15","v":{"$error":"#N/A"}},{"$f":"'Standing Data'!$F$15","v":0},{"$f":"'Standing Data'!$F$9","v":0},"Fin.Return","L942",{"$f":"Fin.Return!L1069","v":0}]
[{"$f":"'Standing Data'!$D$15","v":{"$error":"#N/A"}},{"$f":"'Standing Data'!$F$15","v":0},{"$f":"'Standing Data'!$F$9","v":0},"Fin.Return","L1009",{"$f":"Fin.Return!L1136","v":0}]
[{"$f":"'Standing Data'!$D$15","v":{"$error":"#N/A"}},{"$f":"'Standing Data'!$F$15","v":0},{"$f":"'Standing Data'!$F$9","v":0},"Fin.Return","L1010",{"$f":"Fin.Return!L1137","v":0}]
[{"$f":"'Standing Data'!$D$15","v":{"$error":"#N/A"}},{"$f":"'Standing Data'!$F$15","v":0},{"$f":"'Standing Data'!$F$9","v":0},"Fin.Return","L1011",{"$f":"Fin.Return!L1138","v":0}]
[{"$f":"'Standing Data'!$D$15","v":{"$error":"#N/A"}},{"$f":"'Standing Data'!$F$15","v":0},{"$f":"'Standing Data'!$F$9","v":0},"Fin.Return","L1013",{"$f":"Fin.Return!L1140","v":0}]
[{"$f":"'Standing Data'!$D$15","v":{"$error":"#N/A"}},{"$f":"'Standing Data'!$F$15","v":0},{"$f":"'Standing Data'!$F$9","v":0},"Fin.Return","L1014",{"$f":"Fin.Return!L1141","v":0}]
[{"$f":"'Standing Data'!$D$15","v":{"$error":"#N/A"}},{"$f":"'Standing Data'!$F$15","v":0},{"$f":"'Standing Data'!$F$9","v":0},"Fin.Return","L1015",{"$f":"Fin.Return!L1142","v":0}]
[{"$f":"'Standing Data'!$D$15","v":{"$error":"#N/A"}},{"$f":"'Standing Data'!$F$15","v":0},{"$f":"'Standing Data'!$F$9","v":0},"Fin.Return","L1017",{"$f":"Fin.Return!L1144","v":0}]
[{"$f":"'Standing Data'!$D$15","v":{"$error":"#N/A"}},{"$f":"'Standing Data'!$F$15","v":0},{"$f":"'Standing Data'!$F$9","v":0},"Fin.Return","L1018",{"$f":"Fin.Return!L1145","v":0}]
[{"$f":"'Standing Data'!$D$15","v":{"$error":"#N/A"}},{"$f":"'Standing Data'!$F$15","v":0},{"$f":"'Standing Data'!$F$9","v":0},"Fin.Return","L1019",{"$f":"Fin.Return!L1146","v":0}]
[{"$f":"'Standing Data'!$D$15","v":{"$error":"#N/A"}},{"$f":"'Standing Data'!$F$15","v":0},{"$f":"'Standing Data'!$F$9","v":0},"Fin.Return","L1021",{"$f":"Fin.Return!L1148","v":0}]
[{"$f":"'Standing Data'!$D$15","v":{"$error":"#N/A"}},{"$f":"'Standing Data'!$F$15","v":0},{"$f":"'Standing Data'!$F$9","v":0},"Fin.Return","L1022",{"$f":"Fin.Return!L1149","v":0}]
[{"$f":"'Standing Data'!$D$15","v":{"$error":"#N/A"}},{"$f":"'Standing Data'!$F$15","v":0},{"$f":"'Standing Data'!$F$9","v":0},"Fin.Return","L1024",{"$f":"Fin.Return!L1151","v":0}]
[{"$f":"'Standing Data'!$D$15","v":{"$error":"#N/A"}},{"$f":"'Standing Data'!$F$15","v":0},{"$f":"'Standing Data'!$F$9","v":0},"Fin.Return","L1082",{"$f":"Fin.Return!L1209","v":0}]
[{"$f":"'Standing Data'!$D$15","v":{"$error":"#N/A"}},{"$f":"'Standing Data'!$F$15","v":0},{"$f":"'Standing Data'!$F$9","v":0},"Fin.Return","L1083",{"$f":"Fin.Return!L1210","v":0}]
[{"$f":"'Standing Data'!$D$15","v":{"$error":"#N/A"}},{"$f":"'Standing Data'!$F$15","v":0},{"$f":"'Standing Data'!$F$9","v":0},"Fin.Return","L1084",{"$f":"Fin.Return!L1211","v":0}]
[{"$f":"'Standing Data'!$D$15","v":{"$error":"#N/A"}},{"$f":"'Standing Data'!$F$15","v":0},{"$f":"'Standing Data'!$F$9","v":0},"Fin.Return","L1086",{"$f":"Fin.Return!L1213","v":0}]
[{"$f":"'Standing Data'!$D$15","v":{"$error":"#N/A"}},{"$f":"'Standing Data'!$F$15","v":0},{"$f":"'Standing Data'!$F$9","v":0},"Fin.Return","L1087",{"$f":"Fin.Return!L1214","v":0}]
[{"$f":"'Standing Data'!$D$15","v":{"$error":"#N/A"}},{"$f":"'Standing Data'!$F$15","v":0},{"$f":"'Standing Data'!$F$9","v":0},"Fin.Return","L1088",{"$f":"Fin.Return!L1215","v":0}]
[{"$f":"'Standing Data'!$D$15","v":{"$error":"#N/A"}},{"$f":"'Standing Data'!$F$15","v":0},{"$f":"'Standing Data'!$F$9","v":0},"Fin.Return","L1090",{"$f":"Fin.Return!L1217","v":0}]
[{"$f":"'Standing Data'!$D$15","v":{"$error":"#N/A"}},{"$f":"'Standing Data'!$F$15","v":0},{"$f":"'Standing Data'!$F$9","v":0},"Fin.Return","L1091",{"$f":"Fin.Return!L1218","v":0}]
[{"$f":"'Standing Data'!$D$15","v":{"$error":"#N/A"}},{"$f":"'Standing Data'!$F$15","v":0},{"$f":"'Standing Data'!$F$9","v":0},"Fin.Return","L1092",{"$f":"Fin.Return!L1219","v":0}]
[{"$f":"'Standing Data'!$D$15","v":{"$error":"#N/A"}},{"$f":"'Standing Data'!$F$15","v":0},{"$f":"'Standing Data'!$F$9","v":0},"Fin.Return","L1094",{"$f":"Fin.Return!L1221","v":0}]
[{"$f":"'Standing Data'!$D$15","v":{"$error":"#N/A"}},{"$f":"'Standing Data'!$F$15","v":0},{"$f":"'Standing Data'!$F$9","v":0},"Fin.Return","L1095",{"$f":"Fin.Return!L1222","v":0}]
[{"$f":"'Standing Data'!$D$15","v":{"$error":"#N/A"}},{"$f":"'Standing Data'!$F$15","v":0},{"$f":"'Standing Data'!$F$9","v":0},"Fin.Return","L1097",{"$f":"Fin.Return!L1224","v":0}]
[{"$f":"'Standing Data'!$D$15","v":{"$error":"#N/A"}},{"$f":"'Standing Data'!$F$15","v":0},{"$f":"'Standing Data'!$F$9","v":0},"Fin.Return","L1111",{"$f":"Fin.Return!L1238","v":0}]
[{"$f":"'Standing Data'!$D$15","v":{"$error":"#N/A"}},{"$f":"'Standing Data'!$F$15","v":0},{"$f":"'Standing Data'!$F$9","v":0},"Fin.Return","L1112",{"$f":"Fin.Return!L1239","v":0}]
[{"$f":"'Standing Data'!$D$15","v":{"$error":"#N/A"}},{"$f":"'Standing Data'!$F$15","v":0},{"$f":"'Standing Data'!$F$9","v":0},"Fin.Return","L1113",{"$f":"Fin.Return!L1240","v":0}]
[{"$f":"'Standing Data'!$D$15","v":{"$error":"#N/A"}},{"$f":"'Standing Data'!$F$15","v":0},{"$f":"'Standing Data'!$F$9","v":0},"Fin.Return","L1115",{"$f":"Fin.Return!L1242","v":0}]
[{"$f":"'Standing Data'!$D$15","v":{"$error":"#N/A"}},{"$f":"'Standing Data'!$F$15","v":0},{"$f":"'Standing Data'!$F$9","v":0},"Fin.Return","L1131",{"$f":"Fin.Return!L1258","v":0}]
[{"$f":"'Standing Data'!$D$15","v":{"$error":"#N/A"}},{"$f":"'Standing Data'!$F$15","v":0},{"$f":"'Standing Data'!$F$9","v":0},"Fin.Return","L1132",{"$f":"Fin.Return!L1259","v":0}]
[{"$f":"'Standing Data'!$D$15","v":{"$error":"#N/A"}},{"$f":"'Standing Data'!$F$15","v":0},{"$f":"'Standing Data'!$F$9","v":0},"Fin.Return","L1133",{"$f":"Fin.Return!L1260","v":0}]
[{"$f":"'Standing Data'!$D$15","v":{"$error":"#N/A"}},{"$f":"'Standing Data'!$F$15","v":0},{"$f":"'Standing Data'!$F$9","v":0},"Fin.Return","L1135",{"$f":"Fin.Return!L1262","v":0}]
[{"$f":"'Standing Data'!$D$15","v":{"$error":"#N/A"}},{"$f":"'Standing Data'!$F$15","v":0},{"$f":"'Standing Data'!$F$9","v":0},"Fin.Return","L1237",{"$f":"Fin.Return!L1334","v":0}]
[{"$f":"'Standing Data'!$D$15","v":{"$error":"#N/A"}},{"$f":"'Standing Data'!$F$15","v":0},{"$f":"'Standing Data'!$F$9","v":0},"Fin.Return","L1238",{"$f":"Fin.Return!L1335","v":0}]
[{"$f":"'Standing Data'!$D$15","v":{"$error":"#N/A"}},{"$f":"'Standing Data'!$F$15","v":0},{"$f":"'Standing Data'!$F$9","v":0},"Fin.Return","L1239",{"$f":"Fin.Return!L1336","v":0}]
[{"$f":"'Standing Data'!$D$15","v":{"$error":"#N/A"}},{"$f":"'Standing Data'!$F$15","v":0},{"$f":"'Standing Data'!$F$9","v":0},"Fin.Return","L1240",{"$f":"Fin.Return!L1337","v":0}]
[{"$f":"'Standing Data'!$D$15","v":{"$error":"#N/A"}},{"$f":"'Standing Data'!$F$15","v":0},{"$f":"'Standing Data'!$F$9","v":0},"Fin.Return","L1241",{"$f":"Fin.Return!L1338","v":0}]
[{"$f":"'Standing Data'!$D$15","v":{"$error":"#N/A"}},{"$f":"'Standing Data'!$F$15","v":0},{"$f":"'Standing Data'!$F$9","v":0},"Fin.Return","L1242",{"$f":"Fin.Return!L1339","v":0}]
[{"$f":"'Standing Data'!$D$15","v":{"$error":"#N/A"}},{"$f":"'Standing Data'!$F$15","v":0},{"$f":"'Standing Data'!$F$9","v":0},"Fin.Return","L1243",{"$f":"Fin.Return!L1340","v":0}]
[{"$f":"'Standing Data'!$D$15","v":{"$error":"#N/A"}},{"$f":"'Standing Data'!$F$15","v":0},{"$f":"'Standing Data'!$F$9","v":0},"Fin.Return","L1244",{"$f":"Fin.Return!L1341","v":0}]
[{"$f":"'Standing Data'!$D$15","v":{"$error":"#N/A"}},{"$f":"'Standing Data'!$F$15","v":0},{"$f":"'Standing Data'!$F$9","v":0},"Fin.Return","L1245",{"$f":"Fin.Return!L1342","v":0}]
[{"$f":"'Standing Data'!$D$15","v":{"$error":"#N/A"}},{"$f":"'Standing Data'!$F$15","v":0},{"$f":"'Standing Data'!$F$9","v":0},"Fin.Return","L1246",{"$f":"Fin.Return!L1343","v":0}]
[{"$f":"'Standing Data'!$D$15","v":{"$error":"#N/A"}},{"$f":"'Standing Data'!$F$15","v":0},{"$f":"'Standing Data'!$F$9","v":0},"Fin.Return","L1247",{"$f":"Fin.Return!L1344","v":0}]
[{"$f":"'Standing Data'!$D$15","v":{"$error":"#N/A"}},{"$f":"'Standing Data'!$F$15","v":0},{"$f":"'Standing Data'!$F$9","v":0},"Fin.Return","L1248",{"$f":"Fin.Return!L1345","v":0}]
[{"$f":"'Standing Data'!$D$15","v":{"$error":"#N/A"}},{"$f":"'Standing Data'!$F$15","v":0},{"$f":"'Standing Data'!$F$9","v":0},"Fin.Return","L1249",{"$f":"Fin.Return!L1346","v":0}]
[{"$f":"'Standing Data'!$D$15","v":{"$error":"#N/A"}},{"$f":"'Standing Data'!$F$15","v":0},{"$f":"'Standing Data'!$F$9","v":0},"Fin.Return","L1250",{"$f":"Fin.Return!L1347","v":0}]
[{"$f":"'Standing Data'!$D$15","v":{"$error":"#N/A"}},{"$f":"'Standing Data'!$F$15","v":0},{"$f":"'Standing Data'!$F$9","v":0},"Fin.Return","L1252",{"$f":"Fin.Return!L1349","v":0}]
[{"$f":"'Standing Data'!$D$15","v":{"$error":"#N/A"}},{"$f":"'Standing Data'!$F$15","v":0},{"$f":"'Standing Data'!$F$9","v":0},"Fin.Return","M468",{"$f":"Fin.Return!M482","v":0}]
[{"$f":"'Standing Data'!$D$15","v":{"$error":"#N/A"}},{"$f":"'Standing Data'!$F$15","v":0},{"$f":"'Standing Data'!$F$9","v":0},"Fin.Return","M469",{"$f":"Fin.Return!M483","v":0}]
[{"$f":"'Standing Data'!$D$15","v":{"$error":"#N/A"}},{"$f":"'Standing Data'!$F$15","v":0},{"$f":"'Standing Data'!$F$9","v":0},"Fin.Return","M470",{"$f":"Fin.Return!M484","v":0}]
[{"$f":"'Standing Data'!$D$15","v":{"$error":"#N/A"}},{"$f":"'Standing Data'!$F$15","v":0},{"$f":"'Standing Data'!$F$9","v":0},"Fin.Return","M471",{"$f":"Fin.Return!M485","v":0}]
[{"$f":"'Standing Data'!$D$15","v":{"$error":"#N/A"}},{"$f":"'Standing Data'!$F$15","v":0},{"$f":"'Standing Data'!$F$9","v":0},"Fin.Return","M472",{"$f":"Fin.Return!M486","v":0}]
[{"$f":"'Standing Data'!$D$15","v":{"$error":"#N/A"}},{"$f":"'Standing Data'!$F$15","v":0},{"$f":"'Standing Data'!$F$9","v":0},"Fin.Return","M473",{"$f":"Fin.Return!M487","v":0}]
[{"$f":"'Standing Data'!$D$15","v":{"$error":"#N/A"}},{"$f":"'Standing Data'!$F$15","v":0},{"$f":"'Standing Data'!$F$9","v":0},"Fin.Return","M474",{"$f":"Fin.Return!M488","v":0}]
[{"$f":"'Standing Data'!$D$15","v":{"$error":"#N/A"}},{"$f":"'Standing Data'!$F$15","v":0},{"$f":"'Standing Data'!$F$9","v":0},"Fin.Return","M475",{"$f":"Fin.Return!M489","v":0}]
[{"$f":"'Standing Data'!$D$15","v":{"$error":"#N/A"}},{"$f":"'Standing Data'!$F$15","v":0},{"$f":"'Standing Data'!$F$9","v":0},"Fin.Return","M477",{"$f":"Fin.Return!M491","v":0}]
[{"$f":"'Standing Data'!$D$15","v":{"$error":"#N/A"}},{"$f":"'Standing Data'!$F$15","v":0},{"$f":"'Standing Data'!$F$9","v":0},"Fin.Return","M480",{"$f":"Fin.Return!M494","v":0}]
[{"$f":"'Standing Data'!$D$15","v":{"$error":"#N/A"}},{"$f":"'Standing Data'!$F$15","v":0},{"$f":"'Standing Data'!$F$9","v":0},"Fin.Return","M481",{"$f":"Fin.Return!M495","v":0}]
[{"$f":"'Standing Data'!$D$15","v":{"$error":"#N/A"}},{"$f":"'Standing Data'!$F$15","v":0},{"$f":"'Standing Data'!$F$9","v":0},"Fin.Return","M482",{"$f":"Fin.Return!M496","v":0}]
[{"$f":"'Standing Data'!$D$15","v":{"$error":"#N/A"}},{"$f":"'Standing Data'!$F$15","v":0},{"$f":"'Standing Data'!$F$9","v":0},"Fin.Return","M483",{"$f":"Fin.Return!M497","v":0}]
[{"$f":"'Standing Data'!$D$15","v":{"$error":"#N/A"}},{"$f":"'Standing Data'!$F$15","v":0},{"$f":"'Standing Data'!$F$9","v":0},"Fin.Return","M484",{"$f":"Fin.Return!M498","v":0}]
[{"$f":"'Standing Data'!$D$15","v":{"$error":"#N/A"}},{"$f":"'Standing Data'!$F$15","v":0},{"$f":"'Standing Data'!$F$9","v":0},"Fin.Return","M486",{"$f":"Fin.Return!M500","v":0}]
[{"$f":"'Standing Data'!$D$15","v":{"$error":"#N/A"}},{"$f":"'Standing Data'!$F$15","v":0},{"$f":"'Standing Data'!$F$9","v":0},"Fin.Return","M489",{"$f":"Fin.Return!M503","v":0}]
[{"$f":"'Standing Data'!$D$15","v":{"$error":"#N/A"}},{"$f":"'Standing Data'!$F$15","v":0},{"$f":"'Standing Data'!$F$9","v":0},"Fin.Return","M490",{"$f":"Fin.Return!M504","v":0}]
[{"$f":"'Standing Data'!$D$15","v":{"$error":"#N/A"}},{"$f":"'Standing Data'!$F$15","v":0},{"$f":"'Standing Data'!$F$9","v":0},"Fin.Return","M491",{"$f":"Fin.Return!M505","v":0}]
[{"$f":"'Standing Data'!$D$15","v":{"$error":"#N/A"}},{"$f":"'Standing Data'!$F$15","v":0},{"$f":"'Standing Data'!$F$9","v":0},"Fin.Return","M493",{"$f":"Fin.Return!M507","v":0}]
[{"$f":"'Standing Data'!$D$15","v":{"$error":"#N/A"}},{"$f":"'Standing Data'!$F$15","v":0},{"$f":"'Standing Data'!$F$9","v":0},"Fin.Return","M496",{"$f":"Fin.Return!M510","v":0}]
[{"$f":"'Standing Data'!$D$15","v":{"$error":"#N/A"}},{"$f":"'Standing Data'!$F$15","v":0},{"$f":"'Standing Data'!$F$9","v":0},"Fin.Return","M499",{"$f":"Fin.Return!M513","v":0}]
[{"$f":"'Standing Data'!$D$15","v":{"$error":"#N/A"}},{"$f":"'Standing Data'!$F$15","v":0},{"$f":"'Standing Data'!$F$9","v":0},"Fin.Return","M503",{"$f":"Fin.Return!M517","v":0}]
[{"$f":"'Standing Data'!$D$15","v":{"$error":"#N/A"}},{"$f":"'Standing Data'!$F$15","v":0},{"$f":"'Standing Data'!$F$9","v":0},"Fin.Return","M504",{"$f":"Fin.Return!M518","v":0}]
[{"$f":"'Standing Data'!$D$15","v":{"$error":"#N/A"}},{"$f":"'Standing Data'!$F$15","v":0},{"$f":"'Standing Data'!$F$9","v":0},"Fin.Return","M505",{"$f":"Fin.Return!M519","v":0}]
[{"$f":"'Standing Data'!$D$15","v":{"$error":"#N/A"}},{"$f":"'Standing Data'!$F$15","v":0},{"$f":"'Standing Data'!$F$9","v":0},"Fin.Return","M514",{"$f":"Fin.Return!M528","v":0}]
[{"$f":"'Standing Data'!$D$15","v":{"$error":"#N/A"}},{"$f":"'Standing Data'!$F$15","v":0},{"$f":"'Standing Data'!$F$9","v":0},"Fin.Return","M515",{"$f":"Fin.Return!M529","v":0}]
[{"$f":"'Standing Data'!$D$15","v":{"$error":"#N/A"}},{"$f":"'Standing Data'!$F$15","v":0},{"$f":"'Standing Data'!$F$9","v":0},"Fin.Return","M517",{"$f":"Fin.Return!M531","v":0}]
[{"$f":"'Standing Data'!$D$15","v":{"$error":"#N/A"}},{"$f":"'Standing Data'!$F$15","v":0},{"$f":"'Standing Data'!$F$9","v":0},"Fin.Return","M519",{"$f":"Fin.Return!M533","v":0}]
[{"$f":"'Standing Data'!$D$15","v":{"$error":"#N/A"}},{"$f":"'Standing Data'!$F$15","v":0},{"$f":"'Standing Data'!$F$9","v":0},"Fin.Return","M908",{"$f":"Fin.Return!M1035","v":0}]
[{"$f":"'Standing Data'!$D$15","v":{"$error":"#N/A"}},{"$f":"'Standing Data'!$F$15","v":0},{"$f":"'Standing Data'!$F$9","v":0},"Fin.Return","M909",{"$f":"Fin.Return!M1036","v":0}]
[{"$f":"'Standing Data'!$D$15","v":{"$error":"#N/A"}},{"$f":"'Standing Data'!$F$15","v":0},{"$f":"'Standing Data'!$F$9","v":0},"Fin.Return","M910",{"$f":"Fin.Return!M1037","v":0}]
[{"$f":"'Standing Data'!$D$15","v":{"$error":"#N/A"}},{"$f":"'Standing Data'!$F$15","v":0},{"$f":"'Standing Data'!$F$9","v":0},"Fin.Return","M911",{"$f":"Fin.Return!M1038","v":0}]
[{"$f":"'Standing Data'!$D$15","v":{"$error":"#N/A"}},{"$f":"'Standing Data'!$F$15","v":0},{"$f":"'Standing Data'!$F$9","v":0},"Fin.Return","M912",{"$f":"Fin.Return!M1039","v":0}]
[{"$f":"'Standing Data'!$D$15","v":{"$error":"#N/A"}},{"$f":"'Standing Data'!$F$15","v":0},{"$f":"'Standing Data'!$F$9","v":0},"Fin.Return","M914",{"$f":"Fin.Return!M1041","v":0}]
[{"$f":"'Standing Data'!$D$15","v":{"$error":"#N/A"}},{"$f":"'Standing Data'!$F$15","v":0},{"$f":"'Standing Data'!$F$9","v":0},"Fin.Return","M913",{"$f":"Fin.Return!M1040","v":0}]
[{"$f":"'Standing Data'!$D$15","v":{"$error":"#N/A"}},{"$f":"'Standing Data'!$F$15","v":0},{"$f":"'Standing Data'!$F$9","v":0},"Fin.Return","M916",{"$f":"Fin.Return!M1043","v":0}]
[{"$f":"'Standing Data'!$D$15","v":{"$error":"#N/A"}},{"$f":"'Standing Data'!$F$15","v":0},{"$f":"'Standing Data'!$F$9","v":0},"Fin.Return","M917",{"$f":"Fin.Return!M1044","v":0}]
[{"$f":"'Standing Data'!$D$15","v":{"$error":"#N/A"}},{"$f":"'Standing Data'!$F$15","v":0},{"$f":"'Standing Data'!$F$9","v":0},"Fin.Return","M918",{"$f":"Fin.Return!M1045","v":0}]
[{"$f":"'Standing Data'!$D$15","v":{"$error":"#N/A"}},{"$f":"'Standing Data'!$F$15","v":0},{"$f":"'Standing Data'!$F$9","v":0},"Fin.Return","M919",{"$f":"Fin.Return!M1046","v":0}]
[{"$f":"'Standing Data'!$D$15","v":{"$error":"#N/A"}},{"$f":"'Standing Data'!$F$15","v":0},{"$f":"'Standing Data'!$F$9","v":0},"Fin.Return","M920",{"$f":"Fin.Return!M1047","v":0}]
[{"$f":"'Standing Data'!$D$15","v":{"$error":"#N/A"}},{"$f":"'Standing Data'!$F$15","v":0},{"$f":"'Standing Data'!$F$9","v":0},"Fin.Return","M922",{"$f":"Fin.Return!M1049","v":0}]
[{"$f":"'Standing Data'!$D$15","v":{"$error":"#N/A"}},{"$f":"'Standing Data'!$F$15","v":0},{"$f":"'Standing Data'!$F$9","v":0},"Fin.Return","M924",{"$f":"Fin.Return!M1051","v":0}]
[{"$f":"'Standing Data'!$D$15","v":{"$error":"#N/A"}},{"$f":"'Standing Data'!$F$15","v":0},{"$f":"'Standing Data'!$F$9","v":0},"Fin.Return","M925",{"$f":"Fin.Return!M1052","v":0}]
[{"$f":"'Standing Data'!$D$15","v":{"$error":"#N/A"}},{"$f":"'Standing Data'!$F$15","v":0},{"$f":"'Standing Data'!$F$9","v":0},"Fin.Return","M926",{"$f":"Fin.Return!M1053","v":0}]
[{"$f":"'Standing Data'!$D$15","v":{"$error":"#N/A"}},{"$f":"'Standing Data'!$F$15","v":0},{"$f":"'Standing Data'!$F$9","v":0},"Fin.Return","M927",{"$f":"Fin.Return!M1054","v":0}]
[{"$f":"'Standing Data'!$D$15","v":{"$error":"#N/A"}},{"$f":"'Standing Data'!$F$15","v":0},{"$f":"'Standing Data'!$F$9","v":0},"Fin.Return","M928",{"$f":"Fin.Return!M1055","v":0}]
[{"$f":"'Standing Data'!$D$15","v":{"$error":"#N/A"}},{"$f":"'Standing Data'!$F$15","v":0},{"$f":"'Standing Data'!$F$9","v":0},"Fin.Return","M929",{"$f":"Fin.Return!M1056","v":0}]
[{"$f":"'Standing Data'!$D$15","v":{"$error":"#N/A"}},{"$f":"'Standing Data'!$F$15","v":0},{"$f":"'Standing Data'!$F$9","v":0},"Fin.Return","M930",{"$f":"Fin.Return!M1057","v":0}]
[{"$f":"'Standing Data'!$D$15","v":{"$error":"#N/A"}},{"$f":"'Standing Data'!$F$15","v":0},{"$f":"'Standing Data'!$F$9","v":0},"Fin.Return","M931",{"$f":"Fin.Return!M1058","v":0}]
[{"$f":"'Standing Data'!$D$15","v":{"$error":"#N/A"}},{"$f":"'Standing Data'!$F$15","v":0},{"$f":"'Standing Data'!$F$9","v":0},"Fin.Return","M933",{"$f":"Fin.Return!M1060","v":0}]
[{"$f":"'Standing Data'!$D$15","v":{"$error":"#N/A"}},{"$f":"'Standing Data'!$F$15","v":0},{"$f":"'Standing Data'!$F$9","v":0},"Fin.Return","M934",{"$f":"Fin.Return!M1061","v":0}]
[{"$f":"'Standing Data'!$D$15","v":{"$error":"#N/A"}},{"$f":"'Standing Data'!$F$15","v":0},{"$f":"'Standing Data'!$F$9","v":0},"Fin.Return","M935",{"$f":"Fin.Return!M1062","v":0}]
[{"$f":"'Standing Data'!$D$15","v":{"$error":"#N/A"}},{"$f":"'Standing Data'!$F$15","v":0},{"$f":"'Standing Data'!$F$9","v":0},"Fin.Return","M936",{"$f":"Fin.Return!M1063","v":0}]
[{"$f":"'Standing Data'!$D$15","v":{"$error":"#N/A"}},{"$f":"'Standing Data'!$F$15","v":0},{"$f":"'Standing Data'!$F$9","v":0},"Fin.Return","M938",{"$f":"Fin.Return!M1065","v":0}]
[{"$f":"'Standing Data'!$D$15","v":{"$error":"#N/A"}},{"$f":"'Standing Data'!$F$15","v":0},{"$f":"'Standing Data'!$F$9","v":0},"Fin.Return","M940",{"$f":"Fin.Return!M1067","v":0}]
[{"$f":"'Standing Data'!$D$15","v":{"$error":"#N/A"}},{"$f":"'Standing Data'!$F$15","v":0},{"$f":"'Standing Data'!$F$9","v":0},"Fin.Return","M942",{"$f":"Fin.Return!M1069","v":0}]
[{"$f":"'Standing Data'!$D$15","v":{"$error":"#N/A"}},{"$f":"'Standing Data'!$F$15","v":0},{"$f":"'Standing Data'!$F$9","v":0},"Fin.Return","M1009",{"$f":"Fin.Return!M1136","v":0}]
[{"$f":"'Standing Data'!$D$15","v":{"$error":"#N/A"}},{"$f":"'Standing Data'!$F$15","v":0},{"$f":"'Standing Data'!$F$9","v":0},"Fin.Return","M1010",{"$f":"Fin.Return!M1137","v":0}]
[{"$f":"'Standing Data'!$D$15","v":{"$error":"#N/A"}},{"$f":"'Standing Data'!$F$15","v":0},{"$f":"'Standing Data'!$F$9","v":0},"Fin.Return","M1011",{"$f":"Fin.Return!M1138","v":0}]
[{"$f":"'Standing Data'!$D$15","v":{"$error":"#N/A"}},{"$f":"'Standing Data'!$F$15","v":0},{"$f":"'Standing Data'!$F$9","v":0},"Fin.Return","M1013",{"$f":"Fin.Return!M1140","v":0}]
[{"$f":"'Standing Data'!$D$15","v":{"$error":"#N/A"}},{"$f":"'Standing Data'!$F$15","v":0},{"$f":"'Standing Data'!$F$9","v":0},"Fin.Return","M1014",{"$f":"Fin.Return!M1141","v":0}]
[{"$f":"'Standing Data'!$D$15","v":{"$error":"#N/A"}},{"$f":"'Standing Data'!$F$15","v":0},{"$f":"'Standing Data'!$F$9","v":0},"Fin.Return","M1015",{"$f":"Fin.Return!M1142","v":0}]
[{"$f":"'Standing Data'!$D$15","v":{"$error":"#N/A"}},{"$f":"'Standing Data'!$F$15","v":0},{"$f":"'Standing Data'!$F$9","v":0},"Fin.Return","M1017",{"$f":"Fin.Return!M1144","v":0}]
[{"$f":"'Standing Data'!$D$15","v":{"$error":"#N/A"}},{"$f":"'Standing Data'!$F$15","v":0},{"$f":"'Standing Data'!$F$9","v":0},"Fin.Return","M1018",{"$f":"Fin.Return!M1145","v":0}]
[{"$f":"'Standing Data'!$D$15","v":{"$error":"#N/A"}},{"$f":"'Standing Data'!$F$15","v":0},{"$f":"'Standing Data'!$F$9","v":0},"Fin.Return","M1019",{"$f":"Fin.Return!M1146","v":0}]
[{"$f":"'Standing Data'!$D$15","v":{"$error":"#N/A"}},{"$f":"'Standing Data'!$F$15","v":0},{"$f":"'Standing Data'!$F$9","v":0},"Fin.Return","M1021",{"$f":"Fin.Return!M1148","v":0}]
[{"$f":"'Standing Data'!$D$15","v":{"$error":"#N/A"}},{"$f":"'Standing Data'!$F$15","v":0},{"$f":"'Standing Data'!$F$9","v":0},"Fin.Return","M1022",{"$f":"Fin.Return!M1149","v":0}]
[{"$f":"'Standing Data'!$D$15","v":{"$error":"#N/A"}},{"$f":"'Standing Data'!$F$15","v":0},{"$f":"'Standing Data'!$F$9","v":0},"Fin.Return","M1024",{"$f":"Fin.Return!M1151","v":0}]
[{"$f":"'Standing Data'!$D$15","v":{"$error":"#N/A"}},{"$f":"'Standing Data'!$F$15","v":0},{"$f":"'Standing Data'!$F$9","v":0},"Fin.Return","M1082",{"$f":"Fin.Return!M1209","v":0}]
[{"$f":"'Standing Data'!$D$15","v":{"$error":"#N/A"}},{"$f":"'Standing Data'!$F$15","v":0},{"$f":"'Standing Data'!$F$9","v":0},"Fin.Return","M1083",{"$f":"Fin.Return!M1210","v":0}]
[{"$f":"'Standing Data'!$D$15","v":{"$error":"#N/A"}},{"$f":"'Standing Data'!$F$15","v":0},{"$f":"'Standing Data'!$F$9","v":0},"Fin.Return","M1084",{"$f":"Fin.Return!M1211","v":0}]
[{"$f":"'Standing Data'!$D$15","v":{"$error":"#N/A"}},{"$f":"'Standing Data'!$F$15","v":0},{"$f":"'Standing Data'!$F$9","v":0},"Fin.Return","M1086",{"$f":"Fin.Return!M1213","v":0}]
[{"$f":"'Standing Data'!$D$15","v":{"$error":"#N/A"}},{"$f":"'Standing Data'!$F$15","v":0},{"$f":"'Standing Data'!$F$9","v":0},"Fin.Return","M1087",{"$f":"Fin.Return!M1214","v":0}]
[{"$f":"'Standing Data'!$D$15","v":{"$error":"#N/A"}},{"$f":"'Standing Data'!$F$15","v":0},{"$f":"'Standing Data'!$F$9","v":0},"Fin.Return","M1088",{"$f":"Fin.Return!M1215","v":0}]
[{"$f":"'Standing Data'!$D$15","v":{"$error":"#N/A"}},{"$f":"'Standing Data'!$F$15","v":0},{"$f":"'Standing Data'!$F$9","v":0},"Fin.Return","M1090",{"$f":"Fin.Return!M1217","v":0}]
[{"$f":"'Standing Data'!$D$15","v":{"$error":"#N/A"}},{"$f":"'Standing Data'!$F$15","v":0},{"$f":"'Standing Data'!$F$9","v":0},"Fin.Return","M1091",{"$f":"Fin.Return!M1218","v":0}]
[{"$f":"'Standing Data'!$D$15","v":{"$error":"#N/A"}},{"$f":"'Standing Data'!$F$15","v":0},{"$f":"'Standing Data'!$F$9","v":0},"Fin.Return","M1092",{"$f":"Fin.Return!M1219","v":0}]
[{"$f":"'Standing Data'!$D$15","v":{"$error":"#N/A"}},{"$f":"'Standing Data'!$F$15","v":0},{"$f":"'Standing Data'!$F$9","v":0},"Fin.Return","M1094",{"$f":"Fin.Return!M1221","v":0}]
[{"$f":"'Standing Data'!$D$15","v":{"$error":"#N/A"}},{"$f":"'Standing Data'!$F$15","v":0},{"$f":"'Standing Data'!$F$9","v":0},"Fin.Return","M1095",{"$f":"Fin.Return!M1222","v":0}]
[{"$f":"'Standing Data'!$D$15","v":{"$error":"#N/A"}},{"$f":"'Standing Data'!$F$15","v":0},{"$f":"'Standing Data'!$F$9","v":0},"Fin.Return","M1097",{"$f":"Fin.Return!M1224","v":0}]
[{"$f":"'Standing Data'!$D$15","v":{"$error":"#N/A"}},{"$f":"'Standing Data'!$F$15","v":0},{"$f":"'Standing Data'!$F$9","v":0},"Fin.Return","M1111",{"$f":"Fin.Return!M1238","v":0}]
[{"$f":"'Standing Data'!$D$15","v":{"$error":"#N/A"}},{"$f":"'Standing Data'!$F$15","v":0},{"$f":"'Standing Data'!$F$9","v":0},"Fin.Return","M1112",{"$f":"Fin.Return!M1239","v":0}]
[{"$f":"'Standing Data'!$D$15","v":{"$error":"#N/A"}},{"$f":"'Standing Data'!$F$15","v":0},{"$f":"'Standing Data'!$F$9","v":0},"Fin.Return","M1113",{"$f":"Fin.Return!M1240","v":0}]
[{"$f":"'Standing Data'!$D$15","v":{"$error":"#N/A"}},{"$f":"'Standing Data'!$F$15","v":0},{"$f":"'Standing Data'!$F$9","v":0},"Fin.Return","M1115",{"$f":"Fin.Return!M1242","v":0}]
[{"$f":"'Standing Data'!$D$15","v":{"$error":"#N/A"}},{"$f":"'Standing Data'!$F$15","v":0},{"$f":"'Standing Data'!$F$9","v":0},"Fin.Return","M1131",{"$f":"Fin.Return!M1258","v":0}]
[{"$f":"'Standing Data'!$D$15","v":{"$error":"#N/A"}},{"$f":"'Standing Data'!$F$15","v":0},{"$f":"'Standing Data'!$F$9","v":0},"Fin.Return","M1132",{"$f":"Fin.Return!M1259","v":0}]
[{"$f":"'Standing Data'!$D$15","v":{"$error":"#N/A"}},{"$f":"'Standing Data'!$F$15","v":0},{"$f":"'Standing Data'!$F$9","v":0},"Fin.Return","M1133",{"$f":"Fin.Return!M1260","v":0}]
[{"$f":"'Standing Data'!$D$15","v":{"$error":"#N/A"}},{"$f":"'Standing Data'!$F$15","v":0},{"$f":"'Standing Data'!$F$9","v":0},"Fin.Return","M1135",{"$f":"Fin.Return!M1262","v":0}]
[{"$f":"'Standing Data'!$D$15","v":{"$error":"#N/A"}},{"$f":"'Standing Data'!$F$15","v":0},{"$f":"'Standing Data'!$F$9","v":0},"Fin.Return","M1237",{"$f":"Fin.Return!M1334","v":0}]
[{"$f":"'Standing Data'!$D$15","v":{"$error":"#N/A"}},{"$f":"'Standing Data'!$F$15","v":0},{"$f":"'Standing Data'!$F$9","v":0},"Fin.Return","M1238",{"$f":"Fin.Return!M1335","v":0}]
[{"$f":"'Standing Data'!$D$15","v":{"$error":"#N/A"}},{"$f":"'Standing Data'!$F$15","v":0},{"$f":"'Standing Data'!$F$9","v":0},"Fin.Return","M1239",{"$f":"Fin.Return!M1336","v":0}]
[{"$f":"'Standing Data'!$D$15","v":{"$error":"#N/A"}},{"$f":"'Standing Data'!$F$15","v":0},{"$f":"'Standing Data'!$F$9","v":0},"Fin.Return","M1240",{"$f":"Fin.Return!M1337","v":0}]
[{"$f":"'Standing Data'!$D$15","v":{"$error":"#N/A"}},{"$f":"'Standing Data'!$F$15","v":0},{"$f":"'Standing Data'!$F$9","v":0},"Fin.Return","M1241",{"$f":"Fin.Return!M1338","v":0}]
[{"$f":"'Standing Data'!$D$15","v":{"$error":"#N/A"}},{"$f":"'Standing Data'!$F$15","v":0},{"$f":"'Standing Data'!$F$9","v":0},"Fin.Return","M1242",{"$f":"Fin.Return!M1339","v":0}]
[{"$f":"'Standing Data'!$D$15","v":{"$error":"#N/A"}},{"$f":"'Standing Data'!$F$15","v":0},{"$f":"'Standing Data'!$F$9","v":0},"Fin.Return","M1243",{"$f":"Fin.Return!M1340","v":0}]
[{"$f":"'Standing Data'!$D$15","v":{"$error":"#N/A"}},{"$f":"'Standing Data'!$F$15","v":0},{"$f":"'Standing Data'!$F$9","v":0},"Fin.Return","M1244",{"$f":"Fin.Return!M1341","v":0}]
[{"$f":"'Standing Data'!$D$15","v":{"$error":"#N/A"}},{"$f":"'Standing Data'!$F$15","v":0},{"$f":"'Standing Data'!$F$9","v":0},"Fin.Return","M1245",{"$f":"Fin.Return!M1342","v":0}]
[{"$f":"'Standing Data'!$D$15","v":{"$error":"#N/A"}},{"$f":"'Standing Data'!$F$15","v":0},{"$f":"'Standing Data'!$F$9","v":0},"Fin.Return","M1246",{"$f":"Fin.Return!M1343","v":0}]
[{"$f":"'Standing Data'!$D$15","v":{"$error":"#N/A"}},{"$f":"'Standing Data'!$F$15","v":0},{"$f":"'Standing Data'!$F$9","v":0},"Fin.Return","M1247",{"$f":"Fin.Return!M1344","v":0}]
[{"$f":"'Standing Data'!$D$15","v":{"$error":"#N/A"}},{"$f":"'Standing Data'!$F$15","v":0},{"$f":"'Standing Data'!$F$9","v":0},"Fin.Return","M1248",{"$f":"Fin.Return!M1345","v":0}]
[{"$f":"'Standing Data'!$D$15","v":{"$error":"#N/A"}},{"$f":"'Standing Data'!$F$15","v":0},{"$f":"'Standing Data'!$F$9","v":0},"Fin.Return","M1249",{"$f":"Fin.Return!M1346","v":0}]
[{"$f":"'Standing Data'!$D$15","v":{"$error":"#N/A"}},{"$f":"'Standing Data'!$F$15","v":0},{"$f":"'Standing Data'!$F$9","v":0},"Fin.Return","M1250",{"$f":"Fin.Return!M1347","v":0}]
[{"$f":"'Standing Data'!$D$15","v":{"$error":"#N/A"}},{"$f":"'Standing Data'!$F$15","v":0},{"$f":"'Standing Data'!$F$9","v":0},"Fin.Return","M1252",{"$f":"Fin.Return!M1349","v":0}]
[{"$f":"'Standing Data'!$D$15","v":{"$error":"#N/A"}},{"$f":"'Standing Data'!$F$15","v":0},{"$f":"'Standing Data'!$F$9","v":0},"Fin.Return","N468",{"$f":"Fin.Return!N482","v":0}]
[{"$f":"'Standing Data'!$D$15","v":{"$error":"#N/A"}},{"$f":"'Standing Data'!$F$15","v":0},{"$f":"'Standing Data'!$F$9","v":0},"Fin.Return","N469",{"$f":"Fin.Return!N483","v":0}]
[{"$f":"'Standing Data'!$D$15","v":{"$error":"#N/A"}},{"$f":"'Standing Data'!$F$15","v":0},{"$f":"'Standing Data'!$F$9","v":0},"Fin.Return","N470",{"$f":"Fin.Return!N484","v":0}]
[{"$f":"'Standing Data'!$D$15","v":{"$error":"#N/A"}},{"$f":"'Standing Data'!$F$15","v":0},{"$f":"'Standing Data'!$F$9","v":0},"Fin.Return","N471",{"$f":"Fin.Return!N485","v":0}]
[{"$f":"'Standing Data'!$D$15","v":{"$error":"#N/A"}},{"$f":"'Standing Data'!$F$15","v":0},{"$f":"'Standing Data'!$F$9","v":0},"Fin.Return","N472",{"$f":"Fin.Return!N486","v":0}]
[{"$f":"'Standing Data'!$D$15","v":{"$error":"#N/A"}},{"$f":"'Standing Data'!$F$15","v":0},{"$f":"'Standing Data'!$F$9","v":0},"Fin.Return","N473",{"$f":"Fin.Return!N487","v":0}]
[{"$f":"'Standing Data'!$D$15","v":{"$error":"#N/A"}},{"$f":"'Standing Data'!$F$15","v":0},{"$f":"'Standing Data'!$F$9","v":0},"Fin.Return","N474",{"$f":"Fin.Return!N488","v":0}]
[{"$f":"'Standing Data'!$D$15","v":{"$error":"#N/A"}},{"$f":"'Standing Data'!$F$15","v":0},{"$f":"'Standing Data'!$F$9","v":0},"Fin.Return","N475",{"$f":"Fin.Return!N489","v":0}]
[{"$f":"'Standing Data'!$D$15","v":{"$error":"#N/A"}},{"$f":"'Standing Data'!$F$15","v":0},{"$f":"'Standing Data'!$F$9","v":0},"Fin.Return","N477",{"$f":"Fin.Return!N491","v":0}]
[{"$f":"'Standing Data'!$D$15","v":{"$error":"#N/A"}},{"$f":"'Standing Data'!$F$15","v":0},{"$f":"'Standing Data'!$F$9","v":0},"Fin.Return","N480",{"$f":"Fin.Return!N494","v":0}]
[{"$f":"'Standing Data'!$D$15","v":{"$error":"#N/A"}},{"$f":"'Standing Data'!$F$15","v":0},{"$f":"'Standing Data'!$F$9","v":0},"Fin.Return","N481",{"$f":"Fin.Return!N495","v":0}]
[{"$f":"'Standing Data'!$D$15","v":{"$error":"#N/A"}},{"$f":"'Standing Data'!$F$15","v":0},{"$f":"'Standing Data'!$F$9","v":0},"Fin.Return","N482",{"$f":"Fin.Return!N496","v":0}]
[{"$f":"'Standing Data'!$D$15","v":{"$error":"#N/A"}},{"$f":"'Standing Data'!$F$15","v":0},{"$f":"'Standing Data'!$F$9","v":0},"Fin.Return","N483",{"$f":"Fin.Return!N497","v":0}]
[{"$f":"'Standing Data'!$D$15","v":{"$error":"#N/A"}},{"$f":"'Standing Data'!$F$15","v":0},{"$f":"'Standing Data'!$F$9","v":0},"Fin.Return","N484",{"$f":"Fin.Return!N498","v":0}]
[{"$f":"'Standing Data'!$D$15","v":{"$error":"#N/A"}},{"$f":"'Standing Data'!$F$15","v":0},{"$f":"'Standing Data'!$F$9","v":0},"Fin.Return","N486",{"$f":"Fin.Return!N500","v":0}]
[{"$f":"'Standing Data'!$D$15","v":{"$error":"#N/A"}},{"$f":"'Standing Data'!$F$15","v":0},{"$f":"'Standing Data'!$F$9","v":0},"Fin.Return","N489",{"$f":"Fin.Return!N503","v":0}]
[{"$f":"'Standing Data'!$D$15","v":{"$error":"#N/A"}},{"$f":"'Standing Data'!$F$15","v":0},{"$f":"'Standing Data'!$F$9","v":0},"Fin.Return","N490",{"$f":"Fin.Return!N504","v":0}]
[{"$f":"'Standing Data'!$D$15","v":{"$error":"#N/A"}},{"$f":"'Standing Data'!$F$15","v":0},{"$f":"'Standing Data'!$F$9","v":0},"Fin.Return","N491",{"$f":"Fin.Return!N505","v":0}]
[{"$f":"'Standing Data'!$D$15","v":{"$error":"#N/A"}},{"$f":"'Standing Data'!$F$15","v":0},{"$f":"'Standing Data'!$F$9","v":0},"Fin.Return","N493",{"$f":"Fin.Return!N507","v":0}]
[{"$f":"'Standing Data'!$D$15","v":{"$error":"#N/A"}},{"$f":"'Standing Data'!$F$15","v":0},{"$f":"'Standing Data'!$F$9","v":0},"Fin.Return","N496",{"$f":"Fin.Return!N510","v":0}]
[{"$f":"'Standing Data'!$D$15","v":{"$error":"#N/A"}},{"$f":"'Standing Data'!$F$15","v":0},{"$f":"'Standing Data'!$F$9","v":0},"Fin.Return","N499",{"$f":"Fin.Return!N513","v":0}]
[{"$f":"'Standing Data'!$D$15","v":{"$error":"#N/A"}},{"$f":"'Standing Data'!$F$15","v":0},{"$f":"'Standing Data'!$F$9","v":0},"Fin.Return","N503",{"$f":"Fin.Return!N517","v":0}]
[{"$f":"'Standing Data'!$D$15","v":{"$error":"#N/A"}},{"$f":"'Standing Data'!$F$15","v":0},{"$f":"'Standing Data'!$F$9","v":0},"Fin.Return","N504",{"$f":"Fin.Return!N518","v":0}]
[{"$f":"'Standing Data'!$D$15","v":{"$error":"#N/A"}},{"$f":"'Standing Data'!$F$15","v":0},{"$f":"'Standing Data'!$F$9","v":0},"Fin.Return","N505",{"$f":"Fin.Return!N519","v":0}]
[{"$f":"'Standing Data'!$D$15","v":{"$error":"#N/A"}},{"$f":"'Standing Data'!$F$15","v":0},{"$f":"'Standing Data'!$F$9","v":0},"Fin.Return","N514",{"$f":"Fin.Return!N528","v":0}]
[{"$f":"'Standing Data'!$D$15","v":{"$error":"#N/A"}},{"$f":"'Standing Data'!$F$15","v":0},{"$f":"'Standing Data'!$F$9","v":0},"Fin.Return","N515",{"$f":"Fin.Return!N529","v":0}]
[{"$f":"'Standing Data'!$D$15","v":{"$error":"#N/A"}},{"$f":"'Standing Data'!$F$15","v":0},{"$f":"'Standing Data'!$F$9","v":0},"Fin.Return","N517",{"$f":"Fin.Return!N531","v":0}]
[{"$f":"'Standing Data'!$D$15","v":{"$error":"#N/A"}},{"$f":"'Standing Data'!$F$15","v":0},{"$f":"'Standing Data'!$F$9","v":0},"Fin.Return","N519",{"$f":"Fin.Return!N533","v":0}]
[{"$f":"'Standing Data'!$D$15","v":{"$error":"#N/A"}},{"$f":"'Standing Data'!$F$15","v":0},{"$f":"'Standing Data'!$F$9","v":0},"Fin.Return","N908",{"$f":"Fin.Return!N1035","v":0}]
[{"$f":"'Standing Data'!$D$15","v":{"$error":"#N/A"}},{"$f":"'Standing Data'!$F$15","v":0},{"$f":"'Standing Data'!$F$9","v":0},"Fin.Return","N909",{"$f":"Fin.Return!N1036","v":0}]
[{"$f":"'Standing Data'!$D$15","v":{"$error":"#N/A"}},{"$f":"'Standing Data'!$F$15","v":0},{"$f":"'Standing Data'!$F$9","v":0},"Fin.Return","N910",{"$f":"Fin.Return!N1037","v":0}]
[{"$f":"'Standing Data'!$D$15","v":{"$error":"#N/A"}},{"$f":"'Standing Data'!$F$15","v":0},{"$f":"'Standing Data'!$F$9","v":0},"Fin.Return","N911",{"$f":"Fin.Return!N1038","v":0}]
[{"$f":"'Standing Data'!$D$15","v":{"$error":"#N/A"}},{"$f":"'Standing Data'!$F$15","v":0},{"$f":"'Standing Data'!$F$9","v":0},"Fin.Return","N912",{"$f":"Fin.Return!N1039","v":0}]
[{"$f":"'Standing Data'!$D$15","v":{"$error":"#N/A"}},{"$f":"'Standing Data'!$F$15","v":0},{"$f":"'Standing Data'!$F$9","v":0},"Fin.Return","N914",{"$f":"Fin.Return!N1041","v":0}]
[{"$f":"'Standing Data'!$D$15","v":{"$error":"#N/A"}},{"$f":"'Standing Data'!$F$15","v":0},{"$f":"'Standing Data'!$F$9","v":0},"Fin.Return","N913",{"$f":"Fin.Return!N1040","v":0}]
[{"$f":"'Standing Data'!$D$15","v":{"$error":"#N/A"}},{"$f":"'Standing Data'!$F$15","v":0},{"$f":"'Standing Data'!$F$9","v":0},"Fin.Return","N916",{"$f":"Fin.Return!N1043","v":0}]
[{"$f":"'Standing Data'!$D$15","v":{"$error":"#N/A"}},{"$f":"'Standing Data'!$F$15","v":0},{"$f":"'Standing Data'!$F$9","v":0},"Fin.Return","N917",{"$f":"Fin.Return!N1044","v":0}]
[{"$f":"'Standing Data'!$D$15","v":{"$error":"#N/A"}},{"$f":"'Standing Data'!$F$15","v":0},{"$f":"'Standing Data'!$F$9","v":0},"Fin.Return","N918",{"$f":"Fin.Return!N1045","v":0}]
[{"$f":"'Standing Data'!$D$15","v":{"$error":"#N/A"}},{"$f":"'Standing Data'!$F$15","v":0},{"$f":"'Standing Data'!$F$9","v":0},"Fin.Return","N919",{"$f":"Fin.Return!N1046","v":0}]
[{"$f":"'Standing Data'!$D$15","v":{"$error":"#N/A"}},{"$f":"'Standing Data'!$F$15","v":0},{"$f":"'Standing Data'!$F$9","v":0},"Fin.Return","N920",{"$f":"Fin.Return!N1047","v":0}]
[{"$f":"'Standing Data'!$D$15","v":{"$error":"#N/A"}},{"$f":"'Standing Data'!$F$15","v":0},{"$f":"'Standing Data'!$F$9","v":0},"Fin.Return","N922",{"$f":"Fin.Return!N1049","v":0}]
[{"$f":"'Standing Data'!$D$15","v":{"$error":"#N/A"}},{"$f":"'Standing Data'!$F$15","v":0},{"$f":"'Standing Data'!$F$9","v":0},"Fin.Return","N924",{"$f":"Fin.Return!N1051","v":0}]
[{"$f":"'Standing Data'!$D$15","v":{"$error":"#N/A"}},{"$f":"'Standing Data'!$F$15","v":0},{"$f":"'Standing Data'!$F$9","v":0},"Fin.Return","N925",{"$f":"Fin.Return!N1052","v":0}]
[{"$f":"'Standing Data'!$D$15","v":{"$error":"#N/A"}},{"$f":"'Standing Data'!$F$15","v":0},{"$f":"'Standing Data'!$F$9","v":0},"Fin.Return","N926",{"$f":"Fin.Return!N1053","v":0}]
[{"$f":"'Standing Data'!$D$15","v":{"$error":"#N/A"}},{"$f":"'Standing Data'!$F$15","v":0},{"$f":"'Standing Data'!$F$9","v":0},"Fin.Return","N927",{"$f":"Fin.Return!N1054","v":0}]
[{"$f":"'Standing Data'!$D$15","v":{"$error":"#N/A"}},{"$f":"'Standing Data'!$F$15","v":0},{"$f":"'Standing Data'!$F$9","v":0},"Fin.Return","N928",{"$f":"Fin.Return!N1055","v":0}]
[{"$f":"'Standing Data'!$D$15","v":{"$error":"#N/A"}},{"$f":"'Standing Data'!$F$15","v":0},{"$f":"'Standing Data'!$F$9","v":0},"Fin.Return","N929",{"$f":"Fin.Return!N1056","v":0}]
[{"$f":"'Standing Data'!$D$15","v":{"$error":"#N/A"}},{"$f":"'Standing Data'!$F$15","v":0},{"$f":"'Standing Data'!$F$9","v":0},"Fin.Return","N930",{"$f":"Fin.Return!N1057","v":0}]
[{"$f":"'Standing Data'!$D$15","v":{"$error":"#N/A"}},{"$f":"'Standing Data'!$F$15","v":0},{"$f":"'Standing Data'!$F$9","v":0},"Fin.Return","N931",{"$f":"Fin.Return!N1058","v":0}]
[{"$f":"'Standing Data'!$D$15","v":{"$error":"#N/A"}},{"$f":"'Standing Data'!$F$15","v":0},{"$f":"'Standing Data'!$F$9","v":0},"Fin.Return","N933",{"$f":"Fin.Return!N1060","v":0}]
[{"$f":"'Standing Data'!$D$15","v":{"$error":"#N/A"}},{"$f":"'Standing Data'!$F$15","v":0},{"$f":"'Standing Data'!$F$9","v":0},"Fin.Return","N934",{"$f":"Fin.Return!N1061","v":0}]
[{"$f":"'Standing Data'!$D$15","v":{"$error":"#N/A"}},{"$f":"'Standing Data'!$F$15","v":0},{"$f":"'Standing Data'!$F$9","v":0},"Fin.Return","N935",{"$f":"Fin.Return!N1062","v":0}]
[{"$f":"'Standing Data'!$D$15","v":{"$error":"#N/A"}},{"$f":"'Standing Data'!$F$15","v":0},{"$f":"'Standing Data'!$F$9","v":0},"Fin.Return","N936",{"$f":"Fin.Return!N1063","v":0}]
[{"$f":"'Standing Data'!$D$15","v":{"$error":"#N/A"}},{"$f":"'Standing Data'!$F$15","v":0},{"$f":"'Standing Data'!$F$9","v":0},"Fin.Return","N938",{"$f":"Fin.Return!N1065","v":0}]
[{"$f":"'Standing Data'!$D$15","v":{"$error":"#N/A"}},{"$f":"'Standing Data'!$F$15","v":0},{"$f":"'Standing Data'!$F$9","v":0},"Fin.Return","N940",{"$f":"Fin.Return!N1067","v":0}]
[{"$f":"'Standing Data'!$D$15","v":{"$error":"#N/A"}},{"$f":"'Standing Data'!$F$15","v":0},{"$f":"'Standing Data'!$F$9","v":0},"Fin.Return","N942",{"$f":"Fin.Return!N1069","v":0}]
[{"$f":"'Standing Data'!$D$15","v":{"$error":"#N/A"}},{"$f":"'Standing Data'!$F$15","v":0},{"$f":"'Standing Data'!$F$9","v":0},"Fin.Return","P908",{"$f":"Fin.Return!P1035","v":0}]
[{"$f":"'Standing Data'!$D$15","v":{"$error":"#N/A"}},{"$f":"'Standing Data'!$F$15","v":0},{"$f":"'Standing Data'!$F$9","v":0},"Fin.Return","P909",{"$f":"Fin.Return!P1036","v":0}]
[{"$f":"'Standing Data'!$D$15","v":{"$error":"#N/A"}},{"$f":"'Standing Data'!$F$15","v":0},{"$f":"'Standing Data'!$F$9","v":0},"Fin.Return","P910",{"$f":"Fin.Return!P1037","v":0}]
[{"$f":"'Standing Data'!$D$15","v":{"$error":"#N/A"}},{"$f":"'Standing Data'!$F$15","v":0},{"$f":"'Standing Data'!$F$9","v":0},"Fin.Return","P911",{"$f":"Fin.Return!P1038","v":0}]
[{"$f":"'Standing Data'!$D$15","v":{"$error":"#N/A"}},{"$f":"'Standing Data'!$F$15","v":0},{"$f":"'Standing Data'!$F$9","v":0},"Fin.Return","P912",{"$f":"Fin.Return!P1039","v":0}]
[{"$f":"'Standing Data'!$D$15","v":{"$error":"#N/A"}},{"$f":"'Standing Data'!$F$15","v":0},{"$f":"'Standing Data'!$F$9","v":0},"Fin.Return","P914",{"$f":"Fin.Return!P1041","v":0}]
[{"$f":"'Standing Data'!$D$15","v":{"$error":"#N/A"}},{"$f":"'Standing Data'!$F$15","v":0},{"$f":"'Standing Data'!$F$9","v":0},"Fin.Return","P913",{"$f":"Fin.Return!P1040","v":0}]
[{"$f":"'Standing Data'!$D$15","v":{"$error":"#N/A"}},{"$f":"'Standing Data'!$F$15","v":0},{"$f":"'Standing Data'!$F$9","v":0},"Fin.Return","P916",{"$f":"Fin.Return!P1043","v":0}]
[{"$f":"'Standing Data'!$D$15","v":{"$error":"#N/A"}},{"$f":"'Standing Data'!$F$15","v":0},{"$f":"'Standing Data'!$F$9","v":0},"Fin.Return","P917",{"$f":"Fin.Return!P1044","v":0}]
[{"$f":"'Standing Data'!$D$15","v":{"$error":"#N/A"}},{"$f":"'Standing Data'!$F$15","v":0},{"$f":"'Standing Data'!$F$9","v":0},"Fin.Return","P918",{"$f":"Fin.Return!P1045","v":0}]
[{"$f":"'Standing Data'!$D$15","v":{"$error":"#N/A"}},{"$f":"'Standing Data'!$F$15","v":0},{"$f":"'Standing Data'!$F$9","v":0},"Fin.Return","P919",{"$f":"Fin.Return!P1046","v":0}]
[{"$f":"'Standing Data'!$D$15","v":{"$error":"#N/A"}},{"$f":"'Standing Data'!$F$15","v":0},{"$f":"'Standing Data'!$F$9","v":0},"Fin.Return","P920",{"$f":"Fin.Return!P1047","v":0}]
[{"$f":"'Standing Data'!$D$15","v":{"$error":"#N/A"}},{"$f":"'Standing Data'!$F$15","v":0},{"$f":"'Standing Data'!$F$9","v":0},"Fin.Return","P922",{"$f":"Fin.Return!P1049","v":0}]
[{"$f":"'Standing Data'!$D$15","v":{"$error":"#N/A"}},{"$f":"'Standing Data'!$F$15","v":0},{"$f":"'Standing Data'!$F$9","v":0},"Fin.Return","P924",{"$f":"Fin.Return!P1051","v":0}]
[{"$f":"'Standing Data'!$D$15","v":{"$error":"#N/A"}},{"$f":"'Standing Data'!$F$15","v":0},{"$f":"'Standing Data'!$F$9","v":0},"Fin.Return","P925",{"$f":"Fin.Return!P1052","v":0}]
[{"$f":"'Standing Data'!$D$15","v":{"$error":"#N/A"}},{"$f":"'Standing Data'!$F$15","v":0},{"$f":"'Standing Data'!$F$9","v":0},"Fin.Return","P926",{"$f":"Fin.Return!P1053","v":0}]
[{"$f":"'Standing Data'!$D$15","v":{"$error":"#N/A"}},{"$f":"'Standing Data'!$F$15","v":0},{"$f":"'Standing Data'!$F$9","v":0},"Fin.Return","P927",{"$f":"Fin.Return!P1054","v":0}]
[{"$f":"'Standing Data'!$D$15","v":{"$error":"#N/A"}},{"$f":"'Standing Data'!$F$15","v":0},{"$f":"'Standing Data'!$F$9","v":0},"Fin.Return","P928",{"$f":"Fin.Return!P1055","v":0}]
[{"$f":"'Standing Data'!$D$15","v":{"$error":"#N/A"}},{"$f":"'Standing Data'!$F$15","v":0},{"$f":"'Standing Data'!$F$9","v":0},"Fin.Return","P929",{"$f":"Fin.Return!P1056","v":0}]
[{"$f":"'Standing Data'!$D$15","v":{"$error":"#N/A"}},{"$f":"'Standing Data'!$F$15","v":0},{"$f":"'Standing Data'!$F$9","v":0},"Fin.Return","P930",{"$f":"Fin.Return!P1057","v":0}]
[{"$f":"'Standing Data'!$D$15","v":{"$error":"#N/A"}},{"$f":"'Standing Data'!$F$15","v":0},{"$f":"'Standing Data'!$F$9","v":0},"Fin.Return","P931",{"$f":"Fin.Return!P1058","v":0}]
[{"$f":"'Standing Data'!$D$15","v":{"$error":"#N/A"}},{"$f":"'Standing Data'!$F$15","v":0},{"$f":"'Standing Data'!$F$9","v":0},"Fin.Return","P933",{"$f":"Fin.Return!P1060","v":0}]
[{"$f":"'Standing Data'!$D$15","v":{"$error":"#N/A"}},{"$f":"'Standing Data'!$F$15","v":0},{"$f":"'Standing Data'!$F$9","v":0},"Fin.Return","P934",{"$f":"Fin.Return!P1061","v":0}]
[{"$f":"'Standing Data'!$D$15","v":{"$error":"#N/A"}},{"$f":"'Standing Data'!$F$15","v":0},{"$f":"'Standing Data'!$F$9","v":0},"Fin.Return","P935",{"$f":"Fin.Return!P1062","v":0}]
[{"$f":"'Standing Data'!$D$15","v":{"$error":"#N/A"}},{"$f":"'Standing Data'!$F$15","v":0},{"$f":"'Standing Data'!$F$9","v":0},"Fin.Return","P936",{"$f":"Fin.Return!P1063","v":0}]
[{"$f":"'Standing Data'!$D$15","v":{"$error":"#N/A"}},{"$f":"'Standing Data'!$F$15","v":0},{"$f":"'Standing Data'!$F$9","v":0},"Fin.Return","P938",{"$f":"Fin.Return!P1065","v":0}]
[{"$f":"'Standing Data'!$D$15","v":{"$error":"#N/A"}},{"$f":"'Standing Data'!$F$15","v":0},{"$f":"'Standing Data'!$F$9","v":0},"Fin.Return","P940",{"$f":"Fin.Return!P1067","v":0}]
[{"$f":"'Standing Data'!$D$15","v":{"$error":"#N/A"}},{"$f":"'Standing Data'!$F$15","v":0},{"$f":"'Standing Data'!$F$9","v":0},"Fin.Return","P942",{"$f":"Fin.Return!P1069","v":0}]
[{"$f":"'Standing Data'!$D$15","v":{"$error":"#N/A"}},{"$f":"'Standing Data'!$F$15","v":0},{"$f":"'Standing Data'!$F$9","v":0},"Fin.Return","Q908",{"$f":"Fin.Return!Q1035","v":0}]
[{"$f":"'Standing Data'!$D$15","v":{"$error":"#N/A"}},{"$f":"'Standing Data'!$F$15","v":0},{"$f":"'Standing Data'!$F$9","v":0},"Fin.Return","Q909",{"$f":"Fin.Return!Q1036","v":0}]
[{"$f":"'Standing Data'!$D$15","v":{"$error":"#N/A"}},{"$f":"'Standing Data'!$F$15","v":0},{"$f":"'Standing Data'!$F$9","v":0},"Fin.Return","Q910",{"$f":"Fin.Return!Q1037","v":0}]
[{"$f":"'Standing Data'!$D$15","v":{"$error":"#N/A"}},{"$f":"'Standing Data'!$F$15","v":0},{"$f":"'Standing Data'!$F$9","v":0},"Fin.Return","Q911",{"$f":"Fin.Return!Q1038","v":0}]
[{"$f":"'Standing Data'!$D$15","v":{"$error":"#N/A"}},{"$f":"'Standing Data'!$F$15","v":0},{"$f":"'Standing Data'!$F$9","v":0},"Fin.Return","Q912",{"$f":"Fin.Return!Q1039","v":0}]
[{"$f":"'Standing Data'!$D$15","v":{"$error":"#N/A"}},{"$f":"'Standing Data'!$F$15","v":0},{"$f":"'Standing Data'!$F$9","v":0},"Fin.Return","Q914",{"$f":"Fin.Return!Q1041","v":0}]
[{"$f":"'Standing Data'!$D$15","v":{"$error":"#N/A"}},{"$f":"'Standing Data'!$F$15","v":0},{"$f":"'Standing Data'!$F$9","v":0},"Fin.Return","Q913",{"$f":"Fin.Return!Q1040","v":0}]
[{"$f":"'Standing Data'!$D$15","v":{"$error":"#N/A"}},{"$f":"'Standing Data'!$F$15","v":0},{"$f":"'Standing Data'!$F$9","v":0},"Fin.Return","Q916",{"$f":"Fin.Return!Q1043","v":0}]
[{"$f":"'Standing Data'!$D$15","v":{"$error":"#N/A"}},{"$f":"'Standing Data'!$F$15","v":0},{"$f":"'Standing Data'!$F$9","v":0},"Fin.Return","Q917",{"$f":"Fin.Return!Q1044","v":0}]
[{"$f":"'Standing Data'!$D$15","v":{"$error":"#N/A"}},{"$f":"'Standing Data'!$F$15","v":0},{"$f":"'Standing Data'!$F$9","v":0},"Fin.Return","Q918",{"$f":"Fin.Return!Q1045","v":0}]
[{"$f":"'Standing Data'!$D$15","v":{"$error":"#N/A"}},{"$f":"'Standing Data'!$F$15","v":0},{"$f":"'Standing Data'!$F$9","v":0},"Fin.Return","Q919",{"$f":"Fin.Return!Q1046","v":0}]
[{"$f":"'Standing Data'!$D$15","v":{"$error":"#N/A"}},{"$f":"'Standing Data'!$F$15","v":0},{"$f":"'Standing Data'!$F$9","v":0},"Fin.Return","Q920",{"$f":"Fin.Return!Q1047","v":0}]
[{"$f":"'Standing Data'!$D$15","v":{"$error":"#N/A"}},{"$f":"'Standing Data'!$F$15","v":0},{"$f":"'Standing Data'!$F$9","v":0},"Fin.Return","Q922",{"$f":"Fin.Return!Q1049","v":0}]
[{"$f":"'Standing Data'!$D$15","v":{"$error":"#N/A"}},{"$f":"'Standing Data'!$F$15","v":0},{"$f":"'Standing Data'!$F$9","v":0},"Fin.Return","Q924",{"$f":"Fin.Return!Q1051","v":0}]
[{"$f":"'Standing Data'!$D$15","v":{"$error":"#N/A"}},{"$f":"'Standing Data'!$F$15","v":0},{"$f":"'Standing Data'!$F$9","v":0},"Fin.Return","Q925",{"$f":"Fin.Return!Q1052","v":0}]
[{"$f":"'Standing Data'!$D$15","v":{"$error":"#N/A"}},{"$f":"'Standing Data'!$F$15","v":0},{"$f":"'Standing Data'!$F$9","v":0},"Fin.Return","Q926",{"$f":"Fin.Return!Q1053","v":0}]
[{"$f":"'Standing Data'!$D$15","v":{"$error":"#N/A"}},{"$f":"'Standing Data'!$F$15","v":0},{"$f":"'Standing Data'!$F$9","v":0},"Fin.Return","Q927",{"$f":"Fin.Return!Q1054","v":0}]
[{"$f":"'Standing Data'!$D$15","v":{"$error":"#N/A"}},{"$f":"'Standing Data'!$F$15","v":0},{"$f":"'Standing Data'!$F$9","v":0},"Fin.Return","Q928",{"$f":"Fin.Return!Q1055","v":0}]
[{"$f":"'Standing Data'!$D$15","v":{"$error":"#N/A"}},{"$f":"'Standing Data'!$F$15","v":0},{"$f":"'Standing Data'!$F$9","v":0},"Fin.Return","Q929",{"$f":"Fin.Return!Q1056","v":0}]
[{"$f":"'Standing Data'!$D$15","v":{"$error":"#N/A"}},{"$f":"'Standing Data'!$F$15","v":0},{"$f":"'Standing Data'!$F$9","v":0},"Fin.Return","Q930",{"$f":"Fin.Return!Q1057","v":0}]
[{"$f":"'Standing Data'!$D$15","v":{"$error":"#N/A"}},{"$f":"'Standing Data'!$F$15","v":0},{"$f":"'Standing Data'!$F$9","v":0},"Fin.Return","Q931",{"$f":"Fin.Return!Q1058","v":0}]
[{"$f":"'Standing Data'!$D$15","v":{"$error":"#N/A"}},{"$f":"'Standing Data'!$F$15","v":0},{"$f":"'Standing Data'!$F$9","v":0},"Fin.Return","Q933",{"$f":"Fin.Return!Q1060","v":0}]
[{"$f":"'Standing Data'!$D$15","v":{"$error":"#N/A"}},{"$f":"'Standing Data'!$F$15","v":0},{"$f":"'Standing Data'!$F$9","v":0},"Fin.Return","Q934",{"$f":"Fin.Return!Q1061","v":0}]
[{"$f":"'Standing Data'!$D$15","v":{"$error":"#N/A"}},{"$f":"'Standing Data'!$F$15","v":0},{"$f":"'Standing Data'!$F$9","v":0},"Fin.Return","Q935",{"$f":"Fin.Return!Q1062","v":0}]
[{"$f":"'Standing Data'!$D$15","v":{"$error":"#N/A"}},{"$f":"'Standing Data'!$F$15","v":0},{"$f":"'Standing Data'!$F$9","v":0},"Fin.Return","Q936",{"$f":"Fin.Return!Q1063","v":0}]
[{"$f":"'Standing Data'!$D$15","v":{"$error":"#N/A"}},{"$f":"'Standing Data'!$F$15","v":0},{"$f":"'Standing Data'!$F$9","v":0},"Fin.Return","Q938",{"$f":"Fin.Return!Q1065","v":0}]
[{"$f":"'Standing Data'!$D$15","v":{"$error":"#N/A"}},{"$f":"'Standing Data'!$F$15","v":0},{"$f":"'Standing Data'!$F$9","v":0},"Fin.Return","Q940",{"$f":"Fin.Return!Q1067","v":0}]
[{"$f":"'Standing Data'!$D$15","v":{"$error":"#N/A"}},{"$f":"'Standing Data'!$F$15","v":0},{"$f":"'Standing Data'!$F$9","v":0},"Fin.Return","Q942",{"$f":"Fin.Return!Q1069","v":0}]
[{"$f":"'Standing Data'!$D$15","v":{"$error":"#N/A"}},{"$f":"'Standing Data'!$F$15","v":0},{"$f":"'Standing Data'!$F$9","v":0},"Fin.Return","R908",{"$f":"Fin.Return!R1035","v":0}]
[{"$f":"'Standing Data'!$D$15","v":{"$error":"#N/A"}},{"$f":"'Standing Data'!$F$15","v":0},{"$f":"'Standing Data'!$F$9","v":0},"Fin.Return","R909",{"$f":"Fin.Return!R1036","v":0}]
[{"$f":"'Standing Data'!$D$15","v":{"$error":"#N/A"}},{"$f":"'Standing Data'!$F$15","v":0},{"$f":"'Standing Data'!$F$9","v":0},"Fin.Return","R910",{"$f":"Fin.Return!R1037","v":0}]
[{"$f":"'Standing Data'!$D$15","v":{"$error":"#N/A"}},{"$f":"'Standing Data'!$F$15","v":0},{"$f":"'Standing Data'!$F$9","v":0},"Fin.Return","R911",{"$f":"Fin.Return!R1038","v":0}]
[{"$f":"'Standing Data'!$D$15","v":{"$error":"#N/A"}},{"$f":"'Standing Data'!$F$15","v":0},{"$f":"'Standing Data'!$F$9","v":0},"Fin.Return","R912",{"$f":"Fin.Return!R1039","v":0}]
[{"$f":"'Standing Data'!$D$15","v":{"$error":"#N/A"}},{"$f":"'Standing Data'!$F$15","v":0},{"$f":"'Standing Data'!$F$9","v":0},"Fin.Return","R914",{"$f":"Fin.Return!R1041","v":0}]
[{"$f":"'Standing Data'!$D$15","v":{"$error":"#N/A"}},{"$f":"'Standing Data'!$F$15","v":0},{"$f":"'Standing Data'!$F$9","v":0},"Fin.Return","R913",{"$f":"Fin.Return!R1040","v":0}]
[{"$f":"'Standing Data'!$D$15","v":{"$error":"#N/A"}},{"$f":"'Standing Data'!$F$15","v":0},{"$f":"'Standing Data'!$F$9","v":0},"Fin.Return","R916",{"$f":"Fin.Return!R1043","v":0}]
[{"$f":"'Standing Data'!$D$15","v":{"$error":"#N/A"}},{"$f":"'Standing Data'!$F$15","v":0},{"$f":"'Standing Data'!$F$9","v":0},"Fin.Return","R917",{"$f":"Fin.Return!R1044","v":0}]
[{"$f":"'Standing Data'!$D$15","v":{"$error":"#N/A"}},{"$f":"'Standing Data'!$F$15","v":0},{"$f":"'Standing Data'!$F$9","v":0},"Fin.Return","R918",{"$f":"Fin.Return!R1045","v":0}]
[{"$f":"'Standing Data'!$D$15","v":{"$error":"#N/A"}},{"$f":"'Standing Data'!$F$15","v":0},{"$f":"'Standing Data'!$F$9","v":0},"Fin.Return","R919",{"$f":"Fin.Return!R1046","v":0}]
[{"$f":"'Standing Data'!$D$15","v":{"$error":"#N/A"}},{"$f":"'Standing Data'!$F$15","v":0},{"$f":"'Standing Data'!$F$9","v":0},"Fin.Return","R920",{"$f":"Fin.Return!R1047","v":0}]
[{"$f":"'Standing Data'!$D$15","v":{"$error":"#N/A"}},{"$f":"'Standing Data'!$F$15","v":0},{"$f":"'Standing Data'!$F$9","v":0},"Fin.Return","R922",{"$f":"Fin.Return!R1049","v":0}]
[{"$f":"'Standing Data'!$D$15","v":{"$error":"#N/A"}},{"$f":"'Standing Data'!$F$15","v":0},{"$f":"'Standing Data'!$F$9","v":0},"Fin.Return","R924",{"$f":"Fin.Return!R1051","v":0}]
[{"$f":"'Standing Data'!$D$15","v":{"$error":"#N/A"}},{"$f":"'Standing Data'!$F$15","v":0},{"$f":"'Standing Data'!$F$9","v":0},"Fin.Return","R925",{"$f":"Fin.Return!R1052","v":0}]
[{"$f":"'Standing Data'!$D$15","v":{"$error":"#N/A"}},{"$f":"'Standing Data'!$F$15","v":0},{"$f":"'Standing Data'!$F$9","v":0},"Fin.Return","R926",{"$f":"Fin.Return!R1053","v":0}]
[{"$f":"'Standing Data'!$D$15","v":{"$error":"#N/A"}},{"$f":"'Standing Data'!$F$15","v":0},{"$f":"'Standing Data'!$F$9","v":0},"Fin.Return","R927",{"$f":"Fin.Return!R1054","v":0}]
[{"$f":"'Standing Data'!$D$15","v":{"$error":"#N/A"}},{"$f":"'Standing Data'!$F$15","v":0},{"$f":"'Standing Data'!$F$9","v":0},"Fin.Return","R928",{"$f":"Fin.Return!R1055","v":0}]
[{"$f":"'Standing Data'!$D$15","v":{"$error":"#N/A"}},{"$f":"'Standing Data'!$F$15","v":0},{"$f":"'Standing Data'!$F$9","v":0},"Fin.Return","R929",{"$f":"Fin.Return!R1056","v":0}]
[{"$f":"'Standing Data'!$D$15","v":{"$error":"#N/A"}},{"$f":"'Standing Data'!$F$15","v":0},{"$f":"'Standing Data'!$F$9","v":0},"Fin.Return","R930",{"$f":"Fin.Return!R1057","v":0}]
[{"$f":"'Standing Data'!$D$15","v":{"$error":"#N/A"}},{"$f":"'Standing Data'!$F$15","v":0},{"$f":"'Standing Data'!$F$9","v":0},"Fin.Return","R931",{"$f":"Fin.Return!R1058","v":0}]
[{"$f":"'Standing Data'!$D$15","v":{"$error":"#N/A"}},{"$f":"'Standing Data'!$F$15","v":0},{"$f":"'Standing Data'!$F$9","v":0},"Fin.Return","R933",{"$f":"Fin.Return!R1060","v":0}]
[{"$f":"'Standing Data'!$D$15","v":{"$error":"#N/A"}},{"$f":"'Standing Data'!$F$15","v":0},{"$f":"'Standing Data'!$F$9","v":0},"Fin.Return","R934",{"$f":"Fin.Return!R1061","v":0}]
[{"$f":"'Standing Data'!$D$15","v":{"$error":"#N/A"}},{"$f":"'Standing Data'!$F$15","v":0},{"$f":"'Standing Data'!$F$9","v":0},"Fin.Return","R935",{"$f":"Fin.Return!R1062","v":0}]
[{"$f":"'Standing Data'!$D$15","v":{"$error":"#N/A"}},{"$f":"'Standing Data'!$F$15","v":0},{"$f":"'Standing Data'!$F$9","v":0},"Fin.Return","R936",{"$f":"Fin.Return!R1063","v":0}]
[{"$f":"'Standing Data'!$D$15","v":{"$error":"#N/A"}},{"$f":"'Standing Data'!$F$15","v":0},{"$f":"'Standing Data'!$F$9","v":0},"Fin.Return","R938",{"$f":"Fin.Return!R1065","v":0}]
[{"$f":"'Standing Data'!$D$15","v":{"$error":"#N/A"}},{"$f":"'Standing Data'!$F$15","v":0},{"$f":"'Standing Data'!$F$9","v":0},"Fin.Return","R940",{"$f":"Fin.Return!R1067","v":0}]
[{"$f":"'Standing Data'!$D$15","v":{"$error":"#N/A"}},{"$f":"'Standing Data'!$F$15","v":0},{"$f":"'Standing Data'!$F$9","v":0},"Fin.Return","R942",{"$f":"Fin.Return!R1069","v":0}]
[{"$f":"'Standing Data'!$D$15","v":{"$error":"#N/A"}},{"$f":"'Standing Data'!$F$15","v":0},{"$f":"'Standing Data'!$F$9","v":0},"Fin.Return","S908",{"$f":"Fin.Return!S1035","v":0}]
[{"$f":"'Standing Data'!$D$15","v":{"$error":"#N/A"}},{"$f":"'Standing Data'!$F$15","v":0},{"$f":"'Standing Data'!$F$9","v":0},"Fin.Return","S909",{"$f":"Fin.Return!S1036","v":0}]
[{"$f":"'Standing Data'!$D$15","v":{"$error":"#N/A"}},{"$f":"'Standing Data'!$F$15","v":0},{"$f":"'Standing Data'!$F$9","v":0},"Fin.Return","S910",{"$f":"Fin.Return!S1037","v":0}]
[{"$f":"'Standing Data'!$D$15","v":{"$error":"#N/A"}},{"$f":"'Standing Data'!$F$15","v":0},{"$f":"'Standing Data'!$F$9","v":0},"Fin.Return","S911",{"$f":"Fin.Return!S1038","v":0}]
[{"$f":"'Standing Data'!$D$15","v":{"$error":"#N/A"}},{"$f":"'Standing Data'!$F$15","v":0},{"$f":"'Standing Data'!$F$9","v":0},"Fin.Return","S912",{"$f":"Fin.Return!S1039","v":0}]
[{"$f":"'Standing Data'!$D$15","v":{"$error":"#N/A"}},{"$f":"'Standing Data'!$F$15","v":0},{"$f":"'Standing Data'!$F$9","v":0},"Fin.Return","S914",{"$f":"Fin.Return!S1041","v":0}]
[{"$f":"'Standing Data'!$D$15","v":{"$error":"#N/A"}},{"$f":"'Standing Data'!$F$15","v":0},{"$f":"'Standing Data'!$F$9","v":0},"Fin.Return","S913",{"$f":"Fin.Return!S1040","v":0}]
[{"$f":"'Standing Data'!$D$15","v":{"$error":"#N/A"}},{"$f":"'Standing Data'!$F$15","v":0},{"$f":"'Standing Data'!$F$9","v":0},"Fin.Return","S916",{"$f":"Fin.Return!S1043","v":0}]
[{"$f":"'Standing Data'!$D$15","v":{"$error":"#N/A"}},{"$f":"'Standing Data'!$F$15","v":0},{"$f":"'Standing Data'!$F$9","v":0},"Fin.Return","S917",{"$f":"Fin.Return!S1044","v":0}]
[{"$f":"'Standing Data'!$D$15","v":{"$error":"#N/A"}},{"$f":"'Standing Data'!$F$15","v":0},{"$f":"'Standing Data'!$F$9","v":0},"Fin.Return","S918",{"$f":"Fin.Return!S1045","v":0}]
[{"$f":"'Standing Data'!$D$15","v":{"$error":"#N/A"}},{"$f":"'Standing Data'!$F$15","v":0},{"$f":"'Standing Data'!$F$9","v":0},"Fin.Return","S919",{"$f":"Fin.Return!S1046","v":0}]
[{"$f":"'Standing Data'!$D$15","v":{"$error":"#N/A"}},{"$f":"'Standing Data'!$F$15","v":0},{"$f":"'Standing Data'!$F$9","v":0},"Fin.Return","S920",{"$f":"Fin.Return!S1047","v":0}]
[{"$f":"'Standing Data'!$D$15","v":{"$error":"#N/A"}},{"$f":"'Standing Data'!$F$15","v":0},{"$f":"'Standing Data'!$F$9","v":0},"Fin.Return","S922",{"$f":"Fin.Return!S1049","v":0}]
[{"$f":"'Standing Data'!$D$15","v":{"$error":"#N/A"}},{"$f":"'Standing Data'!$F$15","v":0},{"$f":"'Standing Data'!$F$9","v":0},"Fin.Return","S924",{"$f":"Fin.Return!S1051","v":0}]
[{"$f":"'Standing Data'!$D$15","v":{"$error":"#N/A"}},{"$f":"'Standing Data'!$F$15","v":0},{"$f":"'Standing Data'!$F$9","v":0},"Fin.Return","S925",{"$f":"Fin.Return!S1052","v":0}]
[{"$f":"'Standing Data'!$D$15","v":{"$error":"#N/A"}},{"$f":"'Standing Data'!$F$15","v":0},{"$f":"'Standing Data'!$F$9","v":0},"Fin.Return","S926",{"$f":"Fin.Return!S1053","v":0}]
[{"$f":"'Standing Data'!$D$15","v":{"$error":"#N/A"}},{"$f":"'Standing Data'!$F$15","v":0},{"$f":"'Standing Data'!$F$9","v":0},"Fin.Return","S927",{"$f":"Fin.Return!S1054","v":0}]
[{"$f":"'Standing Data'!$D$15","v":{"$error":"#N/A"}},{"$f":"'Standing Data'!$F$15","v":0},{"$f":"'Standing Data'!$F$9","v":0},"Fin.Return","S928",{"$f":"Fin.Return!S1055","v":0}]
[{"$f":"'Standing Data'!$D$15","v":{"$error":"#N/A"}},{"$f":"'Standing Data'!$F$15","v":0},{"$f":"'Standing Data'!$F$9","v":0},"Fin.Return","S929",{"$f":"Fin.Return!S1056","v":0}]
[{"$f":"'Standing Data'!$D$15","v":{"$error":"#N/A"}},{"$f":"'Standing Data'!$F$15","v":0},{"$f":"'Standing Data'!$F$9","v":0},"Fin.Return","S930",{"$f":"Fin.Return!S1057","v":0}]
[{"$f":"'Standing Data'!$D$15","v":{"$error":"#N/A"}},{"$f":"'Standing Data'!$F$15","v":0},{"$f":"'Standing Data'!$F$9","v":0},"Fin.Return","S931",{"$f":"Fin.Return!S1058","v":0}]
[{"$f":"'Standing Data'!$D$15","v":{"$error":"#N/A"}},{"$f":"'Standing Data'!$F$15","v":0},{"$f":"'Standing Data'!$F$9","v":0},"Fin.Return","S933",{"$f":"Fin.Return!S1060","v":0}]
[{"$f":"'Standing Data'!$D$15","v":{"$error":"#N/A"}},{"$f":"'Standing Data'!$F$15","v":0},{"$f":"'Standing Data'!$F$9","v":0},"Fin.Return","S934",{"$f":"Fin.Return!S1061","v":0}]
[{"$f":"'Standing Data'!$D$15","v":{"$error":"#N/A"}},{"$f":"'Standing Data'!$F$15","v":0},{"$f":"'Standing Data'!$F$9","v":0},"Fin.Return","S935",{"$f":"Fin.Return!S1062","v":0}]
[{"$f":"'Standing Data'!$D$15","v":{"$error":"#N/A"}},{"$f":"'Standing Data'!$F$15","v":0},{"$f":"'Standing Data'!$F$9","v":0},"Fin.Return","S936",{"$f":"Fin.Return!S1063","v":0}]
[{"$f":"'Standing Data'!$D$15","v":{"$error":"#N/A"}},{"$f":"'Standing Data'!$F$15","v":0},{"$f":"'Standing Data'!$F$9","v":0},"Fin.Return","S938",{"$f":"Fin.Return!S1065","v":0}]
[{"$f":"'Standing Data'!$D$15","v":{"$error":"#N/A"}},{"$f":"'Standing Data'!$F$15","v":0},{"$f":"'Standing Data'!$F$9","v":0},"Fin.Return","S940",{"$f":"Fin.Return!S1067","v":0}]
[{"$f":"'Standing Data'!$D$15","v":{"$error":"#N/A"}},{"$f":"'Standing Data'!$F$15","v":0},{"$f":"'Standing Data'!$F$9","v":0},"Fin.Return","S942",{"$f":"Fin.Return!S1069","v":0}]
[{"$f":"'Standing Data'!$D$15","v":{"$error":"#N/A"}},{"$f":"'Standing Data'!$F$15","v":0},{"$f":"'Standing Data'!$F$9","v":0},"Fin.Return","T908",{"$f":"Fin.Return!T1035","v":0}]
[{"$f":"'Standing Data'!$D$15","v":{"$error":"#N/A"}},{"$f":"'Standing Data'!$F$15","v":0},{"$f":"'Standing Data'!$F$9","v":0},"Fin.Return","T909",{"$f":"Fin.Return!T1036","v":0}]
[{"$f":"'Standing Data'!$D$15","v":{"$error":"#N/A"}},{"$f":"'Standing Data'!$F$15","v":0},{"$f":"'Standing Data'!$F$9","v":0},"Fin.Return","T910",{"$f":"Fin.Return!T1037","v":0}]
[{"$f":"'Standing Data'!$D$15","v":{"$error":"#N/A"}},{"$f":"'Standing Data'!$F$15","v":0},{"$f":"'Standing Data'!$F$9","v":0},"Fin.Return","T911",{"$f":"Fin.Return!T1038","v":0}]
[{"$f":"'Standing Data'!$D$15","v":{"$error":"#N/A"}},{"$f":"'Standing Data'!$F$15","v":0},{"$f":"'Standing Data'!$F$9","v":0},"Fin.Return","T912",{"$f":"Fin.Return!T1039","v":0}]
[{"$f":"'Standing Data'!$D$15","v":{"$error":"#N/A"}},{"$f":"'Standing Data'!$F$15","v":0},{"$f":"'Standing Data'!$F$9","v":0},"Fin.Return","T914",{"$f":"Fin.Return!T1041","v":0}]
[{"$f":"'Standing Data'!$D$15","v":{"$error":"#N/A"}},{"$f":"'Standing Data'!$F$15","v":0},{"$f":"'Standing Data'!$F$9","v":0},"Fin.Return","T913",{"$f":"Fin.Return!T1040","v":0}]
[{"$f":"'Standing Data'!$D$15","v":{"$error":"#N/A"}},{"$f":"'Standing Data'!$F$15","v":0},{"$f":"'Standing Data'!$F$9","v":0},"Fin.Return","T916",{"$f":"Fin.Return!T1043","v":0}]
[{"$f":"'Standing Data'!$D$15","v":{"$error":"#N/A"}},{"$f":"'Standing Data'!$F$15","v":0},{"$f":"'Standing Data'!$F$9","v":0},"Fin.Return","T917",{"$f":"Fin.Return!T1044","v":0}]
[{"$f":"'Standing Data'!$D$15","v":{"$error":"#N/A"}},{"$f":"'Standing Data'!$F$15","v":0},{"$f":"'Standing Data'!$F$9","v":0},"Fin.Return","T918",{"$f":"Fin.Return!T1045","v":0}]
[{"$f":"'Standing Data'!$D$15","v":{"$error":"#N/A"}},{"$f":"'Standing Data'!$F$15","v":0},{"$f":"'Standing Data'!$F$9","v":0},"Fin.Return","T919",{"$f":"Fin.Return!T1046","v":0}]
[{"$f":"'Standing Data'!$D$15","v":{"$error":"#N/A"}},{"$f":"'Standing Data'!$F$15","v":0},{"$f":"'Standing Data'!$F$9","v":0},"Fin.Return","T920",{"$f":"Fin.Return!T1047","v":0}]
[{"$f":"'Standing Data'!$D$15","v":{"$error":"#N/A"}},{"$f":"'Standing Data'!$F$15","v":0},{"$f":"'Standing Data'!$F$9","v":0},"Fin.Return","T922",{"$f":"Fin.Return!T1049","v":0}]
[{"$f":"'Standing Data'!$D$15","v":{"$error":"#N/A"}},{"$f":"'Standing Data'!$F$15","v":0},{"$f":"'Standing Data'!$F$9","v":0},"Fin.Return","T924",{"$f":"Fin.Return!T1051","v":0}]
[{"$f":"'Standing Data'!$D$15","v":{"$error":"#N/A"}},{"$f":"'Standing Data'!$F$15","v":0},{"$f":"'Standing Data'!$F$9","v":0},"Fin.Return","T925",{"$f":"Fin.Return!T1052","v":0}]
[{"$f":"'Standing Data'!$D$15","v":{"$error":"#N/A"}},{"$f":"'Standing Data'!$F$15","v":0},{"$f":"'Standing Data'!$F$9","v":0},"Fin.Return","T926",{"$f":"Fin.Return!T1053","v":0}]
[{"$f":"'Standing Data'!$D$15","v":{"$error":"#N/A"}},{"$f":"'Standing Data'!$F$15","v":0},{"$f":"'Standing Data'!$F$9","v":0},"Fin.Return","T927",{"$f":"Fin.Return!T1054","v":0}]
[{"$f":"'Standing Data'!$D$15","v":{"$error":"#N/A"}},{"$f":"'Standing Data'!$F$15","v":0},{"$f":"'Standing Data'!$F$9","v":0},"Fin.Return","T928",{"$f":"Fin.Return!T1055","v":0}]
[{"$f":"'Standing Data'!$D$15","v":{"$error":"#N/A"}},{"$f":"'Standing Data'!$F$15","v":0},{"$f":"'Standing Data'!$F$9","v":0},"Fin.Return","T929",{"$f":"Fin.Return!T1056","v":0}]
[{"$f":"'Standing Data'!$D$15","v":{"$error":"#N/A"}},{"$f":"'Standing Data'!$F$15","v":0},{"$f":"'Standing Data'!$F$9","v":0},"Fin.Return","T930",{"$f":"Fin.Return!T1057","v":0}]
[{"$f":"'Standing Data'!$D$15","v":{"$error":"#N/A"}},{"$f":"'Standing Data'!$F$15","v":0},{"$f":"'Standing Data'!$F$9","v":0},"Fin.Return","T931",{"$f":"Fin.Return!T1058","v":0}]
[{"$f":"'Standing Data'!$D$15","v":{"$error":"#N/A"}},{"$f":"'Standing Data'!$F$15","v":0},{"$f":"'Standing Data'!$F$9","v":0},"Fin.Return","T933",{"$f":"Fin.Return!T1060","v":0}]
[{"$f":"'Standing Data'!$D$15","v":{"$error":"#N/A"}},{"$f":"'Standing Data'!$F$15","v":0},{"$f":"'Standing Data'!$F$9","v":0},"Fin.Return","T934",{"$f":"Fin.Return!T1061","v":0}]
[{"$f":"'Standing Data'!$D$15","v":{"$error":"#N/A"}},{"$f":"'Standing Data'!$F$15","v":0},{"$f":"'Standing Data'!$F$9","v":0},"Fin.Return","T935",{"$f":"Fin.Return!T1062","v":0}]
[{"$f":"'Standing Data'!$D$15","v":{"$error":"#N/A"}},{"$f":"'Standing Data'!$F$15","v":0},{"$f":"'Standing Data'!$F$9","v":0},"Fin.Return","T936",{"$f":"Fin.Return!T1063","v":0}]
[{"$f":"'Standing Data'!$D$15","v":{"$error":"#N/A"}},{"$f":"'Standing Data'!$F$15","v":0},{"$f":"'Standing Data'!$F$9","v":0},"Fin.Return","T938",{"$f":"Fin.Return!T1065","v":0}]
[{"$f":"'Standing Data'!$D$15","v":{"$error":"#N/A"}},{"$f":"'Standing Data'!$F$15","v":0},{"$f":"'Standing Data'!$F$9","v":0},"Fin.Return","T940",{"$f":"Fin.Return!T1067","v":0}]
[{"$f":"'Standing Data'!$D$15","v":{"$error":"#N/A"}},{"$f":"'Standing Data'!$F$15","v":0},{"$f":"'Standing Data'!$F$9","v":0},"Fin.Return","T942",{"$f":"Fin.Return!T1069","v":0}]
[{"$f":"'Standing Data'!$D$15","v":{"$error":"#N/A"}},{"$f":"'Standing Data'!$F$15","v":0},{"$f":"'Standing Data'!$F$9","v":0},"Fin.Return","U908",{"$f":"Fin.Return!U1035","v":0}]
[{"$f":"'Standing Data'!$D$15","v":{"$error":"#N/A"}},{"$f":"'Standing Data'!$F$15","v":0},{"$f":"'Standing Data'!$F$9","v":0},"Fin.Return","U909",{"$f":"Fin.Return!U1036","v":0}]
[{"$f":"'Standing Data'!$D$15","v":{"$error":"#N/A"}},{"$f":"'Standing Data'!$F$15","v":0},{"$f":"'Standing Data'!$F$9","v":0},"Fin.Return","U910",{"$f":"Fin.Return!U1037","v":0}]
[{"$f":"'Standing Data'!$D$15","v":{"$error":"#N/A"}},{"$f":"'Standing Data'!$F$15","v":0},{"$f":"'Standing Data'!$F$9","v":0},"Fin.Return","U911",{"$f":"Fin.Return!U1038","v":0}]
[{"$f":"'Standing Data'!$D$15","v":{"$error":"#N/A"}},{"$f":"'Standing Data'!$F$15","v":0},{"$f":"'Standing Data'!$F$9","v":0},"Fin.Return","U912",{"$f":"Fin.Return!U1039","v":0}]
[{"$f":"'Standing Data'!$D$15","v":{"$error":"#N/A"}},{"$f":"'Standing Data'!$F$15","v":0},{"$f":"'Standing Data'!$F$9","v":0},"Fin.Return","U914",{"$f":"Fin.Return!U1041","v":0}]
[{"$f":"'Standing Data'!$D$15","v":{"$error":"#N/A"}},{"$f":"'Standing Data'!$F$15","v":0},{"$f":"'Standing Data'!$F$9","v":0},"Fin.Return","U913",{"$f":"Fin.Return!U1040","v":0}]
[{"$f":"'Standing Data'!$D$15","v":{"$error":"#N/A"}},{"$f":"'Standing Data'!$F$15","v":0},{"$f":"'Standing Data'!$F$9","v":0},"Fin.Return","U916",{"$f":"Fin.Return!U1043","v":0}]
[{"$f":"'Standing Data'!$D$15","v":{"$error":"#N/A"}},{"$f":"'Standing Data'!$F$15","v":0},{"$f":"'Standing Data'!$F$9","v":0},"Fin.Return","U917",{"$f":"Fin.Return!U1044","v":0}]
[{"$f":"'Standing Data'!$D$15","v":{"$error":"#N/A"}},{"$f":"'Standing Data'!$F$15","v":0},{"$f":"'Standing Data'!$F$9","v":0},"Fin.Return","U918",{"$f":"Fin.Return!U1045","v":0}]
[{"$f":"'Standing Data'!$D$15","v":{"$error":"#N/A"}},{"$f":"'Standing Data'!$F$15","v":0},{"$f":"'Standing Data'!$F$9","v":0},"Fin.Return","U919",{"$f":"Fin.Return!U1046","v":0}]
[{"$f":"'Standing Data'!$D$15","v":{"$error":"#N/A"}},{"$f":"'Standing Data'!$F$15","v":0},{"$f":"'Standing Data'!$F$9","v":0},"Fin.Return","U920",{"$f":"Fin.Return!U1047","v":0}]
[{"$f":"'Standing Data'!$D$15","v":{"$error":"#N/A"}},{"$f":"'Standing Data'!$F$15","v":0},{"$f":"'Standing Data'!$F$9","v":0},"Fin.Return","U922",{"$f":"Fin.Return!U1049","v":0}]
[{"$f":"'Standing Data'!$D$15","v":{"$error":"#N/A"}},{"$f":"'Standing Data'!$F$15","v":0},{"$f":"'Standing Data'!$F$9","v":0},"Fin.Return","U924",{"$f":"Fin.Return!U1051","v":0}]
[{"$f":"'Standing Data'!$D$15","v":{"$error":"#N/A"}},{"$f":"'Standing Data'!$F$15","v":0},{"$f":"'Standing Data'!$F$9","v":0},"Fin.Return","U925",{"$f":"Fin.Return!U1052","v":0}]
[{"$f":"'Standing Data'!$D$15","v":{"$error":"#N/A"}},{"$f":"'Standing Data'!$F$15","v":0},{"$f":"'Standing Data'!$F$9","v":0},"Fin.Return","U926",{"$f":"Fin.Return!U1053","v":0}]
[{"$f":"'Standing Data'!$D$15","v":{"$error":"#N/A"}},{"$f":"'Standing Data'!$F$15","v":0},{"$f":"'Standing Data'!$F$9","v":0},"Fin.Return","U927",{"$f":"Fin.Return!U1054","v":0}]
[{"$f":"'Standing Data'!$D$15","v":{"$error":"#N/A"}},{"$f":"'Standing Data'!$F$15","v":0},{"$f":"'Standing Data'!$F$9","v":0},"Fin.Return","U928",{"$f":"Fin.Return!U1055","v":0}]
[{"$f":"'Standing Data'!$D$15","v":{"$error":"#N/A"}},{"$f":"'Standing Data'!$F$15","v":0},{"$f":"'Standing Data'!$F$9","v":0},"Fin.Return","U929",{"$f":"Fin.Return!U1056","v":0}]
[{"$f":"'Standing Data'!$D$15","v":{"$error":"#N/A"}},{"$f":"'Standing Data'!$F$15","v":0},{"$f":"'Standing Data'!$F$9","v":0},"Fin.Return","U930",{"$f":"Fin.Return!U1057","v":0}]
[{"$f":"'Standing Data'!$D$15","v":{"$error":"#N/A"}},{"$f":"'Standing Data'!$F$15","v":0},{"$f":"'Standing Data'!$F$9","v":0},"Fin.Return","U931",{"$f":"Fin.Return!U1058","v":0}]
[{"$f":"'Standing Data'!$D$15","v":{"$error":"#N/A"}},{"$f":"'Standing Data'!$F$15","v":0},{"$f":"'Standing Data'!$F$9","v":0},"Fin.Return","U933",{"$f":"Fin.Return!U1060","v":0}]
[{"$f":"'Standing Data'!$D$15","v":{"$error":"#N/A"}},{"$f":"'Standing Data'!$F$15","v":0},{"$f":"'Standing Data'!$F$9","v":0},"Fin.Return","U934",{"$f":"Fin.Return!U1061","v":0}]
[{"$f":"'Standing Data'!$D$15","v":{"$error":"#N/A"}},{"$f":"'Standing Data'!$F$15","v":0},{"$f":"'Standing Data'!$F$9","v":0},"Fin.Return","U935",{"$f":"Fin.Return!U1062","v":0}]
[{"$f":"'Standing Data'!$D$15","v":{"$error":"#N/A"}},{"$f":"'Standing Data'!$F$15","v":0},{"$f":"'Standing Data'!$F$9","v":0},"Fin.Return","U936",{"$f":"Fin.Return!U1063","v":0}]
[{"$f":"'Standing Data'!$D$15","v":{"$error":"#N/A"}},{"$f":"'Standing Data'!$F$15","v":0},{"$f":"'Standing Data'!$F$9","v":0},"Fin.Return","U938",{"$f":"Fin.Return!U1065","v":0}]
[{"$f":"'Standing Data'!$D$15","v":{"$error":"#N/A"}},{"$f":"'Standing Data'!$F$15","v":0},{"$f":"'Standing Data'!$F$9","v":0},"Fin.Return","U940",{"$f":"Fin.Return!U1067","v":0}]
[{"$f":"'Standing Data'!$D$15","v":{"$error":"#N/A"}},{"$f":"'Standing Data'!$F$15","v":0},{"$f":"'Standing Data'!$F$9","v":0},"Fin.Return","U942",{"$f":"Fin.Return!U1069","v":0}]
[{"$f":"'Standing Data'!$D$15","v":{"$error":"#N/A"}},{"$f":"'Standing Data'!$F$15","v":0},{"$f":"'Standing Data'!$F$9","v":0},"Fin.Return","V908",{"$f":"Fin.Return!V1035","v":0}]
[{"$f":"'Standing Data'!$D$15","v":{"$error":"#N/A"}},{"$f":"'Standing Data'!$F$15","v":0},{"$f":"'Standing Data'!$F$9","v":0},"Fin.Return","V909",{"$f":"Fin.Return!V1036","v":0}]
[{"$f":"'Standing Data'!$D$15","v":{"$error":"#N/A"}},{"$f":"'Standing Data'!$F$15","v":0},{"$f":"'Standing Data'!$F$9","v":0},"Fin.Return","V910",{"$f":"Fin.Return!V1037","v":0}]
[{"$f":"'Standing Data'!$D$15","v":{"$error":"#N/A"}},{"$f":"'Standing Data'!$F$15","v":0},{"$f":"'Standing Data'!$F$9","v":0},"Fin.Return","V911",{"$f":"Fin.Return!V1038","v":0}]
[{"$f":"'Standing Data'!$D$15","v":{"$error":"#N/A"}},{"$f":"'Standing Data'!$F$15","v":0},{"$f":"'Standing Data'!$F$9","v":0},"Fin.Return","V912",{"$f":"Fin.Return!V1039","v":0}]
[{"$f":"'Standing Data'!$D$15","v":{"$error":"#N/A"}},{"$f":"'Standing Data'!$F$15","v":0},{"$f":"'Standing Data'!$F$9","v":0},"Fin.Return","V914",{"$f":"Fin.Return!V1041","v":0}]
[{"$f":"'Standing Data'!$D$15","v":{"$error":"#N/A"}},{"$f":"'Standing Data'!$F$15","v":0},{"$f":"'Standing Data'!$F$9","v":0},"Fin.Return","V913",{"$f":"Fin.Return!V1040","v":0}]
[{"$f":"'Standing Data'!$D$15","v":{"$error":"#N/A"}},{"$f":"'Standing Data'!$F$15","v":0},{"$f":"'Standing Data'!$F$9","v":0},"Fin.Return","V916",{"$f":"Fin.Return!V1043","v":0}]
[{"$f":"'Standing Data'!$D$15","v":{"$error":"#N/A"}},{"$f":"'Standing Data'!$F$15","v":0},{"$f":"'Standing Data'!$F$9","v":0},"Fin.Return","V917",{"$f":"Fin.Return!V1044","v":0}]
[{"$f":"'Standing Data'!$D$15","v":{"$error":"#N/A"}},{"$f":"'Standing Data'!$F$15","v":0},{"$f":"'Standing Data'!$F$9","v":0},"Fin.Return","V918",{"$f":"Fin.Return!V1045","v":0}]
[{"$f":"'Standing Data'!$D$15","v":{"$error":"#N/A"}},{"$f":"'Standing Data'!$F$15","v":0},{"$f":"'Standing Data'!$F$9","v":0},"Fin.Return","V919",{"$f":"Fin.Return!V1046","v":0}]
[{"$f":"'Standing Data'!$D$15","v":{"$error":"#N/A"}},{"$f":"'Standing Data'!$F$15","v":0},{"$f":"'Standing Data'!$F$9","v":0},"Fin.Return","V920",{"$f":"Fin.Return!V1047","v":0}]
[{"$f":"'Standing Data'!$D$15","v":{"$error":"#N/A"}},{"$f":"'Standing Data'!$F$15","v":0},{"$f":"'Standing Data'!$F$9","v":0},"Fin.Return","V922",{"$f":"Fin.Return!V1049","v":0}]
[{"$f":"'Standing Data'!$D$15","v":{"$error":"#N/A"}},{"$f":"'Standing Data'!$F$15","v":0},{"$f":"'Standing Data'!$F$9","v":0},"Fin.Return","V924",{"$f":"Fin.Return!V1051","v":0}]
[{"$f":"'Standing Data'!$D$15","v":{"$error":"#N/A"}},{"$f":"'Standing Data'!$F$15","v":0},{"$f":"'Standing Data'!$F$9","v":0},"Fin.Return","V925",{"$f":"Fin.Return!V1052","v":0}]
[{"$f":"'Standing Data'!$D$15","v":{"$error":"#N/A"}},{"$f":"'Standing Data'!$F$15","v":0},{"$f":"'Standing Data'!$F$9","v":0},"Fin.Return","V926",{"$f":"Fin.Return!V1053","v":0}]
[{"$f":"'Standing Data'!$D$15","v":{"$error":"#N/A"}},{"$f":"'Standing Data'!$F$15","v":0},{"$f":"'Standing Data'!$F$9","v":0},"Fin.Return","V927",{"$f":"Fin.Return!V1054","v":0}]
[{"$f":"'Standing Data'!$D$15","v":{"$error":"#N/A"}},{"$f":"'Standing Data'!$F$15","v":0},{"$f":"'Standing Data'!$F$9","v":0},"Fin.Return","V928",{"$f":"Fin.Return!V1055","v":0}]
[{"$f":"'Standing Data'!$D$15","v":{"$error":"#N/A"}},{"$f":"'Standing Data'!$F$15","v":0},{"$f":"'Standing Data'!$F$9","v":0},"Fin.Return","V929",{"$f":"Fin.Return!V1056","v":0}]
[{"$f":"'Standing Data'!$D$15","v":{"$error":"#N/A"}},{"$f":"'Standing Data'!$F$15","v":0},{"$f":"'Standing Data'!$F$9","v":0},"Fin.Return","V930",{"$f":"Fin.Return!V1057","v":0}]
[{"$f":"'Standing Data'!$D$15","v":{"$error":"#N/A"}},{"$f":"'Standing Data'!$F$15","v":0},{"$f":"'Standing Data'!$F$9","v":0},"Fin.Return","V931",{"$f":"Fin.Return!V1058","v":0}]
[{"$f":"'Standing Data'!$D$15","v":{"$error":"#N/A"}},{"$f":"'Standing Data'!$F$15","v":0},{"$f":"'Standing Data'!$F$9","v":0},"Fin.Return","V933",{"$f":"Fin.Return!V1060","v":0}]
[{"$f":"'Standing Data'!$D$15","v":{"$error":"#N/A"}},{"$f":"'Standing Data'!$F$15","v":0},{"$f":"'Standing Data'!$F$9","v":0},"Fin.Return","V934",{"$f":"Fin.Return!V1061","v":0}]
[{"$f":"'Standing Data'!$D$15","v":{"$error":"#N/A"}},{"$f":"'Standing Data'!$F$15","v":0},{"$f":"'Standing Data'!$F$9","v":0},"Fin.Return","V935",{"$f":"Fin.Return!V1062","v":0}]
[{"$f":"'Standing Data'!$D$15","v":{"$error":"#N/A"}},{"$f":"'Standing Data'!$F$15","v":0},{"$f":"'Standing Data'!$F$9","v":0},"Fin.Return","V936",{"$f":"Fin.Return!V1063","v":0}]
[{"$f":"'Standing Data'!$D$15","v":{"$error":"#N/A"}},{"$f":"'Standing Data'!$F$15","v":0},{"$f":"'Standing Data'!$F$9","v":0},"Fin.Return","V938",{"$f":"Fin.Return!V1065","v":0}]
[{"$f":"'Standing Data'!$D$15","v":{"$error":"#N/A"}},{"$f":"'Standing Data'!$F$15","v":0},{"$f":"'Standing Data'!$F$9","v":0},"Fin.Return","V940",{"$f":"Fin.Return!V1067","v":0}]
[{"$f":"'Standing Data'!$D$15","v":{"$error":"#N/A"}},{"$f":"'Standing Data'!$F$15","v":0},{"$f":"'Standing Data'!$F$9","v":0},"Fin.Return","V942",{"$f":"Fin.Return!V1069","v":0}]
[{"$f":"'Standing Data'!$D$15","v":{"$error":"#N/A"}},{"$f":"'Standing Data'!$F$15","v":0},{"$f":"'Standing Data'!$F$9","v":0},"Fin.Return","W908",{"$f":"Fin.Return!W1035","v":0}]
[{"$f":"'Standing Data'!$D$15","v":{"$error":"#N/A"}},{"$f":"'Standing Data'!$F$15","v":0},{"$f":"'Standing Data'!$F$9","v":0},"Fin.Return","W909",{"$f":"Fin.Return!W1036","v":0}]
[{"$f":"'Standing Data'!$D$15","v":{"$error":"#N/A"}},{"$f":"'Standing Data'!$F$15","v":0},{"$f":"'Standing Data'!$F$9","v":0},"Fin.Return","W910",{"$f":"Fin.Return!W1037","v":0}]
[{"$f":"'Standing Data'!$D$15","v":{"$error":"#N/A"}},{"$f":"'Standing Data'!$F$15","v":0},{"$f":"'Standing Data'!$F$9","v":0},"Fin.Return","W911",{"$f":"Fin.Return!W1038","v":0}]
[{"$f":"'Standing Data'!$D$15","v":{"$error":"#N/A"}},{"$f":"'Standing Data'!$F$15","v":0},{"$f":"'Standing Data'!$F$9","v":0},"Fin.Return","W912",{"$f":"Fin.Return!W1039","v":0}]
[{"$f":"'Standing Data'!$D$15","v":{"$error":"#N/A"}},{"$f":"'Standing Data'!$F$15","v":0},{"$f":"'Standing Data'!$F$9","v":0},"Fin.Return","W914",{"$f":"Fin.Return!W1041","v":0}]
[{"$f":"'Standing Data'!$D$15","v":{"$error":"#N/A"}},{"$f":"'Standing Data'!$F$15","v":0},{"$f":"'Standing Data'!$F$9","v":0},"Fin.Return","W913",{"$f":"Fin.Return!W1040","v":0}]
[{"$f":"'Standing Data'!$D$15","v":{"$error":"#N/A"}},{"$f":"'Standing Data'!$F$15","v":0},{"$f":"'Standing Data'!$F$9","v":0},"Fin.Return","W916",{"$f":"Fin.Return!W1043","v":0}]
[{"$f":"'Standing Data'!$D$15","v":{"$error":"#N/A"}},{"$f":"'Standing Data'!$F$15","v":0},{"$f":"'Standing Data'!$F$9","v":0},"Fin.Return","W917",{"$f":"Fin.Return!W1044","v":0}]
[{"$f":"'Standing Data'!$D$15","v":{"$error":"#N/A"}},{"$f":"'Standing Data'!$F$15","v":0},{"$f":"'Standing Data'!$F$9","v":0},"Fin.Return","W918",{"$f":"Fin.Return!W1045","v":0}]
[{"$f":"'Standing Data'!$D$15","v":{"$error":"#N/A"}},{"$f":"'Standing Data'!$F$15","v":0},{"$f":"'Standing Data'!$F$9","v":0},"Fin.Return","W919",{"$f":"Fin.Return!W1046","v":0}]
[{"$f":"'Standing Data'!$D$15","v":{"$error":"#N/A"}},{"$f":"'Standing Data'!$F$15","v":0},{"$f":"'Standing Data'!$F$9","v":0},"Fin.Return","W920",{"$f":"Fin.Return!W1047","v":0}]
[{"$f":"'Standing Data'!$D$15","v":{"$error":"#N/A"}},{"$f":"'Standing Data'!$F$15","v":0},{"$f":"'Standing Data'!$F$9","v":0},"Fin.Return","W922",{"$f":"Fin.Return!W1049","v":0}]
[{"$f":"'Standing Data'!$D$15","v":{"$error":"#N/A"}},{"$f":"'Standing Data'!$F$15","v":0},{"$f":"'Standing Data'!$F$9","v":0},"Fin.Return","W924",{"$f":"Fin.Return!W1051","v":0}]
[{"$f":"'Standing Data'!$D$15","v":{"$error":"#N/A"}},{"$f":"'Standing Data'!$F$15","v":0},{"$f":"'Standing Data'!$F$9","v":0},"Fin.Return","W925",{"$f":"Fin.Return!W1052","v":0}]
[{"$f":"'Standing Data'!$D$15","v":{"$error":"#N/A"}},{"$f":"'Standing Data'!$F$15","v":0},{"$f":"'Standing Data'!$F$9","v":0},"Fin.Return","W926",{"$f":"Fin.Return!W1053","v":0}]
[{"$f":"'Standing Data'!$D$15","v":{"$error":"#N/A"}},{"$f":"'Standing Data'!$F$15","v":0},{"$f":"'Standing Data'!$F$9","v":0},"Fin.Return","W927",{"$f":"Fin.Return!W1054","v":0}]
[{"$f":"'Standing Data'!$D$15","v":{"$error":"#N/A"}},{"$f":"'Standing Data'!$F$15","v":0},{"$f":"'Standing Data'!$F$9","v":0},"Fin.Return","W928",{"$f":"Fin.Return!W1055","v":0}]
[{"$f":"'Standing Data'!$D$15","v":{"$error":"#N/A"}},{"$f":"'Standing Data'!$F$15","v":0},{"$f":"'Standing Data'!$F$9","v":0},"Fin.Return","W929",{"$f":"Fin.Return!W1056","v":0}]
[{"$f":"'Standing Data'!$D$15","v":{"$error":"#N/A"}},{"$f":"'Standing Data'!$F$15","v":0},{"$f":"'Standing Data'!$F$9","v":0},"Fin.Return","W930",{"$f":"Fin.Return!W1057","v":0}]
[{"$f":"'Standing Data'!$D$15","v":{"$error":"#N/A"}},{"$f":"'Standing Data'!$F$15","v":0},{"$f":"'Standing Data'!$F$9","v":0},"Fin.Return","W931",{"$f":"Fin.Return!W1058","v":0}]
[{"$f":"'Standing Data'!$D$15","v":{"$error":"#N/A"}},{"$f":"'Standing Data'!$F$15","v":0},{"$f":"'Standing Data'!$F$9","v":0},"Fin.Return","W933",{"$f":"Fin.Return!W1060","v":0}]
[{"$f":"'Standing Data'!$D$15","v":{"$error":"#N/A"}},{"$f":"'Standing Data'!$F$15","v":0},{"$f":"'Standing Data'!$F$9","v":0},"Fin.Return","W934",{"$f":"Fin.Return!W1061","v":0}]
[{"$f":"'Standing Data'!$D$15","v":{"$error":"#N/A"}},{"$f":"'Standing Data'!$F$15","v":0},{"$f":"'Standing Data'!$F$9","v":0},"Fin.Return","W935",{"$f":"Fin.Return!W1062","v":0}]
[{"$f":"'Standing Data'!$D$15","v":{"$error":"#N/A"}},{"$f":"'Standing Data'!$F$15","v":0},{"$f":"'Standing Data'!$F$9","v":0},"Fin.Return","W936",{"$f":"Fin.Return!W1063","v":0}]
[{"$f":"'Standing Data'!$D$15","v":{"$error":"#N/A"}},{"$f":"'Standing Data'!$F$15","v":0},{"$f":"'Standing Data'!$F$9","v":0},"Fin.Return","W938",{"$f":"Fin.Return!W1065","v":0}]
[{"$f":"'Standing Data'!$D$15","v":{"$error":"#N/A"}},{"$f":"'Standing Data'!$F$15","v":0},{"$f":"'Standing Data'!$F$9","v":0},"Fin.Return","W940",{"$f":"Fin.Return!W1067","v":0}]
[{"$f":"'Standing Data'!$D$15","v":{"$error":"#N/A"}},{"$f":"'Standing Data'!$F$15","v":0},{"$f":"'Standing Data'!$F$9","v":0},"Fin.Return","W942",{"$f":"Fin.Return!W1069","v":0}]
[{"$f":"'Standing Data'!$D$15","v":{"$error":"#N/A"}},{"$f":"'Standing Data'!$F$15","v":0},{"$f":"'Standing Data'!$F$9","v":0},"Fin.Return","X908",{"$f":"Fin.Return!X1035","v":0}]
[{"$f":"'Standing Data'!$D$15","v":{"$error":"#N/A"}},{"$f":"'Standing Data'!$F$15","v":0},{"$f":"'Standing Data'!$F$9","v":0},"Fin.Return","X909",{"$f":"Fin.Return!X1036","v":0}]
[{"$f":"'Standing Data'!$D$15","v":{"$error":"#N/A"}},{"$f":"'Standing Data'!$F$15","v":0},{"$f":"'Standing Data'!$F$9","v":0},"Fin.Return","X910",{"$f":"Fin.Return!X1037","v":0}]
[{"$f":"'Standing Data'!$D$15","v":{"$error":"#N/A"}},{"$f":"'Standing Data'!$F$15","v":0},{"$f":"'Standing Data'!$F$9","v":0},"Fin.Return","X911",{"$f":"Fin.Return!X1038","v":0}]
[{"$f":"'Standing Data'!$D$15","v":{"$error":"#N/A"}},{"$f":"'Standing Data'!$F$15","v":0},{"$f":"'Standing Data'!$F$9","v":0},"Fin.Return","X912",{"$f":"Fin.Return!X1039","v":0}]
[{"$f":"'Standing Data'!$D$15","v":{"$error":"#N/A"}},{"$f":"'Standing Data'!$F$15","v":0},{"$f":"'Standing Data'!$F$9","v":0},"Fin.Return","X914",{"$f":"Fin.Return!X1041","v":0}]
[{"$f":"'Standing Data'!$D$15","v":{"$error":"#N/A"}},{"$f":"'Standing Data'!$F$15","v":0},{"$f":"'Standing Data'!$F$9","v":0},"Fin.Return","X913",{"$f":"Fin.Return!X1040","v":0}]
[{"$f":"'Standing Data'!$D$15","v":{"$error":"#N/A"}},{"$f":"'Standing Data'!$F$15","v":0},{"$f":"'Standing Data'!$F$9","v":0},"Fin.Return","X916",{"$f":"Fin.Return!X1043","v":0}]
[{"$f":"'Standing Data'!$D$15","v":{"$error":"#N/A"}},{"$f":"'Standing Data'!$F$15","v":0},{"$f":"'Standing Data'!$F$9","v":0},"Fin.Return","X917",{"$f":"Fin.Return!X1044","v":0}]
[{"$f":"'Standing Data'!$D$15","v":{"$error":"#N/A"}},{"$f":"'Standing Data'!$F$15","v":0},{"$f":"'Standing Data'!$F$9","v":0},"Fin.Return","X918",{"$f":"Fin.Return!X1045","v":0}]
[{"$f":"'Standing Data'!$D$15","v":{"$error":"#N/A"}},{"$f":"'Standing Data'!$F$15","v":0},{"$f":"'Standing Data'!$F$9","v":0},"Fin.Return","X919",{"$f":"Fin.Return!X1046","v":0}]
[{"$f":"'Standing Data'!$D$15","v":{"$error":"#N/A"}},{"$f":"'Standing Data'!$F$15","v":0},{"$f":"'Standing Data'!$F$9","v":0},"Fin.Return","X920",{"$f":"Fin.Return!X1047","v":0}]
[{"$f":"'Standing Data'!$D$15","v":{"$error":"#N/A"}},{"$f":"'Standing Data'!$F$15","v":0},{"$f":"'Standing Data'!$F$9","v":0},"Fin.Return","X922",{"$f":"Fin.Return!X1049","v":0}]
[{"$f":"'Standing Data'!$D$15","v":{"$error":"#N/A"}},{"$f":"'Standing Data'!$F$15","v":0},{"$f":"'Standing Data'!$F$9","v":0},"Fin.Return","X924",{"$f":"Fin.Return!X1051","v":0}]
[{"$f":"'Standing Data'!$D$15","v":{"$error":"#N/A"}},{"$f":"'Standing Data'!$F$15","v":0},{"$f":"'Standing Data'!$F$9","v":0},"Fin.Return","X925",{"$f":"Fin.Return!X1052","v":0}]
[{"$f":"'Standing Data'!$D$15","v":{"$error":"#N/A"}},{"$f":"'Standing Data'!$F$15","v":0},{"$f":"'Standing Data'!$F$9","v":0},"Fin.Return","X926",{"$f":"Fin.Return!X1053","v":0}]
[{"$f":"'Standing Data'!$D$15","v":{"$error":"#N/A"}},{"$f":"'Standing Data'!$F$15","v":0},{"$f":"'Standing Data'!$F$9","v":0},"Fin.Return","X927",{"$f":"Fin.Return!X1054","v":0}]
[{"$f":"'Standing Data'!$D$15","v":{"$error":"#N/A"}},{"$f":"'Standing Data'!$F$15","v":0},{"$f":"'Standing Data'!$F$9","v":0},"Fin.Return","X928",{"$f":"Fin.Return!X1055","v":0}]
[{"$f":"'Standing Data'!$D$15","v":{"$error":"#N/A"}},{"$f":"'Standing Data'!$F$15","v":0},{"$f":"'Standing Data'!$F$9","v":0},"Fin.Return","X929",{"$f":"Fin.Return!X1056","v":0}]
[{"$f":"'Standing Data'!$D$15","v":{"$error":"#N/A"}},{"$f":"'Standing Data'!$F$15","v":0},{"$f":"'Standing Data'!$F$9","v":0},"Fin.Return","X930",{"$f":"Fin.Return!X1057","v":0}]
[{"$f":"'Standing Data'!$D$15","v":{"$error":"#N/A"}},{"$f":"'Standing Data'!$F$15","v":0},{"$f":"'Standing Data'!$F$9","v":0},"Fin.Return","X931",{"$f":"Fin.Return!X1058","v":0}]
[{"$f":"'Standing Data'!$D$15","v":{"$error":"#N/A"}},{"$f":"'Standing Data'!$F$15","v":0},{"$f":"'Standing Data'!$F$9","v":0},"Fin.Return","X933",{"$f":"Fin.Return!X1060","v":0}]
[{"$f":"'Standing Data'!$D$15","v":{"$error":"#N/A"}},{"$f":"'Standing Data'!$F$15","v":0},{"$f":"'Standing Data'!$F$9","v":0},"Fin.Return","X934",{"$f":"Fin.Return!X1061","v":0}]
[{"$f":"'Standing Data'!$D$15","v":{"$error":"#N/A"}},{"$f":"'Standing Data'!$F$15","v":0},{"$f":"'Standing Data'!$F$9","v":0},"Fin.Return","X935",{"$f":"Fin.Return!X1062","v":0}]
[{"$f":"'Standing Data'!$D$15","v":{"$error":"#N/A"}},{"$f":"'Standing Data'!$F$15","v":0},{"$f":"'Standing Data'!$F$9","v":0},"Fin.Return","X936",{"$f":"Fin.Return!X1063","v":0}]
[{"$f":"'Standing Data'!$D$15","v":{"$error":"#N/A"}},{"$f":"'Standing Data'!$F$15","v":0},{"$f":"'Standing Data'!$F$9","v":0},"Fin.Return","X938",{"$f":"Fin.Return!X1065","v":0}]
[{"$f":"'Standing Data'!$D$15","v":{"$error":"#N/A"}},{"$f":"'Standing Data'!$F$15","v":0},{"$f":"'Standing Data'!$F$9","v":0},"Fin.Return","X940",{"$f":"Fin.Return!X1067","v":0}]
[{"$f":"'Standing Data'!$D$15","v":{"$error":"#N/A"}},{"$f":"'Standing Data'!$F$15","v":0},{"$f":"'Standing Data'!$F$9","v":0},"Fin.Return","X942",{"$f":"Fin.Return!X1069","v":0}]
[{"$f":"'Standing Data'!$D$15","v":{"$error":"#N/A"}},{"$f":"'Standing Data'!$F$15","v":0},{"$f":"'Standing Data'!$F$9","v":0},"Fin.Return","Y908",{"$f":"Fin.Return!Y1035","v":0}]
[{"$f":"'Standing Data'!$D$15","v":{"$error":"#N/A"}},{"$f":"'Standing Data'!$F$15","v":0},{"$f":"'Standing Data'!$F$9","v":0},"Fin.Return","Y909",{"$f":"Fin.Return!Y1036","v":0}]
[{"$f":"'Standing Data'!$D$15","v":{"$error":"#N/A"}},{"$f":"'Standing Data'!$F$15","v":0},{"$f":"'Standing Data'!$F$9","v":0},"Fin.Return","Y910",{"$f":"Fin.Return!Y1037","v":0}]
[{"$f":"'Standing Data'!$D$15","v":{"$error":"#N/A"}},{"$f":"'Standing Data'!$F$15","v":0},{"$f":"'Standing Data'!$F$9","v":0},"Fin.Return","Y911",{"$f":"Fin.Return!Y1038","v":0}]
[{"$f":"'Standing Data'!$D$15","v":{"$error":"#N/A"}},{"$f":"'Standing Data'!$F$15","v":0},{"$f":"'Standing Data'!$F$9","v":0},"Fin.Return","Y912",{"$f":"Fin.Return!Y1039","v":0}]
[{"$f":"'Standing Data'!$D$15","v":{"$error":"#N/A"}},{"$f":"'Standing Data'!$F$15","v":0},{"$f":"'Standing Data'!$F$9","v":0},"Fin.Return","Y914",{"$f":"Fin.Return!Y1041","v":0}]
[{"$f":"'Standing Data'!$D$15","v":{"$error":"#N/A"}},{"$f":"'Standing Data'!$F$15","v":0},{"$f":"'Standing Data'!$F$9","v":0},"Fin.Return","Y913",{"$f":"Fin.Return!Y1040","v":0}]
[{"$f":"'Standing Data'!$D$15","v":{"$error":"#N/A"}},{"$f":"'Standing Data'!$F$15","v":0},{"$f":"'Standing Data'!$F$9","v":0},"Fin.Return","Y916",{"$f":"Fin.Return!Y1043","v":0}]
[{"$f":"'Standing Data'!$D$15","v":{"$error":"#N/A"}},{"$f":"'Standing Data'!$F$15","v":0},{"$f":"'Standing Data'!$F$9","v":0},"Fin.Return","Y917",{"$f":"Fin.Return!Y1044","v":0}]
[{"$f":"'Standing Data'!$D$15","v":{"$error":"#N/A"}},{"$f":"'Standing Data'!$F$15","v":0},{"$f":"'Standing Data'!$F$9","v":0},"Fin.Return","Y918",{"$f":"Fin.Return!Y1045","v":0}]
[{"$f":"'Standing Data'!$D$15","v":{"$error":"#N/A"}},{"$f":"'Standing Data'!$F$15","v":0},{"$f":"'Standing Data'!$F$9","v":0},"Fin.Return","Y919",{"$f":"Fin.Return!Y1046","v":0}]
[{"$f":"'Standing Data'!$D$15","v":{"$error":"#N/A"}},{"$f":"'Standing Data'!$F$15","v":0},{"$f":"'Standing Data'!$F$9","v":0},"Fin.Return","Y920",{"$f":"Fin.Return!Y1047","v":0}]
[{"$f":"'Standing Data'!$D$15","v":{"$error":"#N/A"}},{"$f":"'Standing Data'!$F$15","v":0},{"$f":"'Standing Data'!$F$9","v":0},"Fin.Return","Y922",{"$f":"Fin.Return!Y1049","v":0}]
[{"$f":"'Standing Data'!$D$15","v":{"$error":"#N/A"}},{"$f":"'Standing Data'!$F$15","v":0},{"$f":"'Standing Data'!$F$9","v":0},"Fin.Return","Y924",{"$f":"Fin.Return!Y1051","v":0}]
[{"$f":"'Standing Data'!$D$15","v":{"$error":"#N/A"}},{"$f":"'Standing Data'!$F$15","v":0},{"$f":"'Standing Data'!$F$9","v":0},"Fin.Return","Y925",{"$f":"Fin.Return!Y1052","v":0}]
[{"$f":"'Standing Data'!$D$15","v":{"$error":"#N/A"}},{"$f":"'Standing Data'!$F$15","v":0},{"$f":"'Standing Data'!$F$9","v":0},"Fin.Return","Y926",{"$f":"Fin.Return!Y1053","v":0}]
[{"$f":"'Standing Data'!$D$15","v":{"$error":"#N/A"}},{"$f":"'Standing Data'!$F$15","v":0},{"$f":"'Standing Data'!$F$9","v":0},"Fin.Return","Y927",{"$f":"Fin.Return!Y1054","v":0}]
[{"$f":"'Standing Data'!$D$15","v":{"$error":"#N/A"}},{"$f":"'Standing Data'!$F$15","v":0},{"$f":"'Standing Data'!$F$9","v":0},"Fin.Return","Y928",{"$f":"Fin.Return!Y1055","v":0}]
[{"$f":"'Standing Data'!$D$15","v":{"$error":"#N/A"}},{"$f":"'Standing Data'!$F$15","v":0},{"$f":"'Standing Data'!$F$9","v":0},"Fin.Return","Y929",{"$f":"Fin.Return!Y1056","v":0}]
[{"$f":"'Standing Data'!$D$15","v":{"$error":"#N/A"}},{"$f":"'Standing Data'!$F$15","v":0},{"$f":"'Standing Data'!$F$9","v":0},"Fin.Return","Y930",{"$f":"Fin.Return!Y1057","v":0}]
[{"$f":"'Standing Data'!$D$15","v":{"$error":"#N/A"}},{"$f":"'Standing Data'!$F$15","v":0},{"$f":"'Standing Data'!$F$9","v":0},"Fin.Return","Y931",{"$f":"Fin.Return!Y1058","v":0}]
[{"$f":"'Standing Data'!$D$15","v":{"$error":"#N/A"}},{"$f":"'Standing Data'!$F$15","v":0},{"$f":"'Standing Data'!$F$9","v":0},"Fin.Return","Y933",{"$f":"Fin.Return!Y1060","v":0}]
[{"$f":"'Standing Data'!$D$15","v":{"$error":"#N/A"}},{"$f":"'Standing Data'!$F$15","v":0},{"$f":"'Standing Data'!$F$9","v":0},"Fin.Return","Y934",{"$f":"Fin.Return!Y1061","v":0}]
[{"$f":"'Standing Data'!$D$15","v":{"$error":"#N/A"}},{"$f":"'Standing Data'!$F$15","v":0},{"$f":"'Standing Data'!$F$9","v":0},"Fin.Return","Y935",{"$f":"Fin.Return!Y1062","v":0}]
[{"$f":"'Standing Data'!$D$15","v":{"$error":"#N/A"}},{"$f":"'Standing Data'!$F$15","v":0},{"$f":"'Standing Data'!$F$9","v":0},"Fin.Return","Y936",{"$f":"Fin.Return!Y1063","v":0}]
[{"$f":"'Standing Data'!$D$15","v":{"$error":"#N/A"}},{"$f":"'Standing Data'!$F$15","v":0},{"$f":"'Standing Data'!$F$9","v":0},"Fin.Return","Y938",{"$f":"Fin.Return!Y1065","v":0}]
[{"$f":"'Standing Data'!$D$15","v":{"$error":"#N/A"}},{"$f":"'Standing Data'!$F$15","v":0},{"$f":"'Standing Data'!$F$9","v":0},"Fin.Return","Y940",{"$f":"Fin.Return!Y1067","v":0}]
[{"$f":"'Standing Data'!$D$15","v":{"$error":"#N/A"}},{"$f":"'Standing Data'!$F$15","v":0},{"$f":"'Standing Data'!$F$9","v":0},"Fin.Return","Y942",{"$f":"Fin.Return!Y1069","v":0}]
[{"$f":"'Standing Data'!$D$15","v":{"$error":"#N/A"}},{"$f":"'Standing Data'!$F$15","v":0},{"$f":"'Standing Data'!$F$9","v":0},"Fin.Return","Z908",{"$f":"Fin.Return!Z1035","v":0}]
[{"$f":"'Standing Data'!$D$15","v":{"$error":"#N/A"}},{"$f":"'Standing Data'!$F$15","v":0},{"$f":"'Standing Data'!$F$9","v":0},"Fin.Return","Z909",{"$f":"Fin.Return!Z1036","v":0}]
[{"$f":"'Standing Data'!$D$15","v":{"$error":"#N/A"}},{"$f":"'Standing Data'!$F$15","v":0},{"$f":"'Standing Data'!$F$9","v":0},"Fin.Return","Z910",{"$f":"Fin.Return!Z1037","v":0}]
[{"$f":"'Standing Data'!$D$15","v":{"$error":"#N/A"}},{"$f":"'Standing Data'!$F$15","v":0},{"$f":"'Standing Data'!$F$9","v":0},"Fin.Return","Z911",{"$f":"Fin.Return!Z1038","v":0}]
[{"$f":"'Standing Data'!$D$15","v":{"$error":"#N/A"}},{"$f":"'Standing Data'!$F$15","v":0},{"$f":"'Standing Data'!$F$9","v":0},"Fin.Return","Z912",{"$f":"Fin.Return!Z1039","v":0}]
[{"$f":"'Standing Data'!$D$15","v":{"$error":"#N/A"}},{"$f":"'Standing Data'!$F$15","v":0},{"$f":"'Standing Data'!$F$9","v":0},"Fin.Return","Z914",{"$f":"Fin.Return!Z1041","v":0}]
[{"$f":"'Standing Data'!$D$15","v":{"$error":"#N/A"}},{"$f":"'Standing Data'!$F$15","v":0},{"$f":"'Standing Data'!$F$9","v":0},"Fin.Return","Z913",{"$f":"Fin.Return!Z1040","v":0}]
[{"$f":"'Standing Data'!$D$15","v":{"$error":"#N/A"}},{"$f":"'Standing Data'!$F$15","v":0},{"$f":"'Standing Data'!$F$9","v":0},"Fin.Return","Z916",{"$f":"Fin.Return!Z1043","v":0}]
[{"$f":"'Standing Data'!$D$15","v":{"$error":"#N/A"}},{"$f":"'Standing Data'!$F$15","v":0},{"$f":"'Standing Data'!$F$9","v":0},"Fin.Return","Z917",{"$f":"Fin.Return!Z1044","v":0}]
[{"$f":"'Standing Data'!$D$15","v":{"$error":"#N/A"}},{"$f":"'Standing Data'!$F$15","v":0},{"$f":"'Standing Data'!$F$9","v":0},"Fin.Return","Z918",{"$f":"Fin.Return!Z1045","v":0}]
[{"$f":"'Standing Data'!$D$15","v":{"$error":"#N/A"}},{"$f":"'Standing Data'!$F$15","v":0},{"$f":"'Standing Data'!$F$9","v":0},"Fin.Return","Z919",{"$f":"Fin.Return!Z1046","v":0}]
[{"$f":"'Standing Data'!$D$15","v":{"$error":"#N/A"}},{"$f":"'Standing Data'!$F$15","v":0},{"$f":"'Standing Data'!$F$9","v":0},"Fin.Return","Z920",{"$f":"Fin.Return!Z1047","v":0}]
[{"$f":"'Standing Data'!$D$15","v":{"$error":"#N/A"}},{"$f":"'Standing Data'!$F$15","v":0},{"$f":"'Standing Data'!$F$9","v":0},"Fin.Return","Z922",{"$f":"Fin.Return!Z1049","v":0}]
[{"$f":"'Standing Data'!$D$15","v":{"$error":"#N/A"}},{"$f":"'Standing Data'!$F$15","v":0},{"$f":"'Standing Data'!$F$9","v":0},"Fin.Return","Z924",{"$f":"Fin.Return!Z1051","v":0}]
[{"$f":"'Standing Data'!$D$15","v":{"$error":"#N/A"}},{"$f":"'Standing Data'!$F$15","v":0},{"$f":"'Standing Data'!$F$9","v":0},"Fin.Return","Z925",{"$f":"Fin.Return!Z1052","v":0}]
[{"$f":"'Standing Data'!$D$15","v":{"$error":"#N/A"}},{"$f":"'Standing Data'!$F$15","v":0},{"$f":"'Standing Data'!$F$9","v":0},"Fin.Return","Z926",{"$f":"Fin.Return!Z1053","v":0}]
[{"$f":"'Standing Data'!$D$15","v":{"$error":"#N/A"}},{"$f":"'Standing Data'!$F$15","v":0},{"$f":"'Standing Data'!$F$9","v":0},"Fin.Return","Z927",{"$f":"Fin.Return!Z1054","v":0}]
[{"$f":"'Standing Data'!$D$15","v":{"$error":"#N/A"}},{"$f":"'Standing Data'!$F$15","v":0},{"$f":"'Standing Data'!$F$9","v":0},"Fin.Return","Z928",{"$f":"Fin.Return!Z1055","v":0}]
[{"$f":"'Standing Data'!$D$15","v":{"$error":"#N/A"}},{"$f":"'Standing Data'!$F$15","v":0},{"$f":"'Standing Data'!$F$9","v":0},"Fin.Return","Z929",{"$f":"Fin.Return!Z1056","v":0}]
[{"$f":"'Standing Data'!$D$15","v":{"$error":"#N/A"}},{"$f":"'Standing Data'!$F$15","v":0},{"$f":"'Standing Data'!$F$9","v":0},"Fin.Return","Z930",{"$f":"Fin.Return!Z1057","v":0}]
[{"$f":"'Standing Data'!$D$15","v":{"$error":"#N/A"}},{"$f":"'Standing Data'!$F$15","v":0},{"$f":"'Standing Data'!$F$9","v":0},"Fin.Return","Z931",{"$f":"Fin.Return!Z1058","v":0}]
[{"$f":"'Standing Data'!$D$15","v":{"$error":"#N/A"}},{"$f":"'Standing Data'!$F$15","v":0},{"$f":"'Standing Data'!$F$9","v":0},"Fin.Return","Z933",{"$f":"Fin.Return!Z1060","v":0}]
[{"$f":"'Standing Data'!$D$15","v":{"$error":"#N/A"}},{"$f":"'Standing Data'!$F$15","v":0},{"$f":"'Standing Data'!$F$9","v":0},"Fin.Return","Z934",{"$f":"Fin.Return!Z1061","v":0}]
[{"$f":"'Standing Data'!$D$15","v":{"$error":"#N/A"}},{"$f":"'Standing Data'!$F$15","v":0},{"$f":"'Standing Data'!$F$9","v":0},"Fin.Return","Z935",{"$f":"Fin.Return!Z1062","v":0}]
[{"$f":"'Standing Data'!$D$15","v":{"$error":"#N/A"}},{"$f":"'Standing Data'!$F$15","v":0},{"$f":"'Standing Data'!$F$9","v":0},"Fin.Return","Z936",{"$f":"Fin.Return!Z1063","v":0}]
[{"$f":"'Standing Data'!$D$15","v":{"$error":"#N/A"}},{"$f":"'Standing Data'!$F$15","v":0},{"$f":"'Standing Data'!$F$9","v":0},"Fin.Return","Z938",{"$f":"Fin.Return!Z1065","v":0}]
[{"$f":"'Standing Data'!$D$15","v":{"$error":"#N/A"}},{"$f":"'Standing Data'!$F$15","v":0},{"$f":"'Standing Data'!$F$9","v":0},"Fin.Return","Z940",{"$f":"Fin.Return!Z1067","v":0}]
[{"$f":"'Standing Data'!$D$15","v":{"$error":"#N/A"}},{"$f":"'Standing Data'!$F$15","v":0},{"$f":"'Standing Data'!$F$9","v":0},"Fin.Return","Z942",{"$f":"Fin.Return!Z1069","v":0}]
[{"$f":"'Standing Data'!$D$15","v":{"$error":"#N/A"}},{"$f":"'Standing Data'!$F$15","v":0},{"$f":"'Standing Data'!$F$9","v":0},"Bench.Return","F54",{"$f":"'Bench.Return '!F59","v":0}]
[{"$f":"'Standing Data'!$D$15","v":{"$error":"#N/A"}},{"$f":"'Standing Data'!$F$15","v":0},{"$f":"'Standing Data'!$F$9","v":0},"Bench.Return","F55",{"$f":"'Bench.Return '!F60","v":0}]
[{"$f":"'Standing Data'!$D$15","v":{"$error":"#N/A"}},{"$f":"'Standing Data'!$F$15","v":0},{"$f":"'Standing Data'!$F$9","v":0},"Bench.Return","F56",{"$f":"'Bench.Return '!F61","v":0}]
[{"$f":"'Standing Data'!$D$15","v":{"$error":"#N/A"}},{"$f":"'Standing Data'!$F$15","v":0},{"$f":"'Standing Data'!$F$9","v":0},"Bench.Return","F57",{"$f":"'Bench.Return '!F62","v":0}]
[{"$f":"'Standing Data'!$D$15","v":{"$error":"#N/A"}},{"$f":"'Standing Data'!$F$15","v":0},{"$f":"'Standing Data'!$F$9","v":0},"Bench.Return","F58",{"$f":"'Bench.Return '!F63","v":0}]
[{"$f":"'Standing Data'!$D$15","v":{"$error":"#N/A"}},{"$f":"'Standing Data'!$F$15","v":0},{"$f":"'Standing Data'!$F$9","v":0},"Bench.Return","F59",{"$f":"'Bench.Return '!F64","v":0}]
[{"$f":"'Standing Data'!$D$15","v":{"$error":"#N/A"}},{"$f":"'Standing Data'!$F$15","v":0},{"$f":"'Standing Data'!$F$9","v":0},"Bench.Return","F60",{"$f":"'Bench.Return '!F65","v":0}]
[{"$f":"'Standing Data'!$D$15","v":{"$error":"#N/A"}},{"$f":"'Standing Data'!$F$15","v":0},{"$f":"'Standing Data'!$F$9","v":0},"Bench.Return","F62",{"$f":"'Bench.Return '!F68","v":0}]
[{"$f":"'Standing Data'!$D$15","v":{"$error":"#N/A"}},{"$f":"'Standing Data'!$F$15","v":0},{"$f":"'Standing Data'!$F$9","v":0},"Bench.Return","F63",{"$f":"'Bench.Return '!F69","v":0}]
[{"$f":"'Standing Data'!$D$15","v":{"$error":"#N/A"}},{"$f":"'Standing Data'!$F$15","v":0},{"$f":"'Standing Data'!$F$9","v":0},"Bench.Return","F64",{"$f":"'Bench.Return '!F70","v":0}]
[{"$f":"'Standing Data'!$D$15","v":{"$error":"#N/A"}},{"$f":"'Standing Data'!$F$15","v":0},{"$f":"'Standing Data'!$F$9","v":0},"Bench.Return","F65",{"$f":"'Bench.Return '!F71","v":0}]
[{"$f":"'Standing Data'!$D$15","v":{"$error":"#N/A"}},{"$f":"'Standing Data'!$F$15","v":0},{"$f":"'Standing Data'!$F$9","v":0},"Bench.Return","F66",{"$f":"'Bench.Return '!F72","v":0}]
[{"$f":"'Standing Data'!$D$15","v":{"$error":"#N/A"}},{"$f":"'Standing Data'!$F$15","v":0},{"$f":"'Standing Data'!$F$9","v":0},"Bench.Return","F70",{"$f":"'Bench.Return '!F76","v":0}]
[{"$f":"'Standing Data'!$D$15","v":{"$error":"#N/A"}},{"$f":"'Standing Data'!$F$15","v":0},{"$f":"'Standing Data'!$F$9","v":0},"Bench.Return","F71",{"$f":"'Bench.Return '!F77","v":0}]
[{"$f":"'Standing Data'!$D$15","v":{"$error":"#N/A"}},{"$f":"'Standing Data'!$F$15","v":0},{"$f":"'Standing Data'!$F$9","v":0},"Bench.Return","F75",{"$f":"'Bench.Return '!F81","v":0}]
[{"$f":"'Standing Data'!$D$15","v":{"$error":"#N/A"}},{"$f":"'Standing Data'!$F$15","v":0},{"$f":"'Standing Data'!$F$9","v":0},"Bench.Return","F76",{"$f":"'Bench.Return '!F82","v":0}]
[{"$f":"'Standing Data'!$D$15","v":{"$error":"#N/A"}},{"$f":"'Standing Data'!$F$15","v":0},{"$f":"'Standing Data'!$F$9","v":0},"Bench.Return","F77",{"$f":"'Bench.Return '!F83","v":0}]
[{"$f":"'Standing Data'!$D$15","v":{"$error":"#N/A"}},{"$f":"'Standing Data'!$F$15","v":0},{"$f":"'Standing Data'!$F$9","v":0},"Bench.Return","F78",{"$f":"'Bench.Return '!F84","v":0}]
[{"$f":"'Standing Data'!$D$15","v":{"$error":"#N/A"}},{"$f":"'Standing Data'!$F$15","v":0},{"$f":"'Standing Data'!$F$9","v":0},"Bench.Return","F79",{"$f":"'Bench.Return '!F85","v":0}]
[{"$f":"'Standing Data'!$D$15","v":{"$error":"#N/A"}},{"$f":"'Standing Data'!$F$15","v":0},{"$f":"'Standing Data'!$F$9","v":0},"Bench.Return","F86",{"$f":"'Bench.Return '!F92","v":0}]
[{"$f":"'Standing Data'!$D$15","v":{"$error":"#N/A"}},{"$f":"'Standing Data'!$F$15","v":0},{"$f":"'Standing Data'!$F$9","v":0},"Bench.Return","F87",{"$f":"'Bench.Return '!F93","v":0}]
[{"$f":"'Standing Data'!$D$15","v":{"$error":"#N/A"}},{"$f":"'Standing Data'!$F$15","v":0},{"$f":"'Standing Data'!$F$9","v":0},"Bench.Return","F88",{"$f":"'Bench.Return '!F94","v":0}]
[{"$f":"'Standing Data'!$D$15","v":{"$error":"#N/A"}},{"$f":"'Standing Data'!$F$15","v":0},{"$f":"'Standing Data'!$F$9","v":0},"Bench.Return","F89",{"$f":"'Bench.Return '!F95","v":0}]
[{"$f":"'Standing Data'!$D$15","v":{"$error":"#N/A"}},{"$f":"'Standing Data'!$F$15","v":0},{"$f":"'Standing Data'!$F$9","v":0},"Bench.Return","F90",{"$f":"'Bench.Return '!F96","v":0}]
[{"$f":"'Standing Data'!$D$15","v":{"$error":"#N/A"}},{"$f":"'Standing Data'!$F$15","v":0},{"$f":"'Standing Data'!$F$9","v":0},"Bench.Return","F91",{"$f":"'Bench.Return '!F97","v":0}]
[{"$f":"'Standing Data'!$D$15","v":{"$error":"#N/A"}},{"$f":"'Standing Data'!$F$15","v":0},{"$f":"'Standing Data'!$F$9","v":0},"Bench.Return","F98",{"$f":"'Bench.Return '!F104","v":0}]
[{"$f":"'Standing Data'!$D$15","v":{"$error":"#N/A"}},{"$f":"'Standing Data'!$F$15","v":0},{"$f":"'Standing Data'!$F$9","v":0},"Bench.Return","F99",{"$f":"'Bench.Return '!F105","v":0}]
[{"$f":"'Standing Data'!$D$15","v":{"$error":"#N/A"}},{"$f":"'Standing Data'!$F$15","v":0},{"$f":"'Standing Data'!$F$9","v":0},"Bench.Return","F100",{"$f":"'Bench.Return '!F106","v":0}]
[{"$f":"'Standing Data'!$D$15","v":{"$error":"#N/A"}},{"$f":"'Standing Data'!$F$15","v":0},{"$f":"'Standing Data'!$F$9","v":0},"Bench.Return","F101",{"$f":"'Bench.Return '!F107","v":0}]
[{"$f":"'Standing Data'!$D$15","v":{"$error":"#N/A"}},{"$f":"'Standing Data'!$F$15","v":0},{"$f":"'Standing Data'!$F$9","v":0},"Bench.Return","F102",{"$f":"'Bench.Return '!F108","v":0}]
[{"$f":"'Standing Data'!$D$15","v":{"$error":"#N/A"}},{"$f":"'Standing Data'!$F$15","v":0},{"$f":"'Standing Data'!$F$9","v":0},"Bench.Return","F106",{"$f":"'Bench.Return '!F112","v":0}]
[{"$f":"'Standing Data'!$D$15","v":{"$error":"#N/A"}},{"$f":"'Standing Data'!$F$15","v":0},{"$f":"'Standing Data'!$F$9","v":0},"Bench.Return","F107",{"$f":"'Bench.Return '!F113","v":0}]
[{"$f":"'Standing Data'!$D$15","v":{"$error":"#N/A"}},{"$f":"'Standing Data'!$F$15","v":0},{"$f":"'Standing Data'!$F$9","v":0},"Bench.Return","F108",{"$f":"'Bench.Return '!F114","v":0}]
[{"$f":"'Standing Data'!$D$15","v":{"$error":"#N/A"}},{"$f":"'Standing Data'!$F$15","v":0},{"$f":"'Standing Data'!$F$9","v":0},"Bench.Return","G15",{"$f":"'Bench.Return '!G19","v":0}]
[{"$f":"'Standing Data'!$D$15","v":{"$error":"#N/A"}},{"$f":"'Standing Data'!$F$15","v":0},{"$f":"'Standing Data'!$F$9","v":0},"Bench.Return","G16",{"$f":"'Bench.Return '!G20","v":0}]
[{"$f":"'Standing Data'!$D$15","v":{"$error":"#N/A"}},{"$f":"'Standing Data'!$F$15","v":0},{"$f":"'Standing Data'!$F$9","v":0},"Bench.Return","G17",{"$f":"'Bench.Return '!G21","v":0}]
[{"$f":"'Standing Data'!$D$15","v":{"$error":"#N/A"}},{"$f":"'Standing Data'!$F$15","v":0},{"$f":"'Standing Data'!$F$9","v":0},"Bench.Return","G18",{"$f":"'Bench.Return '!G22","v":0}]
[{"$f":"'Standing Data'!$D$15","v":{"$error":"#N/A"}},{"$f":"'Standing Data'!$F$15","v":0},{"$f":"'Standing Data'!$F$9","v":0},"Bench.Return","G19",{"$f":"'Bench.Return '!G23","v":0}]
[{"$f":"'Standing Data'!$D$15","v":{"$error":"#N/A"}},{"$f":"'Standing Data'!$F$15","v":0},{"$f":"'Standing Data'!$F$9","v":0},"Bench.Return","G20",{"$f":"'Bench.Return '!G24","v":0}]
[{"$f":"'Standing Data'!$D$15","v":{"$error":"#N/A"}},{"$f":"'Standing Data'!$F$15","v":0},{"$f":"'Standing Data'!$F$9","v":0},"Bench.Return","G21",{"$f":"'Bench.Return '!G25","v":0}]
[{"$f":"'Standing Data'!$D$15","v":{"$error":"#N/A"}},{"$f":"'Standing Data'!$F$15","v":0},{"$f":"'Standing Data'!$F$9","v":0},"Bench.Return","G22",{"$f":"'Bench.Return '!G26","v":0}]
[{"$f":"'Standing Data'!$D$15","v":{"$error":"#N/A"}},{"$f":"'Standing Data'!$F$15","v":0},{"$f":"'Standing Data'!$F$9","v":0},"Bench.Return","G23",{"$f":"'Bench.Return '!G27","v":0}]
[{"$f":"'Standing Data'!$D$15","v":{"$error":"#N/A"}},{"$f":"'Standing Data'!$F$15","v":0},{"$f":"'Standing Data'!$F$9","v":0},"Bench.Return","G27",{"$f":"'Bench.Return '!G31","v":0}]
[{"$f":"'Standing Data'!$D$15","v":{"$error":"#N/A"}},{"$f":"'Standing Data'!$F$15","v":0},{"$f":"'Standing Data'!$F$9","v":0},"Bench.Return","G28",{"$f":"'Bench.Return '!G32","v":0}]
[{"$f":"'Standing Data'!$D$15","v":{"$error":"#N/A"}},{"$f":"'Standing Data'!$F$15","v":0},{"$f":"'Standing Data'!$F$9","v":0},"Bench.Return","G29",{"$f":"'Bench.Return '!G33","v":0}]
[{"$f":"'Standing Data'!$D$15","v":{"$error":"#N/A"}},{"$f":"'Standing Data'!$F$15","v":0},{"$f":"'Standing Data'!$F$9","v":0},"Bench.Return","G30",{"$f":"'Bench.Return '!G34","v":0}]
[{"$f":"'Standing Data'!$D$15","v":{"$error":"#N/A"}},{"$f":"'Standing Data'!$F$15","v":0},{"$f":"'Standing Data'!$F$9","v":0},"Bench.Return","G31",{"$f":"'Bench.Return '!G35","v":0}]
[{"$f":"'Standing Data'!$D$15","v":{"$error":"#N/A"}},{"$f":"'Standing Data'!$F$15","v":0},{"$f":"'Standing Data'!$F$9","v":0},"Bench.Return","G32",{"$f":"'Bench.Return '!G36","v":0}]
[{"$f":"'Standing Data'!$D$15","v":{"$error":"#N/A"}},{"$f":"'Standing Data'!$F$15","v":0},{"$f":"'Standing Data'!$F$9","v":0},"Bench.Return","G33",{"$f":"'Bench.Return '!G37","v":0}]
[{"$f":"'Standing Data'!$D$15","v":{"$error":"#N/A"}},{"$f":"'Standing Data'!$F$15","v":0},{"$f":"'Standing Data'!$F$9","v":0},"Bench.Return","G41",{"$f":"'Bench.Return '!G46","v":0}]
[{"$f":"'Standing Data'!$D$15","v":{"$error":"#N/A"}},{"$f":"'Standing Data'!$F$15","v":0},{"$f":"'Standing Data'!$F$9","v":0},"Bench.Return","G42",{"$f":"'Bench.Return '!G47","v":0}]
[{"$f":"'Standing Data'!$D$15","v":{"$error":"#N/A"}},{"$f":"'Standing Data'!$F$15","v":0},{"$f":"'Standing Data'!$F$9","v":0},"Bench.Return","G43",{"$f":"'Bench.Return '!G48","v":0}]
[{"$f":"'Standing Data'!$D$15","v":{"$error":"#N/A"}},{"$f":"'Standing Data'!$F$15","v":0},{"$f":"'Standing Data'!$F$9","v":0},"Bench.Return","G44",{"$f":"'Bench.Return '!G49","v":0}]
[{"$f":"'Standing Data'!$D$15","v":{"$error":"#N/A"}},{"$f":"'Standing Data'!$F$15","v":0},{"$f":"'Standing Data'!$F$9","v":0},"Bench.Return","G68",{"$f":"'Bench.Return '!G74","v":0}]
[{"$f":"'Standing Data'!$D$15","v":{"$error":"#N/A"}},{"$f":"'Standing Data'!$F$15","v":0},{"$f":"'Standing Data'!$F$9","v":0},"Bench.Return","G73",{"$f":"'Bench.Return '!G79","v":0}]
[{"$f":"'Standing Data'!$D$15","v":{"$error":"#N/A"}},{"$f":"'Standing Data'!$F$15","v":0},{"$f":"'Standing Data'!$F$9","v":0},"Bench.Return","G81",{"$f":"'Bench.Return '!G87","v":0}]
[{"$f":"'Standing Data'!$D$15","v":{"$error":"#N/A"}},{"$f":"'Standing Data'!$F$15","v":0},{"$f":"'Standing Data'!$F$9","v":0},"Bench.Return","G83",{"$f":"'Bench.Return '!G89","v":0}]
[{"$f":"'Standing Data'!$D$15","v":{"$error":"#N/A"}},{"$f":"'Standing Data'!$F$15","v":0},{"$f":"'Standing Data'!$F$9","v":0},"Bench.Return","G93",{"$f":"'Bench.Return '!G99","v":0}]
[{"$f":"'Standing Data'!$D$15","v":{"$error":"#N/A"}},{"$f":"'Standing Data'!$F$15","v":0},{"$f":"'Standing Data'!$F$9","v":0},"Bench.Return","G95",{"$f":"'Bench.Return '!G101","v":0}]
[{"$f":"'Standing Data'!$D$15","v":{"$error":"#N/A"}},{"$f":"'Standing Data'!$F$15","v":0},{"$f":"'Standing Data'!$F$9","v":0},"Bench.Return","G104",{"$f":"'Bench.Return '!G110","v":0}]
[{"$f":"'Standing Data'!$D$15","v":{"$error":"#N/A"}},{"$f":"'Standing Data'!$F$15","v":0},{"$f":"'Standing Data'!$F$9","v":0},"Bench.Return","G110",{"$f":"'Bench.Return '!G116","v":0}]
[{"$f":"'Standing Data'!$D$15","v":{"$error":"#N/A"}},{"$f":"'Standing Data'!$F$15","v":0},{"$f":"'Standing Data'!$F$9","v":0},"Bench.Return","G114",{"$f":"'Bench.Return '!G120","v":0}]
[{"$f":"'Standing Data'!$D$15","v":{"$error":"#N/A"}},{"$f":"'Standing Data'!$F$15","v":0},{"$f":"'Standing Data'!$F$9","v":0},"Bench.Return","G115",{"$f":"'Bench.Return '!G121","v":0}]
[{"$f":"'Standing Data'!$D$15","v":{"$error":"#N/A"}},{"$f":"'Standing Data'!$F$15","v":0},{"$f":"'Standing Data'!$F$9","v":0},"Bench.Return","G116",{"$f":"'Bench.Return '!G122","v":0}]
[{"$f":"'Standing Data'!$D$15","v":{"$error":"#N/A"}},{"$f":"'Standing Data'!$F$15","v":0},{"$f":"'Standing Data'!$F$9","v":0},"Bench.Return","G117",{"$f":"'Bench.Return '!G123","v":0}]
[{"$f":"'Standing Data'!$D$15","v":{"$error":"#N/A"}},{"$f":"'Standing Data'!$F$15","v":0},{"$f":"'Standing Data'!$F$9","v":0},"Bench.Return","G118",{"$f":"'Bench.Return '!G124","v":0}]
[{"$f":"'Standing Data'!$D$15","v":{"$error":"#N/A"}},{"$f":"'Standing Data'!$F$15","v":0},{"$f":"'Standing Data'!$F$9","v":0},"Bench.Return","G119",{"$f":"'Bench.Return '!G125","v":0}]
[{"$f":"'Standing Data'!$D$15","v":{"$error":"#N/A"}},{"$f":"'Standing Data'!$F$15","v":0},{"$f":"'Standing Data'!$F$9","v":0},"Bench.Return","I25",{"$f":"'Bench.Return '!I29","v":0}]
[{"$f":"'Standing Data'!$D$15","v":{"$error":"#N/A"}},{"$f":"'Standing Data'!$F$15","v":0},{"$f":"'Standing Data'!$F$9","v":0},"Bench.Return","I35",{"$f":"'Bench.Return '!I39","v":0}]
[{"$f":"'Standing Data'!$D$15","v":{"$error":"#N/A"}},{"$f":"'Standing Data'!$F$15","v":0},{"$f":"'Standing Data'!$F$9","v":0},"Bench.Return","I37",{"$f":"'Bench.Return '!I41","v":0}]
[{"$f":"'Standing Data'!$D$15","v":{"$error":"#N/A"}},{"$f":"'Standing Data'!$F$15","v":0},{"$f":"'Standing Data'!$F$9","v":0},"Bench.Return","I39",{"$f":"'Bench.Return '!I43","v":0}]
[{"$f":"'Standing Data'!$D$15","v":{"$error":"#N/A"}},{"$f":"'Standing Data'!$F$15","v":0},{"$f":"'Standing Data'!$F$9","v":0},"Bench.Return","I46",{"$f":"'Bench.Return '!I51","v":0}]
[{"$f":"'Standing Data'!$D$15","v":{"$error":"#N/A"}},{"$f":"'Standing Data'!$F$15","v":0},{"$f":"'Standing Data'!$F$9","v":0},"Bench.Return","I48",{"$f":"'Bench.Return '!I53","v":0}]
[{"$f":"'Standing Data'!$D$15","v":{"$error":"#N/A"}},{"$f":"'Standing Data'!$F$15","v":0},{"$f":"'Standing Data'!$F$9","v":0},"Bench.Return","I50",{"$f":"'Bench.Return '!I55","v":0}]
[{"$f":"'Standing Data'!$D$15","v":{"$error":"#N/A"}},{"$f":"'Standing Data'!$F$15","v":0},{"$f":"'Standing Data'!$F$9","v":0},"Bench.Return","I112",{"$f":"'Bench.Return '!I118","v":0}]
[{"$f":"'Standing Data'!$D$15","v":{"$error":"#N/A"}},{"$f":"'Standing Data'!$F$15","v":0},{"$f":"'Standing Data'!$F$9","v":0},"Bench.Return","I121",{"$f":"'Bench.Return '!I128","v":0}]
[{"$f":"'Standing Data'!$D$15","v":{"$error":"#N/A"}},{"$f":"'Standing Data'!$F$15","v":0},{"$f":"'Standing Data'!$F$9","v":0},"Bench.Return","I123",{"$f":"'Bench.Return '!I130","v":0}]

{"sheet":"ChaData","index":10,"n_rows":735,"n_cols":6,"rows_kept":735,"cut":false,"hidden":true,"merged":[]}
["Academy ID 1","Academy ID 2","Academy Name 2","Sheet Name","Cell ID","Value"]
[{"$f":"'Standing Data'!$D$15","v":{"$error":"#N/A"}},{"$f":"'Standing Data'!$F$15","v":0},{"$f":"'Standing Data'!$F$9","v":0},"Standing Data","D1",{"$f":"'Standing Data'!D3","v":"Type name here"}]
[{"$f":"'Standing Data'!$D$15","v":{"$error":"#N/A"}},{"$f":"'Standing Data'!$F$15","v":0},{"$f":"'Standing Data'!$F$9","v":0},"Standing Data","F1:J1",{"$f":"'Standing Data'!F3:J3","v":0}]
[{"$f":"'Standing Data'!$D$15","v":{"$error":"#N/A"}},{"$f":"'Standing Data'!$F$15","v":0},{"$f":"'Standing Data'!$F$9","v":0},"Standing Data","D4",{"$f":"'Standing Data'!D6","v":"2014-03-31"}]
[{"$f":"'Standing Data'!$D$15","v":{"$error":"#N/A"}},{"$f":"'Standing Data'!$F$15","v":0},{"$f":"'Standing Data'!$F$9","v":0},"Standing Data","D10",{"$f":"'Standing Data'!D12","v":"Type number here"}]
[{"$f":"'Standing Data'!$D$15","v":{"$error":"#N/A"}},{"$f":"'Standing Data'!$F$15","v":0},{"$f":"'Standing Data'!$F$9","v":0},"Standing Data","D16",{"$f":"'Standing Data'!D18","v":{"$error":"#N/A"}}]
[{"$f":"'Standing Data'!$D$15","v":{"$error":"#N/A"}},{"$f":"'Standing Data'!$F$15","v":0},{"$f":"'Standing Data'!$F$9","v":0},"Standing Data","F16",{"$f":"'Standing Data'!F18","v":"00:00:00"}]
[{"$f":"'Standing Data'!$D$15","v":{"$error":"#N/A"}},{"$f":"'Standing Data'!$F$15","v":0},{"$f":"'Standing Data'!$F$9","v":0},"Standing Data","D19",{"$f":"'Standing Data'!D21","v":"00:00:00"}]
[{"$f":"'Standing Data'!$D$15","v":{"$error":"#N/A"}},{"$f":"'Standing Data'!$F$15","v":0},{"$f":"'Standing Data'!$F$9","v":0},"Standing Data","D22",{"$f":"'Standing Data'!D24","v":0}]
[{"$f":"'Standing Data'!$D$15","v":{"$error":"#N/A"}},{"$f":"'Standing Data'!$F$15","v":0},{"$f":"'Standing Data'!$F$9","v":0},"Standing Data","D25",{"$f":"'Standing Data'!D27","v":"N/A - 31 March"}]
[{"$f":"'Standing Data'!$D$15","v":{"$error":"#N/A"}},{"$f":"'Standing Data'!$F$15","v":0},{"$f":"'Standing Data'!$F$9","v":0},"Standing Data","D31",{"$f":"'Standing Data'!D36","v":{"$error":"#N/A"}}]
[{"$f":"'Standing Data'!$D$15","v":{"$error":"#N/A"}},{"$f":"'Standing Data'!$F$15","v":0},{"$f":"'Standing Data'!$F$9","v":0},"Standing Data","F31:H31",{"$f":"'Standing Data'!F36:H36","v":0}]
[{"$f":"'Standing Data'!$D$15","v":{"$error":"#N/A"}},{"$f":"'Standing Data'!$F$15","v":0},{"$f":"'Standing Data'!$F$9","v":0},"Standing Data","D34",{"$f":"'Standing Data'!D39","v":{"$error":"#N/A"}}]
[{"$f":"'Standing Data'!$D$15","v":{"$error":"#N/A"}},{"$f":"'Standing Data'!$F$15","v":0},{"$f":"'Standing Data'!$F$9","v":0},"Standing Data","F34:H34",{"$f":"'Standing Data'!F39:H39","v":"00:00:00"}]
[{"$f":"'Standing Data'!$D$15","v":{"$error":"#N/A"}},{"$f":"'Standing Data'!$F$15","v":0},{"$f":"'Standing Data'!$F$9","v":0},"Standing Data","D37",{"$f":"'Standing Data'!D42","v":0}]
[{"$f":"'Standing Data'!$D$15","v":{"$error":"#N/A"}},{"$f":"'Standing Data'!$F$15","v":0},{"$f":"'Standing Data'!$F$9","v":0},"Standing Data","F37:H37",{"$f":"'Standing Data'!F42:H42","v":0}]
[{"$f":"'Standing Data'!$D$15","v":{"$error":"#N/A"}},{"$f":"'Standing Data'!$F$15","v":0},{"$f":"'Standing Data'!$F$9","v":0},"Standing Data","D40",{"$f":"'Standing Data'!D45","v":"No"}]
[{"$f":"'Standing Data'!$D$15","v":{"$error":"#N/A"}},{"$f":"'Standing Data'!$F$15","v":0},{"$f":"'Standing Data'!$F$9","v":0},"Standing Data","D44",{"$f":"'Standing Data'!D49","v":"Academy name"}]
[{"$f":"'Standing Data'!$D$15","v":{"$error":"#N/A"}},{"$f":"'Standing Data'!$F$15","v":0},{"$f":"'Standing Data'!$F$9","v":0},"Standing Data","D45",{"$f":"'Standing Data'!D50","v":"Academy name"}]
[{"$f":"'Standing Data'!$D$15","v":{"$error":"#N/A"}},{"$f":"'Standing Data'!$F$15","v":0},{"$f":"'Standing Data'!$F$9","v":0},"Standing Data","D46",{"$f":"'Standing Data'!D51","v":"Academy name"}]
[{"$f":"'Standing Data'!$D$15","v":{"$error":"#N/A"}},{"$f":"'Standing Data'!$F$15","v":0},{"$f":"'Standing Data'!$F$9","v":0},"Standing Data","D47",{"$f":"'Standing Data'!D52","v":"Academy name"}]
[{"$f":"'Standing Data'!$D$15","v":{"$error":"#N/A"}},{"$f":"'Standing Data'!$F$15","v":0},{"$f":"'Standing Data'!$F$9","v":0},"Standing Data","D48",{"$f":"'Standing Data'!D53","v":"Academy name"}]
[{"$f":"'Standing Data'!$D$15","v":{"$error":"#N/A"}},{"$f":"'Standing Data'!$F$15","v":0},{"$f":"'Standing Data'!$F$9","v":0},"Standing Data","D49",{"$f":"'Standing Data'!D54","v":"Academy name"}]
[{"$f":"'Standing Data'!$D$15","v":{"$error":"#N/A"}},{"$f":"'Standing Data'!$F$15","v":0},{"$f":"'Standing Data'!$F$9","v":0},"Standing Data","D50",{"$f":"'Standing Data'!D55","v":"Academy name"}]
[{"$f":"'Standing Data'!$D$15","v":{"$error":"#N/A"}},{"$f":"'Standing Data'!$F$15","v":0},{"$f":"'Standing Data'!$F$9","v":0},"Standing Data","D51",{"$f":"'Standing Data'!D56","v":"Academy name"}]
[{"$f":"'Standing Data'!$D$15","v":{"$error":"#N/A"}},{"$f":"'Standing Data'!$F$15","v":0},{"$f":"'Standing Data'!$F$9","v":0},"Standing Data","D52",{"$f":"'Standing Data'!D57","v":"Academy name"}]
[{"$f":"'Standing Data'!$D$15","v":{"$error":"#N/A"}},{"$f":"'Standing Data'!$F$15","v":0},{"$f":"'Standing Data'!$F$9","v":0},"Standing Data","D53",{"$f":"'Standing Data'!D58","v":"Academy name"}]
[{"$f":"'Standing Data'!$D$15","v":{"$error":"#N/A"}},{"$f":"'Standing Data'!$F$15","v":0},{"$f":"'Standing Data'!$F$9","v":0},"Standing Data","D54",{"$f":"'Standing Data'!D59","v":"Academy name"}]
[{"$f":"'Standing Data'!$D$15","v":{"$error":"#N/A"}},{"$f":"'Standing Data'!$F$15","v":0},{"$f":"'Standing Data'!$F$9","v":0},"Standing Data","D55",{"$f":"'Standing Data'!D60","v":"Academy name"}]
[{"$f":"'Standing Data'!$D$15","v":{"$error":"#N/A"}},{"$f":"'Standing Data'!$F$15","v":0},{"$f":"'Standing Data'!$F$9","v":0},"Standing Data","D56",{"$f":"'Standing Data'!D61","v":"Academy name"}]
[{"$f":"'Standing Data'!$D$15","v":{"$error":"#N/A"}},{"$f":"'Standing Data'!$F$15","v":0},{"$f":"'Standing Data'!$F$9","v":0},"Standing Data","D57",{"$f":"'Standing Data'!D62","v":"Academy name"}]
[{"$f":"'Standing Data'!$D$15","v":{"$error":"#N/A"}},{"$f":"'Standing Data'!$F$15","v":0},{"$f":"'Standing Data'!$F$9","v":0},"Standing Data","D58",{"$f":"'Standing Data'!D63","v":"Academy name"}]
[{"$f":"'Standing Data'!$D$15","v":{"$error":"#N/A"}},{"$f":"'Standing Data'!$F$15","v":0},{"$f":"'Standing Data'!$F$9","v":0},"Standing Data","D59",{"$f":"'Standing Data'!D64","v":"Academy name"}]
[{"$f":"'Standing Data'!$D$15","v":{"$error":"#N/A"}},{"$f":"'Standing Data'!$F$15","v":0},{"$f":"'Standing Data'!$F$9","v":0},"Standing Data","D60",{"$f":"'Standing Data'!D65","v":"Academy name"}]
[{"$f":"'Standing Data'!$D$15","v":{"$error":"#N/A"}},{"$f":"'Standing Data'!$F$15","v":0},{"$f":"'Standing Data'!$F$9","v":0},"Standing Data","D61",{"$f":"'Standing Data'!D66","v":"Academy name"}]
[{"$f":"'Standing Data'!$D$15","v":{"$error":"#N/A"}},{"$f":"'Standing Data'!$F$15","v":0},{"$f":"'Standing Data'!$F$9","v":0},"Standing Data","D62",{"$f":"'Standing Data'!D67","v":"Academy name"}]
[{"$f":"'Standing Data'!$D$15","v":{"$error":"#N/A"}},{"$f":"'Standing Data'!$F$15","v":0},{"$f":"'Standing Data'!$F$9","v":0},"Standing Data","D63",{"$f":"'Standing Data'!D68","v":"Academy name"}]
[{"$f":"'Standing Data'!$D$15","v":{"$error":"#N/A"}},{"$f":"'Standing Data'!$F$15","v":0},{"$f":"'Standing Data'!$F$9","v":0},"Standing Data","D64",{"$f":"'Standing Data'!D69","v":"Academy name"}]
[{"$f":"'Standing Data'!$D$15","v":{"$error":"#N/A"}},{"$f":"'Standing Data'!$F$15","v":0},{"$f":"'Standing Data'!$F$9","v":0},"Standing Data","D65",{"$f":"'Standing Data'!D70","v":"Academy name"}]
[{"$f":"'Standing Data'!$D$15","v":{"$error":"#N/A"}},{"$f":"'Standing Data'!$F$15","v":0},{"$f":"'Standing Data'!$F$9","v":0},"Standing Data","D66",{"$f":"'Standing Data'!D71","v":"Academy name"}]
[{"$f":"'Standing Data'!$D$15","v":{"$error":"#N/A"}},{"$f":"'Standing Data'!$F$15","v":0},{"$f":"'Standing Data'!$F$9","v":0},"Standing Data","D67",{"$f":"'Standing Data'!D72","v":"Academy name"}]
[{"$f":"'Standing Data'!$D$15","v":{"$error":"#N/A"}},{"$f":"'Standing Data'!$F$15","v":0},{"$f":"'Standing Data'!$F$9","v":0},"Standing Data","D68",{"$f":"'Standing Data'!D73","v":"Academy name"}]
[{"$f":"'Standing Data'!$D$15","v":{"$error":"#N/A"}},{"$f":"'Standing Data'!$F$15","v":0},{"$f":"'Standing Data'!$F$9","v":0},"Standing Data","D69",{"$f":"'Standing Data'!D74","v":"Academy name"}]
[{"$f":"'Standing Data'!$D$15","v":{"$error":"#N/A"}},{"$f":"'Standing Data'!$F$15","v":0},{"$f":"'Standing Data'!$F$9","v":0},"Standing Data","D70",{"$f":"'Standing Data'!D75","v":"Academy name"}]
[{"$f":"'Standing Data'!$D$15","v":{"$error":"#N/A"}},{"$f":"'Standing Data'!$F$15","v":0},{"$f":"'Standing Data'!$F$9","v":0},"Standing Data","D71",{"$f":"'Standing Data'!D76","v":"Academy name"}]
[{"$f":"'Standing Data'!$D$15","v":{"$error":"#N/A"}},{"$f":"'Standing Data'!$F$15","v":0},{"$f":"'Standing Data'!$F$9","v":0},"Standing Data","D72",{"$f":"'Standing Data'!D77","v":"Academy name"}]
[{"$f":"'Standing Data'!$D$15","v":{"$error":"#N/A"}},{"$f":"'Standing Data'!$F$15","v":0},{"$f":"'Standing Data'!$F$9","v":0},"Standing Data","D73",{"$f":"'Standing Data'!D78","v":"Academy name"}]
[{"$f":"'Standing Data'!$D$15","v":{"$error":"#N/A"}},{"$f":"'Standing Data'!$F$15","v":0},{"$f":"'Standing Data'!$F$9","v":0},"Standing Data","D74",{"$f":"'Standing Data'!D79","v":"Academy name"}]
[{"$f":"'Standing Data'!$D$15","v":{"$error":"#N/A"}},{"$f":"'Standing Data'!$F$15","v":0},{"$f":"'Standing Data'!$F$9","v":0},"Standing Data","D75",{"$f":"'Standing Data'!D80","v":"Academy name"}]
[{"$f":"'Standing Data'!$D$15","v":{"$error":"#N/A"}},{"$f":"'Standing Data'!$F$15","v":0},{"$f":"'Standing Data'!$F$9","v":0},"Standing Data","D76",{"$f":"'Standing Data'!D81","v":"Academy name"}]
[{"$f":"'Standing Data'!$D$15","v":{"$error":"#N/A"}},{"$f":"'Standing Data'!$F$15","v":0},{"$f":"'Standing Data'!$F$9","v":0},"Standing Data","D77",{"$f":"'Standing Data'!D82","v":"Academy name"}]
[{"$f":"'Standing Data'!$D$15","v":{"$error":"#N/A"}},{"$f":"'Standing Data'!$F$15","v":0},{"$f":"'Standing Data'!$F$9","v":0},"Standing Data","D78",{"$f":"'Standing Data'!D83","v":"Academy name"}]
[{"$f":"'Standing Data'!$D$15","v":{"$error":"#N/A"}},{"$f":"'Standing Data'!$F$15","v":0},{"$f":"'Standing Data'!$F$9","v":0},"Standing Data","D79",{"$f":"'Standing Data'!D84","v":"Academy name"}]
[{"$f":"'Standing Data'!$D$15","v":{"$error":"#N/A"}},{"$f":"'Standing Data'!$F$15","v":0},{"$f":"'Standing Data'!$F$9","v":0},"Standing Data","D80",{"$f":"'Standing Data'!D85","v":"Academy name"}]
[{"$f":"'Standing Data'!$D$15","v":{"$error":"#N/A"}},{"$f":"'Standing Data'!$F$15","v":0},{"$f":"'Standing Data'!$F$9","v":0},"Standing Data","D81",{"$f":"'Standing Data'!D86","v":"Academy name"}]
[{"$f":"'Standing Data'!$D$15","v":{"$error":"#N/A"}},{"$f":"'Standing Data'!$F$15","v":0},{"$f":"'Standing Data'!$F$9","v":0},"Standing Data","D82",{"$f":"'Standing Data'!D87","v":"Academy name"}]
[{"$f":"'Standing Data'!$D$15","v":{"$error":"#N/A"}},{"$f":"'Standing Data'!$F$15","v":0},{"$f":"'Standing Data'!$F$9","v":0},"Standing Data","D83",{"$f":"'Standing Data'!D88","v":"Academy name"}]
[{"$f":"'Standing Data'!$D$15","v":{"$error":"#N/A"}},{"$f":"'Standing Data'!$F$15","v":0},{"$f":"'Standing Data'!$F$9","v":0},"Standing Data","D84",{"$f":"'Standing Data'!D89","v":"Academy name"}]
[{"$f":"'Standing Data'!$D$15","v":{"$error":"#N/A"}},{"$f":"'Standing Data'!$F$15","v":0},{"$f":"'Standing Data'!$F$9","v":0},"Standing Data","D85",{"$f":"'Standing Data'!D90","v":"Academy name"}]
[{"$f":"'Standing Data'!$D$15","v":{"$error":"#N/A"}},{"$f":"'Standing Data'!$F$15","v":0},{"$f":"'Standing Data'!$F$9","v":0},"Standing Data","D86",{"$f":"'Standing Data'!D91","v":"Academy name"}]
[{"$f":"'Standing Data'!$D$15","v":{"$error":"#N/A"}},{"$f":"'Standing Data'!$F$15","v":0},{"$f":"'Standing Data'!$F$9","v":0},"Standing Data","D87",{"$f":"'Standing Data'!D92","v":"Academy name"}]
[{"$f":"'Standing Data'!$D$15","v":{"$error":"#N/A"}},{"$f":"'Standing Data'!$F$15","v":0},{"$f":"'Standing Data'!$F$9","v":0},"Standing Data","D88",{"$f":"'Standing Data'!D93","v":"Academy name"}]
[{"$f":"'Standing Data'!$D$15","v":{"$error":"#N/A"}},{"$f":"'Standing Data'!$F$15","v":0},{"$f":"'Standing Data'!$F$9","v":0},"Standing Data","D89",{"$f":"'Standing Data'!D94","v":"Academy name"}]
[{"$f":"'Standing Data'!$D$15","v":{"$error":"#N/A"}},{"$f":"'Standing Data'!$F$15","v":0},{"$f":"'Standing Data'!$F$9","v":0},"Standing Data","D90",{"$f":"'Standing Data'!D95","v":"Academy name"}]
[{"$f":"'Standing Data'!$D$15","v":{"$error":"#N/A"}},{"$f":"'Standing Data'!$F$15","v":0},{"$f":"'Standing Data'!$F$9","v":0},"Standing Data","D91",{"$f":"'Standing Data'!D96","v":"Academy name"}]
[{"$f":"'Standing Data'!$D$15","v":{"$error":"#N/A"}},{"$f":"'Standing Data'!$F$15","v":0},{"$f":"'Standing Data'!$F$9","v":0},"Standing Data","D92",{"$f":"'Standing Data'!D97","v":"Academy name"}]
[{"$f":"'Standing Data'!$D$15","v":{"$error":"#N/A"}},{"$f":"'Standing Data'!$F$15","v":0},{"$f":"'Standing Data'!$F$9","v":0},"Standing Data","D93",{"$f":"'Standing Data'!D98","v":"Academy name"}]
[{"$f":"'Standing Data'!$D$15","v":{"$error":"#N/A"}},{"$f":"'Standing Data'!$F$15","v":0},{"$f":"'Standing Data'!$F$9","v":0},"Standing Data","D94",{"$f":"'Standing Data'!D99","v":"Academy name"}]
[{"$f":"'Standing Data'!$D$15","v":{"$error":"#N/A"}},{"$f":"'Standing Data'!$F$15","v":0},{"$f":"'Standing Data'!$F$9","v":0},"Standing Data","D95",{"$f":"'Standing Data'!D100","v":"Academy name"}]
[{"$f":"'Standing Data'!$D$15","v":{"$error":"#N/A"}},{"$f":"'Standing Data'!$F$15","v":0},{"$f":"'Standing Data'!$F$9","v":0},"Standing Data","D96",{"$f":"'Standing Data'!D101","v":"Academy name"}]
[{"$f":"'Standing Data'!$D$15","v":{"$error":"#N/A"}},{"$f":"'Standing Data'!$F$15","v":0},{"$f":"'Standing Data'!$F$9","v":0},"Standing Data","D97",{"$f":"'Standing Data'!D102","v":"Academy name"}]
[{"$f":"'Standing Data'!$D$15","v":{"$error":"#N/A"}},{"$f":"'Standing Data'!$F$15","v":0},{"$f":"'Standing Data'!$F$9","v":0},"Standing Data","D98",{"$f":"'Standing Data'!D103","v":"Academy name"}]
[{"$f":"'Standing Data'!$D$15","v":{"$error":"#N/A"}},{"$f":"'Standing Data'!$F$15","v":0},{"$f":"'Standing Data'!$F$9","v":0},"Standing Data","D99",{"$f":"'Standing Data'!D104","v":"Academy name"}]
[{"$f":"'Standing Data'!$D$15","v":{"$error":"#N/A"}},{"$f":"'Standing Data'!$F$15","v":0},{"$f":"'Standing Data'!$F$9","v":0},"Standing Data","D100",{"$f":"'Standing Data'!D105","v":"Academy name"}]
[{"$f":"'Standing Data'!$D$15","v":{"$error":"#N/A"}},{"$f":"'Standing Data'!$F$15","v":0},{"$f":"'Standing Data'!$F$9","v":0},"Standing Data","D101",{"$f":"'Standing Data'!D106","v":"Academy name"}]
[{"$f":"'Standing Data'!$D$15","v":{"$error":"#N/A"}},{"$f":"'Standing Data'!$F$15","v":0},{"$f":"'Standing Data'!$F$9","v":0},"Standing Data","D102",{"$f":"'Standing Data'!D107","v":"Academy name"}]
[{"$f":"'Standing Data'!$D$15","v":{"$error":"#N/A"}},{"$f":"'Standing Data'!$F$15","v":0},{"$f":"'Standing Data'!$F$9","v":0},"Standing Data","D103",{"$f":"'Standing Data'!D108","v":"Academy name"}]
[{"$f":"'Standing Data'!$D$15","v":{"$error":"#N/A"}},{"$f":"'Standing Data'!$F$15","v":0},{"$f":"'Standing Data'!$F$9","v":0},"Standing Data","D104",{"$f":"'Standing Data'!D109","v":"Academy name"}]
[{"$f":"'Standing Data'!$D$15","v":{"$error":"#N/A"}},{"$f":"'Standing Data'!$F$15","v":0},{"$f":"'Standing Data'!$F$9","v":0},"Standing Data","D105",{"$f":"'Standing Data'!D110","v":"Academy name"}]
[{"$f":"'Standing Data'!$D$15","v":{"$error":"#N/A"}},{"$f":"'Standing Data'!$F$15","v":0},{"$f":"'Standing Data'!$F$9","v":0},"Standing Data","D106",{"$f":"'Standing Data'!D111","v":"Academy name"}]
[{"$f":"'Standing Data'!$D$15","v":{"$error":"#N/A"}},{"$f":"'Standing Data'!$F$15","v":0},{"$f":"'Standing Data'!$F$9","v":0},"Standing Data","D107",{"$f":"'Standing Data'!D112","v":"Academy name"}]
[{"$f":"'Standing Data'!$D$15","v":{"$error":"#N/A"}},{"$f":"'Standing Data'!$F$15","v":0},{"$f":"'Standing Data'!$F$9","v":0},"Standing Data","D108",{"$f":"'Standing Data'!D113","v":"Academy name"}]
[{"$f":"'Standing Data'!$D$15","v":{"$error":"#N/A"}},{"$f":"'Standing Data'!$F$15","v":0},{"$f":"'Standing Data'!$F$9","v":0},"Standing Data","D109",{"$f":"'Standing Data'!D114","v":"Academy name"}]
[{"$f":"'Standing Data'!$D$15","v":{"$error":"#N/A"}},{"$f":"'Standing Data'!$F$15","v":0},{"$f":"'Standing Data'!$F$9","v":0},"Standing Data","D110",{"$f":"'Standing Data'!D115","v":"Academy name"}]
[{"$f":"'Standing Data'!$D$15","v":{"$error":"#N/A"}},{"$f":"'Standing Data'!$F$15","v":0},{"$f":"'Standing Data'!$F$9","v":0},"Standing Data","D111",{"$f":"'Standing Data'!D116","v":"Academy name"}]
[{"$f":"'Standing Data'!$D$15","v":{"$error":"#N/A"}},{"$f":"'Standing Data'!$F$15","v":0},{"$f":"'Standing Data'!$F$9","v":0},"Standing Data","D112",{"$f":"'Standing Data'!D117","v":"Academy name"}]
[{"$f":"'Standing Data'!$D$15","v":{"$error":"#N/A"}},{"$f":"'Standing Data'!$F$15","v":0},{"$f":"'Standing Data'!$F$9","v":0},"Standing Data","D113",{"$f":"'Standing Data'!D118","v":"Academy name"}]
[{"$f":"'Standing Data'!$D$15","v":{"$error":"#N/A"}},{"$f":"'Standing Data'!$F$15","v":0},{"$f":"'Standing Data'!$F$9","v":0},"Standing Data","D114",{"$f":"'Standing Data'!D119","v":"Academy name"}]
[{"$f":"'Standing Data'!$D$15","v":{"$error":"#N/A"}},{"$f":"'Standing Data'!$F$15","v":0},{"$f":"'Standing Data'!$F$9","v":0},"Standing Data","D115",{"$f":"'Standing Data'!D120","v":"Academy name"}]
[{"$f":"'Standing Data'!$D$15","v":{"$error":"#N/A"}},{"$f":"'Standing Data'!$F$15","v":0},{"$f":"'Standing Data'!$F$9","v":0},"Standing Data","D116",{"$f":"'Standing Data'!D121","v":"Academy name"}]
[{"$f":"'Standing Data'!$D$15","v":{"$error":"#N/A"}},{"$f":"'Standing Data'!$F$15","v":0},{"$f":"'Standing Data'!$F$9","v":0},"Standing Data","D117",{"$f":"'Standing Data'!D122","v":"Academy name"}]
[{"$f":"'Standing Data'!$D$15","v":{"$error":"#N/A"}},{"$f":"'Standing Data'!$F$15","v":0},{"$f":"'Standing Data'!$F$9","v":0},"Standing Data","D118",{"$f":"'Standing Data'!D123","v":"Academy name"}]
[{"$f":"'Standing Data'!$D$15","v":{"$error":"#N/A"}},{"$f":"'Standing Data'!$F$15","v":0},{"$f":"'Standing Data'!$F$9","v":0},"Standing Data","D119",{"$f":"'Standing Data'!D124","v":"Academy name"}]
[{"$f":"'Standing Data'!$D$15","v":{"$error":"#N/A"}},{"$f":"'Standing Data'!$F$15","v":0},{"$f":"'Standing Data'!$F$9","v":0},"Standing Data","D120",{"$f":"'Standing Data'!D125","v":"Academy name"}]
[{"$f":"'Standing Data'!$D$15","v":{"$error":"#N/A"}},{"$f":"'Standing Data'!$F$15","v":0},{"$f":"'Standing Data'!$F$9","v":0},"Standing Data","D121",{"$f":"'Standing Data'!D126","v":"Academy name"}]
[{"$f":"'Standing Data'!$D$15","v":{"$error":"#N/A"}},{"$f":"'Standing Data'!$F$15","v":0},{"$f":"'Standing Data'!$F$9","v":0},"Standing Data","D122",{"$f":"'Standing Data'!D127","v":"Academy name"}]
[{"$f":"'Standing Data'!$D$15","v":{"$error":"#N/A"}},{"$f":"'Standing Data'!$F$15","v":0},{"$f":"'Standing Data'!$F$9","v":0},"Standing Data","D123",{"$f":"'Standing Data'!D128","v":"Academy name"}]
[{"$f":"'Standing Data'!$D$15","v":{"$error":"#N/A"}},{"$f":"'Standing Data'!$F$15","v":0},{"$f":"'Standing Data'!$F$9","v":0},"Standing Data","D124",{"$f":"'Standing Data'!D129","v":"Academy name"}]
[{"$f":"'Standing Data'!$D$15","v":{"$error":"#N/A"}},{"$f":"'Standing Data'!$F$15","v":0},{"$f":"'Standing Data'!$F$9","v":0},"Standing Data","D125",{"$f":"'Standing Data'!D130","v":"Academy name"}]
[{"$f":"'Standing Data'!$D$15","v":{"$error":"#N/A"}},{"$f":"'Standing Data'!$F$15","v":0},{"$f":"'Standing Data'!$F$9","v":0},"Standing Data","D126",{"$f":"'Standing Data'!D131","v":"Academy name"}]
[{"$f":"'Standing Data'!$D$15","v":{"$error":"#N/A"}},{"$f":"'Standing Data'!$F$15","v":0},{"$f":"'Standing Data'!$F$9","v":0},"Standing Data","D127",{"$f":"'Standing Data'!D132","v":"Academy name"}]
[{"$f":"'Standing Data'!$D$15","v":{"$error":"#N/A"}},{"$f":"'Standing Data'!$F$15","v":0},{"$f":"'Standing Data'!$F$9","v":0},"Standing Data","D128",{"$f":"'Standing Data'!D133","v":"Academy name"}]
[{"$f":"'Standing Data'!$D$15","v":{"$error":"#N/A"}},{"$f":"'Standing Data'!$F$15","v":0},{"$f":"'Standing Data'!$F$9","v":0},"Standing Data","D129",{"$f":"'Standing Data'!D134","v":"Academy name"}]
[{"$f":"'Standing Data'!$D$15","v":{"$error":"#N/A"}},{"$f":"'Standing Data'!$F$15","v":0},{"$f":"'Standing Data'!$F$9","v":0},"Standing Data","D130",{"$f":"'Standing Data'!D135","v":"Academy name"}]
[{"$f":"'Standing Data'!$D$15","v":{"$error":"#N/A"}},{"$f":"'Standing Data'!$F$15","v":0},{"$f":"'Standing Data'!$F$9","v":0},"Standing Data","D131",{"$f":"'Standing Data'!D136","v":"Academy name"}]
[{"$f":"'Standing Data'!$D$15","v":{"$error":"#N/A"}},{"$f":"'Standing Data'!$F$15","v":0},{"$f":"'Standing Data'!$F$9","v":0},"Standing Data","D132",{"$f":"'Standing Data'!D137","v":"Academy name"}]
[{"$f":"'Standing Data'!$D$15","v":{"$error":"#N/A"}},{"$f":"'Standing Data'!$F$15","v":0},{"$f":"'Standing Data'!$F$9","v":0},"Standing Data","D133",{"$f":"'Standing Data'!D138","v":"Academy name"}]
[{"$f":"'Standing Data'!$D$15","v":{"$error":"#N/A"}},{"$f":"'Standing Data'!$F$15","v":0},{"$f":"'Standing Data'!$F$9","v":0},"Standing Data","D134",{"$f":"'Standing Data'!D139","v":"Academy name"}]
[{"$f":"'Standing Data'!$D$15","v":{"$error":"#N/A"}},{"$f":"'Standing Data'!$F$15","v":0},{"$f":"'Standing Data'!$F$9","v":0},"Standing Data","D135",{"$f":"'Standing Data'!D140","v":"Academy name"}]
[{"$f":"'Standing Data'!$D$15","v":{"$error":"#N/A"}},{"$f":"'Standing Data'!$F$15","v":0},{"$f":"'Standing Data'!$F$9","v":0},"Standing Data","D136",{"$f":"'Standing Data'!D141","v":"Academy name"}]
[{"$f":"'Standing Data'!$D$15","v":{"$error":"#N/A"}},{"$f":"'Standing Data'!$F$15","v":0},{"$f":"'Standing Data'!$F$9","v":0},"Standing Data","D137",{"$f":"'Standing Data'!D142","v":"Academy name"}]
[{"$f":"'Standing Data'!$D$15","v":{"$error":"#N/A"}},{"$f":"'Standing Data'!$F$15","v":0},{"$f":"'Standing Data'!$F$9","v":0},"Standing Data","D138",{"$f":"'Standing Data'!D143","v":"Academy name"}]
[{"$f":"'Standing Data'!$D$15","v":{"$error":"#N/A"}},{"$f":"'Standing Data'!$F$15","v":0},{"$f":"'Standing Data'!$F$9","v":0},"Standing Data","D139",{"$f":"'Standing Data'!D144","v":"Academy name"}]
[{"$f":"'Standing Data'!$D$15","v":{"$error":"#N/A"}},{"$f":"'Standing Data'!$F$15","v":0},{"$f":"'Standing Data'!$F$9","v":0},"Standing Data","D140",{"$f":"'Standing Data'!D145","v":"Academy name"}]
[{"$f":"'Standing Data'!$D$15","v":{"$error":"#N/A"}},{"$f":"'Standing Data'!$F$15","v":0},{"$f":"'Standing Data'!$F$9","v":0},"Standing Data","D141",{"$f":"'Standing Data'!D146","v":"Academy name"}]
[{"$f":"'Standing Data'!$D$15","v":{"$error":"#N/A"}},{"$f":"'Standing Data'!$F$15","v":0},{"$f":"'Standing Data'!$F$9","v":0},"Standing Data","D142",{"$f":"'Standing Data'!D147","v":"Academy name"}]
[{"$f":"'Standing Data'!$D$15","v":{"$error":"#N/A"}},{"$f":"'Standing Data'!$F$15","v":0},{"$f":"'Standing Data'!$F$9","v":0},"Standing Data","D143",{"$f":"'Standing Data'!D148","v":"Academy name"}]
[{"$f":"'Standing Data'!$D$15","v":{"$error":"#N/A"}},{"$f":"'Standing Data'!$F$15","v":0},{"$f":"'Standing Data'!$F$9","v":0},"Standing Data","E44",{"$f":"'Standing Data'!E49","v":""}]
[{"$f":"'Standing Data'!$D$15","v":{"$error":"#N/A"}},{"$f":"'Standing Data'!$F$15","v":0},{"$f":"'Standing Data'!$F$9","v":0},"Standing Data","E45",{"$f":"'Standing Data'!E50","v":""}]
[{"$f":"'Standing Data'!$D$15","v":{"$error":"#N/A"}},{"$f":"'Standing Data'!$F$15","v":0},{"$f":"'Standing Data'!$F$9","v":0},"Standing Data","E46",{"$f":"'Standing Data'!E51","v":""}]
[{"$f":"'Standing Data'!$D$15","v":{"$error":"#N/A"}},{"$f":"'Standing Data'!$F$15","v":0},{"$f":"'Standing Data'!$F$9","v":0},"Standing Data","E47",{"$f":"'Standing Data'!E52","v":""}]
[{"$f":"'Standing Data'!$D$15","v":{"$error":"#N/A"}},{"$f":"'Standing Data'!$F$15","v":0},{"$f":"'Standing Data'!$F$9","v":0},"Standing Data","E48",{"$f":"'Standing Data'!E53","v":""}]
[{"$f":"'Standing Data'!$D$15","v":{"$error":"#N/A"}},{"$f":"'Standing Data'!$F$15","v":0},{"$f":"'Standing Data'!$F$9","v":0},"Standing Data","E49",{"$f":"'Standing Data'!E54","v":""}]
[{"$f":"'Standing Data'!$D$15","v":{"$error":"#N/A"}},{"$f":"'Standing Data'!$F$15","v":0},{"$f":"'Standing Data'!$F$9","v":0},"Standing Data","E50",{"$f":"'Standing Data'!E55","v":""}]
[{"$f":"'Standing Data'!$D$15","v":{"$error":"#N/A"}},{"$f":"'Standing Data'!$F$15","v":0},{"$f":"'Standing Data'!$F$9","v":0},"Standing Data","E51",{"$f":"'Standing Data'!E56","v":""}]
[{"$f":"'Standing Data'!$D$15","v":{"$error":"#N/A"}},{"$f":"'Standing Data'!$F$15","v":0},{"$f":"'Standing Data'!$F$9","v":0},"Standing Data","E52",{"$f":"'Standing Data'!E57","v":""}]
[{"$f":"'Standing Data'!$D$15","v":{"$error":"#N/A"}},{"$f":"'Standing Data'!$F$15","v":0},{"$f":"'Standing Data'!$F$9","v":0},"Standing Data","E53",{"$f":"'Standing Data'!E58","v":""}]
[{"$f":"'Standing Data'!$D$15","v":{"$error":"#N/A"}},{"$f":"'Standing Data'!$F$15","v":0},{"$f":"'Standing Data'!$F$9","v":0},"Standing Data","E54",{"$f":"'Standing Data'!E59","v":""}]
[{"$f":"'Standing Data'!$D$15","v":{"$error":"#N/A"}},{"$f":"'Standing Data'!$F$15","v":0},{"$f":"'Standing Data'!$F$9","v":0},"Standing Data","E55",{"$f":"'Standing Data'!E60","v":""}]
[{"$f":"'Standing Data'!$D$15","v":{"$error":"#N/A"}},{"$f":"'Standing Data'!$F$15","v":0},{"$f":"'Standing Data'!$F$9","v":0},"Standing Data","E56",{"$f":"'Standing Data'!E61","v":""}]
[{"$f":"'Standing Data'!$D$15","v":{"$error":"#N/A"}},{"$f":"'Standing Data'!$F$15","v":0},{"$f":"'Standing Data'!$F$9","v":0},"Standing Data","E57",{"$f":"'Standing Data'!E62","v":""}]
[{"$f":"'Standing Data'!$D$15","v":{"$error":"#N/A"}},{"$f":"'Standing Data'!$F$15","v":0},{"$f":"'Standing Data'!$F$9","v":0},"Standing Data","E58",{"$f":"'Standing Data'!E63","v":""}]
[{"$f":"'Standing Data'!$D$15","v":{"$error":"#N/A"}},{"$f":"'Standing Data'!$F$15","v":0},{"$f":"'Standing Data'!$F$9","v":0},"Standing Data","E59",{"$f":"'Standing Data'!E64","v":""}]
[{"$f":"'Standing Data'!$D$15","v":{"$error":"#N/A"}},{"$f":"'Standing Data'!$F$15","v":0},{"$f":"'Standing Data'!$F$9","v":0},"Standing Data","E60",{"$f":"'Standing Data'!E65","v":""}]
[{"$f":"'Standing Data'!$D$15","v":{"$error":"#N/A"}},{"$f":"'Standing Data'!$F$15","v":0},{"$f":"'Standing Data'!$F$9","v":0},"Standing Data","E61",{"$f":"'Standing Data'!E66","v":""}]
[{"$f":"'Standing Data'!$D$15","v":{"$error":"#N/A"}},{"$f":"'Standing Data'!$F$15","v":0},{"$f":"'Standing Data'!$F$9","v":0},"Standing Data","E62",{"$f":"'Standing Data'!E67","v":""}]
[{"$f":"'Standing Data'!$D$15","v":{"$error":"#N/A"}},{"$f":"'Standing Data'!$F$15","v":0},{"$f":"'Standing Data'!$F$9","v":0},"Standing Data","E63",{"$f":"'Standing Data'!E68","v":""}]
[{"$f":"'Standing Data'!$D$15","v":{"$error":"#N/A"}},{"$f":"'Standing Data'!$F$15","v":0},{"$f":"'Standing Data'!$F$9","v":0},"Standing Data","E64",{"$f":"'Standing Data'!E69","v":""}]
[{"$f":"'Standing Data'!$D$15","v":{"$error":"#N/A"}},{"$f":"'Standing Data'!$F$15","v":0},{"$f":"'Standing Data'!$F$9","v":0},"Standing Data","E65",{"$f":"'Standing Data'!E70","v":""}]
[{"$f":"'Standing Data'!$D$15","v":{"$error":"#N/A"}},{"$f":"'Standing Data'!$F$15","v":0},{"$f":"'Standing Data'!$F$9","v":0},"Standing Data","E66",{"$f":"'Standing Data'!E71","v":""}]
[{"$f":"'Standing Data'!$D$15","v":{"$error":"#N/A"}},{"$f":"'Standing Data'!$F$15","v":0},{"$f":"'Standing Data'!$F$9","v":0},"Standing Data","E67",{"$f":"'Standing Data'!E72","v":""}]
[{"$f":"'Standing Data'!$D$15","v":{"$error":"#N/A"}},{"$f":"'Standing Data'!$F$15","v":0},{"$f":"'Standing Data'!$F$9","v":0},"Standing Data","E68",{"$f":"'Standing Data'!E73","v":""}]
[{"$f":"'Standing Data'!$D$15","v":{"$error":"#N/A"}},{"$f":"'Standing Data'!$F$15","v":0},{"$f":"'Standing Data'!$F$9","v":0},"Standing Data","E69",{"$f":"'Standing Data'!E74","v":""}]
[{"$f":"'Standing Data'!$D$15","v":{"$error":"#N/A"}},{"$f":"'Standing Data'!$F$15","v":0},{"$f":"'Standing Data'!$F$9","v":0},"Standing Data","E70",{"$f":"'Standing Data'!E75","v":""}]
[{"$f":"'Standing Data'!$D$15","v":{"$error":"#N/A"}},{"$f":"'Standing Data'!$F$15","v":0},{"$f":"'Standing Data'!$F$9","v":0},"Standing Data","E71",{"$f":"'Standing Data'!E76","v":""}]
[{"$f":"'Standing Data'!$D$15","v":{"$error":"#N/A"}},{"$f":"'Standing Data'!$F$15","v":0},{"$f":"'Standing Data'!$F$9","v":0},"Standing Data","E72",{"$f":"'Standing Data'!E77","v":""}]
[{"$f":"'Standing Data'!$D$15","v":{"$error":"#N/A"}},{"$f":"'Standing Data'!$F$15","v":0},{"$f":"'Standing Data'!$F$9","v":0},"Standing Data","E73",{"$f":"'Standing Data'!E78","v":""}]
[{"$f":"'Standing Data'!$D$15","v":{"$error":"#N/A"}},{"$f":"'Standing Data'!$F$15","v":0},{"$f":"'Standing Data'!$F$9","v":0},"Standing Data","E74",{"$f":"'Standing Data'!E79","v":""}]
[{"$f":"'Standing Data'!$D$15","v":{"$error":"#N/A"}},{"$f":"'Standing Data'!$F$15","v":0},{"$f":"'Standing Data'!$F$9","v":0},"Standing Data","E75",{"$f":"'Standing Data'!E80","v":""}]
[{"$f":"'Standing Data'!$D$15","v":{"$error":"#N/A"}},{"$f":"'Standing Data'!$F$15","v":0},{"$f":"'Standing Data'!$F$9","v":0},"Standing Data","E76",{"$f":"'Standing Data'!E81","v":""}]
[{"$f":"'Standing Data'!$D$15","v":{"$error":"#N/A"}},{"$f":"'Standing Data'!$F$15","v":0},{"$f":"'Standing Data'!$F$9","v":0},"Standing Data","E77",{"$f":"'Standing Data'!E82","v":""}]
[{"$f":"'Standing Data'!$D$15","v":{"$error":"#N/A"}},{"$f":"'Standing Data'!$F$15","v":0},{"$f":"'Standing Data'!$F$9","v":0},"Standing Data","E78",{"$f":"'Standing Data'!E83","v":""}]
[{"$f":"'Standing Data'!$D$15","v":{"$error":"#N/A"}},{"$f":"'Standing Data'!$F$15","v":0},{"$f":"'Standing Data'!$F$9","v":0},"Standing Data","E79",{"$f":"'Standing Data'!E84","v":""}]
[{"$f":"'Standing Data'!$D$15","v":{"$error":"#N/A"}},{"$f":"'Standing Data'!$F$15","v":0},{"$f":"'Standing Data'!$F$9","v":0},"Standing Data","E80",{"$f":"'Standing Data'!E85","v":""}]
[{"$f":"'Standing Data'!$D$15","v":{"$error":"#N/A"}},{"$f":"'Standing Data'!$F$15","v":0},{"$f":"'Standing Data'!$F$9","v":0},"Standing Data","E81",{"$f":"'Standing Data'!E86","v":""}]
[{"$f":"'Standing Data'!$D$15","v":{"$error":"#N/A"}},{"$f":"'Standing Data'!$F$15","v":0},{"$f":"'Standing Data'!$F$9","v":0},"Standing Data","E82",{"$f":"'Standing Data'!E87","v":""}]
[{"$f":"'Standing Data'!$D$15","v":{"$error":"#N/A"}},{"$f":"'Standing Data'!$F$15","v":0},{"$f":"'Standing Data'!$F$9","v":0},"Standing Data","E83",{"$f":"'Standing Data'!E88","v":""}]
[{"$f":"'Standing Data'!$D$15","v":{"$error":"#N/A"}},{"$f":"'Standing Data'!$F$15","v":0},{"$f":"'Standing Data'!$F$9","v":0},"Standing Data","E84",{"$f":"'Standing Data'!E89","v":""}]
[{"$f":"'Standing Data'!$D$15","v":{"$error":"#N/A"}},{"$f":"'Standing Data'!$F$15","v":0},{"$f":"'Standing Data'!$F$9","v":0},"Standing Data","E85",{"$f":"'Standing Data'!E90","v":""}]
[{"$f":"'Standing Data'!$D$15","v":{"$error":"#N/A"}},{"$f":"'Standing Data'!$F$15","v":0},{"$f":"'Standing Data'!$F$9","v":0},"Standing Data","E86",{"$f":"'Standing Data'!E91","v":""}]
[{"$f":"'Standing Data'!$D$15","v":{"$error":"#N/A"}},{"$f":"'Standing Data'!$F$15","v":0},{"$f":"'Standing Data'!$F$9","v":0},"Standing Data","E87",{"$f":"'Standing Data'!E92","v":""}]
[{"$f":"'Standing Data'!$D$15","v":{"$error":"#N/A"}},{"$f":"'Standing Data'!$F$15","v":0},{"$f":"'Standing Data'!$F$9","v":0},"Standing Data","E88",{"$f":"'Standing Data'!E93","v":""}]
[{"$f":"'Standing Data'!$D$15","v":{"$error":"#N/A"}},{"$f":"'Standing Data'!$F$15","v":0},{"$f":"'Standing Data'!$F$9","v":0},"Standing Data","E89",{"$f":"'Standing Data'!E94","v":""}]
[{"$f":"'Standing Data'!$D$15","v":{"$error":"#N/A"}},{"$f":"'Standing Data'!$F$15","v":0},{"$f":"'Standing Data'!$F$9","v":0},"Standing Data","E90",{"$f":"'Standing Data'!E95","v":""}]
[{"$f":"'Standing Data'!$D$15","v":{"$error":"#N/A"}},{"$f":"'Standing Data'!$F$15","v":0},{"$f":"'Standing Data'!$F$9","v":0},"Standing Data","E91",{"$f":"'Standing Data'!E96","v":""}]
[{"$f":"'Standing Data'!$D$15","v":{"$error":"#N/A"}},{"$f":"'Standing Data'!$F$15","v":0},{"$f":"'Standing Data'!$F$9","v":0},"Standing Data","E92",{"$f":"'Standing Data'!E97","v":""}]
[{"$f":"'Standing Data'!$D$15","v":{"$error":"#N/A"}},{"$f":"'Standing Data'!$F$15","v":0},{"$f":"'Standing Data'!$F$9","v":0},"Standing Data","E93",{"$f":"'Standing Data'!E98","v":""}]
[{"$f":"'Standing Data'!$D$15","v":{"$error":"#N/A"}},{"$f":"'Standing Data'!$F$15","v":0},{"$f":"'Standing Data'!$F$9","v":0},"Standing Data","E94",{"$f":"'Standing Data'!E99","v":""}]
[{"$f":"'Standing Data'!$D$15","v":{"$error":"#N/A"}},{"$f":"'Standing Data'!$F$15","v":0},{"$f":"'Standing Data'!$F$9","v":0},"Standing Data","E95",{"$f":"'Standing Data'!E100","v":""}]
[{"$f":"'Standing Data'!$D$15","v":{"$error":"#N/A"}},{"$f":"'Standing Data'!$F$15","v":0},{"$f":"'Standing Data'!$F$9","v":0},"Standing Data","E96",{"$f":"'Standing Data'!E101","v":""}]
[{"$f":"'Standing Data'!$D$15","v":{"$error":"#N/A"}},{"$f":"'Standing Data'!$F$15","v":0},{"$f":"'Standing Data'!$F$9","v":0},"Standing Data","E97",{"$f":"'Standing Data'!E102","v":""}]
[{"$f":"'Standing Data'!$D$15","v":{"$error":"#N/A"}},{"$f":"'Standing Data'!$F$15","v":0},{"$f":"'Standing Data'!$F$9","v":0},"Standing Data","E98",{"$f":"'Standing Data'!E103","v":""}]
[{"$f":"'Standing Data'!$D$15","v":{"$error":"#N/A"}},{"$f":"'Standing Data'!$F$15","v":0},{"$f":"'Standing Data'!$F$9","v":0},"Standing Data","E99",{"$f":"'Standing Data'!E104","v":""}]
[{"$f":"'Standing Data'!$D$15","v":{"$error":"#N/A"}},{"$f":"'Standing Data'!$F$15","v":0},{"$f":"'Standing Data'!$F$9","v":0},"Standing Data","E100",{"$f":"'Standing Data'!E105","v":""}]
[{"$f":"'Standing Data'!$D$15","v":{"$error":"#N/A"}},{"$f":"'Standing Data'!$F$15","v":0},{"$f":"'Standing Data'!$F$9","v":0},"Standing Data","E101",{"$f":"'Standing Data'!E106","v":""}]
[{"$f":"'Standing Data'!$D$15","v":{"$error":"#N/A"}},{"$f":"'Standing Data'!$F$15","v":0},{"$f":"'Standing Data'!$F$9","v":0},"Standing Data","E102",{"$f":"'Standing Data'!E107","v":""}]
[{"$f":"'Standing Data'!$D$15","v":{"$error":"#N/A"}},{"$f":"'Standing Data'!$F$15","v":0},{"$f":"'Standing Data'!$F$9","v":0},"Standing Data","E103",{"$f":"'Standing Data'!E108","v":""}]
[{"$f":"'Standing Data'!$D$15","v":{"$error":"#N/A"}},{"$f":"'Standing Data'!$F$15","v":0},{"$f":"'Standing Data'!$F$9","v":0},"Standing Data","E104",{"$f":"'Standing Data'!E109","v":""}]
[{"$f":"'Standing Data'!$D$15","v":{"$error":"#N/A"}},{"$f":"'Standing Data'!$F$15","v":0},{"$f":"'Standing Data'!$F$9","v":0},"Standing Data","E105",{"$f":"'Standing Data'!E110","v":""}]
[{"$f":"'Standing Data'!$D$15","v":{"$error":"#N/A"}},{"$f":"'Standing Data'!$F$15","v":0},{"$f":"'Standing Data'!$F$9","v":0},"Standing Data","E106",{"$f":"'Standing Data'!E111","v":""}]
[{"$f":"'Standing Data'!$D$15","v":{"$error":"#N/A"}},{"$f":"'Standing Data'!$F$15","v":0},{"$f":"'Standing Data'!$F$9","v":0},"Standing Data","E107",{"$f":"'Standing Data'!E112","v":""}]
[{"$f":"'Standing Data'!$D$15","v":{"$error":"#N/A"}},{"$f":"'Standing Data'!$F$15","v":0},{"$f":"'Standing Data'!$F$9","v":0},"Standing Data","E108",{"$f":"'Standing Data'!E113","v":""}]
[{"$f":"'Standing Data'!$D$15","v":{"$error":"#N/A"}},{"$f":"'Standing Data'!$F$15","v":0},{"$f":"'Standing Data'!$F$9","v":0},"Standing Data","E109",{"$f":"'Standing Data'!E114","v":""}]
[{"$f":"'Standing Data'!$D$15","v":{"$error":"#N/A"}},{"$f":"'Standing Data'!$F$15","v":0},{"$f":"'Standing Data'!$F$9","v":0},"Standing Data","E110",{"$f":"'Standing Data'!E115","v":""}]
[{"$f":"'Standing Data'!$D$15","v":{"$error":"#N/A"}},{"$f":"'Standing Data'!$F$15","v":0},{"$f":"'Standing Data'!$F$9","v":0},"Standing Data","E111",{"$f":"'Standing Data'!E116","v":""}]
[{"$f":"'Standing Data'!$D$15","v":{"$error":"#N/A"}},{"$f":"'Standing Data'!$F$15","v":0},{"$f":"'Standing Data'!$F$9","v":0},"Standing Data","E112",{"$f":"'Standing Data'!E117","v":""}]
[{"$f":"'Standing Data'!$D$15","v":{"$error":"#N/A"}},{"$f":"'Standing Data'!$F$15","v":0},{"$f":"'Standing Data'!$F$9","v":0},"Standing Data","E113",{"$f":"'Standing Data'!E118","v":""}]
[{"$f":"'Standing Data'!$D$15","v":{"$error":"#N/A"}},{"$f":"'Standing Data'!$F$15","v":0},{"$f":"'Standing Data'!$F$9","v":0},"Standing Data","E114",{"$f":"'Standing Data'!E119","v":""}]
[{"$f":"'Standing Data'!$D$15","v":{"$error":"#N/A"}},{"$f":"'Standing Data'!$F$15","v":0},{"$f":"'Standing Data'!$F$9","v":0},"Standing Data","E115",{"$f":"'Standing Data'!E120","v":""}]
[{"$f":"'Standing Data'!$D$15","v":{"$error":"#N/A"}},{"$f":"'Standing Data'!$F$15","v":0},{"$f":"'Standing Data'!$F$9","v":0},"Standing Data","E116",{"$f":"'Standing Data'!E121","v":""}]
[{"$f":"'Standing Data'!$D$15","v":{"$error":"#N/A"}},{"$f":"'Standing Data'!$F$15","v":0},{"$f":"'Standing Data'!$F$9","v":0},"Standing Data","E117",{"$f":"'Standing Data'!E122","v":""}]
[{"$f":"'Standing Data'!$D$15","v":{"$error":"#N/A"}},{"$f":"'Standing Data'!$F$15","v":0},{"$f":"'Standing Data'!$F$9","v":0},"Standing Data","E118",{"$f":"'Standing Data'!E123","v":""}]
[{"$f":"'Standing Data'!$D$15","v":{"$error":"#N/A"}},{"$f":"'Standing Data'!$F$15","v":0},{"$f":"'Standing Data'!$F$9","v":0},"Standing Data","E119",{"$f":"'Standing Data'!E124","v":""}]
[{"$f":"'Standing Data'!$D$15","v":{"$error":"#N/A"}},{"$f":"'Standing Data'!$F$15","v":0},{"$f":"'Standing Data'!$F$9","v":0},"Standing Data","E120",{"$f":"'Standing Data'!E125","v":""}]
[{"$f":"'Standing Data'!$D$15","v":{"$error":"#N/A"}},{"$f":"'Standing Data'!$F$15","v":0},{"$f":"'Standing Data'!$F$9","v":0},"Standing Data","E121",{"$f":"'Standing Data'!E126","v":""}]
[{"$f":"'Standing Data'!$D$15","v":{"$error":"#N/A"}},{"$f":"'Standing Data'!$F$15","v":0},{"$f":"'Standing Data'!$F$9","v":0},"Standing Data","E122",{"$f":"'Standing Data'!E127","v":""}]
[{"$f":"'Standing Data'!$D$15","v":{"$error":"#N/A"}},{"$f":"'Standing Data'!$F$15","v":0},{"$f":"'Standing Data'!$F$9","v":0},"Standing Data","E123",{"$f":"'Standing Data'!E128","v":""}]
[{"$f":"'Standing Data'!$D$15","v":{"$error":"#N/A"}},{"$f":"'Standing Data'!$F$15","v":0},{"$f":"'Standing Data'!$F$9","v":0},"Standing Data","E124",{"$f":"'Standing Data'!E129","v":""}]
[{"$f":"'Standing Data'!$D$15","v":{"$error":"#N/A"}},{"$f":"'Standing Data'!$F$15","v":0},{"$f":"'Standing Data'!$F$9","v":0},"Standing Data","E125",{"$f":"'Standing Data'!E130","v":""}]
[{"$f":"'Standing Data'!$D$15","v":{"$error":"#N/A"}},{"$f":"'Standing Data'!$F$15","v":0},{"$f":"'Standing Data'!$F$9","v":0},"Standing Data","E126",{"$f":"'Standing Data'!E131","v":""}]
[{"$f":"'Standing Data'!$D$15","v":{"$error":"#N/A"}},{"$f":"'Standing Data'!$F$15","v":0},{"$f":"'Standing Data'!$F$9","v":0},"Standing Data","E127",{"$f":"'Standing Data'!E132","v":""}]
[{"$f":"'Standing Data'!$D$15","v":{"$error":"#N/A"}},{"$f":"'Standing Data'!$F$15","v":0},{"$f":"'Standing Data'!$F$9","v":0},"Standing Data","E128",{"$f":"'Standing Data'!E133","v":""}]
[{"$f":"'Standing Data'!$D$15","v":{"$error":"#N/A"}},{"$f":"'Standing Data'!$F$15","v":0},{"$f":"'Standing Data'!$F$9","v":0},"Standing Data","E129",{"$f":"'Standing Data'!E134","v":""}]
[{"$f":"'Standing Data'!$D$15","v":{"$error":"#N/A"}},{"$f":"'Standing Data'!$F$15","v":0},{"$f":"'Standing Data'!$F$9","v":0},"Standing Data","E130",{"$f":"'Standing Data'!E135","v":""}]
[{"$f":"'Standing Data'!$D$15","v":{"$error":"#N/A"}},{"$f":"'Standing Data'!$F$15","v":0},{"$f":"'Standing Data'!$F$9","v":0},"Standing Data","E131",{"$f":"'Standing Data'!E136","v":""}]
[{"$f":"'Standing Data'!$D$15","v":{"$error":"#N/A"}},{"$f":"'Standing Data'!$F$15","v":0},{"$f":"'Standing Data'!$F$9","v":0},"Standing Data","E132",{"$f":"'Standing Data'!E137","v":""}]
[{"$f":"'Standing Data'!$D$15","v":{"$error":"#N/A"}},{"$f":"'Standing Data'!$F$15","v":0},{"$f":"'Standing Data'!$F$9","v":0},"Standing Data","E133",{"$f":"'Standing Data'!E138","v":""}]
[{"$f":"'Standing Data'!$D$15","v":{"$error":"#N/A"}},{"$f":"'Standing Data'!$F$15","v":0},{"$f":"'Standing Data'!$F$9","v":0},"Standing Data","E134",{"$f":"'Standing Data'!E139","v":""}]
[{"$f":"'Standing Data'!$D$15","v":{"$error":"#N/A"}},{"$f":"'Standing Data'!$F$15","v":0},{"$f":"'Standing Data'!$F$9","v":0},"Standing Data","E135",{"$f":"'Standing Data'!E140","v":""}]
[{"$f":"'Standing Data'!$D$15","v":{"$error":"#N/A"}},{"$f":"'Standing Data'!$F$15","v":0},{"$f":"'Standing Data'!$F$9","v":0},"Standing Data","E136",{"$f":"'Standing Data'!E141","v":""}]
[{"$f":"'Standing Data'!$D$15","v":{"$error":"#N/A"}},{"$f":"'Standing Data'!$F$15","v":0},{"$f":"'Standing Data'!$F$9","v":0},"Standing Data","E137",{"$f":"'Standing Data'!E142","v":""}]
[{"$f":"'Standing Data'!$D$15","v":{"$error":"#N/A"}},{"$f":"'Standing Data'!$F$15","v":0},{"$f":"'Standing Data'!$F$9","v":0},"Standing Data","E138",{"$f":"'Standing Data'!E143","v":""}]
[{"$f":"'Standing Data'!$D$15","v":{"$error":"#N/A"}},{"$f":"'Standing Data'!$F$15","v":0},{"$f":"'Standing Data'!$F$9","v":0},"Standing Data","E139",{"$f":"'Standing Data'!E144","v":""}]
[{"$f":"'Standing Data'!$D$15","v":{"$error":"#N/A"}},{"$f":"'Standing Data'!$F$15","v":0},{"$f":"'Standing Data'!$F$9","v":0},"Standing Data","E140",{"$f":"'Standing Data'!E145","v":""}]
[{"$f":"'Standing Data'!$D$15","v":{"$error":"#N/A"}},{"$f":"'Standing Data'!$F$15","v":0},{"$f":"'Standing Data'!$F$9","v":0},"Standing Data","E141",{"$f":"'Standing Data'!E146","v":""}]
[{"$f":"'Standing Data'!$D$15","v":{"$error":"#N/A"}},{"$f":"'Standing Data'!$F$15","v":0},{"$f":"'Standing Data'!$F$9","v":0},"Standing Data","E142",{"$f":"'Standing Data'!E147","v":""}]
[{"$f":"'Standing Data'!$D$15","v":{"$error":"#N/A"}},{"$f":"'Standing Data'!$F$15","v":0},{"$f":"'Standing Data'!$F$9","v":0},"Standing Data","E143",{"$f":"'Standing Data'!E148","v":""}]
[{"$f":"'Standing Data'!$D$15","v":{"$error":"#N/A"}},{"$f":"'Standing Data'!$F$15","v":0},{"$f":"'Standing Data'!$F$9","v":0},"Standing Data","F44",{"$f":"'Standing Data'!F49","v":0}]
[{"$f":"'Standing Data'!$D$15","v":{"$error":"#N/A"}},{"$f":"'Standing Data'!$F$15","v":0},{"$f":"'Standing Data'!$F$9","v":0},"Standing Data","F45",{"$f":"'Standing Data'!F50","v":0}]
[{"$f":"'Standing Data'!$D$15","v":{"$error":"#N/A"}},{"$f":"'Standing Data'!$F$15","v":0},{"$f":"'Standing Data'!$F$9","v":0},"Standing Data","F46",{"$f":"'Standing Data'!F51","v":0}]
[{"$f":"'Standing Data'!$D$15","v":{"$error":"#N/A"}},{"$f":"'Standing Data'!$F$15","v":0},{"$f":"'Standing Data'!$F$9","v":0},"Standing Data","F47",{"$f":"'Standing Data'!F52","v":0}]
[{"$f":"'Standing Data'!$D$15","v":{"$error":"#N/A"}},{"$f":"'Standing Data'!$F$15","v":0},{"$f":"'Standing Data'!$F$9","v":0},"Standing Data","F48",{"$f":"'Standing Data'!F53","v":0}]
[{"$f":"'Standing Data'!$D$15","v":{"$error":"#N/A"}},{"$f":"'Standing Data'!$F$15","v":0},{"$f":"'Standing Data'!$F$9","v":0},"Standing Data","F49",{"$f":"'Standing Data'!F54","v":0}]
[{"$f":"'Standing Data'!$D$15","v":{"$error":"#N/A"}},{"$f":"'Standing Data'!$F$15","v":0},{"$f":"'Standing Data'!$F$9","v":0},"Standing Data","F50",{"$f":"'Standing Data'!F55","v":0}]
[{"$f":"'Standing Data'!$D$15","v":{"$error":"#N/A"}},{"$f":"'Standing Data'!$F$15","v":0},{"$f":"'Standing Data'!$F$9","v":0},"Standing Data","F51",{"$f":"'Standing Data'!F56","v":0}]
[{"$f":"'Standing Data'!$D$15","v":{"$error":"#N/A"}},{"$f":"'Standing Data'!$F$15","v":0},{"$f":"'Standing Data'!$F$9","v":0},"Standing Data","F52",{"$f":"'Standing Data'!F57","v":0}]
[{"$f":"'Standing Data'!$D$15","v":{"$error":"#N/A"}},{"$f":"'Standing Data'!$F$15","v":0},{"$f":"'Standing Data'!$F$9","v":0},"Standing Data","F53",{"$f":"'Standing Data'!F58","v":0}]
[{"$f":"'Standing Data'!$D$15","v":{"$error":"#N/A"}},{"$f":"'Standing Data'!$F$15","v":0},{"$f":"'Standing Data'!$F$9","v":0},"Standing Data","F54",{"$f":"'Standing Data'!F59","v":0}]
[{"$f":"'Standing Data'!$D$15","v":{"$error":"#N/A"}},{"$f":"'Standing Data'!$F$15","v":0},{"$f":"'Standing Data'!$F$9","v":0},"Standing Data","F55",{"$f":"'Standing Data'!F60","v":0}]
[{"$f":"'Standing Data'!$D$15","v":{"$error":"#N/A"}},{"$f":"'Standing Data'!$F$15","v":0},{"$f":"'Standing Data'!$F$9","v":0},"Standing Data","F56",{"$f":"'Standing Data'!F61","v":0}]
[{"$f":"'Standing Data'!$D$15","v":{"$error":"#N/A"}},{"$f":"'Standing Data'!$F$15","v":0},{"$f":"'Standing Data'!$F$9","v":0},"Standing Data","F57",{"$f":"'Standing Data'!F62","v":0}]
[{"$f":"'Standing Data'!$D$15","v":{"$error":"#N/A"}},{"$f":"'Standing Data'!$F$15","v":0},{"$f":"'Standing Data'!$F$9","v":0},"Standing Data","F58",{"$f":"'Standing Data'!F63","v":0}]
[{"$f":"'Standing Data'!$D$15","v":{"$error":"#N/A"}},{"$f":"'Standing Data'!$F$15","v":0},{"$f":"'Standing Data'!$F$9","v":0},"Standing Data","F59",{"$f":"'Standing Data'!F64","v":0}]
[{"$f":"'Standing Data'!$D$15","v":{"$error":"#N/A"}},{"$f":"'Standing Data'!$F$15","v":0},{"$f":"'Standing Data'!$F$9","v":0},"Standing Data","F60",{"$f":"'Standing Data'!F65","v":0}]
[{"$f":"'Standing Data'!$D$15","v":{"$error":"#N/A"}},{"$f":"'Standing Data'!$F$15","v":0},{"$f":"'Standing Data'!$F$9","v":0},"Standing Data","F61",{"$f":"'Standing Data'!F66","v":0}]
[{"$f":"'Standing Data'!$D$15","v":{"$error":"#N/A"}},{"$f":"'Standing Data'!$F$15","v":0},{"$f":"'Standing Data'!$F$9","v":0},"Standing Data","F62",{"$f":"'Standing Data'!F67","v":0}]
[{"$f":"'Standing Data'!$D$15","v":{"$error":"#N/A"}},{"$f":"'Standing Data'!$F$15","v":0},{"$f":"'Standing Data'!$F$9","v":0},"Standing Data","F63",{"$f":"'Standing Data'!F68","v":0}]
[{"$f":"'Standing Data'!$D$15","v":{"$error":"#N/A"}},{"$f":"'Standing Data'!$F$15","v":0},{"$f":"'Standing Data'!$F$9","v":0},"Standing Data","F64",{"$f":"'Standing Data'!F69","v":0}]
[{"$f":"'Standing Data'!$D$15","v":{"$error":"#N/A"}},{"$f":"'Standing Data'!$F$15","v":0},{"$f":"'Standing Data'!$F$9","v":0},"Standing Data","F65",{"$f":"'Standing Data'!F70","v":0}]
[{"$f":"'Standing Data'!$D$15","v":{"$error":"#N/A"}},{"$f":"'Standing Data'!$F$15","v":0},{"$f":"'Standing Data'!$F$9","v":0},"Standing Data","F66",{"$f":"'Standing Data'!F71","v":0}]
[{"$f":"'Standing Data'!$D$15","v":{"$error":"#N/A"}},{"$f":"'Standing Data'!$F$15","v":0},{"$f":"'Standing Data'!$F$9","v":0},"Standing Data","F67",{"$f":"'Standing Data'!F72","v":0}]
[{"$f":"'Standing Data'!$D$15","v":{"$error":"#N/A"}},{"$f":"'Standing Data'!$F$15","v":0},{"$f":"'Standing Data'!$F$9","v":0},"Standing Data","F68",{"$f":"'Standing Data'!F73","v":0}]
[{"$f":"'Standing Data'!$D$15","v":{"$error":"#N/A"}},{"$f":"'Standing Data'!$F$15","v":0},{"$f":"'Standing Data'!$F$9","v":0},"Standing Data","F69",{"$f":"'Standing Data'!F74","v":0}]
[{"$f":"'Standing Data'!$D$15","v":{"$error":"#N/A"}},{"$f":"'Standing Data'!$F$15","v":0},{"$f":"'Standing Data'!$F$9","v":0},"Standing Data","F70",{"$f":"'Standing Data'!F75","v":0}]
[{"$f":"'Standing Data'!$D$15","v":{"$error":"#N/A"}},{"$f":"'Standing Data'!$F$15","v":0},{"$f":"'Standing Data'!$F$9","v":0},"Standing Data","F71",{"$f":"'Standing Data'!F76","v":0}]
[{"$f":"'Standing Data'!$D$15","v":{"$error":"#N/A"}},{"$f":"'Standing Data'!$F$15","v":0},{"$f":"'Standing Data'!$F$9","v":0},"Standing Data","F72",{"$f":"'Standing Data'!F77","v":0}]
[{"$f":"'Standing Data'!$D$15","v":{"$error":"#N/A"}},{"$f":"'Standing Data'!$F$15","v":0},{"$f":"'Standing Data'!$F$9","v":0},"Standing Data","F73",{"$f":"'Standing Data'!F78","v":0}]
[{"$f":"'Standing Data'!$D$15","v":{"$error":"#N/A"}},{"$f":"'Standing Data'!$F$15","v":0},{"$f":"'Standing Data'!$F$9","v":0},"Standing Data","F74",{"$f":"'Standing Data'!F79","v":0}]
[{"$f":"'Standing Data'!$D$15","v":{"$error":"#N/A"}},{"$f":"'Standing Data'!$F$15","v":0},{"$f":"'Standing Data'!$F$9","v":0},"Standing Data","F75",{"$f":"'Standing Data'!F80","v":0}]
[{"$f":"'Standing Data'!$D$15","v":{"$error":"#N/A"}},{"$f":"'Standing Data'!$F$15","v":0},{"$f":"'Standing Data'!$F$9","v":0},"Standing Data","F76",{"$f":"'Standing Data'!F81","v":0}]
[{"$f":"'Standing Data'!$D$15","v":{"$error":"#N/A"}},{"$f":"'Standing Data'!$F$15","v":0},{"$f":"'Standing Data'!$F$9","v":0},"Standing Data","F77",{"$f":"'Standing Data'!F82","v":0}]
[{"$f":"'Standing Data'!$D$15","v":{"$error":"#N/A"}},{"$f":"'Standing Data'!$F$15","v":0},{"$f":"'Standing Data'!$F$9","v":0},"Standing Data","F78",{"$f":"'Standing Data'!F83","v":0}]
[{"$f":"'Standing Data'!$D$15","v":{"$error":"#N/A"}},{"$f":"'Standing Data'!$F$15","v":0},{"$f":"'Standing Data'!$F$9","v":0},"Standing Data","F79",{"$f":"'Standing Data'!F84","v":0}]
[{"$f":"'Standing Data'!$D$15","v":{"$error":"#N/A"}},{"$f":"'Standing Data'!$F$15","v":0},{"$f":"'Standing Data'!$F$9","v":0},"Standing Data","F80",{"$f":"'Standing Data'!F85","v":0}]
[{"$f":"'Standing Data'!$D$15","v":{"$error":"#N/A"}},{"$f":"'Standing Data'!$F$15","v":0},{"$f":"'Standing Data'!$F$9","v":0},"Standing Data","F81",{"$f":"'Standing Data'!F86","v":0}]
[{"$f":"'Standing Data'!$D$15","v":{"$error":"#N/A"}},{"$f":"'Standing Data'!$F$15","v":0},{"$f":"'Standing Data'!$F$9","v":0},"Standing Data","F82",{"$f":"'Standing Data'!F87","v":0}]
[{"$f":"'Standing Data'!$D$15","v":{"$error":"#N/A"}},{"$f":"'Standing Data'!$F$15","v":0},{"$f":"'Standing Data'!$F$9","v":0},"Standing Data","F83",{"$f":"'Standing Data'!F88","v":0}]
[{"$f":"'Standing Data'!$D$15","v":{"$error":"#N/A"}},{"$f":"'Standing Data'!$F$15","v":0},{"$f":"'Standing Data'!$F$9","v":0},"Standing Data","F84",{"$f":"'Standing Data'!F89","v":0}]
[{"$f":"'Standing Data'!$D$15","v":{"$error":"#N/A"}},{"$f":"'Standing Data'!$F$15","v":0},{"$f":"'Standing Data'!$F$9","v":0},"Standing Data","F85",{"$f":"'Standing Data'!F90","v":0}]
[{"$f":"'Standing Data'!$D$15","v":{"$error":"#N/A"}},{"$f":"'Standing Data'!$F$15","v":0},{"$f":"'Standing Data'!$F$9","v":0},"Standing Data","F86",{"$f":"'Standing Data'!F91","v":0}]
[{"$f":"'Standing Data'!$D$15","v":{"$error":"#N/A"}},{"$f":"'Standing Data'!$F$15","v":0},{"$f":"'Standing Data'!$F$9","v":0},"Standing Data","F87",{"$f":"'Standing Data'!F92","v":0}]
[{"$f":"'Standing Data'!$D$15","v":{"$error":"#N/A"}},{"$f":"'Standing Data'!$F$15","v":0},{"$f":"'Standing Data'!$F$9","v":0},"Standing Data","F88",{"$f":"'Standing Data'!F93","v":0}]
[{"$f":"'Standing Data'!$D$15","v":{"$error":"#N/A"}},{"$f":"'Standing Data'!$F$15","v":0},{"$f":"'Standing Data'!$F$9","v":0},"Standing Data","F89",{"$f":"'Standing Data'!F94","v":0}]
[{"$f":"'Standing Data'!$D$15","v":{"$error":"#N/A"}},{"$f":"'Standing Data'!$F$15","v":0},{"$f":"'Standing Data'!$F$9","v":0},"Standing Data","F90",{"$f":"'Standing Data'!F95","v":0}]
[{"$f":"'Standing Data'!$D$15","v":{"$error":"#N/A"}},{"$f":"'Standing Data'!$F$15","v":0},{"$f":"'Standing Data'!$F$9","v":0},"Standing Data","F91",{"$f":"'Standing Data'!F96","v":0}]
[{"$f":"'Standing Data'!$D$15","v":{"$error":"#N/A"}},{"$f":"'Standing Data'!$F$15","v":0},{"$f":"'Standing Data'!$F$9","v":0},"Standing Data","F92",{"$f":"'Standing Data'!F97","v":0}]
[{"$f":"'Standing Data'!$D$15","v":{"$error":"#N/A"}},{"$f":"'Standing Data'!$F$15","v":0},{"$f":"'Standing Data'!$F$9","v":0},"Standing Data","F93",{"$f":"'Standing Data'!F98","v":0}]
[{"$f":"'Standing Data'!$D$15","v":{"$error":"#N/A"}},{"$f":"'Standing Data'!$F$15","v":0},{"$f":"'Standing Data'!$F$9","v":0},"Standing Data","F94",{"$f":"'Standing Data'!F99","v":0}]
[{"$f":"'Standing Data'!$D$15","v":{"$error":"#N/A"}},{"$f":"'Standing Data'!$F$15","v":0},{"$f":"'Standing Data'!$F$9","v":0},"Standing Data","F95",{"$f":"'Standing Data'!F100","v":0}]
[{"$f":"'Standing Data'!$D$15","v":{"$error":"#N/A"}},{"$f":"'Standing Data'!$F$15","v":0},{"$f":"'Standing Data'!$F$9","v":0},"Standing Data","F96",{"$f":"'Standing Data'!F101","v":0}]
[{"$f":"'Standing Data'!$D$15","v":{"$error":"#N/A"}},{"$f":"'Standing Data'!$F$15","v":0},{"$f":"'Standing Data'!$F$9","v":0},"Standing Data","F97",{"$f":"'Standing Data'!F102","v":0}]
[{"$f":"'Standing Data'!$D$15","v":{"$error":"#N/A"}},{"$f":"'Standing Data'!$F$15","v":0},{"$f":"'Standing Data'!$F$9","v":0},"Standing Data","F98",{"$f":"'Standing Data'!F103","v":0}]
[{"$f":"'Standing Data'!$D$15","v":{"$error":"#N/A"}},{"$f":"'Standing Data'!$F$15","v":0},{"$f":"'Standing Data'!$F$9","v":0},"Standing Data","F99",{"$f":"'Standing Data'!F104","v":0}]
[{"$f":"'Standing Data'!$D$15","v":{"$error":"#N/A"}},{"$f":"'Standing Data'!$F$15","v":0},{"$f":"'Standing Data'!$F$9","v":0},"Standing Data","F100",{"$f":"'Standing Data'!F105","v":0}]
[{"$f":"'Standing Data'!$D$15","v":{"$error":"#N/A"}},{"$f":"'Standing Data'!$F$15","v":0},{"$f":"'Standing Data'!$F$9","v":0},"Standing Data","F101",{"$f":"'Standing Data'!F106","v":0}]
[{"$f":"'Standing Data'!$D$15","v":{"$error":"#N/A"}},{"$f":"'Standing Data'!$F$15","v":0},{"$f":"'Standing Data'!$F$9","v":0},"Standing Data","F102",{"$f":"'Standing Data'!F107","v":0}]
[{"$f":"'Standing Data'!$D$15","v":{"$error":"#N/A"}},{"$f":"'Standing Data'!$F$15","v":0},{"$f":"'Standing Data'!$F$9","v":0},"Standing Data","F103",{"$f":"'Standing Data'!F108","v":0}]
[{"$f":"'Standing Data'!$D$15","v":{"$error":"#N/A"}},{"$f":"'Standing Data'!$F$15","v":0},{"$f":"'Standing Data'!$F$9","v":0},"Standing Data","F104",{"$f":"'Standing Data'!F109","v":0}]
[{"$f":"'Standing Data'!$D$15","v":{"$error":"#N/A"}},{"$f":"'Standing Data'!$F$15","v":0},{"$f":"'Standing Data'!$F$9","v":0},"Standing Data","F105",{"$f":"'Standing Data'!F110","v":0}]
[{"$f":"'Standing Data'!$D$15","v":{"$error":"#N/A"}},{"$f":"'Standing Data'!$F$15","v":0},{"$f":"'Standing Data'!$F$9","v":0},"Standing Data","F106",{"$f":"'Standing Data'!F111","v":0}]
[{"$f":"'Standing Data'!$D$15","v":{"$error":"#N/A"}},{"$f":"'Standing Data'!$F$15","v":0},{"$f":"'Standing Data'!$F$9","v":0},"Standing Data","F107",{"$f":"'Standing Data'!F112","v":0}]
[{"$f":"'Standing Data'!$D$15","v":{"$error":"#N/A"}},{"$f":"'Standing Data'!$F$15","v":0},{"$f":"'Standing Data'!$F$9","v":0},"Standing Data","F108",{"$f":"'Standing Data'!F113","v":0}]
[{"$f":"'Standing Data'!$D$15","v":{"$error":"#N/A"}},{"$f":"'Standing Data'!$F$15","v":0},{"$f":"'Standing Data'!$F$9","v":0},"Standing Data","F109",{"$f":"'Standing Data'!F114","v":0}]
[{"$f":"'Standing Data'!$D$15","v":{"$error":"#N/A"}},{"$f":"'Standing Data'!$F$15","v":0},{"$f":"'Standing Data'!$F$9","v":0},"Standing Data","F110",{"$f":"'Standing Data'!F115","v":0}]
[{"$f":"'Standing Data'!$D$15","v":{"$error":"#N/A"}},{"$f":"'Standing Data'!$F$15","v":0},{"$f":"'Standing Data'!$F$9","v":0},"Standing Data","F111",{"$f":"'Standing Data'!F116","v":0}]
[{"$f":"'Standing Data'!$D$15","v":{"$error":"#N/A"}},{"$f":"'Standing Data'!$F$15","v":0},{"$f":"'Standing Data'!$F$9","v":0},"Standing Data","F112",{"$f":"'Standing Data'!F117","v":0}]
[{"$f":"'Standing Data'!$D$15","v":{"$error":"#N/A"}},{"$f":"'Standing Data'!$F$15","v":0},{"$f":"'Standing Data'!$F$9","v":0},"Standing Data","F113",{"$f":"'Standing Data'!F118","v":0}]
[{"$f":"'Standing Data'!$D$15","v":{"$error":"#N/A"}},{"$f":"'Standing Data'!$F$15","v":0},{"$f":"'Standing Data'!$F$9","v":0},"Standing Data","F114",{"$f":"'Standing Data'!F119","v":0}]
[{"$f":"'Standing Data'!$D$15","v":{"$error":"#N/A"}},{"$f":"'Standing Data'!$F$15","v":0},{"$f":"'Standing Data'!$F$9","v":0},"Standing Data","F115",{"$f":"'Standing Data'!F120","v":0}]
[{"$f":"'Standing Data'!$D$15","v":{"$error":"#N/A"}},{"$f":"'Standing Data'!$F$15","v":0},{"$f":"'Standing Data'!$F$9","v":0},"Standing Data","F116",{"$f":"'Standing Data'!F121","v":0}]
[{"$f":"'Standing Data'!$D$15","v":{"$error":"#N/A"}},{"$f":"'Standing Data'!$F$15","v":0},{"$f":"'Standing Data'!$F$9","v":0},"Standing Data","F117",{"$f":"'Standing Data'!F122","v":0}]
[{"$f":"'Standing Data'!$D$15","v":{"$error":"#N/A"}},{"$f":"'Standing Data'!$F$15","v":0},{"$f":"'Standing Data'!$F$9","v":0},"Standing Data","F118",{"$f":"'Standing Data'!F123","v":0}]
[{"$f":"'Standing Data'!$D$15","v":{"$error":"#N/A"}},{"$f":"'Standing Data'!$F$15","v":0},{"$f":"'Standing Data'!$F$9","v":0},"Standing Data","F119",{"$f":"'Standing Data'!F124","v":0}]
[{"$f":"'Standing Data'!$D$15","v":{"$error":"#N/A"}},{"$f":"'Standing Data'!$F$15","v":0},{"$f":"'Standing Data'!$F$9","v":0},"Standing Data","F120",{"$f":"'Standing Data'!F125","v":0}]
[{"$f":"'Standing Data'!$D$15","v":{"$error":"#N/A"}},{"$f":"'Standing Data'!$F$15","v":0},{"$f":"'Standing Data'!$F$9","v":0},"Standing Data","F121",{"$f":"'Standing Data'!F126","v":0}]
[{"$f":"'Standing Data'!$D$15","v":{"$error":"#N/A"}},{"$f":"'Standing Data'!$F$15","v":0},{"$f":"'Standing Data'!$F$9","v":0},"Standing Data","F122",{"$f":"'Standing Data'!F127","v":0}]
[{"$f":"'Standing Data'!$D$15","v":{"$error":"#N/A"}},{"$f":"'Standing Data'!$F$15","v":0},{"$f":"'Standing Data'!$F$9","v":0},"Standing Data","F123",{"$f":"'Standing Data'!F128","v":0}]
[{"$f":"'Standing Data'!$D$15","v":{"$error":"#N/A"}},{"$f":"'Standing Data'!$F$15","v":0},{"$f":"'Standing Data'!$F$9","v":0},"Standing Data","F124",{"$f":"'Standing Data'!F129","v":0}]
[{"$f":"'Standing Data'!$D$15","v":{"$error":"#N/A"}},{"$f":"'Standing Data'!$F$15","v":0},{"$f":"'Standing Data'!$F$9","v":0},"Standing Data","F125",{"$f":"'Standing Data'!F130","v":0}]
[{"$f":"'Standing Data'!$D$15","v":{"$error":"#N/A"}},{"$f":"'Standing Data'!$F$15","v":0},{"$f":"'Standing Data'!$F$9","v":0},"Standing Data","F126",{"$f":"'Standing Data'!F131","v":0}]
[{"$f":"'Standing Data'!$D$15","v":{"$error":"#N/A"}},{"$f":"'Standing Data'!$F$15","v":0},{"$f":"'Standing Data'!$F$9","v":0},"Standing Data","F127",{"$f":"'Standing Data'!F132","v":0}]
[{"$f":"'Standing Data'!$D$15","v":{"$error":"#N/A"}},{"$f":"'Standing Data'!$F$15","v":0},{"$f":"'Standing Data'!$F$9","v":0},"Standing Data","F128",{"$f":"'Standing Data'!F133","v":0}]
[{"$f":"'Standing Data'!$D$15","v":{"$error":"#N/A"}},{"$f":"'Standing Data'!$F$15","v":0},{"$f":"'Standing Data'!$F$9","v":0},"Standing Data","F129",{"$f":"'Standing Data'!F134","v":0}]
[{"$f":"'Standing Data'!$D$15","v":{"$error":"#N/A"}},{"$f":"'Standing Data'!$F$15","v":0},{"$f":"'Standing Data'!$F$9","v":0},"Standing Data","F130",{"$f":"'Standing Data'!F135","v":0}]
[{"$f":"'Standing Data'!$D$15","v":{"$error":"#N/A"}},{"$f":"'Standing Data'!$F$15","v":0},{"$f":"'Standing Data'!$F$9","v":0},"Standing Data","F131",{"$f":"'Standing Data'!F136","v":0}]
[{"$f":"'Standing Data'!$D$15","v":{"$error":"#N/A"}},{"$f":"'Standing Data'!$F$15","v":0},{"$f":"'Standing Data'!$F$9","v":0},"Standing Data","F132",{"$f":"'Standing Data'!F137","v":0}]
[{"$f":"'Standing Data'!$D$15","v":{"$error":"#N/A"}},{"$f":"'Standing Data'!$F$15","v":0},{"$f":"'Standing Data'!$F$9","v":0},"Standing Data","F133",{"$f":"'Standing Data'!F138","v":0}]
[{"$f":"'Standing Data'!$D$15","v":{"$error":"#N/A"}},{"$f":"'Standing Data'!$F$15","v":0},{"$f":"'Standing Data'!$F$9","v":0},"Standing Data","F134",{"$f":"'Standing Data'!F139","v":0}]
[{"$f":"'Standing Data'!$D$15","v":{"$error":"#N/A"}},{"$f":"'Standing Data'!$F$15","v":0},{"$f":"'Standing Data'!$F$9","v":0},"Standing Data","F135",{"$f":"'Standing Data'!F140","v":0}]
[{"$f":"'Standing Data'!$D$15","v":{"$error":"#N/A"}},{"$f":"'Standing Data'!$F$15","v":0},{"$f":"'Standing Data'!$F$9","v":0},"Standing Data","F136",{"$f":"'Standing Data'!F141","v":0}]
[{"$f":"'Standing Data'!$D$15","v":{"$error":"#N/A"}},{"$f":"'Standing Data'!$F$15","v":0},{"$f":"'Standing Data'!$F$9","v":0},"Standing Data","F137",{"$f":"'Standing Data'!F142","v":0}]
[{"$f":"'Standing Data'!$D$15","v":{"$error":"#N/A"}},{"$f":"'Standing Data'!$F$15","v":0},{"$f":"'Standing Data'!$F$9","v":0},"Standing Data","F138",{"$f":"'Standing Data'!F143","v":0}]
[{"$f":"'Standing Data'!$D$15","v":{"$error":"#N/A"}},{"$f":"'Standing Data'!$F$15","v":0},{"$f":"'Standing Data'!$F$9","v":0},"Standing Data","F139",{"$f":"'Standing Data'!F144","v":0}]
[{"$f":"'Standing Data'!$D$15","v":{"$error":"#N/A"}},{"$f":"'Standing Data'!$F$15","v":0},{"$f":"'Standing Data'!$F$9","v":0},"Standing Data","F140",{"$f":"'Standing Data'!F145","v":0}]
[{"$f":"'Standing Data'!$D$15","v":{"$error":"#N/A"}},{"$f":"'Standing Data'!$F$15","v":0},{"$f":"'Standing Data'!$F$9","v":0},"Standing Data","F141",{"$f":"'Standing Data'!F146","v":0}]
[{"$f":"'Standing Data'!$D$15","v":{"$error":"#N/A"}},{"$f":"'Standing Data'!$F$15","v":0},{"$f":"'Standing Data'!$F$9","v":0},"Standing Data","F142",{"$f":"'Standing Data'!F147","v":0}]
[{"$f":"'Standing Data'!$D$15","v":{"$error":"#N/A"}},{"$f":"'Standing Data'!$F$15","v":0},{"$f":"'Standing Data'!$F$9","v":0},"Standing Data","F143",{"$f":"'Standing Data'!F148","v":0}]
[{"$f":"'Standing Data'!$D$15","v":{"$error":"#N/A"}},{"$f":"'Standing Data'!$F$15","v":0},{"$f":"'Standing Data'!$F$9","v":0},"Standing Data","G44",{"$f":"'Standing Data'!G49","v":"00:00:00"}]
[{"$f":"'Standing Data'!$D$15","v":{"$error":"#N/A"}},{"$f":"'Standing Data'!$F$15","v":0},{"$f":"'Standing Data'!$F$9","v":0},"Standing Data","G45",{"$f":"'Standing Data'!G50","v":"00:00:00"}]
[{"$f":"'Standing Data'!$D$15","v":{"$error":"#N/A"}},{"$f":"'Standing Data'!$F$15","v":0},{"$f":"'Standing Data'!$F$9","v":0},"Standing Data","G46",{"$f":"'Standing Data'!G51","v":"00:00:00"}]
[{"$f":"'Standing Data'!$D$15","v":{"$error":"#N/A"}},{"$f":"'Standing Data'!$F$15","v":0},{"$f":"'Standing Data'!$F$9","v":0},"Standing Data","G47",{"$f":"'Standing Data'!G52","v":"00:00:00"}]
[{"$f":"'Standing Data'!$D$15","v":{"$error":"#N/A"}},{"$f":"'Standing Data'!$F$15","v":0},{"$f":"'Standing Data'!$F$9","v":0},"Standing Data","G48",{"$f":"'Standing Data'!G53","v":"00:00:00"}]
[{"$f":"'Standing Data'!$D$15","v":{"$error":"#N/A"}},{"$f":"'Standing Data'!$F$15","v":0},{"$f":"'Standing Data'!$F$9","v":0},"Standing Data","G49",{"$f":"'Standing Data'!G54","v":"00:00:00"}]
[{"$f":"'Standing Data'!$D$15","v":{"$error":"#N/A"}},{"$f":"'Standing Data'!$F$15","v":0},{"$f":"'Standing Data'!$F$9","v":0},"Standing Data","G50",{"$f":"'Standing Data'!G55","v":"00:00:00"}]
[{"$f":"'Standing Data'!$D$15","v":{"$error":"#N/A"}},{"$f":"'Standing Data'!$F$15","v":0},{"$f":"'Standing Data'!$F$9","v":0},"Standing Data","G51",{"$f":"'Standing Data'!G56","v":"00:00:00"}]
[{"$f":"'Standing Data'!$D$15","v":{"$error":"#N/A"}},{"$f":"'Standing Data'!$F$15","v":0},{"$f":"'Standing Data'!$F$9","v":0},"Standing Data","G52",{"$f":"'Standing Data'!G57","v":"00:00:00"}]
[{"$f":"'Standing Data'!$D$15","v":{"$error":"#N/A"}},{"$f":"'Standing Data'!$F$15","v":0},{"$f":"'Standing Data'!$F$9","v":0},"Standing Data","G53",{"$f":"'Standing Data'!G58","v":"00:00:00"}]
[{"$f":"'Standing Data'!$D$15","v":{"$error":"#N/A"}},{"$f":"'Standing Data'!$F$15","v":0},{"$f":"'Standing Data'!$F$9","v":0},"Standing Data","G54",{"$f":"'Standing Data'!G59","v":"00:00:00"}]
[{"$f":"'Standing Data'!$D$15","v":{"$error":"#N/A"}},{"$f":"'Standing Data'!$F$15","v":0},{"$f":"'Standing Data'!$F$9","v":0},"Standing Data","G55",{"$f":"'Standing Data'!G60","v":"00:00:00"}]
[{"$f":"'Standing Data'!$D$15","v":{"$error":"#N/A"}},{"$f":"'Standing Data'!$F$15","v":0},{"$f":"'Standing Data'!$F$9","v":0},"Standing Data","G56",{"$f":"'Standing Data'!G61","v":"00:00:00"}]
[{"$f":"'Standing Data'!$D$15","v":{"$error":"#N/A"}},{"$f":"'Standing Data'!$F$15","v":0},{"$f":"'Standing Data'!$F$9","v":0},"Standing Data","G57",{"$f":"'Standing Data'!G62","v":"00:00:00"}]
[{"$f":"'Standing Data'!$D$15","v":{"$error":"#N/A"}},{"$f":"'Standing Data'!$F$15","v":0},{"$f":"'Standing Data'!$F$9","v":0},"Standing Data","G58",{"$f":"'Standing Data'!G63","v":"00:00:00"}]
[{"$f":"'Standing Data'!$D$15","v":{"$error":"#N/A"}},{"$f":"'Standing Data'!$F$15","v":0},{"$f":"'Standing Data'!$F$9","v":0},"Standing Data","G59",{"$f":"'Standing Data'!G64","v":"00:00:00"}]
[{"$f":"'Standing Data'!$D$15","v":{"$error":"#N/A"}},{"$f":"'Standing Data'!$F$15","v":0},{"$f":"'Standing Data'!$F$9","v":0},"Standing Data","G60",{"$f":"'Standing Data'!G65","v":"00:00:00"}]
[{"$f":"'Standing Data'!$D$15","v":{"$error":"#N/A"}},{"$f":"'Standing Data'!$F$15","v":0},{"$f":"'Standing Data'!$F$9","v":0},"Standing Data","G61",{"$f":"'Standing Data'!G66","v":"00:00:00"}]
[{"$f":"'Standing Data'!$D$15","v":{"$error":"#N/A"}},{"$f":"'Standing Data'!$F$15","v":0},{"$f":"'Standing Data'!$F$9","v":0},"Standing Data","G62",{"$f":"'Standing Data'!G67","v":"00:00:00"}]
[{"$f":"'Standing Data'!$D$15","v":{"$error":"#N/A"}},{"$f":"'Standing Data'!$F$15","v":0},{"$f":"'Standing Data'!$F$9","v":0},"Standing Data","G63",{"$f":"'Standing Data'!G68","v":"00:00:00"}]
[{"$f":"'Standing Data'!$D$15","v":{"$error":"#N/A"}},{"$f":"'Standing Data'!$F$15","v":0},{"$f":"'Standing Data'!$F$9","v":0},"Standing Data","G64",{"$f":"'Standing Data'!G69","v":"00:00:00"}]
[{"$f":"'Standing Data'!$D$15","v":{"$error":"#N/A"}},{"$f":"'Standing Data'!$F$15","v":0},{"$f":"'Standing Data'!$F$9","v":0},"Standing Data","G65",{"$f":"'Standing Data'!G70","v":"00:00:00"}]
[{"$f":"'Standing Data'!$D$15","v":{"$error":"#N/A"}},{"$f":"'Standing Data'!$F$15","v":0},{"$f":"'Standing Data'!$F$9","v":0},"Standing Data","G66",{"$f":"'Standing Data'!G71","v":"00:00:00"}]
[{"$f":"'Standing Data'!$D$15","v":{"$error":"#N/A"}},{"$f":"'Standing Data'!$F$15","v":0},{"$f":"'Standing Data'!$F$9","v":0},"Standing Data","G67",{"$f":"'Standing Data'!G72","v":"00:00:00"}]
[{"$f":"'Standing Data'!$D$15","v":{"$error":"#N/A"}},{"$f":"'Standing Data'!$F$15","v":0},{"$f":"'Standing Data'!$F$9","v":0},"Standing Data","G68",{"$f":"'Standing Data'!G73","v":"00:00:00"}]
[{"$f":"'Standing Data'!$D$15","v":{"$error":"#N/A"}},{"$f":"'Standing Data'!$F$15","v":0},{"$f":"'Standing Data'!$F$9","v":0},"Standing Data","G69",{"$f":"'Standing Data'!G74","v":"00:00:00"}]
[{"$f":"'Standing Data'!$D$15","v":{"$error":"#N/A"}},{"$f":"'Standing Data'!$F$15","v":0},{"$f":"'Standing Data'!$F$9","v":0},"Standing Data","G70",{"$f":"'Standing Data'!G75","v":"00:00:00"}]
[{"$f":"'Standing Data'!$D$15","v":{"$error":"#N/A"}},{"$f":"'Standing Data'!$F$15","v":0},{"$f":"'Standing Data'!$F$9","v":0},"Standing Data","G71",{"$f":"'Standing Data'!G76","v":"00:00:00"}]
[{"$f":"'Standing Data'!$D$15","v":{"$error":"#N/A"}},{"$f":"'Standing Data'!$F$15","v":0},{"$f":"'Standing Data'!$F$9","v":0},"Standing Data","G72",{"$f":"'Standing Data'!G77","v":"00:00:00"}]
[{"$f":"'Standing Data'!$D$15","v":{"$error":"#N/A"}},{"$f":"'Standing Data'!$F$15","v":0},{"$f":"'Standing Data'!$F$9","v":0},"Standing Data","G73",{"$f":"'Standing Data'!G78","v":"00:00:00"}]
[{"$f":"'Standing Data'!$D$15","v":{"$error":"#N/A"}},{"$f":"'Standing Data'!$F$15","v":0},{"$f":"'Standing Data'!$F$9","v":0},"Standing Data","G74",{"$f":"'Standing Data'!G79","v":"00:00:00"}]
[{"$f":"'Standing Data'!$D$15","v":{"$error":"#N/A"}},{"$f":"'Standing Data'!$F$15","v":0},{"$f":"'Standing Data'!$F$9","v":0},"Standing Data","G75",{"$f":"'Standing Data'!G80","v":"00:00:00"}]
[{"$f":"'Standing Data'!$D$15","v":{"$error":"#N/A"}},{"$f":"'Standing Data'!$F$15","v":0},{"$f":"'Standing Data'!$F$9","v":0},"Standing Data","G76",{"$f":"'Standing Data'!G81","v":"00:00:00"}]
[{"$f":"'Standing Data'!$D$15","v":{"$error":"#N/A"}},{"$f":"'Standing Data'!$F$15","v":0},{"$f":"'Standing Data'!$F$9","v":0},"Standing Data","G77",{"$f":"'Standing Data'!G82","v":"00:00:00"}]
[{"$f":"'Standing Data'!$D$15","v":{"$error":"#N/A"}},{"$f":"'Standing Data'!$F$15","v":0},{"$f":"'Standing Data'!$F$9","v":0},"Standing Data","G78",{"$f":"'Standing Data'!G83","v":"00:00:00"}]
[{"$f":"'Standing Data'!$D$15","v":{"$error":"#N/A"}},{"$f":"'Standing Data'!$F$15","v":0},{"$f":"'Standing Data'!$F$9","v":0},"Standing Data","G79",{"$f":"'Standing Data'!G84","v":"00:00:00"}]
[{"$f":"'Standing Data'!$D$15","v":{"$error":"#N/A"}},{"$f":"'Standing Data'!$F$15","v":0},{"$f":"'Standing Data'!$F$9","v":0},"Standing Data","G80",{"$f":"'Standing Data'!G85","v":"00:00:00"}]
[{"$f":"'Standing Data'!$D$15","v":{"$error":"#N/A"}},{"$f":"'Standing Data'!$F$15","v":0},{"$f":"'Standing Data'!$F$9","v":0},"Standing Data","G81",{"$f":"'Standing Data'!G86","v":"00:00:00"}]
[{"$f":"'Standing Data'!$D$15","v":{"$error":"#N/A"}},{"$f":"'Standing Data'!$F$15","v":0},{"$f":"'Standing Data'!$F$9","v":0},"Standing Data","G82",{"$f":"'Standing Data'!G87","v":"00:00:00"}]
[{"$f":"'Standing Data'!$D$15","v":{"$error":"#N/A"}},{"$f":"'Standing Data'!$F$15","v":0},{"$f":"'Standing Data'!$F$9","v":0},"Standing Data","G83",{"$f":"'Standing Data'!G88","v":"00:00:00"}]
[{"$f":"'Standing Data'!$D$15","v":{"$error":"#N/A"}},{"$f":"'Standing Data'!$F$15","v":0},{"$f":"'Standing Data'!$F$9","v":0},"Standing Data","G84",{"$f":"'Standing Data'!G89","v":"00:00:00"}]
[{"$f":"'Standing Data'!$D$15","v":{"$error":"#N/A"}},{"$f":"'Standing Data'!$F$15","v":0},{"$f":"'Standing Data'!$F$9","v":0},"Standing Data","G85",{"$f":"'Standing Data'!G90","v":"00:00:00"}]
[{"$f":"'Standing Data'!$D$15","v":{"$error":"#N/A"}},{"$f":"'Standing Data'!$F$15","v":0},{"$f":"'Standing Data'!$F$9","v":0},"Standing Data","G86",{"$f":"'Standing Data'!G91","v":"00:00:00"}]
[{"$f":"'Standing Data'!$D$15","v":{"$error":"#N/A"}},{"$f":"'Standing Data'!$F$15","v":0},{"$f":"'Standing Data'!$F$9","v":0},"Standing Data","G87",{"$f":"'Standing Data'!G92","v":"00:00:00"}]
[{"$f":"'Standing Data'!$D$15","v":{"$error":"#N/A"}},{"$f":"'Standing Data'!$F$15","v":0},{"$f":"'Standing Data'!$F$9","v":0},"Standing Data","G88",{"$f":"'Standing Data'!G93","v":"00:00:00"}]
[{"$f":"'Standing Data'!$D$15","v":{"$error":"#N/A"}},{"$f":"'Standing Data'!$F$15","v":0},{"$f":"'Standing Data'!$F$9","v":0},"Standing Data","G89",{"$f":"'Standing Data'!G94","v":"00:00:00"}]
[{"$f":"'Standing Data'!$D$15","v":{"$error":"#N/A"}},{"$f":"'Standing Data'!$F$15","v":0},{"$f":"'Standing Data'!$F$9","v":0},"Standing Data","G90",{"$f":"'Standing Data'!G95","v":"00:00:00"}]
[{"$f":"'Standing Data'!$D$15","v":{"$error":"#N/A"}},{"$f":"'Standing Data'!$F$15","v":0},{"$f":"'Standing Data'!$F$9","v":0},"Standing Data","G91",{"$f":"'Standing Data'!G96","v":"00:00:00"}]
[{"$f":"'Standing Data'!$D$15","v":{"$error":"#N/A"}},{"$f":"'Standing Data'!$F$15","v":0},{"$f":"'Standing Data'!$F$9","v":0},"Standing Data","G92",{"$f":"'Standing Data'!G97","v":"00:00:00"}]
[{"$f":"'Standing Data'!$D$15","v":{"$error":"#N/A"}},{"$f":"'Standing Data'!$F$15","v":0},{"$f":"'Standing Data'!$F$9","v":0},"Standing Data","G93",{"$f":"'Standing Data'!G98","v":"00:00:00"}]
[{"$f":"'Standing Data'!$D$15","v":{"$error":"#N/A"}},{"$f":"'Standing Data'!$F$15","v":0},{"$f":"'Standing Data'!$F$9","v":0},"Standing Data","G94",{"$f":"'Standing Data'!G99","v":"00:00:00"}]
[{"$f":"'Standing Data'!$D$15","v":{"$error":"#N/A"}},{"$f":"'Standing Data'!$F$15","v":0},{"$f":"'Standing Data'!$F$9","v":0},"Standing Data","G95",{"$f":"'Standing Data'!G100","v":"00:00:00"}]
[{"$f":"'Standing Data'!$D$15","v":{"$error":"#N/A"}},{"$f":"'Standing Data'!$F$15","v":0},{"$f":"'Standing Data'!$F$9","v":0},"Standing Data","G96",{"$f":"'Standing Data'!G101","v":"00:00:00"}]
[{"$f":"'Standing Data'!$D$15","v":{"$error":"#N/A"}},{"$f":"'Standing Data'!$F$15","v":0},{"$f":"'Standing Data'!$F$9","v":0},"Standing Data","G97",{"$f":"'Standing Data'!G102","v":"00:00:00"}]
[{"$f":"'Standing Data'!$D$15","v":{"$error":"#N/A"}},{"$f":"'Standing Data'!$F$15","v":0},{"$f":"'Standing Data'!$F$9","v":0},"Standing Data","G98",{"$f":"'Standing Data'!G103","v":"00:00:00"}]
[{"$f":"'Standing Data'!$D$15","v":{"$error":"#N/A"}},{"$f":"'Standing Data'!$F$15","v":0},{"$f":"'Standing Data'!$F$9","v":0},"Standing Data","G99",{"$f":"'Standing Data'!G104","v":"00:00:00"}]
[{"$f":"'Standing Data'!$D$15","v":{"$error":"#N/A"}},{"$f":"'Standing Data'!$F$15","v":0},{"$f":"'Standing Data'!$F$9","v":0},"Standing Data","G100",{"$f":"'Standing Data'!G105","v":"00:00:00"}]
[{"$f":"'Standing Data'!$D$15","v":{"$error":"#N/A"}},{"$f":"'Standing Data'!$F$15","v":0},{"$f":"'Standing Data'!$F$9","v":0},"Standing Data","G101",{"$f":"'Standing Data'!G106","v":"00:00:00"}]
[{"$f":"'Standing Data'!$D$15","v":{"$error":"#N/A"}},{"$f":"'Standing Data'!$F$15","v":0},{"$f":"'Standing Data'!$F$9","v":0},"Standing Data","G102",{"$f":"'Standing Data'!G107","v":"00:00:00"}]
[{"$f":"'Standing Data'!$D$15","v":{"$error":"#N/A"}},{"$f":"'Standing Data'!$F$15","v":0},{"$f":"'Standing Data'!$F$9","v":0},"Standing Data","G103",{"$f":"'Standing Data'!G108","v":"00:00:00"}]
[{"$f":"'Standing Data'!$D$15","v":{"$error":"#N/A"}},{"$f":"'Standing Data'!$F$15","v":0},{"$f":"'Standing Data'!$F$9","v":0},"Standing Data","G104",{"$f":"'Standing Data'!G109","v":"00:00:00"}]
[{"$f":"'Standing Data'!$D$15","v":{"$error":"#N/A"}},{"$f":"'Standing Data'!$F$15","v":0},{"$f":"'Standing Data'!$F$9","v":0},"Standing Data","G105",{"$f":"'Standing Data'!G110","v":"00:00:00"}]
[{"$f":"'Standing Data'!$D$15","v":{"$error":"#N/A"}},{"$f":"'Standing Data'!$F$15","v":0},{"$f":"'Standing Data'!$F$9","v":0},"Standing Data","G106",{"$f":"'Standing Data'!G111","v":"00:00:00"}]
[{"$f":"'Standing Data'!$D$15","v":{"$error":"#N/A"}},{"$f":"'Standing Data'!$F$15","v":0},{"$f":"'Standing Data'!$F$9","v":0},"Standing Data","G107",{"$f":"'Standing Data'!G112","v":"00:00:00"}]
[{"$f":"'Standing Data'!$D$15","v":{"$error":"#N/A"}},{"$f":"'Standing Data'!$F$15","v":0},{"$f":"'Standing Data'!$F$9","v":0},"Standing Data","G108",{"$f":"'Standing Data'!G113","v":"00:00:00"}]
[{"$f":"'Standing Data'!$D$15","v":{"$error":"#N/A"}},{"$f":"'Standing Data'!$F$15","v":0},{"$f":"'Standing Data'!$F$9","v":0},"Standing Data","G109",{"$f":"'Standing Data'!G114","v":"00:00:00"}]
[{"$f":"'Standing Data'!$D$15","v":{"$error":"#N/A"}},{"$f":"'Standing Data'!$F$15","v":0},{"$f":"'Standing Data'!$F$9","v":0},"Standing Data","G110",{"$f":"'Standing Data'!G115","v":"00:00:00"}]
[{"$f":"'Standing Data'!$D$15","v":{"$error":"#N/A"}},{"$f":"'Standing Data'!$F$15","v":0},{"$f":"'Standing Data'!$F$9","v":0},"Standing Data","G111",{"$f":"'Standing Data'!G116","v":"00:00:00"}]
[{"$f":"'Standing Data'!$D$15","v":{"$error":"#N/A"}},{"$f":"'Standing Data'!$F$15","v":0},{"$f":"'Standing Data'!$F$9","v":0},"Standing Data","G112",{"$f":"'Standing Data'!G117","v":"00:00:00"}]
[{"$f":"'Standing Data'!$D$15","v":{"$error":"#N/A"}},{"$f":"'Standing Data'!$F$15","v":0},{"$f":"'Standing Data'!$F$9","v":0},"Standing Data","G113",{"$f":"'Standing Data'!G118","v":"00:00:00"}]
[{"$f":"'Standing Data'!$D$15","v":{"$error":"#N/A"}},{"$f":"'Standing Data'!$F$15","v":0},{"$f":"'Standing Data'!$F$9","v":0},"Standing Data","G114",{"$f":"'Standing Data'!G119","v":"00:00:00"}]
[{"$f":"'Standing Data'!$D$15","v":{"$error":"#N/A"}},{"$f":"'Standing Data'!$F$15","v":0},{"$f":"'Standing Data'!$F$9","v":0},"Standing Data","G115",{"$f":"'Standing Data'!G120","v":"00:00:00"}]
[{"$f":"'Standing Data'!$D$15","v":{"$error":"#N/A"}},{"$f":"'Standing Data'!$F$15","v":0},{"$f":"'Standing Data'!$F$9","v":0},"Standing Data","G116",{"$f":"'Standing Data'!G121","v":"00:00:00"}]
[{"$f":"'Standing Data'!$D$15","v":{"$error":"#N/A"}},{"$f":"'Standing Data'!$F$15","v":0},{"$f":"'Standing Data'!$F$9","v":0},"Standing Data","G117",{"$f":"'Standing Data'!G122","v":"00:00:00"}]
[{"$f":"'Standing Data'!$D$15","v":{"$error":"#N/A"}},{"$f":"'Standing Data'!$F$15","v":0},{"$f":"'Standing Data'!$F$9","v":0},"Standing Data","G118",{"$f":"'Standing Data'!G123","v":"00:00:00"}]
[{"$f":"'Standing Data'!$D$15","v":{"$error":"#N/A"}},{"$f":"'Standing Data'!$F$15","v":0},{"$f":"'Standing Data'!$F$9","v":0},"Standing Data","G119",{"$f":"'Standing Data'!G124","v":"00:00:00"}]
[{"$f":"'Standing Data'!$D$15","v":{"$error":"#N/A"}},{"$f":"'Standing Data'!$F$15","v":0},{"$f":"'Standing Data'!$F$9","v":0},"Standing Data","G120",{"$f":"'Standing Data'!G125","v":"00:00:00"}]
[{"$f":"'Standing Data'!$D$15","v":{"$error":"#N/A"}},{"$f":"'Standing Data'!$F$15","v":0},{"$f":"'Standing Data'!$F$9","v":0},"Standing Data","G121",{"$f":"'Standing Data'!G126","v":"00:00:00"}]
[{"$f":"'Standing Data'!$D$15","v":{"$error":"#N/A"}},{"$f":"'Standing Data'!$F$15","v":0},{"$f":"'Standing Data'!$F$9","v":0},"Standing Data","G122",{"$f":"'Standing Data'!G127","v":"00:00:00"}]
[{"$f":"'Standing Data'!$D$15","v":{"$error":"#N/A"}},{"$f":"'Standing Data'!$F$15","v":0},{"$f":"'Standing Data'!$F$9","v":0},"Standing Data","G123",{"$f":"'Standing Data'!G128","v":"00:00:00"}]
[{"$f":"'Standing Data'!$D$15","v":{"$error":"#N/A"}},{"$f":"'Standing Data'!$F$15","v":0},{"$f":"'Standing Data'!$F$9","v":0},"Standing Data","G124",{"$f":"'Standing Data'!G129","v":"00:00:00"}]
[{"$f":"'Standing Data'!$D$15","v":{"$error":"#N/A"}},{"$f":"'Standing Data'!$F$15","v":0},{"$f":"'Standing Data'!$F$9","v":0},"Standing Data","G125",{"$f":"'Standing Data'!G130","v":"00:00:00"}]
[{"$f":"'Standing Data'!$D$15","v":{"$error":"#N/A"}},{"$f":"'Standing Data'!$F$15","v":0},{"$f":"'Standing Data'!$F$9","v":0},"Standing Data","G126",{"$f":"'Standing Data'!G131","v":"00:00:00"}]
[{"$f":"'Standing Data'!$D$15","v":{"$error":"#N/A"}},{"$f":"'Standing Data'!$F$15","v":0},{"$f":"'Standing Data'!$F$9","v":0},"Standing Data","G127",{"$f":"'Standing Data'!G132","v":"00:00:00"}]
[{"$f":"'Standing Data'!$D$15","v":{"$error":"#N/A"}},{"$f":"'Standing Data'!$F$15","v":0},{"$f":"'Standing Data'!$F$9","v":0},"Standing Data","G128",{"$f":"'Standing Data'!G133","v":"00:00:00"}]
[{"$f":"'Standing Data'!$D$15","v":{"$error":"#N/A"}},{"$f":"'Standing Data'!$F$15","v":0},{"$f":"'Standing Data'!$F$9","v":0},"Standing Data","G129",{"$f":"'Standing Data'!G134","v":"00:00:00"}]
[{"$f":"'Standing Data'!$D$15","v":{"$error":"#N/A"}},{"$f":"'Standing Data'!$F$15","v":0},{"$f":"'Standing Data'!$F$9","v":0},"Standing Data","G130",{"$f":"'Standing Data'!G135","v":"00:00:00"}]
[{"$f":"'Standing Data'!$D$15","v":{"$error":"#N/A"}},{"$f":"'Standing Data'!$F$15","v":0},{"$f":"'Standing Data'!$F$9","v":0},"Standing Data","G131",{"$f":"'Standing Data'!G136","v":"00:00:00"}]
[{"$f":"'Standing Data'!$D$15","v":{"$error":"#N/A"}},{"$f":"'Standing Data'!$F$15","v":0},{"$f":"'Standing Data'!$F$9","v":0},"Standing Data","G132",{"$f":"'Standing Data'!G137","v":"00:00:00"}]
[{"$f":"'Standing Data'!$D$15","v":{"$error":"#N/A"}},{"$f":"'Standing Data'!$F$15","v":0},{"$f":"'Standing Data'!$F$9","v":0},"Standing Data","G133",{"$f":"'Standing Data'!G138","v":"00:00:00"}]
[{"$f":"'Standing Data'!$D$15","v":{"$error":"#N/A"}},{"$f":"'Standing Data'!$F$15","v":0},{"$f":"'Standing Data'!$F$9","v":0},"Standing Data","G134",{"$f":"'Standing Data'!G139","v":"00:00:00"}]
[{"$f":"'Standing Data'!$D$15","v":{"$error":"#N/A"}},{"$f":"'Standing Data'!$F$15","v":0},{"$f":"'Standing Data'!$F$9","v":0},"Standing Data","G135",{"$f":"'Standing Data'!G140","v":"00:00:00"}]
[{"$f":"'Standing Data'!$D$15","v":{"$error":"#N/A"}},{"$f":"'Standing Data'!$F$15","v":0},{"$f":"'Standing Data'!$F$9","v":0},"Standing Data","G136",{"$f":"'Standing Data'!G141","v":"00:00:00"}]
[{"$f":"'Standing Data'!$D$15","v":{"$error":"#N/A"}},{"$f":"'Standing Data'!$F$15","v":0},{"$f":"'Standing Data'!$F$9","v":0},"Standing Data","G137",{"$f":"'Standing Data'!G142","v":"00:00:00"}]
[{"$f":"'Standing Data'!$D$15","v":{"$error":"#N/A"}},{"$f":"'Standing Data'!$F$15","v":0},{"$f":"'Standing Data'!$F$9","v":0},"Standing Data","G138",{"$f":"'Standing Data'!G143","v":"00:00:00"}]
[{"$f":"'Standing Data'!$D$15","v":{"$error":"#N/A"}},{"$f":"'Standing Data'!$F$15","v":0},{"$f":"'Standing Data'!$F$9","v":0},"Standing Data","G139",{"$f":"'Standing Data'!G144","v":"00:00:00"}]
[{"$f":"'Standing Data'!$D$15","v":{"$error":"#N/A"}},{"$f":"'Standing Data'!$F$15","v":0},{"$f":"'Standing Data'!$F$9","v":0},"Standing Data","G140",{"$f":"'Standing Data'!G145","v":"00:00:00"}]
[{"$f":"'Standing Data'!$D$15","v":{"$error":"#N/A"}},{"$f":"'Standing Data'!$F$15","v":0},{"$f":"'Standing Data'!$F$9","v":0},"Standing Data","G141",{"$f":"'Standing Data'!G146","v":"00:00:00"}]
[{"$f":"'Standing Data'!$D$15","v":{"$error":"#N/A"}},{"$f":"'Standing Data'!$F$15","v":0},{"$f":"'Standing Data'!$F$9","v":0},"Standing Data","G142",{"$f":"'Standing Data'!G147","v":"00:00:00"}]
[{"$f":"'Standing Data'!$D$15","v":{"$error":"#N/A"}},{"$f":"'Standing Data'!$F$15","v":0},{"$f":"'Standing Data'!$F$9","v":0},"Standing Data","G143",{"$f":"'Standing Data'!G148","v":"00:00:00"}]
[{"$f":"'Standing Data'!$D$15","v":{"$error":"#N/A"}},{"$f":"'Standing Data'!$F$15","v":0},{"$f":"'Standing Data'!$F$9","v":0},"Standing Data","I44",{"$f":"'Standing Data'!I49","v":0}]
[{"$f":"'Standing Data'!$D$15","v":{"$error":"#N/A"}},{"$f":"'Standing Data'!$F$15","v":0},{"$f":"'Standing Data'!$F$9","v":0},"Standing Data","I45",{"$f":"'Standing Data'!I50","v":0}]
[{"$f":"'Standing Data'!$D$15","v":{"$error":"#N/A"}},{"$f":"'Standing Data'!$F$15","v":0},{"$f":"'Standing Data'!$F$9","v":0},"Standing Data","I46",{"$f":"'Standing Data'!I51","v":0}]
[{"$f":"'Standing Data'!$D$15","v":{"$error":"#N/A"}},{"$f":"'Standing Data'!$F$15","v":0},{"$f":"'Standing Data'!$F$9","v":0},"Standing Data","I47",{"$f":"'Standing Data'!I52","v":0}]
[{"$f":"'Standing Data'!$D$15","v":{"$error":"#N/A"}},{"$f":"'Standing Data'!$F$15","v":0},{"$f":"'Standing Data'!$F$9","v":0},"Standing Data","I48",{"$f":"'Standing Data'!I53","v":0}]
[{"$f":"'Standing Data'!$D$15","v":{"$error":"#N/A"}},{"$f":"'Standing Data'!$F$15","v":0},{"$f":"'Standing Data'!$F$9","v":0},"Standing Data","I49",{"$f":"'Standing Data'!I54","v":0}]
[{"$f":"'Standing Data'!$D$15","v":{"$error":"#N/A"}},{"$f":"'Standing Data'!$F$15","v":0},{"$f":"'Standing Data'!$F$9","v":0},"Standing Data","I50",{"$f":"'Standing Data'!I55","v":0}]
[{"$f":"'Standing Data'!$D$15","v":{"$error":"#N/A"}},{"$f":"'Standing Data'!$F$15","v":0},{"$f":"'Standing Data'!$F$9","v":0},"Standing Data","I51",{"$f":"'Standing Data'!I56","v":0}]
[{"$f":"'Standing Data'!$D$15","v":{"$error":"#N/A"}},{"$f":"'Standing Data'!$F$15","v":0},{"$f":"'Standing Data'!$F$9","v":0},"Standing Data","I52",{"$f":"'Standing Data'!I57","v":0}]
[{"$f":"'Standing Data'!$D$15","v":{"$error":"#N/A"}},{"$f":"'Standing Data'!$F$15","v":0},{"$f":"'Standing Data'!$F$9","v":0},"Standing Data","I53",{"$f":"'Standing Data'!I58","v":0}]
[{"$f":"'Standing Data'!$D$15","v":{"$error":"#N/A"}},{"$f":"'Standing Data'!$F$15","v":0},{"$f":"'Standing Data'!$F$9","v":0},"Standing Data","I54",{"$f":"'Standing Data'!I59","v":0}]
[{"$f":"'Standing Data'!$D$15","v":{"$error":"#N/A"}},{"$f":"'Standing Data'!$F$15","v":0},{"$f":"'Standing Data'!$F$9","v":0},"Standing Data","I55",{"$f":"'Standing Data'!I60","v":0}]
[{"$f":"'Standing Data'!$D$15","v":{"$error":"#N/A"}},{"$f":"'Standing Data'!$F$15","v":0},{"$f":"'Standing Data'!$F$9","v":0},"Standing Data","I56",{"$f":"'Standing Data'!I61","v":0}]
[{"$f":"'Standing Data'!$D$15","v":{"$error":"#N/A"}},{"$f":"'Standing Data'!$F$15","v":0},{"$f":"'Standing Data'!$F$9","v":0},"Standing Data","I57",{"$f":"'Standing Data'!I62","v":0}]
[{"$f":"'Standing Data'!$D$15","v":{"$error":"#N/A"}},{"$f":"'Standing Data'!$F$15","v":0},{"$f":"'Standing Data'!$F$9","v":0},"Standing Data","I58",{"$f":"'Standing Data'!I63","v":0}]
[{"$f":"'Standing Data'!$D$15","v":{"$error":"#N/A"}},{"$f":"'Standing Data'!$F$15","v":0},{"$f":"'Standing Data'!$F$9","v":0},"Standing Data","I59",{"$f":"'Standing Data'!I64","v":0}]
[{"$f":"'Standing Data'!$D$15","v":{"$error":"#N/A"}},{"$f":"'Standing Data'!$F$15","v":0},{"$f":"'Standing Data'!$F$9","v":0},"Standing Data","I60",{"$f":"'Standing Data'!I65","v":0}]
[{"$f":"'Standing Data'!$D$15","v":{"$error":"#N/A"}},{"$f":"'Standing Data'!$F$15","v":0},{"$f":"'Standing Data'!$F$9","v":0},"Standing Data","I61",{"$f":"'Standing Data'!I66","v":0}]
[{"$f":"'Standing Data'!$D$15","v":{"$error":"#N/A"}},{"$f":"'Standing Data'!$F$15","v":0},{"$f":"'Standing Data'!$F$9","v":0},"Standing Data","I62",{"$f":"'Standing Data'!I67","v":0}]
[{"$f":"'Standing Data'!$D$15","v":{"$error":"#N/A"}},{"$f":"'Standing Data'!$F$15","v":0},{"$f":"'Standing Data'!$F$9","v":0},"Standing Data","I63",{"$f":"'Standing Data'!I68","v":0}]
[{"$f":"'Standing Data'!$D$15","v":{"$error":"#N/A"}},{"$f":"'Standing Data'!$F$15","v":0},{"$f":"'Standing Data'!$F$9","v":0},"Standing Data","I64",{"$f":"'Standing Data'!I69","v":0}]
[{"$f":"'Standing Data'!$D$15","v":{"$error":"#N/A"}},{"$f":"'Standing Data'!$F$15","v":0},{"$f":"'Standing Data'!$F$9","v":0},"Standing Data","I65",{"$f":"'Standing Data'!I70","v":0}]
[{"$f":"'Standing Data'!$D$15","v":{"$error":"#N/A"}},{"$f":"'Standing Data'!$F$15","v":0},{"$f":"'Standing Data'!$F$9","v":0},"Standing Data","I66",{"$f":"'Standing Data'!I71","v":0}]
[{"$f":"'Standing Data'!$D$15","v":{"$error":"#N/A"}},{"$f":"'Standing Data'!$F$15","v":0},{"$f":"'Standing Data'!$F$9","v":0},"Standing Data","I67",{"$f":"'Standing Data'!I72","v":0}]
[{"$f":"'Standing Data'!$D$15","v":{"$error":"#N/A"}},{"$f":"'Standing Data'!$F$15","v":0},{"$f":"'Standing Data'!$F$9","v":0},"Standing Data","I68",{"$f":"'Standing Data'!I73","v":0}]
[{"$f":"'Standing Data'!$D$15","v":{"$error":"#N/A"}},{"$f":"'Standing Data'!$F$15","v":0},{"$f":"'Standing Data'!$F$9","v":0},"Standing Data","I69",{"$f":"'Standing Data'!I74","v":0}]
[{"$f":"'Standing Data'!$D$15","v":{"$error":"#N/A"}},{"$f":"'Standing Data'!$F$15","v":0},{"$f":"'Standing Data'!$F$9","v":0},"Standing Data","I70",{"$f":"'Standing Data'!I75","v":0}]
[{"$f":"'Standing Data'!$D$15","v":{"$error":"#N/A"}},{"$f":"'Standing Data'!$F$15","v":0},{"$f":"'Standing Data'!$F$9","v":0},"Standing Data","I71",{"$f":"'Standing Data'!I76","v":0}]
[{"$f":"'Standing Data'!$D$15","v":{"$error":"#N/A"}},{"$f":"'Standing Data'!$F$15","v":0},{"$f":"'Standing Data'!$F$9","v":0},"Standing Data","I72",{"$f":"'Standing Data'!I77","v":0}]
[{"$f":"'Standing Data'!$D$15","v":{"$error":"#N/A"}},{"$f":"'Standing Data'!$F$15","v":0},{"$f":"'Standing Data'!$F$9","v":0},"Standing Data","I73",{"$f":"'Standing Data'!I78","v":0}]
[{"$f":"'Standing Data'!$D$15","v":{"$error":"#N/A"}},{"$f":"'Standing Data'!$F$15","v":0},{"$f":"'Standing Data'!$F$9","v":0},"Standing Data","I74",{"$f":"'Standing Data'!I79","v":0}]
[{"$f":"'Standing Data'!$D$15","v":{"$error":"#N/A"}},{"$f":"'Standing Data'!$F$15","v":0},{"$f":"'Standing Data'!$F$9","v":0},"Standing Data","I75",{"$f":"'Standing Data'!I80","v":0}]
[{"$f":"'Standing Data'!$D$15","v":{"$error":"#N/A"}},{"$f":"'Standing Data'!$F$15","v":0},{"$f":"'Standing Data'!$F$9","v":0},"Standing Data","I76",{"$f":"'Standing Data'!I81","v":0}]
[{"$f":"'Standing Data'!$D$15","v":{"$error":"#N/A"}},{"$f":"'Standing Data'!$F$15","v":0},{"$f":"'Standing Data'!$F$9","v":0},"Standing Data","I77",{"$f":"'Standing Data'!I82","v":0}]
[{"$f":"'Standing Data'!$D$15","v":{"$error":"#N/A"}},{"$f":"'Standing Data'!$F$15","v":0},{"$f":"'Standing Data'!$F$9","v":0},"Standing Data","I78",{"$f":"'Standing Data'!I83","v":0}]
[{"$f":"'Standing Data'!$D$15","v":{"$error":"#N/A"}},{"$f":"'Standing Data'!$F$15","v":0},{"$f":"'Standing Data'!$F$9","v":0},"Standing Data","I79",{"$f":"'Standing Data'!I84","v":0}]
[{"$f":"'Standing Data'!$D$15","v":{"$error":"#N/A"}},{"$f":"'Standing Data'!$F$15","v":0},{"$f":"'Standing Data'!$F$9","v":0},"Standing Data","I80",{"$f":"'Standing Data'!I85","v":0}]
[{"$f":"'Standing Data'!$D$15","v":{"$error":"#N/A"}},{"$f":"'Standing Data'!$F$15","v":0},{"$f":"'Standing Data'!$F$9","v":0},"Standing Data","I81",{"$f":"'Standing Data'!I86","v":0}]
[{"$f":"'Standing Data'!$D$15","v":{"$error":"#N/A"}},{"$f":"'Standing Data'!$F$15","v":0},{"$f":"'Standing Data'!$F$9","v":0},"Standing Data","I82",{"$f":"'Standing Data'!I87","v":0}]
[{"$f":"'Standing Data'!$D$15","v":{"$error":"#N/A"}},{"$f":"'Standing Data'!$F$15","v":0},{"$f":"'Standing Data'!$F$9","v":0},"Standing Data","I83",{"$f":"'Standing Data'!I88","v":0}]
[{"$f":"'Standing Data'!$D$15","v":{"$error":"#N/A"}},{"$f":"'Standing Data'!$F$15","v":0},{"$f":"'Standing Data'!$F$9","v":0},"Standing Data","I84",{"$f":"'Standing Data'!I89","v":0}]
[{"$f":"'Standing Data'!$D$15","v":{"$error":"#N/A"}},{"$f":"'Standing Data'!$F$15","v":0},{"$f":"'Standing Data'!$F$9","v":0},"Standing Data","I85",{"$f":"'Standing Data'!I90","v":0}]
[{"$f":"'Standing Data'!$D$15","v":{"$error":"#N/A"}},{"$f":"'Standing Data'!$F$15","v":0},{"$f":"'Standing Data'!$F$9","v":0},"Standing Data","I86",{"$f":"'Standing Data'!I91","v":0}]
[{"$f":"'Standing Data'!$D$15","v":{"$error":"#N/A"}},{"$f":"'Standing Data'!$F$15","v":0},{"$f":"'Standing Data'!$F$9","v":0},"Standing Data","I87",{"$f":"'Standing Data'!I92","v":0}]
[{"$f":"'Standing Data'!$D$15","v":{"$error":"#N/A"}},{"$f":"'Standing Data'!$F$15","v":0},{"$f":"'Standing Data'!$F$9","v":0},"Standing Data","I88",{"$f":"'Standing Data'!I93","v":0}]
[{"$f":"'Standing Data'!$D$15","v":{"$error":"#N/A"}},{"$f":"'Standing Data'!$F$15","v":0},{"$f":"'Standing Data'!$F$9","v":0},"Standing Data","I89",{"$f":"'Standing Data'!I94","v":0}]
[{"$f":"'Standing Data'!$D$15","v":{"$error":"#N/A"}},{"$f":"'Standing Data'!$F$15","v":0},{"$f":"'Standing Data'!$F$9","v":0},"Standing Data","I90",{"$f":"'Standing Data'!I95","v":0}]
[{"$f":"'Standing Data'!$D$15","v":{"$error":"#N/A"}},{"$f":"'Standing Data'!$F$15","v":0},{"$f":"'Standing Data'!$F$9","v":0},"Standing Data","I91",{"$f":"'Standing Data'!I96","v":0}]
[{"$f":"'Standing Data'!$D$15","v":{"$error":"#N/A"}},{"$f":"'Standing Data'!$F$15","v":0},{"$f":"'Standing Data'!$F$9","v":0},"Standing Data","I92",{"$f":"'Standing Data'!I97","v":0}]
[{"$f":"'Standing Data'!$D$15","v":{"$error":"#N/A"}},{"$f":"'Standing Data'!$F$15","v":0},{"$f":"'Standing Data'!$F$9","v":0},"Standing Data","I93",{"$f":"'Standing Data'!I98","v":0}]
[{"$f":"'Standing Data'!$D$15","v":{"$error":"#N/A"}},{"$f":"'Standing Data'!$F$15","v":0},{"$f":"'Standing Data'!$F$9","v":0},"Standing Data","I94",{"$f":"'Standing Data'!I99","v":0}]
[{"$f":"'Standing Data'!$D$15","v":{"$error":"#N/A"}},{"$f":"'Standing Data'!$F$15","v":0},{"$f":"'Standing Data'!$F$9","v":0},"Standing Data","I95",{"$f":"'Standing Data'!I100","v":0}]
[{"$f":"'Standing Data'!$D$15","v":{"$error":"#N/A"}},{"$f":"'Standing Data'!$F$15","v":0},{"$f":"'Standing Data'!$F$9","v":0},"Standing Data","I96",{"$f":"'Standing Data'!I101","v":0}]
[{"$f":"'Standing Data'!$D$15","v":{"$error":"#N/A"}},{"$f":"'Standing Data'!$F$15","v":0},{"$f":"'Standing Data'!$F$9","v":0},"Standing Data","I97",{"$f":"'Standing Data'!I102","v":0}]
[{"$f":"'Standing Data'!$D$15","v":{"$error":"#N/A"}},{"$f":"'Standing Data'!$F$15","v":0},{"$f":"'Standing Data'!$F$9","v":0},"Standing Data","I98",{"$f":"'Standing Data'!I103","v":0}]
[{"$f":"'Standing Data'!$D$15","v":{"$error":"#N/A"}},{"$f":"'Standing Data'!$F$15","v":0},{"$f":"'Standing Data'!$F$9","v":0},"Standing Data","I99",{"$f":"'Standing Data'!I104","v":0}]
[{"$f":"'Standing Data'!$D$15","v":{"$error":"#N/A"}},{"$f":"'Standing Data'!$F$15","v":0},{"$f":"'Standing Data'!$F$9","v":0},"Standing Data","I100",{"$f":"'Standing Data'!I105","v":0}]
[{"$f":"'Standing Data'!$D$15","v":{"$error":"#N/A"}},{"$f":"'Standing Data'!$F$15","v":0},{"$f":"'Standing Data'!$F$9","v":0},"Standing Data","I101",{"$f":"'Standing Data'!I106","v":0}]
[{"$f":"'Standing Data'!$D$15","v":{"$error":"#N/A"}},{"$f":"'Standing Data'!$F$15","v":0},{"$f":"'Standing Data'!$F$9","v":0},"Standing Data","I102",{"$f":"'Standing Data'!I107","v":0}]
[{"$f":"'Standing Data'!$D$15","v":{"$error":"#N/A"}},{"$f":"'Standing Data'!$F$15","v":0},{"$f":"'Standing Data'!$F$9","v":0},"Standing Data","I103",{"$f":"'Standing Data'!I108","v":0}]
[{"$f":"'Standing Data'!$D$15","v":{"$error":"#N/A"}},{"$f":"'Standing Data'!$F$15","v":0},{"$f":"'Standing Data'!$F$9","v":0},"Standing Data","I104",{"$f":"'Standing Data'!I109","v":0}]
[{"$f":"'Standing Data'!$D$15","v":{"$error":"#N/A"}},{"$f":"'Standing Data'!$F$15","v":0},{"$f":"'Standing Data'!$F$9","v":0},"Standing Data","I105",{"$f":"'Standing Data'!I110","v":0}]
[{"$f":"'Standing Data'!$D$15","v":{"$error":"#N/A"}},{"$f":"'Standing Data'!$F$15","v":0},{"$f":"'Standing Data'!$F$9","v":0},"Standing Data","I106",{"$f":"'Standing Data'!I111","v":0}]
[{"$f":"'Standing Data'!$D$15","v":{"$error":"#N/A"}},{"$f":"'Standing Data'!$F$15","v":0},{"$f":"'Standing Data'!$F$9","v":0},"Standing Data","I107",{"$f":"'Standing Data'!I112","v":0}]
[{"$f":"'Standing Data'!$D$15","v":{"$error":"#N/A"}},{"$f":"'Standing Data'!$F$15","v":0},{"$f":"'Standing Data'!$F$9","v":0},"Standing Data","I108",{"$f":"'Standing Data'!I113","v":0}]
[{"$f":"'Standing Data'!$D$15","v":{"$error":"#N/A"}},{"$f":"'Standing Data'!$F$15","v":0},{"$f":"'Standing Data'!$F$9","v":0},"Standing Data","I109",{"$f":"'Standing Data'!I114","v":0}]
[{"$f":"'Standing Data'!$D$15","v":{"$error":"#N/A"}},{"$f":"'Standing Data'!$F$15","v":0},{"$f":"'Standing Data'!$F$9","v":0},"Standing Data","I110",{"$f":"'Standing Data'!I115","v":0}]
[{"$f":"'Standing Data'!$D$15","v":{"$error":"#N/A"}},{"$f":"'Standing Data'!$F$15","v":0},{"$f":"'Standing Data'!$F$9","v":0},"Standing Data","I111",{"$f":"'Standing Data'!I116","v":0}]
[{"$f":"'Standing Data'!$D$15","v":{"$error":"#N/A"}},{"$f":"'Standing Data'!$F$15","v":0},{"$f":"'Standing Data'!$F$9","v":0},"Standing Data","I112",{"$f":"'Standing Data'!I117","v":0}]
[{"$f":"'Standing Data'!$D$15","v":{"$error":"#N/A"}},{"$f":"'Standing Data'!$F$15","v":0},{"$f":"'Standing Data'!$F$9","v":0},"Standing Data","I113",{"$f":"'Standing Data'!I118","v":0}]
[{"$f":"'Standing Data'!$D$15","v":{"$error":"#N/A"}},{"$f":"'Standing Data'!$F$15","v":0},{"$f":"'Standing Data'!$F$9","v":0},"Standing Data","I114",{"$f":"'Standing Data'!I119","v":0}]
[{"$f":"'Standing Data'!$D$15","v":{"$error":"#N/A"}},{"$f":"'Standing Data'!$F$15","v":0},{"$f":"'Standing Data'!$F$9","v":0},"Standing Data","I115",{"$f":"'Standing Data'!I120","v":0}]
[{"$f":"'Standing Data'!$D$15","v":{"$error":"#N/A"}},{"$f":"'Standing Data'!$F$15","v":0},{"$f":"'Standing Data'!$F$9","v":0},"Standing Data","I116",{"$f":"'Standing Data'!I121","v":0}]
[{"$f":"'Standing Data'!$D$15","v":{"$error":"#N/A"}},{"$f":"'Standing Data'!$F$15","v":0},{"$f":"'Standing Data'!$F$9","v":0},"Standing Data","I117",{"$f":"'Standing Data'!I122","v":0}]
[{"$f":"'Standing Data'!$D$15","v":{"$error":"#N/A"}},{"$f":"'Standing Data'!$F$15","v":0},{"$f":"'Standing Data'!$F$9","v":0},"Standing Data","I118",{"$f":"'Standing Data'!I123","v":0}]
[{"$f":"'Standing Data'!$D$15","v":{"$error":"#N/A"}},{"$f":"'Standing Data'!$F$15","v":0},{"$f":"'Standing Data'!$F$9","v":0},"Standing Data","I119",{"$f":"'Standing Data'!I124","v":0}]
[{"$f":"'Standing Data'!$D$15","v":{"$error":"#N/A"}},{"$f":"'Standing Data'!$F$15","v":0},{"$f":"'Standing Data'!$F$9","v":0},"Standing Data","I120",{"$f":"'Standing Data'!I125","v":0}]
[{"$f":"'Standing Data'!$D$15","v":{"$error":"#N/A"}},{"$f":"'Standing Data'!$F$15","v":0},{"$f":"'Standing Data'!$F$9","v":0},"Standing Data","I121",{"$f":"'Standing Data'!I126","v":0}]
[{"$f":"'Standing Data'!$D$15","v":{"$error":"#N/A"}},{"$f":"'Standing Data'!$F$15","v":0},{"$f":"'Standing Data'!$F$9","v":0},"Standing Data","I122",{"$f":"'Standing Data'!I127","v":0}]
[{"$f":"'Standing Data'!$D$15","v":{"$error":"#N/A"}},{"$f":"'Standing Data'!$F$15","v":0},{"$f":"'Standing Data'!$F$9","v":0},"Standing Data","I123",{"$f":"'Standing Data'!I128","v":0}]
[{"$f":"'Standing Data'!$D$15","v":{"$error":"#N/A"}},{"$f":"'Standing Data'!$F$15","v":0},{"$f":"'Standing Data'!$F$9","v":0},"Standing Data","I124",{"$f":"'Standing Data'!I129","v":0}]
[{"$f":"'Standing Data'!$D$15","v":{"$error":"#N/A"}},{"$f":"'Standing Data'!$F$15","v":0},{"$f":"'Standing Data'!$F$9","v":0},"Standing Data","I125",{"$f":"'Standing Data'!I130","v":0}]
[{"$f":"'Standing Data'!$D$15","v":{"$error":"#N/A"}},{"$f":"'Standing Data'!$F$15","v":0},{"$f":"'Standing Data'!$F$9","v":0},"Standing Data","I126",{"$f":"'Standing Data'!I131","v":0}]
[{"$f":"'Standing Data'!$D$15","v":{"$error":"#N/A"}},{"$f":"'Standing Data'!$F$15","v":0},{"$f":"'Standing Data'!$F$9","v":0},"Standing Data","I127",{"$f":"'Standing Data'!I132","v":0}]
[{"$f":"'Standing Data'!$D$15","v":{"$error":"#N/A"}},{"$f":"'Standing Data'!$F$15","v":0},{"$f":"'Standing Data'!$F$9","v":0},"Standing Data","I128",{"$f":"'Standing Data'!I133","v":0}]
[{"$f":"'Standing Data'!$D$15","v":{"$error":"#N/A"}},{"$f":"'Standing Data'!$F$15","v":0},{"$f":"'Standing Data'!$F$9","v":0},"Standing Data","I129",{"$f":"'Standing Data'!I134","v":0}]
[{"$f":"'Standing Data'!$D$15","v":{"$error":"#N/A"}},{"$f":"'Standing Data'!$F$15","v":0},{"$f":"'Standing Data'!$F$9","v":0},"Standing Data","I130",{"$f":"'Standing Data'!I135","v":0}]
[{"$f":"'Standing Data'!$D$15","v":{"$error":"#N/A"}},{"$f":"'Standing Data'!$F$15","v":0},{"$f":"'Standing Data'!$F$9","v":0},"Standing Data","I131",{"$f":"'Standing Data'!I136","v":0}]
[{"$f":"'Standing Data'!$D$15","v":{"$error":"#N/A"}},{"$f":"'Standing Data'!$F$15","v":0},{"$f":"'Standing Data'!$F$9","v":0},"Standing Data","I132",{"$f":"'Standing Data'!I137","v":0}]
[{"$f":"'Standing Data'!$D$15","v":{"$error":"#N/A"}},{"$f":"'Standing Data'!$F$15","v":0},{"$f":"'Standing Data'!$F$9","v":0},"Standing Data","I133",{"$f":"'Standing Data'!I138","v":0}]
[{"$f":"'Standing Data'!$D$15","v":{"$error":"#N/A"}},{"$f":"'Standing Data'!$F$15","v":0},{"$f":"'Standing Data'!$F$9","v":0},"Standing Data","I134",{"$f":"'Standing Data'!I139","v":0}]
[{"$f":"'Standing Data'!$D$15","v":{"$error":"#N/A"}},{"$f":"'Standing Data'!$F$15","v":0},{"$f":"'Standing Data'!$F$9","v":0},"Standing Data","I135",{"$f":"'Standing Data'!I140","v":0}]
[{"$f":"'Standing Data'!$D$15","v":{"$error":"#N/A"}},{"$f":"'Standing Data'!$F$15","v":0},{"$f":"'Standing Data'!$F$9","v":0},"Standing Data","I136",{"$f":"'Standing Data'!I141","v":0}]
[{"$f":"'Standing Data'!$D$15","v":{"$error":"#N/A"}},{"$f":"'Standing Data'!$F$15","v":0},{"$f":"'Standing Data'!$F$9","v":0},"Standing Data","I137",{"$f":"'Standing Data'!I142","v":0}]
[{"$f":"'Standing Data'!$D$15","v":{"$error":"#N/A"}},{"$f":"'Standing Data'!$F$15","v":0},{"$f":"'Standing Data'!$F$9","v":0},"Standing Data","I138",{"$f":"'Standing Data'!I143","v":0}]
[{"$f":"'Standing Data'!$D$15","v":{"$error":"#N/A"}},{"$f":"'Standing Data'!$F$15","v":0},{"$f":"'Standing Data'!$F$9","v":0},"Standing Data","I139",{"$f":"'Standing Data'!I144","v":0}]
[{"$f":"'Standing Data'!$D$15","v":{"$error":"#N/A"}},{"$f":"'Standing Data'!$F$15","v":0},{"$f":"'Standing Data'!$F$9","v":0},"Standing Data","I140",{"$f":"'Standing Data'!I145","v":0}]
[{"$f":"'Standing Data'!$D$15","v":{"$error":"#N/A"}},{"$f":"'Standing Data'!$F$15","v":0},{"$f":"'Standing Data'!$F$9","v":0},"Standing Data","I141",{"$f":"'Standing Data'!I146","v":0}]
[{"$f":"'Standing Data'!$D$15","v":{"$error":"#N/A"}},{"$f":"'Standing Data'!$F$15","v":0},{"$f":"'Standing Data'!$F$9","v":0},"Standing Data","I142",{"$f":"'Standing Data'!I147","v":0}]
[{"$f":"'Standing Data'!$D$15","v":{"$error":"#N/A"}},{"$f":"'Standing Data'!$F$15","v":0},{"$f":"'Standing Data'!$F$9","v":0},"Standing Data","I143",{"$f":"'Standing Data'!I148","v":0}]
[{"$f":"'Standing Data'!$D$15","v":{"$error":"#N/A"}},{"$f":"'Standing Data'!$F$15","v":0},{"$f":"'Standing Data'!$F$9","v":0},"Standing Data","M44",{"$f":"'Standing Data'!M49","v":0}]
[{"$f":"'Standing Data'!$D$15","v":{"$error":"#N/A"}},{"$f":"'Standing Data'!$F$15","v":0},{"$f":"'Standing Data'!$F$9","v":0},"Standing Data","M45",{"$f":"'Standing Data'!M50","v":0}]
[{"$f":"'Standing Data'!$D$15","v":{"$error":"#N/A"}},{"$f":"'Standing Data'!$F$15","v":0},{"$f":"'Standing Data'!$F$9","v":0},"Standing Data","M46",{"$f":"'Standing Data'!M51","v":0}]
[{"$f":"'Standing Data'!$D$15","v":{"$error":"#N/A"}},{"$f":"'Standing Data'!$F$15","v":0},{"$f":"'Standing Data'!$F$9","v":0},"Standing Data","M47",{"$f":"'Standing Data'!M52","v":0}]
[{"$f":"'Standing Data'!$D$15","v":{"$error":"#N/A"}},{"$f":"'Standing Data'!$F$15","v":0},{"$f":"'Standing Data'!$F$9","v":0},"Standing Data","M48",{"$f":"'Standing Data'!M53","v":0}]
[{"$f":"'Standing Data'!$D$15","v":{"$error":"#N/A"}},{"$f":"'Standing Data'!$F$15","v":0},{"$f":"'Standing Data'!$F$9","v":0},"Standing Data","M49",{"$f":"'Standing Data'!M54","v":0}]
[{"$f":"'Standing Data'!$D$15","v":{"$error":"#N/A"}},{"$f":"'Standing Data'!$F$15","v":0},{"$f":"'Standing Data'!$F$9","v":0},"Standing Data","M50",{"$f":"'Standing Data'!M55","v":0}]
[{"$f":"'Standing Data'!$D$15","v":{"$error":"#N/A"}},{"$f":"'Standing Data'!$F$15","v":0},{"$f":"'Standing Data'!$F$9","v":0},"Standing Data","M51",{"$f":"'Standing Data'!M56","v":0}]
[{"$f":"'Standing Data'!$D$15","v":{"$error":"#N/A"}},{"$f":"'Standing Data'!$F$15","v":0},{"$f":"'Standing Data'!$F$9","v":0},"Standing Data","M52",{"$f":"'Standing Data'!M57","v":0}]
[{"$f":"'Standing Data'!$D$15","v":{"$error":"#N/A"}},{"$f":"'Standing Data'!$F$15","v":0},{"$f":"'Standing Data'!$F$9","v":0},"Standing Data","M53",{"$f":"'Standing Data'!M58","v":0}]
[{"$f":"'Standing Data'!$D$15","v":{"$error":"#N/A"}},{"$f":"'Standing Data'!$F$15","v":0},{"$f":"'Standing Data'!$F$9","v":0},"Standing Data","M54",{"$f":"'Standing Data'!M59","v":0}]
[{"$f":"'Standing Data'!$D$15","v":{"$error":"#N/A"}},{"$f":"'Standing Data'!$F$15","v":0},{"$f":"'Standing Data'!$F$9","v":0},"Standing Data","M55",{"$f":"'Standing Data'!M60","v":0}]
[{"$f":"'Standing Data'!$D$15","v":{"$error":"#N/A"}},{"$f":"'Standing Data'!$F$15","v":0},{"$f":"'Standing Data'!$F$9","v":0},"Standing Data","M56",{"$f":"'Standing Data'!M61","v":0}]
[{"$f":"'Standing Data'!$D$15","v":{"$error":"#N/A"}},{"$f":"'Standing Data'!$F$15","v":0},{"$f":"'Standing Data'!$F$9","v":0},"Standing Data","M57",{"$f":"'Standing Data'!M62","v":0}]
[{"$f":"'Standing Data'!$D$15","v":{"$error":"#N/A"}},{"$f":"'Standing Data'!$F$15","v":0},{"$f":"'Standing Data'!$F$9","v":0},"Standing Data","M58",{"$f":"'Standing Data'!M63","v":0}]
[{"$f":"'Standing Data'!$D$15","v":{"$error":"#N/A"}},{"$f":"'Standing Data'!$F$15","v":0},{"$f":"'Standing Data'!$F$9","v":0},"Standing Data","M59",{"$f":"'Standing Data'!M64","v":0}]
[{"$f":"'Standing Data'!$D$15","v":{"$error":"#N/A"}},{"$f":"'Standing Data'!$F$15","v":0},{"$f":"'Standing Data'!$F$9","v":0},"Standing Data","M60",{"$f":"'Standing Data'!M65","v":0}]
[{"$f":"'Standing Data'!$D$15","v":{"$error":"#N/A"}},{"$f":"'Standing Data'!$F$15","v":0},{"$f":"'Standing Data'!$F$9","v":0},"Standing Data","M61",{"$f":"'Standing Data'!M66","v":0}]
[{"$f":"'Standing Data'!$D$15","v":{"$error":"#N/A"}},{"$f":"'Standing Data'!$F$15","v":0},{"$f":"'Standing Data'!$F$9","v":0},"Standing Data","M62",{"$f":"'Standing Data'!M67","v":0}]
[{"$f":"'Standing Data'!$D$15","v":{"$error":"#N/A"}},{"$f":"'Standing Data'!$F$15","v":0},{"$f":"'Standing Data'!$F$9","v":0},"Standing Data","M63",{"$f":"'Standing Data'!M68","v":0}]
[{"$f":"'Standing Data'!$D$15","v":{"$error":"#N/A"}},{"$f":"'Standing Data'!$F$15","v":0},{"$f":"'Standing Data'!$F$9","v":0},"Standing Data","M64",{"$f":"'Standing Data'!M69","v":0}]
[{"$f":"'Standing Data'!$D$15","v":{"$error":"#N/A"}},{"$f":"'Standing Data'!$F$15","v":0},{"$f":"'Standing Data'!$F$9","v":0},"Standing Data","M65",{"$f":"'Standing Data'!M70","v":0}]
[{"$f":"'Standing Data'!$D$15","v":{"$error":"#N/A"}},{"$f":"'Standing Data'!$F$15","v":0},{"$f":"'Standing Data'!$F$9","v":0},"Standing Data","M66",{"$f":"'Standing Data'!M71","v":0}]
[{"$f":"'Standing Data'!$D$15","v":{"$error":"#N/A"}},{"$f":"'Standing Data'!$F$15","v":0},{"$f":"'Standing Data'!$F$9","v":0},"Standing Data","M67",{"$f":"'Standing Data'!M72","v":0}]
[{"$f":"'Standing Data'!$D$15","v":{"$error":"#N/A"}},{"$f":"'Standing Data'!$F$15","v":0},{"$f":"'Standing Data'!$F$9","v":0},"Standing Data","M68",{"$f":"'Standing Data'!M73","v":0}]
[{"$f":"'Standing Data'!$D$15","v":{"$error":"#N/A"}},{"$f":"'Standing Data'!$F$15","v":0},{"$f":"'Standing Data'!$F$9","v":0},"Standing Data","M69",{"$f":"'Standing Data'!M74","v":0}]
[{"$f":"'Standing Data'!$D$15","v":{"$error":"#N/A"}},{"$f":"'Standing Data'!$F$15","v":0},{"$f":"'Standing Data'!$F$9","v":0},"Standing Data","M70",{"$f":"'Standing Data'!M75","v":0}]
[{"$f":"'Standing Data'!$D$15","v":{"$error":"#N/A"}},{"$f":"'Standing Data'!$F$15","v":0},{"$f":"'Standing Data'!$F$9","v":0},"Standing Data","M71",{"$f":"'Standing Data'!M76","v":0}]
[{"$f":"'Standing Data'!$D$15","v":{"$error":"#N/A"}},{"$f":"'Standing Data'!$F$15","v":0},{"$f":"'Standing Data'!$F$9","v":0},"Standing Data","M72",{"$f":"'Standing Data'!M77","v":0}]
[{"$f":"'Standing Data'!$D$15","v":{"$error":"#N/A"}},{"$f":"'Standing Data'!$F$15","v":0},{"$f":"'Standing Data'!$F$9","v":0},"Standing Data","M73",{"$f":"'Standing Data'!M78","v":0}]
[{"$f":"'Standing Data'!$D$15","v":{"$error":"#N/A"}},{"$f":"'Standing Data'!$F$15","v":0},{"$f":"'Standing Data'!$F$9","v":0},"Standing Data","M74",{"$f":"'Standing Data'!M79","v":0}]
[{"$f":"'Standing Data'!$D$15","v":{"$error":"#N/A"}},{"$f":"'Standing Data'!$F$15","v":0},{"$f":"'Standing Data'!$F$9","v":0},"Standing Data","M75",{"$f":"'Standing Data'!M80","v":0}]
[{"$f":"'Standing Data'!$D$15","v":{"$error":"#N/A"}},{"$f":"'Standing Data'!$F$15","v":0},{"$f":"'Standing Data'!$F$9","v":0},"Standing Data","M76",{"$f":"'Standing Data'!M81","v":0}]
[{"$f":"'Standing Data'!$D$15","v":{"$error":"#N/A"}},{"$f":"'Standing Data'!$F$15","v":0},{"$f":"'Standing Data'!$F$9","v":0},"Standing Data","M77",{"$f":"'Standing Data'!M82","v":0}]
[{"$f":"'Standing Data'!$D$15","v":{"$error":"#N/A"}},{"$f":"'Standing Data'!$F$15","v":0},{"$f":"'Standing Data'!$F$9","v":0},"Standing Data","M78",{"$f":"'Standing Data'!M83","v":0}]
[{"$f":"'Standing Data'!$D$15","v":{"$error":"#N/A"}},{"$f":"'Standing Data'!$F$15","v":0},{"$f":"'Standing Data'!$F$9","v":0},"Standing Data","M79",{"$f":"'Standing Data'!M84","v":0}]
[{"$f":"'Standing Data'!$D$15","v":{"$error":"#N/A"}},{"$f":"'Standing Data'!$F$15","v":0},{"$f":"'Standing Data'!$F$9","v":0},"Standing Data","M80",{"$f":"'Standing Data'!M85","v":0}]
[{"$f":"'Standing Data'!$D$15","v":{"$error":"#N/A"}},{"$f":"'Standing Data'!$F$15","v":0},{"$f":"'Standing Data'!$F$9","v":0},"Standing Data","M81",{"$f":"'Standing Data'!M86","v":0}]
[{"$f":"'Standing Data'!$D$15","v":{"$error":"#N/A"}},{"$f":"'Standing Data'!$F$15","v":0},{"$f":"'Standing Data'!$F$9","v":0},"Standing Data","M82",{"$f":"'Standing Data'!M87","v":0}]
[{"$f":"'Standing Data'!$D$15","v":{"$error":"#N/A"}},{"$f":"'Standing Data'!$F$15","v":0},{"$f":"'Standing Data'!$F$9","v":0},"Standing Data","M83",{"$f":"'Standing Data'!M88","v":0}]
[{"$f":"'Standing Data'!$D$15","v":{"$error":"#N/A"}},{"$f":"'Standing Data'!$F$15","v":0},{"$f":"'Standing Data'!$F$9","v":0},"Standing Data","M84",{"$f":"'Standing Data'!M89","v":0}]
[{"$f":"'Standing Data'!$D$15","v":{"$error":"#N/A"}},{"$f":"'Standing Data'!$F$15","v":0},{"$f":"'Standing Data'!$F$9","v":0},"Standing Data","M85",{"$f":"'Standing Data'!M90","v":0}]
[{"$f":"'Standing Data'!$D$15","v":{"$error":"#N/A"}},{"$f":"'Standing Data'!$F$15","v":0},{"$f":"'Standing Data'!$F$9","v":0},"Standing Data","M86",{"$f":"'Standing Data'!M91","v":0}]
[{"$f":"'Standing Data'!$D$15","v":{"$error":"#N/A"}},{"$f":"'Standing Data'!$F$15","v":0},{"$f":"'Standing Data'!$F$9","v":0},"Standing Data","M87",{"$f":"'Standing Data'!M92","v":0}]
[{"$f":"'Standing Data'!$D$15","v":{"$error":"#N/A"}},{"$f":"'Standing Data'!$F$15","v":0},{"$f":"'Standing Data'!$F$9","v":0},"Standing Data","M88",{"$f":"'Standing Data'!M93","v":0}]
[{"$f":"'Standing Data'!$D$15","v":{"$error":"#N/A"}},{"$f":"'Standing Data'!$F$15","v":0},{"$f":"'Standing Data'!$F$9","v":0},"Standing Data","M89",{"$f":"'Standing Data'!M94","v":0}]
[{"$f":"'Standing Data'!$D$15","v":{"$error":"#N/A"}},{"$f":"'Standing Data'!$F$15","v":0},{"$f":"'Standing Data'!$F$9","v":0},"Standing Data","M90",{"$f":"'Standing Data'!M95","v":0}]
[{"$f":"'Standing Data'!$D$15","v":{"$error":"#N/A"}},{"$f":"'Standing Data'!$F$15","v":0},{"$f":"'Standing Data'!$F$9","v":0},"Standing Data","M91",{"$f":"'Standing Data'!M96","v":0}]
[{"$f":"'Standing Data'!$D$15","v":{"$error":"#N/A"}},{"$f":"'Standing Data'!$F$15","v":0},{"$f":"'Standing Data'!$F$9","v":0},"Standing Data","M92",{"$f":"'Standing Data'!M97","v":0}]
[{"$f":"'Standing Data'!$D$15","v":{"$error":"#N/A"}},{"$f":"'Standing Data'!$F$15","v":0},{"$f":"'Standing Data'!$F$9","v":0},"Standing Data","M93",{"$f":"'Standing Data'!M98","v":0}]
[{"$f":"'Standing Data'!$D$15","v":{"$error":"#N/A"}},{"$f":"'Standing Data'!$F$15","v":0},{"$f":"'Standing Data'!$F$9","v":0},"Standing Data","M94",{"$f":"'Standing Data'!M99","v":0}]
[{"$f":"'Standing Data'!$D$15","v":{"$error":"#N/A"}},{"$f":"'Standing Data'!$F$15","v":0},{"$f":"'Standing Data'!$F$9","v":0},"Standing Data","M95",{"$f":"'Standing Data'!M100","v":0}]
[{"$f":"'Standing Data'!$D$15","v":{"$error":"#N/A"}},{"$f":"'Standing Data'!$F$15","v":0},{"$f":"'Standing Data'!$F$9","v":0},"Standing Data","M96",{"$f":"'Standing Data'!M101","v":0}]
[{"$f":"'Standing Data'!$D$15","v":{"$error":"#N/A"}},{"$f":"'Standing Data'!$F$15","v":0},{"$f":"'Standing Data'!$F$9","v":0},"Standing Data","M97",{"$f":"'Standing Data'!M102","v":0}]
[{"$f":"'Standing Data'!$D$15","v":{"$error":"#N/A"}},{"$f":"'Standing Data'!$F$15","v":0},{"$f":"'Standing Data'!$F$9","v":0},"Standing Data","M98",{"$f":"'Standing Data'!M103","v":0}]
[{"$f":"'Standing Data'!$D$15","v":{"$error":"#N/A"}},{"$f":"'Standing Data'!$F$15","v":0},{"$f":"'Standing Data'!$F$9","v":0},"Standing Data","M99",{"$f":"'Standing Data'!M104","v":0}]
[{"$f":"'Standing Data'!$D$15","v":{"$error":"#N/A"}},{"$f":"'Standing Data'!$F$15","v":0},{"$f":"'Standing Data'!$F$9","v":0},"Standing Data","M100",{"$f":"'Standing Data'!M105","v":0}]
[{"$f":"'Standing Data'!$D$15","v":{"$error":"#N/A"}},{"$f":"'Standing Data'!$F$15","v":0},{"$f":"'Standing Data'!$F$9","v":0},"Standing Data","M101",{"$f":"'Standing Data'!M106","v":0}]
[{"$f":"'Standing Data'!$D$15","v":{"$error":"#N/A"}},{"$f":"'Standing Data'!$F$15","v":0},{"$f":"'Standing Data'!$F$9","v":0},"Standing Data","M102",{"$f":"'Standing Data'!M107","v":0}]
[{"$f":"'Standing Data'!$D$15","v":{"$error":"#N/A"}},{"$f":"'Standing Data'!$F$15","v":0},{"$f":"'Standing Data'!$F$9","v":0},"Standing Data","M103",{"$f":"'Standing Data'!M108","v":0}]
[{"$f":"'Standing Data'!$D$15","v":{"$error":"#N/A"}},{"$f":"'Standing Data'!$F$15","v":0},{"$f":"'Standing Data'!$F$9","v":0},"Standing Data","M104",{"$f":"'Standing Data'!M109","v":0}]
[{"$f":"'Standing Data'!$D$15","v":{"$error":"#N/A"}},{"$f":"'Standing Data'!$F$15","v":0},{"$f":"'Standing Data'!$F$9","v":0},"Standing Data","M105",{"$f":"'Standing Data'!M110","v":0}]
[{"$f":"'Standing Data'!$D$15","v":{"$error":"#N/A"}},{"$f":"'Standing Data'!$F$15","v":0},{"$f":"'Standing Data'!$F$9","v":0},"Standing Data","M106",{"$f":"'Standing Data'!M111","v":0}]
[{"$f":"'Standing Data'!$D$15","v":{"$error":"#N/A"}},{"$f":"'Standing Data'!$F$15","v":0},{"$f":"'Standing Data'!$F$9","v":0},"Standing Data","M107",{"$f":"'Standing Data'!M112","v":0}]
[{"$f":"'Standing Data'!$D$15","v":{"$error":"#N/A"}},{"$f":"'Standing Data'!$F$15","v":0},{"$f":"'Standing Data'!$F$9","v":0},"Standing Data","M108",{"$f":"'Standing Data'!M113","v":0}]
[{"$f":"'Standing Data'!$D$15","v":{"$error":"#N/A"}},{"$f":"'Standing Data'!$F$15","v":0},{"$f":"'Standing Data'!$F$9","v":0},"Standing Data","M109",{"$f":"'Standing Data'!M114","v":0}]
[{"$f":"'Standing Data'!$D$15","v":{"$error":"#N/A"}},{"$f":"'Standing Data'!$F$15","v":0},{"$f":"'Standing Data'!$F$9","v":0},"Standing Data","M110",{"$f":"'Standing Data'!M115","v":0}]
[{"$f":"'Standing Data'!$D$15","v":{"$error":"#N/A"}},{"$f":"'Standing Data'!$F$15","v":0},{"$f":"'Standing Data'!$F$9","v":0},"Standing Data","M111",{"$f":"'Standing Data'!M116","v":0}]
[{"$f":"'Standing Data'!$D$15","v":{"$error":"#N/A"}},{"$f":"'Standing Data'!$F$15","v":0},{"$f":"'Standing Data'!$F$9","v":0},"Standing Data","M112",{"$f":"'Standing Data'!M117","v":0}]
[{"$f":"'Standing Data'!$D$15","v":{"$error":"#N/A"}},{"$f":"'Standing Data'!$F$15","v":0},{"$f":"'Standing Data'!$F$9","v":0},"Standing Data","M113",{"$f":"'Standing Data'!M118","v":0}]
[{"$f":"'Standing Data'!$D$15","v":{"$error":"#N/A"}},{"$f":"'Standing Data'!$F$15","v":0},{"$f":"'Standing Data'!$F$9","v":0},"Standing Data","M114",{"$f":"'Standing Data'!M119","v":0}]
[{"$f":"'Standing Data'!$D$15","v":{"$error":"#N/A"}},{"$f":"'Standing Data'!$F$15","v":0},{"$f":"'Standing Data'!$F$9","v":0},"Standing Data","M115",{"$f":"'Standing Data'!M120","v":0}]
[{"$f":"'Standing Data'!$D$15","v":{"$error":"#N/A"}},{"$f":"'Standing Data'!$F$15","v":0},{"$f":"'Standing Data'!$F$9","v":0},"Standing Data","M116",{"$f":"'Standing Data'!M121","v":0}]
[{"$f":"'Standing Data'!$D$15","v":{"$error":"#N/A"}},{"$f":"'Standing Data'!$F$15","v":0},{"$f":"'Standing Data'!$F$9","v":0},"Standing Data","M117",{"$f":"'Standing Data'!M122","v":0}]
[{"$f":"'Standing Data'!$D$15","v":{"$error":"#N/A"}},{"$f":"'Standing Data'!$F$15","v":0},{"$f":"'Standing Data'!$F$9","v":0},"Standing Data","M118",{"$f":"'Standing Data'!M123","v":0}]
[{"$f":"'Standing Data'!$D$15","v":{"$error":"#N/A"}},{"$f":"'Standing Data'!$F$15","v":0},{"$f":"'Standing Data'!$F$9","v":0},"Standing Data","M119",{"$f":"'Standing Data'!M124","v":0}]
[{"$f":"'Standing Data'!$D$15","v":{"$error":"#N/A"}},{"$f":"'Standing Data'!$F$15","v":0},{"$f":"'Standing Data'!$F$9","v":0},"Standing Data","M120",{"$f":"'Standing Data'!M125","v":0}]
[{"$f":"'Standing Data'!$D$15","v":{"$error":"#N/A"}},{"$f":"'Standing Data'!$F$15","v":0},{"$f":"'Standing Data'!$F$9","v":0},"Standing Data","M121",{"$f":"'Standing Data'!M126","v":0}]
[{"$f":"'Standing Data'!$D$15","v":{"$error":"#N/A"}},{"$f":"'Standing Data'!$F$15","v":0},{"$f":"'Standing Data'!$F$9","v":0},"Standing Data","M122",{"$f":"'Standing Data'!M127","v":0}]
[{"$f":"'Standing Data'!$D$15","v":{"$error":"#N/A"}},{"$f":"'Standing Data'!$F$15","v":0},{"$f":"'Standing Data'!$F$9","v":0},"Standing Data","M123",{"$f":"'Standing Data'!M128","v":0}]
[{"$f":"'Standing Data'!$D$15","v":{"$error":"#N/A"}},{"$f":"'Standing Data'!$F$15","v":0},{"$f":"'Standing Data'!$F$9","v":0},"Standing Data","M124",{"$f":"'Standing Data'!M129","v":0}]
[{"$f":"'Standing Data'!$D$15","v":{"$error":"#N/A"}},{"$f":"'Standing Data'!$F$15","v":0},{"$f":"'Standing Data'!$F$9","v":0},"Standing Data","M125",{"$f":"'Standing Data'!M130","v":0}]
[{"$f":"'Standing Data'!$D$15","v":{"$error":"#N/A"}},{"$f":"'Standing Data'!$F$15","v":0},{"$f":"'Standing Data'!$F$9","v":0},"Standing Data","M126",{"$f":"'Standing Data'!M131","v":0}]
[{"$f":"'Standing Data'!$D$15","v":{"$error":"#N/A"}},{"$f":"'Standing Data'!$F$15","v":0},{"$f":"'Standing Data'!$F$9","v":0},"Standing Data","M127",{"$f":"'Standing Data'!M132","v":0}]
[{"$f":"'Standing Data'!$D$15","v":{"$error":"#N/A"}},{"$f":"'Standing Data'!$F$15","v":0},{"$f":"'Standing Data'!$F$9","v":0},"Standing Data","M128",{"$f":"'Standing Data'!M133","v":0}]
[{"$f":"'Standing Data'!$D$15","v":{"$error":"#N/A"}},{"$f":"'Standing Data'!$F$15","v":0},{"$f":"'Standing Data'!$F$9","v":0},"Standing Data","M129",{"$f":"'Standing Data'!M134","v":0}]
[{"$f":"'Standing Data'!$D$15","v":{"$error":"#N/A"}},{"$f":"'Standing Data'!$F$15","v":0},{"$f":"'Standing Data'!$F$9","v":0},"Standing Data","M130",{"$f":"'Standing Data'!M135","v":0}]
[{"$f":"'Standing Data'!$D$15","v":{"$error":"#N/A"}},{"$f":"'Standing Data'!$F$15","v":0},{"$f":"'Standing Data'!$F$9","v":0},"Standing Data","M131",{"$f":"'Standing Data'!M136","v":0}]
[{"$f":"'Standing Data'!$D$15","v":{"$error":"#N/A"}},{"$f":"'Standing Data'!$F$15","v":0},{"$f":"'Standing Data'!$F$9","v":0},"Standing Data","M132",{"$f":"'Standing Data'!M137","v":0}]
[{"$f":"'Standing Data'!$D$15","v":{"$error":"#N/A"}},{"$f":"'Standing Data'!$F$15","v":0},{"$f":"'Standing Data'!$F$9","v":0},"Standing Data","M133",{"$f":"'Standing Data'!M138","v":0}]
[{"$f":"'Standing Data'!$D$15","v":{"$error":"#N/A"}},{"$f":"'Standing Data'!$F$15","v":0},{"$f":"'Standing Data'!$F$9","v":0},"Standing Data","M134",{"$f":"'Standing Data'!M139","v":0}]
[{"$f":"'Standing Data'!$D$15","v":{"$error":"#N/A"}},{"$f":"'Standing Data'!$F$15","v":0},{"$f":"'Standing Data'!$F$9","v":0},"Standing Data","M135",{"$f":"'Standing Data'!M140","v":0}]
[{"$f":"'Standing Data'!$D$15","v":{"$error":"#N/A"}},{"$f":"'Standing Data'!$F$15","v":0},{"$f":"'Standing Data'!$F$9","v":0},"Standing Data","M136",{"$f":"'Standing Data'!M141","v":0}]
[{"$f":"'Standing Data'!$D$15","v":{"$error":"#N/A"}},{"$f":"'Standing Data'!$F$15","v":0},{"$f":"'Standing Data'!$F$9","v":0},"Standing Data","M137",{"$f":"'Standing Data'!M142","v":0}]
[{"$f":"'Standing Data'!$D$15","v":{"$error":"#N/A"}},{"$f":"'Standing Data'!$F$15","v":0},{"$f":"'Standing Data'!$F$9","v":0},"Standing Data","M138",{"$f":"'Standing Data'!M143","v":0}]
[{"$f":"'Standing Data'!$D$15","v":{"$error":"#N/A"}},{"$f":"'Standing Data'!$F$15","v":0},{"$f":"'Standing Data'!$F$9","v":0},"Standing Data","M139",{"$f":"'Standing Data'!M144","v":0}]
[{"$f":"'Standing Data'!$D$15","v":{"$error":"#N/A"}},{"$f":"'Standing Data'!$F$15","v":0},{"$f":"'Standing Data'!$F$9","v":0},"Standing Data","M140",{"$f":"'Standing Data'!M145","v":0}]
[{"$f":"'Standing Data'!$D$15","v":{"$error":"#N/A"}},{"$f":"'Standing Data'!$F$15","v":0},{"$f":"'Standing Data'!$F$9","v":0},"Standing Data","M141",{"$f":"'Standing Data'!M146","v":0}]
[{"$f":"'Standing Data'!$D$15","v":{"$error":"#N/A"}},{"$f":"'Standing Data'!$F$15","v":0},{"$f":"'Standing Data'!$F$9","v":0},"Standing Data","M142",{"$f":"'Standing Data'!M147","v":0}]
[{"$f":"'Standing Data'!$D$15","v":{"$error":"#N/A"}},{"$f":"'Standing Data'!$F$15","v":0},{"$f":"'Standing Data'!$F$9","v":0},"Standing Data","M143",{"$f":"'Standing Data'!M148","v":0}]
[{"$f":"'Standing Data'!$D$15","v":{"$error":"#N/A"}},{"$f":"'Standing Data'!$F$15","v":0},{"$f":"'Standing Data'!$F$9","v":0},"Standing Data","D146",{"$f":"'Standing Data'!D164","v":0}]
[{"$f":"'Standing Data'!$D$15","v":{"$error":"#N/A"}},{"$f":"'Standing Data'!$F$15","v":0},{"$f":"'Standing Data'!$F$9","v":0},"Standing Data","D149",{"$f":"'Standing Data'!D167","v":0}]
[{"$f":"'Standing Data'!$D$15","v":{"$error":"#N/A"}},{"$f":"'Standing Data'!$F$15","v":0},{"$f":"'Standing Data'!$F$9","v":0},"Standing Data","B158",{"$f":"'Standing Data'!B176","v":"Please type name here"}]
[{"$f":"'Standing Data'!$D$15","v":{"$error":"#N/A"}},{"$f":"'Standing Data'!$F$15","v":0},{"$f":"'Standing Data'!$F$9","v":0},"Standing Data","B161",{"$f":"'Standing Data'!B179","v":0}]
[{"$f":"'Standing Data'!$D$15","v":{"$error":"#N/A"}},{"$f":"'Standing Data'!$F$15","v":0},{"$f":"'Standing Data'!$F$9","v":0},"Fin.Return","B578",{"$f":"Fin.Return!B592","v":0}]
[{"$f":"'Standing Data'!$D$15","v":{"$error":"#N/A"}},{"$f":"'Standing Data'!$F$15","v":0},{"$f":"'Standing Data'!$F$9","v":0},"Fin.Return","D580",{"$f":"Fin.Return!D594","v":"No"}]
[{"$f":"'Standing Data'!$D$15","v":{"$error":"#N/A"}},{"$f":"'Standing Data'!$F$15","v":0},{"$f":"'Standing Data'!$F$9","v":0},"Fin.Return","B643",{"$f":"Fin.Return!B657","v":0}]
[{"$f":"'Standing Data'!$D$15","v":{"$error":"#N/A"}},{"$f":"'Standing Data'!$F$15","v":0},{"$f":"'Standing Data'!$F$9","v":0},"Fin.Return","C761",{"$f":"Fin.Return!C775","v":"Describe Other here"}]
[{"$f":"'Standing Data'!$D$15","v":{"$error":"#N/A"}},{"$f":"'Standing Data'!$F$15","v":0},{"$f":"'Standing Data'!$F$9","v":0},"Fin.Return","C832",{"$f":"Fin.Return!C955","v":"Scheme Name"}]
[{"$f":"'Standing Data'!$D$15","v":{"$error":"#N/A"}},{"$f":"'Standing Data'!$F$15","v":0},{"$f":"'Standing Data'!$F$9","v":0},"Fin.Return","C833",{"$f":"Fin.Return!C956","v":"Scheme Name"}]
[{"$f":"'Standing Data'!$D$15","v":{"$error":"#N/A"}},{"$f":"'Standing Data'!$F$15","v":0},{"$f":"'Standing Data'!$F$9","v":0},"Fin.Return","C834",{"$f":"Fin.Return!C957","v":"Scheme Name"}]
[{"$f":"'Standing Data'!$D$15","v":{"$error":"#N/A"}},{"$f":"'Standing Data'!$F$15","v":0},{"$f":"'Standing Data'!$F$9","v":0},"Fin.Return","E832",{"$f":"Fin.Return!E955","v":"Scheme Type"}]
[{"$f":"'Standing Data'!$D$15","v":{"$error":"#N/A"}},{"$f":"'Standing Data'!$F$15","v":0},{"$f":"'Standing Data'!$F$9","v":0},"Fin.Return","E833",{"$f":"Fin.Return!E956","v":"Scheme Type"}]
[{"$f":"'Standing Data'!$D$15","v":{"$error":"#N/A"}},{"$f":"'Standing Data'!$F$15","v":0},{"$f":"'Standing Data'!$F$9","v":0},"Fin.Return","E834",{"$f":"Fin.Return!E957","v":"Scheme Type"}]
[{"$f":"'Standing Data'!$D$15","v":{"$error":"#N/A"}},{"$f":"'Standing Data'!$F$15","v":0},{"$f":"'Standing Data'!$F$9","v":0},"Fin.Return","G904",{"$f":"Fin.Return!G1029","v":0}]
[{"$f":"'Standing Data'!$D$15","v":{"$error":"#N/A"}},{"$f":"'Standing Data'!$F$15","v":0},{"$f":"'Standing Data'!$F$9","v":0},"Fin.Return","H904",{"$f":"Fin.Return!H1029","v":0}]
[{"$f":"'Standing Data'!$D$15","v":{"$error":"#N/A"}},{"$f":"'Standing Data'!$F$15","v":0},{"$f":"'Standing Data'!$F$9","v":0},"Fin.Return","I904",{"$f":"Fin.Return!I1029","v":0}]
[{"$f":"'Standing Data'!$D$15","v":{"$error":"#N/A"}},{"$f":"'Standing Data'!$F$15","v":0},{"$f":"'Standing Data'!$F$9","v":0},"Fin.Return","J904",{"$f":"Fin.Return!J1029","v":0}]
[{"$f":"'Standing Data'!$D$15","v":{"$error":"#N/A"}},{"$f":"'Standing Data'!$F$15","v":0},{"$f":"'Standing Data'!$F$9","v":0},"Fin.Return","K904",{"$f":"Fin.Return!K1029","v":0}]
[{"$f":"'Standing Data'!$D$15","v":{"$error":"#N/A"}},{"$f":"'Standing Data'!$F$15","v":0},{"$f":"'Standing Data'!$F$9","v":0},"Fin.Return","L904",{"$f":"Fin.Return!L1029","v":0}]
[{"$f":"'Standing Data'!$D$15","v":{"$error":"#N/A"}},{"$f":"'Standing Data'!$F$15","v":0},{"$f":"'Standing Data'!$F$9","v":0},"Fin.Return","M904",{"$f":"Fin.Return!M1029","v":0}]
[{"$f":"'Standing Data'!$D$15","v":{"$error":"#N/A"}},{"$f":"'Standing Data'!$F$15","v":0},{"$f":"'Standing Data'!$F$9","v":0},"Fin.Return","N904",{"$f":"Fin.Return!N1029","v":0}]
[{"$f":"'Standing Data'!$D$15","v":{"$error":"#N/A"}},{"$f":"'Standing Data'!$F$15","v":0},{"$f":"'Standing Data'!$F$9","v":0},"Fin.Return","O904",{"$f":"Fin.Return!O1029","v":0}]
[{"$f":"'Standing Data'!$D$15","v":{"$error":"#N/A"}},{"$f":"'Standing Data'!$F$15","v":0},{"$f":"'Standing Data'!$F$9","v":0},"Fin.Return","P904",{"$f":"Fin.Return!P1029","v":0}]
[{"$f":"'Standing Data'!$D$15","v":{"$error":"#N/A"}},{"$f":"'Standing Data'!$F$15","v":0},{"$f":"'Standing Data'!$F$9","v":0},"Fin.Return","Q904",{"$f":"Fin.Return!Q1029","v":0}]
[{"$f":"'Standing Data'!$D$15","v":{"$error":"#N/A"}},{"$f":"'Standing Data'!$F$15","v":0},{"$f":"'Standing Data'!$F$9","v":0},"Fin.Return","R904",{"$f":"Fin.Return!R1029","v":0}]
[{"$f":"'Standing Data'!$D$15","v":{"$error":"#N/A"}},{"$f":"'Standing Data'!$F$15","v":0},{"$f":"'Standing Data'!$F$9","v":0},"Fin.Return","S904",{"$f":"Fin.Return!S1029","v":0}]
[{"$f":"'Standing Data'!$D$15","v":{"$error":"#N/A"}},{"$f":"'Standing Data'!$F$15","v":0},{"$f":"'Standing Data'!$F$9","v":0},"Fin.Return","T904",{"$f":"Fin.Return!T1029","v":0}]
[{"$f":"'Standing Data'!$D$15","v":{"$error":"#N/A"}},{"$f":"'Standing Data'!$F$15","v":0},{"$f":"'Standing Data'!$F$9","v":0},"Fin.Return","U904",{"$f":"Fin.Return!U1029","v":0}]
[{"$f":"'Standing Data'!$D$15","v":{"$error":"#N/A"}},{"$f":"'Standing Data'!$F$15","v":0},{"$f":"'Standing Data'!$F$9","v":0},"Fin.Return","V904",{"$f":"Fin.Return!V1029","v":0}]
[{"$f":"'Standing Data'!$D$15","v":{"$error":"#N/A"}},{"$f":"'Standing Data'!$F$15","v":0},{"$f":"'Standing Data'!$F$9","v":0},"Fin.Return","W904",{"$f":"Fin.Return!W1029","v":0}]
[{"$f":"'Standing Data'!$D$15","v":{"$error":"#N/A"}},{"$f":"'Standing Data'!$F$15","v":0},{"$f":"'Standing Data'!$F$9","v":0},"Fin.Return","X904",{"$f":"Fin.Return!X1029","v":0}]
[{"$f":"'Standing Data'!$D$15","v":{"$error":"#N/A"}},{"$f":"'Standing Data'!$F$15","v":0},{"$f":"'Standing Data'!$F$9","v":0},"Fin.Return","Y904",{"$f":"Fin.Return!Y1029","v":0}]
[{"$f":"'Standing Data'!$D$15","v":{"$error":"#N/A"}},{"$f":"'Standing Data'!$F$15","v":0},{"$f":"'Standing Data'!$F$9","v":0},"Fin.Return","Z904",{"$f":"Fin.Return!Z1029","v":0}]
[{"$f":"'Standing Data'!$D$15","v":{"$error":"#N/A"}},{"$f":"'Standing Data'!$F$15","v":0},{"$f":"'Standing Data'!$F$9","v":0},"Fin.Return","D1003",{"$f":"Fin.Return!D1130","v":"Name here"}]
[{"$f":"'Standing Data'!$D$15","v":{"$error":"#N/A"}},{"$f":"'Standing Data'!$F$15","v":0},{"$f":"'Standing Data'!$F$9","v":0},"Fin.Return","D1076",{"$f":"Fin.Return!D1203","v":"Name here"}]
[{"$f":"'Standing Data'!$D$15","v":{"$error":"#N/A"}},{"$f":"'Standing Data'!$F$15","v":0},{"$f":"'Standing Data'!$F$9","v":0},"Fin.Return","B1140",{"$f":"Fin.Return!B1267","v":"Contingent liability 1"}]
[{"$f":"'Standing Data'!$D$15","v":{"$error":"#N/A"}},{"$f":"'Standing Data'!$F$15","v":0},{"$f":"'Standing Data'!$F$9","v":0},"Fin.Return","B1141",{"$f":"Fin.Return!B1268","v":"Contingent liability 2"}]
[{"$f":"'Standing Data'!$D$15","v":{"$error":"#N/A"}},{"$f":"'Standing Data'!$F$15","v":0},{"$f":"'Standing Data'!$F$9","v":0},"Fin.Return","B1142",{"$f":"Fin.Return!B1269","v":"Contingent liability 3"}]
[{"$f":"'Standing Data'!$D$15","v":{"$error":"#N/A"}},{"$f":"'Standing Data'!$F$15","v":0},{"$f":"'Standing Data'!$F$9","v":0},"Fin.Return","B1149",{"$f":"Fin.Return!#REF!","v":{"$error":"#REF!"}}]
[{"$f":"'Standing Data'!$D$15","v":{"$error":"#N/A"}},{"$f":"'Standing Data'!$F$15","v":0},{"$f":"'Standing Data'!$F$9","v":0},"Fin.Return","B1150",{"$f":"Fin.Return!#REF!","v":{"$error":"#REF!"}}]
[{"$f":"'Standing Data'!$D$15","v":{"$error":"#N/A"}},{"$f":"'Standing Data'!$F$15","v":0},{"$f":"'Standing Data'!$F$9","v":0},"Fin.Return","B1151",{"$f":"Fin.Return!#REF!","v":{"$error":"#REF!"}}]
[{"$f":"'Standing Data'!$D$15","v":{"$error":"#N/A"}},{"$f":"'Standing Data'!$F$15","v":0},{"$f":"'Standing Data'!$F$9","v":0},"Fin.Return","E1174",{"$f":"Fin.Return!#REF!","v":{"$error":"#REF!"}}]
[{"$f":"'Standing Data'!$D$15","v":{"$error":"#N/A"}},{"$f":"'Standing Data'!$F$15","v":0},{"$f":"'Standing Data'!$F$9","v":0},"Fin.Return","E1232",{"$f":"Fin.Return!E1329","v":0}]
[{"$f":"'Standing Data'!$D$15","v":{"$error":"#N/A"}},{"$f":"'Standing Data'!$F$15","v":0},{"$f":"'Standing Data'!$F$9","v":0},"Fin.Return","I1257",{"$f":"Fin.Return!I1354","v":0}]
[{"$f":"'Standing Data'!$D$15","v":{"$error":"#N/A"}},{"$f":"'Standing Data'!$F$15","v":0},{"$f":"'Standing Data'!$F$9","v":0},"Fin.Return","I1258",{"$f":"Fin.Return!I1355","v":0}]
[{"$f":"'Standing Data'!$D$15","v":{"$error":"#N/A"}},{"$f":"'Standing Data'!$F$15","v":0},{"$f":"'Standing Data'!$F$9","v":0},"Fin.Return","I1259",{"$f":"Fin.Return!I1356","v":0}]
[{"$f":"'Standing Data'!$D$15","v":{"$error":"#N/A"}},{"$f":"'Standing Data'!$F$15","v":0},{"$f":"'Standing Data'!$F$9","v":0},"Fin.Return","I1260",{"$f":"Fin.Return!I1357","v":0}]
[{"$f":"'Standing Data'!$D$15","v":{"$error":"#N/A"}},{"$f":"'Standing Data'!$F$15","v":0},{"$f":"'Standing Data'!$F$9","v":0},"Fin.Return","I1261",{"$f":"Fin.Return!I1358","v":0}]
[{"$f":"'Standing Data'!$D$15","v":{"$error":"#N/A"}},{"$f":"'Standing Data'!$F$15","v":0},{"$f":"'Standing Data'!$F$9","v":0},"Fin.Return","I1262",{"$f":"Fin.Return!I1359","v":0}]
[{"$f":"'Standing Data'!$D$15","v":{"$error":"#N/A"}},{"$f":"'Standing Data'!$F$15","v":0},{"$f":"'Standing Data'!$F$9","v":0},"Fin.Return","I1263",{"$f":"Fin.Return!I1360","v":0}]
[{"$f":"'Standing Data'!$D$15","v":{"$error":"#N/A"}},{"$f":"'Standing Data'!$F$15","v":0},{"$f":"'Standing Data'!$F$9","v":0},"Fin.Return","I1264",{"$f":"Fin.Return!I1361","v":0}]
[{"$f":"'Standing Data'!$D$15","v":{"$error":"#N/A"}},{"$f":"'Standing Data'!$F$15","v":0},{"$f":"'Standing Data'!$F$9","v":0},"Fin.Return","I1265",{"$f":"Fin.Return!I1362","v":0}]
[{"$f":"'Standing Data'!$D$15","v":{"$error":"#N/A"}},{"$f":"'Standing Data'!$F$15","v":0},{"$f":"'Standing Data'!$F$9","v":0},"Fin.Return","I1266",{"$f":"Fin.Return!I1363","v":0}]
[{"$f":"'Standing Data'!$D$15","v":{"$error":"#N/A"}},{"$f":"'Standing Data'!$F$15","v":0},{"$f":"'Standing Data'!$F$9","v":0},"Fin.Return","I1267",{"$f":"Fin.Return!I1364","v":0}]
[{"$f":"'Standing Data'!$D$15","v":{"$error":"#N/A"}},{"$f":"'Standing Data'!$F$15","v":0},{"$f":"'Standing Data'!$F$9","v":0},"Fin.Return","I1268",{"$f":"Fin.Return!I1365","v":0}]
[{"$f":"'Standing Data'!$D$15","v":{"$error":"#N/A"}},{"$f":"'Standing Data'!$F$15","v":0},{"$f":"'Standing Data'!$F$9","v":0},"Bench.Return","L15",{"$f":"'Bench.Return '!#REF!","v":{"$error":"#REF!"}}]
[{"$f":"'Standing Data'!$D$15","v":{"$error":"#N/A"}},{"$f":"'Standing Data'!$F$15","v":0},{"$f":"'Standing Data'!$F$9","v":0},"Bench.Return","L16",{"$f":"'Bench.Return '!#REF!","v":{"$error":"#REF!"}}]
[{"$f":"'Standing Data'!$D$15","v":{"$error":"#N/A"}},{"$f":"'Standing Data'!$F$15","v":0},{"$f":"'Standing Data'!$F$9","v":0},"Bench.Return","L17",{"$f":"'Bench.Return '!#REF!","v":{"$error":"#REF!"}}]
[{"$f":"'Standing Data'!$D$15","v":{"$error":"#N/A"}},{"$f":"'Standing Data'!$F$15","v":0},{"$f":"'Standing Data'!$F$9","v":0},"Bench.Return","L18",{"$f":"'Bench.Return '!#REF!","v":{"$error":"#REF!"}}]
[{"$f":"'Standing Data'!$D$15","v":{"$error":"#N/A"}},{"$f":"'Standing Data'!$F$15","v":0},{"$f":"'Standing Data'!$F$9","v":0},"Bench.Return","L19",{"$f":"'Bench.Return '!#REF!","v":{"$error":"#REF!"}}]
[{"$f":"'Standing Data'!$D$15","v":{"$error":"#N/A"}},{"$f":"'Standing Data'!$F$15","v":0},{"$f":"'Standing Data'!$F$9","v":0},"Bench.Return","L20",{"$f":"'Bench.Return '!#REF!","v":{"$error":"#REF!"}}]
[{"$f":"'Standing Data'!$D$15","v":{"$error":"#N/A"}},{"$f":"'Standing Data'!$F$15","v":0},{"$f":"'Standing Data'!$F$9","v":0},"Bench.Return","L21",{"$f":"'Bench.Return '!#REF!","v":{"$error":"#REF!"}}]
[{"$f":"'Standing Data'!$D$15","v":{"$error":"#N/A"}},{"$f":"'Standing Data'!$F$15","v":0},{"$f":"'Standing Data'!$F$9","v":0},"Bench.Return","L22",{"$f":"'Bench.Return '!#REF!","v":{"$error":"#REF!"}}]
[{"$f":"'Standing Data'!$D$15","v":{"$error":"#N/A"}},{"$f":"'Standing Data'!$F$15","v":0},{"$f":"'Standing Data'!$F$9","v":0},"Bench.Return","L23",{"$f":"'Bench.Return '!#REF!","v":{"$error":"#REF!"}}]
[{"$f":"'Standing Data'!$D$15","v":{"$error":"#N/A"}},{"$f":"'Standing Data'!$F$15","v":0},{"$f":"'Standing Data'!$F$9","v":0},"Bench.Return","L27",{"$f":"'Bench.Return '!#REF!","v":{"$error":"#REF!"}}]
[{"$f":"'Standing Data'!$D$15","v":{"$error":"#N/A"}},{"$f":"'Standing Data'!$F$15","v":0},{"$f":"'Standing Data'!$F$9","v":0},"Bench.Return","L28",{"$f":"'Bench.Return '!#REF!","v":{"$error":"#REF!"}}]
[{"$f":"'Standing Data'!$D$15","v":{"$error":"#N/A"}},{"$f":"'Standing Data'!$F$15","v":0},{"$f":"'Standing Data'!$F$9","v":0},"Bench.Return","L29",{"$f":"'Bench.Return '!#REF!","v":{"$error":"#REF!"}}]
[{"$f":"'Standing Data'!$D$15","v":{"$error":"#N/A"}},{"$f":"'Standing Data'!$F$15","v":0},{"$f":"'Standing Data'!$F$9","v":0},"Bench.Return","L30",{"$f":"'Bench.Return '!#REF!","v":{"$error":"#REF!"}}]
[{"$f":"'Standing Data'!$D$15","v":{"$error":"#N/A"}},{"$f":"'Standing Data'!$F$15","v":0},{"$f":"'Standing Data'!$F$9","v":0},"Bench.Return","L31",{"$f":"'Bench.Return '!#REF!","v":{"$error":"#REF!"}}]
[{"$f":"'Standing Data'!$D$15","v":{"$error":"#N/A"}},{"$f":"'Standing Data'!$F$15","v":0},{"$f":"'Standing Data'!$F$9","v":0},"Bench.Return","L32",{"$f":"'Bench.Return '!#REF!","v":{"$error":"#REF!"}}]
[{"$f":"'Standing Data'!$D$15","v":{"$error":"#N/A"}},{"$f":"'Standing Data'!$F$15","v":0},{"$f":"'Standing Data'!$F$9","v":0},"Bench.Return","L33",{"$f":"'Bench.Return '!#REF!","v":{"$error":"#REF!"}}]
[{"$f":"'Standing Data'!$D$15","v":{"$error":"#N/A"}},{"$f":"'Standing Data'!$F$15","v":0},{"$f":"'Standing Data'!$F$9","v":0},"Bench.Return","L37",{"$f":"'Bench.Return '!#REF!","v":{"$error":"#REF!"}}]
[{"$f":"'Standing Data'!$D$15","v":{"$error":"#N/A"}},{"$f":"'Standing Data'!$F$15","v":0},{"$f":"'Standing Data'!$F$9","v":0},"Bench.Return","L41",{"$f":"'Bench.Return '!#REF!","v":{"$error":"#REF!"}}]
[{"$f":"'Standing Data'!$D$15","v":{"$error":"#N/A"}},{"$f":"'Standing Data'!$F$15","v":0},{"$f":"'Standing Data'!$F$9","v":0},"Bench.Return","L42",{"$f":"'Bench.Return '!#REF!","v":{"$error":"#REF!"}}]
[{"$f":"'Standing Data'!$D$15","v":{"$error":"#N/A"}},{"$f":"'Standing Data'!$F$15","v":0},{"$f":"'Standing Data'!$F$9","v":0},"Bench.Return","L43",{"$f":"'Bench.Return '!#REF!","v":{"$error":"#REF!"}}]
[{"$f":"'Standing Data'!$D$15","v":{"$error":"#N/A"}},{"$f":"'Standing Data'!$F$15","v":0},{"$f":"'Standing Data'!$F$9","v":0},"Bench.Return","L44",{"$f":"'Bench.Return '!#REF!","v":{"$error":"#REF!"}}]
[{"$f":"'Standing Data'!$D$15","v":{"$error":"#N/A"}},{"$f":"'Standing Data'!$F$15","v":0},{"$f":"'Standing Data'!$F$9","v":0},"Bench.Return","L50",{"$f":"'Bench.Return '!#REF!","v":{"$error":"#REF!"}}]
[{"$f":"'Standing Data'!$D$15","v":{"$error":"#N/A"}},{"$f":"'Standing Data'!$F$15","v":0},{"$f":"'Standing Data'!$F$9","v":0},"Bench.Return","L54",{"$f":"'Bench.Return '!#REF!","v":{"$error":"#REF!"}}]
[{"$f":"'Standing Data'!$D$15","v":{"$error":"#N/A"}},{"$f":"'Standing Data'!$F$15","v":0},{"$f":"'Standing Data'!$F$9","v":0},"Bench.Return","L55",{"$f":"'Bench.Return '!#REF!","v":{"$error":"#REF!"}}]
[{"$f":"'Standing Data'!$D$15","v":{"$error":"#N/A"}},{"$f":"'Standing Data'!$F$15","v":0},{"$f":"'Standing Data'!$F$9","v":0},"Bench.Return","L56",{"$f":"'Bench.Return '!#REF!","v":{"$error":"#REF!"}}]
[{"$f":"'Standing Data'!$D$15","v":{"$error":"#N/A"}},{"$f":"'Standing Data'!$F$15","v":0},{"$f":"'Standing Data'!$F$9","v":0},"Bench.Return","L57",{"$f":"'Bench.Return '!#REF!","v":{"$error":"#REF!"}}]
[{"$f":"'Standing Data'!$D$15","v":{"$error":"#N/A"}},{"$f":"'Standing Data'!$F$15","v":0},{"$f":"'Standing Data'!$F$9","v":0},"Bench.Return","L58",{"$f":"'Bench.Return '!#REF!","v":{"$error":"#REF!"}}]
[{"$f":"'Standing Data'!$D$15","v":{"$error":"#N/A"}},{"$f":"'Standing Data'!$F$15","v":0},{"$f":"'Standing Data'!$F$9","v":0},"Bench.Return","L59",{"$f":"'Bench.Return '!#REF!","v":{"$error":"#REF!"}}]
[{"$f":"'Standing Data'!$D$15","v":{"$error":"#N/A"}},{"$f":"'Standing Data'!$F$15","v":0},{"$f":"'Standing Data'!$F$9","v":0},"Bench.Return","L60",{"$f":"'Bench.Return '!#REF!","v":{"$error":"#REF!"}}]
[{"$f":"'Standing Data'!$D$15","v":{"$error":"#N/A"}},{"$f":"'Standing Data'!$F$15","v":0},{"$f":"'Standing Data'!$F$9","v":0},"Bench.Return","L63",{"$f":"'Bench.Return '!#REF!","v":{"$error":"#REF!"}}]
[{"$f":"'Standing Data'!$D$15","v":{"$error":"#N/A"}},{"$f":"'Standing Data'!$F$15","v":0},{"$f":"'Standing Data'!$F$9","v":0},"Bench.Return","L64",{"$f":"'Bench.Return '!#REF!","v":{"$error":"#REF!"}}]
[{"$f":"'Standing Data'!$D$15","v":{"$error":"#N/A"}},{"$f":"'Standing Data'!$F$15","v":0},{"$f":"'Standing Data'!$F$9","v":0},"Bench.Return","L65",{"$f":"'Bench.Return '!#REF!","v":{"$error":"#REF!"}}]
[{"$f":"'Standing Data'!$D$15","v":{"$error":"#N/A"}},{"$f":"'Standing Data'!$F$15","v":0},{"$f":"'Standing Data'!$F$9","v":0},"Bench.Return","L66",{"$f":"'Bench.Return '!#REF!","v":{"$error":"#REF!"}}]
[{"$f":"'Standing Data'!$D$15","v":{"$error":"#N/A"}},{"$f":"'Standing Data'!$F$15","v":0},{"$f":"'Standing Data'!$F$9","v":0},"Bench.Return","L70",{"$f":"'Bench.Return '!#REF!","v":{"$error":"#REF!"}}]
[{"$f":"'Standing Data'!$D$15","v":{"$error":"#N/A"}},{"$f":"'Standing Data'!$F$15","v":0},{"$f":"'Standing Data'!$F$9","v":0},"Bench.Return","L71",{"$f":"'Bench.Return '!#REF!","v":{"$error":"#REF!"}}]
[{"$f":"'Standing Data'!$D$15","v":{"$error":"#N/A"}},{"$f":"'Standing Data'!$F$15","v":0},{"$f":"'Standing Data'!$F$9","v":0},"Bench.Return","L75",{"$f":"'Bench.Return '!#REF!","v":{"$error":"#REF!"}}]
[{"$f":"'Standing Data'!$D$15","v":{"$error":"#N/A"}},{"$f":"'Standing Data'!$F$15","v":0},{"$f":"'Standing Data'!$F$9","v":0},"Bench.Return","L76",{"$f":"'Bench.Return '!#REF!","v":{"$error":"#REF!"}}]
[{"$f":"'Standing Data'!$D$15","v":{"$error":"#N/A"}},{"$f":"'Standing Data'!$F$15","v":0},{"$f":"'Standing Data'!$F$9","v":0},"Bench.Return","L77",{"$f":"'Bench.Return '!#REF!","v":{"$error":"#REF!"}}]
[{"$f":"'Standing Data'!$D$15","v":{"$error":"#N/A"}},{"$f":"'Standing Data'!$F$15","v":0},{"$f":"'Standing Data'!$F$9","v":0},"Bench.Return","L78",{"$f":"'Bench.Return '!#REF!","v":{"$error":"#REF!"}}]
[{"$f":"'Standing Data'!$D$15","v":{"$error":"#N/A"}},{"$f":"'Standing Data'!$F$15","v":0},{"$f":"'Standing Data'!$F$9","v":0},"Bench.Return","L79",{"$f":"'Bench.Return '!#REF!","v":{"$error":"#REF!"}}]
[{"$f":"'Standing Data'!$D$15","v":{"$error":"#N/A"}},{"$f":"'Standing Data'!$F$15","v":0},{"$f":"'Standing Data'!$F$9","v":0},"Bench.Return","L83",{"$f":"'Bench.Return '!#REF!","v":{"$error":"#REF!"}}]
[{"$f":"'Standing Data'!$D$15","v":{"$error":"#N/A"}},{"$f":"'Standing Data'!$F$15","v":0},{"$f":"'Standing Data'!$F$9","v":0},"Bench.Return","L86",{"$f":"'Bench.Return '!#REF!","v":{"$error":"#REF!"}}]
[{"$f":"'Standing Data'!$D$15","v":{"$error":"#N/A"}},{"$f":"'Standing Data'!$F$15","v":0},{"$f":"'Standing Data'!$F$9","v":0},"Bench.Return","L87",{"$f":"'Bench.Return '!#REF!","v":{"$error":"#REF!"}}]
[{"$f":"'Standing Data'!$D$15","v":{"$error":"#N/A"}},{"$f":"'Standing Data'!$F$15","v":0},{"$f":"'Standing Data'!$F$9","v":0},"Bench.Return","L88",{"$f":"'Bench.Return '!#REF!","v":{"$error":"#REF!"}}]
[{"$f":"'Standing Data'!$D$15","v":{"$error":"#N/A"}},{"$f":"'Standing Data'!$F$15","v":0},{"$f":"'Standing Data'!$F$9","v":0},"Bench.Return","L89",{"$f":"'Bench.Return '!#REF!","v":{"$error":"#REF!"}}]
[{"$f":"'Standing Data'!$D$15","v":{"$error":"#N/A"}},{"$f":"'Standing Data'!$F$15","v":0},{"$f":"'Standing Data'!$F$9","v":0},"Bench.Return","L90",{"$f":"'Bench.Return '!#REF!","v":{"$error":"#REF!"}}]
[{"$f":"'Standing Data'!$D$15","v":{"$error":"#N/A"}},{"$f":"'Standing Data'!$F$15","v":0},{"$f":"'Standing Data'!$F$9","v":0},"Bench.Return","L91",{"$f":"'Bench.Return '!#REF!","v":{"$error":"#REF!"}}]
[{"$f":"'Standing Data'!$D$15","v":{"$error":"#N/A"}},{"$f":"'Standing Data'!$F$15","v":0},{"$f":"'Standing Data'!$F$9","v":0},"Bench.Return","L95",{"$f":"'Bench.Return '!#REF!","v":{"$error":"#REF!"}}]
[{"$f":"'Standing Data'!$D$15","v":{"$error":"#N/A"}},{"$f":"'Standing Data'!$F$15","v":0},{"$f":"'Standing Data'!$F$9","v":0},"Bench.Return","L98",{"$f":"'Bench.Return '!#REF!","v":{"$error":"#REF!"}}]
[{"$f":"'Standing Data'!$D$15","v":{"$error":"#N/A"}},{"$f":"'Standing Data'!$F$15","v":0},{"$f":"'Standing Data'!$F$9","v":0},"Bench.Return","L99",{"$f":"'Bench.Return '!#REF!","v":{"$error":"#REF!"}}]
[{"$f":"'Standing Data'!$D$15","v":{"$error":"#N/A"}},{"$f":"'Standing Data'!$F$15","v":0},{"$f":"'Standing Data'!$F$9","v":0},"Bench.Return","L100",{"$f":"'Bench.Return '!#REF!","v":{"$error":"#REF!"}}]
[{"$f":"'Standing Data'!$D$15","v":{"$error":"#N/A"}},{"$f":"'Standing Data'!$F$15","v":0},{"$f":"'Standing Data'!$F$9","v":0},"Bench.Return","L101",{"$f":"'Bench.Return '!#REF!","v":{"$error":"#REF!"}}]
[{"$f":"'Standing Data'!$D$15","v":{"$error":"#N/A"}},{"$f":"'Standing Data'!$F$15","v":0},{"$f":"'Standing Data'!$F$9","v":0},"Bench.Return","L102",{"$f":"'Bench.Return '!#REF!","v":{"$error":"#REF!"}}]
[{"$f":"'Standing Data'!$D$15","v":{"$error":"#N/A"}},{"$f":"'Standing Data'!$F$15","v":0},{"$f":"'Standing Data'!$F$9","v":0},"Bench.Return","L106",{"$f":"'Bench.Return '!#REF!","v":{"$error":"#REF!"}}]
[{"$f":"'Standing Data'!$D$15","v":{"$error":"#N/A"}},{"$f":"'Standing Data'!$F$15","v":0},{"$f":"'Standing Data'!$F$9","v":0},"Bench.Return","L107",{"$f":"'Bench.Return '!#REF!","v":{"$error":"#REF!"}}]
[{"$f":"'Standing Data'!$D$15","v":{"$error":"#N/A"}},{"$f":"'Standing Data'!$F$15","v":0},{"$f":"'Standing Data'!$F$9","v":0},"Bench.Return","L108",{"$f":"'Bench.Return '!#REF!","v":{"$error":"#REF!"}}]
[{"$f":"'Standing Data'!$D$15","v":{"$error":"#N/A"}},{"$f":"'Standing Data'!$F$15","v":0},{"$f":"'Standing Data'!$F$9","v":0},"Bench.Return","L114",{"$f":"'Bench.Return '!#REF!","v":{"$error":"#REF!"}}]
[{"$f":"'Standing Data'!$D$15","v":{"$error":"#N/A"}},{"$f":"'Standing Data'!$F$15","v":0},{"$f":"'Standing Data'!$F$9","v":0},"Bench.Return","L115",{"$f":"'Bench.Return '!#REF!","v":{"$error":"#REF!"}}]
[{"$f":"'Standing Data'!$D$15","v":{"$error":"#N/A"}},{"$f":"'Standing Data'!$F$15","v":0},{"$f":"'Standing Data'!$F$9","v":0},"Bench.Return","L116",{"$f":"'Bench.Return '!#REF!","v":{"$error":"#REF!"}}]
[{"$f":"'Standing Data'!$D$15","v":{"$error":"#N/A"}},{"$f":"'Standing Data'!$F$15","v":0},{"$f":"'Standing Data'!$F$9","v":0},"Bench.Return","L117",{"$f":"'Bench.Return '!#REF!","v":{"$error":"#REF!"}}]
[{"$f":"'Standing Data'!$D$15","v":{"$error":"#N/A"}},{"$f":"'Standing Data'!$F$15","v":0},{"$f":"'Standing Data'!$F$9","v":0},"Bench.Return","L118",{"$f":"'Bench.Return '!#REF!","v":{"$error":"#REF!"}}]
[{"$f":"'Standing Data'!$D$15","v":{"$error":"#N/A"}},{"$f":"'Standing Data'!$F$15","v":0},{"$f":"'Standing Data'!$F$9","v":0},"Bench.Return","L119",{"$f":"'Bench.Return '!#REF!","v":{"$error":"#REF!"}}]